{"text_format":"1","workbook":"xlsx","n_sheets":20,"sheets":["Instructions","Project Information","Project Scope","Ancillary Costs","Scope of Work","SB Scope of Work","Bill of Materials","Project Acceptance","SB Project Acceptance","effRT Enrollment Upload","Edit Mode","CBAT","CBAT Lookups","effRT Support","Other Data","TRM Data","Revisions","HOU - Facility Space Type","AESC 2024 Avoided Costs Res","AESC 2024 Avoided Costs Com"],"not_rendered":{"charts":0,"images":2,"macros":1,"external_links":5,"defined_names":242,"comments":4,"pivot_tables":0},"unopened":[],"bounds":{"document_bytes":16777216,"sheet_cells":100000,"rows_first":2000,"rows_last":500,"rows_between":2000,"halvings":0,"cell_chars":16384,"cell_head_chars":4096},"cells_cut":0,"cells_raw":0,"read":"whole","date_system":"1900"}

{"sheet":"Instructions","index":0,"n_rows":23,"n_cols":19,"rows_kept":23,"cut":false,"hidden":false,"merged":[[4,18,7,21],[23,1,23,13],[16,1,16,13],[19,1,19,13],[22,1,22,13],[7,1,7,13],[10,1,10,13],[13,1,13,13]]}
[]
[null,null,null,null,"Efficiency Maine "]
[null,null,null,null,"Commercial & Industrial Prescriptive Initiative"]
[null,null,null,null,{"$f":"'Project Information'!$B$2","v":"Cost-effective Lighting Investment Calculator (CLIC) CIPI FON-022-2026"}]
[null,null,null,null,null,null,null,null,null,null,null,null,null,null,null,null,null,null,"Program Reminders: \nAll projects require pre-approval prior to the purchase of any material. The date of the pre-approval letter is the project start date. If any equipment is purchased prior to the date of the pre-approval letter, the project will not be eligible for an incentive."]
[]
[null,"Overview of CLIC Tool"]
[null,"The Efficiency Maine Cost-effective Lighting Investment Calculator (CLIC) calculates the energy savings, incentives, and cost effectiveness of lighting retrofit measures under the Commercial & Industrial Prescriptive Initiative.  The CLIC tool integrates Efficiency Maine’s Cost Benefit Analysis Tool to screen proposed measures and calculates energy savings in accordance with algorithms found in the Efficiency Maine Trust Commercial Technical Reference Manual.\n\nThe CLIC tool allows the user to use the Pay for Performance incentive pathway which calculates an incentive based on kWh savings associated with the retrofit, at a rate of $0.30 per kWh saved NOT TO EXCEED 80% of calculated measure cost. \n\nIMPORTANT: When opening the CLIC tool, please ensure to enable macros.  This is typically done by clicking \"Enable Content\" when prompted after opening the file - look for a banner just under the menu bar.  You may need to \"Enable Editing\" first.  Macros are necessary for the tool to function correctly.\n\nThe following sections provide a brief overview and basic instruction on how to use each tab in the CLIC tool."]
[]
[null,"1. Project Information"]
[null,"This sheet contains basic information about the project.  Fill in all cells that are highlighted red before continuing to the Project Scope sheet.  The Facility Type selection will narrow the choices for Facility Subtype and Space Type.  For each location where retrofits are planned, use the Facility Information section to select the appropriate Space Type, and then enter a unique location/space description.  You must create a location for each area that has a unique occupancy schedule.  Areas with common schedules can be grouped together under a single location. \n\nFor “Self-Install Projects”:  Provide the Supply (Qualified Partner 1) Company/Employee name and for the Installer (Qualified Partner 2) Company put “Self-Install” and record person installing the purchased products. Note: The default hourly Labor Rate is $60.00 and is capped at $110 per hour.\n\nThe Facility Hours of Operation section allows you to either use the default hours of occupancy or enter a custom schedule.  If a custom schedule is used for a location, this schedule can then be applied to other locations.\n\nNote that the Incentive Pathway (Pay for Performance) is set for all projects. "]
[]
[null,"2. Project Scope"]
[null,"The Project Scope sheet is where all measure information is entered and screened for cost effectiveness.  Begin by selecting the location/space name from the drop-down menu, and then work from left to right to fill in all relevant information.  \n\nThis sheet has been designed to shade cells when they are not necessary or are irrelevant. \n\nOnce all of the necessary information has been entered, the row will automatically turn green or red depending on whether it is cost effective based on Efficiency Maine's Cost Benefit Analysis Tool.  If the measure is not found to be cost effective, there is an option to include it in the project scope and forego incentives by selecting \"yes\" in Column G.  If this option is exercised, the measure will appear in the Scope of Work, Bill of Materials, and Project Acceptance forms.  The total incentive for each measure/row can be found in Column AK."]
[]
[null,"3. Ancillary Costs"]
[null,"This sheet allows the user to enter ancillary costs (if applicable), which are then allocated to the appropriate measures.  There are three types of ancillary costs that can be entered: Measure-Level, Location-Level, and Project-Level.  For each of these options, start by entering a description of the cost and selecting the appropriate description from the Cost Category drop-down menu.  \n\nFor Measure-Level, the cost can be entered either as a per measure cost, or as a total cost.  The applicable lighting fixture or control is selected from a dropdown menu that is populated with only fixtures and controls that are proposed in the Project Scope sheet.  The Applicable Locations section will unshade only the locations where the selected fixture or control is proposed as a retrofit.  For each location that includes the selected measure, indicate whether or not the costs entered apply.  If more rows are needed to enter Measure-Level costs, select the \"Unhide Row\" button located at the bottom of the Measure-Level costs section to add additional rows.\n\nLocation-Level costs can be entered either on a per location basis or as a total cost.  The Applicable Locations section contains dropdown menus to specify which locations a given cost is applicable to.  Location-Level ancillary costs are applied to all measures located in the selected locations.\n\nThe Project-Level costs section should be used to capture costs applicable to the entire project rather than a specific measure or location.  Project Level costs are applied to all measures at all locations.\n\nNote: Ancillary costs will be reviewed as part of the pre-approval process and all entries may not be eligible as a Measure Cost. Additional labor hours beyond what is calculated by the CLIC tool will not be included in the total measure costs for lighting projects. Lift rental costs will be reviewed and back-up documentation such as quotes may be requested. Contractor mark-up on materials may not exceed 30%."]
[]
[null,"4. Reports"]
[null,"CLIC provides three documents; Scope of Work (Required), Bill of Materials (Optional) and Project Acceptance (Required).  \n\nThe Scope of Work provides a summary of all labor costs, material costs, ancillary costs and the measure cost.  Also provided is the estimated incentives, estimated cost to the customer and the estimated simple payback. Savings in kWh and dollars will be provided. The default average cost per kWh is $0.21 and can be changed based on site-specific data.\n\nThe Bill of Materials can be used as a shopping list and is a summary of all fixture/retrofit kits that are included in the Scope of Work.  \n\nApproved Scope of Work is required to be signed by the customer and the installer (Including Self-Installs) after the project has been Pre-Approved. \n\nProject Acceptance is required to be initialed (line item detail) by the customer and then signed by the customer and the installer (Including Self-Installs) after the project has been completed.\n\nThe installer must email/fax the completed forms to the program delivery team.  The report can be emailed to CIP@efficiencymaine.com or \nfaxed to 800-334-7033."]
[]
[null,"Tips and Tricks"]
[null,"1.  Facility types determine which Facility Subtypes and Space Types are acceptable.  If a facility type is changed after a facility subtype and space types have been selected, it will be necessary to re-select an acceptable facility subtype and space types in order for the tool to function correctly.\n\n2. For the Pay for Performance, it is required to enter wattage and material cost values in the Project Scope tab.\n\n3. If there are multiple locations with the same custom occupancy schedule, use the \"Use schedule from a different location\" option to save time entering data.\n\n4. If the only option under Proposed Fixture Type is \"No valid options for this baseline,\"  review the \"Interior, Exterior or Refrigerated Location?\" and \"Existing Fixture Type\" selections. \n\n5. If incentives are not being calculated:\n      a. verify there are no blank required fields (look for highlighted cells) \n      b. verify macros are enabled.  If macros are not enabled, save workbook, reopen, and enable macros before making any changes.\n      c. if \"#VALUE\" errors are seen, press F9 to force recalculation."]

{"sheet":"Project Information","index":1,"n_rows":85,"n_cols":59,"rows_kept":85,"cut":false,"hidden":false,"merged":[[47,3,52,5],[35,3,35,5],[27,3,27,5],[17,3,17,5],[22,3,22,5],[23,3,23,5],[26,3,26,5],[19,3,19,5],[15,3,15,5],[4,3,4,5],[18,3,18,5],[7,3,7,5],[8,3,8,5],[5,3,5,5],[6,3,6,5],[10,3,10,5],[13,3,13,5],[14,3,14,5],[12,4,12,5],[9,3,9,4]]}
[]
[null,{"$f":"\"Cost-effective Lighting Investment Calculator (CLIC) \"&'Other Data'!$C$2","v":"Cost-effective Lighting Investment Calculator (CLIC) CIPI FON-022-2026"},null,null,null,null,null,null,null,"Reference Number:"]
[null,null,"Project Information",null,null,null,null,"Facility Information"]
[]
[null,null,"Company Name / Payee:"]
[null,null,"Qualified Partner 1 - Supply Company Name:",null,null,null,null,null,null,null,null,null,null,null,null,null,null,null,null,null,null,"Locations"]
[null,null,"Qualified Partner 1 - Employee Name:",null,null,null,null,null,null,"Location #1","Location #2","Location #3","Location #4","Location #5","Location #6","Location #7","Location #8","Location #9","Location #10","Location #11","Location #12","Location #13","Location #14","Location #15","Location #16","Location #17","Location #18","Location #19","Location #20","Location #21","Location #22","Location #23","Location #24","Location #25","Location #26","Location #27","Location #28","Location #29","Location #30","Location #31","Location #32","Location #33","Location #34","Location #35","Location #36","Location #37","Location #38","Location #39","Location #40","Location #41","Location #42","Location #43","Location #44","Location #45","Location #46","Location #47","Location #48","Location #49","Location #50"]
[null,null,"Qualified Partner 2 – Installer Company Name:",null,null,null,null,"Space Type: "]
[null,null,"Qualified Partner 2 –  Employee Name:",null,null,null,null,"Unique Location/Space Description",null," "," "," "," "," "," "," "," "," "," "," "," "," "," "," "," "," "," "," "," "," "," "," "," "," "," "," "," "," "," "," "," "," "," "," "," "," "," "," "," "," "," "," "," "," "," "," "," "," "," "]
[null,null,"Electrician License Number (for self-install):",null,null,null,"Place X in box for self-install",null,null,{"$f":"IF(J9=\"\",\"\",IF(J15<>\"Yes\",J14,J35))","v":{"$error":"#N/A"}},{"$error":"#N/A"},{"$error":"#N/A"},{"$error":"#N/A"},{"$error":"#N/A"},{"$error":"#N/A"},{"$error":"#N/A"},{"$error":"#N/A"},{"$error":"#N/A"},{"$error":"#N/A"},{"$error":"#N/A"},{"$error":"#N/A"},{"$error":"#N/A"},{"$error":"#N/A"},{"$error":"#N/A"},{"$error":"#N/A"},{"$error":"#N/A"},{"$error":"#N/A"},{"$error":"#N/A"},{"$error":"#N/A"},{"$error":"#N/A"},{"$error":"#N/A"},{"$error":"#N/A"},{"$error":"#N/A"},{"$error":"#N/A"},{"$error":"#N/A"},{"$error":"#N/A"},{"$error":"#N/A"},{"$error":"#N/A"},{"$error":"#N/A"},{"$error":"#N/A"},{"$error":"#N/A"},{"$f":"IF(AP9=\"\",\"\",IF(AP15<>\"Yes\",AP14,AP35))","v":{"$error":"#N/A"}},{"$error":"#N/A"},{"$error":"#N/A"},{"$error":"#N/A"},{"$error":"#N/A"},{"$error":"#N/A"},{"$error":"#N/A"},{"$error":"#N/A"},{"$error":"#N/A"},{"$error":"#N/A"},{"$error":"#N/A"},{"$error":"#N/A"},{"$error":"#N/A"},{"$error":"#N/A"},{"$error":"#N/A"},{"$error":"#N/A"},{"$error":"#N/A"},{"$error":"#N/A"}]
[null,null,"Hourly Labor Rate: ",null,null,null,{"$f":"IF($D$33=\"Small Business\", 100,300)","v":300},"Annual Hours of Occupancy:"]
[null,null,null,{"$f":"IF(OR(D8=D5,D8=\"self-install\",D8=\"self install\",D11=\"\",F10=\"X\"),'Other Data'!K7,'Project Information'!D11)","v":60},null,null,null,"Facility Hours of Occupancy"]
[null,null,"End User Contact Name: "]
[null,null,"End User Contact Email: ",null,null,null,null,"Default annual lighting runtime (hours): ",null,{"$f":"IF(J15=\"Yes\",\"N/A\",VLOOKUP(J8,'HOU - Facility Space Type'!$A$4:$AF$28,J84+1,FALSE)*(IF($D$32=\"Summer\",'Other Data'!$E$87/8766,IF($D$32=\"Winter\",'Other Data'!$E$88/8766,1))))","v":{"$error":"#N/A"}},{"$f":"IF(K15=\"Yes\",\"N/A\",VLOOKUP(K8,'HOU - Facility Space Type'!$A$4:$AF$28,K83+1,FALSE)*(IF($D$32=\"Summer\",'Other Data'!$E$87/8766,IF($D$32=\"Winter\",'Other Data'!$E$88/8766,1))))","v":{"$error":"#N/A"}},{"$f":"IF(L15=\"Yes\",\"N/A\",VLOOKUP(L8,'HOU - Facility Space Type'!$A$4:$AF$28,L83+1,FALSE)*(IF($D$32=\"Summer\",'Other Data'!$E$87/8766,IF($D$32=\"Winter\",'Other Data'!$E$88/8766,1))))","v":{"$error":"#N/A"}},{"$f":"IF(M15=\"Yes\",\"N/A\",VLOOKUP(M8,'HOU - Facility Space Type'!$A$4:$AF$28,M83+1,FALSE)*(IF($D$32=\"Summer\",'Other Data'!$E$87/8766,IF($D$32=\"Winter\",'Other Data'!$E$88/8766,1))))","v":{"$error":"#N/A"}},{"$f":"IF(N15=\"Yes\",\"N/A\",VLOOKUP(N8,'HOU - Facility Space Type'!$A$4:$AF$28,N83+1,FALSE)*(IF($D$32=\"Summer\",'Other Data'!$E$87/8766,IF($D$32=\"Winter\",'Other Data'!$E$88/8766,1))))","v":{"$error":"#N/A"}},{"$f":"IF(O15=\"Yes\",\"N/A\",VLOOKUP(O8,'HOU - Facility Space Type'!$A$4:$AF$28,O83+1,FALSE)*(IF($D$32=\"Summer\",'Other Data'!$E$87/8766,IF($D$32=\"Winter\",'Other Data'!$E$88/8766,1))))","v":{"$error":"#N/A"}},{"$f":"IF(P15=\"Yes\",\"N/A\",VLOOKUP(P8,'HOU - Facility Space Type'!$A$4:$AF$28,P83+1,FALSE)*(IF($D$32=\"Summer\",'Other Data'!$E$87/8766,IF($D$32=\"Winter\",'Other Data'!$E$88/8766,1))))","v":{"$error":"#N/A"}},{"$f":"IF(Q15=\"Yes\",\"N/A\",VLOOKUP(Q8,'HOU - Facility Space Type'!$A$4:$AF$28,Q83+1,FALSE)*(IF($D$32=\"Summer\",'Other Data'!$E$87/8766,IF($D$32=\"Winter\",'Other Data'!$E$88/8766,1))))","v":{"$error":"#N/A"}},{"$f":"IF(R15=\"Yes\",\"N/A\",VLOOKUP(R8,'HOU - Facility Space Type'!$A$4:$AF$28,R83+1,FALSE)*(IF($D$32=\"Summer\",'Other Data'!$E$87/8766,IF($D$32=\"Winter\",'Other Data'!$E$88/8766,1))))","v":{"$error":"#N/A"}},{"$f":"IF(S15=\"Yes\",\"N/A\",VLOOKUP(S8,'HOU - Facility Space Type'!$A$4:$AF$28,S83+1,FALSE)*(IF($D$32=\"Summer\",'Other Data'!$E$87/8766,IF($D$32=\"Winter\",'Other Data'!$E$88/8766,1))))","v":{"$error":"#N/A"}},{"$f":"IF(T15=\"Yes\",\"N/A\",VLOOKUP(T8,'HOU - Facility Space Type'!$A$4:$AF$28,T83+1,FALSE)*(IF($D$32=\"Summer\",'Other Data'!$E$87/8766,IF($D$32=\"Winter\",'Other Data'!$E$88/8766,1))))","v":{"$error":"#N/A"}},{"$f":"IF(U15=\"Yes\",\"N/A\",VLOOKUP(U8,'HOU - Facility Space Type'!$A$4:$AF$28,U83+1,FALSE)*(IF($D$32=\"Summer\",'Other Data'!$E$87/8766,IF($D$32=\"Winter\",'Other Data'!$E$88/8766,1))))","v":{"$error":"#N/A"}},{"$f":"IF(V15=\"Yes\",\"N/A\",VLOOKUP(V8,'HOU - Facility Space Type'!$A$4:$AF$28,V83+1,FALSE)*(IF($D$32=\"Summer\",'Other Data'!$E$87/8766,IF($D$32=\"Winter\",'Other Data'!$E$88/8766,1))))","v":{"$error":"#N/A"}},{"$f":"IF(W15=\"Yes\",\"N/A\",VLOOKUP(W8,'HOU - Facility Space Type'!$A$4:$AF$28,W83+1,FALSE)*(IF($D$32=\"Summer\",'Other Data'!$E$87/8766,IF($D$32=\"Winter\",'Other Data'!$E$88/8766,1))))","v":{"$error":"#N/A"}},{"$f":"IF(X15=\"Yes\",\"N/A\",VLOOKUP(X8,'HOU - Facility Space Type'!$A$4:$AF$28,X83+1,FALSE)*(IF($D$32=\"Summer\",'Other Data'!$E$87/8766,IF($D$32=\"Winter\",'Other Data'!$E$88/8766,1))))","v":{"$error":"#N/A"}},{"$f":"IF(Y15=\"Yes\",\"N/A\",VLOOKUP(Y8,'HOU - Facility Space Type'!$A$4:$AF$28,Y83+1,FALSE)*(IF($D$32=\"Summer\",'Other Data'!$E$87/8766,IF($D$32=\"Winter\",'Other Data'!$E$88/8766,1))))","v":{"$error":"#N/A"}},{"$f":"IF(Z15=\"Yes\",\"N/A\",VLOOKUP(Z8,'HOU - Facility Space Type'!$A$4:$AF$28,Z83+1,FALSE)*(IF($D$32=\"Summer\",'Other Data'!$E$87/8766,IF($D$32=\"Winter\",'Other Data'!$E$88/8766,1))))","v":{"$error":"#N/A"}},{"$f":"IF(AA15=\"Yes\",\"N/A\",VLOOKUP(AA8,'HOU - Facility Space Type'!$A$4:$AF$28,AA83+1,FALSE)*(IF($D$32=\"Summer\",'Other Data'!$E$87/8766,IF($D$32=\"Winter\",'Other Data'!$E$88/8766,1))))","v":{"$error":"#N/A"}},{"$f":"IF(AB15=\"Yes\",\"N/A\",VLOOKUP(AB8,'HOU - Facility Space Type'!$A$4:$AF$28,AB83+1,FALSE)*(IF($D$32=\"Summer\",'Other Data'!$E$87/8766,IF($D$32=\"Winter\",'Other Data'!$E$88/8766,1))))","v":{"$error":"#N/A"}},{"$f":"IF(AC15=\"Yes\",\"N/A\",VLOOKUP(AC8,'HOU - Facility Space Type'!$A$4:$AF$28,AC83+1,FALSE)*(IF($D$32=\"Summer\",'Other Data'!$E$87/8766,IF($D$32=\"Winter\",'Other Data'!$E$88/8766,1))))","v":{"$error":"#N/A"}},{"$f":"IF(AD15=\"Yes\",\"N/A\",VLOOKUP(AD8,'HOU - Facility Space Type'!$A$4:$AF$28,AD83+1,FALSE)*(IF($D$32=\"Summer\",'Other Data'!$E$87/8766,IF($D$32=\"Winter\",'Other Data'!$E$88/8766,1))))","v":{"$error":"#N/A"}},{"$f":"IF(AE15=\"Yes\",\"N/A\",VLOOKUP(AE8,'HOU - Facility Space Type'!$A$4:$AF$28,AE83+1,FALSE)*(IF($D$32=\"Summer\",'Other Data'!$E$87/8766,IF($D$32=\"Winter\",'Other Data'!$E$88/8766,1))))","v":{"$error":"#N/A"}},{"$f":"IF(AF15=\"Yes\",\"N/A\",VLOOKUP(AF8,'HOU - Facility Space Type'!$A$4:$AF$28,AF83+1,FALSE)*(IF($D$32=\"Summer\",'Other Data'!$E$87/8766,IF($D$32=\"Winter\",'Other Data'!$E$88/8766,1))))","v":{"$error":"#N/A"}},{"$f":"IF(AG15=\"Yes\",\"N/A\",VLOOKUP(AG8,'HOU - Facility Space Type'!$A$4:$AF$28,AG83+1,FALSE)*(IF($D$32=\"Summer\",'Other Data'!$E$87/8766,IF($D$32=\"Winter\",'Other Data'!$E$88/8766,1))))","v":{"$error":"#N/A"}},{"$f":"IF(AH15=\"Yes\",\"N/A\",VLOOKUP(AH8,'HOU - Facility Space Type'!$A$4:$AF$28,AH83+1,FALSE)*(IF($D$32=\"Summer\",'Other Data'!$E$87/8766,IF($D$32=\"Winter\",'Other Data'!$E$88/8766,1))))","v":{"$error":"#N/A"}},{"$f":"IF(AI15=\"Yes\",\"N/A\",VLOOKUP(AI8,'HOU - Facility Space Type'!$A$4:$AF$28,AI83+1,FALSE)*(IF($D$32=\"Summer\",'Other Data'!$E$87/8766,IF($D$32=\"Winter\",'Other Data'!$E$88/8766,1))))","v":{"$error":"#N/A"}},{"$f":"IF(AJ15=\"Yes\",\"N/A\",VLOOKUP(AJ8,'HOU - Facility Space Type'!$A$4:$AF$28,AJ83+1,FALSE)*(IF($D$32=\"Summer\",'Other Data'!$E$87/8766,IF($D$32=\"Winter\",'Other Data'!$E$88/8766,1))))","v":{"$error":"#N/A"}},{"$f":"IF(AK15=\"Yes\",\"N/A\",VLOOKUP(AK8,'HOU - Facility Space Type'!$A$4:$AF$28,AK83+1,FALSE)*(IF($D$32=\"Summer\",'Other Data'!$E$87/8766,IF($D$32=\"Winter\",'Other Data'!$E$88/8766,1))))","v":{"$error":"#N/A"}},{"$f":"IF(AL15=\"Yes\",\"N/A\",VLOOKUP(AL8,'HOU - Facility Space Type'!$A$4:$AF$28,AL83+1,FALSE)*(IF($D$32=\"Summer\",'Other Data'!$E$87/8766,IF($D$32=\"Winter\",'Other Data'!$E$88/8766,1))))","v":{"$error":"#N/A"}},{"$f":"IF(AM15=\"Yes\",\"N/A\",VLOOKUP(AM8,'HOU - Facility Space Type'!$A$4:$AF$28,AM83+1,FALSE)*(IF($D$32=\"Summer\",'Other Data'!$E$87/8766,IF($D$32=\"Winter\",'Other Data'!$E$88/8766,1))))","v":{"$error":"#N/A"}},{"$f":"IF(AN15=\"Yes\",\"N/A\",VLOOKUP(AN8,'HOU - Facility Space Type'!$A$4:$AF$28,AN83+1,FALSE)*(IF($D$32=\"Summer\",'Other Data'!$E$87/8766,IF($D$32=\"Winter\",'Other Data'!$E$88/8766,1))))","v":{"$error":"#N/A"}},{"$f":"IF(AO15=\"Yes\",\"N/A\",VLOOKUP(AO8,'HOU - Facility Space Type'!$A$4:$AF$28,AO83+1,FALSE)*(IF($D$32=\"Summer\",'Other Data'!$E$87/8766,IF($D$32=\"Winter\",'Other Data'!$E$88/8766,1))))","v":{"$error":"#N/A"}},{"$f":"IF(AP15=\"Yes\",\"N/A\",VLOOKUP(AP8,'HOU - Facility Space Type'!$A$4:$AF$28,AP83+1,FALSE)*(IF($D$32=\"Summer\",'Other Data'!$E$87/8766,IF($D$32=\"Winter\",'Other Data'!$E$88/8766,1))))","v":{"$error":"#N/A"}},{"$f":"IF(AQ15=\"Yes\",\"N/A\",VLOOKUP(AQ8,'HOU - Facility Space Type'!$A$4:$AF$28,AQ83+1,FALSE)*(IF($D$32=\"Summer\",'Other Data'!$E$87/8766,IF($D$32=\"Winter\",'Other Data'!$E$88/8766,1))))","v":{"$error":"#N/A"}},{"$f":"IF(AR15=\"Yes\",\"N/A\",VLOOKUP(AR8,'HOU - Facility Space Type'!$A$4:$AF$28,AR83+1,FALSE)*(IF($D$32=\"Summer\",'Other Data'!$E$87/8766,IF($D$32=\"Winter\",'Other Data'!$E$88/8766,1))))","v":{"$error":"#N/A"}},{"$f":"IF(AS15=\"Yes\",\"N/A\",VLOOKUP(AS8,'HOU - Facility Space Type'!$A$4:$AF$28,AS83+1,FALSE)*(IF($D$32=\"Summer\",'Other Data'!$E$87/8766,IF($D$32=\"Winter\",'Other Data'!$E$88/8766,1))))","v":{"$error":"#N/A"}},{"$f":"IF(AT15=\"Yes\",\"N/A\",VLOOKUP(AT8,'HOU - Facility Space Type'!$A$4:$AF$28,AT83+1,FALSE)*(IF($D$32=\"Summer\",'Other Data'!$E$87/8766,IF($D$32=\"Winter\",'Other Data'!$E$88/8766,1))))","v":{"$error":"#N/A"}},{"$f":"IF(AU15=\"Yes\",\"N/A\",VLOOKUP(AU8,'HOU - Facility Space Type'!$A$4:$AF$28,AU83+1,FALSE)*(IF($D$32=\"Summer\",'Other Data'!$E$87/8766,IF($D$32=\"Winter\",'Other Data'!$E$88/8766,1))))","v":{"$error":"#N/A"}},{"$f":"IF(AV15=\"Yes\",\"N/A\",VLOOKUP(AV8,'HOU - Facility Space Type'!$A$4:$AF$28,AV83+1,FALSE)*(IF($D$32=\"Summer\",'Other Data'!$E$87/8766,IF($D$32=\"Winter\",'Other Data'!$E$88/8766,1))))","v":{"$error":"#N/A"}},{"$f":"IF(AW15=\"Yes\",\"N/A\",VLOOKUP(AW8,'HOU - Facility Space Type'!$A$4:$AF$28,AW83+1,FALSE)*(IF($D$32=\"Summer\",'Other Data'!$E$87/8766,IF($D$32=\"Winter\",'Other Data'!$E$88/8766,1))))","v":{"$error":"#N/A"}},{"$f":"IF(AX15=\"Yes\",\"N/A\",VLOOKUP(AX8,'HOU - Facility Space Type'!$A$4:$AF$28,AX83+1,FALSE)*(IF($D$32=\"Summer\",'Other Data'!$E$87/8766,IF($D$32=\"Winter\",'Other Data'!$E$88/8766,1))))","v":{"$error":"#N/A"}},{"$f":"IF(AY15=\"Yes\",\"N/A\",VLOOKUP(AY8,'HOU - Facility Space Type'!$A$4:$AF$28,AY83+1,FALSE)*(IF($D$32=\"Summer\",'Other Data'!$E$87/8766,IF($D$32=\"Winter\",'Other Data'!$E$88/8766,1))))","v":{"$error":"#N/A"}},{"$f":"IF(AZ15=\"Yes\",\"N/A\",VLOOKUP(AZ8,'HOU - Facility Space Type'!$A$4:$AF$28,AZ83+1,FALSE)*(IF($D$32=\"Summer\",'Other Data'!$E$87/8766,IF($D$32=\"Winter\",'Other Data'!$E$88/8766,1))))","v":{"$error":"#N/A"}},{"$f":"IF(BA15=\"Yes\",\"N/A\",VLOOKUP(BA8,'HOU - Facility Space Type'!$A$4:$AF$28,BA83+1,FALSE)*(IF($D$32=\"Summer\",'Other Data'!$E$87/8766,IF($D$32=\"Winter\",'Other Data'!$E$88/8766,1))))","v":{"$error":"#N/A"}},{"$f":"IF(BB15=\"Yes\",\"N/A\",VLOOKUP(BB8,'HOU - Facility Space Type'!$A$4:$AF$28,BB83+1,FALSE)*(IF($D$32=\"Summer\",'Other Data'!$E$87/8766,IF($D$32=\"Winter\",'Other Data'!$E$88/8766,1))))","v":{"$error":"#N/A"}},{"$f":"IF(BC15=\"Yes\",\"N/A\",VLOOKUP(BC8,'HOU - Facility Space Type'!$A$4:$AF$28,BC83+1,FALSE)*(IF($D$32=\"Summer\",'Other Data'!$E$87/8766,IF($D$32=\"Winter\",'Other Data'!$E$88/8766,1))))","v":{"$error":"#N/A"}},{"$f":"IF(BD15=\"Yes\",\"N/A\",VLOOKUP(BD8,'HOU - Facility Space Type'!$A$4:$AF$28,BD83+1,FALSE)*(IF($D$32=\"Summer\",'Other Data'!$E$87/8766,IF($D$32=\"Winter\",'Other Data'!$E$88/8766,1))))","v":{"$error":"#N/A"}},{"$f":"IF(BE15=\"Yes\",\"N/A\",VLOOKUP(BE8,'HOU - Facility Space Type'!$A$4:$AF$28,BE83+1,FALSE)*(IF($D$32=\"Summer\",'Other Data'!$E$87/8766,IF($D$32=\"Winter\",'Other Data'!$E$88/8766,1))))","v":{"$error":"#N/A"}},{"$f":"IF(BF15=\"Yes\",\"N/A\",VLOOKUP(BF8,'HOU - Facility Space Type'!$A$4:$AF$28,BF83+1,FALSE)*(IF($D$32=\"Summer\",'Other Data'!$E$87/8766,IF($D$32=\"Winter\",'Other Data'!$E$88/8766,1))))","v":{"$error":"#N/A"}},{"$f":"IF(BG15=\"Yes\",\"N/A\",VLOOKUP(BG8,'HOU - Facility Space Type'!$A$4:$AF$28,BG83+1,FALSE)*(IF($D$32=\"Summer\",'Other Data'!$E$87/8766,IF($D$32=\"Winter\",'Other Data'!$E$88/8766,1))))","v":{"$error":"#N/A"}}]
[null,null,"End User Contact Phone Number: ",null,null,null,null,"Use custom occupancy schedule? "]
[null,null,"End User Contact Alternate Phone Number: ",null,null,null,null,"Use schedule from a different location?"]
[]
[null,null,"Facility Name: ",null,null,null,null,"Custom Hours of Occupancy"]
[null,null,"Facility Type:",null,null,null,null,"Sunday start time:"]
[null,null,"Facility Subtype:",null,null,null,null,"Sunday end time:"]
[null,null,"If Multifamily, # of Units:",null,null,null,null,"Monday start time:"]
[null,null,null,null,null,null,null,"Monday end time:"]
[null,null,"Installation Physical Street Address: ",null,null,null,null,"Tuesday start time:"]
[null,null,null,null,null,null,null,"Tuesday end time:"]
[null,null,"Physical Address City, State & Zip Code: ",null,null,null,null,"Wednesday start time:"]
[null,null,"Mailing Address is Physical Address?",null,null,null,null,"Wednesday end time:"]
[null,null,"Mailing  Street Address/P.O. Box: ",null,null,null,null,"Thursday start time:"]
[null,null,null,null,null,null,null,"Thursday end time:"]
[null,null,"Mailing Address/P.O. Box City & Zip: ",null,null,null,null,"Friday start time:"]
[null,null,null,null,null,null,null,"Friday end time:"]
[null,null,"Business Type: ",null,null,null,null,"Saturday start time"]
[null,null,"Seasonality: ",null,null,null,null,"Saturday end time:"]
[null,null,"Incentive Pathway:"]
[null,null,"Sales Tax Exempt: ",null,null,null,null,"Average weeks of occupancy per year:"]
[null,null,null,null,null,null,null,"Custom annual lighting runtime (hours): ",null,{"$f":"IF(J16<>\"\",HLOOKUP(J16,$J$9:$BG$10,2,FALSE),IF(J82=\"\",\"\",J82))","v":0},{"$f":"IF(K16<>\"\",HLOOKUP(K16,$J$9:$BG$10,2,FALSE),IF(K81=\"\",\"\",K81))","v":0},0,0,0,0,0,0,0,0,0,0,0,0,0,0,0,0,0,0,0,0,0,0,0,0,0,0,0,0,0,0,0,{"$f":"IF(AQ16<>\"\",HLOOKUP(AQ16,$J$9:$BG$10,2,FALSE),IF(AQ81=\"\",\"\",AQ81))","v":0},0,0,0,0,0,0,0,0,0,0,0,0,0,0,0,0]
[null,null,"Electric Provider: "]
[null,null,"Billing Period Start Date:",null,null,null,null,"Project Financials"]
[null,null,"Billing Period End Date:"]
[null,null,"Billing Period Consumption (kWh):",null,null,null,null,"Estimated Annual kWh Savings: ",null,{"$f":"SUM('effRT Enrollment Upload'!AX:AX)","v":0},"Total Labor Costs: ",{"$f":"SUM('Project Scope'!BO8:BP107)","v":0}]
[null,null,"Est. Annual Consumption (kWh):",{"$f":" ROUND(IF(AND($D$37>0,$D$38>0,$D$37<>$D$38),$D$39*365/($D$38-$D$37),0),0)","v":0},null,null,null,"Savings %:",null,{"$f":"IF(AND(D40>0,J39<D40),J39/D40,0)","v":0},"Total Material Costs: ",{"$f":"SUM('Project Scope'!BL8:BM107)","v":0}]
[null,null,"Service Class: ",null,null,null,null,"Average cost per kWh: ",null,{"$f":"D43","v":0.21},"Total Ancillary Costs: ",{"$f":"SUMIFS('Ancillary Costs'!$L$8:$L$105,'Ancillary Costs'!$D$8:$D$105,\"NM\")+SUMIFS('Project Scope'!$BR$8:$BR$107,'Project Scope'!$CX$8:$CX$107,\"<>b\")","v":0}]
[null,null,"Account #: ",null,null,null,null,"Estimated Annual Energy Cost Savings: ",null,{"$f":"J41*J39","v":0},"Total Measure Cost: ",{"$f":"SUM('effRT Enrollment Upload'!CE:CE,'effRT Enrollment Upload'!CG:CG,'effRT Enrollment Upload'!CI:CI)","v":0}]
[null,null," Cost per kWh:",0.21,null,null,null,"Estimated Monthly Energy Cost Savings: ",null,{"$f":"J42/12","v":0},"Taxes:",{"$f":"(L40+SUMIFS('Ancillary Costs'!$L$8:$L$105,'Ancillary Costs'!$C$8:$C$105,\"Consumables (wire, connectors, etc.)\"))*IF(D34=\"Yes\",0,taxrate)","v":0}]
[null,null,"Heating Fuel Type: ",null,null,null,null,null,null,null,"Total Project Cost: ",{"$f":"SUM(L39:L41,L43)","v":0}]
[null,null,null,null,null,null,null,null,null,null,"Estimated Incentives:",{"$f":"SUM('Project Scope'!AK8:AK107)","v":0}]
[null,null,"Enrollment Date:",{"$f":"TODAY()","v":"2025-09-05"},null,null,null,null,null,null,"Estimated Cost to Customer:",{"$f":"L44-L45","v":0}]
[null,null,null,null,null,null,null,null,null,null,"Est. Simple Payback (years):",{"$f":"L46/J42","v":{"$error":"#DIV/0!"}}]
[null,null,"Notes:"]
[]
[]
[]
[]
[]
[]
[]
[]
[]
[]
[]
[]
[]
[]
[]
[]
[]
[]
[]
[]
[]
[]
[]
[]
[null,null,null,null,null,null,null,null,null,null,{"$f":"(K20-K19)*24","v":0},{"$f":"(L20-L19)*24","v":0},{"$f":"(M20-M19)*24","v":0},0,0,0,0,0,0,{"$f":"(T20-T19)*24","v":0},0,0,0,0,0,0,0,0,0,0,0,0,0,0,0,0,0,0,0,0,0,0,0,0,{"$f":"(AS20-AS19)*24","v":0},0,0,0,0,0,0,0,0,0,0,0,0,0,0]
[null,null,null,null,null,null,null,"Sunday hours",null,{"$f":"(J20-J19)*24","v":0},{"$f":"(K22-K21)*24","v":0},{"$f":"(L22-L21)*24","v":0},{"$f":"(M22-M21)*24","v":0},0,0,0,0,0,0,{"$f":"(T22-T21)*24","v":0},0,0,0,0,0,0,0,0,0,0,0,0,0,0,0,0,0,0,0,0,0,0,0,0,{"$f":"(AS22-AS21)*24","v":0},0,0,0,0,0,0,0,0,0,0,0,0,0,0]
[null,null,null,null,null,null,null,"Monday hours",null,{"$f":"(J22-J21)*24","v":0},{"$f":"(K24-K23)*24","v":0},{"$f":"(L24-L23)*24","v":0},{"$f":"(M24-M23)*24","v":0},0,0,0,0,0,0,{"$f":"(T24-T23)*24","v":0},0,0,0,0,0,0,0,0,0,0,0,0,0,0,0,0,0,0,0,0,0,0,0,0,{"$f":"(AS24-AS23)*24","v":0},0,0,0,0,0,0,0,0,0,0,0,0,0,0]
[null,null,null,null,null,null,null,"Tuesday hours",null,{"$f":"(J24-J23)*24","v":0},{"$f":"(K26-K25)*24","v":0},{"$f":"(L26-L25)*24","v":0},{"$f":"(M26-M25)*24","v":0},0,0,0,0,0,0,{"$f":"(T26-T25)*24","v":0},0,0,0,0,0,0,0,0,0,0,0,0,0,0,0,0,0,0,0,0,0,0,0,0,{"$f":"(AS26-AS25)*24","v":0},0,0,0,0,0,0,0,0,0,0,0,0,0,0]
[null,null,null,null,null,null,null,"Wednesday hours",null,{"$f":"(J26-J25)*24","v":0},{"$f":"(K28-K27)*24","v":0},{"$f":"(L28-L27)*24","v":0},{"$f":"(M28-M27)*24","v":0},0,0,0,0,0,0,{"$f":"(T28-T27)*24","v":0},0,0,0,0,0,0,0,0,0,0,0,0,0,0,0,0,0,0,0,0,0,0,0,0,{"$f":"(AS28-AS27)*24","v":0},0,0,0,0,0,0,0,0,0,0,0,0,0,0]
[null,null,null,null,null,null,null,"Thursday hours",null,{"$f":"(J28-J27)*24","v":0},{"$f":"(K30-K29)*24","v":0},{"$f":"(L30-L29)*24","v":0},{"$f":"(M30-M29)*24","v":0},0,0,0,0,0,0,{"$f":"(T30-T29)*24","v":0},0,0,0,0,0,0,0,0,0,0,0,0,0,0,0,0,0,0,0,0,0,0,0,0,{"$f":"(AS30-AS29)*24","v":0},0,0,0,0,0,0,0,0,0,0,0,0,0,0]
[null,null,null,null,null,null,null,"Friday hours",null,{"$f":"(J30-J29)*24","v":0},{"$f":"(K32-K31)*24","v":0},{"$f":"(L32-L31)*24","v":0},{"$f":"(M32-M31)*24","v":0},0,0,0,0,0,0,{"$f":"(T32-T31)*24","v":0},0,0,0,0,0,0,0,0,0,0,0,0,0,0,0,0,0,0,0,0,0,0,0,0,{"$f":"(AS32-AS31)*24","v":0},0,0,0,0,0,0,0,0,0,0,0,0,0,0]
[null,null,null,null,null,null,null,"Saturday hours",null,{"$f":"(J32-J31)*24","v":0},{"$f":"SUM(K73:K79)","v":0},{"$f":"SUM(L73:L79)","v":0},{"$f":"SUM(M73:M79)","v":0},0,0,0,0,0,0,{"$f":"SUM(T73:T79)","v":0},0,0,0,0,0,0,0,0,0,0,0,0,0,0,0,0,0,0,0,0,0,0,0,0,{"$f":"SUM(AS73:AS79)","v":0},0,0,0,0,0,0,0,0,0,0,0,0,0,0]
[null,null,null,null,null,null,null,"Total hours per week",null,{"$f":"SUM(J74:J80)","v":0},{"$f":"K80*K34","v":0},{"$f":"L80*L34","v":0},{"$f":"M80*M34","v":0},0,0,0,0,0,0,{"$f":"T80*T34","v":0},0,0,0,0,0,0,0,0,0,0,0,0,0,0,0,0,0,0,0,0,0,0,0,0,{"$f":"AS80*AS34","v":0},0,0,0,0,0,0,0,0,0,0,0,0,0,0]
[null,null,null,null,null,null,null,"Total hours per year",null,{"$f":"J81*J34","v":0}]
[null,null,null,null,null,null,null,null,null,null,{"$f":"HLOOKUP($D$20,'HOU - Facility Space Type'!$B$3:$AF$29,27,FALSE)","v":{"$error":"#N/A"}},{"$f":"HLOOKUP($D$20,'HOU - Facility Space Type'!$B$3:$AF$29,27,FALSE)","v":{"$error":"#N/A"}},{"$f":"HLOOKUP($D$20,'HOU - Facility Space Type'!$B$3:$AF$29,27,FALSE)","v":{"$error":"#N/A"}},{"$f":"HLOOKUP($D$20,'HOU - Facility Space Type'!$B$3:$AF$29,27,FALSE)","v":{"$error":"#N/A"}},{"$f":"HLOOKUP($D$20,'HOU - Facility Space Type'!$B$3:$AF$29,27,FALSE)","v":{"$error":"#N/A"}},{"$f":"HLOOKUP($D$20,'HOU - Facility Space Type'!$B$3:$AF$29,27,FALSE)","v":{"$error":"#N/A"}},{"$f":"HLOOKUP($D$20,'HOU - Facility Space Type'!$B$3:$AF$29,27,FALSE)","v":{"$error":"#N/A"}},{"$f":"HLOOKUP($D$20,'HOU - Facility Space Type'!$B$3:$AF$29,27,FALSE)","v":{"$error":"#N/A"}},{"$f":"HLOOKUP($D$20,'HOU - Facility Space Type'!$B$3:$AF$29,27,FALSE)","v":{"$error":"#N/A"}},{"$f":"HLOOKUP($D$20,'HOU - Facility Space Type'!$B$3:$AF$29,27,FALSE)","v":{"$error":"#N/A"}},{"$f":"HLOOKUP($D$20,'HOU - Facility Space Type'!$B$3:$AF$29,27,FALSE)","v":{"$error":"#N/A"}},{"$f":"HLOOKUP($D$20,'HOU - Facility Space Type'!$B$3:$AF$29,27,FALSE)","v":{"$error":"#N/A"}},{"$f":"HLOOKUP($D$20,'HOU - Facility Space Type'!$B$3:$AF$29,27,FALSE)","v":{"$error":"#N/A"}},{"$f":"HLOOKUP($D$20,'HOU - Facility Space Type'!$B$3:$AF$29,27,FALSE)","v":{"$error":"#N/A"}},{"$f":"HLOOKUP($D$20,'HOU - Facility Space Type'!$B$3:$AF$29,27,FALSE)","v":{"$error":"#N/A"}},{"$f":"HLOOKUP($D$20,'HOU - Facility Space Type'!$B$3:$AF$29,27,FALSE)","v":{"$error":"#N/A"}},{"$f":"HLOOKUP($D$20,'HOU - Facility Space Type'!$B$3:$AF$29,27,FALSE)","v":{"$error":"#N/A"}},{"$f":"HLOOKUP($D$20,'HOU - Facility Space Type'!$B$3:$AF$29,27,FALSE)","v":{"$error":"#N/A"}},{"$f":"HLOOKUP($D$20,'HOU - Facility Space Type'!$B$3:$AF$29,27,FALSE)","v":{"$error":"#N/A"}},{"$f":"HLOOKUP($D$20,'HOU - Facility Space Type'!$B$3:$AF$29,27,FALSE)","v":{"$error":"#N/A"}},{"$f":"HLOOKUP($D$20,'HOU - Facility Space Type'!$B$3:$AF$29,27,FALSE)","v":{"$error":"#N/A"}},{"$f":"HLOOKUP($D$20,'HOU - Facility Space Type'!$B$3:$AF$29,27,FALSE)","v":{"$error":"#N/A"}},{"$f":"HLOOKUP($D$20,'HOU - Facility Space Type'!$B$3:$AF$29,27,FALSE)","v":{"$error":"#N/A"}},{"$f":"HLOOKUP($D$20,'HOU - Facility Space Type'!$B$3:$AF$29,27,FALSE)","v":{"$error":"#N/A"}},{"$f":"HLOOKUP($D$20,'HOU - Facility Space Type'!$B$3:$AF$29,27,FALSE)","v":{"$error":"#N/A"}},{"$f":"HLOOKUP($D$20,'HOU - Facility Space Type'!$B$3:$AF$29,27,FALSE)","v":{"$error":"#N/A"}},{"$f":"HLOOKUP($D$20,'HOU - Facility Space Type'!$B$3:$AF$29,27,FALSE)","v":{"$error":"#N/A"}},{"$f":"HLOOKUP($D$20,'HOU - Facility Space Type'!$B$3:$AF$29,27,FALSE)","v":{"$error":"#N/A"}},{"$f":"HLOOKUP($D$20,'HOU - Facility Space Type'!$B$3:$AF$29,27,FALSE)","v":{"$error":"#N/A"}},{"$f":"HLOOKUP($D$20,'HOU - Facility Space Type'!$B$3:$AF$29,27,FALSE)","v":{"$error":"#N/A"}},{"$f":"HLOOKUP($D$20,'HOU - Facility Space Type'!$B$3:$AF$29,27,FALSE)","v":{"$error":"#N/A"}},{"$f":"HLOOKUP($D$20,'HOU - Facility Space Type'!$B$3:$AF$29,27,FALSE)","v":{"$error":"#N/A"}},{"$f":"HLOOKUP($D$20,'HOU - Facility Space Type'!$B$3:$AF$29,27,FALSE)","v":{"$error":"#N/A"}},{"$f":"HLOOKUP($D$20,'HOU - Facility Space Type'!$B$3:$AF$29,27,FALSE)","v":{"$error":"#N/A"}},{"$f":"HLOOKUP($D$20,'HOU - Facility Space Type'!$B$3:$AF$29,27,FALSE)","v":{"$error":"#N/A"}},{"$f":"HLOOKUP($D$20,'HOU - Facility Space Type'!$B$3:$AF$29,27,FALSE)","v":{"$error":"#N/A"}},{"$f":"HLOOKUP($D$20,'HOU - Facility Space Type'!$B$3:$AF$29,27,FALSE)","v":{"$error":"#N/A"}},{"$f":"HLOOKUP($D$20,'HOU - Facility Space Type'!$B$3:$AF$29,27,FALSE)","v":{"$error":"#N/A"}},{"$f":"HLOOKUP($D$20,'HOU - Facility Space Type'!$B$3:$AF$29,27,FALSE)","v":{"$error":"#N/A"}},{"$f":"HLOOKUP($D$20,'HOU - Facility Space Type'!$B$3:$AF$29,27,FALSE)","v":{"$error":"#N/A"}},{"$f":"HLOOKUP($D$20,'HOU - Facility Space Type'!$B$3:$AF$29,27,FALSE)","v":{"$error":"#N/A"}},{"$f":"HLOOKUP($D$20,'HOU - Facility Space Type'!$B$3:$AF$29,27,FALSE)","v":{"$error":"#N/A"}},{"$f":"HLOOKUP($D$20,'HOU - Facility Space Type'!$B$3:$AF$29,27,FALSE)","v":{"$error":"#N/A"}},{"$f":"HLOOKUP($D$20,'HOU - Facility Space Type'!$B$3:$AF$29,27,FALSE)","v":{"$error":"#N/A"}},{"$f":"HLOOKUP($D$20,'HOU - Facility Space Type'!$B$3:$AF$29,27,FALSE)","v":{"$error":"#N/A"}},{"$f":"HLOOKUP($D$20,'HOU - Facility Space Type'!$B$3:$AF$29,27,FALSE)","v":{"$error":"#N/A"}},{"$f":"HLOOKUP($D$20,'HOU - Facility Space Type'!$B$3:$AF$29,27,FALSE)","v":{"$error":"#N/A"}},{"$f":"HLOOKUP($D$20,'HOU - Facility Space Type'!$B$3:$AF$29,27,FALSE)","v":{"$error":"#N/A"}},{"$f":"HLOOKUP($D$20,'HOU - Facility Space Type'!$B$3:$AF$29,27,FALSE)","v":{"$error":"#N/A"}}]
[null,null,null,null,null,null,null,null,null,{"$f":"HLOOKUP($D$20,'HOU - Facility Space Type'!$B$3:$AF$29,27,FALSE)","v":{"$error":"#N/A"}},{"$f":"IF(K14=\"N/A\",K35,K14)","v":{"$error":"#N/A"}},{"$f":"IF(L14=\"N/A\",L35,L14)","v":{"$error":"#N/A"}},{"$f":"IF(M14=\"N/A\",M35,M14)","v":{"$error":"#N/A"}},{"$error":"#N/A"},{"$error":"#N/A"},{"$error":"#N/A"},{"$error":"#N/A"},{"$error":"#N/A"},{"$error":"#N/A"},{"$f":"IF(T14=\"N/A\",T35,T14)","v":{"$error":"#N/A"}},{"$error":"#N/A"},{"$error":"#N/A"},{"$error":"#N/A"},{"$error":"#N/A"},{"$error":"#N/A"},{"$error":"#N/A"},{"$error":"#N/A"},{"$error":"#N/A"},{"$error":"#N/A"},{"$error":"#N/A"},{"$error":"#N/A"},{"$error":"#N/A"},{"$error":"#N/A"},{"$error":"#N/A"},{"$error":"#N/A"},{"$error":"#N/A"},{"$error":"#N/A"},{"$error":"#N/A"},{"$error":"#N/A"},{"$error":"#N/A"},{"$error":"#N/A"},{"$error":"#N/A"},{"$error":"#N/A"},{"$error":"#N/A"},{"$f":"IF(AS14=\"N/A\",AS35,AS14)","v":{"$error":"#N/A"}},{"$error":"#N/A"},{"$error":"#N/A"},{"$error":"#N/A"},{"$error":"#N/A"},{"$error":"#N/A"},{"$error":"#N/A"},{"$error":"#N/A"},{"$error":"#N/A"},{"$error":"#N/A"},{"$error":"#N/A"},{"$error":"#N/A"},{"$error":"#N/A"},{"$error":"#N/A"},{"$error":"#N/A"}]
[null,null,null,null,null,null,null,null,null,{"$f":"IF(J14=\"N/A\",J35,J14)","v":{"$error":"#N/A"}}]

{"sheet":"Project Scope","index":2,"n_rows":310,"n_cols":102,"rows_kept":310,"cut":false,"hidden":false,"merged":[]}
[]
[null,null,null,null,{"$f":"'Project Information'!$B$2","v":"Cost-effective Lighting Investment Calculator (CLIC) CIPI FON-022-2026"}]
[]
[]
[]
[null,"Baseline Conditions",null,null,null,null,null,null,null,null,null,null,null,null,null,"Proposed Lighting Fixtures",null,null,null,null,null,null,null,null,null,null,null,null,"Proposed Controls ",null,null,null,null,null,null,null,"Incentive",null,"Proposed Lighting Fixtures ",null,null,null,null,null,null,null,null,null,"Proposed Controls",null,null,null,null,null,null,null,"Ancillary Costs",null,null,null,null,null,null,"Project Financials",null,null,null,null,null,null,null,null,null,null,"kWh Savings",null,null,null,"Efficiency Maine Incentives",null,null,null,null,null,null,"Energy Savings Analysis",null,null,null,null,null,null,"Cost/Benefit",null,null,"Support logic"]
[null,"#","Location/Space Description","Sub Location","Interior, Exterior, or Refrigerated Location?","Upgrade Scope","Include in Project Scope Without an Incentive?","Space Type","Existing Fixture Type","Existing Fixture Description","Unique Proposed Fixtures","Seasonal Schedule","Annual Runtime (hours)","Qty",null,"Proposed Fixture Type","Proposed Fixture Description","Qty","Notes",null,"Measure Code","Proposed Watts per Fixture (Deemed)","Proposed Watts per Fixture (DLC Rated Wattage)","Lighting Fixtures Material Cost (Deemed)","Lighting Fixtures Material Cost (Total Material Costs per Row)","Labor Hours -Fixtures","Efficiency Maine Incentive - Fixtures",null,"Control Description","Qty","Measure Code","Controls  Material Cost (Deemed)","Controls  Material Cost (Total Material Costs per Row)","Labor Hours -Controls","Efficiency Maine Incentive - Controls",null,"Estimated Total Incentive",null,"Proposed Fixture Type","Proposed Fixture Description","Qty","Measure Code","Proposed Watts per fixture","Lighting Fixtures Material Cost","Labor Hours -Fixtures","Small Business Incentive - Fixtures","Pay for Performance Incentive - Fixtures",null,"Control Description","Qty","Measure Code","Controls Material Cost","Labor Hours -Controls","Small Business Incentive - Controls","Pay for Performance Incentive - Controls",null,"Project Ancillary Costs","Location Ancillary Costs","Fixture Type Ancillary Costs","Controls Ancillary Costs","Total Ancillary Costs - Fixtures","Total Ancillary Costs - Controls",null,"Lighting Fixtures Material Cost","Controls Material Cost","Total Material Cost","Labor Cost -Fixtures","Labor Cost -Controls","Total Labor Cost","Total Ancillary Costs","Total Costs","Total Costs - Fixtures","Total Costs - Controls",null,"Projected kWh Savings - Fixtures","Projected kWh Savings - Controls","Total kWh Savings",null,"Small Business Incentive - Fixtures","Small Business Incentive - Controls","Total Small Business Incentive","Pay for Performance Incentive - Fixtures","Pay for Performance Incentive - Controls","Total Pay for Performance Incentive",null,"Measure Code: Proposed Fixture(s)","Measure Code: (Proposed Control(s)","Baseline Watts per fixture","Proposed Watts per fixture","Total Baseline Watts","Total Proposed Watts",null,"Total Project Cost-Benefit Value ",null,null,"fixture/controls","fixtures","Existing","controls","sum",null,"CE Condition: a - CE < 1 but force inclusion, b - CE < 1 not in scope, c - CE >=1"]
[{"$f":"11-(COUNTBLANK(C8)+COUNTBLANK(E8:F8)+COUNTBLANK(I8:J8)+COUNTBLANK(N8)+COUNTBLANK(P8:R8)+COUNTBLANK(AC8:AD8))","v":0},1,null,null,null,null,null,{"$f":"IF($C8=\"\",\"\",IF(COUNTIF('Project Information'!$J$9:BG$9,$C8)<>1,\"\",INDEX('Project Information'!$J$8:$BG$8,1,MATCH($C8,'Project Information'!$J$9:BG$9,0))))","v":""},null,null,{"$f":"LOOKUP(2,1/(COUNTIF($K$7:K7,$Q$8:$Q$108)=0),$Q$8:$Q$108)","v":0},{"$f":"IF(OR('Project Information'!$D$32=\"\",C8=\"\"),\"\",'Project Information'!$D$32)","v":""},{"$f":"IF($C8=\"\",\"\",IF(COUNTIF('Project Information'!$J$9:$BG$9,$C8)=1,HLOOKUP(C8,'Project Information'!$J$9:$BG$10,2,FALSE),0))","v":""},null,null,null,null,null,null,null,{"$f":"IF(Q8<>\"\",IF('Project Information'!$D$33=\"Small Business\",\"I\",\"P\")&VLOOKUP($Q8,'TRM Data'!$C$5:$N$201,COLUMN('TRM Data'!$E$2)-COLUMN('TRM Data'!$C$2)+1,FALSE)&IF($L8=\"Summer\",\"S\",IF($L8=\"Winter\",\"W\",\"Y\")),\"\")","v":""},{"$f":"IF(OR($F8=\"Controls\",$F8=\"\"),\"\",VLOOKUP($Q8,'TRM Data'!$C$5:$N$201,COLUMN('TRM Data'!$F$2)-COLUMN('TRM Data'!$C$2)+1,FALSE))","v":""},null,{"$f":"IF($R8=0,\"\",VLOOKUP($Q8,'TRM Data'!$C$5:$N$201,COLUMN('TRM Data'!$G$2)-COLUMN('TRM Data'!$C$2)+1,FALSE)*$R8)","v":""},null,{"$f":"IF($R8=0,\"\",VLOOKUP($Q8,'TRM Data'!$C$5:$N$201,COLUMN('TRM Data'!$I$2)-COLUMN('TRM Data'!$C$2)+1,FALSE)*$R8)","v":""},{"$f":"IF($Q8=\"\",\"\",IF('Project Information'!$D$33=\"Small Business\",'Project Scope'!$CA8,IF('Project Information'!$D$33=\"Pay for Performance\",'Project Scope'!$CD8,0)))","v":""},null,null,null,{"$f":"IF(AC8<>\"\",\"P\"&VLOOKUP($AC8,'TRM Data'!$C$5:$N$201,COLUMN('TRM Data'!$E$2)-COLUMN('TRM Data'!$C$2)+1,FALSE)&IF($L8=\"Summer\",\"S\",IF($L8=\"Winter\",\"W\",\"Y\")),\"\")","v":""},{"$f":"IF($AD8=0,\"\",VLOOKUP($AC8,'TRM Data'!$C$5:$N$201,COLUMN('TRM Data'!$G$2)-COLUMN('TRM Data'!$C$2)+1,FALSE)*$AD8)","v":""},null,{"$f":"IF($AD8=0,\"\",VLOOKUP($AC8,'TRM Data'!$C$5:$N$201,COLUMN('TRM Data'!$I$2)-COLUMN('TRM Data'!$C$2)+1,FALSE)*$AD8)","v":""},{"$f":"IF($AC8=\"\",\"\",IF('Project Information'!$D$33=\"Small Business\",'Project Scope'!$CB8,IF('Project Information'!$D$33=\"Pay for Performance\",'Project Scope'!$CE8,0)))","v":""},null,{"$f":"IF($C8=\"\",\"\",SUM($AA8,$AI8))","v":""},null,{"$f":"IF(OR($C8=\"\",$F8=\"controls\"),\"\",IF($P8=\"\",\"\", $P8))","v":""},{"$f":"IF(OR($C8=\"\",$F8=\"controls\"),\"\",IF($Q8=\"\",\"\", $Q8))","v":""},{"$f":"IF(OR($C8=\"\"),\"\",IF($R8=\"\",0, $R8))","v":""},{"$f":"IF(OR($C8=\"\",$F8=\"controls\"),\"\",IF($U8=\"\",\"\", $U8))","v":""},{"$f":"IF(OR($C8=\"\",$F8=\"controls\"),\"\",IF($W8<>\"\",$W8,0))","v":""},{"$f":"IF(OR($C8=\"\",$F8=\"controls\"),\"\",IF($Y8<>\"\",$Y8,0))","v":""},{"$f":"IF(OR($C8=\"\",$F8=\"controls\"),\"\",IF($Z8=\"\",0, $Z8))","v":""},{"$f":"IF($Q8=\"\",\"\",IF(AND(ISNUMBER($BW8),ISNUMBER($AR8),$AR8>0),SUM($BL8,$BO8,$BI8)*'Other Data'!$H$83,0))","v":""},{"$f":"IF($Q8=\"\",\"\",IF(AND(ISNUMBER($BW8),ISNUMBER($AR8),$AR8>0),$BW8*'Other Data'!$G$84,0))","v":""},null,{"$f":"IF(OR($C8=\"\",$F8=\"fixtures\"),\"\",IF($AC8=\"\",\"\", $AC8))","v":""},{"$f":"IF(OR($C8=\"\",$F8=\"fixtures\"),\"\",IF($AD8=\"\",0, $AD8))","v":""},{"$f":"IF(OR($C8=\"\",$F8=\"fixtures\"),\"\",IF($AE8=\"\",\"\", $AE8))","v":""},{"$f":"IF(OR($C8=\"\",$F8=\"fixtures\"),\"\",IF($AG8<>\"\",$AG8,0))","v":""},{"$f":"IF(OR($C8=\"\",$F8=\"fixtures\"),\"\",IF($AH8=\"\",0, $AH8))","v":""},{"$f":"IF($AC8=\"\",\"\",IF(AND(ISNUMBER($BX8), ISNUMBER($AZ8),$AZ8>0),SUM($BJ8,$BM8,$BP8)*'Other Data'!$H$83,0))","v":""},{"$f":"IF($AC8=\"\",\"\",IF(AND(ISNUMBER($BX8), ISNUMBER($AZ8),$AZ8>0),$BX8*'Other Data'!$G$84,0))","v":""},null,{"$f":"IF($C8=\"\",\"\",SUM('Ancillary Costs'!$N$91:$N$105)*(SUM($AR8,$AZ8,SUM($AS8,$BA8)*'Project Information'!$D$12)))","v":""},{"$f":"IF($C8=\"\",\"\",SUMIFS('Ancillary Costs'!$N$72:$N$86,'Ancillary Costs'!$FL$72:$FL$86,\"*xx\"&'Project Scope'!$C8&\"xx*\")*(SUM($AR8,$AZ8,SUM($AS8,$BA8)*'Project Information'!$D$12)))","v":""},{"$f":"IFERROR(IF($C8=\"\",\"\",SUMIFS('Ancillary Costs'!$N$8:$N$67,'Ancillary Costs'!$FL$8:$FL$67,\"*xx\"&'Project Scope'!C8&\"xx*\",'Ancillary Costs'!$I$8:$I$67,'Project Scope'!$AN8)*'Project Scope'!$AO8),0)","v":""},{"$f":"IFERROR(IF($C8=\"\",\"\",SUMIFS('Ancillary Costs'!$N$8:$N$67,'Ancillary Costs'!$FL$8:$FL$67,\"*xx\"&'Project Scope'!C8&\"xx*\",'Ancillary Costs'!$I$8:$I$67,'Project Scope'!$AW8)*'Project Scope'!$AX8),0)","v":""},{"$f":"IF($C8=\"\",\"\",IF(SUM($AR8,$AZ8,SUM($AS8,$BA8)*'Project Information'!$D$12)=0,0,SUM($BG8,(SUM($BE8:$BF8))*((SUM($AR8,(IF(ISNUMBER($AS8),$AS8,0)*'Project Information'!$D$12)))/SUM($AR8,$AZ8,SUM($AS8,$BA8)*'Project Information'!$D$12)))))","v":""},{"$f":"IF($C8=\"\",\"\",IF(SUM($AR8,$AZ8,SUM($AS8,$BA8)*'Project Information'!$D$12)=0,0,SUM($BH8,(SUM($BE8:$BF8))*((SUM($AZ8,(IF(ISNUMBER($BA8),$BA8,0)*'Project Information'!$D$12)))/SUM($AR8,$AZ8,SUM($AS8,$BA8)*'Project Information'!$D$12)))))","v":""},null,{"$f":"IF($C8=\"\",\"\",IF(OR($AR8=\"\",$CX8=\"b\"),0,$AR8))","v":""},{"$f":"IF($C8=\"\",\"\",IF(OR($AZ8=\"\",$CX8=\"b\"),0,$AZ8))","v":""},{"$f":"IF($C8=\"\",\"\",IF($CX8=\"b\",0,SUM($BL8,$BM8)))","v":""},{"$f":"IF($C8=\"\",\"\",IF(OR($AS8=\"\",$CX8=\"b\"),0,$AS8*'Project Information'!$D$12))","v":""},{"$f":"IF($C8=\"\",\"\",IF(OR($BA8=\"\",$CX8=\"b\"),0,$BA8*'Project Information'!$D$12))","v":""},{"$f":"IF($C8=\"\",\"\",IF($CX8=\"b\",0,SUM($BO8,$BP8)))","v":""},{"$f":"IF($C8=\"\",\"\",IF($CX8=\"b\",0,SUM($BE8:$BH8)))","v":""},{"$f":"IF($C8=\"\",\"\",IF($CX8=\"b\",0,SUM($BN8,$BQ8,$BR8)))","v":""},{"$f":"IF($C8=\"\",\"\",IF($CX8=\"b\",0,SUM($BL8,$BO8,$BI8)))","v":""},{"$f":"IF($C8=\"\",\"\",IF($CX8=\"b\",0,SUM($BJ8,$BM8,$BP8)))","v":""},null,{"$f":"CBAT!$AB8","v":""},{"$f":"CBAT!$BZ8","v":""},{"$f":"SUM($BW8,$BX8)","v":0},null,{"$f":"IF($Q8=\"\",\"\",IF($CX8<>\"c\",0,ROUND($AT8,0)))","v":""},{"$f":"IF($AC8=\"\",\"\",IF($CX8<>\"c\",0,ROUND($BB8,0)))","v":""},{"$f":"SUM($CB8,$CA8)","v":0},{"$f":"IF($Q8=\"\",\"\",IF(OR($CX8<>\"c\",SUM($BY$8:$BY$107)=0),0,ROUND(BW8*MIN('Other Data'!$G$84,'Other Data'!$H$84*IF('Project Information'!$F$10=\"X\",('Project Information'!$L$42-'Project Information'!$L$39),'Project Information'!$L$42)/SUMPRODUCT($BY$8:$BY$107,--($CX$8:$CX$107=\"c\"))),0)))","v":""},{"$f":"IF($AC8=\"\",\"\",IF(OR($CX8<>\"c\",SUM($BY$8:$BY$107)=0),0,ROUND(BX8*MIN('Other Data'!$G$84,'Other Data'!$H$84*IF('Project Information'!$F$10=\"X\",('Project Information'!$L$42-'Project Information'!$L$39),'Project Information'!$L$42)/SUMPRODUCT($BY$8:$BY$107,--($CX$8:$CX$107=\"c\"))),0)))","v":""},{"$f":"SUM(CD8:CE8)","v":0},null,{"$f":"IF($AP8<>\"\",$AP8,\"\")","v":""},{"$f":"IF($AY8<>\"\",$AY8,\"\")","v":""},{"$f":"IF($J8=\"\",\"\",VLOOKUP($J8,'TRM Data'!$R$4:$S$168,2,FALSE))","v":""},{"$f":"IF($AQ8<>\"\",$AQ8,IF($CJ8<>\"\",$CJ8,\"\"))","v":""},{"$f":"IF(AND(CJ8<>\"\",N8<>\"\"),CJ8*N8,\"\")","v":""},{"$f":"IF(F8=\"Controls\",CL8,IF(CK8=\"\",\"\",CK8*AO8))","v":""},null,{"$f":"IF($CV8=0,\"\",CBAT!$DJ8)","v":""},null,null,{"$f":"IF(AND(F8=\"fixtures and controls\",OR(R8=0,AD8=0,OR(W8=0,Y8=0,AG8=0))),0,1)","v":1},{"$f":"IF(AND(F8=\"fixtures\",OR(R8=0,OR(W8=0,Y8=0))),0,1)","v":1},{"$f":"IF(N8=\"\",0,1)","v":0},{"$f":"IF(AND(F8=\"controls\",OR(AD8=0,AG8=0)),0,1)","v":1},{"$f":"IF(SUM(CR8:CU8)<4,0,1)","v":0},null,{"$f":"IF(OR($CV8=0,ISBLANK('Project Information'!$D$44)),\"\",IF(AND($CV8=1,$CO8<1,$G8=\"yes\"),\"a\",IF($CO8<1,\"b\",\"c\")))","v":""}]
[0,2,null,null,null,null,null,{"$f":"IF($C9=\"\",\"\",IF(COUNTIF('Project Information'!$J$9:BG$9,$C9)<>1,\"\",INDEX('Project Information'!$J$8:$BG$8,1,MATCH($C9,'Project Information'!$J$9:BG$9,0))))","v":""},null,null,{"$f":"LOOKUP(2,1/(COUNTIF($K$7:K8,$Q$8:$Q$108)=0),$Q$8:$Q$108)","v":{"$error":"#N/A"}},{"$f":"IF(OR('Project Information'!$D$32=\"\",C9=\"\"),\"\",'Project Information'!$D$32)","v":""},{"$f":"IF($C9=\"\",\"\",IF(COUNTIF('Project Information'!$J$9:$BG$9,$C9)=1,HLOOKUP(C9,'Project Information'!$J$9:$BG$10,2,FALSE),0))","v":""},null,null,null,null,null,null,null,{"$f":"IF(Q9<>\"\",IF('Project Information'!$D$33=\"Small Business\",\"I\",\"P\")&VLOOKUP($Q9,'TRM Data'!$C$5:$N$201,COLUMN('TRM Data'!$E$2)-COLUMN('TRM Data'!$C$2)+1,FALSE)&IF($L9=\"Summer\",\"S\",IF($L9=\"Winter\",\"W\",\"Y\")),\"\")","v":""},{"$f":"IF(OR($F9=\"Controls\",$F9=\"\"),\"\",VLOOKUP($Q9,'TRM Data'!$C$5:$N$201,COLUMN('TRM Data'!$F$2)-COLUMN('TRM Data'!$C$2)+1,FALSE))","v":""},null,{"$f":"IF($R9=0,\"\",VLOOKUP($Q9,'TRM Data'!$C$5:$N$201,COLUMN('TRM Data'!$G$2)-COLUMN('TRM Data'!$C$2)+1,FALSE)*$R9)","v":""},null,{"$f":"IF($R9=0,\"\",VLOOKUP($Q9,'TRM Data'!$C$5:$N$201,COLUMN('TRM Data'!$I$2)-COLUMN('TRM Data'!$C$2)+1,FALSE)*$R9)","v":""},{"$f":"IF($Q9=\"\",\"\",IF('Project Information'!$D$33=\"Small Business\",'Project Scope'!$CA9,IF('Project Information'!$D$33=\"Pay for Performance\",'Project Scope'!$CD9,0)))","v":""},null,null,null,{"$f":"IF(AC9<>\"\",\"P\"&VLOOKUP($AC9,'TRM Data'!$C$5:$N$201,COLUMN('TRM Data'!$E$2)-COLUMN('TRM Data'!$C$2)+1,FALSE)&IF($L9=\"Summer\",\"S\",IF($L9=\"Winter\",\"W\",\"Y\")),\"\")","v":""},{"$f":"IF($AD9=0,\"\",VLOOKUP($AC9,'TRM Data'!$C$5:$N$201,COLUMN('TRM Data'!$G$2)-COLUMN('TRM Data'!$C$2)+1,FALSE)*$AD9)","v":""},null,{"$f":"IF($AD9=0,\"\",VLOOKUP($AC9,'TRM Data'!$C$5:$N$201,COLUMN('TRM Data'!$I$2)-COLUMN('TRM Data'!$C$2)+1,FALSE)*$AD9)","v":""},{"$f":"IF($AC9=\"\",\"\",IF('Project Information'!$D$33=\"Small Business\",'Project Scope'!$CB9,IF('Project Information'!$D$33=\"Pay for Performance\",'Project Scope'!$CE9,0)))","v":""},null,"",null,{"$f":"IF(OR($C9=\"\",$F9=\"controls\"),\"\",IF($P9=\"\",\"\", $P9))","v":""},{"$f":"IF(OR($C9=\"\",$F9=\"controls\"),\"\",IF($Q9=\"\",\"\", $Q9))","v":""},{"$f":"IF(OR($C9=\"\"),\"\",IF($R9=\"\",0, $R9))","v":""},"",{"$f":"IF(OR($C9=\"\",$F9=\"controls\"),\"\",IF($W9<>\"\",$W9,0))","v":""},{"$f":"IF(OR($C9=\"\",$F9=\"controls\"),\"\",IF($Y9<>\"\",$Y9,0))","v":""},"",{"$f":"IF($Q9=\"\",\"\",IF(AND(ISNUMBER($BW9),ISNUMBER($AR9),$AR9>0),SUM($BL9,$BO9,$BI9)*'Other Data'!$H$83,0))","v":""},{"$f":"IF($Q9=\"\",\"\",IF(AND(ISNUMBER($BW9),ISNUMBER($AR9),$AR9>0),$BW9*'Other Data'!$G$84,0))","v":""},null,"","","",{"$f":"IF(OR($C9=\"\",$F9=\"fixtures\"),\"\",IF($AG9<>\"\",$AG9,0))","v":""},"",{"$f":"IF($AC9=\"\",\"\",IF(AND(ISNUMBER($BX9), ISNUMBER($AZ9),$AZ9>0),SUM($BJ9,$BM9,$BP9)*'Other Data'!$H$83,0))","v":""},{"$f":"IF($AC9=\"\",\"\",IF(AND(ISNUMBER($BX9), ISNUMBER($AZ9),$AZ9>0),$BX9*'Other Data'!$G$84,0))","v":""},null,{"$f":"IF($C9=\"\",\"\",SUM('Ancillary Costs'!$N$91:$N$105)*(SUM($AR9,$AZ9,SUM($AS9,$BA9)*'Project Information'!$D$12)))","v":""},{"$f":"IF($C9=\"\",\"\",SUMIFS('Ancillary Costs'!$N$72:$N$86,'Ancillary Costs'!$FL$72:$FL$86,\"*xx\"&'Project Scope'!$C9&\"xx*\")*(SUM($AR9,$AZ9,SUM($AS9,$BA9)*'Project Information'!$D$12)))","v":""},{"$f":"IFERROR(IF($C9=\"\",\"\",SUMIFS('Ancillary Costs'!$N$8:$N$67,'Ancillary Costs'!$FL$8:$FL$67,\"*xx\"&'Project Scope'!C9&\"xx*\",'Ancillary Costs'!$I$8:$I$67,'Project Scope'!$AN9)*'Project Scope'!$AO9),0)","v":""},{"$f":"IFERROR(IF($C9=\"\",\"\",SUMIFS('Ancillary Costs'!$N$8:$N$67,'Ancillary Costs'!$FL$8:$FL$67,\"*xx\"&'Project Scope'!C9&\"xx*\",'Ancillary Costs'!$I$8:$I$67,'Project Scope'!$AW9)*'Project Scope'!$AX9),0)","v":""},{"$f":"IF($C9=\"\",\"\",IF(SUM($AR9,$AZ9,SUM($AS9,$BA9)*'Project Information'!$D$12)=0,0,SUM($BG9,(SUM($BE9:$BF9))*((SUM($AR9,(IF(ISNUMBER($AS9),$AS9,0)*'Project Information'!$D$12)))/SUM($AR9,$AZ9,SUM($AS9,$BA9)*'Project Information'!$D$12)))))","v":""},{"$f":"IF($C9=\"\",\"\",IF(SUM($AR9,$AZ9,SUM($AS9,$BA9)*'Project Information'!$D$12)=0,0,SUM($BH9,(SUM($BE9:$BF9))*((SUM($AZ9,(IF(ISNUMBER($BA9),$BA9,0)*'Project Information'!$D$12)))/SUM($AR9,$AZ9,SUM($AS9,$BA9)*'Project Information'!$D$12)))))","v":""},null,"","","",{"$f":"IF($C9=\"\",\"\",IF(OR($AS9=\"\",$CX9=\"b\"),0,$AS9*'Project Information'!$D$12))","v":""},{"$f":"IF($C9=\"\",\"\",IF(OR($BA9=\"\",$CX9=\"b\"),0,$BA9*'Project Information'!$D$12))","v":""},"","","","","",null,{"$f":"CBAT!$AB9","v":""},{"$f":"CBAT!$BZ9","v":""},{"$f":"SUM($BW9,$BX9)","v":0},null,{"$f":"IF($Q9=\"\",\"\",IF($CX9<>\"c\",0,ROUND($AT9,0)))","v":""},{"$f":"IF($AC9=\"\",\"\",IF($CX9<>\"c\",0,ROUND($BB9,0)))","v":""},{"$f":"SUM($CB9,$CA9)","v":0},{"$f":"IF($Q9=\"\",\"\",IF(OR($CX9<>\"c\",SUM($BY$8:$BY$107)=0),0,ROUND(BW9*MIN('Other Data'!$G$84,'Other Data'!$H$84*IF('Project Information'!$F$10=\"X\",('Project Information'!$L$42-'Project Information'!$L$39),'Project Information'!$L$42)/SUMPRODUCT($BY$8:$BY$107,--($CX$8:$CX$107=\"c\"))),0)))","v":""},{"$f":"IF($AC9=\"\",\"\",IF(OR($CX9<>\"c\",SUM($BY$8:$BY$107)=0),0,ROUND(BX9*MIN('Other Data'!$G$84,'Other Data'!$H$84*IF('Project Information'!$F$10=\"X\",('Project Information'!$L$42-'Project Information'!$L$39),'Project Information'!$L$42)/SUMPRODUCT($BY$8:$BY$107,--($CX$8:$CX$107=\"c\"))),0)))","v":""},{"$f":"SUM(CD9:CE9)","v":0},null,"","",{"$f":"IF($J9=\"\",\"\",VLOOKUP($J9,'TRM Data'!$R$4:$S$168,2,FALSE))","v":""},{"$f":"IF($AQ9<>\"\",$AQ9,IF($CJ9<>\"\",$CJ9,\"\"))","v":""},{"$f":"IF(AND(CJ9<>\"\",N9<>\"\"),CJ9*N9,\"\")","v":""},{"$f":"IF(F9=\"Controls\",CL9,IF(CK9=\"\",\"\",CK9*AO9))","v":""},null,{"$f":"IF($CV9=0,\"\",CBAT!$DJ9)","v":""},null,null,{"$f":"IF(AND(F9=\"fixtures and controls\",OR(R9=0,AD9=0,OR(W9=0,Y9=0,AG9=0))),0,1)","v":1},{"$f":"IF(AND(F9=\"fixtures\",OR(R9=0,OR(W9=0,Y9=0))),0,1)","v":1},{"$f":"IF(N9=\"\",0,1)","v":0},{"$f":"IF(AND(F9=\"controls\",OR(AD9=0,AG9=0)),0,1)","v":1},{"$f":"IF(SUM(CR9:CU9)<4,0,1)","v":0},null,{"$f":"IF(OR($CV9=0,ISBLANK('Project Information'!$D$44)),\"\",IF(AND($CV9=1,$CO9<1,$G9=\"yes\"),\"a\",IF($CO9<1,\"b\",\"c\")))","v":""}]
[0,3,null,null,null,null,null,{"$f":"IF($C10=\"\",\"\",IF(COUNTIF('Project Information'!$J$9:BG$9,$C10)<>1,\"\",INDEX('Project Information'!$J$8:$BG$8,1,MATCH($C10,'Project Information'!$J$9:BG$9,0))))","v":""},null,null,{"$f":"LOOKUP(2,1/(COUNTIF($K$7:K9,$Q$8:$Q$108)=0),$Q$8:$Q$108)","v":{"$error":"#N/A"}},{"$f":"IF(OR('Project Information'!$D$32=\"\",C10=\"\"),\"\",'Project Information'!$D$32)","v":""},{"$f":"IF($C10=\"\",\"\",IF(COUNTIF('Project Information'!$J$9:$BG$9,$C10)=1,HLOOKUP(C10,'Project Information'!$J$9:$BG$10,2,FALSE),0))","v":""},null,null,null,null,null,null,null,{"$f":"IF(Q10<>\"\",IF('Project Information'!$D$33=\"Small Business\",\"I\",\"P\")&VLOOKUP($Q10,'TRM Data'!$C$5:$N$201,COLUMN('TRM Data'!$E$2)-COLUMN('TRM Data'!$C$2)+1,FALSE)&IF($L10=\"Summer\",\"S\",IF($L10=\"Winter\",\"W\",\"Y\")),\"\")","v":""},{"$f":"IF(OR($F10=\"Controls\",$F10=\"\"),\"\",VLOOKUP($Q10,'TRM Data'!$C$5:$N$201,COLUMN('TRM Data'!$F$2)-COLUMN('TRM Data'!$C$2)+1,FALSE))","v":""},null,{"$f":"IF($R10=0,\"\",VLOOKUP($Q10,'TRM Data'!$C$5:$N$201,COLUMN('TRM Data'!$G$2)-COLUMN('TRM Data'!$C$2)+1,FALSE)*$R10)","v":""},null,{"$f":"IF($R10=0,\"\",VLOOKUP($Q10,'TRM Data'!$C$5:$N$201,COLUMN('TRM Data'!$I$2)-COLUMN('TRM Data'!$C$2)+1,FALSE)*$R10)","v":""},{"$f":"IF($Q10=\"\",\"\",IF('Project Information'!$D$33=\"Small Business\",'Project Scope'!$CA10,IF('Project Information'!$D$33=\"Pay for Performance\",'Project Scope'!$CD10,0)))","v":""},null,null,null,{"$f":"IF(AC10<>\"\",\"P\"&VLOOKUP($AC10,'TRM Data'!$C$5:$N$201,COLUMN('TRM Data'!$E$2)-COLUMN('TRM Data'!$C$2)+1,FALSE)&IF($L10=\"Summer\",\"S\",IF($L10=\"Winter\",\"W\",\"Y\")),\"\")","v":""},{"$f":"IF($AD10=0,\"\",VLOOKUP($AC10,'TRM Data'!$C$5:$N$201,COLUMN('TRM Data'!$G$2)-COLUMN('TRM Data'!$C$2)+1,FALSE)*$AD10)","v":""},null,{"$f":"IF($AD10=0,\"\",VLOOKUP($AC10,'TRM Data'!$C$5:$N$201,COLUMN('TRM Data'!$I$2)-COLUMN('TRM Data'!$C$2)+1,FALSE)*$AD10)","v":""},{"$f":"IF($AC10=\"\",\"\",IF('Project Information'!$D$33=\"Small Business\",'Project Scope'!$CB10,IF('Project Information'!$D$33=\"Pay for Performance\",'Project Scope'!$CE10,0)))","v":""},null,"",null,"","","","","","","",{"$f":"IF($Q10=\"\",\"\",IF(AND(ISNUMBER($BW10),ISNUMBER($AR10),$AR10>0),SUM($BL10,$BO10,$BI10)*'Other Data'!$H$83,0))","v":""},{"$f":"IF($Q10=\"\",\"\",IF(AND(ISNUMBER($BW10),ISNUMBER($AR10),$AR10>0),$BW10*'Other Data'!$G$84,0))","v":""},null,"","","","","",{"$f":"IF($AC10=\"\",\"\",IF(AND(ISNUMBER($BX10), ISNUMBER($AZ10),$AZ10>0),SUM($BJ10,$BM10,$BP10)*'Other Data'!$H$83,0))","v":""},{"$f":"IF($AC10=\"\",\"\",IF(AND(ISNUMBER($BX10), ISNUMBER($AZ10),$AZ10>0),$BX10*'Other Data'!$G$84,0))","v":""},null,{"$f":"IF($C10=\"\",\"\",SUM('Ancillary Costs'!$N$91:$N$105)*(SUM($AR10,$AZ10,SUM($AS10,$BA10)*'Project Information'!$D$12)))","v":""},{"$f":"IF($C10=\"\",\"\",SUMIFS('Ancillary Costs'!$N$72:$N$86,'Ancillary Costs'!$FL$72:$FL$86,\"*xx\"&'Project Scope'!$C10&\"xx*\")*(SUM($AR10,$AZ10,SUM($AS10,$BA10)*'Project Information'!$D$12)))","v":""},{"$f":"IFERROR(IF($C10=\"\",\"\",SUMIFS('Ancillary Costs'!$N$8:$N$67,'Ancillary Costs'!$FL$8:$FL$67,\"*xx\"&'Project Scope'!C10&\"xx*\",'Ancillary Costs'!$I$8:$I$67,'Project Scope'!$AN10)*'Project Scope'!$AO10),0)","v":""},{"$f":"IFERROR(IF($C10=\"\",\"\",SUMIFS('Ancillary Costs'!$N$8:$N$67,'Ancillary Costs'!$FL$8:$FL$67,\"*xx\"&'Project Scope'!C10&\"xx*\",'Ancillary Costs'!$I$8:$I$67,'Project Scope'!$AW10)*'Project Scope'!$AX10),0)","v":""},{"$f":"IF($C10=\"\",\"\",IF(SUM($AR10,$AZ10,SUM($AS10,$BA10)*'Project Information'!$D$12)=0,0,SUM($BG10,(SUM($BE10:$BF10))*((SUM($AR10,(IF(ISNUMBER($AS10),$AS10,0)*'Project Information'!$D$12)))/SUM($AR10,$AZ10,SUM($AS10,$BA10)*'Project Information'!$D$12)))))","v":""},{"$f":"IF($C10=\"\",\"\",IF(SUM($AR10,$AZ10,SUM($AS10,$BA10)*'Project Information'!$D$12)=0,0,SUM($BH10,(SUM($BE10:$BF10))*((SUM($AZ10,(IF(ISNUMBER($BA10),$BA10,0)*'Project Information'!$D$12)))/SUM($AR10,$AZ10,SUM($AS10,$BA10)*'Project Information'!$D$12)))))","v":""},null,"","","",{"$f":"IF($C10=\"\",\"\",IF(OR($AS10=\"\",$CX10=\"b\"),0,$AS10*'Project Information'!$D$12))","v":""},{"$f":"IF($C10=\"\",\"\",IF(OR($BA10=\"\",$CX10=\"b\"),0,$BA10*'Project Information'!$D$12))","v":""},"","","","","",null,{"$f":"CBAT!$AB10","v":""},{"$f":"CBAT!$BZ10","v":""},0,null,"","",0,{"$f":"IF($Q10=\"\",\"\",IF(OR($CX10<>\"c\",SUM($BY$8:$BY$107)=0),0,ROUND(BW10*MIN('Other Data'!$G$84,'Other Data'!$H$84*IF('Project Information'!$F$10=\"X\",('Project Information'!$L$42-'Project Information'!$L$39),'Project Information'!$L$42)/SUMPRODUCT($BY$8:$BY$107,--($CX$8:$CX$107=\"c\"))),0)))","v":""},{"$f":"IF($AC10=\"\",\"\",IF(OR($CX10<>\"c\",SUM($BY$8:$BY$107)=0),0,ROUND(BX10*MIN('Other Data'!$G$84,'Other Data'!$H$84*IF('Project Information'!$F$10=\"X\",('Project Information'!$L$42-'Project Information'!$L$39),'Project Information'!$L$42)/SUMPRODUCT($BY$8:$BY$107,--($CX$8:$CX$107=\"c\"))),0)))","v":""},0,null,"","",{"$f":"IF($J10=\"\",\"\",VLOOKUP($J10,'TRM Data'!$R$4:$S$168,2,FALSE))","v":""},"","","",null,{"$f":"IF($CV10=0,\"\",CBAT!$DJ10)","v":""},null,null,1,1,0,1,0,null,{"$f":"IF(OR($CV10=0,ISBLANK('Project Information'!$D$44)),\"\",IF(AND($CV10=1,$CO10<1,$G10=\"yes\"),\"a\",IF($CO10<1,\"b\",\"c\")))","v":""}]
[0,4,null,null,null,null,null,{"$f":"IF($C11=\"\",\"\",IF(COUNTIF('Project Information'!$J$9:BG$9,$C11)<>1,\"\",INDEX('Project Information'!$J$8:$BG$8,1,MATCH($C11,'Project Information'!$J$9:BG$9,0))))","v":""},null,null,{"$f":"LOOKUP(2,1/(COUNTIF($K$7:K10,$Q$8:$Q$108)=0),$Q$8:$Q$108)","v":{"$error":"#N/A"}},{"$f":"IF(OR('Project Information'!$D$32=\"\",C11=\"\"),\"\",'Project Information'!$D$32)","v":""},{"$f":"IF($C11=\"\",\"\",IF(COUNTIF('Project Information'!$J$9:$BG$9,$C11)=1,HLOOKUP(C11,'Project Information'!$J$9:$BG$10,2,FALSE),0))","v":""},null,null,null,null,null,null,null,{"$f":"IF(Q11<>\"\",IF('Project Information'!$D$33=\"Small Business\",\"I\",\"P\")&VLOOKUP($Q11,'TRM Data'!$C$5:$N$201,COLUMN('TRM Data'!$E$2)-COLUMN('TRM Data'!$C$2)+1,FALSE)&IF($L11=\"Summer\",\"S\",IF($L11=\"Winter\",\"W\",\"Y\")),\"\")","v":""},{"$f":"IF(OR($F11=\"Controls\",$F11=\"\"),\"\",VLOOKUP($Q11,'TRM Data'!$C$5:$N$201,COLUMN('TRM Data'!$F$2)-COLUMN('TRM Data'!$C$2)+1,FALSE))","v":""},null,{"$f":"IF($R11=0,\"\",VLOOKUP($Q11,'TRM Data'!$C$5:$N$201,COLUMN('TRM Data'!$G$2)-COLUMN('TRM Data'!$C$2)+1,FALSE)*$R11)","v":""},null,{"$f":"IF($R11=0,\"\",VLOOKUP($Q11,'TRM Data'!$C$5:$N$201,COLUMN('TRM Data'!$I$2)-COLUMN('TRM Data'!$C$2)+1,FALSE)*$R11)","v":""},{"$f":"IF($Q11=\"\",\"\",IF('Project Information'!$D$33=\"Small Business\",'Project Scope'!$CA11,IF('Project Information'!$D$33=\"Pay for Performance\",'Project Scope'!$CD11,0)))","v":""},null,null,null,{"$f":"IF(AC11<>\"\",\"P\"&VLOOKUP($AC11,'TRM Data'!$C$5:$N$201,COLUMN('TRM Data'!$E$2)-COLUMN('TRM Data'!$C$2)+1,FALSE)&IF($L11=\"Summer\",\"S\",IF($L11=\"Winter\",\"W\",\"Y\")),\"\")","v":""},{"$f":"IF($AD11=0,\"\",VLOOKUP($AC11,'TRM Data'!$C$5:$N$201,COLUMN('TRM Data'!$G$2)-COLUMN('TRM Data'!$C$2)+1,FALSE)*$AD11)","v":""},null,{"$f":"IF($AD11=0,\"\",VLOOKUP($AC11,'TRM Data'!$C$5:$N$201,COLUMN('TRM Data'!$I$2)-COLUMN('TRM Data'!$C$2)+1,FALSE)*$AD11)","v":""},{"$f":"IF($AC11=\"\",\"\",IF('Project Information'!$D$33=\"Small Business\",'Project Scope'!$CB11,IF('Project Information'!$D$33=\"Pay for Performance\",'Project Scope'!$CE11,0)))","v":""},null,"",null,"","","","","","","",{"$f":"IF($Q11=\"\",\"\",IF(AND(ISNUMBER($BW11),ISNUMBER($AR11),$AR11>0),SUM($BL11,$BO11,$BI11)*'Other Data'!$H$83,0))","v":""},{"$f":"IF($Q11=\"\",\"\",IF(AND(ISNUMBER($BW11),ISNUMBER($AR11),$AR11>0),$BW11*'Other Data'!$G$84,0))","v":""},null,"","","","","",{"$f":"IF($AC11=\"\",\"\",IF(AND(ISNUMBER($BX11), ISNUMBER($AZ11),$AZ11>0),SUM($BJ11,$BM11,$BP11)*'Other Data'!$H$83,0))","v":""},{"$f":"IF($AC11=\"\",\"\",IF(AND(ISNUMBER($BX11), ISNUMBER($AZ11),$AZ11>0),$BX11*'Other Data'!$G$84,0))","v":""},null,{"$f":"IF($C11=\"\",\"\",SUM('Ancillary Costs'!$N$91:$N$105)*(SUM($AR11,$AZ11,SUM($AS11,$BA11)*'Project Information'!$D$12)))","v":""},{"$f":"IF($C11=\"\",\"\",SUMIFS('Ancillary Costs'!$N$72:$N$86,'Ancillary Costs'!$FL$72:$FL$86,\"*xx\"&'Project Scope'!$C11&\"xx*\")*(SUM($AR11,$AZ11,SUM($AS11,$BA11)*'Project Information'!$D$12)))","v":""},{"$f":"IFERROR(IF($C11=\"\",\"\",SUMIFS('Ancillary Costs'!$N$8:$N$67,'Ancillary Costs'!$FL$8:$FL$67,\"*xx\"&'Project Scope'!C11&\"xx*\",'Ancillary Costs'!$I$8:$I$67,'Project Scope'!$AN11)*'Project Scope'!$AO11),0)","v":""},{"$f":"IFERROR(IF($C11=\"\",\"\",SUMIFS('Ancillary Costs'!$N$8:$N$67,'Ancillary Costs'!$FL$8:$FL$67,\"*xx\"&'Project Scope'!C11&\"xx*\",'Ancillary Costs'!$I$8:$I$67,'Project Scope'!$AW11)*'Project Scope'!$AX11),0)","v":""},{"$f":"IF($C11=\"\",\"\",IF(SUM($AR11,$AZ11,SUM($AS11,$BA11)*'Project Information'!$D$12)=0,0,SUM($BG11,(SUM($BE11:$BF11))*((SUM($AR11,(IF(ISNUMBER($AS11),$AS11,0)*'Project Information'!$D$12)))/SUM($AR11,$AZ11,SUM($AS11,$BA11)*'Project Information'!$D$12)))))","v":""},{"$f":"IF($C11=\"\",\"\",IF(SUM($AR11,$AZ11,SUM($AS11,$BA11)*'Project Information'!$D$12)=0,0,SUM($BH11,(SUM($BE11:$BF11))*((SUM($AZ11,(IF(ISNUMBER($BA11),$BA11,0)*'Project Information'!$D$12)))/SUM($AR11,$AZ11,SUM($AS11,$BA11)*'Project Information'!$D$12)))))","v":""},null,"","","",{"$f":"IF($C11=\"\",\"\",IF(OR($AS11=\"\",$CX11=\"b\"),0,$AS11*'Project Information'!$D$12))","v":""},{"$f":"IF($C11=\"\",\"\",IF(OR($BA11=\"\",$CX11=\"b\"),0,$BA11*'Project Information'!$D$12))","v":""},"","","","","",null,{"$f":"CBAT!$AB11","v":""},{"$f":"CBAT!$BZ11","v":""},0,null,"","",0,{"$f":"IF($Q11=\"\",\"\",IF(OR($CX11<>\"c\",SUM($BY$8:$BY$107)=0),0,ROUND(BW11*MIN('Other Data'!$G$84,'Other Data'!$H$84*IF('Project Information'!$F$10=\"X\",('Project Information'!$L$42-'Project Information'!$L$39),'Project Information'!$L$42)/SUMPRODUCT($BY$8:$BY$107,--($CX$8:$CX$107=\"c\"))),0)))","v":""},{"$f":"IF($AC11=\"\",\"\",IF(OR($CX11<>\"c\",SUM($BY$8:$BY$107)=0),0,ROUND(BX11*MIN('Other Data'!$G$84,'Other Data'!$H$84*IF('Project Information'!$F$10=\"X\",('Project Information'!$L$42-'Project Information'!$L$39),'Project Information'!$L$42)/SUMPRODUCT($BY$8:$BY$107,--($CX$8:$CX$107=\"c\"))),0)))","v":""},0,null,"","",{"$f":"IF($J11=\"\",\"\",VLOOKUP($J11,'TRM Data'!$R$4:$S$168,2,FALSE))","v":""},"","","",null,{"$f":"IF($CV11=0,\"\",CBAT!$DJ11)","v":""},null,null,1,1,0,1,0,null,{"$f":"IF(OR($CV11=0,ISBLANK('Project Information'!$D$44)),\"\",IF(AND($CV11=1,$CO11<1,$G11=\"yes\"),\"a\",IF($CO11<1,\"b\",\"c\")))","v":""}]
[0,5,null,null,null,null,null,{"$f":"IF($C12=\"\",\"\",IF(COUNTIF('Project Information'!$J$9:BG$9,$C12)<>1,\"\",INDEX('Project Information'!$J$8:$BG$8,1,MATCH($C12,'Project Information'!$J$9:BG$9,0))))","v":""},null,null,{"$f":"LOOKUP(2,1/(COUNTIF($K$7:K11,$Q$8:$Q$108)=0),$Q$8:$Q$108)","v":{"$error":"#N/A"}},{"$f":"IF(OR('Project Information'!$D$32=\"\",C12=\"\"),\"\",'Project Information'!$D$32)","v":""},{"$f":"IF($C12=\"\",\"\",IF(COUNTIF('Project Information'!$J$9:$BG$9,$C12)=1,HLOOKUP(C12,'Project Information'!$J$9:$BG$10,2,FALSE),0))","v":""},null,null,null,null,null,null,null,{"$f":"IF(Q12<>\"\",IF('Project Information'!$D$33=\"Small Business\",\"I\",\"P\")&VLOOKUP($Q12,'TRM Data'!$C$5:$N$201,COLUMN('TRM Data'!$E$2)-COLUMN('TRM Data'!$C$2)+1,FALSE)&IF($L12=\"Summer\",\"S\",IF($L12=\"Winter\",\"W\",\"Y\")),\"\")","v":""},{"$f":"IF(OR($F12=\"Controls\",$F12=\"\"),\"\",VLOOKUP($Q12,'TRM Data'!$C$5:$N$201,COLUMN('TRM Data'!$F$2)-COLUMN('TRM Data'!$C$2)+1,FALSE))","v":""},null,{"$f":"IF($R12=0,\"\",VLOOKUP($Q12,'TRM Data'!$C$5:$N$201,COLUMN('TRM Data'!$G$2)-COLUMN('TRM Data'!$C$2)+1,FALSE)*$R12)","v":""},null,{"$f":"IF($R12=0,\"\",VLOOKUP($Q12,'TRM Data'!$C$5:$N$201,COLUMN('TRM Data'!$I$2)-COLUMN('TRM Data'!$C$2)+1,FALSE)*$R12)","v":""},{"$f":"IF($Q12=\"\",\"\",IF('Project Information'!$D$33=\"Small Business\",'Project Scope'!$CA12,IF('Project Information'!$D$33=\"Pay for Performance\",'Project Scope'!$CD12,0)))","v":""},null,null,null,{"$f":"IF(AC12<>\"\",\"P\"&VLOOKUP($AC12,'TRM Data'!$C$5:$N$201,COLUMN('TRM Data'!$E$2)-COLUMN('TRM Data'!$C$2)+1,FALSE)&IF($L12=\"Summer\",\"S\",IF($L12=\"Winter\",\"W\",\"Y\")),\"\")","v":""},{"$f":"IF($AD12=0,\"\",VLOOKUP($AC12,'TRM Data'!$C$5:$N$201,COLUMN('TRM Data'!$G$2)-COLUMN('TRM Data'!$C$2)+1,FALSE)*$AD12)","v":""},null,{"$f":"IF($AD12=0,\"\",VLOOKUP($AC12,'TRM Data'!$C$5:$N$201,COLUMN('TRM Data'!$I$2)-COLUMN('TRM Data'!$C$2)+1,FALSE)*$AD12)","v":""},{"$f":"IF($AC12=\"\",\"\",IF('Project Information'!$D$33=\"Small Business\",'Project Scope'!$CB12,IF('Project Information'!$D$33=\"Pay for Performance\",'Project Scope'!$CE12,0)))","v":""},null,"",null,"","","","","","","",{"$f":"IF($Q12=\"\",\"\",IF(AND(ISNUMBER($BW12),ISNUMBER($AR12),$AR12>0),SUM($BL12,$BO12,$BI12)*'Other Data'!$H$83,0))","v":""},{"$f":"IF($Q12=\"\",\"\",IF(AND(ISNUMBER($BW12),ISNUMBER($AR12),$AR12>0),$BW12*'Other Data'!$G$84,0))","v":""},null,"","","","","",{"$f":"IF($AC12=\"\",\"\",IF(AND(ISNUMBER($BX12), ISNUMBER($AZ12),$AZ12>0),SUM($BJ12,$BM12,$BP12)*'Other Data'!$H$83,0))","v":""},{"$f":"IF($AC12=\"\",\"\",IF(AND(ISNUMBER($BX12), ISNUMBER($AZ12),$AZ12>0),$BX12*'Other Data'!$G$84,0))","v":""},null,{"$f":"IF($C12=\"\",\"\",SUM('Ancillary Costs'!$N$91:$N$105)*(SUM($AR12,$AZ12,SUM($AS12,$BA12)*'Project Information'!$D$12)))","v":""},{"$f":"IF($C12=\"\",\"\",SUMIFS('Ancillary Costs'!$N$72:$N$86,'Ancillary Costs'!$FL$72:$FL$86,\"*xx\"&'Project Scope'!$C12&\"xx*\")*(SUM($AR12,$AZ12,SUM($AS12,$BA12)*'Project Information'!$D$12)))","v":""},{"$f":"IFERROR(IF($C12=\"\",\"\",SUMIFS('Ancillary Costs'!$N$8:$N$67,'Ancillary Costs'!$FL$8:$FL$67,\"*xx\"&'Project Scope'!C12&\"xx*\",'Ancillary Costs'!$I$8:$I$67,'Project Scope'!$AN12)*'Project Scope'!$AO12),0)","v":""},{"$f":"IFERROR(IF($C12=\"\",\"\",SUMIFS('Ancillary Costs'!$N$8:$N$67,'Ancillary Costs'!$FL$8:$FL$67,\"*xx\"&'Project Scope'!C12&\"xx*\",'Ancillary Costs'!$I$8:$I$67,'Project Scope'!$AW12)*'Project Scope'!$AX12),0)","v":""},{"$f":"IF($C12=\"\",\"\",IF(SUM($AR12,$AZ12,SUM($AS12,$BA12)*'Project Information'!$D$12)=0,0,SUM($BG12,(SUM($BE12:$BF12))*((SUM($AR12,(IF(ISNUMBER($AS12),$AS12,0)*'Project Information'!$D$12)))/SUM($AR12,$AZ12,SUM($AS12,$BA12)*'Project Information'!$D$12)))))","v":""},{"$f":"IF($C12=\"\",\"\",IF(SUM($AR12,$AZ12,SUM($AS12,$BA12)*'Project Information'!$D$12)=0,0,SUM($BH12,(SUM($BE12:$BF12))*((SUM($AZ12,(IF(ISNUMBER($BA12),$BA12,0)*'Project Information'!$D$12)))/SUM($AR12,$AZ12,SUM($AS12,$BA12)*'Project Information'!$D$12)))))","v":""},null,"","","",{"$f":"IF($C12=\"\",\"\",IF(OR($AS12=\"\",$CX12=\"b\"),0,$AS12*'Project Information'!$D$12))","v":""},{"$f":"IF($C12=\"\",\"\",IF(OR($BA12=\"\",$CX12=\"b\"),0,$BA12*'Project Information'!$D$12))","v":""},"","","","","",null,{"$f":"CBAT!$AB12","v":""},{"$f":"CBAT!$BZ12","v":""},0,null,"","",0,{"$f":"IF($Q12=\"\",\"\",IF(OR($CX12<>\"c\",SUM($BY$8:$BY$107)=0),0,ROUND(BW12*MIN('Other Data'!$G$84,'Other Data'!$H$84*IF('Project Information'!$F$10=\"X\",('Project Information'!$L$42-'Project Information'!$L$39),'Project Information'!$L$42)/SUMPRODUCT($BY$8:$BY$107,--($CX$8:$CX$107=\"c\"))),0)))","v":""},{"$f":"IF($AC12=\"\",\"\",IF(OR($CX12<>\"c\",SUM($BY$8:$BY$107)=0),0,ROUND(BX12*MIN('Other Data'!$G$84,'Other Data'!$H$84*IF('Project Information'!$F$10=\"X\",('Project Information'!$L$42-'Project Information'!$L$39),'Project Information'!$L$42)/SUMPRODUCT($BY$8:$BY$107,--($CX$8:$CX$107=\"c\"))),0)))","v":""},0,null,"","",{"$f":"IF($J12=\"\",\"\",VLOOKUP($J12,'TRM Data'!$R$4:$S$168,2,FALSE))","v":""},"","","",null,{"$f":"IF($CV12=0,\"\",CBAT!$DJ12)","v":""},null,null,1,1,0,1,0,null,{"$f":"IF(OR($CV12=0,ISBLANK('Project Information'!$D$44)),\"\",IF(AND($CV12=1,$CO12<1,$G12=\"yes\"),\"a\",IF($CO12<1,\"b\",\"c\")))","v":""}]
[0,6,null,null,null,null,null,{"$f":"IF($C13=\"\",\"\",IF(COUNTIF('Project Information'!$J$9:BG$9,$C13)<>1,\"\",INDEX('Project Information'!$J$8:$BG$8,1,MATCH($C13,'Project Information'!$J$9:BG$9,0))))","v":""},null,null,{"$f":"LOOKUP(2,1/(COUNTIF($K$7:K12,$Q$8:$Q$108)=0),$Q$8:$Q$108)","v":{"$error":"#N/A"}},{"$f":"IF(OR('Project Information'!$D$32=\"\",C13=\"\"),\"\",'Project Information'!$D$32)","v":""},{"$f":"IF($C13=\"\",\"\",IF(COUNTIF('Project Information'!$J$9:$BG$9,$C13)=1,HLOOKUP(C13,'Project Information'!$J$9:$BG$10,2,FALSE),0))","v":""},null,null,null,null,null,null,null,{"$f":"IF(Q13<>\"\",IF('Project Information'!$D$33=\"Small Business\",\"I\",\"P\")&VLOOKUP($Q13,'TRM Data'!$C$5:$N$201,COLUMN('TRM Data'!$E$2)-COLUMN('TRM Data'!$C$2)+1,FALSE)&IF($L13=\"Summer\",\"S\",IF($L13=\"Winter\",\"W\",\"Y\")),\"\")","v":""},{"$f":"IF(OR($F13=\"Controls\",$F13=\"\"),\"\",VLOOKUP($Q13,'TRM Data'!$C$5:$N$201,COLUMN('TRM Data'!$F$2)-COLUMN('TRM Data'!$C$2)+1,FALSE))","v":""},null,{"$f":"IF($R13=0,\"\",VLOOKUP($Q13,'TRM Data'!$C$5:$N$201,COLUMN('TRM Data'!$G$2)-COLUMN('TRM Data'!$C$2)+1,FALSE)*$R13)","v":""},null,{"$f":"IF($R13=0,\"\",VLOOKUP($Q13,'TRM Data'!$C$5:$N$201,COLUMN('TRM Data'!$I$2)-COLUMN('TRM Data'!$C$2)+1,FALSE)*$R13)","v":""},{"$f":"IF($Q13=\"\",\"\",IF('Project Information'!$D$33=\"Small Business\",'Project Scope'!$CA13,IF('Project Information'!$D$33=\"Pay for Performance\",'Project Scope'!$CD13,0)))","v":""},null,null,null,{"$f":"IF(AC13<>\"\",\"P\"&VLOOKUP($AC13,'TRM Data'!$C$5:$N$201,COLUMN('TRM Data'!$E$2)-COLUMN('TRM Data'!$C$2)+1,FALSE)&IF($L13=\"Summer\",\"S\",IF($L13=\"Winter\",\"W\",\"Y\")),\"\")","v":""},{"$f":"IF($AD13=0,\"\",VLOOKUP($AC13,'TRM Data'!$C$5:$N$201,COLUMN('TRM Data'!$G$2)-COLUMN('TRM Data'!$C$2)+1,FALSE)*$AD13)","v":""},null,{"$f":"IF($AD13=0,\"\",VLOOKUP($AC13,'TRM Data'!$C$5:$N$201,COLUMN('TRM Data'!$I$2)-COLUMN('TRM Data'!$C$2)+1,FALSE)*$AD13)","v":""},{"$f":"IF($AC13=\"\",\"\",IF('Project Information'!$D$33=\"Small Business\",'Project Scope'!$CB13,IF('Project Information'!$D$33=\"Pay for Performance\",'Project Scope'!$CE13,0)))","v":""},null,"",null,"","","","","","","",{"$f":"IF($Q13=\"\",\"\",IF(AND(ISNUMBER($BW13),ISNUMBER($AR13),$AR13>0),SUM($BL13,$BO13,$BI13)*'Other Data'!$H$83,0))","v":""},{"$f":"IF($Q13=\"\",\"\",IF(AND(ISNUMBER($BW13),ISNUMBER($AR13),$AR13>0),$BW13*'Other Data'!$G$84,0))","v":""},null,"","","","","",{"$f":"IF($AC13=\"\",\"\",IF(AND(ISNUMBER($BX13), ISNUMBER($AZ13),$AZ13>0),SUM($BJ13,$BM13,$BP13)*'Other Data'!$H$83,0))","v":""},{"$f":"IF($AC13=\"\",\"\",IF(AND(ISNUMBER($BX13), ISNUMBER($AZ13),$AZ13>0),$BX13*'Other Data'!$G$84,0))","v":""},null,{"$f":"IF($C13=\"\",\"\",SUM('Ancillary Costs'!$N$91:$N$105)*(SUM($AR13,$AZ13,SUM($AS13,$BA13)*'Project Information'!$D$12)))","v":""},{"$f":"IF($C13=\"\",\"\",SUMIFS('Ancillary Costs'!$N$72:$N$86,'Ancillary Costs'!$FL$72:$FL$86,\"*xx\"&'Project Scope'!$C13&\"xx*\")*(SUM($AR13,$AZ13,SUM($AS13,$BA13)*'Project Information'!$D$12)))","v":""},{"$f":"IFERROR(IF($C13=\"\",\"\",SUMIFS('Ancillary Costs'!$N$8:$N$67,'Ancillary Costs'!$FL$8:$FL$67,\"*xx\"&'Project Scope'!C13&\"xx*\",'Ancillary Costs'!$I$8:$I$67,'Project Scope'!$AN13)*'Project Scope'!$AO13),0)","v":""},{"$f":"IFERROR(IF($C13=\"\",\"\",SUMIFS('Ancillary Costs'!$N$8:$N$67,'Ancillary Costs'!$FL$8:$FL$67,\"*xx\"&'Project Scope'!C13&\"xx*\",'Ancillary Costs'!$I$8:$I$67,'Project Scope'!$AW13)*'Project Scope'!$AX13),0)","v":""},{"$f":"IF($C13=\"\",\"\",IF(SUM($AR13,$AZ13,SUM($AS13,$BA13)*'Project Information'!$D$12)=0,0,SUM($BG13,(SUM($BE13:$BF13))*((SUM($AR13,(IF(ISNUMBER($AS13),$AS13,0)*'Project Information'!$D$12)))/SUM($AR13,$AZ13,SUM($AS13,$BA13)*'Project Information'!$D$12)))))","v":""},{"$f":"IF($C13=\"\",\"\",IF(SUM($AR13,$AZ13,SUM($AS13,$BA13)*'Project Information'!$D$12)=0,0,SUM($BH13,(SUM($BE13:$BF13))*((SUM($AZ13,(IF(ISNUMBER($BA13),$BA13,0)*'Project Information'!$D$12)))/SUM($AR13,$AZ13,SUM($AS13,$BA13)*'Project Information'!$D$12)))))","v":""},null,"","","",{"$f":"IF($C13=\"\",\"\",IF(OR($AS13=\"\",$CX13=\"b\"),0,$AS13*'Project Information'!$D$12))","v":""},{"$f":"IF($C13=\"\",\"\",IF(OR($BA13=\"\",$CX13=\"b\"),0,$BA13*'Project Information'!$D$12))","v":""},"","","","","",null,{"$f":"CBAT!$AB13","v":""},{"$f":"CBAT!$BZ13","v":""},0,null,"","",0,{"$f":"IF($Q13=\"\",\"\",IF(OR($CX13<>\"c\",SUM($BY$8:$BY$107)=0),0,ROUND(BW13*MIN('Other Data'!$G$84,'Other Data'!$H$84*IF('Project Information'!$F$10=\"X\",('Project Information'!$L$42-'Project Information'!$L$39),'Project Information'!$L$42)/SUMPRODUCT($BY$8:$BY$107,--($CX$8:$CX$107=\"c\"))),0)))","v":""},{"$f":"IF($AC13=\"\",\"\",IF(OR($CX13<>\"c\",SUM($BY$8:$BY$107)=0),0,ROUND(BX13*MIN('Other Data'!$G$84,'Other Data'!$H$84*IF('Project Information'!$F$10=\"X\",('Project Information'!$L$42-'Project Information'!$L$39),'Project Information'!$L$42)/SUMPRODUCT($BY$8:$BY$107,--($CX$8:$CX$107=\"c\"))),0)))","v":""},0,null,"","",{"$f":"IF($J13=\"\",\"\",VLOOKUP($J13,'TRM Data'!$R$4:$S$168,2,FALSE))","v":""},"","","",null,{"$f":"IF($CV13=0,\"\",CBAT!$DJ13)","v":""},null,null,1,1,0,1,0,null,{"$f":"IF(OR($CV13=0,ISBLANK('Project Information'!$D$44)),\"\",IF(AND($CV13=1,$CO13<1,$G13=\"yes\"),\"a\",IF($CO13<1,\"b\",\"c\")))","v":""}]
[0,7,null,null,null,null,null,{"$f":"IF($C14=\"\",\"\",IF(COUNTIF('Project Information'!$J$9:BG$9,$C14)<>1,\"\",INDEX('Project Information'!$J$8:$BG$8,1,MATCH($C14,'Project Information'!$J$9:BG$9,0))))","v":""},null,null,{"$f":"LOOKUP(2,1/(COUNTIF($K$7:K13,$Q$8:$Q$108)=0),$Q$8:$Q$108)","v":{"$error":"#N/A"}},{"$f":"IF(OR('Project Information'!$D$32=\"\",C14=\"\"),\"\",'Project Information'!$D$32)","v":""},{"$f":"IF($C14=\"\",\"\",IF(COUNTIF('Project Information'!$J$9:$BG$9,$C14)=1,HLOOKUP(C14,'Project Information'!$J$9:$BG$10,2,FALSE),0))","v":""},null,null,null,null,null,null,null,{"$f":"IF(Q14<>\"\",IF('Project Information'!$D$33=\"Small Business\",\"I\",\"P\")&VLOOKUP($Q14,'TRM Data'!$C$5:$N$201,COLUMN('TRM Data'!$E$2)-COLUMN('TRM Data'!$C$2)+1,FALSE)&IF($L14=\"Summer\",\"S\",IF($L14=\"Winter\",\"W\",\"Y\")),\"\")","v":""},{"$f":"IF(OR($F14=\"Controls\",$F14=\"\"),\"\",VLOOKUP($Q14,'TRM Data'!$C$5:$N$201,COLUMN('TRM Data'!$F$2)-COLUMN('TRM Data'!$C$2)+1,FALSE))","v":""},null,{"$f":"IF($R14=0,\"\",VLOOKUP($Q14,'TRM Data'!$C$5:$N$201,COLUMN('TRM Data'!$G$2)-COLUMN('TRM Data'!$C$2)+1,FALSE)*$R14)","v":""},null,{"$f":"IF($R14=0,\"\",VLOOKUP($Q14,'TRM Data'!$C$5:$N$201,COLUMN('TRM Data'!$I$2)-COLUMN('TRM Data'!$C$2)+1,FALSE)*$R14)","v":""},{"$f":"IF($Q14=\"\",\"\",IF('Project Information'!$D$33=\"Small Business\",'Project Scope'!$CA14,IF('Project Information'!$D$33=\"Pay for Performance\",'Project Scope'!$CD14,0)))","v":""},null,null,null,{"$f":"IF(AC14<>\"\",\"P\"&VLOOKUP($AC14,'TRM Data'!$C$5:$N$201,COLUMN('TRM Data'!$E$2)-COLUMN('TRM Data'!$C$2)+1,FALSE)&IF($L14=\"Summer\",\"S\",IF($L14=\"Winter\",\"W\",\"Y\")),\"\")","v":""},{"$f":"IF($AD14=0,\"\",VLOOKUP($AC14,'TRM Data'!$C$5:$N$201,COLUMN('TRM Data'!$G$2)-COLUMN('TRM Data'!$C$2)+1,FALSE)*$AD14)","v":""},null,{"$f":"IF($AD14=0,\"\",VLOOKUP($AC14,'TRM Data'!$C$5:$N$201,COLUMN('TRM Data'!$I$2)-COLUMN('TRM Data'!$C$2)+1,FALSE)*$AD14)","v":""},{"$f":"IF($AC14=\"\",\"\",IF('Project Information'!$D$33=\"Small Business\",'Project Scope'!$CB14,IF('Project Information'!$D$33=\"Pay for Performance\",'Project Scope'!$CE14,0)))","v":""},null,"",null,"","","","","","","",{"$f":"IF($Q14=\"\",\"\",IF(AND(ISNUMBER($BW14),ISNUMBER($AR14),$AR14>0),SUM($BL14,$BO14,$BI14)*'Other Data'!$H$83,0))","v":""},{"$f":"IF($Q14=\"\",\"\",IF(AND(ISNUMBER($BW14),ISNUMBER($AR14),$AR14>0),$BW14*'Other Data'!$G$84,0))","v":""},null,"","","","","",{"$f":"IF($AC14=\"\",\"\",IF(AND(ISNUMBER($BX14), ISNUMBER($AZ14),$AZ14>0),SUM($BJ14,$BM14,$BP14)*'Other Data'!$H$83,0))","v":""},{"$f":"IF($AC14=\"\",\"\",IF(AND(ISNUMBER($BX14), ISNUMBER($AZ14),$AZ14>0),$BX14*'Other Data'!$G$84,0))","v":""},null,{"$f":"IF($C14=\"\",\"\",SUM('Ancillary Costs'!$N$91:$N$105)*(SUM($AR14,$AZ14,SUM($AS14,$BA14)*'Project Information'!$D$12)))","v":""},{"$f":"IF($C14=\"\",\"\",SUMIFS('Ancillary Costs'!$N$72:$N$86,'Ancillary Costs'!$FL$72:$FL$86,\"*xx\"&'Project Scope'!$C14&\"xx*\")*(SUM($AR14,$AZ14,SUM($AS14,$BA14)*'Project Information'!$D$12)))","v":""},{"$f":"IFERROR(IF($C14=\"\",\"\",SUMIFS('Ancillary Costs'!$N$8:$N$67,'Ancillary Costs'!$FL$8:$FL$67,\"*xx\"&'Project Scope'!C14&\"xx*\",'Ancillary Costs'!$I$8:$I$67,'Project Scope'!$AN14)*'Project Scope'!$AO14),0)","v":""},{"$f":"IFERROR(IF($C14=\"\",\"\",SUMIFS('Ancillary Costs'!$N$8:$N$67,'Ancillary Costs'!$FL$8:$FL$67,\"*xx\"&'Project Scope'!C14&\"xx*\",'Ancillary Costs'!$I$8:$I$67,'Project Scope'!$AW14)*'Project Scope'!$AX14),0)","v":""},{"$f":"IF($C14=\"\",\"\",IF(SUM($AR14,$AZ14,SUM($AS14,$BA14)*'Project Information'!$D$12)=0,0,SUM($BG14,(SUM($BE14:$BF14))*((SUM($AR14,(IF(ISNUMBER($AS14),$AS14,0)*'Project Information'!$D$12)))/SUM($AR14,$AZ14,SUM($AS14,$BA14)*'Project Information'!$D$12)))))","v":""},{"$f":"IF($C14=\"\",\"\",IF(SUM($AR14,$AZ14,SUM($AS14,$BA14)*'Project Information'!$D$12)=0,0,SUM($BH14,(SUM($BE14:$BF14))*((SUM($AZ14,(IF(ISNUMBER($BA14),$BA14,0)*'Project Information'!$D$12)))/SUM($AR14,$AZ14,SUM($AS14,$BA14)*'Project Information'!$D$12)))))","v":""},null,"","","",{"$f":"IF($C14=\"\",\"\",IF(OR($AS14=\"\",$CX14=\"b\"),0,$AS14*'Project Information'!$D$12))","v":""},{"$f":"IF($C14=\"\",\"\",IF(OR($BA14=\"\",$CX14=\"b\"),0,$BA14*'Project Information'!$D$12))","v":""},"","","","","",null,{"$f":"CBAT!$AB14","v":""},{"$f":"CBAT!$BZ14","v":""},0,null,"","",0,{"$f":"IF($Q14=\"\",\"\",IF(OR($CX14<>\"c\",SUM($BY$8:$BY$107)=0),0,ROUND(BW14*MIN('Other Data'!$G$84,'Other Data'!$H$84*IF('Project Information'!$F$10=\"X\",('Project Information'!$L$42-'Project Information'!$L$39),'Project Information'!$L$42)/SUMPRODUCT($BY$8:$BY$107,--($CX$8:$CX$107=\"c\"))),0)))","v":""},{"$f":"IF($AC14=\"\",\"\",IF(OR($CX14<>\"c\",SUM($BY$8:$BY$107)=0),0,ROUND(BX14*MIN('Other Data'!$G$84,'Other Data'!$H$84*IF('Project Information'!$F$10=\"X\",('Project Information'!$L$42-'Project Information'!$L$39),'Project Information'!$L$42)/SUMPRODUCT($BY$8:$BY$107,--($CX$8:$CX$107=\"c\"))),0)))","v":""},0,null,"","",{"$f":"IF($J14=\"\",\"\",VLOOKUP($J14,'TRM Data'!$R$4:$S$168,2,FALSE))","v":""},"","","",null,{"$f":"IF($CV14=0,\"\",CBAT!$DJ14)","v":""},null,null,1,1,0,1,0,null,{"$f":"IF(OR($CV14=0,ISBLANK('Project Information'!$D$44)),\"\",IF(AND($CV14=1,$CO14<1,$G14=\"yes\"),\"a\",IF($CO14<1,\"b\",\"c\")))","v":""}]
[0,8,null,null,null,null,null,{"$f":"IF($C15=\"\",\"\",IF(COUNTIF('Project Information'!$J$9:BG$9,$C15)<>1,\"\",INDEX('Project Information'!$J$8:$BG$8,1,MATCH($C15,'Project Information'!$J$9:BG$9,0))))","v":""},null,null,{"$f":"LOOKUP(2,1/(COUNTIF($K$7:K14,$Q$8:$Q$108)=0),$Q$8:$Q$108)","v":{"$error":"#N/A"}},{"$f":"IF(OR('Project Information'!$D$32=\"\",C15=\"\"),\"\",'Project Information'!$D$32)","v":""},{"$f":"IF($C15=\"\",\"\",IF(COUNTIF('Project Information'!$J$9:$BG$9,$C15)=1,HLOOKUP(C15,'Project Information'!$J$9:$BG$10,2,FALSE),0))","v":""},null,null,null,null,null,null,null,{"$f":"IF(Q15<>\"\",IF('Project Information'!$D$33=\"Small Business\",\"I\",\"P\")&VLOOKUP($Q15,'TRM Data'!$C$5:$N$201,COLUMN('TRM Data'!$E$2)-COLUMN('TRM Data'!$C$2)+1,FALSE)&IF($L15=\"Summer\",\"S\",IF($L15=\"Winter\",\"W\",\"Y\")),\"\")","v":""},{"$f":"IF(OR($F15=\"Controls\",$F15=\"\"),\"\",VLOOKUP($Q15,'TRM Data'!$C$5:$N$201,COLUMN('TRM Data'!$F$2)-COLUMN('TRM Data'!$C$2)+1,FALSE))","v":""},null,{"$f":"IF($R15=0,\"\",VLOOKUP($Q15,'TRM Data'!$C$5:$N$201,COLUMN('TRM Data'!$G$2)-COLUMN('TRM Data'!$C$2)+1,FALSE)*$R15)","v":""},null,{"$f":"IF($R15=0,\"\",VLOOKUP($Q15,'TRM Data'!$C$5:$N$201,COLUMN('TRM Data'!$I$2)-COLUMN('TRM Data'!$C$2)+1,FALSE)*$R15)","v":""},{"$f":"IF($Q15=\"\",\"\",IF('Project Information'!$D$33=\"Small Business\",'Project Scope'!$CA15,IF('Project Information'!$D$33=\"Pay for Performance\",'Project Scope'!$CD15,0)))","v":""},null,null,null,{"$f":"IF(AC15<>\"\",\"P\"&VLOOKUP($AC15,'TRM Data'!$C$5:$N$201,COLUMN('TRM Data'!$E$2)-COLUMN('TRM Data'!$C$2)+1,FALSE)&IF($L15=\"Summer\",\"S\",IF($L15=\"Winter\",\"W\",\"Y\")),\"\")","v":""},{"$f":"IF($AD15=0,\"\",VLOOKUP($AC15,'TRM Data'!$C$5:$N$201,COLUMN('TRM Data'!$G$2)-COLUMN('TRM Data'!$C$2)+1,FALSE)*$AD15)","v":""},null,{"$f":"IF($AD15=0,\"\",VLOOKUP($AC15,'TRM Data'!$C$5:$N$201,COLUMN('TRM Data'!$I$2)-COLUMN('TRM Data'!$C$2)+1,FALSE)*$AD15)","v":""},{"$f":"IF($AC15=\"\",\"\",IF('Project Information'!$D$33=\"Small Business\",'Project Scope'!$CB15,IF('Project Information'!$D$33=\"Pay for Performance\",'Project Scope'!$CE15,0)))","v":""},null,"",null,"","","","","","","",{"$f":"IF($Q15=\"\",\"\",IF(AND(ISNUMBER($BW15),ISNUMBER($AR15),$AR15>0),SUM($BL15,$BO15,$BI15)*'Other Data'!$H$83,0))","v":""},{"$f":"IF($Q15=\"\",\"\",IF(AND(ISNUMBER($BW15),ISNUMBER($AR15),$AR15>0),$BW15*'Other Data'!$G$84,0))","v":""},null,"","","","","",{"$f":"IF($AC15=\"\",\"\",IF(AND(ISNUMBER($BX15), ISNUMBER($AZ15),$AZ15>0),SUM($BJ15,$BM15,$BP15)*'Other Data'!$H$83,0))","v":""},{"$f":"IF($AC15=\"\",\"\",IF(AND(ISNUMBER($BX15), ISNUMBER($AZ15),$AZ15>0),$BX15*'Other Data'!$G$84,0))","v":""},null,{"$f":"IF($C15=\"\",\"\",SUM('Ancillary Costs'!$N$91:$N$105)*(SUM($AR15,$AZ15,SUM($AS15,$BA15)*'Project Information'!$D$12)))","v":""},{"$f":"IF($C15=\"\",\"\",SUMIFS('Ancillary Costs'!$N$72:$N$86,'Ancillary Costs'!$FL$72:$FL$86,\"*xx\"&'Project Scope'!$C15&\"xx*\")*(SUM($AR15,$AZ15,SUM($AS15,$BA15)*'Project Information'!$D$12)))","v":""},{"$f":"IFERROR(IF($C15=\"\",\"\",SUMIFS('Ancillary Costs'!$N$8:$N$67,'Ancillary Costs'!$FL$8:$FL$67,\"*xx\"&'Project Scope'!C15&\"xx*\",'Ancillary Costs'!$I$8:$I$67,'Project Scope'!$AN15)*'Project Scope'!$AO15),0)","v":""},{"$f":"IFERROR(IF($C15=\"\",\"\",SUMIFS('Ancillary Costs'!$N$8:$N$67,'Ancillary Costs'!$FL$8:$FL$67,\"*xx\"&'Project Scope'!C15&\"xx*\",'Ancillary Costs'!$I$8:$I$67,'Project Scope'!$AW15)*'Project Scope'!$AX15),0)","v":""},{"$f":"IF($C15=\"\",\"\",IF(SUM($AR15,$AZ15,SUM($AS15,$BA15)*'Project Information'!$D$12)=0,0,SUM($BG15,(SUM($BE15:$BF15))*((SUM($AR15,(IF(ISNUMBER($AS15),$AS15,0)*'Project Information'!$D$12)))/SUM($AR15,$AZ15,SUM($AS15,$BA15)*'Project Information'!$D$12)))))","v":""},{"$f":"IF($C15=\"\",\"\",IF(SUM($AR15,$AZ15,SUM($AS15,$BA15)*'Project Information'!$D$12)=0,0,SUM($BH15,(SUM($BE15:$BF15))*((SUM($AZ15,(IF(ISNUMBER($BA15),$BA15,0)*'Project Information'!$D$12)))/SUM($AR15,$AZ15,SUM($AS15,$BA15)*'Project Information'!$D$12)))))","v":""},null,"","","",{"$f":"IF($C15=\"\",\"\",IF(OR($AS15=\"\",$CX15=\"b\"),0,$AS15*'Project Information'!$D$12))","v":""},{"$f":"IF($C15=\"\",\"\",IF(OR($BA15=\"\",$CX15=\"b\"),0,$BA15*'Project Information'!$D$12))","v":""},"","","","","",null,{"$f":"CBAT!$AB15","v":""},{"$f":"CBAT!$BZ15","v":""},0,null,"","",0,{"$f":"IF($Q15=\"\",\"\",IF(OR($CX15<>\"c\",SUM($BY$8:$BY$107)=0),0,ROUND(BW15*MIN('Other Data'!$G$84,'Other Data'!$H$84*IF('Project Information'!$F$10=\"X\",('Project Information'!$L$42-'Project Information'!$L$39),'Project Information'!$L$42)/SUMPRODUCT($BY$8:$BY$107,--($CX$8:$CX$107=\"c\"))),0)))","v":""},{"$f":"IF($AC15=\"\",\"\",IF(OR($CX15<>\"c\",SUM($BY$8:$BY$107)=0),0,ROUND(BX15*MIN('Other Data'!$G$84,'Other Data'!$H$84*IF('Project Information'!$F$10=\"X\",('Project Information'!$L$42-'Project Information'!$L$39),'Project Information'!$L$42)/SUMPRODUCT($BY$8:$BY$107,--($CX$8:$CX$107=\"c\"))),0)))","v":""},0,null,"","",{"$f":"IF($J15=\"\",\"\",VLOOKUP($J15,'TRM Data'!$R$4:$S$168,2,FALSE))","v":""},"","","",null,{"$f":"IF($CV15=0,\"\",CBAT!$DJ15)","v":""},null,null,1,1,0,1,0,null,{"$f":"IF(OR($CV15=0,ISBLANK('Project Information'!$D$44)),\"\",IF(AND($CV15=1,$CO15<1,$G15=\"yes\"),\"a\",IF($CO15<1,\"b\",\"c\")))","v":""}]
[0,9,null,null,null,null,null,{"$f":"IF($C16=\"\",\"\",IF(COUNTIF('Project Information'!$J$9:BG$9,$C16)<>1,\"\",INDEX('Project Information'!$J$8:$BG$8,1,MATCH($C16,'Project Information'!$J$9:BG$9,0))))","v":""},null,null,{"$f":"LOOKUP(2,1/(COUNTIF($K$7:K15,$Q$8:$Q$108)=0),$Q$8:$Q$108)","v":{"$error":"#N/A"}},{"$f":"IF(OR('Project Information'!$D$32=\"\",C16=\"\"),\"\",'Project Information'!$D$32)","v":""},{"$f":"IF($C16=\"\",\"\",IF(COUNTIF('Project Information'!$J$9:$BG$9,$C16)=1,HLOOKUP(C16,'Project Information'!$J$9:$BG$10,2,FALSE),0))","v":""},null,null,null,null,null,null,null,{"$f":"IF(Q16<>\"\",IF('Project Information'!$D$33=\"Small Business\",\"I\",\"P\")&VLOOKUP($Q16,'TRM Data'!$C$5:$N$201,COLUMN('TRM Data'!$E$2)-COLUMN('TRM Data'!$C$2)+1,FALSE)&IF($L16=\"Summer\",\"S\",IF($L16=\"Winter\",\"W\",\"Y\")),\"\")","v":""},{"$f":"IF(OR($F16=\"Controls\",$F16=\"\"),\"\",VLOOKUP($Q16,'TRM Data'!$C$5:$N$201,COLUMN('TRM Data'!$F$2)-COLUMN('TRM Data'!$C$2)+1,FALSE))","v":""},null,{"$f":"IF($R16=0,\"\",VLOOKUP($Q16,'TRM Data'!$C$5:$N$201,COLUMN('TRM Data'!$G$2)-COLUMN('TRM Data'!$C$2)+1,FALSE)*$R16)","v":""},null,{"$f":"IF($R16=0,\"\",VLOOKUP($Q16,'TRM Data'!$C$5:$N$201,COLUMN('TRM Data'!$I$2)-COLUMN('TRM Data'!$C$2)+1,FALSE)*$R16)","v":""},{"$f":"IF($Q16=\"\",\"\",IF('Project Information'!$D$33=\"Small Business\",'Project Scope'!$CA16,IF('Project Information'!$D$33=\"Pay for Performance\",'Project Scope'!$CD16,0)))","v":""},null,null,null,{"$f":"IF(AC16<>\"\",\"P\"&VLOOKUP($AC16,'TRM Data'!$C$5:$N$201,COLUMN('TRM Data'!$E$2)-COLUMN('TRM Data'!$C$2)+1,FALSE)&IF($L16=\"Summer\",\"S\",IF($L16=\"Winter\",\"W\",\"Y\")),\"\")","v":""},{"$f":"IF($AD16=0,\"\",VLOOKUP($AC16,'TRM Data'!$C$5:$N$201,COLUMN('TRM Data'!$G$2)-COLUMN('TRM Data'!$C$2)+1,FALSE)*$AD16)","v":""},null,{"$f":"IF($AD16=0,\"\",VLOOKUP($AC16,'TRM Data'!$C$5:$N$201,COLUMN('TRM Data'!$I$2)-COLUMN('TRM Data'!$C$2)+1,FALSE)*$AD16)","v":""},{"$f":"IF($AC16=\"\",\"\",IF('Project Information'!$D$33=\"Small Business\",'Project Scope'!$CB16,IF('Project Information'!$D$33=\"Pay for Performance\",'Project Scope'!$CE16,0)))","v":""},null,"",null,"","","","","","","",{"$f":"IF($Q16=\"\",\"\",IF(AND(ISNUMBER($BW16),ISNUMBER($AR16),$AR16>0),SUM($BL16,$BO16,$BI16)*'Other Data'!$H$83,0))","v":""},{"$f":"IF($Q16=\"\",\"\",IF(AND(ISNUMBER($BW16),ISNUMBER($AR16),$AR16>0),$BW16*'Other Data'!$G$84,0))","v":""},null,"","","","","",{"$f":"IF($AC16=\"\",\"\",IF(AND(ISNUMBER($BX16), ISNUMBER($AZ16),$AZ16>0),SUM($BJ16,$BM16,$BP16)*'Other Data'!$H$83,0))","v":""},{"$f":"IF($AC16=\"\",\"\",IF(AND(ISNUMBER($BX16), ISNUMBER($AZ16),$AZ16>0),$BX16*'Other Data'!$G$84,0))","v":""},null,{"$f":"IF($C16=\"\",\"\",SUM('Ancillary Costs'!$N$91:$N$105)*(SUM($AR16,$AZ16,SUM($AS16,$BA16)*'Project Information'!$D$12)))","v":""},{"$f":"IF($C16=\"\",\"\",SUMIFS('Ancillary Costs'!$N$72:$N$86,'Ancillary Costs'!$FL$72:$FL$86,\"*xx\"&'Project Scope'!$C16&\"xx*\")*(SUM($AR16,$AZ16,SUM($AS16,$BA16)*'Project Information'!$D$12)))","v":""},{"$f":"IFERROR(IF($C16=\"\",\"\",SUMIFS('Ancillary Costs'!$N$8:$N$67,'Ancillary Costs'!$FL$8:$FL$67,\"*xx\"&'Project Scope'!C16&\"xx*\",'Ancillary Costs'!$I$8:$I$67,'Project Scope'!$AN16)*'Project Scope'!$AO16),0)","v":""},{"$f":"IFERROR(IF($C16=\"\",\"\",SUMIFS('Ancillary Costs'!$N$8:$N$67,'Ancillary Costs'!$FL$8:$FL$67,\"*xx\"&'Project Scope'!C16&\"xx*\",'Ancillary Costs'!$I$8:$I$67,'Project Scope'!$AW16)*'Project Scope'!$AX16),0)","v":""},{"$f":"IF($C16=\"\",\"\",IF(SUM($AR16,$AZ16,SUM($AS16,$BA16)*'Project Information'!$D$12)=0,0,SUM($BG16,(SUM($BE16:$BF16))*((SUM($AR16,(IF(ISNUMBER($AS16),$AS16,0)*'Project Information'!$D$12)))/SUM($AR16,$AZ16,SUM($AS16,$BA16)*'Project Information'!$D$12)))))","v":""},{"$f":"IF($C16=\"\",\"\",IF(SUM($AR16,$AZ16,SUM($AS16,$BA16)*'Project Information'!$D$12)=0,0,SUM($BH16,(SUM($BE16:$BF16))*((SUM($AZ16,(IF(ISNUMBER($BA16),$BA16,0)*'Project Information'!$D$12)))/SUM($AR16,$AZ16,SUM($AS16,$BA16)*'Project Information'!$D$12)))))","v":""},null,"","","",{"$f":"IF($C16=\"\",\"\",IF(OR($AS16=\"\",$CX16=\"b\"),0,$AS16*'Project Information'!$D$12))","v":""},{"$f":"IF($C16=\"\",\"\",IF(OR($BA16=\"\",$CX16=\"b\"),0,$BA16*'Project Information'!$D$12))","v":""},"","","","","",null,{"$f":"CBAT!$AB16","v":""},{"$f":"CBAT!$BZ16","v":""},0,null,"","",0,{"$f":"IF($Q16=\"\",\"\",IF(OR($CX16<>\"c\",SUM($BY$8:$BY$107)=0),0,ROUND(BW16*MIN('Other Data'!$G$84,'Other Data'!$H$84*IF('Project Information'!$F$10=\"X\",('Project Information'!$L$42-'Project Information'!$L$39),'Project Information'!$L$42)/SUMPRODUCT($BY$8:$BY$107,--($CX$8:$CX$107=\"c\"))),0)))","v":""},{"$f":"IF($AC16=\"\",\"\",IF(OR($CX16<>\"c\",SUM($BY$8:$BY$107)=0),0,ROUND(BX16*MIN('Other Data'!$G$84,'Other Data'!$H$84*IF('Project Information'!$F$10=\"X\",('Project Information'!$L$42-'Project Information'!$L$39),'Project Information'!$L$42)/SUMPRODUCT($BY$8:$BY$107,--($CX$8:$CX$107=\"c\"))),0)))","v":""},0,null,"","",{"$f":"IF($J16=\"\",\"\",VLOOKUP($J16,'TRM Data'!$R$4:$S$168,2,FALSE))","v":""},"","","",null,{"$f":"IF($CV16=0,\"\",CBAT!$DJ16)","v":""},null,null,1,1,0,1,0,null,{"$f":"IF(OR($CV16=0,ISBLANK('Project Information'!$D$44)),\"\",IF(AND($CV16=1,$CO16<1,$G16=\"yes\"),\"a\",IF($CO16<1,\"b\",\"c\")))","v":""}]
[0,10,null,null,null,null,null,{"$f":"IF($C17=\"\",\"\",IF(COUNTIF('Project Information'!$J$9:BG$9,$C17)<>1,\"\",INDEX('Project Information'!$J$8:$BG$8,1,MATCH($C17,'Project Information'!$J$9:BG$9,0))))","v":""},null,null,{"$f":"LOOKUP(2,1/(COUNTIF($K$7:K16,$Q$8:$Q$108)=0),$Q$8:$Q$108)","v":{"$error":"#N/A"}},{"$f":"IF(OR('Project Information'!$D$32=\"\",C17=\"\"),\"\",'Project Information'!$D$32)","v":""},{"$f":"IF($C17=\"\",\"\",IF(COUNTIF('Project Information'!$J$9:$BG$9,$C17)=1,HLOOKUP(C17,'Project Information'!$J$9:$BG$10,2,FALSE),0))","v":""},null,null,null,null,null,null,null,{"$f":"IF(Q17<>\"\",IF('Project Information'!$D$33=\"Small Business\",\"I\",\"P\")&VLOOKUP($Q17,'TRM Data'!$C$5:$N$201,COLUMN('TRM Data'!$E$2)-COLUMN('TRM Data'!$C$2)+1,FALSE)&IF($L17=\"Summer\",\"S\",IF($L17=\"Winter\",\"W\",\"Y\")),\"\")","v":""},{"$f":"IF(OR($F17=\"Controls\",$F17=\"\"),\"\",VLOOKUP($Q17,'TRM Data'!$C$5:$N$201,COLUMN('TRM Data'!$F$2)-COLUMN('TRM Data'!$C$2)+1,FALSE))","v":""},null,{"$f":"IF($R17=0,\"\",VLOOKUP($Q17,'TRM Data'!$C$5:$N$201,COLUMN('TRM Data'!$G$2)-COLUMN('TRM Data'!$C$2)+1,FALSE)*$R17)","v":""},null,{"$f":"IF($R17=0,\"\",VLOOKUP($Q17,'TRM Data'!$C$5:$N$201,COLUMN('TRM Data'!$I$2)-COLUMN('TRM Data'!$C$2)+1,FALSE)*$R17)","v":""},{"$f":"IF($Q17=\"\",\"\",IF('Project Information'!$D$33=\"Small Business\",'Project Scope'!$CA17,IF('Project Information'!$D$33=\"Pay for Performance\",'Project Scope'!$CD17,0)))","v":""},null,null,null,{"$f":"IF(AC17<>\"\",\"P\"&VLOOKUP($AC17,'TRM Data'!$C$5:$N$201,COLUMN('TRM Data'!$E$2)-COLUMN('TRM Data'!$C$2)+1,FALSE)&IF($L17=\"Summer\",\"S\",IF($L17=\"Winter\",\"W\",\"Y\")),\"\")","v":""},{"$f":"IF($AD17=0,\"\",VLOOKUP($AC17,'TRM Data'!$C$5:$N$201,COLUMN('TRM Data'!$G$2)-COLUMN('TRM Data'!$C$2)+1,FALSE)*$AD17)","v":""},null,{"$f":"IF($AD17=0,\"\",VLOOKUP($AC17,'TRM Data'!$C$5:$N$201,COLUMN('TRM Data'!$I$2)-COLUMN('TRM Data'!$C$2)+1,FALSE)*$AD17)","v":""},{"$f":"IF($AC17=\"\",\"\",IF('Project Information'!$D$33=\"Small Business\",'Project Scope'!$CB17,IF('Project Information'!$D$33=\"Pay for Performance\",'Project Scope'!$CE17,0)))","v":""},null,"",null,"","","","","","","",{"$f":"IF($Q17=\"\",\"\",IF(AND(ISNUMBER($BW17),ISNUMBER($AR17),$AR17>0),SUM($BL17,$BO17,$BI17)*'Other Data'!$H$83,0))","v":""},{"$f":"IF($Q17=\"\",\"\",IF(AND(ISNUMBER($BW17),ISNUMBER($AR17),$AR17>0),$BW17*'Other Data'!$G$84,0))","v":""},null,"","","","","",{"$f":"IF($AC17=\"\",\"\",IF(AND(ISNUMBER($BX17), ISNUMBER($AZ17),$AZ17>0),SUM($BJ17,$BM17,$BP17)*'Other Data'!$H$83,0))","v":""},{"$f":"IF($AC17=\"\",\"\",IF(AND(ISNUMBER($BX17), ISNUMBER($AZ17),$AZ17>0),$BX17*'Other Data'!$G$84,0))","v":""},null,{"$f":"IF($C17=\"\",\"\",SUM('Ancillary Costs'!$N$91:$N$105)*(SUM($AR17,$AZ17,SUM($AS17,$BA17)*'Project Information'!$D$12)))","v":""},{"$f":"IF($C17=\"\",\"\",SUMIFS('Ancillary Costs'!$N$72:$N$86,'Ancillary Costs'!$FL$72:$FL$86,\"*xx\"&'Project Scope'!$C17&\"xx*\")*(SUM($AR17,$AZ17,SUM($AS17,$BA17)*'Project Information'!$D$12)))","v":""},{"$f":"IFERROR(IF($C17=\"\",\"\",SUMIFS('Ancillary Costs'!$N$8:$N$67,'Ancillary Costs'!$FL$8:$FL$67,\"*xx\"&'Project Scope'!C17&\"xx*\",'Ancillary Costs'!$I$8:$I$67,'Project Scope'!$AN17)*'Project Scope'!$AO17),0)","v":""},{"$f":"IFERROR(IF($C17=\"\",\"\",SUMIFS('Ancillary Costs'!$N$8:$N$67,'Ancillary Costs'!$FL$8:$FL$67,\"*xx\"&'Project Scope'!C17&\"xx*\",'Ancillary Costs'!$I$8:$I$67,'Project Scope'!$AW17)*'Project Scope'!$AX17),0)","v":""},{"$f":"IF($C17=\"\",\"\",IF(SUM($AR17,$AZ17,SUM($AS17,$BA17)*'Project Information'!$D$12)=0,0,SUM($BG17,(SUM($BE17:$BF17))*((SUM($AR17,(IF(ISNUMBER($AS17),$AS17,0)*'Project Information'!$D$12)))/SUM($AR17,$AZ17,SUM($AS17,$BA17)*'Project Information'!$D$12)))))","v":""},{"$f":"IF($C17=\"\",\"\",IF(SUM($AR17,$AZ17,SUM($AS17,$BA17)*'Project Information'!$D$12)=0,0,SUM($BH17,(SUM($BE17:$BF17))*((SUM($AZ17,(IF(ISNUMBER($BA17),$BA17,0)*'Project Information'!$D$12)))/SUM($AR17,$AZ17,SUM($AS17,$BA17)*'Project Information'!$D$12)))))","v":""},null,"","","",{"$f":"IF($C17=\"\",\"\",IF(OR($AS17=\"\",$CX17=\"b\"),0,$AS17*'Project Information'!$D$12))","v":""},{"$f":"IF($C17=\"\",\"\",IF(OR($BA17=\"\",$CX17=\"b\"),0,$BA17*'Project Information'!$D$12))","v":""},"","","","","",null,{"$f":"CBAT!$AB17","v":""},{"$f":"CBAT!$BZ17","v":""},0,null,"","",0,{"$f":"IF($Q17=\"\",\"\",IF(OR($CX17<>\"c\",SUM($BY$8:$BY$107)=0),0,ROUND(BW17*MIN('Other Data'!$G$84,'Other Data'!$H$84*IF('Project Information'!$F$10=\"X\",('Project Information'!$L$42-'Project Information'!$L$39),'Project Information'!$L$42)/SUMPRODUCT($BY$8:$BY$107,--($CX$8:$CX$107=\"c\"))),0)))","v":""},{"$f":"IF($AC17=\"\",\"\",IF(OR($CX17<>\"c\",SUM($BY$8:$BY$107)=0),0,ROUND(BX17*MIN('Other Data'!$G$84,'Other Data'!$H$84*IF('Project Information'!$F$10=\"X\",('Project Information'!$L$42-'Project Information'!$L$39),'Project Information'!$L$42)/SUMPRODUCT($BY$8:$BY$107,--($CX$8:$CX$107=\"c\"))),0)))","v":""},0,null,"","",{"$f":"IF($J17=\"\",\"\",VLOOKUP($J17,'TRM Data'!$R$4:$S$168,2,FALSE))","v":""},"","","",null,{"$f":"IF($CV17=0,\"\",CBAT!$DJ17)","v":""},null,null,1,1,0,1,0,null,{"$f":"IF(OR($CV17=0,ISBLANK('Project Information'!$D$44)),\"\",IF(AND($CV17=1,$CO17<1,$G17=\"yes\"),\"a\",IF($CO17<1,\"b\",\"c\")))","v":""}]
[0,11,null,null,null,null,null,{"$f":"IF($C18=\"\",\"\",IF(COUNTIF('Project Information'!$J$9:BG$9,$C18)<>1,\"\",INDEX('Project Information'!$J$8:$BG$8,1,MATCH($C18,'Project Information'!$J$9:BG$9,0))))","v":""},null,null,{"$f":"LOOKUP(2,1/(COUNTIF($K$7:K17,$Q$8:$Q$108)=0),$Q$8:$Q$108)","v":{"$error":"#N/A"}},{"$f":"IF(OR('Project Information'!$D$32=\"\",C18=\"\"),\"\",'Project Information'!$D$32)","v":""},{"$f":"IF($C18=\"\",\"\",IF(COUNTIF('Project Information'!$J$9:$BG$9,$C18)=1,HLOOKUP(C18,'Project Information'!$J$9:$BG$10,2,FALSE),0))","v":""},null,null,null,null,null,null,null,{"$f":"IF(Q18<>\"\",IF('Project Information'!$D$33=\"Small Business\",\"I\",\"P\")&VLOOKUP($Q18,'TRM Data'!$C$5:$N$201,COLUMN('TRM Data'!$E$2)-COLUMN('TRM Data'!$C$2)+1,FALSE)&IF($L18=\"Summer\",\"S\",IF($L18=\"Winter\",\"W\",\"Y\")),\"\")","v":""},{"$f":"IF(OR($F18=\"Controls\",$F18=\"\"),\"\",VLOOKUP($Q18,'TRM Data'!$C$5:$N$201,COLUMN('TRM Data'!$F$2)-COLUMN('TRM Data'!$C$2)+1,FALSE))","v":""},null,{"$f":"IF($R18=0,\"\",VLOOKUP($Q18,'TRM Data'!$C$5:$N$201,COLUMN('TRM Data'!$G$2)-COLUMN('TRM Data'!$C$2)+1,FALSE)*$R18)","v":""},null,{"$f":"IF($R18=0,\"\",VLOOKUP($Q18,'TRM Data'!$C$5:$N$201,COLUMN('TRM Data'!$I$2)-COLUMN('TRM Data'!$C$2)+1,FALSE)*$R18)","v":""},{"$f":"IF($Q18=\"\",\"\",IF('Project Information'!$D$33=\"Small Business\",'Project Scope'!$CA18,IF('Project Information'!$D$33=\"Pay for Performance\",'Project Scope'!$CD18,0)))","v":""},null,null,null,{"$f":"IF(AC18<>\"\",\"P\"&VLOOKUP($AC18,'TRM Data'!$C$5:$N$201,COLUMN('TRM Data'!$E$2)-COLUMN('TRM Data'!$C$2)+1,FALSE)&IF($L18=\"Summer\",\"S\",IF($L18=\"Winter\",\"W\",\"Y\")),\"\")","v":""},{"$f":"IF($AD18=0,\"\",VLOOKUP($AC18,'TRM Data'!$C$5:$N$201,COLUMN('TRM Data'!$G$2)-COLUMN('TRM Data'!$C$2)+1,FALSE)*$AD18)","v":""},null,{"$f":"IF($AD18=0,\"\",VLOOKUP($AC18,'TRM Data'!$C$5:$N$201,COLUMN('TRM Data'!$I$2)-COLUMN('TRM Data'!$C$2)+1,FALSE)*$AD18)","v":""},{"$f":"IF($AC18=\"\",\"\",IF('Project Information'!$D$33=\"Small Business\",'Project Scope'!$CB18,IF('Project Information'!$D$33=\"Pay for Performance\",'Project Scope'!$CE18,0)))","v":""},null,"",null,"","","","","","","",{"$f":"IF($Q18=\"\",\"\",IF(AND(ISNUMBER($BW18),ISNUMBER($AR18),$AR18>0),SUM($BL18,$BO18,$BI18)*'Other Data'!$H$83,0))","v":""},{"$f":"IF($Q18=\"\",\"\",IF(AND(ISNUMBER($BW18),ISNUMBER($AR18),$AR18>0),$BW18*'Other Data'!$G$84,0))","v":""},null,"","","","","",{"$f":"IF($AC18=\"\",\"\",IF(AND(ISNUMBER($BX18), ISNUMBER($AZ18),$AZ18>0),SUM($BJ18,$BM18,$BP18)*'Other Data'!$H$83,0))","v":""},{"$f":"IF($AC18=\"\",\"\",IF(AND(ISNUMBER($BX18), ISNUMBER($AZ18),$AZ18>0),$BX18*'Other Data'!$G$84,0))","v":""},null,{"$f":"IF($C18=\"\",\"\",SUM('Ancillary Costs'!$N$91:$N$105)*(SUM($AR18,$AZ18,SUM($AS18,$BA18)*'Project Information'!$D$12)))","v":""},{"$f":"IF($C18=\"\",\"\",SUMIFS('Ancillary Costs'!$N$72:$N$86,'Ancillary Costs'!$FL$72:$FL$86,\"*xx\"&'Project Scope'!$C18&\"xx*\")*(SUM($AR18,$AZ18,SUM($AS18,$BA18)*'Project Information'!$D$12)))","v":""},{"$f":"IFERROR(IF($C18=\"\",\"\",SUMIFS('Ancillary Costs'!$N$8:$N$67,'Ancillary Costs'!$FL$8:$FL$67,\"*xx\"&'Project Scope'!C18&\"xx*\",'Ancillary Costs'!$I$8:$I$67,'Project Scope'!$AN18)*'Project Scope'!$AO18),0)","v":""},{"$f":"IFERROR(IF($C18=\"\",\"\",SUMIFS('Ancillary Costs'!$N$8:$N$67,'Ancillary Costs'!$FL$8:$FL$67,\"*xx\"&'Project Scope'!C18&\"xx*\",'Ancillary Costs'!$I$8:$I$67,'Project Scope'!$AW18)*'Project Scope'!$AX18),0)","v":""},{"$f":"IF($C18=\"\",\"\",IF(SUM($AR18,$AZ18,SUM($AS18,$BA18)*'Project Information'!$D$12)=0,0,SUM($BG18,(SUM($BE18:$BF18))*((SUM($AR18,(IF(ISNUMBER($AS18),$AS18,0)*'Project Information'!$D$12)))/SUM($AR18,$AZ18,SUM($AS18,$BA18)*'Project Information'!$D$12)))))","v":""},{"$f":"IF($C18=\"\",\"\",IF(SUM($AR18,$AZ18,SUM($AS18,$BA18)*'Project Information'!$D$12)=0,0,SUM($BH18,(SUM($BE18:$BF18))*((SUM($AZ18,(IF(ISNUMBER($BA18),$BA18,0)*'Project Information'!$D$12)))/SUM($AR18,$AZ18,SUM($AS18,$BA18)*'Project Information'!$D$12)))))","v":""},null,"","","",{"$f":"IF($C18=\"\",\"\",IF(OR($AS18=\"\",$CX18=\"b\"),0,$AS18*'Project Information'!$D$12))","v":""},{"$f":"IF($C18=\"\",\"\",IF(OR($BA18=\"\",$CX18=\"b\"),0,$BA18*'Project Information'!$D$12))","v":""},"","","","","",null,{"$f":"CBAT!$AB18","v":""},{"$f":"CBAT!$BZ18","v":""},0,null,"","",0,{"$f":"IF($Q18=\"\",\"\",IF(OR($CX18<>\"c\",SUM($BY$8:$BY$107)=0),0,ROUND(BW18*MIN('Other Data'!$G$84,'Other Data'!$H$84*IF('Project Information'!$F$10=\"X\",('Project Information'!$L$42-'Project Information'!$L$39),'Project Information'!$L$42)/SUMPRODUCT($BY$8:$BY$107,--($CX$8:$CX$107=\"c\"))),0)))","v":""},{"$f":"IF($AC18=\"\",\"\",IF(OR($CX18<>\"c\",SUM($BY$8:$BY$107)=0),0,ROUND(BX18*MIN('Other Data'!$G$84,'Other Data'!$H$84*IF('Project Information'!$F$10=\"X\",('Project Information'!$L$42-'Project Information'!$L$39),'Project Information'!$L$42)/SUMPRODUCT($BY$8:$BY$107,--($CX$8:$CX$107=\"c\"))),0)))","v":""},0,null,"","",{"$f":"IF($J18=\"\",\"\",VLOOKUP($J18,'TRM Data'!$R$4:$S$168,2,FALSE))","v":""},"","","",null,{"$f":"IF($CV18=0,\"\",CBAT!$DJ18)","v":""},null,null,1,1,0,1,0,null,{"$f":"IF(OR($CV18=0,ISBLANK('Project Information'!$D$44)),\"\",IF(AND($CV18=1,$CO18<1,$G18=\"yes\"),\"a\",IF($CO18<1,\"b\",\"c\")))","v":""}]
[0,12,null,null,null,null,null,{"$f":"IF($C19=\"\",\"\",IF(COUNTIF('Project Information'!$J$9:BG$9,$C19)<>1,\"\",INDEX('Project Information'!$J$8:$BG$8,1,MATCH($C19,'Project Information'!$J$9:BG$9,0))))","v":""},null,null,{"$f":"LOOKUP(2,1/(COUNTIF($K$7:K18,$Q$8:$Q$108)=0),$Q$8:$Q$108)","v":{"$error":"#N/A"}},{"$f":"IF(OR('Project Information'!$D$32=\"\",C19=\"\"),\"\",'Project Information'!$D$32)","v":""},{"$f":"IF($C19=\"\",\"\",IF(COUNTIF('Project Information'!$J$9:$BG$9,$C19)=1,HLOOKUP(C19,'Project Information'!$J$9:$BG$10,2,FALSE),0))","v":""},null,null,null,null,null,null,null,{"$f":"IF(Q19<>\"\",IF('Project Information'!$D$33=\"Small Business\",\"I\",\"P\")&VLOOKUP($Q19,'TRM Data'!$C$5:$N$201,COLUMN('TRM Data'!$E$2)-COLUMN('TRM Data'!$C$2)+1,FALSE)&IF($L19=\"Summer\",\"S\",IF($L19=\"Winter\",\"W\",\"Y\")),\"\")","v":""},{"$f":"IF(OR($F19=\"Controls\",$F19=\"\"),\"\",VLOOKUP($Q19,'TRM Data'!$C$5:$N$201,COLUMN('TRM Data'!$F$2)-COLUMN('TRM Data'!$C$2)+1,FALSE))","v":""},null,{"$f":"IF($R19=0,\"\",VLOOKUP($Q19,'TRM Data'!$C$5:$N$201,COLUMN('TRM Data'!$G$2)-COLUMN('TRM Data'!$C$2)+1,FALSE)*$R19)","v":""},null,{"$f":"IF($R19=0,\"\",VLOOKUP($Q19,'TRM Data'!$C$5:$N$201,COLUMN('TRM Data'!$I$2)-COLUMN('TRM Data'!$C$2)+1,FALSE)*$R19)","v":""},{"$f":"IF($Q19=\"\",\"\",IF('Project Information'!$D$33=\"Small Business\",'Project Scope'!$CA19,IF('Project Information'!$D$33=\"Pay for Performance\",'Project Scope'!$CD19,0)))","v":""},null,null,null,{"$f":"IF(AC19<>\"\",\"P\"&VLOOKUP($AC19,'TRM Data'!$C$5:$N$201,COLUMN('TRM Data'!$E$2)-COLUMN('TRM Data'!$C$2)+1,FALSE)&IF($L19=\"Summer\",\"S\",IF($L19=\"Winter\",\"W\",\"Y\")),\"\")","v":""},{"$f":"IF($AD19=0,\"\",VLOOKUP($AC19,'TRM Data'!$C$5:$N$201,COLUMN('TRM Data'!$G$2)-COLUMN('TRM Data'!$C$2)+1,FALSE)*$AD19)","v":""},null,{"$f":"IF($AD19=0,\"\",VLOOKUP($AC19,'TRM Data'!$C$5:$N$201,COLUMN('TRM Data'!$I$2)-COLUMN('TRM Data'!$C$2)+1,FALSE)*$AD19)","v":""},{"$f":"IF($AC19=\"\",\"\",IF('Project Information'!$D$33=\"Small Business\",'Project Scope'!$CB19,IF('Project Information'!$D$33=\"Pay for Performance\",'Project Scope'!$CE19,0)))","v":""},null,"",null,"","","","","","","",{"$f":"IF($Q19=\"\",\"\",IF(AND(ISNUMBER($BW19),ISNUMBER($AR19),$AR19>0),SUM($BL19,$BO19,$BI19)*'Other Data'!$H$83,0))","v":""},{"$f":"IF($Q19=\"\",\"\",IF(AND(ISNUMBER($BW19),ISNUMBER($AR19),$AR19>0),$BW19*'Other Data'!$G$84,0))","v":""},null,"","","","","",{"$f":"IF($AC19=\"\",\"\",IF(AND(ISNUMBER($BX19), ISNUMBER($AZ19),$AZ19>0),SUM($BJ19,$BM19,$BP19)*'Other Data'!$H$83,0))","v":""},{"$f":"IF($AC19=\"\",\"\",IF(AND(ISNUMBER($BX19), ISNUMBER($AZ19),$AZ19>0),$BX19*'Other Data'!$G$84,0))","v":""},null,{"$f":"IF($C19=\"\",\"\",SUM('Ancillary Costs'!$N$91:$N$105)*(SUM($AR19,$AZ19,SUM($AS19,$BA19)*'Project Information'!$D$12)))","v":""},{"$f":"IF($C19=\"\",\"\",SUMIFS('Ancillary Costs'!$N$72:$N$86,'Ancillary Costs'!$FL$72:$FL$86,\"*xx\"&'Project Scope'!$C19&\"xx*\")*(SUM($AR19,$AZ19,SUM($AS19,$BA19)*'Project Information'!$D$12)))","v":""},{"$f":"IFERROR(IF($C19=\"\",\"\",SUMIFS('Ancillary Costs'!$N$8:$N$67,'Ancillary Costs'!$FL$8:$FL$67,\"*xx\"&'Project Scope'!C19&\"xx*\",'Ancillary Costs'!$I$8:$I$67,'Project Scope'!$AN19)*'Project Scope'!$AO19),0)","v":""},{"$f":"IFERROR(IF($C19=\"\",\"\",SUMIFS('Ancillary Costs'!$N$8:$N$67,'Ancillary Costs'!$FL$8:$FL$67,\"*xx\"&'Project Scope'!C19&\"xx*\",'Ancillary Costs'!$I$8:$I$67,'Project Scope'!$AW19)*'Project Scope'!$AX19),0)","v":""},{"$f":"IF($C19=\"\",\"\",IF(SUM($AR19,$AZ19,SUM($AS19,$BA19)*'Project Information'!$D$12)=0,0,SUM($BG19,(SUM($BE19:$BF19))*((SUM($AR19,(IF(ISNUMBER($AS19),$AS19,0)*'Project Information'!$D$12)))/SUM($AR19,$AZ19,SUM($AS19,$BA19)*'Project Information'!$D$12)))))","v":""},{"$f":"IF($C19=\"\",\"\",IF(SUM($AR19,$AZ19,SUM($AS19,$BA19)*'Project Information'!$D$12)=0,0,SUM($BH19,(SUM($BE19:$BF19))*((SUM($AZ19,(IF(ISNUMBER($BA19),$BA19,0)*'Project Information'!$D$12)))/SUM($AR19,$AZ19,SUM($AS19,$BA19)*'Project Information'!$D$12)))))","v":""},null,"","","",{"$f":"IF($C19=\"\",\"\",IF(OR($AS19=\"\",$CX19=\"b\"),0,$AS19*'Project Information'!$D$12))","v":""},{"$f":"IF($C19=\"\",\"\",IF(OR($BA19=\"\",$CX19=\"b\"),0,$BA19*'Project Information'!$D$12))","v":""},"","","","","",null,{"$f":"CBAT!$AB19","v":""},{"$f":"CBAT!$BZ19","v":""},0,null,"","",0,{"$f":"IF($Q19=\"\",\"\",IF(OR($CX19<>\"c\",SUM($BY$8:$BY$107)=0),0,ROUND(BW19*MIN('Other Data'!$G$84,'Other Data'!$H$84*IF('Project Information'!$F$10=\"X\",('Project Information'!$L$42-'Project Information'!$L$39),'Project Information'!$L$42)/SUMPRODUCT($BY$8:$BY$107,--($CX$8:$CX$107=\"c\"))),0)))","v":""},{"$f":"IF($AC19=\"\",\"\",IF(OR($CX19<>\"c\",SUM($BY$8:$BY$107)=0),0,ROUND(BX19*MIN('Other Data'!$G$84,'Other Data'!$H$84*IF('Project Information'!$F$10=\"X\",('Project Information'!$L$42-'Project Information'!$L$39),'Project Information'!$L$42)/SUMPRODUCT($BY$8:$BY$107,--($CX$8:$CX$107=\"c\"))),0)))","v":""},0,null,"","",{"$f":"IF($J19=\"\",\"\",VLOOKUP($J19,'TRM Data'!$R$4:$S$168,2,FALSE))","v":""},"","","",null,{"$f":"IF($CV19=0,\"\",CBAT!$DJ19)","v":""},null,null,1,1,0,1,0,null,{"$f":"IF(OR($CV19=0,ISBLANK('Project Information'!$D$44)),\"\",IF(AND($CV19=1,$CO19<1,$G19=\"yes\"),\"a\",IF($CO19<1,\"b\",\"c\")))","v":""}]
[0,13,null,null,null,null,null,{"$f":"IF($C20=\"\",\"\",IF(COUNTIF('Project Information'!$J$9:BG$9,$C20)<>1,\"\",INDEX('Project Information'!$J$8:$BG$8,1,MATCH($C20,'Project Information'!$J$9:BG$9,0))))","v":""},null,null,{"$f":"LOOKUP(2,1/(COUNTIF($K$7:K19,$Q$8:$Q$108)=0),$Q$8:$Q$108)","v":{"$error":"#N/A"}},{"$f":"IF(OR('Project Information'!$D$32=\"\",C20=\"\"),\"\",'Project Information'!$D$32)","v":""},{"$f":"IF($C20=\"\",\"\",IF(COUNTIF('Project Information'!$J$9:$BG$9,$C20)=1,HLOOKUP(C20,'Project Information'!$J$9:$BG$10,2,FALSE),0))","v":""},null,null,null,null,null,null,null,{"$f":"IF(Q20<>\"\",IF('Project Information'!$D$33=\"Small Business\",\"I\",\"P\")&VLOOKUP($Q20,'TRM Data'!$C$5:$N$201,COLUMN('TRM Data'!$E$2)-COLUMN('TRM Data'!$C$2)+1,FALSE)&IF($L20=\"Summer\",\"S\",IF($L20=\"Winter\",\"W\",\"Y\")),\"\")","v":""},{"$f":"IF(OR($F20=\"Controls\",$F20=\"\"),\"\",VLOOKUP($Q20,'TRM Data'!$C$5:$N$201,COLUMN('TRM Data'!$F$2)-COLUMN('TRM Data'!$C$2)+1,FALSE))","v":""},null,{"$f":"IF($R20=0,\"\",VLOOKUP($Q20,'TRM Data'!$C$5:$N$201,COLUMN('TRM Data'!$G$2)-COLUMN('TRM Data'!$C$2)+1,FALSE)*$R20)","v":""},null,{"$f":"IF($R20=0,\"\",VLOOKUP($Q20,'TRM Data'!$C$5:$N$201,COLUMN('TRM Data'!$I$2)-COLUMN('TRM Data'!$C$2)+1,FALSE)*$R20)","v":""},{"$f":"IF($Q20=\"\",\"\",IF('Project Information'!$D$33=\"Small Business\",'Project Scope'!$CA20,IF('Project Information'!$D$33=\"Pay for Performance\",'Project Scope'!$CD20,0)))","v":""},null,null,null,{"$f":"IF(AC20<>\"\",\"P\"&VLOOKUP($AC20,'TRM Data'!$C$5:$N$201,COLUMN('TRM Data'!$E$2)-COLUMN('TRM Data'!$C$2)+1,FALSE)&IF($L20=\"Summer\",\"S\",IF($L20=\"Winter\",\"W\",\"Y\")),\"\")","v":""},{"$f":"IF($AD20=0,\"\",VLOOKUP($AC20,'TRM Data'!$C$5:$N$201,COLUMN('TRM Data'!$G$2)-COLUMN('TRM Data'!$C$2)+1,FALSE)*$AD20)","v":""},null,{"$f":"IF($AD20=0,\"\",VLOOKUP($AC20,'TRM Data'!$C$5:$N$201,COLUMN('TRM Data'!$I$2)-COLUMN('TRM Data'!$C$2)+1,FALSE)*$AD20)","v":""},{"$f":"IF($AC20=\"\",\"\",IF('Project Information'!$D$33=\"Small Business\",'Project Scope'!$CB20,IF('Project Information'!$D$33=\"Pay for Performance\",'Project Scope'!$CE20,0)))","v":""},null,"",null,"","","","","","","",{"$f":"IF($Q20=\"\",\"\",IF(AND(ISNUMBER($BW20),ISNUMBER($AR20),$AR20>0),SUM($BL20,$BO20,$BI20)*'Other Data'!$H$83,0))","v":""},{"$f":"IF($Q20=\"\",\"\",IF(AND(ISNUMBER($BW20),ISNUMBER($AR20),$AR20>0),$BW20*'Other Data'!$G$84,0))","v":""},null,"","","","","",{"$f":"IF($AC20=\"\",\"\",IF(AND(ISNUMBER($BX20), ISNUMBER($AZ20),$AZ20>0),SUM($BJ20,$BM20,$BP20)*'Other Data'!$H$83,0))","v":""},{"$f":"IF($AC20=\"\",\"\",IF(AND(ISNUMBER($BX20), ISNUMBER($AZ20),$AZ20>0),$BX20*'Other Data'!$G$84,0))","v":""},null,{"$f":"IF($C20=\"\",\"\",SUM('Ancillary Costs'!$N$91:$N$105)*(SUM($AR20,$AZ20,SUM($AS20,$BA20)*'Project Information'!$D$12)))","v":""},{"$f":"IF($C20=\"\",\"\",SUMIFS('Ancillary Costs'!$N$72:$N$86,'Ancillary Costs'!$FL$72:$FL$86,\"*xx\"&'Project Scope'!$C20&\"xx*\")*(SUM($AR20,$AZ20,SUM($AS20,$BA20)*'Project Information'!$D$12)))","v":""},{"$f":"IFERROR(IF($C20=\"\",\"\",SUMIFS('Ancillary Costs'!$N$8:$N$67,'Ancillary Costs'!$FL$8:$FL$67,\"*xx\"&'Project Scope'!C20&\"xx*\",'Ancillary Costs'!$I$8:$I$67,'Project Scope'!$AN20)*'Project Scope'!$AO20),0)","v":""},{"$f":"IFERROR(IF($C20=\"\",\"\",SUMIFS('Ancillary Costs'!$N$8:$N$67,'Ancillary Costs'!$FL$8:$FL$67,\"*xx\"&'Project Scope'!C20&\"xx*\",'Ancillary Costs'!$I$8:$I$67,'Project Scope'!$AW20)*'Project Scope'!$AX20),0)","v":""},{"$f":"IF($C20=\"\",\"\",IF(SUM($AR20,$AZ20,SUM($AS20,$BA20)*'Project Information'!$D$12)=0,0,SUM($BG20,(SUM($BE20:$BF20))*((SUM($AR20,(IF(ISNUMBER($AS20),$AS20,0)*'Project Information'!$D$12)))/SUM($AR20,$AZ20,SUM($AS20,$BA20)*'Project Information'!$D$12)))))","v":""},{"$f":"IF($C20=\"\",\"\",IF(SUM($AR20,$AZ20,SUM($AS20,$BA20)*'Project Information'!$D$12)=0,0,SUM($BH20,(SUM($BE20:$BF20))*((SUM($AZ20,(IF(ISNUMBER($BA20),$BA20,0)*'Project Information'!$D$12)))/SUM($AR20,$AZ20,SUM($AS20,$BA20)*'Project Information'!$D$12)))))","v":""},null,"","","",{"$f":"IF($C20=\"\",\"\",IF(OR($AS20=\"\",$CX20=\"b\"),0,$AS20*'Project Information'!$D$12))","v":""},{"$f":"IF($C20=\"\",\"\",IF(OR($BA20=\"\",$CX20=\"b\"),0,$BA20*'Project Information'!$D$12))","v":""},"","","","","",null,{"$f":"CBAT!$AB20","v":""},{"$f":"CBAT!$BZ20","v":""},0,null,"","",0,{"$f":"IF($Q20=\"\",\"\",IF(OR($CX20<>\"c\",SUM($BY$8:$BY$107)=0),0,ROUND(BW20*MIN('Other Data'!$G$84,'Other Data'!$H$84*IF('Project Information'!$F$10=\"X\",('Project Information'!$L$42-'Project Information'!$L$39),'Project Information'!$L$42)/SUMPRODUCT($BY$8:$BY$107,--($CX$8:$CX$107=\"c\"))),0)))","v":""},{"$f":"IF($AC20=\"\",\"\",IF(OR($CX20<>\"c\",SUM($BY$8:$BY$107)=0),0,ROUND(BX20*MIN('Other Data'!$G$84,'Other Data'!$H$84*IF('Project Information'!$F$10=\"X\",('Project Information'!$L$42-'Project Information'!$L$39),'Project Information'!$L$42)/SUMPRODUCT($BY$8:$BY$107,--($CX$8:$CX$107=\"c\"))),0)))","v":""},0,null,"","",{"$f":"IF($J20=\"\",\"\",VLOOKUP($J20,'TRM Data'!$R$4:$S$168,2,FALSE))","v":""},"","","",null,{"$f":"IF($CV20=0,\"\",CBAT!$DJ20)","v":""},null,null,1,1,0,1,0,null,{"$f":"IF(OR($CV20=0,ISBLANK('Project Information'!$D$44)),\"\",IF(AND($CV20=1,$CO20<1,$G20=\"yes\"),\"a\",IF($CO20<1,\"b\",\"c\")))","v":""}]
[0,14,null,null,null,null,null,{"$f":"IF($C21=\"\",\"\",IF(COUNTIF('Project Information'!$J$9:BG$9,$C21)<>1,\"\",INDEX('Project Information'!$J$8:$BG$8,1,MATCH($C21,'Project Information'!$J$9:BG$9,0))))","v":""},null,null,{"$f":"LOOKUP(2,1/(COUNTIF($K$7:K20,$Q$8:$Q$108)=0),$Q$8:$Q$108)","v":{"$error":"#N/A"}},{"$f":"IF(OR('Project Information'!$D$32=\"\",C21=\"\"),\"\",'Project Information'!$D$32)","v":""},{"$f":"IF($C21=\"\",\"\",IF(COUNTIF('Project Information'!$J$9:$BG$9,$C21)=1,HLOOKUP(C21,'Project Information'!$J$9:$BG$10,2,FALSE),0))","v":""},null,null,null,null,null,null,null,{"$f":"IF(Q21<>\"\",IF('Project Information'!$D$33=\"Small Business\",\"I\",\"P\")&VLOOKUP($Q21,'TRM Data'!$C$5:$N$201,COLUMN('TRM Data'!$E$2)-COLUMN('TRM Data'!$C$2)+1,FALSE)&IF($L21=\"Summer\",\"S\",IF($L21=\"Winter\",\"W\",\"Y\")),\"\")","v":""},{"$f":"IF(OR($F21=\"Controls\",$F21=\"\"),\"\",VLOOKUP($Q21,'TRM Data'!$C$5:$N$201,COLUMN('TRM Data'!$F$2)-COLUMN('TRM Data'!$C$2)+1,FALSE))","v":""},null,{"$f":"IF($R21=0,\"\",VLOOKUP($Q21,'TRM Data'!$C$5:$N$201,COLUMN('TRM Data'!$G$2)-COLUMN('TRM Data'!$C$2)+1,FALSE)*$R21)","v":""},null,{"$f":"IF($R21=0,\"\",VLOOKUP($Q21,'TRM Data'!$C$5:$N$201,COLUMN('TRM Data'!$I$2)-COLUMN('TRM Data'!$C$2)+1,FALSE)*$R21)","v":""},{"$f":"IF($Q21=\"\",\"\",IF('Project Information'!$D$33=\"Small Business\",'Project Scope'!$CA21,IF('Project Information'!$D$33=\"Pay for Performance\",'Project Scope'!$CD21,0)))","v":""},null,null,null,{"$f":"IF(AC21<>\"\",\"P\"&VLOOKUP($AC21,'TRM Data'!$C$5:$N$201,COLUMN('TRM Data'!$E$2)-COLUMN('TRM Data'!$C$2)+1,FALSE)&IF($L21=\"Summer\",\"S\",IF($L21=\"Winter\",\"W\",\"Y\")),\"\")","v":""},{"$f":"IF($AD21=0,\"\",VLOOKUP($AC21,'TRM Data'!$C$5:$N$201,COLUMN('TRM Data'!$G$2)-COLUMN('TRM Data'!$C$2)+1,FALSE)*$AD21)","v":""},null,{"$f":"IF($AD21=0,\"\",VLOOKUP($AC21,'TRM Data'!$C$5:$N$201,COLUMN('TRM Data'!$I$2)-COLUMN('TRM Data'!$C$2)+1,FALSE)*$AD21)","v":""},{"$f":"IF($AC21=\"\",\"\",IF('Project Information'!$D$33=\"Small Business\",'Project Scope'!$CB21,IF('Project Information'!$D$33=\"Pay for Performance\",'Project Scope'!$CE21,0)))","v":""},null,"",null,"","","","","","","",{"$f":"IF($Q21=\"\",\"\",IF(AND(ISNUMBER($BW21),ISNUMBER($AR21),$AR21>0),SUM($BL21,$BO21,$BI21)*'Other Data'!$H$83,0))","v":""},{"$f":"IF($Q21=\"\",\"\",IF(AND(ISNUMBER($BW21),ISNUMBER($AR21),$AR21>0),$BW21*'Other Data'!$G$84,0))","v":""},null,"","","","","",{"$f":"IF($AC21=\"\",\"\",IF(AND(ISNUMBER($BX21), ISNUMBER($AZ21),$AZ21>0),SUM($BJ21,$BM21,$BP21)*'Other Data'!$H$83,0))","v":""},{"$f":"IF($AC21=\"\",\"\",IF(AND(ISNUMBER($BX21), ISNUMBER($AZ21),$AZ21>0),$BX21*'Other Data'!$G$84,0))","v":""},null,{"$f":"IF($C21=\"\",\"\",SUM('Ancillary Costs'!$N$91:$N$105)*(SUM($AR21,$AZ21,SUM($AS21,$BA21)*'Project Information'!$D$12)))","v":""},{"$f":"IF($C21=\"\",\"\",SUMIFS('Ancillary Costs'!$N$72:$N$86,'Ancillary Costs'!$FL$72:$FL$86,\"*xx\"&'Project Scope'!$C21&\"xx*\")*(SUM($AR21,$AZ21,SUM($AS21,$BA21)*'Project Information'!$D$12)))","v":""},{"$f":"IFERROR(IF($C21=\"\",\"\",SUMIFS('Ancillary Costs'!$N$8:$N$67,'Ancillary Costs'!$FL$8:$FL$67,\"*xx\"&'Project Scope'!C21&\"xx*\",'Ancillary Costs'!$I$8:$I$67,'Project Scope'!$AN21)*'Project Scope'!$AO21),0)","v":""},{"$f":"IFERROR(IF($C21=\"\",\"\",SUMIFS('Ancillary Costs'!$N$8:$N$67,'Ancillary Costs'!$FL$8:$FL$67,\"*xx\"&'Project Scope'!C21&\"xx*\",'Ancillary Costs'!$I$8:$I$67,'Project Scope'!$AW21)*'Project Scope'!$AX21),0)","v":""},{"$f":"IF($C21=\"\",\"\",IF(SUM($AR21,$AZ21,SUM($AS21,$BA21)*'Project Information'!$D$12)=0,0,SUM($BG21,(SUM($BE21:$BF21))*((SUM($AR21,(IF(ISNUMBER($AS21),$AS21,0)*'Project Information'!$D$12)))/SUM($AR21,$AZ21,SUM($AS21,$BA21)*'Project Information'!$D$12)))))","v":""},{"$f":"IF($C21=\"\",\"\",IF(SUM($AR21,$AZ21,SUM($AS21,$BA21)*'Project Information'!$D$12)=0,0,SUM($BH21,(SUM($BE21:$BF21))*((SUM($AZ21,(IF(ISNUMBER($BA21),$BA21,0)*'Project Information'!$D$12)))/SUM($AR21,$AZ21,SUM($AS21,$BA21)*'Project Information'!$D$12)))))","v":""},null,"","","",{"$f":"IF($C21=\"\",\"\",IF(OR($AS21=\"\",$CX21=\"b\"),0,$AS21*'Project Information'!$D$12))","v":""},{"$f":"IF($C21=\"\",\"\",IF(OR($BA21=\"\",$CX21=\"b\"),0,$BA21*'Project Information'!$D$12))","v":""},"","","","","",null,{"$f":"CBAT!$AB21","v":""},{"$f":"CBAT!$BZ21","v":""},0,null,"","",0,{"$f":"IF($Q21=\"\",\"\",IF(OR($CX21<>\"c\",SUM($BY$8:$BY$107)=0),0,ROUND(BW21*MIN('Other Data'!$G$84,'Other Data'!$H$84*IF('Project Information'!$F$10=\"X\",('Project Information'!$L$42-'Project Information'!$L$39),'Project Information'!$L$42)/SUMPRODUCT($BY$8:$BY$107,--($CX$8:$CX$107=\"c\"))),0)))","v":""},{"$f":"IF($AC21=\"\",\"\",IF(OR($CX21<>\"c\",SUM($BY$8:$BY$107)=0),0,ROUND(BX21*MIN('Other Data'!$G$84,'Other Data'!$H$84*IF('Project Information'!$F$10=\"X\",('Project Information'!$L$42-'Project Information'!$L$39),'Project Information'!$L$42)/SUMPRODUCT($BY$8:$BY$107,--($CX$8:$CX$107=\"c\"))),0)))","v":""},0,null,"","",{"$f":"IF($J21=\"\",\"\",VLOOKUP($J21,'TRM Data'!$R$4:$S$168,2,FALSE))","v":""},"","","",null,{"$f":"IF($CV21=0,\"\",CBAT!$DJ21)","v":""},null,null,1,1,0,1,0,null,{"$f":"IF(OR($CV21=0,ISBLANK('Project Information'!$D$44)),\"\",IF(AND($CV21=1,$CO21<1,$G21=\"yes\"),\"a\",IF($CO21<1,\"b\",\"c\")))","v":""}]
[0,15,null,null,null,null,null,{"$f":"IF($C22=\"\",\"\",IF(COUNTIF('Project Information'!$J$9:BG$9,$C22)<>1,\"\",INDEX('Project Information'!$J$8:$BG$8,1,MATCH($C22,'Project Information'!$J$9:BG$9,0))))","v":""},null,null,{"$f":"LOOKUP(2,1/(COUNTIF($K$7:K21,$Q$8:$Q$108)=0),$Q$8:$Q$108)","v":{"$error":"#N/A"}},{"$f":"IF(OR('Project Information'!$D$32=\"\",C22=\"\"),\"\",'Project Information'!$D$32)","v":""},{"$f":"IF($C22=\"\",\"\",IF(COUNTIF('Project Information'!$J$9:$BG$9,$C22)=1,HLOOKUP(C22,'Project Information'!$J$9:$BG$10,2,FALSE),0))","v":""},null,null,null,null,null,null,null,{"$f":"IF(Q22<>\"\",IF('Project Information'!$D$33=\"Small Business\",\"I\",\"P\")&VLOOKUP($Q22,'TRM Data'!$C$5:$N$201,COLUMN('TRM Data'!$E$2)-COLUMN('TRM Data'!$C$2)+1,FALSE)&IF($L22=\"Summer\",\"S\",IF($L22=\"Winter\",\"W\",\"Y\")),\"\")","v":""},{"$f":"IF(OR($F22=\"Controls\",$F22=\"\"),\"\",VLOOKUP($Q22,'TRM Data'!$C$5:$N$201,COLUMN('TRM Data'!$F$2)-COLUMN('TRM Data'!$C$2)+1,FALSE))","v":""},null,{"$f":"IF($R22=0,\"\",VLOOKUP($Q22,'TRM Data'!$C$5:$N$201,COLUMN('TRM Data'!$G$2)-COLUMN('TRM Data'!$C$2)+1,FALSE)*$R22)","v":""},null,{"$f":"IF($R22=0,\"\",VLOOKUP($Q22,'TRM Data'!$C$5:$N$201,COLUMN('TRM Data'!$I$2)-COLUMN('TRM Data'!$C$2)+1,FALSE)*$R22)","v":""},{"$f":"IF($Q22=\"\",\"\",IF('Project Information'!$D$33=\"Small Business\",'Project Scope'!$CA22,IF('Project Information'!$D$33=\"Pay for Performance\",'Project Scope'!$CD22,0)))","v":""},null,null,null,{"$f":"IF(AC22<>\"\",\"P\"&VLOOKUP($AC22,'TRM Data'!$C$5:$N$201,COLUMN('TRM Data'!$E$2)-COLUMN('TRM Data'!$C$2)+1,FALSE)&IF($L22=\"Summer\",\"S\",IF($L22=\"Winter\",\"W\",\"Y\")),\"\")","v":""},{"$f":"IF($AD22=0,\"\",VLOOKUP($AC22,'TRM Data'!$C$5:$N$201,COLUMN('TRM Data'!$G$2)-COLUMN('TRM Data'!$C$2)+1,FALSE)*$AD22)","v":""},null,{"$f":"IF($AD22=0,\"\",VLOOKUP($AC22,'TRM Data'!$C$5:$N$201,COLUMN('TRM Data'!$I$2)-COLUMN('TRM Data'!$C$2)+1,FALSE)*$AD22)","v":""},{"$f":"IF($AC22=\"\",\"\",IF('Project Information'!$D$33=\"Small Business\",'Project Scope'!$CB22,IF('Project Information'!$D$33=\"Pay for Performance\",'Project Scope'!$CE22,0)))","v":""},null,"",null,"","","","","","","",{"$f":"IF($Q22=\"\",\"\",IF(AND(ISNUMBER($BW22),ISNUMBER($AR22),$AR22>0),SUM($BL22,$BO22,$BI22)*'Other Data'!$H$83,0))","v":""},{"$f":"IF($Q22=\"\",\"\",IF(AND(ISNUMBER($BW22),ISNUMBER($AR22),$AR22>0),$BW22*'Other Data'!$G$84,0))","v":""},null,"","","","","",{"$f":"IF($AC22=\"\",\"\",IF(AND(ISNUMBER($BX22), ISNUMBER($AZ22),$AZ22>0),SUM($BJ22,$BM22,$BP22)*'Other Data'!$H$83,0))","v":""},{"$f":"IF($AC22=\"\",\"\",IF(AND(ISNUMBER($BX22), ISNUMBER($AZ22),$AZ22>0),$BX22*'Other Data'!$G$84,0))","v":""},null,{"$f":"IF($C22=\"\",\"\",SUM('Ancillary Costs'!$N$91:$N$105)*(SUM($AR22,$AZ22,SUM($AS22,$BA22)*'Project Information'!$D$12)))","v":""},{"$f":"IF($C22=\"\",\"\",SUMIFS('Ancillary Costs'!$N$72:$N$86,'Ancillary Costs'!$FL$72:$FL$86,\"*xx\"&'Project Scope'!$C22&\"xx*\")*(SUM($AR22,$AZ22,SUM($AS22,$BA22)*'Project Information'!$D$12)))","v":""},{"$f":"IFERROR(IF($C22=\"\",\"\",SUMIFS('Ancillary Costs'!$N$8:$N$67,'Ancillary Costs'!$FL$8:$FL$67,\"*xx\"&'Project Scope'!C22&\"xx*\",'Ancillary Costs'!$I$8:$I$67,'Project Scope'!$AN22)*'Project Scope'!$AO22),0)","v":""},{"$f":"IFERROR(IF($C22=\"\",\"\",SUMIFS('Ancillary Costs'!$N$8:$N$67,'Ancillary Costs'!$FL$8:$FL$67,\"*xx\"&'Project Scope'!C22&\"xx*\",'Ancillary Costs'!$I$8:$I$67,'Project Scope'!$AW22)*'Project Scope'!$AX22),0)","v":""},{"$f":"IF($C22=\"\",\"\",IF(SUM($AR22,$AZ22,SUM($AS22,$BA22)*'Project Information'!$D$12)=0,0,SUM($BG22,(SUM($BE22:$BF22))*((SUM($AR22,(IF(ISNUMBER($AS22),$AS22,0)*'Project Information'!$D$12)))/SUM($AR22,$AZ22,SUM($AS22,$BA22)*'Project Information'!$D$12)))))","v":""},{"$f":"IF($C22=\"\",\"\",IF(SUM($AR22,$AZ22,SUM($AS22,$BA22)*'Project Information'!$D$12)=0,0,SUM($BH22,(SUM($BE22:$BF22))*((SUM($AZ22,(IF(ISNUMBER($BA22),$BA22,0)*'Project Information'!$D$12)))/SUM($AR22,$AZ22,SUM($AS22,$BA22)*'Project Information'!$D$12)))))","v":""},null,"","","",{"$f":"IF($C22=\"\",\"\",IF(OR($AS22=\"\",$CX22=\"b\"),0,$AS22*'Project Information'!$D$12))","v":""},{"$f":"IF($C22=\"\",\"\",IF(OR($BA22=\"\",$CX22=\"b\"),0,$BA22*'Project Information'!$D$12))","v":""},"","","","","",null,{"$f":"CBAT!$AB22","v":""},{"$f":"CBAT!$BZ22","v":""},0,null,"","",0,{"$f":"IF($Q22=\"\",\"\",IF(OR($CX22<>\"c\",SUM($BY$8:$BY$107)=0),0,ROUND(BW22*MIN('Other Data'!$G$84,'Other Data'!$H$84*IF('Project Information'!$F$10=\"X\",('Project Information'!$L$42-'Project Information'!$L$39),'Project Information'!$L$42)/SUMPRODUCT($BY$8:$BY$107,--($CX$8:$CX$107=\"c\"))),0)))","v":""},{"$f":"IF($AC22=\"\",\"\",IF(OR($CX22<>\"c\",SUM($BY$8:$BY$107)=0),0,ROUND(BX22*MIN('Other Data'!$G$84,'Other Data'!$H$84*IF('Project Information'!$F$10=\"X\",('Project Information'!$L$42-'Project Information'!$L$39),'Project Information'!$L$42)/SUMPRODUCT($BY$8:$BY$107,--($CX$8:$CX$107=\"c\"))),0)))","v":""},0,null,"","",{"$f":"IF($J22=\"\",\"\",VLOOKUP($J22,'TRM Data'!$R$4:$S$168,2,FALSE))","v":""},"","","",null,{"$f":"IF($CV22=0,\"\",CBAT!$DJ22)","v":""},null,null,1,1,0,1,0,null,{"$f":"IF(OR($CV22=0,ISBLANK('Project Information'!$D$44)),\"\",IF(AND($CV22=1,$CO22<1,$G22=\"yes\"),\"a\",IF($CO22<1,\"b\",\"c\")))","v":""}]
[0,16,null,null,null,null,null,{"$f":"IF($C23=\"\",\"\",IF(COUNTIF('Project Information'!$J$9:BG$9,$C23)<>1,\"\",INDEX('Project Information'!$J$8:$BG$8,1,MATCH($C23,'Project Information'!$J$9:BG$9,0))))","v":""},null,null,{"$f":"LOOKUP(2,1/(COUNTIF($K$7:K22,$Q$8:$Q$108)=0),$Q$8:$Q$108)","v":{"$error":"#N/A"}},{"$f":"IF(OR('Project Information'!$D$32=\"\",C23=\"\"),\"\",'Project Information'!$D$32)","v":""},{"$f":"IF($C23=\"\",\"\",IF(COUNTIF('Project Information'!$J$9:$BG$9,$C23)=1,HLOOKUP(C23,'Project Information'!$J$9:$BG$10,2,FALSE),0))","v":""},null,null,null,null,null,null,null,{"$f":"IF(Q23<>\"\",IF('Project Information'!$D$33=\"Small Business\",\"I\",\"P\")&VLOOKUP($Q23,'TRM Data'!$C$5:$N$201,COLUMN('TRM Data'!$E$2)-COLUMN('TRM Data'!$C$2)+1,FALSE)&IF($L23=\"Summer\",\"S\",IF($L23=\"Winter\",\"W\",\"Y\")),\"\")","v":""},{"$f":"IF(OR($F23=\"Controls\",$F23=\"\"),\"\",VLOOKUP($Q23,'TRM Data'!$C$5:$N$201,COLUMN('TRM Data'!$F$2)-COLUMN('TRM Data'!$C$2)+1,FALSE))","v":""},null,{"$f":"IF($R23=0,\"\",VLOOKUP($Q23,'TRM Data'!$C$5:$N$201,COLUMN('TRM Data'!$G$2)-COLUMN('TRM Data'!$C$2)+1,FALSE)*$R23)","v":""},null,{"$f":"IF($R23=0,\"\",VLOOKUP($Q23,'TRM Data'!$C$5:$N$201,COLUMN('TRM Data'!$I$2)-COLUMN('TRM Data'!$C$2)+1,FALSE)*$R23)","v":""},{"$f":"IF($Q23=\"\",\"\",IF('Project Information'!$D$33=\"Small Business\",'Project Scope'!$CA23,IF('Project Information'!$D$33=\"Pay for Performance\",'Project Scope'!$CD23,0)))","v":""},null,null,null,{"$f":"IF(AC23<>\"\",\"P\"&VLOOKUP($AC23,'TRM Data'!$C$5:$N$201,COLUMN('TRM Data'!$E$2)-COLUMN('TRM Data'!$C$2)+1,FALSE)&IF($L23=\"Summer\",\"S\",IF($L23=\"Winter\",\"W\",\"Y\")),\"\")","v":""},{"$f":"IF($AD23=0,\"\",VLOOKUP($AC23,'TRM Data'!$C$5:$N$201,COLUMN('TRM Data'!$G$2)-COLUMN('TRM Data'!$C$2)+1,FALSE)*$AD23)","v":""},null,{"$f":"IF($AD23=0,\"\",VLOOKUP($AC23,'TRM Data'!$C$5:$N$201,COLUMN('TRM Data'!$I$2)-COLUMN('TRM Data'!$C$2)+1,FALSE)*$AD23)","v":""},{"$f":"IF($AC23=\"\",\"\",IF('Project Information'!$D$33=\"Small Business\",'Project Scope'!$CB23,IF('Project Information'!$D$33=\"Pay for Performance\",'Project Scope'!$CE23,0)))","v":""},null,"",null,"","","","","","","",{"$f":"IF($Q23=\"\",\"\",IF(AND(ISNUMBER($BW23),ISNUMBER($AR23),$AR23>0),SUM($BL23,$BO23,$BI23)*'Other Data'!$H$83,0))","v":""},{"$f":"IF($Q23=\"\",\"\",IF(AND(ISNUMBER($BW23),ISNUMBER($AR23),$AR23>0),$BW23*'Other Data'!$G$84,0))","v":""},null,"","","","","",{"$f":"IF($AC23=\"\",\"\",IF(AND(ISNUMBER($BX23), ISNUMBER($AZ23),$AZ23>0),SUM($BJ23,$BM23,$BP23)*'Other Data'!$H$83,0))","v":""},{"$f":"IF($AC23=\"\",\"\",IF(AND(ISNUMBER($BX23), ISNUMBER($AZ23),$AZ23>0),$BX23*'Other Data'!$G$84,0))","v":""},null,{"$f":"IF($C23=\"\",\"\",SUM('Ancillary Costs'!$N$91:$N$105)*(SUM($AR23,$AZ23,SUM($AS23,$BA23)*'Project Information'!$D$12)))","v":""},{"$f":"IF($C23=\"\",\"\",SUMIFS('Ancillary Costs'!$N$72:$N$86,'Ancillary Costs'!$FL$72:$FL$86,\"*xx\"&'Project Scope'!$C23&\"xx*\")*(SUM($AR23,$AZ23,SUM($AS23,$BA23)*'Project Information'!$D$12)))","v":""},{"$f":"IFERROR(IF($C23=\"\",\"\",SUMIFS('Ancillary Costs'!$N$8:$N$67,'Ancillary Costs'!$FL$8:$FL$67,\"*xx\"&'Project Scope'!C23&\"xx*\",'Ancillary Costs'!$I$8:$I$67,'Project Scope'!$AN23)*'Project Scope'!$AO23),0)","v":""},{"$f":"IFERROR(IF($C23=\"\",\"\",SUMIFS('Ancillary Costs'!$N$8:$N$67,'Ancillary Costs'!$FL$8:$FL$67,\"*xx\"&'Project Scope'!C23&\"xx*\",'Ancillary Costs'!$I$8:$I$67,'Project Scope'!$AW23)*'Project Scope'!$AX23),0)","v":""},{"$f":"IF($C23=\"\",\"\",IF(SUM($AR23,$AZ23,SUM($AS23,$BA23)*'Project Information'!$D$12)=0,0,SUM($BG23,(SUM($BE23:$BF23))*((SUM($AR23,(IF(ISNUMBER($AS23),$AS23,0)*'Project Information'!$D$12)))/SUM($AR23,$AZ23,SUM($AS23,$BA23)*'Project Information'!$D$12)))))","v":""},{"$f":"IF($C23=\"\",\"\",IF(SUM($AR23,$AZ23,SUM($AS23,$BA23)*'Project Information'!$D$12)=0,0,SUM($BH23,(SUM($BE23:$BF23))*((SUM($AZ23,(IF(ISNUMBER($BA23),$BA23,0)*'Project Information'!$D$12)))/SUM($AR23,$AZ23,SUM($AS23,$BA23)*'Project Information'!$D$12)))))","v":""},null,"","","",{"$f":"IF($C23=\"\",\"\",IF(OR($AS23=\"\",$CX23=\"b\"),0,$AS23*'Project Information'!$D$12))","v":""},{"$f":"IF($C23=\"\",\"\",IF(OR($BA23=\"\",$CX23=\"b\"),0,$BA23*'Project Information'!$D$12))","v":""},"","","","","",null,{"$f":"CBAT!$AB23","v":""},{"$f":"CBAT!$BZ23","v":""},0,null,"","",0,{"$f":"IF($Q23=\"\",\"\",IF(OR($CX23<>\"c\",SUM($BY$8:$BY$107)=0),0,ROUND(BW23*MIN('Other Data'!$G$84,'Other Data'!$H$84*IF('Project Information'!$F$10=\"X\",('Project Information'!$L$42-'Project Information'!$L$39),'Project Information'!$L$42)/SUMPRODUCT($BY$8:$BY$107,--($CX$8:$CX$107=\"c\"))),0)))","v":""},{"$f":"IF($AC23=\"\",\"\",IF(OR($CX23<>\"c\",SUM($BY$8:$BY$107)=0),0,ROUND(BX23*MIN('Other Data'!$G$84,'Other Data'!$H$84*IF('Project Information'!$F$10=\"X\",('Project Information'!$L$42-'Project Information'!$L$39),'Project Information'!$L$42)/SUMPRODUCT($BY$8:$BY$107,--($CX$8:$CX$107=\"c\"))),0)))","v":""},0,null,"","",{"$f":"IF($J23=\"\",\"\",VLOOKUP($J23,'TRM Data'!$R$4:$S$168,2,FALSE))","v":""},"","","",null,{"$f":"IF($CV23=0,\"\",CBAT!$DJ23)","v":""},null,null,1,1,0,1,0,null,{"$f":"IF(OR($CV23=0,ISBLANK('Project Information'!$D$44)),\"\",IF(AND($CV23=1,$CO23<1,$G23=\"yes\"),\"a\",IF($CO23<1,\"b\",\"c\")))","v":""}]
[0,17,null,null,null,null,null,{"$f":"IF($C24=\"\",\"\",IF(COUNTIF('Project Information'!$J$9:BG$9,$C24)<>1,\"\",INDEX('Project Information'!$J$8:$BG$8,1,MATCH($C24,'Project Information'!$J$9:BG$9,0))))","v":""},null,null,{"$f":"LOOKUP(2,1/(COUNTIF($K$7:K23,$Q$8:$Q$108)=0),$Q$8:$Q$108)","v":{"$error":"#N/A"}},{"$f":"IF(OR('Project Information'!$D$32=\"\",C24=\"\"),\"\",'Project Information'!$D$32)","v":""},{"$f":"IF($C24=\"\",\"\",IF(COUNTIF('Project Information'!$J$9:$BG$9,$C24)=1,HLOOKUP(C24,'Project Information'!$J$9:$BG$10,2,FALSE),0))","v":""},null,null,null,null,null,null,null,{"$f":"IF(Q24<>\"\",IF('Project Information'!$D$33=\"Small Business\",\"I\",\"P\")&VLOOKUP($Q24,'TRM Data'!$C$5:$N$201,COLUMN('TRM Data'!$E$2)-COLUMN('TRM Data'!$C$2)+1,FALSE)&IF($L24=\"Summer\",\"S\",IF($L24=\"Winter\",\"W\",\"Y\")),\"\")","v":""},{"$f":"IF(OR($F24=\"Controls\",$F24=\"\"),\"\",VLOOKUP($Q24,'TRM Data'!$C$5:$N$201,COLUMN('TRM Data'!$F$2)-COLUMN('TRM Data'!$C$2)+1,FALSE))","v":""},null,{"$f":"IF($R24=0,\"\",VLOOKUP($Q24,'TRM Data'!$C$5:$N$201,COLUMN('TRM Data'!$G$2)-COLUMN('TRM Data'!$C$2)+1,FALSE)*$R24)","v":""},null,{"$f":"IF($R24=0,\"\",VLOOKUP($Q24,'TRM Data'!$C$5:$N$201,COLUMN('TRM Data'!$I$2)-COLUMN('TRM Data'!$C$2)+1,FALSE)*$R24)","v":""},{"$f":"IF($Q24=\"\",\"\",IF('Project Information'!$D$33=\"Small Business\",'Project Scope'!$CA24,IF('Project Information'!$D$33=\"Pay for Performance\",'Project Scope'!$CD24,0)))","v":""},null,null,null,{"$f":"IF(AC24<>\"\",\"P\"&VLOOKUP($AC24,'TRM Data'!$C$5:$N$201,COLUMN('TRM Data'!$E$2)-COLUMN('TRM Data'!$C$2)+1,FALSE)&IF($L24=\"Summer\",\"S\",IF($L24=\"Winter\",\"W\",\"Y\")),\"\")","v":""},{"$f":"IF($AD24=0,\"\",VLOOKUP($AC24,'TRM Data'!$C$5:$N$201,COLUMN('TRM Data'!$G$2)-COLUMN('TRM Data'!$C$2)+1,FALSE)*$AD24)","v":""},null,{"$f":"IF($AD24=0,\"\",VLOOKUP($AC24,'TRM Data'!$C$5:$N$201,COLUMN('TRM Data'!$I$2)-COLUMN('TRM Data'!$C$2)+1,FALSE)*$AD24)","v":""},{"$f":"IF($AC24=\"\",\"\",IF('Project Information'!$D$33=\"Small Business\",'Project Scope'!$CB24,IF('Project Information'!$D$33=\"Pay for Performance\",'Project Scope'!$CE24,0)))","v":""},null,"",null,"","","","","","","",{"$f":"IF($Q24=\"\",\"\",IF(AND(ISNUMBER($BW24),ISNUMBER($AR24),$AR24>0),SUM($BL24,$BO24,$BI24)*'Other Data'!$H$83,0))","v":""},{"$f":"IF($Q24=\"\",\"\",IF(AND(ISNUMBER($BW24),ISNUMBER($AR24),$AR24>0),$BW24*'Other Data'!$G$84,0))","v":""},null,"","","","","",{"$f":"IF($AC24=\"\",\"\",IF(AND(ISNUMBER($BX24), ISNUMBER($AZ24),$AZ24>0),SUM($BJ24,$BM24,$BP24)*'Other Data'!$H$83,0))","v":""},{"$f":"IF($AC24=\"\",\"\",IF(AND(ISNUMBER($BX24), ISNUMBER($AZ24),$AZ24>0),$BX24*'Other Data'!$G$84,0))","v":""},null,{"$f":"IF($C24=\"\",\"\",SUM('Ancillary Costs'!$N$91:$N$105)*(SUM($AR24,$AZ24,SUM($AS24,$BA24)*'Project Information'!$D$12)))","v":""},{"$f":"IF($C24=\"\",\"\",SUMIFS('Ancillary Costs'!$N$72:$N$86,'Ancillary Costs'!$FL$72:$FL$86,\"*xx\"&'Project Scope'!$C24&\"xx*\")*(SUM($AR24,$AZ24,SUM($AS24,$BA24)*'Project Information'!$D$12)))","v":""},{"$f":"IFERROR(IF($C24=\"\",\"\",SUMIFS('Ancillary Costs'!$N$8:$N$67,'Ancillary Costs'!$FL$8:$FL$67,\"*xx\"&'Project Scope'!C24&\"xx*\",'Ancillary Costs'!$I$8:$I$67,'Project Scope'!$AN24)*'Project Scope'!$AO24),0)","v":""},{"$f":"IFERROR(IF($C24=\"\",\"\",SUMIFS('Ancillary Costs'!$N$8:$N$67,'Ancillary Costs'!$FL$8:$FL$67,\"*xx\"&'Project Scope'!C24&\"xx*\",'Ancillary Costs'!$I$8:$I$67,'Project Scope'!$AW24)*'Project Scope'!$AX24),0)","v":""},{"$f":"IF($C24=\"\",\"\",IF(SUM($AR24,$AZ24,SUM($AS24,$BA24)*'Project Information'!$D$12)=0,0,SUM($BG24,(SUM($BE24:$BF24))*((SUM($AR24,(IF(ISNUMBER($AS24),$AS24,0)*'Project Information'!$D$12)))/SUM($AR24,$AZ24,SUM($AS24,$BA24)*'Project Information'!$D$12)))))","v":""},{"$f":"IF($C24=\"\",\"\",IF(SUM($AR24,$AZ24,SUM($AS24,$BA24)*'Project Information'!$D$12)=0,0,SUM($BH24,(SUM($BE24:$BF24))*((SUM($AZ24,(IF(ISNUMBER($BA24),$BA24,0)*'Project Information'!$D$12)))/SUM($AR24,$AZ24,SUM($AS24,$BA24)*'Project Information'!$D$12)))))","v":""},null,"","","",{"$f":"IF($C24=\"\",\"\",IF(OR($AS24=\"\",$CX24=\"b\"),0,$AS24*'Project Information'!$D$12))","v":""},{"$f":"IF($C24=\"\",\"\",IF(OR($BA24=\"\",$CX24=\"b\"),0,$BA24*'Project Information'!$D$12))","v":""},"","","","","",null,{"$f":"CBAT!$AB24","v":""},{"$f":"CBAT!$BZ24","v":""},0,null,"","",0,{"$f":"IF($Q24=\"\",\"\",IF(OR($CX24<>\"c\",SUM($BY$8:$BY$107)=0),0,ROUND(BW24*MIN('Other Data'!$G$84,'Other Data'!$H$84*IF('Project Information'!$F$10=\"X\",('Project Information'!$L$42-'Project Information'!$L$39),'Project Information'!$L$42)/SUMPRODUCT($BY$8:$BY$107,--($CX$8:$CX$107=\"c\"))),0)))","v":""},{"$f":"IF($AC24=\"\",\"\",IF(OR($CX24<>\"c\",SUM($BY$8:$BY$107)=0),0,ROUND(BX24*MIN('Other Data'!$G$84,'Other Data'!$H$84*IF('Project Information'!$F$10=\"X\",('Project Information'!$L$42-'Project Information'!$L$39),'Project Information'!$L$42)/SUMPRODUCT($BY$8:$BY$107,--($CX$8:$CX$107=\"c\"))),0)))","v":""},0,null,"","",{"$f":"IF($J24=\"\",\"\",VLOOKUP($J24,'TRM Data'!$R$4:$S$168,2,FALSE))","v":""},"","","",null,{"$f":"IF($CV24=0,\"\",CBAT!$DJ24)","v":""},null,null,1,1,0,1,0,null,{"$f":"IF(OR($CV24=0,ISBLANK('Project Information'!$D$44)),\"\",IF(AND($CV24=1,$CO24<1,$G24=\"yes\"),\"a\",IF($CO24<1,\"b\",\"c\")))","v":""}]
[0,18,null,null,null,null,null,{"$f":"IF($C25=\"\",\"\",IF(COUNTIF('Project Information'!$J$9:BG$9,$C25)<>1,\"\",INDEX('Project Information'!$J$8:$BG$8,1,MATCH($C25,'Project Information'!$J$9:BG$9,0))))","v":""},null,null,{"$f":"LOOKUP(2,1/(COUNTIF($K$7:K24,$Q$8:$Q$108)=0),$Q$8:$Q$108)","v":{"$error":"#N/A"}},{"$f":"IF(OR('Project Information'!$D$32=\"\",C25=\"\"),\"\",'Project Information'!$D$32)","v":""},{"$f":"IF($C25=\"\",\"\",IF(COUNTIF('Project Information'!$J$9:$BG$9,$C25)=1,HLOOKUP(C25,'Project Information'!$J$9:$BG$10,2,FALSE),0))","v":""},null,null,null,null,null,null,null,{"$f":"IF(Q25<>\"\",IF('Project Information'!$D$33=\"Small Business\",\"I\",\"P\")&VLOOKUP($Q25,'TRM Data'!$C$5:$N$201,COLUMN('TRM Data'!$E$2)-COLUMN('TRM Data'!$C$2)+1,FALSE)&IF($L25=\"Summer\",\"S\",IF($L25=\"Winter\",\"W\",\"Y\")),\"\")","v":""},{"$f":"IF(OR($F25=\"Controls\",$F25=\"\"),\"\",VLOOKUP($Q25,'TRM Data'!$C$5:$N$201,COLUMN('TRM Data'!$F$2)-COLUMN('TRM Data'!$C$2)+1,FALSE))","v":""},null,{"$f":"IF($R25=0,\"\",VLOOKUP($Q25,'TRM Data'!$C$5:$N$201,COLUMN('TRM Data'!$G$2)-COLUMN('TRM Data'!$C$2)+1,FALSE)*$R25)","v":""},null,{"$f":"IF($R25=0,\"\",VLOOKUP($Q25,'TRM Data'!$C$5:$N$201,COLUMN('TRM Data'!$I$2)-COLUMN('TRM Data'!$C$2)+1,FALSE)*$R25)","v":""},{"$f":"IF($Q25=\"\",\"\",IF('Project Information'!$D$33=\"Small Business\",'Project Scope'!$CA25,IF('Project Information'!$D$33=\"Pay for Performance\",'Project Scope'!$CD25,0)))","v":""},null,null,null,{"$f":"IF(AC25<>\"\",\"P\"&VLOOKUP($AC25,'TRM Data'!$C$5:$N$201,COLUMN('TRM Data'!$E$2)-COLUMN('TRM Data'!$C$2)+1,FALSE)&IF($L25=\"Summer\",\"S\",IF($L25=\"Winter\",\"W\",\"Y\")),\"\")","v":""},{"$f":"IF($AD25=0,\"\",VLOOKUP($AC25,'TRM Data'!$C$5:$N$201,COLUMN('TRM Data'!$G$2)-COLUMN('TRM Data'!$C$2)+1,FALSE)*$AD25)","v":""},null,{"$f":"IF($AD25=0,\"\",VLOOKUP($AC25,'TRM Data'!$C$5:$N$201,COLUMN('TRM Data'!$I$2)-COLUMN('TRM Data'!$C$2)+1,FALSE)*$AD25)","v":""},{"$f":"IF($AC25=\"\",\"\",IF('Project Information'!$D$33=\"Small Business\",'Project Scope'!$CB25,IF('Project Information'!$D$33=\"Pay for Performance\",'Project Scope'!$CE25,0)))","v":""},null,"",null,"","","","","","","",{"$f":"IF($Q25=\"\",\"\",IF(AND(ISNUMBER($BW25),ISNUMBER($AR25),$AR25>0),SUM($BL25,$BO25,$BI25)*'Other Data'!$H$83,0))","v":""},{"$f":"IF($Q25=\"\",\"\",IF(AND(ISNUMBER($BW25),ISNUMBER($AR25),$AR25>0),$BW25*'Other Data'!$G$84,0))","v":""},null,"","","","","",{"$f":"IF($AC25=\"\",\"\",IF(AND(ISNUMBER($BX25), ISNUMBER($AZ25),$AZ25>0),SUM($BJ25,$BM25,$BP25)*'Other Data'!$H$83,0))","v":""},{"$f":"IF($AC25=\"\",\"\",IF(AND(ISNUMBER($BX25), ISNUMBER($AZ25),$AZ25>0),$BX25*'Other Data'!$G$84,0))","v":""},null,{"$f":"IF($C25=\"\",\"\",SUM('Ancillary Costs'!$N$91:$N$105)*(SUM($AR25,$AZ25,SUM($AS25,$BA25)*'Project Information'!$D$12)))","v":""},{"$f":"IF($C25=\"\",\"\",SUMIFS('Ancillary Costs'!$N$72:$N$86,'Ancillary Costs'!$FL$72:$FL$86,\"*xx\"&'Project Scope'!$C25&\"xx*\")*(SUM($AR25,$AZ25,SUM($AS25,$BA25)*'Project Information'!$D$12)))","v":""},{"$f":"IFERROR(IF($C25=\"\",\"\",SUMIFS('Ancillary Costs'!$N$8:$N$67,'Ancillary Costs'!$FL$8:$FL$67,\"*xx\"&'Project Scope'!C25&\"xx*\",'Ancillary Costs'!$I$8:$I$67,'Project Scope'!$AN25)*'Project Scope'!$AO25),0)","v":""},{"$f":"IFERROR(IF($C25=\"\",\"\",SUMIFS('Ancillary Costs'!$N$8:$N$67,'Ancillary Costs'!$FL$8:$FL$67,\"*xx\"&'Project Scope'!C25&\"xx*\",'Ancillary Costs'!$I$8:$I$67,'Project Scope'!$AW25)*'Project Scope'!$AX25),0)","v":""},{"$f":"IF($C25=\"\",\"\",IF(SUM($AR25,$AZ25,SUM($AS25,$BA25)*'Project Information'!$D$12)=0,0,SUM($BG25,(SUM($BE25:$BF25))*((SUM($AR25,(IF(ISNUMBER($AS25),$AS25,0)*'Project Information'!$D$12)))/SUM($AR25,$AZ25,SUM($AS25,$BA25)*'Project Information'!$D$12)))))","v":""},{"$f":"IF($C25=\"\",\"\",IF(SUM($AR25,$AZ25,SUM($AS25,$BA25)*'Project Information'!$D$12)=0,0,SUM($BH25,(SUM($BE25:$BF25))*((SUM($AZ25,(IF(ISNUMBER($BA25),$BA25,0)*'Project Information'!$D$12)))/SUM($AR25,$AZ25,SUM($AS25,$BA25)*'Project Information'!$D$12)))))","v":""},null,"","","",{"$f":"IF($C25=\"\",\"\",IF(OR($AS25=\"\",$CX25=\"b\"),0,$AS25*'Project Information'!$D$12))","v":""},{"$f":"IF($C25=\"\",\"\",IF(OR($BA25=\"\",$CX25=\"b\"),0,$BA25*'Project Information'!$D$12))","v":""},"","","","","",null,{"$f":"CBAT!$AB25","v":""},{"$f":"CBAT!$BZ25","v":""},0,null,"","",0,{"$f":"IF($Q25=\"\",\"\",IF(OR($CX25<>\"c\",SUM($BY$8:$BY$107)=0),0,ROUND(BW25*MIN('Other Data'!$G$84,'Other Data'!$H$84*IF('Project Information'!$F$10=\"X\",('Project Information'!$L$42-'Project Information'!$L$39),'Project Information'!$L$42)/SUMPRODUCT($BY$8:$BY$107,--($CX$8:$CX$107=\"c\"))),0)))","v":""},{"$f":"IF($AC25=\"\",\"\",IF(OR($CX25<>\"c\",SUM($BY$8:$BY$107)=0),0,ROUND(BX25*MIN('Other Data'!$G$84,'Other Data'!$H$84*IF('Project Information'!$F$10=\"X\",('Project Information'!$L$42-'Project Information'!$L$39),'Project Information'!$L$42)/SUMPRODUCT($BY$8:$BY$107,--($CX$8:$CX$107=\"c\"))),0)))","v":""},0,null,"","",{"$f":"IF($J25=\"\",\"\",VLOOKUP($J25,'TRM Data'!$R$4:$S$168,2,FALSE))","v":""},"","","",null,{"$f":"IF($CV25=0,\"\",CBAT!$DJ25)","v":""},null,null,1,1,0,1,0,null,{"$f":"IF(OR($CV25=0,ISBLANK('Project Information'!$D$44)),\"\",IF(AND($CV25=1,$CO25<1,$G25=\"yes\"),\"a\",IF($CO25<1,\"b\",\"c\")))","v":""}]
[0,19,null,null,null,null,null,{"$f":"IF($C26=\"\",\"\",IF(COUNTIF('Project Information'!$J$9:BG$9,$C26)<>1,\"\",INDEX('Project Information'!$J$8:$BG$8,1,MATCH($C26,'Project Information'!$J$9:BG$9,0))))","v":""},null,null,{"$f":"LOOKUP(2,1/(COUNTIF($K$7:K25,$Q$8:$Q$108)=0),$Q$8:$Q$108)","v":{"$error":"#N/A"}},{"$f":"IF(OR('Project Information'!$D$32=\"\",C26=\"\"),\"\",'Project Information'!$D$32)","v":""},{"$f":"IF($C26=\"\",\"\",IF(COUNTIF('Project Information'!$J$9:$BG$9,$C26)=1,HLOOKUP(C26,'Project Information'!$J$9:$BG$10,2,FALSE),0))","v":""},null,null,null,null,null,null,null,{"$f":"IF(Q26<>\"\",IF('Project Information'!$D$33=\"Small Business\",\"I\",\"P\")&VLOOKUP($Q26,'TRM Data'!$C$5:$N$201,COLUMN('TRM Data'!$E$2)-COLUMN('TRM Data'!$C$2)+1,FALSE)&IF($L26=\"Summer\",\"S\",IF($L26=\"Winter\",\"W\",\"Y\")),\"\")","v":""},{"$f":"IF(OR($F26=\"Controls\",$F26=\"\"),\"\",VLOOKUP($Q26,'TRM Data'!$C$5:$N$201,COLUMN('TRM Data'!$F$2)-COLUMN('TRM Data'!$C$2)+1,FALSE))","v":""},null,{"$f":"IF($R26=0,\"\",VLOOKUP($Q26,'TRM Data'!$C$5:$N$201,COLUMN('TRM Data'!$G$2)-COLUMN('TRM Data'!$C$2)+1,FALSE)*$R26)","v":""},null,{"$f":"IF($R26=0,\"\",VLOOKUP($Q26,'TRM Data'!$C$5:$N$201,COLUMN('TRM Data'!$I$2)-COLUMN('TRM Data'!$C$2)+1,FALSE)*$R26)","v":""},{"$f":"IF($Q26=\"\",\"\",IF('Project Information'!$D$33=\"Small Business\",'Project Scope'!$CA26,IF('Project Information'!$D$33=\"Pay for Performance\",'Project Scope'!$CD26,0)))","v":""},null,null,null,{"$f":"IF(AC26<>\"\",\"P\"&VLOOKUP($AC26,'TRM Data'!$C$5:$N$201,COLUMN('TRM Data'!$E$2)-COLUMN('TRM Data'!$C$2)+1,FALSE)&IF($L26=\"Summer\",\"S\",IF($L26=\"Winter\",\"W\",\"Y\")),\"\")","v":""},{"$f":"IF($AD26=0,\"\",VLOOKUP($AC26,'TRM Data'!$C$5:$N$201,COLUMN('TRM Data'!$G$2)-COLUMN('TRM Data'!$C$2)+1,FALSE)*$AD26)","v":""},null,{"$f":"IF($AD26=0,\"\",VLOOKUP($AC26,'TRM Data'!$C$5:$N$201,COLUMN('TRM Data'!$I$2)-COLUMN('TRM Data'!$C$2)+1,FALSE)*$AD26)","v":""},{"$f":"IF($AC26=\"\",\"\",IF('Project Information'!$D$33=\"Small Business\",'Project Scope'!$CB26,IF('Project Information'!$D$33=\"Pay for Performance\",'Project Scope'!$CE26,0)))","v":""},null,"",null,"","","","","","","",{"$f":"IF($Q26=\"\",\"\",IF(AND(ISNUMBER($BW26),ISNUMBER($AR26),$AR26>0),SUM($BL26,$BO26,$BI26)*'Other Data'!$H$83,0))","v":""},{"$f":"IF($Q26=\"\",\"\",IF(AND(ISNUMBER($BW26),ISNUMBER($AR26),$AR26>0),$BW26*'Other Data'!$G$84,0))","v":""},null,"","","","","",{"$f":"IF($AC26=\"\",\"\",IF(AND(ISNUMBER($BX26), ISNUMBER($AZ26),$AZ26>0),SUM($BJ26,$BM26,$BP26)*'Other Data'!$H$83,0))","v":""},{"$f":"IF($AC26=\"\",\"\",IF(AND(ISNUMBER($BX26), ISNUMBER($AZ26),$AZ26>0),$BX26*'Other Data'!$G$84,0))","v":""},null,{"$f":"IF($C26=\"\",\"\",SUM('Ancillary Costs'!$N$91:$N$105)*(SUM($AR26,$AZ26,SUM($AS26,$BA26)*'Project Information'!$D$12)))","v":""},{"$f":"IF($C26=\"\",\"\",SUMIFS('Ancillary Costs'!$N$72:$N$86,'Ancillary Costs'!$FL$72:$FL$86,\"*xx\"&'Project Scope'!$C26&\"xx*\")*(SUM($AR26,$AZ26,SUM($AS26,$BA26)*'Project Information'!$D$12)))","v":""},{"$f":"IFERROR(IF($C26=\"\",\"\",SUMIFS('Ancillary Costs'!$N$8:$N$67,'Ancillary Costs'!$FL$8:$FL$67,\"*xx\"&'Project Scope'!C26&\"xx*\",'Ancillary Costs'!$I$8:$I$67,'Project Scope'!$AN26)*'Project Scope'!$AO26),0)","v":""},{"$f":"IFERROR(IF($C26=\"\",\"\",SUMIFS('Ancillary Costs'!$N$8:$N$67,'Ancillary Costs'!$FL$8:$FL$67,\"*xx\"&'Project Scope'!C26&\"xx*\",'Ancillary Costs'!$I$8:$I$67,'Project Scope'!$AW26)*'Project Scope'!$AX26),0)","v":""},{"$f":"IF($C26=\"\",\"\",IF(SUM($AR26,$AZ26,SUM($AS26,$BA26)*'Project Information'!$D$12)=0,0,SUM($BG26,(SUM($BE26:$BF26))*((SUM($AR26,(IF(ISNUMBER($AS26),$AS26,0)*'Project Information'!$D$12)))/SUM($AR26,$AZ26,SUM($AS26,$BA26)*'Project Information'!$D$12)))))","v":""},{"$f":"IF($C26=\"\",\"\",IF(SUM($AR26,$AZ26,SUM($AS26,$BA26)*'Project Information'!$D$12)=0,0,SUM($BH26,(SUM($BE26:$BF26))*((SUM($AZ26,(IF(ISNUMBER($BA26),$BA26,0)*'Project Information'!$D$12)))/SUM($AR26,$AZ26,SUM($AS26,$BA26)*'Project Information'!$D$12)))))","v":""},null,"","","",{"$f":"IF($C26=\"\",\"\",IF(OR($AS26=\"\",$CX26=\"b\"),0,$AS26*'Project Information'!$D$12))","v":""},{"$f":"IF($C26=\"\",\"\",IF(OR($BA26=\"\",$CX26=\"b\"),0,$BA26*'Project Information'!$D$12))","v":""},"","","","","",null,{"$f":"CBAT!$AB26","v":""},{"$f":"CBAT!$BZ26","v":""},0,null,"","",0,{"$f":"IF($Q26=\"\",\"\",IF(OR($CX26<>\"c\",SUM($BY$8:$BY$107)=0),0,ROUND(BW26*MIN('Other Data'!$G$84,'Other Data'!$H$84*IF('Project Information'!$F$10=\"X\",('Project Information'!$L$42-'Project Information'!$L$39),'Project Information'!$L$42)/SUMPRODUCT($BY$8:$BY$107,--($CX$8:$CX$107=\"c\"))),0)))","v":""},{"$f":"IF($AC26=\"\",\"\",IF(OR($CX26<>\"c\",SUM($BY$8:$BY$107)=0),0,ROUND(BX26*MIN('Other Data'!$G$84,'Other Data'!$H$84*IF('Project Information'!$F$10=\"X\",('Project Information'!$L$42-'Project Information'!$L$39),'Project Information'!$L$42)/SUMPRODUCT($BY$8:$BY$107,--($CX$8:$CX$107=\"c\"))),0)))","v":""},0,null,"","",{"$f":"IF($J26=\"\",\"\",VLOOKUP($J26,'TRM Data'!$R$4:$S$168,2,FALSE))","v":""},"","","",null,{"$f":"IF($CV26=0,\"\",CBAT!$DJ26)","v":""},null,null,1,1,0,1,0,null,{"$f":"IF(OR($CV26=0,ISBLANK('Project Information'!$D$44)),\"\",IF(AND($CV26=1,$CO26<1,$G26=\"yes\"),\"a\",IF($CO26<1,\"b\",\"c\")))","v":""}]
[0,20,null,null,null,null,null,{"$f":"IF($C27=\"\",\"\",IF(COUNTIF('Project Information'!$J$9:BG$9,$C27)<>1,\"\",INDEX('Project Information'!$J$8:$BG$8,1,MATCH($C27,'Project Information'!$J$9:BG$9,0))))","v":""},null,null,{"$f":"LOOKUP(2,1/(COUNTIF($K$7:K26,$Q$8:$Q$108)=0),$Q$8:$Q$108)","v":{"$error":"#N/A"}},{"$f":"IF(OR('Project Information'!$D$32=\"\",C27=\"\"),\"\",'Project Information'!$D$32)","v":""},{"$f":"IF($C27=\"\",\"\",IF(COUNTIF('Project Information'!$J$9:$BG$9,$C27)=1,HLOOKUP(C27,'Project Information'!$J$9:$BG$10,2,FALSE),0))","v":""},null,null,null,null,null,null,null,{"$f":"IF(Q27<>\"\",IF('Project Information'!$D$33=\"Small Business\",\"I\",\"P\")&VLOOKUP($Q27,'TRM Data'!$C$5:$N$201,COLUMN('TRM Data'!$E$2)-COLUMN('TRM Data'!$C$2)+1,FALSE)&IF($L27=\"Summer\",\"S\",IF($L27=\"Winter\",\"W\",\"Y\")),\"\")","v":""},{"$f":"IF(OR($F27=\"Controls\",$F27=\"\"),\"\",VLOOKUP($Q27,'TRM Data'!$C$5:$N$201,COLUMN('TRM Data'!$F$2)-COLUMN('TRM Data'!$C$2)+1,FALSE))","v":""},null,{"$f":"IF($R27=0,\"\",VLOOKUP($Q27,'TRM Data'!$C$5:$N$201,COLUMN('TRM Data'!$G$2)-COLUMN('TRM Data'!$C$2)+1,FALSE)*$R27)","v":""},null,{"$f":"IF($R27=0,\"\",VLOOKUP($Q27,'TRM Data'!$C$5:$N$201,COLUMN('TRM Data'!$I$2)-COLUMN('TRM Data'!$C$2)+1,FALSE)*$R27)","v":""},{"$f":"IF($Q27=\"\",\"\",IF('Project Information'!$D$33=\"Small Business\",'Project Scope'!$CA27,IF('Project Information'!$D$33=\"Pay for Performance\",'Project Scope'!$CD27,0)))","v":""},null,null,null,{"$f":"IF(AC27<>\"\",\"P\"&VLOOKUP($AC27,'TRM Data'!$C$5:$N$201,COLUMN('TRM Data'!$E$2)-COLUMN('TRM Data'!$C$2)+1,FALSE)&IF($L27=\"Summer\",\"S\",IF($L27=\"Winter\",\"W\",\"Y\")),\"\")","v":""},{"$f":"IF($AD27=0,\"\",VLOOKUP($AC27,'TRM Data'!$C$5:$N$201,COLUMN('TRM Data'!$G$2)-COLUMN('TRM Data'!$C$2)+1,FALSE)*$AD27)","v":""},null,{"$f":"IF($AD27=0,\"\",VLOOKUP($AC27,'TRM Data'!$C$5:$N$201,COLUMN('TRM Data'!$I$2)-COLUMN('TRM Data'!$C$2)+1,FALSE)*$AD27)","v":""},{"$f":"IF($AC27=\"\",\"\",IF('Project Information'!$D$33=\"Small Business\",'Project Scope'!$CB27,IF('Project Information'!$D$33=\"Pay for Performance\",'Project Scope'!$CE27,0)))","v":""},null,"",null,"","","","","","","",{"$f":"IF($Q27=\"\",\"\",IF(AND(ISNUMBER($BW27),ISNUMBER($AR27),$AR27>0),SUM($BL27,$BO27,$BI27)*'Other Data'!$H$83,0))","v":""},{"$f":"IF($Q27=\"\",\"\",IF(AND(ISNUMBER($BW27),ISNUMBER($AR27),$AR27>0),$BW27*'Other Data'!$G$84,0))","v":""},null,"","","","","",{"$f":"IF($AC27=\"\",\"\",IF(AND(ISNUMBER($BX27), ISNUMBER($AZ27),$AZ27>0),SUM($BJ27,$BM27,$BP27)*'Other Data'!$H$83,0))","v":""},{"$f":"IF($AC27=\"\",\"\",IF(AND(ISNUMBER($BX27), ISNUMBER($AZ27),$AZ27>0),$BX27*'Other Data'!$G$84,0))","v":""},null,{"$f":"IF($C27=\"\",\"\",SUM('Ancillary Costs'!$N$91:$N$105)*(SUM($AR27,$AZ27,SUM($AS27,$BA27)*'Project Information'!$D$12)))","v":""},{"$f":"IF($C27=\"\",\"\",SUMIFS('Ancillary Costs'!$N$72:$N$86,'Ancillary Costs'!$FL$72:$FL$86,\"*xx\"&'Project Scope'!$C27&\"xx*\")*(SUM($AR27,$AZ27,SUM($AS27,$BA27)*'Project Information'!$D$12)))","v":""},{"$f":"IFERROR(IF($C27=\"\",\"\",SUMIFS('Ancillary Costs'!$N$8:$N$67,'Ancillary Costs'!$FL$8:$FL$67,\"*xx\"&'Project Scope'!C27&\"xx*\",'Ancillary Costs'!$I$8:$I$67,'Project Scope'!$AN27)*'Project Scope'!$AO27),0)","v":""},{"$f":"IFERROR(IF($C27=\"\",\"\",SUMIFS('Ancillary Costs'!$N$8:$N$67,'Ancillary Costs'!$FL$8:$FL$67,\"*xx\"&'Project Scope'!C27&\"xx*\",'Ancillary Costs'!$I$8:$I$67,'Project Scope'!$AW27)*'Project Scope'!$AX27),0)","v":""},{"$f":"IF($C27=\"\",\"\",IF(SUM($AR27,$AZ27,SUM($AS27,$BA27)*'Project Information'!$D$12)=0,0,SUM($BG27,(SUM($BE27:$BF27))*((SUM($AR27,(IF(ISNUMBER($AS27),$AS27,0)*'Project Information'!$D$12)))/SUM($AR27,$AZ27,SUM($AS27,$BA27)*'Project Information'!$D$12)))))","v":""},{"$f":"IF($C27=\"\",\"\",IF(SUM($AR27,$AZ27,SUM($AS27,$BA27)*'Project Information'!$D$12)=0,0,SUM($BH27,(SUM($BE27:$BF27))*((SUM($AZ27,(IF(ISNUMBER($BA27),$BA27,0)*'Project Information'!$D$12)))/SUM($AR27,$AZ27,SUM($AS27,$BA27)*'Project Information'!$D$12)))))","v":""},null,"","","",{"$f":"IF($C27=\"\",\"\",IF(OR($AS27=\"\",$CX27=\"b\"),0,$AS27*'Project Information'!$D$12))","v":""},{"$f":"IF($C27=\"\",\"\",IF(OR($BA27=\"\",$CX27=\"b\"),0,$BA27*'Project Information'!$D$12))","v":""},"","","","","",null,{"$f":"CBAT!$AB27","v":""},{"$f":"CBAT!$BZ27","v":""},0,null,"","",0,{"$f":"IF($Q27=\"\",\"\",IF(OR($CX27<>\"c\",SUM($BY$8:$BY$107)=0),0,ROUND(BW27*MIN('Other Data'!$G$84,'Other Data'!$H$84*IF('Project Information'!$F$10=\"X\",('Project Information'!$L$42-'Project Information'!$L$39),'Project Information'!$L$42)/SUMPRODUCT($BY$8:$BY$107,--($CX$8:$CX$107=\"c\"))),0)))","v":""},{"$f":"IF($AC27=\"\",\"\",IF(OR($CX27<>\"c\",SUM($BY$8:$BY$107)=0),0,ROUND(BX27*MIN('Other Data'!$G$84,'Other Data'!$H$84*IF('Project Information'!$F$10=\"X\",('Project Information'!$L$42-'Project Information'!$L$39),'Project Information'!$L$42)/SUMPRODUCT($BY$8:$BY$107,--($CX$8:$CX$107=\"c\"))),0)))","v":""},0,null,"","",{"$f":"IF($J27=\"\",\"\",VLOOKUP($J27,'TRM Data'!$R$4:$S$168,2,FALSE))","v":""},"","","",null,{"$f":"IF($CV27=0,\"\",CBAT!$DJ27)","v":""},null,null,1,1,0,1,0,null,{"$f":"IF(OR($CV27=0,ISBLANK('Project Information'!$D$44)),\"\",IF(AND($CV27=1,$CO27<1,$G27=\"yes\"),\"a\",IF($CO27<1,\"b\",\"c\")))","v":""}]
[0,21,null,null,null,null,null,{"$f":"IF($C28=\"\",\"\",IF(COUNTIF('Project Information'!$J$9:BG$9,$C28)<>1,\"\",INDEX('Project Information'!$J$8:$BG$8,1,MATCH($C28,'Project Information'!$J$9:BG$9,0))))","v":""},null,null,{"$f":"LOOKUP(2,1/(COUNTIF($K$7:K27,$Q$8:$Q$108)=0),$Q$8:$Q$108)","v":{"$error":"#N/A"}},{"$f":"IF(OR('Project Information'!$D$32=\"\",C28=\"\"),\"\",'Project Information'!$D$32)","v":""},{"$f":"IF($C28=\"\",\"\",IF(COUNTIF('Project Information'!$J$9:$BG$9,$C28)=1,HLOOKUP(C28,'Project Information'!$J$9:$BG$10,2,FALSE),0))","v":""},null,null,null,null,null,null,null,{"$f":"IF(Q28<>\"\",IF('Project Information'!$D$33=\"Small Business\",\"I\",\"P\")&VLOOKUP($Q28,'TRM Data'!$C$5:$N$201,COLUMN('TRM Data'!$E$2)-COLUMN('TRM Data'!$C$2)+1,FALSE)&IF($L28=\"Summer\",\"S\",IF($L28=\"Winter\",\"W\",\"Y\")),\"\")","v":""},{"$f":"IF(OR($F28=\"Controls\",$F28=\"\"),\"\",VLOOKUP($Q28,'TRM Data'!$C$5:$N$201,COLUMN('TRM Data'!$F$2)-COLUMN('TRM Data'!$C$2)+1,FALSE))","v":""},null,{"$f":"IF($R28=0,\"\",VLOOKUP($Q28,'TRM Data'!$C$5:$N$201,COLUMN('TRM Data'!$G$2)-COLUMN('TRM Data'!$C$2)+1,FALSE)*$R28)","v":""},null,{"$f":"IF($R28=0,\"\",VLOOKUP($Q28,'TRM Data'!$C$5:$N$201,COLUMN('TRM Data'!$I$2)-COLUMN('TRM Data'!$C$2)+1,FALSE)*$R28)","v":""},{"$f":"IF($Q28=\"\",\"\",IF('Project Information'!$D$33=\"Small Business\",'Project Scope'!$CA28,IF('Project Information'!$D$33=\"Pay for Performance\",'Project Scope'!$CD28,0)))","v":""},null,null,null,{"$f":"IF(AC28<>\"\",\"P\"&VLOOKUP($AC28,'TRM Data'!$C$5:$N$201,COLUMN('TRM Data'!$E$2)-COLUMN('TRM Data'!$C$2)+1,FALSE)&IF($L28=\"Summer\",\"S\",IF($L28=\"Winter\",\"W\",\"Y\")),\"\")","v":""},{"$f":"IF($AD28=0,\"\",VLOOKUP($AC28,'TRM Data'!$C$5:$N$201,COLUMN('TRM Data'!$G$2)-COLUMN('TRM Data'!$C$2)+1,FALSE)*$AD28)","v":""},null,{"$f":"IF($AD28=0,\"\",VLOOKUP($AC28,'TRM Data'!$C$5:$N$201,COLUMN('TRM Data'!$I$2)-COLUMN('TRM Data'!$C$2)+1,FALSE)*$AD28)","v":""},{"$f":"IF($AC28=\"\",\"\",IF('Project Information'!$D$33=\"Small Business\",'Project Scope'!$CB28,IF('Project Information'!$D$33=\"Pay for Performance\",'Project Scope'!$CE28,0)))","v":""},null,"",null,"","","","","","","",{"$f":"IF($Q28=\"\",\"\",IF(AND(ISNUMBER($BW28),ISNUMBER($AR28),$AR28>0),SUM($BL28,$BO28,$BI28)*'Other Data'!$H$83,0))","v":""},{"$f":"IF($Q28=\"\",\"\",IF(AND(ISNUMBER($BW28),ISNUMBER($AR28),$AR28>0),$BW28*'Other Data'!$G$84,0))","v":""},null,"","","","","",{"$f":"IF($AC28=\"\",\"\",IF(AND(ISNUMBER($BX28), ISNUMBER($AZ28),$AZ28>0),SUM($BJ28,$BM28,$BP28)*'Other Data'!$H$83,0))","v":""},{"$f":"IF($AC28=\"\",\"\",IF(AND(ISNUMBER($BX28), ISNUMBER($AZ28),$AZ28>0),$BX28*'Other Data'!$G$84,0))","v":""},null,{"$f":"IF($C28=\"\",\"\",SUM('Ancillary Costs'!$N$91:$N$105)*(SUM($AR28,$AZ28,SUM($AS28,$BA28)*'Project Information'!$D$12)))","v":""},{"$f":"IF($C28=\"\",\"\",SUMIFS('Ancillary Costs'!$N$72:$N$86,'Ancillary Costs'!$FL$72:$FL$86,\"*xx\"&'Project Scope'!$C28&\"xx*\")*(SUM($AR28,$AZ28,SUM($AS28,$BA28)*'Project Information'!$D$12)))","v":""},{"$f":"IFERROR(IF($C28=\"\",\"\",SUMIFS('Ancillary Costs'!$N$8:$N$67,'Ancillary Costs'!$FL$8:$FL$67,\"*xx\"&'Project Scope'!C28&\"xx*\",'Ancillary Costs'!$I$8:$I$67,'Project Scope'!$AN28)*'Project Scope'!$AO28),0)","v":""},{"$f":"IFERROR(IF($C28=\"\",\"\",SUMIFS('Ancillary Costs'!$N$8:$N$67,'Ancillary Costs'!$FL$8:$FL$67,\"*xx\"&'Project Scope'!C28&\"xx*\",'Ancillary Costs'!$I$8:$I$67,'Project Scope'!$AW28)*'Project Scope'!$AX28),0)","v":""},{"$f":"IF($C28=\"\",\"\",IF(SUM($AR28,$AZ28,SUM($AS28,$BA28)*'Project Information'!$D$12)=0,0,SUM($BG28,(SUM($BE28:$BF28))*((SUM($AR28,(IF(ISNUMBER($AS28),$AS28,0)*'Project Information'!$D$12)))/SUM($AR28,$AZ28,SUM($AS28,$BA28)*'Project Information'!$D$12)))))","v":""},{"$f":"IF($C28=\"\",\"\",IF(SUM($AR28,$AZ28,SUM($AS28,$BA28)*'Project Information'!$D$12)=0,0,SUM($BH28,(SUM($BE28:$BF28))*((SUM($AZ28,(IF(ISNUMBER($BA28),$BA28,0)*'Project Information'!$D$12)))/SUM($AR28,$AZ28,SUM($AS28,$BA28)*'Project Information'!$D$12)))))","v":""},null,"","","",{"$f":"IF($C28=\"\",\"\",IF(OR($AS28=\"\",$CX28=\"b\"),0,$AS28*'Project Information'!$D$12))","v":""},{"$f":"IF($C28=\"\",\"\",IF(OR($BA28=\"\",$CX28=\"b\"),0,$BA28*'Project Information'!$D$12))","v":""},"","","","","",null,{"$f":"CBAT!$AB28","v":""},{"$f":"CBAT!$BZ28","v":""},0,null,{"$f":"IF($Q28=\"\",\"\",IF($CX28<>\"c\",0,$AT28))","v":""},{"$f":"IF($AC28=\"\",\"\",IF($CX28<>\"c\",0,$BB28))","v":""},0,{"$f":"IF($Q28=\"\",\"\",IF(OR($CX28<>\"c\",SUM($BY$8:$BY$107)=0),0,ROUND(BW28*MIN('Other Data'!$G$84,'Other Data'!$H$84*IF('Project Information'!$F$10=\"X\",('Project Information'!$L$42-'Project Information'!$L$39),'Project Information'!$L$42)/SUMPRODUCT($BY$8:$BY$107,--($CX$8:$CX$107=\"c\"))),0)))","v":""},{"$f":"IF($AC28=\"\",\"\",IF(OR($CX28<>\"c\",SUM($BY$8:$BY$107)=0),0,ROUND(BX28*MIN('Other Data'!$G$84,'Other Data'!$H$84*IF('Project Information'!$F$10=\"X\",('Project Information'!$L$42-'Project Information'!$L$39),'Project Information'!$L$42)/SUMPRODUCT($BY$8:$BY$107,--($CX$8:$CX$107=\"c\"))),0)))","v":""},0,null,"","",{"$f":"IF($J28=\"\",\"\",VLOOKUP($J28,'TRM Data'!$R$4:$S$168,2,FALSE))","v":""},"","","",null,{"$f":"IF($CV28=0,\"\",CBAT!$DJ28)","v":""},null,null,1,1,0,1,0,null,{"$f":"IF(OR($CV28=0,ISBLANK('Project Information'!$D$44)),\"\",IF(AND($CV28=1,$CO28<1,$G28=\"yes\"),\"a\",IF($CO28<1,\"b\",\"c\")))","v":""}]
[0,22,null,null,null,null,null,{"$f":"IF($C29=\"\",\"\",IF(COUNTIF('Project Information'!$J$9:BG$9,$C29)<>1,\"\",INDEX('Project Information'!$J$8:$BG$8,1,MATCH($C29,'Project Information'!$J$9:BG$9,0))))","v":""},null,null,{"$f":"LOOKUP(2,1/(COUNTIF($K$7:K28,$Q$8:$Q$108)=0),$Q$8:$Q$108)","v":{"$error":"#N/A"}},{"$f":"IF(OR('Project Information'!$D$32=\"\",C29=\"\"),\"\",'Project Information'!$D$32)","v":""},{"$f":"IF($C29=\"\",\"\",IF(COUNTIF('Project Information'!$J$9:$BG$9,$C29)=1,HLOOKUP(C29,'Project Information'!$J$9:$BG$10,2,FALSE),0))","v":""},null,null,null,null,null,null,null,{"$f":"IF(Q29<>\"\",IF('Project Information'!$D$33=\"Small Business\",\"I\",\"P\")&VLOOKUP($Q29,'TRM Data'!$C$5:$N$201,COLUMN('TRM Data'!$E$2)-COLUMN('TRM Data'!$C$2)+1,FALSE)&IF($L29=\"Summer\",\"S\",IF($L29=\"Winter\",\"W\",\"Y\")),\"\")","v":""},{"$f":"IF(OR($F29=\"Controls\",$F29=\"\"),\"\",VLOOKUP($Q29,'TRM Data'!$C$5:$N$201,COLUMN('TRM Data'!$F$2)-COLUMN('TRM Data'!$C$2)+1,FALSE))","v":""},null,{"$f":"IF($R29=0,\"\",VLOOKUP($Q29,'TRM Data'!$C$5:$N$201,COLUMN('TRM Data'!$G$2)-COLUMN('TRM Data'!$C$2)+1,FALSE)*$R29)","v":""},null,{"$f":"IF($R29=0,\"\",VLOOKUP($Q29,'TRM Data'!$C$5:$N$201,COLUMN('TRM Data'!$I$2)-COLUMN('TRM Data'!$C$2)+1,FALSE)*$R29)","v":""},{"$f":"IF($Q29=\"\",\"\",IF('Project Information'!$D$33=\"Small Business\",'Project Scope'!$CA29,IF('Project Information'!$D$33=\"Pay for Performance\",'Project Scope'!$CD29,0)))","v":""},null,null,null,{"$f":"IF(AC29<>\"\",\"P\"&VLOOKUP($AC29,'TRM Data'!$C$5:$N$201,COLUMN('TRM Data'!$E$2)-COLUMN('TRM Data'!$C$2)+1,FALSE)&IF($L29=\"Summer\",\"S\",IF($L29=\"Winter\",\"W\",\"Y\")),\"\")","v":""},{"$f":"IF($AD29=0,\"\",VLOOKUP($AC29,'TRM Data'!$C$5:$N$201,COLUMN('TRM Data'!$G$2)-COLUMN('TRM Data'!$C$2)+1,FALSE)*$AD29)","v":""},null,{"$f":"IF($AD29=0,\"\",VLOOKUP($AC29,'TRM Data'!$C$5:$N$201,COLUMN('TRM Data'!$I$2)-COLUMN('TRM Data'!$C$2)+1,FALSE)*$AD29)","v":""},{"$f":"IF($AC29=\"\",\"\",IF('Project Information'!$D$33=\"Small Business\",'Project Scope'!$CB29,IF('Project Information'!$D$33=\"Pay for Performance\",'Project Scope'!$CE29,0)))","v":""},null,"",null,"","","","","","","",{"$f":"IF($Q29=\"\",\"\",IF(AND(ISNUMBER($BW29),ISNUMBER($AR29),$AR29>0),SUM($BL29,$BO29,$BI29)*'Other Data'!$H$83,0))","v":""},{"$f":"IF($Q29=\"\",\"\",IF(AND(ISNUMBER($BW29),ISNUMBER($AR29),$AR29>0),$BW29*'Other Data'!$G$84,0))","v":""},null,"","","","","",{"$f":"IF($AC29=\"\",\"\",IF(AND(ISNUMBER($BX29), ISNUMBER($AZ29),$AZ29>0),SUM($BJ29,$BM29,$BP29)*'Other Data'!$H$83,0))","v":""},{"$f":"IF($AC29=\"\",\"\",IF(AND(ISNUMBER($BX29), ISNUMBER($AZ29),$AZ29>0),$BX29*'Other Data'!$G$84,0))","v":""},null,{"$f":"IF($C29=\"\",\"\",SUM('Ancillary Costs'!$N$91:$N$105)*(SUM($AR29,$AZ29,SUM($AS29,$BA29)*'Project Information'!$D$12)))","v":""},{"$f":"IF($C29=\"\",\"\",SUMIFS('Ancillary Costs'!$N$72:$N$86,'Ancillary Costs'!$FL$72:$FL$86,\"*xx\"&'Project Scope'!$C29&\"xx*\")*(SUM($AR29,$AZ29,SUM($AS29,$BA29)*'Project Information'!$D$12)))","v":""},{"$f":"IFERROR(IF($C29=\"\",\"\",SUMIFS('Ancillary Costs'!$N$8:$N$67,'Ancillary Costs'!$FL$8:$FL$67,\"*xx\"&'Project Scope'!C29&\"xx*\",'Ancillary Costs'!$I$8:$I$67,'Project Scope'!$AN29)*'Project Scope'!$AO29),0)","v":""},{"$f":"IFERROR(IF($C29=\"\",\"\",SUMIFS('Ancillary Costs'!$N$8:$N$67,'Ancillary Costs'!$FL$8:$FL$67,\"*xx\"&'Project Scope'!C29&\"xx*\",'Ancillary Costs'!$I$8:$I$67,'Project Scope'!$AW29)*'Project Scope'!$AX29),0)","v":""},{"$f":"IF($C29=\"\",\"\",IF(SUM($AR29,$AZ29,SUM($AS29,$BA29)*'Project Information'!$D$12)=0,0,SUM($BG29,(SUM($BE29:$BF29))*((SUM($AR29,(IF(ISNUMBER($AS29),$AS29,0)*'Project Information'!$D$12)))/SUM($AR29,$AZ29,SUM($AS29,$BA29)*'Project Information'!$D$12)))))","v":""},{"$f":"IF($C29=\"\",\"\",IF(SUM($AR29,$AZ29,SUM($AS29,$BA29)*'Project Information'!$D$12)=0,0,SUM($BH29,(SUM($BE29:$BF29))*((SUM($AZ29,(IF(ISNUMBER($BA29),$BA29,0)*'Project Information'!$D$12)))/SUM($AR29,$AZ29,SUM($AS29,$BA29)*'Project Information'!$D$12)))))","v":""},null,"","","",{"$f":"IF($C29=\"\",\"\",IF(OR($AS29=\"\",$CX29=\"b\"),0,$AS29*'Project Information'!$D$12))","v":""},{"$f":"IF($C29=\"\",\"\",IF(OR($BA29=\"\",$CX29=\"b\"),0,$BA29*'Project Information'!$D$12))","v":""},"","","","","",null,{"$f":"CBAT!$AB29","v":""},{"$f":"CBAT!$BZ29","v":""},0,null,"","",0,{"$f":"IF($Q29=\"\",\"\",IF(OR($CX29<>\"c\",SUM($BY$8:$BY$107)=0),0,ROUND(BW29*MIN('Other Data'!$G$84,'Other Data'!$H$84*IF('Project Information'!$F$10=\"X\",('Project Information'!$L$42-'Project Information'!$L$39),'Project Information'!$L$42)/SUMPRODUCT($BY$8:$BY$107,--($CX$8:$CX$107=\"c\"))),0)))","v":""},{"$f":"IF($AC29=\"\",\"\",IF(OR($CX29<>\"c\",SUM($BY$8:$BY$107)=0),0,ROUND(BX29*MIN('Other Data'!$G$84,'Other Data'!$H$84*IF('Project Information'!$F$10=\"X\",('Project Information'!$L$42-'Project Information'!$L$39),'Project Information'!$L$42)/SUMPRODUCT($BY$8:$BY$107,--($CX$8:$CX$107=\"c\"))),0)))","v":""},0,null,"","",{"$f":"IF($J29=\"\",\"\",VLOOKUP($J29,'TRM Data'!$R$4:$S$168,2,FALSE))","v":""},"","","",null,{"$f":"IF($CV29=0,\"\",CBAT!$DJ29)","v":""},null,null,1,1,0,1,0,null,{"$f":"IF(OR($CV29=0,ISBLANK('Project Information'!$D$44)),\"\",IF(AND($CV29=1,$CO29<1,$G29=\"yes\"),\"a\",IF($CO29<1,\"b\",\"c\")))","v":""}]
[0,23,null,null,null,null,null,{"$f":"IF($C30=\"\",\"\",IF(COUNTIF('Project Information'!$J$9:BG$9,$C30)<>1,\"\",INDEX('Project Information'!$J$8:$BG$8,1,MATCH($C30,'Project Information'!$J$9:BG$9,0))))","v":""},null,null,{"$f":"LOOKUP(2,1/(COUNTIF($K$7:K29,$Q$8:$Q$108)=0),$Q$8:$Q$108)","v":{"$error":"#N/A"}},{"$f":"IF(OR('Project Information'!$D$32=\"\",C30=\"\"),\"\",'Project Information'!$D$32)","v":""},{"$f":"IF($C30=\"\",\"\",IF(COUNTIF('Project Information'!$J$9:$BG$9,$C30)=1,HLOOKUP(C30,'Project Information'!$J$9:$BG$10,2,FALSE),0))","v":""},null,null,null,null,null,null,null,{"$f":"IF(Q30<>\"\",IF('Project Information'!$D$33=\"Small Business\",\"I\",\"P\")&VLOOKUP($Q30,'TRM Data'!$C$5:$N$201,COLUMN('TRM Data'!$E$2)-COLUMN('TRM Data'!$C$2)+1,FALSE)&IF($L30=\"Summer\",\"S\",IF($L30=\"Winter\",\"W\",\"Y\")),\"\")","v":""},{"$f":"IF(OR($F30=\"Controls\",$F30=\"\"),\"\",VLOOKUP($Q30,'TRM Data'!$C$5:$N$201,COLUMN('TRM Data'!$F$2)-COLUMN('TRM Data'!$C$2)+1,FALSE))","v":""},null,{"$f":"IF($R30=0,\"\",VLOOKUP($Q30,'TRM Data'!$C$5:$N$201,COLUMN('TRM Data'!$G$2)-COLUMN('TRM Data'!$C$2)+1,FALSE)*$R30)","v":""},null,{"$f":"IF($R30=0,\"\",VLOOKUP($Q30,'TRM Data'!$C$5:$N$201,COLUMN('TRM Data'!$I$2)-COLUMN('TRM Data'!$C$2)+1,FALSE)*$R30)","v":""},{"$f":"IF($Q30=\"\",\"\",IF('Project Information'!$D$33=\"Small Business\",'Project Scope'!$CA30,IF('Project Information'!$D$33=\"Pay for Performance\",'Project Scope'!$CD30,0)))","v":""},null,null,null,{"$f":"IF(AC30<>\"\",\"P\"&VLOOKUP($AC30,'TRM Data'!$C$5:$N$201,COLUMN('TRM Data'!$E$2)-COLUMN('TRM Data'!$C$2)+1,FALSE)&IF($L30=\"Summer\",\"S\",IF($L30=\"Winter\",\"W\",\"Y\")),\"\")","v":""},{"$f":"IF($AD30=0,\"\",VLOOKUP($AC30,'TRM Data'!$C$5:$N$201,COLUMN('TRM Data'!$G$2)-COLUMN('TRM Data'!$C$2)+1,FALSE)*$AD30)","v":""},null,{"$f":"IF($AD30=0,\"\",VLOOKUP($AC30,'TRM Data'!$C$5:$N$201,COLUMN('TRM Data'!$I$2)-COLUMN('TRM Data'!$C$2)+1,FALSE)*$AD30)","v":""},{"$f":"IF($AC30=\"\",\"\",IF('Project Information'!$D$33=\"Small Business\",'Project Scope'!$CB30,IF('Project Information'!$D$33=\"Pay for Performance\",'Project Scope'!$CE30,0)))","v":""},null,"",null,"","","","","","","",{"$f":"IF($Q30=\"\",\"\",IF(AND(ISNUMBER($BW30),ISNUMBER($AR30),$AR30>0),SUM($BL30,$BO30,$BI30)*'Other Data'!$H$83,0))","v":""},{"$f":"IF($Q30=\"\",\"\",IF(AND(ISNUMBER($BW30),ISNUMBER($AR30),$AR30>0),$BW30*'Other Data'!$G$84,0))","v":""},null,"","","","","",{"$f":"IF($AC30=\"\",\"\",IF(AND(ISNUMBER($BX30), ISNUMBER($AZ30),$AZ30>0),SUM($BJ30,$BM30,$BP30)*'Other Data'!$H$83,0))","v":""},{"$f":"IF($AC30=\"\",\"\",IF(AND(ISNUMBER($BX30), ISNUMBER($AZ30),$AZ30>0),$BX30*'Other Data'!$G$84,0))","v":""},null,{"$f":"IF($C30=\"\",\"\",SUM('Ancillary Costs'!$N$91:$N$105)*(SUM($AR30,$AZ30,SUM($AS30,$BA30)*'Project Information'!$D$12)))","v":""},{"$f":"IF($C30=\"\",\"\",SUMIFS('Ancillary Costs'!$N$72:$N$86,'Ancillary Costs'!$FL$72:$FL$86,\"*xx\"&'Project Scope'!$C30&\"xx*\")*(SUM($AR30,$AZ30,SUM($AS30,$BA30)*'Project Information'!$D$12)))","v":""},{"$f":"IFERROR(IF($C30=\"\",\"\",SUMIFS('Ancillary Costs'!$N$8:$N$67,'Ancillary Costs'!$FL$8:$FL$67,\"*xx\"&'Project Scope'!C30&\"xx*\",'Ancillary Costs'!$I$8:$I$67,'Project Scope'!$AN30)*'Project Scope'!$AO30),0)","v":""},{"$f":"IFERROR(IF($C30=\"\",\"\",SUMIFS('Ancillary Costs'!$N$8:$N$67,'Ancillary Costs'!$FL$8:$FL$67,\"*xx\"&'Project Scope'!C30&\"xx*\",'Ancillary Costs'!$I$8:$I$67,'Project Scope'!$AW30)*'Project Scope'!$AX30),0)","v":""},{"$f":"IF($C30=\"\",\"\",IF(SUM($AR30,$AZ30,SUM($AS30,$BA30)*'Project Information'!$D$12)=0,0,SUM($BG30,(SUM($BE30:$BF30))*((SUM($AR30,(IF(ISNUMBER($AS30),$AS30,0)*'Project Information'!$D$12)))/SUM($AR30,$AZ30,SUM($AS30,$BA30)*'Project Information'!$D$12)))))","v":""},{"$f":"IF($C30=\"\",\"\",IF(SUM($AR30,$AZ30,SUM($AS30,$BA30)*'Project Information'!$D$12)=0,0,SUM($BH30,(SUM($BE30:$BF30))*((SUM($AZ30,(IF(ISNUMBER($BA30),$BA30,0)*'Project Information'!$D$12)))/SUM($AR30,$AZ30,SUM($AS30,$BA30)*'Project Information'!$D$12)))))","v":""},null,"","","",{"$f":"IF($C30=\"\",\"\",IF(OR($AS30=\"\",$CX30=\"b\"),0,$AS30*'Project Information'!$D$12))","v":""},{"$f":"IF($C30=\"\",\"\",IF(OR($BA30=\"\",$CX30=\"b\"),0,$BA30*'Project Information'!$D$12))","v":""},"","","","","",null,{"$f":"CBAT!$AB30","v":""},{"$f":"CBAT!$BZ30","v":""},0,null,"","",0,{"$f":"IF($Q30=\"\",\"\",IF(OR($CX30<>\"c\",SUM($BY$8:$BY$107)=0),0,ROUND(BW30*MIN('Other Data'!$G$84,'Other Data'!$H$84*IF('Project Information'!$F$10=\"X\",('Project Information'!$L$42-'Project Information'!$L$39),'Project Information'!$L$42)/SUMPRODUCT($BY$8:$BY$107,--($CX$8:$CX$107=\"c\"))),0)))","v":""},{"$f":"IF($AC30=\"\",\"\",IF(OR($CX30<>\"c\",SUM($BY$8:$BY$107)=0),0,ROUND(BX30*MIN('Other Data'!$G$84,'Other Data'!$H$84*IF('Project Information'!$F$10=\"X\",('Project Information'!$L$42-'Project Information'!$L$39),'Project Information'!$L$42)/SUMPRODUCT($BY$8:$BY$107,--($CX$8:$CX$107=\"c\"))),0)))","v":""},0,null,"","",{"$f":"IF($J30=\"\",\"\",VLOOKUP($J30,'TRM Data'!$R$4:$S$168,2,FALSE))","v":""},"","","",null,{"$f":"IF($CV30=0,\"\",CBAT!$DJ30)","v":""},null,null,1,1,0,1,0,null,{"$f":"IF(OR($CV30=0,ISBLANK('Project Information'!$D$44)),\"\",IF(AND($CV30=1,$CO30<1,$G30=\"yes\"),\"a\",IF($CO30<1,\"b\",\"c\")))","v":""}]
[0,24,null,null,null,null,null,{"$f":"IF($C31=\"\",\"\",IF(COUNTIF('Project Information'!$J$9:BG$9,$C31)<>1,\"\",INDEX('Project Information'!$J$8:$BG$8,1,MATCH($C31,'Project Information'!$J$9:BG$9,0))))","v":""},null,null,{"$f":"LOOKUP(2,1/(COUNTIF($K$7:K30,$Q$8:$Q$108)=0),$Q$8:$Q$108)","v":{"$error":"#N/A"}},{"$f":"IF(OR('Project Information'!$D$32=\"\",C31=\"\"),\"\",'Project Information'!$D$32)","v":""},{"$f":"IF($C31=\"\",\"\",IF(COUNTIF('Project Information'!$J$9:$BG$9,$C31)=1,HLOOKUP(C31,'Project Information'!$J$9:$BG$10,2,FALSE),0))","v":""},null,null,null,null,null,null,null,{"$f":"IF(Q31<>\"\",IF('Project Information'!$D$33=\"Small Business\",\"I\",\"P\")&VLOOKUP($Q31,'TRM Data'!$C$5:$N$201,COLUMN('TRM Data'!$E$2)-COLUMN('TRM Data'!$C$2)+1,FALSE)&IF($L31=\"Summer\",\"S\",IF($L31=\"Winter\",\"W\",\"Y\")),\"\")","v":""},{"$f":"IF(OR($F31=\"Controls\",$F31=\"\"),\"\",VLOOKUP($Q31,'TRM Data'!$C$5:$N$201,COLUMN('TRM Data'!$F$2)-COLUMN('TRM Data'!$C$2)+1,FALSE))","v":""},null,{"$f":"IF($R31=0,\"\",VLOOKUP($Q31,'TRM Data'!$C$5:$N$201,COLUMN('TRM Data'!$G$2)-COLUMN('TRM Data'!$C$2)+1,FALSE)*$R31)","v":""},null,{"$f":"IF($R31=0,\"\",VLOOKUP($Q31,'TRM Data'!$C$5:$N$201,COLUMN('TRM Data'!$I$2)-COLUMN('TRM Data'!$C$2)+1,FALSE)*$R31)","v":""},{"$f":"IF($Q31=\"\",\"\",IF('Project Information'!$D$33=\"Small Business\",'Project Scope'!$CA31,IF('Project Information'!$D$33=\"Pay for Performance\",'Project Scope'!$CD31,0)))","v":""},null,null,null,{"$f":"IF(AC31<>\"\",\"P\"&VLOOKUP($AC31,'TRM Data'!$C$5:$N$201,COLUMN('TRM Data'!$E$2)-COLUMN('TRM Data'!$C$2)+1,FALSE)&IF($L31=\"Summer\",\"S\",IF($L31=\"Winter\",\"W\",\"Y\")),\"\")","v":""},{"$f":"IF($AD31=0,\"\",VLOOKUP($AC31,'TRM Data'!$C$5:$N$201,COLUMN('TRM Data'!$G$2)-COLUMN('TRM Data'!$C$2)+1,FALSE)*$AD31)","v":""},null,{"$f":"IF($AD31=0,\"\",VLOOKUP($AC31,'TRM Data'!$C$5:$N$201,COLUMN('TRM Data'!$I$2)-COLUMN('TRM Data'!$C$2)+1,FALSE)*$AD31)","v":""},{"$f":"IF($AC31=\"\",\"\",IF('Project Information'!$D$33=\"Small Business\",'Project Scope'!$CB31,IF('Project Information'!$D$33=\"Pay for Performance\",'Project Scope'!$CE31,0)))","v":""},null,"",null,"","","","","","","",{"$f":"IF($Q31=\"\",\"\",IF(AND(ISNUMBER($BW31),ISNUMBER($AR31),$AR31>0),SUM($BL31,$BO31,$BI31)*'Other Data'!$H$83,0))","v":""},{"$f":"IF($Q31=\"\",\"\",IF(AND(ISNUMBER($BW31),ISNUMBER($AR31),$AR31>0),$BW31*'Other Data'!$G$84,0))","v":""},null,"","","","","",{"$f":"IF($AC31=\"\",\"\",IF(AND(ISNUMBER($BX31), ISNUMBER($AZ31),$AZ31>0),SUM($BJ31,$BM31,$BP31)*'Other Data'!$H$83,0))","v":""},{"$f":"IF($AC31=\"\",\"\",IF(AND(ISNUMBER($BX31), ISNUMBER($AZ31),$AZ31>0),$BX31*'Other Data'!$G$84,0))","v":""},null,{"$f":"IF($C31=\"\",\"\",SUM('Ancillary Costs'!$N$91:$N$105)*(SUM($AR31,$AZ31,SUM($AS31,$BA31)*'Project Information'!$D$12)))","v":""},{"$f":"IF($C31=\"\",\"\",SUMIFS('Ancillary Costs'!$N$72:$N$86,'Ancillary Costs'!$FL$72:$FL$86,\"*xx\"&'Project Scope'!$C31&\"xx*\")*(SUM($AR31,$AZ31,SUM($AS31,$BA31)*'Project Information'!$D$12)))","v":""},{"$f":"IFERROR(IF($C31=\"\",\"\",SUMIFS('Ancillary Costs'!$N$8:$N$67,'Ancillary Costs'!$FL$8:$FL$67,\"*xx\"&'Project Scope'!C31&\"xx*\",'Ancillary Costs'!$I$8:$I$67,'Project Scope'!$AN31)*'Project Scope'!$AO31),0)","v":""},{"$f":"IFERROR(IF($C31=\"\",\"\",SUMIFS('Ancillary Costs'!$N$8:$N$67,'Ancillary Costs'!$FL$8:$FL$67,\"*xx\"&'Project Scope'!C31&\"xx*\",'Ancillary Costs'!$I$8:$I$67,'Project Scope'!$AW31)*'Project Scope'!$AX31),0)","v":""},{"$f":"IF($C31=\"\",\"\",IF(SUM($AR31,$AZ31,SUM($AS31,$BA31)*'Project Information'!$D$12)=0,0,SUM($BG31,(SUM($BE31:$BF31))*((SUM($AR31,(IF(ISNUMBER($AS31),$AS31,0)*'Project Information'!$D$12)))/SUM($AR31,$AZ31,SUM($AS31,$BA31)*'Project Information'!$D$12)))))","v":""},{"$f":"IF($C31=\"\",\"\",IF(SUM($AR31,$AZ31,SUM($AS31,$BA31)*'Project Information'!$D$12)=0,0,SUM($BH31,(SUM($BE31:$BF31))*((SUM($AZ31,(IF(ISNUMBER($BA31),$BA31,0)*'Project Information'!$D$12)))/SUM($AR31,$AZ31,SUM($AS31,$BA31)*'Project Information'!$D$12)))))","v":""},null,"","","",{"$f":"IF($C31=\"\",\"\",IF(OR($AS31=\"\",$CX31=\"b\"),0,$AS31*'Project Information'!$D$12))","v":""},{"$f":"IF($C31=\"\",\"\",IF(OR($BA31=\"\",$CX31=\"b\"),0,$BA31*'Project Information'!$D$12))","v":""},"","","","","",null,{"$f":"CBAT!$AB31","v":""},{"$f":"CBAT!$BZ31","v":""},0,null,"","",0,{"$f":"IF($Q31=\"\",\"\",IF(OR($CX31<>\"c\",SUM($BY$8:$BY$107)=0),0,ROUND(BW31*MIN('Other Data'!$G$84,'Other Data'!$H$84*IF('Project Information'!$F$10=\"X\",('Project Information'!$L$42-'Project Information'!$L$39),'Project Information'!$L$42)/SUMPRODUCT($BY$8:$BY$107,--($CX$8:$CX$107=\"c\"))),0)))","v":""},{"$f":"IF($AC31=\"\",\"\",IF(OR($CX31<>\"c\",SUM($BY$8:$BY$107)=0),0,ROUND(BX31*MIN('Other Data'!$G$84,'Other Data'!$H$84*IF('Project Information'!$F$10=\"X\",('Project Information'!$L$42-'Project Information'!$L$39),'Project Information'!$L$42)/SUMPRODUCT($BY$8:$BY$107,--($CX$8:$CX$107=\"c\"))),0)))","v":""},0,null,"","",{"$f":"IF($J31=\"\",\"\",VLOOKUP($J31,'TRM Data'!$R$4:$S$168,2,FALSE))","v":""},"","","",null,{"$f":"IF($CV31=0,\"\",CBAT!$DJ31)","v":""},null,null,1,1,0,1,0,null,{"$f":"IF(OR($CV31=0,ISBLANK('Project Information'!$D$44)),\"\",IF(AND($CV31=1,$CO31<1,$G31=\"yes\"),\"a\",IF($CO31<1,\"b\",\"c\")))","v":""}]
[0,25,null,null,null,null,null,{"$f":"IF($C32=\"\",\"\",IF(COUNTIF('Project Information'!$J$9:BG$9,$C32)<>1,\"\",INDEX('Project Information'!$J$8:$BG$8,1,MATCH($C32,'Project Information'!$J$9:BG$9,0))))","v":""},null,null,{"$f":"LOOKUP(2,1/(COUNTIF($K$7:K31,$Q$8:$Q$108)=0),$Q$8:$Q$108)","v":{"$error":"#N/A"}},{"$f":"IF(OR('Project Information'!$D$32=\"\",C32=\"\"),\"\",'Project Information'!$D$32)","v":""},{"$f":"IF($C32=\"\",\"\",IF(COUNTIF('Project Information'!$J$9:$BG$9,$C32)=1,HLOOKUP(C32,'Project Information'!$J$9:$BG$10,2,FALSE),0))","v":""},null,null,null,null,null,null,null,{"$f":"IF(Q32<>\"\",IF('Project Information'!$D$33=\"Small Business\",\"I\",\"P\")&VLOOKUP($Q32,'TRM Data'!$C$5:$N$201,COLUMN('TRM Data'!$E$2)-COLUMN('TRM Data'!$C$2)+1,FALSE)&IF($L32=\"Summer\",\"S\",IF($L32=\"Winter\",\"W\",\"Y\")),\"\")","v":""},{"$f":"IF(OR($F32=\"Controls\",$F32=\"\"),\"\",VLOOKUP($Q32,'TRM Data'!$C$5:$N$201,COLUMN('TRM Data'!$F$2)-COLUMN('TRM Data'!$C$2)+1,FALSE))","v":""},null,{"$f":"IF($R32=0,\"\",VLOOKUP($Q32,'TRM Data'!$C$5:$N$201,COLUMN('TRM Data'!$G$2)-COLUMN('TRM Data'!$C$2)+1,FALSE)*$R32)","v":""},null,{"$f":"IF($R32=0,\"\",VLOOKUP($Q32,'TRM Data'!$C$5:$N$201,COLUMN('TRM Data'!$I$2)-COLUMN('TRM Data'!$C$2)+1,FALSE)*$R32)","v":""},{"$f":"IF($Q32=\"\",\"\",IF('Project Information'!$D$33=\"Small Business\",'Project Scope'!$CA32,IF('Project Information'!$D$33=\"Pay for Performance\",'Project Scope'!$CD32,0)))","v":""},null,null,null,{"$f":"IF(AC32<>\"\",\"P\"&VLOOKUP($AC32,'TRM Data'!$C$5:$N$201,COLUMN('TRM Data'!$E$2)-COLUMN('TRM Data'!$C$2)+1,FALSE)&IF($L32=\"Summer\",\"S\",IF($L32=\"Winter\",\"W\",\"Y\")),\"\")","v":""},{"$f":"IF($AD32=0,\"\",VLOOKUP($AC32,'TRM Data'!$C$5:$N$201,COLUMN('TRM Data'!$G$2)-COLUMN('TRM Data'!$C$2)+1,FALSE)*$AD32)","v":""},null,{"$f":"IF($AD32=0,\"\",VLOOKUP($AC32,'TRM Data'!$C$5:$N$201,COLUMN('TRM Data'!$I$2)-COLUMN('TRM Data'!$C$2)+1,FALSE)*$AD32)","v":""},{"$f":"IF($AC32=\"\",\"\",IF('Project Information'!$D$33=\"Small Business\",'Project Scope'!$CB32,IF('Project Information'!$D$33=\"Pay for Performance\",'Project Scope'!$CE32,0)))","v":""},null,"",null,"","","","","","","",{"$f":"IF($Q32=\"\",\"\",IF(AND(ISNUMBER($BW32),ISNUMBER($AR32),$AR32>0),SUM($BL32,$BO32,$BI32)*'Other Data'!$H$83,0))","v":""},{"$f":"IF($Q32=\"\",\"\",IF(AND(ISNUMBER($BW32),ISNUMBER($AR32),$AR32>0),$BW32*'Other Data'!$G$84,0))","v":""},null,"","","","","",{"$f":"IF($AC32=\"\",\"\",IF(AND(ISNUMBER($BX32), ISNUMBER($AZ32),$AZ32>0),SUM($BJ32,$BM32,$BP32)*'Other Data'!$H$83,0))","v":""},{"$f":"IF($AC32=\"\",\"\",IF(AND(ISNUMBER($BX32), ISNUMBER($AZ32),$AZ32>0),$BX32*'Other Data'!$G$84,0))","v":""},null,{"$f":"IF($C32=\"\",\"\",SUM('Ancillary Costs'!$N$91:$N$105)*(SUM($AR32,$AZ32,SUM($AS32,$BA32)*'Project Information'!$D$12)))","v":""},{"$f":"IF($C32=\"\",\"\",SUMIFS('Ancillary Costs'!$N$72:$N$86,'Ancillary Costs'!$FL$72:$FL$86,\"*xx\"&'Project Scope'!$C32&\"xx*\")*(SUM($AR32,$AZ32,SUM($AS32,$BA32)*'Project Information'!$D$12)))","v":""},{"$f":"IFERROR(IF($C32=\"\",\"\",SUMIFS('Ancillary Costs'!$N$8:$N$67,'Ancillary Costs'!$FL$8:$FL$67,\"*xx\"&'Project Scope'!C32&\"xx*\",'Ancillary Costs'!$I$8:$I$67,'Project Scope'!$AN32)*'Project Scope'!$AO32),0)","v":""},{"$f":"IFERROR(IF($C32=\"\",\"\",SUMIFS('Ancillary Costs'!$N$8:$N$67,'Ancillary Costs'!$FL$8:$FL$67,\"*xx\"&'Project Scope'!C32&\"xx*\",'Ancillary Costs'!$I$8:$I$67,'Project Scope'!$AW32)*'Project Scope'!$AX32),0)","v":""},{"$f":"IF($C32=\"\",\"\",IF(SUM($AR32,$AZ32,SUM($AS32,$BA32)*'Project Information'!$D$12)=0,0,SUM($BG32,(SUM($BE32:$BF32))*((SUM($AR32,(IF(ISNUMBER($AS32),$AS32,0)*'Project Information'!$D$12)))/SUM($AR32,$AZ32,SUM($AS32,$BA32)*'Project Information'!$D$12)))))","v":""},{"$f":"IF($C32=\"\",\"\",IF(SUM($AR32,$AZ32,SUM($AS32,$BA32)*'Project Information'!$D$12)=0,0,SUM($BH32,(SUM($BE32:$BF32))*((SUM($AZ32,(IF(ISNUMBER($BA32),$BA32,0)*'Project Information'!$D$12)))/SUM($AR32,$AZ32,SUM($AS32,$BA32)*'Project Information'!$D$12)))))","v":""},null,"","","",{"$f":"IF($C32=\"\",\"\",IF(OR($AS32=\"\",$CX32=\"b\"),0,$AS32*'Project Information'!$D$12))","v":""},{"$f":"IF($C32=\"\",\"\",IF(OR($BA32=\"\",$CX32=\"b\"),0,$BA32*'Project Information'!$D$12))","v":""},"","","","","",null,{"$f":"CBAT!$AB32","v":""},{"$f":"CBAT!$BZ32","v":""},0,null,"","",0,{"$f":"IF($Q32=\"\",\"\",IF(OR($CX32<>\"c\",SUM($BY$8:$BY$107)=0),0,ROUND(BW32*MIN('Other Data'!$G$84,'Other Data'!$H$84*IF('Project Information'!$F$10=\"X\",('Project Information'!$L$42-'Project Information'!$L$39),'Project Information'!$L$42)/SUMPRODUCT($BY$8:$BY$107,--($CX$8:$CX$107=\"c\"))),0)))","v":""},{"$f":"IF($AC32=\"\",\"\",IF(OR($CX32<>\"c\",SUM($BY$8:$BY$107)=0),0,ROUND(BX32*MIN('Other Data'!$G$84,'Other Data'!$H$84*IF('Project Information'!$F$10=\"X\",('Project Information'!$L$42-'Project Information'!$L$39),'Project Information'!$L$42)/SUMPRODUCT($BY$8:$BY$107,--($CX$8:$CX$107=\"c\"))),0)))","v":""},0,null,"","",{"$f":"IF($J32=\"\",\"\",VLOOKUP($J32,'TRM Data'!$R$4:$S$168,2,FALSE))","v":""},"","","",null,{"$f":"IF($CV32=0,\"\",CBAT!$DJ32)","v":""},null,null,1,1,0,1,0,null,{"$f":"IF(OR($CV32=0,ISBLANK('Project Information'!$D$44)),\"\",IF(AND($CV32=1,$CO32<1,$G32=\"yes\"),\"a\",IF($CO32<1,\"b\",\"c\")))","v":""}]
[0,26,null,null,null,null,null,{"$f":"IF($C33=\"\",\"\",IF(COUNTIF('Project Information'!$J$9:BG$9,$C33)<>1,\"\",INDEX('Project Information'!$J$8:$BG$8,1,MATCH($C33,'Project Information'!$J$9:BG$9,0))))","v":""},null,null,{"$f":"LOOKUP(2,1/(COUNTIF($K$7:K32,$Q$8:$Q$108)=0),$Q$8:$Q$108)","v":{"$error":"#N/A"}},{"$f":"IF(OR('Project Information'!$D$32=\"\",C33=\"\"),\"\",'Project Information'!$D$32)","v":""},{"$f":"IF($C33=\"\",\"\",IF(COUNTIF('Project Information'!$J$9:$BG$9,$C33)=1,HLOOKUP(C33,'Project Information'!$J$9:$BG$10,2,FALSE),0))","v":""},null,null,null,null,null,null,null,{"$f":"IF(Q33<>\"\",IF('Project Information'!$D$33=\"Small Business\",\"I\",\"P\")&VLOOKUP($Q33,'TRM Data'!$C$5:$N$201,COLUMN('TRM Data'!$E$2)-COLUMN('TRM Data'!$C$2)+1,FALSE)&IF($L33=\"Summer\",\"S\",IF($L33=\"Winter\",\"W\",\"Y\")),\"\")","v":""},{"$f":"IF(OR($F33=\"Controls\",$F33=\"\"),\"\",VLOOKUP($Q33,'TRM Data'!$C$5:$N$201,COLUMN('TRM Data'!$F$2)-COLUMN('TRM Data'!$C$2)+1,FALSE))","v":""},null,{"$f":"IF($R33=0,\"\",VLOOKUP($Q33,'TRM Data'!$C$5:$N$201,COLUMN('TRM Data'!$G$2)-COLUMN('TRM Data'!$C$2)+1,FALSE)*$R33)","v":""},null,{"$f":"IF($R33=0,\"\",VLOOKUP($Q33,'TRM Data'!$C$5:$N$201,COLUMN('TRM Data'!$I$2)-COLUMN('TRM Data'!$C$2)+1,FALSE)*$R33)","v":""},{"$f":"IF($Q33=\"\",\"\",IF('Project Information'!$D$33=\"Small Business\",'Project Scope'!$CA33,IF('Project Information'!$D$33=\"Pay for Performance\",'Project Scope'!$CD33,0)))","v":""},null,null,null,{"$f":"IF(AC33<>\"\",\"P\"&VLOOKUP($AC33,'TRM Data'!$C$5:$N$201,COLUMN('TRM Data'!$E$2)-COLUMN('TRM Data'!$C$2)+1,FALSE)&IF($L33=\"Summer\",\"S\",IF($L33=\"Winter\",\"W\",\"Y\")),\"\")","v":""},{"$f":"IF($AD33=0,\"\",VLOOKUP($AC33,'TRM Data'!$C$5:$N$201,COLUMN('TRM Data'!$G$2)-COLUMN('TRM Data'!$C$2)+1,FALSE)*$AD33)","v":""},null,{"$f":"IF($AD33=0,\"\",VLOOKUP($AC33,'TRM Data'!$C$5:$N$201,COLUMN('TRM Data'!$I$2)-COLUMN('TRM Data'!$C$2)+1,FALSE)*$AD33)","v":""},{"$f":"IF($AC33=\"\",\"\",IF('Project Information'!$D$33=\"Small Business\",'Project Scope'!$CB33,IF('Project Information'!$D$33=\"Pay for Performance\",'Project Scope'!$CE33,0)))","v":""},null,"",null,"","","","","","","",{"$f":"IF($Q33=\"\",\"\",IF(AND(ISNUMBER($BW33),ISNUMBER($AR33),$AR33>0),SUM($BL33,$BO33,$BI33)*'Other Data'!$H$83,0))","v":""},{"$f":"IF($Q33=\"\",\"\",IF(AND(ISNUMBER($BW33),ISNUMBER($AR33),$AR33>0),$BW33*'Other Data'!$G$84,0))","v":""},null,"","","","","",{"$f":"IF($AC33=\"\",\"\",IF(AND(ISNUMBER($BX33), ISNUMBER($AZ33),$AZ33>0),SUM($BJ33,$BM33,$BP33)*'Other Data'!$H$83,0))","v":""},{"$f":"IF($AC33=\"\",\"\",IF(AND(ISNUMBER($BX33), ISNUMBER($AZ33),$AZ33>0),$BX33*'Other Data'!$G$84,0))","v":""},null,{"$f":"IF($C33=\"\",\"\",SUM('Ancillary Costs'!$N$91:$N$105)*(SUM($AR33,$AZ33,SUM($AS33,$BA33)*'Project Information'!$D$12)))","v":""},{"$f":"IF($C33=\"\",\"\",SUMIFS('Ancillary Costs'!$N$72:$N$86,'Ancillary Costs'!$FL$72:$FL$86,\"*xx\"&'Project Scope'!$C33&\"xx*\")*(SUM($AR33,$AZ33,SUM($AS33,$BA33)*'Project Information'!$D$12)))","v":""},{"$f":"IFERROR(IF($C33=\"\",\"\",SUMIFS('Ancillary Costs'!$N$8:$N$67,'Ancillary Costs'!$FL$8:$FL$67,\"*xx\"&'Project Scope'!C33&\"xx*\",'Ancillary Costs'!$I$8:$I$67,'Project Scope'!$AN33)*'Project Scope'!$AO33),0)","v":""},{"$f":"IFERROR(IF($C33=\"\",\"\",SUMIFS('Ancillary Costs'!$N$8:$N$67,'Ancillary Costs'!$FL$8:$FL$67,\"*xx\"&'Project Scope'!C33&\"xx*\",'Ancillary Costs'!$I$8:$I$67,'Project Scope'!$AW33)*'Project Scope'!$AX33),0)","v":""},{"$f":"IF($C33=\"\",\"\",IF(SUM($AR33,$AZ33,SUM($AS33,$BA33)*'Project Information'!$D$12)=0,0,SUM($BG33,(SUM($BE33:$BF33))*((SUM($AR33,(IF(ISNUMBER($AS33),$AS33,0)*'Project Information'!$D$12)))/SUM($AR33,$AZ33,SUM($AS33,$BA33)*'Project Information'!$D$12)))))","v":""},{"$f":"IF($C33=\"\",\"\",IF(SUM($AR33,$AZ33,SUM($AS33,$BA33)*'Project Information'!$D$12)=0,0,SUM($BH33,(SUM($BE33:$BF33))*((SUM($AZ33,(IF(ISNUMBER($BA33),$BA33,0)*'Project Information'!$D$12)))/SUM($AR33,$AZ33,SUM($AS33,$BA33)*'Project Information'!$D$12)))))","v":""},null,"","","",{"$f":"IF($C33=\"\",\"\",IF(OR($AS33=\"\",$CX33=\"b\"),0,$AS33*'Project Information'!$D$12))","v":""},{"$f":"IF($C33=\"\",\"\",IF(OR($BA33=\"\",$CX33=\"b\"),0,$BA33*'Project Information'!$D$12))","v":""},"","","","","",null,{"$f":"CBAT!$AB33","v":""},{"$f":"CBAT!$BZ33","v":""},0,null,"","",0,{"$f":"IF($Q33=\"\",\"\",IF(OR($CX33<>\"c\",SUM($BY$8:$BY$107)=0),0,ROUND(BW33*MIN('Other Data'!$G$84,'Other Data'!$H$84*IF('Project Information'!$F$10=\"X\",('Project Information'!$L$42-'Project Information'!$L$39),'Project Information'!$L$42)/SUMPRODUCT($BY$8:$BY$107,--($CX$8:$CX$107=\"c\"))),0)))","v":""},{"$f":"IF($AC33=\"\",\"\",IF(OR($CX33<>\"c\",SUM($BY$8:$BY$107)=0),0,ROUND(BX33*MIN('Other Data'!$G$84,'Other Data'!$H$84*IF('Project Information'!$F$10=\"X\",('Project Information'!$L$42-'Project Information'!$L$39),'Project Information'!$L$42)/SUMPRODUCT($BY$8:$BY$107,--($CX$8:$CX$107=\"c\"))),0)))","v":""},0,null,"","",{"$f":"IF($J33=\"\",\"\",VLOOKUP($J33,'TRM Data'!$R$4:$S$168,2,FALSE))","v":""},"","","",null,{"$f":"IF($CV33=0,\"\",CBAT!$DJ33)","v":""},null,null,1,1,0,1,0,null,{"$f":"IF(OR($CV33=0,ISBLANK('Project Information'!$D$44)),\"\",IF(AND($CV33=1,$CO33<1,$G33=\"yes\"),\"a\",IF($CO33<1,\"b\",\"c\")))","v":""}]
[0,27,null,null,null,null,null,{"$f":"IF($C34=\"\",\"\",IF(COUNTIF('Project Information'!$J$9:BG$9,$C34)<>1,\"\",INDEX('Project Information'!$J$8:$BG$8,1,MATCH($C34,'Project Information'!$J$9:BG$9,0))))","v":""},null,null,{"$f":"LOOKUP(2,1/(COUNTIF($K$7:K33,$Q$8:$Q$108)=0),$Q$8:$Q$108)","v":{"$error":"#N/A"}},{"$f":"IF(OR('Project Information'!$D$32=\"\",C34=\"\"),\"\",'Project Information'!$D$32)","v":""},{"$f":"IF($C34=\"\",\"\",IF(COUNTIF('Project Information'!$J$9:$BG$9,$C34)=1,HLOOKUP(C34,'Project Information'!$J$9:$BG$10,2,FALSE),0))","v":""},null,null,null,null,null,null,null,{"$f":"IF(Q34<>\"\",IF('Project Information'!$D$33=\"Small Business\",\"I\",\"P\")&VLOOKUP($Q34,'TRM Data'!$C$5:$N$201,COLUMN('TRM Data'!$E$2)-COLUMN('TRM Data'!$C$2)+1,FALSE)&IF($L34=\"Summer\",\"S\",IF($L34=\"Winter\",\"W\",\"Y\")),\"\")","v":""},{"$f":"IF(OR($F34=\"Controls\",$F34=\"\"),\"\",VLOOKUP($Q34,'TRM Data'!$C$5:$N$201,COLUMN('TRM Data'!$F$2)-COLUMN('TRM Data'!$C$2)+1,FALSE))","v":""},null,{"$f":"IF($R34=0,\"\",VLOOKUP($Q34,'TRM Data'!$C$5:$N$201,COLUMN('TRM Data'!$G$2)-COLUMN('TRM Data'!$C$2)+1,FALSE)*$R34)","v":""},null,{"$f":"IF($R34=0,\"\",VLOOKUP($Q34,'TRM Data'!$C$5:$N$201,COLUMN('TRM Data'!$I$2)-COLUMN('TRM Data'!$C$2)+1,FALSE)*$R34)","v":""},{"$f":"IF($Q34=\"\",\"\",IF('Project Information'!$D$33=\"Small Business\",'Project Scope'!$CA34,IF('Project Information'!$D$33=\"Pay for Performance\",'Project Scope'!$CD34,0)))","v":""},null,null,null,{"$f":"IF(AC34<>\"\",\"P\"&VLOOKUP($AC34,'TRM Data'!$C$5:$N$201,COLUMN('TRM Data'!$E$2)-COLUMN('TRM Data'!$C$2)+1,FALSE)&IF($L34=\"Summer\",\"S\",IF($L34=\"Winter\",\"W\",\"Y\")),\"\")","v":""},{"$f":"IF($AD34=0,\"\",VLOOKUP($AC34,'TRM Data'!$C$5:$N$201,COLUMN('TRM Data'!$G$2)-COLUMN('TRM Data'!$C$2)+1,FALSE)*$AD34)","v":""},null,{"$f":"IF($AD34=0,\"\",VLOOKUP($AC34,'TRM Data'!$C$5:$N$201,COLUMN('TRM Data'!$I$2)-COLUMN('TRM Data'!$C$2)+1,FALSE)*$AD34)","v":""},{"$f":"IF($AC34=\"\",\"\",IF('Project Information'!$D$33=\"Small Business\",'Project Scope'!$CB34,IF('Project Information'!$D$33=\"Pay for Performance\",'Project Scope'!$CE34,0)))","v":""},null,"",null,"","","","","","","",{"$f":"IF($Q34=\"\",\"\",IF(AND(ISNUMBER($BW34),ISNUMBER($AR34),$AR34>0),SUM($BL34,$BO34,$BI34)*'Other Data'!$H$83,0))","v":""},{"$f":"IF($Q34=\"\",\"\",IF(AND(ISNUMBER($BW34),ISNUMBER($AR34),$AR34>0),$BW34*'Other Data'!$G$84,0))","v":""},null,"","","","","",{"$f":"IF($AC34=\"\",\"\",IF(AND(ISNUMBER($BX34), ISNUMBER($AZ34),$AZ34>0),SUM($BJ34,$BM34,$BP34)*'Other Data'!$H$83,0))","v":""},{"$f":"IF($AC34=\"\",\"\",IF(AND(ISNUMBER($BX34), ISNUMBER($AZ34),$AZ34>0),$BX34*'Other Data'!$G$84,0))","v":""},null,{"$f":"IF($C34=\"\",\"\",SUM('Ancillary Costs'!$N$91:$N$105)*(SUM($AR34,$AZ34,SUM($AS34,$BA34)*'Project Information'!$D$12)))","v":""},{"$f":"IF($C34=\"\",\"\",SUMIFS('Ancillary Costs'!$N$72:$N$86,'Ancillary Costs'!$FL$72:$FL$86,\"*xx\"&'Project Scope'!$C34&\"xx*\")*(SUM($AR34,$AZ34,SUM($AS34,$BA34)*'Project Information'!$D$12)))","v":""},{"$f":"IFERROR(IF($C34=\"\",\"\",SUMIFS('Ancillary Costs'!$N$8:$N$67,'Ancillary Costs'!$FL$8:$FL$67,\"*xx\"&'Project Scope'!C34&\"xx*\",'Ancillary Costs'!$I$8:$I$67,'Project Scope'!$AN34)*'Project Scope'!$AO34),0)","v":""},{"$f":"IFERROR(IF($C34=\"\",\"\",SUMIFS('Ancillary Costs'!$N$8:$N$67,'Ancillary Costs'!$FL$8:$FL$67,\"*xx\"&'Project Scope'!C34&\"xx*\",'Ancillary Costs'!$I$8:$I$67,'Project Scope'!$AW34)*'Project Scope'!$AX34),0)","v":""},{"$f":"IF($C34=\"\",\"\",IF(SUM($AR34,$AZ34,SUM($AS34,$BA34)*'Project Information'!$D$12)=0,0,SUM($BG34,(SUM($BE34:$BF34))*((SUM($AR34,(IF(ISNUMBER($AS34),$AS34,0)*'Project Information'!$D$12)))/SUM($AR34,$AZ34,SUM($AS34,$BA34)*'Project Information'!$D$12)))))","v":""},{"$f":"IF($C34=\"\",\"\",IF(SUM($AR34,$AZ34,SUM($AS34,$BA34)*'Project Information'!$D$12)=0,0,SUM($BH34,(SUM($BE34:$BF34))*((SUM($AZ34,(IF(ISNUMBER($BA34),$BA34,0)*'Project Information'!$D$12)))/SUM($AR34,$AZ34,SUM($AS34,$BA34)*'Project Information'!$D$12)))))","v":""},null,"","","",{"$f":"IF($C34=\"\",\"\",IF(OR($AS34=\"\",$CX34=\"b\"),0,$AS34*'Project Information'!$D$12))","v":""},{"$f":"IF($C34=\"\",\"\",IF(OR($BA34=\"\",$CX34=\"b\"),0,$BA34*'Project Information'!$D$12))","v":""},"","","","","",null,{"$f":"CBAT!$AB34","v":""},{"$f":"CBAT!$BZ34","v":""},0,null,"","",0,{"$f":"IF($Q34=\"\",\"\",IF(OR($CX34<>\"c\",SUM($BY$8:$BY$107)=0),0,ROUND(BW34*MIN('Other Data'!$G$84,'Other Data'!$H$84*IF('Project Information'!$F$10=\"X\",('Project Information'!$L$42-'Project Information'!$L$39),'Project Information'!$L$42)/SUMPRODUCT($BY$8:$BY$107,--($CX$8:$CX$107=\"c\"))),0)))","v":""},{"$f":"IF($AC34=\"\",\"\",IF(OR($CX34<>\"c\",SUM($BY$8:$BY$107)=0),0,ROUND(BX34*MIN('Other Data'!$G$84,'Other Data'!$H$84*IF('Project Information'!$F$10=\"X\",('Project Information'!$L$42-'Project Information'!$L$39),'Project Information'!$L$42)/SUMPRODUCT($BY$8:$BY$107,--($CX$8:$CX$107=\"c\"))),0)))","v":""},0,null,"","",{"$f":"IF($J34=\"\",\"\",VLOOKUP($J34,'TRM Data'!$R$4:$S$168,2,FALSE))","v":""},"","","",null,{"$f":"IF($CV34=0,\"\",CBAT!$DJ34)","v":""},null,null,1,1,0,1,0,null,{"$f":"IF(OR($CV34=0,ISBLANK('Project Information'!$D$44)),\"\",IF(AND($CV34=1,$CO34<1,$G34=\"yes\"),\"a\",IF($CO34<1,\"b\",\"c\")))","v":""}]
[0,28,null,null,null,null,null,{"$f":"IF($C35=\"\",\"\",IF(COUNTIF('Project Information'!$J$9:BG$9,$C35)<>1,\"\",INDEX('Project Information'!$J$8:$BG$8,1,MATCH($C35,'Project Information'!$J$9:BG$9,0))))","v":""},null,null,{"$f":"LOOKUP(2,1/(COUNTIF($K$7:K34,$Q$8:$Q$108)=0),$Q$8:$Q$108)","v":{"$error":"#N/A"}},{"$f":"IF(OR('Project Information'!$D$32=\"\",C35=\"\"),\"\",'Project Information'!$D$32)","v":""},{"$f":"IF($C35=\"\",\"\",IF(COUNTIF('Project Information'!$J$9:$BG$9,$C35)=1,HLOOKUP(C35,'Project Information'!$J$9:$BG$10,2,FALSE),0))","v":""},null,null,null,null,null,null,null,{"$f":"IF(Q35<>\"\",IF('Project Information'!$D$33=\"Small Business\",\"I\",\"P\")&VLOOKUP($Q35,'TRM Data'!$C$5:$N$201,COLUMN('TRM Data'!$E$2)-COLUMN('TRM Data'!$C$2)+1,FALSE)&IF($L35=\"Summer\",\"S\",IF($L35=\"Winter\",\"W\",\"Y\")),\"\")","v":""},{"$f":"IF(OR($F35=\"Controls\",$F35=\"\"),\"\",VLOOKUP($Q35,'TRM Data'!$C$5:$N$201,COLUMN('TRM Data'!$F$2)-COLUMN('TRM Data'!$C$2)+1,FALSE))","v":""},null,{"$f":"IF($R35=0,\"\",VLOOKUP($Q35,'TRM Data'!$C$5:$N$201,COLUMN('TRM Data'!$G$2)-COLUMN('TRM Data'!$C$2)+1,FALSE)*$R35)","v":""},null,{"$f":"IF($R35=0,\"\",VLOOKUP($Q35,'TRM Data'!$C$5:$N$201,COLUMN('TRM Data'!$I$2)-COLUMN('TRM Data'!$C$2)+1,FALSE)*$R35)","v":""},{"$f":"IF($Q35=\"\",\"\",IF('Project Information'!$D$33=\"Small Business\",'Project Scope'!$CA35,IF('Project Information'!$D$33=\"Pay for Performance\",'Project Scope'!$CD35,0)))","v":""},null,null,null,{"$f":"IF(AC35<>\"\",\"P\"&VLOOKUP($AC35,'TRM Data'!$C$5:$N$201,COLUMN('TRM Data'!$E$2)-COLUMN('TRM Data'!$C$2)+1,FALSE)&IF($L35=\"Summer\",\"S\",IF($L35=\"Winter\",\"W\",\"Y\")),\"\")","v":""},{"$f":"IF($AD35=0,\"\",VLOOKUP($AC35,'TRM Data'!$C$5:$N$201,COLUMN('TRM Data'!$G$2)-COLUMN('TRM Data'!$C$2)+1,FALSE)*$AD35)","v":""},null,{"$f":"IF($AD35=0,\"\",VLOOKUP($AC35,'TRM Data'!$C$5:$N$201,COLUMN('TRM Data'!$I$2)-COLUMN('TRM Data'!$C$2)+1,FALSE)*$AD35)","v":""},{"$f":"IF($AC35=\"\",\"\",IF('Project Information'!$D$33=\"Small Business\",'Project Scope'!$CB35,IF('Project Information'!$D$33=\"Pay for Performance\",'Project Scope'!$CE35,0)))","v":""},null,"",null,"","","","","","","",{"$f":"IF($Q35=\"\",\"\",IF(AND(ISNUMBER($BW35),ISNUMBER($AR35),$AR35>0),SUM($BL35,$BO35,$BI35)*'Other Data'!$H$83,0))","v":""},{"$f":"IF($Q35=\"\",\"\",IF(AND(ISNUMBER($BW35),ISNUMBER($AR35),$AR35>0),$BW35*'Other Data'!$G$84,0))","v":""},null,"","","","","",{"$f":"IF($AC35=\"\",\"\",IF(AND(ISNUMBER($BX35), ISNUMBER($AZ35),$AZ35>0),SUM($BJ35,$BM35,$BP35)*'Other Data'!$H$83,0))","v":""},{"$f":"IF($AC35=\"\",\"\",IF(AND(ISNUMBER($BX35), ISNUMBER($AZ35),$AZ35>0),$BX35*'Other Data'!$G$84,0))","v":""},null,{"$f":"IF($C35=\"\",\"\",SUM('Ancillary Costs'!$N$91:$N$105)*(SUM($AR35,$AZ35,SUM($AS35,$BA35)*'Project Information'!$D$12)))","v":""},{"$f":"IF($C35=\"\",\"\",SUMIFS('Ancillary Costs'!$N$72:$N$86,'Ancillary Costs'!$FL$72:$FL$86,\"*xx\"&'Project Scope'!$C35&\"xx*\")*(SUM($AR35,$AZ35,SUM($AS35,$BA35)*'Project Information'!$D$12)))","v":""},{"$f":"IFERROR(IF($C35=\"\",\"\",SUMIFS('Ancillary Costs'!$N$8:$N$67,'Ancillary Costs'!$FL$8:$FL$67,\"*xx\"&'Project Scope'!C35&\"xx*\",'Ancillary Costs'!$I$8:$I$67,'Project Scope'!$AN35)*'Project Scope'!$AO35),0)","v":""},{"$f":"IFERROR(IF($C35=\"\",\"\",SUMIFS('Ancillary Costs'!$N$8:$N$67,'Ancillary Costs'!$FL$8:$FL$67,\"*xx\"&'Project Scope'!C35&\"xx*\",'Ancillary Costs'!$I$8:$I$67,'Project Scope'!$AW35)*'Project Scope'!$AX35),0)","v":""},{"$f":"IF($C35=\"\",\"\",IF(SUM($AR35,$AZ35,SUM($AS35,$BA35)*'Project Information'!$D$12)=0,0,SUM($BG35,(SUM($BE35:$BF35))*((SUM($AR35,(IF(ISNUMBER($AS35),$AS35,0)*'Project Information'!$D$12)))/SUM($AR35,$AZ35,SUM($AS35,$BA35)*'Project Information'!$D$12)))))","v":""},{"$f":"IF($C35=\"\",\"\",IF(SUM($AR35,$AZ35,SUM($AS35,$BA35)*'Project Information'!$D$12)=0,0,SUM($BH35,(SUM($BE35:$BF35))*((SUM($AZ35,(IF(ISNUMBER($BA35),$BA35,0)*'Project Information'!$D$12)))/SUM($AR35,$AZ35,SUM($AS35,$BA35)*'Project Information'!$D$12)))))","v":""},null,"","","",{"$f":"IF($C35=\"\",\"\",IF(OR($AS35=\"\",$CX35=\"b\"),0,$AS35*'Project Information'!$D$12))","v":""},{"$f":"IF($C35=\"\",\"\",IF(OR($BA35=\"\",$CX35=\"b\"),0,$BA35*'Project Information'!$D$12))","v":""},"","","","","",null,{"$f":"CBAT!$AB35","v":""},{"$f":"CBAT!$BZ35","v":""},0,null,"","",0,{"$f":"IF($Q35=\"\",\"\",IF(OR($CX35<>\"c\",SUM($BY$8:$BY$107)=0),0,ROUND(BW35*MIN('Other Data'!$G$84,'Other Data'!$H$84*IF('Project Information'!$F$10=\"X\",('Project Information'!$L$42-'Project Information'!$L$39),'Project Information'!$L$42)/SUMPRODUCT($BY$8:$BY$107,--($CX$8:$CX$107=\"c\"))),0)))","v":""},{"$f":"IF($AC35=\"\",\"\",IF(OR($CX35<>\"c\",SUM($BY$8:$BY$107)=0),0,ROUND(BX35*MIN('Other Data'!$G$84,'Other Data'!$H$84*IF('Project Information'!$F$10=\"X\",('Project Information'!$L$42-'Project Information'!$L$39),'Project Information'!$L$42)/SUMPRODUCT($BY$8:$BY$107,--($CX$8:$CX$107=\"c\"))),0)))","v":""},0,null,"","",{"$f":"IF($J35=\"\",\"\",VLOOKUP($J35,'TRM Data'!$R$4:$S$168,2,FALSE))","v":""},"","","",null,{"$f":"IF($CV35=0,\"\",CBAT!$DJ35)","v":""},null,null,1,1,0,1,0,null,{"$f":"IF(OR($CV35=0,ISBLANK('Project Information'!$D$44)),\"\",IF(AND($CV35=1,$CO35<1,$G35=\"yes\"),\"a\",IF($CO35<1,\"b\",\"c\")))","v":""}]
[0,29,null,null,null,null,null,{"$f":"IF($C36=\"\",\"\",IF(COUNTIF('Project Information'!$J$9:BG$9,$C36)<>1,\"\",INDEX('Project Information'!$J$8:$BG$8,1,MATCH($C36,'Project Information'!$J$9:BG$9,0))))","v":""},null,null,{"$f":"LOOKUP(2,1/(COUNTIF($K$7:K35,$Q$8:$Q$108)=0),$Q$8:$Q$108)","v":{"$error":"#N/A"}},{"$f":"IF(OR('Project Information'!$D$32=\"\",C36=\"\"),\"\",'Project Information'!$D$32)","v":""},{"$f":"IF($C36=\"\",\"\",IF(COUNTIF('Project Information'!$J$9:$BG$9,$C36)=1,HLOOKUP(C36,'Project Information'!$J$9:$BG$10,2,FALSE),0))","v":""},null,null,null,null,null,null,null,{"$f":"IF(Q36<>\"\",IF('Project Information'!$D$33=\"Small Business\",\"I\",\"P\")&VLOOKUP($Q36,'TRM Data'!$C$5:$N$201,COLUMN('TRM Data'!$E$2)-COLUMN('TRM Data'!$C$2)+1,FALSE)&IF($L36=\"Summer\",\"S\",IF($L36=\"Winter\",\"W\",\"Y\")),\"\")","v":""},{"$f":"IF(OR($F36=\"Controls\",$F36=\"\"),\"\",VLOOKUP($Q36,'TRM Data'!$C$5:$N$201,COLUMN('TRM Data'!$F$2)-COLUMN('TRM Data'!$C$2)+1,FALSE))","v":""},null,{"$f":"IF($R36=0,\"\",VLOOKUP($Q36,'TRM Data'!$C$5:$N$201,COLUMN('TRM Data'!$G$2)-COLUMN('TRM Data'!$C$2)+1,FALSE)*$R36)","v":""},null,{"$f":"IF($R36=0,\"\",VLOOKUP($Q36,'TRM Data'!$C$5:$N$201,COLUMN('TRM Data'!$I$2)-COLUMN('TRM Data'!$C$2)+1,FALSE)*$R36)","v":""},{"$f":"IF($Q36=\"\",\"\",IF('Project Information'!$D$33=\"Small Business\",'Project Scope'!$CA36,IF('Project Information'!$D$33=\"Pay for Performance\",'Project Scope'!$CD36,0)))","v":""},null,null,null,{"$f":"IF(AC36<>\"\",\"P\"&VLOOKUP($AC36,'TRM Data'!$C$5:$N$201,COLUMN('TRM Data'!$E$2)-COLUMN('TRM Data'!$C$2)+1,FALSE)&IF($L36=\"Summer\",\"S\",IF($L36=\"Winter\",\"W\",\"Y\")),\"\")","v":""},{"$f":"IF($AD36=0,\"\",VLOOKUP($AC36,'TRM Data'!$C$5:$N$201,COLUMN('TRM Data'!$G$2)-COLUMN('TRM Data'!$C$2)+1,FALSE)*$AD36)","v":""},null,{"$f":"IF($AD36=0,\"\",VLOOKUP($AC36,'TRM Data'!$C$5:$N$201,COLUMN('TRM Data'!$I$2)-COLUMN('TRM Data'!$C$2)+1,FALSE)*$AD36)","v":""},{"$f":"IF($AC36=\"\",\"\",IF('Project Information'!$D$33=\"Small Business\",'Project Scope'!$CB36,IF('Project Information'!$D$33=\"Pay for Performance\",'Project Scope'!$CE36,0)))","v":""},null,"",null,"","","","","","","",{"$f":"IF($Q36=\"\",\"\",IF(AND(ISNUMBER($BW36),ISNUMBER($AR36),$AR36>0),SUM($BL36,$BO36,$BI36)*'Other Data'!$H$83,0))","v":""},{"$f":"IF($Q36=\"\",\"\",IF(AND(ISNUMBER($BW36),ISNUMBER($AR36),$AR36>0),$BW36*'Other Data'!$G$84,0))","v":""},null,"","","","","",{"$f":"IF($AC36=\"\",\"\",IF(AND(ISNUMBER($BX36), ISNUMBER($AZ36),$AZ36>0),SUM($BJ36,$BM36,$BP36)*'Other Data'!$H$83,0))","v":""},{"$f":"IF($AC36=\"\",\"\",IF(AND(ISNUMBER($BX36), ISNUMBER($AZ36),$AZ36>0),$BX36*'Other Data'!$G$84,0))","v":""},null,{"$f":"IF($C36=\"\",\"\",SUM('Ancillary Costs'!$N$91:$N$105)*(SUM($AR36,$AZ36,SUM($AS36,$BA36)*'Project Information'!$D$12)))","v":""},{"$f":"IF($C36=\"\",\"\",SUMIFS('Ancillary Costs'!$N$72:$N$86,'Ancillary Costs'!$FL$72:$FL$86,\"*xx\"&'Project Scope'!$C36&\"xx*\")*(SUM($AR36,$AZ36,SUM($AS36,$BA36)*'Project Information'!$D$12)))","v":""},{"$f":"IFERROR(IF($C36=\"\",\"\",SUMIFS('Ancillary Costs'!$N$8:$N$67,'Ancillary Costs'!$FL$8:$FL$67,\"*xx\"&'Project Scope'!C36&\"xx*\",'Ancillary Costs'!$I$8:$I$67,'Project Scope'!$AN36)*'Project Scope'!$AO36),0)","v":""},{"$f":"IFERROR(IF($C36=\"\",\"\",SUMIFS('Ancillary Costs'!$N$8:$N$67,'Ancillary Costs'!$FL$8:$FL$67,\"*xx\"&'Project Scope'!C36&\"xx*\",'Ancillary Costs'!$I$8:$I$67,'Project Scope'!$AW36)*'Project Scope'!$AX36),0)","v":""},{"$f":"IF($C36=\"\",\"\",IF(SUM($AR36,$AZ36,SUM($AS36,$BA36)*'Project Information'!$D$12)=0,0,SUM($BG36,(SUM($BE36:$BF36))*((SUM($AR36,(IF(ISNUMBER($AS36),$AS36,0)*'Project Information'!$D$12)))/SUM($AR36,$AZ36,SUM($AS36,$BA36)*'Project Information'!$D$12)))))","v":""},{"$f":"IF($C36=\"\",\"\",IF(SUM($AR36,$AZ36,SUM($AS36,$BA36)*'Project Information'!$D$12)=0,0,SUM($BH36,(SUM($BE36:$BF36))*((SUM($AZ36,(IF(ISNUMBER($BA36),$BA36,0)*'Project Information'!$D$12)))/SUM($AR36,$AZ36,SUM($AS36,$BA36)*'Project Information'!$D$12)))))","v":""},null,"","","",{"$f":"IF($C36=\"\",\"\",IF(OR($AS36=\"\",$CX36=\"b\"),0,$AS36*'Project Information'!$D$12))","v":""},{"$f":"IF($C36=\"\",\"\",IF(OR($BA36=\"\",$CX36=\"b\"),0,$BA36*'Project Information'!$D$12))","v":""},"","","","","",null,{"$f":"CBAT!$AB36","v":""},{"$f":"CBAT!$BZ36","v":""},0,null,"","",0,{"$f":"IF($Q36=\"\",\"\",IF(OR($CX36<>\"c\",SUM($BY$8:$BY$107)=0),0,ROUND(BW36*MIN('Other Data'!$G$84,'Other Data'!$H$84*IF('Project Information'!$F$10=\"X\",('Project Information'!$L$42-'Project Information'!$L$39),'Project Information'!$L$42)/SUMPRODUCT($BY$8:$BY$107,--($CX$8:$CX$107=\"c\"))),0)))","v":""},{"$f":"IF($AC36=\"\",\"\",IF(OR($CX36<>\"c\",SUM($BY$8:$BY$107)=0),0,ROUND(BX36*MIN('Other Data'!$G$84,'Other Data'!$H$84*IF('Project Information'!$F$10=\"X\",('Project Information'!$L$42-'Project Information'!$L$39),'Project Information'!$L$42)/SUMPRODUCT($BY$8:$BY$107,--($CX$8:$CX$107=\"c\"))),0)))","v":""},0,null,"","",{"$f":"IF($J36=\"\",\"\",VLOOKUP($J36,'TRM Data'!$R$4:$S$168,2,FALSE))","v":""},"","","",null,{"$f":"IF($CV36=0,\"\",CBAT!$DJ36)","v":""},null,null,1,1,0,1,0,null,{"$f":"IF(OR($CV36=0,ISBLANK('Project Information'!$D$44)),\"\",IF(AND($CV36=1,$CO36<1,$G36=\"yes\"),\"a\",IF($CO36<1,\"b\",\"c\")))","v":""}]
[0,30,null,null,null,null,null,{"$f":"IF($C37=\"\",\"\",IF(COUNTIF('Project Information'!$J$9:BG$9,$C37)<>1,\"\",INDEX('Project Information'!$J$8:$BG$8,1,MATCH($C37,'Project Information'!$J$9:BG$9,0))))","v":""},null,null,{"$f":"LOOKUP(2,1/(COUNTIF($K$7:K36,$Q$8:$Q$108)=0),$Q$8:$Q$108)","v":{"$error":"#N/A"}},{"$f":"IF(OR('Project Information'!$D$32=\"\",C37=\"\"),\"\",'Project Information'!$D$32)","v":""},{"$f":"IF($C37=\"\",\"\",IF(COUNTIF('Project Information'!$J$9:$BG$9,$C37)=1,HLOOKUP(C37,'Project Information'!$J$9:$BG$10,2,FALSE),0))","v":""},null,null,null,null,null,null,null,{"$f":"IF(Q37<>\"\",IF('Project Information'!$D$33=\"Small Business\",\"I\",\"P\")&VLOOKUP($Q37,'TRM Data'!$C$5:$N$201,COLUMN('TRM Data'!$E$2)-COLUMN('TRM Data'!$C$2)+1,FALSE)&IF($L37=\"Summer\",\"S\",IF($L37=\"Winter\",\"W\",\"Y\")),\"\")","v":""},{"$f":"IF(OR($F37=\"Controls\",$F37=\"\"),\"\",VLOOKUP($Q37,'TRM Data'!$C$5:$N$201,COLUMN('TRM Data'!$F$2)-COLUMN('TRM Data'!$C$2)+1,FALSE))","v":""},null,{"$f":"IF($R37=0,\"\",VLOOKUP($Q37,'TRM Data'!$C$5:$N$201,COLUMN('TRM Data'!$G$2)-COLUMN('TRM Data'!$C$2)+1,FALSE)*$R37)","v":""},null,{"$f":"IF($R37=0,\"\",VLOOKUP($Q37,'TRM Data'!$C$5:$N$201,COLUMN('TRM Data'!$I$2)-COLUMN('TRM Data'!$C$2)+1,FALSE)*$R37)","v":""},{"$f":"IF($Q37=\"\",\"\",IF('Project Information'!$D$33=\"Small Business\",'Project Scope'!$CA37,IF('Project Information'!$D$33=\"Pay for Performance\",'Project Scope'!$CD37,0)))","v":""},null,null,null,{"$f":"IF(AC37<>\"\",\"P\"&VLOOKUP($AC37,'TRM Data'!$C$5:$N$201,COLUMN('TRM Data'!$E$2)-COLUMN('TRM Data'!$C$2)+1,FALSE)&IF($L37=\"Summer\",\"S\",IF($L37=\"Winter\",\"W\",\"Y\")),\"\")","v":""},{"$f":"IF($AD37=0,\"\",VLOOKUP($AC37,'TRM Data'!$C$5:$N$201,COLUMN('TRM Data'!$G$2)-COLUMN('TRM Data'!$C$2)+1,FALSE)*$AD37)","v":""},null,{"$f":"IF($AD37=0,\"\",VLOOKUP($AC37,'TRM Data'!$C$5:$N$201,COLUMN('TRM Data'!$I$2)-COLUMN('TRM Data'!$C$2)+1,FALSE)*$AD37)","v":""},{"$f":"IF($AC37=\"\",\"\",IF('Project Information'!$D$33=\"Small Business\",'Project Scope'!$CB37,IF('Project Information'!$D$33=\"Pay for Performance\",'Project Scope'!$CE37,0)))","v":""},null,"",null,"","","","","","","",{"$f":"IF($Q37=\"\",\"\",IF(AND(ISNUMBER($BW37),ISNUMBER($AR37),$AR37>0),SUM($BL37,$BO37,$BI37)*'Other Data'!$H$83,0))","v":""},{"$f":"IF($Q37=\"\",\"\",IF(AND(ISNUMBER($BW37),ISNUMBER($AR37),$AR37>0),$BW37*'Other Data'!$G$84,0))","v":""},null,"","","","","",{"$f":"IF($AC37=\"\",\"\",IF(AND(ISNUMBER($BX37), ISNUMBER($AZ37),$AZ37>0),SUM($BJ37,$BM37,$BP37)*'Other Data'!$H$83,0))","v":""},{"$f":"IF($AC37=\"\",\"\",IF(AND(ISNUMBER($BX37), ISNUMBER($AZ37),$AZ37>0),$BX37*'Other Data'!$G$84,0))","v":""},null,{"$f":"IF($C37=\"\",\"\",SUM('Ancillary Costs'!$N$91:$N$105)*(SUM($AR37,$AZ37,SUM($AS37,$BA37)*'Project Information'!$D$12)))","v":""},{"$f":"IF($C37=\"\",\"\",SUMIFS('Ancillary Costs'!$N$72:$N$86,'Ancillary Costs'!$FL$72:$FL$86,\"*xx\"&'Project Scope'!$C37&\"xx*\")*(SUM($AR37,$AZ37,SUM($AS37,$BA37)*'Project Information'!$D$12)))","v":""},{"$f":"IFERROR(IF($C37=\"\",\"\",SUMIFS('Ancillary Costs'!$N$8:$N$67,'Ancillary Costs'!$FL$8:$FL$67,\"*xx\"&'Project Scope'!C37&\"xx*\",'Ancillary Costs'!$I$8:$I$67,'Project Scope'!$AN37)*'Project Scope'!$AO37),0)","v":""},{"$f":"IFERROR(IF($C37=\"\",\"\",SUMIFS('Ancillary Costs'!$N$8:$N$67,'Ancillary Costs'!$FL$8:$FL$67,\"*xx\"&'Project Scope'!C37&\"xx*\",'Ancillary Costs'!$I$8:$I$67,'Project Scope'!$AW37)*'Project Scope'!$AX37),0)","v":""},{"$f":"IF($C37=\"\",\"\",IF(SUM($AR37,$AZ37,SUM($AS37,$BA37)*'Project Information'!$D$12)=0,0,SUM($BG37,(SUM($BE37:$BF37))*((SUM($AR37,(IF(ISNUMBER($AS37),$AS37,0)*'Project Information'!$D$12)))/SUM($AR37,$AZ37,SUM($AS37,$BA37)*'Project Information'!$D$12)))))","v":""},{"$f":"IF($C37=\"\",\"\",IF(SUM($AR37,$AZ37,SUM($AS37,$BA37)*'Project Information'!$D$12)=0,0,SUM($BH37,(SUM($BE37:$BF37))*((SUM($AZ37,(IF(ISNUMBER($BA37),$BA37,0)*'Project Information'!$D$12)))/SUM($AR37,$AZ37,SUM($AS37,$BA37)*'Project Information'!$D$12)))))","v":""},null,"","","",{"$f":"IF($C37=\"\",\"\",IF(OR($AS37=\"\",$CX37=\"b\"),0,$AS37*'Project Information'!$D$12))","v":""},{"$f":"IF($C37=\"\",\"\",IF(OR($BA37=\"\",$CX37=\"b\"),0,$BA37*'Project Information'!$D$12))","v":""},"","","","","",null,{"$f":"CBAT!$AB37","v":""},{"$f":"CBAT!$BZ37","v":""},0,null,"","",0,{"$f":"IF($Q37=\"\",\"\",IF(OR($CX37<>\"c\",SUM($BY$8:$BY$107)=0),0,ROUND(BW37*MIN('Other Data'!$G$84,'Other Data'!$H$84*IF('Project Information'!$F$10=\"X\",('Project Information'!$L$42-'Project Information'!$L$39),'Project Information'!$L$42)/SUMPRODUCT($BY$8:$BY$107,--($CX$8:$CX$107=\"c\"))),0)))","v":""},{"$f":"IF($AC37=\"\",\"\",IF(OR($CX37<>\"c\",SUM($BY$8:$BY$107)=0),0,ROUND(BX37*MIN('Other Data'!$G$84,'Other Data'!$H$84*IF('Project Information'!$F$10=\"X\",('Project Information'!$L$42-'Project Information'!$L$39),'Project Information'!$L$42)/SUMPRODUCT($BY$8:$BY$107,--($CX$8:$CX$107=\"c\"))),0)))","v":""},0,null,"","",{"$f":"IF($J37=\"\",\"\",VLOOKUP($J37,'TRM Data'!$R$4:$S$168,2,FALSE))","v":""},"","","",null,{"$f":"IF($CV37=0,\"\",CBAT!$DJ37)","v":""},null,null,1,1,0,1,0,null,{"$f":"IF(OR($CV37=0,ISBLANK('Project Information'!$D$44)),\"\",IF(AND($CV37=1,$CO37<1,$G37=\"yes\"),\"a\",IF($CO37<1,\"b\",\"c\")))","v":""}]
[0,31,null,null,null,null,null,{"$f":"IF($C38=\"\",\"\",IF(COUNTIF('Project Information'!$J$9:BG$9,$C38)<>1,\"\",INDEX('Project Information'!$J$8:$BG$8,1,MATCH($C38,'Project Information'!$J$9:BG$9,0))))","v":""},null,null,{"$f":"LOOKUP(2,1/(COUNTIF($K$7:K37,$Q$8:$Q$108)=0),$Q$8:$Q$108)","v":{"$error":"#N/A"}},{"$f":"IF(OR('Project Information'!$D$32=\"\",C38=\"\"),\"\",'Project Information'!$D$32)","v":""},{"$f":"IF($C38=\"\",\"\",IF(COUNTIF('Project Information'!$J$9:$BG$9,$C38)=1,HLOOKUP(C38,'Project Information'!$J$9:$BG$10,2,FALSE),0))","v":""},null,null,null,null,null,null,null,{"$f":"IF(Q38<>\"\",IF('Project Information'!$D$33=\"Small Business\",\"I\",\"P\")&VLOOKUP($Q38,'TRM Data'!$C$5:$N$201,COLUMN('TRM Data'!$E$2)-COLUMN('TRM Data'!$C$2)+1,FALSE)&IF($L38=\"Summer\",\"S\",IF($L38=\"Winter\",\"W\",\"Y\")),\"\")","v":""},{"$f":"IF(OR($F38=\"Controls\",$F38=\"\"),\"\",VLOOKUP($Q38,'TRM Data'!$C$5:$N$201,COLUMN('TRM Data'!$F$2)-COLUMN('TRM Data'!$C$2)+1,FALSE))","v":""},null,{"$f":"IF($R38=0,\"\",VLOOKUP($Q38,'TRM Data'!$C$5:$N$201,COLUMN('TRM Data'!$G$2)-COLUMN('TRM Data'!$C$2)+1,FALSE)*$R38)","v":""},null,{"$f":"IF($R38=0,\"\",VLOOKUP($Q38,'TRM Data'!$C$5:$N$201,COLUMN('TRM Data'!$I$2)-COLUMN('TRM Data'!$C$2)+1,FALSE)*$R38)","v":""},{"$f":"IF($Q38=\"\",\"\",IF('Project Information'!$D$33=\"Small Business\",'Project Scope'!$CA38,IF('Project Information'!$D$33=\"Pay for Performance\",'Project Scope'!$CD38,0)))","v":""},null,null,null,{"$f":"IF(AC38<>\"\",\"P\"&VLOOKUP($AC38,'TRM Data'!$C$5:$N$201,COLUMN('TRM Data'!$E$2)-COLUMN('TRM Data'!$C$2)+1,FALSE)&IF($L38=\"Summer\",\"S\",IF($L38=\"Winter\",\"W\",\"Y\")),\"\")","v":""},{"$f":"IF($AD38=0,\"\",VLOOKUP($AC38,'TRM Data'!$C$5:$N$201,COLUMN('TRM Data'!$G$2)-COLUMN('TRM Data'!$C$2)+1,FALSE)*$AD38)","v":""},null,{"$f":"IF($AD38=0,\"\",VLOOKUP($AC38,'TRM Data'!$C$5:$N$201,COLUMN('TRM Data'!$I$2)-COLUMN('TRM Data'!$C$2)+1,FALSE)*$AD38)","v":""},{"$f":"IF($AC38=\"\",\"\",IF('Project Information'!$D$33=\"Small Business\",'Project Scope'!$CB38,IF('Project Information'!$D$33=\"Pay for Performance\",'Project Scope'!$CE38,0)))","v":""},null,"",null,"","","","","","","",{"$f":"IF($Q38=\"\",\"\",IF(AND(ISNUMBER($BW38),ISNUMBER($AR38),$AR38>0),SUM($BL38,$BO38,$BI38)*'Other Data'!$H$83,0))","v":""},{"$f":"IF($Q38=\"\",\"\",IF(AND(ISNUMBER($BW38),ISNUMBER($AR38),$AR38>0),$BW38*'Other Data'!$G$84,0))","v":""},null,"","","","","",{"$f":"IF($AC38=\"\",\"\",IF(AND(ISNUMBER($BX38), ISNUMBER($AZ38),$AZ38>0),SUM($BJ38,$BM38,$BP38)*'Other Data'!$H$83,0))","v":""},{"$f":"IF($AC38=\"\",\"\",IF(AND(ISNUMBER($BX38), ISNUMBER($AZ38),$AZ38>0),$BX38*'Other Data'!$G$84,0))","v":""},null,{"$f":"IF($C38=\"\",\"\",SUM('Ancillary Costs'!$N$91:$N$105)*(SUM($AR38,$AZ38,SUM($AS38,$BA38)*'Project Information'!$D$12)))","v":""},{"$f":"IF($C38=\"\",\"\",SUMIFS('Ancillary Costs'!$N$72:$N$86,'Ancillary Costs'!$FL$72:$FL$86,\"*xx\"&'Project Scope'!$C38&\"xx*\")*(SUM($AR38,$AZ38,SUM($AS38,$BA38)*'Project Information'!$D$12)))","v":""},{"$f":"IFERROR(IF($C38=\"\",\"\",SUMIFS('Ancillary Costs'!$N$8:$N$67,'Ancillary Costs'!$FL$8:$FL$67,\"*xx\"&'Project Scope'!C38&\"xx*\",'Ancillary Costs'!$I$8:$I$67,'Project Scope'!$AN38)*'Project Scope'!$AO38),0)","v":""},{"$f":"IFERROR(IF($C38=\"\",\"\",SUMIFS('Ancillary Costs'!$N$8:$N$67,'Ancillary Costs'!$FL$8:$FL$67,\"*xx\"&'Project Scope'!C38&\"xx*\",'Ancillary Costs'!$I$8:$I$67,'Project Scope'!$AW38)*'Project Scope'!$AX38),0)","v":""},{"$f":"IF($C38=\"\",\"\",IF(SUM($AR38,$AZ38,SUM($AS38,$BA38)*'Project Information'!$D$12)=0,0,SUM($BG38,(SUM($BE38:$BF38))*((SUM($AR38,(IF(ISNUMBER($AS38),$AS38,0)*'Project Information'!$D$12)))/SUM($AR38,$AZ38,SUM($AS38,$BA38)*'Project Information'!$D$12)))))","v":""},{"$f":"IF($C38=\"\",\"\",IF(SUM($AR38,$AZ38,SUM($AS38,$BA38)*'Project Information'!$D$12)=0,0,SUM($BH38,(SUM($BE38:$BF38))*((SUM($AZ38,(IF(ISNUMBER($BA38),$BA38,0)*'Project Information'!$D$12)))/SUM($AR38,$AZ38,SUM($AS38,$BA38)*'Project Information'!$D$12)))))","v":""},null,"","","",{"$f":"IF($C38=\"\",\"\",IF(OR($AS38=\"\",$CX38=\"b\"),0,$AS38*'Project Information'!$D$12))","v":""},{"$f":"IF($C38=\"\",\"\",IF(OR($BA38=\"\",$CX38=\"b\"),0,$BA38*'Project Information'!$D$12))","v":""},"","","","","",null,{"$f":"CBAT!$AB38","v":""},{"$f":"CBAT!$BZ38","v":""},0,null,"","",0,{"$f":"IF($Q38=\"\",\"\",IF(OR($CX38<>\"c\",SUM($BY$8:$BY$107)=0),0,ROUND(BW38*MIN('Other Data'!$G$84,'Other Data'!$H$84*IF('Project Information'!$F$10=\"X\",('Project Information'!$L$42-'Project Information'!$L$39),'Project Information'!$L$42)/SUMPRODUCT($BY$8:$BY$107,--($CX$8:$CX$107=\"c\"))),0)))","v":""},{"$f":"IF($AC38=\"\",\"\",IF(OR($CX38<>\"c\",SUM($BY$8:$BY$107)=0),0,ROUND(BX38*MIN('Other Data'!$G$84,'Other Data'!$H$84*IF('Project Information'!$F$10=\"X\",('Project Information'!$L$42-'Project Information'!$L$39),'Project Information'!$L$42)/SUMPRODUCT($BY$8:$BY$107,--($CX$8:$CX$107=\"c\"))),0)))","v":""},0,null,"","",{"$f":"IF($J38=\"\",\"\",VLOOKUP($J38,'TRM Data'!$R$4:$S$168,2,FALSE))","v":""},"","","",null,{"$f":"IF($CV38=0,\"\",CBAT!$DJ38)","v":""},null,null,1,1,0,1,0,null,{"$f":"IF(OR($CV38=0,ISBLANK('Project Information'!$D$44)),\"\",IF(AND($CV38=1,$CO38<1,$G38=\"yes\"),\"a\",IF($CO38<1,\"b\",\"c\")))","v":""}]
[0,32,null,null,null,null,null,{"$f":"IF($C39=\"\",\"\",IF(COUNTIF('Project Information'!$J$9:BG$9,$C39)<>1,\"\",INDEX('Project Information'!$J$8:$BG$8,1,MATCH($C39,'Project Information'!$J$9:BG$9,0))))","v":""},null,null,{"$f":"LOOKUP(2,1/(COUNTIF($K$7:K38,$Q$8:$Q$108)=0),$Q$8:$Q$108)","v":{"$error":"#N/A"}},{"$f":"IF(OR('Project Information'!$D$32=\"\",C39=\"\"),\"\",'Project Information'!$D$32)","v":""},{"$f":"IF($C39=\"\",\"\",IF(COUNTIF('Project Information'!$J$9:$BG$9,$C39)=1,HLOOKUP(C39,'Project Information'!$J$9:$BG$10,2,FALSE),0))","v":""},null,null,null,null,null,null,null,{"$f":"IF(Q39<>\"\",IF('Project Information'!$D$33=\"Small Business\",\"I\",\"P\")&VLOOKUP($Q39,'TRM Data'!$C$5:$N$201,COLUMN('TRM Data'!$E$2)-COLUMN('TRM Data'!$C$2)+1,FALSE)&IF($L39=\"Summer\",\"S\",IF($L39=\"Winter\",\"W\",\"Y\")),\"\")","v":""},{"$f":"IF(OR($F39=\"Controls\",$F39=\"\"),\"\",VLOOKUP($Q39,'TRM Data'!$C$5:$N$201,COLUMN('TRM Data'!$F$2)-COLUMN('TRM Data'!$C$2)+1,FALSE))","v":""},null,{"$f":"IF($R39=0,\"\",VLOOKUP($Q39,'TRM Data'!$C$5:$N$201,COLUMN('TRM Data'!$G$2)-COLUMN('TRM Data'!$C$2)+1,FALSE)*$R39)","v":""},null,{"$f":"IF($R39=0,\"\",VLOOKUP($Q39,'TRM Data'!$C$5:$N$201,COLUMN('TRM Data'!$I$2)-COLUMN('TRM Data'!$C$2)+1,FALSE)*$R39)","v":""},{"$f":"IF($Q39=\"\",\"\",IF('Project Information'!$D$33=\"Small Business\",'Project Scope'!$CA39,IF('Project Information'!$D$33=\"Pay for Performance\",'Project Scope'!$CD39,0)))","v":""},null,null,null,{"$f":"IF(AC39<>\"\",\"P\"&VLOOKUP($AC39,'TRM Data'!$C$5:$N$201,COLUMN('TRM Data'!$E$2)-COLUMN('TRM Data'!$C$2)+1,FALSE)&IF($L39=\"Summer\",\"S\",IF($L39=\"Winter\",\"W\",\"Y\")),\"\")","v":""},{"$f":"IF($AD39=0,\"\",VLOOKUP($AC39,'TRM Data'!$C$5:$N$201,COLUMN('TRM Data'!$G$2)-COLUMN('TRM Data'!$C$2)+1,FALSE)*$AD39)","v":""},null,{"$f":"IF($AD39=0,\"\",VLOOKUP($AC39,'TRM Data'!$C$5:$N$201,COLUMN('TRM Data'!$I$2)-COLUMN('TRM Data'!$C$2)+1,FALSE)*$AD39)","v":""},{"$f":"IF($AC39=\"\",\"\",IF('Project Information'!$D$33=\"Small Business\",'Project Scope'!$CB39,IF('Project Information'!$D$33=\"Pay for Performance\",'Project Scope'!$CE39,0)))","v":""},null,"",null,"","","","","","","",{"$f":"IF($Q39=\"\",\"\",IF(AND(ISNUMBER($BW39),ISNUMBER($AR39),$AR39>0),SUM($BL39,$BO39,$BI39)*'Other Data'!$H$83,0))","v":""},{"$f":"IF($Q39=\"\",\"\",IF(AND(ISNUMBER($BW39),ISNUMBER($AR39),$AR39>0),$BW39*'Other Data'!$G$84,0))","v":""},null,"","","","","",{"$f":"IF($AC39=\"\",\"\",IF(AND(ISNUMBER($BX39), ISNUMBER($AZ39),$AZ39>0),SUM($BJ39,$BM39,$BP39)*'Other Data'!$H$83,0))","v":""},{"$f":"IF($AC39=\"\",\"\",IF(AND(ISNUMBER($BX39), ISNUMBER($AZ39),$AZ39>0),$BX39*'Other Data'!$G$84,0))","v":""},null,{"$f":"IF($C39=\"\",\"\",SUM('Ancillary Costs'!$N$91:$N$105)*(SUM($AR39,$AZ39,SUM($AS39,$BA39)*'Project Information'!$D$12)))","v":""},{"$f":"IF($C39=\"\",\"\",SUMIFS('Ancillary Costs'!$N$72:$N$86,'Ancillary Costs'!$FL$72:$FL$86,\"*xx\"&'Project Scope'!$C39&\"xx*\")*(SUM($AR39,$AZ39,SUM($AS39,$BA39)*'Project Information'!$D$12)))","v":""},{"$f":"IFERROR(IF($C39=\"\",\"\",SUMIFS('Ancillary Costs'!$N$8:$N$67,'Ancillary Costs'!$FL$8:$FL$67,\"*xx\"&'Project Scope'!C39&\"xx*\",'Ancillary Costs'!$I$8:$I$67,'Project Scope'!$AN39)*'Project Scope'!$AO39),0)","v":""},{"$f":"IFERROR(IF($C39=\"\",\"\",SUMIFS('Ancillary Costs'!$N$8:$N$67,'Ancillary Costs'!$FL$8:$FL$67,\"*xx\"&'Project Scope'!C39&\"xx*\",'Ancillary Costs'!$I$8:$I$67,'Project Scope'!$AW39)*'Project Scope'!$AX39),0)","v":""},{"$f":"IF($C39=\"\",\"\",IF(SUM($AR39,$AZ39,SUM($AS39,$BA39)*'Project Information'!$D$12)=0,0,SUM($BG39,(SUM($BE39:$BF39))*((SUM($AR39,(IF(ISNUMBER($AS39),$AS39,0)*'Project Information'!$D$12)))/SUM($AR39,$AZ39,SUM($AS39,$BA39)*'Project Information'!$D$12)))))","v":""},{"$f":"IF($C39=\"\",\"\",IF(SUM($AR39,$AZ39,SUM($AS39,$BA39)*'Project Information'!$D$12)=0,0,SUM($BH39,(SUM($BE39:$BF39))*((SUM($AZ39,(IF(ISNUMBER($BA39),$BA39,0)*'Project Information'!$D$12)))/SUM($AR39,$AZ39,SUM($AS39,$BA39)*'Project Information'!$D$12)))))","v":""},null,"","","",{"$f":"IF($C39=\"\",\"\",IF(OR($AS39=\"\",$CX39=\"b\"),0,$AS39*'Project Information'!$D$12))","v":""},{"$f":"IF($C39=\"\",\"\",IF(OR($BA39=\"\",$CX39=\"b\"),0,$BA39*'Project Information'!$D$12))","v":""},"","","","","",null,{"$f":"CBAT!$AB39","v":""},{"$f":"CBAT!$BZ39","v":""},0,null,"","",0,{"$f":"IF($Q39=\"\",\"\",IF(OR($CX39<>\"c\",SUM($BY$8:$BY$107)=0),0,ROUND(BW39*MIN('Other Data'!$G$84,'Other Data'!$H$84*IF('Project Information'!$F$10=\"X\",('Project Information'!$L$42-'Project Information'!$L$39),'Project Information'!$L$42)/SUMPRODUCT($BY$8:$BY$107,--($CX$8:$CX$107=\"c\"))),0)))","v":""},{"$f":"IF($AC39=\"\",\"\",IF(OR($CX39<>\"c\",SUM($BY$8:$BY$107)=0),0,ROUND(BX39*MIN('Other Data'!$G$84,'Other Data'!$H$84*IF('Project Information'!$F$10=\"X\",('Project Information'!$L$42-'Project Information'!$L$39),'Project Information'!$L$42)/SUMPRODUCT($BY$8:$BY$107,--($CX$8:$CX$107=\"c\"))),0)))","v":""},0,null,"","",{"$f":"IF($J39=\"\",\"\",VLOOKUP($J39,'TRM Data'!$R$4:$S$168,2,FALSE))","v":""},"","","",null,{"$f":"IF($CV39=0,\"\",CBAT!$DJ39)","v":""},null,null,1,1,0,1,0,null,{"$f":"IF(OR($CV39=0,ISBLANK('Project Information'!$D$44)),\"\",IF(AND($CV39=1,$CO39<1,$G39=\"yes\"),\"a\",IF($CO39<1,\"b\",\"c\")))","v":""}]
[{"$f":"11-(COUNTBLANK(C40)+COUNTBLANK(E40:F40)+COUNTBLANK(I40:J40)+COUNTBLANK(N40)+COUNTBLANK(P40:R40)+COUNTBLANK(AC40:AD40))","v":0},33,null,null,null,null,null,{"$f":"IF($C40=\"\",\"\",IF(COUNTIF('Project Information'!$J$9:BG$9,$C40)<>1,\"\",INDEX('Project Information'!$J$8:$BG$8,1,MATCH($C40,'Project Information'!$J$9:BG$9,0))))","v":""},null,null,{"$f":"LOOKUP(2,1/(COUNTIF($K$7:K39,$Q$8:$Q$108)=0),$Q$8:$Q$108)","v":{"$error":"#N/A"}},{"$f":"IF(OR('Project Information'!$D$32=\"\",C40=\"\"),\"\",'Project Information'!$D$32)","v":""},{"$f":"IF($C40=\"\",\"\",IF(COUNTIF('Project Information'!$J$9:$BG$9,$C40)=1,HLOOKUP(C40,'Project Information'!$J$9:$BG$10,2,FALSE),0))","v":""},null,null,null,null,null,null,null,{"$f":"IF(Q40<>\"\",IF('Project Information'!$D$33=\"Small Business\",\"I\",\"P\")&VLOOKUP($Q40,'TRM Data'!$C$5:$N$201,COLUMN('TRM Data'!$E$2)-COLUMN('TRM Data'!$C$2)+1,FALSE)&IF($L40=\"Summer\",\"S\",IF($L40=\"Winter\",\"W\",\"Y\")),\"\")","v":""},{"$f":"IF(OR($F40=\"Controls\",$F40=\"\"),\"\",VLOOKUP($Q40,'TRM Data'!$C$5:$N$201,COLUMN('TRM Data'!$F$2)-COLUMN('TRM Data'!$C$2)+1,FALSE))","v":""},null,{"$f":"IF($R40=0,\"\",VLOOKUP($Q40,'TRM Data'!$C$5:$N$201,COLUMN('TRM Data'!$G$2)-COLUMN('TRM Data'!$C$2)+1,FALSE)*$R40)","v":""},null,{"$f":"IF($R40=0,\"\",VLOOKUP($Q40,'TRM Data'!$C$5:$N$201,COLUMN('TRM Data'!$I$2)-COLUMN('TRM Data'!$C$2)+1,FALSE)*$R40)","v":""},{"$f":"IF($Q40=\"\",\"\",IF('Project Information'!$D$33=\"Small Business\",'Project Scope'!$CA40,IF('Project Information'!$D$33=\"Pay for Performance\",'Project Scope'!$CD40,0)))","v":""},null,null,null,{"$f":"IF(AC40<>\"\",\"P\"&VLOOKUP($AC40,'TRM Data'!$C$5:$N$201,COLUMN('TRM Data'!$E$2)-COLUMN('TRM Data'!$C$2)+1,FALSE)&IF($L40=\"Summer\",\"S\",IF($L40=\"Winter\",\"W\",\"Y\")),\"\")","v":""},{"$f":"IF($AD40=0,\"\",VLOOKUP($AC40,'TRM Data'!$C$5:$N$201,COLUMN('TRM Data'!$G$2)-COLUMN('TRM Data'!$C$2)+1,FALSE)*$AD40)","v":""},null,{"$f":"IF($AD40=0,\"\",VLOOKUP($AC40,'TRM Data'!$C$5:$N$201,COLUMN('TRM Data'!$I$2)-COLUMN('TRM Data'!$C$2)+1,FALSE)*$AD40)","v":""},{"$f":"IF($AC40=\"\",\"\",IF('Project Information'!$D$33=\"Small Business\",'Project Scope'!$CB40,IF('Project Information'!$D$33=\"Pay for Performance\",'Project Scope'!$CE40,0)))","v":""},null,"",null,"","","","","","","",{"$f":"IF($Q40=\"\",\"\",IF(AND(ISNUMBER($BW40),ISNUMBER($AR40),$AR40>0),SUM($BL40,$BO40,$BI40)*'Other Data'!$H$83,0))","v":""},{"$f":"IF($Q40=\"\",\"\",IF(AND(ISNUMBER($BW40),ISNUMBER($AR40),$AR40>0),$BW40*'Other Data'!$G$84,0))","v":""},null,"","","","","",{"$f":"IF($AC40=\"\",\"\",IF(AND(ISNUMBER($BX40), ISNUMBER($AZ40),$AZ40>0),SUM($BJ40,$BM40,$BP40)*'Other Data'!$H$83,0))","v":""},{"$f":"IF($AC40=\"\",\"\",IF(AND(ISNUMBER($BX40), ISNUMBER($AZ40),$AZ40>0),$BX40*'Other Data'!$G$84,0))","v":""},null,{"$f":"IF($C40=\"\",\"\",SUM('Ancillary Costs'!$N$91:$N$105)*(SUM($AR40,$AZ40,SUM($AS40,$BA40)*'Project Information'!$D$12)))","v":""},{"$f":"IF($C40=\"\",\"\",SUMIFS('Ancillary Costs'!$N$72:$N$86,'Ancillary Costs'!$FL$72:$FL$86,\"*xx\"&'Project Scope'!$C40&\"xx*\")*(SUM($AR40,$AZ40,SUM($AS40,$BA40)*'Project Information'!$D$12)))","v":""},{"$f":"IFERROR(IF($C40=\"\",\"\",SUMIFS('Ancillary Costs'!$N$8:$N$67,'Ancillary Costs'!$FL$8:$FL$67,\"*xx\"&'Project Scope'!C40&\"xx*\",'Ancillary Costs'!$I$8:$I$67,'Project Scope'!$AN40)*'Project Scope'!$AO40),0)","v":""},{"$f":"IFERROR(IF($C40=\"\",\"\",SUMIFS('Ancillary Costs'!$N$8:$N$67,'Ancillary Costs'!$FL$8:$FL$67,\"*xx\"&'Project Scope'!C40&\"xx*\",'Ancillary Costs'!$I$8:$I$67,'Project Scope'!$AW40)*'Project Scope'!$AX40),0)","v":""},{"$f":"IF($C40=\"\",\"\",IF(SUM($AR40,$AZ40,SUM($AS40,$BA40)*'Project Information'!$D$12)=0,0,SUM($BG40,(SUM($BE40:$BF40))*((SUM($AR40,(IF(ISNUMBER($AS40),$AS40,0)*'Project Information'!$D$12)))/SUM($AR40,$AZ40,SUM($AS40,$BA40)*'Project Information'!$D$12)))))","v":""},{"$f":"IF($C40=\"\",\"\",IF(SUM($AR40,$AZ40,SUM($AS40,$BA40)*'Project Information'!$D$12)=0,0,SUM($BH40,(SUM($BE40:$BF40))*((SUM($AZ40,(IF(ISNUMBER($BA40),$BA40,0)*'Project Information'!$D$12)))/SUM($AR40,$AZ40,SUM($AS40,$BA40)*'Project Information'!$D$12)))))","v":""},null,"","","",{"$f":"IF($C40=\"\",\"\",IF(OR($AS40=\"\",$CX40=\"b\"),0,$AS40*'Project Information'!$D$12))","v":""},{"$f":"IF($C40=\"\",\"\",IF(OR($BA40=\"\",$CX40=\"b\"),0,$BA40*'Project Information'!$D$12))","v":""},"","","","","",null,{"$f":"CBAT!$AB40","v":""},{"$f":"CBAT!$BZ40","v":""},0,null,"","",0,{"$f":"IF($Q40=\"\",\"\",IF(OR($CX40<>\"c\",SUM($BY$8:$BY$107)=0),0,ROUND(BW40*MIN('Other Data'!$G$84,'Other Data'!$H$84*IF('Project Information'!$F$10=\"X\",('Project Information'!$L$42-'Project Information'!$L$39),'Project Information'!$L$42)/SUMPRODUCT($BY$8:$BY$107,--($CX$8:$CX$107=\"c\"))),0)))","v":""},{"$f":"IF($AC40=\"\",\"\",IF(OR($CX40<>\"c\",SUM($BY$8:$BY$107)=0),0,ROUND(BX40*MIN('Other Data'!$G$84,'Other Data'!$H$84*IF('Project Information'!$F$10=\"X\",('Project Information'!$L$42-'Project Information'!$L$39),'Project Information'!$L$42)/SUMPRODUCT($BY$8:$BY$107,--($CX$8:$CX$107=\"c\"))),0)))","v":""},0,null,"","",{"$f":"IF($J40=\"\",\"\",VLOOKUP($J40,'TRM Data'!$R$4:$S$168,2,FALSE))","v":""},"","","",null,{"$f":"IF($CV40=0,\"\",CBAT!$DJ40)","v":""},null,null,1,1,0,1,0,null,{"$f":"IF(OR($CV40=0,ISBLANK('Project Information'!$D$44)),\"\",IF(AND($CV40=1,$CO40<1,$G40=\"yes\"),\"a\",IF($CO40<1,\"b\",\"c\")))","v":""}]
[0,34,null,null,null,null,null,{"$f":"IF($C41=\"\",\"\",IF(COUNTIF('Project Information'!$J$9:BG$9,$C41)<>1,\"\",INDEX('Project Information'!$J$8:$BG$8,1,MATCH($C41,'Project Information'!$J$9:BG$9,0))))","v":""},null,null,{"$f":"LOOKUP(2,1/(COUNTIF($K$7:K40,$Q$8:$Q$108)=0),$Q$8:$Q$108)","v":{"$error":"#N/A"}},{"$f":"IF(OR('Project Information'!$D$32=\"\",C41=\"\"),\"\",'Project Information'!$D$32)","v":""},{"$f":"IF($C41=\"\",\"\",IF(COUNTIF('Project Information'!$J$9:$BG$9,$C41)=1,HLOOKUP(C41,'Project Information'!$J$9:$BG$10,2,FALSE),0))","v":""},null,null,null,null,null,null,null,{"$f":"IF(Q41<>\"\",IF('Project Information'!$D$33=\"Small Business\",\"I\",\"P\")&VLOOKUP($Q41,'TRM Data'!$C$5:$N$201,COLUMN('TRM Data'!$E$2)-COLUMN('TRM Data'!$C$2)+1,FALSE)&IF($L41=\"Summer\",\"S\",IF($L41=\"Winter\",\"W\",\"Y\")),\"\")","v":""},{"$f":"IF(OR($F41=\"Controls\",$F41=\"\"),\"\",VLOOKUP($Q41,'TRM Data'!$C$5:$N$201,COLUMN('TRM Data'!$F$2)-COLUMN('TRM Data'!$C$2)+1,FALSE))","v":""},null,{"$f":"IF($R41=0,\"\",VLOOKUP($Q41,'TRM Data'!$C$5:$N$201,COLUMN('TRM Data'!$G$2)-COLUMN('TRM Data'!$C$2)+1,FALSE)*$R41)","v":""},null,{"$f":"IF($R41=0,\"\",VLOOKUP($Q41,'TRM Data'!$C$5:$N$201,COLUMN('TRM Data'!$I$2)-COLUMN('TRM Data'!$C$2)+1,FALSE)*$R41)","v":""},{"$f":"IF($Q41=\"\",\"\",IF('Project Information'!$D$33=\"Small Business\",'Project Scope'!$CA41,IF('Project Information'!$D$33=\"Pay for Performance\",'Project Scope'!$CD41,0)))","v":""},null,null,null,{"$f":"IF(AC41<>\"\",\"P\"&VLOOKUP($AC41,'TRM Data'!$C$5:$N$201,COLUMN('TRM Data'!$E$2)-COLUMN('TRM Data'!$C$2)+1,FALSE)&IF($L41=\"Summer\",\"S\",IF($L41=\"Winter\",\"W\",\"Y\")),\"\")","v":""},{"$f":"IF($AD41=0,\"\",VLOOKUP($AC41,'TRM Data'!$C$5:$N$201,COLUMN('TRM Data'!$G$2)-COLUMN('TRM Data'!$C$2)+1,FALSE)*$AD41)","v":""},null,{"$f":"IF($AD41=0,\"\",VLOOKUP($AC41,'TRM Data'!$C$5:$N$201,COLUMN('TRM Data'!$I$2)-COLUMN('TRM Data'!$C$2)+1,FALSE)*$AD41)","v":""},{"$f":"IF($AC41=\"\",\"\",IF('Project Information'!$D$33=\"Small Business\",'Project Scope'!$CB41,IF('Project Information'!$D$33=\"Pay for Performance\",'Project Scope'!$CE41,0)))","v":""},null,"",null,"","","","","","","",{"$f":"IF($Q41=\"\",\"\",IF(AND(ISNUMBER($BW41),ISNUMBER($AR41),$AR41>0),SUM($BL41,$BO41,$BI41)*'Other Data'!$H$83,0))","v":""},{"$f":"IF($Q41=\"\",\"\",IF(AND(ISNUMBER($BW41),ISNUMBER($AR41),$AR41>0),$BW41*'Other Data'!$G$84,0))","v":""},null,"","","","","",{"$f":"IF($AC41=\"\",\"\",IF(AND(ISNUMBER($BX41), ISNUMBER($AZ41),$AZ41>0),SUM($BJ41,$BM41,$BP41)*'Other Data'!$H$83,0))","v":""},{"$f":"IF($AC41=\"\",\"\",IF(AND(ISNUMBER($BX41), ISNUMBER($AZ41),$AZ41>0),$BX41*'Other Data'!$G$84,0))","v":""},null,{"$f":"IF($C41=\"\",\"\",SUM('Ancillary Costs'!$N$91:$N$105)*(SUM($AR41,$AZ41,SUM($AS41,$BA41)*'Project Information'!$D$12)))","v":""},{"$f":"IF($C41=\"\",\"\",SUMIFS('Ancillary Costs'!$N$72:$N$86,'Ancillary Costs'!$FL$72:$FL$86,\"*xx\"&'Project Scope'!$C41&\"xx*\")*(SUM($AR41,$AZ41,SUM($AS41,$BA41)*'Project Information'!$D$12)))","v":""},{"$f":"IFERROR(IF($C41=\"\",\"\",SUMIFS('Ancillary Costs'!$N$8:$N$67,'Ancillary Costs'!$FL$8:$FL$67,\"*xx\"&'Project Scope'!C41&\"xx*\",'Ancillary Costs'!$I$8:$I$67,'Project Scope'!$AN41)*'Project Scope'!$AO41),0)","v":""},{"$f":"IFERROR(IF($C41=\"\",\"\",SUMIFS('Ancillary Costs'!$N$8:$N$67,'Ancillary Costs'!$FL$8:$FL$67,\"*xx\"&'Project Scope'!C41&\"xx*\",'Ancillary Costs'!$I$8:$I$67,'Project Scope'!$AW41)*'Project Scope'!$AX41),0)","v":""},{"$f":"IF($C41=\"\",\"\",IF(SUM($AR41,$AZ41,SUM($AS41,$BA41)*'Project Information'!$D$12)=0,0,SUM($BG41,(SUM($BE41:$BF41))*((SUM($AR41,(IF(ISNUMBER($AS41),$AS41,0)*'Project Information'!$D$12)))/SUM($AR41,$AZ41,SUM($AS41,$BA41)*'Project Information'!$D$12)))))","v":""},{"$f":"IF($C41=\"\",\"\",IF(SUM($AR41,$AZ41,SUM($AS41,$BA41)*'Project Information'!$D$12)=0,0,SUM($BH41,(SUM($BE41:$BF41))*((SUM($AZ41,(IF(ISNUMBER($BA41),$BA41,0)*'Project Information'!$D$12)))/SUM($AR41,$AZ41,SUM($AS41,$BA41)*'Project Information'!$D$12)))))","v":""},null,"","","",{"$f":"IF($C41=\"\",\"\",IF(OR($AS41=\"\",$CX41=\"b\"),0,$AS41*'Project Information'!$D$12))","v":""},{"$f":"IF($C41=\"\",\"\",IF(OR($BA41=\"\",$CX41=\"b\"),0,$BA41*'Project Information'!$D$12))","v":""},"","","","","",null,{"$f":"CBAT!$AB41","v":""},{"$f":"CBAT!$BZ41","v":""},0,null,"","",0,{"$f":"IF($Q41=\"\",\"\",IF(OR($CX41<>\"c\",SUM($BY$8:$BY$107)=0),0,ROUND(BW41*MIN('Other Data'!$G$84,'Other Data'!$H$84*IF('Project Information'!$F$10=\"X\",('Project Information'!$L$42-'Project Information'!$L$39),'Project Information'!$L$42)/SUMPRODUCT($BY$8:$BY$107,--($CX$8:$CX$107=\"c\"))),0)))","v":""},{"$f":"IF($AC41=\"\",\"\",IF(OR($CX41<>\"c\",SUM($BY$8:$BY$107)=0),0,ROUND(BX41*MIN('Other Data'!$G$84,'Other Data'!$H$84*IF('Project Information'!$F$10=\"X\",('Project Information'!$L$42-'Project Information'!$L$39),'Project Information'!$L$42)/SUMPRODUCT($BY$8:$BY$107,--($CX$8:$CX$107=\"c\"))),0)))","v":""},0,null,"","",{"$f":"IF($J41=\"\",\"\",VLOOKUP($J41,'TRM Data'!$R$4:$S$168,2,FALSE))","v":""},"","","",null,{"$f":"IF($CV41=0,\"\",CBAT!$DJ41)","v":""},null,null,1,1,0,1,0,null,{"$f":"IF(OR($CV41=0,ISBLANK('Project Information'!$D$44)),\"\",IF(AND($CV41=1,$CO41<1,$G41=\"yes\"),\"a\",IF($CO41<1,\"b\",\"c\")))","v":""}]
[0,35,null,null,null,null,null,{"$f":"IF($C42=\"\",\"\",IF(COUNTIF('Project Information'!$J$9:BG$9,$C42)<>1,\"\",INDEX('Project Information'!$J$8:$BG$8,1,MATCH($C42,'Project Information'!$J$9:BG$9,0))))","v":""},null,null,{"$f":"LOOKUP(2,1/(COUNTIF($K$7:K41,$Q$8:$Q$108)=0),$Q$8:$Q$108)","v":{"$error":"#N/A"}},{"$f":"IF(OR('Project Information'!$D$32=\"\",C42=\"\"),\"\",'Project Information'!$D$32)","v":""},{"$f":"IF($C42=\"\",\"\",IF(COUNTIF('Project Information'!$J$9:$BG$9,$C42)=1,HLOOKUP(C42,'Project Information'!$J$9:$BG$10,2,FALSE),0))","v":""},null,null,null,null,null,null,null,{"$f":"IF(Q42<>\"\",IF('Project Information'!$D$33=\"Small Business\",\"I\",\"P\")&VLOOKUP($Q42,'TRM Data'!$C$5:$N$201,COLUMN('TRM Data'!$E$2)-COLUMN('TRM Data'!$C$2)+1,FALSE)&IF($L42=\"Summer\",\"S\",IF($L42=\"Winter\",\"W\",\"Y\")),\"\")","v":""},{"$f":"IF(OR($F42=\"Controls\",$F42=\"\"),\"\",VLOOKUP($Q42,'TRM Data'!$C$5:$N$201,COLUMN('TRM Data'!$F$2)-COLUMN('TRM Data'!$C$2)+1,FALSE))","v":""},null,{"$f":"IF($R42=0,\"\",VLOOKUP($Q42,'TRM Data'!$C$5:$N$201,COLUMN('TRM Data'!$G$2)-COLUMN('TRM Data'!$C$2)+1,FALSE)*$R42)","v":""},null,{"$f":"IF($R42=0,\"\",VLOOKUP($Q42,'TRM Data'!$C$5:$N$201,COLUMN('TRM Data'!$I$2)-COLUMN('TRM Data'!$C$2)+1,FALSE)*$R42)","v":""},{"$f":"IF($Q42=\"\",\"\",IF('Project Information'!$D$33=\"Small Business\",'Project Scope'!$CA42,IF('Project Information'!$D$33=\"Pay for Performance\",'Project Scope'!$CD42,0)))","v":""},null,null,null,{"$f":"IF(AC42<>\"\",\"P\"&VLOOKUP($AC42,'TRM Data'!$C$5:$N$201,COLUMN('TRM Data'!$E$2)-COLUMN('TRM Data'!$C$2)+1,FALSE)&IF($L42=\"Summer\",\"S\",IF($L42=\"Winter\",\"W\",\"Y\")),\"\")","v":""},{"$f":"IF($AD42=0,\"\",VLOOKUP($AC42,'TRM Data'!$C$5:$N$201,COLUMN('TRM Data'!$G$2)-COLUMN('TRM Data'!$C$2)+1,FALSE)*$AD42)","v":""},null,{"$f":"IF($AD42=0,\"\",VLOOKUP($AC42,'TRM Data'!$C$5:$N$201,COLUMN('TRM Data'!$I$2)-COLUMN('TRM Data'!$C$2)+1,FALSE)*$AD42)","v":""},{"$f":"IF($AC42=\"\",\"\",IF('Project Information'!$D$33=\"Small Business\",'Project Scope'!$CB42,IF('Project Information'!$D$33=\"Pay for Performance\",'Project Scope'!$CE42,0)))","v":""},null,"",null,"","","","","","","",{"$f":"IF($Q42=\"\",\"\",IF(AND(ISNUMBER($BW42),ISNUMBER($AR42),$AR42>0),SUM($BL42,$BO42,$BI42)*'Other Data'!$H$83,0))","v":""},{"$f":"IF($Q42=\"\",\"\",IF(AND(ISNUMBER($BW42),ISNUMBER($AR42),$AR42>0),$BW42*'Other Data'!$G$84,0))","v":""},null,"","","","","",{"$f":"IF($AC42=\"\",\"\",IF(AND(ISNUMBER($BX42), ISNUMBER($AZ42),$AZ42>0),SUM($BJ42,$BM42,$BP42)*'Other Data'!$H$83,0))","v":""},{"$f":"IF($AC42=\"\",\"\",IF(AND(ISNUMBER($BX42), ISNUMBER($AZ42),$AZ42>0),$BX42*'Other Data'!$G$84,0))","v":""},null,{"$f":"IF($C42=\"\",\"\",SUM('Ancillary Costs'!$N$91:$N$105)*(SUM($AR42,$AZ42,SUM($AS42,$BA42)*'Project Information'!$D$12)))","v":""},{"$f":"IF($C42=\"\",\"\",SUMIFS('Ancillary Costs'!$N$72:$N$86,'Ancillary Costs'!$FL$72:$FL$86,\"*xx\"&'Project Scope'!$C42&\"xx*\")*(SUM($AR42,$AZ42,SUM($AS42,$BA42)*'Project Information'!$D$12)))","v":""},{"$f":"IFERROR(IF($C42=\"\",\"\",SUMIFS('Ancillary Costs'!$N$8:$N$67,'Ancillary Costs'!$FL$8:$FL$67,\"*xx\"&'Project Scope'!C42&\"xx*\",'Ancillary Costs'!$I$8:$I$67,'Project Scope'!$AN42)*'Project Scope'!$AO42),0)","v":""},{"$f":"IFERROR(IF($C42=\"\",\"\",SUMIFS('Ancillary Costs'!$N$8:$N$67,'Ancillary Costs'!$FL$8:$FL$67,\"*xx\"&'Project Scope'!C42&\"xx*\",'Ancillary Costs'!$I$8:$I$67,'Project Scope'!$AW42)*'Project Scope'!$AX42),0)","v":""},{"$f":"IF($C42=\"\",\"\",IF(SUM($AR42,$AZ42,SUM($AS42,$BA42)*'Project Information'!$D$12)=0,0,SUM($BG42,(SUM($BE42:$BF42))*((SUM($AR42,(IF(ISNUMBER($AS42),$AS42,0)*'Project Information'!$D$12)))/SUM($AR42,$AZ42,SUM($AS42,$BA42)*'Project Information'!$D$12)))))","v":""},{"$f":"IF($C42=\"\",\"\",IF(SUM($AR42,$AZ42,SUM($AS42,$BA42)*'Project Information'!$D$12)=0,0,SUM($BH42,(SUM($BE42:$BF42))*((SUM($AZ42,(IF(ISNUMBER($BA42),$BA42,0)*'Project Information'!$D$12)))/SUM($AR42,$AZ42,SUM($AS42,$BA42)*'Project Information'!$D$12)))))","v":""},null,"","","",{"$f":"IF($C42=\"\",\"\",IF(OR($AS42=\"\",$CX42=\"b\"),0,$AS42*'Project Information'!$D$12))","v":""},{"$f":"IF($C42=\"\",\"\",IF(OR($BA42=\"\",$CX42=\"b\"),0,$BA42*'Project Information'!$D$12))","v":""},"","","","","",null,{"$f":"CBAT!$AB42","v":""},{"$f":"CBAT!$BZ42","v":""},0,null,"","",0,{"$f":"IF($Q42=\"\",\"\",IF(OR($CX42<>\"c\",SUM($BY$8:$BY$107)=0),0,ROUND(BW42*MIN('Other Data'!$G$84,'Other Data'!$H$84*IF('Project Information'!$F$10=\"X\",('Project Information'!$L$42-'Project Information'!$L$39),'Project Information'!$L$42)/SUMPRODUCT($BY$8:$BY$107,--($CX$8:$CX$107=\"c\"))),0)))","v":""},{"$f":"IF($AC42=\"\",\"\",IF(OR($CX42<>\"c\",SUM($BY$8:$BY$107)=0),0,ROUND(BX42*MIN('Other Data'!$G$84,'Other Data'!$H$84*IF('Project Information'!$F$10=\"X\",('Project Information'!$L$42-'Project Information'!$L$39),'Project Information'!$L$42)/SUMPRODUCT($BY$8:$BY$107,--($CX$8:$CX$107=\"c\"))),0)))","v":""},0,null,"","",{"$f":"IF($J42=\"\",\"\",VLOOKUP($J42,'TRM Data'!$R$4:$S$168,2,FALSE))","v":""},"","","",null,{"$f":"IF($CV42=0,\"\",CBAT!$DJ42)","v":""},null,null,1,1,0,1,0,null,{"$f":"IF(OR($CV42=0,ISBLANK('Project Information'!$D$44)),\"\",IF(AND($CV42=1,$CO42<1,$G42=\"yes\"),\"a\",IF($CO42<1,\"b\",\"c\")))","v":""}]
[0,36,null,null,null,null,null,{"$f":"IF($C43=\"\",\"\",IF(COUNTIF('Project Information'!$J$9:BG$9,$C43)<>1,\"\",INDEX('Project Information'!$J$8:$BG$8,1,MATCH($C43,'Project Information'!$J$9:BG$9,0))))","v":""},null,null,{"$f":"LOOKUP(2,1/(COUNTIF($K$7:K42,$Q$8:$Q$108)=0),$Q$8:$Q$108)","v":{"$error":"#N/A"}},{"$f":"IF(OR('Project Information'!$D$32=\"\",C43=\"\"),\"\",'Project Information'!$D$32)","v":""},{"$f":"IF($C43=\"\",\"\",IF(COUNTIF('Project Information'!$J$9:$BG$9,$C43)=1,HLOOKUP(C43,'Project Information'!$J$9:$BG$10,2,FALSE),0))","v":""},null,null,null,null,null,null,null,{"$f":"IF(Q43<>\"\",IF('Project Information'!$D$33=\"Small Business\",\"I\",\"P\")&VLOOKUP($Q43,'TRM Data'!$C$5:$N$201,COLUMN('TRM Data'!$E$2)-COLUMN('TRM Data'!$C$2)+1,FALSE)&IF($L43=\"Summer\",\"S\",IF($L43=\"Winter\",\"W\",\"Y\")),\"\")","v":""},{"$f":"IF(OR($F43=\"Controls\",$F43=\"\"),\"\",VLOOKUP($Q43,'TRM Data'!$C$5:$N$201,COLUMN('TRM Data'!$F$2)-COLUMN('TRM Data'!$C$2)+1,FALSE))","v":""},null,{"$f":"IF($R43=0,\"\",VLOOKUP($Q43,'TRM Data'!$C$5:$N$201,COLUMN('TRM Data'!$G$2)-COLUMN('TRM Data'!$C$2)+1,FALSE)*$R43)","v":""},null,{"$f":"IF($R43=0,\"\",VLOOKUP($Q43,'TRM Data'!$C$5:$N$201,COLUMN('TRM Data'!$I$2)-COLUMN('TRM Data'!$C$2)+1,FALSE)*$R43)","v":""},{"$f":"IF($Q43=\"\",\"\",IF('Project Information'!$D$33=\"Small Business\",'Project Scope'!$CA43,IF('Project Information'!$D$33=\"Pay for Performance\",'Project Scope'!$CD43,0)))","v":""},null,null,null,{"$f":"IF(AC43<>\"\",\"P\"&VLOOKUP($AC43,'TRM Data'!$C$5:$N$201,COLUMN('TRM Data'!$E$2)-COLUMN('TRM Data'!$C$2)+1,FALSE)&IF($L43=\"Summer\",\"S\",IF($L43=\"Winter\",\"W\",\"Y\")),\"\")","v":""},{"$f":"IF($AD43=0,\"\",VLOOKUP($AC43,'TRM Data'!$C$5:$N$201,COLUMN('TRM Data'!$G$2)-COLUMN('TRM Data'!$C$2)+1,FALSE)*$AD43)","v":""},null,{"$f":"IF($AD43=0,\"\",VLOOKUP($AC43,'TRM Data'!$C$5:$N$201,COLUMN('TRM Data'!$I$2)-COLUMN('TRM Data'!$C$2)+1,FALSE)*$AD43)","v":""},{"$f":"IF($AC43=\"\",\"\",IF('Project Information'!$D$33=\"Small Business\",'Project Scope'!$CB43,IF('Project Information'!$D$33=\"Pay for Performance\",'Project Scope'!$CE43,0)))","v":""},null,"",null,"","","","","","","",{"$f":"IF($Q43=\"\",\"\",IF(AND(ISNUMBER($BW43),ISNUMBER($AR43),$AR43>0),SUM($BL43,$BO43,$BI43)*'Other Data'!$H$83,0))","v":""},{"$f":"IF($Q43=\"\",\"\",IF(AND(ISNUMBER($BW43),ISNUMBER($AR43),$AR43>0),$BW43*'Other Data'!$G$84,0))","v":""},null,"","","","","",{"$f":"IF($AC43=\"\",\"\",IF(AND(ISNUMBER($BX43), ISNUMBER($AZ43),$AZ43>0),SUM($BJ43,$BM43,$BP43)*'Other Data'!$H$83,0))","v":""},{"$f":"IF($AC43=\"\",\"\",IF(AND(ISNUMBER($BX43), ISNUMBER($AZ43),$AZ43>0),$BX43*'Other Data'!$G$84,0))","v":""},null,{"$f":"IF($C43=\"\",\"\",SUM('Ancillary Costs'!$N$91:$N$105)*(SUM($AR43,$AZ43,SUM($AS43,$BA43)*'Project Information'!$D$12)))","v":""},{"$f":"IF($C43=\"\",\"\",SUMIFS('Ancillary Costs'!$N$72:$N$86,'Ancillary Costs'!$FL$72:$FL$86,\"*xx\"&'Project Scope'!$C43&\"xx*\")*(SUM($AR43,$AZ43,SUM($AS43,$BA43)*'Project Information'!$D$12)))","v":""},{"$f":"IFERROR(IF($C43=\"\",\"\",SUMIFS('Ancillary Costs'!$N$8:$N$67,'Ancillary Costs'!$FL$8:$FL$67,\"*xx\"&'Project Scope'!C43&\"xx*\",'Ancillary Costs'!$I$8:$I$67,'Project Scope'!$AN43)*'Project Scope'!$AO43),0)","v":""},{"$f":"IFERROR(IF($C43=\"\",\"\",SUMIFS('Ancillary Costs'!$N$8:$N$67,'Ancillary Costs'!$FL$8:$FL$67,\"*xx\"&'Project Scope'!C43&\"xx*\",'Ancillary Costs'!$I$8:$I$67,'Project Scope'!$AW43)*'Project Scope'!$AX43),0)","v":""},{"$f":"IF($C43=\"\",\"\",IF(SUM($AR43,$AZ43,SUM($AS43,$BA43)*'Project Information'!$D$12)=0,0,SUM($BG43,(SUM($BE43:$BF43))*((SUM($AR43,(IF(ISNUMBER($AS43),$AS43,0)*'Project Information'!$D$12)))/SUM($AR43,$AZ43,SUM($AS43,$BA43)*'Project Information'!$D$12)))))","v":""},{"$f":"IF($C43=\"\",\"\",IF(SUM($AR43,$AZ43,SUM($AS43,$BA43)*'Project Information'!$D$12)=0,0,SUM($BH43,(SUM($BE43:$BF43))*((SUM($AZ43,(IF(ISNUMBER($BA43),$BA43,0)*'Project Information'!$D$12)))/SUM($AR43,$AZ43,SUM($AS43,$BA43)*'Project Information'!$D$12)))))","v":""},null,"","","",{"$f":"IF($C43=\"\",\"\",IF(OR($AS43=\"\",$CX43=\"b\"),0,$AS43*'Project Information'!$D$12))","v":""},{"$f":"IF($C43=\"\",\"\",IF(OR($BA43=\"\",$CX43=\"b\"),0,$BA43*'Project Information'!$D$12))","v":""},"","","","","",null,{"$f":"CBAT!$AB43","v":""},{"$f":"CBAT!$BZ43","v":""},0,null,"","",0,{"$f":"IF($Q43=\"\",\"\",IF(OR($CX43<>\"c\",SUM($BY$8:$BY$107)=0),0,ROUND(BW43*MIN('Other Data'!$G$84,'Other Data'!$H$84*IF('Project Information'!$F$10=\"X\",('Project Information'!$L$42-'Project Information'!$L$39),'Project Information'!$L$42)/SUMPRODUCT($BY$8:$BY$107,--($CX$8:$CX$107=\"c\"))),0)))","v":""},{"$f":"IF($AC43=\"\",\"\",IF(OR($CX43<>\"c\",SUM($BY$8:$BY$107)=0),0,ROUND(BX43*MIN('Other Data'!$G$84,'Other Data'!$H$84*IF('Project Information'!$F$10=\"X\",('Project Information'!$L$42-'Project Information'!$L$39),'Project Information'!$L$42)/SUMPRODUCT($BY$8:$BY$107,--($CX$8:$CX$107=\"c\"))),0)))","v":""},0,null,"","",{"$f":"IF($J43=\"\",\"\",VLOOKUP($J43,'TRM Data'!$R$4:$S$168,2,FALSE))","v":""},"","","",null,{"$f":"IF($CV43=0,\"\",CBAT!$DJ43)","v":""},null,null,1,1,0,1,0,null,{"$f":"IF(OR($CV43=0,ISBLANK('Project Information'!$D$44)),\"\",IF(AND($CV43=1,$CO43<1,$G43=\"yes\"),\"a\",IF($CO43<1,\"b\",\"c\")))","v":""}]
[0,37,null,null,null,null,null,{"$f":"IF($C44=\"\",\"\",IF(COUNTIF('Project Information'!$J$9:BG$9,$C44)<>1,\"\",INDEX('Project Information'!$J$8:$BG$8,1,MATCH($C44,'Project Information'!$J$9:BG$9,0))))","v":""},null,null,{"$f":"LOOKUP(2,1/(COUNTIF($K$7:K43,$Q$8:$Q$108)=0),$Q$8:$Q$108)","v":{"$error":"#N/A"}},{"$f":"IF(OR('Project Information'!$D$32=\"\",C44=\"\"),\"\",'Project Information'!$D$32)","v":""},{"$f":"IF($C44=\"\",\"\",IF(COUNTIF('Project Information'!$J$9:$BG$9,$C44)=1,HLOOKUP(C44,'Project Information'!$J$9:$BG$10,2,FALSE),0))","v":""},null,null,null,null,null,null,null,{"$f":"IF(Q44<>\"\",IF('Project Information'!$D$33=\"Small Business\",\"I\",\"P\")&VLOOKUP($Q44,'TRM Data'!$C$5:$N$201,COLUMN('TRM Data'!$E$2)-COLUMN('TRM Data'!$C$2)+1,FALSE)&IF($L44=\"Summer\",\"S\",IF($L44=\"Winter\",\"W\",\"Y\")),\"\")","v":""},{"$f":"IF(OR($F44=\"Controls\",$F44=\"\"),\"\",VLOOKUP($Q44,'TRM Data'!$C$5:$N$201,COLUMN('TRM Data'!$F$2)-COLUMN('TRM Data'!$C$2)+1,FALSE))","v":""},null,{"$f":"IF($R44=0,\"\",VLOOKUP($Q44,'TRM Data'!$C$5:$N$201,COLUMN('TRM Data'!$G$2)-COLUMN('TRM Data'!$C$2)+1,FALSE)*$R44)","v":""},null,{"$f":"IF($R44=0,\"\",VLOOKUP($Q44,'TRM Data'!$C$5:$N$201,COLUMN('TRM Data'!$I$2)-COLUMN('TRM Data'!$C$2)+1,FALSE)*$R44)","v":""},{"$f":"IF($Q44=\"\",\"\",IF('Project Information'!$D$33=\"Small Business\",'Project Scope'!$CA44,IF('Project Information'!$D$33=\"Pay for Performance\",'Project Scope'!$CD44,0)))","v":""},null,null,null,{"$f":"IF(AC44<>\"\",\"P\"&VLOOKUP($AC44,'TRM Data'!$C$5:$N$201,COLUMN('TRM Data'!$E$2)-COLUMN('TRM Data'!$C$2)+1,FALSE)&IF($L44=\"Summer\",\"S\",IF($L44=\"Winter\",\"W\",\"Y\")),\"\")","v":""},{"$f":"IF($AD44=0,\"\",VLOOKUP($AC44,'TRM Data'!$C$5:$N$201,COLUMN('TRM Data'!$G$2)-COLUMN('TRM Data'!$C$2)+1,FALSE)*$AD44)","v":""},null,{"$f":"IF($AD44=0,\"\",VLOOKUP($AC44,'TRM Data'!$C$5:$N$201,COLUMN('TRM Data'!$I$2)-COLUMN('TRM Data'!$C$2)+1,FALSE)*$AD44)","v":""},{"$f":"IF($AC44=\"\",\"\",IF('Project Information'!$D$33=\"Small Business\",'Project Scope'!$CB44,IF('Project Information'!$D$33=\"Pay for Performance\",'Project Scope'!$CE44,0)))","v":""},null,"",null,"","","","","","","",{"$f":"IF($Q44=\"\",\"\",IF(AND(ISNUMBER($BW44),ISNUMBER($AR44),$AR44>0),SUM($BL44,$BO44,$BI44)*'Other Data'!$H$83,0))","v":""},{"$f":"IF($Q44=\"\",\"\",IF(AND(ISNUMBER($BW44),ISNUMBER($AR44),$AR44>0),$BW44*'Other Data'!$G$84,0))","v":""},null,"","","","","",{"$f":"IF($AC44=\"\",\"\",IF(AND(ISNUMBER($BX44), ISNUMBER($AZ44),$AZ44>0),SUM($BJ44,$BM44,$BP44)*'Other Data'!$H$83,0))","v":""},{"$f":"IF($AC44=\"\",\"\",IF(AND(ISNUMBER($BX44), ISNUMBER($AZ44),$AZ44>0),$BX44*'Other Data'!$G$84,0))","v":""},null,{"$f":"IF($C44=\"\",\"\",SUM('Ancillary Costs'!$N$91:$N$105)*(SUM($AR44,$AZ44,SUM($AS44,$BA44)*'Project Information'!$D$12)))","v":""},{"$f":"IF($C44=\"\",\"\",SUMIFS('Ancillary Costs'!$N$72:$N$86,'Ancillary Costs'!$FL$72:$FL$86,\"*xx\"&'Project Scope'!$C44&\"xx*\")*(SUM($AR44,$AZ44,SUM($AS44,$BA44)*'Project Information'!$D$12)))","v":""},{"$f":"IFERROR(IF($C44=\"\",\"\",SUMIFS('Ancillary Costs'!$N$8:$N$67,'Ancillary Costs'!$FL$8:$FL$67,\"*xx\"&'Project Scope'!C44&\"xx*\",'Ancillary Costs'!$I$8:$I$67,'Project Scope'!$AN44)*'Project Scope'!$AO44),0)","v":""},{"$f":"IFERROR(IF($C44=\"\",\"\",SUMIFS('Ancillary Costs'!$N$8:$N$67,'Ancillary Costs'!$FL$8:$FL$67,\"*xx\"&'Project Scope'!C44&\"xx*\",'Ancillary Costs'!$I$8:$I$67,'Project Scope'!$AW44)*'Project Scope'!$AX44),0)","v":""},{"$f":"IF($C44=\"\",\"\",IF(SUM($AR44,$AZ44,SUM($AS44,$BA44)*'Project Information'!$D$12)=0,0,SUM($BG44,(SUM($BE44:$BF44))*((SUM($AR44,(IF(ISNUMBER($AS44),$AS44,0)*'Project Information'!$D$12)))/SUM($AR44,$AZ44,SUM($AS44,$BA44)*'Project Information'!$D$12)))))","v":""},{"$f":"IF($C44=\"\",\"\",IF(SUM($AR44,$AZ44,SUM($AS44,$BA44)*'Project Information'!$D$12)=0,0,SUM($BH44,(SUM($BE44:$BF44))*((SUM($AZ44,(IF(ISNUMBER($BA44),$BA44,0)*'Project Information'!$D$12)))/SUM($AR44,$AZ44,SUM($AS44,$BA44)*'Project Information'!$D$12)))))","v":""},null,"","","",{"$f":"IF($C44=\"\",\"\",IF(OR($AS44=\"\",$CX44=\"b\"),0,$AS44*'Project Information'!$D$12))","v":""},{"$f":"IF($C44=\"\",\"\",IF(OR($BA44=\"\",$CX44=\"b\"),0,$BA44*'Project Information'!$D$12))","v":""},"","","","","",null,{"$f":"CBAT!$AB44","v":""},{"$f":"CBAT!$BZ44","v":""},0,null,"","",0,{"$f":"IF($Q44=\"\",\"\",IF(OR($CX44<>\"c\",SUM($BY$8:$BY$107)=0),0,ROUND(BW44*MIN('Other Data'!$G$84,'Other Data'!$H$84*IF('Project Information'!$F$10=\"X\",('Project Information'!$L$42-'Project Information'!$L$39),'Project Information'!$L$42)/SUMPRODUCT($BY$8:$BY$107,--($CX$8:$CX$107=\"c\"))),0)))","v":""},{"$f":"IF($AC44=\"\",\"\",IF(OR($CX44<>\"c\",SUM($BY$8:$BY$107)=0),0,ROUND(BX44*MIN('Other Data'!$G$84,'Other Data'!$H$84*IF('Project Information'!$F$10=\"X\",('Project Information'!$L$42-'Project Information'!$L$39),'Project Information'!$L$42)/SUMPRODUCT($BY$8:$BY$107,--($CX$8:$CX$107=\"c\"))),0)))","v":""},0,null,"","",{"$f":"IF($J44=\"\",\"\",VLOOKUP($J44,'TRM Data'!$R$4:$S$168,2,FALSE))","v":""},"","","",null,{"$f":"IF($CV44=0,\"\",CBAT!$DJ44)","v":""},null,null,1,1,0,1,0,null,{"$f":"IF(OR($CV44=0,ISBLANK('Project Information'!$D$44)),\"\",IF(AND($CV44=1,$CO44<1,$G44=\"yes\"),\"a\",IF($CO44<1,\"b\",\"c\")))","v":""}]
[0,38,null,null,null,null,null,{"$f":"IF($C45=\"\",\"\",IF(COUNTIF('Project Information'!$J$9:BG$9,$C45)<>1,\"\",INDEX('Project Information'!$J$8:$BG$8,1,MATCH($C45,'Project Information'!$J$9:BG$9,0))))","v":""},null,null,{"$f":"LOOKUP(2,1/(COUNTIF($K$7:K44,$Q$8:$Q$108)=0),$Q$8:$Q$108)","v":{"$error":"#N/A"}},{"$f":"IF(OR('Project Information'!$D$32=\"\",C45=\"\"),\"\",'Project Information'!$D$32)","v":""},{"$f":"IF($C45=\"\",\"\",IF(COUNTIF('Project Information'!$J$9:$BG$9,$C45)=1,HLOOKUP(C45,'Project Information'!$J$9:$BG$10,2,FALSE),0))","v":""},null,null,null,null,null,null,null,{"$f":"IF(Q45<>\"\",IF('Project Information'!$D$33=\"Small Business\",\"I\",\"P\")&VLOOKUP($Q45,'TRM Data'!$C$5:$N$201,COLUMN('TRM Data'!$E$2)-COLUMN('TRM Data'!$C$2)+1,FALSE)&IF($L45=\"Summer\",\"S\",IF($L45=\"Winter\",\"W\",\"Y\")),\"\")","v":""},{"$f":"IF(OR($F45=\"Controls\",$F45=\"\"),\"\",VLOOKUP($Q45,'TRM Data'!$C$5:$N$201,COLUMN('TRM Data'!$F$2)-COLUMN('TRM Data'!$C$2)+1,FALSE))","v":""},null,{"$f":"IF($R45=0,\"\",VLOOKUP($Q45,'TRM Data'!$C$5:$N$201,COLUMN('TRM Data'!$G$2)-COLUMN('TRM Data'!$C$2)+1,FALSE)*$R45)","v":""},null,{"$f":"IF($R45=0,\"\",VLOOKUP($Q45,'TRM Data'!$C$5:$N$201,COLUMN('TRM Data'!$I$2)-COLUMN('TRM Data'!$C$2)+1,FALSE)*$R45)","v":""},{"$f":"IF($Q45=\"\",\"\",IF('Project Information'!$D$33=\"Small Business\",'Project Scope'!$CA45,IF('Project Information'!$D$33=\"Pay for Performance\",'Project Scope'!$CD45,0)))","v":""},null,null,null,{"$f":"IF(AC45<>\"\",\"P\"&VLOOKUP($AC45,'TRM Data'!$C$5:$N$201,COLUMN('TRM Data'!$E$2)-COLUMN('TRM Data'!$C$2)+1,FALSE)&IF($L45=\"Summer\",\"S\",IF($L45=\"Winter\",\"W\",\"Y\")),\"\")","v":""},{"$f":"IF($AD45=0,\"\",VLOOKUP($AC45,'TRM Data'!$C$5:$N$201,COLUMN('TRM Data'!$G$2)-COLUMN('TRM Data'!$C$2)+1,FALSE)*$AD45)","v":""},null,{"$f":"IF($AD45=0,\"\",VLOOKUP($AC45,'TRM Data'!$C$5:$N$201,COLUMN('TRM Data'!$I$2)-COLUMN('TRM Data'!$C$2)+1,FALSE)*$AD45)","v":""},{"$f":"IF($AC45=\"\",\"\",IF('Project Information'!$D$33=\"Small Business\",'Project Scope'!$CB45,IF('Project Information'!$D$33=\"Pay for Performance\",'Project Scope'!$CE45,0)))","v":""},null,"",null,"","","","","","","",{"$f":"IF($Q45=\"\",\"\",IF(AND(ISNUMBER($BW45),ISNUMBER($AR45),$AR45>0),SUM($BL45,$BO45,$BI45)*'Other Data'!$H$83,0))","v":""},{"$f":"IF($Q45=\"\",\"\",IF(AND(ISNUMBER($BW45),ISNUMBER($AR45),$AR45>0),$BW45*'Other Data'!$G$84,0))","v":""},null,"","","","","",{"$f":"IF($AC45=\"\",\"\",IF(AND(ISNUMBER($BX45), ISNUMBER($AZ45),$AZ45>0),SUM($BJ45,$BM45,$BP45)*'Other Data'!$H$83,0))","v":""},{"$f":"IF($AC45=\"\",\"\",IF(AND(ISNUMBER($BX45), ISNUMBER($AZ45),$AZ45>0),$BX45*'Other Data'!$G$84,0))","v":""},null,{"$f":"IF($C45=\"\",\"\",SUM('Ancillary Costs'!$N$91:$N$105)*(SUM($AR45,$AZ45,SUM($AS45,$BA45)*'Project Information'!$D$12)))","v":""},{"$f":"IF($C45=\"\",\"\",SUMIFS('Ancillary Costs'!$N$72:$N$86,'Ancillary Costs'!$FL$72:$FL$86,\"*xx\"&'Project Scope'!$C45&\"xx*\")*(SUM($AR45,$AZ45,SUM($AS45,$BA45)*'Project Information'!$D$12)))","v":""},{"$f":"IFERROR(IF($C45=\"\",\"\",SUMIFS('Ancillary Costs'!$N$8:$N$67,'Ancillary Costs'!$FL$8:$FL$67,\"*xx\"&'Project Scope'!C45&\"xx*\",'Ancillary Costs'!$I$8:$I$67,'Project Scope'!$AN45)*'Project Scope'!$AO45),0)","v":""},{"$f":"IFERROR(IF($C45=\"\",\"\",SUMIFS('Ancillary Costs'!$N$8:$N$67,'Ancillary Costs'!$FL$8:$FL$67,\"*xx\"&'Project Scope'!C45&\"xx*\",'Ancillary Costs'!$I$8:$I$67,'Project Scope'!$AW45)*'Project Scope'!$AX45),0)","v":""},{"$f":"IF($C45=\"\",\"\",IF(SUM($AR45,$AZ45,SUM($AS45,$BA45)*'Project Information'!$D$12)=0,0,SUM($BG45,(SUM($BE45:$BF45))*((SUM($AR45,(IF(ISNUMBER($AS45),$AS45,0)*'Project Information'!$D$12)))/SUM($AR45,$AZ45,SUM($AS45,$BA45)*'Project Information'!$D$12)))))","v":""},{"$f":"IF($C45=\"\",\"\",IF(SUM($AR45,$AZ45,SUM($AS45,$BA45)*'Project Information'!$D$12)=0,0,SUM($BH45,(SUM($BE45:$BF45))*((SUM($AZ45,(IF(ISNUMBER($BA45),$BA45,0)*'Project Information'!$D$12)))/SUM($AR45,$AZ45,SUM($AS45,$BA45)*'Project Information'!$D$12)))))","v":""},null,"","","",{"$f":"IF($C45=\"\",\"\",IF(OR($AS45=\"\",$CX45=\"b\"),0,$AS45*'Project Information'!$D$12))","v":""},{"$f":"IF($C45=\"\",\"\",IF(OR($BA45=\"\",$CX45=\"b\"),0,$BA45*'Project Information'!$D$12))","v":""},"","","","","",null,{"$f":"CBAT!$AB45","v":""},{"$f":"CBAT!$BZ45","v":""},0,null,"","",0,{"$f":"IF($Q45=\"\",\"\",IF(OR($CX45<>\"c\",SUM($BY$8:$BY$107)=0),0,ROUND(BW45*MIN('Other Data'!$G$84,'Other Data'!$H$84*IF('Project Information'!$F$10=\"X\",('Project Information'!$L$42-'Project Information'!$L$39),'Project Information'!$L$42)/SUMPRODUCT($BY$8:$BY$107,--($CX$8:$CX$107=\"c\"))),0)))","v":""},{"$f":"IF($AC45=\"\",\"\",IF(OR($CX45<>\"c\",SUM($BY$8:$BY$107)=0),0,ROUND(BX45*MIN('Other Data'!$G$84,'Other Data'!$H$84*IF('Project Information'!$F$10=\"X\",('Project Information'!$L$42-'Project Information'!$L$39),'Project Information'!$L$42)/SUMPRODUCT($BY$8:$BY$107,--($CX$8:$CX$107=\"c\"))),0)))","v":""},0,null,"","",{"$f":"IF($J45=\"\",\"\",VLOOKUP($J45,'TRM Data'!$R$4:$S$168,2,FALSE))","v":""},"","","",null,{"$f":"IF($CV45=0,\"\",CBAT!$DJ45)","v":""},null,null,1,1,0,1,0,null,{"$f":"IF(OR($CV45=0,ISBLANK('Project Information'!$D$44)),\"\",IF(AND($CV45=1,$CO45<1,$G45=\"yes\"),\"a\",IF($CO45<1,\"b\",\"c\")))","v":""}]
[0,39,null,null,null,null,null,{"$f":"IF($C46=\"\",\"\",IF(COUNTIF('Project Information'!$J$9:BG$9,$C46)<>1,\"\",INDEX('Project Information'!$J$8:$BG$8,1,MATCH($C46,'Project Information'!$J$9:BG$9,0))))","v":""},null,null,{"$f":"LOOKUP(2,1/(COUNTIF($K$7:K45,$Q$8:$Q$108)=0),$Q$8:$Q$108)","v":{"$error":"#N/A"}},{"$f":"IF(OR('Project Information'!$D$32=\"\",C46=\"\"),\"\",'Project Information'!$D$32)","v":""},{"$f":"IF($C46=\"\",\"\",IF(COUNTIF('Project Information'!$J$9:$BG$9,$C46)=1,HLOOKUP(C46,'Project Information'!$J$9:$BG$10,2,FALSE),0))","v":""},null,null,null,null,null,null,null,{"$f":"IF(Q46<>\"\",IF('Project Information'!$D$33=\"Small Business\",\"I\",\"P\")&VLOOKUP($Q46,'TRM Data'!$C$5:$N$201,COLUMN('TRM Data'!$E$2)-COLUMN('TRM Data'!$C$2)+1,FALSE)&IF($L46=\"Summer\",\"S\",IF($L46=\"Winter\",\"W\",\"Y\")),\"\")","v":""},{"$f":"IF(OR($F46=\"Controls\",$F46=\"\"),\"\",VLOOKUP($Q46,'TRM Data'!$C$5:$N$201,COLUMN('TRM Data'!$F$2)-COLUMN('TRM Data'!$C$2)+1,FALSE))","v":""},null,{"$f":"IF($R46=0,\"\",VLOOKUP($Q46,'TRM Data'!$C$5:$N$201,COLUMN('TRM Data'!$G$2)-COLUMN('TRM Data'!$C$2)+1,FALSE)*$R46)","v":""},null,{"$f":"IF($R46=0,\"\",VLOOKUP($Q46,'TRM Data'!$C$5:$N$201,COLUMN('TRM Data'!$I$2)-COLUMN('TRM Data'!$C$2)+1,FALSE)*$R46)","v":""},{"$f":"IF($Q46=\"\",\"\",IF('Project Information'!$D$33=\"Small Business\",'Project Scope'!$CA46,IF('Project Information'!$D$33=\"Pay for Performance\",'Project Scope'!$CD46,0)))","v":""},null,null,null,{"$f":"IF(AC46<>\"\",\"P\"&VLOOKUP($AC46,'TRM Data'!$C$5:$N$201,COLUMN('TRM Data'!$E$2)-COLUMN('TRM Data'!$C$2)+1,FALSE)&IF($L46=\"Summer\",\"S\",IF($L46=\"Winter\",\"W\",\"Y\")),\"\")","v":""},{"$f":"IF($AD46=0,\"\",VLOOKUP($AC46,'TRM Data'!$C$5:$N$201,COLUMN('TRM Data'!$G$2)-COLUMN('TRM Data'!$C$2)+1,FALSE)*$AD46)","v":""},null,{"$f":"IF($AD46=0,\"\",VLOOKUP($AC46,'TRM Data'!$C$5:$N$201,COLUMN('TRM Data'!$I$2)-COLUMN('TRM Data'!$C$2)+1,FALSE)*$AD46)","v":""},{"$f":"IF($AC46=\"\",\"\",IF('Project Information'!$D$33=\"Small Business\",'Project Scope'!$CB46,IF('Project Information'!$D$33=\"Pay for Performance\",'Project Scope'!$CE46,0)))","v":""},null,"",null,"","","","","","","",{"$f":"IF($Q46=\"\",\"\",IF(AND(ISNUMBER($BW46),ISNUMBER($AR46),$AR46>0),SUM($BL46,$BO46,$BI46)*'Other Data'!$H$83,0))","v":""},{"$f":"IF($Q46=\"\",\"\",IF(AND(ISNUMBER($BW46),ISNUMBER($AR46),$AR46>0),$BW46*'Other Data'!$G$84,0))","v":""},null,"","","","","",{"$f":"IF($AC46=\"\",\"\",IF(AND(ISNUMBER($BX46), ISNUMBER($AZ46),$AZ46>0),SUM($BJ46,$BM46,$BP46)*'Other Data'!$H$83,0))","v":""},{"$f":"IF($AC46=\"\",\"\",IF(AND(ISNUMBER($BX46), ISNUMBER($AZ46),$AZ46>0),$BX46*'Other Data'!$G$84,0))","v":""},null,{"$f":"IF($C46=\"\",\"\",SUM('Ancillary Costs'!$N$91:$N$105)*(SUM($AR46,$AZ46,SUM($AS46,$BA46)*'Project Information'!$D$12)))","v":""},{"$f":"IF($C46=\"\",\"\",SUMIFS('Ancillary Costs'!$N$72:$N$86,'Ancillary Costs'!$FL$72:$FL$86,\"*xx\"&'Project Scope'!$C46&\"xx*\")*(SUM($AR46,$AZ46,SUM($AS46,$BA46)*'Project Information'!$D$12)))","v":""},{"$f":"IFERROR(IF($C46=\"\",\"\",SUMIFS('Ancillary Costs'!$N$8:$N$67,'Ancillary Costs'!$FL$8:$FL$67,\"*xx\"&'Project Scope'!C46&\"xx*\",'Ancillary Costs'!$I$8:$I$67,'Project Scope'!$AN46)*'Project Scope'!$AO46),0)","v":""},{"$f":"IFERROR(IF($C46=\"\",\"\",SUMIFS('Ancillary Costs'!$N$8:$N$67,'Ancillary Costs'!$FL$8:$FL$67,\"*xx\"&'Project Scope'!C46&\"xx*\",'Ancillary Costs'!$I$8:$I$67,'Project Scope'!$AW46)*'Project Scope'!$AX46),0)","v":""},{"$f":"IF($C46=\"\",\"\",IF(SUM($AR46,$AZ46,SUM($AS46,$BA46)*'Project Information'!$D$12)=0,0,SUM($BG46,(SUM($BE46:$BF46))*((SUM($AR46,(IF(ISNUMBER($AS46),$AS46,0)*'Project Information'!$D$12)))/SUM($AR46,$AZ46,SUM($AS46,$BA46)*'Project Information'!$D$12)))))","v":""},{"$f":"IF($C46=\"\",\"\",IF(SUM($AR46,$AZ46,SUM($AS46,$BA46)*'Project Information'!$D$12)=0,0,SUM($BH46,(SUM($BE46:$BF46))*((SUM($AZ46,(IF(ISNUMBER($BA46),$BA46,0)*'Project Information'!$D$12)))/SUM($AR46,$AZ46,SUM($AS46,$BA46)*'Project Information'!$D$12)))))","v":""},null,"","","",{"$f":"IF($C46=\"\",\"\",IF(OR($AS46=\"\",$CX46=\"b\"),0,$AS46*'Project Information'!$D$12))","v":""},{"$f":"IF($C46=\"\",\"\",IF(OR($BA46=\"\",$CX46=\"b\"),0,$BA46*'Project Information'!$D$12))","v":""},"","","","","",null,{"$f":"CBAT!$AB46","v":""},{"$f":"CBAT!$BZ46","v":""},0,null,"","",0,{"$f":"IF($Q46=\"\",\"\",IF(OR($CX46<>\"c\",SUM($BY$8:$BY$107)=0),0,ROUND(BW46*MIN('Other Data'!$G$84,'Other Data'!$H$84*IF('Project Information'!$F$10=\"X\",('Project Information'!$L$42-'Project Information'!$L$39),'Project Information'!$L$42)/SUMPRODUCT($BY$8:$BY$107,--($CX$8:$CX$107=\"c\"))),0)))","v":""},{"$f":"IF($AC46=\"\",\"\",IF(OR($CX46<>\"c\",SUM($BY$8:$BY$107)=0),0,ROUND(BX46*MIN('Other Data'!$G$84,'Other Data'!$H$84*IF('Project Information'!$F$10=\"X\",('Project Information'!$L$42-'Project Information'!$L$39),'Project Information'!$L$42)/SUMPRODUCT($BY$8:$BY$107,--($CX$8:$CX$107=\"c\"))),0)))","v":""},0,null,"","",{"$f":"IF($J46=\"\",\"\",VLOOKUP($J46,'TRM Data'!$R$4:$S$168,2,FALSE))","v":""},"","","",null,{"$f":"IF($CV46=0,\"\",CBAT!$DJ46)","v":""},null,null,1,1,0,1,0,null,{"$f":"IF(OR($CV46=0,ISBLANK('Project Information'!$D$44)),\"\",IF(AND($CV46=1,$CO46<1,$G46=\"yes\"),\"a\",IF($CO46<1,\"b\",\"c\")))","v":""}]
[0,40,null,null,null,null,null,{"$f":"IF($C47=\"\",\"\",IF(COUNTIF('Project Information'!$J$9:BG$9,$C47)<>1,\"\",INDEX('Project Information'!$J$8:$BG$8,1,MATCH($C47,'Project Information'!$J$9:BG$9,0))))","v":""},null,null,{"$f":"LOOKUP(2,1/(COUNTIF($K$7:K46,$Q$8:$Q$108)=0),$Q$8:$Q$108)","v":{"$error":"#N/A"}},{"$f":"IF(OR('Project Information'!$D$32=\"\",C47=\"\"),\"\",'Project Information'!$D$32)","v":""},{"$f":"IF($C47=\"\",\"\",IF(COUNTIF('Project Information'!$J$9:$BG$9,$C47)=1,HLOOKUP(C47,'Project Information'!$J$9:$BG$10,2,FALSE),0))","v":""},null,null,null,null,null,null,null,{"$f":"IF(Q47<>\"\",IF('Project Information'!$D$33=\"Small Business\",\"I\",\"P\")&VLOOKUP($Q47,'TRM Data'!$C$5:$N$201,COLUMN('TRM Data'!$E$2)-COLUMN('TRM Data'!$C$2)+1,FALSE)&IF($L47=\"Summer\",\"S\",IF($L47=\"Winter\",\"W\",\"Y\")),\"\")","v":""},{"$f":"IF(OR($F47=\"Controls\",$F47=\"\"),\"\",VLOOKUP($Q47,'TRM Data'!$C$5:$N$201,COLUMN('TRM Data'!$F$2)-COLUMN('TRM Data'!$C$2)+1,FALSE))","v":""},null,{"$f":"IF($R47=0,\"\",VLOOKUP($Q47,'TRM Data'!$C$5:$N$201,COLUMN('TRM Data'!$G$2)-COLUMN('TRM Data'!$C$2)+1,FALSE)*$R47)","v":""},null,{"$f":"IF($R47=0,\"\",VLOOKUP($Q47,'TRM Data'!$C$5:$N$201,COLUMN('TRM Data'!$I$2)-COLUMN('TRM Data'!$C$2)+1,FALSE)*$R47)","v":""},{"$f":"IF($Q47=\"\",\"\",IF('Project Information'!$D$33=\"Small Business\",'Project Scope'!$CA47,IF('Project Information'!$D$33=\"Pay for Performance\",'Project Scope'!$CD47,0)))","v":""},null,null,null,{"$f":"IF(AC47<>\"\",\"P\"&VLOOKUP($AC47,'TRM Data'!$C$5:$N$201,COLUMN('TRM Data'!$E$2)-COLUMN('TRM Data'!$C$2)+1,FALSE)&IF($L47=\"Summer\",\"S\",IF($L47=\"Winter\",\"W\",\"Y\")),\"\")","v":""},{"$f":"IF($AD47=0,\"\",VLOOKUP($AC47,'TRM Data'!$C$5:$N$201,COLUMN('TRM Data'!$G$2)-COLUMN('TRM Data'!$C$2)+1,FALSE)*$AD47)","v":""},null,{"$f":"IF($AD47=0,\"\",VLOOKUP($AC47,'TRM Data'!$C$5:$N$201,COLUMN('TRM Data'!$I$2)-COLUMN('TRM Data'!$C$2)+1,FALSE)*$AD47)","v":""},{"$f":"IF($AC47=\"\",\"\",IF('Project Information'!$D$33=\"Small Business\",'Project Scope'!$CB47,IF('Project Information'!$D$33=\"Pay for Performance\",'Project Scope'!$CE47,0)))","v":""},null,"",null,"","","","","","","",{"$f":"IF($Q47=\"\",\"\",IF(AND(ISNUMBER($BW47),ISNUMBER($AR47),$AR47>0),SUM($BL47,$BO47,$BI47)*'Other Data'!$H$83,0))","v":""},{"$f":"IF($Q47=\"\",\"\",IF(AND(ISNUMBER($BW47),ISNUMBER($AR47),$AR47>0),$BW47*'Other Data'!$G$84,0))","v":""},null,"","","","","",{"$f":"IF($AC47=\"\",\"\",IF(AND(ISNUMBER($BX47), ISNUMBER($AZ47),$AZ47>0),SUM($BJ47,$BM47,$BP47)*'Other Data'!$H$83,0))","v":""},{"$f":"IF($AC47=\"\",\"\",IF(AND(ISNUMBER($BX47), ISNUMBER($AZ47),$AZ47>0),$BX47*'Other Data'!$G$84,0))","v":""},null,{"$f":"IF($C47=\"\",\"\",SUM('Ancillary Costs'!$N$91:$N$105)*(SUM($AR47,$AZ47,SUM($AS47,$BA47)*'Project Information'!$D$12)))","v":""},{"$f":"IF($C47=\"\",\"\",SUMIFS('Ancillary Costs'!$N$72:$N$86,'Ancillary Costs'!$FL$72:$FL$86,\"*xx\"&'Project Scope'!$C47&\"xx*\")*(SUM($AR47,$AZ47,SUM($AS47,$BA47)*'Project Information'!$D$12)))","v":""},{"$f":"IFERROR(IF($C47=\"\",\"\",SUMIFS('Ancillary Costs'!$N$8:$N$67,'Ancillary Costs'!$FL$8:$FL$67,\"*xx\"&'Project Scope'!C47&\"xx*\",'Ancillary Costs'!$I$8:$I$67,'Project Scope'!$AN47)*'Project Scope'!$AO47),0)","v":""},{"$f":"IFERROR(IF($C47=\"\",\"\",SUMIFS('Ancillary Costs'!$N$8:$N$67,'Ancillary Costs'!$FL$8:$FL$67,\"*xx\"&'Project Scope'!C47&\"xx*\",'Ancillary Costs'!$I$8:$I$67,'Project Scope'!$AW47)*'Project Scope'!$AX47),0)","v":""},{"$f":"IF($C47=\"\",\"\",IF(SUM($AR47,$AZ47,SUM($AS47,$BA47)*'Project Information'!$D$12)=0,0,SUM($BG47,(SUM($BE47:$BF47))*((SUM($AR47,(IF(ISNUMBER($AS47),$AS47,0)*'Project Information'!$D$12)))/SUM($AR47,$AZ47,SUM($AS47,$BA47)*'Project Information'!$D$12)))))","v":""},{"$f":"IF($C47=\"\",\"\",IF(SUM($AR47,$AZ47,SUM($AS47,$BA47)*'Project Information'!$D$12)=0,0,SUM($BH47,(SUM($BE47:$BF47))*((SUM($AZ47,(IF(ISNUMBER($BA47),$BA47,0)*'Project Information'!$D$12)))/SUM($AR47,$AZ47,SUM($AS47,$BA47)*'Project Information'!$D$12)))))","v":""},null,"","","",{"$f":"IF($C47=\"\",\"\",IF(OR($AS47=\"\",$CX47=\"b\"),0,$AS47*'Project Information'!$D$12))","v":""},{"$f":"IF($C47=\"\",\"\",IF(OR($BA47=\"\",$CX47=\"b\"),0,$BA47*'Project Information'!$D$12))","v":""},"","","","","",null,{"$f":"CBAT!$AB47","v":""},{"$f":"CBAT!$BZ47","v":""},0,null,"","",0,{"$f":"IF($Q47=\"\",\"\",IF(OR($CX47<>\"c\",SUM($BY$8:$BY$107)=0),0,ROUND(BW47*MIN('Other Data'!$G$84,'Other Data'!$H$84*IF('Project Information'!$F$10=\"X\",('Project Information'!$L$42-'Project Information'!$L$39),'Project Information'!$L$42)/SUMPRODUCT($BY$8:$BY$107,--($CX$8:$CX$107=\"c\"))),0)))","v":""},{"$f":"IF($AC47=\"\",\"\",IF(OR($CX47<>\"c\",SUM($BY$8:$BY$107)=0),0,ROUND(BX47*MIN('Other Data'!$G$84,'Other Data'!$H$84*IF('Project Information'!$F$10=\"X\",('Project Information'!$L$42-'Project Information'!$L$39),'Project Information'!$L$42)/SUMPRODUCT($BY$8:$BY$107,--($CX$8:$CX$107=\"c\"))),0)))","v":""},0,null,"","",{"$f":"IF($J47=\"\",\"\",VLOOKUP($J47,'TRM Data'!$R$4:$S$168,2,FALSE))","v":""},"","","",null,{"$f":"IF($CV47=0,\"\",CBAT!$DJ47)","v":""},null,null,1,1,0,1,0,null,{"$f":"IF(OR($CV47=0,ISBLANK('Project Information'!$D$44)),\"\",IF(AND($CV47=1,$CO47<1,$G47=\"yes\"),\"a\",IF($CO47<1,\"b\",\"c\")))","v":""}]
[0,41,null,null,null,null,null,{"$f":"IF($C48=\"\",\"\",IF(COUNTIF('Project Information'!$J$9:BG$9,$C48)<>1,\"\",INDEX('Project Information'!$J$8:$BG$8,1,MATCH($C48,'Project Information'!$J$9:BG$9,0))))","v":""},null,null,{"$f":"LOOKUP(2,1/(COUNTIF($K$7:K47,$Q$8:$Q$108)=0),$Q$8:$Q$108)","v":{"$error":"#N/A"}},{"$f":"IF(OR('Project Information'!$D$32=\"\",C48=\"\"),\"\",'Project Information'!$D$32)","v":""},{"$f":"IF($C48=\"\",\"\",IF(COUNTIF('Project Information'!$J$9:$BG$9,$C48)=1,HLOOKUP(C48,'Project Information'!$J$9:$BG$10,2,FALSE),0))","v":""},null,null,null,null,null,null,null,{"$f":"IF(Q48<>\"\",IF('Project Information'!$D$33=\"Small Business\",\"I\",\"P\")&VLOOKUP($Q48,'TRM Data'!$C$5:$N$201,COLUMN('TRM Data'!$E$2)-COLUMN('TRM Data'!$C$2)+1,FALSE)&IF($L48=\"Summer\",\"S\",IF($L48=\"Winter\",\"W\",\"Y\")),\"\")","v":""},{"$f":"IF(OR($F48=\"Controls\",$F48=\"\"),\"\",VLOOKUP($Q48,'TRM Data'!$C$5:$N$201,COLUMN('TRM Data'!$F$2)-COLUMN('TRM Data'!$C$2)+1,FALSE))","v":""},null,{"$f":"IF($R48=0,\"\",VLOOKUP($Q48,'TRM Data'!$C$5:$N$201,COLUMN('TRM Data'!$G$2)-COLUMN('TRM Data'!$C$2)+1,FALSE)*$R48)","v":""},null,{"$f":"IF($R48=0,\"\",VLOOKUP($Q48,'TRM Data'!$C$5:$N$201,COLUMN('TRM Data'!$I$2)-COLUMN('TRM Data'!$C$2)+1,FALSE)*$R48)","v":""},{"$f":"IF($Q48=\"\",\"\",IF('Project Information'!$D$33=\"Small Business\",'Project Scope'!$CA48,IF('Project Information'!$D$33=\"Pay for Performance\",'Project Scope'!$CD48,0)))","v":""},null,null,null,{"$f":"IF(AC48<>\"\",\"P\"&VLOOKUP($AC48,'TRM Data'!$C$5:$N$201,COLUMN('TRM Data'!$E$2)-COLUMN('TRM Data'!$C$2)+1,FALSE)&IF($L48=\"Summer\",\"S\",IF($L48=\"Winter\",\"W\",\"Y\")),\"\")","v":""},{"$f":"IF($AD48=0,\"\",VLOOKUP($AC48,'TRM Data'!$C$5:$N$201,COLUMN('TRM Data'!$G$2)-COLUMN('TRM Data'!$C$2)+1,FALSE)*$AD48)","v":""},null,{"$f":"IF($AD48=0,\"\",VLOOKUP($AC48,'TRM Data'!$C$5:$N$201,COLUMN('TRM Data'!$I$2)-COLUMN('TRM Data'!$C$2)+1,FALSE)*$AD48)","v":""},{"$f":"IF($AC48=\"\",\"\",IF('Project Information'!$D$33=\"Small Business\",'Project Scope'!$CB48,IF('Project Information'!$D$33=\"Pay for Performance\",'Project Scope'!$CE48,0)))","v":""},null,"",null,"","","","","","","",{"$f":"IF($Q48=\"\",\"\",IF(AND(ISNUMBER($BW48),ISNUMBER($AR48),$AR48>0),SUM($BL48,$BO48,$BI48)*'Other Data'!$H$83,0))","v":""},{"$f":"IF($Q48=\"\",\"\",IF(AND(ISNUMBER($BW48),ISNUMBER($AR48),$AR48>0),$BW48*'Other Data'!$G$84,0))","v":""},null,"","","","","",{"$f":"IF($AC48=\"\",\"\",IF(AND(ISNUMBER($BX48), ISNUMBER($AZ48),$AZ48>0),SUM($BJ48,$BM48,$BP48)*'Other Data'!$H$83,0))","v":""},{"$f":"IF($AC48=\"\",\"\",IF(AND(ISNUMBER($BX48), ISNUMBER($AZ48),$AZ48>0),$BX48*'Other Data'!$G$84,0))","v":""},null,{"$f":"IF($C48=\"\",\"\",SUM('Ancillary Costs'!$N$91:$N$105)*(SUM($AR48,$AZ48,SUM($AS48,$BA48)*'Project Information'!$D$12)))","v":""},{"$f":"IF($C48=\"\",\"\",SUMIFS('Ancillary Costs'!$N$72:$N$86,'Ancillary Costs'!$FL$72:$FL$86,\"*xx\"&'Project Scope'!$C48&\"xx*\")*(SUM($AR48,$AZ48,SUM($AS48,$BA48)*'Project Information'!$D$12)))","v":""},{"$f":"IFERROR(IF($C48=\"\",\"\",SUMIFS('Ancillary Costs'!$N$8:$N$67,'Ancillary Costs'!$FL$8:$FL$67,\"*xx\"&'Project Scope'!C48&\"xx*\",'Ancillary Costs'!$I$8:$I$67,'Project Scope'!$AN48)*'Project Scope'!$AO48),0)","v":""},{"$f":"IFERROR(IF($C48=\"\",\"\",SUMIFS('Ancillary Costs'!$N$8:$N$67,'Ancillary Costs'!$FL$8:$FL$67,\"*xx\"&'Project Scope'!C48&\"xx*\",'Ancillary Costs'!$I$8:$I$67,'Project Scope'!$AW48)*'Project Scope'!$AX48),0)","v":""},{"$f":"IF($C48=\"\",\"\",IF(SUM($AR48,$AZ48,SUM($AS48,$BA48)*'Project Information'!$D$12)=0,0,SUM($BG48,(SUM($BE48:$BF48))*((SUM($AR48,(IF(ISNUMBER($AS48),$AS48,0)*'Project Information'!$D$12)))/SUM($AR48,$AZ48,SUM($AS48,$BA48)*'Project Information'!$D$12)))))","v":""},{"$f":"IF($C48=\"\",\"\",IF(SUM($AR48,$AZ48,SUM($AS48,$BA48)*'Project Information'!$D$12)=0,0,SUM($BH48,(SUM($BE48:$BF48))*((SUM($AZ48,(IF(ISNUMBER($BA48),$BA48,0)*'Project Information'!$D$12)))/SUM($AR48,$AZ48,SUM($AS48,$BA48)*'Project Information'!$D$12)))))","v":""},null,"","","",{"$f":"IF($C48=\"\",\"\",IF(OR($AS48=\"\",$CX48=\"b\"),0,$AS48*'Project Information'!$D$12))","v":""},{"$f":"IF($C48=\"\",\"\",IF(OR($BA48=\"\",$CX48=\"b\"),0,$BA48*'Project Information'!$D$12))","v":""},"","","","","",null,{"$f":"CBAT!$AB48","v":""},{"$f":"CBAT!$BZ48","v":""},0,null,"","",0,{"$f":"IF($Q48=\"\",\"\",IF(OR($CX48<>\"c\",SUM($BY$8:$BY$107)=0),0,ROUND(BW48*MIN('Other Data'!$G$84,'Other Data'!$H$84*IF('Project Information'!$F$10=\"X\",('Project Information'!$L$42-'Project Information'!$L$39),'Project Information'!$L$42)/SUMPRODUCT($BY$8:$BY$107,--($CX$8:$CX$107=\"c\"))),0)))","v":""},{"$f":"IF($AC48=\"\",\"\",IF(OR($CX48<>\"c\",SUM($BY$8:$BY$107)=0),0,ROUND(BX48*MIN('Other Data'!$G$84,'Other Data'!$H$84*IF('Project Information'!$F$10=\"X\",('Project Information'!$L$42-'Project Information'!$L$39),'Project Information'!$L$42)/SUMPRODUCT($BY$8:$BY$107,--($CX$8:$CX$107=\"c\"))),0)))","v":""},0,null,"","",{"$f":"IF($J48=\"\",\"\",VLOOKUP($J48,'TRM Data'!$R$4:$S$168,2,FALSE))","v":""},"","","",null,{"$f":"IF($CV48=0,\"\",CBAT!$DJ48)","v":""},null,null,1,1,0,1,0,null,{"$f":"IF(OR($CV48=0,ISBLANK('Project Information'!$D$44)),\"\",IF(AND($CV48=1,$CO48<1,$G48=\"yes\"),\"a\",IF($CO48<1,\"b\",\"c\")))","v":""}]
[0,42,null,null,null,null,null,{"$f":"IF($C49=\"\",\"\",IF(COUNTIF('Project Information'!$J$9:BG$9,$C49)<>1,\"\",INDEX('Project Information'!$J$8:$BG$8,1,MATCH($C49,'Project Information'!$J$9:BG$9,0))))","v":""},null,null,{"$f":"LOOKUP(2,1/(COUNTIF($K$7:K48,$Q$8:$Q$108)=0),$Q$8:$Q$108)","v":{"$error":"#N/A"}},{"$f":"IF(OR('Project Information'!$D$32=\"\",C49=\"\"),\"\",'Project Information'!$D$32)","v":""},{"$f":"IF($C49=\"\",\"\",IF(COUNTIF('Project Information'!$J$9:$BG$9,$C49)=1,HLOOKUP(C49,'Project Information'!$J$9:$BG$10,2,FALSE),0))","v":""},null,null,null,null,null,null,null,{"$f":"IF(Q49<>\"\",IF('Project Information'!$D$33=\"Small Business\",\"I\",\"P\")&VLOOKUP($Q49,'TRM Data'!$C$5:$N$201,COLUMN('TRM Data'!$E$2)-COLUMN('TRM Data'!$C$2)+1,FALSE)&IF($L49=\"Summer\",\"S\",IF($L49=\"Winter\",\"W\",\"Y\")),\"\")","v":""},{"$f":"IF(OR($F49=\"Controls\",$F49=\"\"),\"\",VLOOKUP($Q49,'TRM Data'!$C$5:$N$201,COLUMN('TRM Data'!$F$2)-COLUMN('TRM Data'!$C$2)+1,FALSE))","v":""},null,{"$f":"IF($R49=0,\"\",VLOOKUP($Q49,'TRM Data'!$C$5:$N$201,COLUMN('TRM Data'!$G$2)-COLUMN('TRM Data'!$C$2)+1,FALSE)*$R49)","v":""},null,{"$f":"IF($R49=0,\"\",VLOOKUP($Q49,'TRM Data'!$C$5:$N$201,COLUMN('TRM Data'!$I$2)-COLUMN('TRM Data'!$C$2)+1,FALSE)*$R49)","v":""},{"$f":"IF($Q49=\"\",\"\",IF('Project Information'!$D$33=\"Small Business\",'Project Scope'!$CA49,IF('Project Information'!$D$33=\"Pay for Performance\",'Project Scope'!$CD49,0)))","v":""},null,null,null,{"$f":"IF(AC49<>\"\",\"P\"&VLOOKUP($AC49,'TRM Data'!$C$5:$N$201,COLUMN('TRM Data'!$E$2)-COLUMN('TRM Data'!$C$2)+1,FALSE)&IF($L49=\"Summer\",\"S\",IF($L49=\"Winter\",\"W\",\"Y\")),\"\")","v":""},{"$f":"IF($AD49=0,\"\",VLOOKUP($AC49,'TRM Data'!$C$5:$N$201,COLUMN('TRM Data'!$G$2)-COLUMN('TRM Data'!$C$2)+1,FALSE)*$AD49)","v":""},null,{"$f":"IF($AD49=0,\"\",VLOOKUP($AC49,'TRM Data'!$C$5:$N$201,COLUMN('TRM Data'!$I$2)-COLUMN('TRM Data'!$C$2)+1,FALSE)*$AD49)","v":""},{"$f":"IF($AC49=\"\",\"\",IF('Project Information'!$D$33=\"Small Business\",'Project Scope'!$CB49,IF('Project Information'!$D$33=\"Pay for Performance\",'Project Scope'!$CE49,0)))","v":""},null,"",null,"","","","","","","",{"$f":"IF($Q49=\"\",\"\",IF(AND(ISNUMBER($BW49),ISNUMBER($AR49),$AR49>0),SUM($BL49,$BO49,$BI49)*'Other Data'!$H$83,0))","v":""},{"$f":"IF($Q49=\"\",\"\",IF(AND(ISNUMBER($BW49),ISNUMBER($AR49),$AR49>0),$BW49*'Other Data'!$G$84,0))","v":""},null,"","","","","",{"$f":"IF($AC49=\"\",\"\",IF(AND(ISNUMBER($BX49), ISNUMBER($AZ49),$AZ49>0),SUM($BJ49,$BM49,$BP49)*'Other Data'!$H$83,0))","v":""},{"$f":"IF($AC49=\"\",\"\",IF(AND(ISNUMBER($BX49), ISNUMBER($AZ49),$AZ49>0),$BX49*'Other Data'!$G$84,0))","v":""},null,{"$f":"IF($C49=\"\",\"\",SUM('Ancillary Costs'!$N$91:$N$105)*(SUM($AR49,$AZ49,SUM($AS49,$BA49)*'Project Information'!$D$12)))","v":""},{"$f":"IF($C49=\"\",\"\",SUMIFS('Ancillary Costs'!$N$72:$N$86,'Ancillary Costs'!$FL$72:$FL$86,\"*xx\"&'Project Scope'!$C49&\"xx*\")*(SUM($AR49,$AZ49,SUM($AS49,$BA49)*'Project Information'!$D$12)))","v":""},{"$f":"IFERROR(IF($C49=\"\",\"\",SUMIFS('Ancillary Costs'!$N$8:$N$67,'Ancillary Costs'!$FL$8:$FL$67,\"*xx\"&'Project Scope'!C49&\"xx*\",'Ancillary Costs'!$I$8:$I$67,'Project Scope'!$AN49)*'Project Scope'!$AO49),0)","v":""},{"$f":"IFERROR(IF($C49=\"\",\"\",SUMIFS('Ancillary Costs'!$N$8:$N$67,'Ancillary Costs'!$FL$8:$FL$67,\"*xx\"&'Project Scope'!C49&\"xx*\",'Ancillary Costs'!$I$8:$I$67,'Project Scope'!$AW49)*'Project Scope'!$AX49),0)","v":""},{"$f":"IF($C49=\"\",\"\",IF(SUM($AR49,$AZ49,SUM($AS49,$BA49)*'Project Information'!$D$12)=0,0,SUM($BG49,(SUM($BE49:$BF49))*((SUM($AR49,(IF(ISNUMBER($AS49),$AS49,0)*'Project Information'!$D$12)))/SUM($AR49,$AZ49,SUM($AS49,$BA49)*'Project Information'!$D$12)))))","v":""},{"$f":"IF($C49=\"\",\"\",IF(SUM($AR49,$AZ49,SUM($AS49,$BA49)*'Project Information'!$D$12)=0,0,SUM($BH49,(SUM($BE49:$BF49))*((SUM($AZ49,(IF(ISNUMBER($BA49),$BA49,0)*'Project Information'!$D$12)))/SUM($AR49,$AZ49,SUM($AS49,$BA49)*'Project Information'!$D$12)))))","v":""},null,"","","",{"$f":"IF($C49=\"\",\"\",IF(OR($AS49=\"\",$CX49=\"b\"),0,$AS49*'Project Information'!$D$12))","v":""},{"$f":"IF($C49=\"\",\"\",IF(OR($BA49=\"\",$CX49=\"b\"),0,$BA49*'Project Information'!$D$12))","v":""},"","","","","",null,{"$f":"CBAT!$AB49","v":""},{"$f":"CBAT!$BZ49","v":""},0,null,"","",0,{"$f":"IF($Q49=\"\",\"\",IF(OR($CX49<>\"c\",SUM($BY$8:$BY$107)=0),0,ROUND(BW49*MIN('Other Data'!$G$84,'Other Data'!$H$84*IF('Project Information'!$F$10=\"X\",('Project Information'!$L$42-'Project Information'!$L$39),'Project Information'!$L$42)/SUMPRODUCT($BY$8:$BY$107,--($CX$8:$CX$107=\"c\"))),0)))","v":""},{"$f":"IF($AC49=\"\",\"\",IF(OR($CX49<>\"c\",SUM($BY$8:$BY$107)=0),0,ROUND(BX49*MIN('Other Data'!$G$84,'Other Data'!$H$84*IF('Project Information'!$F$10=\"X\",('Project Information'!$L$42-'Project Information'!$L$39),'Project Information'!$L$42)/SUMPRODUCT($BY$8:$BY$107,--($CX$8:$CX$107=\"c\"))),0)))","v":""},0,null,"","",{"$f":"IF($J49=\"\",\"\",VLOOKUP($J49,'TRM Data'!$R$4:$S$168,2,FALSE))","v":""},"","","",null,{"$f":"IF($CV49=0,\"\",CBAT!$DJ49)","v":""},null,null,1,1,0,1,0,null,{"$f":"IF(OR($CV49=0,ISBLANK('Project Information'!$D$44)),\"\",IF(AND($CV49=1,$CO49<1,$G49=\"yes\"),\"a\",IF($CO49<1,\"b\",\"c\")))","v":""}]
[0,43,null,null,null,null,null,{"$f":"IF($C50=\"\",\"\",IF(COUNTIF('Project Information'!$J$9:BG$9,$C50)<>1,\"\",INDEX('Project Information'!$J$8:$BG$8,1,MATCH($C50,'Project Information'!$J$9:BG$9,0))))","v":""},null,null,{"$f":"LOOKUP(2,1/(COUNTIF($K$7:K49,$Q$8:$Q$108)=0),$Q$8:$Q$108)","v":{"$error":"#N/A"}},{"$f":"IF(OR('Project Information'!$D$32=\"\",C50=\"\"),\"\",'Project Information'!$D$32)","v":""},{"$f":"IF($C50=\"\",\"\",IF(COUNTIF('Project Information'!$J$9:$BG$9,$C50)=1,HLOOKUP(C50,'Project Information'!$J$9:$BG$10,2,FALSE),0))","v":""},null,null,null,null,null,null,null,{"$f":"IF(Q50<>\"\",IF('Project Information'!$D$33=\"Small Business\",\"I\",\"P\")&VLOOKUP($Q50,'TRM Data'!$C$5:$N$201,COLUMN('TRM Data'!$E$2)-COLUMN('TRM Data'!$C$2)+1,FALSE)&IF($L50=\"Summer\",\"S\",IF($L50=\"Winter\",\"W\",\"Y\")),\"\")","v":""},{"$f":"IF(OR($F50=\"Controls\",$F50=\"\"),\"\",VLOOKUP($Q50,'TRM Data'!$C$5:$N$201,COLUMN('TRM Data'!$F$2)-COLUMN('TRM Data'!$C$2)+1,FALSE))","v":""},null,{"$f":"IF($R50=0,\"\",VLOOKUP($Q50,'TRM Data'!$C$5:$N$201,COLUMN('TRM Data'!$G$2)-COLUMN('TRM Data'!$C$2)+1,FALSE)*$R50)","v":""},null,{"$f":"IF($R50=0,\"\",VLOOKUP($Q50,'TRM Data'!$C$5:$N$201,COLUMN('TRM Data'!$I$2)-COLUMN('TRM Data'!$C$2)+1,FALSE)*$R50)","v":""},{"$f":"IF($Q50=\"\",\"\",IF('Project Information'!$D$33=\"Small Business\",'Project Scope'!$CA50,IF('Project Information'!$D$33=\"Pay for Performance\",'Project Scope'!$CD50,0)))","v":""},null,null,null,{"$f":"IF(AC50<>\"\",\"P\"&VLOOKUP($AC50,'TRM Data'!$C$5:$N$201,COLUMN('TRM Data'!$E$2)-COLUMN('TRM Data'!$C$2)+1,FALSE)&IF($L50=\"Summer\",\"S\",IF($L50=\"Winter\",\"W\",\"Y\")),\"\")","v":""},{"$f":"IF($AD50=0,\"\",VLOOKUP($AC50,'TRM Data'!$C$5:$N$201,COLUMN('TRM Data'!$G$2)-COLUMN('TRM Data'!$C$2)+1,FALSE)*$AD50)","v":""},null,{"$f":"IF($AD50=0,\"\",VLOOKUP($AC50,'TRM Data'!$C$5:$N$201,COLUMN('TRM Data'!$I$2)-COLUMN('TRM Data'!$C$2)+1,FALSE)*$AD50)","v":""},{"$f":"IF($AC50=\"\",\"\",IF('Project Information'!$D$33=\"Small Business\",'Project Scope'!$CB50,IF('Project Information'!$D$33=\"Pay for Performance\",'Project Scope'!$CE50,0)))","v":""},null,"",null,"","","","","","","",{"$f":"IF($Q50=\"\",\"\",IF(AND(ISNUMBER($BW50),ISNUMBER($AR50),$AR50>0),SUM($BL50,$BO50,$BI50)*'Other Data'!$H$83,0))","v":""},{"$f":"IF($Q50=\"\",\"\",IF(AND(ISNUMBER($BW50),ISNUMBER($AR50),$AR50>0),$BW50*'Other Data'!$G$84,0))","v":""},null,"","","","","",{"$f":"IF($AC50=\"\",\"\",IF(AND(ISNUMBER($BX50), ISNUMBER($AZ50),$AZ50>0),SUM($BJ50,$BM50,$BP50)*'Other Data'!$H$83,0))","v":""},{"$f":"IF($AC50=\"\",\"\",IF(AND(ISNUMBER($BX50), ISNUMBER($AZ50),$AZ50>0),$BX50*'Other Data'!$G$84,0))","v":""},null,{"$f":"IF($C50=\"\",\"\",SUM('Ancillary Costs'!$N$91:$N$105)*(SUM($AR50,$AZ50,SUM($AS50,$BA50)*'Project Information'!$D$12)))","v":""},{"$f":"IF($C50=\"\",\"\",SUMIFS('Ancillary Costs'!$N$72:$N$86,'Ancillary Costs'!$FL$72:$FL$86,\"*xx\"&'Project Scope'!$C50&\"xx*\")*(SUM($AR50,$AZ50,SUM($AS50,$BA50)*'Project Information'!$D$12)))","v":""},{"$f":"IFERROR(IF($C50=\"\",\"\",SUMIFS('Ancillary Costs'!$N$8:$N$67,'Ancillary Costs'!$FL$8:$FL$67,\"*xx\"&'Project Scope'!C50&\"xx*\",'Ancillary Costs'!$I$8:$I$67,'Project Scope'!$AN50)*'Project Scope'!$AO50),0)","v":""},{"$f":"IFERROR(IF($C50=\"\",\"\",SUMIFS('Ancillary Costs'!$N$8:$N$67,'Ancillary Costs'!$FL$8:$FL$67,\"*xx\"&'Project Scope'!C50&\"xx*\",'Ancillary Costs'!$I$8:$I$67,'Project Scope'!$AW50)*'Project Scope'!$AX50),0)","v":""},{"$f":"IF($C50=\"\",\"\",IF(SUM($AR50,$AZ50,SUM($AS50,$BA50)*'Project Information'!$D$12)=0,0,SUM($BG50,(SUM($BE50:$BF50))*((SUM($AR50,(IF(ISNUMBER($AS50),$AS50,0)*'Project Information'!$D$12)))/SUM($AR50,$AZ50,SUM($AS50,$BA50)*'Project Information'!$D$12)))))","v":""},{"$f":"IF($C50=\"\",\"\",IF(SUM($AR50,$AZ50,SUM($AS50,$BA50)*'Project Information'!$D$12)=0,0,SUM($BH50,(SUM($BE50:$BF50))*((SUM($AZ50,(IF(ISNUMBER($BA50),$BA50,0)*'Project Information'!$D$12)))/SUM($AR50,$AZ50,SUM($AS50,$BA50)*'Project Information'!$D$12)))))","v":""},null,"","","",{"$f":"IF($C50=\"\",\"\",IF(OR($AS50=\"\",$CX50=\"b\"),0,$AS50*'Project Information'!$D$12))","v":""},{"$f":"IF($C50=\"\",\"\",IF(OR($BA50=\"\",$CX50=\"b\"),0,$BA50*'Project Information'!$D$12))","v":""},"","","","","",null,{"$f":"CBAT!$AB50","v":""},{"$f":"CBAT!$BZ50","v":""},0,null,"","",0,{"$f":"IF($Q50=\"\",\"\",IF(OR($CX50<>\"c\",SUM($BY$8:$BY$107)=0),0,ROUND(BW50*MIN('Other Data'!$G$84,'Other Data'!$H$84*IF('Project Information'!$F$10=\"X\",('Project Information'!$L$42-'Project Information'!$L$39),'Project Information'!$L$42)/SUMPRODUCT($BY$8:$BY$107,--($CX$8:$CX$107=\"c\"))),0)))","v":""},{"$f":"IF($AC50=\"\",\"\",IF(OR($CX50<>\"c\",SUM($BY$8:$BY$107)=0),0,ROUND(BX50*MIN('Other Data'!$G$84,'Other Data'!$H$84*IF('Project Information'!$F$10=\"X\",('Project Information'!$L$42-'Project Information'!$L$39),'Project Information'!$L$42)/SUMPRODUCT($BY$8:$BY$107,--($CX$8:$CX$107=\"c\"))),0)))","v":""},0,null,"","",{"$f":"IF($J50=\"\",\"\",VLOOKUP($J50,'TRM Data'!$R$4:$S$168,2,FALSE))","v":""},"","","",null,{"$f":"IF($CV50=0,\"\",CBAT!$DJ50)","v":""},null,null,1,1,0,1,0,null,{"$f":"IF(OR($CV50=0,ISBLANK('Project Information'!$D$44)),\"\",IF(AND($CV50=1,$CO50<1,$G50=\"yes\"),\"a\",IF($CO50<1,\"b\",\"c\")))","v":""}]
[0,44,null,null,null,null,null,{"$f":"IF($C51=\"\",\"\",IF(COUNTIF('Project Information'!$J$9:BG$9,$C51)<>1,\"\",INDEX('Project Information'!$J$8:$BG$8,1,MATCH($C51,'Project Information'!$J$9:BG$9,0))))","v":""},null,null,{"$f":"LOOKUP(2,1/(COUNTIF($K$7:K50,$Q$8:$Q$108)=0),$Q$8:$Q$108)","v":{"$error":"#N/A"}},{"$f":"IF(OR('Project Information'!$D$32=\"\",C51=\"\"),\"\",'Project Information'!$D$32)","v":""},{"$f":"IF($C51=\"\",\"\",IF(COUNTIF('Project Information'!$J$9:$BG$9,$C51)=1,HLOOKUP(C51,'Project Information'!$J$9:$BG$10,2,FALSE),0))","v":""},null,null,null,null,null,null,null,{"$f":"IF(Q51<>\"\",IF('Project Information'!$D$33=\"Small Business\",\"I\",\"P\")&VLOOKUP($Q51,'TRM Data'!$C$5:$N$201,COLUMN('TRM Data'!$E$2)-COLUMN('TRM Data'!$C$2)+1,FALSE)&IF($L51=\"Summer\",\"S\",IF($L51=\"Winter\",\"W\",\"Y\")),\"\")","v":""},{"$f":"IF(OR($F51=\"Controls\",$F51=\"\"),\"\",VLOOKUP($Q51,'TRM Data'!$C$5:$N$201,COLUMN('TRM Data'!$F$2)-COLUMN('TRM Data'!$C$2)+1,FALSE))","v":""},null,{"$f":"IF($R51=0,\"\",VLOOKUP($Q51,'TRM Data'!$C$5:$N$201,COLUMN('TRM Data'!$G$2)-COLUMN('TRM Data'!$C$2)+1,FALSE)*$R51)","v":""},null,{"$f":"IF($R51=0,\"\",VLOOKUP($Q51,'TRM Data'!$C$5:$N$201,COLUMN('TRM Data'!$I$2)-COLUMN('TRM Data'!$C$2)+1,FALSE)*$R51)","v":""},{"$f":"IF($Q51=\"\",\"\",IF('Project Information'!$D$33=\"Small Business\",'Project Scope'!$CA51,IF('Project Information'!$D$33=\"Pay for Performance\",'Project Scope'!$CD51,0)))","v":""},null,null,null,{"$f":"IF(AC51<>\"\",\"P\"&VLOOKUP($AC51,'TRM Data'!$C$5:$N$201,COLUMN('TRM Data'!$E$2)-COLUMN('TRM Data'!$C$2)+1,FALSE)&IF($L51=\"Summer\",\"S\",IF($L51=\"Winter\",\"W\",\"Y\")),\"\")","v":""},{"$f":"IF($AD51=0,\"\",VLOOKUP($AC51,'TRM Data'!$C$5:$N$201,COLUMN('TRM Data'!$G$2)-COLUMN('TRM Data'!$C$2)+1,FALSE)*$AD51)","v":""},null,{"$f":"IF($AD51=0,\"\",VLOOKUP($AC51,'TRM Data'!$C$5:$N$201,COLUMN('TRM Data'!$I$2)-COLUMN('TRM Data'!$C$2)+1,FALSE)*$AD51)","v":""},{"$f":"IF($AC51=\"\",\"\",IF('Project Information'!$D$33=\"Small Business\",'Project Scope'!$CB51,IF('Project Information'!$D$33=\"Pay for Performance\",'Project Scope'!$CE51,0)))","v":""},null,"",null,"","","","","","","",{"$f":"IF($Q51=\"\",\"\",IF(AND(ISNUMBER($BW51),ISNUMBER($AR51),$AR51>0),SUM($BL51,$BO51,$BI51)*'Other Data'!$H$83,0))","v":""},{"$f":"IF($Q51=\"\",\"\",IF(AND(ISNUMBER($BW51),ISNUMBER($AR51),$AR51>0),$BW51*'Other Data'!$G$84,0))","v":""},null,"","","","","",{"$f":"IF($AC51=\"\",\"\",IF(AND(ISNUMBER($BX51), ISNUMBER($AZ51),$AZ51>0),SUM($BJ51,$BM51,$BP51)*'Other Data'!$H$83,0))","v":""},{"$f":"IF($AC51=\"\",\"\",IF(AND(ISNUMBER($BX51), ISNUMBER($AZ51),$AZ51>0),$BX51*'Other Data'!$G$84,0))","v":""},null,{"$f":"IF($C51=\"\",\"\",SUM('Ancillary Costs'!$N$91:$N$105)*(SUM($AR51,$AZ51,SUM($AS51,$BA51)*'Project Information'!$D$12)))","v":""},{"$f":"IF($C51=\"\",\"\",SUMIFS('Ancillary Costs'!$N$72:$N$86,'Ancillary Costs'!$FL$72:$FL$86,\"*xx\"&'Project Scope'!$C51&\"xx*\")*(SUM($AR51,$AZ51,SUM($AS51,$BA51)*'Project Information'!$D$12)))","v":""},{"$f":"IFERROR(IF($C51=\"\",\"\",SUMIFS('Ancillary Costs'!$N$8:$N$67,'Ancillary Costs'!$FL$8:$FL$67,\"*xx\"&'Project Scope'!C51&\"xx*\",'Ancillary Costs'!$I$8:$I$67,'Project Scope'!$AN51)*'Project Scope'!$AO51),0)","v":""},{"$f":"IFERROR(IF($C51=\"\",\"\",SUMIFS('Ancillary Costs'!$N$8:$N$67,'Ancillary Costs'!$FL$8:$FL$67,\"*xx\"&'Project Scope'!C51&\"xx*\",'Ancillary Costs'!$I$8:$I$67,'Project Scope'!$AW51)*'Project Scope'!$AX51),0)","v":""},{"$f":"IF($C51=\"\",\"\",IF(SUM($AR51,$AZ51,SUM($AS51,$BA51)*'Project Information'!$D$12)=0,0,SUM($BG51,(SUM($BE51:$BF51))*((SUM($AR51,(IF(ISNUMBER($AS51),$AS51,0)*'Project Information'!$D$12)))/SUM($AR51,$AZ51,SUM($AS51,$BA51)*'Project Information'!$D$12)))))","v":""},{"$f":"IF($C51=\"\",\"\",IF(SUM($AR51,$AZ51,SUM($AS51,$BA51)*'Project Information'!$D$12)=0,0,SUM($BH51,(SUM($BE51:$BF51))*((SUM($AZ51,(IF(ISNUMBER($BA51),$BA51,0)*'Project Information'!$D$12)))/SUM($AR51,$AZ51,SUM($AS51,$BA51)*'Project Information'!$D$12)))))","v":""},null,"","","",{"$f":"IF($C51=\"\",\"\",IF(OR($AS51=\"\",$CX51=\"b\"),0,$AS51*'Project Information'!$D$12))","v":""},{"$f":"IF($C51=\"\",\"\",IF(OR($BA51=\"\",$CX51=\"b\"),0,$BA51*'Project Information'!$D$12))","v":""},"","","","","",null,{"$f":"CBAT!$AB51","v":""},{"$f":"CBAT!$BZ51","v":""},0,null,"","",0,{"$f":"IF($Q51=\"\",\"\",IF(OR($CX51<>\"c\",SUM($BY$8:$BY$107)=0),0,ROUND(BW51*MIN('Other Data'!$G$84,'Other Data'!$H$84*IF('Project Information'!$F$10=\"X\",('Project Information'!$L$42-'Project Information'!$L$39),'Project Information'!$L$42)/SUMPRODUCT($BY$8:$BY$107,--($CX$8:$CX$107=\"c\"))),0)))","v":""},{"$f":"IF($AC51=\"\",\"\",IF(OR($CX51<>\"c\",SUM($BY$8:$BY$107)=0),0,ROUND(BX51*MIN('Other Data'!$G$84,'Other Data'!$H$84*IF('Project Information'!$F$10=\"X\",('Project Information'!$L$42-'Project Information'!$L$39),'Project Information'!$L$42)/SUMPRODUCT($BY$8:$BY$107,--($CX$8:$CX$107=\"c\"))),0)))","v":""},0,null,"","",{"$f":"IF($J51=\"\",\"\",VLOOKUP($J51,'TRM Data'!$R$4:$S$168,2,FALSE))","v":""},"","","",null,{"$f":"IF($CV51=0,\"\",CBAT!$DJ51)","v":""},null,null,1,1,0,1,0,null,{"$f":"IF(OR($CV51=0,ISBLANK('Project Information'!$D$44)),\"\",IF(AND($CV51=1,$CO51<1,$G51=\"yes\"),\"a\",IF($CO51<1,\"b\",\"c\")))","v":""}]
[0,45,null,null,null,null,null,{"$f":"IF($C52=\"\",\"\",IF(COUNTIF('Project Information'!$J$9:BG$9,$C52)<>1,\"\",INDEX('Project Information'!$J$8:$BG$8,1,MATCH($C52,'Project Information'!$J$9:BG$9,0))))","v":""},null,null,{"$f":"LOOKUP(2,1/(COUNTIF($K$7:K51,$Q$8:$Q$108)=0),$Q$8:$Q$108)","v":{"$error":"#N/A"}},{"$f":"IF(OR('Project Information'!$D$32=\"\",C52=\"\"),\"\",'Project Information'!$D$32)","v":""},{"$f":"IF($C52=\"\",\"\",IF(COUNTIF('Project Information'!$J$9:$BG$9,$C52)=1,HLOOKUP(C52,'Project Information'!$J$9:$BG$10,2,FALSE),0))","v":""},null,null,null,null,null,null,null,{"$f":"IF(Q52<>\"\",IF('Project Information'!$D$33=\"Small Business\",\"I\",\"P\")&VLOOKUP($Q52,'TRM Data'!$C$5:$N$201,COLUMN('TRM Data'!$E$2)-COLUMN('TRM Data'!$C$2)+1,FALSE)&IF($L52=\"Summer\",\"S\",IF($L52=\"Winter\",\"W\",\"Y\")),\"\")","v":""},{"$f":"IF(OR($F52=\"Controls\",$F52=\"\"),\"\",VLOOKUP($Q52,'TRM Data'!$C$5:$N$201,COLUMN('TRM Data'!$F$2)-COLUMN('TRM Data'!$C$2)+1,FALSE))","v":""},null,{"$f":"IF($R52=0,\"\",VLOOKUP($Q52,'TRM Data'!$C$5:$N$201,COLUMN('TRM Data'!$G$2)-COLUMN('TRM Data'!$C$2)+1,FALSE)*$R52)","v":""},null,{"$f":"IF($R52=0,\"\",VLOOKUP($Q52,'TRM Data'!$C$5:$N$201,COLUMN('TRM Data'!$I$2)-COLUMN('TRM Data'!$C$2)+1,FALSE)*$R52)","v":""},{"$f":"IF($Q52=\"\",\"\",IF('Project Information'!$D$33=\"Small Business\",'Project Scope'!$CA52,IF('Project Information'!$D$33=\"Pay for Performance\",'Project Scope'!$CD52,0)))","v":""},null,null,null,{"$f":"IF(AC52<>\"\",\"P\"&VLOOKUP($AC52,'TRM Data'!$C$5:$N$201,COLUMN('TRM Data'!$E$2)-COLUMN('TRM Data'!$C$2)+1,FALSE)&IF($L52=\"Summer\",\"S\",IF($L52=\"Winter\",\"W\",\"Y\")),\"\")","v":""},{"$f":"IF($AD52=0,\"\",VLOOKUP($AC52,'TRM Data'!$C$5:$N$201,COLUMN('TRM Data'!$G$2)-COLUMN('TRM Data'!$C$2)+1,FALSE)*$AD52)","v":""},null,{"$f":"IF($AD52=0,\"\",VLOOKUP($AC52,'TRM Data'!$C$5:$N$201,COLUMN('TRM Data'!$I$2)-COLUMN('TRM Data'!$C$2)+1,FALSE)*$AD52)","v":""},{"$f":"IF($AC52=\"\",\"\",IF('Project Information'!$D$33=\"Small Business\",'Project Scope'!$CB52,IF('Project Information'!$D$33=\"Pay for Performance\",'Project Scope'!$CE52,0)))","v":""},null,"",null,"","","","","","","",{"$f":"IF($Q52=\"\",\"\",IF(AND(ISNUMBER($BW52),ISNUMBER($AR52),$AR52>0),SUM($BL52,$BO52,$BI52)*'Other Data'!$H$83,0))","v":""},{"$f":"IF($Q52=\"\",\"\",IF(AND(ISNUMBER($BW52),ISNUMBER($AR52),$AR52>0),$BW52*'Other Data'!$G$84,0))","v":""},null,"","","","","",{"$f":"IF($AC52=\"\",\"\",IF(AND(ISNUMBER($BX52), ISNUMBER($AZ52),$AZ52>0),SUM($BJ52,$BM52,$BP52)*'Other Data'!$H$83,0))","v":""},{"$f":"IF($AC52=\"\",\"\",IF(AND(ISNUMBER($BX52), ISNUMBER($AZ52),$AZ52>0),$BX52*'Other Data'!$G$84,0))","v":""},null,{"$f":"IF($C52=\"\",\"\",SUM('Ancillary Costs'!$N$91:$N$105)*(SUM($AR52,$AZ52,SUM($AS52,$BA52)*'Project Information'!$D$12)))","v":""},{"$f":"IF($C52=\"\",\"\",SUMIFS('Ancillary Costs'!$N$72:$N$86,'Ancillary Costs'!$FL$72:$FL$86,\"*xx\"&'Project Scope'!$C52&\"xx*\")*(SUM($AR52,$AZ52,SUM($AS52,$BA52)*'Project Information'!$D$12)))","v":""},{"$f":"IFERROR(IF($C52=\"\",\"\",SUMIFS('Ancillary Costs'!$N$8:$N$67,'Ancillary Costs'!$FL$8:$FL$67,\"*xx\"&'Project Scope'!C52&\"xx*\",'Ancillary Costs'!$I$8:$I$67,'Project Scope'!$AN52)*'Project Scope'!$AO52),0)","v":""},{"$f":"IFERROR(IF($C52=\"\",\"\",SUMIFS('Ancillary Costs'!$N$8:$N$67,'Ancillary Costs'!$FL$8:$FL$67,\"*xx\"&'Project Scope'!C52&\"xx*\",'Ancillary Costs'!$I$8:$I$67,'Project Scope'!$AW52)*'Project Scope'!$AX52),0)","v":""},{"$f":"IF($C52=\"\",\"\",IF(SUM($AR52,$AZ52,SUM($AS52,$BA52)*'Project Information'!$D$12)=0,0,SUM($BG52,(SUM($BE52:$BF52))*((SUM($AR52,(IF(ISNUMBER($AS52),$AS52,0)*'Project Information'!$D$12)))/SUM($AR52,$AZ52,SUM($AS52,$BA52)*'Project Information'!$D$12)))))","v":""},{"$f":"IF($C52=\"\",\"\",IF(SUM($AR52,$AZ52,SUM($AS52,$BA52)*'Project Information'!$D$12)=0,0,SUM($BH52,(SUM($BE52:$BF52))*((SUM($AZ52,(IF(ISNUMBER($BA52),$BA52,0)*'Project Information'!$D$12)))/SUM($AR52,$AZ52,SUM($AS52,$BA52)*'Project Information'!$D$12)))))","v":""},null,"","","",{"$f":"IF($C52=\"\",\"\",IF(OR($AS52=\"\",$CX52=\"b\"),0,$AS52*'Project Information'!$D$12))","v":""},{"$f":"IF($C52=\"\",\"\",IF(OR($BA52=\"\",$CX52=\"b\"),0,$BA52*'Project Information'!$D$12))","v":""},"","","","","",null,{"$f":"CBAT!$AB52","v":""},{"$f":"CBAT!$BZ52","v":""},0,null,"","",0,{"$f":"IF($Q52=\"\",\"\",IF(OR($CX52<>\"c\",SUM($BY$8:$BY$107)=0),0,ROUND(BW52*MIN('Other Data'!$G$84,'Other Data'!$H$84*IF('Project Information'!$F$10=\"X\",('Project Information'!$L$42-'Project Information'!$L$39),'Project Information'!$L$42)/SUMPRODUCT($BY$8:$BY$107,--($CX$8:$CX$107=\"c\"))),0)))","v":""},{"$f":"IF($AC52=\"\",\"\",IF(OR($CX52<>\"c\",SUM($BY$8:$BY$107)=0),0,ROUND(BX52*MIN('Other Data'!$G$84,'Other Data'!$H$84*IF('Project Information'!$F$10=\"X\",('Project Information'!$L$42-'Project Information'!$L$39),'Project Information'!$L$42)/SUMPRODUCT($BY$8:$BY$107,--($CX$8:$CX$107=\"c\"))),0)))","v":""},0,null,"","",{"$f":"IF($J52=\"\",\"\",VLOOKUP($J52,'TRM Data'!$R$4:$S$168,2,FALSE))","v":""},"","","",null,{"$f":"IF($CV52=0,\"\",CBAT!$DJ52)","v":""},null,null,1,1,0,1,0,null,{"$f":"IF(OR($CV52=0,ISBLANK('Project Information'!$D$44)),\"\",IF(AND($CV52=1,$CO52<1,$G52=\"yes\"),\"a\",IF($CO52<1,\"b\",\"c\")))","v":""}]
[0,46,null,null,null,null,null,{"$f":"IF($C53=\"\",\"\",IF(COUNTIF('Project Information'!$J$9:BG$9,$C53)<>1,\"\",INDEX('Project Information'!$J$8:$BG$8,1,MATCH($C53,'Project Information'!$J$9:BG$9,0))))","v":""},null,null,{"$f":"LOOKUP(2,1/(COUNTIF($K$7:K52,$Q$8:$Q$108)=0),$Q$8:$Q$108)","v":{"$error":"#N/A"}},{"$f":"IF(OR('Project Information'!$D$32=\"\",C53=\"\"),\"\",'Project Information'!$D$32)","v":""},{"$f":"IF($C53=\"\",\"\",IF(COUNTIF('Project Information'!$J$9:$BG$9,$C53)=1,HLOOKUP(C53,'Project Information'!$J$9:$BG$10,2,FALSE),0))","v":""},null,null,null,null,null,null,null,{"$f":"IF(Q53<>\"\",IF('Project Information'!$D$33=\"Small Business\",\"I\",\"P\")&VLOOKUP($Q53,'TRM Data'!$C$5:$N$201,COLUMN('TRM Data'!$E$2)-COLUMN('TRM Data'!$C$2)+1,FALSE)&IF($L53=\"Summer\",\"S\",IF($L53=\"Winter\",\"W\",\"Y\")),\"\")","v":""},{"$f":"IF(OR($F53=\"Controls\",$F53=\"\"),\"\",VLOOKUP($Q53,'TRM Data'!$C$5:$N$201,COLUMN('TRM Data'!$F$2)-COLUMN('TRM Data'!$C$2)+1,FALSE))","v":""},null,{"$f":"IF($R53=0,\"\",VLOOKUP($Q53,'TRM Data'!$C$5:$N$201,COLUMN('TRM Data'!$G$2)-COLUMN('TRM Data'!$C$2)+1,FALSE)*$R53)","v":""},null,{"$f":"IF($R53=0,\"\",VLOOKUP($Q53,'TRM Data'!$C$5:$N$201,COLUMN('TRM Data'!$I$2)-COLUMN('TRM Data'!$C$2)+1,FALSE)*$R53)","v":""},{"$f":"IF($Q53=\"\",\"\",IF('Project Information'!$D$33=\"Small Business\",'Project Scope'!$CA53,IF('Project Information'!$D$33=\"Pay for Performance\",'Project Scope'!$CD53,0)))","v":""},null,null,null,{"$f":"IF(AC53<>\"\",\"P\"&VLOOKUP($AC53,'TRM Data'!$C$5:$N$201,COLUMN('TRM Data'!$E$2)-COLUMN('TRM Data'!$C$2)+1,FALSE)&IF($L53=\"Summer\",\"S\",IF($L53=\"Winter\",\"W\",\"Y\")),\"\")","v":""},{"$f":"IF($AD53=0,\"\",VLOOKUP($AC53,'TRM Data'!$C$5:$N$201,COLUMN('TRM Data'!$G$2)-COLUMN('TRM Data'!$C$2)+1,FALSE)*$AD53)","v":""},null,{"$f":"IF($AD53=0,\"\",VLOOKUP($AC53,'TRM Data'!$C$5:$N$201,COLUMN('TRM Data'!$I$2)-COLUMN('TRM Data'!$C$2)+1,FALSE)*$AD53)","v":""},{"$f":"IF($AC53=\"\",\"\",IF('Project Information'!$D$33=\"Small Business\",'Project Scope'!$CB53,IF('Project Information'!$D$33=\"Pay for Performance\",'Project Scope'!$CE53,0)))","v":""},null,"",null,"","","","","","","",{"$f":"IF($Q53=\"\",\"\",IF(AND(ISNUMBER($BW53),ISNUMBER($AR53),$AR53>0),SUM($BL53,$BO53,$BI53)*'Other Data'!$H$83,0))","v":""},{"$f":"IF($Q53=\"\",\"\",IF(AND(ISNUMBER($BW53),ISNUMBER($AR53),$AR53>0),$BW53*'Other Data'!$G$84,0))","v":""},null,"","","","","",{"$f":"IF($AC53=\"\",\"\",IF(AND(ISNUMBER($BX53), ISNUMBER($AZ53),$AZ53>0),SUM($BJ53,$BM53,$BP53)*'Other Data'!$H$83,0))","v":""},{"$f":"IF($AC53=\"\",\"\",IF(AND(ISNUMBER($BX53), ISNUMBER($AZ53),$AZ53>0),$BX53*'Other Data'!$G$84,0))","v":""},null,{"$f":"IF($C53=\"\",\"\",SUM('Ancillary Costs'!$N$91:$N$105)*(SUM($AR53,$AZ53,SUM($AS53,$BA53)*'Project Information'!$D$12)))","v":""},{"$f":"IF($C53=\"\",\"\",SUMIFS('Ancillary Costs'!$N$72:$N$86,'Ancillary Costs'!$FL$72:$FL$86,\"*xx\"&'Project Scope'!$C53&\"xx*\")*(SUM($AR53,$AZ53,SUM($AS53,$BA53)*'Project Information'!$D$12)))","v":""},{"$f":"IFERROR(IF($C53=\"\",\"\",SUMIFS('Ancillary Costs'!$N$8:$N$67,'Ancillary Costs'!$FL$8:$FL$67,\"*xx\"&'Project Scope'!C53&\"xx*\",'Ancillary Costs'!$I$8:$I$67,'Project Scope'!$AN53)*'Project Scope'!$AO53),0)","v":""},{"$f":"IFERROR(IF($C53=\"\",\"\",SUMIFS('Ancillary Costs'!$N$8:$N$67,'Ancillary Costs'!$FL$8:$FL$67,\"*xx\"&'Project Scope'!C53&\"xx*\",'Ancillary Costs'!$I$8:$I$67,'Project Scope'!$AW53)*'Project Scope'!$AX53),0)","v":""},{"$f":"IF($C53=\"\",\"\",IF(SUM($AR53,$AZ53,SUM($AS53,$BA53)*'Project Information'!$D$12)=0,0,SUM($BG53,(SUM($BE53:$BF53))*((SUM($AR53,(IF(ISNUMBER($AS53),$AS53,0)*'Project Information'!$D$12)))/SUM($AR53,$AZ53,SUM($AS53,$BA53)*'Project Information'!$D$12)))))","v":""},{"$f":"IF($C53=\"\",\"\",IF(SUM($AR53,$AZ53,SUM($AS53,$BA53)*'Project Information'!$D$12)=0,0,SUM($BH53,(SUM($BE53:$BF53))*((SUM($AZ53,(IF(ISNUMBER($BA53),$BA53,0)*'Project Information'!$D$12)))/SUM($AR53,$AZ53,SUM($AS53,$BA53)*'Project Information'!$D$12)))))","v":""},null,"","","",{"$f":"IF($C53=\"\",\"\",IF(OR($AS53=\"\",$CX53=\"b\"),0,$AS53*'Project Information'!$D$12))","v":""},{"$f":"IF($C53=\"\",\"\",IF(OR($BA53=\"\",$CX53=\"b\"),0,$BA53*'Project Information'!$D$12))","v":""},"","","","","",null,{"$f":"CBAT!$AB53","v":""},{"$f":"CBAT!$BZ53","v":""},0,null,"","",0,{"$f":"IF($Q53=\"\",\"\",IF(OR($CX53<>\"c\",SUM($BY$8:$BY$107)=0),0,ROUND(BW53*MIN('Other Data'!$G$84,'Other Data'!$H$84*IF('Project Information'!$F$10=\"X\",('Project Information'!$L$42-'Project Information'!$L$39),'Project Information'!$L$42)/SUMPRODUCT($BY$8:$BY$107,--($CX$8:$CX$107=\"c\"))),0)))","v":""},{"$f":"IF($AC53=\"\",\"\",IF(OR($CX53<>\"c\",SUM($BY$8:$BY$107)=0),0,ROUND(BX53*MIN('Other Data'!$G$84,'Other Data'!$H$84*IF('Project Information'!$F$10=\"X\",('Project Information'!$L$42-'Project Information'!$L$39),'Project Information'!$L$42)/SUMPRODUCT($BY$8:$BY$107,--($CX$8:$CX$107=\"c\"))),0)))","v":""},0,null,"","",{"$f":"IF($J53=\"\",\"\",VLOOKUP($J53,'TRM Data'!$R$4:$S$168,2,FALSE))","v":""},"","","",null,{"$f":"IF($CV53=0,\"\",CBAT!$DJ53)","v":""},null,null,1,1,0,1,0,null,{"$f":"IF(OR($CV53=0,ISBLANK('Project Information'!$D$44)),\"\",IF(AND($CV53=1,$CO53<1,$G53=\"yes\"),\"a\",IF($CO53<1,\"b\",\"c\")))","v":""}]
[0,47,null,null,null,null,null,{"$f":"IF($C54=\"\",\"\",IF(COUNTIF('Project Information'!$J$9:BG$9,$C54)<>1,\"\",INDEX('Project Information'!$J$8:$BG$8,1,MATCH($C54,'Project Information'!$J$9:BG$9,0))))","v":""},null,null,{"$f":"LOOKUP(2,1/(COUNTIF($K$7:K53,$Q$8:$Q$108)=0),$Q$8:$Q$108)","v":{"$error":"#N/A"}},{"$f":"IF(OR('Project Information'!$D$32=\"\",C54=\"\"),\"\",'Project Information'!$D$32)","v":""},{"$f":"IF($C54=\"\",\"\",IF(COUNTIF('Project Information'!$J$9:$BG$9,$C54)=1,HLOOKUP(C54,'Project Information'!$J$9:$BG$10,2,FALSE),0))","v":""},null,null,null,null,null,null,null,{"$f":"IF(Q54<>\"\",IF('Project Information'!$D$33=\"Small Business\",\"I\",\"P\")&VLOOKUP($Q54,'TRM Data'!$C$5:$N$201,COLUMN('TRM Data'!$E$2)-COLUMN('TRM Data'!$C$2)+1,FALSE)&IF($L54=\"Summer\",\"S\",IF($L54=\"Winter\",\"W\",\"Y\")),\"\")","v":""},{"$f":"IF(OR($F54=\"Controls\",$F54=\"\"),\"\",VLOOKUP($Q54,'TRM Data'!$C$5:$N$201,COLUMN('TRM Data'!$F$2)-COLUMN('TRM Data'!$C$2)+1,FALSE))","v":""},null,{"$f":"IF($R54=0,\"\",VLOOKUP($Q54,'TRM Data'!$C$5:$N$201,COLUMN('TRM Data'!$G$2)-COLUMN('TRM Data'!$C$2)+1,FALSE)*$R54)","v":""},null,{"$f":"IF($R54=0,\"\",VLOOKUP($Q54,'TRM Data'!$C$5:$N$201,COLUMN('TRM Data'!$I$2)-COLUMN('TRM Data'!$C$2)+1,FALSE)*$R54)","v":""},{"$f":"IF($Q54=\"\",\"\",IF('Project Information'!$D$33=\"Small Business\",'Project Scope'!$CA54,IF('Project Information'!$D$33=\"Pay for Performance\",'Project Scope'!$CD54,0)))","v":""},null,null,null,{"$f":"IF(AC54<>\"\",\"P\"&VLOOKUP($AC54,'TRM Data'!$C$5:$N$201,COLUMN('TRM Data'!$E$2)-COLUMN('TRM Data'!$C$2)+1,FALSE)&IF($L54=\"Summer\",\"S\",IF($L54=\"Winter\",\"W\",\"Y\")),\"\")","v":""},{"$f":"IF($AD54=0,\"\",VLOOKUP($AC54,'TRM Data'!$C$5:$N$201,COLUMN('TRM Data'!$G$2)-COLUMN('TRM Data'!$C$2)+1,FALSE)*$AD54)","v":""},null,{"$f":"IF($AD54=0,\"\",VLOOKUP($AC54,'TRM Data'!$C$5:$N$201,COLUMN('TRM Data'!$I$2)-COLUMN('TRM Data'!$C$2)+1,FALSE)*$AD54)","v":""},{"$f":"IF($AC54=\"\",\"\",IF('Project Information'!$D$33=\"Small Business\",'Project Scope'!$CB54,IF('Project Information'!$D$33=\"Pay for Performance\",'Project Scope'!$CE54,0)))","v":""},null,"",null,"","","","","","","",{"$f":"IF($Q54=\"\",\"\",IF(AND(ISNUMBER($BW54),ISNUMBER($AR54),$AR54>0),SUM($BL54,$BO54,$BI54)*'Other Data'!$H$83,0))","v":""},{"$f":"IF($Q54=\"\",\"\",IF(AND(ISNUMBER($BW54),ISNUMBER($AR54),$AR54>0),$BW54*'Other Data'!$G$84,0))","v":""},null,"","","","","",{"$f":"IF($AC54=\"\",\"\",IF(AND(ISNUMBER($BX54), ISNUMBER($AZ54),$AZ54>0),SUM($BJ54,$BM54,$BP54)*'Other Data'!$H$83,0))","v":""},{"$f":"IF($AC54=\"\",\"\",IF(AND(ISNUMBER($BX54), ISNUMBER($AZ54),$AZ54>0),$BX54*'Other Data'!$G$84,0))","v":""},null,{"$f":"IF($C54=\"\",\"\",SUM('Ancillary Costs'!$N$91:$N$105)*(SUM($AR54,$AZ54,SUM($AS54,$BA54)*'Project Information'!$D$12)))","v":""},{"$f":"IF($C54=\"\",\"\",SUMIFS('Ancillary Costs'!$N$72:$N$86,'Ancillary Costs'!$FL$72:$FL$86,\"*xx\"&'Project Scope'!$C54&\"xx*\")*(SUM($AR54,$AZ54,SUM($AS54,$BA54)*'Project Information'!$D$12)))","v":""},{"$f":"IFERROR(IF($C54=\"\",\"\",SUMIFS('Ancillary Costs'!$N$8:$N$67,'Ancillary Costs'!$FL$8:$FL$67,\"*xx\"&'Project Scope'!C54&\"xx*\",'Ancillary Costs'!$I$8:$I$67,'Project Scope'!$AN54)*'Project Scope'!$AO54),0)","v":""},{"$f":"IFERROR(IF($C54=\"\",\"\",SUMIFS('Ancillary Costs'!$N$8:$N$67,'Ancillary Costs'!$FL$8:$FL$67,\"*xx\"&'Project Scope'!C54&\"xx*\",'Ancillary Costs'!$I$8:$I$67,'Project Scope'!$AW54)*'Project Scope'!$AX54),0)","v":""},{"$f":"IF($C54=\"\",\"\",IF(SUM($AR54,$AZ54,SUM($AS54,$BA54)*'Project Information'!$D$12)=0,0,SUM($BG54,(SUM($BE54:$BF54))*((SUM($AR54,(IF(ISNUMBER($AS54),$AS54,0)*'Project Information'!$D$12)))/SUM($AR54,$AZ54,SUM($AS54,$BA54)*'Project Information'!$D$12)))))","v":""},{"$f":"IF($C54=\"\",\"\",IF(SUM($AR54,$AZ54,SUM($AS54,$BA54)*'Project Information'!$D$12)=0,0,SUM($BH54,(SUM($BE54:$BF54))*((SUM($AZ54,(IF(ISNUMBER($BA54),$BA54,0)*'Project Information'!$D$12)))/SUM($AR54,$AZ54,SUM($AS54,$BA54)*'Project Information'!$D$12)))))","v":""},null,"","","",{"$f":"IF($C54=\"\",\"\",IF(OR($AS54=\"\",$CX54=\"b\"),0,$AS54*'Project Information'!$D$12))","v":""},{"$f":"IF($C54=\"\",\"\",IF(OR($BA54=\"\",$CX54=\"b\"),0,$BA54*'Project Information'!$D$12))","v":""},"","","","","",null,{"$f":"CBAT!$AB54","v":""},{"$f":"CBAT!$BZ54","v":""},0,null,"","",0,{"$f":"IF($Q54=\"\",\"\",IF(OR($CX54<>\"c\",SUM($BY$8:$BY$107)=0),0,ROUND(BW54*MIN('Other Data'!$G$84,'Other Data'!$H$84*IF('Project Information'!$F$10=\"X\",('Project Information'!$L$42-'Project Information'!$L$39),'Project Information'!$L$42)/SUMPRODUCT($BY$8:$BY$107,--($CX$8:$CX$107=\"c\"))),0)))","v":""},{"$f":"IF($AC54=\"\",\"\",IF(OR($CX54<>\"c\",SUM($BY$8:$BY$107)=0),0,ROUND(BX54*MIN('Other Data'!$G$84,'Other Data'!$H$84*IF('Project Information'!$F$10=\"X\",('Project Information'!$L$42-'Project Information'!$L$39),'Project Information'!$L$42)/SUMPRODUCT($BY$8:$BY$107,--($CX$8:$CX$107=\"c\"))),0)))","v":""},0,null,"","",{"$f":"IF($J54=\"\",\"\",VLOOKUP($J54,'TRM Data'!$R$4:$S$168,2,FALSE))","v":""},"","","",null,{"$f":"IF($CV54=0,\"\",CBAT!$DJ54)","v":""},null,null,1,1,0,1,0,null,{"$f":"IF(OR($CV54=0,ISBLANK('Project Information'!$D$44)),\"\",IF(AND($CV54=1,$CO54<1,$G54=\"yes\"),\"a\",IF($CO54<1,\"b\",\"c\")))","v":""}]
[0,48,null,null,null,null,null,{"$f":"IF($C55=\"\",\"\",IF(COUNTIF('Project Information'!$J$9:BG$9,$C55)<>1,\"\",INDEX('Project Information'!$J$8:$BG$8,1,MATCH($C55,'Project Information'!$J$9:BG$9,0))))","v":""},null,null,{"$f":"LOOKUP(2,1/(COUNTIF($K$7:K54,$Q$8:$Q$108)=0),$Q$8:$Q$108)","v":{"$error":"#N/A"}},{"$f":"IF(OR('Project Information'!$D$32=\"\",C55=\"\"),\"\",'Project Information'!$D$32)","v":""},{"$f":"IF($C55=\"\",\"\",IF(COUNTIF('Project Information'!$J$9:$BG$9,$C55)=1,HLOOKUP(C55,'Project Information'!$J$9:$BG$10,2,FALSE),0))","v":""},null,null,null,null,null,null,null,{"$f":"IF(Q55<>\"\",IF('Project Information'!$D$33=\"Small Business\",\"I\",\"P\")&VLOOKUP($Q55,'TRM Data'!$C$5:$N$201,COLUMN('TRM Data'!$E$2)-COLUMN('TRM Data'!$C$2)+1,FALSE)&IF($L55=\"Summer\",\"S\",IF($L55=\"Winter\",\"W\",\"Y\")),\"\")","v":""},{"$f":"IF(OR($F55=\"Controls\",$F55=\"\"),\"\",VLOOKUP($Q55,'TRM Data'!$C$5:$N$201,COLUMN('TRM Data'!$F$2)-COLUMN('TRM Data'!$C$2)+1,FALSE))","v":""},null,{"$f":"IF($R55=0,\"\",VLOOKUP($Q55,'TRM Data'!$C$5:$N$201,COLUMN('TRM Data'!$G$2)-COLUMN('TRM Data'!$C$2)+1,FALSE)*$R55)","v":""},null,{"$f":"IF($R55=0,\"\",VLOOKUP($Q55,'TRM Data'!$C$5:$N$201,COLUMN('TRM Data'!$I$2)-COLUMN('TRM Data'!$C$2)+1,FALSE)*$R55)","v":""},{"$f":"IF($Q55=\"\",\"\",IF('Project Information'!$D$33=\"Small Business\",'Project Scope'!$CA55,IF('Project Information'!$D$33=\"Pay for Performance\",'Project Scope'!$CD55,0)))","v":""},null,null,null,{"$f":"IF(AC55<>\"\",\"P\"&VLOOKUP($AC55,'TRM Data'!$C$5:$N$201,COLUMN('TRM Data'!$E$2)-COLUMN('TRM Data'!$C$2)+1,FALSE)&IF($L55=\"Summer\",\"S\",IF($L55=\"Winter\",\"W\",\"Y\")),\"\")","v":""},{"$f":"IF($AD55=0,\"\",VLOOKUP($AC55,'TRM Data'!$C$5:$N$201,COLUMN('TRM Data'!$G$2)-COLUMN('TRM Data'!$C$2)+1,FALSE)*$AD55)","v":""},null,{"$f":"IF($AD55=0,\"\",VLOOKUP($AC55,'TRM Data'!$C$5:$N$201,COLUMN('TRM Data'!$I$2)-COLUMN('TRM Data'!$C$2)+1,FALSE)*$AD55)","v":""},{"$f":"IF($AC55=\"\",\"\",IF('Project Information'!$D$33=\"Small Business\",'Project Scope'!$CB55,IF('Project Information'!$D$33=\"Pay for Performance\",'Project Scope'!$CE55,0)))","v":""},null,"",null,"","","","","","","",{"$f":"IF($Q55=\"\",\"\",IF(AND(ISNUMBER($BW55),ISNUMBER($AR55),$AR55>0),SUM($BL55,$BO55,$BI55)*'Other Data'!$H$83,0))","v":""},{"$f":"IF($Q55=\"\",\"\",IF(AND(ISNUMBER($BW55),ISNUMBER($AR55),$AR55>0),$BW55*'Other Data'!$G$84,0))","v":""},null,"","","","","",{"$f":"IF($AC55=\"\",\"\",IF(AND(ISNUMBER($BX55), ISNUMBER($AZ55),$AZ55>0),SUM($BJ55,$BM55,$BP55)*'Other Data'!$H$83,0))","v":""},{"$f":"IF($AC55=\"\",\"\",IF(AND(ISNUMBER($BX55), ISNUMBER($AZ55),$AZ55>0),$BX55*'Other Data'!$G$84,0))","v":""},null,{"$f":"IF($C55=\"\",\"\",SUM('Ancillary Costs'!$N$91:$N$105)*(SUM($AR55,$AZ55,SUM($AS55,$BA55)*'Project Information'!$D$12)))","v":""},{"$f":"IF($C55=\"\",\"\",SUMIFS('Ancillary Costs'!$N$72:$N$86,'Ancillary Costs'!$FL$72:$FL$86,\"*xx\"&'Project Scope'!$C55&\"xx*\")*(SUM($AR55,$AZ55,SUM($AS55,$BA55)*'Project Information'!$D$12)))","v":""},{"$f":"IFERROR(IF($C55=\"\",\"\",SUMIFS('Ancillary Costs'!$N$8:$N$67,'Ancillary Costs'!$FL$8:$FL$67,\"*xx\"&'Project Scope'!C55&\"xx*\",'Ancillary Costs'!$I$8:$I$67,'Project Scope'!$AN55)*'Project Scope'!$AO55),0)","v":""},{"$f":"IFERROR(IF($C55=\"\",\"\",SUMIFS('Ancillary Costs'!$N$8:$N$67,'Ancillary Costs'!$FL$8:$FL$67,\"*xx\"&'Project Scope'!C55&\"xx*\",'Ancillary Costs'!$I$8:$I$67,'Project Scope'!$AW55)*'Project Scope'!$AX55),0)","v":""},{"$f":"IF($C55=\"\",\"\",IF(SUM($AR55,$AZ55,SUM($AS55,$BA55)*'Project Information'!$D$12)=0,0,SUM($BG55,(SUM($BE55:$BF55))*((SUM($AR55,(IF(ISNUMBER($AS55),$AS55,0)*'Project Information'!$D$12)))/SUM($AR55,$AZ55,SUM($AS55,$BA55)*'Project Information'!$D$12)))))","v":""},{"$f":"IF($C55=\"\",\"\",IF(SUM($AR55,$AZ55,SUM($AS55,$BA55)*'Project Information'!$D$12)=0,0,SUM($BH55,(SUM($BE55:$BF55))*((SUM($AZ55,(IF(ISNUMBER($BA55),$BA55,0)*'Project Information'!$D$12)))/SUM($AR55,$AZ55,SUM($AS55,$BA55)*'Project Information'!$D$12)))))","v":""},null,"","","",{"$f":"IF($C55=\"\",\"\",IF(OR($AS55=\"\",$CX55=\"b\"),0,$AS55*'Project Information'!$D$12))","v":""},{"$f":"IF($C55=\"\",\"\",IF(OR($BA55=\"\",$CX55=\"b\"),0,$BA55*'Project Information'!$D$12))","v":""},"","","","","",null,{"$f":"CBAT!$AB55","v":""},{"$f":"CBAT!$BZ55","v":""},0,null,"","",0,{"$f":"IF($Q55=\"\",\"\",IF(OR($CX55<>\"c\",SUM($BY$8:$BY$107)=0),0,ROUND(BW55*MIN('Other Data'!$G$84,'Other Data'!$H$84*IF('Project Information'!$F$10=\"X\",('Project Information'!$L$42-'Project Information'!$L$39),'Project Information'!$L$42)/SUMPRODUCT($BY$8:$BY$107,--($CX$8:$CX$107=\"c\"))),0)))","v":""},{"$f":"IF($AC55=\"\",\"\",IF(OR($CX55<>\"c\",SUM($BY$8:$BY$107)=0),0,ROUND(BX55*MIN('Other Data'!$G$84,'Other Data'!$H$84*IF('Project Information'!$F$10=\"X\",('Project Information'!$L$42-'Project Information'!$L$39),'Project Information'!$L$42)/SUMPRODUCT($BY$8:$BY$107,--($CX$8:$CX$107=\"c\"))),0)))","v":""},0,null,"","",{"$f":"IF($J55=\"\",\"\",VLOOKUP($J55,'TRM Data'!$R$4:$S$168,2,FALSE))","v":""},"","","",null,{"$f":"IF($CV55=0,\"\",CBAT!$DJ55)","v":""},null,null,1,1,0,1,0,null,{"$f":"IF(OR($CV55=0,ISBLANK('Project Information'!$D$44)),\"\",IF(AND($CV55=1,$CO55<1,$G55=\"yes\"),\"a\",IF($CO55<1,\"b\",\"c\")))","v":""}]
[0,49,null,null,null,null,null,{"$f":"IF($C56=\"\",\"\",IF(COUNTIF('Project Information'!$J$9:BG$9,$C56)<>1,\"\",INDEX('Project Information'!$J$8:$BG$8,1,MATCH($C56,'Project Information'!$J$9:BG$9,0))))","v":""},null,null,{"$f":"LOOKUP(2,1/(COUNTIF($K$7:K55,$Q$8:$Q$108)=0),$Q$8:$Q$108)","v":{"$error":"#N/A"}},{"$f":"IF(OR('Project Information'!$D$32=\"\",C56=\"\"),\"\",'Project Information'!$D$32)","v":""},{"$f":"IF($C56=\"\",\"\",IF(COUNTIF('Project Information'!$J$9:$BG$9,$C56)=1,HLOOKUP(C56,'Project Information'!$J$9:$BG$10,2,FALSE),0))","v":""},null,null,null,null,null,null,null,{"$f":"IF(Q56<>\"\",IF('Project Information'!$D$33=\"Small Business\",\"I\",\"P\")&VLOOKUP($Q56,'TRM Data'!$C$5:$N$201,COLUMN('TRM Data'!$E$2)-COLUMN('TRM Data'!$C$2)+1,FALSE)&IF($L56=\"Summer\",\"S\",IF($L56=\"Winter\",\"W\",\"Y\")),\"\")","v":""},{"$f":"IF(OR($F56=\"Controls\",$F56=\"\"),\"\",VLOOKUP($Q56,'TRM Data'!$C$5:$N$201,COLUMN('TRM Data'!$F$2)-COLUMN('TRM Data'!$C$2)+1,FALSE))","v":""},null,{"$f":"IF($R56=0,\"\",VLOOKUP($Q56,'TRM Data'!$C$5:$N$201,COLUMN('TRM Data'!$G$2)-COLUMN('TRM Data'!$C$2)+1,FALSE)*$R56)","v":""},null,{"$f":"IF($R56=0,\"\",VLOOKUP($Q56,'TRM Data'!$C$5:$N$201,COLUMN('TRM Data'!$I$2)-COLUMN('TRM Data'!$C$2)+1,FALSE)*$R56)","v":""},{"$f":"IF($Q56=\"\",\"\",IF('Project Information'!$D$33=\"Small Business\",'Project Scope'!$CA56,IF('Project Information'!$D$33=\"Pay for Performance\",'Project Scope'!$CD56,0)))","v":""},null,null,null,{"$f":"IF(AC56<>\"\",\"P\"&VLOOKUP($AC56,'TRM Data'!$C$5:$N$201,COLUMN('TRM Data'!$E$2)-COLUMN('TRM Data'!$C$2)+1,FALSE)&IF($L56=\"Summer\",\"S\",IF($L56=\"Winter\",\"W\",\"Y\")),\"\")","v":""},{"$f":"IF($AD56=0,\"\",VLOOKUP($AC56,'TRM Data'!$C$5:$N$201,COLUMN('TRM Data'!$G$2)-COLUMN('TRM Data'!$C$2)+1,FALSE)*$AD56)","v":""},null,{"$f":"IF($AD56=0,\"\",VLOOKUP($AC56,'TRM Data'!$C$5:$N$201,COLUMN('TRM Data'!$I$2)-COLUMN('TRM Data'!$C$2)+1,FALSE)*$AD56)","v":""},{"$f":"IF($AC56=\"\",\"\",IF('Project Information'!$D$33=\"Small Business\",'Project Scope'!$CB56,IF('Project Information'!$D$33=\"Pay for Performance\",'Project Scope'!$CE56,0)))","v":""},null,"",null,"","","","","","","",{"$f":"IF($Q56=\"\",\"\",IF(AND(ISNUMBER($BW56),ISNUMBER($AR56),$AR56>0),SUM($BL56,$BO56,$BI56)*'Other Data'!$H$83,0))","v":""},{"$f":"IF($Q56=\"\",\"\",IF(AND(ISNUMBER($BW56),ISNUMBER($AR56),$AR56>0),$BW56*'Other Data'!$G$84,0))","v":""},null,"","","","","",{"$f":"IF($AC56=\"\",\"\",IF(AND(ISNUMBER($BX56), ISNUMBER($AZ56),$AZ56>0),SUM($BJ56,$BM56,$BP56)*'Other Data'!$H$83,0))","v":""},{"$f":"IF($AC56=\"\",\"\",IF(AND(ISNUMBER($BX56), ISNUMBER($AZ56),$AZ56>0),$BX56*'Other Data'!$G$84,0))","v":""},null,{"$f":"IF($C56=\"\",\"\",SUM('Ancillary Costs'!$N$91:$N$105)*(SUM($AR56,$AZ56,SUM($AS56,$BA56)*'Project Information'!$D$12)))","v":""},{"$f":"IF($C56=\"\",\"\",SUMIFS('Ancillary Costs'!$N$72:$N$86,'Ancillary Costs'!$FL$72:$FL$86,\"*xx\"&'Project Scope'!$C56&\"xx*\")*(SUM($AR56,$AZ56,SUM($AS56,$BA56)*'Project Information'!$D$12)))","v":""},{"$f":"IFERROR(IF($C56=\"\",\"\",SUMIFS('Ancillary Costs'!$N$8:$N$67,'Ancillary Costs'!$FL$8:$FL$67,\"*xx\"&'Project Scope'!C56&\"xx*\",'Ancillary Costs'!$I$8:$I$67,'Project Scope'!$AN56)*'Project Scope'!$AO56),0)","v":""},{"$f":"IFERROR(IF($C56=\"\",\"\",SUMIFS('Ancillary Costs'!$N$8:$N$67,'Ancillary Costs'!$FL$8:$FL$67,\"*xx\"&'Project Scope'!C56&\"xx*\",'Ancillary Costs'!$I$8:$I$67,'Project Scope'!$AW56)*'Project Scope'!$AX56),0)","v":""},{"$f":"IF($C56=\"\",\"\",IF(SUM($AR56,$AZ56,SUM($AS56,$BA56)*'Project Information'!$D$12)=0,0,SUM($BG56,(SUM($BE56:$BF56))*((SUM($AR56,(IF(ISNUMBER($AS56),$AS56,0)*'Project Information'!$D$12)))/SUM($AR56,$AZ56,SUM($AS56,$BA56)*'Project Information'!$D$12)))))","v":""},{"$f":"IF($C56=\"\",\"\",IF(SUM($AR56,$AZ56,SUM($AS56,$BA56)*'Project Information'!$D$12)=0,0,SUM($BH56,(SUM($BE56:$BF56))*((SUM($AZ56,(IF(ISNUMBER($BA56),$BA56,0)*'Project Information'!$D$12)))/SUM($AR56,$AZ56,SUM($AS56,$BA56)*'Project Information'!$D$12)))))","v":""},null,"","","",{"$f":"IF($C56=\"\",\"\",IF(OR($AS56=\"\",$CX56=\"b\"),0,$AS56*'Project Information'!$D$12))","v":""},{"$f":"IF($C56=\"\",\"\",IF(OR($BA56=\"\",$CX56=\"b\"),0,$BA56*'Project Information'!$D$12))","v":""},"","","","","",null,{"$f":"CBAT!$AB56","v":""},{"$f":"CBAT!$BZ56","v":""},0,null,"","",0,{"$f":"IF($Q56=\"\",\"\",IF(OR($CX56<>\"c\",SUM($BY$8:$BY$107)=0),0,ROUND(BW56*MIN('Other Data'!$G$84,'Other Data'!$H$84*IF('Project Information'!$F$10=\"X\",('Project Information'!$L$42-'Project Information'!$L$39),'Project Information'!$L$42)/SUMPRODUCT($BY$8:$BY$107,--($CX$8:$CX$107=\"c\"))),0)))","v":""},{"$f":"IF($AC56=\"\",\"\",IF(OR($CX56<>\"c\",SUM($BY$8:$BY$107)=0),0,ROUND(BX56*MIN('Other Data'!$G$84,'Other Data'!$H$84*IF('Project Information'!$F$10=\"X\",('Project Information'!$L$42-'Project Information'!$L$39),'Project Information'!$L$42)/SUMPRODUCT($BY$8:$BY$107,--($CX$8:$CX$107=\"c\"))),0)))","v":""},0,null,"","",{"$f":"IF($J56=\"\",\"\",VLOOKUP($J56,'TRM Data'!$R$4:$S$168,2,FALSE))","v":""},"","","",null,{"$f":"IF($CV56=0,\"\",CBAT!$DJ56)","v":""},null,null,1,1,0,1,0,null,{"$f":"IF(OR($CV56=0,ISBLANK('Project Information'!$D$44)),\"\",IF(AND($CV56=1,$CO56<1,$G56=\"yes\"),\"a\",IF($CO56<1,\"b\",\"c\")))","v":""}]
[0,50,null,null,null,null,null,{"$f":"IF($C57=\"\",\"\",IF(COUNTIF('Project Information'!$J$9:BG$9,$C57)<>1,\"\",INDEX('Project Information'!$J$8:$BG$8,1,MATCH($C57,'Project Information'!$J$9:BG$9,0))))","v":""},null,null,{"$f":"LOOKUP(2,1/(COUNTIF($K$7:K56,$Q$8:$Q$108)=0),$Q$8:$Q$108)","v":{"$error":"#N/A"}},{"$f":"IF(OR('Project Information'!$D$32=\"\",C57=\"\"),\"\",'Project Information'!$D$32)","v":""},{"$f":"IF($C57=\"\",\"\",IF(COUNTIF('Project Information'!$J$9:$BG$9,$C57)=1,HLOOKUP(C57,'Project Information'!$J$9:$BG$10,2,FALSE),0))","v":""},null,null,null,null,null,null,null,{"$f":"IF(Q57<>\"\",IF('Project Information'!$D$33=\"Small Business\",\"I\",\"P\")&VLOOKUP($Q57,'TRM Data'!$C$5:$N$201,COLUMN('TRM Data'!$E$2)-COLUMN('TRM Data'!$C$2)+1,FALSE)&IF($L57=\"Summer\",\"S\",IF($L57=\"Winter\",\"W\",\"Y\")),\"\")","v":""},{"$f":"IF(OR($F57=\"Controls\",$F57=\"\"),\"\",VLOOKUP($Q57,'TRM Data'!$C$5:$N$201,COLUMN('TRM Data'!$F$2)-COLUMN('TRM Data'!$C$2)+1,FALSE))","v":""},null,{"$f":"IF($R57=0,\"\",VLOOKUP($Q57,'TRM Data'!$C$5:$N$201,COLUMN('TRM Data'!$G$2)-COLUMN('TRM Data'!$C$2)+1,FALSE)*$R57)","v":""},null,{"$f":"IF($R57=0,\"\",VLOOKUP($Q57,'TRM Data'!$C$5:$N$201,COLUMN('TRM Data'!$I$2)-COLUMN('TRM Data'!$C$2)+1,FALSE)*$R57)","v":""},{"$f":"IF($Q57=\"\",\"\",IF('Project Information'!$D$33=\"Small Business\",'Project Scope'!$CA57,IF('Project Information'!$D$33=\"Pay for Performance\",'Project Scope'!$CD57,0)))","v":""},null,null,null,{"$f":"IF(AC57<>\"\",\"P\"&VLOOKUP($AC57,'TRM Data'!$C$5:$N$201,COLUMN('TRM Data'!$E$2)-COLUMN('TRM Data'!$C$2)+1,FALSE)&IF($L57=\"Summer\",\"S\",IF($L57=\"Winter\",\"W\",\"Y\")),\"\")","v":""},{"$f":"IF($AD57=0,\"\",VLOOKUP($AC57,'TRM Data'!$C$5:$N$201,COLUMN('TRM Data'!$G$2)-COLUMN('TRM Data'!$C$2)+1,FALSE)*$AD57)","v":""},null,{"$f":"IF($AD57=0,\"\",VLOOKUP($AC57,'TRM Data'!$C$5:$N$201,COLUMN('TRM Data'!$I$2)-COLUMN('TRM Data'!$C$2)+1,FALSE)*$AD57)","v":""},{"$f":"IF($AC57=\"\",\"\",IF('Project Information'!$D$33=\"Small Business\",'Project Scope'!$CB57,IF('Project Information'!$D$33=\"Pay for Performance\",'Project Scope'!$CE57,0)))","v":""},null,"",null,"","","","","","","",{"$f":"IF($Q57=\"\",\"\",IF(AND(ISNUMBER($BW57),ISNUMBER($AR57),$AR57>0),SUM($BL57,$BO57,$BI57)*'Other Data'!$H$83,0))","v":""},{"$f":"IF($Q57=\"\",\"\",IF(AND(ISNUMBER($BW57),ISNUMBER($AR57),$AR57>0),$BW57*'Other Data'!$G$84,0))","v":""},null,"","","","","",{"$f":"IF($AC57=\"\",\"\",IF(AND(ISNUMBER($BX57), ISNUMBER($AZ57),$AZ57>0),SUM($BJ57,$BM57,$BP57)*'Other Data'!$H$83,0))","v":""},{"$f":"IF($AC57=\"\",\"\",IF(AND(ISNUMBER($BX57), ISNUMBER($AZ57),$AZ57>0),$BX57*'Other Data'!$G$84,0))","v":""},null,{"$f":"IF($C57=\"\",\"\",SUM('Ancillary Costs'!$N$91:$N$105)*(SUM($AR57,$AZ57,SUM($AS57,$BA57)*'Project Information'!$D$12)))","v":""},{"$f":"IF($C57=\"\",\"\",SUMIFS('Ancillary Costs'!$N$72:$N$86,'Ancillary Costs'!$FL$72:$FL$86,\"*xx\"&'Project Scope'!$C57&\"xx*\")*(SUM($AR57,$AZ57,SUM($AS57,$BA57)*'Project Information'!$D$12)))","v":""},{"$f":"IFERROR(IF($C57=\"\",\"\",SUMIFS('Ancillary Costs'!$N$8:$N$67,'Ancillary Costs'!$FL$8:$FL$67,\"*xx\"&'Project Scope'!C57&\"xx*\",'Ancillary Costs'!$I$8:$I$67,'Project Scope'!$AN57)*'Project Scope'!$AO57),0)","v":""},{"$f":"IFERROR(IF($C57=\"\",\"\",SUMIFS('Ancillary Costs'!$N$8:$N$67,'Ancillary Costs'!$FL$8:$FL$67,\"*xx\"&'Project Scope'!C57&\"xx*\",'Ancillary Costs'!$I$8:$I$67,'Project Scope'!$AW57)*'Project Scope'!$AX57),0)","v":""},{"$f":"IF($C57=\"\",\"\",IF(SUM($AR57,$AZ57,SUM($AS57,$BA57)*'Project Information'!$D$12)=0,0,SUM($BG57,(SUM($BE57:$BF57))*((SUM($AR57,(IF(ISNUMBER($AS57),$AS57,0)*'Project Information'!$D$12)))/SUM($AR57,$AZ57,SUM($AS57,$BA57)*'Project Information'!$D$12)))))","v":""},{"$f":"IF($C57=\"\",\"\",IF(SUM($AR57,$AZ57,SUM($AS57,$BA57)*'Project Information'!$D$12)=0,0,SUM($BH57,(SUM($BE57:$BF57))*((SUM($AZ57,(IF(ISNUMBER($BA57),$BA57,0)*'Project Information'!$D$12)))/SUM($AR57,$AZ57,SUM($AS57,$BA57)*'Project Information'!$D$12)))))","v":""},null,"","","",{"$f":"IF($C57=\"\",\"\",IF(OR($AS57=\"\",$CX57=\"b\"),0,$AS57*'Project Information'!$D$12))","v":""},{"$f":"IF($C57=\"\",\"\",IF(OR($BA57=\"\",$CX57=\"b\"),0,$BA57*'Project Information'!$D$12))","v":""},"","","","","",null,{"$f":"CBAT!$AB57","v":""},{"$f":"CBAT!$BZ57","v":""},0,null,"","",0,{"$f":"IF($Q57=\"\",\"\",IF(OR($CX57<>\"c\",SUM($BY$8:$BY$107)=0),0,ROUND(BW57*MIN('Other Data'!$G$84,'Other Data'!$H$84*IF('Project Information'!$F$10=\"X\",('Project Information'!$L$42-'Project Information'!$L$39),'Project Information'!$L$42)/SUMPRODUCT($BY$8:$BY$107,--($CX$8:$CX$107=\"c\"))),0)))","v":""},{"$f":"IF($AC57=\"\",\"\",IF(OR($CX57<>\"c\",SUM($BY$8:$BY$107)=0),0,ROUND(BX57*MIN('Other Data'!$G$84,'Other Data'!$H$84*IF('Project Information'!$F$10=\"X\",('Project Information'!$L$42-'Project Information'!$L$39),'Project Information'!$L$42)/SUMPRODUCT($BY$8:$BY$107,--($CX$8:$CX$107=\"c\"))),0)))","v":""},0,null,"","",{"$f":"IF($J57=\"\",\"\",VLOOKUP($J57,'TRM Data'!$R$4:$S$168,2,FALSE))","v":""},"","","",null,{"$f":"IF($CV57=0,\"\",CBAT!$DJ57)","v":""},null,null,1,1,0,1,0,null,{"$f":"IF(OR($CV57=0,ISBLANK('Project Information'!$D$44)),\"\",IF(AND($CV57=1,$CO57<1,$G57=\"yes\"),\"a\",IF($CO57<1,\"b\",\"c\")))","v":""}]
[0,51,null,null,null,null,null,{"$f":"IF($C58=\"\",\"\",IF(COUNTIF('Project Information'!$J$9:BG$9,$C58)<>1,\"\",INDEX('Project Information'!$J$8:$BG$8,1,MATCH($C58,'Project Information'!$J$9:BG$9,0))))","v":""},null,null,{"$f":"LOOKUP(2,1/(COUNTIF($K$7:K57,$Q$8:$Q$108)=0),$Q$8:$Q$108)","v":{"$error":"#N/A"}},{"$f":"IF(OR('Project Information'!$D$32=\"\",C58=\"\"),\"\",'Project Information'!$D$32)","v":""},{"$f":"IF($C58=\"\",\"\",IF(COUNTIF('Project Information'!$J$9:$BG$9,$C58)=1,HLOOKUP(C58,'Project Information'!$J$9:$BG$10,2,FALSE),0))","v":""},null,null,null,null,null,null,null,{"$f":"IF(Q58<>\"\",IF('Project Information'!$D$33=\"Small Business\",\"I\",\"P\")&VLOOKUP($Q58,'TRM Data'!$C$5:$N$201,COLUMN('TRM Data'!$E$2)-COLUMN('TRM Data'!$C$2)+1,FALSE)&IF($L58=\"Summer\",\"S\",IF($L58=\"Winter\",\"W\",\"Y\")),\"\")","v":""},{"$f":"IF(OR($F58=\"Controls\",$F58=\"\"),\"\",VLOOKUP($Q58,'TRM Data'!$C$5:$N$201,COLUMN('TRM Data'!$F$2)-COLUMN('TRM Data'!$C$2)+1,FALSE))","v":""},null,{"$f":"IF($R58=0,\"\",VLOOKUP($Q58,'TRM Data'!$C$5:$N$201,COLUMN('TRM Data'!$G$2)-COLUMN('TRM Data'!$C$2)+1,FALSE)*$R58)","v":""},null,{"$f":"IF($R58=0,\"\",VLOOKUP($Q58,'TRM Data'!$C$5:$N$201,COLUMN('TRM Data'!$I$2)-COLUMN('TRM Data'!$C$2)+1,FALSE)*$R58)","v":""},{"$f":"IF($Q58=\"\",\"\",IF('Project Information'!$D$33=\"Small Business\",'Project Scope'!$CA58,IF('Project Information'!$D$33=\"Pay for Performance\",'Project Scope'!$CD58,0)))","v":""},null,null,null,{"$f":"IF(AC58<>\"\",\"P\"&VLOOKUP($AC58,'TRM Data'!$C$5:$N$201,COLUMN('TRM Data'!$E$2)-COLUMN('TRM Data'!$C$2)+1,FALSE)&IF($L58=\"Summer\",\"S\",IF($L58=\"Winter\",\"W\",\"Y\")),\"\")","v":""},{"$f":"IF($AD58=0,\"\",VLOOKUP($AC58,'TRM Data'!$C$5:$N$201,COLUMN('TRM Data'!$G$2)-COLUMN('TRM Data'!$C$2)+1,FALSE)*$AD58)","v":""},null,{"$f":"IF($AD58=0,\"\",VLOOKUP($AC58,'TRM Data'!$C$5:$N$201,COLUMN('TRM Data'!$I$2)-COLUMN('TRM Data'!$C$2)+1,FALSE)*$AD58)","v":""},{"$f":"IF($AC58=\"\",\"\",IF('Project Information'!$D$33=\"Small Business\",'Project Scope'!$CB58,IF('Project Information'!$D$33=\"Pay for Performance\",'Project Scope'!$CE58,0)))","v":""},null,"",null,"","","","","","","",{"$f":"IF($Q58=\"\",\"\",IF(AND(ISNUMBER($BW58),ISNUMBER($AR58),$AR58>0),SUM($BL58,$BO58,$BI58)*'Other Data'!$H$83,0))","v":""},{"$f":"IF($Q58=\"\",\"\",IF(AND(ISNUMBER($BW58),ISNUMBER($AR58),$AR58>0),$BW58*'Other Data'!$G$84,0))","v":""},null,"","","","","",{"$f":"IF($AC58=\"\",\"\",IF(AND(ISNUMBER($BX58), ISNUMBER($AZ58),$AZ58>0),SUM($BJ58,$BM58,$BP58)*'Other Data'!$H$83,0))","v":""},{"$f":"IF($AC58=\"\",\"\",IF(AND(ISNUMBER($BX58), ISNUMBER($AZ58),$AZ58>0),$BX58*'Other Data'!$G$84,0))","v":""},null,{"$f":"IF($C58=\"\",\"\",SUM('Ancillary Costs'!$N$91:$N$105)*(SUM($AR58,$AZ58,SUM($AS58,$BA58)*'Project Information'!$D$12)))","v":""},{"$f":"IF($C58=\"\",\"\",SUMIFS('Ancillary Costs'!$N$72:$N$86,'Ancillary Costs'!$FL$72:$FL$86,\"*xx\"&'Project Scope'!$C58&\"xx*\")*(SUM($AR58,$AZ58,SUM($AS58,$BA58)*'Project Information'!$D$12)))","v":""},{"$f":"IFERROR(IF($C58=\"\",\"\",SUMIFS('Ancillary Costs'!$N$8:$N$67,'Ancillary Costs'!$FL$8:$FL$67,\"*xx\"&'Project Scope'!C58&\"xx*\",'Ancillary Costs'!$I$8:$I$67,'Project Scope'!$AN58)*'Project Scope'!$AO58),0)","v":""},{"$f":"IFERROR(IF($C58=\"\",\"\",SUMIFS('Ancillary Costs'!$N$8:$N$67,'Ancillary Costs'!$FL$8:$FL$67,\"*xx\"&'Project Scope'!C58&\"xx*\",'Ancillary Costs'!$I$8:$I$67,'Project Scope'!$AW58)*'Project Scope'!$AX58),0)","v":""},{"$f":"IF($C58=\"\",\"\",IF(SUM($AR58,$AZ58,SUM($AS58,$BA58)*'Project Information'!$D$12)=0,0,SUM($BG58,(SUM($BE58:$BF58))*((SUM($AR58,(IF(ISNUMBER($AS58),$AS58,0)*'Project Information'!$D$12)))/SUM($AR58,$AZ58,SUM($AS58,$BA58)*'Project Information'!$D$12)))))","v":""},{"$f":"IF($C58=\"\",\"\",IF(SUM($AR58,$AZ58,SUM($AS58,$BA58)*'Project Information'!$D$12)=0,0,SUM($BH58,(SUM($BE58:$BF58))*((SUM($AZ58,(IF(ISNUMBER($BA58),$BA58,0)*'Project Information'!$D$12)))/SUM($AR58,$AZ58,SUM($AS58,$BA58)*'Project Information'!$D$12)))))","v":""},null,"","","",{"$f":"IF($C58=\"\",\"\",IF(OR($AS58=\"\",$CX58=\"b\"),0,$AS58*'Project Information'!$D$12))","v":""},{"$f":"IF($C58=\"\",\"\",IF(OR($BA58=\"\",$CX58=\"b\"),0,$BA58*'Project Information'!$D$12))","v":""},"","","","","",null,{"$f":"CBAT!$AB58","v":""},{"$f":"CBAT!$BZ58","v":""},0,null,"","",0,{"$f":"IF($Q58=\"\",\"\",IF(OR($CX58<>\"c\",SUM($BY$8:$BY$107)=0),0,ROUND(BW58*MIN('Other Data'!$G$84,'Other Data'!$H$84*IF('Project Information'!$F$10=\"X\",('Project Information'!$L$42-'Project Information'!$L$39),'Project Information'!$L$42)/SUMPRODUCT($BY$8:$BY$107,--($CX$8:$CX$107=\"c\"))),0)))","v":""},{"$f":"IF($AC58=\"\",\"\",IF(OR($CX58<>\"c\",SUM($BY$8:$BY$107)=0),0,ROUND(BX58*MIN('Other Data'!$G$84,'Other Data'!$H$84*IF('Project Information'!$F$10=\"X\",('Project Information'!$L$42-'Project Information'!$L$39),'Project Information'!$L$42)/SUMPRODUCT($BY$8:$BY$107,--($CX$8:$CX$107=\"c\"))),0)))","v":""},0,null,"","",{"$f":"IF($J58=\"\",\"\",VLOOKUP($J58,'TRM Data'!$R$4:$S$168,2,FALSE))","v":""},"","","",null,{"$f":"IF($CV58=0,\"\",CBAT!$DJ58)","v":""},null,null,1,1,0,1,0,null,{"$f":"IF(OR($CV58=0,ISBLANK('Project Information'!$D$44)),\"\",IF(AND($CV58=1,$CO58<1,$G58=\"yes\"),\"a\",IF($CO58<1,\"b\",\"c\")))","v":""}]
[0,52,null,null,null,null,null,{"$f":"IF($C59=\"\",\"\",IF(COUNTIF('Project Information'!$J$9:BG$9,$C59)<>1,\"\",INDEX('Project Information'!$J$8:$BG$8,1,MATCH($C59,'Project Information'!$J$9:BG$9,0))))","v":""},null,null,{"$f":"LOOKUP(2,1/(COUNTIF($K$7:K58,$Q$8:$Q$108)=0),$Q$8:$Q$108)","v":{"$error":"#N/A"}},{"$f":"IF(OR('Project Information'!$D$32=\"\",C59=\"\"),\"\",'Project Information'!$D$32)","v":""},{"$f":"IF($C59=\"\",\"\",IF(COUNTIF('Project Information'!$J$9:$BG$9,$C59)=1,HLOOKUP(C59,'Project Information'!$J$9:$BG$10,2,FALSE),0))","v":""},null,null,null,null,null,null,null,{"$f":"IF(Q59<>\"\",IF('Project Information'!$D$33=\"Small Business\",\"I\",\"P\")&VLOOKUP($Q59,'TRM Data'!$C$5:$N$201,COLUMN('TRM Data'!$E$2)-COLUMN('TRM Data'!$C$2)+1,FALSE)&IF($L59=\"Summer\",\"S\",IF($L59=\"Winter\",\"W\",\"Y\")),\"\")","v":""},{"$f":"IF(OR($F59=\"Controls\",$F59=\"\"),\"\",VLOOKUP($Q59,'TRM Data'!$C$5:$N$201,COLUMN('TRM Data'!$F$2)-COLUMN('TRM Data'!$C$2)+1,FALSE))","v":""},null,{"$f":"IF($R59=0,\"\",VLOOKUP($Q59,'TRM Data'!$C$5:$N$201,COLUMN('TRM Data'!$G$2)-COLUMN('TRM Data'!$C$2)+1,FALSE)*$R59)","v":""},null,{"$f":"IF($R59=0,\"\",VLOOKUP($Q59,'TRM Data'!$C$5:$N$201,COLUMN('TRM Data'!$I$2)-COLUMN('TRM Data'!$C$2)+1,FALSE)*$R59)","v":""},{"$f":"IF($Q59=\"\",\"\",IF('Project Information'!$D$33=\"Small Business\",'Project Scope'!$CA59,IF('Project Information'!$D$33=\"Pay for Performance\",'Project Scope'!$CD59,0)))","v":""},null,null,null,{"$f":"IF(AC59<>\"\",\"P\"&VLOOKUP($AC59,'TRM Data'!$C$5:$N$201,COLUMN('TRM Data'!$E$2)-COLUMN('TRM Data'!$C$2)+1,FALSE)&IF($L59=\"Summer\",\"S\",IF($L59=\"Winter\",\"W\",\"Y\")),\"\")","v":""},{"$f":"IF($AD59=0,\"\",VLOOKUP($AC59,'TRM Data'!$C$5:$N$201,COLUMN('TRM Data'!$G$2)-COLUMN('TRM Data'!$C$2)+1,FALSE)*$AD59)","v":""},null,{"$f":"IF($AD59=0,\"\",VLOOKUP($AC59,'TRM Data'!$C$5:$N$201,COLUMN('TRM Data'!$I$2)-COLUMN('TRM Data'!$C$2)+1,FALSE)*$AD59)","v":""},{"$f":"IF($AC59=\"\",\"\",IF('Project Information'!$D$33=\"Small Business\",'Project Scope'!$CB59,IF('Project Information'!$D$33=\"Pay for Performance\",'Project Scope'!$CE59,0)))","v":""},null,"",null,"","","","","","","",{"$f":"IF($Q59=\"\",\"\",IF(AND(ISNUMBER($BW59),ISNUMBER($AR59),$AR59>0),SUM($BL59,$BO59,$BI59)*'Other Data'!$H$83,0))","v":""},{"$f":"IF($Q59=\"\",\"\",IF(AND(ISNUMBER($BW59),ISNUMBER($AR59),$AR59>0),$BW59*'Other Data'!$G$84,0))","v":""},null,"","","","","",{"$f":"IF($AC59=\"\",\"\",IF(AND(ISNUMBER($BX59), ISNUMBER($AZ59),$AZ59>0),SUM($BJ59,$BM59,$BP59)*'Other Data'!$H$83,0))","v":""},{"$f":"IF($AC59=\"\",\"\",IF(AND(ISNUMBER($BX59), ISNUMBER($AZ59),$AZ59>0),$BX59*'Other Data'!$G$84,0))","v":""},null,{"$f":"IF($C59=\"\",\"\",SUM('Ancillary Costs'!$N$91:$N$105)*(SUM($AR59,$AZ59,SUM($AS59,$BA59)*'Project Information'!$D$12)))","v":""},{"$f":"IF($C59=\"\",\"\",SUMIFS('Ancillary Costs'!$N$72:$N$86,'Ancillary Costs'!$FL$72:$FL$86,\"*xx\"&'Project Scope'!$C59&\"xx*\")*(SUM($AR59,$AZ59,SUM($AS59,$BA59)*'Project Information'!$D$12)))","v":""},{"$f":"IFERROR(IF($C59=\"\",\"\",SUMIFS('Ancillary Costs'!$N$8:$N$67,'Ancillary Costs'!$FL$8:$FL$67,\"*xx\"&'Project Scope'!C59&\"xx*\",'Ancillary Costs'!$I$8:$I$67,'Project Scope'!$AN59)*'Project Scope'!$AO59),0)","v":""},{"$f":"IFERROR(IF($C59=\"\",\"\",SUMIFS('Ancillary Costs'!$N$8:$N$67,'Ancillary Costs'!$FL$8:$FL$67,\"*xx\"&'Project Scope'!C59&\"xx*\",'Ancillary Costs'!$I$8:$I$67,'Project Scope'!$AW59)*'Project Scope'!$AX59),0)","v":""},{"$f":"IF($C59=\"\",\"\",IF(SUM($AR59,$AZ59,SUM($AS59,$BA59)*'Project Information'!$D$12)=0,0,SUM($BG59,(SUM($BE59:$BF59))*((SUM($AR59,(IF(ISNUMBER($AS59),$AS59,0)*'Project Information'!$D$12)))/SUM($AR59,$AZ59,SUM($AS59,$BA59)*'Project Information'!$D$12)))))","v":""},{"$f":"IF($C59=\"\",\"\",IF(SUM($AR59,$AZ59,SUM($AS59,$BA59)*'Project Information'!$D$12)=0,0,SUM($BH59,(SUM($BE59:$BF59))*((SUM($AZ59,(IF(ISNUMBER($BA59),$BA59,0)*'Project Information'!$D$12)))/SUM($AR59,$AZ59,SUM($AS59,$BA59)*'Project Information'!$D$12)))))","v":""},null,"","","",{"$f":"IF($C59=\"\",\"\",IF(OR($AS59=\"\",$CX59=\"b\"),0,$AS59*'Project Information'!$D$12))","v":""},{"$f":"IF($C59=\"\",\"\",IF(OR($BA59=\"\",$CX59=\"b\"),0,$BA59*'Project Information'!$D$12))","v":""},"","","","","",null,{"$f":"CBAT!$AB59","v":""},{"$f":"CBAT!$BZ59","v":""},0,null,"","",0,{"$f":"IF($Q59=\"\",\"\",IF(OR($CX59<>\"c\",SUM($BY$8:$BY$107)=0),0,ROUND(BW59*MIN('Other Data'!$G$84,'Other Data'!$H$84*IF('Project Information'!$F$10=\"X\",('Project Information'!$L$42-'Project Information'!$L$39),'Project Information'!$L$42)/SUMPRODUCT($BY$8:$BY$107,--($CX$8:$CX$107=\"c\"))),0)))","v":""},{"$f":"IF($AC59=\"\",\"\",IF(OR($CX59<>\"c\",SUM($BY$8:$BY$107)=0),0,ROUND(BX59*MIN('Other Data'!$G$84,'Other Data'!$H$84*IF('Project Information'!$F$10=\"X\",('Project Information'!$L$42-'Project Information'!$L$39),'Project Information'!$L$42)/SUMPRODUCT($BY$8:$BY$107,--($CX$8:$CX$107=\"c\"))),0)))","v":""},0,null,"","",{"$f":"IF($J59=\"\",\"\",VLOOKUP($J59,'TRM Data'!$R$4:$S$168,2,FALSE))","v":""},"","","",null,{"$f":"IF($CV59=0,\"\",CBAT!$DJ59)","v":""},null,null,1,1,0,1,0,null,{"$f":"IF(OR($CV59=0,ISBLANK('Project Information'!$D$44)),\"\",IF(AND($CV59=1,$CO59<1,$G59=\"yes\"),\"a\",IF($CO59<1,\"b\",\"c\")))","v":""}]
[0,53,null,null,null,null,null,{"$f":"IF($C60=\"\",\"\",IF(COUNTIF('Project Information'!$J$9:BG$9,$C60)<>1,\"\",INDEX('Project Information'!$J$8:$BG$8,1,MATCH($C60,'Project Information'!$J$9:BG$9,0))))","v":""},null,null,{"$f":"LOOKUP(2,1/(COUNTIF($K$7:K59,$Q$8:$Q$108)=0),$Q$8:$Q$108)","v":{"$error":"#N/A"}},{"$f":"IF(OR('Project Information'!$D$32=\"\",C60=\"\"),\"\",'Project Information'!$D$32)","v":""},{"$f":"IF($C60=\"\",\"\",IF(COUNTIF('Project Information'!$J$9:$BG$9,$C60)=1,HLOOKUP(C60,'Project Information'!$J$9:$BG$10,2,FALSE),0))","v":""},null,null,null,null,null,null,null,{"$f":"IF(Q60<>\"\",IF('Project Information'!$D$33=\"Small Business\",\"I\",\"P\")&VLOOKUP($Q60,'TRM Data'!$C$5:$N$201,COLUMN('TRM Data'!$E$2)-COLUMN('TRM Data'!$C$2)+1,FALSE)&IF($L60=\"Summer\",\"S\",IF($L60=\"Winter\",\"W\",\"Y\")),\"\")","v":""},{"$f":"IF(OR($F60=\"Controls\",$F60=\"\"),\"\",VLOOKUP($Q60,'TRM Data'!$C$5:$N$201,COLUMN('TRM Data'!$F$2)-COLUMN('TRM Data'!$C$2)+1,FALSE))","v":""},null,{"$f":"IF($R60=0,\"\",VLOOKUP($Q60,'TRM Data'!$C$5:$N$201,COLUMN('TRM Data'!$G$2)-COLUMN('TRM Data'!$C$2)+1,FALSE)*$R60)","v":""},null,{"$f":"IF($R60=0,\"\",VLOOKUP($Q60,'TRM Data'!$C$5:$N$201,COLUMN('TRM Data'!$I$2)-COLUMN('TRM Data'!$C$2)+1,FALSE)*$R60)","v":""},{"$f":"IF($Q60=\"\",\"\",IF('Project Information'!$D$33=\"Small Business\",'Project Scope'!$CA60,IF('Project Information'!$D$33=\"Pay for Performance\",'Project Scope'!$CD60,0)))","v":""},null,null,null,{"$f":"IF(AC60<>\"\",\"P\"&VLOOKUP($AC60,'TRM Data'!$C$5:$N$201,COLUMN('TRM Data'!$E$2)-COLUMN('TRM Data'!$C$2)+1,FALSE)&IF($L60=\"Summer\",\"S\",IF($L60=\"Winter\",\"W\",\"Y\")),\"\")","v":""},{"$f":"IF($AD60=0,\"\",VLOOKUP($AC60,'TRM Data'!$C$5:$N$201,COLUMN('TRM Data'!$G$2)-COLUMN('TRM Data'!$C$2)+1,FALSE)*$AD60)","v":""},null,{"$f":"IF($AD60=0,\"\",VLOOKUP($AC60,'TRM Data'!$C$5:$N$201,COLUMN('TRM Data'!$I$2)-COLUMN('TRM Data'!$C$2)+1,FALSE)*$AD60)","v":""},{"$f":"IF($AC60=\"\",\"\",IF('Project Information'!$D$33=\"Small Business\",'Project Scope'!$CB60,IF('Project Information'!$D$33=\"Pay for Performance\",'Project Scope'!$CE60,0)))","v":""},null,"",null,"","","","","","","",{"$f":"IF($Q60=\"\",\"\",IF(AND(ISNUMBER($BW60),ISNUMBER($AR60),$AR60>0),SUM($BL60,$BO60,$BI60)*'Other Data'!$H$83,0))","v":""},{"$f":"IF($Q60=\"\",\"\",IF(AND(ISNUMBER($BW60),ISNUMBER($AR60),$AR60>0),$BW60*'Other Data'!$G$84,0))","v":""},null,"","","","","",{"$f":"IF($AC60=\"\",\"\",IF(AND(ISNUMBER($BX60), ISNUMBER($AZ60),$AZ60>0),SUM($BJ60,$BM60,$BP60)*'Other Data'!$H$83,0))","v":""},{"$f":"IF($AC60=\"\",\"\",IF(AND(ISNUMBER($BX60), ISNUMBER($AZ60),$AZ60>0),$BX60*'Other Data'!$G$84,0))","v":""},null,{"$f":"IF($C60=\"\",\"\",SUM('Ancillary Costs'!$N$91:$N$105)*(SUM($AR60,$AZ60,SUM($AS60,$BA60)*'Project Information'!$D$12)))","v":""},{"$f":"IF($C60=\"\",\"\",SUMIFS('Ancillary Costs'!$N$72:$N$86,'Ancillary Costs'!$FL$72:$FL$86,\"*xx\"&'Project Scope'!$C60&\"xx*\")*(SUM($AR60,$AZ60,SUM($AS60,$BA60)*'Project Information'!$D$12)))","v":""},{"$f":"IFERROR(IF($C60=\"\",\"\",SUMIFS('Ancillary Costs'!$N$8:$N$67,'Ancillary Costs'!$FL$8:$FL$67,\"*xx\"&'Project Scope'!C60&\"xx*\",'Ancillary Costs'!$I$8:$I$67,'Project Scope'!$AN60)*'Project Scope'!$AO60),0)","v":""},{"$f":"IFERROR(IF($C60=\"\",\"\",SUMIFS('Ancillary Costs'!$N$8:$N$67,'Ancillary Costs'!$FL$8:$FL$67,\"*xx\"&'Project Scope'!C60&\"xx*\",'Ancillary Costs'!$I$8:$I$67,'Project Scope'!$AW60)*'Project Scope'!$AX60),0)","v":""},{"$f":"IF($C60=\"\",\"\",IF(SUM($AR60,$AZ60,SUM($AS60,$BA60)*'Project Information'!$D$12)=0,0,SUM($BG60,(SUM($BE60:$BF60))*((SUM($AR60,(IF(ISNUMBER($AS60),$AS60,0)*'Project Information'!$D$12)))/SUM($AR60,$AZ60,SUM($AS60,$BA60)*'Project Information'!$D$12)))))","v":""},{"$f":"IF($C60=\"\",\"\",IF(SUM($AR60,$AZ60,SUM($AS60,$BA60)*'Project Information'!$D$12)=0,0,SUM($BH60,(SUM($BE60:$BF60))*((SUM($AZ60,(IF(ISNUMBER($BA60),$BA60,0)*'Project Information'!$D$12)))/SUM($AR60,$AZ60,SUM($AS60,$BA60)*'Project Information'!$D$12)))))","v":""},null,"","","",{"$f":"IF($C60=\"\",\"\",IF(OR($AS60=\"\",$CX60=\"b\"),0,$AS60*'Project Information'!$D$12))","v":""},{"$f":"IF($C60=\"\",\"\",IF(OR($BA60=\"\",$CX60=\"b\"),0,$BA60*'Project Information'!$D$12))","v":""},"","","","","",null,{"$f":"CBAT!$AB60","v":""},{"$f":"CBAT!$BZ60","v":""},0,null,"","",0,{"$f":"IF($Q60=\"\",\"\",IF(OR($CX60<>\"c\",SUM($BY$8:$BY$107)=0),0,ROUND(BW60*MIN('Other Data'!$G$84,'Other Data'!$H$84*IF('Project Information'!$F$10=\"X\",('Project Information'!$L$42-'Project Information'!$L$39),'Project Information'!$L$42)/SUMPRODUCT($BY$8:$BY$107,--($CX$8:$CX$107=\"c\"))),0)))","v":""},{"$f":"IF($AC60=\"\",\"\",IF(OR($CX60<>\"c\",SUM($BY$8:$BY$107)=0),0,ROUND(BX60*MIN('Other Data'!$G$84,'Other Data'!$H$84*IF('Project Information'!$F$10=\"X\",('Project Information'!$L$42-'Project Information'!$L$39),'Project Information'!$L$42)/SUMPRODUCT($BY$8:$BY$107,--($CX$8:$CX$107=\"c\"))),0)))","v":""},0,null,"","",{"$f":"IF($J60=\"\",\"\",VLOOKUP($J60,'TRM Data'!$R$4:$S$168,2,FALSE))","v":""},"","","",null,{"$f":"IF($CV60=0,\"\",CBAT!$DJ60)","v":""},null,null,1,1,0,1,0,null,{"$f":"IF(OR($CV60=0,ISBLANK('Project Information'!$D$44)),\"\",IF(AND($CV60=1,$CO60<1,$G60=\"yes\"),\"a\",IF($CO60<1,\"b\",\"c\")))","v":""}]
[0,54,null,null,null,null,null,{"$f":"IF($C61=\"\",\"\",IF(COUNTIF('Project Information'!$J$9:BG$9,$C61)<>1,\"\",INDEX('Project Information'!$J$8:$BG$8,1,MATCH($C61,'Project Information'!$J$9:BG$9,0))))","v":""},null,null,{"$f":"LOOKUP(2,1/(COUNTIF($K$7:K60,$Q$8:$Q$108)=0),$Q$8:$Q$108)","v":{"$error":"#N/A"}},{"$f":"IF(OR('Project Information'!$D$32=\"\",C61=\"\"),\"\",'Project Information'!$D$32)","v":""},{"$f":"IF($C61=\"\",\"\",IF(COUNTIF('Project Information'!$J$9:$BG$9,$C61)=1,HLOOKUP(C61,'Project Information'!$J$9:$BG$10,2,FALSE),0))","v":""},null,null,null,null,null,null,null,{"$f":"IF(Q61<>\"\",IF('Project Information'!$D$33=\"Small Business\",\"I\",\"P\")&VLOOKUP($Q61,'TRM Data'!$C$5:$N$201,COLUMN('TRM Data'!$E$2)-COLUMN('TRM Data'!$C$2)+1,FALSE)&IF($L61=\"Summer\",\"S\",IF($L61=\"Winter\",\"W\",\"Y\")),\"\")","v":""},{"$f":"IF(OR($F61=\"Controls\",$F61=\"\"),\"\",VLOOKUP($Q61,'TRM Data'!$C$5:$N$201,COLUMN('TRM Data'!$F$2)-COLUMN('TRM Data'!$C$2)+1,FALSE))","v":""},null,{"$f":"IF($R61=0,\"\",VLOOKUP($Q61,'TRM Data'!$C$5:$N$201,COLUMN('TRM Data'!$G$2)-COLUMN('TRM Data'!$C$2)+1,FALSE)*$R61)","v":""},null,{"$f":"IF($R61=0,\"\",VLOOKUP($Q61,'TRM Data'!$C$5:$N$201,COLUMN('TRM Data'!$I$2)-COLUMN('TRM Data'!$C$2)+1,FALSE)*$R61)","v":""},{"$f":"IF($Q61=\"\",\"\",IF('Project Information'!$D$33=\"Small Business\",'Project Scope'!$CA61,IF('Project Information'!$D$33=\"Pay for Performance\",'Project Scope'!$CD61,0)))","v":""},null,null,null,{"$f":"IF(AC61<>\"\",\"P\"&VLOOKUP($AC61,'TRM Data'!$C$5:$N$201,COLUMN('TRM Data'!$E$2)-COLUMN('TRM Data'!$C$2)+1,FALSE)&IF($L61=\"Summer\",\"S\",IF($L61=\"Winter\",\"W\",\"Y\")),\"\")","v":""},{"$f":"IF($AD61=0,\"\",VLOOKUP($AC61,'TRM Data'!$C$5:$N$201,COLUMN('TRM Data'!$G$2)-COLUMN('TRM Data'!$C$2)+1,FALSE)*$AD61)","v":""},null,{"$f":"IF($AD61=0,\"\",VLOOKUP($AC61,'TRM Data'!$C$5:$N$201,COLUMN('TRM Data'!$I$2)-COLUMN('TRM Data'!$C$2)+1,FALSE)*$AD61)","v":""},{"$f":"IF($AC61=\"\",\"\",IF('Project Information'!$D$33=\"Small Business\",'Project Scope'!$CB61,IF('Project Information'!$D$33=\"Pay for Performance\",'Project Scope'!$CE61,0)))","v":""},null,"",null,"","","","","","","",{"$f":"IF($Q61=\"\",\"\",IF(AND(ISNUMBER($BW61),ISNUMBER($AR61),$AR61>0),SUM($BL61,$BO61,$BI61)*'Other Data'!$H$83,0))","v":""},{"$f":"IF($Q61=\"\",\"\",IF(AND(ISNUMBER($BW61),ISNUMBER($AR61),$AR61>0),$BW61*'Other Data'!$G$84,0))","v":""},null,"","","","","",{"$f":"IF($AC61=\"\",\"\",IF(AND(ISNUMBER($BX61), ISNUMBER($AZ61),$AZ61>0),SUM($BJ61,$BM61,$BP61)*'Other Data'!$H$83,0))","v":""},{"$f":"IF($AC61=\"\",\"\",IF(AND(ISNUMBER($BX61), ISNUMBER($AZ61),$AZ61>0),$BX61*'Other Data'!$G$84,0))","v":""},null,{"$f":"IF($C61=\"\",\"\",SUM('Ancillary Costs'!$N$91:$N$105)*(SUM($AR61,$AZ61,SUM($AS61,$BA61)*'Project Information'!$D$12)))","v":""},{"$f":"IF($C61=\"\",\"\",SUMIFS('Ancillary Costs'!$N$72:$N$86,'Ancillary Costs'!$FL$72:$FL$86,\"*xx\"&'Project Scope'!$C61&\"xx*\")*(SUM($AR61,$AZ61,SUM($AS61,$BA61)*'Project Information'!$D$12)))","v":""},{"$f":"IFERROR(IF($C61=\"\",\"\",SUMIFS('Ancillary Costs'!$N$8:$N$67,'Ancillary Costs'!$FL$8:$FL$67,\"*xx\"&'Project Scope'!C61&\"xx*\",'Ancillary Costs'!$I$8:$I$67,'Project Scope'!$AN61)*'Project Scope'!$AO61),0)","v":""},{"$f":"IFERROR(IF($C61=\"\",\"\",SUMIFS('Ancillary Costs'!$N$8:$N$67,'Ancillary Costs'!$FL$8:$FL$67,\"*xx\"&'Project Scope'!C61&\"xx*\",'Ancillary Costs'!$I$8:$I$67,'Project Scope'!$AW61)*'Project Scope'!$AX61),0)","v":""},{"$f":"IF($C61=\"\",\"\",IF(SUM($AR61,$AZ61,SUM($AS61,$BA61)*'Project Information'!$D$12)=0,0,SUM($BG61,(SUM($BE61:$BF61))*((SUM($AR61,(IF(ISNUMBER($AS61),$AS61,0)*'Project Information'!$D$12)))/SUM($AR61,$AZ61,SUM($AS61,$BA61)*'Project Information'!$D$12)))))","v":""},{"$f":"IF($C61=\"\",\"\",IF(SUM($AR61,$AZ61,SUM($AS61,$BA61)*'Project Information'!$D$12)=0,0,SUM($BH61,(SUM($BE61:$BF61))*((SUM($AZ61,(IF(ISNUMBER($BA61),$BA61,0)*'Project Information'!$D$12)))/SUM($AR61,$AZ61,SUM($AS61,$BA61)*'Project Information'!$D$12)))))","v":""},null,"","","",{"$f":"IF($C61=\"\",\"\",IF(OR($AS61=\"\",$CX61=\"b\"),0,$AS61*'Project Information'!$D$12))","v":""},{"$f":"IF($C61=\"\",\"\",IF(OR($BA61=\"\",$CX61=\"b\"),0,$BA61*'Project Information'!$D$12))","v":""},"","","","","",null,{"$f":"CBAT!$AB61","v":""},{"$f":"CBAT!$BZ61","v":""},0,null,"","",0,{"$f":"IF($Q61=\"\",\"\",IF(OR($CX61<>\"c\",SUM($BY$8:$BY$107)=0),0,ROUND(BW61*MIN('Other Data'!$G$84,'Other Data'!$H$84*IF('Project Information'!$F$10=\"X\",('Project Information'!$L$42-'Project Information'!$L$39),'Project Information'!$L$42)/SUMPRODUCT($BY$8:$BY$107,--($CX$8:$CX$107=\"c\"))),0)))","v":""},{"$f":"IF($AC61=\"\",\"\",IF(OR($CX61<>\"c\",SUM($BY$8:$BY$107)=0),0,ROUND(BX61*MIN('Other Data'!$G$84,'Other Data'!$H$84*IF('Project Information'!$F$10=\"X\",('Project Information'!$L$42-'Project Information'!$L$39),'Project Information'!$L$42)/SUMPRODUCT($BY$8:$BY$107,--($CX$8:$CX$107=\"c\"))),0)))","v":""},0,null,"","",{"$f":"IF($J61=\"\",\"\",VLOOKUP($J61,'TRM Data'!$R$4:$S$168,2,FALSE))","v":""},"","","",null,{"$f":"IF($CV61=0,\"\",CBAT!$DJ61)","v":""},null,null,1,1,0,1,0,null,{"$f":"IF(OR($CV61=0,ISBLANK('Project Information'!$D$44)),\"\",IF(AND($CV61=1,$CO61<1,$G61=\"yes\"),\"a\",IF($CO61<1,\"b\",\"c\")))","v":""}]
[0,55,null,null,null,null,null,{"$f":"IF($C62=\"\",\"\",IF(COUNTIF('Project Information'!$J$9:BG$9,$C62)<>1,\"\",INDEX('Project Information'!$J$8:$BG$8,1,MATCH($C62,'Project Information'!$J$9:BG$9,0))))","v":""},null,null,{"$f":"LOOKUP(2,1/(COUNTIF($K$7:K61,$Q$8:$Q$108)=0),$Q$8:$Q$108)","v":{"$error":"#N/A"}},{"$f":"IF(OR('Project Information'!$D$32=\"\",C62=\"\"),\"\",'Project Information'!$D$32)","v":""},{"$f":"IF($C62=\"\",\"\",IF(COUNTIF('Project Information'!$J$9:$BG$9,$C62)=1,HLOOKUP(C62,'Project Information'!$J$9:$BG$10,2,FALSE),0))","v":""},null,null,null,null,null,null,null,{"$f":"IF(Q62<>\"\",IF('Project Information'!$D$33=\"Small Business\",\"I\",\"P\")&VLOOKUP($Q62,'TRM Data'!$C$5:$N$201,COLUMN('TRM Data'!$E$2)-COLUMN('TRM Data'!$C$2)+1,FALSE)&IF($L62=\"Summer\",\"S\",IF($L62=\"Winter\",\"W\",\"Y\")),\"\")","v":""},{"$f":"IF(OR($F62=\"Controls\",$F62=\"\"),\"\",VLOOKUP($Q62,'TRM Data'!$C$5:$N$201,COLUMN('TRM Data'!$F$2)-COLUMN('TRM Data'!$C$2)+1,FALSE))","v":""},null,{"$f":"IF($R62=0,\"\",VLOOKUP($Q62,'TRM Data'!$C$5:$N$201,COLUMN('TRM Data'!$G$2)-COLUMN('TRM Data'!$C$2)+1,FALSE)*$R62)","v":""},null,{"$f":"IF($R62=0,\"\",VLOOKUP($Q62,'TRM Data'!$C$5:$N$201,COLUMN('TRM Data'!$I$2)-COLUMN('TRM Data'!$C$2)+1,FALSE)*$R62)","v":""},{"$f":"IF($Q62=\"\",\"\",IF('Project Information'!$D$33=\"Small Business\",'Project Scope'!$CA62,IF('Project Information'!$D$33=\"Pay for Performance\",'Project Scope'!$CD62,0)))","v":""},null,null,null,{"$f":"IF(AC62<>\"\",\"P\"&VLOOKUP($AC62,'TRM Data'!$C$5:$N$201,COLUMN('TRM Data'!$E$2)-COLUMN('TRM Data'!$C$2)+1,FALSE)&IF($L62=\"Summer\",\"S\",IF($L62=\"Winter\",\"W\",\"Y\")),\"\")","v":""},{"$f":"IF($AD62=0,\"\",VLOOKUP($AC62,'TRM Data'!$C$5:$N$201,COLUMN('TRM Data'!$G$2)-COLUMN('TRM Data'!$C$2)+1,FALSE)*$AD62)","v":""},null,{"$f":"IF($AD62=0,\"\",VLOOKUP($AC62,'TRM Data'!$C$5:$N$201,COLUMN('TRM Data'!$I$2)-COLUMN('TRM Data'!$C$2)+1,FALSE)*$AD62)","v":""},{"$f":"IF($AC62=\"\",\"\",IF('Project Information'!$D$33=\"Small Business\",'Project Scope'!$CB62,IF('Project Information'!$D$33=\"Pay for Performance\",'Project Scope'!$CE62,0)))","v":""},null,"",null,"","","","","","","",{"$f":"IF($Q62=\"\",\"\",IF(AND(ISNUMBER($BW62),ISNUMBER($AR62),$AR62>0),SUM($BL62,$BO62,$BI62)*'Other Data'!$H$83,0))","v":""},{"$f":"IF($Q62=\"\",\"\",IF(AND(ISNUMBER($BW62),ISNUMBER($AR62),$AR62>0),$BW62*'Other Data'!$G$84,0))","v":""},null,"","","","","",{"$f":"IF($AC62=\"\",\"\",IF(AND(ISNUMBER($BX62), ISNUMBER($AZ62),$AZ62>0),SUM($BJ62,$BM62,$BP62)*'Other Data'!$H$83,0))","v":""},{"$f":"IF($AC62=\"\",\"\",IF(AND(ISNUMBER($BX62), ISNUMBER($AZ62),$AZ62>0),$BX62*'Other Data'!$G$84,0))","v":""},null,{"$f":"IF($C62=\"\",\"\",SUM('Ancillary Costs'!$N$91:$N$105)*(SUM($AR62,$AZ62,SUM($AS62,$BA62)*'Project Information'!$D$12)))","v":""},{"$f":"IF($C62=\"\",\"\",SUMIFS('Ancillary Costs'!$N$72:$N$86,'Ancillary Costs'!$FL$72:$FL$86,\"*xx\"&'Project Scope'!$C62&\"xx*\")*(SUM($AR62,$AZ62,SUM($AS62,$BA62)*'Project Information'!$D$12)))","v":""},{"$f":"IFERROR(IF($C62=\"\",\"\",SUMIFS('Ancillary Costs'!$N$8:$N$67,'Ancillary Costs'!$FL$8:$FL$67,\"*xx\"&'Project Scope'!C62&\"xx*\",'Ancillary Costs'!$I$8:$I$67,'Project Scope'!$AN62)*'Project Scope'!$AO62),0)","v":""},{"$f":"IFERROR(IF($C62=\"\",\"\",SUMIFS('Ancillary Costs'!$N$8:$N$67,'Ancillary Costs'!$FL$8:$FL$67,\"*xx\"&'Project Scope'!C62&\"xx*\",'Ancillary Costs'!$I$8:$I$67,'Project Scope'!$AW62)*'Project Scope'!$AX62),0)","v":""},{"$f":"IF($C62=\"\",\"\",IF(SUM($AR62,$AZ62,SUM($AS62,$BA62)*'Project Information'!$D$12)=0,0,SUM($BG62,(SUM($BE62:$BF62))*((SUM($AR62,(IF(ISNUMBER($AS62),$AS62,0)*'Project Information'!$D$12)))/SUM($AR62,$AZ62,SUM($AS62,$BA62)*'Project Information'!$D$12)))))","v":""},{"$f":"IF($C62=\"\",\"\",IF(SUM($AR62,$AZ62,SUM($AS62,$BA62)*'Project Information'!$D$12)=0,0,SUM($BH62,(SUM($BE62:$BF62))*((SUM($AZ62,(IF(ISNUMBER($BA62),$BA62,0)*'Project Information'!$D$12)))/SUM($AR62,$AZ62,SUM($AS62,$BA62)*'Project Information'!$D$12)))))","v":""},null,"","","",{"$f":"IF($C62=\"\",\"\",IF(OR($AS62=\"\",$CX62=\"b\"),0,$AS62*'Project Information'!$D$12))","v":""},{"$f":"IF($C62=\"\",\"\",IF(OR($BA62=\"\",$CX62=\"b\"),0,$BA62*'Project Information'!$D$12))","v":""},"","","","","",null,{"$f":"CBAT!$AB62","v":""},{"$f":"CBAT!$BZ62","v":""},0,null,"","",0,{"$f":"IF($Q62=\"\",\"\",IF(OR($CX62<>\"c\",SUM($BY$8:$BY$107)=0),0,ROUND(BW62*MIN('Other Data'!$G$84,'Other Data'!$H$84*IF('Project Information'!$F$10=\"X\",('Project Information'!$L$42-'Project Information'!$L$39),'Project Information'!$L$42)/SUMPRODUCT($BY$8:$BY$107,--($CX$8:$CX$107=\"c\"))),0)))","v":""},{"$f":"IF($AC62=\"\",\"\",IF(OR($CX62<>\"c\",SUM($BY$8:$BY$107)=0),0,ROUND(BX62*MIN('Other Data'!$G$84,'Other Data'!$H$84*IF('Project Information'!$F$10=\"X\",('Project Information'!$L$42-'Project Information'!$L$39),'Project Information'!$L$42)/SUMPRODUCT($BY$8:$BY$107,--($CX$8:$CX$107=\"c\"))),0)))","v":""},0,null,"","",{"$f":"IF($J62=\"\",\"\",VLOOKUP($J62,'TRM Data'!$R$4:$S$168,2,FALSE))","v":""},"","","",null,{"$f":"IF($CV62=0,\"\",CBAT!$DJ62)","v":""},null,null,1,1,0,1,0,null,{"$f":"IF(OR($CV62=0,ISBLANK('Project Information'!$D$44)),\"\",IF(AND($CV62=1,$CO62<1,$G62=\"yes\"),\"a\",IF($CO62<1,\"b\",\"c\")))","v":""}]
[0,56,null,null,null,null,null,{"$f":"IF($C63=\"\",\"\",IF(COUNTIF('Project Information'!$J$9:BG$9,$C63)<>1,\"\",INDEX('Project Information'!$J$8:$BG$8,1,MATCH($C63,'Project Information'!$J$9:BG$9,0))))","v":""},null,null,{"$f":"LOOKUP(2,1/(COUNTIF($K$7:K62,$Q$8:$Q$108)=0),$Q$8:$Q$108)","v":{"$error":"#N/A"}},{"$f":"IF(OR('Project Information'!$D$32=\"\",C63=\"\"),\"\",'Project Information'!$D$32)","v":""},{"$f":"IF($C63=\"\",\"\",IF(COUNTIF('Project Information'!$J$9:$BG$9,$C63)=1,HLOOKUP(C63,'Project Information'!$J$9:$BG$10,2,FALSE),0))","v":""},null,null,null,null,null,null,null,{"$f":"IF(Q63<>\"\",IF('Project Information'!$D$33=\"Small Business\",\"I\",\"P\")&VLOOKUP($Q63,'TRM Data'!$C$5:$N$201,COLUMN('TRM Data'!$E$2)-COLUMN('TRM Data'!$C$2)+1,FALSE)&IF($L63=\"Summer\",\"S\",IF($L63=\"Winter\",\"W\",\"Y\")),\"\")","v":""},{"$f":"IF(OR($F63=\"Controls\",$F63=\"\"),\"\",VLOOKUP($Q63,'TRM Data'!$C$5:$N$201,COLUMN('TRM Data'!$F$2)-COLUMN('TRM Data'!$C$2)+1,FALSE))","v":""},null,{"$f":"IF($R63=0,\"\",VLOOKUP($Q63,'TRM Data'!$C$5:$N$201,COLUMN('TRM Data'!$G$2)-COLUMN('TRM Data'!$C$2)+1,FALSE)*$R63)","v":""},null,{"$f":"IF($R63=0,\"\",VLOOKUP($Q63,'TRM Data'!$C$5:$N$201,COLUMN('TRM Data'!$I$2)-COLUMN('TRM Data'!$C$2)+1,FALSE)*$R63)","v":""},{"$f":"IF($Q63=\"\",\"\",IF('Project Information'!$D$33=\"Small Business\",'Project Scope'!$CA63,IF('Project Information'!$D$33=\"Pay for Performance\",'Project Scope'!$CD63,0)))","v":""},null,null,null,{"$f":"IF(AC63<>\"\",\"P\"&VLOOKUP($AC63,'TRM Data'!$C$5:$N$201,COLUMN('TRM Data'!$E$2)-COLUMN('TRM Data'!$C$2)+1,FALSE)&IF($L63=\"Summer\",\"S\",IF($L63=\"Winter\",\"W\",\"Y\")),\"\")","v":""},{"$f":"IF($AD63=0,\"\",VLOOKUP($AC63,'TRM Data'!$C$5:$N$201,COLUMN('TRM Data'!$G$2)-COLUMN('TRM Data'!$C$2)+1,FALSE)*$AD63)","v":""},null,{"$f":"IF($AD63=0,\"\",VLOOKUP($AC63,'TRM Data'!$C$5:$N$201,COLUMN('TRM Data'!$I$2)-COLUMN('TRM Data'!$C$2)+1,FALSE)*$AD63)","v":""},{"$f":"IF($AC63=\"\",\"\",IF('Project Information'!$D$33=\"Small Business\",'Project Scope'!$CB63,IF('Project Information'!$D$33=\"Pay for Performance\",'Project Scope'!$CE63,0)))","v":""},null,"",null,"","","","","","","",{"$f":"IF($Q63=\"\",\"\",IF(AND(ISNUMBER($BW63),ISNUMBER($AR63),$AR63>0),SUM($BL63,$BO63,$BI63)*'Other Data'!$H$83,0))","v":""},{"$f":"IF($Q63=\"\",\"\",IF(AND(ISNUMBER($BW63),ISNUMBER($AR63),$AR63>0),$BW63*'Other Data'!$G$84,0))","v":""},null,"","","","","",{"$f":"IF($AC63=\"\",\"\",IF(AND(ISNUMBER($BX63), ISNUMBER($AZ63),$AZ63>0),SUM($BJ63,$BM63,$BP63)*'Other Data'!$H$83,0))","v":""},{"$f":"IF($AC63=\"\",\"\",IF(AND(ISNUMBER($BX63), ISNUMBER($AZ63),$AZ63>0),$BX63*'Other Data'!$G$84,0))","v":""},null,{"$f":"IF($C63=\"\",\"\",SUM('Ancillary Costs'!$N$91:$N$105)*(SUM($AR63,$AZ63,SUM($AS63,$BA63)*'Project Information'!$D$12)))","v":""},{"$f":"IF($C63=\"\",\"\",SUMIFS('Ancillary Costs'!$N$72:$N$86,'Ancillary Costs'!$FL$72:$FL$86,\"*xx\"&'Project Scope'!$C63&\"xx*\")*(SUM($AR63,$AZ63,SUM($AS63,$BA63)*'Project Information'!$D$12)))","v":""},{"$f":"IFERROR(IF($C63=\"\",\"\",SUMIFS('Ancillary Costs'!$N$8:$N$67,'Ancillary Costs'!$FL$8:$FL$67,\"*xx\"&'Project Scope'!C63&\"xx*\",'Ancillary Costs'!$I$8:$I$67,'Project Scope'!$AN63)*'Project Scope'!$AO63),0)","v":""},{"$f":"IFERROR(IF($C63=\"\",\"\",SUMIFS('Ancillary Costs'!$N$8:$N$67,'Ancillary Costs'!$FL$8:$FL$67,\"*xx\"&'Project Scope'!C63&\"xx*\",'Ancillary Costs'!$I$8:$I$67,'Project Scope'!$AW63)*'Project Scope'!$AX63),0)","v":""},{"$f":"IF($C63=\"\",\"\",IF(SUM($AR63,$AZ63,SUM($AS63,$BA63)*'Project Information'!$D$12)=0,0,SUM($BG63,(SUM($BE63:$BF63))*((SUM($AR63,(IF(ISNUMBER($AS63),$AS63,0)*'Project Information'!$D$12)))/SUM($AR63,$AZ63,SUM($AS63,$BA63)*'Project Information'!$D$12)))))","v":""},{"$f":"IF($C63=\"\",\"\",IF(SUM($AR63,$AZ63,SUM($AS63,$BA63)*'Project Information'!$D$12)=0,0,SUM($BH63,(SUM($BE63:$BF63))*((SUM($AZ63,(IF(ISNUMBER($BA63),$BA63,0)*'Project Information'!$D$12)))/SUM($AR63,$AZ63,SUM($AS63,$BA63)*'Project Information'!$D$12)))))","v":""},null,"","","",{"$f":"IF($C63=\"\",\"\",IF(OR($AS63=\"\",$CX63=\"b\"),0,$AS63*'Project Information'!$D$12))","v":""},{"$f":"IF($C63=\"\",\"\",IF(OR($BA63=\"\",$CX63=\"b\"),0,$BA63*'Project Information'!$D$12))","v":""},"","","","","",null,{"$f":"CBAT!$AB63","v":""},{"$f":"CBAT!$BZ63","v":""},0,null,"","",0,{"$f":"IF($Q63=\"\",\"\",IF(OR($CX63<>\"c\",SUM($BY$8:$BY$107)=0),0,ROUND(BW63*MIN('Other Data'!$G$84,'Other Data'!$H$84*IF('Project Information'!$F$10=\"X\",('Project Information'!$L$42-'Project Information'!$L$39),'Project Information'!$L$42)/SUMPRODUCT($BY$8:$BY$107,--($CX$8:$CX$107=\"c\"))),0)))","v":""},{"$f":"IF($AC63=\"\",\"\",IF(OR($CX63<>\"c\",SUM($BY$8:$BY$107)=0),0,ROUND(BX63*MIN('Other Data'!$G$84,'Other Data'!$H$84*IF('Project Information'!$F$10=\"X\",('Project Information'!$L$42-'Project Information'!$L$39),'Project Information'!$L$42)/SUMPRODUCT($BY$8:$BY$107,--($CX$8:$CX$107=\"c\"))),0)))","v":""},0,null,"","",{"$f":"IF($J63=\"\",\"\",VLOOKUP($J63,'TRM Data'!$R$4:$S$168,2,FALSE))","v":""},"","","",null,{"$f":"IF($CV63=0,\"\",CBAT!$DJ63)","v":""},null,null,1,1,0,1,0,null,{"$f":"IF(OR($CV63=0,ISBLANK('Project Information'!$D$44)),\"\",IF(AND($CV63=1,$CO63<1,$G63=\"yes\"),\"a\",IF($CO63<1,\"b\",\"c\")))","v":""}]
[0,57,null,null,null,null,null,{"$f":"IF($C64=\"\",\"\",IF(COUNTIF('Project Information'!$J$9:BG$9,$C64)<>1,\"\",INDEX('Project Information'!$J$8:$BG$8,1,MATCH($C64,'Project Information'!$J$9:BG$9,0))))","v":""},null,null,{"$f":"LOOKUP(2,1/(COUNTIF($K$7:K63,$Q$8:$Q$108)=0),$Q$8:$Q$108)","v":{"$error":"#N/A"}},{"$f":"IF(OR('Project Information'!$D$32=\"\",C64=\"\"),\"\",'Project Information'!$D$32)","v":""},{"$f":"IF($C64=\"\",\"\",IF(COUNTIF('Project Information'!$J$9:$BG$9,$C64)=1,HLOOKUP(C64,'Project Information'!$J$9:$BG$10,2,FALSE),0))","v":""},null,null,null,null,null,null,null,{"$f":"IF(Q64<>\"\",IF('Project Information'!$D$33=\"Small Business\",\"I\",\"P\")&VLOOKUP($Q64,'TRM Data'!$C$5:$N$201,COLUMN('TRM Data'!$E$2)-COLUMN('TRM Data'!$C$2)+1,FALSE)&IF($L64=\"Summer\",\"S\",IF($L64=\"Winter\",\"W\",\"Y\")),\"\")","v":""},{"$f":"IF(OR($F64=\"Controls\",$F64=\"\"),\"\",VLOOKUP($Q64,'TRM Data'!$C$5:$N$201,COLUMN('TRM Data'!$F$2)-COLUMN('TRM Data'!$C$2)+1,FALSE))","v":""},null,{"$f":"IF($R64=0,\"\",VLOOKUP($Q64,'TRM Data'!$C$5:$N$201,COLUMN('TRM Data'!$G$2)-COLUMN('TRM Data'!$C$2)+1,FALSE)*$R64)","v":""},null,{"$f":"IF($R64=0,\"\",VLOOKUP($Q64,'TRM Data'!$C$5:$N$201,COLUMN('TRM Data'!$I$2)-COLUMN('TRM Data'!$C$2)+1,FALSE)*$R64)","v":""},{"$f":"IF($Q64=\"\",\"\",IF('Project Information'!$D$33=\"Small Business\",'Project Scope'!$CA64,IF('Project Information'!$D$33=\"Pay for Performance\",'Project Scope'!$CD64,0)))","v":""},null,null,null,{"$f":"IF(AC64<>\"\",\"P\"&VLOOKUP($AC64,'TRM Data'!$C$5:$N$201,COLUMN('TRM Data'!$E$2)-COLUMN('TRM Data'!$C$2)+1,FALSE)&IF($L64=\"Summer\",\"S\",IF($L64=\"Winter\",\"W\",\"Y\")),\"\")","v":""},{"$f":"IF($AD64=0,\"\",VLOOKUP($AC64,'TRM Data'!$C$5:$N$201,COLUMN('TRM Data'!$G$2)-COLUMN('TRM Data'!$C$2)+1,FALSE)*$AD64)","v":""},null,{"$f":"IF($AD64=0,\"\",VLOOKUP($AC64,'TRM Data'!$C$5:$N$201,COLUMN('TRM Data'!$I$2)-COLUMN('TRM Data'!$C$2)+1,FALSE)*$AD64)","v":""},{"$f":"IF($AC64=\"\",\"\",IF('Project Information'!$D$33=\"Small Business\",'Project Scope'!$CB64,IF('Project Information'!$D$33=\"Pay for Performance\",'Project Scope'!$CE64,0)))","v":""},null,"",null,"","","","","","","",{"$f":"IF($Q64=\"\",\"\",IF(AND(ISNUMBER($BW64),ISNUMBER($AR64),$AR64>0),SUM($BL64,$BO64,$BI64)*'Other Data'!$H$83,0))","v":""},{"$f":"IF($Q64=\"\",\"\",IF(AND(ISNUMBER($BW64),ISNUMBER($AR64),$AR64>0),$BW64*'Other Data'!$G$84,0))","v":""},null,"","","","","",{"$f":"IF($AC64=\"\",\"\",IF(AND(ISNUMBER($BX64), ISNUMBER($AZ64),$AZ64>0),SUM($BJ64,$BM64,$BP64)*'Other Data'!$H$83,0))","v":""},{"$f":"IF($AC64=\"\",\"\",IF(AND(ISNUMBER($BX64), ISNUMBER($AZ64),$AZ64>0),$BX64*'Other Data'!$G$84,0))","v":""},null,{"$f":"IF($C64=\"\",\"\",SUM('Ancillary Costs'!$N$91:$N$105)*(SUM($AR64,$AZ64,SUM($AS64,$BA64)*'Project Information'!$D$12)))","v":""},{"$f":"IF($C64=\"\",\"\",SUMIFS('Ancillary Costs'!$N$72:$N$86,'Ancillary Costs'!$FL$72:$FL$86,\"*xx\"&'Project Scope'!$C64&\"xx*\")*(SUM($AR64,$AZ64,SUM($AS64,$BA64)*'Project Information'!$D$12)))","v":""},{"$f":"IFERROR(IF($C64=\"\",\"\",SUMIFS('Ancillary Costs'!$N$8:$N$67,'Ancillary Costs'!$FL$8:$FL$67,\"*xx\"&'Project Scope'!C64&\"xx*\",'Ancillary Costs'!$I$8:$I$67,'Project Scope'!$AN64)*'Project Scope'!$AO64),0)","v":""},{"$f":"IFERROR(IF($C64=\"\",\"\",SUMIFS('Ancillary Costs'!$N$8:$N$67,'Ancillary Costs'!$FL$8:$FL$67,\"*xx\"&'Project Scope'!C64&\"xx*\",'Ancillary Costs'!$I$8:$I$67,'Project Scope'!$AW64)*'Project Scope'!$AX64),0)","v":""},{"$f":"IF($C64=\"\",\"\",IF(SUM($AR64,$AZ64,SUM($AS64,$BA64)*'Project Information'!$D$12)=0,0,SUM($BG64,(SUM($BE64:$BF64))*((SUM($AR64,(IF(ISNUMBER($AS64),$AS64,0)*'Project Information'!$D$12)))/SUM($AR64,$AZ64,SUM($AS64,$BA64)*'Project Information'!$D$12)))))","v":""},{"$f":"IF($C64=\"\",\"\",IF(SUM($AR64,$AZ64,SUM($AS64,$BA64)*'Project Information'!$D$12)=0,0,SUM($BH64,(SUM($BE64:$BF64))*((SUM($AZ64,(IF(ISNUMBER($BA64),$BA64,0)*'Project Information'!$D$12)))/SUM($AR64,$AZ64,SUM($AS64,$BA64)*'Project Information'!$D$12)))))","v":""},null,"","","",{"$f":"IF($C64=\"\",\"\",IF(OR($AS64=\"\",$CX64=\"b\"),0,$AS64*'Project Information'!$D$12))","v":""},{"$f":"IF($C64=\"\",\"\",IF(OR($BA64=\"\",$CX64=\"b\"),0,$BA64*'Project Information'!$D$12))","v":""},"","","","","",null,{"$f":"CBAT!$AB64","v":""},{"$f":"CBAT!$BZ64","v":""},0,null,"","",0,{"$f":"IF($Q64=\"\",\"\",IF(OR($CX64<>\"c\",SUM($BY$8:$BY$107)=0),0,ROUND(BW64*MIN('Other Data'!$G$84,'Other Data'!$H$84*IF('Project Information'!$F$10=\"X\",('Project Information'!$L$42-'Project Information'!$L$39),'Project Information'!$L$42)/SUMPRODUCT($BY$8:$BY$107,--($CX$8:$CX$107=\"c\"))),0)))","v":""},{"$f":"IF($AC64=\"\",\"\",IF(OR($CX64<>\"c\",SUM($BY$8:$BY$107)=0),0,ROUND(BX64*MIN('Other Data'!$G$84,'Other Data'!$H$84*IF('Project Information'!$F$10=\"X\",('Project Information'!$L$42-'Project Information'!$L$39),'Project Information'!$L$42)/SUMPRODUCT($BY$8:$BY$107,--($CX$8:$CX$107=\"c\"))),0)))","v":""},0,null,"","",{"$f":"IF($J64=\"\",\"\",VLOOKUP($J64,'TRM Data'!$R$4:$S$168,2,FALSE))","v":""},"","","",null,{"$f":"IF($CV64=0,\"\",CBAT!$DJ64)","v":""},null,null,1,1,0,1,0,null,{"$f":"IF(OR($CV64=0,ISBLANK('Project Information'!$D$44)),\"\",IF(AND($CV64=1,$CO64<1,$G64=\"yes\"),\"a\",IF($CO64<1,\"b\",\"c\")))","v":""}]
[0,58,null,null,null,null,null,{"$f":"IF($C65=\"\",\"\",IF(COUNTIF('Project Information'!$J$9:BG$9,$C65)<>1,\"\",INDEX('Project Information'!$J$8:$BG$8,1,MATCH($C65,'Project Information'!$J$9:BG$9,0))))","v":""},null,null,{"$f":"LOOKUP(2,1/(COUNTIF($K$7:K64,$Q$8:$Q$108)=0),$Q$8:$Q$108)","v":{"$error":"#N/A"}},{"$f":"IF(OR('Project Information'!$D$32=\"\",C65=\"\"),\"\",'Project Information'!$D$32)","v":""},{"$f":"IF($C65=\"\",\"\",IF(COUNTIF('Project Information'!$J$9:$BG$9,$C65)=1,HLOOKUP(C65,'Project Information'!$J$9:$BG$10,2,FALSE),0))","v":""},null,null,null,null,null,null,null,{"$f":"IF(Q65<>\"\",IF('Project Information'!$D$33=\"Small Business\",\"I\",\"P\")&VLOOKUP($Q65,'TRM Data'!$C$5:$N$201,COLUMN('TRM Data'!$E$2)-COLUMN('TRM Data'!$C$2)+1,FALSE)&IF($L65=\"Summer\",\"S\",IF($L65=\"Winter\",\"W\",\"Y\")),\"\")","v":""},{"$f":"IF(OR($F65=\"Controls\",$F65=\"\"),\"\",VLOOKUP($Q65,'TRM Data'!$C$5:$N$201,COLUMN('TRM Data'!$F$2)-COLUMN('TRM Data'!$C$2)+1,FALSE))","v":""},null,{"$f":"IF($R65=0,\"\",VLOOKUP($Q65,'TRM Data'!$C$5:$N$201,COLUMN('TRM Data'!$G$2)-COLUMN('TRM Data'!$C$2)+1,FALSE)*$R65)","v":""},null,{"$f":"IF($R65=0,\"\",VLOOKUP($Q65,'TRM Data'!$C$5:$N$201,COLUMN('TRM Data'!$I$2)-COLUMN('TRM Data'!$C$2)+1,FALSE)*$R65)","v":""},{"$f":"IF($Q65=\"\",\"\",IF('Project Information'!$D$33=\"Small Business\",'Project Scope'!$CA65,IF('Project Information'!$D$33=\"Pay for Performance\",'Project Scope'!$CD65,0)))","v":""},null,null,null,{"$f":"IF(AC65<>\"\",\"P\"&VLOOKUP($AC65,'TRM Data'!$C$5:$N$201,COLUMN('TRM Data'!$E$2)-COLUMN('TRM Data'!$C$2)+1,FALSE)&IF($L65=\"Summer\",\"S\",IF($L65=\"Winter\",\"W\",\"Y\")),\"\")","v":""},{"$f":"IF($AD65=0,\"\",VLOOKUP($AC65,'TRM Data'!$C$5:$N$201,COLUMN('TRM Data'!$G$2)-COLUMN('TRM Data'!$C$2)+1,FALSE)*$AD65)","v":""},null,{"$f":"IF($AD65=0,\"\",VLOOKUP($AC65,'TRM Data'!$C$5:$N$201,COLUMN('TRM Data'!$I$2)-COLUMN('TRM Data'!$C$2)+1,FALSE)*$AD65)","v":""},{"$f":"IF($AC65=\"\",\"\",IF('Project Information'!$D$33=\"Small Business\",'Project Scope'!$CB65,IF('Project Information'!$D$33=\"Pay for Performance\",'Project Scope'!$CE65,0)))","v":""},null,"",null,"","","","","","","",{"$f":"IF($Q65=\"\",\"\",IF(AND(ISNUMBER($BW65),ISNUMBER($AR65),$AR65>0),SUM($BL65,$BO65,$BI65)*'Other Data'!$H$83,0))","v":""},{"$f":"IF($Q65=\"\",\"\",IF(AND(ISNUMBER($BW65),ISNUMBER($AR65),$AR65>0),$BW65*'Other Data'!$G$84,0))","v":""},null,"","","","","",{"$f":"IF($AC65=\"\",\"\",IF(AND(ISNUMBER($BX65), ISNUMBER($AZ65),$AZ65>0),SUM($BJ65,$BM65,$BP65)*'Other Data'!$H$83,0))","v":""},{"$f":"IF($AC65=\"\",\"\",IF(AND(ISNUMBER($BX65), ISNUMBER($AZ65),$AZ65>0),$BX65*'Other Data'!$G$84,0))","v":""},null,{"$f":"IF($C65=\"\",\"\",SUM('Ancillary Costs'!$N$91:$N$105)*(SUM($AR65,$AZ65,SUM($AS65,$BA65)*'Project Information'!$D$12)))","v":""},{"$f":"IF($C65=\"\",\"\",SUMIFS('Ancillary Costs'!$N$72:$N$86,'Ancillary Costs'!$FL$72:$FL$86,\"*xx\"&'Project Scope'!$C65&\"xx*\")*(SUM($AR65,$AZ65,SUM($AS65,$BA65)*'Project Information'!$D$12)))","v":""},{"$f":"IFERROR(IF($C65=\"\",\"\",SUMIFS('Ancillary Costs'!$N$8:$N$67,'Ancillary Costs'!$FL$8:$FL$67,\"*xx\"&'Project Scope'!C65&\"xx*\",'Ancillary Costs'!$I$8:$I$67,'Project Scope'!$AN65)*'Project Scope'!$AO65),0)","v":""},{"$f":"IFERROR(IF($C65=\"\",\"\",SUMIFS('Ancillary Costs'!$N$8:$N$67,'Ancillary Costs'!$FL$8:$FL$67,\"*xx\"&'Project Scope'!C65&\"xx*\",'Ancillary Costs'!$I$8:$I$67,'Project Scope'!$AW65)*'Project Scope'!$AX65),0)","v":""},{"$f":"IF($C65=\"\",\"\",IF(SUM($AR65,$AZ65,SUM($AS65,$BA65)*'Project Information'!$D$12)=0,0,SUM($BG65,(SUM($BE65:$BF65))*((SUM($AR65,(IF(ISNUMBER($AS65),$AS65,0)*'Project Information'!$D$12)))/SUM($AR65,$AZ65,SUM($AS65,$BA65)*'Project Information'!$D$12)))))","v":""},{"$f":"IF($C65=\"\",\"\",IF(SUM($AR65,$AZ65,SUM($AS65,$BA65)*'Project Information'!$D$12)=0,0,SUM($BH65,(SUM($BE65:$BF65))*((SUM($AZ65,(IF(ISNUMBER($BA65),$BA65,0)*'Project Information'!$D$12)))/SUM($AR65,$AZ65,SUM($AS65,$BA65)*'Project Information'!$D$12)))))","v":""},null,"","","",{"$f":"IF($C65=\"\",\"\",IF(OR($AS65=\"\",$CX65=\"b\"),0,$AS65*'Project Information'!$D$12))","v":""},{"$f":"IF($C65=\"\",\"\",IF(OR($BA65=\"\",$CX65=\"b\"),0,$BA65*'Project Information'!$D$12))","v":""},"","","","","",null,{"$f":"CBAT!$AB65","v":""},{"$f":"CBAT!$BZ65","v":""},0,null,"","",0,{"$f":"IF($Q65=\"\",\"\",IF(OR($CX65<>\"c\",SUM($BY$8:$BY$107)=0),0,ROUND(BW65*MIN('Other Data'!$G$84,'Other Data'!$H$84*IF('Project Information'!$F$10=\"X\",('Project Information'!$L$42-'Project Information'!$L$39),'Project Information'!$L$42)/SUMPRODUCT($BY$8:$BY$107,--($CX$8:$CX$107=\"c\"))),0)))","v":""},{"$f":"IF($AC65=\"\",\"\",IF(OR($CX65<>\"c\",SUM($BY$8:$BY$107)=0),0,ROUND(BX65*MIN('Other Data'!$G$84,'Other Data'!$H$84*IF('Project Information'!$F$10=\"X\",('Project Information'!$L$42-'Project Information'!$L$39),'Project Information'!$L$42)/SUMPRODUCT($BY$8:$BY$107,--($CX$8:$CX$107=\"c\"))),0)))","v":""},0,null,"","",{"$f":"IF($J65=\"\",\"\",VLOOKUP($J65,'TRM Data'!$R$4:$S$168,2,FALSE))","v":""},"","","",null,{"$f":"IF($CV65=0,\"\",CBAT!$DJ65)","v":""},null,null,1,1,0,1,0,null,{"$f":"IF(OR($CV65=0,ISBLANK('Project Information'!$D$44)),\"\",IF(AND($CV65=1,$CO65<1,$G65=\"yes\"),\"a\",IF($CO65<1,\"b\",\"c\")))","v":""}]
[0,59,null,null,null,null,null,{"$f":"IF($C66=\"\",\"\",IF(COUNTIF('Project Information'!$J$9:BG$9,$C66)<>1,\"\",INDEX('Project Information'!$J$8:$BG$8,1,MATCH($C66,'Project Information'!$J$9:BG$9,0))))","v":""},null,null,{"$f":"LOOKUP(2,1/(COUNTIF($K$7:K65,$Q$8:$Q$108)=0),$Q$8:$Q$108)","v":{"$error":"#N/A"}},{"$f":"IF(OR('Project Information'!$D$32=\"\",C66=\"\"),\"\",'Project Information'!$D$32)","v":""},{"$f":"IF($C66=\"\",\"\",IF(COUNTIF('Project Information'!$J$9:$BG$9,$C66)=1,HLOOKUP(C66,'Project Information'!$J$9:$BG$10,2,FALSE),0))","v":""},null,null,null,null,null,null,null,{"$f":"IF(Q66<>\"\",IF('Project Information'!$D$33=\"Small Business\",\"I\",\"P\")&VLOOKUP($Q66,'TRM Data'!$C$5:$N$201,COLUMN('TRM Data'!$E$2)-COLUMN('TRM Data'!$C$2)+1,FALSE)&IF($L66=\"Summer\",\"S\",IF($L66=\"Winter\",\"W\",\"Y\")),\"\")","v":""},{"$f":"IF(OR($F66=\"Controls\",$F66=\"\"),\"\",VLOOKUP($Q66,'TRM Data'!$C$5:$N$201,COLUMN('TRM Data'!$F$2)-COLUMN('TRM Data'!$C$2)+1,FALSE))","v":""},null,{"$f":"IF($R66=0,\"\",VLOOKUP($Q66,'TRM Data'!$C$5:$N$201,COLUMN('TRM Data'!$G$2)-COLUMN('TRM Data'!$C$2)+1,FALSE)*$R66)","v":""},null,{"$f":"IF($R66=0,\"\",VLOOKUP($Q66,'TRM Data'!$C$5:$N$201,COLUMN('TRM Data'!$I$2)-COLUMN('TRM Data'!$C$2)+1,FALSE)*$R66)","v":""},{"$f":"IF($Q66=\"\",\"\",IF('Project Information'!$D$33=\"Small Business\",'Project Scope'!$CA66,IF('Project Information'!$D$33=\"Pay for Performance\",'Project Scope'!$CD66,0)))","v":""},null,null,null,{"$f":"IF(AC66<>\"\",\"P\"&VLOOKUP($AC66,'TRM Data'!$C$5:$N$201,COLUMN('TRM Data'!$E$2)-COLUMN('TRM Data'!$C$2)+1,FALSE)&IF($L66=\"Summer\",\"S\",IF($L66=\"Winter\",\"W\",\"Y\")),\"\")","v":""},{"$f":"IF($AD66=0,\"\",VLOOKUP($AC66,'TRM Data'!$C$5:$N$201,COLUMN('TRM Data'!$G$2)-COLUMN('TRM Data'!$C$2)+1,FALSE)*$AD66)","v":""},null,{"$f":"IF($AD66=0,\"\",VLOOKUP($AC66,'TRM Data'!$C$5:$N$201,COLUMN('TRM Data'!$I$2)-COLUMN('TRM Data'!$C$2)+1,FALSE)*$AD66)","v":""},{"$f":"IF($AC66=\"\",\"\",IF('Project Information'!$D$33=\"Small Business\",'Project Scope'!$CB66,IF('Project Information'!$D$33=\"Pay for Performance\",'Project Scope'!$CE66,0)))","v":""},null,"",null,"","","","","","","",{"$f":"IF($Q66=\"\",\"\",IF(AND(ISNUMBER($BW66),ISNUMBER($AR66),$AR66>0),SUM($BL66,$BO66,$BI66)*'Other Data'!$H$83,0))","v":""},{"$f":"IF($Q66=\"\",\"\",IF(AND(ISNUMBER($BW66),ISNUMBER($AR66),$AR66>0),$BW66*'Other Data'!$G$84,0))","v":""},null,"","","","","",{"$f":"IF($AC66=\"\",\"\",IF(AND(ISNUMBER($BX66), ISNUMBER($AZ66),$AZ66>0),SUM($BJ66,$BM66,$BP66)*'Other Data'!$H$83,0))","v":""},{"$f":"IF($AC66=\"\",\"\",IF(AND(ISNUMBER($BX66), ISNUMBER($AZ66),$AZ66>0),$BX66*'Other Data'!$G$84,0))","v":""},null,{"$f":"IF($C66=\"\",\"\",SUM('Ancillary Costs'!$N$91:$N$105)*(SUM($AR66,$AZ66,SUM($AS66,$BA66)*'Project Information'!$D$12)))","v":""},{"$f":"IF($C66=\"\",\"\",SUMIFS('Ancillary Costs'!$N$72:$N$86,'Ancillary Costs'!$FL$72:$FL$86,\"*xx\"&'Project Scope'!$C66&\"xx*\")*(SUM($AR66,$AZ66,SUM($AS66,$BA66)*'Project Information'!$D$12)))","v":""},{"$f":"IFERROR(IF($C66=\"\",\"\",SUMIFS('Ancillary Costs'!$N$8:$N$67,'Ancillary Costs'!$FL$8:$FL$67,\"*xx\"&'Project Scope'!C66&\"xx*\",'Ancillary Costs'!$I$8:$I$67,'Project Scope'!$AN66)*'Project Scope'!$AO66),0)","v":""},{"$f":"IFERROR(IF($C66=\"\",\"\",SUMIFS('Ancillary Costs'!$N$8:$N$67,'Ancillary Costs'!$FL$8:$FL$67,\"*xx\"&'Project Scope'!C66&\"xx*\",'Ancillary Costs'!$I$8:$I$67,'Project Scope'!$AW66)*'Project Scope'!$AX66),0)","v":""},{"$f":"IF($C66=\"\",\"\",IF(SUM($AR66,$AZ66,SUM($AS66,$BA66)*'Project Information'!$D$12)=0,0,SUM($BG66,(SUM($BE66:$BF66))*((SUM($AR66,(IF(ISNUMBER($AS66),$AS66,0)*'Project Information'!$D$12)))/SUM($AR66,$AZ66,SUM($AS66,$BA66)*'Project Information'!$D$12)))))","v":""},{"$f":"IF($C66=\"\",\"\",IF(SUM($AR66,$AZ66,SUM($AS66,$BA66)*'Project Information'!$D$12)=0,0,SUM($BH66,(SUM($BE66:$BF66))*((SUM($AZ66,(IF(ISNUMBER($BA66),$BA66,0)*'Project Information'!$D$12)))/SUM($AR66,$AZ66,SUM($AS66,$BA66)*'Project Information'!$D$12)))))","v":""},null,"","","",{"$f":"IF($C66=\"\",\"\",IF(OR($AS66=\"\",$CX66=\"b\"),0,$AS66*'Project Information'!$D$12))","v":""},{"$f":"IF($C66=\"\",\"\",IF(OR($BA66=\"\",$CX66=\"b\"),0,$BA66*'Project Information'!$D$12))","v":""},"","","","","",null,{"$f":"CBAT!$AB66","v":""},{"$f":"CBAT!$BZ66","v":""},0,null,"","",0,{"$f":"IF($Q66=\"\",\"\",IF(OR($CX66<>\"c\",SUM($BY$8:$BY$107)=0),0,ROUND(BW66*MIN('Other Data'!$G$84,'Other Data'!$H$84*IF('Project Information'!$F$10=\"X\",('Project Information'!$L$42-'Project Information'!$L$39),'Project Information'!$L$42)/SUMPRODUCT($BY$8:$BY$107,--($CX$8:$CX$107=\"c\"))),0)))","v":""},{"$f":"IF($AC66=\"\",\"\",IF(OR($CX66<>\"c\",SUM($BY$8:$BY$107)=0),0,ROUND(BX66*MIN('Other Data'!$G$84,'Other Data'!$H$84*IF('Project Information'!$F$10=\"X\",('Project Information'!$L$42-'Project Information'!$L$39),'Project Information'!$L$42)/SUMPRODUCT($BY$8:$BY$107,--($CX$8:$CX$107=\"c\"))),0)))","v":""},0,null,"","",{"$f":"IF($J66=\"\",\"\",VLOOKUP($J66,'TRM Data'!$R$4:$S$168,2,FALSE))","v":""},"","","",null,{"$f":"IF($CV66=0,\"\",CBAT!$DJ66)","v":""},null,null,1,1,0,1,0,null,{"$f":"IF(OR($CV66=0,ISBLANK('Project Information'!$D$44)),\"\",IF(AND($CV66=1,$CO66<1,$G66=\"yes\"),\"a\",IF($CO66<1,\"b\",\"c\")))","v":""}]
[0,60,null,null,null,null,null,{"$f":"IF($C67=\"\",\"\",IF(COUNTIF('Project Information'!$J$9:BG$9,$C67)<>1,\"\",INDEX('Project Information'!$J$8:$BG$8,1,MATCH($C67,'Project Information'!$J$9:BG$9,0))))","v":""},null,null,{"$f":"LOOKUP(2,1/(COUNTIF($K$7:K66,$Q$8:$Q$108)=0),$Q$8:$Q$108)","v":{"$error":"#N/A"}},{"$f":"IF(OR('Project Information'!$D$32=\"\",C67=\"\"),\"\",'Project Information'!$D$32)","v":""},{"$f":"IF($C67=\"\",\"\",IF(COUNTIF('Project Information'!$J$9:$BG$9,$C67)=1,HLOOKUP(C67,'Project Information'!$J$9:$BG$10,2,FALSE),0))","v":""},null,null,null,null,null,null,null,{"$f":"IF(Q67<>\"\",IF('Project Information'!$D$33=\"Small Business\",\"I\",\"P\")&VLOOKUP($Q67,'TRM Data'!$C$5:$N$201,COLUMN('TRM Data'!$E$2)-COLUMN('TRM Data'!$C$2)+1,FALSE)&IF($L67=\"Summer\",\"S\",IF($L67=\"Winter\",\"W\",\"Y\")),\"\")","v":""},{"$f":"IF(OR($F67=\"Controls\",$F67=\"\"),\"\",VLOOKUP($Q67,'TRM Data'!$C$5:$N$201,COLUMN('TRM Data'!$F$2)-COLUMN('TRM Data'!$C$2)+1,FALSE))","v":""},null,{"$f":"IF($R67=0,\"\",VLOOKUP($Q67,'TRM Data'!$C$5:$N$201,COLUMN('TRM Data'!$G$2)-COLUMN('TRM Data'!$C$2)+1,FALSE)*$R67)","v":""},null,{"$f":"IF($R67=0,\"\",VLOOKUP($Q67,'TRM Data'!$C$5:$N$201,COLUMN('TRM Data'!$I$2)-COLUMN('TRM Data'!$C$2)+1,FALSE)*$R67)","v":""},{"$f":"IF($Q67=\"\",\"\",IF('Project Information'!$D$33=\"Small Business\",'Project Scope'!$CA67,IF('Project Information'!$D$33=\"Pay for Performance\",'Project Scope'!$CD67,0)))","v":""},null,null,null,{"$f":"IF(AC67<>\"\",\"P\"&VLOOKUP($AC67,'TRM Data'!$C$5:$N$201,COLUMN('TRM Data'!$E$2)-COLUMN('TRM Data'!$C$2)+1,FALSE)&IF($L67=\"Summer\",\"S\",IF($L67=\"Winter\",\"W\",\"Y\")),\"\")","v":""},{"$f":"IF($AD67=0,\"\",VLOOKUP($AC67,'TRM Data'!$C$5:$N$201,COLUMN('TRM Data'!$G$2)-COLUMN('TRM Data'!$C$2)+1,FALSE)*$AD67)","v":""},null,{"$f":"IF($AD67=0,\"\",VLOOKUP($AC67,'TRM Data'!$C$5:$N$201,COLUMN('TRM Data'!$I$2)-COLUMN('TRM Data'!$C$2)+1,FALSE)*$AD67)","v":""},{"$f":"IF($AC67=\"\",\"\",IF('Project Information'!$D$33=\"Small Business\",'Project Scope'!$CB67,IF('Project Information'!$D$33=\"Pay for Performance\",'Project Scope'!$CE67,0)))","v":""},null,"",null,"","","","","","","",{"$f":"IF($Q67=\"\",\"\",IF(AND(ISNUMBER($BW67),ISNUMBER($AR67),$AR67>0),SUM($BL67,$BO67,$BI67)*'Other Data'!$H$83,0))","v":""},{"$f":"IF($Q67=\"\",\"\",IF(AND(ISNUMBER($BW67),ISNUMBER($AR67),$AR67>0),$BW67*'Other Data'!$G$84,0))","v":""},null,"","","","","",{"$f":"IF($AC67=\"\",\"\",IF(AND(ISNUMBER($BX67), ISNUMBER($AZ67),$AZ67>0),SUM($BJ67,$BM67,$BP67)*'Other Data'!$H$83,0))","v":""},{"$f":"IF($AC67=\"\",\"\",IF(AND(ISNUMBER($BX67), ISNUMBER($AZ67),$AZ67>0),$BX67*'Other Data'!$G$84,0))","v":""},null,{"$f":"IF($C67=\"\",\"\",SUM('Ancillary Costs'!$N$91:$N$105)*(SUM($AR67,$AZ67,SUM($AS67,$BA67)*'Project Information'!$D$12)))","v":""},{"$f":"IF($C67=\"\",\"\",SUMIFS('Ancillary Costs'!$N$72:$N$86,'Ancillary Costs'!$FL$72:$FL$86,\"*xx\"&'Project Scope'!$C67&\"xx*\")*(SUM($AR67,$AZ67,SUM($AS67,$BA67)*'Project Information'!$D$12)))","v":""},{"$f":"IFERROR(IF($C67=\"\",\"\",SUMIFS('Ancillary Costs'!$N$8:$N$67,'Ancillary Costs'!$FL$8:$FL$67,\"*xx\"&'Project Scope'!C67&\"xx*\",'Ancillary Costs'!$I$8:$I$67,'Project Scope'!$AN67)*'Project Scope'!$AO67),0)","v":""},{"$f":"IFERROR(IF($C67=\"\",\"\",SUMIFS('Ancillary Costs'!$N$8:$N$67,'Ancillary Costs'!$FL$8:$FL$67,\"*xx\"&'Project Scope'!C67&\"xx*\",'Ancillary Costs'!$I$8:$I$67,'Project Scope'!$AW67)*'Project Scope'!$AX67),0)","v":""},{"$f":"IF($C67=\"\",\"\",IF(SUM($AR67,$AZ67,SUM($AS67,$BA67)*'Project Information'!$D$12)=0,0,SUM($BG67,(SUM($BE67:$BF67))*((SUM($AR67,(IF(ISNUMBER($AS67),$AS67,0)*'Project Information'!$D$12)))/SUM($AR67,$AZ67,SUM($AS67,$BA67)*'Project Information'!$D$12)))))","v":""},{"$f":"IF($C67=\"\",\"\",IF(SUM($AR67,$AZ67,SUM($AS67,$BA67)*'Project Information'!$D$12)=0,0,SUM($BH67,(SUM($BE67:$BF67))*((SUM($AZ67,(IF(ISNUMBER($BA67),$BA67,0)*'Project Information'!$D$12)))/SUM($AR67,$AZ67,SUM($AS67,$BA67)*'Project Information'!$D$12)))))","v":""},null,"","","",{"$f":"IF($C67=\"\",\"\",IF(OR($AS67=\"\",$CX67=\"b\"),0,$AS67*'Project Information'!$D$12))","v":""},{"$f":"IF($C67=\"\",\"\",IF(OR($BA67=\"\",$CX67=\"b\"),0,$BA67*'Project Information'!$D$12))","v":""},"","","","","",null,{"$f":"CBAT!$AB67","v":""},{"$f":"CBAT!$BZ67","v":""},0,null,"","",0,{"$f":"IF($Q67=\"\",\"\",IF(OR($CX67<>\"c\",SUM($BY$8:$BY$107)=0),0,ROUND(BW67*MIN('Other Data'!$G$84,'Other Data'!$H$84*IF('Project Information'!$F$10=\"X\",('Project Information'!$L$42-'Project Information'!$L$39),'Project Information'!$L$42)/SUMPRODUCT($BY$8:$BY$107,--($CX$8:$CX$107=\"c\"))),0)))","v":""},{"$f":"IF($AC67=\"\",\"\",IF(OR($CX67<>\"c\",SUM($BY$8:$BY$107)=0),0,ROUND(BX67*MIN('Other Data'!$G$84,'Other Data'!$H$84*IF('Project Information'!$F$10=\"X\",('Project Information'!$L$42-'Project Information'!$L$39),'Project Information'!$L$42)/SUMPRODUCT($BY$8:$BY$107,--($CX$8:$CX$107=\"c\"))),0)))","v":""},0,null,"","",{"$f":"IF($J67=\"\",\"\",VLOOKUP($J67,'TRM Data'!$R$4:$S$168,2,FALSE))","v":""},"","","",null,{"$f":"IF($CV67=0,\"\",CBAT!$DJ67)","v":""},null,null,1,1,0,1,0,null,{"$f":"IF(OR($CV67=0,ISBLANK('Project Information'!$D$44)),\"\",IF(AND($CV67=1,$CO67<1,$G67=\"yes\"),\"a\",IF($CO67<1,\"b\",\"c\")))","v":""}]
[0,61,null,null,null,null,null,{"$f":"IF($C68=\"\",\"\",IF(COUNTIF('Project Information'!$J$9:BG$9,$C68)<>1,\"\",INDEX('Project Information'!$J$8:$BG$8,1,MATCH($C68,'Project Information'!$J$9:BG$9,0))))","v":""},null,null,{"$f":"LOOKUP(2,1/(COUNTIF($K$7:K67,$Q$8:$Q$108)=0),$Q$8:$Q$108)","v":{"$error":"#N/A"}},{"$f":"IF(OR('Project Information'!$D$32=\"\",C68=\"\"),\"\",'Project Information'!$D$32)","v":""},{"$f":"IF($C68=\"\",\"\",IF(COUNTIF('Project Information'!$J$9:$BG$9,$C68)=1,HLOOKUP(C68,'Project Information'!$J$9:$BG$10,2,FALSE),0))","v":""},null,null,null,null,null,null,null,{"$f":"IF(Q68<>\"\",IF('Project Information'!$D$33=\"Small Business\",\"I\",\"P\")&VLOOKUP($Q68,'TRM Data'!$C$5:$N$201,COLUMN('TRM Data'!$E$2)-COLUMN('TRM Data'!$C$2)+1,FALSE)&IF($L68=\"Summer\",\"S\",IF($L68=\"Winter\",\"W\",\"Y\")),\"\")","v":""},{"$f":"IF(OR($F68=\"Controls\",$F68=\"\"),\"\",VLOOKUP($Q68,'TRM Data'!$C$5:$N$201,COLUMN('TRM Data'!$F$2)-COLUMN('TRM Data'!$C$2)+1,FALSE))","v":""},null,{"$f":"IF($R68=0,\"\",VLOOKUP($Q68,'TRM Data'!$C$5:$N$201,COLUMN('TRM Data'!$G$2)-COLUMN('TRM Data'!$C$2)+1,FALSE)*$R68)","v":""},null,{"$f":"IF($R68=0,\"\",VLOOKUP($Q68,'TRM Data'!$C$5:$N$201,COLUMN('TRM Data'!$I$2)-COLUMN('TRM Data'!$C$2)+1,FALSE)*$R68)","v":""},{"$f":"IF($Q68=\"\",\"\",IF('Project Information'!$D$33=\"Small Business\",'Project Scope'!$CA68,IF('Project Information'!$D$33=\"Pay for Performance\",'Project Scope'!$CD68,0)))","v":""},null,null,null,{"$f":"IF(AC68<>\"\",\"P\"&VLOOKUP($AC68,'TRM Data'!$C$5:$N$201,COLUMN('TRM Data'!$E$2)-COLUMN('TRM Data'!$C$2)+1,FALSE)&IF($L68=\"Summer\",\"S\",IF($L68=\"Winter\",\"W\",\"Y\")),\"\")","v":""},{"$f":"IF($AD68=0,\"\",VLOOKUP($AC68,'TRM Data'!$C$5:$N$201,COLUMN('TRM Data'!$G$2)-COLUMN('TRM Data'!$C$2)+1,FALSE)*$AD68)","v":""},null,{"$f":"IF($AD68=0,\"\",VLOOKUP($AC68,'TRM Data'!$C$5:$N$201,COLUMN('TRM Data'!$I$2)-COLUMN('TRM Data'!$C$2)+1,FALSE)*$AD68)","v":""},{"$f":"IF($AC68=\"\",\"\",IF('Project Information'!$D$33=\"Small Business\",'Project Scope'!$CB68,IF('Project Information'!$D$33=\"Pay for Performance\",'Project Scope'!$CE68,0)))","v":""},null,"",null,"","","","","","","",{"$f":"IF($Q68=\"\",\"\",IF(AND(ISNUMBER($BW68),ISNUMBER($AR68),$AR68>0),SUM($BL68,$BO68,$BI68)*'Other Data'!$H$83,0))","v":""},{"$f":"IF($Q68=\"\",\"\",IF(AND(ISNUMBER($BW68),ISNUMBER($AR68),$AR68>0),$BW68*'Other Data'!$G$84,0))","v":""},null,"","","","","",{"$f":"IF($AC68=\"\",\"\",IF(AND(ISNUMBER($BX68), ISNUMBER($AZ68),$AZ68>0),SUM($BJ68,$BM68,$BP68)*'Other Data'!$H$83,0))","v":""},{"$f":"IF($AC68=\"\",\"\",IF(AND(ISNUMBER($BX68), ISNUMBER($AZ68),$AZ68>0),$BX68*'Other Data'!$G$84,0))","v":""},null,{"$f":"IF($C68=\"\",\"\",SUM('Ancillary Costs'!$N$91:$N$105)*(SUM($AR68,$AZ68,SUM($AS68,$BA68)*'Project Information'!$D$12)))","v":""},{"$f":"IF($C68=\"\",\"\",SUMIFS('Ancillary Costs'!$N$72:$N$86,'Ancillary Costs'!$FL$72:$FL$86,\"*xx\"&'Project Scope'!$C68&\"xx*\")*(SUM($AR68,$AZ68,SUM($AS68,$BA68)*'Project Information'!$D$12)))","v":""},{"$f":"IFERROR(IF($C68=\"\",\"\",SUMIFS('Ancillary Costs'!$N$8:$N$67,'Ancillary Costs'!$FL$8:$FL$67,\"*xx\"&'Project Scope'!C68&\"xx*\",'Ancillary Costs'!$I$8:$I$67,'Project Scope'!$AN68)*'Project Scope'!$AO68),0)","v":""},{"$f":"IFERROR(IF($C68=\"\",\"\",SUMIFS('Ancillary Costs'!$N$8:$N$67,'Ancillary Costs'!$FL$8:$FL$67,\"*xx\"&'Project Scope'!C68&\"xx*\",'Ancillary Costs'!$I$8:$I$67,'Project Scope'!$AW68)*'Project Scope'!$AX68),0)","v":""},{"$f":"IF($C68=\"\",\"\",IF(SUM($AR68,$AZ68,SUM($AS68,$BA68)*'Project Information'!$D$12)=0,0,SUM($BG68,(SUM($BE68:$BF68))*((SUM($AR68,(IF(ISNUMBER($AS68),$AS68,0)*'Project Information'!$D$12)))/SUM($AR68,$AZ68,SUM($AS68,$BA68)*'Project Information'!$D$12)))))","v":""},{"$f":"IF($C68=\"\",\"\",IF(SUM($AR68,$AZ68,SUM($AS68,$BA68)*'Project Information'!$D$12)=0,0,SUM($BH68,(SUM($BE68:$BF68))*((SUM($AZ68,(IF(ISNUMBER($BA68),$BA68,0)*'Project Information'!$D$12)))/SUM($AR68,$AZ68,SUM($AS68,$BA68)*'Project Information'!$D$12)))))","v":""},null,"","","",{"$f":"IF($C68=\"\",\"\",IF(OR($AS68=\"\",$CX68=\"b\"),0,$AS68*'Project Information'!$D$12))","v":""},{"$f":"IF($C68=\"\",\"\",IF(OR($BA68=\"\",$CX68=\"b\"),0,$BA68*'Project Information'!$D$12))","v":""},"","","","","",null,{"$f":"CBAT!$AB68","v":""},{"$f":"CBAT!$BZ68","v":""},0,null,"","",0,{"$f":"IF($Q68=\"\",\"\",IF(OR($CX68<>\"c\",SUM($BY$8:$BY$107)=0),0,ROUND(BW68*MIN('Other Data'!$G$84,'Other Data'!$H$84*IF('Project Information'!$F$10=\"X\",('Project Information'!$L$42-'Project Information'!$L$39),'Project Information'!$L$42)/SUMPRODUCT($BY$8:$BY$107,--($CX$8:$CX$107=\"c\"))),0)))","v":""},{"$f":"IF($AC68=\"\",\"\",IF(OR($CX68<>\"c\",SUM($BY$8:$BY$107)=0),0,ROUND(BX68*MIN('Other Data'!$G$84,'Other Data'!$H$84*IF('Project Information'!$F$10=\"X\",('Project Information'!$L$42-'Project Information'!$L$39),'Project Information'!$L$42)/SUMPRODUCT($BY$8:$BY$107,--($CX$8:$CX$107=\"c\"))),0)))","v":""},0,null,"","",{"$f":"IF($J68=\"\",\"\",VLOOKUP($J68,'TRM Data'!$R$4:$S$168,2,FALSE))","v":""},"","","",null,{"$f":"IF($CV68=0,\"\",CBAT!$DJ68)","v":""},null,null,1,1,0,1,0,null,{"$f":"IF(OR($CV68=0,ISBLANK('Project Information'!$D$44)),\"\",IF(AND($CV68=1,$CO68<1,$G68=\"yes\"),\"a\",IF($CO68<1,\"b\",\"c\")))","v":""}]
[0,62,null,null,null,null,null,{"$f":"IF($C69=\"\",\"\",IF(COUNTIF('Project Information'!$J$9:BG$9,$C69)<>1,\"\",INDEX('Project Information'!$J$8:$BG$8,1,MATCH($C69,'Project Information'!$J$9:BG$9,0))))","v":""},null,null,{"$f":"LOOKUP(2,1/(COUNTIF($K$7:K68,$Q$8:$Q$108)=0),$Q$8:$Q$108)","v":{"$error":"#N/A"}},{"$f":"IF(OR('Project Information'!$D$32=\"\",C69=\"\"),\"\",'Project Information'!$D$32)","v":""},{"$f":"IF($C69=\"\",\"\",IF(COUNTIF('Project Information'!$J$9:$BG$9,$C69)=1,HLOOKUP(C69,'Project Information'!$J$9:$BG$10,2,FALSE),0))","v":""},null,null,null,null,null,null,null,{"$f":"IF(Q69<>\"\",IF('Project Information'!$D$33=\"Small Business\",\"I\",\"P\")&VLOOKUP($Q69,'TRM Data'!$C$5:$N$201,COLUMN('TRM Data'!$E$2)-COLUMN('TRM Data'!$C$2)+1,FALSE)&IF($L69=\"Summer\",\"S\",IF($L69=\"Winter\",\"W\",\"Y\")),\"\")","v":""},{"$f":"IF(OR($F69=\"Controls\",$F69=\"\"),\"\",VLOOKUP($Q69,'TRM Data'!$C$5:$N$201,COLUMN('TRM Data'!$F$2)-COLUMN('TRM Data'!$C$2)+1,FALSE))","v":""},null,{"$f":"IF($R69=0,\"\",VLOOKUP($Q69,'TRM Data'!$C$5:$N$201,COLUMN('TRM Data'!$G$2)-COLUMN('TRM Data'!$C$2)+1,FALSE)*$R69)","v":""},null,{"$f":"IF($R69=0,\"\",VLOOKUP($Q69,'TRM Data'!$C$5:$N$201,COLUMN('TRM Data'!$I$2)-COLUMN('TRM Data'!$C$2)+1,FALSE)*$R69)","v":""},{"$f":"IF($Q69=\"\",\"\",IF('Project Information'!$D$33=\"Small Business\",'Project Scope'!$CA69,IF('Project Information'!$D$33=\"Pay for Performance\",'Project Scope'!$CD69,0)))","v":""},null,null,null,{"$f":"IF(AC69<>\"\",\"P\"&VLOOKUP($AC69,'TRM Data'!$C$5:$N$201,COLUMN('TRM Data'!$E$2)-COLUMN('TRM Data'!$C$2)+1,FALSE)&IF($L69=\"Summer\",\"S\",IF($L69=\"Winter\",\"W\",\"Y\")),\"\")","v":""},{"$f":"IF($AD69=0,\"\",VLOOKUP($AC69,'TRM Data'!$C$5:$N$201,COLUMN('TRM Data'!$G$2)-COLUMN('TRM Data'!$C$2)+1,FALSE)*$AD69)","v":""},null,{"$f":"IF($AD69=0,\"\",VLOOKUP($AC69,'TRM Data'!$C$5:$N$201,COLUMN('TRM Data'!$I$2)-COLUMN('TRM Data'!$C$2)+1,FALSE)*$AD69)","v":""},{"$f":"IF($AC69=\"\",\"\",IF('Project Information'!$D$33=\"Small Business\",'Project Scope'!$CB69,IF('Project Information'!$D$33=\"Pay for Performance\",'Project Scope'!$CE69,0)))","v":""},null,"",null,"","","","","","","",{"$f":"IF($Q69=\"\",\"\",IF(AND(ISNUMBER($BW69),ISNUMBER($AR69),$AR69>0),SUM($BL69,$BO69,$BI69)*'Other Data'!$H$83,0))","v":""},{"$f":"IF($Q69=\"\",\"\",IF(AND(ISNUMBER($BW69),ISNUMBER($AR69),$AR69>0),$BW69*'Other Data'!$G$84,0))","v":""},null,"","","","","",{"$f":"IF($AC69=\"\",\"\",IF(AND(ISNUMBER($BX69), ISNUMBER($AZ69),$AZ69>0),SUM($BJ69,$BM69,$BP69)*'Other Data'!$H$83,0))","v":""},{"$f":"IF($AC69=\"\",\"\",IF(AND(ISNUMBER($BX69), ISNUMBER($AZ69),$AZ69>0),$BX69*'Other Data'!$G$84,0))","v":""},null,{"$f":"IF($C69=\"\",\"\",SUM('Ancillary Costs'!$N$91:$N$105)*(SUM($AR69,$AZ69,SUM($AS69,$BA69)*'Project Information'!$D$12)))","v":""},{"$f":"IF($C69=\"\",\"\",SUMIFS('Ancillary Costs'!$N$72:$N$86,'Ancillary Costs'!$FL$72:$FL$86,\"*xx\"&'Project Scope'!$C69&\"xx*\")*(SUM($AR69,$AZ69,SUM($AS69,$BA69)*'Project Information'!$D$12)))","v":""},{"$f":"IFERROR(IF($C69=\"\",\"\",SUMIFS('Ancillary Costs'!$N$8:$N$67,'Ancillary Costs'!$FL$8:$FL$67,\"*xx\"&'Project Scope'!C69&\"xx*\",'Ancillary Costs'!$I$8:$I$67,'Project Scope'!$AN69)*'Project Scope'!$AO69),0)","v":""},{"$f":"IFERROR(IF($C69=\"\",\"\",SUMIFS('Ancillary Costs'!$N$8:$N$67,'Ancillary Costs'!$FL$8:$FL$67,\"*xx\"&'Project Scope'!C69&\"xx*\",'Ancillary Costs'!$I$8:$I$67,'Project Scope'!$AW69)*'Project Scope'!$AX69),0)","v":""},{"$f":"IF($C69=\"\",\"\",IF(SUM($AR69,$AZ69,SUM($AS69,$BA69)*'Project Information'!$D$12)=0,0,SUM($BG69,(SUM($BE69:$BF69))*((SUM($AR69,(IF(ISNUMBER($AS69),$AS69,0)*'Project Information'!$D$12)))/SUM($AR69,$AZ69,SUM($AS69,$BA69)*'Project Information'!$D$12)))))","v":""},{"$f":"IF($C69=\"\",\"\",IF(SUM($AR69,$AZ69,SUM($AS69,$BA69)*'Project Information'!$D$12)=0,0,SUM($BH69,(SUM($BE69:$BF69))*((SUM($AZ69,(IF(ISNUMBER($BA69),$BA69,0)*'Project Information'!$D$12)))/SUM($AR69,$AZ69,SUM($AS69,$BA69)*'Project Information'!$D$12)))))","v":""},null,"","","",{"$f":"IF($C69=\"\",\"\",IF(OR($AS69=\"\",$CX69=\"b\"),0,$AS69*'Project Information'!$D$12))","v":""},{"$f":"IF($C69=\"\",\"\",IF(OR($BA69=\"\",$CX69=\"b\"),0,$BA69*'Project Information'!$D$12))","v":""},"","","","","",null,{"$f":"CBAT!$AB69","v":""},{"$f":"CBAT!$BZ69","v":""},0,null,"","",0,{"$f":"IF($Q69=\"\",\"\",IF(OR($CX69<>\"c\",SUM($BY$8:$BY$107)=0),0,ROUND(BW69*MIN('Other Data'!$G$84,'Other Data'!$H$84*IF('Project Information'!$F$10=\"X\",('Project Information'!$L$42-'Project Information'!$L$39),'Project Information'!$L$42)/SUMPRODUCT($BY$8:$BY$107,--($CX$8:$CX$107=\"c\"))),0)))","v":""},{"$f":"IF($AC69=\"\",\"\",IF(OR($CX69<>\"c\",SUM($BY$8:$BY$107)=0),0,ROUND(BX69*MIN('Other Data'!$G$84,'Other Data'!$H$84*IF('Project Information'!$F$10=\"X\",('Project Information'!$L$42-'Project Information'!$L$39),'Project Information'!$L$42)/SUMPRODUCT($BY$8:$BY$107,--($CX$8:$CX$107=\"c\"))),0)))","v":""},0,null,"","",{"$f":"IF($J69=\"\",\"\",VLOOKUP($J69,'TRM Data'!$R$4:$S$168,2,FALSE))","v":""},"","","",null,{"$f":"IF($CV69=0,\"\",CBAT!$DJ69)","v":""},null,null,1,1,0,1,0,null,{"$f":"IF(OR($CV69=0,ISBLANK('Project Information'!$D$44)),\"\",IF(AND($CV69=1,$CO69<1,$G69=\"yes\"),\"a\",IF($CO69<1,\"b\",\"c\")))","v":""}]
[0,63,null,null,null,null,null,{"$f":"IF($C70=\"\",\"\",IF(COUNTIF('Project Information'!$J$9:BG$9,$C70)<>1,\"\",INDEX('Project Information'!$J$8:$BG$8,1,MATCH($C70,'Project Information'!$J$9:BG$9,0))))","v":""},null,null,{"$f":"LOOKUP(2,1/(COUNTIF($K$7:K69,$Q$8:$Q$108)=0),$Q$8:$Q$108)","v":{"$error":"#N/A"}},{"$f":"IF(OR('Project Information'!$D$32=\"\",C70=\"\"),\"\",'Project Information'!$D$32)","v":""},{"$f":"IF($C70=\"\",\"\",IF(COUNTIF('Project Information'!$J$9:$BG$9,$C70)=1,HLOOKUP(C70,'Project Information'!$J$9:$BG$10,2,FALSE),0))","v":""},null,null,null,null,null,null,null,{"$f":"IF(Q70<>\"\",IF('Project Information'!$D$33=\"Small Business\",\"I\",\"P\")&VLOOKUP($Q70,'TRM Data'!$C$5:$N$201,COLUMN('TRM Data'!$E$2)-COLUMN('TRM Data'!$C$2)+1,FALSE)&IF($L70=\"Summer\",\"S\",IF($L70=\"Winter\",\"W\",\"Y\")),\"\")","v":""},{"$f":"IF(OR($F70=\"Controls\",$F70=\"\"),\"\",VLOOKUP($Q70,'TRM Data'!$C$5:$N$201,COLUMN('TRM Data'!$F$2)-COLUMN('TRM Data'!$C$2)+1,FALSE))","v":""},null,{"$f":"IF($R70=0,\"\",VLOOKUP($Q70,'TRM Data'!$C$5:$N$201,COLUMN('TRM Data'!$G$2)-COLUMN('TRM Data'!$C$2)+1,FALSE)*$R70)","v":""},null,{"$f":"IF($R70=0,\"\",VLOOKUP($Q70,'TRM Data'!$C$5:$N$201,COLUMN('TRM Data'!$I$2)-COLUMN('TRM Data'!$C$2)+1,FALSE)*$R70)","v":""},{"$f":"IF($Q70=\"\",\"\",IF('Project Information'!$D$33=\"Small Business\",'Project Scope'!$CA70,IF('Project Information'!$D$33=\"Pay for Performance\",'Project Scope'!$CD70,0)))","v":""},null,null,null,{"$f":"IF(AC70<>\"\",\"P\"&VLOOKUP($AC70,'TRM Data'!$C$5:$N$201,COLUMN('TRM Data'!$E$2)-COLUMN('TRM Data'!$C$2)+1,FALSE)&IF($L70=\"Summer\",\"S\",IF($L70=\"Winter\",\"W\",\"Y\")),\"\")","v":""},{"$f":"IF($AD70=0,\"\",VLOOKUP($AC70,'TRM Data'!$C$5:$N$201,COLUMN('TRM Data'!$G$2)-COLUMN('TRM Data'!$C$2)+1,FALSE)*$AD70)","v":""},null,{"$f":"IF($AD70=0,\"\",VLOOKUP($AC70,'TRM Data'!$C$5:$N$201,COLUMN('TRM Data'!$I$2)-COLUMN('TRM Data'!$C$2)+1,FALSE)*$AD70)","v":""},{"$f":"IF($AC70=\"\",\"\",IF('Project Information'!$D$33=\"Small Business\",'Project Scope'!$CB70,IF('Project Information'!$D$33=\"Pay for Performance\",'Project Scope'!$CE70,0)))","v":""},null,"",null,"","","","","","","",{"$f":"IF($Q70=\"\",\"\",IF(AND(ISNUMBER($BW70),ISNUMBER($AR70),$AR70>0),SUM($BL70,$BO70,$BI70)*'Other Data'!$H$83,0))","v":""},{"$f":"IF($Q70=\"\",\"\",IF(AND(ISNUMBER($BW70),ISNUMBER($AR70),$AR70>0),$BW70*'Other Data'!$G$84,0))","v":""},null,"","","","","",{"$f":"IF($AC70=\"\",\"\",IF(AND(ISNUMBER($BX70), ISNUMBER($AZ70),$AZ70>0),SUM($BJ70,$BM70,$BP70)*'Other Data'!$H$83,0))","v":""},{"$f":"IF($AC70=\"\",\"\",IF(AND(ISNUMBER($BX70), ISNUMBER($AZ70),$AZ70>0),$BX70*'Other Data'!$G$84,0))","v":""},null,{"$f":"IF($C70=\"\",\"\",SUM('Ancillary Costs'!$N$91:$N$105)*(SUM($AR70,$AZ70,SUM($AS70,$BA70)*'Project Information'!$D$12)))","v":""},{"$f":"IF($C70=\"\",\"\",SUMIFS('Ancillary Costs'!$N$72:$N$86,'Ancillary Costs'!$FL$72:$FL$86,\"*xx\"&'Project Scope'!$C70&\"xx*\")*(SUM($AR70,$AZ70,SUM($AS70,$BA70)*'Project Information'!$D$12)))","v":""},{"$f":"IFERROR(IF($C70=\"\",\"\",SUMIFS('Ancillary Costs'!$N$8:$N$67,'Ancillary Costs'!$FL$8:$FL$67,\"*xx\"&'Project Scope'!C70&\"xx*\",'Ancillary Costs'!$I$8:$I$67,'Project Scope'!$AN70)*'Project Scope'!$AO70),0)","v":""},{"$f":"IFERROR(IF($C70=\"\",\"\",SUMIFS('Ancillary Costs'!$N$8:$N$67,'Ancillary Costs'!$FL$8:$FL$67,\"*xx\"&'Project Scope'!C70&\"xx*\",'Ancillary Costs'!$I$8:$I$67,'Project Scope'!$AW70)*'Project Scope'!$AX70),0)","v":""},{"$f":"IF($C70=\"\",\"\",IF(SUM($AR70,$AZ70,SUM($AS70,$BA70)*'Project Information'!$D$12)=0,0,SUM($BG70,(SUM($BE70:$BF70))*((SUM($AR70,(IF(ISNUMBER($AS70),$AS70,0)*'Project Information'!$D$12)))/SUM($AR70,$AZ70,SUM($AS70,$BA70)*'Project Information'!$D$12)))))","v":""},{"$f":"IF($C70=\"\",\"\",IF(SUM($AR70,$AZ70,SUM($AS70,$BA70)*'Project Information'!$D$12)=0,0,SUM($BH70,(SUM($BE70:$BF70))*((SUM($AZ70,(IF(ISNUMBER($BA70),$BA70,0)*'Project Information'!$D$12)))/SUM($AR70,$AZ70,SUM($AS70,$BA70)*'Project Information'!$D$12)))))","v":""},null,"","","",{"$f":"IF($C70=\"\",\"\",IF(OR($AS70=\"\",$CX70=\"b\"),0,$AS70*'Project Information'!$D$12))","v":""},{"$f":"IF($C70=\"\",\"\",IF(OR($BA70=\"\",$CX70=\"b\"),0,$BA70*'Project Information'!$D$12))","v":""},"","","","","",null,{"$f":"CBAT!$AB70","v":""},{"$f":"CBAT!$BZ70","v":""},0,null,"","",0,{"$f":"IF($Q70=\"\",\"\",IF(OR($CX70<>\"c\",SUM($BY$8:$BY$107)=0),0,ROUND(BW70*MIN('Other Data'!$G$84,'Other Data'!$H$84*IF('Project Information'!$F$10=\"X\",('Project Information'!$L$42-'Project Information'!$L$39),'Project Information'!$L$42)/SUMPRODUCT($BY$8:$BY$107,--($CX$8:$CX$107=\"c\"))),0)))","v":""},{"$f":"IF($AC70=\"\",\"\",IF(OR($CX70<>\"c\",SUM($BY$8:$BY$107)=0),0,ROUND(BX70*MIN('Other Data'!$G$84,'Other Data'!$H$84*IF('Project Information'!$F$10=\"X\",('Project Information'!$L$42-'Project Information'!$L$39),'Project Information'!$L$42)/SUMPRODUCT($BY$8:$BY$107,--($CX$8:$CX$107=\"c\"))),0)))","v":""},0,null,"","",{"$f":"IF($J70=\"\",\"\",VLOOKUP($J70,'TRM Data'!$R$4:$S$168,2,FALSE))","v":""},"","","",null,{"$f":"IF($CV70=0,\"\",CBAT!$DJ70)","v":""},null,null,1,1,0,1,0,null,{"$f":"IF(OR($CV70=0,ISBLANK('Project Information'!$D$44)),\"\",IF(AND($CV70=1,$CO70<1,$G70=\"yes\"),\"a\",IF($CO70<1,\"b\",\"c\")))","v":""}]
[0,64,null,null,null,null,null,{"$f":"IF($C71=\"\",\"\",IF(COUNTIF('Project Information'!$J$9:BG$9,$C71)<>1,\"\",INDEX('Project Information'!$J$8:$BG$8,1,MATCH($C71,'Project Information'!$J$9:BG$9,0))))","v":""},null,null,{"$f":"LOOKUP(2,1/(COUNTIF($K$7:K70,$Q$8:$Q$108)=0),$Q$8:$Q$108)","v":{"$error":"#N/A"}},{"$f":"IF(OR('Project Information'!$D$32=\"\",C71=\"\"),\"\",'Project Information'!$D$32)","v":""},{"$f":"IF($C71=\"\",\"\",IF(COUNTIF('Project Information'!$J$9:$BG$9,$C71)=1,HLOOKUP(C71,'Project Information'!$J$9:$BG$10,2,FALSE),0))","v":""},null,null,null,null,null,null,null,{"$f":"IF(Q71<>\"\",IF('Project Information'!$D$33=\"Small Business\",\"I\",\"P\")&VLOOKUP($Q71,'TRM Data'!$C$5:$N$201,COLUMN('TRM Data'!$E$2)-COLUMN('TRM Data'!$C$2)+1,FALSE)&IF($L71=\"Summer\",\"S\",IF($L71=\"Winter\",\"W\",\"Y\")),\"\")","v":""},{"$f":"IF(OR($F71=\"Controls\",$F71=\"\"),\"\",VLOOKUP($Q71,'TRM Data'!$C$5:$N$201,COLUMN('TRM Data'!$F$2)-COLUMN('TRM Data'!$C$2)+1,FALSE))","v":""},null,{"$f":"IF($R71=0,\"\",VLOOKUP($Q71,'TRM Data'!$C$5:$N$201,COLUMN('TRM Data'!$G$2)-COLUMN('TRM Data'!$C$2)+1,FALSE)*$R71)","v":""},null,{"$f":"IF($R71=0,\"\",VLOOKUP($Q71,'TRM Data'!$C$5:$N$201,COLUMN('TRM Data'!$I$2)-COLUMN('TRM Data'!$C$2)+1,FALSE)*$R71)","v":""},{"$f":"IF($Q71=\"\",\"\",IF('Project Information'!$D$33=\"Small Business\",'Project Scope'!$CA71,IF('Project Information'!$D$33=\"Pay for Performance\",'Project Scope'!$CD71,0)))","v":""},null,null,null,{"$f":"IF(AC71<>\"\",\"P\"&VLOOKUP($AC71,'TRM Data'!$C$5:$N$201,COLUMN('TRM Data'!$E$2)-COLUMN('TRM Data'!$C$2)+1,FALSE)&IF($L71=\"Summer\",\"S\",IF($L71=\"Winter\",\"W\",\"Y\")),\"\")","v":""},{"$f":"IF($AD71=0,\"\",VLOOKUP($AC71,'TRM Data'!$C$5:$N$201,COLUMN('TRM Data'!$G$2)-COLUMN('TRM Data'!$C$2)+1,FALSE)*$AD71)","v":""},null,{"$f":"IF($AD71=0,\"\",VLOOKUP($AC71,'TRM Data'!$C$5:$N$201,COLUMN('TRM Data'!$I$2)-COLUMN('TRM Data'!$C$2)+1,FALSE)*$AD71)","v":""},{"$f":"IF($AC71=\"\",\"\",IF('Project Information'!$D$33=\"Small Business\",'Project Scope'!$CB71,IF('Project Information'!$D$33=\"Pay for Performance\",'Project Scope'!$CE71,0)))","v":""},null,"",null,"","","","","","","",{"$f":"IF($Q71=\"\",\"\",IF(AND(ISNUMBER($BW71),ISNUMBER($AR71),$AR71>0),SUM($BL71,$BO71,$BI71)*'Other Data'!$H$83,0))","v":""},{"$f":"IF($Q71=\"\",\"\",IF(AND(ISNUMBER($BW71),ISNUMBER($AR71),$AR71>0),$BW71*'Other Data'!$G$84,0))","v":""},null,"","","","","",{"$f":"IF($AC71=\"\",\"\",IF(AND(ISNUMBER($BX71), ISNUMBER($AZ71),$AZ71>0),SUM($BJ71,$BM71,$BP71)*'Other Data'!$H$83,0))","v":""},{"$f":"IF($AC71=\"\",\"\",IF(AND(ISNUMBER($BX71), ISNUMBER($AZ71),$AZ71>0),$BX71*'Other Data'!$G$84,0))","v":""},null,{"$f":"IF($C71=\"\",\"\",SUM('Ancillary Costs'!$N$91:$N$105)*(SUM($AR71,$AZ71,SUM($AS71,$BA71)*'Project Information'!$D$12)))","v":""},{"$f":"IF($C71=\"\",\"\",SUMIFS('Ancillary Costs'!$N$72:$N$86,'Ancillary Costs'!$FL$72:$FL$86,\"*xx\"&'Project Scope'!$C71&\"xx*\")*(SUM($AR71,$AZ71,SUM($AS71,$BA71)*'Project Information'!$D$12)))","v":""},{"$f":"IFERROR(IF($C71=\"\",\"\",SUMIFS('Ancillary Costs'!$N$8:$N$67,'Ancillary Costs'!$FL$8:$FL$67,\"*xx\"&'Project Scope'!C71&\"xx*\",'Ancillary Costs'!$I$8:$I$67,'Project Scope'!$AN71)*'Project Scope'!$AO71),0)","v":""},{"$f":"IFERROR(IF($C71=\"\",\"\",SUMIFS('Ancillary Costs'!$N$8:$N$67,'Ancillary Costs'!$FL$8:$FL$67,\"*xx\"&'Project Scope'!C71&\"xx*\",'Ancillary Costs'!$I$8:$I$67,'Project Scope'!$AW71)*'Project Scope'!$AX71),0)","v":""},{"$f":"IF($C71=\"\",\"\",IF(SUM($AR71,$AZ71,SUM($AS71,$BA71)*'Project Information'!$D$12)=0,0,SUM($BG71,(SUM($BE71:$BF71))*((SUM($AR71,(IF(ISNUMBER($AS71),$AS71,0)*'Project Information'!$D$12)))/SUM($AR71,$AZ71,SUM($AS71,$BA71)*'Project Information'!$D$12)))))","v":""},{"$f":"IF($C71=\"\",\"\",IF(SUM($AR71,$AZ71,SUM($AS71,$BA71)*'Project Information'!$D$12)=0,0,SUM($BH71,(SUM($BE71:$BF71))*((SUM($AZ71,(IF(ISNUMBER($BA71),$BA71,0)*'Project Information'!$D$12)))/SUM($AR71,$AZ71,SUM($AS71,$BA71)*'Project Information'!$D$12)))))","v":""},null,"","","",{"$f":"IF($C71=\"\",\"\",IF(OR($AS71=\"\",$CX71=\"b\"),0,$AS71*'Project Information'!$D$12))","v":""},{"$f":"IF($C71=\"\",\"\",IF(OR($BA71=\"\",$CX71=\"b\"),0,$BA71*'Project Information'!$D$12))","v":""},"","","","","",null,{"$f":"CBAT!$AB71","v":""},{"$f":"CBAT!$BZ71","v":""},0,null,"","",0,{"$f":"IF($Q71=\"\",\"\",IF(OR($CX71<>\"c\",SUM($BY$8:$BY$107)=0),0,ROUND(BW71*MIN('Other Data'!$G$84,'Other Data'!$H$84*IF('Project Information'!$F$10=\"X\",('Project Information'!$L$42-'Project Information'!$L$39),'Project Information'!$L$42)/SUMPRODUCT($BY$8:$BY$107,--($CX$8:$CX$107=\"c\"))),0)))","v":""},{"$f":"IF($AC71=\"\",\"\",IF(OR($CX71<>\"c\",SUM($BY$8:$BY$107)=0),0,ROUND(BX71*MIN('Other Data'!$G$84,'Other Data'!$H$84*IF('Project Information'!$F$10=\"X\",('Project Information'!$L$42-'Project Information'!$L$39),'Project Information'!$L$42)/SUMPRODUCT($BY$8:$BY$107,--($CX$8:$CX$107=\"c\"))),0)))","v":""},0,null,"","",{"$f":"IF($J71=\"\",\"\",VLOOKUP($J71,'TRM Data'!$R$4:$S$168,2,FALSE))","v":""},"","","",null,{"$f":"IF($CV71=0,\"\",CBAT!$DJ71)","v":""},null,null,1,1,0,1,0,null,{"$f":"IF(OR($CV71=0,ISBLANK('Project Information'!$D$44)),\"\",IF(AND($CV71=1,$CO71<1,$G71=\"yes\"),\"a\",IF($CO71<1,\"b\",\"c\")))","v":""}]
[{"$f":"11-(COUNTBLANK(C72)+COUNTBLANK(E72:F72)+COUNTBLANK(I72:J72)+COUNTBLANK(N72)+COUNTBLANK(P72:R72)+COUNTBLANK(AC72:AD72))","v":0},65,null,null,null,null,null,{"$f":"IF($C72=\"\",\"\",IF(COUNTIF('Project Information'!$J$9:BG$9,$C72)<>1,\"\",INDEX('Project Information'!$J$8:$BG$8,1,MATCH($C72,'Project Information'!$J$9:BG$9,0))))","v":""},null,null,{"$f":"LOOKUP(2,1/(COUNTIF($K$7:K71,$Q$8:$Q$108)=0),$Q$8:$Q$108)","v":{"$error":"#N/A"}},{"$f":"IF(OR('Project Information'!$D$32=\"\",C72=\"\"),\"\",'Project Information'!$D$32)","v":""},{"$f":"IF($C72=\"\",\"\",IF(COUNTIF('Project Information'!$J$9:$BG$9,$C72)=1,HLOOKUP(C72,'Project Information'!$J$9:$BG$10,2,FALSE),0))","v":""},null,null,null,null,null,null,null,{"$f":"IF(Q72<>\"\",IF('Project Information'!$D$33=\"Small Business\",\"I\",\"P\")&VLOOKUP($Q72,'TRM Data'!$C$5:$N$201,COLUMN('TRM Data'!$E$2)-COLUMN('TRM Data'!$C$2)+1,FALSE)&IF($L72=\"Summer\",\"S\",IF($L72=\"Winter\",\"W\",\"Y\")),\"\")","v":""},{"$f":"IF(OR($F72=\"Controls\",$F72=\"\"),\"\",VLOOKUP($Q72,'TRM Data'!$C$5:$N$201,COLUMN('TRM Data'!$F$2)-COLUMN('TRM Data'!$C$2)+1,FALSE))","v":""},null,{"$f":"IF($R72=0,\"\",VLOOKUP($Q72,'TRM Data'!$C$5:$N$201,COLUMN('TRM Data'!$G$2)-COLUMN('TRM Data'!$C$2)+1,FALSE)*$R72)","v":""},null,{"$f":"IF($R72=0,\"\",VLOOKUP($Q72,'TRM Data'!$C$5:$N$201,COLUMN('TRM Data'!$I$2)-COLUMN('TRM Data'!$C$2)+1,FALSE)*$R72)","v":""},{"$f":"IF($Q72=\"\",\"\",IF('Project Information'!$D$33=\"Small Business\",'Project Scope'!$CA72,IF('Project Information'!$D$33=\"Pay for Performance\",'Project Scope'!$CD72,0)))","v":""},null,null,null,{"$f":"IF(AC72<>\"\",\"P\"&VLOOKUP($AC72,'TRM Data'!$C$5:$N$201,COLUMN('TRM Data'!$E$2)-COLUMN('TRM Data'!$C$2)+1,FALSE)&IF($L72=\"Summer\",\"S\",IF($L72=\"Winter\",\"W\",\"Y\")),\"\")","v":""},{"$f":"IF($AD72=0,\"\",VLOOKUP($AC72,'TRM Data'!$C$5:$N$201,COLUMN('TRM Data'!$G$2)-COLUMN('TRM Data'!$C$2)+1,FALSE)*$AD72)","v":""},null,{"$f":"IF($AD72=0,\"\",VLOOKUP($AC72,'TRM Data'!$C$5:$N$201,COLUMN('TRM Data'!$I$2)-COLUMN('TRM Data'!$C$2)+1,FALSE)*$AD72)","v":""},{"$f":"IF($AC72=\"\",\"\",IF('Project Information'!$D$33=\"Small Business\",'Project Scope'!$CB72,IF('Project Information'!$D$33=\"Pay for Performance\",'Project Scope'!$CE72,0)))","v":""},null,{"$f":"IF($C72=\"\",\"\",SUM($AA72,$AI72))","v":""},null,"","","","","","","",{"$f":"IF($Q72=\"\",\"\",IF(AND(ISNUMBER($BW72),ISNUMBER($AR72),$AR72>0),SUM($BL72,$BO72,$BI72)*'Other Data'!$H$83,0))","v":""},{"$f":"IF($Q72=\"\",\"\",IF(AND(ISNUMBER($BW72),ISNUMBER($AR72),$AR72>0),$BW72*'Other Data'!$G$84,0))","v":""},null,"","","","","",{"$f":"IF($AC72=\"\",\"\",IF(AND(ISNUMBER($BX72), ISNUMBER($AZ72),$AZ72>0),SUM($BJ72,$BM72,$BP72)*'Other Data'!$H$83,0))","v":""},{"$f":"IF($AC72=\"\",\"\",IF(AND(ISNUMBER($BX72), ISNUMBER($AZ72),$AZ72>0),$BX72*'Other Data'!$G$84,0))","v":""},null,{"$f":"IF($C72=\"\",\"\",SUM('Ancillary Costs'!$N$91:$N$105)*(SUM($AR72,$AZ72,SUM($AS72,$BA72)*'Project Information'!$D$12)))","v":""},{"$f":"IF($C72=\"\",\"\",SUMIFS('Ancillary Costs'!$N$72:$N$86,'Ancillary Costs'!$FL$72:$FL$86,\"*xx\"&'Project Scope'!$C72&\"xx*\")*(SUM($AR72,$AZ72,SUM($AS72,$BA72)*'Project Information'!$D$12)))","v":""},{"$f":"IFERROR(IF($C72=\"\",\"\",SUMIFS('Ancillary Costs'!$N$8:$N$67,'Ancillary Costs'!$FL$8:$FL$67,\"*xx\"&'Project Scope'!C72&\"xx*\",'Ancillary Costs'!$I$8:$I$67,'Project Scope'!$AN72)*'Project Scope'!$AO72),0)","v":""},{"$f":"IFERROR(IF($C72=\"\",\"\",SUMIFS('Ancillary Costs'!$N$8:$N$67,'Ancillary Costs'!$FL$8:$FL$67,\"*xx\"&'Project Scope'!C72&\"xx*\",'Ancillary Costs'!$I$8:$I$67,'Project Scope'!$AW72)*'Project Scope'!$AX72),0)","v":""},{"$f":"IF($C72=\"\",\"\",IF(SUM($AR72,$AZ72,SUM($AS72,$BA72)*'Project Information'!$D$12)=0,0,SUM($BG72,(SUM($BE72:$BF72))*((SUM($AR72,(IF(ISNUMBER($AS72),$AS72,0)*'Project Information'!$D$12)))/SUM($AR72,$AZ72,SUM($AS72,$BA72)*'Project Information'!$D$12)))))","v":""},{"$f":"IF($C72=\"\",\"\",IF(SUM($AR72,$AZ72,SUM($AS72,$BA72)*'Project Information'!$D$12)=0,0,SUM($BH72,(SUM($BE72:$BF72))*((SUM($AZ72,(IF(ISNUMBER($BA72),$BA72,0)*'Project Information'!$D$12)))/SUM($AR72,$AZ72,SUM($AS72,$BA72)*'Project Information'!$D$12)))))","v":""},null,"","","",{"$f":"IF($C72=\"\",\"\",IF(OR($AS72=\"\",$CX72=\"b\"),0,$AS72*'Project Information'!$D$12))","v":""},{"$f":"IF($C72=\"\",\"\",IF(OR($BA72=\"\",$CX72=\"b\"),0,$BA72*'Project Information'!$D$12))","v":""},"","","","","",null,{"$f":"CBAT!$AB72","v":""},{"$f":"CBAT!$BZ72","v":""},0,null,"","",0,{"$f":"IF($Q72=\"\",\"\",IF(OR($CX72<>\"c\",SUM($BY$8:$BY$107)=0),0,ROUND(BW72*MIN('Other Data'!$G$84,'Other Data'!$H$84*IF('Project Information'!$F$10=\"X\",('Project Information'!$L$42-'Project Information'!$L$39),'Project Information'!$L$42)/SUMPRODUCT($BY$8:$BY$107,--($CX$8:$CX$107=\"c\"))),0)))","v":""},{"$f":"IF($AC72=\"\",\"\",IF(OR($CX72<>\"c\",SUM($BY$8:$BY$107)=0),0,ROUND(BX72*MIN('Other Data'!$G$84,'Other Data'!$H$84*IF('Project Information'!$F$10=\"X\",('Project Information'!$L$42-'Project Information'!$L$39),'Project Information'!$L$42)/SUMPRODUCT($BY$8:$BY$107,--($CX$8:$CX$107=\"c\"))),0)))","v":""},0,null,"","",{"$f":"IF($J72=\"\",\"\",VLOOKUP($J72,'TRM Data'!$R$4:$S$168,2,FALSE))","v":""},"","","",null,{"$f":"IF($CV72=0,\"\",CBAT!$DJ72)","v":""},null,null,1,1,0,1,0,null,{"$f":"IF(OR($CV72=0,ISBLANK('Project Information'!$D$44)),\"\",IF(AND($CV72=1,$CO72<1,$G72=\"yes\"),\"a\",IF($CO72<1,\"b\",\"c\")))","v":""}]
[0,66,null,null,null,null,null,{"$f":"IF($C73=\"\",\"\",IF(COUNTIF('Project Information'!$J$9:BG$9,$C73)<>1,\"\",INDEX('Project Information'!$J$8:$BG$8,1,MATCH($C73,'Project Information'!$J$9:BG$9,0))))","v":""},null,null,{"$f":"LOOKUP(2,1/(COUNTIF($K$7:K72,$Q$8:$Q$108)=0),$Q$8:$Q$108)","v":{"$error":"#N/A"}},{"$f":"IF(OR('Project Information'!$D$32=\"\",C73=\"\"),\"\",'Project Information'!$D$32)","v":""},{"$f":"IF($C73=\"\",\"\",IF(COUNTIF('Project Information'!$J$9:$BG$9,$C73)=1,HLOOKUP(C73,'Project Information'!$J$9:$BG$10,2,FALSE),0))","v":""},null,null,null,null,null,null,null,{"$f":"IF(Q73<>\"\",IF('Project Information'!$D$33=\"Small Business\",\"I\",\"P\")&VLOOKUP($Q73,'TRM Data'!$C$5:$N$201,COLUMN('TRM Data'!$E$2)-COLUMN('TRM Data'!$C$2)+1,FALSE)&IF($L73=\"Summer\",\"S\",IF($L73=\"Winter\",\"W\",\"Y\")),\"\")","v":""},{"$f":"IF(OR($F73=\"Controls\",$F73=\"\"),\"\",VLOOKUP($Q73,'TRM Data'!$C$5:$N$201,COLUMN('TRM Data'!$F$2)-COLUMN('TRM Data'!$C$2)+1,FALSE))","v":""},null,{"$f":"IF($R73=0,\"\",VLOOKUP($Q73,'TRM Data'!$C$5:$N$201,COLUMN('TRM Data'!$G$2)-COLUMN('TRM Data'!$C$2)+1,FALSE)*$R73)","v":""},null,{"$f":"IF($R73=0,\"\",VLOOKUP($Q73,'TRM Data'!$C$5:$N$201,COLUMN('TRM Data'!$I$2)-COLUMN('TRM Data'!$C$2)+1,FALSE)*$R73)","v":""},{"$f":"IF($Q73=\"\",\"\",IF('Project Information'!$D$33=\"Small Business\",'Project Scope'!$CA73,IF('Project Information'!$D$33=\"Pay for Performance\",'Project Scope'!$CD73,0)))","v":""},null,null,null,{"$f":"IF(AC73<>\"\",\"P\"&VLOOKUP($AC73,'TRM Data'!$C$5:$N$201,COLUMN('TRM Data'!$E$2)-COLUMN('TRM Data'!$C$2)+1,FALSE)&IF($L73=\"Summer\",\"S\",IF($L73=\"Winter\",\"W\",\"Y\")),\"\")","v":""},{"$f":"IF($AD73=0,\"\",VLOOKUP($AC73,'TRM Data'!$C$5:$N$201,COLUMN('TRM Data'!$G$2)-COLUMN('TRM Data'!$C$2)+1,FALSE)*$AD73)","v":""},null,{"$f":"IF($AD73=0,\"\",VLOOKUP($AC73,'TRM Data'!$C$5:$N$201,COLUMN('TRM Data'!$I$2)-COLUMN('TRM Data'!$C$2)+1,FALSE)*$AD73)","v":""},{"$f":"IF($AC73=\"\",\"\",IF('Project Information'!$D$33=\"Small Business\",'Project Scope'!$CB73,IF('Project Information'!$D$33=\"Pay for Performance\",'Project Scope'!$CE73,0)))","v":""},null,"",null,{"$f":"IF(OR($C73=\"\",$F73=\"controls\"),\"\",IF($P73=\"\",\"\", $P73))","v":""},{"$f":"IF(OR($C73=\"\",$F73=\"controls\"),\"\",IF($Q73=\"\",\"\", $Q73))","v":""},{"$f":"IF(OR($C73=\"\"),\"\",IF($R73=\"\",0, $R73))","v":""},"",{"$f":"IF(OR($C73=\"\",$F73=\"controls\"),\"\",IF($W73<>\"\",$W73,0))","v":""},{"$f":"IF(OR($C73=\"\",$F73=\"controls\"),\"\",IF($Y73<>\"\",$Y73,0))","v":""},"",{"$f":"IF($Q73=\"\",\"\",IF(AND(ISNUMBER($BW73),ISNUMBER($AR73),$AR73>0),SUM($BL73,$BO73,$BI73)*'Other Data'!$H$83,0))","v":""},{"$f":"IF($Q73=\"\",\"\",IF(AND(ISNUMBER($BW73),ISNUMBER($AR73),$AR73>0),$BW73*'Other Data'!$G$84,0))","v":""},null,"","","",{"$f":"IF(OR($C73=\"\",$F73=\"fixtures\"),\"\",IF($AG73<>\"\",$AG73,0))","v":""},"",{"$f":"IF($AC73=\"\",\"\",IF(AND(ISNUMBER($BX73), ISNUMBER($AZ73),$AZ73>0),SUM($BJ73,$BM73,$BP73)*'Other Data'!$H$83,0))","v":""},{"$f":"IF($AC73=\"\",\"\",IF(AND(ISNUMBER($BX73), ISNUMBER($AZ73),$AZ73>0),$BX73*'Other Data'!$G$84,0))","v":""},null,{"$f":"IF($C73=\"\",\"\",SUM('Ancillary Costs'!$N$91:$N$105)*(SUM($AR73,$AZ73,SUM($AS73,$BA73)*'Project Information'!$D$12)))","v":""},{"$f":"IF($C73=\"\",\"\",SUMIFS('Ancillary Costs'!$N$72:$N$86,'Ancillary Costs'!$FL$72:$FL$86,\"*xx\"&'Project Scope'!$C73&\"xx*\")*(SUM($AR73,$AZ73,SUM($AS73,$BA73)*'Project Information'!$D$12)))","v":""},{"$f":"IFERROR(IF($C73=\"\",\"\",SUMIFS('Ancillary Costs'!$N$8:$N$67,'Ancillary Costs'!$FL$8:$FL$67,\"*xx\"&'Project Scope'!C73&\"xx*\",'Ancillary Costs'!$I$8:$I$67,'Project Scope'!$AN73)*'Project Scope'!$AO73),0)","v":""},{"$f":"IFERROR(IF($C73=\"\",\"\",SUMIFS('Ancillary Costs'!$N$8:$N$67,'Ancillary Costs'!$FL$8:$FL$67,\"*xx\"&'Project Scope'!C73&\"xx*\",'Ancillary Costs'!$I$8:$I$67,'Project Scope'!$AW73)*'Project Scope'!$AX73),0)","v":""},{"$f":"IF($C73=\"\",\"\",IF(SUM($AR73,$AZ73,SUM($AS73,$BA73)*'Project Information'!$D$12)=0,0,SUM($BG73,(SUM($BE73:$BF73))*((SUM($AR73,(IF(ISNUMBER($AS73),$AS73,0)*'Project Information'!$D$12)))/SUM($AR73,$AZ73,SUM($AS73,$BA73)*'Project Information'!$D$12)))))","v":""},{"$f":"IF($C73=\"\",\"\",IF(SUM($AR73,$AZ73,SUM($AS73,$BA73)*'Project Information'!$D$12)=0,0,SUM($BH73,(SUM($BE73:$BF73))*((SUM($AZ73,(IF(ISNUMBER($BA73),$BA73,0)*'Project Information'!$D$12)))/SUM($AR73,$AZ73,SUM($AS73,$BA73)*'Project Information'!$D$12)))))","v":""},null,"","","",{"$f":"IF($C73=\"\",\"\",IF(OR($AS73=\"\",$CX73=\"b\"),0,$AS73*'Project Information'!$D$12))","v":""},{"$f":"IF($C73=\"\",\"\",IF(OR($BA73=\"\",$CX73=\"b\"),0,$BA73*'Project Information'!$D$12))","v":""},"","","","","",null,{"$f":"CBAT!$AB73","v":""},{"$f":"CBAT!$BZ73","v":""},{"$f":"SUM($BW73,$BX73)","v":0},null,"","",{"$f":"SUM($CB73,$CA73)","v":0},{"$f":"IF($Q73=\"\",\"\",IF(OR($CX73<>\"c\",SUM($BY$8:$BY$107)=0),0,ROUND(BW73*MIN('Other Data'!$G$84,'Other Data'!$H$84*IF('Project Information'!$F$10=\"X\",('Project Information'!$L$42-'Project Information'!$L$39),'Project Information'!$L$42)/SUMPRODUCT($BY$8:$BY$107,--($CX$8:$CX$107=\"c\"))),0)))","v":""},{"$f":"IF($AC73=\"\",\"\",IF(OR($CX73<>\"c\",SUM($BY$8:$BY$107)=0),0,ROUND(BX73*MIN('Other Data'!$G$84,'Other Data'!$H$84*IF('Project Information'!$F$10=\"X\",('Project Information'!$L$42-'Project Information'!$L$39),'Project Information'!$L$42)/SUMPRODUCT($BY$8:$BY$107,--($CX$8:$CX$107=\"c\"))),0)))","v":""},{"$f":"SUM(CD73:CE73)","v":0},null,"","",{"$f":"IF($J73=\"\",\"\",VLOOKUP($J73,'TRM Data'!$R$4:$S$168,2,FALSE))","v":""},{"$f":"IF($AQ73<>\"\",$AQ73,IF($CJ73<>\"\",$CJ73,\"\"))","v":""},{"$f":"IF(AND(CJ73<>\"\",N73<>\"\"),CJ73*N73,\"\")","v":""},{"$f":"IF(F73=\"Controls\",CL73,IF(CK73=\"\",\"\",CK73*AO73))","v":""},null,{"$f":"IF($CV73=0,\"\",CBAT!$DJ73)","v":""},null,null,{"$f":"IF(AND(F73=\"fixtures and controls\",OR(R73=0,AD73=0,OR(W73=0,Y73=0,AG73=0))),0,1)","v":1},{"$f":"IF(AND(F73=\"fixtures\",OR(R73=0,OR(W73=0,Y73=0))),0,1)","v":1},{"$f":"IF(N73=\"\",0,1)","v":0},{"$f":"IF(AND(F73=\"controls\",OR(AD73=0,AG73=0)),0,1)","v":1},{"$f":"IF(SUM(CR73:CU73)<4,0,1)","v":0},null,{"$f":"IF(OR($CV73=0,ISBLANK('Project Information'!$D$44)),\"\",IF(AND($CV73=1,$CO73<1,$G73=\"yes\"),\"a\",IF($CO73<1,\"b\",\"c\")))","v":""}]
[0,67,null,null,null,null,null,{"$f":"IF($C74=\"\",\"\",IF(COUNTIF('Project Information'!$J$9:BG$9,$C74)<>1,\"\",INDEX('Project Information'!$J$8:$BG$8,1,MATCH($C74,'Project Information'!$J$9:BG$9,0))))","v":""},null,null,{"$f":"LOOKUP(2,1/(COUNTIF($K$7:K73,$Q$8:$Q$108)=0),$Q$8:$Q$108)","v":{"$error":"#N/A"}},{"$f":"IF(OR('Project Information'!$D$32=\"\",C74=\"\"),\"\",'Project Information'!$D$32)","v":""},{"$f":"IF($C74=\"\",\"\",IF(COUNTIF('Project Information'!$J$9:$BG$9,$C74)=1,HLOOKUP(C74,'Project Information'!$J$9:$BG$10,2,FALSE),0))","v":""},null,null,null,null,null,null,null,{"$f":"IF(Q74<>\"\",IF('Project Information'!$D$33=\"Small Business\",\"I\",\"P\")&VLOOKUP($Q74,'TRM Data'!$C$5:$N$201,COLUMN('TRM Data'!$E$2)-COLUMN('TRM Data'!$C$2)+1,FALSE)&IF($L74=\"Summer\",\"S\",IF($L74=\"Winter\",\"W\",\"Y\")),\"\")","v":""},{"$f":"IF(OR($F74=\"Controls\",$F74=\"\"),\"\",VLOOKUP($Q74,'TRM Data'!$C$5:$N$201,COLUMN('TRM Data'!$F$2)-COLUMN('TRM Data'!$C$2)+1,FALSE))","v":""},null,{"$f":"IF($R74=0,\"\",VLOOKUP($Q74,'TRM Data'!$C$5:$N$201,COLUMN('TRM Data'!$G$2)-COLUMN('TRM Data'!$C$2)+1,FALSE)*$R74)","v":""},null,{"$f":"IF($R74=0,\"\",VLOOKUP($Q74,'TRM Data'!$C$5:$N$201,COLUMN('TRM Data'!$I$2)-COLUMN('TRM Data'!$C$2)+1,FALSE)*$R74)","v":""},{"$f":"IF($Q74=\"\",\"\",IF('Project Information'!$D$33=\"Small Business\",'Project Scope'!$CA74,IF('Project Information'!$D$33=\"Pay for Performance\",'Project Scope'!$CD74,0)))","v":""},null,null,null,{"$f":"IF(AC74<>\"\",\"P\"&VLOOKUP($AC74,'TRM Data'!$C$5:$N$201,COLUMN('TRM Data'!$E$2)-COLUMN('TRM Data'!$C$2)+1,FALSE)&IF($L74=\"Summer\",\"S\",IF($L74=\"Winter\",\"W\",\"Y\")),\"\")","v":""},{"$f":"IF($AD74=0,\"\",VLOOKUP($AC74,'TRM Data'!$C$5:$N$201,COLUMN('TRM Data'!$G$2)-COLUMN('TRM Data'!$C$2)+1,FALSE)*$AD74)","v":""},null,{"$f":"IF($AD74=0,\"\",VLOOKUP($AC74,'TRM Data'!$C$5:$N$201,COLUMN('TRM Data'!$I$2)-COLUMN('TRM Data'!$C$2)+1,FALSE)*$AD74)","v":""},{"$f":"IF($AC74=\"\",\"\",IF('Project Information'!$D$33=\"Small Business\",'Project Scope'!$CB74,IF('Project Information'!$D$33=\"Pay for Performance\",'Project Scope'!$CE74,0)))","v":""},null,"",null,"","","","","","","",{"$f":"IF($Q74=\"\",\"\",IF(AND(ISNUMBER($BW74),ISNUMBER($AR74),$AR74>0),SUM($BL74,$BO74,$BI74)*'Other Data'!$H$83,0))","v":""},{"$f":"IF($Q74=\"\",\"\",IF(AND(ISNUMBER($BW74),ISNUMBER($AR74),$AR74>0),$BW74*'Other Data'!$G$84,0))","v":""},null,"","","","","",{"$f":"IF($AC74=\"\",\"\",IF(AND(ISNUMBER($BX74), ISNUMBER($AZ74),$AZ74>0),SUM($BJ74,$BM74,$BP74)*'Other Data'!$H$83,0))","v":""},{"$f":"IF($AC74=\"\",\"\",IF(AND(ISNUMBER($BX74), ISNUMBER($AZ74),$AZ74>0),$BX74*'Other Data'!$G$84,0))","v":""},null,{"$f":"IF($C74=\"\",\"\",SUM('Ancillary Costs'!$N$91:$N$105)*(SUM($AR74,$AZ74,SUM($AS74,$BA74)*'Project Information'!$D$12)))","v":""},{"$f":"IF($C74=\"\",\"\",SUMIFS('Ancillary Costs'!$N$72:$N$86,'Ancillary Costs'!$FL$72:$FL$86,\"*xx\"&'Project Scope'!$C74&\"xx*\")*(SUM($AR74,$AZ74,SUM($AS74,$BA74)*'Project Information'!$D$12)))","v":""},{"$f":"IFERROR(IF($C74=\"\",\"\",SUMIFS('Ancillary Costs'!$N$8:$N$67,'Ancillary Costs'!$FL$8:$FL$67,\"*xx\"&'Project Scope'!C74&\"xx*\",'Ancillary Costs'!$I$8:$I$67,'Project Scope'!$AN74)*'Project Scope'!$AO74),0)","v":""},{"$f":"IFERROR(IF($C74=\"\",\"\",SUMIFS('Ancillary Costs'!$N$8:$N$67,'Ancillary Costs'!$FL$8:$FL$67,\"*xx\"&'Project Scope'!C74&\"xx*\",'Ancillary Costs'!$I$8:$I$67,'Project Scope'!$AW74)*'Project Scope'!$AX74),0)","v":""},{"$f":"IF($C74=\"\",\"\",IF(SUM($AR74,$AZ74,SUM($AS74,$BA74)*'Project Information'!$D$12)=0,0,SUM($BG74,(SUM($BE74:$BF74))*((SUM($AR74,(IF(ISNUMBER($AS74),$AS74,0)*'Project Information'!$D$12)))/SUM($AR74,$AZ74,SUM($AS74,$BA74)*'Project Information'!$D$12)))))","v":""},{"$f":"IF($C74=\"\",\"\",IF(SUM($AR74,$AZ74,SUM($AS74,$BA74)*'Project Information'!$D$12)=0,0,SUM($BH74,(SUM($BE74:$BF74))*((SUM($AZ74,(IF(ISNUMBER($BA74),$BA74,0)*'Project Information'!$D$12)))/SUM($AR74,$AZ74,SUM($AS74,$BA74)*'Project Information'!$D$12)))))","v":""},null,"","","",{"$f":"IF($C74=\"\",\"\",IF(OR($AS74=\"\",$CX74=\"b\"),0,$AS74*'Project Information'!$D$12))","v":""},{"$f":"IF($C74=\"\",\"\",IF(OR($BA74=\"\",$CX74=\"b\"),0,$BA74*'Project Information'!$D$12))","v":""},"","","","","",null,{"$f":"CBAT!$AB74","v":""},{"$f":"CBAT!$BZ74","v":""},0,null,"","",0,{"$f":"IF($Q74=\"\",\"\",IF(OR($CX74<>\"c\",SUM($BY$8:$BY$107)=0),0,ROUND(BW74*MIN('Other Data'!$G$84,'Other Data'!$H$84*IF('Project Information'!$F$10=\"X\",('Project Information'!$L$42-'Project Information'!$L$39),'Project Information'!$L$42)/SUMPRODUCT($BY$8:$BY$107,--($CX$8:$CX$107=\"c\"))),0)))","v":""},{"$f":"IF($AC74=\"\",\"\",IF(OR($CX74<>\"c\",SUM($BY$8:$BY$107)=0),0,ROUND(BX74*MIN('Other Data'!$G$84,'Other Data'!$H$84*IF('Project Information'!$F$10=\"X\",('Project Information'!$L$42-'Project Information'!$L$39),'Project Information'!$L$42)/SUMPRODUCT($BY$8:$BY$107,--($CX$8:$CX$107=\"c\"))),0)))","v":""},0,null,"","",{"$f":"IF($J74=\"\",\"\",VLOOKUP($J74,'TRM Data'!$R$4:$S$168,2,FALSE))","v":""},"","","",null,{"$f":"IF($CV74=0,\"\",CBAT!$DJ74)","v":""},null,null,1,1,0,1,0,null,{"$f":"IF(OR($CV74=0,ISBLANK('Project Information'!$D$44)),\"\",IF(AND($CV74=1,$CO74<1,$G74=\"yes\"),\"a\",IF($CO74<1,\"b\",\"c\")))","v":""}]
[0,68,null,null,null,null,null,{"$f":"IF($C75=\"\",\"\",IF(COUNTIF('Project Information'!$J$9:BG$9,$C75)<>1,\"\",INDEX('Project Information'!$J$8:$BG$8,1,MATCH($C75,'Project Information'!$J$9:BG$9,0))))","v":""},null,null,{"$f":"LOOKUP(2,1/(COUNTIF($K$7:K74,$Q$8:$Q$108)=0),$Q$8:$Q$108)","v":{"$error":"#N/A"}},{"$f":"IF(OR('Project Information'!$D$32=\"\",C75=\"\"),\"\",'Project Information'!$D$32)","v":""},{"$f":"IF($C75=\"\",\"\",IF(COUNTIF('Project Information'!$J$9:$BG$9,$C75)=1,HLOOKUP(C75,'Project Information'!$J$9:$BG$10,2,FALSE),0))","v":""},null,null,null,null,null,null,null,{"$f":"IF(Q75<>\"\",IF('Project Information'!$D$33=\"Small Business\",\"I\",\"P\")&VLOOKUP($Q75,'TRM Data'!$C$5:$N$201,COLUMN('TRM Data'!$E$2)-COLUMN('TRM Data'!$C$2)+1,FALSE)&IF($L75=\"Summer\",\"S\",IF($L75=\"Winter\",\"W\",\"Y\")),\"\")","v":""},{"$f":"IF(OR($F75=\"Controls\",$F75=\"\"),\"\",VLOOKUP($Q75,'TRM Data'!$C$5:$N$201,COLUMN('TRM Data'!$F$2)-COLUMN('TRM Data'!$C$2)+1,FALSE))","v":""},null,{"$f":"IF($R75=0,\"\",VLOOKUP($Q75,'TRM Data'!$C$5:$N$201,COLUMN('TRM Data'!$G$2)-COLUMN('TRM Data'!$C$2)+1,FALSE)*$R75)","v":""},null,{"$f":"IF($R75=0,\"\",VLOOKUP($Q75,'TRM Data'!$C$5:$N$201,COLUMN('TRM Data'!$I$2)-COLUMN('TRM Data'!$C$2)+1,FALSE)*$R75)","v":""},{"$f":"IF($Q75=\"\",\"\",IF('Project Information'!$D$33=\"Small Business\",'Project Scope'!$CA75,IF('Project Information'!$D$33=\"Pay for Performance\",'Project Scope'!$CD75,0)))","v":""},null,null,null,{"$f":"IF(AC75<>\"\",\"P\"&VLOOKUP($AC75,'TRM Data'!$C$5:$N$201,COLUMN('TRM Data'!$E$2)-COLUMN('TRM Data'!$C$2)+1,FALSE)&IF($L75=\"Summer\",\"S\",IF($L75=\"Winter\",\"W\",\"Y\")),\"\")","v":""},{"$f":"IF($AD75=0,\"\",VLOOKUP($AC75,'TRM Data'!$C$5:$N$201,COLUMN('TRM Data'!$G$2)-COLUMN('TRM Data'!$C$2)+1,FALSE)*$AD75)","v":""},null,{"$f":"IF($AD75=0,\"\",VLOOKUP($AC75,'TRM Data'!$C$5:$N$201,COLUMN('TRM Data'!$I$2)-COLUMN('TRM Data'!$C$2)+1,FALSE)*$AD75)","v":""},{"$f":"IF($AC75=\"\",\"\",IF('Project Information'!$D$33=\"Small Business\",'Project Scope'!$CB75,IF('Project Information'!$D$33=\"Pay for Performance\",'Project Scope'!$CE75,0)))","v":""},null,"",null,"","","","","","","",{"$f":"IF($Q75=\"\",\"\",IF(AND(ISNUMBER($BW75),ISNUMBER($AR75),$AR75>0),SUM($BL75,$BO75,$BI75)*'Other Data'!$H$83,0))","v":""},{"$f":"IF($Q75=\"\",\"\",IF(AND(ISNUMBER($BW75),ISNUMBER($AR75),$AR75>0),$BW75*'Other Data'!$G$84,0))","v":""},null,"","","","","",{"$f":"IF($AC75=\"\",\"\",IF(AND(ISNUMBER($BX75), ISNUMBER($AZ75),$AZ75>0),SUM($BJ75,$BM75,$BP75)*'Other Data'!$H$83,0))","v":""},{"$f":"IF($AC75=\"\",\"\",IF(AND(ISNUMBER($BX75), ISNUMBER($AZ75),$AZ75>0),$BX75*'Other Data'!$G$84,0))","v":""},null,{"$f":"IF($C75=\"\",\"\",SUM('Ancillary Costs'!$N$91:$N$105)*(SUM($AR75,$AZ75,SUM($AS75,$BA75)*'Project Information'!$D$12)))","v":""},{"$f":"IF($C75=\"\",\"\",SUMIFS('Ancillary Costs'!$N$72:$N$86,'Ancillary Costs'!$FL$72:$FL$86,\"*xx\"&'Project Scope'!$C75&\"xx*\")*(SUM($AR75,$AZ75,SUM($AS75,$BA75)*'Project Information'!$D$12)))","v":""},{"$f":"IFERROR(IF($C75=\"\",\"\",SUMIFS('Ancillary Costs'!$N$8:$N$67,'Ancillary Costs'!$FL$8:$FL$67,\"*xx\"&'Project Scope'!C75&\"xx*\",'Ancillary Costs'!$I$8:$I$67,'Project Scope'!$AN75)*'Project Scope'!$AO75),0)","v":""},{"$f":"IFERROR(IF($C75=\"\",\"\",SUMIFS('Ancillary Costs'!$N$8:$N$67,'Ancillary Costs'!$FL$8:$FL$67,\"*xx\"&'Project Scope'!C75&\"xx*\",'Ancillary Costs'!$I$8:$I$67,'Project Scope'!$AW75)*'Project Scope'!$AX75),0)","v":""},{"$f":"IF($C75=\"\",\"\",IF(SUM($AR75,$AZ75,SUM($AS75,$BA75)*'Project Information'!$D$12)=0,0,SUM($BG75,(SUM($BE75:$BF75))*((SUM($AR75,(IF(ISNUMBER($AS75),$AS75,0)*'Project Information'!$D$12)))/SUM($AR75,$AZ75,SUM($AS75,$BA75)*'Project Information'!$D$12)))))","v":""},{"$f":"IF($C75=\"\",\"\",IF(SUM($AR75,$AZ75,SUM($AS75,$BA75)*'Project Information'!$D$12)=0,0,SUM($BH75,(SUM($BE75:$BF75))*((SUM($AZ75,(IF(ISNUMBER($BA75),$BA75,0)*'Project Information'!$D$12)))/SUM($AR75,$AZ75,SUM($AS75,$BA75)*'Project Information'!$D$12)))))","v":""},null,"","","",{"$f":"IF($C75=\"\",\"\",IF(OR($AS75=\"\",$CX75=\"b\"),0,$AS75*'Project Information'!$D$12))","v":""},{"$f":"IF($C75=\"\",\"\",IF(OR($BA75=\"\",$CX75=\"b\"),0,$BA75*'Project Information'!$D$12))","v":""},"","","","","",null,{"$f":"CBAT!$AB75","v":""},{"$f":"CBAT!$BZ75","v":""},0,null,"","",0,{"$f":"IF($Q75=\"\",\"\",IF(OR($CX75<>\"c\",SUM($BY$8:$BY$107)=0),0,ROUND(BW75*MIN('Other Data'!$G$84,'Other Data'!$H$84*IF('Project Information'!$F$10=\"X\",('Project Information'!$L$42-'Project Information'!$L$39),'Project Information'!$L$42)/SUMPRODUCT($BY$8:$BY$107,--($CX$8:$CX$107=\"c\"))),0)))","v":""},{"$f":"IF($AC75=\"\",\"\",IF(OR($CX75<>\"c\",SUM($BY$8:$BY$107)=0),0,ROUND(BX75*MIN('Other Data'!$G$84,'Other Data'!$H$84*IF('Project Information'!$F$10=\"X\",('Project Information'!$L$42-'Project Information'!$L$39),'Project Information'!$L$42)/SUMPRODUCT($BY$8:$BY$107,--($CX$8:$CX$107=\"c\"))),0)))","v":""},0,null,"","",{"$f":"IF($J75=\"\",\"\",VLOOKUP($J75,'TRM Data'!$R$4:$S$168,2,FALSE))","v":""},"","","",null,{"$f":"IF($CV75=0,\"\",CBAT!$DJ75)","v":""},null,null,1,1,0,1,0,null,{"$f":"IF(OR($CV75=0,ISBLANK('Project Information'!$D$44)),\"\",IF(AND($CV75=1,$CO75<1,$G75=\"yes\"),\"a\",IF($CO75<1,\"b\",\"c\")))","v":""}]
[0,69,null,null,null,null,null,{"$f":"IF($C76=\"\",\"\",IF(COUNTIF('Project Information'!$J$9:BG$9,$C76)<>1,\"\",INDEX('Project Information'!$J$8:$BG$8,1,MATCH($C76,'Project Information'!$J$9:BG$9,0))))","v":""},null,null,{"$f":"LOOKUP(2,1/(COUNTIF($K$7:K75,$Q$8:$Q$108)=0),$Q$8:$Q$108)","v":{"$error":"#N/A"}},{"$f":"IF(OR('Project Information'!$D$32=\"\",C76=\"\"),\"\",'Project Information'!$D$32)","v":""},{"$f":"IF($C76=\"\",\"\",IF(COUNTIF('Project Information'!$J$9:$BG$9,$C76)=1,HLOOKUP(C76,'Project Information'!$J$9:$BG$10,2,FALSE),0))","v":""},null,null,null,null,null,null,null,{"$f":"IF(Q76<>\"\",IF('Project Information'!$D$33=\"Small Business\",\"I\",\"P\")&VLOOKUP($Q76,'TRM Data'!$C$5:$N$201,COLUMN('TRM Data'!$E$2)-COLUMN('TRM Data'!$C$2)+1,FALSE)&IF($L76=\"Summer\",\"S\",IF($L76=\"Winter\",\"W\",\"Y\")),\"\")","v":""},{"$f":"IF(OR($F76=\"Controls\",$F76=\"\"),\"\",VLOOKUP($Q76,'TRM Data'!$C$5:$N$201,COLUMN('TRM Data'!$F$2)-COLUMN('TRM Data'!$C$2)+1,FALSE))","v":""},null,{"$f":"IF($R76=0,\"\",VLOOKUP($Q76,'TRM Data'!$C$5:$N$201,COLUMN('TRM Data'!$G$2)-COLUMN('TRM Data'!$C$2)+1,FALSE)*$R76)","v":""},null,{"$f":"IF($R76=0,\"\",VLOOKUP($Q76,'TRM Data'!$C$5:$N$201,COLUMN('TRM Data'!$I$2)-COLUMN('TRM Data'!$C$2)+1,FALSE)*$R76)","v":""},{"$f":"IF($Q76=\"\",\"\",IF('Project Information'!$D$33=\"Small Business\",'Project Scope'!$CA76,IF('Project Information'!$D$33=\"Pay for Performance\",'Project Scope'!$CD76,0)))","v":""},null,null,null,{"$f":"IF(AC76<>\"\",\"P\"&VLOOKUP($AC76,'TRM Data'!$C$5:$N$201,COLUMN('TRM Data'!$E$2)-COLUMN('TRM Data'!$C$2)+1,FALSE)&IF($L76=\"Summer\",\"S\",IF($L76=\"Winter\",\"W\",\"Y\")),\"\")","v":""},{"$f":"IF($AD76=0,\"\",VLOOKUP($AC76,'TRM Data'!$C$5:$N$201,COLUMN('TRM Data'!$G$2)-COLUMN('TRM Data'!$C$2)+1,FALSE)*$AD76)","v":""},null,{"$f":"IF($AD76=0,\"\",VLOOKUP($AC76,'TRM Data'!$C$5:$N$201,COLUMN('TRM Data'!$I$2)-COLUMN('TRM Data'!$C$2)+1,FALSE)*$AD76)","v":""},{"$f":"IF($AC76=\"\",\"\",IF('Project Information'!$D$33=\"Small Business\",'Project Scope'!$CB76,IF('Project Information'!$D$33=\"Pay for Performance\",'Project Scope'!$CE76,0)))","v":""},null,"",null,"","","","","","","",{"$f":"IF($Q76=\"\",\"\",IF(AND(ISNUMBER($BW76),ISNUMBER($AR76),$AR76>0),SUM($BL76,$BO76,$BI76)*'Other Data'!$H$83,0))","v":""},{"$f":"IF($Q76=\"\",\"\",IF(AND(ISNUMBER($BW76),ISNUMBER($AR76),$AR76>0),$BW76*'Other Data'!$G$84,0))","v":""},null,"","","","","",{"$f":"IF($AC76=\"\",\"\",IF(AND(ISNUMBER($BX76), ISNUMBER($AZ76),$AZ76>0),SUM($BJ76,$BM76,$BP76)*'Other Data'!$H$83,0))","v":""},{"$f":"IF($AC76=\"\",\"\",IF(AND(ISNUMBER($BX76), ISNUMBER($AZ76),$AZ76>0),$BX76*'Other Data'!$G$84,0))","v":""},null,{"$f":"IF($C76=\"\",\"\",SUM('Ancillary Costs'!$N$91:$N$105)*(SUM($AR76,$AZ76,SUM($AS76,$BA76)*'Project Information'!$D$12)))","v":""},{"$f":"IF($C76=\"\",\"\",SUMIFS('Ancillary Costs'!$N$72:$N$86,'Ancillary Costs'!$FL$72:$FL$86,\"*xx\"&'Project Scope'!$C76&\"xx*\")*(SUM($AR76,$AZ76,SUM($AS76,$BA76)*'Project Information'!$D$12)))","v":""},{"$f":"IFERROR(IF($C76=\"\",\"\",SUMIFS('Ancillary Costs'!$N$8:$N$67,'Ancillary Costs'!$FL$8:$FL$67,\"*xx\"&'Project Scope'!C76&\"xx*\",'Ancillary Costs'!$I$8:$I$67,'Project Scope'!$AN76)*'Project Scope'!$AO76),0)","v":""},{"$f":"IFERROR(IF($C76=\"\",\"\",SUMIFS('Ancillary Costs'!$N$8:$N$67,'Ancillary Costs'!$FL$8:$FL$67,\"*xx\"&'Project Scope'!C76&\"xx*\",'Ancillary Costs'!$I$8:$I$67,'Project Scope'!$AW76)*'Project Scope'!$AX76),0)","v":""},{"$f":"IF($C76=\"\",\"\",IF(SUM($AR76,$AZ76,SUM($AS76,$BA76)*'Project Information'!$D$12)=0,0,SUM($BG76,(SUM($BE76:$BF76))*((SUM($AR76,(IF(ISNUMBER($AS76),$AS76,0)*'Project Information'!$D$12)))/SUM($AR76,$AZ76,SUM($AS76,$BA76)*'Project Information'!$D$12)))))","v":""},{"$f":"IF($C76=\"\",\"\",IF(SUM($AR76,$AZ76,SUM($AS76,$BA76)*'Project Information'!$D$12)=0,0,SUM($BH76,(SUM($BE76:$BF76))*((SUM($AZ76,(IF(ISNUMBER($BA76),$BA76,0)*'Project Information'!$D$12)))/SUM($AR76,$AZ76,SUM($AS76,$BA76)*'Project Information'!$D$12)))))","v":""},null,"","","",{"$f":"IF($C76=\"\",\"\",IF(OR($AS76=\"\",$CX76=\"b\"),0,$AS76*'Project Information'!$D$12))","v":""},{"$f":"IF($C76=\"\",\"\",IF(OR($BA76=\"\",$CX76=\"b\"),0,$BA76*'Project Information'!$D$12))","v":""},"","","","","",null,{"$f":"CBAT!$AB76","v":""},{"$f":"CBAT!$BZ76","v":""},0,null,"","",0,{"$f":"IF($Q76=\"\",\"\",IF(OR($CX76<>\"c\",SUM($BY$8:$BY$107)=0),0,ROUND(BW76*MIN('Other Data'!$G$84,'Other Data'!$H$84*IF('Project Information'!$F$10=\"X\",('Project Information'!$L$42-'Project Information'!$L$39),'Project Information'!$L$42)/SUMPRODUCT($BY$8:$BY$107,--($CX$8:$CX$107=\"c\"))),0)))","v":""},{"$f":"IF($AC76=\"\",\"\",IF(OR($CX76<>\"c\",SUM($BY$8:$BY$107)=0),0,ROUND(BX76*MIN('Other Data'!$G$84,'Other Data'!$H$84*IF('Project Information'!$F$10=\"X\",('Project Information'!$L$42-'Project Information'!$L$39),'Project Information'!$L$42)/SUMPRODUCT($BY$8:$BY$107,--($CX$8:$CX$107=\"c\"))),0)))","v":""},0,null,"","",{"$f":"IF($J76=\"\",\"\",VLOOKUP($J76,'TRM Data'!$R$4:$S$168,2,FALSE))","v":""},"","","",null,{"$f":"IF($CV76=0,\"\",CBAT!$DJ76)","v":""},null,null,1,1,0,1,0,null,{"$f":"IF(OR($CV76=0,ISBLANK('Project Information'!$D$44)),\"\",IF(AND($CV76=1,$CO76<1,$G76=\"yes\"),\"a\",IF($CO76<1,\"b\",\"c\")))","v":""}]
[0,70,null,null,null,null,null,{"$f":"IF($C77=\"\",\"\",IF(COUNTIF('Project Information'!$J$9:BG$9,$C77)<>1,\"\",INDEX('Project Information'!$J$8:$BG$8,1,MATCH($C77,'Project Information'!$J$9:BG$9,0))))","v":""},null,null,{"$f":"LOOKUP(2,1/(COUNTIF($K$7:K76,$Q$8:$Q$108)=0),$Q$8:$Q$108)","v":{"$error":"#N/A"}},{"$f":"IF(OR('Project Information'!$D$32=\"\",C77=\"\"),\"\",'Project Information'!$D$32)","v":""},{"$f":"IF($C77=\"\",\"\",IF(COUNTIF('Project Information'!$J$9:$BG$9,$C77)=1,HLOOKUP(C77,'Project Information'!$J$9:$BG$10,2,FALSE),0))","v":""},null,null,null,null,null,null,null,{"$f":"IF(Q77<>\"\",IF('Project Information'!$D$33=\"Small Business\",\"I\",\"P\")&VLOOKUP($Q77,'TRM Data'!$C$5:$N$201,COLUMN('TRM Data'!$E$2)-COLUMN('TRM Data'!$C$2)+1,FALSE)&IF($L77=\"Summer\",\"S\",IF($L77=\"Winter\",\"W\",\"Y\")),\"\")","v":""},{"$f":"IF(OR($F77=\"Controls\",$F77=\"\"),\"\",VLOOKUP($Q77,'TRM Data'!$C$5:$N$201,COLUMN('TRM Data'!$F$2)-COLUMN('TRM Data'!$C$2)+1,FALSE))","v":""},null,{"$f":"IF($R77=0,\"\",VLOOKUP($Q77,'TRM Data'!$C$5:$N$201,COLUMN('TRM Data'!$G$2)-COLUMN('TRM Data'!$C$2)+1,FALSE)*$R77)","v":""},null,{"$f":"IF($R77=0,\"\",VLOOKUP($Q77,'TRM Data'!$C$5:$N$201,COLUMN('TRM Data'!$I$2)-COLUMN('TRM Data'!$C$2)+1,FALSE)*$R77)","v":""},{"$f":"IF($Q77=\"\",\"\",IF('Project Information'!$D$33=\"Small Business\",'Project Scope'!$CA77,IF('Project Information'!$D$33=\"Pay for Performance\",'Project Scope'!$CD77,0)))","v":""},null,null,null,{"$f":"IF(AC77<>\"\",\"P\"&VLOOKUP($AC77,'TRM Data'!$C$5:$N$201,COLUMN('TRM Data'!$E$2)-COLUMN('TRM Data'!$C$2)+1,FALSE)&IF($L77=\"Summer\",\"S\",IF($L77=\"Winter\",\"W\",\"Y\")),\"\")","v":""},{"$f":"IF($AD77=0,\"\",VLOOKUP($AC77,'TRM Data'!$C$5:$N$201,COLUMN('TRM Data'!$G$2)-COLUMN('TRM Data'!$C$2)+1,FALSE)*$AD77)","v":""},null,{"$f":"IF($AD77=0,\"\",VLOOKUP($AC77,'TRM Data'!$C$5:$N$201,COLUMN('TRM Data'!$I$2)-COLUMN('TRM Data'!$C$2)+1,FALSE)*$AD77)","v":""},{"$f":"IF($AC77=\"\",\"\",IF('Project Information'!$D$33=\"Small Business\",'Project Scope'!$CB77,IF('Project Information'!$D$33=\"Pay for Performance\",'Project Scope'!$CE77,0)))","v":""},null,"",null,"","","","","","","",{"$f":"IF($Q77=\"\",\"\",IF(AND(ISNUMBER($BW77),ISNUMBER($AR77),$AR77>0),SUM($BL77,$BO77,$BI77)*'Other Data'!$H$83,0))","v":""},{"$f":"IF($Q77=\"\",\"\",IF(AND(ISNUMBER($BW77),ISNUMBER($AR77),$AR77>0),$BW77*'Other Data'!$G$84,0))","v":""},null,"","","","","",{"$f":"IF($AC77=\"\",\"\",IF(AND(ISNUMBER($BX77), ISNUMBER($AZ77),$AZ77>0),SUM($BJ77,$BM77,$BP77)*'Other Data'!$H$83,0))","v":""},{"$f":"IF($AC77=\"\",\"\",IF(AND(ISNUMBER($BX77), ISNUMBER($AZ77),$AZ77>0),$BX77*'Other Data'!$G$84,0))","v":""},null,{"$f":"IF($C77=\"\",\"\",SUM('Ancillary Costs'!$N$91:$N$105)*(SUM($AR77,$AZ77,SUM($AS77,$BA77)*'Project Information'!$D$12)))","v":""},{"$f":"IF($C77=\"\",\"\",SUMIFS('Ancillary Costs'!$N$72:$N$86,'Ancillary Costs'!$FL$72:$FL$86,\"*xx\"&'Project Scope'!$C77&\"xx*\")*(SUM($AR77,$AZ77,SUM($AS77,$BA77)*'Project Information'!$D$12)))","v":""},{"$f":"IFERROR(IF($C77=\"\",\"\",SUMIFS('Ancillary Costs'!$N$8:$N$67,'Ancillary Costs'!$FL$8:$FL$67,\"*xx\"&'Project Scope'!C77&\"xx*\",'Ancillary Costs'!$I$8:$I$67,'Project Scope'!$AN77)*'Project Scope'!$AO77),0)","v":""},{"$f":"IFERROR(IF($C77=\"\",\"\",SUMIFS('Ancillary Costs'!$N$8:$N$67,'Ancillary Costs'!$FL$8:$FL$67,\"*xx\"&'Project Scope'!C77&\"xx*\",'Ancillary Costs'!$I$8:$I$67,'Project Scope'!$AW77)*'Project Scope'!$AX77),0)","v":""},{"$f":"IF($C77=\"\",\"\",IF(SUM($AR77,$AZ77,SUM($AS77,$BA77)*'Project Information'!$D$12)=0,0,SUM($BG77,(SUM($BE77:$BF77))*((SUM($AR77,(IF(ISNUMBER($AS77),$AS77,0)*'Project Information'!$D$12)))/SUM($AR77,$AZ77,SUM($AS77,$BA77)*'Project Information'!$D$12)))))","v":""},{"$f":"IF($C77=\"\",\"\",IF(SUM($AR77,$AZ77,SUM($AS77,$BA77)*'Project Information'!$D$12)=0,0,SUM($BH77,(SUM($BE77:$BF77))*((SUM($AZ77,(IF(ISNUMBER($BA77),$BA77,0)*'Project Information'!$D$12)))/SUM($AR77,$AZ77,SUM($AS77,$BA77)*'Project Information'!$D$12)))))","v":""},null,"","","",{"$f":"IF($C77=\"\",\"\",IF(OR($AS77=\"\",$CX77=\"b\"),0,$AS77*'Project Information'!$D$12))","v":""},{"$f":"IF($C77=\"\",\"\",IF(OR($BA77=\"\",$CX77=\"b\"),0,$BA77*'Project Information'!$D$12))","v":""},"","","","","",null,{"$f":"CBAT!$AB77","v":""},{"$f":"CBAT!$BZ77","v":""},0,null,"","",0,{"$f":"IF($Q77=\"\",\"\",IF(OR($CX77<>\"c\",SUM($BY$8:$BY$107)=0),0,ROUND(BW77*MIN('Other Data'!$G$84,'Other Data'!$H$84*IF('Project Information'!$F$10=\"X\",('Project Information'!$L$42-'Project Information'!$L$39),'Project Information'!$L$42)/SUMPRODUCT($BY$8:$BY$107,--($CX$8:$CX$107=\"c\"))),0)))","v":""},{"$f":"IF($AC77=\"\",\"\",IF(OR($CX77<>\"c\",SUM($BY$8:$BY$107)=0),0,ROUND(BX77*MIN('Other Data'!$G$84,'Other Data'!$H$84*IF('Project Information'!$F$10=\"X\",('Project Information'!$L$42-'Project Information'!$L$39),'Project Information'!$L$42)/SUMPRODUCT($BY$8:$BY$107,--($CX$8:$CX$107=\"c\"))),0)))","v":""},0,null,"","",{"$f":"IF($J77=\"\",\"\",VLOOKUP($J77,'TRM Data'!$R$4:$S$168,2,FALSE))","v":""},"","","",null,{"$f":"IF($CV77=0,\"\",CBAT!$DJ77)","v":""},null,null,1,1,0,1,0,null,{"$f":"IF(OR($CV77=0,ISBLANK('Project Information'!$D$44)),\"\",IF(AND($CV77=1,$CO77<1,$G77=\"yes\"),\"a\",IF($CO77<1,\"b\",\"c\")))","v":""}]
[0,71,null,null,null,null,null,{"$f":"IF($C78=\"\",\"\",IF(COUNTIF('Project Information'!$J$9:BG$9,$C78)<>1,\"\",INDEX('Project Information'!$J$8:$BG$8,1,MATCH($C78,'Project Information'!$J$9:BG$9,0))))","v":""},null,null,{"$f":"LOOKUP(2,1/(COUNTIF($K$7:K77,$Q$8:$Q$108)=0),$Q$8:$Q$108)","v":{"$error":"#N/A"}},{"$f":"IF(OR('Project Information'!$D$32=\"\",C78=\"\"),\"\",'Project Information'!$D$32)","v":""},{"$f":"IF($C78=\"\",\"\",IF(COUNTIF('Project Information'!$J$9:$BG$9,$C78)=1,HLOOKUP(C78,'Project Information'!$J$9:$BG$10,2,FALSE),0))","v":""},null,null,null,null,null,null,null,{"$f":"IF(Q78<>\"\",IF('Project Information'!$D$33=\"Small Business\",\"I\",\"P\")&VLOOKUP($Q78,'TRM Data'!$C$5:$N$201,COLUMN('TRM Data'!$E$2)-COLUMN('TRM Data'!$C$2)+1,FALSE)&IF($L78=\"Summer\",\"S\",IF($L78=\"Winter\",\"W\",\"Y\")),\"\")","v":""},{"$f":"IF(OR($F78=\"Controls\",$F78=\"\"),\"\",VLOOKUP($Q78,'TRM Data'!$C$5:$N$201,COLUMN('TRM Data'!$F$2)-COLUMN('TRM Data'!$C$2)+1,FALSE))","v":""},null,{"$f":"IF($R78=0,\"\",VLOOKUP($Q78,'TRM Data'!$C$5:$N$201,COLUMN('TRM Data'!$G$2)-COLUMN('TRM Data'!$C$2)+1,FALSE)*$R78)","v":""},null,{"$f":"IF($R78=0,\"\",VLOOKUP($Q78,'TRM Data'!$C$5:$N$201,COLUMN('TRM Data'!$I$2)-COLUMN('TRM Data'!$C$2)+1,FALSE)*$R78)","v":""},{"$f":"IF($Q78=\"\",\"\",IF('Project Information'!$D$33=\"Small Business\",'Project Scope'!$CA78,IF('Project Information'!$D$33=\"Pay for Performance\",'Project Scope'!$CD78,0)))","v":""},null,null,null,{"$f":"IF(AC78<>\"\",\"P\"&VLOOKUP($AC78,'TRM Data'!$C$5:$N$201,COLUMN('TRM Data'!$E$2)-COLUMN('TRM Data'!$C$2)+1,FALSE)&IF($L78=\"Summer\",\"S\",IF($L78=\"Winter\",\"W\",\"Y\")),\"\")","v":""},{"$f":"IF($AD78=0,\"\",VLOOKUP($AC78,'TRM Data'!$C$5:$N$201,COLUMN('TRM Data'!$G$2)-COLUMN('TRM Data'!$C$2)+1,FALSE)*$AD78)","v":""},null,{"$f":"IF($AD78=0,\"\",VLOOKUP($AC78,'TRM Data'!$C$5:$N$201,COLUMN('TRM Data'!$I$2)-COLUMN('TRM Data'!$C$2)+1,FALSE)*$AD78)","v":""},{"$f":"IF($AC78=\"\",\"\",IF('Project Information'!$D$33=\"Small Business\",'Project Scope'!$CB78,IF('Project Information'!$D$33=\"Pay for Performance\",'Project Scope'!$CE78,0)))","v":""},null,"",null,"","","","","","","",{"$f":"IF($Q78=\"\",\"\",IF(AND(ISNUMBER($BW78),ISNUMBER($AR78),$AR78>0),SUM($BL78,$BO78,$BI78)*'Other Data'!$H$83,0))","v":""},{"$f":"IF($Q78=\"\",\"\",IF(AND(ISNUMBER($BW78),ISNUMBER($AR78),$AR78>0),$BW78*'Other Data'!$G$84,0))","v":""},null,"","","","","",{"$f":"IF($AC78=\"\",\"\",IF(AND(ISNUMBER($BX78), ISNUMBER($AZ78),$AZ78>0),SUM($BJ78,$BM78,$BP78)*'Other Data'!$H$83,0))","v":""},{"$f":"IF($AC78=\"\",\"\",IF(AND(ISNUMBER($BX78), ISNUMBER($AZ78),$AZ78>0),$BX78*'Other Data'!$G$84,0))","v":""},null,{"$f":"IF($C78=\"\",\"\",SUM('Ancillary Costs'!$N$91:$N$105)*(SUM($AR78,$AZ78,SUM($AS78,$BA78)*'Project Information'!$D$12)))","v":""},{"$f":"IF($C78=\"\",\"\",SUMIFS('Ancillary Costs'!$N$72:$N$86,'Ancillary Costs'!$FL$72:$FL$86,\"*xx\"&'Project Scope'!$C78&\"xx*\")*(SUM($AR78,$AZ78,SUM($AS78,$BA78)*'Project Information'!$D$12)))","v":""},{"$f":"IFERROR(IF($C78=\"\",\"\",SUMIFS('Ancillary Costs'!$N$8:$N$67,'Ancillary Costs'!$FL$8:$FL$67,\"*xx\"&'Project Scope'!C78&\"xx*\",'Ancillary Costs'!$I$8:$I$67,'Project Scope'!$AN78)*'Project Scope'!$AO78),0)","v":""},{"$f":"IFERROR(IF($C78=\"\",\"\",SUMIFS('Ancillary Costs'!$N$8:$N$67,'Ancillary Costs'!$FL$8:$FL$67,\"*xx\"&'Project Scope'!C78&\"xx*\",'Ancillary Costs'!$I$8:$I$67,'Project Scope'!$AW78)*'Project Scope'!$AX78),0)","v":""},{"$f":"IF($C78=\"\",\"\",IF(SUM($AR78,$AZ78,SUM($AS78,$BA78)*'Project Information'!$D$12)=0,0,SUM($BG78,(SUM($BE78:$BF78))*((SUM($AR78,(IF(ISNUMBER($AS78),$AS78,0)*'Project Information'!$D$12)))/SUM($AR78,$AZ78,SUM($AS78,$BA78)*'Project Information'!$D$12)))))","v":""},{"$f":"IF($C78=\"\",\"\",IF(SUM($AR78,$AZ78,SUM($AS78,$BA78)*'Project Information'!$D$12)=0,0,SUM($BH78,(SUM($BE78:$BF78))*((SUM($AZ78,(IF(ISNUMBER($BA78),$BA78,0)*'Project Information'!$D$12)))/SUM($AR78,$AZ78,SUM($AS78,$BA78)*'Project Information'!$D$12)))))","v":""},null,"","","",{"$f":"IF($C78=\"\",\"\",IF(OR($AS78=\"\",$CX78=\"b\"),0,$AS78*'Project Information'!$D$12))","v":""},{"$f":"IF($C78=\"\",\"\",IF(OR($BA78=\"\",$CX78=\"b\"),0,$BA78*'Project Information'!$D$12))","v":""},"","","","","",null,{"$f":"CBAT!$AB78","v":""},{"$f":"CBAT!$BZ78","v":""},0,null,"","",0,{"$f":"IF($Q78=\"\",\"\",IF(OR($CX78<>\"c\",SUM($BY$8:$BY$107)=0),0,ROUND(BW78*MIN('Other Data'!$G$84,'Other Data'!$H$84*IF('Project Information'!$F$10=\"X\",('Project Information'!$L$42-'Project Information'!$L$39),'Project Information'!$L$42)/SUMPRODUCT($BY$8:$BY$107,--($CX$8:$CX$107=\"c\"))),0)))","v":""},{"$f":"IF($AC78=\"\",\"\",IF(OR($CX78<>\"c\",SUM($BY$8:$BY$107)=0),0,ROUND(BX78*MIN('Other Data'!$G$84,'Other Data'!$H$84*IF('Project Information'!$F$10=\"X\",('Project Information'!$L$42-'Project Information'!$L$39),'Project Information'!$L$42)/SUMPRODUCT($BY$8:$BY$107,--($CX$8:$CX$107=\"c\"))),0)))","v":""},0,null,"","",{"$f":"IF($J78=\"\",\"\",VLOOKUP($J78,'TRM Data'!$R$4:$S$168,2,FALSE))","v":""},"","","",null,{"$f":"IF($CV78=0,\"\",CBAT!$DJ78)","v":""},null,null,1,1,0,1,0,null,{"$f":"IF(OR($CV78=0,ISBLANK('Project Information'!$D$44)),\"\",IF(AND($CV78=1,$CO78<1,$G78=\"yes\"),\"a\",IF($CO78<1,\"b\",\"c\")))","v":""}]
[0,72,null,null,null,null,null,{"$f":"IF($C79=\"\",\"\",IF(COUNTIF('Project Information'!$J$9:BG$9,$C79)<>1,\"\",INDEX('Project Information'!$J$8:$BG$8,1,MATCH($C79,'Project Information'!$J$9:BG$9,0))))","v":""},null,null,{"$f":"LOOKUP(2,1/(COUNTIF($K$7:K78,$Q$8:$Q$108)=0),$Q$8:$Q$108)","v":{"$error":"#N/A"}},{"$f":"IF(OR('Project Information'!$D$32=\"\",C79=\"\"),\"\",'Project Information'!$D$32)","v":""},{"$f":"IF($C79=\"\",\"\",IF(COUNTIF('Project Information'!$J$9:$BG$9,$C79)=1,HLOOKUP(C79,'Project Information'!$J$9:$BG$10,2,FALSE),0))","v":""},null,null,null,null,null,null,null,{"$f":"IF(Q79<>\"\",IF('Project Information'!$D$33=\"Small Business\",\"I\",\"P\")&VLOOKUP($Q79,'TRM Data'!$C$5:$N$201,COLUMN('TRM Data'!$E$2)-COLUMN('TRM Data'!$C$2)+1,FALSE)&IF($L79=\"Summer\",\"S\",IF($L79=\"Winter\",\"W\",\"Y\")),\"\")","v":""},{"$f":"IF(OR($F79=\"Controls\",$F79=\"\"),\"\",VLOOKUP($Q79,'TRM Data'!$C$5:$N$201,COLUMN('TRM Data'!$F$2)-COLUMN('TRM Data'!$C$2)+1,FALSE))","v":""},null,{"$f":"IF($R79=0,\"\",VLOOKUP($Q79,'TRM Data'!$C$5:$N$201,COLUMN('TRM Data'!$G$2)-COLUMN('TRM Data'!$C$2)+1,FALSE)*$R79)","v":""},null,{"$f":"IF($R79=0,\"\",VLOOKUP($Q79,'TRM Data'!$C$5:$N$201,COLUMN('TRM Data'!$I$2)-COLUMN('TRM Data'!$C$2)+1,FALSE)*$R79)","v":""},{"$f":"IF($Q79=\"\",\"\",IF('Project Information'!$D$33=\"Small Business\",'Project Scope'!$CA79,IF('Project Information'!$D$33=\"Pay for Performance\",'Project Scope'!$CD79,0)))","v":""},null,null,null,{"$f":"IF(AC79<>\"\",\"P\"&VLOOKUP($AC79,'TRM Data'!$C$5:$N$201,COLUMN('TRM Data'!$E$2)-COLUMN('TRM Data'!$C$2)+1,FALSE)&IF($L79=\"Summer\",\"S\",IF($L79=\"Winter\",\"W\",\"Y\")),\"\")","v":""},{"$f":"IF($AD79=0,\"\",VLOOKUP($AC79,'TRM Data'!$C$5:$N$201,COLUMN('TRM Data'!$G$2)-COLUMN('TRM Data'!$C$2)+1,FALSE)*$AD79)","v":""},null,{"$f":"IF($AD79=0,\"\",VLOOKUP($AC79,'TRM Data'!$C$5:$N$201,COLUMN('TRM Data'!$I$2)-COLUMN('TRM Data'!$C$2)+1,FALSE)*$AD79)","v":""},{"$f":"IF($AC79=\"\",\"\",IF('Project Information'!$D$33=\"Small Business\",'Project Scope'!$CB79,IF('Project Information'!$D$33=\"Pay for Performance\",'Project Scope'!$CE79,0)))","v":""},null,"",null,"","","","","","","",{"$f":"IF($Q79=\"\",\"\",IF(AND(ISNUMBER($BW79),ISNUMBER($AR79),$AR79>0),SUM($BL79,$BO79,$BI79)*'Other Data'!$H$83,0))","v":""},{"$f":"IF($Q79=\"\",\"\",IF(AND(ISNUMBER($BW79),ISNUMBER($AR79),$AR79>0),$BW79*'Other Data'!$G$84,0))","v":""},null,"","","","","",{"$f":"IF($AC79=\"\",\"\",IF(AND(ISNUMBER($BX79), ISNUMBER($AZ79),$AZ79>0),SUM($BJ79,$BM79,$BP79)*'Other Data'!$H$83,0))","v":""},{"$f":"IF($AC79=\"\",\"\",IF(AND(ISNUMBER($BX79), ISNUMBER($AZ79),$AZ79>0),$BX79*'Other Data'!$G$84,0))","v":""},null,{"$f":"IF($C79=\"\",\"\",SUM('Ancillary Costs'!$N$91:$N$105)*(SUM($AR79,$AZ79,SUM($AS79,$BA79)*'Project Information'!$D$12)))","v":""},{"$f":"IF($C79=\"\",\"\",SUMIFS('Ancillary Costs'!$N$72:$N$86,'Ancillary Costs'!$FL$72:$FL$86,\"*xx\"&'Project Scope'!$C79&\"xx*\")*(SUM($AR79,$AZ79,SUM($AS79,$BA79)*'Project Information'!$D$12)))","v":""},{"$f":"IFERROR(IF($C79=\"\",\"\",SUMIFS('Ancillary Costs'!$N$8:$N$67,'Ancillary Costs'!$FL$8:$FL$67,\"*xx\"&'Project Scope'!C79&\"xx*\",'Ancillary Costs'!$I$8:$I$67,'Project Scope'!$AN79)*'Project Scope'!$AO79),0)","v":""},{"$f":"IFERROR(IF($C79=\"\",\"\",SUMIFS('Ancillary Costs'!$N$8:$N$67,'Ancillary Costs'!$FL$8:$FL$67,\"*xx\"&'Project Scope'!C79&\"xx*\",'Ancillary Costs'!$I$8:$I$67,'Project Scope'!$AW79)*'Project Scope'!$AX79),0)","v":""},{"$f":"IF($C79=\"\",\"\",IF(SUM($AR79,$AZ79,SUM($AS79,$BA79)*'Project Information'!$D$12)=0,0,SUM($BG79,(SUM($BE79:$BF79))*((SUM($AR79,(IF(ISNUMBER($AS79),$AS79,0)*'Project Information'!$D$12)))/SUM($AR79,$AZ79,SUM($AS79,$BA79)*'Project Information'!$D$12)))))","v":""},{"$f":"IF($C79=\"\",\"\",IF(SUM($AR79,$AZ79,SUM($AS79,$BA79)*'Project Information'!$D$12)=0,0,SUM($BH79,(SUM($BE79:$BF79))*((SUM($AZ79,(IF(ISNUMBER($BA79),$BA79,0)*'Project Information'!$D$12)))/SUM($AR79,$AZ79,SUM($AS79,$BA79)*'Project Information'!$D$12)))))","v":""},null,"","","",{"$f":"IF($C79=\"\",\"\",IF(OR($AS79=\"\",$CX79=\"b\"),0,$AS79*'Project Information'!$D$12))","v":""},{"$f":"IF($C79=\"\",\"\",IF(OR($BA79=\"\",$CX79=\"b\"),0,$BA79*'Project Information'!$D$12))","v":""},"","","","","",null,{"$f":"CBAT!$AB79","v":""},{"$f":"CBAT!$BZ79","v":""},0,null,"","",0,{"$f":"IF($Q79=\"\",\"\",IF(OR($CX79<>\"c\",SUM($BY$8:$BY$107)=0),0,ROUND(BW79*MIN('Other Data'!$G$84,'Other Data'!$H$84*IF('Project Information'!$F$10=\"X\",('Project Information'!$L$42-'Project Information'!$L$39),'Project Information'!$L$42)/SUMPRODUCT($BY$8:$BY$107,--($CX$8:$CX$107=\"c\"))),0)))","v":""},{"$f":"IF($AC79=\"\",\"\",IF(OR($CX79<>\"c\",SUM($BY$8:$BY$107)=0),0,ROUND(BX79*MIN('Other Data'!$G$84,'Other Data'!$H$84*IF('Project Information'!$F$10=\"X\",('Project Information'!$L$42-'Project Information'!$L$39),'Project Information'!$L$42)/SUMPRODUCT($BY$8:$BY$107,--($CX$8:$CX$107=\"c\"))),0)))","v":""},0,null,"","",{"$f":"IF($J79=\"\",\"\",VLOOKUP($J79,'TRM Data'!$R$4:$S$168,2,FALSE))","v":""},"","","",null,{"$f":"IF($CV79=0,\"\",CBAT!$DJ79)","v":""},null,null,1,1,0,1,0,null,{"$f":"IF(OR($CV79=0,ISBLANK('Project Information'!$D$44)),\"\",IF(AND($CV79=1,$CO79<1,$G79=\"yes\"),\"a\",IF($CO79<1,\"b\",\"c\")))","v":""}]
[0,73,null,null,null,null,null,{"$f":"IF($C80=\"\",\"\",IF(COUNTIF('Project Information'!$J$9:BG$9,$C80)<>1,\"\",INDEX('Project Information'!$J$8:$BG$8,1,MATCH($C80,'Project Information'!$J$9:BG$9,0))))","v":""},null,null,{"$f":"LOOKUP(2,1/(COUNTIF($K$7:K79,$Q$8:$Q$108)=0),$Q$8:$Q$108)","v":{"$error":"#N/A"}},{"$f":"IF(OR('Project Information'!$D$32=\"\",C80=\"\"),\"\",'Project Information'!$D$32)","v":""},{"$f":"IF($C80=\"\",\"\",IF(COUNTIF('Project Information'!$J$9:$BG$9,$C80)=1,HLOOKUP(C80,'Project Information'!$J$9:$BG$10,2,FALSE),0))","v":""},null,null,null,null,null,null,null,{"$f":"IF(Q80<>\"\",IF('Project Information'!$D$33=\"Small Business\",\"I\",\"P\")&VLOOKUP($Q80,'TRM Data'!$C$5:$N$201,COLUMN('TRM Data'!$E$2)-COLUMN('TRM Data'!$C$2)+1,FALSE)&IF($L80=\"Summer\",\"S\",IF($L80=\"Winter\",\"W\",\"Y\")),\"\")","v":""},{"$f":"IF(OR($F80=\"Controls\",$F80=\"\"),\"\",VLOOKUP($Q80,'TRM Data'!$C$5:$N$201,COLUMN('TRM Data'!$F$2)-COLUMN('TRM Data'!$C$2)+1,FALSE))","v":""},null,{"$f":"IF($R80=0,\"\",VLOOKUP($Q80,'TRM Data'!$C$5:$N$201,COLUMN('TRM Data'!$G$2)-COLUMN('TRM Data'!$C$2)+1,FALSE)*$R80)","v":""},null,{"$f":"IF($R80=0,\"\",VLOOKUP($Q80,'TRM Data'!$C$5:$N$201,COLUMN('TRM Data'!$I$2)-COLUMN('TRM Data'!$C$2)+1,FALSE)*$R80)","v":""},{"$f":"IF($Q80=\"\",\"\",IF('Project Information'!$D$33=\"Small Business\",'Project Scope'!$CA80,IF('Project Information'!$D$33=\"Pay for Performance\",'Project Scope'!$CD80,0)))","v":""},null,null,null,{"$f":"IF(AC80<>\"\",\"P\"&VLOOKUP($AC80,'TRM Data'!$C$5:$N$201,COLUMN('TRM Data'!$E$2)-COLUMN('TRM Data'!$C$2)+1,FALSE)&IF($L80=\"Summer\",\"S\",IF($L80=\"Winter\",\"W\",\"Y\")),\"\")","v":""},{"$f":"IF($AD80=0,\"\",VLOOKUP($AC80,'TRM Data'!$C$5:$N$201,COLUMN('TRM Data'!$G$2)-COLUMN('TRM Data'!$C$2)+1,FALSE)*$AD80)","v":""},null,{"$f":"IF($AD80=0,\"\",VLOOKUP($AC80,'TRM Data'!$C$5:$N$201,COLUMN('TRM Data'!$I$2)-COLUMN('TRM Data'!$C$2)+1,FALSE)*$AD80)","v":""},{"$f":"IF($AC80=\"\",\"\",IF('Project Information'!$D$33=\"Small Business\",'Project Scope'!$CB80,IF('Project Information'!$D$33=\"Pay for Performance\",'Project Scope'!$CE80,0)))","v":""},null,"",null,"","","","","","","",{"$f":"IF($Q80=\"\",\"\",IF(AND(ISNUMBER($BW80),ISNUMBER($AR80),$AR80>0),SUM($BL80,$BO80,$BI80)*'Other Data'!$H$83,0))","v":""},{"$f":"IF($Q80=\"\",\"\",IF(AND(ISNUMBER($BW80),ISNUMBER($AR80),$AR80>0),$BW80*'Other Data'!$G$84,0))","v":""},null,"","","","","",{"$f":"IF($AC80=\"\",\"\",IF(AND(ISNUMBER($BX80), ISNUMBER($AZ80),$AZ80>0),SUM($BJ80,$BM80,$BP80)*'Other Data'!$H$83,0))","v":""},{"$f":"IF($AC80=\"\",\"\",IF(AND(ISNUMBER($BX80), ISNUMBER($AZ80),$AZ80>0),$BX80*'Other Data'!$G$84,0))","v":""},null,{"$f":"IF($C80=\"\",\"\",SUM('Ancillary Costs'!$N$91:$N$105)*(SUM($AR80,$AZ80,SUM($AS80,$BA80)*'Project Information'!$D$12)))","v":""},{"$f":"IF($C80=\"\",\"\",SUMIFS('Ancillary Costs'!$N$72:$N$86,'Ancillary Costs'!$FL$72:$FL$86,\"*xx\"&'Project Scope'!$C80&\"xx*\")*(SUM($AR80,$AZ80,SUM($AS80,$BA80)*'Project Information'!$D$12)))","v":""},{"$f":"IFERROR(IF($C80=\"\",\"\",SUMIFS('Ancillary Costs'!$N$8:$N$67,'Ancillary Costs'!$FL$8:$FL$67,\"*xx\"&'Project Scope'!C80&\"xx*\",'Ancillary Costs'!$I$8:$I$67,'Project Scope'!$AN80)*'Project Scope'!$AO80),0)","v":""},{"$f":"IFERROR(IF($C80=\"\",\"\",SUMIFS('Ancillary Costs'!$N$8:$N$67,'Ancillary Costs'!$FL$8:$FL$67,\"*xx\"&'Project Scope'!C80&\"xx*\",'Ancillary Costs'!$I$8:$I$67,'Project Scope'!$AW80)*'Project Scope'!$AX80),0)","v":""},{"$f":"IF($C80=\"\",\"\",IF(SUM($AR80,$AZ80,SUM($AS80,$BA80)*'Project Information'!$D$12)=0,0,SUM($BG80,(SUM($BE80:$BF80))*((SUM($AR80,(IF(ISNUMBER($AS80),$AS80,0)*'Project Information'!$D$12)))/SUM($AR80,$AZ80,SUM($AS80,$BA80)*'Project Information'!$D$12)))))","v":""},{"$f":"IF($C80=\"\",\"\",IF(SUM($AR80,$AZ80,SUM($AS80,$BA80)*'Project Information'!$D$12)=0,0,SUM($BH80,(SUM($BE80:$BF80))*((SUM($AZ80,(IF(ISNUMBER($BA80),$BA80,0)*'Project Information'!$D$12)))/SUM($AR80,$AZ80,SUM($AS80,$BA80)*'Project Information'!$D$12)))))","v":""},null,"","","",{"$f":"IF($C80=\"\",\"\",IF(OR($AS80=\"\",$CX80=\"b\"),0,$AS80*'Project Information'!$D$12))","v":""},{"$f":"IF($C80=\"\",\"\",IF(OR($BA80=\"\",$CX80=\"b\"),0,$BA80*'Project Information'!$D$12))","v":""},"","","","","",null,{"$f":"CBAT!$AB80","v":""},{"$f":"CBAT!$BZ80","v":""},0,null,"","",0,{"$f":"IF($Q80=\"\",\"\",IF(OR($CX80<>\"c\",SUM($BY$8:$BY$107)=0),0,ROUND(BW80*MIN('Other Data'!$G$84,'Other Data'!$H$84*IF('Project Information'!$F$10=\"X\",('Project Information'!$L$42-'Project Information'!$L$39),'Project Information'!$L$42)/SUMPRODUCT($BY$8:$BY$107,--($CX$8:$CX$107=\"c\"))),0)))","v":""},{"$f":"IF($AC80=\"\",\"\",IF(OR($CX80<>\"c\",SUM($BY$8:$BY$107)=0),0,ROUND(BX80*MIN('Other Data'!$G$84,'Other Data'!$H$84*IF('Project Information'!$F$10=\"X\",('Project Information'!$L$42-'Project Information'!$L$39),'Project Information'!$L$42)/SUMPRODUCT($BY$8:$BY$107,--($CX$8:$CX$107=\"c\"))),0)))","v":""},0,null,"","",{"$f":"IF($J80=\"\",\"\",VLOOKUP($J80,'TRM Data'!$R$4:$S$168,2,FALSE))","v":""},"","","",null,{"$f":"IF($CV80=0,\"\",CBAT!$DJ80)","v":""},null,null,1,1,0,1,0,null,{"$f":"IF(OR($CV80=0,ISBLANK('Project Information'!$D$44)),\"\",IF(AND($CV80=1,$CO80<1,$G80=\"yes\"),\"a\",IF($CO80<1,\"b\",\"c\")))","v":""}]
[0,74,null,null,null,null,null,{"$f":"IF($C81=\"\",\"\",IF(COUNTIF('Project Information'!$J$9:BG$9,$C81)<>1,\"\",INDEX('Project Information'!$J$8:$BG$8,1,MATCH($C81,'Project Information'!$J$9:BG$9,0))))","v":""},null,null,{"$f":"LOOKUP(2,1/(COUNTIF($K$7:K80,$Q$8:$Q$108)=0),$Q$8:$Q$108)","v":{"$error":"#N/A"}},{"$f":"IF(OR('Project Information'!$D$32=\"\",C81=\"\"),\"\",'Project Information'!$D$32)","v":""},{"$f":"IF($C81=\"\",\"\",IF(COUNTIF('Project Information'!$J$9:$BG$9,$C81)=1,HLOOKUP(C81,'Project Information'!$J$9:$BG$10,2,FALSE),0))","v":""},null,null,null,null,null,null,null,{"$f":"IF(Q81<>\"\",IF('Project Information'!$D$33=\"Small Business\",\"I\",\"P\")&VLOOKUP($Q81,'TRM Data'!$C$5:$N$201,COLUMN('TRM Data'!$E$2)-COLUMN('TRM Data'!$C$2)+1,FALSE)&IF($L81=\"Summer\",\"S\",IF($L81=\"Winter\",\"W\",\"Y\")),\"\")","v":""},{"$f":"IF(OR($F81=\"Controls\",$F81=\"\"),\"\",VLOOKUP($Q81,'TRM Data'!$C$5:$N$201,COLUMN('TRM Data'!$F$2)-COLUMN('TRM Data'!$C$2)+1,FALSE))","v":""},null,{"$f":"IF($R81=0,\"\",VLOOKUP($Q81,'TRM Data'!$C$5:$N$201,COLUMN('TRM Data'!$G$2)-COLUMN('TRM Data'!$C$2)+1,FALSE)*$R81)","v":""},null,{"$f":"IF($R81=0,\"\",VLOOKUP($Q81,'TRM Data'!$C$5:$N$201,COLUMN('TRM Data'!$I$2)-COLUMN('TRM Data'!$C$2)+1,FALSE)*$R81)","v":""},{"$f":"IF($Q81=\"\",\"\",IF('Project Information'!$D$33=\"Small Business\",'Project Scope'!$CA81,IF('Project Information'!$D$33=\"Pay for Performance\",'Project Scope'!$CD81,0)))","v":""},null,null,null,{"$f":"IF(AC81<>\"\",\"P\"&VLOOKUP($AC81,'TRM Data'!$C$5:$N$201,COLUMN('TRM Data'!$E$2)-COLUMN('TRM Data'!$C$2)+1,FALSE)&IF($L81=\"Summer\",\"S\",IF($L81=\"Winter\",\"W\",\"Y\")),\"\")","v":""},{"$f":"IF($AD81=0,\"\",VLOOKUP($AC81,'TRM Data'!$C$5:$N$201,COLUMN('TRM Data'!$G$2)-COLUMN('TRM Data'!$C$2)+1,FALSE)*$AD81)","v":""},null,{"$f":"IF($AD81=0,\"\",VLOOKUP($AC81,'TRM Data'!$C$5:$N$201,COLUMN('TRM Data'!$I$2)-COLUMN('TRM Data'!$C$2)+1,FALSE)*$AD81)","v":""},{"$f":"IF($AC81=\"\",\"\",IF('Project Information'!$D$33=\"Small Business\",'Project Scope'!$CB81,IF('Project Information'!$D$33=\"Pay for Performance\",'Project Scope'!$CE81,0)))","v":""},null,"",null,"","","","","","","",{"$f":"IF($Q81=\"\",\"\",IF(AND(ISNUMBER($BW81),ISNUMBER($AR81),$AR81>0),SUM($BL81,$BO81,$BI81)*'Other Data'!$H$83,0))","v":""},{"$f":"IF($Q81=\"\",\"\",IF(AND(ISNUMBER($BW81),ISNUMBER($AR81),$AR81>0),$BW81*'Other Data'!$G$84,0))","v":""},null,"","","","","",{"$f":"IF($AC81=\"\",\"\",IF(AND(ISNUMBER($BX81), ISNUMBER($AZ81),$AZ81>0),SUM($BJ81,$BM81,$BP81)*'Other Data'!$H$83,0))","v":""},{"$f":"IF($AC81=\"\",\"\",IF(AND(ISNUMBER($BX81), ISNUMBER($AZ81),$AZ81>0),$BX81*'Other Data'!$G$84,0))","v":""},null,{"$f":"IF($C81=\"\",\"\",SUM('Ancillary Costs'!$N$91:$N$105)*(SUM($AR81,$AZ81,SUM($AS81,$BA81)*'Project Information'!$D$12)))","v":""},{"$f":"IF($C81=\"\",\"\",SUMIFS('Ancillary Costs'!$N$72:$N$86,'Ancillary Costs'!$FL$72:$FL$86,\"*xx\"&'Project Scope'!$C81&\"xx*\")*(SUM($AR81,$AZ81,SUM($AS81,$BA81)*'Project Information'!$D$12)))","v":""},{"$f":"IFERROR(IF($C81=\"\",\"\",SUMIFS('Ancillary Costs'!$N$8:$N$67,'Ancillary Costs'!$FL$8:$FL$67,\"*xx\"&'Project Scope'!C81&\"xx*\",'Ancillary Costs'!$I$8:$I$67,'Project Scope'!$AN81)*'Project Scope'!$AO81),0)","v":""},{"$f":"IFERROR(IF($C81=\"\",\"\",SUMIFS('Ancillary Costs'!$N$8:$N$67,'Ancillary Costs'!$FL$8:$FL$67,\"*xx\"&'Project Scope'!C81&\"xx*\",'Ancillary Costs'!$I$8:$I$67,'Project Scope'!$AW81)*'Project Scope'!$AX81),0)","v":""},{"$f":"IF($C81=\"\",\"\",IF(SUM($AR81,$AZ81,SUM($AS81,$BA81)*'Project Information'!$D$12)=0,0,SUM($BG81,(SUM($BE81:$BF81))*((SUM($AR81,(IF(ISNUMBER($AS81),$AS81,0)*'Project Information'!$D$12)))/SUM($AR81,$AZ81,SUM($AS81,$BA81)*'Project Information'!$D$12)))))","v":""},{"$f":"IF($C81=\"\",\"\",IF(SUM($AR81,$AZ81,SUM($AS81,$BA81)*'Project Information'!$D$12)=0,0,SUM($BH81,(SUM($BE81:$BF81))*((SUM($AZ81,(IF(ISNUMBER($BA81),$BA81,0)*'Project Information'!$D$12)))/SUM($AR81,$AZ81,SUM($AS81,$BA81)*'Project Information'!$D$12)))))","v":""},null,"","","",{"$f":"IF($C81=\"\",\"\",IF(OR($AS81=\"\",$CX81=\"b\"),0,$AS81*'Project Information'!$D$12))","v":""},{"$f":"IF($C81=\"\",\"\",IF(OR($BA81=\"\",$CX81=\"b\"),0,$BA81*'Project Information'!$D$12))","v":""},"","","","","",null,{"$f":"CBAT!$AB81","v":""},{"$f":"CBAT!$BZ81","v":""},0,null,"","",0,{"$f":"IF($Q81=\"\",\"\",IF(OR($CX81<>\"c\",SUM($BY$8:$BY$107)=0),0,ROUND(BW81*MIN('Other Data'!$G$84,'Other Data'!$H$84*IF('Project Information'!$F$10=\"X\",('Project Information'!$L$42-'Project Information'!$L$39),'Project Information'!$L$42)/SUMPRODUCT($BY$8:$BY$107,--($CX$8:$CX$107=\"c\"))),0)))","v":""},{"$f":"IF($AC81=\"\",\"\",IF(OR($CX81<>\"c\",SUM($BY$8:$BY$107)=0),0,ROUND(BX81*MIN('Other Data'!$G$84,'Other Data'!$H$84*IF('Project Information'!$F$10=\"X\",('Project Information'!$L$42-'Project Information'!$L$39),'Project Information'!$L$42)/SUMPRODUCT($BY$8:$BY$107,--($CX$8:$CX$107=\"c\"))),0)))","v":""},0,null,"","",{"$f":"IF($J81=\"\",\"\",VLOOKUP($J81,'TRM Data'!$R$4:$S$168,2,FALSE))","v":""},"","","",null,{"$f":"IF($CV81=0,\"\",CBAT!$DJ81)","v":""},null,null,1,1,0,1,0,null,{"$f":"IF(OR($CV81=0,ISBLANK('Project Information'!$D$44)),\"\",IF(AND($CV81=1,$CO81<1,$G81=\"yes\"),\"a\",IF($CO81<1,\"b\",\"c\")))","v":""}]
[0,75,null,null,null,null,null,{"$f":"IF($C82=\"\",\"\",IF(COUNTIF('Project Information'!$J$9:BG$9,$C82)<>1,\"\",INDEX('Project Information'!$J$8:$BG$8,1,MATCH($C82,'Project Information'!$J$9:BG$9,0))))","v":""},null,null,{"$f":"LOOKUP(2,1/(COUNTIF($K$7:K81,$Q$8:$Q$108)=0),$Q$8:$Q$108)","v":{"$error":"#N/A"}},{"$f":"IF(OR('Project Information'!$D$32=\"\",C82=\"\"),\"\",'Project Information'!$D$32)","v":""},{"$f":"IF($C82=\"\",\"\",IF(COUNTIF('Project Information'!$J$9:$BG$9,$C82)=1,HLOOKUP(C82,'Project Information'!$J$9:$BG$10,2,FALSE),0))","v":""},null,null,null,null,null,null,null,{"$f":"IF(Q82<>\"\",IF('Project Information'!$D$33=\"Small Business\",\"I\",\"P\")&VLOOKUP($Q82,'TRM Data'!$C$5:$N$201,COLUMN('TRM Data'!$E$2)-COLUMN('TRM Data'!$C$2)+1,FALSE)&IF($L82=\"Summer\",\"S\",IF($L82=\"Winter\",\"W\",\"Y\")),\"\")","v":""},{"$f":"IF(OR($F82=\"Controls\",$F82=\"\"),\"\",VLOOKUP($Q82,'TRM Data'!$C$5:$N$201,COLUMN('TRM Data'!$F$2)-COLUMN('TRM Data'!$C$2)+1,FALSE))","v":""},null,{"$f":"IF($R82=0,\"\",VLOOKUP($Q82,'TRM Data'!$C$5:$N$201,COLUMN('TRM Data'!$G$2)-COLUMN('TRM Data'!$C$2)+1,FALSE)*$R82)","v":""},null,{"$f":"IF($R82=0,\"\",VLOOKUP($Q82,'TRM Data'!$C$5:$N$201,COLUMN('TRM Data'!$I$2)-COLUMN('TRM Data'!$C$2)+1,FALSE)*$R82)","v":""},{"$f":"IF($Q82=\"\",\"\",IF('Project Information'!$D$33=\"Small Business\",'Project Scope'!$CA82,IF('Project Information'!$D$33=\"Pay for Performance\",'Project Scope'!$CD82,0)))","v":""},null,null,null,{"$f":"IF(AC82<>\"\",\"P\"&VLOOKUP($AC82,'TRM Data'!$C$5:$N$201,COLUMN('TRM Data'!$E$2)-COLUMN('TRM Data'!$C$2)+1,FALSE)&IF($L82=\"Summer\",\"S\",IF($L82=\"Winter\",\"W\",\"Y\")),\"\")","v":""},{"$f":"IF($AD82=0,\"\",VLOOKUP($AC82,'TRM Data'!$C$5:$N$201,COLUMN('TRM Data'!$G$2)-COLUMN('TRM Data'!$C$2)+1,FALSE)*$AD82)","v":""},null,{"$f":"IF($AD82=0,\"\",VLOOKUP($AC82,'TRM Data'!$C$5:$N$201,COLUMN('TRM Data'!$I$2)-COLUMN('TRM Data'!$C$2)+1,FALSE)*$AD82)","v":""},{"$f":"IF($AC82=\"\",\"\",IF('Project Information'!$D$33=\"Small Business\",'Project Scope'!$CB82,IF('Project Information'!$D$33=\"Pay for Performance\",'Project Scope'!$CE82,0)))","v":""},null,"",null,"","","","","","","",{"$f":"IF($Q82=\"\",\"\",IF(AND(ISNUMBER($BW82),ISNUMBER($AR82),$AR82>0),SUM($BL82,$BO82,$BI82)*'Other Data'!$H$83,0))","v":""},{"$f":"IF($Q82=\"\",\"\",IF(AND(ISNUMBER($BW82),ISNUMBER($AR82),$AR82>0),$BW82*'Other Data'!$G$84,0))","v":""},null,"","","","","",{"$f":"IF($AC82=\"\",\"\",IF(AND(ISNUMBER($BX82), ISNUMBER($AZ82),$AZ82>0),SUM($BJ82,$BM82,$BP82)*'Other Data'!$H$83,0))","v":""},{"$f":"IF($AC82=\"\",\"\",IF(AND(ISNUMBER($BX82), ISNUMBER($AZ82),$AZ82>0),$BX82*'Other Data'!$G$84,0))","v":""},null,{"$f":"IF($C82=\"\",\"\",SUM('Ancillary Costs'!$N$91:$N$105)*(SUM($AR82,$AZ82,SUM($AS82,$BA82)*'Project Information'!$D$12)))","v":""},{"$f":"IF($C82=\"\",\"\",SUMIFS('Ancillary Costs'!$N$72:$N$86,'Ancillary Costs'!$FL$72:$FL$86,\"*xx\"&'Project Scope'!$C82&\"xx*\")*(SUM($AR82,$AZ82,SUM($AS82,$BA82)*'Project Information'!$D$12)))","v":""},{"$f":"IFERROR(IF($C82=\"\",\"\",SUMIFS('Ancillary Costs'!$N$8:$N$67,'Ancillary Costs'!$FL$8:$FL$67,\"*xx\"&'Project Scope'!C82&\"xx*\",'Ancillary Costs'!$I$8:$I$67,'Project Scope'!$AN82)*'Project Scope'!$AO82),0)","v":""},{"$f":"IFERROR(IF($C82=\"\",\"\",SUMIFS('Ancillary Costs'!$N$8:$N$67,'Ancillary Costs'!$FL$8:$FL$67,\"*xx\"&'Project Scope'!C82&\"xx*\",'Ancillary Costs'!$I$8:$I$67,'Project Scope'!$AW82)*'Project Scope'!$AX82),0)","v":""},{"$f":"IF($C82=\"\",\"\",IF(SUM($AR82,$AZ82,SUM($AS82,$BA82)*'Project Information'!$D$12)=0,0,SUM($BG82,(SUM($BE82:$BF82))*((SUM($AR82,(IF(ISNUMBER($AS82),$AS82,0)*'Project Information'!$D$12)))/SUM($AR82,$AZ82,SUM($AS82,$BA82)*'Project Information'!$D$12)))))","v":""},{"$f":"IF($C82=\"\",\"\",IF(SUM($AR82,$AZ82,SUM($AS82,$BA82)*'Project Information'!$D$12)=0,0,SUM($BH82,(SUM($BE82:$BF82))*((SUM($AZ82,(IF(ISNUMBER($BA82),$BA82,0)*'Project Information'!$D$12)))/SUM($AR82,$AZ82,SUM($AS82,$BA82)*'Project Information'!$D$12)))))","v":""},null,"","","",{"$f":"IF($C82=\"\",\"\",IF(OR($AS82=\"\",$CX82=\"b\"),0,$AS82*'Project Information'!$D$12))","v":""},{"$f":"IF($C82=\"\",\"\",IF(OR($BA82=\"\",$CX82=\"b\"),0,$BA82*'Project Information'!$D$12))","v":""},"","","","","",null,{"$f":"CBAT!$AB82","v":""},{"$f":"CBAT!$BZ82","v":""},0,null,"","",0,{"$f":"IF($Q82=\"\",\"\",IF(OR($CX82<>\"c\",SUM($BY$8:$BY$107)=0),0,ROUND(BW82*MIN('Other Data'!$G$84,'Other Data'!$H$84*IF('Project Information'!$F$10=\"X\",('Project Information'!$L$42-'Project Information'!$L$39),'Project Information'!$L$42)/SUMPRODUCT($BY$8:$BY$107,--($CX$8:$CX$107=\"c\"))),0)))","v":""},{"$f":"IF($AC82=\"\",\"\",IF(OR($CX82<>\"c\",SUM($BY$8:$BY$107)=0),0,ROUND(BX82*MIN('Other Data'!$G$84,'Other Data'!$H$84*IF('Project Information'!$F$10=\"X\",('Project Information'!$L$42-'Project Information'!$L$39),'Project Information'!$L$42)/SUMPRODUCT($BY$8:$BY$107,--($CX$8:$CX$107=\"c\"))),0)))","v":""},0,null,"","",{"$f":"IF($J82=\"\",\"\",VLOOKUP($J82,'TRM Data'!$R$4:$S$168,2,FALSE))","v":""},"","","",null,{"$f":"IF($CV82=0,\"\",CBAT!$DJ82)","v":""},null,null,1,1,0,1,0,null,{"$f":"IF(OR($CV82=0,ISBLANK('Project Information'!$D$44)),\"\",IF(AND($CV82=1,$CO82<1,$G82=\"yes\"),\"a\",IF($CO82<1,\"b\",\"c\")))","v":""}]
[0,76,null,null,null,null,null,{"$f":"IF($C83=\"\",\"\",IF(COUNTIF('Project Information'!$J$9:BG$9,$C83)<>1,\"\",INDEX('Project Information'!$J$8:$BG$8,1,MATCH($C83,'Project Information'!$J$9:BG$9,0))))","v":""},null,null,{"$f":"LOOKUP(2,1/(COUNTIF($K$7:K82,$Q$8:$Q$108)=0),$Q$8:$Q$108)","v":{"$error":"#N/A"}},{"$f":"IF(OR('Project Information'!$D$32=\"\",C83=\"\"),\"\",'Project Information'!$D$32)","v":""},{"$f":"IF($C83=\"\",\"\",IF(COUNTIF('Project Information'!$J$9:$BG$9,$C83)=1,HLOOKUP(C83,'Project Information'!$J$9:$BG$10,2,FALSE),0))","v":""},null,null,null,null,null,null,null,{"$f":"IF(Q83<>\"\",IF('Project Information'!$D$33=\"Small Business\",\"I\",\"P\")&VLOOKUP($Q83,'TRM Data'!$C$5:$N$201,COLUMN('TRM Data'!$E$2)-COLUMN('TRM Data'!$C$2)+1,FALSE)&IF($L83=\"Summer\",\"S\",IF($L83=\"Winter\",\"W\",\"Y\")),\"\")","v":""},{"$f":"IF(OR($F83=\"Controls\",$F83=\"\"),\"\",VLOOKUP($Q83,'TRM Data'!$C$5:$N$201,COLUMN('TRM Data'!$F$2)-COLUMN('TRM Data'!$C$2)+1,FALSE))","v":""},null,{"$f":"IF($R83=0,\"\",VLOOKUP($Q83,'TRM Data'!$C$5:$N$201,COLUMN('TRM Data'!$G$2)-COLUMN('TRM Data'!$C$2)+1,FALSE)*$R83)","v":""},null,{"$f":"IF($R83=0,\"\",VLOOKUP($Q83,'TRM Data'!$C$5:$N$201,COLUMN('TRM Data'!$I$2)-COLUMN('TRM Data'!$C$2)+1,FALSE)*$R83)","v":""},{"$f":"IF($Q83=\"\",\"\",IF('Project Information'!$D$33=\"Small Business\",'Project Scope'!$CA83,IF('Project Information'!$D$33=\"Pay for Performance\",'Project Scope'!$CD83,0)))","v":""},null,null,null,{"$f":"IF(AC83<>\"\",\"P\"&VLOOKUP($AC83,'TRM Data'!$C$5:$N$201,COLUMN('TRM Data'!$E$2)-COLUMN('TRM Data'!$C$2)+1,FALSE)&IF($L83=\"Summer\",\"S\",IF($L83=\"Winter\",\"W\",\"Y\")),\"\")","v":""},{"$f":"IF($AD83=0,\"\",VLOOKUP($AC83,'TRM Data'!$C$5:$N$201,COLUMN('TRM Data'!$G$2)-COLUMN('TRM Data'!$C$2)+1,FALSE)*$AD83)","v":""},null,{"$f":"IF($AD83=0,\"\",VLOOKUP($AC83,'TRM Data'!$C$5:$N$201,COLUMN('TRM Data'!$I$2)-COLUMN('TRM Data'!$C$2)+1,FALSE)*$AD83)","v":""},{"$f":"IF($AC83=\"\",\"\",IF('Project Information'!$D$33=\"Small Business\",'Project Scope'!$CB83,IF('Project Information'!$D$33=\"Pay for Performance\",'Project Scope'!$CE83,0)))","v":""},null,"",null,"","","","","","","",{"$f":"IF($Q83=\"\",\"\",IF(AND(ISNUMBER($BW83),ISNUMBER($AR83),$AR83>0),SUM($BL83,$BO83,$BI83)*'Other Data'!$H$83,0))","v":""},{"$f":"IF($Q83=\"\",\"\",IF(AND(ISNUMBER($BW83),ISNUMBER($AR83),$AR83>0),$BW83*'Other Data'!$G$84,0))","v":""},null,"","","","","",{"$f":"IF($AC83=\"\",\"\",IF(AND(ISNUMBER($BX83), ISNUMBER($AZ83),$AZ83>0),SUM($BJ83,$BM83,$BP83)*'Other Data'!$H$83,0))","v":""},{"$f":"IF($AC83=\"\",\"\",IF(AND(ISNUMBER($BX83), ISNUMBER($AZ83),$AZ83>0),$BX83*'Other Data'!$G$84,0))","v":""},null,{"$f":"IF($C83=\"\",\"\",SUM('Ancillary Costs'!$N$91:$N$105)*(SUM($AR83,$AZ83,SUM($AS83,$BA83)*'Project Information'!$D$12)))","v":""},{"$f":"IF($C83=\"\",\"\",SUMIFS('Ancillary Costs'!$N$72:$N$86,'Ancillary Costs'!$FL$72:$FL$86,\"*xx\"&'Project Scope'!$C83&\"xx*\")*(SUM($AR83,$AZ83,SUM($AS83,$BA83)*'Project Information'!$D$12)))","v":""},{"$f":"IFERROR(IF($C83=\"\",\"\",SUMIFS('Ancillary Costs'!$N$8:$N$67,'Ancillary Costs'!$FL$8:$FL$67,\"*xx\"&'Project Scope'!C83&\"xx*\",'Ancillary Costs'!$I$8:$I$67,'Project Scope'!$AN83)*'Project Scope'!$AO83),0)","v":""},{"$f":"IFERROR(IF($C83=\"\",\"\",SUMIFS('Ancillary Costs'!$N$8:$N$67,'Ancillary Costs'!$FL$8:$FL$67,\"*xx\"&'Project Scope'!C83&\"xx*\",'Ancillary Costs'!$I$8:$I$67,'Project Scope'!$AW83)*'Project Scope'!$AX83),0)","v":""},{"$f":"IF($C83=\"\",\"\",IF(SUM($AR83,$AZ83,SUM($AS83,$BA83)*'Project Information'!$D$12)=0,0,SUM($BG83,(SUM($BE83:$BF83))*((SUM($AR83,(IF(ISNUMBER($AS83),$AS83,0)*'Project Information'!$D$12)))/SUM($AR83,$AZ83,SUM($AS83,$BA83)*'Project Information'!$D$12)))))","v":""},{"$f":"IF($C83=\"\",\"\",IF(SUM($AR83,$AZ83,SUM($AS83,$BA83)*'Project Information'!$D$12)=0,0,SUM($BH83,(SUM($BE83:$BF83))*((SUM($AZ83,(IF(ISNUMBER($BA83),$BA83,0)*'Project Information'!$D$12)))/SUM($AR83,$AZ83,SUM($AS83,$BA83)*'Project Information'!$D$12)))))","v":""},null,"","","",{"$f":"IF($C83=\"\",\"\",IF(OR($AS83=\"\",$CX83=\"b\"),0,$AS83*'Project Information'!$D$12))","v":""},{"$f":"IF($C83=\"\",\"\",IF(OR($BA83=\"\",$CX83=\"b\"),0,$BA83*'Project Information'!$D$12))","v":""},"","","","","",null,{"$f":"CBAT!$AB83","v":""},{"$f":"CBAT!$BZ83","v":""},0,null,"","",0,{"$f":"IF($Q83=\"\",\"\",IF(OR($CX83<>\"c\",SUM($BY$8:$BY$107)=0),0,ROUND(BW83*MIN('Other Data'!$G$84,'Other Data'!$H$84*IF('Project Information'!$F$10=\"X\",('Project Information'!$L$42-'Project Information'!$L$39),'Project Information'!$L$42)/SUMPRODUCT($BY$8:$BY$107,--($CX$8:$CX$107=\"c\"))),0)))","v":""},{"$f":"IF($AC83=\"\",\"\",IF(OR($CX83<>\"c\",SUM($BY$8:$BY$107)=0),0,ROUND(BX83*MIN('Other Data'!$G$84,'Other Data'!$H$84*IF('Project Information'!$F$10=\"X\",('Project Information'!$L$42-'Project Information'!$L$39),'Project Information'!$L$42)/SUMPRODUCT($BY$8:$BY$107,--($CX$8:$CX$107=\"c\"))),0)))","v":""},0,null,"","",{"$f":"IF($J83=\"\",\"\",VLOOKUP($J83,'TRM Data'!$R$4:$S$168,2,FALSE))","v":""},"","","",null,{"$f":"IF($CV83=0,\"\",CBAT!$DJ83)","v":""},null,null,1,1,0,1,0,null,{"$f":"IF(OR($CV83=0,ISBLANK('Project Information'!$D$44)),\"\",IF(AND($CV83=1,$CO83<1,$G83=\"yes\"),\"a\",IF($CO83<1,\"b\",\"c\")))","v":""}]
[0,77,null,null,null,null,null,{"$f":"IF($C84=\"\",\"\",IF(COUNTIF('Project Information'!$J$9:BG$9,$C84)<>1,\"\",INDEX('Project Information'!$J$8:$BG$8,1,MATCH($C84,'Project Information'!$J$9:BG$9,0))))","v":""},null,null,{"$f":"LOOKUP(2,1/(COUNTIF($K$7:K83,$Q$8:$Q$108)=0),$Q$8:$Q$108)","v":{"$error":"#N/A"}},{"$f":"IF(OR('Project Information'!$D$32=\"\",C84=\"\"),\"\",'Project Information'!$D$32)","v":""},{"$f":"IF($C84=\"\",\"\",IF(COUNTIF('Project Information'!$J$9:$BG$9,$C84)=1,HLOOKUP(C84,'Project Information'!$J$9:$BG$10,2,FALSE),0))","v":""},null,null,null,null,null,null,null,{"$f":"IF(Q84<>\"\",IF('Project Information'!$D$33=\"Small Business\",\"I\",\"P\")&VLOOKUP($Q84,'TRM Data'!$C$5:$N$201,COLUMN('TRM Data'!$E$2)-COLUMN('TRM Data'!$C$2)+1,FALSE)&IF($L84=\"Summer\",\"S\",IF($L84=\"Winter\",\"W\",\"Y\")),\"\")","v":""},{"$f":"IF(OR($F84=\"Controls\",$F84=\"\"),\"\",VLOOKUP($Q84,'TRM Data'!$C$5:$N$201,COLUMN('TRM Data'!$F$2)-COLUMN('TRM Data'!$C$2)+1,FALSE))","v":""},null,{"$f":"IF($R84=0,\"\",VLOOKUP($Q84,'TRM Data'!$C$5:$N$201,COLUMN('TRM Data'!$G$2)-COLUMN('TRM Data'!$C$2)+1,FALSE)*$R84)","v":""},null,{"$f":"IF($R84=0,\"\",VLOOKUP($Q84,'TRM Data'!$C$5:$N$201,COLUMN('TRM Data'!$I$2)-COLUMN('TRM Data'!$C$2)+1,FALSE)*$R84)","v":""},{"$f":"IF($Q84=\"\",\"\",IF('Project Information'!$D$33=\"Small Business\",'Project Scope'!$CA84,IF('Project Information'!$D$33=\"Pay for Performance\",'Project Scope'!$CD84,0)))","v":""},null,null,null,{"$f":"IF(AC84<>\"\",\"P\"&VLOOKUP($AC84,'TRM Data'!$C$5:$N$201,COLUMN('TRM Data'!$E$2)-COLUMN('TRM Data'!$C$2)+1,FALSE)&IF($L84=\"Summer\",\"S\",IF($L84=\"Winter\",\"W\",\"Y\")),\"\")","v":""},{"$f":"IF($AD84=0,\"\",VLOOKUP($AC84,'TRM Data'!$C$5:$N$201,COLUMN('TRM Data'!$G$2)-COLUMN('TRM Data'!$C$2)+1,FALSE)*$AD84)","v":""},null,{"$f":"IF($AD84=0,\"\",VLOOKUP($AC84,'TRM Data'!$C$5:$N$201,COLUMN('TRM Data'!$I$2)-COLUMN('TRM Data'!$C$2)+1,FALSE)*$AD84)","v":""},{"$f":"IF($AC84=\"\",\"\",IF('Project Information'!$D$33=\"Small Business\",'Project Scope'!$CB84,IF('Project Information'!$D$33=\"Pay for Performance\",'Project Scope'!$CE84,0)))","v":""},null,"",null,"","","","","","","",{"$f":"IF($Q84=\"\",\"\",IF(AND(ISNUMBER($BW84),ISNUMBER($AR84),$AR84>0),SUM($BL84,$BO84,$BI84)*'Other Data'!$H$83,0))","v":""},{"$f":"IF($Q84=\"\",\"\",IF(AND(ISNUMBER($BW84),ISNUMBER($AR84),$AR84>0),$BW84*'Other Data'!$G$84,0))","v":""},null,"","","","","",{"$f":"IF($AC84=\"\",\"\",IF(AND(ISNUMBER($BX84), ISNUMBER($AZ84),$AZ84>0),SUM($BJ84,$BM84,$BP84)*'Other Data'!$H$83,0))","v":""},{"$f":"IF($AC84=\"\",\"\",IF(AND(ISNUMBER($BX84), ISNUMBER($AZ84),$AZ84>0),$BX84*'Other Data'!$G$84,0))","v":""},null,{"$f":"IF($C84=\"\",\"\",SUM('Ancillary Costs'!$N$91:$N$105)*(SUM($AR84,$AZ84,SUM($AS84,$BA84)*'Project Information'!$D$12)))","v":""},{"$f":"IF($C84=\"\",\"\",SUMIFS('Ancillary Costs'!$N$72:$N$86,'Ancillary Costs'!$FL$72:$FL$86,\"*xx\"&'Project Scope'!$C84&\"xx*\")*(SUM($AR84,$AZ84,SUM($AS84,$BA84)*'Project Information'!$D$12)))","v":""},{"$f":"IFERROR(IF($C84=\"\",\"\",SUMIFS('Ancillary Costs'!$N$8:$N$67,'Ancillary Costs'!$FL$8:$FL$67,\"*xx\"&'Project Scope'!C84&\"xx*\",'Ancillary Costs'!$I$8:$I$67,'Project Scope'!$AN84)*'Project Scope'!$AO84),0)","v":""},{"$f":"IFERROR(IF($C84=\"\",\"\",SUMIFS('Ancillary Costs'!$N$8:$N$67,'Ancillary Costs'!$FL$8:$FL$67,\"*xx\"&'Project Scope'!C84&\"xx*\",'Ancillary Costs'!$I$8:$I$67,'Project Scope'!$AW84)*'Project Scope'!$AX84),0)","v":""},{"$f":"IF($C84=\"\",\"\",IF(SUM($AR84,$AZ84,SUM($AS84,$BA84)*'Project Information'!$D$12)=0,0,SUM($BG84,(SUM($BE84:$BF84))*((SUM($AR84,(IF(ISNUMBER($AS84),$AS84,0)*'Project Information'!$D$12)))/SUM($AR84,$AZ84,SUM($AS84,$BA84)*'Project Information'!$D$12)))))","v":""},{"$f":"IF($C84=\"\",\"\",IF(SUM($AR84,$AZ84,SUM($AS84,$BA84)*'Project Information'!$D$12)=0,0,SUM($BH84,(SUM($BE84:$BF84))*((SUM($AZ84,(IF(ISNUMBER($BA84),$BA84,0)*'Project Information'!$D$12)))/SUM($AR84,$AZ84,SUM($AS84,$BA84)*'Project Information'!$D$12)))))","v":""},null,"","","",{"$f":"IF($C84=\"\",\"\",IF(OR($AS84=\"\",$CX84=\"b\"),0,$AS84*'Project Information'!$D$12))","v":""},{"$f":"IF($C84=\"\",\"\",IF(OR($BA84=\"\",$CX84=\"b\"),0,$BA84*'Project Information'!$D$12))","v":""},"","","","","",null,{"$f":"CBAT!$AB84","v":""},{"$f":"CBAT!$BZ84","v":""},0,null,"","",0,{"$f":"IF($Q84=\"\",\"\",IF(OR($CX84<>\"c\",SUM($BY$8:$BY$107)=0),0,ROUND(BW84*MIN('Other Data'!$G$84,'Other Data'!$H$84*IF('Project Information'!$F$10=\"X\",('Project Information'!$L$42-'Project Information'!$L$39),'Project Information'!$L$42)/SUMPRODUCT($BY$8:$BY$107,--($CX$8:$CX$107=\"c\"))),0)))","v":""},{"$f":"IF($AC84=\"\",\"\",IF(OR($CX84<>\"c\",SUM($BY$8:$BY$107)=0),0,ROUND(BX84*MIN('Other Data'!$G$84,'Other Data'!$H$84*IF('Project Information'!$F$10=\"X\",('Project Information'!$L$42-'Project Information'!$L$39),'Project Information'!$L$42)/SUMPRODUCT($BY$8:$BY$107,--($CX$8:$CX$107=\"c\"))),0)))","v":""},0,null,"","",{"$f":"IF($J84=\"\",\"\",VLOOKUP($J84,'TRM Data'!$R$4:$S$168,2,FALSE))","v":""},"","","",null,{"$f":"IF($CV84=0,\"\",CBAT!$DJ84)","v":""},null,null,1,1,0,1,0,null,{"$f":"IF(OR($CV84=0,ISBLANK('Project Information'!$D$44)),\"\",IF(AND($CV84=1,$CO84<1,$G84=\"yes\"),\"a\",IF($CO84<1,\"b\",\"c\")))","v":""}]
[0,78,null,null,null,null,null,{"$f":"IF($C85=\"\",\"\",IF(COUNTIF('Project Information'!$J$9:BG$9,$C85)<>1,\"\",INDEX('Project Information'!$J$8:$BG$8,1,MATCH($C85,'Project Information'!$J$9:BG$9,0))))","v":""},null,null,{"$f":"LOOKUP(2,1/(COUNTIF($K$7:K84,$Q$8:$Q$108)=0),$Q$8:$Q$108)","v":{"$error":"#N/A"}},{"$f":"IF(OR('Project Information'!$D$32=\"\",C85=\"\"),\"\",'Project Information'!$D$32)","v":""},{"$f":"IF($C85=\"\",\"\",IF(COUNTIF('Project Information'!$J$9:$BG$9,$C85)=1,HLOOKUP(C85,'Project Information'!$J$9:$BG$10,2,FALSE),0))","v":""},null,null,null,null,null,null,null,{"$f":"IF(Q85<>\"\",IF('Project Information'!$D$33=\"Small Business\",\"I\",\"P\")&VLOOKUP($Q85,'TRM Data'!$C$5:$N$201,COLUMN('TRM Data'!$E$2)-COLUMN('TRM Data'!$C$2)+1,FALSE)&IF($L85=\"Summer\",\"S\",IF($L85=\"Winter\",\"W\",\"Y\")),\"\")","v":""},{"$f":"IF(OR($F85=\"Controls\",$F85=\"\"),\"\",VLOOKUP($Q85,'TRM Data'!$C$5:$N$201,COLUMN('TRM Data'!$F$2)-COLUMN('TRM Data'!$C$2)+1,FALSE))","v":""},null,{"$f":"IF($R85=0,\"\",VLOOKUP($Q85,'TRM Data'!$C$5:$N$201,COLUMN('TRM Data'!$G$2)-COLUMN('TRM Data'!$C$2)+1,FALSE)*$R85)","v":""},null,{"$f":"IF($R85=0,\"\",VLOOKUP($Q85,'TRM Data'!$C$5:$N$201,COLUMN('TRM Data'!$I$2)-COLUMN('TRM Data'!$C$2)+1,FALSE)*$R85)","v":""},{"$f":"IF($Q85=\"\",\"\",IF('Project Information'!$D$33=\"Small Business\",'Project Scope'!$CA85,IF('Project Information'!$D$33=\"Pay for Performance\",'Project Scope'!$CD85,0)))","v":""},null,null,null,{"$f":"IF(AC85<>\"\",\"P\"&VLOOKUP($AC85,'TRM Data'!$C$5:$N$201,COLUMN('TRM Data'!$E$2)-COLUMN('TRM Data'!$C$2)+1,FALSE)&IF($L85=\"Summer\",\"S\",IF($L85=\"Winter\",\"W\",\"Y\")),\"\")","v":""},{"$f":"IF($AD85=0,\"\",VLOOKUP($AC85,'TRM Data'!$C$5:$N$201,COLUMN('TRM Data'!$G$2)-COLUMN('TRM Data'!$C$2)+1,FALSE)*$AD85)","v":""},null,{"$f":"IF($AD85=0,\"\",VLOOKUP($AC85,'TRM Data'!$C$5:$N$201,COLUMN('TRM Data'!$I$2)-COLUMN('TRM Data'!$C$2)+1,FALSE)*$AD85)","v":""},{"$f":"IF($AC85=\"\",\"\",IF('Project Information'!$D$33=\"Small Business\",'Project Scope'!$CB85,IF('Project Information'!$D$33=\"Pay for Performance\",'Project Scope'!$CE85,0)))","v":""},null,"",null,"","","","","","","",{"$f":"IF($Q85=\"\",\"\",IF(AND(ISNUMBER($BW85),ISNUMBER($AR85),$AR85>0),SUM($BL85,$BO85,$BI85)*'Other Data'!$H$83,0))","v":""},{"$f":"IF($Q85=\"\",\"\",IF(AND(ISNUMBER($BW85),ISNUMBER($AR85),$AR85>0),$BW85*'Other Data'!$G$84,0))","v":""},null,"","","","","",{"$f":"IF($AC85=\"\",\"\",IF(AND(ISNUMBER($BX85), ISNUMBER($AZ85),$AZ85>0),SUM($BJ85,$BM85,$BP85)*'Other Data'!$H$83,0))","v":""},{"$f":"IF($AC85=\"\",\"\",IF(AND(ISNUMBER($BX85), ISNUMBER($AZ85),$AZ85>0),$BX85*'Other Data'!$G$84,0))","v":""},null,{"$f":"IF($C85=\"\",\"\",SUM('Ancillary Costs'!$N$91:$N$105)*(SUM($AR85,$AZ85,SUM($AS85,$BA85)*'Project Information'!$D$12)))","v":""},{"$f":"IF($C85=\"\",\"\",SUMIFS('Ancillary Costs'!$N$72:$N$86,'Ancillary Costs'!$FL$72:$FL$86,\"*xx\"&'Project Scope'!$C85&\"xx*\")*(SUM($AR85,$AZ85,SUM($AS85,$BA85)*'Project Information'!$D$12)))","v":""},{"$f":"IFERROR(IF($C85=\"\",\"\",SUMIFS('Ancillary Costs'!$N$8:$N$67,'Ancillary Costs'!$FL$8:$FL$67,\"*xx\"&'Project Scope'!C85&\"xx*\",'Ancillary Costs'!$I$8:$I$67,'Project Scope'!$AN85)*'Project Scope'!$AO85),0)","v":""},{"$f":"IFERROR(IF($C85=\"\",\"\",SUMIFS('Ancillary Costs'!$N$8:$N$67,'Ancillary Costs'!$FL$8:$FL$67,\"*xx\"&'Project Scope'!C85&\"xx*\",'Ancillary Costs'!$I$8:$I$67,'Project Scope'!$AW85)*'Project Scope'!$AX85),0)","v":""},{"$f":"IF($C85=\"\",\"\",IF(SUM($AR85,$AZ85,SUM($AS85,$BA85)*'Project Information'!$D$12)=0,0,SUM($BG85,(SUM($BE85:$BF85))*((SUM($AR85,(IF(ISNUMBER($AS85),$AS85,0)*'Project Information'!$D$12)))/SUM($AR85,$AZ85,SUM($AS85,$BA85)*'Project Information'!$D$12)))))","v":""},{"$f":"IF($C85=\"\",\"\",IF(SUM($AR85,$AZ85,SUM($AS85,$BA85)*'Project Information'!$D$12)=0,0,SUM($BH85,(SUM($BE85:$BF85))*((SUM($AZ85,(IF(ISNUMBER($BA85),$BA85,0)*'Project Information'!$D$12)))/SUM($AR85,$AZ85,SUM($AS85,$BA85)*'Project Information'!$D$12)))))","v":""},null,"","","",{"$f":"IF($C85=\"\",\"\",IF(OR($AS85=\"\",$CX85=\"b\"),0,$AS85*'Project Information'!$D$12))","v":""},{"$f":"IF($C85=\"\",\"\",IF(OR($BA85=\"\",$CX85=\"b\"),0,$BA85*'Project Information'!$D$12))","v":""},"","","","","",null,{"$f":"CBAT!$AB85","v":""},{"$f":"CBAT!$BZ85","v":""},0,null,"","",0,{"$f":"IF($Q85=\"\",\"\",IF(OR($CX85<>\"c\",SUM($BY$8:$BY$107)=0),0,ROUND(BW85*MIN('Other Data'!$G$84,'Other Data'!$H$84*IF('Project Information'!$F$10=\"X\",('Project Information'!$L$42-'Project Information'!$L$39),'Project Information'!$L$42)/SUMPRODUCT($BY$8:$BY$107,--($CX$8:$CX$107=\"c\"))),0)))","v":""},{"$f":"IF($AC85=\"\",\"\",IF(OR($CX85<>\"c\",SUM($BY$8:$BY$107)=0),0,ROUND(BX85*MIN('Other Data'!$G$84,'Other Data'!$H$84*IF('Project Information'!$F$10=\"X\",('Project Information'!$L$42-'Project Information'!$L$39),'Project Information'!$L$42)/SUMPRODUCT($BY$8:$BY$107,--($CX$8:$CX$107=\"c\"))),0)))","v":""},0,null,"","",{"$f":"IF($J85=\"\",\"\",VLOOKUP($J85,'TRM Data'!$R$4:$S$168,2,FALSE))","v":""},"","","",null,{"$f":"IF($CV85=0,\"\",CBAT!$DJ85)","v":""},null,null,1,1,0,1,0,null,{"$f":"IF(OR($CV85=0,ISBLANK('Project Information'!$D$44)),\"\",IF(AND($CV85=1,$CO85<1,$G85=\"yes\"),\"a\",IF($CO85<1,\"b\",\"c\")))","v":""}]
[0,79,null,null,null,null,null,{"$f":"IF($C86=\"\",\"\",IF(COUNTIF('Project Information'!$J$9:BG$9,$C86)<>1,\"\",INDEX('Project Information'!$J$8:$BG$8,1,MATCH($C86,'Project Information'!$J$9:BG$9,0))))","v":""},null,null,{"$f":"LOOKUP(2,1/(COUNTIF($K$7:K85,$Q$8:$Q$108)=0),$Q$8:$Q$108)","v":{"$error":"#N/A"}},{"$f":"IF(OR('Project Information'!$D$32=\"\",C86=\"\"),\"\",'Project Information'!$D$32)","v":""},{"$f":"IF($C86=\"\",\"\",IF(COUNTIF('Project Information'!$J$9:$BG$9,$C86)=1,HLOOKUP(C86,'Project Information'!$J$9:$BG$10,2,FALSE),0))","v":""},null,null,null,null,null,null,null,{"$f":"IF(Q86<>\"\",IF('Project Information'!$D$33=\"Small Business\",\"I\",\"P\")&VLOOKUP($Q86,'TRM Data'!$C$5:$N$201,COLUMN('TRM Data'!$E$2)-COLUMN('TRM Data'!$C$2)+1,FALSE)&IF($L86=\"Summer\",\"S\",IF($L86=\"Winter\",\"W\",\"Y\")),\"\")","v":""},{"$f":"IF(OR($F86=\"Controls\",$F86=\"\"),\"\",VLOOKUP($Q86,'TRM Data'!$C$5:$N$201,COLUMN('TRM Data'!$F$2)-COLUMN('TRM Data'!$C$2)+1,FALSE))","v":""},null,{"$f":"IF($R86=0,\"\",VLOOKUP($Q86,'TRM Data'!$C$5:$N$201,COLUMN('TRM Data'!$G$2)-COLUMN('TRM Data'!$C$2)+1,FALSE)*$R86)","v":""},null,{"$f":"IF($R86=0,\"\",VLOOKUP($Q86,'TRM Data'!$C$5:$N$201,COLUMN('TRM Data'!$I$2)-COLUMN('TRM Data'!$C$2)+1,FALSE)*$R86)","v":""},{"$f":"IF($Q86=\"\",\"\",IF('Project Information'!$D$33=\"Small Business\",'Project Scope'!$CA86,IF('Project Information'!$D$33=\"Pay for Performance\",'Project Scope'!$CD86,0)))","v":""},null,null,null,{"$f":"IF(AC86<>\"\",\"P\"&VLOOKUP($AC86,'TRM Data'!$C$5:$N$201,COLUMN('TRM Data'!$E$2)-COLUMN('TRM Data'!$C$2)+1,FALSE)&IF($L86=\"Summer\",\"S\",IF($L86=\"Winter\",\"W\",\"Y\")),\"\")","v":""},{"$f":"IF($AD86=0,\"\",VLOOKUP($AC86,'TRM Data'!$C$5:$N$201,COLUMN('TRM Data'!$G$2)-COLUMN('TRM Data'!$C$2)+1,FALSE)*$AD86)","v":""},null,{"$f":"IF($AD86=0,\"\",VLOOKUP($AC86,'TRM Data'!$C$5:$N$201,COLUMN('TRM Data'!$I$2)-COLUMN('TRM Data'!$C$2)+1,FALSE)*$AD86)","v":""},{"$f":"IF($AC86=\"\",\"\",IF('Project Information'!$D$33=\"Small Business\",'Project Scope'!$CB86,IF('Project Information'!$D$33=\"Pay for Performance\",'Project Scope'!$CE86,0)))","v":""},null,"",null,"","","","","","","",{"$f":"IF($Q86=\"\",\"\",IF(AND(ISNUMBER($BW86),ISNUMBER($AR86),$AR86>0),SUM($BL86,$BO86,$BI86)*'Other Data'!$H$83,0))","v":""},{"$f":"IF($Q86=\"\",\"\",IF(AND(ISNUMBER($BW86),ISNUMBER($AR86),$AR86>0),$BW86*'Other Data'!$G$84,0))","v":""},null,"","","","","",{"$f":"IF($AC86=\"\",\"\",IF(AND(ISNUMBER($BX86), ISNUMBER($AZ86),$AZ86>0),SUM($BJ86,$BM86,$BP86)*'Other Data'!$H$83,0))","v":""},{"$f":"IF($AC86=\"\",\"\",IF(AND(ISNUMBER($BX86), ISNUMBER($AZ86),$AZ86>0),$BX86*'Other Data'!$G$84,0))","v":""},null,{"$f":"IF($C86=\"\",\"\",SUM('Ancillary Costs'!$N$91:$N$105)*(SUM($AR86,$AZ86,SUM($AS86,$BA86)*'Project Information'!$D$12)))","v":""},{"$f":"IF($C86=\"\",\"\",SUMIFS('Ancillary Costs'!$N$72:$N$86,'Ancillary Costs'!$FL$72:$FL$86,\"*xx\"&'Project Scope'!$C86&\"xx*\")*(SUM($AR86,$AZ86,SUM($AS86,$BA86)*'Project Information'!$D$12)))","v":""},{"$f":"IFERROR(IF($C86=\"\",\"\",SUMIFS('Ancillary Costs'!$N$8:$N$67,'Ancillary Costs'!$FL$8:$FL$67,\"*xx\"&'Project Scope'!C86&\"xx*\",'Ancillary Costs'!$I$8:$I$67,'Project Scope'!$AN86)*'Project Scope'!$AO86),0)","v":""},{"$f":"IFERROR(IF($C86=\"\",\"\",SUMIFS('Ancillary Costs'!$N$8:$N$67,'Ancillary Costs'!$FL$8:$FL$67,\"*xx\"&'Project Scope'!C86&\"xx*\",'Ancillary Costs'!$I$8:$I$67,'Project Scope'!$AW86)*'Project Scope'!$AX86),0)","v":""},{"$f":"IF($C86=\"\",\"\",IF(SUM($AR86,$AZ86,SUM($AS86,$BA86)*'Project Information'!$D$12)=0,0,SUM($BG86,(SUM($BE86:$BF86))*((SUM($AR86,(IF(ISNUMBER($AS86),$AS86,0)*'Project Information'!$D$12)))/SUM($AR86,$AZ86,SUM($AS86,$BA86)*'Project Information'!$D$12)))))","v":""},{"$f":"IF($C86=\"\",\"\",IF(SUM($AR86,$AZ86,SUM($AS86,$BA86)*'Project Information'!$D$12)=0,0,SUM($BH86,(SUM($BE86:$BF86))*((SUM($AZ86,(IF(ISNUMBER($BA86),$BA86,0)*'Project Information'!$D$12)))/SUM($AR86,$AZ86,SUM($AS86,$BA86)*'Project Information'!$D$12)))))","v":""},null,"","","",{"$f":"IF($C86=\"\",\"\",IF(OR($AS86=\"\",$CX86=\"b\"),0,$AS86*'Project Information'!$D$12))","v":""},{"$f":"IF($C86=\"\",\"\",IF(OR($BA86=\"\",$CX86=\"b\"),0,$BA86*'Project Information'!$D$12))","v":""},"","","","","",null,{"$f":"CBAT!$AB86","v":""},{"$f":"CBAT!$BZ86","v":""},0,null,"","",0,{"$f":"IF($Q86=\"\",\"\",IF(OR($CX86<>\"c\",SUM($BY$8:$BY$107)=0),0,ROUND(BW86*MIN('Other Data'!$G$84,'Other Data'!$H$84*IF('Project Information'!$F$10=\"X\",('Project Information'!$L$42-'Project Information'!$L$39),'Project Information'!$L$42)/SUMPRODUCT($BY$8:$BY$107,--($CX$8:$CX$107=\"c\"))),0)))","v":""},{"$f":"IF($AC86=\"\",\"\",IF(OR($CX86<>\"c\",SUM($BY$8:$BY$107)=0),0,ROUND(BX86*MIN('Other Data'!$G$84,'Other Data'!$H$84*IF('Project Information'!$F$10=\"X\",('Project Information'!$L$42-'Project Information'!$L$39),'Project Information'!$L$42)/SUMPRODUCT($BY$8:$BY$107,--($CX$8:$CX$107=\"c\"))),0)))","v":""},0,null,"","",{"$f":"IF($J86=\"\",\"\",VLOOKUP($J86,'TRM Data'!$R$4:$S$168,2,FALSE))","v":""},"","","",null,{"$f":"IF($CV86=0,\"\",CBAT!$DJ86)","v":""},null,null,1,1,0,1,0,null,{"$f":"IF(OR($CV86=0,ISBLANK('Project Information'!$D$44)),\"\",IF(AND($CV86=1,$CO86<1,$G86=\"yes\"),\"a\",IF($CO86<1,\"b\",\"c\")))","v":""}]
[0,80,null,null,null,null,null,{"$f":"IF($C87=\"\",\"\",IF(COUNTIF('Project Information'!$J$9:BG$9,$C87)<>1,\"\",INDEX('Project Information'!$J$8:$BG$8,1,MATCH($C87,'Project Information'!$J$9:BG$9,0))))","v":""},null,null,{"$f":"LOOKUP(2,1/(COUNTIF($K$7:K86,$Q$8:$Q$108)=0),$Q$8:$Q$108)","v":{"$error":"#N/A"}},{"$f":"IF(OR('Project Information'!$D$32=\"\",C87=\"\"),\"\",'Project Information'!$D$32)","v":""},{"$f":"IF($C87=\"\",\"\",IF(COUNTIF('Project Information'!$J$9:$BG$9,$C87)=1,HLOOKUP(C87,'Project Information'!$J$9:$BG$10,2,FALSE),0))","v":""},null,null,null,null,null,null,null,{"$f":"IF(Q87<>\"\",IF('Project Information'!$D$33=\"Small Business\",\"I\",\"P\")&VLOOKUP($Q87,'TRM Data'!$C$5:$N$201,COLUMN('TRM Data'!$E$2)-COLUMN('TRM Data'!$C$2)+1,FALSE)&IF($L87=\"Summer\",\"S\",IF($L87=\"Winter\",\"W\",\"Y\")),\"\")","v":""},{"$f":"IF(OR($F87=\"Controls\",$F87=\"\"),\"\",VLOOKUP($Q87,'TRM Data'!$C$5:$N$201,COLUMN('TRM Data'!$F$2)-COLUMN('TRM Data'!$C$2)+1,FALSE))","v":""},null,{"$f":"IF($R87=0,\"\",VLOOKUP($Q87,'TRM Data'!$C$5:$N$201,COLUMN('TRM Data'!$G$2)-COLUMN('TRM Data'!$C$2)+1,FALSE)*$R87)","v":""},null,{"$f":"IF($R87=0,\"\",VLOOKUP($Q87,'TRM Data'!$C$5:$N$201,COLUMN('TRM Data'!$I$2)-COLUMN('TRM Data'!$C$2)+1,FALSE)*$R87)","v":""},{"$f":"IF($Q87=\"\",\"\",IF('Project Information'!$D$33=\"Small Business\",'Project Scope'!$CA87,IF('Project Information'!$D$33=\"Pay for Performance\",'Project Scope'!$CD87,0)))","v":""},null,null,null,{"$f":"IF(AC87<>\"\",\"P\"&VLOOKUP($AC87,'TRM Data'!$C$5:$N$201,COLUMN('TRM Data'!$E$2)-COLUMN('TRM Data'!$C$2)+1,FALSE)&IF($L87=\"Summer\",\"S\",IF($L87=\"Winter\",\"W\",\"Y\")),\"\")","v":""},{"$f":"IF($AD87=0,\"\",VLOOKUP($AC87,'TRM Data'!$C$5:$N$201,COLUMN('TRM Data'!$G$2)-COLUMN('TRM Data'!$C$2)+1,FALSE)*$AD87)","v":""},null,{"$f":"IF($AD87=0,\"\",VLOOKUP($AC87,'TRM Data'!$C$5:$N$201,COLUMN('TRM Data'!$I$2)-COLUMN('TRM Data'!$C$2)+1,FALSE)*$AD87)","v":""},{"$f":"IF($AC87=\"\",\"\",IF('Project Information'!$D$33=\"Small Business\",'Project Scope'!$CB87,IF('Project Information'!$D$33=\"Pay for Performance\",'Project Scope'!$CE87,0)))","v":""},null,"",null,"","","","","","","",{"$f":"IF($Q87=\"\",\"\",IF(AND(ISNUMBER($BW87),ISNUMBER($AR87),$AR87>0),SUM($BL87,$BO87,$BI87)*'Other Data'!$H$83,0))","v":""},{"$f":"IF($Q87=\"\",\"\",IF(AND(ISNUMBER($BW87),ISNUMBER($AR87),$AR87>0),$BW87*'Other Data'!$G$84,0))","v":""},null,"","","","","",{"$f":"IF($AC87=\"\",\"\",IF(AND(ISNUMBER($BX87), ISNUMBER($AZ87),$AZ87>0),SUM($BJ87,$BM87,$BP87)*'Other Data'!$H$83,0))","v":""},{"$f":"IF($AC87=\"\",\"\",IF(AND(ISNUMBER($BX87), ISNUMBER($AZ87),$AZ87>0),$BX87*'Other Data'!$G$84,0))","v":""},null,{"$f":"IF($C87=\"\",\"\",SUM('Ancillary Costs'!$N$91:$N$105)*(SUM($AR87,$AZ87,SUM($AS87,$BA87)*'Project Information'!$D$12)))","v":""},{"$f":"IF($C87=\"\",\"\",SUMIFS('Ancillary Costs'!$N$72:$N$86,'Ancillary Costs'!$FL$72:$FL$86,\"*xx\"&'Project Scope'!$C87&\"xx*\")*(SUM($AR87,$AZ87,SUM($AS87,$BA87)*'Project Information'!$D$12)))","v":""},{"$f":"IFERROR(IF($C87=\"\",\"\",SUMIFS('Ancillary Costs'!$N$8:$N$67,'Ancillary Costs'!$FL$8:$FL$67,\"*xx\"&'Project Scope'!C87&\"xx*\",'Ancillary Costs'!$I$8:$I$67,'Project Scope'!$AN87)*'Project Scope'!$AO87),0)","v":""},{"$f":"IFERROR(IF($C87=\"\",\"\",SUMIFS('Ancillary Costs'!$N$8:$N$67,'Ancillary Costs'!$FL$8:$FL$67,\"*xx\"&'Project Scope'!C87&\"xx*\",'Ancillary Costs'!$I$8:$I$67,'Project Scope'!$AW87)*'Project Scope'!$AX87),0)","v":""},{"$f":"IF($C87=\"\",\"\",IF(SUM($AR87,$AZ87,SUM($AS87,$BA87)*'Project Information'!$D$12)=0,0,SUM($BG87,(SUM($BE87:$BF87))*((SUM($AR87,(IF(ISNUMBER($AS87),$AS87,0)*'Project Information'!$D$12)))/SUM($AR87,$AZ87,SUM($AS87,$BA87)*'Project Information'!$D$12)))))","v":""},{"$f":"IF($C87=\"\",\"\",IF(SUM($AR87,$AZ87,SUM($AS87,$BA87)*'Project Information'!$D$12)=0,0,SUM($BH87,(SUM($BE87:$BF87))*((SUM($AZ87,(IF(ISNUMBER($BA87),$BA87,0)*'Project Information'!$D$12)))/SUM($AR87,$AZ87,SUM($AS87,$BA87)*'Project Information'!$D$12)))))","v":""},null,"","","",{"$f":"IF($C87=\"\",\"\",IF(OR($AS87=\"\",$CX87=\"b\"),0,$AS87*'Project Information'!$D$12))","v":""},{"$f":"IF($C87=\"\",\"\",IF(OR($BA87=\"\",$CX87=\"b\"),0,$BA87*'Project Information'!$D$12))","v":""},"","","","","",null,{"$f":"CBAT!$AB87","v":""},{"$f":"CBAT!$BZ87","v":""},0,null,"","",0,{"$f":"IF($Q87=\"\",\"\",IF(OR($CX87<>\"c\",SUM($BY$8:$BY$107)=0),0,ROUND(BW87*MIN('Other Data'!$G$84,'Other Data'!$H$84*IF('Project Information'!$F$10=\"X\",('Project Information'!$L$42-'Project Information'!$L$39),'Project Information'!$L$42)/SUMPRODUCT($BY$8:$BY$107,--($CX$8:$CX$107=\"c\"))),0)))","v":""},{"$f":"IF($AC87=\"\",\"\",IF(OR($CX87<>\"c\",SUM($BY$8:$BY$107)=0),0,ROUND(BX87*MIN('Other Data'!$G$84,'Other Data'!$H$84*IF('Project Information'!$F$10=\"X\",('Project Information'!$L$42-'Project Information'!$L$39),'Project Information'!$L$42)/SUMPRODUCT($BY$8:$BY$107,--($CX$8:$CX$107=\"c\"))),0)))","v":""},0,null,"","",{"$f":"IF($J87=\"\",\"\",VLOOKUP($J87,'TRM Data'!$R$4:$S$168,2,FALSE))","v":""},"","","",null,{"$f":"IF($CV87=0,\"\",CBAT!$DJ87)","v":""},null,null,1,1,0,1,0,null,{"$f":"IF(OR($CV87=0,ISBLANK('Project Information'!$D$44)),\"\",IF(AND($CV87=1,$CO87<1,$G87=\"yes\"),\"a\",IF($CO87<1,\"b\",\"c\")))","v":""}]
[0,81,null,null,null,null,null,{"$f":"IF($C88=\"\",\"\",IF(COUNTIF('Project Information'!$J$9:BG$9,$C88)<>1,\"\",INDEX('Project Information'!$J$8:$BG$8,1,MATCH($C88,'Project Information'!$J$9:BG$9,0))))","v":""},null,null,{"$f":"LOOKUP(2,1/(COUNTIF($K$7:K87,$Q$8:$Q$108)=0),$Q$8:$Q$108)","v":{"$error":"#N/A"}},{"$f":"IF(OR('Project Information'!$D$32=\"\",C88=\"\"),\"\",'Project Information'!$D$32)","v":""},{"$f":"IF($C88=\"\",\"\",IF(COUNTIF('Project Information'!$J$9:$BG$9,$C88)=1,HLOOKUP(C88,'Project Information'!$J$9:$BG$10,2,FALSE),0))","v":""},null,null,null,null,null,null,null,{"$f":"IF(Q88<>\"\",IF('Project Information'!$D$33=\"Small Business\",\"I\",\"P\")&VLOOKUP($Q88,'TRM Data'!$C$5:$N$201,COLUMN('TRM Data'!$E$2)-COLUMN('TRM Data'!$C$2)+1,FALSE)&IF($L88=\"Summer\",\"S\",IF($L88=\"Winter\",\"W\",\"Y\")),\"\")","v":""},{"$f":"IF(OR($F88=\"Controls\",$F88=\"\"),\"\",VLOOKUP($Q88,'TRM Data'!$C$5:$N$201,COLUMN('TRM Data'!$F$2)-COLUMN('TRM Data'!$C$2)+1,FALSE))","v":""},null,{"$f":"IF($R88=0,\"\",VLOOKUP($Q88,'TRM Data'!$C$5:$N$201,COLUMN('TRM Data'!$G$2)-COLUMN('TRM Data'!$C$2)+1,FALSE)*$R88)","v":""},null,{"$f":"IF($R88=0,\"\",VLOOKUP($Q88,'TRM Data'!$C$5:$N$201,COLUMN('TRM Data'!$I$2)-COLUMN('TRM Data'!$C$2)+1,FALSE)*$R88)","v":""},{"$f":"IF($Q88=\"\",\"\",IF('Project Information'!$D$33=\"Small Business\",'Project Scope'!$CA88,IF('Project Information'!$D$33=\"Pay for Performance\",'Project Scope'!$CD88,0)))","v":""},null,null,null,{"$f":"IF(AC88<>\"\",\"P\"&VLOOKUP($AC88,'TRM Data'!$C$5:$N$201,COLUMN('TRM Data'!$E$2)-COLUMN('TRM Data'!$C$2)+1,FALSE)&IF($L88=\"Summer\",\"S\",IF($L88=\"Winter\",\"W\",\"Y\")),\"\")","v":""},{"$f":"IF($AD88=0,\"\",VLOOKUP($AC88,'TRM Data'!$C$5:$N$201,COLUMN('TRM Data'!$G$2)-COLUMN('TRM Data'!$C$2)+1,FALSE)*$AD88)","v":""},null,{"$f":"IF($AD88=0,\"\",VLOOKUP($AC88,'TRM Data'!$C$5:$N$201,COLUMN('TRM Data'!$I$2)-COLUMN('TRM Data'!$C$2)+1,FALSE)*$AD88)","v":""},{"$f":"IF($AC88=\"\",\"\",IF('Project Information'!$D$33=\"Small Business\",'Project Scope'!$CB88,IF('Project Information'!$D$33=\"Pay for Performance\",'Project Scope'!$CE88,0)))","v":""},null,"",null,"","","","","","","",{"$f":"IF($Q88=\"\",\"\",IF(AND(ISNUMBER($BW88),ISNUMBER($AR88),$AR88>0),SUM($BL88,$BO88,$BI88)*'Other Data'!$H$83,0))","v":""},{"$f":"IF($Q88=\"\",\"\",IF(AND(ISNUMBER($BW88),ISNUMBER($AR88),$AR88>0),$BW88*'Other Data'!$G$84,0))","v":""},null,"","","","","",{"$f":"IF($AC88=\"\",\"\",IF(AND(ISNUMBER($BX88), ISNUMBER($AZ88),$AZ88>0),SUM($BJ88,$BM88,$BP88)*'Other Data'!$H$83,0))","v":""},{"$f":"IF($AC88=\"\",\"\",IF(AND(ISNUMBER($BX88), ISNUMBER($AZ88),$AZ88>0),$BX88*'Other Data'!$G$84,0))","v":""},null,{"$f":"IF($C88=\"\",\"\",SUM('Ancillary Costs'!$N$91:$N$105)*(SUM($AR88,$AZ88,SUM($AS88,$BA88)*'Project Information'!$D$12)))","v":""},{"$f":"IF($C88=\"\",\"\",SUMIFS('Ancillary Costs'!$N$72:$N$86,'Ancillary Costs'!$FL$72:$FL$86,\"*xx\"&'Project Scope'!$C88&\"xx*\")*(SUM($AR88,$AZ88,SUM($AS88,$BA88)*'Project Information'!$D$12)))","v":""},{"$f":"IFERROR(IF($C88=\"\",\"\",SUMIFS('Ancillary Costs'!$N$8:$N$67,'Ancillary Costs'!$FL$8:$FL$67,\"*xx\"&'Project Scope'!C88&\"xx*\",'Ancillary Costs'!$I$8:$I$67,'Project Scope'!$AN88)*'Project Scope'!$AO88),0)","v":""},{"$f":"IFERROR(IF($C88=\"\",\"\",SUMIFS('Ancillary Costs'!$N$8:$N$67,'Ancillary Costs'!$FL$8:$FL$67,\"*xx\"&'Project Scope'!C88&\"xx*\",'Ancillary Costs'!$I$8:$I$67,'Project Scope'!$AW88)*'Project Scope'!$AX88),0)","v":""},{"$f":"IF($C88=\"\",\"\",IF(SUM($AR88,$AZ88,SUM($AS88,$BA88)*'Project Information'!$D$12)=0,0,SUM($BG88,(SUM($BE88:$BF88))*((SUM($AR88,(IF(ISNUMBER($AS88),$AS88,0)*'Project Information'!$D$12)))/SUM($AR88,$AZ88,SUM($AS88,$BA88)*'Project Information'!$D$12)))))","v":""},{"$f":"IF($C88=\"\",\"\",IF(SUM($AR88,$AZ88,SUM($AS88,$BA88)*'Project Information'!$D$12)=0,0,SUM($BH88,(SUM($BE88:$BF88))*((SUM($AZ88,(IF(ISNUMBER($BA88),$BA88,0)*'Project Information'!$D$12)))/SUM($AR88,$AZ88,SUM($AS88,$BA88)*'Project Information'!$D$12)))))","v":""},null,"","","",{"$f":"IF($C88=\"\",\"\",IF(OR($AS88=\"\",$CX88=\"b\"),0,$AS88*'Project Information'!$D$12))","v":""},{"$f":"IF($C88=\"\",\"\",IF(OR($BA88=\"\",$CX88=\"b\"),0,$BA88*'Project Information'!$D$12))","v":""},"","","","","",null,{"$f":"CBAT!$AB88","v":""},{"$f":"CBAT!$BZ88","v":""},0,null,"","",0,{"$f":"IF($Q88=\"\",\"\",IF(OR($CX88<>\"c\",SUM($BY$8:$BY$107)=0),0,ROUND(BW88*MIN('Other Data'!$G$84,'Other Data'!$H$84*IF('Project Information'!$F$10=\"X\",('Project Information'!$L$42-'Project Information'!$L$39),'Project Information'!$L$42)/SUMPRODUCT($BY$8:$BY$107,--($CX$8:$CX$107=\"c\"))),0)))","v":""},{"$f":"IF($AC88=\"\",\"\",IF(OR($CX88<>\"c\",SUM($BY$8:$BY$107)=0),0,ROUND(BX88*MIN('Other Data'!$G$84,'Other Data'!$H$84*IF('Project Information'!$F$10=\"X\",('Project Information'!$L$42-'Project Information'!$L$39),'Project Information'!$L$42)/SUMPRODUCT($BY$8:$BY$107,--($CX$8:$CX$107=\"c\"))),0)))","v":""},0,null,"","",{"$f":"IF($J88=\"\",\"\",VLOOKUP($J88,'TRM Data'!$R$4:$S$168,2,FALSE))","v":""},"","","",null,{"$f":"IF($CV88=0,\"\",CBAT!$DJ88)","v":""},null,null,1,1,0,1,0,null,{"$f":"IF(OR($CV88=0,ISBLANK('Project Information'!$D$44)),\"\",IF(AND($CV88=1,$CO88<1,$G88=\"yes\"),\"a\",IF($CO88<1,\"b\",\"c\")))","v":""}]
[0,82,null,null,null,null,null,{"$f":"IF($C89=\"\",\"\",IF(COUNTIF('Project Information'!$J$9:BG$9,$C89)<>1,\"\",INDEX('Project Information'!$J$8:$BG$8,1,MATCH($C89,'Project Information'!$J$9:BG$9,0))))","v":""},null,null,{"$f":"LOOKUP(2,1/(COUNTIF($K$7:K88,$Q$8:$Q$108)=0),$Q$8:$Q$108)","v":{"$error":"#N/A"}},{"$f":"IF(OR('Project Information'!$D$32=\"\",C89=\"\"),\"\",'Project Information'!$D$32)","v":""},{"$f":"IF($C89=\"\",\"\",IF(COUNTIF('Project Information'!$J$9:$BG$9,$C89)=1,HLOOKUP(C89,'Project Information'!$J$9:$BG$10,2,FALSE),0))","v":""},null,null,null,null,null,null,null,{"$f":"IF(Q89<>\"\",IF('Project Information'!$D$33=\"Small Business\",\"I\",\"P\")&VLOOKUP($Q89,'TRM Data'!$C$5:$N$201,COLUMN('TRM Data'!$E$2)-COLUMN('TRM Data'!$C$2)+1,FALSE)&IF($L89=\"Summer\",\"S\",IF($L89=\"Winter\",\"W\",\"Y\")),\"\")","v":""},{"$f":"IF(OR($F89=\"Controls\",$F89=\"\"),\"\",VLOOKUP($Q89,'TRM Data'!$C$5:$N$201,COLUMN('TRM Data'!$F$2)-COLUMN('TRM Data'!$C$2)+1,FALSE))","v":""},null,{"$f":"IF($R89=0,\"\",VLOOKUP($Q89,'TRM Data'!$C$5:$N$201,COLUMN('TRM Data'!$G$2)-COLUMN('TRM Data'!$C$2)+1,FALSE)*$R89)","v":""},null,{"$f":"IF($R89=0,\"\",VLOOKUP($Q89,'TRM Data'!$C$5:$N$201,COLUMN('TRM Data'!$I$2)-COLUMN('TRM Data'!$C$2)+1,FALSE)*$R89)","v":""},{"$f":"IF($Q89=\"\",\"\",IF('Project Information'!$D$33=\"Small Business\",'Project Scope'!$CA89,IF('Project Information'!$D$33=\"Pay for Performance\",'Project Scope'!$CD89,0)))","v":""},null,null,null,{"$f":"IF(AC89<>\"\",\"P\"&VLOOKUP($AC89,'TRM Data'!$C$5:$N$201,COLUMN('TRM Data'!$E$2)-COLUMN('TRM Data'!$C$2)+1,FALSE)&IF($L89=\"Summer\",\"S\",IF($L89=\"Winter\",\"W\",\"Y\")),\"\")","v":""},{"$f":"IF($AD89=0,\"\",VLOOKUP($AC89,'TRM Data'!$C$5:$N$201,COLUMN('TRM Data'!$G$2)-COLUMN('TRM Data'!$C$2)+1,FALSE)*$AD89)","v":""},null,{"$f":"IF($AD89=0,\"\",VLOOKUP($AC89,'TRM Data'!$C$5:$N$201,COLUMN('TRM Data'!$I$2)-COLUMN('TRM Data'!$C$2)+1,FALSE)*$AD89)","v":""},{"$f":"IF($AC89=\"\",\"\",IF('Project Information'!$D$33=\"Small Business\",'Project Scope'!$CB89,IF('Project Information'!$D$33=\"Pay for Performance\",'Project Scope'!$CE89,0)))","v":""},null,"",null,"","","","","","","",{"$f":"IF($Q89=\"\",\"\",IF(AND(ISNUMBER($BW89),ISNUMBER($AR89),$AR89>0),SUM($BL89,$BO89,$BI89)*'Other Data'!$H$83,0))","v":""},{"$f":"IF($Q89=\"\",\"\",IF(AND(ISNUMBER($BW89),ISNUMBER($AR89),$AR89>0),$BW89*'Other Data'!$G$84,0))","v":""},null,"","","","","",{"$f":"IF($AC89=\"\",\"\",IF(AND(ISNUMBER($BX89), ISNUMBER($AZ89),$AZ89>0),SUM($BJ89,$BM89,$BP89)*'Other Data'!$H$83,0))","v":""},{"$f":"IF($AC89=\"\",\"\",IF(AND(ISNUMBER($BX89), ISNUMBER($AZ89),$AZ89>0),$BX89*'Other Data'!$G$84,0))","v":""},null,{"$f":"IF($C89=\"\",\"\",SUM('Ancillary Costs'!$N$91:$N$105)*(SUM($AR89,$AZ89,SUM($AS89,$BA89)*'Project Information'!$D$12)))","v":""},{"$f":"IF($C89=\"\",\"\",SUMIFS('Ancillary Costs'!$N$72:$N$86,'Ancillary Costs'!$FL$72:$FL$86,\"*xx\"&'Project Scope'!$C89&\"xx*\")*(SUM($AR89,$AZ89,SUM($AS89,$BA89)*'Project Information'!$D$12)))","v":""},{"$f":"IFERROR(IF($C89=\"\",\"\",SUMIFS('Ancillary Costs'!$N$8:$N$67,'Ancillary Costs'!$FL$8:$FL$67,\"*xx\"&'Project Scope'!C89&\"xx*\",'Ancillary Costs'!$I$8:$I$67,'Project Scope'!$AN89)*'Project Scope'!$AO89),0)","v":""},{"$f":"IFERROR(IF($C89=\"\",\"\",SUMIFS('Ancillary Costs'!$N$8:$N$67,'Ancillary Costs'!$FL$8:$FL$67,\"*xx\"&'Project Scope'!C89&\"xx*\",'Ancillary Costs'!$I$8:$I$67,'Project Scope'!$AW89)*'Project Scope'!$AX89),0)","v":""},{"$f":"IF($C89=\"\",\"\",IF(SUM($AR89,$AZ89,SUM($AS89,$BA89)*'Project Information'!$D$12)=0,0,SUM($BG89,(SUM($BE89:$BF89))*((SUM($AR89,(IF(ISNUMBER($AS89),$AS89,0)*'Project Information'!$D$12)))/SUM($AR89,$AZ89,SUM($AS89,$BA89)*'Project Information'!$D$12)))))","v":""},{"$f":"IF($C89=\"\",\"\",IF(SUM($AR89,$AZ89,SUM($AS89,$BA89)*'Project Information'!$D$12)=0,0,SUM($BH89,(SUM($BE89:$BF89))*((SUM($AZ89,(IF(ISNUMBER($BA89),$BA89,0)*'Project Information'!$D$12)))/SUM($AR89,$AZ89,SUM($AS89,$BA89)*'Project Information'!$D$12)))))","v":""},null,"","","",{"$f":"IF($C89=\"\",\"\",IF(OR($AS89=\"\",$CX89=\"b\"),0,$AS89*'Project Information'!$D$12))","v":""},{"$f":"IF($C89=\"\",\"\",IF(OR($BA89=\"\",$CX89=\"b\"),0,$BA89*'Project Information'!$D$12))","v":""},"","","","","",null,{"$f":"CBAT!$AB89","v":""},{"$f":"CBAT!$BZ89","v":""},0,null,"","",0,{"$f":"IF($Q89=\"\",\"\",IF(OR($CX89<>\"c\",SUM($BY$8:$BY$107)=0),0,ROUND(BW89*MIN('Other Data'!$G$84,'Other Data'!$H$84*IF('Project Information'!$F$10=\"X\",('Project Information'!$L$42-'Project Information'!$L$39),'Project Information'!$L$42)/SUMPRODUCT($BY$8:$BY$107,--($CX$8:$CX$107=\"c\"))),0)))","v":""},{"$f":"IF($AC89=\"\",\"\",IF(OR($CX89<>\"c\",SUM($BY$8:$BY$107)=0),0,ROUND(BX89*MIN('Other Data'!$G$84,'Other Data'!$H$84*IF('Project Information'!$F$10=\"X\",('Project Information'!$L$42-'Project Information'!$L$39),'Project Information'!$L$42)/SUMPRODUCT($BY$8:$BY$107,--($CX$8:$CX$107=\"c\"))),0)))","v":""},0,null,"","",{"$f":"IF($J89=\"\",\"\",VLOOKUP($J89,'TRM Data'!$R$4:$S$168,2,FALSE))","v":""},"","","",null,{"$f":"IF($CV89=0,\"\",CBAT!$DJ89)","v":""},null,null,1,1,0,1,0,null,{"$f":"IF(OR($CV89=0,ISBLANK('Project Information'!$D$44)),\"\",IF(AND($CV89=1,$CO89<1,$G89=\"yes\"),\"a\",IF($CO89<1,\"b\",\"c\")))","v":""}]
[0,83,null,null,null,null,null,{"$f":"IF($C90=\"\",\"\",IF(COUNTIF('Project Information'!$J$9:BG$9,$C90)<>1,\"\",INDEX('Project Information'!$J$8:$BG$8,1,MATCH($C90,'Project Information'!$J$9:BG$9,0))))","v":""},null,null,{"$f":"LOOKUP(2,1/(COUNTIF($K$7:K89,$Q$8:$Q$108)=0),$Q$8:$Q$108)","v":{"$error":"#N/A"}},{"$f":"IF(OR('Project Information'!$D$32=\"\",C90=\"\"),\"\",'Project Information'!$D$32)","v":""},{"$f":"IF($C90=\"\",\"\",IF(COUNTIF('Project Information'!$J$9:$BG$9,$C90)=1,HLOOKUP(C90,'Project Information'!$J$9:$BG$10,2,FALSE),0))","v":""},null,null,null,null,null,null,null,{"$f":"IF(Q90<>\"\",IF('Project Information'!$D$33=\"Small Business\",\"I\",\"P\")&VLOOKUP($Q90,'TRM Data'!$C$5:$N$201,COLUMN('TRM Data'!$E$2)-COLUMN('TRM Data'!$C$2)+1,FALSE)&IF($L90=\"Summer\",\"S\",IF($L90=\"Winter\",\"W\",\"Y\")),\"\")","v":""},{"$f":"IF(OR($F90=\"Controls\",$F90=\"\"),\"\",VLOOKUP($Q90,'TRM Data'!$C$5:$N$201,COLUMN('TRM Data'!$F$2)-COLUMN('TRM Data'!$C$2)+1,FALSE))","v":""},null,{"$f":"IF($R90=0,\"\",VLOOKUP($Q90,'TRM Data'!$C$5:$N$201,COLUMN('TRM Data'!$G$2)-COLUMN('TRM Data'!$C$2)+1,FALSE)*$R90)","v":""},null,{"$f":"IF($R90=0,\"\",VLOOKUP($Q90,'TRM Data'!$C$5:$N$201,COLUMN('TRM Data'!$I$2)-COLUMN('TRM Data'!$C$2)+1,FALSE)*$R90)","v":""},{"$f":"IF($Q90=\"\",\"\",IF('Project Information'!$D$33=\"Small Business\",'Project Scope'!$CA90,IF('Project Information'!$D$33=\"Pay for Performance\",'Project Scope'!$CD90,0)))","v":""},null,null,null,{"$f":"IF(AC90<>\"\",\"P\"&VLOOKUP($AC90,'TRM Data'!$C$5:$N$201,COLUMN('TRM Data'!$E$2)-COLUMN('TRM Data'!$C$2)+1,FALSE)&IF($L90=\"Summer\",\"S\",IF($L90=\"Winter\",\"W\",\"Y\")),\"\")","v":""},{"$f":"IF($AD90=0,\"\",VLOOKUP($AC90,'TRM Data'!$C$5:$N$201,COLUMN('TRM Data'!$G$2)-COLUMN('TRM Data'!$C$2)+1,FALSE)*$AD90)","v":""},null,{"$f":"IF($AD90=0,\"\",VLOOKUP($AC90,'TRM Data'!$C$5:$N$201,COLUMN('TRM Data'!$I$2)-COLUMN('TRM Data'!$C$2)+1,FALSE)*$AD90)","v":""},{"$f":"IF($AC90=\"\",\"\",IF('Project Information'!$D$33=\"Small Business\",'Project Scope'!$CB90,IF('Project Information'!$D$33=\"Pay for Performance\",'Project Scope'!$CE90,0)))","v":""},null,"",null,"","","","","","","",{"$f":"IF($Q90=\"\",\"\",IF(AND(ISNUMBER($BW90),ISNUMBER($AR90),$AR90>0),SUM($BL90,$BO90,$BI90)*'Other Data'!$H$83,0))","v":""},{"$f":"IF($Q90=\"\",\"\",IF(AND(ISNUMBER($BW90),ISNUMBER($AR90),$AR90>0),$BW90*'Other Data'!$G$84,0))","v":""},null,"","","","","",{"$f":"IF($AC90=\"\",\"\",IF(AND(ISNUMBER($BX90), ISNUMBER($AZ90),$AZ90>0),SUM($BJ90,$BM90,$BP90)*'Other Data'!$H$83,0))","v":""},{"$f":"IF($AC90=\"\",\"\",IF(AND(ISNUMBER($BX90), ISNUMBER($AZ90),$AZ90>0),$BX90*'Other Data'!$G$84,0))","v":""},null,{"$f":"IF($C90=\"\",\"\",SUM('Ancillary Costs'!$N$91:$N$105)*(SUM($AR90,$AZ90,SUM($AS90,$BA90)*'Project Information'!$D$12)))","v":""},{"$f":"IF($C90=\"\",\"\",SUMIFS('Ancillary Costs'!$N$72:$N$86,'Ancillary Costs'!$FL$72:$FL$86,\"*xx\"&'Project Scope'!$C90&\"xx*\")*(SUM($AR90,$AZ90,SUM($AS90,$BA90)*'Project Information'!$D$12)))","v":""},{"$f":"IFERROR(IF($C90=\"\",\"\",SUMIFS('Ancillary Costs'!$N$8:$N$67,'Ancillary Costs'!$FL$8:$FL$67,\"*xx\"&'Project Scope'!C90&\"xx*\",'Ancillary Costs'!$I$8:$I$67,'Project Scope'!$AN90)*'Project Scope'!$AO90),0)","v":""},{"$f":"IFERROR(IF($C90=\"\",\"\",SUMIFS('Ancillary Costs'!$N$8:$N$67,'Ancillary Costs'!$FL$8:$FL$67,\"*xx\"&'Project Scope'!C90&\"xx*\",'Ancillary Costs'!$I$8:$I$67,'Project Scope'!$AW90)*'Project Scope'!$AX90),0)","v":""},{"$f":"IF($C90=\"\",\"\",IF(SUM($AR90,$AZ90,SUM($AS90,$BA90)*'Project Information'!$D$12)=0,0,SUM($BG90,(SUM($BE90:$BF90))*((SUM($AR90,(IF(ISNUMBER($AS90),$AS90,0)*'Project Information'!$D$12)))/SUM($AR90,$AZ90,SUM($AS90,$BA90)*'Project Information'!$D$12)))))","v":""},{"$f":"IF($C90=\"\",\"\",IF(SUM($AR90,$AZ90,SUM($AS90,$BA90)*'Project Information'!$D$12)=0,0,SUM($BH90,(SUM($BE90:$BF90))*((SUM($AZ90,(IF(ISNUMBER($BA90),$BA90,0)*'Project Information'!$D$12)))/SUM($AR90,$AZ90,SUM($AS90,$BA90)*'Project Information'!$D$12)))))","v":""},null,"","","",{"$f":"IF($C90=\"\",\"\",IF(OR($AS90=\"\",$CX90=\"b\"),0,$AS90*'Project Information'!$D$12))","v":""},{"$f":"IF($C90=\"\",\"\",IF(OR($BA90=\"\",$CX90=\"b\"),0,$BA90*'Project Information'!$D$12))","v":""},"","","","","",null,{"$f":"CBAT!$AB90","v":""},{"$f":"CBAT!$BZ90","v":""},0,null,"","",0,{"$f":"IF($Q90=\"\",\"\",IF(OR($CX90<>\"c\",SUM($BY$8:$BY$107)=0),0,ROUND(BW90*MIN('Other Data'!$G$84,'Other Data'!$H$84*IF('Project Information'!$F$10=\"X\",('Project Information'!$L$42-'Project Information'!$L$39),'Project Information'!$L$42)/SUMPRODUCT($BY$8:$BY$107,--($CX$8:$CX$107=\"c\"))),0)))","v":""},{"$f":"IF($AC90=\"\",\"\",IF(OR($CX90<>\"c\",SUM($BY$8:$BY$107)=0),0,ROUND(BX90*MIN('Other Data'!$G$84,'Other Data'!$H$84*IF('Project Information'!$F$10=\"X\",('Project Information'!$L$42-'Project Information'!$L$39),'Project Information'!$L$42)/SUMPRODUCT($BY$8:$BY$107,--($CX$8:$CX$107=\"c\"))),0)))","v":""},0,null,"","",{"$f":"IF($J90=\"\",\"\",VLOOKUP($J90,'TRM Data'!$R$4:$S$168,2,FALSE))","v":""},"","","",null,{"$f":"IF($CV90=0,\"\",CBAT!$DJ90)","v":""},null,null,1,1,0,1,0,null,{"$f":"IF(OR($CV90=0,ISBLANK('Project Information'!$D$44)),\"\",IF(AND($CV90=1,$CO90<1,$G90=\"yes\"),\"a\",IF($CO90<1,\"b\",\"c\")))","v":""}]
[0,84,null,null,null,null,null,{"$f":"IF($C91=\"\",\"\",IF(COUNTIF('Project Information'!$J$9:BG$9,$C91)<>1,\"\",INDEX('Project Information'!$J$8:$BG$8,1,MATCH($C91,'Project Information'!$J$9:BG$9,0))))","v":""},null,null,{"$f":"LOOKUP(2,1/(COUNTIF($K$7:K90,$Q$8:$Q$108)=0),$Q$8:$Q$108)","v":{"$error":"#N/A"}},{"$f":"IF(OR('Project Information'!$D$32=\"\",C91=\"\"),\"\",'Project Information'!$D$32)","v":""},{"$f":"IF($C91=\"\",\"\",IF(COUNTIF('Project Information'!$J$9:$BG$9,$C91)=1,HLOOKUP(C91,'Project Information'!$J$9:$BG$10,2,FALSE),0))","v":""},null,null,null,null,null,null,null,{"$f":"IF(Q91<>\"\",IF('Project Information'!$D$33=\"Small Business\",\"I\",\"P\")&VLOOKUP($Q91,'TRM Data'!$C$5:$N$201,COLUMN('TRM Data'!$E$2)-COLUMN('TRM Data'!$C$2)+1,FALSE)&IF($L91=\"Summer\",\"S\",IF($L91=\"Winter\",\"W\",\"Y\")),\"\")","v":""},{"$f":"IF(OR($F91=\"Controls\",$F91=\"\"),\"\",VLOOKUP($Q91,'TRM Data'!$C$5:$N$201,COLUMN('TRM Data'!$F$2)-COLUMN('TRM Data'!$C$2)+1,FALSE))","v":""},null,{"$f":"IF($R91=0,\"\",VLOOKUP($Q91,'TRM Data'!$C$5:$N$201,COLUMN('TRM Data'!$G$2)-COLUMN('TRM Data'!$C$2)+1,FALSE)*$R91)","v":""},null,{"$f":"IF($R91=0,\"\",VLOOKUP($Q91,'TRM Data'!$C$5:$N$201,COLUMN('TRM Data'!$I$2)-COLUMN('TRM Data'!$C$2)+1,FALSE)*$R91)","v":""},{"$f":"IF($Q91=\"\",\"\",IF('Project Information'!$D$33=\"Small Business\",'Project Scope'!$CA91,IF('Project Information'!$D$33=\"Pay for Performance\",'Project Scope'!$CD91,0)))","v":""},null,null,null,{"$f":"IF(AC91<>\"\",\"P\"&VLOOKUP($AC91,'TRM Data'!$C$5:$N$201,COLUMN('TRM Data'!$E$2)-COLUMN('TRM Data'!$C$2)+1,FALSE)&IF($L91=\"Summer\",\"S\",IF($L91=\"Winter\",\"W\",\"Y\")),\"\")","v":""},{"$f":"IF($AD91=0,\"\",VLOOKUP($AC91,'TRM Data'!$C$5:$N$201,COLUMN('TRM Data'!$G$2)-COLUMN('TRM Data'!$C$2)+1,FALSE)*$AD91)","v":""},null,{"$f":"IF($AD91=0,\"\",VLOOKUP($AC91,'TRM Data'!$C$5:$N$201,COLUMN('TRM Data'!$I$2)-COLUMN('TRM Data'!$C$2)+1,FALSE)*$AD91)","v":""},{"$f":"IF($AC91=\"\",\"\",IF('Project Information'!$D$33=\"Small Business\",'Project Scope'!$CB91,IF('Project Information'!$D$33=\"Pay for Performance\",'Project Scope'!$CE91,0)))","v":""},null,"",null,"","","","","","","",{"$f":"IF($Q91=\"\",\"\",IF(AND(ISNUMBER($BW91),ISNUMBER($AR91),$AR91>0),SUM($BL91,$BO91,$BI91)*'Other Data'!$H$83,0))","v":""},{"$f":"IF($Q91=\"\",\"\",IF(AND(ISNUMBER($BW91),ISNUMBER($AR91),$AR91>0),$BW91*'Other Data'!$G$84,0))","v":""},null,"","","","","",{"$f":"IF($AC91=\"\",\"\",IF(AND(ISNUMBER($BX91), ISNUMBER($AZ91),$AZ91>0),SUM($BJ91,$BM91,$BP91)*'Other Data'!$H$83,0))","v":""},{"$f":"IF($AC91=\"\",\"\",IF(AND(ISNUMBER($BX91), ISNUMBER($AZ91),$AZ91>0),$BX91*'Other Data'!$G$84,0))","v":""},null,{"$f":"IF($C91=\"\",\"\",SUM('Ancillary Costs'!$N$91:$N$105)*(SUM($AR91,$AZ91,SUM($AS91,$BA91)*'Project Information'!$D$12)))","v":""},{"$f":"IF($C91=\"\",\"\",SUMIFS('Ancillary Costs'!$N$72:$N$86,'Ancillary Costs'!$FL$72:$FL$86,\"*xx\"&'Project Scope'!$C91&\"xx*\")*(SUM($AR91,$AZ91,SUM($AS91,$BA91)*'Project Information'!$D$12)))","v":""},{"$f":"IFERROR(IF($C91=\"\",\"\",SUMIFS('Ancillary Costs'!$N$8:$N$67,'Ancillary Costs'!$FL$8:$FL$67,\"*xx\"&'Project Scope'!C91&\"xx*\",'Ancillary Costs'!$I$8:$I$67,'Project Scope'!$AN91)*'Project Scope'!$AO91),0)","v":""},{"$f":"IFERROR(IF($C91=\"\",\"\",SUMIFS('Ancillary Costs'!$N$8:$N$67,'Ancillary Costs'!$FL$8:$FL$67,\"*xx\"&'Project Scope'!C91&\"xx*\",'Ancillary Costs'!$I$8:$I$67,'Project Scope'!$AW91)*'Project Scope'!$AX91),0)","v":""},{"$f":"IF($C91=\"\",\"\",IF(SUM($AR91,$AZ91,SUM($AS91,$BA91)*'Project Information'!$D$12)=0,0,SUM($BG91,(SUM($BE91:$BF91))*((SUM($AR91,(IF(ISNUMBER($AS91),$AS91,0)*'Project Information'!$D$12)))/SUM($AR91,$AZ91,SUM($AS91,$BA91)*'Project Information'!$D$12)))))","v":""},{"$f":"IF($C91=\"\",\"\",IF(SUM($AR91,$AZ91,SUM($AS91,$BA91)*'Project Information'!$D$12)=0,0,SUM($BH91,(SUM($BE91:$BF91))*((SUM($AZ91,(IF(ISNUMBER($BA91),$BA91,0)*'Project Information'!$D$12)))/SUM($AR91,$AZ91,SUM($AS91,$BA91)*'Project Information'!$D$12)))))","v":""},null,"","","",{"$f":"IF($C91=\"\",\"\",IF(OR($AS91=\"\",$CX91=\"b\"),0,$AS91*'Project Information'!$D$12))","v":""},{"$f":"IF($C91=\"\",\"\",IF(OR($BA91=\"\",$CX91=\"b\"),0,$BA91*'Project Information'!$D$12))","v":""},"","","","","",null,{"$f":"CBAT!$AB91","v":""},{"$f":"CBAT!$BZ91","v":""},0,null,"","",0,{"$f":"IF($Q91=\"\",\"\",IF(OR($CX91<>\"c\",SUM($BY$8:$BY$107)=0),0,ROUND(BW91*MIN('Other Data'!$G$84,'Other Data'!$H$84*IF('Project Information'!$F$10=\"X\",('Project Information'!$L$42-'Project Information'!$L$39),'Project Information'!$L$42)/SUMPRODUCT($BY$8:$BY$107,--($CX$8:$CX$107=\"c\"))),0)))","v":""},{"$f":"IF($AC91=\"\",\"\",IF(OR($CX91<>\"c\",SUM($BY$8:$BY$107)=0),0,ROUND(BX91*MIN('Other Data'!$G$84,'Other Data'!$H$84*IF('Project Information'!$F$10=\"X\",('Project Information'!$L$42-'Project Information'!$L$39),'Project Information'!$L$42)/SUMPRODUCT($BY$8:$BY$107,--($CX$8:$CX$107=\"c\"))),0)))","v":""},0,null,"","",{"$f":"IF($J91=\"\",\"\",VLOOKUP($J91,'TRM Data'!$R$4:$S$168,2,FALSE))","v":""},"","","",null,{"$f":"IF($CV91=0,\"\",CBAT!$DJ91)","v":""},null,null,1,1,0,1,0,null,{"$f":"IF(OR($CV91=0,ISBLANK('Project Information'!$D$44)),\"\",IF(AND($CV91=1,$CO91<1,$G91=\"yes\"),\"a\",IF($CO91<1,\"b\",\"c\")))","v":""}]
[0,85,null,null,null,null,null,{"$f":"IF($C92=\"\",\"\",IF(COUNTIF('Project Information'!$J$9:BG$9,$C92)<>1,\"\",INDEX('Project Information'!$J$8:$BG$8,1,MATCH($C92,'Project Information'!$J$9:BG$9,0))))","v":""},null,null,{"$f":"LOOKUP(2,1/(COUNTIF($K$7:K91,$Q$8:$Q$108)=0),$Q$8:$Q$108)","v":{"$error":"#N/A"}},{"$f":"IF(OR('Project Information'!$D$32=\"\",C92=\"\"),\"\",'Project Information'!$D$32)","v":""},{"$f":"IF($C92=\"\",\"\",IF(COUNTIF('Project Information'!$J$9:$BG$9,$C92)=1,HLOOKUP(C92,'Project Information'!$J$9:$BG$10,2,FALSE),0))","v":""},null,null,null,null,null,null,null,{"$f":"IF(Q92<>\"\",IF('Project Information'!$D$33=\"Small Business\",\"I\",\"P\")&VLOOKUP($Q92,'TRM Data'!$C$5:$N$201,COLUMN('TRM Data'!$E$2)-COLUMN('TRM Data'!$C$2)+1,FALSE)&IF($L92=\"Summer\",\"S\",IF($L92=\"Winter\",\"W\",\"Y\")),\"\")","v":""},{"$f":"IF(OR($F92=\"Controls\",$F92=\"\"),\"\",VLOOKUP($Q92,'TRM Data'!$C$5:$N$201,COLUMN('TRM Data'!$F$2)-COLUMN('TRM Data'!$C$2)+1,FALSE))","v":""},null,{"$f":"IF($R92=0,\"\",VLOOKUP($Q92,'TRM Data'!$C$5:$N$201,COLUMN('TRM Data'!$G$2)-COLUMN('TRM Data'!$C$2)+1,FALSE)*$R92)","v":""},null,{"$f":"IF($R92=0,\"\",VLOOKUP($Q92,'TRM Data'!$C$5:$N$201,COLUMN('TRM Data'!$I$2)-COLUMN('TRM Data'!$C$2)+1,FALSE)*$R92)","v":""},{"$f":"IF($Q92=\"\",\"\",IF('Project Information'!$D$33=\"Small Business\",'Project Scope'!$CA92,IF('Project Information'!$D$33=\"Pay for Performance\",'Project Scope'!$CD92,0)))","v":""},null,null,null,{"$f":"IF(AC92<>\"\",\"P\"&VLOOKUP($AC92,'TRM Data'!$C$5:$N$201,COLUMN('TRM Data'!$E$2)-COLUMN('TRM Data'!$C$2)+1,FALSE)&IF($L92=\"Summer\",\"S\",IF($L92=\"Winter\",\"W\",\"Y\")),\"\")","v":""},{"$f":"IF($AD92=0,\"\",VLOOKUP($AC92,'TRM Data'!$C$5:$N$201,COLUMN('TRM Data'!$G$2)-COLUMN('TRM Data'!$C$2)+1,FALSE)*$AD92)","v":""},null,{"$f":"IF($AD92=0,\"\",VLOOKUP($AC92,'TRM Data'!$C$5:$N$201,COLUMN('TRM Data'!$I$2)-COLUMN('TRM Data'!$C$2)+1,FALSE)*$AD92)","v":""},{"$f":"IF($AC92=\"\",\"\",IF('Project Information'!$D$33=\"Small Business\",'Project Scope'!$CB92,IF('Project Information'!$D$33=\"Pay for Performance\",'Project Scope'!$CE92,0)))","v":""},null,"",null,"","","","","","","",{"$f":"IF($Q92=\"\",\"\",IF(AND(ISNUMBER($BW92),ISNUMBER($AR92),$AR92>0),SUM($BL92,$BO92,$BI92)*'Other Data'!$H$83,0))","v":""},{"$f":"IF($Q92=\"\",\"\",IF(AND(ISNUMBER($BW92),ISNUMBER($AR92),$AR92>0),$BW92*'Other Data'!$G$84,0))","v":""},null,"","","","","",{"$f":"IF($AC92=\"\",\"\",IF(AND(ISNUMBER($BX92), ISNUMBER($AZ92),$AZ92>0),SUM($BJ92,$BM92,$BP92)*'Other Data'!$H$83,0))","v":""},{"$f":"IF($AC92=\"\",\"\",IF(AND(ISNUMBER($BX92), ISNUMBER($AZ92),$AZ92>0),$BX92*'Other Data'!$G$84,0))","v":""},null,{"$f":"IF($C92=\"\",\"\",SUM('Ancillary Costs'!$N$91:$N$105)*(SUM($AR92,$AZ92,SUM($AS92,$BA92)*'Project Information'!$D$12)))","v":""},{"$f":"IF($C92=\"\",\"\",SUMIFS('Ancillary Costs'!$N$72:$N$86,'Ancillary Costs'!$FL$72:$FL$86,\"*xx\"&'Project Scope'!$C92&\"xx*\")*(SUM($AR92,$AZ92,SUM($AS92,$BA92)*'Project Information'!$D$12)))","v":""},{"$f":"IFERROR(IF($C92=\"\",\"\",SUMIFS('Ancillary Costs'!$N$8:$N$67,'Ancillary Costs'!$FL$8:$FL$67,\"*xx\"&'Project Scope'!C92&\"xx*\",'Ancillary Costs'!$I$8:$I$67,'Project Scope'!$AN92)*'Project Scope'!$AO92),0)","v":""},{"$f":"IFERROR(IF($C92=\"\",\"\",SUMIFS('Ancillary Costs'!$N$8:$N$67,'Ancillary Costs'!$FL$8:$FL$67,\"*xx\"&'Project Scope'!C92&\"xx*\",'Ancillary Costs'!$I$8:$I$67,'Project Scope'!$AW92)*'Project Scope'!$AX92),0)","v":""},{"$f":"IF($C92=\"\",\"\",IF(SUM($AR92,$AZ92,SUM($AS92,$BA92)*'Project Information'!$D$12)=0,0,SUM($BG92,(SUM($BE92:$BF92))*((SUM($AR92,(IF(ISNUMBER($AS92),$AS92,0)*'Project Information'!$D$12)))/SUM($AR92,$AZ92,SUM($AS92,$BA92)*'Project Information'!$D$12)))))","v":""},{"$f":"IF($C92=\"\",\"\",IF(SUM($AR92,$AZ92,SUM($AS92,$BA92)*'Project Information'!$D$12)=0,0,SUM($BH92,(SUM($BE92:$BF92))*((SUM($AZ92,(IF(ISNUMBER($BA92),$BA92,0)*'Project Information'!$D$12)))/SUM($AR92,$AZ92,SUM($AS92,$BA92)*'Project Information'!$D$12)))))","v":""},null,"","","",{"$f":"IF($C92=\"\",\"\",IF(OR($AS92=\"\",$CX92=\"b\"),0,$AS92*'Project Information'!$D$12))","v":""},{"$f":"IF($C92=\"\",\"\",IF(OR($BA92=\"\",$CX92=\"b\"),0,$BA92*'Project Information'!$D$12))","v":""},"","","","","",null,{"$f":"CBAT!$AB92","v":""},{"$f":"CBAT!$BZ92","v":""},0,null,"","",0,{"$f":"IF($Q92=\"\",\"\",IF(OR($CX92<>\"c\",SUM($BY$8:$BY$107)=0),0,ROUND(BW92*MIN('Other Data'!$G$84,'Other Data'!$H$84*IF('Project Information'!$F$10=\"X\",('Project Information'!$L$42-'Project Information'!$L$39),'Project Information'!$L$42)/SUMPRODUCT($BY$8:$BY$107,--($CX$8:$CX$107=\"c\"))),0)))","v":""},{"$f":"IF($AC92=\"\",\"\",IF(OR($CX92<>\"c\",SUM($BY$8:$BY$107)=0),0,ROUND(BX92*MIN('Other Data'!$G$84,'Other Data'!$H$84*IF('Project Information'!$F$10=\"X\",('Project Information'!$L$42-'Project Information'!$L$39),'Project Information'!$L$42)/SUMPRODUCT($BY$8:$BY$107,--($CX$8:$CX$107=\"c\"))),0)))","v":""},0,null,"","",{"$f":"IF($J92=\"\",\"\",VLOOKUP($J92,'TRM Data'!$R$4:$S$168,2,FALSE))","v":""},"","","",null,{"$f":"IF($CV92=0,\"\",CBAT!$DJ92)","v":""},null,null,1,1,0,1,0,null,{"$f":"IF(OR($CV92=0,ISBLANK('Project Information'!$D$44)),\"\",IF(AND($CV92=1,$CO92<1,$G92=\"yes\"),\"a\",IF($CO92<1,\"b\",\"c\")))","v":""}]
[0,86,null,null,null,null,null,{"$f":"IF($C93=\"\",\"\",IF(COUNTIF('Project Information'!$J$9:BG$9,$C93)<>1,\"\",INDEX('Project Information'!$J$8:$BG$8,1,MATCH($C93,'Project Information'!$J$9:BG$9,0))))","v":""},null,null,{"$f":"LOOKUP(2,1/(COUNTIF($K$7:K92,$Q$8:$Q$108)=0),$Q$8:$Q$108)","v":{"$error":"#N/A"}},{"$f":"IF(OR('Project Information'!$D$32=\"\",C93=\"\"),\"\",'Project Information'!$D$32)","v":""},{"$f":"IF($C93=\"\",\"\",IF(COUNTIF('Project Information'!$J$9:$BG$9,$C93)=1,HLOOKUP(C93,'Project Information'!$J$9:$BG$10,2,FALSE),0))","v":""},null,null,null,null,null,null,null,{"$f":"IF(Q93<>\"\",IF('Project Information'!$D$33=\"Small Business\",\"I\",\"P\")&VLOOKUP($Q93,'TRM Data'!$C$5:$N$201,COLUMN('TRM Data'!$E$2)-COLUMN('TRM Data'!$C$2)+1,FALSE)&IF($L93=\"Summer\",\"S\",IF($L93=\"Winter\",\"W\",\"Y\")),\"\")","v":""},{"$f":"IF(OR($F93=\"Controls\",$F93=\"\"),\"\",VLOOKUP($Q93,'TRM Data'!$C$5:$N$201,COLUMN('TRM Data'!$F$2)-COLUMN('TRM Data'!$C$2)+1,FALSE))","v":""},null,{"$f":"IF($R93=0,\"\",VLOOKUP($Q93,'TRM Data'!$C$5:$N$201,COLUMN('TRM Data'!$G$2)-COLUMN('TRM Data'!$C$2)+1,FALSE)*$R93)","v":""},null,{"$f":"IF($R93=0,\"\",VLOOKUP($Q93,'TRM Data'!$C$5:$N$201,COLUMN('TRM Data'!$I$2)-COLUMN('TRM Data'!$C$2)+1,FALSE)*$R93)","v":""},{"$f":"IF($Q93=\"\",\"\",IF('Project Information'!$D$33=\"Small Business\",'Project Scope'!$CA93,IF('Project Information'!$D$33=\"Pay for Performance\",'Project Scope'!$CD93,0)))","v":""},null,null,null,{"$f":"IF(AC93<>\"\",\"P\"&VLOOKUP($AC93,'TRM Data'!$C$5:$N$201,COLUMN('TRM Data'!$E$2)-COLUMN('TRM Data'!$C$2)+1,FALSE)&IF($L93=\"Summer\",\"S\",IF($L93=\"Winter\",\"W\",\"Y\")),\"\")","v":""},{"$f":"IF($AD93=0,\"\",VLOOKUP($AC93,'TRM Data'!$C$5:$N$201,COLUMN('TRM Data'!$G$2)-COLUMN('TRM Data'!$C$2)+1,FALSE)*$AD93)","v":""},null,{"$f":"IF($AD93=0,\"\",VLOOKUP($AC93,'TRM Data'!$C$5:$N$201,COLUMN('TRM Data'!$I$2)-COLUMN('TRM Data'!$C$2)+1,FALSE)*$AD93)","v":""},{"$f":"IF($AC93=\"\",\"\",IF('Project Information'!$D$33=\"Small Business\",'Project Scope'!$CB93,IF('Project Information'!$D$33=\"Pay for Performance\",'Project Scope'!$CE93,0)))","v":""},null,"",null,"","","","","","","",{"$f":"IF($Q93=\"\",\"\",IF(AND(ISNUMBER($BW93),ISNUMBER($AR93),$AR93>0),SUM($BL93,$BO93,$BI93)*'Other Data'!$H$83,0))","v":""},{"$f":"IF($Q93=\"\",\"\",IF(AND(ISNUMBER($BW93),ISNUMBER($AR93),$AR93>0),$BW93*'Other Data'!$G$84,0))","v":""},null,"","","","","",{"$f":"IF($AC93=\"\",\"\",IF(AND(ISNUMBER($BX93), ISNUMBER($AZ93),$AZ93>0),SUM($BJ93,$BM93,$BP93)*'Other Data'!$H$83,0))","v":""},{"$f":"IF($AC93=\"\",\"\",IF(AND(ISNUMBER($BX93), ISNUMBER($AZ93),$AZ93>0),$BX93*'Other Data'!$G$84,0))","v":""},null,{"$f":"IF($C93=\"\",\"\",SUM('Ancillary Costs'!$N$91:$N$105)*(SUM($AR93,$AZ93,SUM($AS93,$BA93)*'Project Information'!$D$12)))","v":""},{"$f":"IF($C93=\"\",\"\",SUMIFS('Ancillary Costs'!$N$72:$N$86,'Ancillary Costs'!$FL$72:$FL$86,\"*xx\"&'Project Scope'!$C93&\"xx*\")*(SUM($AR93,$AZ93,SUM($AS93,$BA93)*'Project Information'!$D$12)))","v":""},{"$f":"IFERROR(IF($C93=\"\",\"\",SUMIFS('Ancillary Costs'!$N$8:$N$67,'Ancillary Costs'!$FL$8:$FL$67,\"*xx\"&'Project Scope'!C93&\"xx*\",'Ancillary Costs'!$I$8:$I$67,'Project Scope'!$AN93)*'Project Scope'!$AO93),0)","v":""},{"$f":"IFERROR(IF($C93=\"\",\"\",SUMIFS('Ancillary Costs'!$N$8:$N$67,'Ancillary Costs'!$FL$8:$FL$67,\"*xx\"&'Project Scope'!C93&\"xx*\",'Ancillary Costs'!$I$8:$I$67,'Project Scope'!$AW93)*'Project Scope'!$AX93),0)","v":""},{"$f":"IF($C93=\"\",\"\",IF(SUM($AR93,$AZ93,SUM($AS93,$BA93)*'Project Information'!$D$12)=0,0,SUM($BG93,(SUM($BE93:$BF93))*((SUM($AR93,(IF(ISNUMBER($AS93),$AS93,0)*'Project Information'!$D$12)))/SUM($AR93,$AZ93,SUM($AS93,$BA93)*'Project Information'!$D$12)))))","v":""},{"$f":"IF($C93=\"\",\"\",IF(SUM($AR93,$AZ93,SUM($AS93,$BA93)*'Project Information'!$D$12)=0,0,SUM($BH93,(SUM($BE93:$BF93))*((SUM($AZ93,(IF(ISNUMBER($BA93),$BA93,0)*'Project Information'!$D$12)))/SUM($AR93,$AZ93,SUM($AS93,$BA93)*'Project Information'!$D$12)))))","v":""},null,"","","",{"$f":"IF($C93=\"\",\"\",IF(OR($AS93=\"\",$CX93=\"b\"),0,$AS93*'Project Information'!$D$12))","v":""},{"$f":"IF($C93=\"\",\"\",IF(OR($BA93=\"\",$CX93=\"b\"),0,$BA93*'Project Information'!$D$12))","v":""},"","","","","",null,{"$f":"CBAT!$AB93","v":""},{"$f":"CBAT!$BZ93","v":""},0,null,"","",0,{"$f":"IF($Q93=\"\",\"\",IF(OR($CX93<>\"c\",SUM($BY$8:$BY$107)=0),0,ROUND(BW93*MIN('Other Data'!$G$84,'Other Data'!$H$84*IF('Project Information'!$F$10=\"X\",('Project Information'!$L$42-'Project Information'!$L$39),'Project Information'!$L$42)/SUMPRODUCT($BY$8:$BY$107,--($CX$8:$CX$107=\"c\"))),0)))","v":""},{"$f":"IF($AC93=\"\",\"\",IF(OR($CX93<>\"c\",SUM($BY$8:$BY$107)=0),0,ROUND(BX93*MIN('Other Data'!$G$84,'Other Data'!$H$84*IF('Project Information'!$F$10=\"X\",('Project Information'!$L$42-'Project Information'!$L$39),'Project Information'!$L$42)/SUMPRODUCT($BY$8:$BY$107,--($CX$8:$CX$107=\"c\"))),0)))","v":""},0,null,"","",{"$f":"IF($J93=\"\",\"\",VLOOKUP($J93,'TRM Data'!$R$4:$S$168,2,FALSE))","v":""},"","","",null,{"$f":"IF($CV93=0,\"\",CBAT!$DJ93)","v":""},null,null,1,1,0,1,0,null,{"$f":"IF(OR($CV93=0,ISBLANK('Project Information'!$D$44)),\"\",IF(AND($CV93=1,$CO93<1,$G93=\"yes\"),\"a\",IF($CO93<1,\"b\",\"c\")))","v":""}]
[0,87,null,null,null,null,null,{"$f":"IF($C94=\"\",\"\",IF(COUNTIF('Project Information'!$J$9:BG$9,$C94)<>1,\"\",INDEX('Project Information'!$J$8:$BG$8,1,MATCH($C94,'Project Information'!$J$9:BG$9,0))))","v":""},null,null,{"$f":"LOOKUP(2,1/(COUNTIF($K$7:K93,$Q$8:$Q$108)=0),$Q$8:$Q$108)","v":{"$error":"#N/A"}},{"$f":"IF(OR('Project Information'!$D$32=\"\",C94=\"\"),\"\",'Project Information'!$D$32)","v":""},{"$f":"IF($C94=\"\",\"\",IF(COUNTIF('Project Information'!$J$9:$BG$9,$C94)=1,HLOOKUP(C94,'Project Information'!$J$9:$BG$10,2,FALSE),0))","v":""},null,null,null,null,null,null,null,{"$f":"IF(Q94<>\"\",IF('Project Information'!$D$33=\"Small Business\",\"I\",\"P\")&VLOOKUP($Q94,'TRM Data'!$C$5:$N$201,COLUMN('TRM Data'!$E$2)-COLUMN('TRM Data'!$C$2)+1,FALSE)&IF($L94=\"Summer\",\"S\",IF($L94=\"Winter\",\"W\",\"Y\")),\"\")","v":""},{"$f":"IF(OR($F94=\"Controls\",$F94=\"\"),\"\",VLOOKUP($Q94,'TRM Data'!$C$5:$N$201,COLUMN('TRM Data'!$F$2)-COLUMN('TRM Data'!$C$2)+1,FALSE))","v":""},null,{"$f":"IF($R94=0,\"\",VLOOKUP($Q94,'TRM Data'!$C$5:$N$201,COLUMN('TRM Data'!$G$2)-COLUMN('TRM Data'!$C$2)+1,FALSE)*$R94)","v":""},null,{"$f":"IF($R94=0,\"\",VLOOKUP($Q94,'TRM Data'!$C$5:$N$201,COLUMN('TRM Data'!$I$2)-COLUMN('TRM Data'!$C$2)+1,FALSE)*$R94)","v":""},{"$f":"IF($Q94=\"\",\"\",IF('Project Information'!$D$33=\"Small Business\",'Project Scope'!$CA94,IF('Project Information'!$D$33=\"Pay for Performance\",'Project Scope'!$CD94,0)))","v":""},null,null,null,{"$f":"IF(AC94<>\"\",\"P\"&VLOOKUP($AC94,'TRM Data'!$C$5:$N$201,COLUMN('TRM Data'!$E$2)-COLUMN('TRM Data'!$C$2)+1,FALSE)&IF($L94=\"Summer\",\"S\",IF($L94=\"Winter\",\"W\",\"Y\")),\"\")","v":""},{"$f":"IF($AD94=0,\"\",VLOOKUP($AC94,'TRM Data'!$C$5:$N$201,COLUMN('TRM Data'!$G$2)-COLUMN('TRM Data'!$C$2)+1,FALSE)*$AD94)","v":""},null,{"$f":"IF($AD94=0,\"\",VLOOKUP($AC94,'TRM Data'!$C$5:$N$201,COLUMN('TRM Data'!$I$2)-COLUMN('TRM Data'!$C$2)+1,FALSE)*$AD94)","v":""},{"$f":"IF($AC94=\"\",\"\",IF('Project Information'!$D$33=\"Small Business\",'Project Scope'!$CB94,IF('Project Information'!$D$33=\"Pay for Performance\",'Project Scope'!$CE94,0)))","v":""},null,"",null,"","","","","","","",{"$f":"IF($Q94=\"\",\"\",IF(AND(ISNUMBER($BW94),ISNUMBER($AR94),$AR94>0),SUM($BL94,$BO94,$BI94)*'Other Data'!$H$83,0))","v":""},{"$f":"IF($Q94=\"\",\"\",IF(AND(ISNUMBER($BW94),ISNUMBER($AR94),$AR94>0),$BW94*'Other Data'!$G$84,0))","v":""},null,"","","","","",{"$f":"IF($AC94=\"\",\"\",IF(AND(ISNUMBER($BX94), ISNUMBER($AZ94),$AZ94>0),SUM($BJ94,$BM94,$BP94)*'Other Data'!$H$83,0))","v":""},{"$f":"IF($AC94=\"\",\"\",IF(AND(ISNUMBER($BX94), ISNUMBER($AZ94),$AZ94>0),$BX94*'Other Data'!$G$84,0))","v":""},null,{"$f":"IF($C94=\"\",\"\",SUM('Ancillary Costs'!$N$91:$N$105)*(SUM($AR94,$AZ94,SUM($AS94,$BA94)*'Project Information'!$D$12)))","v":""},{"$f":"IF($C94=\"\",\"\",SUMIFS('Ancillary Costs'!$N$72:$N$86,'Ancillary Costs'!$FL$72:$FL$86,\"*xx\"&'Project Scope'!$C94&\"xx*\")*(SUM($AR94,$AZ94,SUM($AS94,$BA94)*'Project Information'!$D$12)))","v":""},{"$f":"IFERROR(IF($C94=\"\",\"\",SUMIFS('Ancillary Costs'!$N$8:$N$67,'Ancillary Costs'!$FL$8:$FL$67,\"*xx\"&'Project Scope'!C94&\"xx*\",'Ancillary Costs'!$I$8:$I$67,'Project Scope'!$AN94)*'Project Scope'!$AO94),0)","v":""},{"$f":"IFERROR(IF($C94=\"\",\"\",SUMIFS('Ancillary Costs'!$N$8:$N$67,'Ancillary Costs'!$FL$8:$FL$67,\"*xx\"&'Project Scope'!C94&\"xx*\",'Ancillary Costs'!$I$8:$I$67,'Project Scope'!$AW94)*'Project Scope'!$AX94),0)","v":""},{"$f":"IF($C94=\"\",\"\",IF(SUM($AR94,$AZ94,SUM($AS94,$BA94)*'Project Information'!$D$12)=0,0,SUM($BG94,(SUM($BE94:$BF94))*((SUM($AR94,(IF(ISNUMBER($AS94),$AS94,0)*'Project Information'!$D$12)))/SUM($AR94,$AZ94,SUM($AS94,$BA94)*'Project Information'!$D$12)))))","v":""},{"$f":"IF($C94=\"\",\"\",IF(SUM($AR94,$AZ94,SUM($AS94,$BA94)*'Project Information'!$D$12)=0,0,SUM($BH94,(SUM($BE94:$BF94))*((SUM($AZ94,(IF(ISNUMBER($BA94),$BA94,0)*'Project Information'!$D$12)))/SUM($AR94,$AZ94,SUM($AS94,$BA94)*'Project Information'!$D$12)))))","v":""},null,"","","",{"$f":"IF($C94=\"\",\"\",IF(OR($AS94=\"\",$CX94=\"b\"),0,$AS94*'Project Information'!$D$12))","v":""},{"$f":"IF($C94=\"\",\"\",IF(OR($BA94=\"\",$CX94=\"b\"),0,$BA94*'Project Information'!$D$12))","v":""},"","","","","",null,{"$f":"CBAT!$AB94","v":""},{"$f":"CBAT!$BZ94","v":""},0,null,"","",0,{"$f":"IF($Q94=\"\",\"\",IF(OR($CX94<>\"c\",SUM($BY$8:$BY$107)=0),0,ROUND(BW94*MIN('Other Data'!$G$84,'Other Data'!$H$84*IF('Project Information'!$F$10=\"X\",('Project Information'!$L$42-'Project Information'!$L$39),'Project Information'!$L$42)/SUMPRODUCT($BY$8:$BY$107,--($CX$8:$CX$107=\"c\"))),0)))","v":""},{"$f":"IF($AC94=\"\",\"\",IF(OR($CX94<>\"c\",SUM($BY$8:$BY$107)=0),0,ROUND(BX94*MIN('Other Data'!$G$84,'Other Data'!$H$84*IF('Project Information'!$F$10=\"X\",('Project Information'!$L$42-'Project Information'!$L$39),'Project Information'!$L$42)/SUMPRODUCT($BY$8:$BY$107,--($CX$8:$CX$107=\"c\"))),0)))","v":""},0,null,"","",{"$f":"IF($J94=\"\",\"\",VLOOKUP($J94,'TRM Data'!$R$4:$S$168,2,FALSE))","v":""},"","","",null,{"$f":"IF($CV94=0,\"\",CBAT!$DJ94)","v":""},null,null,1,1,0,1,0,null,{"$f":"IF(OR($CV94=0,ISBLANK('Project Information'!$D$44)),\"\",IF(AND($CV94=1,$CO94<1,$G94=\"yes\"),\"a\",IF($CO94<1,\"b\",\"c\")))","v":""}]
[0,88,null,null,null,null,null,{"$f":"IF($C95=\"\",\"\",IF(COUNTIF('Project Information'!$J$9:BG$9,$C95)<>1,\"\",INDEX('Project Information'!$J$8:$BG$8,1,MATCH($C95,'Project Information'!$J$9:BG$9,0))))","v":""},null,null,{"$f":"LOOKUP(2,1/(COUNTIF($K$7:K94,$Q$8:$Q$108)=0),$Q$8:$Q$108)","v":{"$error":"#N/A"}},{"$f":"IF(OR('Project Information'!$D$32=\"\",C95=\"\"),\"\",'Project Information'!$D$32)","v":""},{"$f":"IF($C95=\"\",\"\",IF(COUNTIF('Project Information'!$J$9:$BG$9,$C95)=1,HLOOKUP(C95,'Project Information'!$J$9:$BG$10,2,FALSE),0))","v":""},null,null,null,null,null,null,null,{"$f":"IF(Q95<>\"\",IF('Project Information'!$D$33=\"Small Business\",\"I\",\"P\")&VLOOKUP($Q95,'TRM Data'!$C$5:$N$201,COLUMN('TRM Data'!$E$2)-COLUMN('TRM Data'!$C$2)+1,FALSE)&IF($L95=\"Summer\",\"S\",IF($L95=\"Winter\",\"W\",\"Y\")),\"\")","v":""},{"$f":"IF(OR($F95=\"Controls\",$F95=\"\"),\"\",VLOOKUP($Q95,'TRM Data'!$C$5:$N$201,COLUMN('TRM Data'!$F$2)-COLUMN('TRM Data'!$C$2)+1,FALSE))","v":""},null,{"$f":"IF($R95=0,\"\",VLOOKUP($Q95,'TRM Data'!$C$5:$N$201,COLUMN('TRM Data'!$G$2)-COLUMN('TRM Data'!$C$2)+1,FALSE)*$R95)","v":""},null,{"$f":"IF($R95=0,\"\",VLOOKUP($Q95,'TRM Data'!$C$5:$N$201,COLUMN('TRM Data'!$I$2)-COLUMN('TRM Data'!$C$2)+1,FALSE)*$R95)","v":""},{"$f":"IF($Q95=\"\",\"\",IF('Project Information'!$D$33=\"Small Business\",'Project Scope'!$CA95,IF('Project Information'!$D$33=\"Pay for Performance\",'Project Scope'!$CD95,0)))","v":""},null,null,null,{"$f":"IF(AC95<>\"\",\"P\"&VLOOKUP($AC95,'TRM Data'!$C$5:$N$201,COLUMN('TRM Data'!$E$2)-COLUMN('TRM Data'!$C$2)+1,FALSE)&IF($L95=\"Summer\",\"S\",IF($L95=\"Winter\",\"W\",\"Y\")),\"\")","v":""},{"$f":"IF($AD95=0,\"\",VLOOKUP($AC95,'TRM Data'!$C$5:$N$201,COLUMN('TRM Data'!$G$2)-COLUMN('TRM Data'!$C$2)+1,FALSE)*$AD95)","v":""},null,{"$f":"IF($AD95=0,\"\",VLOOKUP($AC95,'TRM Data'!$C$5:$N$201,COLUMN('TRM Data'!$I$2)-COLUMN('TRM Data'!$C$2)+1,FALSE)*$AD95)","v":""},{"$f":"IF($AC95=\"\",\"\",IF('Project Information'!$D$33=\"Small Business\",'Project Scope'!$CB95,IF('Project Information'!$D$33=\"Pay for Performance\",'Project Scope'!$CE95,0)))","v":""},null,"",null,"","","","","","","",{"$f":"IF($Q95=\"\",\"\",IF(AND(ISNUMBER($BW95),ISNUMBER($AR95),$AR95>0),SUM($BL95,$BO95,$BI95)*'Other Data'!$H$83,0))","v":""},{"$f":"IF($Q95=\"\",\"\",IF(AND(ISNUMBER($BW95),ISNUMBER($AR95),$AR95>0),$BW95*'Other Data'!$G$84,0))","v":""},null,"","","","","",{"$f":"IF($AC95=\"\",\"\",IF(AND(ISNUMBER($BX95), ISNUMBER($AZ95),$AZ95>0),SUM($BJ95,$BM95,$BP95)*'Other Data'!$H$83,0))","v":""},{"$f":"IF($AC95=\"\",\"\",IF(AND(ISNUMBER($BX95), ISNUMBER($AZ95),$AZ95>0),$BX95*'Other Data'!$G$84,0))","v":""},null,{"$f":"IF($C95=\"\",\"\",SUM('Ancillary Costs'!$N$91:$N$105)*(SUM($AR95,$AZ95,SUM($AS95,$BA95)*'Project Information'!$D$12)))","v":""},{"$f":"IF($C95=\"\",\"\",SUMIFS('Ancillary Costs'!$N$72:$N$86,'Ancillary Costs'!$FL$72:$FL$86,\"*xx\"&'Project Scope'!$C95&\"xx*\")*(SUM($AR95,$AZ95,SUM($AS95,$BA95)*'Project Information'!$D$12)))","v":""},{"$f":"IFERROR(IF($C95=\"\",\"\",SUMIFS('Ancillary Costs'!$N$8:$N$67,'Ancillary Costs'!$FL$8:$FL$67,\"*xx\"&'Project Scope'!C95&\"xx*\",'Ancillary Costs'!$I$8:$I$67,'Project Scope'!$AN95)*'Project Scope'!$AO95),0)","v":""},{"$f":"IFERROR(IF($C95=\"\",\"\",SUMIFS('Ancillary Costs'!$N$8:$N$67,'Ancillary Costs'!$FL$8:$FL$67,\"*xx\"&'Project Scope'!C95&\"xx*\",'Ancillary Costs'!$I$8:$I$67,'Project Scope'!$AW95)*'Project Scope'!$AX95),0)","v":""},{"$f":"IF($C95=\"\",\"\",IF(SUM($AR95,$AZ95,SUM($AS95,$BA95)*'Project Information'!$D$12)=0,0,SUM($BG95,(SUM($BE95:$BF95))*((SUM($AR95,(IF(ISNUMBER($AS95),$AS95,0)*'Project Information'!$D$12)))/SUM($AR95,$AZ95,SUM($AS95,$BA95)*'Project Information'!$D$12)))))","v":""},{"$f":"IF($C95=\"\",\"\",IF(SUM($AR95,$AZ95,SUM($AS95,$BA95)*'Project Information'!$D$12)=0,0,SUM($BH95,(SUM($BE95:$BF95))*((SUM($AZ95,(IF(ISNUMBER($BA95),$BA95,0)*'Project Information'!$D$12)))/SUM($AR95,$AZ95,SUM($AS95,$BA95)*'Project Information'!$D$12)))))","v":""},null,"","","",{"$f":"IF($C95=\"\",\"\",IF(OR($AS95=\"\",$CX95=\"b\"),0,$AS95*'Project Information'!$D$12))","v":""},{"$f":"IF($C95=\"\",\"\",IF(OR($BA95=\"\",$CX95=\"b\"),0,$BA95*'Project Information'!$D$12))","v":""},"","","","","",null,{"$f":"CBAT!$AB95","v":""},{"$f":"CBAT!$BZ95","v":""},0,null,"","",0,{"$f":"IF($Q95=\"\",\"\",IF(OR($CX95<>\"c\",SUM($BY$8:$BY$107)=0),0,ROUND(BW95*MIN('Other Data'!$G$84,'Other Data'!$H$84*IF('Project Information'!$F$10=\"X\",('Project Information'!$L$42-'Project Information'!$L$39),'Project Information'!$L$42)/SUMPRODUCT($BY$8:$BY$107,--($CX$8:$CX$107=\"c\"))),0)))","v":""},{"$f":"IF($AC95=\"\",\"\",IF(OR($CX95<>\"c\",SUM($BY$8:$BY$107)=0),0,ROUND(BX95*MIN('Other Data'!$G$84,'Other Data'!$H$84*IF('Project Information'!$F$10=\"X\",('Project Information'!$L$42-'Project Information'!$L$39),'Project Information'!$L$42)/SUMPRODUCT($BY$8:$BY$107,--($CX$8:$CX$107=\"c\"))),0)))","v":""},0,null,"","",{"$f":"IF($J95=\"\",\"\",VLOOKUP($J95,'TRM Data'!$R$4:$S$168,2,FALSE))","v":""},"","","",null,{"$f":"IF($CV95=0,\"\",CBAT!$DJ95)","v":""},null,null,1,1,0,1,0,null,{"$f":"IF(OR($CV95=0,ISBLANK('Project Information'!$D$44)),\"\",IF(AND($CV95=1,$CO95<1,$G95=\"yes\"),\"a\",IF($CO95<1,\"b\",\"c\")))","v":""}]
[0,89,null,null,null,null,null,{"$f":"IF($C96=\"\",\"\",IF(COUNTIF('Project Information'!$J$9:BG$9,$C96)<>1,\"\",INDEX('Project Information'!$J$8:$BG$8,1,MATCH($C96,'Project Information'!$J$9:BG$9,0))))","v":""},null,null,{"$f":"LOOKUP(2,1/(COUNTIF($K$7:K95,$Q$8:$Q$108)=0),$Q$8:$Q$108)","v":{"$error":"#N/A"}},{"$f":"IF(OR('Project Information'!$D$32=\"\",C96=\"\"),\"\",'Project Information'!$D$32)","v":""},{"$f":"IF($C96=\"\",\"\",IF(COUNTIF('Project Information'!$J$9:$BG$9,$C96)=1,HLOOKUP(C96,'Project Information'!$J$9:$BG$10,2,FALSE),0))","v":""},null,null,null,null,null,null,null,{"$f":"IF(Q96<>\"\",IF('Project Information'!$D$33=\"Small Business\",\"I\",\"P\")&VLOOKUP($Q96,'TRM Data'!$C$5:$N$201,COLUMN('TRM Data'!$E$2)-COLUMN('TRM Data'!$C$2)+1,FALSE)&IF($L96=\"Summer\",\"S\",IF($L96=\"Winter\",\"W\",\"Y\")),\"\")","v":""},{"$f":"IF(OR($F96=\"Controls\",$F96=\"\"),\"\",VLOOKUP($Q96,'TRM Data'!$C$5:$N$201,COLUMN('TRM Data'!$F$2)-COLUMN('TRM Data'!$C$2)+1,FALSE))","v":""},null,{"$f":"IF($R96=0,\"\",VLOOKUP($Q96,'TRM Data'!$C$5:$N$201,COLUMN('TRM Data'!$G$2)-COLUMN('TRM Data'!$C$2)+1,FALSE)*$R96)","v":""},null,{"$f":"IF($R96=0,\"\",VLOOKUP($Q96,'TRM Data'!$C$5:$N$201,COLUMN('TRM Data'!$I$2)-COLUMN('TRM Data'!$C$2)+1,FALSE)*$R96)","v":""},{"$f":"IF($Q96=\"\",\"\",IF('Project Information'!$D$33=\"Small Business\",'Project Scope'!$CA96,IF('Project Information'!$D$33=\"Pay for Performance\",'Project Scope'!$CD96,0)))","v":""},null,null,null,{"$f":"IF(AC96<>\"\",\"P\"&VLOOKUP($AC96,'TRM Data'!$C$5:$N$201,COLUMN('TRM Data'!$E$2)-COLUMN('TRM Data'!$C$2)+1,FALSE)&IF($L96=\"Summer\",\"S\",IF($L96=\"Winter\",\"W\",\"Y\")),\"\")","v":""},{"$f":"IF($AD96=0,\"\",VLOOKUP($AC96,'TRM Data'!$C$5:$N$201,COLUMN('TRM Data'!$G$2)-COLUMN('TRM Data'!$C$2)+1,FALSE)*$AD96)","v":""},null,{"$f":"IF($AD96=0,\"\",VLOOKUP($AC96,'TRM Data'!$C$5:$N$201,COLUMN('TRM Data'!$I$2)-COLUMN('TRM Data'!$C$2)+1,FALSE)*$AD96)","v":""},{"$f":"IF($AC96=\"\",\"\",IF('Project Information'!$D$33=\"Small Business\",'Project Scope'!$CB96,IF('Project Information'!$D$33=\"Pay for Performance\",'Project Scope'!$CE96,0)))","v":""},null,"",null,"","","","","","","",{"$f":"IF($Q96=\"\",\"\",IF(AND(ISNUMBER($BW96),ISNUMBER($AR96),$AR96>0),SUM($BL96,$BO96,$BI96)*'Other Data'!$H$83,0))","v":""},{"$f":"IF($Q96=\"\",\"\",IF(AND(ISNUMBER($BW96),ISNUMBER($AR96),$AR96>0),$BW96*'Other Data'!$G$84,0))","v":""},null,"","","","","",{"$f":"IF($AC96=\"\",\"\",IF(AND(ISNUMBER($BX96), ISNUMBER($AZ96),$AZ96>0),SUM($BJ96,$BM96,$BP96)*'Other Data'!$H$83,0))","v":""},{"$f":"IF($AC96=\"\",\"\",IF(AND(ISNUMBER($BX96), ISNUMBER($AZ96),$AZ96>0),$BX96*'Other Data'!$G$84,0))","v":""},null,{"$f":"IF($C96=\"\",\"\",SUM('Ancillary Costs'!$N$91:$N$105)*(SUM($AR96,$AZ96,SUM($AS96,$BA96)*'Project Information'!$D$12)))","v":""},{"$f":"IF($C96=\"\",\"\",SUMIFS('Ancillary Costs'!$N$72:$N$86,'Ancillary Costs'!$FL$72:$FL$86,\"*xx\"&'Project Scope'!$C96&\"xx*\")*(SUM($AR96,$AZ96,SUM($AS96,$BA96)*'Project Information'!$D$12)))","v":""},{"$f":"IFERROR(IF($C96=\"\",\"\",SUMIFS('Ancillary Costs'!$N$8:$N$67,'Ancillary Costs'!$FL$8:$FL$67,\"*xx\"&'Project Scope'!C96&\"xx*\",'Ancillary Costs'!$I$8:$I$67,'Project Scope'!$AN96)*'Project Scope'!$AO96),0)","v":""},{"$f":"IFERROR(IF($C96=\"\",\"\",SUMIFS('Ancillary Costs'!$N$8:$N$67,'Ancillary Costs'!$FL$8:$FL$67,\"*xx\"&'Project Scope'!C96&\"xx*\",'Ancillary Costs'!$I$8:$I$67,'Project Scope'!$AW96)*'Project Scope'!$AX96),0)","v":""},{"$f":"IF($C96=\"\",\"\",IF(SUM($AR96,$AZ96,SUM($AS96,$BA96)*'Project Information'!$D$12)=0,0,SUM($BG96,(SUM($BE96:$BF96))*((SUM($AR96,(IF(ISNUMBER($AS96),$AS96,0)*'Project Information'!$D$12)))/SUM($AR96,$AZ96,SUM($AS96,$BA96)*'Project Information'!$D$12)))))","v":""},{"$f":"IF($C96=\"\",\"\",IF(SUM($AR96,$AZ96,SUM($AS96,$BA96)*'Project Information'!$D$12)=0,0,SUM($BH96,(SUM($BE96:$BF96))*((SUM($AZ96,(IF(ISNUMBER($BA96),$BA96,0)*'Project Information'!$D$12)))/SUM($AR96,$AZ96,SUM($AS96,$BA96)*'Project Information'!$D$12)))))","v":""},null,"","","",{"$f":"IF($C96=\"\",\"\",IF(OR($AS96=\"\",$CX96=\"b\"),0,$AS96*'Project Information'!$D$12))","v":""},{"$f":"IF($C96=\"\",\"\",IF(OR($BA96=\"\",$CX96=\"b\"),0,$BA96*'Project Information'!$D$12))","v":""},"","","","","",null,{"$f":"CBAT!$AB96","v":""},{"$f":"CBAT!$BZ96","v":""},0,null,"","",0,{"$f":"IF($Q96=\"\",\"\",IF(OR($CX96<>\"c\",SUM($BY$8:$BY$107)=0),0,ROUND(BW96*MIN('Other Data'!$G$84,'Other Data'!$H$84*IF('Project Information'!$F$10=\"X\",('Project Information'!$L$42-'Project Information'!$L$39),'Project Information'!$L$42)/SUMPRODUCT($BY$8:$BY$107,--($CX$8:$CX$107=\"c\"))),0)))","v":""},{"$f":"IF($AC96=\"\",\"\",IF(OR($CX96<>\"c\",SUM($BY$8:$BY$107)=0),0,ROUND(BX96*MIN('Other Data'!$G$84,'Other Data'!$H$84*IF('Project Information'!$F$10=\"X\",('Project Information'!$L$42-'Project Information'!$L$39),'Project Information'!$L$42)/SUMPRODUCT($BY$8:$BY$107,--($CX$8:$CX$107=\"c\"))),0)))","v":""},0,null,"","",{"$f":"IF($J96=\"\",\"\",VLOOKUP($J96,'TRM Data'!$R$4:$S$168,2,FALSE))","v":""},"","","",null,{"$f":"IF($CV96=0,\"\",CBAT!$DJ96)","v":""},null,null,1,1,0,1,0,null,{"$f":"IF(OR($CV96=0,ISBLANK('Project Information'!$D$44)),\"\",IF(AND($CV96=1,$CO96<1,$G96=\"yes\"),\"a\",IF($CO96<1,\"b\",\"c\")))","v":""}]
[0,90,null,null,null,null,null,{"$f":"IF($C97=\"\",\"\",IF(COUNTIF('Project Information'!$J$9:BG$9,$C97)<>1,\"\",INDEX('Project Information'!$J$8:$BG$8,1,MATCH($C97,'Project Information'!$J$9:BG$9,0))))","v":""},null,null,{"$f":"LOOKUP(2,1/(COUNTIF($K$7:K96,$Q$8:$Q$108)=0),$Q$8:$Q$108)","v":{"$error":"#N/A"}},{"$f":"IF(OR('Project Information'!$D$32=\"\",C97=\"\"),\"\",'Project Information'!$D$32)","v":""},{"$f":"IF($C97=\"\",\"\",IF(COUNTIF('Project Information'!$J$9:$BG$9,$C97)=1,HLOOKUP(C97,'Project Information'!$J$9:$BG$10,2,FALSE),0))","v":""},null,null,null,null,null,null,null,{"$f":"IF(Q97<>\"\",IF('Project Information'!$D$33=\"Small Business\",\"I\",\"P\")&VLOOKUP($Q97,'TRM Data'!$C$5:$N$201,COLUMN('TRM Data'!$E$2)-COLUMN('TRM Data'!$C$2)+1,FALSE)&IF($L97=\"Summer\",\"S\",IF($L97=\"Winter\",\"W\",\"Y\")),\"\")","v":""},{"$f":"IF(OR($F97=\"Controls\",$F97=\"\"),\"\",VLOOKUP($Q97,'TRM Data'!$C$5:$N$201,COLUMN('TRM Data'!$F$2)-COLUMN('TRM Data'!$C$2)+1,FALSE))","v":""},null,{"$f":"IF($R97=0,\"\",VLOOKUP($Q97,'TRM Data'!$C$5:$N$201,COLUMN('TRM Data'!$G$2)-COLUMN('TRM Data'!$C$2)+1,FALSE)*$R97)","v":""},null,{"$f":"IF($R97=0,\"\",VLOOKUP($Q97,'TRM Data'!$C$5:$N$201,COLUMN('TRM Data'!$I$2)-COLUMN('TRM Data'!$C$2)+1,FALSE)*$R97)","v":""},{"$f":"IF($Q97=\"\",\"\",IF('Project Information'!$D$33=\"Small Business\",'Project Scope'!$CA97,IF('Project Information'!$D$33=\"Pay for Performance\",'Project Scope'!$CD97,0)))","v":""},null,null,null,{"$f":"IF(AC97<>\"\",\"P\"&VLOOKUP($AC97,'TRM Data'!$C$5:$N$201,COLUMN('TRM Data'!$E$2)-COLUMN('TRM Data'!$C$2)+1,FALSE)&IF($L97=\"Summer\",\"S\",IF($L97=\"Winter\",\"W\",\"Y\")),\"\")","v":""},{"$f":"IF($AD97=0,\"\",VLOOKUP($AC97,'TRM Data'!$C$5:$N$201,COLUMN('TRM Data'!$G$2)-COLUMN('TRM Data'!$C$2)+1,FALSE)*$AD97)","v":""},null,{"$f":"IF($AD97=0,\"\",VLOOKUP($AC97,'TRM Data'!$C$5:$N$201,COLUMN('TRM Data'!$I$2)-COLUMN('TRM Data'!$C$2)+1,FALSE)*$AD97)","v":""},{"$f":"IF($AC97=\"\",\"\",IF('Project Information'!$D$33=\"Small Business\",'Project Scope'!$CB97,IF('Project Information'!$D$33=\"Pay for Performance\",'Project Scope'!$CE97,0)))","v":""},null,"",null,"","","","","","","",{"$f":"IF($Q97=\"\",\"\",IF(AND(ISNUMBER($BW97),ISNUMBER($AR97),$AR97>0),SUM($BL97,$BO97,$BI97)*'Other Data'!$H$83,0))","v":""},{"$f":"IF($Q97=\"\",\"\",IF(AND(ISNUMBER($BW97),ISNUMBER($AR97),$AR97>0),$BW97*'Other Data'!$G$84,0))","v":""},null,"","","","","",{"$f":"IF($AC97=\"\",\"\",IF(AND(ISNUMBER($BX97), ISNUMBER($AZ97),$AZ97>0),SUM($BJ97,$BM97,$BP97)*'Other Data'!$H$83,0))","v":""},{"$f":"IF($AC97=\"\",\"\",IF(AND(ISNUMBER($BX97), ISNUMBER($AZ97),$AZ97>0),$BX97*'Other Data'!$G$84,0))","v":""},null,{"$f":"IF($C97=\"\",\"\",SUM('Ancillary Costs'!$N$91:$N$105)*(SUM($AR97,$AZ97,SUM($AS97,$BA97)*'Project Information'!$D$12)))","v":""},{"$f":"IF($C97=\"\",\"\",SUMIFS('Ancillary Costs'!$N$72:$N$86,'Ancillary Costs'!$FL$72:$FL$86,\"*xx\"&'Project Scope'!$C97&\"xx*\")*(SUM($AR97,$AZ97,SUM($AS97,$BA97)*'Project Information'!$D$12)))","v":""},{"$f":"IFERROR(IF($C97=\"\",\"\",SUMIFS('Ancillary Costs'!$N$8:$N$67,'Ancillary Costs'!$FL$8:$FL$67,\"*xx\"&'Project Scope'!C97&\"xx*\",'Ancillary Costs'!$I$8:$I$67,'Project Scope'!$AN97)*'Project Scope'!$AO97),0)","v":""},{"$f":"IFERROR(IF($C97=\"\",\"\",SUMIFS('Ancillary Costs'!$N$8:$N$67,'Ancillary Costs'!$FL$8:$FL$67,\"*xx\"&'Project Scope'!C97&\"xx*\",'Ancillary Costs'!$I$8:$I$67,'Project Scope'!$AW97)*'Project Scope'!$AX97),0)","v":""},{"$f":"IF($C97=\"\",\"\",IF(SUM($AR97,$AZ97,SUM($AS97,$BA97)*'Project Information'!$D$12)=0,0,SUM($BG97,(SUM($BE97:$BF97))*((SUM($AR97,(IF(ISNUMBER($AS97),$AS97,0)*'Project Information'!$D$12)))/SUM($AR97,$AZ97,SUM($AS97,$BA97)*'Project Information'!$D$12)))))","v":""},{"$f":"IF($C97=\"\",\"\",IF(SUM($AR97,$AZ97,SUM($AS97,$BA97)*'Project Information'!$D$12)=0,0,SUM($BH97,(SUM($BE97:$BF97))*((SUM($AZ97,(IF(ISNUMBER($BA97),$BA97,0)*'Project Information'!$D$12)))/SUM($AR97,$AZ97,SUM($AS97,$BA97)*'Project Information'!$D$12)))))","v":""},null,"","","",{"$f":"IF($C97=\"\",\"\",IF(OR($AS97=\"\",$CX97=\"b\"),0,$AS97*'Project Information'!$D$12))","v":""},{"$f":"IF($C97=\"\",\"\",IF(OR($BA97=\"\",$CX97=\"b\"),0,$BA97*'Project Information'!$D$12))","v":""},"","","","","",null,{"$f":"CBAT!$AB97","v":""},{"$f":"CBAT!$BZ97","v":""},0,null,"","",0,{"$f":"IF($Q97=\"\",\"\",IF(OR($CX97<>\"c\",SUM($BY$8:$BY$107)=0),0,ROUND(BW97*MIN('Other Data'!$G$84,'Other Data'!$H$84*IF('Project Information'!$F$10=\"X\",('Project Information'!$L$42-'Project Information'!$L$39),'Project Information'!$L$42)/SUMPRODUCT($BY$8:$BY$107,--($CX$8:$CX$107=\"c\"))),0)))","v":""},{"$f":"IF($AC97=\"\",\"\",IF(OR($CX97<>\"c\",SUM($BY$8:$BY$107)=0),0,ROUND(BX97*MIN('Other Data'!$G$84,'Other Data'!$H$84*IF('Project Information'!$F$10=\"X\",('Project Information'!$L$42-'Project Information'!$L$39),'Project Information'!$L$42)/SUMPRODUCT($BY$8:$BY$107,--($CX$8:$CX$107=\"c\"))),0)))","v":""},0,null,"","",{"$f":"IF($J97=\"\",\"\",VLOOKUP($J97,'TRM Data'!$R$4:$S$168,2,FALSE))","v":""},"","","",null,{"$f":"IF($CV97=0,\"\",CBAT!$DJ97)","v":""},null,null,1,1,0,1,0,null,{"$f":"IF(OR($CV97=0,ISBLANK('Project Information'!$D$44)),\"\",IF(AND($CV97=1,$CO97<1,$G97=\"yes\"),\"a\",IF($CO97<1,\"b\",\"c\")))","v":""}]
[0,91,null,null,null,null,null,{"$f":"IF($C98=\"\",\"\",IF(COUNTIF('Project Information'!$J$9:BG$9,$C98)<>1,\"\",INDEX('Project Information'!$J$8:$BG$8,1,MATCH($C98,'Project Information'!$J$9:BG$9,0))))","v":""},null,null,{"$f":"LOOKUP(2,1/(COUNTIF($K$7:K97,$Q$8:$Q$108)=0),$Q$8:$Q$108)","v":{"$error":"#N/A"}},{"$f":"IF(OR('Project Information'!$D$32=\"\",C98=\"\"),\"\",'Project Information'!$D$32)","v":""},{"$f":"IF($C98=\"\",\"\",IF(COUNTIF('Project Information'!$J$9:$BG$9,$C98)=1,HLOOKUP(C98,'Project Information'!$J$9:$BG$10,2,FALSE),0))","v":""},null,null,null,null,null,null,null,{"$f":"IF(Q98<>\"\",IF('Project Information'!$D$33=\"Small Business\",\"I\",\"P\")&VLOOKUP($Q98,'TRM Data'!$C$5:$N$201,COLUMN('TRM Data'!$E$2)-COLUMN('TRM Data'!$C$2)+1,FALSE)&IF($L98=\"Summer\",\"S\",IF($L98=\"Winter\",\"W\",\"Y\")),\"\")","v":""},{"$f":"IF(OR($F98=\"Controls\",$F98=\"\"),\"\",VLOOKUP($Q98,'TRM Data'!$C$5:$N$201,COLUMN('TRM Data'!$F$2)-COLUMN('TRM Data'!$C$2)+1,FALSE))","v":""},null,{"$f":"IF($R98=0,\"\",VLOOKUP($Q98,'TRM Data'!$C$5:$N$201,COLUMN('TRM Data'!$G$2)-COLUMN('TRM Data'!$C$2)+1,FALSE)*$R98)","v":""},null,{"$f":"IF($R98=0,\"\",VLOOKUP($Q98,'TRM Data'!$C$5:$N$201,COLUMN('TRM Data'!$I$2)-COLUMN('TRM Data'!$C$2)+1,FALSE)*$R98)","v":""},{"$f":"IF($Q98=\"\",\"\",IF('Project Information'!$D$33=\"Small Business\",'Project Scope'!$CA98,IF('Project Information'!$D$33=\"Pay for Performance\",'Project Scope'!$CD98,0)))","v":""},null,null,null,{"$f":"IF(AC98<>\"\",\"P\"&VLOOKUP($AC98,'TRM Data'!$C$5:$N$201,COLUMN('TRM Data'!$E$2)-COLUMN('TRM Data'!$C$2)+1,FALSE)&IF($L98=\"Summer\",\"S\",IF($L98=\"Winter\",\"W\",\"Y\")),\"\")","v":""},{"$f":"IF($AD98=0,\"\",VLOOKUP($AC98,'TRM Data'!$C$5:$N$201,COLUMN('TRM Data'!$G$2)-COLUMN('TRM Data'!$C$2)+1,FALSE)*$AD98)","v":""},null,{"$f":"IF($AD98=0,\"\",VLOOKUP($AC98,'TRM Data'!$C$5:$N$201,COLUMN('TRM Data'!$I$2)-COLUMN('TRM Data'!$C$2)+1,FALSE)*$AD98)","v":""},{"$f":"IF($AC98=\"\",\"\",IF('Project Information'!$D$33=\"Small Business\",'Project Scope'!$CB98,IF('Project Information'!$D$33=\"Pay for Performance\",'Project Scope'!$CE98,0)))","v":""},null,"",null,"","","","","","","",{"$f":"IF($Q98=\"\",\"\",IF(AND(ISNUMBER($BW98),ISNUMBER($AR98),$AR98>0),SUM($BL98,$BO98,$BI98)*'Other Data'!$H$83,0))","v":""},{"$f":"IF($Q98=\"\",\"\",IF(AND(ISNUMBER($BW98),ISNUMBER($AR98),$AR98>0),$BW98*'Other Data'!$G$84,0))","v":""},null,"","","","","",{"$f":"IF($AC98=\"\",\"\",IF(AND(ISNUMBER($BX98), ISNUMBER($AZ98),$AZ98>0),SUM($BJ98,$BM98,$BP98)*'Other Data'!$H$83,0))","v":""},{"$f":"IF($AC98=\"\",\"\",IF(AND(ISNUMBER($BX98), ISNUMBER($AZ98),$AZ98>0),$BX98*'Other Data'!$G$84,0))","v":""},null,{"$f":"IF($C98=\"\",\"\",SUM('Ancillary Costs'!$N$91:$N$105)*(SUM($AR98,$AZ98,SUM($AS98,$BA98)*'Project Information'!$D$12)))","v":""},{"$f":"IF($C98=\"\",\"\",SUMIFS('Ancillary Costs'!$N$72:$N$86,'Ancillary Costs'!$FL$72:$FL$86,\"*xx\"&'Project Scope'!$C98&\"xx*\")*(SUM($AR98,$AZ98,SUM($AS98,$BA98)*'Project Information'!$D$12)))","v":""},{"$f":"IFERROR(IF($C98=\"\",\"\",SUMIFS('Ancillary Costs'!$N$8:$N$67,'Ancillary Costs'!$FL$8:$FL$67,\"*xx\"&'Project Scope'!C98&\"xx*\",'Ancillary Costs'!$I$8:$I$67,'Project Scope'!$AN98)*'Project Scope'!$AO98),0)","v":""},{"$f":"IFERROR(IF($C98=\"\",\"\",SUMIFS('Ancillary Costs'!$N$8:$N$67,'Ancillary Costs'!$FL$8:$FL$67,\"*xx\"&'Project Scope'!C98&\"xx*\",'Ancillary Costs'!$I$8:$I$67,'Project Scope'!$AW98)*'Project Scope'!$AX98),0)","v":""},{"$f":"IF($C98=\"\",\"\",IF(SUM($AR98,$AZ98,SUM($AS98,$BA98)*'Project Information'!$D$12)=0,0,SUM($BG98,(SUM($BE98:$BF98))*((SUM($AR98,(IF(ISNUMBER($AS98),$AS98,0)*'Project Information'!$D$12)))/SUM($AR98,$AZ98,SUM($AS98,$BA98)*'Project Information'!$D$12)))))","v":""},{"$f":"IF($C98=\"\",\"\",IF(SUM($AR98,$AZ98,SUM($AS98,$BA98)*'Project Information'!$D$12)=0,0,SUM($BH98,(SUM($BE98:$BF98))*((SUM($AZ98,(IF(ISNUMBER($BA98),$BA98,0)*'Project Information'!$D$12)))/SUM($AR98,$AZ98,SUM($AS98,$BA98)*'Project Information'!$D$12)))))","v":""},null,"","","",{"$f":"IF($C98=\"\",\"\",IF(OR($AS98=\"\",$CX98=\"b\"),0,$AS98*'Project Information'!$D$12))","v":""},{"$f":"IF($C98=\"\",\"\",IF(OR($BA98=\"\",$CX98=\"b\"),0,$BA98*'Project Information'!$D$12))","v":""},"","","","","",null,{"$f":"CBAT!$AB98","v":""},{"$f":"CBAT!$BZ98","v":""},0,null,"","",0,{"$f":"IF($Q98=\"\",\"\",IF(OR($CX98<>\"c\",SUM($BY$8:$BY$107)=0),0,ROUND(BW98*MIN('Other Data'!$G$84,'Other Data'!$H$84*IF('Project Information'!$F$10=\"X\",('Project Information'!$L$42-'Project Information'!$L$39),'Project Information'!$L$42)/SUMPRODUCT($BY$8:$BY$107,--($CX$8:$CX$107=\"c\"))),0)))","v":""},{"$f":"IF($AC98=\"\",\"\",IF(OR($CX98<>\"c\",SUM($BY$8:$BY$107)=0),0,ROUND(BX98*MIN('Other Data'!$G$84,'Other Data'!$H$84*IF('Project Information'!$F$10=\"X\",('Project Information'!$L$42-'Project Information'!$L$39),'Project Information'!$L$42)/SUMPRODUCT($BY$8:$BY$107,--($CX$8:$CX$107=\"c\"))),0)))","v":""},0,null,"","",{"$f":"IF($J98=\"\",\"\",VLOOKUP($J98,'TRM Data'!$R$4:$S$168,2,FALSE))","v":""},"","","",null,{"$f":"IF($CV98=0,\"\",CBAT!$DJ98)","v":""},null,null,1,1,0,1,0,null,{"$f":"IF(OR($CV98=0,ISBLANK('Project Information'!$D$44)),\"\",IF(AND($CV98=1,$CO98<1,$G98=\"yes\"),\"a\",IF($CO98<1,\"b\",\"c\")))","v":""}]
[0,92,null,null,null,null,null,{"$f":"IF($C99=\"\",\"\",IF(COUNTIF('Project Information'!$J$9:BG$9,$C99)<>1,\"\",INDEX('Project Information'!$J$8:$BG$8,1,MATCH($C99,'Project Information'!$J$9:BG$9,0))))","v":""},null,null,{"$f":"LOOKUP(2,1/(COUNTIF($K$7:K98,$Q$8:$Q$108)=0),$Q$8:$Q$108)","v":{"$error":"#N/A"}},{"$f":"IF(OR('Project Information'!$D$32=\"\",C99=\"\"),\"\",'Project Information'!$D$32)","v":""},{"$f":"IF($C99=\"\",\"\",IF(COUNTIF('Project Information'!$J$9:$BG$9,$C99)=1,HLOOKUP(C99,'Project Information'!$J$9:$BG$10,2,FALSE),0))","v":""},null,null,null,null,null,null,null,{"$f":"IF(Q99<>\"\",IF('Project Information'!$D$33=\"Small Business\",\"I\",\"P\")&VLOOKUP($Q99,'TRM Data'!$C$5:$N$201,COLUMN('TRM Data'!$E$2)-COLUMN('TRM Data'!$C$2)+1,FALSE)&IF($L99=\"Summer\",\"S\",IF($L99=\"Winter\",\"W\",\"Y\")),\"\")","v":""},{"$f":"IF(OR($F99=\"Controls\",$F99=\"\"),\"\",VLOOKUP($Q99,'TRM Data'!$C$5:$N$201,COLUMN('TRM Data'!$F$2)-COLUMN('TRM Data'!$C$2)+1,FALSE))","v":""},null,{"$f":"IF($R99=0,\"\",VLOOKUP($Q99,'TRM Data'!$C$5:$N$201,COLUMN('TRM Data'!$G$2)-COLUMN('TRM Data'!$C$2)+1,FALSE)*$R99)","v":""},null,{"$f":"IF($R99=0,\"\",VLOOKUP($Q99,'TRM Data'!$C$5:$N$201,COLUMN('TRM Data'!$I$2)-COLUMN('TRM Data'!$C$2)+1,FALSE)*$R99)","v":""},{"$f":"IF($Q99=\"\",\"\",IF('Project Information'!$D$33=\"Small Business\",'Project Scope'!$CA99,IF('Project Information'!$D$33=\"Pay for Performance\",'Project Scope'!$CD99,0)))","v":""},null,null,null,{"$f":"IF(AC99<>\"\",\"P\"&VLOOKUP($AC99,'TRM Data'!$C$5:$N$201,COLUMN('TRM Data'!$E$2)-COLUMN('TRM Data'!$C$2)+1,FALSE)&IF($L99=\"Summer\",\"S\",IF($L99=\"Winter\",\"W\",\"Y\")),\"\")","v":""},{"$f":"IF($AD99=0,\"\",VLOOKUP($AC99,'TRM Data'!$C$5:$N$201,COLUMN('TRM Data'!$G$2)-COLUMN('TRM Data'!$C$2)+1,FALSE)*$AD99)","v":""},null,{"$f":"IF($AD99=0,\"\",VLOOKUP($AC99,'TRM Data'!$C$5:$N$201,COLUMN('TRM Data'!$I$2)-COLUMN('TRM Data'!$C$2)+1,FALSE)*$AD99)","v":""},{"$f":"IF($AC99=\"\",\"\",IF('Project Information'!$D$33=\"Small Business\",'Project Scope'!$CB99,IF('Project Information'!$D$33=\"Pay for Performance\",'Project Scope'!$CE99,0)))","v":""},null,"",null,"","","","","","","",{"$f":"IF($Q99=\"\",\"\",IF(AND(ISNUMBER($BW99),ISNUMBER($AR99),$AR99>0),SUM($BL99,$BO99,$BI99)*'Other Data'!$H$83,0))","v":""},{"$f":"IF($Q99=\"\",\"\",IF(AND(ISNUMBER($BW99),ISNUMBER($AR99),$AR99>0),$BW99*'Other Data'!$G$84,0))","v":""},null,"","","","","",{"$f":"IF($AC99=\"\",\"\",IF(AND(ISNUMBER($BX99), ISNUMBER($AZ99),$AZ99>0),SUM($BJ99,$BM99,$BP99)*'Other Data'!$H$83,0))","v":""},{"$f":"IF($AC99=\"\",\"\",IF(AND(ISNUMBER($BX99), ISNUMBER($AZ99),$AZ99>0),$BX99*'Other Data'!$G$84,0))","v":""},null,{"$f":"IF($C99=\"\",\"\",SUM('Ancillary Costs'!$N$91:$N$105)*(SUM($AR99,$AZ99,SUM($AS99,$BA99)*'Project Information'!$D$12)))","v":""},{"$f":"IF($C99=\"\",\"\",SUMIFS('Ancillary Costs'!$N$72:$N$86,'Ancillary Costs'!$FL$72:$FL$86,\"*xx\"&'Project Scope'!$C99&\"xx*\")*(SUM($AR99,$AZ99,SUM($AS99,$BA99)*'Project Information'!$D$12)))","v":""},{"$f":"IFERROR(IF($C99=\"\",\"\",SUMIFS('Ancillary Costs'!$N$8:$N$67,'Ancillary Costs'!$FL$8:$FL$67,\"*xx\"&'Project Scope'!C99&\"xx*\",'Ancillary Costs'!$I$8:$I$67,'Project Scope'!$AN99)*'Project Scope'!$AO99),0)","v":""},{"$f":"IFERROR(IF($C99=\"\",\"\",SUMIFS('Ancillary Costs'!$N$8:$N$67,'Ancillary Costs'!$FL$8:$FL$67,\"*xx\"&'Project Scope'!C99&\"xx*\",'Ancillary Costs'!$I$8:$I$67,'Project Scope'!$AW99)*'Project Scope'!$AX99),0)","v":""},{"$f":"IF($C99=\"\",\"\",IF(SUM($AR99,$AZ99,SUM($AS99,$BA99)*'Project Information'!$D$12)=0,0,SUM($BG99,(SUM($BE99:$BF99))*((SUM($AR99,(IF(ISNUMBER($AS99),$AS99,0)*'Project Information'!$D$12)))/SUM($AR99,$AZ99,SUM($AS99,$BA99)*'Project Information'!$D$12)))))","v":""},{"$f":"IF($C99=\"\",\"\",IF(SUM($AR99,$AZ99,SUM($AS99,$BA99)*'Project Information'!$D$12)=0,0,SUM($BH99,(SUM($BE99:$BF99))*((SUM($AZ99,(IF(ISNUMBER($BA99),$BA99,0)*'Project Information'!$D$12)))/SUM($AR99,$AZ99,SUM($AS99,$BA99)*'Project Information'!$D$12)))))","v":""},null,"","","",{"$f":"IF($C99=\"\",\"\",IF(OR($AS99=\"\",$CX99=\"b\"),0,$AS99*'Project Information'!$D$12))","v":""},{"$f":"IF($C99=\"\",\"\",IF(OR($BA99=\"\",$CX99=\"b\"),0,$BA99*'Project Information'!$D$12))","v":""},"","","","","",null,{"$f":"CBAT!$AB99","v":""},{"$f":"CBAT!$BZ99","v":""},0,null,"","",0,{"$f":"IF($Q99=\"\",\"\",IF(OR($CX99<>\"c\",SUM($BY$8:$BY$107)=0),0,ROUND(BW99*MIN('Other Data'!$G$84,'Other Data'!$H$84*IF('Project Information'!$F$10=\"X\",('Project Information'!$L$42-'Project Information'!$L$39),'Project Information'!$L$42)/SUMPRODUCT($BY$8:$BY$107,--($CX$8:$CX$107=\"c\"))),0)))","v":""},{"$f":"IF($AC99=\"\",\"\",IF(OR($CX99<>\"c\",SUM($BY$8:$BY$107)=0),0,ROUND(BX99*MIN('Other Data'!$G$84,'Other Data'!$H$84*IF('Project Information'!$F$10=\"X\",('Project Information'!$L$42-'Project Information'!$L$39),'Project Information'!$L$42)/SUMPRODUCT($BY$8:$BY$107,--($CX$8:$CX$107=\"c\"))),0)))","v":""},0,null,"","",{"$f":"IF($J99=\"\",\"\",VLOOKUP($J99,'TRM Data'!$R$4:$S$168,2,FALSE))","v":""},"","","",null,{"$f":"IF($CV99=0,\"\",CBAT!$DJ99)","v":""},null,null,1,1,0,1,0,null,{"$f":"IF(OR($CV99=0,ISBLANK('Project Information'!$D$44)),\"\",IF(AND($CV99=1,$CO99<1,$G99=\"yes\"),\"a\",IF($CO99<1,\"b\",\"c\")))","v":""}]
[0,93,null,null,null,null,null,{"$f":"IF($C100=\"\",\"\",IF(COUNTIF('Project Information'!$J$9:BG$9,$C100)<>1,\"\",INDEX('Project Information'!$J$8:$BG$8,1,MATCH($C100,'Project Information'!$J$9:BG$9,0))))","v":""},null,null,{"$f":"LOOKUP(2,1/(COUNTIF($K$7:K99,$Q$8:$Q$108)=0),$Q$8:$Q$108)","v":{"$error":"#N/A"}},{"$f":"IF(OR('Project Information'!$D$32=\"\",C100=\"\"),\"\",'Project Information'!$D$32)","v":""},{"$f":"IF($C100=\"\",\"\",IF(COUNTIF('Project Information'!$J$9:$BG$9,$C100)=1,HLOOKUP(C100,'Project Information'!$J$9:$BG$10,2,FALSE),0))","v":""},null,null,null,null,null,null,null,{"$f":"IF(Q100<>\"\",IF('Project Information'!$D$33=\"Small Business\",\"I\",\"P\")&VLOOKUP($Q100,'TRM Data'!$C$5:$N$201,COLUMN('TRM Data'!$E$2)-COLUMN('TRM Data'!$C$2)+1,FALSE)&IF($L100=\"Summer\",\"S\",IF($L100=\"Winter\",\"W\",\"Y\")),\"\")","v":""},{"$f":"IF(OR($F100=\"Controls\",$F100=\"\"),\"\",VLOOKUP($Q100,'TRM Data'!$C$5:$N$201,COLUMN('TRM Data'!$F$2)-COLUMN('TRM Data'!$C$2)+1,FALSE))","v":""},null,{"$f":"IF($R100=0,\"\",VLOOKUP($Q100,'TRM Data'!$C$5:$N$201,COLUMN('TRM Data'!$G$2)-COLUMN('TRM Data'!$C$2)+1,FALSE)*$R100)","v":""},null,{"$f":"IF($R100=0,\"\",VLOOKUP($Q100,'TRM Data'!$C$5:$N$201,COLUMN('TRM Data'!$I$2)-COLUMN('TRM Data'!$C$2)+1,FALSE)*$R100)","v":""},{"$f":"IF($Q100=\"\",\"\",IF('Project Information'!$D$33=\"Small Business\",'Project Scope'!$CA100,IF('Project Information'!$D$33=\"Pay for Performance\",'Project Scope'!$CD100,0)))","v":""},null,null,null,{"$f":"IF(AC100<>\"\",\"P\"&VLOOKUP($AC100,'TRM Data'!$C$5:$N$201,COLUMN('TRM Data'!$E$2)-COLUMN('TRM Data'!$C$2)+1,FALSE)&IF($L100=\"Summer\",\"S\",IF($L100=\"Winter\",\"W\",\"Y\")),\"\")","v":""},{"$f":"IF($AD100=0,\"\",VLOOKUP($AC100,'TRM Data'!$C$5:$N$201,COLUMN('TRM Data'!$G$2)-COLUMN('TRM Data'!$C$2)+1,FALSE)*$AD100)","v":""},null,{"$f":"IF($AD100=0,\"\",VLOOKUP($AC100,'TRM Data'!$C$5:$N$201,COLUMN('TRM Data'!$I$2)-COLUMN('TRM Data'!$C$2)+1,FALSE)*$AD100)","v":""},{"$f":"IF($AC100=\"\",\"\",IF('Project Information'!$D$33=\"Small Business\",'Project Scope'!$CB100,IF('Project Information'!$D$33=\"Pay for Performance\",'Project Scope'!$CE100,0)))","v":""},null,"",null,"","","","","","","",{"$f":"IF($Q100=\"\",\"\",IF(AND(ISNUMBER($BW100),ISNUMBER($AR100),$AR100>0),SUM($BL100,$BO100,$BI100)*'Other Data'!$H$83,0))","v":""},{"$f":"IF($Q100=\"\",\"\",IF(AND(ISNUMBER($BW100),ISNUMBER($AR100),$AR100>0),$BW100*'Other Data'!$G$84,0))","v":""},null,"","","","","",{"$f":"IF($AC100=\"\",\"\",IF(AND(ISNUMBER($BX100), ISNUMBER($AZ100),$AZ100>0),SUM($BJ100,$BM100,$BP100)*'Other Data'!$H$83,0))","v":""},{"$f":"IF($AC100=\"\",\"\",IF(AND(ISNUMBER($BX100), ISNUMBER($AZ100),$AZ100>0),$BX100*'Other Data'!$G$84,0))","v":""},null,{"$f":"IF($C100=\"\",\"\",SUM('Ancillary Costs'!$N$91:$N$105)*(SUM($AR100,$AZ100,SUM($AS100,$BA100)*'Project Information'!$D$12)))","v":""},{"$f":"IF($C100=\"\",\"\",SUMIFS('Ancillary Costs'!$N$72:$N$86,'Ancillary Costs'!$FL$72:$FL$86,\"*xx\"&'Project Scope'!$C100&\"xx*\")*(SUM($AR100,$AZ100,SUM($AS100,$BA100)*'Project Information'!$D$12)))","v":""},{"$f":"IFERROR(IF($C100=\"\",\"\",SUMIFS('Ancillary Costs'!$N$8:$N$67,'Ancillary Costs'!$FL$8:$FL$67,\"*xx\"&'Project Scope'!C100&\"xx*\",'Ancillary Costs'!$I$8:$I$67,'Project Scope'!$AN100)*'Project Scope'!$AO100),0)","v":""},{"$f":"IFERROR(IF($C100=\"\",\"\",SUMIFS('Ancillary Costs'!$N$8:$N$67,'Ancillary Costs'!$FL$8:$FL$67,\"*xx\"&'Project Scope'!C100&\"xx*\",'Ancillary Costs'!$I$8:$I$67,'Project Scope'!$AW100)*'Project Scope'!$AX100),0)","v":""},{"$f":"IF($C100=\"\",\"\",IF(SUM($AR100,$AZ100,SUM($AS100,$BA100)*'Project Information'!$D$12)=0,0,SUM($BG100,(SUM($BE100:$BF100))*((SUM($AR100,(IF(ISNUMBER($AS100),$AS100,0)*'Project Information'!$D$12)))/SUM($AR100,$AZ100,SUM($AS100,$BA100)*'Project Information'!$D$12)))))","v":""},{"$f":"IF($C100=\"\",\"\",IF(SUM($AR100,$AZ100,SUM($AS100,$BA100)*'Project Information'!$D$12)=0,0,SUM($BH100,(SUM($BE100:$BF100))*((SUM($AZ100,(IF(ISNUMBER($BA100),$BA100,0)*'Project Information'!$D$12)))/SUM($AR100,$AZ100,SUM($AS100,$BA100)*'Project Information'!$D$12)))))","v":""},null,"","","",{"$f":"IF($C100=\"\",\"\",IF(OR($AS100=\"\",$CX100=\"b\"),0,$AS100*'Project Information'!$D$12))","v":""},{"$f":"IF($C100=\"\",\"\",IF(OR($BA100=\"\",$CX100=\"b\"),0,$BA100*'Project Information'!$D$12))","v":""},"","","","","",null,{"$f":"CBAT!$AB100","v":""},{"$f":"CBAT!$BZ100","v":""},0,null,"","",0,{"$f":"IF($Q100=\"\",\"\",IF(OR($CX100<>\"c\",SUM($BY$8:$BY$107)=0),0,ROUND(BW100*MIN('Other Data'!$G$84,'Other Data'!$H$84*IF('Project Information'!$F$10=\"X\",('Project Information'!$L$42-'Project Information'!$L$39),'Project Information'!$L$42)/SUMPRODUCT($BY$8:$BY$107,--($CX$8:$CX$107=\"c\"))),0)))","v":""},{"$f":"IF($AC100=\"\",\"\",IF(OR($CX100<>\"c\",SUM($BY$8:$BY$107)=0),0,ROUND(BX100*MIN('Other Data'!$G$84,'Other Data'!$H$84*IF('Project Information'!$F$10=\"X\",('Project Information'!$L$42-'Project Information'!$L$39),'Project Information'!$L$42)/SUMPRODUCT($BY$8:$BY$107,--($CX$8:$CX$107=\"c\"))),0)))","v":""},0,null,"","",{"$f":"IF($J100=\"\",\"\",VLOOKUP($J100,'TRM Data'!$R$4:$S$168,2,FALSE))","v":""},"","","",null,{"$f":"IF($CV100=0,\"\",CBAT!$DJ100)","v":""},null,null,1,1,0,1,0,null,{"$f":"IF(OR($CV100=0,ISBLANK('Project Information'!$D$44)),\"\",IF(AND($CV100=1,$CO100<1,$G100=\"yes\"),\"a\",IF($CO100<1,\"b\",\"c\")))","v":""}]
[0,94,null,null,null,null,null,{"$f":"IF($C101=\"\",\"\",IF(COUNTIF('Project Information'!$J$9:BG$9,$C101)<>1,\"\",INDEX('Project Information'!$J$8:$BG$8,1,MATCH($C101,'Project Information'!$J$9:BG$9,0))))","v":""},null,null,{"$f":"LOOKUP(2,1/(COUNTIF($K$7:K100,$Q$8:$Q$108)=0),$Q$8:$Q$108)","v":{"$error":"#N/A"}},{"$f":"IF(OR('Project Information'!$D$32=\"\",C101=\"\"),\"\",'Project Information'!$D$32)","v":""},{"$f":"IF($C101=\"\",\"\",IF(COUNTIF('Project Information'!$J$9:$BG$9,$C101)=1,HLOOKUP(C101,'Project Information'!$J$9:$BG$10,2,FALSE),0))","v":""},null,null,null,null,null,null,null,{"$f":"IF(Q101<>\"\",IF('Project Information'!$D$33=\"Small Business\",\"I\",\"P\")&VLOOKUP($Q101,'TRM Data'!$C$5:$N$201,COLUMN('TRM Data'!$E$2)-COLUMN('TRM Data'!$C$2)+1,FALSE)&IF($L101=\"Summer\",\"S\",IF($L101=\"Winter\",\"W\",\"Y\")),\"\")","v":""},{"$f":"IF(OR($F101=\"Controls\",$F101=\"\"),\"\",VLOOKUP($Q101,'TRM Data'!$C$5:$N$201,COLUMN('TRM Data'!$F$2)-COLUMN('TRM Data'!$C$2)+1,FALSE))","v":""},null,{"$f":"IF($R101=0,\"\",VLOOKUP($Q101,'TRM Data'!$C$5:$N$201,COLUMN('TRM Data'!$G$2)-COLUMN('TRM Data'!$C$2)+1,FALSE)*$R101)","v":""},null,{"$f":"IF($R101=0,\"\",VLOOKUP($Q101,'TRM Data'!$C$5:$N$201,COLUMN('TRM Data'!$I$2)-COLUMN('TRM Data'!$C$2)+1,FALSE)*$R101)","v":""},{"$f":"IF($Q101=\"\",\"\",IF('Project Information'!$D$33=\"Small Business\",'Project Scope'!$CA101,IF('Project Information'!$D$33=\"Pay for Performance\",'Project Scope'!$CD101,0)))","v":""},null,null,null,{"$f":"IF(AC101<>\"\",\"P\"&VLOOKUP($AC101,'TRM Data'!$C$5:$N$201,COLUMN('TRM Data'!$E$2)-COLUMN('TRM Data'!$C$2)+1,FALSE)&IF($L101=\"Summer\",\"S\",IF($L101=\"Winter\",\"W\",\"Y\")),\"\")","v":""},{"$f":"IF($AD101=0,\"\",VLOOKUP($AC101,'TRM Data'!$C$5:$N$201,COLUMN('TRM Data'!$G$2)-COLUMN('TRM Data'!$C$2)+1,FALSE)*$AD101)","v":""},null,{"$f":"IF($AD101=0,\"\",VLOOKUP($AC101,'TRM Data'!$C$5:$N$201,COLUMN('TRM Data'!$I$2)-COLUMN('TRM Data'!$C$2)+1,FALSE)*$AD101)","v":""},{"$f":"IF($AC101=\"\",\"\",IF('Project Information'!$D$33=\"Small Business\",'Project Scope'!$CB101,IF('Project Information'!$D$33=\"Pay for Performance\",'Project Scope'!$CE101,0)))","v":""},null,"",null,"","","","","","","",{"$f":"IF($Q101=\"\",\"\",IF(AND(ISNUMBER($BW101),ISNUMBER($AR101),$AR101>0),SUM($BL101,$BO101,$BI101)*'Other Data'!$H$83,0))","v":""},{"$f":"IF($Q101=\"\",\"\",IF(AND(ISNUMBER($BW101),ISNUMBER($AR101),$AR101>0),$BW101*'Other Data'!$G$84,0))","v":""},null,"","","","","",{"$f":"IF($AC101=\"\",\"\",IF(AND(ISNUMBER($BX101), ISNUMBER($AZ101),$AZ101>0),SUM($BJ101,$BM101,$BP101)*'Other Data'!$H$83,0))","v":""},{"$f":"IF($AC101=\"\",\"\",IF(AND(ISNUMBER($BX101), ISNUMBER($AZ101),$AZ101>0),$BX101*'Other Data'!$G$84,0))","v":""},null,{"$f":"IF($C101=\"\",\"\",SUM('Ancillary Costs'!$N$91:$N$105)*(SUM($AR101,$AZ101,SUM($AS101,$BA101)*'Project Information'!$D$12)))","v":""},{"$f":"IF($C101=\"\",\"\",SUMIFS('Ancillary Costs'!$N$72:$N$86,'Ancillary Costs'!$FL$72:$FL$86,\"*xx\"&'Project Scope'!$C101&\"xx*\")*(SUM($AR101,$AZ101,SUM($AS101,$BA101)*'Project Information'!$D$12)))","v":""},{"$f":"IFERROR(IF($C101=\"\",\"\",SUMIFS('Ancillary Costs'!$N$8:$N$67,'Ancillary Costs'!$FL$8:$FL$67,\"*xx\"&'Project Scope'!C101&\"xx*\",'Ancillary Costs'!$I$8:$I$67,'Project Scope'!$AN101)*'Project Scope'!$AO101),0)","v":""},{"$f":"IFERROR(IF($C101=\"\",\"\",SUMIFS('Ancillary Costs'!$N$8:$N$67,'Ancillary Costs'!$FL$8:$FL$67,\"*xx\"&'Project Scope'!C101&\"xx*\",'Ancillary Costs'!$I$8:$I$67,'Project Scope'!$AW101)*'Project Scope'!$AX101),0)","v":""},{"$f":"IF($C101=\"\",\"\",IF(SUM($AR101,$AZ101,SUM($AS101,$BA101)*'Project Information'!$D$12)=0,0,SUM($BG101,(SUM($BE101:$BF101))*((SUM($AR101,(IF(ISNUMBER($AS101),$AS101,0)*'Project Information'!$D$12)))/SUM($AR101,$AZ101,SUM($AS101,$BA101)*'Project Information'!$D$12)))))","v":""},{"$f":"IF($C101=\"\",\"\",IF(SUM($AR101,$AZ101,SUM($AS101,$BA101)*'Project Information'!$D$12)=0,0,SUM($BH101,(SUM($BE101:$BF101))*((SUM($AZ101,(IF(ISNUMBER($BA101),$BA101,0)*'Project Information'!$D$12)))/SUM($AR101,$AZ101,SUM($AS101,$BA101)*'Project Information'!$D$12)))))","v":""},null,"","","",{"$f":"IF($C101=\"\",\"\",IF(OR($AS101=\"\",$CX101=\"b\"),0,$AS101*'Project Information'!$D$12))","v":""},{"$f":"IF($C101=\"\",\"\",IF(OR($BA101=\"\",$CX101=\"b\"),0,$BA101*'Project Information'!$D$12))","v":""},"","","","","",null,{"$f":"CBAT!$AB101","v":""},{"$f":"CBAT!$BZ101","v":""},0,null,"","",0,{"$f":"IF($Q101=\"\",\"\",IF(OR($CX101<>\"c\",SUM($BY$8:$BY$107)=0),0,ROUND(BW101*MIN('Other Data'!$G$84,'Other Data'!$H$84*IF('Project Information'!$F$10=\"X\",('Project Information'!$L$42-'Project Information'!$L$39),'Project Information'!$L$42)/SUMPRODUCT($BY$8:$BY$107,--($CX$8:$CX$107=\"c\"))),0)))","v":""},{"$f":"IF($AC101=\"\",\"\",IF(OR($CX101<>\"c\",SUM($BY$8:$BY$107)=0),0,ROUND(BX101*MIN('Other Data'!$G$84,'Other Data'!$H$84*IF('Project Information'!$F$10=\"X\",('Project Information'!$L$42-'Project Information'!$L$39),'Project Information'!$L$42)/SUMPRODUCT($BY$8:$BY$107,--($CX$8:$CX$107=\"c\"))),0)))","v":""},0,null,"","",{"$f":"IF($J101=\"\",\"\",VLOOKUP($J101,'TRM Data'!$R$4:$S$168,2,FALSE))","v":""},"","","",null,{"$f":"IF($CV101=0,\"\",CBAT!$DJ101)","v":""},null,null,1,1,0,1,0,null,{"$f":"IF(OR($CV101=0,ISBLANK('Project Information'!$D$44)),\"\",IF(AND($CV101=1,$CO101<1,$G101=\"yes\"),\"a\",IF($CO101<1,\"b\",\"c\")))","v":""}]
[0,95,null,null,null,null,null,{"$f":"IF($C102=\"\",\"\",IF(COUNTIF('Project Information'!$J$9:BG$9,$C102)<>1,\"\",INDEX('Project Information'!$J$8:$BG$8,1,MATCH($C102,'Project Information'!$J$9:BG$9,0))))","v":""},null,null,{"$f":"LOOKUP(2,1/(COUNTIF($K$7:K101,$Q$8:$Q$108)=0),$Q$8:$Q$108)","v":{"$error":"#N/A"}},{"$f":"IF(OR('Project Information'!$D$32=\"\",C102=\"\"),\"\",'Project Information'!$D$32)","v":""},{"$f":"IF($C102=\"\",\"\",IF(COUNTIF('Project Information'!$J$9:$BG$9,$C102)=1,HLOOKUP(C102,'Project Information'!$J$9:$BG$10,2,FALSE),0))","v":""},null,null,null,null,null,null,null,{"$f":"IF(Q102<>\"\",IF('Project Information'!$D$33=\"Small Business\",\"I\",\"P\")&VLOOKUP($Q102,'TRM Data'!$C$5:$N$201,COLUMN('TRM Data'!$E$2)-COLUMN('TRM Data'!$C$2)+1,FALSE)&IF($L102=\"Summer\",\"S\",IF($L102=\"Winter\",\"W\",\"Y\")),\"\")","v":""},{"$f":"IF(OR($F102=\"Controls\",$F102=\"\"),\"\",VLOOKUP($Q102,'TRM Data'!$C$5:$N$201,COLUMN('TRM Data'!$F$2)-COLUMN('TRM Data'!$C$2)+1,FALSE))","v":""},null,{"$f":"IF($R102=0,\"\",VLOOKUP($Q102,'TRM Data'!$C$5:$N$201,COLUMN('TRM Data'!$G$2)-COLUMN('TRM Data'!$C$2)+1,FALSE)*$R102)","v":""},null,{"$f":"IF($R102=0,\"\",VLOOKUP($Q102,'TRM Data'!$C$5:$N$201,COLUMN('TRM Data'!$I$2)-COLUMN('TRM Data'!$C$2)+1,FALSE)*$R102)","v":""},{"$f":"IF($Q102=\"\",\"\",IF('Project Information'!$D$33=\"Small Business\",'Project Scope'!$CA102,IF('Project Information'!$D$33=\"Pay for Performance\",'Project Scope'!$CD102,0)))","v":""},null,null,null,{"$f":"IF(AC102<>\"\",\"P\"&VLOOKUP($AC102,'TRM Data'!$C$5:$N$201,COLUMN('TRM Data'!$E$2)-COLUMN('TRM Data'!$C$2)+1,FALSE)&IF($L102=\"Summer\",\"S\",IF($L102=\"Winter\",\"W\",\"Y\")),\"\")","v":""},{"$f":"IF($AD102=0,\"\",VLOOKUP($AC102,'TRM Data'!$C$5:$N$201,COLUMN('TRM Data'!$G$2)-COLUMN('TRM Data'!$C$2)+1,FALSE)*$AD102)","v":""},null,{"$f":"IF($AD102=0,\"\",VLOOKUP($AC102,'TRM Data'!$C$5:$N$201,COLUMN('TRM Data'!$I$2)-COLUMN('TRM Data'!$C$2)+1,FALSE)*$AD102)","v":""},{"$f":"IF($AC102=\"\",\"\",IF('Project Information'!$D$33=\"Small Business\",'Project Scope'!$CB102,IF('Project Information'!$D$33=\"Pay for Performance\",'Project Scope'!$CE102,0)))","v":""},null,"",null,"","","","","","","",{"$f":"IF($Q102=\"\",\"\",IF(AND(ISNUMBER($BW102),ISNUMBER($AR102),$AR102>0),SUM($BL102,$BO102,$BI102)*'Other Data'!$H$83,0))","v":""},{"$f":"IF($Q102=\"\",\"\",IF(AND(ISNUMBER($BW102),ISNUMBER($AR102),$AR102>0),$BW102*'Other Data'!$G$84,0))","v":""},null,"","","","","",{"$f":"IF($AC102=\"\",\"\",IF(AND(ISNUMBER($BX102), ISNUMBER($AZ102),$AZ102>0),SUM($BJ102,$BM102,$BP102)*'Other Data'!$H$83,0))","v":""},{"$f":"IF($AC102=\"\",\"\",IF(AND(ISNUMBER($BX102), ISNUMBER($AZ102),$AZ102>0),$BX102*'Other Data'!$G$84,0))","v":""},null,{"$f":"IF($C102=\"\",\"\",SUM('Ancillary Costs'!$N$91:$N$105)*(SUM($AR102,$AZ102,SUM($AS102,$BA102)*'Project Information'!$D$12)))","v":""},{"$f":"IF($C102=\"\",\"\",SUMIFS('Ancillary Costs'!$N$72:$N$86,'Ancillary Costs'!$FL$72:$FL$86,\"*xx\"&'Project Scope'!$C102&\"xx*\")*(SUM($AR102,$AZ102,SUM($AS102,$BA102)*'Project Information'!$D$12)))","v":""},{"$f":"IFERROR(IF($C102=\"\",\"\",SUMIFS('Ancillary Costs'!$N$8:$N$67,'Ancillary Costs'!$FL$8:$FL$67,\"*xx\"&'Project Scope'!C102&\"xx*\",'Ancillary Costs'!$I$8:$I$67,'Project Scope'!$AN102)*'Project Scope'!$AO102),0)","v":""},{"$f":"IFERROR(IF($C102=\"\",\"\",SUMIFS('Ancillary Costs'!$N$8:$N$67,'Ancillary Costs'!$FL$8:$FL$67,\"*xx\"&'Project Scope'!C102&\"xx*\",'Ancillary Costs'!$I$8:$I$67,'Project Scope'!$AW102)*'Project Scope'!$AX102),0)","v":""},{"$f":"IF($C102=\"\",\"\",IF(SUM($AR102,$AZ102,SUM($AS102,$BA102)*'Project Information'!$D$12)=0,0,SUM($BG102,(SUM($BE102:$BF102))*((SUM($AR102,(IF(ISNUMBER($AS102),$AS102,0)*'Project Information'!$D$12)))/SUM($AR102,$AZ102,SUM($AS102,$BA102)*'Project Information'!$D$12)))))","v":""},{"$f":"IF($C102=\"\",\"\",IF(SUM($AR102,$AZ102,SUM($AS102,$BA102)*'Project Information'!$D$12)=0,0,SUM($BH102,(SUM($BE102:$BF102))*((SUM($AZ102,(IF(ISNUMBER($BA102),$BA102,0)*'Project Information'!$D$12)))/SUM($AR102,$AZ102,SUM($AS102,$BA102)*'Project Information'!$D$12)))))","v":""},null,"","","",{"$f":"IF($C102=\"\",\"\",IF(OR($AS102=\"\",$CX102=\"b\"),0,$AS102*'Project Information'!$D$12))","v":""},{"$f":"IF($C102=\"\",\"\",IF(OR($BA102=\"\",$CX102=\"b\"),0,$BA102*'Project Information'!$D$12))","v":""},"","","","","",null,{"$f":"CBAT!$AB102","v":""},{"$f":"CBAT!$BZ102","v":""},0,null,"","",0,{"$f":"IF($Q102=\"\",\"\",IF(OR($CX102<>\"c\",SUM($BY$8:$BY$107)=0),0,ROUND(BW102*MIN('Other Data'!$G$84,'Other Data'!$H$84*IF('Project Information'!$F$10=\"X\",('Project Information'!$L$42-'Project Information'!$L$39),'Project Information'!$L$42)/SUMPRODUCT($BY$8:$BY$107,--($CX$8:$CX$107=\"c\"))),0)))","v":""},{"$f":"IF($AC102=\"\",\"\",IF(OR($CX102<>\"c\",SUM($BY$8:$BY$107)=0),0,ROUND(BX102*MIN('Other Data'!$G$84,'Other Data'!$H$84*IF('Project Information'!$F$10=\"X\",('Project Information'!$L$42-'Project Information'!$L$39),'Project Information'!$L$42)/SUMPRODUCT($BY$8:$BY$107,--($CX$8:$CX$107=\"c\"))),0)))","v":""},0,null,"","",{"$f":"IF($J102=\"\",\"\",VLOOKUP($J102,'TRM Data'!$R$4:$S$168,2,FALSE))","v":""},"","","",null,{"$f":"IF($CV102=0,\"\",CBAT!$DJ102)","v":""},null,null,1,1,0,1,0,null,{"$f":"IF(OR($CV102=0,ISBLANK('Project Information'!$D$44)),\"\",IF(AND($CV102=1,$CO102<1,$G102=\"yes\"),\"a\",IF($CO102<1,\"b\",\"c\")))","v":""}]
[0,96,null,null,null,null,null,{"$f":"IF($C103=\"\",\"\",IF(COUNTIF('Project Information'!$J$9:BG$9,$C103)<>1,\"\",INDEX('Project Information'!$J$8:$BG$8,1,MATCH($C103,'Project Information'!$J$9:BG$9,0))))","v":""},null,null,{"$f":"LOOKUP(2,1/(COUNTIF($K$7:K102,$Q$8:$Q$108)=0),$Q$8:$Q$108)","v":{"$error":"#N/A"}},{"$f":"IF(OR('Project Information'!$D$32=\"\",C103=\"\"),\"\",'Project Information'!$D$32)","v":""},{"$f":"IF($C103=\"\",\"\",IF(COUNTIF('Project Information'!$J$9:$BG$9,$C103)=1,HLOOKUP(C103,'Project Information'!$J$9:$BG$10,2,FALSE),0))","v":""},null,null,null,null,null,null,null,{"$f":"IF(Q103<>\"\",IF('Project Information'!$D$33=\"Small Business\",\"I\",\"P\")&VLOOKUP($Q103,'TRM Data'!$C$5:$N$201,COLUMN('TRM Data'!$E$2)-COLUMN('TRM Data'!$C$2)+1,FALSE)&IF($L103=\"Summer\",\"S\",IF($L103=\"Winter\",\"W\",\"Y\")),\"\")","v":""},{"$f":"IF(OR($F103=\"Controls\",$F103=\"\"),\"\",VLOOKUP($Q103,'TRM Data'!$C$5:$N$201,COLUMN('TRM Data'!$F$2)-COLUMN('TRM Data'!$C$2)+1,FALSE))","v":""},null,{"$f":"IF($R103=0,\"\",VLOOKUP($Q103,'TRM Data'!$C$5:$N$201,COLUMN('TRM Data'!$G$2)-COLUMN('TRM Data'!$C$2)+1,FALSE)*$R103)","v":""},null,{"$f":"IF($R103=0,\"\",VLOOKUP($Q103,'TRM Data'!$C$5:$N$201,COLUMN('TRM Data'!$I$2)-COLUMN('TRM Data'!$C$2)+1,FALSE)*$R103)","v":""},{"$f":"IF($Q103=\"\",\"\",IF('Project Information'!$D$33=\"Small Business\",'Project Scope'!$CA103,IF('Project Information'!$D$33=\"Pay for Performance\",'Project Scope'!$CD103,0)))","v":""},null,null,null,{"$f":"IF(AC103<>\"\",\"P\"&VLOOKUP($AC103,'TRM Data'!$C$5:$N$201,COLUMN('TRM Data'!$E$2)-COLUMN('TRM Data'!$C$2)+1,FALSE)&IF($L103=\"Summer\",\"S\",IF($L103=\"Winter\",\"W\",\"Y\")),\"\")","v":""},{"$f":"IF($AD103=0,\"\",VLOOKUP($AC103,'TRM Data'!$C$5:$N$201,COLUMN('TRM Data'!$G$2)-COLUMN('TRM Data'!$C$2)+1,FALSE)*$AD103)","v":""},null,{"$f":"IF($AD103=0,\"\",VLOOKUP($AC103,'TRM Data'!$C$5:$N$201,COLUMN('TRM Data'!$I$2)-COLUMN('TRM Data'!$C$2)+1,FALSE)*$AD103)","v":""},{"$f":"IF($AC103=\"\",\"\",IF('Project Information'!$D$33=\"Small Business\",'Project Scope'!$CB103,IF('Project Information'!$D$33=\"Pay for Performance\",'Project Scope'!$CE103,0)))","v":""},null,"",null,"","","","","","","",{"$f":"IF($Q103=\"\",\"\",IF(AND(ISNUMBER($BW103),ISNUMBER($AR103),$AR103>0),SUM($BL103,$BO103,$BI103)*'Other Data'!$H$83,0))","v":""},{"$f":"IF($Q103=\"\",\"\",IF(AND(ISNUMBER($BW103),ISNUMBER($AR103),$AR103>0),$BW103*'Other Data'!$G$84,0))","v":""},null,"","","","","",{"$f":"IF($AC103=\"\",\"\",IF(AND(ISNUMBER($BX103), ISNUMBER($AZ103),$AZ103>0),SUM($BJ103,$BM103,$BP103)*'Other Data'!$H$83,0))","v":""},{"$f":"IF($AC103=\"\",\"\",IF(AND(ISNUMBER($BX103), ISNUMBER($AZ103),$AZ103>0),$BX103*'Other Data'!$G$84,0))","v":""},null,{"$f":"IF($C103=\"\",\"\",SUM('Ancillary Costs'!$N$91:$N$105)*(SUM($AR103,$AZ103,SUM($AS103,$BA103)*'Project Information'!$D$12)))","v":""},{"$f":"IF($C103=\"\",\"\",SUMIFS('Ancillary Costs'!$N$72:$N$86,'Ancillary Costs'!$FL$72:$FL$86,\"*xx\"&'Project Scope'!$C103&\"xx*\")*(SUM($AR103,$AZ103,SUM($AS103,$BA103)*'Project Information'!$D$12)))","v":""},{"$f":"IFERROR(IF($C103=\"\",\"\",SUMIFS('Ancillary Costs'!$N$8:$N$67,'Ancillary Costs'!$FL$8:$FL$67,\"*xx\"&'Project Scope'!C103&\"xx*\",'Ancillary Costs'!$I$8:$I$67,'Project Scope'!$AN103)*'Project Scope'!$AO103),0)","v":""},{"$f":"IFERROR(IF($C103=\"\",\"\",SUMIFS('Ancillary Costs'!$N$8:$N$67,'Ancillary Costs'!$FL$8:$FL$67,\"*xx\"&'Project Scope'!C103&\"xx*\",'Ancillary Costs'!$I$8:$I$67,'Project Scope'!$AW103)*'Project Scope'!$AX103),0)","v":""},{"$f":"IF($C103=\"\",\"\",IF(SUM($AR103,$AZ103,SUM($AS103,$BA103)*'Project Information'!$D$12)=0,0,SUM($BG103,(SUM($BE103:$BF103))*((SUM($AR103,(IF(ISNUMBER($AS103),$AS103,0)*'Project Information'!$D$12)))/SUM($AR103,$AZ103,SUM($AS103,$BA103)*'Project Information'!$D$12)))))","v":""},{"$f":"IF($C103=\"\",\"\",IF(SUM($AR103,$AZ103,SUM($AS103,$BA103)*'Project Information'!$D$12)=0,0,SUM($BH103,(SUM($BE103:$BF103))*((SUM($AZ103,(IF(ISNUMBER($BA103),$BA103,0)*'Project Information'!$D$12)))/SUM($AR103,$AZ103,SUM($AS103,$BA103)*'Project Information'!$D$12)))))","v":""},null,"","","",{"$f":"IF($C103=\"\",\"\",IF(OR($AS103=\"\",$CX103=\"b\"),0,$AS103*'Project Information'!$D$12))","v":""},{"$f":"IF($C103=\"\",\"\",IF(OR($BA103=\"\",$CX103=\"b\"),0,$BA103*'Project Information'!$D$12))","v":""},"","","","","",null,{"$f":"CBAT!$AB103","v":""},{"$f":"CBAT!$BZ103","v":""},0,null,"","",0,{"$f":"IF($Q103=\"\",\"\",IF(OR($CX103<>\"c\",SUM($BY$8:$BY$107)=0),0,ROUND(BW103*MIN('Other Data'!$G$84,'Other Data'!$H$84*IF('Project Information'!$F$10=\"X\",('Project Information'!$L$42-'Project Information'!$L$39),'Project Information'!$L$42)/SUMPRODUCT($BY$8:$BY$107,--($CX$8:$CX$107=\"c\"))),0)))","v":""},{"$f":"IF($AC103=\"\",\"\",IF(OR($CX103<>\"c\",SUM($BY$8:$BY$107)=0),0,ROUND(BX103*MIN('Other Data'!$G$84,'Other Data'!$H$84*IF('Project Information'!$F$10=\"X\",('Project Information'!$L$42-'Project Information'!$L$39),'Project Information'!$L$42)/SUMPRODUCT($BY$8:$BY$107,--($CX$8:$CX$107=\"c\"))),0)))","v":""},0,null,"","",{"$f":"IF($J103=\"\",\"\",VLOOKUP($J103,'TRM Data'!$R$4:$S$168,2,FALSE))","v":""},"","","",null,{"$f":"IF($CV103=0,\"\",CBAT!$DJ103)","v":""},null,null,1,1,0,1,0,null,{"$f":"IF(OR($CV103=0,ISBLANK('Project Information'!$D$44)),\"\",IF(AND($CV103=1,$CO103<1,$G103=\"yes\"),\"a\",IF($CO103<1,\"b\",\"c\")))","v":""}]
[0,97,null,null,null,null,null,{"$f":"IF($C104=\"\",\"\",IF(COUNTIF('Project Information'!$J$9:BG$9,$C104)<>1,\"\",INDEX('Project Information'!$J$8:$BG$8,1,MATCH($C104,'Project Information'!$J$9:BG$9,0))))","v":""},null,null,{"$f":"LOOKUP(2,1/(COUNTIF($K$7:K103,$Q$8:$Q$108)=0),$Q$8:$Q$108)","v":{"$error":"#N/A"}},{"$f":"IF(OR('Project Information'!$D$32=\"\",C104=\"\"),\"\",'Project Information'!$D$32)","v":""},{"$f":"IF($C104=\"\",\"\",IF(COUNTIF('Project Information'!$J$9:$BG$9,$C104)=1,HLOOKUP(C104,'Project Information'!$J$9:$BG$10,2,FALSE),0))","v":""},null,null,null,null,null,null,null,{"$f":"IF(Q104<>\"\",IF('Project Information'!$D$33=\"Small Business\",\"I\",\"P\")&VLOOKUP($Q104,'TRM Data'!$C$5:$N$201,COLUMN('TRM Data'!$E$2)-COLUMN('TRM Data'!$C$2)+1,FALSE)&IF($L104=\"Summer\",\"S\",IF($L104=\"Winter\",\"W\",\"Y\")),\"\")","v":""},{"$f":"IF(OR($F104=\"Controls\",$F104=\"\"),\"\",VLOOKUP($Q104,'TRM Data'!$C$5:$N$201,COLUMN('TRM Data'!$F$2)-COLUMN('TRM Data'!$C$2)+1,FALSE))","v":""},null,{"$f":"IF($R104=0,\"\",VLOOKUP($Q104,'TRM Data'!$C$5:$N$201,COLUMN('TRM Data'!$G$2)-COLUMN('TRM Data'!$C$2)+1,FALSE)*$R104)","v":""},null,{"$f":"IF($R104=0,\"\",VLOOKUP($Q104,'TRM Data'!$C$5:$N$201,COLUMN('TRM Data'!$I$2)-COLUMN('TRM Data'!$C$2)+1,FALSE)*$R104)","v":""},{"$f":"IF($Q104=\"\",\"\",IF('Project Information'!$D$33=\"Small Business\",'Project Scope'!$CA104,IF('Project Information'!$D$33=\"Pay for Performance\",'Project Scope'!$CD104,0)))","v":""},null,null,null,{"$f":"IF(AC104<>\"\",\"P\"&VLOOKUP($AC104,'TRM Data'!$C$5:$N$201,COLUMN('TRM Data'!$E$2)-COLUMN('TRM Data'!$C$2)+1,FALSE)&IF($L104=\"Summer\",\"S\",IF($L104=\"Winter\",\"W\",\"Y\")),\"\")","v":""},{"$f":"IF($AD104=0,\"\",VLOOKUP($AC104,'TRM Data'!$C$5:$N$201,COLUMN('TRM Data'!$G$2)-COLUMN('TRM Data'!$C$2)+1,FALSE)*$AD104)","v":""},null,{"$f":"IF($AD104=0,\"\",VLOOKUP($AC104,'TRM Data'!$C$5:$N$201,COLUMN('TRM Data'!$I$2)-COLUMN('TRM Data'!$C$2)+1,FALSE)*$AD104)","v":""},{"$f":"IF($AC104=\"\",\"\",IF('Project Information'!$D$33=\"Small Business\",'Project Scope'!$CB104,IF('Project Information'!$D$33=\"Pay for Performance\",'Project Scope'!$CE104,0)))","v":""},null,"",null,"","","","","","","",{"$f":"IF($Q104=\"\",\"\",IF(AND(ISNUMBER($BW104),ISNUMBER($AR104),$AR104>0),SUM($BL104,$BO104,$BI104)*'Other Data'!$H$83,0))","v":""},{"$f":"IF($Q104=\"\",\"\",IF(AND(ISNUMBER($BW104),ISNUMBER($AR104),$AR104>0),$BW104*'Other Data'!$G$84,0))","v":""},null,"","","","","",{"$f":"IF($AC104=\"\",\"\",IF(AND(ISNUMBER($BX104), ISNUMBER($AZ104),$AZ104>0),SUM($BJ104,$BM104,$BP104)*'Other Data'!$H$83,0))","v":""},{"$f":"IF($AC104=\"\",\"\",IF(AND(ISNUMBER($BX104), ISNUMBER($AZ104),$AZ104>0),$BX104*'Other Data'!$G$84,0))","v":""},null,{"$f":"IF($C104=\"\",\"\",SUM('Ancillary Costs'!$N$91:$N$105)*(SUM($AR104,$AZ104,SUM($AS104,$BA104)*'Project Information'!$D$12)))","v":""},{"$f":"IF($C104=\"\",\"\",SUMIFS('Ancillary Costs'!$N$72:$N$86,'Ancillary Costs'!$FL$72:$FL$86,\"*xx\"&'Project Scope'!$C104&\"xx*\")*(SUM($AR104,$AZ104,SUM($AS104,$BA104)*'Project Information'!$D$12)))","v":""},{"$f":"IFERROR(IF($C104=\"\",\"\",SUMIFS('Ancillary Costs'!$N$8:$N$67,'Ancillary Costs'!$FL$8:$FL$67,\"*xx\"&'Project Scope'!C104&\"xx*\",'Ancillary Costs'!$I$8:$I$67,'Project Scope'!$AN104)*'Project Scope'!$AO104),0)","v":""},{"$f":"IFERROR(IF($C104=\"\",\"\",SUMIFS('Ancillary Costs'!$N$8:$N$67,'Ancillary Costs'!$FL$8:$FL$67,\"*xx\"&'Project Scope'!C104&\"xx*\",'Ancillary Costs'!$I$8:$I$67,'Project Scope'!$AW104)*'Project Scope'!$AX104),0)","v":""},{"$f":"IF($C104=\"\",\"\",IF(SUM($AR104,$AZ104,SUM($AS104,$BA104)*'Project Information'!$D$12)=0,0,SUM($BG104,(SUM($BE104:$BF104))*((SUM($AR104,(IF(ISNUMBER($AS104),$AS104,0)*'Project Information'!$D$12)))/SUM($AR104,$AZ104,SUM($AS104,$BA104)*'Project Information'!$D$12)))))","v":""},{"$f":"IF($C104=\"\",\"\",IF(SUM($AR104,$AZ104,SUM($AS104,$BA104)*'Project Information'!$D$12)=0,0,SUM($BH104,(SUM($BE104:$BF104))*((SUM($AZ104,(IF(ISNUMBER($BA104),$BA104,0)*'Project Information'!$D$12)))/SUM($AR104,$AZ104,SUM($AS104,$BA104)*'Project Information'!$D$12)))))","v":""},null,"","","",{"$f":"IF($C104=\"\",\"\",IF(OR($AS104=\"\",$CX104=\"b\"),0,$AS104*'Project Information'!$D$12))","v":""},{"$f":"IF($C104=\"\",\"\",IF(OR($BA104=\"\",$CX104=\"b\"),0,$BA104*'Project Information'!$D$12))","v":""},"","","","","",null,{"$f":"CBAT!$AB104","v":""},{"$f":"CBAT!$BZ104","v":""},0,null,"","",0,{"$f":"IF($Q104=\"\",\"\",IF(OR($CX104<>\"c\",SUM($BY$8:$BY$107)=0),0,ROUND(BW104*MIN('Other Data'!$G$84,'Other Data'!$H$84*IF('Project Information'!$F$10=\"X\",('Project Information'!$L$42-'Project Information'!$L$39),'Project Information'!$L$42)/SUMPRODUCT($BY$8:$BY$107,--($CX$8:$CX$107=\"c\"))),0)))","v":""},{"$f":"IF($AC104=\"\",\"\",IF(OR($CX104<>\"c\",SUM($BY$8:$BY$107)=0),0,ROUND(BX104*MIN('Other Data'!$G$84,'Other Data'!$H$84*IF('Project Information'!$F$10=\"X\",('Project Information'!$L$42-'Project Information'!$L$39),'Project Information'!$L$42)/SUMPRODUCT($BY$8:$BY$107,--($CX$8:$CX$107=\"c\"))),0)))","v":""},0,null,"","",{"$f":"IF($J104=\"\",\"\",VLOOKUP($J104,'TRM Data'!$R$4:$S$168,2,FALSE))","v":""},"","","",null,{"$f":"IF($CV104=0,\"\",CBAT!$DJ104)","v":""},null,null,1,1,0,1,0,null,{"$f":"IF(OR($CV104=0,ISBLANK('Project Information'!$D$44)),\"\",IF(AND($CV104=1,$CO104<1,$G104=\"yes\"),\"a\",IF($CO104<1,\"b\",\"c\")))","v":""}]
[0,98,null,null,null,null,null,{"$f":"IF($C105=\"\",\"\",IF(COUNTIF('Project Information'!$J$9:BG$9,$C105)<>1,\"\",INDEX('Project Information'!$J$8:$BG$8,1,MATCH($C105,'Project Information'!$J$9:BG$9,0))))","v":""},null,null,{"$f":"LOOKUP(2,1/(COUNTIF($K$7:K104,$Q$8:$Q$108)=0),$Q$8:$Q$108)","v":{"$error":"#N/A"}},{"$f":"IF(OR('Project Information'!$D$32=\"\",C105=\"\"),\"\",'Project Information'!$D$32)","v":""},{"$f":"IF($C105=\"\",\"\",IF(COUNTIF('Project Information'!$J$9:$BG$9,$C105)=1,HLOOKUP(C105,'Project Information'!$J$9:$BG$10,2,FALSE),0))","v":""},null,null,null,null,null,null,null,{"$f":"IF(Q105<>\"\",IF('Project Information'!$D$33=\"Small Business\",\"I\",\"P\")&VLOOKUP($Q105,'TRM Data'!$C$5:$N$201,COLUMN('TRM Data'!$E$2)-COLUMN('TRM Data'!$C$2)+1,FALSE)&IF($L105=\"Summer\",\"S\",IF($L105=\"Winter\",\"W\",\"Y\")),\"\")","v":""},{"$f":"IF(OR($F105=\"Controls\",$F105=\"\"),\"\",VLOOKUP($Q105,'TRM Data'!$C$5:$N$201,COLUMN('TRM Data'!$F$2)-COLUMN('TRM Data'!$C$2)+1,FALSE))","v":""},null,{"$f":"IF($R105=0,\"\",VLOOKUP($Q105,'TRM Data'!$C$5:$N$201,COLUMN('TRM Data'!$G$2)-COLUMN('TRM Data'!$C$2)+1,FALSE)*$R105)","v":""},null,{"$f":"IF($R105=0,\"\",VLOOKUP($Q105,'TRM Data'!$C$5:$N$201,COLUMN('TRM Data'!$I$2)-COLUMN('TRM Data'!$C$2)+1,FALSE)*$R105)","v":""},{"$f":"IF($Q105=\"\",\"\",IF('Project Information'!$D$33=\"Small Business\",'Project Scope'!$CA105,IF('Project Information'!$D$33=\"Pay for Performance\",'Project Scope'!$CD105,0)))","v":""},null,null,null,{"$f":"IF(AC105<>\"\",\"P\"&VLOOKUP($AC105,'TRM Data'!$C$5:$N$201,COLUMN('TRM Data'!$E$2)-COLUMN('TRM Data'!$C$2)+1,FALSE)&IF($L105=\"Summer\",\"S\",IF($L105=\"Winter\",\"W\",\"Y\")),\"\")","v":""},{"$f":"IF($AD105=0,\"\",VLOOKUP($AC105,'TRM Data'!$C$5:$N$201,COLUMN('TRM Data'!$G$2)-COLUMN('TRM Data'!$C$2)+1,FALSE)*$AD105)","v":""},null,{"$f":"IF($AD105=0,\"\",VLOOKUP($AC105,'TRM Data'!$C$5:$N$201,COLUMN('TRM Data'!$I$2)-COLUMN('TRM Data'!$C$2)+1,FALSE)*$AD105)","v":""},{"$f":"IF($AC105=\"\",\"\",IF('Project Information'!$D$33=\"Small Business\",'Project Scope'!$CB105,IF('Project Information'!$D$33=\"Pay for Performance\",'Project Scope'!$CE105,0)))","v":""},null,"",null,"","","","","","","",{"$f":"IF($Q105=\"\",\"\",IF(AND(ISNUMBER($BW105),ISNUMBER($AR105),$AR105>0),SUM($BL105,$BO105,$BI105)*'Other Data'!$H$83,0))","v":""},{"$f":"IF($Q105=\"\",\"\",IF(AND(ISNUMBER($BW105),ISNUMBER($AR105),$AR105>0),$BW105*'Other Data'!$G$84,0))","v":""},null,"","","","","",{"$f":"IF($AC105=\"\",\"\",IF(AND(ISNUMBER($BX105), ISNUMBER($AZ105),$AZ105>0),SUM($BJ105,$BM105,$BP105)*'Other Data'!$H$83,0))","v":""},{"$f":"IF($AC105=\"\",\"\",IF(AND(ISNUMBER($BX105), ISNUMBER($AZ105),$AZ105>0),$BX105*'Other Data'!$G$84,0))","v":""},null,{"$f":"IF($C105=\"\",\"\",SUM('Ancillary Costs'!$N$91:$N$105)*(SUM($AR105,$AZ105,SUM($AS105,$BA105)*'Project Information'!$D$12)))","v":""},{"$f":"IF($C105=\"\",\"\",SUMIFS('Ancillary Costs'!$N$72:$N$86,'Ancillary Costs'!$FL$72:$FL$86,\"*xx\"&'Project Scope'!$C105&\"xx*\")*(SUM($AR105,$AZ105,SUM($AS105,$BA105)*'Project Information'!$D$12)))","v":""},{"$f":"IFERROR(IF($C105=\"\",\"\",SUMIFS('Ancillary Costs'!$N$8:$N$67,'Ancillary Costs'!$FL$8:$FL$67,\"*xx\"&'Project Scope'!C105&\"xx*\",'Ancillary Costs'!$I$8:$I$67,'Project Scope'!$AN105)*'Project Scope'!$AO105),0)","v":""},{"$f":"IFERROR(IF($C105=\"\",\"\",SUMIFS('Ancillary Costs'!$N$8:$N$67,'Ancillary Costs'!$FL$8:$FL$67,\"*xx\"&'Project Scope'!C105&\"xx*\",'Ancillary Costs'!$I$8:$I$67,'Project Scope'!$AW105)*'Project Scope'!$AX105),0)","v":""},{"$f":"IF($C105=\"\",\"\",IF(SUM($AR105,$AZ105,SUM($AS105,$BA105)*'Project Information'!$D$12)=0,0,SUM($BG105,(SUM($BE105:$BF105))*((SUM($AR105,(IF(ISNUMBER($AS105),$AS105,0)*'Project Information'!$D$12)))/SUM($AR105,$AZ105,SUM($AS105,$BA105)*'Project Information'!$D$12)))))","v":""},{"$f":"IF($C105=\"\",\"\",IF(SUM($AR105,$AZ105,SUM($AS105,$BA105)*'Project Information'!$D$12)=0,0,SUM($BH105,(SUM($BE105:$BF105))*((SUM($AZ105,(IF(ISNUMBER($BA105),$BA105,0)*'Project Information'!$D$12)))/SUM($AR105,$AZ105,SUM($AS105,$BA105)*'Project Information'!$D$12)))))","v":""},null,"","","",{"$f":"IF($C105=\"\",\"\",IF(OR($AS105=\"\",$CX105=\"b\"),0,$AS105*'Project Information'!$D$12))","v":""},{"$f":"IF($C105=\"\",\"\",IF(OR($BA105=\"\",$CX105=\"b\"),0,$BA105*'Project Information'!$D$12))","v":""},"","","","","",null,{"$f":"CBAT!$AB105","v":""},{"$f":"CBAT!$BZ105","v":""},0,null,"","",0,{"$f":"IF($Q105=\"\",\"\",IF(OR($CX105<>\"c\",SUM($BY$8:$BY$107)=0),0,ROUND(BW105*MIN('Other Data'!$G$84,'Other Data'!$H$84*IF('Project Information'!$F$10=\"X\",('Project Information'!$L$42-'Project Information'!$L$39),'Project Information'!$L$42)/SUMPRODUCT($BY$8:$BY$107,--($CX$8:$CX$107=\"c\"))),0)))","v":""},{"$f":"IF($AC105=\"\",\"\",IF(OR($CX105<>\"c\",SUM($BY$8:$BY$107)=0),0,ROUND(BX105*MIN('Other Data'!$G$84,'Other Data'!$H$84*IF('Project Information'!$F$10=\"X\",('Project Information'!$L$42-'Project Information'!$L$39),'Project Information'!$L$42)/SUMPRODUCT($BY$8:$BY$107,--($CX$8:$CX$107=\"c\"))),0)))","v":""},0,null,"","",{"$f":"IF($J105=\"\",\"\",VLOOKUP($J105,'TRM Data'!$R$4:$S$168,2,FALSE))","v":""},"","","",null,{"$f":"IF($CV105=0,\"\",CBAT!$DJ105)","v":""},null,null,1,1,0,1,0,null,{"$f":"IF(OR($CV105=0,ISBLANK('Project Information'!$D$44)),\"\",IF(AND($CV105=1,$CO105<1,$G105=\"yes\"),\"a\",IF($CO105<1,\"b\",\"c\")))","v":""}]
[0,99,null,null,null,null,null,{"$f":"IF($C106=\"\",\"\",IF(COUNTIF('Project Information'!$J$9:BG$9,$C106)<>1,\"\",INDEX('Project Information'!$J$8:$BG$8,1,MATCH($C106,'Project Information'!$J$9:BG$9,0))))","v":""},null,null,{"$f":"LOOKUP(2,1/(COUNTIF($K$7:K105,$Q$8:$Q$108)=0),$Q$8:$Q$108)","v":{"$error":"#N/A"}},{"$f":"IF(OR('Project Information'!$D$32=\"\",C106=\"\"),\"\",'Project Information'!$D$32)","v":""},{"$f":"IF($C106=\"\",\"\",IF(COUNTIF('Project Information'!$J$9:$BG$9,$C106)=1,HLOOKUP(C106,'Project Information'!$J$9:$BG$10,2,FALSE),0))","v":""},null,null,null,null,null,null,null,{"$f":"IF(Q106<>\"\",IF('Project Information'!$D$33=\"Small Business\",\"I\",\"P\")&VLOOKUP($Q106,'TRM Data'!$C$5:$N$201,COLUMN('TRM Data'!$E$2)-COLUMN('TRM Data'!$C$2)+1,FALSE)&IF($L106=\"Summer\",\"S\",IF($L106=\"Winter\",\"W\",\"Y\")),\"\")","v":""},{"$f":"IF(OR($F106=\"Controls\",$F106=\"\"),\"\",VLOOKUP($Q106,'TRM Data'!$C$5:$N$201,COLUMN('TRM Data'!$F$2)-COLUMN('TRM Data'!$C$2)+1,FALSE))","v":""},null,{"$f":"IF($R106=0,\"\",VLOOKUP($Q106,'TRM Data'!$C$5:$N$201,COLUMN('TRM Data'!$G$2)-COLUMN('TRM Data'!$C$2)+1,FALSE)*$R106)","v":""},null,{"$f":"IF($R106=0,\"\",VLOOKUP($Q106,'TRM Data'!$C$5:$N$201,COLUMN('TRM Data'!$I$2)-COLUMN('TRM Data'!$C$2)+1,FALSE)*$R106)","v":""},{"$f":"IF($Q106=\"\",\"\",IF('Project Information'!$D$33=\"Small Business\",'Project Scope'!$CA106,IF('Project Information'!$D$33=\"Pay for Performance\",'Project Scope'!$CD106,0)))","v":""},null,null,null,{"$f":"IF(AC106<>\"\",\"P\"&VLOOKUP($AC106,'TRM Data'!$C$5:$N$201,COLUMN('TRM Data'!$E$2)-COLUMN('TRM Data'!$C$2)+1,FALSE)&IF($L106=\"Summer\",\"S\",IF($L106=\"Winter\",\"W\",\"Y\")),\"\")","v":""},{"$f":"IF($AD106=0,\"\",VLOOKUP($AC106,'TRM Data'!$C$5:$N$201,COLUMN('TRM Data'!$G$2)-COLUMN('TRM Data'!$C$2)+1,FALSE)*$AD106)","v":""},null,{"$f":"IF($AD106=0,\"\",VLOOKUP($AC106,'TRM Data'!$C$5:$N$201,COLUMN('TRM Data'!$I$2)-COLUMN('TRM Data'!$C$2)+1,FALSE)*$AD106)","v":""},{"$f":"IF($AC106=\"\",\"\",IF('Project Information'!$D$33=\"Small Business\",'Project Scope'!$CB106,IF('Project Information'!$D$33=\"Pay for Performance\",'Project Scope'!$CE106,0)))","v":""},null,"",null,"","","","","","","",{"$f":"IF($Q106=\"\",\"\",IF(AND(ISNUMBER($BW106),ISNUMBER($AR106),$AR106>0),SUM($BL106,$BO106,$BI106)*'Other Data'!$H$83,0))","v":""},{"$f":"IF($Q106=\"\",\"\",IF(AND(ISNUMBER($BW106),ISNUMBER($AR106),$AR106>0),$BW106*'Other Data'!$G$84,0))","v":""},null,"","","","","",{"$f":"IF($AC106=\"\",\"\",IF(AND(ISNUMBER($BX106), ISNUMBER($AZ106),$AZ106>0),SUM($BJ106,$BM106,$BP106)*'Other Data'!$H$83,0))","v":""},{"$f":"IF($AC106=\"\",\"\",IF(AND(ISNUMBER($BX106), ISNUMBER($AZ106),$AZ106>0),$BX106*'Other Data'!$G$84,0))","v":""},null,{"$f":"IF($C106=\"\",\"\",SUM('Ancillary Costs'!$N$91:$N$105)*(SUM($AR106,$AZ106,SUM($AS106,$BA106)*'Project Information'!$D$12)))","v":""},{"$f":"IF($C106=\"\",\"\",SUMIFS('Ancillary Costs'!$N$72:$N$86,'Ancillary Costs'!$FL$72:$FL$86,\"*xx\"&'Project Scope'!$C106&\"xx*\")*(SUM($AR106,$AZ106,SUM($AS106,$BA106)*'Project Information'!$D$12)))","v":""},{"$f":"IFERROR(IF($C106=\"\",\"\",SUMIFS('Ancillary Costs'!$N$8:$N$67,'Ancillary Costs'!$FL$8:$FL$67,\"*xx\"&'Project Scope'!C106&\"xx*\",'Ancillary Costs'!$I$8:$I$67,'Project Scope'!$AN106)*'Project Scope'!$AO106),0)","v":""},{"$f":"IFERROR(IF($C106=\"\",\"\",SUMIFS('Ancillary Costs'!$N$8:$N$67,'Ancillary Costs'!$FL$8:$FL$67,\"*xx\"&'Project Scope'!C106&\"xx*\",'Ancillary Costs'!$I$8:$I$67,'Project Scope'!$AW106)*'Project Scope'!$AX106),0)","v":""},{"$f":"IF($C106=\"\",\"\",IF(SUM($AR106,$AZ106,SUM($AS106,$BA106)*'Project Information'!$D$12)=0,0,SUM($BG106,(SUM($BE106:$BF106))*((SUM($AR106,(IF(ISNUMBER($AS106),$AS106,0)*'Project Information'!$D$12)))/SUM($AR106,$AZ106,SUM($AS106,$BA106)*'Project Information'!$D$12)))))","v":""},{"$f":"IF($C106=\"\",\"\",IF(SUM($AR106,$AZ106,SUM($AS106,$BA106)*'Project Information'!$D$12)=0,0,SUM($BH106,(SUM($BE106:$BF106))*((SUM($AZ106,(IF(ISNUMBER($BA106),$BA106,0)*'Project Information'!$D$12)))/SUM($AR106,$AZ106,SUM($AS106,$BA106)*'Project Information'!$D$12)))))","v":""},null,"","","",{"$f":"IF($C106=\"\",\"\",IF(OR($AS106=\"\",$CX106=\"b\"),0,$AS106*'Project Information'!$D$12))","v":""},{"$f":"IF($C106=\"\",\"\",IF(OR($BA106=\"\",$CX106=\"b\"),0,$BA106*'Project Information'!$D$12))","v":""},"","","","","",null,{"$f":"CBAT!$AB106","v":""},{"$f":"CBAT!$BZ106","v":""},0,null,"","",0,{"$f":"IF($Q106=\"\",\"\",IF(OR($CX106<>\"c\",SUM($BY$8:$BY$107)=0),0,ROUND(BW106*MIN('Other Data'!$G$84,'Other Data'!$H$84*IF('Project Information'!$F$10=\"X\",('Project Information'!$L$42-'Project Information'!$L$39),'Project Information'!$L$42)/SUMPRODUCT($BY$8:$BY$107,--($CX$8:$CX$107=\"c\"))),0)))","v":""},{"$f":"IF($AC106=\"\",\"\",IF(OR($CX106<>\"c\",SUM($BY$8:$BY$107)=0),0,ROUND(BX106*MIN('Other Data'!$G$84,'Other Data'!$H$84*IF('Project Information'!$F$10=\"X\",('Project Information'!$L$42-'Project Information'!$L$39),'Project Information'!$L$42)/SUMPRODUCT($BY$8:$BY$107,--($CX$8:$CX$107=\"c\"))),0)))","v":""},0,null,"","",{"$f":"IF($J106=\"\",\"\",VLOOKUP($J106,'TRM Data'!$R$4:$S$168,2,FALSE))","v":""},"","","",null,{"$f":"IF($CV106=0,\"\",CBAT!$DJ106)","v":""},null,null,1,1,0,1,0,null,{"$f":"IF(OR($CV106=0,ISBLANK('Project Information'!$D$44)),\"\",IF(AND($CV106=1,$CO106<1,$G106=\"yes\"),\"a\",IF($CO106<1,\"b\",\"c\")))","v":""}]
[0,100,null,null,null,null,null,{"$f":"IF($C107=\"\",\"\",IF(COUNTIF('Project Information'!$J$9:BG$9,$C107)<>1,\"\",INDEX('Project Information'!$J$8:$BG$8,1,MATCH($C107,'Project Information'!$J$9:BG$9,0))))","v":""},null,null,{"$f":"LOOKUP(2,1/(COUNTIF($K$7:K106,$Q$8:$Q$108)=0),$Q$8:$Q$108)","v":{"$error":"#N/A"}},{"$f":"IF(OR('Project Information'!$D$32=\"\",C107=\"\"),\"\",'Project Information'!$D$32)","v":""},{"$f":"IF($C107=\"\",\"\",IF(COUNTIF('Project Information'!$J$9:$BG$9,$C107)=1,HLOOKUP(C107,'Project Information'!$J$9:$BG$10,2,FALSE),0))","v":""},null,null,null,null,null,null,null,{"$f":"IF(Q107<>\"\",IF('Project Information'!$D$33=\"Small Business\",\"I\",\"P\")&VLOOKUP($Q107,'TRM Data'!$C$5:$N$201,COLUMN('TRM Data'!$E$2)-COLUMN('TRM Data'!$C$2)+1,FALSE)&IF($L107=\"Summer\",\"S\",IF($L107=\"Winter\",\"W\",\"Y\")),\"\")","v":""},{"$f":"IF(OR($F107=\"Controls\",$F107=\"\"),\"\",VLOOKUP($Q107,'TRM Data'!$C$5:$N$201,COLUMN('TRM Data'!$F$2)-COLUMN('TRM Data'!$C$2)+1,FALSE))","v":""},null,{"$f":"IF($R107=0,\"\",VLOOKUP($Q107,'TRM Data'!$C$5:$N$201,COLUMN('TRM Data'!$G$2)-COLUMN('TRM Data'!$C$2)+1,FALSE)*$R107)","v":""},null,{"$f":"IF($R107=0,\"\",VLOOKUP($Q107,'TRM Data'!$C$5:$N$201,COLUMN('TRM Data'!$I$2)-COLUMN('TRM Data'!$C$2)+1,FALSE)*$R107)","v":""},{"$f":"IF($Q107=\"\",\"\",IF('Project Information'!$D$33=\"Small Business\",'Project Scope'!$CA107,IF('Project Information'!$D$33=\"Pay for Performance\",'Project Scope'!$CD107,0)))","v":""},null,null,null,{"$f":"IF(AC107<>\"\",\"P\"&VLOOKUP($AC107,'TRM Data'!$C$5:$N$201,COLUMN('TRM Data'!$E$2)-COLUMN('TRM Data'!$C$2)+1,FALSE)&IF($L107=\"Summer\",\"S\",IF($L107=\"Winter\",\"W\",\"Y\")),\"\")","v":""},{"$f":"IF($AD107=0,\"\",VLOOKUP($AC107,'TRM Data'!$C$5:$N$201,COLUMN('TRM Data'!$G$2)-COLUMN('TRM Data'!$C$2)+1,FALSE)*$AD107)","v":""},null,{"$f":"IF($AD107=0,\"\",VLOOKUP($AC107,'TRM Data'!$C$5:$N$201,COLUMN('TRM Data'!$I$2)-COLUMN('TRM Data'!$C$2)+1,FALSE)*$AD107)","v":""},{"$f":"IF($AC107=\"\",\"\",IF('Project Information'!$D$33=\"Small Business\",'Project Scope'!$CB107,IF('Project Information'!$D$33=\"Pay for Performance\",'Project Scope'!$CE107,0)))","v":""},null,"",null,"","","","","","","",{"$f":"IF($Q107=\"\",\"\",IF(AND(ISNUMBER($BW107),ISNUMBER($AR107),$AR107>0),SUM($BL107,$BO107,$BI107)*'Other Data'!$H$83,0))","v":""},{"$f":"IF($Q107=\"\",\"\",IF(AND(ISNUMBER($BW107),ISNUMBER($AR107),$AR107>0),$BW107*'Other Data'!$G$84,0))","v":""},null,"","","","","",{"$f":"IF($AC107=\"\",\"\",IF(AND(ISNUMBER($BX107), ISNUMBER($AZ107),$AZ107>0),SUM($BJ107,$BM107,$BP107)*'Other Data'!$H$83,0))","v":""},{"$f":"IF($AC107=\"\",\"\",IF(AND(ISNUMBER($BX107), ISNUMBER($AZ107),$AZ107>0),$BX107*'Other Data'!$G$84,0))","v":""},null,{"$f":"IF($C107=\"\",\"\",SUM('Ancillary Costs'!$N$91:$N$105)*(SUM($AR107,$AZ107,SUM($AS107,$BA107)*'Project Information'!$D$12)))","v":""},{"$f":"IF($C107=\"\",\"\",SUMIFS('Ancillary Costs'!$N$72:$N$86,'Ancillary Costs'!$FL$72:$FL$86,\"*xx\"&'Project Scope'!$C107&\"xx*\")*(SUM($AR107,$AZ107,SUM($AS107,$BA107)*'Project Information'!$D$12)))","v":""},{"$f":"IFERROR(IF($C107=\"\",\"\",SUMIFS('Ancillary Costs'!$N$8:$N$67,'Ancillary Costs'!$FL$8:$FL$67,\"*xx\"&'Project Scope'!C107&\"xx*\",'Ancillary Costs'!$I$8:$I$67,'Project Scope'!$AN107)*'Project Scope'!$AO107),0)","v":""},{"$f":"IFERROR(IF($C107=\"\",\"\",SUMIFS('Ancillary Costs'!$N$8:$N$67,'Ancillary Costs'!$FL$8:$FL$67,\"*xx\"&'Project Scope'!C107&\"xx*\",'Ancillary Costs'!$I$8:$I$67,'Project Scope'!$AW107)*'Project Scope'!$AX107),0)","v":""},{"$f":"IF($C107=\"\",\"\",IF(SUM($AR107,$AZ107,SUM($AS107,$BA107)*'Project Information'!$D$12)=0,0,SUM($BG107,(SUM($BE107:$BF107))*((SUM($AR107,(IF(ISNUMBER($AS107),$AS107,0)*'Project Information'!$D$12)))/SUM($AR107,$AZ107,SUM($AS107,$BA107)*'Project Information'!$D$12)))))","v":""},{"$f":"IF($C107=\"\",\"\",IF(SUM($AR107,$AZ107,SUM($AS107,$BA107)*'Project Information'!$D$12)=0,0,SUM($BH107,(SUM($BE107:$BF107))*((SUM($AZ107,(IF(ISNUMBER($BA107),$BA107,0)*'Project Information'!$D$12)))/SUM($AR107,$AZ107,SUM($AS107,$BA107)*'Project Information'!$D$12)))))","v":""},null,"","","",{"$f":"IF($C107=\"\",\"\",IF(OR($AS107=\"\",$CX107=\"b\"),0,$AS107*'Project Information'!$D$12))","v":""},{"$f":"IF($C107=\"\",\"\",IF(OR($BA107=\"\",$CX107=\"b\"),0,$BA107*'Project Information'!$D$12))","v":""},"","","","","",null,{"$f":"CBAT!$AB107","v":""},{"$f":"CBAT!$BZ107","v":""},0,null,"","",0,{"$f":"IF($Q107=\"\",\"\",IF(OR($CX107<>\"c\",SUM($BY$8:$BY$107)=0),0,ROUND(BW107*MIN('Other Data'!$G$84,'Other Data'!$H$84*IF('Project Information'!$F$10=\"X\",('Project Information'!$L$42-'Project Information'!$L$39),'Project Information'!$L$42)/SUMPRODUCT($BY$8:$BY$107,--($CX$8:$CX$107=\"c\"))),0)))","v":""},{"$f":"IF($AC107=\"\",\"\",IF(OR($CX107<>\"c\",SUM($BY$8:$BY$107)=0),0,ROUND(BX107*MIN('Other Data'!$G$84,'Other Data'!$H$84*IF('Project Information'!$F$10=\"X\",('Project Information'!$L$42-'Project Information'!$L$39),'Project Information'!$L$42)/SUMPRODUCT($BY$8:$BY$107,--($CX$8:$CX$107=\"c\"))),0)))","v":""},0,null,"","",{"$f":"IF($J107=\"\",\"\",VLOOKUP($J107,'TRM Data'!$R$4:$S$168,2,FALSE))","v":""},"","","",null,{"$f":"IF($CV107=0,\"\",CBAT!$DJ107)","v":""},null,null,1,1,0,1,0,null,{"$f":"IF(OR($CV107=0,ISBLANK('Project Information'!$D$44)),\"\",IF(AND($CV107=1,$CO107<1,$G107=\"yes\"),\"a\",IF($CO107<1,\"b\",\"c\")))","v":""}]
[]
[null,null,null,null,null,null,null,null,null,null,null,"Uniques","Drop-down",null,null,null,null,null,null,null,null,null,null,null,null,null,null,null,"Fixture [Wattage]","Unique Equipment"]
[null,null,null,null,null,null,null,null,null,null,{"$f":"IF(ISERROR(K9),\"\",K9)","v":""},{"$f":"LOOKUP(2,1/(COUNTIF($L$109:L109,$K$110:$K$307)=0),$K$110:$K$307)","v":0},{"$f":"IF(ISERROR(L110),\"-\",L110)","v":0},null,null,"Wattage","Measure Description ","Location",null,null,"Quantity","Labor Cost","Material Cost","Est. Incentive Amount","Est. Cost to Customer","Control or Fixture Row","Reference Row",null,null,{"$f":"IFERROR(LOOKUP(2,1/(COUNTIF(AD$109:AD109,$AC$111:$AC$310)=0),$AC$111:$AC$310),\"\")","v":""}]
[null,null,null,null,null,null,null,null,null,null,{"$f":"IF(ISERROR(K10),\"\",K10)","v":""},{"$f":"LOOKUP(2,1/(COUNTIF($L$109:L110,$K$110:$K$307)=0),$K$110:$K$307)","v":""},{"$f":"IF(ISERROR(L111),\"-\",L111)","v":""},null,null,{"$f":"IF($Q111<>\"\",INDEX($A$1:$DA$107,$AA111,IF($Z111=\"f\",COLUMN($AQ$7),COLUMN($AV$7))),\"\")","v":""},{"$f":"IFERROR(IF(OR(INDEX($A$1:$DA$107,$AA111,COLUMN($CX$7))=\"\",INDEX($A$1:$DA$107,$AA111,COLUMN($CX$7))=\"b\"),\"\",INDEX($A$1:$DA$107,$AA111,IF(AND(INDEX($A$1:$DA$107,$AA111,COLUMN($F$7))<>\"controls\",$Z111=\"f\"),COLUMN($Q$7),IF(AND(INDEX($A$1:$DA$107,$AA111,COLUMN($F$7))<>\"fixtures\",$Z111=\"c\"),COLUMN($AC$7),\"\")))),\"\")","v":""},{"$f":"IF($Q111<>\"\",INDEX($A$1:$DA$107,$AA111,COLUMN($C$7))&\" \"&INDEX($A$1:$DA$107,$AA111,COLUMN($D$7)),\"\")","v":""},null,null,{"$f":"IF($Q111<>\"\",INDEX($A$1:$DA$107,$AA111,IF($Z111=\"f\",COLUMN($R$7),COLUMN($AD$7))),\"\")","v":""},{"$f":"IF($Q111<>\"\",INDEX($A$1:$DA$107,$AA111,IF($Z111=\"f\",COLUMN($BO$7),COLUMN($BP$7))),\"\")","v":""},{"$f":"IF($Q111<>\"\",INDEX($A$1:$DA$107,$AA111,IF($Z111=\"f\",COLUMN($BL$7),COLUMN($BM$7))),\"\")","v":""},{"$f":"IF($Q111<>\"\",INDEX($A$1:$DA$107,$AA111,IF($Z111=\"f\",COLUMN($AA$7),COLUMN($AI$7))),\"\")","v":""},{"$f":"IF(Q111=\"\",\"\",(V111+W111)-X111)","v":""},"f",8,null,{"$f":"IF(Q111=\"\",\"\",Q111&\" [\"&P111&\" watts]\")","v":""},{"$f":"IFERROR(LOOKUP(2,1/(COUNTIF(AD$109:AD110,$AC$111:$AC$310)=0),$AC$111:$AC$310),\"\")","v":""}]
[null,null,null,null,null,null,null,null,null,null,"",{"$f":"LOOKUP(2,1/(COUNTIF($L$109:L111,$K$110:$K$307)=0),$K$110:$K$307)","v":{"$error":"#N/A"}},"-",null,null,"",{"$f":"IFERROR(IF(OR(INDEX($A$1:$DA$107,$AA112,COLUMN($CX$7))=\"\",INDEX($A$1:$DA$107,$AA112,COLUMN($CX$7))=\"b\"),\"\",INDEX($A$1:$DA$107,$AA112,IF(AND(INDEX($A$1:$DA$107,$AA112,COLUMN($F$7))<>\"controls\",$Z112=\"f\"),COLUMN($Q$7),IF(AND(INDEX($A$1:$DA$107,$AA112,COLUMN($F$7))<>\"fixtures\",$Z112=\"c\"),COLUMN($AC$7),\"\")))),\"\")","v":""},"",null,null,"","","","","","c",8,null,"",{"$f":"IFERROR(LOOKUP(2,1/(COUNTIF(AD$109:AD111,$AC$111:$AC$310)=0),$AC$111:$AC$310),\"\")","v":""}]
[null,null,null,null,null,null,null,null,null,null,"",{"$f":"LOOKUP(2,1/(COUNTIF($L$109:L112,$K$110:$K$307)=0),$K$110:$K$307)","v":{"$error":"#N/A"}},"-",null,null,"","","",null,null,"","","","","","f",{"$f":"AA111+1","v":9},null,"",{"$f":"IFERROR(LOOKUP(2,1/(COUNTIF(AD$109:AD112,$AC$111:$AC$310)=0),$AC$111:$AC$310),\"\")","v":""}]
[null,null,null,null,null,null,null,null,null,null,"",{"$f":"LOOKUP(2,1/(COUNTIF($L$109:L113,$K$110:$K$307)=0),$K$110:$K$307)","v":{"$error":"#N/A"}},"-",null,null,"","","",null,null,"","","","","","c",{"$f":"AA112+1","v":9},null,"",{"$f":"IFERROR(LOOKUP(2,1/(COUNTIF(AD$109:AD113,$AC$111:$AC$310)=0),$AC$111:$AC$310),\"\")","v":""}]
[null,null,null,null,null,null,null,null,null,null,"",{"$f":"LOOKUP(2,1/(COUNTIF($L$109:L114,$K$110:$K$307)=0),$K$110:$K$307)","v":{"$error":"#N/A"}},"-",null,null,"","","",null,null,"","","","","","f",{"$f":"AA113+1","v":10},null,"",{"$f":"IFERROR(LOOKUP(2,1/(COUNTIF(AD$109:AD114,$AC$111:$AC$310)=0),$AC$111:$AC$310),\"\")","v":""}]
[null,null,null,null,null,null,null,null,null,null,{"$f":"IF(ISERROR(K15),\"\",K15)","v":""},{"$f":"LOOKUP(2,1/(COUNTIF($L$109:L115,$K$110:$K$307)=0),$K$110:$K$307)","v":{"$error":"#N/A"}},{"$f":"IF(ISERROR(L116),\"-\",L116)","v":"-"},null,null,"","","",null,null,"","","","","","c",{"$f":"AA114+1","v":10},null,"",{"$f":"IFERROR(LOOKUP(2,1/(COUNTIF(AD$109:AD115,$AC$111:$AC$310)=0),$AC$111:$AC$310),\"\")","v":""}]
[null,null,null,null,null,null,null,null,null,null,"",{"$f":"LOOKUP(2,1/(COUNTIF($L$109:L116,$K$110:$K$307)=0),$K$110:$K$307)","v":{"$error":"#N/A"}},"-",null,null,"","","",null,null,"","","","","","f",{"$f":"AA115+1","v":11},null,"",{"$f":"IFERROR(LOOKUP(2,1/(COUNTIF(AD$109:AD116,$AC$111:$AC$310)=0),$AC$111:$AC$310),\"\")","v":""}]
[null,null,null,null,null,null,null,null,null,null,"",{"$f":"LOOKUP(2,1/(COUNTIF($L$109:L117,$K$110:$K$307)=0),$K$110:$K$307)","v":{"$error":"#N/A"}},"-",null,null,"","","",null,null,"","","","","","c",11,null,"",{"$f":"IFERROR(LOOKUP(2,1/(COUNTIF(AD$109:AD117,$AC$111:$AC$310)=0),$AC$111:$AC$310),\"\")","v":""}]
[null,null,null,null,null,null,null,null,null,null,"",{"$f":"LOOKUP(2,1/(COUNTIF($L$109:L118,$K$110:$K$307)=0),$K$110:$K$307)","v":{"$error":"#N/A"}},"-",null,null,"","","",null,null,"","","","","","f",12,null,"",{"$f":"IFERROR(LOOKUP(2,1/(COUNTIF(AD$109:AD118,$AC$111:$AC$310)=0),$AC$111:$AC$310),\"\")","v":""}]
[null,null,null,null,null,null,null,null,null,null,"",{"$f":"LOOKUP(2,1/(COUNTIF($L$109:L119,$K$110:$K$307)=0),$K$110:$K$307)","v":{"$error":"#N/A"}},"-",null,null,"","","",null,null,"","","","","","c",12,null,"",{"$f":"IFERROR(LOOKUP(2,1/(COUNTIF(AD$109:AD119,$AC$111:$AC$310)=0),$AC$111:$AC$310),\"\")","v":""}]
[null,null,null,null,null,null,null,null,null,null,"",{"$f":"LOOKUP(2,1/(COUNTIF($L$109:L120,$K$110:$K$307)=0),$K$110:$K$307)","v":{"$error":"#N/A"}},"-",null,null,"","","",null,null,"","","","","","f",13,null,"",{"$f":"IFERROR(LOOKUP(2,1/(COUNTIF(AD$109:AD120,$AC$111:$AC$310)=0),$AC$111:$AC$310),\"\")","v":""}]
[null,null,null,null,null,null,null,null,null,null,"",{"$f":"LOOKUP(2,1/(COUNTIF($L$109:L121,$K$110:$K$307)=0),$K$110:$K$307)","v":{"$error":"#N/A"}},"-",null,null,"","","",null,null,"","","","","","c",13,null,"",{"$f":"IFERROR(LOOKUP(2,1/(COUNTIF(AD$109:AD121,$AC$111:$AC$310)=0),$AC$111:$AC$310),\"\")","v":""}]
[null,null,null,null,null,null,null,null,null,null,"",{"$f":"LOOKUP(2,1/(COUNTIF($L$109:L122,$K$110:$K$307)=0),$K$110:$K$307)","v":{"$error":"#N/A"}},"-",null,null,"","","",null,null,"","","","","","f",14,null,"",{"$f":"IFERROR(LOOKUP(2,1/(COUNTIF(AD$109:AD122,$AC$111:$AC$310)=0),$AC$111:$AC$310),\"\")","v":""}]
[null,null,null,null,null,null,null,null,null,null,"",{"$f":"LOOKUP(2,1/(COUNTIF($L$109:L123,$K$110:$K$307)=0),$K$110:$K$307)","v":{"$error":"#N/A"}},"-",null,null,"","","",null,null,"","","","","","c",14,null,"",{"$f":"IFERROR(LOOKUP(2,1/(COUNTIF(AD$109:AD123,$AC$111:$AC$310)=0),$AC$111:$AC$310),\"\")","v":""}]
[null,null,null,null,null,null,null,null,null,null,"",{"$f":"LOOKUP(2,1/(COUNTIF($L$109:L124,$K$110:$K$307)=0),$K$110:$K$307)","v":{"$error":"#N/A"}},"-",null,null,"","","",null,null,"","","","","","f",15,null,"",{"$f":"IFERROR(LOOKUP(2,1/(COUNTIF(AD$109:AD124,$AC$111:$AC$310)=0),$AC$111:$AC$310),\"\")","v":""}]
[null,null,null,null,null,null,null,null,null,null,"",{"$f":"LOOKUP(2,1/(COUNTIF($L$109:L125,$K$110:$K$307)=0),$K$110:$K$307)","v":{"$error":"#N/A"}},"-",null,null,"","","",null,null,"","","","","","c",15,null,"",{"$f":"IFERROR(LOOKUP(2,1/(COUNTIF(AD$109:AD125,$AC$111:$AC$310)=0),$AC$111:$AC$310),\"\")","v":""}]
[null,null,null,null,null,null,null,null,null,null,"",{"$f":"LOOKUP(2,1/(COUNTIF($L$109:L126,$K$110:$K$307)=0),$K$110:$K$307)","v":{"$error":"#N/A"}},"-",null,null,"","","",null,null,"","","","","","f",16,null,"",{"$f":"IFERROR(LOOKUP(2,1/(COUNTIF(AD$109:AD126,$AC$111:$AC$310)=0),$AC$111:$AC$310),\"\")","v":""}]
[null,null,null,null,null,null,null,null,null,null,"",{"$f":"LOOKUP(2,1/(COUNTIF($L$109:L127,$K$110:$K$307)=0),$K$110:$K$307)","v":{"$error":"#N/A"}},"-",null,null,"","","",null,null,"","","","","","c",16,null,"",{"$f":"IFERROR(LOOKUP(2,1/(COUNTIF(AD$109:AD127,$AC$111:$AC$310)=0),$AC$111:$AC$310),\"\")","v":""}]
[null,null,null,null,null,null,null,null,null,null,"",{"$f":"LOOKUP(2,1/(COUNTIF($L$109:L128,$K$110:$K$307)=0),$K$110:$K$307)","v":{"$error":"#N/A"}},"-",null,null,"","","",null,null,"","","","","","f",17,null,"",{"$f":"IFERROR(LOOKUP(2,1/(COUNTIF(AD$109:AD128,$AC$111:$AC$310)=0),$AC$111:$AC$310),\"\")","v":""}]
[null,null,null,null,null,null,null,null,null,null,"",{"$f":"LOOKUP(2,1/(COUNTIF($L$109:L129,$K$110:$K$307)=0),$K$110:$K$307)","v":{"$error":"#N/A"}},"-",null,null,"","","",null,null,"","","","","","c",17,null,"",{"$f":"IFERROR(LOOKUP(2,1/(COUNTIF(AD$109:AD129,$AC$111:$AC$310)=0),$AC$111:$AC$310),\"\")","v":""}]
[null,null,null,null,null,null,null,null,null,null,"",{"$f":"LOOKUP(2,1/(COUNTIF($L$109:L130,$K$110:$K$307)=0),$K$110:$K$307)","v":{"$error":"#N/A"}},"-",null,null,"","","",null,null,"","","","","","f",18,null,"",{"$f":"IFERROR(LOOKUP(2,1/(COUNTIF(AD$109:AD130,$AC$111:$AC$310)=0),$AC$111:$AC$310),\"\")","v":""}]
[null,null,null,null,null,null,null,null,null,null,"",{"$f":"LOOKUP(2,1/(COUNTIF($L$109:L131,$K$110:$K$307)=0),$K$110:$K$307)","v":{"$error":"#N/A"}},"-",null,null,"","","",null,null,"","","","","","c",18,null,"",{"$f":"IFERROR(LOOKUP(2,1/(COUNTIF(AD$109:AD131,$AC$111:$AC$310)=0),$AC$111:$AC$310),\"\")","v":""}]
[null,null,null,null,null,null,null,null,null,null,"",{"$f":"LOOKUP(2,1/(COUNTIF($L$109:L132,$K$110:$K$307)=0),$K$110:$K$307)","v":{"$error":"#N/A"}},"-",null,null,"","","",null,null,"","","","","","f",19,null,"",{"$f":"IFERROR(LOOKUP(2,1/(COUNTIF(AD$109:AD132,$AC$111:$AC$310)=0),$AC$111:$AC$310),\"\")","v":""}]
[null,null,null,null,null,null,null,null,null,null,"",{"$f":"LOOKUP(2,1/(COUNTIF($L$109:L133,$K$110:$K$307)=0),$K$110:$K$307)","v":{"$error":"#N/A"}},"-",null,null,"","","",null,null,"","","","","","c",19,null,"",{"$f":"IFERROR(LOOKUP(2,1/(COUNTIF(AD$109:AD133,$AC$111:$AC$310)=0),$AC$111:$AC$310),\"\")","v":""}]
[null,null,null,null,null,null,null,null,null,null,"",{"$f":"LOOKUP(2,1/(COUNTIF($L$109:L134,$K$110:$K$307)=0),$K$110:$K$307)","v":{"$error":"#N/A"}},"-",null,null,"","","",null,null,"","","","","","f",20,null,"",{"$f":"IFERROR(LOOKUP(2,1/(COUNTIF(AD$109:AD134,$AC$111:$AC$310)=0),$AC$111:$AC$310),\"\")","v":""}]
[null,null,null,null,null,null,null,null,null,null,"",{"$f":"LOOKUP(2,1/(COUNTIF($L$109:L135,$K$110:$K$307)=0),$K$110:$K$307)","v":{"$error":"#N/A"}},"-",null,null,"","","",null,null,"","","","","","c",20,null,"",{"$f":"IFERROR(LOOKUP(2,1/(COUNTIF(AD$109:AD135,$AC$111:$AC$310)=0),$AC$111:$AC$310),\"\")","v":""}]
[null,null,null,null,null,null,null,null,null,null,"",{"$f":"LOOKUP(2,1/(COUNTIF($L$109:L136,$K$110:$K$307)=0),$K$110:$K$307)","v":{"$error":"#N/A"}},"-",null,null,"","","",null,null,"","","","","","f",21,null,"",{"$f":"IFERROR(LOOKUP(2,1/(COUNTIF(AD$109:AD136,$AC$111:$AC$310)=0),$AC$111:$AC$310),\"\")","v":""}]
[null,null,null,null,null,null,null,null,null,null,"",{"$f":"LOOKUP(2,1/(COUNTIF($L$109:L137,$K$110:$K$307)=0),$K$110:$K$307)","v":{"$error":"#N/A"}},"-",null,null,"","","",null,null,"","","","","","c",21,null,"",{"$f":"IFERROR(LOOKUP(2,1/(COUNTIF(AD$109:AD137,$AC$111:$AC$310)=0),$AC$111:$AC$310),\"\")","v":""}]
[null,null,null,null,null,null,null,null,null,null,"",{"$f":"LOOKUP(2,1/(COUNTIF($L$109:L138,$K$110:$K$307)=0),$K$110:$K$307)","v":{"$error":"#N/A"}},"-",null,null,"","","",null,null,"","","","","","f",{"$f":"AA137+1","v":22},null,"",{"$f":"IFERROR(LOOKUP(2,1/(COUNTIF(AD$109:AD138,$AC$111:$AC$310)=0),$AC$111:$AC$310),\"\")","v":""}]
[null,null,null,null,null,null,null,null,null,null,"",{"$f":"LOOKUP(2,1/(COUNTIF($L$109:L139,$K$110:$K$307)=0),$K$110:$K$307)","v":{"$error":"#N/A"}},"-",null,null,"","","",null,null,"","","","","","c",22,null,"",{"$f":"IFERROR(LOOKUP(2,1/(COUNTIF(AD$109:AD139,$AC$111:$AC$310)=0),$AC$111:$AC$310),\"\")","v":""}]
[null,null,null,null,null,null,null,null,null,null,"",{"$f":"LOOKUP(2,1/(COUNTIF($L$109:L140,$K$110:$K$307)=0),$K$110:$K$307)","v":{"$error":"#N/A"}},"-",null,null,"","","",null,null,"","","","","","f",23,null,"",{"$f":"IFERROR(LOOKUP(2,1/(COUNTIF(AD$109:AD140,$AC$111:$AC$310)=0),$AC$111:$AC$310),\"\")","v":""}]
[null,null,null,null,null,null,null,null,null,null,{"$f":"IF(ISERROR(K41),\"\",K41)","v":""},{"$f":"LOOKUP(2,1/(COUNTIF($L$109:L141,$K$110:$K$307)=0),$K$110:$K$307)","v":{"$error":"#N/A"}},"-",null,null,"","","",null,null,"","","","","","c",23,null,"",{"$f":"IFERROR(LOOKUP(2,1/(COUNTIF(AD$109:AD141,$AC$111:$AC$310)=0),$AC$111:$AC$310),\"\")","v":""}]
[null,null,null,null,null,null,null,null,null,null,"",{"$f":"LOOKUP(2,1/(COUNTIF($L$109:L142,$K$110:$K$307)=0),$K$110:$K$307)","v":{"$error":"#N/A"}},"-",null,null,{"$f":"IF($Q143<>\"\",INDEX($A$1:$DA$107,$AA143,IF($Z143=\"f\",COLUMN($AQ$7),COLUMN($AV$7))),\"\")","v":""},{"$f":"IFERROR(IF(OR(INDEX($A$1:$DA$107,$AA143,COLUMN($CX$7))=\"\",INDEX($A$1:$DA$107,$AA143,COLUMN($CX$7))=\"b\"),\"\",INDEX($A$1:$DA$107,$AA143,IF(AND(INDEX($A$1:$DA$107,$AA143,COLUMN($F$7))<>\"controls\",$Z143=\"f\"),COLUMN($Q$7),IF(AND(INDEX($A$1:$DA$107,$AA143,COLUMN($F$7))<>\"fixtures\",$Z143=\"c\"),COLUMN($AC$7),\"\")))),\"\")","v":""},{"$f":"IF($Q143<>\"\",INDEX($A$1:$DA$107,$AA143,COLUMN($C$7))&\" \"&INDEX($A$1:$DA$107,$AA143,COLUMN($D$7)),\"\")","v":""},null,null,{"$f":"IF($Q143<>\"\",INDEX($A$1:$DA$107,$AA143,IF($Z143=\"f\",COLUMN($R$7),COLUMN($AD$7))),\"\")","v":""},{"$f":"IF($Q143<>\"\",INDEX($A$1:$DA$107,$AA143,IF($Z143=\"f\",COLUMN($BO$7),COLUMN($BP$7))),\"\")","v":""},{"$f":"IF($Q143<>\"\",INDEX($A$1:$DA$107,$AA143,IF($Z143=\"f\",COLUMN($BL$7),COLUMN($BM$7))),\"\")","v":""},{"$f":"IF($Q143<>\"\",INDEX($A$1:$DA$107,$AA143,IF($Z143=\"f\",COLUMN($AA$7),COLUMN($AI$7))),\"\")","v":""},{"$f":"IF(Q143=\"\",\"\",(V143+W143)-X143)","v":""},"f",24,null,{"$f":"IF(Q143=\"\",\"\",Q143&\" [\"&P143&\" watts]\")","v":""},{"$f":"IFERROR(LOOKUP(2,1/(COUNTIF(AD$109:AD142,$AC$111:$AC$310)=0),$AC$111:$AC$310),\"\")","v":""}]
[null,null,null,null,null,null,null,null,null,null,"",{"$f":"LOOKUP(2,1/(COUNTIF($L$109:L143,$K$110:$K$307)=0),$K$110:$K$307)","v":{"$error":"#N/A"}},"-",null,null,"","","",null,null,"","","","","","c",24,null,"",{"$f":"IFERROR(LOOKUP(2,1/(COUNTIF(AD$109:AD143,$AC$111:$AC$310)=0),$AC$111:$AC$310),\"\")","v":""}]
[null,null,null,null,null,null,null,null,null,null,"",{"$f":"LOOKUP(2,1/(COUNTIF($L$109:L144,$K$110:$K$307)=0),$K$110:$K$307)","v":{"$error":"#N/A"}},"-",null,null,"","","",null,null,"","","","","","f",25,null,"",{"$f":"IFERROR(LOOKUP(2,1/(COUNTIF(AD$109:AD144,$AC$111:$AC$310)=0),$AC$111:$AC$310),\"\")","v":""}]
[null,null,null,null,null,null,null,null,null,null,"",{"$f":"LOOKUP(2,1/(COUNTIF($L$109:L145,$K$110:$K$307)=0),$K$110:$K$307)","v":{"$error":"#N/A"}},"-",null,null,"","","",null,null,"","","","","","c",25,null,"",{"$f":"IFERROR(LOOKUP(2,1/(COUNTIF(AD$109:AD145,$AC$111:$AC$310)=0),$AC$111:$AC$310),\"\")","v":""}]
[null,null,null,null,null,null,null,null,null,null,"",{"$f":"LOOKUP(2,1/(COUNTIF($L$109:L146,$K$110:$K$307)=0),$K$110:$K$307)","v":{"$error":"#N/A"}},"-",null,null,"","","",null,null,"","","","","","f",26,null,"",{"$f":"IFERROR(LOOKUP(2,1/(COUNTIF(AD$109:AD146,$AC$111:$AC$310)=0),$AC$111:$AC$310),\"\")","v":""}]
[null,null,null,null,null,null,null,null,null,null,"",{"$f":"LOOKUP(2,1/(COUNTIF($L$109:L147,$K$110:$K$307)=0),$K$110:$K$307)","v":{"$error":"#N/A"}},"-",null,null,"","","",null,null,"","","","","","c",26,null,"",{"$f":"IFERROR(LOOKUP(2,1/(COUNTIF(AD$109:AD147,$AC$111:$AC$310)=0),$AC$111:$AC$310),\"\")","v":""}]
[null,null,null,null,null,null,null,null,null,null,"",{"$f":"LOOKUP(2,1/(COUNTIF($L$109:L148,$K$110:$K$307)=0),$K$110:$K$307)","v":{"$error":"#N/A"}},"-",null,null,"","","",null,null,"","","","","","f",27,null,"",{"$f":"IFERROR(LOOKUP(2,1/(COUNTIF(AD$109:AD148,$AC$111:$AC$310)=0),$AC$111:$AC$310),\"\")","v":""}]
[null,null,null,null,null,null,null,null,null,null,"",{"$f":"LOOKUP(2,1/(COUNTIF($L$109:L149,$K$110:$K$307)=0),$K$110:$K$307)","v":{"$error":"#N/A"}},"-",null,null,"","","",null,null,"","","","","","c",27,null,"",{"$f":"IFERROR(LOOKUP(2,1/(COUNTIF(AD$109:AD149,$AC$111:$AC$310)=0),$AC$111:$AC$310),\"\")","v":""}]
[null,null,null,null,null,null,null,null,null,null,"",{"$f":"LOOKUP(2,1/(COUNTIF($L$109:L150,$K$110:$K$307)=0),$K$110:$K$307)","v":{"$error":"#N/A"}},"-",null,null,"","","",null,null,"","","","","","f",28,null,"",{"$f":"IFERROR(LOOKUP(2,1/(COUNTIF(AD$109:AD150,$AC$111:$AC$310)=0),$AC$111:$AC$310),\"\")","v":""}]
[null,null,null,null,null,null,null,null,null,null,"",{"$f":"LOOKUP(2,1/(COUNTIF($L$109:L151,$K$110:$K$307)=0),$K$110:$K$307)","v":{"$error":"#N/A"}},"-",null,null,"","","",null,null,"","","","","","c",28,null,"",{"$f":"IFERROR(LOOKUP(2,1/(COUNTIF(AD$109:AD151,$AC$111:$AC$310)=0),$AC$111:$AC$310),\"\")","v":""}]
[null,null,null,null,null,null,null,null,null,null,"",{"$f":"LOOKUP(2,1/(COUNTIF($L$109:L152,$K$110:$K$307)=0),$K$110:$K$307)","v":{"$error":"#N/A"}},"-",null,null,"","","",null,null,"","","","","","f",29,null,"",{"$f":"IFERROR(LOOKUP(2,1/(COUNTIF(AD$109:AD152,$AC$111:$AC$310)=0),$AC$111:$AC$310),\"\")","v":""}]
[null,null,null,null,null,null,null,null,null,null,"",{"$f":"LOOKUP(2,1/(COUNTIF($L$109:L153,$K$110:$K$307)=0),$K$110:$K$307)","v":{"$error":"#N/A"}},"-",null,null,"","","",null,null,"","","","","","c",29,null,"",{"$f":"IFERROR(LOOKUP(2,1/(COUNTIF(AD$109:AD153,$AC$111:$AC$310)=0),$AC$111:$AC$310),\"\")","v":""}]
[null,null,null,null,null,null,null,null,null,null,"",{"$f":"LOOKUP(2,1/(COUNTIF($L$109:L154,$K$110:$K$307)=0),$K$110:$K$307)","v":{"$error":"#N/A"}},"-",null,null,"","","",null,null,"","","","","","f",30,null,"",{"$f":"IFERROR(LOOKUP(2,1/(COUNTIF(AD$109:AD154,$AC$111:$AC$310)=0),$AC$111:$AC$310),\"\")","v":""}]
[null,null,null,null,null,null,null,null,null,null,"",{"$f":"LOOKUP(2,1/(COUNTIF($L$109:L155,$K$110:$K$307)=0),$K$110:$K$307)","v":{"$error":"#N/A"}},"-",null,null,"","","",null,null,"","","","","","c",30,null,"",{"$f":"IFERROR(LOOKUP(2,1/(COUNTIF(AD$109:AD155,$AC$111:$AC$310)=0),$AC$111:$AC$310),\"\")","v":""}]
[null,null,null,null,null,null,null,null,null,null,"",{"$f":"LOOKUP(2,1/(COUNTIF($L$109:L156,$K$110:$K$307)=0),$K$110:$K$307)","v":{"$error":"#N/A"}},"-",null,null,"","","",null,null,"","","","","","f",31,null,"",{"$f":"IFERROR(LOOKUP(2,1/(COUNTIF(AD$109:AD156,$AC$111:$AC$310)=0),$AC$111:$AC$310),\"\")","v":""}]
[null,null,null,null,null,null,null,null,null,null,"",{"$f":"LOOKUP(2,1/(COUNTIF($L$109:L157,$K$110:$K$307)=0),$K$110:$K$307)","v":{"$error":"#N/A"}},"-",null,null,"","","",null,null,"","","","","","c",31,null,"",{"$f":"IFERROR(LOOKUP(2,1/(COUNTIF(AD$109:AD157,$AC$111:$AC$310)=0),$AC$111:$AC$310),\"\")","v":""}]
[null,null,null,null,null,null,null,null,null,null,"",{"$f":"LOOKUP(2,1/(COUNTIF($L$109:L158,$K$110:$K$307)=0),$K$110:$K$307)","v":{"$error":"#N/A"}},"-",null,null,"","","",null,null,"","","","","","f",32,null,"",{"$f":"IFERROR(LOOKUP(2,1/(COUNTIF(AD$109:AD158,$AC$111:$AC$310)=0),$AC$111:$AC$310),\"\")","v":""}]
[null,null,null,null,null,null,null,null,null,null,"",{"$f":"LOOKUP(2,1/(COUNTIF($L$109:L159,$K$110:$K$307)=0),$K$110:$K$307)","v":{"$error":"#N/A"}},"-",null,null,"","","",null,null,"","","","","","c",32,null,"",{"$f":"IFERROR(LOOKUP(2,1/(COUNTIF(AD$109:AD159,$AC$111:$AC$310)=0),$AC$111:$AC$310),\"\")","v":""}]
[null,null,null,null,null,null,null,null,null,null,"",{"$f":"LOOKUP(2,1/(COUNTIF($L$109:L160,$K$110:$K$307)=0),$K$110:$K$307)","v":{"$error":"#N/A"}},"-",null,null,"","","",null,null,"","","","","","f",33,null,"",{"$f":"IFERROR(LOOKUP(2,1/(COUNTIF(AD$109:AD160,$AC$111:$AC$310)=0),$AC$111:$AC$310),\"\")","v":""}]
[null,null,null,null,null,null,null,null,null,null,"",{"$f":"LOOKUP(2,1/(COUNTIF($L$109:L161,$K$110:$K$307)=0),$K$110:$K$307)","v":{"$error":"#N/A"}},"-",null,null,"","","",null,null,"","","","","","c",33,null,"",{"$f":"IFERROR(LOOKUP(2,1/(COUNTIF(AD$109:AD161,$AC$111:$AC$310)=0),$AC$111:$AC$310),\"\")","v":""}]
[null,null,null,null,null,null,null,null,null,null,"",{"$f":"LOOKUP(2,1/(COUNTIF($L$109:L162,$K$110:$K$307)=0),$K$110:$K$307)","v":{"$error":"#N/A"}},"-",null,null,"","","",null,null,"","","","","","f",34,null,"",{"$f":"IFERROR(LOOKUP(2,1/(COUNTIF(AD$109:AD162,$AC$111:$AC$310)=0),$AC$111:$AC$310),\"\")","v":""}]
[null,null,null,null,null,null,null,null,null,null,"",{"$f":"LOOKUP(2,1/(COUNTIF($L$109:L163,$K$110:$K$307)=0),$K$110:$K$307)","v":{"$error":"#N/A"}},"-",null,null,"","","",null,null,"","","","","","c",34,null,"",{"$f":"IFERROR(LOOKUP(2,1/(COUNTIF(AD$109:AD163,$AC$111:$AC$310)=0),$AC$111:$AC$310),\"\")","v":""}]
[null,null,null,null,null,null,null,null,null,null,"",{"$f":"LOOKUP(2,1/(COUNTIF($L$109:L164,$K$110:$K$307)=0),$K$110:$K$307)","v":{"$error":"#N/A"}},"-",null,null,"","","",null,null,"","","","","","f",35,null,"",{"$f":"IFERROR(LOOKUP(2,1/(COUNTIF(AD$109:AD164,$AC$111:$AC$310)=0),$AC$111:$AC$310),\"\")","v":""}]
[null,null,null,null,null,null,null,null,null,null,"",{"$f":"LOOKUP(2,1/(COUNTIF($L$109:L165,$K$110:$K$307)=0),$K$110:$K$307)","v":{"$error":"#N/A"}},"-",null,null,"","","",null,null,"","","","","","c",35,null,"",{"$f":"IFERROR(LOOKUP(2,1/(COUNTIF(AD$109:AD165,$AC$111:$AC$310)=0),$AC$111:$AC$310),\"\")","v":""}]
[null,null,null,null,null,null,null,null,null,null,"",{"$f":"LOOKUP(2,1/(COUNTIF($L$109:L166,$K$110:$K$307)=0),$K$110:$K$307)","v":{"$error":"#N/A"}},"-",null,null,"","","",null,null,"","","","","","f",36,null,"",{"$f":"IFERROR(LOOKUP(2,1/(COUNTIF(AD$109:AD166,$AC$111:$AC$310)=0),$AC$111:$AC$310),\"\")","v":""}]
[null,null,null,null,null,null,null,null,null,null,"",{"$f":"LOOKUP(2,1/(COUNTIF($L$109:L167,$K$110:$K$307)=0),$K$110:$K$307)","v":{"$error":"#N/A"}},"-",null,null,"","","",null,null,"","","","","","c",36,null,"",{"$f":"IFERROR(LOOKUP(2,1/(COUNTIF(AD$109:AD167,$AC$111:$AC$310)=0),$AC$111:$AC$310),\"\")","v":""}]
[null,null,null,null,null,null,null,null,null,null,"",{"$f":"LOOKUP(2,1/(COUNTIF($L$109:L168,$K$110:$K$307)=0),$K$110:$K$307)","v":{"$error":"#N/A"}},"-",null,null,"","","",null,null,"","","","","","f",37,null,"",{"$f":"IFERROR(LOOKUP(2,1/(COUNTIF(AD$109:AD168,$AC$111:$AC$310)=0),$AC$111:$AC$310),\"\")","v":""}]
[null,null,null,null,null,null,null,null,null,null,"",{"$f":"LOOKUP(2,1/(COUNTIF($L$109:L169,$K$110:$K$307)=0),$K$110:$K$307)","v":{"$error":"#N/A"}},"-",null,null,"","","",null,null,"","","","","","c",37,null,"",{"$f":"IFERROR(LOOKUP(2,1/(COUNTIF(AD$109:AD169,$AC$111:$AC$310)=0),$AC$111:$AC$310),\"\")","v":""}]
[null,null,null,null,null,null,null,null,null,null,"",{"$f":"LOOKUP(2,1/(COUNTIF($L$109:L170,$K$110:$K$307)=0),$K$110:$K$307)","v":{"$error":"#N/A"}},"-",null,null,"","","",null,null,"","","","","","f",{"$f":"AA169+1","v":38},null,"",{"$f":"IFERROR(LOOKUP(2,1/(COUNTIF(AD$109:AD170,$AC$111:$AC$310)=0),$AC$111:$AC$310),\"\")","v":""}]
[null,null,null,null,null,null,null,null,null,null,"",{"$f":"LOOKUP(2,1/(COUNTIF($L$109:L171,$K$110:$K$307)=0),$K$110:$K$307)","v":{"$error":"#N/A"}},"-",null,null,"","","",null,null,"","","","","","c",38,null,"",{"$f":"IFERROR(LOOKUP(2,1/(COUNTIF(AD$109:AD171,$AC$111:$AC$310)=0),$AC$111:$AC$310),\"\")","v":""}]
[null,null,null,null,null,null,null,null,null,null,"",{"$f":"LOOKUP(2,1/(COUNTIF($L$109:L172,$K$110:$K$307)=0),$K$110:$K$307)","v":{"$error":"#N/A"}},"-",null,null,"","","",null,null,"","","","","","f",39,null,"",{"$f":"IFERROR(LOOKUP(2,1/(COUNTIF(AD$109:AD172,$AC$111:$AC$310)=0),$AC$111:$AC$310),\"\")","v":""}]
[null,null,null,null,null,null,null,null,null,null,{"$f":"IF(ISERROR(K73),\"\",K73)","v":""},{"$f":"LOOKUP(2,1/(COUNTIF($L$109:L173,$K$110:$K$307)=0),$K$110:$K$307)","v":{"$error":"#N/A"}},"-",null,null,"","","",null,null,"","","","","","c",39,null,"",{"$f":"IFERROR(LOOKUP(2,1/(COUNTIF(AD$109:AD173,$AC$111:$AC$310)=0),$AC$111:$AC$310),\"\")","v":""}]
[null,null,null,null,null,null,null,null,null,null,"",{"$f":"LOOKUP(2,1/(COUNTIF($L$109:L174,$K$110:$K$307)=0),$K$110:$K$307)","v":{"$error":"#N/A"}},{"$f":"IF(ISERROR(L175),\"-\",L175)","v":"-"},null,null,{"$f":"IF($Q175<>\"\",INDEX($A$1:$DA$107,$AA175,IF($Z175=\"f\",COLUMN($AQ$7),COLUMN($AV$7))),\"\")","v":""},{"$f":"IFERROR(IF(OR(INDEX($A$1:$DA$107,$AA175,COLUMN($CX$7))=\"\",INDEX($A$1:$DA$107,$AA175,COLUMN($CX$7))=\"b\"),\"\",INDEX($A$1:$DA$107,$AA175,IF(AND(INDEX($A$1:$DA$107,$AA175,COLUMN($F$7))<>\"controls\",$Z175=\"f\"),COLUMN($Q$7),IF(AND(INDEX($A$1:$DA$107,$AA175,COLUMN($F$7))<>\"fixtures\",$Z175=\"c\"),COLUMN($AC$7),\"\")))),\"\")","v":""},{"$f":"IF($Q175<>\"\",INDEX($A$1:$DA$107,$AA175,COLUMN($C$7))&\" \"&INDEX($A$1:$DA$107,$AA175,COLUMN($D$7)),\"\")","v":""},null,null,{"$f":"IF($Q175<>\"\",INDEX($A$1:$DA$107,$AA175,IF($Z175=\"f\",COLUMN($R$7),COLUMN($AD$7))),\"\")","v":""},{"$f":"IF($Q175<>\"\",INDEX($A$1:$DA$107,$AA175,IF($Z175=\"f\",COLUMN($BO$7),COLUMN($BP$7))),\"\")","v":""},{"$f":"IF($Q175<>\"\",INDEX($A$1:$DA$107,$AA175,IF($Z175=\"f\",COLUMN($BL$7),COLUMN($BM$7))),\"\")","v":""},{"$f":"IF($Q175<>\"\",INDEX($A$1:$DA$107,$AA175,IF($Z175=\"f\",COLUMN($AA$7),COLUMN($AI$7))),\"\")","v":""},{"$f":"IF(Q175=\"\",\"\",(V175+W175)-X175)","v":""},"f",40,null,{"$f":"IF(Q175=\"\",\"\",Q175&\" [\"&P175&\" watts]\")","v":""},{"$f":"IFERROR(LOOKUP(2,1/(COUNTIF(AD$109:AD174,$AC$111:$AC$310)=0),$AC$111:$AC$310),\"\")","v":""}]
[null,null,null,null,null,null,null,null,null,null,"",{"$f":"LOOKUP(2,1/(COUNTIF($L$109:L175,$K$110:$K$307)=0),$K$110:$K$307)","v":{"$error":"#N/A"}},"-",null,null,"","","",null,null,"","","","","","c",40,null,"",{"$f":"IFERROR(LOOKUP(2,1/(COUNTIF(AD$109:AD175,$AC$111:$AC$310)=0),$AC$111:$AC$310),\"\")","v":""}]
[null,null,null,null,null,null,null,null,null,null,"",{"$f":"LOOKUP(2,1/(COUNTIF($L$109:L176,$K$110:$K$307)=0),$K$110:$K$307)","v":{"$error":"#N/A"}},"-",null,null,"","","",null,null,"","","","","","f",41,null,"",{"$f":"IFERROR(LOOKUP(2,1/(COUNTIF(AD$109:AD176,$AC$111:$AC$310)=0),$AC$111:$AC$310),\"\")","v":""}]
[null,null,null,null,null,null,null,null,null,null,"",{"$f":"LOOKUP(2,1/(COUNTIF($L$109:L177,$K$110:$K$307)=0),$K$110:$K$307)","v":{"$error":"#N/A"}},"-",null,null,"","","",null,null,"","","","","","c",41,null,"",{"$f":"IFERROR(LOOKUP(2,1/(COUNTIF(AD$109:AD177,$AC$111:$AC$310)=0),$AC$111:$AC$310),\"\")","v":""}]
[null,null,null,null,null,null,null,null,null,null,"",{"$f":"LOOKUP(2,1/(COUNTIF($L$109:L178,$K$110:$K$307)=0),$K$110:$K$307)","v":{"$error":"#N/A"}},"-",null,null,"","","",null,null,"","","","","","f",42,null,"",{"$f":"IFERROR(LOOKUP(2,1/(COUNTIF(AD$109:AD178,$AC$111:$AC$310)=0),$AC$111:$AC$310),\"\")","v":""}]
[null,null,null,null,null,null,null,null,null,null,"",{"$f":"LOOKUP(2,1/(COUNTIF($L$109:L179,$K$110:$K$307)=0),$K$110:$K$307)","v":{"$error":"#N/A"}},"-",null,null,"","","",null,null,"","","","","","c",42,null,"",{"$f":"IFERROR(LOOKUP(2,1/(COUNTIF(AD$109:AD179,$AC$111:$AC$310)=0),$AC$111:$AC$310),\"\")","v":""}]
[null,null,null,null,null,null,null,null,null,null,"",{"$f":"LOOKUP(2,1/(COUNTIF($L$109:L180,$K$110:$K$307)=0),$K$110:$K$307)","v":{"$error":"#N/A"}},"-",null,null,"","","",null,null,"","","","","","f",43,null,"",{"$f":"IFERROR(LOOKUP(2,1/(COUNTIF(AD$109:AD180,$AC$111:$AC$310)=0),$AC$111:$AC$310),\"\")","v":""}]
[null,null,null,null,null,null,null,null,null,null,"",{"$f":"LOOKUP(2,1/(COUNTIF($L$109:L181,$K$110:$K$307)=0),$K$110:$K$307)","v":{"$error":"#N/A"}},"-",null,null,"","","",null,null,"","","","","","c",43,null,"",{"$f":"IFERROR(LOOKUP(2,1/(COUNTIF(AD$109:AD181,$AC$111:$AC$310)=0),$AC$111:$AC$310),\"\")","v":""}]
[null,null,null,null,null,null,null,null,null,null,"",{"$f":"LOOKUP(2,1/(COUNTIF($L$109:L182,$K$110:$K$307)=0),$K$110:$K$307)","v":{"$error":"#N/A"}},"-",null,null,"","","",null,null,"","","","","","f",44,null,"",{"$f":"IFERROR(LOOKUP(2,1/(COUNTIF(AD$109:AD182,$AC$111:$AC$310)=0),$AC$111:$AC$310),\"\")","v":""}]
[null,null,null,null,null,null,null,null,null,null,"",{"$f":"LOOKUP(2,1/(COUNTIF($L$109:L183,$K$110:$K$307)=0),$K$110:$K$307)","v":{"$error":"#N/A"}},"-",null,null,"","","",null,null,"","","","","","c",44,null,"",{"$f":"IFERROR(LOOKUP(2,1/(COUNTIF(AD$109:AD183,$AC$111:$AC$310)=0),$AC$111:$AC$310),\"\")","v":""}]
[null,null,null,null,null,null,null,null,null,null,"",{"$f":"LOOKUP(2,1/(COUNTIF($L$109:L184,$K$110:$K$307)=0),$K$110:$K$307)","v":{"$error":"#N/A"}},"-",null,null,"","","",null,null,"","","","","","f",45,null,"",{"$f":"IFERROR(LOOKUP(2,1/(COUNTIF(AD$109:AD184,$AC$111:$AC$310)=0),$AC$111:$AC$310),\"\")","v":""}]
[null,null,null,null,null,null,null,null,null,null,"",{"$f":"LOOKUP(2,1/(COUNTIF($L$109:L185,$K$110:$K$307)=0),$K$110:$K$307)","v":{"$error":"#N/A"}},"-",null,null,"","","",null,null,"","","","","","c",45,null,"",{"$f":"IFERROR(LOOKUP(2,1/(COUNTIF(AD$109:AD185,$AC$111:$AC$310)=0),$AC$111:$AC$310),\"\")","v":""}]
[null,null,null,null,null,null,null,null,null,null,"",{"$f":"LOOKUP(2,1/(COUNTIF($L$109:L186,$K$110:$K$307)=0),$K$110:$K$307)","v":{"$error":"#N/A"}},"-",null,null,"","","",null,null,"","","","","","f",46,null,"",{"$f":"IFERROR(LOOKUP(2,1/(COUNTIF(AD$109:AD186,$AC$111:$AC$310)=0),$AC$111:$AC$310),\"\")","v":""}]
[null,null,null,null,null,null,null,null,null,null,"",{"$f":"LOOKUP(2,1/(COUNTIF($L$109:L187,$K$110:$K$307)=0),$K$110:$K$307)","v":{"$error":"#N/A"}},"-",null,null,"","","",null,null,"","","","","","c",46,null,"",{"$f":"IFERROR(LOOKUP(2,1/(COUNTIF(AD$109:AD187,$AC$111:$AC$310)=0),$AC$111:$AC$310),\"\")","v":""}]
[null,null,null,null,null,null,null,null,null,null,"",{"$f":"LOOKUP(2,1/(COUNTIF($L$109:L188,$K$110:$K$307)=0),$K$110:$K$307)","v":{"$error":"#N/A"}},"-",null,null,"","","",null,null,"","","","","","f",47,null,"",{"$f":"IFERROR(LOOKUP(2,1/(COUNTIF(AD$109:AD188,$AC$111:$AC$310)=0),$AC$111:$AC$310),\"\")","v":""}]
[null,null,null,null,null,null,null,null,null,null,"",{"$f":"LOOKUP(2,1/(COUNTIF($L$109:L189,$K$110:$K$307)=0),$K$110:$K$307)","v":{"$error":"#N/A"}},"-",null,null,"","","",null,null,"","","","","","c",47,null,"",{"$f":"IFERROR(LOOKUP(2,1/(COUNTIF(AD$109:AD189,$AC$111:$AC$310)=0),$AC$111:$AC$310),\"\")","v":""}]
[null,null,null,null,null,null,null,null,null,null,"",{"$f":"LOOKUP(2,1/(COUNTIF($L$109:L190,$K$110:$K$307)=0),$K$110:$K$307)","v":{"$error":"#N/A"}},"-",null,null,"","","",null,null,"","","","","","f",48,null,"",{"$f":"IFERROR(LOOKUP(2,1/(COUNTIF(AD$109:AD190,$AC$111:$AC$310)=0),$AC$111:$AC$310),\"\")","v":""}]
[null,null,null,null,null,null,null,null,null,null,"",{"$f":"LOOKUP(2,1/(COUNTIF($L$109:L191,$K$110:$K$307)=0),$K$110:$K$307)","v":{"$error":"#N/A"}},"-",null,null,"","","",null,null,"","","","","","c",48,null,"",{"$f":"IFERROR(LOOKUP(2,1/(COUNTIF(AD$109:AD191,$AC$111:$AC$310)=0),$AC$111:$AC$310),\"\")","v":""}]
[null,null,null,null,null,null,null,null,null,null,"",{"$f":"LOOKUP(2,1/(COUNTIF($L$109:L192,$K$110:$K$307)=0),$K$110:$K$307)","v":{"$error":"#N/A"}},"-",null,null,"","","",null,null,"","","","","","f",49,null,"",{"$f":"IFERROR(LOOKUP(2,1/(COUNTIF(AD$109:AD192,$AC$111:$AC$310)=0),$AC$111:$AC$310),\"\")","v":""}]
[null,null,null,null,null,null,null,null,null,null,"",{"$f":"LOOKUP(2,1/(COUNTIF($L$109:L193,$K$110:$K$307)=0),$K$110:$K$307)","v":{"$error":"#N/A"}},"-",null,null,"","","",null,null,"","","","","","c",49,null,"",{"$f":"IFERROR(LOOKUP(2,1/(COUNTIF(AD$109:AD193,$AC$111:$AC$310)=0),$AC$111:$AC$310),\"\")","v":""}]
[null,null,null,null,null,null,null,null,null,null,"",{"$f":"LOOKUP(2,1/(COUNTIF($L$109:L194,$K$110:$K$307)=0),$K$110:$K$307)","v":{"$error":"#N/A"}},"-",null,null,"","","",null,null,"","","","","","f",50,null,"",{"$f":"IFERROR(LOOKUP(2,1/(COUNTIF(AD$109:AD194,$AC$111:$AC$310)=0),$AC$111:$AC$310),\"\")","v":""}]
[null,null,null,null,null,null,null,null,null,null,"",{"$f":"LOOKUP(2,1/(COUNTIF($L$109:L195,$K$110:$K$307)=0),$K$110:$K$307)","v":{"$error":"#N/A"}},"-",null,null,"","","",null,null,"","","","","","c",50,null,"",{"$f":"IFERROR(LOOKUP(2,1/(COUNTIF(AD$109:AD195,$AC$111:$AC$310)=0),$AC$111:$AC$310),\"\")","v":""}]
[null,null,null,null,null,null,null,null,null,null,"",{"$f":"LOOKUP(2,1/(COUNTIF($L$109:L196,$K$110:$K$307)=0),$K$110:$K$307)","v":{"$error":"#N/A"}},"-",null,null,"","","",null,null,"","","","","","f",51,null,"",{"$f":"IFERROR(LOOKUP(2,1/(COUNTIF(AD$109:AD196,$AC$111:$AC$310)=0),$AC$111:$AC$310),\"\")","v":""}]
[null,null,null,null,null,null,null,null,null,null,"",{"$f":"LOOKUP(2,1/(COUNTIF($L$109:L197,$K$110:$K$307)=0),$K$110:$K$307)","v":{"$error":"#N/A"}},"-",null,null,"","","",null,null,"","","","","","c",51,null,"",{"$f":"IFERROR(LOOKUP(2,1/(COUNTIF(AD$109:AD197,$AC$111:$AC$310)=0),$AC$111:$AC$310),\"\")","v":""}]
[null,null,null,null,null,null,null,null,null,null,"",{"$f":"LOOKUP(2,1/(COUNTIF($L$109:L198,$K$110:$K$307)=0),$K$110:$K$307)","v":{"$error":"#N/A"}},"-",null,null,"","","",null,null,"","","","","","f",52,null,"",{"$f":"IFERROR(LOOKUP(2,1/(COUNTIF(AD$109:AD198,$AC$111:$AC$310)=0),$AC$111:$AC$310),\"\")","v":""}]
[null,null,null,null,null,null,null,null,null,null,"",{"$f":"LOOKUP(2,1/(COUNTIF($L$109:L199,$K$110:$K$307)=0),$K$110:$K$307)","v":{"$error":"#N/A"}},"-",null,null,"","","",null,null,"","","","","","c",52,null,"",{"$f":"IFERROR(LOOKUP(2,1/(COUNTIF(AD$109:AD199,$AC$111:$AC$310)=0),$AC$111:$AC$310),\"\")","v":""}]
[null,null,null,null,null,null,null,null,null,null,"",{"$f":"LOOKUP(2,1/(COUNTIF($L$109:L200,$K$110:$K$307)=0),$K$110:$K$307)","v":{"$error":"#N/A"}},"-",null,null,"","","",null,null,"","","","","","f",53,null,"",{"$f":"IFERROR(LOOKUP(2,1/(COUNTIF(AD$109:AD200,$AC$111:$AC$310)=0),$AC$111:$AC$310),\"\")","v":""}]
[null,null,null,null,null,null,null,null,null,null,"",{"$f":"LOOKUP(2,1/(COUNTIF($L$109:L201,$K$110:$K$307)=0),$K$110:$K$307)","v":{"$error":"#N/A"}},"-",null,null,"","","",null,null,"","","","","","c",53,null,"",{"$f":"IFERROR(LOOKUP(2,1/(COUNTIF(AD$109:AD201,$AC$111:$AC$310)=0),$AC$111:$AC$310),\"\")","v":""}]
[null,null,null,null,null,null,null,null,null,null,"",{"$f":"LOOKUP(2,1/(COUNTIF($L$109:L202,$K$110:$K$307)=0),$K$110:$K$307)","v":{"$error":"#N/A"}},"-",null,null,"","","",null,null,"","","","","","f",54,null,"",{"$f":"IFERROR(LOOKUP(2,1/(COUNTIF(AD$109:AD202,$AC$111:$AC$310)=0),$AC$111:$AC$310),\"\")","v":""}]
[null,null,null,null,null,null,null,null,null,null,"",{"$f":"LOOKUP(2,1/(COUNTIF($L$109:L203,$K$110:$K$307)=0),$K$110:$K$307)","v":{"$error":"#N/A"}},"-",null,null,"","","",null,null,"","","","","","c",54,null,"",{"$f":"IFERROR(LOOKUP(2,1/(COUNTIF(AD$109:AD203,$AC$111:$AC$310)=0),$AC$111:$AC$310),\"\")","v":""}]
[null,null,null,null,null,null,null,null,null,null,"",{"$f":"LOOKUP(2,1/(COUNTIF($L$109:L204,$K$110:$K$307)=0),$K$110:$K$307)","v":{"$error":"#N/A"}},"-",null,null,"","","",null,null,"","","","","","f",55,null,"",{"$f":"IFERROR(LOOKUP(2,1/(COUNTIF(AD$109:AD204,$AC$111:$AC$310)=0),$AC$111:$AC$310),\"\")","v":""}]
[null,null,null,null,null,null,null,null,null,null,{"$f":"IF(ISERROR(K105),\"\",K105)","v":""},{"$f":"LOOKUP(2,1/(COUNTIF($L$109:L205,$K$110:$K$307)=0),$K$110:$K$307)","v":{"$error":"#N/A"}},"-",null,null,"","","",null,null,"","","","","","c",55,null,"",{"$f":"IFERROR(LOOKUP(2,1/(COUNTIF(AD$109:AD205,$AC$111:$AC$310)=0),$AC$111:$AC$310),\"\")","v":""}]
[null,null,null,null,null,null,null,null,null,null,"",{"$f":"LOOKUP(2,1/(COUNTIF($L$109:L206,$K$110:$K$307)=0),$K$110:$K$307)","v":{"$error":"#N/A"}},"-",null,null,{"$f":"IF($Q207<>\"\",INDEX($A$1:$DA$107,$AA207,IF($Z207=\"f\",COLUMN($AQ$7),COLUMN($AV$7))),\"\")","v":""},{"$f":"IFERROR(IF(OR(INDEX($A$1:$DA$107,$AA207,COLUMN($CX$7))=\"\",INDEX($A$1:$DA$107,$AA207,COLUMN($CX$7))=\"b\"),\"\",INDEX($A$1:$DA$107,$AA207,IF(AND(INDEX($A$1:$DA$107,$AA207,COLUMN($F$7))<>\"controls\",$Z207=\"f\"),COLUMN($Q$7),IF(AND(INDEX($A$1:$DA$107,$AA207,COLUMN($F$7))<>\"fixtures\",$Z207=\"c\"),COLUMN($AC$7),\"\")))),\"\")","v":""},{"$f":"IF($Q207<>\"\",INDEX($A$1:$DA$107,$AA207,COLUMN($C$7))&\" \"&INDEX($A$1:$DA$107,$AA207,COLUMN($D$7)),\"\")","v":""},null,null,{"$f":"IF($Q207<>\"\",INDEX($A$1:$DA$107,$AA207,IF($Z207=\"f\",COLUMN($R$7),COLUMN($AD$7))),\"\")","v":""},{"$f":"IF($Q207<>\"\",INDEX($A$1:$DA$107,$AA207,IF($Z207=\"f\",COLUMN($BO$7),COLUMN($BP$7))),\"\")","v":""},{"$f":"IF($Q207<>\"\",INDEX($A$1:$DA$107,$AA207,IF($Z207=\"f\",COLUMN($BL$7),COLUMN($BM$7))),\"\")","v":""},{"$f":"IF($Q207<>\"\",INDEX($A$1:$DA$107,$AA207,IF($Z207=\"f\",COLUMN($AA$7),COLUMN($AI$7))),\"\")","v":""},{"$f":"IF(Q207=\"\",\"\",(V207+W207)-X207)","v":""},"f",56,null,{"$f":"IF(Q207=\"\",\"\",Q207&\" [\"&P207&\" watts]\")","v":""},{"$f":"IFERROR(LOOKUP(2,1/(COUNTIF(AD$109:AD206,$AC$111:$AC$310)=0),$AC$111:$AC$310),\"\")","v":""}]
[null,null,null,null,null,null,null,null,null,null,"",{"$f":"LOOKUP(2,1/(COUNTIF($L$109:L207,$K$110:$K$307)=0),$K$110:$K$307)","v":{"$error":"#N/A"}},"-",null,null,"","","",null,null,"","","","","","c",56,null,"",{"$f":"IFERROR(LOOKUP(2,1/(COUNTIF(AD$109:AD207,$AC$111:$AC$310)=0),$AC$111:$AC$310),\"\")","v":""}]
[null,null,null,null,null,null,null,null,null,null,{"$f":"DA9","v":0},{"$f":"LOOKUP(2,1/(COUNTIF($L$109:L208,$K$110:$K$307)=0),$K$110:$K$307)","v":{"$error":"#N/A"}},"-",null,null,"","","",null,null,"","","","","","f",57,null,"",{"$f":"IFERROR(LOOKUP(2,1/(COUNTIF(AD$109:AD208,$AC$111:$AC$310)=0),$AC$111:$AC$310),\"\")","v":""}]
[null,null,null,null,null,null,null,null,null,null,0,{"$f":"LOOKUP(2,1/(COUNTIF($L$109:L209,$K$110:$K$307)=0),$K$110:$K$307)","v":{"$error":"#N/A"}},"-",null,null,"","","",null,null,"","","","","","c",57,null,"",{"$f":"IFERROR(LOOKUP(2,1/(COUNTIF(AD$109:AD209,$AC$111:$AC$310)=0),$AC$111:$AC$310),\"\")","v":""}]
[null,null,null,null,null,null,null,null,null,null,0,{"$f":"LOOKUP(2,1/(COUNTIF($L$109:L210,$K$110:$K$307)=0),$K$110:$K$307)","v":{"$error":"#N/A"}},"-",null,null,"","","",null,null,"","","","","","f",58,null,"",{"$f":"IFERROR(LOOKUP(2,1/(COUNTIF(AD$109:AD210,$AC$111:$AC$310)=0),$AC$111:$AC$310),\"\")","v":""}]
[null,null,null,null,null,null,null,null,null,null,0,{"$f":"LOOKUP(2,1/(COUNTIF($L$109:L211,$K$110:$K$307)=0),$K$110:$K$307)","v":{"$error":"#N/A"}},"-",null,null,"","","",null,null,"","","","","","c",58,null,"",{"$f":"IFERROR(LOOKUP(2,1/(COUNTIF(AD$109:AD211,$AC$111:$AC$310)=0),$AC$111:$AC$310),\"\")","v":""}]
[null,null,null,null,null,null,null,null,null,null,0,{"$f":"LOOKUP(2,1/(COUNTIF($L$109:L212,$K$110:$K$307)=0),$K$110:$K$307)","v":{"$error":"#N/A"}},"-",null,null,"","","",null,null,"","","","","","f",59,null,"",{"$f":"IFERROR(LOOKUP(2,1/(COUNTIF(AD$109:AD212,$AC$111:$AC$310)=0),$AC$111:$AC$310),\"\")","v":""}]
[null,null,null,null,null,null,null,null,null,null,0,{"$f":"LOOKUP(2,1/(COUNTIF($L$109:L213,$K$110:$K$307)=0),$K$110:$K$307)","v":{"$error":"#N/A"}},"-",null,null,"","","",null,null,"","","","","","c",59,null,"",{"$f":"IFERROR(LOOKUP(2,1/(COUNTIF(AD$109:AD213,$AC$111:$AC$310)=0),$AC$111:$AC$310),\"\")","v":""}]
[null,null,null,null,null,null,null,null,null,null,0,{"$f":"LOOKUP(2,1/(COUNTIF($L$109:L214,$K$110:$K$307)=0),$K$110:$K$307)","v":{"$error":"#N/A"}},"-",null,null,"","","",null,null,"","","","","","f",60,null,"",{"$f":"IFERROR(LOOKUP(2,1/(COUNTIF(AD$109:AD214,$AC$111:$AC$310)=0),$AC$111:$AC$310),\"\")","v":""}]
[null,null,null,null,null,null,null,null,null,null,0,{"$f":"LOOKUP(2,1/(COUNTIF($L$109:L215,$K$110:$K$307)=0),$K$110:$K$307)","v":{"$error":"#N/A"}},"-",null,null,"","","",null,null,"","","","","","c",60,null,"",{"$f":"IFERROR(LOOKUP(2,1/(COUNTIF(AD$109:AD215,$AC$111:$AC$310)=0),$AC$111:$AC$310),\"\")","v":""}]
[null,null,null,null,null,null,null,null,null,null,0,{"$f":"LOOKUP(2,1/(COUNTIF($L$109:L216,$K$110:$K$307)=0),$K$110:$K$307)","v":{"$error":"#N/A"}},"-",null,null,"","","",null,null,"","","","","","f",61,null,"",{"$f":"IFERROR(LOOKUP(2,1/(COUNTIF(AD$109:AD216,$AC$111:$AC$310)=0),$AC$111:$AC$310),\"\")","v":""}]
[null,null,null,null,null,null,null,null,null,null,0,{"$f":"LOOKUP(2,1/(COUNTIF($L$109:L217,$K$110:$K$307)=0),$K$110:$K$307)","v":{"$error":"#N/A"}},"-",null,null,"","","",null,null,"","","","","","c",61,null,"",{"$f":"IFERROR(LOOKUP(2,1/(COUNTIF(AD$109:AD217,$AC$111:$AC$310)=0),$AC$111:$AC$310),\"\")","v":""}]
[null,null,null,null,null,null,null,null,null,null,0,{"$f":"LOOKUP(2,1/(COUNTIF($L$109:L218,$K$110:$K$307)=0),$K$110:$K$307)","v":{"$error":"#N/A"}},"-",null,null,"","","",null,null,"","","","","","f",62,null,"",{"$f":"IFERROR(LOOKUP(2,1/(COUNTIF(AD$109:AD218,$AC$111:$AC$310)=0),$AC$111:$AC$310),\"\")","v":""}]
[null,null,null,null,null,null,null,null,null,null,0,{"$f":"LOOKUP(2,1/(COUNTIF($L$109:L219,$K$110:$K$307)=0),$K$110:$K$307)","v":{"$error":"#N/A"}},"-",null,null,"","","",null,null,"","","","","","c",62,null,"",{"$f":"IFERROR(LOOKUP(2,1/(COUNTIF(AD$109:AD219,$AC$111:$AC$310)=0),$AC$111:$AC$310),\"\")","v":""}]
[null,null,null,null,null,null,null,null,null,null,0,{"$f":"LOOKUP(2,1/(COUNTIF($L$109:L220,$K$110:$K$307)=0),$K$110:$K$307)","v":{"$error":"#N/A"}},"-",null,null,"","","",null,null,"","","","","","f",63,null,"",{"$f":"IFERROR(LOOKUP(2,1/(COUNTIF(AD$109:AD220,$AC$111:$AC$310)=0),$AC$111:$AC$310),\"\")","v":""}]
[null,null,null,null,null,null,null,null,null,null,0,{"$f":"LOOKUP(2,1/(COUNTIF($L$109:L221,$K$110:$K$307)=0),$K$110:$K$307)","v":{"$error":"#N/A"}},"-",null,null,"","","",null,null,"","","","","","c",63,null,"",{"$f":"IFERROR(LOOKUP(2,1/(COUNTIF(AD$109:AD221,$AC$111:$AC$310)=0),$AC$111:$AC$310),\"\")","v":""}]
[null,null,null,null,null,null,null,null,null,null,0,{"$f":"LOOKUP(2,1/(COUNTIF($L$109:L222,$K$110:$K$307)=0),$K$110:$K$307)","v":{"$error":"#N/A"}},"-",null,null,"","","",null,null,"","","","","","f",64,null,"",{"$f":"IFERROR(LOOKUP(2,1/(COUNTIF(AD$109:AD222,$AC$111:$AC$310)=0),$AC$111:$AC$310),\"\")","v":""}]
[null,null,null,null,null,null,null,null,null,null,0,{"$f":"LOOKUP(2,1/(COUNTIF($L$109:L223,$K$110:$K$307)=0),$K$110:$K$307)","v":{"$error":"#N/A"}},"-",null,null,"","","",null,null,"","","","","","c",64,null,"",{"$f":"IFERROR(LOOKUP(2,1/(COUNTIF(AD$109:AD223,$AC$111:$AC$310)=0),$AC$111:$AC$310),\"\")","v":""}]
[null,null,null,null,null,null,null,null,null,null,0,{"$f":"LOOKUP(2,1/(COUNTIF($L$109:L224,$K$110:$K$307)=0),$K$110:$K$307)","v":{"$error":"#N/A"}},"-",null,null,"","","",null,null,"","","","","","f",65,null,"",{"$f":"IFERROR(LOOKUP(2,1/(COUNTIF(AD$109:AD224,$AC$111:$AC$310)=0),$AC$111:$AC$310),\"\")","v":""}]
[null,null,null,null,null,null,null,null,null,null,0,{"$f":"LOOKUP(2,1/(COUNTIF($L$109:L225,$K$110:$K$307)=0),$K$110:$K$307)","v":{"$error":"#N/A"}},"-",null,null,"","","",null,null,"","","","","","c",65,null,"",{"$f":"IFERROR(LOOKUP(2,1/(COUNTIF(AD$109:AD225,$AC$111:$AC$310)=0),$AC$111:$AC$310),\"\")","v":""}]
[null,null,null,null,null,null,null,null,null,null,0,{"$f":"LOOKUP(2,1/(COUNTIF($L$109:L226,$K$110:$K$307)=0),$K$110:$K$307)","v":{"$error":"#N/A"}},"-",null,null,"","","",null,null,"","","","","","f",66,null,"",{"$f":"IFERROR(LOOKUP(2,1/(COUNTIF(AD$109:AD226,$AC$111:$AC$310)=0),$AC$111:$AC$310),\"\")","v":""}]
[null,null,null,null,null,null,null,null,null,null,0,{"$f":"LOOKUP(2,1/(COUNTIF($L$109:L227,$K$110:$K$307)=0),$K$110:$K$307)","v":{"$error":"#N/A"}},"-",null,null,"","","",null,null,"","","","","","c",66,null,"",{"$f":"IFERROR(LOOKUP(2,1/(COUNTIF(AD$109:AD227,$AC$111:$AC$310)=0),$AC$111:$AC$310),\"\")","v":""}]
[null,null,null,null,null,null,null,null,null,null,0,{"$f":"LOOKUP(2,1/(COUNTIF($L$109:L228,$K$110:$K$307)=0),$K$110:$K$307)","v":{"$error":"#N/A"}},"-",null,null,"","","",null,null,"","","","","","f",67,null,"",{"$f":"IFERROR(LOOKUP(2,1/(COUNTIF(AD$109:AD228,$AC$111:$AC$310)=0),$AC$111:$AC$310),\"\")","v":""}]
[null,null,null,null,null,null,null,null,null,null,0,{"$f":"LOOKUP(2,1/(COUNTIF($L$109:L229,$K$110:$K$307)=0),$K$110:$K$307)","v":{"$error":"#N/A"}},"-",null,null,"","","",null,null,"","","","","","c",67,null,"",{"$f":"IFERROR(LOOKUP(2,1/(COUNTIF(AD$109:AD229,$AC$111:$AC$310)=0),$AC$111:$AC$310),\"\")","v":""}]
[null,null,null,null,null,null,null,null,null,null,0,{"$f":"LOOKUP(2,1/(COUNTIF($L$109:L230,$K$110:$K$307)=0),$K$110:$K$307)","v":{"$error":"#N/A"}},"-",null,null,"","","",null,null,"","","","","","f",68,null,"",{"$f":"IFERROR(LOOKUP(2,1/(COUNTIF(AD$109:AD230,$AC$111:$AC$310)=0),$AC$111:$AC$310),\"\")","v":""}]
[null,null,null,null,null,null,null,null,null,null,0,{"$f":"LOOKUP(2,1/(COUNTIF($L$109:L231,$K$110:$K$307)=0),$K$110:$K$307)","v":{"$error":"#N/A"}},"-",null,null,"","","",null,null,"","","","","","c",68,null,"",{"$f":"IFERROR(LOOKUP(2,1/(COUNTIF(AD$109:AD231,$AC$111:$AC$310)=0),$AC$111:$AC$310),\"\")","v":""}]
[null,null,null,null,null,null,null,null,null,null,0,{"$f":"LOOKUP(2,1/(COUNTIF($L$109:L232,$K$110:$K$307)=0),$K$110:$K$307)","v":{"$error":"#N/A"}},"-",null,null,"","","",null,null,"","","","","","f",69,null,"",{"$f":"IFERROR(LOOKUP(2,1/(COUNTIF(AD$109:AD232,$AC$111:$AC$310)=0),$AC$111:$AC$310),\"\")","v":""}]
[null,null,null,null,null,null,null,null,null,null,0,{"$f":"LOOKUP(2,1/(COUNTIF($L$109:L233,$K$110:$K$307)=0),$K$110:$K$307)","v":{"$error":"#N/A"}},"-",null,null,"","","",null,null,"","","","","","c",69,null,"",{"$f":"IFERROR(LOOKUP(2,1/(COUNTIF(AD$109:AD233,$AC$111:$AC$310)=0),$AC$111:$AC$310),\"\")","v":""}]
[null,null,null,null,null,null,null,null,null,null,0,{"$f":"LOOKUP(2,1/(COUNTIF($L$109:L234,$K$110:$K$307)=0),$K$110:$K$307)","v":{"$error":"#N/A"}},"-",null,null,"","","",null,null,"","","","","","f",{"$f":"AA233+1","v":70},null,"",{"$f":"IFERROR(LOOKUP(2,1/(COUNTIF(AD$109:AD234,$AC$111:$AC$310)=0),$AC$111:$AC$310),\"\")","v":""}]
[null,null,null,null,null,null,null,null,null,null,0,{"$f":"LOOKUP(2,1/(COUNTIF($L$109:L235,$K$110:$K$307)=0),$K$110:$K$307)","v":{"$error":"#N/A"}},"-",null,null,"","","",null,null,"","","","","","c",70,null,"",{"$f":"IFERROR(LOOKUP(2,1/(COUNTIF(AD$109:AD235,$AC$111:$AC$310)=0),$AC$111:$AC$310),\"\")","v":""}]
[null,null,null,null,null,null,null,null,null,null,0,{"$f":"LOOKUP(2,1/(COUNTIF($L$109:L236,$K$110:$K$307)=0),$K$110:$K$307)","v":{"$error":"#N/A"}},"-",null,null,"","","",null,null,"","","","","","f",71,null,"",{"$f":"IFERROR(LOOKUP(2,1/(COUNTIF(AD$109:AD236,$AC$111:$AC$310)=0),$AC$111:$AC$310),\"\")","v":""}]
[null,null,null,null,null,null,null,null,null,null,0,{"$f":"LOOKUP(2,1/(COUNTIF($L$109:L237,$K$110:$K$307)=0),$K$110:$K$307)","v":{"$error":"#N/A"}},"-",null,null,"","","",null,null,"","","","","","c",71,null,"",{"$f":"IFERROR(LOOKUP(2,1/(COUNTIF(AD$109:AD237,$AC$111:$AC$310)=0),$AC$111:$AC$310),\"\")","v":""}]
[null,null,null,null,null,null,null,null,null,null,0,{"$f":"LOOKUP(2,1/(COUNTIF($L$109:L238,$K$110:$K$307)=0),$K$110:$K$307)","v":{"$error":"#N/A"}},{"$f":"IF(ISERROR(L239),\"-\",L239)","v":"-"},null,null,{"$f":"IF($Q239<>\"\",INDEX($A$1:$DA$107,$AA239,IF($Z239=\"f\",COLUMN($AQ$7),COLUMN($AV$7))),\"\")","v":""},{"$f":"IFERROR(IF(OR(INDEX($A$1:$DA$107,$AA239,COLUMN($CX$7))=\"\",INDEX($A$1:$DA$107,$AA239,COLUMN($CX$7))=\"b\"),\"\",INDEX($A$1:$DA$107,$AA239,IF(AND(INDEX($A$1:$DA$107,$AA239,COLUMN($F$7))<>\"controls\",$Z239=\"f\"),COLUMN($Q$7),IF(AND(INDEX($A$1:$DA$107,$AA239,COLUMN($F$7))<>\"fixtures\",$Z239=\"c\"),COLUMN($AC$7),\"\")))),\"\")","v":""},{"$f":"IF($Q239<>\"\",INDEX($A$1:$DA$107,$AA239,COLUMN($C$7))&\" \"&INDEX($A$1:$DA$107,$AA239,COLUMN($D$7)),\"\")","v":""},null,null,{"$f":"IF($Q239<>\"\",INDEX($A$1:$DA$107,$AA239,IF($Z239=\"f\",COLUMN($R$7),COLUMN($AD$7))),\"\")","v":""},{"$f":"IF($Q239<>\"\",INDEX($A$1:$DA$107,$AA239,IF($Z239=\"f\",COLUMN($BO$7),COLUMN($BP$7))),\"\")","v":""},{"$f":"IF($Q239<>\"\",INDEX($A$1:$DA$107,$AA239,IF($Z239=\"f\",COLUMN($BL$7),COLUMN($BM$7))),\"\")","v":""},{"$f":"IF($Q239<>\"\",INDEX($A$1:$DA$107,$AA239,IF($Z239=\"f\",COLUMN($AA$7),COLUMN($AI$7))),\"\")","v":""},{"$f":"IF(Q239=\"\",\"\",(V239+W239)-X239)","v":""},"f",72,null,{"$f":"IF(Q239=\"\",\"\",Q239&\" [\"&P239&\" watts]\")","v":""},{"$f":"IFERROR(LOOKUP(2,1/(COUNTIF(AD$109:AD238,$AC$111:$AC$310)=0),$AC$111:$AC$310),\"\")","v":""}]
[null,null,null,null,null,null,null,null,null,null,0,{"$f":"LOOKUP(2,1/(COUNTIF($L$109:L239,$K$110:$K$307)=0),$K$110:$K$307)","v":{"$error":"#N/A"}},"-",null,null,"","","",null,null,"","","","","","c",72,null,"",{"$f":"IFERROR(LOOKUP(2,1/(COUNTIF(AD$109:AD239,$AC$111:$AC$310)=0),$AC$111:$AC$310),\"\")","v":""}]
[null,null,null,null,null,null,null,null,null,null,{"$f":"DA41","v":0},{"$f":"LOOKUP(2,1/(COUNTIF($L$109:L240,$K$110:$K$307)=0),$K$110:$K$307)","v":{"$error":"#N/A"}},"-",null,null,"","","",null,null,"","","","","","f",73,null,"",{"$f":"IFERROR(LOOKUP(2,1/(COUNTIF(AD$109:AD240,$AC$111:$AC$310)=0),$AC$111:$AC$310),\"\")","v":""}]
[null,null,null,null,null,null,null,null,null,null,0,{"$f":"LOOKUP(2,1/(COUNTIF($L$109:L241,$K$110:$K$307)=0),$K$110:$K$307)","v":{"$error":"#N/A"}},"-",null,null,"","","",null,null,"","","","","","c",73,null,"",{"$f":"IFERROR(LOOKUP(2,1/(COUNTIF(AD$109:AD241,$AC$111:$AC$310)=0),$AC$111:$AC$310),\"\")","v":""}]
[null,null,null,null,null,null,null,null,null,null,0,{"$f":"LOOKUP(2,1/(COUNTIF($L$109:L242,$K$110:$K$307)=0),$K$110:$K$307)","v":{"$error":"#N/A"}},"-",null,null,"","","",null,null,"","","","","","f",74,null,"",{"$f":"IFERROR(LOOKUP(2,1/(COUNTIF(AD$109:AD242,$AC$111:$AC$310)=0),$AC$111:$AC$310),\"\")","v":""}]
[null,null,null,null,null,null,null,null,null,null,0,{"$f":"LOOKUP(2,1/(COUNTIF($L$109:L243,$K$110:$K$307)=0),$K$110:$K$307)","v":{"$error":"#N/A"}},"-",null,null,"","","",null,null,"","","","","","c",74,null,"",{"$f":"IFERROR(LOOKUP(2,1/(COUNTIF(AD$109:AD243,$AC$111:$AC$310)=0),$AC$111:$AC$310),\"\")","v":""}]
[null,null,null,null,null,null,null,null,null,null,0,{"$f":"LOOKUP(2,1/(COUNTIF($L$109:L244,$K$110:$K$307)=0),$K$110:$K$307)","v":{"$error":"#N/A"}},"-",null,null,"","","",null,null,"","","","","","f",75,null,"",{"$f":"IFERROR(LOOKUP(2,1/(COUNTIF(AD$109:AD244,$AC$111:$AC$310)=0),$AC$111:$AC$310),\"\")","v":""}]
[null,null,null,null,null,null,null,null,null,null,0,{"$f":"LOOKUP(2,1/(COUNTIF($L$109:L245,$K$110:$K$307)=0),$K$110:$K$307)","v":{"$error":"#N/A"}},"-",null,null,"","","",null,null,"","","","","","c",75,null,"",{"$f":"IFERROR(LOOKUP(2,1/(COUNTIF(AD$109:AD245,$AC$111:$AC$310)=0),$AC$111:$AC$310),\"\")","v":""}]
[null,null,null,null,null,null,null,null,null,null,0,{"$f":"LOOKUP(2,1/(COUNTIF($L$109:L246,$K$110:$K$307)=0),$K$110:$K$307)","v":{"$error":"#N/A"}},"-",null,null,"","","",null,null,"","","","","","f",76,null,"",{"$f":"IFERROR(LOOKUP(2,1/(COUNTIF(AD$109:AD246,$AC$111:$AC$310)=0),$AC$111:$AC$310),\"\")","v":""}]
[null,null,null,null,null,null,null,null,null,null,0,{"$f":"LOOKUP(2,1/(COUNTIF($L$109:L247,$K$110:$K$307)=0),$K$110:$K$307)","v":{"$error":"#N/A"}},"-",null,null,"","","",null,null,"","","","","","c",76,null,"",{"$f":"IFERROR(LOOKUP(2,1/(COUNTIF(AD$109:AD247,$AC$111:$AC$310)=0),$AC$111:$AC$310),\"\")","v":""}]
[null,null,null,null,null,null,null,null,null,null,0,{"$f":"LOOKUP(2,1/(COUNTIF($L$109:L248,$K$110:$K$307)=0),$K$110:$K$307)","v":{"$error":"#N/A"}},"-",null,null,"","","",null,null,"","","","","","f",77,null,"",{"$f":"IFERROR(LOOKUP(2,1/(COUNTIF(AD$109:AD248,$AC$111:$AC$310)=0),$AC$111:$AC$310),\"\")","v":""}]
[null,null,null,null,null,null,null,null,null,null,0,{"$f":"LOOKUP(2,1/(COUNTIF($L$109:L249,$K$110:$K$307)=0),$K$110:$K$307)","v":{"$error":"#N/A"}},"-",null,null,"","","",null,null,"","","","","","c",77,null,"",{"$f":"IFERROR(LOOKUP(2,1/(COUNTIF(AD$109:AD249,$AC$111:$AC$310)=0),$AC$111:$AC$310),\"\")","v":""}]
[null,null,null,null,null,null,null,null,null,null,0,{"$f":"LOOKUP(2,1/(COUNTIF($L$109:L250,$K$110:$K$307)=0),$K$110:$K$307)","v":{"$error":"#N/A"}},"-",null,null,"","","",null,null,"","","","","","f",78,null,"",{"$f":"IFERROR(LOOKUP(2,1/(COUNTIF(AD$109:AD250,$AC$111:$AC$310)=0),$AC$111:$AC$310),\"\")","v":""}]
[null,null,null,null,null,null,null,null,null,null,0,{"$f":"LOOKUP(2,1/(COUNTIF($L$109:L251,$K$110:$K$307)=0),$K$110:$K$307)","v":{"$error":"#N/A"}},"-",null,null,"","","",null,null,"","","","","","c",78,null,"",{"$f":"IFERROR(LOOKUP(2,1/(COUNTIF(AD$109:AD251,$AC$111:$AC$310)=0),$AC$111:$AC$310),\"\")","v":""}]
[null,null,null,null,null,null,null,null,null,null,0,{"$f":"LOOKUP(2,1/(COUNTIF($L$109:L252,$K$110:$K$307)=0),$K$110:$K$307)","v":{"$error":"#N/A"}},"-",null,null,"","","",null,null,"","","","","","f",79,null,"",{"$f":"IFERROR(LOOKUP(2,1/(COUNTIF(AD$109:AD252,$AC$111:$AC$310)=0),$AC$111:$AC$310),\"\")","v":""}]
[null,null,null,null,null,null,null,null,null,null,0,{"$f":"LOOKUP(2,1/(COUNTIF($L$109:L253,$K$110:$K$307)=0),$K$110:$K$307)","v":{"$error":"#N/A"}},"-",null,null,"","","",null,null,"","","","","","c",79,null,"",{"$f":"IFERROR(LOOKUP(2,1/(COUNTIF(AD$109:AD253,$AC$111:$AC$310)=0),$AC$111:$AC$310),\"\")","v":""}]
[null,null,null,null,null,null,null,null,null,null,0,{"$f":"LOOKUP(2,1/(COUNTIF($L$109:L254,$K$110:$K$307)=0),$K$110:$K$307)","v":{"$error":"#N/A"}},"-",null,null,"","","",null,null,"","","","","","f",80,null,"",{"$f":"IFERROR(LOOKUP(2,1/(COUNTIF(AD$109:AD254,$AC$111:$AC$310)=0),$AC$111:$AC$310),\"\")","v":""}]
[null,null,null,null,null,null,null,null,null,null,0,{"$f":"LOOKUP(2,1/(COUNTIF($L$109:L255,$K$110:$K$307)=0),$K$110:$K$307)","v":{"$error":"#N/A"}},"-",null,null,"","","",null,null,"","","","","","c",80,null,"",{"$f":"IFERROR(LOOKUP(2,1/(COUNTIF(AD$109:AD255,$AC$111:$AC$310)=0),$AC$111:$AC$310),\"\")","v":""}]
[null,null,null,null,null,null,null,null,null,null,0,{"$f":"LOOKUP(2,1/(COUNTIF($L$109:L256,$K$110:$K$307)=0),$K$110:$K$307)","v":{"$error":"#N/A"}},"-",null,null,"","","",null,null,"","","","","","f",81,null,"",{"$f":"IFERROR(LOOKUP(2,1/(COUNTIF(AD$109:AD256,$AC$111:$AC$310)=0),$AC$111:$AC$310),\"\")","v":""}]
[null,null,null,null,null,null,null,null,null,null,0,{"$f":"LOOKUP(2,1/(COUNTIF($L$109:L257,$K$110:$K$307)=0),$K$110:$K$307)","v":{"$error":"#N/A"}},"-",null,null,"","","",null,null,"","","","","","c",81,null,"",{"$f":"IFERROR(LOOKUP(2,1/(COUNTIF(AD$109:AD257,$AC$111:$AC$310)=0),$AC$111:$AC$310),\"\")","v":""}]
[null,null,null,null,null,null,null,null,null,null,0,{"$f":"LOOKUP(2,1/(COUNTIF($L$109:L258,$K$110:$K$307)=0),$K$110:$K$307)","v":{"$error":"#N/A"}},"-",null,null,"","","",null,null,"","","","","","f",82,null,"",{"$f":"IFERROR(LOOKUP(2,1/(COUNTIF(AD$109:AD258,$AC$111:$AC$310)=0),$AC$111:$AC$310),\"\")","v":""}]
[null,null,null,null,null,null,null,null,null,null,0,{"$f":"LOOKUP(2,1/(COUNTIF($L$109:L259,$K$110:$K$307)=0),$K$110:$K$307)","v":{"$error":"#N/A"}},"-",null,null,"","","",null,null,"","","","","","c",82,null,"",{"$f":"IFERROR(LOOKUP(2,1/(COUNTIF(AD$109:AD259,$AC$111:$AC$310)=0),$AC$111:$AC$310),\"\")","v":""}]
[null,null,null,null,null,null,null,null,null,null,0,{"$f":"LOOKUP(2,1/(COUNTIF($L$109:L260,$K$110:$K$307)=0),$K$110:$K$307)","v":{"$error":"#N/A"}},"-",null,null,"","","",null,null,"","","","","","f",83,null,"",{"$f":"IFERROR(LOOKUP(2,1/(COUNTIF(AD$109:AD260,$AC$111:$AC$310)=0),$AC$111:$AC$310),\"\")","v":""}]
[null,null,null,null,null,null,null,null,null,null,0,{"$f":"LOOKUP(2,1/(COUNTIF($L$109:L261,$K$110:$K$307)=0),$K$110:$K$307)","v":{"$error":"#N/A"}},"-",null,null,"","","",null,null,"","","","","","c",83,null,"",{"$f":"IFERROR(LOOKUP(2,1/(COUNTIF(AD$109:AD261,$AC$111:$AC$310)=0),$AC$111:$AC$310),\"\")","v":""}]
[null,null,null,null,null,null,null,null,null,null,0,{"$f":"LOOKUP(2,1/(COUNTIF($L$109:L262,$K$110:$K$307)=0),$K$110:$K$307)","v":{"$error":"#N/A"}},"-",null,null,"","","",null,null,"","","","","","f",84,null,"",{"$f":"IFERROR(LOOKUP(2,1/(COUNTIF(AD$109:AD262,$AC$111:$AC$310)=0),$AC$111:$AC$310),\"\")","v":""}]
[null,null,null,null,null,null,null,null,null,null,0,{"$f":"LOOKUP(2,1/(COUNTIF($L$109:L263,$K$110:$K$307)=0),$K$110:$K$307)","v":{"$error":"#N/A"}},"-",null,null,"","","",null,null,"","","","","","c",84,null,"",{"$f":"IFERROR(LOOKUP(2,1/(COUNTIF(AD$109:AD263,$AC$111:$AC$310)=0),$AC$111:$AC$310),\"\")","v":""}]
[null,null,null,null,null,null,null,null,null,null,0,{"$f":"LOOKUP(2,1/(COUNTIF($L$109:L264,$K$110:$K$307)=0),$K$110:$K$307)","v":{"$error":"#N/A"}},"-",null,null,"","","",null,null,"","","","","","f",85,null,"",{"$f":"IFERROR(LOOKUP(2,1/(COUNTIF(AD$109:AD264,$AC$111:$AC$310)=0),$AC$111:$AC$310),\"\")","v":""}]
[null,null,null,null,null,null,null,null,null,null,0,{"$f":"LOOKUP(2,1/(COUNTIF($L$109:L265,$K$110:$K$307)=0),$K$110:$K$307)","v":{"$error":"#N/A"}},"-",null,null,"","","",null,null,"","","","","","c",85,null,"",{"$f":"IFERROR(LOOKUP(2,1/(COUNTIF(AD$109:AD265,$AC$111:$AC$310)=0),$AC$111:$AC$310),\"\")","v":""}]
[null,null,null,null,null,null,null,null,null,null,0,{"$f":"LOOKUP(2,1/(COUNTIF($L$109:L266,$K$110:$K$307)=0),$K$110:$K$307)","v":{"$error":"#N/A"}},"-",null,null,"","","",null,null,"","","","","","f",86,null,"",{"$f":"IFERROR(LOOKUP(2,1/(COUNTIF(AD$109:AD266,$AC$111:$AC$310)=0),$AC$111:$AC$310),\"\")","v":""}]
[null,null,null,null,null,null,null,null,null,null,0,{"$f":"LOOKUP(2,1/(COUNTIF($L$109:L267,$K$110:$K$307)=0),$K$110:$K$307)","v":{"$error":"#N/A"}},"-",null,null,"","","",null,null,"","","","","","c",86,null,"",{"$f":"IFERROR(LOOKUP(2,1/(COUNTIF(AD$109:AD267,$AC$111:$AC$310)=0),$AC$111:$AC$310),\"\")","v":""}]
[null,null,null,null,null,null,null,null,null,null,0,{"$f":"LOOKUP(2,1/(COUNTIF($L$109:L268,$K$110:$K$307)=0),$K$110:$K$307)","v":{"$error":"#N/A"}},"-",null,null,"","","",null,null,"","","","","","f",87,null,"",{"$f":"IFERROR(LOOKUP(2,1/(COUNTIF(AD$109:AD268,$AC$111:$AC$310)=0),$AC$111:$AC$310),\"\")","v":""}]
[null,null,null,null,null,null,null,null,null,null,0,{"$f":"LOOKUP(2,1/(COUNTIF($L$109:L269,$K$110:$K$307)=0),$K$110:$K$307)","v":{"$error":"#N/A"}},"-",null,null,"","","",null,null,"","","","","","c",87,null,"",{"$f":"IFERROR(LOOKUP(2,1/(COUNTIF(AD$109:AD269,$AC$111:$AC$310)=0),$AC$111:$AC$310),\"\")","v":""}]
[null,null,null,null,null,null,null,null,null,null,0,{"$f":"LOOKUP(2,1/(COUNTIF($L$109:L270,$K$110:$K$307)=0),$K$110:$K$307)","v":{"$error":"#N/A"}},"-",null,null,{"$f":"IF($Q271<>\"\",INDEX($A$1:$DA$107,$AA271,IF($Z271=\"f\",COLUMN($AQ$7),COLUMN($AV$7))),\"\")","v":""},{"$f":"IFERROR(IF(OR(INDEX($A$1:$DA$107,$AA271,COLUMN($CX$7))=\"\",INDEX($A$1:$DA$107,$AA271,COLUMN($CX$7))=\"b\"),\"\",INDEX($A$1:$DA$107,$AA271,IF(AND(INDEX($A$1:$DA$107,$AA271,COLUMN($F$7))<>\"controls\",$Z271=\"f\"),COLUMN($Q$7),IF(AND(INDEX($A$1:$DA$107,$AA271,COLUMN($F$7))<>\"fixtures\",$Z271=\"c\"),COLUMN($AC$7),\"\")))),\"\")","v":""},{"$f":"IF($Q271<>\"\",INDEX($A$1:$DA$107,$AA271,COLUMN($C$7))&\" \"&INDEX($A$1:$DA$107,$AA271,COLUMN($D$7)),\"\")","v":""},null,null,{"$f":"IF($Q271<>\"\",INDEX($A$1:$DA$107,$AA271,IF($Z271=\"f\",COLUMN($R$7),COLUMN($AD$7))),\"\")","v":""},{"$f":"IF($Q271<>\"\",INDEX($A$1:$DA$107,$AA271,IF($Z271=\"f\",COLUMN($BO$7),COLUMN($BP$7))),\"\")","v":""},{"$f":"IF($Q271<>\"\",INDEX($A$1:$DA$107,$AA271,IF($Z271=\"f\",COLUMN($BL$7),COLUMN($BM$7))),\"\")","v":""},{"$f":"IF($Q271<>\"\",INDEX($A$1:$DA$107,$AA271,IF($Z271=\"f\",COLUMN($AA$7),COLUMN($AI$7))),\"\")","v":""},{"$f":"IF(Q271=\"\",\"\",(V271+W271)-X271)","v":""},"f",88,null,{"$f":"IF(Q271=\"\",\"\",Q271&\" [\"&P271&\" watts]\")","v":""},{"$f":"IFERROR(LOOKUP(2,1/(COUNTIF(AD$109:AD270,$AC$111:$AC$310)=0),$AC$111:$AC$310),\"\")","v":""}]
[null,null,null,null,null,null,null,null,null,null,0,{"$f":"LOOKUP(2,1/(COUNTIF($L$109:L271,$K$110:$K$307)=0),$K$110:$K$307)","v":{"$error":"#N/A"}},"-",null,null,"","","",null,null,"","","","","","c",88,null,"",{"$f":"IFERROR(LOOKUP(2,1/(COUNTIF(AD$109:AD271,$AC$111:$AC$310)=0),$AC$111:$AC$310),\"\")","v":""}]
[null,null,null,null,null,null,null,null,null,null,{"$f":"DA73","v":0},{"$f":"LOOKUP(2,1/(COUNTIF($L$109:L272,$K$110:$K$307)=0),$K$110:$K$307)","v":{"$error":"#N/A"}},"-",null,null,"","","",null,null,"","","","","","f",89,null,"",{"$f":"IFERROR(LOOKUP(2,1/(COUNTIF(AD$109:AD272,$AC$111:$AC$310)=0),$AC$111:$AC$310),\"\")","v":""}]
[null,null,null,null,null,null,null,null,null,null,0,null,null,null,null,"","","",null,null,"","","","","","c",89,null,"",{"$f":"IFERROR(LOOKUP(2,1/(COUNTIF(AD$109:AD273,$AC$111:$AC$310)=0),$AC$111:$AC$310),\"\")","v":""}]
[null,null,null,null,null,null,null,null,null,null,0,null,null,null,null,"","","",null,null,"","","","","","f",90,null,"",{"$f":"IFERROR(LOOKUP(2,1/(COUNTIF(AD$109:AD274,$AC$111:$AC$310)=0),$AC$111:$AC$310),\"\")","v":""}]
[null,null,null,null,null,null,null,null,null,null,0,null,null,null,null,"","","",null,null,"","","","","","c",90,null,"",{"$f":"IFERROR(LOOKUP(2,1/(COUNTIF(AD$109:AD275,$AC$111:$AC$310)=0),$AC$111:$AC$310),\"\")","v":""}]
[null,null,null,null,null,null,null,null,null,null,0,null,null,null,null,"","","",null,null,"","","","","","f",91,null,"",{"$f":"IFERROR(LOOKUP(2,1/(COUNTIF(AD$109:AD276,$AC$111:$AC$310)=0),$AC$111:$AC$310),\"\")","v":""}]
[null,null,null,null,null,null,null,null,null,null,0,null,null,null,null,"","","",null,null,"","","","","","c",91,null,"",{"$f":"IFERROR(LOOKUP(2,1/(COUNTIF(AD$109:AD277,$AC$111:$AC$310)=0),$AC$111:$AC$310),\"\")","v":""}]
[null,null,null,null,null,null,null,null,null,null,0,null,null,null,null,"","","",null,null,"","","","","","f",92,null,"",{"$f":"IFERROR(LOOKUP(2,1/(COUNTIF(AD$109:AD278,$AC$111:$AC$310)=0),$AC$111:$AC$310),\"\")","v":""}]
[null,null,null,null,null,null,null,null,null,null,0,null,null,null,null,"","","",null,null,"","","","","","c",92,null,"",{"$f":"IFERROR(LOOKUP(2,1/(COUNTIF(AD$109:AD279,$AC$111:$AC$310)=0),$AC$111:$AC$310),\"\")","v":""}]
[null,null,null,null,null,null,null,null,null,null,0,null,null,null,null,"","","",null,null,"","","","","","f",93,null,"",{"$f":"IFERROR(LOOKUP(2,1/(COUNTIF(AD$109:AD280,$AC$111:$AC$310)=0),$AC$111:$AC$310),\"\")","v":""}]
[null,null,null,null,null,null,null,null,null,null,0,null,null,null,null,"","","",null,null,"","","","","","c",93,null,"",{"$f":"IFERROR(LOOKUP(2,1/(COUNTIF(AD$109:AD281,$AC$111:$AC$310)=0),$AC$111:$AC$310),\"\")","v":""}]
[null,null,null,null,null,null,null,null,null,null,0,null,null,null,null,"","","",null,null,"","","","","","f",94,null,"",{"$f":"IFERROR(LOOKUP(2,1/(COUNTIF(AD$109:AD282,$AC$111:$AC$310)=0),$AC$111:$AC$310),\"\")","v":""}]
[null,null,null,null,null,null,null,null,null,null,0,null,null,null,null,"","","",null,null,"","","","","","c",94,null,"",{"$f":"IFERROR(LOOKUP(2,1/(COUNTIF(AD$109:AD283,$AC$111:$AC$310)=0),$AC$111:$AC$310),\"\")","v":""}]
[null,null,null,null,null,null,null,null,null,null,0,null,null,null,null,"","","",null,null,"","","","","","f",95,null,"",{"$f":"IFERROR(LOOKUP(2,1/(COUNTIF(AD$109:AD284,$AC$111:$AC$310)=0),$AC$111:$AC$310),\"\")","v":""}]
[null,null,null,null,null,null,null,null,null,null,0,null,null,null,null,"","","",null,null,"","","","","","c",95,null,"",{"$f":"IFERROR(LOOKUP(2,1/(COUNTIF(AD$109:AD285,$AC$111:$AC$310)=0),$AC$111:$AC$310),\"\")","v":""}]
[null,null,null,null,null,null,null,null,null,null,0,null,null,null,null,"","","",null,null,"","","","","","f",96,null,"",{"$f":"IFERROR(LOOKUP(2,1/(COUNTIF(AD$109:AD286,$AC$111:$AC$310)=0),$AC$111:$AC$310),\"\")","v":""}]
[null,null,null,null,null,null,null,null,null,null,0,null,null,null,null,"","","",null,null,"","","","","","c",96,null,"",{"$f":"IFERROR(LOOKUP(2,1/(COUNTIF(AD$109:AD287,$AC$111:$AC$310)=0),$AC$111:$AC$310),\"\")","v":""}]
[null,null,null,null,null,null,null,null,null,null,0,null,null,null,null,"","","",null,null,"","","","","","f",97,null,"",{"$f":"IFERROR(LOOKUP(2,1/(COUNTIF(AD$109:AD288,$AC$111:$AC$310)=0),$AC$111:$AC$310),\"\")","v":""}]
[null,null,null,null,null,null,null,null,null,null,0,null,null,null,null,"","","",null,null,"","","","","","c",97,null,"",{"$f":"IFERROR(LOOKUP(2,1/(COUNTIF(AD$109:AD289,$AC$111:$AC$310)=0),$AC$111:$AC$310),\"\")","v":""}]
[null,null,null,null,null,null,null,null,null,null,0,null,null,null,null,"","","",null,null,"","","","","","f",98,null,"",{"$f":"IFERROR(LOOKUP(2,1/(COUNTIF(AD$109:AD290,$AC$111:$AC$310)=0),$AC$111:$AC$310),\"\")","v":""}]
[null,null,null,null,null,null,null,null,null,null,0,null,null,null,null,"","","",null,null,"","","","","","c",98,null,"",{"$f":"IFERROR(LOOKUP(2,1/(COUNTIF(AD$109:AD291,$AC$111:$AC$310)=0),$AC$111:$AC$310),\"\")","v":""}]
[null,null,null,null,null,null,null,null,null,null,0,null,null,null,null,"","","",null,null,"","","","","","f",99,null,"",{"$f":"IFERROR(LOOKUP(2,1/(COUNTIF(AD$109:AD292,$AC$111:$AC$310)=0),$AC$111:$AC$310),\"\")","v":""}]
[null,null,null,null,null,null,null,null,null,null,0,null,null,null,null,"","","",null,null,"","","","","","c",99,null,"",{"$f":"IFERROR(LOOKUP(2,1/(COUNTIF(AD$109:AD293,$AC$111:$AC$310)=0),$AC$111:$AC$310),\"\")","v":""}]
[null,null,null,null,null,null,null,null,null,null,0,null,null,null,null,"","","",null,null,"","","","","","f",100,null,"",{"$f":"IFERROR(LOOKUP(2,1/(COUNTIF(AD$109:AD294,$AC$111:$AC$310)=0),$AC$111:$AC$310),\"\")","v":""}]
[null,null,null,null,null,null,null,null,null,null,0,null,null,null,null,"","","",null,null,"","","","","","c",100,null,"",{"$f":"IFERROR(LOOKUP(2,1/(COUNTIF(AD$109:AD295,$AC$111:$AC$310)=0),$AC$111:$AC$310),\"\")","v":""}]
[null,null,null,null,null,null,null,null,null,null,0,null,null,null,null,"","","",null,null,"","","","","","f",101,null,"",{"$f":"IFERROR(LOOKUP(2,1/(COUNTIF(AD$109:AD296,$AC$111:$AC$310)=0),$AC$111:$AC$310),\"\")","v":""}]
[null,null,null,null,null,null,null,null,null,null,0,null,null,null,null,"","","",null,null,"","","","","","c",101,null,"",{"$f":"IFERROR(LOOKUP(2,1/(COUNTIF(AD$109:AD297,$AC$111:$AC$310)=0),$AC$111:$AC$310),\"\")","v":""}]
[null,null,null,null,null,null,null,null,null,null,0,null,null,null,null,"","","",null,null,"","","","","","f",{"$f":"AA297+1","v":102},null,"",{"$f":"IFERROR(LOOKUP(2,1/(COUNTIF(AD$109:AD298,$AC$111:$AC$310)=0),$AC$111:$AC$310),\"\")","v":""}]
[null,null,null,null,null,null,null,null,null,null,0,null,null,null,null,"","","",null,null,"","","","","","c",102,null,"",{"$f":"IFERROR(LOOKUP(2,1/(COUNTIF(AD$109:AD299,$AC$111:$AC$310)=0),$AC$111:$AC$310),\"\")","v":""}]
[null,null,null,null,null,null,null,null,null,null,0,null,null,null,null,"","","",null,null,"","","","","","f",103,null,"",{"$f":"IFERROR(LOOKUP(2,1/(COUNTIF(AD$109:AD300,$AC$111:$AC$310)=0),$AC$111:$AC$310),\"\")","v":""}]
[null,null,null,null,null,null,null,null,null,null,0,null,null,null,null,"","","",null,null,"","","","","","c",103,null,"",{"$f":"IFERROR(LOOKUP(2,1/(COUNTIF(AD$109:AD301,$AC$111:$AC$310)=0),$AC$111:$AC$310),\"\")","v":""}]
[null,null,null,null,null,null,null,null,null,null,0,null,null,null,null,{"$f":"IF($Q303<>\"\",INDEX($A$1:$DA$107,$AA303,IF($Z303=\"f\",COLUMN($AQ$7),COLUMN($AV$7))),\"\")","v":""},{"$f":"IFERROR(IF(OR(INDEX($A$1:$DA$107,$AA303,COLUMN($CX$7))=\"\",INDEX($A$1:$DA$107,$AA303,COLUMN($CX$7))=\"b\"),\"\",INDEX($A$1:$DA$107,$AA303,IF(AND(INDEX($A$1:$DA$107,$AA303,COLUMN($F$7))<>\"controls\",$Z303=\"f\"),COLUMN($Q$7),IF(AND(INDEX($A$1:$DA$107,$AA303,COLUMN($F$7))<>\"fixtures\",$Z303=\"c\"),COLUMN($AC$7),\"\")))),\"\")","v":""},{"$f":"IF($Q303<>\"\",INDEX($A$1:$DA$107,$AA303,COLUMN($C$7))&\" \"&INDEX($A$1:$DA$107,$AA303,COLUMN($D$7)),\"\")","v":""},null,null,{"$f":"IF($Q303<>\"\",INDEX($A$1:$DA$107,$AA303,IF($Z303=\"f\",COLUMN($R$7),COLUMN($AD$7))),\"\")","v":""},{"$f":"IF($Q303<>\"\",INDEX($A$1:$DA$107,$AA303,IF($Z303=\"f\",COLUMN($BO$7),COLUMN($BP$7))),\"\")","v":""},{"$f":"IF($Q303<>\"\",INDEX($A$1:$DA$107,$AA303,IF($Z303=\"f\",COLUMN($BL$7),COLUMN($BM$7))),\"\")","v":""},{"$f":"IF($Q303<>\"\",INDEX($A$1:$DA$107,$AA303,IF($Z303=\"f\",COLUMN($AA$7),COLUMN($AI$7))),\"\")","v":""},{"$f":"IF(Q303=\"\",\"\",(V303+W303)-X303)","v":""},"f",104,null,{"$f":"IF(Q303=\"\",\"\",Q303&\" [\"&P303&\" watts]\")","v":""},{"$f":"IFERROR(LOOKUP(2,1/(COUNTIF(AD$109:AD302,$AC$111:$AC$310)=0),$AC$111:$AC$310),\"\")","v":""}]
[null,null,null,null,null,null,null,null,null,null,0,null,null,null,null,"","","",null,null,"","","","","","c",104,null,"",{"$f":"IFERROR(LOOKUP(2,1/(COUNTIF(AD$109:AD303,$AC$111:$AC$310)=0),$AC$111:$AC$310),\"\")","v":""}]
[null,null,null,null,null,null,null,null,null,null,{"$f":"DA105","v":0},null,null,null,null,"","","",null,null,"","","","","","f",105,null,"",{"$f":"IFERROR(LOOKUP(2,1/(COUNTIF(AD$109:AD304,$AC$111:$AC$310)=0),$AC$111:$AC$310),\"\")","v":""}]
[null,null,null,null,null,null,null,null,null,null,0,null,null,null,null,"","","",null,null,"","","","","","c",105,null,"",{"$f":"IFERROR(LOOKUP(2,1/(COUNTIF(AD$109:AD305,$AC$111:$AC$310)=0),$AC$111:$AC$310),\"\")","v":""}]
[null,null,null,null,null,null,null,null,null,null,0,null,null,null,null,"","","",null,null,"","","","","","f",{"$f":"AA305+1","v":106},null,"",{"$f":"IFERROR(LOOKUP(2,1/(COUNTIF(AD$109:AD306,$AC$111:$AC$310)=0),$AC$111:$AC$310),\"\")","v":""}]
[null,null,null,null,null,null,null,null,null,null,null,null,null,null,null,"","","",null,null,"","","","","","c",{"$f":"AA306+1","v":106},null,"",{"$f":"IFERROR(LOOKUP(2,1/(COUNTIF(AD$109:AD307,$AC$111:$AC$310)=0),$AC$111:$AC$310),\"\")","v":""}]
[null,null,null,null,null,null,null,null,null,null,null,null,null,null,null,"","","",null,null,"","","","","","f",{"$f":"AA307+1","v":107},null,"",{"$f":"IFERROR(LOOKUP(2,1/(COUNTIF(AD$109:AD308,$AC$111:$AC$310)=0),$AC$111:$AC$310),\"\")","v":""}]
[null,null,null,null,null,null,null,null,null,null,null,null,null,null,null,"","","",null,null,"","","","","","c",107,null,"",{"$f":"IFERROR(LOOKUP(2,1/(COUNTIF(AD$109:AD309,$AC$111:$AC$310)=0),$AC$111:$AC$310),\"\")","v":""}]

{"sheet":"Ancillary Costs","index":3,"n_rows":110,"n_cols":168,"rows_kept":110,"cut":false,"hidden":false,"merged":[]}
[]
[null,null,{"$f":"'Project Information'!$B$2","v":"Cost-effective Lighting Investment Calculator (CLIC) CIPI FON-022-2026"}]
[]
[]
[null,"Measure-Level Ancillary Costs",null,null,null,null,null,null,null,null,null,null,null,null,"Applicable Locations"]
[]
[null,"Cost Description","Cost Category","Measure or Non-Measure Cost","Description","Per Measure or Total?","Measure Type (Interior, Exterior, Refrigerated, Control)","Proposed Fixture/Control Category","Proposed Fixture/Control Description","Cost","Quantity or Hours ","Total Cost","Total Allocated","Allocation Factor",{"$f":"IF('Project Information'!J$9<>\"\",'Project Information'!J$9,\"\")","v":" "},{"$f":"IF('Project Information'!K$9<>\"\",'Project Information'!K$9,\"\")","v":" "},{"$f":"IF('Project Information'!L$9<>\"\",'Project Information'!L$9,\"\")","v":" "},{"$f":"IF('Project Information'!M$9<>\"\",'Project Information'!M$9,\"\")","v":" "},{"$f":"IF('Project Information'!N$9<>\"\",'Project Information'!N$9,\"\")","v":" "},{"$f":"IF('Project Information'!O$9<>\"\",'Project Information'!O$9,\"\")","v":" "},{"$f":"IF('Project Information'!P$9<>\"\",'Project Information'!P$9,\"\")","v":" "},{"$f":"IF('Project Information'!Q$9<>\"\",'Project Information'!Q$9,\"\")","v":" "},{"$f":"IF('Project Information'!R$9<>\"\",'Project Information'!R$9,\"\")","v":" "},{"$f":"IF('Project Information'!S$9<>\"\",'Project Information'!S$9,\"\")","v":" "},{"$f":"IF('Project Information'!T$9<>\"\",'Project Information'!T$9,\"\")","v":" "},{"$f":"IF('Project Information'!U$9<>\"\",'Project Information'!U$9,\"\")","v":" "},{"$f":"IF('Project Information'!V$9<>\"\",'Project Information'!V$9,\"\")","v":" "},{"$f":"IF('Project Information'!W$9<>\"\",'Project Information'!W$9,\"\")","v":" "},{"$f":"IF('Project Information'!X$9<>\"\",'Project Information'!X$9,\"\")","v":" "},{"$f":"IF('Project Information'!Y$9<>\"\",'Project Information'!Y$9,\"\")","v":" "},{"$f":"IF('Project Information'!Z$9<>\"\",'Project Information'!Z$9,\"\")","v":" "},{"$f":"IF('Project Information'!AA$9<>\"\",'Project Information'!AA$9,\"\")","v":" "},{"$f":"IF('Project Information'!AB$9<>\"\",'Project Information'!AB$9,\"\")","v":" "},{"$f":"IF('Project Information'!AC$9<>\"\",'Project Information'!AC$9,\"\")","v":" "},{"$f":"IF('Project Information'!AD$9<>\"\",'Project Information'!AD$9,\"\")","v":" "},{"$f":"IF('Project Information'!AE$9<>\"\",'Project Information'!AE$9,\"\")","v":" "},{"$f":"IF('Project Information'!AF$9<>\"\",'Project Information'!AF$9,\"\")","v":" "},{"$f":"IF('Project Information'!AG$9<>\"\",'Project Information'!AG$9,\"\")","v":" "},{"$f":"IF('Project Information'!AH$9<>\"\",'Project Information'!AH$9,\"\")","v":" "},{"$f":"IF('Project Information'!AI$9<>\"\",'Project Information'!AI$9,\"\")","v":" "},{"$f":"IF('Project Information'!AJ$9<>\"\",'Project Information'!AJ$9,\"\")","v":" "},{"$f":"IF('Project Information'!AK$9<>\"\",'Project Information'!AK$9,\"\")","v":" "},{"$f":"IF('Project Information'!AL$9<>\"\",'Project Information'!AL$9,\"\")","v":" "},{"$f":"IF('Project Information'!AM$9<>\"\",'Project Information'!AM$9,\"\")","v":" "},{"$f":"IF('Project Information'!AN$9<>\"\",'Project Information'!AN$9,\"\")","v":" "},{"$f":"IF('Project Information'!AO$9<>\"\",'Project Information'!AO$9,\"\")","v":" "},{"$f":"IF('Project Information'!AP$9<>\"\",'Project Information'!AP$9,\"\")","v":" "},{"$f":"IF('Project Information'!AQ$9<>\"\",'Project Information'!AQ$9,\"\")","v":" "},{"$f":"IF('Project Information'!AR$9<>\"\",'Project Information'!AR$9,\"\")","v":" "},{"$f":"IF('Project Information'!AS$9<>\"\",'Project Information'!AS$9,\"\")","v":" "},{"$f":"IF('Project Information'!AT$9<>\"\",'Project Information'!AT$9,\"\")","v":" "},{"$f":"IF('Project Information'!AU$9<>\"\",'Project Information'!AU$9,\"\")","v":" "},{"$f":"IF('Project Information'!AV$9<>\"\",'Project Information'!AV$9,\"\")","v":" "},{"$f":"IF('Project Information'!AW$9<>\"\",'Project Information'!AW$9,\"\")","v":" "},{"$f":"IF('Project Information'!AX$9<>\"\",'Project Information'!AX$9,\"\")","v":" "},{"$f":"IF('Project Information'!AY$9<>\"\",'Project Information'!AY$9,\"\")","v":" "},{"$f":"IF('Project Information'!AZ$9<>\"\",'Project Information'!AZ$9,\"\")","v":" "},{"$f":"IF('Project Information'!BA$9<>\"\",'Project Information'!BA$9,\"\")","v":" "},{"$f":"IF('Project Information'!BB$9<>\"\",'Project Information'!BB$9,\"\")","v":" "},{"$f":"IF('Project Information'!BC$9<>\"\",'Project Information'!BC$9,\"\")","v":" "},{"$f":"IF('Project Information'!BD$9<>\"\",'Project Information'!BD$9,\"\")","v":" "},{"$f":"IF('Project Information'!BE$9<>\"\",'Project Information'!BE$9,\"\")","v":" "},{"$f":"IF('Project Information'!BF$9<>\"\",'Project Information'!BF$9,\"\")","v":" "},{"$f":"IF('Project Information'!BG$9<>\"\",'Project Information'!BG$9,\"\")","v":" "},null,{"$f":"IF('Project Information'!J$9<>\"\",'Project Information'!J$9,\"\")","v":" "},{"$f":"IF('Project Information'!K$9<>\"\",'Project Information'!K$9,\"\")","v":" "},{"$f":"IF('Project Information'!L$9<>\"\",'Project Information'!L$9,\"\")","v":" "},{"$f":"IF('Project Information'!M$9<>\"\",'Project Information'!M$9,\"\")","v":" "},{"$f":"IF('Project Information'!N$9<>\"\",'Project Information'!N$9,\"\")","v":" "},{"$f":"IF('Project Information'!O$9<>\"\",'Project Information'!O$9,\"\")","v":" "},{"$f":"IF('Project Information'!P$9<>\"\",'Project Information'!P$9,\"\")","v":" "},{"$f":"IF('Project Information'!Q$9<>\"\",'Project Information'!Q$9,\"\")","v":" "},{"$f":"IF('Project Information'!R$9<>\"\",'Project Information'!R$9,\"\")","v":" "},{"$f":"IF('Project Information'!S$9<>\"\",'Project Information'!S$9,\"\")","v":" "},{"$f":"IF('Project Information'!T$9<>\"\",'Project Information'!T$9,\"\")","v":" "},{"$f":"IF('Project Information'!U$9<>\"\",'Project Information'!U$9,\"\")","v":" "},{"$f":"IF('Project Information'!V$9<>\"\",'Project Information'!V$9,\"\")","v":" "},{"$f":"IF('Project Information'!W$9<>\"\",'Project Information'!W$9,\"\")","v":" "},{"$f":"IF('Project Information'!X$9<>\"\",'Project Information'!X$9,\"\")","v":" "},{"$f":"IF('Project Information'!Y$9<>\"\",'Project Information'!Y$9,\"\")","v":" "},{"$f":"IF('Project Information'!Z$9<>\"\",'Project Information'!Z$9,\"\")","v":" "},{"$f":"IF('Project Information'!AA$9<>\"\",'Project Information'!AA$9,\"\")","v":" "},{"$f":"IF('Project Information'!AB$9<>\"\",'Project Information'!AB$9,\"\")","v":" "},{"$f":"IF('Project Information'!AC$9<>\"\",'Project Information'!AC$9,\"\")","v":" "},{"$f":"IF('Project Information'!AD$9<>\"\",'Project Information'!AD$9,\"\")","v":" "},{"$f":"IF('Project Information'!AE$9<>\"\",'Project Information'!AE$9,\"\")","v":" "},{"$f":"IF('Project Information'!AF$9<>\"\",'Project Information'!AF$9,\"\")","v":" "},{"$f":"IF('Project Information'!AG$9<>\"\",'Project Information'!AG$9,\"\")","v":" "},{"$f":"IF('Project Information'!AH$9<>\"\",'Project Information'!AH$9,\"\")","v":" "},{"$f":"IF('Project Information'!AI$9<>\"\",'Project Information'!AI$9,\"\")","v":" "},{"$f":"IF('Project Information'!AJ$9<>\"\",'Project Information'!AJ$9,\"\")","v":" "},{"$f":"IF('Project Information'!AK$9<>\"\",'Project Information'!AK$9,\"\")","v":" "},{"$f":"IF('Project Information'!AL$9<>\"\",'Project Information'!AL$9,\"\")","v":" "},{"$f":"IF('Project Information'!AM$9<>\"\",'Project Information'!AM$9,\"\")","v":" "},{"$f":"IF('Project Information'!AN$9<>\"\",'Project Information'!AN$9,\"\")","v":" "},{"$f":"IF('Project Information'!AO$9<>\"\",'Project Information'!AO$9,\"\")","v":" "},{"$f":"IF('Project Information'!AP$9<>\"\",'Project Information'!AP$9,\"\")","v":" "},{"$f":"IF('Project Information'!AQ$9<>\"\",'Project Information'!AQ$9,\"\")","v":" "},{"$f":"IF('Project Information'!AR$9<>\"\",'Project Information'!AR$9,\"\")","v":" "},{"$f":"IF('Project Information'!AS$9<>\"\",'Project Information'!AS$9,\"\")","v":" "},{"$f":"IF('Project Information'!AT$9<>\"\",'Project Information'!AT$9,\"\")","v":" "},{"$f":"IF('Project Information'!AU$9<>\"\",'Project Information'!AU$9,\"\")","v":" "},{"$f":"IF('Project Information'!AV$9<>\"\",'Project Information'!AV$9,\"\")","v":" "},{"$f":"IF('Project Information'!AW$9<>\"\",'Project Information'!AW$9,\"\")","v":" "},{"$f":"IF('Project Information'!AX$9<>\"\",'Project Information'!AX$9,\"\")","v":" "},{"$f":"IF('Project Information'!AY$9<>\"\",'Project Information'!AY$9,\"\")","v":" "},{"$f":"IF('Project Information'!AZ$9<>\"\",'Project Information'!AZ$9,\"\")","v":" "},{"$f":"IF('Project Information'!BA$9<>\"\",'Project Information'!BA$9,\"\")","v":" "},{"$f":"IF('Project Information'!BB$9<>\"\",'Project Information'!BB$9,\"\")","v":" "},{"$f":"IF('Project Information'!BC$9<>\"\",'Project Information'!BC$9,\"\")","v":" "},{"$f":"IF('Project Information'!BD$9<>\"\",'Project Information'!BD$9,\"\")","v":" "},{"$f":"IF('Project Information'!BE$9<>\"\",'Project Information'!BE$9,\"\")","v":" "},{"$f":"IF('Project Information'!BF$9<>\"\",'Project Information'!BF$9,\"\")","v":" "},{"$f":"IF('Project Information'!BG$9<>\"\",'Project Information'!BG$9,\"\")","v":" "},null,{"$f":"IF('Project Information'!J$9<>\"\",'Project Information'!J$9,\"\")","v":" "},{"$f":"IF('Project Information'!K$9<>\"\",'Project Information'!K$9,\"\")","v":" "},{"$f":"IF('Project Information'!L$9<>\"\",'Project Information'!L$9,\"\")","v":" "},{"$f":"IF('Project Information'!M$9<>\"\",'Project Information'!M$9,\"\")","v":" "},{"$f":"IF('Project Information'!N$9<>\"\",'Project Information'!N$9,\"\")","v":" "},{"$f":"IF('Project Information'!O$9<>\"\",'Project Information'!O$9,\"\")","v":" "},{"$f":"IF('Project Information'!P$9<>\"\",'Project Information'!P$9,\"\")","v":" "},{"$f":"IF('Project Information'!Q$9<>\"\",'Project Information'!Q$9,\"\")","v":" "},{"$f":"IF('Project Information'!R$9<>\"\",'Project Information'!R$9,\"\")","v":" "},{"$f":"IF('Project Information'!S$9<>\"\",'Project Information'!S$9,\"\")","v":" "},{"$f":"IF('Project Information'!T$9<>\"\",'Project Information'!T$9,\"\")","v":" "},{"$f":"IF('Project Information'!U$9<>\"\",'Project Information'!U$9,\"\")","v":" "},{"$f":"IF('Project Information'!V$9<>\"\",'Project Information'!V$9,\"\")","v":" "},{"$f":"IF('Project Information'!W$9<>\"\",'Project Information'!W$9,\"\")","v":" "},{"$f":"IF('Project Information'!X$9<>\"\",'Project Information'!X$9,\"\")","v":" "},{"$f":"IF('Project Information'!Y$9<>\"\",'Project Information'!Y$9,\"\")","v":" "},{"$f":"IF('Project Information'!Z$9<>\"\",'Project Information'!Z$9,\"\")","v":" "},{"$f":"IF('Project Information'!AA$9<>\"\",'Project Information'!AA$9,\"\")","v":" "},{"$f":"IF('Project Information'!AB$9<>\"\",'Project Information'!AB$9,\"\")","v":" "},{"$f":"IF('Project Information'!AC$9<>\"\",'Project Information'!AC$9,\"\")","v":" "},{"$f":"IF('Project Information'!AD$9<>\"\",'Project Information'!AD$9,\"\")","v":" "},{"$f":"IF('Project Information'!AE$9<>\"\",'Project Information'!AE$9,\"\")","v":" "},{"$f":"IF('Project Information'!AF$9<>\"\",'Project Information'!AF$9,\"\")","v":" "},{"$f":"IF('Project Information'!AG$9<>\"\",'Project Information'!AG$9,\"\")","v":" "},{"$f":"IF('Project Information'!AH$9<>\"\",'Project Information'!AH$9,\"\")","v":" "},{"$f":"IF('Project Information'!AI$9<>\"\",'Project Information'!AI$9,\"\")","v":" "},{"$f":"IF('Project Information'!AJ$9<>\"\",'Project Information'!AJ$9,\"\")","v":" "},{"$f":"IF('Project Information'!AK$9<>\"\",'Project Information'!AK$9,\"\")","v":" "},{"$f":"IF('Project Information'!AL$9<>\"\",'Project Information'!AL$9,\"\")","v":" "},{"$f":"IF('Project Information'!AM$9<>\"\",'Project Information'!AM$9,\"\")","v":" "},{"$f":"IF('Project Information'!AN$9<>\"\",'Project Information'!AN$9,\"\")","v":" "},{"$f":"IF('Project Information'!AO$9<>\"\",'Project Information'!AO$9,\"\")","v":" "},{"$f":"IF('Project Information'!AP$9<>\"\",'Project Information'!AP$9,\"\")","v":" "},{"$f":"IF('Project Information'!AQ$9<>\"\",'Project Information'!AQ$9,\"\")","v":" "},{"$f":"IF('Project Information'!AR$9<>\"\",'Project Information'!AR$9,\"\")","v":" "},{"$f":"IF('Project Information'!AS$9<>\"\",'Project Information'!AS$9,\"\")","v":" "},{"$f":"IF('Project Information'!AT$9<>\"\",'Project Information'!AT$9,\"\")","v":" "},{"$f":"IF('Project Information'!AU$9<>\"\",'Project Information'!AU$9,\"\")","v":" "},{"$f":"IF('Project Information'!AV$9<>\"\",'Project Information'!AV$9,\"\")","v":" "},{"$f":"IF('Project Information'!AW$9<>\"\",'Project Information'!AW$9,\"\")","v":" "},{"$f":"IF('Project Information'!AX$9<>\"\",'Project Information'!AX$9,\"\")","v":" "},{"$f":"IF('Project Information'!AY$9<>\"\",'Project Information'!AY$9,\"\")","v":" "},{"$f":"IF('Project Information'!AZ$9<>\"\",'Project Information'!AZ$9,\"\")","v":" "},{"$f":"IF('Project Information'!BA$9<>\"\",'Project Information'!BA$9,\"\")","v":" "},{"$f":"IF('Project Information'!BB$9<>\"\",'Project Information'!BB$9,\"\")","v":" "},{"$f":"IF('Project Information'!BC$9<>\"\",'Project Information'!BC$9,\"\")","v":" "},{"$f":"IF('Project Information'!BD$9<>\"\",'Project Information'!BD$9,\"\")","v":" "},{"$f":"IF('Project Information'!BE$9<>\"\",'Project Information'!BE$9,\"\")","v":" "},{"$f":"IF('Project Information'!BF$9<>\"\",'Project Information'!BF$9,\"\")","v":" "},{"$f":"IF('Project Information'!BG$9<>\"\",'Project Information'!BG$9,\"\")","v":" "}]
[null,null,null,null,null,null,null,null,null,null,null,{"$f":"IF($C8=\"additional labor hours\",$K8*'Project Information'!$D$12,$K8*$J8)*IF($F8=\"Per Measure\",SUM($BN8:$DK8),1)","v":0},{"$f":"IF($C8=\"\",0,IF(VLOOKUP($C8,'Other Data'!$B$146:$C$156,2,FALSE)=\"M\",$L8,0))","v":0},{"$f":"IFERROR($M8/SUM($BN8:$DK8),0)","v":0},null,null,null,null,null,null,null,null,null,null,null,null,null,null,null,null,null,null,null,null,null,null,null,null,null,null,null,null,null,null,null,null,null,null,null,null,null,null,null,null,null,null,null,null,null,null,null,null,null,null,null,{"$f":"IF(O8=\"yes\",SUMIFS('Project Scope'!$AO$8:$AO$107,'Project Scope'!$AN$8:$AN$107,$I8,'Project Scope'!$C$8:$C$107,BN$7)+SUMIFS('Project Scope'!$AX$8:$AX$107,'Project Scope'!$AW$8:$AW$107,$I8,'Project Scope'!$C$8:$C$107,BN$7),0)","v":0},{"$f":"IF(P8=\"yes\",SUMIFS('Project Scope'!$AO$8:$AO$107,'Project Scope'!$AN$8:$AN$107,$I8,'Project Scope'!$C$8:$C$107,BO$7)+SUMIFS('Project Scope'!$AX$8:$AX$107,'Project Scope'!$AW$8:$AW$107,$I8,'Project Scope'!$C$8:$C$107,BO$7),0)","v":0},{"$f":"IF(Q8=\"yes\",SUMIFS('Project Scope'!$AO$8:$AO$107,'Project Scope'!$AN$8:$AN$107,$I8,'Project Scope'!$C$8:$C$107,BP$7)+SUMIFS('Project Scope'!$AX$8:$AX$107,'Project Scope'!$AW$8:$AW$107,$I8,'Project Scope'!$C$8:$C$107,BP$7),0)","v":0},{"$f":"IF(R8=\"yes\",SUMIFS('Project Scope'!$AO$8:$AO$107,'Project Scope'!$AN$8:$AN$107,$I8,'Project Scope'!$C$8:$C$107,BQ$7)+SUMIFS('Project Scope'!$AX$8:$AX$107,'Project Scope'!$AW$8:$AW$107,$I8,'Project Scope'!$C$8:$C$107,BQ$7),0)","v":0},{"$f":"IF(S8=\"yes\",SUMIFS('Project Scope'!$AO$8:$AO$107,'Project Scope'!$AN$8:$AN$107,$I8,'Project Scope'!$C$8:$C$107,BR$7)+SUMIFS('Project Scope'!$AX$8:$AX$107,'Project Scope'!$AW$8:$AW$107,$I8,'Project Scope'!$C$8:$C$107,BR$7),0)","v":0},{"$f":"IF(T8=\"yes\",SUMIFS('Project Scope'!$AO$8:$AO$107,'Project Scope'!$AN$8:$AN$107,$I8,'Project Scope'!$C$8:$C$107,BS$7)+SUMIFS('Project Scope'!$AX$8:$AX$107,'Project Scope'!$AW$8:$AW$107,$I8,'Project Scope'!$C$8:$C$107,BS$7),0)","v":0},{"$f":"IF(U8=\"yes\",SUMIFS('Project Scope'!$AO$8:$AO$107,'Project Scope'!$AN$8:$AN$107,$I8,'Project Scope'!$C$8:$C$107,BT$7)+SUMIFS('Project Scope'!$AX$8:$AX$107,'Project Scope'!$AW$8:$AW$107,$I8,'Project Scope'!$C$8:$C$107,BT$7),0)","v":0},{"$f":"IF(V8=\"yes\",SUMIFS('Project Scope'!$AO$8:$AO$107,'Project Scope'!$AN$8:$AN$107,$I8,'Project Scope'!$C$8:$C$107,BU$7)+SUMIFS('Project Scope'!$AX$8:$AX$107,'Project Scope'!$AW$8:$AW$107,$I8,'Project Scope'!$C$8:$C$107,BU$7),0)","v":0},{"$f":"IF(W8=\"yes\",SUMIFS('Project Scope'!$AO$8:$AO$107,'Project Scope'!$AN$8:$AN$107,$I8,'Project Scope'!$C$8:$C$107,BV$7)+SUMIFS('Project Scope'!$AX$8:$AX$107,'Project Scope'!$AW$8:$AW$107,$I8,'Project Scope'!$C$8:$C$107,BV$7),0)","v":0},{"$f":"IF(X8=\"yes\",SUMIFS('Project Scope'!$AO$8:$AO$107,'Project Scope'!$AN$8:$AN$107,$I8,'Project Scope'!$C$8:$C$107,BW$7)+SUMIFS('Project Scope'!$AX$8:$AX$107,'Project Scope'!$AW$8:$AW$107,$I8,'Project Scope'!$C$8:$C$107,BW$7),0)","v":0},{"$f":"IF(Y8=\"yes\",SUMIFS('Project Scope'!$AO$8:$AO$107,'Project Scope'!$AN$8:$AN$107,$I8,'Project Scope'!$C$8:$C$107,BX$7)+SUMIFS('Project Scope'!$AX$8:$AX$107,'Project Scope'!$AW$8:$AW$107,$I8,'Project Scope'!$C$8:$C$107,BX$7),0)","v":0},{"$f":"IF(Z8=\"yes\",SUMIFS('Project Scope'!$AO$8:$AO$107,'Project Scope'!$AN$8:$AN$107,$I8,'Project Scope'!$C$8:$C$107,BY$7)+SUMIFS('Project Scope'!$AX$8:$AX$107,'Project Scope'!$AW$8:$AW$107,$I8,'Project Scope'!$C$8:$C$107,BY$7),0)","v":0},{"$f":"IF(AA8=\"yes\",SUMIFS('Project Scope'!$AO$8:$AO$107,'Project Scope'!$AN$8:$AN$107,$I8,'Project Scope'!$C$8:$C$107,BZ$7)+SUMIFS('Project Scope'!$AX$8:$AX$107,'Project Scope'!$AW$8:$AW$107,$I8,'Project Scope'!$C$8:$C$107,BZ$7),0)","v":0},{"$f":"IF(AB8=\"yes\",SUMIFS('Project Scope'!$AO$8:$AO$107,'Project Scope'!$AN$8:$AN$107,$I8,'Project Scope'!$C$8:$C$107,CA$7)+SUMIFS('Project Scope'!$AX$8:$AX$107,'Project Scope'!$AW$8:$AW$107,$I8,'Project Scope'!$C$8:$C$107,CA$7),0)","v":0},{"$f":"IF(AC8=\"yes\",SUMIFS('Project Scope'!$AO$8:$AO$107,'Project Scope'!$AN$8:$AN$107,$I8,'Project Scope'!$C$8:$C$107,CB$7)+SUMIFS('Project Scope'!$AX$8:$AX$107,'Project Scope'!$AW$8:$AW$107,$I8,'Project Scope'!$C$8:$C$107,CB$7),0)","v":0},{"$f":"IF(AD8=\"yes\",SUMIFS('Project Scope'!$AO$8:$AO$107,'Project Scope'!$AN$8:$AN$107,$I8,'Project Scope'!$C$8:$C$107,CC$7)+SUMIFS('Project Scope'!$AX$8:$AX$107,'Project Scope'!$AW$8:$AW$107,$I8,'Project Scope'!$C$8:$C$107,CC$7),0)","v":0},{"$f":"IF(AE8=\"yes\",SUMIFS('Project Scope'!$AO$8:$AO$107,'Project Scope'!$AN$8:$AN$107,$I8,'Project Scope'!$C$8:$C$107,CD$7)+SUMIFS('Project Scope'!$AX$8:$AX$107,'Project Scope'!$AW$8:$AW$107,$I8,'Project Scope'!$C$8:$C$107,CD$7),0)","v":0},{"$f":"IF(AF8=\"yes\",SUMIFS('Project Scope'!$AO$8:$AO$107,'Project Scope'!$AN$8:$AN$107,$I8,'Project Scope'!$C$8:$C$107,CE$7)+SUMIFS('Project Scope'!$AX$8:$AX$107,'Project Scope'!$AW$8:$AW$107,$I8,'Project Scope'!$C$8:$C$107,CE$7),0)","v":0},{"$f":"IF(AG8=\"yes\",SUMIFS('Project Scope'!$AO$8:$AO$107,'Project Scope'!$AN$8:$AN$107,$I8,'Project Scope'!$C$8:$C$107,CF$7)+SUMIFS('Project Scope'!$AX$8:$AX$107,'Project Scope'!$AW$8:$AW$107,$I8,'Project Scope'!$C$8:$C$107,CF$7),0)","v":0},{"$f":"IF(AH8=\"yes\",SUMIFS('Project Scope'!$AO$8:$AO$107,'Project Scope'!$AN$8:$AN$107,$I8,'Project Scope'!$C$8:$C$107,CG$7)+SUMIFS('Project Scope'!$AX$8:$AX$107,'Project Scope'!$AW$8:$AW$107,$I8,'Project Scope'!$C$8:$C$107,CG$7),0)","v":0},{"$f":"IF(AI8=\"yes\",SUMIFS('Project Scope'!$AO$8:$AO$107,'Project Scope'!$AN$8:$AN$107,$I8,'Project Scope'!$C$8:$C$107,CH$7)+SUMIFS('Project Scope'!$AX$8:$AX$107,'Project Scope'!$AW$8:$AW$107,$I8,'Project Scope'!$C$8:$C$107,CH$7),0)","v":0},{"$f":"IF(AJ8=\"yes\",SUMIFS('Project Scope'!$AO$8:$AO$107,'Project Scope'!$AN$8:$AN$107,$I8,'Project Scope'!$C$8:$C$107,CI$7)+SUMIFS('Project Scope'!$AX$8:$AX$107,'Project Scope'!$AW$8:$AW$107,$I8,'Project Scope'!$C$8:$C$107,CI$7),0)","v":0},{"$f":"IF(AK8=\"yes\",SUMIFS('Project Scope'!$AO$8:$AO$107,'Project Scope'!$AN$8:$AN$107,$I8,'Project Scope'!$C$8:$C$107,CJ$7)+SUMIFS('Project Scope'!$AX$8:$AX$107,'Project Scope'!$AW$8:$AW$107,$I8,'Project Scope'!$C$8:$C$107,CJ$7),0)","v":0},{"$f":"IF(AL8=\"yes\",SUMIFS('Project Scope'!$AO$8:$AO$107,'Project Scope'!$AN$8:$AN$107,$I8,'Project Scope'!$C$8:$C$107,CK$7)+SUMIFS('Project Scope'!$AX$8:$AX$107,'Project Scope'!$AW$8:$AW$107,$I8,'Project Scope'!$C$8:$C$107,CK$7),0)","v":0},{"$f":"IF(AM8=\"yes\",SUMIFS('Project Scope'!$AO$8:$AO$107,'Project Scope'!$AN$8:$AN$107,$I8,'Project Scope'!$C$8:$C$107,CL$7)+SUMIFS('Project Scope'!$AX$8:$AX$107,'Project Scope'!$AW$8:$AW$107,$I8,'Project Scope'!$C$8:$C$107,CL$7),0)","v":0},{"$f":"IF(AN8=\"yes\",SUMIFS('Project Scope'!$AO$8:$AO$107,'Project Scope'!$AN$8:$AN$107,$I8,'Project Scope'!$C$8:$C$107,CM$7)+SUMIFS('Project Scope'!$AX$8:$AX$107,'Project Scope'!$AW$8:$AW$107,$I8,'Project Scope'!$C$8:$C$107,CM$7),0)","v":0},{"$f":"IF(AO8=\"yes\",SUMIFS('Project Scope'!$AO$8:$AO$107,'Project Scope'!$AN$8:$AN$107,$I8,'Project Scope'!$C$8:$C$107,CN$7)+SUMIFS('Project Scope'!$AX$8:$AX$107,'Project Scope'!$AW$8:$AW$107,$I8,'Project Scope'!$C$8:$C$107,CN$7),0)","v":0},{"$f":"IF(AP8=\"yes\",SUMIFS('Project Scope'!$AO$8:$AO$107,'Project Scope'!$AN$8:$AN$107,$I8,'Project Scope'!$C$8:$C$107,CO$7)+SUMIFS('Project Scope'!$AX$8:$AX$107,'Project Scope'!$AW$8:$AW$107,$I8,'Project Scope'!$C$8:$C$107,CO$7),0)","v":0},{"$f":"IF(AQ8=\"yes\",SUMIFS('Project Scope'!$AO$8:$AO$107,'Project Scope'!$AN$8:$AN$107,$I8,'Project Scope'!$C$8:$C$107,CP$7)+SUMIFS('Project Scope'!$AX$8:$AX$107,'Project Scope'!$AW$8:$AW$107,$I8,'Project Scope'!$C$8:$C$107,CP$7),0)","v":0},{"$f":"IF(AR8=\"yes\",SUMIFS('Project Scope'!$AO$8:$AO$107,'Project Scope'!$AN$8:$AN$107,$I8,'Project Scope'!$C$8:$C$107,CQ$7)+SUMIFS('Project Scope'!$AX$8:$AX$107,'Project Scope'!$AW$8:$AW$107,$I8,'Project Scope'!$C$8:$C$107,CQ$7),0)","v":0},{"$f":"IF(AS8=\"yes\",SUMIFS('Project Scope'!$AO$8:$AO$107,'Project Scope'!$AN$8:$AN$107,$I8,'Project Scope'!$C$8:$C$107,CR$7)+SUMIFS('Project Scope'!$AX$8:$AX$107,'Project Scope'!$AW$8:$AW$107,$I8,'Project Scope'!$C$8:$C$107,CR$7),0)","v":0},{"$f":"IF(AT8=\"yes\",SUMIFS('Project Scope'!$AO$8:$AO$107,'Project Scope'!$AN$8:$AN$107,$I8,'Project Scope'!$C$8:$C$107,CS$7)+SUMIFS('Project Scope'!$AX$8:$AX$107,'Project Scope'!$AW$8:$AW$107,$I8,'Project Scope'!$C$8:$C$107,CS$7),0)","v":0},{"$f":"IF(AU8=\"yes\",SUMIFS('Project Scope'!$AO$8:$AO$107,'Project Scope'!$AN$8:$AN$107,$I8,'Project Scope'!$C$8:$C$107,CT$7)+SUMIFS('Project Scope'!$AX$8:$AX$107,'Project Scope'!$AW$8:$AW$107,$I8,'Project Scope'!$C$8:$C$107,CT$7),0)","v":0},{"$f":"IF(AV8=\"yes\",SUMIFS('Project Scope'!$AO$8:$AO$107,'Project Scope'!$AN$8:$AN$107,$I8,'Project Scope'!$C$8:$C$107,CU$7)+SUMIFS('Project Scope'!$AX$8:$AX$107,'Project Scope'!$AW$8:$AW$107,$I8,'Project Scope'!$C$8:$C$107,CU$7),0)","v":0},{"$f":"IF(AW8=\"yes\",SUMIFS('Project Scope'!$AO$8:$AO$107,'Project Scope'!$AN$8:$AN$107,$I8,'Project Scope'!$C$8:$C$107,CV$7)+SUMIFS('Project Scope'!$AX$8:$AX$107,'Project Scope'!$AW$8:$AW$107,$I8,'Project Scope'!$C$8:$C$107,CV$7),0)","v":0},{"$f":"IF(AX8=\"yes\",SUMIFS('Project Scope'!$AO$8:$AO$107,'Project Scope'!$AN$8:$AN$107,$I8,'Project Scope'!$C$8:$C$107,CW$7)+SUMIFS('Project Scope'!$AX$8:$AX$107,'Project Scope'!$AW$8:$AW$107,$I8,'Project Scope'!$C$8:$C$107,CW$7),0)","v":0},{"$f":"IF(AY8=\"yes\",SUMIFS('Project Scope'!$AO$8:$AO$107,'Project Scope'!$AN$8:$AN$107,$I8,'Project Scope'!$C$8:$C$107,CX$7)+SUMIFS('Project Scope'!$AX$8:$AX$107,'Project Scope'!$AW$8:$AW$107,$I8,'Project Scope'!$C$8:$C$107,CX$7),0)","v":0},{"$f":"IF(AZ8=\"yes\",SUMIFS('Project Scope'!$AO$8:$AO$107,'Project Scope'!$AN$8:$AN$107,$I8,'Project Scope'!$C$8:$C$107,CY$7)+SUMIFS('Project Scope'!$AX$8:$AX$107,'Project Scope'!$AW$8:$AW$107,$I8,'Project Scope'!$C$8:$C$107,CY$7),0)","v":0},{"$f":"IF(BA8=\"yes\",SUMIFS('Project Scope'!$AO$8:$AO$107,'Project Scope'!$AN$8:$AN$107,$I8,'Project Scope'!$C$8:$C$107,CZ$7)+SUMIFS('Project Scope'!$AX$8:$AX$107,'Project Scope'!$AW$8:$AW$107,$I8,'Project Scope'!$C$8:$C$107,CZ$7),0)","v":0},{"$f":"IF(BB8=\"yes\",SUMIFS('Project Scope'!$AO$8:$AO$107,'Project Scope'!$AN$8:$AN$107,$I8,'Project Scope'!$C$8:$C$107,DA$7)+SUMIFS('Project Scope'!$AX$8:$AX$107,'Project Scope'!$AW$8:$AW$107,$I8,'Project Scope'!$C$8:$C$107,DA$7),0)","v":0},{"$f":"IF(BC8=\"yes\",SUMIFS('Project Scope'!$AO$8:$AO$107,'Project Scope'!$AN$8:$AN$107,$I8,'Project Scope'!$C$8:$C$107,DB$7)+SUMIFS('Project Scope'!$AX$8:$AX$107,'Project Scope'!$AW$8:$AW$107,$I8,'Project Scope'!$C$8:$C$107,DB$7),0)","v":0},{"$f":"IF(BD8=\"yes\",SUMIFS('Project Scope'!$AO$8:$AO$107,'Project Scope'!$AN$8:$AN$107,$I8,'Project Scope'!$C$8:$C$107,DC$7)+SUMIFS('Project Scope'!$AX$8:$AX$107,'Project Scope'!$AW$8:$AW$107,$I8,'Project Scope'!$C$8:$C$107,DC$7),0)","v":0},{"$f":"IF(BE8=\"yes\",SUMIFS('Project Scope'!$AO$8:$AO$107,'Project Scope'!$AN$8:$AN$107,$I8,'Project Scope'!$C$8:$C$107,DD$7)+SUMIFS('Project Scope'!$AX$8:$AX$107,'Project Scope'!$AW$8:$AW$107,$I8,'Project Scope'!$C$8:$C$107,DD$7),0)","v":0},{"$f":"IF(BF8=\"yes\",SUMIFS('Project Scope'!$AO$8:$AO$107,'Project Scope'!$AN$8:$AN$107,$I8,'Project Scope'!$C$8:$C$107,DE$7)+SUMIFS('Project Scope'!$AX$8:$AX$107,'Project Scope'!$AW$8:$AW$107,$I8,'Project Scope'!$C$8:$C$107,DE$7),0)","v":0},{"$f":"IF(BG8=\"yes\",SUMIFS('Project Scope'!$AO$8:$AO$107,'Project Scope'!$AN$8:$AN$107,$I8,'Project Scope'!$C$8:$C$107,DF$7)+SUMIFS('Project Scope'!$AX$8:$AX$107,'Project Scope'!$AW$8:$AW$107,$I8,'Project Scope'!$C$8:$C$107,DF$7),0)","v":0},{"$f":"IF(BH8=\"yes\",SUMIFS('Project Scope'!$AO$8:$AO$107,'Project Scope'!$AN$8:$AN$107,$I8,'Project Scope'!$C$8:$C$107,DG$7)+SUMIFS('Project Scope'!$AX$8:$AX$107,'Project Scope'!$AW$8:$AW$107,$I8,'Project Scope'!$C$8:$C$107,DG$7),0)","v":0},{"$f":"IF(BI8=\"yes\",SUMIFS('Project Scope'!$AO$8:$AO$107,'Project Scope'!$AN$8:$AN$107,$I8,'Project Scope'!$C$8:$C$107,DH$7)+SUMIFS('Project Scope'!$AX$8:$AX$107,'Project Scope'!$AW$8:$AW$107,$I8,'Project Scope'!$C$8:$C$107,DH$7),0)","v":0},{"$f":"IF(BJ8=\"yes\",SUMIFS('Project Scope'!$AO$8:$AO$107,'Project Scope'!$AN$8:$AN$107,$I8,'Project Scope'!$C$8:$C$107,DI$7)+SUMIFS('Project Scope'!$AX$8:$AX$107,'Project Scope'!$AW$8:$AW$107,$I8,'Project Scope'!$C$8:$C$107,DI$7),0)","v":0},{"$f":"IF(BK8=\"yes\",SUMIFS('Project Scope'!$AO$8:$AO$107,'Project Scope'!$AN$8:$AN$107,$I8,'Project Scope'!$C$8:$C$107,DJ$7)+SUMIFS('Project Scope'!$AX$8:$AX$107,'Project Scope'!$AW$8:$AW$107,$I8,'Project Scope'!$C$8:$C$107,DJ$7),0)","v":0},{"$f":"IF(BL8=\"yes\",SUMIFS('Project Scope'!$AO$8:$AO$107,'Project Scope'!$AN$8:$AN$107,$I8,'Project Scope'!$C$8:$C$107,DK$7)+SUMIFS('Project Scope'!$AX$8:$AX$107,'Project Scope'!$AW$8:$AW$107,$I8,'Project Scope'!$C$8:$C$107,DK$7),0)","v":0},null,{"$f":"IF(BN8>0,DM$7,\"\")","v":""},"","","","","","","","","",{"$f":"IF(BX8>0,DW$7,\"\")","v":""},"","","","","","","","","","","","","","","","","","","","","","","","","","","","","","","","","","","","","","","",null,{"$f":"IF($DM8<>\"\",\"xx\"&$DM8&\"xx\",\"\")&IF($DN8<>\"\",\"xx\"&$DN8&\"xx\",\"\")&IF($DO8<>\"\",\"xx\"&$DO8&\"xx\",\"\")&IF($DP8<>\"\",\"xx\"&$DP8&\"xx\",\"\")&IF($DQ8<>\"\",\"xx\"&$DQ8&\"xx\",\"\")&IF($DR8<>\"\",\"xx\"&$DR8&\"xx\",\"\")&IF($DS8<>\"\",\"xx\"&$DS8&\"xx\",\"\")&IF($DT8<>\"\",\"xx\"&$DT8&\"xx\",\"\")&IF($DU8<>\"\",\"xx\"&$DU8&\"xx\",\"\")&IF($DV8<>\"\",\"xx\"&$DV8&\"xx\",\"\")&IF($DW8<>\"\",\"xx\"&$DW8&\"xx\",\"\")&IF($DX8<>\"\",\"xx\"&$DX8&\"xx\",\"\")&IF($DY8<>\"\",\"xx\"&$DY8&\"xx\",\"\")&IF($DZ8<>\"\",\"xx\"&$DZ8&\"xx\",\"\")&IF($EA8<>\"\",\"xx\"&$EA8&\"xx\",\"\")&IF($EB8<>\"\",\"xx\"&$EB8&\"xx\",\"\")&IF($EC8<>\"\",\"xx\"&$EC8&\"xx\",\"\")&IF($ED8<>\"\",\"xx\"&$ED8&\"xx\",\"\")&IF($EE8<>\"\",\"xx\"&$EE8&\"xx\",\"\")&IF($EF8<>\"\",\"xx\"&$EF8&\"xx\",\"\")&IF($EG8<>\"\",\"xx\"&$EG8&\"xx\",\"\")&IF($EH8<>\"\",\"xx\"&$EH8&\"xx\",\"\")&IF($EI8<>\"\",\"xx\"&$EI8&\"xx\",\"\")&IF($EJ8<>\"\",\"xx\"&$EJ8&\"xx\",\"\")&IF($EK8<>\"\",\"xx\"&$EK8&\"xx\",\"\")&IF($EL8<>\"\",\"xx\"&$EL8&\"xx\",\"\")&IF($EM8<>\"\",\"xx\"&$EM8&\"xx\",\"\")&IF($EN8<>\"\",\"xx\"&$EN8&\"xx\",\"\")&IF($EO8<>\"\",\"xx\"&$EO8&\"xx\",\"\")&IF($EP8<>\"\",\"xx\"&$EP8&\"xx\",\"\")&IF($EQ8<>\"\",\"xx\"&$EQ8&\"xx\",\"\")&IF($ER8<>\"\",\"xx\"&$ER8&\"xx\",\"\")&IF($ES8<>\"\",\"xx\"&$ES8&\"xx\",\"\")&IF($ET8<>\"\",\"xx\"&$ET8&\"xx\",\"\")&IF($EU8<>\"\",\"xx\"&$EU8&\"xx\",\"\")&IF($EV8<>\"\",\"xx\"&$EV8&\"xx\",\"\")&IF($EW8<>\"\",\"xx\"&$EW8&\"xx\",\"\")&IF($EX8<>\"\",\"xx\"&$EX8&\"xx\",\"\")&IF($EY8<>\"\",\"xx\"&$EY8&\"xx\",\"\")&IF($EZ8<>\"\",\"xx\"&$EZ8&\"xx\",\"\")&IF($FA8<>\"\",\"xx\"&$FA8&\"xx\",\"\")&IF($FB8<>\"\",\"xx\"&$FB8&\"xx\",\"\")&IF($FC8<>\"\",\"xx\"&$FC8&\"xx\",\"\")&IF($FD8<>\"\",\"xx\"&$FD8&\"xx\",\"\")&IF($FE8<>\"\",\"xx\"&$FE8&\"xx\",\"\")&IF($FF8<>\"\",\"xx\"&$FF8&\"xx\",\"\")&IF($FG8<>\"\",\"xx\"&$FG8&\"xx\",\"\")&IF($FH8<>\"\",\"xx\"&$FH8&\"xx\",\"\")&IF($FI8<>\"\",\"xx\"&$FI8&\"xx\",\"\")","v":""}]
[null,null,null,null,null,null,null,null,null,null,null,{"$f":"IF($C9=\"additional labor hours\",$K9*'Project Information'!$D$12,$K9*$J9)*IF($F9=\"Per Measure\",SUM($BN9:$DK9),1)","v":0},{"$f":"IF($C9=\"\",0,IF(VLOOKUP($C9,'Other Data'!$B$146:$C$156,2,FALSE)=\"M\",$L9,0))","v":0},{"$f":"IFERROR($M9/SUM($BN9:$DK9),0)","v":0},null,null,null,null,null,null,null,null,null,null,null,null,null,null,null,null,null,null,null,null,null,null,null,null,null,null,null,null,null,null,null,null,null,null,null,null,null,null,null,null,null,null,null,null,null,null,null,null,null,null,null,{"$f":"IF(O9=\"yes\",SUMIFS('Project Scope'!$AO$8:$AO$107,'Project Scope'!$AN$8:$AN$107,$I9,'Project Scope'!$C$8:$C$107,BN$7)+SUMIFS('Project Scope'!$AX$8:$AX$107,'Project Scope'!$AW$8:$AW$107,$I9,'Project Scope'!$C$8:$C$107,BN$7),0)","v":0},{"$f":"IF(P9=\"yes\",SUMIFS('Project Scope'!$AO$8:$AO$107,'Project Scope'!$AN$8:$AN$107,$I9,'Project Scope'!$C$8:$C$107,BO$7)+SUMIFS('Project Scope'!$AX$8:$AX$107,'Project Scope'!$AW$8:$AW$107,$I9,'Project Scope'!$C$8:$C$107,BO$7),0)","v":0},{"$f":"IF(Q9=\"yes\",SUMIFS('Project Scope'!$AO$8:$AO$107,'Project Scope'!$AN$8:$AN$107,$I9,'Project Scope'!$C$8:$C$107,BP$7)+SUMIFS('Project Scope'!$AX$8:$AX$107,'Project Scope'!$AW$8:$AW$107,$I9,'Project Scope'!$C$8:$C$107,BP$7),0)","v":0},{"$f":"IF(R9=\"yes\",SUMIFS('Project Scope'!$AO$8:$AO$107,'Project Scope'!$AN$8:$AN$107,$I9,'Project Scope'!$C$8:$C$107,BQ$7)+SUMIFS('Project Scope'!$AX$8:$AX$107,'Project Scope'!$AW$8:$AW$107,$I9,'Project Scope'!$C$8:$C$107,BQ$7),0)","v":0},{"$f":"IF(S9=\"yes\",SUMIFS('Project Scope'!$AO$8:$AO$107,'Project Scope'!$AN$8:$AN$107,$I9,'Project Scope'!$C$8:$C$107,BR$7)+SUMIFS('Project Scope'!$AX$8:$AX$107,'Project Scope'!$AW$8:$AW$107,$I9,'Project Scope'!$C$8:$C$107,BR$7),0)","v":0},{"$f":"IF(T9=\"yes\",SUMIFS('Project Scope'!$AO$8:$AO$107,'Project Scope'!$AN$8:$AN$107,$I9,'Project Scope'!$C$8:$C$107,BS$7)+SUMIFS('Project Scope'!$AX$8:$AX$107,'Project Scope'!$AW$8:$AW$107,$I9,'Project Scope'!$C$8:$C$107,BS$7),0)","v":0},{"$f":"IF(U9=\"yes\",SUMIFS('Project Scope'!$AO$8:$AO$107,'Project Scope'!$AN$8:$AN$107,$I9,'Project Scope'!$C$8:$C$107,BT$7)+SUMIFS('Project Scope'!$AX$8:$AX$107,'Project Scope'!$AW$8:$AW$107,$I9,'Project Scope'!$C$8:$C$107,BT$7),0)","v":0},{"$f":"IF(V9=\"yes\",SUMIFS('Project Scope'!$AO$8:$AO$107,'Project Scope'!$AN$8:$AN$107,$I9,'Project Scope'!$C$8:$C$107,BU$7)+SUMIFS('Project Scope'!$AX$8:$AX$107,'Project Scope'!$AW$8:$AW$107,$I9,'Project Scope'!$C$8:$C$107,BU$7),0)","v":0},{"$f":"IF(W9=\"yes\",SUMIFS('Project Scope'!$AO$8:$AO$107,'Project Scope'!$AN$8:$AN$107,$I9,'Project Scope'!$C$8:$C$107,BV$7)+SUMIFS('Project Scope'!$AX$8:$AX$107,'Project Scope'!$AW$8:$AW$107,$I9,'Project Scope'!$C$8:$C$107,BV$7),0)","v":0},{"$f":"IF(X9=\"yes\",SUMIFS('Project Scope'!$AO$8:$AO$107,'Project Scope'!$AN$8:$AN$107,$I9,'Project Scope'!$C$8:$C$107,BW$7)+SUMIFS('Project Scope'!$AX$8:$AX$107,'Project Scope'!$AW$8:$AW$107,$I9,'Project Scope'!$C$8:$C$107,BW$7),0)","v":0},{"$f":"IF(Y9=\"yes\",SUMIFS('Project Scope'!$AO$8:$AO$107,'Project Scope'!$AN$8:$AN$107,$I9,'Project Scope'!$C$8:$C$107,BX$7)+SUMIFS('Project Scope'!$AX$8:$AX$107,'Project Scope'!$AW$8:$AW$107,$I9,'Project Scope'!$C$8:$C$107,BX$7),0)","v":0},{"$f":"IF(Z9=\"yes\",SUMIFS('Project Scope'!$AO$8:$AO$107,'Project Scope'!$AN$8:$AN$107,$I9,'Project Scope'!$C$8:$C$107,BY$7)+SUMIFS('Project Scope'!$AX$8:$AX$107,'Project Scope'!$AW$8:$AW$107,$I9,'Project Scope'!$C$8:$C$107,BY$7),0)","v":0},{"$f":"IF(AA9=\"yes\",SUMIFS('Project Scope'!$AO$8:$AO$107,'Project Scope'!$AN$8:$AN$107,$I9,'Project Scope'!$C$8:$C$107,BZ$7)+SUMIFS('Project Scope'!$AX$8:$AX$107,'Project Scope'!$AW$8:$AW$107,$I9,'Project Scope'!$C$8:$C$107,BZ$7),0)","v":0},{"$f":"IF(AB9=\"yes\",SUMIFS('Project Scope'!$AO$8:$AO$107,'Project Scope'!$AN$8:$AN$107,$I9,'Project Scope'!$C$8:$C$107,CA$7)+SUMIFS('Project Scope'!$AX$8:$AX$107,'Project Scope'!$AW$8:$AW$107,$I9,'Project Scope'!$C$8:$C$107,CA$7),0)","v":0},{"$f":"IF(AC9=\"yes\",SUMIFS('Project Scope'!$AO$8:$AO$107,'Project Scope'!$AN$8:$AN$107,$I9,'Project Scope'!$C$8:$C$107,CB$7)+SUMIFS('Project Scope'!$AX$8:$AX$107,'Project Scope'!$AW$8:$AW$107,$I9,'Project Scope'!$C$8:$C$107,CB$7),0)","v":0},{"$f":"IF(AD9=\"yes\",SUMIFS('Project Scope'!$AO$8:$AO$107,'Project Scope'!$AN$8:$AN$107,$I9,'Project Scope'!$C$8:$C$107,CC$7)+SUMIFS('Project Scope'!$AX$8:$AX$107,'Project Scope'!$AW$8:$AW$107,$I9,'Project Scope'!$C$8:$C$107,CC$7),0)","v":0},{"$f":"IF(AE9=\"yes\",SUMIFS('Project Scope'!$AO$8:$AO$107,'Project Scope'!$AN$8:$AN$107,$I9,'Project Scope'!$C$8:$C$107,CD$7)+SUMIFS('Project Scope'!$AX$8:$AX$107,'Project Scope'!$AW$8:$AW$107,$I9,'Project Scope'!$C$8:$C$107,CD$7),0)","v":0},{"$f":"IF(AF9=\"yes\",SUMIFS('Project Scope'!$AO$8:$AO$107,'Project Scope'!$AN$8:$AN$107,$I9,'Project Scope'!$C$8:$C$107,CE$7)+SUMIFS('Project Scope'!$AX$8:$AX$107,'Project Scope'!$AW$8:$AW$107,$I9,'Project Scope'!$C$8:$C$107,CE$7),0)","v":0},{"$f":"IF(AG9=\"yes\",SUMIFS('Project Scope'!$AO$8:$AO$107,'Project Scope'!$AN$8:$AN$107,$I9,'Project Scope'!$C$8:$C$107,CF$7)+SUMIFS('Project Scope'!$AX$8:$AX$107,'Project Scope'!$AW$8:$AW$107,$I9,'Project Scope'!$C$8:$C$107,CF$7),0)","v":0},{"$f":"IF(AH9=\"yes\",SUMIFS('Project Scope'!$AO$8:$AO$107,'Project Scope'!$AN$8:$AN$107,$I9,'Project Scope'!$C$8:$C$107,CG$7)+SUMIFS('Project Scope'!$AX$8:$AX$107,'Project Scope'!$AW$8:$AW$107,$I9,'Project Scope'!$C$8:$C$107,CG$7),0)","v":0},{"$f":"IF(AI9=\"yes\",SUMIFS('Project Scope'!$AO$8:$AO$107,'Project Scope'!$AN$8:$AN$107,$I9,'Project Scope'!$C$8:$C$107,CH$7)+SUMIFS('Project Scope'!$AX$8:$AX$107,'Project Scope'!$AW$8:$AW$107,$I9,'Project Scope'!$C$8:$C$107,CH$7),0)","v":0},{"$f":"IF(AJ9=\"yes\",SUMIFS('Project Scope'!$AO$8:$AO$107,'Project Scope'!$AN$8:$AN$107,$I9,'Project Scope'!$C$8:$C$107,CI$7)+SUMIFS('Project Scope'!$AX$8:$AX$107,'Project Scope'!$AW$8:$AW$107,$I9,'Project Scope'!$C$8:$C$107,CI$7),0)","v":0},{"$f":"IF(AK9=\"yes\",SUMIFS('Project Scope'!$AO$8:$AO$107,'Project Scope'!$AN$8:$AN$107,$I9,'Project Scope'!$C$8:$C$107,CJ$7)+SUMIFS('Project Scope'!$AX$8:$AX$107,'Project Scope'!$AW$8:$AW$107,$I9,'Project Scope'!$C$8:$C$107,CJ$7),0)","v":0},{"$f":"IF(AL9=\"yes\",SUMIFS('Project Scope'!$AO$8:$AO$107,'Project Scope'!$AN$8:$AN$107,$I9,'Project Scope'!$C$8:$C$107,CK$7)+SUMIFS('Project Scope'!$AX$8:$AX$107,'Project Scope'!$AW$8:$AW$107,$I9,'Project Scope'!$C$8:$C$107,CK$7),0)","v":0},{"$f":"IF(AM9=\"yes\",SUMIFS('Project Scope'!$AO$8:$AO$107,'Project Scope'!$AN$8:$AN$107,$I9,'Project Scope'!$C$8:$C$107,CL$7)+SUMIFS('Project Scope'!$AX$8:$AX$107,'Project Scope'!$AW$8:$AW$107,$I9,'Project Scope'!$C$8:$C$107,CL$7),0)","v":0},{"$f":"IF(AN9=\"yes\",SUMIFS('Project Scope'!$AO$8:$AO$107,'Project Scope'!$AN$8:$AN$107,$I9,'Project Scope'!$C$8:$C$107,CM$7)+SUMIFS('Project Scope'!$AX$8:$AX$107,'Project Scope'!$AW$8:$AW$107,$I9,'Project Scope'!$C$8:$C$107,CM$7),0)","v":0},{"$f":"IF(AO9=\"yes\",SUMIFS('Project Scope'!$AO$8:$AO$107,'Project Scope'!$AN$8:$AN$107,$I9,'Project Scope'!$C$8:$C$107,CN$7)+SUMIFS('Project Scope'!$AX$8:$AX$107,'Project Scope'!$AW$8:$AW$107,$I9,'Project Scope'!$C$8:$C$107,CN$7),0)","v":0},{"$f":"IF(AP9=\"yes\",SUMIFS('Project Scope'!$AO$8:$AO$107,'Project Scope'!$AN$8:$AN$107,$I9,'Project Scope'!$C$8:$C$107,CO$7)+SUMIFS('Project Scope'!$AX$8:$AX$107,'Project Scope'!$AW$8:$AW$107,$I9,'Project Scope'!$C$8:$C$107,CO$7),0)","v":0},{"$f":"IF(AQ9=\"yes\",SUMIFS('Project Scope'!$AO$8:$AO$107,'Project Scope'!$AN$8:$AN$107,$I9,'Project Scope'!$C$8:$C$107,CP$7)+SUMIFS('Project Scope'!$AX$8:$AX$107,'Project Scope'!$AW$8:$AW$107,$I9,'Project Scope'!$C$8:$C$107,CP$7),0)","v":0},{"$f":"IF(AR9=\"yes\",SUMIFS('Project Scope'!$AO$8:$AO$107,'Project Scope'!$AN$8:$AN$107,$I9,'Project Scope'!$C$8:$C$107,CQ$7)+SUMIFS('Project Scope'!$AX$8:$AX$107,'Project Scope'!$AW$8:$AW$107,$I9,'Project Scope'!$C$8:$C$107,CQ$7),0)","v":0},{"$f":"IF(AS9=\"yes\",SUMIFS('Project Scope'!$AO$8:$AO$107,'Project Scope'!$AN$8:$AN$107,$I9,'Project Scope'!$C$8:$C$107,CR$7)+SUMIFS('Project Scope'!$AX$8:$AX$107,'Project Scope'!$AW$8:$AW$107,$I9,'Project Scope'!$C$8:$C$107,CR$7),0)","v":0},{"$f":"IF(AT9=\"yes\",SUMIFS('Project Scope'!$AO$8:$AO$107,'Project Scope'!$AN$8:$AN$107,$I9,'Project Scope'!$C$8:$C$107,CS$7)+SUMIFS('Project Scope'!$AX$8:$AX$107,'Project Scope'!$AW$8:$AW$107,$I9,'Project Scope'!$C$8:$C$107,CS$7),0)","v":0},{"$f":"IF(AU9=\"yes\",SUMIFS('Project Scope'!$AO$8:$AO$107,'Project Scope'!$AN$8:$AN$107,$I9,'Project Scope'!$C$8:$C$107,CT$7)+SUMIFS('Project Scope'!$AX$8:$AX$107,'Project Scope'!$AW$8:$AW$107,$I9,'Project Scope'!$C$8:$C$107,CT$7),0)","v":0},{"$f":"IF(AV9=\"yes\",SUMIFS('Project Scope'!$AO$8:$AO$107,'Project Scope'!$AN$8:$AN$107,$I9,'Project Scope'!$C$8:$C$107,CU$7)+SUMIFS('Project Scope'!$AX$8:$AX$107,'Project Scope'!$AW$8:$AW$107,$I9,'Project Scope'!$C$8:$C$107,CU$7),0)","v":0},{"$f":"IF(AW9=\"yes\",SUMIFS('Project Scope'!$AO$8:$AO$107,'Project Scope'!$AN$8:$AN$107,$I9,'Project Scope'!$C$8:$C$107,CV$7)+SUMIFS('Project Scope'!$AX$8:$AX$107,'Project Scope'!$AW$8:$AW$107,$I9,'Project Scope'!$C$8:$C$107,CV$7),0)","v":0},{"$f":"IF(AX9=\"yes\",SUMIFS('Project Scope'!$AO$8:$AO$107,'Project Scope'!$AN$8:$AN$107,$I9,'Project Scope'!$C$8:$C$107,CW$7)+SUMIFS('Project Scope'!$AX$8:$AX$107,'Project Scope'!$AW$8:$AW$107,$I9,'Project Scope'!$C$8:$C$107,CW$7),0)","v":0},{"$f":"IF(AY9=\"yes\",SUMIFS('Project Scope'!$AO$8:$AO$107,'Project Scope'!$AN$8:$AN$107,$I9,'Project Scope'!$C$8:$C$107,CX$7)+SUMIFS('Project Scope'!$AX$8:$AX$107,'Project Scope'!$AW$8:$AW$107,$I9,'Project Scope'!$C$8:$C$107,CX$7),0)","v":0},{"$f":"IF(AZ9=\"yes\",SUMIFS('Project Scope'!$AO$8:$AO$107,'Project Scope'!$AN$8:$AN$107,$I9,'Project Scope'!$C$8:$C$107,CY$7)+SUMIFS('Project Scope'!$AX$8:$AX$107,'Project Scope'!$AW$8:$AW$107,$I9,'Project Scope'!$C$8:$C$107,CY$7),0)","v":0},{"$f":"IF(BA9=\"yes\",SUMIFS('Project Scope'!$AO$8:$AO$107,'Project Scope'!$AN$8:$AN$107,$I9,'Project Scope'!$C$8:$C$107,CZ$7)+SUMIFS('Project Scope'!$AX$8:$AX$107,'Project Scope'!$AW$8:$AW$107,$I9,'Project Scope'!$C$8:$C$107,CZ$7),0)","v":0},{"$f":"IF(BB9=\"yes\",SUMIFS('Project Scope'!$AO$8:$AO$107,'Project Scope'!$AN$8:$AN$107,$I9,'Project Scope'!$C$8:$C$107,DA$7)+SUMIFS('Project Scope'!$AX$8:$AX$107,'Project Scope'!$AW$8:$AW$107,$I9,'Project Scope'!$C$8:$C$107,DA$7),0)","v":0},{"$f":"IF(BC9=\"yes\",SUMIFS('Project Scope'!$AO$8:$AO$107,'Project Scope'!$AN$8:$AN$107,$I9,'Project Scope'!$C$8:$C$107,DB$7)+SUMIFS('Project Scope'!$AX$8:$AX$107,'Project Scope'!$AW$8:$AW$107,$I9,'Project Scope'!$C$8:$C$107,DB$7),0)","v":0},{"$f":"IF(BD9=\"yes\",SUMIFS('Project Scope'!$AO$8:$AO$107,'Project Scope'!$AN$8:$AN$107,$I9,'Project Scope'!$C$8:$C$107,DC$7)+SUMIFS('Project Scope'!$AX$8:$AX$107,'Project Scope'!$AW$8:$AW$107,$I9,'Project Scope'!$C$8:$C$107,DC$7),0)","v":0},{"$f":"IF(BE9=\"yes\",SUMIFS('Project Scope'!$AO$8:$AO$107,'Project Scope'!$AN$8:$AN$107,$I9,'Project Scope'!$C$8:$C$107,DD$7)+SUMIFS('Project Scope'!$AX$8:$AX$107,'Project Scope'!$AW$8:$AW$107,$I9,'Project Scope'!$C$8:$C$107,DD$7),0)","v":0},{"$f":"IF(BF9=\"yes\",SUMIFS('Project Scope'!$AO$8:$AO$107,'Project Scope'!$AN$8:$AN$107,$I9,'Project Scope'!$C$8:$C$107,DE$7)+SUMIFS('Project Scope'!$AX$8:$AX$107,'Project Scope'!$AW$8:$AW$107,$I9,'Project Scope'!$C$8:$C$107,DE$7),0)","v":0},{"$f":"IF(BG9=\"yes\",SUMIFS('Project Scope'!$AO$8:$AO$107,'Project Scope'!$AN$8:$AN$107,$I9,'Project Scope'!$C$8:$C$107,DF$7)+SUMIFS('Project Scope'!$AX$8:$AX$107,'Project Scope'!$AW$8:$AW$107,$I9,'Project Scope'!$C$8:$C$107,DF$7),0)","v":0},{"$f":"IF(BH9=\"yes\",SUMIFS('Project Scope'!$AO$8:$AO$107,'Project Scope'!$AN$8:$AN$107,$I9,'Project Scope'!$C$8:$C$107,DG$7)+SUMIFS('Project Scope'!$AX$8:$AX$107,'Project Scope'!$AW$8:$AW$107,$I9,'Project Scope'!$C$8:$C$107,DG$7),0)","v":0},{"$f":"IF(BI9=\"yes\",SUMIFS('Project Scope'!$AO$8:$AO$107,'Project Scope'!$AN$8:$AN$107,$I9,'Project Scope'!$C$8:$C$107,DH$7)+SUMIFS('Project Scope'!$AX$8:$AX$107,'Project Scope'!$AW$8:$AW$107,$I9,'Project Scope'!$C$8:$C$107,DH$7),0)","v":0},{"$f":"IF(BJ9=\"yes\",SUMIFS('Project Scope'!$AO$8:$AO$107,'Project Scope'!$AN$8:$AN$107,$I9,'Project Scope'!$C$8:$C$107,DI$7)+SUMIFS('Project Scope'!$AX$8:$AX$107,'Project Scope'!$AW$8:$AW$107,$I9,'Project Scope'!$C$8:$C$107,DI$7),0)","v":0},{"$f":"IF(BK9=\"yes\",SUMIFS('Project Scope'!$AO$8:$AO$107,'Project Scope'!$AN$8:$AN$107,$I9,'Project Scope'!$C$8:$C$107,DJ$7)+SUMIFS('Project Scope'!$AX$8:$AX$107,'Project Scope'!$AW$8:$AW$107,$I9,'Project Scope'!$C$8:$C$107,DJ$7),0)","v":0},{"$f":"IF(BL9=\"yes\",SUMIFS('Project Scope'!$AO$8:$AO$107,'Project Scope'!$AN$8:$AN$107,$I9,'Project Scope'!$C$8:$C$107,DK$7)+SUMIFS('Project Scope'!$AX$8:$AX$107,'Project Scope'!$AW$8:$AW$107,$I9,'Project Scope'!$C$8:$C$107,DK$7),0)","v":0},null,{"$f":"IF(BN9>0,DM$7,\"\")","v":""},{"$f":"IF(BO9>0,DN$7,\"\")","v":""},{"$f":"IF(BP9>0,DO$7,\"\")","v":""},{"$f":"IF(BQ9>0,DP$7,\"\")","v":""},{"$f":"IF(BR9>0,DQ$7,\"\")","v":""},{"$f":"IF(BS9>0,DR$7,\"\")","v":""},{"$f":"IF(BT9>0,DS$7,\"\")","v":""},{"$f":"IF(BU9>0,DT$7,\"\")","v":""},{"$f":"IF(BV9>0,DU$7,\"\")","v":""},{"$f":"IF(BW9>0,DV$7,\"\")","v":""},"","","","","","","","","","","","","","","","","","","","","","","","","","","","","","","","","","","","","","","","",null,{"$f":"IF($DM9<>\"\",\"xx\"&$DM9&\"xx\",\"\")&IF($DN9<>\"\",\"xx\"&$DN9&\"xx\",\"\")&IF($DO9<>\"\",\"xx\"&$DO9&\"xx\",\"\")&IF($DP9<>\"\",\"xx\"&$DP9&\"xx\",\"\")&IF($DQ9<>\"\",\"xx\"&$DQ9&\"xx\",\"\")&IF($DR9<>\"\",\"xx\"&$DR9&\"xx\",\"\")&IF($DS9<>\"\",\"xx\"&$DS9&\"xx\",\"\")&IF($DT9<>\"\",\"xx\"&$DT9&\"xx\",\"\")&IF($DU9<>\"\",\"xx\"&$DU9&\"xx\",\"\")&IF($DV9<>\"\",\"xx\"&$DV9&\"xx\",\"\")&IF($DW9<>\"\",\"xx\"&$DW9&\"xx\",\"\")&IF($DX9<>\"\",\"xx\"&$DX9&\"xx\",\"\")&IF($DY9<>\"\",\"xx\"&$DY9&\"xx\",\"\")&IF($DZ9<>\"\",\"xx\"&$DZ9&\"xx\",\"\")&IF($EA9<>\"\",\"xx\"&$EA9&\"xx\",\"\")&IF($EB9<>\"\",\"xx\"&$EB9&\"xx\",\"\")&IF($EC9<>\"\",\"xx\"&$EC9&\"xx\",\"\")&IF($ED9<>\"\",\"xx\"&$ED9&\"xx\",\"\")&IF($EE9<>\"\",\"xx\"&$EE9&\"xx\",\"\")&IF($EF9<>\"\",\"xx\"&$EF9&\"xx\",\"\")&IF($EG9<>\"\",\"xx\"&$EG9&\"xx\",\"\")&IF($EH9<>\"\",\"xx\"&$EH9&\"xx\",\"\")&IF($EI9<>\"\",\"xx\"&$EI9&\"xx\",\"\")&IF($EJ9<>\"\",\"xx\"&$EJ9&\"xx\",\"\")&IF($EK9<>\"\",\"xx\"&$EK9&\"xx\",\"\")&IF($EL9<>\"\",\"xx\"&$EL9&\"xx\",\"\")&IF($EM9<>\"\",\"xx\"&$EM9&\"xx\",\"\")&IF($EN9<>\"\",\"xx\"&$EN9&\"xx\",\"\")&IF($EO9<>\"\",\"xx\"&$EO9&\"xx\",\"\")&IF($EP9<>\"\",\"xx\"&$EP9&\"xx\",\"\")&IF($EQ9<>\"\",\"xx\"&$EQ9&\"xx\",\"\")&IF($ER9<>\"\",\"xx\"&$ER9&\"xx\",\"\")&IF($ES9<>\"\",\"xx\"&$ES9&\"xx\",\"\")&IF($ET9<>\"\",\"xx\"&$ET9&\"xx\",\"\")&IF($EU9<>\"\",\"xx\"&$EU9&\"xx\",\"\")&IF($EV9<>\"\",\"xx\"&$EV9&\"xx\",\"\")&IF($EW9<>\"\",\"xx\"&$EW9&\"xx\",\"\")&IF($EX9<>\"\",\"xx\"&$EX9&\"xx\",\"\")&IF($EY9<>\"\",\"xx\"&$EY9&\"xx\",\"\")&IF($EZ9<>\"\",\"xx\"&$EZ9&\"xx\",\"\")&IF($FA9<>\"\",\"xx\"&$FA9&\"xx\",\"\")&IF($FB9<>\"\",\"xx\"&$FB9&\"xx\",\"\")&IF($FC9<>\"\",\"xx\"&$FC9&\"xx\",\"\")&IF($FD9<>\"\",\"xx\"&$FD9&\"xx\",\"\")&IF($FE9<>\"\",\"xx\"&$FE9&\"xx\",\"\")&IF($FF9<>\"\",\"xx\"&$FF9&\"xx\",\"\")&IF($FG9<>\"\",\"xx\"&$FG9&\"xx\",\"\")&IF($FH9<>\"\",\"xx\"&$FH9&\"xx\",\"\")&IF($FI9<>\"\",\"xx\"&$FI9&\"xx\",\"\")","v":""}]
[null,null,null,null,null,null,null,null,null,null,null,{"$f":"IF($C10=\"additional labor hours\",$K10*'Project Information'!$D$12,$K10*$J10)*IF($F10=\"Per Measure\",SUM($BN10:$DK10),1)","v":0},{"$f":"IF($C10=\"\",0,IF(VLOOKUP($C10,'Other Data'!$B$146:$C$156,2,FALSE)=\"M\",$L10,0))","v":0},0,null,null,null,null,null,null,null,null,null,null,null,null,null,null,null,null,null,null,null,null,null,null,null,null,null,null,null,null,null,null,null,null,null,null,null,null,null,null,null,null,null,null,null,null,null,null,null,null,null,null,null,{"$f":"IF(O10=\"yes\",SUMIFS('Project Scope'!$AO$8:$AO$107,'Project Scope'!$AN$8:$AN$107,$I10,'Project Scope'!$C$8:$C$107,BN$7)+SUMIFS('Project Scope'!$AX$8:$AX$107,'Project Scope'!$AW$8:$AW$107,$I10,'Project Scope'!$C$8:$C$107,BN$7),0)","v":0},{"$f":"IF(P10=\"yes\",SUMIFS('Project Scope'!$AO$8:$AO$107,'Project Scope'!$AN$8:$AN$107,$I10,'Project Scope'!$C$8:$C$107,BO$7)+SUMIFS('Project Scope'!$AX$8:$AX$107,'Project Scope'!$AW$8:$AW$107,$I10,'Project Scope'!$C$8:$C$107,BO$7),0)","v":0},{"$f":"IF(Q10=\"yes\",SUMIFS('Project Scope'!$AO$8:$AO$107,'Project Scope'!$AN$8:$AN$107,$I10,'Project Scope'!$C$8:$C$107,BP$7)+SUMIFS('Project Scope'!$AX$8:$AX$107,'Project Scope'!$AW$8:$AW$107,$I10,'Project Scope'!$C$8:$C$107,BP$7),0)","v":0},{"$f":"IF(R10=\"yes\",SUMIFS('Project Scope'!$AO$8:$AO$107,'Project Scope'!$AN$8:$AN$107,$I10,'Project Scope'!$C$8:$C$107,BQ$7)+SUMIFS('Project Scope'!$AX$8:$AX$107,'Project Scope'!$AW$8:$AW$107,$I10,'Project Scope'!$C$8:$C$107,BQ$7),0)","v":0},{"$f":"IF(S10=\"yes\",SUMIFS('Project Scope'!$AO$8:$AO$107,'Project Scope'!$AN$8:$AN$107,$I10,'Project Scope'!$C$8:$C$107,BR$7)+SUMIFS('Project Scope'!$AX$8:$AX$107,'Project Scope'!$AW$8:$AW$107,$I10,'Project Scope'!$C$8:$C$107,BR$7),0)","v":0},{"$f":"IF(T10=\"yes\",SUMIFS('Project Scope'!$AO$8:$AO$107,'Project Scope'!$AN$8:$AN$107,$I10,'Project Scope'!$C$8:$C$107,BS$7)+SUMIFS('Project Scope'!$AX$8:$AX$107,'Project Scope'!$AW$8:$AW$107,$I10,'Project Scope'!$C$8:$C$107,BS$7),0)","v":0},{"$f":"IF(U10=\"yes\",SUMIFS('Project Scope'!$AO$8:$AO$107,'Project Scope'!$AN$8:$AN$107,$I10,'Project Scope'!$C$8:$C$107,BT$7)+SUMIFS('Project Scope'!$AX$8:$AX$107,'Project Scope'!$AW$8:$AW$107,$I10,'Project Scope'!$C$8:$C$107,BT$7),0)","v":0},{"$f":"IF(V10=\"yes\",SUMIFS('Project Scope'!$AO$8:$AO$107,'Project Scope'!$AN$8:$AN$107,$I10,'Project Scope'!$C$8:$C$107,BU$7)+SUMIFS('Project Scope'!$AX$8:$AX$107,'Project Scope'!$AW$8:$AW$107,$I10,'Project Scope'!$C$8:$C$107,BU$7),0)","v":0},{"$f":"IF(W10=\"yes\",SUMIFS('Project Scope'!$AO$8:$AO$107,'Project Scope'!$AN$8:$AN$107,$I10,'Project Scope'!$C$8:$C$107,BV$7)+SUMIFS('Project Scope'!$AX$8:$AX$107,'Project Scope'!$AW$8:$AW$107,$I10,'Project Scope'!$C$8:$C$107,BV$7),0)","v":0},{"$f":"IF(X10=\"yes\",SUMIFS('Project Scope'!$AO$8:$AO$107,'Project Scope'!$AN$8:$AN$107,$I10,'Project Scope'!$C$8:$C$107,BW$7)+SUMIFS('Project Scope'!$AX$8:$AX$107,'Project Scope'!$AW$8:$AW$107,$I10,'Project Scope'!$C$8:$C$107,BW$7),0)","v":0},{"$f":"IF(Y10=\"yes\",SUMIFS('Project Scope'!$AO$8:$AO$107,'Project Scope'!$AN$8:$AN$107,$I10,'Project Scope'!$C$8:$C$107,BX$7)+SUMIFS('Project Scope'!$AX$8:$AX$107,'Project Scope'!$AW$8:$AW$107,$I10,'Project Scope'!$C$8:$C$107,BX$7),0)","v":0},{"$f":"IF(Z10=\"yes\",SUMIFS('Project Scope'!$AO$8:$AO$107,'Project Scope'!$AN$8:$AN$107,$I10,'Project Scope'!$C$8:$C$107,BY$7)+SUMIFS('Project Scope'!$AX$8:$AX$107,'Project Scope'!$AW$8:$AW$107,$I10,'Project Scope'!$C$8:$C$107,BY$7),0)","v":0},{"$f":"IF(AA10=\"yes\",SUMIFS('Project Scope'!$AO$8:$AO$107,'Project Scope'!$AN$8:$AN$107,$I10,'Project Scope'!$C$8:$C$107,BZ$7)+SUMIFS('Project Scope'!$AX$8:$AX$107,'Project Scope'!$AW$8:$AW$107,$I10,'Project Scope'!$C$8:$C$107,BZ$7),0)","v":0},{"$f":"IF(AB10=\"yes\",SUMIFS('Project Scope'!$AO$8:$AO$107,'Project Scope'!$AN$8:$AN$107,$I10,'Project Scope'!$C$8:$C$107,CA$7)+SUMIFS('Project Scope'!$AX$8:$AX$107,'Project Scope'!$AW$8:$AW$107,$I10,'Project Scope'!$C$8:$C$107,CA$7),0)","v":0},{"$f":"IF(AC10=\"yes\",SUMIFS('Project Scope'!$AO$8:$AO$107,'Project Scope'!$AN$8:$AN$107,$I10,'Project Scope'!$C$8:$C$107,CB$7)+SUMIFS('Project Scope'!$AX$8:$AX$107,'Project Scope'!$AW$8:$AW$107,$I10,'Project Scope'!$C$8:$C$107,CB$7),0)","v":0},{"$f":"IF(AD10=\"yes\",SUMIFS('Project Scope'!$AO$8:$AO$107,'Project Scope'!$AN$8:$AN$107,$I10,'Project Scope'!$C$8:$C$107,CC$7)+SUMIFS('Project Scope'!$AX$8:$AX$107,'Project Scope'!$AW$8:$AW$107,$I10,'Project Scope'!$C$8:$C$107,CC$7),0)","v":0},{"$f":"IF(AE10=\"yes\",SUMIFS('Project Scope'!$AO$8:$AO$107,'Project Scope'!$AN$8:$AN$107,$I10,'Project Scope'!$C$8:$C$107,CD$7)+SUMIFS('Project Scope'!$AX$8:$AX$107,'Project Scope'!$AW$8:$AW$107,$I10,'Project Scope'!$C$8:$C$107,CD$7),0)","v":0},{"$f":"IF(AF10=\"yes\",SUMIFS('Project Scope'!$AO$8:$AO$107,'Project Scope'!$AN$8:$AN$107,$I10,'Project Scope'!$C$8:$C$107,CE$7)+SUMIFS('Project Scope'!$AX$8:$AX$107,'Project Scope'!$AW$8:$AW$107,$I10,'Project Scope'!$C$8:$C$107,CE$7),0)","v":0},{"$f":"IF(AG10=\"yes\",SUMIFS('Project Scope'!$AO$8:$AO$107,'Project Scope'!$AN$8:$AN$107,$I10,'Project Scope'!$C$8:$C$107,CF$7)+SUMIFS('Project Scope'!$AX$8:$AX$107,'Project Scope'!$AW$8:$AW$107,$I10,'Project Scope'!$C$8:$C$107,CF$7),0)","v":0},{"$f":"IF(AH10=\"yes\",SUMIFS('Project Scope'!$AO$8:$AO$107,'Project Scope'!$AN$8:$AN$107,$I10,'Project Scope'!$C$8:$C$107,CG$7)+SUMIFS('Project Scope'!$AX$8:$AX$107,'Project Scope'!$AW$8:$AW$107,$I10,'Project Scope'!$C$8:$C$107,CG$7),0)","v":0},{"$f":"IF(AI10=\"yes\",SUMIFS('Project Scope'!$AO$8:$AO$107,'Project Scope'!$AN$8:$AN$107,$I10,'Project Scope'!$C$8:$C$107,CH$7)+SUMIFS('Project Scope'!$AX$8:$AX$107,'Project Scope'!$AW$8:$AW$107,$I10,'Project Scope'!$C$8:$C$107,CH$7),0)","v":0},{"$f":"IF(AJ10=\"yes\",SUMIFS('Project Scope'!$AO$8:$AO$107,'Project Scope'!$AN$8:$AN$107,$I10,'Project Scope'!$C$8:$C$107,CI$7)+SUMIFS('Project Scope'!$AX$8:$AX$107,'Project Scope'!$AW$8:$AW$107,$I10,'Project Scope'!$C$8:$C$107,CI$7),0)","v":0},{"$f":"IF(AK10=\"yes\",SUMIFS('Project Scope'!$AO$8:$AO$107,'Project Scope'!$AN$8:$AN$107,$I10,'Project Scope'!$C$8:$C$107,CJ$7)+SUMIFS('Project Scope'!$AX$8:$AX$107,'Project Scope'!$AW$8:$AW$107,$I10,'Project Scope'!$C$8:$C$107,CJ$7),0)","v":0},{"$f":"IF(AL10=\"yes\",SUMIFS('Project Scope'!$AO$8:$AO$107,'Project Scope'!$AN$8:$AN$107,$I10,'Project Scope'!$C$8:$C$107,CK$7)+SUMIFS('Project Scope'!$AX$8:$AX$107,'Project Scope'!$AW$8:$AW$107,$I10,'Project Scope'!$C$8:$C$107,CK$7),0)","v":0},{"$f":"IF(AM10=\"yes\",SUMIFS('Project Scope'!$AO$8:$AO$107,'Project Scope'!$AN$8:$AN$107,$I10,'Project Scope'!$C$8:$C$107,CL$7)+SUMIFS('Project Scope'!$AX$8:$AX$107,'Project Scope'!$AW$8:$AW$107,$I10,'Project Scope'!$C$8:$C$107,CL$7),0)","v":0},{"$f":"IF(AN10=\"yes\",SUMIFS('Project Scope'!$AO$8:$AO$107,'Project Scope'!$AN$8:$AN$107,$I10,'Project Scope'!$C$8:$C$107,CM$7)+SUMIFS('Project Scope'!$AX$8:$AX$107,'Project Scope'!$AW$8:$AW$107,$I10,'Project Scope'!$C$8:$C$107,CM$7),0)","v":0},{"$f":"IF(AO10=\"yes\",SUMIFS('Project Scope'!$AO$8:$AO$107,'Project Scope'!$AN$8:$AN$107,$I10,'Project Scope'!$C$8:$C$107,CN$7)+SUMIFS('Project Scope'!$AX$8:$AX$107,'Project Scope'!$AW$8:$AW$107,$I10,'Project Scope'!$C$8:$C$107,CN$7),0)","v":0},{"$f":"IF(AP10=\"yes\",SUMIFS('Project Scope'!$AO$8:$AO$107,'Project Scope'!$AN$8:$AN$107,$I10,'Project Scope'!$C$8:$C$107,CO$7)+SUMIFS('Project Scope'!$AX$8:$AX$107,'Project Scope'!$AW$8:$AW$107,$I10,'Project Scope'!$C$8:$C$107,CO$7),0)","v":0},{"$f":"IF(AQ10=\"yes\",SUMIFS('Project Scope'!$AO$8:$AO$107,'Project Scope'!$AN$8:$AN$107,$I10,'Project Scope'!$C$8:$C$107,CP$7)+SUMIFS('Project Scope'!$AX$8:$AX$107,'Project Scope'!$AW$8:$AW$107,$I10,'Project Scope'!$C$8:$C$107,CP$7),0)","v":0},{"$f":"IF(AR10=\"yes\",SUMIFS('Project Scope'!$AO$8:$AO$107,'Project Scope'!$AN$8:$AN$107,$I10,'Project Scope'!$C$8:$C$107,CQ$7)+SUMIFS('Project Scope'!$AX$8:$AX$107,'Project Scope'!$AW$8:$AW$107,$I10,'Project Scope'!$C$8:$C$107,CQ$7),0)","v":0},{"$f":"IF(AS10=\"yes\",SUMIFS('Project Scope'!$AO$8:$AO$107,'Project Scope'!$AN$8:$AN$107,$I10,'Project Scope'!$C$8:$C$107,CR$7)+SUMIFS('Project Scope'!$AX$8:$AX$107,'Project Scope'!$AW$8:$AW$107,$I10,'Project Scope'!$C$8:$C$107,CR$7),0)","v":0},{"$f":"IF(AT10=\"yes\",SUMIFS('Project Scope'!$AO$8:$AO$107,'Project Scope'!$AN$8:$AN$107,$I10,'Project Scope'!$C$8:$C$107,CS$7)+SUMIFS('Project Scope'!$AX$8:$AX$107,'Project Scope'!$AW$8:$AW$107,$I10,'Project Scope'!$C$8:$C$107,CS$7),0)","v":0},{"$f":"IF(AU10=\"yes\",SUMIFS('Project Scope'!$AO$8:$AO$107,'Project Scope'!$AN$8:$AN$107,$I10,'Project Scope'!$C$8:$C$107,CT$7)+SUMIFS('Project Scope'!$AX$8:$AX$107,'Project Scope'!$AW$8:$AW$107,$I10,'Project Scope'!$C$8:$C$107,CT$7),0)","v":0},{"$f":"IF(AV10=\"yes\",SUMIFS('Project Scope'!$AO$8:$AO$107,'Project Scope'!$AN$8:$AN$107,$I10,'Project Scope'!$C$8:$C$107,CU$7)+SUMIFS('Project Scope'!$AX$8:$AX$107,'Project Scope'!$AW$8:$AW$107,$I10,'Project Scope'!$C$8:$C$107,CU$7),0)","v":0},{"$f":"IF(AW10=\"yes\",SUMIFS('Project Scope'!$AO$8:$AO$107,'Project Scope'!$AN$8:$AN$107,$I10,'Project Scope'!$C$8:$C$107,CV$7)+SUMIFS('Project Scope'!$AX$8:$AX$107,'Project Scope'!$AW$8:$AW$107,$I10,'Project Scope'!$C$8:$C$107,CV$7),0)","v":0},{"$f":"IF(AX10=\"yes\",SUMIFS('Project Scope'!$AO$8:$AO$107,'Project Scope'!$AN$8:$AN$107,$I10,'Project Scope'!$C$8:$C$107,CW$7)+SUMIFS('Project Scope'!$AX$8:$AX$107,'Project Scope'!$AW$8:$AW$107,$I10,'Project Scope'!$C$8:$C$107,CW$7),0)","v":0},{"$f":"IF(AY10=\"yes\",SUMIFS('Project Scope'!$AO$8:$AO$107,'Project Scope'!$AN$8:$AN$107,$I10,'Project Scope'!$C$8:$C$107,CX$7)+SUMIFS('Project Scope'!$AX$8:$AX$107,'Project Scope'!$AW$8:$AW$107,$I10,'Project Scope'!$C$8:$C$107,CX$7),0)","v":0},{"$f":"IF(AZ10=\"yes\",SUMIFS('Project Scope'!$AO$8:$AO$107,'Project Scope'!$AN$8:$AN$107,$I10,'Project Scope'!$C$8:$C$107,CY$7)+SUMIFS('Project Scope'!$AX$8:$AX$107,'Project Scope'!$AW$8:$AW$107,$I10,'Project Scope'!$C$8:$C$107,CY$7),0)","v":0},{"$f":"IF(BA10=\"yes\",SUMIFS('Project Scope'!$AO$8:$AO$107,'Project Scope'!$AN$8:$AN$107,$I10,'Project Scope'!$C$8:$C$107,CZ$7)+SUMIFS('Project Scope'!$AX$8:$AX$107,'Project Scope'!$AW$8:$AW$107,$I10,'Project Scope'!$C$8:$C$107,CZ$7),0)","v":0},{"$f":"IF(BB10=\"yes\",SUMIFS('Project Scope'!$AO$8:$AO$107,'Project Scope'!$AN$8:$AN$107,$I10,'Project Scope'!$C$8:$C$107,DA$7)+SUMIFS('Project Scope'!$AX$8:$AX$107,'Project Scope'!$AW$8:$AW$107,$I10,'Project Scope'!$C$8:$C$107,DA$7),0)","v":0},{"$f":"IF(BC10=\"yes\",SUMIFS('Project Scope'!$AO$8:$AO$107,'Project Scope'!$AN$8:$AN$107,$I10,'Project Scope'!$C$8:$C$107,DB$7)+SUMIFS('Project Scope'!$AX$8:$AX$107,'Project Scope'!$AW$8:$AW$107,$I10,'Project Scope'!$C$8:$C$107,DB$7),0)","v":0},{"$f":"IF(BD10=\"yes\",SUMIFS('Project Scope'!$AO$8:$AO$107,'Project Scope'!$AN$8:$AN$107,$I10,'Project Scope'!$C$8:$C$107,DC$7)+SUMIFS('Project Scope'!$AX$8:$AX$107,'Project Scope'!$AW$8:$AW$107,$I10,'Project Scope'!$C$8:$C$107,DC$7),0)","v":0},{"$f":"IF(BE10=\"yes\",SUMIFS('Project Scope'!$AO$8:$AO$107,'Project Scope'!$AN$8:$AN$107,$I10,'Project Scope'!$C$8:$C$107,DD$7)+SUMIFS('Project Scope'!$AX$8:$AX$107,'Project Scope'!$AW$8:$AW$107,$I10,'Project Scope'!$C$8:$C$107,DD$7),0)","v":0},{"$f":"IF(BF10=\"yes\",SUMIFS('Project Scope'!$AO$8:$AO$107,'Project Scope'!$AN$8:$AN$107,$I10,'Project Scope'!$C$8:$C$107,DE$7)+SUMIFS('Project Scope'!$AX$8:$AX$107,'Project Scope'!$AW$8:$AW$107,$I10,'Project Scope'!$C$8:$C$107,DE$7),0)","v":0},{"$f":"IF(BG10=\"yes\",SUMIFS('Project Scope'!$AO$8:$AO$107,'Project Scope'!$AN$8:$AN$107,$I10,'Project Scope'!$C$8:$C$107,DF$7)+SUMIFS('Project Scope'!$AX$8:$AX$107,'Project Scope'!$AW$8:$AW$107,$I10,'Project Scope'!$C$8:$C$107,DF$7),0)","v":0},{"$f":"IF(BH10=\"yes\",SUMIFS('Project Scope'!$AO$8:$AO$107,'Project Scope'!$AN$8:$AN$107,$I10,'Project Scope'!$C$8:$C$107,DG$7)+SUMIFS('Project Scope'!$AX$8:$AX$107,'Project Scope'!$AW$8:$AW$107,$I10,'Project Scope'!$C$8:$C$107,DG$7),0)","v":0},{"$f":"IF(BI10=\"yes\",SUMIFS('Project Scope'!$AO$8:$AO$107,'Project Scope'!$AN$8:$AN$107,$I10,'Project Scope'!$C$8:$C$107,DH$7)+SUMIFS('Project Scope'!$AX$8:$AX$107,'Project Scope'!$AW$8:$AW$107,$I10,'Project Scope'!$C$8:$C$107,DH$7),0)","v":0},{"$f":"IF(BJ10=\"yes\",SUMIFS('Project Scope'!$AO$8:$AO$107,'Project Scope'!$AN$8:$AN$107,$I10,'Project Scope'!$C$8:$C$107,DI$7)+SUMIFS('Project Scope'!$AX$8:$AX$107,'Project Scope'!$AW$8:$AW$107,$I10,'Project Scope'!$C$8:$C$107,DI$7),0)","v":0},{"$f":"IF(BK10=\"yes\",SUMIFS('Project Scope'!$AO$8:$AO$107,'Project Scope'!$AN$8:$AN$107,$I10,'Project Scope'!$C$8:$C$107,DJ$7)+SUMIFS('Project Scope'!$AX$8:$AX$107,'Project Scope'!$AW$8:$AW$107,$I10,'Project Scope'!$C$8:$C$107,DJ$7),0)","v":0},{"$f":"IF(BL10=\"yes\",SUMIFS('Project Scope'!$AO$8:$AO$107,'Project Scope'!$AN$8:$AN$107,$I10,'Project Scope'!$C$8:$C$107,DK$7)+SUMIFS('Project Scope'!$AX$8:$AX$107,'Project Scope'!$AW$8:$AW$107,$I10,'Project Scope'!$C$8:$C$107,DK$7),0)","v":0},null,"","","","","","","","","","","","","","","","","","","","","","","","","","","","","","","","","","","","","","","","","","","","","","","","","","",null,""]
[null,null,null,null,null,null,null,null,null,null,null,{"$f":"IF($C11=\"additional labor hours\",$K11*'Project Information'!$D$12,$K11*$J11)*IF($F11=\"Per Measure\",SUM($BN11:$DK11),1)","v":0},{"$f":"IF($C11=\"\",0,IF(VLOOKUP($C11,'Other Data'!$B$146:$C$156,2,FALSE)=\"M\",$L11,0))","v":0},0,null,null,null,null,null,null,null,null,null,null,null,null,null,null,null,null,null,null,null,null,null,null,null,null,null,null,null,null,null,null,null,null,null,null,null,null,null,null,null,null,null,null,null,null,null,null,null,null,null,null,null,{"$f":"IF(O11=\"yes\",SUMIFS('Project Scope'!$AO$8:$AO$107,'Project Scope'!$AN$8:$AN$107,$I11,'Project Scope'!$C$8:$C$107,BN$7)+SUMIFS('Project Scope'!$AX$8:$AX$107,'Project Scope'!$AW$8:$AW$107,$I11,'Project Scope'!$C$8:$C$107,BN$7),0)","v":0},{"$f":"IF(P11=\"yes\",SUMIFS('Project Scope'!$AO$8:$AO$107,'Project Scope'!$AN$8:$AN$107,$I11,'Project Scope'!$C$8:$C$107,BO$7)+SUMIFS('Project Scope'!$AX$8:$AX$107,'Project Scope'!$AW$8:$AW$107,$I11,'Project Scope'!$C$8:$C$107,BO$7),0)","v":0},{"$f":"IF(Q11=\"yes\",SUMIFS('Project Scope'!$AO$8:$AO$107,'Project Scope'!$AN$8:$AN$107,$I11,'Project Scope'!$C$8:$C$107,BP$7)+SUMIFS('Project Scope'!$AX$8:$AX$107,'Project Scope'!$AW$8:$AW$107,$I11,'Project Scope'!$C$8:$C$107,BP$7),0)","v":0},{"$f":"IF(R11=\"yes\",SUMIFS('Project Scope'!$AO$8:$AO$107,'Project Scope'!$AN$8:$AN$107,$I11,'Project Scope'!$C$8:$C$107,BQ$7)+SUMIFS('Project Scope'!$AX$8:$AX$107,'Project Scope'!$AW$8:$AW$107,$I11,'Project Scope'!$C$8:$C$107,BQ$7),0)","v":0},{"$f":"IF(S11=\"yes\",SUMIFS('Project Scope'!$AO$8:$AO$107,'Project Scope'!$AN$8:$AN$107,$I11,'Project Scope'!$C$8:$C$107,BR$7)+SUMIFS('Project Scope'!$AX$8:$AX$107,'Project Scope'!$AW$8:$AW$107,$I11,'Project Scope'!$C$8:$C$107,BR$7),0)","v":0},{"$f":"IF(T11=\"yes\",SUMIFS('Project Scope'!$AO$8:$AO$107,'Project Scope'!$AN$8:$AN$107,$I11,'Project Scope'!$C$8:$C$107,BS$7)+SUMIFS('Project Scope'!$AX$8:$AX$107,'Project Scope'!$AW$8:$AW$107,$I11,'Project Scope'!$C$8:$C$107,BS$7),0)","v":0},{"$f":"IF(U11=\"yes\",SUMIFS('Project Scope'!$AO$8:$AO$107,'Project Scope'!$AN$8:$AN$107,$I11,'Project Scope'!$C$8:$C$107,BT$7)+SUMIFS('Project Scope'!$AX$8:$AX$107,'Project Scope'!$AW$8:$AW$107,$I11,'Project Scope'!$C$8:$C$107,BT$7),0)","v":0},{"$f":"IF(V11=\"yes\",SUMIFS('Project Scope'!$AO$8:$AO$107,'Project Scope'!$AN$8:$AN$107,$I11,'Project Scope'!$C$8:$C$107,BU$7)+SUMIFS('Project Scope'!$AX$8:$AX$107,'Project Scope'!$AW$8:$AW$107,$I11,'Project Scope'!$C$8:$C$107,BU$7),0)","v":0},{"$f":"IF(W11=\"yes\",SUMIFS('Project Scope'!$AO$8:$AO$107,'Project Scope'!$AN$8:$AN$107,$I11,'Project Scope'!$C$8:$C$107,BV$7)+SUMIFS('Project Scope'!$AX$8:$AX$107,'Project Scope'!$AW$8:$AW$107,$I11,'Project Scope'!$C$8:$C$107,BV$7),0)","v":0},{"$f":"IF(X11=\"yes\",SUMIFS('Project Scope'!$AO$8:$AO$107,'Project Scope'!$AN$8:$AN$107,$I11,'Project Scope'!$C$8:$C$107,BW$7)+SUMIFS('Project Scope'!$AX$8:$AX$107,'Project Scope'!$AW$8:$AW$107,$I11,'Project Scope'!$C$8:$C$107,BW$7),0)","v":0},{"$f":"IF(Y11=\"yes\",SUMIFS('Project Scope'!$AO$8:$AO$107,'Project Scope'!$AN$8:$AN$107,$I11,'Project Scope'!$C$8:$C$107,BX$7)+SUMIFS('Project Scope'!$AX$8:$AX$107,'Project Scope'!$AW$8:$AW$107,$I11,'Project Scope'!$C$8:$C$107,BX$7),0)","v":0},{"$f":"IF(Z11=\"yes\",SUMIFS('Project Scope'!$AO$8:$AO$107,'Project Scope'!$AN$8:$AN$107,$I11,'Project Scope'!$C$8:$C$107,BY$7)+SUMIFS('Project Scope'!$AX$8:$AX$107,'Project Scope'!$AW$8:$AW$107,$I11,'Project Scope'!$C$8:$C$107,BY$7),0)","v":0},{"$f":"IF(AA11=\"yes\",SUMIFS('Project Scope'!$AO$8:$AO$107,'Project Scope'!$AN$8:$AN$107,$I11,'Project Scope'!$C$8:$C$107,BZ$7)+SUMIFS('Project Scope'!$AX$8:$AX$107,'Project Scope'!$AW$8:$AW$107,$I11,'Project Scope'!$C$8:$C$107,BZ$7),0)","v":0},{"$f":"IF(AB11=\"yes\",SUMIFS('Project Scope'!$AO$8:$AO$107,'Project Scope'!$AN$8:$AN$107,$I11,'Project Scope'!$C$8:$C$107,CA$7)+SUMIFS('Project Scope'!$AX$8:$AX$107,'Project Scope'!$AW$8:$AW$107,$I11,'Project Scope'!$C$8:$C$107,CA$7),0)","v":0},{"$f":"IF(AC11=\"yes\",SUMIFS('Project Scope'!$AO$8:$AO$107,'Project Scope'!$AN$8:$AN$107,$I11,'Project Scope'!$C$8:$C$107,CB$7)+SUMIFS('Project Scope'!$AX$8:$AX$107,'Project Scope'!$AW$8:$AW$107,$I11,'Project Scope'!$C$8:$C$107,CB$7),0)","v":0},{"$f":"IF(AD11=\"yes\",SUMIFS('Project Scope'!$AO$8:$AO$107,'Project Scope'!$AN$8:$AN$107,$I11,'Project Scope'!$C$8:$C$107,CC$7)+SUMIFS('Project Scope'!$AX$8:$AX$107,'Project Scope'!$AW$8:$AW$107,$I11,'Project Scope'!$C$8:$C$107,CC$7),0)","v":0},{"$f":"IF(AE11=\"yes\",SUMIFS('Project Scope'!$AO$8:$AO$107,'Project Scope'!$AN$8:$AN$107,$I11,'Project Scope'!$C$8:$C$107,CD$7)+SUMIFS('Project Scope'!$AX$8:$AX$107,'Project Scope'!$AW$8:$AW$107,$I11,'Project Scope'!$C$8:$C$107,CD$7),0)","v":0},{"$f":"IF(AF11=\"yes\",SUMIFS('Project Scope'!$AO$8:$AO$107,'Project Scope'!$AN$8:$AN$107,$I11,'Project Scope'!$C$8:$C$107,CE$7)+SUMIFS('Project Scope'!$AX$8:$AX$107,'Project Scope'!$AW$8:$AW$107,$I11,'Project Scope'!$C$8:$C$107,CE$7),0)","v":0},{"$f":"IF(AG11=\"yes\",SUMIFS('Project Scope'!$AO$8:$AO$107,'Project Scope'!$AN$8:$AN$107,$I11,'Project Scope'!$C$8:$C$107,CF$7)+SUMIFS('Project Scope'!$AX$8:$AX$107,'Project Scope'!$AW$8:$AW$107,$I11,'Project Scope'!$C$8:$C$107,CF$7),0)","v":0},{"$f":"IF(AH11=\"yes\",SUMIFS('Project Scope'!$AO$8:$AO$107,'Project Scope'!$AN$8:$AN$107,$I11,'Project Scope'!$C$8:$C$107,CG$7)+SUMIFS('Project Scope'!$AX$8:$AX$107,'Project Scope'!$AW$8:$AW$107,$I11,'Project Scope'!$C$8:$C$107,CG$7),0)","v":0},{"$f":"IF(AI11=\"yes\",SUMIFS('Project Scope'!$AO$8:$AO$107,'Project Scope'!$AN$8:$AN$107,$I11,'Project Scope'!$C$8:$C$107,CH$7)+SUMIFS('Project Scope'!$AX$8:$AX$107,'Project Scope'!$AW$8:$AW$107,$I11,'Project Scope'!$C$8:$C$107,CH$7),0)","v":0},{"$f":"IF(AJ11=\"yes\",SUMIFS('Project Scope'!$AO$8:$AO$107,'Project Scope'!$AN$8:$AN$107,$I11,'Project Scope'!$C$8:$C$107,CI$7)+SUMIFS('Project Scope'!$AX$8:$AX$107,'Project Scope'!$AW$8:$AW$107,$I11,'Project Scope'!$C$8:$C$107,CI$7),0)","v":0},{"$f":"IF(AK11=\"yes\",SUMIFS('Project Scope'!$AO$8:$AO$107,'Project Scope'!$AN$8:$AN$107,$I11,'Project Scope'!$C$8:$C$107,CJ$7)+SUMIFS('Project Scope'!$AX$8:$AX$107,'Project Scope'!$AW$8:$AW$107,$I11,'Project Scope'!$C$8:$C$107,CJ$7),0)","v":0},{"$f":"IF(AL11=\"yes\",SUMIFS('Project Scope'!$AO$8:$AO$107,'Project Scope'!$AN$8:$AN$107,$I11,'Project Scope'!$C$8:$C$107,CK$7)+SUMIFS('Project Scope'!$AX$8:$AX$107,'Project Scope'!$AW$8:$AW$107,$I11,'Project Scope'!$C$8:$C$107,CK$7),0)","v":0},{"$f":"IF(AM11=\"yes\",SUMIFS('Project Scope'!$AO$8:$AO$107,'Project Scope'!$AN$8:$AN$107,$I11,'Project Scope'!$C$8:$C$107,CL$7)+SUMIFS('Project Scope'!$AX$8:$AX$107,'Project Scope'!$AW$8:$AW$107,$I11,'Project Scope'!$C$8:$C$107,CL$7),0)","v":0},{"$f":"IF(AN11=\"yes\",SUMIFS('Project Scope'!$AO$8:$AO$107,'Project Scope'!$AN$8:$AN$107,$I11,'Project Scope'!$C$8:$C$107,CM$7)+SUMIFS('Project Scope'!$AX$8:$AX$107,'Project Scope'!$AW$8:$AW$107,$I11,'Project Scope'!$C$8:$C$107,CM$7),0)","v":0},{"$f":"IF(AO11=\"yes\",SUMIFS('Project Scope'!$AO$8:$AO$107,'Project Scope'!$AN$8:$AN$107,$I11,'Project Scope'!$C$8:$C$107,CN$7)+SUMIFS('Project Scope'!$AX$8:$AX$107,'Project Scope'!$AW$8:$AW$107,$I11,'Project Scope'!$C$8:$C$107,CN$7),0)","v":0},{"$f":"IF(AP11=\"yes\",SUMIFS('Project Scope'!$AO$8:$AO$107,'Project Scope'!$AN$8:$AN$107,$I11,'Project Scope'!$C$8:$C$107,CO$7)+SUMIFS('Project Scope'!$AX$8:$AX$107,'Project Scope'!$AW$8:$AW$107,$I11,'Project Scope'!$C$8:$C$107,CO$7),0)","v":0},{"$f":"IF(AQ11=\"yes\",SUMIFS('Project Scope'!$AO$8:$AO$107,'Project Scope'!$AN$8:$AN$107,$I11,'Project Scope'!$C$8:$C$107,CP$7)+SUMIFS('Project Scope'!$AX$8:$AX$107,'Project Scope'!$AW$8:$AW$107,$I11,'Project Scope'!$C$8:$C$107,CP$7),0)","v":0},{"$f":"IF(AR11=\"yes\",SUMIFS('Project Scope'!$AO$8:$AO$107,'Project Scope'!$AN$8:$AN$107,$I11,'Project Scope'!$C$8:$C$107,CQ$7)+SUMIFS('Project Scope'!$AX$8:$AX$107,'Project Scope'!$AW$8:$AW$107,$I11,'Project Scope'!$C$8:$C$107,CQ$7),0)","v":0},{"$f":"IF(AS11=\"yes\",SUMIFS('Project Scope'!$AO$8:$AO$107,'Project Scope'!$AN$8:$AN$107,$I11,'Project Scope'!$C$8:$C$107,CR$7)+SUMIFS('Project Scope'!$AX$8:$AX$107,'Project Scope'!$AW$8:$AW$107,$I11,'Project Scope'!$C$8:$C$107,CR$7),0)","v":0},{"$f":"IF(AT11=\"yes\",SUMIFS('Project Scope'!$AO$8:$AO$107,'Project Scope'!$AN$8:$AN$107,$I11,'Project Scope'!$C$8:$C$107,CS$7)+SUMIFS('Project Scope'!$AX$8:$AX$107,'Project Scope'!$AW$8:$AW$107,$I11,'Project Scope'!$C$8:$C$107,CS$7),0)","v":0},{"$f":"IF(AU11=\"yes\",SUMIFS('Project Scope'!$AO$8:$AO$107,'Project Scope'!$AN$8:$AN$107,$I11,'Project Scope'!$C$8:$C$107,CT$7)+SUMIFS('Project Scope'!$AX$8:$AX$107,'Project Scope'!$AW$8:$AW$107,$I11,'Project Scope'!$C$8:$C$107,CT$7),0)","v":0},{"$f":"IF(AV11=\"yes\",SUMIFS('Project Scope'!$AO$8:$AO$107,'Project Scope'!$AN$8:$AN$107,$I11,'Project Scope'!$C$8:$C$107,CU$7)+SUMIFS('Project Scope'!$AX$8:$AX$107,'Project Scope'!$AW$8:$AW$107,$I11,'Project Scope'!$C$8:$C$107,CU$7),0)","v":0},{"$f":"IF(AW11=\"yes\",SUMIFS('Project Scope'!$AO$8:$AO$107,'Project Scope'!$AN$8:$AN$107,$I11,'Project Scope'!$C$8:$C$107,CV$7)+SUMIFS('Project Scope'!$AX$8:$AX$107,'Project Scope'!$AW$8:$AW$107,$I11,'Project Scope'!$C$8:$C$107,CV$7),0)","v":0},{"$f":"IF(AX11=\"yes\",SUMIFS('Project Scope'!$AO$8:$AO$107,'Project Scope'!$AN$8:$AN$107,$I11,'Project Scope'!$C$8:$C$107,CW$7)+SUMIFS('Project Scope'!$AX$8:$AX$107,'Project Scope'!$AW$8:$AW$107,$I11,'Project Scope'!$C$8:$C$107,CW$7),0)","v":0},{"$f":"IF(AY11=\"yes\",SUMIFS('Project Scope'!$AO$8:$AO$107,'Project Scope'!$AN$8:$AN$107,$I11,'Project Scope'!$C$8:$C$107,CX$7)+SUMIFS('Project Scope'!$AX$8:$AX$107,'Project Scope'!$AW$8:$AW$107,$I11,'Project Scope'!$C$8:$C$107,CX$7),0)","v":0},{"$f":"IF(AZ11=\"yes\",SUMIFS('Project Scope'!$AO$8:$AO$107,'Project Scope'!$AN$8:$AN$107,$I11,'Project Scope'!$C$8:$C$107,CY$7)+SUMIFS('Project Scope'!$AX$8:$AX$107,'Project Scope'!$AW$8:$AW$107,$I11,'Project Scope'!$C$8:$C$107,CY$7),0)","v":0},{"$f":"IF(BA11=\"yes\",SUMIFS('Project Scope'!$AO$8:$AO$107,'Project Scope'!$AN$8:$AN$107,$I11,'Project Scope'!$C$8:$C$107,CZ$7)+SUMIFS('Project Scope'!$AX$8:$AX$107,'Project Scope'!$AW$8:$AW$107,$I11,'Project Scope'!$C$8:$C$107,CZ$7),0)","v":0},{"$f":"IF(BB11=\"yes\",SUMIFS('Project Scope'!$AO$8:$AO$107,'Project Scope'!$AN$8:$AN$107,$I11,'Project Scope'!$C$8:$C$107,DA$7)+SUMIFS('Project Scope'!$AX$8:$AX$107,'Project Scope'!$AW$8:$AW$107,$I11,'Project Scope'!$C$8:$C$107,DA$7),0)","v":0},{"$f":"IF(BC11=\"yes\",SUMIFS('Project Scope'!$AO$8:$AO$107,'Project Scope'!$AN$8:$AN$107,$I11,'Project Scope'!$C$8:$C$107,DB$7)+SUMIFS('Project Scope'!$AX$8:$AX$107,'Project Scope'!$AW$8:$AW$107,$I11,'Project Scope'!$C$8:$C$107,DB$7),0)","v":0},{"$f":"IF(BD11=\"yes\",SUMIFS('Project Scope'!$AO$8:$AO$107,'Project Scope'!$AN$8:$AN$107,$I11,'Project Scope'!$C$8:$C$107,DC$7)+SUMIFS('Project Scope'!$AX$8:$AX$107,'Project Scope'!$AW$8:$AW$107,$I11,'Project Scope'!$C$8:$C$107,DC$7),0)","v":0},{"$f":"IF(BE11=\"yes\",SUMIFS('Project Scope'!$AO$8:$AO$107,'Project Scope'!$AN$8:$AN$107,$I11,'Project Scope'!$C$8:$C$107,DD$7)+SUMIFS('Project Scope'!$AX$8:$AX$107,'Project Scope'!$AW$8:$AW$107,$I11,'Project Scope'!$C$8:$C$107,DD$7),0)","v":0},{"$f":"IF(BF11=\"yes\",SUMIFS('Project Scope'!$AO$8:$AO$107,'Project Scope'!$AN$8:$AN$107,$I11,'Project Scope'!$C$8:$C$107,DE$7)+SUMIFS('Project Scope'!$AX$8:$AX$107,'Project Scope'!$AW$8:$AW$107,$I11,'Project Scope'!$C$8:$C$107,DE$7),0)","v":0},{"$f":"IF(BG11=\"yes\",SUMIFS('Project Scope'!$AO$8:$AO$107,'Project Scope'!$AN$8:$AN$107,$I11,'Project Scope'!$C$8:$C$107,DF$7)+SUMIFS('Project Scope'!$AX$8:$AX$107,'Project Scope'!$AW$8:$AW$107,$I11,'Project Scope'!$C$8:$C$107,DF$7),0)","v":0},{"$f":"IF(BH11=\"yes\",SUMIFS('Project Scope'!$AO$8:$AO$107,'Project Scope'!$AN$8:$AN$107,$I11,'Project Scope'!$C$8:$C$107,DG$7)+SUMIFS('Project Scope'!$AX$8:$AX$107,'Project Scope'!$AW$8:$AW$107,$I11,'Project Scope'!$C$8:$C$107,DG$7),0)","v":0},{"$f":"IF(BI11=\"yes\",SUMIFS('Project Scope'!$AO$8:$AO$107,'Project Scope'!$AN$8:$AN$107,$I11,'Project Scope'!$C$8:$C$107,DH$7)+SUMIFS('Project Scope'!$AX$8:$AX$107,'Project Scope'!$AW$8:$AW$107,$I11,'Project Scope'!$C$8:$C$107,DH$7),0)","v":0},{"$f":"IF(BJ11=\"yes\",SUMIFS('Project Scope'!$AO$8:$AO$107,'Project Scope'!$AN$8:$AN$107,$I11,'Project Scope'!$C$8:$C$107,DI$7)+SUMIFS('Project Scope'!$AX$8:$AX$107,'Project Scope'!$AW$8:$AW$107,$I11,'Project Scope'!$C$8:$C$107,DI$7),0)","v":0},{"$f":"IF(BK11=\"yes\",SUMIFS('Project Scope'!$AO$8:$AO$107,'Project Scope'!$AN$8:$AN$107,$I11,'Project Scope'!$C$8:$C$107,DJ$7)+SUMIFS('Project Scope'!$AX$8:$AX$107,'Project Scope'!$AW$8:$AW$107,$I11,'Project Scope'!$C$8:$C$107,DJ$7),0)","v":0},{"$f":"IF(BL11=\"yes\",SUMIFS('Project Scope'!$AO$8:$AO$107,'Project Scope'!$AN$8:$AN$107,$I11,'Project Scope'!$C$8:$C$107,DK$7)+SUMIFS('Project Scope'!$AX$8:$AX$107,'Project Scope'!$AW$8:$AW$107,$I11,'Project Scope'!$C$8:$C$107,DK$7),0)","v":0},null,"","","","","","","","","","","","","","","","","","","","","","","","","","","","","","","","","","","","","","","","","","","","","","","","","","",null,""]
[null,null,null,null,null,null,null,null,null,null,null,{"$f":"IF($C12=\"additional labor hours\",$K12*'Project Information'!$D$12,$K12*$J12)*IF($F12=\"Per Measure\",SUM($BN12:$DK12),1)","v":0},{"$f":"IF($C12=\"\",0,IF(VLOOKUP($C12,'Other Data'!$B$146:$C$156,2,FALSE)=\"M\",$L12,0))","v":0},0,null,null,null,null,null,null,null,null,null,null,null,null,null,null,null,null,null,null,null,null,null,null,null,null,null,null,null,null,null,null,null,null,null,null,null,null,null,null,null,null,null,null,null,null,null,null,null,null,null,null,null,{"$f":"IF(O12=\"yes\",SUMIFS('Project Scope'!$AO$8:$AO$107,'Project Scope'!$AN$8:$AN$107,$I12,'Project Scope'!$C$8:$C$107,BN$7)+SUMIFS('Project Scope'!$AX$8:$AX$107,'Project Scope'!$AW$8:$AW$107,$I12,'Project Scope'!$C$8:$C$107,BN$7),0)","v":0},{"$f":"IF(P12=\"yes\",SUMIFS('Project Scope'!$AO$8:$AO$107,'Project Scope'!$AN$8:$AN$107,$I12,'Project Scope'!$C$8:$C$107,BO$7)+SUMIFS('Project Scope'!$AX$8:$AX$107,'Project Scope'!$AW$8:$AW$107,$I12,'Project Scope'!$C$8:$C$107,BO$7),0)","v":0},{"$f":"IF(Q12=\"yes\",SUMIFS('Project Scope'!$AO$8:$AO$107,'Project Scope'!$AN$8:$AN$107,$I12,'Project Scope'!$C$8:$C$107,BP$7)+SUMIFS('Project Scope'!$AX$8:$AX$107,'Project Scope'!$AW$8:$AW$107,$I12,'Project Scope'!$C$8:$C$107,BP$7),0)","v":0},{"$f":"IF(R12=\"yes\",SUMIFS('Project Scope'!$AO$8:$AO$107,'Project Scope'!$AN$8:$AN$107,$I12,'Project Scope'!$C$8:$C$107,BQ$7)+SUMIFS('Project Scope'!$AX$8:$AX$107,'Project Scope'!$AW$8:$AW$107,$I12,'Project Scope'!$C$8:$C$107,BQ$7),0)","v":0},{"$f":"IF(S12=\"yes\",SUMIFS('Project Scope'!$AO$8:$AO$107,'Project Scope'!$AN$8:$AN$107,$I12,'Project Scope'!$C$8:$C$107,BR$7)+SUMIFS('Project Scope'!$AX$8:$AX$107,'Project Scope'!$AW$8:$AW$107,$I12,'Project Scope'!$C$8:$C$107,BR$7),0)","v":0},{"$f":"IF(T12=\"yes\",SUMIFS('Project Scope'!$AO$8:$AO$107,'Project Scope'!$AN$8:$AN$107,$I12,'Project Scope'!$C$8:$C$107,BS$7)+SUMIFS('Project Scope'!$AX$8:$AX$107,'Project Scope'!$AW$8:$AW$107,$I12,'Project Scope'!$C$8:$C$107,BS$7),0)","v":0},{"$f":"IF(U12=\"yes\",SUMIFS('Project Scope'!$AO$8:$AO$107,'Project Scope'!$AN$8:$AN$107,$I12,'Project Scope'!$C$8:$C$107,BT$7)+SUMIFS('Project Scope'!$AX$8:$AX$107,'Project Scope'!$AW$8:$AW$107,$I12,'Project Scope'!$C$8:$C$107,BT$7),0)","v":0},{"$f":"IF(V12=\"yes\",SUMIFS('Project Scope'!$AO$8:$AO$107,'Project Scope'!$AN$8:$AN$107,$I12,'Project Scope'!$C$8:$C$107,BU$7)+SUMIFS('Project Scope'!$AX$8:$AX$107,'Project Scope'!$AW$8:$AW$107,$I12,'Project Scope'!$C$8:$C$107,BU$7),0)","v":0},{"$f":"IF(W12=\"yes\",SUMIFS('Project Scope'!$AO$8:$AO$107,'Project Scope'!$AN$8:$AN$107,$I12,'Project Scope'!$C$8:$C$107,BV$7)+SUMIFS('Project Scope'!$AX$8:$AX$107,'Project Scope'!$AW$8:$AW$107,$I12,'Project Scope'!$C$8:$C$107,BV$7),0)","v":0},{"$f":"IF(X12=\"yes\",SUMIFS('Project Scope'!$AO$8:$AO$107,'Project Scope'!$AN$8:$AN$107,$I12,'Project Scope'!$C$8:$C$107,BW$7)+SUMIFS('Project Scope'!$AX$8:$AX$107,'Project Scope'!$AW$8:$AW$107,$I12,'Project Scope'!$C$8:$C$107,BW$7),0)","v":0},{"$f":"IF(Y12=\"yes\",SUMIFS('Project Scope'!$AO$8:$AO$107,'Project Scope'!$AN$8:$AN$107,$I12,'Project Scope'!$C$8:$C$107,BX$7)+SUMIFS('Project Scope'!$AX$8:$AX$107,'Project Scope'!$AW$8:$AW$107,$I12,'Project Scope'!$C$8:$C$107,BX$7),0)","v":0},{"$f":"IF(Z12=\"yes\",SUMIFS('Project Scope'!$AO$8:$AO$107,'Project Scope'!$AN$8:$AN$107,$I12,'Project Scope'!$C$8:$C$107,BY$7)+SUMIFS('Project Scope'!$AX$8:$AX$107,'Project Scope'!$AW$8:$AW$107,$I12,'Project Scope'!$C$8:$C$107,BY$7),0)","v":0},{"$f":"IF(AA12=\"yes\",SUMIFS('Project Scope'!$AO$8:$AO$107,'Project Scope'!$AN$8:$AN$107,$I12,'Project Scope'!$C$8:$C$107,BZ$7)+SUMIFS('Project Scope'!$AX$8:$AX$107,'Project Scope'!$AW$8:$AW$107,$I12,'Project Scope'!$C$8:$C$107,BZ$7),0)","v":0},{"$f":"IF(AB12=\"yes\",SUMIFS('Project Scope'!$AO$8:$AO$107,'Project Scope'!$AN$8:$AN$107,$I12,'Project Scope'!$C$8:$C$107,CA$7)+SUMIFS('Project Scope'!$AX$8:$AX$107,'Project Scope'!$AW$8:$AW$107,$I12,'Project Scope'!$C$8:$C$107,CA$7),0)","v":0},{"$f":"IF(AC12=\"yes\",SUMIFS('Project Scope'!$AO$8:$AO$107,'Project Scope'!$AN$8:$AN$107,$I12,'Project Scope'!$C$8:$C$107,CB$7)+SUMIFS('Project Scope'!$AX$8:$AX$107,'Project Scope'!$AW$8:$AW$107,$I12,'Project Scope'!$C$8:$C$107,CB$7),0)","v":0},{"$f":"IF(AD12=\"yes\",SUMIFS('Project Scope'!$AO$8:$AO$107,'Project Scope'!$AN$8:$AN$107,$I12,'Project Scope'!$C$8:$C$107,CC$7)+SUMIFS('Project Scope'!$AX$8:$AX$107,'Project Scope'!$AW$8:$AW$107,$I12,'Project Scope'!$C$8:$C$107,CC$7),0)","v":0},{"$f":"IF(AE12=\"yes\",SUMIFS('Project Scope'!$AO$8:$AO$107,'Project Scope'!$AN$8:$AN$107,$I12,'Project Scope'!$C$8:$C$107,CD$7)+SUMIFS('Project Scope'!$AX$8:$AX$107,'Project Scope'!$AW$8:$AW$107,$I12,'Project Scope'!$C$8:$C$107,CD$7),0)","v":0},{"$f":"IF(AF12=\"yes\",SUMIFS('Project Scope'!$AO$8:$AO$107,'Project Scope'!$AN$8:$AN$107,$I12,'Project Scope'!$C$8:$C$107,CE$7)+SUMIFS('Project Scope'!$AX$8:$AX$107,'Project Scope'!$AW$8:$AW$107,$I12,'Project Scope'!$C$8:$C$107,CE$7),0)","v":0},{"$f":"IF(AG12=\"yes\",SUMIFS('Project Scope'!$AO$8:$AO$107,'Project Scope'!$AN$8:$AN$107,$I12,'Project Scope'!$C$8:$C$107,CF$7)+SUMIFS('Project Scope'!$AX$8:$AX$107,'Project Scope'!$AW$8:$AW$107,$I12,'Project Scope'!$C$8:$C$107,CF$7),0)","v":0},{"$f":"IF(AH12=\"yes\",SUMIFS('Project Scope'!$AO$8:$AO$107,'Project Scope'!$AN$8:$AN$107,$I12,'Project Scope'!$C$8:$C$107,CG$7)+SUMIFS('Project Scope'!$AX$8:$AX$107,'Project Scope'!$AW$8:$AW$107,$I12,'Project Scope'!$C$8:$C$107,CG$7),0)","v":0},{"$f":"IF(AI12=\"yes\",SUMIFS('Project Scope'!$AO$8:$AO$107,'Project Scope'!$AN$8:$AN$107,$I12,'Project Scope'!$C$8:$C$107,CH$7)+SUMIFS('Project Scope'!$AX$8:$AX$107,'Project Scope'!$AW$8:$AW$107,$I12,'Project Scope'!$C$8:$C$107,CH$7),0)","v":0},{"$f":"IF(AJ12=\"yes\",SUMIFS('Project Scope'!$AO$8:$AO$107,'Project Scope'!$AN$8:$AN$107,$I12,'Project Scope'!$C$8:$C$107,CI$7)+SUMIFS('Project Scope'!$AX$8:$AX$107,'Project Scope'!$AW$8:$AW$107,$I12,'Project Scope'!$C$8:$C$107,CI$7),0)","v":0},{"$f":"IF(AK12=\"yes\",SUMIFS('Project Scope'!$AO$8:$AO$107,'Project Scope'!$AN$8:$AN$107,$I12,'Project Scope'!$C$8:$C$107,CJ$7)+SUMIFS('Project Scope'!$AX$8:$AX$107,'Project Scope'!$AW$8:$AW$107,$I12,'Project Scope'!$C$8:$C$107,CJ$7),0)","v":0},{"$f":"IF(AL12=\"yes\",SUMIFS('Project Scope'!$AO$8:$AO$107,'Project Scope'!$AN$8:$AN$107,$I12,'Project Scope'!$C$8:$C$107,CK$7)+SUMIFS('Project Scope'!$AX$8:$AX$107,'Project Scope'!$AW$8:$AW$107,$I12,'Project Scope'!$C$8:$C$107,CK$7),0)","v":0},{"$f":"IF(AM12=\"yes\",SUMIFS('Project Scope'!$AO$8:$AO$107,'Project Scope'!$AN$8:$AN$107,$I12,'Project Scope'!$C$8:$C$107,CL$7)+SUMIFS('Project Scope'!$AX$8:$AX$107,'Project Scope'!$AW$8:$AW$107,$I12,'Project Scope'!$C$8:$C$107,CL$7),0)","v":0},{"$f":"IF(AN12=\"yes\",SUMIFS('Project Scope'!$AO$8:$AO$107,'Project Scope'!$AN$8:$AN$107,$I12,'Project Scope'!$C$8:$C$107,CM$7)+SUMIFS('Project Scope'!$AX$8:$AX$107,'Project Scope'!$AW$8:$AW$107,$I12,'Project Scope'!$C$8:$C$107,CM$7),0)","v":0},{"$f":"IF(AO12=\"yes\",SUMIFS('Project Scope'!$AO$8:$AO$107,'Project Scope'!$AN$8:$AN$107,$I12,'Project Scope'!$C$8:$C$107,CN$7)+SUMIFS('Project Scope'!$AX$8:$AX$107,'Project Scope'!$AW$8:$AW$107,$I12,'Project Scope'!$C$8:$C$107,CN$7),0)","v":0},{"$f":"IF(AP12=\"yes\",SUMIFS('Project Scope'!$AO$8:$AO$107,'Project Scope'!$AN$8:$AN$107,$I12,'Project Scope'!$C$8:$C$107,CO$7)+SUMIFS('Project Scope'!$AX$8:$AX$107,'Project Scope'!$AW$8:$AW$107,$I12,'Project Scope'!$C$8:$C$107,CO$7),0)","v":0},{"$f":"IF(AQ12=\"yes\",SUMIFS('Project Scope'!$AO$8:$AO$107,'Project Scope'!$AN$8:$AN$107,$I12,'Project Scope'!$C$8:$C$107,CP$7)+SUMIFS('Project Scope'!$AX$8:$AX$107,'Project Scope'!$AW$8:$AW$107,$I12,'Project Scope'!$C$8:$C$107,CP$7),0)","v":0},{"$f":"IF(AR12=\"yes\",SUMIFS('Project Scope'!$AO$8:$AO$107,'Project Scope'!$AN$8:$AN$107,$I12,'Project Scope'!$C$8:$C$107,CQ$7)+SUMIFS('Project Scope'!$AX$8:$AX$107,'Project Scope'!$AW$8:$AW$107,$I12,'Project Scope'!$C$8:$C$107,CQ$7),0)","v":0},{"$f":"IF(AS12=\"yes\",SUMIFS('Project Scope'!$AO$8:$AO$107,'Project Scope'!$AN$8:$AN$107,$I12,'Project Scope'!$C$8:$C$107,CR$7)+SUMIFS('Project Scope'!$AX$8:$AX$107,'Project Scope'!$AW$8:$AW$107,$I12,'Project Scope'!$C$8:$C$107,CR$7),0)","v":0},{"$f":"IF(AT12=\"yes\",SUMIFS('Project Scope'!$AO$8:$AO$107,'Project Scope'!$AN$8:$AN$107,$I12,'Project Scope'!$C$8:$C$107,CS$7)+SUMIFS('Project Scope'!$AX$8:$AX$107,'Project Scope'!$AW$8:$AW$107,$I12,'Project Scope'!$C$8:$C$107,CS$7),0)","v":0},{"$f":"IF(AU12=\"yes\",SUMIFS('Project Scope'!$AO$8:$AO$107,'Project Scope'!$AN$8:$AN$107,$I12,'Project Scope'!$C$8:$C$107,CT$7)+SUMIFS('Project Scope'!$AX$8:$AX$107,'Project Scope'!$AW$8:$AW$107,$I12,'Project Scope'!$C$8:$C$107,CT$7),0)","v":0},{"$f":"IF(AV12=\"yes\",SUMIFS('Project Scope'!$AO$8:$AO$107,'Project Scope'!$AN$8:$AN$107,$I12,'Project Scope'!$C$8:$C$107,CU$7)+SUMIFS('Project Scope'!$AX$8:$AX$107,'Project Scope'!$AW$8:$AW$107,$I12,'Project Scope'!$C$8:$C$107,CU$7),0)","v":0},{"$f":"IF(AW12=\"yes\",SUMIFS('Project Scope'!$AO$8:$AO$107,'Project Scope'!$AN$8:$AN$107,$I12,'Project Scope'!$C$8:$C$107,CV$7)+SUMIFS('Project Scope'!$AX$8:$AX$107,'Project Scope'!$AW$8:$AW$107,$I12,'Project Scope'!$C$8:$C$107,CV$7),0)","v":0},{"$f":"IF(AX12=\"yes\",SUMIFS('Project Scope'!$AO$8:$AO$107,'Project Scope'!$AN$8:$AN$107,$I12,'Project Scope'!$C$8:$C$107,CW$7)+SUMIFS('Project Scope'!$AX$8:$AX$107,'Project Scope'!$AW$8:$AW$107,$I12,'Project Scope'!$C$8:$C$107,CW$7),0)","v":0},{"$f":"IF(AY12=\"yes\",SUMIFS('Project Scope'!$AO$8:$AO$107,'Project Scope'!$AN$8:$AN$107,$I12,'Project Scope'!$C$8:$C$107,CX$7)+SUMIFS('Project Scope'!$AX$8:$AX$107,'Project Scope'!$AW$8:$AW$107,$I12,'Project Scope'!$C$8:$C$107,CX$7),0)","v":0},{"$f":"IF(AZ12=\"yes\",SUMIFS('Project Scope'!$AO$8:$AO$107,'Project Scope'!$AN$8:$AN$107,$I12,'Project Scope'!$C$8:$C$107,CY$7)+SUMIFS('Project Scope'!$AX$8:$AX$107,'Project Scope'!$AW$8:$AW$107,$I12,'Project Scope'!$C$8:$C$107,CY$7),0)","v":0},{"$f":"IF(BA12=\"yes\",SUMIFS('Project Scope'!$AO$8:$AO$107,'Project Scope'!$AN$8:$AN$107,$I12,'Project Scope'!$C$8:$C$107,CZ$7)+SUMIFS('Project Scope'!$AX$8:$AX$107,'Project Scope'!$AW$8:$AW$107,$I12,'Project Scope'!$C$8:$C$107,CZ$7),0)","v":0},{"$f":"IF(BB12=\"yes\",SUMIFS('Project Scope'!$AO$8:$AO$107,'Project Scope'!$AN$8:$AN$107,$I12,'Project Scope'!$C$8:$C$107,DA$7)+SUMIFS('Project Scope'!$AX$8:$AX$107,'Project Scope'!$AW$8:$AW$107,$I12,'Project Scope'!$C$8:$C$107,DA$7),0)","v":0},{"$f":"IF(BC12=\"yes\",SUMIFS('Project Scope'!$AO$8:$AO$107,'Project Scope'!$AN$8:$AN$107,$I12,'Project Scope'!$C$8:$C$107,DB$7)+SUMIFS('Project Scope'!$AX$8:$AX$107,'Project Scope'!$AW$8:$AW$107,$I12,'Project Scope'!$C$8:$C$107,DB$7),0)","v":0},{"$f":"IF(BD12=\"yes\",SUMIFS('Project Scope'!$AO$8:$AO$107,'Project Scope'!$AN$8:$AN$107,$I12,'Project Scope'!$C$8:$C$107,DC$7)+SUMIFS('Project Scope'!$AX$8:$AX$107,'Project Scope'!$AW$8:$AW$107,$I12,'Project Scope'!$C$8:$C$107,DC$7),0)","v":0},{"$f":"IF(BE12=\"yes\",SUMIFS('Project Scope'!$AO$8:$AO$107,'Project Scope'!$AN$8:$AN$107,$I12,'Project Scope'!$C$8:$C$107,DD$7)+SUMIFS('Project Scope'!$AX$8:$AX$107,'Project Scope'!$AW$8:$AW$107,$I12,'Project Scope'!$C$8:$C$107,DD$7),0)","v":0},{"$f":"IF(BF12=\"yes\",SUMIFS('Project Scope'!$AO$8:$AO$107,'Project Scope'!$AN$8:$AN$107,$I12,'Project Scope'!$C$8:$C$107,DE$7)+SUMIFS('Project Scope'!$AX$8:$AX$107,'Project Scope'!$AW$8:$AW$107,$I12,'Project Scope'!$C$8:$C$107,DE$7),0)","v":0},{"$f":"IF(BG12=\"yes\",SUMIFS('Project Scope'!$AO$8:$AO$107,'Project Scope'!$AN$8:$AN$107,$I12,'Project Scope'!$C$8:$C$107,DF$7)+SUMIFS('Project Scope'!$AX$8:$AX$107,'Project Scope'!$AW$8:$AW$107,$I12,'Project Scope'!$C$8:$C$107,DF$7),0)","v":0},{"$f":"IF(BH12=\"yes\",SUMIFS('Project Scope'!$AO$8:$AO$107,'Project Scope'!$AN$8:$AN$107,$I12,'Project Scope'!$C$8:$C$107,DG$7)+SUMIFS('Project Scope'!$AX$8:$AX$107,'Project Scope'!$AW$8:$AW$107,$I12,'Project Scope'!$C$8:$C$107,DG$7),0)","v":0},{"$f":"IF(BI12=\"yes\",SUMIFS('Project Scope'!$AO$8:$AO$107,'Project Scope'!$AN$8:$AN$107,$I12,'Project Scope'!$C$8:$C$107,DH$7)+SUMIFS('Project Scope'!$AX$8:$AX$107,'Project Scope'!$AW$8:$AW$107,$I12,'Project Scope'!$C$8:$C$107,DH$7),0)","v":0},{"$f":"IF(BJ12=\"yes\",SUMIFS('Project Scope'!$AO$8:$AO$107,'Project Scope'!$AN$8:$AN$107,$I12,'Project Scope'!$C$8:$C$107,DI$7)+SUMIFS('Project Scope'!$AX$8:$AX$107,'Project Scope'!$AW$8:$AW$107,$I12,'Project Scope'!$C$8:$C$107,DI$7),0)","v":0},{"$f":"IF(BK12=\"yes\",SUMIFS('Project Scope'!$AO$8:$AO$107,'Project Scope'!$AN$8:$AN$107,$I12,'Project Scope'!$C$8:$C$107,DJ$7)+SUMIFS('Project Scope'!$AX$8:$AX$107,'Project Scope'!$AW$8:$AW$107,$I12,'Project Scope'!$C$8:$C$107,DJ$7),0)","v":0},{"$f":"IF(BL12=\"yes\",SUMIFS('Project Scope'!$AO$8:$AO$107,'Project Scope'!$AN$8:$AN$107,$I12,'Project Scope'!$C$8:$C$107,DK$7)+SUMIFS('Project Scope'!$AX$8:$AX$107,'Project Scope'!$AW$8:$AW$107,$I12,'Project Scope'!$C$8:$C$107,DK$7),0)","v":0},null,"","","","","","","","","","","","","","","","","","","","","","","","","","","","","","","","","","","","","","","","","","","","","","","","","","",null,""]
[null,null,null,null,null,null,null,null,null,null,null,{"$f":"IF($C13=\"additional labor hours\",$K13*'Project Information'!$D$12,$K13*$J13)*IF($F13=\"Per Measure\",SUM($BN13:$DK13),1)","v":0},{"$f":"IF($C13=\"\",0,IF(VLOOKUP($C13,'Other Data'!$B$146:$C$156,2,FALSE)=\"M\",$L13,0))","v":0},0,null,null,null,null,null,null,null,null,null,null,null,null,null,null,null,null,null,null,null,null,null,null,null,null,null,null,null,null,null,null,null,null,null,null,null,null,null,null,null,null,null,null,null,null,null,null,null,null,null,null,null,{"$f":"IF(O13=\"yes\",SUMIFS('Project Scope'!$AO$8:$AO$107,'Project Scope'!$AN$8:$AN$107,$I13,'Project Scope'!$C$8:$C$107,BN$7)+SUMIFS('Project Scope'!$AX$8:$AX$107,'Project Scope'!$AW$8:$AW$107,$I13,'Project Scope'!$C$8:$C$107,BN$7),0)","v":0},{"$f":"IF(P13=\"yes\",SUMIFS('Project Scope'!$AO$8:$AO$107,'Project Scope'!$AN$8:$AN$107,$I13,'Project Scope'!$C$8:$C$107,BO$7)+SUMIFS('Project Scope'!$AX$8:$AX$107,'Project Scope'!$AW$8:$AW$107,$I13,'Project Scope'!$C$8:$C$107,BO$7),0)","v":0},{"$f":"IF(Q13=\"yes\",SUMIFS('Project Scope'!$AO$8:$AO$107,'Project Scope'!$AN$8:$AN$107,$I13,'Project Scope'!$C$8:$C$107,BP$7)+SUMIFS('Project Scope'!$AX$8:$AX$107,'Project Scope'!$AW$8:$AW$107,$I13,'Project Scope'!$C$8:$C$107,BP$7),0)","v":0},{"$f":"IF(R13=\"yes\",SUMIFS('Project Scope'!$AO$8:$AO$107,'Project Scope'!$AN$8:$AN$107,$I13,'Project Scope'!$C$8:$C$107,BQ$7)+SUMIFS('Project Scope'!$AX$8:$AX$107,'Project Scope'!$AW$8:$AW$107,$I13,'Project Scope'!$C$8:$C$107,BQ$7),0)","v":0},{"$f":"IF(S13=\"yes\",SUMIFS('Project Scope'!$AO$8:$AO$107,'Project Scope'!$AN$8:$AN$107,$I13,'Project Scope'!$C$8:$C$107,BR$7)+SUMIFS('Project Scope'!$AX$8:$AX$107,'Project Scope'!$AW$8:$AW$107,$I13,'Project Scope'!$C$8:$C$107,BR$7),0)","v":0},{"$f":"IF(T13=\"yes\",SUMIFS('Project Scope'!$AO$8:$AO$107,'Project Scope'!$AN$8:$AN$107,$I13,'Project Scope'!$C$8:$C$107,BS$7)+SUMIFS('Project Scope'!$AX$8:$AX$107,'Project Scope'!$AW$8:$AW$107,$I13,'Project Scope'!$C$8:$C$107,BS$7),0)","v":0},{"$f":"IF(U13=\"yes\",SUMIFS('Project Scope'!$AO$8:$AO$107,'Project Scope'!$AN$8:$AN$107,$I13,'Project Scope'!$C$8:$C$107,BT$7)+SUMIFS('Project Scope'!$AX$8:$AX$107,'Project Scope'!$AW$8:$AW$107,$I13,'Project Scope'!$C$8:$C$107,BT$7),0)","v":0},{"$f":"IF(V13=\"yes\",SUMIFS('Project Scope'!$AO$8:$AO$107,'Project Scope'!$AN$8:$AN$107,$I13,'Project Scope'!$C$8:$C$107,BU$7)+SUMIFS('Project Scope'!$AX$8:$AX$107,'Project Scope'!$AW$8:$AW$107,$I13,'Project Scope'!$C$8:$C$107,BU$7),0)","v":0},{"$f":"IF(W13=\"yes\",SUMIFS('Project Scope'!$AO$8:$AO$107,'Project Scope'!$AN$8:$AN$107,$I13,'Project Scope'!$C$8:$C$107,BV$7)+SUMIFS('Project Scope'!$AX$8:$AX$107,'Project Scope'!$AW$8:$AW$107,$I13,'Project Scope'!$C$8:$C$107,BV$7),0)","v":0},{"$f":"IF(X13=\"yes\",SUMIFS('Project Scope'!$AO$8:$AO$107,'Project Scope'!$AN$8:$AN$107,$I13,'Project Scope'!$C$8:$C$107,BW$7)+SUMIFS('Project Scope'!$AX$8:$AX$107,'Project Scope'!$AW$8:$AW$107,$I13,'Project Scope'!$C$8:$C$107,BW$7),0)","v":0},{"$f":"IF(Y13=\"yes\",SUMIFS('Project Scope'!$AO$8:$AO$107,'Project Scope'!$AN$8:$AN$107,$I13,'Project Scope'!$C$8:$C$107,BX$7)+SUMIFS('Project Scope'!$AX$8:$AX$107,'Project Scope'!$AW$8:$AW$107,$I13,'Project Scope'!$C$8:$C$107,BX$7),0)","v":0},{"$f":"IF(Z13=\"yes\",SUMIFS('Project Scope'!$AO$8:$AO$107,'Project Scope'!$AN$8:$AN$107,$I13,'Project Scope'!$C$8:$C$107,BY$7)+SUMIFS('Project Scope'!$AX$8:$AX$107,'Project Scope'!$AW$8:$AW$107,$I13,'Project Scope'!$C$8:$C$107,BY$7),0)","v":0},{"$f":"IF(AA13=\"yes\",SUMIFS('Project Scope'!$AO$8:$AO$107,'Project Scope'!$AN$8:$AN$107,$I13,'Project Scope'!$C$8:$C$107,BZ$7)+SUMIFS('Project Scope'!$AX$8:$AX$107,'Project Scope'!$AW$8:$AW$107,$I13,'Project Scope'!$C$8:$C$107,BZ$7),0)","v":0},{"$f":"IF(AB13=\"yes\",SUMIFS('Project Scope'!$AO$8:$AO$107,'Project Scope'!$AN$8:$AN$107,$I13,'Project Scope'!$C$8:$C$107,CA$7)+SUMIFS('Project Scope'!$AX$8:$AX$107,'Project Scope'!$AW$8:$AW$107,$I13,'Project Scope'!$C$8:$C$107,CA$7),0)","v":0},{"$f":"IF(AC13=\"yes\",SUMIFS('Project Scope'!$AO$8:$AO$107,'Project Scope'!$AN$8:$AN$107,$I13,'Project Scope'!$C$8:$C$107,CB$7)+SUMIFS('Project Scope'!$AX$8:$AX$107,'Project Scope'!$AW$8:$AW$107,$I13,'Project Scope'!$C$8:$C$107,CB$7),0)","v":0},{"$f":"IF(AD13=\"yes\",SUMIFS('Project Scope'!$AO$8:$AO$107,'Project Scope'!$AN$8:$AN$107,$I13,'Project Scope'!$C$8:$C$107,CC$7)+SUMIFS('Project Scope'!$AX$8:$AX$107,'Project Scope'!$AW$8:$AW$107,$I13,'Project Scope'!$C$8:$C$107,CC$7),0)","v":0},{"$f":"IF(AE13=\"yes\",SUMIFS('Project Scope'!$AO$8:$AO$107,'Project Scope'!$AN$8:$AN$107,$I13,'Project Scope'!$C$8:$C$107,CD$7)+SUMIFS('Project Scope'!$AX$8:$AX$107,'Project Scope'!$AW$8:$AW$107,$I13,'Project Scope'!$C$8:$C$107,CD$7),0)","v":0},{"$f":"IF(AF13=\"yes\",SUMIFS('Project Scope'!$AO$8:$AO$107,'Project Scope'!$AN$8:$AN$107,$I13,'Project Scope'!$C$8:$C$107,CE$7)+SUMIFS('Project Scope'!$AX$8:$AX$107,'Project Scope'!$AW$8:$AW$107,$I13,'Project Scope'!$C$8:$C$107,CE$7),0)","v":0},{"$f":"IF(AG13=\"yes\",SUMIFS('Project Scope'!$AO$8:$AO$107,'Project Scope'!$AN$8:$AN$107,$I13,'Project Scope'!$C$8:$C$107,CF$7)+SUMIFS('Project Scope'!$AX$8:$AX$107,'Project Scope'!$AW$8:$AW$107,$I13,'Project Scope'!$C$8:$C$107,CF$7),0)","v":0},{"$f":"IF(AH13=\"yes\",SUMIFS('Project Scope'!$AO$8:$AO$107,'Project Scope'!$AN$8:$AN$107,$I13,'Project Scope'!$C$8:$C$107,CG$7)+SUMIFS('Project Scope'!$AX$8:$AX$107,'Project Scope'!$AW$8:$AW$107,$I13,'Project Scope'!$C$8:$C$107,CG$7),0)","v":0},{"$f":"IF(AI13=\"yes\",SUMIFS('Project Scope'!$AO$8:$AO$107,'Project Scope'!$AN$8:$AN$107,$I13,'Project Scope'!$C$8:$C$107,CH$7)+SUMIFS('Project Scope'!$AX$8:$AX$107,'Project Scope'!$AW$8:$AW$107,$I13,'Project Scope'!$C$8:$C$107,CH$7),0)","v":0},{"$f":"IF(AJ13=\"yes\",SUMIFS('Project Scope'!$AO$8:$AO$107,'Project Scope'!$AN$8:$AN$107,$I13,'Project Scope'!$C$8:$C$107,CI$7)+SUMIFS('Project Scope'!$AX$8:$AX$107,'Project Scope'!$AW$8:$AW$107,$I13,'Project Scope'!$C$8:$C$107,CI$7),0)","v":0},{"$f":"IF(AK13=\"yes\",SUMIFS('Project Scope'!$AO$8:$AO$107,'Project Scope'!$AN$8:$AN$107,$I13,'Project Scope'!$C$8:$C$107,CJ$7)+SUMIFS('Project Scope'!$AX$8:$AX$107,'Project Scope'!$AW$8:$AW$107,$I13,'Project Scope'!$C$8:$C$107,CJ$7),0)","v":0},{"$f":"IF(AL13=\"yes\",SUMIFS('Project Scope'!$AO$8:$AO$107,'Project Scope'!$AN$8:$AN$107,$I13,'Project Scope'!$C$8:$C$107,CK$7)+SUMIFS('Project Scope'!$AX$8:$AX$107,'Project Scope'!$AW$8:$AW$107,$I13,'Project Scope'!$C$8:$C$107,CK$7),0)","v":0},{"$f":"IF(AM13=\"yes\",SUMIFS('Project Scope'!$AO$8:$AO$107,'Project Scope'!$AN$8:$AN$107,$I13,'Project Scope'!$C$8:$C$107,CL$7)+SUMIFS('Project Scope'!$AX$8:$AX$107,'Project Scope'!$AW$8:$AW$107,$I13,'Project Scope'!$C$8:$C$107,CL$7),0)","v":0},{"$f":"IF(AN13=\"yes\",SUMIFS('Project Scope'!$AO$8:$AO$107,'Project Scope'!$AN$8:$AN$107,$I13,'Project Scope'!$C$8:$C$107,CM$7)+SUMIFS('Project Scope'!$AX$8:$AX$107,'Project Scope'!$AW$8:$AW$107,$I13,'Project Scope'!$C$8:$C$107,CM$7),0)","v":0},{"$f":"IF(AO13=\"yes\",SUMIFS('Project Scope'!$AO$8:$AO$107,'Project Scope'!$AN$8:$AN$107,$I13,'Project Scope'!$C$8:$C$107,CN$7)+SUMIFS('Project Scope'!$AX$8:$AX$107,'Project Scope'!$AW$8:$AW$107,$I13,'Project Scope'!$C$8:$C$107,CN$7),0)","v":0},{"$f":"IF(AP13=\"yes\",SUMIFS('Project Scope'!$AO$8:$AO$107,'Project Scope'!$AN$8:$AN$107,$I13,'Project Scope'!$C$8:$C$107,CO$7)+SUMIFS('Project Scope'!$AX$8:$AX$107,'Project Scope'!$AW$8:$AW$107,$I13,'Project Scope'!$C$8:$C$107,CO$7),0)","v":0},{"$f":"IF(AQ13=\"yes\",SUMIFS('Project Scope'!$AO$8:$AO$107,'Project Scope'!$AN$8:$AN$107,$I13,'Project Scope'!$C$8:$C$107,CP$7)+SUMIFS('Project Scope'!$AX$8:$AX$107,'Project Scope'!$AW$8:$AW$107,$I13,'Project Scope'!$C$8:$C$107,CP$7),0)","v":0},{"$f":"IF(AR13=\"yes\",SUMIFS('Project Scope'!$AO$8:$AO$107,'Project Scope'!$AN$8:$AN$107,$I13,'Project Scope'!$C$8:$C$107,CQ$7)+SUMIFS('Project Scope'!$AX$8:$AX$107,'Project Scope'!$AW$8:$AW$107,$I13,'Project Scope'!$C$8:$C$107,CQ$7),0)","v":0},{"$f":"IF(AS13=\"yes\",SUMIFS('Project Scope'!$AO$8:$AO$107,'Project Scope'!$AN$8:$AN$107,$I13,'Project Scope'!$C$8:$C$107,CR$7)+SUMIFS('Project Scope'!$AX$8:$AX$107,'Project Scope'!$AW$8:$AW$107,$I13,'Project Scope'!$C$8:$C$107,CR$7),0)","v":0},{"$f":"IF(AT13=\"yes\",SUMIFS('Project Scope'!$AO$8:$AO$107,'Project Scope'!$AN$8:$AN$107,$I13,'Project Scope'!$C$8:$C$107,CS$7)+SUMIFS('Project Scope'!$AX$8:$AX$107,'Project Scope'!$AW$8:$AW$107,$I13,'Project Scope'!$C$8:$C$107,CS$7),0)","v":0},{"$f":"IF(AU13=\"yes\",SUMIFS('Project Scope'!$AO$8:$AO$107,'Project Scope'!$AN$8:$AN$107,$I13,'Project Scope'!$C$8:$C$107,CT$7)+SUMIFS('Project Scope'!$AX$8:$AX$107,'Project Scope'!$AW$8:$AW$107,$I13,'Project Scope'!$C$8:$C$107,CT$7),0)","v":0},{"$f":"IF(AV13=\"yes\",SUMIFS('Project Scope'!$AO$8:$AO$107,'Project Scope'!$AN$8:$AN$107,$I13,'Project Scope'!$C$8:$C$107,CU$7)+SUMIFS('Project Scope'!$AX$8:$AX$107,'Project Scope'!$AW$8:$AW$107,$I13,'Project Scope'!$C$8:$C$107,CU$7),0)","v":0},{"$f":"IF(AW13=\"yes\",SUMIFS('Project Scope'!$AO$8:$AO$107,'Project Scope'!$AN$8:$AN$107,$I13,'Project Scope'!$C$8:$C$107,CV$7)+SUMIFS('Project Scope'!$AX$8:$AX$107,'Project Scope'!$AW$8:$AW$107,$I13,'Project Scope'!$C$8:$C$107,CV$7),0)","v":0},{"$f":"IF(AX13=\"yes\",SUMIFS('Project Scope'!$AO$8:$AO$107,'Project Scope'!$AN$8:$AN$107,$I13,'Project Scope'!$C$8:$C$107,CW$7)+SUMIFS('Project Scope'!$AX$8:$AX$107,'Project Scope'!$AW$8:$AW$107,$I13,'Project Scope'!$C$8:$C$107,CW$7),0)","v":0},{"$f":"IF(AY13=\"yes\",SUMIFS('Project Scope'!$AO$8:$AO$107,'Project Scope'!$AN$8:$AN$107,$I13,'Project Scope'!$C$8:$C$107,CX$7)+SUMIFS('Project Scope'!$AX$8:$AX$107,'Project Scope'!$AW$8:$AW$107,$I13,'Project Scope'!$C$8:$C$107,CX$7),0)","v":0},{"$f":"IF(AZ13=\"yes\",SUMIFS('Project Scope'!$AO$8:$AO$107,'Project Scope'!$AN$8:$AN$107,$I13,'Project Scope'!$C$8:$C$107,CY$7)+SUMIFS('Project Scope'!$AX$8:$AX$107,'Project Scope'!$AW$8:$AW$107,$I13,'Project Scope'!$C$8:$C$107,CY$7),0)","v":0},{"$f":"IF(BA13=\"yes\",SUMIFS('Project Scope'!$AO$8:$AO$107,'Project Scope'!$AN$8:$AN$107,$I13,'Project Scope'!$C$8:$C$107,CZ$7)+SUMIFS('Project Scope'!$AX$8:$AX$107,'Project Scope'!$AW$8:$AW$107,$I13,'Project Scope'!$C$8:$C$107,CZ$7),0)","v":0},{"$f":"IF(BB13=\"yes\",SUMIFS('Project Scope'!$AO$8:$AO$107,'Project Scope'!$AN$8:$AN$107,$I13,'Project Scope'!$C$8:$C$107,DA$7)+SUMIFS('Project Scope'!$AX$8:$AX$107,'Project Scope'!$AW$8:$AW$107,$I13,'Project Scope'!$C$8:$C$107,DA$7),0)","v":0},{"$f":"IF(BC13=\"yes\",SUMIFS('Project Scope'!$AO$8:$AO$107,'Project Scope'!$AN$8:$AN$107,$I13,'Project Scope'!$C$8:$C$107,DB$7)+SUMIFS('Project Scope'!$AX$8:$AX$107,'Project Scope'!$AW$8:$AW$107,$I13,'Project Scope'!$C$8:$C$107,DB$7),0)","v":0},{"$f":"IF(BD13=\"yes\",SUMIFS('Project Scope'!$AO$8:$AO$107,'Project Scope'!$AN$8:$AN$107,$I13,'Project Scope'!$C$8:$C$107,DC$7)+SUMIFS('Project Scope'!$AX$8:$AX$107,'Project Scope'!$AW$8:$AW$107,$I13,'Project Scope'!$C$8:$C$107,DC$7),0)","v":0},{"$f":"IF(BE13=\"yes\",SUMIFS('Project Scope'!$AO$8:$AO$107,'Project Scope'!$AN$8:$AN$107,$I13,'Project Scope'!$C$8:$C$107,DD$7)+SUMIFS('Project Scope'!$AX$8:$AX$107,'Project Scope'!$AW$8:$AW$107,$I13,'Project Scope'!$C$8:$C$107,DD$7),0)","v":0},{"$f":"IF(BF13=\"yes\",SUMIFS('Project Scope'!$AO$8:$AO$107,'Project Scope'!$AN$8:$AN$107,$I13,'Project Scope'!$C$8:$C$107,DE$7)+SUMIFS('Project Scope'!$AX$8:$AX$107,'Project Scope'!$AW$8:$AW$107,$I13,'Project Scope'!$C$8:$C$107,DE$7),0)","v":0},{"$f":"IF(BG13=\"yes\",SUMIFS('Project Scope'!$AO$8:$AO$107,'Project Scope'!$AN$8:$AN$107,$I13,'Project Scope'!$C$8:$C$107,DF$7)+SUMIFS('Project Scope'!$AX$8:$AX$107,'Project Scope'!$AW$8:$AW$107,$I13,'Project Scope'!$C$8:$C$107,DF$7),0)","v":0},{"$f":"IF(BH13=\"yes\",SUMIFS('Project Scope'!$AO$8:$AO$107,'Project Scope'!$AN$8:$AN$107,$I13,'Project Scope'!$C$8:$C$107,DG$7)+SUMIFS('Project Scope'!$AX$8:$AX$107,'Project Scope'!$AW$8:$AW$107,$I13,'Project Scope'!$C$8:$C$107,DG$7),0)","v":0},{"$f":"IF(BI13=\"yes\",SUMIFS('Project Scope'!$AO$8:$AO$107,'Project Scope'!$AN$8:$AN$107,$I13,'Project Scope'!$C$8:$C$107,DH$7)+SUMIFS('Project Scope'!$AX$8:$AX$107,'Project Scope'!$AW$8:$AW$107,$I13,'Project Scope'!$C$8:$C$107,DH$7),0)","v":0},{"$f":"IF(BJ13=\"yes\",SUMIFS('Project Scope'!$AO$8:$AO$107,'Project Scope'!$AN$8:$AN$107,$I13,'Project Scope'!$C$8:$C$107,DI$7)+SUMIFS('Project Scope'!$AX$8:$AX$107,'Project Scope'!$AW$8:$AW$107,$I13,'Project Scope'!$C$8:$C$107,DI$7),0)","v":0},{"$f":"IF(BK13=\"yes\",SUMIFS('Project Scope'!$AO$8:$AO$107,'Project Scope'!$AN$8:$AN$107,$I13,'Project Scope'!$C$8:$C$107,DJ$7)+SUMIFS('Project Scope'!$AX$8:$AX$107,'Project Scope'!$AW$8:$AW$107,$I13,'Project Scope'!$C$8:$C$107,DJ$7),0)","v":0},{"$f":"IF(BL13=\"yes\",SUMIFS('Project Scope'!$AO$8:$AO$107,'Project Scope'!$AN$8:$AN$107,$I13,'Project Scope'!$C$8:$C$107,DK$7)+SUMIFS('Project Scope'!$AX$8:$AX$107,'Project Scope'!$AW$8:$AW$107,$I13,'Project Scope'!$C$8:$C$107,DK$7),0)","v":0},null,"","","","","","","","","","","","","","","","","","","","","","","","","","","","","","","","","","","","","","","","","","","","","","","","","","",null,""]
[null,null,null,null,null,null,null,null,null,null,null,{"$f":"IF($C14=\"additional labor hours\",$K14*'Project Information'!$D$12,$K14*$J14)*IF($F14=\"Per Measure\",SUM($BN14:$DK14),1)","v":0},{"$f":"IF($C14=\"\",0,IF(VLOOKUP($C14,'Other Data'!$B$146:$C$156,2,FALSE)=\"M\",$L14,0))","v":0},0,null,null,null,null,null,null,null,null,null,null,null,null,null,null,null,null,null,null,null,null,null,null,null,null,null,null,null,null,null,null,null,null,null,null,null,null,null,null,null,null,null,null,null,null,null,null,null,null,null,null,null,{"$f":"IF(O14=\"yes\",SUMIFS('Project Scope'!$AO$8:$AO$107,'Project Scope'!$AN$8:$AN$107,$I14,'Project Scope'!$C$8:$C$107,BN$7)+SUMIFS('Project Scope'!$AX$8:$AX$107,'Project Scope'!$AW$8:$AW$107,$I14,'Project Scope'!$C$8:$C$107,BN$7),0)","v":0},{"$f":"IF(P14=\"yes\",SUMIFS('Project Scope'!$AO$8:$AO$107,'Project Scope'!$AN$8:$AN$107,$I14,'Project Scope'!$C$8:$C$107,BO$7)+SUMIFS('Project Scope'!$AX$8:$AX$107,'Project Scope'!$AW$8:$AW$107,$I14,'Project Scope'!$C$8:$C$107,BO$7),0)","v":0},{"$f":"IF(Q14=\"yes\",SUMIFS('Project Scope'!$AO$8:$AO$107,'Project Scope'!$AN$8:$AN$107,$I14,'Project Scope'!$C$8:$C$107,BP$7)+SUMIFS('Project Scope'!$AX$8:$AX$107,'Project Scope'!$AW$8:$AW$107,$I14,'Project Scope'!$C$8:$C$107,BP$7),0)","v":0},{"$f":"IF(R14=\"yes\",SUMIFS('Project Scope'!$AO$8:$AO$107,'Project Scope'!$AN$8:$AN$107,$I14,'Project Scope'!$C$8:$C$107,BQ$7)+SUMIFS('Project Scope'!$AX$8:$AX$107,'Project Scope'!$AW$8:$AW$107,$I14,'Project Scope'!$C$8:$C$107,BQ$7),0)","v":0},{"$f":"IF(S14=\"yes\",SUMIFS('Project Scope'!$AO$8:$AO$107,'Project Scope'!$AN$8:$AN$107,$I14,'Project Scope'!$C$8:$C$107,BR$7)+SUMIFS('Project Scope'!$AX$8:$AX$107,'Project Scope'!$AW$8:$AW$107,$I14,'Project Scope'!$C$8:$C$107,BR$7),0)","v":0},{"$f":"IF(T14=\"yes\",SUMIFS('Project Scope'!$AO$8:$AO$107,'Project Scope'!$AN$8:$AN$107,$I14,'Project Scope'!$C$8:$C$107,BS$7)+SUMIFS('Project Scope'!$AX$8:$AX$107,'Project Scope'!$AW$8:$AW$107,$I14,'Project Scope'!$C$8:$C$107,BS$7),0)","v":0},{"$f":"IF(U14=\"yes\",SUMIFS('Project Scope'!$AO$8:$AO$107,'Project Scope'!$AN$8:$AN$107,$I14,'Project Scope'!$C$8:$C$107,BT$7)+SUMIFS('Project Scope'!$AX$8:$AX$107,'Project Scope'!$AW$8:$AW$107,$I14,'Project Scope'!$C$8:$C$107,BT$7),0)","v":0},{"$f":"IF(V14=\"yes\",SUMIFS('Project Scope'!$AO$8:$AO$107,'Project Scope'!$AN$8:$AN$107,$I14,'Project Scope'!$C$8:$C$107,BU$7)+SUMIFS('Project Scope'!$AX$8:$AX$107,'Project Scope'!$AW$8:$AW$107,$I14,'Project Scope'!$C$8:$C$107,BU$7),0)","v":0},{"$f":"IF(W14=\"yes\",SUMIFS('Project Scope'!$AO$8:$AO$107,'Project Scope'!$AN$8:$AN$107,$I14,'Project Scope'!$C$8:$C$107,BV$7)+SUMIFS('Project Scope'!$AX$8:$AX$107,'Project Scope'!$AW$8:$AW$107,$I14,'Project Scope'!$C$8:$C$107,BV$7),0)","v":0},{"$f":"IF(X14=\"yes\",SUMIFS('Project Scope'!$AO$8:$AO$107,'Project Scope'!$AN$8:$AN$107,$I14,'Project Scope'!$C$8:$C$107,BW$7)+SUMIFS('Project Scope'!$AX$8:$AX$107,'Project Scope'!$AW$8:$AW$107,$I14,'Project Scope'!$C$8:$C$107,BW$7),0)","v":0},{"$f":"IF(Y14=\"yes\",SUMIFS('Project Scope'!$AO$8:$AO$107,'Project Scope'!$AN$8:$AN$107,$I14,'Project Scope'!$C$8:$C$107,BX$7)+SUMIFS('Project Scope'!$AX$8:$AX$107,'Project Scope'!$AW$8:$AW$107,$I14,'Project Scope'!$C$8:$C$107,BX$7),0)","v":0},{"$f":"IF(Z14=\"yes\",SUMIFS('Project Scope'!$AO$8:$AO$107,'Project Scope'!$AN$8:$AN$107,$I14,'Project Scope'!$C$8:$C$107,BY$7)+SUMIFS('Project Scope'!$AX$8:$AX$107,'Project Scope'!$AW$8:$AW$107,$I14,'Project Scope'!$C$8:$C$107,BY$7),0)","v":0},{"$f":"IF(AA14=\"yes\",SUMIFS('Project Scope'!$AO$8:$AO$107,'Project Scope'!$AN$8:$AN$107,$I14,'Project Scope'!$C$8:$C$107,BZ$7)+SUMIFS('Project Scope'!$AX$8:$AX$107,'Project Scope'!$AW$8:$AW$107,$I14,'Project Scope'!$C$8:$C$107,BZ$7),0)","v":0},{"$f":"IF(AB14=\"yes\",SUMIFS('Project Scope'!$AO$8:$AO$107,'Project Scope'!$AN$8:$AN$107,$I14,'Project Scope'!$C$8:$C$107,CA$7)+SUMIFS('Project Scope'!$AX$8:$AX$107,'Project Scope'!$AW$8:$AW$107,$I14,'Project Scope'!$C$8:$C$107,CA$7),0)","v":0},{"$f":"IF(AC14=\"yes\",SUMIFS('Project Scope'!$AO$8:$AO$107,'Project Scope'!$AN$8:$AN$107,$I14,'Project Scope'!$C$8:$C$107,CB$7)+SUMIFS('Project Scope'!$AX$8:$AX$107,'Project Scope'!$AW$8:$AW$107,$I14,'Project Scope'!$C$8:$C$107,CB$7),0)","v":0},{"$f":"IF(AD14=\"yes\",SUMIFS('Project Scope'!$AO$8:$AO$107,'Project Scope'!$AN$8:$AN$107,$I14,'Project Scope'!$C$8:$C$107,CC$7)+SUMIFS('Project Scope'!$AX$8:$AX$107,'Project Scope'!$AW$8:$AW$107,$I14,'Project Scope'!$C$8:$C$107,CC$7),0)","v":0},{"$f":"IF(AE14=\"yes\",SUMIFS('Project Scope'!$AO$8:$AO$107,'Project Scope'!$AN$8:$AN$107,$I14,'Project Scope'!$C$8:$C$107,CD$7)+SUMIFS('Project Scope'!$AX$8:$AX$107,'Project Scope'!$AW$8:$AW$107,$I14,'Project Scope'!$C$8:$C$107,CD$7),0)","v":0},{"$f":"IF(AF14=\"yes\",SUMIFS('Project Scope'!$AO$8:$AO$107,'Project Scope'!$AN$8:$AN$107,$I14,'Project Scope'!$C$8:$C$107,CE$7)+SUMIFS('Project Scope'!$AX$8:$AX$107,'Project Scope'!$AW$8:$AW$107,$I14,'Project Scope'!$C$8:$C$107,CE$7),0)","v":0},{"$f":"IF(AG14=\"yes\",SUMIFS('Project Scope'!$AO$8:$AO$107,'Project Scope'!$AN$8:$AN$107,$I14,'Project Scope'!$C$8:$C$107,CF$7)+SUMIFS('Project Scope'!$AX$8:$AX$107,'Project Scope'!$AW$8:$AW$107,$I14,'Project Scope'!$C$8:$C$107,CF$7),0)","v":0},{"$f":"IF(AH14=\"yes\",SUMIFS('Project Scope'!$AO$8:$AO$107,'Project Scope'!$AN$8:$AN$107,$I14,'Project Scope'!$C$8:$C$107,CG$7)+SUMIFS('Project Scope'!$AX$8:$AX$107,'Project Scope'!$AW$8:$AW$107,$I14,'Project Scope'!$C$8:$C$107,CG$7),0)","v":0},{"$f":"IF(AI14=\"yes\",SUMIFS('Project Scope'!$AO$8:$AO$107,'Project Scope'!$AN$8:$AN$107,$I14,'Project Scope'!$C$8:$C$107,CH$7)+SUMIFS('Project Scope'!$AX$8:$AX$107,'Project Scope'!$AW$8:$AW$107,$I14,'Project Scope'!$C$8:$C$107,CH$7),0)","v":0},{"$f":"IF(AJ14=\"yes\",SUMIFS('Project Scope'!$AO$8:$AO$107,'Project Scope'!$AN$8:$AN$107,$I14,'Project Scope'!$C$8:$C$107,CI$7)+SUMIFS('Project Scope'!$AX$8:$AX$107,'Project Scope'!$AW$8:$AW$107,$I14,'Project Scope'!$C$8:$C$107,CI$7),0)","v":0},{"$f":"IF(AK14=\"yes\",SUMIFS('Project Scope'!$AO$8:$AO$107,'Project Scope'!$AN$8:$AN$107,$I14,'Project Scope'!$C$8:$C$107,CJ$7)+SUMIFS('Project Scope'!$AX$8:$AX$107,'Project Scope'!$AW$8:$AW$107,$I14,'Project Scope'!$C$8:$C$107,CJ$7),0)","v":0},{"$f":"IF(AL14=\"yes\",SUMIFS('Project Scope'!$AO$8:$AO$107,'Project Scope'!$AN$8:$AN$107,$I14,'Project Scope'!$C$8:$C$107,CK$7)+SUMIFS('Project Scope'!$AX$8:$AX$107,'Project Scope'!$AW$8:$AW$107,$I14,'Project Scope'!$C$8:$C$107,CK$7),0)","v":0},{"$f":"IF(AM14=\"yes\",SUMIFS('Project Scope'!$AO$8:$AO$107,'Project Scope'!$AN$8:$AN$107,$I14,'Project Scope'!$C$8:$C$107,CL$7)+SUMIFS('Project Scope'!$AX$8:$AX$107,'Project Scope'!$AW$8:$AW$107,$I14,'Project Scope'!$C$8:$C$107,CL$7),0)","v":0},{"$f":"IF(AN14=\"yes\",SUMIFS('Project Scope'!$AO$8:$AO$107,'Project Scope'!$AN$8:$AN$107,$I14,'Project Scope'!$C$8:$C$107,CM$7)+SUMIFS('Project Scope'!$AX$8:$AX$107,'Project Scope'!$AW$8:$AW$107,$I14,'Project Scope'!$C$8:$C$107,CM$7),0)","v":0},{"$f":"IF(AO14=\"yes\",SUMIFS('Project Scope'!$AO$8:$AO$107,'Project Scope'!$AN$8:$AN$107,$I14,'Project Scope'!$C$8:$C$107,CN$7)+SUMIFS('Project Scope'!$AX$8:$AX$107,'Project Scope'!$AW$8:$AW$107,$I14,'Project Scope'!$C$8:$C$107,CN$7),0)","v":0},{"$f":"IF(AP14=\"yes\",SUMIFS('Project Scope'!$AO$8:$AO$107,'Project Scope'!$AN$8:$AN$107,$I14,'Project Scope'!$C$8:$C$107,CO$7)+SUMIFS('Project Scope'!$AX$8:$AX$107,'Project Scope'!$AW$8:$AW$107,$I14,'Project Scope'!$C$8:$C$107,CO$7),0)","v":0},{"$f":"IF(AQ14=\"yes\",SUMIFS('Project Scope'!$AO$8:$AO$107,'Project Scope'!$AN$8:$AN$107,$I14,'Project Scope'!$C$8:$C$107,CP$7)+SUMIFS('Project Scope'!$AX$8:$AX$107,'Project Scope'!$AW$8:$AW$107,$I14,'Project Scope'!$C$8:$C$107,CP$7),0)","v":0},{"$f":"IF(AR14=\"yes\",SUMIFS('Project Scope'!$AO$8:$AO$107,'Project Scope'!$AN$8:$AN$107,$I14,'Project Scope'!$C$8:$C$107,CQ$7)+SUMIFS('Project Scope'!$AX$8:$AX$107,'Project Scope'!$AW$8:$AW$107,$I14,'Project Scope'!$C$8:$C$107,CQ$7),0)","v":0},{"$f":"IF(AS14=\"yes\",SUMIFS('Project Scope'!$AO$8:$AO$107,'Project Scope'!$AN$8:$AN$107,$I14,'Project Scope'!$C$8:$C$107,CR$7)+SUMIFS('Project Scope'!$AX$8:$AX$107,'Project Scope'!$AW$8:$AW$107,$I14,'Project Scope'!$C$8:$C$107,CR$7),0)","v":0},{"$f":"IF(AT14=\"yes\",SUMIFS('Project Scope'!$AO$8:$AO$107,'Project Scope'!$AN$8:$AN$107,$I14,'Project Scope'!$C$8:$C$107,CS$7)+SUMIFS('Project Scope'!$AX$8:$AX$107,'Project Scope'!$AW$8:$AW$107,$I14,'Project Scope'!$C$8:$C$107,CS$7),0)","v":0},{"$f":"IF(AU14=\"yes\",SUMIFS('Project Scope'!$AO$8:$AO$107,'Project Scope'!$AN$8:$AN$107,$I14,'Project Scope'!$C$8:$C$107,CT$7)+SUMIFS('Project Scope'!$AX$8:$AX$107,'Project Scope'!$AW$8:$AW$107,$I14,'Project Scope'!$C$8:$C$107,CT$7),0)","v":0},{"$f":"IF(AV14=\"yes\",SUMIFS('Project Scope'!$AO$8:$AO$107,'Project Scope'!$AN$8:$AN$107,$I14,'Project Scope'!$C$8:$C$107,CU$7)+SUMIFS('Project Scope'!$AX$8:$AX$107,'Project Scope'!$AW$8:$AW$107,$I14,'Project Scope'!$C$8:$C$107,CU$7),0)","v":0},{"$f":"IF(AW14=\"yes\",SUMIFS('Project Scope'!$AO$8:$AO$107,'Project Scope'!$AN$8:$AN$107,$I14,'Project Scope'!$C$8:$C$107,CV$7)+SUMIFS('Project Scope'!$AX$8:$AX$107,'Project Scope'!$AW$8:$AW$107,$I14,'Project Scope'!$C$8:$C$107,CV$7),0)","v":0},{"$f":"IF(AX14=\"yes\",SUMIFS('Project Scope'!$AO$8:$AO$107,'Project Scope'!$AN$8:$AN$107,$I14,'Project Scope'!$C$8:$C$107,CW$7)+SUMIFS('Project Scope'!$AX$8:$AX$107,'Project Scope'!$AW$8:$AW$107,$I14,'Project Scope'!$C$8:$C$107,CW$7),0)","v":0},{"$f":"IF(AY14=\"yes\",SUMIFS('Project Scope'!$AO$8:$AO$107,'Project Scope'!$AN$8:$AN$107,$I14,'Project Scope'!$C$8:$C$107,CX$7)+SUMIFS('Project Scope'!$AX$8:$AX$107,'Project Scope'!$AW$8:$AW$107,$I14,'Project Scope'!$C$8:$C$107,CX$7),0)","v":0},{"$f":"IF(AZ14=\"yes\",SUMIFS('Project Scope'!$AO$8:$AO$107,'Project Scope'!$AN$8:$AN$107,$I14,'Project Scope'!$C$8:$C$107,CY$7)+SUMIFS('Project Scope'!$AX$8:$AX$107,'Project Scope'!$AW$8:$AW$107,$I14,'Project Scope'!$C$8:$C$107,CY$7),0)","v":0},{"$f":"IF(BA14=\"yes\",SUMIFS('Project Scope'!$AO$8:$AO$107,'Project Scope'!$AN$8:$AN$107,$I14,'Project Scope'!$C$8:$C$107,CZ$7)+SUMIFS('Project Scope'!$AX$8:$AX$107,'Project Scope'!$AW$8:$AW$107,$I14,'Project Scope'!$C$8:$C$107,CZ$7),0)","v":0},{"$f":"IF(BB14=\"yes\",SUMIFS('Project Scope'!$AO$8:$AO$107,'Project Scope'!$AN$8:$AN$107,$I14,'Project Scope'!$C$8:$C$107,DA$7)+SUMIFS('Project Scope'!$AX$8:$AX$107,'Project Scope'!$AW$8:$AW$107,$I14,'Project Scope'!$C$8:$C$107,DA$7),0)","v":0},{"$f":"IF(BC14=\"yes\",SUMIFS('Project Scope'!$AO$8:$AO$107,'Project Scope'!$AN$8:$AN$107,$I14,'Project Scope'!$C$8:$C$107,DB$7)+SUMIFS('Project Scope'!$AX$8:$AX$107,'Project Scope'!$AW$8:$AW$107,$I14,'Project Scope'!$C$8:$C$107,DB$7),0)","v":0},{"$f":"IF(BD14=\"yes\",SUMIFS('Project Scope'!$AO$8:$AO$107,'Project Scope'!$AN$8:$AN$107,$I14,'Project Scope'!$C$8:$C$107,DC$7)+SUMIFS('Project Scope'!$AX$8:$AX$107,'Project Scope'!$AW$8:$AW$107,$I14,'Project Scope'!$C$8:$C$107,DC$7),0)","v":0},{"$f":"IF(BE14=\"yes\",SUMIFS('Project Scope'!$AO$8:$AO$107,'Project Scope'!$AN$8:$AN$107,$I14,'Project Scope'!$C$8:$C$107,DD$7)+SUMIFS('Project Scope'!$AX$8:$AX$107,'Project Scope'!$AW$8:$AW$107,$I14,'Project Scope'!$C$8:$C$107,DD$7),0)","v":0},{"$f":"IF(BF14=\"yes\",SUMIFS('Project Scope'!$AO$8:$AO$107,'Project Scope'!$AN$8:$AN$107,$I14,'Project Scope'!$C$8:$C$107,DE$7)+SUMIFS('Project Scope'!$AX$8:$AX$107,'Project Scope'!$AW$8:$AW$107,$I14,'Project Scope'!$C$8:$C$107,DE$7),0)","v":0},{"$f":"IF(BG14=\"yes\",SUMIFS('Project Scope'!$AO$8:$AO$107,'Project Scope'!$AN$8:$AN$107,$I14,'Project Scope'!$C$8:$C$107,DF$7)+SUMIFS('Project Scope'!$AX$8:$AX$107,'Project Scope'!$AW$8:$AW$107,$I14,'Project Scope'!$C$8:$C$107,DF$7),0)","v":0},{"$f":"IF(BH14=\"yes\",SUMIFS('Project Scope'!$AO$8:$AO$107,'Project Scope'!$AN$8:$AN$107,$I14,'Project Scope'!$C$8:$C$107,DG$7)+SUMIFS('Project Scope'!$AX$8:$AX$107,'Project Scope'!$AW$8:$AW$107,$I14,'Project Scope'!$C$8:$C$107,DG$7),0)","v":0},{"$f":"IF(BI14=\"yes\",SUMIFS('Project Scope'!$AO$8:$AO$107,'Project Scope'!$AN$8:$AN$107,$I14,'Project Scope'!$C$8:$C$107,DH$7)+SUMIFS('Project Scope'!$AX$8:$AX$107,'Project Scope'!$AW$8:$AW$107,$I14,'Project Scope'!$C$8:$C$107,DH$7),0)","v":0},{"$f":"IF(BJ14=\"yes\",SUMIFS('Project Scope'!$AO$8:$AO$107,'Project Scope'!$AN$8:$AN$107,$I14,'Project Scope'!$C$8:$C$107,DI$7)+SUMIFS('Project Scope'!$AX$8:$AX$107,'Project Scope'!$AW$8:$AW$107,$I14,'Project Scope'!$C$8:$C$107,DI$7),0)","v":0},{"$f":"IF(BK14=\"yes\",SUMIFS('Project Scope'!$AO$8:$AO$107,'Project Scope'!$AN$8:$AN$107,$I14,'Project Scope'!$C$8:$C$107,DJ$7)+SUMIFS('Project Scope'!$AX$8:$AX$107,'Project Scope'!$AW$8:$AW$107,$I14,'Project Scope'!$C$8:$C$107,DJ$7),0)","v":0},{"$f":"IF(BL14=\"yes\",SUMIFS('Project Scope'!$AO$8:$AO$107,'Project Scope'!$AN$8:$AN$107,$I14,'Project Scope'!$C$8:$C$107,DK$7)+SUMIFS('Project Scope'!$AX$8:$AX$107,'Project Scope'!$AW$8:$AW$107,$I14,'Project Scope'!$C$8:$C$107,DK$7),0)","v":0},null,"","","","","","","","","","","","","","","","","","","","","","","","","",{"$f":"IF(CM14>0,EL$7,\"\")","v":""},{"$f":"IF(CN14>0,EM$7,\"\")","v":""},{"$f":"IF(CO14>0,EN$7,\"\")","v":""},{"$f":"IF(CP14>0,EO$7,\"\")","v":""},{"$f":"IF(CQ14>0,EP$7,\"\")","v":""},{"$f":"IF(CR14>0,EQ$7,\"\")","v":""},{"$f":"IF(CS14>0,ER$7,\"\")","v":""},{"$f":"IF(CT14>0,ES$7,\"\")","v":""},{"$f":"IF(CU14>0,ET$7,\"\")","v":""},{"$f":"IF(CV14>0,EU$7,\"\")","v":""},{"$f":"IF(CW14>0,EV$7,\"\")","v":""},{"$f":"IF(CX14>0,EW$7,\"\")","v":""},{"$f":"IF(CY14>0,EX$7,\"\")","v":""},{"$f":"IF(CZ14>0,EY$7,\"\")","v":""},{"$f":"IF(DA14>0,EZ$7,\"\")","v":""},{"$f":"IF(DB14>0,FA$7,\"\")","v":""},{"$f":"IF(DC14>0,FB$7,\"\")","v":""},{"$f":"IF(DD14>0,FC$7,\"\")","v":""},{"$f":"IF(DE14>0,FD$7,\"\")","v":""},{"$f":"IF(DF14>0,FE$7,\"\")","v":""},{"$f":"IF(DG14>0,FF$7,\"\")","v":""},{"$f":"IF(DH14>0,FG$7,\"\")","v":""},{"$f":"IF(DI14>0,FH$7,\"\")","v":""},{"$f":"IF(DJ14>0,FI$7,\"\")","v":""},{"$f":"IF(DK14>0,FJ$7,\"\")","v":""},null,""]
[null,null,null,null,null,null,null,null,null,null,null,{"$f":"IF($C15=\"additional labor hours\",$K15*'Project Information'!$D$12,$K15*$J15)*IF($F15=\"Per Measure\",SUM($BN15:$DK15),1)","v":0},{"$f":"IF($C15=\"\",0,IF(VLOOKUP($C15,'Other Data'!$B$146:$C$156,2,FALSE)=\"M\",$L15,0))","v":0},0,null,null,null,null,null,null,null,null,null,null,null,null,null,null,null,null,null,null,null,null,null,null,null,null,null,null,null,null,null,null,null,null,null,null,null,null,null,null,null,null,null,null,null,null,null,null,null,null,null,null,null,{"$f":"IF(O15=\"yes\",SUMIFS('Project Scope'!$AO$8:$AO$107,'Project Scope'!$AN$8:$AN$107,$I15,'Project Scope'!$C$8:$C$107,BN$7)+SUMIFS('Project Scope'!$AX$8:$AX$107,'Project Scope'!$AW$8:$AW$107,$I15,'Project Scope'!$C$8:$C$107,BN$7),0)","v":0},{"$f":"IF(P15=\"yes\",SUMIFS('Project Scope'!$AO$8:$AO$107,'Project Scope'!$AN$8:$AN$107,$I15,'Project Scope'!$C$8:$C$107,BO$7)+SUMIFS('Project Scope'!$AX$8:$AX$107,'Project Scope'!$AW$8:$AW$107,$I15,'Project Scope'!$C$8:$C$107,BO$7),0)","v":0},{"$f":"IF(Q15=\"yes\",SUMIFS('Project Scope'!$AO$8:$AO$107,'Project Scope'!$AN$8:$AN$107,$I15,'Project Scope'!$C$8:$C$107,BP$7)+SUMIFS('Project Scope'!$AX$8:$AX$107,'Project Scope'!$AW$8:$AW$107,$I15,'Project Scope'!$C$8:$C$107,BP$7),0)","v":0},{"$f":"IF(R15=\"yes\",SUMIFS('Project Scope'!$AO$8:$AO$107,'Project Scope'!$AN$8:$AN$107,$I15,'Project Scope'!$C$8:$C$107,BQ$7)+SUMIFS('Project Scope'!$AX$8:$AX$107,'Project Scope'!$AW$8:$AW$107,$I15,'Project Scope'!$C$8:$C$107,BQ$7),0)","v":0},{"$f":"IF(S15=\"yes\",SUMIFS('Project Scope'!$AO$8:$AO$107,'Project Scope'!$AN$8:$AN$107,$I15,'Project Scope'!$C$8:$C$107,BR$7)+SUMIFS('Project Scope'!$AX$8:$AX$107,'Project Scope'!$AW$8:$AW$107,$I15,'Project Scope'!$C$8:$C$107,BR$7),0)","v":0},{"$f":"IF(T15=\"yes\",SUMIFS('Project Scope'!$AO$8:$AO$107,'Project Scope'!$AN$8:$AN$107,$I15,'Project Scope'!$C$8:$C$107,BS$7)+SUMIFS('Project Scope'!$AX$8:$AX$107,'Project Scope'!$AW$8:$AW$107,$I15,'Project Scope'!$C$8:$C$107,BS$7),0)","v":0},{"$f":"IF(U15=\"yes\",SUMIFS('Project Scope'!$AO$8:$AO$107,'Project Scope'!$AN$8:$AN$107,$I15,'Project Scope'!$C$8:$C$107,BT$7)+SUMIFS('Project Scope'!$AX$8:$AX$107,'Project Scope'!$AW$8:$AW$107,$I15,'Project Scope'!$C$8:$C$107,BT$7),0)","v":0},{"$f":"IF(V15=\"yes\",SUMIFS('Project Scope'!$AO$8:$AO$107,'Project Scope'!$AN$8:$AN$107,$I15,'Project Scope'!$C$8:$C$107,BU$7)+SUMIFS('Project Scope'!$AX$8:$AX$107,'Project Scope'!$AW$8:$AW$107,$I15,'Project Scope'!$C$8:$C$107,BU$7),0)","v":0},{"$f":"IF(W15=\"yes\",SUMIFS('Project Scope'!$AO$8:$AO$107,'Project Scope'!$AN$8:$AN$107,$I15,'Project Scope'!$C$8:$C$107,BV$7)+SUMIFS('Project Scope'!$AX$8:$AX$107,'Project Scope'!$AW$8:$AW$107,$I15,'Project Scope'!$C$8:$C$107,BV$7),0)","v":0},{"$f":"IF(X15=\"yes\",SUMIFS('Project Scope'!$AO$8:$AO$107,'Project Scope'!$AN$8:$AN$107,$I15,'Project Scope'!$C$8:$C$107,BW$7)+SUMIFS('Project Scope'!$AX$8:$AX$107,'Project Scope'!$AW$8:$AW$107,$I15,'Project Scope'!$C$8:$C$107,BW$7),0)","v":0},{"$f":"IF(Y15=\"yes\",SUMIFS('Project Scope'!$AO$8:$AO$107,'Project Scope'!$AN$8:$AN$107,$I15,'Project Scope'!$C$8:$C$107,BX$7)+SUMIFS('Project Scope'!$AX$8:$AX$107,'Project Scope'!$AW$8:$AW$107,$I15,'Project Scope'!$C$8:$C$107,BX$7),0)","v":0},{"$f":"IF(Z15=\"yes\",SUMIFS('Project Scope'!$AO$8:$AO$107,'Project Scope'!$AN$8:$AN$107,$I15,'Project Scope'!$C$8:$C$107,BY$7)+SUMIFS('Project Scope'!$AX$8:$AX$107,'Project Scope'!$AW$8:$AW$107,$I15,'Project Scope'!$C$8:$C$107,BY$7),0)","v":0},{"$f":"IF(AA15=\"yes\",SUMIFS('Project Scope'!$AO$8:$AO$107,'Project Scope'!$AN$8:$AN$107,$I15,'Project Scope'!$C$8:$C$107,BZ$7)+SUMIFS('Project Scope'!$AX$8:$AX$107,'Project Scope'!$AW$8:$AW$107,$I15,'Project Scope'!$C$8:$C$107,BZ$7),0)","v":0},{"$f":"IF(AB15=\"yes\",SUMIFS('Project Scope'!$AO$8:$AO$107,'Project Scope'!$AN$8:$AN$107,$I15,'Project Scope'!$C$8:$C$107,CA$7)+SUMIFS('Project Scope'!$AX$8:$AX$107,'Project Scope'!$AW$8:$AW$107,$I15,'Project Scope'!$C$8:$C$107,CA$7),0)","v":0},{"$f":"IF(AC15=\"yes\",SUMIFS('Project Scope'!$AO$8:$AO$107,'Project Scope'!$AN$8:$AN$107,$I15,'Project Scope'!$C$8:$C$107,CB$7)+SUMIFS('Project Scope'!$AX$8:$AX$107,'Project Scope'!$AW$8:$AW$107,$I15,'Project Scope'!$C$8:$C$107,CB$7),0)","v":0},{"$f":"IF(AD15=\"yes\",SUMIFS('Project Scope'!$AO$8:$AO$107,'Project Scope'!$AN$8:$AN$107,$I15,'Project Scope'!$C$8:$C$107,CC$7)+SUMIFS('Project Scope'!$AX$8:$AX$107,'Project Scope'!$AW$8:$AW$107,$I15,'Project Scope'!$C$8:$C$107,CC$7),0)","v":0},{"$f":"IF(AE15=\"yes\",SUMIFS('Project Scope'!$AO$8:$AO$107,'Project Scope'!$AN$8:$AN$107,$I15,'Project Scope'!$C$8:$C$107,CD$7)+SUMIFS('Project Scope'!$AX$8:$AX$107,'Project Scope'!$AW$8:$AW$107,$I15,'Project Scope'!$C$8:$C$107,CD$7),0)","v":0},{"$f":"IF(AF15=\"yes\",SUMIFS('Project Scope'!$AO$8:$AO$107,'Project Scope'!$AN$8:$AN$107,$I15,'Project Scope'!$C$8:$C$107,CE$7)+SUMIFS('Project Scope'!$AX$8:$AX$107,'Project Scope'!$AW$8:$AW$107,$I15,'Project Scope'!$C$8:$C$107,CE$7),0)","v":0},{"$f":"IF(AG15=\"yes\",SUMIFS('Project Scope'!$AO$8:$AO$107,'Project Scope'!$AN$8:$AN$107,$I15,'Project Scope'!$C$8:$C$107,CF$7)+SUMIFS('Project Scope'!$AX$8:$AX$107,'Project Scope'!$AW$8:$AW$107,$I15,'Project Scope'!$C$8:$C$107,CF$7),0)","v":0},{"$f":"IF(AH15=\"yes\",SUMIFS('Project Scope'!$AO$8:$AO$107,'Project Scope'!$AN$8:$AN$107,$I15,'Project Scope'!$C$8:$C$107,CG$7)+SUMIFS('Project Scope'!$AX$8:$AX$107,'Project Scope'!$AW$8:$AW$107,$I15,'Project Scope'!$C$8:$C$107,CG$7),0)","v":0},{"$f":"IF(AI15=\"yes\",SUMIFS('Project Scope'!$AO$8:$AO$107,'Project Scope'!$AN$8:$AN$107,$I15,'Project Scope'!$C$8:$C$107,CH$7)+SUMIFS('Project Scope'!$AX$8:$AX$107,'Project Scope'!$AW$8:$AW$107,$I15,'Project Scope'!$C$8:$C$107,CH$7),0)","v":0},{"$f":"IF(AJ15=\"yes\",SUMIFS('Project Scope'!$AO$8:$AO$107,'Project Scope'!$AN$8:$AN$107,$I15,'Project Scope'!$C$8:$C$107,CI$7)+SUMIFS('Project Scope'!$AX$8:$AX$107,'Project Scope'!$AW$8:$AW$107,$I15,'Project Scope'!$C$8:$C$107,CI$7),0)","v":0},{"$f":"IF(AK15=\"yes\",SUMIFS('Project Scope'!$AO$8:$AO$107,'Project Scope'!$AN$8:$AN$107,$I15,'Project Scope'!$C$8:$C$107,CJ$7)+SUMIFS('Project Scope'!$AX$8:$AX$107,'Project Scope'!$AW$8:$AW$107,$I15,'Project Scope'!$C$8:$C$107,CJ$7),0)","v":0},{"$f":"IF(AL15=\"yes\",SUMIFS('Project Scope'!$AO$8:$AO$107,'Project Scope'!$AN$8:$AN$107,$I15,'Project Scope'!$C$8:$C$107,CK$7)+SUMIFS('Project Scope'!$AX$8:$AX$107,'Project Scope'!$AW$8:$AW$107,$I15,'Project Scope'!$C$8:$C$107,CK$7),0)","v":0},{"$f":"IF(AM15=\"yes\",SUMIFS('Project Scope'!$AO$8:$AO$107,'Project Scope'!$AN$8:$AN$107,$I15,'Project Scope'!$C$8:$C$107,CL$7)+SUMIFS('Project Scope'!$AX$8:$AX$107,'Project Scope'!$AW$8:$AW$107,$I15,'Project Scope'!$C$8:$C$107,CL$7),0)","v":0},{"$f":"IF(AN15=\"yes\",SUMIFS('Project Scope'!$AO$8:$AO$107,'Project Scope'!$AN$8:$AN$107,$I15,'Project Scope'!$C$8:$C$107,CM$7)+SUMIFS('Project Scope'!$AX$8:$AX$107,'Project Scope'!$AW$8:$AW$107,$I15,'Project Scope'!$C$8:$C$107,CM$7),0)","v":0},{"$f":"IF(AO15=\"yes\",SUMIFS('Project Scope'!$AO$8:$AO$107,'Project Scope'!$AN$8:$AN$107,$I15,'Project Scope'!$C$8:$C$107,CN$7)+SUMIFS('Project Scope'!$AX$8:$AX$107,'Project Scope'!$AW$8:$AW$107,$I15,'Project Scope'!$C$8:$C$107,CN$7),0)","v":0},{"$f":"IF(AP15=\"yes\",SUMIFS('Project Scope'!$AO$8:$AO$107,'Project Scope'!$AN$8:$AN$107,$I15,'Project Scope'!$C$8:$C$107,CO$7)+SUMIFS('Project Scope'!$AX$8:$AX$107,'Project Scope'!$AW$8:$AW$107,$I15,'Project Scope'!$C$8:$C$107,CO$7),0)","v":0},{"$f":"IF(AQ15=\"yes\",SUMIFS('Project Scope'!$AO$8:$AO$107,'Project Scope'!$AN$8:$AN$107,$I15,'Project Scope'!$C$8:$C$107,CP$7)+SUMIFS('Project Scope'!$AX$8:$AX$107,'Project Scope'!$AW$8:$AW$107,$I15,'Project Scope'!$C$8:$C$107,CP$7),0)","v":0},{"$f":"IF(AR15=\"yes\",SUMIFS('Project Scope'!$AO$8:$AO$107,'Project Scope'!$AN$8:$AN$107,$I15,'Project Scope'!$C$8:$C$107,CQ$7)+SUMIFS('Project Scope'!$AX$8:$AX$107,'Project Scope'!$AW$8:$AW$107,$I15,'Project Scope'!$C$8:$C$107,CQ$7),0)","v":0},{"$f":"IF(AS15=\"yes\",SUMIFS('Project Scope'!$AO$8:$AO$107,'Project Scope'!$AN$8:$AN$107,$I15,'Project Scope'!$C$8:$C$107,CR$7)+SUMIFS('Project Scope'!$AX$8:$AX$107,'Project Scope'!$AW$8:$AW$107,$I15,'Project Scope'!$C$8:$C$107,CR$7),0)","v":0},{"$f":"IF(AT15=\"yes\",SUMIFS('Project Scope'!$AO$8:$AO$107,'Project Scope'!$AN$8:$AN$107,$I15,'Project Scope'!$C$8:$C$107,CS$7)+SUMIFS('Project Scope'!$AX$8:$AX$107,'Project Scope'!$AW$8:$AW$107,$I15,'Project Scope'!$C$8:$C$107,CS$7),0)","v":0},{"$f":"IF(AU15=\"yes\",SUMIFS('Project Scope'!$AO$8:$AO$107,'Project Scope'!$AN$8:$AN$107,$I15,'Project Scope'!$C$8:$C$107,CT$7)+SUMIFS('Project Scope'!$AX$8:$AX$107,'Project Scope'!$AW$8:$AW$107,$I15,'Project Scope'!$C$8:$C$107,CT$7),0)","v":0},{"$f":"IF(AV15=\"yes\",SUMIFS('Project Scope'!$AO$8:$AO$107,'Project Scope'!$AN$8:$AN$107,$I15,'Project Scope'!$C$8:$C$107,CU$7)+SUMIFS('Project Scope'!$AX$8:$AX$107,'Project Scope'!$AW$8:$AW$107,$I15,'Project Scope'!$C$8:$C$107,CU$7),0)","v":0},{"$f":"IF(AW15=\"yes\",SUMIFS('Project Scope'!$AO$8:$AO$107,'Project Scope'!$AN$8:$AN$107,$I15,'Project Scope'!$C$8:$C$107,CV$7)+SUMIFS('Project Scope'!$AX$8:$AX$107,'Project Scope'!$AW$8:$AW$107,$I15,'Project Scope'!$C$8:$C$107,CV$7),0)","v":0},{"$f":"IF(AX15=\"yes\",SUMIFS('Project Scope'!$AO$8:$AO$107,'Project Scope'!$AN$8:$AN$107,$I15,'Project Scope'!$C$8:$C$107,CW$7)+SUMIFS('Project Scope'!$AX$8:$AX$107,'Project Scope'!$AW$8:$AW$107,$I15,'Project Scope'!$C$8:$C$107,CW$7),0)","v":0},{"$f":"IF(AY15=\"yes\",SUMIFS('Project Scope'!$AO$8:$AO$107,'Project Scope'!$AN$8:$AN$107,$I15,'Project Scope'!$C$8:$C$107,CX$7)+SUMIFS('Project Scope'!$AX$8:$AX$107,'Project Scope'!$AW$8:$AW$107,$I15,'Project Scope'!$C$8:$C$107,CX$7),0)","v":0},{"$f":"IF(AZ15=\"yes\",SUMIFS('Project Scope'!$AO$8:$AO$107,'Project Scope'!$AN$8:$AN$107,$I15,'Project Scope'!$C$8:$C$107,CY$7)+SUMIFS('Project Scope'!$AX$8:$AX$107,'Project Scope'!$AW$8:$AW$107,$I15,'Project Scope'!$C$8:$C$107,CY$7),0)","v":0},{"$f":"IF(BA15=\"yes\",SUMIFS('Project Scope'!$AO$8:$AO$107,'Project Scope'!$AN$8:$AN$107,$I15,'Project Scope'!$C$8:$C$107,CZ$7)+SUMIFS('Project Scope'!$AX$8:$AX$107,'Project Scope'!$AW$8:$AW$107,$I15,'Project Scope'!$C$8:$C$107,CZ$7),0)","v":0},{"$f":"IF(BB15=\"yes\",SUMIFS('Project Scope'!$AO$8:$AO$107,'Project Scope'!$AN$8:$AN$107,$I15,'Project Scope'!$C$8:$C$107,DA$7)+SUMIFS('Project Scope'!$AX$8:$AX$107,'Project Scope'!$AW$8:$AW$107,$I15,'Project Scope'!$C$8:$C$107,DA$7),0)","v":0},{"$f":"IF(BC15=\"yes\",SUMIFS('Project Scope'!$AO$8:$AO$107,'Project Scope'!$AN$8:$AN$107,$I15,'Project Scope'!$C$8:$C$107,DB$7)+SUMIFS('Project Scope'!$AX$8:$AX$107,'Project Scope'!$AW$8:$AW$107,$I15,'Project Scope'!$C$8:$C$107,DB$7),0)","v":0},{"$f":"IF(BD15=\"yes\",SUMIFS('Project Scope'!$AO$8:$AO$107,'Project Scope'!$AN$8:$AN$107,$I15,'Project Scope'!$C$8:$C$107,DC$7)+SUMIFS('Project Scope'!$AX$8:$AX$107,'Project Scope'!$AW$8:$AW$107,$I15,'Project Scope'!$C$8:$C$107,DC$7),0)","v":0},{"$f":"IF(BE15=\"yes\",SUMIFS('Project Scope'!$AO$8:$AO$107,'Project Scope'!$AN$8:$AN$107,$I15,'Project Scope'!$C$8:$C$107,DD$7)+SUMIFS('Project Scope'!$AX$8:$AX$107,'Project Scope'!$AW$8:$AW$107,$I15,'Project Scope'!$C$8:$C$107,DD$7),0)","v":0},{"$f":"IF(BF15=\"yes\",SUMIFS('Project Scope'!$AO$8:$AO$107,'Project Scope'!$AN$8:$AN$107,$I15,'Project Scope'!$C$8:$C$107,DE$7)+SUMIFS('Project Scope'!$AX$8:$AX$107,'Project Scope'!$AW$8:$AW$107,$I15,'Project Scope'!$C$8:$C$107,DE$7),0)","v":0},{"$f":"IF(BG15=\"yes\",SUMIFS('Project Scope'!$AO$8:$AO$107,'Project Scope'!$AN$8:$AN$107,$I15,'Project Scope'!$C$8:$C$107,DF$7)+SUMIFS('Project Scope'!$AX$8:$AX$107,'Project Scope'!$AW$8:$AW$107,$I15,'Project Scope'!$C$8:$C$107,DF$7),0)","v":0},{"$f":"IF(BH15=\"yes\",SUMIFS('Project Scope'!$AO$8:$AO$107,'Project Scope'!$AN$8:$AN$107,$I15,'Project Scope'!$C$8:$C$107,DG$7)+SUMIFS('Project Scope'!$AX$8:$AX$107,'Project Scope'!$AW$8:$AW$107,$I15,'Project Scope'!$C$8:$C$107,DG$7),0)","v":0},{"$f":"IF(BI15=\"yes\",SUMIFS('Project Scope'!$AO$8:$AO$107,'Project Scope'!$AN$8:$AN$107,$I15,'Project Scope'!$C$8:$C$107,DH$7)+SUMIFS('Project Scope'!$AX$8:$AX$107,'Project Scope'!$AW$8:$AW$107,$I15,'Project Scope'!$C$8:$C$107,DH$7),0)","v":0},{"$f":"IF(BJ15=\"yes\",SUMIFS('Project Scope'!$AO$8:$AO$107,'Project Scope'!$AN$8:$AN$107,$I15,'Project Scope'!$C$8:$C$107,DI$7)+SUMIFS('Project Scope'!$AX$8:$AX$107,'Project Scope'!$AW$8:$AW$107,$I15,'Project Scope'!$C$8:$C$107,DI$7),0)","v":0},{"$f":"IF(BK15=\"yes\",SUMIFS('Project Scope'!$AO$8:$AO$107,'Project Scope'!$AN$8:$AN$107,$I15,'Project Scope'!$C$8:$C$107,DJ$7)+SUMIFS('Project Scope'!$AX$8:$AX$107,'Project Scope'!$AW$8:$AW$107,$I15,'Project Scope'!$C$8:$C$107,DJ$7),0)","v":0},{"$f":"IF(BL15=\"yes\",SUMIFS('Project Scope'!$AO$8:$AO$107,'Project Scope'!$AN$8:$AN$107,$I15,'Project Scope'!$C$8:$C$107,DK$7)+SUMIFS('Project Scope'!$AX$8:$AX$107,'Project Scope'!$AW$8:$AW$107,$I15,'Project Scope'!$C$8:$C$107,DK$7),0)","v":0},null,"","","","","","","","","","",{"$f":"IF(BX15>0,DW$7,\"\")","v":""},{"$f":"IF(BY15>0,DX$7,\"\")","v":""},{"$f":"IF(BZ15>0,DY$7,\"\")","v":""},{"$f":"IF(CA15>0,DZ$7,\"\")","v":""},{"$f":"IF(CB15>0,EA$7,\"\")","v":""},{"$f":"IF(CC15>0,EB$7,\"\")","v":""},{"$f":"IF(CD15>0,EC$7,\"\")","v":""},{"$f":"IF(CE15>0,ED$7,\"\")","v":""},{"$f":"IF(CF15>0,EE$7,\"\")","v":""},{"$f":"IF(CG15>0,EF$7,\"\")","v":""},{"$f":"IF(CH15>0,EG$7,\"\")","v":""},{"$f":"IF(CI15>0,EH$7,\"\")","v":""},{"$f":"IF(CJ15>0,EI$7,\"\")","v":""},{"$f":"IF(CK15>0,EJ$7,\"\")","v":""},{"$f":"IF(CL15>0,EK$7,\"\")","v":""},"","","","","","","","","","","","","","","","","","","","","","","","","",null,""]
[null,null,null,null,null,null,null,null,null,null,null,{"$f":"IF($C16=\"additional labor hours\",$K16*'Project Information'!$D$12,$K16*$J16)*IF($F16=\"Per Measure\",SUM($BN16:$DK16),1)","v":0},{"$f":"IF($C16=\"\",0,IF(VLOOKUP($C16,'Other Data'!$B$146:$C$156,2,FALSE)=\"M\",$L16,0))","v":0},0,null,null,null,null,null,null,null,null,null,null,null,null,null,null,null,null,null,null,null,null,null,null,null,null,null,null,null,null,null,null,null,null,null,null,null,null,null,null,null,null,null,null,null,null,null,null,null,null,null,null,null,{"$f":"IF(O16=\"yes\",SUMIFS('Project Scope'!$AO$8:$AO$107,'Project Scope'!$AN$8:$AN$107,$I16,'Project Scope'!$C$8:$C$107,BN$7)+SUMIFS('Project Scope'!$AX$8:$AX$107,'Project Scope'!$AW$8:$AW$107,$I16,'Project Scope'!$C$8:$C$107,BN$7),0)","v":0},{"$f":"IF(P16=\"yes\",SUMIFS('Project Scope'!$AO$8:$AO$107,'Project Scope'!$AN$8:$AN$107,$I16,'Project Scope'!$C$8:$C$107,BO$7)+SUMIFS('Project Scope'!$AX$8:$AX$107,'Project Scope'!$AW$8:$AW$107,$I16,'Project Scope'!$C$8:$C$107,BO$7),0)","v":0},{"$f":"IF(Q16=\"yes\",SUMIFS('Project Scope'!$AO$8:$AO$107,'Project Scope'!$AN$8:$AN$107,$I16,'Project Scope'!$C$8:$C$107,BP$7)+SUMIFS('Project Scope'!$AX$8:$AX$107,'Project Scope'!$AW$8:$AW$107,$I16,'Project Scope'!$C$8:$C$107,BP$7),0)","v":0},{"$f":"IF(R16=\"yes\",SUMIFS('Project Scope'!$AO$8:$AO$107,'Project Scope'!$AN$8:$AN$107,$I16,'Project Scope'!$C$8:$C$107,BQ$7)+SUMIFS('Project Scope'!$AX$8:$AX$107,'Project Scope'!$AW$8:$AW$107,$I16,'Project Scope'!$C$8:$C$107,BQ$7),0)","v":0},{"$f":"IF(S16=\"yes\",SUMIFS('Project Scope'!$AO$8:$AO$107,'Project Scope'!$AN$8:$AN$107,$I16,'Project Scope'!$C$8:$C$107,BR$7)+SUMIFS('Project Scope'!$AX$8:$AX$107,'Project Scope'!$AW$8:$AW$107,$I16,'Project Scope'!$C$8:$C$107,BR$7),0)","v":0},{"$f":"IF(T16=\"yes\",SUMIFS('Project Scope'!$AO$8:$AO$107,'Project Scope'!$AN$8:$AN$107,$I16,'Project Scope'!$C$8:$C$107,BS$7)+SUMIFS('Project Scope'!$AX$8:$AX$107,'Project Scope'!$AW$8:$AW$107,$I16,'Project Scope'!$C$8:$C$107,BS$7),0)","v":0},{"$f":"IF(U16=\"yes\",SUMIFS('Project Scope'!$AO$8:$AO$107,'Project Scope'!$AN$8:$AN$107,$I16,'Project Scope'!$C$8:$C$107,BT$7)+SUMIFS('Project Scope'!$AX$8:$AX$107,'Project Scope'!$AW$8:$AW$107,$I16,'Project Scope'!$C$8:$C$107,BT$7),0)","v":0},{"$f":"IF(V16=\"yes\",SUMIFS('Project Scope'!$AO$8:$AO$107,'Project Scope'!$AN$8:$AN$107,$I16,'Project Scope'!$C$8:$C$107,BU$7)+SUMIFS('Project Scope'!$AX$8:$AX$107,'Project Scope'!$AW$8:$AW$107,$I16,'Project Scope'!$C$8:$C$107,BU$7),0)","v":0},{"$f":"IF(W16=\"yes\",SUMIFS('Project Scope'!$AO$8:$AO$107,'Project Scope'!$AN$8:$AN$107,$I16,'Project Scope'!$C$8:$C$107,BV$7)+SUMIFS('Project Scope'!$AX$8:$AX$107,'Project Scope'!$AW$8:$AW$107,$I16,'Project Scope'!$C$8:$C$107,BV$7),0)","v":0},{"$f":"IF(X16=\"yes\",SUMIFS('Project Scope'!$AO$8:$AO$107,'Project Scope'!$AN$8:$AN$107,$I16,'Project Scope'!$C$8:$C$107,BW$7)+SUMIFS('Project Scope'!$AX$8:$AX$107,'Project Scope'!$AW$8:$AW$107,$I16,'Project Scope'!$C$8:$C$107,BW$7),0)","v":0},{"$f":"IF(Y16=\"yes\",SUMIFS('Project Scope'!$AO$8:$AO$107,'Project Scope'!$AN$8:$AN$107,$I16,'Project Scope'!$C$8:$C$107,BX$7)+SUMIFS('Project Scope'!$AX$8:$AX$107,'Project Scope'!$AW$8:$AW$107,$I16,'Project Scope'!$C$8:$C$107,BX$7),0)","v":0},{"$f":"IF(Z16=\"yes\",SUMIFS('Project Scope'!$AO$8:$AO$107,'Project Scope'!$AN$8:$AN$107,$I16,'Project Scope'!$C$8:$C$107,BY$7)+SUMIFS('Project Scope'!$AX$8:$AX$107,'Project Scope'!$AW$8:$AW$107,$I16,'Project Scope'!$C$8:$C$107,BY$7),0)","v":0},{"$f":"IF(AA16=\"yes\",SUMIFS('Project Scope'!$AO$8:$AO$107,'Project Scope'!$AN$8:$AN$107,$I16,'Project Scope'!$C$8:$C$107,BZ$7)+SUMIFS('Project Scope'!$AX$8:$AX$107,'Project Scope'!$AW$8:$AW$107,$I16,'Project Scope'!$C$8:$C$107,BZ$7),0)","v":0},{"$f":"IF(AB16=\"yes\",SUMIFS('Project Scope'!$AO$8:$AO$107,'Project Scope'!$AN$8:$AN$107,$I16,'Project Scope'!$C$8:$C$107,CA$7)+SUMIFS('Project Scope'!$AX$8:$AX$107,'Project Scope'!$AW$8:$AW$107,$I16,'Project Scope'!$C$8:$C$107,CA$7),0)","v":0},{"$f":"IF(AC16=\"yes\",SUMIFS('Project Scope'!$AO$8:$AO$107,'Project Scope'!$AN$8:$AN$107,$I16,'Project Scope'!$C$8:$C$107,CB$7)+SUMIFS('Project Scope'!$AX$8:$AX$107,'Project Scope'!$AW$8:$AW$107,$I16,'Project Scope'!$C$8:$C$107,CB$7),0)","v":0},{"$f":"IF(AD16=\"yes\",SUMIFS('Project Scope'!$AO$8:$AO$107,'Project Scope'!$AN$8:$AN$107,$I16,'Project Scope'!$C$8:$C$107,CC$7)+SUMIFS('Project Scope'!$AX$8:$AX$107,'Project Scope'!$AW$8:$AW$107,$I16,'Project Scope'!$C$8:$C$107,CC$7),0)","v":0},{"$f":"IF(AE16=\"yes\",SUMIFS('Project Scope'!$AO$8:$AO$107,'Project Scope'!$AN$8:$AN$107,$I16,'Project Scope'!$C$8:$C$107,CD$7)+SUMIFS('Project Scope'!$AX$8:$AX$107,'Project Scope'!$AW$8:$AW$107,$I16,'Project Scope'!$C$8:$C$107,CD$7),0)","v":0},{"$f":"IF(AF16=\"yes\",SUMIFS('Project Scope'!$AO$8:$AO$107,'Project Scope'!$AN$8:$AN$107,$I16,'Project Scope'!$C$8:$C$107,CE$7)+SUMIFS('Project Scope'!$AX$8:$AX$107,'Project Scope'!$AW$8:$AW$107,$I16,'Project Scope'!$C$8:$C$107,CE$7),0)","v":0},{"$f":"IF(AG16=\"yes\",SUMIFS('Project Scope'!$AO$8:$AO$107,'Project Scope'!$AN$8:$AN$107,$I16,'Project Scope'!$C$8:$C$107,CF$7)+SUMIFS('Project Scope'!$AX$8:$AX$107,'Project Scope'!$AW$8:$AW$107,$I16,'Project Scope'!$C$8:$C$107,CF$7),0)","v":0},{"$f":"IF(AH16=\"yes\",SUMIFS('Project Scope'!$AO$8:$AO$107,'Project Scope'!$AN$8:$AN$107,$I16,'Project Scope'!$C$8:$C$107,CG$7)+SUMIFS('Project Scope'!$AX$8:$AX$107,'Project Scope'!$AW$8:$AW$107,$I16,'Project Scope'!$C$8:$C$107,CG$7),0)","v":0},{"$f":"IF(AI16=\"yes\",SUMIFS('Project Scope'!$AO$8:$AO$107,'Project Scope'!$AN$8:$AN$107,$I16,'Project Scope'!$C$8:$C$107,CH$7)+SUMIFS('Project Scope'!$AX$8:$AX$107,'Project Scope'!$AW$8:$AW$107,$I16,'Project Scope'!$C$8:$C$107,CH$7),0)","v":0},{"$f":"IF(AJ16=\"yes\",SUMIFS('Project Scope'!$AO$8:$AO$107,'Project Scope'!$AN$8:$AN$107,$I16,'Project Scope'!$C$8:$C$107,CI$7)+SUMIFS('Project Scope'!$AX$8:$AX$107,'Project Scope'!$AW$8:$AW$107,$I16,'Project Scope'!$C$8:$C$107,CI$7),0)","v":0},{"$f":"IF(AK16=\"yes\",SUMIFS('Project Scope'!$AO$8:$AO$107,'Project Scope'!$AN$8:$AN$107,$I16,'Project Scope'!$C$8:$C$107,CJ$7)+SUMIFS('Project Scope'!$AX$8:$AX$107,'Project Scope'!$AW$8:$AW$107,$I16,'Project Scope'!$C$8:$C$107,CJ$7),0)","v":0},{"$f":"IF(AL16=\"yes\",SUMIFS('Project Scope'!$AO$8:$AO$107,'Project Scope'!$AN$8:$AN$107,$I16,'Project Scope'!$C$8:$C$107,CK$7)+SUMIFS('Project Scope'!$AX$8:$AX$107,'Project Scope'!$AW$8:$AW$107,$I16,'Project Scope'!$C$8:$C$107,CK$7),0)","v":0},{"$f":"IF(AM16=\"yes\",SUMIFS('Project Scope'!$AO$8:$AO$107,'Project Scope'!$AN$8:$AN$107,$I16,'Project Scope'!$C$8:$C$107,CL$7)+SUMIFS('Project Scope'!$AX$8:$AX$107,'Project Scope'!$AW$8:$AW$107,$I16,'Project Scope'!$C$8:$C$107,CL$7),0)","v":0},{"$f":"IF(AN16=\"yes\",SUMIFS('Project Scope'!$AO$8:$AO$107,'Project Scope'!$AN$8:$AN$107,$I16,'Project Scope'!$C$8:$C$107,CM$7)+SUMIFS('Project Scope'!$AX$8:$AX$107,'Project Scope'!$AW$8:$AW$107,$I16,'Project Scope'!$C$8:$C$107,CM$7),0)","v":0},{"$f":"IF(AO16=\"yes\",SUMIFS('Project Scope'!$AO$8:$AO$107,'Project Scope'!$AN$8:$AN$107,$I16,'Project Scope'!$C$8:$C$107,CN$7)+SUMIFS('Project Scope'!$AX$8:$AX$107,'Project Scope'!$AW$8:$AW$107,$I16,'Project Scope'!$C$8:$C$107,CN$7),0)","v":0},{"$f":"IF(AP16=\"yes\",SUMIFS('Project Scope'!$AO$8:$AO$107,'Project Scope'!$AN$8:$AN$107,$I16,'Project Scope'!$C$8:$C$107,CO$7)+SUMIFS('Project Scope'!$AX$8:$AX$107,'Project Scope'!$AW$8:$AW$107,$I16,'Project Scope'!$C$8:$C$107,CO$7),0)","v":0},{"$f":"IF(AQ16=\"yes\",SUMIFS('Project Scope'!$AO$8:$AO$107,'Project Scope'!$AN$8:$AN$107,$I16,'Project Scope'!$C$8:$C$107,CP$7)+SUMIFS('Project Scope'!$AX$8:$AX$107,'Project Scope'!$AW$8:$AW$107,$I16,'Project Scope'!$C$8:$C$107,CP$7),0)","v":0},{"$f":"IF(AR16=\"yes\",SUMIFS('Project Scope'!$AO$8:$AO$107,'Project Scope'!$AN$8:$AN$107,$I16,'Project Scope'!$C$8:$C$107,CQ$7)+SUMIFS('Project Scope'!$AX$8:$AX$107,'Project Scope'!$AW$8:$AW$107,$I16,'Project Scope'!$C$8:$C$107,CQ$7),0)","v":0},{"$f":"IF(AS16=\"yes\",SUMIFS('Project Scope'!$AO$8:$AO$107,'Project Scope'!$AN$8:$AN$107,$I16,'Project Scope'!$C$8:$C$107,CR$7)+SUMIFS('Project Scope'!$AX$8:$AX$107,'Project Scope'!$AW$8:$AW$107,$I16,'Project Scope'!$C$8:$C$107,CR$7),0)","v":0},{"$f":"IF(AT16=\"yes\",SUMIFS('Project Scope'!$AO$8:$AO$107,'Project Scope'!$AN$8:$AN$107,$I16,'Project Scope'!$C$8:$C$107,CS$7)+SUMIFS('Project Scope'!$AX$8:$AX$107,'Project Scope'!$AW$8:$AW$107,$I16,'Project Scope'!$C$8:$C$107,CS$7),0)","v":0},{"$f":"IF(AU16=\"yes\",SUMIFS('Project Scope'!$AO$8:$AO$107,'Project Scope'!$AN$8:$AN$107,$I16,'Project Scope'!$C$8:$C$107,CT$7)+SUMIFS('Project Scope'!$AX$8:$AX$107,'Project Scope'!$AW$8:$AW$107,$I16,'Project Scope'!$C$8:$C$107,CT$7),0)","v":0},{"$f":"IF(AV16=\"yes\",SUMIFS('Project Scope'!$AO$8:$AO$107,'Project Scope'!$AN$8:$AN$107,$I16,'Project Scope'!$C$8:$C$107,CU$7)+SUMIFS('Project Scope'!$AX$8:$AX$107,'Project Scope'!$AW$8:$AW$107,$I16,'Project Scope'!$C$8:$C$107,CU$7),0)","v":0},{"$f":"IF(AW16=\"yes\",SUMIFS('Project Scope'!$AO$8:$AO$107,'Project Scope'!$AN$8:$AN$107,$I16,'Project Scope'!$C$8:$C$107,CV$7)+SUMIFS('Project Scope'!$AX$8:$AX$107,'Project Scope'!$AW$8:$AW$107,$I16,'Project Scope'!$C$8:$C$107,CV$7),0)","v":0},{"$f":"IF(AX16=\"yes\",SUMIFS('Project Scope'!$AO$8:$AO$107,'Project Scope'!$AN$8:$AN$107,$I16,'Project Scope'!$C$8:$C$107,CW$7)+SUMIFS('Project Scope'!$AX$8:$AX$107,'Project Scope'!$AW$8:$AW$107,$I16,'Project Scope'!$C$8:$C$107,CW$7),0)","v":0},{"$f":"IF(AY16=\"yes\",SUMIFS('Project Scope'!$AO$8:$AO$107,'Project Scope'!$AN$8:$AN$107,$I16,'Project Scope'!$C$8:$C$107,CX$7)+SUMIFS('Project Scope'!$AX$8:$AX$107,'Project Scope'!$AW$8:$AW$107,$I16,'Project Scope'!$C$8:$C$107,CX$7),0)","v":0},{"$f":"IF(AZ16=\"yes\",SUMIFS('Project Scope'!$AO$8:$AO$107,'Project Scope'!$AN$8:$AN$107,$I16,'Project Scope'!$C$8:$C$107,CY$7)+SUMIFS('Project Scope'!$AX$8:$AX$107,'Project Scope'!$AW$8:$AW$107,$I16,'Project Scope'!$C$8:$C$107,CY$7),0)","v":0},{"$f":"IF(BA16=\"yes\",SUMIFS('Project Scope'!$AO$8:$AO$107,'Project Scope'!$AN$8:$AN$107,$I16,'Project Scope'!$C$8:$C$107,CZ$7)+SUMIFS('Project Scope'!$AX$8:$AX$107,'Project Scope'!$AW$8:$AW$107,$I16,'Project Scope'!$C$8:$C$107,CZ$7),0)","v":0},{"$f":"IF(BB16=\"yes\",SUMIFS('Project Scope'!$AO$8:$AO$107,'Project Scope'!$AN$8:$AN$107,$I16,'Project Scope'!$C$8:$C$107,DA$7)+SUMIFS('Project Scope'!$AX$8:$AX$107,'Project Scope'!$AW$8:$AW$107,$I16,'Project Scope'!$C$8:$C$107,DA$7),0)","v":0},{"$f":"IF(BC16=\"yes\",SUMIFS('Project Scope'!$AO$8:$AO$107,'Project Scope'!$AN$8:$AN$107,$I16,'Project Scope'!$C$8:$C$107,DB$7)+SUMIFS('Project Scope'!$AX$8:$AX$107,'Project Scope'!$AW$8:$AW$107,$I16,'Project Scope'!$C$8:$C$107,DB$7),0)","v":0},{"$f":"IF(BD16=\"yes\",SUMIFS('Project Scope'!$AO$8:$AO$107,'Project Scope'!$AN$8:$AN$107,$I16,'Project Scope'!$C$8:$C$107,DC$7)+SUMIFS('Project Scope'!$AX$8:$AX$107,'Project Scope'!$AW$8:$AW$107,$I16,'Project Scope'!$C$8:$C$107,DC$7),0)","v":0},{"$f":"IF(BE16=\"yes\",SUMIFS('Project Scope'!$AO$8:$AO$107,'Project Scope'!$AN$8:$AN$107,$I16,'Project Scope'!$C$8:$C$107,DD$7)+SUMIFS('Project Scope'!$AX$8:$AX$107,'Project Scope'!$AW$8:$AW$107,$I16,'Project Scope'!$C$8:$C$107,DD$7),0)","v":0},{"$f":"IF(BF16=\"yes\",SUMIFS('Project Scope'!$AO$8:$AO$107,'Project Scope'!$AN$8:$AN$107,$I16,'Project Scope'!$C$8:$C$107,DE$7)+SUMIFS('Project Scope'!$AX$8:$AX$107,'Project Scope'!$AW$8:$AW$107,$I16,'Project Scope'!$C$8:$C$107,DE$7),0)","v":0},{"$f":"IF(BG16=\"yes\",SUMIFS('Project Scope'!$AO$8:$AO$107,'Project Scope'!$AN$8:$AN$107,$I16,'Project Scope'!$C$8:$C$107,DF$7)+SUMIFS('Project Scope'!$AX$8:$AX$107,'Project Scope'!$AW$8:$AW$107,$I16,'Project Scope'!$C$8:$C$107,DF$7),0)","v":0},{"$f":"IF(BH16=\"yes\",SUMIFS('Project Scope'!$AO$8:$AO$107,'Project Scope'!$AN$8:$AN$107,$I16,'Project Scope'!$C$8:$C$107,DG$7)+SUMIFS('Project Scope'!$AX$8:$AX$107,'Project Scope'!$AW$8:$AW$107,$I16,'Project Scope'!$C$8:$C$107,DG$7),0)","v":0},{"$f":"IF(BI16=\"yes\",SUMIFS('Project Scope'!$AO$8:$AO$107,'Project Scope'!$AN$8:$AN$107,$I16,'Project Scope'!$C$8:$C$107,DH$7)+SUMIFS('Project Scope'!$AX$8:$AX$107,'Project Scope'!$AW$8:$AW$107,$I16,'Project Scope'!$C$8:$C$107,DH$7),0)","v":0},{"$f":"IF(BJ16=\"yes\",SUMIFS('Project Scope'!$AO$8:$AO$107,'Project Scope'!$AN$8:$AN$107,$I16,'Project Scope'!$C$8:$C$107,DI$7)+SUMIFS('Project Scope'!$AX$8:$AX$107,'Project Scope'!$AW$8:$AW$107,$I16,'Project Scope'!$C$8:$C$107,DI$7),0)","v":0},{"$f":"IF(BK16=\"yes\",SUMIFS('Project Scope'!$AO$8:$AO$107,'Project Scope'!$AN$8:$AN$107,$I16,'Project Scope'!$C$8:$C$107,DJ$7)+SUMIFS('Project Scope'!$AX$8:$AX$107,'Project Scope'!$AW$8:$AW$107,$I16,'Project Scope'!$C$8:$C$107,DJ$7),0)","v":0},{"$f":"IF(BL16=\"yes\",SUMIFS('Project Scope'!$AO$8:$AO$107,'Project Scope'!$AN$8:$AN$107,$I16,'Project Scope'!$C$8:$C$107,DK$7)+SUMIFS('Project Scope'!$AX$8:$AX$107,'Project Scope'!$AW$8:$AW$107,$I16,'Project Scope'!$C$8:$C$107,DK$7),0)","v":0},null,"","","","","","","","","","","","","","","","","","","","","","","","","","","","","","","","","","","","","","","","","","","","","","","","","","",null,""]
[null,null,null,null,null,null,null,null,null,null,null,{"$f":"IF($C17=\"additional labor hours\",$K17*'Project Information'!$D$12,$K17*$J17)*IF($F17=\"Per Measure\",SUM($BN17:$DK17),1)","v":0},{"$f":"IF($C17=\"\",0,IF(VLOOKUP($C17,'Other Data'!$B$146:$C$156,2,FALSE)=\"M\",$L17,0))","v":0},0,null,null,null,null,null,null,null,null,null,null,null,null,null,null,null,null,null,null,null,null,null,null,null,null,null,null,null,null,null,null,null,null,null,null,null,null,null,null,null,null,null,null,null,null,null,null,null,null,null,null,null,{"$f":"IF(O17=\"yes\",SUMIFS('Project Scope'!$AO$8:$AO$107,'Project Scope'!$AN$8:$AN$107,$I17,'Project Scope'!$C$8:$C$107,BN$7)+SUMIFS('Project Scope'!$AX$8:$AX$107,'Project Scope'!$AW$8:$AW$107,$I17,'Project Scope'!$C$8:$C$107,BN$7),0)","v":0},{"$f":"IF(P17=\"yes\",SUMIFS('Project Scope'!$AO$8:$AO$107,'Project Scope'!$AN$8:$AN$107,$I17,'Project Scope'!$C$8:$C$107,BO$7)+SUMIFS('Project Scope'!$AX$8:$AX$107,'Project Scope'!$AW$8:$AW$107,$I17,'Project Scope'!$C$8:$C$107,BO$7),0)","v":0},{"$f":"IF(Q17=\"yes\",SUMIFS('Project Scope'!$AO$8:$AO$107,'Project Scope'!$AN$8:$AN$107,$I17,'Project Scope'!$C$8:$C$107,BP$7)+SUMIFS('Project Scope'!$AX$8:$AX$107,'Project Scope'!$AW$8:$AW$107,$I17,'Project Scope'!$C$8:$C$107,BP$7),0)","v":0},{"$f":"IF(R17=\"yes\",SUMIFS('Project Scope'!$AO$8:$AO$107,'Project Scope'!$AN$8:$AN$107,$I17,'Project Scope'!$C$8:$C$107,BQ$7)+SUMIFS('Project Scope'!$AX$8:$AX$107,'Project Scope'!$AW$8:$AW$107,$I17,'Project Scope'!$C$8:$C$107,BQ$7),0)","v":0},{"$f":"IF(S17=\"yes\",SUMIFS('Project Scope'!$AO$8:$AO$107,'Project Scope'!$AN$8:$AN$107,$I17,'Project Scope'!$C$8:$C$107,BR$7)+SUMIFS('Project Scope'!$AX$8:$AX$107,'Project Scope'!$AW$8:$AW$107,$I17,'Project Scope'!$C$8:$C$107,BR$7),0)","v":0},{"$f":"IF(T17=\"yes\",SUMIFS('Project Scope'!$AO$8:$AO$107,'Project Scope'!$AN$8:$AN$107,$I17,'Project Scope'!$C$8:$C$107,BS$7)+SUMIFS('Project Scope'!$AX$8:$AX$107,'Project Scope'!$AW$8:$AW$107,$I17,'Project Scope'!$C$8:$C$107,BS$7),0)","v":0},{"$f":"IF(U17=\"yes\",SUMIFS('Project Scope'!$AO$8:$AO$107,'Project Scope'!$AN$8:$AN$107,$I17,'Project Scope'!$C$8:$C$107,BT$7)+SUMIFS('Project Scope'!$AX$8:$AX$107,'Project Scope'!$AW$8:$AW$107,$I17,'Project Scope'!$C$8:$C$107,BT$7),0)","v":0},{"$f":"IF(V17=\"yes\",SUMIFS('Project Scope'!$AO$8:$AO$107,'Project Scope'!$AN$8:$AN$107,$I17,'Project Scope'!$C$8:$C$107,BU$7)+SUMIFS('Project Scope'!$AX$8:$AX$107,'Project Scope'!$AW$8:$AW$107,$I17,'Project Scope'!$C$8:$C$107,BU$7),0)","v":0},{"$f":"IF(W17=\"yes\",SUMIFS('Project Scope'!$AO$8:$AO$107,'Project Scope'!$AN$8:$AN$107,$I17,'Project Scope'!$C$8:$C$107,BV$7)+SUMIFS('Project Scope'!$AX$8:$AX$107,'Project Scope'!$AW$8:$AW$107,$I17,'Project Scope'!$C$8:$C$107,BV$7),0)","v":0},{"$f":"IF(X17=\"yes\",SUMIFS('Project Scope'!$AO$8:$AO$107,'Project Scope'!$AN$8:$AN$107,$I17,'Project Scope'!$C$8:$C$107,BW$7)+SUMIFS('Project Scope'!$AX$8:$AX$107,'Project Scope'!$AW$8:$AW$107,$I17,'Project Scope'!$C$8:$C$107,BW$7),0)","v":0},{"$f":"IF(Y17=\"yes\",SUMIFS('Project Scope'!$AO$8:$AO$107,'Project Scope'!$AN$8:$AN$107,$I17,'Project Scope'!$C$8:$C$107,BX$7)+SUMIFS('Project Scope'!$AX$8:$AX$107,'Project Scope'!$AW$8:$AW$107,$I17,'Project Scope'!$C$8:$C$107,BX$7),0)","v":0},{"$f":"IF(Z17=\"yes\",SUMIFS('Project Scope'!$AO$8:$AO$107,'Project Scope'!$AN$8:$AN$107,$I17,'Project Scope'!$C$8:$C$107,BY$7)+SUMIFS('Project Scope'!$AX$8:$AX$107,'Project Scope'!$AW$8:$AW$107,$I17,'Project Scope'!$C$8:$C$107,BY$7),0)","v":0},{"$f":"IF(AA17=\"yes\",SUMIFS('Project Scope'!$AO$8:$AO$107,'Project Scope'!$AN$8:$AN$107,$I17,'Project Scope'!$C$8:$C$107,BZ$7)+SUMIFS('Project Scope'!$AX$8:$AX$107,'Project Scope'!$AW$8:$AW$107,$I17,'Project Scope'!$C$8:$C$107,BZ$7),0)","v":0},{"$f":"IF(AB17=\"yes\",SUMIFS('Project Scope'!$AO$8:$AO$107,'Project Scope'!$AN$8:$AN$107,$I17,'Project Scope'!$C$8:$C$107,CA$7)+SUMIFS('Project Scope'!$AX$8:$AX$107,'Project Scope'!$AW$8:$AW$107,$I17,'Project Scope'!$C$8:$C$107,CA$7),0)","v":0},{"$f":"IF(AC17=\"yes\",SUMIFS('Project Scope'!$AO$8:$AO$107,'Project Scope'!$AN$8:$AN$107,$I17,'Project Scope'!$C$8:$C$107,CB$7)+SUMIFS('Project Scope'!$AX$8:$AX$107,'Project Scope'!$AW$8:$AW$107,$I17,'Project Scope'!$C$8:$C$107,CB$7),0)","v":0},{"$f":"IF(AD17=\"yes\",SUMIFS('Project Scope'!$AO$8:$AO$107,'Project Scope'!$AN$8:$AN$107,$I17,'Project Scope'!$C$8:$C$107,CC$7)+SUMIFS('Project Scope'!$AX$8:$AX$107,'Project Scope'!$AW$8:$AW$107,$I17,'Project Scope'!$C$8:$C$107,CC$7),0)","v":0},{"$f":"IF(AE17=\"yes\",SUMIFS('Project Scope'!$AO$8:$AO$107,'Project Scope'!$AN$8:$AN$107,$I17,'Project Scope'!$C$8:$C$107,CD$7)+SUMIFS('Project Scope'!$AX$8:$AX$107,'Project Scope'!$AW$8:$AW$107,$I17,'Project Scope'!$C$8:$C$107,CD$7),0)","v":0},{"$f":"IF(AF17=\"yes\",SUMIFS('Project Scope'!$AO$8:$AO$107,'Project Scope'!$AN$8:$AN$107,$I17,'Project Scope'!$C$8:$C$107,CE$7)+SUMIFS('Project Scope'!$AX$8:$AX$107,'Project Scope'!$AW$8:$AW$107,$I17,'Project Scope'!$C$8:$C$107,CE$7),0)","v":0},{"$f":"IF(AG17=\"yes\",SUMIFS('Project Scope'!$AO$8:$AO$107,'Project Scope'!$AN$8:$AN$107,$I17,'Project Scope'!$C$8:$C$107,CF$7)+SUMIFS('Project Scope'!$AX$8:$AX$107,'Project Scope'!$AW$8:$AW$107,$I17,'Project Scope'!$C$8:$C$107,CF$7),0)","v":0},{"$f":"IF(AH17=\"yes\",SUMIFS('Project Scope'!$AO$8:$AO$107,'Project Scope'!$AN$8:$AN$107,$I17,'Project Scope'!$C$8:$C$107,CG$7)+SUMIFS('Project Scope'!$AX$8:$AX$107,'Project Scope'!$AW$8:$AW$107,$I17,'Project Scope'!$C$8:$C$107,CG$7),0)","v":0},{"$f":"IF(AI17=\"yes\",SUMIFS('Project Scope'!$AO$8:$AO$107,'Project Scope'!$AN$8:$AN$107,$I17,'Project Scope'!$C$8:$C$107,CH$7)+SUMIFS('Project Scope'!$AX$8:$AX$107,'Project Scope'!$AW$8:$AW$107,$I17,'Project Scope'!$C$8:$C$107,CH$7),0)","v":0},{"$f":"IF(AJ17=\"yes\",SUMIFS('Project Scope'!$AO$8:$AO$107,'Project Scope'!$AN$8:$AN$107,$I17,'Project Scope'!$C$8:$C$107,CI$7)+SUMIFS('Project Scope'!$AX$8:$AX$107,'Project Scope'!$AW$8:$AW$107,$I17,'Project Scope'!$C$8:$C$107,CI$7),0)","v":0},{"$f":"IF(AK17=\"yes\",SUMIFS('Project Scope'!$AO$8:$AO$107,'Project Scope'!$AN$8:$AN$107,$I17,'Project Scope'!$C$8:$C$107,CJ$7)+SUMIFS('Project Scope'!$AX$8:$AX$107,'Project Scope'!$AW$8:$AW$107,$I17,'Project Scope'!$C$8:$C$107,CJ$7),0)","v":0},{"$f":"IF(AL17=\"yes\",SUMIFS('Project Scope'!$AO$8:$AO$107,'Project Scope'!$AN$8:$AN$107,$I17,'Project Scope'!$C$8:$C$107,CK$7)+SUMIFS('Project Scope'!$AX$8:$AX$107,'Project Scope'!$AW$8:$AW$107,$I17,'Project Scope'!$C$8:$C$107,CK$7),0)","v":0},{"$f":"IF(AM17=\"yes\",SUMIFS('Project Scope'!$AO$8:$AO$107,'Project Scope'!$AN$8:$AN$107,$I17,'Project Scope'!$C$8:$C$107,CL$7)+SUMIFS('Project Scope'!$AX$8:$AX$107,'Project Scope'!$AW$8:$AW$107,$I17,'Project Scope'!$C$8:$C$107,CL$7),0)","v":0},{"$f":"IF(AN17=\"yes\",SUMIFS('Project Scope'!$AO$8:$AO$107,'Project Scope'!$AN$8:$AN$107,$I17,'Project Scope'!$C$8:$C$107,CM$7)+SUMIFS('Project Scope'!$AX$8:$AX$107,'Project Scope'!$AW$8:$AW$107,$I17,'Project Scope'!$C$8:$C$107,CM$7),0)","v":0},{"$f":"IF(AO17=\"yes\",SUMIFS('Project Scope'!$AO$8:$AO$107,'Project Scope'!$AN$8:$AN$107,$I17,'Project Scope'!$C$8:$C$107,CN$7)+SUMIFS('Project Scope'!$AX$8:$AX$107,'Project Scope'!$AW$8:$AW$107,$I17,'Project Scope'!$C$8:$C$107,CN$7),0)","v":0},{"$f":"IF(AP17=\"yes\",SUMIFS('Project Scope'!$AO$8:$AO$107,'Project Scope'!$AN$8:$AN$107,$I17,'Project Scope'!$C$8:$C$107,CO$7)+SUMIFS('Project Scope'!$AX$8:$AX$107,'Project Scope'!$AW$8:$AW$107,$I17,'Project Scope'!$C$8:$C$107,CO$7),0)","v":0},{"$f":"IF(AQ17=\"yes\",SUMIFS('Project Scope'!$AO$8:$AO$107,'Project Scope'!$AN$8:$AN$107,$I17,'Project Scope'!$C$8:$C$107,CP$7)+SUMIFS('Project Scope'!$AX$8:$AX$107,'Project Scope'!$AW$8:$AW$107,$I17,'Project Scope'!$C$8:$C$107,CP$7),0)","v":0},{"$f":"IF(AR17=\"yes\",SUMIFS('Project Scope'!$AO$8:$AO$107,'Project Scope'!$AN$8:$AN$107,$I17,'Project Scope'!$C$8:$C$107,CQ$7)+SUMIFS('Project Scope'!$AX$8:$AX$107,'Project Scope'!$AW$8:$AW$107,$I17,'Project Scope'!$C$8:$C$107,CQ$7),0)","v":0},{"$f":"IF(AS17=\"yes\",SUMIFS('Project Scope'!$AO$8:$AO$107,'Project Scope'!$AN$8:$AN$107,$I17,'Project Scope'!$C$8:$C$107,CR$7)+SUMIFS('Project Scope'!$AX$8:$AX$107,'Project Scope'!$AW$8:$AW$107,$I17,'Project Scope'!$C$8:$C$107,CR$7),0)","v":0},{"$f":"IF(AT17=\"yes\",SUMIFS('Project Scope'!$AO$8:$AO$107,'Project Scope'!$AN$8:$AN$107,$I17,'Project Scope'!$C$8:$C$107,CS$7)+SUMIFS('Project Scope'!$AX$8:$AX$107,'Project Scope'!$AW$8:$AW$107,$I17,'Project Scope'!$C$8:$C$107,CS$7),0)","v":0},{"$f":"IF(AU17=\"yes\",SUMIFS('Project Scope'!$AO$8:$AO$107,'Project Scope'!$AN$8:$AN$107,$I17,'Project Scope'!$C$8:$C$107,CT$7)+SUMIFS('Project Scope'!$AX$8:$AX$107,'Project Scope'!$AW$8:$AW$107,$I17,'Project Scope'!$C$8:$C$107,CT$7),0)","v":0},{"$f":"IF(AV17=\"yes\",SUMIFS('Project Scope'!$AO$8:$AO$107,'Project Scope'!$AN$8:$AN$107,$I17,'Project Scope'!$C$8:$C$107,CU$7)+SUMIFS('Project Scope'!$AX$8:$AX$107,'Project Scope'!$AW$8:$AW$107,$I17,'Project Scope'!$C$8:$C$107,CU$7),0)","v":0},{"$f":"IF(AW17=\"yes\",SUMIFS('Project Scope'!$AO$8:$AO$107,'Project Scope'!$AN$8:$AN$107,$I17,'Project Scope'!$C$8:$C$107,CV$7)+SUMIFS('Project Scope'!$AX$8:$AX$107,'Project Scope'!$AW$8:$AW$107,$I17,'Project Scope'!$C$8:$C$107,CV$7),0)","v":0},{"$f":"IF(AX17=\"yes\",SUMIFS('Project Scope'!$AO$8:$AO$107,'Project Scope'!$AN$8:$AN$107,$I17,'Project Scope'!$C$8:$C$107,CW$7)+SUMIFS('Project Scope'!$AX$8:$AX$107,'Project Scope'!$AW$8:$AW$107,$I17,'Project Scope'!$C$8:$C$107,CW$7),0)","v":0},{"$f":"IF(AY17=\"yes\",SUMIFS('Project Scope'!$AO$8:$AO$107,'Project Scope'!$AN$8:$AN$107,$I17,'Project Scope'!$C$8:$C$107,CX$7)+SUMIFS('Project Scope'!$AX$8:$AX$107,'Project Scope'!$AW$8:$AW$107,$I17,'Project Scope'!$C$8:$C$107,CX$7),0)","v":0},{"$f":"IF(AZ17=\"yes\",SUMIFS('Project Scope'!$AO$8:$AO$107,'Project Scope'!$AN$8:$AN$107,$I17,'Project Scope'!$C$8:$C$107,CY$7)+SUMIFS('Project Scope'!$AX$8:$AX$107,'Project Scope'!$AW$8:$AW$107,$I17,'Project Scope'!$C$8:$C$107,CY$7),0)","v":0},{"$f":"IF(BA17=\"yes\",SUMIFS('Project Scope'!$AO$8:$AO$107,'Project Scope'!$AN$8:$AN$107,$I17,'Project Scope'!$C$8:$C$107,CZ$7)+SUMIFS('Project Scope'!$AX$8:$AX$107,'Project Scope'!$AW$8:$AW$107,$I17,'Project Scope'!$C$8:$C$107,CZ$7),0)","v":0},{"$f":"IF(BB17=\"yes\",SUMIFS('Project Scope'!$AO$8:$AO$107,'Project Scope'!$AN$8:$AN$107,$I17,'Project Scope'!$C$8:$C$107,DA$7)+SUMIFS('Project Scope'!$AX$8:$AX$107,'Project Scope'!$AW$8:$AW$107,$I17,'Project Scope'!$C$8:$C$107,DA$7),0)","v":0},{"$f":"IF(BC17=\"yes\",SUMIFS('Project Scope'!$AO$8:$AO$107,'Project Scope'!$AN$8:$AN$107,$I17,'Project Scope'!$C$8:$C$107,DB$7)+SUMIFS('Project Scope'!$AX$8:$AX$107,'Project Scope'!$AW$8:$AW$107,$I17,'Project Scope'!$C$8:$C$107,DB$7),0)","v":0},{"$f":"IF(BD17=\"yes\",SUMIFS('Project Scope'!$AO$8:$AO$107,'Project Scope'!$AN$8:$AN$107,$I17,'Project Scope'!$C$8:$C$107,DC$7)+SUMIFS('Project Scope'!$AX$8:$AX$107,'Project Scope'!$AW$8:$AW$107,$I17,'Project Scope'!$C$8:$C$107,DC$7),0)","v":0},{"$f":"IF(BE17=\"yes\",SUMIFS('Project Scope'!$AO$8:$AO$107,'Project Scope'!$AN$8:$AN$107,$I17,'Project Scope'!$C$8:$C$107,DD$7)+SUMIFS('Project Scope'!$AX$8:$AX$107,'Project Scope'!$AW$8:$AW$107,$I17,'Project Scope'!$C$8:$C$107,DD$7),0)","v":0},{"$f":"IF(BF17=\"yes\",SUMIFS('Project Scope'!$AO$8:$AO$107,'Project Scope'!$AN$8:$AN$107,$I17,'Project Scope'!$C$8:$C$107,DE$7)+SUMIFS('Project Scope'!$AX$8:$AX$107,'Project Scope'!$AW$8:$AW$107,$I17,'Project Scope'!$C$8:$C$107,DE$7),0)","v":0},{"$f":"IF(BG17=\"yes\",SUMIFS('Project Scope'!$AO$8:$AO$107,'Project Scope'!$AN$8:$AN$107,$I17,'Project Scope'!$C$8:$C$107,DF$7)+SUMIFS('Project Scope'!$AX$8:$AX$107,'Project Scope'!$AW$8:$AW$107,$I17,'Project Scope'!$C$8:$C$107,DF$7),0)","v":0},{"$f":"IF(BH17=\"yes\",SUMIFS('Project Scope'!$AO$8:$AO$107,'Project Scope'!$AN$8:$AN$107,$I17,'Project Scope'!$C$8:$C$107,DG$7)+SUMIFS('Project Scope'!$AX$8:$AX$107,'Project Scope'!$AW$8:$AW$107,$I17,'Project Scope'!$C$8:$C$107,DG$7),0)","v":0},{"$f":"IF(BI17=\"yes\",SUMIFS('Project Scope'!$AO$8:$AO$107,'Project Scope'!$AN$8:$AN$107,$I17,'Project Scope'!$C$8:$C$107,DH$7)+SUMIFS('Project Scope'!$AX$8:$AX$107,'Project Scope'!$AW$8:$AW$107,$I17,'Project Scope'!$C$8:$C$107,DH$7),0)","v":0},{"$f":"IF(BJ17=\"yes\",SUMIFS('Project Scope'!$AO$8:$AO$107,'Project Scope'!$AN$8:$AN$107,$I17,'Project Scope'!$C$8:$C$107,DI$7)+SUMIFS('Project Scope'!$AX$8:$AX$107,'Project Scope'!$AW$8:$AW$107,$I17,'Project Scope'!$C$8:$C$107,DI$7),0)","v":0},{"$f":"IF(BK17=\"yes\",SUMIFS('Project Scope'!$AO$8:$AO$107,'Project Scope'!$AN$8:$AN$107,$I17,'Project Scope'!$C$8:$C$107,DJ$7)+SUMIFS('Project Scope'!$AX$8:$AX$107,'Project Scope'!$AW$8:$AW$107,$I17,'Project Scope'!$C$8:$C$107,DJ$7),0)","v":0},{"$f":"IF(BL17=\"yes\",SUMIFS('Project Scope'!$AO$8:$AO$107,'Project Scope'!$AN$8:$AN$107,$I17,'Project Scope'!$C$8:$C$107,DK$7)+SUMIFS('Project Scope'!$AX$8:$AX$107,'Project Scope'!$AW$8:$AW$107,$I17,'Project Scope'!$C$8:$C$107,DK$7),0)","v":0},null,"","","","","","","","","","","","","","","","","","","","","","","","","","","","","","","","","","","","","","","","","","","","","","","","","","",null,{"$f":"IF($DM17<>\"\",\"xx\"&$DM17&\"xx\",\"\")&IF($DN17<>\"\",\"xx\"&$DN17&\"xx\",\"\")&IF($DO17<>\"\",\"xx\"&$DO17&\"xx\",\"\")&IF($DP17<>\"\",\"xx\"&$DP17&\"xx\",\"\")&IF($DQ17<>\"\",\"xx\"&$DQ17&\"xx\",\"\")&IF($DR17<>\"\",\"xx\"&$DR17&\"xx\",\"\")&IF($DS17<>\"\",\"xx\"&$DS17&\"xx\",\"\")&IF($DT17<>\"\",\"xx\"&$DT17&\"xx\",\"\")&IF($DU17<>\"\",\"xx\"&$DU17&\"xx\",\"\")&IF($DV17<>\"\",\"xx\"&$DV17&\"xx\",\"\")","v":""}]
[null,null,null,null,null,null,null,null,null,null,null,{"$f":"IF($C18=\"additional labor hours\",$K18*'Project Information'!$D$12,$K18*$J18)*IF($F18=\"Per Measure\",SUM($BN18:$DK18),1)","v":0},{"$f":"IF($C18=\"\",0,IF(VLOOKUP($C18,'Other Data'!$B$146:$C$156,2,FALSE)=\"M\",$L18,0))","v":0},0,null,null,null,null,null,null,null,null,null,null,null,null,null,null,null,null,null,null,null,null,null,null,null,null,null,null,null,null,null,null,null,null,null,null,null,null,null,null,null,null,null,null,null,null,null,null,null,null,null,null,null,{"$f":"IF(O18=\"yes\",SUMIFS('Project Scope'!$AO$8:$AO$107,'Project Scope'!$AN$8:$AN$107,$I18,'Project Scope'!$C$8:$C$107,BN$7)+SUMIFS('Project Scope'!$AX$8:$AX$107,'Project Scope'!$AW$8:$AW$107,$I18,'Project Scope'!$C$8:$C$107,BN$7),0)","v":0},{"$f":"IF(P18=\"yes\",SUMIFS('Project Scope'!$AO$8:$AO$107,'Project Scope'!$AN$8:$AN$107,$I18,'Project Scope'!$C$8:$C$107,BO$7)+SUMIFS('Project Scope'!$AX$8:$AX$107,'Project Scope'!$AW$8:$AW$107,$I18,'Project Scope'!$C$8:$C$107,BO$7),0)","v":0},{"$f":"IF(Q18=\"yes\",SUMIFS('Project Scope'!$AO$8:$AO$107,'Project Scope'!$AN$8:$AN$107,$I18,'Project Scope'!$C$8:$C$107,BP$7)+SUMIFS('Project Scope'!$AX$8:$AX$107,'Project Scope'!$AW$8:$AW$107,$I18,'Project Scope'!$C$8:$C$107,BP$7),0)","v":0},{"$f":"IF(R18=\"yes\",SUMIFS('Project Scope'!$AO$8:$AO$107,'Project Scope'!$AN$8:$AN$107,$I18,'Project Scope'!$C$8:$C$107,BQ$7)+SUMIFS('Project Scope'!$AX$8:$AX$107,'Project Scope'!$AW$8:$AW$107,$I18,'Project Scope'!$C$8:$C$107,BQ$7),0)","v":0},{"$f":"IF(S18=\"yes\",SUMIFS('Project Scope'!$AO$8:$AO$107,'Project Scope'!$AN$8:$AN$107,$I18,'Project Scope'!$C$8:$C$107,BR$7)+SUMIFS('Project Scope'!$AX$8:$AX$107,'Project Scope'!$AW$8:$AW$107,$I18,'Project Scope'!$C$8:$C$107,BR$7),0)","v":0},{"$f":"IF(T18=\"yes\",SUMIFS('Project Scope'!$AO$8:$AO$107,'Project Scope'!$AN$8:$AN$107,$I18,'Project Scope'!$C$8:$C$107,BS$7)+SUMIFS('Project Scope'!$AX$8:$AX$107,'Project Scope'!$AW$8:$AW$107,$I18,'Project Scope'!$C$8:$C$107,BS$7),0)","v":0},{"$f":"IF(U18=\"yes\",SUMIFS('Project Scope'!$AO$8:$AO$107,'Project Scope'!$AN$8:$AN$107,$I18,'Project Scope'!$C$8:$C$107,BT$7)+SUMIFS('Project Scope'!$AX$8:$AX$107,'Project Scope'!$AW$8:$AW$107,$I18,'Project Scope'!$C$8:$C$107,BT$7),0)","v":0},{"$f":"IF(V18=\"yes\",SUMIFS('Project Scope'!$AO$8:$AO$107,'Project Scope'!$AN$8:$AN$107,$I18,'Project Scope'!$C$8:$C$107,BU$7)+SUMIFS('Project Scope'!$AX$8:$AX$107,'Project Scope'!$AW$8:$AW$107,$I18,'Project Scope'!$C$8:$C$107,BU$7),0)","v":0},{"$f":"IF(W18=\"yes\",SUMIFS('Project Scope'!$AO$8:$AO$107,'Project Scope'!$AN$8:$AN$107,$I18,'Project Scope'!$C$8:$C$107,BV$7)+SUMIFS('Project Scope'!$AX$8:$AX$107,'Project Scope'!$AW$8:$AW$107,$I18,'Project Scope'!$C$8:$C$107,BV$7),0)","v":0},{"$f":"IF(X18=\"yes\",SUMIFS('Project Scope'!$AO$8:$AO$107,'Project Scope'!$AN$8:$AN$107,$I18,'Project Scope'!$C$8:$C$107,BW$7)+SUMIFS('Project Scope'!$AX$8:$AX$107,'Project Scope'!$AW$8:$AW$107,$I18,'Project Scope'!$C$8:$C$107,BW$7),0)","v":0},{"$f":"IF(Y18=\"yes\",SUMIFS('Project Scope'!$AO$8:$AO$107,'Project Scope'!$AN$8:$AN$107,$I18,'Project Scope'!$C$8:$C$107,BX$7)+SUMIFS('Project Scope'!$AX$8:$AX$107,'Project Scope'!$AW$8:$AW$107,$I18,'Project Scope'!$C$8:$C$107,BX$7),0)","v":0},{"$f":"IF(Z18=\"yes\",SUMIFS('Project Scope'!$AO$8:$AO$107,'Project Scope'!$AN$8:$AN$107,$I18,'Project Scope'!$C$8:$C$107,BY$7)+SUMIFS('Project Scope'!$AX$8:$AX$107,'Project Scope'!$AW$8:$AW$107,$I18,'Project Scope'!$C$8:$C$107,BY$7),0)","v":0},{"$f":"IF(AA18=\"yes\",SUMIFS('Project Scope'!$AO$8:$AO$107,'Project Scope'!$AN$8:$AN$107,$I18,'Project Scope'!$C$8:$C$107,BZ$7)+SUMIFS('Project Scope'!$AX$8:$AX$107,'Project Scope'!$AW$8:$AW$107,$I18,'Project Scope'!$C$8:$C$107,BZ$7),0)","v":0},{"$f":"IF(AB18=\"yes\",SUMIFS('Project Scope'!$AO$8:$AO$107,'Project Scope'!$AN$8:$AN$107,$I18,'Project Scope'!$C$8:$C$107,CA$7)+SUMIFS('Project Scope'!$AX$8:$AX$107,'Project Scope'!$AW$8:$AW$107,$I18,'Project Scope'!$C$8:$C$107,CA$7),0)","v":0},{"$f":"IF(AC18=\"yes\",SUMIFS('Project Scope'!$AO$8:$AO$107,'Project Scope'!$AN$8:$AN$107,$I18,'Project Scope'!$C$8:$C$107,CB$7)+SUMIFS('Project Scope'!$AX$8:$AX$107,'Project Scope'!$AW$8:$AW$107,$I18,'Project Scope'!$C$8:$C$107,CB$7),0)","v":0},{"$f":"IF(AD18=\"yes\",SUMIFS('Project Scope'!$AO$8:$AO$107,'Project Scope'!$AN$8:$AN$107,$I18,'Project Scope'!$C$8:$C$107,CC$7)+SUMIFS('Project Scope'!$AX$8:$AX$107,'Project Scope'!$AW$8:$AW$107,$I18,'Project Scope'!$C$8:$C$107,CC$7),0)","v":0},{"$f":"IF(AE18=\"yes\",SUMIFS('Project Scope'!$AO$8:$AO$107,'Project Scope'!$AN$8:$AN$107,$I18,'Project Scope'!$C$8:$C$107,CD$7)+SUMIFS('Project Scope'!$AX$8:$AX$107,'Project Scope'!$AW$8:$AW$107,$I18,'Project Scope'!$C$8:$C$107,CD$7),0)","v":0},{"$f":"IF(AF18=\"yes\",SUMIFS('Project Scope'!$AO$8:$AO$107,'Project Scope'!$AN$8:$AN$107,$I18,'Project Scope'!$C$8:$C$107,CE$7)+SUMIFS('Project Scope'!$AX$8:$AX$107,'Project Scope'!$AW$8:$AW$107,$I18,'Project Scope'!$C$8:$C$107,CE$7),0)","v":0},{"$f":"IF(AG18=\"yes\",SUMIFS('Project Scope'!$AO$8:$AO$107,'Project Scope'!$AN$8:$AN$107,$I18,'Project Scope'!$C$8:$C$107,CF$7)+SUMIFS('Project Scope'!$AX$8:$AX$107,'Project Scope'!$AW$8:$AW$107,$I18,'Project Scope'!$C$8:$C$107,CF$7),0)","v":0},{"$f":"IF(AH18=\"yes\",SUMIFS('Project Scope'!$AO$8:$AO$107,'Project Scope'!$AN$8:$AN$107,$I18,'Project Scope'!$C$8:$C$107,CG$7)+SUMIFS('Project Scope'!$AX$8:$AX$107,'Project Scope'!$AW$8:$AW$107,$I18,'Project Scope'!$C$8:$C$107,CG$7),0)","v":0},{"$f":"IF(AI18=\"yes\",SUMIFS('Project Scope'!$AO$8:$AO$107,'Project Scope'!$AN$8:$AN$107,$I18,'Project Scope'!$C$8:$C$107,CH$7)+SUMIFS('Project Scope'!$AX$8:$AX$107,'Project Scope'!$AW$8:$AW$107,$I18,'Project Scope'!$C$8:$C$107,CH$7),0)","v":0},{"$f":"IF(AJ18=\"yes\",SUMIFS('Project Scope'!$AO$8:$AO$107,'Project Scope'!$AN$8:$AN$107,$I18,'Project Scope'!$C$8:$C$107,CI$7)+SUMIFS('Project Scope'!$AX$8:$AX$107,'Project Scope'!$AW$8:$AW$107,$I18,'Project Scope'!$C$8:$C$107,CI$7),0)","v":0},{"$f":"IF(AK18=\"yes\",SUMIFS('Project Scope'!$AO$8:$AO$107,'Project Scope'!$AN$8:$AN$107,$I18,'Project Scope'!$C$8:$C$107,CJ$7)+SUMIFS('Project Scope'!$AX$8:$AX$107,'Project Scope'!$AW$8:$AW$107,$I18,'Project Scope'!$C$8:$C$107,CJ$7),0)","v":0},{"$f":"IF(AL18=\"yes\",SUMIFS('Project Scope'!$AO$8:$AO$107,'Project Scope'!$AN$8:$AN$107,$I18,'Project Scope'!$C$8:$C$107,CK$7)+SUMIFS('Project Scope'!$AX$8:$AX$107,'Project Scope'!$AW$8:$AW$107,$I18,'Project Scope'!$C$8:$C$107,CK$7),0)","v":0},{"$f":"IF(AM18=\"yes\",SUMIFS('Project Scope'!$AO$8:$AO$107,'Project Scope'!$AN$8:$AN$107,$I18,'Project Scope'!$C$8:$C$107,CL$7)+SUMIFS('Project Scope'!$AX$8:$AX$107,'Project Scope'!$AW$8:$AW$107,$I18,'Project Scope'!$C$8:$C$107,CL$7),0)","v":0},{"$f":"IF(AN18=\"yes\",SUMIFS('Project Scope'!$AO$8:$AO$107,'Project Scope'!$AN$8:$AN$107,$I18,'Project Scope'!$C$8:$C$107,CM$7)+SUMIFS('Project Scope'!$AX$8:$AX$107,'Project Scope'!$AW$8:$AW$107,$I18,'Project Scope'!$C$8:$C$107,CM$7),0)","v":0},{"$f":"IF(AO18=\"yes\",SUMIFS('Project Scope'!$AO$8:$AO$107,'Project Scope'!$AN$8:$AN$107,$I18,'Project Scope'!$C$8:$C$107,CN$7)+SUMIFS('Project Scope'!$AX$8:$AX$107,'Project Scope'!$AW$8:$AW$107,$I18,'Project Scope'!$C$8:$C$107,CN$7),0)","v":0},{"$f":"IF(AP18=\"yes\",SUMIFS('Project Scope'!$AO$8:$AO$107,'Project Scope'!$AN$8:$AN$107,$I18,'Project Scope'!$C$8:$C$107,CO$7)+SUMIFS('Project Scope'!$AX$8:$AX$107,'Project Scope'!$AW$8:$AW$107,$I18,'Project Scope'!$C$8:$C$107,CO$7),0)","v":0},{"$f":"IF(AQ18=\"yes\",SUMIFS('Project Scope'!$AO$8:$AO$107,'Project Scope'!$AN$8:$AN$107,$I18,'Project Scope'!$C$8:$C$107,CP$7)+SUMIFS('Project Scope'!$AX$8:$AX$107,'Project Scope'!$AW$8:$AW$107,$I18,'Project Scope'!$C$8:$C$107,CP$7),0)","v":0},{"$f":"IF(AR18=\"yes\",SUMIFS('Project Scope'!$AO$8:$AO$107,'Project Scope'!$AN$8:$AN$107,$I18,'Project Scope'!$C$8:$C$107,CQ$7)+SUMIFS('Project Scope'!$AX$8:$AX$107,'Project Scope'!$AW$8:$AW$107,$I18,'Project Scope'!$C$8:$C$107,CQ$7),0)","v":0},{"$f":"IF(AS18=\"yes\",SUMIFS('Project Scope'!$AO$8:$AO$107,'Project Scope'!$AN$8:$AN$107,$I18,'Project Scope'!$C$8:$C$107,CR$7)+SUMIFS('Project Scope'!$AX$8:$AX$107,'Project Scope'!$AW$8:$AW$107,$I18,'Project Scope'!$C$8:$C$107,CR$7),0)","v":0},{"$f":"IF(AT18=\"yes\",SUMIFS('Project Scope'!$AO$8:$AO$107,'Project Scope'!$AN$8:$AN$107,$I18,'Project Scope'!$C$8:$C$107,CS$7)+SUMIFS('Project Scope'!$AX$8:$AX$107,'Project Scope'!$AW$8:$AW$107,$I18,'Project Scope'!$C$8:$C$107,CS$7),0)","v":0},{"$f":"IF(AU18=\"yes\",SUMIFS('Project Scope'!$AO$8:$AO$107,'Project Scope'!$AN$8:$AN$107,$I18,'Project Scope'!$C$8:$C$107,CT$7)+SUMIFS('Project Scope'!$AX$8:$AX$107,'Project Scope'!$AW$8:$AW$107,$I18,'Project Scope'!$C$8:$C$107,CT$7),0)","v":0},{"$f":"IF(AV18=\"yes\",SUMIFS('Project Scope'!$AO$8:$AO$107,'Project Scope'!$AN$8:$AN$107,$I18,'Project Scope'!$C$8:$C$107,CU$7)+SUMIFS('Project Scope'!$AX$8:$AX$107,'Project Scope'!$AW$8:$AW$107,$I18,'Project Scope'!$C$8:$C$107,CU$7),0)","v":0},{"$f":"IF(AW18=\"yes\",SUMIFS('Project Scope'!$AO$8:$AO$107,'Project Scope'!$AN$8:$AN$107,$I18,'Project Scope'!$C$8:$C$107,CV$7)+SUMIFS('Project Scope'!$AX$8:$AX$107,'Project Scope'!$AW$8:$AW$107,$I18,'Project Scope'!$C$8:$C$107,CV$7),0)","v":0},{"$f":"IF(AX18=\"yes\",SUMIFS('Project Scope'!$AO$8:$AO$107,'Project Scope'!$AN$8:$AN$107,$I18,'Project Scope'!$C$8:$C$107,CW$7)+SUMIFS('Project Scope'!$AX$8:$AX$107,'Project Scope'!$AW$8:$AW$107,$I18,'Project Scope'!$C$8:$C$107,CW$7),0)","v":0},{"$f":"IF(AY18=\"yes\",SUMIFS('Project Scope'!$AO$8:$AO$107,'Project Scope'!$AN$8:$AN$107,$I18,'Project Scope'!$C$8:$C$107,CX$7)+SUMIFS('Project Scope'!$AX$8:$AX$107,'Project Scope'!$AW$8:$AW$107,$I18,'Project Scope'!$C$8:$C$107,CX$7),0)","v":0},{"$f":"IF(AZ18=\"yes\",SUMIFS('Project Scope'!$AO$8:$AO$107,'Project Scope'!$AN$8:$AN$107,$I18,'Project Scope'!$C$8:$C$107,CY$7)+SUMIFS('Project Scope'!$AX$8:$AX$107,'Project Scope'!$AW$8:$AW$107,$I18,'Project Scope'!$C$8:$C$107,CY$7),0)","v":0},{"$f":"IF(BA18=\"yes\",SUMIFS('Project Scope'!$AO$8:$AO$107,'Project Scope'!$AN$8:$AN$107,$I18,'Project Scope'!$C$8:$C$107,CZ$7)+SUMIFS('Project Scope'!$AX$8:$AX$107,'Project Scope'!$AW$8:$AW$107,$I18,'Project Scope'!$C$8:$C$107,CZ$7),0)","v":0},{"$f":"IF(BB18=\"yes\",SUMIFS('Project Scope'!$AO$8:$AO$107,'Project Scope'!$AN$8:$AN$107,$I18,'Project Scope'!$C$8:$C$107,DA$7)+SUMIFS('Project Scope'!$AX$8:$AX$107,'Project Scope'!$AW$8:$AW$107,$I18,'Project Scope'!$C$8:$C$107,DA$7),0)","v":0},{"$f":"IF(BC18=\"yes\",SUMIFS('Project Scope'!$AO$8:$AO$107,'Project Scope'!$AN$8:$AN$107,$I18,'Project Scope'!$C$8:$C$107,DB$7)+SUMIFS('Project Scope'!$AX$8:$AX$107,'Project Scope'!$AW$8:$AW$107,$I18,'Project Scope'!$C$8:$C$107,DB$7),0)","v":0},{"$f":"IF(BD18=\"yes\",SUMIFS('Project Scope'!$AO$8:$AO$107,'Project Scope'!$AN$8:$AN$107,$I18,'Project Scope'!$C$8:$C$107,DC$7)+SUMIFS('Project Scope'!$AX$8:$AX$107,'Project Scope'!$AW$8:$AW$107,$I18,'Project Scope'!$C$8:$C$107,DC$7),0)","v":0},{"$f":"IF(BE18=\"yes\",SUMIFS('Project Scope'!$AO$8:$AO$107,'Project Scope'!$AN$8:$AN$107,$I18,'Project Scope'!$C$8:$C$107,DD$7)+SUMIFS('Project Scope'!$AX$8:$AX$107,'Project Scope'!$AW$8:$AW$107,$I18,'Project Scope'!$C$8:$C$107,DD$7),0)","v":0},{"$f":"IF(BF18=\"yes\",SUMIFS('Project Scope'!$AO$8:$AO$107,'Project Scope'!$AN$8:$AN$107,$I18,'Project Scope'!$C$8:$C$107,DE$7)+SUMIFS('Project Scope'!$AX$8:$AX$107,'Project Scope'!$AW$8:$AW$107,$I18,'Project Scope'!$C$8:$C$107,DE$7),0)","v":0},{"$f":"IF(BG18=\"yes\",SUMIFS('Project Scope'!$AO$8:$AO$107,'Project Scope'!$AN$8:$AN$107,$I18,'Project Scope'!$C$8:$C$107,DF$7)+SUMIFS('Project Scope'!$AX$8:$AX$107,'Project Scope'!$AW$8:$AW$107,$I18,'Project Scope'!$C$8:$C$107,DF$7),0)","v":0},{"$f":"IF(BH18=\"yes\",SUMIFS('Project Scope'!$AO$8:$AO$107,'Project Scope'!$AN$8:$AN$107,$I18,'Project Scope'!$C$8:$C$107,DG$7)+SUMIFS('Project Scope'!$AX$8:$AX$107,'Project Scope'!$AW$8:$AW$107,$I18,'Project Scope'!$C$8:$C$107,DG$7),0)","v":0},{"$f":"IF(BI18=\"yes\",SUMIFS('Project Scope'!$AO$8:$AO$107,'Project Scope'!$AN$8:$AN$107,$I18,'Project Scope'!$C$8:$C$107,DH$7)+SUMIFS('Project Scope'!$AX$8:$AX$107,'Project Scope'!$AW$8:$AW$107,$I18,'Project Scope'!$C$8:$C$107,DH$7),0)","v":0},{"$f":"IF(BJ18=\"yes\",SUMIFS('Project Scope'!$AO$8:$AO$107,'Project Scope'!$AN$8:$AN$107,$I18,'Project Scope'!$C$8:$C$107,DI$7)+SUMIFS('Project Scope'!$AX$8:$AX$107,'Project Scope'!$AW$8:$AW$107,$I18,'Project Scope'!$C$8:$C$107,DI$7),0)","v":0},{"$f":"IF(BK18=\"yes\",SUMIFS('Project Scope'!$AO$8:$AO$107,'Project Scope'!$AN$8:$AN$107,$I18,'Project Scope'!$C$8:$C$107,DJ$7)+SUMIFS('Project Scope'!$AX$8:$AX$107,'Project Scope'!$AW$8:$AW$107,$I18,'Project Scope'!$C$8:$C$107,DJ$7),0)","v":0},{"$f":"IF(BL18=\"yes\",SUMIFS('Project Scope'!$AO$8:$AO$107,'Project Scope'!$AN$8:$AN$107,$I18,'Project Scope'!$C$8:$C$107,DK$7)+SUMIFS('Project Scope'!$AX$8:$AX$107,'Project Scope'!$AW$8:$AW$107,$I18,'Project Scope'!$C$8:$C$107,DK$7),0)","v":0},null,{"$f":"IF($BN18>0,DM$7,\"\")","v":""},{"$f":"IF($BN18>0,DN$7,\"\")","v":""},"","","","","","","","","","","","","","","",{"$f":"IF($BN18>0,ED$7,\"\")","v":""},"","","","","","","","","","","","","","","","","","","","","","","","","","","","","","","","",null,""]
[null,null,null,null,null,null,null,null,null,null,null,{"$f":"IF($C19=\"additional labor hours\",$K19*'Project Information'!$D$12,$K19*$J19)*IF($F19=\"Per Measure\",SUM($BN19:$DK19),1)","v":0},{"$f":"IF($C19=\"\",0,IF(VLOOKUP($C19,'Other Data'!$B$146:$C$156,2,FALSE)=\"M\",$L19,0))","v":0},0,null,null,null,null,null,null,null,null,null,null,null,null,null,null,null,null,null,null,null,null,null,null,null,null,null,null,null,null,null,null,null,null,null,null,null,null,null,null,null,null,null,null,null,null,null,null,null,null,null,null,null,{"$f":"IF(O19=\"yes\",SUMIFS('Project Scope'!$AO$8:$AO$107,'Project Scope'!$AN$8:$AN$107,$I19,'Project Scope'!$C$8:$C$107,BN$7)+SUMIFS('Project Scope'!$AX$8:$AX$107,'Project Scope'!$AW$8:$AW$107,$I19,'Project Scope'!$C$8:$C$107,BN$7),0)","v":0},{"$f":"IF(P19=\"yes\",SUMIFS('Project Scope'!$AO$8:$AO$107,'Project Scope'!$AN$8:$AN$107,$I19,'Project Scope'!$C$8:$C$107,BO$7)+SUMIFS('Project Scope'!$AX$8:$AX$107,'Project Scope'!$AW$8:$AW$107,$I19,'Project Scope'!$C$8:$C$107,BO$7),0)","v":0},{"$f":"IF(Q19=\"yes\",SUMIFS('Project Scope'!$AO$8:$AO$107,'Project Scope'!$AN$8:$AN$107,$I19,'Project Scope'!$C$8:$C$107,BP$7)+SUMIFS('Project Scope'!$AX$8:$AX$107,'Project Scope'!$AW$8:$AW$107,$I19,'Project Scope'!$C$8:$C$107,BP$7),0)","v":0},{"$f":"IF(R19=\"yes\",SUMIFS('Project Scope'!$AO$8:$AO$107,'Project Scope'!$AN$8:$AN$107,$I19,'Project Scope'!$C$8:$C$107,BQ$7)+SUMIFS('Project Scope'!$AX$8:$AX$107,'Project Scope'!$AW$8:$AW$107,$I19,'Project Scope'!$C$8:$C$107,BQ$7),0)","v":0},{"$f":"IF(S19=\"yes\",SUMIFS('Project Scope'!$AO$8:$AO$107,'Project Scope'!$AN$8:$AN$107,$I19,'Project Scope'!$C$8:$C$107,BR$7)+SUMIFS('Project Scope'!$AX$8:$AX$107,'Project Scope'!$AW$8:$AW$107,$I19,'Project Scope'!$C$8:$C$107,BR$7),0)","v":0},{"$f":"IF(T19=\"yes\",SUMIFS('Project Scope'!$AO$8:$AO$107,'Project Scope'!$AN$8:$AN$107,$I19,'Project Scope'!$C$8:$C$107,BS$7)+SUMIFS('Project Scope'!$AX$8:$AX$107,'Project Scope'!$AW$8:$AW$107,$I19,'Project Scope'!$C$8:$C$107,BS$7),0)","v":0},{"$f":"IF(U19=\"yes\",SUMIFS('Project Scope'!$AO$8:$AO$107,'Project Scope'!$AN$8:$AN$107,$I19,'Project Scope'!$C$8:$C$107,BT$7)+SUMIFS('Project Scope'!$AX$8:$AX$107,'Project Scope'!$AW$8:$AW$107,$I19,'Project Scope'!$C$8:$C$107,BT$7),0)","v":0},{"$f":"IF(V19=\"yes\",SUMIFS('Project Scope'!$AO$8:$AO$107,'Project Scope'!$AN$8:$AN$107,$I19,'Project Scope'!$C$8:$C$107,BU$7)+SUMIFS('Project Scope'!$AX$8:$AX$107,'Project Scope'!$AW$8:$AW$107,$I19,'Project Scope'!$C$8:$C$107,BU$7),0)","v":0},{"$f":"IF(W19=\"yes\",SUMIFS('Project Scope'!$AO$8:$AO$107,'Project Scope'!$AN$8:$AN$107,$I19,'Project Scope'!$C$8:$C$107,BV$7)+SUMIFS('Project Scope'!$AX$8:$AX$107,'Project Scope'!$AW$8:$AW$107,$I19,'Project Scope'!$C$8:$C$107,BV$7),0)","v":0},{"$f":"IF(X19=\"yes\",SUMIFS('Project Scope'!$AO$8:$AO$107,'Project Scope'!$AN$8:$AN$107,$I19,'Project Scope'!$C$8:$C$107,BW$7)+SUMIFS('Project Scope'!$AX$8:$AX$107,'Project Scope'!$AW$8:$AW$107,$I19,'Project Scope'!$C$8:$C$107,BW$7),0)","v":0},{"$f":"IF(Y19=\"yes\",SUMIFS('Project Scope'!$AO$8:$AO$107,'Project Scope'!$AN$8:$AN$107,$I19,'Project Scope'!$C$8:$C$107,BX$7)+SUMIFS('Project Scope'!$AX$8:$AX$107,'Project Scope'!$AW$8:$AW$107,$I19,'Project Scope'!$C$8:$C$107,BX$7),0)","v":0},{"$f":"IF(Z19=\"yes\",SUMIFS('Project Scope'!$AO$8:$AO$107,'Project Scope'!$AN$8:$AN$107,$I19,'Project Scope'!$C$8:$C$107,BY$7)+SUMIFS('Project Scope'!$AX$8:$AX$107,'Project Scope'!$AW$8:$AW$107,$I19,'Project Scope'!$C$8:$C$107,BY$7),0)","v":0},{"$f":"IF(AA19=\"yes\",SUMIFS('Project Scope'!$AO$8:$AO$107,'Project Scope'!$AN$8:$AN$107,$I19,'Project Scope'!$C$8:$C$107,BZ$7)+SUMIFS('Project Scope'!$AX$8:$AX$107,'Project Scope'!$AW$8:$AW$107,$I19,'Project Scope'!$C$8:$C$107,BZ$7),0)","v":0},{"$f":"IF(AB19=\"yes\",SUMIFS('Project Scope'!$AO$8:$AO$107,'Project Scope'!$AN$8:$AN$107,$I19,'Project Scope'!$C$8:$C$107,CA$7)+SUMIFS('Project Scope'!$AX$8:$AX$107,'Project Scope'!$AW$8:$AW$107,$I19,'Project Scope'!$C$8:$C$107,CA$7),0)","v":0},{"$f":"IF(AC19=\"yes\",SUMIFS('Project Scope'!$AO$8:$AO$107,'Project Scope'!$AN$8:$AN$107,$I19,'Project Scope'!$C$8:$C$107,CB$7)+SUMIFS('Project Scope'!$AX$8:$AX$107,'Project Scope'!$AW$8:$AW$107,$I19,'Project Scope'!$C$8:$C$107,CB$7),0)","v":0},{"$f":"IF(AD19=\"yes\",SUMIFS('Project Scope'!$AO$8:$AO$107,'Project Scope'!$AN$8:$AN$107,$I19,'Project Scope'!$C$8:$C$107,CC$7)+SUMIFS('Project Scope'!$AX$8:$AX$107,'Project Scope'!$AW$8:$AW$107,$I19,'Project Scope'!$C$8:$C$107,CC$7),0)","v":0},{"$f":"IF(AE19=\"yes\",SUMIFS('Project Scope'!$AO$8:$AO$107,'Project Scope'!$AN$8:$AN$107,$I19,'Project Scope'!$C$8:$C$107,CD$7)+SUMIFS('Project Scope'!$AX$8:$AX$107,'Project Scope'!$AW$8:$AW$107,$I19,'Project Scope'!$C$8:$C$107,CD$7),0)","v":0},{"$f":"IF(AF19=\"yes\",SUMIFS('Project Scope'!$AO$8:$AO$107,'Project Scope'!$AN$8:$AN$107,$I19,'Project Scope'!$C$8:$C$107,CE$7)+SUMIFS('Project Scope'!$AX$8:$AX$107,'Project Scope'!$AW$8:$AW$107,$I19,'Project Scope'!$C$8:$C$107,CE$7),0)","v":0},{"$f":"IF(AG19=\"yes\",SUMIFS('Project Scope'!$AO$8:$AO$107,'Project Scope'!$AN$8:$AN$107,$I19,'Project Scope'!$C$8:$C$107,CF$7)+SUMIFS('Project Scope'!$AX$8:$AX$107,'Project Scope'!$AW$8:$AW$107,$I19,'Project Scope'!$C$8:$C$107,CF$7),0)","v":0},{"$f":"IF(AH19=\"yes\",SUMIFS('Project Scope'!$AO$8:$AO$107,'Project Scope'!$AN$8:$AN$107,$I19,'Project Scope'!$C$8:$C$107,CG$7)+SUMIFS('Project Scope'!$AX$8:$AX$107,'Project Scope'!$AW$8:$AW$107,$I19,'Project Scope'!$C$8:$C$107,CG$7),0)","v":0},{"$f":"IF(AI19=\"yes\",SUMIFS('Project Scope'!$AO$8:$AO$107,'Project Scope'!$AN$8:$AN$107,$I19,'Project Scope'!$C$8:$C$107,CH$7)+SUMIFS('Project Scope'!$AX$8:$AX$107,'Project Scope'!$AW$8:$AW$107,$I19,'Project Scope'!$C$8:$C$107,CH$7),0)","v":0},{"$f":"IF(AJ19=\"yes\",SUMIFS('Project Scope'!$AO$8:$AO$107,'Project Scope'!$AN$8:$AN$107,$I19,'Project Scope'!$C$8:$C$107,CI$7)+SUMIFS('Project Scope'!$AX$8:$AX$107,'Project Scope'!$AW$8:$AW$107,$I19,'Project Scope'!$C$8:$C$107,CI$7),0)","v":0},{"$f":"IF(AK19=\"yes\",SUMIFS('Project Scope'!$AO$8:$AO$107,'Project Scope'!$AN$8:$AN$107,$I19,'Project Scope'!$C$8:$C$107,CJ$7)+SUMIFS('Project Scope'!$AX$8:$AX$107,'Project Scope'!$AW$8:$AW$107,$I19,'Project Scope'!$C$8:$C$107,CJ$7),0)","v":0},{"$f":"IF(AL19=\"yes\",SUMIFS('Project Scope'!$AO$8:$AO$107,'Project Scope'!$AN$8:$AN$107,$I19,'Project Scope'!$C$8:$C$107,CK$7)+SUMIFS('Project Scope'!$AX$8:$AX$107,'Project Scope'!$AW$8:$AW$107,$I19,'Project Scope'!$C$8:$C$107,CK$7),0)","v":0},{"$f":"IF(AM19=\"yes\",SUMIFS('Project Scope'!$AO$8:$AO$107,'Project Scope'!$AN$8:$AN$107,$I19,'Project Scope'!$C$8:$C$107,CL$7)+SUMIFS('Project Scope'!$AX$8:$AX$107,'Project Scope'!$AW$8:$AW$107,$I19,'Project Scope'!$C$8:$C$107,CL$7),0)","v":0},{"$f":"IF(AN19=\"yes\",SUMIFS('Project Scope'!$AO$8:$AO$107,'Project Scope'!$AN$8:$AN$107,$I19,'Project Scope'!$C$8:$C$107,CM$7)+SUMIFS('Project Scope'!$AX$8:$AX$107,'Project Scope'!$AW$8:$AW$107,$I19,'Project Scope'!$C$8:$C$107,CM$7),0)","v":0},{"$f":"IF(AO19=\"yes\",SUMIFS('Project Scope'!$AO$8:$AO$107,'Project Scope'!$AN$8:$AN$107,$I19,'Project Scope'!$C$8:$C$107,CN$7)+SUMIFS('Project Scope'!$AX$8:$AX$107,'Project Scope'!$AW$8:$AW$107,$I19,'Project Scope'!$C$8:$C$107,CN$7),0)","v":0},{"$f":"IF(AP19=\"yes\",SUMIFS('Project Scope'!$AO$8:$AO$107,'Project Scope'!$AN$8:$AN$107,$I19,'Project Scope'!$C$8:$C$107,CO$7)+SUMIFS('Project Scope'!$AX$8:$AX$107,'Project Scope'!$AW$8:$AW$107,$I19,'Project Scope'!$C$8:$C$107,CO$7),0)","v":0},{"$f":"IF(AQ19=\"yes\",SUMIFS('Project Scope'!$AO$8:$AO$107,'Project Scope'!$AN$8:$AN$107,$I19,'Project Scope'!$C$8:$C$107,CP$7)+SUMIFS('Project Scope'!$AX$8:$AX$107,'Project Scope'!$AW$8:$AW$107,$I19,'Project Scope'!$C$8:$C$107,CP$7),0)","v":0},{"$f":"IF(AR19=\"yes\",SUMIFS('Project Scope'!$AO$8:$AO$107,'Project Scope'!$AN$8:$AN$107,$I19,'Project Scope'!$C$8:$C$107,CQ$7)+SUMIFS('Project Scope'!$AX$8:$AX$107,'Project Scope'!$AW$8:$AW$107,$I19,'Project Scope'!$C$8:$C$107,CQ$7),0)","v":0},{"$f":"IF(AS19=\"yes\",SUMIFS('Project Scope'!$AO$8:$AO$107,'Project Scope'!$AN$8:$AN$107,$I19,'Project Scope'!$C$8:$C$107,CR$7)+SUMIFS('Project Scope'!$AX$8:$AX$107,'Project Scope'!$AW$8:$AW$107,$I19,'Project Scope'!$C$8:$C$107,CR$7),0)","v":0},{"$f":"IF(AT19=\"yes\",SUMIFS('Project Scope'!$AO$8:$AO$107,'Project Scope'!$AN$8:$AN$107,$I19,'Project Scope'!$C$8:$C$107,CS$7)+SUMIFS('Project Scope'!$AX$8:$AX$107,'Project Scope'!$AW$8:$AW$107,$I19,'Project Scope'!$C$8:$C$107,CS$7),0)","v":0},{"$f":"IF(AU19=\"yes\",SUMIFS('Project Scope'!$AO$8:$AO$107,'Project Scope'!$AN$8:$AN$107,$I19,'Project Scope'!$C$8:$C$107,CT$7)+SUMIFS('Project Scope'!$AX$8:$AX$107,'Project Scope'!$AW$8:$AW$107,$I19,'Project Scope'!$C$8:$C$107,CT$7),0)","v":0},{"$f":"IF(AV19=\"yes\",SUMIFS('Project Scope'!$AO$8:$AO$107,'Project Scope'!$AN$8:$AN$107,$I19,'Project Scope'!$C$8:$C$107,CU$7)+SUMIFS('Project Scope'!$AX$8:$AX$107,'Project Scope'!$AW$8:$AW$107,$I19,'Project Scope'!$C$8:$C$107,CU$7),0)","v":0},{"$f":"IF(AW19=\"yes\",SUMIFS('Project Scope'!$AO$8:$AO$107,'Project Scope'!$AN$8:$AN$107,$I19,'Project Scope'!$C$8:$C$107,CV$7)+SUMIFS('Project Scope'!$AX$8:$AX$107,'Project Scope'!$AW$8:$AW$107,$I19,'Project Scope'!$C$8:$C$107,CV$7),0)","v":0},{"$f":"IF(AX19=\"yes\",SUMIFS('Project Scope'!$AO$8:$AO$107,'Project Scope'!$AN$8:$AN$107,$I19,'Project Scope'!$C$8:$C$107,CW$7)+SUMIFS('Project Scope'!$AX$8:$AX$107,'Project Scope'!$AW$8:$AW$107,$I19,'Project Scope'!$C$8:$C$107,CW$7),0)","v":0},{"$f":"IF(AY19=\"yes\",SUMIFS('Project Scope'!$AO$8:$AO$107,'Project Scope'!$AN$8:$AN$107,$I19,'Project Scope'!$C$8:$C$107,CX$7)+SUMIFS('Project Scope'!$AX$8:$AX$107,'Project Scope'!$AW$8:$AW$107,$I19,'Project Scope'!$C$8:$C$107,CX$7),0)","v":0},{"$f":"IF(AZ19=\"yes\",SUMIFS('Project Scope'!$AO$8:$AO$107,'Project Scope'!$AN$8:$AN$107,$I19,'Project Scope'!$C$8:$C$107,CY$7)+SUMIFS('Project Scope'!$AX$8:$AX$107,'Project Scope'!$AW$8:$AW$107,$I19,'Project Scope'!$C$8:$C$107,CY$7),0)","v":0},{"$f":"IF(BA19=\"yes\",SUMIFS('Project Scope'!$AO$8:$AO$107,'Project Scope'!$AN$8:$AN$107,$I19,'Project Scope'!$C$8:$C$107,CZ$7)+SUMIFS('Project Scope'!$AX$8:$AX$107,'Project Scope'!$AW$8:$AW$107,$I19,'Project Scope'!$C$8:$C$107,CZ$7),0)","v":0},{"$f":"IF(BB19=\"yes\",SUMIFS('Project Scope'!$AO$8:$AO$107,'Project Scope'!$AN$8:$AN$107,$I19,'Project Scope'!$C$8:$C$107,DA$7)+SUMIFS('Project Scope'!$AX$8:$AX$107,'Project Scope'!$AW$8:$AW$107,$I19,'Project Scope'!$C$8:$C$107,DA$7),0)","v":0},{"$f":"IF(BC19=\"yes\",SUMIFS('Project Scope'!$AO$8:$AO$107,'Project Scope'!$AN$8:$AN$107,$I19,'Project Scope'!$C$8:$C$107,DB$7)+SUMIFS('Project Scope'!$AX$8:$AX$107,'Project Scope'!$AW$8:$AW$107,$I19,'Project Scope'!$C$8:$C$107,DB$7),0)","v":0},{"$f":"IF(BD19=\"yes\",SUMIFS('Project Scope'!$AO$8:$AO$107,'Project Scope'!$AN$8:$AN$107,$I19,'Project Scope'!$C$8:$C$107,DC$7)+SUMIFS('Project Scope'!$AX$8:$AX$107,'Project Scope'!$AW$8:$AW$107,$I19,'Project Scope'!$C$8:$C$107,DC$7),0)","v":0},{"$f":"IF(BE19=\"yes\",SUMIFS('Project Scope'!$AO$8:$AO$107,'Project Scope'!$AN$8:$AN$107,$I19,'Project Scope'!$C$8:$C$107,DD$7)+SUMIFS('Project Scope'!$AX$8:$AX$107,'Project Scope'!$AW$8:$AW$107,$I19,'Project Scope'!$C$8:$C$107,DD$7),0)","v":0},{"$f":"IF(BF19=\"yes\",SUMIFS('Project Scope'!$AO$8:$AO$107,'Project Scope'!$AN$8:$AN$107,$I19,'Project Scope'!$C$8:$C$107,DE$7)+SUMIFS('Project Scope'!$AX$8:$AX$107,'Project Scope'!$AW$8:$AW$107,$I19,'Project Scope'!$C$8:$C$107,DE$7),0)","v":0},{"$f":"IF(BG19=\"yes\",SUMIFS('Project Scope'!$AO$8:$AO$107,'Project Scope'!$AN$8:$AN$107,$I19,'Project Scope'!$C$8:$C$107,DF$7)+SUMIFS('Project Scope'!$AX$8:$AX$107,'Project Scope'!$AW$8:$AW$107,$I19,'Project Scope'!$C$8:$C$107,DF$7),0)","v":0},{"$f":"IF(BH19=\"yes\",SUMIFS('Project Scope'!$AO$8:$AO$107,'Project Scope'!$AN$8:$AN$107,$I19,'Project Scope'!$C$8:$C$107,DG$7)+SUMIFS('Project Scope'!$AX$8:$AX$107,'Project Scope'!$AW$8:$AW$107,$I19,'Project Scope'!$C$8:$C$107,DG$7),0)","v":0},{"$f":"IF(BI19=\"yes\",SUMIFS('Project Scope'!$AO$8:$AO$107,'Project Scope'!$AN$8:$AN$107,$I19,'Project Scope'!$C$8:$C$107,DH$7)+SUMIFS('Project Scope'!$AX$8:$AX$107,'Project Scope'!$AW$8:$AW$107,$I19,'Project Scope'!$C$8:$C$107,DH$7),0)","v":0},{"$f":"IF(BJ19=\"yes\",SUMIFS('Project Scope'!$AO$8:$AO$107,'Project Scope'!$AN$8:$AN$107,$I19,'Project Scope'!$C$8:$C$107,DI$7)+SUMIFS('Project Scope'!$AX$8:$AX$107,'Project Scope'!$AW$8:$AW$107,$I19,'Project Scope'!$C$8:$C$107,DI$7),0)","v":0},{"$f":"IF(BK19=\"yes\",SUMIFS('Project Scope'!$AO$8:$AO$107,'Project Scope'!$AN$8:$AN$107,$I19,'Project Scope'!$C$8:$C$107,DJ$7)+SUMIFS('Project Scope'!$AX$8:$AX$107,'Project Scope'!$AW$8:$AW$107,$I19,'Project Scope'!$C$8:$C$107,DJ$7),0)","v":0},{"$f":"IF(BL19=\"yes\",SUMIFS('Project Scope'!$AO$8:$AO$107,'Project Scope'!$AN$8:$AN$107,$I19,'Project Scope'!$C$8:$C$107,DK$7)+SUMIFS('Project Scope'!$AX$8:$AX$107,'Project Scope'!$AW$8:$AW$107,$I19,'Project Scope'!$C$8:$C$107,DK$7),0)","v":0},null,"","","","","","","","","","","","","","","","","","","","","","","","","","","","","","","","","","","","","","","","","","","","","","","","","","",null,""]
[null,null,null,null,null,null,null,null,null,null,null,{"$f":"IF($C20=\"additional labor hours\",$K20*'Project Information'!$D$12,$K20*$J20)*IF($F20=\"Per Measure\",SUM($BN20:$DK20),1)","v":0},{"$f":"IF($C20=\"\",0,IF(VLOOKUP($C20,'Other Data'!$B$146:$C$156,2,FALSE)=\"M\",$L20,0))","v":0},0,null,null,null,null,null,null,null,null,null,null,null,null,null,null,null,null,null,null,null,null,null,null,null,null,null,null,null,null,null,null,null,null,null,null,null,null,null,null,null,null,null,null,null,null,null,null,null,null,null,null,null,{"$f":"IF(O20=\"yes\",SUMIFS('Project Scope'!$AO$8:$AO$107,'Project Scope'!$AN$8:$AN$107,$I20,'Project Scope'!$C$8:$C$107,BN$7)+SUMIFS('Project Scope'!$AX$8:$AX$107,'Project Scope'!$AW$8:$AW$107,$I20,'Project Scope'!$C$8:$C$107,BN$7),0)","v":0},{"$f":"IF(P20=\"yes\",SUMIFS('Project Scope'!$AO$8:$AO$107,'Project Scope'!$AN$8:$AN$107,$I20,'Project Scope'!$C$8:$C$107,BO$7)+SUMIFS('Project Scope'!$AX$8:$AX$107,'Project Scope'!$AW$8:$AW$107,$I20,'Project Scope'!$C$8:$C$107,BO$7),0)","v":0},{"$f":"IF(Q20=\"yes\",SUMIFS('Project Scope'!$AO$8:$AO$107,'Project Scope'!$AN$8:$AN$107,$I20,'Project Scope'!$C$8:$C$107,BP$7)+SUMIFS('Project Scope'!$AX$8:$AX$107,'Project Scope'!$AW$8:$AW$107,$I20,'Project Scope'!$C$8:$C$107,BP$7),0)","v":0},{"$f":"IF(R20=\"yes\",SUMIFS('Project Scope'!$AO$8:$AO$107,'Project Scope'!$AN$8:$AN$107,$I20,'Project Scope'!$C$8:$C$107,BQ$7)+SUMIFS('Project Scope'!$AX$8:$AX$107,'Project Scope'!$AW$8:$AW$107,$I20,'Project Scope'!$C$8:$C$107,BQ$7),0)","v":0},{"$f":"IF(S20=\"yes\",SUMIFS('Project Scope'!$AO$8:$AO$107,'Project Scope'!$AN$8:$AN$107,$I20,'Project Scope'!$C$8:$C$107,BR$7)+SUMIFS('Project Scope'!$AX$8:$AX$107,'Project Scope'!$AW$8:$AW$107,$I20,'Project Scope'!$C$8:$C$107,BR$7),0)","v":0},{"$f":"IF(T20=\"yes\",SUMIFS('Project Scope'!$AO$8:$AO$107,'Project Scope'!$AN$8:$AN$107,$I20,'Project Scope'!$C$8:$C$107,BS$7)+SUMIFS('Project Scope'!$AX$8:$AX$107,'Project Scope'!$AW$8:$AW$107,$I20,'Project Scope'!$C$8:$C$107,BS$7),0)","v":0},{"$f":"IF(U20=\"yes\",SUMIFS('Project Scope'!$AO$8:$AO$107,'Project Scope'!$AN$8:$AN$107,$I20,'Project Scope'!$C$8:$C$107,BT$7)+SUMIFS('Project Scope'!$AX$8:$AX$107,'Project Scope'!$AW$8:$AW$107,$I20,'Project Scope'!$C$8:$C$107,BT$7),0)","v":0},{"$f":"IF(V20=\"yes\",SUMIFS('Project Scope'!$AO$8:$AO$107,'Project Scope'!$AN$8:$AN$107,$I20,'Project Scope'!$C$8:$C$107,BU$7)+SUMIFS('Project Scope'!$AX$8:$AX$107,'Project Scope'!$AW$8:$AW$107,$I20,'Project Scope'!$C$8:$C$107,BU$7),0)","v":0},{"$f":"IF(W20=\"yes\",SUMIFS('Project Scope'!$AO$8:$AO$107,'Project Scope'!$AN$8:$AN$107,$I20,'Project Scope'!$C$8:$C$107,BV$7)+SUMIFS('Project Scope'!$AX$8:$AX$107,'Project Scope'!$AW$8:$AW$107,$I20,'Project Scope'!$C$8:$C$107,BV$7),0)","v":0},{"$f":"IF(X20=\"yes\",SUMIFS('Project Scope'!$AO$8:$AO$107,'Project Scope'!$AN$8:$AN$107,$I20,'Project Scope'!$C$8:$C$107,BW$7)+SUMIFS('Project Scope'!$AX$8:$AX$107,'Project Scope'!$AW$8:$AW$107,$I20,'Project Scope'!$C$8:$C$107,BW$7),0)","v":0},{"$f":"IF(Y20=\"yes\",SUMIFS('Project Scope'!$AO$8:$AO$107,'Project Scope'!$AN$8:$AN$107,$I20,'Project Scope'!$C$8:$C$107,BX$7)+SUMIFS('Project Scope'!$AX$8:$AX$107,'Project Scope'!$AW$8:$AW$107,$I20,'Project Scope'!$C$8:$C$107,BX$7),0)","v":0},{"$f":"IF(Z20=\"yes\",SUMIFS('Project Scope'!$AO$8:$AO$107,'Project Scope'!$AN$8:$AN$107,$I20,'Project Scope'!$C$8:$C$107,BY$7)+SUMIFS('Project Scope'!$AX$8:$AX$107,'Project Scope'!$AW$8:$AW$107,$I20,'Project Scope'!$C$8:$C$107,BY$7),0)","v":0},{"$f":"IF(AA20=\"yes\",SUMIFS('Project Scope'!$AO$8:$AO$107,'Project Scope'!$AN$8:$AN$107,$I20,'Project Scope'!$C$8:$C$107,BZ$7)+SUMIFS('Project Scope'!$AX$8:$AX$107,'Project Scope'!$AW$8:$AW$107,$I20,'Project Scope'!$C$8:$C$107,BZ$7),0)","v":0},{"$f":"IF(AB20=\"yes\",SUMIFS('Project Scope'!$AO$8:$AO$107,'Project Scope'!$AN$8:$AN$107,$I20,'Project Scope'!$C$8:$C$107,CA$7)+SUMIFS('Project Scope'!$AX$8:$AX$107,'Project Scope'!$AW$8:$AW$107,$I20,'Project Scope'!$C$8:$C$107,CA$7),0)","v":0},{"$f":"IF(AC20=\"yes\",SUMIFS('Project Scope'!$AO$8:$AO$107,'Project Scope'!$AN$8:$AN$107,$I20,'Project Scope'!$C$8:$C$107,CB$7)+SUMIFS('Project Scope'!$AX$8:$AX$107,'Project Scope'!$AW$8:$AW$107,$I20,'Project Scope'!$C$8:$C$107,CB$7),0)","v":0},{"$f":"IF(AD20=\"yes\",SUMIFS('Project Scope'!$AO$8:$AO$107,'Project Scope'!$AN$8:$AN$107,$I20,'Project Scope'!$C$8:$C$107,CC$7)+SUMIFS('Project Scope'!$AX$8:$AX$107,'Project Scope'!$AW$8:$AW$107,$I20,'Project Scope'!$C$8:$C$107,CC$7),0)","v":0},{"$f":"IF(AE20=\"yes\",SUMIFS('Project Scope'!$AO$8:$AO$107,'Project Scope'!$AN$8:$AN$107,$I20,'Project Scope'!$C$8:$C$107,CD$7)+SUMIFS('Project Scope'!$AX$8:$AX$107,'Project Scope'!$AW$8:$AW$107,$I20,'Project Scope'!$C$8:$C$107,CD$7),0)","v":0},{"$f":"IF(AF20=\"yes\",SUMIFS('Project Scope'!$AO$8:$AO$107,'Project Scope'!$AN$8:$AN$107,$I20,'Project Scope'!$C$8:$C$107,CE$7)+SUMIFS('Project Scope'!$AX$8:$AX$107,'Project Scope'!$AW$8:$AW$107,$I20,'Project Scope'!$C$8:$C$107,CE$7),0)","v":0},{"$f":"IF(AG20=\"yes\",SUMIFS('Project Scope'!$AO$8:$AO$107,'Project Scope'!$AN$8:$AN$107,$I20,'Project Scope'!$C$8:$C$107,CF$7)+SUMIFS('Project Scope'!$AX$8:$AX$107,'Project Scope'!$AW$8:$AW$107,$I20,'Project Scope'!$C$8:$C$107,CF$7),0)","v":0},{"$f":"IF(AH20=\"yes\",SUMIFS('Project Scope'!$AO$8:$AO$107,'Project Scope'!$AN$8:$AN$107,$I20,'Project Scope'!$C$8:$C$107,CG$7)+SUMIFS('Project Scope'!$AX$8:$AX$107,'Project Scope'!$AW$8:$AW$107,$I20,'Project Scope'!$C$8:$C$107,CG$7),0)","v":0},{"$f":"IF(AI20=\"yes\",SUMIFS('Project Scope'!$AO$8:$AO$107,'Project Scope'!$AN$8:$AN$107,$I20,'Project Scope'!$C$8:$C$107,CH$7)+SUMIFS('Project Scope'!$AX$8:$AX$107,'Project Scope'!$AW$8:$AW$107,$I20,'Project Scope'!$C$8:$C$107,CH$7),0)","v":0},{"$f":"IF(AJ20=\"yes\",SUMIFS('Project Scope'!$AO$8:$AO$107,'Project Scope'!$AN$8:$AN$107,$I20,'Project Scope'!$C$8:$C$107,CI$7)+SUMIFS('Project Scope'!$AX$8:$AX$107,'Project Scope'!$AW$8:$AW$107,$I20,'Project Scope'!$C$8:$C$107,CI$7),0)","v":0},{"$f":"IF(AK20=\"yes\",SUMIFS('Project Scope'!$AO$8:$AO$107,'Project Scope'!$AN$8:$AN$107,$I20,'Project Scope'!$C$8:$C$107,CJ$7)+SUMIFS('Project Scope'!$AX$8:$AX$107,'Project Scope'!$AW$8:$AW$107,$I20,'Project Scope'!$C$8:$C$107,CJ$7),0)","v":0},{"$f":"IF(AL20=\"yes\",SUMIFS('Project Scope'!$AO$8:$AO$107,'Project Scope'!$AN$8:$AN$107,$I20,'Project Scope'!$C$8:$C$107,CK$7)+SUMIFS('Project Scope'!$AX$8:$AX$107,'Project Scope'!$AW$8:$AW$107,$I20,'Project Scope'!$C$8:$C$107,CK$7),0)","v":0},{"$f":"IF(AM20=\"yes\",SUMIFS('Project Scope'!$AO$8:$AO$107,'Project Scope'!$AN$8:$AN$107,$I20,'Project Scope'!$C$8:$C$107,CL$7)+SUMIFS('Project Scope'!$AX$8:$AX$107,'Project Scope'!$AW$8:$AW$107,$I20,'Project Scope'!$C$8:$C$107,CL$7),0)","v":0},{"$f":"IF(AN20=\"yes\",SUMIFS('Project Scope'!$AO$8:$AO$107,'Project Scope'!$AN$8:$AN$107,$I20,'Project Scope'!$C$8:$C$107,CM$7)+SUMIFS('Project Scope'!$AX$8:$AX$107,'Project Scope'!$AW$8:$AW$107,$I20,'Project Scope'!$C$8:$C$107,CM$7),0)","v":0},{"$f":"IF(AO20=\"yes\",SUMIFS('Project Scope'!$AO$8:$AO$107,'Project Scope'!$AN$8:$AN$107,$I20,'Project Scope'!$C$8:$C$107,CN$7)+SUMIFS('Project Scope'!$AX$8:$AX$107,'Project Scope'!$AW$8:$AW$107,$I20,'Project Scope'!$C$8:$C$107,CN$7),0)","v":0},{"$f":"IF(AP20=\"yes\",SUMIFS('Project Scope'!$AO$8:$AO$107,'Project Scope'!$AN$8:$AN$107,$I20,'Project Scope'!$C$8:$C$107,CO$7)+SUMIFS('Project Scope'!$AX$8:$AX$107,'Project Scope'!$AW$8:$AW$107,$I20,'Project Scope'!$C$8:$C$107,CO$7),0)","v":0},{"$f":"IF(AQ20=\"yes\",SUMIFS('Project Scope'!$AO$8:$AO$107,'Project Scope'!$AN$8:$AN$107,$I20,'Project Scope'!$C$8:$C$107,CP$7)+SUMIFS('Project Scope'!$AX$8:$AX$107,'Project Scope'!$AW$8:$AW$107,$I20,'Project Scope'!$C$8:$C$107,CP$7),0)","v":0},{"$f":"IF(AR20=\"yes\",SUMIFS('Project Scope'!$AO$8:$AO$107,'Project Scope'!$AN$8:$AN$107,$I20,'Project Scope'!$C$8:$C$107,CQ$7)+SUMIFS('Project Scope'!$AX$8:$AX$107,'Project Scope'!$AW$8:$AW$107,$I20,'Project Scope'!$C$8:$C$107,CQ$7),0)","v":0},{"$f":"IF(AS20=\"yes\",SUMIFS('Project Scope'!$AO$8:$AO$107,'Project Scope'!$AN$8:$AN$107,$I20,'Project Scope'!$C$8:$C$107,CR$7)+SUMIFS('Project Scope'!$AX$8:$AX$107,'Project Scope'!$AW$8:$AW$107,$I20,'Project Scope'!$C$8:$C$107,CR$7),0)","v":0},{"$f":"IF(AT20=\"yes\",SUMIFS('Project Scope'!$AO$8:$AO$107,'Project Scope'!$AN$8:$AN$107,$I20,'Project Scope'!$C$8:$C$107,CS$7)+SUMIFS('Project Scope'!$AX$8:$AX$107,'Project Scope'!$AW$8:$AW$107,$I20,'Project Scope'!$C$8:$C$107,CS$7),0)","v":0},{"$f":"IF(AU20=\"yes\",SUMIFS('Project Scope'!$AO$8:$AO$107,'Project Scope'!$AN$8:$AN$107,$I20,'Project Scope'!$C$8:$C$107,CT$7)+SUMIFS('Project Scope'!$AX$8:$AX$107,'Project Scope'!$AW$8:$AW$107,$I20,'Project Scope'!$C$8:$C$107,CT$7),0)","v":0},{"$f":"IF(AV20=\"yes\",SUMIFS('Project Scope'!$AO$8:$AO$107,'Project Scope'!$AN$8:$AN$107,$I20,'Project Scope'!$C$8:$C$107,CU$7)+SUMIFS('Project Scope'!$AX$8:$AX$107,'Project Scope'!$AW$8:$AW$107,$I20,'Project Scope'!$C$8:$C$107,CU$7),0)","v":0},{"$f":"IF(AW20=\"yes\",SUMIFS('Project Scope'!$AO$8:$AO$107,'Project Scope'!$AN$8:$AN$107,$I20,'Project Scope'!$C$8:$C$107,CV$7)+SUMIFS('Project Scope'!$AX$8:$AX$107,'Project Scope'!$AW$8:$AW$107,$I20,'Project Scope'!$C$8:$C$107,CV$7),0)","v":0},{"$f":"IF(AX20=\"yes\",SUMIFS('Project Scope'!$AO$8:$AO$107,'Project Scope'!$AN$8:$AN$107,$I20,'Project Scope'!$C$8:$C$107,CW$7)+SUMIFS('Project Scope'!$AX$8:$AX$107,'Project Scope'!$AW$8:$AW$107,$I20,'Project Scope'!$C$8:$C$107,CW$7),0)","v":0},{"$f":"IF(AY20=\"yes\",SUMIFS('Project Scope'!$AO$8:$AO$107,'Project Scope'!$AN$8:$AN$107,$I20,'Project Scope'!$C$8:$C$107,CX$7)+SUMIFS('Project Scope'!$AX$8:$AX$107,'Project Scope'!$AW$8:$AW$107,$I20,'Project Scope'!$C$8:$C$107,CX$7),0)","v":0},{"$f":"IF(AZ20=\"yes\",SUMIFS('Project Scope'!$AO$8:$AO$107,'Project Scope'!$AN$8:$AN$107,$I20,'Project Scope'!$C$8:$C$107,CY$7)+SUMIFS('Project Scope'!$AX$8:$AX$107,'Project Scope'!$AW$8:$AW$107,$I20,'Project Scope'!$C$8:$C$107,CY$7),0)","v":0},{"$f":"IF(BA20=\"yes\",SUMIFS('Project Scope'!$AO$8:$AO$107,'Project Scope'!$AN$8:$AN$107,$I20,'Project Scope'!$C$8:$C$107,CZ$7)+SUMIFS('Project Scope'!$AX$8:$AX$107,'Project Scope'!$AW$8:$AW$107,$I20,'Project Scope'!$C$8:$C$107,CZ$7),0)","v":0},{"$f":"IF(BB20=\"yes\",SUMIFS('Project Scope'!$AO$8:$AO$107,'Project Scope'!$AN$8:$AN$107,$I20,'Project Scope'!$C$8:$C$107,DA$7)+SUMIFS('Project Scope'!$AX$8:$AX$107,'Project Scope'!$AW$8:$AW$107,$I20,'Project Scope'!$C$8:$C$107,DA$7),0)","v":0},{"$f":"IF(BC20=\"yes\",SUMIFS('Project Scope'!$AO$8:$AO$107,'Project Scope'!$AN$8:$AN$107,$I20,'Project Scope'!$C$8:$C$107,DB$7)+SUMIFS('Project Scope'!$AX$8:$AX$107,'Project Scope'!$AW$8:$AW$107,$I20,'Project Scope'!$C$8:$C$107,DB$7),0)","v":0},{"$f":"IF(BD20=\"yes\",SUMIFS('Project Scope'!$AO$8:$AO$107,'Project Scope'!$AN$8:$AN$107,$I20,'Project Scope'!$C$8:$C$107,DC$7)+SUMIFS('Project Scope'!$AX$8:$AX$107,'Project Scope'!$AW$8:$AW$107,$I20,'Project Scope'!$C$8:$C$107,DC$7),0)","v":0},{"$f":"IF(BE20=\"yes\",SUMIFS('Project Scope'!$AO$8:$AO$107,'Project Scope'!$AN$8:$AN$107,$I20,'Project Scope'!$C$8:$C$107,DD$7)+SUMIFS('Project Scope'!$AX$8:$AX$107,'Project Scope'!$AW$8:$AW$107,$I20,'Project Scope'!$C$8:$C$107,DD$7),0)","v":0},{"$f":"IF(BF20=\"yes\",SUMIFS('Project Scope'!$AO$8:$AO$107,'Project Scope'!$AN$8:$AN$107,$I20,'Project Scope'!$C$8:$C$107,DE$7)+SUMIFS('Project Scope'!$AX$8:$AX$107,'Project Scope'!$AW$8:$AW$107,$I20,'Project Scope'!$C$8:$C$107,DE$7),0)","v":0},{"$f":"IF(BG20=\"yes\",SUMIFS('Project Scope'!$AO$8:$AO$107,'Project Scope'!$AN$8:$AN$107,$I20,'Project Scope'!$C$8:$C$107,DF$7)+SUMIFS('Project Scope'!$AX$8:$AX$107,'Project Scope'!$AW$8:$AW$107,$I20,'Project Scope'!$C$8:$C$107,DF$7),0)","v":0},{"$f":"IF(BH20=\"yes\",SUMIFS('Project Scope'!$AO$8:$AO$107,'Project Scope'!$AN$8:$AN$107,$I20,'Project Scope'!$C$8:$C$107,DG$7)+SUMIFS('Project Scope'!$AX$8:$AX$107,'Project Scope'!$AW$8:$AW$107,$I20,'Project Scope'!$C$8:$C$107,DG$7),0)","v":0},{"$f":"IF(BI20=\"yes\",SUMIFS('Project Scope'!$AO$8:$AO$107,'Project Scope'!$AN$8:$AN$107,$I20,'Project Scope'!$C$8:$C$107,DH$7)+SUMIFS('Project Scope'!$AX$8:$AX$107,'Project Scope'!$AW$8:$AW$107,$I20,'Project Scope'!$C$8:$C$107,DH$7),0)","v":0},{"$f":"IF(BJ20=\"yes\",SUMIFS('Project Scope'!$AO$8:$AO$107,'Project Scope'!$AN$8:$AN$107,$I20,'Project Scope'!$C$8:$C$107,DI$7)+SUMIFS('Project Scope'!$AX$8:$AX$107,'Project Scope'!$AW$8:$AW$107,$I20,'Project Scope'!$C$8:$C$107,DI$7),0)","v":0},{"$f":"IF(BK20=\"yes\",SUMIFS('Project Scope'!$AO$8:$AO$107,'Project Scope'!$AN$8:$AN$107,$I20,'Project Scope'!$C$8:$C$107,DJ$7)+SUMIFS('Project Scope'!$AX$8:$AX$107,'Project Scope'!$AW$8:$AW$107,$I20,'Project Scope'!$C$8:$C$107,DJ$7),0)","v":0},{"$f":"IF(BL20=\"yes\",SUMIFS('Project Scope'!$AO$8:$AO$107,'Project Scope'!$AN$8:$AN$107,$I20,'Project Scope'!$C$8:$C$107,DK$7)+SUMIFS('Project Scope'!$AX$8:$AX$107,'Project Scope'!$AW$8:$AW$107,$I20,'Project Scope'!$C$8:$C$107,DK$7),0)","v":0},null,"","","","","","","","","","","","","","","","","","","","","","","","","","","","","","","","","","","","","","","","","","","","","","","","","","",null,""]
[null,null,null,null,null,null,null,null,null,null,null,{"$f":"IF($C21=\"additional labor hours\",$K21*'Project Information'!$D$12,$K21*$J21)*IF($F21=\"Per Measure\",SUM($BN21:$DK21),1)","v":0},{"$f":"IF($C21=\"\",0,IF(VLOOKUP($C21,'Other Data'!$B$146:$C$156,2,FALSE)=\"M\",$L21,0))","v":0},0,null,null,null,null,null,null,null,null,null,null,null,null,null,null,null,null,null,null,null,null,null,null,null,null,null,null,null,null,null,null,null,null,null,null,null,null,null,null,null,null,null,null,null,null,null,null,null,null,null,null,null,{"$f":"IF(O21=\"yes\",SUMIFS('Project Scope'!$AO$8:$AO$107,'Project Scope'!$AN$8:$AN$107,$I21,'Project Scope'!$C$8:$C$107,BN$7)+SUMIFS('Project Scope'!$AX$8:$AX$107,'Project Scope'!$AW$8:$AW$107,$I21,'Project Scope'!$C$8:$C$107,BN$7),0)","v":0},{"$f":"IF(P21=\"yes\",SUMIFS('Project Scope'!$AO$8:$AO$107,'Project Scope'!$AN$8:$AN$107,$I21,'Project Scope'!$C$8:$C$107,BO$7)+SUMIFS('Project Scope'!$AX$8:$AX$107,'Project Scope'!$AW$8:$AW$107,$I21,'Project Scope'!$C$8:$C$107,BO$7),0)","v":0},{"$f":"IF(Q21=\"yes\",SUMIFS('Project Scope'!$AO$8:$AO$107,'Project Scope'!$AN$8:$AN$107,$I21,'Project Scope'!$C$8:$C$107,BP$7)+SUMIFS('Project Scope'!$AX$8:$AX$107,'Project Scope'!$AW$8:$AW$107,$I21,'Project Scope'!$C$8:$C$107,BP$7),0)","v":0},{"$f":"IF(R21=\"yes\",SUMIFS('Project Scope'!$AO$8:$AO$107,'Project Scope'!$AN$8:$AN$107,$I21,'Project Scope'!$C$8:$C$107,BQ$7)+SUMIFS('Project Scope'!$AX$8:$AX$107,'Project Scope'!$AW$8:$AW$107,$I21,'Project Scope'!$C$8:$C$107,BQ$7),0)","v":0},{"$f":"IF(S21=\"yes\",SUMIFS('Project Scope'!$AO$8:$AO$107,'Project Scope'!$AN$8:$AN$107,$I21,'Project Scope'!$C$8:$C$107,BR$7)+SUMIFS('Project Scope'!$AX$8:$AX$107,'Project Scope'!$AW$8:$AW$107,$I21,'Project Scope'!$C$8:$C$107,BR$7),0)","v":0},{"$f":"IF(T21=\"yes\",SUMIFS('Project Scope'!$AO$8:$AO$107,'Project Scope'!$AN$8:$AN$107,$I21,'Project Scope'!$C$8:$C$107,BS$7)+SUMIFS('Project Scope'!$AX$8:$AX$107,'Project Scope'!$AW$8:$AW$107,$I21,'Project Scope'!$C$8:$C$107,BS$7),0)","v":0},{"$f":"IF(U21=\"yes\",SUMIFS('Project Scope'!$AO$8:$AO$107,'Project Scope'!$AN$8:$AN$107,$I21,'Project Scope'!$C$8:$C$107,BT$7)+SUMIFS('Project Scope'!$AX$8:$AX$107,'Project Scope'!$AW$8:$AW$107,$I21,'Project Scope'!$C$8:$C$107,BT$7),0)","v":0},{"$f":"IF(V21=\"yes\",SUMIFS('Project Scope'!$AO$8:$AO$107,'Project Scope'!$AN$8:$AN$107,$I21,'Project Scope'!$C$8:$C$107,BU$7)+SUMIFS('Project Scope'!$AX$8:$AX$107,'Project Scope'!$AW$8:$AW$107,$I21,'Project Scope'!$C$8:$C$107,BU$7),0)","v":0},{"$f":"IF(W21=\"yes\",SUMIFS('Project Scope'!$AO$8:$AO$107,'Project Scope'!$AN$8:$AN$107,$I21,'Project Scope'!$C$8:$C$107,BV$7)+SUMIFS('Project Scope'!$AX$8:$AX$107,'Project Scope'!$AW$8:$AW$107,$I21,'Project Scope'!$C$8:$C$107,BV$7),0)","v":0},{"$f":"IF(X21=\"yes\",SUMIFS('Project Scope'!$AO$8:$AO$107,'Project Scope'!$AN$8:$AN$107,$I21,'Project Scope'!$C$8:$C$107,BW$7)+SUMIFS('Project Scope'!$AX$8:$AX$107,'Project Scope'!$AW$8:$AW$107,$I21,'Project Scope'!$C$8:$C$107,BW$7),0)","v":0},{"$f":"IF(Y21=\"yes\",SUMIFS('Project Scope'!$AO$8:$AO$107,'Project Scope'!$AN$8:$AN$107,$I21,'Project Scope'!$C$8:$C$107,BX$7)+SUMIFS('Project Scope'!$AX$8:$AX$107,'Project Scope'!$AW$8:$AW$107,$I21,'Project Scope'!$C$8:$C$107,BX$7),0)","v":0},{"$f":"IF(Z21=\"yes\",SUMIFS('Project Scope'!$AO$8:$AO$107,'Project Scope'!$AN$8:$AN$107,$I21,'Project Scope'!$C$8:$C$107,BY$7)+SUMIFS('Project Scope'!$AX$8:$AX$107,'Project Scope'!$AW$8:$AW$107,$I21,'Project Scope'!$C$8:$C$107,BY$7),0)","v":0},{"$f":"IF(AA21=\"yes\",SUMIFS('Project Scope'!$AO$8:$AO$107,'Project Scope'!$AN$8:$AN$107,$I21,'Project Scope'!$C$8:$C$107,BZ$7)+SUMIFS('Project Scope'!$AX$8:$AX$107,'Project Scope'!$AW$8:$AW$107,$I21,'Project Scope'!$C$8:$C$107,BZ$7),0)","v":0},{"$f":"IF(AB21=\"yes\",SUMIFS('Project Scope'!$AO$8:$AO$107,'Project Scope'!$AN$8:$AN$107,$I21,'Project Scope'!$C$8:$C$107,CA$7)+SUMIFS('Project Scope'!$AX$8:$AX$107,'Project Scope'!$AW$8:$AW$107,$I21,'Project Scope'!$C$8:$C$107,CA$7),0)","v":0},{"$f":"IF(AC21=\"yes\",SUMIFS('Project Scope'!$AO$8:$AO$107,'Project Scope'!$AN$8:$AN$107,$I21,'Project Scope'!$C$8:$C$107,CB$7)+SUMIFS('Project Scope'!$AX$8:$AX$107,'Project Scope'!$AW$8:$AW$107,$I21,'Project Scope'!$C$8:$C$107,CB$7),0)","v":0},{"$f":"IF(AD21=\"yes\",SUMIFS('Project Scope'!$AO$8:$AO$107,'Project Scope'!$AN$8:$AN$107,$I21,'Project Scope'!$C$8:$C$107,CC$7)+SUMIFS('Project Scope'!$AX$8:$AX$107,'Project Scope'!$AW$8:$AW$107,$I21,'Project Scope'!$C$8:$C$107,CC$7),0)","v":0},{"$f":"IF(AE21=\"yes\",SUMIFS('Project Scope'!$AO$8:$AO$107,'Project Scope'!$AN$8:$AN$107,$I21,'Project Scope'!$C$8:$C$107,CD$7)+SUMIFS('Project Scope'!$AX$8:$AX$107,'Project Scope'!$AW$8:$AW$107,$I21,'Project Scope'!$C$8:$C$107,CD$7),0)","v":0},{"$f":"IF(AF21=\"yes\",SUMIFS('Project Scope'!$AO$8:$AO$107,'Project Scope'!$AN$8:$AN$107,$I21,'Project Scope'!$C$8:$C$107,CE$7)+SUMIFS('Project Scope'!$AX$8:$AX$107,'Project Scope'!$AW$8:$AW$107,$I21,'Project Scope'!$C$8:$C$107,CE$7),0)","v":0},{"$f":"IF(AG21=\"yes\",SUMIFS('Project Scope'!$AO$8:$AO$107,'Project Scope'!$AN$8:$AN$107,$I21,'Project Scope'!$C$8:$C$107,CF$7)+SUMIFS('Project Scope'!$AX$8:$AX$107,'Project Scope'!$AW$8:$AW$107,$I21,'Project Scope'!$C$8:$C$107,CF$7),0)","v":0},{"$f":"IF(AH21=\"yes\",SUMIFS('Project Scope'!$AO$8:$AO$107,'Project Scope'!$AN$8:$AN$107,$I21,'Project Scope'!$C$8:$C$107,CG$7)+SUMIFS('Project Scope'!$AX$8:$AX$107,'Project Scope'!$AW$8:$AW$107,$I21,'Project Scope'!$C$8:$C$107,CG$7),0)","v":0},{"$f":"IF(AI21=\"yes\",SUMIFS('Project Scope'!$AO$8:$AO$107,'Project Scope'!$AN$8:$AN$107,$I21,'Project Scope'!$C$8:$C$107,CH$7)+SUMIFS('Project Scope'!$AX$8:$AX$107,'Project Scope'!$AW$8:$AW$107,$I21,'Project Scope'!$C$8:$C$107,CH$7),0)","v":0},{"$f":"IF(AJ21=\"yes\",SUMIFS('Project Scope'!$AO$8:$AO$107,'Project Scope'!$AN$8:$AN$107,$I21,'Project Scope'!$C$8:$C$107,CI$7)+SUMIFS('Project Scope'!$AX$8:$AX$107,'Project Scope'!$AW$8:$AW$107,$I21,'Project Scope'!$C$8:$C$107,CI$7),0)","v":0},{"$f":"IF(AK21=\"yes\",SUMIFS('Project Scope'!$AO$8:$AO$107,'Project Scope'!$AN$8:$AN$107,$I21,'Project Scope'!$C$8:$C$107,CJ$7)+SUMIFS('Project Scope'!$AX$8:$AX$107,'Project Scope'!$AW$8:$AW$107,$I21,'Project Scope'!$C$8:$C$107,CJ$7),0)","v":0},{"$f":"IF(AL21=\"yes\",SUMIFS('Project Scope'!$AO$8:$AO$107,'Project Scope'!$AN$8:$AN$107,$I21,'Project Scope'!$C$8:$C$107,CK$7)+SUMIFS('Project Scope'!$AX$8:$AX$107,'Project Scope'!$AW$8:$AW$107,$I21,'Project Scope'!$C$8:$C$107,CK$7),0)","v":0},{"$f":"IF(AM21=\"yes\",SUMIFS('Project Scope'!$AO$8:$AO$107,'Project Scope'!$AN$8:$AN$107,$I21,'Project Scope'!$C$8:$C$107,CL$7)+SUMIFS('Project Scope'!$AX$8:$AX$107,'Project Scope'!$AW$8:$AW$107,$I21,'Project Scope'!$C$8:$C$107,CL$7),0)","v":0},{"$f":"IF(AN21=\"yes\",SUMIFS('Project Scope'!$AO$8:$AO$107,'Project Scope'!$AN$8:$AN$107,$I21,'Project Scope'!$C$8:$C$107,CM$7)+SUMIFS('Project Scope'!$AX$8:$AX$107,'Project Scope'!$AW$8:$AW$107,$I21,'Project Scope'!$C$8:$C$107,CM$7),0)","v":0},{"$f":"IF(AO21=\"yes\",SUMIFS('Project Scope'!$AO$8:$AO$107,'Project Scope'!$AN$8:$AN$107,$I21,'Project Scope'!$C$8:$C$107,CN$7)+SUMIFS('Project Scope'!$AX$8:$AX$107,'Project Scope'!$AW$8:$AW$107,$I21,'Project Scope'!$C$8:$C$107,CN$7),0)","v":0},{"$f":"IF(AP21=\"yes\",SUMIFS('Project Scope'!$AO$8:$AO$107,'Project Scope'!$AN$8:$AN$107,$I21,'Project Scope'!$C$8:$C$107,CO$7)+SUMIFS('Project Scope'!$AX$8:$AX$107,'Project Scope'!$AW$8:$AW$107,$I21,'Project Scope'!$C$8:$C$107,CO$7),0)","v":0},{"$f":"IF(AQ21=\"yes\",SUMIFS('Project Scope'!$AO$8:$AO$107,'Project Scope'!$AN$8:$AN$107,$I21,'Project Scope'!$C$8:$C$107,CP$7)+SUMIFS('Project Scope'!$AX$8:$AX$107,'Project Scope'!$AW$8:$AW$107,$I21,'Project Scope'!$C$8:$C$107,CP$7),0)","v":0},{"$f":"IF(AR21=\"yes\",SUMIFS('Project Scope'!$AO$8:$AO$107,'Project Scope'!$AN$8:$AN$107,$I21,'Project Scope'!$C$8:$C$107,CQ$7)+SUMIFS('Project Scope'!$AX$8:$AX$107,'Project Scope'!$AW$8:$AW$107,$I21,'Project Scope'!$C$8:$C$107,CQ$7),0)","v":0},{"$f":"IF(AS21=\"yes\",SUMIFS('Project Scope'!$AO$8:$AO$107,'Project Scope'!$AN$8:$AN$107,$I21,'Project Scope'!$C$8:$C$107,CR$7)+SUMIFS('Project Scope'!$AX$8:$AX$107,'Project Scope'!$AW$8:$AW$107,$I21,'Project Scope'!$C$8:$C$107,CR$7),0)","v":0},{"$f":"IF(AT21=\"yes\",SUMIFS('Project Scope'!$AO$8:$AO$107,'Project Scope'!$AN$8:$AN$107,$I21,'Project Scope'!$C$8:$C$107,CS$7)+SUMIFS('Project Scope'!$AX$8:$AX$107,'Project Scope'!$AW$8:$AW$107,$I21,'Project Scope'!$C$8:$C$107,CS$7),0)","v":0},{"$f":"IF(AU21=\"yes\",SUMIFS('Project Scope'!$AO$8:$AO$107,'Project Scope'!$AN$8:$AN$107,$I21,'Project Scope'!$C$8:$C$107,CT$7)+SUMIFS('Project Scope'!$AX$8:$AX$107,'Project Scope'!$AW$8:$AW$107,$I21,'Project Scope'!$C$8:$C$107,CT$7),0)","v":0},{"$f":"IF(AV21=\"yes\",SUMIFS('Project Scope'!$AO$8:$AO$107,'Project Scope'!$AN$8:$AN$107,$I21,'Project Scope'!$C$8:$C$107,CU$7)+SUMIFS('Project Scope'!$AX$8:$AX$107,'Project Scope'!$AW$8:$AW$107,$I21,'Project Scope'!$C$8:$C$107,CU$7),0)","v":0},{"$f":"IF(AW21=\"yes\",SUMIFS('Project Scope'!$AO$8:$AO$107,'Project Scope'!$AN$8:$AN$107,$I21,'Project Scope'!$C$8:$C$107,CV$7)+SUMIFS('Project Scope'!$AX$8:$AX$107,'Project Scope'!$AW$8:$AW$107,$I21,'Project Scope'!$C$8:$C$107,CV$7),0)","v":0},{"$f":"IF(AX21=\"yes\",SUMIFS('Project Scope'!$AO$8:$AO$107,'Project Scope'!$AN$8:$AN$107,$I21,'Project Scope'!$C$8:$C$107,CW$7)+SUMIFS('Project Scope'!$AX$8:$AX$107,'Project Scope'!$AW$8:$AW$107,$I21,'Project Scope'!$C$8:$C$107,CW$7),0)","v":0},{"$f":"IF(AY21=\"yes\",SUMIFS('Project Scope'!$AO$8:$AO$107,'Project Scope'!$AN$8:$AN$107,$I21,'Project Scope'!$C$8:$C$107,CX$7)+SUMIFS('Project Scope'!$AX$8:$AX$107,'Project Scope'!$AW$8:$AW$107,$I21,'Project Scope'!$C$8:$C$107,CX$7),0)","v":0},{"$f":"IF(AZ21=\"yes\",SUMIFS('Project Scope'!$AO$8:$AO$107,'Project Scope'!$AN$8:$AN$107,$I21,'Project Scope'!$C$8:$C$107,CY$7)+SUMIFS('Project Scope'!$AX$8:$AX$107,'Project Scope'!$AW$8:$AW$107,$I21,'Project Scope'!$C$8:$C$107,CY$7),0)","v":0},{"$f":"IF(BA21=\"yes\",SUMIFS('Project Scope'!$AO$8:$AO$107,'Project Scope'!$AN$8:$AN$107,$I21,'Project Scope'!$C$8:$C$107,CZ$7)+SUMIFS('Project Scope'!$AX$8:$AX$107,'Project Scope'!$AW$8:$AW$107,$I21,'Project Scope'!$C$8:$C$107,CZ$7),0)","v":0},{"$f":"IF(BB21=\"yes\",SUMIFS('Project Scope'!$AO$8:$AO$107,'Project Scope'!$AN$8:$AN$107,$I21,'Project Scope'!$C$8:$C$107,DA$7)+SUMIFS('Project Scope'!$AX$8:$AX$107,'Project Scope'!$AW$8:$AW$107,$I21,'Project Scope'!$C$8:$C$107,DA$7),0)","v":0},{"$f":"IF(BC21=\"yes\",SUMIFS('Project Scope'!$AO$8:$AO$107,'Project Scope'!$AN$8:$AN$107,$I21,'Project Scope'!$C$8:$C$107,DB$7)+SUMIFS('Project Scope'!$AX$8:$AX$107,'Project Scope'!$AW$8:$AW$107,$I21,'Project Scope'!$C$8:$C$107,DB$7),0)","v":0},{"$f":"IF(BD21=\"yes\",SUMIFS('Project Scope'!$AO$8:$AO$107,'Project Scope'!$AN$8:$AN$107,$I21,'Project Scope'!$C$8:$C$107,DC$7)+SUMIFS('Project Scope'!$AX$8:$AX$107,'Project Scope'!$AW$8:$AW$107,$I21,'Project Scope'!$C$8:$C$107,DC$7),0)","v":0},{"$f":"IF(BE21=\"yes\",SUMIFS('Project Scope'!$AO$8:$AO$107,'Project Scope'!$AN$8:$AN$107,$I21,'Project Scope'!$C$8:$C$107,DD$7)+SUMIFS('Project Scope'!$AX$8:$AX$107,'Project Scope'!$AW$8:$AW$107,$I21,'Project Scope'!$C$8:$C$107,DD$7),0)","v":0},{"$f":"IF(BF21=\"yes\",SUMIFS('Project Scope'!$AO$8:$AO$107,'Project Scope'!$AN$8:$AN$107,$I21,'Project Scope'!$C$8:$C$107,DE$7)+SUMIFS('Project Scope'!$AX$8:$AX$107,'Project Scope'!$AW$8:$AW$107,$I21,'Project Scope'!$C$8:$C$107,DE$7),0)","v":0},{"$f":"IF(BG21=\"yes\",SUMIFS('Project Scope'!$AO$8:$AO$107,'Project Scope'!$AN$8:$AN$107,$I21,'Project Scope'!$C$8:$C$107,DF$7)+SUMIFS('Project Scope'!$AX$8:$AX$107,'Project Scope'!$AW$8:$AW$107,$I21,'Project Scope'!$C$8:$C$107,DF$7),0)","v":0},{"$f":"IF(BH21=\"yes\",SUMIFS('Project Scope'!$AO$8:$AO$107,'Project Scope'!$AN$8:$AN$107,$I21,'Project Scope'!$C$8:$C$107,DG$7)+SUMIFS('Project Scope'!$AX$8:$AX$107,'Project Scope'!$AW$8:$AW$107,$I21,'Project Scope'!$C$8:$C$107,DG$7),0)","v":0},{"$f":"IF(BI21=\"yes\",SUMIFS('Project Scope'!$AO$8:$AO$107,'Project Scope'!$AN$8:$AN$107,$I21,'Project Scope'!$C$8:$C$107,DH$7)+SUMIFS('Project Scope'!$AX$8:$AX$107,'Project Scope'!$AW$8:$AW$107,$I21,'Project Scope'!$C$8:$C$107,DH$7),0)","v":0},{"$f":"IF(BJ21=\"yes\",SUMIFS('Project Scope'!$AO$8:$AO$107,'Project Scope'!$AN$8:$AN$107,$I21,'Project Scope'!$C$8:$C$107,DI$7)+SUMIFS('Project Scope'!$AX$8:$AX$107,'Project Scope'!$AW$8:$AW$107,$I21,'Project Scope'!$C$8:$C$107,DI$7),0)","v":0},{"$f":"IF(BK21=\"yes\",SUMIFS('Project Scope'!$AO$8:$AO$107,'Project Scope'!$AN$8:$AN$107,$I21,'Project Scope'!$C$8:$C$107,DJ$7)+SUMIFS('Project Scope'!$AX$8:$AX$107,'Project Scope'!$AW$8:$AW$107,$I21,'Project Scope'!$C$8:$C$107,DJ$7),0)","v":0},{"$f":"IF(BL21=\"yes\",SUMIFS('Project Scope'!$AO$8:$AO$107,'Project Scope'!$AN$8:$AN$107,$I21,'Project Scope'!$C$8:$C$107,DK$7)+SUMIFS('Project Scope'!$AX$8:$AX$107,'Project Scope'!$AW$8:$AW$107,$I21,'Project Scope'!$C$8:$C$107,DK$7),0)","v":0},null,"","","","","","","","","","","","","","","","","","","","","","","","","","","","","","","","","","","","","","","","","","","","","","","","","","",null,""]
[null,null,null,null,null,null,null,null,null,null,null,{"$f":"IF($C22=\"additional labor hours\",$K22*'Project Information'!$D$12,$K22*$J22)*IF($F22=\"Per Measure\",SUM($BN22:$DK22),1)","v":0},{"$f":"IF($C22=\"\",0,IF(VLOOKUP($C22,'Other Data'!$B$146:$C$156,2,FALSE)=\"M\",$L22,0))","v":0},0,null,null,null,null,null,null,null,null,null,null,null,null,null,null,null,null,null,null,null,null,null,null,null,null,null,null,null,null,null,null,null,null,null,null,null,null,null,null,null,null,null,null,null,null,null,null,null,null,null,null,null,{"$f":"IF(O22=\"yes\",SUMIFS('Project Scope'!$AO$8:$AO$107,'Project Scope'!$AN$8:$AN$107,$I22,'Project Scope'!$C$8:$C$107,BN$7)+SUMIFS('Project Scope'!$AX$8:$AX$107,'Project Scope'!$AW$8:$AW$107,$I22,'Project Scope'!$C$8:$C$107,BN$7),0)","v":0},{"$f":"IF(P22=\"yes\",SUMIFS('Project Scope'!$AO$8:$AO$107,'Project Scope'!$AN$8:$AN$107,$I22,'Project Scope'!$C$8:$C$107,BO$7)+SUMIFS('Project Scope'!$AX$8:$AX$107,'Project Scope'!$AW$8:$AW$107,$I22,'Project Scope'!$C$8:$C$107,BO$7),0)","v":0},{"$f":"IF(Q22=\"yes\",SUMIFS('Project Scope'!$AO$8:$AO$107,'Project Scope'!$AN$8:$AN$107,$I22,'Project Scope'!$C$8:$C$107,BP$7)+SUMIFS('Project Scope'!$AX$8:$AX$107,'Project Scope'!$AW$8:$AW$107,$I22,'Project Scope'!$C$8:$C$107,BP$7),0)","v":0},{"$f":"IF(R22=\"yes\",SUMIFS('Project Scope'!$AO$8:$AO$107,'Project Scope'!$AN$8:$AN$107,$I22,'Project Scope'!$C$8:$C$107,BQ$7)+SUMIFS('Project Scope'!$AX$8:$AX$107,'Project Scope'!$AW$8:$AW$107,$I22,'Project Scope'!$C$8:$C$107,BQ$7),0)","v":0},{"$f":"IF(S22=\"yes\",SUMIFS('Project Scope'!$AO$8:$AO$107,'Project Scope'!$AN$8:$AN$107,$I22,'Project Scope'!$C$8:$C$107,BR$7)+SUMIFS('Project Scope'!$AX$8:$AX$107,'Project Scope'!$AW$8:$AW$107,$I22,'Project Scope'!$C$8:$C$107,BR$7),0)","v":0},{"$f":"IF(T22=\"yes\",SUMIFS('Project Scope'!$AO$8:$AO$107,'Project Scope'!$AN$8:$AN$107,$I22,'Project Scope'!$C$8:$C$107,BS$7)+SUMIFS('Project Scope'!$AX$8:$AX$107,'Project Scope'!$AW$8:$AW$107,$I22,'Project Scope'!$C$8:$C$107,BS$7),0)","v":0},{"$f":"IF(U22=\"yes\",SUMIFS('Project Scope'!$AO$8:$AO$107,'Project Scope'!$AN$8:$AN$107,$I22,'Project Scope'!$C$8:$C$107,BT$7)+SUMIFS('Project Scope'!$AX$8:$AX$107,'Project Scope'!$AW$8:$AW$107,$I22,'Project Scope'!$C$8:$C$107,BT$7),0)","v":0},{"$f":"IF(V22=\"yes\",SUMIFS('Project Scope'!$AO$8:$AO$107,'Project Scope'!$AN$8:$AN$107,$I22,'Project Scope'!$C$8:$C$107,BU$7)+SUMIFS('Project Scope'!$AX$8:$AX$107,'Project Scope'!$AW$8:$AW$107,$I22,'Project Scope'!$C$8:$C$107,BU$7),0)","v":0},{"$f":"IF(W22=\"yes\",SUMIFS('Project Scope'!$AO$8:$AO$107,'Project Scope'!$AN$8:$AN$107,$I22,'Project Scope'!$C$8:$C$107,BV$7)+SUMIFS('Project Scope'!$AX$8:$AX$107,'Project Scope'!$AW$8:$AW$107,$I22,'Project Scope'!$C$8:$C$107,BV$7),0)","v":0},{"$f":"IF(X22=\"yes\",SUMIFS('Project Scope'!$AO$8:$AO$107,'Project Scope'!$AN$8:$AN$107,$I22,'Project Scope'!$C$8:$C$107,BW$7)+SUMIFS('Project Scope'!$AX$8:$AX$107,'Project Scope'!$AW$8:$AW$107,$I22,'Project Scope'!$C$8:$C$107,BW$7),0)","v":0},{"$f":"IF(Y22=\"yes\",SUMIFS('Project Scope'!$AO$8:$AO$107,'Project Scope'!$AN$8:$AN$107,$I22,'Project Scope'!$C$8:$C$107,BX$7)+SUMIFS('Project Scope'!$AX$8:$AX$107,'Project Scope'!$AW$8:$AW$107,$I22,'Project Scope'!$C$8:$C$107,BX$7),0)","v":0},{"$f":"IF(Z22=\"yes\",SUMIFS('Project Scope'!$AO$8:$AO$107,'Project Scope'!$AN$8:$AN$107,$I22,'Project Scope'!$C$8:$C$107,BY$7)+SUMIFS('Project Scope'!$AX$8:$AX$107,'Project Scope'!$AW$8:$AW$107,$I22,'Project Scope'!$C$8:$C$107,BY$7),0)","v":0},{"$f":"IF(AA22=\"yes\",SUMIFS('Project Scope'!$AO$8:$AO$107,'Project Scope'!$AN$8:$AN$107,$I22,'Project Scope'!$C$8:$C$107,BZ$7)+SUMIFS('Project Scope'!$AX$8:$AX$107,'Project Scope'!$AW$8:$AW$107,$I22,'Project Scope'!$C$8:$C$107,BZ$7),0)","v":0},{"$f":"IF(AB22=\"yes\",SUMIFS('Project Scope'!$AO$8:$AO$107,'Project Scope'!$AN$8:$AN$107,$I22,'Project Scope'!$C$8:$C$107,CA$7)+SUMIFS('Project Scope'!$AX$8:$AX$107,'Project Scope'!$AW$8:$AW$107,$I22,'Project Scope'!$C$8:$C$107,CA$7),0)","v":0},{"$f":"IF(AC22=\"yes\",SUMIFS('Project Scope'!$AO$8:$AO$107,'Project Scope'!$AN$8:$AN$107,$I22,'Project Scope'!$C$8:$C$107,CB$7)+SUMIFS('Project Scope'!$AX$8:$AX$107,'Project Scope'!$AW$8:$AW$107,$I22,'Project Scope'!$C$8:$C$107,CB$7),0)","v":0},{"$f":"IF(AD22=\"yes\",SUMIFS('Project Scope'!$AO$8:$AO$107,'Project Scope'!$AN$8:$AN$107,$I22,'Project Scope'!$C$8:$C$107,CC$7)+SUMIFS('Project Scope'!$AX$8:$AX$107,'Project Scope'!$AW$8:$AW$107,$I22,'Project Scope'!$C$8:$C$107,CC$7),0)","v":0},{"$f":"IF(AE22=\"yes\",SUMIFS('Project Scope'!$AO$8:$AO$107,'Project Scope'!$AN$8:$AN$107,$I22,'Project Scope'!$C$8:$C$107,CD$7)+SUMIFS('Project Scope'!$AX$8:$AX$107,'Project Scope'!$AW$8:$AW$107,$I22,'Project Scope'!$C$8:$C$107,CD$7),0)","v":0},{"$f":"IF(AF22=\"yes\",SUMIFS('Project Scope'!$AO$8:$AO$107,'Project Scope'!$AN$8:$AN$107,$I22,'Project Scope'!$C$8:$C$107,CE$7)+SUMIFS('Project Scope'!$AX$8:$AX$107,'Project Scope'!$AW$8:$AW$107,$I22,'Project Scope'!$C$8:$C$107,CE$7),0)","v":0},{"$f":"IF(AG22=\"yes\",SUMIFS('Project Scope'!$AO$8:$AO$107,'Project Scope'!$AN$8:$AN$107,$I22,'Project Scope'!$C$8:$C$107,CF$7)+SUMIFS('Project Scope'!$AX$8:$AX$107,'Project Scope'!$AW$8:$AW$107,$I22,'Project Scope'!$C$8:$C$107,CF$7),0)","v":0},{"$f":"IF(AH22=\"yes\",SUMIFS('Project Scope'!$AO$8:$AO$107,'Project Scope'!$AN$8:$AN$107,$I22,'Project Scope'!$C$8:$C$107,CG$7)+SUMIFS('Project Scope'!$AX$8:$AX$107,'Project Scope'!$AW$8:$AW$107,$I22,'Project Scope'!$C$8:$C$107,CG$7),0)","v":0},{"$f":"IF(AI22=\"yes\",SUMIFS('Project Scope'!$AO$8:$AO$107,'Project Scope'!$AN$8:$AN$107,$I22,'Project Scope'!$C$8:$C$107,CH$7)+SUMIFS('Project Scope'!$AX$8:$AX$107,'Project Scope'!$AW$8:$AW$107,$I22,'Project Scope'!$C$8:$C$107,CH$7),0)","v":0},{"$f":"IF(AJ22=\"yes\",SUMIFS('Project Scope'!$AO$8:$AO$107,'Project Scope'!$AN$8:$AN$107,$I22,'Project Scope'!$C$8:$C$107,CI$7)+SUMIFS('Project Scope'!$AX$8:$AX$107,'Project Scope'!$AW$8:$AW$107,$I22,'Project Scope'!$C$8:$C$107,CI$7),0)","v":0},{"$f":"IF(AK22=\"yes\",SUMIFS('Project Scope'!$AO$8:$AO$107,'Project Scope'!$AN$8:$AN$107,$I22,'Project Scope'!$C$8:$C$107,CJ$7)+SUMIFS('Project Scope'!$AX$8:$AX$107,'Project Scope'!$AW$8:$AW$107,$I22,'Project Scope'!$C$8:$C$107,CJ$7),0)","v":0},{"$f":"IF(AL22=\"yes\",SUMIFS('Project Scope'!$AO$8:$AO$107,'Project Scope'!$AN$8:$AN$107,$I22,'Project Scope'!$C$8:$C$107,CK$7)+SUMIFS('Project Scope'!$AX$8:$AX$107,'Project Scope'!$AW$8:$AW$107,$I22,'Project Scope'!$C$8:$C$107,CK$7),0)","v":0},{"$f":"IF(AM22=\"yes\",SUMIFS('Project Scope'!$AO$8:$AO$107,'Project Scope'!$AN$8:$AN$107,$I22,'Project Scope'!$C$8:$C$107,CL$7)+SUMIFS('Project Scope'!$AX$8:$AX$107,'Project Scope'!$AW$8:$AW$107,$I22,'Project Scope'!$C$8:$C$107,CL$7),0)","v":0},{"$f":"IF(AN22=\"yes\",SUMIFS('Project Scope'!$AO$8:$AO$107,'Project Scope'!$AN$8:$AN$107,$I22,'Project Scope'!$C$8:$C$107,CM$7)+SUMIFS('Project Scope'!$AX$8:$AX$107,'Project Scope'!$AW$8:$AW$107,$I22,'Project Scope'!$C$8:$C$107,CM$7),0)","v":0},{"$f":"IF(AO22=\"yes\",SUMIFS('Project Scope'!$AO$8:$AO$107,'Project Scope'!$AN$8:$AN$107,$I22,'Project Scope'!$C$8:$C$107,CN$7)+SUMIFS('Project Scope'!$AX$8:$AX$107,'Project Scope'!$AW$8:$AW$107,$I22,'Project Scope'!$C$8:$C$107,CN$7),0)","v":0},{"$f":"IF(AP22=\"yes\",SUMIFS('Project Scope'!$AO$8:$AO$107,'Project Scope'!$AN$8:$AN$107,$I22,'Project Scope'!$C$8:$C$107,CO$7)+SUMIFS('Project Scope'!$AX$8:$AX$107,'Project Scope'!$AW$8:$AW$107,$I22,'Project Scope'!$C$8:$C$107,CO$7),0)","v":0},{"$f":"IF(AQ22=\"yes\",SUMIFS('Project Scope'!$AO$8:$AO$107,'Project Scope'!$AN$8:$AN$107,$I22,'Project Scope'!$C$8:$C$107,CP$7)+SUMIFS('Project Scope'!$AX$8:$AX$107,'Project Scope'!$AW$8:$AW$107,$I22,'Project Scope'!$C$8:$C$107,CP$7),0)","v":0},{"$f":"IF(AR22=\"yes\",SUMIFS('Project Scope'!$AO$8:$AO$107,'Project Scope'!$AN$8:$AN$107,$I22,'Project Scope'!$C$8:$C$107,CQ$7)+SUMIFS('Project Scope'!$AX$8:$AX$107,'Project Scope'!$AW$8:$AW$107,$I22,'Project Scope'!$C$8:$C$107,CQ$7),0)","v":0},{"$f":"IF(AS22=\"yes\",SUMIFS('Project Scope'!$AO$8:$AO$107,'Project Scope'!$AN$8:$AN$107,$I22,'Project Scope'!$C$8:$C$107,CR$7)+SUMIFS('Project Scope'!$AX$8:$AX$107,'Project Scope'!$AW$8:$AW$107,$I22,'Project Scope'!$C$8:$C$107,CR$7),0)","v":0},{"$f":"IF(AT22=\"yes\",SUMIFS('Project Scope'!$AO$8:$AO$107,'Project Scope'!$AN$8:$AN$107,$I22,'Project Scope'!$C$8:$C$107,CS$7)+SUMIFS('Project Scope'!$AX$8:$AX$107,'Project Scope'!$AW$8:$AW$107,$I22,'Project Scope'!$C$8:$C$107,CS$7),0)","v":0},{"$f":"IF(AU22=\"yes\",SUMIFS('Project Scope'!$AO$8:$AO$107,'Project Scope'!$AN$8:$AN$107,$I22,'Project Scope'!$C$8:$C$107,CT$7)+SUMIFS('Project Scope'!$AX$8:$AX$107,'Project Scope'!$AW$8:$AW$107,$I22,'Project Scope'!$C$8:$C$107,CT$7),0)","v":0},{"$f":"IF(AV22=\"yes\",SUMIFS('Project Scope'!$AO$8:$AO$107,'Project Scope'!$AN$8:$AN$107,$I22,'Project Scope'!$C$8:$C$107,CU$7)+SUMIFS('Project Scope'!$AX$8:$AX$107,'Project Scope'!$AW$8:$AW$107,$I22,'Project Scope'!$C$8:$C$107,CU$7),0)","v":0},{"$f":"IF(AW22=\"yes\",SUMIFS('Project Scope'!$AO$8:$AO$107,'Project Scope'!$AN$8:$AN$107,$I22,'Project Scope'!$C$8:$C$107,CV$7)+SUMIFS('Project Scope'!$AX$8:$AX$107,'Project Scope'!$AW$8:$AW$107,$I22,'Project Scope'!$C$8:$C$107,CV$7),0)","v":0},{"$f":"IF(AX22=\"yes\",SUMIFS('Project Scope'!$AO$8:$AO$107,'Project Scope'!$AN$8:$AN$107,$I22,'Project Scope'!$C$8:$C$107,CW$7)+SUMIFS('Project Scope'!$AX$8:$AX$107,'Project Scope'!$AW$8:$AW$107,$I22,'Project Scope'!$C$8:$C$107,CW$7),0)","v":0},{"$f":"IF(AY22=\"yes\",SUMIFS('Project Scope'!$AO$8:$AO$107,'Project Scope'!$AN$8:$AN$107,$I22,'Project Scope'!$C$8:$C$107,CX$7)+SUMIFS('Project Scope'!$AX$8:$AX$107,'Project Scope'!$AW$8:$AW$107,$I22,'Project Scope'!$C$8:$C$107,CX$7),0)","v":0},{"$f":"IF(AZ22=\"yes\",SUMIFS('Project Scope'!$AO$8:$AO$107,'Project Scope'!$AN$8:$AN$107,$I22,'Project Scope'!$C$8:$C$107,CY$7)+SUMIFS('Project Scope'!$AX$8:$AX$107,'Project Scope'!$AW$8:$AW$107,$I22,'Project Scope'!$C$8:$C$107,CY$7),0)","v":0},{"$f":"IF(BA22=\"yes\",SUMIFS('Project Scope'!$AO$8:$AO$107,'Project Scope'!$AN$8:$AN$107,$I22,'Project Scope'!$C$8:$C$107,CZ$7)+SUMIFS('Project Scope'!$AX$8:$AX$107,'Project Scope'!$AW$8:$AW$107,$I22,'Project Scope'!$C$8:$C$107,CZ$7),0)","v":0},{"$f":"IF(BB22=\"yes\",SUMIFS('Project Scope'!$AO$8:$AO$107,'Project Scope'!$AN$8:$AN$107,$I22,'Project Scope'!$C$8:$C$107,DA$7)+SUMIFS('Project Scope'!$AX$8:$AX$107,'Project Scope'!$AW$8:$AW$107,$I22,'Project Scope'!$C$8:$C$107,DA$7),0)","v":0},{"$f":"IF(BC22=\"yes\",SUMIFS('Project Scope'!$AO$8:$AO$107,'Project Scope'!$AN$8:$AN$107,$I22,'Project Scope'!$C$8:$C$107,DB$7)+SUMIFS('Project Scope'!$AX$8:$AX$107,'Project Scope'!$AW$8:$AW$107,$I22,'Project Scope'!$C$8:$C$107,DB$7),0)","v":0},{"$f":"IF(BD22=\"yes\",SUMIFS('Project Scope'!$AO$8:$AO$107,'Project Scope'!$AN$8:$AN$107,$I22,'Project Scope'!$C$8:$C$107,DC$7)+SUMIFS('Project Scope'!$AX$8:$AX$107,'Project Scope'!$AW$8:$AW$107,$I22,'Project Scope'!$C$8:$C$107,DC$7),0)","v":0},{"$f":"IF(BE22=\"yes\",SUMIFS('Project Scope'!$AO$8:$AO$107,'Project Scope'!$AN$8:$AN$107,$I22,'Project Scope'!$C$8:$C$107,DD$7)+SUMIFS('Project Scope'!$AX$8:$AX$107,'Project Scope'!$AW$8:$AW$107,$I22,'Project Scope'!$C$8:$C$107,DD$7),0)","v":0},{"$f":"IF(BF22=\"yes\",SUMIFS('Project Scope'!$AO$8:$AO$107,'Project Scope'!$AN$8:$AN$107,$I22,'Project Scope'!$C$8:$C$107,DE$7)+SUMIFS('Project Scope'!$AX$8:$AX$107,'Project Scope'!$AW$8:$AW$107,$I22,'Project Scope'!$C$8:$C$107,DE$7),0)","v":0},{"$f":"IF(BG22=\"yes\",SUMIFS('Project Scope'!$AO$8:$AO$107,'Project Scope'!$AN$8:$AN$107,$I22,'Project Scope'!$C$8:$C$107,DF$7)+SUMIFS('Project Scope'!$AX$8:$AX$107,'Project Scope'!$AW$8:$AW$107,$I22,'Project Scope'!$C$8:$C$107,DF$7),0)","v":0},{"$f":"IF(BH22=\"yes\",SUMIFS('Project Scope'!$AO$8:$AO$107,'Project Scope'!$AN$8:$AN$107,$I22,'Project Scope'!$C$8:$C$107,DG$7)+SUMIFS('Project Scope'!$AX$8:$AX$107,'Project Scope'!$AW$8:$AW$107,$I22,'Project Scope'!$C$8:$C$107,DG$7),0)","v":0},{"$f":"IF(BI22=\"yes\",SUMIFS('Project Scope'!$AO$8:$AO$107,'Project Scope'!$AN$8:$AN$107,$I22,'Project Scope'!$C$8:$C$107,DH$7)+SUMIFS('Project Scope'!$AX$8:$AX$107,'Project Scope'!$AW$8:$AW$107,$I22,'Project Scope'!$C$8:$C$107,DH$7),0)","v":0},{"$f":"IF(BJ22=\"yes\",SUMIFS('Project Scope'!$AO$8:$AO$107,'Project Scope'!$AN$8:$AN$107,$I22,'Project Scope'!$C$8:$C$107,DI$7)+SUMIFS('Project Scope'!$AX$8:$AX$107,'Project Scope'!$AW$8:$AW$107,$I22,'Project Scope'!$C$8:$C$107,DI$7),0)","v":0},{"$f":"IF(BK22=\"yes\",SUMIFS('Project Scope'!$AO$8:$AO$107,'Project Scope'!$AN$8:$AN$107,$I22,'Project Scope'!$C$8:$C$107,DJ$7)+SUMIFS('Project Scope'!$AX$8:$AX$107,'Project Scope'!$AW$8:$AW$107,$I22,'Project Scope'!$C$8:$C$107,DJ$7),0)","v":0},{"$f":"IF(BL22=\"yes\",SUMIFS('Project Scope'!$AO$8:$AO$107,'Project Scope'!$AN$8:$AN$107,$I22,'Project Scope'!$C$8:$C$107,DK$7)+SUMIFS('Project Scope'!$AX$8:$AX$107,'Project Scope'!$AW$8:$AW$107,$I22,'Project Scope'!$C$8:$C$107,DK$7),0)","v":0},null,"","","","","","","","","","","","","","","","","","","","","","","","","","","","","","","","","","","","","","","","","","","","","","","","","","",null,""]
[null,null,null,null,null,null,null,null,null,null,null,{"$f":"IF($C23=\"additional labor hours\",$K23*'Project Information'!$D$12,$K23*$J23)*IF($F23=\"Per Measure\",SUM($BN23:$DK23),1)","v":0},{"$f":"IF($C23=\"\",0,IF(VLOOKUP($C23,'Other Data'!$B$146:$C$156,2,FALSE)=\"M\",$L23,0))","v":0},0,null,null,null,null,null,null,null,null,null,null,null,null,null,null,null,null,null,null,null,null,null,null,null,null,null,null,null,null,null,null,null,null,null,null,null,null,null,null,null,null,null,null,null,null,null,null,null,null,null,null,null,{"$f":"IF(O23=\"yes\",SUMIFS('Project Scope'!$AO$8:$AO$107,'Project Scope'!$AN$8:$AN$107,$I23,'Project Scope'!$C$8:$C$107,BN$7)+SUMIFS('Project Scope'!$AX$8:$AX$107,'Project Scope'!$AW$8:$AW$107,$I23,'Project Scope'!$C$8:$C$107,BN$7),0)","v":0},{"$f":"IF(P23=\"yes\",SUMIFS('Project Scope'!$AO$8:$AO$107,'Project Scope'!$AN$8:$AN$107,$I23,'Project Scope'!$C$8:$C$107,BO$7)+SUMIFS('Project Scope'!$AX$8:$AX$107,'Project Scope'!$AW$8:$AW$107,$I23,'Project Scope'!$C$8:$C$107,BO$7),0)","v":0},{"$f":"IF(Q23=\"yes\",SUMIFS('Project Scope'!$AO$8:$AO$107,'Project Scope'!$AN$8:$AN$107,$I23,'Project Scope'!$C$8:$C$107,BP$7)+SUMIFS('Project Scope'!$AX$8:$AX$107,'Project Scope'!$AW$8:$AW$107,$I23,'Project Scope'!$C$8:$C$107,BP$7),0)","v":0},{"$f":"IF(R23=\"yes\",SUMIFS('Project Scope'!$AO$8:$AO$107,'Project Scope'!$AN$8:$AN$107,$I23,'Project Scope'!$C$8:$C$107,BQ$7)+SUMIFS('Project Scope'!$AX$8:$AX$107,'Project Scope'!$AW$8:$AW$107,$I23,'Project Scope'!$C$8:$C$107,BQ$7),0)","v":0},{"$f":"IF(S23=\"yes\",SUMIFS('Project Scope'!$AO$8:$AO$107,'Project Scope'!$AN$8:$AN$107,$I23,'Project Scope'!$C$8:$C$107,BR$7)+SUMIFS('Project Scope'!$AX$8:$AX$107,'Project Scope'!$AW$8:$AW$107,$I23,'Project Scope'!$C$8:$C$107,BR$7),0)","v":0},{"$f":"IF(T23=\"yes\",SUMIFS('Project Scope'!$AO$8:$AO$107,'Project Scope'!$AN$8:$AN$107,$I23,'Project Scope'!$C$8:$C$107,BS$7)+SUMIFS('Project Scope'!$AX$8:$AX$107,'Project Scope'!$AW$8:$AW$107,$I23,'Project Scope'!$C$8:$C$107,BS$7),0)","v":0},{"$f":"IF(U23=\"yes\",SUMIFS('Project Scope'!$AO$8:$AO$107,'Project Scope'!$AN$8:$AN$107,$I23,'Project Scope'!$C$8:$C$107,BT$7)+SUMIFS('Project Scope'!$AX$8:$AX$107,'Project Scope'!$AW$8:$AW$107,$I23,'Project Scope'!$C$8:$C$107,BT$7),0)","v":0},{"$f":"IF(V23=\"yes\",SUMIFS('Project Scope'!$AO$8:$AO$107,'Project Scope'!$AN$8:$AN$107,$I23,'Project Scope'!$C$8:$C$107,BU$7)+SUMIFS('Project Scope'!$AX$8:$AX$107,'Project Scope'!$AW$8:$AW$107,$I23,'Project Scope'!$C$8:$C$107,BU$7),0)","v":0},{"$f":"IF(W23=\"yes\",SUMIFS('Project Scope'!$AO$8:$AO$107,'Project Scope'!$AN$8:$AN$107,$I23,'Project Scope'!$C$8:$C$107,BV$7)+SUMIFS('Project Scope'!$AX$8:$AX$107,'Project Scope'!$AW$8:$AW$107,$I23,'Project Scope'!$C$8:$C$107,BV$7),0)","v":0},{"$f":"IF(X23=\"yes\",SUMIFS('Project Scope'!$AO$8:$AO$107,'Project Scope'!$AN$8:$AN$107,$I23,'Project Scope'!$C$8:$C$107,BW$7)+SUMIFS('Project Scope'!$AX$8:$AX$107,'Project Scope'!$AW$8:$AW$107,$I23,'Project Scope'!$C$8:$C$107,BW$7),0)","v":0},{"$f":"IF(Y23=\"yes\",SUMIFS('Project Scope'!$AO$8:$AO$107,'Project Scope'!$AN$8:$AN$107,$I23,'Project Scope'!$C$8:$C$107,BX$7)+SUMIFS('Project Scope'!$AX$8:$AX$107,'Project Scope'!$AW$8:$AW$107,$I23,'Project Scope'!$C$8:$C$107,BX$7),0)","v":0},{"$f":"IF(Z23=\"yes\",SUMIFS('Project Scope'!$AO$8:$AO$107,'Project Scope'!$AN$8:$AN$107,$I23,'Project Scope'!$C$8:$C$107,BY$7)+SUMIFS('Project Scope'!$AX$8:$AX$107,'Project Scope'!$AW$8:$AW$107,$I23,'Project Scope'!$C$8:$C$107,BY$7),0)","v":0},{"$f":"IF(AA23=\"yes\",SUMIFS('Project Scope'!$AO$8:$AO$107,'Project Scope'!$AN$8:$AN$107,$I23,'Project Scope'!$C$8:$C$107,BZ$7)+SUMIFS('Project Scope'!$AX$8:$AX$107,'Project Scope'!$AW$8:$AW$107,$I23,'Project Scope'!$C$8:$C$107,BZ$7),0)","v":0},{"$f":"IF(AB23=\"yes\",SUMIFS('Project Scope'!$AO$8:$AO$107,'Project Scope'!$AN$8:$AN$107,$I23,'Project Scope'!$C$8:$C$107,CA$7)+SUMIFS('Project Scope'!$AX$8:$AX$107,'Project Scope'!$AW$8:$AW$107,$I23,'Project Scope'!$C$8:$C$107,CA$7),0)","v":0},{"$f":"IF(AC23=\"yes\",SUMIFS('Project Scope'!$AO$8:$AO$107,'Project Scope'!$AN$8:$AN$107,$I23,'Project Scope'!$C$8:$C$107,CB$7)+SUMIFS('Project Scope'!$AX$8:$AX$107,'Project Scope'!$AW$8:$AW$107,$I23,'Project Scope'!$C$8:$C$107,CB$7),0)","v":0},{"$f":"IF(AD23=\"yes\",SUMIFS('Project Scope'!$AO$8:$AO$107,'Project Scope'!$AN$8:$AN$107,$I23,'Project Scope'!$C$8:$C$107,CC$7)+SUMIFS('Project Scope'!$AX$8:$AX$107,'Project Scope'!$AW$8:$AW$107,$I23,'Project Scope'!$C$8:$C$107,CC$7),0)","v":0},{"$f":"IF(AE23=\"yes\",SUMIFS('Project Scope'!$AO$8:$AO$107,'Project Scope'!$AN$8:$AN$107,$I23,'Project Scope'!$C$8:$C$107,CD$7)+SUMIFS('Project Scope'!$AX$8:$AX$107,'Project Scope'!$AW$8:$AW$107,$I23,'Project Scope'!$C$8:$C$107,CD$7),0)","v":0},{"$f":"IF(AF23=\"yes\",SUMIFS('Project Scope'!$AO$8:$AO$107,'Project Scope'!$AN$8:$AN$107,$I23,'Project Scope'!$C$8:$C$107,CE$7)+SUMIFS('Project Scope'!$AX$8:$AX$107,'Project Scope'!$AW$8:$AW$107,$I23,'Project Scope'!$C$8:$C$107,CE$7),0)","v":0},{"$f":"IF(AG23=\"yes\",SUMIFS('Project Scope'!$AO$8:$AO$107,'Project Scope'!$AN$8:$AN$107,$I23,'Project Scope'!$C$8:$C$107,CF$7)+SUMIFS('Project Scope'!$AX$8:$AX$107,'Project Scope'!$AW$8:$AW$107,$I23,'Project Scope'!$C$8:$C$107,CF$7),0)","v":0},{"$f":"IF(AH23=\"yes\",SUMIFS('Project Scope'!$AO$8:$AO$107,'Project Scope'!$AN$8:$AN$107,$I23,'Project Scope'!$C$8:$C$107,CG$7)+SUMIFS('Project Scope'!$AX$8:$AX$107,'Project Scope'!$AW$8:$AW$107,$I23,'Project Scope'!$C$8:$C$107,CG$7),0)","v":0},{"$f":"IF(AI23=\"yes\",SUMIFS('Project Scope'!$AO$8:$AO$107,'Project Scope'!$AN$8:$AN$107,$I23,'Project Scope'!$C$8:$C$107,CH$7)+SUMIFS('Project Scope'!$AX$8:$AX$107,'Project Scope'!$AW$8:$AW$107,$I23,'Project Scope'!$C$8:$C$107,CH$7),0)","v":0},{"$f":"IF(AJ23=\"yes\",SUMIFS('Project Scope'!$AO$8:$AO$107,'Project Scope'!$AN$8:$AN$107,$I23,'Project Scope'!$C$8:$C$107,CI$7)+SUMIFS('Project Scope'!$AX$8:$AX$107,'Project Scope'!$AW$8:$AW$107,$I23,'Project Scope'!$C$8:$C$107,CI$7),0)","v":0},{"$f":"IF(AK23=\"yes\",SUMIFS('Project Scope'!$AO$8:$AO$107,'Project Scope'!$AN$8:$AN$107,$I23,'Project Scope'!$C$8:$C$107,CJ$7)+SUMIFS('Project Scope'!$AX$8:$AX$107,'Project Scope'!$AW$8:$AW$107,$I23,'Project Scope'!$C$8:$C$107,CJ$7),0)","v":0},{"$f":"IF(AL23=\"yes\",SUMIFS('Project Scope'!$AO$8:$AO$107,'Project Scope'!$AN$8:$AN$107,$I23,'Project Scope'!$C$8:$C$107,CK$7)+SUMIFS('Project Scope'!$AX$8:$AX$107,'Project Scope'!$AW$8:$AW$107,$I23,'Project Scope'!$C$8:$C$107,CK$7),0)","v":0},{"$f":"IF(AM23=\"yes\",SUMIFS('Project Scope'!$AO$8:$AO$107,'Project Scope'!$AN$8:$AN$107,$I23,'Project Scope'!$C$8:$C$107,CL$7)+SUMIFS('Project Scope'!$AX$8:$AX$107,'Project Scope'!$AW$8:$AW$107,$I23,'Project Scope'!$C$8:$C$107,CL$7),0)","v":0},{"$f":"IF(AN23=\"yes\",SUMIFS('Project Scope'!$AO$8:$AO$107,'Project Scope'!$AN$8:$AN$107,$I23,'Project Scope'!$C$8:$C$107,CM$7)+SUMIFS('Project Scope'!$AX$8:$AX$107,'Project Scope'!$AW$8:$AW$107,$I23,'Project Scope'!$C$8:$C$107,CM$7),0)","v":0},{"$f":"IF(AO23=\"yes\",SUMIFS('Project Scope'!$AO$8:$AO$107,'Project Scope'!$AN$8:$AN$107,$I23,'Project Scope'!$C$8:$C$107,CN$7)+SUMIFS('Project Scope'!$AX$8:$AX$107,'Project Scope'!$AW$8:$AW$107,$I23,'Project Scope'!$C$8:$C$107,CN$7),0)","v":0},{"$f":"IF(AP23=\"yes\",SUMIFS('Project Scope'!$AO$8:$AO$107,'Project Scope'!$AN$8:$AN$107,$I23,'Project Scope'!$C$8:$C$107,CO$7)+SUMIFS('Project Scope'!$AX$8:$AX$107,'Project Scope'!$AW$8:$AW$107,$I23,'Project Scope'!$C$8:$C$107,CO$7),0)","v":0},{"$f":"IF(AQ23=\"yes\",SUMIFS('Project Scope'!$AO$8:$AO$107,'Project Scope'!$AN$8:$AN$107,$I23,'Project Scope'!$C$8:$C$107,CP$7)+SUMIFS('Project Scope'!$AX$8:$AX$107,'Project Scope'!$AW$8:$AW$107,$I23,'Project Scope'!$C$8:$C$107,CP$7),0)","v":0},{"$f":"IF(AR23=\"yes\",SUMIFS('Project Scope'!$AO$8:$AO$107,'Project Scope'!$AN$8:$AN$107,$I23,'Project Scope'!$C$8:$C$107,CQ$7)+SUMIFS('Project Scope'!$AX$8:$AX$107,'Project Scope'!$AW$8:$AW$107,$I23,'Project Scope'!$C$8:$C$107,CQ$7),0)","v":0},{"$f":"IF(AS23=\"yes\",SUMIFS('Project Scope'!$AO$8:$AO$107,'Project Scope'!$AN$8:$AN$107,$I23,'Project Scope'!$C$8:$C$107,CR$7)+SUMIFS('Project Scope'!$AX$8:$AX$107,'Project Scope'!$AW$8:$AW$107,$I23,'Project Scope'!$C$8:$C$107,CR$7),0)","v":0},{"$f":"IF(AT23=\"yes\",SUMIFS('Project Scope'!$AO$8:$AO$107,'Project Scope'!$AN$8:$AN$107,$I23,'Project Scope'!$C$8:$C$107,CS$7)+SUMIFS('Project Scope'!$AX$8:$AX$107,'Project Scope'!$AW$8:$AW$107,$I23,'Project Scope'!$C$8:$C$107,CS$7),0)","v":0},{"$f":"IF(AU23=\"yes\",SUMIFS('Project Scope'!$AO$8:$AO$107,'Project Scope'!$AN$8:$AN$107,$I23,'Project Scope'!$C$8:$C$107,CT$7)+SUMIFS('Project Scope'!$AX$8:$AX$107,'Project Scope'!$AW$8:$AW$107,$I23,'Project Scope'!$C$8:$C$107,CT$7),0)","v":0},{"$f":"IF(AV23=\"yes\",SUMIFS('Project Scope'!$AO$8:$AO$107,'Project Scope'!$AN$8:$AN$107,$I23,'Project Scope'!$C$8:$C$107,CU$7)+SUMIFS('Project Scope'!$AX$8:$AX$107,'Project Scope'!$AW$8:$AW$107,$I23,'Project Scope'!$C$8:$C$107,CU$7),0)","v":0},{"$f":"IF(AW23=\"yes\",SUMIFS('Project Scope'!$AO$8:$AO$107,'Project Scope'!$AN$8:$AN$107,$I23,'Project Scope'!$C$8:$C$107,CV$7)+SUMIFS('Project Scope'!$AX$8:$AX$107,'Project Scope'!$AW$8:$AW$107,$I23,'Project Scope'!$C$8:$C$107,CV$7),0)","v":0},{"$f":"IF(AX23=\"yes\",SUMIFS('Project Scope'!$AO$8:$AO$107,'Project Scope'!$AN$8:$AN$107,$I23,'Project Scope'!$C$8:$C$107,CW$7)+SUMIFS('Project Scope'!$AX$8:$AX$107,'Project Scope'!$AW$8:$AW$107,$I23,'Project Scope'!$C$8:$C$107,CW$7),0)","v":0},{"$f":"IF(AY23=\"yes\",SUMIFS('Project Scope'!$AO$8:$AO$107,'Project Scope'!$AN$8:$AN$107,$I23,'Project Scope'!$C$8:$C$107,CX$7)+SUMIFS('Project Scope'!$AX$8:$AX$107,'Project Scope'!$AW$8:$AW$107,$I23,'Project Scope'!$C$8:$C$107,CX$7),0)","v":0},{"$f":"IF(AZ23=\"yes\",SUMIFS('Project Scope'!$AO$8:$AO$107,'Project Scope'!$AN$8:$AN$107,$I23,'Project Scope'!$C$8:$C$107,CY$7)+SUMIFS('Project Scope'!$AX$8:$AX$107,'Project Scope'!$AW$8:$AW$107,$I23,'Project Scope'!$C$8:$C$107,CY$7),0)","v":0},{"$f":"IF(BA23=\"yes\",SUMIFS('Project Scope'!$AO$8:$AO$107,'Project Scope'!$AN$8:$AN$107,$I23,'Project Scope'!$C$8:$C$107,CZ$7)+SUMIFS('Project Scope'!$AX$8:$AX$107,'Project Scope'!$AW$8:$AW$107,$I23,'Project Scope'!$C$8:$C$107,CZ$7),0)","v":0},{"$f":"IF(BB23=\"yes\",SUMIFS('Project Scope'!$AO$8:$AO$107,'Project Scope'!$AN$8:$AN$107,$I23,'Project Scope'!$C$8:$C$107,DA$7)+SUMIFS('Project Scope'!$AX$8:$AX$107,'Project Scope'!$AW$8:$AW$107,$I23,'Project Scope'!$C$8:$C$107,DA$7),0)","v":0},{"$f":"IF(BC23=\"yes\",SUMIFS('Project Scope'!$AO$8:$AO$107,'Project Scope'!$AN$8:$AN$107,$I23,'Project Scope'!$C$8:$C$107,DB$7)+SUMIFS('Project Scope'!$AX$8:$AX$107,'Project Scope'!$AW$8:$AW$107,$I23,'Project Scope'!$C$8:$C$107,DB$7),0)","v":0},{"$f":"IF(BD23=\"yes\",SUMIFS('Project Scope'!$AO$8:$AO$107,'Project Scope'!$AN$8:$AN$107,$I23,'Project Scope'!$C$8:$C$107,DC$7)+SUMIFS('Project Scope'!$AX$8:$AX$107,'Project Scope'!$AW$8:$AW$107,$I23,'Project Scope'!$C$8:$C$107,DC$7),0)","v":0},{"$f":"IF(BE23=\"yes\",SUMIFS('Project Scope'!$AO$8:$AO$107,'Project Scope'!$AN$8:$AN$107,$I23,'Project Scope'!$C$8:$C$107,DD$7)+SUMIFS('Project Scope'!$AX$8:$AX$107,'Project Scope'!$AW$8:$AW$107,$I23,'Project Scope'!$C$8:$C$107,DD$7),0)","v":0},{"$f":"IF(BF23=\"yes\",SUMIFS('Project Scope'!$AO$8:$AO$107,'Project Scope'!$AN$8:$AN$107,$I23,'Project Scope'!$C$8:$C$107,DE$7)+SUMIFS('Project Scope'!$AX$8:$AX$107,'Project Scope'!$AW$8:$AW$107,$I23,'Project Scope'!$C$8:$C$107,DE$7),0)","v":0},{"$f":"IF(BG23=\"yes\",SUMIFS('Project Scope'!$AO$8:$AO$107,'Project Scope'!$AN$8:$AN$107,$I23,'Project Scope'!$C$8:$C$107,DF$7)+SUMIFS('Project Scope'!$AX$8:$AX$107,'Project Scope'!$AW$8:$AW$107,$I23,'Project Scope'!$C$8:$C$107,DF$7),0)","v":0},{"$f":"IF(BH23=\"yes\",SUMIFS('Project Scope'!$AO$8:$AO$107,'Project Scope'!$AN$8:$AN$107,$I23,'Project Scope'!$C$8:$C$107,DG$7)+SUMIFS('Project Scope'!$AX$8:$AX$107,'Project Scope'!$AW$8:$AW$107,$I23,'Project Scope'!$C$8:$C$107,DG$7),0)","v":0},{"$f":"IF(BI23=\"yes\",SUMIFS('Project Scope'!$AO$8:$AO$107,'Project Scope'!$AN$8:$AN$107,$I23,'Project Scope'!$C$8:$C$107,DH$7)+SUMIFS('Project Scope'!$AX$8:$AX$107,'Project Scope'!$AW$8:$AW$107,$I23,'Project Scope'!$C$8:$C$107,DH$7),0)","v":0},{"$f":"IF(BJ23=\"yes\",SUMIFS('Project Scope'!$AO$8:$AO$107,'Project Scope'!$AN$8:$AN$107,$I23,'Project Scope'!$C$8:$C$107,DI$7)+SUMIFS('Project Scope'!$AX$8:$AX$107,'Project Scope'!$AW$8:$AW$107,$I23,'Project Scope'!$C$8:$C$107,DI$7),0)","v":0},{"$f":"IF(BK23=\"yes\",SUMIFS('Project Scope'!$AO$8:$AO$107,'Project Scope'!$AN$8:$AN$107,$I23,'Project Scope'!$C$8:$C$107,DJ$7)+SUMIFS('Project Scope'!$AX$8:$AX$107,'Project Scope'!$AW$8:$AW$107,$I23,'Project Scope'!$C$8:$C$107,DJ$7),0)","v":0},{"$f":"IF(BL23=\"yes\",SUMIFS('Project Scope'!$AO$8:$AO$107,'Project Scope'!$AN$8:$AN$107,$I23,'Project Scope'!$C$8:$C$107,DK$7)+SUMIFS('Project Scope'!$AX$8:$AX$107,'Project Scope'!$AW$8:$AW$107,$I23,'Project Scope'!$C$8:$C$107,DK$7),0)","v":0},null,"","","","","","","","","","","","","","","","","","","","","","","","","","","","","","","","","","","","","","","","","","","","","","","","","","",null,""]
[null,null,null,null,null,null,null,null,null,null,null,{"$f":"IF($C24=\"additional labor hours\",$K24*'Project Information'!$D$12,$K24*$J24)*IF($F24=\"Per Measure\",SUM($BN24:$DK24),1)","v":0},{"$f":"IF($C24=\"\",0,IF(VLOOKUP($C24,'Other Data'!$B$146:$C$156,2,FALSE)=\"M\",$L24,0))","v":0},0,null,null,null,null,null,null,null,null,null,null,null,null,null,null,null,null,null,null,null,null,null,null,null,null,null,null,null,null,null,null,null,null,null,null,null,null,null,null,null,null,null,null,null,null,null,null,null,null,null,null,null,{"$f":"IF(O24=\"yes\",SUMIFS('Project Scope'!$AO$8:$AO$107,'Project Scope'!$AN$8:$AN$107,$I24,'Project Scope'!$C$8:$C$107,BN$7)+SUMIFS('Project Scope'!$AX$8:$AX$107,'Project Scope'!$AW$8:$AW$107,$I24,'Project Scope'!$C$8:$C$107,BN$7),0)","v":0},{"$f":"IF(P24=\"yes\",SUMIFS('Project Scope'!$AO$8:$AO$107,'Project Scope'!$AN$8:$AN$107,$I24,'Project Scope'!$C$8:$C$107,BO$7)+SUMIFS('Project Scope'!$AX$8:$AX$107,'Project Scope'!$AW$8:$AW$107,$I24,'Project Scope'!$C$8:$C$107,BO$7),0)","v":0},{"$f":"IF(Q24=\"yes\",SUMIFS('Project Scope'!$AO$8:$AO$107,'Project Scope'!$AN$8:$AN$107,$I24,'Project Scope'!$C$8:$C$107,BP$7)+SUMIFS('Project Scope'!$AX$8:$AX$107,'Project Scope'!$AW$8:$AW$107,$I24,'Project Scope'!$C$8:$C$107,BP$7),0)","v":0},{"$f":"IF(R24=\"yes\",SUMIFS('Project Scope'!$AO$8:$AO$107,'Project Scope'!$AN$8:$AN$107,$I24,'Project Scope'!$C$8:$C$107,BQ$7)+SUMIFS('Project Scope'!$AX$8:$AX$107,'Project Scope'!$AW$8:$AW$107,$I24,'Project Scope'!$C$8:$C$107,BQ$7),0)","v":0},{"$f":"IF(S24=\"yes\",SUMIFS('Project Scope'!$AO$8:$AO$107,'Project Scope'!$AN$8:$AN$107,$I24,'Project Scope'!$C$8:$C$107,BR$7)+SUMIFS('Project Scope'!$AX$8:$AX$107,'Project Scope'!$AW$8:$AW$107,$I24,'Project Scope'!$C$8:$C$107,BR$7),0)","v":0},{"$f":"IF(T24=\"yes\",SUMIFS('Project Scope'!$AO$8:$AO$107,'Project Scope'!$AN$8:$AN$107,$I24,'Project Scope'!$C$8:$C$107,BS$7)+SUMIFS('Project Scope'!$AX$8:$AX$107,'Project Scope'!$AW$8:$AW$107,$I24,'Project Scope'!$C$8:$C$107,BS$7),0)","v":0},{"$f":"IF(U24=\"yes\",SUMIFS('Project Scope'!$AO$8:$AO$107,'Project Scope'!$AN$8:$AN$107,$I24,'Project Scope'!$C$8:$C$107,BT$7)+SUMIFS('Project Scope'!$AX$8:$AX$107,'Project Scope'!$AW$8:$AW$107,$I24,'Project Scope'!$C$8:$C$107,BT$7),0)","v":0},{"$f":"IF(V24=\"yes\",SUMIFS('Project Scope'!$AO$8:$AO$107,'Project Scope'!$AN$8:$AN$107,$I24,'Project Scope'!$C$8:$C$107,BU$7)+SUMIFS('Project Scope'!$AX$8:$AX$107,'Project Scope'!$AW$8:$AW$107,$I24,'Project Scope'!$C$8:$C$107,BU$7),0)","v":0},{"$f":"IF(W24=\"yes\",SUMIFS('Project Scope'!$AO$8:$AO$107,'Project Scope'!$AN$8:$AN$107,$I24,'Project Scope'!$C$8:$C$107,BV$7)+SUMIFS('Project Scope'!$AX$8:$AX$107,'Project Scope'!$AW$8:$AW$107,$I24,'Project Scope'!$C$8:$C$107,BV$7),0)","v":0},{"$f":"IF(X24=\"yes\",SUMIFS('Project Scope'!$AO$8:$AO$107,'Project Scope'!$AN$8:$AN$107,$I24,'Project Scope'!$C$8:$C$107,BW$7)+SUMIFS('Project Scope'!$AX$8:$AX$107,'Project Scope'!$AW$8:$AW$107,$I24,'Project Scope'!$C$8:$C$107,BW$7),0)","v":0},{"$f":"IF(Y24=\"yes\",SUMIFS('Project Scope'!$AO$8:$AO$107,'Project Scope'!$AN$8:$AN$107,$I24,'Project Scope'!$C$8:$C$107,BX$7)+SUMIFS('Project Scope'!$AX$8:$AX$107,'Project Scope'!$AW$8:$AW$107,$I24,'Project Scope'!$C$8:$C$107,BX$7),0)","v":0},{"$f":"IF(Z24=\"yes\",SUMIFS('Project Scope'!$AO$8:$AO$107,'Project Scope'!$AN$8:$AN$107,$I24,'Project Scope'!$C$8:$C$107,BY$7)+SUMIFS('Project Scope'!$AX$8:$AX$107,'Project Scope'!$AW$8:$AW$107,$I24,'Project Scope'!$C$8:$C$107,BY$7),0)","v":0},{"$f":"IF(AA24=\"yes\",SUMIFS('Project Scope'!$AO$8:$AO$107,'Project Scope'!$AN$8:$AN$107,$I24,'Project Scope'!$C$8:$C$107,BZ$7)+SUMIFS('Project Scope'!$AX$8:$AX$107,'Project Scope'!$AW$8:$AW$107,$I24,'Project Scope'!$C$8:$C$107,BZ$7),0)","v":0},{"$f":"IF(AB24=\"yes\",SUMIFS('Project Scope'!$AO$8:$AO$107,'Project Scope'!$AN$8:$AN$107,$I24,'Project Scope'!$C$8:$C$107,CA$7)+SUMIFS('Project Scope'!$AX$8:$AX$107,'Project Scope'!$AW$8:$AW$107,$I24,'Project Scope'!$C$8:$C$107,CA$7),0)","v":0},{"$f":"IF(AC24=\"yes\",SUMIFS('Project Scope'!$AO$8:$AO$107,'Project Scope'!$AN$8:$AN$107,$I24,'Project Scope'!$C$8:$C$107,CB$7)+SUMIFS('Project Scope'!$AX$8:$AX$107,'Project Scope'!$AW$8:$AW$107,$I24,'Project Scope'!$C$8:$C$107,CB$7),0)","v":0},{"$f":"IF(AD24=\"yes\",SUMIFS('Project Scope'!$AO$8:$AO$107,'Project Scope'!$AN$8:$AN$107,$I24,'Project Scope'!$C$8:$C$107,CC$7)+SUMIFS('Project Scope'!$AX$8:$AX$107,'Project Scope'!$AW$8:$AW$107,$I24,'Project Scope'!$C$8:$C$107,CC$7),0)","v":0},{"$f":"IF(AE24=\"yes\",SUMIFS('Project Scope'!$AO$8:$AO$107,'Project Scope'!$AN$8:$AN$107,$I24,'Project Scope'!$C$8:$C$107,CD$7)+SUMIFS('Project Scope'!$AX$8:$AX$107,'Project Scope'!$AW$8:$AW$107,$I24,'Project Scope'!$C$8:$C$107,CD$7),0)","v":0},{"$f":"IF(AF24=\"yes\",SUMIFS('Project Scope'!$AO$8:$AO$107,'Project Scope'!$AN$8:$AN$107,$I24,'Project Scope'!$C$8:$C$107,CE$7)+SUMIFS('Project Scope'!$AX$8:$AX$107,'Project Scope'!$AW$8:$AW$107,$I24,'Project Scope'!$C$8:$C$107,CE$7),0)","v":0},{"$f":"IF(AG24=\"yes\",SUMIFS('Project Scope'!$AO$8:$AO$107,'Project Scope'!$AN$8:$AN$107,$I24,'Project Scope'!$C$8:$C$107,CF$7)+SUMIFS('Project Scope'!$AX$8:$AX$107,'Project Scope'!$AW$8:$AW$107,$I24,'Project Scope'!$C$8:$C$107,CF$7),0)","v":0},{"$f":"IF(AH24=\"yes\",SUMIFS('Project Scope'!$AO$8:$AO$107,'Project Scope'!$AN$8:$AN$107,$I24,'Project Scope'!$C$8:$C$107,CG$7)+SUMIFS('Project Scope'!$AX$8:$AX$107,'Project Scope'!$AW$8:$AW$107,$I24,'Project Scope'!$C$8:$C$107,CG$7),0)","v":0},{"$f":"IF(AI24=\"yes\",SUMIFS('Project Scope'!$AO$8:$AO$107,'Project Scope'!$AN$8:$AN$107,$I24,'Project Scope'!$C$8:$C$107,CH$7)+SUMIFS('Project Scope'!$AX$8:$AX$107,'Project Scope'!$AW$8:$AW$107,$I24,'Project Scope'!$C$8:$C$107,CH$7),0)","v":0},{"$f":"IF(AJ24=\"yes\",SUMIFS('Project Scope'!$AO$8:$AO$107,'Project Scope'!$AN$8:$AN$107,$I24,'Project Scope'!$C$8:$C$107,CI$7)+SUMIFS('Project Scope'!$AX$8:$AX$107,'Project Scope'!$AW$8:$AW$107,$I24,'Project Scope'!$C$8:$C$107,CI$7),0)","v":0},{"$f":"IF(AK24=\"yes\",SUMIFS('Project Scope'!$AO$8:$AO$107,'Project Scope'!$AN$8:$AN$107,$I24,'Project Scope'!$C$8:$C$107,CJ$7)+SUMIFS('Project Scope'!$AX$8:$AX$107,'Project Scope'!$AW$8:$AW$107,$I24,'Project Scope'!$C$8:$C$107,CJ$7),0)","v":0},{"$f":"IF(AL24=\"yes\",SUMIFS('Project Scope'!$AO$8:$AO$107,'Project Scope'!$AN$8:$AN$107,$I24,'Project Scope'!$C$8:$C$107,CK$7)+SUMIFS('Project Scope'!$AX$8:$AX$107,'Project Scope'!$AW$8:$AW$107,$I24,'Project Scope'!$C$8:$C$107,CK$7),0)","v":0},{"$f":"IF(AM24=\"yes\",SUMIFS('Project Scope'!$AO$8:$AO$107,'Project Scope'!$AN$8:$AN$107,$I24,'Project Scope'!$C$8:$C$107,CL$7)+SUMIFS('Project Scope'!$AX$8:$AX$107,'Project Scope'!$AW$8:$AW$107,$I24,'Project Scope'!$C$8:$C$107,CL$7),0)","v":0},{"$f":"IF(AN24=\"yes\",SUMIFS('Project Scope'!$AO$8:$AO$107,'Project Scope'!$AN$8:$AN$107,$I24,'Project Scope'!$C$8:$C$107,CM$7)+SUMIFS('Project Scope'!$AX$8:$AX$107,'Project Scope'!$AW$8:$AW$107,$I24,'Project Scope'!$C$8:$C$107,CM$7),0)","v":0},{"$f":"IF(AO24=\"yes\",SUMIFS('Project Scope'!$AO$8:$AO$107,'Project Scope'!$AN$8:$AN$107,$I24,'Project Scope'!$C$8:$C$107,CN$7)+SUMIFS('Project Scope'!$AX$8:$AX$107,'Project Scope'!$AW$8:$AW$107,$I24,'Project Scope'!$C$8:$C$107,CN$7),0)","v":0},{"$f":"IF(AP24=\"yes\",SUMIFS('Project Scope'!$AO$8:$AO$107,'Project Scope'!$AN$8:$AN$107,$I24,'Project Scope'!$C$8:$C$107,CO$7)+SUMIFS('Project Scope'!$AX$8:$AX$107,'Project Scope'!$AW$8:$AW$107,$I24,'Project Scope'!$C$8:$C$107,CO$7),0)","v":0},{"$f":"IF(AQ24=\"yes\",SUMIFS('Project Scope'!$AO$8:$AO$107,'Project Scope'!$AN$8:$AN$107,$I24,'Project Scope'!$C$8:$C$107,CP$7)+SUMIFS('Project Scope'!$AX$8:$AX$107,'Project Scope'!$AW$8:$AW$107,$I24,'Project Scope'!$C$8:$C$107,CP$7),0)","v":0},{"$f":"IF(AR24=\"yes\",SUMIFS('Project Scope'!$AO$8:$AO$107,'Project Scope'!$AN$8:$AN$107,$I24,'Project Scope'!$C$8:$C$107,CQ$7)+SUMIFS('Project Scope'!$AX$8:$AX$107,'Project Scope'!$AW$8:$AW$107,$I24,'Project Scope'!$C$8:$C$107,CQ$7),0)","v":0},{"$f":"IF(AS24=\"yes\",SUMIFS('Project Scope'!$AO$8:$AO$107,'Project Scope'!$AN$8:$AN$107,$I24,'Project Scope'!$C$8:$C$107,CR$7)+SUMIFS('Project Scope'!$AX$8:$AX$107,'Project Scope'!$AW$8:$AW$107,$I24,'Project Scope'!$C$8:$C$107,CR$7),0)","v":0},{"$f":"IF(AT24=\"yes\",SUMIFS('Project Scope'!$AO$8:$AO$107,'Project Scope'!$AN$8:$AN$107,$I24,'Project Scope'!$C$8:$C$107,CS$7)+SUMIFS('Project Scope'!$AX$8:$AX$107,'Project Scope'!$AW$8:$AW$107,$I24,'Project Scope'!$C$8:$C$107,CS$7),0)","v":0},{"$f":"IF(AU24=\"yes\",SUMIFS('Project Scope'!$AO$8:$AO$107,'Project Scope'!$AN$8:$AN$107,$I24,'Project Scope'!$C$8:$C$107,CT$7)+SUMIFS('Project Scope'!$AX$8:$AX$107,'Project Scope'!$AW$8:$AW$107,$I24,'Project Scope'!$C$8:$C$107,CT$7),0)","v":0},{"$f":"IF(AV24=\"yes\",SUMIFS('Project Scope'!$AO$8:$AO$107,'Project Scope'!$AN$8:$AN$107,$I24,'Project Scope'!$C$8:$C$107,CU$7)+SUMIFS('Project Scope'!$AX$8:$AX$107,'Project Scope'!$AW$8:$AW$107,$I24,'Project Scope'!$C$8:$C$107,CU$7),0)","v":0},{"$f":"IF(AW24=\"yes\",SUMIFS('Project Scope'!$AO$8:$AO$107,'Project Scope'!$AN$8:$AN$107,$I24,'Project Scope'!$C$8:$C$107,CV$7)+SUMIFS('Project Scope'!$AX$8:$AX$107,'Project Scope'!$AW$8:$AW$107,$I24,'Project Scope'!$C$8:$C$107,CV$7),0)","v":0},{"$f":"IF(AX24=\"yes\",SUMIFS('Project Scope'!$AO$8:$AO$107,'Project Scope'!$AN$8:$AN$107,$I24,'Project Scope'!$C$8:$C$107,CW$7)+SUMIFS('Project Scope'!$AX$8:$AX$107,'Project Scope'!$AW$8:$AW$107,$I24,'Project Scope'!$C$8:$C$107,CW$7),0)","v":0},{"$f":"IF(AY24=\"yes\",SUMIFS('Project Scope'!$AO$8:$AO$107,'Project Scope'!$AN$8:$AN$107,$I24,'Project Scope'!$C$8:$C$107,CX$7)+SUMIFS('Project Scope'!$AX$8:$AX$107,'Project Scope'!$AW$8:$AW$107,$I24,'Project Scope'!$C$8:$C$107,CX$7),0)","v":0},{"$f":"IF(AZ24=\"yes\",SUMIFS('Project Scope'!$AO$8:$AO$107,'Project Scope'!$AN$8:$AN$107,$I24,'Project Scope'!$C$8:$C$107,CY$7)+SUMIFS('Project Scope'!$AX$8:$AX$107,'Project Scope'!$AW$8:$AW$107,$I24,'Project Scope'!$C$8:$C$107,CY$7),0)","v":0},{"$f":"IF(BA24=\"yes\",SUMIFS('Project Scope'!$AO$8:$AO$107,'Project Scope'!$AN$8:$AN$107,$I24,'Project Scope'!$C$8:$C$107,CZ$7)+SUMIFS('Project Scope'!$AX$8:$AX$107,'Project Scope'!$AW$8:$AW$107,$I24,'Project Scope'!$C$8:$C$107,CZ$7),0)","v":0},{"$f":"IF(BB24=\"yes\",SUMIFS('Project Scope'!$AO$8:$AO$107,'Project Scope'!$AN$8:$AN$107,$I24,'Project Scope'!$C$8:$C$107,DA$7)+SUMIFS('Project Scope'!$AX$8:$AX$107,'Project Scope'!$AW$8:$AW$107,$I24,'Project Scope'!$C$8:$C$107,DA$7),0)","v":0},{"$f":"IF(BC24=\"yes\",SUMIFS('Project Scope'!$AO$8:$AO$107,'Project Scope'!$AN$8:$AN$107,$I24,'Project Scope'!$C$8:$C$107,DB$7)+SUMIFS('Project Scope'!$AX$8:$AX$107,'Project Scope'!$AW$8:$AW$107,$I24,'Project Scope'!$C$8:$C$107,DB$7),0)","v":0},{"$f":"IF(BD24=\"yes\",SUMIFS('Project Scope'!$AO$8:$AO$107,'Project Scope'!$AN$8:$AN$107,$I24,'Project Scope'!$C$8:$C$107,DC$7)+SUMIFS('Project Scope'!$AX$8:$AX$107,'Project Scope'!$AW$8:$AW$107,$I24,'Project Scope'!$C$8:$C$107,DC$7),0)","v":0},{"$f":"IF(BE24=\"yes\",SUMIFS('Project Scope'!$AO$8:$AO$107,'Project Scope'!$AN$8:$AN$107,$I24,'Project Scope'!$C$8:$C$107,DD$7)+SUMIFS('Project Scope'!$AX$8:$AX$107,'Project Scope'!$AW$8:$AW$107,$I24,'Project Scope'!$C$8:$C$107,DD$7),0)","v":0},{"$f":"IF(BF24=\"yes\",SUMIFS('Project Scope'!$AO$8:$AO$107,'Project Scope'!$AN$8:$AN$107,$I24,'Project Scope'!$C$8:$C$107,DE$7)+SUMIFS('Project Scope'!$AX$8:$AX$107,'Project Scope'!$AW$8:$AW$107,$I24,'Project Scope'!$C$8:$C$107,DE$7),0)","v":0},{"$f":"IF(BG24=\"yes\",SUMIFS('Project Scope'!$AO$8:$AO$107,'Project Scope'!$AN$8:$AN$107,$I24,'Project Scope'!$C$8:$C$107,DF$7)+SUMIFS('Project Scope'!$AX$8:$AX$107,'Project Scope'!$AW$8:$AW$107,$I24,'Project Scope'!$C$8:$C$107,DF$7),0)","v":0},{"$f":"IF(BH24=\"yes\",SUMIFS('Project Scope'!$AO$8:$AO$107,'Project Scope'!$AN$8:$AN$107,$I24,'Project Scope'!$C$8:$C$107,DG$7)+SUMIFS('Project Scope'!$AX$8:$AX$107,'Project Scope'!$AW$8:$AW$107,$I24,'Project Scope'!$C$8:$C$107,DG$7),0)","v":0},{"$f":"IF(BI24=\"yes\",SUMIFS('Project Scope'!$AO$8:$AO$107,'Project Scope'!$AN$8:$AN$107,$I24,'Project Scope'!$C$8:$C$107,DH$7)+SUMIFS('Project Scope'!$AX$8:$AX$107,'Project Scope'!$AW$8:$AW$107,$I24,'Project Scope'!$C$8:$C$107,DH$7),0)","v":0},{"$f":"IF(BJ24=\"yes\",SUMIFS('Project Scope'!$AO$8:$AO$107,'Project Scope'!$AN$8:$AN$107,$I24,'Project Scope'!$C$8:$C$107,DI$7)+SUMIFS('Project Scope'!$AX$8:$AX$107,'Project Scope'!$AW$8:$AW$107,$I24,'Project Scope'!$C$8:$C$107,DI$7),0)","v":0},{"$f":"IF(BK24=\"yes\",SUMIFS('Project Scope'!$AO$8:$AO$107,'Project Scope'!$AN$8:$AN$107,$I24,'Project Scope'!$C$8:$C$107,DJ$7)+SUMIFS('Project Scope'!$AX$8:$AX$107,'Project Scope'!$AW$8:$AW$107,$I24,'Project Scope'!$C$8:$C$107,DJ$7),0)","v":0},{"$f":"IF(BL24=\"yes\",SUMIFS('Project Scope'!$AO$8:$AO$107,'Project Scope'!$AN$8:$AN$107,$I24,'Project Scope'!$C$8:$C$107,DK$7)+SUMIFS('Project Scope'!$AX$8:$AX$107,'Project Scope'!$AW$8:$AW$107,$I24,'Project Scope'!$C$8:$C$107,DK$7),0)","v":0},null,"",{"$f":"IF($BN24>0,DN$7,\"\")","v":""},{"$f":"IF($BN24>0,DO$7,\"\")","v":""},{"$f":"IF($BN24>0,DP$7,\"\")","v":""},{"$f":"IF($BN24>0,DQ$7,\"\")","v":""},{"$f":"IF($BN24>0,DR$7,\"\")","v":""},{"$f":"IF($BN24>0,DS$7,\"\")","v":""},"","","","","","","","","","","","","","","","","","","","","","","","","",{"$f":"IF($BN24>0,ES$7,\"\")","v":""},"","","","","","","","","","","","","","","","","",null,""]
[null,null,null,null,null,null,null,null,null,null,null,{"$f":"IF($C25=\"additional labor hours\",$K25*'Project Information'!$D$12,$K25*$J25)*IF($F25=\"Per Measure\",SUM($BN25:$DK25),1)","v":0},{"$f":"IF($C25=\"\",0,IF(VLOOKUP($C25,'Other Data'!$B$146:$C$156,2,FALSE)=\"M\",$L25,0))","v":0},0,null,null,null,null,null,null,null,null,null,null,null,null,null,null,null,null,null,null,null,null,null,null,null,null,null,null,null,null,null,null,null,null,null,null,null,null,null,null,null,null,null,null,null,null,null,null,null,null,null,null,null,{"$f":"IF(O25=\"yes\",SUMIFS('Project Scope'!$AO$8:$AO$107,'Project Scope'!$AN$8:$AN$107,$I25,'Project Scope'!$C$8:$C$107,BN$7)+SUMIFS('Project Scope'!$AX$8:$AX$107,'Project Scope'!$AW$8:$AW$107,$I25,'Project Scope'!$C$8:$C$107,BN$7),0)","v":0},{"$f":"IF(P25=\"yes\",SUMIFS('Project Scope'!$AO$8:$AO$107,'Project Scope'!$AN$8:$AN$107,$I25,'Project Scope'!$C$8:$C$107,BO$7)+SUMIFS('Project Scope'!$AX$8:$AX$107,'Project Scope'!$AW$8:$AW$107,$I25,'Project Scope'!$C$8:$C$107,BO$7),0)","v":0},{"$f":"IF(Q25=\"yes\",SUMIFS('Project Scope'!$AO$8:$AO$107,'Project Scope'!$AN$8:$AN$107,$I25,'Project Scope'!$C$8:$C$107,BP$7)+SUMIFS('Project Scope'!$AX$8:$AX$107,'Project Scope'!$AW$8:$AW$107,$I25,'Project Scope'!$C$8:$C$107,BP$7),0)","v":0},{"$f":"IF(R25=\"yes\",SUMIFS('Project Scope'!$AO$8:$AO$107,'Project Scope'!$AN$8:$AN$107,$I25,'Project Scope'!$C$8:$C$107,BQ$7)+SUMIFS('Project Scope'!$AX$8:$AX$107,'Project Scope'!$AW$8:$AW$107,$I25,'Project Scope'!$C$8:$C$107,BQ$7),0)","v":0},{"$f":"IF(S25=\"yes\",SUMIFS('Project Scope'!$AO$8:$AO$107,'Project Scope'!$AN$8:$AN$107,$I25,'Project Scope'!$C$8:$C$107,BR$7)+SUMIFS('Project Scope'!$AX$8:$AX$107,'Project Scope'!$AW$8:$AW$107,$I25,'Project Scope'!$C$8:$C$107,BR$7),0)","v":0},{"$f":"IF(T25=\"yes\",SUMIFS('Project Scope'!$AO$8:$AO$107,'Project Scope'!$AN$8:$AN$107,$I25,'Project Scope'!$C$8:$C$107,BS$7)+SUMIFS('Project Scope'!$AX$8:$AX$107,'Project Scope'!$AW$8:$AW$107,$I25,'Project Scope'!$C$8:$C$107,BS$7),0)","v":0},{"$f":"IF(U25=\"yes\",SUMIFS('Project Scope'!$AO$8:$AO$107,'Project Scope'!$AN$8:$AN$107,$I25,'Project Scope'!$C$8:$C$107,BT$7)+SUMIFS('Project Scope'!$AX$8:$AX$107,'Project Scope'!$AW$8:$AW$107,$I25,'Project Scope'!$C$8:$C$107,BT$7),0)","v":0},{"$f":"IF(V25=\"yes\",SUMIFS('Project Scope'!$AO$8:$AO$107,'Project Scope'!$AN$8:$AN$107,$I25,'Project Scope'!$C$8:$C$107,BU$7)+SUMIFS('Project Scope'!$AX$8:$AX$107,'Project Scope'!$AW$8:$AW$107,$I25,'Project Scope'!$C$8:$C$107,BU$7),0)","v":0},{"$f":"IF(W25=\"yes\",SUMIFS('Project Scope'!$AO$8:$AO$107,'Project Scope'!$AN$8:$AN$107,$I25,'Project Scope'!$C$8:$C$107,BV$7)+SUMIFS('Project Scope'!$AX$8:$AX$107,'Project Scope'!$AW$8:$AW$107,$I25,'Project Scope'!$C$8:$C$107,BV$7),0)","v":0},{"$f":"IF(X25=\"yes\",SUMIFS('Project Scope'!$AO$8:$AO$107,'Project Scope'!$AN$8:$AN$107,$I25,'Project Scope'!$C$8:$C$107,BW$7)+SUMIFS('Project Scope'!$AX$8:$AX$107,'Project Scope'!$AW$8:$AW$107,$I25,'Project Scope'!$C$8:$C$107,BW$7),0)","v":0},{"$f":"IF(Y25=\"yes\",SUMIFS('Project Scope'!$AO$8:$AO$107,'Project Scope'!$AN$8:$AN$107,$I25,'Project Scope'!$C$8:$C$107,BX$7)+SUMIFS('Project Scope'!$AX$8:$AX$107,'Project Scope'!$AW$8:$AW$107,$I25,'Project Scope'!$C$8:$C$107,BX$7),0)","v":0},{"$f":"IF(Z25=\"yes\",SUMIFS('Project Scope'!$AO$8:$AO$107,'Project Scope'!$AN$8:$AN$107,$I25,'Project Scope'!$C$8:$C$107,BY$7)+SUMIFS('Project Scope'!$AX$8:$AX$107,'Project Scope'!$AW$8:$AW$107,$I25,'Project Scope'!$C$8:$C$107,BY$7),0)","v":0},{"$f":"IF(AA25=\"yes\",SUMIFS('Project Scope'!$AO$8:$AO$107,'Project Scope'!$AN$8:$AN$107,$I25,'Project Scope'!$C$8:$C$107,BZ$7)+SUMIFS('Project Scope'!$AX$8:$AX$107,'Project Scope'!$AW$8:$AW$107,$I25,'Project Scope'!$C$8:$C$107,BZ$7),0)","v":0},{"$f":"IF(AB25=\"yes\",SUMIFS('Project Scope'!$AO$8:$AO$107,'Project Scope'!$AN$8:$AN$107,$I25,'Project Scope'!$C$8:$C$107,CA$7)+SUMIFS('Project Scope'!$AX$8:$AX$107,'Project Scope'!$AW$8:$AW$107,$I25,'Project Scope'!$C$8:$C$107,CA$7),0)","v":0},{"$f":"IF(AC25=\"yes\",SUMIFS('Project Scope'!$AO$8:$AO$107,'Project Scope'!$AN$8:$AN$107,$I25,'Project Scope'!$C$8:$C$107,CB$7)+SUMIFS('Project Scope'!$AX$8:$AX$107,'Project Scope'!$AW$8:$AW$107,$I25,'Project Scope'!$C$8:$C$107,CB$7),0)","v":0},{"$f":"IF(AD25=\"yes\",SUMIFS('Project Scope'!$AO$8:$AO$107,'Project Scope'!$AN$8:$AN$107,$I25,'Project Scope'!$C$8:$C$107,CC$7)+SUMIFS('Project Scope'!$AX$8:$AX$107,'Project Scope'!$AW$8:$AW$107,$I25,'Project Scope'!$C$8:$C$107,CC$7),0)","v":0},{"$f":"IF(AE25=\"yes\",SUMIFS('Project Scope'!$AO$8:$AO$107,'Project Scope'!$AN$8:$AN$107,$I25,'Project Scope'!$C$8:$C$107,CD$7)+SUMIFS('Project Scope'!$AX$8:$AX$107,'Project Scope'!$AW$8:$AW$107,$I25,'Project Scope'!$C$8:$C$107,CD$7),0)","v":0},{"$f":"IF(AF25=\"yes\",SUMIFS('Project Scope'!$AO$8:$AO$107,'Project Scope'!$AN$8:$AN$107,$I25,'Project Scope'!$C$8:$C$107,CE$7)+SUMIFS('Project Scope'!$AX$8:$AX$107,'Project Scope'!$AW$8:$AW$107,$I25,'Project Scope'!$C$8:$C$107,CE$7),0)","v":0},{"$f":"IF(AG25=\"yes\",SUMIFS('Project Scope'!$AO$8:$AO$107,'Project Scope'!$AN$8:$AN$107,$I25,'Project Scope'!$C$8:$C$107,CF$7)+SUMIFS('Project Scope'!$AX$8:$AX$107,'Project Scope'!$AW$8:$AW$107,$I25,'Project Scope'!$C$8:$C$107,CF$7),0)","v":0},{"$f":"IF(AH25=\"yes\",SUMIFS('Project Scope'!$AO$8:$AO$107,'Project Scope'!$AN$8:$AN$107,$I25,'Project Scope'!$C$8:$C$107,CG$7)+SUMIFS('Project Scope'!$AX$8:$AX$107,'Project Scope'!$AW$8:$AW$107,$I25,'Project Scope'!$C$8:$C$107,CG$7),0)","v":0},{"$f":"IF(AI25=\"yes\",SUMIFS('Project Scope'!$AO$8:$AO$107,'Project Scope'!$AN$8:$AN$107,$I25,'Project Scope'!$C$8:$C$107,CH$7)+SUMIFS('Project Scope'!$AX$8:$AX$107,'Project Scope'!$AW$8:$AW$107,$I25,'Project Scope'!$C$8:$C$107,CH$7),0)","v":0},{"$f":"IF(AJ25=\"yes\",SUMIFS('Project Scope'!$AO$8:$AO$107,'Project Scope'!$AN$8:$AN$107,$I25,'Project Scope'!$C$8:$C$107,CI$7)+SUMIFS('Project Scope'!$AX$8:$AX$107,'Project Scope'!$AW$8:$AW$107,$I25,'Project Scope'!$C$8:$C$107,CI$7),0)","v":0},{"$f":"IF(AK25=\"yes\",SUMIFS('Project Scope'!$AO$8:$AO$107,'Project Scope'!$AN$8:$AN$107,$I25,'Project Scope'!$C$8:$C$107,CJ$7)+SUMIFS('Project Scope'!$AX$8:$AX$107,'Project Scope'!$AW$8:$AW$107,$I25,'Project Scope'!$C$8:$C$107,CJ$7),0)","v":0},{"$f":"IF(AL25=\"yes\",SUMIFS('Project Scope'!$AO$8:$AO$107,'Project Scope'!$AN$8:$AN$107,$I25,'Project Scope'!$C$8:$C$107,CK$7)+SUMIFS('Project Scope'!$AX$8:$AX$107,'Project Scope'!$AW$8:$AW$107,$I25,'Project Scope'!$C$8:$C$107,CK$7),0)","v":0},{"$f":"IF(AM25=\"yes\",SUMIFS('Project Scope'!$AO$8:$AO$107,'Project Scope'!$AN$8:$AN$107,$I25,'Project Scope'!$C$8:$C$107,CL$7)+SUMIFS('Project Scope'!$AX$8:$AX$107,'Project Scope'!$AW$8:$AW$107,$I25,'Project Scope'!$C$8:$C$107,CL$7),0)","v":0},{"$f":"IF(AN25=\"yes\",SUMIFS('Project Scope'!$AO$8:$AO$107,'Project Scope'!$AN$8:$AN$107,$I25,'Project Scope'!$C$8:$C$107,CM$7)+SUMIFS('Project Scope'!$AX$8:$AX$107,'Project Scope'!$AW$8:$AW$107,$I25,'Project Scope'!$C$8:$C$107,CM$7),0)","v":0},{"$f":"IF(AO25=\"yes\",SUMIFS('Project Scope'!$AO$8:$AO$107,'Project Scope'!$AN$8:$AN$107,$I25,'Project Scope'!$C$8:$C$107,CN$7)+SUMIFS('Project Scope'!$AX$8:$AX$107,'Project Scope'!$AW$8:$AW$107,$I25,'Project Scope'!$C$8:$C$107,CN$7),0)","v":0},{"$f":"IF(AP25=\"yes\",SUMIFS('Project Scope'!$AO$8:$AO$107,'Project Scope'!$AN$8:$AN$107,$I25,'Project Scope'!$C$8:$C$107,CO$7)+SUMIFS('Project Scope'!$AX$8:$AX$107,'Project Scope'!$AW$8:$AW$107,$I25,'Project Scope'!$C$8:$C$107,CO$7),0)","v":0},{"$f":"IF(AQ25=\"yes\",SUMIFS('Project Scope'!$AO$8:$AO$107,'Project Scope'!$AN$8:$AN$107,$I25,'Project Scope'!$C$8:$C$107,CP$7)+SUMIFS('Project Scope'!$AX$8:$AX$107,'Project Scope'!$AW$8:$AW$107,$I25,'Project Scope'!$C$8:$C$107,CP$7),0)","v":0},{"$f":"IF(AR25=\"yes\",SUMIFS('Project Scope'!$AO$8:$AO$107,'Project Scope'!$AN$8:$AN$107,$I25,'Project Scope'!$C$8:$C$107,CQ$7)+SUMIFS('Project Scope'!$AX$8:$AX$107,'Project Scope'!$AW$8:$AW$107,$I25,'Project Scope'!$C$8:$C$107,CQ$7),0)","v":0},{"$f":"IF(AS25=\"yes\",SUMIFS('Project Scope'!$AO$8:$AO$107,'Project Scope'!$AN$8:$AN$107,$I25,'Project Scope'!$C$8:$C$107,CR$7)+SUMIFS('Project Scope'!$AX$8:$AX$107,'Project Scope'!$AW$8:$AW$107,$I25,'Project Scope'!$C$8:$C$107,CR$7),0)","v":0},{"$f":"IF(AT25=\"yes\",SUMIFS('Project Scope'!$AO$8:$AO$107,'Project Scope'!$AN$8:$AN$107,$I25,'Project Scope'!$C$8:$C$107,CS$7)+SUMIFS('Project Scope'!$AX$8:$AX$107,'Project Scope'!$AW$8:$AW$107,$I25,'Project Scope'!$C$8:$C$107,CS$7),0)","v":0},{"$f":"IF(AU25=\"yes\",SUMIFS('Project Scope'!$AO$8:$AO$107,'Project Scope'!$AN$8:$AN$107,$I25,'Project Scope'!$C$8:$C$107,CT$7)+SUMIFS('Project Scope'!$AX$8:$AX$107,'Project Scope'!$AW$8:$AW$107,$I25,'Project Scope'!$C$8:$C$107,CT$7),0)","v":0},{"$f":"IF(AV25=\"yes\",SUMIFS('Project Scope'!$AO$8:$AO$107,'Project Scope'!$AN$8:$AN$107,$I25,'Project Scope'!$C$8:$C$107,CU$7)+SUMIFS('Project Scope'!$AX$8:$AX$107,'Project Scope'!$AW$8:$AW$107,$I25,'Project Scope'!$C$8:$C$107,CU$7),0)","v":0},{"$f":"IF(AW25=\"yes\",SUMIFS('Project Scope'!$AO$8:$AO$107,'Project Scope'!$AN$8:$AN$107,$I25,'Project Scope'!$C$8:$C$107,CV$7)+SUMIFS('Project Scope'!$AX$8:$AX$107,'Project Scope'!$AW$8:$AW$107,$I25,'Project Scope'!$C$8:$C$107,CV$7),0)","v":0},{"$f":"IF(AX25=\"yes\",SUMIFS('Project Scope'!$AO$8:$AO$107,'Project Scope'!$AN$8:$AN$107,$I25,'Project Scope'!$C$8:$C$107,CW$7)+SUMIFS('Project Scope'!$AX$8:$AX$107,'Project Scope'!$AW$8:$AW$107,$I25,'Project Scope'!$C$8:$C$107,CW$7),0)","v":0},{"$f":"IF(AY25=\"yes\",SUMIFS('Project Scope'!$AO$8:$AO$107,'Project Scope'!$AN$8:$AN$107,$I25,'Project Scope'!$C$8:$C$107,CX$7)+SUMIFS('Project Scope'!$AX$8:$AX$107,'Project Scope'!$AW$8:$AW$107,$I25,'Project Scope'!$C$8:$C$107,CX$7),0)","v":0},{"$f":"IF(AZ25=\"yes\",SUMIFS('Project Scope'!$AO$8:$AO$107,'Project Scope'!$AN$8:$AN$107,$I25,'Project Scope'!$C$8:$C$107,CY$7)+SUMIFS('Project Scope'!$AX$8:$AX$107,'Project Scope'!$AW$8:$AW$107,$I25,'Project Scope'!$C$8:$C$107,CY$7),0)","v":0},{"$f":"IF(BA25=\"yes\",SUMIFS('Project Scope'!$AO$8:$AO$107,'Project Scope'!$AN$8:$AN$107,$I25,'Project Scope'!$C$8:$C$107,CZ$7)+SUMIFS('Project Scope'!$AX$8:$AX$107,'Project Scope'!$AW$8:$AW$107,$I25,'Project Scope'!$C$8:$C$107,CZ$7),0)","v":0},{"$f":"IF(BB25=\"yes\",SUMIFS('Project Scope'!$AO$8:$AO$107,'Project Scope'!$AN$8:$AN$107,$I25,'Project Scope'!$C$8:$C$107,DA$7)+SUMIFS('Project Scope'!$AX$8:$AX$107,'Project Scope'!$AW$8:$AW$107,$I25,'Project Scope'!$C$8:$C$107,DA$7),0)","v":0},{"$f":"IF(BC25=\"yes\",SUMIFS('Project Scope'!$AO$8:$AO$107,'Project Scope'!$AN$8:$AN$107,$I25,'Project Scope'!$C$8:$C$107,DB$7)+SUMIFS('Project Scope'!$AX$8:$AX$107,'Project Scope'!$AW$8:$AW$107,$I25,'Project Scope'!$C$8:$C$107,DB$7),0)","v":0},{"$f":"IF(BD25=\"yes\",SUMIFS('Project Scope'!$AO$8:$AO$107,'Project Scope'!$AN$8:$AN$107,$I25,'Project Scope'!$C$8:$C$107,DC$7)+SUMIFS('Project Scope'!$AX$8:$AX$107,'Project Scope'!$AW$8:$AW$107,$I25,'Project Scope'!$C$8:$C$107,DC$7),0)","v":0},{"$f":"IF(BE25=\"yes\",SUMIFS('Project Scope'!$AO$8:$AO$107,'Project Scope'!$AN$8:$AN$107,$I25,'Project Scope'!$C$8:$C$107,DD$7)+SUMIFS('Project Scope'!$AX$8:$AX$107,'Project Scope'!$AW$8:$AW$107,$I25,'Project Scope'!$C$8:$C$107,DD$7),0)","v":0},{"$f":"IF(BF25=\"yes\",SUMIFS('Project Scope'!$AO$8:$AO$107,'Project Scope'!$AN$8:$AN$107,$I25,'Project Scope'!$C$8:$C$107,DE$7)+SUMIFS('Project Scope'!$AX$8:$AX$107,'Project Scope'!$AW$8:$AW$107,$I25,'Project Scope'!$C$8:$C$107,DE$7),0)","v":0},{"$f":"IF(BG25=\"yes\",SUMIFS('Project Scope'!$AO$8:$AO$107,'Project Scope'!$AN$8:$AN$107,$I25,'Project Scope'!$C$8:$C$107,DF$7)+SUMIFS('Project Scope'!$AX$8:$AX$107,'Project Scope'!$AW$8:$AW$107,$I25,'Project Scope'!$C$8:$C$107,DF$7),0)","v":0},{"$f":"IF(BH25=\"yes\",SUMIFS('Project Scope'!$AO$8:$AO$107,'Project Scope'!$AN$8:$AN$107,$I25,'Project Scope'!$C$8:$C$107,DG$7)+SUMIFS('Project Scope'!$AX$8:$AX$107,'Project Scope'!$AW$8:$AW$107,$I25,'Project Scope'!$C$8:$C$107,DG$7),0)","v":0},{"$f":"IF(BI25=\"yes\",SUMIFS('Project Scope'!$AO$8:$AO$107,'Project Scope'!$AN$8:$AN$107,$I25,'Project Scope'!$C$8:$C$107,DH$7)+SUMIFS('Project Scope'!$AX$8:$AX$107,'Project Scope'!$AW$8:$AW$107,$I25,'Project Scope'!$C$8:$C$107,DH$7),0)","v":0},{"$f":"IF(BJ25=\"yes\",SUMIFS('Project Scope'!$AO$8:$AO$107,'Project Scope'!$AN$8:$AN$107,$I25,'Project Scope'!$C$8:$C$107,DI$7)+SUMIFS('Project Scope'!$AX$8:$AX$107,'Project Scope'!$AW$8:$AW$107,$I25,'Project Scope'!$C$8:$C$107,DI$7),0)","v":0},{"$f":"IF(BK25=\"yes\",SUMIFS('Project Scope'!$AO$8:$AO$107,'Project Scope'!$AN$8:$AN$107,$I25,'Project Scope'!$C$8:$C$107,DJ$7)+SUMIFS('Project Scope'!$AX$8:$AX$107,'Project Scope'!$AW$8:$AW$107,$I25,'Project Scope'!$C$8:$C$107,DJ$7),0)","v":0},{"$f":"IF(BL25=\"yes\",SUMIFS('Project Scope'!$AO$8:$AO$107,'Project Scope'!$AN$8:$AN$107,$I25,'Project Scope'!$C$8:$C$107,DK$7)+SUMIFS('Project Scope'!$AX$8:$AX$107,'Project Scope'!$AW$8:$AW$107,$I25,'Project Scope'!$C$8:$C$107,DK$7),0)","v":0},null,"",{"$f":"IF($BN25>0,DN$7,\"\")","v":""},"","","","","","","","","","","","","","","","","","","","","","","","","","","","","","","","","","","","","","","","","","","","","","","","",null,""]
[null,null,null,null,null,null,null,null,null,null,null,{"$f":"IF($C26=\"additional labor hours\",$K26*'Project Information'!$D$12,$K26*$J26)*IF($F26=\"Per Measure\",SUM($BN26:$DK26),1)","v":0},{"$f":"IF($C26=\"\",0,IF(VLOOKUP($C26,'Other Data'!$B$146:$C$156,2,FALSE)=\"M\",$L26,0))","v":0},0,null,null,null,null,null,null,null,null,null,null,null,null,null,null,null,null,null,null,null,null,null,null,null,null,null,null,null,null,null,null,null,null,null,null,null,null,null,null,null,null,null,null,null,null,null,null,null,null,null,null,null,{"$f":"IF(O26=\"yes\",SUMIFS('Project Scope'!$AO$8:$AO$107,'Project Scope'!$AN$8:$AN$107,$I26,'Project Scope'!$C$8:$C$107,BN$7)+SUMIFS('Project Scope'!$AX$8:$AX$107,'Project Scope'!$AW$8:$AW$107,$I26,'Project Scope'!$C$8:$C$107,BN$7),0)","v":0},{"$f":"IF(P26=\"yes\",SUMIFS('Project Scope'!$AO$8:$AO$107,'Project Scope'!$AN$8:$AN$107,$I26,'Project Scope'!$C$8:$C$107,BO$7)+SUMIFS('Project Scope'!$AX$8:$AX$107,'Project Scope'!$AW$8:$AW$107,$I26,'Project Scope'!$C$8:$C$107,BO$7),0)","v":0},{"$f":"IF(Q26=\"yes\",SUMIFS('Project Scope'!$AO$8:$AO$107,'Project Scope'!$AN$8:$AN$107,$I26,'Project Scope'!$C$8:$C$107,BP$7)+SUMIFS('Project Scope'!$AX$8:$AX$107,'Project Scope'!$AW$8:$AW$107,$I26,'Project Scope'!$C$8:$C$107,BP$7),0)","v":0},{"$f":"IF(R26=\"yes\",SUMIFS('Project Scope'!$AO$8:$AO$107,'Project Scope'!$AN$8:$AN$107,$I26,'Project Scope'!$C$8:$C$107,BQ$7)+SUMIFS('Project Scope'!$AX$8:$AX$107,'Project Scope'!$AW$8:$AW$107,$I26,'Project Scope'!$C$8:$C$107,BQ$7),0)","v":0},{"$f":"IF(S26=\"yes\",SUMIFS('Project Scope'!$AO$8:$AO$107,'Project Scope'!$AN$8:$AN$107,$I26,'Project Scope'!$C$8:$C$107,BR$7)+SUMIFS('Project Scope'!$AX$8:$AX$107,'Project Scope'!$AW$8:$AW$107,$I26,'Project Scope'!$C$8:$C$107,BR$7),0)","v":0},{"$f":"IF(T26=\"yes\",SUMIFS('Project Scope'!$AO$8:$AO$107,'Project Scope'!$AN$8:$AN$107,$I26,'Project Scope'!$C$8:$C$107,BS$7)+SUMIFS('Project Scope'!$AX$8:$AX$107,'Project Scope'!$AW$8:$AW$107,$I26,'Project Scope'!$C$8:$C$107,BS$7),0)","v":0},{"$f":"IF(U26=\"yes\",SUMIFS('Project Scope'!$AO$8:$AO$107,'Project Scope'!$AN$8:$AN$107,$I26,'Project Scope'!$C$8:$C$107,BT$7)+SUMIFS('Project Scope'!$AX$8:$AX$107,'Project Scope'!$AW$8:$AW$107,$I26,'Project Scope'!$C$8:$C$107,BT$7),0)","v":0},{"$f":"IF(V26=\"yes\",SUMIFS('Project Scope'!$AO$8:$AO$107,'Project Scope'!$AN$8:$AN$107,$I26,'Project Scope'!$C$8:$C$107,BU$7)+SUMIFS('Project Scope'!$AX$8:$AX$107,'Project Scope'!$AW$8:$AW$107,$I26,'Project Scope'!$C$8:$C$107,BU$7),0)","v":0},{"$f":"IF(W26=\"yes\",SUMIFS('Project Scope'!$AO$8:$AO$107,'Project Scope'!$AN$8:$AN$107,$I26,'Project Scope'!$C$8:$C$107,BV$7)+SUMIFS('Project Scope'!$AX$8:$AX$107,'Project Scope'!$AW$8:$AW$107,$I26,'Project Scope'!$C$8:$C$107,BV$7),0)","v":0},{"$f":"IF(X26=\"yes\",SUMIFS('Project Scope'!$AO$8:$AO$107,'Project Scope'!$AN$8:$AN$107,$I26,'Project Scope'!$C$8:$C$107,BW$7)+SUMIFS('Project Scope'!$AX$8:$AX$107,'Project Scope'!$AW$8:$AW$107,$I26,'Project Scope'!$C$8:$C$107,BW$7),0)","v":0},{"$f":"IF(Y26=\"yes\",SUMIFS('Project Scope'!$AO$8:$AO$107,'Project Scope'!$AN$8:$AN$107,$I26,'Project Scope'!$C$8:$C$107,BX$7)+SUMIFS('Project Scope'!$AX$8:$AX$107,'Project Scope'!$AW$8:$AW$107,$I26,'Project Scope'!$C$8:$C$107,BX$7),0)","v":0},{"$f":"IF(Z26=\"yes\",SUMIFS('Project Scope'!$AO$8:$AO$107,'Project Scope'!$AN$8:$AN$107,$I26,'Project Scope'!$C$8:$C$107,BY$7)+SUMIFS('Project Scope'!$AX$8:$AX$107,'Project Scope'!$AW$8:$AW$107,$I26,'Project Scope'!$C$8:$C$107,BY$7),0)","v":0},{"$f":"IF(AA26=\"yes\",SUMIFS('Project Scope'!$AO$8:$AO$107,'Project Scope'!$AN$8:$AN$107,$I26,'Project Scope'!$C$8:$C$107,BZ$7)+SUMIFS('Project Scope'!$AX$8:$AX$107,'Project Scope'!$AW$8:$AW$107,$I26,'Project Scope'!$C$8:$C$107,BZ$7),0)","v":0},{"$f":"IF(AB26=\"yes\",SUMIFS('Project Scope'!$AO$8:$AO$107,'Project Scope'!$AN$8:$AN$107,$I26,'Project Scope'!$C$8:$C$107,CA$7)+SUMIFS('Project Scope'!$AX$8:$AX$107,'Project Scope'!$AW$8:$AW$107,$I26,'Project Scope'!$C$8:$C$107,CA$7),0)","v":0},{"$f":"IF(AC26=\"yes\",SUMIFS('Project Scope'!$AO$8:$AO$107,'Project Scope'!$AN$8:$AN$107,$I26,'Project Scope'!$C$8:$C$107,CB$7)+SUMIFS('Project Scope'!$AX$8:$AX$107,'Project Scope'!$AW$8:$AW$107,$I26,'Project Scope'!$C$8:$C$107,CB$7),0)","v":0},{"$f":"IF(AD26=\"yes\",SUMIFS('Project Scope'!$AO$8:$AO$107,'Project Scope'!$AN$8:$AN$107,$I26,'Project Scope'!$C$8:$C$107,CC$7)+SUMIFS('Project Scope'!$AX$8:$AX$107,'Project Scope'!$AW$8:$AW$107,$I26,'Project Scope'!$C$8:$C$107,CC$7),0)","v":0},{"$f":"IF(AE26=\"yes\",SUMIFS('Project Scope'!$AO$8:$AO$107,'Project Scope'!$AN$8:$AN$107,$I26,'Project Scope'!$C$8:$C$107,CD$7)+SUMIFS('Project Scope'!$AX$8:$AX$107,'Project Scope'!$AW$8:$AW$107,$I26,'Project Scope'!$C$8:$C$107,CD$7),0)","v":0},{"$f":"IF(AF26=\"yes\",SUMIFS('Project Scope'!$AO$8:$AO$107,'Project Scope'!$AN$8:$AN$107,$I26,'Project Scope'!$C$8:$C$107,CE$7)+SUMIFS('Project Scope'!$AX$8:$AX$107,'Project Scope'!$AW$8:$AW$107,$I26,'Project Scope'!$C$8:$C$107,CE$7),0)","v":0},{"$f":"IF(AG26=\"yes\",SUMIFS('Project Scope'!$AO$8:$AO$107,'Project Scope'!$AN$8:$AN$107,$I26,'Project Scope'!$C$8:$C$107,CF$7)+SUMIFS('Project Scope'!$AX$8:$AX$107,'Project Scope'!$AW$8:$AW$107,$I26,'Project Scope'!$C$8:$C$107,CF$7),0)","v":0},{"$f":"IF(AH26=\"yes\",SUMIFS('Project Scope'!$AO$8:$AO$107,'Project Scope'!$AN$8:$AN$107,$I26,'Project Scope'!$C$8:$C$107,CG$7)+SUMIFS('Project Scope'!$AX$8:$AX$107,'Project Scope'!$AW$8:$AW$107,$I26,'Project Scope'!$C$8:$C$107,CG$7),0)","v":0},{"$f":"IF(AI26=\"yes\",SUMIFS('Project Scope'!$AO$8:$AO$107,'Project Scope'!$AN$8:$AN$107,$I26,'Project Scope'!$C$8:$C$107,CH$7)+SUMIFS('Project Scope'!$AX$8:$AX$107,'Project Scope'!$AW$8:$AW$107,$I26,'Project Scope'!$C$8:$C$107,CH$7),0)","v":0},{"$f":"IF(AJ26=\"yes\",SUMIFS('Project Scope'!$AO$8:$AO$107,'Project Scope'!$AN$8:$AN$107,$I26,'Project Scope'!$C$8:$C$107,CI$7)+SUMIFS('Project Scope'!$AX$8:$AX$107,'Project Scope'!$AW$8:$AW$107,$I26,'Project Scope'!$C$8:$C$107,CI$7),0)","v":0},{"$f":"IF(AK26=\"yes\",SUMIFS('Project Scope'!$AO$8:$AO$107,'Project Scope'!$AN$8:$AN$107,$I26,'Project Scope'!$C$8:$C$107,CJ$7)+SUMIFS('Project Scope'!$AX$8:$AX$107,'Project Scope'!$AW$8:$AW$107,$I26,'Project Scope'!$C$8:$C$107,CJ$7),0)","v":0},{"$f":"IF(AL26=\"yes\",SUMIFS('Project Scope'!$AO$8:$AO$107,'Project Scope'!$AN$8:$AN$107,$I26,'Project Scope'!$C$8:$C$107,CK$7)+SUMIFS('Project Scope'!$AX$8:$AX$107,'Project Scope'!$AW$8:$AW$107,$I26,'Project Scope'!$C$8:$C$107,CK$7),0)","v":0},{"$f":"IF(AM26=\"yes\",SUMIFS('Project Scope'!$AO$8:$AO$107,'Project Scope'!$AN$8:$AN$107,$I26,'Project Scope'!$C$8:$C$107,CL$7)+SUMIFS('Project Scope'!$AX$8:$AX$107,'Project Scope'!$AW$8:$AW$107,$I26,'Project Scope'!$C$8:$C$107,CL$7),0)","v":0},{"$f":"IF(AN26=\"yes\",SUMIFS('Project Scope'!$AO$8:$AO$107,'Project Scope'!$AN$8:$AN$107,$I26,'Project Scope'!$C$8:$C$107,CM$7)+SUMIFS('Project Scope'!$AX$8:$AX$107,'Project Scope'!$AW$8:$AW$107,$I26,'Project Scope'!$C$8:$C$107,CM$7),0)","v":0},{"$f":"IF(AO26=\"yes\",SUMIFS('Project Scope'!$AO$8:$AO$107,'Project Scope'!$AN$8:$AN$107,$I26,'Project Scope'!$C$8:$C$107,CN$7)+SUMIFS('Project Scope'!$AX$8:$AX$107,'Project Scope'!$AW$8:$AW$107,$I26,'Project Scope'!$C$8:$C$107,CN$7),0)","v":0},{"$f":"IF(AP26=\"yes\",SUMIFS('Project Scope'!$AO$8:$AO$107,'Project Scope'!$AN$8:$AN$107,$I26,'Project Scope'!$C$8:$C$107,CO$7)+SUMIFS('Project Scope'!$AX$8:$AX$107,'Project Scope'!$AW$8:$AW$107,$I26,'Project Scope'!$C$8:$C$107,CO$7),0)","v":0},{"$f":"IF(AQ26=\"yes\",SUMIFS('Project Scope'!$AO$8:$AO$107,'Project Scope'!$AN$8:$AN$107,$I26,'Project Scope'!$C$8:$C$107,CP$7)+SUMIFS('Project Scope'!$AX$8:$AX$107,'Project Scope'!$AW$8:$AW$107,$I26,'Project Scope'!$C$8:$C$107,CP$7),0)","v":0},{"$f":"IF(AR26=\"yes\",SUMIFS('Project Scope'!$AO$8:$AO$107,'Project Scope'!$AN$8:$AN$107,$I26,'Project Scope'!$C$8:$C$107,CQ$7)+SUMIFS('Project Scope'!$AX$8:$AX$107,'Project Scope'!$AW$8:$AW$107,$I26,'Project Scope'!$C$8:$C$107,CQ$7),0)","v":0},{"$f":"IF(AS26=\"yes\",SUMIFS('Project Scope'!$AO$8:$AO$107,'Project Scope'!$AN$8:$AN$107,$I26,'Project Scope'!$C$8:$C$107,CR$7)+SUMIFS('Project Scope'!$AX$8:$AX$107,'Project Scope'!$AW$8:$AW$107,$I26,'Project Scope'!$C$8:$C$107,CR$7),0)","v":0},{"$f":"IF(AT26=\"yes\",SUMIFS('Project Scope'!$AO$8:$AO$107,'Project Scope'!$AN$8:$AN$107,$I26,'Project Scope'!$C$8:$C$107,CS$7)+SUMIFS('Project Scope'!$AX$8:$AX$107,'Project Scope'!$AW$8:$AW$107,$I26,'Project Scope'!$C$8:$C$107,CS$7),0)","v":0},{"$f":"IF(AU26=\"yes\",SUMIFS('Project Scope'!$AO$8:$AO$107,'Project Scope'!$AN$8:$AN$107,$I26,'Project Scope'!$C$8:$C$107,CT$7)+SUMIFS('Project Scope'!$AX$8:$AX$107,'Project Scope'!$AW$8:$AW$107,$I26,'Project Scope'!$C$8:$C$107,CT$7),0)","v":0},{"$f":"IF(AV26=\"yes\",SUMIFS('Project Scope'!$AO$8:$AO$107,'Project Scope'!$AN$8:$AN$107,$I26,'Project Scope'!$C$8:$C$107,CU$7)+SUMIFS('Project Scope'!$AX$8:$AX$107,'Project Scope'!$AW$8:$AW$107,$I26,'Project Scope'!$C$8:$C$107,CU$7),0)","v":0},{"$f":"IF(AW26=\"yes\",SUMIFS('Project Scope'!$AO$8:$AO$107,'Project Scope'!$AN$8:$AN$107,$I26,'Project Scope'!$C$8:$C$107,CV$7)+SUMIFS('Project Scope'!$AX$8:$AX$107,'Project Scope'!$AW$8:$AW$107,$I26,'Project Scope'!$C$8:$C$107,CV$7),0)","v":0},{"$f":"IF(AX26=\"yes\",SUMIFS('Project Scope'!$AO$8:$AO$107,'Project Scope'!$AN$8:$AN$107,$I26,'Project Scope'!$C$8:$C$107,CW$7)+SUMIFS('Project Scope'!$AX$8:$AX$107,'Project Scope'!$AW$8:$AW$107,$I26,'Project Scope'!$C$8:$C$107,CW$7),0)","v":0},{"$f":"IF(AY26=\"yes\",SUMIFS('Project Scope'!$AO$8:$AO$107,'Project Scope'!$AN$8:$AN$107,$I26,'Project Scope'!$C$8:$C$107,CX$7)+SUMIFS('Project Scope'!$AX$8:$AX$107,'Project Scope'!$AW$8:$AW$107,$I26,'Project Scope'!$C$8:$C$107,CX$7),0)","v":0},{"$f":"IF(AZ26=\"yes\",SUMIFS('Project Scope'!$AO$8:$AO$107,'Project Scope'!$AN$8:$AN$107,$I26,'Project Scope'!$C$8:$C$107,CY$7)+SUMIFS('Project Scope'!$AX$8:$AX$107,'Project Scope'!$AW$8:$AW$107,$I26,'Project Scope'!$C$8:$C$107,CY$7),0)","v":0},{"$f":"IF(BA26=\"yes\",SUMIFS('Project Scope'!$AO$8:$AO$107,'Project Scope'!$AN$8:$AN$107,$I26,'Project Scope'!$C$8:$C$107,CZ$7)+SUMIFS('Project Scope'!$AX$8:$AX$107,'Project Scope'!$AW$8:$AW$107,$I26,'Project Scope'!$C$8:$C$107,CZ$7),0)","v":0},{"$f":"IF(BB26=\"yes\",SUMIFS('Project Scope'!$AO$8:$AO$107,'Project Scope'!$AN$8:$AN$107,$I26,'Project Scope'!$C$8:$C$107,DA$7)+SUMIFS('Project Scope'!$AX$8:$AX$107,'Project Scope'!$AW$8:$AW$107,$I26,'Project Scope'!$C$8:$C$107,DA$7),0)","v":0},{"$f":"IF(BC26=\"yes\",SUMIFS('Project Scope'!$AO$8:$AO$107,'Project Scope'!$AN$8:$AN$107,$I26,'Project Scope'!$C$8:$C$107,DB$7)+SUMIFS('Project Scope'!$AX$8:$AX$107,'Project Scope'!$AW$8:$AW$107,$I26,'Project Scope'!$C$8:$C$107,DB$7),0)","v":0},{"$f":"IF(BD26=\"yes\",SUMIFS('Project Scope'!$AO$8:$AO$107,'Project Scope'!$AN$8:$AN$107,$I26,'Project Scope'!$C$8:$C$107,DC$7)+SUMIFS('Project Scope'!$AX$8:$AX$107,'Project Scope'!$AW$8:$AW$107,$I26,'Project Scope'!$C$8:$C$107,DC$7),0)","v":0},{"$f":"IF(BE26=\"yes\",SUMIFS('Project Scope'!$AO$8:$AO$107,'Project Scope'!$AN$8:$AN$107,$I26,'Project Scope'!$C$8:$C$107,DD$7)+SUMIFS('Project Scope'!$AX$8:$AX$107,'Project Scope'!$AW$8:$AW$107,$I26,'Project Scope'!$C$8:$C$107,DD$7),0)","v":0},{"$f":"IF(BF26=\"yes\",SUMIFS('Project Scope'!$AO$8:$AO$107,'Project Scope'!$AN$8:$AN$107,$I26,'Project Scope'!$C$8:$C$107,DE$7)+SUMIFS('Project Scope'!$AX$8:$AX$107,'Project Scope'!$AW$8:$AW$107,$I26,'Project Scope'!$C$8:$C$107,DE$7),0)","v":0},{"$f":"IF(BG26=\"yes\",SUMIFS('Project Scope'!$AO$8:$AO$107,'Project Scope'!$AN$8:$AN$107,$I26,'Project Scope'!$C$8:$C$107,DF$7)+SUMIFS('Project Scope'!$AX$8:$AX$107,'Project Scope'!$AW$8:$AW$107,$I26,'Project Scope'!$C$8:$C$107,DF$7),0)","v":0},{"$f":"IF(BH26=\"yes\",SUMIFS('Project Scope'!$AO$8:$AO$107,'Project Scope'!$AN$8:$AN$107,$I26,'Project Scope'!$C$8:$C$107,DG$7)+SUMIFS('Project Scope'!$AX$8:$AX$107,'Project Scope'!$AW$8:$AW$107,$I26,'Project Scope'!$C$8:$C$107,DG$7),0)","v":0},{"$f":"IF(BI26=\"yes\",SUMIFS('Project Scope'!$AO$8:$AO$107,'Project Scope'!$AN$8:$AN$107,$I26,'Project Scope'!$C$8:$C$107,DH$7)+SUMIFS('Project Scope'!$AX$8:$AX$107,'Project Scope'!$AW$8:$AW$107,$I26,'Project Scope'!$C$8:$C$107,DH$7),0)","v":0},{"$f":"IF(BJ26=\"yes\",SUMIFS('Project Scope'!$AO$8:$AO$107,'Project Scope'!$AN$8:$AN$107,$I26,'Project Scope'!$C$8:$C$107,DI$7)+SUMIFS('Project Scope'!$AX$8:$AX$107,'Project Scope'!$AW$8:$AW$107,$I26,'Project Scope'!$C$8:$C$107,DI$7),0)","v":0},{"$f":"IF(BK26=\"yes\",SUMIFS('Project Scope'!$AO$8:$AO$107,'Project Scope'!$AN$8:$AN$107,$I26,'Project Scope'!$C$8:$C$107,DJ$7)+SUMIFS('Project Scope'!$AX$8:$AX$107,'Project Scope'!$AW$8:$AW$107,$I26,'Project Scope'!$C$8:$C$107,DJ$7),0)","v":0},{"$f":"IF(BL26=\"yes\",SUMIFS('Project Scope'!$AO$8:$AO$107,'Project Scope'!$AN$8:$AN$107,$I26,'Project Scope'!$C$8:$C$107,DK$7)+SUMIFS('Project Scope'!$AX$8:$AX$107,'Project Scope'!$AW$8:$AW$107,$I26,'Project Scope'!$C$8:$C$107,DK$7),0)","v":0},null,"","","","","","","","","","","","","","","","","","","","","","","","","","","","","","","","","","","","","","","","","","","","","","","","","","",null,""]
[null,null,null,null,null,null,null,null,null,null,null,{"$f":"IF($C27=\"additional labor hours\",$K27*'Project Information'!$D$12,$K27*$J27)*IF($F27=\"Per Measure\",SUM($BN27:$DK27),1)","v":0},{"$f":"IF($C27=\"\",0,IF(VLOOKUP($C27,'Other Data'!$B$146:$C$156,2,FALSE)=\"M\",$L27,0))","v":0},0,null,null,null,null,null,null,null,null,null,null,null,null,null,null,null,null,null,null,null,null,null,null,null,null,null,null,null,null,null,null,null,null,null,null,null,null,null,null,null,null,null,null,null,null,null,null,null,null,null,null,null,{"$f":"IF(O27=\"yes\",SUMIFS('Project Scope'!$AO$8:$AO$107,'Project Scope'!$AN$8:$AN$107,$I27,'Project Scope'!$C$8:$C$107,BN$7)+SUMIFS('Project Scope'!$AX$8:$AX$107,'Project Scope'!$AW$8:$AW$107,$I27,'Project Scope'!$C$8:$C$107,BN$7),0)","v":0},{"$f":"IF(P27=\"yes\",SUMIFS('Project Scope'!$AO$8:$AO$107,'Project Scope'!$AN$8:$AN$107,$I27,'Project Scope'!$C$8:$C$107,BO$7)+SUMIFS('Project Scope'!$AX$8:$AX$107,'Project Scope'!$AW$8:$AW$107,$I27,'Project Scope'!$C$8:$C$107,BO$7),0)","v":0},{"$f":"IF(Q27=\"yes\",SUMIFS('Project Scope'!$AO$8:$AO$107,'Project Scope'!$AN$8:$AN$107,$I27,'Project Scope'!$C$8:$C$107,BP$7)+SUMIFS('Project Scope'!$AX$8:$AX$107,'Project Scope'!$AW$8:$AW$107,$I27,'Project Scope'!$C$8:$C$107,BP$7),0)","v":0},{"$f":"IF(R27=\"yes\",SUMIFS('Project Scope'!$AO$8:$AO$107,'Project Scope'!$AN$8:$AN$107,$I27,'Project Scope'!$C$8:$C$107,BQ$7)+SUMIFS('Project Scope'!$AX$8:$AX$107,'Project Scope'!$AW$8:$AW$107,$I27,'Project Scope'!$C$8:$C$107,BQ$7),0)","v":0},{"$f":"IF(S27=\"yes\",SUMIFS('Project Scope'!$AO$8:$AO$107,'Project Scope'!$AN$8:$AN$107,$I27,'Project Scope'!$C$8:$C$107,BR$7)+SUMIFS('Project Scope'!$AX$8:$AX$107,'Project Scope'!$AW$8:$AW$107,$I27,'Project Scope'!$C$8:$C$107,BR$7),0)","v":0},{"$f":"IF(T27=\"yes\",SUMIFS('Project Scope'!$AO$8:$AO$107,'Project Scope'!$AN$8:$AN$107,$I27,'Project Scope'!$C$8:$C$107,BS$7)+SUMIFS('Project Scope'!$AX$8:$AX$107,'Project Scope'!$AW$8:$AW$107,$I27,'Project Scope'!$C$8:$C$107,BS$7),0)","v":0},{"$f":"IF(U27=\"yes\",SUMIFS('Project Scope'!$AO$8:$AO$107,'Project Scope'!$AN$8:$AN$107,$I27,'Project Scope'!$C$8:$C$107,BT$7)+SUMIFS('Project Scope'!$AX$8:$AX$107,'Project Scope'!$AW$8:$AW$107,$I27,'Project Scope'!$C$8:$C$107,BT$7),0)","v":0},{"$f":"IF(V27=\"yes\",SUMIFS('Project Scope'!$AO$8:$AO$107,'Project Scope'!$AN$8:$AN$107,$I27,'Project Scope'!$C$8:$C$107,BU$7)+SUMIFS('Project Scope'!$AX$8:$AX$107,'Project Scope'!$AW$8:$AW$107,$I27,'Project Scope'!$C$8:$C$107,BU$7),0)","v":0},{"$f":"IF(W27=\"yes\",SUMIFS('Project Scope'!$AO$8:$AO$107,'Project Scope'!$AN$8:$AN$107,$I27,'Project Scope'!$C$8:$C$107,BV$7)+SUMIFS('Project Scope'!$AX$8:$AX$107,'Project Scope'!$AW$8:$AW$107,$I27,'Project Scope'!$C$8:$C$107,BV$7),0)","v":0},{"$f":"IF(X27=\"yes\",SUMIFS('Project Scope'!$AO$8:$AO$107,'Project Scope'!$AN$8:$AN$107,$I27,'Project Scope'!$C$8:$C$107,BW$7)+SUMIFS('Project Scope'!$AX$8:$AX$107,'Project Scope'!$AW$8:$AW$107,$I27,'Project Scope'!$C$8:$C$107,BW$7),0)","v":0},{"$f":"IF(Y27=\"yes\",SUMIFS('Project Scope'!$AO$8:$AO$107,'Project Scope'!$AN$8:$AN$107,$I27,'Project Scope'!$C$8:$C$107,BX$7)+SUMIFS('Project Scope'!$AX$8:$AX$107,'Project Scope'!$AW$8:$AW$107,$I27,'Project Scope'!$C$8:$C$107,BX$7),0)","v":0},{"$f":"IF(Z27=\"yes\",SUMIFS('Project Scope'!$AO$8:$AO$107,'Project Scope'!$AN$8:$AN$107,$I27,'Project Scope'!$C$8:$C$107,BY$7)+SUMIFS('Project Scope'!$AX$8:$AX$107,'Project Scope'!$AW$8:$AW$107,$I27,'Project Scope'!$C$8:$C$107,BY$7),0)","v":0},{"$f":"IF(AA27=\"yes\",SUMIFS('Project Scope'!$AO$8:$AO$107,'Project Scope'!$AN$8:$AN$107,$I27,'Project Scope'!$C$8:$C$107,BZ$7)+SUMIFS('Project Scope'!$AX$8:$AX$107,'Project Scope'!$AW$8:$AW$107,$I27,'Project Scope'!$C$8:$C$107,BZ$7),0)","v":0},{"$f":"IF(AB27=\"yes\",SUMIFS('Project Scope'!$AO$8:$AO$107,'Project Scope'!$AN$8:$AN$107,$I27,'Project Scope'!$C$8:$C$107,CA$7)+SUMIFS('Project Scope'!$AX$8:$AX$107,'Project Scope'!$AW$8:$AW$107,$I27,'Project Scope'!$C$8:$C$107,CA$7),0)","v":0},{"$f":"IF(AC27=\"yes\",SUMIFS('Project Scope'!$AO$8:$AO$107,'Project Scope'!$AN$8:$AN$107,$I27,'Project Scope'!$C$8:$C$107,CB$7)+SUMIFS('Project Scope'!$AX$8:$AX$107,'Project Scope'!$AW$8:$AW$107,$I27,'Project Scope'!$C$8:$C$107,CB$7),0)","v":0},{"$f":"IF(AD27=\"yes\",SUMIFS('Project Scope'!$AO$8:$AO$107,'Project Scope'!$AN$8:$AN$107,$I27,'Project Scope'!$C$8:$C$107,CC$7)+SUMIFS('Project Scope'!$AX$8:$AX$107,'Project Scope'!$AW$8:$AW$107,$I27,'Project Scope'!$C$8:$C$107,CC$7),0)","v":0},{"$f":"IF(AE27=\"yes\",SUMIFS('Project Scope'!$AO$8:$AO$107,'Project Scope'!$AN$8:$AN$107,$I27,'Project Scope'!$C$8:$C$107,CD$7)+SUMIFS('Project Scope'!$AX$8:$AX$107,'Project Scope'!$AW$8:$AW$107,$I27,'Project Scope'!$C$8:$C$107,CD$7),0)","v":0},{"$f":"IF(AF27=\"yes\",SUMIFS('Project Scope'!$AO$8:$AO$107,'Project Scope'!$AN$8:$AN$107,$I27,'Project Scope'!$C$8:$C$107,CE$7)+SUMIFS('Project Scope'!$AX$8:$AX$107,'Project Scope'!$AW$8:$AW$107,$I27,'Project Scope'!$C$8:$C$107,CE$7),0)","v":0},{"$f":"IF(AG27=\"yes\",SUMIFS('Project Scope'!$AO$8:$AO$107,'Project Scope'!$AN$8:$AN$107,$I27,'Project Scope'!$C$8:$C$107,CF$7)+SUMIFS('Project Scope'!$AX$8:$AX$107,'Project Scope'!$AW$8:$AW$107,$I27,'Project Scope'!$C$8:$C$107,CF$7),0)","v":0},{"$f":"IF(AH27=\"yes\",SUMIFS('Project Scope'!$AO$8:$AO$107,'Project Scope'!$AN$8:$AN$107,$I27,'Project Scope'!$C$8:$C$107,CG$7)+SUMIFS('Project Scope'!$AX$8:$AX$107,'Project Scope'!$AW$8:$AW$107,$I27,'Project Scope'!$C$8:$C$107,CG$7),0)","v":0},{"$f":"IF(AI27=\"yes\",SUMIFS('Project Scope'!$AO$8:$AO$107,'Project Scope'!$AN$8:$AN$107,$I27,'Project Scope'!$C$8:$C$107,CH$7)+SUMIFS('Project Scope'!$AX$8:$AX$107,'Project Scope'!$AW$8:$AW$107,$I27,'Project Scope'!$C$8:$C$107,CH$7),0)","v":0},{"$f":"IF(AJ27=\"yes\",SUMIFS('Project Scope'!$AO$8:$AO$107,'Project Scope'!$AN$8:$AN$107,$I27,'Project Scope'!$C$8:$C$107,CI$7)+SUMIFS('Project Scope'!$AX$8:$AX$107,'Project Scope'!$AW$8:$AW$107,$I27,'Project Scope'!$C$8:$C$107,CI$7),0)","v":0},{"$f":"IF(AK27=\"yes\",SUMIFS('Project Scope'!$AO$8:$AO$107,'Project Scope'!$AN$8:$AN$107,$I27,'Project Scope'!$C$8:$C$107,CJ$7)+SUMIFS('Project Scope'!$AX$8:$AX$107,'Project Scope'!$AW$8:$AW$107,$I27,'Project Scope'!$C$8:$C$107,CJ$7),0)","v":0},{"$f":"IF(AL27=\"yes\",SUMIFS('Project Scope'!$AO$8:$AO$107,'Project Scope'!$AN$8:$AN$107,$I27,'Project Scope'!$C$8:$C$107,CK$7)+SUMIFS('Project Scope'!$AX$8:$AX$107,'Project Scope'!$AW$8:$AW$107,$I27,'Project Scope'!$C$8:$C$107,CK$7),0)","v":0},{"$f":"IF(AM27=\"yes\",SUMIFS('Project Scope'!$AO$8:$AO$107,'Project Scope'!$AN$8:$AN$107,$I27,'Project Scope'!$C$8:$C$107,CL$7)+SUMIFS('Project Scope'!$AX$8:$AX$107,'Project Scope'!$AW$8:$AW$107,$I27,'Project Scope'!$C$8:$C$107,CL$7),0)","v":0},{"$f":"IF(AN27=\"yes\",SUMIFS('Project Scope'!$AO$8:$AO$107,'Project Scope'!$AN$8:$AN$107,$I27,'Project Scope'!$C$8:$C$107,CM$7)+SUMIFS('Project Scope'!$AX$8:$AX$107,'Project Scope'!$AW$8:$AW$107,$I27,'Project Scope'!$C$8:$C$107,CM$7),0)","v":0},{"$f":"IF(AO27=\"yes\",SUMIFS('Project Scope'!$AO$8:$AO$107,'Project Scope'!$AN$8:$AN$107,$I27,'Project Scope'!$C$8:$C$107,CN$7)+SUMIFS('Project Scope'!$AX$8:$AX$107,'Project Scope'!$AW$8:$AW$107,$I27,'Project Scope'!$C$8:$C$107,CN$7),0)","v":0},{"$f":"IF(AP27=\"yes\",SUMIFS('Project Scope'!$AO$8:$AO$107,'Project Scope'!$AN$8:$AN$107,$I27,'Project Scope'!$C$8:$C$107,CO$7)+SUMIFS('Project Scope'!$AX$8:$AX$107,'Project Scope'!$AW$8:$AW$107,$I27,'Project Scope'!$C$8:$C$107,CO$7),0)","v":0},{"$f":"IF(AQ27=\"yes\",SUMIFS('Project Scope'!$AO$8:$AO$107,'Project Scope'!$AN$8:$AN$107,$I27,'Project Scope'!$C$8:$C$107,CP$7)+SUMIFS('Project Scope'!$AX$8:$AX$107,'Project Scope'!$AW$8:$AW$107,$I27,'Project Scope'!$C$8:$C$107,CP$7),0)","v":0},{"$f":"IF(AR27=\"yes\",SUMIFS('Project Scope'!$AO$8:$AO$107,'Project Scope'!$AN$8:$AN$107,$I27,'Project Scope'!$C$8:$C$107,CQ$7)+SUMIFS('Project Scope'!$AX$8:$AX$107,'Project Scope'!$AW$8:$AW$107,$I27,'Project Scope'!$C$8:$C$107,CQ$7),0)","v":0},{"$f":"IF(AS27=\"yes\",SUMIFS('Project Scope'!$AO$8:$AO$107,'Project Scope'!$AN$8:$AN$107,$I27,'Project Scope'!$C$8:$C$107,CR$7)+SUMIFS('Project Scope'!$AX$8:$AX$107,'Project Scope'!$AW$8:$AW$107,$I27,'Project Scope'!$C$8:$C$107,CR$7),0)","v":0},{"$f":"IF(AT27=\"yes\",SUMIFS('Project Scope'!$AO$8:$AO$107,'Project Scope'!$AN$8:$AN$107,$I27,'Project Scope'!$C$8:$C$107,CS$7)+SUMIFS('Project Scope'!$AX$8:$AX$107,'Project Scope'!$AW$8:$AW$107,$I27,'Project Scope'!$C$8:$C$107,CS$7),0)","v":0},{"$f":"IF(AU27=\"yes\",SUMIFS('Project Scope'!$AO$8:$AO$107,'Project Scope'!$AN$8:$AN$107,$I27,'Project Scope'!$C$8:$C$107,CT$7)+SUMIFS('Project Scope'!$AX$8:$AX$107,'Project Scope'!$AW$8:$AW$107,$I27,'Project Scope'!$C$8:$C$107,CT$7),0)","v":0},{"$f":"IF(AV27=\"yes\",SUMIFS('Project Scope'!$AO$8:$AO$107,'Project Scope'!$AN$8:$AN$107,$I27,'Project Scope'!$C$8:$C$107,CU$7)+SUMIFS('Project Scope'!$AX$8:$AX$107,'Project Scope'!$AW$8:$AW$107,$I27,'Project Scope'!$C$8:$C$107,CU$7),0)","v":0},{"$f":"IF(AW27=\"yes\",SUMIFS('Project Scope'!$AO$8:$AO$107,'Project Scope'!$AN$8:$AN$107,$I27,'Project Scope'!$C$8:$C$107,CV$7)+SUMIFS('Project Scope'!$AX$8:$AX$107,'Project Scope'!$AW$8:$AW$107,$I27,'Project Scope'!$C$8:$C$107,CV$7),0)","v":0},{"$f":"IF(AX27=\"yes\",SUMIFS('Project Scope'!$AO$8:$AO$107,'Project Scope'!$AN$8:$AN$107,$I27,'Project Scope'!$C$8:$C$107,CW$7)+SUMIFS('Project Scope'!$AX$8:$AX$107,'Project Scope'!$AW$8:$AW$107,$I27,'Project Scope'!$C$8:$C$107,CW$7),0)","v":0},{"$f":"IF(AY27=\"yes\",SUMIFS('Project Scope'!$AO$8:$AO$107,'Project Scope'!$AN$8:$AN$107,$I27,'Project Scope'!$C$8:$C$107,CX$7)+SUMIFS('Project Scope'!$AX$8:$AX$107,'Project Scope'!$AW$8:$AW$107,$I27,'Project Scope'!$C$8:$C$107,CX$7),0)","v":0},{"$f":"IF(AZ27=\"yes\",SUMIFS('Project Scope'!$AO$8:$AO$107,'Project Scope'!$AN$8:$AN$107,$I27,'Project Scope'!$C$8:$C$107,CY$7)+SUMIFS('Project Scope'!$AX$8:$AX$107,'Project Scope'!$AW$8:$AW$107,$I27,'Project Scope'!$C$8:$C$107,CY$7),0)","v":0},{"$f":"IF(BA27=\"yes\",SUMIFS('Project Scope'!$AO$8:$AO$107,'Project Scope'!$AN$8:$AN$107,$I27,'Project Scope'!$C$8:$C$107,CZ$7)+SUMIFS('Project Scope'!$AX$8:$AX$107,'Project Scope'!$AW$8:$AW$107,$I27,'Project Scope'!$C$8:$C$107,CZ$7),0)","v":0},{"$f":"IF(BB27=\"yes\",SUMIFS('Project Scope'!$AO$8:$AO$107,'Project Scope'!$AN$8:$AN$107,$I27,'Project Scope'!$C$8:$C$107,DA$7)+SUMIFS('Project Scope'!$AX$8:$AX$107,'Project Scope'!$AW$8:$AW$107,$I27,'Project Scope'!$C$8:$C$107,DA$7),0)","v":0},{"$f":"IF(BC27=\"yes\",SUMIFS('Project Scope'!$AO$8:$AO$107,'Project Scope'!$AN$8:$AN$107,$I27,'Project Scope'!$C$8:$C$107,DB$7)+SUMIFS('Project Scope'!$AX$8:$AX$107,'Project Scope'!$AW$8:$AW$107,$I27,'Project Scope'!$C$8:$C$107,DB$7),0)","v":0},{"$f":"IF(BD27=\"yes\",SUMIFS('Project Scope'!$AO$8:$AO$107,'Project Scope'!$AN$8:$AN$107,$I27,'Project Scope'!$C$8:$C$107,DC$7)+SUMIFS('Project Scope'!$AX$8:$AX$107,'Project Scope'!$AW$8:$AW$107,$I27,'Project Scope'!$C$8:$C$107,DC$7),0)","v":0},{"$f":"IF(BE27=\"yes\",SUMIFS('Project Scope'!$AO$8:$AO$107,'Project Scope'!$AN$8:$AN$107,$I27,'Project Scope'!$C$8:$C$107,DD$7)+SUMIFS('Project Scope'!$AX$8:$AX$107,'Project Scope'!$AW$8:$AW$107,$I27,'Project Scope'!$C$8:$C$107,DD$7),0)","v":0},{"$f":"IF(BF27=\"yes\",SUMIFS('Project Scope'!$AO$8:$AO$107,'Project Scope'!$AN$8:$AN$107,$I27,'Project Scope'!$C$8:$C$107,DE$7)+SUMIFS('Project Scope'!$AX$8:$AX$107,'Project Scope'!$AW$8:$AW$107,$I27,'Project Scope'!$C$8:$C$107,DE$7),0)","v":0},{"$f":"IF(BG27=\"yes\",SUMIFS('Project Scope'!$AO$8:$AO$107,'Project Scope'!$AN$8:$AN$107,$I27,'Project Scope'!$C$8:$C$107,DF$7)+SUMIFS('Project Scope'!$AX$8:$AX$107,'Project Scope'!$AW$8:$AW$107,$I27,'Project Scope'!$C$8:$C$107,DF$7),0)","v":0},{"$f":"IF(BH27=\"yes\",SUMIFS('Project Scope'!$AO$8:$AO$107,'Project Scope'!$AN$8:$AN$107,$I27,'Project Scope'!$C$8:$C$107,DG$7)+SUMIFS('Project Scope'!$AX$8:$AX$107,'Project Scope'!$AW$8:$AW$107,$I27,'Project Scope'!$C$8:$C$107,DG$7),0)","v":0},{"$f":"IF(BI27=\"yes\",SUMIFS('Project Scope'!$AO$8:$AO$107,'Project Scope'!$AN$8:$AN$107,$I27,'Project Scope'!$C$8:$C$107,DH$7)+SUMIFS('Project Scope'!$AX$8:$AX$107,'Project Scope'!$AW$8:$AW$107,$I27,'Project Scope'!$C$8:$C$107,DH$7),0)","v":0},{"$f":"IF(BJ27=\"yes\",SUMIFS('Project Scope'!$AO$8:$AO$107,'Project Scope'!$AN$8:$AN$107,$I27,'Project Scope'!$C$8:$C$107,DI$7)+SUMIFS('Project Scope'!$AX$8:$AX$107,'Project Scope'!$AW$8:$AW$107,$I27,'Project Scope'!$C$8:$C$107,DI$7),0)","v":0},{"$f":"IF(BK27=\"yes\",SUMIFS('Project Scope'!$AO$8:$AO$107,'Project Scope'!$AN$8:$AN$107,$I27,'Project Scope'!$C$8:$C$107,DJ$7)+SUMIFS('Project Scope'!$AX$8:$AX$107,'Project Scope'!$AW$8:$AW$107,$I27,'Project Scope'!$C$8:$C$107,DJ$7),0)","v":0},{"$f":"IF(BL27=\"yes\",SUMIFS('Project Scope'!$AO$8:$AO$107,'Project Scope'!$AN$8:$AN$107,$I27,'Project Scope'!$C$8:$C$107,DK$7)+SUMIFS('Project Scope'!$AX$8:$AX$107,'Project Scope'!$AW$8:$AW$107,$I27,'Project Scope'!$C$8:$C$107,DK$7),0)","v":0},null,"","","","","","","","","","","","","","","","","","","","","","","","","","","","","","","","","","","","","","","","","","","","","","","","","","",null,""]
[null,null,null,null,null,null,null,null,null,null,null,{"$f":"IF($C28=\"additional labor hours\",$K28*'Project Information'!$D$12,$K28*$J28)*IF($F28=\"Per Measure\",SUM($BN28:$DK28),1)","v":0},{"$f":"IF($C28=\"\",0,IF(VLOOKUP($C28,'Other Data'!$B$146:$C$156,2,FALSE)=\"M\",$L28,0))","v":0},0,null,null,null,null,null,null,null,null,null,null,null,null,null,null,null,null,null,null,null,null,null,null,null,null,null,null,null,null,null,null,null,null,null,null,null,null,null,null,null,null,null,null,null,null,null,null,null,null,null,null,null,{"$f":"IF(O28=\"yes\",SUMIFS('Project Scope'!$AO$8:$AO$107,'Project Scope'!$AN$8:$AN$107,$I28,'Project Scope'!$C$8:$C$107,BN$7)+SUMIFS('Project Scope'!$AX$8:$AX$107,'Project Scope'!$AW$8:$AW$107,$I28,'Project Scope'!$C$8:$C$107,BN$7),0)","v":0},{"$f":"IF(P28=\"yes\",SUMIFS('Project Scope'!$AO$8:$AO$107,'Project Scope'!$AN$8:$AN$107,$I28,'Project Scope'!$C$8:$C$107,BO$7)+SUMIFS('Project Scope'!$AX$8:$AX$107,'Project Scope'!$AW$8:$AW$107,$I28,'Project Scope'!$C$8:$C$107,BO$7),0)","v":0},{"$f":"IF(Q28=\"yes\",SUMIFS('Project Scope'!$AO$8:$AO$107,'Project Scope'!$AN$8:$AN$107,$I28,'Project Scope'!$C$8:$C$107,BP$7)+SUMIFS('Project Scope'!$AX$8:$AX$107,'Project Scope'!$AW$8:$AW$107,$I28,'Project Scope'!$C$8:$C$107,BP$7),0)","v":0},{"$f":"IF(R28=\"yes\",SUMIFS('Project Scope'!$AO$8:$AO$107,'Project Scope'!$AN$8:$AN$107,$I28,'Project Scope'!$C$8:$C$107,BQ$7)+SUMIFS('Project Scope'!$AX$8:$AX$107,'Project Scope'!$AW$8:$AW$107,$I28,'Project Scope'!$C$8:$C$107,BQ$7),0)","v":0},{"$f":"IF(S28=\"yes\",SUMIFS('Project Scope'!$AO$8:$AO$107,'Project Scope'!$AN$8:$AN$107,$I28,'Project Scope'!$C$8:$C$107,BR$7)+SUMIFS('Project Scope'!$AX$8:$AX$107,'Project Scope'!$AW$8:$AW$107,$I28,'Project Scope'!$C$8:$C$107,BR$7),0)","v":0},{"$f":"IF(T28=\"yes\",SUMIFS('Project Scope'!$AO$8:$AO$107,'Project Scope'!$AN$8:$AN$107,$I28,'Project Scope'!$C$8:$C$107,BS$7)+SUMIFS('Project Scope'!$AX$8:$AX$107,'Project Scope'!$AW$8:$AW$107,$I28,'Project Scope'!$C$8:$C$107,BS$7),0)","v":0},{"$f":"IF(U28=\"yes\",SUMIFS('Project Scope'!$AO$8:$AO$107,'Project Scope'!$AN$8:$AN$107,$I28,'Project Scope'!$C$8:$C$107,BT$7)+SUMIFS('Project Scope'!$AX$8:$AX$107,'Project Scope'!$AW$8:$AW$107,$I28,'Project Scope'!$C$8:$C$107,BT$7),0)","v":0},{"$f":"IF(V28=\"yes\",SUMIFS('Project Scope'!$AO$8:$AO$107,'Project Scope'!$AN$8:$AN$107,$I28,'Project Scope'!$C$8:$C$107,BU$7)+SUMIFS('Project Scope'!$AX$8:$AX$107,'Project Scope'!$AW$8:$AW$107,$I28,'Project Scope'!$C$8:$C$107,BU$7),0)","v":0},{"$f":"IF(W28=\"yes\",SUMIFS('Project Scope'!$AO$8:$AO$107,'Project Scope'!$AN$8:$AN$107,$I28,'Project Scope'!$C$8:$C$107,BV$7)+SUMIFS('Project Scope'!$AX$8:$AX$107,'Project Scope'!$AW$8:$AW$107,$I28,'Project Scope'!$C$8:$C$107,BV$7),0)","v":0},{"$f":"IF(X28=\"yes\",SUMIFS('Project Scope'!$AO$8:$AO$107,'Project Scope'!$AN$8:$AN$107,$I28,'Project Scope'!$C$8:$C$107,BW$7)+SUMIFS('Project Scope'!$AX$8:$AX$107,'Project Scope'!$AW$8:$AW$107,$I28,'Project Scope'!$C$8:$C$107,BW$7),0)","v":0},{"$f":"IF(Y28=\"yes\",SUMIFS('Project Scope'!$AO$8:$AO$107,'Project Scope'!$AN$8:$AN$107,$I28,'Project Scope'!$C$8:$C$107,BX$7)+SUMIFS('Project Scope'!$AX$8:$AX$107,'Project Scope'!$AW$8:$AW$107,$I28,'Project Scope'!$C$8:$C$107,BX$7),0)","v":0},{"$f":"IF(Z28=\"yes\",SUMIFS('Project Scope'!$AO$8:$AO$107,'Project Scope'!$AN$8:$AN$107,$I28,'Project Scope'!$C$8:$C$107,BY$7)+SUMIFS('Project Scope'!$AX$8:$AX$107,'Project Scope'!$AW$8:$AW$107,$I28,'Project Scope'!$C$8:$C$107,BY$7),0)","v":0},{"$f":"IF(AA28=\"yes\",SUMIFS('Project Scope'!$AO$8:$AO$107,'Project Scope'!$AN$8:$AN$107,$I28,'Project Scope'!$C$8:$C$107,BZ$7)+SUMIFS('Project Scope'!$AX$8:$AX$107,'Project Scope'!$AW$8:$AW$107,$I28,'Project Scope'!$C$8:$C$107,BZ$7),0)","v":0},{"$f":"IF(AB28=\"yes\",SUMIFS('Project Scope'!$AO$8:$AO$107,'Project Scope'!$AN$8:$AN$107,$I28,'Project Scope'!$C$8:$C$107,CA$7)+SUMIFS('Project Scope'!$AX$8:$AX$107,'Project Scope'!$AW$8:$AW$107,$I28,'Project Scope'!$C$8:$C$107,CA$7),0)","v":0},{"$f":"IF(AC28=\"yes\",SUMIFS('Project Scope'!$AO$8:$AO$107,'Project Scope'!$AN$8:$AN$107,$I28,'Project Scope'!$C$8:$C$107,CB$7)+SUMIFS('Project Scope'!$AX$8:$AX$107,'Project Scope'!$AW$8:$AW$107,$I28,'Project Scope'!$C$8:$C$107,CB$7),0)","v":0},{"$f":"IF(AD28=\"yes\",SUMIFS('Project Scope'!$AO$8:$AO$107,'Project Scope'!$AN$8:$AN$107,$I28,'Project Scope'!$C$8:$C$107,CC$7)+SUMIFS('Project Scope'!$AX$8:$AX$107,'Project Scope'!$AW$8:$AW$107,$I28,'Project Scope'!$C$8:$C$107,CC$7),0)","v":0},{"$f":"IF(AE28=\"yes\",SUMIFS('Project Scope'!$AO$8:$AO$107,'Project Scope'!$AN$8:$AN$107,$I28,'Project Scope'!$C$8:$C$107,CD$7)+SUMIFS('Project Scope'!$AX$8:$AX$107,'Project Scope'!$AW$8:$AW$107,$I28,'Project Scope'!$C$8:$C$107,CD$7),0)","v":0},{"$f":"IF(AF28=\"yes\",SUMIFS('Project Scope'!$AO$8:$AO$107,'Project Scope'!$AN$8:$AN$107,$I28,'Project Scope'!$C$8:$C$107,CE$7)+SUMIFS('Project Scope'!$AX$8:$AX$107,'Project Scope'!$AW$8:$AW$107,$I28,'Project Scope'!$C$8:$C$107,CE$7),0)","v":0},{"$f":"IF(AG28=\"yes\",SUMIFS('Project Scope'!$AO$8:$AO$107,'Project Scope'!$AN$8:$AN$107,$I28,'Project Scope'!$C$8:$C$107,CF$7)+SUMIFS('Project Scope'!$AX$8:$AX$107,'Project Scope'!$AW$8:$AW$107,$I28,'Project Scope'!$C$8:$C$107,CF$7),0)","v":0},{"$f":"IF(AH28=\"yes\",SUMIFS('Project Scope'!$AO$8:$AO$107,'Project Scope'!$AN$8:$AN$107,$I28,'Project Scope'!$C$8:$C$107,CG$7)+SUMIFS('Project Scope'!$AX$8:$AX$107,'Project Scope'!$AW$8:$AW$107,$I28,'Project Scope'!$C$8:$C$107,CG$7),0)","v":0},{"$f":"IF(AI28=\"yes\",SUMIFS('Project Scope'!$AO$8:$AO$107,'Project Scope'!$AN$8:$AN$107,$I28,'Project Scope'!$C$8:$C$107,CH$7)+SUMIFS('Project Scope'!$AX$8:$AX$107,'Project Scope'!$AW$8:$AW$107,$I28,'Project Scope'!$C$8:$C$107,CH$7),0)","v":0},{"$f":"IF(AJ28=\"yes\",SUMIFS('Project Scope'!$AO$8:$AO$107,'Project Scope'!$AN$8:$AN$107,$I28,'Project Scope'!$C$8:$C$107,CI$7)+SUMIFS('Project Scope'!$AX$8:$AX$107,'Project Scope'!$AW$8:$AW$107,$I28,'Project Scope'!$C$8:$C$107,CI$7),0)","v":0},{"$f":"IF(AK28=\"yes\",SUMIFS('Project Scope'!$AO$8:$AO$107,'Project Scope'!$AN$8:$AN$107,$I28,'Project Scope'!$C$8:$C$107,CJ$7)+SUMIFS('Project Scope'!$AX$8:$AX$107,'Project Scope'!$AW$8:$AW$107,$I28,'Project Scope'!$C$8:$C$107,CJ$7),0)","v":0},{"$f":"IF(AL28=\"yes\",SUMIFS('Project Scope'!$AO$8:$AO$107,'Project Scope'!$AN$8:$AN$107,$I28,'Project Scope'!$C$8:$C$107,CK$7)+SUMIFS('Project Scope'!$AX$8:$AX$107,'Project Scope'!$AW$8:$AW$107,$I28,'Project Scope'!$C$8:$C$107,CK$7),0)","v":0},{"$f":"IF(AM28=\"yes\",SUMIFS('Project Scope'!$AO$8:$AO$107,'Project Scope'!$AN$8:$AN$107,$I28,'Project Scope'!$C$8:$C$107,CL$7)+SUMIFS('Project Scope'!$AX$8:$AX$107,'Project Scope'!$AW$8:$AW$107,$I28,'Project Scope'!$C$8:$C$107,CL$7),0)","v":0},{"$f":"IF(AN28=\"yes\",SUMIFS('Project Scope'!$AO$8:$AO$107,'Project Scope'!$AN$8:$AN$107,$I28,'Project Scope'!$C$8:$C$107,CM$7)+SUMIFS('Project Scope'!$AX$8:$AX$107,'Project Scope'!$AW$8:$AW$107,$I28,'Project Scope'!$C$8:$C$107,CM$7),0)","v":0},{"$f":"IF(AO28=\"yes\",SUMIFS('Project Scope'!$AO$8:$AO$107,'Project Scope'!$AN$8:$AN$107,$I28,'Project Scope'!$C$8:$C$107,CN$7)+SUMIFS('Project Scope'!$AX$8:$AX$107,'Project Scope'!$AW$8:$AW$107,$I28,'Project Scope'!$C$8:$C$107,CN$7),0)","v":0},{"$f":"IF(AP28=\"yes\",SUMIFS('Project Scope'!$AO$8:$AO$107,'Project Scope'!$AN$8:$AN$107,$I28,'Project Scope'!$C$8:$C$107,CO$7)+SUMIFS('Project Scope'!$AX$8:$AX$107,'Project Scope'!$AW$8:$AW$107,$I28,'Project Scope'!$C$8:$C$107,CO$7),0)","v":0},{"$f":"IF(AQ28=\"yes\",SUMIFS('Project Scope'!$AO$8:$AO$107,'Project Scope'!$AN$8:$AN$107,$I28,'Project Scope'!$C$8:$C$107,CP$7)+SUMIFS('Project Scope'!$AX$8:$AX$107,'Project Scope'!$AW$8:$AW$107,$I28,'Project Scope'!$C$8:$C$107,CP$7),0)","v":0},{"$f":"IF(AR28=\"yes\",SUMIFS('Project Scope'!$AO$8:$AO$107,'Project Scope'!$AN$8:$AN$107,$I28,'Project Scope'!$C$8:$C$107,CQ$7)+SUMIFS('Project Scope'!$AX$8:$AX$107,'Project Scope'!$AW$8:$AW$107,$I28,'Project Scope'!$C$8:$C$107,CQ$7),0)","v":0},{"$f":"IF(AS28=\"yes\",SUMIFS('Project Scope'!$AO$8:$AO$107,'Project Scope'!$AN$8:$AN$107,$I28,'Project Scope'!$C$8:$C$107,CR$7)+SUMIFS('Project Scope'!$AX$8:$AX$107,'Project Scope'!$AW$8:$AW$107,$I28,'Project Scope'!$C$8:$C$107,CR$7),0)","v":0},{"$f":"IF(AT28=\"yes\",SUMIFS('Project Scope'!$AO$8:$AO$107,'Project Scope'!$AN$8:$AN$107,$I28,'Project Scope'!$C$8:$C$107,CS$7)+SUMIFS('Project Scope'!$AX$8:$AX$107,'Project Scope'!$AW$8:$AW$107,$I28,'Project Scope'!$C$8:$C$107,CS$7),0)","v":0},{"$f":"IF(AU28=\"yes\",SUMIFS('Project Scope'!$AO$8:$AO$107,'Project Scope'!$AN$8:$AN$107,$I28,'Project Scope'!$C$8:$C$107,CT$7)+SUMIFS('Project Scope'!$AX$8:$AX$107,'Project Scope'!$AW$8:$AW$107,$I28,'Project Scope'!$C$8:$C$107,CT$7),0)","v":0},{"$f":"IF(AV28=\"yes\",SUMIFS('Project Scope'!$AO$8:$AO$107,'Project Scope'!$AN$8:$AN$107,$I28,'Project Scope'!$C$8:$C$107,CU$7)+SUMIFS('Project Scope'!$AX$8:$AX$107,'Project Scope'!$AW$8:$AW$107,$I28,'Project Scope'!$C$8:$C$107,CU$7),0)","v":0},{"$f":"IF(AW28=\"yes\",SUMIFS('Project Scope'!$AO$8:$AO$107,'Project Scope'!$AN$8:$AN$107,$I28,'Project Scope'!$C$8:$C$107,CV$7)+SUMIFS('Project Scope'!$AX$8:$AX$107,'Project Scope'!$AW$8:$AW$107,$I28,'Project Scope'!$C$8:$C$107,CV$7),0)","v":0},{"$f":"IF(AX28=\"yes\",SUMIFS('Project Scope'!$AO$8:$AO$107,'Project Scope'!$AN$8:$AN$107,$I28,'Project Scope'!$C$8:$C$107,CW$7)+SUMIFS('Project Scope'!$AX$8:$AX$107,'Project Scope'!$AW$8:$AW$107,$I28,'Project Scope'!$C$8:$C$107,CW$7),0)","v":0},{"$f":"IF(AY28=\"yes\",SUMIFS('Project Scope'!$AO$8:$AO$107,'Project Scope'!$AN$8:$AN$107,$I28,'Project Scope'!$C$8:$C$107,CX$7)+SUMIFS('Project Scope'!$AX$8:$AX$107,'Project Scope'!$AW$8:$AW$107,$I28,'Project Scope'!$C$8:$C$107,CX$7),0)","v":0},{"$f":"IF(AZ28=\"yes\",SUMIFS('Project Scope'!$AO$8:$AO$107,'Project Scope'!$AN$8:$AN$107,$I28,'Project Scope'!$C$8:$C$107,CY$7)+SUMIFS('Project Scope'!$AX$8:$AX$107,'Project Scope'!$AW$8:$AW$107,$I28,'Project Scope'!$C$8:$C$107,CY$7),0)","v":0},{"$f":"IF(BA28=\"yes\",SUMIFS('Project Scope'!$AO$8:$AO$107,'Project Scope'!$AN$8:$AN$107,$I28,'Project Scope'!$C$8:$C$107,CZ$7)+SUMIFS('Project Scope'!$AX$8:$AX$107,'Project Scope'!$AW$8:$AW$107,$I28,'Project Scope'!$C$8:$C$107,CZ$7),0)","v":0},{"$f":"IF(BB28=\"yes\",SUMIFS('Project Scope'!$AO$8:$AO$107,'Project Scope'!$AN$8:$AN$107,$I28,'Project Scope'!$C$8:$C$107,DA$7)+SUMIFS('Project Scope'!$AX$8:$AX$107,'Project Scope'!$AW$8:$AW$107,$I28,'Project Scope'!$C$8:$C$107,DA$7),0)","v":0},{"$f":"IF(BC28=\"yes\",SUMIFS('Project Scope'!$AO$8:$AO$107,'Project Scope'!$AN$8:$AN$107,$I28,'Project Scope'!$C$8:$C$107,DB$7)+SUMIFS('Project Scope'!$AX$8:$AX$107,'Project Scope'!$AW$8:$AW$107,$I28,'Project Scope'!$C$8:$C$107,DB$7),0)","v":0},{"$f":"IF(BD28=\"yes\",SUMIFS('Project Scope'!$AO$8:$AO$107,'Project Scope'!$AN$8:$AN$107,$I28,'Project Scope'!$C$8:$C$107,DC$7)+SUMIFS('Project Scope'!$AX$8:$AX$107,'Project Scope'!$AW$8:$AW$107,$I28,'Project Scope'!$C$8:$C$107,DC$7),0)","v":0},{"$f":"IF(BE28=\"yes\",SUMIFS('Project Scope'!$AO$8:$AO$107,'Project Scope'!$AN$8:$AN$107,$I28,'Project Scope'!$C$8:$C$107,DD$7)+SUMIFS('Project Scope'!$AX$8:$AX$107,'Project Scope'!$AW$8:$AW$107,$I28,'Project Scope'!$C$8:$C$107,DD$7),0)","v":0},{"$f":"IF(BF28=\"yes\",SUMIFS('Project Scope'!$AO$8:$AO$107,'Project Scope'!$AN$8:$AN$107,$I28,'Project Scope'!$C$8:$C$107,DE$7)+SUMIFS('Project Scope'!$AX$8:$AX$107,'Project Scope'!$AW$8:$AW$107,$I28,'Project Scope'!$C$8:$C$107,DE$7),0)","v":0},{"$f":"IF(BG28=\"yes\",SUMIFS('Project Scope'!$AO$8:$AO$107,'Project Scope'!$AN$8:$AN$107,$I28,'Project Scope'!$C$8:$C$107,DF$7)+SUMIFS('Project Scope'!$AX$8:$AX$107,'Project Scope'!$AW$8:$AW$107,$I28,'Project Scope'!$C$8:$C$107,DF$7),0)","v":0},{"$f":"IF(BH28=\"yes\",SUMIFS('Project Scope'!$AO$8:$AO$107,'Project Scope'!$AN$8:$AN$107,$I28,'Project Scope'!$C$8:$C$107,DG$7)+SUMIFS('Project Scope'!$AX$8:$AX$107,'Project Scope'!$AW$8:$AW$107,$I28,'Project Scope'!$C$8:$C$107,DG$7),0)","v":0},{"$f":"IF(BI28=\"yes\",SUMIFS('Project Scope'!$AO$8:$AO$107,'Project Scope'!$AN$8:$AN$107,$I28,'Project Scope'!$C$8:$C$107,DH$7)+SUMIFS('Project Scope'!$AX$8:$AX$107,'Project Scope'!$AW$8:$AW$107,$I28,'Project Scope'!$C$8:$C$107,DH$7),0)","v":0},{"$f":"IF(BJ28=\"yes\",SUMIFS('Project Scope'!$AO$8:$AO$107,'Project Scope'!$AN$8:$AN$107,$I28,'Project Scope'!$C$8:$C$107,DI$7)+SUMIFS('Project Scope'!$AX$8:$AX$107,'Project Scope'!$AW$8:$AW$107,$I28,'Project Scope'!$C$8:$C$107,DI$7),0)","v":0},{"$f":"IF(BK28=\"yes\",SUMIFS('Project Scope'!$AO$8:$AO$107,'Project Scope'!$AN$8:$AN$107,$I28,'Project Scope'!$C$8:$C$107,DJ$7)+SUMIFS('Project Scope'!$AX$8:$AX$107,'Project Scope'!$AW$8:$AW$107,$I28,'Project Scope'!$C$8:$C$107,DJ$7),0)","v":0},{"$f":"IF(BL28=\"yes\",SUMIFS('Project Scope'!$AO$8:$AO$107,'Project Scope'!$AN$8:$AN$107,$I28,'Project Scope'!$C$8:$C$107,DK$7)+SUMIFS('Project Scope'!$AX$8:$AX$107,'Project Scope'!$AW$8:$AW$107,$I28,'Project Scope'!$C$8:$C$107,DK$7),0)","v":0},null,"","","","","","","","","","","","","","","","","","","","","","","","","","","","","","","","","","","","","","","","","","","","","","","","","","",null,""]
[null,null,null,null,null,null,null,null,null,null,null,{"$f":"IF($C29=\"additional labor hours\",$K29*'Project Information'!$D$12,$K29*$J29)*IF($F29=\"Per Measure\",SUM($BN29:$DK29),1)","v":0},{"$f":"IF($C29=\"\",0,IF(VLOOKUP($C29,'Other Data'!$B$146:$C$156,2,FALSE)=\"M\",$L29,0))","v":0},0,null,null,null,null,null,null,null,null,null,null,null,null,null,null,null,null,null,null,null,null,null,null,null,null,null,null,null,null,null,null,null,null,null,null,null,null,null,null,null,null,null,null,null,null,null,null,null,null,null,null,null,{"$f":"IF(O29=\"yes\",SUMIFS('Project Scope'!$AO$8:$AO$107,'Project Scope'!$AN$8:$AN$107,$I29,'Project Scope'!$C$8:$C$107,BN$7)+SUMIFS('Project Scope'!$AX$8:$AX$107,'Project Scope'!$AW$8:$AW$107,$I29,'Project Scope'!$C$8:$C$107,BN$7),0)","v":0},{"$f":"IF(P29=\"yes\",SUMIFS('Project Scope'!$AO$8:$AO$107,'Project Scope'!$AN$8:$AN$107,$I29,'Project Scope'!$C$8:$C$107,BO$7)+SUMIFS('Project Scope'!$AX$8:$AX$107,'Project Scope'!$AW$8:$AW$107,$I29,'Project Scope'!$C$8:$C$107,BO$7),0)","v":0},{"$f":"IF(Q29=\"yes\",SUMIFS('Project Scope'!$AO$8:$AO$107,'Project Scope'!$AN$8:$AN$107,$I29,'Project Scope'!$C$8:$C$107,BP$7)+SUMIFS('Project Scope'!$AX$8:$AX$107,'Project Scope'!$AW$8:$AW$107,$I29,'Project Scope'!$C$8:$C$107,BP$7),0)","v":0},{"$f":"IF(R29=\"yes\",SUMIFS('Project Scope'!$AO$8:$AO$107,'Project Scope'!$AN$8:$AN$107,$I29,'Project Scope'!$C$8:$C$107,BQ$7)+SUMIFS('Project Scope'!$AX$8:$AX$107,'Project Scope'!$AW$8:$AW$107,$I29,'Project Scope'!$C$8:$C$107,BQ$7),0)","v":0},{"$f":"IF(S29=\"yes\",SUMIFS('Project Scope'!$AO$8:$AO$107,'Project Scope'!$AN$8:$AN$107,$I29,'Project Scope'!$C$8:$C$107,BR$7)+SUMIFS('Project Scope'!$AX$8:$AX$107,'Project Scope'!$AW$8:$AW$107,$I29,'Project Scope'!$C$8:$C$107,BR$7),0)","v":0},{"$f":"IF(T29=\"yes\",SUMIFS('Project Scope'!$AO$8:$AO$107,'Project Scope'!$AN$8:$AN$107,$I29,'Project Scope'!$C$8:$C$107,BS$7)+SUMIFS('Project Scope'!$AX$8:$AX$107,'Project Scope'!$AW$8:$AW$107,$I29,'Project Scope'!$C$8:$C$107,BS$7),0)","v":0},{"$f":"IF(U29=\"yes\",SUMIFS('Project Scope'!$AO$8:$AO$107,'Project Scope'!$AN$8:$AN$107,$I29,'Project Scope'!$C$8:$C$107,BT$7)+SUMIFS('Project Scope'!$AX$8:$AX$107,'Project Scope'!$AW$8:$AW$107,$I29,'Project Scope'!$C$8:$C$107,BT$7),0)","v":0},{"$f":"IF(V29=\"yes\",SUMIFS('Project Scope'!$AO$8:$AO$107,'Project Scope'!$AN$8:$AN$107,$I29,'Project Scope'!$C$8:$C$107,BU$7)+SUMIFS('Project Scope'!$AX$8:$AX$107,'Project Scope'!$AW$8:$AW$107,$I29,'Project Scope'!$C$8:$C$107,BU$7),0)","v":0},{"$f":"IF(W29=\"yes\",SUMIFS('Project Scope'!$AO$8:$AO$107,'Project Scope'!$AN$8:$AN$107,$I29,'Project Scope'!$C$8:$C$107,BV$7)+SUMIFS('Project Scope'!$AX$8:$AX$107,'Project Scope'!$AW$8:$AW$107,$I29,'Project Scope'!$C$8:$C$107,BV$7),0)","v":0},{"$f":"IF(X29=\"yes\",SUMIFS('Project Scope'!$AO$8:$AO$107,'Project Scope'!$AN$8:$AN$107,$I29,'Project Scope'!$C$8:$C$107,BW$7)+SUMIFS('Project Scope'!$AX$8:$AX$107,'Project Scope'!$AW$8:$AW$107,$I29,'Project Scope'!$C$8:$C$107,BW$7),0)","v":0},{"$f":"IF(Y29=\"yes\",SUMIFS('Project Scope'!$AO$8:$AO$107,'Project Scope'!$AN$8:$AN$107,$I29,'Project Scope'!$C$8:$C$107,BX$7)+SUMIFS('Project Scope'!$AX$8:$AX$107,'Project Scope'!$AW$8:$AW$107,$I29,'Project Scope'!$C$8:$C$107,BX$7),0)","v":0},{"$f":"IF(Z29=\"yes\",SUMIFS('Project Scope'!$AO$8:$AO$107,'Project Scope'!$AN$8:$AN$107,$I29,'Project Scope'!$C$8:$C$107,BY$7)+SUMIFS('Project Scope'!$AX$8:$AX$107,'Project Scope'!$AW$8:$AW$107,$I29,'Project Scope'!$C$8:$C$107,BY$7),0)","v":0},{"$f":"IF(AA29=\"yes\",SUMIFS('Project Scope'!$AO$8:$AO$107,'Project Scope'!$AN$8:$AN$107,$I29,'Project Scope'!$C$8:$C$107,BZ$7)+SUMIFS('Project Scope'!$AX$8:$AX$107,'Project Scope'!$AW$8:$AW$107,$I29,'Project Scope'!$C$8:$C$107,BZ$7),0)","v":0},{"$f":"IF(AB29=\"yes\",SUMIFS('Project Scope'!$AO$8:$AO$107,'Project Scope'!$AN$8:$AN$107,$I29,'Project Scope'!$C$8:$C$107,CA$7)+SUMIFS('Project Scope'!$AX$8:$AX$107,'Project Scope'!$AW$8:$AW$107,$I29,'Project Scope'!$C$8:$C$107,CA$7),0)","v":0},{"$f":"IF(AC29=\"yes\",SUMIFS('Project Scope'!$AO$8:$AO$107,'Project Scope'!$AN$8:$AN$107,$I29,'Project Scope'!$C$8:$C$107,CB$7)+SUMIFS('Project Scope'!$AX$8:$AX$107,'Project Scope'!$AW$8:$AW$107,$I29,'Project Scope'!$C$8:$C$107,CB$7),0)","v":0},{"$f":"IF(AD29=\"yes\",SUMIFS('Project Scope'!$AO$8:$AO$107,'Project Scope'!$AN$8:$AN$107,$I29,'Project Scope'!$C$8:$C$107,CC$7)+SUMIFS('Project Scope'!$AX$8:$AX$107,'Project Scope'!$AW$8:$AW$107,$I29,'Project Scope'!$C$8:$C$107,CC$7),0)","v":0},{"$f":"IF(AE29=\"yes\",SUMIFS('Project Scope'!$AO$8:$AO$107,'Project Scope'!$AN$8:$AN$107,$I29,'Project Scope'!$C$8:$C$107,CD$7)+SUMIFS('Project Scope'!$AX$8:$AX$107,'Project Scope'!$AW$8:$AW$107,$I29,'Project Scope'!$C$8:$C$107,CD$7),0)","v":0},{"$f":"IF(AF29=\"yes\",SUMIFS('Project Scope'!$AO$8:$AO$107,'Project Scope'!$AN$8:$AN$107,$I29,'Project Scope'!$C$8:$C$107,CE$7)+SUMIFS('Project Scope'!$AX$8:$AX$107,'Project Scope'!$AW$8:$AW$107,$I29,'Project Scope'!$C$8:$C$107,CE$7),0)","v":0},{"$f":"IF(AG29=\"yes\",SUMIFS('Project Scope'!$AO$8:$AO$107,'Project Scope'!$AN$8:$AN$107,$I29,'Project Scope'!$C$8:$C$107,CF$7)+SUMIFS('Project Scope'!$AX$8:$AX$107,'Project Scope'!$AW$8:$AW$107,$I29,'Project Scope'!$C$8:$C$107,CF$7),0)","v":0},{"$f":"IF(AH29=\"yes\",SUMIFS('Project Scope'!$AO$8:$AO$107,'Project Scope'!$AN$8:$AN$107,$I29,'Project Scope'!$C$8:$C$107,CG$7)+SUMIFS('Project Scope'!$AX$8:$AX$107,'Project Scope'!$AW$8:$AW$107,$I29,'Project Scope'!$C$8:$C$107,CG$7),0)","v":0},{"$f":"IF(AI29=\"yes\",SUMIFS('Project Scope'!$AO$8:$AO$107,'Project Scope'!$AN$8:$AN$107,$I29,'Project Scope'!$C$8:$C$107,CH$7)+SUMIFS('Project Scope'!$AX$8:$AX$107,'Project Scope'!$AW$8:$AW$107,$I29,'Project Scope'!$C$8:$C$107,CH$7),0)","v":0},{"$f":"IF(AJ29=\"yes\",SUMIFS('Project Scope'!$AO$8:$AO$107,'Project Scope'!$AN$8:$AN$107,$I29,'Project Scope'!$C$8:$C$107,CI$7)+SUMIFS('Project Scope'!$AX$8:$AX$107,'Project Scope'!$AW$8:$AW$107,$I29,'Project Scope'!$C$8:$C$107,CI$7),0)","v":0},{"$f":"IF(AK29=\"yes\",SUMIFS('Project Scope'!$AO$8:$AO$107,'Project Scope'!$AN$8:$AN$107,$I29,'Project Scope'!$C$8:$C$107,CJ$7)+SUMIFS('Project Scope'!$AX$8:$AX$107,'Project Scope'!$AW$8:$AW$107,$I29,'Project Scope'!$C$8:$C$107,CJ$7),0)","v":0},{"$f":"IF(AL29=\"yes\",SUMIFS('Project Scope'!$AO$8:$AO$107,'Project Scope'!$AN$8:$AN$107,$I29,'Project Scope'!$C$8:$C$107,CK$7)+SUMIFS('Project Scope'!$AX$8:$AX$107,'Project Scope'!$AW$8:$AW$107,$I29,'Project Scope'!$C$8:$C$107,CK$7),0)","v":0},{"$f":"IF(AM29=\"yes\",SUMIFS('Project Scope'!$AO$8:$AO$107,'Project Scope'!$AN$8:$AN$107,$I29,'Project Scope'!$C$8:$C$107,CL$7)+SUMIFS('Project Scope'!$AX$8:$AX$107,'Project Scope'!$AW$8:$AW$107,$I29,'Project Scope'!$C$8:$C$107,CL$7),0)","v":0},{"$f":"IF(AN29=\"yes\",SUMIFS('Project Scope'!$AO$8:$AO$107,'Project Scope'!$AN$8:$AN$107,$I29,'Project Scope'!$C$8:$C$107,CM$7)+SUMIFS('Project Scope'!$AX$8:$AX$107,'Project Scope'!$AW$8:$AW$107,$I29,'Project Scope'!$C$8:$C$107,CM$7),0)","v":0},{"$f":"IF(AO29=\"yes\",SUMIFS('Project Scope'!$AO$8:$AO$107,'Project Scope'!$AN$8:$AN$107,$I29,'Project Scope'!$C$8:$C$107,CN$7)+SUMIFS('Project Scope'!$AX$8:$AX$107,'Project Scope'!$AW$8:$AW$107,$I29,'Project Scope'!$C$8:$C$107,CN$7),0)","v":0},{"$f":"IF(AP29=\"yes\",SUMIFS('Project Scope'!$AO$8:$AO$107,'Project Scope'!$AN$8:$AN$107,$I29,'Project Scope'!$C$8:$C$107,CO$7)+SUMIFS('Project Scope'!$AX$8:$AX$107,'Project Scope'!$AW$8:$AW$107,$I29,'Project Scope'!$C$8:$C$107,CO$7),0)","v":0},{"$f":"IF(AQ29=\"yes\",SUMIFS('Project Scope'!$AO$8:$AO$107,'Project Scope'!$AN$8:$AN$107,$I29,'Project Scope'!$C$8:$C$107,CP$7)+SUMIFS('Project Scope'!$AX$8:$AX$107,'Project Scope'!$AW$8:$AW$107,$I29,'Project Scope'!$C$8:$C$107,CP$7),0)","v":0},{"$f":"IF(AR29=\"yes\",SUMIFS('Project Scope'!$AO$8:$AO$107,'Project Scope'!$AN$8:$AN$107,$I29,'Project Scope'!$C$8:$C$107,CQ$7)+SUMIFS('Project Scope'!$AX$8:$AX$107,'Project Scope'!$AW$8:$AW$107,$I29,'Project Scope'!$C$8:$C$107,CQ$7),0)","v":0},{"$f":"IF(AS29=\"yes\",SUMIFS('Project Scope'!$AO$8:$AO$107,'Project Scope'!$AN$8:$AN$107,$I29,'Project Scope'!$C$8:$C$107,CR$7)+SUMIFS('Project Scope'!$AX$8:$AX$107,'Project Scope'!$AW$8:$AW$107,$I29,'Project Scope'!$C$8:$C$107,CR$7),0)","v":0},{"$f":"IF(AT29=\"yes\",SUMIFS('Project Scope'!$AO$8:$AO$107,'Project Scope'!$AN$8:$AN$107,$I29,'Project Scope'!$C$8:$C$107,CS$7)+SUMIFS('Project Scope'!$AX$8:$AX$107,'Project Scope'!$AW$8:$AW$107,$I29,'Project Scope'!$C$8:$C$107,CS$7),0)","v":0},{"$f":"IF(AU29=\"yes\",SUMIFS('Project Scope'!$AO$8:$AO$107,'Project Scope'!$AN$8:$AN$107,$I29,'Project Scope'!$C$8:$C$107,CT$7)+SUMIFS('Project Scope'!$AX$8:$AX$107,'Project Scope'!$AW$8:$AW$107,$I29,'Project Scope'!$C$8:$C$107,CT$7),0)","v":0},{"$f":"IF(AV29=\"yes\",SUMIFS('Project Scope'!$AO$8:$AO$107,'Project Scope'!$AN$8:$AN$107,$I29,'Project Scope'!$C$8:$C$107,CU$7)+SUMIFS('Project Scope'!$AX$8:$AX$107,'Project Scope'!$AW$8:$AW$107,$I29,'Project Scope'!$C$8:$C$107,CU$7),0)","v":0},{"$f":"IF(AW29=\"yes\",SUMIFS('Project Scope'!$AO$8:$AO$107,'Project Scope'!$AN$8:$AN$107,$I29,'Project Scope'!$C$8:$C$107,CV$7)+SUMIFS('Project Scope'!$AX$8:$AX$107,'Project Scope'!$AW$8:$AW$107,$I29,'Project Scope'!$C$8:$C$107,CV$7),0)","v":0},{"$f":"IF(AX29=\"yes\",SUMIFS('Project Scope'!$AO$8:$AO$107,'Project Scope'!$AN$8:$AN$107,$I29,'Project Scope'!$C$8:$C$107,CW$7)+SUMIFS('Project Scope'!$AX$8:$AX$107,'Project Scope'!$AW$8:$AW$107,$I29,'Project Scope'!$C$8:$C$107,CW$7),0)","v":0},{"$f":"IF(AY29=\"yes\",SUMIFS('Project Scope'!$AO$8:$AO$107,'Project Scope'!$AN$8:$AN$107,$I29,'Project Scope'!$C$8:$C$107,CX$7)+SUMIFS('Project Scope'!$AX$8:$AX$107,'Project Scope'!$AW$8:$AW$107,$I29,'Project Scope'!$C$8:$C$107,CX$7),0)","v":0},{"$f":"IF(AZ29=\"yes\",SUMIFS('Project Scope'!$AO$8:$AO$107,'Project Scope'!$AN$8:$AN$107,$I29,'Project Scope'!$C$8:$C$107,CY$7)+SUMIFS('Project Scope'!$AX$8:$AX$107,'Project Scope'!$AW$8:$AW$107,$I29,'Project Scope'!$C$8:$C$107,CY$7),0)","v":0},{"$f":"IF(BA29=\"yes\",SUMIFS('Project Scope'!$AO$8:$AO$107,'Project Scope'!$AN$8:$AN$107,$I29,'Project Scope'!$C$8:$C$107,CZ$7)+SUMIFS('Project Scope'!$AX$8:$AX$107,'Project Scope'!$AW$8:$AW$107,$I29,'Project Scope'!$C$8:$C$107,CZ$7),0)","v":0},{"$f":"IF(BB29=\"yes\",SUMIFS('Project Scope'!$AO$8:$AO$107,'Project Scope'!$AN$8:$AN$107,$I29,'Project Scope'!$C$8:$C$107,DA$7)+SUMIFS('Project Scope'!$AX$8:$AX$107,'Project Scope'!$AW$8:$AW$107,$I29,'Project Scope'!$C$8:$C$107,DA$7),0)","v":0},{"$f":"IF(BC29=\"yes\",SUMIFS('Project Scope'!$AO$8:$AO$107,'Project Scope'!$AN$8:$AN$107,$I29,'Project Scope'!$C$8:$C$107,DB$7)+SUMIFS('Project Scope'!$AX$8:$AX$107,'Project Scope'!$AW$8:$AW$107,$I29,'Project Scope'!$C$8:$C$107,DB$7),0)","v":0},{"$f":"IF(BD29=\"yes\",SUMIFS('Project Scope'!$AO$8:$AO$107,'Project Scope'!$AN$8:$AN$107,$I29,'Project Scope'!$C$8:$C$107,DC$7)+SUMIFS('Project Scope'!$AX$8:$AX$107,'Project Scope'!$AW$8:$AW$107,$I29,'Project Scope'!$C$8:$C$107,DC$7),0)","v":0},{"$f":"IF(BE29=\"yes\",SUMIFS('Project Scope'!$AO$8:$AO$107,'Project Scope'!$AN$8:$AN$107,$I29,'Project Scope'!$C$8:$C$107,DD$7)+SUMIFS('Project Scope'!$AX$8:$AX$107,'Project Scope'!$AW$8:$AW$107,$I29,'Project Scope'!$C$8:$C$107,DD$7),0)","v":0},{"$f":"IF(BF29=\"yes\",SUMIFS('Project Scope'!$AO$8:$AO$107,'Project Scope'!$AN$8:$AN$107,$I29,'Project Scope'!$C$8:$C$107,DE$7)+SUMIFS('Project Scope'!$AX$8:$AX$107,'Project Scope'!$AW$8:$AW$107,$I29,'Project Scope'!$C$8:$C$107,DE$7),0)","v":0},{"$f":"IF(BG29=\"yes\",SUMIFS('Project Scope'!$AO$8:$AO$107,'Project Scope'!$AN$8:$AN$107,$I29,'Project Scope'!$C$8:$C$107,DF$7)+SUMIFS('Project Scope'!$AX$8:$AX$107,'Project Scope'!$AW$8:$AW$107,$I29,'Project Scope'!$C$8:$C$107,DF$7),0)","v":0},{"$f":"IF(BH29=\"yes\",SUMIFS('Project Scope'!$AO$8:$AO$107,'Project Scope'!$AN$8:$AN$107,$I29,'Project Scope'!$C$8:$C$107,DG$7)+SUMIFS('Project Scope'!$AX$8:$AX$107,'Project Scope'!$AW$8:$AW$107,$I29,'Project Scope'!$C$8:$C$107,DG$7),0)","v":0},{"$f":"IF(BI29=\"yes\",SUMIFS('Project Scope'!$AO$8:$AO$107,'Project Scope'!$AN$8:$AN$107,$I29,'Project Scope'!$C$8:$C$107,DH$7)+SUMIFS('Project Scope'!$AX$8:$AX$107,'Project Scope'!$AW$8:$AW$107,$I29,'Project Scope'!$C$8:$C$107,DH$7),0)","v":0},{"$f":"IF(BJ29=\"yes\",SUMIFS('Project Scope'!$AO$8:$AO$107,'Project Scope'!$AN$8:$AN$107,$I29,'Project Scope'!$C$8:$C$107,DI$7)+SUMIFS('Project Scope'!$AX$8:$AX$107,'Project Scope'!$AW$8:$AW$107,$I29,'Project Scope'!$C$8:$C$107,DI$7),0)","v":0},{"$f":"IF(BK29=\"yes\",SUMIFS('Project Scope'!$AO$8:$AO$107,'Project Scope'!$AN$8:$AN$107,$I29,'Project Scope'!$C$8:$C$107,DJ$7)+SUMIFS('Project Scope'!$AX$8:$AX$107,'Project Scope'!$AW$8:$AW$107,$I29,'Project Scope'!$C$8:$C$107,DJ$7),0)","v":0},{"$f":"IF(BL29=\"yes\",SUMIFS('Project Scope'!$AO$8:$AO$107,'Project Scope'!$AN$8:$AN$107,$I29,'Project Scope'!$C$8:$C$107,DK$7)+SUMIFS('Project Scope'!$AX$8:$AX$107,'Project Scope'!$AW$8:$AW$107,$I29,'Project Scope'!$C$8:$C$107,DK$7),0)","v":0},null,"","","","","","","","","","","","","","","","","","","","","","","","","","","","","","","","","","","","","","","","","","","","","","","","","","",null,""]
[null,null,null,null,null,null,null,null,null,null,null,{"$f":"IF($C30=\"additional labor hours\",$K30*'Project Information'!$D$12,$K30*$J30)*IF($F30=\"Per Measure\",SUM($BN30:$DK30),1)","v":0},{"$f":"IF($C30=\"\",0,IF(VLOOKUP($C30,'Other Data'!$B$146:$C$156,2,FALSE)=\"M\",$L30,0))","v":0},0,null,null,null,null,null,null,null,null,null,null,null,null,null,null,null,null,null,null,null,null,null,null,null,null,null,null,null,null,null,null,null,null,null,null,null,null,null,null,null,null,null,null,null,null,null,null,null,null,null,null,null,{"$f":"IF(O30=\"yes\",SUMIFS('Project Scope'!$AO$8:$AO$107,'Project Scope'!$AN$8:$AN$107,$I30,'Project Scope'!$C$8:$C$107,BN$7)+SUMIFS('Project Scope'!$AX$8:$AX$107,'Project Scope'!$AW$8:$AW$107,$I30,'Project Scope'!$C$8:$C$107,BN$7),0)","v":0},{"$f":"IF(P30=\"yes\",SUMIFS('Project Scope'!$AO$8:$AO$107,'Project Scope'!$AN$8:$AN$107,$I30,'Project Scope'!$C$8:$C$107,BO$7)+SUMIFS('Project Scope'!$AX$8:$AX$107,'Project Scope'!$AW$8:$AW$107,$I30,'Project Scope'!$C$8:$C$107,BO$7),0)","v":0},{"$f":"IF(Q30=\"yes\",SUMIFS('Project Scope'!$AO$8:$AO$107,'Project Scope'!$AN$8:$AN$107,$I30,'Project Scope'!$C$8:$C$107,BP$7)+SUMIFS('Project Scope'!$AX$8:$AX$107,'Project Scope'!$AW$8:$AW$107,$I30,'Project Scope'!$C$8:$C$107,BP$7),0)","v":0},{"$f":"IF(R30=\"yes\",SUMIFS('Project Scope'!$AO$8:$AO$107,'Project Scope'!$AN$8:$AN$107,$I30,'Project Scope'!$C$8:$C$107,BQ$7)+SUMIFS('Project Scope'!$AX$8:$AX$107,'Project Scope'!$AW$8:$AW$107,$I30,'Project Scope'!$C$8:$C$107,BQ$7),0)","v":0},{"$f":"IF(S30=\"yes\",SUMIFS('Project Scope'!$AO$8:$AO$107,'Project Scope'!$AN$8:$AN$107,$I30,'Project Scope'!$C$8:$C$107,BR$7)+SUMIFS('Project Scope'!$AX$8:$AX$107,'Project Scope'!$AW$8:$AW$107,$I30,'Project Scope'!$C$8:$C$107,BR$7),0)","v":0},{"$f":"IF(T30=\"yes\",SUMIFS('Project Scope'!$AO$8:$AO$107,'Project Scope'!$AN$8:$AN$107,$I30,'Project Scope'!$C$8:$C$107,BS$7)+SUMIFS('Project Scope'!$AX$8:$AX$107,'Project Scope'!$AW$8:$AW$107,$I30,'Project Scope'!$C$8:$C$107,BS$7),0)","v":0},{"$f":"IF(U30=\"yes\",SUMIFS('Project Scope'!$AO$8:$AO$107,'Project Scope'!$AN$8:$AN$107,$I30,'Project Scope'!$C$8:$C$107,BT$7)+SUMIFS('Project Scope'!$AX$8:$AX$107,'Project Scope'!$AW$8:$AW$107,$I30,'Project Scope'!$C$8:$C$107,BT$7),0)","v":0},{"$f":"IF(V30=\"yes\",SUMIFS('Project Scope'!$AO$8:$AO$107,'Project Scope'!$AN$8:$AN$107,$I30,'Project Scope'!$C$8:$C$107,BU$7)+SUMIFS('Project Scope'!$AX$8:$AX$107,'Project Scope'!$AW$8:$AW$107,$I30,'Project Scope'!$C$8:$C$107,BU$7),0)","v":0},{"$f":"IF(W30=\"yes\",SUMIFS('Project Scope'!$AO$8:$AO$107,'Project Scope'!$AN$8:$AN$107,$I30,'Project Scope'!$C$8:$C$107,BV$7)+SUMIFS('Project Scope'!$AX$8:$AX$107,'Project Scope'!$AW$8:$AW$107,$I30,'Project Scope'!$C$8:$C$107,BV$7),0)","v":0},{"$f":"IF(X30=\"yes\",SUMIFS('Project Scope'!$AO$8:$AO$107,'Project Scope'!$AN$8:$AN$107,$I30,'Project Scope'!$C$8:$C$107,BW$7)+SUMIFS('Project Scope'!$AX$8:$AX$107,'Project Scope'!$AW$8:$AW$107,$I30,'Project Scope'!$C$8:$C$107,BW$7),0)","v":0},{"$f":"IF(Y30=\"yes\",SUMIFS('Project Scope'!$AO$8:$AO$107,'Project Scope'!$AN$8:$AN$107,$I30,'Project Scope'!$C$8:$C$107,BX$7)+SUMIFS('Project Scope'!$AX$8:$AX$107,'Project Scope'!$AW$8:$AW$107,$I30,'Project Scope'!$C$8:$C$107,BX$7),0)","v":0},{"$f":"IF(Z30=\"yes\",SUMIFS('Project Scope'!$AO$8:$AO$107,'Project Scope'!$AN$8:$AN$107,$I30,'Project Scope'!$C$8:$C$107,BY$7)+SUMIFS('Project Scope'!$AX$8:$AX$107,'Project Scope'!$AW$8:$AW$107,$I30,'Project Scope'!$C$8:$C$107,BY$7),0)","v":0},{"$f":"IF(AA30=\"yes\",SUMIFS('Project Scope'!$AO$8:$AO$107,'Project Scope'!$AN$8:$AN$107,$I30,'Project Scope'!$C$8:$C$107,BZ$7)+SUMIFS('Project Scope'!$AX$8:$AX$107,'Project Scope'!$AW$8:$AW$107,$I30,'Project Scope'!$C$8:$C$107,BZ$7),0)","v":0},{"$f":"IF(AB30=\"yes\",SUMIFS('Project Scope'!$AO$8:$AO$107,'Project Scope'!$AN$8:$AN$107,$I30,'Project Scope'!$C$8:$C$107,CA$7)+SUMIFS('Project Scope'!$AX$8:$AX$107,'Project Scope'!$AW$8:$AW$107,$I30,'Project Scope'!$C$8:$C$107,CA$7),0)","v":0},{"$f":"IF(AC30=\"yes\",SUMIFS('Project Scope'!$AO$8:$AO$107,'Project Scope'!$AN$8:$AN$107,$I30,'Project Scope'!$C$8:$C$107,CB$7)+SUMIFS('Project Scope'!$AX$8:$AX$107,'Project Scope'!$AW$8:$AW$107,$I30,'Project Scope'!$C$8:$C$107,CB$7),0)","v":0},{"$f":"IF(AD30=\"yes\",SUMIFS('Project Scope'!$AO$8:$AO$107,'Project Scope'!$AN$8:$AN$107,$I30,'Project Scope'!$C$8:$C$107,CC$7)+SUMIFS('Project Scope'!$AX$8:$AX$107,'Project Scope'!$AW$8:$AW$107,$I30,'Project Scope'!$C$8:$C$107,CC$7),0)","v":0},{"$f":"IF(AE30=\"yes\",SUMIFS('Project Scope'!$AO$8:$AO$107,'Project Scope'!$AN$8:$AN$107,$I30,'Project Scope'!$C$8:$C$107,CD$7)+SUMIFS('Project Scope'!$AX$8:$AX$107,'Project Scope'!$AW$8:$AW$107,$I30,'Project Scope'!$C$8:$C$107,CD$7),0)","v":0},{"$f":"IF(AF30=\"yes\",SUMIFS('Project Scope'!$AO$8:$AO$107,'Project Scope'!$AN$8:$AN$107,$I30,'Project Scope'!$C$8:$C$107,CE$7)+SUMIFS('Project Scope'!$AX$8:$AX$107,'Project Scope'!$AW$8:$AW$107,$I30,'Project Scope'!$C$8:$C$107,CE$7),0)","v":0},{"$f":"IF(AG30=\"yes\",SUMIFS('Project Scope'!$AO$8:$AO$107,'Project Scope'!$AN$8:$AN$107,$I30,'Project Scope'!$C$8:$C$107,CF$7)+SUMIFS('Project Scope'!$AX$8:$AX$107,'Project Scope'!$AW$8:$AW$107,$I30,'Project Scope'!$C$8:$C$107,CF$7),0)","v":0},{"$f":"IF(AH30=\"yes\",SUMIFS('Project Scope'!$AO$8:$AO$107,'Project Scope'!$AN$8:$AN$107,$I30,'Project Scope'!$C$8:$C$107,CG$7)+SUMIFS('Project Scope'!$AX$8:$AX$107,'Project Scope'!$AW$8:$AW$107,$I30,'Project Scope'!$C$8:$C$107,CG$7),0)","v":0},{"$f":"IF(AI30=\"yes\",SUMIFS('Project Scope'!$AO$8:$AO$107,'Project Scope'!$AN$8:$AN$107,$I30,'Project Scope'!$C$8:$C$107,CH$7)+SUMIFS('Project Scope'!$AX$8:$AX$107,'Project Scope'!$AW$8:$AW$107,$I30,'Project Scope'!$C$8:$C$107,CH$7),0)","v":0},{"$f":"IF(AJ30=\"yes\",SUMIFS('Project Scope'!$AO$8:$AO$107,'Project Scope'!$AN$8:$AN$107,$I30,'Project Scope'!$C$8:$C$107,CI$7)+SUMIFS('Project Scope'!$AX$8:$AX$107,'Project Scope'!$AW$8:$AW$107,$I30,'Project Scope'!$C$8:$C$107,CI$7),0)","v":0},{"$f":"IF(AK30=\"yes\",SUMIFS('Project Scope'!$AO$8:$AO$107,'Project Scope'!$AN$8:$AN$107,$I30,'Project Scope'!$C$8:$C$107,CJ$7)+SUMIFS('Project Scope'!$AX$8:$AX$107,'Project Scope'!$AW$8:$AW$107,$I30,'Project Scope'!$C$8:$C$107,CJ$7),0)","v":0},{"$f":"IF(AL30=\"yes\",SUMIFS('Project Scope'!$AO$8:$AO$107,'Project Scope'!$AN$8:$AN$107,$I30,'Project Scope'!$C$8:$C$107,CK$7)+SUMIFS('Project Scope'!$AX$8:$AX$107,'Project Scope'!$AW$8:$AW$107,$I30,'Project Scope'!$C$8:$C$107,CK$7),0)","v":0},{"$f":"IF(AM30=\"yes\",SUMIFS('Project Scope'!$AO$8:$AO$107,'Project Scope'!$AN$8:$AN$107,$I30,'Project Scope'!$C$8:$C$107,CL$7)+SUMIFS('Project Scope'!$AX$8:$AX$107,'Project Scope'!$AW$8:$AW$107,$I30,'Project Scope'!$C$8:$C$107,CL$7),0)","v":0},{"$f":"IF(AN30=\"yes\",SUMIFS('Project Scope'!$AO$8:$AO$107,'Project Scope'!$AN$8:$AN$107,$I30,'Project Scope'!$C$8:$C$107,CM$7)+SUMIFS('Project Scope'!$AX$8:$AX$107,'Project Scope'!$AW$8:$AW$107,$I30,'Project Scope'!$C$8:$C$107,CM$7),0)","v":0},{"$f":"IF(AO30=\"yes\",SUMIFS('Project Scope'!$AO$8:$AO$107,'Project Scope'!$AN$8:$AN$107,$I30,'Project Scope'!$C$8:$C$107,CN$7)+SUMIFS('Project Scope'!$AX$8:$AX$107,'Project Scope'!$AW$8:$AW$107,$I30,'Project Scope'!$C$8:$C$107,CN$7),0)","v":0},{"$f":"IF(AP30=\"yes\",SUMIFS('Project Scope'!$AO$8:$AO$107,'Project Scope'!$AN$8:$AN$107,$I30,'Project Scope'!$C$8:$C$107,CO$7)+SUMIFS('Project Scope'!$AX$8:$AX$107,'Project Scope'!$AW$8:$AW$107,$I30,'Project Scope'!$C$8:$C$107,CO$7),0)","v":0},{"$f":"IF(AQ30=\"yes\",SUMIFS('Project Scope'!$AO$8:$AO$107,'Project Scope'!$AN$8:$AN$107,$I30,'Project Scope'!$C$8:$C$107,CP$7)+SUMIFS('Project Scope'!$AX$8:$AX$107,'Project Scope'!$AW$8:$AW$107,$I30,'Project Scope'!$C$8:$C$107,CP$7),0)","v":0},{"$f":"IF(AR30=\"yes\",SUMIFS('Project Scope'!$AO$8:$AO$107,'Project Scope'!$AN$8:$AN$107,$I30,'Project Scope'!$C$8:$C$107,CQ$7)+SUMIFS('Project Scope'!$AX$8:$AX$107,'Project Scope'!$AW$8:$AW$107,$I30,'Project Scope'!$C$8:$C$107,CQ$7),0)","v":0},{"$f":"IF(AS30=\"yes\",SUMIFS('Project Scope'!$AO$8:$AO$107,'Project Scope'!$AN$8:$AN$107,$I30,'Project Scope'!$C$8:$C$107,CR$7)+SUMIFS('Project Scope'!$AX$8:$AX$107,'Project Scope'!$AW$8:$AW$107,$I30,'Project Scope'!$C$8:$C$107,CR$7),0)","v":0},{"$f":"IF(AT30=\"yes\",SUMIFS('Project Scope'!$AO$8:$AO$107,'Project Scope'!$AN$8:$AN$107,$I30,'Project Scope'!$C$8:$C$107,CS$7)+SUMIFS('Project Scope'!$AX$8:$AX$107,'Project Scope'!$AW$8:$AW$107,$I30,'Project Scope'!$C$8:$C$107,CS$7),0)","v":0},{"$f":"IF(AU30=\"yes\",SUMIFS('Project Scope'!$AO$8:$AO$107,'Project Scope'!$AN$8:$AN$107,$I30,'Project Scope'!$C$8:$C$107,CT$7)+SUMIFS('Project Scope'!$AX$8:$AX$107,'Project Scope'!$AW$8:$AW$107,$I30,'Project Scope'!$C$8:$C$107,CT$7),0)","v":0},{"$f":"IF(AV30=\"yes\",SUMIFS('Project Scope'!$AO$8:$AO$107,'Project Scope'!$AN$8:$AN$107,$I30,'Project Scope'!$C$8:$C$107,CU$7)+SUMIFS('Project Scope'!$AX$8:$AX$107,'Project Scope'!$AW$8:$AW$107,$I30,'Project Scope'!$C$8:$C$107,CU$7),0)","v":0},{"$f":"IF(AW30=\"yes\",SUMIFS('Project Scope'!$AO$8:$AO$107,'Project Scope'!$AN$8:$AN$107,$I30,'Project Scope'!$C$8:$C$107,CV$7)+SUMIFS('Project Scope'!$AX$8:$AX$107,'Project Scope'!$AW$8:$AW$107,$I30,'Project Scope'!$C$8:$C$107,CV$7),0)","v":0},{"$f":"IF(AX30=\"yes\",SUMIFS('Project Scope'!$AO$8:$AO$107,'Project Scope'!$AN$8:$AN$107,$I30,'Project Scope'!$C$8:$C$107,CW$7)+SUMIFS('Project Scope'!$AX$8:$AX$107,'Project Scope'!$AW$8:$AW$107,$I30,'Project Scope'!$C$8:$C$107,CW$7),0)","v":0},{"$f":"IF(AY30=\"yes\",SUMIFS('Project Scope'!$AO$8:$AO$107,'Project Scope'!$AN$8:$AN$107,$I30,'Project Scope'!$C$8:$C$107,CX$7)+SUMIFS('Project Scope'!$AX$8:$AX$107,'Project Scope'!$AW$8:$AW$107,$I30,'Project Scope'!$C$8:$C$107,CX$7),0)","v":0},{"$f":"IF(AZ30=\"yes\",SUMIFS('Project Scope'!$AO$8:$AO$107,'Project Scope'!$AN$8:$AN$107,$I30,'Project Scope'!$C$8:$C$107,CY$7)+SUMIFS('Project Scope'!$AX$8:$AX$107,'Project Scope'!$AW$8:$AW$107,$I30,'Project Scope'!$C$8:$C$107,CY$7),0)","v":0},{"$f":"IF(BA30=\"yes\",SUMIFS('Project Scope'!$AO$8:$AO$107,'Project Scope'!$AN$8:$AN$107,$I30,'Project Scope'!$C$8:$C$107,CZ$7)+SUMIFS('Project Scope'!$AX$8:$AX$107,'Project Scope'!$AW$8:$AW$107,$I30,'Project Scope'!$C$8:$C$107,CZ$7),0)","v":0},{"$f":"IF(BB30=\"yes\",SUMIFS('Project Scope'!$AO$8:$AO$107,'Project Scope'!$AN$8:$AN$107,$I30,'Project Scope'!$C$8:$C$107,DA$7)+SUMIFS('Project Scope'!$AX$8:$AX$107,'Project Scope'!$AW$8:$AW$107,$I30,'Project Scope'!$C$8:$C$107,DA$7),0)","v":0},{"$f":"IF(BC30=\"yes\",SUMIFS('Project Scope'!$AO$8:$AO$107,'Project Scope'!$AN$8:$AN$107,$I30,'Project Scope'!$C$8:$C$107,DB$7)+SUMIFS('Project Scope'!$AX$8:$AX$107,'Project Scope'!$AW$8:$AW$107,$I30,'Project Scope'!$C$8:$C$107,DB$7),0)","v":0},{"$f":"IF(BD30=\"yes\",SUMIFS('Project Scope'!$AO$8:$AO$107,'Project Scope'!$AN$8:$AN$107,$I30,'Project Scope'!$C$8:$C$107,DC$7)+SUMIFS('Project Scope'!$AX$8:$AX$107,'Project Scope'!$AW$8:$AW$107,$I30,'Project Scope'!$C$8:$C$107,DC$7),0)","v":0},{"$f":"IF(BE30=\"yes\",SUMIFS('Project Scope'!$AO$8:$AO$107,'Project Scope'!$AN$8:$AN$107,$I30,'Project Scope'!$C$8:$C$107,DD$7)+SUMIFS('Project Scope'!$AX$8:$AX$107,'Project Scope'!$AW$8:$AW$107,$I30,'Project Scope'!$C$8:$C$107,DD$7),0)","v":0},{"$f":"IF(BF30=\"yes\",SUMIFS('Project Scope'!$AO$8:$AO$107,'Project Scope'!$AN$8:$AN$107,$I30,'Project Scope'!$C$8:$C$107,DE$7)+SUMIFS('Project Scope'!$AX$8:$AX$107,'Project Scope'!$AW$8:$AW$107,$I30,'Project Scope'!$C$8:$C$107,DE$7),0)","v":0},{"$f":"IF(BG30=\"yes\",SUMIFS('Project Scope'!$AO$8:$AO$107,'Project Scope'!$AN$8:$AN$107,$I30,'Project Scope'!$C$8:$C$107,DF$7)+SUMIFS('Project Scope'!$AX$8:$AX$107,'Project Scope'!$AW$8:$AW$107,$I30,'Project Scope'!$C$8:$C$107,DF$7),0)","v":0},{"$f":"IF(BH30=\"yes\",SUMIFS('Project Scope'!$AO$8:$AO$107,'Project Scope'!$AN$8:$AN$107,$I30,'Project Scope'!$C$8:$C$107,DG$7)+SUMIFS('Project Scope'!$AX$8:$AX$107,'Project Scope'!$AW$8:$AW$107,$I30,'Project Scope'!$C$8:$C$107,DG$7),0)","v":0},{"$f":"IF(BI30=\"yes\",SUMIFS('Project Scope'!$AO$8:$AO$107,'Project Scope'!$AN$8:$AN$107,$I30,'Project Scope'!$C$8:$C$107,DH$7)+SUMIFS('Project Scope'!$AX$8:$AX$107,'Project Scope'!$AW$8:$AW$107,$I30,'Project Scope'!$C$8:$C$107,DH$7),0)","v":0},{"$f":"IF(BJ30=\"yes\",SUMIFS('Project Scope'!$AO$8:$AO$107,'Project Scope'!$AN$8:$AN$107,$I30,'Project Scope'!$C$8:$C$107,DI$7)+SUMIFS('Project Scope'!$AX$8:$AX$107,'Project Scope'!$AW$8:$AW$107,$I30,'Project Scope'!$C$8:$C$107,DI$7),0)","v":0},{"$f":"IF(BK30=\"yes\",SUMIFS('Project Scope'!$AO$8:$AO$107,'Project Scope'!$AN$8:$AN$107,$I30,'Project Scope'!$C$8:$C$107,DJ$7)+SUMIFS('Project Scope'!$AX$8:$AX$107,'Project Scope'!$AW$8:$AW$107,$I30,'Project Scope'!$C$8:$C$107,DJ$7),0)","v":0},{"$f":"IF(BL30=\"yes\",SUMIFS('Project Scope'!$AO$8:$AO$107,'Project Scope'!$AN$8:$AN$107,$I30,'Project Scope'!$C$8:$C$107,DK$7)+SUMIFS('Project Scope'!$AX$8:$AX$107,'Project Scope'!$AW$8:$AW$107,$I30,'Project Scope'!$C$8:$C$107,DK$7),0)","v":0},null,"","","","","","","","","","","","","","","","","","","","","","","","","","","","","","","","","","","","","","","","","","","","","","","",{"$f":"IF($BN30>0,FH$7,\"\")","v":""},"","",null,""]
[null,null,null,null,null,null,null,null,null,null,null,{"$f":"IF($C31=\"additional labor hours\",$K31*'Project Information'!$D$12,$K31*$J31)*IF($F31=\"Per Measure\",SUM($BN31:$DK31),1)","v":0},{"$f":"IF($C31=\"\",0,IF(VLOOKUP($C31,'Other Data'!$B$146:$C$156,2,FALSE)=\"M\",$L31,0))","v":0},0,null,null,null,null,null,null,null,null,null,null,null,null,null,null,null,null,null,null,null,null,null,null,null,null,null,null,null,null,null,null,null,null,null,null,null,null,null,null,null,null,null,null,null,null,null,null,null,null,null,null,null,{"$f":"IF(O31=\"yes\",SUMIFS('Project Scope'!$AO$8:$AO$107,'Project Scope'!$AN$8:$AN$107,$I31,'Project Scope'!$C$8:$C$107,BN$7)+SUMIFS('Project Scope'!$AX$8:$AX$107,'Project Scope'!$AW$8:$AW$107,$I31,'Project Scope'!$C$8:$C$107,BN$7),0)","v":0},{"$f":"IF(P31=\"yes\",SUMIFS('Project Scope'!$AO$8:$AO$107,'Project Scope'!$AN$8:$AN$107,$I31,'Project Scope'!$C$8:$C$107,BO$7)+SUMIFS('Project Scope'!$AX$8:$AX$107,'Project Scope'!$AW$8:$AW$107,$I31,'Project Scope'!$C$8:$C$107,BO$7),0)","v":0},{"$f":"IF(Q31=\"yes\",SUMIFS('Project Scope'!$AO$8:$AO$107,'Project Scope'!$AN$8:$AN$107,$I31,'Project Scope'!$C$8:$C$107,BP$7)+SUMIFS('Project Scope'!$AX$8:$AX$107,'Project Scope'!$AW$8:$AW$107,$I31,'Project Scope'!$C$8:$C$107,BP$7),0)","v":0},{"$f":"IF(R31=\"yes\",SUMIFS('Project Scope'!$AO$8:$AO$107,'Project Scope'!$AN$8:$AN$107,$I31,'Project Scope'!$C$8:$C$107,BQ$7)+SUMIFS('Project Scope'!$AX$8:$AX$107,'Project Scope'!$AW$8:$AW$107,$I31,'Project Scope'!$C$8:$C$107,BQ$7),0)","v":0},{"$f":"IF(S31=\"yes\",SUMIFS('Project Scope'!$AO$8:$AO$107,'Project Scope'!$AN$8:$AN$107,$I31,'Project Scope'!$C$8:$C$107,BR$7)+SUMIFS('Project Scope'!$AX$8:$AX$107,'Project Scope'!$AW$8:$AW$107,$I31,'Project Scope'!$C$8:$C$107,BR$7),0)","v":0},{"$f":"IF(T31=\"yes\",SUMIFS('Project Scope'!$AO$8:$AO$107,'Project Scope'!$AN$8:$AN$107,$I31,'Project Scope'!$C$8:$C$107,BS$7)+SUMIFS('Project Scope'!$AX$8:$AX$107,'Project Scope'!$AW$8:$AW$107,$I31,'Project Scope'!$C$8:$C$107,BS$7),0)","v":0},{"$f":"IF(U31=\"yes\",SUMIFS('Project Scope'!$AO$8:$AO$107,'Project Scope'!$AN$8:$AN$107,$I31,'Project Scope'!$C$8:$C$107,BT$7)+SUMIFS('Project Scope'!$AX$8:$AX$107,'Project Scope'!$AW$8:$AW$107,$I31,'Project Scope'!$C$8:$C$107,BT$7),0)","v":0},{"$f":"IF(V31=\"yes\",SUMIFS('Project Scope'!$AO$8:$AO$107,'Project Scope'!$AN$8:$AN$107,$I31,'Project Scope'!$C$8:$C$107,BU$7)+SUMIFS('Project Scope'!$AX$8:$AX$107,'Project Scope'!$AW$8:$AW$107,$I31,'Project Scope'!$C$8:$C$107,BU$7),0)","v":0},{"$f":"IF(W31=\"yes\",SUMIFS('Project Scope'!$AO$8:$AO$107,'Project Scope'!$AN$8:$AN$107,$I31,'Project Scope'!$C$8:$C$107,BV$7)+SUMIFS('Project Scope'!$AX$8:$AX$107,'Project Scope'!$AW$8:$AW$107,$I31,'Project Scope'!$C$8:$C$107,BV$7),0)","v":0},{"$f":"IF(X31=\"yes\",SUMIFS('Project Scope'!$AO$8:$AO$107,'Project Scope'!$AN$8:$AN$107,$I31,'Project Scope'!$C$8:$C$107,BW$7)+SUMIFS('Project Scope'!$AX$8:$AX$107,'Project Scope'!$AW$8:$AW$107,$I31,'Project Scope'!$C$8:$C$107,BW$7),0)","v":0},{"$f":"IF(Y31=\"yes\",SUMIFS('Project Scope'!$AO$8:$AO$107,'Project Scope'!$AN$8:$AN$107,$I31,'Project Scope'!$C$8:$C$107,BX$7)+SUMIFS('Project Scope'!$AX$8:$AX$107,'Project Scope'!$AW$8:$AW$107,$I31,'Project Scope'!$C$8:$C$107,BX$7),0)","v":0},{"$f":"IF(Z31=\"yes\",SUMIFS('Project Scope'!$AO$8:$AO$107,'Project Scope'!$AN$8:$AN$107,$I31,'Project Scope'!$C$8:$C$107,BY$7)+SUMIFS('Project Scope'!$AX$8:$AX$107,'Project Scope'!$AW$8:$AW$107,$I31,'Project Scope'!$C$8:$C$107,BY$7),0)","v":0},{"$f":"IF(AA31=\"yes\",SUMIFS('Project Scope'!$AO$8:$AO$107,'Project Scope'!$AN$8:$AN$107,$I31,'Project Scope'!$C$8:$C$107,BZ$7)+SUMIFS('Project Scope'!$AX$8:$AX$107,'Project Scope'!$AW$8:$AW$107,$I31,'Project Scope'!$C$8:$C$107,BZ$7),0)","v":0},{"$f":"IF(AB31=\"yes\",SUMIFS('Project Scope'!$AO$8:$AO$107,'Project Scope'!$AN$8:$AN$107,$I31,'Project Scope'!$C$8:$C$107,CA$7)+SUMIFS('Project Scope'!$AX$8:$AX$107,'Project Scope'!$AW$8:$AW$107,$I31,'Project Scope'!$C$8:$C$107,CA$7),0)","v":0},{"$f":"IF(AC31=\"yes\",SUMIFS('Project Scope'!$AO$8:$AO$107,'Project Scope'!$AN$8:$AN$107,$I31,'Project Scope'!$C$8:$C$107,CB$7)+SUMIFS('Project Scope'!$AX$8:$AX$107,'Project Scope'!$AW$8:$AW$107,$I31,'Project Scope'!$C$8:$C$107,CB$7),0)","v":0},{"$f":"IF(AD31=\"yes\",SUMIFS('Project Scope'!$AO$8:$AO$107,'Project Scope'!$AN$8:$AN$107,$I31,'Project Scope'!$C$8:$C$107,CC$7)+SUMIFS('Project Scope'!$AX$8:$AX$107,'Project Scope'!$AW$8:$AW$107,$I31,'Project Scope'!$C$8:$C$107,CC$7),0)","v":0},{"$f":"IF(AE31=\"yes\",SUMIFS('Project Scope'!$AO$8:$AO$107,'Project Scope'!$AN$8:$AN$107,$I31,'Project Scope'!$C$8:$C$107,CD$7)+SUMIFS('Project Scope'!$AX$8:$AX$107,'Project Scope'!$AW$8:$AW$107,$I31,'Project Scope'!$C$8:$C$107,CD$7),0)","v":0},{"$f":"IF(AF31=\"yes\",SUMIFS('Project Scope'!$AO$8:$AO$107,'Project Scope'!$AN$8:$AN$107,$I31,'Project Scope'!$C$8:$C$107,CE$7)+SUMIFS('Project Scope'!$AX$8:$AX$107,'Project Scope'!$AW$8:$AW$107,$I31,'Project Scope'!$C$8:$C$107,CE$7),0)","v":0},{"$f":"IF(AG31=\"yes\",SUMIFS('Project Scope'!$AO$8:$AO$107,'Project Scope'!$AN$8:$AN$107,$I31,'Project Scope'!$C$8:$C$107,CF$7)+SUMIFS('Project Scope'!$AX$8:$AX$107,'Project Scope'!$AW$8:$AW$107,$I31,'Project Scope'!$C$8:$C$107,CF$7),0)","v":0},{"$f":"IF(AH31=\"yes\",SUMIFS('Project Scope'!$AO$8:$AO$107,'Project Scope'!$AN$8:$AN$107,$I31,'Project Scope'!$C$8:$C$107,CG$7)+SUMIFS('Project Scope'!$AX$8:$AX$107,'Project Scope'!$AW$8:$AW$107,$I31,'Project Scope'!$C$8:$C$107,CG$7),0)","v":0},{"$f":"IF(AI31=\"yes\",SUMIFS('Project Scope'!$AO$8:$AO$107,'Project Scope'!$AN$8:$AN$107,$I31,'Project Scope'!$C$8:$C$107,CH$7)+SUMIFS('Project Scope'!$AX$8:$AX$107,'Project Scope'!$AW$8:$AW$107,$I31,'Project Scope'!$C$8:$C$107,CH$7),0)","v":0},{"$f":"IF(AJ31=\"yes\",SUMIFS('Project Scope'!$AO$8:$AO$107,'Project Scope'!$AN$8:$AN$107,$I31,'Project Scope'!$C$8:$C$107,CI$7)+SUMIFS('Project Scope'!$AX$8:$AX$107,'Project Scope'!$AW$8:$AW$107,$I31,'Project Scope'!$C$8:$C$107,CI$7),0)","v":0},{"$f":"IF(AK31=\"yes\",SUMIFS('Project Scope'!$AO$8:$AO$107,'Project Scope'!$AN$8:$AN$107,$I31,'Project Scope'!$C$8:$C$107,CJ$7)+SUMIFS('Project Scope'!$AX$8:$AX$107,'Project Scope'!$AW$8:$AW$107,$I31,'Project Scope'!$C$8:$C$107,CJ$7),0)","v":0},{"$f":"IF(AL31=\"yes\",SUMIFS('Project Scope'!$AO$8:$AO$107,'Project Scope'!$AN$8:$AN$107,$I31,'Project Scope'!$C$8:$C$107,CK$7)+SUMIFS('Project Scope'!$AX$8:$AX$107,'Project Scope'!$AW$8:$AW$107,$I31,'Project Scope'!$C$8:$C$107,CK$7),0)","v":0},{"$f":"IF(AM31=\"yes\",SUMIFS('Project Scope'!$AO$8:$AO$107,'Project Scope'!$AN$8:$AN$107,$I31,'Project Scope'!$C$8:$C$107,CL$7)+SUMIFS('Project Scope'!$AX$8:$AX$107,'Project Scope'!$AW$8:$AW$107,$I31,'Project Scope'!$C$8:$C$107,CL$7),0)","v":0},{"$f":"IF(AN31=\"yes\",SUMIFS('Project Scope'!$AO$8:$AO$107,'Project Scope'!$AN$8:$AN$107,$I31,'Project Scope'!$C$8:$C$107,CM$7)+SUMIFS('Project Scope'!$AX$8:$AX$107,'Project Scope'!$AW$8:$AW$107,$I31,'Project Scope'!$C$8:$C$107,CM$7),0)","v":0},{"$f":"IF(AO31=\"yes\",SUMIFS('Project Scope'!$AO$8:$AO$107,'Project Scope'!$AN$8:$AN$107,$I31,'Project Scope'!$C$8:$C$107,CN$7)+SUMIFS('Project Scope'!$AX$8:$AX$107,'Project Scope'!$AW$8:$AW$107,$I31,'Project Scope'!$C$8:$C$107,CN$7),0)","v":0},{"$f":"IF(AP31=\"yes\",SUMIFS('Project Scope'!$AO$8:$AO$107,'Project Scope'!$AN$8:$AN$107,$I31,'Project Scope'!$C$8:$C$107,CO$7)+SUMIFS('Project Scope'!$AX$8:$AX$107,'Project Scope'!$AW$8:$AW$107,$I31,'Project Scope'!$C$8:$C$107,CO$7),0)","v":0},{"$f":"IF(AQ31=\"yes\",SUMIFS('Project Scope'!$AO$8:$AO$107,'Project Scope'!$AN$8:$AN$107,$I31,'Project Scope'!$C$8:$C$107,CP$7)+SUMIFS('Project Scope'!$AX$8:$AX$107,'Project Scope'!$AW$8:$AW$107,$I31,'Project Scope'!$C$8:$C$107,CP$7),0)","v":0},{"$f":"IF(AR31=\"yes\",SUMIFS('Project Scope'!$AO$8:$AO$107,'Project Scope'!$AN$8:$AN$107,$I31,'Project Scope'!$C$8:$C$107,CQ$7)+SUMIFS('Project Scope'!$AX$8:$AX$107,'Project Scope'!$AW$8:$AW$107,$I31,'Project Scope'!$C$8:$C$107,CQ$7),0)","v":0},{"$f":"IF(AS31=\"yes\",SUMIFS('Project Scope'!$AO$8:$AO$107,'Project Scope'!$AN$8:$AN$107,$I31,'Project Scope'!$C$8:$C$107,CR$7)+SUMIFS('Project Scope'!$AX$8:$AX$107,'Project Scope'!$AW$8:$AW$107,$I31,'Project Scope'!$C$8:$C$107,CR$7),0)","v":0},{"$f":"IF(AT31=\"yes\",SUMIFS('Project Scope'!$AO$8:$AO$107,'Project Scope'!$AN$8:$AN$107,$I31,'Project Scope'!$C$8:$C$107,CS$7)+SUMIFS('Project Scope'!$AX$8:$AX$107,'Project Scope'!$AW$8:$AW$107,$I31,'Project Scope'!$C$8:$C$107,CS$7),0)","v":0},{"$f":"IF(AU31=\"yes\",SUMIFS('Project Scope'!$AO$8:$AO$107,'Project Scope'!$AN$8:$AN$107,$I31,'Project Scope'!$C$8:$C$107,CT$7)+SUMIFS('Project Scope'!$AX$8:$AX$107,'Project Scope'!$AW$8:$AW$107,$I31,'Project Scope'!$C$8:$C$107,CT$7),0)","v":0},{"$f":"IF(AV31=\"yes\",SUMIFS('Project Scope'!$AO$8:$AO$107,'Project Scope'!$AN$8:$AN$107,$I31,'Project Scope'!$C$8:$C$107,CU$7)+SUMIFS('Project Scope'!$AX$8:$AX$107,'Project Scope'!$AW$8:$AW$107,$I31,'Project Scope'!$C$8:$C$107,CU$7),0)","v":0},{"$f":"IF(AW31=\"yes\",SUMIFS('Project Scope'!$AO$8:$AO$107,'Project Scope'!$AN$8:$AN$107,$I31,'Project Scope'!$C$8:$C$107,CV$7)+SUMIFS('Project Scope'!$AX$8:$AX$107,'Project Scope'!$AW$8:$AW$107,$I31,'Project Scope'!$C$8:$C$107,CV$7),0)","v":0},{"$f":"IF(AX31=\"yes\",SUMIFS('Project Scope'!$AO$8:$AO$107,'Project Scope'!$AN$8:$AN$107,$I31,'Project Scope'!$C$8:$C$107,CW$7)+SUMIFS('Project Scope'!$AX$8:$AX$107,'Project Scope'!$AW$8:$AW$107,$I31,'Project Scope'!$C$8:$C$107,CW$7),0)","v":0},{"$f":"IF(AY31=\"yes\",SUMIFS('Project Scope'!$AO$8:$AO$107,'Project Scope'!$AN$8:$AN$107,$I31,'Project Scope'!$C$8:$C$107,CX$7)+SUMIFS('Project Scope'!$AX$8:$AX$107,'Project Scope'!$AW$8:$AW$107,$I31,'Project Scope'!$C$8:$C$107,CX$7),0)","v":0},{"$f":"IF(AZ31=\"yes\",SUMIFS('Project Scope'!$AO$8:$AO$107,'Project Scope'!$AN$8:$AN$107,$I31,'Project Scope'!$C$8:$C$107,CY$7)+SUMIFS('Project Scope'!$AX$8:$AX$107,'Project Scope'!$AW$8:$AW$107,$I31,'Project Scope'!$C$8:$C$107,CY$7),0)","v":0},{"$f":"IF(BA31=\"yes\",SUMIFS('Project Scope'!$AO$8:$AO$107,'Project Scope'!$AN$8:$AN$107,$I31,'Project Scope'!$C$8:$C$107,CZ$7)+SUMIFS('Project Scope'!$AX$8:$AX$107,'Project Scope'!$AW$8:$AW$107,$I31,'Project Scope'!$C$8:$C$107,CZ$7),0)","v":0},{"$f":"IF(BB31=\"yes\",SUMIFS('Project Scope'!$AO$8:$AO$107,'Project Scope'!$AN$8:$AN$107,$I31,'Project Scope'!$C$8:$C$107,DA$7)+SUMIFS('Project Scope'!$AX$8:$AX$107,'Project Scope'!$AW$8:$AW$107,$I31,'Project Scope'!$C$8:$C$107,DA$7),0)","v":0},{"$f":"IF(BC31=\"yes\",SUMIFS('Project Scope'!$AO$8:$AO$107,'Project Scope'!$AN$8:$AN$107,$I31,'Project Scope'!$C$8:$C$107,DB$7)+SUMIFS('Project Scope'!$AX$8:$AX$107,'Project Scope'!$AW$8:$AW$107,$I31,'Project Scope'!$C$8:$C$107,DB$7),0)","v":0},{"$f":"IF(BD31=\"yes\",SUMIFS('Project Scope'!$AO$8:$AO$107,'Project Scope'!$AN$8:$AN$107,$I31,'Project Scope'!$C$8:$C$107,DC$7)+SUMIFS('Project Scope'!$AX$8:$AX$107,'Project Scope'!$AW$8:$AW$107,$I31,'Project Scope'!$C$8:$C$107,DC$7),0)","v":0},{"$f":"IF(BE31=\"yes\",SUMIFS('Project Scope'!$AO$8:$AO$107,'Project Scope'!$AN$8:$AN$107,$I31,'Project Scope'!$C$8:$C$107,DD$7)+SUMIFS('Project Scope'!$AX$8:$AX$107,'Project Scope'!$AW$8:$AW$107,$I31,'Project Scope'!$C$8:$C$107,DD$7),0)","v":0},{"$f":"IF(BF31=\"yes\",SUMIFS('Project Scope'!$AO$8:$AO$107,'Project Scope'!$AN$8:$AN$107,$I31,'Project Scope'!$C$8:$C$107,DE$7)+SUMIFS('Project Scope'!$AX$8:$AX$107,'Project Scope'!$AW$8:$AW$107,$I31,'Project Scope'!$C$8:$C$107,DE$7),0)","v":0},{"$f":"IF(BG31=\"yes\",SUMIFS('Project Scope'!$AO$8:$AO$107,'Project Scope'!$AN$8:$AN$107,$I31,'Project Scope'!$C$8:$C$107,DF$7)+SUMIFS('Project Scope'!$AX$8:$AX$107,'Project Scope'!$AW$8:$AW$107,$I31,'Project Scope'!$C$8:$C$107,DF$7),0)","v":0},{"$f":"IF(BH31=\"yes\",SUMIFS('Project Scope'!$AO$8:$AO$107,'Project Scope'!$AN$8:$AN$107,$I31,'Project Scope'!$C$8:$C$107,DG$7)+SUMIFS('Project Scope'!$AX$8:$AX$107,'Project Scope'!$AW$8:$AW$107,$I31,'Project Scope'!$C$8:$C$107,DG$7),0)","v":0},{"$f":"IF(BI31=\"yes\",SUMIFS('Project Scope'!$AO$8:$AO$107,'Project Scope'!$AN$8:$AN$107,$I31,'Project Scope'!$C$8:$C$107,DH$7)+SUMIFS('Project Scope'!$AX$8:$AX$107,'Project Scope'!$AW$8:$AW$107,$I31,'Project Scope'!$C$8:$C$107,DH$7),0)","v":0},{"$f":"IF(BJ31=\"yes\",SUMIFS('Project Scope'!$AO$8:$AO$107,'Project Scope'!$AN$8:$AN$107,$I31,'Project Scope'!$C$8:$C$107,DI$7)+SUMIFS('Project Scope'!$AX$8:$AX$107,'Project Scope'!$AW$8:$AW$107,$I31,'Project Scope'!$C$8:$C$107,DI$7),0)","v":0},{"$f":"IF(BK31=\"yes\",SUMIFS('Project Scope'!$AO$8:$AO$107,'Project Scope'!$AN$8:$AN$107,$I31,'Project Scope'!$C$8:$C$107,DJ$7)+SUMIFS('Project Scope'!$AX$8:$AX$107,'Project Scope'!$AW$8:$AW$107,$I31,'Project Scope'!$C$8:$C$107,DJ$7),0)","v":0},{"$f":"IF(BL31=\"yes\",SUMIFS('Project Scope'!$AO$8:$AO$107,'Project Scope'!$AN$8:$AN$107,$I31,'Project Scope'!$C$8:$C$107,DK$7)+SUMIFS('Project Scope'!$AX$8:$AX$107,'Project Scope'!$AW$8:$AW$107,$I31,'Project Scope'!$C$8:$C$107,DK$7),0)","v":0},null,"","","","","","","","","","","","","","","","","","","","","","","","","","","","","","","","","","","","","","","","","","","","","","","","","","",null,""]
[null,null,null,null,null,null,null,null,null,null,null,{"$f":"IF($C32=\"additional labor hours\",$K32*'Project Information'!$D$12,$K32*$J32)*IF($F32=\"Per Measure\",SUM($BN32:$DK32),1)","v":0},{"$f":"IF($C32=\"\",0,IF(VLOOKUP($C32,'Other Data'!$B$146:$C$156,2,FALSE)=\"M\",$L32,0))","v":0},0,null,null,null,null,null,null,null,null,null,null,null,null,null,null,null,null,null,null,null,null,null,null,null,null,null,null,null,null,null,null,null,null,null,null,null,null,null,null,null,null,null,null,null,null,null,null,null,null,null,null,null,{"$f":"IF(O32=\"yes\",SUMIFS('Project Scope'!$AO$8:$AO$107,'Project Scope'!$AN$8:$AN$107,$I32,'Project Scope'!$C$8:$C$107,BN$7)+SUMIFS('Project Scope'!$AX$8:$AX$107,'Project Scope'!$AW$8:$AW$107,$I32,'Project Scope'!$C$8:$C$107,BN$7),0)","v":0},{"$f":"IF(P32=\"yes\",SUMIFS('Project Scope'!$AO$8:$AO$107,'Project Scope'!$AN$8:$AN$107,$I32,'Project Scope'!$C$8:$C$107,BO$7)+SUMIFS('Project Scope'!$AX$8:$AX$107,'Project Scope'!$AW$8:$AW$107,$I32,'Project Scope'!$C$8:$C$107,BO$7),0)","v":0},{"$f":"IF(Q32=\"yes\",SUMIFS('Project Scope'!$AO$8:$AO$107,'Project Scope'!$AN$8:$AN$107,$I32,'Project Scope'!$C$8:$C$107,BP$7)+SUMIFS('Project Scope'!$AX$8:$AX$107,'Project Scope'!$AW$8:$AW$107,$I32,'Project Scope'!$C$8:$C$107,BP$7),0)","v":0},{"$f":"IF(R32=\"yes\",SUMIFS('Project Scope'!$AO$8:$AO$107,'Project Scope'!$AN$8:$AN$107,$I32,'Project Scope'!$C$8:$C$107,BQ$7)+SUMIFS('Project Scope'!$AX$8:$AX$107,'Project Scope'!$AW$8:$AW$107,$I32,'Project Scope'!$C$8:$C$107,BQ$7),0)","v":0},{"$f":"IF(S32=\"yes\",SUMIFS('Project Scope'!$AO$8:$AO$107,'Project Scope'!$AN$8:$AN$107,$I32,'Project Scope'!$C$8:$C$107,BR$7)+SUMIFS('Project Scope'!$AX$8:$AX$107,'Project Scope'!$AW$8:$AW$107,$I32,'Project Scope'!$C$8:$C$107,BR$7),0)","v":0},{"$f":"IF(T32=\"yes\",SUMIFS('Project Scope'!$AO$8:$AO$107,'Project Scope'!$AN$8:$AN$107,$I32,'Project Scope'!$C$8:$C$107,BS$7)+SUMIFS('Project Scope'!$AX$8:$AX$107,'Project Scope'!$AW$8:$AW$107,$I32,'Project Scope'!$C$8:$C$107,BS$7),0)","v":0},{"$f":"IF(U32=\"yes\",SUMIFS('Project Scope'!$AO$8:$AO$107,'Project Scope'!$AN$8:$AN$107,$I32,'Project Scope'!$C$8:$C$107,BT$7)+SUMIFS('Project Scope'!$AX$8:$AX$107,'Project Scope'!$AW$8:$AW$107,$I32,'Project Scope'!$C$8:$C$107,BT$7),0)","v":0},{"$f":"IF(V32=\"yes\",SUMIFS('Project Scope'!$AO$8:$AO$107,'Project Scope'!$AN$8:$AN$107,$I32,'Project Scope'!$C$8:$C$107,BU$7)+SUMIFS('Project Scope'!$AX$8:$AX$107,'Project Scope'!$AW$8:$AW$107,$I32,'Project Scope'!$C$8:$C$107,BU$7),0)","v":0},{"$f":"IF(W32=\"yes\",SUMIFS('Project Scope'!$AO$8:$AO$107,'Project Scope'!$AN$8:$AN$107,$I32,'Project Scope'!$C$8:$C$107,BV$7)+SUMIFS('Project Scope'!$AX$8:$AX$107,'Project Scope'!$AW$8:$AW$107,$I32,'Project Scope'!$C$8:$C$107,BV$7),0)","v":0},{"$f":"IF(X32=\"yes\",SUMIFS('Project Scope'!$AO$8:$AO$107,'Project Scope'!$AN$8:$AN$107,$I32,'Project Scope'!$C$8:$C$107,BW$7)+SUMIFS('Project Scope'!$AX$8:$AX$107,'Project Scope'!$AW$8:$AW$107,$I32,'Project Scope'!$C$8:$C$107,BW$7),0)","v":0},{"$f":"IF(Y32=\"yes\",SUMIFS('Project Scope'!$AO$8:$AO$107,'Project Scope'!$AN$8:$AN$107,$I32,'Project Scope'!$C$8:$C$107,BX$7)+SUMIFS('Project Scope'!$AX$8:$AX$107,'Project Scope'!$AW$8:$AW$107,$I32,'Project Scope'!$C$8:$C$107,BX$7),0)","v":0},{"$f":"IF(Z32=\"yes\",SUMIFS('Project Scope'!$AO$8:$AO$107,'Project Scope'!$AN$8:$AN$107,$I32,'Project Scope'!$C$8:$C$107,BY$7)+SUMIFS('Project Scope'!$AX$8:$AX$107,'Project Scope'!$AW$8:$AW$107,$I32,'Project Scope'!$C$8:$C$107,BY$7),0)","v":0},{"$f":"IF(AA32=\"yes\",SUMIFS('Project Scope'!$AO$8:$AO$107,'Project Scope'!$AN$8:$AN$107,$I32,'Project Scope'!$C$8:$C$107,BZ$7)+SUMIFS('Project Scope'!$AX$8:$AX$107,'Project Scope'!$AW$8:$AW$107,$I32,'Project Scope'!$C$8:$C$107,BZ$7),0)","v":0},{"$f":"IF(AB32=\"yes\",SUMIFS('Project Scope'!$AO$8:$AO$107,'Project Scope'!$AN$8:$AN$107,$I32,'Project Scope'!$C$8:$C$107,CA$7)+SUMIFS('Project Scope'!$AX$8:$AX$107,'Project Scope'!$AW$8:$AW$107,$I32,'Project Scope'!$C$8:$C$107,CA$7),0)","v":0},{"$f":"IF(AC32=\"yes\",SUMIFS('Project Scope'!$AO$8:$AO$107,'Project Scope'!$AN$8:$AN$107,$I32,'Project Scope'!$C$8:$C$107,CB$7)+SUMIFS('Project Scope'!$AX$8:$AX$107,'Project Scope'!$AW$8:$AW$107,$I32,'Project Scope'!$C$8:$C$107,CB$7),0)","v":0},{"$f":"IF(AD32=\"yes\",SUMIFS('Project Scope'!$AO$8:$AO$107,'Project Scope'!$AN$8:$AN$107,$I32,'Project Scope'!$C$8:$C$107,CC$7)+SUMIFS('Project Scope'!$AX$8:$AX$107,'Project Scope'!$AW$8:$AW$107,$I32,'Project Scope'!$C$8:$C$107,CC$7),0)","v":0},{"$f":"IF(AE32=\"yes\",SUMIFS('Project Scope'!$AO$8:$AO$107,'Project Scope'!$AN$8:$AN$107,$I32,'Project Scope'!$C$8:$C$107,CD$7)+SUMIFS('Project Scope'!$AX$8:$AX$107,'Project Scope'!$AW$8:$AW$107,$I32,'Project Scope'!$C$8:$C$107,CD$7),0)","v":0},{"$f":"IF(AF32=\"yes\",SUMIFS('Project Scope'!$AO$8:$AO$107,'Project Scope'!$AN$8:$AN$107,$I32,'Project Scope'!$C$8:$C$107,CE$7)+SUMIFS('Project Scope'!$AX$8:$AX$107,'Project Scope'!$AW$8:$AW$107,$I32,'Project Scope'!$C$8:$C$107,CE$7),0)","v":0},{"$f":"IF(AG32=\"yes\",SUMIFS('Project Scope'!$AO$8:$AO$107,'Project Scope'!$AN$8:$AN$107,$I32,'Project Scope'!$C$8:$C$107,CF$7)+SUMIFS('Project Scope'!$AX$8:$AX$107,'Project Scope'!$AW$8:$AW$107,$I32,'Project Scope'!$C$8:$C$107,CF$7),0)","v":0},{"$f":"IF(AH32=\"yes\",SUMIFS('Project Scope'!$AO$8:$AO$107,'Project Scope'!$AN$8:$AN$107,$I32,'Project Scope'!$C$8:$C$107,CG$7)+SUMIFS('Project Scope'!$AX$8:$AX$107,'Project Scope'!$AW$8:$AW$107,$I32,'Project Scope'!$C$8:$C$107,CG$7),0)","v":0},{"$f":"IF(AI32=\"yes\",SUMIFS('Project Scope'!$AO$8:$AO$107,'Project Scope'!$AN$8:$AN$107,$I32,'Project Scope'!$C$8:$C$107,CH$7)+SUMIFS('Project Scope'!$AX$8:$AX$107,'Project Scope'!$AW$8:$AW$107,$I32,'Project Scope'!$C$8:$C$107,CH$7),0)","v":0},{"$f":"IF(AJ32=\"yes\",SUMIFS('Project Scope'!$AO$8:$AO$107,'Project Scope'!$AN$8:$AN$107,$I32,'Project Scope'!$C$8:$C$107,CI$7)+SUMIFS('Project Scope'!$AX$8:$AX$107,'Project Scope'!$AW$8:$AW$107,$I32,'Project Scope'!$C$8:$C$107,CI$7),0)","v":0},{"$f":"IF(AK32=\"yes\",SUMIFS('Project Scope'!$AO$8:$AO$107,'Project Scope'!$AN$8:$AN$107,$I32,'Project Scope'!$C$8:$C$107,CJ$7)+SUMIFS('Project Scope'!$AX$8:$AX$107,'Project Scope'!$AW$8:$AW$107,$I32,'Project Scope'!$C$8:$C$107,CJ$7),0)","v":0},{"$f":"IF(AL32=\"yes\",SUMIFS('Project Scope'!$AO$8:$AO$107,'Project Scope'!$AN$8:$AN$107,$I32,'Project Scope'!$C$8:$C$107,CK$7)+SUMIFS('Project Scope'!$AX$8:$AX$107,'Project Scope'!$AW$8:$AW$107,$I32,'Project Scope'!$C$8:$C$107,CK$7),0)","v":0},{"$f":"IF(AM32=\"yes\",SUMIFS('Project Scope'!$AO$8:$AO$107,'Project Scope'!$AN$8:$AN$107,$I32,'Project Scope'!$C$8:$C$107,CL$7)+SUMIFS('Project Scope'!$AX$8:$AX$107,'Project Scope'!$AW$8:$AW$107,$I32,'Project Scope'!$C$8:$C$107,CL$7),0)","v":0},{"$f":"IF(AN32=\"yes\",SUMIFS('Project Scope'!$AO$8:$AO$107,'Project Scope'!$AN$8:$AN$107,$I32,'Project Scope'!$C$8:$C$107,CM$7)+SUMIFS('Project Scope'!$AX$8:$AX$107,'Project Scope'!$AW$8:$AW$107,$I32,'Project Scope'!$C$8:$C$107,CM$7),0)","v":0},{"$f":"IF(AO32=\"yes\",SUMIFS('Project Scope'!$AO$8:$AO$107,'Project Scope'!$AN$8:$AN$107,$I32,'Project Scope'!$C$8:$C$107,CN$7)+SUMIFS('Project Scope'!$AX$8:$AX$107,'Project Scope'!$AW$8:$AW$107,$I32,'Project Scope'!$C$8:$C$107,CN$7),0)","v":0},{"$f":"IF(AP32=\"yes\",SUMIFS('Project Scope'!$AO$8:$AO$107,'Project Scope'!$AN$8:$AN$107,$I32,'Project Scope'!$C$8:$C$107,CO$7)+SUMIFS('Project Scope'!$AX$8:$AX$107,'Project Scope'!$AW$8:$AW$107,$I32,'Project Scope'!$C$8:$C$107,CO$7),0)","v":0},{"$f":"IF(AQ32=\"yes\",SUMIFS('Project Scope'!$AO$8:$AO$107,'Project Scope'!$AN$8:$AN$107,$I32,'Project Scope'!$C$8:$C$107,CP$7)+SUMIFS('Project Scope'!$AX$8:$AX$107,'Project Scope'!$AW$8:$AW$107,$I32,'Project Scope'!$C$8:$C$107,CP$7),0)","v":0},{"$f":"IF(AR32=\"yes\",SUMIFS('Project Scope'!$AO$8:$AO$107,'Project Scope'!$AN$8:$AN$107,$I32,'Project Scope'!$C$8:$C$107,CQ$7)+SUMIFS('Project Scope'!$AX$8:$AX$107,'Project Scope'!$AW$8:$AW$107,$I32,'Project Scope'!$C$8:$C$107,CQ$7),0)","v":0},{"$f":"IF(AS32=\"yes\",SUMIFS('Project Scope'!$AO$8:$AO$107,'Project Scope'!$AN$8:$AN$107,$I32,'Project Scope'!$C$8:$C$107,CR$7)+SUMIFS('Project Scope'!$AX$8:$AX$107,'Project Scope'!$AW$8:$AW$107,$I32,'Project Scope'!$C$8:$C$107,CR$7),0)","v":0},{"$f":"IF(AT32=\"yes\",SUMIFS('Project Scope'!$AO$8:$AO$107,'Project Scope'!$AN$8:$AN$107,$I32,'Project Scope'!$C$8:$C$107,CS$7)+SUMIFS('Project Scope'!$AX$8:$AX$107,'Project Scope'!$AW$8:$AW$107,$I32,'Project Scope'!$C$8:$C$107,CS$7),0)","v":0},{"$f":"IF(AU32=\"yes\",SUMIFS('Project Scope'!$AO$8:$AO$107,'Project Scope'!$AN$8:$AN$107,$I32,'Project Scope'!$C$8:$C$107,CT$7)+SUMIFS('Project Scope'!$AX$8:$AX$107,'Project Scope'!$AW$8:$AW$107,$I32,'Project Scope'!$C$8:$C$107,CT$7),0)","v":0},{"$f":"IF(AV32=\"yes\",SUMIFS('Project Scope'!$AO$8:$AO$107,'Project Scope'!$AN$8:$AN$107,$I32,'Project Scope'!$C$8:$C$107,CU$7)+SUMIFS('Project Scope'!$AX$8:$AX$107,'Project Scope'!$AW$8:$AW$107,$I32,'Project Scope'!$C$8:$C$107,CU$7),0)","v":0},{"$f":"IF(AW32=\"yes\",SUMIFS('Project Scope'!$AO$8:$AO$107,'Project Scope'!$AN$8:$AN$107,$I32,'Project Scope'!$C$8:$C$107,CV$7)+SUMIFS('Project Scope'!$AX$8:$AX$107,'Project Scope'!$AW$8:$AW$107,$I32,'Project Scope'!$C$8:$C$107,CV$7),0)","v":0},{"$f":"IF(AX32=\"yes\",SUMIFS('Project Scope'!$AO$8:$AO$107,'Project Scope'!$AN$8:$AN$107,$I32,'Project Scope'!$C$8:$C$107,CW$7)+SUMIFS('Project Scope'!$AX$8:$AX$107,'Project Scope'!$AW$8:$AW$107,$I32,'Project Scope'!$C$8:$C$107,CW$7),0)","v":0},{"$f":"IF(AY32=\"yes\",SUMIFS('Project Scope'!$AO$8:$AO$107,'Project Scope'!$AN$8:$AN$107,$I32,'Project Scope'!$C$8:$C$107,CX$7)+SUMIFS('Project Scope'!$AX$8:$AX$107,'Project Scope'!$AW$8:$AW$107,$I32,'Project Scope'!$C$8:$C$107,CX$7),0)","v":0},{"$f":"IF(AZ32=\"yes\",SUMIFS('Project Scope'!$AO$8:$AO$107,'Project Scope'!$AN$8:$AN$107,$I32,'Project Scope'!$C$8:$C$107,CY$7)+SUMIFS('Project Scope'!$AX$8:$AX$107,'Project Scope'!$AW$8:$AW$107,$I32,'Project Scope'!$C$8:$C$107,CY$7),0)","v":0},{"$f":"IF(BA32=\"yes\",SUMIFS('Project Scope'!$AO$8:$AO$107,'Project Scope'!$AN$8:$AN$107,$I32,'Project Scope'!$C$8:$C$107,CZ$7)+SUMIFS('Project Scope'!$AX$8:$AX$107,'Project Scope'!$AW$8:$AW$107,$I32,'Project Scope'!$C$8:$C$107,CZ$7),0)","v":0},{"$f":"IF(BB32=\"yes\",SUMIFS('Project Scope'!$AO$8:$AO$107,'Project Scope'!$AN$8:$AN$107,$I32,'Project Scope'!$C$8:$C$107,DA$7)+SUMIFS('Project Scope'!$AX$8:$AX$107,'Project Scope'!$AW$8:$AW$107,$I32,'Project Scope'!$C$8:$C$107,DA$7),0)","v":0},{"$f":"IF(BC32=\"yes\",SUMIFS('Project Scope'!$AO$8:$AO$107,'Project Scope'!$AN$8:$AN$107,$I32,'Project Scope'!$C$8:$C$107,DB$7)+SUMIFS('Project Scope'!$AX$8:$AX$107,'Project Scope'!$AW$8:$AW$107,$I32,'Project Scope'!$C$8:$C$107,DB$7),0)","v":0},{"$f":"IF(BD32=\"yes\",SUMIFS('Project Scope'!$AO$8:$AO$107,'Project Scope'!$AN$8:$AN$107,$I32,'Project Scope'!$C$8:$C$107,DC$7)+SUMIFS('Project Scope'!$AX$8:$AX$107,'Project Scope'!$AW$8:$AW$107,$I32,'Project Scope'!$C$8:$C$107,DC$7),0)","v":0},{"$f":"IF(BE32=\"yes\",SUMIFS('Project Scope'!$AO$8:$AO$107,'Project Scope'!$AN$8:$AN$107,$I32,'Project Scope'!$C$8:$C$107,DD$7)+SUMIFS('Project Scope'!$AX$8:$AX$107,'Project Scope'!$AW$8:$AW$107,$I32,'Project Scope'!$C$8:$C$107,DD$7),0)","v":0},{"$f":"IF(BF32=\"yes\",SUMIFS('Project Scope'!$AO$8:$AO$107,'Project Scope'!$AN$8:$AN$107,$I32,'Project Scope'!$C$8:$C$107,DE$7)+SUMIFS('Project Scope'!$AX$8:$AX$107,'Project Scope'!$AW$8:$AW$107,$I32,'Project Scope'!$C$8:$C$107,DE$7),0)","v":0},{"$f":"IF(BG32=\"yes\",SUMIFS('Project Scope'!$AO$8:$AO$107,'Project Scope'!$AN$8:$AN$107,$I32,'Project Scope'!$C$8:$C$107,DF$7)+SUMIFS('Project Scope'!$AX$8:$AX$107,'Project Scope'!$AW$8:$AW$107,$I32,'Project Scope'!$C$8:$C$107,DF$7),0)","v":0},{"$f":"IF(BH32=\"yes\",SUMIFS('Project Scope'!$AO$8:$AO$107,'Project Scope'!$AN$8:$AN$107,$I32,'Project Scope'!$C$8:$C$107,DG$7)+SUMIFS('Project Scope'!$AX$8:$AX$107,'Project Scope'!$AW$8:$AW$107,$I32,'Project Scope'!$C$8:$C$107,DG$7),0)","v":0},{"$f":"IF(BI32=\"yes\",SUMIFS('Project Scope'!$AO$8:$AO$107,'Project Scope'!$AN$8:$AN$107,$I32,'Project Scope'!$C$8:$C$107,DH$7)+SUMIFS('Project Scope'!$AX$8:$AX$107,'Project Scope'!$AW$8:$AW$107,$I32,'Project Scope'!$C$8:$C$107,DH$7),0)","v":0},{"$f":"IF(BJ32=\"yes\",SUMIFS('Project Scope'!$AO$8:$AO$107,'Project Scope'!$AN$8:$AN$107,$I32,'Project Scope'!$C$8:$C$107,DI$7)+SUMIFS('Project Scope'!$AX$8:$AX$107,'Project Scope'!$AW$8:$AW$107,$I32,'Project Scope'!$C$8:$C$107,DI$7),0)","v":0},{"$f":"IF(BK32=\"yes\",SUMIFS('Project Scope'!$AO$8:$AO$107,'Project Scope'!$AN$8:$AN$107,$I32,'Project Scope'!$C$8:$C$107,DJ$7)+SUMIFS('Project Scope'!$AX$8:$AX$107,'Project Scope'!$AW$8:$AW$107,$I32,'Project Scope'!$C$8:$C$107,DJ$7),0)","v":0},{"$f":"IF(BL32=\"yes\",SUMIFS('Project Scope'!$AO$8:$AO$107,'Project Scope'!$AN$8:$AN$107,$I32,'Project Scope'!$C$8:$C$107,DK$7)+SUMIFS('Project Scope'!$AX$8:$AX$107,'Project Scope'!$AW$8:$AW$107,$I32,'Project Scope'!$C$8:$C$107,DK$7),0)","v":0},null,"","","","","","","","","","","","","","","","","","","","","","","","","","","","","","","","","","","","","","","","","","","","","","","","","","",null,""]
[null,null,null,null,null,null,null,null,null,null,null,{"$f":"IF($C33=\"additional labor hours\",$K33*'Project Information'!$D$12,$K33*$J33)*IF($F33=\"Per Measure\",SUM($BN33:$DK33),1)","v":0},{"$f":"IF($C33=\"\",0,IF(VLOOKUP($C33,'Other Data'!$B$146:$C$156,2,FALSE)=\"M\",$L33,0))","v":0},0,null,null,null,null,null,null,null,null,null,null,null,null,null,null,null,null,null,null,null,null,null,null,null,null,null,null,null,null,null,null,null,null,null,null,null,null,null,null,null,null,null,null,null,null,null,null,null,null,null,null,null,{"$f":"IF(O33=\"yes\",SUMIFS('Project Scope'!$AO$8:$AO$107,'Project Scope'!$AN$8:$AN$107,$I33,'Project Scope'!$C$8:$C$107,BN$7)+SUMIFS('Project Scope'!$AX$8:$AX$107,'Project Scope'!$AW$8:$AW$107,$I33,'Project Scope'!$C$8:$C$107,BN$7),0)","v":0},{"$f":"IF(P33=\"yes\",SUMIFS('Project Scope'!$AO$8:$AO$107,'Project Scope'!$AN$8:$AN$107,$I33,'Project Scope'!$C$8:$C$107,BO$7)+SUMIFS('Project Scope'!$AX$8:$AX$107,'Project Scope'!$AW$8:$AW$107,$I33,'Project Scope'!$C$8:$C$107,BO$7),0)","v":0},{"$f":"IF(Q33=\"yes\",SUMIFS('Project Scope'!$AO$8:$AO$107,'Project Scope'!$AN$8:$AN$107,$I33,'Project Scope'!$C$8:$C$107,BP$7)+SUMIFS('Project Scope'!$AX$8:$AX$107,'Project Scope'!$AW$8:$AW$107,$I33,'Project Scope'!$C$8:$C$107,BP$7),0)","v":0},{"$f":"IF(R33=\"yes\",SUMIFS('Project Scope'!$AO$8:$AO$107,'Project Scope'!$AN$8:$AN$107,$I33,'Project Scope'!$C$8:$C$107,BQ$7)+SUMIFS('Project Scope'!$AX$8:$AX$107,'Project Scope'!$AW$8:$AW$107,$I33,'Project Scope'!$C$8:$C$107,BQ$7),0)","v":0},{"$f":"IF(S33=\"yes\",SUMIFS('Project Scope'!$AO$8:$AO$107,'Project Scope'!$AN$8:$AN$107,$I33,'Project Scope'!$C$8:$C$107,BR$7)+SUMIFS('Project Scope'!$AX$8:$AX$107,'Project Scope'!$AW$8:$AW$107,$I33,'Project Scope'!$C$8:$C$107,BR$7),0)","v":0},{"$f":"IF(T33=\"yes\",SUMIFS('Project Scope'!$AO$8:$AO$107,'Project Scope'!$AN$8:$AN$107,$I33,'Project Scope'!$C$8:$C$107,BS$7)+SUMIFS('Project Scope'!$AX$8:$AX$107,'Project Scope'!$AW$8:$AW$107,$I33,'Project Scope'!$C$8:$C$107,BS$7),0)","v":0},{"$f":"IF(U33=\"yes\",SUMIFS('Project Scope'!$AO$8:$AO$107,'Project Scope'!$AN$8:$AN$107,$I33,'Project Scope'!$C$8:$C$107,BT$7)+SUMIFS('Project Scope'!$AX$8:$AX$107,'Project Scope'!$AW$8:$AW$107,$I33,'Project Scope'!$C$8:$C$107,BT$7),0)","v":0},{"$f":"IF(V33=\"yes\",SUMIFS('Project Scope'!$AO$8:$AO$107,'Project Scope'!$AN$8:$AN$107,$I33,'Project Scope'!$C$8:$C$107,BU$7)+SUMIFS('Project Scope'!$AX$8:$AX$107,'Project Scope'!$AW$8:$AW$107,$I33,'Project Scope'!$C$8:$C$107,BU$7),0)","v":0},{"$f":"IF(W33=\"yes\",SUMIFS('Project Scope'!$AO$8:$AO$107,'Project Scope'!$AN$8:$AN$107,$I33,'Project Scope'!$C$8:$C$107,BV$7)+SUMIFS('Project Scope'!$AX$8:$AX$107,'Project Scope'!$AW$8:$AW$107,$I33,'Project Scope'!$C$8:$C$107,BV$7),0)","v":0},{"$f":"IF(X33=\"yes\",SUMIFS('Project Scope'!$AO$8:$AO$107,'Project Scope'!$AN$8:$AN$107,$I33,'Project Scope'!$C$8:$C$107,BW$7)+SUMIFS('Project Scope'!$AX$8:$AX$107,'Project Scope'!$AW$8:$AW$107,$I33,'Project Scope'!$C$8:$C$107,BW$7),0)","v":0},{"$f":"IF(Y33=\"yes\",SUMIFS('Project Scope'!$AO$8:$AO$107,'Project Scope'!$AN$8:$AN$107,$I33,'Project Scope'!$C$8:$C$107,BX$7)+SUMIFS('Project Scope'!$AX$8:$AX$107,'Project Scope'!$AW$8:$AW$107,$I33,'Project Scope'!$C$8:$C$107,BX$7),0)","v":0},{"$f":"IF(Z33=\"yes\",SUMIFS('Project Scope'!$AO$8:$AO$107,'Project Scope'!$AN$8:$AN$107,$I33,'Project Scope'!$C$8:$C$107,BY$7)+SUMIFS('Project Scope'!$AX$8:$AX$107,'Project Scope'!$AW$8:$AW$107,$I33,'Project Scope'!$C$8:$C$107,BY$7),0)","v":0},{"$f":"IF(AA33=\"yes\",SUMIFS('Project Scope'!$AO$8:$AO$107,'Project Scope'!$AN$8:$AN$107,$I33,'Project Scope'!$C$8:$C$107,BZ$7)+SUMIFS('Project Scope'!$AX$8:$AX$107,'Project Scope'!$AW$8:$AW$107,$I33,'Project Scope'!$C$8:$C$107,BZ$7),0)","v":0},{"$f":"IF(AB33=\"yes\",SUMIFS('Project Scope'!$AO$8:$AO$107,'Project Scope'!$AN$8:$AN$107,$I33,'Project Scope'!$C$8:$C$107,CA$7)+SUMIFS('Project Scope'!$AX$8:$AX$107,'Project Scope'!$AW$8:$AW$107,$I33,'Project Scope'!$C$8:$C$107,CA$7),0)","v":0},{"$f":"IF(AC33=\"yes\",SUMIFS('Project Scope'!$AO$8:$AO$107,'Project Scope'!$AN$8:$AN$107,$I33,'Project Scope'!$C$8:$C$107,CB$7)+SUMIFS('Project Scope'!$AX$8:$AX$107,'Project Scope'!$AW$8:$AW$107,$I33,'Project Scope'!$C$8:$C$107,CB$7),0)","v":0},{"$f":"IF(AD33=\"yes\",SUMIFS('Project Scope'!$AO$8:$AO$107,'Project Scope'!$AN$8:$AN$107,$I33,'Project Scope'!$C$8:$C$107,CC$7)+SUMIFS('Project Scope'!$AX$8:$AX$107,'Project Scope'!$AW$8:$AW$107,$I33,'Project Scope'!$C$8:$C$107,CC$7),0)","v":0},{"$f":"IF(AE33=\"yes\",SUMIFS('Project Scope'!$AO$8:$AO$107,'Project Scope'!$AN$8:$AN$107,$I33,'Project Scope'!$C$8:$C$107,CD$7)+SUMIFS('Project Scope'!$AX$8:$AX$107,'Project Scope'!$AW$8:$AW$107,$I33,'Project Scope'!$C$8:$C$107,CD$7),0)","v":0},{"$f":"IF(AF33=\"yes\",SUMIFS('Project Scope'!$AO$8:$AO$107,'Project Scope'!$AN$8:$AN$107,$I33,'Project Scope'!$C$8:$C$107,CE$7)+SUMIFS('Project Scope'!$AX$8:$AX$107,'Project Scope'!$AW$8:$AW$107,$I33,'Project Scope'!$C$8:$C$107,CE$7),0)","v":0},{"$f":"IF(AG33=\"yes\",SUMIFS('Project Scope'!$AO$8:$AO$107,'Project Scope'!$AN$8:$AN$107,$I33,'Project Scope'!$C$8:$C$107,CF$7)+SUMIFS('Project Scope'!$AX$8:$AX$107,'Project Scope'!$AW$8:$AW$107,$I33,'Project Scope'!$C$8:$C$107,CF$7),0)","v":0},{"$f":"IF(AH33=\"yes\",SUMIFS('Project Scope'!$AO$8:$AO$107,'Project Scope'!$AN$8:$AN$107,$I33,'Project Scope'!$C$8:$C$107,CG$7)+SUMIFS('Project Scope'!$AX$8:$AX$107,'Project Scope'!$AW$8:$AW$107,$I33,'Project Scope'!$C$8:$C$107,CG$7),0)","v":0},{"$f":"IF(AI33=\"yes\",SUMIFS('Project Scope'!$AO$8:$AO$107,'Project Scope'!$AN$8:$AN$107,$I33,'Project Scope'!$C$8:$C$107,CH$7)+SUMIFS('Project Scope'!$AX$8:$AX$107,'Project Scope'!$AW$8:$AW$107,$I33,'Project Scope'!$C$8:$C$107,CH$7),0)","v":0},{"$f":"IF(AJ33=\"yes\",SUMIFS('Project Scope'!$AO$8:$AO$107,'Project Scope'!$AN$8:$AN$107,$I33,'Project Scope'!$C$8:$C$107,CI$7)+SUMIFS('Project Scope'!$AX$8:$AX$107,'Project Scope'!$AW$8:$AW$107,$I33,'Project Scope'!$C$8:$C$107,CI$7),0)","v":0},{"$f":"IF(AK33=\"yes\",SUMIFS('Project Scope'!$AO$8:$AO$107,'Project Scope'!$AN$8:$AN$107,$I33,'Project Scope'!$C$8:$C$107,CJ$7)+SUMIFS('Project Scope'!$AX$8:$AX$107,'Project Scope'!$AW$8:$AW$107,$I33,'Project Scope'!$C$8:$C$107,CJ$7),0)","v":0},{"$f":"IF(AL33=\"yes\",SUMIFS('Project Scope'!$AO$8:$AO$107,'Project Scope'!$AN$8:$AN$107,$I33,'Project Scope'!$C$8:$C$107,CK$7)+SUMIFS('Project Scope'!$AX$8:$AX$107,'Project Scope'!$AW$8:$AW$107,$I33,'Project Scope'!$C$8:$C$107,CK$7),0)","v":0},{"$f":"IF(AM33=\"yes\",SUMIFS('Project Scope'!$AO$8:$AO$107,'Project Scope'!$AN$8:$AN$107,$I33,'Project Scope'!$C$8:$C$107,CL$7)+SUMIFS('Project Scope'!$AX$8:$AX$107,'Project Scope'!$AW$8:$AW$107,$I33,'Project Scope'!$C$8:$C$107,CL$7),0)","v":0},{"$f":"IF(AN33=\"yes\",SUMIFS('Project Scope'!$AO$8:$AO$107,'Project Scope'!$AN$8:$AN$107,$I33,'Project Scope'!$C$8:$C$107,CM$7)+SUMIFS('Project Scope'!$AX$8:$AX$107,'Project Scope'!$AW$8:$AW$107,$I33,'Project Scope'!$C$8:$C$107,CM$7),0)","v":0},{"$f":"IF(AO33=\"yes\",SUMIFS('Project Scope'!$AO$8:$AO$107,'Project Scope'!$AN$8:$AN$107,$I33,'Project Scope'!$C$8:$C$107,CN$7)+SUMIFS('Project Scope'!$AX$8:$AX$107,'Project Scope'!$AW$8:$AW$107,$I33,'Project Scope'!$C$8:$C$107,CN$7),0)","v":0},{"$f":"IF(AP33=\"yes\",SUMIFS('Project Scope'!$AO$8:$AO$107,'Project Scope'!$AN$8:$AN$107,$I33,'Project Scope'!$C$8:$C$107,CO$7)+SUMIFS('Project Scope'!$AX$8:$AX$107,'Project Scope'!$AW$8:$AW$107,$I33,'Project Scope'!$C$8:$C$107,CO$7),0)","v":0},{"$f":"IF(AQ33=\"yes\",SUMIFS('Project Scope'!$AO$8:$AO$107,'Project Scope'!$AN$8:$AN$107,$I33,'Project Scope'!$C$8:$C$107,CP$7)+SUMIFS('Project Scope'!$AX$8:$AX$107,'Project Scope'!$AW$8:$AW$107,$I33,'Project Scope'!$C$8:$C$107,CP$7),0)","v":0},{"$f":"IF(AR33=\"yes\",SUMIFS('Project Scope'!$AO$8:$AO$107,'Project Scope'!$AN$8:$AN$107,$I33,'Project Scope'!$C$8:$C$107,CQ$7)+SUMIFS('Project Scope'!$AX$8:$AX$107,'Project Scope'!$AW$8:$AW$107,$I33,'Project Scope'!$C$8:$C$107,CQ$7),0)","v":0},{"$f":"IF(AS33=\"yes\",SUMIFS('Project Scope'!$AO$8:$AO$107,'Project Scope'!$AN$8:$AN$107,$I33,'Project Scope'!$C$8:$C$107,CR$7)+SUMIFS('Project Scope'!$AX$8:$AX$107,'Project Scope'!$AW$8:$AW$107,$I33,'Project Scope'!$C$8:$C$107,CR$7),0)","v":0},{"$f":"IF(AT33=\"yes\",SUMIFS('Project Scope'!$AO$8:$AO$107,'Project Scope'!$AN$8:$AN$107,$I33,'Project Scope'!$C$8:$C$107,CS$7)+SUMIFS('Project Scope'!$AX$8:$AX$107,'Project Scope'!$AW$8:$AW$107,$I33,'Project Scope'!$C$8:$C$107,CS$7),0)","v":0},{"$f":"IF(AU33=\"yes\",SUMIFS('Project Scope'!$AO$8:$AO$107,'Project Scope'!$AN$8:$AN$107,$I33,'Project Scope'!$C$8:$C$107,CT$7)+SUMIFS('Project Scope'!$AX$8:$AX$107,'Project Scope'!$AW$8:$AW$107,$I33,'Project Scope'!$C$8:$C$107,CT$7),0)","v":0},{"$f":"IF(AV33=\"yes\",SUMIFS('Project Scope'!$AO$8:$AO$107,'Project Scope'!$AN$8:$AN$107,$I33,'Project Scope'!$C$8:$C$107,CU$7)+SUMIFS('Project Scope'!$AX$8:$AX$107,'Project Scope'!$AW$8:$AW$107,$I33,'Project Scope'!$C$8:$C$107,CU$7),0)","v":0},{"$f":"IF(AW33=\"yes\",SUMIFS('Project Scope'!$AO$8:$AO$107,'Project Scope'!$AN$8:$AN$107,$I33,'Project Scope'!$C$8:$C$107,CV$7)+SUMIFS('Project Scope'!$AX$8:$AX$107,'Project Scope'!$AW$8:$AW$107,$I33,'Project Scope'!$C$8:$C$107,CV$7),0)","v":0},{"$f":"IF(AX33=\"yes\",SUMIFS('Project Scope'!$AO$8:$AO$107,'Project Scope'!$AN$8:$AN$107,$I33,'Project Scope'!$C$8:$C$107,CW$7)+SUMIFS('Project Scope'!$AX$8:$AX$107,'Project Scope'!$AW$8:$AW$107,$I33,'Project Scope'!$C$8:$C$107,CW$7),0)","v":0},{"$f":"IF(AY33=\"yes\",SUMIFS('Project Scope'!$AO$8:$AO$107,'Project Scope'!$AN$8:$AN$107,$I33,'Project Scope'!$C$8:$C$107,CX$7)+SUMIFS('Project Scope'!$AX$8:$AX$107,'Project Scope'!$AW$8:$AW$107,$I33,'Project Scope'!$C$8:$C$107,CX$7),0)","v":0},{"$f":"IF(AZ33=\"yes\",SUMIFS('Project Scope'!$AO$8:$AO$107,'Project Scope'!$AN$8:$AN$107,$I33,'Project Scope'!$C$8:$C$107,CY$7)+SUMIFS('Project Scope'!$AX$8:$AX$107,'Project Scope'!$AW$8:$AW$107,$I33,'Project Scope'!$C$8:$C$107,CY$7),0)","v":0},{"$f":"IF(BA33=\"yes\",SUMIFS('Project Scope'!$AO$8:$AO$107,'Project Scope'!$AN$8:$AN$107,$I33,'Project Scope'!$C$8:$C$107,CZ$7)+SUMIFS('Project Scope'!$AX$8:$AX$107,'Project Scope'!$AW$8:$AW$107,$I33,'Project Scope'!$C$8:$C$107,CZ$7),0)","v":0},{"$f":"IF(BB33=\"yes\",SUMIFS('Project Scope'!$AO$8:$AO$107,'Project Scope'!$AN$8:$AN$107,$I33,'Project Scope'!$C$8:$C$107,DA$7)+SUMIFS('Project Scope'!$AX$8:$AX$107,'Project Scope'!$AW$8:$AW$107,$I33,'Project Scope'!$C$8:$C$107,DA$7),0)","v":0},{"$f":"IF(BC33=\"yes\",SUMIFS('Project Scope'!$AO$8:$AO$107,'Project Scope'!$AN$8:$AN$107,$I33,'Project Scope'!$C$8:$C$107,DB$7)+SUMIFS('Project Scope'!$AX$8:$AX$107,'Project Scope'!$AW$8:$AW$107,$I33,'Project Scope'!$C$8:$C$107,DB$7),0)","v":0},{"$f":"IF(BD33=\"yes\",SUMIFS('Project Scope'!$AO$8:$AO$107,'Project Scope'!$AN$8:$AN$107,$I33,'Project Scope'!$C$8:$C$107,DC$7)+SUMIFS('Project Scope'!$AX$8:$AX$107,'Project Scope'!$AW$8:$AW$107,$I33,'Project Scope'!$C$8:$C$107,DC$7),0)","v":0},{"$f":"IF(BE33=\"yes\",SUMIFS('Project Scope'!$AO$8:$AO$107,'Project Scope'!$AN$8:$AN$107,$I33,'Project Scope'!$C$8:$C$107,DD$7)+SUMIFS('Project Scope'!$AX$8:$AX$107,'Project Scope'!$AW$8:$AW$107,$I33,'Project Scope'!$C$8:$C$107,DD$7),0)","v":0},{"$f":"IF(BF33=\"yes\",SUMIFS('Project Scope'!$AO$8:$AO$107,'Project Scope'!$AN$8:$AN$107,$I33,'Project Scope'!$C$8:$C$107,DE$7)+SUMIFS('Project Scope'!$AX$8:$AX$107,'Project Scope'!$AW$8:$AW$107,$I33,'Project Scope'!$C$8:$C$107,DE$7),0)","v":0},{"$f":"IF(BG33=\"yes\",SUMIFS('Project Scope'!$AO$8:$AO$107,'Project Scope'!$AN$8:$AN$107,$I33,'Project Scope'!$C$8:$C$107,DF$7)+SUMIFS('Project Scope'!$AX$8:$AX$107,'Project Scope'!$AW$8:$AW$107,$I33,'Project Scope'!$C$8:$C$107,DF$7),0)","v":0},{"$f":"IF(BH33=\"yes\",SUMIFS('Project Scope'!$AO$8:$AO$107,'Project Scope'!$AN$8:$AN$107,$I33,'Project Scope'!$C$8:$C$107,DG$7)+SUMIFS('Project Scope'!$AX$8:$AX$107,'Project Scope'!$AW$8:$AW$107,$I33,'Project Scope'!$C$8:$C$107,DG$7),0)","v":0},{"$f":"IF(BI33=\"yes\",SUMIFS('Project Scope'!$AO$8:$AO$107,'Project Scope'!$AN$8:$AN$107,$I33,'Project Scope'!$C$8:$C$107,DH$7)+SUMIFS('Project Scope'!$AX$8:$AX$107,'Project Scope'!$AW$8:$AW$107,$I33,'Project Scope'!$C$8:$C$107,DH$7),0)","v":0},{"$f":"IF(BJ33=\"yes\",SUMIFS('Project Scope'!$AO$8:$AO$107,'Project Scope'!$AN$8:$AN$107,$I33,'Project Scope'!$C$8:$C$107,DI$7)+SUMIFS('Project Scope'!$AX$8:$AX$107,'Project Scope'!$AW$8:$AW$107,$I33,'Project Scope'!$C$8:$C$107,DI$7),0)","v":0},{"$f":"IF(BK33=\"yes\",SUMIFS('Project Scope'!$AO$8:$AO$107,'Project Scope'!$AN$8:$AN$107,$I33,'Project Scope'!$C$8:$C$107,DJ$7)+SUMIFS('Project Scope'!$AX$8:$AX$107,'Project Scope'!$AW$8:$AW$107,$I33,'Project Scope'!$C$8:$C$107,DJ$7),0)","v":0},{"$f":"IF(BL33=\"yes\",SUMIFS('Project Scope'!$AO$8:$AO$107,'Project Scope'!$AN$8:$AN$107,$I33,'Project Scope'!$C$8:$C$107,DK$7)+SUMIFS('Project Scope'!$AX$8:$AX$107,'Project Scope'!$AW$8:$AW$107,$I33,'Project Scope'!$C$8:$C$107,DK$7),0)","v":0},null,"","","","","","","","","","","","","","","","","","","","","","","","","","","","","","","","","","","","","","","","","","","","","","","","","","",null,""]
[null,null,null,null,null,null,null,null,null,null,null,{"$f":"IF($C34=\"additional labor hours\",$K34*'Project Information'!$D$12,$K34*$J34)*IF($F34=\"Per Measure\",SUM($BN34:$DK34),1)","v":0},{"$f":"IF($C34=\"\",0,IF(VLOOKUP($C34,'Other Data'!$B$146:$C$156,2,FALSE)=\"M\",$L34,0))","v":0},0,null,null,null,null,null,null,null,null,null,null,null,null,null,null,null,null,null,null,null,null,null,null,null,null,null,null,null,null,null,null,null,null,null,null,null,null,null,null,null,null,null,null,null,null,null,null,null,null,null,null,null,{"$f":"IF(O34=\"yes\",SUMIFS('Project Scope'!$AO$8:$AO$107,'Project Scope'!$AN$8:$AN$107,$I34,'Project Scope'!$C$8:$C$107,BN$7)+SUMIFS('Project Scope'!$AX$8:$AX$107,'Project Scope'!$AW$8:$AW$107,$I34,'Project Scope'!$C$8:$C$107,BN$7),0)","v":0},{"$f":"IF(P34=\"yes\",SUMIFS('Project Scope'!$AO$8:$AO$107,'Project Scope'!$AN$8:$AN$107,$I34,'Project Scope'!$C$8:$C$107,BO$7)+SUMIFS('Project Scope'!$AX$8:$AX$107,'Project Scope'!$AW$8:$AW$107,$I34,'Project Scope'!$C$8:$C$107,BO$7),0)","v":0},{"$f":"IF(Q34=\"yes\",SUMIFS('Project Scope'!$AO$8:$AO$107,'Project Scope'!$AN$8:$AN$107,$I34,'Project Scope'!$C$8:$C$107,BP$7)+SUMIFS('Project Scope'!$AX$8:$AX$107,'Project Scope'!$AW$8:$AW$107,$I34,'Project Scope'!$C$8:$C$107,BP$7),0)","v":0},{"$f":"IF(R34=\"yes\",SUMIFS('Project Scope'!$AO$8:$AO$107,'Project Scope'!$AN$8:$AN$107,$I34,'Project Scope'!$C$8:$C$107,BQ$7)+SUMIFS('Project Scope'!$AX$8:$AX$107,'Project Scope'!$AW$8:$AW$107,$I34,'Project Scope'!$C$8:$C$107,BQ$7),0)","v":0},{"$f":"IF(S34=\"yes\",SUMIFS('Project Scope'!$AO$8:$AO$107,'Project Scope'!$AN$8:$AN$107,$I34,'Project Scope'!$C$8:$C$107,BR$7)+SUMIFS('Project Scope'!$AX$8:$AX$107,'Project Scope'!$AW$8:$AW$107,$I34,'Project Scope'!$C$8:$C$107,BR$7),0)","v":0},{"$f":"IF(T34=\"yes\",SUMIFS('Project Scope'!$AO$8:$AO$107,'Project Scope'!$AN$8:$AN$107,$I34,'Project Scope'!$C$8:$C$107,BS$7)+SUMIFS('Project Scope'!$AX$8:$AX$107,'Project Scope'!$AW$8:$AW$107,$I34,'Project Scope'!$C$8:$C$107,BS$7),0)","v":0},{"$f":"IF(U34=\"yes\",SUMIFS('Project Scope'!$AO$8:$AO$107,'Project Scope'!$AN$8:$AN$107,$I34,'Project Scope'!$C$8:$C$107,BT$7)+SUMIFS('Project Scope'!$AX$8:$AX$107,'Project Scope'!$AW$8:$AW$107,$I34,'Project Scope'!$C$8:$C$107,BT$7),0)","v":0},{"$f":"IF(V34=\"yes\",SUMIFS('Project Scope'!$AO$8:$AO$107,'Project Scope'!$AN$8:$AN$107,$I34,'Project Scope'!$C$8:$C$107,BU$7)+SUMIFS('Project Scope'!$AX$8:$AX$107,'Project Scope'!$AW$8:$AW$107,$I34,'Project Scope'!$C$8:$C$107,BU$7),0)","v":0},{"$f":"IF(W34=\"yes\",SUMIFS('Project Scope'!$AO$8:$AO$107,'Project Scope'!$AN$8:$AN$107,$I34,'Project Scope'!$C$8:$C$107,BV$7)+SUMIFS('Project Scope'!$AX$8:$AX$107,'Project Scope'!$AW$8:$AW$107,$I34,'Project Scope'!$C$8:$C$107,BV$7),0)","v":0},{"$f":"IF(X34=\"yes\",SUMIFS('Project Scope'!$AO$8:$AO$107,'Project Scope'!$AN$8:$AN$107,$I34,'Project Scope'!$C$8:$C$107,BW$7)+SUMIFS('Project Scope'!$AX$8:$AX$107,'Project Scope'!$AW$8:$AW$107,$I34,'Project Scope'!$C$8:$C$107,BW$7),0)","v":0},{"$f":"IF(Y34=\"yes\",SUMIFS('Project Scope'!$AO$8:$AO$107,'Project Scope'!$AN$8:$AN$107,$I34,'Project Scope'!$C$8:$C$107,BX$7)+SUMIFS('Project Scope'!$AX$8:$AX$107,'Project Scope'!$AW$8:$AW$107,$I34,'Project Scope'!$C$8:$C$107,BX$7),0)","v":0},{"$f":"IF(Z34=\"yes\",SUMIFS('Project Scope'!$AO$8:$AO$107,'Project Scope'!$AN$8:$AN$107,$I34,'Project Scope'!$C$8:$C$107,BY$7)+SUMIFS('Project Scope'!$AX$8:$AX$107,'Project Scope'!$AW$8:$AW$107,$I34,'Project Scope'!$C$8:$C$107,BY$7),0)","v":0},{"$f":"IF(AA34=\"yes\",SUMIFS('Project Scope'!$AO$8:$AO$107,'Project Scope'!$AN$8:$AN$107,$I34,'Project Scope'!$C$8:$C$107,BZ$7)+SUMIFS('Project Scope'!$AX$8:$AX$107,'Project Scope'!$AW$8:$AW$107,$I34,'Project Scope'!$C$8:$C$107,BZ$7),0)","v":0},{"$f":"IF(AB34=\"yes\",SUMIFS('Project Scope'!$AO$8:$AO$107,'Project Scope'!$AN$8:$AN$107,$I34,'Project Scope'!$C$8:$C$107,CA$7)+SUMIFS('Project Scope'!$AX$8:$AX$107,'Project Scope'!$AW$8:$AW$107,$I34,'Project Scope'!$C$8:$C$107,CA$7),0)","v":0},{"$f":"IF(AC34=\"yes\",SUMIFS('Project Scope'!$AO$8:$AO$107,'Project Scope'!$AN$8:$AN$107,$I34,'Project Scope'!$C$8:$C$107,CB$7)+SUMIFS('Project Scope'!$AX$8:$AX$107,'Project Scope'!$AW$8:$AW$107,$I34,'Project Scope'!$C$8:$C$107,CB$7),0)","v":0},{"$f":"IF(AD34=\"yes\",SUMIFS('Project Scope'!$AO$8:$AO$107,'Project Scope'!$AN$8:$AN$107,$I34,'Project Scope'!$C$8:$C$107,CC$7)+SUMIFS('Project Scope'!$AX$8:$AX$107,'Project Scope'!$AW$8:$AW$107,$I34,'Project Scope'!$C$8:$C$107,CC$7),0)","v":0},{"$f":"IF(AE34=\"yes\",SUMIFS('Project Scope'!$AO$8:$AO$107,'Project Scope'!$AN$8:$AN$107,$I34,'Project Scope'!$C$8:$C$107,CD$7)+SUMIFS('Project Scope'!$AX$8:$AX$107,'Project Scope'!$AW$8:$AW$107,$I34,'Project Scope'!$C$8:$C$107,CD$7),0)","v":0},{"$f":"IF(AF34=\"yes\",SUMIFS('Project Scope'!$AO$8:$AO$107,'Project Scope'!$AN$8:$AN$107,$I34,'Project Scope'!$C$8:$C$107,CE$7)+SUMIFS('Project Scope'!$AX$8:$AX$107,'Project Scope'!$AW$8:$AW$107,$I34,'Project Scope'!$C$8:$C$107,CE$7),0)","v":0},{"$f":"IF(AG34=\"yes\",SUMIFS('Project Scope'!$AO$8:$AO$107,'Project Scope'!$AN$8:$AN$107,$I34,'Project Scope'!$C$8:$C$107,CF$7)+SUMIFS('Project Scope'!$AX$8:$AX$107,'Project Scope'!$AW$8:$AW$107,$I34,'Project Scope'!$C$8:$C$107,CF$7),0)","v":0},{"$f":"IF(AH34=\"yes\",SUMIFS('Project Scope'!$AO$8:$AO$107,'Project Scope'!$AN$8:$AN$107,$I34,'Project Scope'!$C$8:$C$107,CG$7)+SUMIFS('Project Scope'!$AX$8:$AX$107,'Project Scope'!$AW$8:$AW$107,$I34,'Project Scope'!$C$8:$C$107,CG$7),0)","v":0},{"$f":"IF(AI34=\"yes\",SUMIFS('Project Scope'!$AO$8:$AO$107,'Project Scope'!$AN$8:$AN$107,$I34,'Project Scope'!$C$8:$C$107,CH$7)+SUMIFS('Project Scope'!$AX$8:$AX$107,'Project Scope'!$AW$8:$AW$107,$I34,'Project Scope'!$C$8:$C$107,CH$7),0)","v":0},{"$f":"IF(AJ34=\"yes\",SUMIFS('Project Scope'!$AO$8:$AO$107,'Project Scope'!$AN$8:$AN$107,$I34,'Project Scope'!$C$8:$C$107,CI$7)+SUMIFS('Project Scope'!$AX$8:$AX$107,'Project Scope'!$AW$8:$AW$107,$I34,'Project Scope'!$C$8:$C$107,CI$7),0)","v":0},{"$f":"IF(AK34=\"yes\",SUMIFS('Project Scope'!$AO$8:$AO$107,'Project Scope'!$AN$8:$AN$107,$I34,'Project Scope'!$C$8:$C$107,CJ$7)+SUMIFS('Project Scope'!$AX$8:$AX$107,'Project Scope'!$AW$8:$AW$107,$I34,'Project Scope'!$C$8:$C$107,CJ$7),0)","v":0},{"$f":"IF(AL34=\"yes\",SUMIFS('Project Scope'!$AO$8:$AO$107,'Project Scope'!$AN$8:$AN$107,$I34,'Project Scope'!$C$8:$C$107,CK$7)+SUMIFS('Project Scope'!$AX$8:$AX$107,'Project Scope'!$AW$8:$AW$107,$I34,'Project Scope'!$C$8:$C$107,CK$7),0)","v":0},{"$f":"IF(AM34=\"yes\",SUMIFS('Project Scope'!$AO$8:$AO$107,'Project Scope'!$AN$8:$AN$107,$I34,'Project Scope'!$C$8:$C$107,CL$7)+SUMIFS('Project Scope'!$AX$8:$AX$107,'Project Scope'!$AW$8:$AW$107,$I34,'Project Scope'!$C$8:$C$107,CL$7),0)","v":0},{"$f":"IF(AN34=\"yes\",SUMIFS('Project Scope'!$AO$8:$AO$107,'Project Scope'!$AN$8:$AN$107,$I34,'Project Scope'!$C$8:$C$107,CM$7)+SUMIFS('Project Scope'!$AX$8:$AX$107,'Project Scope'!$AW$8:$AW$107,$I34,'Project Scope'!$C$8:$C$107,CM$7),0)","v":0},{"$f":"IF(AO34=\"yes\",SUMIFS('Project Scope'!$AO$8:$AO$107,'Project Scope'!$AN$8:$AN$107,$I34,'Project Scope'!$C$8:$C$107,CN$7)+SUMIFS('Project Scope'!$AX$8:$AX$107,'Project Scope'!$AW$8:$AW$107,$I34,'Project Scope'!$C$8:$C$107,CN$7),0)","v":0},{"$f":"IF(AP34=\"yes\",SUMIFS('Project Scope'!$AO$8:$AO$107,'Project Scope'!$AN$8:$AN$107,$I34,'Project Scope'!$C$8:$C$107,CO$7)+SUMIFS('Project Scope'!$AX$8:$AX$107,'Project Scope'!$AW$8:$AW$107,$I34,'Project Scope'!$C$8:$C$107,CO$7),0)","v":0},{"$f":"IF(AQ34=\"yes\",SUMIFS('Project Scope'!$AO$8:$AO$107,'Project Scope'!$AN$8:$AN$107,$I34,'Project Scope'!$C$8:$C$107,CP$7)+SUMIFS('Project Scope'!$AX$8:$AX$107,'Project Scope'!$AW$8:$AW$107,$I34,'Project Scope'!$C$8:$C$107,CP$7),0)","v":0},{"$f":"IF(AR34=\"yes\",SUMIFS('Project Scope'!$AO$8:$AO$107,'Project Scope'!$AN$8:$AN$107,$I34,'Project Scope'!$C$8:$C$107,CQ$7)+SUMIFS('Project Scope'!$AX$8:$AX$107,'Project Scope'!$AW$8:$AW$107,$I34,'Project Scope'!$C$8:$C$107,CQ$7),0)","v":0},{"$f":"IF(AS34=\"yes\",SUMIFS('Project Scope'!$AO$8:$AO$107,'Project Scope'!$AN$8:$AN$107,$I34,'Project Scope'!$C$8:$C$107,CR$7)+SUMIFS('Project Scope'!$AX$8:$AX$107,'Project Scope'!$AW$8:$AW$107,$I34,'Project Scope'!$C$8:$C$107,CR$7),0)","v":0},{"$f":"IF(AT34=\"yes\",SUMIFS('Project Scope'!$AO$8:$AO$107,'Project Scope'!$AN$8:$AN$107,$I34,'Project Scope'!$C$8:$C$107,CS$7)+SUMIFS('Project Scope'!$AX$8:$AX$107,'Project Scope'!$AW$8:$AW$107,$I34,'Project Scope'!$C$8:$C$107,CS$7),0)","v":0},{"$f":"IF(AU34=\"yes\",SUMIFS('Project Scope'!$AO$8:$AO$107,'Project Scope'!$AN$8:$AN$107,$I34,'Project Scope'!$C$8:$C$107,CT$7)+SUMIFS('Project Scope'!$AX$8:$AX$107,'Project Scope'!$AW$8:$AW$107,$I34,'Project Scope'!$C$8:$C$107,CT$7),0)","v":0},{"$f":"IF(AV34=\"yes\",SUMIFS('Project Scope'!$AO$8:$AO$107,'Project Scope'!$AN$8:$AN$107,$I34,'Project Scope'!$C$8:$C$107,CU$7)+SUMIFS('Project Scope'!$AX$8:$AX$107,'Project Scope'!$AW$8:$AW$107,$I34,'Project Scope'!$C$8:$C$107,CU$7),0)","v":0},{"$f":"IF(AW34=\"yes\",SUMIFS('Project Scope'!$AO$8:$AO$107,'Project Scope'!$AN$8:$AN$107,$I34,'Project Scope'!$C$8:$C$107,CV$7)+SUMIFS('Project Scope'!$AX$8:$AX$107,'Project Scope'!$AW$8:$AW$107,$I34,'Project Scope'!$C$8:$C$107,CV$7),0)","v":0},{"$f":"IF(AX34=\"yes\",SUMIFS('Project Scope'!$AO$8:$AO$107,'Project Scope'!$AN$8:$AN$107,$I34,'Project Scope'!$C$8:$C$107,CW$7)+SUMIFS('Project Scope'!$AX$8:$AX$107,'Project Scope'!$AW$8:$AW$107,$I34,'Project Scope'!$C$8:$C$107,CW$7),0)","v":0},{"$f":"IF(AY34=\"yes\",SUMIFS('Project Scope'!$AO$8:$AO$107,'Project Scope'!$AN$8:$AN$107,$I34,'Project Scope'!$C$8:$C$107,CX$7)+SUMIFS('Project Scope'!$AX$8:$AX$107,'Project Scope'!$AW$8:$AW$107,$I34,'Project Scope'!$C$8:$C$107,CX$7),0)","v":0},{"$f":"IF(AZ34=\"yes\",SUMIFS('Project Scope'!$AO$8:$AO$107,'Project Scope'!$AN$8:$AN$107,$I34,'Project Scope'!$C$8:$C$107,CY$7)+SUMIFS('Project Scope'!$AX$8:$AX$107,'Project Scope'!$AW$8:$AW$107,$I34,'Project Scope'!$C$8:$C$107,CY$7),0)","v":0},{"$f":"IF(BA34=\"yes\",SUMIFS('Project Scope'!$AO$8:$AO$107,'Project Scope'!$AN$8:$AN$107,$I34,'Project Scope'!$C$8:$C$107,CZ$7)+SUMIFS('Project Scope'!$AX$8:$AX$107,'Project Scope'!$AW$8:$AW$107,$I34,'Project Scope'!$C$8:$C$107,CZ$7),0)","v":0},{"$f":"IF(BB34=\"yes\",SUMIFS('Project Scope'!$AO$8:$AO$107,'Project Scope'!$AN$8:$AN$107,$I34,'Project Scope'!$C$8:$C$107,DA$7)+SUMIFS('Project Scope'!$AX$8:$AX$107,'Project Scope'!$AW$8:$AW$107,$I34,'Project Scope'!$C$8:$C$107,DA$7),0)","v":0},{"$f":"IF(BC34=\"yes\",SUMIFS('Project Scope'!$AO$8:$AO$107,'Project Scope'!$AN$8:$AN$107,$I34,'Project Scope'!$C$8:$C$107,DB$7)+SUMIFS('Project Scope'!$AX$8:$AX$107,'Project Scope'!$AW$8:$AW$107,$I34,'Project Scope'!$C$8:$C$107,DB$7),0)","v":0},{"$f":"IF(BD34=\"yes\",SUMIFS('Project Scope'!$AO$8:$AO$107,'Project Scope'!$AN$8:$AN$107,$I34,'Project Scope'!$C$8:$C$107,DC$7)+SUMIFS('Project Scope'!$AX$8:$AX$107,'Project Scope'!$AW$8:$AW$107,$I34,'Project Scope'!$C$8:$C$107,DC$7),0)","v":0},{"$f":"IF(BE34=\"yes\",SUMIFS('Project Scope'!$AO$8:$AO$107,'Project Scope'!$AN$8:$AN$107,$I34,'Project Scope'!$C$8:$C$107,DD$7)+SUMIFS('Project Scope'!$AX$8:$AX$107,'Project Scope'!$AW$8:$AW$107,$I34,'Project Scope'!$C$8:$C$107,DD$7),0)","v":0},{"$f":"IF(BF34=\"yes\",SUMIFS('Project Scope'!$AO$8:$AO$107,'Project Scope'!$AN$8:$AN$107,$I34,'Project Scope'!$C$8:$C$107,DE$7)+SUMIFS('Project Scope'!$AX$8:$AX$107,'Project Scope'!$AW$8:$AW$107,$I34,'Project Scope'!$C$8:$C$107,DE$7),0)","v":0},{"$f":"IF(BG34=\"yes\",SUMIFS('Project Scope'!$AO$8:$AO$107,'Project Scope'!$AN$8:$AN$107,$I34,'Project Scope'!$C$8:$C$107,DF$7)+SUMIFS('Project Scope'!$AX$8:$AX$107,'Project Scope'!$AW$8:$AW$107,$I34,'Project Scope'!$C$8:$C$107,DF$7),0)","v":0},{"$f":"IF(BH34=\"yes\",SUMIFS('Project Scope'!$AO$8:$AO$107,'Project Scope'!$AN$8:$AN$107,$I34,'Project Scope'!$C$8:$C$107,DG$7)+SUMIFS('Project Scope'!$AX$8:$AX$107,'Project Scope'!$AW$8:$AW$107,$I34,'Project Scope'!$C$8:$C$107,DG$7),0)","v":0},{"$f":"IF(BI34=\"yes\",SUMIFS('Project Scope'!$AO$8:$AO$107,'Project Scope'!$AN$8:$AN$107,$I34,'Project Scope'!$C$8:$C$107,DH$7)+SUMIFS('Project Scope'!$AX$8:$AX$107,'Project Scope'!$AW$8:$AW$107,$I34,'Project Scope'!$C$8:$C$107,DH$7),0)","v":0},{"$f":"IF(BJ34=\"yes\",SUMIFS('Project Scope'!$AO$8:$AO$107,'Project Scope'!$AN$8:$AN$107,$I34,'Project Scope'!$C$8:$C$107,DI$7)+SUMIFS('Project Scope'!$AX$8:$AX$107,'Project Scope'!$AW$8:$AW$107,$I34,'Project Scope'!$C$8:$C$107,DI$7),0)","v":0},{"$f":"IF(BK34=\"yes\",SUMIFS('Project Scope'!$AO$8:$AO$107,'Project Scope'!$AN$8:$AN$107,$I34,'Project Scope'!$C$8:$C$107,DJ$7)+SUMIFS('Project Scope'!$AX$8:$AX$107,'Project Scope'!$AW$8:$AW$107,$I34,'Project Scope'!$C$8:$C$107,DJ$7),0)","v":0},{"$f":"IF(BL34=\"yes\",SUMIFS('Project Scope'!$AO$8:$AO$107,'Project Scope'!$AN$8:$AN$107,$I34,'Project Scope'!$C$8:$C$107,DK$7)+SUMIFS('Project Scope'!$AX$8:$AX$107,'Project Scope'!$AW$8:$AW$107,$I34,'Project Scope'!$C$8:$C$107,DK$7),0)","v":0},null,"","","","","","","","","","","","","","","","","","","","","","","","","","","","","","","","","","","","","","","","","","","","","","","","","","",null,""]
[null,null,null,null,null,null,null,null,null,null,null,{"$f":"IF($C35=\"additional labor hours\",$K35*'Project Information'!$D$12,$K35*$J35)*IF($F35=\"Per Measure\",SUM($BN35:$DK35),1)","v":0},{"$f":"IF($C35=\"\",0,IF(VLOOKUP($C35,'Other Data'!$B$146:$C$156,2,FALSE)=\"M\",$L35,0))","v":0},0,null,null,null,null,null,null,null,null,null,null,null,null,null,null,null,null,null,null,null,null,null,null,null,null,null,null,null,null,null,null,null,null,null,null,null,null,null,null,null,null,null,null,null,null,null,null,null,null,null,null,null,{"$f":"IF(O35=\"yes\",SUMIFS('Project Scope'!$AO$8:$AO$107,'Project Scope'!$AN$8:$AN$107,$I35,'Project Scope'!$C$8:$C$107,BN$7)+SUMIFS('Project Scope'!$AX$8:$AX$107,'Project Scope'!$AW$8:$AW$107,$I35,'Project Scope'!$C$8:$C$107,BN$7),0)","v":0},{"$f":"IF(P35=\"yes\",SUMIFS('Project Scope'!$AO$8:$AO$107,'Project Scope'!$AN$8:$AN$107,$I35,'Project Scope'!$C$8:$C$107,BO$7)+SUMIFS('Project Scope'!$AX$8:$AX$107,'Project Scope'!$AW$8:$AW$107,$I35,'Project Scope'!$C$8:$C$107,BO$7),0)","v":0},{"$f":"IF(Q35=\"yes\",SUMIFS('Project Scope'!$AO$8:$AO$107,'Project Scope'!$AN$8:$AN$107,$I35,'Project Scope'!$C$8:$C$107,BP$7)+SUMIFS('Project Scope'!$AX$8:$AX$107,'Project Scope'!$AW$8:$AW$107,$I35,'Project Scope'!$C$8:$C$107,BP$7),0)","v":0},{"$f":"IF(R35=\"yes\",SUMIFS('Project Scope'!$AO$8:$AO$107,'Project Scope'!$AN$8:$AN$107,$I35,'Project Scope'!$C$8:$C$107,BQ$7)+SUMIFS('Project Scope'!$AX$8:$AX$107,'Project Scope'!$AW$8:$AW$107,$I35,'Project Scope'!$C$8:$C$107,BQ$7),0)","v":0},{"$f":"IF(S35=\"yes\",SUMIFS('Project Scope'!$AO$8:$AO$107,'Project Scope'!$AN$8:$AN$107,$I35,'Project Scope'!$C$8:$C$107,BR$7)+SUMIFS('Project Scope'!$AX$8:$AX$107,'Project Scope'!$AW$8:$AW$107,$I35,'Project Scope'!$C$8:$C$107,BR$7),0)","v":0},{"$f":"IF(T35=\"yes\",SUMIFS('Project Scope'!$AO$8:$AO$107,'Project Scope'!$AN$8:$AN$107,$I35,'Project Scope'!$C$8:$C$107,BS$7)+SUMIFS('Project Scope'!$AX$8:$AX$107,'Project Scope'!$AW$8:$AW$107,$I35,'Project Scope'!$C$8:$C$107,BS$7),0)","v":0},{"$f":"IF(U35=\"yes\",SUMIFS('Project Scope'!$AO$8:$AO$107,'Project Scope'!$AN$8:$AN$107,$I35,'Project Scope'!$C$8:$C$107,BT$7)+SUMIFS('Project Scope'!$AX$8:$AX$107,'Project Scope'!$AW$8:$AW$107,$I35,'Project Scope'!$C$8:$C$107,BT$7),0)","v":0},{"$f":"IF(V35=\"yes\",SUMIFS('Project Scope'!$AO$8:$AO$107,'Project Scope'!$AN$8:$AN$107,$I35,'Project Scope'!$C$8:$C$107,BU$7)+SUMIFS('Project Scope'!$AX$8:$AX$107,'Project Scope'!$AW$8:$AW$107,$I35,'Project Scope'!$C$8:$C$107,BU$7),0)","v":0},{"$f":"IF(W35=\"yes\",SUMIFS('Project Scope'!$AO$8:$AO$107,'Project Scope'!$AN$8:$AN$107,$I35,'Project Scope'!$C$8:$C$107,BV$7)+SUMIFS('Project Scope'!$AX$8:$AX$107,'Project Scope'!$AW$8:$AW$107,$I35,'Project Scope'!$C$8:$C$107,BV$7),0)","v":0},{"$f":"IF(X35=\"yes\",SUMIFS('Project Scope'!$AO$8:$AO$107,'Project Scope'!$AN$8:$AN$107,$I35,'Project Scope'!$C$8:$C$107,BW$7)+SUMIFS('Project Scope'!$AX$8:$AX$107,'Project Scope'!$AW$8:$AW$107,$I35,'Project Scope'!$C$8:$C$107,BW$7),0)","v":0},{"$f":"IF(Y35=\"yes\",SUMIFS('Project Scope'!$AO$8:$AO$107,'Project Scope'!$AN$8:$AN$107,$I35,'Project Scope'!$C$8:$C$107,BX$7)+SUMIFS('Project Scope'!$AX$8:$AX$107,'Project Scope'!$AW$8:$AW$107,$I35,'Project Scope'!$C$8:$C$107,BX$7),0)","v":0},{"$f":"IF(Z35=\"yes\",SUMIFS('Project Scope'!$AO$8:$AO$107,'Project Scope'!$AN$8:$AN$107,$I35,'Project Scope'!$C$8:$C$107,BY$7)+SUMIFS('Project Scope'!$AX$8:$AX$107,'Project Scope'!$AW$8:$AW$107,$I35,'Project Scope'!$C$8:$C$107,BY$7),0)","v":0},{"$f":"IF(AA35=\"yes\",SUMIFS('Project Scope'!$AO$8:$AO$107,'Project Scope'!$AN$8:$AN$107,$I35,'Project Scope'!$C$8:$C$107,BZ$7)+SUMIFS('Project Scope'!$AX$8:$AX$107,'Project Scope'!$AW$8:$AW$107,$I35,'Project Scope'!$C$8:$C$107,BZ$7),0)","v":0},{"$f":"IF(AB35=\"yes\",SUMIFS('Project Scope'!$AO$8:$AO$107,'Project Scope'!$AN$8:$AN$107,$I35,'Project Scope'!$C$8:$C$107,CA$7)+SUMIFS('Project Scope'!$AX$8:$AX$107,'Project Scope'!$AW$8:$AW$107,$I35,'Project Scope'!$C$8:$C$107,CA$7),0)","v":0},{"$f":"IF(AC35=\"yes\",SUMIFS('Project Scope'!$AO$8:$AO$107,'Project Scope'!$AN$8:$AN$107,$I35,'Project Scope'!$C$8:$C$107,CB$7)+SUMIFS('Project Scope'!$AX$8:$AX$107,'Project Scope'!$AW$8:$AW$107,$I35,'Project Scope'!$C$8:$C$107,CB$7),0)","v":0},{"$f":"IF(AD35=\"yes\",SUMIFS('Project Scope'!$AO$8:$AO$107,'Project Scope'!$AN$8:$AN$107,$I35,'Project Scope'!$C$8:$C$107,CC$7)+SUMIFS('Project Scope'!$AX$8:$AX$107,'Project Scope'!$AW$8:$AW$107,$I35,'Project Scope'!$C$8:$C$107,CC$7),0)","v":0},{"$f":"IF(AE35=\"yes\",SUMIFS('Project Scope'!$AO$8:$AO$107,'Project Scope'!$AN$8:$AN$107,$I35,'Project Scope'!$C$8:$C$107,CD$7)+SUMIFS('Project Scope'!$AX$8:$AX$107,'Project Scope'!$AW$8:$AW$107,$I35,'Project Scope'!$C$8:$C$107,CD$7),0)","v":0},{"$f":"IF(AF35=\"yes\",SUMIFS('Project Scope'!$AO$8:$AO$107,'Project Scope'!$AN$8:$AN$107,$I35,'Project Scope'!$C$8:$C$107,CE$7)+SUMIFS('Project Scope'!$AX$8:$AX$107,'Project Scope'!$AW$8:$AW$107,$I35,'Project Scope'!$C$8:$C$107,CE$7),0)","v":0},{"$f":"IF(AG35=\"yes\",SUMIFS('Project Scope'!$AO$8:$AO$107,'Project Scope'!$AN$8:$AN$107,$I35,'Project Scope'!$C$8:$C$107,CF$7)+SUMIFS('Project Scope'!$AX$8:$AX$107,'Project Scope'!$AW$8:$AW$107,$I35,'Project Scope'!$C$8:$C$107,CF$7),0)","v":0},{"$f":"IF(AH35=\"yes\",SUMIFS('Project Scope'!$AO$8:$AO$107,'Project Scope'!$AN$8:$AN$107,$I35,'Project Scope'!$C$8:$C$107,CG$7)+SUMIFS('Project Scope'!$AX$8:$AX$107,'Project Scope'!$AW$8:$AW$107,$I35,'Project Scope'!$C$8:$C$107,CG$7),0)","v":0},{"$f":"IF(AI35=\"yes\",SUMIFS('Project Scope'!$AO$8:$AO$107,'Project Scope'!$AN$8:$AN$107,$I35,'Project Scope'!$C$8:$C$107,CH$7)+SUMIFS('Project Scope'!$AX$8:$AX$107,'Project Scope'!$AW$8:$AW$107,$I35,'Project Scope'!$C$8:$C$107,CH$7),0)","v":0},{"$f":"IF(AJ35=\"yes\",SUMIFS('Project Scope'!$AO$8:$AO$107,'Project Scope'!$AN$8:$AN$107,$I35,'Project Scope'!$C$8:$C$107,CI$7)+SUMIFS('Project Scope'!$AX$8:$AX$107,'Project Scope'!$AW$8:$AW$107,$I35,'Project Scope'!$C$8:$C$107,CI$7),0)","v":0},{"$f":"IF(AK35=\"yes\",SUMIFS('Project Scope'!$AO$8:$AO$107,'Project Scope'!$AN$8:$AN$107,$I35,'Project Scope'!$C$8:$C$107,CJ$7)+SUMIFS('Project Scope'!$AX$8:$AX$107,'Project Scope'!$AW$8:$AW$107,$I35,'Project Scope'!$C$8:$C$107,CJ$7),0)","v":0},{"$f":"IF(AL35=\"yes\",SUMIFS('Project Scope'!$AO$8:$AO$107,'Project Scope'!$AN$8:$AN$107,$I35,'Project Scope'!$C$8:$C$107,CK$7)+SUMIFS('Project Scope'!$AX$8:$AX$107,'Project Scope'!$AW$8:$AW$107,$I35,'Project Scope'!$C$8:$C$107,CK$7),0)","v":0},{"$f":"IF(AM35=\"yes\",SUMIFS('Project Scope'!$AO$8:$AO$107,'Project Scope'!$AN$8:$AN$107,$I35,'Project Scope'!$C$8:$C$107,CL$7)+SUMIFS('Project Scope'!$AX$8:$AX$107,'Project Scope'!$AW$8:$AW$107,$I35,'Project Scope'!$C$8:$C$107,CL$7),0)","v":0},{"$f":"IF(AN35=\"yes\",SUMIFS('Project Scope'!$AO$8:$AO$107,'Project Scope'!$AN$8:$AN$107,$I35,'Project Scope'!$C$8:$C$107,CM$7)+SUMIFS('Project Scope'!$AX$8:$AX$107,'Project Scope'!$AW$8:$AW$107,$I35,'Project Scope'!$C$8:$C$107,CM$7),0)","v":0},{"$f":"IF(AO35=\"yes\",SUMIFS('Project Scope'!$AO$8:$AO$107,'Project Scope'!$AN$8:$AN$107,$I35,'Project Scope'!$C$8:$C$107,CN$7)+SUMIFS('Project Scope'!$AX$8:$AX$107,'Project Scope'!$AW$8:$AW$107,$I35,'Project Scope'!$C$8:$C$107,CN$7),0)","v":0},{"$f":"IF(AP35=\"yes\",SUMIFS('Project Scope'!$AO$8:$AO$107,'Project Scope'!$AN$8:$AN$107,$I35,'Project Scope'!$C$8:$C$107,CO$7)+SUMIFS('Project Scope'!$AX$8:$AX$107,'Project Scope'!$AW$8:$AW$107,$I35,'Project Scope'!$C$8:$C$107,CO$7),0)","v":0},{"$f":"IF(AQ35=\"yes\",SUMIFS('Project Scope'!$AO$8:$AO$107,'Project Scope'!$AN$8:$AN$107,$I35,'Project Scope'!$C$8:$C$107,CP$7)+SUMIFS('Project Scope'!$AX$8:$AX$107,'Project Scope'!$AW$8:$AW$107,$I35,'Project Scope'!$C$8:$C$107,CP$7),0)","v":0},{"$f":"IF(AR35=\"yes\",SUMIFS('Project Scope'!$AO$8:$AO$107,'Project Scope'!$AN$8:$AN$107,$I35,'Project Scope'!$C$8:$C$107,CQ$7)+SUMIFS('Project Scope'!$AX$8:$AX$107,'Project Scope'!$AW$8:$AW$107,$I35,'Project Scope'!$C$8:$C$107,CQ$7),0)","v":0},{"$f":"IF(AS35=\"yes\",SUMIFS('Project Scope'!$AO$8:$AO$107,'Project Scope'!$AN$8:$AN$107,$I35,'Project Scope'!$C$8:$C$107,CR$7)+SUMIFS('Project Scope'!$AX$8:$AX$107,'Project Scope'!$AW$8:$AW$107,$I35,'Project Scope'!$C$8:$C$107,CR$7),0)","v":0},{"$f":"IF(AT35=\"yes\",SUMIFS('Project Scope'!$AO$8:$AO$107,'Project Scope'!$AN$8:$AN$107,$I35,'Project Scope'!$C$8:$C$107,CS$7)+SUMIFS('Project Scope'!$AX$8:$AX$107,'Project Scope'!$AW$8:$AW$107,$I35,'Project Scope'!$C$8:$C$107,CS$7),0)","v":0},{"$f":"IF(AU35=\"yes\",SUMIFS('Project Scope'!$AO$8:$AO$107,'Project Scope'!$AN$8:$AN$107,$I35,'Project Scope'!$C$8:$C$107,CT$7)+SUMIFS('Project Scope'!$AX$8:$AX$107,'Project Scope'!$AW$8:$AW$107,$I35,'Project Scope'!$C$8:$C$107,CT$7),0)","v":0},{"$f":"IF(AV35=\"yes\",SUMIFS('Project Scope'!$AO$8:$AO$107,'Project Scope'!$AN$8:$AN$107,$I35,'Project Scope'!$C$8:$C$107,CU$7)+SUMIFS('Project Scope'!$AX$8:$AX$107,'Project Scope'!$AW$8:$AW$107,$I35,'Project Scope'!$C$8:$C$107,CU$7),0)","v":0},{"$f":"IF(AW35=\"yes\",SUMIFS('Project Scope'!$AO$8:$AO$107,'Project Scope'!$AN$8:$AN$107,$I35,'Project Scope'!$C$8:$C$107,CV$7)+SUMIFS('Project Scope'!$AX$8:$AX$107,'Project Scope'!$AW$8:$AW$107,$I35,'Project Scope'!$C$8:$C$107,CV$7),0)","v":0},{"$f":"IF(AX35=\"yes\",SUMIFS('Project Scope'!$AO$8:$AO$107,'Project Scope'!$AN$8:$AN$107,$I35,'Project Scope'!$C$8:$C$107,CW$7)+SUMIFS('Project Scope'!$AX$8:$AX$107,'Project Scope'!$AW$8:$AW$107,$I35,'Project Scope'!$C$8:$C$107,CW$7),0)","v":0},{"$f":"IF(AY35=\"yes\",SUMIFS('Project Scope'!$AO$8:$AO$107,'Project Scope'!$AN$8:$AN$107,$I35,'Project Scope'!$C$8:$C$107,CX$7)+SUMIFS('Project Scope'!$AX$8:$AX$107,'Project Scope'!$AW$8:$AW$107,$I35,'Project Scope'!$C$8:$C$107,CX$7),0)","v":0},{"$f":"IF(AZ35=\"yes\",SUMIFS('Project Scope'!$AO$8:$AO$107,'Project Scope'!$AN$8:$AN$107,$I35,'Project Scope'!$C$8:$C$107,CY$7)+SUMIFS('Project Scope'!$AX$8:$AX$107,'Project Scope'!$AW$8:$AW$107,$I35,'Project Scope'!$C$8:$C$107,CY$7),0)","v":0},{"$f":"IF(BA35=\"yes\",SUMIFS('Project Scope'!$AO$8:$AO$107,'Project Scope'!$AN$8:$AN$107,$I35,'Project Scope'!$C$8:$C$107,CZ$7)+SUMIFS('Project Scope'!$AX$8:$AX$107,'Project Scope'!$AW$8:$AW$107,$I35,'Project Scope'!$C$8:$C$107,CZ$7),0)","v":0},{"$f":"IF(BB35=\"yes\",SUMIFS('Project Scope'!$AO$8:$AO$107,'Project Scope'!$AN$8:$AN$107,$I35,'Project Scope'!$C$8:$C$107,DA$7)+SUMIFS('Project Scope'!$AX$8:$AX$107,'Project Scope'!$AW$8:$AW$107,$I35,'Project Scope'!$C$8:$C$107,DA$7),0)","v":0},{"$f":"IF(BC35=\"yes\",SUMIFS('Project Scope'!$AO$8:$AO$107,'Project Scope'!$AN$8:$AN$107,$I35,'Project Scope'!$C$8:$C$107,DB$7)+SUMIFS('Project Scope'!$AX$8:$AX$107,'Project Scope'!$AW$8:$AW$107,$I35,'Project Scope'!$C$8:$C$107,DB$7),0)","v":0},{"$f":"IF(BD35=\"yes\",SUMIFS('Project Scope'!$AO$8:$AO$107,'Project Scope'!$AN$8:$AN$107,$I35,'Project Scope'!$C$8:$C$107,DC$7)+SUMIFS('Project Scope'!$AX$8:$AX$107,'Project Scope'!$AW$8:$AW$107,$I35,'Project Scope'!$C$8:$C$107,DC$7),0)","v":0},{"$f":"IF(BE35=\"yes\",SUMIFS('Project Scope'!$AO$8:$AO$107,'Project Scope'!$AN$8:$AN$107,$I35,'Project Scope'!$C$8:$C$107,DD$7)+SUMIFS('Project Scope'!$AX$8:$AX$107,'Project Scope'!$AW$8:$AW$107,$I35,'Project Scope'!$C$8:$C$107,DD$7),0)","v":0},{"$f":"IF(BF35=\"yes\",SUMIFS('Project Scope'!$AO$8:$AO$107,'Project Scope'!$AN$8:$AN$107,$I35,'Project Scope'!$C$8:$C$107,DE$7)+SUMIFS('Project Scope'!$AX$8:$AX$107,'Project Scope'!$AW$8:$AW$107,$I35,'Project Scope'!$C$8:$C$107,DE$7),0)","v":0},{"$f":"IF(BG35=\"yes\",SUMIFS('Project Scope'!$AO$8:$AO$107,'Project Scope'!$AN$8:$AN$107,$I35,'Project Scope'!$C$8:$C$107,DF$7)+SUMIFS('Project Scope'!$AX$8:$AX$107,'Project Scope'!$AW$8:$AW$107,$I35,'Project Scope'!$C$8:$C$107,DF$7),0)","v":0},{"$f":"IF(BH35=\"yes\",SUMIFS('Project Scope'!$AO$8:$AO$107,'Project Scope'!$AN$8:$AN$107,$I35,'Project Scope'!$C$8:$C$107,DG$7)+SUMIFS('Project Scope'!$AX$8:$AX$107,'Project Scope'!$AW$8:$AW$107,$I35,'Project Scope'!$C$8:$C$107,DG$7),0)","v":0},{"$f":"IF(BI35=\"yes\",SUMIFS('Project Scope'!$AO$8:$AO$107,'Project Scope'!$AN$8:$AN$107,$I35,'Project Scope'!$C$8:$C$107,DH$7)+SUMIFS('Project Scope'!$AX$8:$AX$107,'Project Scope'!$AW$8:$AW$107,$I35,'Project Scope'!$C$8:$C$107,DH$7),0)","v":0},{"$f":"IF(BJ35=\"yes\",SUMIFS('Project Scope'!$AO$8:$AO$107,'Project Scope'!$AN$8:$AN$107,$I35,'Project Scope'!$C$8:$C$107,DI$7)+SUMIFS('Project Scope'!$AX$8:$AX$107,'Project Scope'!$AW$8:$AW$107,$I35,'Project Scope'!$C$8:$C$107,DI$7),0)","v":0},{"$f":"IF(BK35=\"yes\",SUMIFS('Project Scope'!$AO$8:$AO$107,'Project Scope'!$AN$8:$AN$107,$I35,'Project Scope'!$C$8:$C$107,DJ$7)+SUMIFS('Project Scope'!$AX$8:$AX$107,'Project Scope'!$AW$8:$AW$107,$I35,'Project Scope'!$C$8:$C$107,DJ$7),0)","v":0},{"$f":"IF(BL35=\"yes\",SUMIFS('Project Scope'!$AO$8:$AO$107,'Project Scope'!$AN$8:$AN$107,$I35,'Project Scope'!$C$8:$C$107,DK$7)+SUMIFS('Project Scope'!$AX$8:$AX$107,'Project Scope'!$AW$8:$AW$107,$I35,'Project Scope'!$C$8:$C$107,DK$7),0)","v":0},null,"","","","","","","","","","","","","","","","","","","","","","","","","","","","","","","","","","","","","","","","","","","","","","","","","","",null,""]
[null,null,null,null,null,null,null,null,null,null,null,{"$f":"IF($C36=\"additional labor hours\",$K36*'Project Information'!$D$12,$K36*$J36)*IF($F36=\"Per Measure\",SUM($BN36:$DK36),1)","v":0},{"$f":"IF($C36=\"\",0,IF(VLOOKUP($C36,'Other Data'!$B$146:$C$156,2,FALSE)=\"M\",$L36,0))","v":0},0,null,null,null,null,null,null,null,null,null,null,null,null,null,null,null,null,null,null,null,null,null,null,null,null,null,null,null,null,null,null,null,null,null,null,null,null,null,null,null,null,null,null,null,null,null,null,null,null,null,null,null,{"$f":"IF(O36=\"yes\",SUMIFS('Project Scope'!$AO$8:$AO$107,'Project Scope'!$AN$8:$AN$107,$I36,'Project Scope'!$C$8:$C$107,BN$7)+SUMIFS('Project Scope'!$AX$8:$AX$107,'Project Scope'!$AW$8:$AW$107,$I36,'Project Scope'!$C$8:$C$107,BN$7),0)","v":0},{"$f":"IF(P36=\"yes\",SUMIFS('Project Scope'!$AO$8:$AO$107,'Project Scope'!$AN$8:$AN$107,$I36,'Project Scope'!$C$8:$C$107,BO$7)+SUMIFS('Project Scope'!$AX$8:$AX$107,'Project Scope'!$AW$8:$AW$107,$I36,'Project Scope'!$C$8:$C$107,BO$7),0)","v":0},{"$f":"IF(Q36=\"yes\",SUMIFS('Project Scope'!$AO$8:$AO$107,'Project Scope'!$AN$8:$AN$107,$I36,'Project Scope'!$C$8:$C$107,BP$7)+SUMIFS('Project Scope'!$AX$8:$AX$107,'Project Scope'!$AW$8:$AW$107,$I36,'Project Scope'!$C$8:$C$107,BP$7),0)","v":0},{"$f":"IF(R36=\"yes\",SUMIFS('Project Scope'!$AO$8:$AO$107,'Project Scope'!$AN$8:$AN$107,$I36,'Project Scope'!$C$8:$C$107,BQ$7)+SUMIFS('Project Scope'!$AX$8:$AX$107,'Project Scope'!$AW$8:$AW$107,$I36,'Project Scope'!$C$8:$C$107,BQ$7),0)","v":0},{"$f":"IF(S36=\"yes\",SUMIFS('Project Scope'!$AO$8:$AO$107,'Project Scope'!$AN$8:$AN$107,$I36,'Project Scope'!$C$8:$C$107,BR$7)+SUMIFS('Project Scope'!$AX$8:$AX$107,'Project Scope'!$AW$8:$AW$107,$I36,'Project Scope'!$C$8:$C$107,BR$7),0)","v":0},{"$f":"IF(T36=\"yes\",SUMIFS('Project Scope'!$AO$8:$AO$107,'Project Scope'!$AN$8:$AN$107,$I36,'Project Scope'!$C$8:$C$107,BS$7)+SUMIFS('Project Scope'!$AX$8:$AX$107,'Project Scope'!$AW$8:$AW$107,$I36,'Project Scope'!$C$8:$C$107,BS$7),0)","v":0},{"$f":"IF(U36=\"yes\",SUMIFS('Project Scope'!$AO$8:$AO$107,'Project Scope'!$AN$8:$AN$107,$I36,'Project Scope'!$C$8:$C$107,BT$7)+SUMIFS('Project Scope'!$AX$8:$AX$107,'Project Scope'!$AW$8:$AW$107,$I36,'Project Scope'!$C$8:$C$107,BT$7),0)","v":0},{"$f":"IF(V36=\"yes\",SUMIFS('Project Scope'!$AO$8:$AO$107,'Project Scope'!$AN$8:$AN$107,$I36,'Project Scope'!$C$8:$C$107,BU$7)+SUMIFS('Project Scope'!$AX$8:$AX$107,'Project Scope'!$AW$8:$AW$107,$I36,'Project Scope'!$C$8:$C$107,BU$7),0)","v":0},{"$f":"IF(W36=\"yes\",SUMIFS('Project Scope'!$AO$8:$AO$107,'Project Scope'!$AN$8:$AN$107,$I36,'Project Scope'!$C$8:$C$107,BV$7)+SUMIFS('Project Scope'!$AX$8:$AX$107,'Project Scope'!$AW$8:$AW$107,$I36,'Project Scope'!$C$8:$C$107,BV$7),0)","v":0},{"$f":"IF(X36=\"yes\",SUMIFS('Project Scope'!$AO$8:$AO$107,'Project Scope'!$AN$8:$AN$107,$I36,'Project Scope'!$C$8:$C$107,BW$7)+SUMIFS('Project Scope'!$AX$8:$AX$107,'Project Scope'!$AW$8:$AW$107,$I36,'Project Scope'!$C$8:$C$107,BW$7),0)","v":0},{"$f":"IF(Y36=\"yes\",SUMIFS('Project Scope'!$AO$8:$AO$107,'Project Scope'!$AN$8:$AN$107,$I36,'Project Scope'!$C$8:$C$107,BX$7)+SUMIFS('Project Scope'!$AX$8:$AX$107,'Project Scope'!$AW$8:$AW$107,$I36,'Project Scope'!$C$8:$C$107,BX$7),0)","v":0},{"$f":"IF(Z36=\"yes\",SUMIFS('Project Scope'!$AO$8:$AO$107,'Project Scope'!$AN$8:$AN$107,$I36,'Project Scope'!$C$8:$C$107,BY$7)+SUMIFS('Project Scope'!$AX$8:$AX$107,'Project Scope'!$AW$8:$AW$107,$I36,'Project Scope'!$C$8:$C$107,BY$7),0)","v":0},{"$f":"IF(AA36=\"yes\",SUMIFS('Project Scope'!$AO$8:$AO$107,'Project Scope'!$AN$8:$AN$107,$I36,'Project Scope'!$C$8:$C$107,BZ$7)+SUMIFS('Project Scope'!$AX$8:$AX$107,'Project Scope'!$AW$8:$AW$107,$I36,'Project Scope'!$C$8:$C$107,BZ$7),0)","v":0},{"$f":"IF(AB36=\"yes\",SUMIFS('Project Scope'!$AO$8:$AO$107,'Project Scope'!$AN$8:$AN$107,$I36,'Project Scope'!$C$8:$C$107,CA$7)+SUMIFS('Project Scope'!$AX$8:$AX$107,'Project Scope'!$AW$8:$AW$107,$I36,'Project Scope'!$C$8:$C$107,CA$7),0)","v":0},{"$f":"IF(AC36=\"yes\",SUMIFS('Project Scope'!$AO$8:$AO$107,'Project Scope'!$AN$8:$AN$107,$I36,'Project Scope'!$C$8:$C$107,CB$7)+SUMIFS('Project Scope'!$AX$8:$AX$107,'Project Scope'!$AW$8:$AW$107,$I36,'Project Scope'!$C$8:$C$107,CB$7),0)","v":0},{"$f":"IF(AD36=\"yes\",SUMIFS('Project Scope'!$AO$8:$AO$107,'Project Scope'!$AN$8:$AN$107,$I36,'Project Scope'!$C$8:$C$107,CC$7)+SUMIFS('Project Scope'!$AX$8:$AX$107,'Project Scope'!$AW$8:$AW$107,$I36,'Project Scope'!$C$8:$C$107,CC$7),0)","v":0},{"$f":"IF(AE36=\"yes\",SUMIFS('Project Scope'!$AO$8:$AO$107,'Project Scope'!$AN$8:$AN$107,$I36,'Project Scope'!$C$8:$C$107,CD$7)+SUMIFS('Project Scope'!$AX$8:$AX$107,'Project Scope'!$AW$8:$AW$107,$I36,'Project Scope'!$C$8:$C$107,CD$7),0)","v":0},{"$f":"IF(AF36=\"yes\",SUMIFS('Project Scope'!$AO$8:$AO$107,'Project Scope'!$AN$8:$AN$107,$I36,'Project Scope'!$C$8:$C$107,CE$7)+SUMIFS('Project Scope'!$AX$8:$AX$107,'Project Scope'!$AW$8:$AW$107,$I36,'Project Scope'!$C$8:$C$107,CE$7),0)","v":0},{"$f":"IF(AG36=\"yes\",SUMIFS('Project Scope'!$AO$8:$AO$107,'Project Scope'!$AN$8:$AN$107,$I36,'Project Scope'!$C$8:$C$107,CF$7)+SUMIFS('Project Scope'!$AX$8:$AX$107,'Project Scope'!$AW$8:$AW$107,$I36,'Project Scope'!$C$8:$C$107,CF$7),0)","v":0},{"$f":"IF(AH36=\"yes\",SUMIFS('Project Scope'!$AO$8:$AO$107,'Project Scope'!$AN$8:$AN$107,$I36,'Project Scope'!$C$8:$C$107,CG$7)+SUMIFS('Project Scope'!$AX$8:$AX$107,'Project Scope'!$AW$8:$AW$107,$I36,'Project Scope'!$C$8:$C$107,CG$7),0)","v":0},{"$f":"IF(AI36=\"yes\",SUMIFS('Project Scope'!$AO$8:$AO$107,'Project Scope'!$AN$8:$AN$107,$I36,'Project Scope'!$C$8:$C$107,CH$7)+SUMIFS('Project Scope'!$AX$8:$AX$107,'Project Scope'!$AW$8:$AW$107,$I36,'Project Scope'!$C$8:$C$107,CH$7),0)","v":0},{"$f":"IF(AJ36=\"yes\",SUMIFS('Project Scope'!$AO$8:$AO$107,'Project Scope'!$AN$8:$AN$107,$I36,'Project Scope'!$C$8:$C$107,CI$7)+SUMIFS('Project Scope'!$AX$8:$AX$107,'Project Scope'!$AW$8:$AW$107,$I36,'Project Scope'!$C$8:$C$107,CI$7),0)","v":0},{"$f":"IF(AK36=\"yes\",SUMIFS('Project Scope'!$AO$8:$AO$107,'Project Scope'!$AN$8:$AN$107,$I36,'Project Scope'!$C$8:$C$107,CJ$7)+SUMIFS('Project Scope'!$AX$8:$AX$107,'Project Scope'!$AW$8:$AW$107,$I36,'Project Scope'!$C$8:$C$107,CJ$7),0)","v":0},{"$f":"IF(AL36=\"yes\",SUMIFS('Project Scope'!$AO$8:$AO$107,'Project Scope'!$AN$8:$AN$107,$I36,'Project Scope'!$C$8:$C$107,CK$7)+SUMIFS('Project Scope'!$AX$8:$AX$107,'Project Scope'!$AW$8:$AW$107,$I36,'Project Scope'!$C$8:$C$107,CK$7),0)","v":0},{"$f":"IF(AM36=\"yes\",SUMIFS('Project Scope'!$AO$8:$AO$107,'Project Scope'!$AN$8:$AN$107,$I36,'Project Scope'!$C$8:$C$107,CL$7)+SUMIFS('Project Scope'!$AX$8:$AX$107,'Project Scope'!$AW$8:$AW$107,$I36,'Project Scope'!$C$8:$C$107,CL$7),0)","v":0},{"$f":"IF(AN36=\"yes\",SUMIFS('Project Scope'!$AO$8:$AO$107,'Project Scope'!$AN$8:$AN$107,$I36,'Project Scope'!$C$8:$C$107,CM$7)+SUMIFS('Project Scope'!$AX$8:$AX$107,'Project Scope'!$AW$8:$AW$107,$I36,'Project Scope'!$C$8:$C$107,CM$7),0)","v":0},{"$f":"IF(AO36=\"yes\",SUMIFS('Project Scope'!$AO$8:$AO$107,'Project Scope'!$AN$8:$AN$107,$I36,'Project Scope'!$C$8:$C$107,CN$7)+SUMIFS('Project Scope'!$AX$8:$AX$107,'Project Scope'!$AW$8:$AW$107,$I36,'Project Scope'!$C$8:$C$107,CN$7),0)","v":0},{"$f":"IF(AP36=\"yes\",SUMIFS('Project Scope'!$AO$8:$AO$107,'Project Scope'!$AN$8:$AN$107,$I36,'Project Scope'!$C$8:$C$107,CO$7)+SUMIFS('Project Scope'!$AX$8:$AX$107,'Project Scope'!$AW$8:$AW$107,$I36,'Project Scope'!$C$8:$C$107,CO$7),0)","v":0},{"$f":"IF(AQ36=\"yes\",SUMIFS('Project Scope'!$AO$8:$AO$107,'Project Scope'!$AN$8:$AN$107,$I36,'Project Scope'!$C$8:$C$107,CP$7)+SUMIFS('Project Scope'!$AX$8:$AX$107,'Project Scope'!$AW$8:$AW$107,$I36,'Project Scope'!$C$8:$C$107,CP$7),0)","v":0},{"$f":"IF(AR36=\"yes\",SUMIFS('Project Scope'!$AO$8:$AO$107,'Project Scope'!$AN$8:$AN$107,$I36,'Project Scope'!$C$8:$C$107,CQ$7)+SUMIFS('Project Scope'!$AX$8:$AX$107,'Project Scope'!$AW$8:$AW$107,$I36,'Project Scope'!$C$8:$C$107,CQ$7),0)","v":0},{"$f":"IF(AS36=\"yes\",SUMIFS('Project Scope'!$AO$8:$AO$107,'Project Scope'!$AN$8:$AN$107,$I36,'Project Scope'!$C$8:$C$107,CR$7)+SUMIFS('Project Scope'!$AX$8:$AX$107,'Project Scope'!$AW$8:$AW$107,$I36,'Project Scope'!$C$8:$C$107,CR$7),0)","v":0},{"$f":"IF(AT36=\"yes\",SUMIFS('Project Scope'!$AO$8:$AO$107,'Project Scope'!$AN$8:$AN$107,$I36,'Project Scope'!$C$8:$C$107,CS$7)+SUMIFS('Project Scope'!$AX$8:$AX$107,'Project Scope'!$AW$8:$AW$107,$I36,'Project Scope'!$C$8:$C$107,CS$7),0)","v":0},{"$f":"IF(AU36=\"yes\",SUMIFS('Project Scope'!$AO$8:$AO$107,'Project Scope'!$AN$8:$AN$107,$I36,'Project Scope'!$C$8:$C$107,CT$7)+SUMIFS('Project Scope'!$AX$8:$AX$107,'Project Scope'!$AW$8:$AW$107,$I36,'Project Scope'!$C$8:$C$107,CT$7),0)","v":0},{"$f":"IF(AV36=\"yes\",SUMIFS('Project Scope'!$AO$8:$AO$107,'Project Scope'!$AN$8:$AN$107,$I36,'Project Scope'!$C$8:$C$107,CU$7)+SUMIFS('Project Scope'!$AX$8:$AX$107,'Project Scope'!$AW$8:$AW$107,$I36,'Project Scope'!$C$8:$C$107,CU$7),0)","v":0},{"$f":"IF(AW36=\"yes\",SUMIFS('Project Scope'!$AO$8:$AO$107,'Project Scope'!$AN$8:$AN$107,$I36,'Project Scope'!$C$8:$C$107,CV$7)+SUMIFS('Project Scope'!$AX$8:$AX$107,'Project Scope'!$AW$8:$AW$107,$I36,'Project Scope'!$C$8:$C$107,CV$7),0)","v":0},{"$f":"IF(AX36=\"yes\",SUMIFS('Project Scope'!$AO$8:$AO$107,'Project Scope'!$AN$8:$AN$107,$I36,'Project Scope'!$C$8:$C$107,CW$7)+SUMIFS('Project Scope'!$AX$8:$AX$107,'Project Scope'!$AW$8:$AW$107,$I36,'Project Scope'!$C$8:$C$107,CW$7),0)","v":0},{"$f":"IF(AY36=\"yes\",SUMIFS('Project Scope'!$AO$8:$AO$107,'Project Scope'!$AN$8:$AN$107,$I36,'Project Scope'!$C$8:$C$107,CX$7)+SUMIFS('Project Scope'!$AX$8:$AX$107,'Project Scope'!$AW$8:$AW$107,$I36,'Project Scope'!$C$8:$C$107,CX$7),0)","v":0},{"$f":"IF(AZ36=\"yes\",SUMIFS('Project Scope'!$AO$8:$AO$107,'Project Scope'!$AN$8:$AN$107,$I36,'Project Scope'!$C$8:$C$107,CY$7)+SUMIFS('Project Scope'!$AX$8:$AX$107,'Project Scope'!$AW$8:$AW$107,$I36,'Project Scope'!$C$8:$C$107,CY$7),0)","v":0},{"$f":"IF(BA36=\"yes\",SUMIFS('Project Scope'!$AO$8:$AO$107,'Project Scope'!$AN$8:$AN$107,$I36,'Project Scope'!$C$8:$C$107,CZ$7)+SUMIFS('Project Scope'!$AX$8:$AX$107,'Project Scope'!$AW$8:$AW$107,$I36,'Project Scope'!$C$8:$C$107,CZ$7),0)","v":0},{"$f":"IF(BB36=\"yes\",SUMIFS('Project Scope'!$AO$8:$AO$107,'Project Scope'!$AN$8:$AN$107,$I36,'Project Scope'!$C$8:$C$107,DA$7)+SUMIFS('Project Scope'!$AX$8:$AX$107,'Project Scope'!$AW$8:$AW$107,$I36,'Project Scope'!$C$8:$C$107,DA$7),0)","v":0},{"$f":"IF(BC36=\"yes\",SUMIFS('Project Scope'!$AO$8:$AO$107,'Project Scope'!$AN$8:$AN$107,$I36,'Project Scope'!$C$8:$C$107,DB$7)+SUMIFS('Project Scope'!$AX$8:$AX$107,'Project Scope'!$AW$8:$AW$107,$I36,'Project Scope'!$C$8:$C$107,DB$7),0)","v":0},{"$f":"IF(BD36=\"yes\",SUMIFS('Project Scope'!$AO$8:$AO$107,'Project Scope'!$AN$8:$AN$107,$I36,'Project Scope'!$C$8:$C$107,DC$7)+SUMIFS('Project Scope'!$AX$8:$AX$107,'Project Scope'!$AW$8:$AW$107,$I36,'Project Scope'!$C$8:$C$107,DC$7),0)","v":0},{"$f":"IF(BE36=\"yes\",SUMIFS('Project Scope'!$AO$8:$AO$107,'Project Scope'!$AN$8:$AN$107,$I36,'Project Scope'!$C$8:$C$107,DD$7)+SUMIFS('Project Scope'!$AX$8:$AX$107,'Project Scope'!$AW$8:$AW$107,$I36,'Project Scope'!$C$8:$C$107,DD$7),0)","v":0},{"$f":"IF(BF36=\"yes\",SUMIFS('Project Scope'!$AO$8:$AO$107,'Project Scope'!$AN$8:$AN$107,$I36,'Project Scope'!$C$8:$C$107,DE$7)+SUMIFS('Project Scope'!$AX$8:$AX$107,'Project Scope'!$AW$8:$AW$107,$I36,'Project Scope'!$C$8:$C$107,DE$7),0)","v":0},{"$f":"IF(BG36=\"yes\",SUMIFS('Project Scope'!$AO$8:$AO$107,'Project Scope'!$AN$8:$AN$107,$I36,'Project Scope'!$C$8:$C$107,DF$7)+SUMIFS('Project Scope'!$AX$8:$AX$107,'Project Scope'!$AW$8:$AW$107,$I36,'Project Scope'!$C$8:$C$107,DF$7),0)","v":0},{"$f":"IF(BH36=\"yes\",SUMIFS('Project Scope'!$AO$8:$AO$107,'Project Scope'!$AN$8:$AN$107,$I36,'Project Scope'!$C$8:$C$107,DG$7)+SUMIFS('Project Scope'!$AX$8:$AX$107,'Project Scope'!$AW$8:$AW$107,$I36,'Project Scope'!$C$8:$C$107,DG$7),0)","v":0},{"$f":"IF(BI36=\"yes\",SUMIFS('Project Scope'!$AO$8:$AO$107,'Project Scope'!$AN$8:$AN$107,$I36,'Project Scope'!$C$8:$C$107,DH$7)+SUMIFS('Project Scope'!$AX$8:$AX$107,'Project Scope'!$AW$8:$AW$107,$I36,'Project Scope'!$C$8:$C$107,DH$7),0)","v":0},{"$f":"IF(BJ36=\"yes\",SUMIFS('Project Scope'!$AO$8:$AO$107,'Project Scope'!$AN$8:$AN$107,$I36,'Project Scope'!$C$8:$C$107,DI$7)+SUMIFS('Project Scope'!$AX$8:$AX$107,'Project Scope'!$AW$8:$AW$107,$I36,'Project Scope'!$C$8:$C$107,DI$7),0)","v":0},{"$f":"IF(BK36=\"yes\",SUMIFS('Project Scope'!$AO$8:$AO$107,'Project Scope'!$AN$8:$AN$107,$I36,'Project Scope'!$C$8:$C$107,DJ$7)+SUMIFS('Project Scope'!$AX$8:$AX$107,'Project Scope'!$AW$8:$AW$107,$I36,'Project Scope'!$C$8:$C$107,DJ$7),0)","v":0},{"$f":"IF(BL36=\"yes\",SUMIFS('Project Scope'!$AO$8:$AO$107,'Project Scope'!$AN$8:$AN$107,$I36,'Project Scope'!$C$8:$C$107,DK$7)+SUMIFS('Project Scope'!$AX$8:$AX$107,'Project Scope'!$AW$8:$AW$107,$I36,'Project Scope'!$C$8:$C$107,DK$7),0)","v":0},null,"","","","","","","","","","","","","","","","","","","","","","","","","","","","","","","","","","","","","","","","","","","","","","","","","","",null,""]
[null,null,null,null,null,null,null,null,null,null,null,{"$f":"IF($C37=\"additional labor hours\",$K37*'Project Information'!$D$12,$K37*$J37)*IF($F37=\"Per Measure\",SUM($BN37:$DK37),1)","v":0},{"$f":"IF($C37=\"\",0,IF(VLOOKUP($C37,'Other Data'!$B$146:$C$156,2,FALSE)=\"M\",$L37,0))","v":0},0,null,null,null,null,null,null,null,null,null,null,null,null,null,null,null,null,null,null,null,null,null,null,null,null,null,null,null,null,null,null,null,null,null,null,null,null,null,null,null,null,null,null,null,null,null,null,null,null,null,null,null,{"$f":"IF(O37=\"yes\",SUMIFS('Project Scope'!$AO$8:$AO$107,'Project Scope'!$AN$8:$AN$107,$I37,'Project Scope'!$C$8:$C$107,BN$7)+SUMIFS('Project Scope'!$AX$8:$AX$107,'Project Scope'!$AW$8:$AW$107,$I37,'Project Scope'!$C$8:$C$107,BN$7),0)","v":0},{"$f":"IF(P37=\"yes\",SUMIFS('Project Scope'!$AO$8:$AO$107,'Project Scope'!$AN$8:$AN$107,$I37,'Project Scope'!$C$8:$C$107,BO$7)+SUMIFS('Project Scope'!$AX$8:$AX$107,'Project Scope'!$AW$8:$AW$107,$I37,'Project Scope'!$C$8:$C$107,BO$7),0)","v":0},{"$f":"IF(Q37=\"yes\",SUMIFS('Project Scope'!$AO$8:$AO$107,'Project Scope'!$AN$8:$AN$107,$I37,'Project Scope'!$C$8:$C$107,BP$7)+SUMIFS('Project Scope'!$AX$8:$AX$107,'Project Scope'!$AW$8:$AW$107,$I37,'Project Scope'!$C$8:$C$107,BP$7),0)","v":0},{"$f":"IF(R37=\"yes\",SUMIFS('Project Scope'!$AO$8:$AO$107,'Project Scope'!$AN$8:$AN$107,$I37,'Project Scope'!$C$8:$C$107,BQ$7)+SUMIFS('Project Scope'!$AX$8:$AX$107,'Project Scope'!$AW$8:$AW$107,$I37,'Project Scope'!$C$8:$C$107,BQ$7),0)","v":0},{"$f":"IF(S37=\"yes\",SUMIFS('Project Scope'!$AO$8:$AO$107,'Project Scope'!$AN$8:$AN$107,$I37,'Project Scope'!$C$8:$C$107,BR$7)+SUMIFS('Project Scope'!$AX$8:$AX$107,'Project Scope'!$AW$8:$AW$107,$I37,'Project Scope'!$C$8:$C$107,BR$7),0)","v":0},{"$f":"IF(T37=\"yes\",SUMIFS('Project Scope'!$AO$8:$AO$107,'Project Scope'!$AN$8:$AN$107,$I37,'Project Scope'!$C$8:$C$107,BS$7)+SUMIFS('Project Scope'!$AX$8:$AX$107,'Project Scope'!$AW$8:$AW$107,$I37,'Project Scope'!$C$8:$C$107,BS$7),0)","v":0},{"$f":"IF(U37=\"yes\",SUMIFS('Project Scope'!$AO$8:$AO$107,'Project Scope'!$AN$8:$AN$107,$I37,'Project Scope'!$C$8:$C$107,BT$7)+SUMIFS('Project Scope'!$AX$8:$AX$107,'Project Scope'!$AW$8:$AW$107,$I37,'Project Scope'!$C$8:$C$107,BT$7),0)","v":0},{"$f":"IF(V37=\"yes\",SUMIFS('Project Scope'!$AO$8:$AO$107,'Project Scope'!$AN$8:$AN$107,$I37,'Project Scope'!$C$8:$C$107,BU$7)+SUMIFS('Project Scope'!$AX$8:$AX$107,'Project Scope'!$AW$8:$AW$107,$I37,'Project Scope'!$C$8:$C$107,BU$7),0)","v":0},{"$f":"IF(W37=\"yes\",SUMIFS('Project Scope'!$AO$8:$AO$107,'Project Scope'!$AN$8:$AN$107,$I37,'Project Scope'!$C$8:$C$107,BV$7)+SUMIFS('Project Scope'!$AX$8:$AX$107,'Project Scope'!$AW$8:$AW$107,$I37,'Project Scope'!$C$8:$C$107,BV$7),0)","v":0},{"$f":"IF(X37=\"yes\",SUMIFS('Project Scope'!$AO$8:$AO$107,'Project Scope'!$AN$8:$AN$107,$I37,'Project Scope'!$C$8:$C$107,BW$7)+SUMIFS('Project Scope'!$AX$8:$AX$107,'Project Scope'!$AW$8:$AW$107,$I37,'Project Scope'!$C$8:$C$107,BW$7),0)","v":0},{"$f":"IF(Y37=\"yes\",SUMIFS('Project Scope'!$AO$8:$AO$107,'Project Scope'!$AN$8:$AN$107,$I37,'Project Scope'!$C$8:$C$107,BX$7)+SUMIFS('Project Scope'!$AX$8:$AX$107,'Project Scope'!$AW$8:$AW$107,$I37,'Project Scope'!$C$8:$C$107,BX$7),0)","v":0},{"$f":"IF(Z37=\"yes\",SUMIFS('Project Scope'!$AO$8:$AO$107,'Project Scope'!$AN$8:$AN$107,$I37,'Project Scope'!$C$8:$C$107,BY$7)+SUMIFS('Project Scope'!$AX$8:$AX$107,'Project Scope'!$AW$8:$AW$107,$I37,'Project Scope'!$C$8:$C$107,BY$7),0)","v":0},{"$f":"IF(AA37=\"yes\",SUMIFS('Project Scope'!$AO$8:$AO$107,'Project Scope'!$AN$8:$AN$107,$I37,'Project Scope'!$C$8:$C$107,BZ$7)+SUMIFS('Project Scope'!$AX$8:$AX$107,'Project Scope'!$AW$8:$AW$107,$I37,'Project Scope'!$C$8:$C$107,BZ$7),0)","v":0},{"$f":"IF(AB37=\"yes\",SUMIFS('Project Scope'!$AO$8:$AO$107,'Project Scope'!$AN$8:$AN$107,$I37,'Project Scope'!$C$8:$C$107,CA$7)+SUMIFS('Project Scope'!$AX$8:$AX$107,'Project Scope'!$AW$8:$AW$107,$I37,'Project Scope'!$C$8:$C$107,CA$7),0)","v":0},{"$f":"IF(AC37=\"yes\",SUMIFS('Project Scope'!$AO$8:$AO$107,'Project Scope'!$AN$8:$AN$107,$I37,'Project Scope'!$C$8:$C$107,CB$7)+SUMIFS('Project Scope'!$AX$8:$AX$107,'Project Scope'!$AW$8:$AW$107,$I37,'Project Scope'!$C$8:$C$107,CB$7),0)","v":0},{"$f":"IF(AD37=\"yes\",SUMIFS('Project Scope'!$AO$8:$AO$107,'Project Scope'!$AN$8:$AN$107,$I37,'Project Scope'!$C$8:$C$107,CC$7)+SUMIFS('Project Scope'!$AX$8:$AX$107,'Project Scope'!$AW$8:$AW$107,$I37,'Project Scope'!$C$8:$C$107,CC$7),0)","v":0},{"$f":"IF(AE37=\"yes\",SUMIFS('Project Scope'!$AO$8:$AO$107,'Project Scope'!$AN$8:$AN$107,$I37,'Project Scope'!$C$8:$C$107,CD$7)+SUMIFS('Project Scope'!$AX$8:$AX$107,'Project Scope'!$AW$8:$AW$107,$I37,'Project Scope'!$C$8:$C$107,CD$7),0)","v":0},{"$f":"IF(AF37=\"yes\",SUMIFS('Project Scope'!$AO$8:$AO$107,'Project Scope'!$AN$8:$AN$107,$I37,'Project Scope'!$C$8:$C$107,CE$7)+SUMIFS('Project Scope'!$AX$8:$AX$107,'Project Scope'!$AW$8:$AW$107,$I37,'Project Scope'!$C$8:$C$107,CE$7),0)","v":0},{"$f":"IF(AG37=\"yes\",SUMIFS('Project Scope'!$AO$8:$AO$107,'Project Scope'!$AN$8:$AN$107,$I37,'Project Scope'!$C$8:$C$107,CF$7)+SUMIFS('Project Scope'!$AX$8:$AX$107,'Project Scope'!$AW$8:$AW$107,$I37,'Project Scope'!$C$8:$C$107,CF$7),0)","v":0},{"$f":"IF(AH37=\"yes\",SUMIFS('Project Scope'!$AO$8:$AO$107,'Project Scope'!$AN$8:$AN$107,$I37,'Project Scope'!$C$8:$C$107,CG$7)+SUMIFS('Project Scope'!$AX$8:$AX$107,'Project Scope'!$AW$8:$AW$107,$I37,'Project Scope'!$C$8:$C$107,CG$7),0)","v":0},{"$f":"IF(AI37=\"yes\",SUMIFS('Project Scope'!$AO$8:$AO$107,'Project Scope'!$AN$8:$AN$107,$I37,'Project Scope'!$C$8:$C$107,CH$7)+SUMIFS('Project Scope'!$AX$8:$AX$107,'Project Scope'!$AW$8:$AW$107,$I37,'Project Scope'!$C$8:$C$107,CH$7),0)","v":0},{"$f":"IF(AJ37=\"yes\",SUMIFS('Project Scope'!$AO$8:$AO$107,'Project Scope'!$AN$8:$AN$107,$I37,'Project Scope'!$C$8:$C$107,CI$7)+SUMIFS('Project Scope'!$AX$8:$AX$107,'Project Scope'!$AW$8:$AW$107,$I37,'Project Scope'!$C$8:$C$107,CI$7),0)","v":0},{"$f":"IF(AK37=\"yes\",SUMIFS('Project Scope'!$AO$8:$AO$107,'Project Scope'!$AN$8:$AN$107,$I37,'Project Scope'!$C$8:$C$107,CJ$7)+SUMIFS('Project Scope'!$AX$8:$AX$107,'Project Scope'!$AW$8:$AW$107,$I37,'Project Scope'!$C$8:$C$107,CJ$7),0)","v":0},{"$f":"IF(AL37=\"yes\",SUMIFS('Project Scope'!$AO$8:$AO$107,'Project Scope'!$AN$8:$AN$107,$I37,'Project Scope'!$C$8:$C$107,CK$7)+SUMIFS('Project Scope'!$AX$8:$AX$107,'Project Scope'!$AW$8:$AW$107,$I37,'Project Scope'!$C$8:$C$107,CK$7),0)","v":0},{"$f":"IF(AM37=\"yes\",SUMIFS('Project Scope'!$AO$8:$AO$107,'Project Scope'!$AN$8:$AN$107,$I37,'Project Scope'!$C$8:$C$107,CL$7)+SUMIFS('Project Scope'!$AX$8:$AX$107,'Project Scope'!$AW$8:$AW$107,$I37,'Project Scope'!$C$8:$C$107,CL$7),0)","v":0},{"$f":"IF(AN37=\"yes\",SUMIFS('Project Scope'!$AO$8:$AO$107,'Project Scope'!$AN$8:$AN$107,$I37,'Project Scope'!$C$8:$C$107,CM$7)+SUMIFS('Project Scope'!$AX$8:$AX$107,'Project Scope'!$AW$8:$AW$107,$I37,'Project Scope'!$C$8:$C$107,CM$7),0)","v":0},{"$f":"IF(AO37=\"yes\",SUMIFS('Project Scope'!$AO$8:$AO$107,'Project Scope'!$AN$8:$AN$107,$I37,'Project Scope'!$C$8:$C$107,CN$7)+SUMIFS('Project Scope'!$AX$8:$AX$107,'Project Scope'!$AW$8:$AW$107,$I37,'Project Scope'!$C$8:$C$107,CN$7),0)","v":0},{"$f":"IF(AP37=\"yes\",SUMIFS('Project Scope'!$AO$8:$AO$107,'Project Scope'!$AN$8:$AN$107,$I37,'Project Scope'!$C$8:$C$107,CO$7)+SUMIFS('Project Scope'!$AX$8:$AX$107,'Project Scope'!$AW$8:$AW$107,$I37,'Project Scope'!$C$8:$C$107,CO$7),0)","v":0},{"$f":"IF(AQ37=\"yes\",SUMIFS('Project Scope'!$AO$8:$AO$107,'Project Scope'!$AN$8:$AN$107,$I37,'Project Scope'!$C$8:$C$107,CP$7)+SUMIFS('Project Scope'!$AX$8:$AX$107,'Project Scope'!$AW$8:$AW$107,$I37,'Project Scope'!$C$8:$C$107,CP$7),0)","v":0},{"$f":"IF(AR37=\"yes\",SUMIFS('Project Scope'!$AO$8:$AO$107,'Project Scope'!$AN$8:$AN$107,$I37,'Project Scope'!$C$8:$C$107,CQ$7)+SUMIFS('Project Scope'!$AX$8:$AX$107,'Project Scope'!$AW$8:$AW$107,$I37,'Project Scope'!$C$8:$C$107,CQ$7),0)","v":0},{"$f":"IF(AS37=\"yes\",SUMIFS('Project Scope'!$AO$8:$AO$107,'Project Scope'!$AN$8:$AN$107,$I37,'Project Scope'!$C$8:$C$107,CR$7)+SUMIFS('Project Scope'!$AX$8:$AX$107,'Project Scope'!$AW$8:$AW$107,$I37,'Project Scope'!$C$8:$C$107,CR$7),0)","v":0},{"$f":"IF(AT37=\"yes\",SUMIFS('Project Scope'!$AO$8:$AO$107,'Project Scope'!$AN$8:$AN$107,$I37,'Project Scope'!$C$8:$C$107,CS$7)+SUMIFS('Project Scope'!$AX$8:$AX$107,'Project Scope'!$AW$8:$AW$107,$I37,'Project Scope'!$C$8:$C$107,CS$7),0)","v":0},{"$f":"IF(AU37=\"yes\",SUMIFS('Project Scope'!$AO$8:$AO$107,'Project Scope'!$AN$8:$AN$107,$I37,'Project Scope'!$C$8:$C$107,CT$7)+SUMIFS('Project Scope'!$AX$8:$AX$107,'Project Scope'!$AW$8:$AW$107,$I37,'Project Scope'!$C$8:$C$107,CT$7),0)","v":0},{"$f":"IF(AV37=\"yes\",SUMIFS('Project Scope'!$AO$8:$AO$107,'Project Scope'!$AN$8:$AN$107,$I37,'Project Scope'!$C$8:$C$107,CU$7)+SUMIFS('Project Scope'!$AX$8:$AX$107,'Project Scope'!$AW$8:$AW$107,$I37,'Project Scope'!$C$8:$C$107,CU$7),0)","v":0},{"$f":"IF(AW37=\"yes\",SUMIFS('Project Scope'!$AO$8:$AO$107,'Project Scope'!$AN$8:$AN$107,$I37,'Project Scope'!$C$8:$C$107,CV$7)+SUMIFS('Project Scope'!$AX$8:$AX$107,'Project Scope'!$AW$8:$AW$107,$I37,'Project Scope'!$C$8:$C$107,CV$7),0)","v":0},{"$f":"IF(AX37=\"yes\",SUMIFS('Project Scope'!$AO$8:$AO$107,'Project Scope'!$AN$8:$AN$107,$I37,'Project Scope'!$C$8:$C$107,CW$7)+SUMIFS('Project Scope'!$AX$8:$AX$107,'Project Scope'!$AW$8:$AW$107,$I37,'Project Scope'!$C$8:$C$107,CW$7),0)","v":0},{"$f":"IF(AY37=\"yes\",SUMIFS('Project Scope'!$AO$8:$AO$107,'Project Scope'!$AN$8:$AN$107,$I37,'Project Scope'!$C$8:$C$107,CX$7)+SUMIFS('Project Scope'!$AX$8:$AX$107,'Project Scope'!$AW$8:$AW$107,$I37,'Project Scope'!$C$8:$C$107,CX$7),0)","v":0},{"$f":"IF(AZ37=\"yes\",SUMIFS('Project Scope'!$AO$8:$AO$107,'Project Scope'!$AN$8:$AN$107,$I37,'Project Scope'!$C$8:$C$107,CY$7)+SUMIFS('Project Scope'!$AX$8:$AX$107,'Project Scope'!$AW$8:$AW$107,$I37,'Project Scope'!$C$8:$C$107,CY$7),0)","v":0},{"$f":"IF(BA37=\"yes\",SUMIFS('Project Scope'!$AO$8:$AO$107,'Project Scope'!$AN$8:$AN$107,$I37,'Project Scope'!$C$8:$C$107,CZ$7)+SUMIFS('Project Scope'!$AX$8:$AX$107,'Project Scope'!$AW$8:$AW$107,$I37,'Project Scope'!$C$8:$C$107,CZ$7),0)","v":0},{"$f":"IF(BB37=\"yes\",SUMIFS('Project Scope'!$AO$8:$AO$107,'Project Scope'!$AN$8:$AN$107,$I37,'Project Scope'!$C$8:$C$107,DA$7)+SUMIFS('Project Scope'!$AX$8:$AX$107,'Project Scope'!$AW$8:$AW$107,$I37,'Project Scope'!$C$8:$C$107,DA$7),0)","v":0},{"$f":"IF(BC37=\"yes\",SUMIFS('Project Scope'!$AO$8:$AO$107,'Project Scope'!$AN$8:$AN$107,$I37,'Project Scope'!$C$8:$C$107,DB$7)+SUMIFS('Project Scope'!$AX$8:$AX$107,'Project Scope'!$AW$8:$AW$107,$I37,'Project Scope'!$C$8:$C$107,DB$7),0)","v":0},{"$f":"IF(BD37=\"yes\",SUMIFS('Project Scope'!$AO$8:$AO$107,'Project Scope'!$AN$8:$AN$107,$I37,'Project Scope'!$C$8:$C$107,DC$7)+SUMIFS('Project Scope'!$AX$8:$AX$107,'Project Scope'!$AW$8:$AW$107,$I37,'Project Scope'!$C$8:$C$107,DC$7),0)","v":0},{"$f":"IF(BE37=\"yes\",SUMIFS('Project Scope'!$AO$8:$AO$107,'Project Scope'!$AN$8:$AN$107,$I37,'Project Scope'!$C$8:$C$107,DD$7)+SUMIFS('Project Scope'!$AX$8:$AX$107,'Project Scope'!$AW$8:$AW$107,$I37,'Project Scope'!$C$8:$C$107,DD$7),0)","v":0},{"$f":"IF(BF37=\"yes\",SUMIFS('Project Scope'!$AO$8:$AO$107,'Project Scope'!$AN$8:$AN$107,$I37,'Project Scope'!$C$8:$C$107,DE$7)+SUMIFS('Project Scope'!$AX$8:$AX$107,'Project Scope'!$AW$8:$AW$107,$I37,'Project Scope'!$C$8:$C$107,DE$7),0)","v":0},{"$f":"IF(BG37=\"yes\",SUMIFS('Project Scope'!$AO$8:$AO$107,'Project Scope'!$AN$8:$AN$107,$I37,'Project Scope'!$C$8:$C$107,DF$7)+SUMIFS('Project Scope'!$AX$8:$AX$107,'Project Scope'!$AW$8:$AW$107,$I37,'Project Scope'!$C$8:$C$107,DF$7),0)","v":0},{"$f":"IF(BH37=\"yes\",SUMIFS('Project Scope'!$AO$8:$AO$107,'Project Scope'!$AN$8:$AN$107,$I37,'Project Scope'!$C$8:$C$107,DG$7)+SUMIFS('Project Scope'!$AX$8:$AX$107,'Project Scope'!$AW$8:$AW$107,$I37,'Project Scope'!$C$8:$C$107,DG$7),0)","v":0},{"$f":"IF(BI37=\"yes\",SUMIFS('Project Scope'!$AO$8:$AO$107,'Project Scope'!$AN$8:$AN$107,$I37,'Project Scope'!$C$8:$C$107,DH$7)+SUMIFS('Project Scope'!$AX$8:$AX$107,'Project Scope'!$AW$8:$AW$107,$I37,'Project Scope'!$C$8:$C$107,DH$7),0)","v":0},{"$f":"IF(BJ37=\"yes\",SUMIFS('Project Scope'!$AO$8:$AO$107,'Project Scope'!$AN$8:$AN$107,$I37,'Project Scope'!$C$8:$C$107,DI$7)+SUMIFS('Project Scope'!$AX$8:$AX$107,'Project Scope'!$AW$8:$AW$107,$I37,'Project Scope'!$C$8:$C$107,DI$7),0)","v":0},{"$f":"IF(BK37=\"yes\",SUMIFS('Project Scope'!$AO$8:$AO$107,'Project Scope'!$AN$8:$AN$107,$I37,'Project Scope'!$C$8:$C$107,DJ$7)+SUMIFS('Project Scope'!$AX$8:$AX$107,'Project Scope'!$AW$8:$AW$107,$I37,'Project Scope'!$C$8:$C$107,DJ$7),0)","v":0},{"$f":"IF(BL37=\"yes\",SUMIFS('Project Scope'!$AO$8:$AO$107,'Project Scope'!$AN$8:$AN$107,$I37,'Project Scope'!$C$8:$C$107,DK$7)+SUMIFS('Project Scope'!$AX$8:$AX$107,'Project Scope'!$AW$8:$AW$107,$I37,'Project Scope'!$C$8:$C$107,DK$7),0)","v":0},null,"","","","","","","","","","","","","","","","","","","","","","",{"$f":"IF($BN37>0,EI$7,\"\")","v":""},"","","","","","","","","","","","","","","","","","","","","","","","","","","",null,""]
[null,null,null,null,null,null,null,null,null,null,null,{"$f":"IF($C38=\"additional labor hours\",$K38*'Project Information'!$D$12,$K38*$J38)*IF($F38=\"Per Measure\",SUM($BN38:$DK38),1)","v":0},{"$f":"IF($C38=\"\",0,IF(VLOOKUP($C38,'Other Data'!$B$146:$C$156,2,FALSE)=\"M\",$L38,0))","v":0},0,null,null,null,null,null,null,null,null,null,null,null,null,null,null,null,null,null,null,null,null,null,null,null,null,null,null,null,null,null,null,null,null,null,null,null,null,null,null,null,null,null,null,null,null,null,null,null,null,null,null,null,{"$f":"IF(O38=\"yes\",SUMIFS('Project Scope'!$AO$8:$AO$107,'Project Scope'!$AN$8:$AN$107,$I38,'Project Scope'!$C$8:$C$107,BN$7)+SUMIFS('Project Scope'!$AX$8:$AX$107,'Project Scope'!$AW$8:$AW$107,$I38,'Project Scope'!$C$8:$C$107,BN$7),0)","v":0},{"$f":"IF(P38=\"yes\",SUMIFS('Project Scope'!$AO$8:$AO$107,'Project Scope'!$AN$8:$AN$107,$I38,'Project Scope'!$C$8:$C$107,BO$7)+SUMIFS('Project Scope'!$AX$8:$AX$107,'Project Scope'!$AW$8:$AW$107,$I38,'Project Scope'!$C$8:$C$107,BO$7),0)","v":0},{"$f":"IF(Q38=\"yes\",SUMIFS('Project Scope'!$AO$8:$AO$107,'Project Scope'!$AN$8:$AN$107,$I38,'Project Scope'!$C$8:$C$107,BP$7)+SUMIFS('Project Scope'!$AX$8:$AX$107,'Project Scope'!$AW$8:$AW$107,$I38,'Project Scope'!$C$8:$C$107,BP$7),0)","v":0},{"$f":"IF(R38=\"yes\",SUMIFS('Project Scope'!$AO$8:$AO$107,'Project Scope'!$AN$8:$AN$107,$I38,'Project Scope'!$C$8:$C$107,BQ$7)+SUMIFS('Project Scope'!$AX$8:$AX$107,'Project Scope'!$AW$8:$AW$107,$I38,'Project Scope'!$C$8:$C$107,BQ$7),0)","v":0},{"$f":"IF(S38=\"yes\",SUMIFS('Project Scope'!$AO$8:$AO$107,'Project Scope'!$AN$8:$AN$107,$I38,'Project Scope'!$C$8:$C$107,BR$7)+SUMIFS('Project Scope'!$AX$8:$AX$107,'Project Scope'!$AW$8:$AW$107,$I38,'Project Scope'!$C$8:$C$107,BR$7),0)","v":0},{"$f":"IF(T38=\"yes\",SUMIFS('Project Scope'!$AO$8:$AO$107,'Project Scope'!$AN$8:$AN$107,$I38,'Project Scope'!$C$8:$C$107,BS$7)+SUMIFS('Project Scope'!$AX$8:$AX$107,'Project Scope'!$AW$8:$AW$107,$I38,'Project Scope'!$C$8:$C$107,BS$7),0)","v":0},{"$f":"IF(U38=\"yes\",SUMIFS('Project Scope'!$AO$8:$AO$107,'Project Scope'!$AN$8:$AN$107,$I38,'Project Scope'!$C$8:$C$107,BT$7)+SUMIFS('Project Scope'!$AX$8:$AX$107,'Project Scope'!$AW$8:$AW$107,$I38,'Project Scope'!$C$8:$C$107,BT$7),0)","v":0},{"$f":"IF(V38=\"yes\",SUMIFS('Project Scope'!$AO$8:$AO$107,'Project Scope'!$AN$8:$AN$107,$I38,'Project Scope'!$C$8:$C$107,BU$7)+SUMIFS('Project Scope'!$AX$8:$AX$107,'Project Scope'!$AW$8:$AW$107,$I38,'Project Scope'!$C$8:$C$107,BU$7),0)","v":0},{"$f":"IF(W38=\"yes\",SUMIFS('Project Scope'!$AO$8:$AO$107,'Project Scope'!$AN$8:$AN$107,$I38,'Project Scope'!$C$8:$C$107,BV$7)+SUMIFS('Project Scope'!$AX$8:$AX$107,'Project Scope'!$AW$8:$AW$107,$I38,'Project Scope'!$C$8:$C$107,BV$7),0)","v":0},{"$f":"IF(X38=\"yes\",SUMIFS('Project Scope'!$AO$8:$AO$107,'Project Scope'!$AN$8:$AN$107,$I38,'Project Scope'!$C$8:$C$107,BW$7)+SUMIFS('Project Scope'!$AX$8:$AX$107,'Project Scope'!$AW$8:$AW$107,$I38,'Project Scope'!$C$8:$C$107,BW$7),0)","v":0},{"$f":"IF(Y38=\"yes\",SUMIFS('Project Scope'!$AO$8:$AO$107,'Project Scope'!$AN$8:$AN$107,$I38,'Project Scope'!$C$8:$C$107,BX$7)+SUMIFS('Project Scope'!$AX$8:$AX$107,'Project Scope'!$AW$8:$AW$107,$I38,'Project Scope'!$C$8:$C$107,BX$7),0)","v":0},{"$f":"IF(Z38=\"yes\",SUMIFS('Project Scope'!$AO$8:$AO$107,'Project Scope'!$AN$8:$AN$107,$I38,'Project Scope'!$C$8:$C$107,BY$7)+SUMIFS('Project Scope'!$AX$8:$AX$107,'Project Scope'!$AW$8:$AW$107,$I38,'Project Scope'!$C$8:$C$107,BY$7),0)","v":0},{"$f":"IF(AA38=\"yes\",SUMIFS('Project Scope'!$AO$8:$AO$107,'Project Scope'!$AN$8:$AN$107,$I38,'Project Scope'!$C$8:$C$107,BZ$7)+SUMIFS('Project Scope'!$AX$8:$AX$107,'Project Scope'!$AW$8:$AW$107,$I38,'Project Scope'!$C$8:$C$107,BZ$7),0)","v":0},{"$f":"IF(AB38=\"yes\",SUMIFS('Project Scope'!$AO$8:$AO$107,'Project Scope'!$AN$8:$AN$107,$I38,'Project Scope'!$C$8:$C$107,CA$7)+SUMIFS('Project Scope'!$AX$8:$AX$107,'Project Scope'!$AW$8:$AW$107,$I38,'Project Scope'!$C$8:$C$107,CA$7),0)","v":0},{"$f":"IF(AC38=\"yes\",SUMIFS('Project Scope'!$AO$8:$AO$107,'Project Scope'!$AN$8:$AN$107,$I38,'Project Scope'!$C$8:$C$107,CB$7)+SUMIFS('Project Scope'!$AX$8:$AX$107,'Project Scope'!$AW$8:$AW$107,$I38,'Project Scope'!$C$8:$C$107,CB$7),0)","v":0},{"$f":"IF(AD38=\"yes\",SUMIFS('Project Scope'!$AO$8:$AO$107,'Project Scope'!$AN$8:$AN$107,$I38,'Project Scope'!$C$8:$C$107,CC$7)+SUMIFS('Project Scope'!$AX$8:$AX$107,'Project Scope'!$AW$8:$AW$107,$I38,'Project Scope'!$C$8:$C$107,CC$7),0)","v":0},{"$f":"IF(AE38=\"yes\",SUMIFS('Project Scope'!$AO$8:$AO$107,'Project Scope'!$AN$8:$AN$107,$I38,'Project Scope'!$C$8:$C$107,CD$7)+SUMIFS('Project Scope'!$AX$8:$AX$107,'Project Scope'!$AW$8:$AW$107,$I38,'Project Scope'!$C$8:$C$107,CD$7),0)","v":0},{"$f":"IF(AF38=\"yes\",SUMIFS('Project Scope'!$AO$8:$AO$107,'Project Scope'!$AN$8:$AN$107,$I38,'Project Scope'!$C$8:$C$107,CE$7)+SUMIFS('Project Scope'!$AX$8:$AX$107,'Project Scope'!$AW$8:$AW$107,$I38,'Project Scope'!$C$8:$C$107,CE$7),0)","v":0},{"$f":"IF(AG38=\"yes\",SUMIFS('Project Scope'!$AO$8:$AO$107,'Project Scope'!$AN$8:$AN$107,$I38,'Project Scope'!$C$8:$C$107,CF$7)+SUMIFS('Project Scope'!$AX$8:$AX$107,'Project Scope'!$AW$8:$AW$107,$I38,'Project Scope'!$C$8:$C$107,CF$7),0)","v":0},{"$f":"IF(AH38=\"yes\",SUMIFS('Project Scope'!$AO$8:$AO$107,'Project Scope'!$AN$8:$AN$107,$I38,'Project Scope'!$C$8:$C$107,CG$7)+SUMIFS('Project Scope'!$AX$8:$AX$107,'Project Scope'!$AW$8:$AW$107,$I38,'Project Scope'!$C$8:$C$107,CG$7),0)","v":0},{"$f":"IF(AI38=\"yes\",SUMIFS('Project Scope'!$AO$8:$AO$107,'Project Scope'!$AN$8:$AN$107,$I38,'Project Scope'!$C$8:$C$107,CH$7)+SUMIFS('Project Scope'!$AX$8:$AX$107,'Project Scope'!$AW$8:$AW$107,$I38,'Project Scope'!$C$8:$C$107,CH$7),0)","v":0},{"$f":"IF(AJ38=\"yes\",SUMIFS('Project Scope'!$AO$8:$AO$107,'Project Scope'!$AN$8:$AN$107,$I38,'Project Scope'!$C$8:$C$107,CI$7)+SUMIFS('Project Scope'!$AX$8:$AX$107,'Project Scope'!$AW$8:$AW$107,$I38,'Project Scope'!$C$8:$C$107,CI$7),0)","v":0},{"$f":"IF(AK38=\"yes\",SUMIFS('Project Scope'!$AO$8:$AO$107,'Project Scope'!$AN$8:$AN$107,$I38,'Project Scope'!$C$8:$C$107,CJ$7)+SUMIFS('Project Scope'!$AX$8:$AX$107,'Project Scope'!$AW$8:$AW$107,$I38,'Project Scope'!$C$8:$C$107,CJ$7),0)","v":0},{"$f":"IF(AL38=\"yes\",SUMIFS('Project Scope'!$AO$8:$AO$107,'Project Scope'!$AN$8:$AN$107,$I38,'Project Scope'!$C$8:$C$107,CK$7)+SUMIFS('Project Scope'!$AX$8:$AX$107,'Project Scope'!$AW$8:$AW$107,$I38,'Project Scope'!$C$8:$C$107,CK$7),0)","v":0},{"$f":"IF(AM38=\"yes\",SUMIFS('Project Scope'!$AO$8:$AO$107,'Project Scope'!$AN$8:$AN$107,$I38,'Project Scope'!$C$8:$C$107,CL$7)+SUMIFS('Project Scope'!$AX$8:$AX$107,'Project Scope'!$AW$8:$AW$107,$I38,'Project Scope'!$C$8:$C$107,CL$7),0)","v":0},{"$f":"IF(AN38=\"yes\",SUMIFS('Project Scope'!$AO$8:$AO$107,'Project Scope'!$AN$8:$AN$107,$I38,'Project Scope'!$C$8:$C$107,CM$7)+SUMIFS('Project Scope'!$AX$8:$AX$107,'Project Scope'!$AW$8:$AW$107,$I38,'Project Scope'!$C$8:$C$107,CM$7),0)","v":0},{"$f":"IF(AO38=\"yes\",SUMIFS('Project Scope'!$AO$8:$AO$107,'Project Scope'!$AN$8:$AN$107,$I38,'Project Scope'!$C$8:$C$107,CN$7)+SUMIFS('Project Scope'!$AX$8:$AX$107,'Project Scope'!$AW$8:$AW$107,$I38,'Project Scope'!$C$8:$C$107,CN$7),0)","v":0},{"$f":"IF(AP38=\"yes\",SUMIFS('Project Scope'!$AO$8:$AO$107,'Project Scope'!$AN$8:$AN$107,$I38,'Project Scope'!$C$8:$C$107,CO$7)+SUMIFS('Project Scope'!$AX$8:$AX$107,'Project Scope'!$AW$8:$AW$107,$I38,'Project Scope'!$C$8:$C$107,CO$7),0)","v":0},{"$f":"IF(AQ38=\"yes\",SUMIFS('Project Scope'!$AO$8:$AO$107,'Project Scope'!$AN$8:$AN$107,$I38,'Project Scope'!$C$8:$C$107,CP$7)+SUMIFS('Project Scope'!$AX$8:$AX$107,'Project Scope'!$AW$8:$AW$107,$I38,'Project Scope'!$C$8:$C$107,CP$7),0)","v":0},{"$f":"IF(AR38=\"yes\",SUMIFS('Project Scope'!$AO$8:$AO$107,'Project Scope'!$AN$8:$AN$107,$I38,'Project Scope'!$C$8:$C$107,CQ$7)+SUMIFS('Project Scope'!$AX$8:$AX$107,'Project Scope'!$AW$8:$AW$107,$I38,'Project Scope'!$C$8:$C$107,CQ$7),0)","v":0},{"$f":"IF(AS38=\"yes\",SUMIFS('Project Scope'!$AO$8:$AO$107,'Project Scope'!$AN$8:$AN$107,$I38,'Project Scope'!$C$8:$C$107,CR$7)+SUMIFS('Project Scope'!$AX$8:$AX$107,'Project Scope'!$AW$8:$AW$107,$I38,'Project Scope'!$C$8:$C$107,CR$7),0)","v":0},{"$f":"IF(AT38=\"yes\",SUMIFS('Project Scope'!$AO$8:$AO$107,'Project Scope'!$AN$8:$AN$107,$I38,'Project Scope'!$C$8:$C$107,CS$7)+SUMIFS('Project Scope'!$AX$8:$AX$107,'Project Scope'!$AW$8:$AW$107,$I38,'Project Scope'!$C$8:$C$107,CS$7),0)","v":0},{"$f":"IF(AU38=\"yes\",SUMIFS('Project Scope'!$AO$8:$AO$107,'Project Scope'!$AN$8:$AN$107,$I38,'Project Scope'!$C$8:$C$107,CT$7)+SUMIFS('Project Scope'!$AX$8:$AX$107,'Project Scope'!$AW$8:$AW$107,$I38,'Project Scope'!$C$8:$C$107,CT$7),0)","v":0},{"$f":"IF(AV38=\"yes\",SUMIFS('Project Scope'!$AO$8:$AO$107,'Project Scope'!$AN$8:$AN$107,$I38,'Project Scope'!$C$8:$C$107,CU$7)+SUMIFS('Project Scope'!$AX$8:$AX$107,'Project Scope'!$AW$8:$AW$107,$I38,'Project Scope'!$C$8:$C$107,CU$7),0)","v":0},{"$f":"IF(AW38=\"yes\",SUMIFS('Project Scope'!$AO$8:$AO$107,'Project Scope'!$AN$8:$AN$107,$I38,'Project Scope'!$C$8:$C$107,CV$7)+SUMIFS('Project Scope'!$AX$8:$AX$107,'Project Scope'!$AW$8:$AW$107,$I38,'Project Scope'!$C$8:$C$107,CV$7),0)","v":0},{"$f":"IF(AX38=\"yes\",SUMIFS('Project Scope'!$AO$8:$AO$107,'Project Scope'!$AN$8:$AN$107,$I38,'Project Scope'!$C$8:$C$107,CW$7)+SUMIFS('Project Scope'!$AX$8:$AX$107,'Project Scope'!$AW$8:$AW$107,$I38,'Project Scope'!$C$8:$C$107,CW$7),0)","v":0},{"$f":"IF(AY38=\"yes\",SUMIFS('Project Scope'!$AO$8:$AO$107,'Project Scope'!$AN$8:$AN$107,$I38,'Project Scope'!$C$8:$C$107,CX$7)+SUMIFS('Project Scope'!$AX$8:$AX$107,'Project Scope'!$AW$8:$AW$107,$I38,'Project Scope'!$C$8:$C$107,CX$7),0)","v":0},{"$f":"IF(AZ38=\"yes\",SUMIFS('Project Scope'!$AO$8:$AO$107,'Project Scope'!$AN$8:$AN$107,$I38,'Project Scope'!$C$8:$C$107,CY$7)+SUMIFS('Project Scope'!$AX$8:$AX$107,'Project Scope'!$AW$8:$AW$107,$I38,'Project Scope'!$C$8:$C$107,CY$7),0)","v":0},{"$f":"IF(BA38=\"yes\",SUMIFS('Project Scope'!$AO$8:$AO$107,'Project Scope'!$AN$8:$AN$107,$I38,'Project Scope'!$C$8:$C$107,CZ$7)+SUMIFS('Project Scope'!$AX$8:$AX$107,'Project Scope'!$AW$8:$AW$107,$I38,'Project Scope'!$C$8:$C$107,CZ$7),0)","v":0},{"$f":"IF(BB38=\"yes\",SUMIFS('Project Scope'!$AO$8:$AO$107,'Project Scope'!$AN$8:$AN$107,$I38,'Project Scope'!$C$8:$C$107,DA$7)+SUMIFS('Project Scope'!$AX$8:$AX$107,'Project Scope'!$AW$8:$AW$107,$I38,'Project Scope'!$C$8:$C$107,DA$7),0)","v":0},{"$f":"IF(BC38=\"yes\",SUMIFS('Project Scope'!$AO$8:$AO$107,'Project Scope'!$AN$8:$AN$107,$I38,'Project Scope'!$C$8:$C$107,DB$7)+SUMIFS('Project Scope'!$AX$8:$AX$107,'Project Scope'!$AW$8:$AW$107,$I38,'Project Scope'!$C$8:$C$107,DB$7),0)","v":0},{"$f":"IF(BD38=\"yes\",SUMIFS('Project Scope'!$AO$8:$AO$107,'Project Scope'!$AN$8:$AN$107,$I38,'Project Scope'!$C$8:$C$107,DC$7)+SUMIFS('Project Scope'!$AX$8:$AX$107,'Project Scope'!$AW$8:$AW$107,$I38,'Project Scope'!$C$8:$C$107,DC$7),0)","v":0},{"$f":"IF(BE38=\"yes\",SUMIFS('Project Scope'!$AO$8:$AO$107,'Project Scope'!$AN$8:$AN$107,$I38,'Project Scope'!$C$8:$C$107,DD$7)+SUMIFS('Project Scope'!$AX$8:$AX$107,'Project Scope'!$AW$8:$AW$107,$I38,'Project Scope'!$C$8:$C$107,DD$7),0)","v":0},{"$f":"IF(BF38=\"yes\",SUMIFS('Project Scope'!$AO$8:$AO$107,'Project Scope'!$AN$8:$AN$107,$I38,'Project Scope'!$C$8:$C$107,DE$7)+SUMIFS('Project Scope'!$AX$8:$AX$107,'Project Scope'!$AW$8:$AW$107,$I38,'Project Scope'!$C$8:$C$107,DE$7),0)","v":0},{"$f":"IF(BG38=\"yes\",SUMIFS('Project Scope'!$AO$8:$AO$107,'Project Scope'!$AN$8:$AN$107,$I38,'Project Scope'!$C$8:$C$107,DF$7)+SUMIFS('Project Scope'!$AX$8:$AX$107,'Project Scope'!$AW$8:$AW$107,$I38,'Project Scope'!$C$8:$C$107,DF$7),0)","v":0},{"$f":"IF(BH38=\"yes\",SUMIFS('Project Scope'!$AO$8:$AO$107,'Project Scope'!$AN$8:$AN$107,$I38,'Project Scope'!$C$8:$C$107,DG$7)+SUMIFS('Project Scope'!$AX$8:$AX$107,'Project Scope'!$AW$8:$AW$107,$I38,'Project Scope'!$C$8:$C$107,DG$7),0)","v":0},{"$f":"IF(BI38=\"yes\",SUMIFS('Project Scope'!$AO$8:$AO$107,'Project Scope'!$AN$8:$AN$107,$I38,'Project Scope'!$C$8:$C$107,DH$7)+SUMIFS('Project Scope'!$AX$8:$AX$107,'Project Scope'!$AW$8:$AW$107,$I38,'Project Scope'!$C$8:$C$107,DH$7),0)","v":0},{"$f":"IF(BJ38=\"yes\",SUMIFS('Project Scope'!$AO$8:$AO$107,'Project Scope'!$AN$8:$AN$107,$I38,'Project Scope'!$C$8:$C$107,DI$7)+SUMIFS('Project Scope'!$AX$8:$AX$107,'Project Scope'!$AW$8:$AW$107,$I38,'Project Scope'!$C$8:$C$107,DI$7),0)","v":0},{"$f":"IF(BK38=\"yes\",SUMIFS('Project Scope'!$AO$8:$AO$107,'Project Scope'!$AN$8:$AN$107,$I38,'Project Scope'!$C$8:$C$107,DJ$7)+SUMIFS('Project Scope'!$AX$8:$AX$107,'Project Scope'!$AW$8:$AW$107,$I38,'Project Scope'!$C$8:$C$107,DJ$7),0)","v":0},{"$f":"IF(BL38=\"yes\",SUMIFS('Project Scope'!$AO$8:$AO$107,'Project Scope'!$AN$8:$AN$107,$I38,'Project Scope'!$C$8:$C$107,DK$7)+SUMIFS('Project Scope'!$AX$8:$AX$107,'Project Scope'!$AW$8:$AW$107,$I38,'Project Scope'!$C$8:$C$107,DK$7),0)","v":0},null,"","","","","","","","","","","","","","","","","","","","","","","","","","","","","","","","","","","","","","","","","","","","","","","","","","",null,""]
[null,null,null,null,null,null,null,null,null,null,null,{"$f":"IF($C39=\"additional labor hours\",$K39*'Project Information'!$D$12,$K39*$J39)*IF($F39=\"Per Measure\",SUM($BN39:$DK39),1)","v":0},{"$f":"IF($C39=\"\",0,IF(VLOOKUP($C39,'Other Data'!$B$146:$C$156,2,FALSE)=\"M\",$L39,0))","v":0},0,null,null,null,null,null,null,null,null,null,null,null,null,null,null,null,null,null,null,null,null,null,null,null,null,null,null,null,null,null,null,null,null,null,null,null,null,null,null,null,null,null,null,null,null,null,null,null,null,null,null,null,{"$f":"IF(O39=\"yes\",SUMIFS('Project Scope'!$AO$8:$AO$107,'Project Scope'!$AN$8:$AN$107,$I39,'Project Scope'!$C$8:$C$107,BN$7)+SUMIFS('Project Scope'!$AX$8:$AX$107,'Project Scope'!$AW$8:$AW$107,$I39,'Project Scope'!$C$8:$C$107,BN$7),0)","v":0},{"$f":"IF(P39=\"yes\",SUMIFS('Project Scope'!$AO$8:$AO$107,'Project Scope'!$AN$8:$AN$107,$I39,'Project Scope'!$C$8:$C$107,BO$7)+SUMIFS('Project Scope'!$AX$8:$AX$107,'Project Scope'!$AW$8:$AW$107,$I39,'Project Scope'!$C$8:$C$107,BO$7),0)","v":0},{"$f":"IF(Q39=\"yes\",SUMIFS('Project Scope'!$AO$8:$AO$107,'Project Scope'!$AN$8:$AN$107,$I39,'Project Scope'!$C$8:$C$107,BP$7)+SUMIFS('Project Scope'!$AX$8:$AX$107,'Project Scope'!$AW$8:$AW$107,$I39,'Project Scope'!$C$8:$C$107,BP$7),0)","v":0},{"$f":"IF(R39=\"yes\",SUMIFS('Project Scope'!$AO$8:$AO$107,'Project Scope'!$AN$8:$AN$107,$I39,'Project Scope'!$C$8:$C$107,BQ$7)+SUMIFS('Project Scope'!$AX$8:$AX$107,'Project Scope'!$AW$8:$AW$107,$I39,'Project Scope'!$C$8:$C$107,BQ$7),0)","v":0},{"$f":"IF(S39=\"yes\",SUMIFS('Project Scope'!$AO$8:$AO$107,'Project Scope'!$AN$8:$AN$107,$I39,'Project Scope'!$C$8:$C$107,BR$7)+SUMIFS('Project Scope'!$AX$8:$AX$107,'Project Scope'!$AW$8:$AW$107,$I39,'Project Scope'!$C$8:$C$107,BR$7),0)","v":0},{"$f":"IF(T39=\"yes\",SUMIFS('Project Scope'!$AO$8:$AO$107,'Project Scope'!$AN$8:$AN$107,$I39,'Project Scope'!$C$8:$C$107,BS$7)+SUMIFS('Project Scope'!$AX$8:$AX$107,'Project Scope'!$AW$8:$AW$107,$I39,'Project Scope'!$C$8:$C$107,BS$7),0)","v":0},{"$f":"IF(U39=\"yes\",SUMIFS('Project Scope'!$AO$8:$AO$107,'Project Scope'!$AN$8:$AN$107,$I39,'Project Scope'!$C$8:$C$107,BT$7)+SUMIFS('Project Scope'!$AX$8:$AX$107,'Project Scope'!$AW$8:$AW$107,$I39,'Project Scope'!$C$8:$C$107,BT$7),0)","v":0},{"$f":"IF(V39=\"yes\",SUMIFS('Project Scope'!$AO$8:$AO$107,'Project Scope'!$AN$8:$AN$107,$I39,'Project Scope'!$C$8:$C$107,BU$7)+SUMIFS('Project Scope'!$AX$8:$AX$107,'Project Scope'!$AW$8:$AW$107,$I39,'Project Scope'!$C$8:$C$107,BU$7),0)","v":0},{"$f":"IF(W39=\"yes\",SUMIFS('Project Scope'!$AO$8:$AO$107,'Project Scope'!$AN$8:$AN$107,$I39,'Project Scope'!$C$8:$C$107,BV$7)+SUMIFS('Project Scope'!$AX$8:$AX$107,'Project Scope'!$AW$8:$AW$107,$I39,'Project Scope'!$C$8:$C$107,BV$7),0)","v":0},{"$f":"IF(X39=\"yes\",SUMIFS('Project Scope'!$AO$8:$AO$107,'Project Scope'!$AN$8:$AN$107,$I39,'Project Scope'!$C$8:$C$107,BW$7)+SUMIFS('Project Scope'!$AX$8:$AX$107,'Project Scope'!$AW$8:$AW$107,$I39,'Project Scope'!$C$8:$C$107,BW$7),0)","v":0},{"$f":"IF(Y39=\"yes\",SUMIFS('Project Scope'!$AO$8:$AO$107,'Project Scope'!$AN$8:$AN$107,$I39,'Project Scope'!$C$8:$C$107,BX$7)+SUMIFS('Project Scope'!$AX$8:$AX$107,'Project Scope'!$AW$8:$AW$107,$I39,'Project Scope'!$C$8:$C$107,BX$7),0)","v":0},{"$f":"IF(Z39=\"yes\",SUMIFS('Project Scope'!$AO$8:$AO$107,'Project Scope'!$AN$8:$AN$107,$I39,'Project Scope'!$C$8:$C$107,BY$7)+SUMIFS('Project Scope'!$AX$8:$AX$107,'Project Scope'!$AW$8:$AW$107,$I39,'Project Scope'!$C$8:$C$107,BY$7),0)","v":0},{"$f":"IF(AA39=\"yes\",SUMIFS('Project Scope'!$AO$8:$AO$107,'Project Scope'!$AN$8:$AN$107,$I39,'Project Scope'!$C$8:$C$107,BZ$7)+SUMIFS('Project Scope'!$AX$8:$AX$107,'Project Scope'!$AW$8:$AW$107,$I39,'Project Scope'!$C$8:$C$107,BZ$7),0)","v":0},{"$f":"IF(AB39=\"yes\",SUMIFS('Project Scope'!$AO$8:$AO$107,'Project Scope'!$AN$8:$AN$107,$I39,'Project Scope'!$C$8:$C$107,CA$7)+SUMIFS('Project Scope'!$AX$8:$AX$107,'Project Scope'!$AW$8:$AW$107,$I39,'Project Scope'!$C$8:$C$107,CA$7),0)","v":0},{"$f":"IF(AC39=\"yes\",SUMIFS('Project Scope'!$AO$8:$AO$107,'Project Scope'!$AN$8:$AN$107,$I39,'Project Scope'!$C$8:$C$107,CB$7)+SUMIFS('Project Scope'!$AX$8:$AX$107,'Project Scope'!$AW$8:$AW$107,$I39,'Project Scope'!$C$8:$C$107,CB$7),0)","v":0},{"$f":"IF(AD39=\"yes\",SUMIFS('Project Scope'!$AO$8:$AO$107,'Project Scope'!$AN$8:$AN$107,$I39,'Project Scope'!$C$8:$C$107,CC$7)+SUMIFS('Project Scope'!$AX$8:$AX$107,'Project Scope'!$AW$8:$AW$107,$I39,'Project Scope'!$C$8:$C$107,CC$7),0)","v":0},{"$f":"IF(AE39=\"yes\",SUMIFS('Project Scope'!$AO$8:$AO$107,'Project Scope'!$AN$8:$AN$107,$I39,'Project Scope'!$C$8:$C$107,CD$7)+SUMIFS('Project Scope'!$AX$8:$AX$107,'Project Scope'!$AW$8:$AW$107,$I39,'Project Scope'!$C$8:$C$107,CD$7),0)","v":0},{"$f":"IF(AF39=\"yes\",SUMIFS('Project Scope'!$AO$8:$AO$107,'Project Scope'!$AN$8:$AN$107,$I39,'Project Scope'!$C$8:$C$107,CE$7)+SUMIFS('Project Scope'!$AX$8:$AX$107,'Project Scope'!$AW$8:$AW$107,$I39,'Project Scope'!$C$8:$C$107,CE$7),0)","v":0},{"$f":"IF(AG39=\"yes\",SUMIFS('Project Scope'!$AO$8:$AO$107,'Project Scope'!$AN$8:$AN$107,$I39,'Project Scope'!$C$8:$C$107,CF$7)+SUMIFS('Project Scope'!$AX$8:$AX$107,'Project Scope'!$AW$8:$AW$107,$I39,'Project Scope'!$C$8:$C$107,CF$7),0)","v":0},{"$f":"IF(AH39=\"yes\",SUMIFS('Project Scope'!$AO$8:$AO$107,'Project Scope'!$AN$8:$AN$107,$I39,'Project Scope'!$C$8:$C$107,CG$7)+SUMIFS('Project Scope'!$AX$8:$AX$107,'Project Scope'!$AW$8:$AW$107,$I39,'Project Scope'!$C$8:$C$107,CG$7),0)","v":0},{"$f":"IF(AI39=\"yes\",SUMIFS('Project Scope'!$AO$8:$AO$107,'Project Scope'!$AN$8:$AN$107,$I39,'Project Scope'!$C$8:$C$107,CH$7)+SUMIFS('Project Scope'!$AX$8:$AX$107,'Project Scope'!$AW$8:$AW$107,$I39,'Project Scope'!$C$8:$C$107,CH$7),0)","v":0},{"$f":"IF(AJ39=\"yes\",SUMIFS('Project Scope'!$AO$8:$AO$107,'Project Scope'!$AN$8:$AN$107,$I39,'Project Scope'!$C$8:$C$107,CI$7)+SUMIFS('Project Scope'!$AX$8:$AX$107,'Project Scope'!$AW$8:$AW$107,$I39,'Project Scope'!$C$8:$C$107,CI$7),0)","v":0},{"$f":"IF(AK39=\"yes\",SUMIFS('Project Scope'!$AO$8:$AO$107,'Project Scope'!$AN$8:$AN$107,$I39,'Project Scope'!$C$8:$C$107,CJ$7)+SUMIFS('Project Scope'!$AX$8:$AX$107,'Project Scope'!$AW$8:$AW$107,$I39,'Project Scope'!$C$8:$C$107,CJ$7),0)","v":0},{"$f":"IF(AL39=\"yes\",SUMIFS('Project Scope'!$AO$8:$AO$107,'Project Scope'!$AN$8:$AN$107,$I39,'Project Scope'!$C$8:$C$107,CK$7)+SUMIFS('Project Scope'!$AX$8:$AX$107,'Project Scope'!$AW$8:$AW$107,$I39,'Project Scope'!$C$8:$C$107,CK$7),0)","v":0},{"$f":"IF(AM39=\"yes\",SUMIFS('Project Scope'!$AO$8:$AO$107,'Project Scope'!$AN$8:$AN$107,$I39,'Project Scope'!$C$8:$C$107,CL$7)+SUMIFS('Project Scope'!$AX$8:$AX$107,'Project Scope'!$AW$8:$AW$107,$I39,'Project Scope'!$C$8:$C$107,CL$7),0)","v":0},{"$f":"IF(AN39=\"yes\",SUMIFS('Project Scope'!$AO$8:$AO$107,'Project Scope'!$AN$8:$AN$107,$I39,'Project Scope'!$C$8:$C$107,CM$7)+SUMIFS('Project Scope'!$AX$8:$AX$107,'Project Scope'!$AW$8:$AW$107,$I39,'Project Scope'!$C$8:$C$107,CM$7),0)","v":0},{"$f":"IF(AO39=\"yes\",SUMIFS('Project Scope'!$AO$8:$AO$107,'Project Scope'!$AN$8:$AN$107,$I39,'Project Scope'!$C$8:$C$107,CN$7)+SUMIFS('Project Scope'!$AX$8:$AX$107,'Project Scope'!$AW$8:$AW$107,$I39,'Project Scope'!$C$8:$C$107,CN$7),0)","v":0},{"$f":"IF(AP39=\"yes\",SUMIFS('Project Scope'!$AO$8:$AO$107,'Project Scope'!$AN$8:$AN$107,$I39,'Project Scope'!$C$8:$C$107,CO$7)+SUMIFS('Project Scope'!$AX$8:$AX$107,'Project Scope'!$AW$8:$AW$107,$I39,'Project Scope'!$C$8:$C$107,CO$7),0)","v":0},{"$f":"IF(AQ39=\"yes\",SUMIFS('Project Scope'!$AO$8:$AO$107,'Project Scope'!$AN$8:$AN$107,$I39,'Project Scope'!$C$8:$C$107,CP$7)+SUMIFS('Project Scope'!$AX$8:$AX$107,'Project Scope'!$AW$8:$AW$107,$I39,'Project Scope'!$C$8:$C$107,CP$7),0)","v":0},{"$f":"IF(AR39=\"yes\",SUMIFS('Project Scope'!$AO$8:$AO$107,'Project Scope'!$AN$8:$AN$107,$I39,'Project Scope'!$C$8:$C$107,CQ$7)+SUMIFS('Project Scope'!$AX$8:$AX$107,'Project Scope'!$AW$8:$AW$107,$I39,'Project Scope'!$C$8:$C$107,CQ$7),0)","v":0},{"$f":"IF(AS39=\"yes\",SUMIFS('Project Scope'!$AO$8:$AO$107,'Project Scope'!$AN$8:$AN$107,$I39,'Project Scope'!$C$8:$C$107,CR$7)+SUMIFS('Project Scope'!$AX$8:$AX$107,'Project Scope'!$AW$8:$AW$107,$I39,'Project Scope'!$C$8:$C$107,CR$7),0)","v":0},{"$f":"IF(AT39=\"yes\",SUMIFS('Project Scope'!$AO$8:$AO$107,'Project Scope'!$AN$8:$AN$107,$I39,'Project Scope'!$C$8:$C$107,CS$7)+SUMIFS('Project Scope'!$AX$8:$AX$107,'Project Scope'!$AW$8:$AW$107,$I39,'Project Scope'!$C$8:$C$107,CS$7),0)","v":0},{"$f":"IF(AU39=\"yes\",SUMIFS('Project Scope'!$AO$8:$AO$107,'Project Scope'!$AN$8:$AN$107,$I39,'Project Scope'!$C$8:$C$107,CT$7)+SUMIFS('Project Scope'!$AX$8:$AX$107,'Project Scope'!$AW$8:$AW$107,$I39,'Project Scope'!$C$8:$C$107,CT$7),0)","v":0},{"$f":"IF(AV39=\"yes\",SUMIFS('Project Scope'!$AO$8:$AO$107,'Project Scope'!$AN$8:$AN$107,$I39,'Project Scope'!$C$8:$C$107,CU$7)+SUMIFS('Project Scope'!$AX$8:$AX$107,'Project Scope'!$AW$8:$AW$107,$I39,'Project Scope'!$C$8:$C$107,CU$7),0)","v":0},{"$f":"IF(AW39=\"yes\",SUMIFS('Project Scope'!$AO$8:$AO$107,'Project Scope'!$AN$8:$AN$107,$I39,'Project Scope'!$C$8:$C$107,CV$7)+SUMIFS('Project Scope'!$AX$8:$AX$107,'Project Scope'!$AW$8:$AW$107,$I39,'Project Scope'!$C$8:$C$107,CV$7),0)","v":0},{"$f":"IF(AX39=\"yes\",SUMIFS('Project Scope'!$AO$8:$AO$107,'Project Scope'!$AN$8:$AN$107,$I39,'Project Scope'!$C$8:$C$107,CW$7)+SUMIFS('Project Scope'!$AX$8:$AX$107,'Project Scope'!$AW$8:$AW$107,$I39,'Project Scope'!$C$8:$C$107,CW$7),0)","v":0},{"$f":"IF(AY39=\"yes\",SUMIFS('Project Scope'!$AO$8:$AO$107,'Project Scope'!$AN$8:$AN$107,$I39,'Project Scope'!$C$8:$C$107,CX$7)+SUMIFS('Project Scope'!$AX$8:$AX$107,'Project Scope'!$AW$8:$AW$107,$I39,'Project Scope'!$C$8:$C$107,CX$7),0)","v":0},{"$f":"IF(AZ39=\"yes\",SUMIFS('Project Scope'!$AO$8:$AO$107,'Project Scope'!$AN$8:$AN$107,$I39,'Project Scope'!$C$8:$C$107,CY$7)+SUMIFS('Project Scope'!$AX$8:$AX$107,'Project Scope'!$AW$8:$AW$107,$I39,'Project Scope'!$C$8:$C$107,CY$7),0)","v":0},{"$f":"IF(BA39=\"yes\",SUMIFS('Project Scope'!$AO$8:$AO$107,'Project Scope'!$AN$8:$AN$107,$I39,'Project Scope'!$C$8:$C$107,CZ$7)+SUMIFS('Project Scope'!$AX$8:$AX$107,'Project Scope'!$AW$8:$AW$107,$I39,'Project Scope'!$C$8:$C$107,CZ$7),0)","v":0},{"$f":"IF(BB39=\"yes\",SUMIFS('Project Scope'!$AO$8:$AO$107,'Project Scope'!$AN$8:$AN$107,$I39,'Project Scope'!$C$8:$C$107,DA$7)+SUMIFS('Project Scope'!$AX$8:$AX$107,'Project Scope'!$AW$8:$AW$107,$I39,'Project Scope'!$C$8:$C$107,DA$7),0)","v":0},{"$f":"IF(BC39=\"yes\",SUMIFS('Project Scope'!$AO$8:$AO$107,'Project Scope'!$AN$8:$AN$107,$I39,'Project Scope'!$C$8:$C$107,DB$7)+SUMIFS('Project Scope'!$AX$8:$AX$107,'Project Scope'!$AW$8:$AW$107,$I39,'Project Scope'!$C$8:$C$107,DB$7),0)","v":0},{"$f":"IF(BD39=\"yes\",SUMIFS('Project Scope'!$AO$8:$AO$107,'Project Scope'!$AN$8:$AN$107,$I39,'Project Scope'!$C$8:$C$107,DC$7)+SUMIFS('Project Scope'!$AX$8:$AX$107,'Project Scope'!$AW$8:$AW$107,$I39,'Project Scope'!$C$8:$C$107,DC$7),0)","v":0},{"$f":"IF(BE39=\"yes\",SUMIFS('Project Scope'!$AO$8:$AO$107,'Project Scope'!$AN$8:$AN$107,$I39,'Project Scope'!$C$8:$C$107,DD$7)+SUMIFS('Project Scope'!$AX$8:$AX$107,'Project Scope'!$AW$8:$AW$107,$I39,'Project Scope'!$C$8:$C$107,DD$7),0)","v":0},{"$f":"IF(BF39=\"yes\",SUMIFS('Project Scope'!$AO$8:$AO$107,'Project Scope'!$AN$8:$AN$107,$I39,'Project Scope'!$C$8:$C$107,DE$7)+SUMIFS('Project Scope'!$AX$8:$AX$107,'Project Scope'!$AW$8:$AW$107,$I39,'Project Scope'!$C$8:$C$107,DE$7),0)","v":0},{"$f":"IF(BG39=\"yes\",SUMIFS('Project Scope'!$AO$8:$AO$107,'Project Scope'!$AN$8:$AN$107,$I39,'Project Scope'!$C$8:$C$107,DF$7)+SUMIFS('Project Scope'!$AX$8:$AX$107,'Project Scope'!$AW$8:$AW$107,$I39,'Project Scope'!$C$8:$C$107,DF$7),0)","v":0},{"$f":"IF(BH39=\"yes\",SUMIFS('Project Scope'!$AO$8:$AO$107,'Project Scope'!$AN$8:$AN$107,$I39,'Project Scope'!$C$8:$C$107,DG$7)+SUMIFS('Project Scope'!$AX$8:$AX$107,'Project Scope'!$AW$8:$AW$107,$I39,'Project Scope'!$C$8:$C$107,DG$7),0)","v":0},{"$f":"IF(BI39=\"yes\",SUMIFS('Project Scope'!$AO$8:$AO$107,'Project Scope'!$AN$8:$AN$107,$I39,'Project Scope'!$C$8:$C$107,DH$7)+SUMIFS('Project Scope'!$AX$8:$AX$107,'Project Scope'!$AW$8:$AW$107,$I39,'Project Scope'!$C$8:$C$107,DH$7),0)","v":0},{"$f":"IF(BJ39=\"yes\",SUMIFS('Project Scope'!$AO$8:$AO$107,'Project Scope'!$AN$8:$AN$107,$I39,'Project Scope'!$C$8:$C$107,DI$7)+SUMIFS('Project Scope'!$AX$8:$AX$107,'Project Scope'!$AW$8:$AW$107,$I39,'Project Scope'!$C$8:$C$107,DI$7),0)","v":0},{"$f":"IF(BK39=\"yes\",SUMIFS('Project Scope'!$AO$8:$AO$107,'Project Scope'!$AN$8:$AN$107,$I39,'Project Scope'!$C$8:$C$107,DJ$7)+SUMIFS('Project Scope'!$AX$8:$AX$107,'Project Scope'!$AW$8:$AW$107,$I39,'Project Scope'!$C$8:$C$107,DJ$7),0)","v":0},{"$f":"IF(BL39=\"yes\",SUMIFS('Project Scope'!$AO$8:$AO$107,'Project Scope'!$AN$8:$AN$107,$I39,'Project Scope'!$C$8:$C$107,DK$7)+SUMIFS('Project Scope'!$AX$8:$AX$107,'Project Scope'!$AW$8:$AW$107,$I39,'Project Scope'!$C$8:$C$107,DK$7),0)","v":0},null,"","","","","","","","","","","","","","","","","","","","","","","","","","","","","","","","","","","","","","","","","","","","","","","","","","",null,""]
[null,null,null,null,null,null,null,null,null,null,null,{"$f":"IF($C40=\"additional labor hours\",$K40*'Project Information'!$D$12,$K40*$J40)*IF($F40=\"Per Measure\",SUM($BN40:$DK40),1)","v":0},{"$f":"IF($C40=\"\",0,IF(VLOOKUP($C40,'Other Data'!$B$146:$C$156,2,FALSE)=\"M\",$L40,0))","v":0},0,null,null,null,null,null,null,null,null,null,null,null,null,null,null,null,null,null,null,null,null,null,null,null,null,null,null,null,null,null,null,null,null,null,null,null,null,null,null,null,null,null,null,null,null,null,null,null,null,null,null,null,{"$f":"IF(O40=\"yes\",SUMIFS('Project Scope'!$AO$8:$AO$107,'Project Scope'!$AN$8:$AN$107,$I40,'Project Scope'!$C$8:$C$107,BN$7)+SUMIFS('Project Scope'!$AX$8:$AX$107,'Project Scope'!$AW$8:$AW$107,$I40,'Project Scope'!$C$8:$C$107,BN$7),0)","v":0},{"$f":"IF(P40=\"yes\",SUMIFS('Project Scope'!$AO$8:$AO$107,'Project Scope'!$AN$8:$AN$107,$I40,'Project Scope'!$C$8:$C$107,BO$7)+SUMIFS('Project Scope'!$AX$8:$AX$107,'Project Scope'!$AW$8:$AW$107,$I40,'Project Scope'!$C$8:$C$107,BO$7),0)","v":0},{"$f":"IF(Q40=\"yes\",SUMIFS('Project Scope'!$AO$8:$AO$107,'Project Scope'!$AN$8:$AN$107,$I40,'Project Scope'!$C$8:$C$107,BP$7)+SUMIFS('Project Scope'!$AX$8:$AX$107,'Project Scope'!$AW$8:$AW$107,$I40,'Project Scope'!$C$8:$C$107,BP$7),0)","v":0},{"$f":"IF(R40=\"yes\",SUMIFS('Project Scope'!$AO$8:$AO$107,'Project Scope'!$AN$8:$AN$107,$I40,'Project Scope'!$C$8:$C$107,BQ$7)+SUMIFS('Project Scope'!$AX$8:$AX$107,'Project Scope'!$AW$8:$AW$107,$I40,'Project Scope'!$C$8:$C$107,BQ$7),0)","v":0},{"$f":"IF(S40=\"yes\",SUMIFS('Project Scope'!$AO$8:$AO$107,'Project Scope'!$AN$8:$AN$107,$I40,'Project Scope'!$C$8:$C$107,BR$7)+SUMIFS('Project Scope'!$AX$8:$AX$107,'Project Scope'!$AW$8:$AW$107,$I40,'Project Scope'!$C$8:$C$107,BR$7),0)","v":0},{"$f":"IF(T40=\"yes\",SUMIFS('Project Scope'!$AO$8:$AO$107,'Project Scope'!$AN$8:$AN$107,$I40,'Project Scope'!$C$8:$C$107,BS$7)+SUMIFS('Project Scope'!$AX$8:$AX$107,'Project Scope'!$AW$8:$AW$107,$I40,'Project Scope'!$C$8:$C$107,BS$7),0)","v":0},{"$f":"IF(U40=\"yes\",SUMIFS('Project Scope'!$AO$8:$AO$107,'Project Scope'!$AN$8:$AN$107,$I40,'Project Scope'!$C$8:$C$107,BT$7)+SUMIFS('Project Scope'!$AX$8:$AX$107,'Project Scope'!$AW$8:$AW$107,$I40,'Project Scope'!$C$8:$C$107,BT$7),0)","v":0},{"$f":"IF(V40=\"yes\",SUMIFS('Project Scope'!$AO$8:$AO$107,'Project Scope'!$AN$8:$AN$107,$I40,'Project Scope'!$C$8:$C$107,BU$7)+SUMIFS('Project Scope'!$AX$8:$AX$107,'Project Scope'!$AW$8:$AW$107,$I40,'Project Scope'!$C$8:$C$107,BU$7),0)","v":0},{"$f":"IF(W40=\"yes\",SUMIFS('Project Scope'!$AO$8:$AO$107,'Project Scope'!$AN$8:$AN$107,$I40,'Project Scope'!$C$8:$C$107,BV$7)+SUMIFS('Project Scope'!$AX$8:$AX$107,'Project Scope'!$AW$8:$AW$107,$I40,'Project Scope'!$C$8:$C$107,BV$7),0)","v":0},{"$f":"IF(X40=\"yes\",SUMIFS('Project Scope'!$AO$8:$AO$107,'Project Scope'!$AN$8:$AN$107,$I40,'Project Scope'!$C$8:$C$107,BW$7)+SUMIFS('Project Scope'!$AX$8:$AX$107,'Project Scope'!$AW$8:$AW$107,$I40,'Project Scope'!$C$8:$C$107,BW$7),0)","v":0},{"$f":"IF(Y40=\"yes\",SUMIFS('Project Scope'!$AO$8:$AO$107,'Project Scope'!$AN$8:$AN$107,$I40,'Project Scope'!$C$8:$C$107,BX$7)+SUMIFS('Project Scope'!$AX$8:$AX$107,'Project Scope'!$AW$8:$AW$107,$I40,'Project Scope'!$C$8:$C$107,BX$7),0)","v":0},{"$f":"IF(Z40=\"yes\",SUMIFS('Project Scope'!$AO$8:$AO$107,'Project Scope'!$AN$8:$AN$107,$I40,'Project Scope'!$C$8:$C$107,BY$7)+SUMIFS('Project Scope'!$AX$8:$AX$107,'Project Scope'!$AW$8:$AW$107,$I40,'Project Scope'!$C$8:$C$107,BY$7),0)","v":0},{"$f":"IF(AA40=\"yes\",SUMIFS('Project Scope'!$AO$8:$AO$107,'Project Scope'!$AN$8:$AN$107,$I40,'Project Scope'!$C$8:$C$107,BZ$7)+SUMIFS('Project Scope'!$AX$8:$AX$107,'Project Scope'!$AW$8:$AW$107,$I40,'Project Scope'!$C$8:$C$107,BZ$7),0)","v":0},{"$f":"IF(AB40=\"yes\",SUMIFS('Project Scope'!$AO$8:$AO$107,'Project Scope'!$AN$8:$AN$107,$I40,'Project Scope'!$C$8:$C$107,CA$7)+SUMIFS('Project Scope'!$AX$8:$AX$107,'Project Scope'!$AW$8:$AW$107,$I40,'Project Scope'!$C$8:$C$107,CA$7),0)","v":0},{"$f":"IF(AC40=\"yes\",SUMIFS('Project Scope'!$AO$8:$AO$107,'Project Scope'!$AN$8:$AN$107,$I40,'Project Scope'!$C$8:$C$107,CB$7)+SUMIFS('Project Scope'!$AX$8:$AX$107,'Project Scope'!$AW$8:$AW$107,$I40,'Project Scope'!$C$8:$C$107,CB$7),0)","v":0},{"$f":"IF(AD40=\"yes\",SUMIFS('Project Scope'!$AO$8:$AO$107,'Project Scope'!$AN$8:$AN$107,$I40,'Project Scope'!$C$8:$C$107,CC$7)+SUMIFS('Project Scope'!$AX$8:$AX$107,'Project Scope'!$AW$8:$AW$107,$I40,'Project Scope'!$C$8:$C$107,CC$7),0)","v":0},{"$f":"IF(AE40=\"yes\",SUMIFS('Project Scope'!$AO$8:$AO$107,'Project Scope'!$AN$8:$AN$107,$I40,'Project Scope'!$C$8:$C$107,CD$7)+SUMIFS('Project Scope'!$AX$8:$AX$107,'Project Scope'!$AW$8:$AW$107,$I40,'Project Scope'!$C$8:$C$107,CD$7),0)","v":0},{"$f":"IF(AF40=\"yes\",SUMIFS('Project Scope'!$AO$8:$AO$107,'Project Scope'!$AN$8:$AN$107,$I40,'Project Scope'!$C$8:$C$107,CE$7)+SUMIFS('Project Scope'!$AX$8:$AX$107,'Project Scope'!$AW$8:$AW$107,$I40,'Project Scope'!$C$8:$C$107,CE$7),0)","v":0},{"$f":"IF(AG40=\"yes\",SUMIFS('Project Scope'!$AO$8:$AO$107,'Project Scope'!$AN$8:$AN$107,$I40,'Project Scope'!$C$8:$C$107,CF$7)+SUMIFS('Project Scope'!$AX$8:$AX$107,'Project Scope'!$AW$8:$AW$107,$I40,'Project Scope'!$C$8:$C$107,CF$7),0)","v":0},{"$f":"IF(AH40=\"yes\",SUMIFS('Project Scope'!$AO$8:$AO$107,'Project Scope'!$AN$8:$AN$107,$I40,'Project Scope'!$C$8:$C$107,CG$7)+SUMIFS('Project Scope'!$AX$8:$AX$107,'Project Scope'!$AW$8:$AW$107,$I40,'Project Scope'!$C$8:$C$107,CG$7),0)","v":0},{"$f":"IF(AI40=\"yes\",SUMIFS('Project Scope'!$AO$8:$AO$107,'Project Scope'!$AN$8:$AN$107,$I40,'Project Scope'!$C$8:$C$107,CH$7)+SUMIFS('Project Scope'!$AX$8:$AX$107,'Project Scope'!$AW$8:$AW$107,$I40,'Project Scope'!$C$8:$C$107,CH$7),0)","v":0},{"$f":"IF(AJ40=\"yes\",SUMIFS('Project Scope'!$AO$8:$AO$107,'Project Scope'!$AN$8:$AN$107,$I40,'Project Scope'!$C$8:$C$107,CI$7)+SUMIFS('Project Scope'!$AX$8:$AX$107,'Project Scope'!$AW$8:$AW$107,$I40,'Project Scope'!$C$8:$C$107,CI$7),0)","v":0},{"$f":"IF(AK40=\"yes\",SUMIFS('Project Scope'!$AO$8:$AO$107,'Project Scope'!$AN$8:$AN$107,$I40,'Project Scope'!$C$8:$C$107,CJ$7)+SUMIFS('Project Scope'!$AX$8:$AX$107,'Project Scope'!$AW$8:$AW$107,$I40,'Project Scope'!$C$8:$C$107,CJ$7),0)","v":0},{"$f":"IF(AL40=\"yes\",SUMIFS('Project Scope'!$AO$8:$AO$107,'Project Scope'!$AN$8:$AN$107,$I40,'Project Scope'!$C$8:$C$107,CK$7)+SUMIFS('Project Scope'!$AX$8:$AX$107,'Project Scope'!$AW$8:$AW$107,$I40,'Project Scope'!$C$8:$C$107,CK$7),0)","v":0},{"$f":"IF(AM40=\"yes\",SUMIFS('Project Scope'!$AO$8:$AO$107,'Project Scope'!$AN$8:$AN$107,$I40,'Project Scope'!$C$8:$C$107,CL$7)+SUMIFS('Project Scope'!$AX$8:$AX$107,'Project Scope'!$AW$8:$AW$107,$I40,'Project Scope'!$C$8:$C$107,CL$7),0)","v":0},{"$f":"IF(AN40=\"yes\",SUMIFS('Project Scope'!$AO$8:$AO$107,'Project Scope'!$AN$8:$AN$107,$I40,'Project Scope'!$C$8:$C$107,CM$7)+SUMIFS('Project Scope'!$AX$8:$AX$107,'Project Scope'!$AW$8:$AW$107,$I40,'Project Scope'!$C$8:$C$107,CM$7),0)","v":0},{"$f":"IF(AO40=\"yes\",SUMIFS('Project Scope'!$AO$8:$AO$107,'Project Scope'!$AN$8:$AN$107,$I40,'Project Scope'!$C$8:$C$107,CN$7)+SUMIFS('Project Scope'!$AX$8:$AX$107,'Project Scope'!$AW$8:$AW$107,$I40,'Project Scope'!$C$8:$C$107,CN$7),0)","v":0},{"$f":"IF(AP40=\"yes\",SUMIFS('Project Scope'!$AO$8:$AO$107,'Project Scope'!$AN$8:$AN$107,$I40,'Project Scope'!$C$8:$C$107,CO$7)+SUMIFS('Project Scope'!$AX$8:$AX$107,'Project Scope'!$AW$8:$AW$107,$I40,'Project Scope'!$C$8:$C$107,CO$7),0)","v":0},{"$f":"IF(AQ40=\"yes\",SUMIFS('Project Scope'!$AO$8:$AO$107,'Project Scope'!$AN$8:$AN$107,$I40,'Project Scope'!$C$8:$C$107,CP$7)+SUMIFS('Project Scope'!$AX$8:$AX$107,'Project Scope'!$AW$8:$AW$107,$I40,'Project Scope'!$C$8:$C$107,CP$7),0)","v":0},{"$f":"IF(AR40=\"yes\",SUMIFS('Project Scope'!$AO$8:$AO$107,'Project Scope'!$AN$8:$AN$107,$I40,'Project Scope'!$C$8:$C$107,CQ$7)+SUMIFS('Project Scope'!$AX$8:$AX$107,'Project Scope'!$AW$8:$AW$107,$I40,'Project Scope'!$C$8:$C$107,CQ$7),0)","v":0},{"$f":"IF(AS40=\"yes\",SUMIFS('Project Scope'!$AO$8:$AO$107,'Project Scope'!$AN$8:$AN$107,$I40,'Project Scope'!$C$8:$C$107,CR$7)+SUMIFS('Project Scope'!$AX$8:$AX$107,'Project Scope'!$AW$8:$AW$107,$I40,'Project Scope'!$C$8:$C$107,CR$7),0)","v":0},{"$f":"IF(AT40=\"yes\",SUMIFS('Project Scope'!$AO$8:$AO$107,'Project Scope'!$AN$8:$AN$107,$I40,'Project Scope'!$C$8:$C$107,CS$7)+SUMIFS('Project Scope'!$AX$8:$AX$107,'Project Scope'!$AW$8:$AW$107,$I40,'Project Scope'!$C$8:$C$107,CS$7),0)","v":0},{"$f":"IF(AU40=\"yes\",SUMIFS('Project Scope'!$AO$8:$AO$107,'Project Scope'!$AN$8:$AN$107,$I40,'Project Scope'!$C$8:$C$107,CT$7)+SUMIFS('Project Scope'!$AX$8:$AX$107,'Project Scope'!$AW$8:$AW$107,$I40,'Project Scope'!$C$8:$C$107,CT$7),0)","v":0},{"$f":"IF(AV40=\"yes\",SUMIFS('Project Scope'!$AO$8:$AO$107,'Project Scope'!$AN$8:$AN$107,$I40,'Project Scope'!$C$8:$C$107,CU$7)+SUMIFS('Project Scope'!$AX$8:$AX$107,'Project Scope'!$AW$8:$AW$107,$I40,'Project Scope'!$C$8:$C$107,CU$7),0)","v":0},{"$f":"IF(AW40=\"yes\",SUMIFS('Project Scope'!$AO$8:$AO$107,'Project Scope'!$AN$8:$AN$107,$I40,'Project Scope'!$C$8:$C$107,CV$7)+SUMIFS('Project Scope'!$AX$8:$AX$107,'Project Scope'!$AW$8:$AW$107,$I40,'Project Scope'!$C$8:$C$107,CV$7),0)","v":0},{"$f":"IF(AX40=\"yes\",SUMIFS('Project Scope'!$AO$8:$AO$107,'Project Scope'!$AN$8:$AN$107,$I40,'Project Scope'!$C$8:$C$107,CW$7)+SUMIFS('Project Scope'!$AX$8:$AX$107,'Project Scope'!$AW$8:$AW$107,$I40,'Project Scope'!$C$8:$C$107,CW$7),0)","v":0},{"$f":"IF(AY40=\"yes\",SUMIFS('Project Scope'!$AO$8:$AO$107,'Project Scope'!$AN$8:$AN$107,$I40,'Project Scope'!$C$8:$C$107,CX$7)+SUMIFS('Project Scope'!$AX$8:$AX$107,'Project Scope'!$AW$8:$AW$107,$I40,'Project Scope'!$C$8:$C$107,CX$7),0)","v":0},{"$f":"IF(AZ40=\"yes\",SUMIFS('Project Scope'!$AO$8:$AO$107,'Project Scope'!$AN$8:$AN$107,$I40,'Project Scope'!$C$8:$C$107,CY$7)+SUMIFS('Project Scope'!$AX$8:$AX$107,'Project Scope'!$AW$8:$AW$107,$I40,'Project Scope'!$C$8:$C$107,CY$7),0)","v":0},{"$f":"IF(BA40=\"yes\",SUMIFS('Project Scope'!$AO$8:$AO$107,'Project Scope'!$AN$8:$AN$107,$I40,'Project Scope'!$C$8:$C$107,CZ$7)+SUMIFS('Project Scope'!$AX$8:$AX$107,'Project Scope'!$AW$8:$AW$107,$I40,'Project Scope'!$C$8:$C$107,CZ$7),0)","v":0},{"$f":"IF(BB40=\"yes\",SUMIFS('Project Scope'!$AO$8:$AO$107,'Project Scope'!$AN$8:$AN$107,$I40,'Project Scope'!$C$8:$C$107,DA$7)+SUMIFS('Project Scope'!$AX$8:$AX$107,'Project Scope'!$AW$8:$AW$107,$I40,'Project Scope'!$C$8:$C$107,DA$7),0)","v":0},{"$f":"IF(BC40=\"yes\",SUMIFS('Project Scope'!$AO$8:$AO$107,'Project Scope'!$AN$8:$AN$107,$I40,'Project Scope'!$C$8:$C$107,DB$7)+SUMIFS('Project Scope'!$AX$8:$AX$107,'Project Scope'!$AW$8:$AW$107,$I40,'Project Scope'!$C$8:$C$107,DB$7),0)","v":0},{"$f":"IF(BD40=\"yes\",SUMIFS('Project Scope'!$AO$8:$AO$107,'Project Scope'!$AN$8:$AN$107,$I40,'Project Scope'!$C$8:$C$107,DC$7)+SUMIFS('Project Scope'!$AX$8:$AX$107,'Project Scope'!$AW$8:$AW$107,$I40,'Project Scope'!$C$8:$C$107,DC$7),0)","v":0},{"$f":"IF(BE40=\"yes\",SUMIFS('Project Scope'!$AO$8:$AO$107,'Project Scope'!$AN$8:$AN$107,$I40,'Project Scope'!$C$8:$C$107,DD$7)+SUMIFS('Project Scope'!$AX$8:$AX$107,'Project Scope'!$AW$8:$AW$107,$I40,'Project Scope'!$C$8:$C$107,DD$7),0)","v":0},{"$f":"IF(BF40=\"yes\",SUMIFS('Project Scope'!$AO$8:$AO$107,'Project Scope'!$AN$8:$AN$107,$I40,'Project Scope'!$C$8:$C$107,DE$7)+SUMIFS('Project Scope'!$AX$8:$AX$107,'Project Scope'!$AW$8:$AW$107,$I40,'Project Scope'!$C$8:$C$107,DE$7),0)","v":0},{"$f":"IF(BG40=\"yes\",SUMIFS('Project Scope'!$AO$8:$AO$107,'Project Scope'!$AN$8:$AN$107,$I40,'Project Scope'!$C$8:$C$107,DF$7)+SUMIFS('Project Scope'!$AX$8:$AX$107,'Project Scope'!$AW$8:$AW$107,$I40,'Project Scope'!$C$8:$C$107,DF$7),0)","v":0},{"$f":"IF(BH40=\"yes\",SUMIFS('Project Scope'!$AO$8:$AO$107,'Project Scope'!$AN$8:$AN$107,$I40,'Project Scope'!$C$8:$C$107,DG$7)+SUMIFS('Project Scope'!$AX$8:$AX$107,'Project Scope'!$AW$8:$AW$107,$I40,'Project Scope'!$C$8:$C$107,DG$7),0)","v":0},{"$f":"IF(BI40=\"yes\",SUMIFS('Project Scope'!$AO$8:$AO$107,'Project Scope'!$AN$8:$AN$107,$I40,'Project Scope'!$C$8:$C$107,DH$7)+SUMIFS('Project Scope'!$AX$8:$AX$107,'Project Scope'!$AW$8:$AW$107,$I40,'Project Scope'!$C$8:$C$107,DH$7),0)","v":0},{"$f":"IF(BJ40=\"yes\",SUMIFS('Project Scope'!$AO$8:$AO$107,'Project Scope'!$AN$8:$AN$107,$I40,'Project Scope'!$C$8:$C$107,DI$7)+SUMIFS('Project Scope'!$AX$8:$AX$107,'Project Scope'!$AW$8:$AW$107,$I40,'Project Scope'!$C$8:$C$107,DI$7),0)","v":0},{"$f":"IF(BK40=\"yes\",SUMIFS('Project Scope'!$AO$8:$AO$107,'Project Scope'!$AN$8:$AN$107,$I40,'Project Scope'!$C$8:$C$107,DJ$7)+SUMIFS('Project Scope'!$AX$8:$AX$107,'Project Scope'!$AW$8:$AW$107,$I40,'Project Scope'!$C$8:$C$107,DJ$7),0)","v":0},{"$f":"IF(BL40=\"yes\",SUMIFS('Project Scope'!$AO$8:$AO$107,'Project Scope'!$AN$8:$AN$107,$I40,'Project Scope'!$C$8:$C$107,DK$7)+SUMIFS('Project Scope'!$AX$8:$AX$107,'Project Scope'!$AW$8:$AW$107,$I40,'Project Scope'!$C$8:$C$107,DK$7),0)","v":0},null,"","","","","","","","","","","","","","","","","","","","","","","","","","","","","","","","","","","","","","","","","","","","","","","","","","",null,""]
[null,null,null,null,null,null,null,null,null,null,null,{"$f":"IF($C41=\"additional labor hours\",$K41*'Project Information'!$D$12,$K41*$J41)*IF($F41=\"Per Measure\",SUM($BN41:$DK41),1)","v":0},{"$f":"IF($C41=\"\",0,IF(VLOOKUP($C41,'Other Data'!$B$146:$C$156,2,FALSE)=\"M\",$L41,0))","v":0},0,null,null,null,null,null,null,null,null,null,null,null,null,null,null,null,null,null,null,null,null,null,null,null,null,null,null,null,null,null,null,null,null,null,null,null,null,null,null,null,null,null,null,null,null,null,null,null,null,null,null,null,{"$f":"IF(O41=\"yes\",SUMIFS('Project Scope'!$AO$8:$AO$107,'Project Scope'!$AN$8:$AN$107,$I41,'Project Scope'!$C$8:$C$107,BN$7)+SUMIFS('Project Scope'!$AX$8:$AX$107,'Project Scope'!$AW$8:$AW$107,$I41,'Project Scope'!$C$8:$C$107,BN$7),0)","v":0},{"$f":"IF(P41=\"yes\",SUMIFS('Project Scope'!$AO$8:$AO$107,'Project Scope'!$AN$8:$AN$107,$I41,'Project Scope'!$C$8:$C$107,BO$7)+SUMIFS('Project Scope'!$AX$8:$AX$107,'Project Scope'!$AW$8:$AW$107,$I41,'Project Scope'!$C$8:$C$107,BO$7),0)","v":0},{"$f":"IF(Q41=\"yes\",SUMIFS('Project Scope'!$AO$8:$AO$107,'Project Scope'!$AN$8:$AN$107,$I41,'Project Scope'!$C$8:$C$107,BP$7)+SUMIFS('Project Scope'!$AX$8:$AX$107,'Project Scope'!$AW$8:$AW$107,$I41,'Project Scope'!$C$8:$C$107,BP$7),0)","v":0},{"$f":"IF(R41=\"yes\",SUMIFS('Project Scope'!$AO$8:$AO$107,'Project Scope'!$AN$8:$AN$107,$I41,'Project Scope'!$C$8:$C$107,BQ$7)+SUMIFS('Project Scope'!$AX$8:$AX$107,'Project Scope'!$AW$8:$AW$107,$I41,'Project Scope'!$C$8:$C$107,BQ$7),0)","v":0},{"$f":"IF(S41=\"yes\",SUMIFS('Project Scope'!$AO$8:$AO$107,'Project Scope'!$AN$8:$AN$107,$I41,'Project Scope'!$C$8:$C$107,BR$7)+SUMIFS('Project Scope'!$AX$8:$AX$107,'Project Scope'!$AW$8:$AW$107,$I41,'Project Scope'!$C$8:$C$107,BR$7),0)","v":0},{"$f":"IF(T41=\"yes\",SUMIFS('Project Scope'!$AO$8:$AO$107,'Project Scope'!$AN$8:$AN$107,$I41,'Project Scope'!$C$8:$C$107,BS$7)+SUMIFS('Project Scope'!$AX$8:$AX$107,'Project Scope'!$AW$8:$AW$107,$I41,'Project Scope'!$C$8:$C$107,BS$7),0)","v":0},{"$f":"IF(U41=\"yes\",SUMIFS('Project Scope'!$AO$8:$AO$107,'Project Scope'!$AN$8:$AN$107,$I41,'Project Scope'!$C$8:$C$107,BT$7)+SUMIFS('Project Scope'!$AX$8:$AX$107,'Project Scope'!$AW$8:$AW$107,$I41,'Project Scope'!$C$8:$C$107,BT$7),0)","v":0},{"$f":"IF(V41=\"yes\",SUMIFS('Project Scope'!$AO$8:$AO$107,'Project Scope'!$AN$8:$AN$107,$I41,'Project Scope'!$C$8:$C$107,BU$7)+SUMIFS('Project Scope'!$AX$8:$AX$107,'Project Scope'!$AW$8:$AW$107,$I41,'Project Scope'!$C$8:$C$107,BU$7),0)","v":0},{"$f":"IF(W41=\"yes\",SUMIFS('Project Scope'!$AO$8:$AO$107,'Project Scope'!$AN$8:$AN$107,$I41,'Project Scope'!$C$8:$C$107,BV$7)+SUMIFS('Project Scope'!$AX$8:$AX$107,'Project Scope'!$AW$8:$AW$107,$I41,'Project Scope'!$C$8:$C$107,BV$7),0)","v":0},{"$f":"IF(X41=\"yes\",SUMIFS('Project Scope'!$AO$8:$AO$107,'Project Scope'!$AN$8:$AN$107,$I41,'Project Scope'!$C$8:$C$107,BW$7)+SUMIFS('Project Scope'!$AX$8:$AX$107,'Project Scope'!$AW$8:$AW$107,$I41,'Project Scope'!$C$8:$C$107,BW$7),0)","v":0},{"$f":"IF(Y41=\"yes\",SUMIFS('Project Scope'!$AO$8:$AO$107,'Project Scope'!$AN$8:$AN$107,$I41,'Project Scope'!$C$8:$C$107,BX$7)+SUMIFS('Project Scope'!$AX$8:$AX$107,'Project Scope'!$AW$8:$AW$107,$I41,'Project Scope'!$C$8:$C$107,BX$7),0)","v":0},{"$f":"IF(Z41=\"yes\",SUMIFS('Project Scope'!$AO$8:$AO$107,'Project Scope'!$AN$8:$AN$107,$I41,'Project Scope'!$C$8:$C$107,BY$7)+SUMIFS('Project Scope'!$AX$8:$AX$107,'Project Scope'!$AW$8:$AW$107,$I41,'Project Scope'!$C$8:$C$107,BY$7),0)","v":0},{"$f":"IF(AA41=\"yes\",SUMIFS('Project Scope'!$AO$8:$AO$107,'Project Scope'!$AN$8:$AN$107,$I41,'Project Scope'!$C$8:$C$107,BZ$7)+SUMIFS('Project Scope'!$AX$8:$AX$107,'Project Scope'!$AW$8:$AW$107,$I41,'Project Scope'!$C$8:$C$107,BZ$7),0)","v":0},{"$f":"IF(AB41=\"yes\",SUMIFS('Project Scope'!$AO$8:$AO$107,'Project Scope'!$AN$8:$AN$107,$I41,'Project Scope'!$C$8:$C$107,CA$7)+SUMIFS('Project Scope'!$AX$8:$AX$107,'Project Scope'!$AW$8:$AW$107,$I41,'Project Scope'!$C$8:$C$107,CA$7),0)","v":0},{"$f":"IF(AC41=\"yes\",SUMIFS('Project Scope'!$AO$8:$AO$107,'Project Scope'!$AN$8:$AN$107,$I41,'Project Scope'!$C$8:$C$107,CB$7)+SUMIFS('Project Scope'!$AX$8:$AX$107,'Project Scope'!$AW$8:$AW$107,$I41,'Project Scope'!$C$8:$C$107,CB$7),0)","v":0},{"$f":"IF(AD41=\"yes\",SUMIFS('Project Scope'!$AO$8:$AO$107,'Project Scope'!$AN$8:$AN$107,$I41,'Project Scope'!$C$8:$C$107,CC$7)+SUMIFS('Project Scope'!$AX$8:$AX$107,'Project Scope'!$AW$8:$AW$107,$I41,'Project Scope'!$C$8:$C$107,CC$7),0)","v":0},{"$f":"IF(AE41=\"yes\",SUMIFS('Project Scope'!$AO$8:$AO$107,'Project Scope'!$AN$8:$AN$107,$I41,'Project Scope'!$C$8:$C$107,CD$7)+SUMIFS('Project Scope'!$AX$8:$AX$107,'Project Scope'!$AW$8:$AW$107,$I41,'Project Scope'!$C$8:$C$107,CD$7),0)","v":0},{"$f":"IF(AF41=\"yes\",SUMIFS('Project Scope'!$AO$8:$AO$107,'Project Scope'!$AN$8:$AN$107,$I41,'Project Scope'!$C$8:$C$107,CE$7)+SUMIFS('Project Scope'!$AX$8:$AX$107,'Project Scope'!$AW$8:$AW$107,$I41,'Project Scope'!$C$8:$C$107,CE$7),0)","v":0},{"$f":"IF(AG41=\"yes\",SUMIFS('Project Scope'!$AO$8:$AO$107,'Project Scope'!$AN$8:$AN$107,$I41,'Project Scope'!$C$8:$C$107,CF$7)+SUMIFS('Project Scope'!$AX$8:$AX$107,'Project Scope'!$AW$8:$AW$107,$I41,'Project Scope'!$C$8:$C$107,CF$7),0)","v":0},{"$f":"IF(AH41=\"yes\",SUMIFS('Project Scope'!$AO$8:$AO$107,'Project Scope'!$AN$8:$AN$107,$I41,'Project Scope'!$C$8:$C$107,CG$7)+SUMIFS('Project Scope'!$AX$8:$AX$107,'Project Scope'!$AW$8:$AW$107,$I41,'Project Scope'!$C$8:$C$107,CG$7),0)","v":0},{"$f":"IF(AI41=\"yes\",SUMIFS('Project Scope'!$AO$8:$AO$107,'Project Scope'!$AN$8:$AN$107,$I41,'Project Scope'!$C$8:$C$107,CH$7)+SUMIFS('Project Scope'!$AX$8:$AX$107,'Project Scope'!$AW$8:$AW$107,$I41,'Project Scope'!$C$8:$C$107,CH$7),0)","v":0},{"$f":"IF(AJ41=\"yes\",SUMIFS('Project Scope'!$AO$8:$AO$107,'Project Scope'!$AN$8:$AN$107,$I41,'Project Scope'!$C$8:$C$107,CI$7)+SUMIFS('Project Scope'!$AX$8:$AX$107,'Project Scope'!$AW$8:$AW$107,$I41,'Project Scope'!$C$8:$C$107,CI$7),0)","v":0},{"$f":"IF(AK41=\"yes\",SUMIFS('Project Scope'!$AO$8:$AO$107,'Project Scope'!$AN$8:$AN$107,$I41,'Project Scope'!$C$8:$C$107,CJ$7)+SUMIFS('Project Scope'!$AX$8:$AX$107,'Project Scope'!$AW$8:$AW$107,$I41,'Project Scope'!$C$8:$C$107,CJ$7),0)","v":0},{"$f":"IF(AL41=\"yes\",SUMIFS('Project Scope'!$AO$8:$AO$107,'Project Scope'!$AN$8:$AN$107,$I41,'Project Scope'!$C$8:$C$107,CK$7)+SUMIFS('Project Scope'!$AX$8:$AX$107,'Project Scope'!$AW$8:$AW$107,$I41,'Project Scope'!$C$8:$C$107,CK$7),0)","v":0},{"$f":"IF(AM41=\"yes\",SUMIFS('Project Scope'!$AO$8:$AO$107,'Project Scope'!$AN$8:$AN$107,$I41,'Project Scope'!$C$8:$C$107,CL$7)+SUMIFS('Project Scope'!$AX$8:$AX$107,'Project Scope'!$AW$8:$AW$107,$I41,'Project Scope'!$C$8:$C$107,CL$7),0)","v":0},{"$f":"IF(AN41=\"yes\",SUMIFS('Project Scope'!$AO$8:$AO$107,'Project Scope'!$AN$8:$AN$107,$I41,'Project Scope'!$C$8:$C$107,CM$7)+SUMIFS('Project Scope'!$AX$8:$AX$107,'Project Scope'!$AW$8:$AW$107,$I41,'Project Scope'!$C$8:$C$107,CM$7),0)","v":0},{"$f":"IF(AO41=\"yes\",SUMIFS('Project Scope'!$AO$8:$AO$107,'Project Scope'!$AN$8:$AN$107,$I41,'Project Scope'!$C$8:$C$107,CN$7)+SUMIFS('Project Scope'!$AX$8:$AX$107,'Project Scope'!$AW$8:$AW$107,$I41,'Project Scope'!$C$8:$C$107,CN$7),0)","v":0},{"$f":"IF(AP41=\"yes\",SUMIFS('Project Scope'!$AO$8:$AO$107,'Project Scope'!$AN$8:$AN$107,$I41,'Project Scope'!$C$8:$C$107,CO$7)+SUMIFS('Project Scope'!$AX$8:$AX$107,'Project Scope'!$AW$8:$AW$107,$I41,'Project Scope'!$C$8:$C$107,CO$7),0)","v":0},{"$f":"IF(AQ41=\"yes\",SUMIFS('Project Scope'!$AO$8:$AO$107,'Project Scope'!$AN$8:$AN$107,$I41,'Project Scope'!$C$8:$C$107,CP$7)+SUMIFS('Project Scope'!$AX$8:$AX$107,'Project Scope'!$AW$8:$AW$107,$I41,'Project Scope'!$C$8:$C$107,CP$7),0)","v":0},{"$f":"IF(AR41=\"yes\",SUMIFS('Project Scope'!$AO$8:$AO$107,'Project Scope'!$AN$8:$AN$107,$I41,'Project Scope'!$C$8:$C$107,CQ$7)+SUMIFS('Project Scope'!$AX$8:$AX$107,'Project Scope'!$AW$8:$AW$107,$I41,'Project Scope'!$C$8:$C$107,CQ$7),0)","v":0},{"$f":"IF(AS41=\"yes\",SUMIFS('Project Scope'!$AO$8:$AO$107,'Project Scope'!$AN$8:$AN$107,$I41,'Project Scope'!$C$8:$C$107,CR$7)+SUMIFS('Project Scope'!$AX$8:$AX$107,'Project Scope'!$AW$8:$AW$107,$I41,'Project Scope'!$C$8:$C$107,CR$7),0)","v":0},{"$f":"IF(AT41=\"yes\",SUMIFS('Project Scope'!$AO$8:$AO$107,'Project Scope'!$AN$8:$AN$107,$I41,'Project Scope'!$C$8:$C$107,CS$7)+SUMIFS('Project Scope'!$AX$8:$AX$107,'Project Scope'!$AW$8:$AW$107,$I41,'Project Scope'!$C$8:$C$107,CS$7),0)","v":0},{"$f":"IF(AU41=\"yes\",SUMIFS('Project Scope'!$AO$8:$AO$107,'Project Scope'!$AN$8:$AN$107,$I41,'Project Scope'!$C$8:$C$107,CT$7)+SUMIFS('Project Scope'!$AX$8:$AX$107,'Project Scope'!$AW$8:$AW$107,$I41,'Project Scope'!$C$8:$C$107,CT$7),0)","v":0},{"$f":"IF(AV41=\"yes\",SUMIFS('Project Scope'!$AO$8:$AO$107,'Project Scope'!$AN$8:$AN$107,$I41,'Project Scope'!$C$8:$C$107,CU$7)+SUMIFS('Project Scope'!$AX$8:$AX$107,'Project Scope'!$AW$8:$AW$107,$I41,'Project Scope'!$C$8:$C$107,CU$7),0)","v":0},{"$f":"IF(AW41=\"yes\",SUMIFS('Project Scope'!$AO$8:$AO$107,'Project Scope'!$AN$8:$AN$107,$I41,'Project Scope'!$C$8:$C$107,CV$7)+SUMIFS('Project Scope'!$AX$8:$AX$107,'Project Scope'!$AW$8:$AW$107,$I41,'Project Scope'!$C$8:$C$107,CV$7),0)","v":0},{"$f":"IF(AX41=\"yes\",SUMIFS('Project Scope'!$AO$8:$AO$107,'Project Scope'!$AN$8:$AN$107,$I41,'Project Scope'!$C$8:$C$107,CW$7)+SUMIFS('Project Scope'!$AX$8:$AX$107,'Project Scope'!$AW$8:$AW$107,$I41,'Project Scope'!$C$8:$C$107,CW$7),0)","v":0},{"$f":"IF(AY41=\"yes\",SUMIFS('Project Scope'!$AO$8:$AO$107,'Project Scope'!$AN$8:$AN$107,$I41,'Project Scope'!$C$8:$C$107,CX$7)+SUMIFS('Project Scope'!$AX$8:$AX$107,'Project Scope'!$AW$8:$AW$107,$I41,'Project Scope'!$C$8:$C$107,CX$7),0)","v":0},{"$f":"IF(AZ41=\"yes\",SUMIFS('Project Scope'!$AO$8:$AO$107,'Project Scope'!$AN$8:$AN$107,$I41,'Project Scope'!$C$8:$C$107,CY$7)+SUMIFS('Project Scope'!$AX$8:$AX$107,'Project Scope'!$AW$8:$AW$107,$I41,'Project Scope'!$C$8:$C$107,CY$7),0)","v":0},{"$f":"IF(BA41=\"yes\",SUMIFS('Project Scope'!$AO$8:$AO$107,'Project Scope'!$AN$8:$AN$107,$I41,'Project Scope'!$C$8:$C$107,CZ$7)+SUMIFS('Project Scope'!$AX$8:$AX$107,'Project Scope'!$AW$8:$AW$107,$I41,'Project Scope'!$C$8:$C$107,CZ$7),0)","v":0},{"$f":"IF(BB41=\"yes\",SUMIFS('Project Scope'!$AO$8:$AO$107,'Project Scope'!$AN$8:$AN$107,$I41,'Project Scope'!$C$8:$C$107,DA$7)+SUMIFS('Project Scope'!$AX$8:$AX$107,'Project Scope'!$AW$8:$AW$107,$I41,'Project Scope'!$C$8:$C$107,DA$7),0)","v":0},{"$f":"IF(BC41=\"yes\",SUMIFS('Project Scope'!$AO$8:$AO$107,'Project Scope'!$AN$8:$AN$107,$I41,'Project Scope'!$C$8:$C$107,DB$7)+SUMIFS('Project Scope'!$AX$8:$AX$107,'Project Scope'!$AW$8:$AW$107,$I41,'Project Scope'!$C$8:$C$107,DB$7),0)","v":0},{"$f":"IF(BD41=\"yes\",SUMIFS('Project Scope'!$AO$8:$AO$107,'Project Scope'!$AN$8:$AN$107,$I41,'Project Scope'!$C$8:$C$107,DC$7)+SUMIFS('Project Scope'!$AX$8:$AX$107,'Project Scope'!$AW$8:$AW$107,$I41,'Project Scope'!$C$8:$C$107,DC$7),0)","v":0},{"$f":"IF(BE41=\"yes\",SUMIFS('Project Scope'!$AO$8:$AO$107,'Project Scope'!$AN$8:$AN$107,$I41,'Project Scope'!$C$8:$C$107,DD$7)+SUMIFS('Project Scope'!$AX$8:$AX$107,'Project Scope'!$AW$8:$AW$107,$I41,'Project Scope'!$C$8:$C$107,DD$7),0)","v":0},{"$f":"IF(BF41=\"yes\",SUMIFS('Project Scope'!$AO$8:$AO$107,'Project Scope'!$AN$8:$AN$107,$I41,'Project Scope'!$C$8:$C$107,DE$7)+SUMIFS('Project Scope'!$AX$8:$AX$107,'Project Scope'!$AW$8:$AW$107,$I41,'Project Scope'!$C$8:$C$107,DE$7),0)","v":0},{"$f":"IF(BG41=\"yes\",SUMIFS('Project Scope'!$AO$8:$AO$107,'Project Scope'!$AN$8:$AN$107,$I41,'Project Scope'!$C$8:$C$107,DF$7)+SUMIFS('Project Scope'!$AX$8:$AX$107,'Project Scope'!$AW$8:$AW$107,$I41,'Project Scope'!$C$8:$C$107,DF$7),0)","v":0},{"$f":"IF(BH41=\"yes\",SUMIFS('Project Scope'!$AO$8:$AO$107,'Project Scope'!$AN$8:$AN$107,$I41,'Project Scope'!$C$8:$C$107,DG$7)+SUMIFS('Project Scope'!$AX$8:$AX$107,'Project Scope'!$AW$8:$AW$107,$I41,'Project Scope'!$C$8:$C$107,DG$7),0)","v":0},{"$f":"IF(BI41=\"yes\",SUMIFS('Project Scope'!$AO$8:$AO$107,'Project Scope'!$AN$8:$AN$107,$I41,'Project Scope'!$C$8:$C$107,DH$7)+SUMIFS('Project Scope'!$AX$8:$AX$107,'Project Scope'!$AW$8:$AW$107,$I41,'Project Scope'!$C$8:$C$107,DH$7),0)","v":0},{"$f":"IF(BJ41=\"yes\",SUMIFS('Project Scope'!$AO$8:$AO$107,'Project Scope'!$AN$8:$AN$107,$I41,'Project Scope'!$C$8:$C$107,DI$7)+SUMIFS('Project Scope'!$AX$8:$AX$107,'Project Scope'!$AW$8:$AW$107,$I41,'Project Scope'!$C$8:$C$107,DI$7),0)","v":0},{"$f":"IF(BK41=\"yes\",SUMIFS('Project Scope'!$AO$8:$AO$107,'Project Scope'!$AN$8:$AN$107,$I41,'Project Scope'!$C$8:$C$107,DJ$7)+SUMIFS('Project Scope'!$AX$8:$AX$107,'Project Scope'!$AW$8:$AW$107,$I41,'Project Scope'!$C$8:$C$107,DJ$7),0)","v":0},{"$f":"IF(BL41=\"yes\",SUMIFS('Project Scope'!$AO$8:$AO$107,'Project Scope'!$AN$8:$AN$107,$I41,'Project Scope'!$C$8:$C$107,DK$7)+SUMIFS('Project Scope'!$AX$8:$AX$107,'Project Scope'!$AW$8:$AW$107,$I41,'Project Scope'!$C$8:$C$107,DK$7),0)","v":0},null,"","","","","","","","","","","","","","","","","","","","","","","","","","","","","","","","","","","","","","","","","","","","","","","","","","",null,""]
[null,null,null,null,null,null,null,null,null,null,null,{"$f":"IF($C42=\"additional labor hours\",$K42*'Project Information'!$D$12,$K42*$J42)*IF($F42=\"Per Measure\",SUM($BN42:$DK42),1)","v":0},{"$f":"IF($C42=\"\",0,IF(VLOOKUP($C42,'Other Data'!$B$146:$C$156,2,FALSE)=\"M\",$L42,0))","v":0},0,null,null,null,null,null,null,null,null,null,null,null,null,null,null,null,null,null,null,null,null,null,null,null,null,null,null,null,null,null,null,null,null,null,null,null,null,null,null,null,null,null,null,null,null,null,null,null,null,null,null,null,{"$f":"IF(O42=\"yes\",SUMIFS('Project Scope'!$AO$8:$AO$107,'Project Scope'!$AN$8:$AN$107,$I42,'Project Scope'!$C$8:$C$107,BN$7)+SUMIFS('Project Scope'!$AX$8:$AX$107,'Project Scope'!$AW$8:$AW$107,$I42,'Project Scope'!$C$8:$C$107,BN$7),0)","v":0},{"$f":"IF(P42=\"yes\",SUMIFS('Project Scope'!$AO$8:$AO$107,'Project Scope'!$AN$8:$AN$107,$I42,'Project Scope'!$C$8:$C$107,BO$7)+SUMIFS('Project Scope'!$AX$8:$AX$107,'Project Scope'!$AW$8:$AW$107,$I42,'Project Scope'!$C$8:$C$107,BO$7),0)","v":0},{"$f":"IF(Q42=\"yes\",SUMIFS('Project Scope'!$AO$8:$AO$107,'Project Scope'!$AN$8:$AN$107,$I42,'Project Scope'!$C$8:$C$107,BP$7)+SUMIFS('Project Scope'!$AX$8:$AX$107,'Project Scope'!$AW$8:$AW$107,$I42,'Project Scope'!$C$8:$C$107,BP$7),0)","v":0},{"$f":"IF(R42=\"yes\",SUMIFS('Project Scope'!$AO$8:$AO$107,'Project Scope'!$AN$8:$AN$107,$I42,'Project Scope'!$C$8:$C$107,BQ$7)+SUMIFS('Project Scope'!$AX$8:$AX$107,'Project Scope'!$AW$8:$AW$107,$I42,'Project Scope'!$C$8:$C$107,BQ$7),0)","v":0},{"$f":"IF(S42=\"yes\",SUMIFS('Project Scope'!$AO$8:$AO$107,'Project Scope'!$AN$8:$AN$107,$I42,'Project Scope'!$C$8:$C$107,BR$7)+SUMIFS('Project Scope'!$AX$8:$AX$107,'Project Scope'!$AW$8:$AW$107,$I42,'Project Scope'!$C$8:$C$107,BR$7),0)","v":0},{"$f":"IF(T42=\"yes\",SUMIFS('Project Scope'!$AO$8:$AO$107,'Project Scope'!$AN$8:$AN$107,$I42,'Project Scope'!$C$8:$C$107,BS$7)+SUMIFS('Project Scope'!$AX$8:$AX$107,'Project Scope'!$AW$8:$AW$107,$I42,'Project Scope'!$C$8:$C$107,BS$7),0)","v":0},{"$f":"IF(U42=\"yes\",SUMIFS('Project Scope'!$AO$8:$AO$107,'Project Scope'!$AN$8:$AN$107,$I42,'Project Scope'!$C$8:$C$107,BT$7)+SUMIFS('Project Scope'!$AX$8:$AX$107,'Project Scope'!$AW$8:$AW$107,$I42,'Project Scope'!$C$8:$C$107,BT$7),0)","v":0},{"$f":"IF(V42=\"yes\",SUMIFS('Project Scope'!$AO$8:$AO$107,'Project Scope'!$AN$8:$AN$107,$I42,'Project Scope'!$C$8:$C$107,BU$7)+SUMIFS('Project Scope'!$AX$8:$AX$107,'Project Scope'!$AW$8:$AW$107,$I42,'Project Scope'!$C$8:$C$107,BU$7),0)","v":0},{"$f":"IF(W42=\"yes\",SUMIFS('Project Scope'!$AO$8:$AO$107,'Project Scope'!$AN$8:$AN$107,$I42,'Project Scope'!$C$8:$C$107,BV$7)+SUMIFS('Project Scope'!$AX$8:$AX$107,'Project Scope'!$AW$8:$AW$107,$I42,'Project Scope'!$C$8:$C$107,BV$7),0)","v":0},{"$f":"IF(X42=\"yes\",SUMIFS('Project Scope'!$AO$8:$AO$107,'Project Scope'!$AN$8:$AN$107,$I42,'Project Scope'!$C$8:$C$107,BW$7)+SUMIFS('Project Scope'!$AX$8:$AX$107,'Project Scope'!$AW$8:$AW$107,$I42,'Project Scope'!$C$8:$C$107,BW$7),0)","v":0},{"$f":"IF(Y42=\"yes\",SUMIFS('Project Scope'!$AO$8:$AO$107,'Project Scope'!$AN$8:$AN$107,$I42,'Project Scope'!$C$8:$C$107,BX$7)+SUMIFS('Project Scope'!$AX$8:$AX$107,'Project Scope'!$AW$8:$AW$107,$I42,'Project Scope'!$C$8:$C$107,BX$7),0)","v":0},{"$f":"IF(Z42=\"yes\",SUMIFS('Project Scope'!$AO$8:$AO$107,'Project Scope'!$AN$8:$AN$107,$I42,'Project Scope'!$C$8:$C$107,BY$7)+SUMIFS('Project Scope'!$AX$8:$AX$107,'Project Scope'!$AW$8:$AW$107,$I42,'Project Scope'!$C$8:$C$107,BY$7),0)","v":0},{"$f":"IF(AA42=\"yes\",SUMIFS('Project Scope'!$AO$8:$AO$107,'Project Scope'!$AN$8:$AN$107,$I42,'Project Scope'!$C$8:$C$107,BZ$7)+SUMIFS('Project Scope'!$AX$8:$AX$107,'Project Scope'!$AW$8:$AW$107,$I42,'Project Scope'!$C$8:$C$107,BZ$7),0)","v":0},{"$f":"IF(AB42=\"yes\",SUMIFS('Project Scope'!$AO$8:$AO$107,'Project Scope'!$AN$8:$AN$107,$I42,'Project Scope'!$C$8:$C$107,CA$7)+SUMIFS('Project Scope'!$AX$8:$AX$107,'Project Scope'!$AW$8:$AW$107,$I42,'Project Scope'!$C$8:$C$107,CA$7),0)","v":0},{"$f":"IF(AC42=\"yes\",SUMIFS('Project Scope'!$AO$8:$AO$107,'Project Scope'!$AN$8:$AN$107,$I42,'Project Scope'!$C$8:$C$107,CB$7)+SUMIFS('Project Scope'!$AX$8:$AX$107,'Project Scope'!$AW$8:$AW$107,$I42,'Project Scope'!$C$8:$C$107,CB$7),0)","v":0},{"$f":"IF(AD42=\"yes\",SUMIFS('Project Scope'!$AO$8:$AO$107,'Project Scope'!$AN$8:$AN$107,$I42,'Project Scope'!$C$8:$C$107,CC$7)+SUMIFS('Project Scope'!$AX$8:$AX$107,'Project Scope'!$AW$8:$AW$107,$I42,'Project Scope'!$C$8:$C$107,CC$7),0)","v":0},{"$f":"IF(AE42=\"yes\",SUMIFS('Project Scope'!$AO$8:$AO$107,'Project Scope'!$AN$8:$AN$107,$I42,'Project Scope'!$C$8:$C$107,CD$7)+SUMIFS('Project Scope'!$AX$8:$AX$107,'Project Scope'!$AW$8:$AW$107,$I42,'Project Scope'!$C$8:$C$107,CD$7),0)","v":0},{"$f":"IF(AF42=\"yes\",SUMIFS('Project Scope'!$AO$8:$AO$107,'Project Scope'!$AN$8:$AN$107,$I42,'Project Scope'!$C$8:$C$107,CE$7)+SUMIFS('Project Scope'!$AX$8:$AX$107,'Project Scope'!$AW$8:$AW$107,$I42,'Project Scope'!$C$8:$C$107,CE$7),0)","v":0},{"$f":"IF(AG42=\"yes\",SUMIFS('Project Scope'!$AO$8:$AO$107,'Project Scope'!$AN$8:$AN$107,$I42,'Project Scope'!$C$8:$C$107,CF$7)+SUMIFS('Project Scope'!$AX$8:$AX$107,'Project Scope'!$AW$8:$AW$107,$I42,'Project Scope'!$C$8:$C$107,CF$7),0)","v":0},{"$f":"IF(AH42=\"yes\",SUMIFS('Project Scope'!$AO$8:$AO$107,'Project Scope'!$AN$8:$AN$107,$I42,'Project Scope'!$C$8:$C$107,CG$7)+SUMIFS('Project Scope'!$AX$8:$AX$107,'Project Scope'!$AW$8:$AW$107,$I42,'Project Scope'!$C$8:$C$107,CG$7),0)","v":0},{"$f":"IF(AI42=\"yes\",SUMIFS('Project Scope'!$AO$8:$AO$107,'Project Scope'!$AN$8:$AN$107,$I42,'Project Scope'!$C$8:$C$107,CH$7)+SUMIFS('Project Scope'!$AX$8:$AX$107,'Project Scope'!$AW$8:$AW$107,$I42,'Project Scope'!$C$8:$C$107,CH$7),0)","v":0},{"$f":"IF(AJ42=\"yes\",SUMIFS('Project Scope'!$AO$8:$AO$107,'Project Scope'!$AN$8:$AN$107,$I42,'Project Scope'!$C$8:$C$107,CI$7)+SUMIFS('Project Scope'!$AX$8:$AX$107,'Project Scope'!$AW$8:$AW$107,$I42,'Project Scope'!$C$8:$C$107,CI$7),0)","v":0},{"$f":"IF(AK42=\"yes\",SUMIFS('Project Scope'!$AO$8:$AO$107,'Project Scope'!$AN$8:$AN$107,$I42,'Project Scope'!$C$8:$C$107,CJ$7)+SUMIFS('Project Scope'!$AX$8:$AX$107,'Project Scope'!$AW$8:$AW$107,$I42,'Project Scope'!$C$8:$C$107,CJ$7),0)","v":0},{"$f":"IF(AL42=\"yes\",SUMIFS('Project Scope'!$AO$8:$AO$107,'Project Scope'!$AN$8:$AN$107,$I42,'Project Scope'!$C$8:$C$107,CK$7)+SUMIFS('Project Scope'!$AX$8:$AX$107,'Project Scope'!$AW$8:$AW$107,$I42,'Project Scope'!$C$8:$C$107,CK$7),0)","v":0},{"$f":"IF(AM42=\"yes\",SUMIFS('Project Scope'!$AO$8:$AO$107,'Project Scope'!$AN$8:$AN$107,$I42,'Project Scope'!$C$8:$C$107,CL$7)+SUMIFS('Project Scope'!$AX$8:$AX$107,'Project Scope'!$AW$8:$AW$107,$I42,'Project Scope'!$C$8:$C$107,CL$7),0)","v":0},{"$f":"IF(AN42=\"yes\",SUMIFS('Project Scope'!$AO$8:$AO$107,'Project Scope'!$AN$8:$AN$107,$I42,'Project Scope'!$C$8:$C$107,CM$7)+SUMIFS('Project Scope'!$AX$8:$AX$107,'Project Scope'!$AW$8:$AW$107,$I42,'Project Scope'!$C$8:$C$107,CM$7),0)","v":0},{"$f":"IF(AO42=\"yes\",SUMIFS('Project Scope'!$AO$8:$AO$107,'Project Scope'!$AN$8:$AN$107,$I42,'Project Scope'!$C$8:$C$107,CN$7)+SUMIFS('Project Scope'!$AX$8:$AX$107,'Project Scope'!$AW$8:$AW$107,$I42,'Project Scope'!$C$8:$C$107,CN$7),0)","v":0},{"$f":"IF(AP42=\"yes\",SUMIFS('Project Scope'!$AO$8:$AO$107,'Project Scope'!$AN$8:$AN$107,$I42,'Project Scope'!$C$8:$C$107,CO$7)+SUMIFS('Project Scope'!$AX$8:$AX$107,'Project Scope'!$AW$8:$AW$107,$I42,'Project Scope'!$C$8:$C$107,CO$7),0)","v":0},{"$f":"IF(AQ42=\"yes\",SUMIFS('Project Scope'!$AO$8:$AO$107,'Project Scope'!$AN$8:$AN$107,$I42,'Project Scope'!$C$8:$C$107,CP$7)+SUMIFS('Project Scope'!$AX$8:$AX$107,'Project Scope'!$AW$8:$AW$107,$I42,'Project Scope'!$C$8:$C$107,CP$7),0)","v":0},{"$f":"IF(AR42=\"yes\",SUMIFS('Project Scope'!$AO$8:$AO$107,'Project Scope'!$AN$8:$AN$107,$I42,'Project Scope'!$C$8:$C$107,CQ$7)+SUMIFS('Project Scope'!$AX$8:$AX$107,'Project Scope'!$AW$8:$AW$107,$I42,'Project Scope'!$C$8:$C$107,CQ$7),0)","v":0},{"$f":"IF(AS42=\"yes\",SUMIFS('Project Scope'!$AO$8:$AO$107,'Project Scope'!$AN$8:$AN$107,$I42,'Project Scope'!$C$8:$C$107,CR$7)+SUMIFS('Project Scope'!$AX$8:$AX$107,'Project Scope'!$AW$8:$AW$107,$I42,'Project Scope'!$C$8:$C$107,CR$7),0)","v":0},{"$f":"IF(AT42=\"yes\",SUMIFS('Project Scope'!$AO$8:$AO$107,'Project Scope'!$AN$8:$AN$107,$I42,'Project Scope'!$C$8:$C$107,CS$7)+SUMIFS('Project Scope'!$AX$8:$AX$107,'Project Scope'!$AW$8:$AW$107,$I42,'Project Scope'!$C$8:$C$107,CS$7),0)","v":0},{"$f":"IF(AU42=\"yes\",SUMIFS('Project Scope'!$AO$8:$AO$107,'Project Scope'!$AN$8:$AN$107,$I42,'Project Scope'!$C$8:$C$107,CT$7)+SUMIFS('Project Scope'!$AX$8:$AX$107,'Project Scope'!$AW$8:$AW$107,$I42,'Project Scope'!$C$8:$C$107,CT$7),0)","v":0},{"$f":"IF(AV42=\"yes\",SUMIFS('Project Scope'!$AO$8:$AO$107,'Project Scope'!$AN$8:$AN$107,$I42,'Project Scope'!$C$8:$C$107,CU$7)+SUMIFS('Project Scope'!$AX$8:$AX$107,'Project Scope'!$AW$8:$AW$107,$I42,'Project Scope'!$C$8:$C$107,CU$7),0)","v":0},{"$f":"IF(AW42=\"yes\",SUMIFS('Project Scope'!$AO$8:$AO$107,'Project Scope'!$AN$8:$AN$107,$I42,'Project Scope'!$C$8:$C$107,CV$7)+SUMIFS('Project Scope'!$AX$8:$AX$107,'Project Scope'!$AW$8:$AW$107,$I42,'Project Scope'!$C$8:$C$107,CV$7),0)","v":0},{"$f":"IF(AX42=\"yes\",SUMIFS('Project Scope'!$AO$8:$AO$107,'Project Scope'!$AN$8:$AN$107,$I42,'Project Scope'!$C$8:$C$107,CW$7)+SUMIFS('Project Scope'!$AX$8:$AX$107,'Project Scope'!$AW$8:$AW$107,$I42,'Project Scope'!$C$8:$C$107,CW$7),0)","v":0},{"$f":"IF(AY42=\"yes\",SUMIFS('Project Scope'!$AO$8:$AO$107,'Project Scope'!$AN$8:$AN$107,$I42,'Project Scope'!$C$8:$C$107,CX$7)+SUMIFS('Project Scope'!$AX$8:$AX$107,'Project Scope'!$AW$8:$AW$107,$I42,'Project Scope'!$C$8:$C$107,CX$7),0)","v":0},{"$f":"IF(AZ42=\"yes\",SUMIFS('Project Scope'!$AO$8:$AO$107,'Project Scope'!$AN$8:$AN$107,$I42,'Project Scope'!$C$8:$C$107,CY$7)+SUMIFS('Project Scope'!$AX$8:$AX$107,'Project Scope'!$AW$8:$AW$107,$I42,'Project Scope'!$C$8:$C$107,CY$7),0)","v":0},{"$f":"IF(BA42=\"yes\",SUMIFS('Project Scope'!$AO$8:$AO$107,'Project Scope'!$AN$8:$AN$107,$I42,'Project Scope'!$C$8:$C$107,CZ$7)+SUMIFS('Project Scope'!$AX$8:$AX$107,'Project Scope'!$AW$8:$AW$107,$I42,'Project Scope'!$C$8:$C$107,CZ$7),0)","v":0},{"$f":"IF(BB42=\"yes\",SUMIFS('Project Scope'!$AO$8:$AO$107,'Project Scope'!$AN$8:$AN$107,$I42,'Project Scope'!$C$8:$C$107,DA$7)+SUMIFS('Project Scope'!$AX$8:$AX$107,'Project Scope'!$AW$8:$AW$107,$I42,'Project Scope'!$C$8:$C$107,DA$7),0)","v":0},{"$f":"IF(BC42=\"yes\",SUMIFS('Project Scope'!$AO$8:$AO$107,'Project Scope'!$AN$8:$AN$107,$I42,'Project Scope'!$C$8:$C$107,DB$7)+SUMIFS('Project Scope'!$AX$8:$AX$107,'Project Scope'!$AW$8:$AW$107,$I42,'Project Scope'!$C$8:$C$107,DB$7),0)","v":0},{"$f":"IF(BD42=\"yes\",SUMIFS('Project Scope'!$AO$8:$AO$107,'Project Scope'!$AN$8:$AN$107,$I42,'Project Scope'!$C$8:$C$107,DC$7)+SUMIFS('Project Scope'!$AX$8:$AX$107,'Project Scope'!$AW$8:$AW$107,$I42,'Project Scope'!$C$8:$C$107,DC$7),0)","v":0},{"$f":"IF(BE42=\"yes\",SUMIFS('Project Scope'!$AO$8:$AO$107,'Project Scope'!$AN$8:$AN$107,$I42,'Project Scope'!$C$8:$C$107,DD$7)+SUMIFS('Project Scope'!$AX$8:$AX$107,'Project Scope'!$AW$8:$AW$107,$I42,'Project Scope'!$C$8:$C$107,DD$7),0)","v":0},{"$f":"IF(BF42=\"yes\",SUMIFS('Project Scope'!$AO$8:$AO$107,'Project Scope'!$AN$8:$AN$107,$I42,'Project Scope'!$C$8:$C$107,DE$7)+SUMIFS('Project Scope'!$AX$8:$AX$107,'Project Scope'!$AW$8:$AW$107,$I42,'Project Scope'!$C$8:$C$107,DE$7),0)","v":0},{"$f":"IF(BG42=\"yes\",SUMIFS('Project Scope'!$AO$8:$AO$107,'Project Scope'!$AN$8:$AN$107,$I42,'Project Scope'!$C$8:$C$107,DF$7)+SUMIFS('Project Scope'!$AX$8:$AX$107,'Project Scope'!$AW$8:$AW$107,$I42,'Project Scope'!$C$8:$C$107,DF$7),0)","v":0},{"$f":"IF(BH42=\"yes\",SUMIFS('Project Scope'!$AO$8:$AO$107,'Project Scope'!$AN$8:$AN$107,$I42,'Project Scope'!$C$8:$C$107,DG$7)+SUMIFS('Project Scope'!$AX$8:$AX$107,'Project Scope'!$AW$8:$AW$107,$I42,'Project Scope'!$C$8:$C$107,DG$7),0)","v":0},{"$f":"IF(BI42=\"yes\",SUMIFS('Project Scope'!$AO$8:$AO$107,'Project Scope'!$AN$8:$AN$107,$I42,'Project Scope'!$C$8:$C$107,DH$7)+SUMIFS('Project Scope'!$AX$8:$AX$107,'Project Scope'!$AW$8:$AW$107,$I42,'Project Scope'!$C$8:$C$107,DH$7),0)","v":0},{"$f":"IF(BJ42=\"yes\",SUMIFS('Project Scope'!$AO$8:$AO$107,'Project Scope'!$AN$8:$AN$107,$I42,'Project Scope'!$C$8:$C$107,DI$7)+SUMIFS('Project Scope'!$AX$8:$AX$107,'Project Scope'!$AW$8:$AW$107,$I42,'Project Scope'!$C$8:$C$107,DI$7),0)","v":0},{"$f":"IF(BK42=\"yes\",SUMIFS('Project Scope'!$AO$8:$AO$107,'Project Scope'!$AN$8:$AN$107,$I42,'Project Scope'!$C$8:$C$107,DJ$7)+SUMIFS('Project Scope'!$AX$8:$AX$107,'Project Scope'!$AW$8:$AW$107,$I42,'Project Scope'!$C$8:$C$107,DJ$7),0)","v":0},{"$f":"IF(BL42=\"yes\",SUMIFS('Project Scope'!$AO$8:$AO$107,'Project Scope'!$AN$8:$AN$107,$I42,'Project Scope'!$C$8:$C$107,DK$7)+SUMIFS('Project Scope'!$AX$8:$AX$107,'Project Scope'!$AW$8:$AW$107,$I42,'Project Scope'!$C$8:$C$107,DK$7),0)","v":0},null,"","","","","","","","","","","","","","","","","","","","","","","","","","","","","","","","","","","","","","","","","","","","","","","","","","",null,""]
[null,null,null,null,null,null,null,null,null,null,null,{"$f":"IF($C43=\"additional labor hours\",$K43*'Project Information'!$D$12,$K43*$J43)*IF($F43=\"Per Measure\",SUM($BN43:$DK43),1)","v":0},{"$f":"IF($C43=\"\",0,IF(VLOOKUP($C43,'Other Data'!$B$146:$C$156,2,FALSE)=\"M\",$L43,0))","v":0},0,null,null,null,null,null,null,null,null,null,null,null,null,null,null,null,null,null,null,null,null,null,null,null,null,null,null,null,null,null,null,null,null,null,null,null,null,null,null,null,null,null,null,null,null,null,null,null,null,null,null,null,{"$f":"IF(O43=\"yes\",SUMIFS('Project Scope'!$AO$8:$AO$107,'Project Scope'!$AN$8:$AN$107,$I43,'Project Scope'!$C$8:$C$107,BN$7)+SUMIFS('Project Scope'!$AX$8:$AX$107,'Project Scope'!$AW$8:$AW$107,$I43,'Project Scope'!$C$8:$C$107,BN$7),0)","v":0},{"$f":"IF(P43=\"yes\",SUMIFS('Project Scope'!$AO$8:$AO$107,'Project Scope'!$AN$8:$AN$107,$I43,'Project Scope'!$C$8:$C$107,BO$7)+SUMIFS('Project Scope'!$AX$8:$AX$107,'Project Scope'!$AW$8:$AW$107,$I43,'Project Scope'!$C$8:$C$107,BO$7),0)","v":0},{"$f":"IF(Q43=\"yes\",SUMIFS('Project Scope'!$AO$8:$AO$107,'Project Scope'!$AN$8:$AN$107,$I43,'Project Scope'!$C$8:$C$107,BP$7)+SUMIFS('Project Scope'!$AX$8:$AX$107,'Project Scope'!$AW$8:$AW$107,$I43,'Project Scope'!$C$8:$C$107,BP$7),0)","v":0},{"$f":"IF(R43=\"yes\",SUMIFS('Project Scope'!$AO$8:$AO$107,'Project Scope'!$AN$8:$AN$107,$I43,'Project Scope'!$C$8:$C$107,BQ$7)+SUMIFS('Project Scope'!$AX$8:$AX$107,'Project Scope'!$AW$8:$AW$107,$I43,'Project Scope'!$C$8:$C$107,BQ$7),0)","v":0},{"$f":"IF(S43=\"yes\",SUMIFS('Project Scope'!$AO$8:$AO$107,'Project Scope'!$AN$8:$AN$107,$I43,'Project Scope'!$C$8:$C$107,BR$7)+SUMIFS('Project Scope'!$AX$8:$AX$107,'Project Scope'!$AW$8:$AW$107,$I43,'Project Scope'!$C$8:$C$107,BR$7),0)","v":0},{"$f":"IF(T43=\"yes\",SUMIFS('Project Scope'!$AO$8:$AO$107,'Project Scope'!$AN$8:$AN$107,$I43,'Project Scope'!$C$8:$C$107,BS$7)+SUMIFS('Project Scope'!$AX$8:$AX$107,'Project Scope'!$AW$8:$AW$107,$I43,'Project Scope'!$C$8:$C$107,BS$7),0)","v":0},{"$f":"IF(U43=\"yes\",SUMIFS('Project Scope'!$AO$8:$AO$107,'Project Scope'!$AN$8:$AN$107,$I43,'Project Scope'!$C$8:$C$107,BT$7)+SUMIFS('Project Scope'!$AX$8:$AX$107,'Project Scope'!$AW$8:$AW$107,$I43,'Project Scope'!$C$8:$C$107,BT$7),0)","v":0},{"$f":"IF(V43=\"yes\",SUMIFS('Project Scope'!$AO$8:$AO$107,'Project Scope'!$AN$8:$AN$107,$I43,'Project Scope'!$C$8:$C$107,BU$7)+SUMIFS('Project Scope'!$AX$8:$AX$107,'Project Scope'!$AW$8:$AW$107,$I43,'Project Scope'!$C$8:$C$107,BU$7),0)","v":0},{"$f":"IF(W43=\"yes\",SUMIFS('Project Scope'!$AO$8:$AO$107,'Project Scope'!$AN$8:$AN$107,$I43,'Project Scope'!$C$8:$C$107,BV$7)+SUMIFS('Project Scope'!$AX$8:$AX$107,'Project Scope'!$AW$8:$AW$107,$I43,'Project Scope'!$C$8:$C$107,BV$7),0)","v":0},{"$f":"IF(X43=\"yes\",SUMIFS('Project Scope'!$AO$8:$AO$107,'Project Scope'!$AN$8:$AN$107,$I43,'Project Scope'!$C$8:$C$107,BW$7)+SUMIFS('Project Scope'!$AX$8:$AX$107,'Project Scope'!$AW$8:$AW$107,$I43,'Project Scope'!$C$8:$C$107,BW$7),0)","v":0},{"$f":"IF(Y43=\"yes\",SUMIFS('Project Scope'!$AO$8:$AO$107,'Project Scope'!$AN$8:$AN$107,$I43,'Project Scope'!$C$8:$C$107,BX$7)+SUMIFS('Project Scope'!$AX$8:$AX$107,'Project Scope'!$AW$8:$AW$107,$I43,'Project Scope'!$C$8:$C$107,BX$7),0)","v":0},{"$f":"IF(Z43=\"yes\",SUMIFS('Project Scope'!$AO$8:$AO$107,'Project Scope'!$AN$8:$AN$107,$I43,'Project Scope'!$C$8:$C$107,BY$7)+SUMIFS('Project Scope'!$AX$8:$AX$107,'Project Scope'!$AW$8:$AW$107,$I43,'Project Scope'!$C$8:$C$107,BY$7),0)","v":0},{"$f":"IF(AA43=\"yes\",SUMIFS('Project Scope'!$AO$8:$AO$107,'Project Scope'!$AN$8:$AN$107,$I43,'Project Scope'!$C$8:$C$107,BZ$7)+SUMIFS('Project Scope'!$AX$8:$AX$107,'Project Scope'!$AW$8:$AW$107,$I43,'Project Scope'!$C$8:$C$107,BZ$7),0)","v":0},{"$f":"IF(AB43=\"yes\",SUMIFS('Project Scope'!$AO$8:$AO$107,'Project Scope'!$AN$8:$AN$107,$I43,'Project Scope'!$C$8:$C$107,CA$7)+SUMIFS('Project Scope'!$AX$8:$AX$107,'Project Scope'!$AW$8:$AW$107,$I43,'Project Scope'!$C$8:$C$107,CA$7),0)","v":0},{"$f":"IF(AC43=\"yes\",SUMIFS('Project Scope'!$AO$8:$AO$107,'Project Scope'!$AN$8:$AN$107,$I43,'Project Scope'!$C$8:$C$107,CB$7)+SUMIFS('Project Scope'!$AX$8:$AX$107,'Project Scope'!$AW$8:$AW$107,$I43,'Project Scope'!$C$8:$C$107,CB$7),0)","v":0},{"$f":"IF(AD43=\"yes\",SUMIFS('Project Scope'!$AO$8:$AO$107,'Project Scope'!$AN$8:$AN$107,$I43,'Project Scope'!$C$8:$C$107,CC$7)+SUMIFS('Project Scope'!$AX$8:$AX$107,'Project Scope'!$AW$8:$AW$107,$I43,'Project Scope'!$C$8:$C$107,CC$7),0)","v":0},{"$f":"IF(AE43=\"yes\",SUMIFS('Project Scope'!$AO$8:$AO$107,'Project Scope'!$AN$8:$AN$107,$I43,'Project Scope'!$C$8:$C$107,CD$7)+SUMIFS('Project Scope'!$AX$8:$AX$107,'Project Scope'!$AW$8:$AW$107,$I43,'Project Scope'!$C$8:$C$107,CD$7),0)","v":0},{"$f":"IF(AF43=\"yes\",SUMIFS('Project Scope'!$AO$8:$AO$107,'Project Scope'!$AN$8:$AN$107,$I43,'Project Scope'!$C$8:$C$107,CE$7)+SUMIFS('Project Scope'!$AX$8:$AX$107,'Project Scope'!$AW$8:$AW$107,$I43,'Project Scope'!$C$8:$C$107,CE$7),0)","v":0},{"$f":"IF(AG43=\"yes\",SUMIFS('Project Scope'!$AO$8:$AO$107,'Project Scope'!$AN$8:$AN$107,$I43,'Project Scope'!$C$8:$C$107,CF$7)+SUMIFS('Project Scope'!$AX$8:$AX$107,'Project Scope'!$AW$8:$AW$107,$I43,'Project Scope'!$C$8:$C$107,CF$7),0)","v":0},{"$f":"IF(AH43=\"yes\",SUMIFS('Project Scope'!$AO$8:$AO$107,'Project Scope'!$AN$8:$AN$107,$I43,'Project Scope'!$C$8:$C$107,CG$7)+SUMIFS('Project Scope'!$AX$8:$AX$107,'Project Scope'!$AW$8:$AW$107,$I43,'Project Scope'!$C$8:$C$107,CG$7),0)","v":0},{"$f":"IF(AI43=\"yes\",SUMIFS('Project Scope'!$AO$8:$AO$107,'Project Scope'!$AN$8:$AN$107,$I43,'Project Scope'!$C$8:$C$107,CH$7)+SUMIFS('Project Scope'!$AX$8:$AX$107,'Project Scope'!$AW$8:$AW$107,$I43,'Project Scope'!$C$8:$C$107,CH$7),0)","v":0},{"$f":"IF(AJ43=\"yes\",SUMIFS('Project Scope'!$AO$8:$AO$107,'Project Scope'!$AN$8:$AN$107,$I43,'Project Scope'!$C$8:$C$107,CI$7)+SUMIFS('Project Scope'!$AX$8:$AX$107,'Project Scope'!$AW$8:$AW$107,$I43,'Project Scope'!$C$8:$C$107,CI$7),0)","v":0},{"$f":"IF(AK43=\"yes\",SUMIFS('Project Scope'!$AO$8:$AO$107,'Project Scope'!$AN$8:$AN$107,$I43,'Project Scope'!$C$8:$C$107,CJ$7)+SUMIFS('Project Scope'!$AX$8:$AX$107,'Project Scope'!$AW$8:$AW$107,$I43,'Project Scope'!$C$8:$C$107,CJ$7),0)","v":0},{"$f":"IF(AL43=\"yes\",SUMIFS('Project Scope'!$AO$8:$AO$107,'Project Scope'!$AN$8:$AN$107,$I43,'Project Scope'!$C$8:$C$107,CK$7)+SUMIFS('Project Scope'!$AX$8:$AX$107,'Project Scope'!$AW$8:$AW$107,$I43,'Project Scope'!$C$8:$C$107,CK$7),0)","v":0},{"$f":"IF(AM43=\"yes\",SUMIFS('Project Scope'!$AO$8:$AO$107,'Project Scope'!$AN$8:$AN$107,$I43,'Project Scope'!$C$8:$C$107,CL$7)+SUMIFS('Project Scope'!$AX$8:$AX$107,'Project Scope'!$AW$8:$AW$107,$I43,'Project Scope'!$C$8:$C$107,CL$7),0)","v":0},{"$f":"IF(AN43=\"yes\",SUMIFS('Project Scope'!$AO$8:$AO$107,'Project Scope'!$AN$8:$AN$107,$I43,'Project Scope'!$C$8:$C$107,CM$7)+SUMIFS('Project Scope'!$AX$8:$AX$107,'Project Scope'!$AW$8:$AW$107,$I43,'Project Scope'!$C$8:$C$107,CM$7),0)","v":0},{"$f":"IF(AO43=\"yes\",SUMIFS('Project Scope'!$AO$8:$AO$107,'Project Scope'!$AN$8:$AN$107,$I43,'Project Scope'!$C$8:$C$107,CN$7)+SUMIFS('Project Scope'!$AX$8:$AX$107,'Project Scope'!$AW$8:$AW$107,$I43,'Project Scope'!$C$8:$C$107,CN$7),0)","v":0},{"$f":"IF(AP43=\"yes\",SUMIFS('Project Scope'!$AO$8:$AO$107,'Project Scope'!$AN$8:$AN$107,$I43,'Project Scope'!$C$8:$C$107,CO$7)+SUMIFS('Project Scope'!$AX$8:$AX$107,'Project Scope'!$AW$8:$AW$107,$I43,'Project Scope'!$C$8:$C$107,CO$7),0)","v":0},{"$f":"IF(AQ43=\"yes\",SUMIFS('Project Scope'!$AO$8:$AO$107,'Project Scope'!$AN$8:$AN$107,$I43,'Project Scope'!$C$8:$C$107,CP$7)+SUMIFS('Project Scope'!$AX$8:$AX$107,'Project Scope'!$AW$8:$AW$107,$I43,'Project Scope'!$C$8:$C$107,CP$7),0)","v":0},{"$f":"IF(AR43=\"yes\",SUMIFS('Project Scope'!$AO$8:$AO$107,'Project Scope'!$AN$8:$AN$107,$I43,'Project Scope'!$C$8:$C$107,CQ$7)+SUMIFS('Project Scope'!$AX$8:$AX$107,'Project Scope'!$AW$8:$AW$107,$I43,'Project Scope'!$C$8:$C$107,CQ$7),0)","v":0},{"$f":"IF(AS43=\"yes\",SUMIFS('Project Scope'!$AO$8:$AO$107,'Project Scope'!$AN$8:$AN$107,$I43,'Project Scope'!$C$8:$C$107,CR$7)+SUMIFS('Project Scope'!$AX$8:$AX$107,'Project Scope'!$AW$8:$AW$107,$I43,'Project Scope'!$C$8:$C$107,CR$7),0)","v":0},{"$f":"IF(AT43=\"yes\",SUMIFS('Project Scope'!$AO$8:$AO$107,'Project Scope'!$AN$8:$AN$107,$I43,'Project Scope'!$C$8:$C$107,CS$7)+SUMIFS('Project Scope'!$AX$8:$AX$107,'Project Scope'!$AW$8:$AW$107,$I43,'Project Scope'!$C$8:$C$107,CS$7),0)","v":0},{"$f":"IF(AU43=\"yes\",SUMIFS('Project Scope'!$AO$8:$AO$107,'Project Scope'!$AN$8:$AN$107,$I43,'Project Scope'!$C$8:$C$107,CT$7)+SUMIFS('Project Scope'!$AX$8:$AX$107,'Project Scope'!$AW$8:$AW$107,$I43,'Project Scope'!$C$8:$C$107,CT$7),0)","v":0},{"$f":"IF(AV43=\"yes\",SUMIFS('Project Scope'!$AO$8:$AO$107,'Project Scope'!$AN$8:$AN$107,$I43,'Project Scope'!$C$8:$C$107,CU$7)+SUMIFS('Project Scope'!$AX$8:$AX$107,'Project Scope'!$AW$8:$AW$107,$I43,'Project Scope'!$C$8:$C$107,CU$7),0)","v":0},{"$f":"IF(AW43=\"yes\",SUMIFS('Project Scope'!$AO$8:$AO$107,'Project Scope'!$AN$8:$AN$107,$I43,'Project Scope'!$C$8:$C$107,CV$7)+SUMIFS('Project Scope'!$AX$8:$AX$107,'Project Scope'!$AW$8:$AW$107,$I43,'Project Scope'!$C$8:$C$107,CV$7),0)","v":0},{"$f":"IF(AX43=\"yes\",SUMIFS('Project Scope'!$AO$8:$AO$107,'Project Scope'!$AN$8:$AN$107,$I43,'Project Scope'!$C$8:$C$107,CW$7)+SUMIFS('Project Scope'!$AX$8:$AX$107,'Project Scope'!$AW$8:$AW$107,$I43,'Project Scope'!$C$8:$C$107,CW$7),0)","v":0},{"$f":"IF(AY43=\"yes\",SUMIFS('Project Scope'!$AO$8:$AO$107,'Project Scope'!$AN$8:$AN$107,$I43,'Project Scope'!$C$8:$C$107,CX$7)+SUMIFS('Project Scope'!$AX$8:$AX$107,'Project Scope'!$AW$8:$AW$107,$I43,'Project Scope'!$C$8:$C$107,CX$7),0)","v":0},{"$f":"IF(AZ43=\"yes\",SUMIFS('Project Scope'!$AO$8:$AO$107,'Project Scope'!$AN$8:$AN$107,$I43,'Project Scope'!$C$8:$C$107,CY$7)+SUMIFS('Project Scope'!$AX$8:$AX$107,'Project Scope'!$AW$8:$AW$107,$I43,'Project Scope'!$C$8:$C$107,CY$7),0)","v":0},{"$f":"IF(BA43=\"yes\",SUMIFS('Project Scope'!$AO$8:$AO$107,'Project Scope'!$AN$8:$AN$107,$I43,'Project Scope'!$C$8:$C$107,CZ$7)+SUMIFS('Project Scope'!$AX$8:$AX$107,'Project Scope'!$AW$8:$AW$107,$I43,'Project Scope'!$C$8:$C$107,CZ$7),0)","v":0},{"$f":"IF(BB43=\"yes\",SUMIFS('Project Scope'!$AO$8:$AO$107,'Project Scope'!$AN$8:$AN$107,$I43,'Project Scope'!$C$8:$C$107,DA$7)+SUMIFS('Project Scope'!$AX$8:$AX$107,'Project Scope'!$AW$8:$AW$107,$I43,'Project Scope'!$C$8:$C$107,DA$7),0)","v":0},{"$f":"IF(BC43=\"yes\",SUMIFS('Project Scope'!$AO$8:$AO$107,'Project Scope'!$AN$8:$AN$107,$I43,'Project Scope'!$C$8:$C$107,DB$7)+SUMIFS('Project Scope'!$AX$8:$AX$107,'Project Scope'!$AW$8:$AW$107,$I43,'Project Scope'!$C$8:$C$107,DB$7),0)","v":0},{"$f":"IF(BD43=\"yes\",SUMIFS('Project Scope'!$AO$8:$AO$107,'Project Scope'!$AN$8:$AN$107,$I43,'Project Scope'!$C$8:$C$107,DC$7)+SUMIFS('Project Scope'!$AX$8:$AX$107,'Project Scope'!$AW$8:$AW$107,$I43,'Project Scope'!$C$8:$C$107,DC$7),0)","v":0},{"$f":"IF(BE43=\"yes\",SUMIFS('Project Scope'!$AO$8:$AO$107,'Project Scope'!$AN$8:$AN$107,$I43,'Project Scope'!$C$8:$C$107,DD$7)+SUMIFS('Project Scope'!$AX$8:$AX$107,'Project Scope'!$AW$8:$AW$107,$I43,'Project Scope'!$C$8:$C$107,DD$7),0)","v":0},{"$f":"IF(BF43=\"yes\",SUMIFS('Project Scope'!$AO$8:$AO$107,'Project Scope'!$AN$8:$AN$107,$I43,'Project Scope'!$C$8:$C$107,DE$7)+SUMIFS('Project Scope'!$AX$8:$AX$107,'Project Scope'!$AW$8:$AW$107,$I43,'Project Scope'!$C$8:$C$107,DE$7),0)","v":0},{"$f":"IF(BG43=\"yes\",SUMIFS('Project Scope'!$AO$8:$AO$107,'Project Scope'!$AN$8:$AN$107,$I43,'Project Scope'!$C$8:$C$107,DF$7)+SUMIFS('Project Scope'!$AX$8:$AX$107,'Project Scope'!$AW$8:$AW$107,$I43,'Project Scope'!$C$8:$C$107,DF$7),0)","v":0},{"$f":"IF(BH43=\"yes\",SUMIFS('Project Scope'!$AO$8:$AO$107,'Project Scope'!$AN$8:$AN$107,$I43,'Project Scope'!$C$8:$C$107,DG$7)+SUMIFS('Project Scope'!$AX$8:$AX$107,'Project Scope'!$AW$8:$AW$107,$I43,'Project Scope'!$C$8:$C$107,DG$7),0)","v":0},{"$f":"IF(BI43=\"yes\",SUMIFS('Project Scope'!$AO$8:$AO$107,'Project Scope'!$AN$8:$AN$107,$I43,'Project Scope'!$C$8:$C$107,DH$7)+SUMIFS('Project Scope'!$AX$8:$AX$107,'Project Scope'!$AW$8:$AW$107,$I43,'Project Scope'!$C$8:$C$107,DH$7),0)","v":0},{"$f":"IF(BJ43=\"yes\",SUMIFS('Project Scope'!$AO$8:$AO$107,'Project Scope'!$AN$8:$AN$107,$I43,'Project Scope'!$C$8:$C$107,DI$7)+SUMIFS('Project Scope'!$AX$8:$AX$107,'Project Scope'!$AW$8:$AW$107,$I43,'Project Scope'!$C$8:$C$107,DI$7),0)","v":0},{"$f":"IF(BK43=\"yes\",SUMIFS('Project Scope'!$AO$8:$AO$107,'Project Scope'!$AN$8:$AN$107,$I43,'Project Scope'!$C$8:$C$107,DJ$7)+SUMIFS('Project Scope'!$AX$8:$AX$107,'Project Scope'!$AW$8:$AW$107,$I43,'Project Scope'!$C$8:$C$107,DJ$7),0)","v":0},{"$f":"IF(BL43=\"yes\",SUMIFS('Project Scope'!$AO$8:$AO$107,'Project Scope'!$AN$8:$AN$107,$I43,'Project Scope'!$C$8:$C$107,DK$7)+SUMIFS('Project Scope'!$AX$8:$AX$107,'Project Scope'!$AW$8:$AW$107,$I43,'Project Scope'!$C$8:$C$107,DK$7),0)","v":0},null,"","","","","","","","","","","","","","","","","","","","","","","","","","","","","","","","","","","","","",{"$f":"IF($BN43>0,EX$7,\"\")","v":""},"","","","","","","","","","","","",null,""]
[null,null,null,null,null,null,null,null,null,null,null,{"$f":"IF($C44=\"additional labor hours\",$K44*'Project Information'!$D$12,$K44*$J44)*IF($F44=\"Per Measure\",SUM($BN44:$DK44),1)","v":0},{"$f":"IF($C44=\"\",0,IF(VLOOKUP($C44,'Other Data'!$B$146:$C$156,2,FALSE)=\"M\",$L44,0))","v":0},0,null,null,null,null,null,null,null,null,null,null,null,null,null,null,null,null,null,null,null,null,null,null,null,null,null,null,null,null,null,null,null,null,null,null,null,null,null,null,null,null,null,null,null,null,null,null,null,null,null,null,null,{"$f":"IF(O44=\"yes\",SUMIFS('Project Scope'!$AO$8:$AO$107,'Project Scope'!$AN$8:$AN$107,$I44,'Project Scope'!$C$8:$C$107,BN$7)+SUMIFS('Project Scope'!$AX$8:$AX$107,'Project Scope'!$AW$8:$AW$107,$I44,'Project Scope'!$C$8:$C$107,BN$7),0)","v":0},{"$f":"IF(P44=\"yes\",SUMIFS('Project Scope'!$AO$8:$AO$107,'Project Scope'!$AN$8:$AN$107,$I44,'Project Scope'!$C$8:$C$107,BO$7)+SUMIFS('Project Scope'!$AX$8:$AX$107,'Project Scope'!$AW$8:$AW$107,$I44,'Project Scope'!$C$8:$C$107,BO$7),0)","v":0},{"$f":"IF(Q44=\"yes\",SUMIFS('Project Scope'!$AO$8:$AO$107,'Project Scope'!$AN$8:$AN$107,$I44,'Project Scope'!$C$8:$C$107,BP$7)+SUMIFS('Project Scope'!$AX$8:$AX$107,'Project Scope'!$AW$8:$AW$107,$I44,'Project Scope'!$C$8:$C$107,BP$7),0)","v":0},{"$f":"IF(R44=\"yes\",SUMIFS('Project Scope'!$AO$8:$AO$107,'Project Scope'!$AN$8:$AN$107,$I44,'Project Scope'!$C$8:$C$107,BQ$7)+SUMIFS('Project Scope'!$AX$8:$AX$107,'Project Scope'!$AW$8:$AW$107,$I44,'Project Scope'!$C$8:$C$107,BQ$7),0)","v":0},{"$f":"IF(S44=\"yes\",SUMIFS('Project Scope'!$AO$8:$AO$107,'Project Scope'!$AN$8:$AN$107,$I44,'Project Scope'!$C$8:$C$107,BR$7)+SUMIFS('Project Scope'!$AX$8:$AX$107,'Project Scope'!$AW$8:$AW$107,$I44,'Project Scope'!$C$8:$C$107,BR$7),0)","v":0},{"$f":"IF(T44=\"yes\",SUMIFS('Project Scope'!$AO$8:$AO$107,'Project Scope'!$AN$8:$AN$107,$I44,'Project Scope'!$C$8:$C$107,BS$7)+SUMIFS('Project Scope'!$AX$8:$AX$107,'Project Scope'!$AW$8:$AW$107,$I44,'Project Scope'!$C$8:$C$107,BS$7),0)","v":0},{"$f":"IF(U44=\"yes\",SUMIFS('Project Scope'!$AO$8:$AO$107,'Project Scope'!$AN$8:$AN$107,$I44,'Project Scope'!$C$8:$C$107,BT$7)+SUMIFS('Project Scope'!$AX$8:$AX$107,'Project Scope'!$AW$8:$AW$107,$I44,'Project Scope'!$C$8:$C$107,BT$7),0)","v":0},{"$f":"IF(V44=\"yes\",SUMIFS('Project Scope'!$AO$8:$AO$107,'Project Scope'!$AN$8:$AN$107,$I44,'Project Scope'!$C$8:$C$107,BU$7)+SUMIFS('Project Scope'!$AX$8:$AX$107,'Project Scope'!$AW$8:$AW$107,$I44,'Project Scope'!$C$8:$C$107,BU$7),0)","v":0},{"$f":"IF(W44=\"yes\",SUMIFS('Project Scope'!$AO$8:$AO$107,'Project Scope'!$AN$8:$AN$107,$I44,'Project Scope'!$C$8:$C$107,BV$7)+SUMIFS('Project Scope'!$AX$8:$AX$107,'Project Scope'!$AW$8:$AW$107,$I44,'Project Scope'!$C$8:$C$107,BV$7),0)","v":0},{"$f":"IF(X44=\"yes\",SUMIFS('Project Scope'!$AO$8:$AO$107,'Project Scope'!$AN$8:$AN$107,$I44,'Project Scope'!$C$8:$C$107,BW$7)+SUMIFS('Project Scope'!$AX$8:$AX$107,'Project Scope'!$AW$8:$AW$107,$I44,'Project Scope'!$C$8:$C$107,BW$7),0)","v":0},{"$f":"IF(Y44=\"yes\",SUMIFS('Project Scope'!$AO$8:$AO$107,'Project Scope'!$AN$8:$AN$107,$I44,'Project Scope'!$C$8:$C$107,BX$7)+SUMIFS('Project Scope'!$AX$8:$AX$107,'Project Scope'!$AW$8:$AW$107,$I44,'Project Scope'!$C$8:$C$107,BX$7),0)","v":0},{"$f":"IF(Z44=\"yes\",SUMIFS('Project Scope'!$AO$8:$AO$107,'Project Scope'!$AN$8:$AN$107,$I44,'Project Scope'!$C$8:$C$107,BY$7)+SUMIFS('Project Scope'!$AX$8:$AX$107,'Project Scope'!$AW$8:$AW$107,$I44,'Project Scope'!$C$8:$C$107,BY$7),0)","v":0},{"$f":"IF(AA44=\"yes\",SUMIFS('Project Scope'!$AO$8:$AO$107,'Project Scope'!$AN$8:$AN$107,$I44,'Project Scope'!$C$8:$C$107,BZ$7)+SUMIFS('Project Scope'!$AX$8:$AX$107,'Project Scope'!$AW$8:$AW$107,$I44,'Project Scope'!$C$8:$C$107,BZ$7),0)","v":0},{"$f":"IF(AB44=\"yes\",SUMIFS('Project Scope'!$AO$8:$AO$107,'Project Scope'!$AN$8:$AN$107,$I44,'Project Scope'!$C$8:$C$107,CA$7)+SUMIFS('Project Scope'!$AX$8:$AX$107,'Project Scope'!$AW$8:$AW$107,$I44,'Project Scope'!$C$8:$C$107,CA$7),0)","v":0},{"$f":"IF(AC44=\"yes\",SUMIFS('Project Scope'!$AO$8:$AO$107,'Project Scope'!$AN$8:$AN$107,$I44,'Project Scope'!$C$8:$C$107,CB$7)+SUMIFS('Project Scope'!$AX$8:$AX$107,'Project Scope'!$AW$8:$AW$107,$I44,'Project Scope'!$C$8:$C$107,CB$7),0)","v":0},{"$f":"IF(AD44=\"yes\",SUMIFS('Project Scope'!$AO$8:$AO$107,'Project Scope'!$AN$8:$AN$107,$I44,'Project Scope'!$C$8:$C$107,CC$7)+SUMIFS('Project Scope'!$AX$8:$AX$107,'Project Scope'!$AW$8:$AW$107,$I44,'Project Scope'!$C$8:$C$107,CC$7),0)","v":0},{"$f":"IF(AE44=\"yes\",SUMIFS('Project Scope'!$AO$8:$AO$107,'Project Scope'!$AN$8:$AN$107,$I44,'Project Scope'!$C$8:$C$107,CD$7)+SUMIFS('Project Scope'!$AX$8:$AX$107,'Project Scope'!$AW$8:$AW$107,$I44,'Project Scope'!$C$8:$C$107,CD$7),0)","v":0},{"$f":"IF(AF44=\"yes\",SUMIFS('Project Scope'!$AO$8:$AO$107,'Project Scope'!$AN$8:$AN$107,$I44,'Project Scope'!$C$8:$C$107,CE$7)+SUMIFS('Project Scope'!$AX$8:$AX$107,'Project Scope'!$AW$8:$AW$107,$I44,'Project Scope'!$C$8:$C$107,CE$7),0)","v":0},{"$f":"IF(AG44=\"yes\",SUMIFS('Project Scope'!$AO$8:$AO$107,'Project Scope'!$AN$8:$AN$107,$I44,'Project Scope'!$C$8:$C$107,CF$7)+SUMIFS('Project Scope'!$AX$8:$AX$107,'Project Scope'!$AW$8:$AW$107,$I44,'Project Scope'!$C$8:$C$107,CF$7),0)","v":0},{"$f":"IF(AH44=\"yes\",SUMIFS('Project Scope'!$AO$8:$AO$107,'Project Scope'!$AN$8:$AN$107,$I44,'Project Scope'!$C$8:$C$107,CG$7)+SUMIFS('Project Scope'!$AX$8:$AX$107,'Project Scope'!$AW$8:$AW$107,$I44,'Project Scope'!$C$8:$C$107,CG$7),0)","v":0},{"$f":"IF(AI44=\"yes\",SUMIFS('Project Scope'!$AO$8:$AO$107,'Project Scope'!$AN$8:$AN$107,$I44,'Project Scope'!$C$8:$C$107,CH$7)+SUMIFS('Project Scope'!$AX$8:$AX$107,'Project Scope'!$AW$8:$AW$107,$I44,'Project Scope'!$C$8:$C$107,CH$7),0)","v":0},{"$f":"IF(AJ44=\"yes\",SUMIFS('Project Scope'!$AO$8:$AO$107,'Project Scope'!$AN$8:$AN$107,$I44,'Project Scope'!$C$8:$C$107,CI$7)+SUMIFS('Project Scope'!$AX$8:$AX$107,'Project Scope'!$AW$8:$AW$107,$I44,'Project Scope'!$C$8:$C$107,CI$7),0)","v":0},{"$f":"IF(AK44=\"yes\",SUMIFS('Project Scope'!$AO$8:$AO$107,'Project Scope'!$AN$8:$AN$107,$I44,'Project Scope'!$C$8:$C$107,CJ$7)+SUMIFS('Project Scope'!$AX$8:$AX$107,'Project Scope'!$AW$8:$AW$107,$I44,'Project Scope'!$C$8:$C$107,CJ$7),0)","v":0},{"$f":"IF(AL44=\"yes\",SUMIFS('Project Scope'!$AO$8:$AO$107,'Project Scope'!$AN$8:$AN$107,$I44,'Project Scope'!$C$8:$C$107,CK$7)+SUMIFS('Project Scope'!$AX$8:$AX$107,'Project Scope'!$AW$8:$AW$107,$I44,'Project Scope'!$C$8:$C$107,CK$7),0)","v":0},{"$f":"IF(AM44=\"yes\",SUMIFS('Project Scope'!$AO$8:$AO$107,'Project Scope'!$AN$8:$AN$107,$I44,'Project Scope'!$C$8:$C$107,CL$7)+SUMIFS('Project Scope'!$AX$8:$AX$107,'Project Scope'!$AW$8:$AW$107,$I44,'Project Scope'!$C$8:$C$107,CL$7),0)","v":0},{"$f":"IF(AN44=\"yes\",SUMIFS('Project Scope'!$AO$8:$AO$107,'Project Scope'!$AN$8:$AN$107,$I44,'Project Scope'!$C$8:$C$107,CM$7)+SUMIFS('Project Scope'!$AX$8:$AX$107,'Project Scope'!$AW$8:$AW$107,$I44,'Project Scope'!$C$8:$C$107,CM$7),0)","v":0},{"$f":"IF(AO44=\"yes\",SUMIFS('Project Scope'!$AO$8:$AO$107,'Project Scope'!$AN$8:$AN$107,$I44,'Project Scope'!$C$8:$C$107,CN$7)+SUMIFS('Project Scope'!$AX$8:$AX$107,'Project Scope'!$AW$8:$AW$107,$I44,'Project Scope'!$C$8:$C$107,CN$7),0)","v":0},{"$f":"IF(AP44=\"yes\",SUMIFS('Project Scope'!$AO$8:$AO$107,'Project Scope'!$AN$8:$AN$107,$I44,'Project Scope'!$C$8:$C$107,CO$7)+SUMIFS('Project Scope'!$AX$8:$AX$107,'Project Scope'!$AW$8:$AW$107,$I44,'Project Scope'!$C$8:$C$107,CO$7),0)","v":0},{"$f":"IF(AQ44=\"yes\",SUMIFS('Project Scope'!$AO$8:$AO$107,'Project Scope'!$AN$8:$AN$107,$I44,'Project Scope'!$C$8:$C$107,CP$7)+SUMIFS('Project Scope'!$AX$8:$AX$107,'Project Scope'!$AW$8:$AW$107,$I44,'Project Scope'!$C$8:$C$107,CP$7),0)","v":0},{"$f":"IF(AR44=\"yes\",SUMIFS('Project Scope'!$AO$8:$AO$107,'Project Scope'!$AN$8:$AN$107,$I44,'Project Scope'!$C$8:$C$107,CQ$7)+SUMIFS('Project Scope'!$AX$8:$AX$107,'Project Scope'!$AW$8:$AW$107,$I44,'Project Scope'!$C$8:$C$107,CQ$7),0)","v":0},{"$f":"IF(AS44=\"yes\",SUMIFS('Project Scope'!$AO$8:$AO$107,'Project Scope'!$AN$8:$AN$107,$I44,'Project Scope'!$C$8:$C$107,CR$7)+SUMIFS('Project Scope'!$AX$8:$AX$107,'Project Scope'!$AW$8:$AW$107,$I44,'Project Scope'!$C$8:$C$107,CR$7),0)","v":0},{"$f":"IF(AT44=\"yes\",SUMIFS('Project Scope'!$AO$8:$AO$107,'Project Scope'!$AN$8:$AN$107,$I44,'Project Scope'!$C$8:$C$107,CS$7)+SUMIFS('Project Scope'!$AX$8:$AX$107,'Project Scope'!$AW$8:$AW$107,$I44,'Project Scope'!$C$8:$C$107,CS$7),0)","v":0},{"$f":"IF(AU44=\"yes\",SUMIFS('Project Scope'!$AO$8:$AO$107,'Project Scope'!$AN$8:$AN$107,$I44,'Project Scope'!$C$8:$C$107,CT$7)+SUMIFS('Project Scope'!$AX$8:$AX$107,'Project Scope'!$AW$8:$AW$107,$I44,'Project Scope'!$C$8:$C$107,CT$7),0)","v":0},{"$f":"IF(AV44=\"yes\",SUMIFS('Project Scope'!$AO$8:$AO$107,'Project Scope'!$AN$8:$AN$107,$I44,'Project Scope'!$C$8:$C$107,CU$7)+SUMIFS('Project Scope'!$AX$8:$AX$107,'Project Scope'!$AW$8:$AW$107,$I44,'Project Scope'!$C$8:$C$107,CU$7),0)","v":0},{"$f":"IF(AW44=\"yes\",SUMIFS('Project Scope'!$AO$8:$AO$107,'Project Scope'!$AN$8:$AN$107,$I44,'Project Scope'!$C$8:$C$107,CV$7)+SUMIFS('Project Scope'!$AX$8:$AX$107,'Project Scope'!$AW$8:$AW$107,$I44,'Project Scope'!$C$8:$C$107,CV$7),0)","v":0},{"$f":"IF(AX44=\"yes\",SUMIFS('Project Scope'!$AO$8:$AO$107,'Project Scope'!$AN$8:$AN$107,$I44,'Project Scope'!$C$8:$C$107,CW$7)+SUMIFS('Project Scope'!$AX$8:$AX$107,'Project Scope'!$AW$8:$AW$107,$I44,'Project Scope'!$C$8:$C$107,CW$7),0)","v":0},{"$f":"IF(AY44=\"yes\",SUMIFS('Project Scope'!$AO$8:$AO$107,'Project Scope'!$AN$8:$AN$107,$I44,'Project Scope'!$C$8:$C$107,CX$7)+SUMIFS('Project Scope'!$AX$8:$AX$107,'Project Scope'!$AW$8:$AW$107,$I44,'Project Scope'!$C$8:$C$107,CX$7),0)","v":0},{"$f":"IF(AZ44=\"yes\",SUMIFS('Project Scope'!$AO$8:$AO$107,'Project Scope'!$AN$8:$AN$107,$I44,'Project Scope'!$C$8:$C$107,CY$7)+SUMIFS('Project Scope'!$AX$8:$AX$107,'Project Scope'!$AW$8:$AW$107,$I44,'Project Scope'!$C$8:$C$107,CY$7),0)","v":0},{"$f":"IF(BA44=\"yes\",SUMIFS('Project Scope'!$AO$8:$AO$107,'Project Scope'!$AN$8:$AN$107,$I44,'Project Scope'!$C$8:$C$107,CZ$7)+SUMIFS('Project Scope'!$AX$8:$AX$107,'Project Scope'!$AW$8:$AW$107,$I44,'Project Scope'!$C$8:$C$107,CZ$7),0)","v":0},{"$f":"IF(BB44=\"yes\",SUMIFS('Project Scope'!$AO$8:$AO$107,'Project Scope'!$AN$8:$AN$107,$I44,'Project Scope'!$C$8:$C$107,DA$7)+SUMIFS('Project Scope'!$AX$8:$AX$107,'Project Scope'!$AW$8:$AW$107,$I44,'Project Scope'!$C$8:$C$107,DA$7),0)","v":0},{"$f":"IF(BC44=\"yes\",SUMIFS('Project Scope'!$AO$8:$AO$107,'Project Scope'!$AN$8:$AN$107,$I44,'Project Scope'!$C$8:$C$107,DB$7)+SUMIFS('Project Scope'!$AX$8:$AX$107,'Project Scope'!$AW$8:$AW$107,$I44,'Project Scope'!$C$8:$C$107,DB$7),0)","v":0},{"$f":"IF(BD44=\"yes\",SUMIFS('Project Scope'!$AO$8:$AO$107,'Project Scope'!$AN$8:$AN$107,$I44,'Project Scope'!$C$8:$C$107,DC$7)+SUMIFS('Project Scope'!$AX$8:$AX$107,'Project Scope'!$AW$8:$AW$107,$I44,'Project Scope'!$C$8:$C$107,DC$7),0)","v":0},{"$f":"IF(BE44=\"yes\",SUMIFS('Project Scope'!$AO$8:$AO$107,'Project Scope'!$AN$8:$AN$107,$I44,'Project Scope'!$C$8:$C$107,DD$7)+SUMIFS('Project Scope'!$AX$8:$AX$107,'Project Scope'!$AW$8:$AW$107,$I44,'Project Scope'!$C$8:$C$107,DD$7),0)","v":0},{"$f":"IF(BF44=\"yes\",SUMIFS('Project Scope'!$AO$8:$AO$107,'Project Scope'!$AN$8:$AN$107,$I44,'Project Scope'!$C$8:$C$107,DE$7)+SUMIFS('Project Scope'!$AX$8:$AX$107,'Project Scope'!$AW$8:$AW$107,$I44,'Project Scope'!$C$8:$C$107,DE$7),0)","v":0},{"$f":"IF(BG44=\"yes\",SUMIFS('Project Scope'!$AO$8:$AO$107,'Project Scope'!$AN$8:$AN$107,$I44,'Project Scope'!$C$8:$C$107,DF$7)+SUMIFS('Project Scope'!$AX$8:$AX$107,'Project Scope'!$AW$8:$AW$107,$I44,'Project Scope'!$C$8:$C$107,DF$7),0)","v":0},{"$f":"IF(BH44=\"yes\",SUMIFS('Project Scope'!$AO$8:$AO$107,'Project Scope'!$AN$8:$AN$107,$I44,'Project Scope'!$C$8:$C$107,DG$7)+SUMIFS('Project Scope'!$AX$8:$AX$107,'Project Scope'!$AW$8:$AW$107,$I44,'Project Scope'!$C$8:$C$107,DG$7),0)","v":0},{"$f":"IF(BI44=\"yes\",SUMIFS('Project Scope'!$AO$8:$AO$107,'Project Scope'!$AN$8:$AN$107,$I44,'Project Scope'!$C$8:$C$107,DH$7)+SUMIFS('Project Scope'!$AX$8:$AX$107,'Project Scope'!$AW$8:$AW$107,$I44,'Project Scope'!$C$8:$C$107,DH$7),0)","v":0},{"$f":"IF(BJ44=\"yes\",SUMIFS('Project Scope'!$AO$8:$AO$107,'Project Scope'!$AN$8:$AN$107,$I44,'Project Scope'!$C$8:$C$107,DI$7)+SUMIFS('Project Scope'!$AX$8:$AX$107,'Project Scope'!$AW$8:$AW$107,$I44,'Project Scope'!$C$8:$C$107,DI$7),0)","v":0},{"$f":"IF(BK44=\"yes\",SUMIFS('Project Scope'!$AO$8:$AO$107,'Project Scope'!$AN$8:$AN$107,$I44,'Project Scope'!$C$8:$C$107,DJ$7)+SUMIFS('Project Scope'!$AX$8:$AX$107,'Project Scope'!$AW$8:$AW$107,$I44,'Project Scope'!$C$8:$C$107,DJ$7),0)","v":0},{"$f":"IF(BL44=\"yes\",SUMIFS('Project Scope'!$AO$8:$AO$107,'Project Scope'!$AN$8:$AN$107,$I44,'Project Scope'!$C$8:$C$107,DK$7)+SUMIFS('Project Scope'!$AX$8:$AX$107,'Project Scope'!$AW$8:$AW$107,$I44,'Project Scope'!$C$8:$C$107,DK$7),0)","v":0},null,"","","","","","","","","","","","","","","","","","","","","","","","","","","","","","","","","","","","","","","","","","","","","","","","","","",null,""]
[null,null,null,null,null,null,null,null,null,null,null,{"$f":"IF($C45=\"additional labor hours\",$K45*'Project Information'!$D$12,$K45*$J45)*IF($F45=\"Per Measure\",SUM($BN45:$DK45),1)","v":0},{"$f":"IF($C45=\"\",0,IF(VLOOKUP($C45,'Other Data'!$B$146:$C$156,2,FALSE)=\"M\",$L45,0))","v":0},0,null,null,null,null,null,null,null,null,null,null,null,null,null,null,null,null,null,null,null,null,null,null,null,null,null,null,null,null,null,null,null,null,null,null,null,null,null,null,null,null,null,null,null,null,null,null,null,null,null,null,null,{"$f":"IF(O45=\"yes\",SUMIFS('Project Scope'!$AO$8:$AO$107,'Project Scope'!$AN$8:$AN$107,$I45,'Project Scope'!$C$8:$C$107,BN$7)+SUMIFS('Project Scope'!$AX$8:$AX$107,'Project Scope'!$AW$8:$AW$107,$I45,'Project Scope'!$C$8:$C$107,BN$7),0)","v":0},{"$f":"IF(P45=\"yes\",SUMIFS('Project Scope'!$AO$8:$AO$107,'Project Scope'!$AN$8:$AN$107,$I45,'Project Scope'!$C$8:$C$107,BO$7)+SUMIFS('Project Scope'!$AX$8:$AX$107,'Project Scope'!$AW$8:$AW$107,$I45,'Project Scope'!$C$8:$C$107,BO$7),0)","v":0},{"$f":"IF(Q45=\"yes\",SUMIFS('Project Scope'!$AO$8:$AO$107,'Project Scope'!$AN$8:$AN$107,$I45,'Project Scope'!$C$8:$C$107,BP$7)+SUMIFS('Project Scope'!$AX$8:$AX$107,'Project Scope'!$AW$8:$AW$107,$I45,'Project Scope'!$C$8:$C$107,BP$7),0)","v":0},{"$f":"IF(R45=\"yes\",SUMIFS('Project Scope'!$AO$8:$AO$107,'Project Scope'!$AN$8:$AN$107,$I45,'Project Scope'!$C$8:$C$107,BQ$7)+SUMIFS('Project Scope'!$AX$8:$AX$107,'Project Scope'!$AW$8:$AW$107,$I45,'Project Scope'!$C$8:$C$107,BQ$7),0)","v":0},{"$f":"IF(S45=\"yes\",SUMIFS('Project Scope'!$AO$8:$AO$107,'Project Scope'!$AN$8:$AN$107,$I45,'Project Scope'!$C$8:$C$107,BR$7)+SUMIFS('Project Scope'!$AX$8:$AX$107,'Project Scope'!$AW$8:$AW$107,$I45,'Project Scope'!$C$8:$C$107,BR$7),0)","v":0},{"$f":"IF(T45=\"yes\",SUMIFS('Project Scope'!$AO$8:$AO$107,'Project Scope'!$AN$8:$AN$107,$I45,'Project Scope'!$C$8:$C$107,BS$7)+SUMIFS('Project Scope'!$AX$8:$AX$107,'Project Scope'!$AW$8:$AW$107,$I45,'Project Scope'!$C$8:$C$107,BS$7),0)","v":0},{"$f":"IF(U45=\"yes\",SUMIFS('Project Scope'!$AO$8:$AO$107,'Project Scope'!$AN$8:$AN$107,$I45,'Project Scope'!$C$8:$C$107,BT$7)+SUMIFS('Project Scope'!$AX$8:$AX$107,'Project Scope'!$AW$8:$AW$107,$I45,'Project Scope'!$C$8:$C$107,BT$7),0)","v":0},{"$f":"IF(V45=\"yes\",SUMIFS('Project Scope'!$AO$8:$AO$107,'Project Scope'!$AN$8:$AN$107,$I45,'Project Scope'!$C$8:$C$107,BU$7)+SUMIFS('Project Scope'!$AX$8:$AX$107,'Project Scope'!$AW$8:$AW$107,$I45,'Project Scope'!$C$8:$C$107,BU$7),0)","v":0},{"$f":"IF(W45=\"yes\",SUMIFS('Project Scope'!$AO$8:$AO$107,'Project Scope'!$AN$8:$AN$107,$I45,'Project Scope'!$C$8:$C$107,BV$7)+SUMIFS('Project Scope'!$AX$8:$AX$107,'Project Scope'!$AW$8:$AW$107,$I45,'Project Scope'!$C$8:$C$107,BV$7),0)","v":0},{"$f":"IF(X45=\"yes\",SUMIFS('Project Scope'!$AO$8:$AO$107,'Project Scope'!$AN$8:$AN$107,$I45,'Project Scope'!$C$8:$C$107,BW$7)+SUMIFS('Project Scope'!$AX$8:$AX$107,'Project Scope'!$AW$8:$AW$107,$I45,'Project Scope'!$C$8:$C$107,BW$7),0)","v":0},{"$f":"IF(Y45=\"yes\",SUMIFS('Project Scope'!$AO$8:$AO$107,'Project Scope'!$AN$8:$AN$107,$I45,'Project Scope'!$C$8:$C$107,BX$7)+SUMIFS('Project Scope'!$AX$8:$AX$107,'Project Scope'!$AW$8:$AW$107,$I45,'Project Scope'!$C$8:$C$107,BX$7),0)","v":0},{"$f":"IF(Z45=\"yes\",SUMIFS('Project Scope'!$AO$8:$AO$107,'Project Scope'!$AN$8:$AN$107,$I45,'Project Scope'!$C$8:$C$107,BY$7)+SUMIFS('Project Scope'!$AX$8:$AX$107,'Project Scope'!$AW$8:$AW$107,$I45,'Project Scope'!$C$8:$C$107,BY$7),0)","v":0},{"$f":"IF(AA45=\"yes\",SUMIFS('Project Scope'!$AO$8:$AO$107,'Project Scope'!$AN$8:$AN$107,$I45,'Project Scope'!$C$8:$C$107,BZ$7)+SUMIFS('Project Scope'!$AX$8:$AX$107,'Project Scope'!$AW$8:$AW$107,$I45,'Project Scope'!$C$8:$C$107,BZ$7),0)","v":0},{"$f":"IF(AB45=\"yes\",SUMIFS('Project Scope'!$AO$8:$AO$107,'Project Scope'!$AN$8:$AN$107,$I45,'Project Scope'!$C$8:$C$107,CA$7)+SUMIFS('Project Scope'!$AX$8:$AX$107,'Project Scope'!$AW$8:$AW$107,$I45,'Project Scope'!$C$8:$C$107,CA$7),0)","v":0},{"$f":"IF(AC45=\"yes\",SUMIFS('Project Scope'!$AO$8:$AO$107,'Project Scope'!$AN$8:$AN$107,$I45,'Project Scope'!$C$8:$C$107,CB$7)+SUMIFS('Project Scope'!$AX$8:$AX$107,'Project Scope'!$AW$8:$AW$107,$I45,'Project Scope'!$C$8:$C$107,CB$7),0)","v":0},{"$f":"IF(AD45=\"yes\",SUMIFS('Project Scope'!$AO$8:$AO$107,'Project Scope'!$AN$8:$AN$107,$I45,'Project Scope'!$C$8:$C$107,CC$7)+SUMIFS('Project Scope'!$AX$8:$AX$107,'Project Scope'!$AW$8:$AW$107,$I45,'Project Scope'!$C$8:$C$107,CC$7),0)","v":0},{"$f":"IF(AE45=\"yes\",SUMIFS('Project Scope'!$AO$8:$AO$107,'Project Scope'!$AN$8:$AN$107,$I45,'Project Scope'!$C$8:$C$107,CD$7)+SUMIFS('Project Scope'!$AX$8:$AX$107,'Project Scope'!$AW$8:$AW$107,$I45,'Project Scope'!$C$8:$C$107,CD$7),0)","v":0},{"$f":"IF(AF45=\"yes\",SUMIFS('Project Scope'!$AO$8:$AO$107,'Project Scope'!$AN$8:$AN$107,$I45,'Project Scope'!$C$8:$C$107,CE$7)+SUMIFS('Project Scope'!$AX$8:$AX$107,'Project Scope'!$AW$8:$AW$107,$I45,'Project Scope'!$C$8:$C$107,CE$7),0)","v":0},{"$f":"IF(AG45=\"yes\",SUMIFS('Project Scope'!$AO$8:$AO$107,'Project Scope'!$AN$8:$AN$107,$I45,'Project Scope'!$C$8:$C$107,CF$7)+SUMIFS('Project Scope'!$AX$8:$AX$107,'Project Scope'!$AW$8:$AW$107,$I45,'Project Scope'!$C$8:$C$107,CF$7),0)","v":0},{"$f":"IF(AH45=\"yes\",SUMIFS('Project Scope'!$AO$8:$AO$107,'Project Scope'!$AN$8:$AN$107,$I45,'Project Scope'!$C$8:$C$107,CG$7)+SUMIFS('Project Scope'!$AX$8:$AX$107,'Project Scope'!$AW$8:$AW$107,$I45,'Project Scope'!$C$8:$C$107,CG$7),0)","v":0},{"$f":"IF(AI45=\"yes\",SUMIFS('Project Scope'!$AO$8:$AO$107,'Project Scope'!$AN$8:$AN$107,$I45,'Project Scope'!$C$8:$C$107,CH$7)+SUMIFS('Project Scope'!$AX$8:$AX$107,'Project Scope'!$AW$8:$AW$107,$I45,'Project Scope'!$C$8:$C$107,CH$7),0)","v":0},{"$f":"IF(AJ45=\"yes\",SUMIFS('Project Scope'!$AO$8:$AO$107,'Project Scope'!$AN$8:$AN$107,$I45,'Project Scope'!$C$8:$C$107,CI$7)+SUMIFS('Project Scope'!$AX$8:$AX$107,'Project Scope'!$AW$8:$AW$107,$I45,'Project Scope'!$C$8:$C$107,CI$7),0)","v":0},{"$f":"IF(AK45=\"yes\",SUMIFS('Project Scope'!$AO$8:$AO$107,'Project Scope'!$AN$8:$AN$107,$I45,'Project Scope'!$C$8:$C$107,CJ$7)+SUMIFS('Project Scope'!$AX$8:$AX$107,'Project Scope'!$AW$8:$AW$107,$I45,'Project Scope'!$C$8:$C$107,CJ$7),0)","v":0},{"$f":"IF(AL45=\"yes\",SUMIFS('Project Scope'!$AO$8:$AO$107,'Project Scope'!$AN$8:$AN$107,$I45,'Project Scope'!$C$8:$C$107,CK$7)+SUMIFS('Project Scope'!$AX$8:$AX$107,'Project Scope'!$AW$8:$AW$107,$I45,'Project Scope'!$C$8:$C$107,CK$7),0)","v":0},{"$f":"IF(AM45=\"yes\",SUMIFS('Project Scope'!$AO$8:$AO$107,'Project Scope'!$AN$8:$AN$107,$I45,'Project Scope'!$C$8:$C$107,CL$7)+SUMIFS('Project Scope'!$AX$8:$AX$107,'Project Scope'!$AW$8:$AW$107,$I45,'Project Scope'!$C$8:$C$107,CL$7),0)","v":0},{"$f":"IF(AN45=\"yes\",SUMIFS('Project Scope'!$AO$8:$AO$107,'Project Scope'!$AN$8:$AN$107,$I45,'Project Scope'!$C$8:$C$107,CM$7)+SUMIFS('Project Scope'!$AX$8:$AX$107,'Project Scope'!$AW$8:$AW$107,$I45,'Project Scope'!$C$8:$C$107,CM$7),0)","v":0},{"$f":"IF(AO45=\"yes\",SUMIFS('Project Scope'!$AO$8:$AO$107,'Project Scope'!$AN$8:$AN$107,$I45,'Project Scope'!$C$8:$C$107,CN$7)+SUMIFS('Project Scope'!$AX$8:$AX$107,'Project Scope'!$AW$8:$AW$107,$I45,'Project Scope'!$C$8:$C$107,CN$7),0)","v":0},{"$f":"IF(AP45=\"yes\",SUMIFS('Project Scope'!$AO$8:$AO$107,'Project Scope'!$AN$8:$AN$107,$I45,'Project Scope'!$C$8:$C$107,CO$7)+SUMIFS('Project Scope'!$AX$8:$AX$107,'Project Scope'!$AW$8:$AW$107,$I45,'Project Scope'!$C$8:$C$107,CO$7),0)","v":0},{"$f":"IF(AQ45=\"yes\",SUMIFS('Project Scope'!$AO$8:$AO$107,'Project Scope'!$AN$8:$AN$107,$I45,'Project Scope'!$C$8:$C$107,CP$7)+SUMIFS('Project Scope'!$AX$8:$AX$107,'Project Scope'!$AW$8:$AW$107,$I45,'Project Scope'!$C$8:$C$107,CP$7),0)","v":0},{"$f":"IF(AR45=\"yes\",SUMIFS('Project Scope'!$AO$8:$AO$107,'Project Scope'!$AN$8:$AN$107,$I45,'Project Scope'!$C$8:$C$107,CQ$7)+SUMIFS('Project Scope'!$AX$8:$AX$107,'Project Scope'!$AW$8:$AW$107,$I45,'Project Scope'!$C$8:$C$107,CQ$7),0)","v":0},{"$f":"IF(AS45=\"yes\",SUMIFS('Project Scope'!$AO$8:$AO$107,'Project Scope'!$AN$8:$AN$107,$I45,'Project Scope'!$C$8:$C$107,CR$7)+SUMIFS('Project Scope'!$AX$8:$AX$107,'Project Scope'!$AW$8:$AW$107,$I45,'Project Scope'!$C$8:$C$107,CR$7),0)","v":0},{"$f":"IF(AT45=\"yes\",SUMIFS('Project Scope'!$AO$8:$AO$107,'Project Scope'!$AN$8:$AN$107,$I45,'Project Scope'!$C$8:$C$107,CS$7)+SUMIFS('Project Scope'!$AX$8:$AX$107,'Project Scope'!$AW$8:$AW$107,$I45,'Project Scope'!$C$8:$C$107,CS$7),0)","v":0},{"$f":"IF(AU45=\"yes\",SUMIFS('Project Scope'!$AO$8:$AO$107,'Project Scope'!$AN$8:$AN$107,$I45,'Project Scope'!$C$8:$C$107,CT$7)+SUMIFS('Project Scope'!$AX$8:$AX$107,'Project Scope'!$AW$8:$AW$107,$I45,'Project Scope'!$C$8:$C$107,CT$7),0)","v":0},{"$f":"IF(AV45=\"yes\",SUMIFS('Project Scope'!$AO$8:$AO$107,'Project Scope'!$AN$8:$AN$107,$I45,'Project Scope'!$C$8:$C$107,CU$7)+SUMIFS('Project Scope'!$AX$8:$AX$107,'Project Scope'!$AW$8:$AW$107,$I45,'Project Scope'!$C$8:$C$107,CU$7),0)","v":0},{"$f":"IF(AW45=\"yes\",SUMIFS('Project Scope'!$AO$8:$AO$107,'Project Scope'!$AN$8:$AN$107,$I45,'Project Scope'!$C$8:$C$107,CV$7)+SUMIFS('Project Scope'!$AX$8:$AX$107,'Project Scope'!$AW$8:$AW$107,$I45,'Project Scope'!$C$8:$C$107,CV$7),0)","v":0},{"$f":"IF(AX45=\"yes\",SUMIFS('Project Scope'!$AO$8:$AO$107,'Project Scope'!$AN$8:$AN$107,$I45,'Project Scope'!$C$8:$C$107,CW$7)+SUMIFS('Project Scope'!$AX$8:$AX$107,'Project Scope'!$AW$8:$AW$107,$I45,'Project Scope'!$C$8:$C$107,CW$7),0)","v":0},{"$f":"IF(AY45=\"yes\",SUMIFS('Project Scope'!$AO$8:$AO$107,'Project Scope'!$AN$8:$AN$107,$I45,'Project Scope'!$C$8:$C$107,CX$7)+SUMIFS('Project Scope'!$AX$8:$AX$107,'Project Scope'!$AW$8:$AW$107,$I45,'Project Scope'!$C$8:$C$107,CX$7),0)","v":0},{"$f":"IF(AZ45=\"yes\",SUMIFS('Project Scope'!$AO$8:$AO$107,'Project Scope'!$AN$8:$AN$107,$I45,'Project Scope'!$C$8:$C$107,CY$7)+SUMIFS('Project Scope'!$AX$8:$AX$107,'Project Scope'!$AW$8:$AW$107,$I45,'Project Scope'!$C$8:$C$107,CY$7),0)","v":0},{"$f":"IF(BA45=\"yes\",SUMIFS('Project Scope'!$AO$8:$AO$107,'Project Scope'!$AN$8:$AN$107,$I45,'Project Scope'!$C$8:$C$107,CZ$7)+SUMIFS('Project Scope'!$AX$8:$AX$107,'Project Scope'!$AW$8:$AW$107,$I45,'Project Scope'!$C$8:$C$107,CZ$7),0)","v":0},{"$f":"IF(BB45=\"yes\",SUMIFS('Project Scope'!$AO$8:$AO$107,'Project Scope'!$AN$8:$AN$107,$I45,'Project Scope'!$C$8:$C$107,DA$7)+SUMIFS('Project Scope'!$AX$8:$AX$107,'Project Scope'!$AW$8:$AW$107,$I45,'Project Scope'!$C$8:$C$107,DA$7),0)","v":0},{"$f":"IF(BC45=\"yes\",SUMIFS('Project Scope'!$AO$8:$AO$107,'Project Scope'!$AN$8:$AN$107,$I45,'Project Scope'!$C$8:$C$107,DB$7)+SUMIFS('Project Scope'!$AX$8:$AX$107,'Project Scope'!$AW$8:$AW$107,$I45,'Project Scope'!$C$8:$C$107,DB$7),0)","v":0},{"$f":"IF(BD45=\"yes\",SUMIFS('Project Scope'!$AO$8:$AO$107,'Project Scope'!$AN$8:$AN$107,$I45,'Project Scope'!$C$8:$C$107,DC$7)+SUMIFS('Project Scope'!$AX$8:$AX$107,'Project Scope'!$AW$8:$AW$107,$I45,'Project Scope'!$C$8:$C$107,DC$7),0)","v":0},{"$f":"IF(BE45=\"yes\",SUMIFS('Project Scope'!$AO$8:$AO$107,'Project Scope'!$AN$8:$AN$107,$I45,'Project Scope'!$C$8:$C$107,DD$7)+SUMIFS('Project Scope'!$AX$8:$AX$107,'Project Scope'!$AW$8:$AW$107,$I45,'Project Scope'!$C$8:$C$107,DD$7),0)","v":0},{"$f":"IF(BF45=\"yes\",SUMIFS('Project Scope'!$AO$8:$AO$107,'Project Scope'!$AN$8:$AN$107,$I45,'Project Scope'!$C$8:$C$107,DE$7)+SUMIFS('Project Scope'!$AX$8:$AX$107,'Project Scope'!$AW$8:$AW$107,$I45,'Project Scope'!$C$8:$C$107,DE$7),0)","v":0},{"$f":"IF(BG45=\"yes\",SUMIFS('Project Scope'!$AO$8:$AO$107,'Project Scope'!$AN$8:$AN$107,$I45,'Project Scope'!$C$8:$C$107,DF$7)+SUMIFS('Project Scope'!$AX$8:$AX$107,'Project Scope'!$AW$8:$AW$107,$I45,'Project Scope'!$C$8:$C$107,DF$7),0)","v":0},{"$f":"IF(BH45=\"yes\",SUMIFS('Project Scope'!$AO$8:$AO$107,'Project Scope'!$AN$8:$AN$107,$I45,'Project Scope'!$C$8:$C$107,DG$7)+SUMIFS('Project Scope'!$AX$8:$AX$107,'Project Scope'!$AW$8:$AW$107,$I45,'Project Scope'!$C$8:$C$107,DG$7),0)","v":0},{"$f":"IF(BI45=\"yes\",SUMIFS('Project Scope'!$AO$8:$AO$107,'Project Scope'!$AN$8:$AN$107,$I45,'Project Scope'!$C$8:$C$107,DH$7)+SUMIFS('Project Scope'!$AX$8:$AX$107,'Project Scope'!$AW$8:$AW$107,$I45,'Project Scope'!$C$8:$C$107,DH$7),0)","v":0},{"$f":"IF(BJ45=\"yes\",SUMIFS('Project Scope'!$AO$8:$AO$107,'Project Scope'!$AN$8:$AN$107,$I45,'Project Scope'!$C$8:$C$107,DI$7)+SUMIFS('Project Scope'!$AX$8:$AX$107,'Project Scope'!$AW$8:$AW$107,$I45,'Project Scope'!$C$8:$C$107,DI$7),0)","v":0},{"$f":"IF(BK45=\"yes\",SUMIFS('Project Scope'!$AO$8:$AO$107,'Project Scope'!$AN$8:$AN$107,$I45,'Project Scope'!$C$8:$C$107,DJ$7)+SUMIFS('Project Scope'!$AX$8:$AX$107,'Project Scope'!$AW$8:$AW$107,$I45,'Project Scope'!$C$8:$C$107,DJ$7),0)","v":0},{"$f":"IF(BL45=\"yes\",SUMIFS('Project Scope'!$AO$8:$AO$107,'Project Scope'!$AN$8:$AN$107,$I45,'Project Scope'!$C$8:$C$107,DK$7)+SUMIFS('Project Scope'!$AX$8:$AX$107,'Project Scope'!$AW$8:$AW$107,$I45,'Project Scope'!$C$8:$C$107,DK$7),0)","v":0},null,"","","","","","","","","","","","","","","","","","","","","","","","","","","","","","","","","","","","","","","","","","","","","","","","","","",null,""]
[null,null,null,null,null,null,null,null,null,null,null,{"$f":"IF($C46=\"additional labor hours\",$K46*'Project Information'!$D$12,$K46*$J46)*IF($F46=\"Per Measure\",SUM($BN46:$DK46),1)","v":0},{"$f":"IF($C46=\"\",0,IF(VLOOKUP($C46,'Other Data'!$B$146:$C$156,2,FALSE)=\"M\",$L46,0))","v":0},0,null,null,null,null,null,null,null,null,null,null,null,null,null,null,null,null,null,null,null,null,null,null,null,null,null,null,null,null,null,null,null,null,null,null,null,null,null,null,null,null,null,null,null,null,null,null,null,null,null,null,null,{"$f":"IF(O46=\"yes\",SUMIFS('Project Scope'!$AO$8:$AO$107,'Project Scope'!$AN$8:$AN$107,$I46,'Project Scope'!$C$8:$C$107,BN$7)+SUMIFS('Project Scope'!$AX$8:$AX$107,'Project Scope'!$AW$8:$AW$107,$I46,'Project Scope'!$C$8:$C$107,BN$7),0)","v":0},{"$f":"IF(P46=\"yes\",SUMIFS('Project Scope'!$AO$8:$AO$107,'Project Scope'!$AN$8:$AN$107,$I46,'Project Scope'!$C$8:$C$107,BO$7)+SUMIFS('Project Scope'!$AX$8:$AX$107,'Project Scope'!$AW$8:$AW$107,$I46,'Project Scope'!$C$8:$C$107,BO$7),0)","v":0},{"$f":"IF(Q46=\"yes\",SUMIFS('Project Scope'!$AO$8:$AO$107,'Project Scope'!$AN$8:$AN$107,$I46,'Project Scope'!$C$8:$C$107,BP$7)+SUMIFS('Project Scope'!$AX$8:$AX$107,'Project Scope'!$AW$8:$AW$107,$I46,'Project Scope'!$C$8:$C$107,BP$7),0)","v":0},{"$f":"IF(R46=\"yes\",SUMIFS('Project Scope'!$AO$8:$AO$107,'Project Scope'!$AN$8:$AN$107,$I46,'Project Scope'!$C$8:$C$107,BQ$7)+SUMIFS('Project Scope'!$AX$8:$AX$107,'Project Scope'!$AW$8:$AW$107,$I46,'Project Scope'!$C$8:$C$107,BQ$7),0)","v":0},{"$f":"IF(S46=\"yes\",SUMIFS('Project Scope'!$AO$8:$AO$107,'Project Scope'!$AN$8:$AN$107,$I46,'Project Scope'!$C$8:$C$107,BR$7)+SUMIFS('Project Scope'!$AX$8:$AX$107,'Project Scope'!$AW$8:$AW$107,$I46,'Project Scope'!$C$8:$C$107,BR$7),0)","v":0},{"$f":"IF(T46=\"yes\",SUMIFS('Project Scope'!$AO$8:$AO$107,'Project Scope'!$AN$8:$AN$107,$I46,'Project Scope'!$C$8:$C$107,BS$7)+SUMIFS('Project Scope'!$AX$8:$AX$107,'Project Scope'!$AW$8:$AW$107,$I46,'Project Scope'!$C$8:$C$107,BS$7),0)","v":0},{"$f":"IF(U46=\"yes\",SUMIFS('Project Scope'!$AO$8:$AO$107,'Project Scope'!$AN$8:$AN$107,$I46,'Project Scope'!$C$8:$C$107,BT$7)+SUMIFS('Project Scope'!$AX$8:$AX$107,'Project Scope'!$AW$8:$AW$107,$I46,'Project Scope'!$C$8:$C$107,BT$7),0)","v":0},{"$f":"IF(V46=\"yes\",SUMIFS('Project Scope'!$AO$8:$AO$107,'Project Scope'!$AN$8:$AN$107,$I46,'Project Scope'!$C$8:$C$107,BU$7)+SUMIFS('Project Scope'!$AX$8:$AX$107,'Project Scope'!$AW$8:$AW$107,$I46,'Project Scope'!$C$8:$C$107,BU$7),0)","v":0},{"$f":"IF(W46=\"yes\",SUMIFS('Project Scope'!$AO$8:$AO$107,'Project Scope'!$AN$8:$AN$107,$I46,'Project Scope'!$C$8:$C$107,BV$7)+SUMIFS('Project Scope'!$AX$8:$AX$107,'Project Scope'!$AW$8:$AW$107,$I46,'Project Scope'!$C$8:$C$107,BV$7),0)","v":0},{"$f":"IF(X46=\"yes\",SUMIFS('Project Scope'!$AO$8:$AO$107,'Project Scope'!$AN$8:$AN$107,$I46,'Project Scope'!$C$8:$C$107,BW$7)+SUMIFS('Project Scope'!$AX$8:$AX$107,'Project Scope'!$AW$8:$AW$107,$I46,'Project Scope'!$C$8:$C$107,BW$7),0)","v":0},{"$f":"IF(Y46=\"yes\",SUMIFS('Project Scope'!$AO$8:$AO$107,'Project Scope'!$AN$8:$AN$107,$I46,'Project Scope'!$C$8:$C$107,BX$7)+SUMIFS('Project Scope'!$AX$8:$AX$107,'Project Scope'!$AW$8:$AW$107,$I46,'Project Scope'!$C$8:$C$107,BX$7),0)","v":0},{"$f":"IF(Z46=\"yes\",SUMIFS('Project Scope'!$AO$8:$AO$107,'Project Scope'!$AN$8:$AN$107,$I46,'Project Scope'!$C$8:$C$107,BY$7)+SUMIFS('Project Scope'!$AX$8:$AX$107,'Project Scope'!$AW$8:$AW$107,$I46,'Project Scope'!$C$8:$C$107,BY$7),0)","v":0},{"$f":"IF(AA46=\"yes\",SUMIFS('Project Scope'!$AO$8:$AO$107,'Project Scope'!$AN$8:$AN$107,$I46,'Project Scope'!$C$8:$C$107,BZ$7)+SUMIFS('Project Scope'!$AX$8:$AX$107,'Project Scope'!$AW$8:$AW$107,$I46,'Project Scope'!$C$8:$C$107,BZ$7),0)","v":0},{"$f":"IF(AB46=\"yes\",SUMIFS('Project Scope'!$AO$8:$AO$107,'Project Scope'!$AN$8:$AN$107,$I46,'Project Scope'!$C$8:$C$107,CA$7)+SUMIFS('Project Scope'!$AX$8:$AX$107,'Project Scope'!$AW$8:$AW$107,$I46,'Project Scope'!$C$8:$C$107,CA$7),0)","v":0},{"$f":"IF(AC46=\"yes\",SUMIFS('Project Scope'!$AO$8:$AO$107,'Project Scope'!$AN$8:$AN$107,$I46,'Project Scope'!$C$8:$C$107,CB$7)+SUMIFS('Project Scope'!$AX$8:$AX$107,'Project Scope'!$AW$8:$AW$107,$I46,'Project Scope'!$C$8:$C$107,CB$7),0)","v":0},{"$f":"IF(AD46=\"yes\",SUMIFS('Project Scope'!$AO$8:$AO$107,'Project Scope'!$AN$8:$AN$107,$I46,'Project Scope'!$C$8:$C$107,CC$7)+SUMIFS('Project Scope'!$AX$8:$AX$107,'Project Scope'!$AW$8:$AW$107,$I46,'Project Scope'!$C$8:$C$107,CC$7),0)","v":0},{"$f":"IF(AE46=\"yes\",SUMIFS('Project Scope'!$AO$8:$AO$107,'Project Scope'!$AN$8:$AN$107,$I46,'Project Scope'!$C$8:$C$107,CD$7)+SUMIFS('Project Scope'!$AX$8:$AX$107,'Project Scope'!$AW$8:$AW$107,$I46,'Project Scope'!$C$8:$C$107,CD$7),0)","v":0},{"$f":"IF(AF46=\"yes\",SUMIFS('Project Scope'!$AO$8:$AO$107,'Project Scope'!$AN$8:$AN$107,$I46,'Project Scope'!$C$8:$C$107,CE$7)+SUMIFS('Project Scope'!$AX$8:$AX$107,'Project Scope'!$AW$8:$AW$107,$I46,'Project Scope'!$C$8:$C$107,CE$7),0)","v":0},{"$f":"IF(AG46=\"yes\",SUMIFS('Project Scope'!$AO$8:$AO$107,'Project Scope'!$AN$8:$AN$107,$I46,'Project Scope'!$C$8:$C$107,CF$7)+SUMIFS('Project Scope'!$AX$8:$AX$107,'Project Scope'!$AW$8:$AW$107,$I46,'Project Scope'!$C$8:$C$107,CF$7),0)","v":0},{"$f":"IF(AH46=\"yes\",SUMIFS('Project Scope'!$AO$8:$AO$107,'Project Scope'!$AN$8:$AN$107,$I46,'Project Scope'!$C$8:$C$107,CG$7)+SUMIFS('Project Scope'!$AX$8:$AX$107,'Project Scope'!$AW$8:$AW$107,$I46,'Project Scope'!$C$8:$C$107,CG$7),0)","v":0},{"$f":"IF(AI46=\"yes\",SUMIFS('Project Scope'!$AO$8:$AO$107,'Project Scope'!$AN$8:$AN$107,$I46,'Project Scope'!$C$8:$C$107,CH$7)+SUMIFS('Project Scope'!$AX$8:$AX$107,'Project Scope'!$AW$8:$AW$107,$I46,'Project Scope'!$C$8:$C$107,CH$7),0)","v":0},{"$f":"IF(AJ46=\"yes\",SUMIFS('Project Scope'!$AO$8:$AO$107,'Project Scope'!$AN$8:$AN$107,$I46,'Project Scope'!$C$8:$C$107,CI$7)+SUMIFS('Project Scope'!$AX$8:$AX$107,'Project Scope'!$AW$8:$AW$107,$I46,'Project Scope'!$C$8:$C$107,CI$7),0)","v":0},{"$f":"IF(AK46=\"yes\",SUMIFS('Project Scope'!$AO$8:$AO$107,'Project Scope'!$AN$8:$AN$107,$I46,'Project Scope'!$C$8:$C$107,CJ$7)+SUMIFS('Project Scope'!$AX$8:$AX$107,'Project Scope'!$AW$8:$AW$107,$I46,'Project Scope'!$C$8:$C$107,CJ$7),0)","v":0},{"$f":"IF(AL46=\"yes\",SUMIFS('Project Scope'!$AO$8:$AO$107,'Project Scope'!$AN$8:$AN$107,$I46,'Project Scope'!$C$8:$C$107,CK$7)+SUMIFS('Project Scope'!$AX$8:$AX$107,'Project Scope'!$AW$8:$AW$107,$I46,'Project Scope'!$C$8:$C$107,CK$7),0)","v":0},{"$f":"IF(AM46=\"yes\",SUMIFS('Project Scope'!$AO$8:$AO$107,'Project Scope'!$AN$8:$AN$107,$I46,'Project Scope'!$C$8:$C$107,CL$7)+SUMIFS('Project Scope'!$AX$8:$AX$107,'Project Scope'!$AW$8:$AW$107,$I46,'Project Scope'!$C$8:$C$107,CL$7),0)","v":0},{"$f":"IF(AN46=\"yes\",SUMIFS('Project Scope'!$AO$8:$AO$107,'Project Scope'!$AN$8:$AN$107,$I46,'Project Scope'!$C$8:$C$107,CM$7)+SUMIFS('Project Scope'!$AX$8:$AX$107,'Project Scope'!$AW$8:$AW$107,$I46,'Project Scope'!$C$8:$C$107,CM$7),0)","v":0},{"$f":"IF(AO46=\"yes\",SUMIFS('Project Scope'!$AO$8:$AO$107,'Project Scope'!$AN$8:$AN$107,$I46,'Project Scope'!$C$8:$C$107,CN$7)+SUMIFS('Project Scope'!$AX$8:$AX$107,'Project Scope'!$AW$8:$AW$107,$I46,'Project Scope'!$C$8:$C$107,CN$7),0)","v":0},{"$f":"IF(AP46=\"yes\",SUMIFS('Project Scope'!$AO$8:$AO$107,'Project Scope'!$AN$8:$AN$107,$I46,'Project Scope'!$C$8:$C$107,CO$7)+SUMIFS('Project Scope'!$AX$8:$AX$107,'Project Scope'!$AW$8:$AW$107,$I46,'Project Scope'!$C$8:$C$107,CO$7),0)","v":0},{"$f":"IF(AQ46=\"yes\",SUMIFS('Project Scope'!$AO$8:$AO$107,'Project Scope'!$AN$8:$AN$107,$I46,'Project Scope'!$C$8:$C$107,CP$7)+SUMIFS('Project Scope'!$AX$8:$AX$107,'Project Scope'!$AW$8:$AW$107,$I46,'Project Scope'!$C$8:$C$107,CP$7),0)","v":0},{"$f":"IF(AR46=\"yes\",SUMIFS('Project Scope'!$AO$8:$AO$107,'Project Scope'!$AN$8:$AN$107,$I46,'Project Scope'!$C$8:$C$107,CQ$7)+SUMIFS('Project Scope'!$AX$8:$AX$107,'Project Scope'!$AW$8:$AW$107,$I46,'Project Scope'!$C$8:$C$107,CQ$7),0)","v":0},{"$f":"IF(AS46=\"yes\",SUMIFS('Project Scope'!$AO$8:$AO$107,'Project Scope'!$AN$8:$AN$107,$I46,'Project Scope'!$C$8:$C$107,CR$7)+SUMIFS('Project Scope'!$AX$8:$AX$107,'Project Scope'!$AW$8:$AW$107,$I46,'Project Scope'!$C$8:$C$107,CR$7),0)","v":0},{"$f":"IF(AT46=\"yes\",SUMIFS('Project Scope'!$AO$8:$AO$107,'Project Scope'!$AN$8:$AN$107,$I46,'Project Scope'!$C$8:$C$107,CS$7)+SUMIFS('Project Scope'!$AX$8:$AX$107,'Project Scope'!$AW$8:$AW$107,$I46,'Project Scope'!$C$8:$C$107,CS$7),0)","v":0},{"$f":"IF(AU46=\"yes\",SUMIFS('Project Scope'!$AO$8:$AO$107,'Project Scope'!$AN$8:$AN$107,$I46,'Project Scope'!$C$8:$C$107,CT$7)+SUMIFS('Project Scope'!$AX$8:$AX$107,'Project Scope'!$AW$8:$AW$107,$I46,'Project Scope'!$C$8:$C$107,CT$7),0)","v":0},{"$f":"IF(AV46=\"yes\",SUMIFS('Project Scope'!$AO$8:$AO$107,'Project Scope'!$AN$8:$AN$107,$I46,'Project Scope'!$C$8:$C$107,CU$7)+SUMIFS('Project Scope'!$AX$8:$AX$107,'Project Scope'!$AW$8:$AW$107,$I46,'Project Scope'!$C$8:$C$107,CU$7),0)","v":0},{"$f":"IF(AW46=\"yes\",SUMIFS('Project Scope'!$AO$8:$AO$107,'Project Scope'!$AN$8:$AN$107,$I46,'Project Scope'!$C$8:$C$107,CV$7)+SUMIFS('Project Scope'!$AX$8:$AX$107,'Project Scope'!$AW$8:$AW$107,$I46,'Project Scope'!$C$8:$C$107,CV$7),0)","v":0},{"$f":"IF(AX46=\"yes\",SUMIFS('Project Scope'!$AO$8:$AO$107,'Project Scope'!$AN$8:$AN$107,$I46,'Project Scope'!$C$8:$C$107,CW$7)+SUMIFS('Project Scope'!$AX$8:$AX$107,'Project Scope'!$AW$8:$AW$107,$I46,'Project Scope'!$C$8:$C$107,CW$7),0)","v":0},{"$f":"IF(AY46=\"yes\",SUMIFS('Project Scope'!$AO$8:$AO$107,'Project Scope'!$AN$8:$AN$107,$I46,'Project Scope'!$C$8:$C$107,CX$7)+SUMIFS('Project Scope'!$AX$8:$AX$107,'Project Scope'!$AW$8:$AW$107,$I46,'Project Scope'!$C$8:$C$107,CX$7),0)","v":0},{"$f":"IF(AZ46=\"yes\",SUMIFS('Project Scope'!$AO$8:$AO$107,'Project Scope'!$AN$8:$AN$107,$I46,'Project Scope'!$C$8:$C$107,CY$7)+SUMIFS('Project Scope'!$AX$8:$AX$107,'Project Scope'!$AW$8:$AW$107,$I46,'Project Scope'!$C$8:$C$107,CY$7),0)","v":0},{"$f":"IF(BA46=\"yes\",SUMIFS('Project Scope'!$AO$8:$AO$107,'Project Scope'!$AN$8:$AN$107,$I46,'Project Scope'!$C$8:$C$107,CZ$7)+SUMIFS('Project Scope'!$AX$8:$AX$107,'Project Scope'!$AW$8:$AW$107,$I46,'Project Scope'!$C$8:$C$107,CZ$7),0)","v":0},{"$f":"IF(BB46=\"yes\",SUMIFS('Project Scope'!$AO$8:$AO$107,'Project Scope'!$AN$8:$AN$107,$I46,'Project Scope'!$C$8:$C$107,DA$7)+SUMIFS('Project Scope'!$AX$8:$AX$107,'Project Scope'!$AW$8:$AW$107,$I46,'Project Scope'!$C$8:$C$107,DA$7),0)","v":0},{"$f":"IF(BC46=\"yes\",SUMIFS('Project Scope'!$AO$8:$AO$107,'Project Scope'!$AN$8:$AN$107,$I46,'Project Scope'!$C$8:$C$107,DB$7)+SUMIFS('Project Scope'!$AX$8:$AX$107,'Project Scope'!$AW$8:$AW$107,$I46,'Project Scope'!$C$8:$C$107,DB$7),0)","v":0},{"$f":"IF(BD46=\"yes\",SUMIFS('Project Scope'!$AO$8:$AO$107,'Project Scope'!$AN$8:$AN$107,$I46,'Project Scope'!$C$8:$C$107,DC$7)+SUMIFS('Project Scope'!$AX$8:$AX$107,'Project Scope'!$AW$8:$AW$107,$I46,'Project Scope'!$C$8:$C$107,DC$7),0)","v":0},{"$f":"IF(BE46=\"yes\",SUMIFS('Project Scope'!$AO$8:$AO$107,'Project Scope'!$AN$8:$AN$107,$I46,'Project Scope'!$C$8:$C$107,DD$7)+SUMIFS('Project Scope'!$AX$8:$AX$107,'Project Scope'!$AW$8:$AW$107,$I46,'Project Scope'!$C$8:$C$107,DD$7),0)","v":0},{"$f":"IF(BF46=\"yes\",SUMIFS('Project Scope'!$AO$8:$AO$107,'Project Scope'!$AN$8:$AN$107,$I46,'Project Scope'!$C$8:$C$107,DE$7)+SUMIFS('Project Scope'!$AX$8:$AX$107,'Project Scope'!$AW$8:$AW$107,$I46,'Project Scope'!$C$8:$C$107,DE$7),0)","v":0},{"$f":"IF(BG46=\"yes\",SUMIFS('Project Scope'!$AO$8:$AO$107,'Project Scope'!$AN$8:$AN$107,$I46,'Project Scope'!$C$8:$C$107,DF$7)+SUMIFS('Project Scope'!$AX$8:$AX$107,'Project Scope'!$AW$8:$AW$107,$I46,'Project Scope'!$C$8:$C$107,DF$7),0)","v":0},{"$f":"IF(BH46=\"yes\",SUMIFS('Project Scope'!$AO$8:$AO$107,'Project Scope'!$AN$8:$AN$107,$I46,'Project Scope'!$C$8:$C$107,DG$7)+SUMIFS('Project Scope'!$AX$8:$AX$107,'Project Scope'!$AW$8:$AW$107,$I46,'Project Scope'!$C$8:$C$107,DG$7),0)","v":0},{"$f":"IF(BI46=\"yes\",SUMIFS('Project Scope'!$AO$8:$AO$107,'Project Scope'!$AN$8:$AN$107,$I46,'Project Scope'!$C$8:$C$107,DH$7)+SUMIFS('Project Scope'!$AX$8:$AX$107,'Project Scope'!$AW$8:$AW$107,$I46,'Project Scope'!$C$8:$C$107,DH$7),0)","v":0},{"$f":"IF(BJ46=\"yes\",SUMIFS('Project Scope'!$AO$8:$AO$107,'Project Scope'!$AN$8:$AN$107,$I46,'Project Scope'!$C$8:$C$107,DI$7)+SUMIFS('Project Scope'!$AX$8:$AX$107,'Project Scope'!$AW$8:$AW$107,$I46,'Project Scope'!$C$8:$C$107,DI$7),0)","v":0},{"$f":"IF(BK46=\"yes\",SUMIFS('Project Scope'!$AO$8:$AO$107,'Project Scope'!$AN$8:$AN$107,$I46,'Project Scope'!$C$8:$C$107,DJ$7)+SUMIFS('Project Scope'!$AX$8:$AX$107,'Project Scope'!$AW$8:$AW$107,$I46,'Project Scope'!$C$8:$C$107,DJ$7),0)","v":0},{"$f":"IF(BL46=\"yes\",SUMIFS('Project Scope'!$AO$8:$AO$107,'Project Scope'!$AN$8:$AN$107,$I46,'Project Scope'!$C$8:$C$107,DK$7)+SUMIFS('Project Scope'!$AX$8:$AX$107,'Project Scope'!$AW$8:$AW$107,$I46,'Project Scope'!$C$8:$C$107,DK$7),0)","v":0},null,"","","","","","","","","","","","","","","","","","","","","","","","","","","","","","","","","","","","","","","","","","","","","","","","","","",null,""]
[null,null,null,null,null,null,null,null,null,null,null,{"$f":"IF($C47=\"additional labor hours\",$K47*'Project Information'!$D$12,$K47*$J47)*IF($F47=\"Per Measure\",SUM($BN47:$DK47),1)","v":0},{"$f":"IF($C47=\"\",0,IF(VLOOKUP($C47,'Other Data'!$B$146:$C$156,2,FALSE)=\"M\",$L47,0))","v":0},0,null,null,null,null,null,null,null,null,null,null,null,null,null,null,null,null,null,null,null,null,null,null,null,null,null,null,null,null,null,null,null,null,null,null,null,null,null,null,null,null,null,null,null,null,null,null,null,null,null,null,null,{"$f":"IF(O47=\"yes\",SUMIFS('Project Scope'!$AO$8:$AO$107,'Project Scope'!$AN$8:$AN$107,$I47,'Project Scope'!$C$8:$C$107,BN$7)+SUMIFS('Project Scope'!$AX$8:$AX$107,'Project Scope'!$AW$8:$AW$107,$I47,'Project Scope'!$C$8:$C$107,BN$7),0)","v":0},{"$f":"IF(P47=\"yes\",SUMIFS('Project Scope'!$AO$8:$AO$107,'Project Scope'!$AN$8:$AN$107,$I47,'Project Scope'!$C$8:$C$107,BO$7)+SUMIFS('Project Scope'!$AX$8:$AX$107,'Project Scope'!$AW$8:$AW$107,$I47,'Project Scope'!$C$8:$C$107,BO$7),0)","v":0},{"$f":"IF(Q47=\"yes\",SUMIFS('Project Scope'!$AO$8:$AO$107,'Project Scope'!$AN$8:$AN$107,$I47,'Project Scope'!$C$8:$C$107,BP$7)+SUMIFS('Project Scope'!$AX$8:$AX$107,'Project Scope'!$AW$8:$AW$107,$I47,'Project Scope'!$C$8:$C$107,BP$7),0)","v":0},{"$f":"IF(R47=\"yes\",SUMIFS('Project Scope'!$AO$8:$AO$107,'Project Scope'!$AN$8:$AN$107,$I47,'Project Scope'!$C$8:$C$107,BQ$7)+SUMIFS('Project Scope'!$AX$8:$AX$107,'Project Scope'!$AW$8:$AW$107,$I47,'Project Scope'!$C$8:$C$107,BQ$7),0)","v":0},{"$f":"IF(S47=\"yes\",SUMIFS('Project Scope'!$AO$8:$AO$107,'Project Scope'!$AN$8:$AN$107,$I47,'Project Scope'!$C$8:$C$107,BR$7)+SUMIFS('Project Scope'!$AX$8:$AX$107,'Project Scope'!$AW$8:$AW$107,$I47,'Project Scope'!$C$8:$C$107,BR$7),0)","v":0},{"$f":"IF(T47=\"yes\",SUMIFS('Project Scope'!$AO$8:$AO$107,'Project Scope'!$AN$8:$AN$107,$I47,'Project Scope'!$C$8:$C$107,BS$7)+SUMIFS('Project Scope'!$AX$8:$AX$107,'Project Scope'!$AW$8:$AW$107,$I47,'Project Scope'!$C$8:$C$107,BS$7),0)","v":0},{"$f":"IF(U47=\"yes\",SUMIFS('Project Scope'!$AO$8:$AO$107,'Project Scope'!$AN$8:$AN$107,$I47,'Project Scope'!$C$8:$C$107,BT$7)+SUMIFS('Project Scope'!$AX$8:$AX$107,'Project Scope'!$AW$8:$AW$107,$I47,'Project Scope'!$C$8:$C$107,BT$7),0)","v":0},{"$f":"IF(V47=\"yes\",SUMIFS('Project Scope'!$AO$8:$AO$107,'Project Scope'!$AN$8:$AN$107,$I47,'Project Scope'!$C$8:$C$107,BU$7)+SUMIFS('Project Scope'!$AX$8:$AX$107,'Project Scope'!$AW$8:$AW$107,$I47,'Project Scope'!$C$8:$C$107,BU$7),0)","v":0},{"$f":"IF(W47=\"yes\",SUMIFS('Project Scope'!$AO$8:$AO$107,'Project Scope'!$AN$8:$AN$107,$I47,'Project Scope'!$C$8:$C$107,BV$7)+SUMIFS('Project Scope'!$AX$8:$AX$107,'Project Scope'!$AW$8:$AW$107,$I47,'Project Scope'!$C$8:$C$107,BV$7),0)","v":0},{"$f":"IF(X47=\"yes\",SUMIFS('Project Scope'!$AO$8:$AO$107,'Project Scope'!$AN$8:$AN$107,$I47,'Project Scope'!$C$8:$C$107,BW$7)+SUMIFS('Project Scope'!$AX$8:$AX$107,'Project Scope'!$AW$8:$AW$107,$I47,'Project Scope'!$C$8:$C$107,BW$7),0)","v":0},{"$f":"IF(Y47=\"yes\",SUMIFS('Project Scope'!$AO$8:$AO$107,'Project Scope'!$AN$8:$AN$107,$I47,'Project Scope'!$C$8:$C$107,BX$7)+SUMIFS('Project Scope'!$AX$8:$AX$107,'Project Scope'!$AW$8:$AW$107,$I47,'Project Scope'!$C$8:$C$107,BX$7),0)","v":0},{"$f":"IF(Z47=\"yes\",SUMIFS('Project Scope'!$AO$8:$AO$107,'Project Scope'!$AN$8:$AN$107,$I47,'Project Scope'!$C$8:$C$107,BY$7)+SUMIFS('Project Scope'!$AX$8:$AX$107,'Project Scope'!$AW$8:$AW$107,$I47,'Project Scope'!$C$8:$C$107,BY$7),0)","v":0},{"$f":"IF(AA47=\"yes\",SUMIFS('Project Scope'!$AO$8:$AO$107,'Project Scope'!$AN$8:$AN$107,$I47,'Project Scope'!$C$8:$C$107,BZ$7)+SUMIFS('Project Scope'!$AX$8:$AX$107,'Project Scope'!$AW$8:$AW$107,$I47,'Project Scope'!$C$8:$C$107,BZ$7),0)","v":0},{"$f":"IF(AB47=\"yes\",SUMIFS('Project Scope'!$AO$8:$AO$107,'Project Scope'!$AN$8:$AN$107,$I47,'Project Scope'!$C$8:$C$107,CA$7)+SUMIFS('Project Scope'!$AX$8:$AX$107,'Project Scope'!$AW$8:$AW$107,$I47,'Project Scope'!$C$8:$C$107,CA$7),0)","v":0},{"$f":"IF(AC47=\"yes\",SUMIFS('Project Scope'!$AO$8:$AO$107,'Project Scope'!$AN$8:$AN$107,$I47,'Project Scope'!$C$8:$C$107,CB$7)+SUMIFS('Project Scope'!$AX$8:$AX$107,'Project Scope'!$AW$8:$AW$107,$I47,'Project Scope'!$C$8:$C$107,CB$7),0)","v":0},{"$f":"IF(AD47=\"yes\",SUMIFS('Project Scope'!$AO$8:$AO$107,'Project Scope'!$AN$8:$AN$107,$I47,'Project Scope'!$C$8:$C$107,CC$7)+SUMIFS('Project Scope'!$AX$8:$AX$107,'Project Scope'!$AW$8:$AW$107,$I47,'Project Scope'!$C$8:$C$107,CC$7),0)","v":0},{"$f":"IF(AE47=\"yes\",SUMIFS('Project Scope'!$AO$8:$AO$107,'Project Scope'!$AN$8:$AN$107,$I47,'Project Scope'!$C$8:$C$107,CD$7)+SUMIFS('Project Scope'!$AX$8:$AX$107,'Project Scope'!$AW$8:$AW$107,$I47,'Project Scope'!$C$8:$C$107,CD$7),0)","v":0},{"$f":"IF(AF47=\"yes\",SUMIFS('Project Scope'!$AO$8:$AO$107,'Project Scope'!$AN$8:$AN$107,$I47,'Project Scope'!$C$8:$C$107,CE$7)+SUMIFS('Project Scope'!$AX$8:$AX$107,'Project Scope'!$AW$8:$AW$107,$I47,'Project Scope'!$C$8:$C$107,CE$7),0)","v":0},{"$f":"IF(AG47=\"yes\",SUMIFS('Project Scope'!$AO$8:$AO$107,'Project Scope'!$AN$8:$AN$107,$I47,'Project Scope'!$C$8:$C$107,CF$7)+SUMIFS('Project Scope'!$AX$8:$AX$107,'Project Scope'!$AW$8:$AW$107,$I47,'Project Scope'!$C$8:$C$107,CF$7),0)","v":0},{"$f":"IF(AH47=\"yes\",SUMIFS('Project Scope'!$AO$8:$AO$107,'Project Scope'!$AN$8:$AN$107,$I47,'Project Scope'!$C$8:$C$107,CG$7)+SUMIFS('Project Scope'!$AX$8:$AX$107,'Project Scope'!$AW$8:$AW$107,$I47,'Project Scope'!$C$8:$C$107,CG$7),0)","v":0},{"$f":"IF(AI47=\"yes\",SUMIFS('Project Scope'!$AO$8:$AO$107,'Project Scope'!$AN$8:$AN$107,$I47,'Project Scope'!$C$8:$C$107,CH$7)+SUMIFS('Project Scope'!$AX$8:$AX$107,'Project Scope'!$AW$8:$AW$107,$I47,'Project Scope'!$C$8:$C$107,CH$7),0)","v":0},{"$f":"IF(AJ47=\"yes\",SUMIFS('Project Scope'!$AO$8:$AO$107,'Project Scope'!$AN$8:$AN$107,$I47,'Project Scope'!$C$8:$C$107,CI$7)+SUMIFS('Project Scope'!$AX$8:$AX$107,'Project Scope'!$AW$8:$AW$107,$I47,'Project Scope'!$C$8:$C$107,CI$7),0)","v":0},{"$f":"IF(AK47=\"yes\",SUMIFS('Project Scope'!$AO$8:$AO$107,'Project Scope'!$AN$8:$AN$107,$I47,'Project Scope'!$C$8:$C$107,CJ$7)+SUMIFS('Project Scope'!$AX$8:$AX$107,'Project Scope'!$AW$8:$AW$107,$I47,'Project Scope'!$C$8:$C$107,CJ$7),0)","v":0},{"$f":"IF(AL47=\"yes\",SUMIFS('Project Scope'!$AO$8:$AO$107,'Project Scope'!$AN$8:$AN$107,$I47,'Project Scope'!$C$8:$C$107,CK$7)+SUMIFS('Project Scope'!$AX$8:$AX$107,'Project Scope'!$AW$8:$AW$107,$I47,'Project Scope'!$C$8:$C$107,CK$7),0)","v":0},{"$f":"IF(AM47=\"yes\",SUMIFS('Project Scope'!$AO$8:$AO$107,'Project Scope'!$AN$8:$AN$107,$I47,'Project Scope'!$C$8:$C$107,CL$7)+SUMIFS('Project Scope'!$AX$8:$AX$107,'Project Scope'!$AW$8:$AW$107,$I47,'Project Scope'!$C$8:$C$107,CL$7),0)","v":0},{"$f":"IF(AN47=\"yes\",SUMIFS('Project Scope'!$AO$8:$AO$107,'Project Scope'!$AN$8:$AN$107,$I47,'Project Scope'!$C$8:$C$107,CM$7)+SUMIFS('Project Scope'!$AX$8:$AX$107,'Project Scope'!$AW$8:$AW$107,$I47,'Project Scope'!$C$8:$C$107,CM$7),0)","v":0},{"$f":"IF(AO47=\"yes\",SUMIFS('Project Scope'!$AO$8:$AO$107,'Project Scope'!$AN$8:$AN$107,$I47,'Project Scope'!$C$8:$C$107,CN$7)+SUMIFS('Project Scope'!$AX$8:$AX$107,'Project Scope'!$AW$8:$AW$107,$I47,'Project Scope'!$C$8:$C$107,CN$7),0)","v":0},{"$f":"IF(AP47=\"yes\",SUMIFS('Project Scope'!$AO$8:$AO$107,'Project Scope'!$AN$8:$AN$107,$I47,'Project Scope'!$C$8:$C$107,CO$7)+SUMIFS('Project Scope'!$AX$8:$AX$107,'Project Scope'!$AW$8:$AW$107,$I47,'Project Scope'!$C$8:$C$107,CO$7),0)","v":0},{"$f":"IF(AQ47=\"yes\",SUMIFS('Project Scope'!$AO$8:$AO$107,'Project Scope'!$AN$8:$AN$107,$I47,'Project Scope'!$C$8:$C$107,CP$7)+SUMIFS('Project Scope'!$AX$8:$AX$107,'Project Scope'!$AW$8:$AW$107,$I47,'Project Scope'!$C$8:$C$107,CP$7),0)","v":0},{"$f":"IF(AR47=\"yes\",SUMIFS('Project Scope'!$AO$8:$AO$107,'Project Scope'!$AN$8:$AN$107,$I47,'Project Scope'!$C$8:$C$107,CQ$7)+SUMIFS('Project Scope'!$AX$8:$AX$107,'Project Scope'!$AW$8:$AW$107,$I47,'Project Scope'!$C$8:$C$107,CQ$7),0)","v":0},{"$f":"IF(AS47=\"yes\",SUMIFS('Project Scope'!$AO$8:$AO$107,'Project Scope'!$AN$8:$AN$107,$I47,'Project Scope'!$C$8:$C$107,CR$7)+SUMIFS('Project Scope'!$AX$8:$AX$107,'Project Scope'!$AW$8:$AW$107,$I47,'Project Scope'!$C$8:$C$107,CR$7),0)","v":0},{"$f":"IF(AT47=\"yes\",SUMIFS('Project Scope'!$AO$8:$AO$107,'Project Scope'!$AN$8:$AN$107,$I47,'Project Scope'!$C$8:$C$107,CS$7)+SUMIFS('Project Scope'!$AX$8:$AX$107,'Project Scope'!$AW$8:$AW$107,$I47,'Project Scope'!$C$8:$C$107,CS$7),0)","v":0},{"$f":"IF(AU47=\"yes\",SUMIFS('Project Scope'!$AO$8:$AO$107,'Project Scope'!$AN$8:$AN$107,$I47,'Project Scope'!$C$8:$C$107,CT$7)+SUMIFS('Project Scope'!$AX$8:$AX$107,'Project Scope'!$AW$8:$AW$107,$I47,'Project Scope'!$C$8:$C$107,CT$7),0)","v":0},{"$f":"IF(AV47=\"yes\",SUMIFS('Project Scope'!$AO$8:$AO$107,'Project Scope'!$AN$8:$AN$107,$I47,'Project Scope'!$C$8:$C$107,CU$7)+SUMIFS('Project Scope'!$AX$8:$AX$107,'Project Scope'!$AW$8:$AW$107,$I47,'Project Scope'!$C$8:$C$107,CU$7),0)","v":0},{"$f":"IF(AW47=\"yes\",SUMIFS('Project Scope'!$AO$8:$AO$107,'Project Scope'!$AN$8:$AN$107,$I47,'Project Scope'!$C$8:$C$107,CV$7)+SUMIFS('Project Scope'!$AX$8:$AX$107,'Project Scope'!$AW$8:$AW$107,$I47,'Project Scope'!$C$8:$C$107,CV$7),0)","v":0},{"$f":"IF(AX47=\"yes\",SUMIFS('Project Scope'!$AO$8:$AO$107,'Project Scope'!$AN$8:$AN$107,$I47,'Project Scope'!$C$8:$C$107,CW$7)+SUMIFS('Project Scope'!$AX$8:$AX$107,'Project Scope'!$AW$8:$AW$107,$I47,'Project Scope'!$C$8:$C$107,CW$7),0)","v":0},{"$f":"IF(AY47=\"yes\",SUMIFS('Project Scope'!$AO$8:$AO$107,'Project Scope'!$AN$8:$AN$107,$I47,'Project Scope'!$C$8:$C$107,CX$7)+SUMIFS('Project Scope'!$AX$8:$AX$107,'Project Scope'!$AW$8:$AW$107,$I47,'Project Scope'!$C$8:$C$107,CX$7),0)","v":0},{"$f":"IF(AZ47=\"yes\",SUMIFS('Project Scope'!$AO$8:$AO$107,'Project Scope'!$AN$8:$AN$107,$I47,'Project Scope'!$C$8:$C$107,CY$7)+SUMIFS('Project Scope'!$AX$8:$AX$107,'Project Scope'!$AW$8:$AW$107,$I47,'Project Scope'!$C$8:$C$107,CY$7),0)","v":0},{"$f":"IF(BA47=\"yes\",SUMIFS('Project Scope'!$AO$8:$AO$107,'Project Scope'!$AN$8:$AN$107,$I47,'Project Scope'!$C$8:$C$107,CZ$7)+SUMIFS('Project Scope'!$AX$8:$AX$107,'Project Scope'!$AW$8:$AW$107,$I47,'Project Scope'!$C$8:$C$107,CZ$7),0)","v":0},{"$f":"IF(BB47=\"yes\",SUMIFS('Project Scope'!$AO$8:$AO$107,'Project Scope'!$AN$8:$AN$107,$I47,'Project Scope'!$C$8:$C$107,DA$7)+SUMIFS('Project Scope'!$AX$8:$AX$107,'Project Scope'!$AW$8:$AW$107,$I47,'Project Scope'!$C$8:$C$107,DA$7),0)","v":0},{"$f":"IF(BC47=\"yes\",SUMIFS('Project Scope'!$AO$8:$AO$107,'Project Scope'!$AN$8:$AN$107,$I47,'Project Scope'!$C$8:$C$107,DB$7)+SUMIFS('Project Scope'!$AX$8:$AX$107,'Project Scope'!$AW$8:$AW$107,$I47,'Project Scope'!$C$8:$C$107,DB$7),0)","v":0},{"$f":"IF(BD47=\"yes\",SUMIFS('Project Scope'!$AO$8:$AO$107,'Project Scope'!$AN$8:$AN$107,$I47,'Project Scope'!$C$8:$C$107,DC$7)+SUMIFS('Project Scope'!$AX$8:$AX$107,'Project Scope'!$AW$8:$AW$107,$I47,'Project Scope'!$C$8:$C$107,DC$7),0)","v":0},{"$f":"IF(BE47=\"yes\",SUMIFS('Project Scope'!$AO$8:$AO$107,'Project Scope'!$AN$8:$AN$107,$I47,'Project Scope'!$C$8:$C$107,DD$7)+SUMIFS('Project Scope'!$AX$8:$AX$107,'Project Scope'!$AW$8:$AW$107,$I47,'Project Scope'!$C$8:$C$107,DD$7),0)","v":0},{"$f":"IF(BF47=\"yes\",SUMIFS('Project Scope'!$AO$8:$AO$107,'Project Scope'!$AN$8:$AN$107,$I47,'Project Scope'!$C$8:$C$107,DE$7)+SUMIFS('Project Scope'!$AX$8:$AX$107,'Project Scope'!$AW$8:$AW$107,$I47,'Project Scope'!$C$8:$C$107,DE$7),0)","v":0},{"$f":"IF(BG47=\"yes\",SUMIFS('Project Scope'!$AO$8:$AO$107,'Project Scope'!$AN$8:$AN$107,$I47,'Project Scope'!$C$8:$C$107,DF$7)+SUMIFS('Project Scope'!$AX$8:$AX$107,'Project Scope'!$AW$8:$AW$107,$I47,'Project Scope'!$C$8:$C$107,DF$7),0)","v":0},{"$f":"IF(BH47=\"yes\",SUMIFS('Project Scope'!$AO$8:$AO$107,'Project Scope'!$AN$8:$AN$107,$I47,'Project Scope'!$C$8:$C$107,DG$7)+SUMIFS('Project Scope'!$AX$8:$AX$107,'Project Scope'!$AW$8:$AW$107,$I47,'Project Scope'!$C$8:$C$107,DG$7),0)","v":0},{"$f":"IF(BI47=\"yes\",SUMIFS('Project Scope'!$AO$8:$AO$107,'Project Scope'!$AN$8:$AN$107,$I47,'Project Scope'!$C$8:$C$107,DH$7)+SUMIFS('Project Scope'!$AX$8:$AX$107,'Project Scope'!$AW$8:$AW$107,$I47,'Project Scope'!$C$8:$C$107,DH$7),0)","v":0},{"$f":"IF(BJ47=\"yes\",SUMIFS('Project Scope'!$AO$8:$AO$107,'Project Scope'!$AN$8:$AN$107,$I47,'Project Scope'!$C$8:$C$107,DI$7)+SUMIFS('Project Scope'!$AX$8:$AX$107,'Project Scope'!$AW$8:$AW$107,$I47,'Project Scope'!$C$8:$C$107,DI$7),0)","v":0},{"$f":"IF(BK47=\"yes\",SUMIFS('Project Scope'!$AO$8:$AO$107,'Project Scope'!$AN$8:$AN$107,$I47,'Project Scope'!$C$8:$C$107,DJ$7)+SUMIFS('Project Scope'!$AX$8:$AX$107,'Project Scope'!$AW$8:$AW$107,$I47,'Project Scope'!$C$8:$C$107,DJ$7),0)","v":0},{"$f":"IF(BL47=\"yes\",SUMIFS('Project Scope'!$AO$8:$AO$107,'Project Scope'!$AN$8:$AN$107,$I47,'Project Scope'!$C$8:$C$107,DK$7)+SUMIFS('Project Scope'!$AX$8:$AX$107,'Project Scope'!$AW$8:$AW$107,$I47,'Project Scope'!$C$8:$C$107,DK$7),0)","v":0},null,"","","","","","","","","","","","","","","","","","","","","","","","","","","","","","","","","","","","","","","","","","","","","","","","","","",null,""]
[null,null,null,null,null,null,null,null,null,null,null,{"$f":"IF($C48=\"additional labor hours\",$K48*'Project Information'!$D$12,$K48*$J48)*IF($F48=\"Per Measure\",SUM($BN48:$DK48),1)","v":0},{"$f":"IF($C48=\"\",0,IF(VLOOKUP($C48,'Other Data'!$B$146:$C$156,2,FALSE)=\"M\",$L48,0))","v":0},0,null,null,null,null,null,null,null,null,null,null,null,null,null,null,null,null,null,null,null,null,null,null,null,null,null,null,null,null,null,null,null,null,null,null,null,null,null,null,null,null,null,null,null,null,null,null,null,null,null,null,null,{"$f":"IF(O48=\"yes\",SUMIFS('Project Scope'!$AO$8:$AO$107,'Project Scope'!$AN$8:$AN$107,$I48,'Project Scope'!$C$8:$C$107,BN$7)+SUMIFS('Project Scope'!$AX$8:$AX$107,'Project Scope'!$AW$8:$AW$107,$I48,'Project Scope'!$C$8:$C$107,BN$7),0)","v":0},{"$f":"IF(P48=\"yes\",SUMIFS('Project Scope'!$AO$8:$AO$107,'Project Scope'!$AN$8:$AN$107,$I48,'Project Scope'!$C$8:$C$107,BO$7)+SUMIFS('Project Scope'!$AX$8:$AX$107,'Project Scope'!$AW$8:$AW$107,$I48,'Project Scope'!$C$8:$C$107,BO$7),0)","v":0},{"$f":"IF(Q48=\"yes\",SUMIFS('Project Scope'!$AO$8:$AO$107,'Project Scope'!$AN$8:$AN$107,$I48,'Project Scope'!$C$8:$C$107,BP$7)+SUMIFS('Project Scope'!$AX$8:$AX$107,'Project Scope'!$AW$8:$AW$107,$I48,'Project Scope'!$C$8:$C$107,BP$7),0)","v":0},{"$f":"IF(R48=\"yes\",SUMIFS('Project Scope'!$AO$8:$AO$107,'Project Scope'!$AN$8:$AN$107,$I48,'Project Scope'!$C$8:$C$107,BQ$7)+SUMIFS('Project Scope'!$AX$8:$AX$107,'Project Scope'!$AW$8:$AW$107,$I48,'Project Scope'!$C$8:$C$107,BQ$7),0)","v":0},{"$f":"IF(S48=\"yes\",SUMIFS('Project Scope'!$AO$8:$AO$107,'Project Scope'!$AN$8:$AN$107,$I48,'Project Scope'!$C$8:$C$107,BR$7)+SUMIFS('Project Scope'!$AX$8:$AX$107,'Project Scope'!$AW$8:$AW$107,$I48,'Project Scope'!$C$8:$C$107,BR$7),0)","v":0},{"$f":"IF(T48=\"yes\",SUMIFS('Project Scope'!$AO$8:$AO$107,'Project Scope'!$AN$8:$AN$107,$I48,'Project Scope'!$C$8:$C$107,BS$7)+SUMIFS('Project Scope'!$AX$8:$AX$107,'Project Scope'!$AW$8:$AW$107,$I48,'Project Scope'!$C$8:$C$107,BS$7),0)","v":0},{"$f":"IF(U48=\"yes\",SUMIFS('Project Scope'!$AO$8:$AO$107,'Project Scope'!$AN$8:$AN$107,$I48,'Project Scope'!$C$8:$C$107,BT$7)+SUMIFS('Project Scope'!$AX$8:$AX$107,'Project Scope'!$AW$8:$AW$107,$I48,'Project Scope'!$C$8:$C$107,BT$7),0)","v":0},{"$f":"IF(V48=\"yes\",SUMIFS('Project Scope'!$AO$8:$AO$107,'Project Scope'!$AN$8:$AN$107,$I48,'Project Scope'!$C$8:$C$107,BU$7)+SUMIFS('Project Scope'!$AX$8:$AX$107,'Project Scope'!$AW$8:$AW$107,$I48,'Project Scope'!$C$8:$C$107,BU$7),0)","v":0},{"$f":"IF(W48=\"yes\",SUMIFS('Project Scope'!$AO$8:$AO$107,'Project Scope'!$AN$8:$AN$107,$I48,'Project Scope'!$C$8:$C$107,BV$7)+SUMIFS('Project Scope'!$AX$8:$AX$107,'Project Scope'!$AW$8:$AW$107,$I48,'Project Scope'!$C$8:$C$107,BV$7),0)","v":0},{"$f":"IF(X48=\"yes\",SUMIFS('Project Scope'!$AO$8:$AO$107,'Project Scope'!$AN$8:$AN$107,$I48,'Project Scope'!$C$8:$C$107,BW$7)+SUMIFS('Project Scope'!$AX$8:$AX$107,'Project Scope'!$AW$8:$AW$107,$I48,'Project Scope'!$C$8:$C$107,BW$7),0)","v":0},{"$f":"IF(Y48=\"yes\",SUMIFS('Project Scope'!$AO$8:$AO$107,'Project Scope'!$AN$8:$AN$107,$I48,'Project Scope'!$C$8:$C$107,BX$7)+SUMIFS('Project Scope'!$AX$8:$AX$107,'Project Scope'!$AW$8:$AW$107,$I48,'Project Scope'!$C$8:$C$107,BX$7),0)","v":0},{"$f":"IF(Z48=\"yes\",SUMIFS('Project Scope'!$AO$8:$AO$107,'Project Scope'!$AN$8:$AN$107,$I48,'Project Scope'!$C$8:$C$107,BY$7)+SUMIFS('Project Scope'!$AX$8:$AX$107,'Project Scope'!$AW$8:$AW$107,$I48,'Project Scope'!$C$8:$C$107,BY$7),0)","v":0},{"$f":"IF(AA48=\"yes\",SUMIFS('Project Scope'!$AO$8:$AO$107,'Project Scope'!$AN$8:$AN$107,$I48,'Project Scope'!$C$8:$C$107,BZ$7)+SUMIFS('Project Scope'!$AX$8:$AX$107,'Project Scope'!$AW$8:$AW$107,$I48,'Project Scope'!$C$8:$C$107,BZ$7),0)","v":0},{"$f":"IF(AB48=\"yes\",SUMIFS('Project Scope'!$AO$8:$AO$107,'Project Scope'!$AN$8:$AN$107,$I48,'Project Scope'!$C$8:$C$107,CA$7)+SUMIFS('Project Scope'!$AX$8:$AX$107,'Project Scope'!$AW$8:$AW$107,$I48,'Project Scope'!$C$8:$C$107,CA$7),0)","v":0},{"$f":"IF(AC48=\"yes\",SUMIFS('Project Scope'!$AO$8:$AO$107,'Project Scope'!$AN$8:$AN$107,$I48,'Project Scope'!$C$8:$C$107,CB$7)+SUMIFS('Project Scope'!$AX$8:$AX$107,'Project Scope'!$AW$8:$AW$107,$I48,'Project Scope'!$C$8:$C$107,CB$7),0)","v":0},{"$f":"IF(AD48=\"yes\",SUMIFS('Project Scope'!$AO$8:$AO$107,'Project Scope'!$AN$8:$AN$107,$I48,'Project Scope'!$C$8:$C$107,CC$7)+SUMIFS('Project Scope'!$AX$8:$AX$107,'Project Scope'!$AW$8:$AW$107,$I48,'Project Scope'!$C$8:$C$107,CC$7),0)","v":0},{"$f":"IF(AE48=\"yes\",SUMIFS('Project Scope'!$AO$8:$AO$107,'Project Scope'!$AN$8:$AN$107,$I48,'Project Scope'!$C$8:$C$107,CD$7)+SUMIFS('Project Scope'!$AX$8:$AX$107,'Project Scope'!$AW$8:$AW$107,$I48,'Project Scope'!$C$8:$C$107,CD$7),0)","v":0},{"$f":"IF(AF48=\"yes\",SUMIFS('Project Scope'!$AO$8:$AO$107,'Project Scope'!$AN$8:$AN$107,$I48,'Project Scope'!$C$8:$C$107,CE$7)+SUMIFS('Project Scope'!$AX$8:$AX$107,'Project Scope'!$AW$8:$AW$107,$I48,'Project Scope'!$C$8:$C$107,CE$7),0)","v":0},{"$f":"IF(AG48=\"yes\",SUMIFS('Project Scope'!$AO$8:$AO$107,'Project Scope'!$AN$8:$AN$107,$I48,'Project Scope'!$C$8:$C$107,CF$7)+SUMIFS('Project Scope'!$AX$8:$AX$107,'Project Scope'!$AW$8:$AW$107,$I48,'Project Scope'!$C$8:$C$107,CF$7),0)","v":0},{"$f":"IF(AH48=\"yes\",SUMIFS('Project Scope'!$AO$8:$AO$107,'Project Scope'!$AN$8:$AN$107,$I48,'Project Scope'!$C$8:$C$107,CG$7)+SUMIFS('Project Scope'!$AX$8:$AX$107,'Project Scope'!$AW$8:$AW$107,$I48,'Project Scope'!$C$8:$C$107,CG$7),0)","v":0},{"$f":"IF(AI48=\"yes\",SUMIFS('Project Scope'!$AO$8:$AO$107,'Project Scope'!$AN$8:$AN$107,$I48,'Project Scope'!$C$8:$C$107,CH$7)+SUMIFS('Project Scope'!$AX$8:$AX$107,'Project Scope'!$AW$8:$AW$107,$I48,'Project Scope'!$C$8:$C$107,CH$7),0)","v":0},{"$f":"IF(AJ48=\"yes\",SUMIFS('Project Scope'!$AO$8:$AO$107,'Project Scope'!$AN$8:$AN$107,$I48,'Project Scope'!$C$8:$C$107,CI$7)+SUMIFS('Project Scope'!$AX$8:$AX$107,'Project Scope'!$AW$8:$AW$107,$I48,'Project Scope'!$C$8:$C$107,CI$7),0)","v":0},{"$f":"IF(AK48=\"yes\",SUMIFS('Project Scope'!$AO$8:$AO$107,'Project Scope'!$AN$8:$AN$107,$I48,'Project Scope'!$C$8:$C$107,CJ$7)+SUMIFS('Project Scope'!$AX$8:$AX$107,'Project Scope'!$AW$8:$AW$107,$I48,'Project Scope'!$C$8:$C$107,CJ$7),0)","v":0},{"$f":"IF(AL48=\"yes\",SUMIFS('Project Scope'!$AO$8:$AO$107,'Project Scope'!$AN$8:$AN$107,$I48,'Project Scope'!$C$8:$C$107,CK$7)+SUMIFS('Project Scope'!$AX$8:$AX$107,'Project Scope'!$AW$8:$AW$107,$I48,'Project Scope'!$C$8:$C$107,CK$7),0)","v":0},{"$f":"IF(AM48=\"yes\",SUMIFS('Project Scope'!$AO$8:$AO$107,'Project Scope'!$AN$8:$AN$107,$I48,'Project Scope'!$C$8:$C$107,CL$7)+SUMIFS('Project Scope'!$AX$8:$AX$107,'Project Scope'!$AW$8:$AW$107,$I48,'Project Scope'!$C$8:$C$107,CL$7),0)","v":0},{"$f":"IF(AN48=\"yes\",SUMIFS('Project Scope'!$AO$8:$AO$107,'Project Scope'!$AN$8:$AN$107,$I48,'Project Scope'!$C$8:$C$107,CM$7)+SUMIFS('Project Scope'!$AX$8:$AX$107,'Project Scope'!$AW$8:$AW$107,$I48,'Project Scope'!$C$8:$C$107,CM$7),0)","v":0},{"$f":"IF(AO48=\"yes\",SUMIFS('Project Scope'!$AO$8:$AO$107,'Project Scope'!$AN$8:$AN$107,$I48,'Project Scope'!$C$8:$C$107,CN$7)+SUMIFS('Project Scope'!$AX$8:$AX$107,'Project Scope'!$AW$8:$AW$107,$I48,'Project Scope'!$C$8:$C$107,CN$7),0)","v":0},{"$f":"IF(AP48=\"yes\",SUMIFS('Project Scope'!$AO$8:$AO$107,'Project Scope'!$AN$8:$AN$107,$I48,'Project Scope'!$C$8:$C$107,CO$7)+SUMIFS('Project Scope'!$AX$8:$AX$107,'Project Scope'!$AW$8:$AW$107,$I48,'Project Scope'!$C$8:$C$107,CO$7),0)","v":0},{"$f":"IF(AQ48=\"yes\",SUMIFS('Project Scope'!$AO$8:$AO$107,'Project Scope'!$AN$8:$AN$107,$I48,'Project Scope'!$C$8:$C$107,CP$7)+SUMIFS('Project Scope'!$AX$8:$AX$107,'Project Scope'!$AW$8:$AW$107,$I48,'Project Scope'!$C$8:$C$107,CP$7),0)","v":0},{"$f":"IF(AR48=\"yes\",SUMIFS('Project Scope'!$AO$8:$AO$107,'Project Scope'!$AN$8:$AN$107,$I48,'Project Scope'!$C$8:$C$107,CQ$7)+SUMIFS('Project Scope'!$AX$8:$AX$107,'Project Scope'!$AW$8:$AW$107,$I48,'Project Scope'!$C$8:$C$107,CQ$7),0)","v":0},{"$f":"IF(AS48=\"yes\",SUMIFS('Project Scope'!$AO$8:$AO$107,'Project Scope'!$AN$8:$AN$107,$I48,'Project Scope'!$C$8:$C$107,CR$7)+SUMIFS('Project Scope'!$AX$8:$AX$107,'Project Scope'!$AW$8:$AW$107,$I48,'Project Scope'!$C$8:$C$107,CR$7),0)","v":0},{"$f":"IF(AT48=\"yes\",SUMIFS('Project Scope'!$AO$8:$AO$107,'Project Scope'!$AN$8:$AN$107,$I48,'Project Scope'!$C$8:$C$107,CS$7)+SUMIFS('Project Scope'!$AX$8:$AX$107,'Project Scope'!$AW$8:$AW$107,$I48,'Project Scope'!$C$8:$C$107,CS$7),0)","v":0},{"$f":"IF(AU48=\"yes\",SUMIFS('Project Scope'!$AO$8:$AO$107,'Project Scope'!$AN$8:$AN$107,$I48,'Project Scope'!$C$8:$C$107,CT$7)+SUMIFS('Project Scope'!$AX$8:$AX$107,'Project Scope'!$AW$8:$AW$107,$I48,'Project Scope'!$C$8:$C$107,CT$7),0)","v":0},{"$f":"IF(AV48=\"yes\",SUMIFS('Project Scope'!$AO$8:$AO$107,'Project Scope'!$AN$8:$AN$107,$I48,'Project Scope'!$C$8:$C$107,CU$7)+SUMIFS('Project Scope'!$AX$8:$AX$107,'Project Scope'!$AW$8:$AW$107,$I48,'Project Scope'!$C$8:$C$107,CU$7),0)","v":0},{"$f":"IF(AW48=\"yes\",SUMIFS('Project Scope'!$AO$8:$AO$107,'Project Scope'!$AN$8:$AN$107,$I48,'Project Scope'!$C$8:$C$107,CV$7)+SUMIFS('Project Scope'!$AX$8:$AX$107,'Project Scope'!$AW$8:$AW$107,$I48,'Project Scope'!$C$8:$C$107,CV$7),0)","v":0},{"$f":"IF(AX48=\"yes\",SUMIFS('Project Scope'!$AO$8:$AO$107,'Project Scope'!$AN$8:$AN$107,$I48,'Project Scope'!$C$8:$C$107,CW$7)+SUMIFS('Project Scope'!$AX$8:$AX$107,'Project Scope'!$AW$8:$AW$107,$I48,'Project Scope'!$C$8:$C$107,CW$7),0)","v":0},{"$f":"IF(AY48=\"yes\",SUMIFS('Project Scope'!$AO$8:$AO$107,'Project Scope'!$AN$8:$AN$107,$I48,'Project Scope'!$C$8:$C$107,CX$7)+SUMIFS('Project Scope'!$AX$8:$AX$107,'Project Scope'!$AW$8:$AW$107,$I48,'Project Scope'!$C$8:$C$107,CX$7),0)","v":0},{"$f":"IF(AZ48=\"yes\",SUMIFS('Project Scope'!$AO$8:$AO$107,'Project Scope'!$AN$8:$AN$107,$I48,'Project Scope'!$C$8:$C$107,CY$7)+SUMIFS('Project Scope'!$AX$8:$AX$107,'Project Scope'!$AW$8:$AW$107,$I48,'Project Scope'!$C$8:$C$107,CY$7),0)","v":0},{"$f":"IF(BA48=\"yes\",SUMIFS('Project Scope'!$AO$8:$AO$107,'Project Scope'!$AN$8:$AN$107,$I48,'Project Scope'!$C$8:$C$107,CZ$7)+SUMIFS('Project Scope'!$AX$8:$AX$107,'Project Scope'!$AW$8:$AW$107,$I48,'Project Scope'!$C$8:$C$107,CZ$7),0)","v":0},{"$f":"IF(BB48=\"yes\",SUMIFS('Project Scope'!$AO$8:$AO$107,'Project Scope'!$AN$8:$AN$107,$I48,'Project Scope'!$C$8:$C$107,DA$7)+SUMIFS('Project Scope'!$AX$8:$AX$107,'Project Scope'!$AW$8:$AW$107,$I48,'Project Scope'!$C$8:$C$107,DA$7),0)","v":0},{"$f":"IF(BC48=\"yes\",SUMIFS('Project Scope'!$AO$8:$AO$107,'Project Scope'!$AN$8:$AN$107,$I48,'Project Scope'!$C$8:$C$107,DB$7)+SUMIFS('Project Scope'!$AX$8:$AX$107,'Project Scope'!$AW$8:$AW$107,$I48,'Project Scope'!$C$8:$C$107,DB$7),0)","v":0},{"$f":"IF(BD48=\"yes\",SUMIFS('Project Scope'!$AO$8:$AO$107,'Project Scope'!$AN$8:$AN$107,$I48,'Project Scope'!$C$8:$C$107,DC$7)+SUMIFS('Project Scope'!$AX$8:$AX$107,'Project Scope'!$AW$8:$AW$107,$I48,'Project Scope'!$C$8:$C$107,DC$7),0)","v":0},{"$f":"IF(BE48=\"yes\",SUMIFS('Project Scope'!$AO$8:$AO$107,'Project Scope'!$AN$8:$AN$107,$I48,'Project Scope'!$C$8:$C$107,DD$7)+SUMIFS('Project Scope'!$AX$8:$AX$107,'Project Scope'!$AW$8:$AW$107,$I48,'Project Scope'!$C$8:$C$107,DD$7),0)","v":0},{"$f":"IF(BF48=\"yes\",SUMIFS('Project Scope'!$AO$8:$AO$107,'Project Scope'!$AN$8:$AN$107,$I48,'Project Scope'!$C$8:$C$107,DE$7)+SUMIFS('Project Scope'!$AX$8:$AX$107,'Project Scope'!$AW$8:$AW$107,$I48,'Project Scope'!$C$8:$C$107,DE$7),0)","v":0},{"$f":"IF(BG48=\"yes\",SUMIFS('Project Scope'!$AO$8:$AO$107,'Project Scope'!$AN$8:$AN$107,$I48,'Project Scope'!$C$8:$C$107,DF$7)+SUMIFS('Project Scope'!$AX$8:$AX$107,'Project Scope'!$AW$8:$AW$107,$I48,'Project Scope'!$C$8:$C$107,DF$7),0)","v":0},{"$f":"IF(BH48=\"yes\",SUMIFS('Project Scope'!$AO$8:$AO$107,'Project Scope'!$AN$8:$AN$107,$I48,'Project Scope'!$C$8:$C$107,DG$7)+SUMIFS('Project Scope'!$AX$8:$AX$107,'Project Scope'!$AW$8:$AW$107,$I48,'Project Scope'!$C$8:$C$107,DG$7),0)","v":0},{"$f":"IF(BI48=\"yes\",SUMIFS('Project Scope'!$AO$8:$AO$107,'Project Scope'!$AN$8:$AN$107,$I48,'Project Scope'!$C$8:$C$107,DH$7)+SUMIFS('Project Scope'!$AX$8:$AX$107,'Project Scope'!$AW$8:$AW$107,$I48,'Project Scope'!$C$8:$C$107,DH$7),0)","v":0},{"$f":"IF(BJ48=\"yes\",SUMIFS('Project Scope'!$AO$8:$AO$107,'Project Scope'!$AN$8:$AN$107,$I48,'Project Scope'!$C$8:$C$107,DI$7)+SUMIFS('Project Scope'!$AX$8:$AX$107,'Project Scope'!$AW$8:$AW$107,$I48,'Project Scope'!$C$8:$C$107,DI$7),0)","v":0},{"$f":"IF(BK48=\"yes\",SUMIFS('Project Scope'!$AO$8:$AO$107,'Project Scope'!$AN$8:$AN$107,$I48,'Project Scope'!$C$8:$C$107,DJ$7)+SUMIFS('Project Scope'!$AX$8:$AX$107,'Project Scope'!$AW$8:$AW$107,$I48,'Project Scope'!$C$8:$C$107,DJ$7),0)","v":0},{"$f":"IF(BL48=\"yes\",SUMIFS('Project Scope'!$AO$8:$AO$107,'Project Scope'!$AN$8:$AN$107,$I48,'Project Scope'!$C$8:$C$107,DK$7)+SUMIFS('Project Scope'!$AX$8:$AX$107,'Project Scope'!$AW$8:$AW$107,$I48,'Project Scope'!$C$8:$C$107,DK$7),0)","v":0},null,"","","","","","","","","","","","","","","","","","","","","","","","","","","","","","","","","","","","","","","","","","","","","","","","","","",null,""]
[null,null,null,null,null,null,null,null,null,null,null,{"$f":"IF($C49=\"additional labor hours\",$K49*'Project Information'!$D$12,$K49*$J49)*IF($F49=\"Per Measure\",SUM($BN49:$DK49),1)","v":0},{"$f":"IF($C49=\"\",0,IF(VLOOKUP($C49,'Other Data'!$B$146:$C$156,2,FALSE)=\"M\",$L49,0))","v":0},0,null,null,null,null,null,null,null,null,null,null,null,null,null,null,null,null,null,null,null,null,null,null,null,null,null,null,null,null,null,null,null,null,null,null,null,null,null,null,null,null,null,null,null,null,null,null,null,null,null,null,null,{"$f":"IF(O49=\"yes\",SUMIFS('Project Scope'!$AO$8:$AO$107,'Project Scope'!$AN$8:$AN$107,$I49,'Project Scope'!$C$8:$C$107,BN$7)+SUMIFS('Project Scope'!$AX$8:$AX$107,'Project Scope'!$AW$8:$AW$107,$I49,'Project Scope'!$C$8:$C$107,BN$7),0)","v":0},{"$f":"IF(P49=\"yes\",SUMIFS('Project Scope'!$AO$8:$AO$107,'Project Scope'!$AN$8:$AN$107,$I49,'Project Scope'!$C$8:$C$107,BO$7)+SUMIFS('Project Scope'!$AX$8:$AX$107,'Project Scope'!$AW$8:$AW$107,$I49,'Project Scope'!$C$8:$C$107,BO$7),0)","v":0},{"$f":"IF(Q49=\"yes\",SUMIFS('Project Scope'!$AO$8:$AO$107,'Project Scope'!$AN$8:$AN$107,$I49,'Project Scope'!$C$8:$C$107,BP$7)+SUMIFS('Project Scope'!$AX$8:$AX$107,'Project Scope'!$AW$8:$AW$107,$I49,'Project Scope'!$C$8:$C$107,BP$7),0)","v":0},{"$f":"IF(R49=\"yes\",SUMIFS('Project Scope'!$AO$8:$AO$107,'Project Scope'!$AN$8:$AN$107,$I49,'Project Scope'!$C$8:$C$107,BQ$7)+SUMIFS('Project Scope'!$AX$8:$AX$107,'Project Scope'!$AW$8:$AW$107,$I49,'Project Scope'!$C$8:$C$107,BQ$7),0)","v":0},{"$f":"IF(S49=\"yes\",SUMIFS('Project Scope'!$AO$8:$AO$107,'Project Scope'!$AN$8:$AN$107,$I49,'Project Scope'!$C$8:$C$107,BR$7)+SUMIFS('Project Scope'!$AX$8:$AX$107,'Project Scope'!$AW$8:$AW$107,$I49,'Project Scope'!$C$8:$C$107,BR$7),0)","v":0},{"$f":"IF(T49=\"yes\",SUMIFS('Project Scope'!$AO$8:$AO$107,'Project Scope'!$AN$8:$AN$107,$I49,'Project Scope'!$C$8:$C$107,BS$7)+SUMIFS('Project Scope'!$AX$8:$AX$107,'Project Scope'!$AW$8:$AW$107,$I49,'Project Scope'!$C$8:$C$107,BS$7),0)","v":0},{"$f":"IF(U49=\"yes\",SUMIFS('Project Scope'!$AO$8:$AO$107,'Project Scope'!$AN$8:$AN$107,$I49,'Project Scope'!$C$8:$C$107,BT$7)+SUMIFS('Project Scope'!$AX$8:$AX$107,'Project Scope'!$AW$8:$AW$107,$I49,'Project Scope'!$C$8:$C$107,BT$7),0)","v":0},{"$f":"IF(V49=\"yes\",SUMIFS('Project Scope'!$AO$8:$AO$107,'Project Scope'!$AN$8:$AN$107,$I49,'Project Scope'!$C$8:$C$107,BU$7)+SUMIFS('Project Scope'!$AX$8:$AX$107,'Project Scope'!$AW$8:$AW$107,$I49,'Project Scope'!$C$8:$C$107,BU$7),0)","v":0},{"$f":"IF(W49=\"yes\",SUMIFS('Project Scope'!$AO$8:$AO$107,'Project Scope'!$AN$8:$AN$107,$I49,'Project Scope'!$C$8:$C$107,BV$7)+SUMIFS('Project Scope'!$AX$8:$AX$107,'Project Scope'!$AW$8:$AW$107,$I49,'Project Scope'!$C$8:$C$107,BV$7),0)","v":0},{"$f":"IF(X49=\"yes\",SUMIFS('Project Scope'!$AO$8:$AO$107,'Project Scope'!$AN$8:$AN$107,$I49,'Project Scope'!$C$8:$C$107,BW$7)+SUMIFS('Project Scope'!$AX$8:$AX$107,'Project Scope'!$AW$8:$AW$107,$I49,'Project Scope'!$C$8:$C$107,BW$7),0)","v":0},{"$f":"IF(Y49=\"yes\",SUMIFS('Project Scope'!$AO$8:$AO$107,'Project Scope'!$AN$8:$AN$107,$I49,'Project Scope'!$C$8:$C$107,BX$7)+SUMIFS('Project Scope'!$AX$8:$AX$107,'Project Scope'!$AW$8:$AW$107,$I49,'Project Scope'!$C$8:$C$107,BX$7),0)","v":0},{"$f":"IF(Z49=\"yes\",SUMIFS('Project Scope'!$AO$8:$AO$107,'Project Scope'!$AN$8:$AN$107,$I49,'Project Scope'!$C$8:$C$107,BY$7)+SUMIFS('Project Scope'!$AX$8:$AX$107,'Project Scope'!$AW$8:$AW$107,$I49,'Project Scope'!$C$8:$C$107,BY$7),0)","v":0},{"$f":"IF(AA49=\"yes\",SUMIFS('Project Scope'!$AO$8:$AO$107,'Project Scope'!$AN$8:$AN$107,$I49,'Project Scope'!$C$8:$C$107,BZ$7)+SUMIFS('Project Scope'!$AX$8:$AX$107,'Project Scope'!$AW$8:$AW$107,$I49,'Project Scope'!$C$8:$C$107,BZ$7),0)","v":0},{"$f":"IF(AB49=\"yes\",SUMIFS('Project Scope'!$AO$8:$AO$107,'Project Scope'!$AN$8:$AN$107,$I49,'Project Scope'!$C$8:$C$107,CA$7)+SUMIFS('Project Scope'!$AX$8:$AX$107,'Project Scope'!$AW$8:$AW$107,$I49,'Project Scope'!$C$8:$C$107,CA$7),0)","v":0},{"$f":"IF(AC49=\"yes\",SUMIFS('Project Scope'!$AO$8:$AO$107,'Project Scope'!$AN$8:$AN$107,$I49,'Project Scope'!$C$8:$C$107,CB$7)+SUMIFS('Project Scope'!$AX$8:$AX$107,'Project Scope'!$AW$8:$AW$107,$I49,'Project Scope'!$C$8:$C$107,CB$7),0)","v":0},{"$f":"IF(AD49=\"yes\",SUMIFS('Project Scope'!$AO$8:$AO$107,'Project Scope'!$AN$8:$AN$107,$I49,'Project Scope'!$C$8:$C$107,CC$7)+SUMIFS('Project Scope'!$AX$8:$AX$107,'Project Scope'!$AW$8:$AW$107,$I49,'Project Scope'!$C$8:$C$107,CC$7),0)","v":0},{"$f":"IF(AE49=\"yes\",SUMIFS('Project Scope'!$AO$8:$AO$107,'Project Scope'!$AN$8:$AN$107,$I49,'Project Scope'!$C$8:$C$107,CD$7)+SUMIFS('Project Scope'!$AX$8:$AX$107,'Project Scope'!$AW$8:$AW$107,$I49,'Project Scope'!$C$8:$C$107,CD$7),0)","v":0},{"$f":"IF(AF49=\"yes\",SUMIFS('Project Scope'!$AO$8:$AO$107,'Project Scope'!$AN$8:$AN$107,$I49,'Project Scope'!$C$8:$C$107,CE$7)+SUMIFS('Project Scope'!$AX$8:$AX$107,'Project Scope'!$AW$8:$AW$107,$I49,'Project Scope'!$C$8:$C$107,CE$7),0)","v":0},{"$f":"IF(AG49=\"yes\",SUMIFS('Project Scope'!$AO$8:$AO$107,'Project Scope'!$AN$8:$AN$107,$I49,'Project Scope'!$C$8:$C$107,CF$7)+SUMIFS('Project Scope'!$AX$8:$AX$107,'Project Scope'!$AW$8:$AW$107,$I49,'Project Scope'!$C$8:$C$107,CF$7),0)","v":0},{"$f":"IF(AH49=\"yes\",SUMIFS('Project Scope'!$AO$8:$AO$107,'Project Scope'!$AN$8:$AN$107,$I49,'Project Scope'!$C$8:$C$107,CG$7)+SUMIFS('Project Scope'!$AX$8:$AX$107,'Project Scope'!$AW$8:$AW$107,$I49,'Project Scope'!$C$8:$C$107,CG$7),0)","v":0},{"$f":"IF(AI49=\"yes\",SUMIFS('Project Scope'!$AO$8:$AO$107,'Project Scope'!$AN$8:$AN$107,$I49,'Project Scope'!$C$8:$C$107,CH$7)+SUMIFS('Project Scope'!$AX$8:$AX$107,'Project Scope'!$AW$8:$AW$107,$I49,'Project Scope'!$C$8:$C$107,CH$7),0)","v":0},{"$f":"IF(AJ49=\"yes\",SUMIFS('Project Scope'!$AO$8:$AO$107,'Project Scope'!$AN$8:$AN$107,$I49,'Project Scope'!$C$8:$C$107,CI$7)+SUMIFS('Project Scope'!$AX$8:$AX$107,'Project Scope'!$AW$8:$AW$107,$I49,'Project Scope'!$C$8:$C$107,CI$7),0)","v":0},{"$f":"IF(AK49=\"yes\",SUMIFS('Project Scope'!$AO$8:$AO$107,'Project Scope'!$AN$8:$AN$107,$I49,'Project Scope'!$C$8:$C$107,CJ$7)+SUMIFS('Project Scope'!$AX$8:$AX$107,'Project Scope'!$AW$8:$AW$107,$I49,'Project Scope'!$C$8:$C$107,CJ$7),0)","v":0},{"$f":"IF(AL49=\"yes\",SUMIFS('Project Scope'!$AO$8:$AO$107,'Project Scope'!$AN$8:$AN$107,$I49,'Project Scope'!$C$8:$C$107,CK$7)+SUMIFS('Project Scope'!$AX$8:$AX$107,'Project Scope'!$AW$8:$AW$107,$I49,'Project Scope'!$C$8:$C$107,CK$7),0)","v":0},{"$f":"IF(AM49=\"yes\",SUMIFS('Project Scope'!$AO$8:$AO$107,'Project Scope'!$AN$8:$AN$107,$I49,'Project Scope'!$C$8:$C$107,CL$7)+SUMIFS('Project Scope'!$AX$8:$AX$107,'Project Scope'!$AW$8:$AW$107,$I49,'Project Scope'!$C$8:$C$107,CL$7),0)","v":0},{"$f":"IF(AN49=\"yes\",SUMIFS('Project Scope'!$AO$8:$AO$107,'Project Scope'!$AN$8:$AN$107,$I49,'Project Scope'!$C$8:$C$107,CM$7)+SUMIFS('Project Scope'!$AX$8:$AX$107,'Project Scope'!$AW$8:$AW$107,$I49,'Project Scope'!$C$8:$C$107,CM$7),0)","v":0},{"$f":"IF(AO49=\"yes\",SUMIFS('Project Scope'!$AO$8:$AO$107,'Project Scope'!$AN$8:$AN$107,$I49,'Project Scope'!$C$8:$C$107,CN$7)+SUMIFS('Project Scope'!$AX$8:$AX$107,'Project Scope'!$AW$8:$AW$107,$I49,'Project Scope'!$C$8:$C$107,CN$7),0)","v":0},{"$f":"IF(AP49=\"yes\",SUMIFS('Project Scope'!$AO$8:$AO$107,'Project Scope'!$AN$8:$AN$107,$I49,'Project Scope'!$C$8:$C$107,CO$7)+SUMIFS('Project Scope'!$AX$8:$AX$107,'Project Scope'!$AW$8:$AW$107,$I49,'Project Scope'!$C$8:$C$107,CO$7),0)","v":0},{"$f":"IF(AQ49=\"yes\",SUMIFS('Project Scope'!$AO$8:$AO$107,'Project Scope'!$AN$8:$AN$107,$I49,'Project Scope'!$C$8:$C$107,CP$7)+SUMIFS('Project Scope'!$AX$8:$AX$107,'Project Scope'!$AW$8:$AW$107,$I49,'Project Scope'!$C$8:$C$107,CP$7),0)","v":0},{"$f":"IF(AR49=\"yes\",SUMIFS('Project Scope'!$AO$8:$AO$107,'Project Scope'!$AN$8:$AN$107,$I49,'Project Scope'!$C$8:$C$107,CQ$7)+SUMIFS('Project Scope'!$AX$8:$AX$107,'Project Scope'!$AW$8:$AW$107,$I49,'Project Scope'!$C$8:$C$107,CQ$7),0)","v":0},{"$f":"IF(AS49=\"yes\",SUMIFS('Project Scope'!$AO$8:$AO$107,'Project Scope'!$AN$8:$AN$107,$I49,'Project Scope'!$C$8:$C$107,CR$7)+SUMIFS('Project Scope'!$AX$8:$AX$107,'Project Scope'!$AW$8:$AW$107,$I49,'Project Scope'!$C$8:$C$107,CR$7),0)","v":0},{"$f":"IF(AT49=\"yes\",SUMIFS('Project Scope'!$AO$8:$AO$107,'Project Scope'!$AN$8:$AN$107,$I49,'Project Scope'!$C$8:$C$107,CS$7)+SUMIFS('Project Scope'!$AX$8:$AX$107,'Project Scope'!$AW$8:$AW$107,$I49,'Project Scope'!$C$8:$C$107,CS$7),0)","v":0},{"$f":"IF(AU49=\"yes\",SUMIFS('Project Scope'!$AO$8:$AO$107,'Project Scope'!$AN$8:$AN$107,$I49,'Project Scope'!$C$8:$C$107,CT$7)+SUMIFS('Project Scope'!$AX$8:$AX$107,'Project Scope'!$AW$8:$AW$107,$I49,'Project Scope'!$C$8:$C$107,CT$7),0)","v":0},{"$f":"IF(AV49=\"yes\",SUMIFS('Project Scope'!$AO$8:$AO$107,'Project Scope'!$AN$8:$AN$107,$I49,'Project Scope'!$C$8:$C$107,CU$7)+SUMIFS('Project Scope'!$AX$8:$AX$107,'Project Scope'!$AW$8:$AW$107,$I49,'Project Scope'!$C$8:$C$107,CU$7),0)","v":0},{"$f":"IF(AW49=\"yes\",SUMIFS('Project Scope'!$AO$8:$AO$107,'Project Scope'!$AN$8:$AN$107,$I49,'Project Scope'!$C$8:$C$107,CV$7)+SUMIFS('Project Scope'!$AX$8:$AX$107,'Project Scope'!$AW$8:$AW$107,$I49,'Project Scope'!$C$8:$C$107,CV$7),0)","v":0},{"$f":"IF(AX49=\"yes\",SUMIFS('Project Scope'!$AO$8:$AO$107,'Project Scope'!$AN$8:$AN$107,$I49,'Project Scope'!$C$8:$C$107,CW$7)+SUMIFS('Project Scope'!$AX$8:$AX$107,'Project Scope'!$AW$8:$AW$107,$I49,'Project Scope'!$C$8:$C$107,CW$7),0)","v":0},{"$f":"IF(AY49=\"yes\",SUMIFS('Project Scope'!$AO$8:$AO$107,'Project Scope'!$AN$8:$AN$107,$I49,'Project Scope'!$C$8:$C$107,CX$7)+SUMIFS('Project Scope'!$AX$8:$AX$107,'Project Scope'!$AW$8:$AW$107,$I49,'Project Scope'!$C$8:$C$107,CX$7),0)","v":0},{"$f":"IF(AZ49=\"yes\",SUMIFS('Project Scope'!$AO$8:$AO$107,'Project Scope'!$AN$8:$AN$107,$I49,'Project Scope'!$C$8:$C$107,CY$7)+SUMIFS('Project Scope'!$AX$8:$AX$107,'Project Scope'!$AW$8:$AW$107,$I49,'Project Scope'!$C$8:$C$107,CY$7),0)","v":0},{"$f":"IF(BA49=\"yes\",SUMIFS('Project Scope'!$AO$8:$AO$107,'Project Scope'!$AN$8:$AN$107,$I49,'Project Scope'!$C$8:$C$107,CZ$7)+SUMIFS('Project Scope'!$AX$8:$AX$107,'Project Scope'!$AW$8:$AW$107,$I49,'Project Scope'!$C$8:$C$107,CZ$7),0)","v":0},{"$f":"IF(BB49=\"yes\",SUMIFS('Project Scope'!$AO$8:$AO$107,'Project Scope'!$AN$8:$AN$107,$I49,'Project Scope'!$C$8:$C$107,DA$7)+SUMIFS('Project Scope'!$AX$8:$AX$107,'Project Scope'!$AW$8:$AW$107,$I49,'Project Scope'!$C$8:$C$107,DA$7),0)","v":0},{"$f":"IF(BC49=\"yes\",SUMIFS('Project Scope'!$AO$8:$AO$107,'Project Scope'!$AN$8:$AN$107,$I49,'Project Scope'!$C$8:$C$107,DB$7)+SUMIFS('Project Scope'!$AX$8:$AX$107,'Project Scope'!$AW$8:$AW$107,$I49,'Project Scope'!$C$8:$C$107,DB$7),0)","v":0},{"$f":"IF(BD49=\"yes\",SUMIFS('Project Scope'!$AO$8:$AO$107,'Project Scope'!$AN$8:$AN$107,$I49,'Project Scope'!$C$8:$C$107,DC$7)+SUMIFS('Project Scope'!$AX$8:$AX$107,'Project Scope'!$AW$8:$AW$107,$I49,'Project Scope'!$C$8:$C$107,DC$7),0)","v":0},{"$f":"IF(BE49=\"yes\",SUMIFS('Project Scope'!$AO$8:$AO$107,'Project Scope'!$AN$8:$AN$107,$I49,'Project Scope'!$C$8:$C$107,DD$7)+SUMIFS('Project Scope'!$AX$8:$AX$107,'Project Scope'!$AW$8:$AW$107,$I49,'Project Scope'!$C$8:$C$107,DD$7),0)","v":0},{"$f":"IF(BF49=\"yes\",SUMIFS('Project Scope'!$AO$8:$AO$107,'Project Scope'!$AN$8:$AN$107,$I49,'Project Scope'!$C$8:$C$107,DE$7)+SUMIFS('Project Scope'!$AX$8:$AX$107,'Project Scope'!$AW$8:$AW$107,$I49,'Project Scope'!$C$8:$C$107,DE$7),0)","v":0},{"$f":"IF(BG49=\"yes\",SUMIFS('Project Scope'!$AO$8:$AO$107,'Project Scope'!$AN$8:$AN$107,$I49,'Project Scope'!$C$8:$C$107,DF$7)+SUMIFS('Project Scope'!$AX$8:$AX$107,'Project Scope'!$AW$8:$AW$107,$I49,'Project Scope'!$C$8:$C$107,DF$7),0)","v":0},{"$f":"IF(BH49=\"yes\",SUMIFS('Project Scope'!$AO$8:$AO$107,'Project Scope'!$AN$8:$AN$107,$I49,'Project Scope'!$C$8:$C$107,DG$7)+SUMIFS('Project Scope'!$AX$8:$AX$107,'Project Scope'!$AW$8:$AW$107,$I49,'Project Scope'!$C$8:$C$107,DG$7),0)","v":0},{"$f":"IF(BI49=\"yes\",SUMIFS('Project Scope'!$AO$8:$AO$107,'Project Scope'!$AN$8:$AN$107,$I49,'Project Scope'!$C$8:$C$107,DH$7)+SUMIFS('Project Scope'!$AX$8:$AX$107,'Project Scope'!$AW$8:$AW$107,$I49,'Project Scope'!$C$8:$C$107,DH$7),0)","v":0},{"$f":"IF(BJ49=\"yes\",SUMIFS('Project Scope'!$AO$8:$AO$107,'Project Scope'!$AN$8:$AN$107,$I49,'Project Scope'!$C$8:$C$107,DI$7)+SUMIFS('Project Scope'!$AX$8:$AX$107,'Project Scope'!$AW$8:$AW$107,$I49,'Project Scope'!$C$8:$C$107,DI$7),0)","v":0},{"$f":"IF(BK49=\"yes\",SUMIFS('Project Scope'!$AO$8:$AO$107,'Project Scope'!$AN$8:$AN$107,$I49,'Project Scope'!$C$8:$C$107,DJ$7)+SUMIFS('Project Scope'!$AX$8:$AX$107,'Project Scope'!$AW$8:$AW$107,$I49,'Project Scope'!$C$8:$C$107,DJ$7),0)","v":0},{"$f":"IF(BL49=\"yes\",SUMIFS('Project Scope'!$AO$8:$AO$107,'Project Scope'!$AN$8:$AN$107,$I49,'Project Scope'!$C$8:$C$107,DK$7)+SUMIFS('Project Scope'!$AX$8:$AX$107,'Project Scope'!$AW$8:$AW$107,$I49,'Project Scope'!$C$8:$C$107,DK$7),0)","v":0},null,"","","","","","","","","","","","","","","","","","","","","","","","","","","","","","","","","","","","","","","","","","","","","","","","","","",null,""]
[null,null,null,null,null,null,null,null,null,null,null,{"$f":"IF($C50=\"additional labor hours\",$K50*'Project Information'!$D$12,$K50*$J50)*IF($F50=\"Per Measure\",SUM($BN50:$DK50),1)","v":0},{"$f":"IF($C50=\"\",0,IF(VLOOKUP($C50,'Other Data'!$B$146:$C$156,2,FALSE)=\"M\",$L50,0))","v":0},0,null,null,null,null,null,null,null,null,null,null,null,null,null,null,null,null,null,null,null,null,null,null,null,null,null,null,null,null,null,null,null,null,null,null,null,null,null,null,null,null,null,null,null,null,null,null,null,null,null,null,null,{"$f":"IF(O50=\"yes\",SUMIFS('Project Scope'!$AO$8:$AO$107,'Project Scope'!$AN$8:$AN$107,$I50,'Project Scope'!$C$8:$C$107,BN$7)+SUMIFS('Project Scope'!$AX$8:$AX$107,'Project Scope'!$AW$8:$AW$107,$I50,'Project Scope'!$C$8:$C$107,BN$7),0)","v":0},{"$f":"IF(P50=\"yes\",SUMIFS('Project Scope'!$AO$8:$AO$107,'Project Scope'!$AN$8:$AN$107,$I50,'Project Scope'!$C$8:$C$107,BO$7)+SUMIFS('Project Scope'!$AX$8:$AX$107,'Project Scope'!$AW$8:$AW$107,$I50,'Project Scope'!$C$8:$C$107,BO$7),0)","v":0},{"$f":"IF(Q50=\"yes\",SUMIFS('Project Scope'!$AO$8:$AO$107,'Project Scope'!$AN$8:$AN$107,$I50,'Project Scope'!$C$8:$C$107,BP$7)+SUMIFS('Project Scope'!$AX$8:$AX$107,'Project Scope'!$AW$8:$AW$107,$I50,'Project Scope'!$C$8:$C$107,BP$7),0)","v":0},{"$f":"IF(R50=\"yes\",SUMIFS('Project Scope'!$AO$8:$AO$107,'Project Scope'!$AN$8:$AN$107,$I50,'Project Scope'!$C$8:$C$107,BQ$7)+SUMIFS('Project Scope'!$AX$8:$AX$107,'Project Scope'!$AW$8:$AW$107,$I50,'Project Scope'!$C$8:$C$107,BQ$7),0)","v":0},{"$f":"IF(S50=\"yes\",SUMIFS('Project Scope'!$AO$8:$AO$107,'Project Scope'!$AN$8:$AN$107,$I50,'Project Scope'!$C$8:$C$107,BR$7)+SUMIFS('Project Scope'!$AX$8:$AX$107,'Project Scope'!$AW$8:$AW$107,$I50,'Project Scope'!$C$8:$C$107,BR$7),0)","v":0},{"$f":"IF(T50=\"yes\",SUMIFS('Project Scope'!$AO$8:$AO$107,'Project Scope'!$AN$8:$AN$107,$I50,'Project Scope'!$C$8:$C$107,BS$7)+SUMIFS('Project Scope'!$AX$8:$AX$107,'Project Scope'!$AW$8:$AW$107,$I50,'Project Scope'!$C$8:$C$107,BS$7),0)","v":0},{"$f":"IF(U50=\"yes\",SUMIFS('Project Scope'!$AO$8:$AO$107,'Project Scope'!$AN$8:$AN$107,$I50,'Project Scope'!$C$8:$C$107,BT$7)+SUMIFS('Project Scope'!$AX$8:$AX$107,'Project Scope'!$AW$8:$AW$107,$I50,'Project Scope'!$C$8:$C$107,BT$7),0)","v":0},{"$f":"IF(V50=\"yes\",SUMIFS('Project Scope'!$AO$8:$AO$107,'Project Scope'!$AN$8:$AN$107,$I50,'Project Scope'!$C$8:$C$107,BU$7)+SUMIFS('Project Scope'!$AX$8:$AX$107,'Project Scope'!$AW$8:$AW$107,$I50,'Project Scope'!$C$8:$C$107,BU$7),0)","v":0},{"$f":"IF(W50=\"yes\",SUMIFS('Project Scope'!$AO$8:$AO$107,'Project Scope'!$AN$8:$AN$107,$I50,'Project Scope'!$C$8:$C$107,BV$7)+SUMIFS('Project Scope'!$AX$8:$AX$107,'Project Scope'!$AW$8:$AW$107,$I50,'Project Scope'!$C$8:$C$107,BV$7),0)","v":0},{"$f":"IF(X50=\"yes\",SUMIFS('Project Scope'!$AO$8:$AO$107,'Project Scope'!$AN$8:$AN$107,$I50,'Project Scope'!$C$8:$C$107,BW$7)+SUMIFS('Project Scope'!$AX$8:$AX$107,'Project Scope'!$AW$8:$AW$107,$I50,'Project Scope'!$C$8:$C$107,BW$7),0)","v":0},{"$f":"IF(Y50=\"yes\",SUMIFS('Project Scope'!$AO$8:$AO$107,'Project Scope'!$AN$8:$AN$107,$I50,'Project Scope'!$C$8:$C$107,BX$7)+SUMIFS('Project Scope'!$AX$8:$AX$107,'Project Scope'!$AW$8:$AW$107,$I50,'Project Scope'!$C$8:$C$107,BX$7),0)","v":0},{"$f":"IF(Z50=\"yes\",SUMIFS('Project Scope'!$AO$8:$AO$107,'Project Scope'!$AN$8:$AN$107,$I50,'Project Scope'!$C$8:$C$107,BY$7)+SUMIFS('Project Scope'!$AX$8:$AX$107,'Project Scope'!$AW$8:$AW$107,$I50,'Project Scope'!$C$8:$C$107,BY$7),0)","v":0},{"$f":"IF(AA50=\"yes\",SUMIFS('Project Scope'!$AO$8:$AO$107,'Project Scope'!$AN$8:$AN$107,$I50,'Project Scope'!$C$8:$C$107,BZ$7)+SUMIFS('Project Scope'!$AX$8:$AX$107,'Project Scope'!$AW$8:$AW$107,$I50,'Project Scope'!$C$8:$C$107,BZ$7),0)","v":0},{"$f":"IF(AB50=\"yes\",SUMIFS('Project Scope'!$AO$8:$AO$107,'Project Scope'!$AN$8:$AN$107,$I50,'Project Scope'!$C$8:$C$107,CA$7)+SUMIFS('Project Scope'!$AX$8:$AX$107,'Project Scope'!$AW$8:$AW$107,$I50,'Project Scope'!$C$8:$C$107,CA$7),0)","v":0},{"$f":"IF(AC50=\"yes\",SUMIFS('Project Scope'!$AO$8:$AO$107,'Project Scope'!$AN$8:$AN$107,$I50,'Project Scope'!$C$8:$C$107,CB$7)+SUMIFS('Project Scope'!$AX$8:$AX$107,'Project Scope'!$AW$8:$AW$107,$I50,'Project Scope'!$C$8:$C$107,CB$7),0)","v":0},{"$f":"IF(AD50=\"yes\",SUMIFS('Project Scope'!$AO$8:$AO$107,'Project Scope'!$AN$8:$AN$107,$I50,'Project Scope'!$C$8:$C$107,CC$7)+SUMIFS('Project Scope'!$AX$8:$AX$107,'Project Scope'!$AW$8:$AW$107,$I50,'Project Scope'!$C$8:$C$107,CC$7),0)","v":0},{"$f":"IF(AE50=\"yes\",SUMIFS('Project Scope'!$AO$8:$AO$107,'Project Scope'!$AN$8:$AN$107,$I50,'Project Scope'!$C$8:$C$107,CD$7)+SUMIFS('Project Scope'!$AX$8:$AX$107,'Project Scope'!$AW$8:$AW$107,$I50,'Project Scope'!$C$8:$C$107,CD$7),0)","v":0},{"$f":"IF(AF50=\"yes\",SUMIFS('Project Scope'!$AO$8:$AO$107,'Project Scope'!$AN$8:$AN$107,$I50,'Project Scope'!$C$8:$C$107,CE$7)+SUMIFS('Project Scope'!$AX$8:$AX$107,'Project Scope'!$AW$8:$AW$107,$I50,'Project Scope'!$C$8:$C$107,CE$7),0)","v":0},{"$f":"IF(AG50=\"yes\",SUMIFS('Project Scope'!$AO$8:$AO$107,'Project Scope'!$AN$8:$AN$107,$I50,'Project Scope'!$C$8:$C$107,CF$7)+SUMIFS('Project Scope'!$AX$8:$AX$107,'Project Scope'!$AW$8:$AW$107,$I50,'Project Scope'!$C$8:$C$107,CF$7),0)","v":0},{"$f":"IF(AH50=\"yes\",SUMIFS('Project Scope'!$AO$8:$AO$107,'Project Scope'!$AN$8:$AN$107,$I50,'Project Scope'!$C$8:$C$107,CG$7)+SUMIFS('Project Scope'!$AX$8:$AX$107,'Project Scope'!$AW$8:$AW$107,$I50,'Project Scope'!$C$8:$C$107,CG$7),0)","v":0},{"$f":"IF(AI50=\"yes\",SUMIFS('Project Scope'!$AO$8:$AO$107,'Project Scope'!$AN$8:$AN$107,$I50,'Project Scope'!$C$8:$C$107,CH$7)+SUMIFS('Project Scope'!$AX$8:$AX$107,'Project Scope'!$AW$8:$AW$107,$I50,'Project Scope'!$C$8:$C$107,CH$7),0)","v":0},{"$f":"IF(AJ50=\"yes\",SUMIFS('Project Scope'!$AO$8:$AO$107,'Project Scope'!$AN$8:$AN$107,$I50,'Project Scope'!$C$8:$C$107,CI$7)+SUMIFS('Project Scope'!$AX$8:$AX$107,'Project Scope'!$AW$8:$AW$107,$I50,'Project Scope'!$C$8:$C$107,CI$7),0)","v":0},{"$f":"IF(AK50=\"yes\",SUMIFS('Project Scope'!$AO$8:$AO$107,'Project Scope'!$AN$8:$AN$107,$I50,'Project Scope'!$C$8:$C$107,CJ$7)+SUMIFS('Project Scope'!$AX$8:$AX$107,'Project Scope'!$AW$8:$AW$107,$I50,'Project Scope'!$C$8:$C$107,CJ$7),0)","v":0},{"$f":"IF(AL50=\"yes\",SUMIFS('Project Scope'!$AO$8:$AO$107,'Project Scope'!$AN$8:$AN$107,$I50,'Project Scope'!$C$8:$C$107,CK$7)+SUMIFS('Project Scope'!$AX$8:$AX$107,'Project Scope'!$AW$8:$AW$107,$I50,'Project Scope'!$C$8:$C$107,CK$7),0)","v":0},{"$f":"IF(AM50=\"yes\",SUMIFS('Project Scope'!$AO$8:$AO$107,'Project Scope'!$AN$8:$AN$107,$I50,'Project Scope'!$C$8:$C$107,CL$7)+SUMIFS('Project Scope'!$AX$8:$AX$107,'Project Scope'!$AW$8:$AW$107,$I50,'Project Scope'!$C$8:$C$107,CL$7),0)","v":0},{"$f":"IF(AN50=\"yes\",SUMIFS('Project Scope'!$AO$8:$AO$107,'Project Scope'!$AN$8:$AN$107,$I50,'Project Scope'!$C$8:$C$107,CM$7)+SUMIFS('Project Scope'!$AX$8:$AX$107,'Project Scope'!$AW$8:$AW$107,$I50,'Project Scope'!$C$8:$C$107,CM$7),0)","v":0},{"$f":"IF(AO50=\"yes\",SUMIFS('Project Scope'!$AO$8:$AO$107,'Project Scope'!$AN$8:$AN$107,$I50,'Project Scope'!$C$8:$C$107,CN$7)+SUMIFS('Project Scope'!$AX$8:$AX$107,'Project Scope'!$AW$8:$AW$107,$I50,'Project Scope'!$C$8:$C$107,CN$7),0)","v":0},{"$f":"IF(AP50=\"yes\",SUMIFS('Project Scope'!$AO$8:$AO$107,'Project Scope'!$AN$8:$AN$107,$I50,'Project Scope'!$C$8:$C$107,CO$7)+SUMIFS('Project Scope'!$AX$8:$AX$107,'Project Scope'!$AW$8:$AW$107,$I50,'Project Scope'!$C$8:$C$107,CO$7),0)","v":0},{"$f":"IF(AQ50=\"yes\",SUMIFS('Project Scope'!$AO$8:$AO$107,'Project Scope'!$AN$8:$AN$107,$I50,'Project Scope'!$C$8:$C$107,CP$7)+SUMIFS('Project Scope'!$AX$8:$AX$107,'Project Scope'!$AW$8:$AW$107,$I50,'Project Scope'!$C$8:$C$107,CP$7),0)","v":0},{"$f":"IF(AR50=\"yes\",SUMIFS('Project Scope'!$AO$8:$AO$107,'Project Scope'!$AN$8:$AN$107,$I50,'Project Scope'!$C$8:$C$107,CQ$7)+SUMIFS('Project Scope'!$AX$8:$AX$107,'Project Scope'!$AW$8:$AW$107,$I50,'Project Scope'!$C$8:$C$107,CQ$7),0)","v":0},{"$f":"IF(AS50=\"yes\",SUMIFS('Project Scope'!$AO$8:$AO$107,'Project Scope'!$AN$8:$AN$107,$I50,'Project Scope'!$C$8:$C$107,CR$7)+SUMIFS('Project Scope'!$AX$8:$AX$107,'Project Scope'!$AW$8:$AW$107,$I50,'Project Scope'!$C$8:$C$107,CR$7),0)","v":0},{"$f":"IF(AT50=\"yes\",SUMIFS('Project Scope'!$AO$8:$AO$107,'Project Scope'!$AN$8:$AN$107,$I50,'Project Scope'!$C$8:$C$107,CS$7)+SUMIFS('Project Scope'!$AX$8:$AX$107,'Project Scope'!$AW$8:$AW$107,$I50,'Project Scope'!$C$8:$C$107,CS$7),0)","v":0},{"$f":"IF(AU50=\"yes\",SUMIFS('Project Scope'!$AO$8:$AO$107,'Project Scope'!$AN$8:$AN$107,$I50,'Project Scope'!$C$8:$C$107,CT$7)+SUMIFS('Project Scope'!$AX$8:$AX$107,'Project Scope'!$AW$8:$AW$107,$I50,'Project Scope'!$C$8:$C$107,CT$7),0)","v":0},{"$f":"IF(AV50=\"yes\",SUMIFS('Project Scope'!$AO$8:$AO$107,'Project Scope'!$AN$8:$AN$107,$I50,'Project Scope'!$C$8:$C$107,CU$7)+SUMIFS('Project Scope'!$AX$8:$AX$107,'Project Scope'!$AW$8:$AW$107,$I50,'Project Scope'!$C$8:$C$107,CU$7),0)","v":0},{"$f":"IF(AW50=\"yes\",SUMIFS('Project Scope'!$AO$8:$AO$107,'Project Scope'!$AN$8:$AN$107,$I50,'Project Scope'!$C$8:$C$107,CV$7)+SUMIFS('Project Scope'!$AX$8:$AX$107,'Project Scope'!$AW$8:$AW$107,$I50,'Project Scope'!$C$8:$C$107,CV$7),0)","v":0},{"$f":"IF(AX50=\"yes\",SUMIFS('Project Scope'!$AO$8:$AO$107,'Project Scope'!$AN$8:$AN$107,$I50,'Project Scope'!$C$8:$C$107,CW$7)+SUMIFS('Project Scope'!$AX$8:$AX$107,'Project Scope'!$AW$8:$AW$107,$I50,'Project Scope'!$C$8:$C$107,CW$7),0)","v":0},{"$f":"IF(AY50=\"yes\",SUMIFS('Project Scope'!$AO$8:$AO$107,'Project Scope'!$AN$8:$AN$107,$I50,'Project Scope'!$C$8:$C$107,CX$7)+SUMIFS('Project Scope'!$AX$8:$AX$107,'Project Scope'!$AW$8:$AW$107,$I50,'Project Scope'!$C$8:$C$107,CX$7),0)","v":0},{"$f":"IF(AZ50=\"yes\",SUMIFS('Project Scope'!$AO$8:$AO$107,'Project Scope'!$AN$8:$AN$107,$I50,'Project Scope'!$C$8:$C$107,CY$7)+SUMIFS('Project Scope'!$AX$8:$AX$107,'Project Scope'!$AW$8:$AW$107,$I50,'Project Scope'!$C$8:$C$107,CY$7),0)","v":0},{"$f":"IF(BA50=\"yes\",SUMIFS('Project Scope'!$AO$8:$AO$107,'Project Scope'!$AN$8:$AN$107,$I50,'Project Scope'!$C$8:$C$107,CZ$7)+SUMIFS('Project Scope'!$AX$8:$AX$107,'Project Scope'!$AW$8:$AW$107,$I50,'Project Scope'!$C$8:$C$107,CZ$7),0)","v":0},{"$f":"IF(BB50=\"yes\",SUMIFS('Project Scope'!$AO$8:$AO$107,'Project Scope'!$AN$8:$AN$107,$I50,'Project Scope'!$C$8:$C$107,DA$7)+SUMIFS('Project Scope'!$AX$8:$AX$107,'Project Scope'!$AW$8:$AW$107,$I50,'Project Scope'!$C$8:$C$107,DA$7),0)","v":0},{"$f":"IF(BC50=\"yes\",SUMIFS('Project Scope'!$AO$8:$AO$107,'Project Scope'!$AN$8:$AN$107,$I50,'Project Scope'!$C$8:$C$107,DB$7)+SUMIFS('Project Scope'!$AX$8:$AX$107,'Project Scope'!$AW$8:$AW$107,$I50,'Project Scope'!$C$8:$C$107,DB$7),0)","v":0},{"$f":"IF(BD50=\"yes\",SUMIFS('Project Scope'!$AO$8:$AO$107,'Project Scope'!$AN$8:$AN$107,$I50,'Project Scope'!$C$8:$C$107,DC$7)+SUMIFS('Project Scope'!$AX$8:$AX$107,'Project Scope'!$AW$8:$AW$107,$I50,'Project Scope'!$C$8:$C$107,DC$7),0)","v":0},{"$f":"IF(BE50=\"yes\",SUMIFS('Project Scope'!$AO$8:$AO$107,'Project Scope'!$AN$8:$AN$107,$I50,'Project Scope'!$C$8:$C$107,DD$7)+SUMIFS('Project Scope'!$AX$8:$AX$107,'Project Scope'!$AW$8:$AW$107,$I50,'Project Scope'!$C$8:$C$107,DD$7),0)","v":0},{"$f":"IF(BF50=\"yes\",SUMIFS('Project Scope'!$AO$8:$AO$107,'Project Scope'!$AN$8:$AN$107,$I50,'Project Scope'!$C$8:$C$107,DE$7)+SUMIFS('Project Scope'!$AX$8:$AX$107,'Project Scope'!$AW$8:$AW$107,$I50,'Project Scope'!$C$8:$C$107,DE$7),0)","v":0},{"$f":"IF(BG50=\"yes\",SUMIFS('Project Scope'!$AO$8:$AO$107,'Project Scope'!$AN$8:$AN$107,$I50,'Project Scope'!$C$8:$C$107,DF$7)+SUMIFS('Project Scope'!$AX$8:$AX$107,'Project Scope'!$AW$8:$AW$107,$I50,'Project Scope'!$C$8:$C$107,DF$7),0)","v":0},{"$f":"IF(BH50=\"yes\",SUMIFS('Project Scope'!$AO$8:$AO$107,'Project Scope'!$AN$8:$AN$107,$I50,'Project Scope'!$C$8:$C$107,DG$7)+SUMIFS('Project Scope'!$AX$8:$AX$107,'Project Scope'!$AW$8:$AW$107,$I50,'Project Scope'!$C$8:$C$107,DG$7),0)","v":0},{"$f":"IF(BI50=\"yes\",SUMIFS('Project Scope'!$AO$8:$AO$107,'Project Scope'!$AN$8:$AN$107,$I50,'Project Scope'!$C$8:$C$107,DH$7)+SUMIFS('Project Scope'!$AX$8:$AX$107,'Project Scope'!$AW$8:$AW$107,$I50,'Project Scope'!$C$8:$C$107,DH$7),0)","v":0},{"$f":"IF(BJ50=\"yes\",SUMIFS('Project Scope'!$AO$8:$AO$107,'Project Scope'!$AN$8:$AN$107,$I50,'Project Scope'!$C$8:$C$107,DI$7)+SUMIFS('Project Scope'!$AX$8:$AX$107,'Project Scope'!$AW$8:$AW$107,$I50,'Project Scope'!$C$8:$C$107,DI$7),0)","v":0},{"$f":"IF(BK50=\"yes\",SUMIFS('Project Scope'!$AO$8:$AO$107,'Project Scope'!$AN$8:$AN$107,$I50,'Project Scope'!$C$8:$C$107,DJ$7)+SUMIFS('Project Scope'!$AX$8:$AX$107,'Project Scope'!$AW$8:$AW$107,$I50,'Project Scope'!$C$8:$C$107,DJ$7),0)","v":0},{"$f":"IF(BL50=\"yes\",SUMIFS('Project Scope'!$AO$8:$AO$107,'Project Scope'!$AN$8:$AN$107,$I50,'Project Scope'!$C$8:$C$107,DK$7)+SUMIFS('Project Scope'!$AX$8:$AX$107,'Project Scope'!$AW$8:$AW$107,$I50,'Project Scope'!$C$8:$C$107,DK$7),0)","v":0},null,"","","","","","","","","","","","",{"$f":"IF($BN50>0,DY$7,\"\")","v":""},"","","","","","","","","","","","","","","","","","","","","","","","","","","","","","","","","","","","","",null,""]
[null,null,null,null,null,null,null,null,null,null,null,{"$f":"IF($C51=\"additional labor hours\",$K51*'Project Information'!$D$12,$K51*$J51)*IF($F51=\"Per Measure\",SUM($BN51:$DK51),1)","v":0},{"$f":"IF($C51=\"\",0,IF(VLOOKUP($C51,'Other Data'!$B$146:$C$156,2,FALSE)=\"M\",$L51,0))","v":0},0,null,null,null,null,null,null,null,null,null,null,null,null,null,null,null,null,null,null,null,null,null,null,null,null,null,null,null,null,null,null,null,null,null,null,null,null,null,null,null,null,null,null,null,null,null,null,null,null,null,null,null,{"$f":"IF(O51=\"yes\",SUMIFS('Project Scope'!$AO$8:$AO$107,'Project Scope'!$AN$8:$AN$107,$I51,'Project Scope'!$C$8:$C$107,BN$7)+SUMIFS('Project Scope'!$AX$8:$AX$107,'Project Scope'!$AW$8:$AW$107,$I51,'Project Scope'!$C$8:$C$107,BN$7),0)","v":0},{"$f":"IF(P51=\"yes\",SUMIFS('Project Scope'!$AO$8:$AO$107,'Project Scope'!$AN$8:$AN$107,$I51,'Project Scope'!$C$8:$C$107,BO$7)+SUMIFS('Project Scope'!$AX$8:$AX$107,'Project Scope'!$AW$8:$AW$107,$I51,'Project Scope'!$C$8:$C$107,BO$7),0)","v":0},{"$f":"IF(Q51=\"yes\",SUMIFS('Project Scope'!$AO$8:$AO$107,'Project Scope'!$AN$8:$AN$107,$I51,'Project Scope'!$C$8:$C$107,BP$7)+SUMIFS('Project Scope'!$AX$8:$AX$107,'Project Scope'!$AW$8:$AW$107,$I51,'Project Scope'!$C$8:$C$107,BP$7),0)","v":0},{"$f":"IF(R51=\"yes\",SUMIFS('Project Scope'!$AO$8:$AO$107,'Project Scope'!$AN$8:$AN$107,$I51,'Project Scope'!$C$8:$C$107,BQ$7)+SUMIFS('Project Scope'!$AX$8:$AX$107,'Project Scope'!$AW$8:$AW$107,$I51,'Project Scope'!$C$8:$C$107,BQ$7),0)","v":0},{"$f":"IF(S51=\"yes\",SUMIFS('Project Scope'!$AO$8:$AO$107,'Project Scope'!$AN$8:$AN$107,$I51,'Project Scope'!$C$8:$C$107,BR$7)+SUMIFS('Project Scope'!$AX$8:$AX$107,'Project Scope'!$AW$8:$AW$107,$I51,'Project Scope'!$C$8:$C$107,BR$7),0)","v":0},{"$f":"IF(T51=\"yes\",SUMIFS('Project Scope'!$AO$8:$AO$107,'Project Scope'!$AN$8:$AN$107,$I51,'Project Scope'!$C$8:$C$107,BS$7)+SUMIFS('Project Scope'!$AX$8:$AX$107,'Project Scope'!$AW$8:$AW$107,$I51,'Project Scope'!$C$8:$C$107,BS$7),0)","v":0},{"$f":"IF(U51=\"yes\",SUMIFS('Project Scope'!$AO$8:$AO$107,'Project Scope'!$AN$8:$AN$107,$I51,'Project Scope'!$C$8:$C$107,BT$7)+SUMIFS('Project Scope'!$AX$8:$AX$107,'Project Scope'!$AW$8:$AW$107,$I51,'Project Scope'!$C$8:$C$107,BT$7),0)","v":0},{"$f":"IF(V51=\"yes\",SUMIFS('Project Scope'!$AO$8:$AO$107,'Project Scope'!$AN$8:$AN$107,$I51,'Project Scope'!$C$8:$C$107,BU$7)+SUMIFS('Project Scope'!$AX$8:$AX$107,'Project Scope'!$AW$8:$AW$107,$I51,'Project Scope'!$C$8:$C$107,BU$7),0)","v":0},{"$f":"IF(W51=\"yes\",SUMIFS('Project Scope'!$AO$8:$AO$107,'Project Scope'!$AN$8:$AN$107,$I51,'Project Scope'!$C$8:$C$107,BV$7)+SUMIFS('Project Scope'!$AX$8:$AX$107,'Project Scope'!$AW$8:$AW$107,$I51,'Project Scope'!$C$8:$C$107,BV$7),0)","v":0},{"$f":"IF(X51=\"yes\",SUMIFS('Project Scope'!$AO$8:$AO$107,'Project Scope'!$AN$8:$AN$107,$I51,'Project Scope'!$C$8:$C$107,BW$7)+SUMIFS('Project Scope'!$AX$8:$AX$107,'Project Scope'!$AW$8:$AW$107,$I51,'Project Scope'!$C$8:$C$107,BW$7),0)","v":0},{"$f":"IF(Y51=\"yes\",SUMIFS('Project Scope'!$AO$8:$AO$107,'Project Scope'!$AN$8:$AN$107,$I51,'Project Scope'!$C$8:$C$107,BX$7)+SUMIFS('Project Scope'!$AX$8:$AX$107,'Project Scope'!$AW$8:$AW$107,$I51,'Project Scope'!$C$8:$C$107,BX$7),0)","v":0},{"$f":"IF(Z51=\"yes\",SUMIFS('Project Scope'!$AO$8:$AO$107,'Project Scope'!$AN$8:$AN$107,$I51,'Project Scope'!$C$8:$C$107,BY$7)+SUMIFS('Project Scope'!$AX$8:$AX$107,'Project Scope'!$AW$8:$AW$107,$I51,'Project Scope'!$C$8:$C$107,BY$7),0)","v":0},{"$f":"IF(AA51=\"yes\",SUMIFS('Project Scope'!$AO$8:$AO$107,'Project Scope'!$AN$8:$AN$107,$I51,'Project Scope'!$C$8:$C$107,BZ$7)+SUMIFS('Project Scope'!$AX$8:$AX$107,'Project Scope'!$AW$8:$AW$107,$I51,'Project Scope'!$C$8:$C$107,BZ$7),0)","v":0},{"$f":"IF(AB51=\"yes\",SUMIFS('Project Scope'!$AO$8:$AO$107,'Project Scope'!$AN$8:$AN$107,$I51,'Project Scope'!$C$8:$C$107,CA$7)+SUMIFS('Project Scope'!$AX$8:$AX$107,'Project Scope'!$AW$8:$AW$107,$I51,'Project Scope'!$C$8:$C$107,CA$7),0)","v":0},{"$f":"IF(AC51=\"yes\",SUMIFS('Project Scope'!$AO$8:$AO$107,'Project Scope'!$AN$8:$AN$107,$I51,'Project Scope'!$C$8:$C$107,CB$7)+SUMIFS('Project Scope'!$AX$8:$AX$107,'Project Scope'!$AW$8:$AW$107,$I51,'Project Scope'!$C$8:$C$107,CB$7),0)","v":0},{"$f":"IF(AD51=\"yes\",SUMIFS('Project Scope'!$AO$8:$AO$107,'Project Scope'!$AN$8:$AN$107,$I51,'Project Scope'!$C$8:$C$107,CC$7)+SUMIFS('Project Scope'!$AX$8:$AX$107,'Project Scope'!$AW$8:$AW$107,$I51,'Project Scope'!$C$8:$C$107,CC$7),0)","v":0},{"$f":"IF(AE51=\"yes\",SUMIFS('Project Scope'!$AO$8:$AO$107,'Project Scope'!$AN$8:$AN$107,$I51,'Project Scope'!$C$8:$C$107,CD$7)+SUMIFS('Project Scope'!$AX$8:$AX$107,'Project Scope'!$AW$8:$AW$107,$I51,'Project Scope'!$C$8:$C$107,CD$7),0)","v":0},{"$f":"IF(AF51=\"yes\",SUMIFS('Project Scope'!$AO$8:$AO$107,'Project Scope'!$AN$8:$AN$107,$I51,'Project Scope'!$C$8:$C$107,CE$7)+SUMIFS('Project Scope'!$AX$8:$AX$107,'Project Scope'!$AW$8:$AW$107,$I51,'Project Scope'!$C$8:$C$107,CE$7),0)","v":0},{"$f":"IF(AG51=\"yes\",SUMIFS('Project Scope'!$AO$8:$AO$107,'Project Scope'!$AN$8:$AN$107,$I51,'Project Scope'!$C$8:$C$107,CF$7)+SUMIFS('Project Scope'!$AX$8:$AX$107,'Project Scope'!$AW$8:$AW$107,$I51,'Project Scope'!$C$8:$C$107,CF$7),0)","v":0},{"$f":"IF(AH51=\"yes\",SUMIFS('Project Scope'!$AO$8:$AO$107,'Project Scope'!$AN$8:$AN$107,$I51,'Project Scope'!$C$8:$C$107,CG$7)+SUMIFS('Project Scope'!$AX$8:$AX$107,'Project Scope'!$AW$8:$AW$107,$I51,'Project Scope'!$C$8:$C$107,CG$7),0)","v":0},{"$f":"IF(AI51=\"yes\",SUMIFS('Project Scope'!$AO$8:$AO$107,'Project Scope'!$AN$8:$AN$107,$I51,'Project Scope'!$C$8:$C$107,CH$7)+SUMIFS('Project Scope'!$AX$8:$AX$107,'Project Scope'!$AW$8:$AW$107,$I51,'Project Scope'!$C$8:$C$107,CH$7),0)","v":0},{"$f":"IF(AJ51=\"yes\",SUMIFS('Project Scope'!$AO$8:$AO$107,'Project Scope'!$AN$8:$AN$107,$I51,'Project Scope'!$C$8:$C$107,CI$7)+SUMIFS('Project Scope'!$AX$8:$AX$107,'Project Scope'!$AW$8:$AW$107,$I51,'Project Scope'!$C$8:$C$107,CI$7),0)","v":0},{"$f":"IF(AK51=\"yes\",SUMIFS('Project Scope'!$AO$8:$AO$107,'Project Scope'!$AN$8:$AN$107,$I51,'Project Scope'!$C$8:$C$107,CJ$7)+SUMIFS('Project Scope'!$AX$8:$AX$107,'Project Scope'!$AW$8:$AW$107,$I51,'Project Scope'!$C$8:$C$107,CJ$7),0)","v":0},{"$f":"IF(AL51=\"yes\",SUMIFS('Project Scope'!$AO$8:$AO$107,'Project Scope'!$AN$8:$AN$107,$I51,'Project Scope'!$C$8:$C$107,CK$7)+SUMIFS('Project Scope'!$AX$8:$AX$107,'Project Scope'!$AW$8:$AW$107,$I51,'Project Scope'!$C$8:$C$107,CK$7),0)","v":0},{"$f":"IF(AM51=\"yes\",SUMIFS('Project Scope'!$AO$8:$AO$107,'Project Scope'!$AN$8:$AN$107,$I51,'Project Scope'!$C$8:$C$107,CL$7)+SUMIFS('Project Scope'!$AX$8:$AX$107,'Project Scope'!$AW$8:$AW$107,$I51,'Project Scope'!$C$8:$C$107,CL$7),0)","v":0},{"$f":"IF(AN51=\"yes\",SUMIFS('Project Scope'!$AO$8:$AO$107,'Project Scope'!$AN$8:$AN$107,$I51,'Project Scope'!$C$8:$C$107,CM$7)+SUMIFS('Project Scope'!$AX$8:$AX$107,'Project Scope'!$AW$8:$AW$107,$I51,'Project Scope'!$C$8:$C$107,CM$7),0)","v":0},{"$f":"IF(AO51=\"yes\",SUMIFS('Project Scope'!$AO$8:$AO$107,'Project Scope'!$AN$8:$AN$107,$I51,'Project Scope'!$C$8:$C$107,CN$7)+SUMIFS('Project Scope'!$AX$8:$AX$107,'Project Scope'!$AW$8:$AW$107,$I51,'Project Scope'!$C$8:$C$107,CN$7),0)","v":0},{"$f":"IF(AP51=\"yes\",SUMIFS('Project Scope'!$AO$8:$AO$107,'Project Scope'!$AN$8:$AN$107,$I51,'Project Scope'!$C$8:$C$107,CO$7)+SUMIFS('Project Scope'!$AX$8:$AX$107,'Project Scope'!$AW$8:$AW$107,$I51,'Project Scope'!$C$8:$C$107,CO$7),0)","v":0},{"$f":"IF(AQ51=\"yes\",SUMIFS('Project Scope'!$AO$8:$AO$107,'Project Scope'!$AN$8:$AN$107,$I51,'Project Scope'!$C$8:$C$107,CP$7)+SUMIFS('Project Scope'!$AX$8:$AX$107,'Project Scope'!$AW$8:$AW$107,$I51,'Project Scope'!$C$8:$C$107,CP$7),0)","v":0},{"$f":"IF(AR51=\"yes\",SUMIFS('Project Scope'!$AO$8:$AO$107,'Project Scope'!$AN$8:$AN$107,$I51,'Project Scope'!$C$8:$C$107,CQ$7)+SUMIFS('Project Scope'!$AX$8:$AX$107,'Project Scope'!$AW$8:$AW$107,$I51,'Project Scope'!$C$8:$C$107,CQ$7),0)","v":0},{"$f":"IF(AS51=\"yes\",SUMIFS('Project Scope'!$AO$8:$AO$107,'Project Scope'!$AN$8:$AN$107,$I51,'Project Scope'!$C$8:$C$107,CR$7)+SUMIFS('Project Scope'!$AX$8:$AX$107,'Project Scope'!$AW$8:$AW$107,$I51,'Project Scope'!$C$8:$C$107,CR$7),0)","v":0},{"$f":"IF(AT51=\"yes\",SUMIFS('Project Scope'!$AO$8:$AO$107,'Project Scope'!$AN$8:$AN$107,$I51,'Project Scope'!$C$8:$C$107,CS$7)+SUMIFS('Project Scope'!$AX$8:$AX$107,'Project Scope'!$AW$8:$AW$107,$I51,'Project Scope'!$C$8:$C$107,CS$7),0)","v":0},{"$f":"IF(AU51=\"yes\",SUMIFS('Project Scope'!$AO$8:$AO$107,'Project Scope'!$AN$8:$AN$107,$I51,'Project Scope'!$C$8:$C$107,CT$7)+SUMIFS('Project Scope'!$AX$8:$AX$107,'Project Scope'!$AW$8:$AW$107,$I51,'Project Scope'!$C$8:$C$107,CT$7),0)","v":0},{"$f":"IF(AV51=\"yes\",SUMIFS('Project Scope'!$AO$8:$AO$107,'Project Scope'!$AN$8:$AN$107,$I51,'Project Scope'!$C$8:$C$107,CU$7)+SUMIFS('Project Scope'!$AX$8:$AX$107,'Project Scope'!$AW$8:$AW$107,$I51,'Project Scope'!$C$8:$C$107,CU$7),0)","v":0},{"$f":"IF(AW51=\"yes\",SUMIFS('Project Scope'!$AO$8:$AO$107,'Project Scope'!$AN$8:$AN$107,$I51,'Project Scope'!$C$8:$C$107,CV$7)+SUMIFS('Project Scope'!$AX$8:$AX$107,'Project Scope'!$AW$8:$AW$107,$I51,'Project Scope'!$C$8:$C$107,CV$7),0)","v":0},{"$f":"IF(AX51=\"yes\",SUMIFS('Project Scope'!$AO$8:$AO$107,'Project Scope'!$AN$8:$AN$107,$I51,'Project Scope'!$C$8:$C$107,CW$7)+SUMIFS('Project Scope'!$AX$8:$AX$107,'Project Scope'!$AW$8:$AW$107,$I51,'Project Scope'!$C$8:$C$107,CW$7),0)","v":0},{"$f":"IF(AY51=\"yes\",SUMIFS('Project Scope'!$AO$8:$AO$107,'Project Scope'!$AN$8:$AN$107,$I51,'Project Scope'!$C$8:$C$107,CX$7)+SUMIFS('Project Scope'!$AX$8:$AX$107,'Project Scope'!$AW$8:$AW$107,$I51,'Project Scope'!$C$8:$C$107,CX$7),0)","v":0},{"$f":"IF(AZ51=\"yes\",SUMIFS('Project Scope'!$AO$8:$AO$107,'Project Scope'!$AN$8:$AN$107,$I51,'Project Scope'!$C$8:$C$107,CY$7)+SUMIFS('Project Scope'!$AX$8:$AX$107,'Project Scope'!$AW$8:$AW$107,$I51,'Project Scope'!$C$8:$C$107,CY$7),0)","v":0},{"$f":"IF(BA51=\"yes\",SUMIFS('Project Scope'!$AO$8:$AO$107,'Project Scope'!$AN$8:$AN$107,$I51,'Project Scope'!$C$8:$C$107,CZ$7)+SUMIFS('Project Scope'!$AX$8:$AX$107,'Project Scope'!$AW$8:$AW$107,$I51,'Project Scope'!$C$8:$C$107,CZ$7),0)","v":0},{"$f":"IF(BB51=\"yes\",SUMIFS('Project Scope'!$AO$8:$AO$107,'Project Scope'!$AN$8:$AN$107,$I51,'Project Scope'!$C$8:$C$107,DA$7)+SUMIFS('Project Scope'!$AX$8:$AX$107,'Project Scope'!$AW$8:$AW$107,$I51,'Project Scope'!$C$8:$C$107,DA$7),0)","v":0},{"$f":"IF(BC51=\"yes\",SUMIFS('Project Scope'!$AO$8:$AO$107,'Project Scope'!$AN$8:$AN$107,$I51,'Project Scope'!$C$8:$C$107,DB$7)+SUMIFS('Project Scope'!$AX$8:$AX$107,'Project Scope'!$AW$8:$AW$107,$I51,'Project Scope'!$C$8:$C$107,DB$7),0)","v":0},{"$f":"IF(BD51=\"yes\",SUMIFS('Project Scope'!$AO$8:$AO$107,'Project Scope'!$AN$8:$AN$107,$I51,'Project Scope'!$C$8:$C$107,DC$7)+SUMIFS('Project Scope'!$AX$8:$AX$107,'Project Scope'!$AW$8:$AW$107,$I51,'Project Scope'!$C$8:$C$107,DC$7),0)","v":0},{"$f":"IF(BE51=\"yes\",SUMIFS('Project Scope'!$AO$8:$AO$107,'Project Scope'!$AN$8:$AN$107,$I51,'Project Scope'!$C$8:$C$107,DD$7)+SUMIFS('Project Scope'!$AX$8:$AX$107,'Project Scope'!$AW$8:$AW$107,$I51,'Project Scope'!$C$8:$C$107,DD$7),0)","v":0},{"$f":"IF(BF51=\"yes\",SUMIFS('Project Scope'!$AO$8:$AO$107,'Project Scope'!$AN$8:$AN$107,$I51,'Project Scope'!$C$8:$C$107,DE$7)+SUMIFS('Project Scope'!$AX$8:$AX$107,'Project Scope'!$AW$8:$AW$107,$I51,'Project Scope'!$C$8:$C$107,DE$7),0)","v":0},{"$f":"IF(BG51=\"yes\",SUMIFS('Project Scope'!$AO$8:$AO$107,'Project Scope'!$AN$8:$AN$107,$I51,'Project Scope'!$C$8:$C$107,DF$7)+SUMIFS('Project Scope'!$AX$8:$AX$107,'Project Scope'!$AW$8:$AW$107,$I51,'Project Scope'!$C$8:$C$107,DF$7),0)","v":0},{"$f":"IF(BH51=\"yes\",SUMIFS('Project Scope'!$AO$8:$AO$107,'Project Scope'!$AN$8:$AN$107,$I51,'Project Scope'!$C$8:$C$107,DG$7)+SUMIFS('Project Scope'!$AX$8:$AX$107,'Project Scope'!$AW$8:$AW$107,$I51,'Project Scope'!$C$8:$C$107,DG$7),0)","v":0},{"$f":"IF(BI51=\"yes\",SUMIFS('Project Scope'!$AO$8:$AO$107,'Project Scope'!$AN$8:$AN$107,$I51,'Project Scope'!$C$8:$C$107,DH$7)+SUMIFS('Project Scope'!$AX$8:$AX$107,'Project Scope'!$AW$8:$AW$107,$I51,'Project Scope'!$C$8:$C$107,DH$7),0)","v":0},{"$f":"IF(BJ51=\"yes\",SUMIFS('Project Scope'!$AO$8:$AO$107,'Project Scope'!$AN$8:$AN$107,$I51,'Project Scope'!$C$8:$C$107,DI$7)+SUMIFS('Project Scope'!$AX$8:$AX$107,'Project Scope'!$AW$8:$AW$107,$I51,'Project Scope'!$C$8:$C$107,DI$7),0)","v":0},{"$f":"IF(BK51=\"yes\",SUMIFS('Project Scope'!$AO$8:$AO$107,'Project Scope'!$AN$8:$AN$107,$I51,'Project Scope'!$C$8:$C$107,DJ$7)+SUMIFS('Project Scope'!$AX$8:$AX$107,'Project Scope'!$AW$8:$AW$107,$I51,'Project Scope'!$C$8:$C$107,DJ$7),0)","v":0},{"$f":"IF(BL51=\"yes\",SUMIFS('Project Scope'!$AO$8:$AO$107,'Project Scope'!$AN$8:$AN$107,$I51,'Project Scope'!$C$8:$C$107,DK$7)+SUMIFS('Project Scope'!$AX$8:$AX$107,'Project Scope'!$AW$8:$AW$107,$I51,'Project Scope'!$C$8:$C$107,DK$7),0)","v":0},null,"","","","","","","","","","","","","","","","","","","","","","","","","","","","","","","","","","","","","","","","","","","","","","","","","","",null,""]
[null,null,null,null,null,null,null,null,null,null,null,{"$f":"IF($C52=\"additional labor hours\",$K52*'Project Information'!$D$12,$K52*$J52)*IF($F52=\"Per Measure\",SUM($BN52:$DK52),1)","v":0},{"$f":"IF($C52=\"\",0,IF(VLOOKUP($C52,'Other Data'!$B$146:$C$156,2,FALSE)=\"M\",$L52,0))","v":0},0,null,null,null,null,null,null,null,null,null,null,null,null,null,null,null,null,null,null,null,null,null,null,null,null,null,null,null,null,null,null,null,null,null,null,null,null,null,null,null,null,null,null,null,null,null,null,null,null,null,null,null,{"$f":"IF(O52=\"yes\",SUMIFS('Project Scope'!$AO$8:$AO$107,'Project Scope'!$AN$8:$AN$107,$I52,'Project Scope'!$C$8:$C$107,BN$7)+SUMIFS('Project Scope'!$AX$8:$AX$107,'Project Scope'!$AW$8:$AW$107,$I52,'Project Scope'!$C$8:$C$107,BN$7),0)","v":0},{"$f":"IF(P52=\"yes\",SUMIFS('Project Scope'!$AO$8:$AO$107,'Project Scope'!$AN$8:$AN$107,$I52,'Project Scope'!$C$8:$C$107,BO$7)+SUMIFS('Project Scope'!$AX$8:$AX$107,'Project Scope'!$AW$8:$AW$107,$I52,'Project Scope'!$C$8:$C$107,BO$7),0)","v":0},{"$f":"IF(Q52=\"yes\",SUMIFS('Project Scope'!$AO$8:$AO$107,'Project Scope'!$AN$8:$AN$107,$I52,'Project Scope'!$C$8:$C$107,BP$7)+SUMIFS('Project Scope'!$AX$8:$AX$107,'Project Scope'!$AW$8:$AW$107,$I52,'Project Scope'!$C$8:$C$107,BP$7),0)","v":0},{"$f":"IF(R52=\"yes\",SUMIFS('Project Scope'!$AO$8:$AO$107,'Project Scope'!$AN$8:$AN$107,$I52,'Project Scope'!$C$8:$C$107,BQ$7)+SUMIFS('Project Scope'!$AX$8:$AX$107,'Project Scope'!$AW$8:$AW$107,$I52,'Project Scope'!$C$8:$C$107,BQ$7),0)","v":0},{"$f":"IF(S52=\"yes\",SUMIFS('Project Scope'!$AO$8:$AO$107,'Project Scope'!$AN$8:$AN$107,$I52,'Project Scope'!$C$8:$C$107,BR$7)+SUMIFS('Project Scope'!$AX$8:$AX$107,'Project Scope'!$AW$8:$AW$107,$I52,'Project Scope'!$C$8:$C$107,BR$7),0)","v":0},{"$f":"IF(T52=\"yes\",SUMIFS('Project Scope'!$AO$8:$AO$107,'Project Scope'!$AN$8:$AN$107,$I52,'Project Scope'!$C$8:$C$107,BS$7)+SUMIFS('Project Scope'!$AX$8:$AX$107,'Project Scope'!$AW$8:$AW$107,$I52,'Project Scope'!$C$8:$C$107,BS$7),0)","v":0},{"$f":"IF(U52=\"yes\",SUMIFS('Project Scope'!$AO$8:$AO$107,'Project Scope'!$AN$8:$AN$107,$I52,'Project Scope'!$C$8:$C$107,BT$7)+SUMIFS('Project Scope'!$AX$8:$AX$107,'Project Scope'!$AW$8:$AW$107,$I52,'Project Scope'!$C$8:$C$107,BT$7),0)","v":0},{"$f":"IF(V52=\"yes\",SUMIFS('Project Scope'!$AO$8:$AO$107,'Project Scope'!$AN$8:$AN$107,$I52,'Project Scope'!$C$8:$C$107,BU$7)+SUMIFS('Project Scope'!$AX$8:$AX$107,'Project Scope'!$AW$8:$AW$107,$I52,'Project Scope'!$C$8:$C$107,BU$7),0)","v":0},{"$f":"IF(W52=\"yes\",SUMIFS('Project Scope'!$AO$8:$AO$107,'Project Scope'!$AN$8:$AN$107,$I52,'Project Scope'!$C$8:$C$107,BV$7)+SUMIFS('Project Scope'!$AX$8:$AX$107,'Project Scope'!$AW$8:$AW$107,$I52,'Project Scope'!$C$8:$C$107,BV$7),0)","v":0},{"$f":"IF(X52=\"yes\",SUMIFS('Project Scope'!$AO$8:$AO$107,'Project Scope'!$AN$8:$AN$107,$I52,'Project Scope'!$C$8:$C$107,BW$7)+SUMIFS('Project Scope'!$AX$8:$AX$107,'Project Scope'!$AW$8:$AW$107,$I52,'Project Scope'!$C$8:$C$107,BW$7),0)","v":0},{"$f":"IF(Y52=\"yes\",SUMIFS('Project Scope'!$AO$8:$AO$107,'Project Scope'!$AN$8:$AN$107,$I52,'Project Scope'!$C$8:$C$107,BX$7)+SUMIFS('Project Scope'!$AX$8:$AX$107,'Project Scope'!$AW$8:$AW$107,$I52,'Project Scope'!$C$8:$C$107,BX$7),0)","v":0},{"$f":"IF(Z52=\"yes\",SUMIFS('Project Scope'!$AO$8:$AO$107,'Project Scope'!$AN$8:$AN$107,$I52,'Project Scope'!$C$8:$C$107,BY$7)+SUMIFS('Project Scope'!$AX$8:$AX$107,'Project Scope'!$AW$8:$AW$107,$I52,'Project Scope'!$C$8:$C$107,BY$7),0)","v":0},{"$f":"IF(AA52=\"yes\",SUMIFS('Project Scope'!$AO$8:$AO$107,'Project Scope'!$AN$8:$AN$107,$I52,'Project Scope'!$C$8:$C$107,BZ$7)+SUMIFS('Project Scope'!$AX$8:$AX$107,'Project Scope'!$AW$8:$AW$107,$I52,'Project Scope'!$C$8:$C$107,BZ$7),0)","v":0},{"$f":"IF(AB52=\"yes\",SUMIFS('Project Scope'!$AO$8:$AO$107,'Project Scope'!$AN$8:$AN$107,$I52,'Project Scope'!$C$8:$C$107,CA$7)+SUMIFS('Project Scope'!$AX$8:$AX$107,'Project Scope'!$AW$8:$AW$107,$I52,'Project Scope'!$C$8:$C$107,CA$7),0)","v":0},{"$f":"IF(AC52=\"yes\",SUMIFS('Project Scope'!$AO$8:$AO$107,'Project Scope'!$AN$8:$AN$107,$I52,'Project Scope'!$C$8:$C$107,CB$7)+SUMIFS('Project Scope'!$AX$8:$AX$107,'Project Scope'!$AW$8:$AW$107,$I52,'Project Scope'!$C$8:$C$107,CB$7),0)","v":0},{"$f":"IF(AD52=\"yes\",SUMIFS('Project Scope'!$AO$8:$AO$107,'Project Scope'!$AN$8:$AN$107,$I52,'Project Scope'!$C$8:$C$107,CC$7)+SUMIFS('Project Scope'!$AX$8:$AX$107,'Project Scope'!$AW$8:$AW$107,$I52,'Project Scope'!$C$8:$C$107,CC$7),0)","v":0},{"$f":"IF(AE52=\"yes\",SUMIFS('Project Scope'!$AO$8:$AO$107,'Project Scope'!$AN$8:$AN$107,$I52,'Project Scope'!$C$8:$C$107,CD$7)+SUMIFS('Project Scope'!$AX$8:$AX$107,'Project Scope'!$AW$8:$AW$107,$I52,'Project Scope'!$C$8:$C$107,CD$7),0)","v":0},{"$f":"IF(AF52=\"yes\",SUMIFS('Project Scope'!$AO$8:$AO$107,'Project Scope'!$AN$8:$AN$107,$I52,'Project Scope'!$C$8:$C$107,CE$7)+SUMIFS('Project Scope'!$AX$8:$AX$107,'Project Scope'!$AW$8:$AW$107,$I52,'Project Scope'!$C$8:$C$107,CE$7),0)","v":0},{"$f":"IF(AG52=\"yes\",SUMIFS('Project Scope'!$AO$8:$AO$107,'Project Scope'!$AN$8:$AN$107,$I52,'Project Scope'!$C$8:$C$107,CF$7)+SUMIFS('Project Scope'!$AX$8:$AX$107,'Project Scope'!$AW$8:$AW$107,$I52,'Project Scope'!$C$8:$C$107,CF$7),0)","v":0},{"$f":"IF(AH52=\"yes\",SUMIFS('Project Scope'!$AO$8:$AO$107,'Project Scope'!$AN$8:$AN$107,$I52,'Project Scope'!$C$8:$C$107,CG$7)+SUMIFS('Project Scope'!$AX$8:$AX$107,'Project Scope'!$AW$8:$AW$107,$I52,'Project Scope'!$C$8:$C$107,CG$7),0)","v":0},{"$f":"IF(AI52=\"yes\",SUMIFS('Project Scope'!$AO$8:$AO$107,'Project Scope'!$AN$8:$AN$107,$I52,'Project Scope'!$C$8:$C$107,CH$7)+SUMIFS('Project Scope'!$AX$8:$AX$107,'Project Scope'!$AW$8:$AW$107,$I52,'Project Scope'!$C$8:$C$107,CH$7),0)","v":0},{"$f":"IF(AJ52=\"yes\",SUMIFS('Project Scope'!$AO$8:$AO$107,'Project Scope'!$AN$8:$AN$107,$I52,'Project Scope'!$C$8:$C$107,CI$7)+SUMIFS('Project Scope'!$AX$8:$AX$107,'Project Scope'!$AW$8:$AW$107,$I52,'Project Scope'!$C$8:$C$107,CI$7),0)","v":0},{"$f":"IF(AK52=\"yes\",SUMIFS('Project Scope'!$AO$8:$AO$107,'Project Scope'!$AN$8:$AN$107,$I52,'Project Scope'!$C$8:$C$107,CJ$7)+SUMIFS('Project Scope'!$AX$8:$AX$107,'Project Scope'!$AW$8:$AW$107,$I52,'Project Scope'!$C$8:$C$107,CJ$7),0)","v":0},{"$f":"IF(AL52=\"yes\",SUMIFS('Project Scope'!$AO$8:$AO$107,'Project Scope'!$AN$8:$AN$107,$I52,'Project Scope'!$C$8:$C$107,CK$7)+SUMIFS('Project Scope'!$AX$8:$AX$107,'Project Scope'!$AW$8:$AW$107,$I52,'Project Scope'!$C$8:$C$107,CK$7),0)","v":0},{"$f":"IF(AM52=\"yes\",SUMIFS('Project Scope'!$AO$8:$AO$107,'Project Scope'!$AN$8:$AN$107,$I52,'Project Scope'!$C$8:$C$107,CL$7)+SUMIFS('Project Scope'!$AX$8:$AX$107,'Project Scope'!$AW$8:$AW$107,$I52,'Project Scope'!$C$8:$C$107,CL$7),0)","v":0},{"$f":"IF(AN52=\"yes\",SUMIFS('Project Scope'!$AO$8:$AO$107,'Project Scope'!$AN$8:$AN$107,$I52,'Project Scope'!$C$8:$C$107,CM$7)+SUMIFS('Project Scope'!$AX$8:$AX$107,'Project Scope'!$AW$8:$AW$107,$I52,'Project Scope'!$C$8:$C$107,CM$7),0)","v":0},{"$f":"IF(AO52=\"yes\",SUMIFS('Project Scope'!$AO$8:$AO$107,'Project Scope'!$AN$8:$AN$107,$I52,'Project Scope'!$C$8:$C$107,CN$7)+SUMIFS('Project Scope'!$AX$8:$AX$107,'Project Scope'!$AW$8:$AW$107,$I52,'Project Scope'!$C$8:$C$107,CN$7),0)","v":0},{"$f":"IF(AP52=\"yes\",SUMIFS('Project Scope'!$AO$8:$AO$107,'Project Scope'!$AN$8:$AN$107,$I52,'Project Scope'!$C$8:$C$107,CO$7)+SUMIFS('Project Scope'!$AX$8:$AX$107,'Project Scope'!$AW$8:$AW$107,$I52,'Project Scope'!$C$8:$C$107,CO$7),0)","v":0},{"$f":"IF(AQ52=\"yes\",SUMIFS('Project Scope'!$AO$8:$AO$107,'Project Scope'!$AN$8:$AN$107,$I52,'Project Scope'!$C$8:$C$107,CP$7)+SUMIFS('Project Scope'!$AX$8:$AX$107,'Project Scope'!$AW$8:$AW$107,$I52,'Project Scope'!$C$8:$C$107,CP$7),0)","v":0},{"$f":"IF(AR52=\"yes\",SUMIFS('Project Scope'!$AO$8:$AO$107,'Project Scope'!$AN$8:$AN$107,$I52,'Project Scope'!$C$8:$C$107,CQ$7)+SUMIFS('Project Scope'!$AX$8:$AX$107,'Project Scope'!$AW$8:$AW$107,$I52,'Project Scope'!$C$8:$C$107,CQ$7),0)","v":0},{"$f":"IF(AS52=\"yes\",SUMIFS('Project Scope'!$AO$8:$AO$107,'Project Scope'!$AN$8:$AN$107,$I52,'Project Scope'!$C$8:$C$107,CR$7)+SUMIFS('Project Scope'!$AX$8:$AX$107,'Project Scope'!$AW$8:$AW$107,$I52,'Project Scope'!$C$8:$C$107,CR$7),0)","v":0},{"$f":"IF(AT52=\"yes\",SUMIFS('Project Scope'!$AO$8:$AO$107,'Project Scope'!$AN$8:$AN$107,$I52,'Project Scope'!$C$8:$C$107,CS$7)+SUMIFS('Project Scope'!$AX$8:$AX$107,'Project Scope'!$AW$8:$AW$107,$I52,'Project Scope'!$C$8:$C$107,CS$7),0)","v":0},{"$f":"IF(AU52=\"yes\",SUMIFS('Project Scope'!$AO$8:$AO$107,'Project Scope'!$AN$8:$AN$107,$I52,'Project Scope'!$C$8:$C$107,CT$7)+SUMIFS('Project Scope'!$AX$8:$AX$107,'Project Scope'!$AW$8:$AW$107,$I52,'Project Scope'!$C$8:$C$107,CT$7),0)","v":0},{"$f":"IF(AV52=\"yes\",SUMIFS('Project Scope'!$AO$8:$AO$107,'Project Scope'!$AN$8:$AN$107,$I52,'Project Scope'!$C$8:$C$107,CU$7)+SUMIFS('Project Scope'!$AX$8:$AX$107,'Project Scope'!$AW$8:$AW$107,$I52,'Project Scope'!$C$8:$C$107,CU$7),0)","v":0},{"$f":"IF(AW52=\"yes\",SUMIFS('Project Scope'!$AO$8:$AO$107,'Project Scope'!$AN$8:$AN$107,$I52,'Project Scope'!$C$8:$C$107,CV$7)+SUMIFS('Project Scope'!$AX$8:$AX$107,'Project Scope'!$AW$8:$AW$107,$I52,'Project Scope'!$C$8:$C$107,CV$7),0)","v":0},{"$f":"IF(AX52=\"yes\",SUMIFS('Project Scope'!$AO$8:$AO$107,'Project Scope'!$AN$8:$AN$107,$I52,'Project Scope'!$C$8:$C$107,CW$7)+SUMIFS('Project Scope'!$AX$8:$AX$107,'Project Scope'!$AW$8:$AW$107,$I52,'Project Scope'!$C$8:$C$107,CW$7),0)","v":0},{"$f":"IF(AY52=\"yes\",SUMIFS('Project Scope'!$AO$8:$AO$107,'Project Scope'!$AN$8:$AN$107,$I52,'Project Scope'!$C$8:$C$107,CX$7)+SUMIFS('Project Scope'!$AX$8:$AX$107,'Project Scope'!$AW$8:$AW$107,$I52,'Project Scope'!$C$8:$C$107,CX$7),0)","v":0},{"$f":"IF(AZ52=\"yes\",SUMIFS('Project Scope'!$AO$8:$AO$107,'Project Scope'!$AN$8:$AN$107,$I52,'Project Scope'!$C$8:$C$107,CY$7)+SUMIFS('Project Scope'!$AX$8:$AX$107,'Project Scope'!$AW$8:$AW$107,$I52,'Project Scope'!$C$8:$C$107,CY$7),0)","v":0},{"$f":"IF(BA52=\"yes\",SUMIFS('Project Scope'!$AO$8:$AO$107,'Project Scope'!$AN$8:$AN$107,$I52,'Project Scope'!$C$8:$C$107,CZ$7)+SUMIFS('Project Scope'!$AX$8:$AX$107,'Project Scope'!$AW$8:$AW$107,$I52,'Project Scope'!$C$8:$C$107,CZ$7),0)","v":0},{"$f":"IF(BB52=\"yes\",SUMIFS('Project Scope'!$AO$8:$AO$107,'Project Scope'!$AN$8:$AN$107,$I52,'Project Scope'!$C$8:$C$107,DA$7)+SUMIFS('Project Scope'!$AX$8:$AX$107,'Project Scope'!$AW$8:$AW$107,$I52,'Project Scope'!$C$8:$C$107,DA$7),0)","v":0},{"$f":"IF(BC52=\"yes\",SUMIFS('Project Scope'!$AO$8:$AO$107,'Project Scope'!$AN$8:$AN$107,$I52,'Project Scope'!$C$8:$C$107,DB$7)+SUMIFS('Project Scope'!$AX$8:$AX$107,'Project Scope'!$AW$8:$AW$107,$I52,'Project Scope'!$C$8:$C$107,DB$7),0)","v":0},{"$f":"IF(BD52=\"yes\",SUMIFS('Project Scope'!$AO$8:$AO$107,'Project Scope'!$AN$8:$AN$107,$I52,'Project Scope'!$C$8:$C$107,DC$7)+SUMIFS('Project Scope'!$AX$8:$AX$107,'Project Scope'!$AW$8:$AW$107,$I52,'Project Scope'!$C$8:$C$107,DC$7),0)","v":0},{"$f":"IF(BE52=\"yes\",SUMIFS('Project Scope'!$AO$8:$AO$107,'Project Scope'!$AN$8:$AN$107,$I52,'Project Scope'!$C$8:$C$107,DD$7)+SUMIFS('Project Scope'!$AX$8:$AX$107,'Project Scope'!$AW$8:$AW$107,$I52,'Project Scope'!$C$8:$C$107,DD$7),0)","v":0},{"$f":"IF(BF52=\"yes\",SUMIFS('Project Scope'!$AO$8:$AO$107,'Project Scope'!$AN$8:$AN$107,$I52,'Project Scope'!$C$8:$C$107,DE$7)+SUMIFS('Project Scope'!$AX$8:$AX$107,'Project Scope'!$AW$8:$AW$107,$I52,'Project Scope'!$C$8:$C$107,DE$7),0)","v":0},{"$f":"IF(BG52=\"yes\",SUMIFS('Project Scope'!$AO$8:$AO$107,'Project Scope'!$AN$8:$AN$107,$I52,'Project Scope'!$C$8:$C$107,DF$7)+SUMIFS('Project Scope'!$AX$8:$AX$107,'Project Scope'!$AW$8:$AW$107,$I52,'Project Scope'!$C$8:$C$107,DF$7),0)","v":0},{"$f":"IF(BH52=\"yes\",SUMIFS('Project Scope'!$AO$8:$AO$107,'Project Scope'!$AN$8:$AN$107,$I52,'Project Scope'!$C$8:$C$107,DG$7)+SUMIFS('Project Scope'!$AX$8:$AX$107,'Project Scope'!$AW$8:$AW$107,$I52,'Project Scope'!$C$8:$C$107,DG$7),0)","v":0},{"$f":"IF(BI52=\"yes\",SUMIFS('Project Scope'!$AO$8:$AO$107,'Project Scope'!$AN$8:$AN$107,$I52,'Project Scope'!$C$8:$C$107,DH$7)+SUMIFS('Project Scope'!$AX$8:$AX$107,'Project Scope'!$AW$8:$AW$107,$I52,'Project Scope'!$C$8:$C$107,DH$7),0)","v":0},{"$f":"IF(BJ52=\"yes\",SUMIFS('Project Scope'!$AO$8:$AO$107,'Project Scope'!$AN$8:$AN$107,$I52,'Project Scope'!$C$8:$C$107,DI$7)+SUMIFS('Project Scope'!$AX$8:$AX$107,'Project Scope'!$AW$8:$AW$107,$I52,'Project Scope'!$C$8:$C$107,DI$7),0)","v":0},{"$f":"IF(BK52=\"yes\",SUMIFS('Project Scope'!$AO$8:$AO$107,'Project Scope'!$AN$8:$AN$107,$I52,'Project Scope'!$C$8:$C$107,DJ$7)+SUMIFS('Project Scope'!$AX$8:$AX$107,'Project Scope'!$AW$8:$AW$107,$I52,'Project Scope'!$C$8:$C$107,DJ$7),0)","v":0},{"$f":"IF(BL52=\"yes\",SUMIFS('Project Scope'!$AO$8:$AO$107,'Project Scope'!$AN$8:$AN$107,$I52,'Project Scope'!$C$8:$C$107,DK$7)+SUMIFS('Project Scope'!$AX$8:$AX$107,'Project Scope'!$AW$8:$AW$107,$I52,'Project Scope'!$C$8:$C$107,DK$7),0)","v":0},null,"","","","","","","","","","","","","","","","","","","","","","","","","","","","","","","","","","","","","","","","","","","","","","","","","","",null,""]
[null,null,null,null,null,null,null,null,null,null,null,{"$f":"IF($C53=\"additional labor hours\",$K53*'Project Information'!$D$12,$K53*$J53)*IF($F53=\"Per Measure\",SUM($BN53:$DK53),1)","v":0},{"$f":"IF($C53=\"\",0,IF(VLOOKUP($C53,'Other Data'!$B$146:$C$156,2,FALSE)=\"M\",$L53,0))","v":0},0,null,null,null,null,null,null,null,null,null,null,null,null,null,null,null,null,null,null,null,null,null,null,null,null,null,null,null,null,null,null,null,null,null,null,null,null,null,null,null,null,null,null,null,null,null,null,null,null,null,null,null,{"$f":"IF(O53=\"yes\",SUMIFS('Project Scope'!$AO$8:$AO$107,'Project Scope'!$AN$8:$AN$107,$I53,'Project Scope'!$C$8:$C$107,BN$7)+SUMIFS('Project Scope'!$AX$8:$AX$107,'Project Scope'!$AW$8:$AW$107,$I53,'Project Scope'!$C$8:$C$107,BN$7),0)","v":0},{"$f":"IF(P53=\"yes\",SUMIFS('Project Scope'!$AO$8:$AO$107,'Project Scope'!$AN$8:$AN$107,$I53,'Project Scope'!$C$8:$C$107,BO$7)+SUMIFS('Project Scope'!$AX$8:$AX$107,'Project Scope'!$AW$8:$AW$107,$I53,'Project Scope'!$C$8:$C$107,BO$7),0)","v":0},{"$f":"IF(Q53=\"yes\",SUMIFS('Project Scope'!$AO$8:$AO$107,'Project Scope'!$AN$8:$AN$107,$I53,'Project Scope'!$C$8:$C$107,BP$7)+SUMIFS('Project Scope'!$AX$8:$AX$107,'Project Scope'!$AW$8:$AW$107,$I53,'Project Scope'!$C$8:$C$107,BP$7),0)","v":0},{"$f":"IF(R53=\"yes\",SUMIFS('Project Scope'!$AO$8:$AO$107,'Project Scope'!$AN$8:$AN$107,$I53,'Project Scope'!$C$8:$C$107,BQ$7)+SUMIFS('Project Scope'!$AX$8:$AX$107,'Project Scope'!$AW$8:$AW$107,$I53,'Project Scope'!$C$8:$C$107,BQ$7),0)","v":0},{"$f":"IF(S53=\"yes\",SUMIFS('Project Scope'!$AO$8:$AO$107,'Project Scope'!$AN$8:$AN$107,$I53,'Project Scope'!$C$8:$C$107,BR$7)+SUMIFS('Project Scope'!$AX$8:$AX$107,'Project Scope'!$AW$8:$AW$107,$I53,'Project Scope'!$C$8:$C$107,BR$7),0)","v":0},{"$f":"IF(T53=\"yes\",SUMIFS('Project Scope'!$AO$8:$AO$107,'Project Scope'!$AN$8:$AN$107,$I53,'Project Scope'!$C$8:$C$107,BS$7)+SUMIFS('Project Scope'!$AX$8:$AX$107,'Project Scope'!$AW$8:$AW$107,$I53,'Project Scope'!$C$8:$C$107,BS$7),0)","v":0},{"$f":"IF(U53=\"yes\",SUMIFS('Project Scope'!$AO$8:$AO$107,'Project Scope'!$AN$8:$AN$107,$I53,'Project Scope'!$C$8:$C$107,BT$7)+SUMIFS('Project Scope'!$AX$8:$AX$107,'Project Scope'!$AW$8:$AW$107,$I53,'Project Scope'!$C$8:$C$107,BT$7),0)","v":0},{"$f":"IF(V53=\"yes\",SUMIFS('Project Scope'!$AO$8:$AO$107,'Project Scope'!$AN$8:$AN$107,$I53,'Project Scope'!$C$8:$C$107,BU$7)+SUMIFS('Project Scope'!$AX$8:$AX$107,'Project Scope'!$AW$8:$AW$107,$I53,'Project Scope'!$C$8:$C$107,BU$7),0)","v":0},{"$f":"IF(W53=\"yes\",SUMIFS('Project Scope'!$AO$8:$AO$107,'Project Scope'!$AN$8:$AN$107,$I53,'Project Scope'!$C$8:$C$107,BV$7)+SUMIFS('Project Scope'!$AX$8:$AX$107,'Project Scope'!$AW$8:$AW$107,$I53,'Project Scope'!$C$8:$C$107,BV$7),0)","v":0},{"$f":"IF(X53=\"yes\",SUMIFS('Project Scope'!$AO$8:$AO$107,'Project Scope'!$AN$8:$AN$107,$I53,'Project Scope'!$C$8:$C$107,BW$7)+SUMIFS('Project Scope'!$AX$8:$AX$107,'Project Scope'!$AW$8:$AW$107,$I53,'Project Scope'!$C$8:$C$107,BW$7),0)","v":0},{"$f":"IF(Y53=\"yes\",SUMIFS('Project Scope'!$AO$8:$AO$107,'Project Scope'!$AN$8:$AN$107,$I53,'Project Scope'!$C$8:$C$107,BX$7)+SUMIFS('Project Scope'!$AX$8:$AX$107,'Project Scope'!$AW$8:$AW$107,$I53,'Project Scope'!$C$8:$C$107,BX$7),0)","v":0},{"$f":"IF(Z53=\"yes\",SUMIFS('Project Scope'!$AO$8:$AO$107,'Project Scope'!$AN$8:$AN$107,$I53,'Project Scope'!$C$8:$C$107,BY$7)+SUMIFS('Project Scope'!$AX$8:$AX$107,'Project Scope'!$AW$8:$AW$107,$I53,'Project Scope'!$C$8:$C$107,BY$7),0)","v":0},{"$f":"IF(AA53=\"yes\",SUMIFS('Project Scope'!$AO$8:$AO$107,'Project Scope'!$AN$8:$AN$107,$I53,'Project Scope'!$C$8:$C$107,BZ$7)+SUMIFS('Project Scope'!$AX$8:$AX$107,'Project Scope'!$AW$8:$AW$107,$I53,'Project Scope'!$C$8:$C$107,BZ$7),0)","v":0},{"$f":"IF(AB53=\"yes\",SUMIFS('Project Scope'!$AO$8:$AO$107,'Project Scope'!$AN$8:$AN$107,$I53,'Project Scope'!$C$8:$C$107,CA$7)+SUMIFS('Project Scope'!$AX$8:$AX$107,'Project Scope'!$AW$8:$AW$107,$I53,'Project Scope'!$C$8:$C$107,CA$7),0)","v":0},{"$f":"IF(AC53=\"yes\",SUMIFS('Project Scope'!$AO$8:$AO$107,'Project Scope'!$AN$8:$AN$107,$I53,'Project Scope'!$C$8:$C$107,CB$7)+SUMIFS('Project Scope'!$AX$8:$AX$107,'Project Scope'!$AW$8:$AW$107,$I53,'Project Scope'!$C$8:$C$107,CB$7),0)","v":0},{"$f":"IF(AD53=\"yes\",SUMIFS('Project Scope'!$AO$8:$AO$107,'Project Scope'!$AN$8:$AN$107,$I53,'Project Scope'!$C$8:$C$107,CC$7)+SUMIFS('Project Scope'!$AX$8:$AX$107,'Project Scope'!$AW$8:$AW$107,$I53,'Project Scope'!$C$8:$C$107,CC$7),0)","v":0},{"$f":"IF(AE53=\"yes\",SUMIFS('Project Scope'!$AO$8:$AO$107,'Project Scope'!$AN$8:$AN$107,$I53,'Project Scope'!$C$8:$C$107,CD$7)+SUMIFS('Project Scope'!$AX$8:$AX$107,'Project Scope'!$AW$8:$AW$107,$I53,'Project Scope'!$C$8:$C$107,CD$7),0)","v":0},{"$f":"IF(AF53=\"yes\",SUMIFS('Project Scope'!$AO$8:$AO$107,'Project Scope'!$AN$8:$AN$107,$I53,'Project Scope'!$C$8:$C$107,CE$7)+SUMIFS('Project Scope'!$AX$8:$AX$107,'Project Scope'!$AW$8:$AW$107,$I53,'Project Scope'!$C$8:$C$107,CE$7),0)","v":0},{"$f":"IF(AG53=\"yes\",SUMIFS('Project Scope'!$AO$8:$AO$107,'Project Scope'!$AN$8:$AN$107,$I53,'Project Scope'!$C$8:$C$107,CF$7)+SUMIFS('Project Scope'!$AX$8:$AX$107,'Project Scope'!$AW$8:$AW$107,$I53,'Project Scope'!$C$8:$C$107,CF$7),0)","v":0},{"$f":"IF(AH53=\"yes\",SUMIFS('Project Scope'!$AO$8:$AO$107,'Project Scope'!$AN$8:$AN$107,$I53,'Project Scope'!$C$8:$C$107,CG$7)+SUMIFS('Project Scope'!$AX$8:$AX$107,'Project Scope'!$AW$8:$AW$107,$I53,'Project Scope'!$C$8:$C$107,CG$7),0)","v":0},{"$f":"IF(AI53=\"yes\",SUMIFS('Project Scope'!$AO$8:$AO$107,'Project Scope'!$AN$8:$AN$107,$I53,'Project Scope'!$C$8:$C$107,CH$7)+SUMIFS('Project Scope'!$AX$8:$AX$107,'Project Scope'!$AW$8:$AW$107,$I53,'Project Scope'!$C$8:$C$107,CH$7),0)","v":0},{"$f":"IF(AJ53=\"yes\",SUMIFS('Project Scope'!$AO$8:$AO$107,'Project Scope'!$AN$8:$AN$107,$I53,'Project Scope'!$C$8:$C$107,CI$7)+SUMIFS('Project Scope'!$AX$8:$AX$107,'Project Scope'!$AW$8:$AW$107,$I53,'Project Scope'!$C$8:$C$107,CI$7),0)","v":0},{"$f":"IF(AK53=\"yes\",SUMIFS('Project Scope'!$AO$8:$AO$107,'Project Scope'!$AN$8:$AN$107,$I53,'Project Scope'!$C$8:$C$107,CJ$7)+SUMIFS('Project Scope'!$AX$8:$AX$107,'Project Scope'!$AW$8:$AW$107,$I53,'Project Scope'!$C$8:$C$107,CJ$7),0)","v":0},{"$f":"IF(AL53=\"yes\",SUMIFS('Project Scope'!$AO$8:$AO$107,'Project Scope'!$AN$8:$AN$107,$I53,'Project Scope'!$C$8:$C$107,CK$7)+SUMIFS('Project Scope'!$AX$8:$AX$107,'Project Scope'!$AW$8:$AW$107,$I53,'Project Scope'!$C$8:$C$107,CK$7),0)","v":0},{"$f":"IF(AM53=\"yes\",SUMIFS('Project Scope'!$AO$8:$AO$107,'Project Scope'!$AN$8:$AN$107,$I53,'Project Scope'!$C$8:$C$107,CL$7)+SUMIFS('Project Scope'!$AX$8:$AX$107,'Project Scope'!$AW$8:$AW$107,$I53,'Project Scope'!$C$8:$C$107,CL$7),0)","v":0},{"$f":"IF(AN53=\"yes\",SUMIFS('Project Scope'!$AO$8:$AO$107,'Project Scope'!$AN$8:$AN$107,$I53,'Project Scope'!$C$8:$C$107,CM$7)+SUMIFS('Project Scope'!$AX$8:$AX$107,'Project Scope'!$AW$8:$AW$107,$I53,'Project Scope'!$C$8:$C$107,CM$7),0)","v":0},{"$f":"IF(AO53=\"yes\",SUMIFS('Project Scope'!$AO$8:$AO$107,'Project Scope'!$AN$8:$AN$107,$I53,'Project Scope'!$C$8:$C$107,CN$7)+SUMIFS('Project Scope'!$AX$8:$AX$107,'Project Scope'!$AW$8:$AW$107,$I53,'Project Scope'!$C$8:$C$107,CN$7),0)","v":0},{"$f":"IF(AP53=\"yes\",SUMIFS('Project Scope'!$AO$8:$AO$107,'Project Scope'!$AN$8:$AN$107,$I53,'Project Scope'!$C$8:$C$107,CO$7)+SUMIFS('Project Scope'!$AX$8:$AX$107,'Project Scope'!$AW$8:$AW$107,$I53,'Project Scope'!$C$8:$C$107,CO$7),0)","v":0},{"$f":"IF(AQ53=\"yes\",SUMIFS('Project Scope'!$AO$8:$AO$107,'Project Scope'!$AN$8:$AN$107,$I53,'Project Scope'!$C$8:$C$107,CP$7)+SUMIFS('Project Scope'!$AX$8:$AX$107,'Project Scope'!$AW$8:$AW$107,$I53,'Project Scope'!$C$8:$C$107,CP$7),0)","v":0},{"$f":"IF(AR53=\"yes\",SUMIFS('Project Scope'!$AO$8:$AO$107,'Project Scope'!$AN$8:$AN$107,$I53,'Project Scope'!$C$8:$C$107,CQ$7)+SUMIFS('Project Scope'!$AX$8:$AX$107,'Project Scope'!$AW$8:$AW$107,$I53,'Project Scope'!$C$8:$C$107,CQ$7),0)","v":0},{"$f":"IF(AS53=\"yes\",SUMIFS('Project Scope'!$AO$8:$AO$107,'Project Scope'!$AN$8:$AN$107,$I53,'Project Scope'!$C$8:$C$107,CR$7)+SUMIFS('Project Scope'!$AX$8:$AX$107,'Project Scope'!$AW$8:$AW$107,$I53,'Project Scope'!$C$8:$C$107,CR$7),0)","v":0},{"$f":"IF(AT53=\"yes\",SUMIFS('Project Scope'!$AO$8:$AO$107,'Project Scope'!$AN$8:$AN$107,$I53,'Project Scope'!$C$8:$C$107,CS$7)+SUMIFS('Project Scope'!$AX$8:$AX$107,'Project Scope'!$AW$8:$AW$107,$I53,'Project Scope'!$C$8:$C$107,CS$7),0)","v":0},{"$f":"IF(AU53=\"yes\",SUMIFS('Project Scope'!$AO$8:$AO$107,'Project Scope'!$AN$8:$AN$107,$I53,'Project Scope'!$C$8:$C$107,CT$7)+SUMIFS('Project Scope'!$AX$8:$AX$107,'Project Scope'!$AW$8:$AW$107,$I53,'Project Scope'!$C$8:$C$107,CT$7),0)","v":0},{"$f":"IF(AV53=\"yes\",SUMIFS('Project Scope'!$AO$8:$AO$107,'Project Scope'!$AN$8:$AN$107,$I53,'Project Scope'!$C$8:$C$107,CU$7)+SUMIFS('Project Scope'!$AX$8:$AX$107,'Project Scope'!$AW$8:$AW$107,$I53,'Project Scope'!$C$8:$C$107,CU$7),0)","v":0},{"$f":"IF(AW53=\"yes\",SUMIFS('Project Scope'!$AO$8:$AO$107,'Project Scope'!$AN$8:$AN$107,$I53,'Project Scope'!$C$8:$C$107,CV$7)+SUMIFS('Project Scope'!$AX$8:$AX$107,'Project Scope'!$AW$8:$AW$107,$I53,'Project Scope'!$C$8:$C$107,CV$7),0)","v":0},{"$f":"IF(AX53=\"yes\",SUMIFS('Project Scope'!$AO$8:$AO$107,'Project Scope'!$AN$8:$AN$107,$I53,'Project Scope'!$C$8:$C$107,CW$7)+SUMIFS('Project Scope'!$AX$8:$AX$107,'Project Scope'!$AW$8:$AW$107,$I53,'Project Scope'!$C$8:$C$107,CW$7),0)","v":0},{"$f":"IF(AY53=\"yes\",SUMIFS('Project Scope'!$AO$8:$AO$107,'Project Scope'!$AN$8:$AN$107,$I53,'Project Scope'!$C$8:$C$107,CX$7)+SUMIFS('Project Scope'!$AX$8:$AX$107,'Project Scope'!$AW$8:$AW$107,$I53,'Project Scope'!$C$8:$C$107,CX$7),0)","v":0},{"$f":"IF(AZ53=\"yes\",SUMIFS('Project Scope'!$AO$8:$AO$107,'Project Scope'!$AN$8:$AN$107,$I53,'Project Scope'!$C$8:$C$107,CY$7)+SUMIFS('Project Scope'!$AX$8:$AX$107,'Project Scope'!$AW$8:$AW$107,$I53,'Project Scope'!$C$8:$C$107,CY$7),0)","v":0},{"$f":"IF(BA53=\"yes\",SUMIFS('Project Scope'!$AO$8:$AO$107,'Project Scope'!$AN$8:$AN$107,$I53,'Project Scope'!$C$8:$C$107,CZ$7)+SUMIFS('Project Scope'!$AX$8:$AX$107,'Project Scope'!$AW$8:$AW$107,$I53,'Project Scope'!$C$8:$C$107,CZ$7),0)","v":0},{"$f":"IF(BB53=\"yes\",SUMIFS('Project Scope'!$AO$8:$AO$107,'Project Scope'!$AN$8:$AN$107,$I53,'Project Scope'!$C$8:$C$107,DA$7)+SUMIFS('Project Scope'!$AX$8:$AX$107,'Project Scope'!$AW$8:$AW$107,$I53,'Project Scope'!$C$8:$C$107,DA$7),0)","v":0},{"$f":"IF(BC53=\"yes\",SUMIFS('Project Scope'!$AO$8:$AO$107,'Project Scope'!$AN$8:$AN$107,$I53,'Project Scope'!$C$8:$C$107,DB$7)+SUMIFS('Project Scope'!$AX$8:$AX$107,'Project Scope'!$AW$8:$AW$107,$I53,'Project Scope'!$C$8:$C$107,DB$7),0)","v":0},{"$f":"IF(BD53=\"yes\",SUMIFS('Project Scope'!$AO$8:$AO$107,'Project Scope'!$AN$8:$AN$107,$I53,'Project Scope'!$C$8:$C$107,DC$7)+SUMIFS('Project Scope'!$AX$8:$AX$107,'Project Scope'!$AW$8:$AW$107,$I53,'Project Scope'!$C$8:$C$107,DC$7),0)","v":0},{"$f":"IF(BE53=\"yes\",SUMIFS('Project Scope'!$AO$8:$AO$107,'Project Scope'!$AN$8:$AN$107,$I53,'Project Scope'!$C$8:$C$107,DD$7)+SUMIFS('Project Scope'!$AX$8:$AX$107,'Project Scope'!$AW$8:$AW$107,$I53,'Project Scope'!$C$8:$C$107,DD$7),0)","v":0},{"$f":"IF(BF53=\"yes\",SUMIFS('Project Scope'!$AO$8:$AO$107,'Project Scope'!$AN$8:$AN$107,$I53,'Project Scope'!$C$8:$C$107,DE$7)+SUMIFS('Project Scope'!$AX$8:$AX$107,'Project Scope'!$AW$8:$AW$107,$I53,'Project Scope'!$C$8:$C$107,DE$7),0)","v":0},{"$f":"IF(BG53=\"yes\",SUMIFS('Project Scope'!$AO$8:$AO$107,'Project Scope'!$AN$8:$AN$107,$I53,'Project Scope'!$C$8:$C$107,DF$7)+SUMIFS('Project Scope'!$AX$8:$AX$107,'Project Scope'!$AW$8:$AW$107,$I53,'Project Scope'!$C$8:$C$107,DF$7),0)","v":0},{"$f":"IF(BH53=\"yes\",SUMIFS('Project Scope'!$AO$8:$AO$107,'Project Scope'!$AN$8:$AN$107,$I53,'Project Scope'!$C$8:$C$107,DG$7)+SUMIFS('Project Scope'!$AX$8:$AX$107,'Project Scope'!$AW$8:$AW$107,$I53,'Project Scope'!$C$8:$C$107,DG$7),0)","v":0},{"$f":"IF(BI53=\"yes\",SUMIFS('Project Scope'!$AO$8:$AO$107,'Project Scope'!$AN$8:$AN$107,$I53,'Project Scope'!$C$8:$C$107,DH$7)+SUMIFS('Project Scope'!$AX$8:$AX$107,'Project Scope'!$AW$8:$AW$107,$I53,'Project Scope'!$C$8:$C$107,DH$7),0)","v":0},{"$f":"IF(BJ53=\"yes\",SUMIFS('Project Scope'!$AO$8:$AO$107,'Project Scope'!$AN$8:$AN$107,$I53,'Project Scope'!$C$8:$C$107,DI$7)+SUMIFS('Project Scope'!$AX$8:$AX$107,'Project Scope'!$AW$8:$AW$107,$I53,'Project Scope'!$C$8:$C$107,DI$7),0)","v":0},{"$f":"IF(BK53=\"yes\",SUMIFS('Project Scope'!$AO$8:$AO$107,'Project Scope'!$AN$8:$AN$107,$I53,'Project Scope'!$C$8:$C$107,DJ$7)+SUMIFS('Project Scope'!$AX$8:$AX$107,'Project Scope'!$AW$8:$AW$107,$I53,'Project Scope'!$C$8:$C$107,DJ$7),0)","v":0},{"$f":"IF(BL53=\"yes\",SUMIFS('Project Scope'!$AO$8:$AO$107,'Project Scope'!$AN$8:$AN$107,$I53,'Project Scope'!$C$8:$C$107,DK$7)+SUMIFS('Project Scope'!$AX$8:$AX$107,'Project Scope'!$AW$8:$AW$107,$I53,'Project Scope'!$C$8:$C$107,DK$7),0)","v":0},null,"","","","","","","","","","","","","","","","","","","","","","","","","","","","","","","","","","","","","","","","","","","","","","","","","","",null,""]
[null,null,null,null,null,null,null,null,null,null,null,{"$f":"IF($C54=\"additional labor hours\",$K54*'Project Information'!$D$12,$K54*$J54)*IF($F54=\"Per Measure\",SUM($BN54:$DK54),1)","v":0},{"$f":"IF($C54=\"\",0,IF(VLOOKUP($C54,'Other Data'!$B$146:$C$156,2,FALSE)=\"M\",$L54,0))","v":0},0,null,null,null,null,null,null,null,null,null,null,null,null,null,null,null,null,null,null,null,null,null,null,null,null,null,null,null,null,null,null,null,null,null,null,null,null,null,null,null,null,null,null,null,null,null,null,null,null,null,null,null,{"$f":"IF(O54=\"yes\",SUMIFS('Project Scope'!$AO$8:$AO$107,'Project Scope'!$AN$8:$AN$107,$I54,'Project Scope'!$C$8:$C$107,BN$7)+SUMIFS('Project Scope'!$AX$8:$AX$107,'Project Scope'!$AW$8:$AW$107,$I54,'Project Scope'!$C$8:$C$107,BN$7),0)","v":0},{"$f":"IF(P54=\"yes\",SUMIFS('Project Scope'!$AO$8:$AO$107,'Project Scope'!$AN$8:$AN$107,$I54,'Project Scope'!$C$8:$C$107,BO$7)+SUMIFS('Project Scope'!$AX$8:$AX$107,'Project Scope'!$AW$8:$AW$107,$I54,'Project Scope'!$C$8:$C$107,BO$7),0)","v":0},{"$f":"IF(Q54=\"yes\",SUMIFS('Project Scope'!$AO$8:$AO$107,'Project Scope'!$AN$8:$AN$107,$I54,'Project Scope'!$C$8:$C$107,BP$7)+SUMIFS('Project Scope'!$AX$8:$AX$107,'Project Scope'!$AW$8:$AW$107,$I54,'Project Scope'!$C$8:$C$107,BP$7),0)","v":0},{"$f":"IF(R54=\"yes\",SUMIFS('Project Scope'!$AO$8:$AO$107,'Project Scope'!$AN$8:$AN$107,$I54,'Project Scope'!$C$8:$C$107,BQ$7)+SUMIFS('Project Scope'!$AX$8:$AX$107,'Project Scope'!$AW$8:$AW$107,$I54,'Project Scope'!$C$8:$C$107,BQ$7),0)","v":0},{"$f":"IF(S54=\"yes\",SUMIFS('Project Scope'!$AO$8:$AO$107,'Project Scope'!$AN$8:$AN$107,$I54,'Project Scope'!$C$8:$C$107,BR$7)+SUMIFS('Project Scope'!$AX$8:$AX$107,'Project Scope'!$AW$8:$AW$107,$I54,'Project Scope'!$C$8:$C$107,BR$7),0)","v":0},{"$f":"IF(T54=\"yes\",SUMIFS('Project Scope'!$AO$8:$AO$107,'Project Scope'!$AN$8:$AN$107,$I54,'Project Scope'!$C$8:$C$107,BS$7)+SUMIFS('Project Scope'!$AX$8:$AX$107,'Project Scope'!$AW$8:$AW$107,$I54,'Project Scope'!$C$8:$C$107,BS$7),0)","v":0},{"$f":"IF(U54=\"yes\",SUMIFS('Project Scope'!$AO$8:$AO$107,'Project Scope'!$AN$8:$AN$107,$I54,'Project Scope'!$C$8:$C$107,BT$7)+SUMIFS('Project Scope'!$AX$8:$AX$107,'Project Scope'!$AW$8:$AW$107,$I54,'Project Scope'!$C$8:$C$107,BT$7),0)","v":0},{"$f":"IF(V54=\"yes\",SUMIFS('Project Scope'!$AO$8:$AO$107,'Project Scope'!$AN$8:$AN$107,$I54,'Project Scope'!$C$8:$C$107,BU$7)+SUMIFS('Project Scope'!$AX$8:$AX$107,'Project Scope'!$AW$8:$AW$107,$I54,'Project Scope'!$C$8:$C$107,BU$7),0)","v":0},{"$f":"IF(W54=\"yes\",SUMIFS('Project Scope'!$AO$8:$AO$107,'Project Scope'!$AN$8:$AN$107,$I54,'Project Scope'!$C$8:$C$107,BV$7)+SUMIFS('Project Scope'!$AX$8:$AX$107,'Project Scope'!$AW$8:$AW$107,$I54,'Project Scope'!$C$8:$C$107,BV$7),0)","v":0},{"$f":"IF(X54=\"yes\",SUMIFS('Project Scope'!$AO$8:$AO$107,'Project Scope'!$AN$8:$AN$107,$I54,'Project Scope'!$C$8:$C$107,BW$7)+SUMIFS('Project Scope'!$AX$8:$AX$107,'Project Scope'!$AW$8:$AW$107,$I54,'Project Scope'!$C$8:$C$107,BW$7),0)","v":0},{"$f":"IF(Y54=\"yes\",SUMIFS('Project Scope'!$AO$8:$AO$107,'Project Scope'!$AN$8:$AN$107,$I54,'Project Scope'!$C$8:$C$107,BX$7)+SUMIFS('Project Scope'!$AX$8:$AX$107,'Project Scope'!$AW$8:$AW$107,$I54,'Project Scope'!$C$8:$C$107,BX$7),0)","v":0},{"$f":"IF(Z54=\"yes\",SUMIFS('Project Scope'!$AO$8:$AO$107,'Project Scope'!$AN$8:$AN$107,$I54,'Project Scope'!$C$8:$C$107,BY$7)+SUMIFS('Project Scope'!$AX$8:$AX$107,'Project Scope'!$AW$8:$AW$107,$I54,'Project Scope'!$C$8:$C$107,BY$7),0)","v":0},{"$f":"IF(AA54=\"yes\",SUMIFS('Project Scope'!$AO$8:$AO$107,'Project Scope'!$AN$8:$AN$107,$I54,'Project Scope'!$C$8:$C$107,BZ$7)+SUMIFS('Project Scope'!$AX$8:$AX$107,'Project Scope'!$AW$8:$AW$107,$I54,'Project Scope'!$C$8:$C$107,BZ$7),0)","v":0},{"$f":"IF(AB54=\"yes\",SUMIFS('Project Scope'!$AO$8:$AO$107,'Project Scope'!$AN$8:$AN$107,$I54,'Project Scope'!$C$8:$C$107,CA$7)+SUMIFS('Project Scope'!$AX$8:$AX$107,'Project Scope'!$AW$8:$AW$107,$I54,'Project Scope'!$C$8:$C$107,CA$7),0)","v":0},{"$f":"IF(AC54=\"yes\",SUMIFS('Project Scope'!$AO$8:$AO$107,'Project Scope'!$AN$8:$AN$107,$I54,'Project Scope'!$C$8:$C$107,CB$7)+SUMIFS('Project Scope'!$AX$8:$AX$107,'Project Scope'!$AW$8:$AW$107,$I54,'Project Scope'!$C$8:$C$107,CB$7),0)","v":0},{"$f":"IF(AD54=\"yes\",SUMIFS('Project Scope'!$AO$8:$AO$107,'Project Scope'!$AN$8:$AN$107,$I54,'Project Scope'!$C$8:$C$107,CC$7)+SUMIFS('Project Scope'!$AX$8:$AX$107,'Project Scope'!$AW$8:$AW$107,$I54,'Project Scope'!$C$8:$C$107,CC$7),0)","v":0},{"$f":"IF(AE54=\"yes\",SUMIFS('Project Scope'!$AO$8:$AO$107,'Project Scope'!$AN$8:$AN$107,$I54,'Project Scope'!$C$8:$C$107,CD$7)+SUMIFS('Project Scope'!$AX$8:$AX$107,'Project Scope'!$AW$8:$AW$107,$I54,'Project Scope'!$C$8:$C$107,CD$7),0)","v":0},{"$f":"IF(AF54=\"yes\",SUMIFS('Project Scope'!$AO$8:$AO$107,'Project Scope'!$AN$8:$AN$107,$I54,'Project Scope'!$C$8:$C$107,CE$7)+SUMIFS('Project Scope'!$AX$8:$AX$107,'Project Scope'!$AW$8:$AW$107,$I54,'Project Scope'!$C$8:$C$107,CE$7),0)","v":0},{"$f":"IF(AG54=\"yes\",SUMIFS('Project Scope'!$AO$8:$AO$107,'Project Scope'!$AN$8:$AN$107,$I54,'Project Scope'!$C$8:$C$107,CF$7)+SUMIFS('Project Scope'!$AX$8:$AX$107,'Project Scope'!$AW$8:$AW$107,$I54,'Project Scope'!$C$8:$C$107,CF$7),0)","v":0},{"$f":"IF(AH54=\"yes\",SUMIFS('Project Scope'!$AO$8:$AO$107,'Project Scope'!$AN$8:$AN$107,$I54,'Project Scope'!$C$8:$C$107,CG$7)+SUMIFS('Project Scope'!$AX$8:$AX$107,'Project Scope'!$AW$8:$AW$107,$I54,'Project Scope'!$C$8:$C$107,CG$7),0)","v":0},{"$f":"IF(AI54=\"yes\",SUMIFS('Project Scope'!$AO$8:$AO$107,'Project Scope'!$AN$8:$AN$107,$I54,'Project Scope'!$C$8:$C$107,CH$7)+SUMIFS('Project Scope'!$AX$8:$AX$107,'Project Scope'!$AW$8:$AW$107,$I54,'Project Scope'!$C$8:$C$107,CH$7),0)","v":0},{"$f":"IF(AJ54=\"yes\",SUMIFS('Project Scope'!$AO$8:$AO$107,'Project Scope'!$AN$8:$AN$107,$I54,'Project Scope'!$C$8:$C$107,CI$7)+SUMIFS('Project Scope'!$AX$8:$AX$107,'Project Scope'!$AW$8:$AW$107,$I54,'Project Scope'!$C$8:$C$107,CI$7),0)","v":0},{"$f":"IF(AK54=\"yes\",SUMIFS('Project Scope'!$AO$8:$AO$107,'Project Scope'!$AN$8:$AN$107,$I54,'Project Scope'!$C$8:$C$107,CJ$7)+SUMIFS('Project Scope'!$AX$8:$AX$107,'Project Scope'!$AW$8:$AW$107,$I54,'Project Scope'!$C$8:$C$107,CJ$7),0)","v":0},{"$f":"IF(AL54=\"yes\",SUMIFS('Project Scope'!$AO$8:$AO$107,'Project Scope'!$AN$8:$AN$107,$I54,'Project Scope'!$C$8:$C$107,CK$7)+SUMIFS('Project Scope'!$AX$8:$AX$107,'Project Scope'!$AW$8:$AW$107,$I54,'Project Scope'!$C$8:$C$107,CK$7),0)","v":0},{"$f":"IF(AM54=\"yes\",SUMIFS('Project Scope'!$AO$8:$AO$107,'Project Scope'!$AN$8:$AN$107,$I54,'Project Scope'!$C$8:$C$107,CL$7)+SUMIFS('Project Scope'!$AX$8:$AX$107,'Project Scope'!$AW$8:$AW$107,$I54,'Project Scope'!$C$8:$C$107,CL$7),0)","v":0},{"$f":"IF(AN54=\"yes\",SUMIFS('Project Scope'!$AO$8:$AO$107,'Project Scope'!$AN$8:$AN$107,$I54,'Project Scope'!$C$8:$C$107,CM$7)+SUMIFS('Project Scope'!$AX$8:$AX$107,'Project Scope'!$AW$8:$AW$107,$I54,'Project Scope'!$C$8:$C$107,CM$7),0)","v":0},{"$f":"IF(AO54=\"yes\",SUMIFS('Project Scope'!$AO$8:$AO$107,'Project Scope'!$AN$8:$AN$107,$I54,'Project Scope'!$C$8:$C$107,CN$7)+SUMIFS('Project Scope'!$AX$8:$AX$107,'Project Scope'!$AW$8:$AW$107,$I54,'Project Scope'!$C$8:$C$107,CN$7),0)","v":0},{"$f":"IF(AP54=\"yes\",SUMIFS('Project Scope'!$AO$8:$AO$107,'Project Scope'!$AN$8:$AN$107,$I54,'Project Scope'!$C$8:$C$107,CO$7)+SUMIFS('Project Scope'!$AX$8:$AX$107,'Project Scope'!$AW$8:$AW$107,$I54,'Project Scope'!$C$8:$C$107,CO$7),0)","v":0},{"$f":"IF(AQ54=\"yes\",SUMIFS('Project Scope'!$AO$8:$AO$107,'Project Scope'!$AN$8:$AN$107,$I54,'Project Scope'!$C$8:$C$107,CP$7)+SUMIFS('Project Scope'!$AX$8:$AX$107,'Project Scope'!$AW$8:$AW$107,$I54,'Project Scope'!$C$8:$C$107,CP$7),0)","v":0},{"$f":"IF(AR54=\"yes\",SUMIFS('Project Scope'!$AO$8:$AO$107,'Project Scope'!$AN$8:$AN$107,$I54,'Project Scope'!$C$8:$C$107,CQ$7)+SUMIFS('Project Scope'!$AX$8:$AX$107,'Project Scope'!$AW$8:$AW$107,$I54,'Project Scope'!$C$8:$C$107,CQ$7),0)","v":0},{"$f":"IF(AS54=\"yes\",SUMIFS('Project Scope'!$AO$8:$AO$107,'Project Scope'!$AN$8:$AN$107,$I54,'Project Scope'!$C$8:$C$107,CR$7)+SUMIFS('Project Scope'!$AX$8:$AX$107,'Project Scope'!$AW$8:$AW$107,$I54,'Project Scope'!$C$8:$C$107,CR$7),0)","v":0},{"$f":"IF(AT54=\"yes\",SUMIFS('Project Scope'!$AO$8:$AO$107,'Project Scope'!$AN$8:$AN$107,$I54,'Project Scope'!$C$8:$C$107,CS$7)+SUMIFS('Project Scope'!$AX$8:$AX$107,'Project Scope'!$AW$8:$AW$107,$I54,'Project Scope'!$C$8:$C$107,CS$7),0)","v":0},{"$f":"IF(AU54=\"yes\",SUMIFS('Project Scope'!$AO$8:$AO$107,'Project Scope'!$AN$8:$AN$107,$I54,'Project Scope'!$C$8:$C$107,CT$7)+SUMIFS('Project Scope'!$AX$8:$AX$107,'Project Scope'!$AW$8:$AW$107,$I54,'Project Scope'!$C$8:$C$107,CT$7),0)","v":0},{"$f":"IF(AV54=\"yes\",SUMIFS('Project Scope'!$AO$8:$AO$107,'Project Scope'!$AN$8:$AN$107,$I54,'Project Scope'!$C$8:$C$107,CU$7)+SUMIFS('Project Scope'!$AX$8:$AX$107,'Project Scope'!$AW$8:$AW$107,$I54,'Project Scope'!$C$8:$C$107,CU$7),0)","v":0},{"$f":"IF(AW54=\"yes\",SUMIFS('Project Scope'!$AO$8:$AO$107,'Project Scope'!$AN$8:$AN$107,$I54,'Project Scope'!$C$8:$C$107,CV$7)+SUMIFS('Project Scope'!$AX$8:$AX$107,'Project Scope'!$AW$8:$AW$107,$I54,'Project Scope'!$C$8:$C$107,CV$7),0)","v":0},{"$f":"IF(AX54=\"yes\",SUMIFS('Project Scope'!$AO$8:$AO$107,'Project Scope'!$AN$8:$AN$107,$I54,'Project Scope'!$C$8:$C$107,CW$7)+SUMIFS('Project Scope'!$AX$8:$AX$107,'Project Scope'!$AW$8:$AW$107,$I54,'Project Scope'!$C$8:$C$107,CW$7),0)","v":0},{"$f":"IF(AY54=\"yes\",SUMIFS('Project Scope'!$AO$8:$AO$107,'Project Scope'!$AN$8:$AN$107,$I54,'Project Scope'!$C$8:$C$107,CX$7)+SUMIFS('Project Scope'!$AX$8:$AX$107,'Project Scope'!$AW$8:$AW$107,$I54,'Project Scope'!$C$8:$C$107,CX$7),0)","v":0},{"$f":"IF(AZ54=\"yes\",SUMIFS('Project Scope'!$AO$8:$AO$107,'Project Scope'!$AN$8:$AN$107,$I54,'Project Scope'!$C$8:$C$107,CY$7)+SUMIFS('Project Scope'!$AX$8:$AX$107,'Project Scope'!$AW$8:$AW$107,$I54,'Project Scope'!$C$8:$C$107,CY$7),0)","v":0},{"$f":"IF(BA54=\"yes\",SUMIFS('Project Scope'!$AO$8:$AO$107,'Project Scope'!$AN$8:$AN$107,$I54,'Project Scope'!$C$8:$C$107,CZ$7)+SUMIFS('Project Scope'!$AX$8:$AX$107,'Project Scope'!$AW$8:$AW$107,$I54,'Project Scope'!$C$8:$C$107,CZ$7),0)","v":0},{"$f":"IF(BB54=\"yes\",SUMIFS('Project Scope'!$AO$8:$AO$107,'Project Scope'!$AN$8:$AN$107,$I54,'Project Scope'!$C$8:$C$107,DA$7)+SUMIFS('Project Scope'!$AX$8:$AX$107,'Project Scope'!$AW$8:$AW$107,$I54,'Project Scope'!$C$8:$C$107,DA$7),0)","v":0},{"$f":"IF(BC54=\"yes\",SUMIFS('Project Scope'!$AO$8:$AO$107,'Project Scope'!$AN$8:$AN$107,$I54,'Project Scope'!$C$8:$C$107,DB$7)+SUMIFS('Project Scope'!$AX$8:$AX$107,'Project Scope'!$AW$8:$AW$107,$I54,'Project Scope'!$C$8:$C$107,DB$7),0)","v":0},{"$f":"IF(BD54=\"yes\",SUMIFS('Project Scope'!$AO$8:$AO$107,'Project Scope'!$AN$8:$AN$107,$I54,'Project Scope'!$C$8:$C$107,DC$7)+SUMIFS('Project Scope'!$AX$8:$AX$107,'Project Scope'!$AW$8:$AW$107,$I54,'Project Scope'!$C$8:$C$107,DC$7),0)","v":0},{"$f":"IF(BE54=\"yes\",SUMIFS('Project Scope'!$AO$8:$AO$107,'Project Scope'!$AN$8:$AN$107,$I54,'Project Scope'!$C$8:$C$107,DD$7)+SUMIFS('Project Scope'!$AX$8:$AX$107,'Project Scope'!$AW$8:$AW$107,$I54,'Project Scope'!$C$8:$C$107,DD$7),0)","v":0},{"$f":"IF(BF54=\"yes\",SUMIFS('Project Scope'!$AO$8:$AO$107,'Project Scope'!$AN$8:$AN$107,$I54,'Project Scope'!$C$8:$C$107,DE$7)+SUMIFS('Project Scope'!$AX$8:$AX$107,'Project Scope'!$AW$8:$AW$107,$I54,'Project Scope'!$C$8:$C$107,DE$7),0)","v":0},{"$f":"IF(BG54=\"yes\",SUMIFS('Project Scope'!$AO$8:$AO$107,'Project Scope'!$AN$8:$AN$107,$I54,'Project Scope'!$C$8:$C$107,DF$7)+SUMIFS('Project Scope'!$AX$8:$AX$107,'Project Scope'!$AW$8:$AW$107,$I54,'Project Scope'!$C$8:$C$107,DF$7),0)","v":0},{"$f":"IF(BH54=\"yes\",SUMIFS('Project Scope'!$AO$8:$AO$107,'Project Scope'!$AN$8:$AN$107,$I54,'Project Scope'!$C$8:$C$107,DG$7)+SUMIFS('Project Scope'!$AX$8:$AX$107,'Project Scope'!$AW$8:$AW$107,$I54,'Project Scope'!$C$8:$C$107,DG$7),0)","v":0},{"$f":"IF(BI54=\"yes\",SUMIFS('Project Scope'!$AO$8:$AO$107,'Project Scope'!$AN$8:$AN$107,$I54,'Project Scope'!$C$8:$C$107,DH$7)+SUMIFS('Project Scope'!$AX$8:$AX$107,'Project Scope'!$AW$8:$AW$107,$I54,'Project Scope'!$C$8:$C$107,DH$7),0)","v":0},{"$f":"IF(BJ54=\"yes\",SUMIFS('Project Scope'!$AO$8:$AO$107,'Project Scope'!$AN$8:$AN$107,$I54,'Project Scope'!$C$8:$C$107,DI$7)+SUMIFS('Project Scope'!$AX$8:$AX$107,'Project Scope'!$AW$8:$AW$107,$I54,'Project Scope'!$C$8:$C$107,DI$7),0)","v":0},{"$f":"IF(BK54=\"yes\",SUMIFS('Project Scope'!$AO$8:$AO$107,'Project Scope'!$AN$8:$AN$107,$I54,'Project Scope'!$C$8:$C$107,DJ$7)+SUMIFS('Project Scope'!$AX$8:$AX$107,'Project Scope'!$AW$8:$AW$107,$I54,'Project Scope'!$C$8:$C$107,DJ$7),0)","v":0},{"$f":"IF(BL54=\"yes\",SUMIFS('Project Scope'!$AO$8:$AO$107,'Project Scope'!$AN$8:$AN$107,$I54,'Project Scope'!$C$8:$C$107,DK$7)+SUMIFS('Project Scope'!$AX$8:$AX$107,'Project Scope'!$AW$8:$AW$107,$I54,'Project Scope'!$C$8:$C$107,DK$7),0)","v":0},null,"","","","","","","","","","","","","","","","","","","","","","","","","","","","","","","","","","","","","","","","","","","","","","","","","","",null,""]
[null,null,null,null,null,null,null,null,null,null,null,{"$f":"IF($C55=\"additional labor hours\",$K55*'Project Information'!$D$12,$K55*$J55)*IF($F55=\"Per Measure\",SUM($BN55:$DK55),1)","v":0},{"$f":"IF($C55=\"\",0,IF(VLOOKUP($C55,'Other Data'!$B$146:$C$156,2,FALSE)=\"M\",$L55,0))","v":0},0,null,null,null,null,null,null,null,null,null,null,null,null,null,null,null,null,null,null,null,null,null,null,null,null,null,null,null,null,null,null,null,null,null,null,null,null,null,null,null,null,null,null,null,null,null,null,null,null,null,null,null,{"$f":"IF(O55=\"yes\",SUMIFS('Project Scope'!$AO$8:$AO$107,'Project Scope'!$AN$8:$AN$107,$I55,'Project Scope'!$C$8:$C$107,BN$7)+SUMIFS('Project Scope'!$AX$8:$AX$107,'Project Scope'!$AW$8:$AW$107,$I55,'Project Scope'!$C$8:$C$107,BN$7),0)","v":0},{"$f":"IF(P55=\"yes\",SUMIFS('Project Scope'!$AO$8:$AO$107,'Project Scope'!$AN$8:$AN$107,$I55,'Project Scope'!$C$8:$C$107,BO$7)+SUMIFS('Project Scope'!$AX$8:$AX$107,'Project Scope'!$AW$8:$AW$107,$I55,'Project Scope'!$C$8:$C$107,BO$7),0)","v":0},{"$f":"IF(Q55=\"yes\",SUMIFS('Project Scope'!$AO$8:$AO$107,'Project Scope'!$AN$8:$AN$107,$I55,'Project Scope'!$C$8:$C$107,BP$7)+SUMIFS('Project Scope'!$AX$8:$AX$107,'Project Scope'!$AW$8:$AW$107,$I55,'Project Scope'!$C$8:$C$107,BP$7),0)","v":0},{"$f":"IF(R55=\"yes\",SUMIFS('Project Scope'!$AO$8:$AO$107,'Project Scope'!$AN$8:$AN$107,$I55,'Project Scope'!$C$8:$C$107,BQ$7)+SUMIFS('Project Scope'!$AX$8:$AX$107,'Project Scope'!$AW$8:$AW$107,$I55,'Project Scope'!$C$8:$C$107,BQ$7),0)","v":0},{"$f":"IF(S55=\"yes\",SUMIFS('Project Scope'!$AO$8:$AO$107,'Project Scope'!$AN$8:$AN$107,$I55,'Project Scope'!$C$8:$C$107,BR$7)+SUMIFS('Project Scope'!$AX$8:$AX$107,'Project Scope'!$AW$8:$AW$107,$I55,'Project Scope'!$C$8:$C$107,BR$7),0)","v":0},{"$f":"IF(T55=\"yes\",SUMIFS('Project Scope'!$AO$8:$AO$107,'Project Scope'!$AN$8:$AN$107,$I55,'Project Scope'!$C$8:$C$107,BS$7)+SUMIFS('Project Scope'!$AX$8:$AX$107,'Project Scope'!$AW$8:$AW$107,$I55,'Project Scope'!$C$8:$C$107,BS$7),0)","v":0},{"$f":"IF(U55=\"yes\",SUMIFS('Project Scope'!$AO$8:$AO$107,'Project Scope'!$AN$8:$AN$107,$I55,'Project Scope'!$C$8:$C$107,BT$7)+SUMIFS('Project Scope'!$AX$8:$AX$107,'Project Scope'!$AW$8:$AW$107,$I55,'Project Scope'!$C$8:$C$107,BT$7),0)","v":0},{"$f":"IF(V55=\"yes\",SUMIFS('Project Scope'!$AO$8:$AO$107,'Project Scope'!$AN$8:$AN$107,$I55,'Project Scope'!$C$8:$C$107,BU$7)+SUMIFS('Project Scope'!$AX$8:$AX$107,'Project Scope'!$AW$8:$AW$107,$I55,'Project Scope'!$C$8:$C$107,BU$7),0)","v":0},{"$f":"IF(W55=\"yes\",SUMIFS('Project Scope'!$AO$8:$AO$107,'Project Scope'!$AN$8:$AN$107,$I55,'Project Scope'!$C$8:$C$107,BV$7)+SUMIFS('Project Scope'!$AX$8:$AX$107,'Project Scope'!$AW$8:$AW$107,$I55,'Project Scope'!$C$8:$C$107,BV$7),0)","v":0},{"$f":"IF(X55=\"yes\",SUMIFS('Project Scope'!$AO$8:$AO$107,'Project Scope'!$AN$8:$AN$107,$I55,'Project Scope'!$C$8:$C$107,BW$7)+SUMIFS('Project Scope'!$AX$8:$AX$107,'Project Scope'!$AW$8:$AW$107,$I55,'Project Scope'!$C$8:$C$107,BW$7),0)","v":0},{"$f":"IF(Y55=\"yes\",SUMIFS('Project Scope'!$AO$8:$AO$107,'Project Scope'!$AN$8:$AN$107,$I55,'Project Scope'!$C$8:$C$107,BX$7)+SUMIFS('Project Scope'!$AX$8:$AX$107,'Project Scope'!$AW$8:$AW$107,$I55,'Project Scope'!$C$8:$C$107,BX$7),0)","v":0},{"$f":"IF(Z55=\"yes\",SUMIFS('Project Scope'!$AO$8:$AO$107,'Project Scope'!$AN$8:$AN$107,$I55,'Project Scope'!$C$8:$C$107,BY$7)+SUMIFS('Project Scope'!$AX$8:$AX$107,'Project Scope'!$AW$8:$AW$107,$I55,'Project Scope'!$C$8:$C$107,BY$7),0)","v":0},{"$f":"IF(AA55=\"yes\",SUMIFS('Project Scope'!$AO$8:$AO$107,'Project Scope'!$AN$8:$AN$107,$I55,'Project Scope'!$C$8:$C$107,BZ$7)+SUMIFS('Project Scope'!$AX$8:$AX$107,'Project Scope'!$AW$8:$AW$107,$I55,'Project Scope'!$C$8:$C$107,BZ$7),0)","v":0},{"$f":"IF(AB55=\"yes\",SUMIFS('Project Scope'!$AO$8:$AO$107,'Project Scope'!$AN$8:$AN$107,$I55,'Project Scope'!$C$8:$C$107,CA$7)+SUMIFS('Project Scope'!$AX$8:$AX$107,'Project Scope'!$AW$8:$AW$107,$I55,'Project Scope'!$C$8:$C$107,CA$7),0)","v":0},{"$f":"IF(AC55=\"yes\",SUMIFS('Project Scope'!$AO$8:$AO$107,'Project Scope'!$AN$8:$AN$107,$I55,'Project Scope'!$C$8:$C$107,CB$7)+SUMIFS('Project Scope'!$AX$8:$AX$107,'Project Scope'!$AW$8:$AW$107,$I55,'Project Scope'!$C$8:$C$107,CB$7),0)","v":0},{"$f":"IF(AD55=\"yes\",SUMIFS('Project Scope'!$AO$8:$AO$107,'Project Scope'!$AN$8:$AN$107,$I55,'Project Scope'!$C$8:$C$107,CC$7)+SUMIFS('Project Scope'!$AX$8:$AX$107,'Project Scope'!$AW$8:$AW$107,$I55,'Project Scope'!$C$8:$C$107,CC$7),0)","v":0},{"$f":"IF(AE55=\"yes\",SUMIFS('Project Scope'!$AO$8:$AO$107,'Project Scope'!$AN$8:$AN$107,$I55,'Project Scope'!$C$8:$C$107,CD$7)+SUMIFS('Project Scope'!$AX$8:$AX$107,'Project Scope'!$AW$8:$AW$107,$I55,'Project Scope'!$C$8:$C$107,CD$7),0)","v":0},{"$f":"IF(AF55=\"yes\",SUMIFS('Project Scope'!$AO$8:$AO$107,'Project Scope'!$AN$8:$AN$107,$I55,'Project Scope'!$C$8:$C$107,CE$7)+SUMIFS('Project Scope'!$AX$8:$AX$107,'Project Scope'!$AW$8:$AW$107,$I55,'Project Scope'!$C$8:$C$107,CE$7),0)","v":0},{"$f":"IF(AG55=\"yes\",SUMIFS('Project Scope'!$AO$8:$AO$107,'Project Scope'!$AN$8:$AN$107,$I55,'Project Scope'!$C$8:$C$107,CF$7)+SUMIFS('Project Scope'!$AX$8:$AX$107,'Project Scope'!$AW$8:$AW$107,$I55,'Project Scope'!$C$8:$C$107,CF$7),0)","v":0},{"$f":"IF(AH55=\"yes\",SUMIFS('Project Scope'!$AO$8:$AO$107,'Project Scope'!$AN$8:$AN$107,$I55,'Project Scope'!$C$8:$C$107,CG$7)+SUMIFS('Project Scope'!$AX$8:$AX$107,'Project Scope'!$AW$8:$AW$107,$I55,'Project Scope'!$C$8:$C$107,CG$7),0)","v":0},{"$f":"IF(AI55=\"yes\",SUMIFS('Project Scope'!$AO$8:$AO$107,'Project Scope'!$AN$8:$AN$107,$I55,'Project Scope'!$C$8:$C$107,CH$7)+SUMIFS('Project Scope'!$AX$8:$AX$107,'Project Scope'!$AW$8:$AW$107,$I55,'Project Scope'!$C$8:$C$107,CH$7),0)","v":0},{"$f":"IF(AJ55=\"yes\",SUMIFS('Project Scope'!$AO$8:$AO$107,'Project Scope'!$AN$8:$AN$107,$I55,'Project Scope'!$C$8:$C$107,CI$7)+SUMIFS('Project Scope'!$AX$8:$AX$107,'Project Scope'!$AW$8:$AW$107,$I55,'Project Scope'!$C$8:$C$107,CI$7),0)","v":0},{"$f":"IF(AK55=\"yes\",SUMIFS('Project Scope'!$AO$8:$AO$107,'Project Scope'!$AN$8:$AN$107,$I55,'Project Scope'!$C$8:$C$107,CJ$7)+SUMIFS('Project Scope'!$AX$8:$AX$107,'Project Scope'!$AW$8:$AW$107,$I55,'Project Scope'!$C$8:$C$107,CJ$7),0)","v":0},{"$f":"IF(AL55=\"yes\",SUMIFS('Project Scope'!$AO$8:$AO$107,'Project Scope'!$AN$8:$AN$107,$I55,'Project Scope'!$C$8:$C$107,CK$7)+SUMIFS('Project Scope'!$AX$8:$AX$107,'Project Scope'!$AW$8:$AW$107,$I55,'Project Scope'!$C$8:$C$107,CK$7),0)","v":0},{"$f":"IF(AM55=\"yes\",SUMIFS('Project Scope'!$AO$8:$AO$107,'Project Scope'!$AN$8:$AN$107,$I55,'Project Scope'!$C$8:$C$107,CL$7)+SUMIFS('Project Scope'!$AX$8:$AX$107,'Project Scope'!$AW$8:$AW$107,$I55,'Project Scope'!$C$8:$C$107,CL$7),0)","v":0},{"$f":"IF(AN55=\"yes\",SUMIFS('Project Scope'!$AO$8:$AO$107,'Project Scope'!$AN$8:$AN$107,$I55,'Project Scope'!$C$8:$C$107,CM$7)+SUMIFS('Project Scope'!$AX$8:$AX$107,'Project Scope'!$AW$8:$AW$107,$I55,'Project Scope'!$C$8:$C$107,CM$7),0)","v":0},{"$f":"IF(AO55=\"yes\",SUMIFS('Project Scope'!$AO$8:$AO$107,'Project Scope'!$AN$8:$AN$107,$I55,'Project Scope'!$C$8:$C$107,CN$7)+SUMIFS('Project Scope'!$AX$8:$AX$107,'Project Scope'!$AW$8:$AW$107,$I55,'Project Scope'!$C$8:$C$107,CN$7),0)","v":0},{"$f":"IF(AP55=\"yes\",SUMIFS('Project Scope'!$AO$8:$AO$107,'Project Scope'!$AN$8:$AN$107,$I55,'Project Scope'!$C$8:$C$107,CO$7)+SUMIFS('Project Scope'!$AX$8:$AX$107,'Project Scope'!$AW$8:$AW$107,$I55,'Project Scope'!$C$8:$C$107,CO$7),0)","v":0},{"$f":"IF(AQ55=\"yes\",SUMIFS('Project Scope'!$AO$8:$AO$107,'Project Scope'!$AN$8:$AN$107,$I55,'Project Scope'!$C$8:$C$107,CP$7)+SUMIFS('Project Scope'!$AX$8:$AX$107,'Project Scope'!$AW$8:$AW$107,$I55,'Project Scope'!$C$8:$C$107,CP$7),0)","v":0},{"$f":"IF(AR55=\"yes\",SUMIFS('Project Scope'!$AO$8:$AO$107,'Project Scope'!$AN$8:$AN$107,$I55,'Project Scope'!$C$8:$C$107,CQ$7)+SUMIFS('Project Scope'!$AX$8:$AX$107,'Project Scope'!$AW$8:$AW$107,$I55,'Project Scope'!$C$8:$C$107,CQ$7),0)","v":0},{"$f":"IF(AS55=\"yes\",SUMIFS('Project Scope'!$AO$8:$AO$107,'Project Scope'!$AN$8:$AN$107,$I55,'Project Scope'!$C$8:$C$107,CR$7)+SUMIFS('Project Scope'!$AX$8:$AX$107,'Project Scope'!$AW$8:$AW$107,$I55,'Project Scope'!$C$8:$C$107,CR$7),0)","v":0},{"$f":"IF(AT55=\"yes\",SUMIFS('Project Scope'!$AO$8:$AO$107,'Project Scope'!$AN$8:$AN$107,$I55,'Project Scope'!$C$8:$C$107,CS$7)+SUMIFS('Project Scope'!$AX$8:$AX$107,'Project Scope'!$AW$8:$AW$107,$I55,'Project Scope'!$C$8:$C$107,CS$7),0)","v":0},{"$f":"IF(AU55=\"yes\",SUMIFS('Project Scope'!$AO$8:$AO$107,'Project Scope'!$AN$8:$AN$107,$I55,'Project Scope'!$C$8:$C$107,CT$7)+SUMIFS('Project Scope'!$AX$8:$AX$107,'Project Scope'!$AW$8:$AW$107,$I55,'Project Scope'!$C$8:$C$107,CT$7),0)","v":0},{"$f":"IF(AV55=\"yes\",SUMIFS('Project Scope'!$AO$8:$AO$107,'Project Scope'!$AN$8:$AN$107,$I55,'Project Scope'!$C$8:$C$107,CU$7)+SUMIFS('Project Scope'!$AX$8:$AX$107,'Project Scope'!$AW$8:$AW$107,$I55,'Project Scope'!$C$8:$C$107,CU$7),0)","v":0},{"$f":"IF(AW55=\"yes\",SUMIFS('Project Scope'!$AO$8:$AO$107,'Project Scope'!$AN$8:$AN$107,$I55,'Project Scope'!$C$8:$C$107,CV$7)+SUMIFS('Project Scope'!$AX$8:$AX$107,'Project Scope'!$AW$8:$AW$107,$I55,'Project Scope'!$C$8:$C$107,CV$7),0)","v":0},{"$f":"IF(AX55=\"yes\",SUMIFS('Project Scope'!$AO$8:$AO$107,'Project Scope'!$AN$8:$AN$107,$I55,'Project Scope'!$C$8:$C$107,CW$7)+SUMIFS('Project Scope'!$AX$8:$AX$107,'Project Scope'!$AW$8:$AW$107,$I55,'Project Scope'!$C$8:$C$107,CW$7),0)","v":0},{"$f":"IF(AY55=\"yes\",SUMIFS('Project Scope'!$AO$8:$AO$107,'Project Scope'!$AN$8:$AN$107,$I55,'Project Scope'!$C$8:$C$107,CX$7)+SUMIFS('Project Scope'!$AX$8:$AX$107,'Project Scope'!$AW$8:$AW$107,$I55,'Project Scope'!$C$8:$C$107,CX$7),0)","v":0},{"$f":"IF(AZ55=\"yes\",SUMIFS('Project Scope'!$AO$8:$AO$107,'Project Scope'!$AN$8:$AN$107,$I55,'Project Scope'!$C$8:$C$107,CY$7)+SUMIFS('Project Scope'!$AX$8:$AX$107,'Project Scope'!$AW$8:$AW$107,$I55,'Project Scope'!$C$8:$C$107,CY$7),0)","v":0},{"$f":"IF(BA55=\"yes\",SUMIFS('Project Scope'!$AO$8:$AO$107,'Project Scope'!$AN$8:$AN$107,$I55,'Project Scope'!$C$8:$C$107,CZ$7)+SUMIFS('Project Scope'!$AX$8:$AX$107,'Project Scope'!$AW$8:$AW$107,$I55,'Project Scope'!$C$8:$C$107,CZ$7),0)","v":0},{"$f":"IF(BB55=\"yes\",SUMIFS('Project Scope'!$AO$8:$AO$107,'Project Scope'!$AN$8:$AN$107,$I55,'Project Scope'!$C$8:$C$107,DA$7)+SUMIFS('Project Scope'!$AX$8:$AX$107,'Project Scope'!$AW$8:$AW$107,$I55,'Project Scope'!$C$8:$C$107,DA$7),0)","v":0},{"$f":"IF(BC55=\"yes\",SUMIFS('Project Scope'!$AO$8:$AO$107,'Project Scope'!$AN$8:$AN$107,$I55,'Project Scope'!$C$8:$C$107,DB$7)+SUMIFS('Project Scope'!$AX$8:$AX$107,'Project Scope'!$AW$8:$AW$107,$I55,'Project Scope'!$C$8:$C$107,DB$7),0)","v":0},{"$f":"IF(BD55=\"yes\",SUMIFS('Project Scope'!$AO$8:$AO$107,'Project Scope'!$AN$8:$AN$107,$I55,'Project Scope'!$C$8:$C$107,DC$7)+SUMIFS('Project Scope'!$AX$8:$AX$107,'Project Scope'!$AW$8:$AW$107,$I55,'Project Scope'!$C$8:$C$107,DC$7),0)","v":0},{"$f":"IF(BE55=\"yes\",SUMIFS('Project Scope'!$AO$8:$AO$107,'Project Scope'!$AN$8:$AN$107,$I55,'Project Scope'!$C$8:$C$107,DD$7)+SUMIFS('Project Scope'!$AX$8:$AX$107,'Project Scope'!$AW$8:$AW$107,$I55,'Project Scope'!$C$8:$C$107,DD$7),0)","v":0},{"$f":"IF(BF55=\"yes\",SUMIFS('Project Scope'!$AO$8:$AO$107,'Project Scope'!$AN$8:$AN$107,$I55,'Project Scope'!$C$8:$C$107,DE$7)+SUMIFS('Project Scope'!$AX$8:$AX$107,'Project Scope'!$AW$8:$AW$107,$I55,'Project Scope'!$C$8:$C$107,DE$7),0)","v":0},{"$f":"IF(BG55=\"yes\",SUMIFS('Project Scope'!$AO$8:$AO$107,'Project Scope'!$AN$8:$AN$107,$I55,'Project Scope'!$C$8:$C$107,DF$7)+SUMIFS('Project Scope'!$AX$8:$AX$107,'Project Scope'!$AW$8:$AW$107,$I55,'Project Scope'!$C$8:$C$107,DF$7),0)","v":0},{"$f":"IF(BH55=\"yes\",SUMIFS('Project Scope'!$AO$8:$AO$107,'Project Scope'!$AN$8:$AN$107,$I55,'Project Scope'!$C$8:$C$107,DG$7)+SUMIFS('Project Scope'!$AX$8:$AX$107,'Project Scope'!$AW$8:$AW$107,$I55,'Project Scope'!$C$8:$C$107,DG$7),0)","v":0},{"$f":"IF(BI55=\"yes\",SUMIFS('Project Scope'!$AO$8:$AO$107,'Project Scope'!$AN$8:$AN$107,$I55,'Project Scope'!$C$8:$C$107,DH$7)+SUMIFS('Project Scope'!$AX$8:$AX$107,'Project Scope'!$AW$8:$AW$107,$I55,'Project Scope'!$C$8:$C$107,DH$7),0)","v":0},{"$f":"IF(BJ55=\"yes\",SUMIFS('Project Scope'!$AO$8:$AO$107,'Project Scope'!$AN$8:$AN$107,$I55,'Project Scope'!$C$8:$C$107,DI$7)+SUMIFS('Project Scope'!$AX$8:$AX$107,'Project Scope'!$AW$8:$AW$107,$I55,'Project Scope'!$C$8:$C$107,DI$7),0)","v":0},{"$f":"IF(BK55=\"yes\",SUMIFS('Project Scope'!$AO$8:$AO$107,'Project Scope'!$AN$8:$AN$107,$I55,'Project Scope'!$C$8:$C$107,DJ$7)+SUMIFS('Project Scope'!$AX$8:$AX$107,'Project Scope'!$AW$8:$AW$107,$I55,'Project Scope'!$C$8:$C$107,DJ$7),0)","v":0},{"$f":"IF(BL55=\"yes\",SUMIFS('Project Scope'!$AO$8:$AO$107,'Project Scope'!$AN$8:$AN$107,$I55,'Project Scope'!$C$8:$C$107,DK$7)+SUMIFS('Project Scope'!$AX$8:$AX$107,'Project Scope'!$AW$8:$AW$107,$I55,'Project Scope'!$C$8:$C$107,DK$7),0)","v":0},null,"","","","","","","","","","","","","","","","","","","","","","","","","","","","","","","","","","","","","","","","","","","","","","","","","","",null,""]
[null,null,null,null,null,null,null,null,null,null,null,{"$f":"IF($C56=\"additional labor hours\",$K56*'Project Information'!$D$12,$K56*$J56)*IF($F56=\"Per Measure\",SUM($BN56:$DK56),1)","v":0},{"$f":"IF($C56=\"\",0,IF(VLOOKUP($C56,'Other Data'!$B$146:$C$156,2,FALSE)=\"M\",$L56,0))","v":0},0,null,null,null,null,null,null,null,null,null,null,null,null,null,null,null,null,null,null,null,null,null,null,null,null,null,null,null,null,null,null,null,null,null,null,null,null,null,null,null,null,null,null,null,null,null,null,null,null,null,null,null,{"$f":"IF(O56=\"yes\",SUMIFS('Project Scope'!$AO$8:$AO$107,'Project Scope'!$AN$8:$AN$107,$I56,'Project Scope'!$C$8:$C$107,BN$7)+SUMIFS('Project Scope'!$AX$8:$AX$107,'Project Scope'!$AW$8:$AW$107,$I56,'Project Scope'!$C$8:$C$107,BN$7),0)","v":0},{"$f":"IF(P56=\"yes\",SUMIFS('Project Scope'!$AO$8:$AO$107,'Project Scope'!$AN$8:$AN$107,$I56,'Project Scope'!$C$8:$C$107,BO$7)+SUMIFS('Project Scope'!$AX$8:$AX$107,'Project Scope'!$AW$8:$AW$107,$I56,'Project Scope'!$C$8:$C$107,BO$7),0)","v":0},{"$f":"IF(Q56=\"yes\",SUMIFS('Project Scope'!$AO$8:$AO$107,'Project Scope'!$AN$8:$AN$107,$I56,'Project Scope'!$C$8:$C$107,BP$7)+SUMIFS('Project Scope'!$AX$8:$AX$107,'Project Scope'!$AW$8:$AW$107,$I56,'Project Scope'!$C$8:$C$107,BP$7),0)","v":0},{"$f":"IF(R56=\"yes\",SUMIFS('Project Scope'!$AO$8:$AO$107,'Project Scope'!$AN$8:$AN$107,$I56,'Project Scope'!$C$8:$C$107,BQ$7)+SUMIFS('Project Scope'!$AX$8:$AX$107,'Project Scope'!$AW$8:$AW$107,$I56,'Project Scope'!$C$8:$C$107,BQ$7),0)","v":0},{"$f":"IF(S56=\"yes\",SUMIFS('Project Scope'!$AO$8:$AO$107,'Project Scope'!$AN$8:$AN$107,$I56,'Project Scope'!$C$8:$C$107,BR$7)+SUMIFS('Project Scope'!$AX$8:$AX$107,'Project Scope'!$AW$8:$AW$107,$I56,'Project Scope'!$C$8:$C$107,BR$7),0)","v":0},{"$f":"IF(T56=\"yes\",SUMIFS('Project Scope'!$AO$8:$AO$107,'Project Scope'!$AN$8:$AN$107,$I56,'Project Scope'!$C$8:$C$107,BS$7)+SUMIFS('Project Scope'!$AX$8:$AX$107,'Project Scope'!$AW$8:$AW$107,$I56,'Project Scope'!$C$8:$C$107,BS$7),0)","v":0},{"$f":"IF(U56=\"yes\",SUMIFS('Project Scope'!$AO$8:$AO$107,'Project Scope'!$AN$8:$AN$107,$I56,'Project Scope'!$C$8:$C$107,BT$7)+SUMIFS('Project Scope'!$AX$8:$AX$107,'Project Scope'!$AW$8:$AW$107,$I56,'Project Scope'!$C$8:$C$107,BT$7),0)","v":0},{"$f":"IF(V56=\"yes\",SUMIFS('Project Scope'!$AO$8:$AO$107,'Project Scope'!$AN$8:$AN$107,$I56,'Project Scope'!$C$8:$C$107,BU$7)+SUMIFS('Project Scope'!$AX$8:$AX$107,'Project Scope'!$AW$8:$AW$107,$I56,'Project Scope'!$C$8:$C$107,BU$7),0)","v":0},{"$f":"IF(W56=\"yes\",SUMIFS('Project Scope'!$AO$8:$AO$107,'Project Scope'!$AN$8:$AN$107,$I56,'Project Scope'!$C$8:$C$107,BV$7)+SUMIFS('Project Scope'!$AX$8:$AX$107,'Project Scope'!$AW$8:$AW$107,$I56,'Project Scope'!$C$8:$C$107,BV$7),0)","v":0},{"$f":"IF(X56=\"yes\",SUMIFS('Project Scope'!$AO$8:$AO$107,'Project Scope'!$AN$8:$AN$107,$I56,'Project Scope'!$C$8:$C$107,BW$7)+SUMIFS('Project Scope'!$AX$8:$AX$107,'Project Scope'!$AW$8:$AW$107,$I56,'Project Scope'!$C$8:$C$107,BW$7),0)","v":0},{"$f":"IF(Y56=\"yes\",SUMIFS('Project Scope'!$AO$8:$AO$107,'Project Scope'!$AN$8:$AN$107,$I56,'Project Scope'!$C$8:$C$107,BX$7)+SUMIFS('Project Scope'!$AX$8:$AX$107,'Project Scope'!$AW$8:$AW$107,$I56,'Project Scope'!$C$8:$C$107,BX$7),0)","v":0},{"$f":"IF(Z56=\"yes\",SUMIFS('Project Scope'!$AO$8:$AO$107,'Project Scope'!$AN$8:$AN$107,$I56,'Project Scope'!$C$8:$C$107,BY$7)+SUMIFS('Project Scope'!$AX$8:$AX$107,'Project Scope'!$AW$8:$AW$107,$I56,'Project Scope'!$C$8:$C$107,BY$7),0)","v":0},{"$f":"IF(AA56=\"yes\",SUMIFS('Project Scope'!$AO$8:$AO$107,'Project Scope'!$AN$8:$AN$107,$I56,'Project Scope'!$C$8:$C$107,BZ$7)+SUMIFS('Project Scope'!$AX$8:$AX$107,'Project Scope'!$AW$8:$AW$107,$I56,'Project Scope'!$C$8:$C$107,BZ$7),0)","v":0},{"$f":"IF(AB56=\"yes\",SUMIFS('Project Scope'!$AO$8:$AO$107,'Project Scope'!$AN$8:$AN$107,$I56,'Project Scope'!$C$8:$C$107,CA$7)+SUMIFS('Project Scope'!$AX$8:$AX$107,'Project Scope'!$AW$8:$AW$107,$I56,'Project Scope'!$C$8:$C$107,CA$7),0)","v":0},{"$f":"IF(AC56=\"yes\",SUMIFS('Project Scope'!$AO$8:$AO$107,'Project Scope'!$AN$8:$AN$107,$I56,'Project Scope'!$C$8:$C$107,CB$7)+SUMIFS('Project Scope'!$AX$8:$AX$107,'Project Scope'!$AW$8:$AW$107,$I56,'Project Scope'!$C$8:$C$107,CB$7),0)","v":0},{"$f":"IF(AD56=\"yes\",SUMIFS('Project Scope'!$AO$8:$AO$107,'Project Scope'!$AN$8:$AN$107,$I56,'Project Scope'!$C$8:$C$107,CC$7)+SUMIFS('Project Scope'!$AX$8:$AX$107,'Project Scope'!$AW$8:$AW$107,$I56,'Project Scope'!$C$8:$C$107,CC$7),0)","v":0},{"$f":"IF(AE56=\"yes\",SUMIFS('Project Scope'!$AO$8:$AO$107,'Project Scope'!$AN$8:$AN$107,$I56,'Project Scope'!$C$8:$C$107,CD$7)+SUMIFS('Project Scope'!$AX$8:$AX$107,'Project Scope'!$AW$8:$AW$107,$I56,'Project Scope'!$C$8:$C$107,CD$7),0)","v":0},{"$f":"IF(AF56=\"yes\",SUMIFS('Project Scope'!$AO$8:$AO$107,'Project Scope'!$AN$8:$AN$107,$I56,'Project Scope'!$C$8:$C$107,CE$7)+SUMIFS('Project Scope'!$AX$8:$AX$107,'Project Scope'!$AW$8:$AW$107,$I56,'Project Scope'!$C$8:$C$107,CE$7),0)","v":0},{"$f":"IF(AG56=\"yes\",SUMIFS('Project Scope'!$AO$8:$AO$107,'Project Scope'!$AN$8:$AN$107,$I56,'Project Scope'!$C$8:$C$107,CF$7)+SUMIFS('Project Scope'!$AX$8:$AX$107,'Project Scope'!$AW$8:$AW$107,$I56,'Project Scope'!$C$8:$C$107,CF$7),0)","v":0},{"$f":"IF(AH56=\"yes\",SUMIFS('Project Scope'!$AO$8:$AO$107,'Project Scope'!$AN$8:$AN$107,$I56,'Project Scope'!$C$8:$C$107,CG$7)+SUMIFS('Project Scope'!$AX$8:$AX$107,'Project Scope'!$AW$8:$AW$107,$I56,'Project Scope'!$C$8:$C$107,CG$7),0)","v":0},{"$f":"IF(AI56=\"yes\",SUMIFS('Project Scope'!$AO$8:$AO$107,'Project Scope'!$AN$8:$AN$107,$I56,'Project Scope'!$C$8:$C$107,CH$7)+SUMIFS('Project Scope'!$AX$8:$AX$107,'Project Scope'!$AW$8:$AW$107,$I56,'Project Scope'!$C$8:$C$107,CH$7),0)","v":0},{"$f":"IF(AJ56=\"yes\",SUMIFS('Project Scope'!$AO$8:$AO$107,'Project Scope'!$AN$8:$AN$107,$I56,'Project Scope'!$C$8:$C$107,CI$7)+SUMIFS('Project Scope'!$AX$8:$AX$107,'Project Scope'!$AW$8:$AW$107,$I56,'Project Scope'!$C$8:$C$107,CI$7),0)","v":0},{"$f":"IF(AK56=\"yes\",SUMIFS('Project Scope'!$AO$8:$AO$107,'Project Scope'!$AN$8:$AN$107,$I56,'Project Scope'!$C$8:$C$107,CJ$7)+SUMIFS('Project Scope'!$AX$8:$AX$107,'Project Scope'!$AW$8:$AW$107,$I56,'Project Scope'!$C$8:$C$107,CJ$7),0)","v":0},{"$f":"IF(AL56=\"yes\",SUMIFS('Project Scope'!$AO$8:$AO$107,'Project Scope'!$AN$8:$AN$107,$I56,'Project Scope'!$C$8:$C$107,CK$7)+SUMIFS('Project Scope'!$AX$8:$AX$107,'Project Scope'!$AW$8:$AW$107,$I56,'Project Scope'!$C$8:$C$107,CK$7),0)","v":0},{"$f":"IF(AM56=\"yes\",SUMIFS('Project Scope'!$AO$8:$AO$107,'Project Scope'!$AN$8:$AN$107,$I56,'Project Scope'!$C$8:$C$107,CL$7)+SUMIFS('Project Scope'!$AX$8:$AX$107,'Project Scope'!$AW$8:$AW$107,$I56,'Project Scope'!$C$8:$C$107,CL$7),0)","v":0},{"$f":"IF(AN56=\"yes\",SUMIFS('Project Scope'!$AO$8:$AO$107,'Project Scope'!$AN$8:$AN$107,$I56,'Project Scope'!$C$8:$C$107,CM$7)+SUMIFS('Project Scope'!$AX$8:$AX$107,'Project Scope'!$AW$8:$AW$107,$I56,'Project Scope'!$C$8:$C$107,CM$7),0)","v":0},{"$f":"IF(AO56=\"yes\",SUMIFS('Project Scope'!$AO$8:$AO$107,'Project Scope'!$AN$8:$AN$107,$I56,'Project Scope'!$C$8:$C$107,CN$7)+SUMIFS('Project Scope'!$AX$8:$AX$107,'Project Scope'!$AW$8:$AW$107,$I56,'Project Scope'!$C$8:$C$107,CN$7),0)","v":0},{"$f":"IF(AP56=\"yes\",SUMIFS('Project Scope'!$AO$8:$AO$107,'Project Scope'!$AN$8:$AN$107,$I56,'Project Scope'!$C$8:$C$107,CO$7)+SUMIFS('Project Scope'!$AX$8:$AX$107,'Project Scope'!$AW$8:$AW$107,$I56,'Project Scope'!$C$8:$C$107,CO$7),0)","v":0},{"$f":"IF(AQ56=\"yes\",SUMIFS('Project Scope'!$AO$8:$AO$107,'Project Scope'!$AN$8:$AN$107,$I56,'Project Scope'!$C$8:$C$107,CP$7)+SUMIFS('Project Scope'!$AX$8:$AX$107,'Project Scope'!$AW$8:$AW$107,$I56,'Project Scope'!$C$8:$C$107,CP$7),0)","v":0},{"$f":"IF(AR56=\"yes\",SUMIFS('Project Scope'!$AO$8:$AO$107,'Project Scope'!$AN$8:$AN$107,$I56,'Project Scope'!$C$8:$C$107,CQ$7)+SUMIFS('Project Scope'!$AX$8:$AX$107,'Project Scope'!$AW$8:$AW$107,$I56,'Project Scope'!$C$8:$C$107,CQ$7),0)","v":0},{"$f":"IF(AS56=\"yes\",SUMIFS('Project Scope'!$AO$8:$AO$107,'Project Scope'!$AN$8:$AN$107,$I56,'Project Scope'!$C$8:$C$107,CR$7)+SUMIFS('Project Scope'!$AX$8:$AX$107,'Project Scope'!$AW$8:$AW$107,$I56,'Project Scope'!$C$8:$C$107,CR$7),0)","v":0},{"$f":"IF(AT56=\"yes\",SUMIFS('Project Scope'!$AO$8:$AO$107,'Project Scope'!$AN$8:$AN$107,$I56,'Project Scope'!$C$8:$C$107,CS$7)+SUMIFS('Project Scope'!$AX$8:$AX$107,'Project Scope'!$AW$8:$AW$107,$I56,'Project Scope'!$C$8:$C$107,CS$7),0)","v":0},{"$f":"IF(AU56=\"yes\",SUMIFS('Project Scope'!$AO$8:$AO$107,'Project Scope'!$AN$8:$AN$107,$I56,'Project Scope'!$C$8:$C$107,CT$7)+SUMIFS('Project Scope'!$AX$8:$AX$107,'Project Scope'!$AW$8:$AW$107,$I56,'Project Scope'!$C$8:$C$107,CT$7),0)","v":0},{"$f":"IF(AV56=\"yes\",SUMIFS('Project Scope'!$AO$8:$AO$107,'Project Scope'!$AN$8:$AN$107,$I56,'Project Scope'!$C$8:$C$107,CU$7)+SUMIFS('Project Scope'!$AX$8:$AX$107,'Project Scope'!$AW$8:$AW$107,$I56,'Project Scope'!$C$8:$C$107,CU$7),0)","v":0},{"$f":"IF(AW56=\"yes\",SUMIFS('Project Scope'!$AO$8:$AO$107,'Project Scope'!$AN$8:$AN$107,$I56,'Project Scope'!$C$8:$C$107,CV$7)+SUMIFS('Project Scope'!$AX$8:$AX$107,'Project Scope'!$AW$8:$AW$107,$I56,'Project Scope'!$C$8:$C$107,CV$7),0)","v":0},{"$f":"IF(AX56=\"yes\",SUMIFS('Project Scope'!$AO$8:$AO$107,'Project Scope'!$AN$8:$AN$107,$I56,'Project Scope'!$C$8:$C$107,CW$7)+SUMIFS('Project Scope'!$AX$8:$AX$107,'Project Scope'!$AW$8:$AW$107,$I56,'Project Scope'!$C$8:$C$107,CW$7),0)","v":0},{"$f":"IF(AY56=\"yes\",SUMIFS('Project Scope'!$AO$8:$AO$107,'Project Scope'!$AN$8:$AN$107,$I56,'Project Scope'!$C$8:$C$107,CX$7)+SUMIFS('Project Scope'!$AX$8:$AX$107,'Project Scope'!$AW$8:$AW$107,$I56,'Project Scope'!$C$8:$C$107,CX$7),0)","v":0},{"$f":"IF(AZ56=\"yes\",SUMIFS('Project Scope'!$AO$8:$AO$107,'Project Scope'!$AN$8:$AN$107,$I56,'Project Scope'!$C$8:$C$107,CY$7)+SUMIFS('Project Scope'!$AX$8:$AX$107,'Project Scope'!$AW$8:$AW$107,$I56,'Project Scope'!$C$8:$C$107,CY$7),0)","v":0},{"$f":"IF(BA56=\"yes\",SUMIFS('Project Scope'!$AO$8:$AO$107,'Project Scope'!$AN$8:$AN$107,$I56,'Project Scope'!$C$8:$C$107,CZ$7)+SUMIFS('Project Scope'!$AX$8:$AX$107,'Project Scope'!$AW$8:$AW$107,$I56,'Project Scope'!$C$8:$C$107,CZ$7),0)","v":0},{"$f":"IF(BB56=\"yes\",SUMIFS('Project Scope'!$AO$8:$AO$107,'Project Scope'!$AN$8:$AN$107,$I56,'Project Scope'!$C$8:$C$107,DA$7)+SUMIFS('Project Scope'!$AX$8:$AX$107,'Project Scope'!$AW$8:$AW$107,$I56,'Project Scope'!$C$8:$C$107,DA$7),0)","v":0},{"$f":"IF(BC56=\"yes\",SUMIFS('Project Scope'!$AO$8:$AO$107,'Project Scope'!$AN$8:$AN$107,$I56,'Project Scope'!$C$8:$C$107,DB$7)+SUMIFS('Project Scope'!$AX$8:$AX$107,'Project Scope'!$AW$8:$AW$107,$I56,'Project Scope'!$C$8:$C$107,DB$7),0)","v":0},{"$f":"IF(BD56=\"yes\",SUMIFS('Project Scope'!$AO$8:$AO$107,'Project Scope'!$AN$8:$AN$107,$I56,'Project Scope'!$C$8:$C$107,DC$7)+SUMIFS('Project Scope'!$AX$8:$AX$107,'Project Scope'!$AW$8:$AW$107,$I56,'Project Scope'!$C$8:$C$107,DC$7),0)","v":0},{"$f":"IF(BE56=\"yes\",SUMIFS('Project Scope'!$AO$8:$AO$107,'Project Scope'!$AN$8:$AN$107,$I56,'Project Scope'!$C$8:$C$107,DD$7)+SUMIFS('Project Scope'!$AX$8:$AX$107,'Project Scope'!$AW$8:$AW$107,$I56,'Project Scope'!$C$8:$C$107,DD$7),0)","v":0},{"$f":"IF(BF56=\"yes\",SUMIFS('Project Scope'!$AO$8:$AO$107,'Project Scope'!$AN$8:$AN$107,$I56,'Project Scope'!$C$8:$C$107,DE$7)+SUMIFS('Project Scope'!$AX$8:$AX$107,'Project Scope'!$AW$8:$AW$107,$I56,'Project Scope'!$C$8:$C$107,DE$7),0)","v":0},{"$f":"IF(BG56=\"yes\",SUMIFS('Project Scope'!$AO$8:$AO$107,'Project Scope'!$AN$8:$AN$107,$I56,'Project Scope'!$C$8:$C$107,DF$7)+SUMIFS('Project Scope'!$AX$8:$AX$107,'Project Scope'!$AW$8:$AW$107,$I56,'Project Scope'!$C$8:$C$107,DF$7),0)","v":0},{"$f":"IF(BH56=\"yes\",SUMIFS('Project Scope'!$AO$8:$AO$107,'Project Scope'!$AN$8:$AN$107,$I56,'Project Scope'!$C$8:$C$107,DG$7)+SUMIFS('Project Scope'!$AX$8:$AX$107,'Project Scope'!$AW$8:$AW$107,$I56,'Project Scope'!$C$8:$C$107,DG$7),0)","v":0},{"$f":"IF(BI56=\"yes\",SUMIFS('Project Scope'!$AO$8:$AO$107,'Project Scope'!$AN$8:$AN$107,$I56,'Project Scope'!$C$8:$C$107,DH$7)+SUMIFS('Project Scope'!$AX$8:$AX$107,'Project Scope'!$AW$8:$AW$107,$I56,'Project Scope'!$C$8:$C$107,DH$7),0)","v":0},{"$f":"IF(BJ56=\"yes\",SUMIFS('Project Scope'!$AO$8:$AO$107,'Project Scope'!$AN$8:$AN$107,$I56,'Project Scope'!$C$8:$C$107,DI$7)+SUMIFS('Project Scope'!$AX$8:$AX$107,'Project Scope'!$AW$8:$AW$107,$I56,'Project Scope'!$C$8:$C$107,DI$7),0)","v":0},{"$f":"IF(BK56=\"yes\",SUMIFS('Project Scope'!$AO$8:$AO$107,'Project Scope'!$AN$8:$AN$107,$I56,'Project Scope'!$C$8:$C$107,DJ$7)+SUMIFS('Project Scope'!$AX$8:$AX$107,'Project Scope'!$AW$8:$AW$107,$I56,'Project Scope'!$C$8:$C$107,DJ$7),0)","v":0},{"$f":"IF(BL56=\"yes\",SUMIFS('Project Scope'!$AO$8:$AO$107,'Project Scope'!$AN$8:$AN$107,$I56,'Project Scope'!$C$8:$C$107,DK$7)+SUMIFS('Project Scope'!$AX$8:$AX$107,'Project Scope'!$AW$8:$AW$107,$I56,'Project Scope'!$C$8:$C$107,DK$7),0)","v":0},null,"","","","","",{"$f":"IF($BN56>0,DR$7,\"\")","v":""},"","","","","","","","","","","","","","","","","","","","","","","","","","","","","",{"$f":"IF($BN56>0,EV$7,\"\")","v":""},"","","","","","","","","","","","","","",null,""]
[null,null,null,null,null,null,null,null,null,null,null,{"$f":"IF($C57=\"additional labor hours\",$K57*'Project Information'!$D$12,$K57*$J57)*IF($F57=\"Per Measure\",SUM($BN57:$DK57),1)","v":0},{"$f":"IF($C57=\"\",0,IF(VLOOKUP($C57,'Other Data'!$B$146:$C$156,2,FALSE)=\"M\",$L57,0))","v":0},0,null,null,null,null,null,null,null,null,null,null,null,null,null,null,null,null,null,null,null,null,null,null,null,null,null,null,null,null,null,null,null,null,null,null,null,null,null,null,null,null,null,null,null,null,null,null,null,null,null,null,null,{"$f":"IF(O57=\"yes\",SUMIFS('Project Scope'!$AO$8:$AO$107,'Project Scope'!$AN$8:$AN$107,$I57,'Project Scope'!$C$8:$C$107,BN$7)+SUMIFS('Project Scope'!$AX$8:$AX$107,'Project Scope'!$AW$8:$AW$107,$I57,'Project Scope'!$C$8:$C$107,BN$7),0)","v":0},{"$f":"IF(P57=\"yes\",SUMIFS('Project Scope'!$AO$8:$AO$107,'Project Scope'!$AN$8:$AN$107,$I57,'Project Scope'!$C$8:$C$107,BO$7)+SUMIFS('Project Scope'!$AX$8:$AX$107,'Project Scope'!$AW$8:$AW$107,$I57,'Project Scope'!$C$8:$C$107,BO$7),0)","v":0},{"$f":"IF(Q57=\"yes\",SUMIFS('Project Scope'!$AO$8:$AO$107,'Project Scope'!$AN$8:$AN$107,$I57,'Project Scope'!$C$8:$C$107,BP$7)+SUMIFS('Project Scope'!$AX$8:$AX$107,'Project Scope'!$AW$8:$AW$107,$I57,'Project Scope'!$C$8:$C$107,BP$7),0)","v":0},{"$f":"IF(R57=\"yes\",SUMIFS('Project Scope'!$AO$8:$AO$107,'Project Scope'!$AN$8:$AN$107,$I57,'Project Scope'!$C$8:$C$107,BQ$7)+SUMIFS('Project Scope'!$AX$8:$AX$107,'Project Scope'!$AW$8:$AW$107,$I57,'Project Scope'!$C$8:$C$107,BQ$7),0)","v":0},{"$f":"IF(S57=\"yes\",SUMIFS('Project Scope'!$AO$8:$AO$107,'Project Scope'!$AN$8:$AN$107,$I57,'Project Scope'!$C$8:$C$107,BR$7)+SUMIFS('Project Scope'!$AX$8:$AX$107,'Project Scope'!$AW$8:$AW$107,$I57,'Project Scope'!$C$8:$C$107,BR$7),0)","v":0},{"$f":"IF(T57=\"yes\",SUMIFS('Project Scope'!$AO$8:$AO$107,'Project Scope'!$AN$8:$AN$107,$I57,'Project Scope'!$C$8:$C$107,BS$7)+SUMIFS('Project Scope'!$AX$8:$AX$107,'Project Scope'!$AW$8:$AW$107,$I57,'Project Scope'!$C$8:$C$107,BS$7),0)","v":0},{"$f":"IF(U57=\"yes\",SUMIFS('Project Scope'!$AO$8:$AO$107,'Project Scope'!$AN$8:$AN$107,$I57,'Project Scope'!$C$8:$C$107,BT$7)+SUMIFS('Project Scope'!$AX$8:$AX$107,'Project Scope'!$AW$8:$AW$107,$I57,'Project Scope'!$C$8:$C$107,BT$7),0)","v":0},{"$f":"IF(V57=\"yes\",SUMIFS('Project Scope'!$AO$8:$AO$107,'Project Scope'!$AN$8:$AN$107,$I57,'Project Scope'!$C$8:$C$107,BU$7)+SUMIFS('Project Scope'!$AX$8:$AX$107,'Project Scope'!$AW$8:$AW$107,$I57,'Project Scope'!$C$8:$C$107,BU$7),0)","v":0},{"$f":"IF(W57=\"yes\",SUMIFS('Project Scope'!$AO$8:$AO$107,'Project Scope'!$AN$8:$AN$107,$I57,'Project Scope'!$C$8:$C$107,BV$7)+SUMIFS('Project Scope'!$AX$8:$AX$107,'Project Scope'!$AW$8:$AW$107,$I57,'Project Scope'!$C$8:$C$107,BV$7),0)","v":0},{"$f":"IF(X57=\"yes\",SUMIFS('Project Scope'!$AO$8:$AO$107,'Project Scope'!$AN$8:$AN$107,$I57,'Project Scope'!$C$8:$C$107,BW$7)+SUMIFS('Project Scope'!$AX$8:$AX$107,'Project Scope'!$AW$8:$AW$107,$I57,'Project Scope'!$C$8:$C$107,BW$7),0)","v":0},{"$f":"IF(Y57=\"yes\",SUMIFS('Project Scope'!$AO$8:$AO$107,'Project Scope'!$AN$8:$AN$107,$I57,'Project Scope'!$C$8:$C$107,BX$7)+SUMIFS('Project Scope'!$AX$8:$AX$107,'Project Scope'!$AW$8:$AW$107,$I57,'Project Scope'!$C$8:$C$107,BX$7),0)","v":0},{"$f":"IF(Z57=\"yes\",SUMIFS('Project Scope'!$AO$8:$AO$107,'Project Scope'!$AN$8:$AN$107,$I57,'Project Scope'!$C$8:$C$107,BY$7)+SUMIFS('Project Scope'!$AX$8:$AX$107,'Project Scope'!$AW$8:$AW$107,$I57,'Project Scope'!$C$8:$C$107,BY$7),0)","v":0},{"$f":"IF(AA57=\"yes\",SUMIFS('Project Scope'!$AO$8:$AO$107,'Project Scope'!$AN$8:$AN$107,$I57,'Project Scope'!$C$8:$C$107,BZ$7)+SUMIFS('Project Scope'!$AX$8:$AX$107,'Project Scope'!$AW$8:$AW$107,$I57,'Project Scope'!$C$8:$C$107,BZ$7),0)","v":0},{"$f":"IF(AB57=\"yes\",SUMIFS('Project Scope'!$AO$8:$AO$107,'Project Scope'!$AN$8:$AN$107,$I57,'Project Scope'!$C$8:$C$107,CA$7)+SUMIFS('Project Scope'!$AX$8:$AX$107,'Project Scope'!$AW$8:$AW$107,$I57,'Project Scope'!$C$8:$C$107,CA$7),0)","v":0},{"$f":"IF(AC57=\"yes\",SUMIFS('Project Scope'!$AO$8:$AO$107,'Project Scope'!$AN$8:$AN$107,$I57,'Project Scope'!$C$8:$C$107,CB$7)+SUMIFS('Project Scope'!$AX$8:$AX$107,'Project Scope'!$AW$8:$AW$107,$I57,'Project Scope'!$C$8:$C$107,CB$7),0)","v":0},{"$f":"IF(AD57=\"yes\",SUMIFS('Project Scope'!$AO$8:$AO$107,'Project Scope'!$AN$8:$AN$107,$I57,'Project Scope'!$C$8:$C$107,CC$7)+SUMIFS('Project Scope'!$AX$8:$AX$107,'Project Scope'!$AW$8:$AW$107,$I57,'Project Scope'!$C$8:$C$107,CC$7),0)","v":0},{"$f":"IF(AE57=\"yes\",SUMIFS('Project Scope'!$AO$8:$AO$107,'Project Scope'!$AN$8:$AN$107,$I57,'Project Scope'!$C$8:$C$107,CD$7)+SUMIFS('Project Scope'!$AX$8:$AX$107,'Project Scope'!$AW$8:$AW$107,$I57,'Project Scope'!$C$8:$C$107,CD$7),0)","v":0},{"$f":"IF(AF57=\"yes\",SUMIFS('Project Scope'!$AO$8:$AO$107,'Project Scope'!$AN$8:$AN$107,$I57,'Project Scope'!$C$8:$C$107,CE$7)+SUMIFS('Project Scope'!$AX$8:$AX$107,'Project Scope'!$AW$8:$AW$107,$I57,'Project Scope'!$C$8:$C$107,CE$7),0)","v":0},{"$f":"IF(AG57=\"yes\",SUMIFS('Project Scope'!$AO$8:$AO$107,'Project Scope'!$AN$8:$AN$107,$I57,'Project Scope'!$C$8:$C$107,CF$7)+SUMIFS('Project Scope'!$AX$8:$AX$107,'Project Scope'!$AW$8:$AW$107,$I57,'Project Scope'!$C$8:$C$107,CF$7),0)","v":0},{"$f":"IF(AH57=\"yes\",SUMIFS('Project Scope'!$AO$8:$AO$107,'Project Scope'!$AN$8:$AN$107,$I57,'Project Scope'!$C$8:$C$107,CG$7)+SUMIFS('Project Scope'!$AX$8:$AX$107,'Project Scope'!$AW$8:$AW$107,$I57,'Project Scope'!$C$8:$C$107,CG$7),0)","v":0},{"$f":"IF(AI57=\"yes\",SUMIFS('Project Scope'!$AO$8:$AO$107,'Project Scope'!$AN$8:$AN$107,$I57,'Project Scope'!$C$8:$C$107,CH$7)+SUMIFS('Project Scope'!$AX$8:$AX$107,'Project Scope'!$AW$8:$AW$107,$I57,'Project Scope'!$C$8:$C$107,CH$7),0)","v":0},{"$f":"IF(AJ57=\"yes\",SUMIFS('Project Scope'!$AO$8:$AO$107,'Project Scope'!$AN$8:$AN$107,$I57,'Project Scope'!$C$8:$C$107,CI$7)+SUMIFS('Project Scope'!$AX$8:$AX$107,'Project Scope'!$AW$8:$AW$107,$I57,'Project Scope'!$C$8:$C$107,CI$7),0)","v":0},{"$f":"IF(AK57=\"yes\",SUMIFS('Project Scope'!$AO$8:$AO$107,'Project Scope'!$AN$8:$AN$107,$I57,'Project Scope'!$C$8:$C$107,CJ$7)+SUMIFS('Project Scope'!$AX$8:$AX$107,'Project Scope'!$AW$8:$AW$107,$I57,'Project Scope'!$C$8:$C$107,CJ$7),0)","v":0},{"$f":"IF(AL57=\"yes\",SUMIFS('Project Scope'!$AO$8:$AO$107,'Project Scope'!$AN$8:$AN$107,$I57,'Project Scope'!$C$8:$C$107,CK$7)+SUMIFS('Project Scope'!$AX$8:$AX$107,'Project Scope'!$AW$8:$AW$107,$I57,'Project Scope'!$C$8:$C$107,CK$7),0)","v":0},{"$f":"IF(AM57=\"yes\",SUMIFS('Project Scope'!$AO$8:$AO$107,'Project Scope'!$AN$8:$AN$107,$I57,'Project Scope'!$C$8:$C$107,CL$7)+SUMIFS('Project Scope'!$AX$8:$AX$107,'Project Scope'!$AW$8:$AW$107,$I57,'Project Scope'!$C$8:$C$107,CL$7),0)","v":0},{"$f":"IF(AN57=\"yes\",SUMIFS('Project Scope'!$AO$8:$AO$107,'Project Scope'!$AN$8:$AN$107,$I57,'Project Scope'!$C$8:$C$107,CM$7)+SUMIFS('Project Scope'!$AX$8:$AX$107,'Project Scope'!$AW$8:$AW$107,$I57,'Project Scope'!$C$8:$C$107,CM$7),0)","v":0},{"$f":"IF(AO57=\"yes\",SUMIFS('Project Scope'!$AO$8:$AO$107,'Project Scope'!$AN$8:$AN$107,$I57,'Project Scope'!$C$8:$C$107,CN$7)+SUMIFS('Project Scope'!$AX$8:$AX$107,'Project Scope'!$AW$8:$AW$107,$I57,'Project Scope'!$C$8:$C$107,CN$7),0)","v":0},{"$f":"IF(AP57=\"yes\",SUMIFS('Project Scope'!$AO$8:$AO$107,'Project Scope'!$AN$8:$AN$107,$I57,'Project Scope'!$C$8:$C$107,CO$7)+SUMIFS('Project Scope'!$AX$8:$AX$107,'Project Scope'!$AW$8:$AW$107,$I57,'Project Scope'!$C$8:$C$107,CO$7),0)","v":0},{"$f":"IF(AQ57=\"yes\",SUMIFS('Project Scope'!$AO$8:$AO$107,'Project Scope'!$AN$8:$AN$107,$I57,'Project Scope'!$C$8:$C$107,CP$7)+SUMIFS('Project Scope'!$AX$8:$AX$107,'Project Scope'!$AW$8:$AW$107,$I57,'Project Scope'!$C$8:$C$107,CP$7),0)","v":0},{"$f":"IF(AR57=\"yes\",SUMIFS('Project Scope'!$AO$8:$AO$107,'Project Scope'!$AN$8:$AN$107,$I57,'Project Scope'!$C$8:$C$107,CQ$7)+SUMIFS('Project Scope'!$AX$8:$AX$107,'Project Scope'!$AW$8:$AW$107,$I57,'Project Scope'!$C$8:$C$107,CQ$7),0)","v":0},{"$f":"IF(AS57=\"yes\",SUMIFS('Project Scope'!$AO$8:$AO$107,'Project Scope'!$AN$8:$AN$107,$I57,'Project Scope'!$C$8:$C$107,CR$7)+SUMIFS('Project Scope'!$AX$8:$AX$107,'Project Scope'!$AW$8:$AW$107,$I57,'Project Scope'!$C$8:$C$107,CR$7),0)","v":0},{"$f":"IF(AT57=\"yes\",SUMIFS('Project Scope'!$AO$8:$AO$107,'Project Scope'!$AN$8:$AN$107,$I57,'Project Scope'!$C$8:$C$107,CS$7)+SUMIFS('Project Scope'!$AX$8:$AX$107,'Project Scope'!$AW$8:$AW$107,$I57,'Project Scope'!$C$8:$C$107,CS$7),0)","v":0},{"$f":"IF(AU57=\"yes\",SUMIFS('Project Scope'!$AO$8:$AO$107,'Project Scope'!$AN$8:$AN$107,$I57,'Project Scope'!$C$8:$C$107,CT$7)+SUMIFS('Project Scope'!$AX$8:$AX$107,'Project Scope'!$AW$8:$AW$107,$I57,'Project Scope'!$C$8:$C$107,CT$7),0)","v":0},{"$f":"IF(AV57=\"yes\",SUMIFS('Project Scope'!$AO$8:$AO$107,'Project Scope'!$AN$8:$AN$107,$I57,'Project Scope'!$C$8:$C$107,CU$7)+SUMIFS('Project Scope'!$AX$8:$AX$107,'Project Scope'!$AW$8:$AW$107,$I57,'Project Scope'!$C$8:$C$107,CU$7),0)","v":0},{"$f":"IF(AW57=\"yes\",SUMIFS('Project Scope'!$AO$8:$AO$107,'Project Scope'!$AN$8:$AN$107,$I57,'Project Scope'!$C$8:$C$107,CV$7)+SUMIFS('Project Scope'!$AX$8:$AX$107,'Project Scope'!$AW$8:$AW$107,$I57,'Project Scope'!$C$8:$C$107,CV$7),0)","v":0},{"$f":"IF(AX57=\"yes\",SUMIFS('Project Scope'!$AO$8:$AO$107,'Project Scope'!$AN$8:$AN$107,$I57,'Project Scope'!$C$8:$C$107,CW$7)+SUMIFS('Project Scope'!$AX$8:$AX$107,'Project Scope'!$AW$8:$AW$107,$I57,'Project Scope'!$C$8:$C$107,CW$7),0)","v":0},{"$f":"IF(AY57=\"yes\",SUMIFS('Project Scope'!$AO$8:$AO$107,'Project Scope'!$AN$8:$AN$107,$I57,'Project Scope'!$C$8:$C$107,CX$7)+SUMIFS('Project Scope'!$AX$8:$AX$107,'Project Scope'!$AW$8:$AW$107,$I57,'Project Scope'!$C$8:$C$107,CX$7),0)","v":0},{"$f":"IF(AZ57=\"yes\",SUMIFS('Project Scope'!$AO$8:$AO$107,'Project Scope'!$AN$8:$AN$107,$I57,'Project Scope'!$C$8:$C$107,CY$7)+SUMIFS('Project Scope'!$AX$8:$AX$107,'Project Scope'!$AW$8:$AW$107,$I57,'Project Scope'!$C$8:$C$107,CY$7),0)","v":0},{"$f":"IF(BA57=\"yes\",SUMIFS('Project Scope'!$AO$8:$AO$107,'Project Scope'!$AN$8:$AN$107,$I57,'Project Scope'!$C$8:$C$107,CZ$7)+SUMIFS('Project Scope'!$AX$8:$AX$107,'Project Scope'!$AW$8:$AW$107,$I57,'Project Scope'!$C$8:$C$107,CZ$7),0)","v":0},{"$f":"IF(BB57=\"yes\",SUMIFS('Project Scope'!$AO$8:$AO$107,'Project Scope'!$AN$8:$AN$107,$I57,'Project Scope'!$C$8:$C$107,DA$7)+SUMIFS('Project Scope'!$AX$8:$AX$107,'Project Scope'!$AW$8:$AW$107,$I57,'Project Scope'!$C$8:$C$107,DA$7),0)","v":0},{"$f":"IF(BC57=\"yes\",SUMIFS('Project Scope'!$AO$8:$AO$107,'Project Scope'!$AN$8:$AN$107,$I57,'Project Scope'!$C$8:$C$107,DB$7)+SUMIFS('Project Scope'!$AX$8:$AX$107,'Project Scope'!$AW$8:$AW$107,$I57,'Project Scope'!$C$8:$C$107,DB$7),0)","v":0},{"$f":"IF(BD57=\"yes\",SUMIFS('Project Scope'!$AO$8:$AO$107,'Project Scope'!$AN$8:$AN$107,$I57,'Project Scope'!$C$8:$C$107,DC$7)+SUMIFS('Project Scope'!$AX$8:$AX$107,'Project Scope'!$AW$8:$AW$107,$I57,'Project Scope'!$C$8:$C$107,DC$7),0)","v":0},{"$f":"IF(BE57=\"yes\",SUMIFS('Project Scope'!$AO$8:$AO$107,'Project Scope'!$AN$8:$AN$107,$I57,'Project Scope'!$C$8:$C$107,DD$7)+SUMIFS('Project Scope'!$AX$8:$AX$107,'Project Scope'!$AW$8:$AW$107,$I57,'Project Scope'!$C$8:$C$107,DD$7),0)","v":0},{"$f":"IF(BF57=\"yes\",SUMIFS('Project Scope'!$AO$8:$AO$107,'Project Scope'!$AN$8:$AN$107,$I57,'Project Scope'!$C$8:$C$107,DE$7)+SUMIFS('Project Scope'!$AX$8:$AX$107,'Project Scope'!$AW$8:$AW$107,$I57,'Project Scope'!$C$8:$C$107,DE$7),0)","v":0},{"$f":"IF(BG57=\"yes\",SUMIFS('Project Scope'!$AO$8:$AO$107,'Project Scope'!$AN$8:$AN$107,$I57,'Project Scope'!$C$8:$C$107,DF$7)+SUMIFS('Project Scope'!$AX$8:$AX$107,'Project Scope'!$AW$8:$AW$107,$I57,'Project Scope'!$C$8:$C$107,DF$7),0)","v":0},{"$f":"IF(BH57=\"yes\",SUMIFS('Project Scope'!$AO$8:$AO$107,'Project Scope'!$AN$8:$AN$107,$I57,'Project Scope'!$C$8:$C$107,DG$7)+SUMIFS('Project Scope'!$AX$8:$AX$107,'Project Scope'!$AW$8:$AW$107,$I57,'Project Scope'!$C$8:$C$107,DG$7),0)","v":0},{"$f":"IF(BI57=\"yes\",SUMIFS('Project Scope'!$AO$8:$AO$107,'Project Scope'!$AN$8:$AN$107,$I57,'Project Scope'!$C$8:$C$107,DH$7)+SUMIFS('Project Scope'!$AX$8:$AX$107,'Project Scope'!$AW$8:$AW$107,$I57,'Project Scope'!$C$8:$C$107,DH$7),0)","v":0},{"$f":"IF(BJ57=\"yes\",SUMIFS('Project Scope'!$AO$8:$AO$107,'Project Scope'!$AN$8:$AN$107,$I57,'Project Scope'!$C$8:$C$107,DI$7)+SUMIFS('Project Scope'!$AX$8:$AX$107,'Project Scope'!$AW$8:$AW$107,$I57,'Project Scope'!$C$8:$C$107,DI$7),0)","v":0},{"$f":"IF(BK57=\"yes\",SUMIFS('Project Scope'!$AO$8:$AO$107,'Project Scope'!$AN$8:$AN$107,$I57,'Project Scope'!$C$8:$C$107,DJ$7)+SUMIFS('Project Scope'!$AX$8:$AX$107,'Project Scope'!$AW$8:$AW$107,$I57,'Project Scope'!$C$8:$C$107,DJ$7),0)","v":0},{"$f":"IF(BL57=\"yes\",SUMIFS('Project Scope'!$AO$8:$AO$107,'Project Scope'!$AN$8:$AN$107,$I57,'Project Scope'!$C$8:$C$107,DK$7)+SUMIFS('Project Scope'!$AX$8:$AX$107,'Project Scope'!$AW$8:$AW$107,$I57,'Project Scope'!$C$8:$C$107,DK$7),0)","v":0},null,"","","","","","","","","","","","","","","","","","","","","","","","","","","","","","","","","","","","","","","","","","","","","","","","","","",null,""]
[null,null,null,null,null,null,null,null,null,null,null,{"$f":"IF($C58=\"additional labor hours\",$K58*'Project Information'!$D$12,$K58*$J58)*IF($F58=\"Per Measure\",SUM($BN58:$DK58),1)","v":0},{"$f":"IF($C58=\"\",0,IF(VLOOKUP($C58,'Other Data'!$B$146:$C$156,2,FALSE)=\"M\",$L58,0))","v":0},0,null,null,null,null,null,null,null,null,null,null,null,null,null,null,null,null,null,null,null,null,null,null,null,null,null,null,null,null,null,null,null,null,null,null,null,null,null,null,null,null,null,null,null,null,null,null,null,null,null,null,null,{"$f":"IF(O58=\"yes\",SUMIFS('Project Scope'!$AO$8:$AO$107,'Project Scope'!$AN$8:$AN$107,$I58,'Project Scope'!$C$8:$C$107,BN$7)+SUMIFS('Project Scope'!$AX$8:$AX$107,'Project Scope'!$AW$8:$AW$107,$I58,'Project Scope'!$C$8:$C$107,BN$7),0)","v":0},{"$f":"IF(P58=\"yes\",SUMIFS('Project Scope'!$AO$8:$AO$107,'Project Scope'!$AN$8:$AN$107,$I58,'Project Scope'!$C$8:$C$107,BO$7)+SUMIFS('Project Scope'!$AX$8:$AX$107,'Project Scope'!$AW$8:$AW$107,$I58,'Project Scope'!$C$8:$C$107,BO$7),0)","v":0},{"$f":"IF(Q58=\"yes\",SUMIFS('Project Scope'!$AO$8:$AO$107,'Project Scope'!$AN$8:$AN$107,$I58,'Project Scope'!$C$8:$C$107,BP$7)+SUMIFS('Project Scope'!$AX$8:$AX$107,'Project Scope'!$AW$8:$AW$107,$I58,'Project Scope'!$C$8:$C$107,BP$7),0)","v":0},{"$f":"IF(R58=\"yes\",SUMIFS('Project Scope'!$AO$8:$AO$107,'Project Scope'!$AN$8:$AN$107,$I58,'Project Scope'!$C$8:$C$107,BQ$7)+SUMIFS('Project Scope'!$AX$8:$AX$107,'Project Scope'!$AW$8:$AW$107,$I58,'Project Scope'!$C$8:$C$107,BQ$7),0)","v":0},{"$f":"IF(S58=\"yes\",SUMIFS('Project Scope'!$AO$8:$AO$107,'Project Scope'!$AN$8:$AN$107,$I58,'Project Scope'!$C$8:$C$107,BR$7)+SUMIFS('Project Scope'!$AX$8:$AX$107,'Project Scope'!$AW$8:$AW$107,$I58,'Project Scope'!$C$8:$C$107,BR$7),0)","v":0},{"$f":"IF(T58=\"yes\",SUMIFS('Project Scope'!$AO$8:$AO$107,'Project Scope'!$AN$8:$AN$107,$I58,'Project Scope'!$C$8:$C$107,BS$7)+SUMIFS('Project Scope'!$AX$8:$AX$107,'Project Scope'!$AW$8:$AW$107,$I58,'Project Scope'!$C$8:$C$107,BS$7),0)","v":0},{"$f":"IF(U58=\"yes\",SUMIFS('Project Scope'!$AO$8:$AO$107,'Project Scope'!$AN$8:$AN$107,$I58,'Project Scope'!$C$8:$C$107,BT$7)+SUMIFS('Project Scope'!$AX$8:$AX$107,'Project Scope'!$AW$8:$AW$107,$I58,'Project Scope'!$C$8:$C$107,BT$7),0)","v":0},{"$f":"IF(V58=\"yes\",SUMIFS('Project Scope'!$AO$8:$AO$107,'Project Scope'!$AN$8:$AN$107,$I58,'Project Scope'!$C$8:$C$107,BU$7)+SUMIFS('Project Scope'!$AX$8:$AX$107,'Project Scope'!$AW$8:$AW$107,$I58,'Project Scope'!$C$8:$C$107,BU$7),0)","v":0},{"$f":"IF(W58=\"yes\",SUMIFS('Project Scope'!$AO$8:$AO$107,'Project Scope'!$AN$8:$AN$107,$I58,'Project Scope'!$C$8:$C$107,BV$7)+SUMIFS('Project Scope'!$AX$8:$AX$107,'Project Scope'!$AW$8:$AW$107,$I58,'Project Scope'!$C$8:$C$107,BV$7),0)","v":0},{"$f":"IF(X58=\"yes\",SUMIFS('Project Scope'!$AO$8:$AO$107,'Project Scope'!$AN$8:$AN$107,$I58,'Project Scope'!$C$8:$C$107,BW$7)+SUMIFS('Project Scope'!$AX$8:$AX$107,'Project Scope'!$AW$8:$AW$107,$I58,'Project Scope'!$C$8:$C$107,BW$7),0)","v":0},{"$f":"IF(Y58=\"yes\",SUMIFS('Project Scope'!$AO$8:$AO$107,'Project Scope'!$AN$8:$AN$107,$I58,'Project Scope'!$C$8:$C$107,BX$7)+SUMIFS('Project Scope'!$AX$8:$AX$107,'Project Scope'!$AW$8:$AW$107,$I58,'Project Scope'!$C$8:$C$107,BX$7),0)","v":0},{"$f":"IF(Z58=\"yes\",SUMIFS('Project Scope'!$AO$8:$AO$107,'Project Scope'!$AN$8:$AN$107,$I58,'Project Scope'!$C$8:$C$107,BY$7)+SUMIFS('Project Scope'!$AX$8:$AX$107,'Project Scope'!$AW$8:$AW$107,$I58,'Project Scope'!$C$8:$C$107,BY$7),0)","v":0},{"$f":"IF(AA58=\"yes\",SUMIFS('Project Scope'!$AO$8:$AO$107,'Project Scope'!$AN$8:$AN$107,$I58,'Project Scope'!$C$8:$C$107,BZ$7)+SUMIFS('Project Scope'!$AX$8:$AX$107,'Project Scope'!$AW$8:$AW$107,$I58,'Project Scope'!$C$8:$C$107,BZ$7),0)","v":0},{"$f":"IF(AB58=\"yes\",SUMIFS('Project Scope'!$AO$8:$AO$107,'Project Scope'!$AN$8:$AN$107,$I58,'Project Scope'!$C$8:$C$107,CA$7)+SUMIFS('Project Scope'!$AX$8:$AX$107,'Project Scope'!$AW$8:$AW$107,$I58,'Project Scope'!$C$8:$C$107,CA$7),0)","v":0},{"$f":"IF(AC58=\"yes\",SUMIFS('Project Scope'!$AO$8:$AO$107,'Project Scope'!$AN$8:$AN$107,$I58,'Project Scope'!$C$8:$C$107,CB$7)+SUMIFS('Project Scope'!$AX$8:$AX$107,'Project Scope'!$AW$8:$AW$107,$I58,'Project Scope'!$C$8:$C$107,CB$7),0)","v":0},{"$f":"IF(AD58=\"yes\",SUMIFS('Project Scope'!$AO$8:$AO$107,'Project Scope'!$AN$8:$AN$107,$I58,'Project Scope'!$C$8:$C$107,CC$7)+SUMIFS('Project Scope'!$AX$8:$AX$107,'Project Scope'!$AW$8:$AW$107,$I58,'Project Scope'!$C$8:$C$107,CC$7),0)","v":0},{"$f":"IF(AE58=\"yes\",SUMIFS('Project Scope'!$AO$8:$AO$107,'Project Scope'!$AN$8:$AN$107,$I58,'Project Scope'!$C$8:$C$107,CD$7)+SUMIFS('Project Scope'!$AX$8:$AX$107,'Project Scope'!$AW$8:$AW$107,$I58,'Project Scope'!$C$8:$C$107,CD$7),0)","v":0},{"$f":"IF(AF58=\"yes\",SUMIFS('Project Scope'!$AO$8:$AO$107,'Project Scope'!$AN$8:$AN$107,$I58,'Project Scope'!$C$8:$C$107,CE$7)+SUMIFS('Project Scope'!$AX$8:$AX$107,'Project Scope'!$AW$8:$AW$107,$I58,'Project Scope'!$C$8:$C$107,CE$7),0)","v":0},{"$f":"IF(AG58=\"yes\",SUMIFS('Project Scope'!$AO$8:$AO$107,'Project Scope'!$AN$8:$AN$107,$I58,'Project Scope'!$C$8:$C$107,CF$7)+SUMIFS('Project Scope'!$AX$8:$AX$107,'Project Scope'!$AW$8:$AW$107,$I58,'Project Scope'!$C$8:$C$107,CF$7),0)","v":0},{"$f":"IF(AH58=\"yes\",SUMIFS('Project Scope'!$AO$8:$AO$107,'Project Scope'!$AN$8:$AN$107,$I58,'Project Scope'!$C$8:$C$107,CG$7)+SUMIFS('Project Scope'!$AX$8:$AX$107,'Project Scope'!$AW$8:$AW$107,$I58,'Project Scope'!$C$8:$C$107,CG$7),0)","v":0},{"$f":"IF(AI58=\"yes\",SUMIFS('Project Scope'!$AO$8:$AO$107,'Project Scope'!$AN$8:$AN$107,$I58,'Project Scope'!$C$8:$C$107,CH$7)+SUMIFS('Project Scope'!$AX$8:$AX$107,'Project Scope'!$AW$8:$AW$107,$I58,'Project Scope'!$C$8:$C$107,CH$7),0)","v":0},{"$f":"IF(AJ58=\"yes\",SUMIFS('Project Scope'!$AO$8:$AO$107,'Project Scope'!$AN$8:$AN$107,$I58,'Project Scope'!$C$8:$C$107,CI$7)+SUMIFS('Project Scope'!$AX$8:$AX$107,'Project Scope'!$AW$8:$AW$107,$I58,'Project Scope'!$C$8:$C$107,CI$7),0)","v":0},{"$f":"IF(AK58=\"yes\",SUMIFS('Project Scope'!$AO$8:$AO$107,'Project Scope'!$AN$8:$AN$107,$I58,'Project Scope'!$C$8:$C$107,CJ$7)+SUMIFS('Project Scope'!$AX$8:$AX$107,'Project Scope'!$AW$8:$AW$107,$I58,'Project Scope'!$C$8:$C$107,CJ$7),0)","v":0},{"$f":"IF(AL58=\"yes\",SUMIFS('Project Scope'!$AO$8:$AO$107,'Project Scope'!$AN$8:$AN$107,$I58,'Project Scope'!$C$8:$C$107,CK$7)+SUMIFS('Project Scope'!$AX$8:$AX$107,'Project Scope'!$AW$8:$AW$107,$I58,'Project Scope'!$C$8:$C$107,CK$7),0)","v":0},{"$f":"IF(AM58=\"yes\",SUMIFS('Project Scope'!$AO$8:$AO$107,'Project Scope'!$AN$8:$AN$107,$I58,'Project Scope'!$C$8:$C$107,CL$7)+SUMIFS('Project Scope'!$AX$8:$AX$107,'Project Scope'!$AW$8:$AW$107,$I58,'Project Scope'!$C$8:$C$107,CL$7),0)","v":0},{"$f":"IF(AN58=\"yes\",SUMIFS('Project Scope'!$AO$8:$AO$107,'Project Scope'!$AN$8:$AN$107,$I58,'Project Scope'!$C$8:$C$107,CM$7)+SUMIFS('Project Scope'!$AX$8:$AX$107,'Project Scope'!$AW$8:$AW$107,$I58,'Project Scope'!$C$8:$C$107,CM$7),0)","v":0},{"$f":"IF(AO58=\"yes\",SUMIFS('Project Scope'!$AO$8:$AO$107,'Project Scope'!$AN$8:$AN$107,$I58,'Project Scope'!$C$8:$C$107,CN$7)+SUMIFS('Project Scope'!$AX$8:$AX$107,'Project Scope'!$AW$8:$AW$107,$I58,'Project Scope'!$C$8:$C$107,CN$7),0)","v":0},{"$f":"IF(AP58=\"yes\",SUMIFS('Project Scope'!$AO$8:$AO$107,'Project Scope'!$AN$8:$AN$107,$I58,'Project Scope'!$C$8:$C$107,CO$7)+SUMIFS('Project Scope'!$AX$8:$AX$107,'Project Scope'!$AW$8:$AW$107,$I58,'Project Scope'!$C$8:$C$107,CO$7),0)","v":0},{"$f":"IF(AQ58=\"yes\",SUMIFS('Project Scope'!$AO$8:$AO$107,'Project Scope'!$AN$8:$AN$107,$I58,'Project Scope'!$C$8:$C$107,CP$7)+SUMIFS('Project Scope'!$AX$8:$AX$107,'Project Scope'!$AW$8:$AW$107,$I58,'Project Scope'!$C$8:$C$107,CP$7),0)","v":0},{"$f":"IF(AR58=\"yes\",SUMIFS('Project Scope'!$AO$8:$AO$107,'Project Scope'!$AN$8:$AN$107,$I58,'Project Scope'!$C$8:$C$107,CQ$7)+SUMIFS('Project Scope'!$AX$8:$AX$107,'Project Scope'!$AW$8:$AW$107,$I58,'Project Scope'!$C$8:$C$107,CQ$7),0)","v":0},{"$f":"IF(AS58=\"yes\",SUMIFS('Project Scope'!$AO$8:$AO$107,'Project Scope'!$AN$8:$AN$107,$I58,'Project Scope'!$C$8:$C$107,CR$7)+SUMIFS('Project Scope'!$AX$8:$AX$107,'Project Scope'!$AW$8:$AW$107,$I58,'Project Scope'!$C$8:$C$107,CR$7),0)","v":0},{"$f":"IF(AT58=\"yes\",SUMIFS('Project Scope'!$AO$8:$AO$107,'Project Scope'!$AN$8:$AN$107,$I58,'Project Scope'!$C$8:$C$107,CS$7)+SUMIFS('Project Scope'!$AX$8:$AX$107,'Project Scope'!$AW$8:$AW$107,$I58,'Project Scope'!$C$8:$C$107,CS$7),0)","v":0},{"$f":"IF(AU58=\"yes\",SUMIFS('Project Scope'!$AO$8:$AO$107,'Project Scope'!$AN$8:$AN$107,$I58,'Project Scope'!$C$8:$C$107,CT$7)+SUMIFS('Project Scope'!$AX$8:$AX$107,'Project Scope'!$AW$8:$AW$107,$I58,'Project Scope'!$C$8:$C$107,CT$7),0)","v":0},{"$f":"IF(AV58=\"yes\",SUMIFS('Project Scope'!$AO$8:$AO$107,'Project Scope'!$AN$8:$AN$107,$I58,'Project Scope'!$C$8:$C$107,CU$7)+SUMIFS('Project Scope'!$AX$8:$AX$107,'Project Scope'!$AW$8:$AW$107,$I58,'Project Scope'!$C$8:$C$107,CU$7),0)","v":0},{"$f":"IF(AW58=\"yes\",SUMIFS('Project Scope'!$AO$8:$AO$107,'Project Scope'!$AN$8:$AN$107,$I58,'Project Scope'!$C$8:$C$107,CV$7)+SUMIFS('Project Scope'!$AX$8:$AX$107,'Project Scope'!$AW$8:$AW$107,$I58,'Project Scope'!$C$8:$C$107,CV$7),0)","v":0},{"$f":"IF(AX58=\"yes\",SUMIFS('Project Scope'!$AO$8:$AO$107,'Project Scope'!$AN$8:$AN$107,$I58,'Project Scope'!$C$8:$C$107,CW$7)+SUMIFS('Project Scope'!$AX$8:$AX$107,'Project Scope'!$AW$8:$AW$107,$I58,'Project Scope'!$C$8:$C$107,CW$7),0)","v":0},{"$f":"IF(AY58=\"yes\",SUMIFS('Project Scope'!$AO$8:$AO$107,'Project Scope'!$AN$8:$AN$107,$I58,'Project Scope'!$C$8:$C$107,CX$7)+SUMIFS('Project Scope'!$AX$8:$AX$107,'Project Scope'!$AW$8:$AW$107,$I58,'Project Scope'!$C$8:$C$107,CX$7),0)","v":0},{"$f":"IF(AZ58=\"yes\",SUMIFS('Project Scope'!$AO$8:$AO$107,'Project Scope'!$AN$8:$AN$107,$I58,'Project Scope'!$C$8:$C$107,CY$7)+SUMIFS('Project Scope'!$AX$8:$AX$107,'Project Scope'!$AW$8:$AW$107,$I58,'Project Scope'!$C$8:$C$107,CY$7),0)","v":0},{"$f":"IF(BA58=\"yes\",SUMIFS('Project Scope'!$AO$8:$AO$107,'Project Scope'!$AN$8:$AN$107,$I58,'Project Scope'!$C$8:$C$107,CZ$7)+SUMIFS('Project Scope'!$AX$8:$AX$107,'Project Scope'!$AW$8:$AW$107,$I58,'Project Scope'!$C$8:$C$107,CZ$7),0)","v":0},{"$f":"IF(BB58=\"yes\",SUMIFS('Project Scope'!$AO$8:$AO$107,'Project Scope'!$AN$8:$AN$107,$I58,'Project Scope'!$C$8:$C$107,DA$7)+SUMIFS('Project Scope'!$AX$8:$AX$107,'Project Scope'!$AW$8:$AW$107,$I58,'Project Scope'!$C$8:$C$107,DA$7),0)","v":0},{"$f":"IF(BC58=\"yes\",SUMIFS('Project Scope'!$AO$8:$AO$107,'Project Scope'!$AN$8:$AN$107,$I58,'Project Scope'!$C$8:$C$107,DB$7)+SUMIFS('Project Scope'!$AX$8:$AX$107,'Project Scope'!$AW$8:$AW$107,$I58,'Project Scope'!$C$8:$C$107,DB$7),0)","v":0},{"$f":"IF(BD58=\"yes\",SUMIFS('Project Scope'!$AO$8:$AO$107,'Project Scope'!$AN$8:$AN$107,$I58,'Project Scope'!$C$8:$C$107,DC$7)+SUMIFS('Project Scope'!$AX$8:$AX$107,'Project Scope'!$AW$8:$AW$107,$I58,'Project Scope'!$C$8:$C$107,DC$7),0)","v":0},{"$f":"IF(BE58=\"yes\",SUMIFS('Project Scope'!$AO$8:$AO$107,'Project Scope'!$AN$8:$AN$107,$I58,'Project Scope'!$C$8:$C$107,DD$7)+SUMIFS('Project Scope'!$AX$8:$AX$107,'Project Scope'!$AW$8:$AW$107,$I58,'Project Scope'!$C$8:$C$107,DD$7),0)","v":0},{"$f":"IF(BF58=\"yes\",SUMIFS('Project Scope'!$AO$8:$AO$107,'Project Scope'!$AN$8:$AN$107,$I58,'Project Scope'!$C$8:$C$107,DE$7)+SUMIFS('Project Scope'!$AX$8:$AX$107,'Project Scope'!$AW$8:$AW$107,$I58,'Project Scope'!$C$8:$C$107,DE$7),0)","v":0},{"$f":"IF(BG58=\"yes\",SUMIFS('Project Scope'!$AO$8:$AO$107,'Project Scope'!$AN$8:$AN$107,$I58,'Project Scope'!$C$8:$C$107,DF$7)+SUMIFS('Project Scope'!$AX$8:$AX$107,'Project Scope'!$AW$8:$AW$107,$I58,'Project Scope'!$C$8:$C$107,DF$7),0)","v":0},{"$f":"IF(BH58=\"yes\",SUMIFS('Project Scope'!$AO$8:$AO$107,'Project Scope'!$AN$8:$AN$107,$I58,'Project Scope'!$C$8:$C$107,DG$7)+SUMIFS('Project Scope'!$AX$8:$AX$107,'Project Scope'!$AW$8:$AW$107,$I58,'Project Scope'!$C$8:$C$107,DG$7),0)","v":0},{"$f":"IF(BI58=\"yes\",SUMIFS('Project Scope'!$AO$8:$AO$107,'Project Scope'!$AN$8:$AN$107,$I58,'Project Scope'!$C$8:$C$107,DH$7)+SUMIFS('Project Scope'!$AX$8:$AX$107,'Project Scope'!$AW$8:$AW$107,$I58,'Project Scope'!$C$8:$C$107,DH$7),0)","v":0},{"$f":"IF(BJ58=\"yes\",SUMIFS('Project Scope'!$AO$8:$AO$107,'Project Scope'!$AN$8:$AN$107,$I58,'Project Scope'!$C$8:$C$107,DI$7)+SUMIFS('Project Scope'!$AX$8:$AX$107,'Project Scope'!$AW$8:$AW$107,$I58,'Project Scope'!$C$8:$C$107,DI$7),0)","v":0},{"$f":"IF(BK58=\"yes\",SUMIFS('Project Scope'!$AO$8:$AO$107,'Project Scope'!$AN$8:$AN$107,$I58,'Project Scope'!$C$8:$C$107,DJ$7)+SUMIFS('Project Scope'!$AX$8:$AX$107,'Project Scope'!$AW$8:$AW$107,$I58,'Project Scope'!$C$8:$C$107,DJ$7),0)","v":0},{"$f":"IF(BL58=\"yes\",SUMIFS('Project Scope'!$AO$8:$AO$107,'Project Scope'!$AN$8:$AN$107,$I58,'Project Scope'!$C$8:$C$107,DK$7)+SUMIFS('Project Scope'!$AX$8:$AX$107,'Project Scope'!$AW$8:$AW$107,$I58,'Project Scope'!$C$8:$C$107,DK$7),0)","v":0},null,"","","","","","","","","","","","","","","","","","","","","","","","","","","","","","","","","","","","","","","","","","","","","","","","","","",null,""]
[null,null,null,null,null,null,null,null,null,null,null,{"$f":"IF($C59=\"additional labor hours\",$K59*'Project Information'!$D$12,$K59*$J59)*IF($F59=\"Per Measure\",SUM($BN59:$DK59),1)","v":0},{"$f":"IF($C59=\"\",0,IF(VLOOKUP($C59,'Other Data'!$B$146:$C$156,2,FALSE)=\"M\",$L59,0))","v":0},0,null,null,null,null,null,null,null,null,null,null,null,null,null,null,null,null,null,null,null,null,null,null,null,null,null,null,null,null,null,null,null,null,null,null,null,null,null,null,null,null,null,null,null,null,null,null,null,null,null,null,null,{"$f":"IF(O59=\"yes\",SUMIFS('Project Scope'!$AO$8:$AO$107,'Project Scope'!$AN$8:$AN$107,$I59,'Project Scope'!$C$8:$C$107,BN$7)+SUMIFS('Project Scope'!$AX$8:$AX$107,'Project Scope'!$AW$8:$AW$107,$I59,'Project Scope'!$C$8:$C$107,BN$7),0)","v":0},{"$f":"IF(P59=\"yes\",SUMIFS('Project Scope'!$AO$8:$AO$107,'Project Scope'!$AN$8:$AN$107,$I59,'Project Scope'!$C$8:$C$107,BO$7)+SUMIFS('Project Scope'!$AX$8:$AX$107,'Project Scope'!$AW$8:$AW$107,$I59,'Project Scope'!$C$8:$C$107,BO$7),0)","v":0},{"$f":"IF(Q59=\"yes\",SUMIFS('Project Scope'!$AO$8:$AO$107,'Project Scope'!$AN$8:$AN$107,$I59,'Project Scope'!$C$8:$C$107,BP$7)+SUMIFS('Project Scope'!$AX$8:$AX$107,'Project Scope'!$AW$8:$AW$107,$I59,'Project Scope'!$C$8:$C$107,BP$7),0)","v":0},{"$f":"IF(R59=\"yes\",SUMIFS('Project Scope'!$AO$8:$AO$107,'Project Scope'!$AN$8:$AN$107,$I59,'Project Scope'!$C$8:$C$107,BQ$7)+SUMIFS('Project Scope'!$AX$8:$AX$107,'Project Scope'!$AW$8:$AW$107,$I59,'Project Scope'!$C$8:$C$107,BQ$7),0)","v":0},{"$f":"IF(S59=\"yes\",SUMIFS('Project Scope'!$AO$8:$AO$107,'Project Scope'!$AN$8:$AN$107,$I59,'Project Scope'!$C$8:$C$107,BR$7)+SUMIFS('Project Scope'!$AX$8:$AX$107,'Project Scope'!$AW$8:$AW$107,$I59,'Project Scope'!$C$8:$C$107,BR$7),0)","v":0},{"$f":"IF(T59=\"yes\",SUMIFS('Project Scope'!$AO$8:$AO$107,'Project Scope'!$AN$8:$AN$107,$I59,'Project Scope'!$C$8:$C$107,BS$7)+SUMIFS('Project Scope'!$AX$8:$AX$107,'Project Scope'!$AW$8:$AW$107,$I59,'Project Scope'!$C$8:$C$107,BS$7),0)","v":0},{"$f":"IF(U59=\"yes\",SUMIFS('Project Scope'!$AO$8:$AO$107,'Project Scope'!$AN$8:$AN$107,$I59,'Project Scope'!$C$8:$C$107,BT$7)+SUMIFS('Project Scope'!$AX$8:$AX$107,'Project Scope'!$AW$8:$AW$107,$I59,'Project Scope'!$C$8:$C$107,BT$7),0)","v":0},{"$f":"IF(V59=\"yes\",SUMIFS('Project Scope'!$AO$8:$AO$107,'Project Scope'!$AN$8:$AN$107,$I59,'Project Scope'!$C$8:$C$107,BU$7)+SUMIFS('Project Scope'!$AX$8:$AX$107,'Project Scope'!$AW$8:$AW$107,$I59,'Project Scope'!$C$8:$C$107,BU$7),0)","v":0},{"$f":"IF(W59=\"yes\",SUMIFS('Project Scope'!$AO$8:$AO$107,'Project Scope'!$AN$8:$AN$107,$I59,'Project Scope'!$C$8:$C$107,BV$7)+SUMIFS('Project Scope'!$AX$8:$AX$107,'Project Scope'!$AW$8:$AW$107,$I59,'Project Scope'!$C$8:$C$107,BV$7),0)","v":0},{"$f":"IF(X59=\"yes\",SUMIFS('Project Scope'!$AO$8:$AO$107,'Project Scope'!$AN$8:$AN$107,$I59,'Project Scope'!$C$8:$C$107,BW$7)+SUMIFS('Project Scope'!$AX$8:$AX$107,'Project Scope'!$AW$8:$AW$107,$I59,'Project Scope'!$C$8:$C$107,BW$7),0)","v":0},{"$f":"IF(Y59=\"yes\",SUMIFS('Project Scope'!$AO$8:$AO$107,'Project Scope'!$AN$8:$AN$107,$I59,'Project Scope'!$C$8:$C$107,BX$7)+SUMIFS('Project Scope'!$AX$8:$AX$107,'Project Scope'!$AW$8:$AW$107,$I59,'Project Scope'!$C$8:$C$107,BX$7),0)","v":0},{"$f":"IF(Z59=\"yes\",SUMIFS('Project Scope'!$AO$8:$AO$107,'Project Scope'!$AN$8:$AN$107,$I59,'Project Scope'!$C$8:$C$107,BY$7)+SUMIFS('Project Scope'!$AX$8:$AX$107,'Project Scope'!$AW$8:$AW$107,$I59,'Project Scope'!$C$8:$C$107,BY$7),0)","v":0},{"$f":"IF(AA59=\"yes\",SUMIFS('Project Scope'!$AO$8:$AO$107,'Project Scope'!$AN$8:$AN$107,$I59,'Project Scope'!$C$8:$C$107,BZ$7)+SUMIFS('Project Scope'!$AX$8:$AX$107,'Project Scope'!$AW$8:$AW$107,$I59,'Project Scope'!$C$8:$C$107,BZ$7),0)","v":0},{"$f":"IF(AB59=\"yes\",SUMIFS('Project Scope'!$AO$8:$AO$107,'Project Scope'!$AN$8:$AN$107,$I59,'Project Scope'!$C$8:$C$107,CA$7)+SUMIFS('Project Scope'!$AX$8:$AX$107,'Project Scope'!$AW$8:$AW$107,$I59,'Project Scope'!$C$8:$C$107,CA$7),0)","v":0},{"$f":"IF(AC59=\"yes\",SUMIFS('Project Scope'!$AO$8:$AO$107,'Project Scope'!$AN$8:$AN$107,$I59,'Project Scope'!$C$8:$C$107,CB$7)+SUMIFS('Project Scope'!$AX$8:$AX$107,'Project Scope'!$AW$8:$AW$107,$I59,'Project Scope'!$C$8:$C$107,CB$7),0)","v":0},{"$f":"IF(AD59=\"yes\",SUMIFS('Project Scope'!$AO$8:$AO$107,'Project Scope'!$AN$8:$AN$107,$I59,'Project Scope'!$C$8:$C$107,CC$7)+SUMIFS('Project Scope'!$AX$8:$AX$107,'Project Scope'!$AW$8:$AW$107,$I59,'Project Scope'!$C$8:$C$107,CC$7),0)","v":0},{"$f":"IF(AE59=\"yes\",SUMIFS('Project Scope'!$AO$8:$AO$107,'Project Scope'!$AN$8:$AN$107,$I59,'Project Scope'!$C$8:$C$107,CD$7)+SUMIFS('Project Scope'!$AX$8:$AX$107,'Project Scope'!$AW$8:$AW$107,$I59,'Project Scope'!$C$8:$C$107,CD$7),0)","v":0},{"$f":"IF(AF59=\"yes\",SUMIFS('Project Scope'!$AO$8:$AO$107,'Project Scope'!$AN$8:$AN$107,$I59,'Project Scope'!$C$8:$C$107,CE$7)+SUMIFS('Project Scope'!$AX$8:$AX$107,'Project Scope'!$AW$8:$AW$107,$I59,'Project Scope'!$C$8:$C$107,CE$7),0)","v":0},{"$f":"IF(AG59=\"yes\",SUMIFS('Project Scope'!$AO$8:$AO$107,'Project Scope'!$AN$8:$AN$107,$I59,'Project Scope'!$C$8:$C$107,CF$7)+SUMIFS('Project Scope'!$AX$8:$AX$107,'Project Scope'!$AW$8:$AW$107,$I59,'Project Scope'!$C$8:$C$107,CF$7),0)","v":0},{"$f":"IF(AH59=\"yes\",SUMIFS('Project Scope'!$AO$8:$AO$107,'Project Scope'!$AN$8:$AN$107,$I59,'Project Scope'!$C$8:$C$107,CG$7)+SUMIFS('Project Scope'!$AX$8:$AX$107,'Project Scope'!$AW$8:$AW$107,$I59,'Project Scope'!$C$8:$C$107,CG$7),0)","v":0},{"$f":"IF(AI59=\"yes\",SUMIFS('Project Scope'!$AO$8:$AO$107,'Project Scope'!$AN$8:$AN$107,$I59,'Project Scope'!$C$8:$C$107,CH$7)+SUMIFS('Project Scope'!$AX$8:$AX$107,'Project Scope'!$AW$8:$AW$107,$I59,'Project Scope'!$C$8:$C$107,CH$7),0)","v":0},{"$f":"IF(AJ59=\"yes\",SUMIFS('Project Scope'!$AO$8:$AO$107,'Project Scope'!$AN$8:$AN$107,$I59,'Project Scope'!$C$8:$C$107,CI$7)+SUMIFS('Project Scope'!$AX$8:$AX$107,'Project Scope'!$AW$8:$AW$107,$I59,'Project Scope'!$C$8:$C$107,CI$7),0)","v":0},{"$f":"IF(AK59=\"yes\",SUMIFS('Project Scope'!$AO$8:$AO$107,'Project Scope'!$AN$8:$AN$107,$I59,'Project Scope'!$C$8:$C$107,CJ$7)+SUMIFS('Project Scope'!$AX$8:$AX$107,'Project Scope'!$AW$8:$AW$107,$I59,'Project Scope'!$C$8:$C$107,CJ$7),0)","v":0},{"$f":"IF(AL59=\"yes\",SUMIFS('Project Scope'!$AO$8:$AO$107,'Project Scope'!$AN$8:$AN$107,$I59,'Project Scope'!$C$8:$C$107,CK$7)+SUMIFS('Project Scope'!$AX$8:$AX$107,'Project Scope'!$AW$8:$AW$107,$I59,'Project Scope'!$C$8:$C$107,CK$7),0)","v":0},{"$f":"IF(AM59=\"yes\",SUMIFS('Project Scope'!$AO$8:$AO$107,'Project Scope'!$AN$8:$AN$107,$I59,'Project Scope'!$C$8:$C$107,CL$7)+SUMIFS('Project Scope'!$AX$8:$AX$107,'Project Scope'!$AW$8:$AW$107,$I59,'Project Scope'!$C$8:$C$107,CL$7),0)","v":0},{"$f":"IF(AN59=\"yes\",SUMIFS('Project Scope'!$AO$8:$AO$107,'Project Scope'!$AN$8:$AN$107,$I59,'Project Scope'!$C$8:$C$107,CM$7)+SUMIFS('Project Scope'!$AX$8:$AX$107,'Project Scope'!$AW$8:$AW$107,$I59,'Project Scope'!$C$8:$C$107,CM$7),0)","v":0},{"$f":"IF(AO59=\"yes\",SUMIFS('Project Scope'!$AO$8:$AO$107,'Project Scope'!$AN$8:$AN$107,$I59,'Project Scope'!$C$8:$C$107,CN$7)+SUMIFS('Project Scope'!$AX$8:$AX$107,'Project Scope'!$AW$8:$AW$107,$I59,'Project Scope'!$C$8:$C$107,CN$7),0)","v":0},{"$f":"IF(AP59=\"yes\",SUMIFS('Project Scope'!$AO$8:$AO$107,'Project Scope'!$AN$8:$AN$107,$I59,'Project Scope'!$C$8:$C$107,CO$7)+SUMIFS('Project Scope'!$AX$8:$AX$107,'Project Scope'!$AW$8:$AW$107,$I59,'Project Scope'!$C$8:$C$107,CO$7),0)","v":0},{"$f":"IF(AQ59=\"yes\",SUMIFS('Project Scope'!$AO$8:$AO$107,'Project Scope'!$AN$8:$AN$107,$I59,'Project Scope'!$C$8:$C$107,CP$7)+SUMIFS('Project Scope'!$AX$8:$AX$107,'Project Scope'!$AW$8:$AW$107,$I59,'Project Scope'!$C$8:$C$107,CP$7),0)","v":0},{"$f":"IF(AR59=\"yes\",SUMIFS('Project Scope'!$AO$8:$AO$107,'Project Scope'!$AN$8:$AN$107,$I59,'Project Scope'!$C$8:$C$107,CQ$7)+SUMIFS('Project Scope'!$AX$8:$AX$107,'Project Scope'!$AW$8:$AW$107,$I59,'Project Scope'!$C$8:$C$107,CQ$7),0)","v":0},{"$f":"IF(AS59=\"yes\",SUMIFS('Project Scope'!$AO$8:$AO$107,'Project Scope'!$AN$8:$AN$107,$I59,'Project Scope'!$C$8:$C$107,CR$7)+SUMIFS('Project Scope'!$AX$8:$AX$107,'Project Scope'!$AW$8:$AW$107,$I59,'Project Scope'!$C$8:$C$107,CR$7),0)","v":0},{"$f":"IF(AT59=\"yes\",SUMIFS('Project Scope'!$AO$8:$AO$107,'Project Scope'!$AN$8:$AN$107,$I59,'Project Scope'!$C$8:$C$107,CS$7)+SUMIFS('Project Scope'!$AX$8:$AX$107,'Project Scope'!$AW$8:$AW$107,$I59,'Project Scope'!$C$8:$C$107,CS$7),0)","v":0},{"$f":"IF(AU59=\"yes\",SUMIFS('Project Scope'!$AO$8:$AO$107,'Project Scope'!$AN$8:$AN$107,$I59,'Project Scope'!$C$8:$C$107,CT$7)+SUMIFS('Project Scope'!$AX$8:$AX$107,'Project Scope'!$AW$8:$AW$107,$I59,'Project Scope'!$C$8:$C$107,CT$7),0)","v":0},{"$f":"IF(AV59=\"yes\",SUMIFS('Project Scope'!$AO$8:$AO$107,'Project Scope'!$AN$8:$AN$107,$I59,'Project Scope'!$C$8:$C$107,CU$7)+SUMIFS('Project Scope'!$AX$8:$AX$107,'Project Scope'!$AW$8:$AW$107,$I59,'Project Scope'!$C$8:$C$107,CU$7),0)","v":0},{"$f":"IF(AW59=\"yes\",SUMIFS('Project Scope'!$AO$8:$AO$107,'Project Scope'!$AN$8:$AN$107,$I59,'Project Scope'!$C$8:$C$107,CV$7)+SUMIFS('Project Scope'!$AX$8:$AX$107,'Project Scope'!$AW$8:$AW$107,$I59,'Project Scope'!$C$8:$C$107,CV$7),0)","v":0},{"$f":"IF(AX59=\"yes\",SUMIFS('Project Scope'!$AO$8:$AO$107,'Project Scope'!$AN$8:$AN$107,$I59,'Project Scope'!$C$8:$C$107,CW$7)+SUMIFS('Project Scope'!$AX$8:$AX$107,'Project Scope'!$AW$8:$AW$107,$I59,'Project Scope'!$C$8:$C$107,CW$7),0)","v":0},{"$f":"IF(AY59=\"yes\",SUMIFS('Project Scope'!$AO$8:$AO$107,'Project Scope'!$AN$8:$AN$107,$I59,'Project Scope'!$C$8:$C$107,CX$7)+SUMIFS('Project Scope'!$AX$8:$AX$107,'Project Scope'!$AW$8:$AW$107,$I59,'Project Scope'!$C$8:$C$107,CX$7),0)","v":0},{"$f":"IF(AZ59=\"yes\",SUMIFS('Project Scope'!$AO$8:$AO$107,'Project Scope'!$AN$8:$AN$107,$I59,'Project Scope'!$C$8:$C$107,CY$7)+SUMIFS('Project Scope'!$AX$8:$AX$107,'Project Scope'!$AW$8:$AW$107,$I59,'Project Scope'!$C$8:$C$107,CY$7),0)","v":0},{"$f":"IF(BA59=\"yes\",SUMIFS('Project Scope'!$AO$8:$AO$107,'Project Scope'!$AN$8:$AN$107,$I59,'Project Scope'!$C$8:$C$107,CZ$7)+SUMIFS('Project Scope'!$AX$8:$AX$107,'Project Scope'!$AW$8:$AW$107,$I59,'Project Scope'!$C$8:$C$107,CZ$7),0)","v":0},{"$f":"IF(BB59=\"yes\",SUMIFS('Project Scope'!$AO$8:$AO$107,'Project Scope'!$AN$8:$AN$107,$I59,'Project Scope'!$C$8:$C$107,DA$7)+SUMIFS('Project Scope'!$AX$8:$AX$107,'Project Scope'!$AW$8:$AW$107,$I59,'Project Scope'!$C$8:$C$107,DA$7),0)","v":0},{"$f":"IF(BC59=\"yes\",SUMIFS('Project Scope'!$AO$8:$AO$107,'Project Scope'!$AN$8:$AN$107,$I59,'Project Scope'!$C$8:$C$107,DB$7)+SUMIFS('Project Scope'!$AX$8:$AX$107,'Project Scope'!$AW$8:$AW$107,$I59,'Project Scope'!$C$8:$C$107,DB$7),0)","v":0},{"$f":"IF(BD59=\"yes\",SUMIFS('Project Scope'!$AO$8:$AO$107,'Project Scope'!$AN$8:$AN$107,$I59,'Project Scope'!$C$8:$C$107,DC$7)+SUMIFS('Project Scope'!$AX$8:$AX$107,'Project Scope'!$AW$8:$AW$107,$I59,'Project Scope'!$C$8:$C$107,DC$7),0)","v":0},{"$f":"IF(BE59=\"yes\",SUMIFS('Project Scope'!$AO$8:$AO$107,'Project Scope'!$AN$8:$AN$107,$I59,'Project Scope'!$C$8:$C$107,DD$7)+SUMIFS('Project Scope'!$AX$8:$AX$107,'Project Scope'!$AW$8:$AW$107,$I59,'Project Scope'!$C$8:$C$107,DD$7),0)","v":0},{"$f":"IF(BF59=\"yes\",SUMIFS('Project Scope'!$AO$8:$AO$107,'Project Scope'!$AN$8:$AN$107,$I59,'Project Scope'!$C$8:$C$107,DE$7)+SUMIFS('Project Scope'!$AX$8:$AX$107,'Project Scope'!$AW$8:$AW$107,$I59,'Project Scope'!$C$8:$C$107,DE$7),0)","v":0},{"$f":"IF(BG59=\"yes\",SUMIFS('Project Scope'!$AO$8:$AO$107,'Project Scope'!$AN$8:$AN$107,$I59,'Project Scope'!$C$8:$C$107,DF$7)+SUMIFS('Project Scope'!$AX$8:$AX$107,'Project Scope'!$AW$8:$AW$107,$I59,'Project Scope'!$C$8:$C$107,DF$7),0)","v":0},{"$f":"IF(BH59=\"yes\",SUMIFS('Project Scope'!$AO$8:$AO$107,'Project Scope'!$AN$8:$AN$107,$I59,'Project Scope'!$C$8:$C$107,DG$7)+SUMIFS('Project Scope'!$AX$8:$AX$107,'Project Scope'!$AW$8:$AW$107,$I59,'Project Scope'!$C$8:$C$107,DG$7),0)","v":0},{"$f":"IF(BI59=\"yes\",SUMIFS('Project Scope'!$AO$8:$AO$107,'Project Scope'!$AN$8:$AN$107,$I59,'Project Scope'!$C$8:$C$107,DH$7)+SUMIFS('Project Scope'!$AX$8:$AX$107,'Project Scope'!$AW$8:$AW$107,$I59,'Project Scope'!$C$8:$C$107,DH$7),0)","v":0},{"$f":"IF(BJ59=\"yes\",SUMIFS('Project Scope'!$AO$8:$AO$107,'Project Scope'!$AN$8:$AN$107,$I59,'Project Scope'!$C$8:$C$107,DI$7)+SUMIFS('Project Scope'!$AX$8:$AX$107,'Project Scope'!$AW$8:$AW$107,$I59,'Project Scope'!$C$8:$C$107,DI$7),0)","v":0},{"$f":"IF(BK59=\"yes\",SUMIFS('Project Scope'!$AO$8:$AO$107,'Project Scope'!$AN$8:$AN$107,$I59,'Project Scope'!$C$8:$C$107,DJ$7)+SUMIFS('Project Scope'!$AX$8:$AX$107,'Project Scope'!$AW$8:$AW$107,$I59,'Project Scope'!$C$8:$C$107,DJ$7),0)","v":0},{"$f":"IF(BL59=\"yes\",SUMIFS('Project Scope'!$AO$8:$AO$107,'Project Scope'!$AN$8:$AN$107,$I59,'Project Scope'!$C$8:$C$107,DK$7)+SUMIFS('Project Scope'!$AX$8:$AX$107,'Project Scope'!$AW$8:$AW$107,$I59,'Project Scope'!$C$8:$C$107,DK$7),0)","v":0},null,"","","","","","","","","","","","","","","","","","","","","","","","","","","","","","","","","","","","","","","","","","","","","","","","","","",null,""]
[null,null,null,null,null,null,null,null,null,null,null,{"$f":"IF($C60=\"additional labor hours\",$K60*'Project Information'!$D$12,$K60*$J60)*IF($F60=\"Per Measure\",SUM($BN60:$DK60),1)","v":0},{"$f":"IF($C60=\"\",0,IF(VLOOKUP($C60,'Other Data'!$B$146:$C$156,2,FALSE)=\"M\",$L60,0))","v":0},0,null,null,null,null,null,null,null,null,null,null,null,null,null,null,null,null,null,null,null,null,null,null,null,null,null,null,null,null,null,null,null,null,null,null,null,null,null,null,null,null,null,null,null,null,null,null,null,null,null,null,null,{"$f":"IF(O60=\"yes\",SUMIFS('Project Scope'!$AO$8:$AO$107,'Project Scope'!$AN$8:$AN$107,$I60,'Project Scope'!$C$8:$C$107,BN$7)+SUMIFS('Project Scope'!$AX$8:$AX$107,'Project Scope'!$AW$8:$AW$107,$I60,'Project Scope'!$C$8:$C$107,BN$7),0)","v":0},{"$f":"IF(P60=\"yes\",SUMIFS('Project Scope'!$AO$8:$AO$107,'Project Scope'!$AN$8:$AN$107,$I60,'Project Scope'!$C$8:$C$107,BO$7)+SUMIFS('Project Scope'!$AX$8:$AX$107,'Project Scope'!$AW$8:$AW$107,$I60,'Project Scope'!$C$8:$C$107,BO$7),0)","v":0},{"$f":"IF(Q60=\"yes\",SUMIFS('Project Scope'!$AO$8:$AO$107,'Project Scope'!$AN$8:$AN$107,$I60,'Project Scope'!$C$8:$C$107,BP$7)+SUMIFS('Project Scope'!$AX$8:$AX$107,'Project Scope'!$AW$8:$AW$107,$I60,'Project Scope'!$C$8:$C$107,BP$7),0)","v":0},{"$f":"IF(R60=\"yes\",SUMIFS('Project Scope'!$AO$8:$AO$107,'Project Scope'!$AN$8:$AN$107,$I60,'Project Scope'!$C$8:$C$107,BQ$7)+SUMIFS('Project Scope'!$AX$8:$AX$107,'Project Scope'!$AW$8:$AW$107,$I60,'Project Scope'!$C$8:$C$107,BQ$7),0)","v":0},{"$f":"IF(S60=\"yes\",SUMIFS('Project Scope'!$AO$8:$AO$107,'Project Scope'!$AN$8:$AN$107,$I60,'Project Scope'!$C$8:$C$107,BR$7)+SUMIFS('Project Scope'!$AX$8:$AX$107,'Project Scope'!$AW$8:$AW$107,$I60,'Project Scope'!$C$8:$C$107,BR$7),0)","v":0},{"$f":"IF(T60=\"yes\",SUMIFS('Project Scope'!$AO$8:$AO$107,'Project Scope'!$AN$8:$AN$107,$I60,'Project Scope'!$C$8:$C$107,BS$7)+SUMIFS('Project Scope'!$AX$8:$AX$107,'Project Scope'!$AW$8:$AW$107,$I60,'Project Scope'!$C$8:$C$107,BS$7),0)","v":0},{"$f":"IF(U60=\"yes\",SUMIFS('Project Scope'!$AO$8:$AO$107,'Project Scope'!$AN$8:$AN$107,$I60,'Project Scope'!$C$8:$C$107,BT$7)+SUMIFS('Project Scope'!$AX$8:$AX$107,'Project Scope'!$AW$8:$AW$107,$I60,'Project Scope'!$C$8:$C$107,BT$7),0)","v":0},{"$f":"IF(V60=\"yes\",SUMIFS('Project Scope'!$AO$8:$AO$107,'Project Scope'!$AN$8:$AN$107,$I60,'Project Scope'!$C$8:$C$107,BU$7)+SUMIFS('Project Scope'!$AX$8:$AX$107,'Project Scope'!$AW$8:$AW$107,$I60,'Project Scope'!$C$8:$C$107,BU$7),0)","v":0},{"$f":"IF(W60=\"yes\",SUMIFS('Project Scope'!$AO$8:$AO$107,'Project Scope'!$AN$8:$AN$107,$I60,'Project Scope'!$C$8:$C$107,BV$7)+SUMIFS('Project Scope'!$AX$8:$AX$107,'Project Scope'!$AW$8:$AW$107,$I60,'Project Scope'!$C$8:$C$107,BV$7),0)","v":0},{"$f":"IF(X60=\"yes\",SUMIFS('Project Scope'!$AO$8:$AO$107,'Project Scope'!$AN$8:$AN$107,$I60,'Project Scope'!$C$8:$C$107,BW$7)+SUMIFS('Project Scope'!$AX$8:$AX$107,'Project Scope'!$AW$8:$AW$107,$I60,'Project Scope'!$C$8:$C$107,BW$7),0)","v":0},{"$f":"IF(Y60=\"yes\",SUMIFS('Project Scope'!$AO$8:$AO$107,'Project Scope'!$AN$8:$AN$107,$I60,'Project Scope'!$C$8:$C$107,BX$7)+SUMIFS('Project Scope'!$AX$8:$AX$107,'Project Scope'!$AW$8:$AW$107,$I60,'Project Scope'!$C$8:$C$107,BX$7),0)","v":0},{"$f":"IF(Z60=\"yes\",SUMIFS('Project Scope'!$AO$8:$AO$107,'Project Scope'!$AN$8:$AN$107,$I60,'Project Scope'!$C$8:$C$107,BY$7)+SUMIFS('Project Scope'!$AX$8:$AX$107,'Project Scope'!$AW$8:$AW$107,$I60,'Project Scope'!$C$8:$C$107,BY$7),0)","v":0},{"$f":"IF(AA60=\"yes\",SUMIFS('Project Scope'!$AO$8:$AO$107,'Project Scope'!$AN$8:$AN$107,$I60,'Project Scope'!$C$8:$C$107,BZ$7)+SUMIFS('Project Scope'!$AX$8:$AX$107,'Project Scope'!$AW$8:$AW$107,$I60,'Project Scope'!$C$8:$C$107,BZ$7),0)","v":0},{"$f":"IF(AB60=\"yes\",SUMIFS('Project Scope'!$AO$8:$AO$107,'Project Scope'!$AN$8:$AN$107,$I60,'Project Scope'!$C$8:$C$107,CA$7)+SUMIFS('Project Scope'!$AX$8:$AX$107,'Project Scope'!$AW$8:$AW$107,$I60,'Project Scope'!$C$8:$C$107,CA$7),0)","v":0},{"$f":"IF(AC60=\"yes\",SUMIFS('Project Scope'!$AO$8:$AO$107,'Project Scope'!$AN$8:$AN$107,$I60,'Project Scope'!$C$8:$C$107,CB$7)+SUMIFS('Project Scope'!$AX$8:$AX$107,'Project Scope'!$AW$8:$AW$107,$I60,'Project Scope'!$C$8:$C$107,CB$7),0)","v":0},{"$f":"IF(AD60=\"yes\",SUMIFS('Project Scope'!$AO$8:$AO$107,'Project Scope'!$AN$8:$AN$107,$I60,'Project Scope'!$C$8:$C$107,CC$7)+SUMIFS('Project Scope'!$AX$8:$AX$107,'Project Scope'!$AW$8:$AW$107,$I60,'Project Scope'!$C$8:$C$107,CC$7),0)","v":0},{"$f":"IF(AE60=\"yes\",SUMIFS('Project Scope'!$AO$8:$AO$107,'Project Scope'!$AN$8:$AN$107,$I60,'Project Scope'!$C$8:$C$107,CD$7)+SUMIFS('Project Scope'!$AX$8:$AX$107,'Project Scope'!$AW$8:$AW$107,$I60,'Project Scope'!$C$8:$C$107,CD$7),0)","v":0},{"$f":"IF(AF60=\"yes\",SUMIFS('Project Scope'!$AO$8:$AO$107,'Project Scope'!$AN$8:$AN$107,$I60,'Project Scope'!$C$8:$C$107,CE$7)+SUMIFS('Project Scope'!$AX$8:$AX$107,'Project Scope'!$AW$8:$AW$107,$I60,'Project Scope'!$C$8:$C$107,CE$7),0)","v":0},{"$f":"IF(AG60=\"yes\",SUMIFS('Project Scope'!$AO$8:$AO$107,'Project Scope'!$AN$8:$AN$107,$I60,'Project Scope'!$C$8:$C$107,CF$7)+SUMIFS('Project Scope'!$AX$8:$AX$107,'Project Scope'!$AW$8:$AW$107,$I60,'Project Scope'!$C$8:$C$107,CF$7),0)","v":0},{"$f":"IF(AH60=\"yes\",SUMIFS('Project Scope'!$AO$8:$AO$107,'Project Scope'!$AN$8:$AN$107,$I60,'Project Scope'!$C$8:$C$107,CG$7)+SUMIFS('Project Scope'!$AX$8:$AX$107,'Project Scope'!$AW$8:$AW$107,$I60,'Project Scope'!$C$8:$C$107,CG$7),0)","v":0},{"$f":"IF(AI60=\"yes\",SUMIFS('Project Scope'!$AO$8:$AO$107,'Project Scope'!$AN$8:$AN$107,$I60,'Project Scope'!$C$8:$C$107,CH$7)+SUMIFS('Project Scope'!$AX$8:$AX$107,'Project Scope'!$AW$8:$AW$107,$I60,'Project Scope'!$C$8:$C$107,CH$7),0)","v":0},{"$f":"IF(AJ60=\"yes\",SUMIFS('Project Scope'!$AO$8:$AO$107,'Project Scope'!$AN$8:$AN$107,$I60,'Project Scope'!$C$8:$C$107,CI$7)+SUMIFS('Project Scope'!$AX$8:$AX$107,'Project Scope'!$AW$8:$AW$107,$I60,'Project Scope'!$C$8:$C$107,CI$7),0)","v":0},{"$f":"IF(AK60=\"yes\",SUMIFS('Project Scope'!$AO$8:$AO$107,'Project Scope'!$AN$8:$AN$107,$I60,'Project Scope'!$C$8:$C$107,CJ$7)+SUMIFS('Project Scope'!$AX$8:$AX$107,'Project Scope'!$AW$8:$AW$107,$I60,'Project Scope'!$C$8:$C$107,CJ$7),0)","v":0},{"$f":"IF(AL60=\"yes\",SUMIFS('Project Scope'!$AO$8:$AO$107,'Project Scope'!$AN$8:$AN$107,$I60,'Project Scope'!$C$8:$C$107,CK$7)+SUMIFS('Project Scope'!$AX$8:$AX$107,'Project Scope'!$AW$8:$AW$107,$I60,'Project Scope'!$C$8:$C$107,CK$7),0)","v":0},{"$f":"IF(AM60=\"yes\",SUMIFS('Project Scope'!$AO$8:$AO$107,'Project Scope'!$AN$8:$AN$107,$I60,'Project Scope'!$C$8:$C$107,CL$7)+SUMIFS('Project Scope'!$AX$8:$AX$107,'Project Scope'!$AW$8:$AW$107,$I60,'Project Scope'!$C$8:$C$107,CL$7),0)","v":0},{"$f":"IF(AN60=\"yes\",SUMIFS('Project Scope'!$AO$8:$AO$107,'Project Scope'!$AN$8:$AN$107,$I60,'Project Scope'!$C$8:$C$107,CM$7)+SUMIFS('Project Scope'!$AX$8:$AX$107,'Project Scope'!$AW$8:$AW$107,$I60,'Project Scope'!$C$8:$C$107,CM$7),0)","v":0},{"$f":"IF(AO60=\"yes\",SUMIFS('Project Scope'!$AO$8:$AO$107,'Project Scope'!$AN$8:$AN$107,$I60,'Project Scope'!$C$8:$C$107,CN$7)+SUMIFS('Project Scope'!$AX$8:$AX$107,'Project Scope'!$AW$8:$AW$107,$I60,'Project Scope'!$C$8:$C$107,CN$7),0)","v":0},{"$f":"IF(AP60=\"yes\",SUMIFS('Project Scope'!$AO$8:$AO$107,'Project Scope'!$AN$8:$AN$107,$I60,'Project Scope'!$C$8:$C$107,CO$7)+SUMIFS('Project Scope'!$AX$8:$AX$107,'Project Scope'!$AW$8:$AW$107,$I60,'Project Scope'!$C$8:$C$107,CO$7),0)","v":0},{"$f":"IF(AQ60=\"yes\",SUMIFS('Project Scope'!$AO$8:$AO$107,'Project Scope'!$AN$8:$AN$107,$I60,'Project Scope'!$C$8:$C$107,CP$7)+SUMIFS('Project Scope'!$AX$8:$AX$107,'Project Scope'!$AW$8:$AW$107,$I60,'Project Scope'!$C$8:$C$107,CP$7),0)","v":0},{"$f":"IF(AR60=\"yes\",SUMIFS('Project Scope'!$AO$8:$AO$107,'Project Scope'!$AN$8:$AN$107,$I60,'Project Scope'!$C$8:$C$107,CQ$7)+SUMIFS('Project Scope'!$AX$8:$AX$107,'Project Scope'!$AW$8:$AW$107,$I60,'Project Scope'!$C$8:$C$107,CQ$7),0)","v":0},{"$f":"IF(AS60=\"yes\",SUMIFS('Project Scope'!$AO$8:$AO$107,'Project Scope'!$AN$8:$AN$107,$I60,'Project Scope'!$C$8:$C$107,CR$7)+SUMIFS('Project Scope'!$AX$8:$AX$107,'Project Scope'!$AW$8:$AW$107,$I60,'Project Scope'!$C$8:$C$107,CR$7),0)","v":0},{"$f":"IF(AT60=\"yes\",SUMIFS('Project Scope'!$AO$8:$AO$107,'Project Scope'!$AN$8:$AN$107,$I60,'Project Scope'!$C$8:$C$107,CS$7)+SUMIFS('Project Scope'!$AX$8:$AX$107,'Project Scope'!$AW$8:$AW$107,$I60,'Project Scope'!$C$8:$C$107,CS$7),0)","v":0},{"$f":"IF(AU60=\"yes\",SUMIFS('Project Scope'!$AO$8:$AO$107,'Project Scope'!$AN$8:$AN$107,$I60,'Project Scope'!$C$8:$C$107,CT$7)+SUMIFS('Project Scope'!$AX$8:$AX$107,'Project Scope'!$AW$8:$AW$107,$I60,'Project Scope'!$C$8:$C$107,CT$7),0)","v":0},{"$f":"IF(AV60=\"yes\",SUMIFS('Project Scope'!$AO$8:$AO$107,'Project Scope'!$AN$8:$AN$107,$I60,'Project Scope'!$C$8:$C$107,CU$7)+SUMIFS('Project Scope'!$AX$8:$AX$107,'Project Scope'!$AW$8:$AW$107,$I60,'Project Scope'!$C$8:$C$107,CU$7),0)","v":0},{"$f":"IF(AW60=\"yes\",SUMIFS('Project Scope'!$AO$8:$AO$107,'Project Scope'!$AN$8:$AN$107,$I60,'Project Scope'!$C$8:$C$107,CV$7)+SUMIFS('Project Scope'!$AX$8:$AX$107,'Project Scope'!$AW$8:$AW$107,$I60,'Project Scope'!$C$8:$C$107,CV$7),0)","v":0},{"$f":"IF(AX60=\"yes\",SUMIFS('Project Scope'!$AO$8:$AO$107,'Project Scope'!$AN$8:$AN$107,$I60,'Project Scope'!$C$8:$C$107,CW$7)+SUMIFS('Project Scope'!$AX$8:$AX$107,'Project Scope'!$AW$8:$AW$107,$I60,'Project Scope'!$C$8:$C$107,CW$7),0)","v":0},{"$f":"IF(AY60=\"yes\",SUMIFS('Project Scope'!$AO$8:$AO$107,'Project Scope'!$AN$8:$AN$107,$I60,'Project Scope'!$C$8:$C$107,CX$7)+SUMIFS('Project Scope'!$AX$8:$AX$107,'Project Scope'!$AW$8:$AW$107,$I60,'Project Scope'!$C$8:$C$107,CX$7),0)","v":0},{"$f":"IF(AZ60=\"yes\",SUMIFS('Project Scope'!$AO$8:$AO$107,'Project Scope'!$AN$8:$AN$107,$I60,'Project Scope'!$C$8:$C$107,CY$7)+SUMIFS('Project Scope'!$AX$8:$AX$107,'Project Scope'!$AW$8:$AW$107,$I60,'Project Scope'!$C$8:$C$107,CY$7),0)","v":0},{"$f":"IF(BA60=\"yes\",SUMIFS('Project Scope'!$AO$8:$AO$107,'Project Scope'!$AN$8:$AN$107,$I60,'Project Scope'!$C$8:$C$107,CZ$7)+SUMIFS('Project Scope'!$AX$8:$AX$107,'Project Scope'!$AW$8:$AW$107,$I60,'Project Scope'!$C$8:$C$107,CZ$7),0)","v":0},{"$f":"IF(BB60=\"yes\",SUMIFS('Project Scope'!$AO$8:$AO$107,'Project Scope'!$AN$8:$AN$107,$I60,'Project Scope'!$C$8:$C$107,DA$7)+SUMIFS('Project Scope'!$AX$8:$AX$107,'Project Scope'!$AW$8:$AW$107,$I60,'Project Scope'!$C$8:$C$107,DA$7),0)","v":0},{"$f":"IF(BC60=\"yes\",SUMIFS('Project Scope'!$AO$8:$AO$107,'Project Scope'!$AN$8:$AN$107,$I60,'Project Scope'!$C$8:$C$107,DB$7)+SUMIFS('Project Scope'!$AX$8:$AX$107,'Project Scope'!$AW$8:$AW$107,$I60,'Project Scope'!$C$8:$C$107,DB$7),0)","v":0},{"$f":"IF(BD60=\"yes\",SUMIFS('Project Scope'!$AO$8:$AO$107,'Project Scope'!$AN$8:$AN$107,$I60,'Project Scope'!$C$8:$C$107,DC$7)+SUMIFS('Project Scope'!$AX$8:$AX$107,'Project Scope'!$AW$8:$AW$107,$I60,'Project Scope'!$C$8:$C$107,DC$7),0)","v":0},{"$f":"IF(BE60=\"yes\",SUMIFS('Project Scope'!$AO$8:$AO$107,'Project Scope'!$AN$8:$AN$107,$I60,'Project Scope'!$C$8:$C$107,DD$7)+SUMIFS('Project Scope'!$AX$8:$AX$107,'Project Scope'!$AW$8:$AW$107,$I60,'Project Scope'!$C$8:$C$107,DD$7),0)","v":0},{"$f":"IF(BF60=\"yes\",SUMIFS('Project Scope'!$AO$8:$AO$107,'Project Scope'!$AN$8:$AN$107,$I60,'Project Scope'!$C$8:$C$107,DE$7)+SUMIFS('Project Scope'!$AX$8:$AX$107,'Project Scope'!$AW$8:$AW$107,$I60,'Project Scope'!$C$8:$C$107,DE$7),0)","v":0},{"$f":"IF(BG60=\"yes\",SUMIFS('Project Scope'!$AO$8:$AO$107,'Project Scope'!$AN$8:$AN$107,$I60,'Project Scope'!$C$8:$C$107,DF$7)+SUMIFS('Project Scope'!$AX$8:$AX$107,'Project Scope'!$AW$8:$AW$107,$I60,'Project Scope'!$C$8:$C$107,DF$7),0)","v":0},{"$f":"IF(BH60=\"yes\",SUMIFS('Project Scope'!$AO$8:$AO$107,'Project Scope'!$AN$8:$AN$107,$I60,'Project Scope'!$C$8:$C$107,DG$7)+SUMIFS('Project Scope'!$AX$8:$AX$107,'Project Scope'!$AW$8:$AW$107,$I60,'Project Scope'!$C$8:$C$107,DG$7),0)","v":0},{"$f":"IF(BI60=\"yes\",SUMIFS('Project Scope'!$AO$8:$AO$107,'Project Scope'!$AN$8:$AN$107,$I60,'Project Scope'!$C$8:$C$107,DH$7)+SUMIFS('Project Scope'!$AX$8:$AX$107,'Project Scope'!$AW$8:$AW$107,$I60,'Project Scope'!$C$8:$C$107,DH$7),0)","v":0},{"$f":"IF(BJ60=\"yes\",SUMIFS('Project Scope'!$AO$8:$AO$107,'Project Scope'!$AN$8:$AN$107,$I60,'Project Scope'!$C$8:$C$107,DI$7)+SUMIFS('Project Scope'!$AX$8:$AX$107,'Project Scope'!$AW$8:$AW$107,$I60,'Project Scope'!$C$8:$C$107,DI$7),0)","v":0},{"$f":"IF(BK60=\"yes\",SUMIFS('Project Scope'!$AO$8:$AO$107,'Project Scope'!$AN$8:$AN$107,$I60,'Project Scope'!$C$8:$C$107,DJ$7)+SUMIFS('Project Scope'!$AX$8:$AX$107,'Project Scope'!$AW$8:$AW$107,$I60,'Project Scope'!$C$8:$C$107,DJ$7),0)","v":0},{"$f":"IF(BL60=\"yes\",SUMIFS('Project Scope'!$AO$8:$AO$107,'Project Scope'!$AN$8:$AN$107,$I60,'Project Scope'!$C$8:$C$107,DK$7)+SUMIFS('Project Scope'!$AX$8:$AX$107,'Project Scope'!$AW$8:$AW$107,$I60,'Project Scope'!$C$8:$C$107,DK$7),0)","v":0},null,"","","","","","","","","","","","","","","","","","","","","","","","","","","","","","","","","","","","","","","","","","","","","","","","","","",null,""]
[null,null,null,null,null,null,null,null,null,null,null,{"$f":"IF($C61=\"additional labor hours\",$K61*'Project Information'!$D$12,$K61*$J61)*IF($F61=\"Per Measure\",SUM($BN61:$DK61),1)","v":0},{"$f":"IF($C61=\"\",0,IF(VLOOKUP($C61,'Other Data'!$B$146:$C$156,2,FALSE)=\"M\",$L61,0))","v":0},0,null,null,null,null,null,null,null,null,null,null,null,null,null,null,null,null,null,null,null,null,null,null,null,null,null,null,null,null,null,null,null,null,null,null,null,null,null,null,null,null,null,null,null,null,null,null,null,null,null,null,null,{"$f":"IF(O61=\"yes\",SUMIFS('Project Scope'!$AO$8:$AO$107,'Project Scope'!$AN$8:$AN$107,$I61,'Project Scope'!$C$8:$C$107,BN$7)+SUMIFS('Project Scope'!$AX$8:$AX$107,'Project Scope'!$AW$8:$AW$107,$I61,'Project Scope'!$C$8:$C$107,BN$7),0)","v":0},{"$f":"IF(P61=\"yes\",SUMIFS('Project Scope'!$AO$8:$AO$107,'Project Scope'!$AN$8:$AN$107,$I61,'Project Scope'!$C$8:$C$107,BO$7)+SUMIFS('Project Scope'!$AX$8:$AX$107,'Project Scope'!$AW$8:$AW$107,$I61,'Project Scope'!$C$8:$C$107,BO$7),0)","v":0},{"$f":"IF(Q61=\"yes\",SUMIFS('Project Scope'!$AO$8:$AO$107,'Project Scope'!$AN$8:$AN$107,$I61,'Project Scope'!$C$8:$C$107,BP$7)+SUMIFS('Project Scope'!$AX$8:$AX$107,'Project Scope'!$AW$8:$AW$107,$I61,'Project Scope'!$C$8:$C$107,BP$7),0)","v":0},{"$f":"IF(R61=\"yes\",SUMIFS('Project Scope'!$AO$8:$AO$107,'Project Scope'!$AN$8:$AN$107,$I61,'Project Scope'!$C$8:$C$107,BQ$7)+SUMIFS('Project Scope'!$AX$8:$AX$107,'Project Scope'!$AW$8:$AW$107,$I61,'Project Scope'!$C$8:$C$107,BQ$7),0)","v":0},{"$f":"IF(S61=\"yes\",SUMIFS('Project Scope'!$AO$8:$AO$107,'Project Scope'!$AN$8:$AN$107,$I61,'Project Scope'!$C$8:$C$107,BR$7)+SUMIFS('Project Scope'!$AX$8:$AX$107,'Project Scope'!$AW$8:$AW$107,$I61,'Project Scope'!$C$8:$C$107,BR$7),0)","v":0},{"$f":"IF(T61=\"yes\",SUMIFS('Project Scope'!$AO$8:$AO$107,'Project Scope'!$AN$8:$AN$107,$I61,'Project Scope'!$C$8:$C$107,BS$7)+SUMIFS('Project Scope'!$AX$8:$AX$107,'Project Scope'!$AW$8:$AW$107,$I61,'Project Scope'!$C$8:$C$107,BS$7),0)","v":0},{"$f":"IF(U61=\"yes\",SUMIFS('Project Scope'!$AO$8:$AO$107,'Project Scope'!$AN$8:$AN$107,$I61,'Project Scope'!$C$8:$C$107,BT$7)+SUMIFS('Project Scope'!$AX$8:$AX$107,'Project Scope'!$AW$8:$AW$107,$I61,'Project Scope'!$C$8:$C$107,BT$7),0)","v":0},{"$f":"IF(V61=\"yes\",SUMIFS('Project Scope'!$AO$8:$AO$107,'Project Scope'!$AN$8:$AN$107,$I61,'Project Scope'!$C$8:$C$107,BU$7)+SUMIFS('Project Scope'!$AX$8:$AX$107,'Project Scope'!$AW$8:$AW$107,$I61,'Project Scope'!$C$8:$C$107,BU$7),0)","v":0},{"$f":"IF(W61=\"yes\",SUMIFS('Project Scope'!$AO$8:$AO$107,'Project Scope'!$AN$8:$AN$107,$I61,'Project Scope'!$C$8:$C$107,BV$7)+SUMIFS('Project Scope'!$AX$8:$AX$107,'Project Scope'!$AW$8:$AW$107,$I61,'Project Scope'!$C$8:$C$107,BV$7),0)","v":0},{"$f":"IF(X61=\"yes\",SUMIFS('Project Scope'!$AO$8:$AO$107,'Project Scope'!$AN$8:$AN$107,$I61,'Project Scope'!$C$8:$C$107,BW$7)+SUMIFS('Project Scope'!$AX$8:$AX$107,'Project Scope'!$AW$8:$AW$107,$I61,'Project Scope'!$C$8:$C$107,BW$7),0)","v":0},{"$f":"IF(Y61=\"yes\",SUMIFS('Project Scope'!$AO$8:$AO$107,'Project Scope'!$AN$8:$AN$107,$I61,'Project Scope'!$C$8:$C$107,BX$7)+SUMIFS('Project Scope'!$AX$8:$AX$107,'Project Scope'!$AW$8:$AW$107,$I61,'Project Scope'!$C$8:$C$107,BX$7),0)","v":0},{"$f":"IF(Z61=\"yes\",SUMIFS('Project Scope'!$AO$8:$AO$107,'Project Scope'!$AN$8:$AN$107,$I61,'Project Scope'!$C$8:$C$107,BY$7)+SUMIFS('Project Scope'!$AX$8:$AX$107,'Project Scope'!$AW$8:$AW$107,$I61,'Project Scope'!$C$8:$C$107,BY$7),0)","v":0},{"$f":"IF(AA61=\"yes\",SUMIFS('Project Scope'!$AO$8:$AO$107,'Project Scope'!$AN$8:$AN$107,$I61,'Project Scope'!$C$8:$C$107,BZ$7)+SUMIFS('Project Scope'!$AX$8:$AX$107,'Project Scope'!$AW$8:$AW$107,$I61,'Project Scope'!$C$8:$C$107,BZ$7),0)","v":0},{"$f":"IF(AB61=\"yes\",SUMIFS('Project Scope'!$AO$8:$AO$107,'Project Scope'!$AN$8:$AN$107,$I61,'Project Scope'!$C$8:$C$107,CA$7)+SUMIFS('Project Scope'!$AX$8:$AX$107,'Project Scope'!$AW$8:$AW$107,$I61,'Project Scope'!$C$8:$C$107,CA$7),0)","v":0},{"$f":"IF(AC61=\"yes\",SUMIFS('Project Scope'!$AO$8:$AO$107,'Project Scope'!$AN$8:$AN$107,$I61,'Project Scope'!$C$8:$C$107,CB$7)+SUMIFS('Project Scope'!$AX$8:$AX$107,'Project Scope'!$AW$8:$AW$107,$I61,'Project Scope'!$C$8:$C$107,CB$7),0)","v":0},{"$f":"IF(AD61=\"yes\",SUMIFS('Project Scope'!$AO$8:$AO$107,'Project Scope'!$AN$8:$AN$107,$I61,'Project Scope'!$C$8:$C$107,CC$7)+SUMIFS('Project Scope'!$AX$8:$AX$107,'Project Scope'!$AW$8:$AW$107,$I61,'Project Scope'!$C$8:$C$107,CC$7),0)","v":0},{"$f":"IF(AE61=\"yes\",SUMIFS('Project Scope'!$AO$8:$AO$107,'Project Scope'!$AN$8:$AN$107,$I61,'Project Scope'!$C$8:$C$107,CD$7)+SUMIFS('Project Scope'!$AX$8:$AX$107,'Project Scope'!$AW$8:$AW$107,$I61,'Project Scope'!$C$8:$C$107,CD$7),0)","v":0},{"$f":"IF(AF61=\"yes\",SUMIFS('Project Scope'!$AO$8:$AO$107,'Project Scope'!$AN$8:$AN$107,$I61,'Project Scope'!$C$8:$C$107,CE$7)+SUMIFS('Project Scope'!$AX$8:$AX$107,'Project Scope'!$AW$8:$AW$107,$I61,'Project Scope'!$C$8:$C$107,CE$7),0)","v":0},{"$f":"IF(AG61=\"yes\",SUMIFS('Project Scope'!$AO$8:$AO$107,'Project Scope'!$AN$8:$AN$107,$I61,'Project Scope'!$C$8:$C$107,CF$7)+SUMIFS('Project Scope'!$AX$8:$AX$107,'Project Scope'!$AW$8:$AW$107,$I61,'Project Scope'!$C$8:$C$107,CF$7),0)","v":0},{"$f":"IF(AH61=\"yes\",SUMIFS('Project Scope'!$AO$8:$AO$107,'Project Scope'!$AN$8:$AN$107,$I61,'Project Scope'!$C$8:$C$107,CG$7)+SUMIFS('Project Scope'!$AX$8:$AX$107,'Project Scope'!$AW$8:$AW$107,$I61,'Project Scope'!$C$8:$C$107,CG$7),0)","v":0},{"$f":"IF(AI61=\"yes\",SUMIFS('Project Scope'!$AO$8:$AO$107,'Project Scope'!$AN$8:$AN$107,$I61,'Project Scope'!$C$8:$C$107,CH$7)+SUMIFS('Project Scope'!$AX$8:$AX$107,'Project Scope'!$AW$8:$AW$107,$I61,'Project Scope'!$C$8:$C$107,CH$7),0)","v":0},{"$f":"IF(AJ61=\"yes\",SUMIFS('Project Scope'!$AO$8:$AO$107,'Project Scope'!$AN$8:$AN$107,$I61,'Project Scope'!$C$8:$C$107,CI$7)+SUMIFS('Project Scope'!$AX$8:$AX$107,'Project Scope'!$AW$8:$AW$107,$I61,'Project Scope'!$C$8:$C$107,CI$7),0)","v":0},{"$f":"IF(AK61=\"yes\",SUMIFS('Project Scope'!$AO$8:$AO$107,'Project Scope'!$AN$8:$AN$107,$I61,'Project Scope'!$C$8:$C$107,CJ$7)+SUMIFS('Project Scope'!$AX$8:$AX$107,'Project Scope'!$AW$8:$AW$107,$I61,'Project Scope'!$C$8:$C$107,CJ$7),0)","v":0},{"$f":"IF(AL61=\"yes\",SUMIFS('Project Scope'!$AO$8:$AO$107,'Project Scope'!$AN$8:$AN$107,$I61,'Project Scope'!$C$8:$C$107,CK$7)+SUMIFS('Project Scope'!$AX$8:$AX$107,'Project Scope'!$AW$8:$AW$107,$I61,'Project Scope'!$C$8:$C$107,CK$7),0)","v":0},{"$f":"IF(AM61=\"yes\",SUMIFS('Project Scope'!$AO$8:$AO$107,'Project Scope'!$AN$8:$AN$107,$I61,'Project Scope'!$C$8:$C$107,CL$7)+SUMIFS('Project Scope'!$AX$8:$AX$107,'Project Scope'!$AW$8:$AW$107,$I61,'Project Scope'!$C$8:$C$107,CL$7),0)","v":0},{"$f":"IF(AN61=\"yes\",SUMIFS('Project Scope'!$AO$8:$AO$107,'Project Scope'!$AN$8:$AN$107,$I61,'Project Scope'!$C$8:$C$107,CM$7)+SUMIFS('Project Scope'!$AX$8:$AX$107,'Project Scope'!$AW$8:$AW$107,$I61,'Project Scope'!$C$8:$C$107,CM$7),0)","v":0},{"$f":"IF(AO61=\"yes\",SUMIFS('Project Scope'!$AO$8:$AO$107,'Project Scope'!$AN$8:$AN$107,$I61,'Project Scope'!$C$8:$C$107,CN$7)+SUMIFS('Project Scope'!$AX$8:$AX$107,'Project Scope'!$AW$8:$AW$107,$I61,'Project Scope'!$C$8:$C$107,CN$7),0)","v":0},{"$f":"IF(AP61=\"yes\",SUMIFS('Project Scope'!$AO$8:$AO$107,'Project Scope'!$AN$8:$AN$107,$I61,'Project Scope'!$C$8:$C$107,CO$7)+SUMIFS('Project Scope'!$AX$8:$AX$107,'Project Scope'!$AW$8:$AW$107,$I61,'Project Scope'!$C$8:$C$107,CO$7),0)","v":0},{"$f":"IF(AQ61=\"yes\",SUMIFS('Project Scope'!$AO$8:$AO$107,'Project Scope'!$AN$8:$AN$107,$I61,'Project Scope'!$C$8:$C$107,CP$7)+SUMIFS('Project Scope'!$AX$8:$AX$107,'Project Scope'!$AW$8:$AW$107,$I61,'Project Scope'!$C$8:$C$107,CP$7),0)","v":0},{"$f":"IF(AR61=\"yes\",SUMIFS('Project Scope'!$AO$8:$AO$107,'Project Scope'!$AN$8:$AN$107,$I61,'Project Scope'!$C$8:$C$107,CQ$7)+SUMIFS('Project Scope'!$AX$8:$AX$107,'Project Scope'!$AW$8:$AW$107,$I61,'Project Scope'!$C$8:$C$107,CQ$7),0)","v":0},{"$f":"IF(AS61=\"yes\",SUMIFS('Project Scope'!$AO$8:$AO$107,'Project Scope'!$AN$8:$AN$107,$I61,'Project Scope'!$C$8:$C$107,CR$7)+SUMIFS('Project Scope'!$AX$8:$AX$107,'Project Scope'!$AW$8:$AW$107,$I61,'Project Scope'!$C$8:$C$107,CR$7),0)","v":0},{"$f":"IF(AT61=\"yes\",SUMIFS('Project Scope'!$AO$8:$AO$107,'Project Scope'!$AN$8:$AN$107,$I61,'Project Scope'!$C$8:$C$107,CS$7)+SUMIFS('Project Scope'!$AX$8:$AX$107,'Project Scope'!$AW$8:$AW$107,$I61,'Project Scope'!$C$8:$C$107,CS$7),0)","v":0},{"$f":"IF(AU61=\"yes\",SUMIFS('Project Scope'!$AO$8:$AO$107,'Project Scope'!$AN$8:$AN$107,$I61,'Project Scope'!$C$8:$C$107,CT$7)+SUMIFS('Project Scope'!$AX$8:$AX$107,'Project Scope'!$AW$8:$AW$107,$I61,'Project Scope'!$C$8:$C$107,CT$7),0)","v":0},{"$f":"IF(AV61=\"yes\",SUMIFS('Project Scope'!$AO$8:$AO$107,'Project Scope'!$AN$8:$AN$107,$I61,'Project Scope'!$C$8:$C$107,CU$7)+SUMIFS('Project Scope'!$AX$8:$AX$107,'Project Scope'!$AW$8:$AW$107,$I61,'Project Scope'!$C$8:$C$107,CU$7),0)","v":0},{"$f":"IF(AW61=\"yes\",SUMIFS('Project Scope'!$AO$8:$AO$107,'Project Scope'!$AN$8:$AN$107,$I61,'Project Scope'!$C$8:$C$107,CV$7)+SUMIFS('Project Scope'!$AX$8:$AX$107,'Project Scope'!$AW$8:$AW$107,$I61,'Project Scope'!$C$8:$C$107,CV$7),0)","v":0},{"$f":"IF(AX61=\"yes\",SUMIFS('Project Scope'!$AO$8:$AO$107,'Project Scope'!$AN$8:$AN$107,$I61,'Project Scope'!$C$8:$C$107,CW$7)+SUMIFS('Project Scope'!$AX$8:$AX$107,'Project Scope'!$AW$8:$AW$107,$I61,'Project Scope'!$C$8:$C$107,CW$7),0)","v":0},{"$f":"IF(AY61=\"yes\",SUMIFS('Project Scope'!$AO$8:$AO$107,'Project Scope'!$AN$8:$AN$107,$I61,'Project Scope'!$C$8:$C$107,CX$7)+SUMIFS('Project Scope'!$AX$8:$AX$107,'Project Scope'!$AW$8:$AW$107,$I61,'Project Scope'!$C$8:$C$107,CX$7),0)","v":0},{"$f":"IF(AZ61=\"yes\",SUMIFS('Project Scope'!$AO$8:$AO$107,'Project Scope'!$AN$8:$AN$107,$I61,'Project Scope'!$C$8:$C$107,CY$7)+SUMIFS('Project Scope'!$AX$8:$AX$107,'Project Scope'!$AW$8:$AW$107,$I61,'Project Scope'!$C$8:$C$107,CY$7),0)","v":0},{"$f":"IF(BA61=\"yes\",SUMIFS('Project Scope'!$AO$8:$AO$107,'Project Scope'!$AN$8:$AN$107,$I61,'Project Scope'!$C$8:$C$107,CZ$7)+SUMIFS('Project Scope'!$AX$8:$AX$107,'Project Scope'!$AW$8:$AW$107,$I61,'Project Scope'!$C$8:$C$107,CZ$7),0)","v":0},{"$f":"IF(BB61=\"yes\",SUMIFS('Project Scope'!$AO$8:$AO$107,'Project Scope'!$AN$8:$AN$107,$I61,'Project Scope'!$C$8:$C$107,DA$7)+SUMIFS('Project Scope'!$AX$8:$AX$107,'Project Scope'!$AW$8:$AW$107,$I61,'Project Scope'!$C$8:$C$107,DA$7),0)","v":0},{"$f":"IF(BC61=\"yes\",SUMIFS('Project Scope'!$AO$8:$AO$107,'Project Scope'!$AN$8:$AN$107,$I61,'Project Scope'!$C$8:$C$107,DB$7)+SUMIFS('Project Scope'!$AX$8:$AX$107,'Project Scope'!$AW$8:$AW$107,$I61,'Project Scope'!$C$8:$C$107,DB$7),0)","v":0},{"$f":"IF(BD61=\"yes\",SUMIFS('Project Scope'!$AO$8:$AO$107,'Project Scope'!$AN$8:$AN$107,$I61,'Project Scope'!$C$8:$C$107,DC$7)+SUMIFS('Project Scope'!$AX$8:$AX$107,'Project Scope'!$AW$8:$AW$107,$I61,'Project Scope'!$C$8:$C$107,DC$7),0)","v":0},{"$f":"IF(BE61=\"yes\",SUMIFS('Project Scope'!$AO$8:$AO$107,'Project Scope'!$AN$8:$AN$107,$I61,'Project Scope'!$C$8:$C$107,DD$7)+SUMIFS('Project Scope'!$AX$8:$AX$107,'Project Scope'!$AW$8:$AW$107,$I61,'Project Scope'!$C$8:$C$107,DD$7),0)","v":0},{"$f":"IF(BF61=\"yes\",SUMIFS('Project Scope'!$AO$8:$AO$107,'Project Scope'!$AN$8:$AN$107,$I61,'Project Scope'!$C$8:$C$107,DE$7)+SUMIFS('Project Scope'!$AX$8:$AX$107,'Project Scope'!$AW$8:$AW$107,$I61,'Project Scope'!$C$8:$C$107,DE$7),0)","v":0},{"$f":"IF(BG61=\"yes\",SUMIFS('Project Scope'!$AO$8:$AO$107,'Project Scope'!$AN$8:$AN$107,$I61,'Project Scope'!$C$8:$C$107,DF$7)+SUMIFS('Project Scope'!$AX$8:$AX$107,'Project Scope'!$AW$8:$AW$107,$I61,'Project Scope'!$C$8:$C$107,DF$7),0)","v":0},{"$f":"IF(BH61=\"yes\",SUMIFS('Project Scope'!$AO$8:$AO$107,'Project Scope'!$AN$8:$AN$107,$I61,'Project Scope'!$C$8:$C$107,DG$7)+SUMIFS('Project Scope'!$AX$8:$AX$107,'Project Scope'!$AW$8:$AW$107,$I61,'Project Scope'!$C$8:$C$107,DG$7),0)","v":0},{"$f":"IF(BI61=\"yes\",SUMIFS('Project Scope'!$AO$8:$AO$107,'Project Scope'!$AN$8:$AN$107,$I61,'Project Scope'!$C$8:$C$107,DH$7)+SUMIFS('Project Scope'!$AX$8:$AX$107,'Project Scope'!$AW$8:$AW$107,$I61,'Project Scope'!$C$8:$C$107,DH$7),0)","v":0},{"$f":"IF(BJ61=\"yes\",SUMIFS('Project Scope'!$AO$8:$AO$107,'Project Scope'!$AN$8:$AN$107,$I61,'Project Scope'!$C$8:$C$107,DI$7)+SUMIFS('Project Scope'!$AX$8:$AX$107,'Project Scope'!$AW$8:$AW$107,$I61,'Project Scope'!$C$8:$C$107,DI$7),0)","v":0},{"$f":"IF(BK61=\"yes\",SUMIFS('Project Scope'!$AO$8:$AO$107,'Project Scope'!$AN$8:$AN$107,$I61,'Project Scope'!$C$8:$C$107,DJ$7)+SUMIFS('Project Scope'!$AX$8:$AX$107,'Project Scope'!$AW$8:$AW$107,$I61,'Project Scope'!$C$8:$C$107,DJ$7),0)","v":0},{"$f":"IF(BL61=\"yes\",SUMIFS('Project Scope'!$AO$8:$AO$107,'Project Scope'!$AN$8:$AN$107,$I61,'Project Scope'!$C$8:$C$107,DK$7)+SUMIFS('Project Scope'!$AX$8:$AX$107,'Project Scope'!$AW$8:$AW$107,$I61,'Project Scope'!$C$8:$C$107,DK$7),0)","v":0},null,"","","","","","","","","","","","","","","","","","","","","","","","","","","","","","","","","","","","","","","","","","","","","","","","","","",null,""]
[null,null,null,null,null,null,null,null,null,null,null,{"$f":"IF($C62=\"additional labor hours\",$K62*'Project Information'!$D$12,$K62*$J62)*IF($F62=\"Per Measure\",SUM($BN62:$DK62),1)","v":0},{"$f":"IF($C62=\"\",0,IF(VLOOKUP($C62,'Other Data'!$B$146:$C$156,2,FALSE)=\"M\",$L62,0))","v":0},0,null,null,null,null,null,null,null,null,null,null,null,null,null,null,null,null,null,null,null,null,null,null,null,null,null,null,null,null,null,null,null,null,null,null,null,null,null,null,null,null,null,null,null,null,null,null,null,null,null,null,null,{"$f":"IF(O62=\"yes\",SUMIFS('Project Scope'!$AO$8:$AO$107,'Project Scope'!$AN$8:$AN$107,$I62,'Project Scope'!$C$8:$C$107,BN$7)+SUMIFS('Project Scope'!$AX$8:$AX$107,'Project Scope'!$AW$8:$AW$107,$I62,'Project Scope'!$C$8:$C$107,BN$7),0)","v":0},{"$f":"IF(P62=\"yes\",SUMIFS('Project Scope'!$AO$8:$AO$107,'Project Scope'!$AN$8:$AN$107,$I62,'Project Scope'!$C$8:$C$107,BO$7)+SUMIFS('Project Scope'!$AX$8:$AX$107,'Project Scope'!$AW$8:$AW$107,$I62,'Project Scope'!$C$8:$C$107,BO$7),0)","v":0},{"$f":"IF(Q62=\"yes\",SUMIFS('Project Scope'!$AO$8:$AO$107,'Project Scope'!$AN$8:$AN$107,$I62,'Project Scope'!$C$8:$C$107,BP$7)+SUMIFS('Project Scope'!$AX$8:$AX$107,'Project Scope'!$AW$8:$AW$107,$I62,'Project Scope'!$C$8:$C$107,BP$7),0)","v":0},{"$f":"IF(R62=\"yes\",SUMIFS('Project Scope'!$AO$8:$AO$107,'Project Scope'!$AN$8:$AN$107,$I62,'Project Scope'!$C$8:$C$107,BQ$7)+SUMIFS('Project Scope'!$AX$8:$AX$107,'Project Scope'!$AW$8:$AW$107,$I62,'Project Scope'!$C$8:$C$107,BQ$7),0)","v":0},{"$f":"IF(S62=\"yes\",SUMIFS('Project Scope'!$AO$8:$AO$107,'Project Scope'!$AN$8:$AN$107,$I62,'Project Scope'!$C$8:$C$107,BR$7)+SUMIFS('Project Scope'!$AX$8:$AX$107,'Project Scope'!$AW$8:$AW$107,$I62,'Project Scope'!$C$8:$C$107,BR$7),0)","v":0},{"$f":"IF(T62=\"yes\",SUMIFS('Project Scope'!$AO$8:$AO$107,'Project Scope'!$AN$8:$AN$107,$I62,'Project Scope'!$C$8:$C$107,BS$7)+SUMIFS('Project Scope'!$AX$8:$AX$107,'Project Scope'!$AW$8:$AW$107,$I62,'Project Scope'!$C$8:$C$107,BS$7),0)","v":0},{"$f":"IF(U62=\"yes\",SUMIFS('Project Scope'!$AO$8:$AO$107,'Project Scope'!$AN$8:$AN$107,$I62,'Project Scope'!$C$8:$C$107,BT$7)+SUMIFS('Project Scope'!$AX$8:$AX$107,'Project Scope'!$AW$8:$AW$107,$I62,'Project Scope'!$C$8:$C$107,BT$7),0)","v":0},{"$f":"IF(V62=\"yes\",SUMIFS('Project Scope'!$AO$8:$AO$107,'Project Scope'!$AN$8:$AN$107,$I62,'Project Scope'!$C$8:$C$107,BU$7)+SUMIFS('Project Scope'!$AX$8:$AX$107,'Project Scope'!$AW$8:$AW$107,$I62,'Project Scope'!$C$8:$C$107,BU$7),0)","v":0},{"$f":"IF(W62=\"yes\",SUMIFS('Project Scope'!$AO$8:$AO$107,'Project Scope'!$AN$8:$AN$107,$I62,'Project Scope'!$C$8:$C$107,BV$7)+SUMIFS('Project Scope'!$AX$8:$AX$107,'Project Scope'!$AW$8:$AW$107,$I62,'Project Scope'!$C$8:$C$107,BV$7),0)","v":0},{"$f":"IF(X62=\"yes\",SUMIFS('Project Scope'!$AO$8:$AO$107,'Project Scope'!$AN$8:$AN$107,$I62,'Project Scope'!$C$8:$C$107,BW$7)+SUMIFS('Project Scope'!$AX$8:$AX$107,'Project Scope'!$AW$8:$AW$107,$I62,'Project Scope'!$C$8:$C$107,BW$7),0)","v":0},{"$f":"IF(Y62=\"yes\",SUMIFS('Project Scope'!$AO$8:$AO$107,'Project Scope'!$AN$8:$AN$107,$I62,'Project Scope'!$C$8:$C$107,BX$7)+SUMIFS('Project Scope'!$AX$8:$AX$107,'Project Scope'!$AW$8:$AW$107,$I62,'Project Scope'!$C$8:$C$107,BX$7),0)","v":0},{"$f":"IF(Z62=\"yes\",SUMIFS('Project Scope'!$AO$8:$AO$107,'Project Scope'!$AN$8:$AN$107,$I62,'Project Scope'!$C$8:$C$107,BY$7)+SUMIFS('Project Scope'!$AX$8:$AX$107,'Project Scope'!$AW$8:$AW$107,$I62,'Project Scope'!$C$8:$C$107,BY$7),0)","v":0},{"$f":"IF(AA62=\"yes\",SUMIFS('Project Scope'!$AO$8:$AO$107,'Project Scope'!$AN$8:$AN$107,$I62,'Project Scope'!$C$8:$C$107,BZ$7)+SUMIFS('Project Scope'!$AX$8:$AX$107,'Project Scope'!$AW$8:$AW$107,$I62,'Project Scope'!$C$8:$C$107,BZ$7),0)","v":0},{"$f":"IF(AB62=\"yes\",SUMIFS('Project Scope'!$AO$8:$AO$107,'Project Scope'!$AN$8:$AN$107,$I62,'Project Scope'!$C$8:$C$107,CA$7)+SUMIFS('Project Scope'!$AX$8:$AX$107,'Project Scope'!$AW$8:$AW$107,$I62,'Project Scope'!$C$8:$C$107,CA$7),0)","v":0},{"$f":"IF(AC62=\"yes\",SUMIFS('Project Scope'!$AO$8:$AO$107,'Project Scope'!$AN$8:$AN$107,$I62,'Project Scope'!$C$8:$C$107,CB$7)+SUMIFS('Project Scope'!$AX$8:$AX$107,'Project Scope'!$AW$8:$AW$107,$I62,'Project Scope'!$C$8:$C$107,CB$7),0)","v":0},{"$f":"IF(AD62=\"yes\",SUMIFS('Project Scope'!$AO$8:$AO$107,'Project Scope'!$AN$8:$AN$107,$I62,'Project Scope'!$C$8:$C$107,CC$7)+SUMIFS('Project Scope'!$AX$8:$AX$107,'Project Scope'!$AW$8:$AW$107,$I62,'Project Scope'!$C$8:$C$107,CC$7),0)","v":0},{"$f":"IF(AE62=\"yes\",SUMIFS('Project Scope'!$AO$8:$AO$107,'Project Scope'!$AN$8:$AN$107,$I62,'Project Scope'!$C$8:$C$107,CD$7)+SUMIFS('Project Scope'!$AX$8:$AX$107,'Project Scope'!$AW$8:$AW$107,$I62,'Project Scope'!$C$8:$C$107,CD$7),0)","v":0},{"$f":"IF(AF62=\"yes\",SUMIFS('Project Scope'!$AO$8:$AO$107,'Project Scope'!$AN$8:$AN$107,$I62,'Project Scope'!$C$8:$C$107,CE$7)+SUMIFS('Project Scope'!$AX$8:$AX$107,'Project Scope'!$AW$8:$AW$107,$I62,'Project Scope'!$C$8:$C$107,CE$7),0)","v":0},{"$f":"IF(AG62=\"yes\",SUMIFS('Project Scope'!$AO$8:$AO$107,'Project Scope'!$AN$8:$AN$107,$I62,'Project Scope'!$C$8:$C$107,CF$7)+SUMIFS('Project Scope'!$AX$8:$AX$107,'Project Scope'!$AW$8:$AW$107,$I62,'Project Scope'!$C$8:$C$107,CF$7),0)","v":0},{"$f":"IF(AH62=\"yes\",SUMIFS('Project Scope'!$AO$8:$AO$107,'Project Scope'!$AN$8:$AN$107,$I62,'Project Scope'!$C$8:$C$107,CG$7)+SUMIFS('Project Scope'!$AX$8:$AX$107,'Project Scope'!$AW$8:$AW$107,$I62,'Project Scope'!$C$8:$C$107,CG$7),0)","v":0},{"$f":"IF(AI62=\"yes\",SUMIFS('Project Scope'!$AO$8:$AO$107,'Project Scope'!$AN$8:$AN$107,$I62,'Project Scope'!$C$8:$C$107,CH$7)+SUMIFS('Project Scope'!$AX$8:$AX$107,'Project Scope'!$AW$8:$AW$107,$I62,'Project Scope'!$C$8:$C$107,CH$7),0)","v":0},{"$f":"IF(AJ62=\"yes\",SUMIFS('Project Scope'!$AO$8:$AO$107,'Project Scope'!$AN$8:$AN$107,$I62,'Project Scope'!$C$8:$C$107,CI$7)+SUMIFS('Project Scope'!$AX$8:$AX$107,'Project Scope'!$AW$8:$AW$107,$I62,'Project Scope'!$C$8:$C$107,CI$7),0)","v":0},{"$f":"IF(AK62=\"yes\",SUMIFS('Project Scope'!$AO$8:$AO$107,'Project Scope'!$AN$8:$AN$107,$I62,'Project Scope'!$C$8:$C$107,CJ$7)+SUMIFS('Project Scope'!$AX$8:$AX$107,'Project Scope'!$AW$8:$AW$107,$I62,'Project Scope'!$C$8:$C$107,CJ$7),0)","v":0},{"$f":"IF(AL62=\"yes\",SUMIFS('Project Scope'!$AO$8:$AO$107,'Project Scope'!$AN$8:$AN$107,$I62,'Project Scope'!$C$8:$C$107,CK$7)+SUMIFS('Project Scope'!$AX$8:$AX$107,'Project Scope'!$AW$8:$AW$107,$I62,'Project Scope'!$C$8:$C$107,CK$7),0)","v":0},{"$f":"IF(AM62=\"yes\",SUMIFS('Project Scope'!$AO$8:$AO$107,'Project Scope'!$AN$8:$AN$107,$I62,'Project Scope'!$C$8:$C$107,CL$7)+SUMIFS('Project Scope'!$AX$8:$AX$107,'Project Scope'!$AW$8:$AW$107,$I62,'Project Scope'!$C$8:$C$107,CL$7),0)","v":0},{"$f":"IF(AN62=\"yes\",SUMIFS('Project Scope'!$AO$8:$AO$107,'Project Scope'!$AN$8:$AN$107,$I62,'Project Scope'!$C$8:$C$107,CM$7)+SUMIFS('Project Scope'!$AX$8:$AX$107,'Project Scope'!$AW$8:$AW$107,$I62,'Project Scope'!$C$8:$C$107,CM$7),0)","v":0},{"$f":"IF(AO62=\"yes\",SUMIFS('Project Scope'!$AO$8:$AO$107,'Project Scope'!$AN$8:$AN$107,$I62,'Project Scope'!$C$8:$C$107,CN$7)+SUMIFS('Project Scope'!$AX$8:$AX$107,'Project Scope'!$AW$8:$AW$107,$I62,'Project Scope'!$C$8:$C$107,CN$7),0)","v":0},{"$f":"IF(AP62=\"yes\",SUMIFS('Project Scope'!$AO$8:$AO$107,'Project Scope'!$AN$8:$AN$107,$I62,'Project Scope'!$C$8:$C$107,CO$7)+SUMIFS('Project Scope'!$AX$8:$AX$107,'Project Scope'!$AW$8:$AW$107,$I62,'Project Scope'!$C$8:$C$107,CO$7),0)","v":0},{"$f":"IF(AQ62=\"yes\",SUMIFS('Project Scope'!$AO$8:$AO$107,'Project Scope'!$AN$8:$AN$107,$I62,'Project Scope'!$C$8:$C$107,CP$7)+SUMIFS('Project Scope'!$AX$8:$AX$107,'Project Scope'!$AW$8:$AW$107,$I62,'Project Scope'!$C$8:$C$107,CP$7),0)","v":0},{"$f":"IF(AR62=\"yes\",SUMIFS('Project Scope'!$AO$8:$AO$107,'Project Scope'!$AN$8:$AN$107,$I62,'Project Scope'!$C$8:$C$107,CQ$7)+SUMIFS('Project Scope'!$AX$8:$AX$107,'Project Scope'!$AW$8:$AW$107,$I62,'Project Scope'!$C$8:$C$107,CQ$7),0)","v":0},{"$f":"IF(AS62=\"yes\",SUMIFS('Project Scope'!$AO$8:$AO$107,'Project Scope'!$AN$8:$AN$107,$I62,'Project Scope'!$C$8:$C$107,CR$7)+SUMIFS('Project Scope'!$AX$8:$AX$107,'Project Scope'!$AW$8:$AW$107,$I62,'Project Scope'!$C$8:$C$107,CR$7),0)","v":0},{"$f":"IF(AT62=\"yes\",SUMIFS('Project Scope'!$AO$8:$AO$107,'Project Scope'!$AN$8:$AN$107,$I62,'Project Scope'!$C$8:$C$107,CS$7)+SUMIFS('Project Scope'!$AX$8:$AX$107,'Project Scope'!$AW$8:$AW$107,$I62,'Project Scope'!$C$8:$C$107,CS$7),0)","v":0},{"$f":"IF(AU62=\"yes\",SUMIFS('Project Scope'!$AO$8:$AO$107,'Project Scope'!$AN$8:$AN$107,$I62,'Project Scope'!$C$8:$C$107,CT$7)+SUMIFS('Project Scope'!$AX$8:$AX$107,'Project Scope'!$AW$8:$AW$107,$I62,'Project Scope'!$C$8:$C$107,CT$7),0)","v":0},{"$f":"IF(AV62=\"yes\",SUMIFS('Project Scope'!$AO$8:$AO$107,'Project Scope'!$AN$8:$AN$107,$I62,'Project Scope'!$C$8:$C$107,CU$7)+SUMIFS('Project Scope'!$AX$8:$AX$107,'Project Scope'!$AW$8:$AW$107,$I62,'Project Scope'!$C$8:$C$107,CU$7),0)","v":0},{"$f":"IF(AW62=\"yes\",SUMIFS('Project Scope'!$AO$8:$AO$107,'Project Scope'!$AN$8:$AN$107,$I62,'Project Scope'!$C$8:$C$107,CV$7)+SUMIFS('Project Scope'!$AX$8:$AX$107,'Project Scope'!$AW$8:$AW$107,$I62,'Project Scope'!$C$8:$C$107,CV$7),0)","v":0},{"$f":"IF(AX62=\"yes\",SUMIFS('Project Scope'!$AO$8:$AO$107,'Project Scope'!$AN$8:$AN$107,$I62,'Project Scope'!$C$8:$C$107,CW$7)+SUMIFS('Project Scope'!$AX$8:$AX$107,'Project Scope'!$AW$8:$AW$107,$I62,'Project Scope'!$C$8:$C$107,CW$7),0)","v":0},{"$f":"IF(AY62=\"yes\",SUMIFS('Project Scope'!$AO$8:$AO$107,'Project Scope'!$AN$8:$AN$107,$I62,'Project Scope'!$C$8:$C$107,CX$7)+SUMIFS('Project Scope'!$AX$8:$AX$107,'Project Scope'!$AW$8:$AW$107,$I62,'Project Scope'!$C$8:$C$107,CX$7),0)","v":0},{"$f":"IF(AZ62=\"yes\",SUMIFS('Project Scope'!$AO$8:$AO$107,'Project Scope'!$AN$8:$AN$107,$I62,'Project Scope'!$C$8:$C$107,CY$7)+SUMIFS('Project Scope'!$AX$8:$AX$107,'Project Scope'!$AW$8:$AW$107,$I62,'Project Scope'!$C$8:$C$107,CY$7),0)","v":0},{"$f":"IF(BA62=\"yes\",SUMIFS('Project Scope'!$AO$8:$AO$107,'Project Scope'!$AN$8:$AN$107,$I62,'Project Scope'!$C$8:$C$107,CZ$7)+SUMIFS('Project Scope'!$AX$8:$AX$107,'Project Scope'!$AW$8:$AW$107,$I62,'Project Scope'!$C$8:$C$107,CZ$7),0)","v":0},{"$f":"IF(BB62=\"yes\",SUMIFS('Project Scope'!$AO$8:$AO$107,'Project Scope'!$AN$8:$AN$107,$I62,'Project Scope'!$C$8:$C$107,DA$7)+SUMIFS('Project Scope'!$AX$8:$AX$107,'Project Scope'!$AW$8:$AW$107,$I62,'Project Scope'!$C$8:$C$107,DA$7),0)","v":0},{"$f":"IF(BC62=\"yes\",SUMIFS('Project Scope'!$AO$8:$AO$107,'Project Scope'!$AN$8:$AN$107,$I62,'Project Scope'!$C$8:$C$107,DB$7)+SUMIFS('Project Scope'!$AX$8:$AX$107,'Project Scope'!$AW$8:$AW$107,$I62,'Project Scope'!$C$8:$C$107,DB$7),0)","v":0},{"$f":"IF(BD62=\"yes\",SUMIFS('Project Scope'!$AO$8:$AO$107,'Project Scope'!$AN$8:$AN$107,$I62,'Project Scope'!$C$8:$C$107,DC$7)+SUMIFS('Project Scope'!$AX$8:$AX$107,'Project Scope'!$AW$8:$AW$107,$I62,'Project Scope'!$C$8:$C$107,DC$7),0)","v":0},{"$f":"IF(BE62=\"yes\",SUMIFS('Project Scope'!$AO$8:$AO$107,'Project Scope'!$AN$8:$AN$107,$I62,'Project Scope'!$C$8:$C$107,DD$7)+SUMIFS('Project Scope'!$AX$8:$AX$107,'Project Scope'!$AW$8:$AW$107,$I62,'Project Scope'!$C$8:$C$107,DD$7),0)","v":0},{"$f":"IF(BF62=\"yes\",SUMIFS('Project Scope'!$AO$8:$AO$107,'Project Scope'!$AN$8:$AN$107,$I62,'Project Scope'!$C$8:$C$107,DE$7)+SUMIFS('Project Scope'!$AX$8:$AX$107,'Project Scope'!$AW$8:$AW$107,$I62,'Project Scope'!$C$8:$C$107,DE$7),0)","v":0},{"$f":"IF(BG62=\"yes\",SUMIFS('Project Scope'!$AO$8:$AO$107,'Project Scope'!$AN$8:$AN$107,$I62,'Project Scope'!$C$8:$C$107,DF$7)+SUMIFS('Project Scope'!$AX$8:$AX$107,'Project Scope'!$AW$8:$AW$107,$I62,'Project Scope'!$C$8:$C$107,DF$7),0)","v":0},{"$f":"IF(BH62=\"yes\",SUMIFS('Project Scope'!$AO$8:$AO$107,'Project Scope'!$AN$8:$AN$107,$I62,'Project Scope'!$C$8:$C$107,DG$7)+SUMIFS('Project Scope'!$AX$8:$AX$107,'Project Scope'!$AW$8:$AW$107,$I62,'Project Scope'!$C$8:$C$107,DG$7),0)","v":0},{"$f":"IF(BI62=\"yes\",SUMIFS('Project Scope'!$AO$8:$AO$107,'Project Scope'!$AN$8:$AN$107,$I62,'Project Scope'!$C$8:$C$107,DH$7)+SUMIFS('Project Scope'!$AX$8:$AX$107,'Project Scope'!$AW$8:$AW$107,$I62,'Project Scope'!$C$8:$C$107,DH$7),0)","v":0},{"$f":"IF(BJ62=\"yes\",SUMIFS('Project Scope'!$AO$8:$AO$107,'Project Scope'!$AN$8:$AN$107,$I62,'Project Scope'!$C$8:$C$107,DI$7)+SUMIFS('Project Scope'!$AX$8:$AX$107,'Project Scope'!$AW$8:$AW$107,$I62,'Project Scope'!$C$8:$C$107,DI$7),0)","v":0},{"$f":"IF(BK62=\"yes\",SUMIFS('Project Scope'!$AO$8:$AO$107,'Project Scope'!$AN$8:$AN$107,$I62,'Project Scope'!$C$8:$C$107,DJ$7)+SUMIFS('Project Scope'!$AX$8:$AX$107,'Project Scope'!$AW$8:$AW$107,$I62,'Project Scope'!$C$8:$C$107,DJ$7),0)","v":0},{"$f":"IF(BL62=\"yes\",SUMIFS('Project Scope'!$AO$8:$AO$107,'Project Scope'!$AN$8:$AN$107,$I62,'Project Scope'!$C$8:$C$107,DK$7)+SUMIFS('Project Scope'!$AX$8:$AX$107,'Project Scope'!$AW$8:$AW$107,$I62,'Project Scope'!$C$8:$C$107,DK$7),0)","v":0},null,"","","","","","","","","","","","","","","","","","","","","","","","","","","","","","","","","","","","","","","","","","","","","","","","","","",null,""]
[null,null,null,null,null,null,null,null,null,null,null,{"$f":"IF($C63=\"additional labor hours\",$K63*'Project Information'!$D$12,$K63*$J63)*IF($F63=\"Per Measure\",SUM($BN63:$DK63),1)","v":0},{"$f":"IF($C63=\"\",0,IF(VLOOKUP($C63,'Other Data'!$B$146:$C$156,2,FALSE)=\"M\",$L63,0))","v":0},0,null,null,null,null,null,null,null,null,null,null,null,null,null,null,null,null,null,null,null,null,null,null,null,null,null,null,null,null,null,null,null,null,null,null,null,null,null,null,null,null,null,null,null,null,null,null,null,null,null,null,null,{"$f":"IF(O63=\"yes\",SUMIFS('Project Scope'!$AO$8:$AO$107,'Project Scope'!$AN$8:$AN$107,$I63,'Project Scope'!$C$8:$C$107,BN$7)+SUMIFS('Project Scope'!$AX$8:$AX$107,'Project Scope'!$AW$8:$AW$107,$I63,'Project Scope'!$C$8:$C$107,BN$7),0)","v":0},{"$f":"IF(P63=\"yes\",SUMIFS('Project Scope'!$AO$8:$AO$107,'Project Scope'!$AN$8:$AN$107,$I63,'Project Scope'!$C$8:$C$107,BO$7)+SUMIFS('Project Scope'!$AX$8:$AX$107,'Project Scope'!$AW$8:$AW$107,$I63,'Project Scope'!$C$8:$C$107,BO$7),0)","v":0},{"$f":"IF(Q63=\"yes\",SUMIFS('Project Scope'!$AO$8:$AO$107,'Project Scope'!$AN$8:$AN$107,$I63,'Project Scope'!$C$8:$C$107,BP$7)+SUMIFS('Project Scope'!$AX$8:$AX$107,'Project Scope'!$AW$8:$AW$107,$I63,'Project Scope'!$C$8:$C$107,BP$7),0)","v":0},{"$f":"IF(R63=\"yes\",SUMIFS('Project Scope'!$AO$8:$AO$107,'Project Scope'!$AN$8:$AN$107,$I63,'Project Scope'!$C$8:$C$107,BQ$7)+SUMIFS('Project Scope'!$AX$8:$AX$107,'Project Scope'!$AW$8:$AW$107,$I63,'Project Scope'!$C$8:$C$107,BQ$7),0)","v":0},{"$f":"IF(S63=\"yes\",SUMIFS('Project Scope'!$AO$8:$AO$107,'Project Scope'!$AN$8:$AN$107,$I63,'Project Scope'!$C$8:$C$107,BR$7)+SUMIFS('Project Scope'!$AX$8:$AX$107,'Project Scope'!$AW$8:$AW$107,$I63,'Project Scope'!$C$8:$C$107,BR$7),0)","v":0},{"$f":"IF(T63=\"yes\",SUMIFS('Project Scope'!$AO$8:$AO$107,'Project Scope'!$AN$8:$AN$107,$I63,'Project Scope'!$C$8:$C$107,BS$7)+SUMIFS('Project Scope'!$AX$8:$AX$107,'Project Scope'!$AW$8:$AW$107,$I63,'Project Scope'!$C$8:$C$107,BS$7),0)","v":0},{"$f":"IF(U63=\"yes\",SUMIFS('Project Scope'!$AO$8:$AO$107,'Project Scope'!$AN$8:$AN$107,$I63,'Project Scope'!$C$8:$C$107,BT$7)+SUMIFS('Project Scope'!$AX$8:$AX$107,'Project Scope'!$AW$8:$AW$107,$I63,'Project Scope'!$C$8:$C$107,BT$7),0)","v":0},{"$f":"IF(V63=\"yes\",SUMIFS('Project Scope'!$AO$8:$AO$107,'Project Scope'!$AN$8:$AN$107,$I63,'Project Scope'!$C$8:$C$107,BU$7)+SUMIFS('Project Scope'!$AX$8:$AX$107,'Project Scope'!$AW$8:$AW$107,$I63,'Project Scope'!$C$8:$C$107,BU$7),0)","v":0},{"$f":"IF(W63=\"yes\",SUMIFS('Project Scope'!$AO$8:$AO$107,'Project Scope'!$AN$8:$AN$107,$I63,'Project Scope'!$C$8:$C$107,BV$7)+SUMIFS('Project Scope'!$AX$8:$AX$107,'Project Scope'!$AW$8:$AW$107,$I63,'Project Scope'!$C$8:$C$107,BV$7),0)","v":0},{"$f":"IF(X63=\"yes\",SUMIFS('Project Scope'!$AO$8:$AO$107,'Project Scope'!$AN$8:$AN$107,$I63,'Project Scope'!$C$8:$C$107,BW$7)+SUMIFS('Project Scope'!$AX$8:$AX$107,'Project Scope'!$AW$8:$AW$107,$I63,'Project Scope'!$C$8:$C$107,BW$7),0)","v":0},{"$f":"IF(Y63=\"yes\",SUMIFS('Project Scope'!$AO$8:$AO$107,'Project Scope'!$AN$8:$AN$107,$I63,'Project Scope'!$C$8:$C$107,BX$7)+SUMIFS('Project Scope'!$AX$8:$AX$107,'Project Scope'!$AW$8:$AW$107,$I63,'Project Scope'!$C$8:$C$107,BX$7),0)","v":0},{"$f":"IF(Z63=\"yes\",SUMIFS('Project Scope'!$AO$8:$AO$107,'Project Scope'!$AN$8:$AN$107,$I63,'Project Scope'!$C$8:$C$107,BY$7)+SUMIFS('Project Scope'!$AX$8:$AX$107,'Project Scope'!$AW$8:$AW$107,$I63,'Project Scope'!$C$8:$C$107,BY$7),0)","v":0},{"$f":"IF(AA63=\"yes\",SUMIFS('Project Scope'!$AO$8:$AO$107,'Project Scope'!$AN$8:$AN$107,$I63,'Project Scope'!$C$8:$C$107,BZ$7)+SUMIFS('Project Scope'!$AX$8:$AX$107,'Project Scope'!$AW$8:$AW$107,$I63,'Project Scope'!$C$8:$C$107,BZ$7),0)","v":0},{"$f":"IF(AB63=\"yes\",SUMIFS('Project Scope'!$AO$8:$AO$107,'Project Scope'!$AN$8:$AN$107,$I63,'Project Scope'!$C$8:$C$107,CA$7)+SUMIFS('Project Scope'!$AX$8:$AX$107,'Project Scope'!$AW$8:$AW$107,$I63,'Project Scope'!$C$8:$C$107,CA$7),0)","v":0},{"$f":"IF(AC63=\"yes\",SUMIFS('Project Scope'!$AO$8:$AO$107,'Project Scope'!$AN$8:$AN$107,$I63,'Project Scope'!$C$8:$C$107,CB$7)+SUMIFS('Project Scope'!$AX$8:$AX$107,'Project Scope'!$AW$8:$AW$107,$I63,'Project Scope'!$C$8:$C$107,CB$7),0)","v":0},{"$f":"IF(AD63=\"yes\",SUMIFS('Project Scope'!$AO$8:$AO$107,'Project Scope'!$AN$8:$AN$107,$I63,'Project Scope'!$C$8:$C$107,CC$7)+SUMIFS('Project Scope'!$AX$8:$AX$107,'Project Scope'!$AW$8:$AW$107,$I63,'Project Scope'!$C$8:$C$107,CC$7),0)","v":0},{"$f":"IF(AE63=\"yes\",SUMIFS('Project Scope'!$AO$8:$AO$107,'Project Scope'!$AN$8:$AN$107,$I63,'Project Scope'!$C$8:$C$107,CD$7)+SUMIFS('Project Scope'!$AX$8:$AX$107,'Project Scope'!$AW$8:$AW$107,$I63,'Project Scope'!$C$8:$C$107,CD$7),0)","v":0},{"$f":"IF(AF63=\"yes\",SUMIFS('Project Scope'!$AO$8:$AO$107,'Project Scope'!$AN$8:$AN$107,$I63,'Project Scope'!$C$8:$C$107,CE$7)+SUMIFS('Project Scope'!$AX$8:$AX$107,'Project Scope'!$AW$8:$AW$107,$I63,'Project Scope'!$C$8:$C$107,CE$7),0)","v":0},{"$f":"IF(AG63=\"yes\",SUMIFS('Project Scope'!$AO$8:$AO$107,'Project Scope'!$AN$8:$AN$107,$I63,'Project Scope'!$C$8:$C$107,CF$7)+SUMIFS('Project Scope'!$AX$8:$AX$107,'Project Scope'!$AW$8:$AW$107,$I63,'Project Scope'!$C$8:$C$107,CF$7),0)","v":0},{"$f":"IF(AH63=\"yes\",SUMIFS('Project Scope'!$AO$8:$AO$107,'Project Scope'!$AN$8:$AN$107,$I63,'Project Scope'!$C$8:$C$107,CG$7)+SUMIFS('Project Scope'!$AX$8:$AX$107,'Project Scope'!$AW$8:$AW$107,$I63,'Project Scope'!$C$8:$C$107,CG$7),0)","v":0},{"$f":"IF(AI63=\"yes\",SUMIFS('Project Scope'!$AO$8:$AO$107,'Project Scope'!$AN$8:$AN$107,$I63,'Project Scope'!$C$8:$C$107,CH$7)+SUMIFS('Project Scope'!$AX$8:$AX$107,'Project Scope'!$AW$8:$AW$107,$I63,'Project Scope'!$C$8:$C$107,CH$7),0)","v":0},{"$f":"IF(AJ63=\"yes\",SUMIFS('Project Scope'!$AO$8:$AO$107,'Project Scope'!$AN$8:$AN$107,$I63,'Project Scope'!$C$8:$C$107,CI$7)+SUMIFS('Project Scope'!$AX$8:$AX$107,'Project Scope'!$AW$8:$AW$107,$I63,'Project Scope'!$C$8:$C$107,CI$7),0)","v":0},{"$f":"IF(AK63=\"yes\",SUMIFS('Project Scope'!$AO$8:$AO$107,'Project Scope'!$AN$8:$AN$107,$I63,'Project Scope'!$C$8:$C$107,CJ$7)+SUMIFS('Project Scope'!$AX$8:$AX$107,'Project Scope'!$AW$8:$AW$107,$I63,'Project Scope'!$C$8:$C$107,CJ$7),0)","v":0},{"$f":"IF(AL63=\"yes\",SUMIFS('Project Scope'!$AO$8:$AO$107,'Project Scope'!$AN$8:$AN$107,$I63,'Project Scope'!$C$8:$C$107,CK$7)+SUMIFS('Project Scope'!$AX$8:$AX$107,'Project Scope'!$AW$8:$AW$107,$I63,'Project Scope'!$C$8:$C$107,CK$7),0)","v":0},{"$f":"IF(AM63=\"yes\",SUMIFS('Project Scope'!$AO$8:$AO$107,'Project Scope'!$AN$8:$AN$107,$I63,'Project Scope'!$C$8:$C$107,CL$7)+SUMIFS('Project Scope'!$AX$8:$AX$107,'Project Scope'!$AW$8:$AW$107,$I63,'Project Scope'!$C$8:$C$107,CL$7),0)","v":0},{"$f":"IF(AN63=\"yes\",SUMIFS('Project Scope'!$AO$8:$AO$107,'Project Scope'!$AN$8:$AN$107,$I63,'Project Scope'!$C$8:$C$107,CM$7)+SUMIFS('Project Scope'!$AX$8:$AX$107,'Project Scope'!$AW$8:$AW$107,$I63,'Project Scope'!$C$8:$C$107,CM$7),0)","v":0},{"$f":"IF(AO63=\"yes\",SUMIFS('Project Scope'!$AO$8:$AO$107,'Project Scope'!$AN$8:$AN$107,$I63,'Project Scope'!$C$8:$C$107,CN$7)+SUMIFS('Project Scope'!$AX$8:$AX$107,'Project Scope'!$AW$8:$AW$107,$I63,'Project Scope'!$C$8:$C$107,CN$7),0)","v":0},{"$f":"IF(AP63=\"yes\",SUMIFS('Project Scope'!$AO$8:$AO$107,'Project Scope'!$AN$8:$AN$107,$I63,'Project Scope'!$C$8:$C$107,CO$7)+SUMIFS('Project Scope'!$AX$8:$AX$107,'Project Scope'!$AW$8:$AW$107,$I63,'Project Scope'!$C$8:$C$107,CO$7),0)","v":0},{"$f":"IF(AQ63=\"yes\",SUMIFS('Project Scope'!$AO$8:$AO$107,'Project Scope'!$AN$8:$AN$107,$I63,'Project Scope'!$C$8:$C$107,CP$7)+SUMIFS('Project Scope'!$AX$8:$AX$107,'Project Scope'!$AW$8:$AW$107,$I63,'Project Scope'!$C$8:$C$107,CP$7),0)","v":0},{"$f":"IF(AR63=\"yes\",SUMIFS('Project Scope'!$AO$8:$AO$107,'Project Scope'!$AN$8:$AN$107,$I63,'Project Scope'!$C$8:$C$107,CQ$7)+SUMIFS('Project Scope'!$AX$8:$AX$107,'Project Scope'!$AW$8:$AW$107,$I63,'Project Scope'!$C$8:$C$107,CQ$7),0)","v":0},{"$f":"IF(AS63=\"yes\",SUMIFS('Project Scope'!$AO$8:$AO$107,'Project Scope'!$AN$8:$AN$107,$I63,'Project Scope'!$C$8:$C$107,CR$7)+SUMIFS('Project Scope'!$AX$8:$AX$107,'Project Scope'!$AW$8:$AW$107,$I63,'Project Scope'!$C$8:$C$107,CR$7),0)","v":0},{"$f":"IF(AT63=\"yes\",SUMIFS('Project Scope'!$AO$8:$AO$107,'Project Scope'!$AN$8:$AN$107,$I63,'Project Scope'!$C$8:$C$107,CS$7)+SUMIFS('Project Scope'!$AX$8:$AX$107,'Project Scope'!$AW$8:$AW$107,$I63,'Project Scope'!$C$8:$C$107,CS$7),0)","v":0},{"$f":"IF(AU63=\"yes\",SUMIFS('Project Scope'!$AO$8:$AO$107,'Project Scope'!$AN$8:$AN$107,$I63,'Project Scope'!$C$8:$C$107,CT$7)+SUMIFS('Project Scope'!$AX$8:$AX$107,'Project Scope'!$AW$8:$AW$107,$I63,'Project Scope'!$C$8:$C$107,CT$7),0)","v":0},{"$f":"IF(AV63=\"yes\",SUMIFS('Project Scope'!$AO$8:$AO$107,'Project Scope'!$AN$8:$AN$107,$I63,'Project Scope'!$C$8:$C$107,CU$7)+SUMIFS('Project Scope'!$AX$8:$AX$107,'Project Scope'!$AW$8:$AW$107,$I63,'Project Scope'!$C$8:$C$107,CU$7),0)","v":0},{"$f":"IF(AW63=\"yes\",SUMIFS('Project Scope'!$AO$8:$AO$107,'Project Scope'!$AN$8:$AN$107,$I63,'Project Scope'!$C$8:$C$107,CV$7)+SUMIFS('Project Scope'!$AX$8:$AX$107,'Project Scope'!$AW$8:$AW$107,$I63,'Project Scope'!$C$8:$C$107,CV$7),0)","v":0},{"$f":"IF(AX63=\"yes\",SUMIFS('Project Scope'!$AO$8:$AO$107,'Project Scope'!$AN$8:$AN$107,$I63,'Project Scope'!$C$8:$C$107,CW$7)+SUMIFS('Project Scope'!$AX$8:$AX$107,'Project Scope'!$AW$8:$AW$107,$I63,'Project Scope'!$C$8:$C$107,CW$7),0)","v":0},{"$f":"IF(AY63=\"yes\",SUMIFS('Project Scope'!$AO$8:$AO$107,'Project Scope'!$AN$8:$AN$107,$I63,'Project Scope'!$C$8:$C$107,CX$7)+SUMIFS('Project Scope'!$AX$8:$AX$107,'Project Scope'!$AW$8:$AW$107,$I63,'Project Scope'!$C$8:$C$107,CX$7),0)","v":0},{"$f":"IF(AZ63=\"yes\",SUMIFS('Project Scope'!$AO$8:$AO$107,'Project Scope'!$AN$8:$AN$107,$I63,'Project Scope'!$C$8:$C$107,CY$7)+SUMIFS('Project Scope'!$AX$8:$AX$107,'Project Scope'!$AW$8:$AW$107,$I63,'Project Scope'!$C$8:$C$107,CY$7),0)","v":0},{"$f":"IF(BA63=\"yes\",SUMIFS('Project Scope'!$AO$8:$AO$107,'Project Scope'!$AN$8:$AN$107,$I63,'Project Scope'!$C$8:$C$107,CZ$7)+SUMIFS('Project Scope'!$AX$8:$AX$107,'Project Scope'!$AW$8:$AW$107,$I63,'Project Scope'!$C$8:$C$107,CZ$7),0)","v":0},{"$f":"IF(BB63=\"yes\",SUMIFS('Project Scope'!$AO$8:$AO$107,'Project Scope'!$AN$8:$AN$107,$I63,'Project Scope'!$C$8:$C$107,DA$7)+SUMIFS('Project Scope'!$AX$8:$AX$107,'Project Scope'!$AW$8:$AW$107,$I63,'Project Scope'!$C$8:$C$107,DA$7),0)","v":0},{"$f":"IF(BC63=\"yes\",SUMIFS('Project Scope'!$AO$8:$AO$107,'Project Scope'!$AN$8:$AN$107,$I63,'Project Scope'!$C$8:$C$107,DB$7)+SUMIFS('Project Scope'!$AX$8:$AX$107,'Project Scope'!$AW$8:$AW$107,$I63,'Project Scope'!$C$8:$C$107,DB$7),0)","v":0},{"$f":"IF(BD63=\"yes\",SUMIFS('Project Scope'!$AO$8:$AO$107,'Project Scope'!$AN$8:$AN$107,$I63,'Project Scope'!$C$8:$C$107,DC$7)+SUMIFS('Project Scope'!$AX$8:$AX$107,'Project Scope'!$AW$8:$AW$107,$I63,'Project Scope'!$C$8:$C$107,DC$7),0)","v":0},{"$f":"IF(BE63=\"yes\",SUMIFS('Project Scope'!$AO$8:$AO$107,'Project Scope'!$AN$8:$AN$107,$I63,'Project Scope'!$C$8:$C$107,DD$7)+SUMIFS('Project Scope'!$AX$8:$AX$107,'Project Scope'!$AW$8:$AW$107,$I63,'Project Scope'!$C$8:$C$107,DD$7),0)","v":0},{"$f":"IF(BF63=\"yes\",SUMIFS('Project Scope'!$AO$8:$AO$107,'Project Scope'!$AN$8:$AN$107,$I63,'Project Scope'!$C$8:$C$107,DE$7)+SUMIFS('Project Scope'!$AX$8:$AX$107,'Project Scope'!$AW$8:$AW$107,$I63,'Project Scope'!$C$8:$C$107,DE$7),0)","v":0},{"$f":"IF(BG63=\"yes\",SUMIFS('Project Scope'!$AO$8:$AO$107,'Project Scope'!$AN$8:$AN$107,$I63,'Project Scope'!$C$8:$C$107,DF$7)+SUMIFS('Project Scope'!$AX$8:$AX$107,'Project Scope'!$AW$8:$AW$107,$I63,'Project Scope'!$C$8:$C$107,DF$7),0)","v":0},{"$f":"IF(BH63=\"yes\",SUMIFS('Project Scope'!$AO$8:$AO$107,'Project Scope'!$AN$8:$AN$107,$I63,'Project Scope'!$C$8:$C$107,DG$7)+SUMIFS('Project Scope'!$AX$8:$AX$107,'Project Scope'!$AW$8:$AW$107,$I63,'Project Scope'!$C$8:$C$107,DG$7),0)","v":0},{"$f":"IF(BI63=\"yes\",SUMIFS('Project Scope'!$AO$8:$AO$107,'Project Scope'!$AN$8:$AN$107,$I63,'Project Scope'!$C$8:$C$107,DH$7)+SUMIFS('Project Scope'!$AX$8:$AX$107,'Project Scope'!$AW$8:$AW$107,$I63,'Project Scope'!$C$8:$C$107,DH$7),0)","v":0},{"$f":"IF(BJ63=\"yes\",SUMIFS('Project Scope'!$AO$8:$AO$107,'Project Scope'!$AN$8:$AN$107,$I63,'Project Scope'!$C$8:$C$107,DI$7)+SUMIFS('Project Scope'!$AX$8:$AX$107,'Project Scope'!$AW$8:$AW$107,$I63,'Project Scope'!$C$8:$C$107,DI$7),0)","v":0},{"$f":"IF(BK63=\"yes\",SUMIFS('Project Scope'!$AO$8:$AO$107,'Project Scope'!$AN$8:$AN$107,$I63,'Project Scope'!$C$8:$C$107,DJ$7)+SUMIFS('Project Scope'!$AX$8:$AX$107,'Project Scope'!$AW$8:$AW$107,$I63,'Project Scope'!$C$8:$C$107,DJ$7),0)","v":0},{"$f":"IF(BL63=\"yes\",SUMIFS('Project Scope'!$AO$8:$AO$107,'Project Scope'!$AN$8:$AN$107,$I63,'Project Scope'!$C$8:$C$107,DK$7)+SUMIFS('Project Scope'!$AX$8:$AX$107,'Project Scope'!$AW$8:$AW$107,$I63,'Project Scope'!$C$8:$C$107,DK$7),0)","v":0},null,"","","","","","","","","","",{"$f":"IF($BN63>0,DW$7,\"\")","v":""},"","","","","","","","","","","","","","","","","","","","","","","","","","","","","","","","","","","","","","","",null,""]
[null,null,null,null,null,null,null,null,null,null,null,{"$f":"IF($C64=\"additional labor hours\",$K64*'Project Information'!$D$12,$K64*$J64)*IF($F64=\"Per Measure\",SUM($BN64:$DK64),1)","v":0},{"$f":"IF($C64=\"\",0,IF(VLOOKUP($C64,'Other Data'!$B$146:$C$156,2,FALSE)=\"M\",$L64,0))","v":0},0,null,null,null,null,null,null,null,null,null,null,null,null,null,null,null,null,null,null,null,null,null,null,null,null,null,null,null,null,null,null,null,null,null,null,null,null,null,null,null,null,null,null,null,null,null,null,null,null,null,null,null,{"$f":"IF(O64=\"yes\",SUMIFS('Project Scope'!$AO$8:$AO$107,'Project Scope'!$AN$8:$AN$107,$I64,'Project Scope'!$C$8:$C$107,BN$7)+SUMIFS('Project Scope'!$AX$8:$AX$107,'Project Scope'!$AW$8:$AW$107,$I64,'Project Scope'!$C$8:$C$107,BN$7),0)","v":0},{"$f":"IF(P64=\"yes\",SUMIFS('Project Scope'!$AO$8:$AO$107,'Project Scope'!$AN$8:$AN$107,$I64,'Project Scope'!$C$8:$C$107,BO$7)+SUMIFS('Project Scope'!$AX$8:$AX$107,'Project Scope'!$AW$8:$AW$107,$I64,'Project Scope'!$C$8:$C$107,BO$7),0)","v":0},{"$f":"IF(Q64=\"yes\",SUMIFS('Project Scope'!$AO$8:$AO$107,'Project Scope'!$AN$8:$AN$107,$I64,'Project Scope'!$C$8:$C$107,BP$7)+SUMIFS('Project Scope'!$AX$8:$AX$107,'Project Scope'!$AW$8:$AW$107,$I64,'Project Scope'!$C$8:$C$107,BP$7),0)","v":0},{"$f":"IF(R64=\"yes\",SUMIFS('Project Scope'!$AO$8:$AO$107,'Project Scope'!$AN$8:$AN$107,$I64,'Project Scope'!$C$8:$C$107,BQ$7)+SUMIFS('Project Scope'!$AX$8:$AX$107,'Project Scope'!$AW$8:$AW$107,$I64,'Project Scope'!$C$8:$C$107,BQ$7),0)","v":0},{"$f":"IF(S64=\"yes\",SUMIFS('Project Scope'!$AO$8:$AO$107,'Project Scope'!$AN$8:$AN$107,$I64,'Project Scope'!$C$8:$C$107,BR$7)+SUMIFS('Project Scope'!$AX$8:$AX$107,'Project Scope'!$AW$8:$AW$107,$I64,'Project Scope'!$C$8:$C$107,BR$7),0)","v":0},{"$f":"IF(T64=\"yes\",SUMIFS('Project Scope'!$AO$8:$AO$107,'Project Scope'!$AN$8:$AN$107,$I64,'Project Scope'!$C$8:$C$107,BS$7)+SUMIFS('Project Scope'!$AX$8:$AX$107,'Project Scope'!$AW$8:$AW$107,$I64,'Project Scope'!$C$8:$C$107,BS$7),0)","v":0},{"$f":"IF(U64=\"yes\",SUMIFS('Project Scope'!$AO$8:$AO$107,'Project Scope'!$AN$8:$AN$107,$I64,'Project Scope'!$C$8:$C$107,BT$7)+SUMIFS('Project Scope'!$AX$8:$AX$107,'Project Scope'!$AW$8:$AW$107,$I64,'Project Scope'!$C$8:$C$107,BT$7),0)","v":0},{"$f":"IF(V64=\"yes\",SUMIFS('Project Scope'!$AO$8:$AO$107,'Project Scope'!$AN$8:$AN$107,$I64,'Project Scope'!$C$8:$C$107,BU$7)+SUMIFS('Project Scope'!$AX$8:$AX$107,'Project Scope'!$AW$8:$AW$107,$I64,'Project Scope'!$C$8:$C$107,BU$7),0)","v":0},{"$f":"IF(W64=\"yes\",SUMIFS('Project Scope'!$AO$8:$AO$107,'Project Scope'!$AN$8:$AN$107,$I64,'Project Scope'!$C$8:$C$107,BV$7)+SUMIFS('Project Scope'!$AX$8:$AX$107,'Project Scope'!$AW$8:$AW$107,$I64,'Project Scope'!$C$8:$C$107,BV$7),0)","v":0},{"$f":"IF(X64=\"yes\",SUMIFS('Project Scope'!$AO$8:$AO$107,'Project Scope'!$AN$8:$AN$107,$I64,'Project Scope'!$C$8:$C$107,BW$7)+SUMIFS('Project Scope'!$AX$8:$AX$107,'Project Scope'!$AW$8:$AW$107,$I64,'Project Scope'!$C$8:$C$107,BW$7),0)","v":0},{"$f":"IF(Y64=\"yes\",SUMIFS('Project Scope'!$AO$8:$AO$107,'Project Scope'!$AN$8:$AN$107,$I64,'Project Scope'!$C$8:$C$107,BX$7)+SUMIFS('Project Scope'!$AX$8:$AX$107,'Project Scope'!$AW$8:$AW$107,$I64,'Project Scope'!$C$8:$C$107,BX$7),0)","v":0},{"$f":"IF(Z64=\"yes\",SUMIFS('Project Scope'!$AO$8:$AO$107,'Project Scope'!$AN$8:$AN$107,$I64,'Project Scope'!$C$8:$C$107,BY$7)+SUMIFS('Project Scope'!$AX$8:$AX$107,'Project Scope'!$AW$8:$AW$107,$I64,'Project Scope'!$C$8:$C$107,BY$7),0)","v":0},{"$f":"IF(AA64=\"yes\",SUMIFS('Project Scope'!$AO$8:$AO$107,'Project Scope'!$AN$8:$AN$107,$I64,'Project Scope'!$C$8:$C$107,BZ$7)+SUMIFS('Project Scope'!$AX$8:$AX$107,'Project Scope'!$AW$8:$AW$107,$I64,'Project Scope'!$C$8:$C$107,BZ$7),0)","v":0},{"$f":"IF(AB64=\"yes\",SUMIFS('Project Scope'!$AO$8:$AO$107,'Project Scope'!$AN$8:$AN$107,$I64,'Project Scope'!$C$8:$C$107,CA$7)+SUMIFS('Project Scope'!$AX$8:$AX$107,'Project Scope'!$AW$8:$AW$107,$I64,'Project Scope'!$C$8:$C$107,CA$7),0)","v":0},{"$f":"IF(AC64=\"yes\",SUMIFS('Project Scope'!$AO$8:$AO$107,'Project Scope'!$AN$8:$AN$107,$I64,'Project Scope'!$C$8:$C$107,CB$7)+SUMIFS('Project Scope'!$AX$8:$AX$107,'Project Scope'!$AW$8:$AW$107,$I64,'Project Scope'!$C$8:$C$107,CB$7),0)","v":0},{"$f":"IF(AD64=\"yes\",SUMIFS('Project Scope'!$AO$8:$AO$107,'Project Scope'!$AN$8:$AN$107,$I64,'Project Scope'!$C$8:$C$107,CC$7)+SUMIFS('Project Scope'!$AX$8:$AX$107,'Project Scope'!$AW$8:$AW$107,$I64,'Project Scope'!$C$8:$C$107,CC$7),0)","v":0},{"$f":"IF(AE64=\"yes\",SUMIFS('Project Scope'!$AO$8:$AO$107,'Project Scope'!$AN$8:$AN$107,$I64,'Project Scope'!$C$8:$C$107,CD$7)+SUMIFS('Project Scope'!$AX$8:$AX$107,'Project Scope'!$AW$8:$AW$107,$I64,'Project Scope'!$C$8:$C$107,CD$7),0)","v":0},{"$f":"IF(AF64=\"yes\",SUMIFS('Project Scope'!$AO$8:$AO$107,'Project Scope'!$AN$8:$AN$107,$I64,'Project Scope'!$C$8:$C$107,CE$7)+SUMIFS('Project Scope'!$AX$8:$AX$107,'Project Scope'!$AW$8:$AW$107,$I64,'Project Scope'!$C$8:$C$107,CE$7),0)","v":0},{"$f":"IF(AG64=\"yes\",SUMIFS('Project Scope'!$AO$8:$AO$107,'Project Scope'!$AN$8:$AN$107,$I64,'Project Scope'!$C$8:$C$107,CF$7)+SUMIFS('Project Scope'!$AX$8:$AX$107,'Project Scope'!$AW$8:$AW$107,$I64,'Project Scope'!$C$8:$C$107,CF$7),0)","v":0},{"$f":"IF(AH64=\"yes\",SUMIFS('Project Scope'!$AO$8:$AO$107,'Project Scope'!$AN$8:$AN$107,$I64,'Project Scope'!$C$8:$C$107,CG$7)+SUMIFS('Project Scope'!$AX$8:$AX$107,'Project Scope'!$AW$8:$AW$107,$I64,'Project Scope'!$C$8:$C$107,CG$7),0)","v":0},{"$f":"IF(AI64=\"yes\",SUMIFS('Project Scope'!$AO$8:$AO$107,'Project Scope'!$AN$8:$AN$107,$I64,'Project Scope'!$C$8:$C$107,CH$7)+SUMIFS('Project Scope'!$AX$8:$AX$107,'Project Scope'!$AW$8:$AW$107,$I64,'Project Scope'!$C$8:$C$107,CH$7),0)","v":0},{"$f":"IF(AJ64=\"yes\",SUMIFS('Project Scope'!$AO$8:$AO$107,'Project Scope'!$AN$8:$AN$107,$I64,'Project Scope'!$C$8:$C$107,CI$7)+SUMIFS('Project Scope'!$AX$8:$AX$107,'Project Scope'!$AW$8:$AW$107,$I64,'Project Scope'!$C$8:$C$107,CI$7),0)","v":0},{"$f":"IF(AK64=\"yes\",SUMIFS('Project Scope'!$AO$8:$AO$107,'Project Scope'!$AN$8:$AN$107,$I64,'Project Scope'!$C$8:$C$107,CJ$7)+SUMIFS('Project Scope'!$AX$8:$AX$107,'Project Scope'!$AW$8:$AW$107,$I64,'Project Scope'!$C$8:$C$107,CJ$7),0)","v":0},{"$f":"IF(AL64=\"yes\",SUMIFS('Project Scope'!$AO$8:$AO$107,'Project Scope'!$AN$8:$AN$107,$I64,'Project Scope'!$C$8:$C$107,CK$7)+SUMIFS('Project Scope'!$AX$8:$AX$107,'Project Scope'!$AW$8:$AW$107,$I64,'Project Scope'!$C$8:$C$107,CK$7),0)","v":0},{"$f":"IF(AM64=\"yes\",SUMIFS('Project Scope'!$AO$8:$AO$107,'Project Scope'!$AN$8:$AN$107,$I64,'Project Scope'!$C$8:$C$107,CL$7)+SUMIFS('Project Scope'!$AX$8:$AX$107,'Project Scope'!$AW$8:$AW$107,$I64,'Project Scope'!$C$8:$C$107,CL$7),0)","v":0},{"$f":"IF(AN64=\"yes\",SUMIFS('Project Scope'!$AO$8:$AO$107,'Project Scope'!$AN$8:$AN$107,$I64,'Project Scope'!$C$8:$C$107,CM$7)+SUMIFS('Project Scope'!$AX$8:$AX$107,'Project Scope'!$AW$8:$AW$107,$I64,'Project Scope'!$C$8:$C$107,CM$7),0)","v":0},{"$f":"IF(AO64=\"yes\",SUMIFS('Project Scope'!$AO$8:$AO$107,'Project Scope'!$AN$8:$AN$107,$I64,'Project Scope'!$C$8:$C$107,CN$7)+SUMIFS('Project Scope'!$AX$8:$AX$107,'Project Scope'!$AW$8:$AW$107,$I64,'Project Scope'!$C$8:$C$107,CN$7),0)","v":0},{"$f":"IF(AP64=\"yes\",SUMIFS('Project Scope'!$AO$8:$AO$107,'Project Scope'!$AN$8:$AN$107,$I64,'Project Scope'!$C$8:$C$107,CO$7)+SUMIFS('Project Scope'!$AX$8:$AX$107,'Project Scope'!$AW$8:$AW$107,$I64,'Project Scope'!$C$8:$C$107,CO$7),0)","v":0},{"$f":"IF(AQ64=\"yes\",SUMIFS('Project Scope'!$AO$8:$AO$107,'Project Scope'!$AN$8:$AN$107,$I64,'Project Scope'!$C$8:$C$107,CP$7)+SUMIFS('Project Scope'!$AX$8:$AX$107,'Project Scope'!$AW$8:$AW$107,$I64,'Project Scope'!$C$8:$C$107,CP$7),0)","v":0},{"$f":"IF(AR64=\"yes\",SUMIFS('Project Scope'!$AO$8:$AO$107,'Project Scope'!$AN$8:$AN$107,$I64,'Project Scope'!$C$8:$C$107,CQ$7)+SUMIFS('Project Scope'!$AX$8:$AX$107,'Project Scope'!$AW$8:$AW$107,$I64,'Project Scope'!$C$8:$C$107,CQ$7),0)","v":0},{"$f":"IF(AS64=\"yes\",SUMIFS('Project Scope'!$AO$8:$AO$107,'Project Scope'!$AN$8:$AN$107,$I64,'Project Scope'!$C$8:$C$107,CR$7)+SUMIFS('Project Scope'!$AX$8:$AX$107,'Project Scope'!$AW$8:$AW$107,$I64,'Project Scope'!$C$8:$C$107,CR$7),0)","v":0},{"$f":"IF(AT64=\"yes\",SUMIFS('Project Scope'!$AO$8:$AO$107,'Project Scope'!$AN$8:$AN$107,$I64,'Project Scope'!$C$8:$C$107,CS$7)+SUMIFS('Project Scope'!$AX$8:$AX$107,'Project Scope'!$AW$8:$AW$107,$I64,'Project Scope'!$C$8:$C$107,CS$7),0)","v":0},{"$f":"IF(AU64=\"yes\",SUMIFS('Project Scope'!$AO$8:$AO$107,'Project Scope'!$AN$8:$AN$107,$I64,'Project Scope'!$C$8:$C$107,CT$7)+SUMIFS('Project Scope'!$AX$8:$AX$107,'Project Scope'!$AW$8:$AW$107,$I64,'Project Scope'!$C$8:$C$107,CT$7),0)","v":0},{"$f":"IF(AV64=\"yes\",SUMIFS('Project Scope'!$AO$8:$AO$107,'Project Scope'!$AN$8:$AN$107,$I64,'Project Scope'!$C$8:$C$107,CU$7)+SUMIFS('Project Scope'!$AX$8:$AX$107,'Project Scope'!$AW$8:$AW$107,$I64,'Project Scope'!$C$8:$C$107,CU$7),0)","v":0},{"$f":"IF(AW64=\"yes\",SUMIFS('Project Scope'!$AO$8:$AO$107,'Project Scope'!$AN$8:$AN$107,$I64,'Project Scope'!$C$8:$C$107,CV$7)+SUMIFS('Project Scope'!$AX$8:$AX$107,'Project Scope'!$AW$8:$AW$107,$I64,'Project Scope'!$C$8:$C$107,CV$7),0)","v":0},{"$f":"IF(AX64=\"yes\",SUMIFS('Project Scope'!$AO$8:$AO$107,'Project Scope'!$AN$8:$AN$107,$I64,'Project Scope'!$C$8:$C$107,CW$7)+SUMIFS('Project Scope'!$AX$8:$AX$107,'Project Scope'!$AW$8:$AW$107,$I64,'Project Scope'!$C$8:$C$107,CW$7),0)","v":0},{"$f":"IF(AY64=\"yes\",SUMIFS('Project Scope'!$AO$8:$AO$107,'Project Scope'!$AN$8:$AN$107,$I64,'Project Scope'!$C$8:$C$107,CX$7)+SUMIFS('Project Scope'!$AX$8:$AX$107,'Project Scope'!$AW$8:$AW$107,$I64,'Project Scope'!$C$8:$C$107,CX$7),0)","v":0},{"$f":"IF(AZ64=\"yes\",SUMIFS('Project Scope'!$AO$8:$AO$107,'Project Scope'!$AN$8:$AN$107,$I64,'Project Scope'!$C$8:$C$107,CY$7)+SUMIFS('Project Scope'!$AX$8:$AX$107,'Project Scope'!$AW$8:$AW$107,$I64,'Project Scope'!$C$8:$C$107,CY$7),0)","v":0},{"$f":"IF(BA64=\"yes\",SUMIFS('Project Scope'!$AO$8:$AO$107,'Project Scope'!$AN$8:$AN$107,$I64,'Project Scope'!$C$8:$C$107,CZ$7)+SUMIFS('Project Scope'!$AX$8:$AX$107,'Project Scope'!$AW$8:$AW$107,$I64,'Project Scope'!$C$8:$C$107,CZ$7),0)","v":0},{"$f":"IF(BB64=\"yes\",SUMIFS('Project Scope'!$AO$8:$AO$107,'Project Scope'!$AN$8:$AN$107,$I64,'Project Scope'!$C$8:$C$107,DA$7)+SUMIFS('Project Scope'!$AX$8:$AX$107,'Project Scope'!$AW$8:$AW$107,$I64,'Project Scope'!$C$8:$C$107,DA$7),0)","v":0},{"$f":"IF(BC64=\"yes\",SUMIFS('Project Scope'!$AO$8:$AO$107,'Project Scope'!$AN$8:$AN$107,$I64,'Project Scope'!$C$8:$C$107,DB$7)+SUMIFS('Project Scope'!$AX$8:$AX$107,'Project Scope'!$AW$8:$AW$107,$I64,'Project Scope'!$C$8:$C$107,DB$7),0)","v":0},{"$f":"IF(BD64=\"yes\",SUMIFS('Project Scope'!$AO$8:$AO$107,'Project Scope'!$AN$8:$AN$107,$I64,'Project Scope'!$C$8:$C$107,DC$7)+SUMIFS('Project Scope'!$AX$8:$AX$107,'Project Scope'!$AW$8:$AW$107,$I64,'Project Scope'!$C$8:$C$107,DC$7),0)","v":0},{"$f":"IF(BE64=\"yes\",SUMIFS('Project Scope'!$AO$8:$AO$107,'Project Scope'!$AN$8:$AN$107,$I64,'Project Scope'!$C$8:$C$107,DD$7)+SUMIFS('Project Scope'!$AX$8:$AX$107,'Project Scope'!$AW$8:$AW$107,$I64,'Project Scope'!$C$8:$C$107,DD$7),0)","v":0},{"$f":"IF(BF64=\"yes\",SUMIFS('Project Scope'!$AO$8:$AO$107,'Project Scope'!$AN$8:$AN$107,$I64,'Project Scope'!$C$8:$C$107,DE$7)+SUMIFS('Project Scope'!$AX$8:$AX$107,'Project Scope'!$AW$8:$AW$107,$I64,'Project Scope'!$C$8:$C$107,DE$7),0)","v":0},{"$f":"IF(BG64=\"yes\",SUMIFS('Project Scope'!$AO$8:$AO$107,'Project Scope'!$AN$8:$AN$107,$I64,'Project Scope'!$C$8:$C$107,DF$7)+SUMIFS('Project Scope'!$AX$8:$AX$107,'Project Scope'!$AW$8:$AW$107,$I64,'Project Scope'!$C$8:$C$107,DF$7),0)","v":0},{"$f":"IF(BH64=\"yes\",SUMIFS('Project Scope'!$AO$8:$AO$107,'Project Scope'!$AN$8:$AN$107,$I64,'Project Scope'!$C$8:$C$107,DG$7)+SUMIFS('Project Scope'!$AX$8:$AX$107,'Project Scope'!$AW$8:$AW$107,$I64,'Project Scope'!$C$8:$C$107,DG$7),0)","v":0},{"$f":"IF(BI64=\"yes\",SUMIFS('Project Scope'!$AO$8:$AO$107,'Project Scope'!$AN$8:$AN$107,$I64,'Project Scope'!$C$8:$C$107,DH$7)+SUMIFS('Project Scope'!$AX$8:$AX$107,'Project Scope'!$AW$8:$AW$107,$I64,'Project Scope'!$C$8:$C$107,DH$7),0)","v":0},{"$f":"IF(BJ64=\"yes\",SUMIFS('Project Scope'!$AO$8:$AO$107,'Project Scope'!$AN$8:$AN$107,$I64,'Project Scope'!$C$8:$C$107,DI$7)+SUMIFS('Project Scope'!$AX$8:$AX$107,'Project Scope'!$AW$8:$AW$107,$I64,'Project Scope'!$C$8:$C$107,DI$7),0)","v":0},{"$f":"IF(BK64=\"yes\",SUMIFS('Project Scope'!$AO$8:$AO$107,'Project Scope'!$AN$8:$AN$107,$I64,'Project Scope'!$C$8:$C$107,DJ$7)+SUMIFS('Project Scope'!$AX$8:$AX$107,'Project Scope'!$AW$8:$AW$107,$I64,'Project Scope'!$C$8:$C$107,DJ$7),0)","v":0},{"$f":"IF(BL64=\"yes\",SUMIFS('Project Scope'!$AO$8:$AO$107,'Project Scope'!$AN$8:$AN$107,$I64,'Project Scope'!$C$8:$C$107,DK$7)+SUMIFS('Project Scope'!$AX$8:$AX$107,'Project Scope'!$AW$8:$AW$107,$I64,'Project Scope'!$C$8:$C$107,DK$7),0)","v":0},null,"","","","","","","","","","","","","","","","","","","","","","","","","","","","","","","","","","","","","","","","","","","","","","","","","","",null,""]
[null,null,null,null,null,null,null,null,null,null,null,{"$f":"IF($C65=\"additional labor hours\",$K65*'Project Information'!$D$12,$K65*$J65)*IF($F65=\"Per Measure\",SUM($BN65:$DK65),1)","v":0},{"$f":"IF($C65=\"\",0,IF(VLOOKUP($C65,'Other Data'!$B$146:$C$156,2,FALSE)=\"M\",$L65,0))","v":0},0,null,null,null,null,null,null,null,null,null,null,null,null,null,null,null,null,null,null,null,null,null,null,null,null,null,null,null,null,null,null,null,null,null,null,null,null,null,null,null,null,null,null,null,null,null,null,null,null,null,null,null,{"$f":"IF(O65=\"yes\",SUMIFS('Project Scope'!$AO$8:$AO$107,'Project Scope'!$AN$8:$AN$107,$I65,'Project Scope'!$C$8:$C$107,BN$7)+SUMIFS('Project Scope'!$AX$8:$AX$107,'Project Scope'!$AW$8:$AW$107,$I65,'Project Scope'!$C$8:$C$107,BN$7),0)","v":0},{"$f":"IF(P65=\"yes\",SUMIFS('Project Scope'!$AO$8:$AO$107,'Project Scope'!$AN$8:$AN$107,$I65,'Project Scope'!$C$8:$C$107,BO$7)+SUMIFS('Project Scope'!$AX$8:$AX$107,'Project Scope'!$AW$8:$AW$107,$I65,'Project Scope'!$C$8:$C$107,BO$7),0)","v":0},{"$f":"IF(Q65=\"yes\",SUMIFS('Project Scope'!$AO$8:$AO$107,'Project Scope'!$AN$8:$AN$107,$I65,'Project Scope'!$C$8:$C$107,BP$7)+SUMIFS('Project Scope'!$AX$8:$AX$107,'Project Scope'!$AW$8:$AW$107,$I65,'Project Scope'!$C$8:$C$107,BP$7),0)","v":0},{"$f":"IF(R65=\"yes\",SUMIFS('Project Scope'!$AO$8:$AO$107,'Project Scope'!$AN$8:$AN$107,$I65,'Project Scope'!$C$8:$C$107,BQ$7)+SUMIFS('Project Scope'!$AX$8:$AX$107,'Project Scope'!$AW$8:$AW$107,$I65,'Project Scope'!$C$8:$C$107,BQ$7),0)","v":0},{"$f":"IF(S65=\"yes\",SUMIFS('Project Scope'!$AO$8:$AO$107,'Project Scope'!$AN$8:$AN$107,$I65,'Project Scope'!$C$8:$C$107,BR$7)+SUMIFS('Project Scope'!$AX$8:$AX$107,'Project Scope'!$AW$8:$AW$107,$I65,'Project Scope'!$C$8:$C$107,BR$7),0)","v":0},{"$f":"IF(T65=\"yes\",SUMIFS('Project Scope'!$AO$8:$AO$107,'Project Scope'!$AN$8:$AN$107,$I65,'Project Scope'!$C$8:$C$107,BS$7)+SUMIFS('Project Scope'!$AX$8:$AX$107,'Project Scope'!$AW$8:$AW$107,$I65,'Project Scope'!$C$8:$C$107,BS$7),0)","v":0},{"$f":"IF(U65=\"yes\",SUMIFS('Project Scope'!$AO$8:$AO$107,'Project Scope'!$AN$8:$AN$107,$I65,'Project Scope'!$C$8:$C$107,BT$7)+SUMIFS('Project Scope'!$AX$8:$AX$107,'Project Scope'!$AW$8:$AW$107,$I65,'Project Scope'!$C$8:$C$107,BT$7),0)","v":0},{"$f":"IF(V65=\"yes\",SUMIFS('Project Scope'!$AO$8:$AO$107,'Project Scope'!$AN$8:$AN$107,$I65,'Project Scope'!$C$8:$C$107,BU$7)+SUMIFS('Project Scope'!$AX$8:$AX$107,'Project Scope'!$AW$8:$AW$107,$I65,'Project Scope'!$C$8:$C$107,BU$7),0)","v":0},{"$f":"IF(W65=\"yes\",SUMIFS('Project Scope'!$AO$8:$AO$107,'Project Scope'!$AN$8:$AN$107,$I65,'Project Scope'!$C$8:$C$107,BV$7)+SUMIFS('Project Scope'!$AX$8:$AX$107,'Project Scope'!$AW$8:$AW$107,$I65,'Project Scope'!$C$8:$C$107,BV$7),0)","v":0},{"$f":"IF(X65=\"yes\",SUMIFS('Project Scope'!$AO$8:$AO$107,'Project Scope'!$AN$8:$AN$107,$I65,'Project Scope'!$C$8:$C$107,BW$7)+SUMIFS('Project Scope'!$AX$8:$AX$107,'Project Scope'!$AW$8:$AW$107,$I65,'Project Scope'!$C$8:$C$107,BW$7),0)","v":0},{"$f":"IF(Y65=\"yes\",SUMIFS('Project Scope'!$AO$8:$AO$107,'Project Scope'!$AN$8:$AN$107,$I65,'Project Scope'!$C$8:$C$107,BX$7)+SUMIFS('Project Scope'!$AX$8:$AX$107,'Project Scope'!$AW$8:$AW$107,$I65,'Project Scope'!$C$8:$C$107,BX$7),0)","v":0},{"$f":"IF(Z65=\"yes\",SUMIFS('Project Scope'!$AO$8:$AO$107,'Project Scope'!$AN$8:$AN$107,$I65,'Project Scope'!$C$8:$C$107,BY$7)+SUMIFS('Project Scope'!$AX$8:$AX$107,'Project Scope'!$AW$8:$AW$107,$I65,'Project Scope'!$C$8:$C$107,BY$7),0)","v":0},{"$f":"IF(AA65=\"yes\",SUMIFS('Project Scope'!$AO$8:$AO$107,'Project Scope'!$AN$8:$AN$107,$I65,'Project Scope'!$C$8:$C$107,BZ$7)+SUMIFS('Project Scope'!$AX$8:$AX$107,'Project Scope'!$AW$8:$AW$107,$I65,'Project Scope'!$C$8:$C$107,BZ$7),0)","v":0},{"$f":"IF(AB65=\"yes\",SUMIFS('Project Scope'!$AO$8:$AO$107,'Project Scope'!$AN$8:$AN$107,$I65,'Project Scope'!$C$8:$C$107,CA$7)+SUMIFS('Project Scope'!$AX$8:$AX$107,'Project Scope'!$AW$8:$AW$107,$I65,'Project Scope'!$C$8:$C$107,CA$7),0)","v":0},{"$f":"IF(AC65=\"yes\",SUMIFS('Project Scope'!$AO$8:$AO$107,'Project Scope'!$AN$8:$AN$107,$I65,'Project Scope'!$C$8:$C$107,CB$7)+SUMIFS('Project Scope'!$AX$8:$AX$107,'Project Scope'!$AW$8:$AW$107,$I65,'Project Scope'!$C$8:$C$107,CB$7),0)","v":0},{"$f":"IF(AD65=\"yes\",SUMIFS('Project Scope'!$AO$8:$AO$107,'Project Scope'!$AN$8:$AN$107,$I65,'Project Scope'!$C$8:$C$107,CC$7)+SUMIFS('Project Scope'!$AX$8:$AX$107,'Project Scope'!$AW$8:$AW$107,$I65,'Project Scope'!$C$8:$C$107,CC$7),0)","v":0},{"$f":"IF(AE65=\"yes\",SUMIFS('Project Scope'!$AO$8:$AO$107,'Project Scope'!$AN$8:$AN$107,$I65,'Project Scope'!$C$8:$C$107,CD$7)+SUMIFS('Project Scope'!$AX$8:$AX$107,'Project Scope'!$AW$8:$AW$107,$I65,'Project Scope'!$C$8:$C$107,CD$7),0)","v":0},{"$f":"IF(AF65=\"yes\",SUMIFS('Project Scope'!$AO$8:$AO$107,'Project Scope'!$AN$8:$AN$107,$I65,'Project Scope'!$C$8:$C$107,CE$7)+SUMIFS('Project Scope'!$AX$8:$AX$107,'Project Scope'!$AW$8:$AW$107,$I65,'Project Scope'!$C$8:$C$107,CE$7),0)","v":0},{"$f":"IF(AG65=\"yes\",SUMIFS('Project Scope'!$AO$8:$AO$107,'Project Scope'!$AN$8:$AN$107,$I65,'Project Scope'!$C$8:$C$107,CF$7)+SUMIFS('Project Scope'!$AX$8:$AX$107,'Project Scope'!$AW$8:$AW$107,$I65,'Project Scope'!$C$8:$C$107,CF$7),0)","v":0},{"$f":"IF(AH65=\"yes\",SUMIFS('Project Scope'!$AO$8:$AO$107,'Project Scope'!$AN$8:$AN$107,$I65,'Project Scope'!$C$8:$C$107,CG$7)+SUMIFS('Project Scope'!$AX$8:$AX$107,'Project Scope'!$AW$8:$AW$107,$I65,'Project Scope'!$C$8:$C$107,CG$7),0)","v":0},{"$f":"IF(AI65=\"yes\",SUMIFS('Project Scope'!$AO$8:$AO$107,'Project Scope'!$AN$8:$AN$107,$I65,'Project Scope'!$C$8:$C$107,CH$7)+SUMIFS('Project Scope'!$AX$8:$AX$107,'Project Scope'!$AW$8:$AW$107,$I65,'Project Scope'!$C$8:$C$107,CH$7),0)","v":0},{"$f":"IF(AJ65=\"yes\",SUMIFS('Project Scope'!$AO$8:$AO$107,'Project Scope'!$AN$8:$AN$107,$I65,'Project Scope'!$C$8:$C$107,CI$7)+SUMIFS('Project Scope'!$AX$8:$AX$107,'Project Scope'!$AW$8:$AW$107,$I65,'Project Scope'!$C$8:$C$107,CI$7),0)","v":0},{"$f":"IF(AK65=\"yes\",SUMIFS('Project Scope'!$AO$8:$AO$107,'Project Scope'!$AN$8:$AN$107,$I65,'Project Scope'!$C$8:$C$107,CJ$7)+SUMIFS('Project Scope'!$AX$8:$AX$107,'Project Scope'!$AW$8:$AW$107,$I65,'Project Scope'!$C$8:$C$107,CJ$7),0)","v":0},{"$f":"IF(AL65=\"yes\",SUMIFS('Project Scope'!$AO$8:$AO$107,'Project Scope'!$AN$8:$AN$107,$I65,'Project Scope'!$C$8:$C$107,CK$7)+SUMIFS('Project Scope'!$AX$8:$AX$107,'Project Scope'!$AW$8:$AW$107,$I65,'Project Scope'!$C$8:$C$107,CK$7),0)","v":0},{"$f":"IF(AM65=\"yes\",SUMIFS('Project Scope'!$AO$8:$AO$107,'Project Scope'!$AN$8:$AN$107,$I65,'Project Scope'!$C$8:$C$107,CL$7)+SUMIFS('Project Scope'!$AX$8:$AX$107,'Project Scope'!$AW$8:$AW$107,$I65,'Project Scope'!$C$8:$C$107,CL$7),0)","v":0},{"$f":"IF(AN65=\"yes\",SUMIFS('Project Scope'!$AO$8:$AO$107,'Project Scope'!$AN$8:$AN$107,$I65,'Project Scope'!$C$8:$C$107,CM$7)+SUMIFS('Project Scope'!$AX$8:$AX$107,'Project Scope'!$AW$8:$AW$107,$I65,'Project Scope'!$C$8:$C$107,CM$7),0)","v":0},{"$f":"IF(AO65=\"yes\",SUMIFS('Project Scope'!$AO$8:$AO$107,'Project Scope'!$AN$8:$AN$107,$I65,'Project Scope'!$C$8:$C$107,CN$7)+SUMIFS('Project Scope'!$AX$8:$AX$107,'Project Scope'!$AW$8:$AW$107,$I65,'Project Scope'!$C$8:$C$107,CN$7),0)","v":0},{"$f":"IF(AP65=\"yes\",SUMIFS('Project Scope'!$AO$8:$AO$107,'Project Scope'!$AN$8:$AN$107,$I65,'Project Scope'!$C$8:$C$107,CO$7)+SUMIFS('Project Scope'!$AX$8:$AX$107,'Project Scope'!$AW$8:$AW$107,$I65,'Project Scope'!$C$8:$C$107,CO$7),0)","v":0},{"$f":"IF(AQ65=\"yes\",SUMIFS('Project Scope'!$AO$8:$AO$107,'Project Scope'!$AN$8:$AN$107,$I65,'Project Scope'!$C$8:$C$107,CP$7)+SUMIFS('Project Scope'!$AX$8:$AX$107,'Project Scope'!$AW$8:$AW$107,$I65,'Project Scope'!$C$8:$C$107,CP$7),0)","v":0},{"$f":"IF(AR65=\"yes\",SUMIFS('Project Scope'!$AO$8:$AO$107,'Project Scope'!$AN$8:$AN$107,$I65,'Project Scope'!$C$8:$C$107,CQ$7)+SUMIFS('Project Scope'!$AX$8:$AX$107,'Project Scope'!$AW$8:$AW$107,$I65,'Project Scope'!$C$8:$C$107,CQ$7),0)","v":0},{"$f":"IF(AS65=\"yes\",SUMIFS('Project Scope'!$AO$8:$AO$107,'Project Scope'!$AN$8:$AN$107,$I65,'Project Scope'!$C$8:$C$107,CR$7)+SUMIFS('Project Scope'!$AX$8:$AX$107,'Project Scope'!$AW$8:$AW$107,$I65,'Project Scope'!$C$8:$C$107,CR$7),0)","v":0},{"$f":"IF(AT65=\"yes\",SUMIFS('Project Scope'!$AO$8:$AO$107,'Project Scope'!$AN$8:$AN$107,$I65,'Project Scope'!$C$8:$C$107,CS$7)+SUMIFS('Project Scope'!$AX$8:$AX$107,'Project Scope'!$AW$8:$AW$107,$I65,'Project Scope'!$C$8:$C$107,CS$7),0)","v":0},{"$f":"IF(AU65=\"yes\",SUMIFS('Project Scope'!$AO$8:$AO$107,'Project Scope'!$AN$8:$AN$107,$I65,'Project Scope'!$C$8:$C$107,CT$7)+SUMIFS('Project Scope'!$AX$8:$AX$107,'Project Scope'!$AW$8:$AW$107,$I65,'Project Scope'!$C$8:$C$107,CT$7),0)","v":0},{"$f":"IF(AV65=\"yes\",SUMIFS('Project Scope'!$AO$8:$AO$107,'Project Scope'!$AN$8:$AN$107,$I65,'Project Scope'!$C$8:$C$107,CU$7)+SUMIFS('Project Scope'!$AX$8:$AX$107,'Project Scope'!$AW$8:$AW$107,$I65,'Project Scope'!$C$8:$C$107,CU$7),0)","v":0},{"$f":"IF(AW65=\"yes\",SUMIFS('Project Scope'!$AO$8:$AO$107,'Project Scope'!$AN$8:$AN$107,$I65,'Project Scope'!$C$8:$C$107,CV$7)+SUMIFS('Project Scope'!$AX$8:$AX$107,'Project Scope'!$AW$8:$AW$107,$I65,'Project Scope'!$C$8:$C$107,CV$7),0)","v":0},{"$f":"IF(AX65=\"yes\",SUMIFS('Project Scope'!$AO$8:$AO$107,'Project Scope'!$AN$8:$AN$107,$I65,'Project Scope'!$C$8:$C$107,CW$7)+SUMIFS('Project Scope'!$AX$8:$AX$107,'Project Scope'!$AW$8:$AW$107,$I65,'Project Scope'!$C$8:$C$107,CW$7),0)","v":0},{"$f":"IF(AY65=\"yes\",SUMIFS('Project Scope'!$AO$8:$AO$107,'Project Scope'!$AN$8:$AN$107,$I65,'Project Scope'!$C$8:$C$107,CX$7)+SUMIFS('Project Scope'!$AX$8:$AX$107,'Project Scope'!$AW$8:$AW$107,$I65,'Project Scope'!$C$8:$C$107,CX$7),0)","v":0},{"$f":"IF(AZ65=\"yes\",SUMIFS('Project Scope'!$AO$8:$AO$107,'Project Scope'!$AN$8:$AN$107,$I65,'Project Scope'!$C$8:$C$107,CY$7)+SUMIFS('Project Scope'!$AX$8:$AX$107,'Project Scope'!$AW$8:$AW$107,$I65,'Project Scope'!$C$8:$C$107,CY$7),0)","v":0},{"$f":"IF(BA65=\"yes\",SUMIFS('Project Scope'!$AO$8:$AO$107,'Project Scope'!$AN$8:$AN$107,$I65,'Project Scope'!$C$8:$C$107,CZ$7)+SUMIFS('Project Scope'!$AX$8:$AX$107,'Project Scope'!$AW$8:$AW$107,$I65,'Project Scope'!$C$8:$C$107,CZ$7),0)","v":0},{"$f":"IF(BB65=\"yes\",SUMIFS('Project Scope'!$AO$8:$AO$107,'Project Scope'!$AN$8:$AN$107,$I65,'Project Scope'!$C$8:$C$107,DA$7)+SUMIFS('Project Scope'!$AX$8:$AX$107,'Project Scope'!$AW$8:$AW$107,$I65,'Project Scope'!$C$8:$C$107,DA$7),0)","v":0},{"$f":"IF(BC65=\"yes\",SUMIFS('Project Scope'!$AO$8:$AO$107,'Project Scope'!$AN$8:$AN$107,$I65,'Project Scope'!$C$8:$C$107,DB$7)+SUMIFS('Project Scope'!$AX$8:$AX$107,'Project Scope'!$AW$8:$AW$107,$I65,'Project Scope'!$C$8:$C$107,DB$7),0)","v":0},{"$f":"IF(BD65=\"yes\",SUMIFS('Project Scope'!$AO$8:$AO$107,'Project Scope'!$AN$8:$AN$107,$I65,'Project Scope'!$C$8:$C$107,DC$7)+SUMIFS('Project Scope'!$AX$8:$AX$107,'Project Scope'!$AW$8:$AW$107,$I65,'Project Scope'!$C$8:$C$107,DC$7),0)","v":0},{"$f":"IF(BE65=\"yes\",SUMIFS('Project Scope'!$AO$8:$AO$107,'Project Scope'!$AN$8:$AN$107,$I65,'Project Scope'!$C$8:$C$107,DD$7)+SUMIFS('Project Scope'!$AX$8:$AX$107,'Project Scope'!$AW$8:$AW$107,$I65,'Project Scope'!$C$8:$C$107,DD$7),0)","v":0},{"$f":"IF(BF65=\"yes\",SUMIFS('Project Scope'!$AO$8:$AO$107,'Project Scope'!$AN$8:$AN$107,$I65,'Project Scope'!$C$8:$C$107,DE$7)+SUMIFS('Project Scope'!$AX$8:$AX$107,'Project Scope'!$AW$8:$AW$107,$I65,'Project Scope'!$C$8:$C$107,DE$7),0)","v":0},{"$f":"IF(BG65=\"yes\",SUMIFS('Project Scope'!$AO$8:$AO$107,'Project Scope'!$AN$8:$AN$107,$I65,'Project Scope'!$C$8:$C$107,DF$7)+SUMIFS('Project Scope'!$AX$8:$AX$107,'Project Scope'!$AW$8:$AW$107,$I65,'Project Scope'!$C$8:$C$107,DF$7),0)","v":0},{"$f":"IF(BH65=\"yes\",SUMIFS('Project Scope'!$AO$8:$AO$107,'Project Scope'!$AN$8:$AN$107,$I65,'Project Scope'!$C$8:$C$107,DG$7)+SUMIFS('Project Scope'!$AX$8:$AX$107,'Project Scope'!$AW$8:$AW$107,$I65,'Project Scope'!$C$8:$C$107,DG$7),0)","v":0},{"$f":"IF(BI65=\"yes\",SUMIFS('Project Scope'!$AO$8:$AO$107,'Project Scope'!$AN$8:$AN$107,$I65,'Project Scope'!$C$8:$C$107,DH$7)+SUMIFS('Project Scope'!$AX$8:$AX$107,'Project Scope'!$AW$8:$AW$107,$I65,'Project Scope'!$C$8:$C$107,DH$7),0)","v":0},{"$f":"IF(BJ65=\"yes\",SUMIFS('Project Scope'!$AO$8:$AO$107,'Project Scope'!$AN$8:$AN$107,$I65,'Project Scope'!$C$8:$C$107,DI$7)+SUMIFS('Project Scope'!$AX$8:$AX$107,'Project Scope'!$AW$8:$AW$107,$I65,'Project Scope'!$C$8:$C$107,DI$7),0)","v":0},{"$f":"IF(BK65=\"yes\",SUMIFS('Project Scope'!$AO$8:$AO$107,'Project Scope'!$AN$8:$AN$107,$I65,'Project Scope'!$C$8:$C$107,DJ$7)+SUMIFS('Project Scope'!$AX$8:$AX$107,'Project Scope'!$AW$8:$AW$107,$I65,'Project Scope'!$C$8:$C$107,DJ$7),0)","v":0},{"$f":"IF(BL65=\"yes\",SUMIFS('Project Scope'!$AO$8:$AO$107,'Project Scope'!$AN$8:$AN$107,$I65,'Project Scope'!$C$8:$C$107,DK$7)+SUMIFS('Project Scope'!$AX$8:$AX$107,'Project Scope'!$AW$8:$AW$107,$I65,'Project Scope'!$C$8:$C$107,DK$7),0)","v":0},null,"","","","","","","","","","","","","","","","","","","","","","","","","","","","","","","","","","","","","","","","","","","","","","","","","","",null,""]
[null,null,null,null,null,null,null,null,null,null,null,{"$f":"IF($C66=\"additional labor hours\",$K66*'Project Information'!$D$12,$K66*$J66)*IF($F66=\"Per Measure\",SUM($BN66:$DK66),1)","v":0},{"$f":"IF($C66=\"\",0,IF(VLOOKUP($C66,'Other Data'!$B$146:$C$156,2,FALSE)=\"M\",$L66,0))","v":0},0,null,null,null,null,null,null,null,null,null,null,null,null,null,null,null,null,null,null,null,null,null,null,null,null,null,null,null,null,null,null,null,null,null,null,null,null,null,null,null,null,null,null,null,null,null,null,null,null,null,null,null,{"$f":"IF(O66=\"yes\",SUMIFS('Project Scope'!$AO$8:$AO$107,'Project Scope'!$AN$8:$AN$107,$I66,'Project Scope'!$C$8:$C$107,BN$7)+SUMIFS('Project Scope'!$AX$8:$AX$107,'Project Scope'!$AW$8:$AW$107,$I66,'Project Scope'!$C$8:$C$107,BN$7),0)","v":0},{"$f":"IF(P66=\"yes\",SUMIFS('Project Scope'!$AO$8:$AO$107,'Project Scope'!$AN$8:$AN$107,$I66,'Project Scope'!$C$8:$C$107,BO$7)+SUMIFS('Project Scope'!$AX$8:$AX$107,'Project Scope'!$AW$8:$AW$107,$I66,'Project Scope'!$C$8:$C$107,BO$7),0)","v":0},{"$f":"IF(Q66=\"yes\",SUMIFS('Project Scope'!$AO$8:$AO$107,'Project Scope'!$AN$8:$AN$107,$I66,'Project Scope'!$C$8:$C$107,BP$7)+SUMIFS('Project Scope'!$AX$8:$AX$107,'Project Scope'!$AW$8:$AW$107,$I66,'Project Scope'!$C$8:$C$107,BP$7),0)","v":0},{"$f":"IF(R66=\"yes\",SUMIFS('Project Scope'!$AO$8:$AO$107,'Project Scope'!$AN$8:$AN$107,$I66,'Project Scope'!$C$8:$C$107,BQ$7)+SUMIFS('Project Scope'!$AX$8:$AX$107,'Project Scope'!$AW$8:$AW$107,$I66,'Project Scope'!$C$8:$C$107,BQ$7),0)","v":0},{"$f":"IF(S66=\"yes\",SUMIFS('Project Scope'!$AO$8:$AO$107,'Project Scope'!$AN$8:$AN$107,$I66,'Project Scope'!$C$8:$C$107,BR$7)+SUMIFS('Project Scope'!$AX$8:$AX$107,'Project Scope'!$AW$8:$AW$107,$I66,'Project Scope'!$C$8:$C$107,BR$7),0)","v":0},{"$f":"IF(T66=\"yes\",SUMIFS('Project Scope'!$AO$8:$AO$107,'Project Scope'!$AN$8:$AN$107,$I66,'Project Scope'!$C$8:$C$107,BS$7)+SUMIFS('Project Scope'!$AX$8:$AX$107,'Project Scope'!$AW$8:$AW$107,$I66,'Project Scope'!$C$8:$C$107,BS$7),0)","v":0},{"$f":"IF(U66=\"yes\",SUMIFS('Project Scope'!$AO$8:$AO$107,'Project Scope'!$AN$8:$AN$107,$I66,'Project Scope'!$C$8:$C$107,BT$7)+SUMIFS('Project Scope'!$AX$8:$AX$107,'Project Scope'!$AW$8:$AW$107,$I66,'Project Scope'!$C$8:$C$107,BT$7),0)","v":0},{"$f":"IF(V66=\"yes\",SUMIFS('Project Scope'!$AO$8:$AO$107,'Project Scope'!$AN$8:$AN$107,$I66,'Project Scope'!$C$8:$C$107,BU$7)+SUMIFS('Project Scope'!$AX$8:$AX$107,'Project Scope'!$AW$8:$AW$107,$I66,'Project Scope'!$C$8:$C$107,BU$7),0)","v":0},{"$f":"IF(W66=\"yes\",SUMIFS('Project Scope'!$AO$8:$AO$107,'Project Scope'!$AN$8:$AN$107,$I66,'Project Scope'!$C$8:$C$107,BV$7)+SUMIFS('Project Scope'!$AX$8:$AX$107,'Project Scope'!$AW$8:$AW$107,$I66,'Project Scope'!$C$8:$C$107,BV$7),0)","v":0},{"$f":"IF(X66=\"yes\",SUMIFS('Project Scope'!$AO$8:$AO$107,'Project Scope'!$AN$8:$AN$107,$I66,'Project Scope'!$C$8:$C$107,BW$7)+SUMIFS('Project Scope'!$AX$8:$AX$107,'Project Scope'!$AW$8:$AW$107,$I66,'Project Scope'!$C$8:$C$107,BW$7),0)","v":0},{"$f":"IF(Y66=\"yes\",SUMIFS('Project Scope'!$AO$8:$AO$107,'Project Scope'!$AN$8:$AN$107,$I66,'Project Scope'!$C$8:$C$107,BX$7)+SUMIFS('Project Scope'!$AX$8:$AX$107,'Project Scope'!$AW$8:$AW$107,$I66,'Project Scope'!$C$8:$C$107,BX$7),0)","v":0},{"$f":"IF(Z66=\"yes\",SUMIFS('Project Scope'!$AO$8:$AO$107,'Project Scope'!$AN$8:$AN$107,$I66,'Project Scope'!$C$8:$C$107,BY$7)+SUMIFS('Project Scope'!$AX$8:$AX$107,'Project Scope'!$AW$8:$AW$107,$I66,'Project Scope'!$C$8:$C$107,BY$7),0)","v":0},{"$f":"IF(AA66=\"yes\",SUMIFS('Project Scope'!$AO$8:$AO$107,'Project Scope'!$AN$8:$AN$107,$I66,'Project Scope'!$C$8:$C$107,BZ$7)+SUMIFS('Project Scope'!$AX$8:$AX$107,'Project Scope'!$AW$8:$AW$107,$I66,'Project Scope'!$C$8:$C$107,BZ$7),0)","v":0},{"$f":"IF(AB66=\"yes\",SUMIFS('Project Scope'!$AO$8:$AO$107,'Project Scope'!$AN$8:$AN$107,$I66,'Project Scope'!$C$8:$C$107,CA$7)+SUMIFS('Project Scope'!$AX$8:$AX$107,'Project Scope'!$AW$8:$AW$107,$I66,'Project Scope'!$C$8:$C$107,CA$7),0)","v":0},{"$f":"IF(AC66=\"yes\",SUMIFS('Project Scope'!$AO$8:$AO$107,'Project Scope'!$AN$8:$AN$107,$I66,'Project Scope'!$C$8:$C$107,CB$7)+SUMIFS('Project Scope'!$AX$8:$AX$107,'Project Scope'!$AW$8:$AW$107,$I66,'Project Scope'!$C$8:$C$107,CB$7),0)","v":0},{"$f":"IF(AD66=\"yes\",SUMIFS('Project Scope'!$AO$8:$AO$107,'Project Scope'!$AN$8:$AN$107,$I66,'Project Scope'!$C$8:$C$107,CC$7)+SUMIFS('Project Scope'!$AX$8:$AX$107,'Project Scope'!$AW$8:$AW$107,$I66,'Project Scope'!$C$8:$C$107,CC$7),0)","v":0},{"$f":"IF(AE66=\"yes\",SUMIFS('Project Scope'!$AO$8:$AO$107,'Project Scope'!$AN$8:$AN$107,$I66,'Project Scope'!$C$8:$C$107,CD$7)+SUMIFS('Project Scope'!$AX$8:$AX$107,'Project Scope'!$AW$8:$AW$107,$I66,'Project Scope'!$C$8:$C$107,CD$7),0)","v":0},{"$f":"IF(AF66=\"yes\",SUMIFS('Project Scope'!$AO$8:$AO$107,'Project Scope'!$AN$8:$AN$107,$I66,'Project Scope'!$C$8:$C$107,CE$7)+SUMIFS('Project Scope'!$AX$8:$AX$107,'Project Scope'!$AW$8:$AW$107,$I66,'Project Scope'!$C$8:$C$107,CE$7),0)","v":0},{"$f":"IF(AG66=\"yes\",SUMIFS('Project Scope'!$AO$8:$AO$107,'Project Scope'!$AN$8:$AN$107,$I66,'Project Scope'!$C$8:$C$107,CF$7)+SUMIFS('Project Scope'!$AX$8:$AX$107,'Project Scope'!$AW$8:$AW$107,$I66,'Project Scope'!$C$8:$C$107,CF$7),0)","v":0},{"$f":"IF(AH66=\"yes\",SUMIFS('Project Scope'!$AO$8:$AO$107,'Project Scope'!$AN$8:$AN$107,$I66,'Project Scope'!$C$8:$C$107,CG$7)+SUMIFS('Project Scope'!$AX$8:$AX$107,'Project Scope'!$AW$8:$AW$107,$I66,'Project Scope'!$C$8:$C$107,CG$7),0)","v":0},{"$f":"IF(AI66=\"yes\",SUMIFS('Project Scope'!$AO$8:$AO$107,'Project Scope'!$AN$8:$AN$107,$I66,'Project Scope'!$C$8:$C$107,CH$7)+SUMIFS('Project Scope'!$AX$8:$AX$107,'Project Scope'!$AW$8:$AW$107,$I66,'Project Scope'!$C$8:$C$107,CH$7),0)","v":0},{"$f":"IF(AJ66=\"yes\",SUMIFS('Project Scope'!$AO$8:$AO$107,'Project Scope'!$AN$8:$AN$107,$I66,'Project Scope'!$C$8:$C$107,CI$7)+SUMIFS('Project Scope'!$AX$8:$AX$107,'Project Scope'!$AW$8:$AW$107,$I66,'Project Scope'!$C$8:$C$107,CI$7),0)","v":0},{"$f":"IF(AK66=\"yes\",SUMIFS('Project Scope'!$AO$8:$AO$107,'Project Scope'!$AN$8:$AN$107,$I66,'Project Scope'!$C$8:$C$107,CJ$7)+SUMIFS('Project Scope'!$AX$8:$AX$107,'Project Scope'!$AW$8:$AW$107,$I66,'Project Scope'!$C$8:$C$107,CJ$7),0)","v":0},{"$f":"IF(AL66=\"yes\",SUMIFS('Project Scope'!$AO$8:$AO$107,'Project Scope'!$AN$8:$AN$107,$I66,'Project Scope'!$C$8:$C$107,CK$7)+SUMIFS('Project Scope'!$AX$8:$AX$107,'Project Scope'!$AW$8:$AW$107,$I66,'Project Scope'!$C$8:$C$107,CK$7),0)","v":0},{"$f":"IF(AM66=\"yes\",SUMIFS('Project Scope'!$AO$8:$AO$107,'Project Scope'!$AN$8:$AN$107,$I66,'Project Scope'!$C$8:$C$107,CL$7)+SUMIFS('Project Scope'!$AX$8:$AX$107,'Project Scope'!$AW$8:$AW$107,$I66,'Project Scope'!$C$8:$C$107,CL$7),0)","v":0},{"$f":"IF(AN66=\"yes\",SUMIFS('Project Scope'!$AO$8:$AO$107,'Project Scope'!$AN$8:$AN$107,$I66,'Project Scope'!$C$8:$C$107,CM$7)+SUMIFS('Project Scope'!$AX$8:$AX$107,'Project Scope'!$AW$8:$AW$107,$I66,'Project Scope'!$C$8:$C$107,CM$7),0)","v":0},{"$f":"IF(AO66=\"yes\",SUMIFS('Project Scope'!$AO$8:$AO$107,'Project Scope'!$AN$8:$AN$107,$I66,'Project Scope'!$C$8:$C$107,CN$7)+SUMIFS('Project Scope'!$AX$8:$AX$107,'Project Scope'!$AW$8:$AW$107,$I66,'Project Scope'!$C$8:$C$107,CN$7),0)","v":0},{"$f":"IF(AP66=\"yes\",SUMIFS('Project Scope'!$AO$8:$AO$107,'Project Scope'!$AN$8:$AN$107,$I66,'Project Scope'!$C$8:$C$107,CO$7)+SUMIFS('Project Scope'!$AX$8:$AX$107,'Project Scope'!$AW$8:$AW$107,$I66,'Project Scope'!$C$8:$C$107,CO$7),0)","v":0},{"$f":"IF(AQ66=\"yes\",SUMIFS('Project Scope'!$AO$8:$AO$107,'Project Scope'!$AN$8:$AN$107,$I66,'Project Scope'!$C$8:$C$107,CP$7)+SUMIFS('Project Scope'!$AX$8:$AX$107,'Project Scope'!$AW$8:$AW$107,$I66,'Project Scope'!$C$8:$C$107,CP$7),0)","v":0},{"$f":"IF(AR66=\"yes\",SUMIFS('Project Scope'!$AO$8:$AO$107,'Project Scope'!$AN$8:$AN$107,$I66,'Project Scope'!$C$8:$C$107,CQ$7)+SUMIFS('Project Scope'!$AX$8:$AX$107,'Project Scope'!$AW$8:$AW$107,$I66,'Project Scope'!$C$8:$C$107,CQ$7),0)","v":0},{"$f":"IF(AS66=\"yes\",SUMIFS('Project Scope'!$AO$8:$AO$107,'Project Scope'!$AN$8:$AN$107,$I66,'Project Scope'!$C$8:$C$107,CR$7)+SUMIFS('Project Scope'!$AX$8:$AX$107,'Project Scope'!$AW$8:$AW$107,$I66,'Project Scope'!$C$8:$C$107,CR$7),0)","v":0},{"$f":"IF(AT66=\"yes\",SUMIFS('Project Scope'!$AO$8:$AO$107,'Project Scope'!$AN$8:$AN$107,$I66,'Project Scope'!$C$8:$C$107,CS$7)+SUMIFS('Project Scope'!$AX$8:$AX$107,'Project Scope'!$AW$8:$AW$107,$I66,'Project Scope'!$C$8:$C$107,CS$7),0)","v":0},{"$f":"IF(AU66=\"yes\",SUMIFS('Project Scope'!$AO$8:$AO$107,'Project Scope'!$AN$8:$AN$107,$I66,'Project Scope'!$C$8:$C$107,CT$7)+SUMIFS('Project Scope'!$AX$8:$AX$107,'Project Scope'!$AW$8:$AW$107,$I66,'Project Scope'!$C$8:$C$107,CT$7),0)","v":0},{"$f":"IF(AV66=\"yes\",SUMIFS('Project Scope'!$AO$8:$AO$107,'Project Scope'!$AN$8:$AN$107,$I66,'Project Scope'!$C$8:$C$107,CU$7)+SUMIFS('Project Scope'!$AX$8:$AX$107,'Project Scope'!$AW$8:$AW$107,$I66,'Project Scope'!$C$8:$C$107,CU$7),0)","v":0},{"$f":"IF(AW66=\"yes\",SUMIFS('Project Scope'!$AO$8:$AO$107,'Project Scope'!$AN$8:$AN$107,$I66,'Project Scope'!$C$8:$C$107,CV$7)+SUMIFS('Project Scope'!$AX$8:$AX$107,'Project Scope'!$AW$8:$AW$107,$I66,'Project Scope'!$C$8:$C$107,CV$7),0)","v":0},{"$f":"IF(AX66=\"yes\",SUMIFS('Project Scope'!$AO$8:$AO$107,'Project Scope'!$AN$8:$AN$107,$I66,'Project Scope'!$C$8:$C$107,CW$7)+SUMIFS('Project Scope'!$AX$8:$AX$107,'Project Scope'!$AW$8:$AW$107,$I66,'Project Scope'!$C$8:$C$107,CW$7),0)","v":0},{"$f":"IF(AY66=\"yes\",SUMIFS('Project Scope'!$AO$8:$AO$107,'Project Scope'!$AN$8:$AN$107,$I66,'Project Scope'!$C$8:$C$107,CX$7)+SUMIFS('Project Scope'!$AX$8:$AX$107,'Project Scope'!$AW$8:$AW$107,$I66,'Project Scope'!$C$8:$C$107,CX$7),0)","v":0},{"$f":"IF(AZ66=\"yes\",SUMIFS('Project Scope'!$AO$8:$AO$107,'Project Scope'!$AN$8:$AN$107,$I66,'Project Scope'!$C$8:$C$107,CY$7)+SUMIFS('Project Scope'!$AX$8:$AX$107,'Project Scope'!$AW$8:$AW$107,$I66,'Project Scope'!$C$8:$C$107,CY$7),0)","v":0},{"$f":"IF(BA66=\"yes\",SUMIFS('Project Scope'!$AO$8:$AO$107,'Project Scope'!$AN$8:$AN$107,$I66,'Project Scope'!$C$8:$C$107,CZ$7)+SUMIFS('Project Scope'!$AX$8:$AX$107,'Project Scope'!$AW$8:$AW$107,$I66,'Project Scope'!$C$8:$C$107,CZ$7),0)","v":0},{"$f":"IF(BB66=\"yes\",SUMIFS('Project Scope'!$AO$8:$AO$107,'Project Scope'!$AN$8:$AN$107,$I66,'Project Scope'!$C$8:$C$107,DA$7)+SUMIFS('Project Scope'!$AX$8:$AX$107,'Project Scope'!$AW$8:$AW$107,$I66,'Project Scope'!$C$8:$C$107,DA$7),0)","v":0},{"$f":"IF(BC66=\"yes\",SUMIFS('Project Scope'!$AO$8:$AO$107,'Project Scope'!$AN$8:$AN$107,$I66,'Project Scope'!$C$8:$C$107,DB$7)+SUMIFS('Project Scope'!$AX$8:$AX$107,'Project Scope'!$AW$8:$AW$107,$I66,'Project Scope'!$C$8:$C$107,DB$7),0)","v":0},{"$f":"IF(BD66=\"yes\",SUMIFS('Project Scope'!$AO$8:$AO$107,'Project Scope'!$AN$8:$AN$107,$I66,'Project Scope'!$C$8:$C$107,DC$7)+SUMIFS('Project Scope'!$AX$8:$AX$107,'Project Scope'!$AW$8:$AW$107,$I66,'Project Scope'!$C$8:$C$107,DC$7),0)","v":0},{"$f":"IF(BE66=\"yes\",SUMIFS('Project Scope'!$AO$8:$AO$107,'Project Scope'!$AN$8:$AN$107,$I66,'Project Scope'!$C$8:$C$107,DD$7)+SUMIFS('Project Scope'!$AX$8:$AX$107,'Project Scope'!$AW$8:$AW$107,$I66,'Project Scope'!$C$8:$C$107,DD$7),0)","v":0},{"$f":"IF(BF66=\"yes\",SUMIFS('Project Scope'!$AO$8:$AO$107,'Project Scope'!$AN$8:$AN$107,$I66,'Project Scope'!$C$8:$C$107,DE$7)+SUMIFS('Project Scope'!$AX$8:$AX$107,'Project Scope'!$AW$8:$AW$107,$I66,'Project Scope'!$C$8:$C$107,DE$7),0)","v":0},{"$f":"IF(BG66=\"yes\",SUMIFS('Project Scope'!$AO$8:$AO$107,'Project Scope'!$AN$8:$AN$107,$I66,'Project Scope'!$C$8:$C$107,DF$7)+SUMIFS('Project Scope'!$AX$8:$AX$107,'Project Scope'!$AW$8:$AW$107,$I66,'Project Scope'!$C$8:$C$107,DF$7),0)","v":0},{"$f":"IF(BH66=\"yes\",SUMIFS('Project Scope'!$AO$8:$AO$107,'Project Scope'!$AN$8:$AN$107,$I66,'Project Scope'!$C$8:$C$107,DG$7)+SUMIFS('Project Scope'!$AX$8:$AX$107,'Project Scope'!$AW$8:$AW$107,$I66,'Project Scope'!$C$8:$C$107,DG$7),0)","v":0},{"$f":"IF(BI66=\"yes\",SUMIFS('Project Scope'!$AO$8:$AO$107,'Project Scope'!$AN$8:$AN$107,$I66,'Project Scope'!$C$8:$C$107,DH$7)+SUMIFS('Project Scope'!$AX$8:$AX$107,'Project Scope'!$AW$8:$AW$107,$I66,'Project Scope'!$C$8:$C$107,DH$7),0)","v":0},{"$f":"IF(BJ66=\"yes\",SUMIFS('Project Scope'!$AO$8:$AO$107,'Project Scope'!$AN$8:$AN$107,$I66,'Project Scope'!$C$8:$C$107,DI$7)+SUMIFS('Project Scope'!$AX$8:$AX$107,'Project Scope'!$AW$8:$AW$107,$I66,'Project Scope'!$C$8:$C$107,DI$7),0)","v":0},{"$f":"IF(BK66=\"yes\",SUMIFS('Project Scope'!$AO$8:$AO$107,'Project Scope'!$AN$8:$AN$107,$I66,'Project Scope'!$C$8:$C$107,DJ$7)+SUMIFS('Project Scope'!$AX$8:$AX$107,'Project Scope'!$AW$8:$AW$107,$I66,'Project Scope'!$C$8:$C$107,DJ$7),0)","v":0},{"$f":"IF(BL66=\"yes\",SUMIFS('Project Scope'!$AO$8:$AO$107,'Project Scope'!$AN$8:$AN$107,$I66,'Project Scope'!$C$8:$C$107,DK$7)+SUMIFS('Project Scope'!$AX$8:$AX$107,'Project Scope'!$AW$8:$AW$107,$I66,'Project Scope'!$C$8:$C$107,DK$7),0)","v":0},null,"","","","","","","","","","","","","","","","","","","","","","","","","","","","","","","","","","","","","","","","","","","","","","","","","","",null,""]
[null,null,null,null,null,null,null,null,null,null,null,{"$f":"IF($C67=\"additional labor hours\",$K67*'Project Information'!$D$12,$K67*$J67)*IF($F67=\"Per Measure\",SUM($BN67:$DK67),1)","v":0},{"$f":"IF($C67=\"\",0,IF(VLOOKUP($C67,'Other Data'!$B$146:$C$156,2,FALSE)=\"M\",$L67,0))","v":0},0,null,null,null,null,null,null,null,null,null,null,null,null,null,null,null,null,null,null,null,null,null,null,null,null,null,null,null,null,null,null,null,null,null,null,null,null,null,null,null,null,null,null,null,null,null,null,null,null,null,null,null,{"$f":"IF(O67=\"yes\",SUMIFS('Project Scope'!$AO$8:$AO$107,'Project Scope'!$AN$8:$AN$107,$I67,'Project Scope'!$C$8:$C$107,BN$7)+SUMIFS('Project Scope'!$AX$8:$AX$107,'Project Scope'!$AW$8:$AW$107,$I67,'Project Scope'!$C$8:$C$107,BN$7),0)","v":0},{"$f":"IF(P67=\"yes\",SUMIFS('Project Scope'!$AO$8:$AO$107,'Project Scope'!$AN$8:$AN$107,$I67,'Project Scope'!$C$8:$C$107,BO$7)+SUMIFS('Project Scope'!$AX$8:$AX$107,'Project Scope'!$AW$8:$AW$107,$I67,'Project Scope'!$C$8:$C$107,BO$7),0)","v":0},{"$f":"IF(Q67=\"yes\",SUMIFS('Project Scope'!$AO$8:$AO$107,'Project Scope'!$AN$8:$AN$107,$I67,'Project Scope'!$C$8:$C$107,BP$7)+SUMIFS('Project Scope'!$AX$8:$AX$107,'Project Scope'!$AW$8:$AW$107,$I67,'Project Scope'!$C$8:$C$107,BP$7),0)","v":0},{"$f":"IF(R67=\"yes\",SUMIFS('Project Scope'!$AO$8:$AO$107,'Project Scope'!$AN$8:$AN$107,$I67,'Project Scope'!$C$8:$C$107,BQ$7)+SUMIFS('Project Scope'!$AX$8:$AX$107,'Project Scope'!$AW$8:$AW$107,$I67,'Project Scope'!$C$8:$C$107,BQ$7),0)","v":0},{"$f":"IF(S67=\"yes\",SUMIFS('Project Scope'!$AO$8:$AO$107,'Project Scope'!$AN$8:$AN$107,$I67,'Project Scope'!$C$8:$C$107,BR$7)+SUMIFS('Project Scope'!$AX$8:$AX$107,'Project Scope'!$AW$8:$AW$107,$I67,'Project Scope'!$C$8:$C$107,BR$7),0)","v":0},{"$f":"IF(T67=\"yes\",SUMIFS('Project Scope'!$AO$8:$AO$107,'Project Scope'!$AN$8:$AN$107,$I67,'Project Scope'!$C$8:$C$107,BS$7)+SUMIFS('Project Scope'!$AX$8:$AX$107,'Project Scope'!$AW$8:$AW$107,$I67,'Project Scope'!$C$8:$C$107,BS$7),0)","v":0},{"$f":"IF(U67=\"yes\",SUMIFS('Project Scope'!$AO$8:$AO$107,'Project Scope'!$AN$8:$AN$107,$I67,'Project Scope'!$C$8:$C$107,BT$7)+SUMIFS('Project Scope'!$AX$8:$AX$107,'Project Scope'!$AW$8:$AW$107,$I67,'Project Scope'!$C$8:$C$107,BT$7),0)","v":0},{"$f":"IF(V67=\"yes\",SUMIFS('Project Scope'!$AO$8:$AO$107,'Project Scope'!$AN$8:$AN$107,$I67,'Project Scope'!$C$8:$C$107,BU$7)+SUMIFS('Project Scope'!$AX$8:$AX$107,'Project Scope'!$AW$8:$AW$107,$I67,'Project Scope'!$C$8:$C$107,BU$7),0)","v":0},{"$f":"IF(W67=\"yes\",SUMIFS('Project Scope'!$AO$8:$AO$107,'Project Scope'!$AN$8:$AN$107,$I67,'Project Scope'!$C$8:$C$107,BV$7)+SUMIFS('Project Scope'!$AX$8:$AX$107,'Project Scope'!$AW$8:$AW$107,$I67,'Project Scope'!$C$8:$C$107,BV$7),0)","v":0},{"$f":"IF(X67=\"yes\",SUMIFS('Project Scope'!$AO$8:$AO$107,'Project Scope'!$AN$8:$AN$107,$I67,'Project Scope'!$C$8:$C$107,BW$7)+SUMIFS('Project Scope'!$AX$8:$AX$107,'Project Scope'!$AW$8:$AW$107,$I67,'Project Scope'!$C$8:$C$107,BW$7),0)","v":0},{"$f":"IF(Y67=\"yes\",SUMIFS('Project Scope'!$AO$8:$AO$107,'Project Scope'!$AN$8:$AN$107,$I67,'Project Scope'!$C$8:$C$107,BX$7)+SUMIFS('Project Scope'!$AX$8:$AX$107,'Project Scope'!$AW$8:$AW$107,$I67,'Project Scope'!$C$8:$C$107,BX$7),0)","v":0},{"$f":"IF(Z67=\"yes\",SUMIFS('Project Scope'!$AO$8:$AO$107,'Project Scope'!$AN$8:$AN$107,$I67,'Project Scope'!$C$8:$C$107,BY$7)+SUMIFS('Project Scope'!$AX$8:$AX$107,'Project Scope'!$AW$8:$AW$107,$I67,'Project Scope'!$C$8:$C$107,BY$7),0)","v":0},{"$f":"IF(AA67=\"yes\",SUMIFS('Project Scope'!$AO$8:$AO$107,'Project Scope'!$AN$8:$AN$107,$I67,'Project Scope'!$C$8:$C$107,BZ$7)+SUMIFS('Project Scope'!$AX$8:$AX$107,'Project Scope'!$AW$8:$AW$107,$I67,'Project Scope'!$C$8:$C$107,BZ$7),0)","v":0},{"$f":"IF(AB67=\"yes\",SUMIFS('Project Scope'!$AO$8:$AO$107,'Project Scope'!$AN$8:$AN$107,$I67,'Project Scope'!$C$8:$C$107,CA$7)+SUMIFS('Project Scope'!$AX$8:$AX$107,'Project Scope'!$AW$8:$AW$107,$I67,'Project Scope'!$C$8:$C$107,CA$7),0)","v":0},{"$f":"IF(AC67=\"yes\",SUMIFS('Project Scope'!$AO$8:$AO$107,'Project Scope'!$AN$8:$AN$107,$I67,'Project Scope'!$C$8:$C$107,CB$7)+SUMIFS('Project Scope'!$AX$8:$AX$107,'Project Scope'!$AW$8:$AW$107,$I67,'Project Scope'!$C$8:$C$107,CB$7),0)","v":0},{"$f":"IF(AD67=\"yes\",SUMIFS('Project Scope'!$AO$8:$AO$107,'Project Scope'!$AN$8:$AN$107,$I67,'Project Scope'!$C$8:$C$107,CC$7)+SUMIFS('Project Scope'!$AX$8:$AX$107,'Project Scope'!$AW$8:$AW$107,$I67,'Project Scope'!$C$8:$C$107,CC$7),0)","v":0},{"$f":"IF(AE67=\"yes\",SUMIFS('Project Scope'!$AO$8:$AO$107,'Project Scope'!$AN$8:$AN$107,$I67,'Project Scope'!$C$8:$C$107,CD$7)+SUMIFS('Project Scope'!$AX$8:$AX$107,'Project Scope'!$AW$8:$AW$107,$I67,'Project Scope'!$C$8:$C$107,CD$7),0)","v":0},{"$f":"IF(AF67=\"yes\",SUMIFS('Project Scope'!$AO$8:$AO$107,'Project Scope'!$AN$8:$AN$107,$I67,'Project Scope'!$C$8:$C$107,CE$7)+SUMIFS('Project Scope'!$AX$8:$AX$107,'Project Scope'!$AW$8:$AW$107,$I67,'Project Scope'!$C$8:$C$107,CE$7),0)","v":0},{"$f":"IF(AG67=\"yes\",SUMIFS('Project Scope'!$AO$8:$AO$107,'Project Scope'!$AN$8:$AN$107,$I67,'Project Scope'!$C$8:$C$107,CF$7)+SUMIFS('Project Scope'!$AX$8:$AX$107,'Project Scope'!$AW$8:$AW$107,$I67,'Project Scope'!$C$8:$C$107,CF$7),0)","v":0},{"$f":"IF(AH67=\"yes\",SUMIFS('Project Scope'!$AO$8:$AO$107,'Project Scope'!$AN$8:$AN$107,$I67,'Project Scope'!$C$8:$C$107,CG$7)+SUMIFS('Project Scope'!$AX$8:$AX$107,'Project Scope'!$AW$8:$AW$107,$I67,'Project Scope'!$C$8:$C$107,CG$7),0)","v":0},{"$f":"IF(AI67=\"yes\",SUMIFS('Project Scope'!$AO$8:$AO$107,'Project Scope'!$AN$8:$AN$107,$I67,'Project Scope'!$C$8:$C$107,CH$7)+SUMIFS('Project Scope'!$AX$8:$AX$107,'Project Scope'!$AW$8:$AW$107,$I67,'Project Scope'!$C$8:$C$107,CH$7),0)","v":0},{"$f":"IF(AJ67=\"yes\",SUMIFS('Project Scope'!$AO$8:$AO$107,'Project Scope'!$AN$8:$AN$107,$I67,'Project Scope'!$C$8:$C$107,CI$7)+SUMIFS('Project Scope'!$AX$8:$AX$107,'Project Scope'!$AW$8:$AW$107,$I67,'Project Scope'!$C$8:$C$107,CI$7),0)","v":0},{"$f":"IF(AK67=\"yes\",SUMIFS('Project Scope'!$AO$8:$AO$107,'Project Scope'!$AN$8:$AN$107,$I67,'Project Scope'!$C$8:$C$107,CJ$7)+SUMIFS('Project Scope'!$AX$8:$AX$107,'Project Scope'!$AW$8:$AW$107,$I67,'Project Scope'!$C$8:$C$107,CJ$7),0)","v":0},{"$f":"IF(AL67=\"yes\",SUMIFS('Project Scope'!$AO$8:$AO$107,'Project Scope'!$AN$8:$AN$107,$I67,'Project Scope'!$C$8:$C$107,CK$7)+SUMIFS('Project Scope'!$AX$8:$AX$107,'Project Scope'!$AW$8:$AW$107,$I67,'Project Scope'!$C$8:$C$107,CK$7),0)","v":0},{"$f":"IF(AM67=\"yes\",SUMIFS('Project Scope'!$AO$8:$AO$107,'Project Scope'!$AN$8:$AN$107,$I67,'Project Scope'!$C$8:$C$107,CL$7)+SUMIFS('Project Scope'!$AX$8:$AX$107,'Project Scope'!$AW$8:$AW$107,$I67,'Project Scope'!$C$8:$C$107,CL$7),0)","v":0},{"$f":"IF(AN67=\"yes\",SUMIFS('Project Scope'!$AO$8:$AO$107,'Project Scope'!$AN$8:$AN$107,$I67,'Project Scope'!$C$8:$C$107,CM$7)+SUMIFS('Project Scope'!$AX$8:$AX$107,'Project Scope'!$AW$8:$AW$107,$I67,'Project Scope'!$C$8:$C$107,CM$7),0)","v":0},{"$f":"IF(AO67=\"yes\",SUMIFS('Project Scope'!$AO$8:$AO$107,'Project Scope'!$AN$8:$AN$107,$I67,'Project Scope'!$C$8:$C$107,CN$7)+SUMIFS('Project Scope'!$AX$8:$AX$107,'Project Scope'!$AW$8:$AW$107,$I67,'Project Scope'!$C$8:$C$107,CN$7),0)","v":0},{"$f":"IF(AP67=\"yes\",SUMIFS('Project Scope'!$AO$8:$AO$107,'Project Scope'!$AN$8:$AN$107,$I67,'Project Scope'!$C$8:$C$107,CO$7)+SUMIFS('Project Scope'!$AX$8:$AX$107,'Project Scope'!$AW$8:$AW$107,$I67,'Project Scope'!$C$8:$C$107,CO$7),0)","v":0},{"$f":"IF(AQ67=\"yes\",SUMIFS('Project Scope'!$AO$8:$AO$107,'Project Scope'!$AN$8:$AN$107,$I67,'Project Scope'!$C$8:$C$107,CP$7)+SUMIFS('Project Scope'!$AX$8:$AX$107,'Project Scope'!$AW$8:$AW$107,$I67,'Project Scope'!$C$8:$C$107,CP$7),0)","v":0},{"$f":"IF(AR67=\"yes\",SUMIFS('Project Scope'!$AO$8:$AO$107,'Project Scope'!$AN$8:$AN$107,$I67,'Project Scope'!$C$8:$C$107,CQ$7)+SUMIFS('Project Scope'!$AX$8:$AX$107,'Project Scope'!$AW$8:$AW$107,$I67,'Project Scope'!$C$8:$C$107,CQ$7),0)","v":0},{"$f":"IF(AS67=\"yes\",SUMIFS('Project Scope'!$AO$8:$AO$107,'Project Scope'!$AN$8:$AN$107,$I67,'Project Scope'!$C$8:$C$107,CR$7)+SUMIFS('Project Scope'!$AX$8:$AX$107,'Project Scope'!$AW$8:$AW$107,$I67,'Project Scope'!$C$8:$C$107,CR$7),0)","v":0},{"$f":"IF(AT67=\"yes\",SUMIFS('Project Scope'!$AO$8:$AO$107,'Project Scope'!$AN$8:$AN$107,$I67,'Project Scope'!$C$8:$C$107,CS$7)+SUMIFS('Project Scope'!$AX$8:$AX$107,'Project Scope'!$AW$8:$AW$107,$I67,'Project Scope'!$C$8:$C$107,CS$7),0)","v":0},{"$f":"IF(AU67=\"yes\",SUMIFS('Project Scope'!$AO$8:$AO$107,'Project Scope'!$AN$8:$AN$107,$I67,'Project Scope'!$C$8:$C$107,CT$7)+SUMIFS('Project Scope'!$AX$8:$AX$107,'Project Scope'!$AW$8:$AW$107,$I67,'Project Scope'!$C$8:$C$107,CT$7),0)","v":0},{"$f":"IF(AV67=\"yes\",SUMIFS('Project Scope'!$AO$8:$AO$107,'Project Scope'!$AN$8:$AN$107,$I67,'Project Scope'!$C$8:$C$107,CU$7)+SUMIFS('Project Scope'!$AX$8:$AX$107,'Project Scope'!$AW$8:$AW$107,$I67,'Project Scope'!$C$8:$C$107,CU$7),0)","v":0},{"$f":"IF(AW67=\"yes\",SUMIFS('Project Scope'!$AO$8:$AO$107,'Project Scope'!$AN$8:$AN$107,$I67,'Project Scope'!$C$8:$C$107,CV$7)+SUMIFS('Project Scope'!$AX$8:$AX$107,'Project Scope'!$AW$8:$AW$107,$I67,'Project Scope'!$C$8:$C$107,CV$7),0)","v":0},{"$f":"IF(AX67=\"yes\",SUMIFS('Project Scope'!$AO$8:$AO$107,'Project Scope'!$AN$8:$AN$107,$I67,'Project Scope'!$C$8:$C$107,CW$7)+SUMIFS('Project Scope'!$AX$8:$AX$107,'Project Scope'!$AW$8:$AW$107,$I67,'Project Scope'!$C$8:$C$107,CW$7),0)","v":0},{"$f":"IF(AY67=\"yes\",SUMIFS('Project Scope'!$AO$8:$AO$107,'Project Scope'!$AN$8:$AN$107,$I67,'Project Scope'!$C$8:$C$107,CX$7)+SUMIFS('Project Scope'!$AX$8:$AX$107,'Project Scope'!$AW$8:$AW$107,$I67,'Project Scope'!$C$8:$C$107,CX$7),0)","v":0},{"$f":"IF(AZ67=\"yes\",SUMIFS('Project Scope'!$AO$8:$AO$107,'Project Scope'!$AN$8:$AN$107,$I67,'Project Scope'!$C$8:$C$107,CY$7)+SUMIFS('Project Scope'!$AX$8:$AX$107,'Project Scope'!$AW$8:$AW$107,$I67,'Project Scope'!$C$8:$C$107,CY$7),0)","v":0},{"$f":"IF(BA67=\"yes\",SUMIFS('Project Scope'!$AO$8:$AO$107,'Project Scope'!$AN$8:$AN$107,$I67,'Project Scope'!$C$8:$C$107,CZ$7)+SUMIFS('Project Scope'!$AX$8:$AX$107,'Project Scope'!$AW$8:$AW$107,$I67,'Project Scope'!$C$8:$C$107,CZ$7),0)","v":0},{"$f":"IF(BB67=\"yes\",SUMIFS('Project Scope'!$AO$8:$AO$107,'Project Scope'!$AN$8:$AN$107,$I67,'Project Scope'!$C$8:$C$107,DA$7)+SUMIFS('Project Scope'!$AX$8:$AX$107,'Project Scope'!$AW$8:$AW$107,$I67,'Project Scope'!$C$8:$C$107,DA$7),0)","v":0},{"$f":"IF(BC67=\"yes\",SUMIFS('Project Scope'!$AO$8:$AO$107,'Project Scope'!$AN$8:$AN$107,$I67,'Project Scope'!$C$8:$C$107,DB$7)+SUMIFS('Project Scope'!$AX$8:$AX$107,'Project Scope'!$AW$8:$AW$107,$I67,'Project Scope'!$C$8:$C$107,DB$7),0)","v":0},{"$f":"IF(BD67=\"yes\",SUMIFS('Project Scope'!$AO$8:$AO$107,'Project Scope'!$AN$8:$AN$107,$I67,'Project Scope'!$C$8:$C$107,DC$7)+SUMIFS('Project Scope'!$AX$8:$AX$107,'Project Scope'!$AW$8:$AW$107,$I67,'Project Scope'!$C$8:$C$107,DC$7),0)","v":0},{"$f":"IF(BE67=\"yes\",SUMIFS('Project Scope'!$AO$8:$AO$107,'Project Scope'!$AN$8:$AN$107,$I67,'Project Scope'!$C$8:$C$107,DD$7)+SUMIFS('Project Scope'!$AX$8:$AX$107,'Project Scope'!$AW$8:$AW$107,$I67,'Project Scope'!$C$8:$C$107,DD$7),0)","v":0},{"$f":"IF(BF67=\"yes\",SUMIFS('Project Scope'!$AO$8:$AO$107,'Project Scope'!$AN$8:$AN$107,$I67,'Project Scope'!$C$8:$C$107,DE$7)+SUMIFS('Project Scope'!$AX$8:$AX$107,'Project Scope'!$AW$8:$AW$107,$I67,'Project Scope'!$C$8:$C$107,DE$7),0)","v":0},{"$f":"IF(BG67=\"yes\",SUMIFS('Project Scope'!$AO$8:$AO$107,'Project Scope'!$AN$8:$AN$107,$I67,'Project Scope'!$C$8:$C$107,DF$7)+SUMIFS('Project Scope'!$AX$8:$AX$107,'Project Scope'!$AW$8:$AW$107,$I67,'Project Scope'!$C$8:$C$107,DF$7),0)","v":0},{"$f":"IF(BH67=\"yes\",SUMIFS('Project Scope'!$AO$8:$AO$107,'Project Scope'!$AN$8:$AN$107,$I67,'Project Scope'!$C$8:$C$107,DG$7)+SUMIFS('Project Scope'!$AX$8:$AX$107,'Project Scope'!$AW$8:$AW$107,$I67,'Project Scope'!$C$8:$C$107,DG$7),0)","v":0},{"$f":"IF(BI67=\"yes\",SUMIFS('Project Scope'!$AO$8:$AO$107,'Project Scope'!$AN$8:$AN$107,$I67,'Project Scope'!$C$8:$C$107,DH$7)+SUMIFS('Project Scope'!$AX$8:$AX$107,'Project Scope'!$AW$8:$AW$107,$I67,'Project Scope'!$C$8:$C$107,DH$7),0)","v":0},{"$f":"IF(BJ67=\"yes\",SUMIFS('Project Scope'!$AO$8:$AO$107,'Project Scope'!$AN$8:$AN$107,$I67,'Project Scope'!$C$8:$C$107,DI$7)+SUMIFS('Project Scope'!$AX$8:$AX$107,'Project Scope'!$AW$8:$AW$107,$I67,'Project Scope'!$C$8:$C$107,DI$7),0)","v":0},{"$f":"IF(BK67=\"yes\",SUMIFS('Project Scope'!$AO$8:$AO$107,'Project Scope'!$AN$8:$AN$107,$I67,'Project Scope'!$C$8:$C$107,DJ$7)+SUMIFS('Project Scope'!$AX$8:$AX$107,'Project Scope'!$AW$8:$AW$107,$I67,'Project Scope'!$C$8:$C$107,DJ$7),0)","v":0},{"$f":"IF(BL67=\"yes\",SUMIFS('Project Scope'!$AO$8:$AO$107,'Project Scope'!$AN$8:$AN$107,$I67,'Project Scope'!$C$8:$C$107,DK$7)+SUMIFS('Project Scope'!$AX$8:$AX$107,'Project Scope'!$AW$8:$AW$107,$I67,'Project Scope'!$C$8:$C$107,DK$7),0)","v":0},null,"","","","","","","","","","","","","","","","","","","","","","","","","","","","","","","","","","","","","","","","","","","","","","","","","","",null,""]
[]
[null,"Location-Level Ancillary Costs",null,null,null,null,null,null,null,null,null,null,null,null,"Applicable Locations"]
[]
[null,"Cost Description","Cost Category","Measure or Non-Measure Cost","Description","Per Location or Total?",null,null,null,"Cost","Quantity or Hours ","Total Cost","Total Allocated","Allocation Amount",{"$f":"IF('Project Information'!J$9<>\"\",'Project Information'!J$9,\"\")","v":" "},{"$f":"IF('Project Information'!K$9<>\"\",'Project Information'!K$9,\"\")","v":" "},{"$f":"IF('Project Information'!L$9<>\"\",'Project Information'!L$9,\"\")","v":" "},{"$f":"IF('Project Information'!M$9<>\"\",'Project Information'!M$9,\"\")","v":" "},{"$f":"IF('Project Information'!N$9<>\"\",'Project Information'!N$9,\"\")","v":" "},{"$f":"IF('Project Information'!O$9<>\"\",'Project Information'!O$9,\"\")","v":" "},{"$f":"IF('Project Information'!P$9<>\"\",'Project Information'!P$9,\"\")","v":" "},{"$f":"IF('Project Information'!Q$9<>\"\",'Project Information'!Q$9,\"\")","v":" "},{"$f":"IF('Project Information'!R$9<>\"\",'Project Information'!R$9,\"\")","v":" "},{"$f":"IF('Project Information'!S$9<>\"\",'Project Information'!S$9,\"\")","v":" "},{"$f":"IF('Project Information'!T$9<>\"\",'Project Information'!T$9,\"\")","v":" "},{"$f":"IF('Project Information'!U$9<>\"\",'Project Information'!U$9,\"\")","v":" "},{"$f":"IF('Project Information'!V$9<>\"\",'Project Information'!V$9,\"\")","v":" "},{"$f":"IF('Project Information'!W$9<>\"\",'Project Information'!W$9,\"\")","v":" "},{"$f":"IF('Project Information'!X$9<>\"\",'Project Information'!X$9,\"\")","v":" "},{"$f":"IF('Project Information'!Y$9<>\"\",'Project Information'!Y$9,\"\")","v":" "},{"$f":"IF('Project Information'!Z$9<>\"\",'Project Information'!Z$9,\"\")","v":" "},{"$f":"IF('Project Information'!AA$9<>\"\",'Project Information'!AA$9,\"\")","v":" "},{"$f":"IF('Project Information'!AB$9<>\"\",'Project Information'!AB$9,\"\")","v":" "},{"$f":"IF('Project Information'!AC$9<>\"\",'Project Information'!AC$9,\"\")","v":" "},{"$f":"IF('Project Information'!AD$9<>\"\",'Project Information'!AD$9,\"\")","v":" "},{"$f":"IF('Project Information'!AE$9<>\"\",'Project Information'!AE$9,\"\")","v":" "},{"$f":"IF('Project Information'!AF$9<>\"\",'Project Information'!AF$9,\"\")","v":" "},{"$f":"IF('Project Information'!AG$9<>\"\",'Project Information'!AG$9,\"\")","v":" "},{"$f":"IF('Project Information'!AH$9<>\"\",'Project Information'!AH$9,\"\")","v":" "},{"$f":"IF('Project Information'!AI$9<>\"\",'Project Information'!AI$9,\"\")","v":" "},{"$f":"IF('Project Information'!AJ$9<>\"\",'Project Information'!AJ$9,\"\")","v":" "},{"$f":"IF('Project Information'!AK$9<>\"\",'Project Information'!AK$9,\"\")","v":" "},{"$f":"IF('Project Information'!AL$9<>\"\",'Project Information'!AL$9,\"\")","v":" "},{"$f":"IF('Project Information'!AM$9<>\"\",'Project Information'!AM$9,\"\")","v":" "},{"$f":"IF('Project Information'!AN$9<>\"\",'Project Information'!AN$9,\"\")","v":" "},{"$f":"IF('Project Information'!AO$9<>\"\",'Project Information'!AO$9,\"\")","v":" "},{"$f":"IF('Project Information'!AP$9<>\"\",'Project Information'!AP$9,\"\")","v":" "},{"$f":"IF('Project Information'!AQ$9<>\"\",'Project Information'!AQ$9,\"\")","v":" "},{"$f":"IF('Project Information'!AR$9<>\"\",'Project Information'!AR$9,\"\")","v":" "},{"$f":"IF('Project Information'!AS$9<>\"\",'Project Information'!AS$9,\"\")","v":" "},{"$f":"IF('Project Information'!AT$9<>\"\",'Project Information'!AT$9,\"\")","v":" "},{"$f":"IF('Project Information'!AU$9<>\"\",'Project Information'!AU$9,\"\")","v":" "},{"$f":"IF('Project Information'!AV$9<>\"\",'Project Information'!AV$9,\"\")","v":" "},{"$f":"IF('Project Information'!AW$9<>\"\",'Project Information'!AW$9,\"\")","v":" "},{"$f":"IF('Project Information'!AX$9<>\"\",'Project Information'!AX$9,\"\")","v":" "},{"$f":"IF('Project Information'!AY$9<>\"\",'Project Information'!AY$9,\"\")","v":" "},{"$f":"IF('Project Information'!AZ$9<>\"\",'Project Information'!AZ$9,\"\")","v":" "},{"$f":"IF('Project Information'!BA$9<>\"\",'Project Information'!BA$9,\"\")","v":" "},{"$f":"IF('Project Information'!BB$9<>\"\",'Project Information'!BB$9,\"\")","v":" "},{"$f":"IF('Project Information'!BC$9<>\"\",'Project Information'!BC$9,\"\")","v":" "},{"$f":"IF('Project Information'!BD$9<>\"\",'Project Information'!BD$9,\"\")","v":" "},{"$f":"IF('Project Information'!BE$9<>\"\",'Project Information'!BE$9,\"\")","v":" "},{"$f":"IF('Project Information'!BF$9<>\"\",'Project Information'!BF$9,\"\")","v":" "},{"$f":"IF('Project Information'!BG$9<>\"\",'Project Information'!BG$9,\"\")","v":" "},null,{"$f":"IF('Project Information'!J$9<>\"\",'Project Information'!J$9,\"\")","v":" "},{"$f":"IF('Project Information'!K$9<>\"\",'Project Information'!K$9,\"\")","v":" "},{"$f":"IF('Project Information'!L$9<>\"\",'Project Information'!L$9,\"\")","v":" "},{"$f":"IF('Project Information'!M$9<>\"\",'Project Information'!M$9,\"\")","v":" "},{"$f":"IF('Project Information'!N$9<>\"\",'Project Information'!N$9,\"\")","v":" "},{"$f":"IF('Project Information'!O$9<>\"\",'Project Information'!O$9,\"\")","v":" "},{"$f":"IF('Project Information'!P$9<>\"\",'Project Information'!P$9,\"\")","v":" "},{"$f":"IF('Project Information'!Q$9<>\"\",'Project Information'!Q$9,\"\")","v":" "},{"$f":"IF('Project Information'!R$9<>\"\",'Project Information'!R$9,\"\")","v":" "},{"$f":"IF('Project Information'!S$9<>\"\",'Project Information'!S$9,\"\")","v":" "},{"$f":"IF('Project Information'!T$9<>\"\",'Project Information'!T$9,\"\")","v":" "},{"$f":"IF('Project Information'!U$9<>\"\",'Project Information'!U$9,\"\")","v":" "},{"$f":"IF('Project Information'!V$9<>\"\",'Project Information'!V$9,\"\")","v":" "},{"$f":"IF('Project Information'!W$9<>\"\",'Project Information'!W$9,\"\")","v":" "},{"$f":"IF('Project Information'!X$9<>\"\",'Project Information'!X$9,\"\")","v":" "},{"$f":"IF('Project Information'!Y$9<>\"\",'Project Information'!Y$9,\"\")","v":" "},{"$f":"IF('Project Information'!Z$9<>\"\",'Project Information'!Z$9,\"\")","v":" "},{"$f":"IF('Project Information'!AA$9<>\"\",'Project Information'!AA$9,\"\")","v":" "},{"$f":"IF('Project Information'!AB$9<>\"\",'Project Information'!AB$9,\"\")","v":" "},{"$f":"IF('Project Information'!AC$9<>\"\",'Project Information'!AC$9,\"\")","v":" "},{"$f":"IF('Project Information'!AD$9<>\"\",'Project Information'!AD$9,\"\")","v":" "},{"$f":"IF('Project Information'!AE$9<>\"\",'Project Information'!AE$9,\"\")","v":" "},{"$f":"IF('Project Information'!AF$9<>\"\",'Project Information'!AF$9,\"\")","v":" "},{"$f":"IF('Project Information'!AG$9<>\"\",'Project Information'!AG$9,\"\")","v":" "},{"$f":"IF('Project Information'!AH$9<>\"\",'Project Information'!AH$9,\"\")","v":" "},{"$f":"IF('Project Information'!AI$9<>\"\",'Project Information'!AI$9,\"\")","v":" "},{"$f":"IF('Project Information'!AJ$9<>\"\",'Project Information'!AJ$9,\"\")","v":" "},{"$f":"IF('Project Information'!AK$9<>\"\",'Project Information'!AK$9,\"\")","v":" "},{"$f":"IF('Project Information'!AL$9<>\"\",'Project Information'!AL$9,\"\")","v":" "},{"$f":"IF('Project Information'!AM$9<>\"\",'Project Information'!AM$9,\"\")","v":" "},{"$f":"IF('Project Information'!AN$9<>\"\",'Project Information'!AN$9,\"\")","v":" "},{"$f":"IF('Project Information'!AO$9<>\"\",'Project Information'!AO$9,\"\")","v":" "},{"$f":"IF('Project Information'!AP$9<>\"\",'Project Information'!AP$9,\"\")","v":" "},{"$f":"IF('Project Information'!AQ$9<>\"\",'Project Information'!AQ$9,\"\")","v":" "},{"$f":"IF('Project Information'!AR$9<>\"\",'Project Information'!AR$9,\"\")","v":" "},{"$f":"IF('Project Information'!AS$9<>\"\",'Project Information'!AS$9,\"\")","v":" "},{"$f":"IF('Project Information'!AT$9<>\"\",'Project Information'!AT$9,\"\")","v":" "},{"$f":"IF('Project Information'!AU$9<>\"\",'Project Information'!AU$9,\"\")","v":" "},{"$f":"IF('Project Information'!AV$9<>\"\",'Project Information'!AV$9,\"\")","v":" "},{"$f":"IF('Project Information'!AW$9<>\"\",'Project Information'!AW$9,\"\")","v":" "},{"$f":"IF('Project Information'!AX$9<>\"\",'Project Information'!AX$9,\"\")","v":" "},{"$f":"IF('Project Information'!AY$9<>\"\",'Project Information'!AY$9,\"\")","v":" "},{"$f":"IF('Project Information'!AZ$9<>\"\",'Project Information'!AZ$9,\"\")","v":" "},{"$f":"IF('Project Information'!BA$9<>\"\",'Project Information'!BA$9,\"\")","v":" "},{"$f":"IF('Project Information'!BB$9<>\"\",'Project Information'!BB$9,\"\")","v":" "},{"$f":"IF('Project Information'!BC$9<>\"\",'Project Information'!BC$9,\"\")","v":" "},{"$f":"IF('Project Information'!BD$9<>\"\",'Project Information'!BD$9,\"\")","v":" "},{"$f":"IF('Project Information'!BE$9<>\"\",'Project Information'!BE$9,\"\")","v":" "},{"$f":"IF('Project Information'!BF$9<>\"\",'Project Information'!BF$9,\"\")","v":" "},{"$f":"IF('Project Information'!BG$9<>\"\",'Project Information'!BG$9,\"\")","v":" "},null,{"$f":"IF('Project Information'!J$9<>\"\",'Project Information'!J$9,\"\")","v":" "},{"$f":"IF('Project Information'!K$9<>\"\",'Project Information'!K$9,\"\")","v":" "},{"$f":"IF('Project Information'!L$9<>\"\",'Project Information'!L$9,\"\")","v":" "},{"$f":"IF('Project Information'!M$9<>\"\",'Project Information'!M$9,\"\")","v":" "},{"$f":"IF('Project Information'!N$9<>\"\",'Project Information'!N$9,\"\")","v":" "},{"$f":"IF('Project Information'!O$9<>\"\",'Project Information'!O$9,\"\")","v":" "},{"$f":"IF('Project Information'!P$9<>\"\",'Project Information'!P$9,\"\")","v":" "},{"$f":"IF('Project Information'!Q$9<>\"\",'Project Information'!Q$9,\"\")","v":" "},{"$f":"IF('Project Information'!R$9<>\"\",'Project Information'!R$9,\"\")","v":" "},{"$f":"IF('Project Information'!S$9<>\"\",'Project Information'!S$9,\"\")","v":" "},{"$f":"IF('Project Information'!T$9<>\"\",'Project Information'!T$9,\"\")","v":" "},{"$f":"IF('Project Information'!U$9<>\"\",'Project Information'!U$9,\"\")","v":" "},{"$f":"IF('Project Information'!V$9<>\"\",'Project Information'!V$9,\"\")","v":" "},{"$f":"IF('Project Information'!W$9<>\"\",'Project Information'!W$9,\"\")","v":" "},{"$f":"IF('Project Information'!X$9<>\"\",'Project Information'!X$9,\"\")","v":" "},{"$f":"IF('Project Information'!Y$9<>\"\",'Project Information'!Y$9,\"\")","v":" "},{"$f":"IF('Project Information'!Z$9<>\"\",'Project Information'!Z$9,\"\")","v":" "},{"$f":"IF('Project Information'!AA$9<>\"\",'Project Information'!AA$9,\"\")","v":" "},{"$f":"IF('Project Information'!AB$9<>\"\",'Project Information'!AB$9,\"\")","v":" "},{"$f":"IF('Project Information'!AC$9<>\"\",'Project Information'!AC$9,\"\")","v":" "},{"$f":"IF('Project Information'!AD$9<>\"\",'Project Information'!AD$9,\"\")","v":" "},{"$f":"IF('Project Information'!AE$9<>\"\",'Project Information'!AE$9,\"\")","v":" "},{"$f":"IF('Project Information'!AF$9<>\"\",'Project Information'!AF$9,\"\")","v":" "},{"$f":"IF('Project Information'!AG$9<>\"\",'Project Information'!AG$9,\"\")","v":" "},{"$f":"IF('Project Information'!AH$9<>\"\",'Project Information'!AH$9,\"\")","v":" "},{"$f":"IF('Project Information'!AI$9<>\"\",'Project Information'!AI$9,\"\")","v":" "},{"$f":"IF('Project Information'!AJ$9<>\"\",'Project Information'!AJ$9,\"\")","v":" "},{"$f":"IF('Project Information'!AK$9<>\"\",'Project Information'!AK$9,\"\")","v":" "},{"$f":"IF('Project Information'!AL$9<>\"\",'Project Information'!AL$9,\"\")","v":" "},{"$f":"IF('Project Information'!AM$9<>\"\",'Project Information'!AM$9,\"\")","v":" "},{"$f":"IF('Project Information'!AN$9<>\"\",'Project Information'!AN$9,\"\")","v":" "},{"$f":"IF('Project Information'!AO$9<>\"\",'Project Information'!AO$9,\"\")","v":" "},{"$f":"IF('Project Information'!AP$9<>\"\",'Project Information'!AP$9,\"\")","v":" "},{"$f":"IF('Project Information'!AQ$9<>\"\",'Project Information'!AQ$9,\"\")","v":" "},{"$f":"IF('Project Information'!AR$9<>\"\",'Project Information'!AR$9,\"\")","v":" "},{"$f":"IF('Project Information'!AS$9<>\"\",'Project Information'!AS$9,\"\")","v":" "},{"$f":"IF('Project Information'!AT$9<>\"\",'Project Information'!AT$9,\"\")","v":" "},{"$f":"IF('Project Information'!AU$9<>\"\",'Project Information'!AU$9,\"\")","v":" "},{"$f":"IF('Project Information'!AV$9<>\"\",'Project Information'!AV$9,\"\")","v":" "},{"$f":"IF('Project Information'!AW$9<>\"\",'Project Information'!AW$9,\"\")","v":" "},{"$f":"IF('Project Information'!AX$9<>\"\",'Project Information'!AX$9,\"\")","v":" "},{"$f":"IF('Project Information'!AY$9<>\"\",'Project Information'!AY$9,\"\")","v":" "},{"$f":"IF('Project Information'!AZ$9<>\"\",'Project Information'!AZ$9,\"\")","v":" "},{"$f":"IF('Project Information'!BA$9<>\"\",'Project Information'!BA$9,\"\")","v":" "},{"$f":"IF('Project Information'!BB$9<>\"\",'Project Information'!BB$9,\"\")","v":" "},{"$f":"IF('Project Information'!BC$9<>\"\",'Project Information'!BC$9,\"\")","v":" "},{"$f":"IF('Project Information'!BD$9<>\"\",'Project Information'!BD$9,\"\")","v":" "},{"$f":"IF('Project Information'!BE$9<>\"\",'Project Information'!BE$9,\"\")","v":" "},{"$f":"IF('Project Information'!BF$9<>\"\",'Project Information'!BF$9,\"\")","v":" "},{"$f":"IF('Project Information'!BG$9<>\"\",'Project Information'!BG$9,\"\")","v":" "}]
[null,null,null,null,null,null,null,null,null,null,null,{"$f":"IF($C72=\"additional labor hours\",K72*'Project Information'!$D$12,K72*J72)*IF($F72=\"Per Location\",COUNTIF($O72:$BL72,\"Yes\"),1)","v":0},{"$f":"IF($C72=\"\",0,IF(VLOOKUP($C72,'Other Data'!$B$146:$C$156,2,FALSE)=\"M\",$L72,0))","v":0},{"$f":"IFERROR($M72/SUM(BN72:DK72),0)","v":0},null,null,null,null,null,null,null,null,null,null,null,null,null,null,null,null,null,null,null,null,null,null,null,null,null,null,null,null,null,null,null,null,null,null,null,null,null,null,null,null,null,null,null,null,null,null,null,null,null,null,null,{"$f":"IF(O72=\"yes\",SUMIFS('Project Scope'!$BN$8:$BN$107,'Project Scope'!$C$8:$C$107,BN$7)+SUMIFS('Project Scope'!$BQ$8:$BQ$107,'Project Scope'!$C$8:$C$107,BN$7),0)","v":0},{"$f":"IF(P72=\"yes\",SUMIFS('Project Scope'!$BN$8:$BN$107,'Project Scope'!$C$8:$C$107,BO$7)+SUMIFS('Project Scope'!$BQ$8:$BQ$107,'Project Scope'!$C$8:$C$107,BO$7),0)","v":0},{"$f":"IF(Q72=\"yes\",SUMIFS('Project Scope'!$BN$8:$BN$107,'Project Scope'!$C$8:$C$107,BP$7)+SUMIFS('Project Scope'!$BQ$8:$BQ$107,'Project Scope'!$C$8:$C$107,BP$7),0)","v":0},{"$f":"IF(R72=\"yes\",SUMIFS('Project Scope'!$BN$8:$BN$107,'Project Scope'!$C$8:$C$107,BQ$7)+SUMIFS('Project Scope'!$BQ$8:$BQ$107,'Project Scope'!$C$8:$C$107,BQ$7),0)","v":0},{"$f":"IF(S72=\"yes\",SUMIFS('Project Scope'!$BN$8:$BN$107,'Project Scope'!$C$8:$C$107,BR$7)+SUMIFS('Project Scope'!$BQ$8:$BQ$107,'Project Scope'!$C$8:$C$107,BR$7),0)","v":0},{"$f":"IF(T72=\"yes\",SUMIFS('Project Scope'!$BN$8:$BN$107,'Project Scope'!$C$8:$C$107,BS$7)+SUMIFS('Project Scope'!$BQ$8:$BQ$107,'Project Scope'!$C$8:$C$107,BS$7),0)","v":0},{"$f":"IF(U72=\"yes\",SUMIFS('Project Scope'!$BN$8:$BN$107,'Project Scope'!$C$8:$C$107,BT$7)+SUMIFS('Project Scope'!$BQ$8:$BQ$107,'Project Scope'!$C$8:$C$107,BT$7),0)","v":0},{"$f":"IF(V72=\"yes\",SUMIFS('Project Scope'!$BN$8:$BN$107,'Project Scope'!$C$8:$C$107,BU$7)+SUMIFS('Project Scope'!$BQ$8:$BQ$107,'Project Scope'!$C$8:$C$107,BU$7),0)","v":0},{"$f":"IF(W72=\"yes\",SUMIFS('Project Scope'!$BN$8:$BN$107,'Project Scope'!$C$8:$C$107,BV$7)+SUMIFS('Project Scope'!$BQ$8:$BQ$107,'Project Scope'!$C$8:$C$107,BV$7),0)","v":0},{"$f":"IF(X72=\"yes\",SUMIFS('Project Scope'!$BN$8:$BN$107,'Project Scope'!$C$8:$C$107,BW$7)+SUMIFS('Project Scope'!$BQ$8:$BQ$107,'Project Scope'!$C$8:$C$107,BW$7),0)","v":0},{"$f":"IF(Y72=\"yes\",SUMIFS('Project Scope'!$BN$8:$BN$107,'Project Scope'!$C$8:$C$107,BX$7)+SUMIFS('Project Scope'!$BQ$8:$BQ$107,'Project Scope'!$C$8:$C$107,BX$7),0)","v":0},{"$f":"IF(Z72=\"yes\",SUMIFS('Project Scope'!$BN$8:$BN$107,'Project Scope'!$C$8:$C$107,BY$7)+SUMIFS('Project Scope'!$BQ$8:$BQ$107,'Project Scope'!$C$8:$C$107,BY$7),0)","v":0},{"$f":"IF(AA72=\"yes\",SUMIFS('Project Scope'!$BN$8:$BN$107,'Project Scope'!$C$8:$C$107,BZ$7)+SUMIFS('Project Scope'!$BQ$8:$BQ$107,'Project Scope'!$C$8:$C$107,BZ$7),0)","v":0},{"$f":"IF(AB72=\"yes\",SUMIFS('Project Scope'!$BN$8:$BN$107,'Project Scope'!$C$8:$C$107,CA$7)+SUMIFS('Project Scope'!$BQ$8:$BQ$107,'Project Scope'!$C$8:$C$107,CA$7),0)","v":0},{"$f":"IF(AC72=\"yes\",SUMIFS('Project Scope'!$BN$8:$BN$107,'Project Scope'!$C$8:$C$107,CB$7)+SUMIFS('Project Scope'!$BQ$8:$BQ$107,'Project Scope'!$C$8:$C$107,CB$7),0)","v":0},{"$f":"IF(AD72=\"yes\",SUMIFS('Project Scope'!$BN$8:$BN$107,'Project Scope'!$C$8:$C$107,CC$7)+SUMIFS('Project Scope'!$BQ$8:$BQ$107,'Project Scope'!$C$8:$C$107,CC$7),0)","v":0},{"$f":"IF(AE72=\"yes\",SUMIFS('Project Scope'!$BN$8:$BN$107,'Project Scope'!$C$8:$C$107,CD$7)+SUMIFS('Project Scope'!$BQ$8:$BQ$107,'Project Scope'!$C$8:$C$107,CD$7),0)","v":0},{"$f":"IF(AF72=\"yes\",SUMIFS('Project Scope'!$BN$8:$BN$107,'Project Scope'!$C$8:$C$107,CE$7)+SUMIFS('Project Scope'!$BQ$8:$BQ$107,'Project Scope'!$C$8:$C$107,CE$7),0)","v":0},{"$f":"IF(AG72=\"yes\",SUMIFS('Project Scope'!$BN$8:$BN$107,'Project Scope'!$C$8:$C$107,CF$7)+SUMIFS('Project Scope'!$BQ$8:$BQ$107,'Project Scope'!$C$8:$C$107,CF$7),0)","v":0},{"$f":"IF(AH72=\"yes\",SUMIFS('Project Scope'!$BN$8:$BN$107,'Project Scope'!$C$8:$C$107,CG$7)+SUMIFS('Project Scope'!$BQ$8:$BQ$107,'Project Scope'!$C$8:$C$107,CG$7),0)","v":0},{"$f":"IF(AI72=\"yes\",SUMIFS('Project Scope'!$BN$8:$BN$107,'Project Scope'!$C$8:$C$107,CH$7)+SUMIFS('Project Scope'!$BQ$8:$BQ$107,'Project Scope'!$C$8:$C$107,CH$7),0)","v":0},{"$f":"IF(AJ72=\"yes\",SUMIFS('Project Scope'!$BN$8:$BN$107,'Project Scope'!$C$8:$C$107,CI$7)+SUMIFS('Project Scope'!$BQ$8:$BQ$107,'Project Scope'!$C$8:$C$107,CI$7),0)","v":0},{"$f":"IF(AK72=\"yes\",SUMIFS('Project Scope'!$BN$8:$BN$107,'Project Scope'!$C$8:$C$107,CJ$7)+SUMIFS('Project Scope'!$BQ$8:$BQ$107,'Project Scope'!$C$8:$C$107,CJ$7),0)","v":0},{"$f":"IF(AL72=\"yes\",SUMIFS('Project Scope'!$BN$8:$BN$107,'Project Scope'!$C$8:$C$107,CK$7)+SUMIFS('Project Scope'!$BQ$8:$BQ$107,'Project Scope'!$C$8:$C$107,CK$7),0)","v":0},{"$f":"IF(AM72=\"yes\",SUMIFS('Project Scope'!$BN$8:$BN$107,'Project Scope'!$C$8:$C$107,CL$7)+SUMIFS('Project Scope'!$BQ$8:$BQ$107,'Project Scope'!$C$8:$C$107,CL$7),0)","v":0},{"$f":"IF(AN72=\"yes\",SUMIFS('Project Scope'!$BN$8:$BN$107,'Project Scope'!$C$8:$C$107,CM$7)+SUMIFS('Project Scope'!$BQ$8:$BQ$107,'Project Scope'!$C$8:$C$107,CM$7),0)","v":0},{"$f":"IF(AO72=\"yes\",SUMIFS('Project Scope'!$BN$8:$BN$107,'Project Scope'!$C$8:$C$107,CN$7)+SUMIFS('Project Scope'!$BQ$8:$BQ$107,'Project Scope'!$C$8:$C$107,CN$7),0)","v":0},{"$f":"IF(AP72=\"yes\",SUMIFS('Project Scope'!$BN$8:$BN$107,'Project Scope'!$C$8:$C$107,CO$7)+SUMIFS('Project Scope'!$BQ$8:$BQ$107,'Project Scope'!$C$8:$C$107,CO$7),0)","v":0},{"$f":"IF(AQ72=\"yes\",SUMIFS('Project Scope'!$BN$8:$BN$107,'Project Scope'!$C$8:$C$107,CP$7)+SUMIFS('Project Scope'!$BQ$8:$BQ$107,'Project Scope'!$C$8:$C$107,CP$7),0)","v":0},{"$f":"IF(AR72=\"yes\",SUMIFS('Project Scope'!$BN$8:$BN$107,'Project Scope'!$C$8:$C$107,CQ$7)+SUMIFS('Project Scope'!$BQ$8:$BQ$107,'Project Scope'!$C$8:$C$107,CQ$7),0)","v":0},{"$f":"IF(AS72=\"yes\",SUMIFS('Project Scope'!$BN$8:$BN$107,'Project Scope'!$C$8:$C$107,CR$7)+SUMIFS('Project Scope'!$BQ$8:$BQ$107,'Project Scope'!$C$8:$C$107,CR$7),0)","v":0},{"$f":"IF(AT72=\"yes\",SUMIFS('Project Scope'!$BN$8:$BN$107,'Project Scope'!$C$8:$C$107,CS$7)+SUMIFS('Project Scope'!$BQ$8:$BQ$107,'Project Scope'!$C$8:$C$107,CS$7),0)","v":0},{"$f":"IF(AU72=\"yes\",SUMIFS('Project Scope'!$BN$8:$BN$107,'Project Scope'!$C$8:$C$107,CT$7)+SUMIFS('Project Scope'!$BQ$8:$BQ$107,'Project Scope'!$C$8:$C$107,CT$7),0)","v":0},{"$f":"IF(AV72=\"yes\",SUMIFS('Project Scope'!$BN$8:$BN$107,'Project Scope'!$C$8:$C$107,CU$7)+SUMIFS('Project Scope'!$BQ$8:$BQ$107,'Project Scope'!$C$8:$C$107,CU$7),0)","v":0},{"$f":"IF(AW72=\"yes\",SUMIFS('Project Scope'!$BN$8:$BN$107,'Project Scope'!$C$8:$C$107,CV$7)+SUMIFS('Project Scope'!$BQ$8:$BQ$107,'Project Scope'!$C$8:$C$107,CV$7),0)","v":0},{"$f":"IF(AX72=\"yes\",SUMIFS('Project Scope'!$BN$8:$BN$107,'Project Scope'!$C$8:$C$107,CW$7)+SUMIFS('Project Scope'!$BQ$8:$BQ$107,'Project Scope'!$C$8:$C$107,CW$7),0)","v":0},{"$f":"IF(AY72=\"yes\",SUMIFS('Project Scope'!$BN$8:$BN$107,'Project Scope'!$C$8:$C$107,CX$7)+SUMIFS('Project Scope'!$BQ$8:$BQ$107,'Project Scope'!$C$8:$C$107,CX$7),0)","v":0},{"$f":"IF(AZ72=\"yes\",SUMIFS('Project Scope'!$BN$8:$BN$107,'Project Scope'!$C$8:$C$107,CY$7)+SUMIFS('Project Scope'!$BQ$8:$BQ$107,'Project Scope'!$C$8:$C$107,CY$7),0)","v":0},{"$f":"IF(BA72=\"yes\",SUMIFS('Project Scope'!$BN$8:$BN$107,'Project Scope'!$C$8:$C$107,CZ$7)+SUMIFS('Project Scope'!$BQ$8:$BQ$107,'Project Scope'!$C$8:$C$107,CZ$7),0)","v":0},{"$f":"IF(BB72=\"yes\",SUMIFS('Project Scope'!$BN$8:$BN$107,'Project Scope'!$C$8:$C$107,DA$7)+SUMIFS('Project Scope'!$BQ$8:$BQ$107,'Project Scope'!$C$8:$C$107,DA$7),0)","v":0},{"$f":"IF(BC72=\"yes\",SUMIFS('Project Scope'!$BN$8:$BN$107,'Project Scope'!$C$8:$C$107,DB$7)+SUMIFS('Project Scope'!$BQ$8:$BQ$107,'Project Scope'!$C$8:$C$107,DB$7),0)","v":0},{"$f":"IF(BD72=\"yes\",SUMIFS('Project Scope'!$BN$8:$BN$107,'Project Scope'!$C$8:$C$107,DC$7)+SUMIFS('Project Scope'!$BQ$8:$BQ$107,'Project Scope'!$C$8:$C$107,DC$7),0)","v":0},{"$f":"IF(BE72=\"yes\",SUMIFS('Project Scope'!$BN$8:$BN$107,'Project Scope'!$C$8:$C$107,DD$7)+SUMIFS('Project Scope'!$BQ$8:$BQ$107,'Project Scope'!$C$8:$C$107,DD$7),0)","v":0},{"$f":"IF(BF72=\"yes\",SUMIFS('Project Scope'!$BN$8:$BN$107,'Project Scope'!$C$8:$C$107,DE$7)+SUMIFS('Project Scope'!$BQ$8:$BQ$107,'Project Scope'!$C$8:$C$107,DE$7),0)","v":0},{"$f":"IF(BG72=\"yes\",SUMIFS('Project Scope'!$BN$8:$BN$107,'Project Scope'!$C$8:$C$107,DF$7)+SUMIFS('Project Scope'!$BQ$8:$BQ$107,'Project Scope'!$C$8:$C$107,DF$7),0)","v":0},{"$f":"IF(BH72=\"yes\",SUMIFS('Project Scope'!$BN$8:$BN$107,'Project Scope'!$C$8:$C$107,DG$7)+SUMIFS('Project Scope'!$BQ$8:$BQ$107,'Project Scope'!$C$8:$C$107,DG$7),0)","v":0},{"$f":"IF(BI72=\"yes\",SUMIFS('Project Scope'!$BN$8:$BN$107,'Project Scope'!$C$8:$C$107,DH$7)+SUMIFS('Project Scope'!$BQ$8:$BQ$107,'Project Scope'!$C$8:$C$107,DH$7),0)","v":0},{"$f":"IF(BJ72=\"yes\",SUMIFS('Project Scope'!$BN$8:$BN$107,'Project Scope'!$C$8:$C$107,DI$7)+SUMIFS('Project Scope'!$BQ$8:$BQ$107,'Project Scope'!$C$8:$C$107,DI$7),0)","v":0},{"$f":"IF(BK72=\"yes\",SUMIFS('Project Scope'!$BN$8:$BN$107,'Project Scope'!$C$8:$C$107,DJ$7)+SUMIFS('Project Scope'!$BQ$8:$BQ$107,'Project Scope'!$C$8:$C$107,DJ$7),0)","v":0},{"$f":"IF(BL72=\"yes\",SUMIFS('Project Scope'!$BN$8:$BN$107,'Project Scope'!$C$8:$C$107,DK$7)+SUMIFS('Project Scope'!$BQ$8:$BQ$107,'Project Scope'!$C$8:$C$107,DK$7),0)","v":0},null,{"$f":"IF(BN72>0,DM$71,\"\")","v":""},"","","","","","","","","",{"$f":"IF(BX72>0,DW$71,\"\")","v":""},"","","","","","","","","","","","","","","","","","","","","","","","","","","","","","","","","","","","","","","",null,{"$f":"IF($DM72<>\"\",\"xx\"&$DM72&\"xx\",\"\")&IF($DN72<>\"\",\"xx\"&$DN72&\"xx\",\"\")&IF($DO72<>\"\",\"xx\"&$DO72&\"xx\",\"\")&IF($DP72<>\"\",\"xx\"&$DP72&\"xx\",\"\")&IF($DQ72<>\"\",\"xx\"&$DQ72&\"xx\",\"\")&IF($DR72<>\"\",\"xx\"&$DR72&\"xx\",\"\")&IF($DS72<>\"\",\"xx\"&$DS72&\"xx\",\"\")&IF($DT72<>\"\",\"xx\"&$DT72&\"xx\",\"\")&IF($DU72<>\"\",\"xx\"&$DU72&\"xx\",\"\")&IF($DV72<>\"\",\"xx\"&$DV72&\"xx\",\"\")&IF($DW72<>\"\",\"xx\"&$DW72&\"xx\",\"\")&IF($DX72<>\"\",\"xx\"&$DX72&\"xx\",\"\")&IF($DY72<>\"\",\"xx\"&$DY72&\"xx\",\"\")&IF($DZ72<>\"\",\"xx\"&$DZ72&\"xx\",\"\")&IF($EA72<>\"\",\"xx\"&$EA72&\"xx\",\"\")&IF($EB72<>\"\",\"xx\"&$EB72&\"xx\",\"\")&IF($EC72<>\"\",\"xx\"&$EC72&\"xx\",\"\")&IF($ED72<>\"\",\"xx\"&$ED72&\"xx\",\"\")&IF($EE72<>\"\",\"xx\"&$EE72&\"xx\",\"\")&IF($EF72<>\"\",\"xx\"&$EF72&\"xx\",\"\")&IF($EG72<>\"\",\"xx\"&$EG72&\"xx\",\"\")&IF($EH72<>\"\",\"xx\"&$EH72&\"xx\",\"\")&IF($EI72<>\"\",\"xx\"&$EI72&\"xx\",\"\")&IF($EJ72<>\"\",\"xx\"&$EJ72&\"xx\",\"\")&IF($EK72<>\"\",\"xx\"&$EK72&\"xx\",\"\")&IF($EL72<>\"\",\"xx\"&$EL72&\"xx\",\"\")&IF($EM72<>\"\",\"xx\"&$EM72&\"xx\",\"\")&IF($EN72<>\"\",\"xx\"&$EN72&\"xx\",\"\")&IF($EO72<>\"\",\"xx\"&$EO72&\"xx\",\"\")&IF($EP72<>\"\",\"xx\"&$EP72&\"xx\",\"\")&IF($EQ72<>\"\",\"xx\"&$EQ72&\"xx\",\"\")&IF($ER72<>\"\",\"xx\"&$ER72&\"xx\",\"\")&IF($ES72<>\"\",\"xx\"&$ES72&\"xx\",\"\")&IF($ET72<>\"\",\"xx\"&$ET72&\"xx\",\"\")&IF($EU72<>\"\",\"xx\"&$EU72&\"xx\",\"\")&IF($EV72<>\"\",\"xx\"&$EV72&\"xx\",\"\")&IF($EW72<>\"\",\"xx\"&$EW72&\"xx\",\"\")&IF($EX72<>\"\",\"xx\"&$EX72&\"xx\",\"\")&IF($EY72<>\"\",\"xx\"&$EY72&\"xx\",\"\")&IF($EZ72<>\"\",\"xx\"&$EZ72&\"xx\",\"\")&IF($FA72<>\"\",\"xx\"&$FA72&\"xx\",\"\")&IF($FB72<>\"\",\"xx\"&$FB72&\"xx\",\"\")&IF($FC72<>\"\",\"xx\"&$FC72&\"xx\",\"\")&IF($FD72<>\"\",\"xx\"&$FD72&\"xx\",\"\")&IF($FE72<>\"\",\"xx\"&$FE72&\"xx\",\"\")&IF($FF72<>\"\",\"xx\"&$FF72&\"xx\",\"\")&IF($FG72<>\"\",\"xx\"&$FG72&\"xx\",\"\")&IF($FH72<>\"\",\"xx\"&$FH72&\"xx\",\"\")&IF($FI72<>\"\",\"xx\"&$FI72&\"xx\",\"\")","v":""}]
[null,null,null,null,null,null,null,null,null,null,null,{"$f":"IF($C73=\"additional labor hours\",K73*'Project Information'!$D$12,K73*J73)*IF($F73=\"Per Location\",COUNTIF($O73:$BL73,\"Yes\"),1)","v":0},{"$f":"IF($C73=\"\",0,IF(VLOOKUP($C73,'Other Data'!$B$146:$C$156,2,FALSE)=\"M\",$L73,0))","v":0},{"$f":"IFERROR($M73/SUM(BN73:DK73),0)","v":0},null,null,null,null,null,null,null,null,null,null,"Yes",null,null,null,null,null,null,null,null,null,null,null,null,null,null,null,null,null,null,null,null,null,null,null,null,null,null,null,null,null,null,null,null,null,null,null,null,null,null,null,null,{"$f":"IF(O73=\"yes\",SUMIFS('Project Scope'!$BN$8:$BN$107,'Project Scope'!$C$8:$C$107,BN$7)+SUMIFS('Project Scope'!$BQ$8:$BQ$107,'Project Scope'!$C$8:$C$107,BN$7),0)","v":0},{"$f":"IF(P73=\"yes\",SUMIFS('Project Scope'!$BN$8:$BN$107,'Project Scope'!$C$8:$C$107,BO$7)+SUMIFS('Project Scope'!$BQ$8:$BQ$107,'Project Scope'!$C$8:$C$107,BO$7),0)","v":0},{"$f":"IF(Q73=\"yes\",SUMIFS('Project Scope'!$BN$8:$BN$107,'Project Scope'!$C$8:$C$107,BP$7)+SUMIFS('Project Scope'!$BQ$8:$BQ$107,'Project Scope'!$C$8:$C$107,BP$7),0)","v":0},{"$f":"IF(R73=\"yes\",SUMIFS('Project Scope'!$BN$8:$BN$107,'Project Scope'!$C$8:$C$107,BQ$7)+SUMIFS('Project Scope'!$BQ$8:$BQ$107,'Project Scope'!$C$8:$C$107,BQ$7),0)","v":0},{"$f":"IF(S73=\"yes\",SUMIFS('Project Scope'!$BN$8:$BN$107,'Project Scope'!$C$8:$C$107,BR$7)+SUMIFS('Project Scope'!$BQ$8:$BQ$107,'Project Scope'!$C$8:$C$107,BR$7),0)","v":0},{"$f":"IF(T73=\"yes\",SUMIFS('Project Scope'!$BN$8:$BN$107,'Project Scope'!$C$8:$C$107,BS$7)+SUMIFS('Project Scope'!$BQ$8:$BQ$107,'Project Scope'!$C$8:$C$107,BS$7),0)","v":0},{"$f":"IF(U73=\"yes\",SUMIFS('Project Scope'!$BN$8:$BN$107,'Project Scope'!$C$8:$C$107,BT$7)+SUMIFS('Project Scope'!$BQ$8:$BQ$107,'Project Scope'!$C$8:$C$107,BT$7),0)","v":0},{"$f":"IF(V73=\"yes\",SUMIFS('Project Scope'!$BN$8:$BN$107,'Project Scope'!$C$8:$C$107,BU$7)+SUMIFS('Project Scope'!$BQ$8:$BQ$107,'Project Scope'!$C$8:$C$107,BU$7),0)","v":0},{"$f":"IF(W73=\"yes\",SUMIFS('Project Scope'!$BN$8:$BN$107,'Project Scope'!$C$8:$C$107,BV$7)+SUMIFS('Project Scope'!$BQ$8:$BQ$107,'Project Scope'!$C$8:$C$107,BV$7),0)","v":0},{"$f":"IF(X73=\"yes\",SUMIFS('Project Scope'!$BN$8:$BN$107,'Project Scope'!$C$8:$C$107,BW$7)+SUMIFS('Project Scope'!$BQ$8:$BQ$107,'Project Scope'!$C$8:$C$107,BW$7),0)","v":0},{"$f":"IF(Y73=\"yes\",SUMIFS('Project Scope'!$BN$8:$BN$107,'Project Scope'!$C$8:$C$107,BX$7)+SUMIFS('Project Scope'!$BQ$8:$BQ$107,'Project Scope'!$C$8:$C$107,BX$7),0)","v":0},{"$f":"IF(Z73=\"yes\",SUMIFS('Project Scope'!$BN$8:$BN$107,'Project Scope'!$C$8:$C$107,BY$7)+SUMIFS('Project Scope'!$BQ$8:$BQ$107,'Project Scope'!$C$8:$C$107,BY$7),0)","v":0},{"$f":"IF(AA73=\"yes\",SUMIFS('Project Scope'!$BN$8:$BN$107,'Project Scope'!$C$8:$C$107,BZ$7)+SUMIFS('Project Scope'!$BQ$8:$BQ$107,'Project Scope'!$C$8:$C$107,BZ$7),0)","v":0},{"$f":"IF(AB73=\"yes\",SUMIFS('Project Scope'!$BN$8:$BN$107,'Project Scope'!$C$8:$C$107,CA$7)+SUMIFS('Project Scope'!$BQ$8:$BQ$107,'Project Scope'!$C$8:$C$107,CA$7),0)","v":0},{"$f":"IF(AC73=\"yes\",SUMIFS('Project Scope'!$BN$8:$BN$107,'Project Scope'!$C$8:$C$107,CB$7)+SUMIFS('Project Scope'!$BQ$8:$BQ$107,'Project Scope'!$C$8:$C$107,CB$7),0)","v":0},{"$f":"IF(AD73=\"yes\",SUMIFS('Project Scope'!$BN$8:$BN$107,'Project Scope'!$C$8:$C$107,CC$7)+SUMIFS('Project Scope'!$BQ$8:$BQ$107,'Project Scope'!$C$8:$C$107,CC$7),0)","v":0},{"$f":"IF(AE73=\"yes\",SUMIFS('Project Scope'!$BN$8:$BN$107,'Project Scope'!$C$8:$C$107,CD$7)+SUMIFS('Project Scope'!$BQ$8:$BQ$107,'Project Scope'!$C$8:$C$107,CD$7),0)","v":0},{"$f":"IF(AF73=\"yes\",SUMIFS('Project Scope'!$BN$8:$BN$107,'Project Scope'!$C$8:$C$107,CE$7)+SUMIFS('Project Scope'!$BQ$8:$BQ$107,'Project Scope'!$C$8:$C$107,CE$7),0)","v":0},{"$f":"IF(AG73=\"yes\",SUMIFS('Project Scope'!$BN$8:$BN$107,'Project Scope'!$C$8:$C$107,CF$7)+SUMIFS('Project Scope'!$BQ$8:$BQ$107,'Project Scope'!$C$8:$C$107,CF$7),0)","v":0},{"$f":"IF(AH73=\"yes\",SUMIFS('Project Scope'!$BN$8:$BN$107,'Project Scope'!$C$8:$C$107,CG$7)+SUMIFS('Project Scope'!$BQ$8:$BQ$107,'Project Scope'!$C$8:$C$107,CG$7),0)","v":0},{"$f":"IF(AI73=\"yes\",SUMIFS('Project Scope'!$BN$8:$BN$107,'Project Scope'!$C$8:$C$107,CH$7)+SUMIFS('Project Scope'!$BQ$8:$BQ$107,'Project Scope'!$C$8:$C$107,CH$7),0)","v":0},{"$f":"IF(AJ73=\"yes\",SUMIFS('Project Scope'!$BN$8:$BN$107,'Project Scope'!$C$8:$C$107,CI$7)+SUMIFS('Project Scope'!$BQ$8:$BQ$107,'Project Scope'!$C$8:$C$107,CI$7),0)","v":0},{"$f":"IF(AK73=\"yes\",SUMIFS('Project Scope'!$BN$8:$BN$107,'Project Scope'!$C$8:$C$107,CJ$7)+SUMIFS('Project Scope'!$BQ$8:$BQ$107,'Project Scope'!$C$8:$C$107,CJ$7),0)","v":0},{"$f":"IF(AL73=\"yes\",SUMIFS('Project Scope'!$BN$8:$BN$107,'Project Scope'!$C$8:$C$107,CK$7)+SUMIFS('Project Scope'!$BQ$8:$BQ$107,'Project Scope'!$C$8:$C$107,CK$7),0)","v":0},{"$f":"IF(AM73=\"yes\",SUMIFS('Project Scope'!$BN$8:$BN$107,'Project Scope'!$C$8:$C$107,CL$7)+SUMIFS('Project Scope'!$BQ$8:$BQ$107,'Project Scope'!$C$8:$C$107,CL$7),0)","v":0},{"$f":"IF(AN73=\"yes\",SUMIFS('Project Scope'!$BN$8:$BN$107,'Project Scope'!$C$8:$C$107,CM$7)+SUMIFS('Project Scope'!$BQ$8:$BQ$107,'Project Scope'!$C$8:$C$107,CM$7),0)","v":0},{"$f":"IF(AO73=\"yes\",SUMIFS('Project Scope'!$BN$8:$BN$107,'Project Scope'!$C$8:$C$107,CN$7)+SUMIFS('Project Scope'!$BQ$8:$BQ$107,'Project Scope'!$C$8:$C$107,CN$7),0)","v":0},{"$f":"IF(AP73=\"yes\",SUMIFS('Project Scope'!$BN$8:$BN$107,'Project Scope'!$C$8:$C$107,CO$7)+SUMIFS('Project Scope'!$BQ$8:$BQ$107,'Project Scope'!$C$8:$C$107,CO$7),0)","v":0},{"$f":"IF(AQ73=\"yes\",SUMIFS('Project Scope'!$BN$8:$BN$107,'Project Scope'!$C$8:$C$107,CP$7)+SUMIFS('Project Scope'!$BQ$8:$BQ$107,'Project Scope'!$C$8:$C$107,CP$7),0)","v":0},{"$f":"IF(AR73=\"yes\",SUMIFS('Project Scope'!$BN$8:$BN$107,'Project Scope'!$C$8:$C$107,CQ$7)+SUMIFS('Project Scope'!$BQ$8:$BQ$107,'Project Scope'!$C$8:$C$107,CQ$7),0)","v":0},{"$f":"IF(AS73=\"yes\",SUMIFS('Project Scope'!$BN$8:$BN$107,'Project Scope'!$C$8:$C$107,CR$7)+SUMIFS('Project Scope'!$BQ$8:$BQ$107,'Project Scope'!$C$8:$C$107,CR$7),0)","v":0},{"$f":"IF(AT73=\"yes\",SUMIFS('Project Scope'!$BN$8:$BN$107,'Project Scope'!$C$8:$C$107,CS$7)+SUMIFS('Project Scope'!$BQ$8:$BQ$107,'Project Scope'!$C$8:$C$107,CS$7),0)","v":0},{"$f":"IF(AU73=\"yes\",SUMIFS('Project Scope'!$BN$8:$BN$107,'Project Scope'!$C$8:$C$107,CT$7)+SUMIFS('Project Scope'!$BQ$8:$BQ$107,'Project Scope'!$C$8:$C$107,CT$7),0)","v":0},{"$f":"IF(AV73=\"yes\",SUMIFS('Project Scope'!$BN$8:$BN$107,'Project Scope'!$C$8:$C$107,CU$7)+SUMIFS('Project Scope'!$BQ$8:$BQ$107,'Project Scope'!$C$8:$C$107,CU$7),0)","v":0},{"$f":"IF(AW73=\"yes\",SUMIFS('Project Scope'!$BN$8:$BN$107,'Project Scope'!$C$8:$C$107,CV$7)+SUMIFS('Project Scope'!$BQ$8:$BQ$107,'Project Scope'!$C$8:$C$107,CV$7),0)","v":0},{"$f":"IF(AX73=\"yes\",SUMIFS('Project Scope'!$BN$8:$BN$107,'Project Scope'!$C$8:$C$107,CW$7)+SUMIFS('Project Scope'!$BQ$8:$BQ$107,'Project Scope'!$C$8:$C$107,CW$7),0)","v":0},{"$f":"IF(AY73=\"yes\",SUMIFS('Project Scope'!$BN$8:$BN$107,'Project Scope'!$C$8:$C$107,CX$7)+SUMIFS('Project Scope'!$BQ$8:$BQ$107,'Project Scope'!$C$8:$C$107,CX$7),0)","v":0},{"$f":"IF(AZ73=\"yes\",SUMIFS('Project Scope'!$BN$8:$BN$107,'Project Scope'!$C$8:$C$107,CY$7)+SUMIFS('Project Scope'!$BQ$8:$BQ$107,'Project Scope'!$C$8:$C$107,CY$7),0)","v":0},{"$f":"IF(BA73=\"yes\",SUMIFS('Project Scope'!$BN$8:$BN$107,'Project Scope'!$C$8:$C$107,CZ$7)+SUMIFS('Project Scope'!$BQ$8:$BQ$107,'Project Scope'!$C$8:$C$107,CZ$7),0)","v":0},{"$f":"IF(BB73=\"yes\",SUMIFS('Project Scope'!$BN$8:$BN$107,'Project Scope'!$C$8:$C$107,DA$7)+SUMIFS('Project Scope'!$BQ$8:$BQ$107,'Project Scope'!$C$8:$C$107,DA$7),0)","v":0},{"$f":"IF(BC73=\"yes\",SUMIFS('Project Scope'!$BN$8:$BN$107,'Project Scope'!$C$8:$C$107,DB$7)+SUMIFS('Project Scope'!$BQ$8:$BQ$107,'Project Scope'!$C$8:$C$107,DB$7),0)","v":0},{"$f":"IF(BD73=\"yes\",SUMIFS('Project Scope'!$BN$8:$BN$107,'Project Scope'!$C$8:$C$107,DC$7)+SUMIFS('Project Scope'!$BQ$8:$BQ$107,'Project Scope'!$C$8:$C$107,DC$7),0)","v":0},{"$f":"IF(BE73=\"yes\",SUMIFS('Project Scope'!$BN$8:$BN$107,'Project Scope'!$C$8:$C$107,DD$7)+SUMIFS('Project Scope'!$BQ$8:$BQ$107,'Project Scope'!$C$8:$C$107,DD$7),0)","v":0},{"$f":"IF(BF73=\"yes\",SUMIFS('Project Scope'!$BN$8:$BN$107,'Project Scope'!$C$8:$C$107,DE$7)+SUMIFS('Project Scope'!$BQ$8:$BQ$107,'Project Scope'!$C$8:$C$107,DE$7),0)","v":0},{"$f":"IF(BG73=\"yes\",SUMIFS('Project Scope'!$BN$8:$BN$107,'Project Scope'!$C$8:$C$107,DF$7)+SUMIFS('Project Scope'!$BQ$8:$BQ$107,'Project Scope'!$C$8:$C$107,DF$7),0)","v":0},{"$f":"IF(BH73=\"yes\",SUMIFS('Project Scope'!$BN$8:$BN$107,'Project Scope'!$C$8:$C$107,DG$7)+SUMIFS('Project Scope'!$BQ$8:$BQ$107,'Project Scope'!$C$8:$C$107,DG$7),0)","v":0},{"$f":"IF(BI73=\"yes\",SUMIFS('Project Scope'!$BN$8:$BN$107,'Project Scope'!$C$8:$C$107,DH$7)+SUMIFS('Project Scope'!$BQ$8:$BQ$107,'Project Scope'!$C$8:$C$107,DH$7),0)","v":0},{"$f":"IF(BJ73=\"yes\",SUMIFS('Project Scope'!$BN$8:$BN$107,'Project Scope'!$C$8:$C$107,DI$7)+SUMIFS('Project Scope'!$BQ$8:$BQ$107,'Project Scope'!$C$8:$C$107,DI$7),0)","v":0},{"$f":"IF(BK73=\"yes\",SUMIFS('Project Scope'!$BN$8:$BN$107,'Project Scope'!$C$8:$C$107,DJ$7)+SUMIFS('Project Scope'!$BQ$8:$BQ$107,'Project Scope'!$C$8:$C$107,DJ$7),0)","v":0},{"$f":"IF(BL73=\"yes\",SUMIFS('Project Scope'!$BN$8:$BN$107,'Project Scope'!$C$8:$C$107,DK$7)+SUMIFS('Project Scope'!$BQ$8:$BQ$107,'Project Scope'!$C$8:$C$107,DK$7),0)","v":0},null,{"$f":"IF(BN73>0,DM$71,\"\")","v":""},{"$f":"IF(BO73>0,DN$71,\"\")","v":""},{"$f":"IF(BP73>0,DO$71,\"\")","v":""},{"$f":"IF(BQ73>0,DP$71,\"\")","v":""},{"$f":"IF(BR73>0,DQ$71,\"\")","v":""},{"$f":"IF(BS73>0,DR$71,\"\")","v":""},{"$f":"IF(BT73>0,DS$71,\"\")","v":""},{"$f":"IF(BU73>0,DT$71,\"\")","v":""},{"$f":"IF(BV73>0,DU$71,\"\")","v":""},{"$f":"IF(BW73>0,DV$71,\"\")","v":""},"","","","","","","","","","","","","","","","","","","","","","","","","","","","","","","","","","","","","","","","",null,""]
[null,null,null,null,null,null,null,null,null,null,null,{"$f":"IF($C74=\"additional labor hours\",K74*'Project Information'!$D$12,K74*J74)*IF($F74=\"Per Location\",COUNTIF($O74:$BL74,\"Yes\"),1)","v":0},{"$f":"IF($C74=\"\",0,IF(VLOOKUP($C74,'Other Data'!$B$146:$C$156,2,FALSE)=\"M\",$L74,0))","v":0},0,null,null,null,null,null,null,null,null,null,null,null,null,null,null,null,null,null,null,null,null,null,null,null,null,null,null,null,null,null,null,null,null,null,null,null,null,null,null,null,null,null,null,null,null,null,null,null,null,null,null,null,{"$f":"IF(O74=\"yes\",SUMIFS('Project Scope'!$BN$8:$BN$107,'Project Scope'!$C$8:$C$107,BN$7)+SUMIFS('Project Scope'!$BQ$8:$BQ$107,'Project Scope'!$C$8:$C$107,BN$7),0)","v":0},{"$f":"IF(P74=\"yes\",SUMIFS('Project Scope'!$BN$8:$BN$107,'Project Scope'!$C$8:$C$107,BO$7)+SUMIFS('Project Scope'!$BQ$8:$BQ$107,'Project Scope'!$C$8:$C$107,BO$7),0)","v":0},{"$f":"IF(Q74=\"yes\",SUMIFS('Project Scope'!$BN$8:$BN$107,'Project Scope'!$C$8:$C$107,BP$7)+SUMIFS('Project Scope'!$BQ$8:$BQ$107,'Project Scope'!$C$8:$C$107,BP$7),0)","v":0},{"$f":"IF(R74=\"yes\",SUMIFS('Project Scope'!$BN$8:$BN$107,'Project Scope'!$C$8:$C$107,BQ$7)+SUMIFS('Project Scope'!$BQ$8:$BQ$107,'Project Scope'!$C$8:$C$107,BQ$7),0)","v":0},{"$f":"IF(S74=\"yes\",SUMIFS('Project Scope'!$BN$8:$BN$107,'Project Scope'!$C$8:$C$107,BR$7)+SUMIFS('Project Scope'!$BQ$8:$BQ$107,'Project Scope'!$C$8:$C$107,BR$7),0)","v":0},{"$f":"IF(T74=\"yes\",SUMIFS('Project Scope'!$BN$8:$BN$107,'Project Scope'!$C$8:$C$107,BS$7)+SUMIFS('Project Scope'!$BQ$8:$BQ$107,'Project Scope'!$C$8:$C$107,BS$7),0)","v":0},{"$f":"IF(U74=\"yes\",SUMIFS('Project Scope'!$BN$8:$BN$107,'Project Scope'!$C$8:$C$107,BT$7)+SUMIFS('Project Scope'!$BQ$8:$BQ$107,'Project Scope'!$C$8:$C$107,BT$7),0)","v":0},{"$f":"IF(V74=\"yes\",SUMIFS('Project Scope'!$BN$8:$BN$107,'Project Scope'!$C$8:$C$107,BU$7)+SUMIFS('Project Scope'!$BQ$8:$BQ$107,'Project Scope'!$C$8:$C$107,BU$7),0)","v":0},{"$f":"IF(W74=\"yes\",SUMIFS('Project Scope'!$BN$8:$BN$107,'Project Scope'!$C$8:$C$107,BV$7)+SUMIFS('Project Scope'!$BQ$8:$BQ$107,'Project Scope'!$C$8:$C$107,BV$7),0)","v":0},{"$f":"IF(X74=\"yes\",SUMIFS('Project Scope'!$BN$8:$BN$107,'Project Scope'!$C$8:$C$107,BW$7)+SUMIFS('Project Scope'!$BQ$8:$BQ$107,'Project Scope'!$C$8:$C$107,BW$7),0)","v":0},{"$f":"IF(Y74=\"yes\",SUMIFS('Project Scope'!$BN$8:$BN$107,'Project Scope'!$C$8:$C$107,BX$7)+SUMIFS('Project Scope'!$BQ$8:$BQ$107,'Project Scope'!$C$8:$C$107,BX$7),0)","v":0},{"$f":"IF(Z74=\"yes\",SUMIFS('Project Scope'!$BN$8:$BN$107,'Project Scope'!$C$8:$C$107,BY$7)+SUMIFS('Project Scope'!$BQ$8:$BQ$107,'Project Scope'!$C$8:$C$107,BY$7),0)","v":0},{"$f":"IF(AA74=\"yes\",SUMIFS('Project Scope'!$BN$8:$BN$107,'Project Scope'!$C$8:$C$107,BZ$7)+SUMIFS('Project Scope'!$BQ$8:$BQ$107,'Project Scope'!$C$8:$C$107,BZ$7),0)","v":0},{"$f":"IF(AB74=\"yes\",SUMIFS('Project Scope'!$BN$8:$BN$107,'Project Scope'!$C$8:$C$107,CA$7)+SUMIFS('Project Scope'!$BQ$8:$BQ$107,'Project Scope'!$C$8:$C$107,CA$7),0)","v":0},{"$f":"IF(AC74=\"yes\",SUMIFS('Project Scope'!$BN$8:$BN$107,'Project Scope'!$C$8:$C$107,CB$7)+SUMIFS('Project Scope'!$BQ$8:$BQ$107,'Project Scope'!$C$8:$C$107,CB$7),0)","v":0},{"$f":"IF(AD74=\"yes\",SUMIFS('Project Scope'!$BN$8:$BN$107,'Project Scope'!$C$8:$C$107,CC$7)+SUMIFS('Project Scope'!$BQ$8:$BQ$107,'Project Scope'!$C$8:$C$107,CC$7),0)","v":0},{"$f":"IF(AE74=\"yes\",SUMIFS('Project Scope'!$BN$8:$BN$107,'Project Scope'!$C$8:$C$107,CD$7)+SUMIFS('Project Scope'!$BQ$8:$BQ$107,'Project Scope'!$C$8:$C$107,CD$7),0)","v":0},{"$f":"IF(AF74=\"yes\",SUMIFS('Project Scope'!$BN$8:$BN$107,'Project Scope'!$C$8:$C$107,CE$7)+SUMIFS('Project Scope'!$BQ$8:$BQ$107,'Project Scope'!$C$8:$C$107,CE$7),0)","v":0},{"$f":"IF(AG74=\"yes\",SUMIFS('Project Scope'!$BN$8:$BN$107,'Project Scope'!$C$8:$C$107,CF$7)+SUMIFS('Project Scope'!$BQ$8:$BQ$107,'Project Scope'!$C$8:$C$107,CF$7),0)","v":0},{"$f":"IF(AH74=\"yes\",SUMIFS('Project Scope'!$BN$8:$BN$107,'Project Scope'!$C$8:$C$107,CG$7)+SUMIFS('Project Scope'!$BQ$8:$BQ$107,'Project Scope'!$C$8:$C$107,CG$7),0)","v":0},{"$f":"IF(AI74=\"yes\",SUMIFS('Project Scope'!$BN$8:$BN$107,'Project Scope'!$C$8:$C$107,CH$7)+SUMIFS('Project Scope'!$BQ$8:$BQ$107,'Project Scope'!$C$8:$C$107,CH$7),0)","v":0},{"$f":"IF(AJ74=\"yes\",SUMIFS('Project Scope'!$BN$8:$BN$107,'Project Scope'!$C$8:$C$107,CI$7)+SUMIFS('Project Scope'!$BQ$8:$BQ$107,'Project Scope'!$C$8:$C$107,CI$7),0)","v":0},{"$f":"IF(AK74=\"yes\",SUMIFS('Project Scope'!$BN$8:$BN$107,'Project Scope'!$C$8:$C$107,CJ$7)+SUMIFS('Project Scope'!$BQ$8:$BQ$107,'Project Scope'!$C$8:$C$107,CJ$7),0)","v":0},{"$f":"IF(AL74=\"yes\",SUMIFS('Project Scope'!$BN$8:$BN$107,'Project Scope'!$C$8:$C$107,CK$7)+SUMIFS('Project Scope'!$BQ$8:$BQ$107,'Project Scope'!$C$8:$C$107,CK$7),0)","v":0},{"$f":"IF(AM74=\"yes\",SUMIFS('Project Scope'!$BN$8:$BN$107,'Project Scope'!$C$8:$C$107,CL$7)+SUMIFS('Project Scope'!$BQ$8:$BQ$107,'Project Scope'!$C$8:$C$107,CL$7),0)","v":0},{"$f":"IF(AN74=\"yes\",SUMIFS('Project Scope'!$BN$8:$BN$107,'Project Scope'!$C$8:$C$107,CM$7)+SUMIFS('Project Scope'!$BQ$8:$BQ$107,'Project Scope'!$C$8:$C$107,CM$7),0)","v":0},{"$f":"IF(AO74=\"yes\",SUMIFS('Project Scope'!$BN$8:$BN$107,'Project Scope'!$C$8:$C$107,CN$7)+SUMIFS('Project Scope'!$BQ$8:$BQ$107,'Project Scope'!$C$8:$C$107,CN$7),0)","v":0},{"$f":"IF(AP74=\"yes\",SUMIFS('Project Scope'!$BN$8:$BN$107,'Project Scope'!$C$8:$C$107,CO$7)+SUMIFS('Project Scope'!$BQ$8:$BQ$107,'Project Scope'!$C$8:$C$107,CO$7),0)","v":0},{"$f":"IF(AQ74=\"yes\",SUMIFS('Project Scope'!$BN$8:$BN$107,'Project Scope'!$C$8:$C$107,CP$7)+SUMIFS('Project Scope'!$BQ$8:$BQ$107,'Project Scope'!$C$8:$C$107,CP$7),0)","v":0},{"$f":"IF(AR74=\"yes\",SUMIFS('Project Scope'!$BN$8:$BN$107,'Project Scope'!$C$8:$C$107,CQ$7)+SUMIFS('Project Scope'!$BQ$8:$BQ$107,'Project Scope'!$C$8:$C$107,CQ$7),0)","v":0},{"$f":"IF(AS74=\"yes\",SUMIFS('Project Scope'!$BN$8:$BN$107,'Project Scope'!$C$8:$C$107,CR$7)+SUMIFS('Project Scope'!$BQ$8:$BQ$107,'Project Scope'!$C$8:$C$107,CR$7),0)","v":0},{"$f":"IF(AT74=\"yes\",SUMIFS('Project Scope'!$BN$8:$BN$107,'Project Scope'!$C$8:$C$107,CS$7)+SUMIFS('Project Scope'!$BQ$8:$BQ$107,'Project Scope'!$C$8:$C$107,CS$7),0)","v":0},{"$f":"IF(AU74=\"yes\",SUMIFS('Project Scope'!$BN$8:$BN$107,'Project Scope'!$C$8:$C$107,CT$7)+SUMIFS('Project Scope'!$BQ$8:$BQ$107,'Project Scope'!$C$8:$C$107,CT$7),0)","v":0},{"$f":"IF(AV74=\"yes\",SUMIFS('Project Scope'!$BN$8:$BN$107,'Project Scope'!$C$8:$C$107,CU$7)+SUMIFS('Project Scope'!$BQ$8:$BQ$107,'Project Scope'!$C$8:$C$107,CU$7),0)","v":0},{"$f":"IF(AW74=\"yes\",SUMIFS('Project Scope'!$BN$8:$BN$107,'Project Scope'!$C$8:$C$107,CV$7)+SUMIFS('Project Scope'!$BQ$8:$BQ$107,'Project Scope'!$C$8:$C$107,CV$7),0)","v":0},{"$f":"IF(AX74=\"yes\",SUMIFS('Project Scope'!$BN$8:$BN$107,'Project Scope'!$C$8:$C$107,CW$7)+SUMIFS('Project Scope'!$BQ$8:$BQ$107,'Project Scope'!$C$8:$C$107,CW$7),0)","v":0},{"$f":"IF(AY74=\"yes\",SUMIFS('Project Scope'!$BN$8:$BN$107,'Project Scope'!$C$8:$C$107,CX$7)+SUMIFS('Project Scope'!$BQ$8:$BQ$107,'Project Scope'!$C$8:$C$107,CX$7),0)","v":0},{"$f":"IF(AZ74=\"yes\",SUMIFS('Project Scope'!$BN$8:$BN$107,'Project Scope'!$C$8:$C$107,CY$7)+SUMIFS('Project Scope'!$BQ$8:$BQ$107,'Project Scope'!$C$8:$C$107,CY$7),0)","v":0},{"$f":"IF(BA74=\"yes\",SUMIFS('Project Scope'!$BN$8:$BN$107,'Project Scope'!$C$8:$C$107,CZ$7)+SUMIFS('Project Scope'!$BQ$8:$BQ$107,'Project Scope'!$C$8:$C$107,CZ$7),0)","v":0},{"$f":"IF(BB74=\"yes\",SUMIFS('Project Scope'!$BN$8:$BN$107,'Project Scope'!$C$8:$C$107,DA$7)+SUMIFS('Project Scope'!$BQ$8:$BQ$107,'Project Scope'!$C$8:$C$107,DA$7),0)","v":0},{"$f":"IF(BC74=\"yes\",SUMIFS('Project Scope'!$BN$8:$BN$107,'Project Scope'!$C$8:$C$107,DB$7)+SUMIFS('Project Scope'!$BQ$8:$BQ$107,'Project Scope'!$C$8:$C$107,DB$7),0)","v":0},{"$f":"IF(BD74=\"yes\",SUMIFS('Project Scope'!$BN$8:$BN$107,'Project Scope'!$C$8:$C$107,DC$7)+SUMIFS('Project Scope'!$BQ$8:$BQ$107,'Project Scope'!$C$8:$C$107,DC$7),0)","v":0},{"$f":"IF(BE74=\"yes\",SUMIFS('Project Scope'!$BN$8:$BN$107,'Project Scope'!$C$8:$C$107,DD$7)+SUMIFS('Project Scope'!$BQ$8:$BQ$107,'Project Scope'!$C$8:$C$107,DD$7),0)","v":0},{"$f":"IF(BF74=\"yes\",SUMIFS('Project Scope'!$BN$8:$BN$107,'Project Scope'!$C$8:$C$107,DE$7)+SUMIFS('Project Scope'!$BQ$8:$BQ$107,'Project Scope'!$C$8:$C$107,DE$7),0)","v":0},{"$f":"IF(BG74=\"yes\",SUMIFS('Project Scope'!$BN$8:$BN$107,'Project Scope'!$C$8:$C$107,DF$7)+SUMIFS('Project Scope'!$BQ$8:$BQ$107,'Project Scope'!$C$8:$C$107,DF$7),0)","v":0},{"$f":"IF(BH74=\"yes\",SUMIFS('Project Scope'!$BN$8:$BN$107,'Project Scope'!$C$8:$C$107,DG$7)+SUMIFS('Project Scope'!$BQ$8:$BQ$107,'Project Scope'!$C$8:$C$107,DG$7),0)","v":0},{"$f":"IF(BI74=\"yes\",SUMIFS('Project Scope'!$BN$8:$BN$107,'Project Scope'!$C$8:$C$107,DH$7)+SUMIFS('Project Scope'!$BQ$8:$BQ$107,'Project Scope'!$C$8:$C$107,DH$7),0)","v":0},{"$f":"IF(BJ74=\"yes\",SUMIFS('Project Scope'!$BN$8:$BN$107,'Project Scope'!$C$8:$C$107,DI$7)+SUMIFS('Project Scope'!$BQ$8:$BQ$107,'Project Scope'!$C$8:$C$107,DI$7),0)","v":0},{"$f":"IF(BK74=\"yes\",SUMIFS('Project Scope'!$BN$8:$BN$107,'Project Scope'!$C$8:$C$107,DJ$7)+SUMIFS('Project Scope'!$BQ$8:$BQ$107,'Project Scope'!$C$8:$C$107,DJ$7),0)","v":0},{"$f":"IF(BL74=\"yes\",SUMIFS('Project Scope'!$BN$8:$BN$107,'Project Scope'!$C$8:$C$107,DK$7)+SUMIFS('Project Scope'!$BQ$8:$BQ$107,'Project Scope'!$C$8:$C$107,DK$7),0)","v":0},null,"","","","","","","","","","","","","","","","","","","","","","","","","","","","","","","","","","","","","","","","","","","","","","","","","","",null,""]
[null,null,null,null,null,null,null,null,null,null,null,{"$f":"IF($C75=\"additional labor hours\",K75*'Project Information'!$D$12,K75*J75)*IF($F75=\"Per Location\",COUNTIF($O75:$BL75,\"Yes\"),1)","v":0},{"$f":"IF($C75=\"\",0,IF(VLOOKUP($C75,'Other Data'!$B$146:$C$156,2,FALSE)=\"M\",$L75,0))","v":0},0,null,null,null,null,null,null,null,null,null,null,null,null,null,null,null,null,null,null,null,null,null,null,null,null,null,null,null,null,null,null,null,null,null,null,null,null,null,null,null,null,null,null,null,null,null,null,null,null,null,null,null,{"$f":"IF(O75=\"yes\",SUMIFS('Project Scope'!$BN$8:$BN$107,'Project Scope'!$C$8:$C$107,BN$7)+SUMIFS('Project Scope'!$BQ$8:$BQ$107,'Project Scope'!$C$8:$C$107,BN$7),0)","v":0},{"$f":"IF(P75=\"yes\",SUMIFS('Project Scope'!$BN$8:$BN$107,'Project Scope'!$C$8:$C$107,BO$7)+SUMIFS('Project Scope'!$BQ$8:$BQ$107,'Project Scope'!$C$8:$C$107,BO$7),0)","v":0},{"$f":"IF(Q75=\"yes\",SUMIFS('Project Scope'!$BN$8:$BN$107,'Project Scope'!$C$8:$C$107,BP$7)+SUMIFS('Project Scope'!$BQ$8:$BQ$107,'Project Scope'!$C$8:$C$107,BP$7),0)","v":0},{"$f":"IF(R75=\"yes\",SUMIFS('Project Scope'!$BN$8:$BN$107,'Project Scope'!$C$8:$C$107,BQ$7)+SUMIFS('Project Scope'!$BQ$8:$BQ$107,'Project Scope'!$C$8:$C$107,BQ$7),0)","v":0},{"$f":"IF(S75=\"yes\",SUMIFS('Project Scope'!$BN$8:$BN$107,'Project Scope'!$C$8:$C$107,BR$7)+SUMIFS('Project Scope'!$BQ$8:$BQ$107,'Project Scope'!$C$8:$C$107,BR$7),0)","v":0},{"$f":"IF(T75=\"yes\",SUMIFS('Project Scope'!$BN$8:$BN$107,'Project Scope'!$C$8:$C$107,BS$7)+SUMIFS('Project Scope'!$BQ$8:$BQ$107,'Project Scope'!$C$8:$C$107,BS$7),0)","v":0},{"$f":"IF(U75=\"yes\",SUMIFS('Project Scope'!$BN$8:$BN$107,'Project Scope'!$C$8:$C$107,BT$7)+SUMIFS('Project Scope'!$BQ$8:$BQ$107,'Project Scope'!$C$8:$C$107,BT$7),0)","v":0},{"$f":"IF(V75=\"yes\",SUMIFS('Project Scope'!$BN$8:$BN$107,'Project Scope'!$C$8:$C$107,BU$7)+SUMIFS('Project Scope'!$BQ$8:$BQ$107,'Project Scope'!$C$8:$C$107,BU$7),0)","v":0},{"$f":"IF(W75=\"yes\",SUMIFS('Project Scope'!$BN$8:$BN$107,'Project Scope'!$C$8:$C$107,BV$7)+SUMIFS('Project Scope'!$BQ$8:$BQ$107,'Project Scope'!$C$8:$C$107,BV$7),0)","v":0},{"$f":"IF(X75=\"yes\",SUMIFS('Project Scope'!$BN$8:$BN$107,'Project Scope'!$C$8:$C$107,BW$7)+SUMIFS('Project Scope'!$BQ$8:$BQ$107,'Project Scope'!$C$8:$C$107,BW$7),0)","v":0},{"$f":"IF(Y75=\"yes\",SUMIFS('Project Scope'!$BN$8:$BN$107,'Project Scope'!$C$8:$C$107,BX$7)+SUMIFS('Project Scope'!$BQ$8:$BQ$107,'Project Scope'!$C$8:$C$107,BX$7),0)","v":0},{"$f":"IF(Z75=\"yes\",SUMIFS('Project Scope'!$BN$8:$BN$107,'Project Scope'!$C$8:$C$107,BY$7)+SUMIFS('Project Scope'!$BQ$8:$BQ$107,'Project Scope'!$C$8:$C$107,BY$7),0)","v":0},{"$f":"IF(AA75=\"yes\",SUMIFS('Project Scope'!$BN$8:$BN$107,'Project Scope'!$C$8:$C$107,BZ$7)+SUMIFS('Project Scope'!$BQ$8:$BQ$107,'Project Scope'!$C$8:$C$107,BZ$7),0)","v":0},{"$f":"IF(AB75=\"yes\",SUMIFS('Project Scope'!$BN$8:$BN$107,'Project Scope'!$C$8:$C$107,CA$7)+SUMIFS('Project Scope'!$BQ$8:$BQ$107,'Project Scope'!$C$8:$C$107,CA$7),0)","v":0},{"$f":"IF(AC75=\"yes\",SUMIFS('Project Scope'!$BN$8:$BN$107,'Project Scope'!$C$8:$C$107,CB$7)+SUMIFS('Project Scope'!$BQ$8:$BQ$107,'Project Scope'!$C$8:$C$107,CB$7),0)","v":0},{"$f":"IF(AD75=\"yes\",SUMIFS('Project Scope'!$BN$8:$BN$107,'Project Scope'!$C$8:$C$107,CC$7)+SUMIFS('Project Scope'!$BQ$8:$BQ$107,'Project Scope'!$C$8:$C$107,CC$7),0)","v":0},{"$f":"IF(AE75=\"yes\",SUMIFS('Project Scope'!$BN$8:$BN$107,'Project Scope'!$C$8:$C$107,CD$7)+SUMIFS('Project Scope'!$BQ$8:$BQ$107,'Project Scope'!$C$8:$C$107,CD$7),0)","v":0},{"$f":"IF(AF75=\"yes\",SUMIFS('Project Scope'!$BN$8:$BN$107,'Project Scope'!$C$8:$C$107,CE$7)+SUMIFS('Project Scope'!$BQ$8:$BQ$107,'Project Scope'!$C$8:$C$107,CE$7),0)","v":0},{"$f":"IF(AG75=\"yes\",SUMIFS('Project Scope'!$BN$8:$BN$107,'Project Scope'!$C$8:$C$107,CF$7)+SUMIFS('Project Scope'!$BQ$8:$BQ$107,'Project Scope'!$C$8:$C$107,CF$7),0)","v":0},{"$f":"IF(AH75=\"yes\",SUMIFS('Project Scope'!$BN$8:$BN$107,'Project Scope'!$C$8:$C$107,CG$7)+SUMIFS('Project Scope'!$BQ$8:$BQ$107,'Project Scope'!$C$8:$C$107,CG$7),0)","v":0},{"$f":"IF(AI75=\"yes\",SUMIFS('Project Scope'!$BN$8:$BN$107,'Project Scope'!$C$8:$C$107,CH$7)+SUMIFS('Project Scope'!$BQ$8:$BQ$107,'Project Scope'!$C$8:$C$107,CH$7),0)","v":0},{"$f":"IF(AJ75=\"yes\",SUMIFS('Project Scope'!$BN$8:$BN$107,'Project Scope'!$C$8:$C$107,CI$7)+SUMIFS('Project Scope'!$BQ$8:$BQ$107,'Project Scope'!$C$8:$C$107,CI$7),0)","v":0},{"$f":"IF(AK75=\"yes\",SUMIFS('Project Scope'!$BN$8:$BN$107,'Project Scope'!$C$8:$C$107,CJ$7)+SUMIFS('Project Scope'!$BQ$8:$BQ$107,'Project Scope'!$C$8:$C$107,CJ$7),0)","v":0},{"$f":"IF(AL75=\"yes\",SUMIFS('Project Scope'!$BN$8:$BN$107,'Project Scope'!$C$8:$C$107,CK$7)+SUMIFS('Project Scope'!$BQ$8:$BQ$107,'Project Scope'!$C$8:$C$107,CK$7),0)","v":0},{"$f":"IF(AM75=\"yes\",SUMIFS('Project Scope'!$BN$8:$BN$107,'Project Scope'!$C$8:$C$107,CL$7)+SUMIFS('Project Scope'!$BQ$8:$BQ$107,'Project Scope'!$C$8:$C$107,CL$7),0)","v":0},{"$f":"IF(AN75=\"yes\",SUMIFS('Project Scope'!$BN$8:$BN$107,'Project Scope'!$C$8:$C$107,CM$7)+SUMIFS('Project Scope'!$BQ$8:$BQ$107,'Project Scope'!$C$8:$C$107,CM$7),0)","v":0},{"$f":"IF(AO75=\"yes\",SUMIFS('Project Scope'!$BN$8:$BN$107,'Project Scope'!$C$8:$C$107,CN$7)+SUMIFS('Project Scope'!$BQ$8:$BQ$107,'Project Scope'!$C$8:$C$107,CN$7),0)","v":0},{"$f":"IF(AP75=\"yes\",SUMIFS('Project Scope'!$BN$8:$BN$107,'Project Scope'!$C$8:$C$107,CO$7)+SUMIFS('Project Scope'!$BQ$8:$BQ$107,'Project Scope'!$C$8:$C$107,CO$7),0)","v":0},{"$f":"IF(AQ75=\"yes\",SUMIFS('Project Scope'!$BN$8:$BN$107,'Project Scope'!$C$8:$C$107,CP$7)+SUMIFS('Project Scope'!$BQ$8:$BQ$107,'Project Scope'!$C$8:$C$107,CP$7),0)","v":0},{"$f":"IF(AR75=\"yes\",SUMIFS('Project Scope'!$BN$8:$BN$107,'Project Scope'!$C$8:$C$107,CQ$7)+SUMIFS('Project Scope'!$BQ$8:$BQ$107,'Project Scope'!$C$8:$C$107,CQ$7),0)","v":0},{"$f":"IF(AS75=\"yes\",SUMIFS('Project Scope'!$BN$8:$BN$107,'Project Scope'!$C$8:$C$107,CR$7)+SUMIFS('Project Scope'!$BQ$8:$BQ$107,'Project Scope'!$C$8:$C$107,CR$7),0)","v":0},{"$f":"IF(AT75=\"yes\",SUMIFS('Project Scope'!$BN$8:$BN$107,'Project Scope'!$C$8:$C$107,CS$7)+SUMIFS('Project Scope'!$BQ$8:$BQ$107,'Project Scope'!$C$8:$C$107,CS$7),0)","v":0},{"$f":"IF(AU75=\"yes\",SUMIFS('Project Scope'!$BN$8:$BN$107,'Project Scope'!$C$8:$C$107,CT$7)+SUMIFS('Project Scope'!$BQ$8:$BQ$107,'Project Scope'!$C$8:$C$107,CT$7),0)","v":0},{"$f":"IF(AV75=\"yes\",SUMIFS('Project Scope'!$BN$8:$BN$107,'Project Scope'!$C$8:$C$107,CU$7)+SUMIFS('Project Scope'!$BQ$8:$BQ$107,'Project Scope'!$C$8:$C$107,CU$7),0)","v":0},{"$f":"IF(AW75=\"yes\",SUMIFS('Project Scope'!$BN$8:$BN$107,'Project Scope'!$C$8:$C$107,CV$7)+SUMIFS('Project Scope'!$BQ$8:$BQ$107,'Project Scope'!$C$8:$C$107,CV$7),0)","v":0},{"$f":"IF(AX75=\"yes\",SUMIFS('Project Scope'!$BN$8:$BN$107,'Project Scope'!$C$8:$C$107,CW$7)+SUMIFS('Project Scope'!$BQ$8:$BQ$107,'Project Scope'!$C$8:$C$107,CW$7),0)","v":0},{"$f":"IF(AY75=\"yes\",SUMIFS('Project Scope'!$BN$8:$BN$107,'Project Scope'!$C$8:$C$107,CX$7)+SUMIFS('Project Scope'!$BQ$8:$BQ$107,'Project Scope'!$C$8:$C$107,CX$7),0)","v":0},{"$f":"IF(AZ75=\"yes\",SUMIFS('Project Scope'!$BN$8:$BN$107,'Project Scope'!$C$8:$C$107,CY$7)+SUMIFS('Project Scope'!$BQ$8:$BQ$107,'Project Scope'!$C$8:$C$107,CY$7),0)","v":0},{"$f":"IF(BA75=\"yes\",SUMIFS('Project Scope'!$BN$8:$BN$107,'Project Scope'!$C$8:$C$107,CZ$7)+SUMIFS('Project Scope'!$BQ$8:$BQ$107,'Project Scope'!$C$8:$C$107,CZ$7),0)","v":0},{"$f":"IF(BB75=\"yes\",SUMIFS('Project Scope'!$BN$8:$BN$107,'Project Scope'!$C$8:$C$107,DA$7)+SUMIFS('Project Scope'!$BQ$8:$BQ$107,'Project Scope'!$C$8:$C$107,DA$7),0)","v":0},{"$f":"IF(BC75=\"yes\",SUMIFS('Project Scope'!$BN$8:$BN$107,'Project Scope'!$C$8:$C$107,DB$7)+SUMIFS('Project Scope'!$BQ$8:$BQ$107,'Project Scope'!$C$8:$C$107,DB$7),0)","v":0},{"$f":"IF(BD75=\"yes\",SUMIFS('Project Scope'!$BN$8:$BN$107,'Project Scope'!$C$8:$C$107,DC$7)+SUMIFS('Project Scope'!$BQ$8:$BQ$107,'Project Scope'!$C$8:$C$107,DC$7),0)","v":0},{"$f":"IF(BE75=\"yes\",SUMIFS('Project Scope'!$BN$8:$BN$107,'Project Scope'!$C$8:$C$107,DD$7)+SUMIFS('Project Scope'!$BQ$8:$BQ$107,'Project Scope'!$C$8:$C$107,DD$7),0)","v":0},{"$f":"IF(BF75=\"yes\",SUMIFS('Project Scope'!$BN$8:$BN$107,'Project Scope'!$C$8:$C$107,DE$7)+SUMIFS('Project Scope'!$BQ$8:$BQ$107,'Project Scope'!$C$8:$C$107,DE$7),0)","v":0},{"$f":"IF(BG75=\"yes\",SUMIFS('Project Scope'!$BN$8:$BN$107,'Project Scope'!$C$8:$C$107,DF$7)+SUMIFS('Project Scope'!$BQ$8:$BQ$107,'Project Scope'!$C$8:$C$107,DF$7),0)","v":0},{"$f":"IF(BH75=\"yes\",SUMIFS('Project Scope'!$BN$8:$BN$107,'Project Scope'!$C$8:$C$107,DG$7)+SUMIFS('Project Scope'!$BQ$8:$BQ$107,'Project Scope'!$C$8:$C$107,DG$7),0)","v":0},{"$f":"IF(BI75=\"yes\",SUMIFS('Project Scope'!$BN$8:$BN$107,'Project Scope'!$C$8:$C$107,DH$7)+SUMIFS('Project Scope'!$BQ$8:$BQ$107,'Project Scope'!$C$8:$C$107,DH$7),0)","v":0},{"$f":"IF(BJ75=\"yes\",SUMIFS('Project Scope'!$BN$8:$BN$107,'Project Scope'!$C$8:$C$107,DI$7)+SUMIFS('Project Scope'!$BQ$8:$BQ$107,'Project Scope'!$C$8:$C$107,DI$7),0)","v":0},{"$f":"IF(BK75=\"yes\",SUMIFS('Project Scope'!$BN$8:$BN$107,'Project Scope'!$C$8:$C$107,DJ$7)+SUMIFS('Project Scope'!$BQ$8:$BQ$107,'Project Scope'!$C$8:$C$107,DJ$7),0)","v":0},{"$f":"IF(BL75=\"yes\",SUMIFS('Project Scope'!$BN$8:$BN$107,'Project Scope'!$C$8:$C$107,DK$7)+SUMIFS('Project Scope'!$BQ$8:$BQ$107,'Project Scope'!$C$8:$C$107,DK$7),0)","v":0},null,"","","","","","","","","","","","","","","","","","","","","","","","","","","","","","","","","","","","","","","","","","","","","","","","","","",null,""]
[null,null,null,null,null,null,null,null,null,null,null,{"$f":"IF($C76=\"additional labor hours\",K76*'Project Information'!$D$12,K76*J76)*IF($F76=\"Per Location\",COUNTIF($O76:$BL76,\"Yes\"),1)","v":0},{"$f":"IF($C76=\"\",0,IF(VLOOKUP($C76,'Other Data'!$B$146:$C$156,2,FALSE)=\"M\",$L76,0))","v":0},0,null,null,null,null,null,null,null,null,null,null,null,null,null,null,null,null,null,null,null,null,null,null,null,null,null,null,null,null,null,null,null,null,null,null,null,null,null,null,null,null,null,null,null,null,null,null,null,null,null,null,null,{"$f":"IF(O76=\"yes\",SUMIFS('Project Scope'!$BN$8:$BN$107,'Project Scope'!$C$8:$C$107,BN$7)+SUMIFS('Project Scope'!$BQ$8:$BQ$107,'Project Scope'!$C$8:$C$107,BN$7),0)","v":0},{"$f":"IF(P76=\"yes\",SUMIFS('Project Scope'!$BN$8:$BN$107,'Project Scope'!$C$8:$C$107,BO$7)+SUMIFS('Project Scope'!$BQ$8:$BQ$107,'Project Scope'!$C$8:$C$107,BO$7),0)","v":0},{"$f":"IF(Q76=\"yes\",SUMIFS('Project Scope'!$BN$8:$BN$107,'Project Scope'!$C$8:$C$107,BP$7)+SUMIFS('Project Scope'!$BQ$8:$BQ$107,'Project Scope'!$C$8:$C$107,BP$7),0)","v":0},{"$f":"IF(R76=\"yes\",SUMIFS('Project Scope'!$BN$8:$BN$107,'Project Scope'!$C$8:$C$107,BQ$7)+SUMIFS('Project Scope'!$BQ$8:$BQ$107,'Project Scope'!$C$8:$C$107,BQ$7),0)","v":0},{"$f":"IF(S76=\"yes\",SUMIFS('Project Scope'!$BN$8:$BN$107,'Project Scope'!$C$8:$C$107,BR$7)+SUMIFS('Project Scope'!$BQ$8:$BQ$107,'Project Scope'!$C$8:$C$107,BR$7),0)","v":0},{"$f":"IF(T76=\"yes\",SUMIFS('Project Scope'!$BN$8:$BN$107,'Project Scope'!$C$8:$C$107,BS$7)+SUMIFS('Project Scope'!$BQ$8:$BQ$107,'Project Scope'!$C$8:$C$107,BS$7),0)","v":0},{"$f":"IF(U76=\"yes\",SUMIFS('Project Scope'!$BN$8:$BN$107,'Project Scope'!$C$8:$C$107,BT$7)+SUMIFS('Project Scope'!$BQ$8:$BQ$107,'Project Scope'!$C$8:$C$107,BT$7),0)","v":0},{"$f":"IF(V76=\"yes\",SUMIFS('Project Scope'!$BN$8:$BN$107,'Project Scope'!$C$8:$C$107,BU$7)+SUMIFS('Project Scope'!$BQ$8:$BQ$107,'Project Scope'!$C$8:$C$107,BU$7),0)","v":0},{"$f":"IF(W76=\"yes\",SUMIFS('Project Scope'!$BN$8:$BN$107,'Project Scope'!$C$8:$C$107,BV$7)+SUMIFS('Project Scope'!$BQ$8:$BQ$107,'Project Scope'!$C$8:$C$107,BV$7),0)","v":0},{"$f":"IF(X76=\"yes\",SUMIFS('Project Scope'!$BN$8:$BN$107,'Project Scope'!$C$8:$C$107,BW$7)+SUMIFS('Project Scope'!$BQ$8:$BQ$107,'Project Scope'!$C$8:$C$107,BW$7),0)","v":0},{"$f":"IF(Y76=\"yes\",SUMIFS('Project Scope'!$BN$8:$BN$107,'Project Scope'!$C$8:$C$107,BX$7)+SUMIFS('Project Scope'!$BQ$8:$BQ$107,'Project Scope'!$C$8:$C$107,BX$7),0)","v":0},{"$f":"IF(Z76=\"yes\",SUMIFS('Project Scope'!$BN$8:$BN$107,'Project Scope'!$C$8:$C$107,BY$7)+SUMIFS('Project Scope'!$BQ$8:$BQ$107,'Project Scope'!$C$8:$C$107,BY$7),0)","v":0},{"$f":"IF(AA76=\"yes\",SUMIFS('Project Scope'!$BN$8:$BN$107,'Project Scope'!$C$8:$C$107,BZ$7)+SUMIFS('Project Scope'!$BQ$8:$BQ$107,'Project Scope'!$C$8:$C$107,BZ$7),0)","v":0},{"$f":"IF(AB76=\"yes\",SUMIFS('Project Scope'!$BN$8:$BN$107,'Project Scope'!$C$8:$C$107,CA$7)+SUMIFS('Project Scope'!$BQ$8:$BQ$107,'Project Scope'!$C$8:$C$107,CA$7),0)","v":0},{"$f":"IF(AC76=\"yes\",SUMIFS('Project Scope'!$BN$8:$BN$107,'Project Scope'!$C$8:$C$107,CB$7)+SUMIFS('Project Scope'!$BQ$8:$BQ$107,'Project Scope'!$C$8:$C$107,CB$7),0)","v":0},{"$f":"IF(AD76=\"yes\",SUMIFS('Project Scope'!$BN$8:$BN$107,'Project Scope'!$C$8:$C$107,CC$7)+SUMIFS('Project Scope'!$BQ$8:$BQ$107,'Project Scope'!$C$8:$C$107,CC$7),0)","v":0},{"$f":"IF(AE76=\"yes\",SUMIFS('Project Scope'!$BN$8:$BN$107,'Project Scope'!$C$8:$C$107,CD$7)+SUMIFS('Project Scope'!$BQ$8:$BQ$107,'Project Scope'!$C$8:$C$107,CD$7),0)","v":0},{"$f":"IF(AF76=\"yes\",SUMIFS('Project Scope'!$BN$8:$BN$107,'Project Scope'!$C$8:$C$107,CE$7)+SUMIFS('Project Scope'!$BQ$8:$BQ$107,'Project Scope'!$C$8:$C$107,CE$7),0)","v":0},{"$f":"IF(AG76=\"yes\",SUMIFS('Project Scope'!$BN$8:$BN$107,'Project Scope'!$C$8:$C$107,CF$7)+SUMIFS('Project Scope'!$BQ$8:$BQ$107,'Project Scope'!$C$8:$C$107,CF$7),0)","v":0},{"$f":"IF(AH76=\"yes\",SUMIFS('Project Scope'!$BN$8:$BN$107,'Project Scope'!$C$8:$C$107,CG$7)+SUMIFS('Project Scope'!$BQ$8:$BQ$107,'Project Scope'!$C$8:$C$107,CG$7),0)","v":0},{"$f":"IF(AI76=\"yes\",SUMIFS('Project Scope'!$BN$8:$BN$107,'Project Scope'!$C$8:$C$107,CH$7)+SUMIFS('Project Scope'!$BQ$8:$BQ$107,'Project Scope'!$C$8:$C$107,CH$7),0)","v":0},{"$f":"IF(AJ76=\"yes\",SUMIFS('Project Scope'!$BN$8:$BN$107,'Project Scope'!$C$8:$C$107,CI$7)+SUMIFS('Project Scope'!$BQ$8:$BQ$107,'Project Scope'!$C$8:$C$107,CI$7),0)","v":0},{"$f":"IF(AK76=\"yes\",SUMIFS('Project Scope'!$BN$8:$BN$107,'Project Scope'!$C$8:$C$107,CJ$7)+SUMIFS('Project Scope'!$BQ$8:$BQ$107,'Project Scope'!$C$8:$C$107,CJ$7),0)","v":0},{"$f":"IF(AL76=\"yes\",SUMIFS('Project Scope'!$BN$8:$BN$107,'Project Scope'!$C$8:$C$107,CK$7)+SUMIFS('Project Scope'!$BQ$8:$BQ$107,'Project Scope'!$C$8:$C$107,CK$7),0)","v":0},{"$f":"IF(AM76=\"yes\",SUMIFS('Project Scope'!$BN$8:$BN$107,'Project Scope'!$C$8:$C$107,CL$7)+SUMIFS('Project Scope'!$BQ$8:$BQ$107,'Project Scope'!$C$8:$C$107,CL$7),0)","v":0},{"$f":"IF(AN76=\"yes\",SUMIFS('Project Scope'!$BN$8:$BN$107,'Project Scope'!$C$8:$C$107,CM$7)+SUMIFS('Project Scope'!$BQ$8:$BQ$107,'Project Scope'!$C$8:$C$107,CM$7),0)","v":0},{"$f":"IF(AO76=\"yes\",SUMIFS('Project Scope'!$BN$8:$BN$107,'Project Scope'!$C$8:$C$107,CN$7)+SUMIFS('Project Scope'!$BQ$8:$BQ$107,'Project Scope'!$C$8:$C$107,CN$7),0)","v":0},{"$f":"IF(AP76=\"yes\",SUMIFS('Project Scope'!$BN$8:$BN$107,'Project Scope'!$C$8:$C$107,CO$7)+SUMIFS('Project Scope'!$BQ$8:$BQ$107,'Project Scope'!$C$8:$C$107,CO$7),0)","v":0},{"$f":"IF(AQ76=\"yes\",SUMIFS('Project Scope'!$BN$8:$BN$107,'Project Scope'!$C$8:$C$107,CP$7)+SUMIFS('Project Scope'!$BQ$8:$BQ$107,'Project Scope'!$C$8:$C$107,CP$7),0)","v":0},{"$f":"IF(AR76=\"yes\",SUMIFS('Project Scope'!$BN$8:$BN$107,'Project Scope'!$C$8:$C$107,CQ$7)+SUMIFS('Project Scope'!$BQ$8:$BQ$107,'Project Scope'!$C$8:$C$107,CQ$7),0)","v":0},{"$f":"IF(AS76=\"yes\",SUMIFS('Project Scope'!$BN$8:$BN$107,'Project Scope'!$C$8:$C$107,CR$7)+SUMIFS('Project Scope'!$BQ$8:$BQ$107,'Project Scope'!$C$8:$C$107,CR$7),0)","v":0},{"$f":"IF(AT76=\"yes\",SUMIFS('Project Scope'!$BN$8:$BN$107,'Project Scope'!$C$8:$C$107,CS$7)+SUMIFS('Project Scope'!$BQ$8:$BQ$107,'Project Scope'!$C$8:$C$107,CS$7),0)","v":0},{"$f":"IF(AU76=\"yes\",SUMIFS('Project Scope'!$BN$8:$BN$107,'Project Scope'!$C$8:$C$107,CT$7)+SUMIFS('Project Scope'!$BQ$8:$BQ$107,'Project Scope'!$C$8:$C$107,CT$7),0)","v":0},{"$f":"IF(AV76=\"yes\",SUMIFS('Project Scope'!$BN$8:$BN$107,'Project Scope'!$C$8:$C$107,CU$7)+SUMIFS('Project Scope'!$BQ$8:$BQ$107,'Project Scope'!$C$8:$C$107,CU$7),0)","v":0},{"$f":"IF(AW76=\"yes\",SUMIFS('Project Scope'!$BN$8:$BN$107,'Project Scope'!$C$8:$C$107,CV$7)+SUMIFS('Project Scope'!$BQ$8:$BQ$107,'Project Scope'!$C$8:$C$107,CV$7),0)","v":0},{"$f":"IF(AX76=\"yes\",SUMIFS('Project Scope'!$BN$8:$BN$107,'Project Scope'!$C$8:$C$107,CW$7)+SUMIFS('Project Scope'!$BQ$8:$BQ$107,'Project Scope'!$C$8:$C$107,CW$7),0)","v":0},{"$f":"IF(AY76=\"yes\",SUMIFS('Project Scope'!$BN$8:$BN$107,'Project Scope'!$C$8:$C$107,CX$7)+SUMIFS('Project Scope'!$BQ$8:$BQ$107,'Project Scope'!$C$8:$C$107,CX$7),0)","v":0},{"$f":"IF(AZ76=\"yes\",SUMIFS('Project Scope'!$BN$8:$BN$107,'Project Scope'!$C$8:$C$107,CY$7)+SUMIFS('Project Scope'!$BQ$8:$BQ$107,'Project Scope'!$C$8:$C$107,CY$7),0)","v":0},{"$f":"IF(BA76=\"yes\",SUMIFS('Project Scope'!$BN$8:$BN$107,'Project Scope'!$C$8:$C$107,CZ$7)+SUMIFS('Project Scope'!$BQ$8:$BQ$107,'Project Scope'!$C$8:$C$107,CZ$7),0)","v":0},{"$f":"IF(BB76=\"yes\",SUMIFS('Project Scope'!$BN$8:$BN$107,'Project Scope'!$C$8:$C$107,DA$7)+SUMIFS('Project Scope'!$BQ$8:$BQ$107,'Project Scope'!$C$8:$C$107,DA$7),0)","v":0},{"$f":"IF(BC76=\"yes\",SUMIFS('Project Scope'!$BN$8:$BN$107,'Project Scope'!$C$8:$C$107,DB$7)+SUMIFS('Project Scope'!$BQ$8:$BQ$107,'Project Scope'!$C$8:$C$107,DB$7),0)","v":0},{"$f":"IF(BD76=\"yes\",SUMIFS('Project Scope'!$BN$8:$BN$107,'Project Scope'!$C$8:$C$107,DC$7)+SUMIFS('Project Scope'!$BQ$8:$BQ$107,'Project Scope'!$C$8:$C$107,DC$7),0)","v":0},{"$f":"IF(BE76=\"yes\",SUMIFS('Project Scope'!$BN$8:$BN$107,'Project Scope'!$C$8:$C$107,DD$7)+SUMIFS('Project Scope'!$BQ$8:$BQ$107,'Project Scope'!$C$8:$C$107,DD$7),0)","v":0},{"$f":"IF(BF76=\"yes\",SUMIFS('Project Scope'!$BN$8:$BN$107,'Project Scope'!$C$8:$C$107,DE$7)+SUMIFS('Project Scope'!$BQ$8:$BQ$107,'Project Scope'!$C$8:$C$107,DE$7),0)","v":0},{"$f":"IF(BG76=\"yes\",SUMIFS('Project Scope'!$BN$8:$BN$107,'Project Scope'!$C$8:$C$107,DF$7)+SUMIFS('Project Scope'!$BQ$8:$BQ$107,'Project Scope'!$C$8:$C$107,DF$7),0)","v":0},{"$f":"IF(BH76=\"yes\",SUMIFS('Project Scope'!$BN$8:$BN$107,'Project Scope'!$C$8:$C$107,DG$7)+SUMIFS('Project Scope'!$BQ$8:$BQ$107,'Project Scope'!$C$8:$C$107,DG$7),0)","v":0},{"$f":"IF(BI76=\"yes\",SUMIFS('Project Scope'!$BN$8:$BN$107,'Project Scope'!$C$8:$C$107,DH$7)+SUMIFS('Project Scope'!$BQ$8:$BQ$107,'Project Scope'!$C$8:$C$107,DH$7),0)","v":0},{"$f":"IF(BJ76=\"yes\",SUMIFS('Project Scope'!$BN$8:$BN$107,'Project Scope'!$C$8:$C$107,DI$7)+SUMIFS('Project Scope'!$BQ$8:$BQ$107,'Project Scope'!$C$8:$C$107,DI$7),0)","v":0},{"$f":"IF(BK76=\"yes\",SUMIFS('Project Scope'!$BN$8:$BN$107,'Project Scope'!$C$8:$C$107,DJ$7)+SUMIFS('Project Scope'!$BQ$8:$BQ$107,'Project Scope'!$C$8:$C$107,DJ$7),0)","v":0},{"$f":"IF(BL76=\"yes\",SUMIFS('Project Scope'!$BN$8:$BN$107,'Project Scope'!$C$8:$C$107,DK$7)+SUMIFS('Project Scope'!$BQ$8:$BQ$107,'Project Scope'!$C$8:$C$107,DK$7),0)","v":0},null,"","","","","","","","","","","","","","","","","","","","","","","","","","","","","","","","","","","","","","","","","","","","","","","","","","",null,""]
[null,null,null,null,null,null,null,null,null,null,null,{"$f":"IF($C77=\"additional labor hours\",K77*'Project Information'!$D$12,K77*J77)*IF($F77=\"Per Location\",COUNTIF($O77:$BL77,\"Yes\"),1)","v":0},{"$f":"IF($C77=\"\",0,IF(VLOOKUP($C77,'Other Data'!$B$146:$C$156,2,FALSE)=\"M\",$L77,0))","v":0},0,null,null,null,null,null,null,null,null,null,null,null,null,null,null,null,null,null,null,null,null,null,null,null,null,null,null,null,null,null,null,null,null,null,null,null,null,null,null,null,null,null,null,null,null,null,null,null,null,null,null,null,{"$f":"IF(O77=\"yes\",SUMIFS('Project Scope'!$BN$8:$BN$107,'Project Scope'!$C$8:$C$107,BN$7)+SUMIFS('Project Scope'!$BQ$8:$BQ$107,'Project Scope'!$C$8:$C$107,BN$7),0)","v":0},{"$f":"IF(P77=\"yes\",SUMIFS('Project Scope'!$BN$8:$BN$107,'Project Scope'!$C$8:$C$107,BO$7)+SUMIFS('Project Scope'!$BQ$8:$BQ$107,'Project Scope'!$C$8:$C$107,BO$7),0)","v":0},{"$f":"IF(Q77=\"yes\",SUMIFS('Project Scope'!$BN$8:$BN$107,'Project Scope'!$C$8:$C$107,BP$7)+SUMIFS('Project Scope'!$BQ$8:$BQ$107,'Project Scope'!$C$8:$C$107,BP$7),0)","v":0},{"$f":"IF(R77=\"yes\",SUMIFS('Project Scope'!$BN$8:$BN$107,'Project Scope'!$C$8:$C$107,BQ$7)+SUMIFS('Project Scope'!$BQ$8:$BQ$107,'Project Scope'!$C$8:$C$107,BQ$7),0)","v":0},{"$f":"IF(S77=\"yes\",SUMIFS('Project Scope'!$BN$8:$BN$107,'Project Scope'!$C$8:$C$107,BR$7)+SUMIFS('Project Scope'!$BQ$8:$BQ$107,'Project Scope'!$C$8:$C$107,BR$7),0)","v":0},{"$f":"IF(T77=\"yes\",SUMIFS('Project Scope'!$BN$8:$BN$107,'Project Scope'!$C$8:$C$107,BS$7)+SUMIFS('Project Scope'!$BQ$8:$BQ$107,'Project Scope'!$C$8:$C$107,BS$7),0)","v":0},{"$f":"IF(U77=\"yes\",SUMIFS('Project Scope'!$BN$8:$BN$107,'Project Scope'!$C$8:$C$107,BT$7)+SUMIFS('Project Scope'!$BQ$8:$BQ$107,'Project Scope'!$C$8:$C$107,BT$7),0)","v":0},{"$f":"IF(V77=\"yes\",SUMIFS('Project Scope'!$BN$8:$BN$107,'Project Scope'!$C$8:$C$107,BU$7)+SUMIFS('Project Scope'!$BQ$8:$BQ$107,'Project Scope'!$C$8:$C$107,BU$7),0)","v":0},{"$f":"IF(W77=\"yes\",SUMIFS('Project Scope'!$BN$8:$BN$107,'Project Scope'!$C$8:$C$107,BV$7)+SUMIFS('Project Scope'!$BQ$8:$BQ$107,'Project Scope'!$C$8:$C$107,BV$7),0)","v":0},{"$f":"IF(X77=\"yes\",SUMIFS('Project Scope'!$BN$8:$BN$107,'Project Scope'!$C$8:$C$107,BW$7)+SUMIFS('Project Scope'!$BQ$8:$BQ$107,'Project Scope'!$C$8:$C$107,BW$7),0)","v":0},{"$f":"IF(Y77=\"yes\",SUMIFS('Project Scope'!$BN$8:$BN$107,'Project Scope'!$C$8:$C$107,BX$7)+SUMIFS('Project Scope'!$BQ$8:$BQ$107,'Project Scope'!$C$8:$C$107,BX$7),0)","v":0},{"$f":"IF(Z77=\"yes\",SUMIFS('Project Scope'!$BN$8:$BN$107,'Project Scope'!$C$8:$C$107,BY$7)+SUMIFS('Project Scope'!$BQ$8:$BQ$107,'Project Scope'!$C$8:$C$107,BY$7),0)","v":0},{"$f":"IF(AA77=\"yes\",SUMIFS('Project Scope'!$BN$8:$BN$107,'Project Scope'!$C$8:$C$107,BZ$7)+SUMIFS('Project Scope'!$BQ$8:$BQ$107,'Project Scope'!$C$8:$C$107,BZ$7),0)","v":0},{"$f":"IF(AB77=\"yes\",SUMIFS('Project Scope'!$BN$8:$BN$107,'Project Scope'!$C$8:$C$107,CA$7)+SUMIFS('Project Scope'!$BQ$8:$BQ$107,'Project Scope'!$C$8:$C$107,CA$7),0)","v":0},{"$f":"IF(AC77=\"yes\",SUMIFS('Project Scope'!$BN$8:$BN$107,'Project Scope'!$C$8:$C$107,CB$7)+SUMIFS('Project Scope'!$BQ$8:$BQ$107,'Project Scope'!$C$8:$C$107,CB$7),0)","v":0},{"$f":"IF(AD77=\"yes\",SUMIFS('Project Scope'!$BN$8:$BN$107,'Project Scope'!$C$8:$C$107,CC$7)+SUMIFS('Project Scope'!$BQ$8:$BQ$107,'Project Scope'!$C$8:$C$107,CC$7),0)","v":0},{"$f":"IF(AE77=\"yes\",SUMIFS('Project Scope'!$BN$8:$BN$107,'Project Scope'!$C$8:$C$107,CD$7)+SUMIFS('Project Scope'!$BQ$8:$BQ$107,'Project Scope'!$C$8:$C$107,CD$7),0)","v":0},{"$f":"IF(AF77=\"yes\",SUMIFS('Project Scope'!$BN$8:$BN$107,'Project Scope'!$C$8:$C$107,CE$7)+SUMIFS('Project Scope'!$BQ$8:$BQ$107,'Project Scope'!$C$8:$C$107,CE$7),0)","v":0},{"$f":"IF(AG77=\"yes\",SUMIFS('Project Scope'!$BN$8:$BN$107,'Project Scope'!$C$8:$C$107,CF$7)+SUMIFS('Project Scope'!$BQ$8:$BQ$107,'Project Scope'!$C$8:$C$107,CF$7),0)","v":0},{"$f":"IF(AH77=\"yes\",SUMIFS('Project Scope'!$BN$8:$BN$107,'Project Scope'!$C$8:$C$107,CG$7)+SUMIFS('Project Scope'!$BQ$8:$BQ$107,'Project Scope'!$C$8:$C$107,CG$7),0)","v":0},{"$f":"IF(AI77=\"yes\",SUMIFS('Project Scope'!$BN$8:$BN$107,'Project Scope'!$C$8:$C$107,CH$7)+SUMIFS('Project Scope'!$BQ$8:$BQ$107,'Project Scope'!$C$8:$C$107,CH$7),0)","v":0},{"$f":"IF(AJ77=\"yes\",SUMIFS('Project Scope'!$BN$8:$BN$107,'Project Scope'!$C$8:$C$107,CI$7)+SUMIFS('Project Scope'!$BQ$8:$BQ$107,'Project Scope'!$C$8:$C$107,CI$7),0)","v":0},{"$f":"IF(AK77=\"yes\",SUMIFS('Project Scope'!$BN$8:$BN$107,'Project Scope'!$C$8:$C$107,CJ$7)+SUMIFS('Project Scope'!$BQ$8:$BQ$107,'Project Scope'!$C$8:$C$107,CJ$7),0)","v":0},{"$f":"IF(AL77=\"yes\",SUMIFS('Project Scope'!$BN$8:$BN$107,'Project Scope'!$C$8:$C$107,CK$7)+SUMIFS('Project Scope'!$BQ$8:$BQ$107,'Project Scope'!$C$8:$C$107,CK$7),0)","v":0},{"$f":"IF(AM77=\"yes\",SUMIFS('Project Scope'!$BN$8:$BN$107,'Project Scope'!$C$8:$C$107,CL$7)+SUMIFS('Project Scope'!$BQ$8:$BQ$107,'Project Scope'!$C$8:$C$107,CL$7),0)","v":0},{"$f":"IF(AN77=\"yes\",SUMIFS('Project Scope'!$BN$8:$BN$107,'Project Scope'!$C$8:$C$107,CM$7)+SUMIFS('Project Scope'!$BQ$8:$BQ$107,'Project Scope'!$C$8:$C$107,CM$7),0)","v":0},{"$f":"IF(AO77=\"yes\",SUMIFS('Project Scope'!$BN$8:$BN$107,'Project Scope'!$C$8:$C$107,CN$7)+SUMIFS('Project Scope'!$BQ$8:$BQ$107,'Project Scope'!$C$8:$C$107,CN$7),0)","v":0},{"$f":"IF(AP77=\"yes\",SUMIFS('Project Scope'!$BN$8:$BN$107,'Project Scope'!$C$8:$C$107,CO$7)+SUMIFS('Project Scope'!$BQ$8:$BQ$107,'Project Scope'!$C$8:$C$107,CO$7),0)","v":0},{"$f":"IF(AQ77=\"yes\",SUMIFS('Project Scope'!$BN$8:$BN$107,'Project Scope'!$C$8:$C$107,CP$7)+SUMIFS('Project Scope'!$BQ$8:$BQ$107,'Project Scope'!$C$8:$C$107,CP$7),0)","v":0},{"$f":"IF(AR77=\"yes\",SUMIFS('Project Scope'!$BN$8:$BN$107,'Project Scope'!$C$8:$C$107,CQ$7)+SUMIFS('Project Scope'!$BQ$8:$BQ$107,'Project Scope'!$C$8:$C$107,CQ$7),0)","v":0},{"$f":"IF(AS77=\"yes\",SUMIFS('Project Scope'!$BN$8:$BN$107,'Project Scope'!$C$8:$C$107,CR$7)+SUMIFS('Project Scope'!$BQ$8:$BQ$107,'Project Scope'!$C$8:$C$107,CR$7),0)","v":0},{"$f":"IF(AT77=\"yes\",SUMIFS('Project Scope'!$BN$8:$BN$107,'Project Scope'!$C$8:$C$107,CS$7)+SUMIFS('Project Scope'!$BQ$8:$BQ$107,'Project Scope'!$C$8:$C$107,CS$7),0)","v":0},{"$f":"IF(AU77=\"yes\",SUMIFS('Project Scope'!$BN$8:$BN$107,'Project Scope'!$C$8:$C$107,CT$7)+SUMIFS('Project Scope'!$BQ$8:$BQ$107,'Project Scope'!$C$8:$C$107,CT$7),0)","v":0},{"$f":"IF(AV77=\"yes\",SUMIFS('Project Scope'!$BN$8:$BN$107,'Project Scope'!$C$8:$C$107,CU$7)+SUMIFS('Project Scope'!$BQ$8:$BQ$107,'Project Scope'!$C$8:$C$107,CU$7),0)","v":0},{"$f":"IF(AW77=\"yes\",SUMIFS('Project Scope'!$BN$8:$BN$107,'Project Scope'!$C$8:$C$107,CV$7)+SUMIFS('Project Scope'!$BQ$8:$BQ$107,'Project Scope'!$C$8:$C$107,CV$7),0)","v":0},{"$f":"IF(AX77=\"yes\",SUMIFS('Project Scope'!$BN$8:$BN$107,'Project Scope'!$C$8:$C$107,CW$7)+SUMIFS('Project Scope'!$BQ$8:$BQ$107,'Project Scope'!$C$8:$C$107,CW$7),0)","v":0},{"$f":"IF(AY77=\"yes\",SUMIFS('Project Scope'!$BN$8:$BN$107,'Project Scope'!$C$8:$C$107,CX$7)+SUMIFS('Project Scope'!$BQ$8:$BQ$107,'Project Scope'!$C$8:$C$107,CX$7),0)","v":0},{"$f":"IF(AZ77=\"yes\",SUMIFS('Project Scope'!$BN$8:$BN$107,'Project Scope'!$C$8:$C$107,CY$7)+SUMIFS('Project Scope'!$BQ$8:$BQ$107,'Project Scope'!$C$8:$C$107,CY$7),0)","v":0},{"$f":"IF(BA77=\"yes\",SUMIFS('Project Scope'!$BN$8:$BN$107,'Project Scope'!$C$8:$C$107,CZ$7)+SUMIFS('Project Scope'!$BQ$8:$BQ$107,'Project Scope'!$C$8:$C$107,CZ$7),0)","v":0},{"$f":"IF(BB77=\"yes\",SUMIFS('Project Scope'!$BN$8:$BN$107,'Project Scope'!$C$8:$C$107,DA$7)+SUMIFS('Project Scope'!$BQ$8:$BQ$107,'Project Scope'!$C$8:$C$107,DA$7),0)","v":0},{"$f":"IF(BC77=\"yes\",SUMIFS('Project Scope'!$BN$8:$BN$107,'Project Scope'!$C$8:$C$107,DB$7)+SUMIFS('Project Scope'!$BQ$8:$BQ$107,'Project Scope'!$C$8:$C$107,DB$7),0)","v":0},{"$f":"IF(BD77=\"yes\",SUMIFS('Project Scope'!$BN$8:$BN$107,'Project Scope'!$C$8:$C$107,DC$7)+SUMIFS('Project Scope'!$BQ$8:$BQ$107,'Project Scope'!$C$8:$C$107,DC$7),0)","v":0},{"$f":"IF(BE77=\"yes\",SUMIFS('Project Scope'!$BN$8:$BN$107,'Project Scope'!$C$8:$C$107,DD$7)+SUMIFS('Project Scope'!$BQ$8:$BQ$107,'Project Scope'!$C$8:$C$107,DD$7),0)","v":0},{"$f":"IF(BF77=\"yes\",SUMIFS('Project Scope'!$BN$8:$BN$107,'Project Scope'!$C$8:$C$107,DE$7)+SUMIFS('Project Scope'!$BQ$8:$BQ$107,'Project Scope'!$C$8:$C$107,DE$7),0)","v":0},{"$f":"IF(BG77=\"yes\",SUMIFS('Project Scope'!$BN$8:$BN$107,'Project Scope'!$C$8:$C$107,DF$7)+SUMIFS('Project Scope'!$BQ$8:$BQ$107,'Project Scope'!$C$8:$C$107,DF$7),0)","v":0},{"$f":"IF(BH77=\"yes\",SUMIFS('Project Scope'!$BN$8:$BN$107,'Project Scope'!$C$8:$C$107,DG$7)+SUMIFS('Project Scope'!$BQ$8:$BQ$107,'Project Scope'!$C$8:$C$107,DG$7),0)","v":0},{"$f":"IF(BI77=\"yes\",SUMIFS('Project Scope'!$BN$8:$BN$107,'Project Scope'!$C$8:$C$107,DH$7)+SUMIFS('Project Scope'!$BQ$8:$BQ$107,'Project Scope'!$C$8:$C$107,DH$7),0)","v":0},{"$f":"IF(BJ77=\"yes\",SUMIFS('Project Scope'!$BN$8:$BN$107,'Project Scope'!$C$8:$C$107,DI$7)+SUMIFS('Project Scope'!$BQ$8:$BQ$107,'Project Scope'!$C$8:$C$107,DI$7),0)","v":0},{"$f":"IF(BK77=\"yes\",SUMIFS('Project Scope'!$BN$8:$BN$107,'Project Scope'!$C$8:$C$107,DJ$7)+SUMIFS('Project Scope'!$BQ$8:$BQ$107,'Project Scope'!$C$8:$C$107,DJ$7),0)","v":0},{"$f":"IF(BL77=\"yes\",SUMIFS('Project Scope'!$BN$8:$BN$107,'Project Scope'!$C$8:$C$107,DK$7)+SUMIFS('Project Scope'!$BQ$8:$BQ$107,'Project Scope'!$C$8:$C$107,DK$7),0)","v":0},null,"","","","","","","","","","","","","","","","","","","","","","","","","","","","","","","","","","","","","","","","","","","","","","","","","","",null,""]
[null,null,null,null,null,null,null,null,null,null,null,{"$f":"IF($C78=\"additional labor hours\",K78*'Project Information'!$D$12,K78*J78)*IF($F78=\"Per Location\",COUNTIF($O78:$BL78,\"Yes\"),1)","v":0},{"$f":"IF($C78=\"\",0,IF(VLOOKUP($C78,'Other Data'!$B$146:$C$156,2,FALSE)=\"M\",$L78,0))","v":0},0,null,null,null,null,null,null,null,null,null,null,null,null,null,null,null,null,null,null,null,null,null,null,null,null,null,null,null,null,null,null,null,null,null,null,null,null,null,null,null,null,null,null,null,null,null,null,null,null,null,null,null,{"$f":"IF(O78=\"yes\",SUMIFS('Project Scope'!$BN$8:$BN$107,'Project Scope'!$C$8:$C$107,BN$7)+SUMIFS('Project Scope'!$BQ$8:$BQ$107,'Project Scope'!$C$8:$C$107,BN$7),0)","v":0},{"$f":"IF(P78=\"yes\",SUMIFS('Project Scope'!$BN$8:$BN$107,'Project Scope'!$C$8:$C$107,BO$7)+SUMIFS('Project Scope'!$BQ$8:$BQ$107,'Project Scope'!$C$8:$C$107,BO$7),0)","v":0},{"$f":"IF(Q78=\"yes\",SUMIFS('Project Scope'!$BN$8:$BN$107,'Project Scope'!$C$8:$C$107,BP$7)+SUMIFS('Project Scope'!$BQ$8:$BQ$107,'Project Scope'!$C$8:$C$107,BP$7),0)","v":0},{"$f":"IF(R78=\"yes\",SUMIFS('Project Scope'!$BN$8:$BN$107,'Project Scope'!$C$8:$C$107,BQ$7)+SUMIFS('Project Scope'!$BQ$8:$BQ$107,'Project Scope'!$C$8:$C$107,BQ$7),0)","v":0},{"$f":"IF(S78=\"yes\",SUMIFS('Project Scope'!$BN$8:$BN$107,'Project Scope'!$C$8:$C$107,BR$7)+SUMIFS('Project Scope'!$BQ$8:$BQ$107,'Project Scope'!$C$8:$C$107,BR$7),0)","v":0},{"$f":"IF(T78=\"yes\",SUMIFS('Project Scope'!$BN$8:$BN$107,'Project Scope'!$C$8:$C$107,BS$7)+SUMIFS('Project Scope'!$BQ$8:$BQ$107,'Project Scope'!$C$8:$C$107,BS$7),0)","v":0},{"$f":"IF(U78=\"yes\",SUMIFS('Project Scope'!$BN$8:$BN$107,'Project Scope'!$C$8:$C$107,BT$7)+SUMIFS('Project Scope'!$BQ$8:$BQ$107,'Project Scope'!$C$8:$C$107,BT$7),0)","v":0},{"$f":"IF(V78=\"yes\",SUMIFS('Project Scope'!$BN$8:$BN$107,'Project Scope'!$C$8:$C$107,BU$7)+SUMIFS('Project Scope'!$BQ$8:$BQ$107,'Project Scope'!$C$8:$C$107,BU$7),0)","v":0},{"$f":"IF(W78=\"yes\",SUMIFS('Project Scope'!$BN$8:$BN$107,'Project Scope'!$C$8:$C$107,BV$7)+SUMIFS('Project Scope'!$BQ$8:$BQ$107,'Project Scope'!$C$8:$C$107,BV$7),0)","v":0},{"$f":"IF(X78=\"yes\",SUMIFS('Project Scope'!$BN$8:$BN$107,'Project Scope'!$C$8:$C$107,BW$7)+SUMIFS('Project Scope'!$BQ$8:$BQ$107,'Project Scope'!$C$8:$C$107,BW$7),0)","v":0},{"$f":"IF(Y78=\"yes\",SUMIFS('Project Scope'!$BN$8:$BN$107,'Project Scope'!$C$8:$C$107,BX$7)+SUMIFS('Project Scope'!$BQ$8:$BQ$107,'Project Scope'!$C$8:$C$107,BX$7),0)","v":0},{"$f":"IF(Z78=\"yes\",SUMIFS('Project Scope'!$BN$8:$BN$107,'Project Scope'!$C$8:$C$107,BY$7)+SUMIFS('Project Scope'!$BQ$8:$BQ$107,'Project Scope'!$C$8:$C$107,BY$7),0)","v":0},{"$f":"IF(AA78=\"yes\",SUMIFS('Project Scope'!$BN$8:$BN$107,'Project Scope'!$C$8:$C$107,BZ$7)+SUMIFS('Project Scope'!$BQ$8:$BQ$107,'Project Scope'!$C$8:$C$107,BZ$7),0)","v":0},{"$f":"IF(AB78=\"yes\",SUMIFS('Project Scope'!$BN$8:$BN$107,'Project Scope'!$C$8:$C$107,CA$7)+SUMIFS('Project Scope'!$BQ$8:$BQ$107,'Project Scope'!$C$8:$C$107,CA$7),0)","v":0},{"$f":"IF(AC78=\"yes\",SUMIFS('Project Scope'!$BN$8:$BN$107,'Project Scope'!$C$8:$C$107,CB$7)+SUMIFS('Project Scope'!$BQ$8:$BQ$107,'Project Scope'!$C$8:$C$107,CB$7),0)","v":0},{"$f":"IF(AD78=\"yes\",SUMIFS('Project Scope'!$BN$8:$BN$107,'Project Scope'!$C$8:$C$107,CC$7)+SUMIFS('Project Scope'!$BQ$8:$BQ$107,'Project Scope'!$C$8:$C$107,CC$7),0)","v":0},{"$f":"IF(AE78=\"yes\",SUMIFS('Project Scope'!$BN$8:$BN$107,'Project Scope'!$C$8:$C$107,CD$7)+SUMIFS('Project Scope'!$BQ$8:$BQ$107,'Project Scope'!$C$8:$C$107,CD$7),0)","v":0},{"$f":"IF(AF78=\"yes\",SUMIFS('Project Scope'!$BN$8:$BN$107,'Project Scope'!$C$8:$C$107,CE$7)+SUMIFS('Project Scope'!$BQ$8:$BQ$107,'Project Scope'!$C$8:$C$107,CE$7),0)","v":0},{"$f":"IF(AG78=\"yes\",SUMIFS('Project Scope'!$BN$8:$BN$107,'Project Scope'!$C$8:$C$107,CF$7)+SUMIFS('Project Scope'!$BQ$8:$BQ$107,'Project Scope'!$C$8:$C$107,CF$7),0)","v":0},{"$f":"IF(AH78=\"yes\",SUMIFS('Project Scope'!$BN$8:$BN$107,'Project Scope'!$C$8:$C$107,CG$7)+SUMIFS('Project Scope'!$BQ$8:$BQ$107,'Project Scope'!$C$8:$C$107,CG$7),0)","v":0},{"$f":"IF(AI78=\"yes\",SUMIFS('Project Scope'!$BN$8:$BN$107,'Project Scope'!$C$8:$C$107,CH$7)+SUMIFS('Project Scope'!$BQ$8:$BQ$107,'Project Scope'!$C$8:$C$107,CH$7),0)","v":0},{"$f":"IF(AJ78=\"yes\",SUMIFS('Project Scope'!$BN$8:$BN$107,'Project Scope'!$C$8:$C$107,CI$7)+SUMIFS('Project Scope'!$BQ$8:$BQ$107,'Project Scope'!$C$8:$C$107,CI$7),0)","v":0},{"$f":"IF(AK78=\"yes\",SUMIFS('Project Scope'!$BN$8:$BN$107,'Project Scope'!$C$8:$C$107,CJ$7)+SUMIFS('Project Scope'!$BQ$8:$BQ$107,'Project Scope'!$C$8:$C$107,CJ$7),0)","v":0},{"$f":"IF(AL78=\"yes\",SUMIFS('Project Scope'!$BN$8:$BN$107,'Project Scope'!$C$8:$C$107,CK$7)+SUMIFS('Project Scope'!$BQ$8:$BQ$107,'Project Scope'!$C$8:$C$107,CK$7),0)","v":0},{"$f":"IF(AM78=\"yes\",SUMIFS('Project Scope'!$BN$8:$BN$107,'Project Scope'!$C$8:$C$107,CL$7)+SUMIFS('Project Scope'!$BQ$8:$BQ$107,'Project Scope'!$C$8:$C$107,CL$7),0)","v":0},{"$f":"IF(AN78=\"yes\",SUMIFS('Project Scope'!$BN$8:$BN$107,'Project Scope'!$C$8:$C$107,CM$7)+SUMIFS('Project Scope'!$BQ$8:$BQ$107,'Project Scope'!$C$8:$C$107,CM$7),0)","v":0},{"$f":"IF(AO78=\"yes\",SUMIFS('Project Scope'!$BN$8:$BN$107,'Project Scope'!$C$8:$C$107,CN$7)+SUMIFS('Project Scope'!$BQ$8:$BQ$107,'Project Scope'!$C$8:$C$107,CN$7),0)","v":0},{"$f":"IF(AP78=\"yes\",SUMIFS('Project Scope'!$BN$8:$BN$107,'Project Scope'!$C$8:$C$107,CO$7)+SUMIFS('Project Scope'!$BQ$8:$BQ$107,'Project Scope'!$C$8:$C$107,CO$7),0)","v":0},{"$f":"IF(AQ78=\"yes\",SUMIFS('Project Scope'!$BN$8:$BN$107,'Project Scope'!$C$8:$C$107,CP$7)+SUMIFS('Project Scope'!$BQ$8:$BQ$107,'Project Scope'!$C$8:$C$107,CP$7),0)","v":0},{"$f":"IF(AR78=\"yes\",SUMIFS('Project Scope'!$BN$8:$BN$107,'Project Scope'!$C$8:$C$107,CQ$7)+SUMIFS('Project Scope'!$BQ$8:$BQ$107,'Project Scope'!$C$8:$C$107,CQ$7),0)","v":0},{"$f":"IF(AS78=\"yes\",SUMIFS('Project Scope'!$BN$8:$BN$107,'Project Scope'!$C$8:$C$107,CR$7)+SUMIFS('Project Scope'!$BQ$8:$BQ$107,'Project Scope'!$C$8:$C$107,CR$7),0)","v":0},{"$f":"IF(AT78=\"yes\",SUMIFS('Project Scope'!$BN$8:$BN$107,'Project Scope'!$C$8:$C$107,CS$7)+SUMIFS('Project Scope'!$BQ$8:$BQ$107,'Project Scope'!$C$8:$C$107,CS$7),0)","v":0},{"$f":"IF(AU78=\"yes\",SUMIFS('Project Scope'!$BN$8:$BN$107,'Project Scope'!$C$8:$C$107,CT$7)+SUMIFS('Project Scope'!$BQ$8:$BQ$107,'Project Scope'!$C$8:$C$107,CT$7),0)","v":0},{"$f":"IF(AV78=\"yes\",SUMIFS('Project Scope'!$BN$8:$BN$107,'Project Scope'!$C$8:$C$107,CU$7)+SUMIFS('Project Scope'!$BQ$8:$BQ$107,'Project Scope'!$C$8:$C$107,CU$7),0)","v":0},{"$f":"IF(AW78=\"yes\",SUMIFS('Project Scope'!$BN$8:$BN$107,'Project Scope'!$C$8:$C$107,CV$7)+SUMIFS('Project Scope'!$BQ$8:$BQ$107,'Project Scope'!$C$8:$C$107,CV$7),0)","v":0},{"$f":"IF(AX78=\"yes\",SUMIFS('Project Scope'!$BN$8:$BN$107,'Project Scope'!$C$8:$C$107,CW$7)+SUMIFS('Project Scope'!$BQ$8:$BQ$107,'Project Scope'!$C$8:$C$107,CW$7),0)","v":0},{"$f":"IF(AY78=\"yes\",SUMIFS('Project Scope'!$BN$8:$BN$107,'Project Scope'!$C$8:$C$107,CX$7)+SUMIFS('Project Scope'!$BQ$8:$BQ$107,'Project Scope'!$C$8:$C$107,CX$7),0)","v":0},{"$f":"IF(AZ78=\"yes\",SUMIFS('Project Scope'!$BN$8:$BN$107,'Project Scope'!$C$8:$C$107,CY$7)+SUMIFS('Project Scope'!$BQ$8:$BQ$107,'Project Scope'!$C$8:$C$107,CY$7),0)","v":0},{"$f":"IF(BA78=\"yes\",SUMIFS('Project Scope'!$BN$8:$BN$107,'Project Scope'!$C$8:$C$107,CZ$7)+SUMIFS('Project Scope'!$BQ$8:$BQ$107,'Project Scope'!$C$8:$C$107,CZ$7),0)","v":0},{"$f":"IF(BB78=\"yes\",SUMIFS('Project Scope'!$BN$8:$BN$107,'Project Scope'!$C$8:$C$107,DA$7)+SUMIFS('Project Scope'!$BQ$8:$BQ$107,'Project Scope'!$C$8:$C$107,DA$7),0)","v":0},{"$f":"IF(BC78=\"yes\",SUMIFS('Project Scope'!$BN$8:$BN$107,'Project Scope'!$C$8:$C$107,DB$7)+SUMIFS('Project Scope'!$BQ$8:$BQ$107,'Project Scope'!$C$8:$C$107,DB$7),0)","v":0},{"$f":"IF(BD78=\"yes\",SUMIFS('Project Scope'!$BN$8:$BN$107,'Project Scope'!$C$8:$C$107,DC$7)+SUMIFS('Project Scope'!$BQ$8:$BQ$107,'Project Scope'!$C$8:$C$107,DC$7),0)","v":0},{"$f":"IF(BE78=\"yes\",SUMIFS('Project Scope'!$BN$8:$BN$107,'Project Scope'!$C$8:$C$107,DD$7)+SUMIFS('Project Scope'!$BQ$8:$BQ$107,'Project Scope'!$C$8:$C$107,DD$7),0)","v":0},{"$f":"IF(BF78=\"yes\",SUMIFS('Project Scope'!$BN$8:$BN$107,'Project Scope'!$C$8:$C$107,DE$7)+SUMIFS('Project Scope'!$BQ$8:$BQ$107,'Project Scope'!$C$8:$C$107,DE$7),0)","v":0},{"$f":"IF(BG78=\"yes\",SUMIFS('Project Scope'!$BN$8:$BN$107,'Project Scope'!$C$8:$C$107,DF$7)+SUMIFS('Project Scope'!$BQ$8:$BQ$107,'Project Scope'!$C$8:$C$107,DF$7),0)","v":0},{"$f":"IF(BH78=\"yes\",SUMIFS('Project Scope'!$BN$8:$BN$107,'Project Scope'!$C$8:$C$107,DG$7)+SUMIFS('Project Scope'!$BQ$8:$BQ$107,'Project Scope'!$C$8:$C$107,DG$7),0)","v":0},{"$f":"IF(BI78=\"yes\",SUMIFS('Project Scope'!$BN$8:$BN$107,'Project Scope'!$C$8:$C$107,DH$7)+SUMIFS('Project Scope'!$BQ$8:$BQ$107,'Project Scope'!$C$8:$C$107,DH$7),0)","v":0},{"$f":"IF(BJ78=\"yes\",SUMIFS('Project Scope'!$BN$8:$BN$107,'Project Scope'!$C$8:$C$107,DI$7)+SUMIFS('Project Scope'!$BQ$8:$BQ$107,'Project Scope'!$C$8:$C$107,DI$7),0)","v":0},{"$f":"IF(BK78=\"yes\",SUMIFS('Project Scope'!$BN$8:$BN$107,'Project Scope'!$C$8:$C$107,DJ$7)+SUMIFS('Project Scope'!$BQ$8:$BQ$107,'Project Scope'!$C$8:$C$107,DJ$7),0)","v":0},{"$f":"IF(BL78=\"yes\",SUMIFS('Project Scope'!$BN$8:$BN$107,'Project Scope'!$C$8:$C$107,DK$7)+SUMIFS('Project Scope'!$BQ$8:$BQ$107,'Project Scope'!$C$8:$C$107,DK$7),0)","v":0},null,"","","","","","","","","","","","","","","","","","","","","","","","","",{"$f":"IF(CM78>0,EL$71,\"\")","v":""},{"$f":"IF(CN78>0,EM$71,\"\")","v":""},{"$f":"IF(CO78>0,EN$71,\"\")","v":""},{"$f":"IF(CP78>0,EO$71,\"\")","v":""},{"$f":"IF(CQ78>0,EP$71,\"\")","v":""},{"$f":"IF(CR78>0,EQ$71,\"\")","v":""},{"$f":"IF(CS78>0,ER$71,\"\")","v":""},{"$f":"IF(CT78>0,ES$71,\"\")","v":""},{"$f":"IF(CU78>0,ET$71,\"\")","v":""},{"$f":"IF(CV78>0,EU$71,\"\")","v":""},{"$f":"IF(CW78>0,EV$71,\"\")","v":""},{"$f":"IF(CX78>0,EW$71,\"\")","v":""},{"$f":"IF(CY78>0,EX$71,\"\")","v":""},{"$f":"IF(CZ78>0,EY$71,\"\")","v":""},{"$f":"IF(DA78>0,EZ$71,\"\")","v":""},{"$f":"IF(DB78>0,FA$71,\"\")","v":""},{"$f":"IF(DC78>0,FB$71,\"\")","v":""},{"$f":"IF(DD78>0,FC$71,\"\")","v":""},{"$f":"IF(DE78>0,FD$71,\"\")","v":""},{"$f":"IF(DF78>0,FE$71,\"\")","v":""},{"$f":"IF(DG78>0,FF$71,\"\")","v":""},{"$f":"IF(DH78>0,FG$71,\"\")","v":""},{"$f":"IF(DI78>0,FH$71,\"\")","v":""},{"$f":"IF(DJ78>0,FI$71,\"\")","v":""},{"$f":"IF(DK78>0,FJ$71,\"\")","v":""},null,""]
[null,null,null,null,null,null,null,null,null,null,null,{"$f":"IF($C79=\"additional labor hours\",K79*'Project Information'!$D$12,K79*J79)*IF($F79=\"Per Location\",COUNTIF($O79:$BL79,\"Yes\"),1)","v":0},{"$f":"IF($C79=\"\",0,IF(VLOOKUP($C79,'Other Data'!$B$146:$C$156,2,FALSE)=\"M\",$L79,0))","v":0},0,null,null,null,null,null,null,null,null,null,null,null,null,null,null,null,null,null,null,null,null,null,null,null,null,null,null,null,null,null,null,null,null,null,null,null,null,null,null,null,null,null,null,null,null,null,null,null,null,null,null,null,{"$f":"IF(O79=\"yes\",SUMIFS('Project Scope'!$BN$8:$BN$107,'Project Scope'!$C$8:$C$107,BN$7)+SUMIFS('Project Scope'!$BQ$8:$BQ$107,'Project Scope'!$C$8:$C$107,BN$7),0)","v":0},{"$f":"IF(P79=\"yes\",SUMIFS('Project Scope'!$BN$8:$BN$107,'Project Scope'!$C$8:$C$107,BO$7)+SUMIFS('Project Scope'!$BQ$8:$BQ$107,'Project Scope'!$C$8:$C$107,BO$7),0)","v":0},{"$f":"IF(Q79=\"yes\",SUMIFS('Project Scope'!$BN$8:$BN$107,'Project Scope'!$C$8:$C$107,BP$7)+SUMIFS('Project Scope'!$BQ$8:$BQ$107,'Project Scope'!$C$8:$C$107,BP$7),0)","v":0},{"$f":"IF(R79=\"yes\",SUMIFS('Project Scope'!$BN$8:$BN$107,'Project Scope'!$C$8:$C$107,BQ$7)+SUMIFS('Project Scope'!$BQ$8:$BQ$107,'Project Scope'!$C$8:$C$107,BQ$7),0)","v":0},{"$f":"IF(S79=\"yes\",SUMIFS('Project Scope'!$BN$8:$BN$107,'Project Scope'!$C$8:$C$107,BR$7)+SUMIFS('Project Scope'!$BQ$8:$BQ$107,'Project Scope'!$C$8:$C$107,BR$7),0)","v":0},{"$f":"IF(T79=\"yes\",SUMIFS('Project Scope'!$BN$8:$BN$107,'Project Scope'!$C$8:$C$107,BS$7)+SUMIFS('Project Scope'!$BQ$8:$BQ$107,'Project Scope'!$C$8:$C$107,BS$7),0)","v":0},{"$f":"IF(U79=\"yes\",SUMIFS('Project Scope'!$BN$8:$BN$107,'Project Scope'!$C$8:$C$107,BT$7)+SUMIFS('Project Scope'!$BQ$8:$BQ$107,'Project Scope'!$C$8:$C$107,BT$7),0)","v":0},{"$f":"IF(V79=\"yes\",SUMIFS('Project Scope'!$BN$8:$BN$107,'Project Scope'!$C$8:$C$107,BU$7)+SUMIFS('Project Scope'!$BQ$8:$BQ$107,'Project Scope'!$C$8:$C$107,BU$7),0)","v":0},{"$f":"IF(W79=\"yes\",SUMIFS('Project Scope'!$BN$8:$BN$107,'Project Scope'!$C$8:$C$107,BV$7)+SUMIFS('Project Scope'!$BQ$8:$BQ$107,'Project Scope'!$C$8:$C$107,BV$7),0)","v":0},{"$f":"IF(X79=\"yes\",SUMIFS('Project Scope'!$BN$8:$BN$107,'Project Scope'!$C$8:$C$107,BW$7)+SUMIFS('Project Scope'!$BQ$8:$BQ$107,'Project Scope'!$C$8:$C$107,BW$7),0)","v":0},{"$f":"IF(Y79=\"yes\",SUMIFS('Project Scope'!$BN$8:$BN$107,'Project Scope'!$C$8:$C$107,BX$7)+SUMIFS('Project Scope'!$BQ$8:$BQ$107,'Project Scope'!$C$8:$C$107,BX$7),0)","v":0},{"$f":"IF(Z79=\"yes\",SUMIFS('Project Scope'!$BN$8:$BN$107,'Project Scope'!$C$8:$C$107,BY$7)+SUMIFS('Project Scope'!$BQ$8:$BQ$107,'Project Scope'!$C$8:$C$107,BY$7),0)","v":0},{"$f":"IF(AA79=\"yes\",SUMIFS('Project Scope'!$BN$8:$BN$107,'Project Scope'!$C$8:$C$107,BZ$7)+SUMIFS('Project Scope'!$BQ$8:$BQ$107,'Project Scope'!$C$8:$C$107,BZ$7),0)","v":0},{"$f":"IF(AB79=\"yes\",SUMIFS('Project Scope'!$BN$8:$BN$107,'Project Scope'!$C$8:$C$107,CA$7)+SUMIFS('Project Scope'!$BQ$8:$BQ$107,'Project Scope'!$C$8:$C$107,CA$7),0)","v":0},{"$f":"IF(AC79=\"yes\",SUMIFS('Project Scope'!$BN$8:$BN$107,'Project Scope'!$C$8:$C$107,CB$7)+SUMIFS('Project Scope'!$BQ$8:$BQ$107,'Project Scope'!$C$8:$C$107,CB$7),0)","v":0},{"$f":"IF(AD79=\"yes\",SUMIFS('Project Scope'!$BN$8:$BN$107,'Project Scope'!$C$8:$C$107,CC$7)+SUMIFS('Project Scope'!$BQ$8:$BQ$107,'Project Scope'!$C$8:$C$107,CC$7),0)","v":0},{"$f":"IF(AE79=\"yes\",SUMIFS('Project Scope'!$BN$8:$BN$107,'Project Scope'!$C$8:$C$107,CD$7)+SUMIFS('Project Scope'!$BQ$8:$BQ$107,'Project Scope'!$C$8:$C$107,CD$7),0)","v":0},{"$f":"IF(AF79=\"yes\",SUMIFS('Project Scope'!$BN$8:$BN$107,'Project Scope'!$C$8:$C$107,CE$7)+SUMIFS('Project Scope'!$BQ$8:$BQ$107,'Project Scope'!$C$8:$C$107,CE$7),0)","v":0},{"$f":"IF(AG79=\"yes\",SUMIFS('Project Scope'!$BN$8:$BN$107,'Project Scope'!$C$8:$C$107,CF$7)+SUMIFS('Project Scope'!$BQ$8:$BQ$107,'Project Scope'!$C$8:$C$107,CF$7),0)","v":0},{"$f":"IF(AH79=\"yes\",SUMIFS('Project Scope'!$BN$8:$BN$107,'Project Scope'!$C$8:$C$107,CG$7)+SUMIFS('Project Scope'!$BQ$8:$BQ$107,'Project Scope'!$C$8:$C$107,CG$7),0)","v":0},{"$f":"IF(AI79=\"yes\",SUMIFS('Project Scope'!$BN$8:$BN$107,'Project Scope'!$C$8:$C$107,CH$7)+SUMIFS('Project Scope'!$BQ$8:$BQ$107,'Project Scope'!$C$8:$C$107,CH$7),0)","v":0},{"$f":"IF(AJ79=\"yes\",SUMIFS('Project Scope'!$BN$8:$BN$107,'Project Scope'!$C$8:$C$107,CI$7)+SUMIFS('Project Scope'!$BQ$8:$BQ$107,'Project Scope'!$C$8:$C$107,CI$7),0)","v":0},{"$f":"IF(AK79=\"yes\",SUMIFS('Project Scope'!$BN$8:$BN$107,'Project Scope'!$C$8:$C$107,CJ$7)+SUMIFS('Project Scope'!$BQ$8:$BQ$107,'Project Scope'!$C$8:$C$107,CJ$7),0)","v":0},{"$f":"IF(AL79=\"yes\",SUMIFS('Project Scope'!$BN$8:$BN$107,'Project Scope'!$C$8:$C$107,CK$7)+SUMIFS('Project Scope'!$BQ$8:$BQ$107,'Project Scope'!$C$8:$C$107,CK$7),0)","v":0},{"$f":"IF(AM79=\"yes\",SUMIFS('Project Scope'!$BN$8:$BN$107,'Project Scope'!$C$8:$C$107,CL$7)+SUMIFS('Project Scope'!$BQ$8:$BQ$107,'Project Scope'!$C$8:$C$107,CL$7),0)","v":0},{"$f":"IF(AN79=\"yes\",SUMIFS('Project Scope'!$BN$8:$BN$107,'Project Scope'!$C$8:$C$107,CM$7)+SUMIFS('Project Scope'!$BQ$8:$BQ$107,'Project Scope'!$C$8:$C$107,CM$7),0)","v":0},{"$f":"IF(AO79=\"yes\",SUMIFS('Project Scope'!$BN$8:$BN$107,'Project Scope'!$C$8:$C$107,CN$7)+SUMIFS('Project Scope'!$BQ$8:$BQ$107,'Project Scope'!$C$8:$C$107,CN$7),0)","v":0},{"$f":"IF(AP79=\"yes\",SUMIFS('Project Scope'!$BN$8:$BN$107,'Project Scope'!$C$8:$C$107,CO$7)+SUMIFS('Project Scope'!$BQ$8:$BQ$107,'Project Scope'!$C$8:$C$107,CO$7),0)","v":0},{"$f":"IF(AQ79=\"yes\",SUMIFS('Project Scope'!$BN$8:$BN$107,'Project Scope'!$C$8:$C$107,CP$7)+SUMIFS('Project Scope'!$BQ$8:$BQ$107,'Project Scope'!$C$8:$C$107,CP$7),0)","v":0},{"$f":"IF(AR79=\"yes\",SUMIFS('Project Scope'!$BN$8:$BN$107,'Project Scope'!$C$8:$C$107,CQ$7)+SUMIFS('Project Scope'!$BQ$8:$BQ$107,'Project Scope'!$C$8:$C$107,CQ$7),0)","v":0},{"$f":"IF(AS79=\"yes\",SUMIFS('Project Scope'!$BN$8:$BN$107,'Project Scope'!$C$8:$C$107,CR$7)+SUMIFS('Project Scope'!$BQ$8:$BQ$107,'Project Scope'!$C$8:$C$107,CR$7),0)","v":0},{"$f":"IF(AT79=\"yes\",SUMIFS('Project Scope'!$BN$8:$BN$107,'Project Scope'!$C$8:$C$107,CS$7)+SUMIFS('Project Scope'!$BQ$8:$BQ$107,'Project Scope'!$C$8:$C$107,CS$7),0)","v":0},{"$f":"IF(AU79=\"yes\",SUMIFS('Project Scope'!$BN$8:$BN$107,'Project Scope'!$C$8:$C$107,CT$7)+SUMIFS('Project Scope'!$BQ$8:$BQ$107,'Project Scope'!$C$8:$C$107,CT$7),0)","v":0},{"$f":"IF(AV79=\"yes\",SUMIFS('Project Scope'!$BN$8:$BN$107,'Project Scope'!$C$8:$C$107,CU$7)+SUMIFS('Project Scope'!$BQ$8:$BQ$107,'Project Scope'!$C$8:$C$107,CU$7),0)","v":0},{"$f":"IF(AW79=\"yes\",SUMIFS('Project Scope'!$BN$8:$BN$107,'Project Scope'!$C$8:$C$107,CV$7)+SUMIFS('Project Scope'!$BQ$8:$BQ$107,'Project Scope'!$C$8:$C$107,CV$7),0)","v":0},{"$f":"IF(AX79=\"yes\",SUMIFS('Project Scope'!$BN$8:$BN$107,'Project Scope'!$C$8:$C$107,CW$7)+SUMIFS('Project Scope'!$BQ$8:$BQ$107,'Project Scope'!$C$8:$C$107,CW$7),0)","v":0},{"$f":"IF(AY79=\"yes\",SUMIFS('Project Scope'!$BN$8:$BN$107,'Project Scope'!$C$8:$C$107,CX$7)+SUMIFS('Project Scope'!$BQ$8:$BQ$107,'Project Scope'!$C$8:$C$107,CX$7),0)","v":0},{"$f":"IF(AZ79=\"yes\",SUMIFS('Project Scope'!$BN$8:$BN$107,'Project Scope'!$C$8:$C$107,CY$7)+SUMIFS('Project Scope'!$BQ$8:$BQ$107,'Project Scope'!$C$8:$C$107,CY$7),0)","v":0},{"$f":"IF(BA79=\"yes\",SUMIFS('Project Scope'!$BN$8:$BN$107,'Project Scope'!$C$8:$C$107,CZ$7)+SUMIFS('Project Scope'!$BQ$8:$BQ$107,'Project Scope'!$C$8:$C$107,CZ$7),0)","v":0},{"$f":"IF(BB79=\"yes\",SUMIFS('Project Scope'!$BN$8:$BN$107,'Project Scope'!$C$8:$C$107,DA$7)+SUMIFS('Project Scope'!$BQ$8:$BQ$107,'Project Scope'!$C$8:$C$107,DA$7),0)","v":0},{"$f":"IF(BC79=\"yes\",SUMIFS('Project Scope'!$BN$8:$BN$107,'Project Scope'!$C$8:$C$107,DB$7)+SUMIFS('Project Scope'!$BQ$8:$BQ$107,'Project Scope'!$C$8:$C$107,DB$7),0)","v":0},{"$f":"IF(BD79=\"yes\",SUMIFS('Project Scope'!$BN$8:$BN$107,'Project Scope'!$C$8:$C$107,DC$7)+SUMIFS('Project Scope'!$BQ$8:$BQ$107,'Project Scope'!$C$8:$C$107,DC$7),0)","v":0},{"$f":"IF(BE79=\"yes\",SUMIFS('Project Scope'!$BN$8:$BN$107,'Project Scope'!$C$8:$C$107,DD$7)+SUMIFS('Project Scope'!$BQ$8:$BQ$107,'Project Scope'!$C$8:$C$107,DD$7),0)","v":0},{"$f":"IF(BF79=\"yes\",SUMIFS('Project Scope'!$BN$8:$BN$107,'Project Scope'!$C$8:$C$107,DE$7)+SUMIFS('Project Scope'!$BQ$8:$BQ$107,'Project Scope'!$C$8:$C$107,DE$7),0)","v":0},{"$f":"IF(BG79=\"yes\",SUMIFS('Project Scope'!$BN$8:$BN$107,'Project Scope'!$C$8:$C$107,DF$7)+SUMIFS('Project Scope'!$BQ$8:$BQ$107,'Project Scope'!$C$8:$C$107,DF$7),0)","v":0},{"$f":"IF(BH79=\"yes\",SUMIFS('Project Scope'!$BN$8:$BN$107,'Project Scope'!$C$8:$C$107,DG$7)+SUMIFS('Project Scope'!$BQ$8:$BQ$107,'Project Scope'!$C$8:$C$107,DG$7),0)","v":0},{"$f":"IF(BI79=\"yes\",SUMIFS('Project Scope'!$BN$8:$BN$107,'Project Scope'!$C$8:$C$107,DH$7)+SUMIFS('Project Scope'!$BQ$8:$BQ$107,'Project Scope'!$C$8:$C$107,DH$7),0)","v":0},{"$f":"IF(BJ79=\"yes\",SUMIFS('Project Scope'!$BN$8:$BN$107,'Project Scope'!$C$8:$C$107,DI$7)+SUMIFS('Project Scope'!$BQ$8:$BQ$107,'Project Scope'!$C$8:$C$107,DI$7),0)","v":0},{"$f":"IF(BK79=\"yes\",SUMIFS('Project Scope'!$BN$8:$BN$107,'Project Scope'!$C$8:$C$107,DJ$7)+SUMIFS('Project Scope'!$BQ$8:$BQ$107,'Project Scope'!$C$8:$C$107,DJ$7),0)","v":0},{"$f":"IF(BL79=\"yes\",SUMIFS('Project Scope'!$BN$8:$BN$107,'Project Scope'!$C$8:$C$107,DK$7)+SUMIFS('Project Scope'!$BQ$8:$BQ$107,'Project Scope'!$C$8:$C$107,DK$7),0)","v":0},null,"","","","","","","","","","",{"$f":"IF(BX79>0,DW$71,\"\")","v":""},{"$f":"IF(BY79>0,DX$71,\"\")","v":""},{"$f":"IF(BZ79>0,DY$71,\"\")","v":""},{"$f":"IF(CA79>0,DZ$71,\"\")","v":""},{"$f":"IF(CB79>0,EA$71,\"\")","v":""},{"$f":"IF(CC79>0,EB$71,\"\")","v":""},{"$f":"IF(CD79>0,EC$71,\"\")","v":""},{"$f":"IF(CE79>0,ED$71,\"\")","v":""},{"$f":"IF(CF79>0,EE$71,\"\")","v":""},{"$f":"IF(CG79>0,EF$71,\"\")","v":""},{"$f":"IF(CH79>0,EG$71,\"\")","v":""},{"$f":"IF(CI79>0,EH$71,\"\")","v":""},{"$f":"IF(CJ79>0,EI$71,\"\")","v":""},{"$f":"IF(CK79>0,EJ$71,\"\")","v":""},{"$f":"IF(CL79>0,EK$71,\"\")","v":""},"","","","","","","","","","","","","","","","","","","","","","","","","",null,""]
[null,null,null,null,null,null,null,null,null,null,null,{"$f":"IF($C80=\"additional labor hours\",K80*'Project Information'!$D$12,K80*J80)*IF($F80=\"Per Location\",COUNTIF($O80:$BL80,\"Yes\"),1)","v":0},{"$f":"IF($C80=\"\",0,IF(VLOOKUP($C80,'Other Data'!$B$146:$C$156,2,FALSE)=\"M\",$L80,0))","v":0},0,null,null,null,null,null,null,null,null,null,null,null,null,null,null,null,null,null,null,null,null,null,null,null,null,null,null,null,null,null,null,null,null,null,null,null,null,null,null,null,null,null,null,null,null,null,null,null,null,null,null,null,{"$f":"IF(O80=\"yes\",SUMIFS('Project Scope'!$BN$8:$BN$107,'Project Scope'!$C$8:$C$107,BN$7)+SUMIFS('Project Scope'!$BQ$8:$BQ$107,'Project Scope'!$C$8:$C$107,BN$7),0)","v":0},{"$f":"IF(P80=\"yes\",SUMIFS('Project Scope'!$BN$8:$BN$107,'Project Scope'!$C$8:$C$107,BO$7)+SUMIFS('Project Scope'!$BQ$8:$BQ$107,'Project Scope'!$C$8:$C$107,BO$7),0)","v":0},{"$f":"IF(Q80=\"yes\",SUMIFS('Project Scope'!$BN$8:$BN$107,'Project Scope'!$C$8:$C$107,BP$7)+SUMIFS('Project Scope'!$BQ$8:$BQ$107,'Project Scope'!$C$8:$C$107,BP$7),0)","v":0},{"$f":"IF(R80=\"yes\",SUMIFS('Project Scope'!$BN$8:$BN$107,'Project Scope'!$C$8:$C$107,BQ$7)+SUMIFS('Project Scope'!$BQ$8:$BQ$107,'Project Scope'!$C$8:$C$107,BQ$7),0)","v":0},{"$f":"IF(S80=\"yes\",SUMIFS('Project Scope'!$BN$8:$BN$107,'Project Scope'!$C$8:$C$107,BR$7)+SUMIFS('Project Scope'!$BQ$8:$BQ$107,'Project Scope'!$C$8:$C$107,BR$7),0)","v":0},{"$f":"IF(T80=\"yes\",SUMIFS('Project Scope'!$BN$8:$BN$107,'Project Scope'!$C$8:$C$107,BS$7)+SUMIFS('Project Scope'!$BQ$8:$BQ$107,'Project Scope'!$C$8:$C$107,BS$7),0)","v":0},{"$f":"IF(U80=\"yes\",SUMIFS('Project Scope'!$BN$8:$BN$107,'Project Scope'!$C$8:$C$107,BT$7)+SUMIFS('Project Scope'!$BQ$8:$BQ$107,'Project Scope'!$C$8:$C$107,BT$7),0)","v":0},{"$f":"IF(V80=\"yes\",SUMIFS('Project Scope'!$BN$8:$BN$107,'Project Scope'!$C$8:$C$107,BU$7)+SUMIFS('Project Scope'!$BQ$8:$BQ$107,'Project Scope'!$C$8:$C$107,BU$7),0)","v":0},{"$f":"IF(W80=\"yes\",SUMIFS('Project Scope'!$BN$8:$BN$107,'Project Scope'!$C$8:$C$107,BV$7)+SUMIFS('Project Scope'!$BQ$8:$BQ$107,'Project Scope'!$C$8:$C$107,BV$7),0)","v":0},{"$f":"IF(X80=\"yes\",SUMIFS('Project Scope'!$BN$8:$BN$107,'Project Scope'!$C$8:$C$107,BW$7)+SUMIFS('Project Scope'!$BQ$8:$BQ$107,'Project Scope'!$C$8:$C$107,BW$7),0)","v":0},{"$f":"IF(Y80=\"yes\",SUMIFS('Project Scope'!$BN$8:$BN$107,'Project Scope'!$C$8:$C$107,BX$7)+SUMIFS('Project Scope'!$BQ$8:$BQ$107,'Project Scope'!$C$8:$C$107,BX$7),0)","v":0},{"$f":"IF(Z80=\"yes\",SUMIFS('Project Scope'!$BN$8:$BN$107,'Project Scope'!$C$8:$C$107,BY$7)+SUMIFS('Project Scope'!$BQ$8:$BQ$107,'Project Scope'!$C$8:$C$107,BY$7),0)","v":0},{"$f":"IF(AA80=\"yes\",SUMIFS('Project Scope'!$BN$8:$BN$107,'Project Scope'!$C$8:$C$107,BZ$7)+SUMIFS('Project Scope'!$BQ$8:$BQ$107,'Project Scope'!$C$8:$C$107,BZ$7),0)","v":0},{"$f":"IF(AB80=\"yes\",SUMIFS('Project Scope'!$BN$8:$BN$107,'Project Scope'!$C$8:$C$107,CA$7)+SUMIFS('Project Scope'!$BQ$8:$BQ$107,'Project Scope'!$C$8:$C$107,CA$7),0)","v":0},{"$f":"IF(AC80=\"yes\",SUMIFS('Project Scope'!$BN$8:$BN$107,'Project Scope'!$C$8:$C$107,CB$7)+SUMIFS('Project Scope'!$BQ$8:$BQ$107,'Project Scope'!$C$8:$C$107,CB$7),0)","v":0},{"$f":"IF(AD80=\"yes\",SUMIFS('Project Scope'!$BN$8:$BN$107,'Project Scope'!$C$8:$C$107,CC$7)+SUMIFS('Project Scope'!$BQ$8:$BQ$107,'Project Scope'!$C$8:$C$107,CC$7),0)","v":0},{"$f":"IF(AE80=\"yes\",SUMIFS('Project Scope'!$BN$8:$BN$107,'Project Scope'!$C$8:$C$107,CD$7)+SUMIFS('Project Scope'!$BQ$8:$BQ$107,'Project Scope'!$C$8:$C$107,CD$7),0)","v":0},{"$f":"IF(AF80=\"yes\",SUMIFS('Project Scope'!$BN$8:$BN$107,'Project Scope'!$C$8:$C$107,CE$7)+SUMIFS('Project Scope'!$BQ$8:$BQ$107,'Project Scope'!$C$8:$C$107,CE$7),0)","v":0},{"$f":"IF(AG80=\"yes\",SUMIFS('Project Scope'!$BN$8:$BN$107,'Project Scope'!$C$8:$C$107,CF$7)+SUMIFS('Project Scope'!$BQ$8:$BQ$107,'Project Scope'!$C$8:$C$107,CF$7),0)","v":0},{"$f":"IF(AH80=\"yes\",SUMIFS('Project Scope'!$BN$8:$BN$107,'Project Scope'!$C$8:$C$107,CG$7)+SUMIFS('Project Scope'!$BQ$8:$BQ$107,'Project Scope'!$C$8:$C$107,CG$7),0)","v":0},{"$f":"IF(AI80=\"yes\",SUMIFS('Project Scope'!$BN$8:$BN$107,'Project Scope'!$C$8:$C$107,CH$7)+SUMIFS('Project Scope'!$BQ$8:$BQ$107,'Project Scope'!$C$8:$C$107,CH$7),0)","v":0},{"$f":"IF(AJ80=\"yes\",SUMIFS('Project Scope'!$BN$8:$BN$107,'Project Scope'!$C$8:$C$107,CI$7)+SUMIFS('Project Scope'!$BQ$8:$BQ$107,'Project Scope'!$C$8:$C$107,CI$7),0)","v":0},{"$f":"IF(AK80=\"yes\",SUMIFS('Project Scope'!$BN$8:$BN$107,'Project Scope'!$C$8:$C$107,CJ$7)+SUMIFS('Project Scope'!$BQ$8:$BQ$107,'Project Scope'!$C$8:$C$107,CJ$7),0)","v":0},{"$f":"IF(AL80=\"yes\",SUMIFS('Project Scope'!$BN$8:$BN$107,'Project Scope'!$C$8:$C$107,CK$7)+SUMIFS('Project Scope'!$BQ$8:$BQ$107,'Project Scope'!$C$8:$C$107,CK$7),0)","v":0},{"$f":"IF(AM80=\"yes\",SUMIFS('Project Scope'!$BN$8:$BN$107,'Project Scope'!$C$8:$C$107,CL$7)+SUMIFS('Project Scope'!$BQ$8:$BQ$107,'Project Scope'!$C$8:$C$107,CL$7),0)","v":0},{"$f":"IF(AN80=\"yes\",SUMIFS('Project Scope'!$BN$8:$BN$107,'Project Scope'!$C$8:$C$107,CM$7)+SUMIFS('Project Scope'!$BQ$8:$BQ$107,'Project Scope'!$C$8:$C$107,CM$7),0)","v":0},{"$f":"IF(AO80=\"yes\",SUMIFS('Project Scope'!$BN$8:$BN$107,'Project Scope'!$C$8:$C$107,CN$7)+SUMIFS('Project Scope'!$BQ$8:$BQ$107,'Project Scope'!$C$8:$C$107,CN$7),0)","v":0},{"$f":"IF(AP80=\"yes\",SUMIFS('Project Scope'!$BN$8:$BN$107,'Project Scope'!$C$8:$C$107,CO$7)+SUMIFS('Project Scope'!$BQ$8:$BQ$107,'Project Scope'!$C$8:$C$107,CO$7),0)","v":0},{"$f":"IF(AQ80=\"yes\",SUMIFS('Project Scope'!$BN$8:$BN$107,'Project Scope'!$C$8:$C$107,CP$7)+SUMIFS('Project Scope'!$BQ$8:$BQ$107,'Project Scope'!$C$8:$C$107,CP$7),0)","v":0},{"$f":"IF(AR80=\"yes\",SUMIFS('Project Scope'!$BN$8:$BN$107,'Project Scope'!$C$8:$C$107,CQ$7)+SUMIFS('Project Scope'!$BQ$8:$BQ$107,'Project Scope'!$C$8:$C$107,CQ$7),0)","v":0},{"$f":"IF(AS80=\"yes\",SUMIFS('Project Scope'!$BN$8:$BN$107,'Project Scope'!$C$8:$C$107,CR$7)+SUMIFS('Project Scope'!$BQ$8:$BQ$107,'Project Scope'!$C$8:$C$107,CR$7),0)","v":0},{"$f":"IF(AT80=\"yes\",SUMIFS('Project Scope'!$BN$8:$BN$107,'Project Scope'!$C$8:$C$107,CS$7)+SUMIFS('Project Scope'!$BQ$8:$BQ$107,'Project Scope'!$C$8:$C$107,CS$7),0)","v":0},{"$f":"IF(AU80=\"yes\",SUMIFS('Project Scope'!$BN$8:$BN$107,'Project Scope'!$C$8:$C$107,CT$7)+SUMIFS('Project Scope'!$BQ$8:$BQ$107,'Project Scope'!$C$8:$C$107,CT$7),0)","v":0},{"$f":"IF(AV80=\"yes\",SUMIFS('Project Scope'!$BN$8:$BN$107,'Project Scope'!$C$8:$C$107,CU$7)+SUMIFS('Project Scope'!$BQ$8:$BQ$107,'Project Scope'!$C$8:$C$107,CU$7),0)","v":0},{"$f":"IF(AW80=\"yes\",SUMIFS('Project Scope'!$BN$8:$BN$107,'Project Scope'!$C$8:$C$107,CV$7)+SUMIFS('Project Scope'!$BQ$8:$BQ$107,'Project Scope'!$C$8:$C$107,CV$7),0)","v":0},{"$f":"IF(AX80=\"yes\",SUMIFS('Project Scope'!$BN$8:$BN$107,'Project Scope'!$C$8:$C$107,CW$7)+SUMIFS('Project Scope'!$BQ$8:$BQ$107,'Project Scope'!$C$8:$C$107,CW$7),0)","v":0},{"$f":"IF(AY80=\"yes\",SUMIFS('Project Scope'!$BN$8:$BN$107,'Project Scope'!$C$8:$C$107,CX$7)+SUMIFS('Project Scope'!$BQ$8:$BQ$107,'Project Scope'!$C$8:$C$107,CX$7),0)","v":0},{"$f":"IF(AZ80=\"yes\",SUMIFS('Project Scope'!$BN$8:$BN$107,'Project Scope'!$C$8:$C$107,CY$7)+SUMIFS('Project Scope'!$BQ$8:$BQ$107,'Project Scope'!$C$8:$C$107,CY$7),0)","v":0},{"$f":"IF(BA80=\"yes\",SUMIFS('Project Scope'!$BN$8:$BN$107,'Project Scope'!$C$8:$C$107,CZ$7)+SUMIFS('Project Scope'!$BQ$8:$BQ$107,'Project Scope'!$C$8:$C$107,CZ$7),0)","v":0},{"$f":"IF(BB80=\"yes\",SUMIFS('Project Scope'!$BN$8:$BN$107,'Project Scope'!$C$8:$C$107,DA$7)+SUMIFS('Project Scope'!$BQ$8:$BQ$107,'Project Scope'!$C$8:$C$107,DA$7),0)","v":0},{"$f":"IF(BC80=\"yes\",SUMIFS('Project Scope'!$BN$8:$BN$107,'Project Scope'!$C$8:$C$107,DB$7)+SUMIFS('Project Scope'!$BQ$8:$BQ$107,'Project Scope'!$C$8:$C$107,DB$7),0)","v":0},{"$f":"IF(BD80=\"yes\",SUMIFS('Project Scope'!$BN$8:$BN$107,'Project Scope'!$C$8:$C$107,DC$7)+SUMIFS('Project Scope'!$BQ$8:$BQ$107,'Project Scope'!$C$8:$C$107,DC$7),0)","v":0},{"$f":"IF(BE80=\"yes\",SUMIFS('Project Scope'!$BN$8:$BN$107,'Project Scope'!$C$8:$C$107,DD$7)+SUMIFS('Project Scope'!$BQ$8:$BQ$107,'Project Scope'!$C$8:$C$107,DD$7),0)","v":0},{"$f":"IF(BF80=\"yes\",SUMIFS('Project Scope'!$BN$8:$BN$107,'Project Scope'!$C$8:$C$107,DE$7)+SUMIFS('Project Scope'!$BQ$8:$BQ$107,'Project Scope'!$C$8:$C$107,DE$7),0)","v":0},{"$f":"IF(BG80=\"yes\",SUMIFS('Project Scope'!$BN$8:$BN$107,'Project Scope'!$C$8:$C$107,DF$7)+SUMIFS('Project Scope'!$BQ$8:$BQ$107,'Project Scope'!$C$8:$C$107,DF$7),0)","v":0},{"$f":"IF(BH80=\"yes\",SUMIFS('Project Scope'!$BN$8:$BN$107,'Project Scope'!$C$8:$C$107,DG$7)+SUMIFS('Project Scope'!$BQ$8:$BQ$107,'Project Scope'!$C$8:$C$107,DG$7),0)","v":0},{"$f":"IF(BI80=\"yes\",SUMIFS('Project Scope'!$BN$8:$BN$107,'Project Scope'!$C$8:$C$107,DH$7)+SUMIFS('Project Scope'!$BQ$8:$BQ$107,'Project Scope'!$C$8:$C$107,DH$7),0)","v":0},{"$f":"IF(BJ80=\"yes\",SUMIFS('Project Scope'!$BN$8:$BN$107,'Project Scope'!$C$8:$C$107,DI$7)+SUMIFS('Project Scope'!$BQ$8:$BQ$107,'Project Scope'!$C$8:$C$107,DI$7),0)","v":0},{"$f":"IF(BK80=\"yes\",SUMIFS('Project Scope'!$BN$8:$BN$107,'Project Scope'!$C$8:$C$107,DJ$7)+SUMIFS('Project Scope'!$BQ$8:$BQ$107,'Project Scope'!$C$8:$C$107,DJ$7),0)","v":0},{"$f":"IF(BL80=\"yes\",SUMIFS('Project Scope'!$BN$8:$BN$107,'Project Scope'!$C$8:$C$107,DK$7)+SUMIFS('Project Scope'!$BQ$8:$BQ$107,'Project Scope'!$C$8:$C$107,DK$7),0)","v":0},null,"","","","","","","","","","","","","","","","","","","","","","","","","","","","","","","","","","","","","","","","","","","","","","","","","","",null,""]
[null,null,null,null,null,null,null,null,null,null,null,{"$f":"IF($C81=\"additional labor hours\",K81*'Project Information'!$D$12,K81*J81)*IF($F81=\"Per Location\",COUNTIF($O81:$BL81,\"Yes\"),1)","v":0},{"$f":"IF($C81=\"\",0,IF(VLOOKUP($C81,'Other Data'!$B$146:$C$156,2,FALSE)=\"M\",$L81,0))","v":0},0,null,null,null,null,null,null,null,null,null,null,null,null,null,null,null,null,null,null,null,null,null,null,null,null,null,null,null,null,null,null,null,null,null,null,null,null,null,null,null,null,null,null,null,null,null,null,null,null,null,null,null,{"$f":"IF(O81=\"yes\",SUMIFS('Project Scope'!$BN$8:$BN$107,'Project Scope'!$C$8:$C$107,BN$7)+SUMIFS('Project Scope'!$BQ$8:$BQ$107,'Project Scope'!$C$8:$C$107,BN$7),0)","v":0},{"$f":"IF(P81=\"yes\",SUMIFS('Project Scope'!$BN$8:$BN$107,'Project Scope'!$C$8:$C$107,BO$7)+SUMIFS('Project Scope'!$BQ$8:$BQ$107,'Project Scope'!$C$8:$C$107,BO$7),0)","v":0},{"$f":"IF(Q81=\"yes\",SUMIFS('Project Scope'!$BN$8:$BN$107,'Project Scope'!$C$8:$C$107,BP$7)+SUMIFS('Project Scope'!$BQ$8:$BQ$107,'Project Scope'!$C$8:$C$107,BP$7),0)","v":0},{"$f":"IF(R81=\"yes\",SUMIFS('Project Scope'!$BN$8:$BN$107,'Project Scope'!$C$8:$C$107,BQ$7)+SUMIFS('Project Scope'!$BQ$8:$BQ$107,'Project Scope'!$C$8:$C$107,BQ$7),0)","v":0},{"$f":"IF(S81=\"yes\",SUMIFS('Project Scope'!$BN$8:$BN$107,'Project Scope'!$C$8:$C$107,BR$7)+SUMIFS('Project Scope'!$BQ$8:$BQ$107,'Project Scope'!$C$8:$C$107,BR$7),0)","v":0},{"$f":"IF(T81=\"yes\",SUMIFS('Project Scope'!$BN$8:$BN$107,'Project Scope'!$C$8:$C$107,BS$7)+SUMIFS('Project Scope'!$BQ$8:$BQ$107,'Project Scope'!$C$8:$C$107,BS$7),0)","v":0},{"$f":"IF(U81=\"yes\",SUMIFS('Project Scope'!$BN$8:$BN$107,'Project Scope'!$C$8:$C$107,BT$7)+SUMIFS('Project Scope'!$BQ$8:$BQ$107,'Project Scope'!$C$8:$C$107,BT$7),0)","v":0},{"$f":"IF(V81=\"yes\",SUMIFS('Project Scope'!$BN$8:$BN$107,'Project Scope'!$C$8:$C$107,BU$7)+SUMIFS('Project Scope'!$BQ$8:$BQ$107,'Project Scope'!$C$8:$C$107,BU$7),0)","v":0},{"$f":"IF(W81=\"yes\",SUMIFS('Project Scope'!$BN$8:$BN$107,'Project Scope'!$C$8:$C$107,BV$7)+SUMIFS('Project Scope'!$BQ$8:$BQ$107,'Project Scope'!$C$8:$C$107,BV$7),0)","v":0},{"$f":"IF(X81=\"yes\",SUMIFS('Project Scope'!$BN$8:$BN$107,'Project Scope'!$C$8:$C$107,BW$7)+SUMIFS('Project Scope'!$BQ$8:$BQ$107,'Project Scope'!$C$8:$C$107,BW$7),0)","v":0},{"$f":"IF(Y81=\"yes\",SUMIFS('Project Scope'!$BN$8:$BN$107,'Project Scope'!$C$8:$C$107,BX$7)+SUMIFS('Project Scope'!$BQ$8:$BQ$107,'Project Scope'!$C$8:$C$107,BX$7),0)","v":0},{"$f":"IF(Z81=\"yes\",SUMIFS('Project Scope'!$BN$8:$BN$107,'Project Scope'!$C$8:$C$107,BY$7)+SUMIFS('Project Scope'!$BQ$8:$BQ$107,'Project Scope'!$C$8:$C$107,BY$7),0)","v":0},{"$f":"IF(AA81=\"yes\",SUMIFS('Project Scope'!$BN$8:$BN$107,'Project Scope'!$C$8:$C$107,BZ$7)+SUMIFS('Project Scope'!$BQ$8:$BQ$107,'Project Scope'!$C$8:$C$107,BZ$7),0)","v":0},{"$f":"IF(AB81=\"yes\",SUMIFS('Project Scope'!$BN$8:$BN$107,'Project Scope'!$C$8:$C$107,CA$7)+SUMIFS('Project Scope'!$BQ$8:$BQ$107,'Project Scope'!$C$8:$C$107,CA$7),0)","v":0},{"$f":"IF(AC81=\"yes\",SUMIFS('Project Scope'!$BN$8:$BN$107,'Project Scope'!$C$8:$C$107,CB$7)+SUMIFS('Project Scope'!$BQ$8:$BQ$107,'Project Scope'!$C$8:$C$107,CB$7),0)","v":0},{"$f":"IF(AD81=\"yes\",SUMIFS('Project Scope'!$BN$8:$BN$107,'Project Scope'!$C$8:$C$107,CC$7)+SUMIFS('Project Scope'!$BQ$8:$BQ$107,'Project Scope'!$C$8:$C$107,CC$7),0)","v":0},{"$f":"IF(AE81=\"yes\",SUMIFS('Project Scope'!$BN$8:$BN$107,'Project Scope'!$C$8:$C$107,CD$7)+SUMIFS('Project Scope'!$BQ$8:$BQ$107,'Project Scope'!$C$8:$C$107,CD$7),0)","v":0},{"$f":"IF(AF81=\"yes\",SUMIFS('Project Scope'!$BN$8:$BN$107,'Project Scope'!$C$8:$C$107,CE$7)+SUMIFS('Project Scope'!$BQ$8:$BQ$107,'Project Scope'!$C$8:$C$107,CE$7),0)","v":0},{"$f":"IF(AG81=\"yes\",SUMIFS('Project Scope'!$BN$8:$BN$107,'Project Scope'!$C$8:$C$107,CF$7)+SUMIFS('Project Scope'!$BQ$8:$BQ$107,'Project Scope'!$C$8:$C$107,CF$7),0)","v":0},{"$f":"IF(AH81=\"yes\",SUMIFS('Project Scope'!$BN$8:$BN$107,'Project Scope'!$C$8:$C$107,CG$7)+SUMIFS('Project Scope'!$BQ$8:$BQ$107,'Project Scope'!$C$8:$C$107,CG$7),0)","v":0},{"$f":"IF(AI81=\"yes\",SUMIFS('Project Scope'!$BN$8:$BN$107,'Project Scope'!$C$8:$C$107,CH$7)+SUMIFS('Project Scope'!$BQ$8:$BQ$107,'Project Scope'!$C$8:$C$107,CH$7),0)","v":0},{"$f":"IF(AJ81=\"yes\",SUMIFS('Project Scope'!$BN$8:$BN$107,'Project Scope'!$C$8:$C$107,CI$7)+SUMIFS('Project Scope'!$BQ$8:$BQ$107,'Project Scope'!$C$8:$C$107,CI$7),0)","v":0},{"$f":"IF(AK81=\"yes\",SUMIFS('Project Scope'!$BN$8:$BN$107,'Project Scope'!$C$8:$C$107,CJ$7)+SUMIFS('Project Scope'!$BQ$8:$BQ$107,'Project Scope'!$C$8:$C$107,CJ$7),0)","v":0},{"$f":"IF(AL81=\"yes\",SUMIFS('Project Scope'!$BN$8:$BN$107,'Project Scope'!$C$8:$C$107,CK$7)+SUMIFS('Project Scope'!$BQ$8:$BQ$107,'Project Scope'!$C$8:$C$107,CK$7),0)","v":0},{"$f":"IF(AM81=\"yes\",SUMIFS('Project Scope'!$BN$8:$BN$107,'Project Scope'!$C$8:$C$107,CL$7)+SUMIFS('Project Scope'!$BQ$8:$BQ$107,'Project Scope'!$C$8:$C$107,CL$7),0)","v":0},{"$f":"IF(AN81=\"yes\",SUMIFS('Project Scope'!$BN$8:$BN$107,'Project Scope'!$C$8:$C$107,CM$7)+SUMIFS('Project Scope'!$BQ$8:$BQ$107,'Project Scope'!$C$8:$C$107,CM$7),0)","v":0},{"$f":"IF(AO81=\"yes\",SUMIFS('Project Scope'!$BN$8:$BN$107,'Project Scope'!$C$8:$C$107,CN$7)+SUMIFS('Project Scope'!$BQ$8:$BQ$107,'Project Scope'!$C$8:$C$107,CN$7),0)","v":0},{"$f":"IF(AP81=\"yes\",SUMIFS('Project Scope'!$BN$8:$BN$107,'Project Scope'!$C$8:$C$107,CO$7)+SUMIFS('Project Scope'!$BQ$8:$BQ$107,'Project Scope'!$C$8:$C$107,CO$7),0)","v":0},{"$f":"IF(AQ81=\"yes\",SUMIFS('Project Scope'!$BN$8:$BN$107,'Project Scope'!$C$8:$C$107,CP$7)+SUMIFS('Project Scope'!$BQ$8:$BQ$107,'Project Scope'!$C$8:$C$107,CP$7),0)","v":0},{"$f":"IF(AR81=\"yes\",SUMIFS('Project Scope'!$BN$8:$BN$107,'Project Scope'!$C$8:$C$107,CQ$7)+SUMIFS('Project Scope'!$BQ$8:$BQ$107,'Project Scope'!$C$8:$C$107,CQ$7),0)","v":0},{"$f":"IF(AS81=\"yes\",SUMIFS('Project Scope'!$BN$8:$BN$107,'Project Scope'!$C$8:$C$107,CR$7)+SUMIFS('Project Scope'!$BQ$8:$BQ$107,'Project Scope'!$C$8:$C$107,CR$7),0)","v":0},{"$f":"IF(AT81=\"yes\",SUMIFS('Project Scope'!$BN$8:$BN$107,'Project Scope'!$C$8:$C$107,CS$7)+SUMIFS('Project Scope'!$BQ$8:$BQ$107,'Project Scope'!$C$8:$C$107,CS$7),0)","v":0},{"$f":"IF(AU81=\"yes\",SUMIFS('Project Scope'!$BN$8:$BN$107,'Project Scope'!$C$8:$C$107,CT$7)+SUMIFS('Project Scope'!$BQ$8:$BQ$107,'Project Scope'!$C$8:$C$107,CT$7),0)","v":0},{"$f":"IF(AV81=\"yes\",SUMIFS('Project Scope'!$BN$8:$BN$107,'Project Scope'!$C$8:$C$107,CU$7)+SUMIFS('Project Scope'!$BQ$8:$BQ$107,'Project Scope'!$C$8:$C$107,CU$7),0)","v":0},{"$f":"IF(AW81=\"yes\",SUMIFS('Project Scope'!$BN$8:$BN$107,'Project Scope'!$C$8:$C$107,CV$7)+SUMIFS('Project Scope'!$BQ$8:$BQ$107,'Project Scope'!$C$8:$C$107,CV$7),0)","v":0},{"$f":"IF(AX81=\"yes\",SUMIFS('Project Scope'!$BN$8:$BN$107,'Project Scope'!$C$8:$C$107,CW$7)+SUMIFS('Project Scope'!$BQ$8:$BQ$107,'Project Scope'!$C$8:$C$107,CW$7),0)","v":0},{"$f":"IF(AY81=\"yes\",SUMIFS('Project Scope'!$BN$8:$BN$107,'Project Scope'!$C$8:$C$107,CX$7)+SUMIFS('Project Scope'!$BQ$8:$BQ$107,'Project Scope'!$C$8:$C$107,CX$7),0)","v":0},{"$f":"IF(AZ81=\"yes\",SUMIFS('Project Scope'!$BN$8:$BN$107,'Project Scope'!$C$8:$C$107,CY$7)+SUMIFS('Project Scope'!$BQ$8:$BQ$107,'Project Scope'!$C$8:$C$107,CY$7),0)","v":0},{"$f":"IF(BA81=\"yes\",SUMIFS('Project Scope'!$BN$8:$BN$107,'Project Scope'!$C$8:$C$107,CZ$7)+SUMIFS('Project Scope'!$BQ$8:$BQ$107,'Project Scope'!$C$8:$C$107,CZ$7),0)","v":0},{"$f":"IF(BB81=\"yes\",SUMIFS('Project Scope'!$BN$8:$BN$107,'Project Scope'!$C$8:$C$107,DA$7)+SUMIFS('Project Scope'!$BQ$8:$BQ$107,'Project Scope'!$C$8:$C$107,DA$7),0)","v":0},{"$f":"IF(BC81=\"yes\",SUMIFS('Project Scope'!$BN$8:$BN$107,'Project Scope'!$C$8:$C$107,DB$7)+SUMIFS('Project Scope'!$BQ$8:$BQ$107,'Project Scope'!$C$8:$C$107,DB$7),0)","v":0},{"$f":"IF(BD81=\"yes\",SUMIFS('Project Scope'!$BN$8:$BN$107,'Project Scope'!$C$8:$C$107,DC$7)+SUMIFS('Project Scope'!$BQ$8:$BQ$107,'Project Scope'!$C$8:$C$107,DC$7),0)","v":0},{"$f":"IF(BE81=\"yes\",SUMIFS('Project Scope'!$BN$8:$BN$107,'Project Scope'!$C$8:$C$107,DD$7)+SUMIFS('Project Scope'!$BQ$8:$BQ$107,'Project Scope'!$C$8:$C$107,DD$7),0)","v":0},{"$f":"IF(BF81=\"yes\",SUMIFS('Project Scope'!$BN$8:$BN$107,'Project Scope'!$C$8:$C$107,DE$7)+SUMIFS('Project Scope'!$BQ$8:$BQ$107,'Project Scope'!$C$8:$C$107,DE$7),0)","v":0},{"$f":"IF(BG81=\"yes\",SUMIFS('Project Scope'!$BN$8:$BN$107,'Project Scope'!$C$8:$C$107,DF$7)+SUMIFS('Project Scope'!$BQ$8:$BQ$107,'Project Scope'!$C$8:$C$107,DF$7),0)","v":0},{"$f":"IF(BH81=\"yes\",SUMIFS('Project Scope'!$BN$8:$BN$107,'Project Scope'!$C$8:$C$107,DG$7)+SUMIFS('Project Scope'!$BQ$8:$BQ$107,'Project Scope'!$C$8:$C$107,DG$7),0)","v":0},{"$f":"IF(BI81=\"yes\",SUMIFS('Project Scope'!$BN$8:$BN$107,'Project Scope'!$C$8:$C$107,DH$7)+SUMIFS('Project Scope'!$BQ$8:$BQ$107,'Project Scope'!$C$8:$C$107,DH$7),0)","v":0},{"$f":"IF(BJ81=\"yes\",SUMIFS('Project Scope'!$BN$8:$BN$107,'Project Scope'!$C$8:$C$107,DI$7)+SUMIFS('Project Scope'!$BQ$8:$BQ$107,'Project Scope'!$C$8:$C$107,DI$7),0)","v":0},{"$f":"IF(BK81=\"yes\",SUMIFS('Project Scope'!$BN$8:$BN$107,'Project Scope'!$C$8:$C$107,DJ$7)+SUMIFS('Project Scope'!$BQ$8:$BQ$107,'Project Scope'!$C$8:$C$107,DJ$7),0)","v":0},{"$f":"IF(BL81=\"yes\",SUMIFS('Project Scope'!$BN$8:$BN$107,'Project Scope'!$C$8:$C$107,DK$7)+SUMIFS('Project Scope'!$BQ$8:$BQ$107,'Project Scope'!$C$8:$C$107,DK$7),0)","v":0},null,"","","","","","","","","","","","","","","","","","","","","","","","","","","","","","","","","","","","","","","","","","","","","","","","","","",null,""]
[null,null,null,null,null,null,null,null,null,null,null,{"$f":"IF($C82=\"additional labor hours\",K82*'Project Information'!$D$12,K82*J82)*IF($F82=\"Per Location\",COUNTIF($O82:$BL82,\"Yes\"),1)","v":0},{"$f":"IF($C82=\"\",0,IF(VLOOKUP($C82,'Other Data'!$B$146:$C$156,2,FALSE)=\"M\",$L82,0))","v":0},0,null,null,null,null,null,null,null,null,null,null,null,null,null,null,null,null,null,null,null,null,null,null,null,null,null,null,null,null,null,null,null,null,null,null,null,null,null,null,null,null,null,null,null,null,null,null,null,null,null,null,null,{"$f":"IF(O82=\"yes\",SUMIFS('Project Scope'!$BN$8:$BN$107,'Project Scope'!$C$8:$C$107,BN$7)+SUMIFS('Project Scope'!$BQ$8:$BQ$107,'Project Scope'!$C$8:$C$107,BN$7),0)","v":0},{"$f":"IF(P82=\"yes\",SUMIFS('Project Scope'!$BN$8:$BN$107,'Project Scope'!$C$8:$C$107,BO$7)+SUMIFS('Project Scope'!$BQ$8:$BQ$107,'Project Scope'!$C$8:$C$107,BO$7),0)","v":0},{"$f":"IF(Q82=\"yes\",SUMIFS('Project Scope'!$BN$8:$BN$107,'Project Scope'!$C$8:$C$107,BP$7)+SUMIFS('Project Scope'!$BQ$8:$BQ$107,'Project Scope'!$C$8:$C$107,BP$7),0)","v":0},{"$f":"IF(R82=\"yes\",SUMIFS('Project Scope'!$BN$8:$BN$107,'Project Scope'!$C$8:$C$107,BQ$7)+SUMIFS('Project Scope'!$BQ$8:$BQ$107,'Project Scope'!$C$8:$C$107,BQ$7),0)","v":0},{"$f":"IF(S82=\"yes\",SUMIFS('Project Scope'!$BN$8:$BN$107,'Project Scope'!$C$8:$C$107,BR$7)+SUMIFS('Project Scope'!$BQ$8:$BQ$107,'Project Scope'!$C$8:$C$107,BR$7),0)","v":0},{"$f":"IF(T82=\"yes\",SUMIFS('Project Scope'!$BN$8:$BN$107,'Project Scope'!$C$8:$C$107,BS$7)+SUMIFS('Project Scope'!$BQ$8:$BQ$107,'Project Scope'!$C$8:$C$107,BS$7),0)","v":0},{"$f":"IF(U82=\"yes\",SUMIFS('Project Scope'!$BN$8:$BN$107,'Project Scope'!$C$8:$C$107,BT$7)+SUMIFS('Project Scope'!$BQ$8:$BQ$107,'Project Scope'!$C$8:$C$107,BT$7),0)","v":0},{"$f":"IF(V82=\"yes\",SUMIFS('Project Scope'!$BN$8:$BN$107,'Project Scope'!$C$8:$C$107,BU$7)+SUMIFS('Project Scope'!$BQ$8:$BQ$107,'Project Scope'!$C$8:$C$107,BU$7),0)","v":0},{"$f":"IF(W82=\"yes\",SUMIFS('Project Scope'!$BN$8:$BN$107,'Project Scope'!$C$8:$C$107,BV$7)+SUMIFS('Project Scope'!$BQ$8:$BQ$107,'Project Scope'!$C$8:$C$107,BV$7),0)","v":0},{"$f":"IF(X82=\"yes\",SUMIFS('Project Scope'!$BN$8:$BN$107,'Project Scope'!$C$8:$C$107,BW$7)+SUMIFS('Project Scope'!$BQ$8:$BQ$107,'Project Scope'!$C$8:$C$107,BW$7),0)","v":0},{"$f":"IF(Y82=\"yes\",SUMIFS('Project Scope'!$BN$8:$BN$107,'Project Scope'!$C$8:$C$107,BX$7)+SUMIFS('Project Scope'!$BQ$8:$BQ$107,'Project Scope'!$C$8:$C$107,BX$7),0)","v":0},{"$f":"IF(Z82=\"yes\",SUMIFS('Project Scope'!$BN$8:$BN$107,'Project Scope'!$C$8:$C$107,BY$7)+SUMIFS('Project Scope'!$BQ$8:$BQ$107,'Project Scope'!$C$8:$C$107,BY$7),0)","v":0},{"$f":"IF(AA82=\"yes\",SUMIFS('Project Scope'!$BN$8:$BN$107,'Project Scope'!$C$8:$C$107,BZ$7)+SUMIFS('Project Scope'!$BQ$8:$BQ$107,'Project Scope'!$C$8:$C$107,BZ$7),0)","v":0},{"$f":"IF(AB82=\"yes\",SUMIFS('Project Scope'!$BN$8:$BN$107,'Project Scope'!$C$8:$C$107,CA$7)+SUMIFS('Project Scope'!$BQ$8:$BQ$107,'Project Scope'!$C$8:$C$107,CA$7),0)","v":0},{"$f":"IF(AC82=\"yes\",SUMIFS('Project Scope'!$BN$8:$BN$107,'Project Scope'!$C$8:$C$107,CB$7)+SUMIFS('Project Scope'!$BQ$8:$BQ$107,'Project Scope'!$C$8:$C$107,CB$7),0)","v":0},{"$f":"IF(AD82=\"yes\",SUMIFS('Project Scope'!$BN$8:$BN$107,'Project Scope'!$C$8:$C$107,CC$7)+SUMIFS('Project Scope'!$BQ$8:$BQ$107,'Project Scope'!$C$8:$C$107,CC$7),0)","v":0},{"$f":"IF(AE82=\"yes\",SUMIFS('Project Scope'!$BN$8:$BN$107,'Project Scope'!$C$8:$C$107,CD$7)+SUMIFS('Project Scope'!$BQ$8:$BQ$107,'Project Scope'!$C$8:$C$107,CD$7),0)","v":0},{"$f":"IF(AF82=\"yes\",SUMIFS('Project Scope'!$BN$8:$BN$107,'Project Scope'!$C$8:$C$107,CE$7)+SUMIFS('Project Scope'!$BQ$8:$BQ$107,'Project Scope'!$C$8:$C$107,CE$7),0)","v":0},{"$f":"IF(AG82=\"yes\",SUMIFS('Project Scope'!$BN$8:$BN$107,'Project Scope'!$C$8:$C$107,CF$7)+SUMIFS('Project Scope'!$BQ$8:$BQ$107,'Project Scope'!$C$8:$C$107,CF$7),0)","v":0},{"$f":"IF(AH82=\"yes\",SUMIFS('Project Scope'!$BN$8:$BN$107,'Project Scope'!$C$8:$C$107,CG$7)+SUMIFS('Project Scope'!$BQ$8:$BQ$107,'Project Scope'!$C$8:$C$107,CG$7),0)","v":0},{"$f":"IF(AI82=\"yes\",SUMIFS('Project Scope'!$BN$8:$BN$107,'Project Scope'!$C$8:$C$107,CH$7)+SUMIFS('Project Scope'!$BQ$8:$BQ$107,'Project Scope'!$C$8:$C$107,CH$7),0)","v":0},{"$f":"IF(AJ82=\"yes\",SUMIFS('Project Scope'!$BN$8:$BN$107,'Project Scope'!$C$8:$C$107,CI$7)+SUMIFS('Project Scope'!$BQ$8:$BQ$107,'Project Scope'!$C$8:$C$107,CI$7),0)","v":0},{"$f":"IF(AK82=\"yes\",SUMIFS('Project Scope'!$BN$8:$BN$107,'Project Scope'!$C$8:$C$107,CJ$7)+SUMIFS('Project Scope'!$BQ$8:$BQ$107,'Project Scope'!$C$8:$C$107,CJ$7),0)","v":0},{"$f":"IF(AL82=\"yes\",SUMIFS('Project Scope'!$BN$8:$BN$107,'Project Scope'!$C$8:$C$107,CK$7)+SUMIFS('Project Scope'!$BQ$8:$BQ$107,'Project Scope'!$C$8:$C$107,CK$7),0)","v":0},{"$f":"IF(AM82=\"yes\",SUMIFS('Project Scope'!$BN$8:$BN$107,'Project Scope'!$C$8:$C$107,CL$7)+SUMIFS('Project Scope'!$BQ$8:$BQ$107,'Project Scope'!$C$8:$C$107,CL$7),0)","v":0},{"$f":"IF(AN82=\"yes\",SUMIFS('Project Scope'!$BN$8:$BN$107,'Project Scope'!$C$8:$C$107,CM$7)+SUMIFS('Project Scope'!$BQ$8:$BQ$107,'Project Scope'!$C$8:$C$107,CM$7),0)","v":0},{"$f":"IF(AO82=\"yes\",SUMIFS('Project Scope'!$BN$8:$BN$107,'Project Scope'!$C$8:$C$107,CN$7)+SUMIFS('Project Scope'!$BQ$8:$BQ$107,'Project Scope'!$C$8:$C$107,CN$7),0)","v":0},{"$f":"IF(AP82=\"yes\",SUMIFS('Project Scope'!$BN$8:$BN$107,'Project Scope'!$C$8:$C$107,CO$7)+SUMIFS('Project Scope'!$BQ$8:$BQ$107,'Project Scope'!$C$8:$C$107,CO$7),0)","v":0},{"$f":"IF(AQ82=\"yes\",SUMIFS('Project Scope'!$BN$8:$BN$107,'Project Scope'!$C$8:$C$107,CP$7)+SUMIFS('Project Scope'!$BQ$8:$BQ$107,'Project Scope'!$C$8:$C$107,CP$7),0)","v":0},{"$f":"IF(AR82=\"yes\",SUMIFS('Project Scope'!$BN$8:$BN$107,'Project Scope'!$C$8:$C$107,CQ$7)+SUMIFS('Project Scope'!$BQ$8:$BQ$107,'Project Scope'!$C$8:$C$107,CQ$7),0)","v":0},{"$f":"IF(AS82=\"yes\",SUMIFS('Project Scope'!$BN$8:$BN$107,'Project Scope'!$C$8:$C$107,CR$7)+SUMIFS('Project Scope'!$BQ$8:$BQ$107,'Project Scope'!$C$8:$C$107,CR$7),0)","v":0},{"$f":"IF(AT82=\"yes\",SUMIFS('Project Scope'!$BN$8:$BN$107,'Project Scope'!$C$8:$C$107,CS$7)+SUMIFS('Project Scope'!$BQ$8:$BQ$107,'Project Scope'!$C$8:$C$107,CS$7),0)","v":0},{"$f":"IF(AU82=\"yes\",SUMIFS('Project Scope'!$BN$8:$BN$107,'Project Scope'!$C$8:$C$107,CT$7)+SUMIFS('Project Scope'!$BQ$8:$BQ$107,'Project Scope'!$C$8:$C$107,CT$7),0)","v":0},{"$f":"IF(AV82=\"yes\",SUMIFS('Project Scope'!$BN$8:$BN$107,'Project Scope'!$C$8:$C$107,CU$7)+SUMIFS('Project Scope'!$BQ$8:$BQ$107,'Project Scope'!$C$8:$C$107,CU$7),0)","v":0},{"$f":"IF(AW82=\"yes\",SUMIFS('Project Scope'!$BN$8:$BN$107,'Project Scope'!$C$8:$C$107,CV$7)+SUMIFS('Project Scope'!$BQ$8:$BQ$107,'Project Scope'!$C$8:$C$107,CV$7),0)","v":0},{"$f":"IF(AX82=\"yes\",SUMIFS('Project Scope'!$BN$8:$BN$107,'Project Scope'!$C$8:$C$107,CW$7)+SUMIFS('Project Scope'!$BQ$8:$BQ$107,'Project Scope'!$C$8:$C$107,CW$7),0)","v":0},{"$f":"IF(AY82=\"yes\",SUMIFS('Project Scope'!$BN$8:$BN$107,'Project Scope'!$C$8:$C$107,CX$7)+SUMIFS('Project Scope'!$BQ$8:$BQ$107,'Project Scope'!$C$8:$C$107,CX$7),0)","v":0},{"$f":"IF(AZ82=\"yes\",SUMIFS('Project Scope'!$BN$8:$BN$107,'Project Scope'!$C$8:$C$107,CY$7)+SUMIFS('Project Scope'!$BQ$8:$BQ$107,'Project Scope'!$C$8:$C$107,CY$7),0)","v":0},{"$f":"IF(BA82=\"yes\",SUMIFS('Project Scope'!$BN$8:$BN$107,'Project Scope'!$C$8:$C$107,CZ$7)+SUMIFS('Project Scope'!$BQ$8:$BQ$107,'Project Scope'!$C$8:$C$107,CZ$7),0)","v":0},{"$f":"IF(BB82=\"yes\",SUMIFS('Project Scope'!$BN$8:$BN$107,'Project Scope'!$C$8:$C$107,DA$7)+SUMIFS('Project Scope'!$BQ$8:$BQ$107,'Project Scope'!$C$8:$C$107,DA$7),0)","v":0},{"$f":"IF(BC82=\"yes\",SUMIFS('Project Scope'!$BN$8:$BN$107,'Project Scope'!$C$8:$C$107,DB$7)+SUMIFS('Project Scope'!$BQ$8:$BQ$107,'Project Scope'!$C$8:$C$107,DB$7),0)","v":0},{"$f":"IF(BD82=\"yes\",SUMIFS('Project Scope'!$BN$8:$BN$107,'Project Scope'!$C$8:$C$107,DC$7)+SUMIFS('Project Scope'!$BQ$8:$BQ$107,'Project Scope'!$C$8:$C$107,DC$7),0)","v":0},{"$f":"IF(BE82=\"yes\",SUMIFS('Project Scope'!$BN$8:$BN$107,'Project Scope'!$C$8:$C$107,DD$7)+SUMIFS('Project Scope'!$BQ$8:$BQ$107,'Project Scope'!$C$8:$C$107,DD$7),0)","v":0},{"$f":"IF(BF82=\"yes\",SUMIFS('Project Scope'!$BN$8:$BN$107,'Project Scope'!$C$8:$C$107,DE$7)+SUMIFS('Project Scope'!$BQ$8:$BQ$107,'Project Scope'!$C$8:$C$107,DE$7),0)","v":0},{"$f":"IF(BG82=\"yes\",SUMIFS('Project Scope'!$BN$8:$BN$107,'Project Scope'!$C$8:$C$107,DF$7)+SUMIFS('Project Scope'!$BQ$8:$BQ$107,'Project Scope'!$C$8:$C$107,DF$7),0)","v":0},{"$f":"IF(BH82=\"yes\",SUMIFS('Project Scope'!$BN$8:$BN$107,'Project Scope'!$C$8:$C$107,DG$7)+SUMIFS('Project Scope'!$BQ$8:$BQ$107,'Project Scope'!$C$8:$C$107,DG$7),0)","v":0},{"$f":"IF(BI82=\"yes\",SUMIFS('Project Scope'!$BN$8:$BN$107,'Project Scope'!$C$8:$C$107,DH$7)+SUMIFS('Project Scope'!$BQ$8:$BQ$107,'Project Scope'!$C$8:$C$107,DH$7),0)","v":0},{"$f":"IF(BJ82=\"yes\",SUMIFS('Project Scope'!$BN$8:$BN$107,'Project Scope'!$C$8:$C$107,DI$7)+SUMIFS('Project Scope'!$BQ$8:$BQ$107,'Project Scope'!$C$8:$C$107,DI$7),0)","v":0},{"$f":"IF(BK82=\"yes\",SUMIFS('Project Scope'!$BN$8:$BN$107,'Project Scope'!$C$8:$C$107,DJ$7)+SUMIFS('Project Scope'!$BQ$8:$BQ$107,'Project Scope'!$C$8:$C$107,DJ$7),0)","v":0},{"$f":"IF(BL82=\"yes\",SUMIFS('Project Scope'!$BN$8:$BN$107,'Project Scope'!$C$8:$C$107,DK$7)+SUMIFS('Project Scope'!$BQ$8:$BQ$107,'Project Scope'!$C$8:$C$107,DK$7),0)","v":0},null,"","","","","","","","","","","","","","","","","","","","","","","","","","","","","","","","","","","","","","","","","","","","","","","","","","",null,""]
[null,null,null,null,null,null,null,null,null,null,null,{"$f":"IF($C83=\"additional labor hours\",K83*'Project Information'!$D$12,K83*J83)*IF($F83=\"Per Location\",COUNTIF($O83:$BL83,\"Yes\"),1)","v":0},{"$f":"IF($C83=\"\",0,IF(VLOOKUP($C83,'Other Data'!$B$146:$C$156,2,FALSE)=\"M\",$L83,0))","v":0},0,null,null,null,null,null,null,null,null,null,null,null,null,null,null,null,null,null,null,null,null,null,null,null,null,null,null,null,null,null,null,null,null,null,null,null,null,null,null,null,null,null,null,null,null,null,null,null,null,null,null,null,{"$f":"IF(O83=\"yes\",SUMIFS('Project Scope'!$BN$8:$BN$107,'Project Scope'!$C$8:$C$107,BN$7)+SUMIFS('Project Scope'!$BQ$8:$BQ$107,'Project Scope'!$C$8:$C$107,BN$7),0)","v":0},{"$f":"IF(P83=\"yes\",SUMIFS('Project Scope'!$BN$8:$BN$107,'Project Scope'!$C$8:$C$107,BO$7)+SUMIFS('Project Scope'!$BQ$8:$BQ$107,'Project Scope'!$C$8:$C$107,BO$7),0)","v":0},{"$f":"IF(Q83=\"yes\",SUMIFS('Project Scope'!$BN$8:$BN$107,'Project Scope'!$C$8:$C$107,BP$7)+SUMIFS('Project Scope'!$BQ$8:$BQ$107,'Project Scope'!$C$8:$C$107,BP$7),0)","v":0},{"$f":"IF(R83=\"yes\",SUMIFS('Project Scope'!$BN$8:$BN$107,'Project Scope'!$C$8:$C$107,BQ$7)+SUMIFS('Project Scope'!$BQ$8:$BQ$107,'Project Scope'!$C$8:$C$107,BQ$7),0)","v":0},{"$f":"IF(S83=\"yes\",SUMIFS('Project Scope'!$BN$8:$BN$107,'Project Scope'!$C$8:$C$107,BR$7)+SUMIFS('Project Scope'!$BQ$8:$BQ$107,'Project Scope'!$C$8:$C$107,BR$7),0)","v":0},{"$f":"IF(T83=\"yes\",SUMIFS('Project Scope'!$BN$8:$BN$107,'Project Scope'!$C$8:$C$107,BS$7)+SUMIFS('Project Scope'!$BQ$8:$BQ$107,'Project Scope'!$C$8:$C$107,BS$7),0)","v":0},{"$f":"IF(U83=\"yes\",SUMIFS('Project Scope'!$BN$8:$BN$107,'Project Scope'!$C$8:$C$107,BT$7)+SUMIFS('Project Scope'!$BQ$8:$BQ$107,'Project Scope'!$C$8:$C$107,BT$7),0)","v":0},{"$f":"IF(V83=\"yes\",SUMIFS('Project Scope'!$BN$8:$BN$107,'Project Scope'!$C$8:$C$107,BU$7)+SUMIFS('Project Scope'!$BQ$8:$BQ$107,'Project Scope'!$C$8:$C$107,BU$7),0)","v":0},{"$f":"IF(W83=\"yes\",SUMIFS('Project Scope'!$BN$8:$BN$107,'Project Scope'!$C$8:$C$107,BV$7)+SUMIFS('Project Scope'!$BQ$8:$BQ$107,'Project Scope'!$C$8:$C$107,BV$7),0)","v":0},{"$f":"IF(X83=\"yes\",SUMIFS('Project Scope'!$BN$8:$BN$107,'Project Scope'!$C$8:$C$107,BW$7)+SUMIFS('Project Scope'!$BQ$8:$BQ$107,'Project Scope'!$C$8:$C$107,BW$7),0)","v":0},{"$f":"IF(Y83=\"yes\",SUMIFS('Project Scope'!$BN$8:$BN$107,'Project Scope'!$C$8:$C$107,BX$7)+SUMIFS('Project Scope'!$BQ$8:$BQ$107,'Project Scope'!$C$8:$C$107,BX$7),0)","v":0},{"$f":"IF(Z83=\"yes\",SUMIFS('Project Scope'!$BN$8:$BN$107,'Project Scope'!$C$8:$C$107,BY$7)+SUMIFS('Project Scope'!$BQ$8:$BQ$107,'Project Scope'!$C$8:$C$107,BY$7),0)","v":0},{"$f":"IF(AA83=\"yes\",SUMIFS('Project Scope'!$BN$8:$BN$107,'Project Scope'!$C$8:$C$107,BZ$7)+SUMIFS('Project Scope'!$BQ$8:$BQ$107,'Project Scope'!$C$8:$C$107,BZ$7),0)","v":0},{"$f":"IF(AB83=\"yes\",SUMIFS('Project Scope'!$BN$8:$BN$107,'Project Scope'!$C$8:$C$107,CA$7)+SUMIFS('Project Scope'!$BQ$8:$BQ$107,'Project Scope'!$C$8:$C$107,CA$7),0)","v":0},{"$f":"IF(AC83=\"yes\",SUMIFS('Project Scope'!$BN$8:$BN$107,'Project Scope'!$C$8:$C$107,CB$7)+SUMIFS('Project Scope'!$BQ$8:$BQ$107,'Project Scope'!$C$8:$C$107,CB$7),0)","v":0},{"$f":"IF(AD83=\"yes\",SUMIFS('Project Scope'!$BN$8:$BN$107,'Project Scope'!$C$8:$C$107,CC$7)+SUMIFS('Project Scope'!$BQ$8:$BQ$107,'Project Scope'!$C$8:$C$107,CC$7),0)","v":0},{"$f":"IF(AE83=\"yes\",SUMIFS('Project Scope'!$BN$8:$BN$107,'Project Scope'!$C$8:$C$107,CD$7)+SUMIFS('Project Scope'!$BQ$8:$BQ$107,'Project Scope'!$C$8:$C$107,CD$7),0)","v":0},{"$f":"IF(AF83=\"yes\",SUMIFS('Project Scope'!$BN$8:$BN$107,'Project Scope'!$C$8:$C$107,CE$7)+SUMIFS('Project Scope'!$BQ$8:$BQ$107,'Project Scope'!$C$8:$C$107,CE$7),0)","v":0},{"$f":"IF(AG83=\"yes\",SUMIFS('Project Scope'!$BN$8:$BN$107,'Project Scope'!$C$8:$C$107,CF$7)+SUMIFS('Project Scope'!$BQ$8:$BQ$107,'Project Scope'!$C$8:$C$107,CF$7),0)","v":0},{"$f":"IF(AH83=\"yes\",SUMIFS('Project Scope'!$BN$8:$BN$107,'Project Scope'!$C$8:$C$107,CG$7)+SUMIFS('Project Scope'!$BQ$8:$BQ$107,'Project Scope'!$C$8:$C$107,CG$7),0)","v":0},{"$f":"IF(AI83=\"yes\",SUMIFS('Project Scope'!$BN$8:$BN$107,'Project Scope'!$C$8:$C$107,CH$7)+SUMIFS('Project Scope'!$BQ$8:$BQ$107,'Project Scope'!$C$8:$C$107,CH$7),0)","v":0},{"$f":"IF(AJ83=\"yes\",SUMIFS('Project Scope'!$BN$8:$BN$107,'Project Scope'!$C$8:$C$107,CI$7)+SUMIFS('Project Scope'!$BQ$8:$BQ$107,'Project Scope'!$C$8:$C$107,CI$7),0)","v":0},{"$f":"IF(AK83=\"yes\",SUMIFS('Project Scope'!$BN$8:$BN$107,'Project Scope'!$C$8:$C$107,CJ$7)+SUMIFS('Project Scope'!$BQ$8:$BQ$107,'Project Scope'!$C$8:$C$107,CJ$7),0)","v":0},{"$f":"IF(AL83=\"yes\",SUMIFS('Project Scope'!$BN$8:$BN$107,'Project Scope'!$C$8:$C$107,CK$7)+SUMIFS('Project Scope'!$BQ$8:$BQ$107,'Project Scope'!$C$8:$C$107,CK$7),0)","v":0},{"$f":"IF(AM83=\"yes\",SUMIFS('Project Scope'!$BN$8:$BN$107,'Project Scope'!$C$8:$C$107,CL$7)+SUMIFS('Project Scope'!$BQ$8:$BQ$107,'Project Scope'!$C$8:$C$107,CL$7),0)","v":0},{"$f":"IF(AN83=\"yes\",SUMIFS('Project Scope'!$BN$8:$BN$107,'Project Scope'!$C$8:$C$107,CM$7)+SUMIFS('Project Scope'!$BQ$8:$BQ$107,'Project Scope'!$C$8:$C$107,CM$7),0)","v":0},{"$f":"IF(AO83=\"yes\",SUMIFS('Project Scope'!$BN$8:$BN$107,'Project Scope'!$C$8:$C$107,CN$7)+SUMIFS('Project Scope'!$BQ$8:$BQ$107,'Project Scope'!$C$8:$C$107,CN$7),0)","v":0},{"$f":"IF(AP83=\"yes\",SUMIFS('Project Scope'!$BN$8:$BN$107,'Project Scope'!$C$8:$C$107,CO$7)+SUMIFS('Project Scope'!$BQ$8:$BQ$107,'Project Scope'!$C$8:$C$107,CO$7),0)","v":0},{"$f":"IF(AQ83=\"yes\",SUMIFS('Project Scope'!$BN$8:$BN$107,'Project Scope'!$C$8:$C$107,CP$7)+SUMIFS('Project Scope'!$BQ$8:$BQ$107,'Project Scope'!$C$8:$C$107,CP$7),0)","v":0},{"$f":"IF(AR83=\"yes\",SUMIFS('Project Scope'!$BN$8:$BN$107,'Project Scope'!$C$8:$C$107,CQ$7)+SUMIFS('Project Scope'!$BQ$8:$BQ$107,'Project Scope'!$C$8:$C$107,CQ$7),0)","v":0},{"$f":"IF(AS83=\"yes\",SUMIFS('Project Scope'!$BN$8:$BN$107,'Project Scope'!$C$8:$C$107,CR$7)+SUMIFS('Project Scope'!$BQ$8:$BQ$107,'Project Scope'!$C$8:$C$107,CR$7),0)","v":0},{"$f":"IF(AT83=\"yes\",SUMIFS('Project Scope'!$BN$8:$BN$107,'Project Scope'!$C$8:$C$107,CS$7)+SUMIFS('Project Scope'!$BQ$8:$BQ$107,'Project Scope'!$C$8:$C$107,CS$7),0)","v":0},{"$f":"IF(AU83=\"yes\",SUMIFS('Project Scope'!$BN$8:$BN$107,'Project Scope'!$C$8:$C$107,CT$7)+SUMIFS('Project Scope'!$BQ$8:$BQ$107,'Project Scope'!$C$8:$C$107,CT$7),0)","v":0},{"$f":"IF(AV83=\"yes\",SUMIFS('Project Scope'!$BN$8:$BN$107,'Project Scope'!$C$8:$C$107,CU$7)+SUMIFS('Project Scope'!$BQ$8:$BQ$107,'Project Scope'!$C$8:$C$107,CU$7),0)","v":0},{"$f":"IF(AW83=\"yes\",SUMIFS('Project Scope'!$BN$8:$BN$107,'Project Scope'!$C$8:$C$107,CV$7)+SUMIFS('Project Scope'!$BQ$8:$BQ$107,'Project Scope'!$C$8:$C$107,CV$7),0)","v":0},{"$f":"IF(AX83=\"yes\",SUMIFS('Project Scope'!$BN$8:$BN$107,'Project Scope'!$C$8:$C$107,CW$7)+SUMIFS('Project Scope'!$BQ$8:$BQ$107,'Project Scope'!$C$8:$C$107,CW$7),0)","v":0},{"$f":"IF(AY83=\"yes\",SUMIFS('Project Scope'!$BN$8:$BN$107,'Project Scope'!$C$8:$C$107,CX$7)+SUMIFS('Project Scope'!$BQ$8:$BQ$107,'Project Scope'!$C$8:$C$107,CX$7),0)","v":0},{"$f":"IF(AZ83=\"yes\",SUMIFS('Project Scope'!$BN$8:$BN$107,'Project Scope'!$C$8:$C$107,CY$7)+SUMIFS('Project Scope'!$BQ$8:$BQ$107,'Project Scope'!$C$8:$C$107,CY$7),0)","v":0},{"$f":"IF(BA83=\"yes\",SUMIFS('Project Scope'!$BN$8:$BN$107,'Project Scope'!$C$8:$C$107,CZ$7)+SUMIFS('Project Scope'!$BQ$8:$BQ$107,'Project Scope'!$C$8:$C$107,CZ$7),0)","v":0},{"$f":"IF(BB83=\"yes\",SUMIFS('Project Scope'!$BN$8:$BN$107,'Project Scope'!$C$8:$C$107,DA$7)+SUMIFS('Project Scope'!$BQ$8:$BQ$107,'Project Scope'!$C$8:$C$107,DA$7),0)","v":0},{"$f":"IF(BC83=\"yes\",SUMIFS('Project Scope'!$BN$8:$BN$107,'Project Scope'!$C$8:$C$107,DB$7)+SUMIFS('Project Scope'!$BQ$8:$BQ$107,'Project Scope'!$C$8:$C$107,DB$7),0)","v":0},{"$f":"IF(BD83=\"yes\",SUMIFS('Project Scope'!$BN$8:$BN$107,'Project Scope'!$C$8:$C$107,DC$7)+SUMIFS('Project Scope'!$BQ$8:$BQ$107,'Project Scope'!$C$8:$C$107,DC$7),0)","v":0},{"$f":"IF(BE83=\"yes\",SUMIFS('Project Scope'!$BN$8:$BN$107,'Project Scope'!$C$8:$C$107,DD$7)+SUMIFS('Project Scope'!$BQ$8:$BQ$107,'Project Scope'!$C$8:$C$107,DD$7),0)","v":0},{"$f":"IF(BF83=\"yes\",SUMIFS('Project Scope'!$BN$8:$BN$107,'Project Scope'!$C$8:$C$107,DE$7)+SUMIFS('Project Scope'!$BQ$8:$BQ$107,'Project Scope'!$C$8:$C$107,DE$7),0)","v":0},{"$f":"IF(BG83=\"yes\",SUMIFS('Project Scope'!$BN$8:$BN$107,'Project Scope'!$C$8:$C$107,DF$7)+SUMIFS('Project Scope'!$BQ$8:$BQ$107,'Project Scope'!$C$8:$C$107,DF$7),0)","v":0},{"$f":"IF(BH83=\"yes\",SUMIFS('Project Scope'!$BN$8:$BN$107,'Project Scope'!$C$8:$C$107,DG$7)+SUMIFS('Project Scope'!$BQ$8:$BQ$107,'Project Scope'!$C$8:$C$107,DG$7),0)","v":0},{"$f":"IF(BI83=\"yes\",SUMIFS('Project Scope'!$BN$8:$BN$107,'Project Scope'!$C$8:$C$107,DH$7)+SUMIFS('Project Scope'!$BQ$8:$BQ$107,'Project Scope'!$C$8:$C$107,DH$7),0)","v":0},{"$f":"IF(BJ83=\"yes\",SUMIFS('Project Scope'!$BN$8:$BN$107,'Project Scope'!$C$8:$C$107,DI$7)+SUMIFS('Project Scope'!$BQ$8:$BQ$107,'Project Scope'!$C$8:$C$107,DI$7),0)","v":0},{"$f":"IF(BK83=\"yes\",SUMIFS('Project Scope'!$BN$8:$BN$107,'Project Scope'!$C$8:$C$107,DJ$7)+SUMIFS('Project Scope'!$BQ$8:$BQ$107,'Project Scope'!$C$8:$C$107,DJ$7),0)","v":0},{"$f":"IF(BL83=\"yes\",SUMIFS('Project Scope'!$BN$8:$BN$107,'Project Scope'!$C$8:$C$107,DK$7)+SUMIFS('Project Scope'!$BQ$8:$BQ$107,'Project Scope'!$C$8:$C$107,DK$7),0)","v":0},null,"","","","","","","","","","","","","","","","","","","","","","","","","","","","","","","","","","","","","","","","","","","","","","","","","","",null,""]
[null,null,null,null,null,null,null,null,null,null,null,{"$f":"IF($C84=\"additional labor hours\",K84*'Project Information'!$D$12,K84*J84)*IF($F84=\"Per Location\",COUNTIF($O84:$BL84,\"Yes\"),1)","v":0},{"$f":"IF($C84=\"\",0,IF(VLOOKUP($C84,'Other Data'!$B$146:$C$156,2,FALSE)=\"M\",$L84,0))","v":0},0,null,null,null,null,null,null,null,null,null,null,null,null,null,null,null,null,null,null,null,null,null,null,null,null,null,null,null,null,null,null,null,null,null,null,null,null,null,null,null,null,null,null,null,null,null,null,null,null,null,null,null,{"$f":"IF(O84=\"yes\",SUMIFS('Project Scope'!$BN$8:$BN$107,'Project Scope'!$C$8:$C$107,BN$7)+SUMIFS('Project Scope'!$BQ$8:$BQ$107,'Project Scope'!$C$8:$C$107,BN$7),0)","v":0},{"$f":"IF(P84=\"yes\",SUMIFS('Project Scope'!$BN$8:$BN$107,'Project Scope'!$C$8:$C$107,BO$7)+SUMIFS('Project Scope'!$BQ$8:$BQ$107,'Project Scope'!$C$8:$C$107,BO$7),0)","v":0},{"$f":"IF(Q84=\"yes\",SUMIFS('Project Scope'!$BN$8:$BN$107,'Project Scope'!$C$8:$C$107,BP$7)+SUMIFS('Project Scope'!$BQ$8:$BQ$107,'Project Scope'!$C$8:$C$107,BP$7),0)","v":0},{"$f":"IF(R84=\"yes\",SUMIFS('Project Scope'!$BN$8:$BN$107,'Project Scope'!$C$8:$C$107,BQ$7)+SUMIFS('Project Scope'!$BQ$8:$BQ$107,'Project Scope'!$C$8:$C$107,BQ$7),0)","v":0},{"$f":"IF(S84=\"yes\",SUMIFS('Project Scope'!$BN$8:$BN$107,'Project Scope'!$C$8:$C$107,BR$7)+SUMIFS('Project Scope'!$BQ$8:$BQ$107,'Project Scope'!$C$8:$C$107,BR$7),0)","v":0},{"$f":"IF(T84=\"yes\",SUMIFS('Project Scope'!$BN$8:$BN$107,'Project Scope'!$C$8:$C$107,BS$7)+SUMIFS('Project Scope'!$BQ$8:$BQ$107,'Project Scope'!$C$8:$C$107,BS$7),0)","v":0},{"$f":"IF(U84=\"yes\",SUMIFS('Project Scope'!$BN$8:$BN$107,'Project Scope'!$C$8:$C$107,BT$7)+SUMIFS('Project Scope'!$BQ$8:$BQ$107,'Project Scope'!$C$8:$C$107,BT$7),0)","v":0},{"$f":"IF(V84=\"yes\",SUMIFS('Project Scope'!$BN$8:$BN$107,'Project Scope'!$C$8:$C$107,BU$7)+SUMIFS('Project Scope'!$BQ$8:$BQ$107,'Project Scope'!$C$8:$C$107,BU$7),0)","v":0},{"$f":"IF(W84=\"yes\",SUMIFS('Project Scope'!$BN$8:$BN$107,'Project Scope'!$C$8:$C$107,BV$7)+SUMIFS('Project Scope'!$BQ$8:$BQ$107,'Project Scope'!$C$8:$C$107,BV$7),0)","v":0},{"$f":"IF(X84=\"yes\",SUMIFS('Project Scope'!$BN$8:$BN$107,'Project Scope'!$C$8:$C$107,BW$7)+SUMIFS('Project Scope'!$BQ$8:$BQ$107,'Project Scope'!$C$8:$C$107,BW$7),0)","v":0},{"$f":"IF(Y84=\"yes\",SUMIFS('Project Scope'!$BN$8:$BN$107,'Project Scope'!$C$8:$C$107,BX$7)+SUMIFS('Project Scope'!$BQ$8:$BQ$107,'Project Scope'!$C$8:$C$107,BX$7),0)","v":0},{"$f":"IF(Z84=\"yes\",SUMIFS('Project Scope'!$BN$8:$BN$107,'Project Scope'!$C$8:$C$107,BY$7)+SUMIFS('Project Scope'!$BQ$8:$BQ$107,'Project Scope'!$C$8:$C$107,BY$7),0)","v":0},{"$f":"IF(AA84=\"yes\",SUMIFS('Project Scope'!$BN$8:$BN$107,'Project Scope'!$C$8:$C$107,BZ$7)+SUMIFS('Project Scope'!$BQ$8:$BQ$107,'Project Scope'!$C$8:$C$107,BZ$7),0)","v":0},{"$f":"IF(AB84=\"yes\",SUMIFS('Project Scope'!$BN$8:$BN$107,'Project Scope'!$C$8:$C$107,CA$7)+SUMIFS('Project Scope'!$BQ$8:$BQ$107,'Project Scope'!$C$8:$C$107,CA$7),0)","v":0},{"$f":"IF(AC84=\"yes\",SUMIFS('Project Scope'!$BN$8:$BN$107,'Project Scope'!$C$8:$C$107,CB$7)+SUMIFS('Project Scope'!$BQ$8:$BQ$107,'Project Scope'!$C$8:$C$107,CB$7),0)","v":0},{"$f":"IF(AD84=\"yes\",SUMIFS('Project Scope'!$BN$8:$BN$107,'Project Scope'!$C$8:$C$107,CC$7)+SUMIFS('Project Scope'!$BQ$8:$BQ$107,'Project Scope'!$C$8:$C$107,CC$7),0)","v":0},{"$f":"IF(AE84=\"yes\",SUMIFS('Project Scope'!$BN$8:$BN$107,'Project Scope'!$C$8:$C$107,CD$7)+SUMIFS('Project Scope'!$BQ$8:$BQ$107,'Project Scope'!$C$8:$C$107,CD$7),0)","v":0},{"$f":"IF(AF84=\"yes\",SUMIFS('Project Scope'!$BN$8:$BN$107,'Project Scope'!$C$8:$C$107,CE$7)+SUMIFS('Project Scope'!$BQ$8:$BQ$107,'Project Scope'!$C$8:$C$107,CE$7),0)","v":0},{"$f":"IF(AG84=\"yes\",SUMIFS('Project Scope'!$BN$8:$BN$107,'Project Scope'!$C$8:$C$107,CF$7)+SUMIFS('Project Scope'!$BQ$8:$BQ$107,'Project Scope'!$C$8:$C$107,CF$7),0)","v":0},{"$f":"IF(AH84=\"yes\",SUMIFS('Project Scope'!$BN$8:$BN$107,'Project Scope'!$C$8:$C$107,CG$7)+SUMIFS('Project Scope'!$BQ$8:$BQ$107,'Project Scope'!$C$8:$C$107,CG$7),0)","v":0},{"$f":"IF(AI84=\"yes\",SUMIFS('Project Scope'!$BN$8:$BN$107,'Project Scope'!$C$8:$C$107,CH$7)+SUMIFS('Project Scope'!$BQ$8:$BQ$107,'Project Scope'!$C$8:$C$107,CH$7),0)","v":0},{"$f":"IF(AJ84=\"yes\",SUMIFS('Project Scope'!$BN$8:$BN$107,'Project Scope'!$C$8:$C$107,CI$7)+SUMIFS('Project Scope'!$BQ$8:$BQ$107,'Project Scope'!$C$8:$C$107,CI$7),0)","v":0},{"$f":"IF(AK84=\"yes\",SUMIFS('Project Scope'!$BN$8:$BN$107,'Project Scope'!$C$8:$C$107,CJ$7)+SUMIFS('Project Scope'!$BQ$8:$BQ$107,'Project Scope'!$C$8:$C$107,CJ$7),0)","v":0},{"$f":"IF(AL84=\"yes\",SUMIFS('Project Scope'!$BN$8:$BN$107,'Project Scope'!$C$8:$C$107,CK$7)+SUMIFS('Project Scope'!$BQ$8:$BQ$107,'Project Scope'!$C$8:$C$107,CK$7),0)","v":0},{"$f":"IF(AM84=\"yes\",SUMIFS('Project Scope'!$BN$8:$BN$107,'Project Scope'!$C$8:$C$107,CL$7)+SUMIFS('Project Scope'!$BQ$8:$BQ$107,'Project Scope'!$C$8:$C$107,CL$7),0)","v":0},{"$f":"IF(AN84=\"yes\",SUMIFS('Project Scope'!$BN$8:$BN$107,'Project Scope'!$C$8:$C$107,CM$7)+SUMIFS('Project Scope'!$BQ$8:$BQ$107,'Project Scope'!$C$8:$C$107,CM$7),0)","v":0},{"$f":"IF(AO84=\"yes\",SUMIFS('Project Scope'!$BN$8:$BN$107,'Project Scope'!$C$8:$C$107,CN$7)+SUMIFS('Project Scope'!$BQ$8:$BQ$107,'Project Scope'!$C$8:$C$107,CN$7),0)","v":0},{"$f":"IF(AP84=\"yes\",SUMIFS('Project Scope'!$BN$8:$BN$107,'Project Scope'!$C$8:$C$107,CO$7)+SUMIFS('Project Scope'!$BQ$8:$BQ$107,'Project Scope'!$C$8:$C$107,CO$7),0)","v":0},{"$f":"IF(AQ84=\"yes\",SUMIFS('Project Scope'!$BN$8:$BN$107,'Project Scope'!$C$8:$C$107,CP$7)+SUMIFS('Project Scope'!$BQ$8:$BQ$107,'Project Scope'!$C$8:$C$107,CP$7),0)","v":0},{"$f":"IF(AR84=\"yes\",SUMIFS('Project Scope'!$BN$8:$BN$107,'Project Scope'!$C$8:$C$107,CQ$7)+SUMIFS('Project Scope'!$BQ$8:$BQ$107,'Project Scope'!$C$8:$C$107,CQ$7),0)","v":0},{"$f":"IF(AS84=\"yes\",SUMIFS('Project Scope'!$BN$8:$BN$107,'Project Scope'!$C$8:$C$107,CR$7)+SUMIFS('Project Scope'!$BQ$8:$BQ$107,'Project Scope'!$C$8:$C$107,CR$7),0)","v":0},{"$f":"IF(AT84=\"yes\",SUMIFS('Project Scope'!$BN$8:$BN$107,'Project Scope'!$C$8:$C$107,CS$7)+SUMIFS('Project Scope'!$BQ$8:$BQ$107,'Project Scope'!$C$8:$C$107,CS$7),0)","v":0},{"$f":"IF(AU84=\"yes\",SUMIFS('Project Scope'!$BN$8:$BN$107,'Project Scope'!$C$8:$C$107,CT$7)+SUMIFS('Project Scope'!$BQ$8:$BQ$107,'Project Scope'!$C$8:$C$107,CT$7),0)","v":0},{"$f":"IF(AV84=\"yes\",SUMIFS('Project Scope'!$BN$8:$BN$107,'Project Scope'!$C$8:$C$107,CU$7)+SUMIFS('Project Scope'!$BQ$8:$BQ$107,'Project Scope'!$C$8:$C$107,CU$7),0)","v":0},{"$f":"IF(AW84=\"yes\",SUMIFS('Project Scope'!$BN$8:$BN$107,'Project Scope'!$C$8:$C$107,CV$7)+SUMIFS('Project Scope'!$BQ$8:$BQ$107,'Project Scope'!$C$8:$C$107,CV$7),0)","v":0},{"$f":"IF(AX84=\"yes\",SUMIFS('Project Scope'!$BN$8:$BN$107,'Project Scope'!$C$8:$C$107,CW$7)+SUMIFS('Project Scope'!$BQ$8:$BQ$107,'Project Scope'!$C$8:$C$107,CW$7),0)","v":0},{"$f":"IF(AY84=\"yes\",SUMIFS('Project Scope'!$BN$8:$BN$107,'Project Scope'!$C$8:$C$107,CX$7)+SUMIFS('Project Scope'!$BQ$8:$BQ$107,'Project Scope'!$C$8:$C$107,CX$7),0)","v":0},{"$f":"IF(AZ84=\"yes\",SUMIFS('Project Scope'!$BN$8:$BN$107,'Project Scope'!$C$8:$C$107,CY$7)+SUMIFS('Project Scope'!$BQ$8:$BQ$107,'Project Scope'!$C$8:$C$107,CY$7),0)","v":0},{"$f":"IF(BA84=\"yes\",SUMIFS('Project Scope'!$BN$8:$BN$107,'Project Scope'!$C$8:$C$107,CZ$7)+SUMIFS('Project Scope'!$BQ$8:$BQ$107,'Project Scope'!$C$8:$C$107,CZ$7),0)","v":0},{"$f":"IF(BB84=\"yes\",SUMIFS('Project Scope'!$BN$8:$BN$107,'Project Scope'!$C$8:$C$107,DA$7)+SUMIFS('Project Scope'!$BQ$8:$BQ$107,'Project Scope'!$C$8:$C$107,DA$7),0)","v":0},{"$f":"IF(BC84=\"yes\",SUMIFS('Project Scope'!$BN$8:$BN$107,'Project Scope'!$C$8:$C$107,DB$7)+SUMIFS('Project Scope'!$BQ$8:$BQ$107,'Project Scope'!$C$8:$C$107,DB$7),0)","v":0},{"$f":"IF(BD84=\"yes\",SUMIFS('Project Scope'!$BN$8:$BN$107,'Project Scope'!$C$8:$C$107,DC$7)+SUMIFS('Project Scope'!$BQ$8:$BQ$107,'Project Scope'!$C$8:$C$107,DC$7),0)","v":0},{"$f":"IF(BE84=\"yes\",SUMIFS('Project Scope'!$BN$8:$BN$107,'Project Scope'!$C$8:$C$107,DD$7)+SUMIFS('Project Scope'!$BQ$8:$BQ$107,'Project Scope'!$C$8:$C$107,DD$7),0)","v":0},{"$f":"IF(BF84=\"yes\",SUMIFS('Project Scope'!$BN$8:$BN$107,'Project Scope'!$C$8:$C$107,DE$7)+SUMIFS('Project Scope'!$BQ$8:$BQ$107,'Project Scope'!$C$8:$C$107,DE$7),0)","v":0},{"$f":"IF(BG84=\"yes\",SUMIFS('Project Scope'!$BN$8:$BN$107,'Project Scope'!$C$8:$C$107,DF$7)+SUMIFS('Project Scope'!$BQ$8:$BQ$107,'Project Scope'!$C$8:$C$107,DF$7),0)","v":0},{"$f":"IF(BH84=\"yes\",SUMIFS('Project Scope'!$BN$8:$BN$107,'Project Scope'!$C$8:$C$107,DG$7)+SUMIFS('Project Scope'!$BQ$8:$BQ$107,'Project Scope'!$C$8:$C$107,DG$7),0)","v":0},{"$f":"IF(BI84=\"yes\",SUMIFS('Project Scope'!$BN$8:$BN$107,'Project Scope'!$C$8:$C$107,DH$7)+SUMIFS('Project Scope'!$BQ$8:$BQ$107,'Project Scope'!$C$8:$C$107,DH$7),0)","v":0},{"$f":"IF(BJ84=\"yes\",SUMIFS('Project Scope'!$BN$8:$BN$107,'Project Scope'!$C$8:$C$107,DI$7)+SUMIFS('Project Scope'!$BQ$8:$BQ$107,'Project Scope'!$C$8:$C$107,DI$7),0)","v":0},{"$f":"IF(BK84=\"yes\",SUMIFS('Project Scope'!$BN$8:$BN$107,'Project Scope'!$C$8:$C$107,DJ$7)+SUMIFS('Project Scope'!$BQ$8:$BQ$107,'Project Scope'!$C$8:$C$107,DJ$7),0)","v":0},{"$f":"IF(BL84=\"yes\",SUMIFS('Project Scope'!$BN$8:$BN$107,'Project Scope'!$C$8:$C$107,DK$7)+SUMIFS('Project Scope'!$BQ$8:$BQ$107,'Project Scope'!$C$8:$C$107,DK$7),0)","v":0},null,"","","","","","","","","","","","","","","","","","","","","","","","","","","","","","","","","","","","","","","","","","","","","","","","","","",null,""]
[null,null,null,null,null,null,null,null,null,null,null,{"$f":"IF($C85=\"additional labor hours\",K85*'Project Information'!$D$12,K85*J85)*IF($F85=\"Per Location\",COUNTIF($O85:$BL85,\"Yes\"),1)","v":0},{"$f":"IF($C85=\"\",0,IF(VLOOKUP($C85,'Other Data'!$B$146:$C$156,2,FALSE)=\"M\",$L85,0))","v":0},0,null,null,null,null,null,null,null,null,null,null,null,null,null,null,null,null,null,null,null,null,null,null,null,null,null,null,null,null,null,null,null,null,null,null,null,null,null,null,null,null,null,null,null,null,null,null,null,null,null,null,null,{"$f":"IF(O85=\"yes\",SUMIFS('Project Scope'!$BN$8:$BN$107,'Project Scope'!$C$8:$C$107,BN$7)+SUMIFS('Project Scope'!$BQ$8:$BQ$107,'Project Scope'!$C$8:$C$107,BN$7),0)","v":0},{"$f":"IF(P85=\"yes\",SUMIFS('Project Scope'!$BN$8:$BN$107,'Project Scope'!$C$8:$C$107,BO$7)+SUMIFS('Project Scope'!$BQ$8:$BQ$107,'Project Scope'!$C$8:$C$107,BO$7),0)","v":0},{"$f":"IF(Q85=\"yes\",SUMIFS('Project Scope'!$BN$8:$BN$107,'Project Scope'!$C$8:$C$107,BP$7)+SUMIFS('Project Scope'!$BQ$8:$BQ$107,'Project Scope'!$C$8:$C$107,BP$7),0)","v":0},{"$f":"IF(R85=\"yes\",SUMIFS('Project Scope'!$BN$8:$BN$107,'Project Scope'!$C$8:$C$107,BQ$7)+SUMIFS('Project Scope'!$BQ$8:$BQ$107,'Project Scope'!$C$8:$C$107,BQ$7),0)","v":0},{"$f":"IF(S85=\"yes\",SUMIFS('Project Scope'!$BN$8:$BN$107,'Project Scope'!$C$8:$C$107,BR$7)+SUMIFS('Project Scope'!$BQ$8:$BQ$107,'Project Scope'!$C$8:$C$107,BR$7),0)","v":0},{"$f":"IF(T85=\"yes\",SUMIFS('Project Scope'!$BN$8:$BN$107,'Project Scope'!$C$8:$C$107,BS$7)+SUMIFS('Project Scope'!$BQ$8:$BQ$107,'Project Scope'!$C$8:$C$107,BS$7),0)","v":0},{"$f":"IF(U85=\"yes\",SUMIFS('Project Scope'!$BN$8:$BN$107,'Project Scope'!$C$8:$C$107,BT$7)+SUMIFS('Project Scope'!$BQ$8:$BQ$107,'Project Scope'!$C$8:$C$107,BT$7),0)","v":0},{"$f":"IF(V85=\"yes\",SUMIFS('Project Scope'!$BN$8:$BN$107,'Project Scope'!$C$8:$C$107,BU$7)+SUMIFS('Project Scope'!$BQ$8:$BQ$107,'Project Scope'!$C$8:$C$107,BU$7),0)","v":0},{"$f":"IF(W85=\"yes\",SUMIFS('Project Scope'!$BN$8:$BN$107,'Project Scope'!$C$8:$C$107,BV$7)+SUMIFS('Project Scope'!$BQ$8:$BQ$107,'Project Scope'!$C$8:$C$107,BV$7),0)","v":0},{"$f":"IF(X85=\"yes\",SUMIFS('Project Scope'!$BN$8:$BN$107,'Project Scope'!$C$8:$C$107,BW$7)+SUMIFS('Project Scope'!$BQ$8:$BQ$107,'Project Scope'!$C$8:$C$107,BW$7),0)","v":0},{"$f":"IF(Y85=\"yes\",SUMIFS('Project Scope'!$BN$8:$BN$107,'Project Scope'!$C$8:$C$107,BX$7)+SUMIFS('Project Scope'!$BQ$8:$BQ$107,'Project Scope'!$C$8:$C$107,BX$7),0)","v":0},{"$f":"IF(Z85=\"yes\",SUMIFS('Project Scope'!$BN$8:$BN$107,'Project Scope'!$C$8:$C$107,BY$7)+SUMIFS('Project Scope'!$BQ$8:$BQ$107,'Project Scope'!$C$8:$C$107,BY$7),0)","v":0},{"$f":"IF(AA85=\"yes\",SUMIFS('Project Scope'!$BN$8:$BN$107,'Project Scope'!$C$8:$C$107,BZ$7)+SUMIFS('Project Scope'!$BQ$8:$BQ$107,'Project Scope'!$C$8:$C$107,BZ$7),0)","v":0},{"$f":"IF(AB85=\"yes\",SUMIFS('Project Scope'!$BN$8:$BN$107,'Project Scope'!$C$8:$C$107,CA$7)+SUMIFS('Project Scope'!$BQ$8:$BQ$107,'Project Scope'!$C$8:$C$107,CA$7),0)","v":0},{"$f":"IF(AC85=\"yes\",SUMIFS('Project Scope'!$BN$8:$BN$107,'Project Scope'!$C$8:$C$107,CB$7)+SUMIFS('Project Scope'!$BQ$8:$BQ$107,'Project Scope'!$C$8:$C$107,CB$7),0)","v":0},{"$f":"IF(AD85=\"yes\",SUMIFS('Project Scope'!$BN$8:$BN$107,'Project Scope'!$C$8:$C$107,CC$7)+SUMIFS('Project Scope'!$BQ$8:$BQ$107,'Project Scope'!$C$8:$C$107,CC$7),0)","v":0},{"$f":"IF(AE85=\"yes\",SUMIFS('Project Scope'!$BN$8:$BN$107,'Project Scope'!$C$8:$C$107,CD$7)+SUMIFS('Project Scope'!$BQ$8:$BQ$107,'Project Scope'!$C$8:$C$107,CD$7),0)","v":0},{"$f":"IF(AF85=\"yes\",SUMIFS('Project Scope'!$BN$8:$BN$107,'Project Scope'!$C$8:$C$107,CE$7)+SUMIFS('Project Scope'!$BQ$8:$BQ$107,'Project Scope'!$C$8:$C$107,CE$7),0)","v":0},{"$f":"IF(AG85=\"yes\",SUMIFS('Project Scope'!$BN$8:$BN$107,'Project Scope'!$C$8:$C$107,CF$7)+SUMIFS('Project Scope'!$BQ$8:$BQ$107,'Project Scope'!$C$8:$C$107,CF$7),0)","v":0},{"$f":"IF(AH85=\"yes\",SUMIFS('Project Scope'!$BN$8:$BN$107,'Project Scope'!$C$8:$C$107,CG$7)+SUMIFS('Project Scope'!$BQ$8:$BQ$107,'Project Scope'!$C$8:$C$107,CG$7),0)","v":0},{"$f":"IF(AI85=\"yes\",SUMIFS('Project Scope'!$BN$8:$BN$107,'Project Scope'!$C$8:$C$107,CH$7)+SUMIFS('Project Scope'!$BQ$8:$BQ$107,'Project Scope'!$C$8:$C$107,CH$7),0)","v":0},{"$f":"IF(AJ85=\"yes\",SUMIFS('Project Scope'!$BN$8:$BN$107,'Project Scope'!$C$8:$C$107,CI$7)+SUMIFS('Project Scope'!$BQ$8:$BQ$107,'Project Scope'!$C$8:$C$107,CI$7),0)","v":0},{"$f":"IF(AK85=\"yes\",SUMIFS('Project Scope'!$BN$8:$BN$107,'Project Scope'!$C$8:$C$107,CJ$7)+SUMIFS('Project Scope'!$BQ$8:$BQ$107,'Project Scope'!$C$8:$C$107,CJ$7),0)","v":0},{"$f":"IF(AL85=\"yes\",SUMIFS('Project Scope'!$BN$8:$BN$107,'Project Scope'!$C$8:$C$107,CK$7)+SUMIFS('Project Scope'!$BQ$8:$BQ$107,'Project Scope'!$C$8:$C$107,CK$7),0)","v":0},{"$f":"IF(AM85=\"yes\",SUMIFS('Project Scope'!$BN$8:$BN$107,'Project Scope'!$C$8:$C$107,CL$7)+SUMIFS('Project Scope'!$BQ$8:$BQ$107,'Project Scope'!$C$8:$C$107,CL$7),0)","v":0},{"$f":"IF(AN85=\"yes\",SUMIFS('Project Scope'!$BN$8:$BN$107,'Project Scope'!$C$8:$C$107,CM$7)+SUMIFS('Project Scope'!$BQ$8:$BQ$107,'Project Scope'!$C$8:$C$107,CM$7),0)","v":0},{"$f":"IF(AO85=\"yes\",SUMIFS('Project Scope'!$BN$8:$BN$107,'Project Scope'!$C$8:$C$107,CN$7)+SUMIFS('Project Scope'!$BQ$8:$BQ$107,'Project Scope'!$C$8:$C$107,CN$7),0)","v":0},{"$f":"IF(AP85=\"yes\",SUMIFS('Project Scope'!$BN$8:$BN$107,'Project Scope'!$C$8:$C$107,CO$7)+SUMIFS('Project Scope'!$BQ$8:$BQ$107,'Project Scope'!$C$8:$C$107,CO$7),0)","v":0},{"$f":"IF(AQ85=\"yes\",SUMIFS('Project Scope'!$BN$8:$BN$107,'Project Scope'!$C$8:$C$107,CP$7)+SUMIFS('Project Scope'!$BQ$8:$BQ$107,'Project Scope'!$C$8:$C$107,CP$7),0)","v":0},{"$f":"IF(AR85=\"yes\",SUMIFS('Project Scope'!$BN$8:$BN$107,'Project Scope'!$C$8:$C$107,CQ$7)+SUMIFS('Project Scope'!$BQ$8:$BQ$107,'Project Scope'!$C$8:$C$107,CQ$7),0)","v":0},{"$f":"IF(AS85=\"yes\",SUMIFS('Project Scope'!$BN$8:$BN$107,'Project Scope'!$C$8:$C$107,CR$7)+SUMIFS('Project Scope'!$BQ$8:$BQ$107,'Project Scope'!$C$8:$C$107,CR$7),0)","v":0},{"$f":"IF(AT85=\"yes\",SUMIFS('Project Scope'!$BN$8:$BN$107,'Project Scope'!$C$8:$C$107,CS$7)+SUMIFS('Project Scope'!$BQ$8:$BQ$107,'Project Scope'!$C$8:$C$107,CS$7),0)","v":0},{"$f":"IF(AU85=\"yes\",SUMIFS('Project Scope'!$BN$8:$BN$107,'Project Scope'!$C$8:$C$107,CT$7)+SUMIFS('Project Scope'!$BQ$8:$BQ$107,'Project Scope'!$C$8:$C$107,CT$7),0)","v":0},{"$f":"IF(AV85=\"yes\",SUMIFS('Project Scope'!$BN$8:$BN$107,'Project Scope'!$C$8:$C$107,CU$7)+SUMIFS('Project Scope'!$BQ$8:$BQ$107,'Project Scope'!$C$8:$C$107,CU$7),0)","v":0},{"$f":"IF(AW85=\"yes\",SUMIFS('Project Scope'!$BN$8:$BN$107,'Project Scope'!$C$8:$C$107,CV$7)+SUMIFS('Project Scope'!$BQ$8:$BQ$107,'Project Scope'!$C$8:$C$107,CV$7),0)","v":0},{"$f":"IF(AX85=\"yes\",SUMIFS('Project Scope'!$BN$8:$BN$107,'Project Scope'!$C$8:$C$107,CW$7)+SUMIFS('Project Scope'!$BQ$8:$BQ$107,'Project Scope'!$C$8:$C$107,CW$7),0)","v":0},{"$f":"IF(AY85=\"yes\",SUMIFS('Project Scope'!$BN$8:$BN$107,'Project Scope'!$C$8:$C$107,CX$7)+SUMIFS('Project Scope'!$BQ$8:$BQ$107,'Project Scope'!$C$8:$C$107,CX$7),0)","v":0},{"$f":"IF(AZ85=\"yes\",SUMIFS('Project Scope'!$BN$8:$BN$107,'Project Scope'!$C$8:$C$107,CY$7)+SUMIFS('Project Scope'!$BQ$8:$BQ$107,'Project Scope'!$C$8:$C$107,CY$7),0)","v":0},{"$f":"IF(BA85=\"yes\",SUMIFS('Project Scope'!$BN$8:$BN$107,'Project Scope'!$C$8:$C$107,CZ$7)+SUMIFS('Project Scope'!$BQ$8:$BQ$107,'Project Scope'!$C$8:$C$107,CZ$7),0)","v":0},{"$f":"IF(BB85=\"yes\",SUMIFS('Project Scope'!$BN$8:$BN$107,'Project Scope'!$C$8:$C$107,DA$7)+SUMIFS('Project Scope'!$BQ$8:$BQ$107,'Project Scope'!$C$8:$C$107,DA$7),0)","v":0},{"$f":"IF(BC85=\"yes\",SUMIFS('Project Scope'!$BN$8:$BN$107,'Project Scope'!$C$8:$C$107,DB$7)+SUMIFS('Project Scope'!$BQ$8:$BQ$107,'Project Scope'!$C$8:$C$107,DB$7),0)","v":0},{"$f":"IF(BD85=\"yes\",SUMIFS('Project Scope'!$BN$8:$BN$107,'Project Scope'!$C$8:$C$107,DC$7)+SUMIFS('Project Scope'!$BQ$8:$BQ$107,'Project Scope'!$C$8:$C$107,DC$7),0)","v":0},{"$f":"IF(BE85=\"yes\",SUMIFS('Project Scope'!$BN$8:$BN$107,'Project Scope'!$C$8:$C$107,DD$7)+SUMIFS('Project Scope'!$BQ$8:$BQ$107,'Project Scope'!$C$8:$C$107,DD$7),0)","v":0},{"$f":"IF(BF85=\"yes\",SUMIFS('Project Scope'!$BN$8:$BN$107,'Project Scope'!$C$8:$C$107,DE$7)+SUMIFS('Project Scope'!$BQ$8:$BQ$107,'Project Scope'!$C$8:$C$107,DE$7),0)","v":0},{"$f":"IF(BG85=\"yes\",SUMIFS('Project Scope'!$BN$8:$BN$107,'Project Scope'!$C$8:$C$107,DF$7)+SUMIFS('Project Scope'!$BQ$8:$BQ$107,'Project Scope'!$C$8:$C$107,DF$7),0)","v":0},{"$f":"IF(BH85=\"yes\",SUMIFS('Project Scope'!$BN$8:$BN$107,'Project Scope'!$C$8:$C$107,DG$7)+SUMIFS('Project Scope'!$BQ$8:$BQ$107,'Project Scope'!$C$8:$C$107,DG$7),0)","v":0},{"$f":"IF(BI85=\"yes\",SUMIFS('Project Scope'!$BN$8:$BN$107,'Project Scope'!$C$8:$C$107,DH$7)+SUMIFS('Project Scope'!$BQ$8:$BQ$107,'Project Scope'!$C$8:$C$107,DH$7),0)","v":0},{"$f":"IF(BJ85=\"yes\",SUMIFS('Project Scope'!$BN$8:$BN$107,'Project Scope'!$C$8:$C$107,DI$7)+SUMIFS('Project Scope'!$BQ$8:$BQ$107,'Project Scope'!$C$8:$C$107,DI$7),0)","v":0},{"$f":"IF(BK85=\"yes\",SUMIFS('Project Scope'!$BN$8:$BN$107,'Project Scope'!$C$8:$C$107,DJ$7)+SUMIFS('Project Scope'!$BQ$8:$BQ$107,'Project Scope'!$C$8:$C$107,DJ$7),0)","v":0},{"$f":"IF(BL85=\"yes\",SUMIFS('Project Scope'!$BN$8:$BN$107,'Project Scope'!$C$8:$C$107,DK$7)+SUMIFS('Project Scope'!$BQ$8:$BQ$107,'Project Scope'!$C$8:$C$107,DK$7),0)","v":0},null,"","","","","","","","","","","","","","","","","","","","","","","","","","","","","","","","","","","","","","","","","","","","","","","","","","",null,""]
[null,null,null,null,null,null,null,null,null,null,null,{"$f":"IF($C86=\"additional labor hours\",K86*'Project Information'!$D$12,K86*J86)*IF($F86=\"Per Location\",COUNTIF($O86:$BL86,\"Yes\"),1)","v":0},{"$f":"IF($C86=\"\",0,IF(VLOOKUP($C86,'Other Data'!$B$146:$C$156,2,FALSE)=\"M\",$L86,0))","v":0},0,null,null,null,null,null,null,null,null,null,null,null,null,null,null,null,null,null,null,null,null,null,null,null,null,null,null,null,null,null,null,null,null,null,null,null,null,null,null,null,null,null,null,null,null,null,null,null,null,null,null,null,{"$f":"IF(O86=\"yes\",SUMIFS('Project Scope'!$BN$8:$BN$107,'Project Scope'!$C$8:$C$107,BN$7)+SUMIFS('Project Scope'!$BQ$8:$BQ$107,'Project Scope'!$C$8:$C$107,BN$7),0)","v":0},{"$f":"IF(P86=\"yes\",SUMIFS('Project Scope'!$BN$8:$BN$107,'Project Scope'!$C$8:$C$107,BO$7)+SUMIFS('Project Scope'!$BQ$8:$BQ$107,'Project Scope'!$C$8:$C$107,BO$7),0)","v":0},{"$f":"IF(Q86=\"yes\",SUMIFS('Project Scope'!$BN$8:$BN$107,'Project Scope'!$C$8:$C$107,BP$7)+SUMIFS('Project Scope'!$BQ$8:$BQ$107,'Project Scope'!$C$8:$C$107,BP$7),0)","v":0},{"$f":"IF(R86=\"yes\",SUMIFS('Project Scope'!$BN$8:$BN$107,'Project Scope'!$C$8:$C$107,BQ$7)+SUMIFS('Project Scope'!$BQ$8:$BQ$107,'Project Scope'!$C$8:$C$107,BQ$7),0)","v":0},{"$f":"IF(S86=\"yes\",SUMIFS('Project Scope'!$BN$8:$BN$107,'Project Scope'!$C$8:$C$107,BR$7)+SUMIFS('Project Scope'!$BQ$8:$BQ$107,'Project Scope'!$C$8:$C$107,BR$7),0)","v":0},{"$f":"IF(T86=\"yes\",SUMIFS('Project Scope'!$BN$8:$BN$107,'Project Scope'!$C$8:$C$107,BS$7)+SUMIFS('Project Scope'!$BQ$8:$BQ$107,'Project Scope'!$C$8:$C$107,BS$7),0)","v":0},{"$f":"IF(U86=\"yes\",SUMIFS('Project Scope'!$BN$8:$BN$107,'Project Scope'!$C$8:$C$107,BT$7)+SUMIFS('Project Scope'!$BQ$8:$BQ$107,'Project Scope'!$C$8:$C$107,BT$7),0)","v":0},{"$f":"IF(V86=\"yes\",SUMIFS('Project Scope'!$BN$8:$BN$107,'Project Scope'!$C$8:$C$107,BU$7)+SUMIFS('Project Scope'!$BQ$8:$BQ$107,'Project Scope'!$C$8:$C$107,BU$7),0)","v":0},{"$f":"IF(W86=\"yes\",SUMIFS('Project Scope'!$BN$8:$BN$107,'Project Scope'!$C$8:$C$107,BV$7)+SUMIFS('Project Scope'!$BQ$8:$BQ$107,'Project Scope'!$C$8:$C$107,BV$7),0)","v":0},{"$f":"IF(X86=\"yes\",SUMIFS('Project Scope'!$BN$8:$BN$107,'Project Scope'!$C$8:$C$107,BW$7)+SUMIFS('Project Scope'!$BQ$8:$BQ$107,'Project Scope'!$C$8:$C$107,BW$7),0)","v":0},{"$f":"IF(Y86=\"yes\",SUMIFS('Project Scope'!$BN$8:$BN$107,'Project Scope'!$C$8:$C$107,BX$7)+SUMIFS('Project Scope'!$BQ$8:$BQ$107,'Project Scope'!$C$8:$C$107,BX$7),0)","v":0},{"$f":"IF(Z86=\"yes\",SUMIFS('Project Scope'!$BN$8:$BN$107,'Project Scope'!$C$8:$C$107,BY$7)+SUMIFS('Project Scope'!$BQ$8:$BQ$107,'Project Scope'!$C$8:$C$107,BY$7),0)","v":0},{"$f":"IF(AA86=\"yes\",SUMIFS('Project Scope'!$BN$8:$BN$107,'Project Scope'!$C$8:$C$107,BZ$7)+SUMIFS('Project Scope'!$BQ$8:$BQ$107,'Project Scope'!$C$8:$C$107,BZ$7),0)","v":0},{"$f":"IF(AB86=\"yes\",SUMIFS('Project Scope'!$BN$8:$BN$107,'Project Scope'!$C$8:$C$107,CA$7)+SUMIFS('Project Scope'!$BQ$8:$BQ$107,'Project Scope'!$C$8:$C$107,CA$7),0)","v":0},{"$f":"IF(AC86=\"yes\",SUMIFS('Project Scope'!$BN$8:$BN$107,'Project Scope'!$C$8:$C$107,CB$7)+SUMIFS('Project Scope'!$BQ$8:$BQ$107,'Project Scope'!$C$8:$C$107,CB$7),0)","v":0},{"$f":"IF(AD86=\"yes\",SUMIFS('Project Scope'!$BN$8:$BN$107,'Project Scope'!$C$8:$C$107,CC$7)+SUMIFS('Project Scope'!$BQ$8:$BQ$107,'Project Scope'!$C$8:$C$107,CC$7),0)","v":0},{"$f":"IF(AE86=\"yes\",SUMIFS('Project Scope'!$BN$8:$BN$107,'Project Scope'!$C$8:$C$107,CD$7)+SUMIFS('Project Scope'!$BQ$8:$BQ$107,'Project Scope'!$C$8:$C$107,CD$7),0)","v":0},{"$f":"IF(AF86=\"yes\",SUMIFS('Project Scope'!$BN$8:$BN$107,'Project Scope'!$C$8:$C$107,CE$7)+SUMIFS('Project Scope'!$BQ$8:$BQ$107,'Project Scope'!$C$8:$C$107,CE$7),0)","v":0},{"$f":"IF(AG86=\"yes\",SUMIFS('Project Scope'!$BN$8:$BN$107,'Project Scope'!$C$8:$C$107,CF$7)+SUMIFS('Project Scope'!$BQ$8:$BQ$107,'Project Scope'!$C$8:$C$107,CF$7),0)","v":0},{"$f":"IF(AH86=\"yes\",SUMIFS('Project Scope'!$BN$8:$BN$107,'Project Scope'!$C$8:$C$107,CG$7)+SUMIFS('Project Scope'!$BQ$8:$BQ$107,'Project Scope'!$C$8:$C$107,CG$7),0)","v":0},{"$f":"IF(AI86=\"yes\",SUMIFS('Project Scope'!$BN$8:$BN$107,'Project Scope'!$C$8:$C$107,CH$7)+SUMIFS('Project Scope'!$BQ$8:$BQ$107,'Project Scope'!$C$8:$C$107,CH$7),0)","v":0},{"$f":"IF(AJ86=\"yes\",SUMIFS('Project Scope'!$BN$8:$BN$107,'Project Scope'!$C$8:$C$107,CI$7)+SUMIFS('Project Scope'!$BQ$8:$BQ$107,'Project Scope'!$C$8:$C$107,CI$7),0)","v":0},{"$f":"IF(AK86=\"yes\",SUMIFS('Project Scope'!$BN$8:$BN$107,'Project Scope'!$C$8:$C$107,CJ$7)+SUMIFS('Project Scope'!$BQ$8:$BQ$107,'Project Scope'!$C$8:$C$107,CJ$7),0)","v":0},{"$f":"IF(AL86=\"yes\",SUMIFS('Project Scope'!$BN$8:$BN$107,'Project Scope'!$C$8:$C$107,CK$7)+SUMIFS('Project Scope'!$BQ$8:$BQ$107,'Project Scope'!$C$8:$C$107,CK$7),0)","v":0},{"$f":"IF(AM86=\"yes\",SUMIFS('Project Scope'!$BN$8:$BN$107,'Project Scope'!$C$8:$C$107,CL$7)+SUMIFS('Project Scope'!$BQ$8:$BQ$107,'Project Scope'!$C$8:$C$107,CL$7),0)","v":0},{"$f":"IF(AN86=\"yes\",SUMIFS('Project Scope'!$BN$8:$BN$107,'Project Scope'!$C$8:$C$107,CM$7)+SUMIFS('Project Scope'!$BQ$8:$BQ$107,'Project Scope'!$C$8:$C$107,CM$7),0)","v":0},{"$f":"IF(AO86=\"yes\",SUMIFS('Project Scope'!$BN$8:$BN$107,'Project Scope'!$C$8:$C$107,CN$7)+SUMIFS('Project Scope'!$BQ$8:$BQ$107,'Project Scope'!$C$8:$C$107,CN$7),0)","v":0},{"$f":"IF(AP86=\"yes\",SUMIFS('Project Scope'!$BN$8:$BN$107,'Project Scope'!$C$8:$C$107,CO$7)+SUMIFS('Project Scope'!$BQ$8:$BQ$107,'Project Scope'!$C$8:$C$107,CO$7),0)","v":0},{"$f":"IF(AQ86=\"yes\",SUMIFS('Project Scope'!$BN$8:$BN$107,'Project Scope'!$C$8:$C$107,CP$7)+SUMIFS('Project Scope'!$BQ$8:$BQ$107,'Project Scope'!$C$8:$C$107,CP$7),0)","v":0},{"$f":"IF(AR86=\"yes\",SUMIFS('Project Scope'!$BN$8:$BN$107,'Project Scope'!$C$8:$C$107,CQ$7)+SUMIFS('Project Scope'!$BQ$8:$BQ$107,'Project Scope'!$C$8:$C$107,CQ$7),0)","v":0},{"$f":"IF(AS86=\"yes\",SUMIFS('Project Scope'!$BN$8:$BN$107,'Project Scope'!$C$8:$C$107,CR$7)+SUMIFS('Project Scope'!$BQ$8:$BQ$107,'Project Scope'!$C$8:$C$107,CR$7),0)","v":0},{"$f":"IF(AT86=\"yes\",SUMIFS('Project Scope'!$BN$8:$BN$107,'Project Scope'!$C$8:$C$107,CS$7)+SUMIFS('Project Scope'!$BQ$8:$BQ$107,'Project Scope'!$C$8:$C$107,CS$7),0)","v":0},{"$f":"IF(AU86=\"yes\",SUMIFS('Project Scope'!$BN$8:$BN$107,'Project Scope'!$C$8:$C$107,CT$7)+SUMIFS('Project Scope'!$BQ$8:$BQ$107,'Project Scope'!$C$8:$C$107,CT$7),0)","v":0},{"$f":"IF(AV86=\"yes\",SUMIFS('Project Scope'!$BN$8:$BN$107,'Project Scope'!$C$8:$C$107,CU$7)+SUMIFS('Project Scope'!$BQ$8:$BQ$107,'Project Scope'!$C$8:$C$107,CU$7),0)","v":0},{"$f":"IF(AW86=\"yes\",SUMIFS('Project Scope'!$BN$8:$BN$107,'Project Scope'!$C$8:$C$107,CV$7)+SUMIFS('Project Scope'!$BQ$8:$BQ$107,'Project Scope'!$C$8:$C$107,CV$7),0)","v":0},{"$f":"IF(AX86=\"yes\",SUMIFS('Project Scope'!$BN$8:$BN$107,'Project Scope'!$C$8:$C$107,CW$7)+SUMIFS('Project Scope'!$BQ$8:$BQ$107,'Project Scope'!$C$8:$C$107,CW$7),0)","v":0},{"$f":"IF(AY86=\"yes\",SUMIFS('Project Scope'!$BN$8:$BN$107,'Project Scope'!$C$8:$C$107,CX$7)+SUMIFS('Project Scope'!$BQ$8:$BQ$107,'Project Scope'!$C$8:$C$107,CX$7),0)","v":0},{"$f":"IF(AZ86=\"yes\",SUMIFS('Project Scope'!$BN$8:$BN$107,'Project Scope'!$C$8:$C$107,CY$7)+SUMIFS('Project Scope'!$BQ$8:$BQ$107,'Project Scope'!$C$8:$C$107,CY$7),0)","v":0},{"$f":"IF(BA86=\"yes\",SUMIFS('Project Scope'!$BN$8:$BN$107,'Project Scope'!$C$8:$C$107,CZ$7)+SUMIFS('Project Scope'!$BQ$8:$BQ$107,'Project Scope'!$C$8:$C$107,CZ$7),0)","v":0},{"$f":"IF(BB86=\"yes\",SUMIFS('Project Scope'!$BN$8:$BN$107,'Project Scope'!$C$8:$C$107,DA$7)+SUMIFS('Project Scope'!$BQ$8:$BQ$107,'Project Scope'!$C$8:$C$107,DA$7),0)","v":0},{"$f":"IF(BC86=\"yes\",SUMIFS('Project Scope'!$BN$8:$BN$107,'Project Scope'!$C$8:$C$107,DB$7)+SUMIFS('Project Scope'!$BQ$8:$BQ$107,'Project Scope'!$C$8:$C$107,DB$7),0)","v":0},{"$f":"IF(BD86=\"yes\",SUMIFS('Project Scope'!$BN$8:$BN$107,'Project Scope'!$C$8:$C$107,DC$7)+SUMIFS('Project Scope'!$BQ$8:$BQ$107,'Project Scope'!$C$8:$C$107,DC$7),0)","v":0},{"$f":"IF(BE86=\"yes\",SUMIFS('Project Scope'!$BN$8:$BN$107,'Project Scope'!$C$8:$C$107,DD$7)+SUMIFS('Project Scope'!$BQ$8:$BQ$107,'Project Scope'!$C$8:$C$107,DD$7),0)","v":0},{"$f":"IF(BF86=\"yes\",SUMIFS('Project Scope'!$BN$8:$BN$107,'Project Scope'!$C$8:$C$107,DE$7)+SUMIFS('Project Scope'!$BQ$8:$BQ$107,'Project Scope'!$C$8:$C$107,DE$7),0)","v":0},{"$f":"IF(BG86=\"yes\",SUMIFS('Project Scope'!$BN$8:$BN$107,'Project Scope'!$C$8:$C$107,DF$7)+SUMIFS('Project Scope'!$BQ$8:$BQ$107,'Project Scope'!$C$8:$C$107,DF$7),0)","v":0},{"$f":"IF(BH86=\"yes\",SUMIFS('Project Scope'!$BN$8:$BN$107,'Project Scope'!$C$8:$C$107,DG$7)+SUMIFS('Project Scope'!$BQ$8:$BQ$107,'Project Scope'!$C$8:$C$107,DG$7),0)","v":0},{"$f":"IF(BI86=\"yes\",SUMIFS('Project Scope'!$BN$8:$BN$107,'Project Scope'!$C$8:$C$107,DH$7)+SUMIFS('Project Scope'!$BQ$8:$BQ$107,'Project Scope'!$C$8:$C$107,DH$7),0)","v":0},{"$f":"IF(BJ86=\"yes\",SUMIFS('Project Scope'!$BN$8:$BN$107,'Project Scope'!$C$8:$C$107,DI$7)+SUMIFS('Project Scope'!$BQ$8:$BQ$107,'Project Scope'!$C$8:$C$107,DI$7),0)","v":0},{"$f":"IF(BK86=\"yes\",SUMIFS('Project Scope'!$BN$8:$BN$107,'Project Scope'!$C$8:$C$107,DJ$7)+SUMIFS('Project Scope'!$BQ$8:$BQ$107,'Project Scope'!$C$8:$C$107,DJ$7),0)","v":0},{"$f":"IF(BL86=\"yes\",SUMIFS('Project Scope'!$BN$8:$BN$107,'Project Scope'!$C$8:$C$107,DK$7)+SUMIFS('Project Scope'!$BQ$8:$BQ$107,'Project Scope'!$C$8:$C$107,DK$7),0)","v":0},null,"","","","","","","","","","","","","","","","","","","","","","","","","","","","","","","","","","","","","","","","","","","","","","","","","","",null,""]
[]
[null,"Project-Level Ancillary Costs"]
[]
[null,"Cost Description","Cost Category","Measure or Non-Measure Cost","Description",null,null,null,null,"Cost","Quantity or Hours ","Total Cost","Total Allocated","Allocation Amount"]
[null,null,null,{"$f":"VLOOKUP($C91,'Other Data'!$B$146:$C$156,2,FALSE)","v":{"$error":"#N/A"}},null,null,null,null,null,null,null,{"$f":"IF($C91=\"additional labor hours\",K91*'Project Information'!$D$12,K91*J91)","v":0},{"$f":"IF($C91=\"\",0,IF(VLOOKUP($C91,'Other Data'!$B$146:$C$156,2,FALSE)=\"M\",$L91,0))","v":0},{"$f":"IFERROR($M91/SUM('Project Scope'!$BN$8:$BN$107,'Project Scope'!$BQ$8:$BQ$107),0)","v":0}]
[null,null,null,{"$f":"VLOOKUP($C92,'Other Data'!$B$146:$C$156,2,FALSE)","v":{"$error":"#N/A"}},null,null,null,null,null,null,null,{"$f":"IF($C92=\"additional labor hours\",K92*'Project Information'!$D$12,K92*J92)","v":0},{"$f":"IF($C92=\"\",0,IF(VLOOKUP($C92,'Other Data'!$B$146:$C$156,2,FALSE)=\"M\",$L92,0))","v":0},{"$f":"IFERROR($M92/SUM('Project Scope'!$BN$8:$BN$107,'Project Scope'!$BQ$8:$BQ$107),0)","v":0}]
[null,null,null,{"$f":"VLOOKUP($C93,'Other Data'!$B$146:$C$156,2,FALSE)","v":{"$error":"#N/A"}},null,null,null,null,null,null,null,{"$f":"IF($C93=\"additional labor hours\",K93*'Project Information'!$D$12,K93*J93)","v":0},{"$f":"IF($C93=\"\",0,IF(VLOOKUP($C93,'Other Data'!$B$146:$C$156,2,FALSE)=\"M\",$L93,0))","v":0},{"$f":"IFERROR($M93/SUM('Project Scope'!$BN$8:$BN$107,'Project Scope'!$BQ$8:$BQ$107),0)","v":0}]
[null,null,null,{"$f":"VLOOKUP($C94,'Other Data'!$B$146:$C$156,2,FALSE)","v":{"$error":"#N/A"}},null,null,null,null,null,null,null,{"$f":"IF($C94=\"additional labor hours\",K94*'Project Information'!$D$12,K94*J94)","v":0},{"$f":"IF($C94=\"\",0,IF(VLOOKUP($C94,'Other Data'!$B$146:$C$156,2,FALSE)=\"M\",$L94,0))","v":0},{"$f":"IFERROR($M94/SUM('Project Scope'!$BN$8:$BN$107,'Project Scope'!$BQ$8:$BQ$107),0)","v":0}]
[null,null,null,{"$f":"VLOOKUP($C95,'Other Data'!$B$146:$C$156,2,FALSE)","v":{"$error":"#N/A"}},null,null,null,null,null,null,null,{"$f":"IF($C95=\"additional labor hours\",K95*'Project Information'!$D$12,K95*J95)","v":0},{"$f":"IF($C95=\"\",0,IF(VLOOKUP($C95,'Other Data'!$B$146:$C$156,2,FALSE)=\"M\",$L95,0))","v":0},{"$f":"IFERROR($M95/SUM('Project Scope'!$BN$8:$BN$107,'Project Scope'!$BQ$8:$BQ$107),0)","v":0}]
[null,null,null,{"$f":"VLOOKUP($C96,'Other Data'!$B$146:$C$156,2,FALSE)","v":{"$error":"#N/A"}},null,null,null,null,null,null,null,{"$f":"IF($C96=\"additional labor hours\",K96*'Project Information'!$D$12,K96*J96)","v":0},{"$f":"IF($C96=\"\",0,IF(VLOOKUP($C96,'Other Data'!$B$146:$C$156,2,FALSE)=\"M\",$L96,0))","v":0},{"$f":"IFERROR($M96/SUM('Project Scope'!$BN$8:$BN$107,'Project Scope'!$BQ$8:$BQ$107),0)","v":0}]
[null,null,null,{"$f":"VLOOKUP($C97,'Other Data'!$B$146:$C$156,2,FALSE)","v":{"$error":"#N/A"}},null,null,null,null,null,null,null,{"$f":"IF($C97=\"additional labor hours\",K97*'Project Information'!$D$12,K97*J97)","v":0},{"$f":"IF($C97=\"\",0,IF(VLOOKUP($C97,'Other Data'!$B$146:$C$156,2,FALSE)=\"M\",$L97,0))","v":0},{"$f":"IFERROR($M97/SUM('Project Scope'!$BN$8:$BN$107,'Project Scope'!$BQ$8:$BQ$107),0)","v":0}]
[null,null,null,{"$f":"VLOOKUP($C98,'Other Data'!$B$146:$C$156,2,FALSE)","v":{"$error":"#N/A"}},null,null,null,null,null,null,null,{"$f":"IF($C98=\"additional labor hours\",K98*'Project Information'!$D$12,K98*J98)","v":0},{"$f":"IF($C98=\"\",0,IF(VLOOKUP($C98,'Other Data'!$B$146:$C$156,2,FALSE)=\"M\",$L98,0))","v":0},{"$f":"IFERROR($M98/SUM('Project Scope'!$BN$8:$BN$107,'Project Scope'!$BQ$8:$BQ$107),0)","v":0}]
[null,null,null,{"$f":"VLOOKUP($C99,'Other Data'!$B$146:$C$156,2,FALSE)","v":{"$error":"#N/A"}},null,null,null,null,null,null,null,{"$f":"IF($C99=\"additional labor hours\",K99*'Project Information'!$D$12,K99*J99)","v":0},{"$f":"IF($C99=\"\",0,IF(VLOOKUP($C99,'Other Data'!$B$146:$C$156,2,FALSE)=\"M\",$L99,0))","v":0},{"$f":"IFERROR($M99/SUM('Project Scope'!$BN$8:$BN$107,'Project Scope'!$BQ$8:$BQ$107),0)","v":0}]
[null,null,null,{"$f":"VLOOKUP($C100,'Other Data'!$B$146:$C$156,2,FALSE)","v":{"$error":"#N/A"}},null,null,null,null,null,null,null,{"$f":"IF($C100=\"additional labor hours\",K100*'Project Information'!$D$12,K100*J100)","v":0},{"$f":"IF($C100=\"\",0,IF(VLOOKUP($C100,'Other Data'!$B$146:$C$156,2,FALSE)=\"M\",$L100,0))","v":0},{"$f":"IFERROR($M100/SUM('Project Scope'!$BN$8:$BN$107,'Project Scope'!$BQ$8:$BQ$107),0)","v":0}]
[null,null,null,{"$f":"VLOOKUP($C101,'Other Data'!$B$146:$C$156,2,FALSE)","v":{"$error":"#N/A"}},null,null,null,null,null,null,null,{"$f":"IF($C101=\"additional labor hours\",K101*'Project Information'!$D$12,K101*J101)","v":0},{"$f":"IF($C101=\"\",0,IF(VLOOKUP($C101,'Other Data'!$B$146:$C$156,2,FALSE)=\"M\",$L101,0))","v":0},{"$f":"IFERROR($M101/SUM('Project Scope'!$BN$8:$BN$107,'Project Scope'!$BQ$8:$BQ$107),0)","v":0}]
[null,null,null,{"$f":"VLOOKUP($C102,'Other Data'!$B$146:$C$156,2,FALSE)","v":{"$error":"#N/A"}},null,null,null,null,null,null,null,{"$f":"IF($C102=\"additional labor hours\",K102*'Project Information'!$D$12,K102*J102)","v":0},{"$f":"IF($C102=\"\",0,IF(VLOOKUP($C102,'Other Data'!$B$146:$C$156,2,FALSE)=\"M\",$L102,0))","v":0},{"$f":"IFERROR($M102/SUM('Project Scope'!$BN$8:$BN$107,'Project Scope'!$BQ$8:$BQ$107),0)","v":0}]
[null,null,null,{"$f":"VLOOKUP($C103,'Other Data'!$B$146:$C$156,2,FALSE)","v":{"$error":"#N/A"}},null,null,null,null,null,null,null,{"$f":"IF($C103=\"additional labor hours\",K103*'Project Information'!$D$12,K103*J103)","v":0},{"$f":"IF($C103=\"\",0,IF(VLOOKUP($C103,'Other Data'!$B$146:$C$156,2,FALSE)=\"M\",$L103,0))","v":0},{"$f":"IFERROR($M103/SUM('Project Scope'!$BN$8:$BN$107,'Project Scope'!$BQ$8:$BQ$107),0)","v":0}]
[null,null,null,{"$f":"VLOOKUP($C104,'Other Data'!$B$146:$C$156,2,FALSE)","v":{"$error":"#N/A"}},null,null,null,null,null,null,null,{"$f":"IF($C104=\"additional labor hours\",K104*'Project Information'!$D$12,K104*J104)","v":0},{"$f":"IF($C104=\"\",0,IF(VLOOKUP($C104,'Other Data'!$B$146:$C$156,2,FALSE)=\"M\",$L104,0))","v":0},{"$f":"IFERROR($M104/SUM('Project Scope'!$BN$8:$BN$107,'Project Scope'!$BQ$8:$BQ$107),0)","v":0}]
[null,null,null,{"$f":"VLOOKUP($C105,'Other Data'!$B$146:$C$156,2,FALSE)","v":{"$error":"#N/A"}},null,null,null,null,null,null,null,{"$f":"IF($C105=\"additional labor hours\",K105*'Project Information'!$D$12,K105*J105)","v":0},{"$f":"IF($C105=\"\",0,IF(VLOOKUP($C105,'Other Data'!$B$146:$C$156,2,FALSE)=\"M\",$L105,0))","v":0},{"$f":"IFERROR($M105/SUM('Project Scope'!$BN$8:$BN$107,'Project Scope'!$BQ$8:$BQ$107),0)","v":0}]
[]
[]
[]
[null,null,null,null,null,null,null,null,null,null,null,"Total","Total Allocated","Total Not Allocated"]
[null,null,null,null,null,null,null,null,null,null,null,{"$f":"SUM(L91:L105,L72:L86,L8:L16)","v":0},{"$f":"SUM(M91:M105,M72:M86,M8:M16)","v":0},{"$f":"L110-M110","v":0}]

{"sheet":"Scope of Work","index":4,"n_rows":250,"n_cols":11,"rows_kept":250,"cut":false,"hidden":false,"merged":[[243,0,243,4],[244,0,244,4],[245,0,245,4],[246,0,246,4],[247,0,247,4],[248,0,248,4],[249,0,249,4],[234,0,234,4],[235,0,235,4],[236,0,236,4],[237,0,237,4],[238,0,238,4],[239,0,239,4],[240,0,240,4],[241,0,241,4],[242,0,242,4],[96,0,96,4],[97,0,97,4],[98,0,98,4],[99,0,99,4],[100,0,100,4],[101,0,101,4],[102,0,102,4],[103,0,103,4],[104,0,104,4],[75,0,75,4],[76,0,76,4],[77,0,77,4],[78,0,78,4],[79,0,79,4],[80,0,80,4],[81,0,81,4],[82,0,82,4],[83,0,83,4],[247,5,247,7],[248,5,248,7],[249,5,249,7],[50,0,50,4],[49,0,49,4],[51,0,51,4],[52,0,52,4],[53,0,53,4],[54,0,54,4],[55,0,55,4],[56,0,56,4],[57,0,57,4],[58,0,58,4],[59,0,59,4],[60,0,60,4],[61,0,61,4],[62,0,62,4],[63,0,63,4],[64,0,64,4],[65,0,65,4],[66,0,66,4],[67,0,67,4],[68,0,68,4],[69,0,69,4],[238,5,238,7],[239,5,239,7],[240,5,240,7],[241,5,241,7],[242,5,242,7],[243,5,243,7],[244,5,244,7],[245,5,245,7],[246,5,246,7],[229,5,229,7],[230,5,230,7],[231,5,231,7],[232,5,232,7],[233,5,233,7],[234,5,234,7],[235,5,235,7],[236,5,236,7],[237,5,237,7],[220,5,220,7],[221,5,221,7],[222,5,222,7],[223,5,223,7],[224,5,224,7],[225,5,225,7],[226,5,226,7],[227,5,227,7],[228,5,228,7],[211,5,211,7],[212,5,212,7],[213,5,213,7],[214,5,214,7],[215,5,215,7],[216,5,216,7],[217,5,217,7],[218,5,218,7],[219,5,219,7],[202,5,202,7],[203,5,203,7],[204,5,204,7],[205,5,205,7],[206,5,206,7],[207,5,207,7],[208,5,208,7],[209,5,209,7],[210,5,210,7],[193,5,193,7],[194,5,194,7],[195,5,195,7],[196,5,196,7],[197,5,197,7],[198,5,198,7],[199,5,199,7],[200,5,200,7],[201,5,201,7],[184,5,184,7],[185,5,185,7],[186,5,186,7],[187,5,187,7],[188,5,188,7],[189,5,189,7],[190,5,190,7],[191,5,191,7],[192,5,192,7],[175,5,175,7],[176,5,176,7],[177,5,177,7],[178,5,178,7],[179,5,179,7],[180,5,180,7],[181,5,181,7],[182,5,182,7],[183,5,183,7],[166,5,166,7],[167,5,167,7],[168,5,168,7],[169,5,169,7],[170,5,170,7],[171,5,171,7],[172,5,172,7],[173,5,173,7],[174,5,174,7],[157,5,157,7],[158,5,158,7],[159,5,159,7],[160,5,160,7],[161,5,161,7],[162,5,162,7],[163,5,163,7],[164,5,164,7],[165,5,165,7],[148,5,148,7],[149,5,149,7],[150,5,150,7],[151,5,151,7],[152,5,152,7],[153,5,153,7],[154,5,154,7],[155,5,155,7],[156,5,156,7],[139,5,139,7],[140,5,140,7],[141,5,141,7],[142,5,142,7],[143,5,143,7],[144,5,144,7],[145,5,145,7],[146,5,146,7],[147,5,147,7],[130,5,130,7],[131,5,131,7],[132,5,132,7],[133,5,133,7],[134,5,134,7],[135,5,135,7],[136,5,136,7],[137,5,137,7],[138,5,138,7],[121,5,121,7],[122,5,122,7],[123,5,123,7],[124,5,124,7],[125,5,125,7],[126,5,126,7],[127,5,127,7],[128,5,128,7],[129,5,129,7],[112,5,112,7],[113,5,113,7],[114,5,114,7],[115,5,115,7],[116,5,116,7],[117,5,117,7],[118,5,118,7],[119,5,119,7],[120,5,120,7],[96,5,96,7],[97,5,97,7],[98,5,98,7],[99,5,99,7],[100,5,100,7],[101,5,101,7],[102,5,102,7],[103,5,103,7],[104,5,104,7],[84,5,84,7],[85,5,85,7],[86,5,86,7],[87,5,87,7],[88,5,88,7],[89,5,89,7],[90,5,90,7],[91,5,91,7],[92,5,92,7],[75,5,75,7],[76,5,76,7],[77,5,77,7],[78,5,78,7],[79,5,79,7],[80,5,80,7],[81,5,81,7],[82,5,82,7],[83,5,83,7],[66,5,66,7],[67,5,67,7],[68,5,68,7],[69,5,69,7],[70,5,70,7],[71,5,71,7],[72,5,72,7],[73,5,73,7],[74,5,74,7],[49,5,49,7],[50,5,50,7],[51,5,51,7],[52,5,52,7],[53,5,53,7],[54,5,54,7],[55,5,55,7],[56,5,56,7],[57,5,57,7],[58,5,58,7],[59,5,59,7],[60,5,60,7],[61,5,61,7],[62,5,62,7],[63,5,63,7],[64,5,64,7],[65,5,65,7],[105,5,105,7],[106,5,106,7],[107,5,107,7],[108,5,108,7],[109,5,109,7],[110,5,110,7],[111,5,111,7],[105,0,105,4],[106,0,106,4],[107,0,107,4],[108,0,108,4],[109,0,109,4],[110,0,110,4],[111,0,111,4],[93,5,93,7],[94,5,94,7],[95,5,95,7],[87,0,87,4],[88,0,88,4],[89,0,89,4],[90,0,90,4],[91,0,91,4],[92,0,92,4],[93,0,93,4],[94,0,94,4],[95,0,95,4],[84,0,84,4],[85,0,85,4],[86,0,86,4],[72,0,72,4],[73,0,73,4],[70,0,70,4],[71,0,71,4],[74,0,74,4],[15,0,15,10],[37,5,37,7],[38,5,38,7],[39,5,39,7],[11,3,11,5],[32,5,32,7],[33,5,33,7],[35,5,35,7],[34,5,34,7],[12,0,12,10],[14,0,14,10],[16,0,16,10],[17,0,17,10],[18,0,18,10],[19,0,19,10],[20,0,20,10],[21,0,21,10],[112,0,112,4],[113,0,113,4],[114,0,114,4],[115,0,115,4],[116,0,116,4],[117,0,117,4],[118,0,118,4],[119,0,119,4],[120,0,120,4],[121,0,121,4],[122,0,122,4],[123,0,123,4],[124,0,124,4],[125,0,125,4],[126,0,126,4],[127,0,127,4],[128,0,128,4],[129,0,129,4],[130,0,130,4],[131,0,131,4],[132,0,132,4],[133,0,133,4],[134,0,134,4],[135,0,135,4],[136,0,136,4],[137,0,137,4],[138,0,138,4],[139,0,139,4],[140,0,140,4],[141,0,141,4],[142,0,142,4],[143,0,143,4],[144,0,144,4],[145,0,145,4],[146,0,146,4],[147,0,147,4],[148,0,148,4],[149,0,149,4],[150,0,150,4],[151,0,151,4],[152,0,152,4],[153,0,153,4],[154,0,154,4],[155,0,155,4],[156,0,156,4],[157,0,157,4],[158,0,158,4],[159,0,159,4],[160,0,160,4],[161,0,161,4],[162,0,162,4],[163,0,163,4],[164,0,164,4],[165,0,165,4],[166,0,166,4],[167,0,167,4],[168,0,168,4],[169,0,169,4],[170,0,170,4],[171,0,171,4],[172,0,172,4],[173,0,173,4],[174,0,174,4],[175,0,175,4],[176,0,176,4],[177,0,177,4],[178,0,178,4],[179,0,179,4],[180,0,180,4],[181,0,181,4],[182,0,182,4],[183,0,183,4],[184,0,184,4],[185,0,185,4],[186,0,186,4],[187,0,187,4],[188,0,188,4],[189,0,189,4],[190,0,190,4],[191,0,191,4],[192,0,192,4],[193,0,193,4],[194,0,194,4],[195,0,195,4],[196,0,196,4],[197,0,197,4],[198,0,198,4],[199,0,199,4],[200,0,200,4],[201,0,201,4],[202,0,202,4],[203,0,203,4],[204,0,204,4],[205,0,205,4],[206,0,206,4],[207,0,207,4],[208,0,208,4],[209,0,209,4],[210,0,210,4],[211,0,211,4],[212,0,212,4],[213,0,213,4],[214,0,214,4],[215,0,215,4],[216,0,216,4],[217,0,217,4],[218,0,218,4],[219,0,219,4],[220,0,220,4],[221,0,221,4],[222,0,222,4],[223,0,223,4],[224,0,224,4],[225,0,225,4],[226,0,226,4],[227,0,227,4],[228,0,228,4],[229,0,229,4],[230,0,230,4],[231,0,231,4],[232,0,232,4],[233,0,233,4],[40,5,40,7],[41,5,41,7],[42,5,42,7],[43,5,43,7],[44,5,44,7],[48,0,48,9]]}
[null,null,null,"COMMERCIAL & INDUSTRIAL PRESCRIPTIVE LIGHTING SOLUTIONS"]
[null,null,null,"OUTDOOR LIGHTING RETROFIT APPLICATION"]
[null,null,null,"SCOPE OF WORK (APPROVED) TERMS AND CONDITIONS"]
[null,null,null,{"$f":"'Project Information'!$B$2","v":"Cost-effective Lighting Investment Calculator (CLIC) CIPI FON-022-2026"}]
[]
[null,null,"Customer Name:",{"$f":"'Project Information'!$D$5","v":0}]
[null,null,"Qualified Partner #1:",{"$f":"'Project Information'!$D$6","v":0}]
[null,null,"Qualified Partner #2:",{"$f":"IF('Project Information'!$D$8<>\"\",'Project Information'!$D$8,\"\")","v":""}]
[null,null,"Facility Name:",{"$f":"'Project Information'!$D$18","v":0}]
[null,null,"Installation Address:",{"$f":"'Project Information'!$D$23","v":0},null,null,null,null,null,null,""]
[null,null,"    City:",{"$f":"'Project Information'!$D$25","v":0},null,null,"State:","Maine","Zip:"]
[null,null,"Reference Number:",{"$f":"'Project Information'!K2","v":0}]
["This Approved Scope of Work Form is part of the Funding Opportunity Notice (FON) for the Efficiency Maine Commercial & Industrial Prescriptive Initiative. When executed by the Parties and submitted with CIPI FON-022-2026, constitute agreement to the following Terms & Conditions:"]
[]
["1. APPLICANT ELIGIBILITY REPRESENTATIONS. \nApplicant represents that the following statements are true: \n        a. Applicant is a non-residential customer of electric utilities in the State of Maine,\n        b. Applicant’s primary business function is not to generate power to be sold into a power market,\n        c. Applicant has the authority to contract for retrofit work in the Facility in connection with the Measures\n           listed,\n2. AGREEMENT AS TO THE MEASURES.  Applicant agrees to have an Installation Contractor perform retrofit work at the Facility in connection with the Measures identified on the attached Section C to this Scope of Work. In consideration of the Contractor’s performance of such work, Applicant agrees to pay Installation Contractor for Measures installed at the Facility, based on the Estimated Costs listed on said Section C for the number of completed units for each Measure upon receipt of invoice; provided the Contractor may collect a deposit from Customer prior to performing such work, in which case the final invoice shall be net of such deposit."]
["3. AGREEMENT AS TO INCENTIVE AMOUNTS.\n          a. Subject to the other terms of this Scope of Work, Applicant's obligation to pay for the installation and Measures shall be reduced by an amount (the “Incentive”) provided under the Efficiency Maine CIPI FON-022-2026, which amount shall be equal to $0.30 per 1st years saved kWh or capped at 80% of the measure cost."]
["4. INSTALLATION REQUIREMENTS.\n          a. Services to be provided this Scope of Work shall in no way include work by the Installation Contractor in connection with the correction of apparent or hidden safety issues or code violations. Installation Contractor shall not perform work where, in its sole discretion, it is determined such safety issues or code violations exist.\n          b. The Applicant agrees not to reinstall any of this equipment, or transfer it to any other party for installation.  Applicant agrees that it will not alter, modify or discontinue use of the Measures without prior written approval from Efficiency Maine and that Measures will be used for their rated useful life.\n          c. Applicant agrees to permit Efficiency Maine (or any designated agent) to access the Facility before, during or after installation of the Measures at times reasonable convenient to Applicant, project inspections and evaluations.\n          d. Notwithstanding Applicant’s ownership of all installed improvements, Efficiency Maine shall be deemed the owner of, and shall hold exclusive right, title and interest in and to any electric system capacity credits and environmental credits that may be associated with the Measures, and Efficiency Maine can sell, transfer and otherwise dispose of these credits in any manner authorized by law or regulation. By accepting an Incentive, Applicant expressly and irrevocably conveys all such rights and credits to Efficiency. In no event shall activity associate with any such energy or environmental credits result in interference with the Applicant's sole discretion to operate Measures as approved in the Approved Scope of Work."]
["5. LIMITATION OF LIABILITY; INDEMNIFICATION\n          a. In no event shall Efficiency Maine, nor any of their respective trustees, officers, directors, shareholders, affiliates, employees, agents, or contractors be liable to the Applicant or anyone claiming through Applicant, for any special, consequential, or incidental damages, including lost profits or lost business opportunities, or for any damages in tort (including negligence) caused by or resulting from any activities in connection with or associated with this Scope of Work or the Efficiency Maine Prescriptive Program.\n          b. The Applicant shall protect, indemnify, and hold harmless Efficiency Maine, and their respective trustees, officers, directors, shareholders, affiliates, employees, agents or contractors (each, an “Indemnified Party”) from and against all liabilities, losses, claims, damages, judgments, penalties, causes of action, costs and expenses (including, without limitation, attorney’s fees and expenses) incurred by or assessed against an Indemnified Party  arising out of or relating to the Applicant’s performance or non-performance of obligations under this Scope of Work or the installation and operation of the Measures.\n          c. Nothing herein shall be construed to waive, release, or diminish any statutory or common law immunities of Efficiency Maine as a governmental entity, all of which are expressly retained."]
["6. WARRANTIES\n          a. Installation Contractor warrants to Applicant that all equipment and materials installed as part of the Project are free from defects in title, material, workmanship and installation, and shall conform to Efficiency Maine Prescriptive Program specifications. Such warranty shall not expire before the later of the applicable manufacturer warranty period (if any) or one (1) year from the date of installation. If such warranty is breached, Contractor shall, at its expense, either repair or replace (at its option) the equipment or materials to remove the defect and/or establish such conformity, as applicable.\n          b. Neither Efficiency Maine nor any agent of, endorses, guarantees, or warrants any particular manufacturer or product, and provides no warranties, express or implied, for any product or services. Efficiency Maine expressly disclaim all warranties relating to the Measures. The Applicant's reliance on warranties is limited to any warranties that may be provided directly by Contractor or equipment suppliers.\n          c. Neither Efficiency Maine nor any agent of, are responsible for assuring that the design, engineering and construction of the Facility or installation of the Measures is proper or complies with any particular laws, codes, or industry standards, nor for the accuracy or inaccuracy of any energy assessment findings or anticipated energy savings. Neither Efficiency Maine nor any agent of make no representations of any kind regarding the results to be achieved by the Measures or the adequacy or safety of such measures."]
["7. PUBLICITY OF APPLICANT PARTICIPATION\nBy accepting an Incentive, the Applicant understands that Efficiency Maine reserves the right to disclose certain information about the Applicant’s participation in the Efficiency Maine Prescriptive Program, including, but not necessarily limited to, the Applicant’s name and address, the Incentive amount, projected energy savings as well as other non-proprietary business information.\n8. CUSTOMER MUST PAY ALL TAXES\nIncentives received by the Applicant may be taxable by the federal, state, and local government. The Applicant is responsible for determining any tax obligations and declaring and paying all such taxes. Recipients of Incentive payments must provide their tax identification number to Efficiency Maine for payment processing. Incentive award payments in excess of $600 made to unincorporated entities will be reported on IRS Form 1099. "]
["9. MISCELLANEOUS\n          a. This  Scope of Work constitutes the full agreement among Applicant and Installation Contractor (collectively, the “Parties”), and supersedes any prior discussions, understandings and agreements, whether oral or in writing.  \n          b. Paragraph headings are for the convenience of the Parties only and are not to be construed as part of this Scope of Work.\n          c. If any provision of this Scope of Work is deemed invalid by any court or administrative body having jurisdiction, such ruling shall not invalidate any other provision, and the remaining provisions shall remain in full force and effect in accordance with their terms.\n          d. In the event of any dispute concerning this Scope of Work, or any other requirement of the Efficiency Maine Prescriptive Program, resolution will be governed in all respects by the laws, statutes, and regulations of the United States of America and of the State of Maine. Any legal proceeding against the State regarding this agreement shall be brought in State of Maine administrative or judicial forums. The Applicant consents to personal jurisdiction in the State of Maine.\n          e. Applicant and Installation Contractor expressly acknowledge that Efficiency Maine or a designated agent of, are each an intended third party beneficiary of this Scope of Work with full power to enforce the terms of this Scope of Work."]
["By signing below, the Parties agree the Measures listed in Section C shall be installed by the Installation Contractor. The Applicant shall pay the Installing Contractor as described herein following Completion and Acceptance of Measures. "]
[]
[]
["Participating Customer",null,null,null,null,null,"Date"]
[]
[]
[]
["Participating Qualified Partner",null,null,null,null,null,"Date"]
[]
[null,null,null,null,null,null,"Section B. Summary of Project Financials and Energy Savings"]
[]
[null,null,null,null,{"$f":"'[5]Project Information'!H39","v":"Estimated Annual kWh Savings: "},{"$f":"'Project Information'!J39","v":0}]
[null,null,null,null,{"$f":"'[5]Project Information'!H41","v":"Average cost per kWh: "},{"$f":"'Project Information'!J41","v":0.21}]
[null,null,null,null,{"$f":"'[5]Project Information'!H42","v":"Estimated Annual Energy Cost Savings: "},{"$f":"'Project Information'!J42","v":0}]
[null,null,null,null,{"$f":"'[5]Project Information'!H43","v":"Estimated Monthly Energy Cost Savings: "},{"$f":"'Project Information'!J43","v":0}]
[]
[null,null,null,null,{"$f":"'[5]Project Information'!K39","v":"Total Labor Costs: "},{"$f":"'Project Information'!L39","v":0}]
[null,null,null,null,{"$f":"'[5]Project Information'!K40","v":"Total Material Costs: "},{"$f":"'Project Information'!L40","v":0}]
[null,null,null,null,"Total Taxes on Materials:",{"$f":"'Project Information'!L43","v":0}]
[null,null,null,null,{"$f":"'[5]Project Information'!K41","v":"Total Ancillary Costs: "},{"$f":"'Project Information'!L41","v":0}]
[null,null,null,null,"Total Project Costs (including tax):",{"$f":"'Project Information'!L44","v":0}]
[null,null,null,null,{"$f":"'[5]Project Information'!K45","v":"Estimated Incentives:"},{"$f":"'Project Information'!L45","v":0}]
[null,null,null,null,{"$f":"'[5]Project Information'!K46","v":"Estimated Cost to Customer:"},{"$f":"'Project Information'!L46","v":0}]
[null,null,null,null,{"$f":"'[5]Project Information'!K47","v":"Est. Simple Payback (years):"},{"$f":"'Project Information'!L47","v":{"$error":"#DIV/0!"}}]
[]
[]
[]
["Section C. List of Measures"]
["Measure Description ",null,null,null,null,"Location",null,null,"Qty","Estimated Incentive"]
[{"$f":"'Project Scope'!Q111","v":""},null,null,null,null,{"$f":"'Project Scope'!R111","v":""},null,null,{"$f":"'Project Scope'!U111","v":""},{"$f":"'Project Scope'!X111","v":""}]
[{"$f":"'Project Scope'!Q112","v":""},null,null,null,null,{"$f":"'Project Scope'!R112","v":""},null,null,{"$f":"'Project Scope'!U112","v":""},{"$f":"'Project Scope'!X112","v":""}]
[{"$f":"'Project Scope'!Q113","v":""},null,null,null,null,{"$f":"'Project Scope'!R113","v":""},null,null,{"$f":"'Project Scope'!U113","v":""},{"$f":"'Project Scope'!X113","v":""}]
[{"$f":"'Project Scope'!Q114","v":""},null,null,null,null,{"$f":"'Project Scope'!R114","v":""},null,null,{"$f":"'Project Scope'!U114","v":""},{"$f":"'Project Scope'!X114","v":""}]
[{"$f":"'Project Scope'!Q115","v":""},null,null,null,null,{"$f":"'Project Scope'!R115","v":""},null,null,{"$f":"'Project Scope'!U115","v":""},{"$f":"'Project Scope'!X115","v":""}]
[{"$f":"'Project Scope'!Q116","v":""},null,null,null,null,{"$f":"'Project Scope'!R116","v":""},null,null,{"$f":"'Project Scope'!U116","v":""},{"$f":"'Project Scope'!X116","v":""}]
[{"$f":"'Project Scope'!Q117","v":""},null,null,null,null,{"$f":"'Project Scope'!R117","v":""},null,null,{"$f":"'Project Scope'!U117","v":""},{"$f":"'Project Scope'!X117","v":""}]
[{"$f":"'Project Scope'!Q118","v":""},null,null,null,null,{"$f":"'Project Scope'!R118","v":""},null,null,{"$f":"'Project Scope'!U118","v":""},{"$f":"'Project Scope'!X118","v":""}]
[{"$f":"'Project Scope'!Q119","v":""},null,null,null,null,{"$f":"'Project Scope'!R119","v":""},null,null,{"$f":"'Project Scope'!U119","v":""},{"$f":"'Project Scope'!X119","v":""}]
[{"$f":"'Project Scope'!Q120","v":""},null,null,null,null,{"$f":"'Project Scope'!R120","v":""},null,null,{"$f":"'Project Scope'!U120","v":""},{"$f":"'Project Scope'!X120","v":""}]
[{"$f":"'Project Scope'!Q121","v":""},null,null,null,null,{"$f":"'Project Scope'!R121","v":""},null,null,{"$f":"'Project Scope'!U121","v":""},{"$f":"'Project Scope'!X121","v":""}]
[{"$f":"'Project Scope'!Q122","v":""},null,null,null,null,{"$f":"'Project Scope'!R122","v":""},null,null,{"$f":"'Project Scope'!U122","v":""},{"$f":"'Project Scope'!X122","v":""}]
[{"$f":"'Project Scope'!Q123","v":""},null,null,null,null,{"$f":"'Project Scope'!R123","v":""},null,null,{"$f":"'Project Scope'!U123","v":""},{"$f":"'Project Scope'!X123","v":""}]
[{"$f":"'Project Scope'!Q124","v":""},null,null,null,null,{"$f":"'Project Scope'!R124","v":""},null,null,{"$f":"'Project Scope'!U124","v":""},{"$f":"'Project Scope'!X124","v":""}]
[{"$f":"'Project Scope'!Q125","v":""},null,null,null,null,{"$f":"'Project Scope'!R125","v":""},null,null,{"$f":"'Project Scope'!U125","v":""},{"$f":"'Project Scope'!X125","v":""}]
[{"$f":"'Project Scope'!Q126","v":""},null,null,null,null,{"$f":"'Project Scope'!R126","v":""},null,null,{"$f":"'Project Scope'!U126","v":""},{"$f":"'Project Scope'!X126","v":""}]
[{"$f":"'Project Scope'!Q127","v":""},null,null,null,null,{"$f":"'Project Scope'!R127","v":""},null,null,{"$f":"'Project Scope'!U127","v":""},{"$f":"'Project Scope'!X127","v":""}]
[{"$f":"'Project Scope'!Q128","v":""},null,null,null,null,{"$f":"'Project Scope'!R128","v":""},null,null,{"$f":"'Project Scope'!U128","v":""},{"$f":"'Project Scope'!X128","v":""}]
[{"$f":"'Project Scope'!Q129","v":""},null,null,null,null,{"$f":"'Project Scope'!R129","v":""},null,null,{"$f":"'Project Scope'!U129","v":""},{"$f":"'Project Scope'!X129","v":""}]
[{"$f":"'Project Scope'!Q130","v":""},null,null,null,null,{"$f":"'Project Scope'!R130","v":""},null,null,{"$f":"'Project Scope'!U130","v":""},{"$f":"'Project Scope'!X130","v":""}]
[{"$f":"'Project Scope'!Q131","v":""},null,null,null,null,{"$f":"'Project Scope'!R131","v":""},null,null,{"$f":"'Project Scope'!U131","v":""},{"$f":"'Project Scope'!X131","v":""}]
[{"$f":"'Project Scope'!Q132","v":""},null,null,null,null,{"$f":"'Project Scope'!R132","v":""},null,null,{"$f":"'Project Scope'!U132","v":""},{"$f":"'Project Scope'!X132","v":""}]
[{"$f":"'Project Scope'!Q133","v":""},null,null,null,null,{"$f":"'Project Scope'!R133","v":""},null,null,{"$f":"'Project Scope'!U133","v":""},{"$f":"'Project Scope'!X133","v":""}]
[{"$f":"'Project Scope'!Q134","v":""},null,null,null,null,{"$f":"'Project Scope'!R134","v":""},null,null,{"$f":"'Project Scope'!U134","v":""},{"$f":"'Project Scope'!X134","v":""}]
[{"$f":"'Project Scope'!Q135","v":""},null,null,null,null,{"$f":"'Project Scope'!R135","v":""},null,null,{"$f":"'Project Scope'!U135","v":""},{"$f":"'Project Scope'!X135","v":""}]
[{"$f":"'Project Scope'!Q136","v":""},null,null,null,null,{"$f":"'Project Scope'!R136","v":""},null,null,{"$f":"'Project Scope'!U136","v":""},{"$f":"'Project Scope'!X136","v":""}]
[{"$f":"'Project Scope'!Q137","v":""},null,null,null,null,{"$f":"'Project Scope'!R137","v":""},null,null,{"$f":"'Project Scope'!U137","v":""},{"$f":"'Project Scope'!X137","v":""}]
[{"$f":"'Project Scope'!Q138","v":""},null,null,null,null,{"$f":"'Project Scope'!R138","v":""},null,null,{"$f":"'Project Scope'!U138","v":""},{"$f":"'Project Scope'!X138","v":""}]
[{"$f":"'Project Scope'!Q139","v":""},null,null,null,null,{"$f":"'Project Scope'!R139","v":""},null,null,{"$f":"'Project Scope'!U139","v":""},{"$f":"'Project Scope'!X139","v":""}]
[{"$f":"'Project Scope'!Q140","v":""},null,null,null,null,{"$f":"'Project Scope'!R140","v":""},null,null,{"$f":"'Project Scope'!U140","v":""},{"$f":"'Project Scope'!X140","v":""}]
[{"$f":"'Project Scope'!Q141","v":""},null,null,null,null,{"$f":"'Project Scope'!R141","v":""},null,null,{"$f":"'Project Scope'!U141","v":""},{"$f":"'Project Scope'!X141","v":""}]
[{"$f":"'Project Scope'!Q142","v":""},null,null,null,null,{"$f":"'Project Scope'!R142","v":""},null,null,{"$f":"'Project Scope'!U142","v":""},{"$f":"'Project Scope'!X142","v":""}]
[{"$f":"'Project Scope'!Q143","v":""},null,null,null,null,{"$f":"'Project Scope'!R143","v":""},null,null,{"$f":"'Project Scope'!U143","v":""},{"$f":"'Project Scope'!X143","v":""}]
[{"$f":"'Project Scope'!Q144","v":""},null,null,null,null,{"$f":"'Project Scope'!R144","v":""},null,null,{"$f":"'Project Scope'!U144","v":""},{"$f":"'Project Scope'!X144","v":""}]
[{"$f":"'Project Scope'!Q145","v":""},null,null,null,null,{"$f":"'Project Scope'!R145","v":""},null,null,{"$f":"'Project Scope'!U145","v":""},{"$f":"'Project Scope'!X145","v":""}]
[{"$f":"'Project Scope'!Q146","v":""},null,null,null,null,{"$f":"'Project Scope'!R146","v":""},null,null,{"$f":"'Project Scope'!U146","v":""},{"$f":"'Project Scope'!X146","v":""}]
[{"$f":"'Project Scope'!Q147","v":""},null,null,null,null,{"$f":"'Project Scope'!R147","v":""},null,null,{"$f":"'Project Scope'!U147","v":""},{"$f":"'Project Scope'!X147","v":""}]
[{"$f":"'Project Scope'!Q148","v":""},null,null,null,null,{"$f":"'Project Scope'!R148","v":""},null,null,{"$f":"'Project Scope'!U148","v":""},{"$f":"'Project Scope'!X148","v":""}]
[{"$f":"'Project Scope'!Q149","v":""},null,null,null,null,{"$f":"'Project Scope'!R149","v":""},null,null,{"$f":"'Project Scope'!U149","v":""},{"$f":"'Project Scope'!X149","v":""}]
[{"$f":"'Project Scope'!Q150","v":""},null,null,null,null,{"$f":"'Project Scope'!R150","v":""},null,null,{"$f":"'Project Scope'!U150","v":""},{"$f":"'Project Scope'!X150","v":""}]
[{"$f":"'Project Scope'!Q151","v":""},null,null,null,null,{"$f":"'Project Scope'!R151","v":""},null,null,{"$f":"'Project Scope'!U151","v":""},{"$f":"'Project Scope'!X151","v":""}]
[{"$f":"'Project Scope'!Q152","v":""},null,null,null,null,{"$f":"'Project Scope'!R152","v":""},null,null,{"$f":"'Project Scope'!U152","v":""},{"$f":"'Project Scope'!X152","v":""}]
[{"$f":"'Project Scope'!Q153","v":""},null,null,null,null,{"$f":"'Project Scope'!R153","v":""},null,null,{"$f":"'Project Scope'!U153","v":""},{"$f":"'Project Scope'!X153","v":""}]
[{"$f":"'Project Scope'!Q154","v":""},null,null,null,null,{"$f":"'Project Scope'!R154","v":""},null,null,{"$f":"'Project Scope'!U154","v":""},{"$f":"'Project Scope'!X154","v":""}]
[{"$f":"'Project Scope'!Q155","v":""},null,null,null,null,{"$f":"'Project Scope'!R155","v":""},null,null,{"$f":"'Project Scope'!U155","v":""},{"$f":"'Project Scope'!X155","v":""}]
[{"$f":"'Project Scope'!Q156","v":""},null,null,null,null,{"$f":"'Project Scope'!R156","v":""},null,null,{"$f":"'Project Scope'!U156","v":""},{"$f":"'Project Scope'!X156","v":""}]
[{"$f":"'Project Scope'!Q157","v":""},null,null,null,null,{"$f":"'Project Scope'!R157","v":""},null,null,{"$f":"'Project Scope'!U157","v":""},{"$f":"'Project Scope'!X157","v":""}]
[{"$f":"'Project Scope'!Q158","v":""},null,null,null,null,{"$f":"'Project Scope'!R158","v":""},null,null,{"$f":"'Project Scope'!U158","v":""},{"$f":"'Project Scope'!X158","v":""}]
[{"$f":"'Project Scope'!Q159","v":""},null,null,null,null,{"$f":"'Project Scope'!R159","v":""},null,null,{"$f":"'Project Scope'!U159","v":""},{"$f":"'Project Scope'!X159","v":""}]
[{"$f":"'Project Scope'!Q160","v":""},null,null,null,null,{"$f":"'Project Scope'!R160","v":""},null,null,{"$f":"'Project Scope'!U160","v":""},{"$f":"'Project Scope'!X160","v":""}]
[{"$f":"'Project Scope'!Q161","v":""},null,null,null,null,{"$f":"'Project Scope'!R161","v":""},null,null,{"$f":"'Project Scope'!U161","v":""},{"$f":"'Project Scope'!X161","v":""}]
[{"$f":"'Project Scope'!Q162","v":""},null,null,null,null,{"$f":"'Project Scope'!R162","v":""},null,null,{"$f":"'Project Scope'!U162","v":""},{"$f":"'Project Scope'!X162","v":""}]
[{"$f":"'Project Scope'!Q163","v":""},null,null,null,null,{"$f":"'Project Scope'!R163","v":""},null,null,{"$f":"'Project Scope'!U163","v":""},{"$f":"'Project Scope'!X163","v":""}]
[{"$f":"'Project Scope'!Q164","v":""},null,null,null,null,{"$f":"'Project Scope'!R164","v":""},null,null,{"$f":"'Project Scope'!U164","v":""},{"$f":"'Project Scope'!X164","v":""}]
[{"$f":"'Project Scope'!Q165","v":""},null,null,null,null,{"$f":"'Project Scope'!R165","v":""},null,null,{"$f":"'Project Scope'!U165","v":""},{"$f":"'Project Scope'!X165","v":""}]
[{"$f":"'Project Scope'!Q166","v":""},null,null,null,null,{"$f":"'Project Scope'!R166","v":""},null,null,{"$f":"'Project Scope'!U166","v":""},{"$f":"'Project Scope'!X166","v":""}]
[{"$f":"'Project Scope'!Q167","v":""},null,null,null,null,{"$f":"'Project Scope'!R167","v":""},null,null,{"$f":"'Project Scope'!U167","v":""},{"$f":"'Project Scope'!X167","v":""}]
[{"$f":"'Project Scope'!Q168","v":""},null,null,null,null,{"$f":"'Project Scope'!R168","v":""},null,null,{"$f":"'Project Scope'!U168","v":""},{"$f":"'Project Scope'!X168","v":""}]
[{"$f":"'Project Scope'!Q169","v":""},null,null,null,null,{"$f":"'Project Scope'!R169","v":""},null,null,{"$f":"'Project Scope'!U169","v":""},{"$f":"'Project Scope'!X169","v":""}]
[{"$f":"'Project Scope'!Q170","v":""},null,null,null,null,{"$f":"'Project Scope'!R170","v":""},null,null,{"$f":"'Project Scope'!U170","v":""},{"$f":"'Project Scope'!X170","v":""}]
[{"$f":"'Project Scope'!Q171","v":""},null,null,null,null,{"$f":"'Project Scope'!R171","v":""},null,null,{"$f":"'Project Scope'!U171","v":""},{"$f":"'Project Scope'!X171","v":""}]
[{"$f":"'Project Scope'!Q172","v":""},null,null,null,null,{"$f":"'Project Scope'!R172","v":""},null,null,{"$f":"'Project Scope'!U172","v":""},{"$f":"'Project Scope'!X172","v":""}]
[{"$f":"'Project Scope'!Q173","v":""},null,null,null,null,{"$f":"'Project Scope'!R173","v":""},null,null,{"$f":"'Project Scope'!U173","v":""},{"$f":"'Project Scope'!X173","v":""}]
[{"$f":"'Project Scope'!Q174","v":""},null,null,null,null,{"$f":"'Project Scope'!R174","v":""},null,null,{"$f":"'Project Scope'!U174","v":""},{"$f":"'Project Scope'!X174","v":""}]
[{"$f":"'Project Scope'!Q175","v":""},null,null,null,null,{"$f":"'Project Scope'!R175","v":""},null,null,{"$f":"'Project Scope'!U175","v":""},{"$f":"'Project Scope'!X175","v":""}]
[{"$f":"'Project Scope'!Q176","v":""},null,null,null,null,{"$f":"'Project Scope'!R176","v":""},null,null,{"$f":"'Project Scope'!U176","v":""},{"$f":"'Project Scope'!X176","v":""}]
[{"$f":"'Project Scope'!Q177","v":""},null,null,null,null,{"$f":"'Project Scope'!R177","v":""},null,null,{"$f":"'Project Scope'!U177","v":""},{"$f":"'Project Scope'!X177","v":""}]
[{"$f":"'Project Scope'!Q178","v":""},null,null,null,null,{"$f":"'Project Scope'!R178","v":""},null,null,{"$f":"'Project Scope'!U178","v":""},{"$f":"'Project Scope'!X178","v":""}]
[{"$f":"'Project Scope'!Q179","v":""},null,null,null,null,{"$f":"'Project Scope'!R179","v":""},null,null,{"$f":"'Project Scope'!U179","v":""},{"$f":"'Project Scope'!X179","v":""}]
[{"$f":"'Project Scope'!Q180","v":""},null,null,null,null,{"$f":"'Project Scope'!R180","v":""},null,null,{"$f":"'Project Scope'!U180","v":""},{"$f":"'Project Scope'!X180","v":""}]
[{"$f":"'Project Scope'!Q181","v":""},null,null,null,null,{"$f":"'Project Scope'!R181","v":""},null,null,{"$f":"'Project Scope'!U181","v":""},{"$f":"'Project Scope'!X181","v":""}]
[{"$f":"'Project Scope'!Q182","v":""},null,null,null,null,{"$f":"'Project Scope'!R182","v":""},null,null,{"$f":"'Project Scope'!U182","v":""},{"$f":"'Project Scope'!X182","v":""}]
[{"$f":"'Project Scope'!Q183","v":""},null,null,null,null,{"$f":"'Project Scope'!R183","v":""},null,null,{"$f":"'Project Scope'!U183","v":""},{"$f":"'Project Scope'!X183","v":""}]
[{"$f":"'Project Scope'!Q184","v":""},null,null,null,null,{"$f":"'Project Scope'!R184","v":""},null,null,{"$f":"'Project Scope'!U184","v":""},{"$f":"'Project Scope'!X184","v":""}]
[{"$f":"'Project Scope'!Q185","v":""},null,null,null,null,{"$f":"'Project Scope'!R185","v":""},null,null,{"$f":"'Project Scope'!U185","v":""},{"$f":"'Project Scope'!X185","v":""}]
[{"$f":"'Project Scope'!Q186","v":""},null,null,null,null,{"$f":"'Project Scope'!R186","v":""},null,null,{"$f":"'Project Scope'!U186","v":""},{"$f":"'Project Scope'!X186","v":""}]
[{"$f":"'Project Scope'!Q187","v":""},null,null,null,null,{"$f":"'Project Scope'!R187","v":""},null,null,{"$f":"'Project Scope'!U187","v":""},{"$f":"'Project Scope'!X187","v":""}]
[{"$f":"'Project Scope'!Q188","v":""},null,null,null,null,{"$f":"'Project Scope'!R188","v":""},null,null,{"$f":"'Project Scope'!U188","v":""},{"$f":"'Project Scope'!X188","v":""}]
[{"$f":"'Project Scope'!Q189","v":""},null,null,null,null,{"$f":"'Project Scope'!R189","v":""},null,null,{"$f":"'Project Scope'!U189","v":""},{"$f":"'Project Scope'!X189","v":""}]
[{"$f":"'Project Scope'!Q190","v":""},null,null,null,null,{"$f":"'Project Scope'!R190","v":""},null,null,{"$f":"'Project Scope'!U190","v":""},{"$f":"'Project Scope'!X190","v":""}]
[{"$f":"'Project Scope'!Q191","v":""},null,null,null,null,{"$f":"'Project Scope'!R191","v":""},null,null,{"$f":"'Project Scope'!U191","v":""},{"$f":"'Project Scope'!X191","v":""}]
[{"$f":"'Project Scope'!Q192","v":""},null,null,null,null,{"$f":"'Project Scope'!R192","v":""},null,null,{"$f":"'Project Scope'!U192","v":""},{"$f":"'Project Scope'!X192","v":""}]
[{"$f":"'Project Scope'!Q193","v":""},null,null,null,null,{"$f":"'Project Scope'!R193","v":""},null,null,{"$f":"'Project Scope'!U193","v":""},{"$f":"'Project Scope'!X193","v":""}]
[{"$f":"'Project Scope'!Q194","v":""},null,null,null,null,{"$f":"'Project Scope'!R194","v":""},null,null,{"$f":"'Project Scope'!U194","v":""},{"$f":"'Project Scope'!X194","v":""}]
[{"$f":"'Project Scope'!Q195","v":""},null,null,null,null,{"$f":"'Project Scope'!R195","v":""},null,null,{"$f":"'Project Scope'!U195","v":""},{"$f":"'Project Scope'!X195","v":""}]
[{"$f":"'Project Scope'!Q196","v":""},null,null,null,null,{"$f":"'Project Scope'!R196","v":""},null,null,{"$f":"'Project Scope'!U196","v":""},{"$f":"'Project Scope'!X196","v":""}]
[{"$f":"'Project Scope'!Q197","v":""},null,null,null,null,{"$f":"'Project Scope'!R197","v":""},null,null,{"$f":"'Project Scope'!U197","v":""},{"$f":"'Project Scope'!X197","v":""}]
[{"$f":"'Project Scope'!Q198","v":""},null,null,null,null,{"$f":"'Project Scope'!R198","v":""},null,null,{"$f":"'Project Scope'!U198","v":""},{"$f":"'Project Scope'!X198","v":""}]
[{"$f":"'Project Scope'!Q199","v":""},null,null,null,null,{"$f":"'Project Scope'!R199","v":""},null,null,{"$f":"'Project Scope'!U199","v":""},{"$f":"'Project Scope'!X199","v":""}]
[{"$f":"'Project Scope'!Q200","v":""},null,null,null,null,{"$f":"'Project Scope'!R200","v":""},null,null,{"$f":"'Project Scope'!U200","v":""},{"$f":"'Project Scope'!X200","v":""}]
[{"$f":"'Project Scope'!Q201","v":""},null,null,null,null,{"$f":"'Project Scope'!R201","v":""},null,null,{"$f":"'Project Scope'!U201","v":""},{"$f":"'Project Scope'!X201","v":""}]
[{"$f":"'Project Scope'!Q202","v":""},null,null,null,null,{"$f":"'Project Scope'!R202","v":""},null,null,{"$f":"'Project Scope'!U202","v":""},{"$f":"'Project Scope'!X202","v":""}]
[{"$f":"'Project Scope'!Q203","v":""},null,null,null,null,{"$f":"'Project Scope'!R203","v":""},null,null,{"$f":"'Project Scope'!U203","v":""},{"$f":"'Project Scope'!X203","v":""}]
[{"$f":"'Project Scope'!Q204","v":""},null,null,null,null,{"$f":"'Project Scope'!R204","v":""},null,null,{"$f":"'Project Scope'!U204","v":""},{"$f":"'Project Scope'!X204","v":""}]
[{"$f":"'Project Scope'!Q205","v":""},null,null,null,null,{"$f":"'Project Scope'!R205","v":""},null,null,{"$f":"'Project Scope'!U205","v":""},{"$f":"'Project Scope'!X205","v":""}]
[{"$f":"'Project Scope'!Q206","v":""},null,null,null,null,{"$f":"'Project Scope'!R206","v":""},null,null,{"$f":"'Project Scope'!U206","v":""},{"$f":"'Project Scope'!X206","v":""}]
[{"$f":"'Project Scope'!Q207","v":""},null,null,null,null,{"$f":"'Project Scope'!R207","v":""},null,null,{"$f":"'Project Scope'!U207","v":""},{"$f":"'Project Scope'!X207","v":""}]
[{"$f":"'Project Scope'!Q208","v":""},null,null,null,null,{"$f":"'Project Scope'!R208","v":""},null,null,{"$f":"'Project Scope'!U208","v":""},{"$f":"'Project Scope'!X208","v":""}]
[{"$f":"'Project Scope'!Q209","v":""},null,null,null,null,{"$f":"'Project Scope'!R209","v":""},null,null,{"$f":"'Project Scope'!U209","v":""},{"$f":"'Project Scope'!X209","v":""}]
[{"$f":"'Project Scope'!Q210","v":""},null,null,null,null,{"$f":"'Project Scope'!R210","v":""},null,null,{"$f":"'Project Scope'!U210","v":""},{"$f":"'Project Scope'!X210","v":""}]
[{"$f":"'Project Scope'!Q211","v":""},null,null,null,null,{"$f":"'Project Scope'!R211","v":""},null,null,{"$f":"'Project Scope'!U211","v":""},{"$f":"'Project Scope'!X211","v":""}]
[{"$f":"'Project Scope'!Q212","v":""},null,null,null,null,{"$f":"'Project Scope'!R212","v":""},null,null,{"$f":"'Project Scope'!U212","v":""},{"$f":"'Project Scope'!X212","v":""}]
[{"$f":"'Project Scope'!Q213","v":""},null,null,null,null,{"$f":"'Project Scope'!R213","v":""},null,null,{"$f":"'Project Scope'!U213","v":""},{"$f":"'Project Scope'!X213","v":""}]
[{"$f":"'Project Scope'!Q214","v":""},null,null,null,null,{"$f":"'Project Scope'!R214","v":""},null,null,{"$f":"'Project Scope'!U214","v":""},{"$f":"'Project Scope'!X214","v":""}]
[{"$f":"'Project Scope'!Q215","v":""},null,null,null,null,{"$f":"'Project Scope'!R215","v":""},null,null,{"$f":"'Project Scope'!U215","v":""},{"$f":"'Project Scope'!X215","v":""}]
[{"$f":"'Project Scope'!Q216","v":""},null,null,null,null,{"$f":"'Project Scope'!R216","v":""},null,null,{"$f":"'Project Scope'!U216","v":""},{"$f":"'Project Scope'!X216","v":""}]
[{"$f":"'Project Scope'!Q217","v":""},null,null,null,null,{"$f":"'Project Scope'!R217","v":""},null,null,{"$f":"'Project Scope'!U217","v":""},{"$f":"'Project Scope'!X217","v":""}]
[{"$f":"'Project Scope'!Q218","v":""},null,null,null,null,{"$f":"'Project Scope'!R218","v":""},null,null,{"$f":"'Project Scope'!U218","v":""},{"$f":"'Project Scope'!X218","v":""}]
[{"$f":"'Project Scope'!Q219","v":""},null,null,null,null,{"$f":"'Project Scope'!R219","v":""},null,null,{"$f":"'Project Scope'!U219","v":""},{"$f":"'Project Scope'!X219","v":""}]
[{"$f":"'Project Scope'!Q220","v":""},null,null,null,null,{"$f":"'Project Scope'!R220","v":""},null,null,{"$f":"'Project Scope'!U220","v":""},{"$f":"'Project Scope'!X220","v":""}]
[{"$f":"'Project Scope'!Q221","v":""},null,null,null,null,{"$f":"'Project Scope'!R221","v":""},null,null,{"$f":"'Project Scope'!U221","v":""},{"$f":"'Project Scope'!X221","v":""}]
[{"$f":"'Project Scope'!Q222","v":""},null,null,null,null,{"$f":"'Project Scope'!R222","v":""},null,null,{"$f":"'Project Scope'!U222","v":""},{"$f":"'Project Scope'!X222","v":""}]
[{"$f":"'Project Scope'!Q223","v":""},null,null,null,null,{"$f":"'Project Scope'!R223","v":""},null,null,{"$f":"'Project Scope'!U223","v":""},{"$f":"'Project Scope'!X223","v":""}]
[{"$f":"'Project Scope'!Q224","v":""},null,null,null,null,{"$f":"'Project Scope'!R224","v":""},null,null,{"$f":"'Project Scope'!U224","v":""},{"$f":"'Project Scope'!X224","v":""}]
[{"$f":"'Project Scope'!Q225","v":""},null,null,null,null,{"$f":"'Project Scope'!R225","v":""},null,null,{"$f":"'Project Scope'!U225","v":""},{"$f":"'Project Scope'!X225","v":""}]
[{"$f":"'Project Scope'!Q226","v":""},null,null,null,null,{"$f":"'Project Scope'!R226","v":""},null,null,{"$f":"'Project Scope'!U226","v":""},{"$f":"'Project Scope'!X226","v":""}]
[{"$f":"'Project Scope'!Q227","v":""},null,null,null,null,{"$f":"'Project Scope'!R227","v":""},null,null,{"$f":"'Project Scope'!U227","v":""},{"$f":"'Project Scope'!X227","v":""}]
[{"$f":"'Project Scope'!Q228","v":""},null,null,null,null,{"$f":"'Project Scope'!R228","v":""},null,null,{"$f":"'Project Scope'!U228","v":""},{"$f":"'Project Scope'!X228","v":""}]
[{"$f":"'Project Scope'!Q229","v":""},null,null,null,null,{"$f":"'Project Scope'!R229","v":""},null,null,{"$f":"'Project Scope'!U229","v":""},{"$f":"'Project Scope'!X229","v":""}]
[{"$f":"'Project Scope'!Q230","v":""},null,null,null,null,{"$f":"'Project Scope'!R230","v":""},null,null,{"$f":"'Project Scope'!U230","v":""},{"$f":"'Project Scope'!X230","v":""}]
[{"$f":"'Project Scope'!Q231","v":""},null,null,null,null,{"$f":"'Project Scope'!R231","v":""},null,null,{"$f":"'Project Scope'!U231","v":""},{"$f":"'Project Scope'!X231","v":""}]
[{"$f":"'Project Scope'!Q232","v":""},null,null,null,null,{"$f":"'Project Scope'!R232","v":""},null,null,{"$f":"'Project Scope'!U232","v":""},{"$f":"'Project Scope'!X232","v":""}]
[{"$f":"'Project Scope'!Q233","v":""},null,null,null,null,{"$f":"'Project Scope'!R233","v":""},null,null,{"$f":"'Project Scope'!U233","v":""},{"$f":"'Project Scope'!X233","v":""}]
[{"$f":"'Project Scope'!Q234","v":""},null,null,null,null,{"$f":"'Project Scope'!R234","v":""},null,null,{"$f":"'Project Scope'!U234","v":""},{"$f":"'Project Scope'!X234","v":""}]
[{"$f":"'Project Scope'!Q235","v":""},null,null,null,null,{"$f":"'Project Scope'!R235","v":""},null,null,{"$f":"'Project Scope'!U235","v":""},{"$f":"'Project Scope'!X235","v":""}]
[{"$f":"'Project Scope'!Q236","v":""},null,null,null,null,{"$f":"'Project Scope'!R236","v":""},null,null,{"$f":"'Project Scope'!U236","v":""},{"$f":"'Project Scope'!X236","v":""}]
[{"$f":"'Project Scope'!Q237","v":""},null,null,null,null,{"$f":"'Project Scope'!R237","v":""},null,null,{"$f":"'Project Scope'!U237","v":""},{"$f":"'Project Scope'!X237","v":""}]
[{"$f":"'Project Scope'!Q238","v":""},null,null,null,null,{"$f":"'Project Scope'!R238","v":""},null,null,{"$f":"'Project Scope'!U238","v":""},{"$f":"'Project Scope'!X238","v":""}]
[{"$f":"'Project Scope'!Q239","v":""},null,null,null,null,{"$f":"'Project Scope'!R239","v":""},null,null,{"$f":"'Project Scope'!U239","v":""},{"$f":"'Project Scope'!X239","v":""}]
[{"$f":"'Project Scope'!Q240","v":""},null,null,null,null,{"$f":"'Project Scope'!R240","v":""},null,null,{"$f":"'Project Scope'!U240","v":""},{"$f":"'Project Scope'!X240","v":""}]
[{"$f":"'Project Scope'!Q241","v":""},null,null,null,null,{"$f":"'Project Scope'!R241","v":""},null,null,{"$f":"'Project Scope'!U241","v":""},{"$f":"'Project Scope'!X241","v":""}]
[{"$f":"'Project Scope'!Q242","v":""},null,null,null,null,{"$f":"'Project Scope'!R242","v":""},null,null,{"$f":"'Project Scope'!U242","v":""},{"$f":"'Project Scope'!X242","v":""}]
[{"$f":"'Project Scope'!Q243","v":""},null,null,null,null,{"$f":"'Project Scope'!R243","v":""},null,null,{"$f":"'Project Scope'!U243","v":""},{"$f":"'Project Scope'!X243","v":""}]
[{"$f":"'Project Scope'!Q244","v":""},null,null,null,null,{"$f":"'Project Scope'!R244","v":""},null,null,{"$f":"'Project Scope'!U244","v":""},{"$f":"'Project Scope'!X244","v":""}]
[{"$f":"'Project Scope'!Q245","v":""},null,null,null,null,{"$f":"'Project Scope'!R245","v":""},null,null,{"$f":"'Project Scope'!U245","v":""},{"$f":"'Project Scope'!X245","v":""}]
[{"$f":"'Project Scope'!Q246","v":""},null,null,null,null,{"$f":"'Project Scope'!R246","v":""},null,null,{"$f":"'Project Scope'!U246","v":""},{"$f":"'Project Scope'!X246","v":""}]
[{"$f":"'Project Scope'!Q247","v":""},null,null,null,null,{"$f":"'Project Scope'!R247","v":""},null,null,{"$f":"'Project Scope'!U247","v":""},{"$f":"'Project Scope'!X247","v":""}]
[{"$f":"'Project Scope'!Q248","v":""},null,null,null,null,{"$f":"'Project Scope'!R248","v":""},null,null,{"$f":"'Project Scope'!U248","v":""},{"$f":"'Project Scope'!X248","v":""}]
[{"$f":"'Project Scope'!Q249","v":""},null,null,null,null,{"$f":"'Project Scope'!R249","v":""},null,null,{"$f":"'Project Scope'!U249","v":""},{"$f":"'Project Scope'!X249","v":""}]
[{"$f":"'Project Scope'!Q250","v":""},null,null,null,null,{"$f":"'Project Scope'!R250","v":""},null,null,{"$f":"'Project Scope'!U250","v":""},{"$f":"'Project Scope'!X250","v":""}]
[{"$f":"'Project Scope'!Q251","v":""},null,null,null,null,{"$f":"'Project Scope'!R251","v":""},null,null,{"$f":"'Project Scope'!U251","v":""},{"$f":"'Project Scope'!X251","v":""}]
[{"$f":"'Project Scope'!Q252","v":""},null,null,null,null,{"$f":"'Project Scope'!R252","v":""},null,null,{"$f":"'Project Scope'!U252","v":""},{"$f":"'Project Scope'!X252","v":""}]
[{"$f":"'Project Scope'!Q253","v":""},null,null,null,null,{"$f":"'Project Scope'!R253","v":""},null,null,{"$f":"'Project Scope'!U253","v":""},{"$f":"'Project Scope'!X253","v":""}]
[{"$f":"'Project Scope'!Q254","v":""},null,null,null,null,{"$f":"'Project Scope'!R254","v":""},null,null,{"$f":"'Project Scope'!U254","v":""},{"$f":"'Project Scope'!X254","v":""}]
[{"$f":"'Project Scope'!Q255","v":""},null,null,null,null,{"$f":"'Project Scope'!R255","v":""},null,null,{"$f":"'Project Scope'!U255","v":""},{"$f":"'Project Scope'!X255","v":""}]
[{"$f":"'Project Scope'!Q256","v":""},null,null,null,null,{"$f":"'Project Scope'!R256","v":""},null,null,{"$f":"'Project Scope'!U256","v":""},{"$f":"'Project Scope'!X256","v":""}]
[{"$f":"'Project Scope'!Q257","v":""},null,null,null,null,{"$f":"'Project Scope'!R257","v":""},null,null,{"$f":"'Project Scope'!U257","v":""},{"$f":"'Project Scope'!X257","v":""}]
[{"$f":"'Project Scope'!Q258","v":""},null,null,null,null,{"$f":"'Project Scope'!R258","v":""},null,null,{"$f":"'Project Scope'!U258","v":""},{"$f":"'Project Scope'!X258","v":""}]
[{"$f":"'Project Scope'!Q259","v":""},null,null,null,null,{"$f":"'Project Scope'!R259","v":""},null,null,{"$f":"'Project Scope'!U259","v":""},{"$f":"'Project Scope'!X259","v":""}]
[{"$f":"'Project Scope'!Q260","v":""},null,null,null,null,{"$f":"'Project Scope'!R260","v":""},null,null,{"$f":"'Project Scope'!U260","v":""},{"$f":"'Project Scope'!X260","v":""}]
[{"$f":"'Project Scope'!Q261","v":""},null,null,null,null,{"$f":"'Project Scope'!R261","v":""},null,null,{"$f":"'Project Scope'!U261","v":""},{"$f":"'Project Scope'!X261","v":""}]
[{"$f":"'Project Scope'!Q262","v":""},null,null,null,null,{"$f":"'Project Scope'!R262","v":""},null,null,{"$f":"'Project Scope'!U262","v":""},{"$f":"'Project Scope'!X262","v":""}]
[{"$f":"'Project Scope'!Q263","v":""},null,null,null,null,{"$f":"'Project Scope'!R263","v":""},null,null,{"$f":"'Project Scope'!U263","v":""},{"$f":"'Project Scope'!X263","v":""}]
[{"$f":"'Project Scope'!Q264","v":""},null,null,null,null,{"$f":"'Project Scope'!R264","v":""},null,null,{"$f":"'Project Scope'!U264","v":""},{"$f":"'Project Scope'!X264","v":""}]
[{"$f":"'Project Scope'!Q265","v":""},null,null,null,null,{"$f":"'Project Scope'!R265","v":""},null,null,{"$f":"'Project Scope'!U265","v":""},{"$f":"'Project Scope'!X265","v":""}]
[{"$f":"'Project Scope'!Q266","v":""},null,null,null,null,{"$f":"'Project Scope'!R266","v":""},null,null,{"$f":"'Project Scope'!U266","v":""},{"$f":"'Project Scope'!X266","v":""}]
[{"$f":"'Project Scope'!Q267","v":""},null,null,null,null,{"$f":"'Project Scope'!R267","v":""},null,null,{"$f":"'Project Scope'!U267","v":""},{"$f":"'Project Scope'!X267","v":""}]
[{"$f":"'Project Scope'!Q268","v":""},null,null,null,null,{"$f":"'Project Scope'!R268","v":""},null,null,{"$f":"'Project Scope'!U268","v":""},{"$f":"'Project Scope'!X268","v":""}]
[{"$f":"'Project Scope'!Q269","v":""},null,null,null,null,{"$f":"'Project Scope'!R269","v":""},null,null,{"$f":"'Project Scope'!U269","v":""},{"$f":"'Project Scope'!X269","v":""}]
[{"$f":"'Project Scope'!Q270","v":""},null,null,null,null,{"$f":"'Project Scope'!R270","v":""},null,null,{"$f":"'Project Scope'!U270","v":""},{"$f":"'Project Scope'!X270","v":""}]
[{"$f":"'Project Scope'!Q271","v":""},null,null,null,null,{"$f":"'Project Scope'!R271","v":""},null,null,{"$f":"'Project Scope'!U271","v":""},{"$f":"'Project Scope'!X271","v":""}]
[{"$f":"'Project Scope'!Q272","v":""},null,null,null,null,{"$f":"'Project Scope'!R272","v":""},null,null,{"$f":"'Project Scope'!U272","v":""},{"$f":"'Project Scope'!X272","v":""}]
[{"$f":"'Project Scope'!Q273","v":""},null,null,null,null,{"$f":"'Project Scope'!R273","v":""},null,null,{"$f":"'Project Scope'!U273","v":""},{"$f":"'Project Scope'!X273","v":""}]
[{"$f":"'Project Scope'!Q274","v":""},null,null,null,null,{"$f":"'Project Scope'!R274","v":""},null,null,{"$f":"'Project Scope'!U274","v":""},{"$f":"'Project Scope'!X274","v":""}]
[{"$f":"'Project Scope'!Q275","v":""},null,null,null,null,{"$f":"'Project Scope'!R275","v":""},null,null,{"$f":"'Project Scope'!U275","v":""},{"$f":"'Project Scope'!X275","v":""}]
[{"$f":"'Project Scope'!Q276","v":""},null,null,null,null,{"$f":"'Project Scope'!R276","v":""},null,null,{"$f":"'Project Scope'!U276","v":""},{"$f":"'Project Scope'!X276","v":""}]
[{"$f":"'Project Scope'!Q277","v":""},null,null,null,null,{"$f":"'Project Scope'!R277","v":""},null,null,{"$f":"'Project Scope'!U277","v":""},{"$f":"'Project Scope'!X277","v":""}]
[{"$f":"'Project Scope'!Q278","v":""},null,null,null,null,{"$f":"'Project Scope'!R278","v":""},null,null,{"$f":"'Project Scope'!U278","v":""},{"$f":"'Project Scope'!X278","v":""}]
[{"$f":"'Project Scope'!Q279","v":""},null,null,null,null,{"$f":"'Project Scope'!R279","v":""},null,null,{"$f":"'Project Scope'!U279","v":""},{"$f":"'Project Scope'!X279","v":""}]
[{"$f":"'Project Scope'!Q280","v":""},null,null,null,null,{"$f":"'Project Scope'!R280","v":""},null,null,{"$f":"'Project Scope'!U280","v":""},{"$f":"'Project Scope'!X280","v":""}]
[{"$f":"'Project Scope'!Q281","v":""},null,null,null,null,{"$f":"'Project Scope'!R281","v":""},null,null,{"$f":"'Project Scope'!U281","v":""},{"$f":"'Project Scope'!X281","v":""}]
[{"$f":"'Project Scope'!Q282","v":""},null,null,null,null,{"$f":"'Project Scope'!R282","v":""},null,null,{"$f":"'Project Scope'!U282","v":""},{"$f":"'Project Scope'!X282","v":""}]
[{"$f":"'Project Scope'!Q283","v":""},null,null,null,null,{"$f":"'Project Scope'!R283","v":""},null,null,{"$f":"'Project Scope'!U283","v":""},{"$f":"'Project Scope'!X283","v":""}]
[{"$f":"'Project Scope'!Q284","v":""},null,null,null,null,{"$f":"'Project Scope'!R284","v":""},null,null,{"$f":"'Project Scope'!U284","v":""},{"$f":"'Project Scope'!X284","v":""}]
[{"$f":"'Project Scope'!Q285","v":""},null,null,null,null,{"$f":"'Project Scope'!R285","v":""},null,null,{"$f":"'Project Scope'!U285","v":""},{"$f":"'Project Scope'!X285","v":""}]
[{"$f":"'Project Scope'!Q286","v":""},null,null,null,null,{"$f":"'Project Scope'!R286","v":""},null,null,{"$f":"'Project Scope'!U286","v":""},{"$f":"'Project Scope'!X286","v":""}]
[{"$f":"'Project Scope'!Q287","v":""},null,null,null,null,{"$f":"'Project Scope'!R287","v":""},null,null,{"$f":"'Project Scope'!U287","v":""},{"$f":"'Project Scope'!X287","v":""}]
[{"$f":"'Project Scope'!Q288","v":""},null,null,null,null,{"$f":"'Project Scope'!R288","v":""},null,null,{"$f":"'Project Scope'!U288","v":""},{"$f":"'Project Scope'!X288","v":""}]
[{"$f":"'Project Scope'!Q289","v":""},null,null,null,null,{"$f":"'Project Scope'!R289","v":""},null,null,{"$f":"'Project Scope'!U289","v":""},{"$f":"'Project Scope'!X289","v":""}]
[{"$f":"'Project Scope'!Q290","v":""},null,null,null,null,{"$f":"'Project Scope'!R290","v":""},null,null,{"$f":"'Project Scope'!U290","v":""},{"$f":"'Project Scope'!X290","v":""}]
[{"$f":"'Project Scope'!Q291","v":""},null,null,null,null,{"$f":"'Project Scope'!R291","v":""},null,null,{"$f":"'Project Scope'!U291","v":""},{"$f":"'Project Scope'!X291","v":""}]
[{"$f":"'Project Scope'!Q292","v":""},null,null,null,null,{"$f":"'Project Scope'!R292","v":""},null,null,{"$f":"'Project Scope'!U292","v":""},{"$f":"'Project Scope'!X292","v":""}]
[{"$f":"'Project Scope'!Q293","v":""},null,null,null,null,{"$f":"'Project Scope'!R293","v":""},null,null,{"$f":"'Project Scope'!U293","v":""},{"$f":"'Project Scope'!X293","v":""}]
[{"$f":"'Project Scope'!Q294","v":""},null,null,null,null,{"$f":"'Project Scope'!R294","v":""},null,null,{"$f":"'Project Scope'!U294","v":""},{"$f":"'Project Scope'!X294","v":""}]
[{"$f":"'Project Scope'!Q295","v":""},null,null,null,null,{"$f":"'Project Scope'!R295","v":""},null,null,{"$f":"'Project Scope'!U295","v":""},{"$f":"'Project Scope'!X295","v":""}]
[{"$f":"'Project Scope'!Q296","v":""},null,null,null,null,{"$f":"'Project Scope'!R296","v":""},null,null,{"$f":"'Project Scope'!U296","v":""},{"$f":"'Project Scope'!X296","v":""}]
[{"$f":"'Project Scope'!Q297","v":""},null,null,null,null,{"$f":"'Project Scope'!R297","v":""},null,null,{"$f":"'Project Scope'!U297","v":""},{"$f":"'Project Scope'!X297","v":""}]
[{"$f":"'Project Scope'!Q298","v":""},null,null,null,null,{"$f":"'Project Scope'!R298","v":""},null,null,{"$f":"'Project Scope'!U298","v":""},{"$f":"'Project Scope'!X298","v":""}]
[{"$f":"'Project Scope'!Q299","v":""},null,null,null,null,{"$f":"'Project Scope'!R299","v":""},null,null,{"$f":"'Project Scope'!U299","v":""},{"$f":"'Project Scope'!X299","v":""}]
[{"$f":"'Project Scope'!Q300","v":""},null,null,null,null,{"$f":"'Project Scope'!R300","v":""},null,null,{"$f":"'Project Scope'!U300","v":""},{"$f":"'Project Scope'!X300","v":""}]
[{"$f":"'Project Scope'!Q301","v":""},null,null,null,null,{"$f":"'Project Scope'!R301","v":""},null,null,{"$f":"'Project Scope'!U301","v":""},{"$f":"'Project Scope'!X301","v":""}]
[{"$f":"'Project Scope'!Q302","v":""},null,null,null,null,{"$f":"'Project Scope'!R302","v":""},null,null,{"$f":"'Project Scope'!U302","v":""},{"$f":"'Project Scope'!X302","v":""}]
[{"$f":"'Project Scope'!Q303","v":""},null,null,null,null,{"$f":"'Project Scope'!R303","v":""},null,null,{"$f":"'Project Scope'!U303","v":""},{"$f":"'Project Scope'!X303","v":""}]
[{"$f":"'Project Scope'!Q304","v":""},null,null,null,null,{"$f":"'Project Scope'!R304","v":""},null,null,{"$f":"'Project Scope'!U304","v":""},{"$f":"'Project Scope'!X304","v":""}]
[{"$f":"'Project Scope'!Q305","v":""},null,null,null,null,{"$f":"'Project Scope'!R305","v":""},null,null,{"$f":"'Project Scope'!U305","v":""},{"$f":"'Project Scope'!X305","v":""}]
[{"$f":"'Project Scope'!Q306","v":""},null,null,null,null,{"$f":"'Project Scope'!R306","v":""},null,null,{"$f":"'Project Scope'!U306","v":""},{"$f":"'Project Scope'!X306","v":""}]
[{"$f":"'Project Scope'!Q307","v":""},null,null,null,null,{"$f":"'Project Scope'!R307","v":""},null,null,{"$f":"'Project Scope'!U307","v":""},{"$f":"'Project Scope'!X307","v":""}]
[{"$f":"'Project Scope'!Q308","v":""},null,null,null,null,{"$f":"'Project Scope'!R308","v":""},null,null,{"$f":"'Project Scope'!U308","v":""},{"$f":"'Project Scope'!X308","v":""}]
[{"$f":"'Project Scope'!Q309","v":""},null,null,null,null,{"$f":"'Project Scope'!R309","v":""},null,null,{"$f":"'Project Scope'!U309","v":""},{"$f":"'Project Scope'!X309","v":""}]
[{"$f":"'Project Scope'!Q310","v":""},null,null,null,null,{"$f":"'Project Scope'!R310","v":""},null,null,{"$f":"'Project Scope'!U310","v":""},{"$f":"'Project Scope'!X310","v":""}]

{"sheet":"SB Scope of Work","index":5,"n_rows":281,"n_cols":11,"rows_kept":281,"cut":false,"hidden":true,"merged":[[277,0,277,3],[277,4,277,5],[277,8,277,9],[277,10,277,11],[273,0,273,3],[273,4,273,5],[273,8,273,9],[273,10,273,11],[274,0,274,3],[274,4,274,5],[274,8,274,9],[274,10,274,11],[275,0,275,3],[275,4,275,5],[275,8,275,9],[275,10,275,11],[270,0,270,3],[270,4,270,5],[270,8,270,9],[270,10,270,11],[271,0,271,3],[271,4,271,5],[271,8,271,9],[271,10,271,11],[272,0,272,3],[272,4,272,5],[272,8,272,9],[272,10,272,11],[267,0,267,3],[267,4,267,5],[267,8,267,9],[267,10,267,11],[268,0,268,3],[268,4,268,5],[268,8,268,9],[268,10,268,11],[269,0,269,3],[269,4,269,5],[269,8,269,9],[269,10,269,11],[264,0,264,3],[264,4,264,5],[264,8,264,9],[264,10,264,11],[265,0,265,3],[265,4,265,5],[265,8,265,9],[265,10,265,11],[266,0,266,3],[266,4,266,5],[266,8,266,9],[266,10,266,11],[261,0,261,3],[261,4,261,5],[261,8,261,9],[261,10,261,11],[262,0,262,3],[262,4,262,5],[262,8,262,9],[262,10,262,11],[263,0,263,3],[263,4,263,5],[263,8,263,9],[263,10,263,11],[258,0,258,3],[258,4,258,5],[258,8,258,9],[258,10,258,11],[259,0,259,3],[259,4,259,5],[259,8,259,9],[259,10,259,11],[260,0,260,3],[260,4,260,5],[260,8,260,9],[260,10,260,11],[255,0,255,3],[255,4,255,5],[255,8,255,9],[255,10,255,11],[256,0,256,3],[256,4,256,5],[256,8,256,9],[256,10,256,11],[257,0,257,3],[257,4,257,5],[257,8,257,9],[257,10,257,11],[252,0,252,3],[252,4,252,5],[252,8,252,9],[252,10,252,11],[253,0,253,3],[253,4,253,5],[253,8,253,9],[253,10,253,11],[254,0,254,3],[254,4,254,5],[254,8,254,9],[254,10,254,11],[249,0,249,3],[249,4,249,5],[249,8,249,9],[249,10,249,11],[250,0,250,3],[250,4,250,5],[250,8,250,9],[250,10,250,11],[251,0,251,3],[251,4,251,5],[251,8,251,9],[251,10,251,11],[246,0,246,3],[246,4,246,5],[246,8,246,9],[246,10,246,11],[247,0,247,3],[247,4,247,5],[247,8,247,9],[247,10,247,11],[248,0,248,3],[248,4,248,5],[248,8,248,9],[248,10,248,11],[243,0,243,3],[243,4,243,5],[243,8,243,9],[243,10,243,11],[244,0,244,3],[244,4,244,5],[244,8,244,9],[244,10,244,11],[245,0,245,3],[245,4,245,5],[245,8,245,9],[245,10,245,11],[240,0,240,3],[240,4,240,5],[240,8,240,9],[240,10,240,11],[241,0,241,3],[241,4,241,5],[241,8,241,9],[241,10,241,11],[242,0,242,3],[242,4,242,5],[242,8,242,9],[242,10,242,11],[237,0,237,3],[237,4,237,5],[237,8,237,9],[237,10,237,11],[238,0,238,3],[238,4,238,5],[238,8,238,9],[238,10,238,11],[239,0,239,3],[239,4,239,5],[239,8,239,9],[239,10,239,11],[234,0,234,3],[234,4,234,5],[234,8,234,9],[234,10,234,11],[235,0,235,3],[235,4,235,5],[235,8,235,9],[235,10,235,11],[236,0,236,3],[236,4,236,5],[236,8,236,9],[236,10,236,11],[231,0,231,3],[231,4,231,5],[231,8,231,9],[231,10,231,11],[232,0,232,3],[232,4,232,5],[232,8,232,9],[232,10,232,11],[233,0,233,3],[233,4,233,5],[233,8,233,9],[233,10,233,11],[228,0,228,3],[228,4,228,5],[228,8,228,9],[228,10,228,11],[229,0,229,3],[229,4,229,5],[229,8,229,9],[229,10,229,11],[230,0,230,3],[230,4,230,5],[230,8,230,9],[230,10,230,11],[225,0,225,3],[225,4,225,5],[225,8,225,9],[225,10,225,11],[226,0,226,3],[226,4,226,5],[226,8,226,9],[226,10,226,11],[227,0,227,3],[227,4,227,5],[227,8,227,9],[227,10,227,11],[222,0,222,3],[222,4,222,5],[222,8,222,9],[222,10,222,11],[223,0,223,3],[223,4,223,5],[223,8,223,9],[223,10,223,11],[224,0,224,3],[224,4,224,5],[224,8,224,9],[224,10,224,11],[219,0,219,3],[219,4,219,5],[219,8,219,9],[219,10,219,11],[220,0,220,3],[220,4,220,5],[220,8,220,9],[220,10,220,11],[221,0,221,3],[221,4,221,5],[221,8,221,9],[221,10,221,11],[216,0,216,3],[216,4,216,5],[216,8,216,9],[216,10,216,11],[217,0,217,3],[217,4,217,5],[217,8,217,9],[217,10,217,11],[218,0,218,3],[218,4,218,5],[218,8,218,9],[218,10,218,11],[213,0,213,3],[213,4,213,5],[213,8,213,9],[213,10,213,11],[214,0,214,3],[214,4,214,5],[214,8,214,9],[214,10,214,11],[215,0,215,3],[215,4,215,5],[215,8,215,9],[215,10,215,11],[210,0,210,3],[210,4,210,5],[210,8,210,9],[210,10,210,11],[211,0,211,3],[211,4,211,5],[211,8,211,9],[211,10,211,11],[212,0,212,3],[212,4,212,5],[212,8,212,9],[212,10,212,11],[207,0,207,3],[207,4,207,5],[207,8,207,9],[207,10,207,11],[208,0,208,3],[208,4,208,5],[208,8,208,9],[208,10,208,11],[209,0,209,3],[209,4,209,5],[209,8,209,9],[209,10,209,11],[204,0,204,3],[204,4,204,5],[204,8,204,9],[204,10,204,11],[205,0,205,3],[205,4,205,5],[205,8,205,9],[205,10,205,11],[206,0,206,3],[206,4,206,5],[206,8,206,9],[206,10,206,11],[201,0,201,3],[201,4,201,5],[201,8,201,9],[201,10,201,11],[202,0,202,3],[202,4,202,5],[202,8,202,9],[202,10,202,11],[203,0,203,3],[203,4,203,5],[203,8,203,9],[203,10,203,11],[198,0,198,3],[198,4,198,5],[198,8,198,9],[198,10,198,11],[199,0,199,3],[199,4,199,5],[199,8,199,9],[199,10,199,11],[200,0,200,3],[200,4,200,5],[200,8,200,9],[200,10,200,11],[195,0,195,3],[195,4,195,5],[195,8,195,9],[195,10,195,11],[196,0,196,3],[196,4,196,5],[196,8,196,9],[196,10,196,11],[197,0,197,3],[197,4,197,5],[197,8,197,9],[197,10,197,11],[192,0,192,3],[192,4,192,5],[192,8,192,9],[192,10,192,11],[193,0,193,3],[193,4,193,5],[193,8,193,9],[193,10,193,11],[194,0,194,3],[194,4,194,5],[194,8,194,9],[194,10,194,11],[189,0,189,3],[189,4,189,5],[189,8,189,9],[189,10,189,11],[190,0,190,3],[190,4,190,5],[190,8,190,9],[190,10,190,11],[191,0,191,3],[191,4,191,5],[191,8,191,9],[191,10,191,11],[186,0,186,3],[186,4,186,5],[186,8,186,9],[186,10,186,11],[187,0,187,3],[187,4,187,5],[187,8,187,9],[187,10,187,11],[188,0,188,3],[188,4,188,5],[188,8,188,9],[188,10,188,11],[183,0,183,3],[183,4,183,5],[183,8,183,9],[183,10,183,11],[184,0,184,3],[184,4,184,5],[184,8,184,9],[184,10,184,11],[185,0,185,3],[185,4,185,5],[185,8,185,9],[185,10,185,11],[180,0,180,3],[180,4,180,5],[180,8,180,9],[180,10,180,11],[181,0,181,3],[181,4,181,5],[181,8,181,9],[181,10,181,11],[182,0,182,3],[182,4,182,5],[182,8,182,9],[182,10,182,11],[177,0,177,3],[177,4,177,5],[177,8,177,9],[177,10,177,11],[178,0,178,3],[178,4,178,5],[178,8,178,9],[178,10,178,11],[179,0,179,3],[179,4,179,5],[179,8,179,9],[179,10,179,11],[174,0,174,3],[174,4,174,5],[174,8,174,9],[174,10,174,11],[175,0,175,3],[175,4,175,5],[175,8,175,9],[175,10,175,11],[176,0,176,3],[176,4,176,5],[176,8,176,9],[176,10,176,11],[171,0,171,3],[171,4,171,5],[171,8,171,9],[171,10,171,11],[172,0,172,3],[172,4,172,5],[172,8,172,9],[172,10,172,11],[173,0,173,3],[173,4,173,5],[173,8,173,9],[173,10,173,11],[168,0,168,3],[168,4,168,5],[168,8,168,9],[168,10,168,11],[169,0,169,3],[169,4,169,5],[169,8,169,9],[169,10,169,11],[170,0,170,3],[170,4,170,5],[170,8,170,9],[170,10,170,11],[165,0,165,3],[165,4,165,5],[165,8,165,9],[165,10,165,11],[166,0,166,3],[166,4,166,5],[166,8,166,9],[166,10,166,11],[167,0,167,3],[167,4,167,5],[167,8,167,9],[167,10,167,11],[162,0,162,3],[162,4,162,5],[162,8,162,9],[162,10,162,11],[163,0,163,3],[163,4,163,5],[163,8,163,9],[163,10,163,11],[164,0,164,3],[164,4,164,5],[164,8,164,9],[164,10,164,11],[159,0,159,3],[159,4,159,5],[159,8,159,9],[159,10,159,11],[160,0,160,3],[160,4,160,5],[160,8,160,9],[160,10,160,11],[161,0,161,3],[161,4,161,5],[161,8,161,9],[161,10,161,11],[156,0,156,3],[156,4,156,5],[156,8,156,9],[156,10,156,11],[157,0,157,3],[157,4,157,5],[157,8,157,9],[157,10,157,11],[158,0,158,3],[158,4,158,5],[158,8,158,9],[158,10,158,11],[153,0,153,3],[153,4,153,5],[153,8,153,9],[153,10,153,11],[154,0,154,3],[154,4,154,5],[154,8,154,9],[154,10,154,11],[155,0,155,3],[155,4,155,5],[155,8,155,9],[155,10,155,11],[150,0,150,3],[150,4,150,5],[150,8,150,9],[150,10,150,11],[151,0,151,3],[151,4,151,5],[151,8,151,9],[151,10,151,11],[152,0,152,3],[152,4,152,5],[152,8,152,9],[152,10,152,11],[147,0,147,3],[147,4,147,5],[147,8,147,9],[147,10,147,11],[148,0,148,3],[148,4,148,5],[148,8,148,9],[148,10,148,11],[149,0,149,3],[149,4,149,5],[149,8,149,9],[149,10,149,11],[279,0,279,3],[279,4,279,5],[279,8,279,9],[279,10,279,11],[280,0,280,3],[280,4,280,5],[280,8,280,9],[280,10,280,11],[278,0,278,3],[278,4,278,5],[278,8,278,9],[278,10,278,11],[145,0,145,3],[145,4,145,5],[146,0,146,3],[146,4,146,5],[146,8,146,9],[146,10,146,11],[143,0,143,3],[143,4,143,5],[144,0,144,3],[144,4,144,5],[143,8,143,9],[143,10,143,11],[144,8,144,9],[144,10,144,11],[145,8,145,9],[145,10,145,11],[139,10,139,11],[140,8,140,9],[140,10,140,11],[141,8,141,9],[141,10,141,11],[142,8,142,9],[142,10,142,11],[137,0,137,3],[137,4,137,5],[138,0,138,3],[138,4,138,5],[138,8,138,9],[138,10,138,11],[141,0,141,3],[141,4,141,5],[142,0,142,3],[142,4,142,5],[139,0,139,3],[139,4,139,5],[140,0,140,3],[140,4,140,5],[139,8,139,9],[135,0,135,3],[135,4,135,5],[135,8,135,9],[135,10,135,11],[136,0,136,3],[136,4,136,5],[136,8,136,9],[136,10,136,11],[137,8,137,9],[137,10,137,11],[133,0,133,3],[133,4,133,5],[133,8,133,9],[133,10,133,11],[134,0,134,3],[134,4,134,5],[134,8,134,9],[134,10,134,11],[131,0,131,3],[131,4,131,5],[131,8,131,9],[131,10,131,11],[132,0,132,3],[132,4,132,5],[132,8,132,9],[132,10,132,11],[129,0,129,3],[129,4,129,5],[129,8,129,9],[129,10,129,11],[130,0,130,3],[130,4,130,5],[130,8,130,9],[130,10,130,11],[127,0,127,3],[127,4,127,5],[127,8,127,9],[127,10,127,11],[128,0,128,3],[128,4,128,5],[128,8,128,9],[128,10,128,11],[125,0,125,3],[125,4,125,5],[125,8,125,9],[125,10,125,11],[126,0,126,3],[126,4,126,5],[126,8,126,9],[126,10,126,11],[123,0,123,3],[123,4,123,5],[123,8,123,9],[123,10,123,11],[124,0,124,3],[124,4,124,5],[124,8,124,9],[124,10,124,11],[121,0,121,3],[121,4,121,5],[121,8,121,9],[121,10,121,11],[122,0,122,3],[122,4,122,5],[122,8,122,9],[122,10,122,11],[119,0,119,3],[119,4,119,5],[119,8,119,9],[119,10,119,11],[120,0,120,3],[120,4,120,5],[120,8,120,9],[120,10,120,11],[117,0,117,3],[117,4,117,5],[117,8,117,9],[117,10,117,11],[118,0,118,3],[118,4,118,5],[118,8,118,9],[118,10,118,11],[115,0,115,3],[115,4,115,5],[115,8,115,9],[115,10,115,11],[116,0,116,3],[116,4,116,5],[116,8,116,9],[116,10,116,11],[113,0,113,3],[113,4,113,5],[113,8,113,9],[113,10,113,11],[114,0,114,3],[114,4,114,5],[114,8,114,9],[114,10,114,11],[111,0,111,3],[111,4,111,5],[111,8,111,9],[111,10,111,11],[112,0,112,3],[112,4,112,5],[112,8,112,9],[112,10,112,11],[109,0,109,3],[109,4,109,5],[109,8,109,9],[109,10,109,11],[110,0,110,3],[110,4,110,5],[110,8,110,9],[110,10,110,11],[107,0,107,3],[107,4,107,5],[107,8,107,9],[107,10,107,11],[108,0,108,3],[108,4,108,5],[108,8,108,9],[108,10,108,11],[105,0,105,3],[105,4,105,5],[105,8,105,9],[105,10,105,11],[106,0,106,3],[106,4,106,5],[106,8,106,9],[106,10,106,11],[103,0,103,3],[103,4,103,5],[103,8,103,9],[103,10,103,11],[104,0,104,3],[104,4,104,5],[104,8,104,9],[104,10,104,11],[101,0,101,3],[101,4,101,5],[101,8,101,9],[101,10,101,11],[102,0,102,3],[102,4,102,5],[102,8,102,9],[102,10,102,11],[99,0,99,3],[99,4,99,5],[99,8,99,9],[99,10,99,11],[100,0,100,3],[100,4,100,5],[100,8,100,9],[100,10,100,11],[97,0,97,3],[97,4,97,5],[97,8,97,9],[97,10,97,11],[98,0,98,3],[98,4,98,5],[98,8,98,9],[98,10,98,11],[95,0,95,3],[95,4,95,5],[95,8,95,9],[95,10,95,11],[96,0,96,3],[96,4,96,5],[96,8,96,9],[96,10,96,11],[93,0,93,3],[93,4,93,5],[93,8,93,9],[93,10,93,11],[94,0,94,3],[94,4,94,5],[94,8,94,9],[94,10,94,11],[91,0,91,3],[91,4,91,5],[91,8,91,9],[91,10,91,11],[92,0,92,3],[92,4,92,5],[92,8,92,9],[92,10,92,11],[89,0,89,3],[89,4,89,5],[89,8,89,9],[89,10,89,11],[90,0,90,3],[90,4,90,5],[90,8,90,9],[90,10,90,11],[87,0,87,3],[87,4,87,5],[87,8,87,9],[87,10,87,11],[88,0,88,3],[88,4,88,5],[88,8,88,9],[88,10,88,11],[85,0,85,3],[85,4,85,5],[85,8,85,9],[85,10,85,11],[86,0,86,3],[86,4,86,5],[86,8,86,9],[86,10,86,11],[83,0,83,3],[83,4,83,5],[83,8,83,9],[83,10,83,11],[84,0,84,3],[84,4,84,5],[84,8,84,9],[84,10,84,11],[81,0,81,3],[81,4,81,5],[81,8,81,9],[81,10,81,11],[82,0,82,3],[82,4,82,5],[82,8,82,9],[82,10,82,11],[79,0,79,3],[79,4,79,5],[79,8,79,9],[79,10,79,11],[80,0,80,3],[80,4,80,5],[80,8,80,9],[80,10,80,11],[78,0,78,3],[78,4,78,5],[78,8,78,9],[78,10,78,11],[73,0,73,11],[75,0,75,3],[75,4,75,5],[75,8,75,9],[75,10,75,11],[76,0,76,3],[76,4,76,5],[76,8,76,9],[76,10,76,11],[68,5,68,7],[69,5,69,7],[72,0,72,11],[59,5,59,7],[60,5,60,7],[62,5,62,7],[63,5,63,7],[67,5,67,7],[77,0,77,3],[77,4,77,5],[77,8,77,9],[77,10,77,11],[66,5,66,7],[11,3,11,5],[61,5,61,7],[65,5,65,7],[12,0,12,10],[13,0,13,10],[14,0,14,10],[51,0,51,11],[53,5,53,7],[54,5,54,7],[55,5,55,7],[56,5,56,7],[58,5,58,7],[23,0,23,11],[34,3,34,5],[15,0,15,10],[16,0,16,10],[17,0,17,10],[18,0,18,10],[19,0,19,10],[20,0,20,10]]}
[null,null,null,"COMMERCIAL & INDUSTRIAL PRESCRIPTIVE INITIATIVES"]
[null,null,null,"SMALL BUSINESS PROJECT PARTICIPATION AGREEMENT"]
[null,null,null,"SMALL BUSINESS SCOPE OF WORK FORM"]
[null,null,null,{"$f":"'Project Information'!$B$2","v":"Cost-effective Lighting Investment Calculator (CLIC) CIPI FON-022-2026"}]
[]
[null,null,"Company Name:",{"$f":"'Project Information'!$D$5","v":0}]
[null,null,"Qualified Partner #1:",{"$f":"'Project Information'!$D$6","v":0}]
[null,null,"Qualified Partner #2:",{"$f":"IF('Project Information'!$D$8<>\"\",'Project Information'!$D$8,\"\")","v":""}]
[null,null,"Facility Name:",{"$f":"'Project Information'!$D$18","v":0}]
[null,null,"Installation Address:",{"$f":"'Project Information'!$D$23","v":0},null,null,null,null,null,null,""]
[null,null,"    City:",{"$f":"'Project Information'!$D$25","v":0},null,null,null,"State:","Maine","Zip:",{"$f":"'Project Information'!$F$25","v":0}]
[null,null,"Reference Number:",{"$f":"'Project Information'!K2","v":0}]
["This Scope of Work is a legal contract defining the scope of energy efficiency retrofit measures (the “Measures”) to be installed by the above-named Contractor (“Contractor”) at the above listed Facility (“Facility”), the obligations of the above-named Customer (“Customer”) to pay for such installation and Measures, and the other agreements of the Customer and Contractor regarding the installation and Measures at the Facility (the “Project”) and the role of GDS Associates, Inc. (the “Program Delivery Team”) and Efficiency Maine Trust (“EMT”) with respect to the Project.  Customer and Contractor agree to be bound by the following:"]
["1. CUSTOMER ELIGIBILITY REPRESENTATIONS. \nCustomer represents that the following statements are true: \na. Customer is a non-residential customer of electric utilities in the State of Maine with an average monthly demand of 50kW or less.\nb. Customer’s primary business function is not to generate power to be sold into a power market.\nc. Customer has the authority to contract for retrofit work in the Facility in connection with the Measures listed and, if the Customer does not own the Facility, the owner of the Facility has granted permission to Customer for performance of such work.\n\n2. AGREEMENT AS TO THE MEASURES.  Customer agrees to have Contractor perform retrofit work at the Facility in connection with the Measures identified on the attached Schedule 2 to this Scope of Work.  In consideration of the Contractor’s performance of such work, Customer agrees to pay Contractor for Measures installed at the Facility, based on the Measure Costs listed on said Schedule 2 for the number of completed units for each Measure upon receipt of invoice; provided the Contractor may collect a deposit from Customer prior to performing such work, in which case the final invoice shall be net of such deposit.  Customer and Contractor understand that conditions discovered during installation may require that some Measures identified in the energy assessment performed by Contractor as to the Facility (the “Assessment”) cannot be installed, or some areas may require additional Measures/quantities to be installed.  Should conditions in the field dictate that the Total Project Cost shown in Schedule 1 increase by more than 10%, Contractor must obtain written approval in the form of an amended Scope of Work signed by Customer and Contractor before proceeding with such additional work."]
["3. AGREEMENT AS TO INCENTIVE AMOUNTS.\na. Subject to the other terms of this Scope of Work, Customer’s obligation to pay for the installation and Measures shall be reduced by an amount (the “Incentive”) provided under the Efficiency Maine Trust Small Business Initiative, which amount shall be equal to sixty-five percent (65%) of the total Measure Cost (“Measure Cost”) (if Customer elects to pay the remainder of the Project Cost (the “Cost to Customer”) directly to Contractor in a lump sum payment upon Contractor invoice). The Cost to Customer is listed in the attached Schedule 1, and the Customer agrees to pay this amount to the Contractor upon receipt of Contractor invoice. The Estimated Incentive listed in Schedule 1 will be paid by EMT to the Contractor upon completion of the installations of the Measures and upon the Program Delivery Team’s receipt of the final, signed and initialed Project Acceptance Form. Customer shall allow access to the Facility for the Program Delivery Team to complete pre- and/or post-inspections for program quality assurance purposes. \nb. Notwithstanding 3(a) above, EMT reserves the right to limit the amount of Incentives on a per-project or per-customer basis.  Any such caps on individual Projects or customers will be disclosed to the Customer in the project review and pre-approval process, and may reduce the Incentive as calculated under 3(a) above. \nc. EMT shall have the right to a complete refund of, and Customer shall be obligated to provide complete reimbursement to EMT of, all Incentives paid if any of the installed Measures are subsequently disconnected prior to the end of the Measure’s useful life as defined in the Commercial & Industrial Technical Reference Manual."]
["4. INSTALLATION REQUIREMENTS.\na. If the Customer (i) has not permitted completion of the installation of the Measures within fifteen (15) calendar days of the commencement of work, and (ii) has not received a project extension from the Program Delivery Team within fifteen (15) calendar days from the date that site work began, the Program Delivery Team may cancel the Incentive without liability and without any further obligations to Customer.  The Contractor may apply for a project extension on behalf of the Customer.\nb. Services to be provided under this Scope of Work shall in no way include work by the Contractor in connection with the correction of apparent or hidden safety issues or code violations. Contractor shall not perform work where, in its sole discretion, it is determined such safety issues or code violations exist. All work shall be performed during normal business hours, Monday through Friday unless the Customer and Contractor agree otherwise.\nc. The Customer agrees to allow the Contractor to remove and dispose of the equipment being replaced by the Measures in accordance with all laws, rules, and regulations.  The Contractor agrees to remove and properly dispose the equipment being replaced by the Measures in accordance with all laws, rules, and regulations. The Customer agrees not to reinstall any of this equipment, or transfer it to any other party for installation.  Customer agrees that it will not alter, modify or discontinue use of the Measures without prior written approval from EMT and that Measures will be used for their rated useful life.\nd. Customer will review, and if in agreement with its terms, sign and return to Contractor a Project Acceptance Form (PAF) presented to Customer by Contractor upon completion of installation, signature of which will conclusively evidence Customer’s acceptance of the Project.  If Customer declines to accept the Project, Customer must notify the Program Delivery Team in Writing at GDS Associates, Inc., 337 State Street, Augusta, ME 04330 or SBI@efficiencymaine.com, specifying the Customer’s specific objections, within five (5) business days of receipt of the MAF from Contractor.  Failure to so notify the Program Delivery Team within such time period shall be conclusively deemed to be acceptance of the Project even if the PAF is not signed by Customer."]
["e. Customer agrees to permit the Program Delivery Team, Inc. (or any designated agent of EMT) to access the Facility before, during or after installation of the Measures at times reasonable convenient to Customer, for Small Business Initiative program evaluation purposes.\nf. Notwithstanding Customer’s ownership of all installed improvements, EMT shall be deemed the owner of, and shall hold exclusive right, title and interest in and to any electric system capacity credits and environmental credits that may be associated with the Measures, and EMT can sell, transfer and otherwise dispose of these credits in any manner authorized by law or regulation.  By accepting an Incentive, Customer expressly and irrevocably conveys all such rights and credits to EMT.  In no event shall activity associate with any such energy or environmental credits result in interference  with the Customer’s sole discretion to operate Measures as approved in this Scope of Work."]
["5. LIMITATION OF LIABILITY; INDEMNIFICATION\na. In no event shall the Program Delivery Team, Inc. nor EMT, nor any of their respective trustees, officers, directors, shareholders, affiliates, employees, agents, or contractors be liable to the Customer or anyone claiming through Customer, for any special, consequential, or incidental damages, including lost profits or lost business opportunities, or for any damages in tort (including negligence) caused by or resulting from any activities in connection with or associated with this Scope of Work or the EMT Commercial & Industrial Prescriptive Initiatives, including the Small Business Initiative.\nb. The Customer shall protect, indemnify, and hold harmless the Program Delivery Team and EMT, and their respective trustees, officers, directors, shareholders, affiliates, employees, agents or contractors (each, an “Indemnified Party”) from and against all liabilities, losses, claims, damages, judgments, penalties, causes of action, costs and expenses (including, without limitation, attorney’s fees and expenses) incurred by or assessed against an Indemnified Party  arising out of or relating to the Customer’s performance or non-performance of obligations under this Scope of Work or the installation and operation of the Measures.\nc. Nothing herein shall be construed to waive, release, or diminish any statutory or common law immunities of EMT  as a governmental entity, all of which are expressly retained."]
["6. WARRANTIES\na. The Customer may select any Qualified Partner to perform the work contemplated by the Program application. Qualified Partners are independent contractors engaged directly by the Eligible Customer and are not employees or agents of Efficiency Maine. The Eligible Customer is solely responsible for its contractual relationship with and performance by its selected Qualified Partner. Efficiency Maine reserves the right to prohibit specific vendors or contractors from Program participation.\nb. Neither the Program Delivery Team, Inc. nor EMT endorses, guarantees, or warrants any particular manufacturer or product, and provides no warranties, express or implied, for any product or services. the Program Delivery Team, Inc. and EMT  expressly disclaim all warranties relating to the Measures. The Customer’s reliance on warranties is limited to any warranties that may be provided directly by Contractor or equipment suppliers.\nc. Neither the Program Delivery Team, Inc. nor EMT are responsible for assuring that the design, engineering and construction of the Facility or installation of the Measures is proper or complies with any particular laws, codes, or industry standards, nor for the accuracy or inaccuracy of any energy assessment findings or anticipated energy savings. the Program Delivery Team, Inc. and EMT make no representations of any kind regarding the results to be achieved by the Measures or the adequacy or safety of such measures."]
["7. PUBLICITY OF CUSTOMER PARTICIPATION\nBy accepting an Incentive, the Customer understands that EMT reserves the right to disclose certain information about the Customer’s participation in the EMT Small Business Initiative, including, but not necessarily limited to, the Customer’s name and address, the Incentive amount, projected energy savings as well as other non-proprietary business information.\n\n8. CUSTOMER MUST PAY ALL TAXES\nIncentives received by the Customer or Contractor may be taxable by the federal, state, and local government. The Incentive recipient is responsible for determining any tax obligations and declaring and paying all such taxes.  Recipients of Incentive payments must provide their tax identification number to the Program Delivery Team for payment processing.  Incentive award payments in excess of $600 made to unincorporated entities will be reported on IRS Form 1099."]
["9. MISCELLANEOUS\na. This  Scope of Work  constitutes the full agreement among Customer and Contractor (collectively, the “Parties”), and supersedes any prior discussions, understandings and agreements, whether oral or in writing.  The Scope of Work  may be amended only in writing signed by the Parties.\nb. Paragraph headings are for the convenience of the Parties only and are not to be construed as part of this Scope of Work.\nc. If any provision of this Scope of Work  is deemed invalid by any court or administrative body having jurisdiction, such ruling shall not invalidate any other provision, and the remaining provisions shall remain in full force and effect in accordance with their terms.\nd. In the event of any dispute concerning this Scope of Work, or any other requirement of the EMT Small Business Initiative, resolution will be governed in all respects by the laws, statutes, and regulations of the United States of America and of the State of Maine. Any legal proceeding against the State regarding this agreement shall be brought in State of Maine administrative or judicial forums. The Customer consents to personal jurisdiction in the State of Maine.\ne. Customer and Contractor expressly acknowledge that the Program Delivery Team and EMT are each an intended third party beneficiary of this Scope of Work with full power to enforce the terms of this Scope of Work."]
[]
[]
[{"$f":"IF('Project Information'!$D$33='Other Data'!$F$84,'Other Data'!B227,\"\")","v":""}]
[]
[null,null,null,{"$f":"D3","v":"SMALL BUSINESS SCOPE OF WORK FORM"}]
[null,null,null,{"$f":"'Project Information'!$B$2","v":"Cost-effective Lighting Investment Calculator (CLIC) CIPI FON-022-2026"}]
[]
[null,null,"Company Name:",{"$f":"D6","v":0}]
[null,null,"Qualified Partner #1:",0]
[null,null,"Qualified Partner #2:",""]
[null,null,"Facility Name:",0]
[null,null,"Installation Address:",0]
[null,null,"    City:",0,null,null,null,"State:","Maine","Zip:",{"$f":"K11","v":0}]
[null,null,"Reference Number:",{"$f":"'Project Information'!K2","v":0}]
[]
["Participating Customer",null,null,null,null,null,"Date"]
[]
[]
["Name (printed)",null,null,null,null,null,"Title"]
[]
[]
[]
["Participating Qualified Partner Installer",null,null,null,null,null,"Date"]
[]
[]
["print"]
["Name (printed)",null,null,null,null,null,"Title"]
[]
[]
[]
["Small Business Initiative\nSchedule 1 to Scope of Work\nSummary of Project Financials and Energy Savings"]
["print"]
["print",null,null,null,{"$f":"'Project Information'!H39","v":"Estimated Annual kWh Savings: "},{"$f":"'Project Information'!J39","v":0}]
["print",null,null,null,{"$f":"'Project Information'!H41","v":"Average cost per kWh: "},{"$f":"'Project Information'!J41","v":0.21}]
["print",null,null,null,{"$f":"'Project Information'!H42","v":"Estimated Annual Energy Cost Savings: "},{"$f":"'Project Information'!J42","v":0}]
["print",null,null,null,{"$f":"'Project Information'!H43","v":"Estimated Monthly Energy Cost Savings: "},{"$f":"'Project Information'!J43","v":0}]
["print"]
["print",null,null,null,{"$f":"'Project Information'!K39","v":"Total Labor Costs: "},{"$f":"'Project Information'!L39","v":0}]
["print",null,null,null,{"$f":"'Project Information'!K40","v":"Total Material Costs: "},{"$f":"'Project Information'!L40","v":0}]
["print",null,null,null,{"$f":"'Project Information'!K41","v":"Total Ancillary Costs: "},{"$f":"'Project Information'!L41","v":0}]
[null,null,null,null,{"$f":"'Project Information'!K42","v":"Total Measure Cost: "},{"$f":"'Project Information'!L42","v":0}]
["print",null,null,null,{"$f":"'Project Information'!K43","v":"Taxes:"},{"$f":"'Project Information'!L43","v":0}]
["print",null,null,null,{"$f":"'Project Information'!K44","v":"Total Project Cost: "},{"$f":"'Project Information'!L44","v":0}]
["print"]
["print",null,null,null,{"$f":"'Project Information'!K45","v":"Estimated Incentives:"},{"$f":"'Project Information'!L45","v":0},null,null,"Paid to Contractor by Efficiency Maine"]
["print",null,null,null,{"$f":"'Project Information'!K46","v":"Estimated Cost to Customer:"},{"$f":"'Project Information'!L46","v":0},null,null,"Paid to Contractor by Customer"]
[null,null,null,null,{"$f":"'Project Information'!K47","v":"Est. Simple Payback (years):"},{"$f":"'Project Information'!L47","v":{"$error":"#DIV/0!"}}]
["print",null,null,null,{"$f":"IF('Project Information'!$D$33='Other Data'!$F$84,'Project Information'!O39,\"\")","v":""},{"$f":"IF('Project Information'!$D$33='Other Data'!$F$84,'Project Information'!P39,\"\")","v":""}]
["print",null,null,null,{"$f":"IF('Project Information'!$D$33='Other Data'!$F$84,'Project Information'!O40,\"\")","v":""},{"$f":"IF('Project Information'!$D$33='Other Data'!$F$84,'Project Information'!P40,\"\")","v":""}]
[]
[]
["Small Business Initiative\nSchedule 2 to Scope of Work\nList of Measures and Measure Costs"]
["The work to be performed by the Contractor in connection with the energy efficiency retrofit of the Facility shall be comprised of the below listed Measures in the estimated quantities listed:"]
[]
["Measure Description ",null,null,null,"Location",null,"Qty","Total Cost","Customer\nCost",null,"Incentive"]
[{"$f":"'Project Scope'!Q111","v":""},null,null,null,{"$f":"'Project Scope'!R111","v":""},null,{"$f":"'Project Scope'!U111","v":""},{"$f":"IF('Project Scope'!V111=\"\",\"\",'Project Scope'!V111+'Project Scope'!W111)","v":""},{"$f":"'Project Scope'!Y111","v":""},null,{"$f":"'Project Scope'!X111","v":""}]
[{"$f":"'Project Scope'!Q112","v":""},null,null,null,{"$f":"'Project Scope'!R112","v":""},null,{"$f":"'Project Scope'!U112","v":""},{"$f":"IF('Project Scope'!V112=\"\",\"\",'Project Scope'!V112+'Project Scope'!W112)","v":""},{"$f":"'Project Scope'!Y112","v":""},null,{"$f":"'Project Scope'!X112","v":""}]
[{"$f":"'Project Scope'!Q113","v":""},null,null,null,{"$f":"'Project Scope'!R113","v":""},null,{"$f":"'Project Scope'!U113","v":""},{"$f":"IF('Project Scope'!V113=\"\",\"\",'Project Scope'!V113+'Project Scope'!W113)","v":""},{"$f":"'Project Scope'!Y113","v":""},null,{"$f":"'Project Scope'!X113","v":""}]
[{"$f":"'Project Scope'!Q114","v":""},null,null,null,{"$f":"'Project Scope'!R114","v":""},null,{"$f":"'Project Scope'!U114","v":""},{"$f":"IF('Project Scope'!V114=\"\",\"\",'Project Scope'!V114+'Project Scope'!W114)","v":""},{"$f":"'Project Scope'!Y114","v":""},null,{"$f":"'Project Scope'!X114","v":""}]
[{"$f":"'Project Scope'!Q115","v":""},null,null,null,{"$f":"'Project Scope'!R115","v":""},null,{"$f":"'Project Scope'!U115","v":""},{"$f":"IF('Project Scope'!V115=\"\",\"\",'Project Scope'!V115+'Project Scope'!W115)","v":""},{"$f":"'Project Scope'!Y115","v":""},null,{"$f":"'Project Scope'!X115","v":""}]
[{"$f":"'Project Scope'!Q116","v":""},null,null,null,{"$f":"'Project Scope'!R116","v":""},null,{"$f":"'Project Scope'!U116","v":""},{"$f":"IF('Project Scope'!V116=\"\",\"\",'Project Scope'!V116+'Project Scope'!W116)","v":""},{"$f":"'Project Scope'!Y116","v":""},null,{"$f":"'Project Scope'!X116","v":""}]
[{"$f":"'Project Scope'!Q117","v":""},null,null,null,{"$f":"'Project Scope'!R117","v":""},null,{"$f":"'Project Scope'!U117","v":""},{"$f":"IF('Project Scope'!V117=\"\",\"\",'Project Scope'!V117+'Project Scope'!W117)","v":""},{"$f":"'Project Scope'!Y117","v":""},null,{"$f":"'Project Scope'!X117","v":""}]
[{"$f":"'Project Scope'!Q118","v":""},null,null,null,{"$f":"'Project Scope'!R118","v":""},null,{"$f":"'Project Scope'!U118","v":""},{"$f":"IF('Project Scope'!V118=\"\",\"\",'Project Scope'!V118+'Project Scope'!W118)","v":""},{"$f":"'Project Scope'!Y118","v":""},null,{"$f":"'Project Scope'!X118","v":""}]
[{"$f":"'Project Scope'!Q119","v":""},null,null,null,{"$f":"'Project Scope'!R119","v":""},null,{"$f":"'Project Scope'!U119","v":""},{"$f":"IF('Project Scope'!V119=\"\",\"\",'Project Scope'!V119+'Project Scope'!W119)","v":""},{"$f":"'Project Scope'!Y119","v":""},null,{"$f":"'Project Scope'!X119","v":""}]
[{"$f":"'Project Scope'!Q120","v":""},null,null,null,{"$f":"'Project Scope'!R120","v":""},null,{"$f":"'Project Scope'!U120","v":""},{"$f":"IF('Project Scope'!V120=\"\",\"\",'Project Scope'!V120+'Project Scope'!W120)","v":""},{"$f":"'Project Scope'!Y120","v":""},null,{"$f":"'Project Scope'!X120","v":""}]
[{"$f":"'Project Scope'!Q121","v":""},null,null,null,{"$f":"'Project Scope'!R121","v":""},null,{"$f":"'Project Scope'!U121","v":""},{"$f":"IF('Project Scope'!V121=\"\",\"\",'Project Scope'!V121+'Project Scope'!W121)","v":""},{"$f":"'Project Scope'!Y121","v":""},null,{"$f":"'Project Scope'!X121","v":""}]
[{"$f":"'Project Scope'!Q122","v":""},null,null,null,{"$f":"'Project Scope'!R122","v":""},null,{"$f":"'Project Scope'!U122","v":""},{"$f":"IF('Project Scope'!V122=\"\",\"\",'Project Scope'!V122+'Project Scope'!W122)","v":""},{"$f":"'Project Scope'!Y122","v":""},null,{"$f":"'Project Scope'!X122","v":""}]
[{"$f":"'Project Scope'!Q123","v":""},null,null,null,{"$f":"'Project Scope'!R123","v":""},null,{"$f":"'Project Scope'!U123","v":""},{"$f":"IF('Project Scope'!V123=\"\",\"\",'Project Scope'!V123+'Project Scope'!W123)","v":""},{"$f":"'Project Scope'!Y123","v":""},null,{"$f":"'Project Scope'!X123","v":""}]
[{"$f":"'Project Scope'!Q124","v":""},null,null,null,{"$f":"'Project Scope'!R124","v":""},null,{"$f":"'Project Scope'!U124","v":""},{"$f":"IF('Project Scope'!V124=\"\",\"\",'Project Scope'!V124+'Project Scope'!W124)","v":""},{"$f":"'Project Scope'!Y124","v":""},null,{"$f":"'Project Scope'!X124","v":""}]
[{"$f":"'Project Scope'!Q125","v":""},null,null,null,{"$f":"'Project Scope'!R125","v":""},null,{"$f":"'Project Scope'!U125","v":""},{"$f":"IF('Project Scope'!V125=\"\",\"\",'Project Scope'!V125+'Project Scope'!W125)","v":""},{"$f":"'Project Scope'!Y125","v":""},null,{"$f":"'Project Scope'!X125","v":""}]
[{"$f":"'Project Scope'!Q126","v":""},null,null,null,{"$f":"'Project Scope'!R126","v":""},null,{"$f":"'Project Scope'!U126","v":""},{"$f":"IF('Project Scope'!V126=\"\",\"\",'Project Scope'!V126+'Project Scope'!W126)","v":""},{"$f":"'Project Scope'!Y126","v":""},null,{"$f":"'Project Scope'!X126","v":""}]
[{"$f":"'Project Scope'!Q127","v":""},null,null,null,{"$f":"'Project Scope'!R127","v":""},null,{"$f":"'Project Scope'!U127","v":""},{"$f":"IF('Project Scope'!V127=\"\",\"\",'Project Scope'!V127+'Project Scope'!W127)","v":""},{"$f":"'Project Scope'!Y127","v":""},null,{"$f":"'Project Scope'!X127","v":""}]
[{"$f":"'Project Scope'!Q128","v":""},null,null,null,{"$f":"'Project Scope'!R128","v":""},null,{"$f":"'Project Scope'!U128","v":""},{"$f":"IF('Project Scope'!V128=\"\",\"\",'Project Scope'!V128+'Project Scope'!W128)","v":""},{"$f":"'Project Scope'!Y128","v":""},null,{"$f":"'Project Scope'!X128","v":""}]
[{"$f":"'Project Scope'!Q129","v":""},null,null,null,{"$f":"'Project Scope'!R129","v":""},null,{"$f":"'Project Scope'!U129","v":""},{"$f":"IF('Project Scope'!V129=\"\",\"\",'Project Scope'!V129+'Project Scope'!W129)","v":""},{"$f":"'Project Scope'!Y129","v":""},null,{"$f":"'Project Scope'!X129","v":""}]
[{"$f":"'Project Scope'!Q130","v":""},null,null,null,{"$f":"'Project Scope'!R130","v":""},null,{"$f":"'Project Scope'!U130","v":""},{"$f":"IF('Project Scope'!V130=\"\",\"\",'Project Scope'!V130+'Project Scope'!W130)","v":""},{"$f":"'Project Scope'!Y130","v":""},null,{"$f":"'Project Scope'!X130","v":""}]
[{"$f":"'Project Scope'!Q131","v":""},null,null,null,{"$f":"'Project Scope'!R131","v":""},null,{"$f":"'Project Scope'!U131","v":""},{"$f":"IF('Project Scope'!V131=\"\",\"\",'Project Scope'!V131+'Project Scope'!W131)","v":""},{"$f":"'Project Scope'!Y131","v":""},null,{"$f":"'Project Scope'!X131","v":""}]
[{"$f":"'Project Scope'!Q132","v":""},null,null,null,{"$f":"'Project Scope'!R132","v":""},null,{"$f":"'Project Scope'!U132","v":""},{"$f":"IF('Project Scope'!V132=\"\",\"\",'Project Scope'!V132+'Project Scope'!W132)","v":""},{"$f":"'Project Scope'!Y132","v":""},null,{"$f":"'Project Scope'!X132","v":""}]
[{"$f":"'Project Scope'!Q133","v":""},null,null,null,{"$f":"'Project Scope'!R133","v":""},null,{"$f":"'Project Scope'!U133","v":""},{"$f":"IF('Project Scope'!V133=\"\",\"\",'Project Scope'!V133+'Project Scope'!W133)","v":""},{"$f":"'Project Scope'!Y133","v":""},null,{"$f":"'Project Scope'!X133","v":""}]
[{"$f":"'Project Scope'!Q134","v":""},null,null,null,{"$f":"'Project Scope'!R134","v":""},null,{"$f":"'Project Scope'!U134","v":""},{"$f":"IF('Project Scope'!V134=\"\",\"\",'Project Scope'!V134+'Project Scope'!W134)","v":""},{"$f":"'Project Scope'!Y134","v":""},null,{"$f":"'Project Scope'!X134","v":""}]
[{"$f":"'Project Scope'!Q135","v":""},null,null,null,{"$f":"'Project Scope'!R135","v":""},null,{"$f":"'Project Scope'!U135","v":""},{"$f":"IF('Project Scope'!V135=\"\",\"\",'Project Scope'!V135+'Project Scope'!W135)","v":""},{"$f":"'Project Scope'!Y135","v":""},null,{"$f":"'Project Scope'!X135","v":""}]
[{"$f":"'Project Scope'!Q136","v":""},null,null,null,{"$f":"'Project Scope'!R136","v":""},null,{"$f":"'Project Scope'!U136","v":""},{"$f":"IF('Project Scope'!V136=\"\",\"\",'Project Scope'!V136+'Project Scope'!W136)","v":""},{"$f":"'Project Scope'!Y136","v":""},null,{"$f":"'Project Scope'!X136","v":""}]
[{"$f":"'Project Scope'!Q137","v":""},null,null,null,{"$f":"'Project Scope'!R137","v":""},null,{"$f":"'Project Scope'!U137","v":""},{"$f":"IF('Project Scope'!V137=\"\",\"\",'Project Scope'!V137+'Project Scope'!W137)","v":""},{"$f":"'Project Scope'!Y137","v":""},null,{"$f":"'Project Scope'!X137","v":""}]
[{"$f":"'Project Scope'!Q138","v":""},null,null,null,{"$f":"'Project Scope'!R138","v":""},null,{"$f":"'Project Scope'!U138","v":""},{"$f":"IF('Project Scope'!V138=\"\",\"\",'Project Scope'!V138+'Project Scope'!W138)","v":""},{"$f":"'Project Scope'!Y138","v":""},null,{"$f":"'Project Scope'!X138","v":""}]
[{"$f":"'Project Scope'!Q139","v":""},null,null,null,{"$f":"'Project Scope'!R139","v":""},null,{"$f":"'Project Scope'!U139","v":""},{"$f":"IF('Project Scope'!V139=\"\",\"\",'Project Scope'!V139+'Project Scope'!W139)","v":""},{"$f":"'Project Scope'!Y139","v":""},null,{"$f":"'Project Scope'!X139","v":""}]
[{"$f":"'Project Scope'!Q140","v":""},null,null,null,{"$f":"'Project Scope'!R140","v":""},null,{"$f":"'Project Scope'!U140","v":""},{"$f":"IF('Project Scope'!V140=\"\",\"\",'Project Scope'!V140+'Project Scope'!W140)","v":""},{"$f":"'Project Scope'!Y140","v":""},null,{"$f":"'Project Scope'!X140","v":""}]
[{"$f":"'Project Scope'!Q141","v":""},null,null,null,{"$f":"'Project Scope'!R141","v":""},null,{"$f":"'Project Scope'!U141","v":""},{"$f":"IF('Project Scope'!V141=\"\",\"\",'Project Scope'!V141+'Project Scope'!W141)","v":""},{"$f":"'Project Scope'!Y141","v":""},null,{"$f":"'Project Scope'!X141","v":""}]
[{"$f":"'Project Scope'!Q142","v":""},null,null,null,{"$f":"'Project Scope'!R142","v":""},null,{"$f":"'Project Scope'!U142","v":""},{"$f":"IF('Project Scope'!V142=\"\",\"\",'Project Scope'!V142+'Project Scope'!W142)","v":""},{"$f":"'Project Scope'!Y142","v":""},null,{"$f":"'Project Scope'!X142","v":""}]
[{"$f":"'Project Scope'!Q143","v":""},null,null,null,{"$f":"'Project Scope'!R143","v":""},null,{"$f":"'Project Scope'!U143","v":""},{"$f":"IF('Project Scope'!V143=\"\",\"\",'Project Scope'!V143+'Project Scope'!W143)","v":""},{"$f":"'Project Scope'!Y143","v":""},null,{"$f":"'Project Scope'!X143","v":""}]
[{"$f":"'Project Scope'!Q144","v":""},null,null,null,{"$f":"'Project Scope'!R144","v":""},null,{"$f":"'Project Scope'!U144","v":""},{"$f":"IF('Project Scope'!V144=\"\",\"\",'Project Scope'!V144+'Project Scope'!W144)","v":""},{"$f":"'Project Scope'!Y144","v":""},null,{"$f":"'Project Scope'!X144","v":""}]
[{"$f":"'Project Scope'!Q145","v":""},null,null,null,{"$f":"'Project Scope'!R145","v":""},null,{"$f":"'Project Scope'!U145","v":""},{"$f":"IF('Project Scope'!V145=\"\",\"\",'Project Scope'!V145+'Project Scope'!W145)","v":""},{"$f":"'Project Scope'!Y145","v":""},null,{"$f":"'Project Scope'!X145","v":""}]
[{"$f":"'Project Scope'!Q146","v":""},null,null,null,{"$f":"'Project Scope'!R146","v":""},null,{"$f":"'Project Scope'!U146","v":""},{"$f":"IF('Project Scope'!V146=\"\",\"\",'Project Scope'!V146+'Project Scope'!W146)","v":""},{"$f":"'Project Scope'!Y146","v":""},null,{"$f":"'Project Scope'!X146","v":""}]
[{"$f":"'Project Scope'!Q147","v":""},null,null,null,{"$f":"'Project Scope'!R147","v":""},null,{"$f":"'Project Scope'!U147","v":""},{"$f":"IF('Project Scope'!V147=\"\",\"\",'Project Scope'!V147+'Project Scope'!W147)","v":""},{"$f":"'Project Scope'!Y147","v":""},null,{"$f":"'Project Scope'!X147","v":""}]
[{"$f":"'Project Scope'!Q148","v":""},null,null,null,{"$f":"'Project Scope'!R148","v":""},null,{"$f":"'Project Scope'!U148","v":""},{"$f":"IF('Project Scope'!V148=\"\",\"\",'Project Scope'!V148+'Project Scope'!W148)","v":""},{"$f":"'Project Scope'!Y148","v":""},null,{"$f":"'Project Scope'!X148","v":""}]
[{"$f":"'Project Scope'!Q149","v":""},null,null,null,{"$f":"'Project Scope'!R149","v":""},null,{"$f":"'Project Scope'!U149","v":""},{"$f":"IF('Project Scope'!V149=\"\",\"\",'Project Scope'!V149+'Project Scope'!W149)","v":""},{"$f":"'Project Scope'!Y149","v":""},null,{"$f":"'Project Scope'!X149","v":""}]
[{"$f":"'Project Scope'!Q150","v":""},null,null,null,{"$f":"'Project Scope'!R150","v":""},null,{"$f":"'Project Scope'!U150","v":""},{"$f":"IF('Project Scope'!V150=\"\",\"\",'Project Scope'!V150+'Project Scope'!W150)","v":""},{"$f":"'Project Scope'!Y150","v":""},null,{"$f":"'Project Scope'!X150","v":""}]
[{"$f":"'Project Scope'!Q151","v":""},null,null,null,{"$f":"'Project Scope'!R151","v":""},null,{"$f":"'Project Scope'!U151","v":""},{"$f":"IF('Project Scope'!V151=\"\",\"\",'Project Scope'!V151+'Project Scope'!W151)","v":""},{"$f":"'Project Scope'!Y151","v":""},null,{"$f":"'Project Scope'!X151","v":""}]
[{"$f":"'Project Scope'!Q152","v":""},null,null,null,{"$f":"'Project Scope'!R152","v":""},null,{"$f":"'Project Scope'!U152","v":""},{"$f":"IF('Project Scope'!V152=\"\",\"\",'Project Scope'!V152+'Project Scope'!W152)","v":""},{"$f":"'Project Scope'!Y152","v":""},null,{"$f":"'Project Scope'!X152","v":""}]
[{"$f":"'Project Scope'!Q153","v":""},null,null,null,{"$f":"'Project Scope'!R153","v":""},null,{"$f":"'Project Scope'!U153","v":""},{"$f":"IF('Project Scope'!V153=\"\",\"\",'Project Scope'!V153+'Project Scope'!W153)","v":""},{"$f":"'Project Scope'!Y153","v":""},null,{"$f":"'Project Scope'!X153","v":""}]
[{"$f":"'Project Scope'!Q154","v":""},null,null,null,{"$f":"'Project Scope'!R154","v":""},null,{"$f":"'Project Scope'!U154","v":""},{"$f":"IF('Project Scope'!V154=\"\",\"\",'Project Scope'!V154+'Project Scope'!W154)","v":""},{"$f":"'Project Scope'!Y154","v":""},null,{"$f":"'Project Scope'!X154","v":""}]
[{"$f":"'Project Scope'!Q155","v":""},null,null,null,{"$f":"'Project Scope'!R155","v":""},null,{"$f":"'Project Scope'!U155","v":""},{"$f":"IF('Project Scope'!V155=\"\",\"\",'Project Scope'!V155+'Project Scope'!W155)","v":""},{"$f":"'Project Scope'!Y155","v":""},null,{"$f":"'Project Scope'!X155","v":""}]
[{"$f":"'Project Scope'!Q156","v":""},null,null,null,{"$f":"'Project Scope'!R156","v":""},null,{"$f":"'Project Scope'!U156","v":""},{"$f":"IF('Project Scope'!V156=\"\",\"\",'Project Scope'!V156+'Project Scope'!W156)","v":""},{"$f":"'Project Scope'!Y156","v":""},null,{"$f":"'Project Scope'!X156","v":""}]
[{"$f":"'Project Scope'!Q157","v":""},null,null,null,{"$f":"'Project Scope'!R157","v":""},null,{"$f":"'Project Scope'!U157","v":""},{"$f":"IF('Project Scope'!V157=\"\",\"\",'Project Scope'!V157+'Project Scope'!W157)","v":""},{"$f":"'Project Scope'!Y157","v":""},null,{"$f":"'Project Scope'!X157","v":""}]
[{"$f":"'Project Scope'!Q158","v":""},null,null,null,{"$f":"'Project Scope'!R158","v":""},null,{"$f":"'Project Scope'!U158","v":""},{"$f":"IF('Project Scope'!V158=\"\",\"\",'Project Scope'!V158+'Project Scope'!W158)","v":""},{"$f":"'Project Scope'!Y158","v":""},null,{"$f":"'Project Scope'!X158","v":""}]
[{"$f":"'Project Scope'!Q159","v":""},null,null,null,{"$f":"'Project Scope'!R159","v":""},null,{"$f":"'Project Scope'!U159","v":""},{"$f":"IF('Project Scope'!V159=\"\",\"\",'Project Scope'!V159+'Project Scope'!W159)","v":""},{"$f":"'Project Scope'!Y159","v":""},null,{"$f":"'Project Scope'!X159","v":""}]
[{"$f":"'Project Scope'!Q160","v":""},null,null,null,{"$f":"'Project Scope'!R160","v":""},null,{"$f":"'Project Scope'!U160","v":""},{"$f":"IF('Project Scope'!V160=\"\",\"\",'Project Scope'!V160+'Project Scope'!W160)","v":""},{"$f":"'Project Scope'!Y160","v":""},null,{"$f":"'Project Scope'!X160","v":""}]
[{"$f":"'Project Scope'!Q161","v":""},null,null,null,{"$f":"'Project Scope'!R161","v":""},null,{"$f":"'Project Scope'!U161","v":""},{"$f":"IF('Project Scope'!V161=\"\",\"\",'Project Scope'!V161+'Project Scope'!W161)","v":""},{"$f":"'Project Scope'!Y161","v":""},null,{"$f":"'Project Scope'!X161","v":""}]
[{"$f":"'Project Scope'!Q162","v":""},null,null,null,{"$f":"'Project Scope'!R162","v":""},null,{"$f":"'Project Scope'!U162","v":""},{"$f":"IF('Project Scope'!V162=\"\",\"\",'Project Scope'!V162+'Project Scope'!W162)","v":""},{"$f":"'Project Scope'!Y162","v":""},null,{"$f":"'Project Scope'!X162","v":""}]
[{"$f":"'Project Scope'!Q163","v":""},null,null,null,{"$f":"'Project Scope'!R163","v":""},null,{"$f":"'Project Scope'!U163","v":""},{"$f":"IF('Project Scope'!V163=\"\",\"\",'Project Scope'!V163+'Project Scope'!W163)","v":""},{"$f":"'Project Scope'!Y163","v":""},null,{"$f":"'Project Scope'!X163","v":""}]
[{"$f":"'Project Scope'!Q164","v":""},null,null,null,{"$f":"'Project Scope'!R164","v":""},null,{"$f":"'Project Scope'!U164","v":""},{"$f":"IF('Project Scope'!V164=\"\",\"\",'Project Scope'!V164+'Project Scope'!W164)","v":""},{"$f":"'Project Scope'!Y164","v":""},null,{"$f":"'Project Scope'!X164","v":""}]
[{"$f":"'Project Scope'!Q165","v":""},null,null,null,{"$f":"'Project Scope'!R165","v":""},null,{"$f":"'Project Scope'!U165","v":""},{"$f":"IF('Project Scope'!V165=\"\",\"\",'Project Scope'!V165+'Project Scope'!W165)","v":""},{"$f":"'Project Scope'!Y165","v":""},null,{"$f":"'Project Scope'!X165","v":""}]
[{"$f":"'Project Scope'!Q166","v":""},null,null,null,{"$f":"'Project Scope'!R166","v":""},null,{"$f":"'Project Scope'!U166","v":""},{"$f":"IF('Project Scope'!V166=\"\",\"\",'Project Scope'!V166+'Project Scope'!W166)","v":""},{"$f":"'Project Scope'!Y166","v":""},null,{"$f":"'Project Scope'!X166","v":""}]
[{"$f":"'Project Scope'!Q167","v":""},null,null,null,{"$f":"'Project Scope'!R167","v":""},null,{"$f":"'Project Scope'!U167","v":""},{"$f":"IF('Project Scope'!V167=\"\",\"\",'Project Scope'!V167+'Project Scope'!W167)","v":""},{"$f":"'Project Scope'!Y167","v":""},null,{"$f":"'Project Scope'!X167","v":""}]
[{"$f":"'Project Scope'!Q168","v":""},null,null,null,{"$f":"'Project Scope'!R168","v":""},null,{"$f":"'Project Scope'!U168","v":""},{"$f":"IF('Project Scope'!V168=\"\",\"\",'Project Scope'!V168+'Project Scope'!W168)","v":""},{"$f":"'Project Scope'!Y168","v":""},null,{"$f":"'Project Scope'!X168","v":""}]
[{"$f":"'Project Scope'!Q169","v":""},null,null,null,{"$f":"'Project Scope'!R169","v":""},null,{"$f":"'Project Scope'!U169","v":""},{"$f":"IF('Project Scope'!V169=\"\",\"\",'Project Scope'!V169+'Project Scope'!W169)","v":""},{"$f":"'Project Scope'!Y169","v":""},null,{"$f":"'Project Scope'!X169","v":""}]
[{"$f":"'Project Scope'!Q170","v":""},null,null,null,{"$f":"'Project Scope'!R170","v":""},null,{"$f":"'Project Scope'!U170","v":""},{"$f":"IF('Project Scope'!V170=\"\",\"\",'Project Scope'!V170+'Project Scope'!W170)","v":""},{"$f":"'Project Scope'!Y170","v":""},null,{"$f":"'Project Scope'!X170","v":""}]
[{"$f":"'Project Scope'!Q171","v":""},null,null,null,{"$f":"'Project Scope'!R171","v":""},null,{"$f":"'Project Scope'!U171","v":""},{"$f":"IF('Project Scope'!V171=\"\",\"\",'Project Scope'!V171+'Project Scope'!W171)","v":""},{"$f":"'Project Scope'!Y171","v":""},null,{"$f":"'Project Scope'!X171","v":""}]
[{"$f":"'Project Scope'!Q172","v":""},null,null,null,{"$f":"'Project Scope'!R172","v":""},null,{"$f":"'Project Scope'!U172","v":""},{"$f":"IF('Project Scope'!V172=\"\",\"\",'Project Scope'!V172+'Project Scope'!W172)","v":""},{"$f":"'Project Scope'!Y172","v":""},null,{"$f":"'Project Scope'!X172","v":""}]
[{"$f":"'Project Scope'!Q173","v":""},null,null,null,{"$f":"'Project Scope'!R173","v":""},null,{"$f":"'Project Scope'!U173","v":""},{"$f":"IF('Project Scope'!V173=\"\",\"\",'Project Scope'!V173+'Project Scope'!W173)","v":""},{"$f":"'Project Scope'!Y173","v":""},null,{"$f":"'Project Scope'!X173","v":""}]
[{"$f":"'Project Scope'!Q174","v":""},null,null,null,{"$f":"'Project Scope'!R174","v":""},null,{"$f":"'Project Scope'!U174","v":""},{"$f":"IF('Project Scope'!V174=\"\",\"\",'Project Scope'!V174+'Project Scope'!W174)","v":""},{"$f":"'Project Scope'!Y174","v":""},null,{"$f":"'Project Scope'!X174","v":""}]
[{"$f":"'Project Scope'!Q175","v":""},null,null,null,{"$f":"'Project Scope'!R175","v":""},null,{"$f":"'Project Scope'!U175","v":""},{"$f":"IF('Project Scope'!V175=\"\",\"\",'Project Scope'!V175+'Project Scope'!W175)","v":""},{"$f":"'Project Scope'!Y175","v":""},null,{"$f":"'Project Scope'!X175","v":""}]
[{"$f":"'Project Scope'!Q176","v":""},null,null,null,{"$f":"'Project Scope'!R176","v":""},null,{"$f":"'Project Scope'!U176","v":""},{"$f":"IF('Project Scope'!V176=\"\",\"\",'Project Scope'!V176+'Project Scope'!W176)","v":""},{"$f":"'Project Scope'!Y176","v":""},null,{"$f":"'Project Scope'!X176","v":""}]
[{"$f":"'Project Scope'!Q177","v":""},null,null,null,{"$f":"'Project Scope'!R177","v":""},null,{"$f":"'Project Scope'!U177","v":""},{"$f":"IF('Project Scope'!V177=\"\",\"\",'Project Scope'!V177+'Project Scope'!W177)","v":""},{"$f":"'Project Scope'!Y177","v":""},null,{"$f":"'Project Scope'!X177","v":""}]
[{"$f":"'Project Scope'!Q178","v":""},null,null,null,{"$f":"'Project Scope'!R178","v":""},null,{"$f":"'Project Scope'!U178","v":""},{"$f":"IF('Project Scope'!V178=\"\",\"\",'Project Scope'!V178+'Project Scope'!W178)","v":""},{"$f":"'Project Scope'!Y178","v":""},null,{"$f":"'Project Scope'!X178","v":""}]
[{"$f":"'Project Scope'!Q179","v":""},null,null,null,{"$f":"'Project Scope'!R179","v":""},null,{"$f":"'Project Scope'!U179","v":""},{"$f":"IF('Project Scope'!V179=\"\",\"\",'Project Scope'!V179+'Project Scope'!W179)","v":""},{"$f":"'Project Scope'!Y179","v":""},null,{"$f":"'Project Scope'!X179","v":""}]
[{"$f":"'Project Scope'!Q180","v":""},null,null,null,{"$f":"'Project Scope'!R180","v":""},null,{"$f":"'Project Scope'!U180","v":""},{"$f":"IF('Project Scope'!V180=\"\",\"\",'Project Scope'!V180+'Project Scope'!W180)","v":""},{"$f":"'Project Scope'!Y180","v":""},null,{"$f":"'Project Scope'!X180","v":""}]
[{"$f":"'Project Scope'!Q181","v":""},null,null,null,{"$f":"'Project Scope'!R181","v":""},null,{"$f":"'Project Scope'!U181","v":""},{"$f":"IF('Project Scope'!V181=\"\",\"\",'Project Scope'!V181+'Project Scope'!W181)","v":""},{"$f":"'Project Scope'!Y181","v":""},null,{"$f":"'Project Scope'!X181","v":""}]
[{"$f":"'Project Scope'!Q182","v":""},null,null,null,{"$f":"'Project Scope'!R182","v":""},null,{"$f":"'Project Scope'!U182","v":""},{"$f":"IF('Project Scope'!V182=\"\",\"\",'Project Scope'!V182+'Project Scope'!W182)","v":""},{"$f":"'Project Scope'!Y182","v":""},null,{"$f":"'Project Scope'!X182","v":""}]
[{"$f":"'Project Scope'!Q183","v":""},null,null,null,{"$f":"'Project Scope'!R183","v":""},null,{"$f":"'Project Scope'!U183","v":""},{"$f":"IF('Project Scope'!V183=\"\",\"\",'Project Scope'!V183+'Project Scope'!W183)","v":""},{"$f":"'Project Scope'!Y183","v":""},null,{"$f":"'Project Scope'!X183","v":""}]
[{"$f":"'Project Scope'!Q184","v":""},null,null,null,{"$f":"'Project Scope'!R184","v":""},null,{"$f":"'Project Scope'!U184","v":""},{"$f":"IF('Project Scope'!V184=\"\",\"\",'Project Scope'!V184+'Project Scope'!W184)","v":""},{"$f":"'Project Scope'!Y184","v":""},null,{"$f":"'Project Scope'!X184","v":""}]
[{"$f":"'Project Scope'!Q185","v":""},null,null,null,{"$f":"'Project Scope'!R185","v":""},null,{"$f":"'Project Scope'!U185","v":""},{"$f":"IF('Project Scope'!V185=\"\",\"\",'Project Scope'!V185+'Project Scope'!W185)","v":""},{"$f":"'Project Scope'!Y185","v":""},null,{"$f":"'Project Scope'!X185","v":""}]
[{"$f":"'Project Scope'!Q186","v":""},null,null,null,{"$f":"'Project Scope'!R186","v":""},null,{"$f":"'Project Scope'!U186","v":""},{"$f":"IF('Project Scope'!V186=\"\",\"\",'Project Scope'!V186+'Project Scope'!W186)","v":""},{"$f":"'Project Scope'!Y186","v":""},null,{"$f":"'Project Scope'!X186","v":""}]
[{"$f":"'Project Scope'!Q187","v":""},null,null,null,{"$f":"'Project Scope'!R187","v":""},null,{"$f":"'Project Scope'!U187","v":""},{"$f":"IF('Project Scope'!V187=\"\",\"\",'Project Scope'!V187+'Project Scope'!W187)","v":""},{"$f":"'Project Scope'!Y187","v":""},null,{"$f":"'Project Scope'!X187","v":""}]
[{"$f":"'Project Scope'!Q188","v":""},null,null,null,{"$f":"'Project Scope'!R188","v":""},null,{"$f":"'Project Scope'!U188","v":""},{"$f":"IF('Project Scope'!V188=\"\",\"\",'Project Scope'!V188+'Project Scope'!W188)","v":""},{"$f":"'Project Scope'!Y188","v":""},null,{"$f":"'Project Scope'!X188","v":""}]
[{"$f":"'Project Scope'!Q189","v":""},null,null,null,{"$f":"'Project Scope'!R189","v":""},null,{"$f":"'Project Scope'!U189","v":""},{"$f":"IF('Project Scope'!V189=\"\",\"\",'Project Scope'!V189+'Project Scope'!W189)","v":""},{"$f":"'Project Scope'!Y189","v":""},null,{"$f":"'Project Scope'!X189","v":""}]
[{"$f":"'Project Scope'!Q190","v":""},null,null,null,{"$f":"'Project Scope'!R190","v":""},null,{"$f":"'Project Scope'!U190","v":""},{"$f":"IF('Project Scope'!V190=\"\",\"\",'Project Scope'!V190+'Project Scope'!W190)","v":""},{"$f":"'Project Scope'!Y190","v":""},null,{"$f":"'Project Scope'!X190","v":""}]
[{"$f":"'Project Scope'!Q191","v":""},null,null,null,{"$f":"'Project Scope'!R191","v":""},null,{"$f":"'Project Scope'!U191","v":""},{"$f":"IF('Project Scope'!V191=\"\",\"\",'Project Scope'!V191+'Project Scope'!W191)","v":""},{"$f":"'Project Scope'!Y191","v":""},null,{"$f":"'Project Scope'!X191","v":""}]
[{"$f":"'Project Scope'!Q192","v":""},null,null,null,{"$f":"'Project Scope'!R192","v":""},null,{"$f":"'Project Scope'!U192","v":""},{"$f":"IF('Project Scope'!V192=\"\",\"\",'Project Scope'!V192+'Project Scope'!W192)","v":""},{"$f":"'Project Scope'!Y192","v":""},null,{"$f":"'Project Scope'!X192","v":""}]
[{"$f":"'Project Scope'!Q193","v":""},null,null,null,{"$f":"'Project Scope'!R193","v":""},null,{"$f":"'Project Scope'!U193","v":""},{"$f":"IF('Project Scope'!V193=\"\",\"\",'Project Scope'!V193+'Project Scope'!W193)","v":""},{"$f":"'Project Scope'!Y193","v":""},null,{"$f":"'Project Scope'!X193","v":""}]
[{"$f":"'Project Scope'!Q194","v":""},null,null,null,{"$f":"'Project Scope'!R194","v":""},null,{"$f":"'Project Scope'!U194","v":""},{"$f":"IF('Project Scope'!V194=\"\",\"\",'Project Scope'!V194+'Project Scope'!W194)","v":""},{"$f":"'Project Scope'!Y194","v":""},null,{"$f":"'Project Scope'!X194","v":""}]
[{"$f":"'Project Scope'!Q195","v":""},null,null,null,{"$f":"'Project Scope'!R195","v":""},null,{"$f":"'Project Scope'!U195","v":""},{"$f":"IF('Project Scope'!V195=\"\",\"\",'Project Scope'!V195+'Project Scope'!W195)","v":""},{"$f":"'Project Scope'!Y195","v":""},null,{"$f":"'Project Scope'!X195","v":""}]
[{"$f":"'Project Scope'!Q196","v":""},null,null,null,{"$f":"'Project Scope'!R196","v":""},null,{"$f":"'Project Scope'!U196","v":""},{"$f":"IF('Project Scope'!V196=\"\",\"\",'Project Scope'!V196+'Project Scope'!W196)","v":""},{"$f":"'Project Scope'!Y196","v":""},null,{"$f":"'Project Scope'!X196","v":""}]
[{"$f":"'Project Scope'!Q197","v":""},null,null,null,{"$f":"'Project Scope'!R197","v":""},null,{"$f":"'Project Scope'!U197","v":""},{"$f":"IF('Project Scope'!V197=\"\",\"\",'Project Scope'!V197+'Project Scope'!W197)","v":""},{"$f":"'Project Scope'!Y197","v":""},null,{"$f":"'Project Scope'!X197","v":""}]
[{"$f":"'Project Scope'!Q198","v":""},null,null,null,{"$f":"'Project Scope'!R198","v":""},null,{"$f":"'Project Scope'!U198","v":""},{"$f":"IF('Project Scope'!V198=\"\",\"\",'Project Scope'!V198+'Project Scope'!W198)","v":""},{"$f":"'Project Scope'!Y198","v":""},null,{"$f":"'Project Scope'!X198","v":""}]
[{"$f":"'Project Scope'!Q199","v":""},null,null,null,{"$f":"'Project Scope'!R199","v":""},null,{"$f":"'Project Scope'!U199","v":""},{"$f":"IF('Project Scope'!V199=\"\",\"\",'Project Scope'!V199+'Project Scope'!W199)","v":""},{"$f":"'Project Scope'!Y199","v":""},null,{"$f":"'Project Scope'!X199","v":""}]
[{"$f":"'Project Scope'!Q200","v":""},null,null,null,{"$f":"'Project Scope'!R200","v":""},null,{"$f":"'Project Scope'!U200","v":""},{"$f":"IF('Project Scope'!V200=\"\",\"\",'Project Scope'!V200+'Project Scope'!W200)","v":""},{"$f":"'Project Scope'!Y200","v":""},null,{"$f":"'Project Scope'!X200","v":""}]
[{"$f":"'Project Scope'!Q201","v":""},null,null,null,{"$f":"'Project Scope'!R201","v":""},null,{"$f":"'Project Scope'!U201","v":""},{"$f":"IF('Project Scope'!V201=\"\",\"\",'Project Scope'!V201+'Project Scope'!W201)","v":""},{"$f":"'Project Scope'!Y201","v":""},null,{"$f":"'Project Scope'!X201","v":""}]
[{"$f":"'Project Scope'!Q202","v":""},null,null,null,{"$f":"'Project Scope'!R202","v":""},null,{"$f":"'Project Scope'!U202","v":""},{"$f":"IF('Project Scope'!V202=\"\",\"\",'Project Scope'!V202+'Project Scope'!W202)","v":""},{"$f":"'Project Scope'!Y202","v":""},null,{"$f":"'Project Scope'!X202","v":""}]
[{"$f":"'Project Scope'!Q203","v":""},null,null,null,{"$f":"'Project Scope'!R203","v":""},null,{"$f":"'Project Scope'!U203","v":""},{"$f":"IF('Project Scope'!V203=\"\",\"\",'Project Scope'!V203+'Project Scope'!W203)","v":""},{"$f":"'Project Scope'!Y203","v":""},null,{"$f":"'Project Scope'!X203","v":""}]
[{"$f":"'Project Scope'!Q204","v":""},null,null,null,{"$f":"'Project Scope'!R204","v":""},null,{"$f":"'Project Scope'!U204","v":""},{"$f":"IF('Project Scope'!V204=\"\",\"\",'Project Scope'!V204+'Project Scope'!W204)","v":""},{"$f":"'Project Scope'!Y204","v":""},null,{"$f":"'Project Scope'!X204","v":""}]
[{"$f":"'Project Scope'!Q205","v":""},null,null,null,{"$f":"'Project Scope'!R205","v":""},null,{"$f":"'Project Scope'!U205","v":""},{"$f":"IF('Project Scope'!V205=\"\",\"\",'Project Scope'!V205+'Project Scope'!W205)","v":""},{"$f":"'Project Scope'!Y205","v":""},null,{"$f":"'Project Scope'!X205","v":""}]
[{"$f":"'Project Scope'!Q206","v":""},null,null,null,{"$f":"'Project Scope'!R206","v":""},null,{"$f":"'Project Scope'!U206","v":""},{"$f":"IF('Project Scope'!V206=\"\",\"\",'Project Scope'!V206+'Project Scope'!W206)","v":""},{"$f":"'Project Scope'!Y206","v":""},null,{"$f":"'Project Scope'!X206","v":""}]
[{"$f":"'Project Scope'!Q207","v":""},null,null,null,{"$f":"'Project Scope'!R207","v":""},null,{"$f":"'Project Scope'!U207","v":""},{"$f":"IF('Project Scope'!V207=\"\",\"\",'Project Scope'!V207+'Project Scope'!W207)","v":""},{"$f":"'Project Scope'!Y207","v":""},null,{"$f":"'Project Scope'!X207","v":""}]
[{"$f":"'Project Scope'!Q208","v":""},null,null,null,{"$f":"'Project Scope'!R208","v":""},null,{"$f":"'Project Scope'!U208","v":""},{"$f":"IF('Project Scope'!V208=\"\",\"\",'Project Scope'!V208+'Project Scope'!W208)","v":""},{"$f":"'Project Scope'!Y208","v":""},null,{"$f":"'Project Scope'!X208","v":""}]
[{"$f":"'Project Scope'!Q209","v":""},null,null,null,{"$f":"'Project Scope'!R209","v":""},null,{"$f":"'Project Scope'!U209","v":""},{"$f":"IF('Project Scope'!V209=\"\",\"\",'Project Scope'!V209+'Project Scope'!W209)","v":""},{"$f":"'Project Scope'!Y209","v":""},null,{"$f":"'Project Scope'!X209","v":""}]
[{"$f":"'Project Scope'!Q210","v":""},null,null,null,{"$f":"'Project Scope'!R210","v":""},null,{"$f":"'Project Scope'!U210","v":""},{"$f":"IF('Project Scope'!V210=\"\",\"\",'Project Scope'!V210+'Project Scope'!W210)","v":""},{"$f":"'Project Scope'!Y210","v":""},null,{"$f":"'Project Scope'!X210","v":""}]
[{"$f":"'Project Scope'!Q211","v":""},null,null,null,{"$f":"'Project Scope'!R211","v":""},null,{"$f":"'Project Scope'!U211","v":""},{"$f":"IF('Project Scope'!V211=\"\",\"\",'Project Scope'!V211+'Project Scope'!W211)","v":""},{"$f":"'Project Scope'!Y211","v":""},null,{"$f":"'Project Scope'!X211","v":""}]
[{"$f":"'Project Scope'!Q212","v":""},null,null,null,{"$f":"'Project Scope'!R212","v":""},null,{"$f":"'Project Scope'!U212","v":""},{"$f":"IF('Project Scope'!V212=\"\",\"\",'Project Scope'!V212+'Project Scope'!W212)","v":""},{"$f":"'Project Scope'!Y212","v":""},null,{"$f":"'Project Scope'!X212","v":""}]
[{"$f":"'Project Scope'!Q213","v":""},null,null,null,{"$f":"'Project Scope'!R213","v":""},null,{"$f":"'Project Scope'!U213","v":""},{"$f":"IF('Project Scope'!V213=\"\",\"\",'Project Scope'!V213+'Project Scope'!W213)","v":""},{"$f":"'Project Scope'!Y213","v":""},null,{"$f":"'Project Scope'!X213","v":""}]
[{"$f":"'Project Scope'!Q214","v":""},null,null,null,{"$f":"'Project Scope'!R214","v":""},null,{"$f":"'Project Scope'!U214","v":""},{"$f":"IF('Project Scope'!V214=\"\",\"\",'Project Scope'!V214+'Project Scope'!W214)","v":""},{"$f":"'Project Scope'!Y214","v":""},null,{"$f":"'Project Scope'!X214","v":""}]
[{"$f":"'Project Scope'!Q215","v":""},null,null,null,{"$f":"'Project Scope'!R215","v":""},null,{"$f":"'Project Scope'!U215","v":""},{"$f":"IF('Project Scope'!V215=\"\",\"\",'Project Scope'!V215+'Project Scope'!W215)","v":""},{"$f":"'Project Scope'!Y215","v":""},null,{"$f":"'Project Scope'!X215","v":""}]
[{"$f":"'Project Scope'!Q216","v":""},null,null,null,{"$f":"'Project Scope'!R216","v":""},null,{"$f":"'Project Scope'!U216","v":""},{"$f":"IF('Project Scope'!V216=\"\",\"\",'Project Scope'!V216+'Project Scope'!W216)","v":""},{"$f":"'Project Scope'!Y216","v":""},null,{"$f":"'Project Scope'!X216","v":""}]
[{"$f":"'Project Scope'!Q217","v":""},null,null,null,{"$f":"'Project Scope'!R217","v":""},null,{"$f":"'Project Scope'!U217","v":""},{"$f":"IF('Project Scope'!V217=\"\",\"\",'Project Scope'!V217+'Project Scope'!W217)","v":""},{"$f":"'Project Scope'!Y217","v":""},null,{"$f":"'Project Scope'!X217","v":""}]
[{"$f":"'Project Scope'!Q218","v":""},null,null,null,{"$f":"'Project Scope'!R218","v":""},null,{"$f":"'Project Scope'!U218","v":""},{"$f":"IF('Project Scope'!V218=\"\",\"\",'Project Scope'!V218+'Project Scope'!W218)","v":""},{"$f":"'Project Scope'!Y218","v":""},null,{"$f":"'Project Scope'!X218","v":""}]
[{"$f":"'Project Scope'!Q219","v":""},null,null,null,{"$f":"'Project Scope'!R219","v":""},null,{"$f":"'Project Scope'!U219","v":""},{"$f":"IF('Project Scope'!V219=\"\",\"\",'Project Scope'!V219+'Project Scope'!W219)","v":""},{"$f":"'Project Scope'!Y219","v":""},null,{"$f":"'Project Scope'!X219","v":""}]
[{"$f":"'Project Scope'!Q220","v":""},null,null,null,{"$f":"'Project Scope'!R220","v":""},null,{"$f":"'Project Scope'!U220","v":""},{"$f":"IF('Project Scope'!V220=\"\",\"\",'Project Scope'!V220+'Project Scope'!W220)","v":""},{"$f":"'Project Scope'!Y220","v":""},null,{"$f":"'Project Scope'!X220","v":""}]
[{"$f":"'Project Scope'!Q221","v":""},null,null,null,{"$f":"'Project Scope'!R221","v":""},null,{"$f":"'Project Scope'!U221","v":""},{"$f":"IF('Project Scope'!V221=\"\",\"\",'Project Scope'!V221+'Project Scope'!W221)","v":""},{"$f":"'Project Scope'!Y221","v":""},null,{"$f":"'Project Scope'!X221","v":""}]
[{"$f":"'Project Scope'!Q222","v":""},null,null,null,{"$f":"'Project Scope'!R222","v":""},null,{"$f":"'Project Scope'!U222","v":""},{"$f":"IF('Project Scope'!V222=\"\",\"\",'Project Scope'!V222+'Project Scope'!W222)","v":""},{"$f":"'Project Scope'!Y222","v":""},null,{"$f":"'Project Scope'!X222","v":""}]
[{"$f":"'Project Scope'!Q223","v":""},null,null,null,{"$f":"'Project Scope'!R223","v":""},null,{"$f":"'Project Scope'!U223","v":""},{"$f":"IF('Project Scope'!V223=\"\",\"\",'Project Scope'!V223+'Project Scope'!W223)","v":""},{"$f":"'Project Scope'!Y223","v":""},null,{"$f":"'Project Scope'!X223","v":""}]
[{"$f":"'Project Scope'!Q224","v":""},null,null,null,{"$f":"'Project Scope'!R224","v":""},null,{"$f":"'Project Scope'!U224","v":""},{"$f":"IF('Project Scope'!V224=\"\",\"\",'Project Scope'!V224+'Project Scope'!W224)","v":""},{"$f":"'Project Scope'!Y224","v":""},null,{"$f":"'Project Scope'!X224","v":""}]
[{"$f":"'Project Scope'!Q225","v":""},null,null,null,{"$f":"'Project Scope'!R225","v":""},null,{"$f":"'Project Scope'!U225","v":""},{"$f":"IF('Project Scope'!V225=\"\",\"\",'Project Scope'!V225+'Project Scope'!W225)","v":""},{"$f":"'Project Scope'!Y225","v":""},null,{"$f":"'Project Scope'!X225","v":""}]
[{"$f":"'Project Scope'!Q226","v":""},null,null,null,{"$f":"'Project Scope'!R226","v":""},null,{"$f":"'Project Scope'!U226","v":""},{"$f":"IF('Project Scope'!V226=\"\",\"\",'Project Scope'!V226+'Project Scope'!W226)","v":""},{"$f":"'Project Scope'!Y226","v":""},null,{"$f":"'Project Scope'!X226","v":""}]
[{"$f":"'Project Scope'!Q227","v":""},null,null,null,{"$f":"'Project Scope'!R227","v":""},null,{"$f":"'Project Scope'!U227","v":""},{"$f":"IF('Project Scope'!V227=\"\",\"\",'Project Scope'!V227+'Project Scope'!W227)","v":""},{"$f":"'Project Scope'!Y227","v":""},null,{"$f":"'Project Scope'!X227","v":""}]
[{"$f":"'Project Scope'!Q228","v":""},null,null,null,{"$f":"'Project Scope'!R228","v":""},null,{"$f":"'Project Scope'!U228","v":""},{"$f":"IF('Project Scope'!V228=\"\",\"\",'Project Scope'!V228+'Project Scope'!W228)","v":""},{"$f":"'Project Scope'!Y228","v":""},null,{"$f":"'Project Scope'!X228","v":""}]
[{"$f":"'Project Scope'!Q229","v":""},null,null,null,{"$f":"'Project Scope'!R229","v":""},null,{"$f":"'Project Scope'!U229","v":""},{"$f":"IF('Project Scope'!V229=\"\",\"\",'Project Scope'!V229+'Project Scope'!W229)","v":""},{"$f":"'Project Scope'!Y229","v":""},null,{"$f":"'Project Scope'!X229","v":""}]
[{"$f":"'Project Scope'!Q230","v":""},null,null,null,{"$f":"'Project Scope'!R230","v":""},null,{"$f":"'Project Scope'!U230","v":""},{"$f":"IF('Project Scope'!V230=\"\",\"\",'Project Scope'!V230+'Project Scope'!W230)","v":""},{"$f":"'Project Scope'!Y230","v":""},null,{"$f":"'Project Scope'!X230","v":""}]
[{"$f":"'Project Scope'!Q231","v":""},null,null,null,{"$f":"'Project Scope'!R231","v":""},null,{"$f":"'Project Scope'!U231","v":""},{"$f":"IF('Project Scope'!V231=\"\",\"\",'Project Scope'!V231+'Project Scope'!W231)","v":""},{"$f":"'Project Scope'!Y231","v":""},null,{"$f":"'Project Scope'!X231","v":""}]
[{"$f":"'Project Scope'!Q232","v":""},null,null,null,{"$f":"'Project Scope'!R232","v":""},null,{"$f":"'Project Scope'!U232","v":""},{"$f":"IF('Project Scope'!V232=\"\",\"\",'Project Scope'!V232+'Project Scope'!W232)","v":""},{"$f":"'Project Scope'!Y232","v":""},null,{"$f":"'Project Scope'!X232","v":""}]
[{"$f":"'Project Scope'!Q233","v":""},null,null,null,{"$f":"'Project Scope'!R233","v":""},null,{"$f":"'Project Scope'!U233","v":""},{"$f":"IF('Project Scope'!V233=\"\",\"\",'Project Scope'!V233+'Project Scope'!W233)","v":""},{"$f":"'Project Scope'!Y233","v":""},null,{"$f":"'Project Scope'!X233","v":""}]
[{"$f":"'Project Scope'!Q234","v":""},null,null,null,{"$f":"'Project Scope'!R234","v":""},null,{"$f":"'Project Scope'!U234","v":""},{"$f":"IF('Project Scope'!V234=\"\",\"\",'Project Scope'!V234+'Project Scope'!W234)","v":""},{"$f":"'Project Scope'!Y234","v":""},null,{"$f":"'Project Scope'!X234","v":""}]
[{"$f":"'Project Scope'!Q235","v":""},null,null,null,{"$f":"'Project Scope'!R235","v":""},null,{"$f":"'Project Scope'!U235","v":""},{"$f":"IF('Project Scope'!V235=\"\",\"\",'Project Scope'!V235+'Project Scope'!W235)","v":""},{"$f":"'Project Scope'!Y235","v":""},null,{"$f":"'Project Scope'!X235","v":""}]
[{"$f":"'Project Scope'!Q236","v":""},null,null,null,{"$f":"'Project Scope'!R236","v":""},null,{"$f":"'Project Scope'!U236","v":""},{"$f":"IF('Project Scope'!V236=\"\",\"\",'Project Scope'!V236+'Project Scope'!W236)","v":""},{"$f":"'Project Scope'!Y236","v":""},null,{"$f":"'Project Scope'!X236","v":""}]
[{"$f":"'Project Scope'!Q237","v":""},null,null,null,{"$f":"'Project Scope'!R237","v":""},null,{"$f":"'Project Scope'!U237","v":""},{"$f":"IF('Project Scope'!V237=\"\",\"\",'Project Scope'!V237+'Project Scope'!W237)","v":""},{"$f":"'Project Scope'!Y237","v":""},null,{"$f":"'Project Scope'!X237","v":""}]
[{"$f":"'Project Scope'!Q238","v":""},null,null,null,{"$f":"'Project Scope'!R238","v":""},null,{"$f":"'Project Scope'!U238","v":""},{"$f":"IF('Project Scope'!V238=\"\",\"\",'Project Scope'!V238+'Project Scope'!W238)","v":""},{"$f":"'Project Scope'!Y238","v":""},null,{"$f":"'Project Scope'!X238","v":""}]
[{"$f":"'Project Scope'!Q239","v":""},null,null,null,{"$f":"'Project Scope'!R239","v":""},null,{"$f":"'Project Scope'!U239","v":""},{"$f":"IF('Project Scope'!V239=\"\",\"\",'Project Scope'!V239+'Project Scope'!W239)","v":""},{"$f":"'Project Scope'!Y239","v":""},null,{"$f":"'Project Scope'!X239","v":""}]
[{"$f":"'Project Scope'!Q240","v":""},null,null,null,{"$f":"'Project Scope'!R240","v":""},null,{"$f":"'Project Scope'!U240","v":""},{"$f":"IF('Project Scope'!V240=\"\",\"\",'Project Scope'!V240+'Project Scope'!W240)","v":""},{"$f":"'Project Scope'!Y240","v":""},null,{"$f":"'Project Scope'!X240","v":""}]
[{"$f":"'Project Scope'!Q241","v":""},null,null,null,{"$f":"'Project Scope'!R241","v":""},null,{"$f":"'Project Scope'!U241","v":""},{"$f":"IF('Project Scope'!V241=\"\",\"\",'Project Scope'!V241+'Project Scope'!W241)","v":""},{"$f":"'Project Scope'!Y241","v":""},null,{"$f":"'Project Scope'!X241","v":""}]
[{"$f":"'Project Scope'!Q242","v":""},null,null,null,{"$f":"'Project Scope'!R242","v":""},null,{"$f":"'Project Scope'!U242","v":""},{"$f":"IF('Project Scope'!V242=\"\",\"\",'Project Scope'!V242+'Project Scope'!W242)","v":""},{"$f":"'Project Scope'!Y242","v":""},null,{"$f":"'Project Scope'!X242","v":""}]
[{"$f":"'Project Scope'!Q243","v":""},null,null,null,{"$f":"'Project Scope'!R243","v":""},null,{"$f":"'Project Scope'!U243","v":""},{"$f":"IF('Project Scope'!V243=\"\",\"\",'Project Scope'!V243+'Project Scope'!W243)","v":""},{"$f":"'Project Scope'!Y243","v":""},null,{"$f":"'Project Scope'!X243","v":""}]
[{"$f":"'Project Scope'!Q244","v":""},null,null,null,{"$f":"'Project Scope'!R244","v":""},null,{"$f":"'Project Scope'!U244","v":""},{"$f":"IF('Project Scope'!V244=\"\",\"\",'Project Scope'!V244+'Project Scope'!W244)","v":""},{"$f":"'Project Scope'!Y244","v":""},null,{"$f":"'Project Scope'!X244","v":""}]
[{"$f":"'Project Scope'!Q245","v":""},null,null,null,{"$f":"'Project Scope'!R245","v":""},null,{"$f":"'Project Scope'!U245","v":""},{"$f":"IF('Project Scope'!V245=\"\",\"\",'Project Scope'!V245+'Project Scope'!W245)","v":""},{"$f":"'Project Scope'!Y245","v":""},null,{"$f":"'Project Scope'!X245","v":""}]
[{"$f":"'Project Scope'!Q246","v":""},null,null,null,{"$f":"'Project Scope'!R246","v":""},null,{"$f":"'Project Scope'!U246","v":""},{"$f":"IF('Project Scope'!V246=\"\",\"\",'Project Scope'!V246+'Project Scope'!W246)","v":""},{"$f":"'Project Scope'!Y246","v":""},null,{"$f":"'Project Scope'!X246","v":""}]
[{"$f":"'Project Scope'!Q247","v":""},null,null,null,{"$f":"'Project Scope'!R247","v":""},null,{"$f":"'Project Scope'!U247","v":""},{"$f":"IF('Project Scope'!V247=\"\",\"\",'Project Scope'!V247+'Project Scope'!W247)","v":""},{"$f":"'Project Scope'!Y247","v":""},null,{"$f":"'Project Scope'!X247","v":""}]
[{"$f":"'Project Scope'!Q248","v":""},null,null,null,{"$f":"'Project Scope'!R248","v":""},null,{"$f":"'Project Scope'!U248","v":""},{"$f":"IF('Project Scope'!V248=\"\",\"\",'Project Scope'!V248+'Project Scope'!W248)","v":""},{"$f":"'Project Scope'!Y248","v":""},null,{"$f":"'Project Scope'!X248","v":""}]
[{"$f":"'Project Scope'!Q249","v":""},null,null,null,{"$f":"'Project Scope'!R249","v":""},null,{"$f":"'Project Scope'!U249","v":""},{"$f":"IF('Project Scope'!V249=\"\",\"\",'Project Scope'!V249+'Project Scope'!W249)","v":""},{"$f":"'Project Scope'!Y249","v":""},null,{"$f":"'Project Scope'!X249","v":""}]
[{"$f":"'Project Scope'!Q250","v":""},null,null,null,{"$f":"'Project Scope'!R250","v":""},null,{"$f":"'Project Scope'!U250","v":""},{"$f":"IF('Project Scope'!V250=\"\",\"\",'Project Scope'!V250+'Project Scope'!W250)","v":""},{"$f":"'Project Scope'!Y250","v":""},null,{"$f":"'Project Scope'!X250","v":""}]
[{"$f":"'Project Scope'!Q251","v":""},null,null,null,{"$f":"'Project Scope'!R251","v":""},null,{"$f":"'Project Scope'!U251","v":""},{"$f":"IF('Project Scope'!V251=\"\",\"\",'Project Scope'!V251+'Project Scope'!W251)","v":""},{"$f":"'Project Scope'!Y251","v":""},null,{"$f":"'Project Scope'!X251","v":""}]
[{"$f":"'Project Scope'!Q252","v":""},null,null,null,{"$f":"'Project Scope'!R252","v":""},null,{"$f":"'Project Scope'!U252","v":""},{"$f":"IF('Project Scope'!V252=\"\",\"\",'Project Scope'!V252+'Project Scope'!W252)","v":""},{"$f":"'Project Scope'!Y252","v":""},null,{"$f":"'Project Scope'!X252","v":""}]
[{"$f":"'Project Scope'!Q253","v":""},null,null,null,{"$f":"'Project Scope'!R253","v":""},null,{"$f":"'Project Scope'!U253","v":""},{"$f":"IF('Project Scope'!V253=\"\",\"\",'Project Scope'!V253+'Project Scope'!W253)","v":""},{"$f":"'Project Scope'!Y253","v":""},null,{"$f":"'Project Scope'!X253","v":""}]
[{"$f":"'Project Scope'!Q254","v":""},null,null,null,{"$f":"'Project Scope'!R254","v":""},null,{"$f":"'Project Scope'!U254","v":""},{"$f":"IF('Project Scope'!V254=\"\",\"\",'Project Scope'!V254+'Project Scope'!W254)","v":""},{"$f":"'Project Scope'!Y254","v":""},null,{"$f":"'Project Scope'!X254","v":""}]
[{"$f":"'Project Scope'!Q255","v":""},null,null,null,{"$f":"'Project Scope'!R255","v":""},null,{"$f":"'Project Scope'!U255","v":""},{"$f":"IF('Project Scope'!V255=\"\",\"\",'Project Scope'!V255+'Project Scope'!W255)","v":""},{"$f":"'Project Scope'!Y255","v":""},null,{"$f":"'Project Scope'!X255","v":""}]
[{"$f":"'Project Scope'!Q256","v":""},null,null,null,{"$f":"'Project Scope'!R256","v":""},null,{"$f":"'Project Scope'!U256","v":""},{"$f":"IF('Project Scope'!V256=\"\",\"\",'Project Scope'!V256+'Project Scope'!W256)","v":""},{"$f":"'Project Scope'!Y256","v":""},null,{"$f":"'Project Scope'!X256","v":""}]
[{"$f":"'Project Scope'!Q257","v":""},null,null,null,{"$f":"'Project Scope'!R257","v":""},null,{"$f":"'Project Scope'!U257","v":""},{"$f":"IF('Project Scope'!V257=\"\",\"\",'Project Scope'!V257+'Project Scope'!W257)","v":""},{"$f":"'Project Scope'!Y257","v":""},null,{"$f":"'Project Scope'!X257","v":""}]
[{"$f":"'Project Scope'!Q258","v":""},null,null,null,{"$f":"'Project Scope'!R258","v":""},null,{"$f":"'Project Scope'!U258","v":""},{"$f":"IF('Project Scope'!V258=\"\",\"\",'Project Scope'!V258+'Project Scope'!W258)","v":""},{"$f":"'Project Scope'!Y258","v":""},null,{"$f":"'Project Scope'!X258","v":""}]
[{"$f":"'Project Scope'!Q259","v":""},null,null,null,{"$f":"'Project Scope'!R259","v":""},null,{"$f":"'Project Scope'!U259","v":""},{"$f":"IF('Project Scope'!V259=\"\",\"\",'Project Scope'!V259+'Project Scope'!W259)","v":""},{"$f":"'Project Scope'!Y259","v":""},null,{"$f":"'Project Scope'!X259","v":""}]
[{"$f":"'Project Scope'!Q260","v":""},null,null,null,{"$f":"'Project Scope'!R260","v":""},null,{"$f":"'Project Scope'!U260","v":""},{"$f":"IF('Project Scope'!V260=\"\",\"\",'Project Scope'!V260+'Project Scope'!W260)","v":""},{"$f":"'Project Scope'!Y260","v":""},null,{"$f":"'Project Scope'!X260","v":""}]
[{"$f":"'Project Scope'!Q261","v":""},null,null,null,{"$f":"'Project Scope'!R261","v":""},null,{"$f":"'Project Scope'!U261","v":""},{"$f":"IF('Project Scope'!V261=\"\",\"\",'Project Scope'!V261+'Project Scope'!W261)","v":""},{"$f":"'Project Scope'!Y261","v":""},null,{"$f":"'Project Scope'!X261","v":""}]
[{"$f":"'Project Scope'!Q262","v":""},null,null,null,{"$f":"'Project Scope'!R262","v":""},null,{"$f":"'Project Scope'!U262","v":""},{"$f":"IF('Project Scope'!V262=\"\",\"\",'Project Scope'!V262+'Project Scope'!W262)","v":""},{"$f":"'Project Scope'!Y262","v":""},null,{"$f":"'Project Scope'!X262","v":""}]
[{"$f":"'Project Scope'!Q263","v":""},null,null,null,{"$f":"'Project Scope'!R263","v":""},null,{"$f":"'Project Scope'!U263","v":""},{"$f":"IF('Project Scope'!V263=\"\",\"\",'Project Scope'!V263+'Project Scope'!W263)","v":""},{"$f":"'Project Scope'!Y263","v":""},null,{"$f":"'Project Scope'!X263","v":""}]
[{"$f":"'Project Scope'!Q264","v":""},null,null,null,{"$f":"'Project Scope'!R264","v":""},null,{"$f":"'Project Scope'!U264","v":""},{"$f":"IF('Project Scope'!V264=\"\",\"\",'Project Scope'!V264+'Project Scope'!W264)","v":""},{"$f":"'Project Scope'!Y264","v":""},null,{"$f":"'Project Scope'!X264","v":""}]
[{"$f":"'Project Scope'!Q265","v":""},null,null,null,{"$f":"'Project Scope'!R265","v":""},null,{"$f":"'Project Scope'!U265","v":""},{"$f":"IF('Project Scope'!V265=\"\",\"\",'Project Scope'!V265+'Project Scope'!W265)","v":""},{"$f":"'Project Scope'!Y265","v":""},null,{"$f":"'Project Scope'!X265","v":""}]
[{"$f":"'Project Scope'!Q266","v":""},null,null,null,{"$f":"'Project Scope'!R266","v":""},null,{"$f":"'Project Scope'!U266","v":""},{"$f":"IF('Project Scope'!V266=\"\",\"\",'Project Scope'!V266+'Project Scope'!W266)","v":""},{"$f":"'Project Scope'!Y266","v":""},null,{"$f":"'Project Scope'!X266","v":""}]
[{"$f":"'Project Scope'!Q267","v":""},null,null,null,{"$f":"'Project Scope'!R267","v":""},null,{"$f":"'Project Scope'!U267","v":""},{"$f":"IF('Project Scope'!V267=\"\",\"\",'Project Scope'!V267+'Project Scope'!W267)","v":""},{"$f":"'Project Scope'!Y267","v":""},null,{"$f":"'Project Scope'!X267","v":""}]
[{"$f":"'Project Scope'!Q268","v":""},null,null,null,{"$f":"'Project Scope'!R268","v":""},null,{"$f":"'Project Scope'!U268","v":""},{"$f":"IF('Project Scope'!V268=\"\",\"\",'Project Scope'!V268+'Project Scope'!W268)","v":""},{"$f":"'Project Scope'!Y268","v":""},null,{"$f":"'Project Scope'!X268","v":""}]
[{"$f":"'Project Scope'!Q269","v":""},null,null,null,{"$f":"'Project Scope'!R269","v":""},null,{"$f":"'Project Scope'!U269","v":""},{"$f":"IF('Project Scope'!V269=\"\",\"\",'Project Scope'!V269+'Project Scope'!W269)","v":""},{"$f":"'Project Scope'!Y269","v":""},null,{"$f":"'Project Scope'!X269","v":""}]
[{"$f":"'Project Scope'!Q270","v":""},null,null,null,{"$f":"'Project Scope'!R270","v":""},null,{"$f":"'Project Scope'!U270","v":""},{"$f":"IF('Project Scope'!V270=\"\",\"\",'Project Scope'!V270+'Project Scope'!W270)","v":""},{"$f":"'Project Scope'!Y270","v":""},null,{"$f":"'Project Scope'!X270","v":""}]
[{"$f":"'Project Scope'!Q271","v":""},null,null,null,{"$f":"'Project Scope'!R271","v":""},null,{"$f":"'Project Scope'!U271","v":""},{"$f":"IF('Project Scope'!V271=\"\",\"\",'Project Scope'!V271+'Project Scope'!W271)","v":""},{"$f":"'Project Scope'!Y271","v":""},null,{"$f":"'Project Scope'!X271","v":""}]
[{"$f":"'Project Scope'!Q272","v":""},null,null,null,{"$f":"'Project Scope'!R272","v":""},null,{"$f":"'Project Scope'!U272","v":""},{"$f":"IF('Project Scope'!V272=\"\",\"\",'Project Scope'!V272+'Project Scope'!W272)","v":""},{"$f":"'Project Scope'!Y272","v":""},null,{"$f":"'Project Scope'!X272","v":""}]
[{"$f":"'Project Scope'!Q273","v":""},null,null,null,{"$f":"'Project Scope'!R273","v":""},null,{"$f":"'Project Scope'!U273","v":""},{"$f":"IF('Project Scope'!V273=\"\",\"\",'Project Scope'!V273+'Project Scope'!W273)","v":""},{"$f":"'Project Scope'!Y273","v":""},null,{"$f":"'Project Scope'!X273","v":""}]
[{"$f":"'Project Scope'!Q274","v":""},null,null,null,{"$f":"'Project Scope'!R274","v":""},null,{"$f":"'Project Scope'!U274","v":""},{"$f":"IF('Project Scope'!V274=\"\",\"\",'Project Scope'!V274+'Project Scope'!W274)","v":""},{"$f":"'Project Scope'!Y274","v":""},null,{"$f":"'Project Scope'!X274","v":""}]
[{"$f":"'Project Scope'!Q275","v":""},null,null,null,{"$f":"'Project Scope'!R275","v":""},null,{"$f":"'Project Scope'!U275","v":""},{"$f":"IF('Project Scope'!V275=\"\",\"\",'Project Scope'!V275+'Project Scope'!W275)","v":""},{"$f":"'Project Scope'!Y275","v":""},null,{"$f":"'Project Scope'!X275","v":""}]
[{"$f":"'Project Scope'!Q276","v":""},null,null,null,{"$f":"'Project Scope'!R276","v":""},null,{"$f":"'Project Scope'!U276","v":""},{"$f":"IF('Project Scope'!V276=\"\",\"\",'Project Scope'!V276+'Project Scope'!W276)","v":""},{"$f":"'Project Scope'!Y276","v":""},null,{"$f":"'Project Scope'!X276","v":""}]
[{"$f":"'Project Scope'!Q277","v":""},null,null,null,{"$f":"'Project Scope'!R277","v":""},null,{"$f":"'Project Scope'!U277","v":""},{"$f":"IF('Project Scope'!V277=\"\",\"\",'Project Scope'!V277+'Project Scope'!W277)","v":""},{"$f":"'Project Scope'!Y277","v":""},null,{"$f":"'Project Scope'!X277","v":""}]
[{"$f":"'Project Scope'!Q278","v":""},null,null,null,{"$f":"'Project Scope'!R278","v":""},null,{"$f":"'Project Scope'!U278","v":""},{"$f":"IF('Project Scope'!V278=\"\",\"\",'Project Scope'!V278+'Project Scope'!W278)","v":""},{"$f":"'Project Scope'!Y278","v":""},null,{"$f":"'Project Scope'!X278","v":""}]
[{"$f":"'Project Scope'!Q279","v":""},null,null,null,{"$f":"'Project Scope'!R279","v":""},null,{"$f":"'Project Scope'!U279","v":""},{"$f":"IF('Project Scope'!V279=\"\",\"\",'Project Scope'!V279+'Project Scope'!W279)","v":""},{"$f":"'Project Scope'!Y279","v":""},null,{"$f":"'Project Scope'!X279","v":""}]
[{"$f":"'Project Scope'!Q280","v":""},null,null,null,{"$f":"'Project Scope'!R280","v":""},null,{"$f":"'Project Scope'!U280","v":""},{"$f":"IF('Project Scope'!V280=\"\",\"\",'Project Scope'!V280+'Project Scope'!W280)","v":""},{"$f":"'Project Scope'!Y280","v":""},null,{"$f":"'Project Scope'!X280","v":""}]
[{"$f":"'Project Scope'!Q281","v":""},null,null,null,{"$f":"'Project Scope'!R281","v":""},null,{"$f":"'Project Scope'!U281","v":""},{"$f":"IF('Project Scope'!V281=\"\",\"\",'Project Scope'!V281+'Project Scope'!W281)","v":""},{"$f":"'Project Scope'!Y281","v":""},null,{"$f":"'Project Scope'!X281","v":""}]
[{"$f":"'Project Scope'!Q282","v":""},null,null,null,{"$f":"'Project Scope'!R282","v":""},null,{"$f":"'Project Scope'!U282","v":""},{"$f":"IF('Project Scope'!V282=\"\",\"\",'Project Scope'!V282+'Project Scope'!W282)","v":""},{"$f":"'Project Scope'!Y282","v":""},null,{"$f":"'Project Scope'!X282","v":""}]
[{"$f":"'Project Scope'!Q283","v":""},null,null,null,{"$f":"'Project Scope'!R283","v":""},null,{"$f":"'Project Scope'!U283","v":""},{"$f":"IF('Project Scope'!V283=\"\",\"\",'Project Scope'!V283+'Project Scope'!W283)","v":""},{"$f":"'Project Scope'!Y283","v":""},null,{"$f":"'Project Scope'!X283","v":""}]
[{"$f":"'Project Scope'!Q284","v":""},null,null,null,{"$f":"'Project Scope'!R284","v":""},null,{"$f":"'Project Scope'!U284","v":""},{"$f":"IF('Project Scope'!V284=\"\",\"\",'Project Scope'!V284+'Project Scope'!W284)","v":""},{"$f":"'Project Scope'!Y284","v":""},null,{"$f":"'Project Scope'!X284","v":""}]
[{"$f":"'Project Scope'!Q285","v":""},null,null,null,{"$f":"'Project Scope'!R285","v":""},null,{"$f":"'Project Scope'!U285","v":""},{"$f":"IF('Project Scope'!V285=\"\",\"\",'Project Scope'!V285+'Project Scope'!W285)","v":""},{"$f":"'Project Scope'!Y285","v":""},null,{"$f":"'Project Scope'!X285","v":""}]
[{"$f":"'Project Scope'!Q286","v":""},null,null,null,{"$f":"'Project Scope'!R286","v":""},null,{"$f":"'Project Scope'!U286","v":""},{"$f":"IF('Project Scope'!V286=\"\",\"\",'Project Scope'!V286+'Project Scope'!W286)","v":""},{"$f":"'Project Scope'!Y286","v":""},null,{"$f":"'Project Scope'!X286","v":""}]
[{"$f":"'Project Scope'!Q287","v":""},null,null,null,{"$f":"'Project Scope'!R287","v":""},null,{"$f":"'Project Scope'!U287","v":""},{"$f":"IF('Project Scope'!V287=\"\",\"\",'Project Scope'!V287+'Project Scope'!W287)","v":""},{"$f":"'Project Scope'!Y287","v":""},null,{"$f":"'Project Scope'!X287","v":""}]
[{"$f":"'Project Scope'!Q288","v":""},null,null,null,{"$f":"'Project Scope'!R288","v":""},null,{"$f":"'Project Scope'!U288","v":""},{"$f":"IF('Project Scope'!V288=\"\",\"\",'Project Scope'!V288+'Project Scope'!W288)","v":""},{"$f":"'Project Scope'!Y288","v":""},null,{"$f":"'Project Scope'!X288","v":""}]
[{"$f":"'Project Scope'!Q289","v":""},null,null,null,{"$f":"'Project Scope'!R289","v":""},null,{"$f":"'Project Scope'!U289","v":""},{"$f":"IF('Project Scope'!V289=\"\",\"\",'Project Scope'!V289+'Project Scope'!W289)","v":""},{"$f":"'Project Scope'!Y289","v":""},null,{"$f":"'Project Scope'!X289","v":""}]
[{"$f":"'Project Scope'!Q290","v":""},null,null,null,{"$f":"'Project Scope'!R290","v":""},null,{"$f":"'Project Scope'!U290","v":""},{"$f":"IF('Project Scope'!V290=\"\",\"\",'Project Scope'!V290+'Project Scope'!W290)","v":""},{"$f":"'Project Scope'!Y290","v":""},null,{"$f":"'Project Scope'!X290","v":""}]
[{"$f":"'Project Scope'!Q291","v":""},null,null,null,{"$f":"'Project Scope'!R291","v":""},null,{"$f":"'Project Scope'!U291","v":""},{"$f":"IF('Project Scope'!V291=\"\",\"\",'Project Scope'!V291+'Project Scope'!W291)","v":""},{"$f":"'Project Scope'!Y291","v":""},null,{"$f":"'Project Scope'!X291","v":""}]
[{"$f":"'Project Scope'!Q292","v":""},null,null,null,{"$f":"'Project Scope'!R292","v":""},null,{"$f":"'Project Scope'!U292","v":""},{"$f":"IF('Project Scope'!V292=\"\",\"\",'Project Scope'!V292+'Project Scope'!W292)","v":""},{"$f":"'Project Scope'!Y292","v":""},null,{"$f":"'Project Scope'!X292","v":""}]
[{"$f":"'Project Scope'!Q293","v":""},null,null,null,{"$f":"'Project Scope'!R293","v":""},null,{"$f":"'Project Scope'!U293","v":""},{"$f":"IF('Project Scope'!V293=\"\",\"\",'Project Scope'!V293+'Project Scope'!W293)","v":""},{"$f":"'Project Scope'!Y293","v":""},null,{"$f":"'Project Scope'!X293","v":""}]
[{"$f":"'Project Scope'!Q294","v":""},null,null,null,{"$f":"'Project Scope'!R294","v":""},null,{"$f":"'Project Scope'!U294","v":""},{"$f":"IF('Project Scope'!V294=\"\",\"\",'Project Scope'!V294+'Project Scope'!W294)","v":""},{"$f":"'Project Scope'!Y294","v":""},null,{"$f":"'Project Scope'!X294","v":""}]
[{"$f":"'Project Scope'!Q295","v":""},null,null,null,{"$f":"'Project Scope'!R295","v":""},null,{"$f":"'Project Scope'!U295","v":""},{"$f":"IF('Project Scope'!V295=\"\",\"\",'Project Scope'!V295+'Project Scope'!W295)","v":""},{"$f":"'Project Scope'!Y295","v":""},null,{"$f":"'Project Scope'!X295","v":""}]
[{"$f":"'Project Scope'!Q296","v":""},null,null,null,{"$f":"'Project Scope'!R296","v":""},null,{"$f":"'Project Scope'!U296","v":""},{"$f":"IF('Project Scope'!V296=\"\",\"\",'Project Scope'!V296+'Project Scope'!W296)","v":""},{"$f":"'Project Scope'!Y296","v":""},null,{"$f":"'Project Scope'!X296","v":""}]
[{"$f":"'Project Scope'!Q297","v":""},null,null,null,{"$f":"'Project Scope'!R297","v":""},null,{"$f":"'Project Scope'!U297","v":""},{"$f":"IF('Project Scope'!V297=\"\",\"\",'Project Scope'!V297+'Project Scope'!W297)","v":""},{"$f":"'Project Scope'!Y297","v":""},null,{"$f":"'Project Scope'!X297","v":""}]
[{"$f":"'Project Scope'!Q298","v":""},null,null,null,{"$f":"'Project Scope'!R298","v":""},null,{"$f":"'Project Scope'!U298","v":""},{"$f":"IF('Project Scope'!V298=\"\",\"\",'Project Scope'!V298+'Project Scope'!W298)","v":""},{"$f":"'Project Scope'!Y298","v":""},null,{"$f":"'Project Scope'!X298","v":""}]
[{"$f":"'Project Scope'!Q299","v":""},null,null,null,{"$f":"'Project Scope'!R299","v":""},null,{"$f":"'Project Scope'!U299","v":""},{"$f":"IF('Project Scope'!V299=\"\",\"\",'Project Scope'!V299+'Project Scope'!W299)","v":""},{"$f":"'Project Scope'!Y299","v":""},null,{"$f":"'Project Scope'!X299","v":""}]
[{"$f":"'Project Scope'!Q300","v":""},null,null,null,{"$f":"'Project Scope'!R300","v":""},null,{"$f":"'Project Scope'!U300","v":""},{"$f":"IF('Project Scope'!V300=\"\",\"\",'Project Scope'!V300+'Project Scope'!W300)","v":""},{"$f":"'Project Scope'!Y300","v":""},null,{"$f":"'Project Scope'!X300","v":""}]
[{"$f":"'Project Scope'!Q301","v":""},null,null,null,{"$f":"'Project Scope'!R301","v":""},null,{"$f":"'Project Scope'!U301","v":""},{"$f":"IF('Project Scope'!V301=\"\",\"\",'Project Scope'!V301+'Project Scope'!W301)","v":""},{"$f":"'Project Scope'!Y301","v":""},null,{"$f":"'Project Scope'!X301","v":""}]
[{"$f":"'Project Scope'!Q302","v":""},null,null,null,{"$f":"'Project Scope'!R302","v":""},null,{"$f":"'Project Scope'!U302","v":""},{"$f":"IF('Project Scope'!V302=\"\",\"\",'Project Scope'!V302+'Project Scope'!W302)","v":""},{"$f":"'Project Scope'!Y302","v":""},null,{"$f":"'Project Scope'!X302","v":""}]
[{"$f":"'Project Scope'!Q303","v":""},null,null,null,{"$f":"'Project Scope'!R303","v":""},null,{"$f":"'Project Scope'!U303","v":""},{"$f":"IF('Project Scope'!V303=\"\",\"\",'Project Scope'!V303+'Project Scope'!W303)","v":""},{"$f":"'Project Scope'!Y303","v":""},null,{"$f":"'Project Scope'!X303","v":""}]
[{"$f":"'Project Scope'!Q304","v":""},null,null,null,{"$f":"'Project Scope'!R304","v":""},null,{"$f":"'Project Scope'!U304","v":""},{"$f":"IF('Project Scope'!V304=\"\",\"\",'Project Scope'!V304+'Project Scope'!W304)","v":""},{"$f":"'Project Scope'!Y304","v":""},null,{"$f":"'Project Scope'!X304","v":""}]
[{"$f":"'Project Scope'!Q305","v":""},null,null,null,{"$f":"'Project Scope'!R305","v":""},null,{"$f":"'Project Scope'!U305","v":""},{"$f":"IF('Project Scope'!V305=\"\",\"\",'Project Scope'!V305+'Project Scope'!W305)","v":""},{"$f":"'Project Scope'!Y305","v":""},null,{"$f":"'Project Scope'!X305","v":""}]
[{"$f":"'Project Scope'!Q306","v":""},null,null,null,{"$f":"'Project Scope'!R306","v":""},null,{"$f":"'Project Scope'!U306","v":""},{"$f":"IF('Project Scope'!V306=\"\",\"\",'Project Scope'!V306+'Project Scope'!W306)","v":""},{"$f":"'Project Scope'!Y306","v":""},null,{"$f":"'Project Scope'!X306","v":""}]
[{"$f":"'Project Scope'!Q307","v":""},null,null,null,{"$f":"'Project Scope'!R307","v":""},null,{"$f":"'Project Scope'!U307","v":""},{"$f":"IF('Project Scope'!V307=\"\",\"\",'Project Scope'!V307+'Project Scope'!W307)","v":""},{"$f":"'Project Scope'!Y307","v":""},null,{"$f":"'Project Scope'!X307","v":""}]
[{"$f":"'Project Scope'!Q308","v":""},null,null,null,{"$f":"'Project Scope'!R308","v":""},null,{"$f":"'Project Scope'!U308","v":""},{"$f":"IF('Project Scope'!V308=\"\",\"\",'Project Scope'!V308+'Project Scope'!W308)","v":""},{"$f":"'Project Scope'!Y308","v":""},null,{"$f":"'Project Scope'!X308","v":""}]
[{"$f":"'Project Scope'!Q309","v":""},null,null,null,{"$f":"'Project Scope'!R309","v":""},null,{"$f":"'Project Scope'!U309","v":""},{"$f":"IF('Project Scope'!V309=\"\",\"\",'Project Scope'!V309+'Project Scope'!W309)","v":""},{"$f":"'Project Scope'!Y309","v":""},null,{"$f":"'Project Scope'!X309","v":""}]
[{"$f":"'Project Scope'!Q310","v":""},null,null,null,{"$f":"'Project Scope'!R310","v":""},null,{"$f":"'Project Scope'!U310","v":""},{"$f":"IF('Project Scope'!V310=\"\",\"\",'Project Scope'!V310+'Project Scope'!W310)","v":""},{"$f":"'Project Scope'!Y310","v":""},null,{"$f":"'Project Scope'!X310","v":""}]
[]
["Ancillary Costs",null,null,null,null,null,null,{"$f":"'Project Information'!L41","v":0},{"$f":"H278-K278","v":0},null,0]
["Taxes",null,null,null,null,null,null,{"$f":"'Project Information'!L43","v":0},{"$f":"H279-K279","v":0},null,0]
["Rounding Adjustment",null,null,null,null,null,null,null,{"$f":"'Project Information'!L46-SUM(I77:I279)","v":0},null,{"$f":"'Project Information'!L45-'Project Information'!L42*'Other Data'!H83","v":0}]
["Totals",null,null,null,null,null,null,{"$f":"SUM(H77:H280)","v":0},{"$f":"SUM(I77:I280)","v":0},null,{"$f":"SUM(K77:K280)","v":0}]

{"sheet":"Bill of Materials","index":6,"n_rows":129,"n_cols":16,"rows_kept":129,"cut":false,"hidden":false,"merged":[[122,0,122,6],[122,10,122,11],[123,0,123,6],[123,10,123,11],[124,0,124,6],[124,10,124,11],[125,0,125,6],[125,10,125,11],[126,0,126,6],[126,10,126,11],[117,0,117,6],[117,10,117,11],[118,0,118,6],[118,10,118,11],[119,0,119,6],[119,10,119,11],[120,0,120,6],[120,10,120,11],[121,0,121,6],[121,10,121,11],[112,0,112,6],[112,10,112,11],[113,0,113,6],[113,10,113,11],[114,0,114,6],[114,10,114,11],[115,0,115,6],[115,10,115,11],[116,0,116,6],[116,10,116,11],[106,0,106,6],[106,10,106,11],[107,0,107,6],[107,10,107,11],[108,0,108,6],[108,10,108,11],[109,0,109,6],[109,10,109,11],[111,0,111,6],[111,10,111,11],[101,0,101,6],[101,10,101,11],[102,0,102,6],[102,10,102,11],[103,0,103,6],[103,10,103,11],[104,0,104,6],[104,10,104,11],[105,0,105,6],[105,10,105,11],[96,0,96,6],[96,10,96,11],[97,0,97,6],[97,10,97,11],[98,0,98,6],[98,10,98,11],[99,0,99,6],[99,10,99,11],[100,0,100,6],[100,10,100,11],[91,0,91,6],[91,10,91,11],[92,0,92,6],[92,10,92,11],[93,0,93,6],[93,10,93,11],[94,0,94,6],[94,10,94,11],[95,0,95,6],[95,10,95,11],[85,10,85,11],[110,10,110,11],[128,10,128,11],[82,10,82,11],[83,10,83,11],[84,10,84,11],[127,10,127,11],[82,0,82,6],[83,0,83,6],[84,0,84,6],[85,0,85,6],[110,0,110,6],[127,0,127,6],[128,0,128,6],[86,0,86,6],[86,10,86,11],[87,0,87,6],[87,10,87,11],[88,0,88,6],[88,10,88,11],[89,0,89,6],[89,10,89,11],[90,0,90,6],[90,10,90,11],[79,10,79,11],[80,10,80,11],[81,10,81,11],[76,10,76,11],[77,10,77,11],[78,10,78,11],[76,0,76,6],[77,0,77,6],[78,0,78,6],[79,0,79,6],[80,0,80,6],[81,0,81,6],[73,10,73,11],[74,10,74,11],[75,10,75,11],[70,10,70,11],[71,10,71,11],[72,10,72,11],[70,0,70,6],[71,0,71,6],[72,0,72,6],[73,0,73,6],[74,0,74,6],[75,0,75,6],[67,10,67,11],[68,10,68,11],[69,10,69,11],[64,10,64,11],[65,10,65,11],[66,10,66,11],[64,0,64,6],[65,0,65,6],[66,0,66,6],[67,0,67,6],[68,0,68,6],[69,0,69,6],[61,10,61,11],[62,10,62,11],[63,10,63,11],[58,10,58,11],[59,10,59,11],[60,10,60,11],[58,0,58,6],[59,0,59,6],[60,0,60,6],[61,0,61,6],[62,0,62,6],[63,0,63,6],[55,10,55,11],[56,10,56,11],[57,10,57,11],[52,10,52,11],[53,10,53,11],[54,10,54,11],[52,0,52,6],[53,0,53,6],[54,0,54,6],[55,0,55,6],[56,0,56,6],[57,0,57,6],[49,10,49,11],[50,10,50,11],[51,10,51,11],[46,10,46,11],[47,10,47,11],[48,10,48,11],[46,0,46,6],[47,0,47,6],[48,0,48,6],[49,0,49,6],[50,0,50,6],[51,0,51,6],[43,10,43,11],[44,10,44,11],[45,10,45,11],[40,10,40,11],[41,10,41,11],[42,10,42,11],[40,0,40,6],[41,0,41,6],[42,0,42,6],[43,0,43,6],[44,0,44,6],[45,0,45,6],[37,10,37,11],[38,10,38,11],[39,10,39,11],[34,10,34,11],[35,10,35,11],[36,10,36,11],[34,0,34,6],[35,0,35,6],[36,0,36,6],[37,0,37,6],[38,0,38,6],[39,0,39,6],[11,3,11,5],[12,0,12,11],[27,10,27,11],[31,10,31,11],[32,10,32,11],[33,10,33,11],[28,10,28,11],[29,10,29,11],[30,10,30,11],[26,0,26,11],[28,0,28,6],[29,0,29,6],[27,0,27,6],[30,0,30,6],[31,0,31,6],[32,0,32,6],[33,0,33,6]]}
[null,null,null,"COMMERCIAL & INDUSTRIAL PRESCRIPTIVE LIGHTING SOLUTIONS"]
[null,null,null,"OUTDOOR LIGHTING RETROFIT APPLICATION"]
[null,null,null,"BILL OF MATERIALS FORM"]
[null,null,null,{"$f":"'Project Information'!$B$2","v":"Cost-effective Lighting Investment Calculator (CLIC) CIPI FON-022-2026"}]
[]
[null,null,"Company Name:",{"$f":"'Project Information'!$D$5","v":0}]
[null,null,"Qualified Partner #1:",{"$f":"'Project Information'!$D$6","v":0}]
[null,null,"Qualified Partner #2:",{"$f":"IF('Project Information'!$D$8<>\"\",'Project Information'!$D$8,\"\")","v":""}]
[null,null,"Facility Name:",{"$f":"'Project Information'!$D$18","v":0},null,null,null,null,null,null,null,""]
[null,null,"Installation Address:",{"$f":"'Project Information'!$D$23","v":0}]
[null,null,"    City:",{"$f":"'Project Information'!$D$25","v":0},null,null,"State:","Maine","Zip:",{"$f":"'Project Information'!$F$25","v":0}]
[null,null,"Reference Number:",{"$f":"'Project Information'!K2","v":0}]
["This Bill of Materials Form is to be used by the Participating Qualified Partner to order eligible Measures for the above listed Facility.  Participating Qualified Partner agrees to pay for all measures listed in Section B of this form.\n\nThe work to be performed by the Participating Qualified Partner in connection with the project shall be comprised of the measures and quantities listed in Section B."]
["`"]
[]
[]
[]
[]
[]
[]
[]
[]
["Participating Qualified Partner",null,null,null,null,null,"Date"]
[]
[]
[]
["Section B. List of Measures"]
["Measure Description ",null,null,null,null,null,null,"Qty","Material Cost per Unit","Tax on Materials (5.5%)","Total Cost",null,null,null,"Unique Measures"]
[{"$f":"IF(ISBLANK('Project Scope'!AD111),\"\",'Project Scope'!AD111)","v":""},null,null,null,null,null,null,{"$f":"IFERROR(IF($A29=\"\",\"\",SUMIFS('Project Scope'!U$111:U$310,'Project Scope'!$Q$111:$Q$310,$O29,'Project Scope'!$P$111:$P$310,$P29)),\"\")","v":""},{"$f":"IFERROR(IF($A29=\"\",\"\",SUMIFS('Project Scope'!W$111:W$310,'Project Scope'!$Q$111:$Q$310,$O29,'Project Scope'!$P$111:$P$310,$P29)/H29),0)","v":""},{"$f":"IF($A29=\"\",\"\",IF('Project Information'!$D$34=\"yes\",0,$I29*taxrate))","v":""},{"$f":"IF($A29=\"\",\"\",SUM(I29:J29)*H29)","v":""},null,null,null,{"$f":"IF(A29=\"\",\"\",IFERROR(LEFT(A29,FIND(\"[\",A29)-2),A29))","v":""},{"$f":"IF(A29=\"\",\"\",IFERROR(MID(A29,FIND(\"[\",A29)+1,LEN(A29)-7-FIND(\"[\",A29)+1),0))","v":""}]
[{"$f":"IF(ISBLANK('Project Scope'!AD112),\"\",'Project Scope'!AD112)","v":""},null,null,null,null,null,null,{"$f":"IFERROR(IF($A30=\"\",\"\",SUMIFS('Project Scope'!U$111:U$310,'Project Scope'!$Q$111:$Q$310,$O30,'Project Scope'!$P$111:$P$310,$P30)),\"\")","v":""},{"$f":"IFERROR(IF($A30=\"\",\"\",SUMIFS('Project Scope'!W$111:W$310,'Project Scope'!$Q$111:$Q$310,$O30,'Project Scope'!$P$111:$P$310,$P30)/H30),\"\")","v":""},{"$f":"IF($A30=\"\",\"\",IF('Project Information'!$D$34=\"yes\",0,$I30*taxrate))","v":""},{"$f":"IF($A30=\"\",\"\",SUM(I30:J30)*H30)","v":""},null,null,null,{"$f":"IF(A30=\"\",\"\",IFERROR(LEFT(A30,FIND(\"[\",A30)-2),A30))","v":""},{"$f":"IF(A30=\"\",\"\",IFERROR(MID(A30,FIND(\"[\",A30)+1,LEN(A30)-7-FIND(\"[\",A30)+1),0))","v":""}]
[{"$f":"IF(ISBLANK('Project Scope'!AD113),\"\",'Project Scope'!AD113)","v":""},null,null,null,null,null,null,{"$f":"IFERROR(IF($A31=\"\",\"\",SUMIFS('Project Scope'!U$111:U$310,'Project Scope'!$Q$111:$Q$310,$O31,'Project Scope'!$P$111:$P$310,$P31)),\"\")","v":""},{"$f":"IFERROR(IF($A31=\"\",\"\",SUMIFS('Project Scope'!W$111:W$310,'Project Scope'!$Q$111:$Q$310,$O31,'Project Scope'!$P$111:$P$310,$P31)/H31),\"\")","v":""},{"$f":"IF($A31=\"\",\"\",IF('Project Information'!$D$34=\"yes\",0,$I31*taxrate))","v":""},"",null,null,null,"",""]
[{"$f":"IF(ISBLANK('Project Scope'!AD114),\"\",'Project Scope'!AD114)","v":""},null,null,null,null,null,null,{"$f":"IFERROR(IF($A32=\"\",\"\",SUMIFS('Project Scope'!U$111:U$310,'Project Scope'!$Q$111:$Q$310,$O32,'Project Scope'!$P$111:$P$310,$P32)),\"\")","v":""},{"$f":"IFERROR(IF($A32=\"\",\"\",SUMIFS('Project Scope'!W$111:W$310,'Project Scope'!$Q$111:$Q$310,$O32,'Project Scope'!$P$111:$P$310,$P32)/H32),\"\")","v":""},{"$f":"IF($A32=\"\",\"\",IF('Project Information'!$D$34=\"yes\",0,$I32*taxrate))","v":""},"",null,null,null,"",""]
[{"$f":"IF(ISBLANK('Project Scope'!AD115),\"\",'Project Scope'!AD115)","v":""},null,null,null,null,null,null,{"$f":"IFERROR(IF($A33=\"\",\"\",SUMIFS('Project Scope'!U$111:U$310,'Project Scope'!$Q$111:$Q$310,$O33,'Project Scope'!$P$111:$P$310,$P33)),\"\")","v":""},{"$f":"IFERROR(IF($A33=\"\",\"\",SUMIFS('Project Scope'!W$111:W$310,'Project Scope'!$Q$111:$Q$310,$O33,'Project Scope'!$P$111:$P$310,$P33)/H33),\"\")","v":""},{"$f":"IF($A33=\"\",\"\",IF('Project Information'!$D$34=\"yes\",0,$I33*taxrate))","v":""},"",null,null,null,"",""]
[{"$f":"IF(ISBLANK('Project Scope'!AD116),\"\",'Project Scope'!AD116)","v":""},null,null,null,null,null,null,{"$f":"IFERROR(IF($A34=\"\",\"\",SUMIFS('Project Scope'!U$111:U$310,'Project Scope'!$Q$111:$Q$310,$O34,'Project Scope'!$P$111:$P$310,$P34)),\"\")","v":""},{"$f":"IFERROR(IF($A34=\"\",\"\",SUMIFS('Project Scope'!W$111:W$310,'Project Scope'!$Q$111:$Q$310,$O34,'Project Scope'!$P$111:$P$310,$P34)/H34),\"\")","v":""},{"$f":"IF($A34=\"\",\"\",IF('Project Information'!$D$34=\"yes\",0,$I34*taxrate))","v":""},"",null,null,null,"",""]
[{"$f":"IF(ISBLANK('Project Scope'!AD117),\"\",'Project Scope'!AD117)","v":""},null,null,null,null,null,null,{"$f":"IFERROR(IF($A35=\"\",\"\",SUMIFS('Project Scope'!U$111:U$310,'Project Scope'!$Q$111:$Q$310,$O35,'Project Scope'!$P$111:$P$310,$P35)),\"\")","v":""},{"$f":"IFERROR(IF($A35=\"\",\"\",SUMIFS('Project Scope'!W$111:W$310,'Project Scope'!$Q$111:$Q$310,$O35,'Project Scope'!$P$111:$P$310,$P35)/H35),\"\")","v":""},{"$f":"IF($A35=\"\",\"\",IF('Project Information'!$D$34=\"yes\",0,$I35*taxrate))","v":""},"",null,null,null,"",""]
[{"$f":"IF(ISBLANK('Project Scope'!AD118),\"\",'Project Scope'!AD118)","v":""},null,null,null,null,null,null,{"$f":"IFERROR(IF($A36=\"\",\"\",SUMIFS('Project Scope'!U$111:U$310,'Project Scope'!$Q$111:$Q$310,$O36,'Project Scope'!$P$111:$P$310,$P36)),\"\")","v":""},{"$f":"IFERROR(IF($A36=\"\",\"\",SUMIFS('Project Scope'!W$111:W$310,'Project Scope'!$Q$111:$Q$310,$O36,'Project Scope'!$P$111:$P$310,$P36)/H36),\"\")","v":""},{"$f":"IF($A36=\"\",\"\",IF('Project Information'!$D$34=\"yes\",0,$I36*taxrate))","v":""},"",null,null,null,"",""]
[{"$f":"IF(ISBLANK('Project Scope'!AD119),\"\",'Project Scope'!AD119)","v":""},null,null,null,null,null,null,{"$f":"IFERROR(IF($A37=\"\",\"\",SUMIFS('Project Scope'!U$111:U$310,'Project Scope'!$Q$111:$Q$310,$O37,'Project Scope'!$P$111:$P$310,$P37)),\"\")","v":""},{"$f":"IFERROR(IF($A37=\"\",\"\",SUMIFS('Project Scope'!W$111:W$310,'Project Scope'!$Q$111:$Q$310,$O37,'Project Scope'!$P$111:$P$310,$P37)/H37),\"\")","v":""},{"$f":"IF($A37=\"\",\"\",IF('Project Information'!$D$34=\"yes\",0,$I37*taxrate))","v":""},"",null,null,null,"",""]
[{"$f":"IF(ISBLANK('Project Scope'!AD120),\"\",'Project Scope'!AD120)","v":""},null,null,null,null,null,null,{"$f":"IFERROR(IF($A38=\"\",\"\",SUMIFS('Project Scope'!U$111:U$310,'Project Scope'!$Q$111:$Q$310,$O38,'Project Scope'!$P$111:$P$310,$P38)),\"\")","v":""},{"$f":"IFERROR(IF($A38=\"\",\"\",SUMIFS('Project Scope'!W$111:W$310,'Project Scope'!$Q$111:$Q$310,$O38,'Project Scope'!$P$111:$P$310,$P38)/H38),\"\")","v":""},{"$f":"IF($A38=\"\",\"\",IF('Project Information'!$D$34=\"yes\",0,$I38*taxrate))","v":""},"",null,null,null,"",""]
[{"$f":"IF(ISBLANK('Project Scope'!AD121),\"\",'Project Scope'!AD121)","v":""},null,null,null,null,null,null,{"$f":"IFERROR(IF($A39=\"\",\"\",SUMIFS('Project Scope'!U$111:U$310,'Project Scope'!$Q$111:$Q$310,$O39,'Project Scope'!$P$111:$P$310,$P39)),\"\")","v":""},{"$f":"IFERROR(IF($A39=\"\",\"\",SUMIFS('Project Scope'!W$111:W$310,'Project Scope'!$Q$111:$Q$310,$O39,'Project Scope'!$P$111:$P$310,$P39)/H39),\"\")","v":""},{"$f":"IF($A39=\"\",\"\",IF('Project Information'!$D$34=\"yes\",0,$I39*taxrate))","v":""},"",null,null,null,"",""]
[{"$f":"IF(ISBLANK('Project Scope'!AD122),\"\",'Project Scope'!AD122)","v":""},null,null,null,null,null,null,{"$f":"IFERROR(IF($A40=\"\",\"\",SUMIFS('Project Scope'!U$111:U$310,'Project Scope'!$Q$111:$Q$310,$O40,'Project Scope'!$P$111:$P$310,$P40)),\"\")","v":""},{"$f":"IFERROR(IF($A40=\"\",\"\",SUMIFS('Project Scope'!W$111:W$310,'Project Scope'!$Q$111:$Q$310,$O40,'Project Scope'!$P$111:$P$310,$P40)/H40),\"\")","v":""},{"$f":"IF($A40=\"\",\"\",IF('Project Information'!$D$34=\"yes\",0,$I40*taxrate))","v":""},"",null,null,null,"",""]
[{"$f":"IF(ISBLANK('Project Scope'!AD123),\"\",'Project Scope'!AD123)","v":""},null,null,null,null,null,null,{"$f":"IFERROR(IF($A41=\"\",\"\",SUMIFS('Project Scope'!U$111:U$310,'Project Scope'!$Q$111:$Q$310,$O41,'Project Scope'!$P$111:$P$310,$P41)),\"\")","v":""},{"$f":"IFERROR(IF($A41=\"\",\"\",SUMIFS('Project Scope'!W$111:W$310,'Project Scope'!$Q$111:$Q$310,$O41,'Project Scope'!$P$111:$P$310,$P41)/H41),\"\")","v":""},{"$f":"IF($A41=\"\",\"\",IF('Project Information'!$D$34=\"yes\",0,$I41*taxrate))","v":""},"",null,null,null,"",""]
[{"$f":"IF(ISBLANK('Project Scope'!AD124),\"\",'Project Scope'!AD124)","v":""},null,null,null,null,null,null,{"$f":"IFERROR(IF($A42=\"\",\"\",SUMIFS('Project Scope'!U$111:U$310,'Project Scope'!$Q$111:$Q$310,$O42,'Project Scope'!$P$111:$P$310,$P42)),\"\")","v":""},{"$f":"IFERROR(IF($A42=\"\",\"\",SUMIFS('Project Scope'!W$111:W$310,'Project Scope'!$Q$111:$Q$310,$O42,'Project Scope'!$P$111:$P$310,$P42)/H42),\"\")","v":""},{"$f":"IF($A42=\"\",\"\",IF('Project Information'!$D$34=\"yes\",0,$I42*taxrate))","v":""},"",null,null,null,"",""]
[{"$f":"IF(ISBLANK('Project Scope'!AD125),\"\",'Project Scope'!AD125)","v":""},null,null,null,null,null,null,{"$f":"IFERROR(IF($A43=\"\",\"\",SUMIFS('Project Scope'!U$111:U$310,'Project Scope'!$Q$111:$Q$310,$O43,'Project Scope'!$P$111:$P$310,$P43)),\"\")","v":""},{"$f":"IFERROR(IF($A43=\"\",\"\",SUMIFS('Project Scope'!W$111:W$310,'Project Scope'!$Q$111:$Q$310,$O43,'Project Scope'!$P$111:$P$310,$P43)/H43),\"\")","v":""},{"$f":"IF($A43=\"\",\"\",IF('Project Information'!$D$34=\"yes\",0,$I43*taxrate))","v":""},"",null,null,null,"",""]
[{"$f":"IF(ISBLANK('Project Scope'!AD126),\"\",'Project Scope'!AD126)","v":""},null,null,null,null,null,null,{"$f":"IFERROR(IF($A44=\"\",\"\",SUMIFS('Project Scope'!U$111:U$310,'Project Scope'!$Q$111:$Q$310,$O44,'Project Scope'!$P$111:$P$310,$P44)),\"\")","v":""},{"$f":"IFERROR(IF($A44=\"\",\"\",SUMIFS('Project Scope'!W$111:W$310,'Project Scope'!$Q$111:$Q$310,$O44,'Project Scope'!$P$111:$P$310,$P44)/H44),\"\")","v":""},{"$f":"IF($A44=\"\",\"\",IF('Project Information'!$D$34=\"yes\",0,$I44*taxrate))","v":""},"",null,null,null,"",""]
[{"$f":"IF(ISBLANK('Project Scope'!AD127),\"\",'Project Scope'!AD127)","v":""},null,null,null,null,null,null,{"$f":"IFERROR(IF($A45=\"\",\"\",SUMIFS('Project Scope'!U$111:U$310,'Project Scope'!$Q$111:$Q$310,$O45,'Project Scope'!$P$111:$P$310,$P45)),\"\")","v":""},{"$f":"IFERROR(IF($A45=\"\",\"\",SUMIFS('Project Scope'!W$111:W$310,'Project Scope'!$Q$111:$Q$310,$O45,'Project Scope'!$P$111:$P$310,$P45)/H45),\"\")","v":""},{"$f":"IF($A45=\"\",\"\",IF('Project Information'!$D$34=\"yes\",0,$I45*taxrate))","v":""},"",null,null,null,"",""]
[{"$f":"IF(ISBLANK('Project Scope'!AD128),\"\",'Project Scope'!AD128)","v":""},null,null,null,null,null,null,{"$f":"IFERROR(IF($A46=\"\",\"\",SUMIFS('Project Scope'!U$111:U$310,'Project Scope'!$Q$111:$Q$310,$O46,'Project Scope'!$P$111:$P$310,$P46)),\"\")","v":""},{"$f":"IFERROR(IF($A46=\"\",\"\",SUMIFS('Project Scope'!W$111:W$310,'Project Scope'!$Q$111:$Q$310,$O46,'Project Scope'!$P$111:$P$310,$P46)/H46),\"\")","v":""},{"$f":"IF($A46=\"\",\"\",IF('Project Information'!$D$34=\"yes\",0,$I46*taxrate))","v":""},"",null,null,null,"",""]
[{"$f":"IF(ISBLANK('Project Scope'!AD129),\"\",'Project Scope'!AD129)","v":""},null,null,null,null,null,null,{"$f":"IFERROR(IF($A47=\"\",\"\",SUMIFS('Project Scope'!U$111:U$310,'Project Scope'!$Q$111:$Q$310,$O47,'Project Scope'!$P$111:$P$310,$P47)),\"\")","v":""},{"$f":"IFERROR(IF($A47=\"\",\"\",SUMIFS('Project Scope'!W$111:W$310,'Project Scope'!$Q$111:$Q$310,$O47,'Project Scope'!$P$111:$P$310,$P47)/H47),\"\")","v":""},{"$f":"IF($A47=\"\",\"\",IF('Project Information'!$D$34=\"yes\",0,$I47*taxrate))","v":""},"",null,null,null,"",""]
[{"$f":"IF(ISBLANK('Project Scope'!AD130),\"\",'Project Scope'!AD130)","v":""},null,null,null,null,null,null,{"$f":"IFERROR(IF($A48=\"\",\"\",SUMIFS('Project Scope'!U$111:U$310,'Project Scope'!$Q$111:$Q$310,$O48,'Project Scope'!$P$111:$P$310,$P48)),\"\")","v":""},{"$f":"IFERROR(IF($A48=\"\",\"\",SUMIFS('Project Scope'!W$111:W$310,'Project Scope'!$Q$111:$Q$310,$O48,'Project Scope'!$P$111:$P$310,$P48)/H48),\"\")","v":""},{"$f":"IF($A48=\"\",\"\",IF('Project Information'!$D$34=\"yes\",0,$I48*taxrate))","v":""},"",null,null,null,"",""]
[{"$f":"IF(ISBLANK('Project Scope'!AD131),\"\",'Project Scope'!AD131)","v":""},null,null,null,null,null,null,{"$f":"IFERROR(IF($A49=\"\",\"\",SUMIFS('Project Scope'!U$111:U$310,'Project Scope'!$Q$111:$Q$310,$O49,'Project Scope'!$P$111:$P$310,$P49)),\"\")","v":""},{"$f":"IFERROR(IF($A49=\"\",\"\",SUMIFS('Project Scope'!W$111:W$310,'Project Scope'!$Q$111:$Q$310,$O49,'Project Scope'!$P$111:$P$310,$P49)/H49),\"\")","v":""},{"$f":"IF($A49=\"\",\"\",IF('Project Information'!$D$34=\"yes\",0,$I49*taxrate))","v":""},"",null,null,null,"",""]
[{"$f":"IF(ISBLANK('Project Scope'!AD132),\"\",'Project Scope'!AD132)","v":""},null,null,null,null,null,null,{"$f":"IFERROR(IF($A50=\"\",\"\",SUMIFS('Project Scope'!U$111:U$310,'Project Scope'!$Q$111:$Q$310,$O50,'Project Scope'!$P$111:$P$310,$P50)),\"\")","v":""},{"$f":"IFERROR(IF($A50=\"\",\"\",SUMIFS('Project Scope'!W$111:W$310,'Project Scope'!$Q$111:$Q$310,$O50,'Project Scope'!$P$111:$P$310,$P50)/H50),\"\")","v":""},{"$f":"IF($A50=\"\",\"\",IF('Project Information'!$D$34=\"yes\",0,$I50*taxrate))","v":""},"",null,null,null,"",""]
[{"$f":"IF(ISBLANK('Project Scope'!AD133),\"\",'Project Scope'!AD133)","v":""},null,null,null,null,null,null,{"$f":"IFERROR(IF($A51=\"\",\"\",SUMIFS('Project Scope'!U$111:U$310,'Project Scope'!$Q$111:$Q$310,$O51,'Project Scope'!$P$111:$P$310,$P51)),\"\")","v":""},{"$f":"IFERROR(IF($A51=\"\",\"\",SUMIFS('Project Scope'!W$111:W$310,'Project Scope'!$Q$111:$Q$310,$O51,'Project Scope'!$P$111:$P$310,$P51)/H51),\"\")","v":""},{"$f":"IF($A51=\"\",\"\",IF('Project Information'!$D$34=\"yes\",0,$I51*taxrate))","v":""},"",null,null,null,"",""]
[{"$f":"IF(ISBLANK('Project Scope'!AD134),\"\",'Project Scope'!AD134)","v":""},null,null,null,null,null,null,{"$f":"IFERROR(IF($A52=\"\",\"\",SUMIFS('Project Scope'!U$111:U$310,'Project Scope'!$Q$111:$Q$310,$O52,'Project Scope'!$P$111:$P$310,$P52)),\"\")","v":""},{"$f":"IFERROR(IF($A52=\"\",\"\",SUMIFS('Project Scope'!W$111:W$310,'Project Scope'!$Q$111:$Q$310,$O52,'Project Scope'!$P$111:$P$310,$P52)/H52),\"\")","v":""},{"$f":"IF($A52=\"\",\"\",IF('Project Information'!$D$34=\"yes\",0,$I52*taxrate))","v":""},"",null,null,null,"",""]
[{"$f":"IF(ISBLANK('Project Scope'!AD135),\"\",'Project Scope'!AD135)","v":""},null,null,null,null,null,null,{"$f":"IFERROR(IF($A53=\"\",\"\",SUMIFS('Project Scope'!U$111:U$310,'Project Scope'!$Q$111:$Q$310,$O53,'Project Scope'!$P$111:$P$310,$P53)),\"\")","v":""},{"$f":"IFERROR(IF($A53=\"\",\"\",SUMIFS('Project Scope'!W$111:W$310,'Project Scope'!$Q$111:$Q$310,$O53,'Project Scope'!$P$111:$P$310,$P53)/H53),\"\")","v":""},{"$f":"IF($A53=\"\",\"\",IF('Project Information'!$D$34=\"yes\",0,$I53*taxrate))","v":""},"",null,null,null,"",""]
[{"$f":"IF(ISBLANK('Project Scope'!AD136),\"\",'Project Scope'!AD136)","v":""},null,null,null,null,null,null,{"$f":"IFERROR(IF($A54=\"\",\"\",SUMIFS('Project Scope'!U$111:U$310,'Project Scope'!$Q$111:$Q$310,$O54,'Project Scope'!$P$111:$P$310,$P54)),\"\")","v":""},{"$f":"IFERROR(IF($A54=\"\",\"\",SUMIFS('Project Scope'!W$111:W$310,'Project Scope'!$Q$111:$Q$310,$O54,'Project Scope'!$P$111:$P$310,$P54)/H54),\"\")","v":""},{"$f":"IF($A54=\"\",\"\",IF('Project Information'!$D$34=\"yes\",0,$I54*taxrate))","v":""},"",null,null,null,"",""]
[{"$f":"IF(ISBLANK('Project Scope'!AD137),\"\",'Project Scope'!AD137)","v":""},null,null,null,null,null,null,{"$f":"IFERROR(IF($A55=\"\",\"\",SUMIFS('Project Scope'!U$111:U$310,'Project Scope'!$Q$111:$Q$310,$O55,'Project Scope'!$P$111:$P$310,$P55)),\"\")","v":""},{"$f":"IFERROR(IF($A55=\"\",\"\",SUMIFS('Project Scope'!W$111:W$310,'Project Scope'!$Q$111:$Q$310,$O55,'Project Scope'!$P$111:$P$310,$P55)/H55),\"\")","v":""},{"$f":"IF($A55=\"\",\"\",IF('Project Information'!$D$34=\"yes\",0,$I55*taxrate))","v":""},"",null,null,null,"",""]
[{"$f":"IF(ISBLANK('Project Scope'!AD138),\"\",'Project Scope'!AD138)","v":""},null,null,null,null,null,null,{"$f":"IFERROR(IF($A56=\"\",\"\",SUMIFS('Project Scope'!U$111:U$310,'Project Scope'!$Q$111:$Q$310,$O56,'Project Scope'!$P$111:$P$310,$P56)),\"\")","v":""},{"$f":"IFERROR(IF($A56=\"\",\"\",SUMIFS('Project Scope'!W$111:W$310,'Project Scope'!$Q$111:$Q$310,$O56,'Project Scope'!$P$111:$P$310,$P56)/H56),\"\")","v":""},{"$f":"IF($A56=\"\",\"\",IF('Project Information'!$D$34=\"yes\",0,$I56*taxrate))","v":""},"",null,null,null,"",""]
[{"$f":"IF(ISBLANK('Project Scope'!AD139),\"\",'Project Scope'!AD139)","v":""},null,null,null,null,null,null,{"$f":"IFERROR(IF($A57=\"\",\"\",SUMIFS('Project Scope'!U$111:U$310,'Project Scope'!$Q$111:$Q$310,$O57,'Project Scope'!$P$111:$P$310,$P57)),\"\")","v":""},{"$f":"IFERROR(IF($A57=\"\",\"\",SUMIFS('Project Scope'!W$111:W$310,'Project Scope'!$Q$111:$Q$310,$O57,'Project Scope'!$P$111:$P$310,$P57)/H57),\"\")","v":""},{"$f":"IF($A57=\"\",\"\",IF('Project Information'!$D$34=\"yes\",0,$I57*taxrate))","v":""},"",null,null,null,"",""]
[{"$f":"IF(ISBLANK('Project Scope'!AD140),\"\",'Project Scope'!AD140)","v":""},null,null,null,null,null,null,{"$f":"IFERROR(IF($A58=\"\",\"\",SUMIFS('Project Scope'!U$111:U$310,'Project Scope'!$Q$111:$Q$310,$O58,'Project Scope'!$P$111:$P$310,$P58)),\"\")","v":""},{"$f":"IFERROR(IF($A58=\"\",\"\",SUMIFS('Project Scope'!W$111:W$310,'Project Scope'!$Q$111:$Q$310,$O58,'Project Scope'!$P$111:$P$310,$P58)/H58),\"\")","v":""},{"$f":"IF($A58=\"\",\"\",IF('Project Information'!$D$34=\"yes\",0,$I58*taxrate))","v":""},"",null,null,null,"",""]
[{"$f":"IF(ISBLANK('Project Scope'!AD141),\"\",'Project Scope'!AD141)","v":""},null,null,null,null,null,null,{"$f":"IFERROR(IF($A59=\"\",\"\",SUMIFS('Project Scope'!U$111:U$310,'Project Scope'!$Q$111:$Q$310,$O59,'Project Scope'!$P$111:$P$310,$P59)),\"\")","v":""},{"$f":"IFERROR(IF($A59=\"\",\"\",SUMIFS('Project Scope'!W$111:W$310,'Project Scope'!$Q$111:$Q$310,$O59,'Project Scope'!$P$111:$P$310,$P59)/H59),\"\")","v":""},{"$f":"IF($A59=\"\",\"\",IF('Project Information'!$D$34=\"yes\",0,$I59*taxrate))","v":""},"",null,null,null,"",""]
[{"$f":"IF(ISBLANK('Project Scope'!AD142),\"\",'Project Scope'!AD142)","v":""},null,null,null,null,null,null,{"$f":"IFERROR(IF($A60=\"\",\"\",SUMIFS('Project Scope'!U$111:U$310,'Project Scope'!$Q$111:$Q$310,$O60,'Project Scope'!$P$111:$P$310,$P60)),\"\")","v":""},{"$f":"IFERROR(IF($A60=\"\",\"\",SUMIFS('Project Scope'!W$111:W$310,'Project Scope'!$Q$111:$Q$310,$O60,'Project Scope'!$P$111:$P$310,$P60)/H60),\"\")","v":""},{"$f":"IF($A60=\"\",\"\",IF('Project Information'!$D$34=\"yes\",0,$I60*taxrate))","v":""},"",null,null,null,"",""]
[{"$f":"IF(ISBLANK('Project Scope'!AD143),\"\",'Project Scope'!AD143)","v":""},null,null,null,null,null,null,{"$f":"IFERROR(IF($A61=\"\",\"\",SUMIFS('Project Scope'!U$111:U$310,'Project Scope'!$Q$111:$Q$310,$O61,'Project Scope'!$P$111:$P$310,$P61)),\"\")","v":""},{"$f":"IFERROR(IF($A61=\"\",\"\",SUMIFS('Project Scope'!W$111:W$310,'Project Scope'!$Q$111:$Q$310,$O61,'Project Scope'!$P$111:$P$310,$P61)/H61),\"\")","v":""},{"$f":"IF($A61=\"\",\"\",IF('Project Information'!$D$34=\"yes\",0,$I61*taxrate))","v":""},"",null,null,null,"",""]
[{"$f":"IF(ISBLANK('Project Scope'!AD144),\"\",'Project Scope'!AD144)","v":""},null,null,null,null,null,null,{"$f":"IFERROR(IF($A62=\"\",\"\",SUMIFS('Project Scope'!U$111:U$310,'Project Scope'!$Q$111:$Q$310,$O62,'Project Scope'!$P$111:$P$310,$P62)),\"\")","v":""},{"$f":"IFERROR(IF($A62=\"\",\"\",SUMIFS('Project Scope'!W$111:W$310,'Project Scope'!$Q$111:$Q$310,$O62,'Project Scope'!$P$111:$P$310,$P62)/H62),\"\")","v":""},{"$f":"IF($A62=\"\",\"\",IF('Project Information'!$D$34=\"yes\",0,$I62*taxrate))","v":""},"",null,null,null,"",""]
[{"$f":"IF(ISBLANK('Project Scope'!AD145),\"\",'Project Scope'!AD145)","v":""},null,null,null,null,null,null,{"$f":"IFERROR(IF($A63=\"\",\"\",SUMIFS('Project Scope'!U$111:U$310,'Project Scope'!$Q$111:$Q$310,$O63,'Project Scope'!$P$111:$P$310,$P63)),\"\")","v":""},{"$f":"IFERROR(IF($A63=\"\",\"\",SUMIFS('Project Scope'!W$111:W$310,'Project Scope'!$Q$111:$Q$310,$O63,'Project Scope'!$P$111:$P$310,$P63)/H63),\"\")","v":""},{"$f":"IF($A63=\"\",\"\",IF('Project Information'!$D$34=\"yes\",0,$I63*taxrate))","v":""},"",null,null,null,"",""]
[{"$f":"IF(ISBLANK('Project Scope'!AD146),\"\",'Project Scope'!AD146)","v":""},null,null,null,null,null,null,{"$f":"IFERROR(IF($A64=\"\",\"\",SUMIFS('Project Scope'!U$111:U$310,'Project Scope'!$Q$111:$Q$310,$O64,'Project Scope'!$P$111:$P$310,$P64)),\"\")","v":""},{"$f":"IFERROR(IF($A64=\"\",\"\",SUMIFS('Project Scope'!W$111:W$310,'Project Scope'!$Q$111:$Q$310,$O64,'Project Scope'!$P$111:$P$310,$P64)/H64),\"\")","v":""},{"$f":"IF($A64=\"\",\"\",IF('Project Information'!$D$34=\"yes\",0,$I64*taxrate))","v":""},"",null,null,null,"",""]
[{"$f":"IF(ISBLANK('Project Scope'!AD147),\"\",'Project Scope'!AD147)","v":""},null,null,null,null,null,null,{"$f":"IFERROR(IF($A65=\"\",\"\",SUMIFS('Project Scope'!U$111:U$310,'Project Scope'!$Q$111:$Q$310,$O65,'Project Scope'!$P$111:$P$310,$P65)),\"\")","v":""},{"$f":"IFERROR(IF($A65=\"\",\"\",SUMIFS('Project Scope'!W$111:W$310,'Project Scope'!$Q$111:$Q$310,$O65,'Project Scope'!$P$111:$P$310,$P65)/H65),\"\")","v":""},{"$f":"IF($A65=\"\",\"\",IF('Project Information'!$D$34=\"yes\",0,$I65*taxrate))","v":""},"",null,null,null,"",""]
[{"$f":"IF(ISBLANK('Project Scope'!AD148),\"\",'Project Scope'!AD148)","v":""},null,null,null,null,null,null,{"$f":"IFERROR(IF($A66=\"\",\"\",SUMIFS('Project Scope'!U$111:U$310,'Project Scope'!$Q$111:$Q$310,$O66,'Project Scope'!$P$111:$P$310,$P66)),\"\")","v":""},{"$f":"IFERROR(IF($A66=\"\",\"\",SUMIFS('Project Scope'!W$111:W$310,'Project Scope'!$Q$111:$Q$310,$O66,'Project Scope'!$P$111:$P$310,$P66)/H66),\"\")","v":""},{"$f":"IF($A66=\"\",\"\",IF('Project Information'!$D$34=\"yes\",0,$I66*taxrate))","v":""},"",null,null,null,"",""]
[{"$f":"IF(ISBLANK('Project Scope'!AD149),\"\",'Project Scope'!AD149)","v":""},null,null,null,null,null,null,{"$f":"IFERROR(IF($A67=\"\",\"\",SUMIFS('Project Scope'!U$111:U$310,'Project Scope'!$Q$111:$Q$310,$O67,'Project Scope'!$P$111:$P$310,$P67)),\"\")","v":""},{"$f":"IFERROR(IF($A67=\"\",\"\",SUMIFS('Project Scope'!W$111:W$310,'Project Scope'!$Q$111:$Q$310,$O67,'Project Scope'!$P$111:$P$310,$P67)/H67),\"\")","v":""},{"$f":"IF($A67=\"\",\"\",IF('Project Information'!$D$34=\"yes\",0,$I67*taxrate))","v":""},"",null,null,null,"",""]
[{"$f":"IF(ISBLANK('Project Scope'!AD150),\"\",'Project Scope'!AD150)","v":""},null,null,null,null,null,null,{"$f":"IFERROR(IF($A68=\"\",\"\",SUMIFS('Project Scope'!U$111:U$310,'Project Scope'!$Q$111:$Q$310,$O68,'Project Scope'!$P$111:$P$310,$P68)),\"\")","v":""},{"$f":"IFERROR(IF($A68=\"\",\"\",SUMIFS('Project Scope'!W$111:W$310,'Project Scope'!$Q$111:$Q$310,$O68,'Project Scope'!$P$111:$P$310,$P68)/H68),\"\")","v":""},{"$f":"IF($A68=\"\",\"\",IF('Project Information'!$D$34=\"yes\",0,$I68*taxrate))","v":""},"",null,null,null,"",""]
[{"$f":"IF(ISBLANK('Project Scope'!AD151),\"\",'Project Scope'!AD151)","v":""},null,null,null,null,null,null,{"$f":"IFERROR(IF($A69=\"\",\"\",SUMIFS('Project Scope'!U$111:U$310,'Project Scope'!$Q$111:$Q$310,$O69,'Project Scope'!$P$111:$P$310,$P69)),\"\")","v":""},{"$f":"IFERROR(IF($A69=\"\",\"\",SUMIFS('Project Scope'!W$111:W$310,'Project Scope'!$Q$111:$Q$310,$O69,'Project Scope'!$P$111:$P$310,$P69)/H69),\"\")","v":""},{"$f":"IF($A69=\"\",\"\",IF('Project Information'!$D$34=\"yes\",0,$I69*taxrate))","v":""},"",null,null,null,"",""]
[{"$f":"IF(ISBLANK('Project Scope'!AD152),\"\",'Project Scope'!AD152)","v":""},null,null,null,null,null,null,{"$f":"IFERROR(IF($A70=\"\",\"\",SUMIFS('Project Scope'!U$111:U$310,'Project Scope'!$Q$111:$Q$310,$O70,'Project Scope'!$P$111:$P$310,$P70)),\"\")","v":""},{"$f":"IFERROR(IF($A70=\"\",\"\",SUMIFS('Project Scope'!W$111:W$310,'Project Scope'!$Q$111:$Q$310,$O70,'Project Scope'!$P$111:$P$310,$P70)/H70),\"\")","v":""},{"$f":"IF($A70=\"\",\"\",IF('Project Information'!$D$34=\"yes\",0,$I70*taxrate))","v":""},"",null,null,null,"",""]
[{"$f":"IF(ISBLANK('Project Scope'!AD153),\"\",'Project Scope'!AD153)","v":""},null,null,null,null,null,null,{"$f":"IFERROR(IF($A71=\"\",\"\",SUMIFS('Project Scope'!U$111:U$310,'Project Scope'!$Q$111:$Q$310,$O71,'Project Scope'!$P$111:$P$310,$P71)),\"\")","v":""},{"$f":"IFERROR(IF($A71=\"\",\"\",SUMIFS('Project Scope'!W$111:W$310,'Project Scope'!$Q$111:$Q$310,$O71,'Project Scope'!$P$111:$P$310,$P71)/H71),\"\")","v":""},{"$f":"IF($A71=\"\",\"\",IF('Project Information'!$D$34=\"yes\",0,$I71*taxrate))","v":""},"",null,null,null,"",""]
[{"$f":"IF(ISBLANK('Project Scope'!AD154),\"\",'Project Scope'!AD154)","v":""},null,null,null,null,null,null,{"$f":"IFERROR(IF($A72=\"\",\"\",SUMIFS('Project Scope'!U$111:U$310,'Project Scope'!$Q$111:$Q$310,$O72,'Project Scope'!$P$111:$P$310,$P72)),\"\")","v":""},{"$f":"IFERROR(IF($A72=\"\",\"\",SUMIFS('Project Scope'!W$111:W$310,'Project Scope'!$Q$111:$Q$310,$O72,'Project Scope'!$P$111:$P$310,$P72)/H72),\"\")","v":""},{"$f":"IF($A72=\"\",\"\",IF('Project Information'!$D$34=\"yes\",0,$I72*taxrate))","v":""},"",null,null,null,"",""]
[{"$f":"IF(ISBLANK('Project Scope'!AD155),\"\",'Project Scope'!AD155)","v":""},null,null,null,null,null,null,{"$f":"IFERROR(IF($A73=\"\",\"\",SUMIFS('Project Scope'!U$111:U$310,'Project Scope'!$Q$111:$Q$310,$O73,'Project Scope'!$P$111:$P$310,$P73)),\"\")","v":""},{"$f":"IFERROR(IF($A73=\"\",\"\",SUMIFS('Project Scope'!W$111:W$310,'Project Scope'!$Q$111:$Q$310,$O73,'Project Scope'!$P$111:$P$310,$P73)/H73),\"\")","v":""},{"$f":"IF($A73=\"\",\"\",IF('Project Information'!$D$34=\"yes\",0,$I73*taxrate))","v":""},"",null,null,null,"",""]
[{"$f":"IF(ISBLANK('Project Scope'!AD156),\"\",'Project Scope'!AD156)","v":""},null,null,null,null,null,null,{"$f":"IFERROR(IF($A74=\"\",\"\",SUMIFS('Project Scope'!U$111:U$310,'Project Scope'!$Q$111:$Q$310,$O74,'Project Scope'!$P$111:$P$310,$P74)),\"\")","v":""},{"$f":"IFERROR(IF($A74=\"\",\"\",SUMIFS('Project Scope'!W$111:W$310,'Project Scope'!$Q$111:$Q$310,$O74,'Project Scope'!$P$111:$P$310,$P74)/H74),\"\")","v":""},{"$f":"IF($A74=\"\",\"\",IF('Project Information'!$D$34=\"yes\",0,$I74*taxrate))","v":""},"",null,null,null,"",""]
[{"$f":"IF(ISBLANK('Project Scope'!AD157),\"\",'Project Scope'!AD157)","v":""},null,null,null,null,null,null,{"$f":"IFERROR(IF($A75=\"\",\"\",SUMIFS('Project Scope'!U$111:U$310,'Project Scope'!$Q$111:$Q$310,$O75,'Project Scope'!$P$111:$P$310,$P75)),\"\")","v":""},{"$f":"IFERROR(IF($A75=\"\",\"\",SUMIFS('Project Scope'!W$111:W$310,'Project Scope'!$Q$111:$Q$310,$O75,'Project Scope'!$P$111:$P$310,$P75)/H75),\"\")","v":""},{"$f":"IF($A75=\"\",\"\",IF('Project Information'!$D$34=\"yes\",0,$I75*taxrate))","v":""},"",null,null,null,"",""]
[{"$f":"IF(ISBLANK('Project Scope'!AD158),\"\",'Project Scope'!AD158)","v":""},null,null,null,null,null,null,{"$f":"IFERROR(IF($A76=\"\",\"\",SUMIFS('Project Scope'!U$111:U$310,'Project Scope'!$Q$111:$Q$310,$O76,'Project Scope'!$P$111:$P$310,$P76)),\"\")","v":""},{"$f":"IFERROR(IF($A76=\"\",\"\",SUMIFS('Project Scope'!W$111:W$310,'Project Scope'!$Q$111:$Q$310,$O76,'Project Scope'!$P$111:$P$310,$P76)/H76),\"\")","v":""},{"$f":"IF($A76=\"\",\"\",IF('Project Information'!$D$34=\"yes\",0,$I76*taxrate))","v":""},"",null,null,null,"",""]
[{"$f":"IF(ISBLANK('Project Scope'!AD159),\"\",'Project Scope'!AD159)","v":""},null,null,null,null,null,null,{"$f":"IFERROR(IF($A77=\"\",\"\",SUMIFS('Project Scope'!U$111:U$310,'Project Scope'!$Q$111:$Q$310,$O77,'Project Scope'!$P$111:$P$310,$P77)),\"\")","v":""},{"$f":"IFERROR(IF($A77=\"\",\"\",SUMIFS('Project Scope'!W$111:W$310,'Project Scope'!$Q$111:$Q$310,$O77,'Project Scope'!$P$111:$P$310,$P77)/H77),\"\")","v":""},{"$f":"IF($A77=\"\",\"\",IF('Project Information'!$D$34=\"yes\",0,$I77*taxrate))","v":""},"",null,null,null,"",""]
[{"$f":"IF(ISBLANK('Project Scope'!AD160),\"\",'Project Scope'!AD160)","v":""},null,null,null,null,null,null,{"$f":"IFERROR(IF($A78=\"\",\"\",SUMIFS('Project Scope'!U$111:U$310,'Project Scope'!$Q$111:$Q$310,$O78,'Project Scope'!$P$111:$P$310,$P78)),\"\")","v":""},{"$f":"IFERROR(IF($A78=\"\",\"\",SUMIFS('Project Scope'!W$111:W$310,'Project Scope'!$Q$111:$Q$310,$O78,'Project Scope'!$P$111:$P$310,$P78)/H78),\"\")","v":""},{"$f":"IF($A78=\"\",\"\",IF('Project Information'!$D$34=\"yes\",0,$I78*taxrate))","v":""},"",null,null,null,"",""]
[{"$f":"IF(ISBLANK('Project Scope'!AD161),\"\",'Project Scope'!AD161)","v":""},null,null,null,null,null,null,{"$f":"IFERROR(IF($A79=\"\",\"\",SUMIFS('Project Scope'!U$111:U$310,'Project Scope'!$Q$111:$Q$310,$O79,'Project Scope'!$P$111:$P$310,$P79)),\"\")","v":""},{"$f":"IFERROR(IF($A79=\"\",\"\",SUMIFS('Project Scope'!W$111:W$310,'Project Scope'!$Q$111:$Q$310,$O79,'Project Scope'!$P$111:$P$310,$P79)/H79),\"\")","v":""},{"$f":"IF($A79=\"\",\"\",IF('Project Information'!$D$34=\"yes\",0,$I79*taxrate))","v":""},"",null,null,null,"",""]
[{"$f":"IF(ISBLANK('Project Scope'!AD162),\"\",'Project Scope'!AD162)","v":""},null,null,null,null,null,null,{"$f":"IFERROR(IF($A80=\"\",\"\",SUMIFS('Project Scope'!U$111:U$310,'Project Scope'!$Q$111:$Q$310,$O80,'Project Scope'!$P$111:$P$310,$P80)),\"\")","v":""},{"$f":"IFERROR(IF($A80=\"\",\"\",SUMIFS('Project Scope'!W$111:W$310,'Project Scope'!$Q$111:$Q$310,$O80,'Project Scope'!$P$111:$P$310,$P80)/H80),\"\")","v":""},{"$f":"IF($A80=\"\",\"\",IF('Project Information'!$D$34=\"yes\",0,$I80*taxrate))","v":""},"",null,null,null,"",""]
[{"$f":"IF(ISBLANK('Project Scope'!AD163),\"\",'Project Scope'!AD163)","v":""},null,null,null,null,null,null,{"$f":"IFERROR(IF($A81=\"\",\"\",SUMIFS('Project Scope'!U$111:U$310,'Project Scope'!$Q$111:$Q$310,$O81,'Project Scope'!$P$111:$P$310,$P81)),\"\")","v":""},{"$f":"IFERROR(IF($A81=\"\",\"\",SUMIFS('Project Scope'!W$111:W$310,'Project Scope'!$Q$111:$Q$310,$O81,'Project Scope'!$P$111:$P$310,$P81)/H81),\"\")","v":""},{"$f":"IF($A81=\"\",\"\",IF('Project Information'!$D$34=\"yes\",0,$I81*taxrate))","v":""},"",null,null,null,"",""]
[{"$f":"IF(ISBLANK('Project Scope'!AD164),\"\",'Project Scope'!AD164)","v":""},null,null,null,null,null,null,{"$f":"IFERROR(IF($A82=\"\",\"\",SUMIFS('Project Scope'!U$111:U$310,'Project Scope'!$Q$111:$Q$310,$O82,'Project Scope'!$P$111:$P$310,$P82)),\"\")","v":""},{"$f":"IFERROR(IF($A82=\"\",\"\",SUMIFS('Project Scope'!W$111:W$310,'Project Scope'!$Q$111:$Q$310,$O82,'Project Scope'!$P$111:$P$310,$P82)/H82),\"\")","v":""},{"$f":"IF($A82=\"\",\"\",IF('Project Information'!$D$34=\"yes\",0,$I82*taxrate))","v":""},"",null,null,null,"",""]
[{"$f":"IF(ISBLANK('Project Scope'!AD165),\"\",'Project Scope'!AD165)","v":""},null,null,null,null,null,null,{"$f":"IFERROR(IF($A83=\"\",\"\",SUMIFS('Project Scope'!U$111:U$310,'Project Scope'!$Q$111:$Q$310,$O83,'Project Scope'!$P$111:$P$310,$P83)),\"\")","v":""},{"$f":"IFERROR(IF($A83=\"\",\"\",SUMIFS('Project Scope'!W$111:W$310,'Project Scope'!$Q$111:$Q$310,$O83,'Project Scope'!$P$111:$P$310,$P83)/H83),\"\")","v":""},{"$f":"IF($A83=\"\",\"\",IF('Project Information'!$D$34=\"yes\",0,$I83*taxrate))","v":""},"",null,null,null,"",""]
[{"$f":"IF(ISBLANK('Project Scope'!AD166),\"\",'Project Scope'!AD166)","v":""},null,null,null,null,null,null,{"$f":"IFERROR(IF($A84=\"\",\"\",SUMIFS('Project Scope'!U$111:U$310,'Project Scope'!$Q$111:$Q$310,$O84,'Project Scope'!$P$111:$P$310,$P84)),\"\")","v":""},{"$f":"IFERROR(IF($A84=\"\",\"\",SUMIFS('Project Scope'!W$111:W$310,'Project Scope'!$Q$111:$Q$310,$O84,'Project Scope'!$P$111:$P$310,$P84)/H84),\"\")","v":""},{"$f":"IF($A84=\"\",\"\",IF('Project Information'!$D$34=\"yes\",0,$I84*taxrate))","v":""},"",null,null,null,"",""]
[{"$f":"IF(ISBLANK('Project Scope'!AD167),\"\",'Project Scope'!AD167)","v":""},null,null,null,null,null,null,{"$f":"IFERROR(IF($A85=\"\",\"\",SUMIFS('Project Scope'!U$111:U$310,'Project Scope'!$Q$111:$Q$310,$O85,'Project Scope'!$P$111:$P$310,$P85)),\"\")","v":""},{"$f":"IFERROR(IF($A85=\"\",\"\",SUMIFS('Project Scope'!W$111:W$310,'Project Scope'!$Q$111:$Q$310,$O85,'Project Scope'!$P$111:$P$310,$P85)/H85),\"\")","v":""},{"$f":"IF($A85=\"\",\"\",IF('Project Information'!$D$34=\"yes\",0,$I85*taxrate))","v":""},"",null,null,null,"",""]
[{"$f":"IF(ISBLANK('Project Scope'!AD168),\"\",'Project Scope'!AD168)","v":""},null,null,null,null,null,null,{"$f":"IFERROR(IF($A86=\"\",\"\",SUMIFS('Project Scope'!U$111:U$310,'Project Scope'!$Q$111:$Q$310,$O86,'Project Scope'!$P$111:$P$310,$P86)),\"\")","v":""},{"$f":"IFERROR(IF($A86=\"\",\"\",SUMIFS('Project Scope'!W$111:W$310,'Project Scope'!$Q$111:$Q$310,$O86,'Project Scope'!$P$111:$P$310,$P86)/H86),\"\")","v":""},{"$f":"IF($A86=\"\",\"\",IF('Project Information'!$D$34=\"yes\",0,$I86*taxrate))","v":""},"",null,null,null,"",""]
[{"$f":"IF(ISBLANK('Project Scope'!AD169),\"\",'Project Scope'!AD169)","v":""},null,null,null,null,null,null,{"$f":"IFERROR(IF($A87=\"\",\"\",SUMIFS('Project Scope'!U$111:U$310,'Project Scope'!$Q$111:$Q$310,$O87,'Project Scope'!$P$111:$P$310,$P87)),\"\")","v":""},{"$f":"IFERROR(IF($A87=\"\",\"\",SUMIFS('Project Scope'!W$111:W$310,'Project Scope'!$Q$111:$Q$310,$O87,'Project Scope'!$P$111:$P$310,$P87)/H87),\"\")","v":""},{"$f":"IF($A87=\"\",\"\",IF('Project Information'!$D$34=\"yes\",0,$I87*taxrate))","v":""},{"$f":"IF($A87=\"\",\"\",SUM(I87:J87)*H87)","v":""},null,null,null,"",""]
[{"$f":"IF(ISBLANK('Project Scope'!AD170),\"\",'Project Scope'!AD170)","v":""},null,null,null,null,null,null,{"$f":"IFERROR(IF($A88=\"\",\"\",SUMIFS('Project Scope'!U$111:U$310,'Project Scope'!$Q$111:$Q$310,$O88,'Project Scope'!$P$111:$P$310,$P88)),\"\")","v":""},{"$f":"IFERROR(IF($A88=\"\",\"\",SUMIFS('Project Scope'!W$111:W$310,'Project Scope'!$Q$111:$Q$310,$O88,'Project Scope'!$P$111:$P$310,$P88)/H88),\"\")","v":""},{"$f":"IF($A88=\"\",\"\",IF('Project Information'!$D$34=\"yes\",0,$I88*taxrate))","v":""},"",null,null,null,"",""]
[{"$f":"IF(ISBLANK('Project Scope'!AD171),\"\",'Project Scope'!AD171)","v":""},null,null,null,null,null,null,{"$f":"IFERROR(IF($A89=\"\",\"\",SUMIFS('Project Scope'!U$111:U$310,'Project Scope'!$Q$111:$Q$310,$O89,'Project Scope'!$P$111:$P$310,$P89)),\"\")","v":""},{"$f":"IFERROR(IF($A89=\"\",\"\",SUMIFS('Project Scope'!W$111:W$310,'Project Scope'!$Q$111:$Q$310,$O89,'Project Scope'!$P$111:$P$310,$P89)/H89),\"\")","v":""},{"$f":"IF($A89=\"\",\"\",IF('Project Information'!$D$34=\"yes\",0,$I89*taxrate))","v":""},"",null,null,null,"",""]
[{"$f":"IF(ISBLANK('Project Scope'!AD172),\"\",'Project Scope'!AD172)","v":""},null,null,null,null,null,null,{"$f":"IFERROR(IF($A90=\"\",\"\",SUMIFS('Project Scope'!U$111:U$310,'Project Scope'!$Q$111:$Q$310,$O90,'Project Scope'!$P$111:$P$310,$P90)),\"\")","v":""},{"$f":"IFERROR(IF($A90=\"\",\"\",SUMIFS('Project Scope'!W$111:W$310,'Project Scope'!$Q$111:$Q$310,$O90,'Project Scope'!$P$111:$P$310,$P90)/H90),\"\")","v":""},{"$f":"IF($A90=\"\",\"\",IF('Project Information'!$D$34=\"yes\",0,$I90*taxrate))","v":""},"",null,null,null,"",""]
[{"$f":"IF(ISBLANK('Project Scope'!AD173),\"\",'Project Scope'!AD173)","v":""},null,null,null,null,null,null,{"$f":"IFERROR(IF($A91=\"\",\"\",SUMIFS('Project Scope'!U$111:U$310,'Project Scope'!$Q$111:$Q$310,$O91,'Project Scope'!$P$111:$P$310,$P91)),\"\")","v":""},{"$f":"IFERROR(IF($A91=\"\",\"\",SUMIFS('Project Scope'!W$111:W$310,'Project Scope'!$Q$111:$Q$310,$O91,'Project Scope'!$P$111:$P$310,$P91)/H91),\"\")","v":""},{"$f":"IF($A91=\"\",\"\",IF('Project Information'!$D$34=\"yes\",0,$I91*taxrate))","v":""},"",null,null,null,"",""]
[{"$f":"IF(ISBLANK('Project Scope'!AD174),\"\",'Project Scope'!AD174)","v":""},null,null,null,null,null,null,{"$f":"IFERROR(IF($A92=\"\",\"\",SUMIFS('Project Scope'!U$111:U$310,'Project Scope'!$Q$111:$Q$310,$O92,'Project Scope'!$P$111:$P$310,$P92)),\"\")","v":""},{"$f":"IFERROR(IF($A92=\"\",\"\",SUMIFS('Project Scope'!W$111:W$310,'Project Scope'!$Q$111:$Q$310,$O92,'Project Scope'!$P$111:$P$310,$P92)/H92),\"\")","v":""},{"$f":"IF($A92=\"\",\"\",IF('Project Information'!$D$34=\"yes\",0,$I92*taxrate))","v":""},"",null,null,null,"",""]
[{"$f":"IF(ISBLANK('Project Scope'!AD175),\"\",'Project Scope'!AD175)","v":""},null,null,null,null,null,null,{"$f":"IFERROR(IF($A93=\"\",\"\",SUMIFS('Project Scope'!U$111:U$310,'Project Scope'!$Q$111:$Q$310,$O93,'Project Scope'!$P$111:$P$310,$P93)),\"\")","v":""},{"$f":"IFERROR(IF($A93=\"\",\"\",SUMIFS('Project Scope'!W$111:W$310,'Project Scope'!$Q$111:$Q$310,$O93,'Project Scope'!$P$111:$P$310,$P93)/H93),\"\")","v":""},{"$f":"IF($A93=\"\",\"\",IF('Project Information'!$D$34=\"yes\",0,$I93*taxrate))","v":""},"",null,null,null,"",""]
[{"$f":"IF(ISBLANK('Project Scope'!AD176),\"\",'Project Scope'!AD176)","v":""},null,null,null,null,null,null,{"$f":"IFERROR(IF($A94=\"\",\"\",SUMIFS('Project Scope'!U$111:U$310,'Project Scope'!$Q$111:$Q$310,$O94,'Project Scope'!$P$111:$P$310,$P94)),\"\")","v":""},{"$f":"IFERROR(IF($A94=\"\",\"\",SUMIFS('Project Scope'!W$111:W$310,'Project Scope'!$Q$111:$Q$310,$O94,'Project Scope'!$P$111:$P$310,$P94)/H94),\"\")","v":""},{"$f":"IF($A94=\"\",\"\",IF('Project Information'!$D$34=\"yes\",0,$I94*taxrate))","v":""},"",null,null,null,{"$f":"IF(A94=\"\",\"\",IFERROR(LEFT(A94,FIND(\"[\",A94)-2),A94))","v":""},{"$f":"IF(A94=\"\",\"\",IFERROR(MID(A94,FIND(\"[\",A94)+1,LEN(A94)-7-FIND(\"[\",A94)+1),0))","v":""}]
[{"$f":"IF(ISBLANK('Project Scope'!AD177),\"\",'Project Scope'!AD177)","v":""},null,null,null,null,null,null,{"$f":"IFERROR(IF($A95=\"\",\"\",SUMIFS('Project Scope'!U$111:U$310,'Project Scope'!$Q$111:$Q$310,$O95,'Project Scope'!$P$111:$P$310,$P95)),\"\")","v":""},{"$f":"IFERROR(IF($A95=\"\",\"\",SUMIFS('Project Scope'!W$111:W$310,'Project Scope'!$Q$111:$Q$310,$O95,'Project Scope'!$P$111:$P$310,$P95)/H95),\"\")","v":""},{"$f":"IF($A95=\"\",\"\",IF('Project Information'!$D$34=\"yes\",0,$I95*taxrate))","v":""},"",null,null,null,"",""]
[{"$f":"IF(ISBLANK('Project Scope'!AD178),\"\",'Project Scope'!AD178)","v":""},null,null,null,null,null,null,{"$f":"IFERROR(IF($A96=\"\",\"\",SUMIFS('Project Scope'!U$111:U$310,'Project Scope'!$Q$111:$Q$310,$O96,'Project Scope'!$P$111:$P$310,$P96)),\"\")","v":""},{"$f":"IFERROR(IF($A96=\"\",\"\",SUMIFS('Project Scope'!W$111:W$310,'Project Scope'!$Q$111:$Q$310,$O96,'Project Scope'!$P$111:$P$310,$P96)/H96),\"\")","v":""},{"$f":"IF($A96=\"\",\"\",IF('Project Information'!$D$34=\"yes\",0,$I96*taxrate))","v":""},"",null,null,null,"",""]
[{"$f":"IF(ISBLANK('Project Scope'!AD179),\"\",'Project Scope'!AD179)","v":""},null,null,null,null,null,null,{"$f":"IFERROR(IF($A97=\"\",\"\",SUMIFS('Project Scope'!U$111:U$310,'Project Scope'!$Q$111:$Q$310,$O97,'Project Scope'!$P$111:$P$310,$P97)),\"\")","v":""},{"$f":"IFERROR(IF($A97=\"\",\"\",SUMIFS('Project Scope'!W$111:W$310,'Project Scope'!$Q$111:$Q$310,$O97,'Project Scope'!$P$111:$P$310,$P97)/H97),\"\")","v":""},{"$f":"IF($A97=\"\",\"\",IF('Project Information'!$D$34=\"yes\",0,$I97*taxrate))","v":""},"",null,null,null,"",""]
[{"$f":"IF(ISBLANK('Project Scope'!AD180),\"\",'Project Scope'!AD180)","v":""},null,null,null,null,null,null,{"$f":"IFERROR(IF($A98=\"\",\"\",SUMIFS('Project Scope'!U$111:U$310,'Project Scope'!$Q$111:$Q$310,$O98,'Project Scope'!$P$111:$P$310,$P98)),\"\")","v":""},{"$f":"IFERROR(IF($A98=\"\",\"\",SUMIFS('Project Scope'!W$111:W$310,'Project Scope'!$Q$111:$Q$310,$O98,'Project Scope'!$P$111:$P$310,$P98)/H98),\"\")","v":""},{"$f":"IF($A98=\"\",\"\",IF('Project Information'!$D$34=\"yes\",0,$I98*taxrate))","v":""},"",null,null,null,"",""]
[{"$f":"IF(ISBLANK('Project Scope'!AD181),\"\",'Project Scope'!AD181)","v":""},null,null,null,null,null,null,{"$f":"IFERROR(IF($A99=\"\",\"\",SUMIFS('Project Scope'!U$111:U$310,'Project Scope'!$Q$111:$Q$310,$O99,'Project Scope'!$P$111:$P$310,$P99)),\"\")","v":""},{"$f":"IFERROR(IF($A99=\"\",\"\",SUMIFS('Project Scope'!W$111:W$310,'Project Scope'!$Q$111:$Q$310,$O99,'Project Scope'!$P$111:$P$310,$P99)/H99),\"\")","v":""},{"$f":"IF($A99=\"\",\"\",IF('Project Information'!$D$34=\"yes\",0,$I99*taxrate))","v":""},"",null,null,null,"",""]
[{"$f":"IF(ISBLANK('Project Scope'!AD182),\"\",'Project Scope'!AD182)","v":""},null,null,null,null,null,null,{"$f":"IFERROR(IF($A100=\"\",\"\",SUMIFS('Project Scope'!U$111:U$310,'Project Scope'!$Q$111:$Q$310,$O100,'Project Scope'!$P$111:$P$310,$P100)),\"\")","v":""},{"$f":"IFERROR(IF($A100=\"\",\"\",SUMIFS('Project Scope'!W$111:W$310,'Project Scope'!$Q$111:$Q$310,$O100,'Project Scope'!$P$111:$P$310,$P100)/H100),\"\")","v":""},{"$f":"IF($A100=\"\",\"\",IF('Project Information'!$D$34=\"yes\",0,$I100*taxrate))","v":""},"",null,null,null,"",""]
[{"$f":"IF(ISBLANK('Project Scope'!AD183),\"\",'Project Scope'!AD183)","v":""},null,null,null,null,null,null,{"$f":"IFERROR(IF($A101=\"\",\"\",SUMIFS('Project Scope'!U$111:U$310,'Project Scope'!$Q$111:$Q$310,$O101,'Project Scope'!$P$111:$P$310,$P101)),\"\")","v":""},{"$f":"IFERROR(IF($A101=\"\",\"\",SUMIFS('Project Scope'!W$111:W$310,'Project Scope'!$Q$111:$Q$310,$O101,'Project Scope'!$P$111:$P$310,$P101)/H101),\"\")","v":""},{"$f":"IF($A101=\"\",\"\",IF('Project Information'!$D$34=\"yes\",0,$I101*taxrate))","v":""},"",null,null,null,"",""]
[{"$f":"IF(ISBLANK('Project Scope'!AD184),\"\",'Project Scope'!AD184)","v":""},null,null,null,null,null,null,{"$f":"IFERROR(IF($A102=\"\",\"\",SUMIFS('Project Scope'!U$111:U$310,'Project Scope'!$Q$111:$Q$310,$O102,'Project Scope'!$P$111:$P$310,$P102)),\"\")","v":""},{"$f":"IFERROR(IF($A102=\"\",\"\",SUMIFS('Project Scope'!W$111:W$310,'Project Scope'!$Q$111:$Q$310,$O102,'Project Scope'!$P$111:$P$310,$P102)/H102),\"\")","v":""},{"$f":"IF($A102=\"\",\"\",IF('Project Information'!$D$34=\"yes\",0,$I102*taxrate))","v":""},"",null,null,null,"",""]
[{"$f":"IF(ISBLANK('Project Scope'!AD185),\"\",'Project Scope'!AD185)","v":""},null,null,null,null,null,null,{"$f":"IFERROR(IF($A103=\"\",\"\",SUMIFS('Project Scope'!U$111:U$310,'Project Scope'!$Q$111:$Q$310,$O103,'Project Scope'!$P$111:$P$310,$P103)),\"\")","v":""},{"$f":"IFERROR(IF($A103=\"\",\"\",SUMIFS('Project Scope'!W$111:W$310,'Project Scope'!$Q$111:$Q$310,$O103,'Project Scope'!$P$111:$P$310,$P103)/H103),\"\")","v":""},{"$f":"IF($A103=\"\",\"\",IF('Project Information'!$D$34=\"yes\",0,$I103*taxrate))","v":""},"",null,null,null,"",""]
[{"$f":"IF(ISBLANK('Project Scope'!AD186),\"\",'Project Scope'!AD186)","v":""},null,null,null,null,null,null,{"$f":"IFERROR(IF($A104=\"\",\"\",SUMIFS('Project Scope'!U$111:U$310,'Project Scope'!$Q$111:$Q$310,$O104,'Project Scope'!$P$111:$P$310,$P104)),\"\")","v":""},{"$f":"IFERROR(IF($A104=\"\",\"\",SUMIFS('Project Scope'!W$111:W$310,'Project Scope'!$Q$111:$Q$310,$O104,'Project Scope'!$P$111:$P$310,$P104)/H104),\"\")","v":""},{"$f":"IF($A104=\"\",\"\",IF('Project Information'!$D$34=\"yes\",0,$I104*taxrate))","v":""},"",null,null,null,"",""]
[{"$f":"IF(ISBLANK('Project Scope'!AD187),\"\",'Project Scope'!AD187)","v":""},null,null,null,null,null,null,{"$f":"IFERROR(IF($A105=\"\",\"\",SUMIFS('Project Scope'!U$111:U$310,'Project Scope'!$Q$111:$Q$310,$O105,'Project Scope'!$P$111:$P$310,$P105)),\"\")","v":""},{"$f":"IFERROR(IF($A105=\"\",\"\",SUMIFS('Project Scope'!W$111:W$310,'Project Scope'!$Q$111:$Q$310,$O105,'Project Scope'!$P$111:$P$310,$P105)/H105),\"\")","v":""},{"$f":"IF($A105=\"\",\"\",IF('Project Information'!$D$34=\"yes\",0,$I105*taxrate))","v":""},"",null,null,null,"",""]
[{"$f":"IF(ISBLANK('Project Scope'!AD188),\"\",'Project Scope'!AD188)","v":""},null,null,null,null,null,null,{"$f":"IFERROR(IF($A106=\"\",\"\",SUMIFS('Project Scope'!U$111:U$310,'Project Scope'!$Q$111:$Q$310,$O106,'Project Scope'!$P$111:$P$310,$P106)),\"\")","v":""},{"$f":"IFERROR(IF($A106=\"\",\"\",SUMIFS('Project Scope'!W$111:W$310,'Project Scope'!$Q$111:$Q$310,$O106,'Project Scope'!$P$111:$P$310,$P106)/H106),\"\")","v":""},{"$f":"IF($A106=\"\",\"\",IF('Project Information'!$D$34=\"yes\",0,$I106*taxrate))","v":""},"",null,null,null,"",""]
[{"$f":"IF(ISBLANK('Project Scope'!AD189),\"\",'Project Scope'!AD189)","v":""},null,null,null,null,null,null,{"$f":"IFERROR(IF($A107=\"\",\"\",SUMIFS('Project Scope'!U$111:U$310,'Project Scope'!$Q$111:$Q$310,$O107,'Project Scope'!$P$111:$P$310,$P107)),\"\")","v":""},{"$f":"IFERROR(IF($A107=\"\",\"\",SUMIFS('Project Scope'!W$111:W$310,'Project Scope'!$Q$111:$Q$310,$O107,'Project Scope'!$P$111:$P$310,$P107)/H107),\"\")","v":""},{"$f":"IF($A107=\"\",\"\",IF('Project Information'!$D$34=\"yes\",0,$I107*taxrate))","v":""},"",null,null,null,"",""]
[{"$f":"IF(ISBLANK('Project Scope'!AD190),\"\",'Project Scope'!AD190)","v":""},null,null,null,null,null,null,{"$f":"IFERROR(IF($A108=\"\",\"\",SUMIFS('Project Scope'!U$111:U$310,'Project Scope'!$Q$111:$Q$310,$O108,'Project Scope'!$P$111:$P$310,$P108)),\"\")","v":""},{"$f":"IFERROR(IF($A108=\"\",\"\",SUMIFS('Project Scope'!W$111:W$310,'Project Scope'!$Q$111:$Q$310,$O108,'Project Scope'!$P$111:$P$310,$P108)/H108),\"\")","v":""},{"$f":"IF($A108=\"\",\"\",IF('Project Information'!$D$34=\"yes\",0,$I108*taxrate))","v":""},"",null,null,null,"",""]
[{"$f":"IF(ISBLANK('Project Scope'!AD191),\"\",'Project Scope'!AD191)","v":""},null,null,null,null,null,null,{"$f":"IFERROR(IF($A109=\"\",\"\",SUMIFS('Project Scope'!U$111:U$310,'Project Scope'!$Q$111:$Q$310,$O109,'Project Scope'!$P$111:$P$310,$P109)),\"\")","v":""},{"$f":"IFERROR(IF($A109=\"\",\"\",SUMIFS('Project Scope'!W$111:W$310,'Project Scope'!$Q$111:$Q$310,$O109,'Project Scope'!$P$111:$P$310,$P109)/H109),\"\")","v":""},{"$f":"IF($A109=\"\",\"\",IF('Project Information'!$D$34=\"yes\",0,$I109*taxrate))","v":""},"",null,null,null,"",""]
[{"$f":"IF(ISBLANK('Project Scope'!AD192),\"\",'Project Scope'!AD192)","v":""},null,null,null,null,null,null,{"$f":"IFERROR(IF($A110=\"\",\"\",SUMIFS('Project Scope'!U$111:U$310,'Project Scope'!$Q$111:$Q$310,$O110,'Project Scope'!$P$111:$P$310,$P110)),\"\")","v":""},{"$f":"IFERROR(IF($A110=\"\",\"\",SUMIFS('Project Scope'!W$111:W$310,'Project Scope'!$Q$111:$Q$310,$O110,'Project Scope'!$P$111:$P$310,$P110)/H110),\"\")","v":""},{"$f":"IF($A110=\"\",\"\",IF('Project Information'!$D$34=\"yes\",0,$I110*taxrate))","v":""},"",null,null,null,"",""]
[{"$f":"IF(ISBLANK('Project Scope'!AD193),\"\",'Project Scope'!AD193)","v":""},null,null,null,null,null,null,{"$f":"IFERROR(IF($A111=\"\",\"\",SUMIFS('Project Scope'!U$111:U$310,'Project Scope'!$Q$111:$Q$310,$O111,'Project Scope'!$P$111:$P$310,$P111)),\"\")","v":""},{"$f":"IFERROR(IF($A111=\"\",\"\",SUMIFS('Project Scope'!W$111:W$310,'Project Scope'!$Q$111:$Q$310,$O111,'Project Scope'!$P$111:$P$310,$P111)/H111),\"\")","v":""},{"$f":"IF($A111=\"\",\"\",IF('Project Information'!$D$34=\"yes\",0,$I111*taxrate))","v":""},{"$f":"IF($A111=\"\",\"\",SUM(I111:J111)*H111)","v":""},null,null,null,"",""]
[{"$f":"IF(ISBLANK('Project Scope'!AD194),\"\",'Project Scope'!AD194)","v":""},null,null,null,null,null,null,{"$f":"IFERROR(IF($A112=\"\",\"\",SUMIFS('Project Scope'!U$111:U$310,'Project Scope'!$Q$111:$Q$310,$O112,'Project Scope'!$P$111:$P$310,$P112)),\"\")","v":""},{"$f":"IFERROR(IF($A112=\"\",\"\",SUMIFS('Project Scope'!W$111:W$310,'Project Scope'!$Q$111:$Q$310,$O112,'Project Scope'!$P$111:$P$310,$P112)/H112),\"\")","v":""},{"$f":"IF($A112=\"\",\"\",IF('Project Information'!$D$34=\"yes\",0,$I112*taxrate))","v":""},{"$f":"IF($A112=\"\",\"\",SUM(I112:J112)*H112)","v":""},null,null,null,"",""]
[{"$f":"IF(ISBLANK('Project Scope'!AD195),\"\",'Project Scope'!AD195)","v":""},null,null,null,null,null,null,{"$f":"IFERROR(IF($A113=\"\",\"\",SUMIFS('Project Scope'!U$111:U$310,'Project Scope'!$Q$111:$Q$310,$O113,'Project Scope'!$P$111:$P$310,$P113)),\"\")","v":""},{"$f":"IFERROR(IF($A113=\"\",\"\",SUMIFS('Project Scope'!W$111:W$310,'Project Scope'!$Q$111:$Q$310,$O113,'Project Scope'!$P$111:$P$310,$P113)/H113),\"\")","v":""},{"$f":"IF($A113=\"\",\"\",IF('Project Information'!$D$34=\"yes\",0,$I113*taxrate))","v":""},"",null,null,null,"",""]
[{"$f":"IF(ISBLANK('Project Scope'!AD196),\"\",'Project Scope'!AD196)","v":""},null,null,null,null,null,null,{"$f":"IFERROR(IF($A114=\"\",\"\",SUMIFS('Project Scope'!U$111:U$310,'Project Scope'!$Q$111:$Q$310,$O114,'Project Scope'!$P$111:$P$310,$P114)),\"\")","v":""},{"$f":"IFERROR(IF($A114=\"\",\"\",SUMIFS('Project Scope'!W$111:W$310,'Project Scope'!$Q$111:$Q$310,$O114,'Project Scope'!$P$111:$P$310,$P114)/H114),\"\")","v":""},{"$f":"IF($A114=\"\",\"\",IF('Project Information'!$D$34=\"yes\",0,$I114*taxrate))","v":""},"",null,null,null,"",""]
[{"$f":"IF(ISBLANK('Project Scope'!AD197),\"\",'Project Scope'!AD197)","v":""},null,null,null,null,null,null,{"$f":"IFERROR(IF($A115=\"\",\"\",SUMIFS('Project Scope'!U$111:U$310,'Project Scope'!$Q$111:$Q$310,$O115,'Project Scope'!$P$111:$P$310,$P115)),\"\")","v":""},{"$f":"IFERROR(IF($A115=\"\",\"\",SUMIFS('Project Scope'!W$111:W$310,'Project Scope'!$Q$111:$Q$310,$O115,'Project Scope'!$P$111:$P$310,$P115)/H115),\"\")","v":""},{"$f":"IF($A115=\"\",\"\",IF('Project Information'!$D$34=\"yes\",0,$I115*taxrate))","v":""},"",null,null,null,"",""]
[{"$f":"IF(ISBLANK('Project Scope'!AD198),\"\",'Project Scope'!AD198)","v":""},null,null,null,null,null,null,{"$f":"IFERROR(IF($A116=\"\",\"\",SUMIFS('Project Scope'!U$111:U$310,'Project Scope'!$Q$111:$Q$310,$O116,'Project Scope'!$P$111:$P$310,$P116)),\"\")","v":""},{"$f":"IFERROR(IF($A116=\"\",\"\",SUMIFS('Project Scope'!W$111:W$310,'Project Scope'!$Q$111:$Q$310,$O116,'Project Scope'!$P$111:$P$310,$P116)/H116),\"\")","v":""},{"$f":"IF($A116=\"\",\"\",IF('Project Information'!$D$34=\"yes\",0,$I116*taxrate))","v":""},"",null,null,null,"",""]
[{"$f":"IF(ISBLANK('Project Scope'!AD199),\"\",'Project Scope'!AD199)","v":""},null,null,null,null,null,null,{"$f":"IFERROR(IF($A117=\"\",\"\",SUMIFS('Project Scope'!U$111:U$310,'Project Scope'!$Q$111:$Q$310,$O117,'Project Scope'!$P$111:$P$310,$P117)),\"\")","v":""},{"$f":"IFERROR(IF($A117=\"\",\"\",SUMIFS('Project Scope'!W$111:W$310,'Project Scope'!$Q$111:$Q$310,$O117,'Project Scope'!$P$111:$P$310,$P117)/H117),\"\")","v":""},{"$f":"IF($A117=\"\",\"\",IF('Project Information'!$D$34=\"yes\",0,$I117*taxrate))","v":""},"",null,null,null,"",""]
[{"$f":"IF(ISBLANK('Project Scope'!AD200),\"\",'Project Scope'!AD200)","v":""},null,null,null,null,null,null,{"$f":"IFERROR(IF($A118=\"\",\"\",SUMIFS('Project Scope'!U$111:U$310,'Project Scope'!$Q$111:$Q$310,$O118,'Project Scope'!$P$111:$P$310,$P118)),\"\")","v":""},{"$f":"IFERROR(IF($A118=\"\",\"\",SUMIFS('Project Scope'!W$111:W$310,'Project Scope'!$Q$111:$Q$310,$O118,'Project Scope'!$P$111:$P$310,$P118)/H118),\"\")","v":""},{"$f":"IF($A118=\"\",\"\",IF('Project Information'!$D$34=\"yes\",0,$I118*taxrate))","v":""},"",null,null,null,"",""]
[{"$f":"IF(ISBLANK('Project Scope'!AD201),\"\",'Project Scope'!AD201)","v":""},null,null,null,null,null,null,{"$f":"IFERROR(IF($A119=\"\",\"\",SUMIFS('Project Scope'!U$111:U$310,'Project Scope'!$Q$111:$Q$310,$O119,'Project Scope'!$P$111:$P$310,$P119)),\"\")","v":""},{"$f":"IFERROR(IF($A119=\"\",\"\",SUMIFS('Project Scope'!W$111:W$310,'Project Scope'!$Q$111:$Q$310,$O119,'Project Scope'!$P$111:$P$310,$P119)/H119),\"\")","v":""},{"$f":"IF($A119=\"\",\"\",IF('Project Information'!$D$34=\"yes\",0,$I119*taxrate))","v":""},"",null,null,null,"",""]
[{"$f":"IF(ISBLANK('Project Scope'!AD202),\"\",'Project Scope'!AD202)","v":""},null,null,null,null,null,null,{"$f":"IFERROR(IF($A120=\"\",\"\",SUMIFS('Project Scope'!U$111:U$310,'Project Scope'!$Q$111:$Q$310,$O120,'Project Scope'!$P$111:$P$310,$P120)),\"\")","v":""},{"$f":"IFERROR(IF($A120=\"\",\"\",SUMIFS('Project Scope'!W$111:W$310,'Project Scope'!$Q$111:$Q$310,$O120,'Project Scope'!$P$111:$P$310,$P120)/H120),\"\")","v":""},{"$f":"IF($A120=\"\",\"\",IF('Project Information'!$D$34=\"yes\",0,$I120*taxrate))","v":""},"",null,null,null,"",""]
[{"$f":"IF(ISBLANK('Project Scope'!AD203),\"\",'Project Scope'!AD203)","v":""},null,null,null,null,null,null,{"$f":"IFERROR(IF($A121=\"\",\"\",SUMIFS('Project Scope'!U$111:U$310,'Project Scope'!$Q$111:$Q$310,$O121,'Project Scope'!$P$111:$P$310,$P121)),\"\")","v":""},{"$f":"IFERROR(IF($A121=\"\",\"\",SUMIFS('Project Scope'!W$111:W$310,'Project Scope'!$Q$111:$Q$310,$O121,'Project Scope'!$P$111:$P$310,$P121)/H121),\"\")","v":""},{"$f":"IF($A121=\"\",\"\",IF('Project Information'!$D$34=\"yes\",0,$I121*taxrate))","v":""},"",null,null,null,"",""]
[{"$f":"IF(ISBLANK('Project Scope'!AD204),\"\",'Project Scope'!AD204)","v":""},null,null,null,null,null,null,{"$f":"IFERROR(IF($A122=\"\",\"\",SUMIFS('Project Scope'!U$111:U$310,'Project Scope'!$Q$111:$Q$310,$O122,'Project Scope'!$P$111:$P$310,$P122)),\"\")","v":""},{"$f":"IFERROR(IF($A122=\"\",\"\",SUMIFS('Project Scope'!W$111:W$310,'Project Scope'!$Q$111:$Q$310,$O122,'Project Scope'!$P$111:$P$310,$P122)/H122),\"\")","v":""},{"$f":"IF($A122=\"\",\"\",IF('Project Information'!$D$34=\"yes\",0,$I122*taxrate))","v":""},"",null,null,null,"",""]
[{"$f":"IF(ISBLANK('Project Scope'!AD205),\"\",'Project Scope'!AD205)","v":""},null,null,null,null,null,null,{"$f":"IFERROR(IF($A123=\"\",\"\",SUMIFS('Project Scope'!U$111:U$310,'Project Scope'!$Q$111:$Q$310,$O123,'Project Scope'!$P$111:$P$310,$P123)),\"\")","v":""},{"$f":"IFERROR(IF($A123=\"\",\"\",SUMIFS('Project Scope'!W$111:W$310,'Project Scope'!$Q$111:$Q$310,$O123,'Project Scope'!$P$111:$P$310,$P123)/H123),\"\")","v":""},{"$f":"IF($A123=\"\",\"\",IF('Project Information'!$D$34=\"yes\",0,$I123*taxrate))","v":""},"",null,null,null,"",""]
[{"$f":"IF(ISBLANK('Project Scope'!AD206),\"\",'Project Scope'!AD206)","v":""},null,null,null,null,null,null,{"$f":"IFERROR(IF($A124=\"\",\"\",SUMIFS('Project Scope'!U$111:U$310,'Project Scope'!$Q$111:$Q$310,$O124,'Project Scope'!$P$111:$P$310,$P124)),\"\")","v":""},{"$f":"IFERROR(IF($A124=\"\",\"\",SUMIFS('Project Scope'!W$111:W$310,'Project Scope'!$Q$111:$Q$310,$O124,'Project Scope'!$P$111:$P$310,$P124)/H124),\"\")","v":""},{"$f":"IF($A124=\"\",\"\",IF('Project Information'!$D$34=\"yes\",0,$I124*taxrate))","v":""},"",null,null,null,"",""]
[{"$f":"IF(ISBLANK('Project Scope'!AD207),\"\",'Project Scope'!AD207)","v":""},null,null,null,null,null,null,{"$f":"IFERROR(IF($A125=\"\",\"\",SUMIFS('Project Scope'!U$111:U$310,'Project Scope'!$Q$111:$Q$310,$O125,'Project Scope'!$P$111:$P$310,$P125)),\"\")","v":""},{"$f":"IFERROR(IF($A125=\"\",\"\",SUMIFS('Project Scope'!W$111:W$310,'Project Scope'!$Q$111:$Q$310,$O125,'Project Scope'!$P$111:$P$310,$P125)/H125),\"\")","v":""},{"$f":"IF($A125=\"\",\"\",IF('Project Information'!$D$34=\"yes\",0,$I125*taxrate))","v":""},"",null,null,null,"",""]
[{"$f":"IF(ISBLANK('Project Scope'!AD208),\"\",'Project Scope'!AD208)","v":""},null,null,null,null,null,null,{"$f":"IFERROR(IF($A126=\"\",\"\",SUMIFS('Project Scope'!U$111:U$310,'Project Scope'!$Q$111:$Q$310,$O126,'Project Scope'!$P$111:$P$310,$P126)),\"\")","v":""},{"$f":"IFERROR(IF($A126=\"\",\"\",SUMIFS('Project Scope'!W$111:W$310,'Project Scope'!$Q$111:$Q$310,$O126,'Project Scope'!$P$111:$P$310,$P126)/H126),\"\")","v":""},{"$f":"IF($A126=\"\",\"\",IF('Project Information'!$D$34=\"yes\",0,$I126*taxrate))","v":""},"",null,null,null,"",""]
[{"$f":"IF(ISBLANK('Project Scope'!AD209),\"\",'Project Scope'!AD209)","v":""},null,null,null,null,null,null,{"$f":"IFERROR(IF($A127=\"\",\"\",SUMIFS('Project Scope'!U$111:U$310,'Project Scope'!$Q$111:$Q$310,$O127,'Project Scope'!$P$111:$P$310,$P127)),\"\")","v":""},{"$f":"IFERROR(IF($A127=\"\",\"\",SUMIFS('Project Scope'!W$111:W$310,'Project Scope'!$Q$111:$Q$310,$O127,'Project Scope'!$P$111:$P$310,$P127)/H127),\"\")","v":""},{"$f":"IF($A127=\"\",\"\",IF('Project Information'!$D$34=\"yes\",0,$I127*taxrate))","v":""},{"$f":"IF($A127=\"\",\"\",SUM(I127:J127)*H127)","v":""},null,null,null,"",""]
[{"$f":"IF(ISBLANK('Project Scope'!AD210),\"\",'Project Scope'!AD210)","v":""},null,null,null,null,null,null,{"$f":"IFERROR(IF($A128=\"\",\"\",SUMIFS('Project Scope'!U$111:U$310,'Project Scope'!$Q$111:$Q$310,$O128,'Project Scope'!$P$111:$P$310,$P128)),\"\")","v":""},{"$f":"IFERROR(IF($A128=\"\",\"\",SUMIFS('Project Scope'!W$111:W$310,'Project Scope'!$Q$111:$Q$310,$O128,'Project Scope'!$P$111:$P$310,$P128)/H128),\"\")","v":""},{"$f":"IF($A128=\"\",\"\",IF('Project Information'!$D$34=\"yes\",0,$I128*taxrate))","v":""},"",null,null,null,"",""]
["Total",null,null,null,null,null,null,{"$f":"SUM(H29:H128)","v":0},{"$f":"SUM(I29:I128)","v":0},{"$f":"SUM(J29:J128)","v":0},{"$f":"SUM(K29:L128)","v":0}]

{"sheet":"Project Acceptance","index":7,"n_rows":235,"n_cols":11,"rows_kept":235,"cut":false,"hidden":false,"merged":[[229,0,229,7],[230,0,230,7],[231,0,231,7],[232,0,232,7],[233,0,233,7],[224,0,224,7],[225,0,225,7],[226,0,226,7],[227,0,227,7],[228,0,228,7],[219,0,219,7],[220,0,220,7],[221,0,221,7],[222,0,222,7],[223,0,223,7],[214,0,214,7],[215,0,215,7],[216,0,216,7],[217,0,217,7],[218,0,218,7],[209,0,209,7],[210,0,210,7],[211,0,211,7],[212,0,212,7],[213,0,213,7],[204,0,204,7],[205,0,205,7],[206,0,206,7],[207,0,207,7],[208,0,208,7],[199,0,199,7],[200,0,200,7],[201,0,201,7],[202,0,202,7],[203,0,203,7],[194,0,194,7],[195,0,195,7],[196,0,196,7],[197,0,197,7],[198,0,198,7],[189,0,189,7],[190,0,190,7],[191,0,191,7],[192,0,192,7],[193,0,193,7],[184,0,184,7],[185,0,185,7],[186,0,186,7],[187,0,187,7],[188,0,188,7],[179,0,179,7],[180,0,180,7],[181,0,181,7],[182,0,182,7],[183,0,183,7],[174,0,174,7],[175,0,175,7],[176,0,176,7],[177,0,177,7],[178,0,178,7],[169,0,169,7],[170,0,170,7],[171,0,171,7],[172,0,172,7],[173,0,173,7],[164,0,164,7],[165,0,165,7],[166,0,166,7],[167,0,167,7],[168,0,168,7],[159,0,159,7],[160,0,160,7],[161,0,161,7],[162,0,162,7],[163,0,163,7],[154,0,154,7],[155,0,155,7],[156,0,156,7],[157,0,157,7],[158,0,158,7],[149,0,149,7],[150,0,150,7],[151,0,151,7],[152,0,152,7],[153,0,153,7],[144,0,144,7],[145,0,145,7],[146,0,146,7],[147,0,147,7],[148,0,148,7],[139,0,139,7],[140,0,140,7],[141,0,141,7],[142,0,142,7],[143,0,143,7],[134,0,134,7],[135,0,135,7],[136,0,136,7],[137,0,137,7],[138,0,138,7],[129,0,129,7],[130,0,130,7],[131,0,131,7],[132,0,132,7],[133,0,133,7],[124,0,124,7],[125,0,125,7],[126,0,126,7],[127,0,127,7],[128,0,128,7],[108,0,108,7],[119,0,119,7],[120,0,120,7],[121,0,121,7],[122,0,122,7],[123,0,123,7],[114,0,114,7],[115,0,115,7],[116,0,116,7],[117,0,117,7],[118,0,118,7],[113,0,113,7],[39,0,39,7],[40,0,40,7],[41,0,41,7],[86,0,86,7],[56,0,56,7],[57,0,57,7],[58,0,58,7],[59,0,59,7],[60,0,60,7],[61,0,61,7],[62,0,62,7],[63,0,63,7],[64,0,64,7],[65,0,65,7],[74,0,74,7],[83,0,83,7],[70,0,70,7],[71,0,71,7],[72,0,72,7],[55,0,55,7],[79,0,79,7],[66,0,66,7],[67,0,67,7],[68,0,68,7],[75,0,75,7],[76,0,76,7],[77,0,77,7],[78,0,78,7],[46,0,46,7],[52,0,52,7],[53,0,53,7],[47,0,47,7],[48,0,48,7],[49,0,49,7],[50,0,50,7],[51,0,51,7],[54,0,54,7],[107,0,107,7],[88,0,88,7],[13,0,13,10],[14,0,14,10],[15,0,15,10],[32,0,32,10],[33,0,33,7],[84,0,84,7],[85,0,85,7],[34,0,34,7],[35,0,35,7],[36,0,36,7],[37,0,37,7],[43,0,43,7],[38,0,38,7],[42,0,42,7],[44,0,44,7],[69,0,69,7],[80,0,80,7],[81,0,81,7],[82,0,82,7],[87,0,87,7],[45,0,45,7],[73,0,73,7],[11,3,11,5],[234,0,234,7],[89,0,89,7],[90,0,90,7],[91,0,91,7],[92,0,92,7],[93,0,93,7],[94,0,94,7],[95,0,95,7],[96,0,96,7],[97,0,97,7],[98,0,98,7],[99,0,99,7],[100,0,100,7],[101,0,101,7],[102,0,102,7],[103,0,103,7],[109,0,109,7],[110,0,110,7],[111,0,111,7],[112,0,112,7],[104,0,104,7],[105,0,105,7],[106,0,106,7]]}
[null,null,null,"COMMERCIAL & INDUSTRIAL PRESCRIPTIVE LIGHTING SOLUTIONS"]
[null,null,null,{"$f":"'Bill of Materials'!D2","v":"OUTDOOR LIGHTING RETROFIT APPLICATION"}]
[null,null,null,"PROJECT ACCEPTANCE FORM"]
[null,null,null,{"$f":"'Project Information'!$B$2","v":"Cost-effective Lighting Investment Calculator (CLIC) CIPI FON-022-2026"}]
[]
[null,null,"Company Name:",{"$f":"'Project Information'!$D$5","v":0}]
[null,null,"Qualified Partner #1:",{"$f":"'Project Information'!$D$6","v":0}]
[null,null,"Qualified Partner #2:",{"$f":"IF('Project Information'!$D$8<>\"\",'Project Information'!$D$8,\"\")","v":""}]
[null,null,"Facility Name:",{"$f":"'Project Information'!$D$18","v":0}]
[null,null,"Installation Address:",{"$f":"'Project Information'!$D$23","v":0}]
[null,null,"    City:",{"$f":"'Project Information'!$D$25","v":0},null,null,"State:","Maine","Zip:",{"$f":"'Project Information'!$F$25","v":0}]
[null,null,"Reference Number:",{"$f":"'Project Information'!K2","v":0}]
[]
["This Project Acceptance Form (\"Form\") is part of the Commercial & Industrial Prescriptive Lighting Solutions Program. The Form is to be executed in connection with the installation of energy efficiency retrofit measures by the Participating Qualified Partner and the above listed Facility (\"Parties\"). This Form, together with the Scope of Work, constitute the full Agreement between the Parties.  "]
["By signing below, the Parties confirm the measures initialed in Section C of this Form (below) have been installed in the specified quantities and that associated equipment is operational. Additionally, by signing below, the Qualified Partner certifies that all applicable permits have been obtained and all hazardous and nonhazardous materials have been disposed of in accordance with federal, state and local regulations."]
["The customer must review and initial each row in Section C. Both the Installing Contractor and the Applicant must sign, and return this document as outlined in FON CIPI-022-2026 Section 6. If the project is self-installed, then the distributor should sign before submitting.The project incentive will not be paid until the signed/initialed Form is received by the date outlined in CIPI FON-022-2026 Section 6."]
[]
[]
[]
[]
[]
[]
["Participating Customer",null,null,null,null,null,"Date"]
[]
[]
[]
["Participating Qualified Partner",null,null,null,null,null,"Date"]
[]
[]
[]
["Efficiency Maine Representative",null,null,null,null,null,"Date"]
["."]
["Section C. List of Measures"]
["Measure Description ",null,null,null,null,null,null,null,"Location","Quantity Installed","Customer\nInitials\nto Accept"]
[{"$f":"'Scope of Work'!A51:D51","v":""},null,null,null,null,null,null,null,{"$f":"'Project Scope'!R111","v":""},{"$f":"'Scope of Work'!I51","v":""}]
[{"$f":"'Scope of Work'!A52:D52","v":""},null,null,null,null,null,null,null,{"$f":"'Project Scope'!R112","v":""},{"$f":"'Scope of Work'!I52","v":""}]
[{"$f":"'Scope of Work'!A53:D53","v":""},null,null,null,null,null,null,null,{"$f":"'Project Scope'!R113","v":""},{"$f":"'Scope of Work'!I53","v":""}]
[{"$f":"'Scope of Work'!A54:D54","v":""},null,null,null,null,null,null,null,{"$f":"'Project Scope'!R114","v":""},{"$f":"'Scope of Work'!I54","v":""}]
[{"$f":"'Scope of Work'!A55:D55","v":""},null,null,null,null,null,null,null,{"$f":"'Project Scope'!R115","v":""},{"$f":"'Scope of Work'!I55","v":""}]
[{"$f":"'Scope of Work'!A56:D56","v":""},null,null,null,null,null,null,null,{"$f":"'Project Scope'!R116","v":""},{"$f":"'Scope of Work'!I56","v":""}]
[{"$f":"'Scope of Work'!A57:D57","v":""},null,null,null,null,null,null,null,{"$f":"'Project Scope'!R117","v":""},{"$f":"'Scope of Work'!I57","v":""}]
[{"$f":"'Scope of Work'!A58:D58","v":""},null,null,null,null,null,null,null,{"$f":"'Project Scope'!R118","v":""},{"$f":"'Scope of Work'!I58","v":""}]
[{"$f":"'Scope of Work'!A59:D59","v":""},null,null,null,null,null,null,null,{"$f":"'Project Scope'!R119","v":""},{"$f":"'Scope of Work'!I59","v":""}]
[{"$f":"'Scope of Work'!A60:D60","v":""},null,null,null,null,null,null,null,{"$f":"'Project Scope'!R120","v":""},{"$f":"'Scope of Work'!I60","v":""}]
[{"$f":"'Scope of Work'!A61:D61","v":""},null,null,null,null,null,null,null,{"$f":"'Project Scope'!R121","v":""},{"$f":"'Scope of Work'!I61","v":""}]
[{"$f":"'Scope of Work'!A62:D62","v":""},null,null,null,null,null,null,null,{"$f":"'Project Scope'!R122","v":""},{"$f":"'Scope of Work'!I62","v":""}]
[{"$f":"'Scope of Work'!A63:D63","v":""},null,null,null,null,null,null,null,{"$f":"'Project Scope'!R123","v":""},{"$f":"'Scope of Work'!I63","v":""}]
[{"$f":"'Scope of Work'!A64:D64","v":""},null,null,null,null,null,null,null,{"$f":"'Project Scope'!R124","v":""},{"$f":"'Scope of Work'!I64","v":""}]
[{"$f":"'Scope of Work'!A65:D65","v":""},null,null,null,null,null,null,null,{"$f":"'Project Scope'!R125","v":""},{"$f":"'Scope of Work'!I65","v":""}]
[{"$f":"'Scope of Work'!A66:D66","v":""},null,null,null,null,null,null,null,{"$f":"'Project Scope'!R126","v":""},{"$f":"'Scope of Work'!I66","v":""}]
[{"$f":"'Scope of Work'!A67:D67","v":""},null,null,null,null,null,null,null,{"$f":"'Project Scope'!R127","v":""},{"$f":"'Scope of Work'!I67","v":""}]
[{"$f":"'Scope of Work'!A68:D68","v":""},null,null,null,null,null,null,null,{"$f":"'Project Scope'!R128","v":""},{"$f":"'Scope of Work'!I68","v":""}]
[{"$f":"'Scope of Work'!A69:D69","v":""},null,null,null,null,null,null,null,{"$f":"'Project Scope'!R129","v":""},{"$f":"'Scope of Work'!I69","v":""}]
[{"$f":"'Scope of Work'!A70:D70","v":""},null,null,null,null,null,null,null,{"$f":"'Project Scope'!R130","v":""},{"$f":"'Scope of Work'!I70","v":""}]
[{"$f":"'Scope of Work'!A71:D71","v":""},null,null,null,null,null,null,null,{"$f":"'Project Scope'!R131","v":""},{"$f":"'Scope of Work'!I71","v":""}]
[{"$f":"'Scope of Work'!A72:D72","v":""},null,null,null,null,null,null,null,{"$f":"'Project Scope'!R132","v":""},{"$f":"'Scope of Work'!I72","v":""}]
[{"$f":"'Scope of Work'!A73:D73","v":""},null,null,null,null,null,null,null,{"$f":"'Project Scope'!R133","v":""},{"$f":"'Scope of Work'!I73","v":""}]
[{"$f":"'Scope of Work'!A74:D74","v":""},null,null,null,null,null,null,null,{"$f":"'Project Scope'!R134","v":""},{"$f":"'Scope of Work'!I74","v":""}]
[{"$f":"'Scope of Work'!A75:D75","v":""},null,null,null,null,null,null,null,{"$f":"'Project Scope'!R135","v":""},{"$f":"'Scope of Work'!I75","v":""}]
[{"$f":"'Scope of Work'!A76:D76","v":""},null,null,null,null,null,null,null,{"$f":"'Project Scope'!R136","v":""},{"$f":"'Scope of Work'!I76","v":""}]
[{"$f":"'Scope of Work'!A77:D77","v":""},null,null,null,null,null,null,null,{"$f":"'Project Scope'!R137","v":""},{"$f":"'Scope of Work'!I77","v":""}]
[{"$f":"'Scope of Work'!A78:D78","v":""},null,null,null,null,null,null,null,{"$f":"'Project Scope'!R138","v":""},{"$f":"'Scope of Work'!I78","v":""}]
[{"$f":"'Scope of Work'!A79:D79","v":""},null,null,null,null,null,null,null,{"$f":"'Project Scope'!R139","v":""},{"$f":"'Scope of Work'!I79","v":""}]
[{"$f":"'Scope of Work'!A80:D80","v":""},null,null,null,null,null,null,null,{"$f":"'Project Scope'!R140","v":""},{"$f":"'Scope of Work'!I80","v":""}]
[{"$f":"'Scope of Work'!A81:D81","v":""},null,null,null,null,null,null,null,{"$f":"'Project Scope'!R141","v":""},{"$f":"'Scope of Work'!I81","v":""}]
[{"$f":"'Scope of Work'!A82:D82","v":""},null,null,null,null,null,null,null,{"$f":"'Project Scope'!R142","v":""},{"$f":"'Scope of Work'!I82","v":""}]
[{"$f":"'Scope of Work'!A83:D83","v":""},null,null,null,null,null,null,null,{"$f":"'Project Scope'!R143","v":""},{"$f":"'Scope of Work'!I83","v":""}]
[{"$f":"'Scope of Work'!A84:D84","v":""},null,null,null,null,null,null,null,{"$f":"'Project Scope'!R144","v":""},{"$f":"'Scope of Work'!I84","v":""}]
[{"$f":"'Scope of Work'!A85:D85","v":""},null,null,null,null,null,null,null,{"$f":"'Project Scope'!R145","v":""},{"$f":"'Scope of Work'!I85","v":""}]
[{"$f":"'Scope of Work'!A86:D86","v":""},null,null,null,null,null,null,null,{"$f":"'Project Scope'!R146","v":""},{"$f":"'Scope of Work'!I86","v":""}]
[{"$f":"'Scope of Work'!A87:D87","v":""},null,null,null,null,null,null,null,{"$f":"'Project Scope'!R147","v":""},{"$f":"'Scope of Work'!I87","v":""}]
[{"$f":"'Scope of Work'!A88:D88","v":""},null,null,null,null,null,null,null,{"$f":"'Project Scope'!R148","v":""},{"$f":"'Scope of Work'!I88","v":""}]
[{"$f":"'Scope of Work'!A89:D89","v":""},null,null,null,null,null,null,null,{"$f":"'Project Scope'!R149","v":""},{"$f":"'Scope of Work'!I89","v":""}]
[{"$f":"'Scope of Work'!A90:D90","v":""},null,null,null,null,null,null,null,{"$f":"'Project Scope'!R150","v":""},{"$f":"'Scope of Work'!I90","v":""}]
[{"$f":"'Scope of Work'!A91:D91","v":""},null,null,null,null,null,null,null,{"$f":"'Project Scope'!R151","v":""},{"$f":"'Scope of Work'!I91","v":""}]
[{"$f":"'Scope of Work'!A92:D92","v":""},null,null,null,null,null,null,null,{"$f":"'Project Scope'!R152","v":""},{"$f":"'Scope of Work'!I92","v":""}]
[{"$f":"'Scope of Work'!A93:D93","v":""},null,null,null,null,null,null,null,{"$f":"'Project Scope'!R153","v":""},{"$f":"'Scope of Work'!I93","v":""}]
[{"$f":"'Scope of Work'!A94:D94","v":""},null,null,null,null,null,null,null,{"$f":"'Project Scope'!R154","v":""},{"$f":"'Scope of Work'!I94","v":""}]
[{"$f":"'Scope of Work'!A95:D95","v":""},null,null,null,null,null,null,null,{"$f":"'Project Scope'!R155","v":""},{"$f":"'Scope of Work'!I95","v":""}]
[{"$f":"'Scope of Work'!A96:D96","v":""},null,null,null,null,null,null,null,{"$f":"'Project Scope'!R156","v":""},{"$f":"'Scope of Work'!I96","v":""}]
[{"$f":"'Scope of Work'!A97:D97","v":""},null,null,null,null,null,null,null,{"$f":"'Project Scope'!R157","v":""},{"$f":"'Scope of Work'!I97","v":""}]
[{"$f":"'Scope of Work'!A98:D98","v":""},null,null,null,null,null,null,null,{"$f":"'Project Scope'!R158","v":""},{"$f":"'Scope of Work'!I98","v":""}]
[{"$f":"'Scope of Work'!A99:D99","v":""},null,null,null,null,null,null,null,{"$f":"'Project Scope'!R159","v":""},{"$f":"'Scope of Work'!I99","v":""}]
[{"$f":"'Scope of Work'!A100:D100","v":""},null,null,null,null,null,null,null,{"$f":"'Project Scope'!R160","v":""},{"$f":"'Scope of Work'!I100","v":""}]
[{"$f":"'Scope of Work'!A101:D101","v":""},null,null,null,null,null,null,null,{"$f":"'Project Scope'!R161","v":""},{"$f":"'Scope of Work'!I101","v":""}]
[{"$f":"'Scope of Work'!A102:D102","v":""},null,null,null,null,null,null,null,{"$f":"'Project Scope'!R162","v":""},{"$f":"'Scope of Work'!I102","v":""}]
[{"$f":"'Scope of Work'!A103:D103","v":""},null,null,null,null,null,null,null,{"$f":"'Project Scope'!R163","v":""},{"$f":"'Scope of Work'!I103","v":""}]
[{"$f":"'Scope of Work'!A104:D104","v":""},null,null,null,null,null,null,null,{"$f":"'Project Scope'!R164","v":""},{"$f":"'Scope of Work'!I104","v":""}]
[{"$f":"'Scope of Work'!A105:D105","v":""},null,null,null,null,null,null,null,{"$f":"'Project Scope'!R165","v":""},{"$f":"'Scope of Work'!I105","v":""}]
[{"$f":"'Scope of Work'!A106:D106","v":""},null,null,null,null,null,null,null,{"$f":"'Project Scope'!R166","v":""},{"$f":"'Scope of Work'!I106","v":""}]
[{"$f":"'Scope of Work'!A107:D107","v":""},null,null,null,null,null,null,null,{"$f":"'Project Scope'!R167","v":""},{"$f":"'Scope of Work'!I107","v":""}]
[{"$f":"'Scope of Work'!A108:D108","v":""},null,null,null,null,null,null,null,{"$f":"'Project Scope'!R168","v":""},{"$f":"'Scope of Work'!I108","v":""}]
[{"$f":"'Scope of Work'!A109:D109","v":""},null,null,null,null,null,null,null,{"$f":"'Project Scope'!R169","v":""},{"$f":"'Scope of Work'!I109","v":""}]
[{"$f":"'Scope of Work'!A110:D110","v":""},null,null,null,null,null,null,null,{"$f":"'Project Scope'!R170","v":""},{"$f":"'Scope of Work'!I110","v":""}]
[{"$f":"'Scope of Work'!A111:D111","v":""},null,null,null,null,null,null,null,{"$f":"'Project Scope'!R171","v":""},{"$f":"'Scope of Work'!I111","v":""}]
[{"$f":"'Scope of Work'!A112:D112","v":""},null,null,null,null,null,null,null,{"$f":"'Project Scope'!R172","v":""},{"$f":"'Scope of Work'!I112","v":""}]
[{"$f":"'Scope of Work'!A113:D113","v":""},null,null,null,null,null,null,null,{"$f":"'Project Scope'!R173","v":""},{"$f":"'Scope of Work'!I113","v":""}]
[{"$f":"'Scope of Work'!A114:D114","v":""},null,null,null,null,null,null,null,{"$f":"'Project Scope'!R174","v":""},{"$f":"'Scope of Work'!I114","v":""}]
[{"$f":"'Scope of Work'!A115:D115","v":""},null,null,null,null,null,null,null,{"$f":"'Project Scope'!R175","v":""},{"$f":"'Scope of Work'!I115","v":""}]
[{"$f":"'Scope of Work'!A116:D116","v":""},null,null,null,null,null,null,null,{"$f":"'Project Scope'!R176","v":""},{"$f":"'Scope of Work'!I116","v":""}]
[{"$f":"'Scope of Work'!A117:D117","v":""},null,null,null,null,null,null,null,{"$f":"'Project Scope'!R177","v":""},{"$f":"'Scope of Work'!I117","v":""}]
[{"$f":"'Scope of Work'!A118:D118","v":""},null,null,null,null,null,null,null,{"$f":"'Project Scope'!R178","v":""},{"$f":"'Scope of Work'!I118","v":""}]
[{"$f":"'Scope of Work'!A119:D119","v":""},null,null,null,null,null,null,null,{"$f":"'Project Scope'!R179","v":""},{"$f":"'Scope of Work'!I119","v":""}]
[{"$f":"'Scope of Work'!A120:D120","v":""},null,null,null,null,null,null,null,{"$f":"'Project Scope'!R180","v":""},{"$f":"'Scope of Work'!I120","v":""}]
[{"$f":"'Scope of Work'!A121:D121","v":""},null,null,null,null,null,null,null,{"$f":"'Project Scope'!R181","v":""},{"$f":"'Scope of Work'!I121","v":""}]
[{"$f":"'Scope of Work'!A122:D122","v":""},null,null,null,null,null,null,null,{"$f":"'Project Scope'!R182","v":""},{"$f":"'Scope of Work'!I122","v":""}]
[{"$f":"'Scope of Work'!A123:D123","v":""},null,null,null,null,null,null,null,{"$f":"'Project Scope'!R183","v":""},{"$f":"'Scope of Work'!I123","v":""}]
[{"$f":"'Scope of Work'!A124:D124","v":""},null,null,null,null,null,null,null,{"$f":"'Project Scope'!R184","v":""},{"$f":"'Scope of Work'!I124","v":""}]
[{"$f":"'Scope of Work'!A125:D125","v":""},null,null,null,null,null,null,null,{"$f":"'Project Scope'!R185","v":""},{"$f":"'Scope of Work'!I125","v":""}]
[{"$f":"'Scope of Work'!A126:D126","v":""},null,null,null,null,null,null,null,{"$f":"'Project Scope'!R186","v":""},{"$f":"'Scope of Work'!I126","v":""}]
[{"$f":"'Scope of Work'!A127:D127","v":""},null,null,null,null,null,null,null,{"$f":"'Project Scope'!R187","v":""},{"$f":"'Scope of Work'!I127","v":""}]
[{"$f":"'Scope of Work'!A128:D128","v":""},null,null,null,null,null,null,null,{"$f":"'Project Scope'!R188","v":""},{"$f":"'Scope of Work'!I128","v":""}]
[{"$f":"'Scope of Work'!A129:D129","v":""},null,null,null,null,null,null,null,{"$f":"'Project Scope'!R189","v":""},{"$f":"'Scope of Work'!I129","v":""}]
[{"$f":"'Scope of Work'!A130:D130","v":""},null,null,null,null,null,null,null,{"$f":"'Project Scope'!R190","v":""},{"$f":"'Scope of Work'!I130","v":""}]
[{"$f":"'Scope of Work'!A131:D131","v":""},null,null,null,null,null,null,null,{"$f":"'Project Scope'!R191","v":""},{"$f":"'Scope of Work'!I131","v":""}]
[{"$f":"'Scope of Work'!A132:D132","v":""},null,null,null,null,null,null,null,{"$f":"'Project Scope'!R192","v":""},{"$f":"'Scope of Work'!I132","v":""}]
[{"$f":"'Scope of Work'!A133:D133","v":""},null,null,null,null,null,null,null,{"$f":"'Project Scope'!R193","v":""},{"$f":"'Scope of Work'!I133","v":""}]
[{"$f":"'Scope of Work'!A134:D134","v":""},null,null,null,null,null,null,null,{"$f":"'Project Scope'!R194","v":""},{"$f":"'Scope of Work'!I134","v":""}]
[{"$f":"'Scope of Work'!A135:D135","v":""},null,null,null,null,null,null,null,{"$f":"'Project Scope'!R195","v":""},{"$f":"'Scope of Work'!I135","v":""}]
[{"$f":"'Scope of Work'!A136:D136","v":""},null,null,null,null,null,null,null,{"$f":"'Project Scope'!R196","v":""},{"$f":"'Scope of Work'!I136","v":""}]
[{"$f":"'Scope of Work'!A137:D137","v":""},null,null,null,null,null,null,null,{"$f":"'Project Scope'!R197","v":""},{"$f":"'Scope of Work'!I137","v":""}]
[{"$f":"'Scope of Work'!A138:D138","v":""},null,null,null,null,null,null,null,{"$f":"'Project Scope'!R198","v":""},{"$f":"'Scope of Work'!I138","v":""}]
[{"$f":"'Scope of Work'!A139:D139","v":""},null,null,null,null,null,null,null,{"$f":"'Project Scope'!R199","v":""},{"$f":"'Scope of Work'!I139","v":""}]
[{"$f":"'Scope of Work'!A140:D140","v":""},null,null,null,null,null,null,null,{"$f":"'Project Scope'!R200","v":""},{"$f":"'Scope of Work'!I140","v":""}]
[{"$f":"'Scope of Work'!A141:D141","v":""},null,null,null,null,null,null,null,{"$f":"'Project Scope'!R201","v":""},{"$f":"'Scope of Work'!I141","v":""}]
[{"$f":"'Scope of Work'!A142:D142","v":""},null,null,null,null,null,null,null,{"$f":"'Project Scope'!R202","v":""},{"$f":"'Scope of Work'!I142","v":""}]
[{"$f":"'Scope of Work'!A143:D143","v":""},null,null,null,null,null,null,null,{"$f":"'Project Scope'!R203","v":""},{"$f":"'Scope of Work'!I143","v":""}]
[{"$f":"'Scope of Work'!A144:D144","v":""},null,null,null,null,null,null,null,{"$f":"'Project Scope'!R204","v":""},{"$f":"'Scope of Work'!I144","v":""}]
[{"$f":"'Scope of Work'!A145:D145","v":""},null,null,null,null,null,null,null,{"$f":"'Project Scope'!R205","v":""},{"$f":"'Scope of Work'!I145","v":""}]
[{"$f":"'Scope of Work'!A146:D146","v":""},null,null,null,null,null,null,null,{"$f":"'Project Scope'!R206","v":""},{"$f":"'Scope of Work'!I146","v":""}]
[{"$f":"'Scope of Work'!A147:D147","v":""},null,null,null,null,null,null,null,{"$f":"'Project Scope'!R207","v":""},{"$f":"'Scope of Work'!I147","v":""}]
[{"$f":"'Scope of Work'!A148:D148","v":""},null,null,null,null,null,null,null,{"$f":"'Project Scope'!R208","v":""},{"$f":"'Scope of Work'!I148","v":""}]
[{"$f":"'Scope of Work'!A149:D149","v":""},null,null,null,null,null,null,null,{"$f":"'Project Scope'!R209","v":""},{"$f":"'Scope of Work'!I149","v":""}]
[{"$f":"'Scope of Work'!A150:D150","v":""},null,null,null,null,null,null,null,{"$f":"'Project Scope'!R210","v":""},{"$f":"'Scope of Work'!I150","v":""}]
[{"$f":"'Scope of Work'!A151:D151","v":""},null,null,null,null,null,null,null,{"$f":"'Project Scope'!R211","v":""},{"$f":"'Scope of Work'!I151","v":""}]
[{"$f":"'Scope of Work'!A152:D152","v":""},null,null,null,null,null,null,null,{"$f":"'Project Scope'!R212","v":""},{"$f":"'Scope of Work'!I152","v":""}]
[{"$f":"'Scope of Work'!A153:D153","v":""},null,null,null,null,null,null,null,{"$f":"'Project Scope'!R213","v":""},{"$f":"'Scope of Work'!I153","v":""}]
[{"$f":"'Scope of Work'!A154:D154","v":""},null,null,null,null,null,null,null,{"$f":"'Project Scope'!R214","v":""},{"$f":"'Scope of Work'!I154","v":""}]
[{"$f":"'Scope of Work'!A155:D155","v":""},null,null,null,null,null,null,null,{"$f":"'Project Scope'!R215","v":""},{"$f":"'Scope of Work'!I155","v":""}]
[{"$f":"'Scope of Work'!A156:D156","v":""},null,null,null,null,null,null,null,{"$f":"'Project Scope'!R216","v":""},{"$f":"'Scope of Work'!I156","v":""}]
[{"$f":"'Scope of Work'!A157:D157","v":""},null,null,null,null,null,null,null,{"$f":"'Project Scope'!R217","v":""},{"$f":"'Scope of Work'!I157","v":""}]
[{"$f":"'Scope of Work'!A158:D158","v":""},null,null,null,null,null,null,null,{"$f":"'Project Scope'!R218","v":""},{"$f":"'Scope of Work'!I158","v":""}]
[{"$f":"'Scope of Work'!A159:D159","v":""},null,null,null,null,null,null,null,{"$f":"'Project Scope'!R219","v":""},{"$f":"'Scope of Work'!I159","v":""}]
[{"$f":"'Scope of Work'!A160:D160","v":""},null,null,null,null,null,null,null,{"$f":"'Project Scope'!R220","v":""},{"$f":"'Scope of Work'!I160","v":""}]
[{"$f":"'Scope of Work'!A161:D161","v":""},null,null,null,null,null,null,null,{"$f":"'Project Scope'!R221","v":""},{"$f":"'Scope of Work'!I161","v":""}]
[{"$f":"'Scope of Work'!A162:D162","v":""},null,null,null,null,null,null,null,{"$f":"'Project Scope'!R222","v":""},{"$f":"'Scope of Work'!I162","v":""}]
[{"$f":"'Scope of Work'!A163:D163","v":""},null,null,null,null,null,null,null,{"$f":"'Project Scope'!R223","v":""},{"$f":"'Scope of Work'!I163","v":""}]
[{"$f":"'Scope of Work'!A164:D164","v":""},null,null,null,null,null,null,null,{"$f":"'Project Scope'!R224","v":""},{"$f":"'Scope of Work'!I164","v":""}]
[{"$f":"'Scope of Work'!A165:D165","v":""},null,null,null,null,null,null,null,{"$f":"'Project Scope'!R225","v":""},{"$f":"'Scope of Work'!I165","v":""}]
[{"$f":"'Scope of Work'!A166:D166","v":""},null,null,null,null,null,null,null,{"$f":"'Project Scope'!R226","v":""},{"$f":"'Scope of Work'!I166","v":""}]
[{"$f":"'Scope of Work'!A167:D167","v":""},null,null,null,null,null,null,null,{"$f":"'Project Scope'!R227","v":""},{"$f":"'Scope of Work'!I167","v":""}]
[{"$f":"'Scope of Work'!A168:D168","v":""},null,null,null,null,null,null,null,{"$f":"'Project Scope'!R228","v":""},{"$f":"'Scope of Work'!I168","v":""}]
[{"$f":"'Scope of Work'!A169:D169","v":""},null,null,null,null,null,null,null,{"$f":"'Project Scope'!R229","v":""},{"$f":"'Scope of Work'!I169","v":""}]
[{"$f":"'Scope of Work'!A170:D170","v":""},null,null,null,null,null,null,null,{"$f":"'Project Scope'!R230","v":""},{"$f":"'Scope of Work'!I170","v":""}]
[{"$f":"'Scope of Work'!A171:D171","v":""},null,null,null,null,null,null,null,{"$f":"'Project Scope'!R231","v":""},{"$f":"'Scope of Work'!I171","v":""}]
[{"$f":"'Scope of Work'!A172:D172","v":""},null,null,null,null,null,null,null,{"$f":"'Project Scope'!R232","v":""},{"$f":"'Scope of Work'!I172","v":""}]
[{"$f":"'Scope of Work'!A173:D173","v":""},null,null,null,null,null,null,null,{"$f":"'Project Scope'!R233","v":""},{"$f":"'Scope of Work'!I173","v":""}]
[{"$f":"'Scope of Work'!A174:D174","v":""},null,null,null,null,null,null,null,{"$f":"'Project Scope'!R234","v":""},{"$f":"'Scope of Work'!I174","v":""}]
[{"$f":"'Scope of Work'!A175:D175","v":""},null,null,null,null,null,null,null,{"$f":"'Project Scope'!R235","v":""},{"$f":"'Scope of Work'!I175","v":""}]
[{"$f":"'Scope of Work'!A176:D176","v":""},null,null,null,null,null,null,null,{"$f":"'Project Scope'!R236","v":""},{"$f":"'Scope of Work'!I176","v":""}]
[{"$f":"'Scope of Work'!A177:D177","v":""},null,null,null,null,null,null,null,{"$f":"'Project Scope'!R237","v":""},{"$f":"'Scope of Work'!I177","v":""}]
[{"$f":"'Scope of Work'!A178:D178","v":""},null,null,null,null,null,null,null,{"$f":"'Project Scope'!R238","v":""},{"$f":"'Scope of Work'!I178","v":""}]
[{"$f":"'Scope of Work'!A179:D179","v":""},null,null,null,null,null,null,null,{"$f":"'Project Scope'!R239","v":""},{"$f":"'Scope of Work'!I179","v":""}]
[{"$f":"'Scope of Work'!A180:D180","v":""},null,null,null,null,null,null,null,{"$f":"'Project Scope'!R240","v":""},{"$f":"'Scope of Work'!I180","v":""}]
[{"$f":"'Scope of Work'!A181:D181","v":""},null,null,null,null,null,null,null,{"$f":"'Project Scope'!R241","v":""},{"$f":"'Scope of Work'!I181","v":""}]
[{"$f":"'Scope of Work'!A182:D182","v":""},null,null,null,null,null,null,null,{"$f":"'Project Scope'!R242","v":""},{"$f":"'Scope of Work'!I182","v":""}]
[{"$f":"'Scope of Work'!A183:D183","v":""},null,null,null,null,null,null,null,{"$f":"'Project Scope'!R243","v":""},{"$f":"'Scope of Work'!I183","v":""}]
[{"$f":"'Scope of Work'!A184:D184","v":""},null,null,null,null,null,null,null,{"$f":"'Project Scope'!R244","v":""},{"$f":"'Scope of Work'!I184","v":""}]
[{"$f":"'Scope of Work'!A185:D185","v":""},null,null,null,null,null,null,null,{"$f":"'Project Scope'!R245","v":""},{"$f":"'Scope of Work'!I185","v":""}]
[{"$f":"'Scope of Work'!A186:D186","v":""},null,null,null,null,null,null,null,{"$f":"'Project Scope'!R246","v":""},{"$f":"'Scope of Work'!I186","v":""}]
[{"$f":"'Scope of Work'!A187:D187","v":""},null,null,null,null,null,null,null,{"$f":"'Project Scope'!R247","v":""},{"$f":"'Scope of Work'!I187","v":""}]
[{"$f":"'Scope of Work'!A188:D188","v":""},null,null,null,null,null,null,null,{"$f":"'Project Scope'!R248","v":""},{"$f":"'Scope of Work'!I188","v":""}]
[{"$f":"'Scope of Work'!A189:D189","v":""},null,null,null,null,null,null,null,{"$f":"'Project Scope'!R249","v":""},{"$f":"'Scope of Work'!I189","v":""}]
[{"$f":"'Scope of Work'!A190:D190","v":""},null,null,null,null,null,null,null,{"$f":"'Project Scope'!R250","v":""},{"$f":"'Scope of Work'!I190","v":""}]
[{"$f":"'Scope of Work'!A191:D191","v":""},null,null,null,null,null,null,null,{"$f":"'Project Scope'!R251","v":""},{"$f":"'Scope of Work'!I191","v":""}]
[{"$f":"'Scope of Work'!A192:D192","v":""},null,null,null,null,null,null,null,{"$f":"'Project Scope'!R252","v":""},{"$f":"'Scope of Work'!I192","v":""}]
[{"$f":"'Scope of Work'!A193:D193","v":""},null,null,null,null,null,null,null,{"$f":"'Project Scope'!R253","v":""},{"$f":"'Scope of Work'!I193","v":""}]
[{"$f":"'Scope of Work'!A194:D194","v":""},null,null,null,null,null,null,null,{"$f":"'Project Scope'!R254","v":""},{"$f":"'Scope of Work'!I194","v":""}]
[{"$f":"'Scope of Work'!A195:D195","v":""},null,null,null,null,null,null,null,{"$f":"'Project Scope'!R255","v":""},{"$f":"'Scope of Work'!I195","v":""}]
[{"$f":"'Scope of Work'!A196:D196","v":""},null,null,null,null,null,null,null,{"$f":"'Project Scope'!R256","v":""},{"$f":"'Scope of Work'!I196","v":""}]
[{"$f":"'Scope of Work'!A197:D197","v":""},null,null,null,null,null,null,null,{"$f":"'Project Scope'!R257","v":""},{"$f":"'Scope of Work'!I197","v":""}]
[{"$f":"'Scope of Work'!A198:D198","v":""},null,null,null,null,null,null,null,{"$f":"'Project Scope'!R258","v":""},{"$f":"'Scope of Work'!I198","v":""}]
[{"$f":"'Scope of Work'!A199:D199","v":""},null,null,null,null,null,null,null,{"$f":"'Project Scope'!R259","v":""},{"$f":"'Scope of Work'!I199","v":""}]
[{"$f":"'Scope of Work'!A200:D200","v":""},null,null,null,null,null,null,null,{"$f":"'Project Scope'!R260","v":""},{"$f":"'Scope of Work'!I200","v":""}]
[{"$f":"'Scope of Work'!A201:D201","v":""},null,null,null,null,null,null,null,{"$f":"'Project Scope'!R261","v":""},{"$f":"'Scope of Work'!I201","v":""}]
[{"$f":"'Scope of Work'!A202:D202","v":""},null,null,null,null,null,null,null,{"$f":"'Project Scope'!R262","v":""},{"$f":"'Scope of Work'!I202","v":""}]
[{"$f":"'Scope of Work'!A203:D203","v":""},null,null,null,null,null,null,null,{"$f":"'Project Scope'!R263","v":""},{"$f":"'Scope of Work'!I203","v":""}]
[{"$f":"'Scope of Work'!A204:D204","v":""},null,null,null,null,null,null,null,{"$f":"'Project Scope'!R264","v":""},{"$f":"'Scope of Work'!I204","v":""}]
[{"$f":"'Scope of Work'!A205:D205","v":""},null,null,null,null,null,null,null,{"$f":"'Project Scope'!R265","v":""},{"$f":"'Scope of Work'!I205","v":""}]
[{"$f":"'Scope of Work'!A206:D206","v":""},null,null,null,null,null,null,null,{"$f":"'Project Scope'!R266","v":""},{"$f":"'Scope of Work'!I206","v":""}]
[{"$f":"'Scope of Work'!A207:D207","v":""},null,null,null,null,null,null,null,{"$f":"'Project Scope'!R267","v":""},{"$f":"'Scope of Work'!I207","v":""}]
[{"$f":"'Scope of Work'!A208:D208","v":""},null,null,null,null,null,null,null,{"$f":"'Project Scope'!R268","v":""},{"$f":"'Scope of Work'!I208","v":""}]
[{"$f":"'Scope of Work'!A209:D209","v":""},null,null,null,null,null,null,null,{"$f":"'Project Scope'!R269","v":""},{"$f":"'Scope of Work'!I209","v":""}]
[{"$f":"'Scope of Work'!A210:D210","v":""},null,null,null,null,null,null,null,{"$f":"'Project Scope'!R270","v":""},{"$f":"'Scope of Work'!I210","v":""}]
[{"$f":"'Scope of Work'!A211:D211","v":""},null,null,null,null,null,null,null,{"$f":"'Project Scope'!R271","v":""},{"$f":"'Scope of Work'!I211","v":""}]
[{"$f":"'Scope of Work'!A212:D212","v":""},null,null,null,null,null,null,null,{"$f":"'Project Scope'!R272","v":""},{"$f":"'Scope of Work'!I212","v":""}]
[{"$f":"'Scope of Work'!A213:D213","v":""},null,null,null,null,null,null,null,{"$f":"'Project Scope'!R273","v":""},{"$f":"'Scope of Work'!I213","v":""}]
[{"$f":"'Scope of Work'!A214:D214","v":""},null,null,null,null,null,null,null,{"$f":"'Project Scope'!R274","v":""},{"$f":"'Scope of Work'!I214","v":""}]
[{"$f":"'Scope of Work'!A215:D215","v":""},null,null,null,null,null,null,null,{"$f":"'Project Scope'!R275","v":""},{"$f":"'Scope of Work'!I215","v":""}]
[{"$f":"'Scope of Work'!A216:D216","v":""},null,null,null,null,null,null,null,{"$f":"'Project Scope'!R276","v":""},{"$f":"'Scope of Work'!I216","v":""}]
[{"$f":"'Scope of Work'!A217:D217","v":""},null,null,null,null,null,null,null,{"$f":"'Project Scope'!R277","v":""},{"$f":"'Scope of Work'!I217","v":""}]
[{"$f":"'Scope of Work'!A218:D218","v":""},null,null,null,null,null,null,null,{"$f":"'Project Scope'!R278","v":""},{"$f":"'Scope of Work'!I218","v":""}]
[{"$f":"'Scope of Work'!A219:D219","v":""},null,null,null,null,null,null,null,{"$f":"'Project Scope'!R279","v":""},{"$f":"'Scope of Work'!I219","v":""}]
[{"$f":"'Scope of Work'!A220:D220","v":""},null,null,null,null,null,null,null,{"$f":"'Project Scope'!R280","v":""},{"$f":"'Scope of Work'!I220","v":""}]
[{"$f":"'Scope of Work'!A221:D221","v":""},null,null,null,null,null,null,null,{"$f":"'Project Scope'!R281","v":""},{"$f":"'Scope of Work'!I221","v":""}]
[{"$f":"'Scope of Work'!A222:D222","v":""},null,null,null,null,null,null,null,{"$f":"'Project Scope'!R282","v":""},{"$f":"'Scope of Work'!I222","v":""}]
[{"$f":"'Scope of Work'!A223:D223","v":""},null,null,null,null,null,null,null,{"$f":"'Project Scope'!R283","v":""},{"$f":"'Scope of Work'!I223","v":""}]
[{"$f":"'Scope of Work'!A224:D224","v":""},null,null,null,null,null,null,null,{"$f":"'Project Scope'!R284","v":""},{"$f":"'Scope of Work'!I224","v":""}]
[{"$f":"'Scope of Work'!A225:D225","v":""},null,null,null,null,null,null,null,{"$f":"'Project Scope'!R285","v":""},{"$f":"'Scope of Work'!I225","v":""}]
[{"$f":"'Scope of Work'!A226:D226","v":""},null,null,null,null,null,null,null,{"$f":"'Project Scope'!R286","v":""},{"$f":"'Scope of Work'!I226","v":""}]
[{"$f":"'Scope of Work'!A227:D227","v":""},null,null,null,null,null,null,null,{"$f":"'Project Scope'!R287","v":""},{"$f":"'Scope of Work'!I227","v":""}]
[{"$f":"'Scope of Work'!A228:D228","v":""},null,null,null,null,null,null,null,{"$f":"'Project Scope'!R288","v":""},{"$f":"'Scope of Work'!I228","v":""}]
[{"$f":"'Scope of Work'!A229:D229","v":""},null,null,null,null,null,null,null,{"$f":"'Project Scope'!R289","v":""},{"$f":"'Scope of Work'!I229","v":""}]
[{"$f":"'Scope of Work'!A230:D230","v":""},null,null,null,null,null,null,null,{"$f":"'Project Scope'!R290","v":""},{"$f":"'Scope of Work'!I230","v":""}]
[{"$f":"'Scope of Work'!A231:D231","v":""},null,null,null,null,null,null,null,{"$f":"'Project Scope'!R291","v":""},{"$f":"'Scope of Work'!I231","v":""}]
[{"$f":"'Scope of Work'!A232:D232","v":""},null,null,null,null,null,null,null,{"$f":"'Project Scope'!R292","v":""},{"$f":"'Scope of Work'!I232","v":""}]
[{"$f":"'Scope of Work'!A233:D233","v":""},null,null,null,null,null,null,null,{"$f":"'Project Scope'!R293","v":""},{"$f":"'Scope of Work'!I233","v":""}]
[{"$f":"'Scope of Work'!A234:D234","v":""},null,null,null,null,null,null,null,{"$f":"'Project Scope'!R294","v":""},{"$f":"'Scope of Work'!I234","v":""}]
[{"$f":"'Scope of Work'!A235:D235","v":""},null,null,null,null,null,null,null,{"$f":"'Project Scope'!R295","v":""},{"$f":"'Scope of Work'!I235","v":""}]
[{"$f":"'Scope of Work'!A236:D236","v":""},null,null,null,null,null,null,null,{"$f":"'Project Scope'!R296","v":""},{"$f":"'Scope of Work'!I236","v":""}]
[{"$f":"'Scope of Work'!A237:D237","v":""},null,null,null,null,null,null,null,{"$f":"'Project Scope'!R297","v":""},{"$f":"'Scope of Work'!I237","v":""}]
[{"$f":"'Scope of Work'!A238:D238","v":""},null,null,null,null,null,null,null,{"$f":"'Project Scope'!R298","v":""},{"$f":"'Scope of Work'!I238","v":""}]
[{"$f":"'Scope of Work'!A239:D239","v":""},null,null,null,null,null,null,null,{"$f":"'Project Scope'!R299","v":""},{"$f":"'Scope of Work'!I239","v":""}]
[{"$f":"'Scope of Work'!A240:D240","v":""},null,null,null,null,null,null,null,{"$f":"'Project Scope'!R300","v":""},{"$f":"'Scope of Work'!I240","v":""}]
[{"$f":"'Scope of Work'!A241:D241","v":""},null,null,null,null,null,null,null,{"$f":"'Project Scope'!R301","v":""},{"$f":"'Scope of Work'!I241","v":""}]
[{"$f":"'Scope of Work'!A242:D242","v":""},null,null,null,null,null,null,null,{"$f":"'Project Scope'!R302","v":""},{"$f":"'Scope of Work'!I242","v":""}]
[{"$f":"'Scope of Work'!A243:D243","v":""},null,null,null,null,null,null,null,{"$f":"'Project Scope'!R303","v":""},{"$f":"'Scope of Work'!I243","v":""}]
[{"$f":"'Scope of Work'!A244:D244","v":""},null,null,null,null,null,null,null,{"$f":"'Project Scope'!R304","v":""},{"$f":"'Scope of Work'!I244","v":""}]
[{"$f":"'Scope of Work'!A245:D245","v":""},null,null,null,null,null,null,null,{"$f":"'Project Scope'!R305","v":""},{"$f":"'Scope of Work'!I245","v":""}]
[{"$f":"'Scope of Work'!A246:D246","v":""},null,null,null,null,null,null,null,{"$f":"'Project Scope'!R306","v":""},{"$f":"'Scope of Work'!I246","v":""}]
[{"$f":"'Scope of Work'!A247:D247","v":""},null,null,null,null,null,null,null,{"$f":"'Project Scope'!R307","v":""},{"$f":"'Scope of Work'!I247","v":""}]
[{"$f":"'Scope of Work'!A248:D248","v":""},null,null,null,null,null,null,null,{"$f":"'Project Scope'!R308","v":""},{"$f":"'Scope of Work'!I248","v":""}]
[{"$f":"'Scope of Work'!A249:D249","v":""},null,null,null,null,null,null,null,{"$f":"'Project Scope'!R309","v":""},{"$f":"'Scope of Work'!I249","v":""}]
[{"$f":"'Scope of Work'!A250:D250","v":""},null,null,null,null,null,null,null,{"$f":"'Project Scope'!R310","v":""},{"$f":"'Scope of Work'!I250","v":""}]
["Total",null,null,null,null,null,null,null,null,{"$f":"SUM(J35:J234)","v":0}]

{"sheet":"SB Project Acceptance","index":8,"n_rows":245,"n_cols":11,"rows_kept":245,"cut":false,"hidden":true,"merged":[[13,0,13,10],[14,0,14,10],[15,0,15,10],[32,0,32,10],[33,0,33,7],[34,0,34,7],[41,0,41,7],[42,0,42,7],[43,0,43,7],[44,0,44,7],[45,0,45,7],[46,0,46,7],[35,0,35,7],[36,0,36,7],[37,0,37,7],[38,0,38,7],[39,0,39,7],[40,0,40,7],[53,0,53,7],[54,0,54,7],[55,0,55,7],[56,0,56,7],[57,0,57,7],[58,0,58,7],[47,0,47,7],[48,0,48,7],[49,0,49,7],[50,0,50,7],[51,0,51,7],[52,0,52,7],[65,0,65,7],[66,0,66,7],[67,0,67,7],[68,0,68,7],[69,0,69,7],[70,0,70,7],[59,0,59,7],[60,0,60,7],[61,0,61,7],[62,0,62,7],[63,0,63,7],[64,0,64,7],[77,0,77,7],[78,0,78,7],[79,0,79,7],[80,0,80,7],[81,0,81,7],[82,0,82,7],[71,0,71,7],[72,0,72,7],[73,0,73,7],[74,0,74,7],[75,0,75,7],[76,0,76,7],[89,0,89,7],[90,0,90,7],[91,0,91,7],[92,0,92,7],[93,0,93,7],[94,0,94,7],[83,0,83,7],[84,0,84,7],[85,0,85,7],[86,0,86,7],[87,0,87,7],[88,0,88,7],[101,0,101,7],[102,0,102,7],[103,0,103,7],[104,0,104,7],[105,0,105,7],[106,0,106,7],[95,0,95,7],[96,0,96,7],[97,0,97,7],[98,0,98,7],[99,0,99,7],[100,0,100,7],[113,0,113,7],[114,0,114,7],[115,0,115,7],[116,0,116,7],[117,0,117,7],[118,0,118,7],[107,0,107,7],[108,0,108,7],[109,0,109,7],[110,0,110,7],[111,0,111,7],[112,0,112,7],[125,0,125,7],[126,0,126,7],[127,0,127,7],[128,0,128,7],[129,0,129,7],[130,0,130,7],[119,0,119,7],[120,0,120,7],[121,0,121,7],[122,0,122,7],[123,0,123,7],[124,0,124,7],[137,0,137,7],[138,0,138,7],[139,0,139,7],[140,0,140,7],[141,0,141,7],[142,0,142,7],[131,0,131,7],[132,0,132,7],[133,0,133,7],[134,0,134,7],[135,0,135,7],[136,0,136,7],[149,0,149,7],[150,0,150,7],[151,0,151,7],[152,0,152,7],[153,0,153,7],[154,0,154,7],[143,0,143,7],[144,0,144,7],[145,0,145,7],[146,0,146,7],[147,0,147,7],[148,0,148,7],[161,0,161,7],[162,0,162,7],[163,0,163,7],[164,0,164,7],[165,0,165,7],[166,0,166,7],[155,0,155,7],[156,0,156,7],[157,0,157,7],[158,0,158,7],[159,0,159,7],[160,0,160,7],[173,0,173,7],[174,0,174,7],[175,0,175,7],[176,0,176,7],[177,0,177,7],[178,0,178,7],[167,0,167,7],[168,0,168,7],[169,0,169,7],[170,0,170,7],[171,0,171,7],[172,0,172,7],[185,0,185,7],[186,0,186,7],[187,0,187,7],[188,0,188,7],[189,0,189,7],[190,0,190,7],[179,0,179,7],[180,0,180,7],[181,0,181,7],[182,0,182,7],[183,0,183,7],[184,0,184,7],[197,0,197,7],[198,0,198,7],[199,0,199,7],[200,0,200,7],[201,0,201,7],[202,0,202,7],[191,0,191,7],[192,0,192,7],[193,0,193,7],[194,0,194,7],[195,0,195,7],[196,0,196,7],[219,0,219,7],[220,0,220,7],[209,0,209,7],[210,0,210,7],[211,0,211,7],[212,0,212,7],[213,0,213,7],[214,0,214,7],[203,0,203,7],[204,0,204,7],[205,0,205,7],[206,0,206,7],[207,0,207,7],[208,0,208,7],[11,3,11,5],[233,0,233,7],[234,0,234,7],[239,0,239,10],[242,4,242,6],[243,4,243,6],[244,4,244,6],[227,0,227,7],[228,0,228,7],[229,0,229,7],[230,0,230,7],[231,0,231,7],[232,0,232,7],[241,4,241,6],[221,0,221,7],[222,0,222,7],[223,0,223,7],[224,0,224,7],[225,0,225,7],[226,0,226,7],[215,0,215,7],[216,0,216,7],[217,0,217,7],[218,0,218,7]]}
[null,null,null,"COMMERCIAL & INDUSTRIAL PRESCRIPTIVE LIGHTING SOLUTIONS"]
[null,null,null,{"$f":"'Bill of Materials'!D2","v":"OUTDOOR LIGHTING RETROFIT APPLICATION"}]
[null,null,null,"SMALL BUSINESS PROJECT ACCEPTANCE FORM"]
[null,null,null,{"$f":"'Project Information'!$B$2","v":"Cost-effective Lighting Investment Calculator (CLIC) CIPI FON-022-2026"}]
[]
[null,null,"Company Name:",{"$f":"'Project Information'!$D$5","v":0}]
[null,null,"Qualified Partner #1:",{"$f":"'Project Information'!$D$6","v":0}]
[null,null,"Qualified Partner #2:",{"$f":"IF('Project Information'!$D$8<>\"\",'Project Information'!$D$8,\"\")","v":""}]
[null,null,"Facility Name:",{"$f":"'Project Information'!$D$18","v":0}]
[null,null,"Installation Address:",{"$f":"'Project Information'!$D$23","v":0}]
[null,null,"    City:",{"$f":"'Project Information'!$D$25","v":0},null,null,"State:","Maine","Zip:",{"$f":"'Project Information'!$F$25","v":0}]
[null,null,"Reference Number:",{"$f":"'Project Information'!K2","v":0}]
[]
["This Project Acceptance Form (\"Form\") is part of the Commercial & Industrial Prescriptive Lighting Solutions Program. The Form is to be executed in connection with the installation of energy efficiency retrofit measures by the Participating Qualified Partner and the above listed Facility (\"Parties\"). This Form, together with the Scope of Work, constitute the full Agreement between the Parties.  "]
["By signing below, the Parties confirm the measures initialed in Section C of this Form (below) have been installed in the specified quantities and that associated equipment is operational. Additionally, by signing below, the Qualified Partner certifies that all applicable permits have been obtained and all hazardous and nonhazardous materials have been disposed of in accordance with federal, state and local regulations."]
["The customer must review and initial each row in Section C, sign, and return this document to your Qualified Partner. The installing contractor must also sign this Form. The project incentive will not be paid until the signed/initialed Form is received by the program delivery team."]
[]
[]
[]
[]
[]
[]
["Participating Customer",null,null,null,null,null,"Date"]
[]
[]
[]
["Participating Qualified Partner",null,null,null,null,null,"Date"]
[]
[]
[]
["Efficiency Maine Representative",null,null,null,null,null,"Date"]
["."]
["Section C. List of Measures"]
["Measure Description ",null,null,null,null,null,null,null,"Location","Quantity Installed","Customer \nInitials to Accept"]
[{"$f":"'Scope of Work'!A44:D44","v":0},null,null,null,null,null,null,null,{"$f":"'Project Scope'!R111","v":""},{"$f":"'Scope of Work'!G44","v":0}]
[{"$f":"'Scope of Work'!A45:D45","v":0},null,null,null,null,null,null,null,{"$f":"'Project Scope'!R112","v":""},{"$f":"'Scope of Work'!G45","v":0}]
[{"$f":"'Scope of Work'!A46:D46","v":0},null,null,null,null,null,null,null,{"$f":"'Project Scope'!R113","v":""},{"$f":"'Scope of Work'!G46","v":0}]
[{"$f":"'Scope of Work'!A48:D48","v":0},null,null,null,null,null,null,null,{"$f":"'Project Scope'!R114","v":""},{"$f":"'Scope of Work'!G48","v":0}]
[{"$f":"'Scope of Work'!A49:D49","v":"Section C. List of Measures"},null,null,null,null,null,null,null,{"$f":"'Project Scope'!R115","v":""},{"$f":"'Scope of Work'!G49","v":0}]
[{"$f":"'Scope of Work'!A50:D50","v":"Measure Description "},null,null,null,null,null,null,null,{"$f":"'Project Scope'!R116","v":""},{"$f":"'Scope of Work'!I50","v":"Qty"}]
[{"$f":"'Scope of Work'!A51:D51","v":""},null,null,null,null,null,null,null,{"$f":"'Project Scope'!R117","v":""},{"$f":"'Scope of Work'!I51","v":""}]
[{"$f":"'Scope of Work'!A52:D52","v":""},null,null,null,null,null,null,null,{"$f":"'Project Scope'!R118","v":""},{"$f":"'Scope of Work'!I52","v":""}]
[{"$f":"'Scope of Work'!A53:D53","v":""},null,null,null,null,null,null,null,{"$f":"'Project Scope'!R119","v":""},{"$f":"'Scope of Work'!I53","v":""}]
[{"$f":"'Scope of Work'!A54:D54","v":""},null,null,null,null,null,null,null,{"$f":"'Project Scope'!R120","v":""},{"$f":"'Scope of Work'!I54","v":""}]
[{"$f":"'Scope of Work'!A55:D55","v":""},null,null,null,null,null,null,null,{"$f":"'Project Scope'!R121","v":""},{"$f":"'Scope of Work'!I55","v":""}]
[{"$f":"'Scope of Work'!A56:D56","v":""},null,null,null,null,null,null,null,{"$f":"'Project Scope'!R122","v":""},{"$f":"'Scope of Work'!I56","v":""}]
[{"$f":"'Scope of Work'!A57:D57","v":""},null,null,null,null,null,null,null,{"$f":"'Project Scope'!R123","v":""},{"$f":"'Scope of Work'!I57","v":""}]
[{"$f":"'Scope of Work'!A58:D58","v":""},null,null,null,null,null,null,null,{"$f":"'Project Scope'!R124","v":""},{"$f":"'Scope of Work'!I58","v":""}]
[{"$f":"'Scope of Work'!A59:D59","v":""},null,null,null,null,null,null,null,{"$f":"'Project Scope'!R125","v":""},{"$f":"'Scope of Work'!I59","v":""}]
[{"$f":"'Scope of Work'!A60:D60","v":""},null,null,null,null,null,null,null,{"$f":"'Project Scope'!R126","v":""},{"$f":"'Scope of Work'!I60","v":""}]
[{"$f":"'Scope of Work'!A61:D61","v":""},null,null,null,null,null,null,null,{"$f":"'Project Scope'!R127","v":""},{"$f":"'Scope of Work'!I61","v":""}]
[{"$f":"'Scope of Work'!A62:D62","v":""},null,null,null,null,null,null,null,{"$f":"'Project Scope'!R128","v":""},{"$f":"'Scope of Work'!I62","v":""}]
[{"$f":"'Scope of Work'!A63:D63","v":""},null,null,null,null,null,null,null,{"$f":"'Project Scope'!R129","v":""},{"$f":"'Scope of Work'!I63","v":""}]
[{"$f":"'Scope of Work'!A64:D64","v":""},null,null,null,null,null,null,null,{"$f":"'Project Scope'!R130","v":""},{"$f":"'Scope of Work'!I64","v":""}]
[{"$f":"'Scope of Work'!A65:D65","v":""},null,null,null,null,null,null,null,{"$f":"'Project Scope'!R131","v":""},{"$f":"'Scope of Work'!I65","v":""}]
[{"$f":"'Scope of Work'!A66:D66","v":""},null,null,null,null,null,null,null,{"$f":"'Project Scope'!R132","v":""},{"$f":"'Scope of Work'!I66","v":""}]
[{"$f":"'Scope of Work'!A67:D67","v":""},null,null,null,null,null,null,null,{"$f":"'Project Scope'!R133","v":""},{"$f":"'Scope of Work'!I67","v":""}]
[{"$f":"'Scope of Work'!A68:D68","v":""},null,null,null,null,null,null,null,{"$f":"'Project Scope'!R134","v":""},{"$f":"'Scope of Work'!I68","v":""}]
[{"$f":"'Scope of Work'!A69:D69","v":""},null,null,null,null,null,null,null,{"$f":"'Project Scope'!R135","v":""},{"$f":"'Scope of Work'!I69","v":""}]
[{"$f":"'Scope of Work'!A70:D70","v":""},null,null,null,null,null,null,null,{"$f":"'Project Scope'!R136","v":""},{"$f":"'Scope of Work'!I70","v":""}]
[{"$f":"'Scope of Work'!A71:D71","v":""},null,null,null,null,null,null,null,{"$f":"'Project Scope'!R137","v":""},{"$f":"'Scope of Work'!I71","v":""}]
[{"$f":"'Scope of Work'!A72:D72","v":""},null,null,null,null,null,null,null,{"$f":"'Project Scope'!R138","v":""},{"$f":"'Scope of Work'!I72","v":""}]
[{"$f":"'Scope of Work'!A73:D73","v":""},null,null,null,null,null,null,null,{"$f":"'Project Scope'!R139","v":""},{"$f":"'Scope of Work'!I73","v":""}]
[{"$f":"'Scope of Work'!A74:D74","v":""},null,null,null,null,null,null,null,{"$f":"'Project Scope'!R140","v":""},{"$f":"'Scope of Work'!I74","v":""}]
[{"$f":"'Scope of Work'!A75:D75","v":""},null,null,null,null,null,null,null,{"$f":"'Project Scope'!R141","v":""},{"$f":"'Scope of Work'!I75","v":""}]
[{"$f":"'Scope of Work'!A76:D76","v":""},null,null,null,null,null,null,null,{"$f":"'Project Scope'!R142","v":""},{"$f":"'Scope of Work'!I76","v":""}]
[{"$f":"'Scope of Work'!A77:D77","v":""},null,null,null,null,null,null,null,{"$f":"'Project Scope'!R143","v":""},{"$f":"'Scope of Work'!I77","v":""}]
[{"$f":"'Scope of Work'!A78:D78","v":""},null,null,null,null,null,null,null,{"$f":"'Project Scope'!R144","v":""},{"$f":"'Scope of Work'!I78","v":""}]
[{"$f":"'Scope of Work'!A79:D79","v":""},null,null,null,null,null,null,null,{"$f":"'Project Scope'!R145","v":""},{"$f":"'Scope of Work'!I79","v":""}]
[{"$f":"'Scope of Work'!A80:D80","v":""},null,null,null,null,null,null,null,{"$f":"'Project Scope'!R146","v":""},{"$f":"'Scope of Work'!I80","v":""}]
[{"$f":"'Scope of Work'!A81:D81","v":""},null,null,null,null,null,null,null,{"$f":"'Project Scope'!R147","v":""},{"$f":"'Scope of Work'!I81","v":""}]
[{"$f":"'Scope of Work'!A82:D82","v":""},null,null,null,null,null,null,null,{"$f":"'Project Scope'!R148","v":""},{"$f":"'Scope of Work'!I82","v":""}]
[{"$f":"'Scope of Work'!A83:D83","v":""},null,null,null,null,null,null,null,{"$f":"'Project Scope'!R149","v":""},{"$f":"'Scope of Work'!I83","v":""}]
[{"$f":"'Scope of Work'!A84:D84","v":""},null,null,null,null,null,null,null,{"$f":"'Project Scope'!R150","v":""},{"$f":"'Scope of Work'!I84","v":""}]
[{"$f":"'Scope of Work'!A85:D85","v":""},null,null,null,null,null,null,null,{"$f":"'Project Scope'!R151","v":""},{"$f":"'Scope of Work'!I85","v":""}]
[{"$f":"'Scope of Work'!A86:D86","v":""},null,null,null,null,null,null,null,{"$f":"'Project Scope'!R152","v":""},{"$f":"'Scope of Work'!I86","v":""}]
[{"$f":"'Scope of Work'!A87:D87","v":""},null,null,null,null,null,null,null,{"$f":"'Project Scope'!R153","v":""},{"$f":"'Scope of Work'!I87","v":""}]
[{"$f":"'Scope of Work'!A88:D88","v":""},null,null,null,null,null,null,null,{"$f":"'Project Scope'!R154","v":""},{"$f":"'Scope of Work'!I88","v":""}]
[{"$f":"'Scope of Work'!A89:D89","v":""},null,null,null,null,null,null,null,{"$f":"'Project Scope'!R155","v":""},{"$f":"'Scope of Work'!I89","v":""}]
[{"$f":"'Scope of Work'!A90:D90","v":""},null,null,null,null,null,null,null,{"$f":"'Project Scope'!R156","v":""},{"$f":"'Scope of Work'!I90","v":""}]
[{"$f":"'Scope of Work'!A91:D91","v":""},null,null,null,null,null,null,null,{"$f":"'Project Scope'!R157","v":""},{"$f":"'Scope of Work'!I91","v":""}]
[{"$f":"'Scope of Work'!A92:D92","v":""},null,null,null,null,null,null,null,{"$f":"'Project Scope'!R158","v":""},{"$f":"'Scope of Work'!I92","v":""}]
[{"$f":"'Scope of Work'!A93:D93","v":""},null,null,null,null,null,null,null,{"$f":"'Project Scope'!R159","v":""},{"$f":"'Scope of Work'!I93","v":""}]
[{"$f":"'Scope of Work'!A94:D94","v":""},null,null,null,null,null,null,null,{"$f":"'Project Scope'!R160","v":""},{"$f":"'Scope of Work'!I94","v":""}]
[{"$f":"'Scope of Work'!A95:D95","v":""},null,null,null,null,null,null,null,{"$f":"'Project Scope'!R161","v":""},{"$f":"'Scope of Work'!I95","v":""}]
[{"$f":"'Scope of Work'!A96:D96","v":""},null,null,null,null,null,null,null,{"$f":"'Project Scope'!R162","v":""},{"$f":"'Scope of Work'!I96","v":""}]
[{"$f":"'Scope of Work'!A97:D97","v":""},null,null,null,null,null,null,null,{"$f":"'Project Scope'!R163","v":""},{"$f":"'Scope of Work'!I97","v":""}]
[{"$f":"'Scope of Work'!A98:D98","v":""},null,null,null,null,null,null,null,{"$f":"'Project Scope'!R164","v":""},{"$f":"'Scope of Work'!I98","v":""}]
[{"$f":"'Scope of Work'!A99:D99","v":""},null,null,null,null,null,null,null,{"$f":"'Project Scope'!R165","v":""},{"$f":"'Scope of Work'!I99","v":""}]
[{"$f":"'Scope of Work'!A100:D100","v":""},null,null,null,null,null,null,null,{"$f":"'Project Scope'!R166","v":""},{"$f":"'Scope of Work'!I100","v":""}]
[{"$f":"'Scope of Work'!A101:D101","v":""},null,null,null,null,null,null,null,{"$f":"'Project Scope'!R167","v":""},{"$f":"'Scope of Work'!I101","v":""}]
[{"$f":"'Scope of Work'!A102:D102","v":""},null,null,null,null,null,null,null,{"$f":"'Project Scope'!R168","v":""},{"$f":"'Scope of Work'!I102","v":""}]
[{"$f":"'Scope of Work'!A103:D103","v":""},null,null,null,null,null,null,null,{"$f":"'Project Scope'!R169","v":""},{"$f":"'Scope of Work'!I103","v":""}]
[{"$f":"'Scope of Work'!A104:D104","v":""},null,null,null,null,null,null,null,{"$f":"'Project Scope'!R170","v":""},{"$f":"'Scope of Work'!I104","v":""}]
[{"$f":"'Scope of Work'!A105:D105","v":""},null,null,null,null,null,null,null,{"$f":"'Project Scope'!R171","v":""},{"$f":"'Scope of Work'!I105","v":""}]
[{"$f":"'Scope of Work'!A106:D106","v":""},null,null,null,null,null,null,null,{"$f":"'Project Scope'!R172","v":""},{"$f":"'Scope of Work'!I106","v":""}]
[{"$f":"'Scope of Work'!A107:D107","v":""},null,null,null,null,null,null,null,{"$f":"'Project Scope'!R173","v":""},{"$f":"'Scope of Work'!I107","v":""}]
[{"$f":"'Scope of Work'!A108:D108","v":""},null,null,null,null,null,null,null,{"$f":"'Project Scope'!R174","v":""},{"$f":"'Scope of Work'!I108","v":""}]
[{"$f":"'Scope of Work'!A109:D109","v":""},null,null,null,null,null,null,null,{"$f":"'Project Scope'!R175","v":""},{"$f":"'Scope of Work'!I109","v":""}]
[{"$f":"'Scope of Work'!A110:D110","v":""},null,null,null,null,null,null,null,{"$f":"'Project Scope'!R176","v":""},{"$f":"'Scope of Work'!I110","v":""}]
[{"$f":"'Scope of Work'!A111:D111","v":""},null,null,null,null,null,null,null,{"$f":"'Project Scope'!R177","v":""},{"$f":"'Scope of Work'!I111","v":""}]
[{"$f":"'Scope of Work'!A112:D112","v":""},null,null,null,null,null,null,null,{"$f":"'Project Scope'!R178","v":""},{"$f":"'Scope of Work'!I112","v":""}]
[{"$f":"'Scope of Work'!A113:D113","v":""},null,null,null,null,null,null,null,{"$f":"'Project Scope'!R179","v":""},{"$f":"'Scope of Work'!I113","v":""}]
[{"$f":"'Scope of Work'!A114:D114","v":""},null,null,null,null,null,null,null,{"$f":"'Project Scope'!R180","v":""},{"$f":"'Scope of Work'!I114","v":""}]
[{"$f":"'Scope of Work'!A115:D115","v":""},null,null,null,null,null,null,null,{"$f":"'Project Scope'!R181","v":""},{"$f":"'Scope of Work'!I115","v":""}]
[{"$f":"'Scope of Work'!A116:D116","v":""},null,null,null,null,null,null,null,{"$f":"'Project Scope'!R182","v":""},{"$f":"'Scope of Work'!I116","v":""}]
[{"$f":"'Scope of Work'!A117:D117","v":""},null,null,null,null,null,null,null,{"$f":"'Project Scope'!R183","v":""},{"$f":"'Scope of Work'!I117","v":""}]
[{"$f":"'Scope of Work'!A118:D118","v":""},null,null,null,null,null,null,null,{"$f":"'Project Scope'!R184","v":""},{"$f":"'Scope of Work'!I118","v":""}]
[{"$f":"'Scope of Work'!A119:D119","v":""},null,null,null,null,null,null,null,{"$f":"'Project Scope'!R185","v":""},{"$f":"'Scope of Work'!I119","v":""}]
[{"$f":"'Scope of Work'!A120:D120","v":""},null,null,null,null,null,null,null,{"$f":"'Project Scope'!R186","v":""},{"$f":"'Scope of Work'!I120","v":""}]
[{"$f":"'Scope of Work'!A121:D121","v":""},null,null,null,null,null,null,null,{"$f":"'Project Scope'!R187","v":""},{"$f":"'Scope of Work'!I121","v":""}]
[{"$f":"'Scope of Work'!A122:D122","v":""},null,null,null,null,null,null,null,{"$f":"'Project Scope'!R188","v":""},{"$f":"'Scope of Work'!I122","v":""}]
[{"$f":"'Scope of Work'!A123:D123","v":""},null,null,null,null,null,null,null,{"$f":"'Project Scope'!R189","v":""},{"$f":"'Scope of Work'!I123","v":""}]
[{"$f":"'Scope of Work'!A124:D124","v":""},null,null,null,null,null,null,null,{"$f":"'Project Scope'!R190","v":""},{"$f":"'Scope of Work'!I124","v":""}]
[{"$f":"'Scope of Work'!A125:D125","v":""},null,null,null,null,null,null,null,{"$f":"'Project Scope'!R191","v":""},{"$f":"'Scope of Work'!I125","v":""}]
[{"$f":"'Scope of Work'!A126:D126","v":""},null,null,null,null,null,null,null,{"$f":"'Project Scope'!R192","v":""},{"$f":"'Scope of Work'!I126","v":""}]
[{"$f":"'Scope of Work'!A127:D127","v":""},null,null,null,null,null,null,null,{"$f":"'Project Scope'!R193","v":""},{"$f":"'Scope of Work'!I127","v":""}]
[{"$f":"'Scope of Work'!A128:D128","v":""},null,null,null,null,null,null,null,{"$f":"'Project Scope'!R194","v":""},{"$f":"'Scope of Work'!I128","v":""}]
[{"$f":"'Scope of Work'!A129:D129","v":""},null,null,null,null,null,null,null,{"$f":"'Project Scope'!R195","v":""},{"$f":"'Scope of Work'!I129","v":""}]
[{"$f":"'Scope of Work'!A130:D130","v":""},null,null,null,null,null,null,null,{"$f":"'Project Scope'!R196","v":""},{"$f":"'Scope of Work'!I130","v":""}]
[{"$f":"'Scope of Work'!A131:D131","v":""},null,null,null,null,null,null,null,{"$f":"'Project Scope'!R197","v":""},{"$f":"'Scope of Work'!I131","v":""}]
[{"$f":"'Scope of Work'!A132:D132","v":""},null,null,null,null,null,null,null,{"$f":"'Project Scope'!R198","v":""},{"$f":"'Scope of Work'!I132","v":""}]
[{"$f":"'Scope of Work'!A133:D133","v":""},null,null,null,null,null,null,null,{"$f":"'Project Scope'!R199","v":""},{"$f":"'Scope of Work'!I133","v":""}]
[{"$f":"'Scope of Work'!A134:D134","v":""},null,null,null,null,null,null,null,{"$f":"'Project Scope'!R200","v":""},{"$f":"'Scope of Work'!I134","v":""}]
[{"$f":"'Scope of Work'!A135:D135","v":""},null,null,null,null,null,null,null,{"$f":"'Project Scope'!R201","v":""},{"$f":"'Scope of Work'!I135","v":""}]
[{"$f":"'Scope of Work'!A136:D136","v":""},null,null,null,null,null,null,null,{"$f":"'Project Scope'!R202","v":""},{"$f":"'Scope of Work'!I136","v":""}]
[{"$f":"'Scope of Work'!A137:D137","v":""},null,null,null,null,null,null,null,{"$f":"'Project Scope'!R203","v":""},{"$f":"'Scope of Work'!I137","v":""}]
[{"$f":"'Scope of Work'!A138:D138","v":""},null,null,null,null,null,null,null,{"$f":"'Project Scope'!R204","v":""},{"$f":"'Scope of Work'!I138","v":""}]
[{"$f":"'Scope of Work'!A139:D139","v":""},null,null,null,null,null,null,null,{"$f":"'Project Scope'!R205","v":""},{"$f":"'Scope of Work'!I139","v":""}]
[{"$f":"'Scope of Work'!A140:D140","v":""},null,null,null,null,null,null,null,{"$f":"'Project Scope'!R206","v":""},{"$f":"'Scope of Work'!I140","v":""}]
[{"$f":"'Scope of Work'!A141:D141","v":""},null,null,null,null,null,null,null,{"$f":"'Project Scope'!R207","v":""},{"$f":"'Scope of Work'!I141","v":""}]
[{"$f":"'Scope of Work'!A142:D142","v":""},null,null,null,null,null,null,null,{"$f":"'Project Scope'!R208","v":""},{"$f":"'Scope of Work'!I142","v":""}]
[{"$f":"'Scope of Work'!A143:D143","v":""},null,null,null,null,null,null,null,{"$f":"'Project Scope'!R209","v":""},{"$f":"'Scope of Work'!I143","v":""}]
[{"$f":"'Scope of Work'!A144:D144","v":""},null,null,null,null,null,null,null,{"$f":"'Project Scope'!R210","v":""},{"$f":"'Scope of Work'!I144","v":""}]
[{"$f":"'Scope of Work'!A145:D145","v":""},null,null,null,null,null,null,null,{"$f":"'Project Scope'!R211","v":""},{"$f":"'Scope of Work'!I145","v":""}]
[{"$f":"'Scope of Work'!A146:D146","v":""},null,null,null,null,null,null,null,{"$f":"'Project Scope'!R212","v":""},{"$f":"'Scope of Work'!I146","v":""}]
[{"$f":"'Scope of Work'!A147:D147","v":""},null,null,null,null,null,null,null,{"$f":"'Project Scope'!R213","v":""},{"$f":"'Scope of Work'!I147","v":""}]
[{"$f":"'Scope of Work'!A148:D148","v":""},null,null,null,null,null,null,null,{"$f":"'Project Scope'!R214","v":""},{"$f":"'Scope of Work'!I148","v":""}]
[{"$f":"'Scope of Work'!A149:D149","v":""},null,null,null,null,null,null,null,{"$f":"'Project Scope'!R215","v":""},{"$f":"'Scope of Work'!I149","v":""}]
[{"$f":"'Scope of Work'!A150:D150","v":""},null,null,null,null,null,null,null,{"$f":"'Project Scope'!R216","v":""},{"$f":"'Scope of Work'!I150","v":""}]
[{"$f":"'Scope of Work'!A151:D151","v":""},null,null,null,null,null,null,null,{"$f":"'Project Scope'!R217","v":""},{"$f":"'Scope of Work'!I151","v":""}]
[{"$f":"'Scope of Work'!A152:D152","v":""},null,null,null,null,null,null,null,{"$f":"'Project Scope'!R218","v":""},{"$f":"'Scope of Work'!I152","v":""}]
[{"$f":"'Scope of Work'!A153:D153","v":""},null,null,null,null,null,null,null,{"$f":"'Project Scope'!R219","v":""},{"$f":"'Scope of Work'!I153","v":""}]
[{"$f":"'Scope of Work'!A154:D154","v":""},null,null,null,null,null,null,null,{"$f":"'Project Scope'!R220","v":""},{"$f":"'Scope of Work'!I154","v":""}]
[{"$f":"'Scope of Work'!A155:D155","v":""},null,null,null,null,null,null,null,{"$f":"'Project Scope'!R221","v":""},{"$f":"'Scope of Work'!I155","v":""}]
[{"$f":"'Scope of Work'!A156:D156","v":""},null,null,null,null,null,null,null,{"$f":"'Project Scope'!R222","v":""},{"$f":"'Scope of Work'!I156","v":""}]
[{"$f":"'Scope of Work'!A157:D157","v":""},null,null,null,null,null,null,null,{"$f":"'Project Scope'!R223","v":""},{"$f":"'Scope of Work'!I157","v":""}]
[{"$f":"'Scope of Work'!A158:D158","v":""},null,null,null,null,null,null,null,{"$f":"'Project Scope'!R224","v":""},{"$f":"'Scope of Work'!I158","v":""}]
[{"$f":"'Scope of Work'!A159:D159","v":""},null,null,null,null,null,null,null,{"$f":"'Project Scope'!R225","v":""},{"$f":"'Scope of Work'!I159","v":""}]
[{"$f":"'Scope of Work'!A160:D160","v":""},null,null,null,null,null,null,null,{"$f":"'Project Scope'!R226","v":""},{"$f":"'Scope of Work'!I160","v":""}]
[{"$f":"'Scope of Work'!A161:D161","v":""},null,null,null,null,null,null,null,{"$f":"'Project Scope'!R227","v":""},{"$f":"'Scope of Work'!I161","v":""}]
[{"$f":"'Scope of Work'!A162:D162","v":""},null,null,null,null,null,null,null,{"$f":"'Project Scope'!R228","v":""},{"$f":"'Scope of Work'!I162","v":""}]
[{"$f":"'Scope of Work'!A163:D163","v":""},null,null,null,null,null,null,null,{"$f":"'Project Scope'!R229","v":""},{"$f":"'Scope of Work'!I163","v":""}]
[{"$f":"'Scope of Work'!A164:D164","v":""},null,null,null,null,null,null,null,{"$f":"'Project Scope'!R230","v":""},{"$f":"'Scope of Work'!I164","v":""}]
[{"$f":"'Scope of Work'!A165:D165","v":""},null,null,null,null,null,null,null,{"$f":"'Project Scope'!R231","v":""},{"$f":"'Scope of Work'!I165","v":""}]
[{"$f":"'Scope of Work'!A166:D166","v":""},null,null,null,null,null,null,null,{"$f":"'Project Scope'!R232","v":""},{"$f":"'Scope of Work'!I166","v":""}]
[{"$f":"'Scope of Work'!A167:D167","v":""},null,null,null,null,null,null,null,{"$f":"'Project Scope'!R233","v":""},{"$f":"'Scope of Work'!I167","v":""}]
[{"$f":"'Scope of Work'!A168:D168","v":""},null,null,null,null,null,null,null,{"$f":"'Project Scope'!R234","v":""},{"$f":"'Scope of Work'!I168","v":""}]
[{"$f":"'Scope of Work'!A169:D169","v":""},null,null,null,null,null,null,null,{"$f":"'Project Scope'!R235","v":""},{"$f":"'Scope of Work'!I169","v":""}]
[{"$f":"'Scope of Work'!A170:D170","v":""},null,null,null,null,null,null,null,{"$f":"'Project Scope'!R236","v":""},{"$f":"'Scope of Work'!I170","v":""}]
[{"$f":"'Scope of Work'!A171:D171","v":""},null,null,null,null,null,null,null,{"$f":"'Project Scope'!R237","v":""},{"$f":"'Scope of Work'!I171","v":""}]
[{"$f":"'Scope of Work'!A172:D172","v":""},null,null,null,null,null,null,null,{"$f":"'Project Scope'!R238","v":""},{"$f":"'Scope of Work'!I172","v":""}]
[{"$f":"'Scope of Work'!A173:D173","v":""},null,null,null,null,null,null,null,{"$f":"'Project Scope'!R239","v":""},{"$f":"'Scope of Work'!I173","v":""}]
[{"$f":"'Scope of Work'!A174:D174","v":""},null,null,null,null,null,null,null,{"$f":"'Project Scope'!R240","v":""},{"$f":"'Scope of Work'!I174","v":""}]
[{"$f":"'Scope of Work'!A175:D175","v":""},null,null,null,null,null,null,null,{"$f":"'Project Scope'!R241","v":""},{"$f":"'Scope of Work'!I175","v":""}]
[{"$f":"'Scope of Work'!A176:D176","v":""},null,null,null,null,null,null,null,{"$f":"'Project Scope'!R242","v":""},{"$f":"'Scope of Work'!I176","v":""}]
[{"$f":"'Scope of Work'!A177:D177","v":""},null,null,null,null,null,null,null,{"$f":"'Project Scope'!R243","v":""},{"$f":"'Scope of Work'!I177","v":""}]
[{"$f":"'Scope of Work'!A178:D178","v":""},null,null,null,null,null,null,null,{"$f":"'Project Scope'!R244","v":""},{"$f":"'Scope of Work'!I178","v":""}]
[{"$f":"'Scope of Work'!A179:D179","v":""},null,null,null,null,null,null,null,{"$f":"'Project Scope'!R245","v":""},{"$f":"'Scope of Work'!I179","v":""}]
[{"$f":"'Scope of Work'!A180:D180","v":""},null,null,null,null,null,null,null,{"$f":"'Project Scope'!R246","v":""},{"$f":"'Scope of Work'!I180","v":""}]
[{"$f":"'Scope of Work'!A181:D181","v":""},null,null,null,null,null,null,null,{"$f":"'Project Scope'!R247","v":""},{"$f":"'Scope of Work'!I181","v":""}]
[{"$f":"'Scope of Work'!A182:D182","v":""},null,null,null,null,null,null,null,{"$f":"'Project Scope'!R248","v":""},{"$f":"'Scope of Work'!I182","v":""}]
[{"$f":"'Scope of Work'!A183:D183","v":""},null,null,null,null,null,null,null,{"$f":"'Project Scope'!R249","v":""},{"$f":"'Scope of Work'!I183","v":""}]
[{"$f":"'Scope of Work'!A184:D184","v":""},null,null,null,null,null,null,null,{"$f":"'Project Scope'!R250","v":""},{"$f":"'Scope of Work'!I184","v":""}]
[{"$f":"'Scope of Work'!A185:D185","v":""},null,null,null,null,null,null,null,{"$f":"'Project Scope'!R251","v":""},{"$f":"'Scope of Work'!I185","v":""}]
[{"$f":"'Scope of Work'!A186:D186","v":""},null,null,null,null,null,null,null,{"$f":"'Project Scope'!R252","v":""},{"$f":"'Scope of Work'!I186","v":""}]
[{"$f":"'Scope of Work'!A187:D187","v":""},null,null,null,null,null,null,null,{"$f":"'Project Scope'!R253","v":""},{"$f":"'Scope of Work'!I187","v":""}]
[{"$f":"'Scope of Work'!A188:D188","v":""},null,null,null,null,null,null,null,{"$f":"'Project Scope'!R254","v":""},{"$f":"'Scope of Work'!I188","v":""}]
[{"$f":"'Scope of Work'!A189:D189","v":""},null,null,null,null,null,null,null,{"$f":"'Project Scope'!R255","v":""},{"$f":"'Scope of Work'!I189","v":""}]
[{"$f":"'Scope of Work'!A190:D190","v":""},null,null,null,null,null,null,null,{"$f":"'Project Scope'!R256","v":""},{"$f":"'Scope of Work'!I190","v":""}]
[{"$f":"'Scope of Work'!A191:D191","v":""},null,null,null,null,null,null,null,{"$f":"'Project Scope'!R257","v":""},{"$f":"'Scope of Work'!I191","v":""}]
[{"$f":"'Scope of Work'!A192:D192","v":""},null,null,null,null,null,null,null,{"$f":"'Project Scope'!R258","v":""},{"$f":"'Scope of Work'!I192","v":""}]
[{"$f":"'Scope of Work'!A193:D193","v":""},null,null,null,null,null,null,null,{"$f":"'Project Scope'!R259","v":""},{"$f":"'Scope of Work'!I193","v":""}]
[{"$f":"'Scope of Work'!A194:D194","v":""},null,null,null,null,null,null,null,{"$f":"'Project Scope'!R260","v":""},{"$f":"'Scope of Work'!I194","v":""}]
[{"$f":"'Scope of Work'!A195:D195","v":""},null,null,null,null,null,null,null,{"$f":"'Project Scope'!R261","v":""},{"$f":"'Scope of Work'!I195","v":""}]
[{"$f":"'Scope of Work'!A196:D196","v":""},null,null,null,null,null,null,null,{"$f":"'Project Scope'!R262","v":""},{"$f":"'Scope of Work'!I196","v":""}]
[{"$f":"'Scope of Work'!A197:D197","v":""},null,null,null,null,null,null,null,{"$f":"'Project Scope'!R263","v":""},{"$f":"'Scope of Work'!I197","v":""}]
[{"$f":"'Scope of Work'!A198:D198","v":""},null,null,null,null,null,null,null,{"$f":"'Project Scope'!R264","v":""},{"$f":"'Scope of Work'!I198","v":""}]
[{"$f":"'Scope of Work'!A199:D199","v":""},null,null,null,null,null,null,null,{"$f":"'Project Scope'!R265","v":""},{"$f":"'Scope of Work'!I199","v":""}]
[{"$f":"'Scope of Work'!A200:D200","v":""},null,null,null,null,null,null,null,{"$f":"'Project Scope'!R266","v":""},{"$f":"'Scope of Work'!I200","v":""}]
[{"$f":"'Scope of Work'!A201:D201","v":""},null,null,null,null,null,null,null,{"$f":"'Project Scope'!R267","v":""},{"$f":"'Scope of Work'!I201","v":""}]
[{"$f":"'Scope of Work'!A202:D202","v":""},null,null,null,null,null,null,null,{"$f":"'Project Scope'!R268","v":""},{"$f":"'Scope of Work'!I202","v":""}]
[{"$f":"'Scope of Work'!A203:D203","v":""},null,null,null,null,null,null,null,{"$f":"'Project Scope'!R269","v":""},{"$f":"'Scope of Work'!I203","v":""}]
[{"$f":"'Scope of Work'!A204:D204","v":""},null,null,null,null,null,null,null,{"$f":"'Project Scope'!R270","v":""},{"$f":"'Scope of Work'!I204","v":""}]
[{"$f":"'Scope of Work'!A205:D205","v":""},null,null,null,null,null,null,null,{"$f":"'Project Scope'!R271","v":""},{"$f":"'Scope of Work'!I205","v":""}]
[{"$f":"'Scope of Work'!A206:D206","v":""},null,null,null,null,null,null,null,{"$f":"'Project Scope'!R272","v":""},{"$f":"'Scope of Work'!I206","v":""}]
[{"$f":"'Scope of Work'!A207:D207","v":""},null,null,null,null,null,null,null,{"$f":"'Project Scope'!R273","v":""},{"$f":"'Scope of Work'!I207","v":""}]
[{"$f":"'Scope of Work'!A208:D208","v":""},null,null,null,null,null,null,null,{"$f":"'Project Scope'!R274","v":""},{"$f":"'Scope of Work'!I208","v":""}]
[{"$f":"'Scope of Work'!A209:D209","v":""},null,null,null,null,null,null,null,{"$f":"'Project Scope'!R275","v":""},{"$f":"'Scope of Work'!I209","v":""}]
[{"$f":"'Scope of Work'!A210:D210","v":""},null,null,null,null,null,null,null,{"$f":"'Project Scope'!R276","v":""},{"$f":"'Scope of Work'!I210","v":""}]
[{"$f":"'Scope of Work'!A211:D211","v":""},null,null,null,null,null,null,null,{"$f":"'Project Scope'!R277","v":""},{"$f":"'Scope of Work'!I211","v":""}]
[{"$f":"'Scope of Work'!A212:D212","v":""},null,null,null,null,null,null,null,{"$f":"'Project Scope'!R278","v":""},{"$f":"'Scope of Work'!I212","v":""}]
[{"$f":"'Scope of Work'!A213:D213","v":""},null,null,null,null,null,null,null,{"$f":"'Project Scope'!R279","v":""},{"$f":"'Scope of Work'!I213","v":""}]
[{"$f":"'Scope of Work'!A214:D214","v":""},null,null,null,null,null,null,null,{"$f":"'Project Scope'!R280","v":""},{"$f":"'Scope of Work'!I214","v":""}]
[{"$f":"'Scope of Work'!A215:D215","v":""},null,null,null,null,null,null,null,{"$f":"'Project Scope'!R281","v":""},{"$f":"'Scope of Work'!I215","v":""}]
[{"$f":"'Scope of Work'!A216:D216","v":""},null,null,null,null,null,null,null,{"$f":"'Project Scope'!R282","v":""},{"$f":"'Scope of Work'!I216","v":""}]
[{"$f":"'Scope of Work'!A217:D217","v":""},null,null,null,null,null,null,null,{"$f":"'Project Scope'!R283","v":""},{"$f":"'Scope of Work'!I217","v":""}]
[{"$f":"'Scope of Work'!A218:D218","v":""},null,null,null,null,null,null,null,{"$f":"'Project Scope'!R284","v":""},{"$f":"'Scope of Work'!I218","v":""}]
[{"$f":"'Scope of Work'!A219:D219","v":""},null,null,null,null,null,null,null,{"$f":"'Project Scope'!R285","v":""},{"$f":"'Scope of Work'!I219","v":""}]
[{"$f":"'Scope of Work'!A220:D220","v":""},null,null,null,null,null,null,null,{"$f":"'Project Scope'!R286","v":""},{"$f":"'Scope of Work'!I220","v":""}]
[{"$f":"'Scope of Work'!A221:D221","v":""},null,null,null,null,null,null,null,{"$f":"'Project Scope'!R287","v":""},{"$f":"'Scope of Work'!I221","v":""}]
[{"$f":"'Scope of Work'!A222:D222","v":""},null,null,null,null,null,null,null,{"$f":"'Project Scope'!R288","v":""},{"$f":"'Scope of Work'!I222","v":""}]
[{"$f":"'Scope of Work'!A223:D223","v":""},null,null,null,null,null,null,null,{"$f":"'Project Scope'!R289","v":""},{"$f":"'Scope of Work'!I223","v":""}]
[{"$f":"'Scope of Work'!A224:D224","v":""},null,null,null,null,null,null,null,{"$f":"'Project Scope'!R290","v":""},{"$f":"'Scope of Work'!I224","v":""}]
[{"$f":"'Scope of Work'!A225:D225","v":""},null,null,null,null,null,null,null,{"$f":"'Project Scope'!R291","v":""},{"$f":"'Scope of Work'!I225","v":""}]
[{"$f":"'Scope of Work'!A226:D226","v":""},null,null,null,null,null,null,null,{"$f":"'Project Scope'!R292","v":""},{"$f":"'Scope of Work'!I226","v":""}]
[{"$f":"'Scope of Work'!A227:D227","v":""},null,null,null,null,null,null,null,{"$f":"'Project Scope'!R293","v":""},{"$f":"'Scope of Work'!I227","v":""}]
[{"$f":"'Scope of Work'!A228:D228","v":""},null,null,null,null,null,null,null,{"$f":"'Project Scope'!R294","v":""},{"$f":"'Scope of Work'!I228","v":""}]
[{"$f":"'Scope of Work'!A229:D229","v":""},null,null,null,null,null,null,null,{"$f":"'Project Scope'!R295","v":""},{"$f":"'Scope of Work'!I229","v":""}]
[{"$f":"'Scope of Work'!A230:D230","v":""},null,null,null,null,null,null,null,{"$f":"'Project Scope'!R296","v":""},{"$f":"'Scope of Work'!I230","v":""}]
[{"$f":"'Scope of Work'!A231:D231","v":""},null,null,null,null,null,null,null,{"$f":"'Project Scope'!R297","v":""},{"$f":"'Scope of Work'!I231","v":""}]
[{"$f":"'Scope of Work'!A232:D232","v":""},null,null,null,null,null,null,null,{"$f":"'Project Scope'!R298","v":""},{"$f":"'Scope of Work'!I232","v":""}]
[{"$f":"'Scope of Work'!A233:D233","v":""},null,null,null,null,null,null,null,{"$f":"'Project Scope'!R299","v":""},{"$f":"'Scope of Work'!I233","v":""}]
[{"$f":"'Scope of Work'!A234:D234","v":""},null,null,null,null,null,null,null,{"$f":"'Project Scope'!R300","v":""},{"$f":"'Scope of Work'!I234","v":""}]
[{"$f":"'Scope of Work'!A235:D235","v":""},null,null,null,null,null,null,null,{"$f":"'Project Scope'!R301","v":""},{"$f":"'Scope of Work'!I235","v":""}]
[{"$f":"'Scope of Work'!A236:D236","v":""},null,null,null,null,null,null,null,{"$f":"'Project Scope'!R302","v":""},{"$f":"'Scope of Work'!I236","v":""}]
[{"$f":"'Scope of Work'!A237:D237","v":""},null,null,null,null,null,null,null,{"$f":"'Project Scope'!R303","v":""},{"$f":"'Scope of Work'!I237","v":""}]
[{"$f":"'Scope of Work'!A238:D238","v":""},null,null,null,null,null,null,null,{"$f":"'Project Scope'!R304","v":""},{"$f":"'Scope of Work'!I238","v":""}]
[{"$f":"'Scope of Work'!A239:D239","v":""},null,null,null,null,null,null,null,{"$f":"'Project Scope'!R305","v":""},{"$f":"'Scope of Work'!I239","v":""}]
[{"$f":"'Scope of Work'!A240:D240","v":""},null,null,null,null,null,null,null,{"$f":"'Project Scope'!R306","v":""},{"$f":"'Scope of Work'!I240","v":""}]
[{"$f":"'Scope of Work'!A241:D241","v":""},null,null,null,null,null,null,null,{"$f":"'Project Scope'!R307","v":""},{"$f":"'Scope of Work'!I241","v":""}]
[{"$f":"'Scope of Work'!A242:D242","v":""},null,null,null,null,null,null,null,{"$f":"'Project Scope'!R308","v":""},{"$f":"'Scope of Work'!I242","v":""}]
[{"$f":"'Scope of Work'!A243:D243","v":""},null,null,null,null,null,null,null,{"$f":"'Project Scope'!R309","v":""},{"$f":"'Scope of Work'!I243","v":""}]
[{"$f":"'Scope of Work'!A244:D244","v":""},null,null,null,null,null,null,null,{"$f":"'Project Scope'!R310","v":""},{"$f":"'Scope of Work'!I244","v":""}]
["Total",null,null,null,null,null,null,null,null,{"$f":"SUM(J35:J234)","v":0}]
[]
[]
[]
[]
["Small Business Initiative\nSchedule 1 to Project Acceptance Form\nSummary of Project Investment"]
[]
[null,null,null,"Total Project Cost:",{"$f":"'Project Information'!L44","v":0}]
[null,null,null,{"$f":"'Project Information'!K45","v":"Estimated Incentives:"},{"$f":"'Project Information'!L45","v":0},null,null,"Paid to Contractor by Efficiency Maine"]
[null,null,null,{"$f":"'Project Information'!K46","v":"Estimated Cost to Customer:"},{"$f":"'Project Information'!L46","v":0},null,null,"Paid to Contractor by Customer"]
[null,null,null,{"$f":"'Project Information'!K47","v":"Est. Simple Payback (years):"},{"$f":"'Project Information'!L47","v":{"$error":"#DIV/0!"}}]

{"sheet":"effRT Enrollment Upload","index":9,"n_rows":202,"n_cols":91,"rows_kept":202,"cut":false,"hidden":true,"merged":[]}
[]
["Program Code","Reference Number","Project Status","Enrollment Date","Account Class","Business Type","Customer Name","Tax ID","Tax Status","Facility Type","Structure Type","Structure Age Type","Square Footage","Number of Units","Enrollment Comments","Invoice Date","Check Date","Check Number","Amount Paid","Contact First Name","Contact Last Name","Contact Email Address","Contact Primary Phone","Contact Alternate Phone","Contact Language","Service Location Description","Install Address Street","Install Address Unit","Install Address City","Install Address State","Install Address Zip","Is Mail Same As Install","Mailing Address Street","Mailing Address Unit","Mailing Address City","Mailing Address State","Mailing Address Zip","Gas Service Provider","Gas Account No","Electric Service Provider","Electric Service Account No","Measure Sequence Number","Measure Code","Measure Name","Measure Sub Code","Measure Sub Type Name","Installed Measure Quantity","Measure Cost","Incentive Amount","kWh","kW","Winter kW","Summer kW","Therms","Propane (MMBtu)","Heating Oil (MMBtu)","Kerosene (MMBtu)","Wood (MMBtu)","Water (Gallons)","Property Name","Property Value","PN2","PV2","PN3","PV3","PN4","PV4","PN5","PV5","PN6","PV6","PN7","PV7","PN8","PV8","PN9","PV9","PN10","PV10","PN11","PV11","PN12","PV12","PN13","PV13","PN14","PV14","PN15","PV15","PN16","PV16"]
[{"$f":"IF('effRT Support'!$B6=0,\"\",IF('Project Information'!$D$33=\"Small Business\",\"SBL\",\"CILS\"))","v":""},{"$f":"IF('effRT Support'!$B6=0,\"\",IF('Project Information'!$K$2=\"\",\"\",'Project Information'!$K$2))","v":""},null,{"$f":"IF('effRT Support'!$B6=0,\"\",IF('Project Information'!$D$46=\"\",\"\",'Project Information'!$D$46))","v":""},{"$f":"IF('effRT Support'!$B6=0,\"\",IF('Project Information'!$D$20=\"\",\"\",VLOOKUP('Project Information'!$D$20,'Other Data'!$B$159:$E$189,4,FALSE)))","v":""},{"$f":"IF('effRT Support'!$B6=0,\"\",IF('Project Information'!$D$31=\"\",\"\",'Project Information'!$D$31))","v":""},{"$f":"IF('effRT Support'!$B6=0,\"\",IF('Project Information'!$D$5=\"\",\"\",'Project Information'!$D$5))","v":""},null,null,{"$f":"IF('effRT Support'!$B6=0,\"\",IF('Project Information'!$D$20=\"\",\"\",VLOOKUP('Project Information'!$D$20,'Other Data'!$B$159:$E$189,2,FALSE)))","v":""},{"$f":"IF('effRT Support'!$B6=0,\"\",IF('Project Information'!$D$20=\"\",\"\",VLOOKUP('Project Information'!$D$20,'Other Data'!$B$159:$E$189,3,FALSE)))","v":""},{"$f":"IF('effRT Support'!$B6=0,\"\",\"Existing\")","v":""},null,{"$f":"IF('effRT Support'!$B6=0,\"\",IF('Project Information'!$D$21=\"\",\"\",'Project Information'!$D$21))","v":""},{"$f":"IF('effRT Support'!$B6=0,\"\",IF('Project Information'!$D$48=\"\",\"\",'Project Information'!$D$48))","v":""},{"$f":"IF('effRT Support'!$B6=0,\"\",\"\")","v":""},{"$f":"IF('effRT Support'!$B6=0,\"\",\"\")","v":""},{"$f":"IF('effRT Support'!$B6=0,\"\",\"\")","v":""},{"$f":"IF('effRT Support'!$B6=0,\"\",\"\")","v":""},{"$f":"IF('effRT Support'!$B6=0,\"\",IF('Project Information'!$D$13=\"\",\"\",'Project Information'!$D$13))","v":""},{"$f":"IF('effRT Support'!$B6=0,\"\",IF('Project Information'!$E$13=\"\",\"\",'Project Information'!$E$13))","v":""},{"$f":"IF('effRT Support'!$B6=0,\"\",IF('Project Information'!$D$14=\"\",\"\",'Project Information'!$D$14))","v":""},{"$f":"IF('effRT Support'!$B6=0,\"\",IF('Project Information'!$D$15=\"\",\"\",'Project Information'!$D$15))","v":""},{"$f":"IF('effRT Support'!$B6=0,\"\",IF('Project Information'!$D$16=\"\",\"\",'Project Information'!$D$16))","v":""},null,{"$f":"IF('effRT Support'!$B6=0,\"\",'Project Information'!$D$18)","v":""},{"$f":"IF('effRT Support'!$B6=0,\"\",IF('Project Information'!$D$23=\"\",\"\",'Project Information'!$D$23))","v":""},{"$f":"IF('effRT Support'!$B6=0,\"\",IF('Project Information'!$D$24=\"\",\"\",'Project Information'!$D$24))","v":""},{"$f":"IF('effRT Support'!$B6=0,\"\",IF('Project Information'!$D$25=\"\",\"\",'Project Information'!$D$25))","v":""},{"$f":"IF('effRT Support'!$B6=0,\"\",IF('Project Information'!$E$25=\"\",\"\",'Project Information'!$E$25))","v":""},{"$f":"IF('effRT Support'!$B6=0,\"\",IF('Project Information'!$F$25=\"\",\"\",'Project Information'!$F$25))","v":""},{"$f":"IF('effRT Support'!$B6=0,\"\",IF('Project Information'!$D$27=\"\",\"Y\",\"N\"))","v":""},{"$f":"IF('effRT Support'!$B6=0,\"\",IF('Project Information'!$D$27=\"\",\"\",'Project Information'!$D$27))","v":""},{"$f":"IF('effRT Support'!$B6=0,\"\",IF('Project Information'!$D$28=\"\",\"\",'Project Information'!$D$28))","v":""},{"$f":"IF('effRT Support'!$B6=0,\"\",IF('Project Information'!$D$29=\"\",\"\",'Project Information'!$D$29))","v":""},{"$f":"IF('effRT Support'!$B6=0,\"\",IF('Project Information'!$E$29=\"\",\"\",'Project Information'!$E$29))","v":""},{"$f":"IF('effRT Support'!$B6=0,\"\",IF('Project Information'!$F$29=\"\",\"\",'Project Information'!$F$29))","v":""},{"$f":"IF('effRT Support'!$B6=0,\"\",\"\")","v":""},{"$f":"IF('effRT Support'!$B6=0,\"\",\"\")","v":""},{"$f":"IF('effRT Support'!$B6=0,\"\",IF('Project Information'!$D$36=\"\",\"\",'Project Information'!$D$36))","v":""},{"$f":"IF('effRT Support'!$B6=0,\"\",IF('Project Information'!$D$42=\"\",\"\",'Project Information'!$D$42))","v":""},{"$f":"IF('effRT Support'!$B6=0,\"\",'effRT Support'!$D6)","v":""},{"$f":"IF('effRT Support'!$B6=0,\"\",'effRT Support'!$L6)","v":""},{"$f":"IF('effRT Support'!$B6=0,\"\",'effRT Support'!$N6)","v":""},null,null,{"$f":"IF('effRT Support'!$B6=0,\"\",'effRT Support'!$P6)","v":""},{"$f":"IF('effRT Support'!$B6=0,\"\",'effRT Support'!$Q6)","v":""},{"$f":"IF('effRT Support'!$B6=0,\"\",'effRT Support'!U6)","v":""},{"$f":"IF('effRT Support'!$B6=0,\"\",'effRT Support'!V6)","v":""},{"$f":"IF('effRT Support'!$B6=0,\"\",'effRT Support'!W6)","v":""},{"$f":"IF('effRT Support'!$B6=0,\"\",'effRT Support'!X6)","v":""},{"$f":"IF('effRT Support'!$B6=0,\"\",'effRT Support'!Y6)","v":""},{"$f":"IF('effRT Support'!$B6=0,\"\",'effRT Support'!Z6*10)","v":""},{"$f":"IF('effRT Support'!$B6=0,\"\",'effRT Support'!AA6)","v":""},{"$f":"IF('effRT Support'!$B6=0,\"\",'effRT Support'!AB6)","v":""},{"$f":"IF('effRT Support'!$B6=0,\"\",'effRT Support'!AC6)","v":""},{"$f":"IF('effRT Support'!$B6=0,\"\",'effRT Support'!AD6)","v":""},{"$f":"IF('effRT Support'!$B6=0,\"\",'effRT Support'!AE6)","v":""},{"$f":"IF('effRT Support'!$B6=0,\"\",\"Hours Actual or Deemed\")","v":""},{"$f":"IF('effRT Support'!$B6=0,\"\",'effRT Support'!$F6)","v":""},{"$f":"IF('effRT Support'!$B6=0,\"\",\"Wattage Actual or Deemed\")","v":""},{"$f":"IF('effRT Support'!$B6=0,\"\",IF('Project Information'!$D$33=\"Pay For Performance\",\"Actual\",\"Deemed\"))","v":""},{"$f":"IF('effRT Support'!$B6=0,\"\",\"Cost Actual or Deemed\")","v":""},{"$f":"IF('effRT Support'!$B6=0,\"\",IF('Project Information'!$D$33=\"Pay For Performance\",\"Actual\",\"Deemed\"))","v":""},{"$f":"IF('effRT Support'!$B6=0,\"\",\"Location\")","v":""},{"$f":"IF('effRT Support'!$B6=0,\"\",'effRT Support'!$E6)","v":""},{"$f":"IF('effRT Support'!$B6=0,\"\",\"Space Type\")","v":""},{"$f":"IF('effRT Support'!$B6=0,\"\",'effRT Support'!$G6)","v":""},{"$f":"IF('effRT Support'!$B6=0,\"\",\"Existing Fixture Description\")","v":""},{"$f":"IF('effRT Support'!$B6=0,\"\",'effRT Support'!$H6)","v":""},{"$f":"IF('effRT Support'!$B6=0,\"\",\"Existing Fixture Quantity\")","v":""},{"$f":"IF('effRT Support'!$B6=0,\"\",'effRT Support'!$I6)","v":""},{"$f":"IF('effRT Support'!$B6=0,\"\",\"Existing Fixture Wattage\")","v":""},{"$f":"IF('effRT Support'!$B6=0,\"\",'effRT Support'!$J6)","v":""},{"$f":"IF('effRT Support'!$B6=0,\"\",\"Annual Hours of Operation\")","v":""},{"$f":"IF('effRT Support'!$B6=0,\"\",'effRT Support'!$K6)","v":""},{"$f":"IF('effRT Support'!$B6=0,\"\",\"Installed Fixture Description\")","v":""},{"$f":"IF('effRT Support'!$B6=0,\"\",'effRT Support'!$M6)","v":""},{"$f":"IF('effRT Support'!$B6=0,\"\",\"Installed Fixture Wattage\")","v":""},{"$f":"IF('effRT Support'!$B6=0,\"\",'effRT Support'!$O6)","v":""},{"$f":"IF('effRT Support'!$B6=0,\"\",\"Material Cost\")","v":""},{"$f":"IF('effRT Support'!$B6=0,\"\",'effRT Support'!$R6)","v":""},{"$f":"IF('effRT Support'!$B6=0,\"\",\"Labor Cost\")","v":""},{"$f":"IF('effRT Support'!$B6=0,\"\",'effRT Support'!$S6)","v":""},{"$f":"IF('effRT Support'!$B6=0,\"\",\"Ancillary Costs - Measure Specific\")","v":""},{"$f":"IF('effRT Support'!$B6=0,\"\",'effRT Support'!$T6)","v":""},{"$f":"IF('effRT Support'!$B6=0,\"\",\"Fuel Type\")","v":""},{"$f":"IF('effRT Support'!$B6=0,\"\",'Project Information'!$D$44)","v":""}]
[{"$f":"IF('effRT Support'!$B7=0,\"\",IF('Project Information'!$D$33=\"Small Business\",\"SBL\",\"CILS\"))","v":""},{"$f":"IF('effRT Support'!$B7=0,\"\",IF('Project Information'!$K$2=\"\",\"\",'Project Information'!$K$2))","v":""},null,{"$f":"IF('effRT Support'!$B7=0,\"\",IF('Project Information'!$D$46=\"\",\"\",'Project Information'!$D$46))","v":""},{"$f":"IF('effRT Support'!$B7=0,\"\",IF('Project Information'!$D$20=\"\",\"\",VLOOKUP('Project Information'!$D$20,'Other Data'!$B$159:$E$189,4,FALSE)))","v":""},{"$f":"IF('effRT Support'!$B7=0,\"\",IF('Project Information'!$D$31=\"\",\"\",'Project Information'!$D$31))","v":""},{"$f":"IF('effRT Support'!$B7=0,\"\",IF('Project Information'!$D$5=\"\",\"\",'Project Information'!$D$5))","v":""},null,null,{"$f":"IF('effRT Support'!$B7=0,\"\",IF('Project Information'!$D$20=\"\",\"\",VLOOKUP('Project Information'!$D$20,'Other Data'!$B$159:$E$189,2,FALSE)))","v":""},{"$f":"IF('effRT Support'!$B7=0,\"\",IF('Project Information'!$D$20=\"\",\"\",VLOOKUP('Project Information'!$D$20,'Other Data'!$B$159:$E$189,3,FALSE)))","v":""},{"$f":"IF('effRT Support'!$B7=0,\"\",\"Existing\")","v":""},null,{"$f":"IF('effRT Support'!$B7=0,\"\",IF('Project Information'!$D$21=\"\",\"\",'Project Information'!$D$21))","v":""},{"$f":"IF('effRT Support'!$B7=0,\"\",IF('Project Information'!$D$48=\"\",\"\",'Project Information'!$D$48))","v":""},{"$f":"IF('effRT Support'!$B7=0,\"\",\"\")","v":""},{"$f":"IF('effRT Support'!$B7=0,\"\",\"\")","v":""},{"$f":"IF('effRT Support'!$B7=0,\"\",\"\")","v":""},{"$f":"IF('effRT Support'!$B7=0,\"\",\"\")","v":""},{"$f":"IF('effRT Support'!$B7=0,\"\",IF('Project Information'!$D$13=\"\",\"\",'Project Information'!$D$13))","v":""},{"$f":"IF('effRT Support'!$B7=0,\"\",IF('Project Information'!$E$13=\"\",\"\",'Project Information'!$E$13))","v":""},{"$f":"IF('effRT Support'!$B7=0,\"\",IF('Project Information'!$D$14=\"\",\"\",'Project Information'!$D$14))","v":""},{"$f":"IF('effRT Support'!$B7=0,\"\",IF('Project Information'!$D$15=\"\",\"\",'Project Information'!$D$15))","v":""},{"$f":"IF('effRT Support'!$B7=0,\"\",IF('Project Information'!$D$16=\"\",\"\",'Project Information'!$D$16))","v":""},null,{"$f":"IF('effRT Support'!$B7=0,\"\",'Project Information'!$D$18)","v":""},{"$f":"IF('effRT Support'!$B7=0,\"\",IF('Project Information'!$D$23=\"\",\"\",'Project Information'!$D$23))","v":""},{"$f":"IF('effRT Support'!$B7=0,\"\",IF('Project Information'!$D$24=\"\",\"\",'Project Information'!$D$24))","v":""},{"$f":"IF('effRT Support'!$B7=0,\"\",IF('Project Information'!$D$25=\"\",\"\",'Project Information'!$D$25))","v":""},{"$f":"IF('effRT Support'!$B7=0,\"\",IF('Project Information'!$E$25=\"\",\"\",'Project Information'!$E$25))","v":""},{"$f":"IF('effRT Support'!$B7=0,\"\",IF('Project Information'!$F$25=\"\",\"\",'Project Information'!$F$25))","v":""},{"$f":"IF('effRT Support'!$B7=0,\"\",IF('Project Information'!$D$27=\"\",\"Y\",\"N\"))","v":""},{"$f":"IF('effRT Support'!$B7=0,\"\",IF('Project Information'!$D$27=\"\",\"\",'Project Information'!$D$27))","v":""},{"$f":"IF('effRT Support'!$B7=0,\"\",IF('Project Information'!$D$28=\"\",\"\",'Project Information'!$D$28))","v":""},{"$f":"IF('effRT Support'!$B7=0,\"\",IF('Project Information'!$D$29=\"\",\"\",'Project Information'!$D$29))","v":""},{"$f":"IF('effRT Support'!$B7=0,\"\",IF('Project Information'!$E$29=\"\",\"\",'Project Information'!$E$29))","v":""},{"$f":"IF('effRT Support'!$B7=0,\"\",IF('Project Information'!$F$29=\"\",\"\",'Project Information'!$F$29))","v":""},{"$f":"IF('effRT Support'!$B7=0,\"\",\"\")","v":""},{"$f":"IF('effRT Support'!$B7=0,\"\",\"\")","v":""},{"$f":"IF('effRT Support'!$B7=0,\"\",IF('Project Information'!$D$36=\"\",\"\",'Project Information'!$D$36))","v":""},{"$f":"IF('effRT Support'!$B7=0,\"\",IF('Project Information'!$D$42=\"\",\"\",'Project Information'!$D$42))","v":""},{"$f":"IF('effRT Support'!$B7=0,\"\",'effRT Support'!$D7)","v":""},{"$f":"IF('effRT Support'!$B7=0,\"\",'effRT Support'!$L7)","v":""},{"$f":"IF('effRT Support'!$B7=0,\"\",'effRT Support'!$N7)","v":""},null,null,{"$f":"IF('effRT Support'!$B7=0,\"\",'effRT Support'!$P7)","v":""},{"$f":"IF('effRT Support'!$B7=0,\"\",'effRT Support'!$Q7)","v":""},{"$f":"IF('effRT Support'!$B7=0,\"\",'effRT Support'!U7)","v":""},{"$f":"IF('effRT Support'!$B7=0,\"\",'effRT Support'!V7)","v":""},{"$f":"IF('effRT Support'!$B7=0,\"\",'effRT Support'!W7)","v":""},{"$f":"IF('effRT Support'!$B7=0,\"\",'effRT Support'!X7)","v":""},{"$f":"IF('effRT Support'!$B7=0,\"\",'effRT Support'!Y7)","v":""},{"$f":"IF('effRT Support'!$B7=0,\"\",'effRT Support'!Z7*10)","v":""},{"$f":"IF('effRT Support'!$B7=0,\"\",'effRT Support'!AA7)","v":""},{"$f":"IF('effRT Support'!$B7=0,\"\",'effRT Support'!AB7)","v":""},{"$f":"IF('effRT Support'!$B7=0,\"\",'effRT Support'!AC7)","v":""},{"$f":"IF('effRT Support'!$B7=0,\"\",'effRT Support'!AD7)","v":""},{"$f":"IF('effRT Support'!$B7=0,\"\",'effRT Support'!AE7)","v":""},{"$f":"IF('effRT Support'!$B7=0,\"\",\"Hours Actual or Deemed\")","v":""},{"$f":"IF('effRT Support'!$B7=0,\"\",'effRT Support'!$F7)","v":""},{"$f":"IF('effRT Support'!$B7=0,\"\",\"Wattage Actual or Deemed\")","v":""},{"$f":"IF('effRT Support'!$B7=0,\"\",IF('Project Information'!$D$33=\"Pay For Performance\",\"Actual\",\"Deemed\"))","v":""},{"$f":"IF('effRT Support'!$B7=0,\"\",\"Cost Actual or Deemed\")","v":""},{"$f":"IF('effRT Support'!$B7=0,\"\",IF('Project Information'!$D$33=\"Pay For Performance\",\"Actual\",\"Deemed\"))","v":""},{"$f":"IF('effRT Support'!$B7=0,\"\",\"Location\")","v":""},{"$f":"IF('effRT Support'!$B7=0,\"\",'effRT Support'!$E7)","v":""},{"$f":"IF('effRT Support'!$B7=0,\"\",\"Space Type\")","v":""},{"$f":"IF('effRT Support'!$B7=0,\"\",'effRT Support'!$G7)","v":""},{"$f":"IF('effRT Support'!$B7=0,\"\",\"Existing Fixture Description\")","v":""},{"$f":"IF('effRT Support'!$B7=0,\"\",'effRT Support'!$H7)","v":""},{"$f":"IF('effRT Support'!$B7=0,\"\",\"Existing Fixture Quantity\")","v":""},{"$f":"IF('effRT Support'!$B7=0,\"\",'effRT Support'!$I7)","v":""},{"$f":"IF('effRT Support'!$B7=0,\"\",\"Existing Fixture Wattage\")","v":""},{"$f":"IF('effRT Support'!$B7=0,\"\",'effRT Support'!$J7)","v":""},{"$f":"IF('effRT Support'!$B7=0,\"\",\"Annual Hours of Operation\")","v":""},{"$f":"IF('effRT Support'!$B7=0,\"\",'effRT Support'!$K7)","v":""},{"$f":"IF('effRT Support'!$B7=0,\"\",\"Installed Fixture Description\")","v":""},{"$f":"IF('effRT Support'!$B7=0,\"\",'effRT Support'!$M7)","v":""},{"$f":"IF('effRT Support'!$B7=0,\"\",\"Installed Fixture Wattage\")","v":""},{"$f":"IF('effRT Support'!$B7=0,\"\",'effRT Support'!$O7)","v":""},{"$f":"IF('effRT Support'!$B7=0,\"\",\"Material Cost\")","v":""},{"$f":"IF('effRT Support'!$B7=0,\"\",'effRT Support'!$R7)","v":""},{"$f":"IF('effRT Support'!$B7=0,\"\",\"Labor Cost\")","v":""},{"$f":"IF('effRT Support'!$B7=0,\"\",'effRT Support'!$S7)","v":""},{"$f":"IF('effRT Support'!$B7=0,\"\",\"Ancillary Costs - Measure Specific\")","v":""},{"$f":"IF('effRT Support'!$B7=0,\"\",'effRT Support'!$T7)","v":""},{"$f":"IF('effRT Support'!$B7=0,\"\",\"Fuel Type\")","v":""},{"$f":"IF('effRT Support'!$B7=0,\"\",'Project Information'!$D$44)","v":""},{"$f":"IF('effRT Support'!$B7=0,\"\",\"Installed Fixture Quantity\")","v":""},{"$f":"IF('effRT Support'!$B7=0,\"\",'effRT Support'!P6)","v":""}]
[{"$f":"IF('effRT Support'!$B8=0,\"\",IF('Project Information'!$D$33=\"Small Business\",\"SBL\",\"CILS\"))","v":""},{"$f":"IF('effRT Support'!$B8=0,\"\",IF('Project Information'!$K$2=\"\",\"\",'Project Information'!$K$2))","v":""},null,{"$f":"IF('effRT Support'!$B8=0,\"\",IF('Project Information'!$D$46=\"\",\"\",'Project Information'!$D$46))","v":""},{"$f":"IF('effRT Support'!$B8=0,\"\",IF('Project Information'!$D$20=\"\",\"\",VLOOKUP('Project Information'!$D$20,'Other Data'!$B$159:$E$189,4,FALSE)))","v":""},{"$f":"IF('effRT Support'!$B8=0,\"\",IF('Project Information'!$D$31=\"\",\"\",'Project Information'!$D$31))","v":""},{"$f":"IF('effRT Support'!$B8=0,\"\",IF('Project Information'!$D$5=\"\",\"\",'Project Information'!$D$5))","v":""},null,null,{"$f":"IF('effRT Support'!$B8=0,\"\",IF('Project Information'!$D$20=\"\",\"\",VLOOKUP('Project Information'!$D$20,'Other Data'!$B$159:$E$189,2,FALSE)))","v":""},{"$f":"IF('effRT Support'!$B8=0,\"\",IF('Project Information'!$D$20=\"\",\"\",VLOOKUP('Project Information'!$D$20,'Other Data'!$B$159:$E$189,3,FALSE)))","v":""},{"$f":"IF('effRT Support'!$B8=0,\"\",\"Existing\")","v":""},null,{"$f":"IF('effRT Support'!$B8=0,\"\",IF('Project Information'!$D$21=\"\",\"\",'Project Information'!$D$21))","v":""},{"$f":"IF('effRT Support'!$B8=0,\"\",IF('Project Information'!$D$48=\"\",\"\",'Project Information'!$D$48))","v":""},{"$f":"IF('effRT Support'!$B8=0,\"\",\"\")","v":""},{"$f":"IF('effRT Support'!$B8=0,\"\",\"\")","v":""},{"$f":"IF('effRT Support'!$B8=0,\"\",\"\")","v":""},{"$f":"IF('effRT Support'!$B8=0,\"\",\"\")","v":""},{"$f":"IF('effRT Support'!$B8=0,\"\",IF('Project Information'!$D$13=\"\",\"\",'Project Information'!$D$13))","v":""},{"$f":"IF('effRT Support'!$B8=0,\"\",IF('Project Information'!$E$13=\"\",\"\",'Project Information'!$E$13))","v":""},{"$f":"IF('effRT Support'!$B8=0,\"\",IF('Project Information'!$D$14=\"\",\"\",'Project Information'!$D$14))","v":""},{"$f":"IF('effRT Support'!$B8=0,\"\",IF('Project Information'!$D$15=\"\",\"\",'Project Information'!$D$15))","v":""},{"$f":"IF('effRT Support'!$B8=0,\"\",IF('Project Information'!$D$16=\"\",\"\",'Project Information'!$D$16))","v":""},null,{"$f":"IF('effRT Support'!$B8=0,\"\",'Project Information'!$D$18)","v":""},{"$f":"IF('effRT Support'!$B8=0,\"\",IF('Project Information'!$D$23=\"\",\"\",'Project Information'!$D$23))","v":""},{"$f":"IF('effRT Support'!$B8=0,\"\",IF('Project Information'!$D$24=\"\",\"\",'Project Information'!$D$24))","v":""},{"$f":"IF('effRT Support'!$B8=0,\"\",IF('Project Information'!$D$25=\"\",\"\",'Project Information'!$D$25))","v":""},{"$f":"IF('effRT Support'!$B8=0,\"\",IF('Project Information'!$E$25=\"\",\"\",'Project Information'!$E$25))","v":""},{"$f":"IF('effRT Support'!$B8=0,\"\",IF('Project Information'!$F$25=\"\",\"\",'Project Information'!$F$25))","v":""},{"$f":"IF('effRT Support'!$B8=0,\"\",IF('Project Information'!$D$27=\"\",\"Y\",\"N\"))","v":""},{"$f":"IF('effRT Support'!$B8=0,\"\",IF('Project Information'!$D$27=\"\",\"\",'Project Information'!$D$27))","v":""},{"$f":"IF('effRT Support'!$B8=0,\"\",IF('Project Information'!$D$28=\"\",\"\",'Project Information'!$D$28))","v":""},{"$f":"IF('effRT Support'!$B8=0,\"\",IF('Project Information'!$D$29=\"\",\"\",'Project Information'!$D$29))","v":""},{"$f":"IF('effRT Support'!$B8=0,\"\",IF('Project Information'!$E$29=\"\",\"\",'Project Information'!$E$29))","v":""},{"$f":"IF('effRT Support'!$B8=0,\"\",IF('Project Information'!$F$29=\"\",\"\",'Project Information'!$F$29))","v":""},{"$f":"IF('effRT Support'!$B8=0,\"\",\"\")","v":""},{"$f":"IF('effRT Support'!$B8=0,\"\",\"\")","v":""},{"$f":"IF('effRT Support'!$B8=0,\"\",IF('Project Information'!$D$36=\"\",\"\",'Project Information'!$D$36))","v":""},{"$f":"IF('effRT Support'!$B8=0,\"\",IF('Project Information'!$D$42=\"\",\"\",'Project Information'!$D$42))","v":""},{"$f":"IF('effRT Support'!$B8=0,\"\",'effRT Support'!$D8)","v":""},{"$f":"IF('effRT Support'!$B8=0,\"\",'effRT Support'!$L8)","v":""},{"$f":"IF('effRT Support'!$B8=0,\"\",'effRT Support'!$N8)","v":""},null,null,{"$f":"IF('effRT Support'!$B8=0,\"\",'effRT Support'!$P8)","v":""},{"$f":"IF('effRT Support'!$B8=0,\"\",'effRT Support'!$Q8)","v":""},{"$f":"IF('effRT Support'!$B8=0,\"\",'effRT Support'!U8)","v":""},{"$f":"IF('effRT Support'!$B8=0,\"\",'effRT Support'!V8)","v":""},{"$f":"IF('effRT Support'!$B8=0,\"\",'effRT Support'!W8)","v":""},{"$f":"IF('effRT Support'!$B8=0,\"\",'effRT Support'!X8)","v":""},{"$f":"IF('effRT Support'!$B8=0,\"\",'effRT Support'!Y8)","v":""},{"$f":"IF('effRT Support'!$B8=0,\"\",'effRT Support'!Z8*10)","v":""},{"$f":"IF('effRT Support'!$B8=0,\"\",'effRT Support'!AA8)","v":""},{"$f":"IF('effRT Support'!$B8=0,\"\",'effRT Support'!AB8)","v":""},{"$f":"IF('effRT Support'!$B8=0,\"\",'effRT Support'!AC8)","v":""},{"$f":"IF('effRT Support'!$B8=0,\"\",'effRT Support'!AD8)","v":""},{"$f":"IF('effRT Support'!$B8=0,\"\",'effRT Support'!AE8)","v":""},{"$f":"IF('effRT Support'!$B8=0,\"\",\"Hours Actual or Deemed\")","v":""},{"$f":"IF('effRT Support'!$B8=0,\"\",'effRT Support'!$F8)","v":""},{"$f":"IF('effRT Support'!$B8=0,\"\",\"Wattage Actual or Deemed\")","v":""},{"$f":"IF('effRT Support'!$B8=0,\"\",IF('Project Information'!$D$33=\"Pay For Performance\",\"Actual\",\"Deemed\"))","v":""},{"$f":"IF('effRT Support'!$B8=0,\"\",\"Cost Actual or Deemed\")","v":""},{"$f":"IF('effRT Support'!$B8=0,\"\",IF('Project Information'!$D$33=\"Pay For Performance\",\"Actual\",\"Deemed\"))","v":""},{"$f":"IF('effRT Support'!$B8=0,\"\",\"Location\")","v":""},{"$f":"IF('effRT Support'!$B8=0,\"\",'effRT Support'!$E8)","v":""},{"$f":"IF('effRT Support'!$B8=0,\"\",\"Space Type\")","v":""},{"$f":"IF('effRT Support'!$B8=0,\"\",'effRT Support'!$G8)","v":""},{"$f":"IF('effRT Support'!$B8=0,\"\",\"Existing Fixture Description\")","v":""},{"$f":"IF('effRT Support'!$B8=0,\"\",'effRT Support'!$H8)","v":""},{"$f":"IF('effRT Support'!$B8=0,\"\",\"Existing Fixture Quantity\")","v":""},{"$f":"IF('effRT Support'!$B8=0,\"\",'effRT Support'!$I8)","v":""},{"$f":"IF('effRT Support'!$B8=0,\"\",\"Existing Fixture Wattage\")","v":""},{"$f":"IF('effRT Support'!$B8=0,\"\",'effRT Support'!$J8)","v":""},{"$f":"IF('effRT Support'!$B8=0,\"\",\"Annual Hours of Operation\")","v":""},{"$f":"IF('effRT Support'!$B8=0,\"\",'effRT Support'!$K8)","v":""},{"$f":"IF('effRT Support'!$B8=0,\"\",\"Installed Fixture Description\")","v":""},{"$f":"IF('effRT Support'!$B8=0,\"\",'effRT Support'!$M8)","v":""},{"$f":"IF('effRT Support'!$B8=0,\"\",\"Installed Fixture Wattage\")","v":""},{"$f":"IF('effRT Support'!$B8=0,\"\",'effRT Support'!$O8)","v":""},{"$f":"IF('effRT Support'!$B8=0,\"\",\"Material Cost\")","v":""},{"$f":"IF('effRT Support'!$B8=0,\"\",'effRT Support'!$R8)","v":""},{"$f":"IF('effRT Support'!$B8=0,\"\",\"Labor Cost\")","v":""},{"$f":"IF('effRT Support'!$B8=0,\"\",'effRT Support'!$S8)","v":""},{"$f":"IF('effRT Support'!$B8=0,\"\",\"Ancillary Costs - Measure Specific\")","v":""},{"$f":"IF('effRT Support'!$B8=0,\"\",'effRT Support'!$T8)","v":""},{"$f":"IF('effRT Support'!$B8=0,\"\",\"Fuel Type\")","v":""},{"$f":"IF('effRT Support'!$B8=0,\"\",'Project Information'!$D$44)","v":""}]
[{"$f":"IF('effRT Support'!$B9=0,\"\",IF('Project Information'!$D$33=\"Small Business\",\"SBL\",\"CILS\"))","v":""},{"$f":"IF('effRT Support'!$B9=0,\"\",IF('Project Information'!$K$2=\"\",\"\",'Project Information'!$K$2))","v":""},null,{"$f":"IF('effRT Support'!$B9=0,\"\",IF('Project Information'!$D$46=\"\",\"\",'Project Information'!$D$46))","v":""},{"$f":"IF('effRT Support'!$B9=0,\"\",IF('Project Information'!$D$20=\"\",\"\",VLOOKUP('Project Information'!$D$20,'Other Data'!$B$159:$E$189,4,FALSE)))","v":""},{"$f":"IF('effRT Support'!$B9=0,\"\",IF('Project Information'!$D$31=\"\",\"\",'Project Information'!$D$31))","v":""},{"$f":"IF('effRT Support'!$B9=0,\"\",IF('Project Information'!$D$5=\"\",\"\",'Project Information'!$D$5))","v":""},null,null,{"$f":"IF('effRT Support'!$B9=0,\"\",IF('Project Information'!$D$20=\"\",\"\",VLOOKUP('Project Information'!$D$20,'Other Data'!$B$159:$E$189,2,FALSE)))","v":""},{"$f":"IF('effRT Support'!$B9=0,\"\",IF('Project Information'!$D$20=\"\",\"\",VLOOKUP('Project Information'!$D$20,'Other Data'!$B$159:$E$189,3,FALSE)))","v":""},{"$f":"IF('effRT Support'!$B9=0,\"\",\"Existing\")","v":""},null,{"$f":"IF('effRT Support'!$B9=0,\"\",IF('Project Information'!$D$21=\"\",\"\",'Project Information'!$D$21))","v":""},{"$f":"IF('effRT Support'!$B9=0,\"\",IF('Project Information'!$D$48=\"\",\"\",'Project Information'!$D$48))","v":""},{"$f":"IF('effRT Support'!$B9=0,\"\",\"\")","v":""},{"$f":"IF('effRT Support'!$B9=0,\"\",\"\")","v":""},{"$f":"IF('effRT Support'!$B9=0,\"\",\"\")","v":""},{"$f":"IF('effRT Support'!$B9=0,\"\",\"\")","v":""},{"$f":"IF('effRT Support'!$B9=0,\"\",IF('Project Information'!$D$13=\"\",\"\",'Project Information'!$D$13))","v":""},{"$f":"IF('effRT Support'!$B9=0,\"\",IF('Project Information'!$E$13=\"\",\"\",'Project Information'!$E$13))","v":""},{"$f":"IF('effRT Support'!$B9=0,\"\",IF('Project Information'!$D$14=\"\",\"\",'Project Information'!$D$14))","v":""},{"$f":"IF('effRT Support'!$B9=0,\"\",IF('Project Information'!$D$15=\"\",\"\",'Project Information'!$D$15))","v":""},{"$f":"IF('effRT Support'!$B9=0,\"\",IF('Project Information'!$D$16=\"\",\"\",'Project Information'!$D$16))","v":""},null,{"$f":"IF('effRT Support'!$B9=0,\"\",'Project Information'!$D$18)","v":""},{"$f":"IF('effRT Support'!$B9=0,\"\",IF('Project Information'!$D$23=\"\",\"\",'Project Information'!$D$23))","v":""},{"$f":"IF('effRT Support'!$B9=0,\"\",IF('Project Information'!$D$24=\"\",\"\",'Project Information'!$D$24))","v":""},{"$f":"IF('effRT Support'!$B9=0,\"\",IF('Project Information'!$D$25=\"\",\"\",'Project Information'!$D$25))","v":""},{"$f":"IF('effRT Support'!$B9=0,\"\",IF('Project Information'!$E$25=\"\",\"\",'Project Information'!$E$25))","v":""},{"$f":"IF('effRT Support'!$B9=0,\"\",IF('Project Information'!$F$25=\"\",\"\",'Project Information'!$F$25))","v":""},{"$f":"IF('effRT Support'!$B9=0,\"\",IF('Project Information'!$D$27=\"\",\"Y\",\"N\"))","v":""},{"$f":"IF('effRT Support'!$B9=0,\"\",IF('Project Information'!$D$27=\"\",\"\",'Project Information'!$D$27))","v":""},{"$f":"IF('effRT Support'!$B9=0,\"\",IF('Project Information'!$D$28=\"\",\"\",'Project Information'!$D$28))","v":""},{"$f":"IF('effRT Support'!$B9=0,\"\",IF('Project Information'!$D$29=\"\",\"\",'Project Information'!$D$29))","v":""},{"$f":"IF('effRT Support'!$B9=0,\"\",IF('Project Information'!$E$29=\"\",\"\",'Project Information'!$E$29))","v":""},{"$f":"IF('effRT Support'!$B9=0,\"\",IF('Project Information'!$F$29=\"\",\"\",'Project Information'!$F$29))","v":""},{"$f":"IF('effRT Support'!$B9=0,\"\",\"\")","v":""},{"$f":"IF('effRT Support'!$B9=0,\"\",\"\")","v":""},{"$f":"IF('effRT Support'!$B9=0,\"\",IF('Project Information'!$D$36=\"\",\"\",'Project Information'!$D$36))","v":""},{"$f":"IF('effRT Support'!$B9=0,\"\",IF('Project Information'!$D$42=\"\",\"\",'Project Information'!$D$42))","v":""},{"$f":"IF('effRT Support'!$B9=0,\"\",'effRT Support'!$D9)","v":""},{"$f":"IF('effRT Support'!$B9=0,\"\",'effRT Support'!$L9)","v":""},{"$f":"IF('effRT Support'!$B9=0,\"\",'effRT Support'!$N9)","v":""},null,null,{"$f":"IF('effRT Support'!$B9=0,\"\",'effRT Support'!$P9)","v":""},{"$f":"IF('effRT Support'!$B9=0,\"\",'effRT Support'!$Q9)","v":""},{"$f":"IF('effRT Support'!$B9=0,\"\",'effRT Support'!U9)","v":""},{"$f":"IF('effRT Support'!$B9=0,\"\",'effRT Support'!V9)","v":""},{"$f":"IF('effRT Support'!$B9=0,\"\",'effRT Support'!W9)","v":""},{"$f":"IF('effRT Support'!$B9=0,\"\",'effRT Support'!X9)","v":""},{"$f":"IF('effRT Support'!$B9=0,\"\",'effRT Support'!Y9)","v":""},{"$f":"IF('effRT Support'!$B9=0,\"\",'effRT Support'!Z9*10)","v":""},{"$f":"IF('effRT Support'!$B9=0,\"\",'effRT Support'!AA9)","v":""},{"$f":"IF('effRT Support'!$B9=0,\"\",'effRT Support'!AB9)","v":""},{"$f":"IF('effRT Support'!$B9=0,\"\",'effRT Support'!AC9)","v":""},{"$f":"IF('effRT Support'!$B9=0,\"\",'effRT Support'!AD9)","v":""},{"$f":"IF('effRT Support'!$B9=0,\"\",'effRT Support'!AE9)","v":""},{"$f":"IF('effRT Support'!$B9=0,\"\",\"Hours Actual or Deemed\")","v":""},{"$f":"IF('effRT Support'!$B9=0,\"\",'effRT Support'!$F9)","v":""},{"$f":"IF('effRT Support'!$B9=0,\"\",\"Wattage Actual or Deemed\")","v":""},{"$f":"IF('effRT Support'!$B9=0,\"\",IF('Project Information'!$D$33=\"Pay For Performance\",\"Actual\",\"Deemed\"))","v":""},{"$f":"IF('effRT Support'!$B9=0,\"\",\"Cost Actual or Deemed\")","v":""},{"$f":"IF('effRT Support'!$B9=0,\"\",IF('Project Information'!$D$33=\"Pay For Performance\",\"Actual\",\"Deemed\"))","v":""},{"$f":"IF('effRT Support'!$B9=0,\"\",\"Location\")","v":""},{"$f":"IF('effRT Support'!$B9=0,\"\",'effRT Support'!$E9)","v":""},{"$f":"IF('effRT Support'!$B9=0,\"\",\"Space Type\")","v":""},{"$f":"IF('effRT Support'!$B9=0,\"\",'effRT Support'!$G9)","v":""},{"$f":"IF('effRT Support'!$B9=0,\"\",\"Existing Fixture Description\")","v":""},{"$f":"IF('effRT Support'!$B9=0,\"\",'effRT Support'!$H9)","v":""},{"$f":"IF('effRT Support'!$B9=0,\"\",\"Existing Fixture Quantity\")","v":""},{"$f":"IF('effRT Support'!$B9=0,\"\",'effRT Support'!$I9)","v":""},{"$f":"IF('effRT Support'!$B9=0,\"\",\"Existing Fixture Wattage\")","v":""},{"$f":"IF('effRT Support'!$B9=0,\"\",'effRT Support'!$J9)","v":""},{"$f":"IF('effRT Support'!$B9=0,\"\",\"Annual Hours of Operation\")","v":""},{"$f":"IF('effRT Support'!$B9=0,\"\",'effRT Support'!$K9)","v":""},{"$f":"IF('effRT Support'!$B9=0,\"\",\"Installed Fixture Description\")","v":""},{"$f":"IF('effRT Support'!$B9=0,\"\",'effRT Support'!$M9)","v":""},{"$f":"IF('effRT Support'!$B9=0,\"\",\"Installed Fixture Wattage\")","v":""},{"$f":"IF('effRT Support'!$B9=0,\"\",'effRT Support'!$O9)","v":""},{"$f":"IF('effRT Support'!$B9=0,\"\",\"Material Cost\")","v":""},{"$f":"IF('effRT Support'!$B9=0,\"\",'effRT Support'!$R9)","v":""},{"$f":"IF('effRT Support'!$B9=0,\"\",\"Labor Cost\")","v":""},{"$f":"IF('effRT Support'!$B9=0,\"\",'effRT Support'!$S9)","v":""},{"$f":"IF('effRT Support'!$B9=0,\"\",\"Ancillary Costs - Measure Specific\")","v":""},{"$f":"IF('effRT Support'!$B9=0,\"\",'effRT Support'!$T9)","v":""},{"$f":"IF('effRT Support'!$B9=0,\"\",\"Fuel Type\")","v":""},{"$f":"IF('effRT Support'!$B9=0,\"\",'Project Information'!$D$44)","v":""},{"$f":"IF('effRT Support'!$B9=0,\"\",\"Installed Fixture Quantity\")","v":""},{"$f":"IF('effRT Support'!$B9=0,\"\",'effRT Support'!P8)","v":""}]
[{"$f":"IF('effRT Support'!$B10=0,\"\",IF('Project Information'!$D$33=\"Small Business\",\"SBL\",\"CILS\"))","v":""},{"$f":"IF('effRT Support'!$B10=0,\"\",IF('Project Information'!$K$2=\"\",\"\",'Project Information'!$K$2))","v":""},null,{"$f":"IF('effRT Support'!$B10=0,\"\",IF('Project Information'!$D$46=\"\",\"\",'Project Information'!$D$46))","v":""},{"$f":"IF('effRT Support'!$B10=0,\"\",IF('Project Information'!$D$20=\"\",\"\",VLOOKUP('Project Information'!$D$20,'Other Data'!$B$159:$E$189,4,FALSE)))","v":""},{"$f":"IF('effRT Support'!$B10=0,\"\",IF('Project Information'!$D$31=\"\",\"\",'Project Information'!$D$31))","v":""},{"$f":"IF('effRT Support'!$B10=0,\"\",IF('Project Information'!$D$5=\"\",\"\",'Project Information'!$D$5))","v":""},null,null,{"$f":"IF('effRT Support'!$B10=0,\"\",IF('Project Information'!$D$20=\"\",\"\",VLOOKUP('Project Information'!$D$20,'Other Data'!$B$159:$E$189,2,FALSE)))","v":""},{"$f":"IF('effRT Support'!$B10=0,\"\",IF('Project Information'!$D$20=\"\",\"\",VLOOKUP('Project Information'!$D$20,'Other Data'!$B$159:$E$189,3,FALSE)))","v":""},{"$f":"IF('effRT Support'!$B10=0,\"\",\"Existing\")","v":""},null,{"$f":"IF('effRT Support'!$B10=0,\"\",IF('Project Information'!$D$21=\"\",\"\",'Project Information'!$D$21))","v":""},{"$f":"IF('effRT Support'!$B10=0,\"\",IF('Project Information'!$D$48=\"\",\"\",'Project Information'!$D$48))","v":""},{"$f":"IF('effRT Support'!$B10=0,\"\",\"\")","v":""},{"$f":"IF('effRT Support'!$B10=0,\"\",\"\")","v":""},{"$f":"IF('effRT Support'!$B10=0,\"\",\"\")","v":""},{"$f":"IF('effRT Support'!$B10=0,\"\",\"\")","v":""},{"$f":"IF('effRT Support'!$B10=0,\"\",IF('Project Information'!$D$13=\"\",\"\",'Project Information'!$D$13))","v":""},{"$f":"IF('effRT Support'!$B10=0,\"\",IF('Project Information'!$E$13=\"\",\"\",'Project Information'!$E$13))","v":""},{"$f":"IF('effRT Support'!$B10=0,\"\",IF('Project Information'!$D$14=\"\",\"\",'Project Information'!$D$14))","v":""},{"$f":"IF('effRT Support'!$B10=0,\"\",IF('Project Information'!$D$15=\"\",\"\",'Project Information'!$D$15))","v":""},{"$f":"IF('effRT Support'!$B10=0,\"\",IF('Project Information'!$D$16=\"\",\"\",'Project Information'!$D$16))","v":""},null,{"$f":"IF('effRT Support'!$B10=0,\"\",'Project Information'!$D$18)","v":""},{"$f":"IF('effRT Support'!$B10=0,\"\",IF('Project Information'!$D$23=\"\",\"\",'Project Information'!$D$23))","v":""},{"$f":"IF('effRT Support'!$B10=0,\"\",IF('Project Information'!$D$24=\"\",\"\",'Project Information'!$D$24))","v":""},{"$f":"IF('effRT Support'!$B10=0,\"\",IF('Project Information'!$D$25=\"\",\"\",'Project Information'!$D$25))","v":""},{"$f":"IF('effRT Support'!$B10=0,\"\",IF('Project Information'!$E$25=\"\",\"\",'Project Information'!$E$25))","v":""},{"$f":"IF('effRT Support'!$B10=0,\"\",IF('Project Information'!$F$25=\"\",\"\",'Project Information'!$F$25))","v":""},{"$f":"IF('effRT Support'!$B10=0,\"\",IF('Project Information'!$D$27=\"\",\"Y\",\"N\"))","v":""},{"$f":"IF('effRT Support'!$B10=0,\"\",IF('Project Information'!$D$27=\"\",\"\",'Project Information'!$D$27))","v":""},{"$f":"IF('effRT Support'!$B10=0,\"\",IF('Project Information'!$D$28=\"\",\"\",'Project Information'!$D$28))","v":""},{"$f":"IF('effRT Support'!$B10=0,\"\",IF('Project Information'!$D$29=\"\",\"\",'Project Information'!$D$29))","v":""},{"$f":"IF('effRT Support'!$B10=0,\"\",IF('Project Information'!$E$29=\"\",\"\",'Project Information'!$E$29))","v":""},{"$f":"IF('effRT Support'!$B10=0,\"\",IF('Project Information'!$F$29=\"\",\"\",'Project Information'!$F$29))","v":""},{"$f":"IF('effRT Support'!$B10=0,\"\",\"\")","v":""},{"$f":"IF('effRT Support'!$B10=0,\"\",\"\")","v":""},{"$f":"IF('effRT Support'!$B10=0,\"\",IF('Project Information'!$D$36=\"\",\"\",'Project Information'!$D$36))","v":""},{"$f":"IF('effRT Support'!$B10=0,\"\",IF('Project Information'!$D$42=\"\",\"\",'Project Information'!$D$42))","v":""},{"$f":"IF('effRT Support'!$B10=0,\"\",'effRT Support'!$D10)","v":""},{"$f":"IF('effRT Support'!$B10=0,\"\",'effRT Support'!$L10)","v":""},{"$f":"IF('effRT Support'!$B10=0,\"\",'effRT Support'!$N10)","v":""},null,null,{"$f":"IF('effRT Support'!$B10=0,\"\",'effRT Support'!$P10)","v":""},{"$f":"IF('effRT Support'!$B10=0,\"\",'effRT Support'!$Q10)","v":""},{"$f":"IF('effRT Support'!$B10=0,\"\",'effRT Support'!U10)","v":""},{"$f":"IF('effRT Support'!$B10=0,\"\",'effRT Support'!V10)","v":""},{"$f":"IF('effRT Support'!$B10=0,\"\",'effRT Support'!W10)","v":""},{"$f":"IF('effRT Support'!$B10=0,\"\",'effRT Support'!X10)","v":""},{"$f":"IF('effRT Support'!$B10=0,\"\",'effRT Support'!Y10)","v":""},{"$f":"IF('effRT Support'!$B10=0,\"\",'effRT Support'!Z10*10)","v":""},{"$f":"IF('effRT Support'!$B10=0,\"\",'effRT Support'!AA10)","v":""},{"$f":"IF('effRT Support'!$B10=0,\"\",'effRT Support'!AB10)","v":""},{"$f":"IF('effRT Support'!$B10=0,\"\",'effRT Support'!AC10)","v":""},{"$f":"IF('effRT Support'!$B10=0,\"\",'effRT Support'!AD10)","v":""},{"$f":"IF('effRT Support'!$B10=0,\"\",'effRT Support'!AE10)","v":""},{"$f":"IF('effRT Support'!$B10=0,\"\",\"Hours Actual or Deemed\")","v":""},{"$f":"IF('effRT Support'!$B10=0,\"\",'effRT Support'!$F10)","v":""},{"$f":"IF('effRT Support'!$B10=0,\"\",\"Wattage Actual or Deemed\")","v":""},{"$f":"IF('effRT Support'!$B10=0,\"\",IF('Project Information'!$D$33=\"Pay For Performance\",\"Actual\",\"Deemed\"))","v":""},{"$f":"IF('effRT Support'!$B10=0,\"\",\"Cost Actual or Deemed\")","v":""},{"$f":"IF('effRT Support'!$B10=0,\"\",IF('Project Information'!$D$33=\"Pay For Performance\",\"Actual\",\"Deemed\"))","v":""},{"$f":"IF('effRT Support'!$B10=0,\"\",\"Location\")","v":""},{"$f":"IF('effRT Support'!$B10=0,\"\",'effRT Support'!$E10)","v":""},{"$f":"IF('effRT Support'!$B10=0,\"\",\"Space Type\")","v":""},{"$f":"IF('effRT Support'!$B10=0,\"\",'effRT Support'!$G10)","v":""},{"$f":"IF('effRT Support'!$B10=0,\"\",\"Existing Fixture Description\")","v":""},{"$f":"IF('effRT Support'!$B10=0,\"\",'effRT Support'!$H10)","v":""},{"$f":"IF('effRT Support'!$B10=0,\"\",\"Existing Fixture Quantity\")","v":""},{"$f":"IF('effRT Support'!$B10=0,\"\",'effRT Support'!$I10)","v":""},{"$f":"IF('effRT Support'!$B10=0,\"\",\"Existing Fixture Wattage\")","v":""},{"$f":"IF('effRT Support'!$B10=0,\"\",'effRT Support'!$J10)","v":""},{"$f":"IF('effRT Support'!$B10=0,\"\",\"Annual Hours of Operation\")","v":""},{"$f":"IF('effRT Support'!$B10=0,\"\",'effRT Support'!$K10)","v":""},{"$f":"IF('effRT Support'!$B10=0,\"\",\"Installed Fixture Description\")","v":""},{"$f":"IF('effRT Support'!$B10=0,\"\",'effRT Support'!$M10)","v":""},{"$f":"IF('effRT Support'!$B10=0,\"\",\"Installed Fixture Wattage\")","v":""},{"$f":"IF('effRT Support'!$B10=0,\"\",'effRT Support'!$O10)","v":""},{"$f":"IF('effRT Support'!$B10=0,\"\",\"Material Cost\")","v":""},{"$f":"IF('effRT Support'!$B10=0,\"\",'effRT Support'!$R10)","v":""},{"$f":"IF('effRT Support'!$B10=0,\"\",\"Labor Cost\")","v":""},{"$f":"IF('effRT Support'!$B10=0,\"\",'effRT Support'!$S10)","v":""},{"$f":"IF('effRT Support'!$B10=0,\"\",\"Ancillary Costs - Measure Specific\")","v":""},{"$f":"IF('effRT Support'!$B10=0,\"\",'effRT Support'!$T10)","v":""},{"$f":"IF('effRT Support'!$B10=0,\"\",\"Fuel Type\")","v":""},{"$f":"IF('effRT Support'!$B10=0,\"\",'Project Information'!$D$44)","v":""}]
[{"$f":"IF('effRT Support'!$B11=0,\"\",IF('Project Information'!$D$33=\"Small Business\",\"SBL\",\"CILS\"))","v":""},{"$f":"IF('effRT Support'!$B11=0,\"\",IF('Project Information'!$K$2=\"\",\"\",'Project Information'!$K$2))","v":""},null,{"$f":"IF('effRT Support'!$B11=0,\"\",IF('Project Information'!$D$46=\"\",\"\",'Project Information'!$D$46))","v":""},{"$f":"IF('effRT Support'!$B11=0,\"\",IF('Project Information'!$D$20=\"\",\"\",VLOOKUP('Project Information'!$D$20,'Other Data'!$B$159:$E$189,4,FALSE)))","v":""},{"$f":"IF('effRT Support'!$B11=0,\"\",IF('Project Information'!$D$31=\"\",\"\",'Project Information'!$D$31))","v":""},{"$f":"IF('effRT Support'!$B11=0,\"\",IF('Project Information'!$D$5=\"\",\"\",'Project Information'!$D$5))","v":""},null,null,{"$f":"IF('effRT Support'!$B11=0,\"\",IF('Project Information'!$D$20=\"\",\"\",VLOOKUP('Project Information'!$D$20,'Other Data'!$B$159:$E$189,2,FALSE)))","v":""},{"$f":"IF('effRT Support'!$B11=0,\"\",IF('Project Information'!$D$20=\"\",\"\",VLOOKUP('Project Information'!$D$20,'Other Data'!$B$159:$E$189,3,FALSE)))","v":""},{"$f":"IF('effRT Support'!$B11=0,\"\",\"Existing\")","v":""},null,{"$f":"IF('effRT Support'!$B11=0,\"\",IF('Project Information'!$D$21=\"\",\"\",'Project Information'!$D$21))","v":""},{"$f":"IF('effRT Support'!$B11=0,\"\",IF('Project Information'!$D$48=\"\",\"\",'Project Information'!$D$48))","v":""},{"$f":"IF('effRT Support'!$B11=0,\"\",\"\")","v":""},{"$f":"IF('effRT Support'!$B11=0,\"\",\"\")","v":""},{"$f":"IF('effRT Support'!$B11=0,\"\",\"\")","v":""},{"$f":"IF('effRT Support'!$B11=0,\"\",\"\")","v":""},{"$f":"IF('effRT Support'!$B11=0,\"\",IF('Project Information'!$D$13=\"\",\"\",'Project Information'!$D$13))","v":""},{"$f":"IF('effRT Support'!$B11=0,\"\",IF('Project Information'!$E$13=\"\",\"\",'Project Information'!$E$13))","v":""},{"$f":"IF('effRT Support'!$B11=0,\"\",IF('Project Information'!$D$14=\"\",\"\",'Project Information'!$D$14))","v":""},{"$f":"IF('effRT Support'!$B11=0,\"\",IF('Project Information'!$D$15=\"\",\"\",'Project Information'!$D$15))","v":""},{"$f":"IF('effRT Support'!$B11=0,\"\",IF('Project Information'!$D$16=\"\",\"\",'Project Information'!$D$16))","v":""},null,{"$f":"IF('effRT Support'!$B11=0,\"\",'Project Information'!$D$18)","v":""},{"$f":"IF('effRT Support'!$B11=0,\"\",IF('Project Information'!$D$23=\"\",\"\",'Project Information'!$D$23))","v":""},{"$f":"IF('effRT Support'!$B11=0,\"\",IF('Project Information'!$D$24=\"\",\"\",'Project Information'!$D$24))","v":""},{"$f":"IF('effRT Support'!$B11=0,\"\",IF('Project Information'!$D$25=\"\",\"\",'Project Information'!$D$25))","v":""},{"$f":"IF('effRT Support'!$B11=0,\"\",IF('Project Information'!$E$25=\"\",\"\",'Project Information'!$E$25))","v":""},{"$f":"IF('effRT Support'!$B11=0,\"\",IF('Project Information'!$F$25=\"\",\"\",'Project Information'!$F$25))","v":""},{"$f":"IF('effRT Support'!$B11=0,\"\",IF('Project Information'!$D$27=\"\",\"Y\",\"N\"))","v":""},{"$f":"IF('effRT Support'!$B11=0,\"\",IF('Project Information'!$D$27=\"\",\"\",'Project Information'!$D$27))","v":""},{"$f":"IF('effRT Support'!$B11=0,\"\",IF('Project Information'!$D$28=\"\",\"\",'Project Information'!$D$28))","v":""},{"$f":"IF('effRT Support'!$B11=0,\"\",IF('Project Information'!$D$29=\"\",\"\",'Project Information'!$D$29))","v":""},{"$f":"IF('effRT Support'!$B11=0,\"\",IF('Project Information'!$E$29=\"\",\"\",'Project Information'!$E$29))","v":""},{"$f":"IF('effRT Support'!$B11=0,\"\",IF('Project Information'!$F$29=\"\",\"\",'Project Information'!$F$29))","v":""},{"$f":"IF('effRT Support'!$B11=0,\"\",\"\")","v":""},{"$f":"IF('effRT Support'!$B11=0,\"\",\"\")","v":""},{"$f":"IF('effRT Support'!$B11=0,\"\",IF('Project Information'!$D$36=\"\",\"\",'Project Information'!$D$36))","v":""},{"$f":"IF('effRT Support'!$B11=0,\"\",IF('Project Information'!$D$42=\"\",\"\",'Project Information'!$D$42))","v":""},{"$f":"IF('effRT Support'!$B11=0,\"\",'effRT Support'!$D11)","v":""},{"$f":"IF('effRT Support'!$B11=0,\"\",'effRT Support'!$L11)","v":""},{"$f":"IF('effRT Support'!$B11=0,\"\",'effRT Support'!$N11)","v":""},null,null,{"$f":"IF('effRT Support'!$B11=0,\"\",'effRT Support'!$P11)","v":""},{"$f":"IF('effRT Support'!$B11=0,\"\",'effRT Support'!$Q11)","v":""},{"$f":"IF('effRT Support'!$B11=0,\"\",'effRT Support'!U11)","v":""},{"$f":"IF('effRT Support'!$B11=0,\"\",'effRT Support'!V11)","v":""},{"$f":"IF('effRT Support'!$B11=0,\"\",'effRT Support'!W11)","v":""},{"$f":"IF('effRT Support'!$B11=0,\"\",'effRT Support'!X11)","v":""},{"$f":"IF('effRT Support'!$B11=0,\"\",'effRT Support'!Y11)","v":""},{"$f":"IF('effRT Support'!$B11=0,\"\",'effRT Support'!Z11*10)","v":""},{"$f":"IF('effRT Support'!$B11=0,\"\",'effRT Support'!AA11)","v":""},{"$f":"IF('effRT Support'!$B11=0,\"\",'effRT Support'!AB11)","v":""},{"$f":"IF('effRT Support'!$B11=0,\"\",'effRT Support'!AC11)","v":""},{"$f":"IF('effRT Support'!$B11=0,\"\",'effRT Support'!AD11)","v":""},{"$f":"IF('effRT Support'!$B11=0,\"\",'effRT Support'!AE11)","v":""},{"$f":"IF('effRT Support'!$B11=0,\"\",\"Hours Actual or Deemed\")","v":""},{"$f":"IF('effRT Support'!$B11=0,\"\",'effRT Support'!$F11)","v":""},{"$f":"IF('effRT Support'!$B11=0,\"\",\"Wattage Actual or Deemed\")","v":""},{"$f":"IF('effRT Support'!$B11=0,\"\",IF('Project Information'!$D$33=\"Pay For Performance\",\"Actual\",\"Deemed\"))","v":""},{"$f":"IF('effRT Support'!$B11=0,\"\",\"Cost Actual or Deemed\")","v":""},{"$f":"IF('effRT Support'!$B11=0,\"\",IF('Project Information'!$D$33=\"Pay For Performance\",\"Actual\",\"Deemed\"))","v":""},{"$f":"IF('effRT Support'!$B11=0,\"\",\"Location\")","v":""},{"$f":"IF('effRT Support'!$B11=0,\"\",'effRT Support'!$E11)","v":""},{"$f":"IF('effRT Support'!$B11=0,\"\",\"Space Type\")","v":""},{"$f":"IF('effRT Support'!$B11=0,\"\",'effRT Support'!$G11)","v":""},{"$f":"IF('effRT Support'!$B11=0,\"\",\"Existing Fixture Description\")","v":""},{"$f":"IF('effRT Support'!$B11=0,\"\",'effRT Support'!$H11)","v":""},{"$f":"IF('effRT Support'!$B11=0,\"\",\"Existing Fixture Quantity\")","v":""},{"$f":"IF('effRT Support'!$B11=0,\"\",'effRT Support'!$I11)","v":""},{"$f":"IF('effRT Support'!$B11=0,\"\",\"Existing Fixture Wattage\")","v":""},{"$f":"IF('effRT Support'!$B11=0,\"\",'effRT Support'!$J11)","v":""},{"$f":"IF('effRT Support'!$B11=0,\"\",\"Annual Hours of Operation\")","v":""},{"$f":"IF('effRT Support'!$B11=0,\"\",'effRT Support'!$K11)","v":""},{"$f":"IF('effRT Support'!$B11=0,\"\",\"Installed Fixture Description\")","v":""},{"$f":"IF('effRT Support'!$B11=0,\"\",'effRT Support'!$M11)","v":""},{"$f":"IF('effRT Support'!$B11=0,\"\",\"Installed Fixture Wattage\")","v":""},{"$f":"IF('effRT Support'!$B11=0,\"\",'effRT Support'!$O11)","v":""},{"$f":"IF('effRT Support'!$B11=0,\"\",\"Material Cost\")","v":""},{"$f":"IF('effRT Support'!$B11=0,\"\",'effRT Support'!$R11)","v":""},{"$f":"IF('effRT Support'!$B11=0,\"\",\"Labor Cost\")","v":""},{"$f":"IF('effRT Support'!$B11=0,\"\",'effRT Support'!$S11)","v":""},{"$f":"IF('effRT Support'!$B11=0,\"\",\"Ancillary Costs - Measure Specific\")","v":""},{"$f":"IF('effRT Support'!$B11=0,\"\",'effRT Support'!$T11)","v":""},{"$f":"IF('effRT Support'!$B11=0,\"\",\"Fuel Type\")","v":""},{"$f":"IF('effRT Support'!$B11=0,\"\",'Project Information'!$D$44)","v":""},{"$f":"IF('effRT Support'!$B11=0,\"\",\"Installed Fixture Quantity\")","v":""},{"$f":"IF('effRT Support'!$B11=0,\"\",'effRT Support'!P10)","v":""}]
[{"$f":"IF('effRT Support'!$B12=0,\"\",IF('Project Information'!$D$33=\"Small Business\",\"SBL\",\"CILS\"))","v":""},{"$f":"IF('effRT Support'!$B12=0,\"\",IF('Project Information'!$K$2=\"\",\"\",'Project Information'!$K$2))","v":""},null,{"$f":"IF('effRT Support'!$B12=0,\"\",IF('Project Information'!$D$46=\"\",\"\",'Project Information'!$D$46))","v":""},{"$f":"IF('effRT Support'!$B12=0,\"\",IF('Project Information'!$D$20=\"\",\"\",VLOOKUP('Project Information'!$D$20,'Other Data'!$B$159:$E$189,4,FALSE)))","v":""},{"$f":"IF('effRT Support'!$B12=0,\"\",IF('Project Information'!$D$31=\"\",\"\",'Project Information'!$D$31))","v":""},{"$f":"IF('effRT Support'!$B12=0,\"\",IF('Project Information'!$D$5=\"\",\"\",'Project Information'!$D$5))","v":""},null,null,{"$f":"IF('effRT Support'!$B12=0,\"\",IF('Project Information'!$D$20=\"\",\"\",VLOOKUP('Project Information'!$D$20,'Other Data'!$B$159:$E$189,2,FALSE)))","v":""},{"$f":"IF('effRT Support'!$B12=0,\"\",IF('Project Information'!$D$20=\"\",\"\",VLOOKUP('Project Information'!$D$20,'Other Data'!$B$159:$E$189,3,FALSE)))","v":""},{"$f":"IF('effRT Support'!$B12=0,\"\",\"Existing\")","v":""},null,{"$f":"IF('effRT Support'!$B12=0,\"\",IF('Project Information'!$D$21=\"\",\"\",'Project Information'!$D$21))","v":""},{"$f":"IF('effRT Support'!$B12=0,\"\",IF('Project Information'!$D$48=\"\",\"\",'Project Information'!$D$48))","v":""},{"$f":"IF('effRT Support'!$B12=0,\"\",\"\")","v":""},{"$f":"IF('effRT Support'!$B12=0,\"\",\"\")","v":""},{"$f":"IF('effRT Support'!$B12=0,\"\",\"\")","v":""},{"$f":"IF('effRT Support'!$B12=0,\"\",\"\")","v":""},{"$f":"IF('effRT Support'!$B12=0,\"\",IF('Project Information'!$D$13=\"\",\"\",'Project Information'!$D$13))","v":""},{"$f":"IF('effRT Support'!$B12=0,\"\",IF('Project Information'!$E$13=\"\",\"\",'Project Information'!$E$13))","v":""},{"$f":"IF('effRT Support'!$B12=0,\"\",IF('Project Information'!$D$14=\"\",\"\",'Project Information'!$D$14))","v":""},{"$f":"IF('effRT Support'!$B12=0,\"\",IF('Project Information'!$D$15=\"\",\"\",'Project Information'!$D$15))","v":""},{"$f":"IF('effRT Support'!$B12=0,\"\",IF('Project Information'!$D$16=\"\",\"\",'Project Information'!$D$16))","v":""},null,{"$f":"IF('effRT Support'!$B12=0,\"\",'Project Information'!$D$18)","v":""},{"$f":"IF('effRT Support'!$B12=0,\"\",IF('Project Information'!$D$23=\"\",\"\",'Project Information'!$D$23))","v":""},{"$f":"IF('effRT Support'!$B12=0,\"\",IF('Project Information'!$D$24=\"\",\"\",'Project Information'!$D$24))","v":""},{"$f":"IF('effRT Support'!$B12=0,\"\",IF('Project Information'!$D$25=\"\",\"\",'Project Information'!$D$25))","v":""},{"$f":"IF('effRT Support'!$B12=0,\"\",IF('Project Information'!$E$25=\"\",\"\",'Project Information'!$E$25))","v":""},{"$f":"IF('effRT Support'!$B12=0,\"\",IF('Project Information'!$F$25=\"\",\"\",'Project Information'!$F$25))","v":""},{"$f":"IF('effRT Support'!$B12=0,\"\",IF('Project Information'!$D$27=\"\",\"Y\",\"N\"))","v":""},{"$f":"IF('effRT Support'!$B12=0,\"\",IF('Project Information'!$D$27=\"\",\"\",'Project Information'!$D$27))","v":""},{"$f":"IF('effRT Support'!$B12=0,\"\",IF('Project Information'!$D$28=\"\",\"\",'Project Information'!$D$28))","v":""},{"$f":"IF('effRT Support'!$B12=0,\"\",IF('Project Information'!$D$29=\"\",\"\",'Project Information'!$D$29))","v":""},{"$f":"IF('effRT Support'!$B12=0,\"\",IF('Project Information'!$E$29=\"\",\"\",'Project Information'!$E$29))","v":""},{"$f":"IF('effRT Support'!$B12=0,\"\",IF('Project Information'!$F$29=\"\",\"\",'Project Information'!$F$29))","v":""},{"$f":"IF('effRT Support'!$B12=0,\"\",\"\")","v":""},{"$f":"IF('effRT Support'!$B12=0,\"\",\"\")","v":""},{"$f":"IF('effRT Support'!$B12=0,\"\",IF('Project Information'!$D$36=\"\",\"\",'Project Information'!$D$36))","v":""},{"$f":"IF('effRT Support'!$B12=0,\"\",IF('Project Information'!$D$42=\"\",\"\",'Project Information'!$D$42))","v":""},{"$f":"IF('effRT Support'!$B12=0,\"\",'effRT Support'!$D12)","v":""},{"$f":"IF('effRT Support'!$B12=0,\"\",'effRT Support'!$L12)","v":""},{"$f":"IF('effRT Support'!$B12=0,\"\",'effRT Support'!$N12)","v":""},null,null,{"$f":"IF('effRT Support'!$B12=0,\"\",'effRT Support'!$P12)","v":""},{"$f":"IF('effRT Support'!$B12=0,\"\",'effRT Support'!$Q12)","v":""},{"$f":"IF('effRT Support'!$B12=0,\"\",'effRT Support'!U12)","v":""},{"$f":"IF('effRT Support'!$B12=0,\"\",'effRT Support'!V12)","v":""},{"$f":"IF('effRT Support'!$B12=0,\"\",'effRT Support'!W12)","v":""},{"$f":"IF('effRT Support'!$B12=0,\"\",'effRT Support'!X12)","v":""},{"$f":"IF('effRT Support'!$B12=0,\"\",'effRT Support'!Y12)","v":""},{"$f":"IF('effRT Support'!$B12=0,\"\",'effRT Support'!Z12*10)","v":""},{"$f":"IF('effRT Support'!$B12=0,\"\",'effRT Support'!AA12)","v":""},{"$f":"IF('effRT Support'!$B12=0,\"\",'effRT Support'!AB12)","v":""},{"$f":"IF('effRT Support'!$B12=0,\"\",'effRT Support'!AC12)","v":""},{"$f":"IF('effRT Support'!$B12=0,\"\",'effRT Support'!AD12)","v":""},{"$f":"IF('effRT Support'!$B12=0,\"\",'effRT Support'!AE12)","v":""},{"$f":"IF('effRT Support'!$B12=0,\"\",\"Hours Actual or Deemed\")","v":""},{"$f":"IF('effRT Support'!$B12=0,\"\",'effRT Support'!$F12)","v":""},{"$f":"IF('effRT Support'!$B12=0,\"\",\"Wattage Actual or Deemed\")","v":""},{"$f":"IF('effRT Support'!$B12=0,\"\",IF('Project Information'!$D$33=\"Pay For Performance\",\"Actual\",\"Deemed\"))","v":""},{"$f":"IF('effRT Support'!$B12=0,\"\",\"Cost Actual or Deemed\")","v":""},{"$f":"IF('effRT Support'!$B12=0,\"\",IF('Project Information'!$D$33=\"Pay For Performance\",\"Actual\",\"Deemed\"))","v":""},{"$f":"IF('effRT Support'!$B12=0,\"\",\"Location\")","v":""},{"$f":"IF('effRT Support'!$B12=0,\"\",'effRT Support'!$E12)","v":""},{"$f":"IF('effRT Support'!$B12=0,\"\",\"Space Type\")","v":""},{"$f":"IF('effRT Support'!$B12=0,\"\",'effRT Support'!$G12)","v":""},{"$f":"IF('effRT Support'!$B12=0,\"\",\"Existing Fixture Description\")","v":""},{"$f":"IF('effRT Support'!$B12=0,\"\",'effRT Support'!$H12)","v":""},{"$f":"IF('effRT Support'!$B12=0,\"\",\"Existing Fixture Quantity\")","v":""},{"$f":"IF('effRT Support'!$B12=0,\"\",'effRT Support'!$I12)","v":""},{"$f":"IF('effRT Support'!$B12=0,\"\",\"Existing Fixture Wattage\")","v":""},{"$f":"IF('effRT Support'!$B12=0,\"\",'effRT Support'!$J12)","v":""},{"$f":"IF('effRT Support'!$B12=0,\"\",\"Annual Hours of Operation\")","v":""},{"$f":"IF('effRT Support'!$B12=0,\"\",'effRT Support'!$K12)","v":""},{"$f":"IF('effRT Support'!$B12=0,\"\",\"Installed Fixture Description\")","v":""},{"$f":"IF('effRT Support'!$B12=0,\"\",'effRT Support'!$M12)","v":""},{"$f":"IF('effRT Support'!$B12=0,\"\",\"Installed Fixture Wattage\")","v":""},{"$f":"IF('effRT Support'!$B12=0,\"\",'effRT Support'!$O12)","v":""},{"$f":"IF('effRT Support'!$B12=0,\"\",\"Material Cost\")","v":""},{"$f":"IF('effRT Support'!$B12=0,\"\",'effRT Support'!$R12)","v":""},{"$f":"IF('effRT Support'!$B12=0,\"\",\"Labor Cost\")","v":""},{"$f":"IF('effRT Support'!$B12=0,\"\",'effRT Support'!$S12)","v":""},{"$f":"IF('effRT Support'!$B12=0,\"\",\"Ancillary Costs - Measure Specific\")","v":""},{"$f":"IF('effRT Support'!$B12=0,\"\",'effRT Support'!$T12)","v":""},{"$f":"IF('effRT Support'!$B12=0,\"\",\"Fuel Type\")","v":""},{"$f":"IF('effRT Support'!$B12=0,\"\",'Project Information'!$D$44)","v":""}]
[{"$f":"IF('effRT Support'!$B13=0,\"\",IF('Project Information'!$D$33=\"Small Business\",\"SBL\",\"CILS\"))","v":""},{"$f":"IF('effRT Support'!$B13=0,\"\",IF('Project Information'!$K$2=\"\",\"\",'Project Information'!$K$2))","v":""},null,{"$f":"IF('effRT Support'!$B13=0,\"\",IF('Project Information'!$D$46=\"\",\"\",'Project Information'!$D$46))","v":""},{"$f":"IF('effRT Support'!$B13=0,\"\",IF('Project Information'!$D$20=\"\",\"\",VLOOKUP('Project Information'!$D$20,'Other Data'!$B$159:$E$189,4,FALSE)))","v":""},{"$f":"IF('effRT Support'!$B13=0,\"\",IF('Project Information'!$D$31=\"\",\"\",'Project Information'!$D$31))","v":""},{"$f":"IF('effRT Support'!$B13=0,\"\",IF('Project Information'!$D$5=\"\",\"\",'Project Information'!$D$5))","v":""},null,null,{"$f":"IF('effRT Support'!$B13=0,\"\",IF('Project Information'!$D$20=\"\",\"\",VLOOKUP('Project Information'!$D$20,'Other Data'!$B$159:$E$189,2,FALSE)))","v":""},{"$f":"IF('effRT Support'!$B13=0,\"\",IF('Project Information'!$D$20=\"\",\"\",VLOOKUP('Project Information'!$D$20,'Other Data'!$B$159:$E$189,3,FALSE)))","v":""},{"$f":"IF('effRT Support'!$B13=0,\"\",\"Existing\")","v":""},null,{"$f":"IF('effRT Support'!$B13=0,\"\",IF('Project Information'!$D$21=\"\",\"\",'Project Information'!$D$21))","v":""},{"$f":"IF('effRT Support'!$B13=0,\"\",IF('Project Information'!$D$48=\"\",\"\",'Project Information'!$D$48))","v":""},{"$f":"IF('effRT Support'!$B13=0,\"\",\"\")","v":""},{"$f":"IF('effRT Support'!$B13=0,\"\",\"\")","v":""},{"$f":"IF('effRT Support'!$B13=0,\"\",\"\")","v":""},{"$f":"IF('effRT Support'!$B13=0,\"\",\"\")","v":""},{"$f":"IF('effRT Support'!$B13=0,\"\",IF('Project Information'!$D$13=\"\",\"\",'Project Information'!$D$13))","v":""},{"$f":"IF('effRT Support'!$B13=0,\"\",IF('Project Information'!$E$13=\"\",\"\",'Project Information'!$E$13))","v":""},{"$f":"IF('effRT Support'!$B13=0,\"\",IF('Project Information'!$D$14=\"\",\"\",'Project Information'!$D$14))","v":""},{"$f":"IF('effRT Support'!$B13=0,\"\",IF('Project Information'!$D$15=\"\",\"\",'Project Information'!$D$15))","v":""},{"$f":"IF('effRT Support'!$B13=0,\"\",IF('Project Information'!$D$16=\"\",\"\",'Project Information'!$D$16))","v":""},null,{"$f":"IF('effRT Support'!$B13=0,\"\",'Project Information'!$D$18)","v":""},{"$f":"IF('effRT Support'!$B13=0,\"\",IF('Project Information'!$D$23=\"\",\"\",'Project Information'!$D$23))","v":""},{"$f":"IF('effRT Support'!$B13=0,\"\",IF('Project Information'!$D$24=\"\",\"\",'Project Information'!$D$24))","v":""},{"$f":"IF('effRT Support'!$B13=0,\"\",IF('Project Information'!$D$25=\"\",\"\",'Project Information'!$D$25))","v":""},{"$f":"IF('effRT Support'!$B13=0,\"\",IF('Project Information'!$E$25=\"\",\"\",'Project Information'!$E$25))","v":""},{"$f":"IF('effRT Support'!$B13=0,\"\",IF('Project Information'!$F$25=\"\",\"\",'Project Information'!$F$25))","v":""},{"$f":"IF('effRT Support'!$B13=0,\"\",IF('Project Information'!$D$27=\"\",\"Y\",\"N\"))","v":""},{"$f":"IF('effRT Support'!$B13=0,\"\",IF('Project Information'!$D$27=\"\",\"\",'Project Information'!$D$27))","v":""},{"$f":"IF('effRT Support'!$B13=0,\"\",IF('Project Information'!$D$28=\"\",\"\",'Project Information'!$D$28))","v":""},{"$f":"IF('effRT Support'!$B13=0,\"\",IF('Project Information'!$D$29=\"\",\"\",'Project Information'!$D$29))","v":""},{"$f":"IF('effRT Support'!$B13=0,\"\",IF('Project Information'!$E$29=\"\",\"\",'Project Information'!$E$29))","v":""},{"$f":"IF('effRT Support'!$B13=0,\"\",IF('Project Information'!$F$29=\"\",\"\",'Project Information'!$F$29))","v":""},{"$f":"IF('effRT Support'!$B13=0,\"\",\"\")","v":""},{"$f":"IF('effRT Support'!$B13=0,\"\",\"\")","v":""},{"$f":"IF('effRT Support'!$B13=0,\"\",IF('Project Information'!$D$36=\"\",\"\",'Project Information'!$D$36))","v":""},{"$f":"IF('effRT Support'!$B13=0,\"\",IF('Project Information'!$D$42=\"\",\"\",'Project Information'!$D$42))","v":""},{"$f":"IF('effRT Support'!$B13=0,\"\",'effRT Support'!$D13)","v":""},{"$f":"IF('effRT Support'!$B13=0,\"\",'effRT Support'!$L13)","v":""},{"$f":"IF('effRT Support'!$B13=0,\"\",'effRT Support'!$N13)","v":""},null,null,{"$f":"IF('effRT Support'!$B13=0,\"\",'effRT Support'!$P13)","v":""},{"$f":"IF('effRT Support'!$B13=0,\"\",'effRT Support'!$Q13)","v":""},{"$f":"IF('effRT Support'!$B13=0,\"\",'effRT Support'!U13)","v":""},{"$f":"IF('effRT Support'!$B13=0,\"\",'effRT Support'!V13)","v":""},{"$f":"IF('effRT Support'!$B13=0,\"\",'effRT Support'!W13)","v":""},{"$f":"IF('effRT Support'!$B13=0,\"\",'effRT Support'!X13)","v":""},{"$f":"IF('effRT Support'!$B13=0,\"\",'effRT Support'!Y13)","v":""},{"$f":"IF('effRT Support'!$B13=0,\"\",'effRT Support'!Z13*10)","v":""},{"$f":"IF('effRT Support'!$B13=0,\"\",'effRT Support'!AA13)","v":""},{"$f":"IF('effRT Support'!$B13=0,\"\",'effRT Support'!AB13)","v":""},{"$f":"IF('effRT Support'!$B13=0,\"\",'effRT Support'!AC13)","v":""},{"$f":"IF('effRT Support'!$B13=0,\"\",'effRT Support'!AD13)","v":""},{"$f":"IF('effRT Support'!$B13=0,\"\",'effRT Support'!AE13)","v":""},{"$f":"IF('effRT Support'!$B13=0,\"\",\"Hours Actual or Deemed\")","v":""},{"$f":"IF('effRT Support'!$B13=0,\"\",'effRT Support'!$F13)","v":""},{"$f":"IF('effRT Support'!$B13=0,\"\",\"Wattage Actual or Deemed\")","v":""},{"$f":"IF('effRT Support'!$B13=0,\"\",IF('Project Information'!$D$33=\"Pay For Performance\",\"Actual\",\"Deemed\"))","v":""},{"$f":"IF('effRT Support'!$B13=0,\"\",\"Cost Actual or Deemed\")","v":""},{"$f":"IF('effRT Support'!$B13=0,\"\",IF('Project Information'!$D$33=\"Pay For Performance\",\"Actual\",\"Deemed\"))","v":""},{"$f":"IF('effRT Support'!$B13=0,\"\",\"Location\")","v":""},{"$f":"IF('effRT Support'!$B13=0,\"\",'effRT Support'!$E13)","v":""},{"$f":"IF('effRT Support'!$B13=0,\"\",\"Space Type\")","v":""},{"$f":"IF('effRT Support'!$B13=0,\"\",'effRT Support'!$G13)","v":""},{"$f":"IF('effRT Support'!$B13=0,\"\",\"Existing Fixture Description\")","v":""},{"$f":"IF('effRT Support'!$B13=0,\"\",'effRT Support'!$H13)","v":""},{"$f":"IF('effRT Support'!$B13=0,\"\",\"Existing Fixture Quantity\")","v":""},{"$f":"IF('effRT Support'!$B13=0,\"\",'effRT Support'!$I13)","v":""},{"$f":"IF('effRT Support'!$B13=0,\"\",\"Existing Fixture Wattage\")","v":""},{"$f":"IF('effRT Support'!$B13=0,\"\",'effRT Support'!$J13)","v":""},{"$f":"IF('effRT Support'!$B13=0,\"\",\"Annual Hours of Operation\")","v":""},{"$f":"IF('effRT Support'!$B13=0,\"\",'effRT Support'!$K13)","v":""},{"$f":"IF('effRT Support'!$B13=0,\"\",\"Installed Fixture Description\")","v":""},{"$f":"IF('effRT Support'!$B13=0,\"\",'effRT Support'!$M13)","v":""},{"$f":"IF('effRT Support'!$B13=0,\"\",\"Installed Fixture Wattage\")","v":""},{"$f":"IF('effRT Support'!$B13=0,\"\",'effRT Support'!$O13)","v":""},{"$f":"IF('effRT Support'!$B13=0,\"\",\"Material Cost\")","v":""},{"$f":"IF('effRT Support'!$B13=0,\"\",'effRT Support'!$R13)","v":""},{"$f":"IF('effRT Support'!$B13=0,\"\",\"Labor Cost\")","v":""},{"$f":"IF('effRT Support'!$B13=0,\"\",'effRT Support'!$S13)","v":""},{"$f":"IF('effRT Support'!$B13=0,\"\",\"Ancillary Costs - Measure Specific\")","v":""},{"$f":"IF('effRT Support'!$B13=0,\"\",'effRT Support'!$T13)","v":""},{"$f":"IF('effRT Support'!$B13=0,\"\",\"Fuel Type\")","v":""},{"$f":"IF('effRT Support'!$B13=0,\"\",'Project Information'!$D$44)","v":""},{"$f":"IF('effRT Support'!$B13=0,\"\",\"Installed Fixture Quantity\")","v":""},{"$f":"IF('effRT Support'!$B13=0,\"\",'effRT Support'!P12)","v":""}]
[{"$f":"IF('effRT Support'!$B14=0,\"\",IF('Project Information'!$D$33=\"Small Business\",\"SBL\",\"CILS\"))","v":""},{"$f":"IF('effRT Support'!$B14=0,\"\",IF('Project Information'!$K$2=\"\",\"\",'Project Information'!$K$2))","v":""},null,{"$f":"IF('effRT Support'!$B14=0,\"\",IF('Project Information'!$D$46=\"\",\"\",'Project Information'!$D$46))","v":""},{"$f":"IF('effRT Support'!$B14=0,\"\",IF('Project Information'!$D$20=\"\",\"\",VLOOKUP('Project Information'!$D$20,'Other Data'!$B$159:$E$189,4,FALSE)))","v":""},{"$f":"IF('effRT Support'!$B14=0,\"\",IF('Project Information'!$D$31=\"\",\"\",'Project Information'!$D$31))","v":""},{"$f":"IF('effRT Support'!$B14=0,\"\",IF('Project Information'!$D$5=\"\",\"\",'Project Information'!$D$5))","v":""},null,null,{"$f":"IF('effRT Support'!$B14=0,\"\",IF('Project Information'!$D$20=\"\",\"\",VLOOKUP('Project Information'!$D$20,'Other Data'!$B$159:$E$189,2,FALSE)))","v":""},{"$f":"IF('effRT Support'!$B14=0,\"\",IF('Project Information'!$D$20=\"\",\"\",VLOOKUP('Project Information'!$D$20,'Other Data'!$B$159:$E$189,3,FALSE)))","v":""},{"$f":"IF('effRT Support'!$B14=0,\"\",\"Existing\")","v":""},null,{"$f":"IF('effRT Support'!$B14=0,\"\",IF('Project Information'!$D$21=\"\",\"\",'Project Information'!$D$21))","v":""},{"$f":"IF('effRT Support'!$B14=0,\"\",IF('Project Information'!$D$48=\"\",\"\",'Project Information'!$D$48))","v":""},{"$f":"IF('effRT Support'!$B14=0,\"\",\"\")","v":""},{"$f":"IF('effRT Support'!$B14=0,\"\",\"\")","v":""},{"$f":"IF('effRT Support'!$B14=0,\"\",\"\")","v":""},{"$f":"IF('effRT Support'!$B14=0,\"\",\"\")","v":""},{"$f":"IF('effRT Support'!$B14=0,\"\",IF('Project Information'!$D$13=\"\",\"\",'Project Information'!$D$13))","v":""},{"$f":"IF('effRT Support'!$B14=0,\"\",IF('Project Information'!$E$13=\"\",\"\",'Project Information'!$E$13))","v":""},{"$f":"IF('effRT Support'!$B14=0,\"\",IF('Project Information'!$D$14=\"\",\"\",'Project Information'!$D$14))","v":""},{"$f":"IF('effRT Support'!$B14=0,\"\",IF('Project Information'!$D$15=\"\",\"\",'Project Information'!$D$15))","v":""},{"$f":"IF('effRT Support'!$B14=0,\"\",IF('Project Information'!$D$16=\"\",\"\",'Project Information'!$D$16))","v":""},null,{"$f":"IF('effRT Support'!$B14=0,\"\",'Project Information'!$D$18)","v":""},{"$f":"IF('effRT Support'!$B14=0,\"\",IF('Project Information'!$D$23=\"\",\"\",'Project Information'!$D$23))","v":""},{"$f":"IF('effRT Support'!$B14=0,\"\",IF('Project Information'!$D$24=\"\",\"\",'Project Information'!$D$24))","v":""},{"$f":"IF('effRT Support'!$B14=0,\"\",IF('Project Information'!$D$25=\"\",\"\",'Project Information'!$D$25))","v":""},{"$f":"IF('effRT Support'!$B14=0,\"\",IF('Project Information'!$E$25=\"\",\"\",'Project Information'!$E$25))","v":""},{"$f":"IF('effRT Support'!$B14=0,\"\",IF('Project Information'!$F$25=\"\",\"\",'Project Information'!$F$25))","v":""},{"$f":"IF('effRT Support'!$B14=0,\"\",IF('Project Information'!$D$27=\"\",\"Y\",\"N\"))","v":""},{"$f":"IF('effRT Support'!$B14=0,\"\",IF('Project Information'!$D$27=\"\",\"\",'Project Information'!$D$27))","v":""},{"$f":"IF('effRT Support'!$B14=0,\"\",IF('Project Information'!$D$28=\"\",\"\",'Project Information'!$D$28))","v":""},{"$f":"IF('effRT Support'!$B14=0,\"\",IF('Project Information'!$D$29=\"\",\"\",'Project Information'!$D$29))","v":""},{"$f":"IF('effRT Support'!$B14=0,\"\",IF('Project Information'!$E$29=\"\",\"\",'Project Information'!$E$29))","v":""},{"$f":"IF('effRT Support'!$B14=0,\"\",IF('Project Information'!$F$29=\"\",\"\",'Project Information'!$F$29))","v":""},{"$f":"IF('effRT Support'!$B14=0,\"\",\"\")","v":""},{"$f":"IF('effRT Support'!$B14=0,\"\",\"\")","v":""},{"$f":"IF('effRT Support'!$B14=0,\"\",IF('Project Information'!$D$36=\"\",\"\",'Project Information'!$D$36))","v":""},{"$f":"IF('effRT Support'!$B14=0,\"\",IF('Project Information'!$D$42=\"\",\"\",'Project Information'!$D$42))","v":""},{"$f":"IF('effRT Support'!$B14=0,\"\",'effRT Support'!$D14)","v":""},{"$f":"IF('effRT Support'!$B14=0,\"\",'effRT Support'!$L14)","v":""},{"$f":"IF('effRT Support'!$B14=0,\"\",'effRT Support'!$N14)","v":""},null,null,{"$f":"IF('effRT Support'!$B14=0,\"\",'effRT Support'!$P14)","v":""},{"$f":"IF('effRT Support'!$B14=0,\"\",'effRT Support'!$Q14)","v":""},{"$f":"IF('effRT Support'!$B14=0,\"\",'effRT Support'!U14)","v":""},{"$f":"IF('effRT Support'!$B14=0,\"\",'effRT Support'!V14)","v":""},{"$f":"IF('effRT Support'!$B14=0,\"\",'effRT Support'!W14)","v":""},{"$f":"IF('effRT Support'!$B14=0,\"\",'effRT Support'!X14)","v":""},{"$f":"IF('effRT Support'!$B14=0,\"\",'effRT Support'!Y14)","v":""},{"$f":"IF('effRT Support'!$B14=0,\"\",'effRT Support'!Z14*10)","v":""},{"$f":"IF('effRT Support'!$B14=0,\"\",'effRT Support'!AA14)","v":""},{"$f":"IF('effRT Support'!$B14=0,\"\",'effRT Support'!AB14)","v":""},{"$f":"IF('effRT Support'!$B14=0,\"\",'effRT Support'!AC14)","v":""},{"$f":"IF('effRT Support'!$B14=0,\"\",'effRT Support'!AD14)","v":""},{"$f":"IF('effRT Support'!$B14=0,\"\",'effRT Support'!AE14)","v":""},{"$f":"IF('effRT Support'!$B14=0,\"\",\"Hours Actual or Deemed\")","v":""},{"$f":"IF('effRT Support'!$B14=0,\"\",'effRT Support'!$F14)","v":""},{"$f":"IF('effRT Support'!$B14=0,\"\",\"Wattage Actual or Deemed\")","v":""},{"$f":"IF('effRT Support'!$B14=0,\"\",IF('Project Information'!$D$33=\"Pay For Performance\",\"Actual\",\"Deemed\"))","v":""},{"$f":"IF('effRT Support'!$B14=0,\"\",\"Cost Actual or Deemed\")","v":""},{"$f":"IF('effRT Support'!$B14=0,\"\",IF('Project Information'!$D$33=\"Pay For Performance\",\"Actual\",\"Deemed\"))","v":""},{"$f":"IF('effRT Support'!$B14=0,\"\",\"Location\")","v":""},{"$f":"IF('effRT Support'!$B14=0,\"\",'effRT Support'!$E14)","v":""},{"$f":"IF('effRT Support'!$B14=0,\"\",\"Space Type\")","v":""},{"$f":"IF('effRT Support'!$B14=0,\"\",'effRT Support'!$G14)","v":""},{"$f":"IF('effRT Support'!$B14=0,\"\",\"Existing Fixture Description\")","v":""},{"$f":"IF('effRT Support'!$B14=0,\"\",'effRT Support'!$H14)","v":""},{"$f":"IF('effRT Support'!$B14=0,\"\",\"Existing Fixture Quantity\")","v":""},{"$f":"IF('effRT Support'!$B14=0,\"\",'effRT Support'!$I14)","v":""},{"$f":"IF('effRT Support'!$B14=0,\"\",\"Existing Fixture Wattage\")","v":""},{"$f":"IF('effRT Support'!$B14=0,\"\",'effRT Support'!$J14)","v":""},{"$f":"IF('effRT Support'!$B14=0,\"\",\"Annual Hours of Operation\")","v":""},{"$f":"IF('effRT Support'!$B14=0,\"\",'effRT Support'!$K14)","v":""},{"$f":"IF('effRT Support'!$B14=0,\"\",\"Installed Fixture Description\")","v":""},{"$f":"IF('effRT Support'!$B14=0,\"\",'effRT Support'!$M14)","v":""},{"$f":"IF('effRT Support'!$B14=0,\"\",\"Installed Fixture Wattage\")","v":""},{"$f":"IF('effRT Support'!$B14=0,\"\",'effRT Support'!$O14)","v":""},{"$f":"IF('effRT Support'!$B14=0,\"\",\"Material Cost\")","v":""},{"$f":"IF('effRT Support'!$B14=0,\"\",'effRT Support'!$R14)","v":""},{"$f":"IF('effRT Support'!$B14=0,\"\",\"Labor Cost\")","v":""},{"$f":"IF('effRT Support'!$B14=0,\"\",'effRT Support'!$S14)","v":""},{"$f":"IF('effRT Support'!$B14=0,\"\",\"Ancillary Costs - Measure Specific\")","v":""},{"$f":"IF('effRT Support'!$B14=0,\"\",'effRT Support'!$T14)","v":""},{"$f":"IF('effRT Support'!$B14=0,\"\",\"Fuel Type\")","v":""},{"$f":"IF('effRT Support'!$B14=0,\"\",'Project Information'!$D$44)","v":""}]
[{"$f":"IF('effRT Support'!$B15=0,\"\",IF('Project Information'!$D$33=\"Small Business\",\"SBL\",\"CILS\"))","v":""},{"$f":"IF('effRT Support'!$B15=0,\"\",IF('Project Information'!$K$2=\"\",\"\",'Project Information'!$K$2))","v":""},null,{"$f":"IF('effRT Support'!$B15=0,\"\",IF('Project Information'!$D$46=\"\",\"\",'Project Information'!$D$46))","v":""},{"$f":"IF('effRT Support'!$B15=0,\"\",IF('Project Information'!$D$20=\"\",\"\",VLOOKUP('Project Information'!$D$20,'Other Data'!$B$159:$E$189,4,FALSE)))","v":""},{"$f":"IF('effRT Support'!$B15=0,\"\",IF('Project Information'!$D$31=\"\",\"\",'Project Information'!$D$31))","v":""},{"$f":"IF('effRT Support'!$B15=0,\"\",IF('Project Information'!$D$5=\"\",\"\",'Project Information'!$D$5))","v":""},null,null,{"$f":"IF('effRT Support'!$B15=0,\"\",IF('Project Information'!$D$20=\"\",\"\",VLOOKUP('Project Information'!$D$20,'Other Data'!$B$159:$E$189,2,FALSE)))","v":""},{"$f":"IF('effRT Support'!$B15=0,\"\",IF('Project Information'!$D$20=\"\",\"\",VLOOKUP('Project Information'!$D$20,'Other Data'!$B$159:$E$189,3,FALSE)))","v":""},{"$f":"IF('effRT Support'!$B15=0,\"\",\"Existing\")","v":""},null,{"$f":"IF('effRT Support'!$B15=0,\"\",IF('Project Information'!$D$21=\"\",\"\",'Project Information'!$D$21))","v":""},{"$f":"IF('effRT Support'!$B15=0,\"\",IF('Project Information'!$D$48=\"\",\"\",'Project Information'!$D$48))","v":""},{"$f":"IF('effRT Support'!$B15=0,\"\",\"\")","v":""},{"$f":"IF('effRT Support'!$B15=0,\"\",\"\")","v":""},{"$f":"IF('effRT Support'!$B15=0,\"\",\"\")","v":""},{"$f":"IF('effRT Support'!$B15=0,\"\",\"\")","v":""},{"$f":"IF('effRT Support'!$B15=0,\"\",IF('Project Information'!$D$13=\"\",\"\",'Project Information'!$D$13))","v":""},{"$f":"IF('effRT Support'!$B15=0,\"\",IF('Project Information'!$E$13=\"\",\"\",'Project Information'!$E$13))","v":""},{"$f":"IF('effRT Support'!$B15=0,\"\",IF('Project Information'!$D$14=\"\",\"\",'Project Information'!$D$14))","v":""},{"$f":"IF('effRT Support'!$B15=0,\"\",IF('Project Information'!$D$15=\"\",\"\",'Project Information'!$D$15))","v":""},{"$f":"IF('effRT Support'!$B15=0,\"\",IF('Project Information'!$D$16=\"\",\"\",'Project Information'!$D$16))","v":""},null,{"$f":"IF('effRT Support'!$B15=0,\"\",'Project Information'!$D$18)","v":""},{"$f":"IF('effRT Support'!$B15=0,\"\",IF('Project Information'!$D$23=\"\",\"\",'Project Information'!$D$23))","v":""},{"$f":"IF('effRT Support'!$B15=0,\"\",IF('Project Information'!$D$24=\"\",\"\",'Project Information'!$D$24))","v":""},{"$f":"IF('effRT Support'!$B15=0,\"\",IF('Project Information'!$D$25=\"\",\"\",'Project Information'!$D$25))","v":""},{"$f":"IF('effRT Support'!$B15=0,\"\",IF('Project Information'!$E$25=\"\",\"\",'Project Information'!$E$25))","v":""},{"$f":"IF('effRT Support'!$B15=0,\"\",IF('Project Information'!$F$25=\"\",\"\",'Project Information'!$F$25))","v":""},{"$f":"IF('effRT Support'!$B15=0,\"\",IF('Project Information'!$D$27=\"\",\"Y\",\"N\"))","v":""},{"$f":"IF('effRT Support'!$B15=0,\"\",IF('Project Information'!$D$27=\"\",\"\",'Project Information'!$D$27))","v":""},{"$f":"IF('effRT Support'!$B15=0,\"\",IF('Project Information'!$D$28=\"\",\"\",'Project Information'!$D$28))","v":""},{"$f":"IF('effRT Support'!$B15=0,\"\",IF('Project Information'!$D$29=\"\",\"\",'Project Information'!$D$29))","v":""},{"$f":"IF('effRT Support'!$B15=0,\"\",IF('Project Information'!$E$29=\"\",\"\",'Project Information'!$E$29))","v":""},{"$f":"IF('effRT Support'!$B15=0,\"\",IF('Project Information'!$F$29=\"\",\"\",'Project Information'!$F$29))","v":""},{"$f":"IF('effRT Support'!$B15=0,\"\",\"\")","v":""},{"$f":"IF('effRT Support'!$B15=0,\"\",\"\")","v":""},{"$f":"IF('effRT Support'!$B15=0,\"\",IF('Project Information'!$D$36=\"\",\"\",'Project Information'!$D$36))","v":""},{"$f":"IF('effRT Support'!$B15=0,\"\",IF('Project Information'!$D$42=\"\",\"\",'Project Information'!$D$42))","v":""},{"$f":"IF('effRT Support'!$B15=0,\"\",'effRT Support'!$D15)","v":""},{"$f":"IF('effRT Support'!$B15=0,\"\",'effRT Support'!$L15)","v":""},{"$f":"IF('effRT Support'!$B15=0,\"\",'effRT Support'!$N15)","v":""},null,null,{"$f":"IF('effRT Support'!$B15=0,\"\",'effRT Support'!$P15)","v":""},{"$f":"IF('effRT Support'!$B15=0,\"\",'effRT Support'!$Q15)","v":""},{"$f":"IF('effRT Support'!$B15=0,\"\",'effRT Support'!U15)","v":""},{"$f":"IF('effRT Support'!$B15=0,\"\",'effRT Support'!V15)","v":""},{"$f":"IF('effRT Support'!$B15=0,\"\",'effRT Support'!W15)","v":""},{"$f":"IF('effRT Support'!$B15=0,\"\",'effRT Support'!X15)","v":""},{"$f":"IF('effRT Support'!$B15=0,\"\",'effRT Support'!Y15)","v":""},{"$f":"IF('effRT Support'!$B15=0,\"\",'effRT Support'!Z15*10)","v":""},{"$f":"IF('effRT Support'!$B15=0,\"\",'effRT Support'!AA15)","v":""},{"$f":"IF('effRT Support'!$B15=0,\"\",'effRT Support'!AB15)","v":""},{"$f":"IF('effRT Support'!$B15=0,\"\",'effRT Support'!AC15)","v":""},{"$f":"IF('effRT Support'!$B15=0,\"\",'effRT Support'!AD15)","v":""},{"$f":"IF('effRT Support'!$B15=0,\"\",'effRT Support'!AE15)","v":""},{"$f":"IF('effRT Support'!$B15=0,\"\",\"Hours Actual or Deemed\")","v":""},{"$f":"IF('effRT Support'!$B15=0,\"\",'effRT Support'!$F15)","v":""},{"$f":"IF('effRT Support'!$B15=0,\"\",\"Wattage Actual or Deemed\")","v":""},{"$f":"IF('effRT Support'!$B15=0,\"\",IF('Project Information'!$D$33=\"Pay For Performance\",\"Actual\",\"Deemed\"))","v":""},{"$f":"IF('effRT Support'!$B15=0,\"\",\"Cost Actual or Deemed\")","v":""},{"$f":"IF('effRT Support'!$B15=0,\"\",IF('Project Information'!$D$33=\"Pay For Performance\",\"Actual\",\"Deemed\"))","v":""},{"$f":"IF('effRT Support'!$B15=0,\"\",\"Location\")","v":""},{"$f":"IF('effRT Support'!$B15=0,\"\",'effRT Support'!$E15)","v":""},{"$f":"IF('effRT Support'!$B15=0,\"\",\"Space Type\")","v":""},{"$f":"IF('effRT Support'!$B15=0,\"\",'effRT Support'!$G15)","v":""},{"$f":"IF('effRT Support'!$B15=0,\"\",\"Existing Fixture Description\")","v":""},{"$f":"IF('effRT Support'!$B15=0,\"\",'effRT Support'!$H15)","v":""},{"$f":"IF('effRT Support'!$B15=0,\"\",\"Existing Fixture Quantity\")","v":""},{"$f":"IF('effRT Support'!$B15=0,\"\",'effRT Support'!$I15)","v":""},{"$f":"IF('effRT Support'!$B15=0,\"\",\"Existing Fixture Wattage\")","v":""},{"$f":"IF('effRT Support'!$B15=0,\"\",'effRT Support'!$J15)","v":""},{"$f":"IF('effRT Support'!$B15=0,\"\",\"Annual Hours of Operation\")","v":""},{"$f":"IF('effRT Support'!$B15=0,\"\",'effRT Support'!$K15)","v":""},{"$f":"IF('effRT Support'!$B15=0,\"\",\"Installed Fixture Description\")","v":""},{"$f":"IF('effRT Support'!$B15=0,\"\",'effRT Support'!$M15)","v":""},{"$f":"IF('effRT Support'!$B15=0,\"\",\"Installed Fixture Wattage\")","v":""},{"$f":"IF('effRT Support'!$B15=0,\"\",'effRT Support'!$O15)","v":""},{"$f":"IF('effRT Support'!$B15=0,\"\",\"Material Cost\")","v":""},{"$f":"IF('effRT Support'!$B15=0,\"\",'effRT Support'!$R15)","v":""},{"$f":"IF('effRT Support'!$B15=0,\"\",\"Labor Cost\")","v":""},{"$f":"IF('effRT Support'!$B15=0,\"\",'effRT Support'!$S15)","v":""},{"$f":"IF('effRT Support'!$B15=0,\"\",\"Ancillary Costs - Measure Specific\")","v":""},{"$f":"IF('effRT Support'!$B15=0,\"\",'effRT Support'!$T15)","v":""},{"$f":"IF('effRT Support'!$B15=0,\"\",\"Fuel Type\")","v":""},{"$f":"IF('effRT Support'!$B15=0,\"\",'Project Information'!$D$44)","v":""},{"$f":"IF('effRT Support'!$B15=0,\"\",\"Installed Fixture Quantity\")","v":""},{"$f":"IF('effRT Support'!$B15=0,\"\",'effRT Support'!P14)","v":""}]
[{"$f":"IF('effRT Support'!$B16=0,\"\",IF('Project Information'!$D$33=\"Small Business\",\"SBL\",\"CILS\"))","v":""},{"$f":"IF('effRT Support'!$B16=0,\"\",IF('Project Information'!$K$2=\"\",\"\",'Project Information'!$K$2))","v":""},null,{"$f":"IF('effRT Support'!$B16=0,\"\",IF('Project Information'!$D$46=\"\",\"\",'Project Information'!$D$46))","v":""},{"$f":"IF('effRT Support'!$B16=0,\"\",IF('Project Information'!$D$20=\"\",\"\",VLOOKUP('Project Information'!$D$20,'Other Data'!$B$159:$E$189,4,FALSE)))","v":""},{"$f":"IF('effRT Support'!$B16=0,\"\",IF('Project Information'!$D$31=\"\",\"\",'Project Information'!$D$31))","v":""},{"$f":"IF('effRT Support'!$B16=0,\"\",IF('Project Information'!$D$5=\"\",\"\",'Project Information'!$D$5))","v":""},null,null,{"$f":"IF('effRT Support'!$B16=0,\"\",IF('Project Information'!$D$20=\"\",\"\",VLOOKUP('Project Information'!$D$20,'Other Data'!$B$159:$E$189,2,FALSE)))","v":""},{"$f":"IF('effRT Support'!$B16=0,\"\",IF('Project Information'!$D$20=\"\",\"\",VLOOKUP('Project Information'!$D$20,'Other Data'!$B$159:$E$189,3,FALSE)))","v":""},{"$f":"IF('effRT Support'!$B16=0,\"\",\"Existing\")","v":""},null,{"$f":"IF('effRT Support'!$B16=0,\"\",IF('Project Information'!$D$21=\"\",\"\",'Project Information'!$D$21))","v":""},{"$f":"IF('effRT Support'!$B16=0,\"\",IF('Project Information'!$D$48=\"\",\"\",'Project Information'!$D$48))","v":""},{"$f":"IF('effRT Support'!$B16=0,\"\",\"\")","v":""},{"$f":"IF('effRT Support'!$B16=0,\"\",\"\")","v":""},{"$f":"IF('effRT Support'!$B16=0,\"\",\"\")","v":""},{"$f":"IF('effRT Support'!$B16=0,\"\",\"\")","v":""},{"$f":"IF('effRT Support'!$B16=0,\"\",IF('Project Information'!$D$13=\"\",\"\",'Project Information'!$D$13))","v":""},{"$f":"IF('effRT Support'!$B16=0,\"\",IF('Project Information'!$E$13=\"\",\"\",'Project Information'!$E$13))","v":""},{"$f":"IF('effRT Support'!$B16=0,\"\",IF('Project Information'!$D$14=\"\",\"\",'Project Information'!$D$14))","v":""},{"$f":"IF('effRT Support'!$B16=0,\"\",IF('Project Information'!$D$15=\"\",\"\",'Project Information'!$D$15))","v":""},{"$f":"IF('effRT Support'!$B16=0,\"\",IF('Project Information'!$D$16=\"\",\"\",'Project Information'!$D$16))","v":""},null,{"$f":"IF('effRT Support'!$B16=0,\"\",'Project Information'!$D$18)","v":""},{"$f":"IF('effRT Support'!$B16=0,\"\",IF('Project Information'!$D$23=\"\",\"\",'Project Information'!$D$23))","v":""},{"$f":"IF('effRT Support'!$B16=0,\"\",IF('Project Information'!$D$24=\"\",\"\",'Project Information'!$D$24))","v":""},{"$f":"IF('effRT Support'!$B16=0,\"\",IF('Project Information'!$D$25=\"\",\"\",'Project Information'!$D$25))","v":""},{"$f":"IF('effRT Support'!$B16=0,\"\",IF('Project Information'!$E$25=\"\",\"\",'Project Information'!$E$25))","v":""},{"$f":"IF('effRT Support'!$B16=0,\"\",IF('Project Information'!$F$25=\"\",\"\",'Project Information'!$F$25))","v":""},{"$f":"IF('effRT Support'!$B16=0,\"\",IF('Project Information'!$D$27=\"\",\"Y\",\"N\"))","v":""},{"$f":"IF('effRT Support'!$B16=0,\"\",IF('Project Information'!$D$27=\"\",\"\",'Project Information'!$D$27))","v":""},{"$f":"IF('effRT Support'!$B16=0,\"\",IF('Project Information'!$D$28=\"\",\"\",'Project Information'!$D$28))","v":""},{"$f":"IF('effRT Support'!$B16=0,\"\",IF('Project Information'!$D$29=\"\",\"\",'Project Information'!$D$29))","v":""},{"$f":"IF('effRT Support'!$B16=0,\"\",IF('Project Information'!$E$29=\"\",\"\",'Project Information'!$E$29))","v":""},{"$f":"IF('effRT Support'!$B16=0,\"\",IF('Project Information'!$F$29=\"\",\"\",'Project Information'!$F$29))","v":""},{"$f":"IF('effRT Support'!$B16=0,\"\",\"\")","v":""},{"$f":"IF('effRT Support'!$B16=0,\"\",\"\")","v":""},{"$f":"IF('effRT Support'!$B16=0,\"\",IF('Project Information'!$D$36=\"\",\"\",'Project Information'!$D$36))","v":""},{"$f":"IF('effRT Support'!$B16=0,\"\",IF('Project Information'!$D$42=\"\",\"\",'Project Information'!$D$42))","v":""},{"$f":"IF('effRT Support'!$B16=0,\"\",'effRT Support'!$D16)","v":""},{"$f":"IF('effRT Support'!$B16=0,\"\",'effRT Support'!$L16)","v":""},{"$f":"IF('effRT Support'!$B16=0,\"\",'effRT Support'!$N16)","v":""},null,null,{"$f":"IF('effRT Support'!$B16=0,\"\",'effRT Support'!$P16)","v":""},{"$f":"IF('effRT Support'!$B16=0,\"\",'effRT Support'!$Q16)","v":""},{"$f":"IF('effRT Support'!$B16=0,\"\",'effRT Support'!U16)","v":""},{"$f":"IF('effRT Support'!$B16=0,\"\",'effRT Support'!V16)","v":""},{"$f":"IF('effRT Support'!$B16=0,\"\",'effRT Support'!W16)","v":""},{"$f":"IF('effRT Support'!$B16=0,\"\",'effRT Support'!X16)","v":""},{"$f":"IF('effRT Support'!$B16=0,\"\",'effRT Support'!Y16)","v":""},{"$f":"IF('effRT Support'!$B16=0,\"\",'effRT Support'!Z16*10)","v":""},{"$f":"IF('effRT Support'!$B16=0,\"\",'effRT Support'!AA16)","v":""},{"$f":"IF('effRT Support'!$B16=0,\"\",'effRT Support'!AB16)","v":""},{"$f":"IF('effRT Support'!$B16=0,\"\",'effRT Support'!AC16)","v":""},{"$f":"IF('effRT Support'!$B16=0,\"\",'effRT Support'!AD16)","v":""},{"$f":"IF('effRT Support'!$B16=0,\"\",'effRT Support'!AE16)","v":""},{"$f":"IF('effRT Support'!$B16=0,\"\",\"Hours Actual or Deemed\")","v":""},{"$f":"IF('effRT Support'!$B16=0,\"\",'effRT Support'!$F16)","v":""},{"$f":"IF('effRT Support'!$B16=0,\"\",\"Wattage Actual or Deemed\")","v":""},{"$f":"IF('effRT Support'!$B16=0,\"\",IF('Project Information'!$D$33=\"Pay For Performance\",\"Actual\",\"Deemed\"))","v":""},{"$f":"IF('effRT Support'!$B16=0,\"\",\"Cost Actual or Deemed\")","v":""},{"$f":"IF('effRT Support'!$B16=0,\"\",IF('Project Information'!$D$33=\"Pay For Performance\",\"Actual\",\"Deemed\"))","v":""},{"$f":"IF('effRT Support'!$B16=0,\"\",\"Location\")","v":""},{"$f":"IF('effRT Support'!$B16=0,\"\",'effRT Support'!$E16)","v":""},{"$f":"IF('effRT Support'!$B16=0,\"\",\"Space Type\")","v":""},{"$f":"IF('effRT Support'!$B16=0,\"\",'effRT Support'!$G16)","v":""},{"$f":"IF('effRT Support'!$B16=0,\"\",\"Existing Fixture Description\")","v":""},{"$f":"IF('effRT Support'!$B16=0,\"\",'effRT Support'!$H16)","v":""},{"$f":"IF('effRT Support'!$B16=0,\"\",\"Existing Fixture Quantity\")","v":""},{"$f":"IF('effRT Support'!$B16=0,\"\",'effRT Support'!$I16)","v":""},{"$f":"IF('effRT Support'!$B16=0,\"\",\"Existing Fixture Wattage\")","v":""},{"$f":"IF('effRT Support'!$B16=0,\"\",'effRT Support'!$J16)","v":""},{"$f":"IF('effRT Support'!$B16=0,\"\",\"Annual Hours of Operation\")","v":""},{"$f":"IF('effRT Support'!$B16=0,\"\",'effRT Support'!$K16)","v":""},{"$f":"IF('effRT Support'!$B16=0,\"\",\"Installed Fixture Description\")","v":""},{"$f":"IF('effRT Support'!$B16=0,\"\",'effRT Support'!$M16)","v":""},{"$f":"IF('effRT Support'!$B16=0,\"\",\"Installed Fixture Wattage\")","v":""},{"$f":"IF('effRT Support'!$B16=0,\"\",'effRT Support'!$O16)","v":""},{"$f":"IF('effRT Support'!$B16=0,\"\",\"Material Cost\")","v":""},{"$f":"IF('effRT Support'!$B16=0,\"\",'effRT Support'!$R16)","v":""},{"$f":"IF('effRT Support'!$B16=0,\"\",\"Labor Cost\")","v":""},{"$f":"IF('effRT Support'!$B16=0,\"\",'effRT Support'!$S16)","v":""},{"$f":"IF('effRT Support'!$B16=0,\"\",\"Ancillary Costs - Measure Specific\")","v":""},{"$f":"IF('effRT Support'!$B16=0,\"\",'effRT Support'!$T16)","v":""},{"$f":"IF('effRT Support'!$B16=0,\"\",\"Fuel Type\")","v":""},{"$f":"IF('effRT Support'!$B16=0,\"\",'Project Information'!$D$44)","v":""}]
[{"$f":"IF('effRT Support'!$B17=0,\"\",IF('Project Information'!$D$33=\"Small Business\",\"SBL\",\"CILS\"))","v":""},{"$f":"IF('effRT Support'!$B17=0,\"\",IF('Project Information'!$K$2=\"\",\"\",'Project Information'!$K$2))","v":""},null,{"$f":"IF('effRT Support'!$B17=0,\"\",IF('Project Information'!$D$46=\"\",\"\",'Project Information'!$D$46))","v":""},{"$f":"IF('effRT Support'!$B17=0,\"\",IF('Project Information'!$D$20=\"\",\"\",VLOOKUP('Project Information'!$D$20,'Other Data'!$B$159:$E$189,4,FALSE)))","v":""},{"$f":"IF('effRT Support'!$B17=0,\"\",IF('Project Information'!$D$31=\"\",\"\",'Project Information'!$D$31))","v":""},{"$f":"IF('effRT Support'!$B17=0,\"\",IF('Project Information'!$D$5=\"\",\"\",'Project Information'!$D$5))","v":""},null,null,{"$f":"IF('effRT Support'!$B17=0,\"\",IF('Project Information'!$D$20=\"\",\"\",VLOOKUP('Project Information'!$D$20,'Other Data'!$B$159:$E$189,2,FALSE)))","v":""},{"$f":"IF('effRT Support'!$B17=0,\"\",IF('Project Information'!$D$20=\"\",\"\",VLOOKUP('Project Information'!$D$20,'Other Data'!$B$159:$E$189,3,FALSE)))","v":""},{"$f":"IF('effRT Support'!$B17=0,\"\",\"Existing\")","v":""},null,{"$f":"IF('effRT Support'!$B17=0,\"\",IF('Project Information'!$D$21=\"\",\"\",'Project Information'!$D$21))","v":""},{"$f":"IF('effRT Support'!$B17=0,\"\",IF('Project Information'!$D$48=\"\",\"\",'Project Information'!$D$48))","v":""},{"$f":"IF('effRT Support'!$B17=0,\"\",\"\")","v":""},{"$f":"IF('effRT Support'!$B17=0,\"\",\"\")","v":""},{"$f":"IF('effRT Support'!$B17=0,\"\",\"\")","v":""},{"$f":"IF('effRT Support'!$B17=0,\"\",\"\")","v":""},{"$f":"IF('effRT Support'!$B17=0,\"\",IF('Project Information'!$D$13=\"\",\"\",'Project Information'!$D$13))","v":""},{"$f":"IF('effRT Support'!$B17=0,\"\",IF('Project Information'!$E$13=\"\",\"\",'Project Information'!$E$13))","v":""},{"$f":"IF('effRT Support'!$B17=0,\"\",IF('Project Information'!$D$14=\"\",\"\",'Project Information'!$D$14))","v":""},{"$f":"IF('effRT Support'!$B17=0,\"\",IF('Project Information'!$D$15=\"\",\"\",'Project Information'!$D$15))","v":""},{"$f":"IF('effRT Support'!$B17=0,\"\",IF('Project Information'!$D$16=\"\",\"\",'Project Information'!$D$16))","v":""},null,{"$f":"IF('effRT Support'!$B17=0,\"\",'Project Information'!$D$18)","v":""},{"$f":"IF('effRT Support'!$B17=0,\"\",IF('Project Information'!$D$23=\"\",\"\",'Project Information'!$D$23))","v":""},{"$f":"IF('effRT Support'!$B17=0,\"\",IF('Project Information'!$D$24=\"\",\"\",'Project Information'!$D$24))","v":""},{"$f":"IF('effRT Support'!$B17=0,\"\",IF('Project Information'!$D$25=\"\",\"\",'Project Information'!$D$25))","v":""},{"$f":"IF('effRT Support'!$B17=0,\"\",IF('Project Information'!$E$25=\"\",\"\",'Project Information'!$E$25))","v":""},{"$f":"IF('effRT Support'!$B17=0,\"\",IF('Project Information'!$F$25=\"\",\"\",'Project Information'!$F$25))","v":""},{"$f":"IF('effRT Support'!$B17=0,\"\",IF('Project Information'!$D$27=\"\",\"Y\",\"N\"))","v":""},{"$f":"IF('effRT Support'!$B17=0,\"\",IF('Project Information'!$D$27=\"\",\"\",'Project Information'!$D$27))","v":""},{"$f":"IF('effRT Support'!$B17=0,\"\",IF('Project Information'!$D$28=\"\",\"\",'Project Information'!$D$28))","v":""},{"$f":"IF('effRT Support'!$B17=0,\"\",IF('Project Information'!$D$29=\"\",\"\",'Project Information'!$D$29))","v":""},{"$f":"IF('effRT Support'!$B17=0,\"\",IF('Project Information'!$E$29=\"\",\"\",'Project Information'!$E$29))","v":""},{"$f":"IF('effRT Support'!$B17=0,\"\",IF('Project Information'!$F$29=\"\",\"\",'Project Information'!$F$29))","v":""},{"$f":"IF('effRT Support'!$B17=0,\"\",\"\")","v":""},{"$f":"IF('effRT Support'!$B17=0,\"\",\"\")","v":""},{"$f":"IF('effRT Support'!$B17=0,\"\",IF('Project Information'!$D$36=\"\",\"\",'Project Information'!$D$36))","v":""},{"$f":"IF('effRT Support'!$B17=0,\"\",IF('Project Information'!$D$42=\"\",\"\",'Project Information'!$D$42))","v":""},{"$f":"IF('effRT Support'!$B17=0,\"\",'effRT Support'!$D17)","v":""},{"$f":"IF('effRT Support'!$B17=0,\"\",'effRT Support'!$L17)","v":""},{"$f":"IF('effRT Support'!$B17=0,\"\",'effRT Support'!$N17)","v":""},null,null,{"$f":"IF('effRT Support'!$B17=0,\"\",'effRT Support'!$P17)","v":""},{"$f":"IF('effRT Support'!$B17=0,\"\",'effRT Support'!$Q17)","v":""},{"$f":"IF('effRT Support'!$B17=0,\"\",'effRT Support'!U17)","v":""},{"$f":"IF('effRT Support'!$B17=0,\"\",'effRT Support'!V17)","v":""},{"$f":"IF('effRT Support'!$B17=0,\"\",'effRT Support'!W17)","v":""},{"$f":"IF('effRT Support'!$B17=0,\"\",'effRT Support'!X17)","v":""},{"$f":"IF('effRT Support'!$B17=0,\"\",'effRT Support'!Y17)","v":""},{"$f":"IF('effRT Support'!$B17=0,\"\",'effRT Support'!Z17*10)","v":""},{"$f":"IF('effRT Support'!$B17=0,\"\",'effRT Support'!AA17)","v":""},{"$f":"IF('effRT Support'!$B17=0,\"\",'effRT Support'!AB17)","v":""},{"$f":"IF('effRT Support'!$B17=0,\"\",'effRT Support'!AC17)","v":""},{"$f":"IF('effRT Support'!$B17=0,\"\",'effRT Support'!AD17)","v":""},{"$f":"IF('effRT Support'!$B17=0,\"\",'effRT Support'!AE17)","v":""},{"$f":"IF('effRT Support'!$B17=0,\"\",\"Hours Actual or Deemed\")","v":""},{"$f":"IF('effRT Support'!$B17=0,\"\",'effRT Support'!$F17)","v":""},{"$f":"IF('effRT Support'!$B17=0,\"\",\"Wattage Actual or Deemed\")","v":""},{"$f":"IF('effRT Support'!$B17=0,\"\",IF('Project Information'!$D$33=\"Pay For Performance\",\"Actual\",\"Deemed\"))","v":""},{"$f":"IF('effRT Support'!$B17=0,\"\",\"Cost Actual or Deemed\")","v":""},{"$f":"IF('effRT Support'!$B17=0,\"\",IF('Project Information'!$D$33=\"Pay For Performance\",\"Actual\",\"Deemed\"))","v":""},{"$f":"IF('effRT Support'!$B17=0,\"\",\"Location\")","v":""},{"$f":"IF('effRT Support'!$B17=0,\"\",'effRT Support'!$E17)","v":""},{"$f":"IF('effRT Support'!$B17=0,\"\",\"Space Type\")","v":""},{"$f":"IF('effRT Support'!$B17=0,\"\",'effRT Support'!$G17)","v":""},{"$f":"IF('effRT Support'!$B17=0,\"\",\"Existing Fixture Description\")","v":""},{"$f":"IF('effRT Support'!$B17=0,\"\",'effRT Support'!$H17)","v":""},{"$f":"IF('effRT Support'!$B17=0,\"\",\"Existing Fixture Quantity\")","v":""},{"$f":"IF('effRT Support'!$B17=0,\"\",'effRT Support'!$I17)","v":""},{"$f":"IF('effRT Support'!$B17=0,\"\",\"Existing Fixture Wattage\")","v":""},{"$f":"IF('effRT Support'!$B17=0,\"\",'effRT Support'!$J17)","v":""},{"$f":"IF('effRT Support'!$B17=0,\"\",\"Annual Hours of Operation\")","v":""},{"$f":"IF('effRT Support'!$B17=0,\"\",'effRT Support'!$K17)","v":""},{"$f":"IF('effRT Support'!$B17=0,\"\",\"Installed Fixture Description\")","v":""},{"$f":"IF('effRT Support'!$B17=0,\"\",'effRT Support'!$M17)","v":""},{"$f":"IF('effRT Support'!$B17=0,\"\",\"Installed Fixture Wattage\")","v":""},{"$f":"IF('effRT Support'!$B17=0,\"\",'effRT Support'!$O17)","v":""},{"$f":"IF('effRT Support'!$B17=0,\"\",\"Material Cost\")","v":""},{"$f":"IF('effRT Support'!$B17=0,\"\",'effRT Support'!$R17)","v":""},{"$f":"IF('effRT Support'!$B17=0,\"\",\"Labor Cost\")","v":""},{"$f":"IF('effRT Support'!$B17=0,\"\",'effRT Support'!$S17)","v":""},{"$f":"IF('effRT Support'!$B17=0,\"\",\"Ancillary Costs - Measure Specific\")","v":""},{"$f":"IF('effRT Support'!$B17=0,\"\",'effRT Support'!$T17)","v":""},{"$f":"IF('effRT Support'!$B17=0,\"\",\"Fuel Type\")","v":""},{"$f":"IF('effRT Support'!$B17=0,\"\",'Project Information'!$D$44)","v":""},{"$f":"IF('effRT Support'!$B17=0,\"\",\"Installed Fixture Quantity\")","v":""},{"$f":"IF('effRT Support'!$B17=0,\"\",'effRT Support'!P16)","v":""}]
[{"$f":"IF('effRT Support'!$B18=0,\"\",IF('Project Information'!$D$33=\"Small Business\",\"SBL\",\"CILS\"))","v":""},{"$f":"IF('effRT Support'!$B18=0,\"\",IF('Project Information'!$K$2=\"\",\"\",'Project Information'!$K$2))","v":""},null,{"$f":"IF('effRT Support'!$B18=0,\"\",IF('Project Information'!$D$46=\"\",\"\",'Project Information'!$D$46))","v":""},{"$f":"IF('effRT Support'!$B18=0,\"\",IF('Project Information'!$D$20=\"\",\"\",VLOOKUP('Project Information'!$D$20,'Other Data'!$B$159:$E$189,4,FALSE)))","v":""},{"$f":"IF('effRT Support'!$B18=0,\"\",IF('Project Information'!$D$31=\"\",\"\",'Project Information'!$D$31))","v":""},{"$f":"IF('effRT Support'!$B18=0,\"\",IF('Project Information'!$D$5=\"\",\"\",'Project Information'!$D$5))","v":""},null,null,{"$f":"IF('effRT Support'!$B18=0,\"\",IF('Project Information'!$D$20=\"\",\"\",VLOOKUP('Project Information'!$D$20,'Other Data'!$B$159:$E$189,2,FALSE)))","v":""},{"$f":"IF('effRT Support'!$B18=0,\"\",IF('Project Information'!$D$20=\"\",\"\",VLOOKUP('Project Information'!$D$20,'Other Data'!$B$159:$E$189,3,FALSE)))","v":""},{"$f":"IF('effRT Support'!$B18=0,\"\",\"Existing\")","v":""},null,{"$f":"IF('effRT Support'!$B18=0,\"\",IF('Project Information'!$D$21=\"\",\"\",'Project Information'!$D$21))","v":""},{"$f":"IF('effRT Support'!$B18=0,\"\",IF('Project Information'!$D$48=\"\",\"\",'Project Information'!$D$48))","v":""},{"$f":"IF('effRT Support'!$B18=0,\"\",\"\")","v":""},{"$f":"IF('effRT Support'!$B18=0,\"\",\"\")","v":""},{"$f":"IF('effRT Support'!$B18=0,\"\",\"\")","v":""},{"$f":"IF('effRT Support'!$B18=0,\"\",\"\")","v":""},{"$f":"IF('effRT Support'!$B18=0,\"\",IF('Project Information'!$D$13=\"\",\"\",'Project Information'!$D$13))","v":""},{"$f":"IF('effRT Support'!$B18=0,\"\",IF('Project Information'!$E$13=\"\",\"\",'Project Information'!$E$13))","v":""},{"$f":"IF('effRT Support'!$B18=0,\"\",IF('Project Information'!$D$14=\"\",\"\",'Project Information'!$D$14))","v":""},{"$f":"IF('effRT Support'!$B18=0,\"\",IF('Project Information'!$D$15=\"\",\"\",'Project Information'!$D$15))","v":""},{"$f":"IF('effRT Support'!$B18=0,\"\",IF('Project Information'!$D$16=\"\",\"\",'Project Information'!$D$16))","v":""},null,{"$f":"IF('effRT Support'!$B18=0,\"\",'Project Information'!$D$18)","v":""},{"$f":"IF('effRT Support'!$B18=0,\"\",IF('Project Information'!$D$23=\"\",\"\",'Project Information'!$D$23))","v":""},{"$f":"IF('effRT Support'!$B18=0,\"\",IF('Project Information'!$D$24=\"\",\"\",'Project Information'!$D$24))","v":""},{"$f":"IF('effRT Support'!$B18=0,\"\",IF('Project Information'!$D$25=\"\",\"\",'Project Information'!$D$25))","v":""},{"$f":"IF('effRT Support'!$B18=0,\"\",IF('Project Information'!$E$25=\"\",\"\",'Project Information'!$E$25))","v":""},{"$f":"IF('effRT Support'!$B18=0,\"\",IF('Project Information'!$F$25=\"\",\"\",'Project Information'!$F$25))","v":""},{"$f":"IF('effRT Support'!$B18=0,\"\",IF('Project Information'!$D$27=\"\",\"Y\",\"N\"))","v":""},{"$f":"IF('effRT Support'!$B18=0,\"\",IF('Project Information'!$D$27=\"\",\"\",'Project Information'!$D$27))","v":""},{"$f":"IF('effRT Support'!$B18=0,\"\",IF('Project Information'!$D$28=\"\",\"\",'Project Information'!$D$28))","v":""},{"$f":"IF('effRT Support'!$B18=0,\"\",IF('Project Information'!$D$29=\"\",\"\",'Project Information'!$D$29))","v":""},{"$f":"IF('effRT Support'!$B18=0,\"\",IF('Project Information'!$E$29=\"\",\"\",'Project Information'!$E$29))","v":""},{"$f":"IF('effRT Support'!$B18=0,\"\",IF('Project Information'!$F$29=\"\",\"\",'Project Information'!$F$29))","v":""},{"$f":"IF('effRT Support'!$B18=0,\"\",\"\")","v":""},{"$f":"IF('effRT Support'!$B18=0,\"\",\"\")","v":""},{"$f":"IF('effRT Support'!$B18=0,\"\",IF('Project Information'!$D$36=\"\",\"\",'Project Information'!$D$36))","v":""},{"$f":"IF('effRT Support'!$B18=0,\"\",IF('Project Information'!$D$42=\"\",\"\",'Project Information'!$D$42))","v":""},{"$f":"IF('effRT Support'!$B18=0,\"\",'effRT Support'!$D18)","v":""},{"$f":"IF('effRT Support'!$B18=0,\"\",'effRT Support'!$L18)","v":""},{"$f":"IF('effRT Support'!$B18=0,\"\",'effRT Support'!$N18)","v":""},null,null,{"$f":"IF('effRT Support'!$B18=0,\"\",'effRT Support'!$P18)","v":""},{"$f":"IF('effRT Support'!$B18=0,\"\",'effRT Support'!$Q18)","v":""},{"$f":"IF('effRT Support'!$B18=0,\"\",'effRT Support'!U18)","v":""},{"$f":"IF('effRT Support'!$B18=0,\"\",'effRT Support'!V18)","v":""},{"$f":"IF('effRT Support'!$B18=0,\"\",'effRT Support'!W18)","v":""},{"$f":"IF('effRT Support'!$B18=0,\"\",'effRT Support'!X18)","v":""},{"$f":"IF('effRT Support'!$B18=0,\"\",'effRT Support'!Y18)","v":""},{"$f":"IF('effRT Support'!$B18=0,\"\",'effRT Support'!Z18*10)","v":""},{"$f":"IF('effRT Support'!$B18=0,\"\",'effRT Support'!AA18)","v":""},{"$f":"IF('effRT Support'!$B18=0,\"\",'effRT Support'!AB18)","v":""},{"$f":"IF('effRT Support'!$B18=0,\"\",'effRT Support'!AC18)","v":""},{"$f":"IF('effRT Support'!$B18=0,\"\",'effRT Support'!AD18)","v":""},{"$f":"IF('effRT Support'!$B18=0,\"\",'effRT Support'!AE18)","v":""},{"$f":"IF('effRT Support'!$B18=0,\"\",\"Hours Actual or Deemed\")","v":""},{"$f":"IF('effRT Support'!$B18=0,\"\",'effRT Support'!$F18)","v":""},{"$f":"IF('effRT Support'!$B18=0,\"\",\"Wattage Actual or Deemed\")","v":""},{"$f":"IF('effRT Support'!$B18=0,\"\",IF('Project Information'!$D$33=\"Pay For Performance\",\"Actual\",\"Deemed\"))","v":""},{"$f":"IF('effRT Support'!$B18=0,\"\",\"Cost Actual or Deemed\")","v":""},{"$f":"IF('effRT Support'!$B18=0,\"\",IF('Project Information'!$D$33=\"Pay For Performance\",\"Actual\",\"Deemed\"))","v":""},{"$f":"IF('effRT Support'!$B18=0,\"\",\"Location\")","v":""},{"$f":"IF('effRT Support'!$B18=0,\"\",'effRT Support'!$E18)","v":""},{"$f":"IF('effRT Support'!$B18=0,\"\",\"Space Type\")","v":""},{"$f":"IF('effRT Support'!$B18=0,\"\",'effRT Support'!$G18)","v":""},{"$f":"IF('effRT Support'!$B18=0,\"\",\"Existing Fixture Description\")","v":""},{"$f":"IF('effRT Support'!$B18=0,\"\",'effRT Support'!$H18)","v":""},{"$f":"IF('effRT Support'!$B18=0,\"\",\"Existing Fixture Quantity\")","v":""},{"$f":"IF('effRT Support'!$B18=0,\"\",'effRT Support'!$I18)","v":""},{"$f":"IF('effRT Support'!$B18=0,\"\",\"Existing Fixture Wattage\")","v":""},{"$f":"IF('effRT Support'!$B18=0,\"\",'effRT Support'!$J18)","v":""},{"$f":"IF('effRT Support'!$B18=0,\"\",\"Annual Hours of Operation\")","v":""},{"$f":"IF('effRT Support'!$B18=0,\"\",'effRT Support'!$K18)","v":""},{"$f":"IF('effRT Support'!$B18=0,\"\",\"Installed Fixture Description\")","v":""},{"$f":"IF('effRT Support'!$B18=0,\"\",'effRT Support'!$M18)","v":""},{"$f":"IF('effRT Support'!$B18=0,\"\",\"Installed Fixture Wattage\")","v":""},{"$f":"IF('effRT Support'!$B18=0,\"\",'effRT Support'!$O18)","v":""},{"$f":"IF('effRT Support'!$B18=0,\"\",\"Material Cost\")","v":""},{"$f":"IF('effRT Support'!$B18=0,\"\",'effRT Support'!$R18)","v":""},{"$f":"IF('effRT Support'!$B18=0,\"\",\"Labor Cost\")","v":""},{"$f":"IF('effRT Support'!$B18=0,\"\",'effRT Support'!$S18)","v":""},{"$f":"IF('effRT Support'!$B18=0,\"\",\"Ancillary Costs - Measure Specific\")","v":""},{"$f":"IF('effRT Support'!$B18=0,\"\",'effRT Support'!$T18)","v":""},{"$f":"IF('effRT Support'!$B18=0,\"\",\"Fuel Type\")","v":""},{"$f":"IF('effRT Support'!$B18=0,\"\",'Project Information'!$D$44)","v":""}]
[{"$f":"IF('effRT Support'!$B19=0,\"\",IF('Project Information'!$D$33=\"Small Business\",\"SBL\",\"CILS\"))","v":""},{"$f":"IF('effRT Support'!$B19=0,\"\",IF('Project Information'!$K$2=\"\",\"\",'Project Information'!$K$2))","v":""},null,{"$f":"IF('effRT Support'!$B19=0,\"\",IF('Project Information'!$D$46=\"\",\"\",'Project Information'!$D$46))","v":""},{"$f":"IF('effRT Support'!$B19=0,\"\",IF('Project Information'!$D$20=\"\",\"\",VLOOKUP('Project Information'!$D$20,'Other Data'!$B$159:$E$189,4,FALSE)))","v":""},{"$f":"IF('effRT Support'!$B19=0,\"\",IF('Project Information'!$D$31=\"\",\"\",'Project Information'!$D$31))","v":""},{"$f":"IF('effRT Support'!$B19=0,\"\",IF('Project Information'!$D$5=\"\",\"\",'Project Information'!$D$5))","v":""},null,null,{"$f":"IF('effRT Support'!$B19=0,\"\",IF('Project Information'!$D$20=\"\",\"\",VLOOKUP('Project Information'!$D$20,'Other Data'!$B$159:$E$189,2,FALSE)))","v":""},{"$f":"IF('effRT Support'!$B19=0,\"\",IF('Project Information'!$D$20=\"\",\"\",VLOOKUP('Project Information'!$D$20,'Other Data'!$B$159:$E$189,3,FALSE)))","v":""},{"$f":"IF('effRT Support'!$B19=0,\"\",\"Existing\")","v":""},null,{"$f":"IF('effRT Support'!$B19=0,\"\",IF('Project Information'!$D$21=\"\",\"\",'Project Information'!$D$21))","v":""},{"$f":"IF('effRT Support'!$B19=0,\"\",IF('Project Information'!$D$48=\"\",\"\",'Project Information'!$D$48))","v":""},{"$f":"IF('effRT Support'!$B19=0,\"\",\"\")","v":""},{"$f":"IF('effRT Support'!$B19=0,\"\",\"\")","v":""},{"$f":"IF('effRT Support'!$B19=0,\"\",\"\")","v":""},{"$f":"IF('effRT Support'!$B19=0,\"\",\"\")","v":""},{"$f":"IF('effRT Support'!$B19=0,\"\",IF('Project Information'!$D$13=\"\",\"\",'Project Information'!$D$13))","v":""},{"$f":"IF('effRT Support'!$B19=0,\"\",IF('Project Information'!$E$13=\"\",\"\",'Project Information'!$E$13))","v":""},{"$f":"IF('effRT Support'!$B19=0,\"\",IF('Project Information'!$D$14=\"\",\"\",'Project Information'!$D$14))","v":""},{"$f":"IF('effRT Support'!$B19=0,\"\",IF('Project Information'!$D$15=\"\",\"\",'Project Information'!$D$15))","v":""},{"$f":"IF('effRT Support'!$B19=0,\"\",IF('Project Information'!$D$16=\"\",\"\",'Project Information'!$D$16))","v":""},null,{"$f":"IF('effRT Support'!$B19=0,\"\",'Project Information'!$D$18)","v":""},{"$f":"IF('effRT Support'!$B19=0,\"\",IF('Project Information'!$D$23=\"\",\"\",'Project Information'!$D$23))","v":""},{"$f":"IF('effRT Support'!$B19=0,\"\",IF('Project Information'!$D$24=\"\",\"\",'Project Information'!$D$24))","v":""},{"$f":"IF('effRT Support'!$B19=0,\"\",IF('Project Information'!$D$25=\"\",\"\",'Project Information'!$D$25))","v":""},{"$f":"IF('effRT Support'!$B19=0,\"\",IF('Project Information'!$E$25=\"\",\"\",'Project Information'!$E$25))","v":""},{"$f":"IF('effRT Support'!$B19=0,\"\",IF('Project Information'!$F$25=\"\",\"\",'Project Information'!$F$25))","v":""},{"$f":"IF('effRT Support'!$B19=0,\"\",IF('Project Information'!$D$27=\"\",\"Y\",\"N\"))","v":""},{"$f":"IF('effRT Support'!$B19=0,\"\",IF('Project Information'!$D$27=\"\",\"\",'Project Information'!$D$27))","v":""},{"$f":"IF('effRT Support'!$B19=0,\"\",IF('Project Information'!$D$28=\"\",\"\",'Project Information'!$D$28))","v":""},{"$f":"IF('effRT Support'!$B19=0,\"\",IF('Project Information'!$D$29=\"\",\"\",'Project Information'!$D$29))","v":""},{"$f":"IF('effRT Support'!$B19=0,\"\",IF('Project Information'!$E$29=\"\",\"\",'Project Information'!$E$29))","v":""},{"$f":"IF('effRT Support'!$B19=0,\"\",IF('Project Information'!$F$29=\"\",\"\",'Project Information'!$F$29))","v":""},{"$f":"IF('effRT Support'!$B19=0,\"\",\"\")","v":""},{"$f":"IF('effRT Support'!$B19=0,\"\",\"\")","v":""},{"$f":"IF('effRT Support'!$B19=0,\"\",IF('Project Information'!$D$36=\"\",\"\",'Project Information'!$D$36))","v":""},{"$f":"IF('effRT Support'!$B19=0,\"\",IF('Project Information'!$D$42=\"\",\"\",'Project Information'!$D$42))","v":""},{"$f":"IF('effRT Support'!$B19=0,\"\",'effRT Support'!$D19)","v":""},{"$f":"IF('effRT Support'!$B19=0,\"\",'effRT Support'!$L19)","v":""},{"$f":"IF('effRT Support'!$B19=0,\"\",'effRT Support'!$N19)","v":""},null,null,{"$f":"IF('effRT Support'!$B19=0,\"\",'effRT Support'!$P19)","v":""},{"$f":"IF('effRT Support'!$B19=0,\"\",'effRT Support'!$Q19)","v":""},{"$f":"IF('effRT Support'!$B19=0,\"\",'effRT Support'!U19)","v":""},{"$f":"IF('effRT Support'!$B19=0,\"\",'effRT Support'!V19)","v":""},{"$f":"IF('effRT Support'!$B19=0,\"\",'effRT Support'!W19)","v":""},{"$f":"IF('effRT Support'!$B19=0,\"\",'effRT Support'!X19)","v":""},{"$f":"IF('effRT Support'!$B19=0,\"\",'effRT Support'!Y19)","v":""},{"$f":"IF('effRT Support'!$B19=0,\"\",'effRT Support'!Z19*10)","v":""},{"$f":"IF('effRT Support'!$B19=0,\"\",'effRT Support'!AA19)","v":""},{"$f":"IF('effRT Support'!$B19=0,\"\",'effRT Support'!AB19)","v":""},{"$f":"IF('effRT Support'!$B19=0,\"\",'effRT Support'!AC19)","v":""},{"$f":"IF('effRT Support'!$B19=0,\"\",'effRT Support'!AD19)","v":""},{"$f":"IF('effRT Support'!$B19=0,\"\",'effRT Support'!AE19)","v":""},{"$f":"IF('effRT Support'!$B19=0,\"\",\"Hours Actual or Deemed\")","v":""},{"$f":"IF('effRT Support'!$B19=0,\"\",'effRT Support'!$F19)","v":""},{"$f":"IF('effRT Support'!$B19=0,\"\",\"Wattage Actual or Deemed\")","v":""},{"$f":"IF('effRT Support'!$B19=0,\"\",IF('Project Information'!$D$33=\"Pay For Performance\",\"Actual\",\"Deemed\"))","v":""},{"$f":"IF('effRT Support'!$B19=0,\"\",\"Cost Actual or Deemed\")","v":""},{"$f":"IF('effRT Support'!$B19=0,\"\",IF('Project Information'!$D$33=\"Pay For Performance\",\"Actual\",\"Deemed\"))","v":""},{"$f":"IF('effRT Support'!$B19=0,\"\",\"Location\")","v":""},{"$f":"IF('effRT Support'!$B19=0,\"\",'effRT Support'!$E19)","v":""},{"$f":"IF('effRT Support'!$B19=0,\"\",\"Space Type\")","v":""},{"$f":"IF('effRT Support'!$B19=0,\"\",'effRT Support'!$G19)","v":""},{"$f":"IF('effRT Support'!$B19=0,\"\",\"Existing Fixture Description\")","v":""},{"$f":"IF('effRT Support'!$B19=0,\"\",'effRT Support'!$H19)","v":""},{"$f":"IF('effRT Support'!$B19=0,\"\",\"Existing Fixture Quantity\")","v":""},{"$f":"IF('effRT Support'!$B19=0,\"\",'effRT Support'!$I19)","v":""},{"$f":"IF('effRT Support'!$B19=0,\"\",\"Existing Fixture Wattage\")","v":""},{"$f":"IF('effRT Support'!$B19=0,\"\",'effRT Support'!$J19)","v":""},{"$f":"IF('effRT Support'!$B19=0,\"\",\"Annual Hours of Operation\")","v":""},{"$f":"IF('effRT Support'!$B19=0,\"\",'effRT Support'!$K19)","v":""},{"$f":"IF('effRT Support'!$B19=0,\"\",\"Installed Fixture Description\")","v":""},{"$f":"IF('effRT Support'!$B19=0,\"\",'effRT Support'!$M19)","v":""},{"$f":"IF('effRT Support'!$B19=0,\"\",\"Installed Fixture Wattage\")","v":""},{"$f":"IF('effRT Support'!$B19=0,\"\",'effRT Support'!$O19)","v":""},{"$f":"IF('effRT Support'!$B19=0,\"\",\"Material Cost\")","v":""},{"$f":"IF('effRT Support'!$B19=0,\"\",'effRT Support'!$R19)","v":""},{"$f":"IF('effRT Support'!$B19=0,\"\",\"Labor Cost\")","v":""},{"$f":"IF('effRT Support'!$B19=0,\"\",'effRT Support'!$S19)","v":""},{"$f":"IF('effRT Support'!$B19=0,\"\",\"Ancillary Costs - Measure Specific\")","v":""},{"$f":"IF('effRT Support'!$B19=0,\"\",'effRT Support'!$T19)","v":""},{"$f":"IF('effRT Support'!$B19=0,\"\",\"Fuel Type\")","v":""},{"$f":"IF('effRT Support'!$B19=0,\"\",'Project Information'!$D$44)","v":""},{"$f":"IF('effRT Support'!$B19=0,\"\",\"Installed Fixture Quantity\")","v":""},{"$f":"IF('effRT Support'!$B19=0,\"\",'effRT Support'!P18)","v":""}]
[{"$f":"IF('effRT Support'!$B20=0,\"\",IF('Project Information'!$D$33=\"Small Business\",\"SBL\",\"CILS\"))","v":""},{"$f":"IF('effRT Support'!$B20=0,\"\",IF('Project Information'!$K$2=\"\",\"\",'Project Information'!$K$2))","v":""},null,{"$f":"IF('effRT Support'!$B20=0,\"\",IF('Project Information'!$D$46=\"\",\"\",'Project Information'!$D$46))","v":""},{"$f":"IF('effRT Support'!$B20=0,\"\",IF('Project Information'!$D$20=\"\",\"\",VLOOKUP('Project Information'!$D$20,'Other Data'!$B$159:$E$189,4,FALSE)))","v":""},{"$f":"IF('effRT Support'!$B20=0,\"\",IF('Project Information'!$D$31=\"\",\"\",'Project Information'!$D$31))","v":""},{"$f":"IF('effRT Support'!$B20=0,\"\",IF('Project Information'!$D$5=\"\",\"\",'Project Information'!$D$5))","v":""},null,null,{"$f":"IF('effRT Support'!$B20=0,\"\",IF('Project Information'!$D$20=\"\",\"\",VLOOKUP('Project Information'!$D$20,'Other Data'!$B$159:$E$189,2,FALSE)))","v":""},{"$f":"IF('effRT Support'!$B20=0,\"\",IF('Project Information'!$D$20=\"\",\"\",VLOOKUP('Project Information'!$D$20,'Other Data'!$B$159:$E$189,3,FALSE)))","v":""},{"$f":"IF('effRT Support'!$B20=0,\"\",\"Existing\")","v":""},null,{"$f":"IF('effRT Support'!$B20=0,\"\",IF('Project Information'!$D$21=\"\",\"\",'Project Information'!$D$21))","v":""},{"$f":"IF('effRT Support'!$B20=0,\"\",IF('Project Information'!$D$48=\"\",\"\",'Project Information'!$D$48))","v":""},{"$f":"IF('effRT Support'!$B20=0,\"\",\"\")","v":""},{"$f":"IF('effRT Support'!$B20=0,\"\",\"\")","v":""},{"$f":"IF('effRT Support'!$B20=0,\"\",\"\")","v":""},{"$f":"IF('effRT Support'!$B20=0,\"\",\"\")","v":""},{"$f":"IF('effRT Support'!$B20=0,\"\",IF('Project Information'!$D$13=\"\",\"\",'Project Information'!$D$13))","v":""},{"$f":"IF('effRT Support'!$B20=0,\"\",IF('Project Information'!$E$13=\"\",\"\",'Project Information'!$E$13))","v":""},{"$f":"IF('effRT Support'!$B20=0,\"\",IF('Project Information'!$D$14=\"\",\"\",'Project Information'!$D$14))","v":""},{"$f":"IF('effRT Support'!$B20=0,\"\",IF('Project Information'!$D$15=\"\",\"\",'Project Information'!$D$15))","v":""},{"$f":"IF('effRT Support'!$B20=0,\"\",IF('Project Information'!$D$16=\"\",\"\",'Project Information'!$D$16))","v":""},null,{"$f":"IF('effRT Support'!$B20=0,\"\",'Project Information'!$D$18)","v":""},{"$f":"IF('effRT Support'!$B20=0,\"\",IF('Project Information'!$D$23=\"\",\"\",'Project Information'!$D$23))","v":""},{"$f":"IF('effRT Support'!$B20=0,\"\",IF('Project Information'!$D$24=\"\",\"\",'Project Information'!$D$24))","v":""},{"$f":"IF('effRT Support'!$B20=0,\"\",IF('Project Information'!$D$25=\"\",\"\",'Project Information'!$D$25))","v":""},{"$f":"IF('effRT Support'!$B20=0,\"\",IF('Project Information'!$E$25=\"\",\"\",'Project Information'!$E$25))","v":""},{"$f":"IF('effRT Support'!$B20=0,\"\",IF('Project Information'!$F$25=\"\",\"\",'Project Information'!$F$25))","v":""},{"$f":"IF('effRT Support'!$B20=0,\"\",IF('Project Information'!$D$27=\"\",\"Y\",\"N\"))","v":""},{"$f":"IF('effRT Support'!$B20=0,\"\",IF('Project Information'!$D$27=\"\",\"\",'Project Information'!$D$27))","v":""},{"$f":"IF('effRT Support'!$B20=0,\"\",IF('Project Information'!$D$28=\"\",\"\",'Project Information'!$D$28))","v":""},{"$f":"IF('effRT Support'!$B20=0,\"\",IF('Project Information'!$D$29=\"\",\"\",'Project Information'!$D$29))","v":""},{"$f":"IF('effRT Support'!$B20=0,\"\",IF('Project Information'!$E$29=\"\",\"\",'Project Information'!$E$29))","v":""},{"$f":"IF('effRT Support'!$B20=0,\"\",IF('Project Information'!$F$29=\"\",\"\",'Project Information'!$F$29))","v":""},{"$f":"IF('effRT Support'!$B20=0,\"\",\"\")","v":""},{"$f":"IF('effRT Support'!$B20=0,\"\",\"\")","v":""},{"$f":"IF('effRT Support'!$B20=0,\"\",IF('Project Information'!$D$36=\"\",\"\",'Project Information'!$D$36))","v":""},{"$f":"IF('effRT Support'!$B20=0,\"\",IF('Project Information'!$D$42=\"\",\"\",'Project Information'!$D$42))","v":""},{"$f":"IF('effRT Support'!$B20=0,\"\",'effRT Support'!$D20)","v":""},{"$f":"IF('effRT Support'!$B20=0,\"\",'effRT Support'!$L20)","v":""},{"$f":"IF('effRT Support'!$B20=0,\"\",'effRT Support'!$N20)","v":""},null,null,{"$f":"IF('effRT Support'!$B20=0,\"\",'effRT Support'!$P20)","v":""},{"$f":"IF('effRT Support'!$B20=0,\"\",'effRT Support'!$Q20)","v":""},{"$f":"IF('effRT Support'!$B20=0,\"\",'effRT Support'!U20)","v":""},{"$f":"IF('effRT Support'!$B20=0,\"\",'effRT Support'!V20)","v":""},{"$f":"IF('effRT Support'!$B20=0,\"\",'effRT Support'!W20)","v":""},{"$f":"IF('effRT Support'!$B20=0,\"\",'effRT Support'!X20)","v":""},{"$f":"IF('effRT Support'!$B20=0,\"\",'effRT Support'!Y20)","v":""},{"$f":"IF('effRT Support'!$B20=0,\"\",'effRT Support'!Z20*10)","v":""},{"$f":"IF('effRT Support'!$B20=0,\"\",'effRT Support'!AA20)","v":""},{"$f":"IF('effRT Support'!$B20=0,\"\",'effRT Support'!AB20)","v":""},{"$f":"IF('effRT Support'!$B20=0,\"\",'effRT Support'!AC20)","v":""},{"$f":"IF('effRT Support'!$B20=0,\"\",'effRT Support'!AD20)","v":""},{"$f":"IF('effRT Support'!$B20=0,\"\",'effRT Support'!AE20)","v":""},{"$f":"IF('effRT Support'!$B20=0,\"\",\"Hours Actual or Deemed\")","v":""},{"$f":"IF('effRT Support'!$B20=0,\"\",'effRT Support'!$F20)","v":""},{"$f":"IF('effRT Support'!$B20=0,\"\",\"Wattage Actual or Deemed\")","v":""},{"$f":"IF('effRT Support'!$B20=0,\"\",IF('Project Information'!$D$33=\"Pay For Performance\",\"Actual\",\"Deemed\"))","v":""},{"$f":"IF('effRT Support'!$B20=0,\"\",\"Cost Actual or Deemed\")","v":""},{"$f":"IF('effRT Support'!$B20=0,\"\",IF('Project Information'!$D$33=\"Pay For Performance\",\"Actual\",\"Deemed\"))","v":""},{"$f":"IF('effRT Support'!$B20=0,\"\",\"Location\")","v":""},{"$f":"IF('effRT Support'!$B20=0,\"\",'effRT Support'!$E20)","v":""},{"$f":"IF('effRT Support'!$B20=0,\"\",\"Space Type\")","v":""},{"$f":"IF('effRT Support'!$B20=0,\"\",'effRT Support'!$G20)","v":""},{"$f":"IF('effRT Support'!$B20=0,\"\",\"Existing Fixture Description\")","v":""},{"$f":"IF('effRT Support'!$B20=0,\"\",'effRT Support'!$H20)","v":""},{"$f":"IF('effRT Support'!$B20=0,\"\",\"Existing Fixture Quantity\")","v":""},{"$f":"IF('effRT Support'!$B20=0,\"\",'effRT Support'!$I20)","v":""},{"$f":"IF('effRT Support'!$B20=0,\"\",\"Existing Fixture Wattage\")","v":""},{"$f":"IF('effRT Support'!$B20=0,\"\",'effRT Support'!$J20)","v":""},{"$f":"IF('effRT Support'!$B20=0,\"\",\"Annual Hours of Operation\")","v":""},{"$f":"IF('effRT Support'!$B20=0,\"\",'effRT Support'!$K20)","v":""},{"$f":"IF('effRT Support'!$B20=0,\"\",\"Installed Fixture Description\")","v":""},{"$f":"IF('effRT Support'!$B20=0,\"\",'effRT Support'!$M20)","v":""},{"$f":"IF('effRT Support'!$B20=0,\"\",\"Installed Fixture Wattage\")","v":""},{"$f":"IF('effRT Support'!$B20=0,\"\",'effRT Support'!$O20)","v":""},{"$f":"IF('effRT Support'!$B20=0,\"\",\"Material Cost\")","v":""},{"$f":"IF('effRT Support'!$B20=0,\"\",'effRT Support'!$R20)","v":""},{"$f":"IF('effRT Support'!$B20=0,\"\",\"Labor Cost\")","v":""},{"$f":"IF('effRT Support'!$B20=0,\"\",'effRT Support'!$S20)","v":""},{"$f":"IF('effRT Support'!$B20=0,\"\",\"Ancillary Costs - Measure Specific\")","v":""},{"$f":"IF('effRT Support'!$B20=0,\"\",'effRT Support'!$T20)","v":""},{"$f":"IF('effRT Support'!$B20=0,\"\",\"Fuel Type\")","v":""},{"$f":"IF('effRT Support'!$B20=0,\"\",'Project Information'!$D$44)","v":""}]
[{"$f":"IF('effRT Support'!$B21=0,\"\",IF('Project Information'!$D$33=\"Small Business\",\"SBL\",\"CILS\"))","v":""},{"$f":"IF('effRT Support'!$B21=0,\"\",IF('Project Information'!$K$2=\"\",\"\",'Project Information'!$K$2))","v":""},null,{"$f":"IF('effRT Support'!$B21=0,\"\",IF('Project Information'!$D$46=\"\",\"\",'Project Information'!$D$46))","v":""},{"$f":"IF('effRT Support'!$B21=0,\"\",IF('Project Information'!$D$20=\"\",\"\",VLOOKUP('Project Information'!$D$20,'Other Data'!$B$159:$E$189,4,FALSE)))","v":""},{"$f":"IF('effRT Support'!$B21=0,\"\",IF('Project Information'!$D$31=\"\",\"\",'Project Information'!$D$31))","v":""},{"$f":"IF('effRT Support'!$B21=0,\"\",IF('Project Information'!$D$5=\"\",\"\",'Project Information'!$D$5))","v":""},null,null,{"$f":"IF('effRT Support'!$B21=0,\"\",IF('Project Information'!$D$20=\"\",\"\",VLOOKUP('Project Information'!$D$20,'Other Data'!$B$159:$E$189,2,FALSE)))","v":""},{"$f":"IF('effRT Support'!$B21=0,\"\",IF('Project Information'!$D$20=\"\",\"\",VLOOKUP('Project Information'!$D$20,'Other Data'!$B$159:$E$189,3,FALSE)))","v":""},{"$f":"IF('effRT Support'!$B21=0,\"\",\"Existing\")","v":""},null,{"$f":"IF('effRT Support'!$B21=0,\"\",IF('Project Information'!$D$21=\"\",\"\",'Project Information'!$D$21))","v":""},{"$f":"IF('effRT Support'!$B21=0,\"\",IF('Project Information'!$D$48=\"\",\"\",'Project Information'!$D$48))","v":""},{"$f":"IF('effRT Support'!$B21=0,\"\",\"\")","v":""},{"$f":"IF('effRT Support'!$B21=0,\"\",\"\")","v":""},{"$f":"IF('effRT Support'!$B21=0,\"\",\"\")","v":""},{"$f":"IF('effRT Support'!$B21=0,\"\",\"\")","v":""},{"$f":"IF('effRT Support'!$B21=0,\"\",IF('Project Information'!$D$13=\"\",\"\",'Project Information'!$D$13))","v":""},{"$f":"IF('effRT Support'!$B21=0,\"\",IF('Project Information'!$E$13=\"\",\"\",'Project Information'!$E$13))","v":""},{"$f":"IF('effRT Support'!$B21=0,\"\",IF('Project Information'!$D$14=\"\",\"\",'Project Information'!$D$14))","v":""},{"$f":"IF('effRT Support'!$B21=0,\"\",IF('Project Information'!$D$15=\"\",\"\",'Project Information'!$D$15))","v":""},{"$f":"IF('effRT Support'!$B21=0,\"\",IF('Project Information'!$D$16=\"\",\"\",'Project Information'!$D$16))","v":""},null,{"$f":"IF('effRT Support'!$B21=0,\"\",'Project Information'!$D$18)","v":""},{"$f":"IF('effRT Support'!$B21=0,\"\",IF('Project Information'!$D$23=\"\",\"\",'Project Information'!$D$23))","v":""},{"$f":"IF('effRT Support'!$B21=0,\"\",IF('Project Information'!$D$24=\"\",\"\",'Project Information'!$D$24))","v":""},{"$f":"IF('effRT Support'!$B21=0,\"\",IF('Project Information'!$D$25=\"\",\"\",'Project Information'!$D$25))","v":""},{"$f":"IF('effRT Support'!$B21=0,\"\",IF('Project Information'!$E$25=\"\",\"\",'Project Information'!$E$25))","v":""},{"$f":"IF('effRT Support'!$B21=0,\"\",IF('Project Information'!$F$25=\"\",\"\",'Project Information'!$F$25))","v":""},{"$f":"IF('effRT Support'!$B21=0,\"\",IF('Project Information'!$D$27=\"\",\"Y\",\"N\"))","v":""},{"$f":"IF('effRT Support'!$B21=0,\"\",IF('Project Information'!$D$27=\"\",\"\",'Project Information'!$D$27))","v":""},{"$f":"IF('effRT Support'!$B21=0,\"\",IF('Project Information'!$D$28=\"\",\"\",'Project Information'!$D$28))","v":""},{"$f":"IF('effRT Support'!$B21=0,\"\",IF('Project Information'!$D$29=\"\",\"\",'Project Information'!$D$29))","v":""},{"$f":"IF('effRT Support'!$B21=0,\"\",IF('Project Information'!$E$29=\"\",\"\",'Project Information'!$E$29))","v":""},{"$f":"IF('effRT Support'!$B21=0,\"\",IF('Project Information'!$F$29=\"\",\"\",'Project Information'!$F$29))","v":""},{"$f":"IF('effRT Support'!$B21=0,\"\",\"\")","v":""},{"$f":"IF('effRT Support'!$B21=0,\"\",\"\")","v":""},{"$f":"IF('effRT Support'!$B21=0,\"\",IF('Project Information'!$D$36=\"\",\"\",'Project Information'!$D$36))","v":""},{"$f":"IF('effRT Support'!$B21=0,\"\",IF('Project Information'!$D$42=\"\",\"\",'Project Information'!$D$42))","v":""},{"$f":"IF('effRT Support'!$B21=0,\"\",'effRT Support'!$D21)","v":""},{"$f":"IF('effRT Support'!$B21=0,\"\",'effRT Support'!$L21)","v":""},{"$f":"IF('effRT Support'!$B21=0,\"\",'effRT Support'!$N21)","v":""},null,null,{"$f":"IF('effRT Support'!$B21=0,\"\",'effRT Support'!$P21)","v":""},{"$f":"IF('effRT Support'!$B21=0,\"\",'effRT Support'!$Q21)","v":""},{"$f":"IF('effRT Support'!$B21=0,\"\",'effRT Support'!U21)","v":""},{"$f":"IF('effRT Support'!$B21=0,\"\",'effRT Support'!V21)","v":""},{"$f":"IF('effRT Support'!$B21=0,\"\",'effRT Support'!W21)","v":""},{"$f":"IF('effRT Support'!$B21=0,\"\",'effRT Support'!X21)","v":""},{"$f":"IF('effRT Support'!$B21=0,\"\",'effRT Support'!Y21)","v":""},{"$f":"IF('effRT Support'!$B21=0,\"\",'effRT Support'!Z21*10)","v":""},{"$f":"IF('effRT Support'!$B21=0,\"\",'effRT Support'!AA21)","v":""},{"$f":"IF('effRT Support'!$B21=0,\"\",'effRT Support'!AB21)","v":""},{"$f":"IF('effRT Support'!$B21=0,\"\",'effRT Support'!AC21)","v":""},{"$f":"IF('effRT Support'!$B21=0,\"\",'effRT Support'!AD21)","v":""},{"$f":"IF('effRT Support'!$B21=0,\"\",'effRT Support'!AE21)","v":""},{"$f":"IF('effRT Support'!$B21=0,\"\",\"Hours Actual or Deemed\")","v":""},{"$f":"IF('effRT Support'!$B21=0,\"\",'effRT Support'!$F21)","v":""},{"$f":"IF('effRT Support'!$B21=0,\"\",\"Wattage Actual or Deemed\")","v":""},{"$f":"IF('effRT Support'!$B21=0,\"\",IF('Project Information'!$D$33=\"Pay For Performance\",\"Actual\",\"Deemed\"))","v":""},{"$f":"IF('effRT Support'!$B21=0,\"\",\"Cost Actual or Deemed\")","v":""},{"$f":"IF('effRT Support'!$B21=0,\"\",IF('Project Information'!$D$33=\"Pay For Performance\",\"Actual\",\"Deemed\"))","v":""},{"$f":"IF('effRT Support'!$B21=0,\"\",\"Location\")","v":""},{"$f":"IF('effRT Support'!$B21=0,\"\",'effRT Support'!$E21)","v":""},{"$f":"IF('effRT Support'!$B21=0,\"\",\"Space Type\")","v":""},{"$f":"IF('effRT Support'!$B21=0,\"\",'effRT Support'!$G21)","v":""},{"$f":"IF('effRT Support'!$B21=0,\"\",\"Existing Fixture Description\")","v":""},{"$f":"IF('effRT Support'!$B21=0,\"\",'effRT Support'!$H21)","v":""},{"$f":"IF('effRT Support'!$B21=0,\"\",\"Existing Fixture Quantity\")","v":""},{"$f":"IF('effRT Support'!$B21=0,\"\",'effRT Support'!$I21)","v":""},{"$f":"IF('effRT Support'!$B21=0,\"\",\"Existing Fixture Wattage\")","v":""},{"$f":"IF('effRT Support'!$B21=0,\"\",'effRT Support'!$J21)","v":""},{"$f":"IF('effRT Support'!$B21=0,\"\",\"Annual Hours of Operation\")","v":""},{"$f":"IF('effRT Support'!$B21=0,\"\",'effRT Support'!$K21)","v":""},{"$f":"IF('effRT Support'!$B21=0,\"\",\"Installed Fixture Description\")","v":""},{"$f":"IF('effRT Support'!$B21=0,\"\",'effRT Support'!$M21)","v":""},{"$f":"IF('effRT Support'!$B21=0,\"\",\"Installed Fixture Wattage\")","v":""},{"$f":"IF('effRT Support'!$B21=0,\"\",'effRT Support'!$O21)","v":""},{"$f":"IF('effRT Support'!$B21=0,\"\",\"Material Cost\")","v":""},{"$f":"IF('effRT Support'!$B21=0,\"\",'effRT Support'!$R21)","v":""},{"$f":"IF('effRT Support'!$B21=0,\"\",\"Labor Cost\")","v":""},{"$f":"IF('effRT Support'!$B21=0,\"\",'effRT Support'!$S21)","v":""},{"$f":"IF('effRT Support'!$B21=0,\"\",\"Ancillary Costs - Measure Specific\")","v":""},{"$f":"IF('effRT Support'!$B21=0,\"\",'effRT Support'!$T21)","v":""},{"$f":"IF('effRT Support'!$B21=0,\"\",\"Fuel Type\")","v":""},{"$f":"IF('effRT Support'!$B21=0,\"\",'Project Information'!$D$44)","v":""},{"$f":"IF('effRT Support'!$B21=0,\"\",\"Installed Fixture Quantity\")","v":""},{"$f":"IF('effRT Support'!$B21=0,\"\",'effRT Support'!P20)","v":""}]
[{"$f":"IF('effRT Support'!$B22=0,\"\",IF('Project Information'!$D$33=\"Small Business\",\"SBL\",\"CILS\"))","v":""},{"$f":"IF('effRT Support'!$B22=0,\"\",IF('Project Information'!$K$2=\"\",\"\",'Project Information'!$K$2))","v":""},null,{"$f":"IF('effRT Support'!$B22=0,\"\",IF('Project Information'!$D$46=\"\",\"\",'Project Information'!$D$46))","v":""},{"$f":"IF('effRT Support'!$B22=0,\"\",IF('Project Information'!$D$20=\"\",\"\",VLOOKUP('Project Information'!$D$20,'Other Data'!$B$159:$E$189,4,FALSE)))","v":""},{"$f":"IF('effRT Support'!$B22=0,\"\",IF('Project Information'!$D$31=\"\",\"\",'Project Information'!$D$31))","v":""},{"$f":"IF('effRT Support'!$B22=0,\"\",IF('Project Information'!$D$5=\"\",\"\",'Project Information'!$D$5))","v":""},null,null,{"$f":"IF('effRT Support'!$B22=0,\"\",IF('Project Information'!$D$20=\"\",\"\",VLOOKUP('Project Information'!$D$20,'Other Data'!$B$159:$E$189,2,FALSE)))","v":""},{"$f":"IF('effRT Support'!$B22=0,\"\",IF('Project Information'!$D$20=\"\",\"\",VLOOKUP('Project Information'!$D$20,'Other Data'!$B$159:$E$189,3,FALSE)))","v":""},{"$f":"IF('effRT Support'!$B22=0,\"\",\"Existing\")","v":""},null,{"$f":"IF('effRT Support'!$B22=0,\"\",IF('Project Information'!$D$21=\"\",\"\",'Project Information'!$D$21))","v":""},{"$f":"IF('effRT Support'!$B22=0,\"\",IF('Project Information'!$D$48=\"\",\"\",'Project Information'!$D$48))","v":""},{"$f":"IF('effRT Support'!$B22=0,\"\",\"\")","v":""},{"$f":"IF('effRT Support'!$B22=0,\"\",\"\")","v":""},{"$f":"IF('effRT Support'!$B22=0,\"\",\"\")","v":""},{"$f":"IF('effRT Support'!$B22=0,\"\",\"\")","v":""},{"$f":"IF('effRT Support'!$B22=0,\"\",IF('Project Information'!$D$13=\"\",\"\",'Project Information'!$D$13))","v":""},{"$f":"IF('effRT Support'!$B22=0,\"\",IF('Project Information'!$E$13=\"\",\"\",'Project Information'!$E$13))","v":""},{"$f":"IF('effRT Support'!$B22=0,\"\",IF('Project Information'!$D$14=\"\",\"\",'Project Information'!$D$14))","v":""},{"$f":"IF('effRT Support'!$B22=0,\"\",IF('Project Information'!$D$15=\"\",\"\",'Project Information'!$D$15))","v":""},{"$f":"IF('effRT Support'!$B22=0,\"\",IF('Project Information'!$D$16=\"\",\"\",'Project Information'!$D$16))","v":""},null,{"$f":"IF('effRT Support'!$B22=0,\"\",'Project Information'!$D$18)","v":""},{"$f":"IF('effRT Support'!$B22=0,\"\",IF('Project Information'!$D$23=\"\",\"\",'Project Information'!$D$23))","v":""},{"$f":"IF('effRT Support'!$B22=0,\"\",IF('Project Information'!$D$24=\"\",\"\",'Project Information'!$D$24))","v":""},{"$f":"IF('effRT Support'!$B22=0,\"\",IF('Project Information'!$D$25=\"\",\"\",'Project Information'!$D$25))","v":""},{"$f":"IF('effRT Support'!$B22=0,\"\",IF('Project Information'!$E$25=\"\",\"\",'Project Information'!$E$25))","v":""},{"$f":"IF('effRT Support'!$B22=0,\"\",IF('Project Information'!$F$25=\"\",\"\",'Project Information'!$F$25))","v":""},{"$f":"IF('effRT Support'!$B22=0,\"\",IF('Project Information'!$D$27=\"\",\"Y\",\"N\"))","v":""},{"$f":"IF('effRT Support'!$B22=0,\"\",IF('Project Information'!$D$27=\"\",\"\",'Project Information'!$D$27))","v":""},{"$f":"IF('effRT Support'!$B22=0,\"\",IF('Project Information'!$D$28=\"\",\"\",'Project Information'!$D$28))","v":""},{"$f":"IF('effRT Support'!$B22=0,\"\",IF('Project Information'!$D$29=\"\",\"\",'Project Information'!$D$29))","v":""},{"$f":"IF('effRT Support'!$B22=0,\"\",IF('Project Information'!$E$29=\"\",\"\",'Project Information'!$E$29))","v":""},{"$f":"IF('effRT Support'!$B22=0,\"\",IF('Project Information'!$F$29=\"\",\"\",'Project Information'!$F$29))","v":""},{"$f":"IF('effRT Support'!$B22=0,\"\",\"\")","v":""},{"$f":"IF('effRT Support'!$B22=0,\"\",\"\")","v":""},{"$f":"IF('effRT Support'!$B22=0,\"\",IF('Project Information'!$D$36=\"\",\"\",'Project Information'!$D$36))","v":""},{"$f":"IF('effRT Support'!$B22=0,\"\",IF('Project Information'!$D$42=\"\",\"\",'Project Information'!$D$42))","v":""},{"$f":"IF('effRT Support'!$B22=0,\"\",'effRT Support'!$D22)","v":""},{"$f":"IF('effRT Support'!$B22=0,\"\",'effRT Support'!$L22)","v":""},{"$f":"IF('effRT Support'!$B22=0,\"\",'effRT Support'!$N22)","v":""},null,null,{"$f":"IF('effRT Support'!$B22=0,\"\",'effRT Support'!$P22)","v":""},{"$f":"IF('effRT Support'!$B22=0,\"\",'effRT Support'!$Q22)","v":""},{"$f":"IF('effRT Support'!$B22=0,\"\",'effRT Support'!U22)","v":""},{"$f":"IF('effRT Support'!$B22=0,\"\",'effRT Support'!V22)","v":""},{"$f":"IF('effRT Support'!$B22=0,\"\",'effRT Support'!W22)","v":""},{"$f":"IF('effRT Support'!$B22=0,\"\",'effRT Support'!X22)","v":""},{"$f":"IF('effRT Support'!$B22=0,\"\",'effRT Support'!Y22)","v":""},{"$f":"IF('effRT Support'!$B22=0,\"\",'effRT Support'!Z22*10)","v":""},{"$f":"IF('effRT Support'!$B22=0,\"\",'effRT Support'!AA22)","v":""},{"$f":"IF('effRT Support'!$B22=0,\"\",'effRT Support'!AB22)","v":""},{"$f":"IF('effRT Support'!$B22=0,\"\",'effRT Support'!AC22)","v":""},{"$f":"IF('effRT Support'!$B22=0,\"\",'effRT Support'!AD22)","v":""},{"$f":"IF('effRT Support'!$B22=0,\"\",'effRT Support'!AE22)","v":""},{"$f":"IF('effRT Support'!$B22=0,\"\",\"Hours Actual or Deemed\")","v":""},{"$f":"IF('effRT Support'!$B22=0,\"\",'effRT Support'!$F22)","v":""},{"$f":"IF('effRT Support'!$B22=0,\"\",\"Wattage Actual or Deemed\")","v":""},{"$f":"IF('effRT Support'!$B22=0,\"\",IF('Project Information'!$D$33=\"Pay For Performance\",\"Actual\",\"Deemed\"))","v":""},{"$f":"IF('effRT Support'!$B22=0,\"\",\"Cost Actual or Deemed\")","v":""},{"$f":"IF('effRT Support'!$B22=0,\"\",IF('Project Information'!$D$33=\"Pay For Performance\",\"Actual\",\"Deemed\"))","v":""},{"$f":"IF('effRT Support'!$B22=0,\"\",\"Location\")","v":""},{"$f":"IF('effRT Support'!$B22=0,\"\",'effRT Support'!$E22)","v":""},{"$f":"IF('effRT Support'!$B22=0,\"\",\"Space Type\")","v":""},{"$f":"IF('effRT Support'!$B22=0,\"\",'effRT Support'!$G22)","v":""},{"$f":"IF('effRT Support'!$B22=0,\"\",\"Existing Fixture Description\")","v":""},{"$f":"IF('effRT Support'!$B22=0,\"\",'effRT Support'!$H22)","v":""},{"$f":"IF('effRT Support'!$B22=0,\"\",\"Existing Fixture Quantity\")","v":""},{"$f":"IF('effRT Support'!$B22=0,\"\",'effRT Support'!$I22)","v":""},{"$f":"IF('effRT Support'!$B22=0,\"\",\"Existing Fixture Wattage\")","v":""},{"$f":"IF('effRT Support'!$B22=0,\"\",'effRT Support'!$J22)","v":""},{"$f":"IF('effRT Support'!$B22=0,\"\",\"Annual Hours of Operation\")","v":""},{"$f":"IF('effRT Support'!$B22=0,\"\",'effRT Support'!$K22)","v":""},{"$f":"IF('effRT Support'!$B22=0,\"\",\"Installed Fixture Description\")","v":""},{"$f":"IF('effRT Support'!$B22=0,\"\",'effRT Support'!$M22)","v":""},{"$f":"IF('effRT Support'!$B22=0,\"\",\"Installed Fixture Wattage\")","v":""},{"$f":"IF('effRT Support'!$B22=0,\"\",'effRT Support'!$O22)","v":""},{"$f":"IF('effRT Support'!$B22=0,\"\",\"Material Cost\")","v":""},{"$f":"IF('effRT Support'!$B22=0,\"\",'effRT Support'!$R22)","v":""},{"$f":"IF('effRT Support'!$B22=0,\"\",\"Labor Cost\")","v":""},{"$f":"IF('effRT Support'!$B22=0,\"\",'effRT Support'!$S22)","v":""},{"$f":"IF('effRT Support'!$B22=0,\"\",\"Ancillary Costs - Measure Specific\")","v":""},{"$f":"IF('effRT Support'!$B22=0,\"\",'effRT Support'!$T22)","v":""},{"$f":"IF('effRT Support'!$B22=0,\"\",\"Fuel Type\")","v":""},{"$f":"IF('effRT Support'!$B22=0,\"\",'Project Information'!$D$44)","v":""}]
[{"$f":"IF('effRT Support'!$B23=0,\"\",IF('Project Information'!$D$33=\"Small Business\",\"SBL\",\"CILS\"))","v":""},{"$f":"IF('effRT Support'!$B23=0,\"\",IF('Project Information'!$K$2=\"\",\"\",'Project Information'!$K$2))","v":""},null,{"$f":"IF('effRT Support'!$B23=0,\"\",IF('Project Information'!$D$46=\"\",\"\",'Project Information'!$D$46))","v":""},{"$f":"IF('effRT Support'!$B23=0,\"\",IF('Project Information'!$D$20=\"\",\"\",VLOOKUP('Project Information'!$D$20,'Other Data'!$B$159:$E$189,4,FALSE)))","v":""},{"$f":"IF('effRT Support'!$B23=0,\"\",IF('Project Information'!$D$31=\"\",\"\",'Project Information'!$D$31))","v":""},{"$f":"IF('effRT Support'!$B23=0,\"\",IF('Project Information'!$D$5=\"\",\"\",'Project Information'!$D$5))","v":""},null,null,{"$f":"IF('effRT Support'!$B23=0,\"\",IF('Project Information'!$D$20=\"\",\"\",VLOOKUP('Project Information'!$D$20,'Other Data'!$B$159:$E$189,2,FALSE)))","v":""},{"$f":"IF('effRT Support'!$B23=0,\"\",IF('Project Information'!$D$20=\"\",\"\",VLOOKUP('Project Information'!$D$20,'Other Data'!$B$159:$E$189,3,FALSE)))","v":""},{"$f":"IF('effRT Support'!$B23=0,\"\",\"Existing\")","v":""},null,{"$f":"IF('effRT Support'!$B23=0,\"\",IF('Project Information'!$D$21=\"\",\"\",'Project Information'!$D$21))","v":""},{"$f":"IF('effRT Support'!$B23=0,\"\",IF('Project Information'!$D$48=\"\",\"\",'Project Information'!$D$48))","v":""},{"$f":"IF('effRT Support'!$B23=0,\"\",\"\")","v":""},{"$f":"IF('effRT Support'!$B23=0,\"\",\"\")","v":""},{"$f":"IF('effRT Support'!$B23=0,\"\",\"\")","v":""},{"$f":"IF('effRT Support'!$B23=0,\"\",\"\")","v":""},{"$f":"IF('effRT Support'!$B23=0,\"\",IF('Project Information'!$D$13=\"\",\"\",'Project Information'!$D$13))","v":""},{"$f":"IF('effRT Support'!$B23=0,\"\",IF('Project Information'!$E$13=\"\",\"\",'Project Information'!$E$13))","v":""},{"$f":"IF('effRT Support'!$B23=0,\"\",IF('Project Information'!$D$14=\"\",\"\",'Project Information'!$D$14))","v":""},{"$f":"IF('effRT Support'!$B23=0,\"\",IF('Project Information'!$D$15=\"\",\"\",'Project Information'!$D$15))","v":""},{"$f":"IF('effRT Support'!$B23=0,\"\",IF('Project Information'!$D$16=\"\",\"\",'Project Information'!$D$16))","v":""},null,{"$f":"IF('effRT Support'!$B23=0,\"\",'Project Information'!$D$18)","v":""},{"$f":"IF('effRT Support'!$B23=0,\"\",IF('Project Information'!$D$23=\"\",\"\",'Project Information'!$D$23))","v":""},{"$f":"IF('effRT Support'!$B23=0,\"\",IF('Project Information'!$D$24=\"\",\"\",'Project Information'!$D$24))","v":""},{"$f":"IF('effRT Support'!$B23=0,\"\",IF('Project Information'!$D$25=\"\",\"\",'Project Information'!$D$25))","v":""},{"$f":"IF('effRT Support'!$B23=0,\"\",IF('Project Information'!$E$25=\"\",\"\",'Project Information'!$E$25))","v":""},{"$f":"IF('effRT Support'!$B23=0,\"\",IF('Project Information'!$F$25=\"\",\"\",'Project Information'!$F$25))","v":""},{"$f":"IF('effRT Support'!$B23=0,\"\",IF('Project Information'!$D$27=\"\",\"Y\",\"N\"))","v":""},{"$f":"IF('effRT Support'!$B23=0,\"\",IF('Project Information'!$D$27=\"\",\"\",'Project Information'!$D$27))","v":""},{"$f":"IF('effRT Support'!$B23=0,\"\",IF('Project Information'!$D$28=\"\",\"\",'Project Information'!$D$28))","v":""},{"$f":"IF('effRT Support'!$B23=0,\"\",IF('Project Information'!$D$29=\"\",\"\",'Project Information'!$D$29))","v":""},{"$f":"IF('effRT Support'!$B23=0,\"\",IF('Project Information'!$E$29=\"\",\"\",'Project Information'!$E$29))","v":""},{"$f":"IF('effRT Support'!$B23=0,\"\",IF('Project Information'!$F$29=\"\",\"\",'Project Information'!$F$29))","v":""},{"$f":"IF('effRT Support'!$B23=0,\"\",\"\")","v":""},{"$f":"IF('effRT Support'!$B23=0,\"\",\"\")","v":""},{"$f":"IF('effRT Support'!$B23=0,\"\",IF('Project Information'!$D$36=\"\",\"\",'Project Information'!$D$36))","v":""},{"$f":"IF('effRT Support'!$B23=0,\"\",IF('Project Information'!$D$42=\"\",\"\",'Project Information'!$D$42))","v":""},{"$f":"IF('effRT Support'!$B23=0,\"\",'effRT Support'!$D23)","v":""},{"$f":"IF('effRT Support'!$B23=0,\"\",'effRT Support'!$L23)","v":""},{"$f":"IF('effRT Support'!$B23=0,\"\",'effRT Support'!$N23)","v":""},null,null,{"$f":"IF('effRT Support'!$B23=0,\"\",'effRT Support'!$P23)","v":""},{"$f":"IF('effRT Support'!$B23=0,\"\",'effRT Support'!$Q23)","v":""},{"$f":"IF('effRT Support'!$B23=0,\"\",'effRT Support'!U23)","v":""},{"$f":"IF('effRT Support'!$B23=0,\"\",'effRT Support'!V23)","v":""},{"$f":"IF('effRT Support'!$B23=0,\"\",'effRT Support'!W23)","v":""},{"$f":"IF('effRT Support'!$B23=0,\"\",'effRT Support'!X23)","v":""},{"$f":"IF('effRT Support'!$B23=0,\"\",'effRT Support'!Y23)","v":""},{"$f":"IF('effRT Support'!$B23=0,\"\",'effRT Support'!Z23*10)","v":""},{"$f":"IF('effRT Support'!$B23=0,\"\",'effRT Support'!AA23)","v":""},{"$f":"IF('effRT Support'!$B23=0,\"\",'effRT Support'!AB23)","v":""},{"$f":"IF('effRT Support'!$B23=0,\"\",'effRT Support'!AC23)","v":""},{"$f":"IF('effRT Support'!$B23=0,\"\",'effRT Support'!AD23)","v":""},{"$f":"IF('effRT Support'!$B23=0,\"\",'effRT Support'!AE23)","v":""},{"$f":"IF('effRT Support'!$B23=0,\"\",\"Hours Actual or Deemed\")","v":""},{"$f":"IF('effRT Support'!$B23=0,\"\",'effRT Support'!$F23)","v":""},{"$f":"IF('effRT Support'!$B23=0,\"\",\"Wattage Actual or Deemed\")","v":""},{"$f":"IF('effRT Support'!$B23=0,\"\",IF('Project Information'!$D$33=\"Pay For Performance\",\"Actual\",\"Deemed\"))","v":""},{"$f":"IF('effRT Support'!$B23=0,\"\",\"Cost Actual or Deemed\")","v":""},{"$f":"IF('effRT Support'!$B23=0,\"\",IF('Project Information'!$D$33=\"Pay For Performance\",\"Actual\",\"Deemed\"))","v":""},{"$f":"IF('effRT Support'!$B23=0,\"\",\"Location\")","v":""},{"$f":"IF('effRT Support'!$B23=0,\"\",'effRT Support'!$E23)","v":""},{"$f":"IF('effRT Support'!$B23=0,\"\",\"Space Type\")","v":""},{"$f":"IF('effRT Support'!$B23=0,\"\",'effRT Support'!$G23)","v":""},{"$f":"IF('effRT Support'!$B23=0,\"\",\"Existing Fixture Description\")","v":""},{"$f":"IF('effRT Support'!$B23=0,\"\",'effRT Support'!$H23)","v":""},{"$f":"IF('effRT Support'!$B23=0,\"\",\"Existing Fixture Quantity\")","v":""},{"$f":"IF('effRT Support'!$B23=0,\"\",'effRT Support'!$I23)","v":""},{"$f":"IF('effRT Support'!$B23=0,\"\",\"Existing Fixture Wattage\")","v":""},{"$f":"IF('effRT Support'!$B23=0,\"\",'effRT Support'!$J23)","v":""},{"$f":"IF('effRT Support'!$B23=0,\"\",\"Annual Hours of Operation\")","v":""},{"$f":"IF('effRT Support'!$B23=0,\"\",'effRT Support'!$K23)","v":""},{"$f":"IF('effRT Support'!$B23=0,\"\",\"Installed Fixture Description\")","v":""},{"$f":"IF('effRT Support'!$B23=0,\"\",'effRT Support'!$M23)","v":""},{"$f":"IF('effRT Support'!$B23=0,\"\",\"Installed Fixture Wattage\")","v":""},{"$f":"IF('effRT Support'!$B23=0,\"\",'effRT Support'!$O23)","v":""},{"$f":"IF('effRT Support'!$B23=0,\"\",\"Material Cost\")","v":""},{"$f":"IF('effRT Support'!$B23=0,\"\",'effRT Support'!$R23)","v":""},{"$f":"IF('effRT Support'!$B23=0,\"\",\"Labor Cost\")","v":""},{"$f":"IF('effRT Support'!$B23=0,\"\",'effRT Support'!$S23)","v":""},{"$f":"IF('effRT Support'!$B23=0,\"\",\"Ancillary Costs - Measure Specific\")","v":""},{"$f":"IF('effRT Support'!$B23=0,\"\",'effRT Support'!$T23)","v":""},{"$f":"IF('effRT Support'!$B23=0,\"\",\"Fuel Type\")","v":""},{"$f":"IF('effRT Support'!$B23=0,\"\",'Project Information'!$D$44)","v":""},{"$f":"IF('effRT Support'!$B23=0,\"\",\"Installed Fixture Quantity\")","v":""},{"$f":"IF('effRT Support'!$B23=0,\"\",'effRT Support'!P22)","v":""}]
[{"$f":"IF('effRT Support'!$B24=0,\"\",IF('Project Information'!$D$33=\"Small Business\",\"SBL\",\"CILS\"))","v":""},{"$f":"IF('effRT Support'!$B24=0,\"\",IF('Project Information'!$K$2=\"\",\"\",'Project Information'!$K$2))","v":""},null,{"$f":"IF('effRT Support'!$B24=0,\"\",IF('Project Information'!$D$46=\"\",\"\",'Project Information'!$D$46))","v":""},{"$f":"IF('effRT Support'!$B24=0,\"\",IF('Project Information'!$D$20=\"\",\"\",VLOOKUP('Project Information'!$D$20,'Other Data'!$B$159:$E$189,4,FALSE)))","v":""},{"$f":"IF('effRT Support'!$B24=0,\"\",IF('Project Information'!$D$31=\"\",\"\",'Project Information'!$D$31))","v":""},{"$f":"IF('effRT Support'!$B24=0,\"\",IF('Project Information'!$D$5=\"\",\"\",'Project Information'!$D$5))","v":""},null,null,{"$f":"IF('effRT Support'!$B24=0,\"\",IF('Project Information'!$D$20=\"\",\"\",VLOOKUP('Project Information'!$D$20,'Other Data'!$B$159:$E$189,2,FALSE)))","v":""},{"$f":"IF('effRT Support'!$B24=0,\"\",IF('Project Information'!$D$20=\"\",\"\",VLOOKUP('Project Information'!$D$20,'Other Data'!$B$159:$E$189,3,FALSE)))","v":""},{"$f":"IF('effRT Support'!$B24=0,\"\",\"Existing\")","v":""},null,{"$f":"IF('effRT Support'!$B24=0,\"\",IF('Project Information'!$D$21=\"\",\"\",'Project Information'!$D$21))","v":""},{"$f":"IF('effRT Support'!$B24=0,\"\",IF('Project Information'!$D$48=\"\",\"\",'Project Information'!$D$48))","v":""},{"$f":"IF('effRT Support'!$B24=0,\"\",\"\")","v":""},{"$f":"IF('effRT Support'!$B24=0,\"\",\"\")","v":""},{"$f":"IF('effRT Support'!$B24=0,\"\",\"\")","v":""},{"$f":"IF('effRT Support'!$B24=0,\"\",\"\")","v":""},{"$f":"IF('effRT Support'!$B24=0,\"\",IF('Project Information'!$D$13=\"\",\"\",'Project Information'!$D$13))","v":""},{"$f":"IF('effRT Support'!$B24=0,\"\",IF('Project Information'!$E$13=\"\",\"\",'Project Information'!$E$13))","v":""},{"$f":"IF('effRT Support'!$B24=0,\"\",IF('Project Information'!$D$14=\"\",\"\",'Project Information'!$D$14))","v":""},{"$f":"IF('effRT Support'!$B24=0,\"\",IF('Project Information'!$D$15=\"\",\"\",'Project Information'!$D$15))","v":""},{"$f":"IF('effRT Support'!$B24=0,\"\",IF('Project Information'!$D$16=\"\",\"\",'Project Information'!$D$16))","v":""},null,{"$f":"IF('effRT Support'!$B24=0,\"\",'Project Information'!$D$18)","v":""},{"$f":"IF('effRT Support'!$B24=0,\"\",IF('Project Information'!$D$23=\"\",\"\",'Project Information'!$D$23))","v":""},{"$f":"IF('effRT Support'!$B24=0,\"\",IF('Project Information'!$D$24=\"\",\"\",'Project Information'!$D$24))","v":""},{"$f":"IF('effRT Support'!$B24=0,\"\",IF('Project Information'!$D$25=\"\",\"\",'Project Information'!$D$25))","v":""},{"$f":"IF('effRT Support'!$B24=0,\"\",IF('Project Information'!$E$25=\"\",\"\",'Project Information'!$E$25))","v":""},{"$f":"IF('effRT Support'!$B24=0,\"\",IF('Project Information'!$F$25=\"\",\"\",'Project Information'!$F$25))","v":""},{"$f":"IF('effRT Support'!$B24=0,\"\",IF('Project Information'!$D$27=\"\",\"Y\",\"N\"))","v":""},{"$f":"IF('effRT Support'!$B24=0,\"\",IF('Project Information'!$D$27=\"\",\"\",'Project Information'!$D$27))","v":""},{"$f":"IF('effRT Support'!$B24=0,\"\",IF('Project Information'!$D$28=\"\",\"\",'Project Information'!$D$28))","v":""},{"$f":"IF('effRT Support'!$B24=0,\"\",IF('Project Information'!$D$29=\"\",\"\",'Project Information'!$D$29))","v":""},{"$f":"IF('effRT Support'!$B24=0,\"\",IF('Project Information'!$E$29=\"\",\"\",'Project Information'!$E$29))","v":""},{"$f":"IF('effRT Support'!$B24=0,\"\",IF('Project Information'!$F$29=\"\",\"\",'Project Information'!$F$29))","v":""},{"$f":"IF('effRT Support'!$B24=0,\"\",\"\")","v":""},{"$f":"IF('effRT Support'!$B24=0,\"\",\"\")","v":""},{"$f":"IF('effRT Support'!$B24=0,\"\",IF('Project Information'!$D$36=\"\",\"\",'Project Information'!$D$36))","v":""},{"$f":"IF('effRT Support'!$B24=0,\"\",IF('Project Information'!$D$42=\"\",\"\",'Project Information'!$D$42))","v":""},{"$f":"IF('effRT Support'!$B24=0,\"\",'effRT Support'!$D24)","v":""},{"$f":"IF('effRT Support'!$B24=0,\"\",'effRT Support'!$L24)","v":""},{"$f":"IF('effRT Support'!$B24=0,\"\",'effRT Support'!$N24)","v":""},null,null,{"$f":"IF('effRT Support'!$B24=0,\"\",'effRT Support'!$P24)","v":""},{"$f":"IF('effRT Support'!$B24=0,\"\",'effRT Support'!$Q24)","v":""},{"$f":"IF('effRT Support'!$B24=0,\"\",'effRT Support'!U24)","v":""},{"$f":"IF('effRT Support'!$B24=0,\"\",'effRT Support'!V24)","v":""},{"$f":"IF('effRT Support'!$B24=0,\"\",'effRT Support'!W24)","v":""},{"$f":"IF('effRT Support'!$B24=0,\"\",'effRT Support'!X24)","v":""},{"$f":"IF('effRT Support'!$B24=0,\"\",'effRT Support'!Y24)","v":""},{"$f":"IF('effRT Support'!$B24=0,\"\",'effRT Support'!Z24*10)","v":""},{"$f":"IF('effRT Support'!$B24=0,\"\",'effRT Support'!AA24)","v":""},{"$f":"IF('effRT Support'!$B24=0,\"\",'effRT Support'!AB24)","v":""},{"$f":"IF('effRT Support'!$B24=0,\"\",'effRT Support'!AC24)","v":""},{"$f":"IF('effRT Support'!$B24=0,\"\",'effRT Support'!AD24)","v":""},{"$f":"IF('effRT Support'!$B24=0,\"\",'effRT Support'!AE24)","v":""},{"$f":"IF('effRT Support'!$B24=0,\"\",\"Hours Actual or Deemed\")","v":""},{"$f":"IF('effRT Support'!$B24=0,\"\",'effRT Support'!$F24)","v":""},{"$f":"IF('effRT Support'!$B24=0,\"\",\"Wattage Actual or Deemed\")","v":""},{"$f":"IF('effRT Support'!$B24=0,\"\",IF('Project Information'!$D$33=\"Pay For Performance\",\"Actual\",\"Deemed\"))","v":""},{"$f":"IF('effRT Support'!$B24=0,\"\",\"Cost Actual or Deemed\")","v":""},{"$f":"IF('effRT Support'!$B24=0,\"\",IF('Project Information'!$D$33=\"Pay For Performance\",\"Actual\",\"Deemed\"))","v":""},{"$f":"IF('effRT Support'!$B24=0,\"\",\"Location\")","v":""},{"$f":"IF('effRT Support'!$B24=0,\"\",'effRT Support'!$E24)","v":""},{"$f":"IF('effRT Support'!$B24=0,\"\",\"Space Type\")","v":""},{"$f":"IF('effRT Support'!$B24=0,\"\",'effRT Support'!$G24)","v":""},{"$f":"IF('effRT Support'!$B24=0,\"\",\"Existing Fixture Description\")","v":""},{"$f":"IF('effRT Support'!$B24=0,\"\",'effRT Support'!$H24)","v":""},{"$f":"IF('effRT Support'!$B24=0,\"\",\"Existing Fixture Quantity\")","v":""},{"$f":"IF('effRT Support'!$B24=0,\"\",'effRT Support'!$I24)","v":""},{"$f":"IF('effRT Support'!$B24=0,\"\",\"Existing Fixture Wattage\")","v":""},{"$f":"IF('effRT Support'!$B24=0,\"\",'effRT Support'!$J24)","v":""},{"$f":"IF('effRT Support'!$B24=0,\"\",\"Annual Hours of Operation\")","v":""},{"$f":"IF('effRT Support'!$B24=0,\"\",'effRT Support'!$K24)","v":""},{"$f":"IF('effRT Support'!$B24=0,\"\",\"Installed Fixture Description\")","v":""},{"$f":"IF('effRT Support'!$B24=0,\"\",'effRT Support'!$M24)","v":""},{"$f":"IF('effRT Support'!$B24=0,\"\",\"Installed Fixture Wattage\")","v":""},{"$f":"IF('effRT Support'!$B24=0,\"\",'effRT Support'!$O24)","v":""},{"$f":"IF('effRT Support'!$B24=0,\"\",\"Material Cost\")","v":""},{"$f":"IF('effRT Support'!$B24=0,\"\",'effRT Support'!$R24)","v":""},{"$f":"IF('effRT Support'!$B24=0,\"\",\"Labor Cost\")","v":""},{"$f":"IF('effRT Support'!$B24=0,\"\",'effRT Support'!$S24)","v":""},{"$f":"IF('effRT Support'!$B24=0,\"\",\"Ancillary Costs - Measure Specific\")","v":""},{"$f":"IF('effRT Support'!$B24=0,\"\",'effRT Support'!$T24)","v":""},{"$f":"IF('effRT Support'!$B24=0,\"\",\"Fuel Type\")","v":""},{"$f":"IF('effRT Support'!$B24=0,\"\",'Project Information'!$D$44)","v":""}]
[{"$f":"IF('effRT Support'!$B25=0,\"\",IF('Project Information'!$D$33=\"Small Business\",\"SBL\",\"CILS\"))","v":""},{"$f":"IF('effRT Support'!$B25=0,\"\",IF('Project Information'!$K$2=\"\",\"\",'Project Information'!$K$2))","v":""},null,{"$f":"IF('effRT Support'!$B25=0,\"\",IF('Project Information'!$D$46=\"\",\"\",'Project Information'!$D$46))","v":""},{"$f":"IF('effRT Support'!$B25=0,\"\",IF('Project Information'!$D$20=\"\",\"\",VLOOKUP('Project Information'!$D$20,'Other Data'!$B$159:$E$189,4,FALSE)))","v":""},{"$f":"IF('effRT Support'!$B25=0,\"\",IF('Project Information'!$D$31=\"\",\"\",'Project Information'!$D$31))","v":""},{"$f":"IF('effRT Support'!$B25=0,\"\",IF('Project Information'!$D$5=\"\",\"\",'Project Information'!$D$5))","v":""},null,null,{"$f":"IF('effRT Support'!$B25=0,\"\",IF('Project Information'!$D$20=\"\",\"\",VLOOKUP('Project Information'!$D$20,'Other Data'!$B$159:$E$189,2,FALSE)))","v":""},{"$f":"IF('effRT Support'!$B25=0,\"\",IF('Project Information'!$D$20=\"\",\"\",VLOOKUP('Project Information'!$D$20,'Other Data'!$B$159:$E$189,3,FALSE)))","v":""},{"$f":"IF('effRT Support'!$B25=0,\"\",\"Existing\")","v":""},null,{"$f":"IF('effRT Support'!$B25=0,\"\",IF('Project Information'!$D$21=\"\",\"\",'Project Information'!$D$21))","v":""},{"$f":"IF('effRT Support'!$B25=0,\"\",IF('Project Information'!$D$48=\"\",\"\",'Project Information'!$D$48))","v":""},{"$f":"IF('effRT Support'!$B25=0,\"\",\"\")","v":""},{"$f":"IF('effRT Support'!$B25=0,\"\",\"\")","v":""},{"$f":"IF('effRT Support'!$B25=0,\"\",\"\")","v":""},{"$f":"IF('effRT Support'!$B25=0,\"\",\"\")","v":""},{"$f":"IF('effRT Support'!$B25=0,\"\",IF('Project Information'!$D$13=\"\",\"\",'Project Information'!$D$13))","v":""},{"$f":"IF('effRT Support'!$B25=0,\"\",IF('Project Information'!$E$13=\"\",\"\",'Project Information'!$E$13))","v":""},{"$f":"IF('effRT Support'!$B25=0,\"\",IF('Project Information'!$D$14=\"\",\"\",'Project Information'!$D$14))","v":""},{"$f":"IF('effRT Support'!$B25=0,\"\",IF('Project Information'!$D$15=\"\",\"\",'Project Information'!$D$15))","v":""},{"$f":"IF('effRT Support'!$B25=0,\"\",IF('Project Information'!$D$16=\"\",\"\",'Project Information'!$D$16))","v":""},null,{"$f":"IF('effRT Support'!$B25=0,\"\",'Project Information'!$D$18)","v":""},{"$f":"IF('effRT Support'!$B25=0,\"\",IF('Project Information'!$D$23=\"\",\"\",'Project Information'!$D$23))","v":""},{"$f":"IF('effRT Support'!$B25=0,\"\",IF('Project Information'!$D$24=\"\",\"\",'Project Information'!$D$24))","v":""},{"$f":"IF('effRT Support'!$B25=0,\"\",IF('Project Information'!$D$25=\"\",\"\",'Project Information'!$D$25))","v":""},{"$f":"IF('effRT Support'!$B25=0,\"\",IF('Project Information'!$E$25=\"\",\"\",'Project Information'!$E$25))","v":""},{"$f":"IF('effRT Support'!$B25=0,\"\",IF('Project Information'!$F$25=\"\",\"\",'Project Information'!$F$25))","v":""},{"$f":"IF('effRT Support'!$B25=0,\"\",IF('Project Information'!$D$27=\"\",\"Y\",\"N\"))","v":""},{"$f":"IF('effRT Support'!$B25=0,\"\",IF('Project Information'!$D$27=\"\",\"\",'Project Information'!$D$27))","v":""},{"$f":"IF('effRT Support'!$B25=0,\"\",IF('Project Information'!$D$28=\"\",\"\",'Project Information'!$D$28))","v":""},{"$f":"IF('effRT Support'!$B25=0,\"\",IF('Project Information'!$D$29=\"\",\"\",'Project Information'!$D$29))","v":""},{"$f":"IF('effRT Support'!$B25=0,\"\",IF('Project Information'!$E$29=\"\",\"\",'Project Information'!$E$29))","v":""},{"$f":"IF('effRT Support'!$B25=0,\"\",IF('Project Information'!$F$29=\"\",\"\",'Project Information'!$F$29))","v":""},{"$f":"IF('effRT Support'!$B25=0,\"\",\"\")","v":""},{"$f":"IF('effRT Support'!$B25=0,\"\",\"\")","v":""},{"$f":"IF('effRT Support'!$B25=0,\"\",IF('Project Information'!$D$36=\"\",\"\",'Project Information'!$D$36))","v":""},{"$f":"IF('effRT Support'!$B25=0,\"\",IF('Project Information'!$D$42=\"\",\"\",'Project Information'!$D$42))","v":""},{"$f":"IF('effRT Support'!$B25=0,\"\",'effRT Support'!$D25)","v":""},{"$f":"IF('effRT Support'!$B25=0,\"\",'effRT Support'!$L25)","v":""},{"$f":"IF('effRT Support'!$B25=0,\"\",'effRT Support'!$N25)","v":""},null,null,{"$f":"IF('effRT Support'!$B25=0,\"\",'effRT Support'!$P25)","v":""},{"$f":"IF('effRT Support'!$B25=0,\"\",'effRT Support'!$Q25)","v":""},{"$f":"IF('effRT Support'!$B25=0,\"\",'effRT Support'!U25)","v":""},{"$f":"IF('effRT Support'!$B25=0,\"\",'effRT Support'!V25)","v":""},{"$f":"IF('effRT Support'!$B25=0,\"\",'effRT Support'!W25)","v":""},{"$f":"IF('effRT Support'!$B25=0,\"\",'effRT Support'!X25)","v":""},{"$f":"IF('effRT Support'!$B25=0,\"\",'effRT Support'!Y25)","v":""},{"$f":"IF('effRT Support'!$B25=0,\"\",'effRT Support'!Z25*10)","v":""},{"$f":"IF('effRT Support'!$B25=0,\"\",'effRT Support'!AA25)","v":""},{"$f":"IF('effRT Support'!$B25=0,\"\",'effRT Support'!AB25)","v":""},{"$f":"IF('effRT Support'!$B25=0,\"\",'effRT Support'!AC25)","v":""},{"$f":"IF('effRT Support'!$B25=0,\"\",'effRT Support'!AD25)","v":""},{"$f":"IF('effRT Support'!$B25=0,\"\",'effRT Support'!AE25)","v":""},{"$f":"IF('effRT Support'!$B25=0,\"\",\"Hours Actual or Deemed\")","v":""},{"$f":"IF('effRT Support'!$B25=0,\"\",'effRT Support'!$F25)","v":""},{"$f":"IF('effRT Support'!$B25=0,\"\",\"Wattage Actual or Deemed\")","v":""},{"$f":"IF('effRT Support'!$B25=0,\"\",IF('Project Information'!$D$33=\"Pay For Performance\",\"Actual\",\"Deemed\"))","v":""},{"$f":"IF('effRT Support'!$B25=0,\"\",\"Cost Actual or Deemed\")","v":""},{"$f":"IF('effRT Support'!$B25=0,\"\",IF('Project Information'!$D$33=\"Pay For Performance\",\"Actual\",\"Deemed\"))","v":""},{"$f":"IF('effRT Support'!$B25=0,\"\",\"Location\")","v":""},{"$f":"IF('effRT Support'!$B25=0,\"\",'effRT Support'!$E25)","v":""},{"$f":"IF('effRT Support'!$B25=0,\"\",\"Space Type\")","v":""},{"$f":"IF('effRT Support'!$B25=0,\"\",'effRT Support'!$G25)","v":""},{"$f":"IF('effRT Support'!$B25=0,\"\",\"Existing Fixture Description\")","v":""},{"$f":"IF('effRT Support'!$B25=0,\"\",'effRT Support'!$H25)","v":""},{"$f":"IF('effRT Support'!$B25=0,\"\",\"Existing Fixture Quantity\")","v":""},{"$f":"IF('effRT Support'!$B25=0,\"\",'effRT Support'!$I25)","v":""},{"$f":"IF('effRT Support'!$B25=0,\"\",\"Existing Fixture Wattage\")","v":""},{"$f":"IF('effRT Support'!$B25=0,\"\",'effRT Support'!$J25)","v":""},{"$f":"IF('effRT Support'!$B25=0,\"\",\"Annual Hours of Operation\")","v":""},{"$f":"IF('effRT Support'!$B25=0,\"\",'effRT Support'!$K25)","v":""},{"$f":"IF('effRT Support'!$B25=0,\"\",\"Installed Fixture Description\")","v":""},{"$f":"IF('effRT Support'!$B25=0,\"\",'effRT Support'!$M25)","v":""},{"$f":"IF('effRT Support'!$B25=0,\"\",\"Installed Fixture Wattage\")","v":""},{"$f":"IF('effRT Support'!$B25=0,\"\",'effRT Support'!$O25)","v":""},{"$f":"IF('effRT Support'!$B25=0,\"\",\"Material Cost\")","v":""},{"$f":"IF('effRT Support'!$B25=0,\"\",'effRT Support'!$R25)","v":""},{"$f":"IF('effRT Support'!$B25=0,\"\",\"Labor Cost\")","v":""},{"$f":"IF('effRT Support'!$B25=0,\"\",'effRT Support'!$S25)","v":""},{"$f":"IF('effRT Support'!$B25=0,\"\",\"Ancillary Costs - Measure Specific\")","v":""},{"$f":"IF('effRT Support'!$B25=0,\"\",'effRT Support'!$T25)","v":""},{"$f":"IF('effRT Support'!$B25=0,\"\",\"Fuel Type\")","v":""},{"$f":"IF('effRT Support'!$B25=0,\"\",'Project Information'!$D$44)","v":""},{"$f":"IF('effRT Support'!$B25=0,\"\",\"Installed Fixture Quantity\")","v":""},{"$f":"IF('effRT Support'!$B25=0,\"\",'effRT Support'!P24)","v":""}]
[{"$f":"IF('effRT Support'!$B26=0,\"\",IF('Project Information'!$D$33=\"Small Business\",\"SBL\",\"CILS\"))","v":""},{"$f":"IF('effRT Support'!$B26=0,\"\",IF('Project Information'!$K$2=\"\",\"\",'Project Information'!$K$2))","v":""},null,{"$f":"IF('effRT Support'!$B26=0,\"\",IF('Project Information'!$D$46=\"\",\"\",'Project Information'!$D$46))","v":""},{"$f":"IF('effRT Support'!$B26=0,\"\",IF('Project Information'!$D$20=\"\",\"\",VLOOKUP('Project Information'!$D$20,'Other Data'!$B$159:$E$189,4,FALSE)))","v":""},{"$f":"IF('effRT Support'!$B26=0,\"\",IF('Project Information'!$D$31=\"\",\"\",'Project Information'!$D$31))","v":""},{"$f":"IF('effRT Support'!$B26=0,\"\",IF('Project Information'!$D$5=\"\",\"\",'Project Information'!$D$5))","v":""},null,null,{"$f":"IF('effRT Support'!$B26=0,\"\",IF('Project Information'!$D$20=\"\",\"\",VLOOKUP('Project Information'!$D$20,'Other Data'!$B$159:$E$189,2,FALSE)))","v":""},{"$f":"IF('effRT Support'!$B26=0,\"\",IF('Project Information'!$D$20=\"\",\"\",VLOOKUP('Project Information'!$D$20,'Other Data'!$B$159:$E$189,3,FALSE)))","v":""},{"$f":"IF('effRT Support'!$B26=0,\"\",\"Existing\")","v":""},null,{"$f":"IF('effRT Support'!$B26=0,\"\",IF('Project Information'!$D$21=\"\",\"\",'Project Information'!$D$21))","v":""},{"$f":"IF('effRT Support'!$B26=0,\"\",IF('Project Information'!$D$48=\"\",\"\",'Project Information'!$D$48))","v":""},{"$f":"IF('effRT Support'!$B26=0,\"\",\"\")","v":""},{"$f":"IF('effRT Support'!$B26=0,\"\",\"\")","v":""},{"$f":"IF('effRT Support'!$B26=0,\"\",\"\")","v":""},{"$f":"IF('effRT Support'!$B26=0,\"\",\"\")","v":""},{"$f":"IF('effRT Support'!$B26=0,\"\",IF('Project Information'!$D$13=\"\",\"\",'Project Information'!$D$13))","v":""},{"$f":"IF('effRT Support'!$B26=0,\"\",IF('Project Information'!$E$13=\"\",\"\",'Project Information'!$E$13))","v":""},{"$f":"IF('effRT Support'!$B26=0,\"\",IF('Project Information'!$D$14=\"\",\"\",'Project Information'!$D$14))","v":""},{"$f":"IF('effRT Support'!$B26=0,\"\",IF('Project Information'!$D$15=\"\",\"\",'Project Information'!$D$15))","v":""},{"$f":"IF('effRT Support'!$B26=0,\"\",IF('Project Information'!$D$16=\"\",\"\",'Project Information'!$D$16))","v":""},null,{"$f":"IF('effRT Support'!$B26=0,\"\",'Project Information'!$D$18)","v":""},{"$f":"IF('effRT Support'!$B26=0,\"\",IF('Project Information'!$D$23=\"\",\"\",'Project Information'!$D$23))","v":""},{"$f":"IF('effRT Support'!$B26=0,\"\",IF('Project Information'!$D$24=\"\",\"\",'Project Information'!$D$24))","v":""},{"$f":"IF('effRT Support'!$B26=0,\"\",IF('Project Information'!$D$25=\"\",\"\",'Project Information'!$D$25))","v":""},{"$f":"IF('effRT Support'!$B26=0,\"\",IF('Project Information'!$E$25=\"\",\"\",'Project Information'!$E$25))","v":""},{"$f":"IF('effRT Support'!$B26=0,\"\",IF('Project Information'!$F$25=\"\",\"\",'Project Information'!$F$25))","v":""},{"$f":"IF('effRT Support'!$B26=0,\"\",IF('Project Information'!$D$27=\"\",\"Y\",\"N\"))","v":""},{"$f":"IF('effRT Support'!$B26=0,\"\",IF('Project Information'!$D$27=\"\",\"\",'Project Information'!$D$27))","v":""},{"$f":"IF('effRT Support'!$B26=0,\"\",IF('Project Information'!$D$28=\"\",\"\",'Project Information'!$D$28))","v":""},{"$f":"IF('effRT Support'!$B26=0,\"\",IF('Project Information'!$D$29=\"\",\"\",'Project Information'!$D$29))","v":""},{"$f":"IF('effRT Support'!$B26=0,\"\",IF('Project Information'!$E$29=\"\",\"\",'Project Information'!$E$29))","v":""},{"$f":"IF('effRT Support'!$B26=0,\"\",IF('Project Information'!$F$29=\"\",\"\",'Project Information'!$F$29))","v":""},{"$f":"IF('effRT Support'!$B26=0,\"\",\"\")","v":""},{"$f":"IF('effRT Support'!$B26=0,\"\",\"\")","v":""},{"$f":"IF('effRT Support'!$B26=0,\"\",IF('Project Information'!$D$36=\"\",\"\",'Project Information'!$D$36))","v":""},{"$f":"IF('effRT Support'!$B26=0,\"\",IF('Project Information'!$D$42=\"\",\"\",'Project Information'!$D$42))","v":""},{"$f":"IF('effRT Support'!$B26=0,\"\",'effRT Support'!$D26)","v":""},{"$f":"IF('effRT Support'!$B26=0,\"\",'effRT Support'!$L26)","v":""},{"$f":"IF('effRT Support'!$B26=0,\"\",'effRT Support'!$N26)","v":""},null,null,{"$f":"IF('effRT Support'!$B26=0,\"\",'effRT Support'!$P26)","v":""},{"$f":"IF('effRT Support'!$B26=0,\"\",'effRT Support'!$Q26)","v":""},{"$f":"IF('effRT Support'!$B26=0,\"\",'effRT Support'!U26)","v":""},{"$f":"IF('effRT Support'!$B26=0,\"\",'effRT Support'!V26)","v":""},{"$f":"IF('effRT Support'!$B26=0,\"\",'effRT Support'!W26)","v":""},{"$f":"IF('effRT Support'!$B26=0,\"\",'effRT Support'!X26)","v":""},{"$f":"IF('effRT Support'!$B26=0,\"\",'effRT Support'!Y26)","v":""},{"$f":"IF('effRT Support'!$B26=0,\"\",'effRT Support'!Z26*10)","v":""},{"$f":"IF('effRT Support'!$B26=0,\"\",'effRT Support'!AA26)","v":""},{"$f":"IF('effRT Support'!$B26=0,\"\",'effRT Support'!AB26)","v":""},{"$f":"IF('effRT Support'!$B26=0,\"\",'effRT Support'!AC26)","v":""},{"$f":"IF('effRT Support'!$B26=0,\"\",'effRT Support'!AD26)","v":""},{"$f":"IF('effRT Support'!$B26=0,\"\",'effRT Support'!AE26)","v":""},{"$f":"IF('effRT Support'!$B26=0,\"\",\"Hours Actual or Deemed\")","v":""},{"$f":"IF('effRT Support'!$B26=0,\"\",'effRT Support'!$F26)","v":""},{"$f":"IF('effRT Support'!$B26=0,\"\",\"Wattage Actual or Deemed\")","v":""},{"$f":"IF('effRT Support'!$B26=0,\"\",IF('Project Information'!$D$33=\"Pay For Performance\",\"Actual\",\"Deemed\"))","v":""},{"$f":"IF('effRT Support'!$B26=0,\"\",\"Cost Actual or Deemed\")","v":""},{"$f":"IF('effRT Support'!$B26=0,\"\",IF('Project Information'!$D$33=\"Pay For Performance\",\"Actual\",\"Deemed\"))","v":""},{"$f":"IF('effRT Support'!$B26=0,\"\",\"Location\")","v":""},{"$f":"IF('effRT Support'!$B26=0,\"\",'effRT Support'!$E26)","v":""},{"$f":"IF('effRT Support'!$B26=0,\"\",\"Space Type\")","v":""},{"$f":"IF('effRT Support'!$B26=0,\"\",'effRT Support'!$G26)","v":""},{"$f":"IF('effRT Support'!$B26=0,\"\",\"Existing Fixture Description\")","v":""},{"$f":"IF('effRT Support'!$B26=0,\"\",'effRT Support'!$H26)","v":""},{"$f":"IF('effRT Support'!$B26=0,\"\",\"Existing Fixture Quantity\")","v":""},{"$f":"IF('effRT Support'!$B26=0,\"\",'effRT Support'!$I26)","v":""},{"$f":"IF('effRT Support'!$B26=0,\"\",\"Existing Fixture Wattage\")","v":""},{"$f":"IF('effRT Support'!$B26=0,\"\",'effRT Support'!$J26)","v":""},{"$f":"IF('effRT Support'!$B26=0,\"\",\"Annual Hours of Operation\")","v":""},{"$f":"IF('effRT Support'!$B26=0,\"\",'effRT Support'!$K26)","v":""},{"$f":"IF('effRT Support'!$B26=0,\"\",\"Installed Fixture Description\")","v":""},{"$f":"IF('effRT Support'!$B26=0,\"\",'effRT Support'!$M26)","v":""},{"$f":"IF('effRT Support'!$B26=0,\"\",\"Installed Fixture Wattage\")","v":""},{"$f":"IF('effRT Support'!$B26=0,\"\",'effRT Support'!$O26)","v":""},{"$f":"IF('effRT Support'!$B26=0,\"\",\"Material Cost\")","v":""},{"$f":"IF('effRT Support'!$B26=0,\"\",'effRT Support'!$R26)","v":""},{"$f":"IF('effRT Support'!$B26=0,\"\",\"Labor Cost\")","v":""},{"$f":"IF('effRT Support'!$B26=0,\"\",'effRT Support'!$S26)","v":""},{"$f":"IF('effRT Support'!$B26=0,\"\",\"Ancillary Costs - Measure Specific\")","v":""},{"$f":"IF('effRT Support'!$B26=0,\"\",'effRT Support'!$T26)","v":""},{"$f":"IF('effRT Support'!$B26=0,\"\",\"Fuel Type\")","v":""},{"$f":"IF('effRT Support'!$B26=0,\"\",'Project Information'!$D$44)","v":""}]
[{"$f":"IF('effRT Support'!$B27=0,\"\",IF('Project Information'!$D$33=\"Small Business\",\"SBL\",\"CILS\"))","v":""},{"$f":"IF('effRT Support'!$B27=0,\"\",IF('Project Information'!$K$2=\"\",\"\",'Project Information'!$K$2))","v":""},null,{"$f":"IF('effRT Support'!$B27=0,\"\",IF('Project Information'!$D$46=\"\",\"\",'Project Information'!$D$46))","v":""},{"$f":"IF('effRT Support'!$B27=0,\"\",IF('Project Information'!$D$20=\"\",\"\",VLOOKUP('Project Information'!$D$20,'Other Data'!$B$159:$E$189,4,FALSE)))","v":""},{"$f":"IF('effRT Support'!$B27=0,\"\",IF('Project Information'!$D$31=\"\",\"\",'Project Information'!$D$31))","v":""},{"$f":"IF('effRT Support'!$B27=0,\"\",IF('Project Information'!$D$5=\"\",\"\",'Project Information'!$D$5))","v":""},null,null,{"$f":"IF('effRT Support'!$B27=0,\"\",IF('Project Information'!$D$20=\"\",\"\",VLOOKUP('Project Information'!$D$20,'Other Data'!$B$159:$E$189,2,FALSE)))","v":""},{"$f":"IF('effRT Support'!$B27=0,\"\",IF('Project Information'!$D$20=\"\",\"\",VLOOKUP('Project Information'!$D$20,'Other Data'!$B$159:$E$189,3,FALSE)))","v":""},{"$f":"IF('effRT Support'!$B27=0,\"\",\"Existing\")","v":""},null,{"$f":"IF('effRT Support'!$B27=0,\"\",IF('Project Information'!$D$21=\"\",\"\",'Project Information'!$D$21))","v":""},{"$f":"IF('effRT Support'!$B27=0,\"\",IF('Project Information'!$D$48=\"\",\"\",'Project Information'!$D$48))","v":""},{"$f":"IF('effRT Support'!$B27=0,\"\",\"\")","v":""},{"$f":"IF('effRT Support'!$B27=0,\"\",\"\")","v":""},{"$f":"IF('effRT Support'!$B27=0,\"\",\"\")","v":""},{"$f":"IF('effRT Support'!$B27=0,\"\",\"\")","v":""},{"$f":"IF('effRT Support'!$B27=0,\"\",IF('Project Information'!$D$13=\"\",\"\",'Project Information'!$D$13))","v":""},{"$f":"IF('effRT Support'!$B27=0,\"\",IF('Project Information'!$E$13=\"\",\"\",'Project Information'!$E$13))","v":""},{"$f":"IF('effRT Support'!$B27=0,\"\",IF('Project Information'!$D$14=\"\",\"\",'Project Information'!$D$14))","v":""},{"$f":"IF('effRT Support'!$B27=0,\"\",IF('Project Information'!$D$15=\"\",\"\",'Project Information'!$D$15))","v":""},{"$f":"IF('effRT Support'!$B27=0,\"\",IF('Project Information'!$D$16=\"\",\"\",'Project Information'!$D$16))","v":""},null,{"$f":"IF('effRT Support'!$B27=0,\"\",'Project Information'!$D$18)","v":""},{"$f":"IF('effRT Support'!$B27=0,\"\",IF('Project Information'!$D$23=\"\",\"\",'Project Information'!$D$23))","v":""},{"$f":"IF('effRT Support'!$B27=0,\"\",IF('Project Information'!$D$24=\"\",\"\",'Project Information'!$D$24))","v":""},{"$f":"IF('effRT Support'!$B27=0,\"\",IF('Project Information'!$D$25=\"\",\"\",'Project Information'!$D$25))","v":""},{"$f":"IF('effRT Support'!$B27=0,\"\",IF('Project Information'!$E$25=\"\",\"\",'Project Information'!$E$25))","v":""},{"$f":"IF('effRT Support'!$B27=0,\"\",IF('Project Information'!$F$25=\"\",\"\",'Project Information'!$F$25))","v":""},{"$f":"IF('effRT Support'!$B27=0,\"\",IF('Project Information'!$D$27=\"\",\"Y\",\"N\"))","v":""},{"$f":"IF('effRT Support'!$B27=0,\"\",IF('Project Information'!$D$27=\"\",\"\",'Project Information'!$D$27))","v":""},{"$f":"IF('effRT Support'!$B27=0,\"\",IF('Project Information'!$D$28=\"\",\"\",'Project Information'!$D$28))","v":""},{"$f":"IF('effRT Support'!$B27=0,\"\",IF('Project Information'!$D$29=\"\",\"\",'Project Information'!$D$29))","v":""},{"$f":"IF('effRT Support'!$B27=0,\"\",IF('Project Information'!$E$29=\"\",\"\",'Project Information'!$E$29))","v":""},{"$f":"IF('effRT Support'!$B27=0,\"\",IF('Project Information'!$F$29=\"\",\"\",'Project Information'!$F$29))","v":""},{"$f":"IF('effRT Support'!$B27=0,\"\",\"\")","v":""},{"$f":"IF('effRT Support'!$B27=0,\"\",\"\")","v":""},{"$f":"IF('effRT Support'!$B27=0,\"\",IF('Project Information'!$D$36=\"\",\"\",'Project Information'!$D$36))","v":""},{"$f":"IF('effRT Support'!$B27=0,\"\",IF('Project Information'!$D$42=\"\",\"\",'Project Information'!$D$42))","v":""},{"$f":"IF('effRT Support'!$B27=0,\"\",'effRT Support'!$D27)","v":""},{"$f":"IF('effRT Support'!$B27=0,\"\",'effRT Support'!$L27)","v":""},{"$f":"IF('effRT Support'!$B27=0,\"\",'effRT Support'!$N27)","v":""},null,null,{"$f":"IF('effRT Support'!$B27=0,\"\",'effRT Support'!$P27)","v":""},{"$f":"IF('effRT Support'!$B27=0,\"\",'effRT Support'!$Q27)","v":""},{"$f":"IF('effRT Support'!$B27=0,\"\",'effRT Support'!U27)","v":""},{"$f":"IF('effRT Support'!$B27=0,\"\",'effRT Support'!V27)","v":""},{"$f":"IF('effRT Support'!$B27=0,\"\",'effRT Support'!W27)","v":""},{"$f":"IF('effRT Support'!$B27=0,\"\",'effRT Support'!X27)","v":""},{"$f":"IF('effRT Support'!$B27=0,\"\",'effRT Support'!Y27)","v":""},{"$f":"IF('effRT Support'!$B27=0,\"\",'effRT Support'!Z27*10)","v":""},{"$f":"IF('effRT Support'!$B27=0,\"\",'effRT Support'!AA27)","v":""},{"$f":"IF('effRT Support'!$B27=0,\"\",'effRT Support'!AB27)","v":""},{"$f":"IF('effRT Support'!$B27=0,\"\",'effRT Support'!AC27)","v":""},{"$f":"IF('effRT Support'!$B27=0,\"\",'effRT Support'!AD27)","v":""},{"$f":"IF('effRT Support'!$B27=0,\"\",'effRT Support'!AE27)","v":""},{"$f":"IF('effRT Support'!$B27=0,\"\",\"Hours Actual or Deemed\")","v":""},{"$f":"IF('effRT Support'!$B27=0,\"\",'effRT Support'!$F27)","v":""},{"$f":"IF('effRT Support'!$B27=0,\"\",\"Wattage Actual or Deemed\")","v":""},{"$f":"IF('effRT Support'!$B27=0,\"\",IF('Project Information'!$D$33=\"Pay For Performance\",\"Actual\",\"Deemed\"))","v":""},{"$f":"IF('effRT Support'!$B27=0,\"\",\"Cost Actual or Deemed\")","v":""},{"$f":"IF('effRT Support'!$B27=0,\"\",IF('Project Information'!$D$33=\"Pay For Performance\",\"Actual\",\"Deemed\"))","v":""},{"$f":"IF('effRT Support'!$B27=0,\"\",\"Location\")","v":""},{"$f":"IF('effRT Support'!$B27=0,\"\",'effRT Support'!$E27)","v":""},{"$f":"IF('effRT Support'!$B27=0,\"\",\"Space Type\")","v":""},{"$f":"IF('effRT Support'!$B27=0,\"\",'effRT Support'!$G27)","v":""},{"$f":"IF('effRT Support'!$B27=0,\"\",\"Existing Fixture Description\")","v":""},{"$f":"IF('effRT Support'!$B27=0,\"\",'effRT Support'!$H27)","v":""},{"$f":"IF('effRT Support'!$B27=0,\"\",\"Existing Fixture Quantity\")","v":""},{"$f":"IF('effRT Support'!$B27=0,\"\",'effRT Support'!$I27)","v":""},{"$f":"IF('effRT Support'!$B27=0,\"\",\"Existing Fixture Wattage\")","v":""},{"$f":"IF('effRT Support'!$B27=0,\"\",'effRT Support'!$J27)","v":""},{"$f":"IF('effRT Support'!$B27=0,\"\",\"Annual Hours of Operation\")","v":""},{"$f":"IF('effRT Support'!$B27=0,\"\",'effRT Support'!$K27)","v":""},{"$f":"IF('effRT Support'!$B27=0,\"\",\"Installed Fixture Description\")","v":""},{"$f":"IF('effRT Support'!$B27=0,\"\",'effRT Support'!$M27)","v":""},{"$f":"IF('effRT Support'!$B27=0,\"\",\"Installed Fixture Wattage\")","v":""},{"$f":"IF('effRT Support'!$B27=0,\"\",'effRT Support'!$O27)","v":""},{"$f":"IF('effRT Support'!$B27=0,\"\",\"Material Cost\")","v":""},{"$f":"IF('effRT Support'!$B27=0,\"\",'effRT Support'!$R27)","v":""},{"$f":"IF('effRT Support'!$B27=0,\"\",\"Labor Cost\")","v":""},{"$f":"IF('effRT Support'!$B27=0,\"\",'effRT Support'!$S27)","v":""},{"$f":"IF('effRT Support'!$B27=0,\"\",\"Ancillary Costs - Measure Specific\")","v":""},{"$f":"IF('effRT Support'!$B27=0,\"\",'effRT Support'!$T27)","v":""},{"$f":"IF('effRT Support'!$B27=0,\"\",\"Fuel Type\")","v":""},{"$f":"IF('effRT Support'!$B27=0,\"\",'Project Information'!$D$44)","v":""},{"$f":"IF('effRT Support'!$B27=0,\"\",\"Installed Fixture Quantity\")","v":""},{"$f":"IF('effRT Support'!$B27=0,\"\",'effRT Support'!P26)","v":""}]
[{"$f":"IF('effRT Support'!$B28=0,\"\",IF('Project Information'!$D$33=\"Small Business\",\"SBL\",\"CILS\"))","v":""},{"$f":"IF('effRT Support'!$B28=0,\"\",IF('Project Information'!$K$2=\"\",\"\",'Project Information'!$K$2))","v":""},null,{"$f":"IF('effRT Support'!$B28=0,\"\",IF('Project Information'!$D$46=\"\",\"\",'Project Information'!$D$46))","v":""},{"$f":"IF('effRT Support'!$B28=0,\"\",IF('Project Information'!$D$20=\"\",\"\",VLOOKUP('Project Information'!$D$20,'Other Data'!$B$159:$E$189,4,FALSE)))","v":""},{"$f":"IF('effRT Support'!$B28=0,\"\",IF('Project Information'!$D$31=\"\",\"\",'Project Information'!$D$31))","v":""},{"$f":"IF('effRT Support'!$B28=0,\"\",IF('Project Information'!$D$5=\"\",\"\",'Project Information'!$D$5))","v":""},null,null,{"$f":"IF('effRT Support'!$B28=0,\"\",IF('Project Information'!$D$20=\"\",\"\",VLOOKUP('Project Information'!$D$20,'Other Data'!$B$159:$E$189,2,FALSE)))","v":""},{"$f":"IF('effRT Support'!$B28=0,\"\",IF('Project Information'!$D$20=\"\",\"\",VLOOKUP('Project Information'!$D$20,'Other Data'!$B$159:$E$189,3,FALSE)))","v":""},{"$f":"IF('effRT Support'!$B28=0,\"\",\"Existing\")","v":""},null,{"$f":"IF('effRT Support'!$B28=0,\"\",IF('Project Information'!$D$21=\"\",\"\",'Project Information'!$D$21))","v":""},{"$f":"IF('effRT Support'!$B28=0,\"\",IF('Project Information'!$D$48=\"\",\"\",'Project Information'!$D$48))","v":""},{"$f":"IF('effRT Support'!$B28=0,\"\",\"\")","v":""},{"$f":"IF('effRT Support'!$B28=0,\"\",\"\")","v":""},{"$f":"IF('effRT Support'!$B28=0,\"\",\"\")","v":""},{"$f":"IF('effRT Support'!$B28=0,\"\",\"\")","v":""},{"$f":"IF('effRT Support'!$B28=0,\"\",IF('Project Information'!$D$13=\"\",\"\",'Project Information'!$D$13))","v":""},{"$f":"IF('effRT Support'!$B28=0,\"\",IF('Project Information'!$E$13=\"\",\"\",'Project Information'!$E$13))","v":""},{"$f":"IF('effRT Support'!$B28=0,\"\",IF('Project Information'!$D$14=\"\",\"\",'Project Information'!$D$14))","v":""},{"$f":"IF('effRT Support'!$B28=0,\"\",IF('Project Information'!$D$15=\"\",\"\",'Project Information'!$D$15))","v":""},{"$f":"IF('effRT Support'!$B28=0,\"\",IF('Project Information'!$D$16=\"\",\"\",'Project Information'!$D$16))","v":""},null,{"$f":"IF('effRT Support'!$B28=0,\"\",'Project Information'!$D$18)","v":""},{"$f":"IF('effRT Support'!$B28=0,\"\",IF('Project Information'!$D$23=\"\",\"\",'Project Information'!$D$23))","v":""},{"$f":"IF('effRT Support'!$B28=0,\"\",IF('Project Information'!$D$24=\"\",\"\",'Project Information'!$D$24))","v":""},{"$f":"IF('effRT Support'!$B28=0,\"\",IF('Project Information'!$D$25=\"\",\"\",'Project Information'!$D$25))","v":""},{"$f":"IF('effRT Support'!$B28=0,\"\",IF('Project Information'!$E$25=\"\",\"\",'Project Information'!$E$25))","v":""},{"$f":"IF('effRT Support'!$B28=0,\"\",IF('Project Information'!$F$25=\"\",\"\",'Project Information'!$F$25))","v":""},{"$f":"IF('effRT Support'!$B28=0,\"\",IF('Project Information'!$D$27=\"\",\"Y\",\"N\"))","v":""},{"$f":"IF('effRT Support'!$B28=0,\"\",IF('Project Information'!$D$27=\"\",\"\",'Project Information'!$D$27))","v":""},{"$f":"IF('effRT Support'!$B28=0,\"\",IF('Project Information'!$D$28=\"\",\"\",'Project Information'!$D$28))","v":""},{"$f":"IF('effRT Support'!$B28=0,\"\",IF('Project Information'!$D$29=\"\",\"\",'Project Information'!$D$29))","v":""},{"$f":"IF('effRT Support'!$B28=0,\"\",IF('Project Information'!$E$29=\"\",\"\",'Project Information'!$E$29))","v":""},{"$f":"IF('effRT Support'!$B28=0,\"\",IF('Project Information'!$F$29=\"\",\"\",'Project Information'!$F$29))","v":""},{"$f":"IF('effRT Support'!$B28=0,\"\",\"\")","v":""},{"$f":"IF('effRT Support'!$B28=0,\"\",\"\")","v":""},{"$f":"IF('effRT Support'!$B28=0,\"\",IF('Project Information'!$D$36=\"\",\"\",'Project Information'!$D$36))","v":""},{"$f":"IF('effRT Support'!$B28=0,\"\",IF('Project Information'!$D$42=\"\",\"\",'Project Information'!$D$42))","v":""},{"$f":"IF('effRT Support'!$B28=0,\"\",'effRT Support'!$D28)","v":""},{"$f":"IF('effRT Support'!$B28=0,\"\",'effRT Support'!$L28)","v":""},{"$f":"IF('effRT Support'!$B28=0,\"\",'effRT Support'!$N28)","v":""},null,null,{"$f":"IF('effRT Support'!$B28=0,\"\",'effRT Support'!$P28)","v":""},{"$f":"IF('effRT Support'!$B28=0,\"\",'effRT Support'!$Q28)","v":""},{"$f":"IF('effRT Support'!$B28=0,\"\",'effRT Support'!U28)","v":""},{"$f":"IF('effRT Support'!$B28=0,\"\",'effRT Support'!V28)","v":""},{"$f":"IF('effRT Support'!$B28=0,\"\",'effRT Support'!W28)","v":""},{"$f":"IF('effRT Support'!$B28=0,\"\",'effRT Support'!X28)","v":""},{"$f":"IF('effRT Support'!$B28=0,\"\",'effRT Support'!Y28)","v":""},{"$f":"IF('effRT Support'!$B28=0,\"\",'effRT Support'!Z28*10)","v":""},{"$f":"IF('effRT Support'!$B28=0,\"\",'effRT Support'!AA28)","v":""},{"$f":"IF('effRT Support'!$B28=0,\"\",'effRT Support'!AB28)","v":""},{"$f":"IF('effRT Support'!$B28=0,\"\",'effRT Support'!AC28)","v":""},{"$f":"IF('effRT Support'!$B28=0,\"\",'effRT Support'!AD28)","v":""},{"$f":"IF('effRT Support'!$B28=0,\"\",'effRT Support'!AE28)","v":""},{"$f":"IF('effRT Support'!$B28=0,\"\",\"Hours Actual or Deemed\")","v":""},{"$f":"IF('effRT Support'!$B28=0,\"\",'effRT Support'!$F28)","v":""},{"$f":"IF('effRT Support'!$B28=0,\"\",\"Wattage Actual or Deemed\")","v":""},{"$f":"IF('effRT Support'!$B28=0,\"\",IF('Project Information'!$D$33=\"Pay For Performance\",\"Actual\",\"Deemed\"))","v":""},{"$f":"IF('effRT Support'!$B28=0,\"\",\"Cost Actual or Deemed\")","v":""},{"$f":"IF('effRT Support'!$B28=0,\"\",IF('Project Information'!$D$33=\"Pay For Performance\",\"Actual\",\"Deemed\"))","v":""},{"$f":"IF('effRT Support'!$B28=0,\"\",\"Location\")","v":""},{"$f":"IF('effRT Support'!$B28=0,\"\",'effRT Support'!$E28)","v":""},{"$f":"IF('effRT Support'!$B28=0,\"\",\"Space Type\")","v":""},{"$f":"IF('effRT Support'!$B28=0,\"\",'effRT Support'!$G28)","v":""},{"$f":"IF('effRT Support'!$B28=0,\"\",\"Existing Fixture Description\")","v":""},{"$f":"IF('effRT Support'!$B28=0,\"\",'effRT Support'!$H28)","v":""},{"$f":"IF('effRT Support'!$B28=0,\"\",\"Existing Fixture Quantity\")","v":""},{"$f":"IF('effRT Support'!$B28=0,\"\",'effRT Support'!$I28)","v":""},{"$f":"IF('effRT Support'!$B28=0,\"\",\"Existing Fixture Wattage\")","v":""},{"$f":"IF('effRT Support'!$B28=0,\"\",'effRT Support'!$J28)","v":""},{"$f":"IF('effRT Support'!$B28=0,\"\",\"Annual Hours of Operation\")","v":""},{"$f":"IF('effRT Support'!$B28=0,\"\",'effRT Support'!$K28)","v":""},{"$f":"IF('effRT Support'!$B28=0,\"\",\"Installed Fixture Description\")","v":""},{"$f":"IF('effRT Support'!$B28=0,\"\",'effRT Support'!$M28)","v":""},{"$f":"IF('effRT Support'!$B28=0,\"\",\"Installed Fixture Wattage\")","v":""},{"$f":"IF('effRT Support'!$B28=0,\"\",'effRT Support'!$O28)","v":""},{"$f":"IF('effRT Support'!$B28=0,\"\",\"Material Cost\")","v":""},{"$f":"IF('effRT Support'!$B28=0,\"\",'effRT Support'!$R28)","v":""},{"$f":"IF('effRT Support'!$B28=0,\"\",\"Labor Cost\")","v":""},{"$f":"IF('effRT Support'!$B28=0,\"\",'effRT Support'!$S28)","v":""},{"$f":"IF('effRT Support'!$B28=0,\"\",\"Ancillary Costs - Measure Specific\")","v":""},{"$f":"IF('effRT Support'!$B28=0,\"\",'effRT Support'!$T28)","v":""},{"$f":"IF('effRT Support'!$B28=0,\"\",\"Fuel Type\")","v":""},{"$f":"IF('effRT Support'!$B28=0,\"\",'Project Information'!$D$44)","v":""}]
[{"$f":"IF('effRT Support'!$B29=0,\"\",IF('Project Information'!$D$33=\"Small Business\",\"SBL\",\"CILS\"))","v":""},{"$f":"IF('effRT Support'!$B29=0,\"\",IF('Project Information'!$K$2=\"\",\"\",'Project Information'!$K$2))","v":""},null,{"$f":"IF('effRT Support'!$B29=0,\"\",IF('Project Information'!$D$46=\"\",\"\",'Project Information'!$D$46))","v":""},{"$f":"IF('effRT Support'!$B29=0,\"\",IF('Project Information'!$D$20=\"\",\"\",VLOOKUP('Project Information'!$D$20,'Other Data'!$B$159:$E$189,4,FALSE)))","v":""},{"$f":"IF('effRT Support'!$B29=0,\"\",IF('Project Information'!$D$31=\"\",\"\",'Project Information'!$D$31))","v":""},{"$f":"IF('effRT Support'!$B29=0,\"\",IF('Project Information'!$D$5=\"\",\"\",'Project Information'!$D$5))","v":""},null,null,{"$f":"IF('effRT Support'!$B29=0,\"\",IF('Project Information'!$D$20=\"\",\"\",VLOOKUP('Project Information'!$D$20,'Other Data'!$B$159:$E$189,2,FALSE)))","v":""},{"$f":"IF('effRT Support'!$B29=0,\"\",IF('Project Information'!$D$20=\"\",\"\",VLOOKUP('Project Information'!$D$20,'Other Data'!$B$159:$E$189,3,FALSE)))","v":""},{"$f":"IF('effRT Support'!$B29=0,\"\",\"Existing\")","v":""},null,{"$f":"IF('effRT Support'!$B29=0,\"\",IF('Project Information'!$D$21=\"\",\"\",'Project Information'!$D$21))","v":""},{"$f":"IF('effRT Support'!$B29=0,\"\",IF('Project Information'!$D$48=\"\",\"\",'Project Information'!$D$48))","v":""},{"$f":"IF('effRT Support'!$B29=0,\"\",\"\")","v":""},{"$f":"IF('effRT Support'!$B29=0,\"\",\"\")","v":""},{"$f":"IF('effRT Support'!$B29=0,\"\",\"\")","v":""},{"$f":"IF('effRT Support'!$B29=0,\"\",\"\")","v":""},{"$f":"IF('effRT Support'!$B29=0,\"\",IF('Project Information'!$D$13=\"\",\"\",'Project Information'!$D$13))","v":""},{"$f":"IF('effRT Support'!$B29=0,\"\",IF('Project Information'!$E$13=\"\",\"\",'Project Information'!$E$13))","v":""},{"$f":"IF('effRT Support'!$B29=0,\"\",IF('Project Information'!$D$14=\"\",\"\",'Project Information'!$D$14))","v":""},{"$f":"IF('effRT Support'!$B29=0,\"\",IF('Project Information'!$D$15=\"\",\"\",'Project Information'!$D$15))","v":""},{"$f":"IF('effRT Support'!$B29=0,\"\",IF('Project Information'!$D$16=\"\",\"\",'Project Information'!$D$16))","v":""},null,{"$f":"IF('effRT Support'!$B29=0,\"\",'Project Information'!$D$18)","v":""},{"$f":"IF('effRT Support'!$B29=0,\"\",IF('Project Information'!$D$23=\"\",\"\",'Project Information'!$D$23))","v":""},{"$f":"IF('effRT Support'!$B29=0,\"\",IF('Project Information'!$D$24=\"\",\"\",'Project Information'!$D$24))","v":""},{"$f":"IF('effRT Support'!$B29=0,\"\",IF('Project Information'!$D$25=\"\",\"\",'Project Information'!$D$25))","v":""},{"$f":"IF('effRT Support'!$B29=0,\"\",IF('Project Information'!$E$25=\"\",\"\",'Project Information'!$E$25))","v":""},{"$f":"IF('effRT Support'!$B29=0,\"\",IF('Project Information'!$F$25=\"\",\"\",'Project Information'!$F$25))","v":""},{"$f":"IF('effRT Support'!$B29=0,\"\",IF('Project Information'!$D$27=\"\",\"Y\",\"N\"))","v":""},{"$f":"IF('effRT Support'!$B29=0,\"\",IF('Project Information'!$D$27=\"\",\"\",'Project Information'!$D$27))","v":""},{"$f":"IF('effRT Support'!$B29=0,\"\",IF('Project Information'!$D$28=\"\",\"\",'Project Information'!$D$28))","v":""},{"$f":"IF('effRT Support'!$B29=0,\"\",IF('Project Information'!$D$29=\"\",\"\",'Project Information'!$D$29))","v":""},{"$f":"IF('effRT Support'!$B29=0,\"\",IF('Project Information'!$E$29=\"\",\"\",'Project Information'!$E$29))","v":""},{"$f":"IF('effRT Support'!$B29=0,\"\",IF('Project Information'!$F$29=\"\",\"\",'Project Information'!$F$29))","v":""},{"$f":"IF('effRT Support'!$B29=0,\"\",\"\")","v":""},{"$f":"IF('effRT Support'!$B29=0,\"\",\"\")","v":""},{"$f":"IF('effRT Support'!$B29=0,\"\",IF('Project Information'!$D$36=\"\",\"\",'Project Information'!$D$36))","v":""},{"$f":"IF('effRT Support'!$B29=0,\"\",IF('Project Information'!$D$42=\"\",\"\",'Project Information'!$D$42))","v":""},{"$f":"IF('effRT Support'!$B29=0,\"\",'effRT Support'!$D29)","v":""},{"$f":"IF('effRT Support'!$B29=0,\"\",'effRT Support'!$L29)","v":""},{"$f":"IF('effRT Support'!$B29=0,\"\",'effRT Support'!$N29)","v":""},null,null,{"$f":"IF('effRT Support'!$B29=0,\"\",'effRT Support'!$P29)","v":""},{"$f":"IF('effRT Support'!$B29=0,\"\",'effRT Support'!$Q29)","v":""},{"$f":"IF('effRT Support'!$B29=0,\"\",'effRT Support'!U29)","v":""},{"$f":"IF('effRT Support'!$B29=0,\"\",'effRT Support'!V29)","v":""},{"$f":"IF('effRT Support'!$B29=0,\"\",'effRT Support'!W29)","v":""},{"$f":"IF('effRT Support'!$B29=0,\"\",'effRT Support'!X29)","v":""},{"$f":"IF('effRT Support'!$B29=0,\"\",'effRT Support'!Y29)","v":""},{"$f":"IF('effRT Support'!$B29=0,\"\",'effRT Support'!Z29*10)","v":""},{"$f":"IF('effRT Support'!$B29=0,\"\",'effRT Support'!AA29)","v":""},{"$f":"IF('effRT Support'!$B29=0,\"\",'effRT Support'!AB29)","v":""},{"$f":"IF('effRT Support'!$B29=0,\"\",'effRT Support'!AC29)","v":""},{"$f":"IF('effRT Support'!$B29=0,\"\",'effRT Support'!AD29)","v":""},{"$f":"IF('effRT Support'!$B29=0,\"\",'effRT Support'!AE29)","v":""},{"$f":"IF('effRT Support'!$B29=0,\"\",\"Hours Actual or Deemed\")","v":""},{"$f":"IF('effRT Support'!$B29=0,\"\",'effRT Support'!$F29)","v":""},{"$f":"IF('effRT Support'!$B29=0,\"\",\"Wattage Actual or Deemed\")","v":""},{"$f":"IF('effRT Support'!$B29=0,\"\",IF('Project Information'!$D$33=\"Pay For Performance\",\"Actual\",\"Deemed\"))","v":""},{"$f":"IF('effRT Support'!$B29=0,\"\",\"Cost Actual or Deemed\")","v":""},{"$f":"IF('effRT Support'!$B29=0,\"\",IF('Project Information'!$D$33=\"Pay For Performance\",\"Actual\",\"Deemed\"))","v":""},{"$f":"IF('effRT Support'!$B29=0,\"\",\"Location\")","v":""},{"$f":"IF('effRT Support'!$B29=0,\"\",'effRT Support'!$E29)","v":""},{"$f":"IF('effRT Support'!$B29=0,\"\",\"Space Type\")","v":""},{"$f":"IF('effRT Support'!$B29=0,\"\",'effRT Support'!$G29)","v":""},{"$f":"IF('effRT Support'!$B29=0,\"\",\"Existing Fixture Description\")","v":""},{"$f":"IF('effRT Support'!$B29=0,\"\",'effRT Support'!$H29)","v":""},{"$f":"IF('effRT Support'!$B29=0,\"\",\"Existing Fixture Quantity\")","v":""},{"$f":"IF('effRT Support'!$B29=0,\"\",'effRT Support'!$I29)","v":""},{"$f":"IF('effRT Support'!$B29=0,\"\",\"Existing Fixture Wattage\")","v":""},{"$f":"IF('effRT Support'!$B29=0,\"\",'effRT Support'!$J29)","v":""},{"$f":"IF('effRT Support'!$B29=0,\"\",\"Annual Hours of Operation\")","v":""},{"$f":"IF('effRT Support'!$B29=0,\"\",'effRT Support'!$K29)","v":""},{"$f":"IF('effRT Support'!$B29=0,\"\",\"Installed Fixture Description\")","v":""},{"$f":"IF('effRT Support'!$B29=0,\"\",'effRT Support'!$M29)","v":""},{"$f":"IF('effRT Support'!$B29=0,\"\",\"Installed Fixture Wattage\")","v":""},{"$f":"IF('effRT Support'!$B29=0,\"\",'effRT Support'!$O29)","v":""},{"$f":"IF('effRT Support'!$B29=0,\"\",\"Material Cost\")","v":""},{"$f":"IF('effRT Support'!$B29=0,\"\",'effRT Support'!$R29)","v":""},{"$f":"IF('effRT Support'!$B29=0,\"\",\"Labor Cost\")","v":""},{"$f":"IF('effRT Support'!$B29=0,\"\",'effRT Support'!$S29)","v":""},{"$f":"IF('effRT Support'!$B29=0,\"\",\"Ancillary Costs - Measure Specific\")","v":""},{"$f":"IF('effRT Support'!$B29=0,\"\",'effRT Support'!$T29)","v":""},{"$f":"IF('effRT Support'!$B29=0,\"\",\"Fuel Type\")","v":""},{"$f":"IF('effRT Support'!$B29=0,\"\",'Project Information'!$D$44)","v":""},{"$f":"IF('effRT Support'!$B29=0,\"\",\"Installed Fixture Quantity\")","v":""},{"$f":"IF('effRT Support'!$B29=0,\"\",'effRT Support'!P28)","v":""}]
[{"$f":"IF('effRT Support'!$B30=0,\"\",IF('Project Information'!$D$33=\"Small Business\",\"SBL\",\"CILS\"))","v":""},{"$f":"IF('effRT Support'!$B30=0,\"\",IF('Project Information'!$K$2=\"\",\"\",'Project Information'!$K$2))","v":""},null,{"$f":"IF('effRT Support'!$B30=0,\"\",IF('Project Information'!$D$46=\"\",\"\",'Project Information'!$D$46))","v":""},{"$f":"IF('effRT Support'!$B30=0,\"\",IF('Project Information'!$D$20=\"\",\"\",VLOOKUP('Project Information'!$D$20,'Other Data'!$B$159:$E$189,4,FALSE)))","v":""},{"$f":"IF('effRT Support'!$B30=0,\"\",IF('Project Information'!$D$31=\"\",\"\",'Project Information'!$D$31))","v":""},{"$f":"IF('effRT Support'!$B30=0,\"\",IF('Project Information'!$D$5=\"\",\"\",'Project Information'!$D$5))","v":""},null,null,{"$f":"IF('effRT Support'!$B30=0,\"\",IF('Project Information'!$D$20=\"\",\"\",VLOOKUP('Project Information'!$D$20,'Other Data'!$B$159:$E$189,2,FALSE)))","v":""},{"$f":"IF('effRT Support'!$B30=0,\"\",IF('Project Information'!$D$20=\"\",\"\",VLOOKUP('Project Information'!$D$20,'Other Data'!$B$159:$E$189,3,FALSE)))","v":""},{"$f":"IF('effRT Support'!$B30=0,\"\",\"Existing\")","v":""},null,{"$f":"IF('effRT Support'!$B30=0,\"\",IF('Project Information'!$D$21=\"\",\"\",'Project Information'!$D$21))","v":""},{"$f":"IF('effRT Support'!$B30=0,\"\",IF('Project Information'!$D$48=\"\",\"\",'Project Information'!$D$48))","v":""},{"$f":"IF('effRT Support'!$B30=0,\"\",\"\")","v":""},{"$f":"IF('effRT Support'!$B30=0,\"\",\"\")","v":""},{"$f":"IF('effRT Support'!$B30=0,\"\",\"\")","v":""},{"$f":"IF('effRT Support'!$B30=0,\"\",\"\")","v":""},{"$f":"IF('effRT Support'!$B30=0,\"\",IF('Project Information'!$D$13=\"\",\"\",'Project Information'!$D$13))","v":""},{"$f":"IF('effRT Support'!$B30=0,\"\",IF('Project Information'!$E$13=\"\",\"\",'Project Information'!$E$13))","v":""},{"$f":"IF('effRT Support'!$B30=0,\"\",IF('Project Information'!$D$14=\"\",\"\",'Project Information'!$D$14))","v":""},{"$f":"IF('effRT Support'!$B30=0,\"\",IF('Project Information'!$D$15=\"\",\"\",'Project Information'!$D$15))","v":""},{"$f":"IF('effRT Support'!$B30=0,\"\",IF('Project Information'!$D$16=\"\",\"\",'Project Information'!$D$16))","v":""},null,{"$f":"IF('effRT Support'!$B30=0,\"\",'Project Information'!$D$18)","v":""},{"$f":"IF('effRT Support'!$B30=0,\"\",IF('Project Information'!$D$23=\"\",\"\",'Project Information'!$D$23))","v":""},{"$f":"IF('effRT Support'!$B30=0,\"\",IF('Project Information'!$D$24=\"\",\"\",'Project Information'!$D$24))","v":""},{"$f":"IF('effRT Support'!$B30=0,\"\",IF('Project Information'!$D$25=\"\",\"\",'Project Information'!$D$25))","v":""},{"$f":"IF('effRT Support'!$B30=0,\"\",IF('Project Information'!$E$25=\"\",\"\",'Project Information'!$E$25))","v":""},{"$f":"IF('effRT Support'!$B30=0,\"\",IF('Project Information'!$F$25=\"\",\"\",'Project Information'!$F$25))","v":""},{"$f":"IF('effRT Support'!$B30=0,\"\",IF('Project Information'!$D$27=\"\",\"Y\",\"N\"))","v":""},{"$f":"IF('effRT Support'!$B30=0,\"\",IF('Project Information'!$D$27=\"\",\"\",'Project Information'!$D$27))","v":""},{"$f":"IF('effRT Support'!$B30=0,\"\",IF('Project Information'!$D$28=\"\",\"\",'Project Information'!$D$28))","v":""},{"$f":"IF('effRT Support'!$B30=0,\"\",IF('Project Information'!$D$29=\"\",\"\",'Project Information'!$D$29))","v":""},{"$f":"IF('effRT Support'!$B30=0,\"\",IF('Project Information'!$E$29=\"\",\"\",'Project Information'!$E$29))","v":""},{"$f":"IF('effRT Support'!$B30=0,\"\",IF('Project Information'!$F$29=\"\",\"\",'Project Information'!$F$29))","v":""},{"$f":"IF('effRT Support'!$B30=0,\"\",\"\")","v":""},{"$f":"IF('effRT Support'!$B30=0,\"\",\"\")","v":""},{"$f":"IF('effRT Support'!$B30=0,\"\",IF('Project Information'!$D$36=\"\",\"\",'Project Information'!$D$36))","v":""},{"$f":"IF('effRT Support'!$B30=0,\"\",IF('Project Information'!$D$42=\"\",\"\",'Project Information'!$D$42))","v":""},{"$f":"IF('effRT Support'!$B30=0,\"\",'effRT Support'!$D30)","v":""},{"$f":"IF('effRT Support'!$B30=0,\"\",'effRT Support'!$L30)","v":""},{"$f":"IF('effRT Support'!$B30=0,\"\",'effRT Support'!$N30)","v":""},null,null,{"$f":"IF('effRT Support'!$B30=0,\"\",'effRT Support'!$P30)","v":""},{"$f":"IF('effRT Support'!$B30=0,\"\",'effRT Support'!$Q30)","v":""},{"$f":"IF('effRT Support'!$B30=0,\"\",'effRT Support'!U30)","v":""},{"$f":"IF('effRT Support'!$B30=0,\"\",'effRT Support'!V30)","v":""},{"$f":"IF('effRT Support'!$B30=0,\"\",'effRT Support'!W30)","v":""},{"$f":"IF('effRT Support'!$B30=0,\"\",'effRT Support'!X30)","v":""},{"$f":"IF('effRT Support'!$B30=0,\"\",'effRT Support'!Y30)","v":""},{"$f":"IF('effRT Support'!$B30=0,\"\",'effRT Support'!Z30*10)","v":""},{"$f":"IF('effRT Support'!$B30=0,\"\",'effRT Support'!AA30)","v":""},{"$f":"IF('effRT Support'!$B30=0,\"\",'effRT Support'!AB30)","v":""},{"$f":"IF('effRT Support'!$B30=0,\"\",'effRT Support'!AC30)","v":""},{"$f":"IF('effRT Support'!$B30=0,\"\",'effRT Support'!AD30)","v":""},{"$f":"IF('effRT Support'!$B30=0,\"\",'effRT Support'!AE30)","v":""},{"$f":"IF('effRT Support'!$B30=0,\"\",\"Hours Actual or Deemed\")","v":""},{"$f":"IF('effRT Support'!$B30=0,\"\",'effRT Support'!$F30)","v":""},{"$f":"IF('effRT Support'!$B30=0,\"\",\"Wattage Actual or Deemed\")","v":""},{"$f":"IF('effRT Support'!$B30=0,\"\",IF('Project Information'!$D$33=\"Pay For Performance\",\"Actual\",\"Deemed\"))","v":""},{"$f":"IF('effRT Support'!$B30=0,\"\",\"Cost Actual or Deemed\")","v":""},{"$f":"IF('effRT Support'!$B30=0,\"\",IF('Project Information'!$D$33=\"Pay For Performance\",\"Actual\",\"Deemed\"))","v":""},{"$f":"IF('effRT Support'!$B30=0,\"\",\"Location\")","v":""},{"$f":"IF('effRT Support'!$B30=0,\"\",'effRT Support'!$E30)","v":""},{"$f":"IF('effRT Support'!$B30=0,\"\",\"Space Type\")","v":""},{"$f":"IF('effRT Support'!$B30=0,\"\",'effRT Support'!$G30)","v":""},{"$f":"IF('effRT Support'!$B30=0,\"\",\"Existing Fixture Description\")","v":""},{"$f":"IF('effRT Support'!$B30=0,\"\",'effRT Support'!$H30)","v":""},{"$f":"IF('effRT Support'!$B30=0,\"\",\"Existing Fixture Quantity\")","v":""},{"$f":"IF('effRT Support'!$B30=0,\"\",'effRT Support'!$I30)","v":""},{"$f":"IF('effRT Support'!$B30=0,\"\",\"Existing Fixture Wattage\")","v":""},{"$f":"IF('effRT Support'!$B30=0,\"\",'effRT Support'!$J30)","v":""},{"$f":"IF('effRT Support'!$B30=0,\"\",\"Annual Hours of Operation\")","v":""},{"$f":"IF('effRT Support'!$B30=0,\"\",'effRT Support'!$K30)","v":""},{"$f":"IF('effRT Support'!$B30=0,\"\",\"Installed Fixture Description\")","v":""},{"$f":"IF('effRT Support'!$B30=0,\"\",'effRT Support'!$M30)","v":""},{"$f":"IF('effRT Support'!$B30=0,\"\",\"Installed Fixture Wattage\")","v":""},{"$f":"IF('effRT Support'!$B30=0,\"\",'effRT Support'!$O30)","v":""},{"$f":"IF('effRT Support'!$B30=0,\"\",\"Material Cost\")","v":""},{"$f":"IF('effRT Support'!$B30=0,\"\",'effRT Support'!$R30)","v":""},{"$f":"IF('effRT Support'!$B30=0,\"\",\"Labor Cost\")","v":""},{"$f":"IF('effRT Support'!$B30=0,\"\",'effRT Support'!$S30)","v":""},{"$f":"IF('effRT Support'!$B30=0,\"\",\"Ancillary Costs - Measure Specific\")","v":""},{"$f":"IF('effRT Support'!$B30=0,\"\",'effRT Support'!$T30)","v":""},{"$f":"IF('effRT Support'!$B30=0,\"\",\"Fuel Type\")","v":""},{"$f":"IF('effRT Support'!$B30=0,\"\",'Project Information'!$D$44)","v":""}]
[{"$f":"IF('effRT Support'!$B31=0,\"\",IF('Project Information'!$D$33=\"Small Business\",\"SBL\",\"CILS\"))","v":""},{"$f":"IF('effRT Support'!$B31=0,\"\",IF('Project Information'!$K$2=\"\",\"\",'Project Information'!$K$2))","v":""},null,{"$f":"IF('effRT Support'!$B31=0,\"\",IF('Project Information'!$D$46=\"\",\"\",'Project Information'!$D$46))","v":""},{"$f":"IF('effRT Support'!$B31=0,\"\",IF('Project Information'!$D$20=\"\",\"\",VLOOKUP('Project Information'!$D$20,'Other Data'!$B$159:$E$189,4,FALSE)))","v":""},{"$f":"IF('effRT Support'!$B31=0,\"\",IF('Project Information'!$D$31=\"\",\"\",'Project Information'!$D$31))","v":""},{"$f":"IF('effRT Support'!$B31=0,\"\",IF('Project Information'!$D$5=\"\",\"\",'Project Information'!$D$5))","v":""},null,null,{"$f":"IF('effRT Support'!$B31=0,\"\",IF('Project Information'!$D$20=\"\",\"\",VLOOKUP('Project Information'!$D$20,'Other Data'!$B$159:$E$189,2,FALSE)))","v":""},{"$f":"IF('effRT Support'!$B31=0,\"\",IF('Project Information'!$D$20=\"\",\"\",VLOOKUP('Project Information'!$D$20,'Other Data'!$B$159:$E$189,3,FALSE)))","v":""},{"$f":"IF('effRT Support'!$B31=0,\"\",\"Existing\")","v":""},null,{"$f":"IF('effRT Support'!$B31=0,\"\",IF('Project Information'!$D$21=\"\",\"\",'Project Information'!$D$21))","v":""},{"$f":"IF('effRT Support'!$B31=0,\"\",IF('Project Information'!$D$48=\"\",\"\",'Project Information'!$D$48))","v":""},{"$f":"IF('effRT Support'!$B31=0,\"\",\"\")","v":""},{"$f":"IF('effRT Support'!$B31=0,\"\",\"\")","v":""},{"$f":"IF('effRT Support'!$B31=0,\"\",\"\")","v":""},{"$f":"IF('effRT Support'!$B31=0,\"\",\"\")","v":""},{"$f":"IF('effRT Support'!$B31=0,\"\",IF('Project Information'!$D$13=\"\",\"\",'Project Information'!$D$13))","v":""},{"$f":"IF('effRT Support'!$B31=0,\"\",IF('Project Information'!$E$13=\"\",\"\",'Project Information'!$E$13))","v":""},{"$f":"IF('effRT Support'!$B31=0,\"\",IF('Project Information'!$D$14=\"\",\"\",'Project Information'!$D$14))","v":""},{"$f":"IF('effRT Support'!$B31=0,\"\",IF('Project Information'!$D$15=\"\",\"\",'Project Information'!$D$15))","v":""},{"$f":"IF('effRT Support'!$B31=0,\"\",IF('Project Information'!$D$16=\"\",\"\",'Project Information'!$D$16))","v":""},null,{"$f":"IF('effRT Support'!$B31=0,\"\",'Project Information'!$D$18)","v":""},{"$f":"IF('effRT Support'!$B31=0,\"\",IF('Project Information'!$D$23=\"\",\"\",'Project Information'!$D$23))","v":""},{"$f":"IF('effRT Support'!$B31=0,\"\",IF('Project Information'!$D$24=\"\",\"\",'Project Information'!$D$24))","v":""},{"$f":"IF('effRT Support'!$B31=0,\"\",IF('Project Information'!$D$25=\"\",\"\",'Project Information'!$D$25))","v":""},{"$f":"IF('effRT Support'!$B31=0,\"\",IF('Project Information'!$E$25=\"\",\"\",'Project Information'!$E$25))","v":""},{"$f":"IF('effRT Support'!$B31=0,\"\",IF('Project Information'!$F$25=\"\",\"\",'Project Information'!$F$25))","v":""},{"$f":"IF('effRT Support'!$B31=0,\"\",IF('Project Information'!$D$27=\"\",\"Y\",\"N\"))","v":""},{"$f":"IF('effRT Support'!$B31=0,\"\",IF('Project Information'!$D$27=\"\",\"\",'Project Information'!$D$27))","v":""},{"$f":"IF('effRT Support'!$B31=0,\"\",IF('Project Information'!$D$28=\"\",\"\",'Project Information'!$D$28))","v":""},{"$f":"IF('effRT Support'!$B31=0,\"\",IF('Project Information'!$D$29=\"\",\"\",'Project Information'!$D$29))","v":""},{"$f":"IF('effRT Support'!$B31=0,\"\",IF('Project Information'!$E$29=\"\",\"\",'Project Information'!$E$29))","v":""},{"$f":"IF('effRT Support'!$B31=0,\"\",IF('Project Information'!$F$29=\"\",\"\",'Project Information'!$F$29))","v":""},{"$f":"IF('effRT Support'!$B31=0,\"\",\"\")","v":""},{"$f":"IF('effRT Support'!$B31=0,\"\",\"\")","v":""},{"$f":"IF('effRT Support'!$B31=0,\"\",IF('Project Information'!$D$36=\"\",\"\",'Project Information'!$D$36))","v":""},{"$f":"IF('effRT Support'!$B31=0,\"\",IF('Project Information'!$D$42=\"\",\"\",'Project Information'!$D$42))","v":""},{"$f":"IF('effRT Support'!$B31=0,\"\",'effRT Support'!$D31)","v":""},{"$f":"IF('effRT Support'!$B31=0,\"\",'effRT Support'!$L31)","v":""},{"$f":"IF('effRT Support'!$B31=0,\"\",'effRT Support'!$N31)","v":""},null,null,{"$f":"IF('effRT Support'!$B31=0,\"\",'effRT Support'!$P31)","v":""},{"$f":"IF('effRT Support'!$B31=0,\"\",'effRT Support'!$Q31)","v":""},{"$f":"IF('effRT Support'!$B31=0,\"\",'effRT Support'!U31)","v":""},{"$f":"IF('effRT Support'!$B31=0,\"\",'effRT Support'!V31)","v":""},{"$f":"IF('effRT Support'!$B31=0,\"\",'effRT Support'!W31)","v":""},{"$f":"IF('effRT Support'!$B31=0,\"\",'effRT Support'!X31)","v":""},{"$f":"IF('effRT Support'!$B31=0,\"\",'effRT Support'!Y31)","v":""},{"$f":"IF('effRT Support'!$B31=0,\"\",'effRT Support'!Z31*10)","v":""},{"$f":"IF('effRT Support'!$B31=0,\"\",'effRT Support'!AA31)","v":""},{"$f":"IF('effRT Support'!$B31=0,\"\",'effRT Support'!AB31)","v":""},{"$f":"IF('effRT Support'!$B31=0,\"\",'effRT Support'!AC31)","v":""},{"$f":"IF('effRT Support'!$B31=0,\"\",'effRT Support'!AD31)","v":""},{"$f":"IF('effRT Support'!$B31=0,\"\",'effRT Support'!AE31)","v":""},{"$f":"IF('effRT Support'!$B31=0,\"\",\"Hours Actual or Deemed\")","v":""},{"$f":"IF('effRT Support'!$B31=0,\"\",'effRT Support'!$F31)","v":""},{"$f":"IF('effRT Support'!$B31=0,\"\",\"Wattage Actual or Deemed\")","v":""},{"$f":"IF('effRT Support'!$B31=0,\"\",IF('Project Information'!$D$33=\"Pay For Performance\",\"Actual\",\"Deemed\"))","v":""},{"$f":"IF('effRT Support'!$B31=0,\"\",\"Cost Actual or Deemed\")","v":""},{"$f":"IF('effRT Support'!$B31=0,\"\",IF('Project Information'!$D$33=\"Pay For Performance\",\"Actual\",\"Deemed\"))","v":""},{"$f":"IF('effRT Support'!$B31=0,\"\",\"Location\")","v":""},{"$f":"IF('effRT Support'!$B31=0,\"\",'effRT Support'!$E31)","v":""},{"$f":"IF('effRT Support'!$B31=0,\"\",\"Space Type\")","v":""},{"$f":"IF('effRT Support'!$B31=0,\"\",'effRT Support'!$G31)","v":""},{"$f":"IF('effRT Support'!$B31=0,\"\",\"Existing Fixture Description\")","v":""},{"$f":"IF('effRT Support'!$B31=0,\"\",'effRT Support'!$H31)","v":""},{"$f":"IF('effRT Support'!$B31=0,\"\",\"Existing Fixture Quantity\")","v":""},{"$f":"IF('effRT Support'!$B31=0,\"\",'effRT Support'!$I31)","v":""},{"$f":"IF('effRT Support'!$B31=0,\"\",\"Existing Fixture Wattage\")","v":""},{"$f":"IF('effRT Support'!$B31=0,\"\",'effRT Support'!$J31)","v":""},{"$f":"IF('effRT Support'!$B31=0,\"\",\"Annual Hours of Operation\")","v":""},{"$f":"IF('effRT Support'!$B31=0,\"\",'effRT Support'!$K31)","v":""},{"$f":"IF('effRT Support'!$B31=0,\"\",\"Installed Fixture Description\")","v":""},{"$f":"IF('effRT Support'!$B31=0,\"\",'effRT Support'!$M31)","v":""},{"$f":"IF('effRT Support'!$B31=0,\"\",\"Installed Fixture Wattage\")","v":""},{"$f":"IF('effRT Support'!$B31=0,\"\",'effRT Support'!$O31)","v":""},{"$f":"IF('effRT Support'!$B31=0,\"\",\"Material Cost\")","v":""},{"$f":"IF('effRT Support'!$B31=0,\"\",'effRT Support'!$R31)","v":""},{"$f":"IF('effRT Support'!$B31=0,\"\",\"Labor Cost\")","v":""},{"$f":"IF('effRT Support'!$B31=0,\"\",'effRT Support'!$S31)","v":""},{"$f":"IF('effRT Support'!$B31=0,\"\",\"Ancillary Costs - Measure Specific\")","v":""},{"$f":"IF('effRT Support'!$B31=0,\"\",'effRT Support'!$T31)","v":""},{"$f":"IF('effRT Support'!$B31=0,\"\",\"Fuel Type\")","v":""},{"$f":"IF('effRT Support'!$B31=0,\"\",'Project Information'!$D$44)","v":""},{"$f":"IF('effRT Support'!$B31=0,\"\",\"Installed Fixture Quantity\")","v":""},{"$f":"IF('effRT Support'!$B31=0,\"\",'effRT Support'!P30)","v":""}]
[{"$f":"IF('effRT Support'!$B32=0,\"\",IF('Project Information'!$D$33=\"Small Business\",\"SBL\",\"CILS\"))","v":""},{"$f":"IF('effRT Support'!$B32=0,\"\",IF('Project Information'!$K$2=\"\",\"\",'Project Information'!$K$2))","v":""},null,{"$f":"IF('effRT Support'!$B32=0,\"\",IF('Project Information'!$D$46=\"\",\"\",'Project Information'!$D$46))","v":""},{"$f":"IF('effRT Support'!$B32=0,\"\",IF('Project Information'!$D$20=\"\",\"\",VLOOKUP('Project Information'!$D$20,'Other Data'!$B$159:$E$189,4,FALSE)))","v":""},{"$f":"IF('effRT Support'!$B32=0,\"\",IF('Project Information'!$D$31=\"\",\"\",'Project Information'!$D$31))","v":""},{"$f":"IF('effRT Support'!$B32=0,\"\",IF('Project Information'!$D$5=\"\",\"\",'Project Information'!$D$5))","v":""},null,null,{"$f":"IF('effRT Support'!$B32=0,\"\",IF('Project Information'!$D$20=\"\",\"\",VLOOKUP('Project Information'!$D$20,'Other Data'!$B$159:$E$189,2,FALSE)))","v":""},{"$f":"IF('effRT Support'!$B32=0,\"\",IF('Project Information'!$D$20=\"\",\"\",VLOOKUP('Project Information'!$D$20,'Other Data'!$B$159:$E$189,3,FALSE)))","v":""},{"$f":"IF('effRT Support'!$B32=0,\"\",\"Existing\")","v":""},null,{"$f":"IF('effRT Support'!$B32=0,\"\",IF('Project Information'!$D$21=\"\",\"\",'Project Information'!$D$21))","v":""},{"$f":"IF('effRT Support'!$B32=0,\"\",IF('Project Information'!$D$48=\"\",\"\",'Project Information'!$D$48))","v":""},{"$f":"IF('effRT Support'!$B32=0,\"\",\"\")","v":""},{"$f":"IF('effRT Support'!$B32=0,\"\",\"\")","v":""},{"$f":"IF('effRT Support'!$B32=0,\"\",\"\")","v":""},{"$f":"IF('effRT Support'!$B32=0,\"\",\"\")","v":""},{"$f":"IF('effRT Support'!$B32=0,\"\",IF('Project Information'!$D$13=\"\",\"\",'Project Information'!$D$13))","v":""},{"$f":"IF('effRT Support'!$B32=0,\"\",IF('Project Information'!$E$13=\"\",\"\",'Project Information'!$E$13))","v":""},{"$f":"IF('effRT Support'!$B32=0,\"\",IF('Project Information'!$D$14=\"\",\"\",'Project Information'!$D$14))","v":""},{"$f":"IF('effRT Support'!$B32=0,\"\",IF('Project Information'!$D$15=\"\",\"\",'Project Information'!$D$15))","v":""},{"$f":"IF('effRT Support'!$B32=0,\"\",IF('Project Information'!$D$16=\"\",\"\",'Project Information'!$D$16))","v":""},null,{"$f":"IF('effRT Support'!$B32=0,\"\",'Project Information'!$D$18)","v":""},{"$f":"IF('effRT Support'!$B32=0,\"\",IF('Project Information'!$D$23=\"\",\"\",'Project Information'!$D$23))","v":""},{"$f":"IF('effRT Support'!$B32=0,\"\",IF('Project Information'!$D$24=\"\",\"\",'Project Information'!$D$24))","v":""},{"$f":"IF('effRT Support'!$B32=0,\"\",IF('Project Information'!$D$25=\"\",\"\",'Project Information'!$D$25))","v":""},{"$f":"IF('effRT Support'!$B32=0,\"\",IF('Project Information'!$E$25=\"\",\"\",'Project Information'!$E$25))","v":""},{"$f":"IF('effRT Support'!$B32=0,\"\",IF('Project Information'!$F$25=\"\",\"\",'Project Information'!$F$25))","v":""},{"$f":"IF('effRT Support'!$B32=0,\"\",IF('Project Information'!$D$27=\"\",\"Y\",\"N\"))","v":""},{"$f":"IF('effRT Support'!$B32=0,\"\",IF('Project Information'!$D$27=\"\",\"\",'Project Information'!$D$27))","v":""},{"$f":"IF('effRT Support'!$B32=0,\"\",IF('Project Information'!$D$28=\"\",\"\",'Project Information'!$D$28))","v":""},{"$f":"IF('effRT Support'!$B32=0,\"\",IF('Project Information'!$D$29=\"\",\"\",'Project Information'!$D$29))","v":""},{"$f":"IF('effRT Support'!$B32=0,\"\",IF('Project Information'!$E$29=\"\",\"\",'Project Information'!$E$29))","v":""},{"$f":"IF('effRT Support'!$B32=0,\"\",IF('Project Information'!$F$29=\"\",\"\",'Project Information'!$F$29))","v":""},{"$f":"IF('effRT Support'!$B32=0,\"\",\"\")","v":""},{"$f":"IF('effRT Support'!$B32=0,\"\",\"\")","v":""},{"$f":"IF('effRT Support'!$B32=0,\"\",IF('Project Information'!$D$36=\"\",\"\",'Project Information'!$D$36))","v":""},{"$f":"IF('effRT Support'!$B32=0,\"\",IF('Project Information'!$D$42=\"\",\"\",'Project Information'!$D$42))","v":""},{"$f":"IF('effRT Support'!$B32=0,\"\",'effRT Support'!$D32)","v":""},{"$f":"IF('effRT Support'!$B32=0,\"\",'effRT Support'!$L32)","v":""},{"$f":"IF('effRT Support'!$B32=0,\"\",'effRT Support'!$N32)","v":""},null,null,{"$f":"IF('effRT Support'!$B32=0,\"\",'effRT Support'!$P32)","v":""},{"$f":"IF('effRT Support'!$B32=0,\"\",'effRT Support'!$Q32)","v":""},{"$f":"IF('effRT Support'!$B32=0,\"\",'effRT Support'!U32)","v":""},{"$f":"IF('effRT Support'!$B32=0,\"\",'effRT Support'!V32)","v":""},{"$f":"IF('effRT Support'!$B32=0,\"\",'effRT Support'!W32)","v":""},{"$f":"IF('effRT Support'!$B32=0,\"\",'effRT Support'!X32)","v":""},{"$f":"IF('effRT Support'!$B32=0,\"\",'effRT Support'!Y32)","v":""},{"$f":"IF('effRT Support'!$B32=0,\"\",'effRT Support'!Z32*10)","v":""},{"$f":"IF('effRT Support'!$B32=0,\"\",'effRT Support'!AA32)","v":""},{"$f":"IF('effRT Support'!$B32=0,\"\",'effRT Support'!AB32)","v":""},{"$f":"IF('effRT Support'!$B32=0,\"\",'effRT Support'!AC32)","v":""},{"$f":"IF('effRT Support'!$B32=0,\"\",'effRT Support'!AD32)","v":""},{"$f":"IF('effRT Support'!$B32=0,\"\",'effRT Support'!AE32)","v":""},{"$f":"IF('effRT Support'!$B32=0,\"\",\"Hours Actual or Deemed\")","v":""},{"$f":"IF('effRT Support'!$B32=0,\"\",'effRT Support'!$F32)","v":""},{"$f":"IF('effRT Support'!$B32=0,\"\",\"Wattage Actual or Deemed\")","v":""},{"$f":"IF('effRT Support'!$B32=0,\"\",IF('Project Information'!$D$33=\"Pay For Performance\",\"Actual\",\"Deemed\"))","v":""},{"$f":"IF('effRT Support'!$B32=0,\"\",\"Cost Actual or Deemed\")","v":""},{"$f":"IF('effRT Support'!$B32=0,\"\",IF('Project Information'!$D$33=\"Pay For Performance\",\"Actual\",\"Deemed\"))","v":""},{"$f":"IF('effRT Support'!$B32=0,\"\",\"Location\")","v":""},{"$f":"IF('effRT Support'!$B32=0,\"\",'effRT Support'!$E32)","v":""},{"$f":"IF('effRT Support'!$B32=0,\"\",\"Space Type\")","v":""},{"$f":"IF('effRT Support'!$B32=0,\"\",'effRT Support'!$G32)","v":""},{"$f":"IF('effRT Support'!$B32=0,\"\",\"Existing Fixture Description\")","v":""},{"$f":"IF('effRT Support'!$B32=0,\"\",'effRT Support'!$H32)","v":""},{"$f":"IF('effRT Support'!$B32=0,\"\",\"Existing Fixture Quantity\")","v":""},{"$f":"IF('effRT Support'!$B32=0,\"\",'effRT Support'!$I32)","v":""},{"$f":"IF('effRT Support'!$B32=0,\"\",\"Existing Fixture Wattage\")","v":""},{"$f":"IF('effRT Support'!$B32=0,\"\",'effRT Support'!$J32)","v":""},{"$f":"IF('effRT Support'!$B32=0,\"\",\"Annual Hours of Operation\")","v":""},{"$f":"IF('effRT Support'!$B32=0,\"\",'effRT Support'!$K32)","v":""},{"$f":"IF('effRT Support'!$B32=0,\"\",\"Installed Fixture Description\")","v":""},{"$f":"IF('effRT Support'!$B32=0,\"\",'effRT Support'!$M32)","v":""},{"$f":"IF('effRT Support'!$B32=0,\"\",\"Installed Fixture Wattage\")","v":""},{"$f":"IF('effRT Support'!$B32=0,\"\",'effRT Support'!$O32)","v":""},{"$f":"IF('effRT Support'!$B32=0,\"\",\"Material Cost\")","v":""},{"$f":"IF('effRT Support'!$B32=0,\"\",'effRT Support'!$R32)","v":""},{"$f":"IF('effRT Support'!$B32=0,\"\",\"Labor Cost\")","v":""},{"$f":"IF('effRT Support'!$B32=0,\"\",'effRT Support'!$S32)","v":""},{"$f":"IF('effRT Support'!$B32=0,\"\",\"Ancillary Costs - Measure Specific\")","v":""},{"$f":"IF('effRT Support'!$B32=0,\"\",'effRT Support'!$T32)","v":""},{"$f":"IF('effRT Support'!$B32=0,\"\",\"Fuel Type\")","v":""},{"$f":"IF('effRT Support'!$B32=0,\"\",'Project Information'!$D$44)","v":""}]
[{"$f":"IF('effRT Support'!$B33=0,\"\",IF('Project Information'!$D$33=\"Small Business\",\"SBL\",\"CILS\"))","v":""},{"$f":"IF('effRT Support'!$B33=0,\"\",IF('Project Information'!$K$2=\"\",\"\",'Project Information'!$K$2))","v":""},null,{"$f":"IF('effRT Support'!$B33=0,\"\",IF('Project Information'!$D$46=\"\",\"\",'Project Information'!$D$46))","v":""},{"$f":"IF('effRT Support'!$B33=0,\"\",IF('Project Information'!$D$20=\"\",\"\",VLOOKUP('Project Information'!$D$20,'Other Data'!$B$159:$E$189,4,FALSE)))","v":""},{"$f":"IF('effRT Support'!$B33=0,\"\",IF('Project Information'!$D$31=\"\",\"\",'Project Information'!$D$31))","v":""},{"$f":"IF('effRT Support'!$B33=0,\"\",IF('Project Information'!$D$5=\"\",\"\",'Project Information'!$D$5))","v":""},null,null,{"$f":"IF('effRT Support'!$B33=0,\"\",IF('Project Information'!$D$20=\"\",\"\",VLOOKUP('Project Information'!$D$20,'Other Data'!$B$159:$E$189,2,FALSE)))","v":""},{"$f":"IF('effRT Support'!$B33=0,\"\",IF('Project Information'!$D$20=\"\",\"\",VLOOKUP('Project Information'!$D$20,'Other Data'!$B$159:$E$189,3,FALSE)))","v":""},{"$f":"IF('effRT Support'!$B33=0,\"\",\"Existing\")","v":""},null,{"$f":"IF('effRT Support'!$B33=0,\"\",IF('Project Information'!$D$21=\"\",\"\",'Project Information'!$D$21))","v":""},{"$f":"IF('effRT Support'!$B33=0,\"\",IF('Project Information'!$D$48=\"\",\"\",'Project Information'!$D$48))","v":""},{"$f":"IF('effRT Support'!$B33=0,\"\",\"\")","v":""},{"$f":"IF('effRT Support'!$B33=0,\"\",\"\")","v":""},{"$f":"IF('effRT Support'!$B33=0,\"\",\"\")","v":""},{"$f":"IF('effRT Support'!$B33=0,\"\",\"\")","v":""},{"$f":"IF('effRT Support'!$B33=0,\"\",IF('Project Information'!$D$13=\"\",\"\",'Project Information'!$D$13))","v":""},{"$f":"IF('effRT Support'!$B33=0,\"\",IF('Project Information'!$E$13=\"\",\"\",'Project Information'!$E$13))","v":""},{"$f":"IF('effRT Support'!$B33=0,\"\",IF('Project Information'!$D$14=\"\",\"\",'Project Information'!$D$14))","v":""},{"$f":"IF('effRT Support'!$B33=0,\"\",IF('Project Information'!$D$15=\"\",\"\",'Project Information'!$D$15))","v":""},{"$f":"IF('effRT Support'!$B33=0,\"\",IF('Project Information'!$D$16=\"\",\"\",'Project Information'!$D$16))","v":""},null,{"$f":"IF('effRT Support'!$B33=0,\"\",'Project Information'!$D$18)","v":""},{"$f":"IF('effRT Support'!$B33=0,\"\",IF('Project Information'!$D$23=\"\",\"\",'Project Information'!$D$23))","v":""},{"$f":"IF('effRT Support'!$B33=0,\"\",IF('Project Information'!$D$24=\"\",\"\",'Project Information'!$D$24))","v":""},{"$f":"IF('effRT Support'!$B33=0,\"\",IF('Project Information'!$D$25=\"\",\"\",'Project Information'!$D$25))","v":""},{"$f":"IF('effRT Support'!$B33=0,\"\",IF('Project Information'!$E$25=\"\",\"\",'Project Information'!$E$25))","v":""},{"$f":"IF('effRT Support'!$B33=0,\"\",IF('Project Information'!$F$25=\"\",\"\",'Project Information'!$F$25))","v":""},{"$f":"IF('effRT Support'!$B33=0,\"\",IF('Project Information'!$D$27=\"\",\"Y\",\"N\"))","v":""},{"$f":"IF('effRT Support'!$B33=0,\"\",IF('Project Information'!$D$27=\"\",\"\",'Project Information'!$D$27))","v":""},{"$f":"IF('effRT Support'!$B33=0,\"\",IF('Project Information'!$D$28=\"\",\"\",'Project Information'!$D$28))","v":""},{"$f":"IF('effRT Support'!$B33=0,\"\",IF('Project Information'!$D$29=\"\",\"\",'Project Information'!$D$29))","v":""},{"$f":"IF('effRT Support'!$B33=0,\"\",IF('Project Information'!$E$29=\"\",\"\",'Project Information'!$E$29))","v":""},{"$f":"IF('effRT Support'!$B33=0,\"\",IF('Project Information'!$F$29=\"\",\"\",'Project Information'!$F$29))","v":""},{"$f":"IF('effRT Support'!$B33=0,\"\",\"\")","v":""},{"$f":"IF('effRT Support'!$B33=0,\"\",\"\")","v":""},{"$f":"IF('effRT Support'!$B33=0,\"\",IF('Project Information'!$D$36=\"\",\"\",'Project Information'!$D$36))","v":""},{"$f":"IF('effRT Support'!$B33=0,\"\",IF('Project Information'!$D$42=\"\",\"\",'Project Information'!$D$42))","v":""},{"$f":"IF('effRT Support'!$B33=0,\"\",'effRT Support'!$D33)","v":""},{"$f":"IF('effRT Support'!$B33=0,\"\",'effRT Support'!$L33)","v":""},{"$f":"IF('effRT Support'!$B33=0,\"\",'effRT Support'!$N33)","v":""},null,null,{"$f":"IF('effRT Support'!$B33=0,\"\",'effRT Support'!$P33)","v":""},{"$f":"IF('effRT Support'!$B33=0,\"\",'effRT Support'!$Q33)","v":""},{"$f":"IF('effRT Support'!$B33=0,\"\",'effRT Support'!U33)","v":""},{"$f":"IF('effRT Support'!$B33=0,\"\",'effRT Support'!V33)","v":""},{"$f":"IF('effRT Support'!$B33=0,\"\",'effRT Support'!W33)","v":""},{"$f":"IF('effRT Support'!$B33=0,\"\",'effRT Support'!X33)","v":""},{"$f":"IF('effRT Support'!$B33=0,\"\",'effRT Support'!Y33)","v":""},{"$f":"IF('effRT Support'!$B33=0,\"\",'effRT Support'!Z33*10)","v":""},{"$f":"IF('effRT Support'!$B33=0,\"\",'effRT Support'!AA33)","v":""},{"$f":"IF('effRT Support'!$B33=0,\"\",'effRT Support'!AB33)","v":""},{"$f":"IF('effRT Support'!$B33=0,\"\",'effRT Support'!AC33)","v":""},{"$f":"IF('effRT Support'!$B33=0,\"\",'effRT Support'!AD33)","v":""},{"$f":"IF('effRT Support'!$B33=0,\"\",'effRT Support'!AE33)","v":""},{"$f":"IF('effRT Support'!$B33=0,\"\",\"Hours Actual or Deemed\")","v":""},{"$f":"IF('effRT Support'!$B33=0,\"\",'effRT Support'!$F33)","v":""},{"$f":"IF('effRT Support'!$B33=0,\"\",\"Wattage Actual or Deemed\")","v":""},{"$f":"IF('effRT Support'!$B33=0,\"\",IF('Project Information'!$D$33=\"Pay For Performance\",\"Actual\",\"Deemed\"))","v":""},{"$f":"IF('effRT Support'!$B33=0,\"\",\"Cost Actual or Deemed\")","v":""},{"$f":"IF('effRT Support'!$B33=0,\"\",IF('Project Information'!$D$33=\"Pay For Performance\",\"Actual\",\"Deemed\"))","v":""},{"$f":"IF('effRT Support'!$B33=0,\"\",\"Location\")","v":""},{"$f":"IF('effRT Support'!$B33=0,\"\",'effRT Support'!$E33)","v":""},{"$f":"IF('effRT Support'!$B33=0,\"\",\"Space Type\")","v":""},{"$f":"IF('effRT Support'!$B33=0,\"\",'effRT Support'!$G33)","v":""},{"$f":"IF('effRT Support'!$B33=0,\"\",\"Existing Fixture Description\")","v":""},{"$f":"IF('effRT Support'!$B33=0,\"\",'effRT Support'!$H33)","v":""},{"$f":"IF('effRT Support'!$B33=0,\"\",\"Existing Fixture Quantity\")","v":""},{"$f":"IF('effRT Support'!$B33=0,\"\",'effRT Support'!$I33)","v":""},{"$f":"IF('effRT Support'!$B33=0,\"\",\"Existing Fixture Wattage\")","v":""},{"$f":"IF('effRT Support'!$B33=0,\"\",'effRT Support'!$J33)","v":""},{"$f":"IF('effRT Support'!$B33=0,\"\",\"Annual Hours of Operation\")","v":""},{"$f":"IF('effRT Support'!$B33=0,\"\",'effRT Support'!$K33)","v":""},{"$f":"IF('effRT Support'!$B33=0,\"\",\"Installed Fixture Description\")","v":""},{"$f":"IF('effRT Support'!$B33=0,\"\",'effRT Support'!$M33)","v":""},{"$f":"IF('effRT Support'!$B33=0,\"\",\"Installed Fixture Wattage\")","v":""},{"$f":"IF('effRT Support'!$B33=0,\"\",'effRT Support'!$O33)","v":""},{"$f":"IF('effRT Support'!$B33=0,\"\",\"Material Cost\")","v":""},{"$f":"IF('effRT Support'!$B33=0,\"\",'effRT Support'!$R33)","v":""},{"$f":"IF('effRT Support'!$B33=0,\"\",\"Labor Cost\")","v":""},{"$f":"IF('effRT Support'!$B33=0,\"\",'effRT Support'!$S33)","v":""},{"$f":"IF('effRT Support'!$B33=0,\"\",\"Ancillary Costs - Measure Specific\")","v":""},{"$f":"IF('effRT Support'!$B33=0,\"\",'effRT Support'!$T33)","v":""},{"$f":"IF('effRT Support'!$B33=0,\"\",\"Fuel Type\")","v":""},{"$f":"IF('effRT Support'!$B33=0,\"\",'Project Information'!$D$44)","v":""},{"$f":"IF('effRT Support'!$B33=0,\"\",\"Installed Fixture Quantity\")","v":""},{"$f":"IF('effRT Support'!$B33=0,\"\",'effRT Support'!P32)","v":""}]
[{"$f":"IF('effRT Support'!$B34=0,\"\",IF('Project Information'!$D$33=\"Small Business\",\"SBL\",\"CILS\"))","v":""},{"$f":"IF('effRT Support'!$B34=0,\"\",IF('Project Information'!$K$2=\"\",\"\",'Project Information'!$K$2))","v":""},null,{"$f":"IF('effRT Support'!$B34=0,\"\",IF('Project Information'!$D$46=\"\",\"\",'Project Information'!$D$46))","v":""},{"$f":"IF('effRT Support'!$B34=0,\"\",IF('Project Information'!$D$20=\"\",\"\",VLOOKUP('Project Information'!$D$20,'Other Data'!$B$159:$E$189,4,FALSE)))","v":""},{"$f":"IF('effRT Support'!$B34=0,\"\",IF('Project Information'!$D$31=\"\",\"\",'Project Information'!$D$31))","v":""},{"$f":"IF('effRT Support'!$B34=0,\"\",IF('Project Information'!$D$5=\"\",\"\",'Project Information'!$D$5))","v":""},null,null,{"$f":"IF('effRT Support'!$B34=0,\"\",IF('Project Information'!$D$20=\"\",\"\",VLOOKUP('Project Information'!$D$20,'Other Data'!$B$159:$E$189,2,FALSE)))","v":""},{"$f":"IF('effRT Support'!$B34=0,\"\",IF('Project Information'!$D$20=\"\",\"\",VLOOKUP('Project Information'!$D$20,'Other Data'!$B$159:$E$189,3,FALSE)))","v":""},{"$f":"IF('effRT Support'!$B34=0,\"\",\"Existing\")","v":""},null,{"$f":"IF('effRT Support'!$B34=0,\"\",IF('Project Information'!$D$21=\"\",\"\",'Project Information'!$D$21))","v":""},{"$f":"IF('effRT Support'!$B34=0,\"\",IF('Project Information'!$D$48=\"\",\"\",'Project Information'!$D$48))","v":""},{"$f":"IF('effRT Support'!$B34=0,\"\",\"\")","v":""},{"$f":"IF('effRT Support'!$B34=0,\"\",\"\")","v":""},{"$f":"IF('effRT Support'!$B34=0,\"\",\"\")","v":""},{"$f":"IF('effRT Support'!$B34=0,\"\",\"\")","v":""},{"$f":"IF('effRT Support'!$B34=0,\"\",IF('Project Information'!$D$13=\"\",\"\",'Project Information'!$D$13))","v":""},{"$f":"IF('effRT Support'!$B34=0,\"\",IF('Project Information'!$E$13=\"\",\"\",'Project Information'!$E$13))","v":""},{"$f":"IF('effRT Support'!$B34=0,\"\",IF('Project Information'!$D$14=\"\",\"\",'Project Information'!$D$14))","v":""},{"$f":"IF('effRT Support'!$B34=0,\"\",IF('Project Information'!$D$15=\"\",\"\",'Project Information'!$D$15))","v":""},{"$f":"IF('effRT Support'!$B34=0,\"\",IF('Project Information'!$D$16=\"\",\"\",'Project Information'!$D$16))","v":""},null,{"$f":"IF('effRT Support'!$B34=0,\"\",'Project Information'!$D$18)","v":""},{"$f":"IF('effRT Support'!$B34=0,\"\",IF('Project Information'!$D$23=\"\",\"\",'Project Information'!$D$23))","v":""},{"$f":"IF('effRT Support'!$B34=0,\"\",IF('Project Information'!$D$24=\"\",\"\",'Project Information'!$D$24))","v":""},{"$f":"IF('effRT Support'!$B34=0,\"\",IF('Project Information'!$D$25=\"\",\"\",'Project Information'!$D$25))","v":""},{"$f":"IF('effRT Support'!$B34=0,\"\",IF('Project Information'!$E$25=\"\",\"\",'Project Information'!$E$25))","v":""},{"$f":"IF('effRT Support'!$B34=0,\"\",IF('Project Information'!$F$25=\"\",\"\",'Project Information'!$F$25))","v":""},{"$f":"IF('effRT Support'!$B34=0,\"\",IF('Project Information'!$D$27=\"\",\"Y\",\"N\"))","v":""},{"$f":"IF('effRT Support'!$B34=0,\"\",IF('Project Information'!$D$27=\"\",\"\",'Project Information'!$D$27))","v":""},{"$f":"IF('effRT Support'!$B34=0,\"\",IF('Project Information'!$D$28=\"\",\"\",'Project Information'!$D$28))","v":""},{"$f":"IF('effRT Support'!$B34=0,\"\",IF('Project Information'!$D$29=\"\",\"\",'Project Information'!$D$29))","v":""},{"$f":"IF('effRT Support'!$B34=0,\"\",IF('Project Information'!$E$29=\"\",\"\",'Project Information'!$E$29))","v":""},{"$f":"IF('effRT Support'!$B34=0,\"\",IF('Project Information'!$F$29=\"\",\"\",'Project Information'!$F$29))","v":""},{"$f":"IF('effRT Support'!$B34=0,\"\",\"\")","v":""},{"$f":"IF('effRT Support'!$B34=0,\"\",\"\")","v":""},{"$f":"IF('effRT Support'!$B34=0,\"\",IF('Project Information'!$D$36=\"\",\"\",'Project Information'!$D$36))","v":""},{"$f":"IF('effRT Support'!$B34=0,\"\",IF('Project Information'!$D$42=\"\",\"\",'Project Information'!$D$42))","v":""},{"$f":"IF('effRT Support'!$B34=0,\"\",'effRT Support'!$D34)","v":""},{"$f":"IF('effRT Support'!$B34=0,\"\",'effRT Support'!$L34)","v":""},{"$f":"IF('effRT Support'!$B34=0,\"\",'effRT Support'!$N34)","v":""},null,null,{"$f":"IF('effRT Support'!$B34=0,\"\",'effRT Support'!$P34)","v":""},{"$f":"IF('effRT Support'!$B34=0,\"\",'effRT Support'!$Q34)","v":""},{"$f":"IF('effRT Support'!$B34=0,\"\",'effRT Support'!U34)","v":""},{"$f":"IF('effRT Support'!$B34=0,\"\",'effRT Support'!V34)","v":""},{"$f":"IF('effRT Support'!$B34=0,\"\",'effRT Support'!W34)","v":""},{"$f":"IF('effRT Support'!$B34=0,\"\",'effRT Support'!X34)","v":""},{"$f":"IF('effRT Support'!$B34=0,\"\",'effRT Support'!Y34)","v":""},{"$f":"IF('effRT Support'!$B34=0,\"\",'effRT Support'!Z34*10)","v":""},{"$f":"IF('effRT Support'!$B34=0,\"\",'effRT Support'!AA34)","v":""},{"$f":"IF('effRT Support'!$B34=0,\"\",'effRT Support'!AB34)","v":""},{"$f":"IF('effRT Support'!$B34=0,\"\",'effRT Support'!AC34)","v":""},{"$f":"IF('effRT Support'!$B34=0,\"\",'effRT Support'!AD34)","v":""},{"$f":"IF('effRT Support'!$B34=0,\"\",'effRT Support'!AE34)","v":""},{"$f":"IF('effRT Support'!$B34=0,\"\",\"Hours Actual or Deemed\")","v":""},{"$f":"IF('effRT Support'!$B34=0,\"\",'effRT Support'!$F34)","v":""},{"$f":"IF('effRT Support'!$B34=0,\"\",\"Wattage Actual or Deemed\")","v":""},{"$f":"IF('effRT Support'!$B34=0,\"\",IF('Project Information'!$D$33=\"Pay For Performance\",\"Actual\",\"Deemed\"))","v":""},{"$f":"IF('effRT Support'!$B34=0,\"\",\"Cost Actual or Deemed\")","v":""},{"$f":"IF('effRT Support'!$B34=0,\"\",IF('Project Information'!$D$33=\"Pay For Performance\",\"Actual\",\"Deemed\"))","v":""},{"$f":"IF('effRT Support'!$B34=0,\"\",\"Location\")","v":""},{"$f":"IF('effRT Support'!$B34=0,\"\",'effRT Support'!$E34)","v":""},{"$f":"IF('effRT Support'!$B34=0,\"\",\"Space Type\")","v":""},{"$f":"IF('effRT Support'!$B34=0,\"\",'effRT Support'!$G34)","v":""},{"$f":"IF('effRT Support'!$B34=0,\"\",\"Existing Fixture Description\")","v":""},{"$f":"IF('effRT Support'!$B34=0,\"\",'effRT Support'!$H34)","v":""},{"$f":"IF('effRT Support'!$B34=0,\"\",\"Existing Fixture Quantity\")","v":""},{"$f":"IF('effRT Support'!$B34=0,\"\",'effRT Support'!$I34)","v":""},{"$f":"IF('effRT Support'!$B34=0,\"\",\"Existing Fixture Wattage\")","v":""},{"$f":"IF('effRT Support'!$B34=0,\"\",'effRT Support'!$J34)","v":""},{"$f":"IF('effRT Support'!$B34=0,\"\",\"Annual Hours of Operation\")","v":""},{"$f":"IF('effRT Support'!$B34=0,\"\",'effRT Support'!$K34)","v":""},{"$f":"IF('effRT Support'!$B34=0,\"\",\"Installed Fixture Description\")","v":""},{"$f":"IF('effRT Support'!$B34=0,\"\",'effRT Support'!$M34)","v":""},{"$f":"IF('effRT Support'!$B34=0,\"\",\"Installed Fixture Wattage\")","v":""},{"$f":"IF('effRT Support'!$B34=0,\"\",'effRT Support'!$O34)","v":""},{"$f":"IF('effRT Support'!$B34=0,\"\",\"Material Cost\")","v":""},{"$f":"IF('effRT Support'!$B34=0,\"\",'effRT Support'!$R34)","v":""},{"$f":"IF('effRT Support'!$B34=0,\"\",\"Labor Cost\")","v":""},{"$f":"IF('effRT Support'!$B34=0,\"\",'effRT Support'!$S34)","v":""},{"$f":"IF('effRT Support'!$B34=0,\"\",\"Ancillary Costs - Measure Specific\")","v":""},{"$f":"IF('effRT Support'!$B34=0,\"\",'effRT Support'!$T34)","v":""},{"$f":"IF('effRT Support'!$B34=0,\"\",\"Fuel Type\")","v":""},{"$f":"IF('effRT Support'!$B34=0,\"\",'Project Information'!$D$44)","v":""}]
[{"$f":"IF('effRT Support'!$B35=0,\"\",IF('Project Information'!$D$33=\"Small Business\",\"SBL\",\"CILS\"))","v":""},{"$f":"IF('effRT Support'!$B35=0,\"\",IF('Project Information'!$K$2=\"\",\"\",'Project Information'!$K$2))","v":""},null,{"$f":"IF('effRT Support'!$B35=0,\"\",IF('Project Information'!$D$46=\"\",\"\",'Project Information'!$D$46))","v":""},{"$f":"IF('effRT Support'!$B35=0,\"\",IF('Project Information'!$D$20=\"\",\"\",VLOOKUP('Project Information'!$D$20,'Other Data'!$B$159:$E$189,4,FALSE)))","v":""},{"$f":"IF('effRT Support'!$B35=0,\"\",IF('Project Information'!$D$31=\"\",\"\",'Project Information'!$D$31))","v":""},{"$f":"IF('effRT Support'!$B35=0,\"\",IF('Project Information'!$D$5=\"\",\"\",'Project Information'!$D$5))","v":""},null,null,{"$f":"IF('effRT Support'!$B35=0,\"\",IF('Project Information'!$D$20=\"\",\"\",VLOOKUP('Project Information'!$D$20,'Other Data'!$B$159:$E$189,2,FALSE)))","v":""},{"$f":"IF('effRT Support'!$B35=0,\"\",IF('Project Information'!$D$20=\"\",\"\",VLOOKUP('Project Information'!$D$20,'Other Data'!$B$159:$E$189,3,FALSE)))","v":""},{"$f":"IF('effRT Support'!$B35=0,\"\",\"Existing\")","v":""},null,{"$f":"IF('effRT Support'!$B35=0,\"\",IF('Project Information'!$D$21=\"\",\"\",'Project Information'!$D$21))","v":""},{"$f":"IF('effRT Support'!$B35=0,\"\",IF('Project Information'!$D$48=\"\",\"\",'Project Information'!$D$48))","v":""},{"$f":"IF('effRT Support'!$B35=0,\"\",\"\")","v":""},{"$f":"IF('effRT Support'!$B35=0,\"\",\"\")","v":""},{"$f":"IF('effRT Support'!$B35=0,\"\",\"\")","v":""},{"$f":"IF('effRT Support'!$B35=0,\"\",\"\")","v":""},{"$f":"IF('effRT Support'!$B35=0,\"\",IF('Project Information'!$D$13=\"\",\"\",'Project Information'!$D$13))","v":""},{"$f":"IF('effRT Support'!$B35=0,\"\",IF('Project Information'!$E$13=\"\",\"\",'Project Information'!$E$13))","v":""},{"$f":"IF('effRT Support'!$B35=0,\"\",IF('Project Information'!$D$14=\"\",\"\",'Project Information'!$D$14))","v":""},{"$f":"IF('effRT Support'!$B35=0,\"\",IF('Project Information'!$D$15=\"\",\"\",'Project Information'!$D$15))","v":""},{"$f":"IF('effRT Support'!$B35=0,\"\",IF('Project Information'!$D$16=\"\",\"\",'Project Information'!$D$16))","v":""},null,{"$f":"IF('effRT Support'!$B35=0,\"\",'Project Information'!$D$18)","v":""},{"$f":"IF('effRT Support'!$B35=0,\"\",IF('Project Information'!$D$23=\"\",\"\",'Project Information'!$D$23))","v":""},{"$f":"IF('effRT Support'!$B35=0,\"\",IF('Project Information'!$D$24=\"\",\"\",'Project Information'!$D$24))","v":""},{"$f":"IF('effRT Support'!$B35=0,\"\",IF('Project Information'!$D$25=\"\",\"\",'Project Information'!$D$25))","v":""},{"$f":"IF('effRT Support'!$B35=0,\"\",IF('Project Information'!$E$25=\"\",\"\",'Project Information'!$E$25))","v":""},{"$f":"IF('effRT Support'!$B35=0,\"\",IF('Project Information'!$F$25=\"\",\"\",'Project Information'!$F$25))","v":""},{"$f":"IF('effRT Support'!$B35=0,\"\",IF('Project Information'!$D$27=\"\",\"Y\",\"N\"))","v":""},{"$f":"IF('effRT Support'!$B35=0,\"\",IF('Project Information'!$D$27=\"\",\"\",'Project Information'!$D$27))","v":""},{"$f":"IF('effRT Support'!$B35=0,\"\",IF('Project Information'!$D$28=\"\",\"\",'Project Information'!$D$28))","v":""},{"$f":"IF('effRT Support'!$B35=0,\"\",IF('Project Information'!$D$29=\"\",\"\",'Project Information'!$D$29))","v":""},{"$f":"IF('effRT Support'!$B35=0,\"\",IF('Project Information'!$E$29=\"\",\"\",'Project Information'!$E$29))","v":""},{"$f":"IF('effRT Support'!$B35=0,\"\",IF('Project Information'!$F$29=\"\",\"\",'Project Information'!$F$29))","v":""},{"$f":"IF('effRT Support'!$B35=0,\"\",\"\")","v":""},{"$f":"IF('effRT Support'!$B35=0,\"\",\"\")","v":""},{"$f":"IF('effRT Support'!$B35=0,\"\",IF('Project Information'!$D$36=\"\",\"\",'Project Information'!$D$36))","v":""},{"$f":"IF('effRT Support'!$B35=0,\"\",IF('Project Information'!$D$42=\"\",\"\",'Project Information'!$D$42))","v":""},{"$f":"IF('effRT Support'!$B35=0,\"\",'effRT Support'!$D35)","v":""},{"$f":"IF('effRT Support'!$B35=0,\"\",'effRT Support'!$L35)","v":""},{"$f":"IF('effRT Support'!$B35=0,\"\",'effRT Support'!$N35)","v":""},null,null,{"$f":"IF('effRT Support'!$B35=0,\"\",'effRT Support'!$P35)","v":""},{"$f":"IF('effRT Support'!$B35=0,\"\",'effRT Support'!$Q35)","v":""},{"$f":"IF('effRT Support'!$B35=0,\"\",'effRT Support'!U35)","v":""},{"$f":"IF('effRT Support'!$B35=0,\"\",'effRT Support'!V35)","v":""},{"$f":"IF('effRT Support'!$B35=0,\"\",'effRT Support'!W35)","v":""},{"$f":"IF('effRT Support'!$B35=0,\"\",'effRT Support'!X35)","v":""},{"$f":"IF('effRT Support'!$B35=0,\"\",'effRT Support'!Y35)","v":""},{"$f":"IF('effRT Support'!$B35=0,\"\",'effRT Support'!Z35*10)","v":""},{"$f":"IF('effRT Support'!$B35=0,\"\",'effRT Support'!AA35)","v":""},{"$f":"IF('effRT Support'!$B35=0,\"\",'effRT Support'!AB35)","v":""},{"$f":"IF('effRT Support'!$B35=0,\"\",'effRT Support'!AC35)","v":""},{"$f":"IF('effRT Support'!$B35=0,\"\",'effRT Support'!AD35)","v":""},{"$f":"IF('effRT Support'!$B35=0,\"\",'effRT Support'!AE35)","v":""},{"$f":"IF('effRT Support'!$B35=0,\"\",\"Hours Actual or Deemed\")","v":""},{"$f":"IF('effRT Support'!$B35=0,\"\",'effRT Support'!$F35)","v":""},{"$f":"IF('effRT Support'!$B35=0,\"\",\"Wattage Actual or Deemed\")","v":""},{"$f":"IF('effRT Support'!$B35=0,\"\",IF('Project Information'!$D$33=\"Pay For Performance\",\"Actual\",\"Deemed\"))","v":""},{"$f":"IF('effRT Support'!$B35=0,\"\",\"Cost Actual or Deemed\")","v":""},{"$f":"IF('effRT Support'!$B35=0,\"\",IF('Project Information'!$D$33=\"Pay For Performance\",\"Actual\",\"Deemed\"))","v":""},{"$f":"IF('effRT Support'!$B35=0,\"\",\"Location\")","v":""},{"$f":"IF('effRT Support'!$B35=0,\"\",'effRT Support'!$E35)","v":""},{"$f":"IF('effRT Support'!$B35=0,\"\",\"Space Type\")","v":""},{"$f":"IF('effRT Support'!$B35=0,\"\",'effRT Support'!$G35)","v":""},{"$f":"IF('effRT Support'!$B35=0,\"\",\"Existing Fixture Description\")","v":""},{"$f":"IF('effRT Support'!$B35=0,\"\",'effRT Support'!$H35)","v":""},{"$f":"IF('effRT Support'!$B35=0,\"\",\"Existing Fixture Quantity\")","v":""},{"$f":"IF('effRT Support'!$B35=0,\"\",'effRT Support'!$I35)","v":""},{"$f":"IF('effRT Support'!$B35=0,\"\",\"Existing Fixture Wattage\")","v":""},{"$f":"IF('effRT Support'!$B35=0,\"\",'effRT Support'!$J35)","v":""},{"$f":"IF('effRT Support'!$B35=0,\"\",\"Annual Hours of Operation\")","v":""},{"$f":"IF('effRT Support'!$B35=0,\"\",'effRT Support'!$K35)","v":""},{"$f":"IF('effRT Support'!$B35=0,\"\",\"Installed Fixture Description\")","v":""},{"$f":"IF('effRT Support'!$B35=0,\"\",'effRT Support'!$M35)","v":""},{"$f":"IF('effRT Support'!$B35=0,\"\",\"Installed Fixture Wattage\")","v":""},{"$f":"IF('effRT Support'!$B35=0,\"\",'effRT Support'!$O35)","v":""},{"$f":"IF('effRT Support'!$B35=0,\"\",\"Material Cost\")","v":""},{"$f":"IF('effRT Support'!$B35=0,\"\",'effRT Support'!$R35)","v":""},{"$f":"IF('effRT Support'!$B35=0,\"\",\"Labor Cost\")","v":""},{"$f":"IF('effRT Support'!$B35=0,\"\",'effRT Support'!$S35)","v":""},{"$f":"IF('effRT Support'!$B35=0,\"\",\"Ancillary Costs - Measure Specific\")","v":""},{"$f":"IF('effRT Support'!$B35=0,\"\",'effRT Support'!$T35)","v":""},{"$f":"IF('effRT Support'!$B35=0,\"\",\"Fuel Type\")","v":""},{"$f":"IF('effRT Support'!$B35=0,\"\",'Project Information'!$D$44)","v":""},{"$f":"IF('effRT Support'!$B35=0,\"\",\"Installed Fixture Quantity\")","v":""},{"$f":"IF('effRT Support'!$B35=0,\"\",'effRT Support'!P34)","v":""}]
[{"$f":"IF('effRT Support'!$B36=0,\"\",IF('Project Information'!$D$33=\"Small Business\",\"SBL\",\"CILS\"))","v":""},{"$f":"IF('effRT Support'!$B36=0,\"\",IF('Project Information'!$K$2=\"\",\"\",'Project Information'!$K$2))","v":""},null,{"$f":"IF('effRT Support'!$B36=0,\"\",IF('Project Information'!$D$46=\"\",\"\",'Project Information'!$D$46))","v":""},{"$f":"IF('effRT Support'!$B36=0,\"\",IF('Project Information'!$D$20=\"\",\"\",VLOOKUP('Project Information'!$D$20,'Other Data'!$B$159:$E$189,4,FALSE)))","v":""},{"$f":"IF('effRT Support'!$B36=0,\"\",IF('Project Information'!$D$31=\"\",\"\",'Project Information'!$D$31))","v":""},{"$f":"IF('effRT Support'!$B36=0,\"\",IF('Project Information'!$D$5=\"\",\"\",'Project Information'!$D$5))","v":""},null,null,{"$f":"IF('effRT Support'!$B36=0,\"\",IF('Project Information'!$D$20=\"\",\"\",VLOOKUP('Project Information'!$D$20,'Other Data'!$B$159:$E$189,2,FALSE)))","v":""},{"$f":"IF('effRT Support'!$B36=0,\"\",IF('Project Information'!$D$20=\"\",\"\",VLOOKUP('Project Information'!$D$20,'Other Data'!$B$159:$E$189,3,FALSE)))","v":""},{"$f":"IF('effRT Support'!$B36=0,\"\",\"Existing\")","v":""},null,{"$f":"IF('effRT Support'!$B36=0,\"\",IF('Project Information'!$D$21=\"\",\"\",'Project Information'!$D$21))","v":""},{"$f":"IF('effRT Support'!$B36=0,\"\",IF('Project Information'!$D$48=\"\",\"\",'Project Information'!$D$48))","v":""},{"$f":"IF('effRT Support'!$B36=0,\"\",\"\")","v":""},{"$f":"IF('effRT Support'!$B36=0,\"\",\"\")","v":""},{"$f":"IF('effRT Support'!$B36=0,\"\",\"\")","v":""},{"$f":"IF('effRT Support'!$B36=0,\"\",\"\")","v":""},{"$f":"IF('effRT Support'!$B36=0,\"\",IF('Project Information'!$D$13=\"\",\"\",'Project Information'!$D$13))","v":""},{"$f":"IF('effRT Support'!$B36=0,\"\",IF('Project Information'!$E$13=\"\",\"\",'Project Information'!$E$13))","v":""},{"$f":"IF('effRT Support'!$B36=0,\"\",IF('Project Information'!$D$14=\"\",\"\",'Project Information'!$D$14))","v":""},{"$f":"IF('effRT Support'!$B36=0,\"\",IF('Project Information'!$D$15=\"\",\"\",'Project Information'!$D$15))","v":""},{"$f":"IF('effRT Support'!$B36=0,\"\",IF('Project Information'!$D$16=\"\",\"\",'Project Information'!$D$16))","v":""},null,{"$f":"IF('effRT Support'!$B36=0,\"\",'Project Information'!$D$18)","v":""},{"$f":"IF('effRT Support'!$B36=0,\"\",IF('Project Information'!$D$23=\"\",\"\",'Project Information'!$D$23))","v":""},{"$f":"IF('effRT Support'!$B36=0,\"\",IF('Project Information'!$D$24=\"\",\"\",'Project Information'!$D$24))","v":""},{"$f":"IF('effRT Support'!$B36=0,\"\",IF('Project Information'!$D$25=\"\",\"\",'Project Information'!$D$25))","v":""},{"$f":"IF('effRT Support'!$B36=0,\"\",IF('Project Information'!$E$25=\"\",\"\",'Project Information'!$E$25))","v":""},{"$f":"IF('effRT Support'!$B36=0,\"\",IF('Project Information'!$F$25=\"\",\"\",'Project Information'!$F$25))","v":""},{"$f":"IF('effRT Support'!$B36=0,\"\",IF('Project Information'!$D$27=\"\",\"Y\",\"N\"))","v":""},{"$f":"IF('effRT Support'!$B36=0,\"\",IF('Project Information'!$D$27=\"\",\"\",'Project Information'!$D$27))","v":""},{"$f":"IF('effRT Support'!$B36=0,\"\",IF('Project Information'!$D$28=\"\",\"\",'Project Information'!$D$28))","v":""},{"$f":"IF('effRT Support'!$B36=0,\"\",IF('Project Information'!$D$29=\"\",\"\",'Project Information'!$D$29))","v":""},{"$f":"IF('effRT Support'!$B36=0,\"\",IF('Project Information'!$E$29=\"\",\"\",'Project Information'!$E$29))","v":""},{"$f":"IF('effRT Support'!$B36=0,\"\",IF('Project Information'!$F$29=\"\",\"\",'Project Information'!$F$29))","v":""},{"$f":"IF('effRT Support'!$B36=0,\"\",\"\")","v":""},{"$f":"IF('effRT Support'!$B36=0,\"\",\"\")","v":""},{"$f":"IF('effRT Support'!$B36=0,\"\",IF('Project Information'!$D$36=\"\",\"\",'Project Information'!$D$36))","v":""},{"$f":"IF('effRT Support'!$B36=0,\"\",IF('Project Information'!$D$42=\"\",\"\",'Project Information'!$D$42))","v":""},{"$f":"IF('effRT Support'!$B36=0,\"\",'effRT Support'!$D36)","v":""},{"$f":"IF('effRT Support'!$B36=0,\"\",'effRT Support'!$L36)","v":""},{"$f":"IF('effRT Support'!$B36=0,\"\",'effRT Support'!$N36)","v":""},null,null,{"$f":"IF('effRT Support'!$B36=0,\"\",'effRT Support'!$P36)","v":""},{"$f":"IF('effRT Support'!$B36=0,\"\",'effRT Support'!$Q36)","v":""},{"$f":"IF('effRT Support'!$B36=0,\"\",'effRT Support'!U36)","v":""},{"$f":"IF('effRT Support'!$B36=0,\"\",'effRT Support'!V36)","v":""},{"$f":"IF('effRT Support'!$B36=0,\"\",'effRT Support'!W36)","v":""},{"$f":"IF('effRT Support'!$B36=0,\"\",'effRT Support'!X36)","v":""},{"$f":"IF('effRT Support'!$B36=0,\"\",'effRT Support'!Y36)","v":""},{"$f":"IF('effRT Support'!$B36=0,\"\",'effRT Support'!Z36*10)","v":""},{"$f":"IF('effRT Support'!$B36=0,\"\",'effRT Support'!AA36)","v":""},{"$f":"IF('effRT Support'!$B36=0,\"\",'effRT Support'!AB36)","v":""},{"$f":"IF('effRT Support'!$B36=0,\"\",'effRT Support'!AC36)","v":""},{"$f":"IF('effRT Support'!$B36=0,\"\",'effRT Support'!AD36)","v":""},{"$f":"IF('effRT Support'!$B36=0,\"\",'effRT Support'!AE36)","v":""},{"$f":"IF('effRT Support'!$B36=0,\"\",\"Hours Actual or Deemed\")","v":""},{"$f":"IF('effRT Support'!$B36=0,\"\",'effRT Support'!$F36)","v":""},{"$f":"IF('effRT Support'!$B36=0,\"\",\"Wattage Actual or Deemed\")","v":""},{"$f":"IF('effRT Support'!$B36=0,\"\",IF('Project Information'!$D$33=\"Pay For Performance\",\"Actual\",\"Deemed\"))","v":""},{"$f":"IF('effRT Support'!$B36=0,\"\",\"Cost Actual or Deemed\")","v":""},{"$f":"IF('effRT Support'!$B36=0,\"\",IF('Project Information'!$D$33=\"Pay For Performance\",\"Actual\",\"Deemed\"))","v":""},{"$f":"IF('effRT Support'!$B36=0,\"\",\"Location\")","v":""},{"$f":"IF('effRT Support'!$B36=0,\"\",'effRT Support'!$E36)","v":""},{"$f":"IF('effRT Support'!$B36=0,\"\",\"Space Type\")","v":""},{"$f":"IF('effRT Support'!$B36=0,\"\",'effRT Support'!$G36)","v":""},{"$f":"IF('effRT Support'!$B36=0,\"\",\"Existing Fixture Description\")","v":""},{"$f":"IF('effRT Support'!$B36=0,\"\",'effRT Support'!$H36)","v":""},{"$f":"IF('effRT Support'!$B36=0,\"\",\"Existing Fixture Quantity\")","v":""},{"$f":"IF('effRT Support'!$B36=0,\"\",'effRT Support'!$I36)","v":""},{"$f":"IF('effRT Support'!$B36=0,\"\",\"Existing Fixture Wattage\")","v":""},{"$f":"IF('effRT Support'!$B36=0,\"\",'effRT Support'!$J36)","v":""},{"$f":"IF('effRT Support'!$B36=0,\"\",\"Annual Hours of Operation\")","v":""},{"$f":"IF('effRT Support'!$B36=0,\"\",'effRT Support'!$K36)","v":""},{"$f":"IF('effRT Support'!$B36=0,\"\",\"Installed Fixture Description\")","v":""},{"$f":"IF('effRT Support'!$B36=0,\"\",'effRT Support'!$M36)","v":""},{"$f":"IF('effRT Support'!$B36=0,\"\",\"Installed Fixture Wattage\")","v":""},{"$f":"IF('effRT Support'!$B36=0,\"\",'effRT Support'!$O36)","v":""},{"$f":"IF('effRT Support'!$B36=0,\"\",\"Material Cost\")","v":""},{"$f":"IF('effRT Support'!$B36=0,\"\",'effRT Support'!$R36)","v":""},{"$f":"IF('effRT Support'!$B36=0,\"\",\"Labor Cost\")","v":""},{"$f":"IF('effRT Support'!$B36=0,\"\",'effRT Support'!$S36)","v":""},{"$f":"IF('effRT Support'!$B36=0,\"\",\"Ancillary Costs - Measure Specific\")","v":""},{"$f":"IF('effRT Support'!$B36=0,\"\",'effRT Support'!$T36)","v":""},{"$f":"IF('effRT Support'!$B36=0,\"\",\"Fuel Type\")","v":""},{"$f":"IF('effRT Support'!$B36=0,\"\",'Project Information'!$D$44)","v":""}]
[{"$f":"IF('effRT Support'!$B37=0,\"\",IF('Project Information'!$D$33=\"Small Business\",\"SBL\",\"CILS\"))","v":""},{"$f":"IF('effRT Support'!$B37=0,\"\",IF('Project Information'!$K$2=\"\",\"\",'Project Information'!$K$2))","v":""},null,{"$f":"IF('effRT Support'!$B37=0,\"\",IF('Project Information'!$D$46=\"\",\"\",'Project Information'!$D$46))","v":""},{"$f":"IF('effRT Support'!$B37=0,\"\",IF('Project Information'!$D$20=\"\",\"\",VLOOKUP('Project Information'!$D$20,'Other Data'!$B$159:$E$189,4,FALSE)))","v":""},{"$f":"IF('effRT Support'!$B37=0,\"\",IF('Project Information'!$D$31=\"\",\"\",'Project Information'!$D$31))","v":""},{"$f":"IF('effRT Support'!$B37=0,\"\",IF('Project Information'!$D$5=\"\",\"\",'Project Information'!$D$5))","v":""},null,null,{"$f":"IF('effRT Support'!$B37=0,\"\",IF('Project Information'!$D$20=\"\",\"\",VLOOKUP('Project Information'!$D$20,'Other Data'!$B$159:$E$189,2,FALSE)))","v":""},{"$f":"IF('effRT Support'!$B37=0,\"\",IF('Project Information'!$D$20=\"\",\"\",VLOOKUP('Project Information'!$D$20,'Other Data'!$B$159:$E$189,3,FALSE)))","v":""},{"$f":"IF('effRT Support'!$B37=0,\"\",\"Existing\")","v":""},null,{"$f":"IF('effRT Support'!$B37=0,\"\",IF('Project Information'!$D$21=\"\",\"\",'Project Information'!$D$21))","v":""},{"$f":"IF('effRT Support'!$B37=0,\"\",IF('Project Information'!$D$48=\"\",\"\",'Project Information'!$D$48))","v":""},{"$f":"IF('effRT Support'!$B37=0,\"\",\"\")","v":""},{"$f":"IF('effRT Support'!$B37=0,\"\",\"\")","v":""},{"$f":"IF('effRT Support'!$B37=0,\"\",\"\")","v":""},{"$f":"IF('effRT Support'!$B37=0,\"\",\"\")","v":""},{"$f":"IF('effRT Support'!$B37=0,\"\",IF('Project Information'!$D$13=\"\",\"\",'Project Information'!$D$13))","v":""},{"$f":"IF('effRT Support'!$B37=0,\"\",IF('Project Information'!$E$13=\"\",\"\",'Project Information'!$E$13))","v":""},{"$f":"IF('effRT Support'!$B37=0,\"\",IF('Project Information'!$D$14=\"\",\"\",'Project Information'!$D$14))","v":""},{"$f":"IF('effRT Support'!$B37=0,\"\",IF('Project Information'!$D$15=\"\",\"\",'Project Information'!$D$15))","v":""},{"$f":"IF('effRT Support'!$B37=0,\"\",IF('Project Information'!$D$16=\"\",\"\",'Project Information'!$D$16))","v":""},null,{"$f":"IF('effRT Support'!$B37=0,\"\",'Project Information'!$D$18)","v":""},{"$f":"IF('effRT Support'!$B37=0,\"\",IF('Project Information'!$D$23=\"\",\"\",'Project Information'!$D$23))","v":""},{"$f":"IF('effRT Support'!$B37=0,\"\",IF('Project Information'!$D$24=\"\",\"\",'Project Information'!$D$24))","v":""},{"$f":"IF('effRT Support'!$B37=0,\"\",IF('Project Information'!$D$25=\"\",\"\",'Project Information'!$D$25))","v":""},{"$f":"IF('effRT Support'!$B37=0,\"\",IF('Project Information'!$E$25=\"\",\"\",'Project Information'!$E$25))","v":""},{"$f":"IF('effRT Support'!$B37=0,\"\",IF('Project Information'!$F$25=\"\",\"\",'Project Information'!$F$25))","v":""},{"$f":"IF('effRT Support'!$B37=0,\"\",IF('Project Information'!$D$27=\"\",\"Y\",\"N\"))","v":""},{"$f":"IF('effRT Support'!$B37=0,\"\",IF('Project Information'!$D$27=\"\",\"\",'Project Information'!$D$27))","v":""},{"$f":"IF('effRT Support'!$B37=0,\"\",IF('Project Information'!$D$28=\"\",\"\",'Project Information'!$D$28))","v":""},{"$f":"IF('effRT Support'!$B37=0,\"\",IF('Project Information'!$D$29=\"\",\"\",'Project Information'!$D$29))","v":""},{"$f":"IF('effRT Support'!$B37=0,\"\",IF('Project Information'!$E$29=\"\",\"\",'Project Information'!$E$29))","v":""},{"$f":"IF('effRT Support'!$B37=0,\"\",IF('Project Information'!$F$29=\"\",\"\",'Project Information'!$F$29))","v":""},{"$f":"IF('effRT Support'!$B37=0,\"\",\"\")","v":""},{"$f":"IF('effRT Support'!$B37=0,\"\",\"\")","v":""},{"$f":"IF('effRT Support'!$B37=0,\"\",IF('Project Information'!$D$36=\"\",\"\",'Project Information'!$D$36))","v":""},{"$f":"IF('effRT Support'!$B37=0,\"\",IF('Project Information'!$D$42=\"\",\"\",'Project Information'!$D$42))","v":""},{"$f":"IF('effRT Support'!$B37=0,\"\",'effRT Support'!$D37)","v":""},{"$f":"IF('effRT Support'!$B37=0,\"\",'effRT Support'!$L37)","v":""},{"$f":"IF('effRT Support'!$B37=0,\"\",'effRT Support'!$N37)","v":""},null,null,{"$f":"IF('effRT Support'!$B37=0,\"\",'effRT Support'!$P37)","v":""},{"$f":"IF('effRT Support'!$B37=0,\"\",'effRT Support'!$Q37)","v":""},{"$f":"IF('effRT Support'!$B37=0,\"\",'effRT Support'!U37)","v":""},{"$f":"IF('effRT Support'!$B37=0,\"\",'effRT Support'!V37)","v":""},{"$f":"IF('effRT Support'!$B37=0,\"\",'effRT Support'!W37)","v":""},{"$f":"IF('effRT Support'!$B37=0,\"\",'effRT Support'!X37)","v":""},{"$f":"IF('effRT Support'!$B37=0,\"\",'effRT Support'!Y37)","v":""},{"$f":"IF('effRT Support'!$B37=0,\"\",'effRT Support'!Z37*10)","v":""},{"$f":"IF('effRT Support'!$B37=0,\"\",'effRT Support'!AA37)","v":""},{"$f":"IF('effRT Support'!$B37=0,\"\",'effRT Support'!AB37)","v":""},{"$f":"IF('effRT Support'!$B37=0,\"\",'effRT Support'!AC37)","v":""},{"$f":"IF('effRT Support'!$B37=0,\"\",'effRT Support'!AD37)","v":""},{"$f":"IF('effRT Support'!$B37=0,\"\",'effRT Support'!AE37)","v":""},{"$f":"IF('effRT Support'!$B37=0,\"\",\"Hours Actual or Deemed\")","v":""},{"$f":"IF('effRT Support'!$B37=0,\"\",'effRT Support'!$F37)","v":""},{"$f":"IF('effRT Support'!$B37=0,\"\",\"Wattage Actual or Deemed\")","v":""},{"$f":"IF('effRT Support'!$B37=0,\"\",IF('Project Information'!$D$33=\"Pay For Performance\",\"Actual\",\"Deemed\"))","v":""},{"$f":"IF('effRT Support'!$B37=0,\"\",\"Cost Actual or Deemed\")","v":""},{"$f":"IF('effRT Support'!$B37=0,\"\",IF('Project Information'!$D$33=\"Pay For Performance\",\"Actual\",\"Deemed\"))","v":""},{"$f":"IF('effRT Support'!$B37=0,\"\",\"Location\")","v":""},{"$f":"IF('effRT Support'!$B37=0,\"\",'effRT Support'!$E37)","v":""},{"$f":"IF('effRT Support'!$B37=0,\"\",\"Space Type\")","v":""},{"$f":"IF('effRT Support'!$B37=0,\"\",'effRT Support'!$G37)","v":""},{"$f":"IF('effRT Support'!$B37=0,\"\",\"Existing Fixture Description\")","v":""},{"$f":"IF('effRT Support'!$B37=0,\"\",'effRT Support'!$H37)","v":""},{"$f":"IF('effRT Support'!$B37=0,\"\",\"Existing Fixture Quantity\")","v":""},{"$f":"IF('effRT Support'!$B37=0,\"\",'effRT Support'!$I37)","v":""},{"$f":"IF('effRT Support'!$B37=0,\"\",\"Existing Fixture Wattage\")","v":""},{"$f":"IF('effRT Support'!$B37=0,\"\",'effRT Support'!$J37)","v":""},{"$f":"IF('effRT Support'!$B37=0,\"\",\"Annual Hours of Operation\")","v":""},{"$f":"IF('effRT Support'!$B37=0,\"\",'effRT Support'!$K37)","v":""},{"$f":"IF('effRT Support'!$B37=0,\"\",\"Installed Fixture Description\")","v":""},{"$f":"IF('effRT Support'!$B37=0,\"\",'effRT Support'!$M37)","v":""},{"$f":"IF('effRT Support'!$B37=0,\"\",\"Installed Fixture Wattage\")","v":""},{"$f":"IF('effRT Support'!$B37=0,\"\",'effRT Support'!$O37)","v":""},{"$f":"IF('effRT Support'!$B37=0,\"\",\"Material Cost\")","v":""},{"$f":"IF('effRT Support'!$B37=0,\"\",'effRT Support'!$R37)","v":""},{"$f":"IF('effRT Support'!$B37=0,\"\",\"Labor Cost\")","v":""},{"$f":"IF('effRT Support'!$B37=0,\"\",'effRT Support'!$S37)","v":""},{"$f":"IF('effRT Support'!$B37=0,\"\",\"Ancillary Costs - Measure Specific\")","v":""},{"$f":"IF('effRT Support'!$B37=0,\"\",'effRT Support'!$T37)","v":""},{"$f":"IF('effRT Support'!$B37=0,\"\",\"Fuel Type\")","v":""},{"$f":"IF('effRT Support'!$B37=0,\"\",'Project Information'!$D$44)","v":""},{"$f":"IF('effRT Support'!$B37=0,\"\",\"Installed Fixture Quantity\")","v":""},{"$f":"IF('effRT Support'!$B37=0,\"\",'effRT Support'!P36)","v":""}]
[{"$f":"IF('effRT Support'!$B38=0,\"\",IF('Project Information'!$D$33=\"Small Business\",\"SBL\",\"CILS\"))","v":""},{"$f":"IF('effRT Support'!$B38=0,\"\",IF('Project Information'!$K$2=\"\",\"\",'Project Information'!$K$2))","v":""},null,{"$f":"IF('effRT Support'!$B38=0,\"\",IF('Project Information'!$D$46=\"\",\"\",'Project Information'!$D$46))","v":""},{"$f":"IF('effRT Support'!$B38=0,\"\",IF('Project Information'!$D$20=\"\",\"\",VLOOKUP('Project Information'!$D$20,'Other Data'!$B$159:$E$189,4,FALSE)))","v":""},{"$f":"IF('effRT Support'!$B38=0,\"\",IF('Project Information'!$D$31=\"\",\"\",'Project Information'!$D$31))","v":""},{"$f":"IF('effRT Support'!$B38=0,\"\",IF('Project Information'!$D$5=\"\",\"\",'Project Information'!$D$5))","v":""},null,null,{"$f":"IF('effRT Support'!$B38=0,\"\",IF('Project Information'!$D$20=\"\",\"\",VLOOKUP('Project Information'!$D$20,'Other Data'!$B$159:$E$189,2,FALSE)))","v":""},{"$f":"IF('effRT Support'!$B38=0,\"\",IF('Project Information'!$D$20=\"\",\"\",VLOOKUP('Project Information'!$D$20,'Other Data'!$B$159:$E$189,3,FALSE)))","v":""},{"$f":"IF('effRT Support'!$B38=0,\"\",\"Existing\")","v":""},null,{"$f":"IF('effRT Support'!$B38=0,\"\",IF('Project Information'!$D$21=\"\",\"\",'Project Information'!$D$21))","v":""},{"$f":"IF('effRT Support'!$B38=0,\"\",IF('Project Information'!$D$48=\"\",\"\",'Project Information'!$D$48))","v":""},{"$f":"IF('effRT Support'!$B38=0,\"\",\"\")","v":""},{"$f":"IF('effRT Support'!$B38=0,\"\",\"\")","v":""},{"$f":"IF('effRT Support'!$B38=0,\"\",\"\")","v":""},{"$f":"IF('effRT Support'!$B38=0,\"\",\"\")","v":""},{"$f":"IF('effRT Support'!$B38=0,\"\",IF('Project Information'!$D$13=\"\",\"\",'Project Information'!$D$13))","v":""},{"$f":"IF('effRT Support'!$B38=0,\"\",IF('Project Information'!$E$13=\"\",\"\",'Project Information'!$E$13))","v":""},{"$f":"IF('effRT Support'!$B38=0,\"\",IF('Project Information'!$D$14=\"\",\"\",'Project Information'!$D$14))","v":""},{"$f":"IF('effRT Support'!$B38=0,\"\",IF('Project Information'!$D$15=\"\",\"\",'Project Information'!$D$15))","v":""},{"$f":"IF('effRT Support'!$B38=0,\"\",IF('Project Information'!$D$16=\"\",\"\",'Project Information'!$D$16))","v":""},null,{"$f":"IF('effRT Support'!$B38=0,\"\",'Project Information'!$D$18)","v":""},{"$f":"IF('effRT Support'!$B38=0,\"\",IF('Project Information'!$D$23=\"\",\"\",'Project Information'!$D$23))","v":""},{"$f":"IF('effRT Support'!$B38=0,\"\",IF('Project Information'!$D$24=\"\",\"\",'Project Information'!$D$24))","v":""},{"$f":"IF('effRT Support'!$B38=0,\"\",IF('Project Information'!$D$25=\"\",\"\",'Project Information'!$D$25))","v":""},{"$f":"IF('effRT Support'!$B38=0,\"\",IF('Project Information'!$E$25=\"\",\"\",'Project Information'!$E$25))","v":""},{"$f":"IF('effRT Support'!$B38=0,\"\",IF('Project Information'!$F$25=\"\",\"\",'Project Information'!$F$25))","v":""},{"$f":"IF('effRT Support'!$B38=0,\"\",IF('Project Information'!$D$27=\"\",\"Y\",\"N\"))","v":""},{"$f":"IF('effRT Support'!$B38=0,\"\",IF('Project Information'!$D$27=\"\",\"\",'Project Information'!$D$27))","v":""},{"$f":"IF('effRT Support'!$B38=0,\"\",IF('Project Information'!$D$28=\"\",\"\",'Project Information'!$D$28))","v":""},{"$f":"IF('effRT Support'!$B38=0,\"\",IF('Project Information'!$D$29=\"\",\"\",'Project Information'!$D$29))","v":""},{"$f":"IF('effRT Support'!$B38=0,\"\",IF('Project Information'!$E$29=\"\",\"\",'Project Information'!$E$29))","v":""},{"$f":"IF('effRT Support'!$B38=0,\"\",IF('Project Information'!$F$29=\"\",\"\",'Project Information'!$F$29))","v":""},{"$f":"IF('effRT Support'!$B38=0,\"\",\"\")","v":""},{"$f":"IF('effRT Support'!$B38=0,\"\",\"\")","v":""},{"$f":"IF('effRT Support'!$B38=0,\"\",IF('Project Information'!$D$36=\"\",\"\",'Project Information'!$D$36))","v":""},{"$f":"IF('effRT Support'!$B38=0,\"\",IF('Project Information'!$D$42=\"\",\"\",'Project Information'!$D$42))","v":""},{"$f":"IF('effRT Support'!$B38=0,\"\",'effRT Support'!$D38)","v":""},{"$f":"IF('effRT Support'!$B38=0,\"\",'effRT Support'!$L38)","v":""},{"$f":"IF('effRT Support'!$B38=0,\"\",'effRT Support'!$N38)","v":""},null,null,{"$f":"IF('effRT Support'!$B38=0,\"\",'effRT Support'!$P38)","v":""},{"$f":"IF('effRT Support'!$B38=0,\"\",'effRT Support'!$Q38)","v":""},{"$f":"IF('effRT Support'!$B38=0,\"\",'effRT Support'!U38)","v":""},{"$f":"IF('effRT Support'!$B38=0,\"\",'effRT Support'!V38)","v":""},{"$f":"IF('effRT Support'!$B38=0,\"\",'effRT Support'!W38)","v":""},{"$f":"IF('effRT Support'!$B38=0,\"\",'effRT Support'!X38)","v":""},{"$f":"IF('effRT Support'!$B38=0,\"\",'effRT Support'!Y38)","v":""},{"$f":"IF('effRT Support'!$B38=0,\"\",'effRT Support'!Z38*10)","v":""},{"$f":"IF('effRT Support'!$B38=0,\"\",'effRT Support'!AA38)","v":""},{"$f":"IF('effRT Support'!$B38=0,\"\",'effRT Support'!AB38)","v":""},{"$f":"IF('effRT Support'!$B38=0,\"\",'effRT Support'!AC38)","v":""},{"$f":"IF('effRT Support'!$B38=0,\"\",'effRT Support'!AD38)","v":""},{"$f":"IF('effRT Support'!$B38=0,\"\",'effRT Support'!AE38)","v":""},{"$f":"IF('effRT Support'!$B38=0,\"\",\"Hours Actual or Deemed\")","v":""},{"$f":"IF('effRT Support'!$B38=0,\"\",'effRT Support'!$F38)","v":""},{"$f":"IF('effRT Support'!$B38=0,\"\",\"Wattage Actual or Deemed\")","v":""},{"$f":"IF('effRT Support'!$B38=0,\"\",IF('Project Information'!$D$33=\"Pay For Performance\",\"Actual\",\"Deemed\"))","v":""},{"$f":"IF('effRT Support'!$B38=0,\"\",\"Cost Actual or Deemed\")","v":""},{"$f":"IF('effRT Support'!$B38=0,\"\",IF('Project Information'!$D$33=\"Pay For Performance\",\"Actual\",\"Deemed\"))","v":""},{"$f":"IF('effRT Support'!$B38=0,\"\",\"Location\")","v":""},{"$f":"IF('effRT Support'!$B38=0,\"\",'effRT Support'!$E38)","v":""},{"$f":"IF('effRT Support'!$B38=0,\"\",\"Space Type\")","v":""},{"$f":"IF('effRT Support'!$B38=0,\"\",'effRT Support'!$G38)","v":""},{"$f":"IF('effRT Support'!$B38=0,\"\",\"Existing Fixture Description\")","v":""},{"$f":"IF('effRT Support'!$B38=0,\"\",'effRT Support'!$H38)","v":""},{"$f":"IF('effRT Support'!$B38=0,\"\",\"Existing Fixture Quantity\")","v":""},{"$f":"IF('effRT Support'!$B38=0,\"\",'effRT Support'!$I38)","v":""},{"$f":"IF('effRT Support'!$B38=0,\"\",\"Existing Fixture Wattage\")","v":""},{"$f":"IF('effRT Support'!$B38=0,\"\",'effRT Support'!$J38)","v":""},{"$f":"IF('effRT Support'!$B38=0,\"\",\"Annual Hours of Operation\")","v":""},{"$f":"IF('effRT Support'!$B38=0,\"\",'effRT Support'!$K38)","v":""},{"$f":"IF('effRT Support'!$B38=0,\"\",\"Installed Fixture Description\")","v":""},{"$f":"IF('effRT Support'!$B38=0,\"\",'effRT Support'!$M38)","v":""},{"$f":"IF('effRT Support'!$B38=0,\"\",\"Installed Fixture Wattage\")","v":""},{"$f":"IF('effRT Support'!$B38=0,\"\",'effRT Support'!$O38)","v":""},{"$f":"IF('effRT Support'!$B38=0,\"\",\"Material Cost\")","v":""},{"$f":"IF('effRT Support'!$B38=0,\"\",'effRT Support'!$R38)","v":""},{"$f":"IF('effRT Support'!$B38=0,\"\",\"Labor Cost\")","v":""},{"$f":"IF('effRT Support'!$B38=0,\"\",'effRT Support'!$S38)","v":""},{"$f":"IF('effRT Support'!$B38=0,\"\",\"Ancillary Costs - Measure Specific\")","v":""},{"$f":"IF('effRT Support'!$B38=0,\"\",'effRT Support'!$T38)","v":""},{"$f":"IF('effRT Support'!$B38=0,\"\",\"Fuel Type\")","v":""},{"$f":"IF('effRT Support'!$B38=0,\"\",'Project Information'!$D$44)","v":""}]
[{"$f":"IF('effRT Support'!$B39=0,\"\",IF('Project Information'!$D$33=\"Small Business\",\"SBL\",\"CILS\"))","v":""},{"$f":"IF('effRT Support'!$B39=0,\"\",IF('Project Information'!$K$2=\"\",\"\",'Project Information'!$K$2))","v":""},null,{"$f":"IF('effRT Support'!$B39=0,\"\",IF('Project Information'!$D$46=\"\",\"\",'Project Information'!$D$46))","v":""},{"$f":"IF('effRT Support'!$B39=0,\"\",IF('Project Information'!$D$20=\"\",\"\",VLOOKUP('Project Information'!$D$20,'Other Data'!$B$159:$E$189,4,FALSE)))","v":""},{"$f":"IF('effRT Support'!$B39=0,\"\",IF('Project Information'!$D$31=\"\",\"\",'Project Information'!$D$31))","v":""},{"$f":"IF('effRT Support'!$B39=0,\"\",IF('Project Information'!$D$5=\"\",\"\",'Project Information'!$D$5))","v":""},null,null,{"$f":"IF('effRT Support'!$B39=0,\"\",IF('Project Information'!$D$20=\"\",\"\",VLOOKUP('Project Information'!$D$20,'Other Data'!$B$159:$E$189,2,FALSE)))","v":""},{"$f":"IF('effRT Support'!$B39=0,\"\",IF('Project Information'!$D$20=\"\",\"\",VLOOKUP('Project Information'!$D$20,'Other Data'!$B$159:$E$189,3,FALSE)))","v":""},{"$f":"IF('effRT Support'!$B39=0,\"\",\"Existing\")","v":""},null,{"$f":"IF('effRT Support'!$B39=0,\"\",IF('Project Information'!$D$21=\"\",\"\",'Project Information'!$D$21))","v":""},{"$f":"IF('effRT Support'!$B39=0,\"\",IF('Project Information'!$D$48=\"\",\"\",'Project Information'!$D$48))","v":""},{"$f":"IF('effRT Support'!$B39=0,\"\",\"\")","v":""},{"$f":"IF('effRT Support'!$B39=0,\"\",\"\")","v":""},{"$f":"IF('effRT Support'!$B39=0,\"\",\"\")","v":""},{"$f":"IF('effRT Support'!$B39=0,\"\",\"\")","v":""},{"$f":"IF('effRT Support'!$B39=0,\"\",IF('Project Information'!$D$13=\"\",\"\",'Project Information'!$D$13))","v":""},{"$f":"IF('effRT Support'!$B39=0,\"\",IF('Project Information'!$E$13=\"\",\"\",'Project Information'!$E$13))","v":""},{"$f":"IF('effRT Support'!$B39=0,\"\",IF('Project Information'!$D$14=\"\",\"\",'Project Information'!$D$14))","v":""},{"$f":"IF('effRT Support'!$B39=0,\"\",IF('Project Information'!$D$15=\"\",\"\",'Project Information'!$D$15))","v":""},{"$f":"IF('effRT Support'!$B39=0,\"\",IF('Project Information'!$D$16=\"\",\"\",'Project Information'!$D$16))","v":""},null,{"$f":"IF('effRT Support'!$B39=0,\"\",'Project Information'!$D$18)","v":""},{"$f":"IF('effRT Support'!$B39=0,\"\",IF('Project Information'!$D$23=\"\",\"\",'Project Information'!$D$23))","v":""},{"$f":"IF('effRT Support'!$B39=0,\"\",IF('Project Information'!$D$24=\"\",\"\",'Project Information'!$D$24))","v":""},{"$f":"IF('effRT Support'!$B39=0,\"\",IF('Project Information'!$D$25=\"\",\"\",'Project Information'!$D$25))","v":""},{"$f":"IF('effRT Support'!$B39=0,\"\",IF('Project Information'!$E$25=\"\",\"\",'Project Information'!$E$25))","v":""},{"$f":"IF('effRT Support'!$B39=0,\"\",IF('Project Information'!$F$25=\"\",\"\",'Project Information'!$F$25))","v":""},{"$f":"IF('effRT Support'!$B39=0,\"\",IF('Project Information'!$D$27=\"\",\"Y\",\"N\"))","v":""},{"$f":"IF('effRT Support'!$B39=0,\"\",IF('Project Information'!$D$27=\"\",\"\",'Project Information'!$D$27))","v":""},{"$f":"IF('effRT Support'!$B39=0,\"\",IF('Project Information'!$D$28=\"\",\"\",'Project Information'!$D$28))","v":""},{"$f":"IF('effRT Support'!$B39=0,\"\",IF('Project Information'!$D$29=\"\",\"\",'Project Information'!$D$29))","v":""},{"$f":"IF('effRT Support'!$B39=0,\"\",IF('Project Information'!$E$29=\"\",\"\",'Project Information'!$E$29))","v":""},{"$f":"IF('effRT Support'!$B39=0,\"\",IF('Project Information'!$F$29=\"\",\"\",'Project Information'!$F$29))","v":""},{"$f":"IF('effRT Support'!$B39=0,\"\",\"\")","v":""},{"$f":"IF('effRT Support'!$B39=0,\"\",\"\")","v":""},{"$f":"IF('effRT Support'!$B39=0,\"\",IF('Project Information'!$D$36=\"\",\"\",'Project Information'!$D$36))","v":""},{"$f":"IF('effRT Support'!$B39=0,\"\",IF('Project Information'!$D$42=\"\",\"\",'Project Information'!$D$42))","v":""},{"$f":"IF('effRT Support'!$B39=0,\"\",'effRT Support'!$D39)","v":""},{"$f":"IF('effRT Support'!$B39=0,\"\",'effRT Support'!$L39)","v":""},{"$f":"IF('effRT Support'!$B39=0,\"\",'effRT Support'!$N39)","v":""},null,null,{"$f":"IF('effRT Support'!$B39=0,\"\",'effRT Support'!$P39)","v":""},{"$f":"IF('effRT Support'!$B39=0,\"\",'effRT Support'!$Q39)","v":""},{"$f":"IF('effRT Support'!$B39=0,\"\",'effRT Support'!U39)","v":""},{"$f":"IF('effRT Support'!$B39=0,\"\",'effRT Support'!V39)","v":""},{"$f":"IF('effRT Support'!$B39=0,\"\",'effRT Support'!W39)","v":""},{"$f":"IF('effRT Support'!$B39=0,\"\",'effRT Support'!X39)","v":""},{"$f":"IF('effRT Support'!$B39=0,\"\",'effRT Support'!Y39)","v":""},{"$f":"IF('effRT Support'!$B39=0,\"\",'effRT Support'!Z39*10)","v":""},{"$f":"IF('effRT Support'!$B39=0,\"\",'effRT Support'!AA39)","v":""},{"$f":"IF('effRT Support'!$B39=0,\"\",'effRT Support'!AB39)","v":""},{"$f":"IF('effRT Support'!$B39=0,\"\",'effRT Support'!AC39)","v":""},{"$f":"IF('effRT Support'!$B39=0,\"\",'effRT Support'!AD39)","v":""},{"$f":"IF('effRT Support'!$B39=0,\"\",'effRT Support'!AE39)","v":""},{"$f":"IF('effRT Support'!$B39=0,\"\",\"Hours Actual or Deemed\")","v":""},{"$f":"IF('effRT Support'!$B39=0,\"\",'effRT Support'!$F39)","v":""},{"$f":"IF('effRT Support'!$B39=0,\"\",\"Wattage Actual or Deemed\")","v":""},{"$f":"IF('effRT Support'!$B39=0,\"\",IF('Project Information'!$D$33=\"Pay For Performance\",\"Actual\",\"Deemed\"))","v":""},{"$f":"IF('effRT Support'!$B39=0,\"\",\"Cost Actual or Deemed\")","v":""},{"$f":"IF('effRT Support'!$B39=0,\"\",IF('Project Information'!$D$33=\"Pay For Performance\",\"Actual\",\"Deemed\"))","v":""},{"$f":"IF('effRT Support'!$B39=0,\"\",\"Location\")","v":""},{"$f":"IF('effRT Support'!$B39=0,\"\",'effRT Support'!$E39)","v":""},{"$f":"IF('effRT Support'!$B39=0,\"\",\"Space Type\")","v":""},{"$f":"IF('effRT Support'!$B39=0,\"\",'effRT Support'!$G39)","v":""},{"$f":"IF('effRT Support'!$B39=0,\"\",\"Existing Fixture Description\")","v":""},{"$f":"IF('effRT Support'!$B39=0,\"\",'effRT Support'!$H39)","v":""},{"$f":"IF('effRT Support'!$B39=0,\"\",\"Existing Fixture Quantity\")","v":""},{"$f":"IF('effRT Support'!$B39=0,\"\",'effRT Support'!$I39)","v":""},{"$f":"IF('effRT Support'!$B39=0,\"\",\"Existing Fixture Wattage\")","v":""},{"$f":"IF('effRT Support'!$B39=0,\"\",'effRT Support'!$J39)","v":""},{"$f":"IF('effRT Support'!$B39=0,\"\",\"Annual Hours of Operation\")","v":""},{"$f":"IF('effRT Support'!$B39=0,\"\",'effRT Support'!$K39)","v":""},{"$f":"IF('effRT Support'!$B39=0,\"\",\"Installed Fixture Description\")","v":""},{"$f":"IF('effRT Support'!$B39=0,\"\",'effRT Support'!$M39)","v":""},{"$f":"IF('effRT Support'!$B39=0,\"\",\"Installed Fixture Wattage\")","v":""},{"$f":"IF('effRT Support'!$B39=0,\"\",'effRT Support'!$O39)","v":""},{"$f":"IF('effRT Support'!$B39=0,\"\",\"Material Cost\")","v":""},{"$f":"IF('effRT Support'!$B39=0,\"\",'effRT Support'!$R39)","v":""},{"$f":"IF('effRT Support'!$B39=0,\"\",\"Labor Cost\")","v":""},{"$f":"IF('effRT Support'!$B39=0,\"\",'effRT Support'!$S39)","v":""},{"$f":"IF('effRT Support'!$B39=0,\"\",\"Ancillary Costs - Measure Specific\")","v":""},{"$f":"IF('effRT Support'!$B39=0,\"\",'effRT Support'!$T39)","v":""},{"$f":"IF('effRT Support'!$B39=0,\"\",\"Fuel Type\")","v":""},{"$f":"IF('effRT Support'!$B39=0,\"\",'Project Information'!$D$44)","v":""},{"$f":"IF('effRT Support'!$B39=0,\"\",\"Installed Fixture Quantity\")","v":""},{"$f":"IF('effRT Support'!$B39=0,\"\",'effRT Support'!P38)","v":""}]
[{"$f":"IF('effRT Support'!$B40=0,\"\",IF('Project Information'!$D$33=\"Small Business\",\"SBL\",\"CILS\"))","v":""},{"$f":"IF('effRT Support'!$B40=0,\"\",IF('Project Information'!$K$2=\"\",\"\",'Project Information'!$K$2))","v":""},null,{"$f":"IF('effRT Support'!$B40=0,\"\",IF('Project Information'!$D$46=\"\",\"\",'Project Information'!$D$46))","v":""},{"$f":"IF('effRT Support'!$B40=0,\"\",IF('Project Information'!$D$20=\"\",\"\",VLOOKUP('Project Information'!$D$20,'Other Data'!$B$159:$E$189,4,FALSE)))","v":""},{"$f":"IF('effRT Support'!$B40=0,\"\",IF('Project Information'!$D$31=\"\",\"\",'Project Information'!$D$31))","v":""},{"$f":"IF('effRT Support'!$B40=0,\"\",IF('Project Information'!$D$5=\"\",\"\",'Project Information'!$D$5))","v":""},null,null,{"$f":"IF('effRT Support'!$B40=0,\"\",IF('Project Information'!$D$20=\"\",\"\",VLOOKUP('Project Information'!$D$20,'Other Data'!$B$159:$E$189,2,FALSE)))","v":""},{"$f":"IF('effRT Support'!$B40=0,\"\",IF('Project Information'!$D$20=\"\",\"\",VLOOKUP('Project Information'!$D$20,'Other Data'!$B$159:$E$189,3,FALSE)))","v":""},{"$f":"IF('effRT Support'!$B40=0,\"\",\"Existing\")","v":""},null,{"$f":"IF('effRT Support'!$B40=0,\"\",IF('Project Information'!$D$21=\"\",\"\",'Project Information'!$D$21))","v":""},{"$f":"IF('effRT Support'!$B40=0,\"\",IF('Project Information'!$D$48=\"\",\"\",'Project Information'!$D$48))","v":""},{"$f":"IF('effRT Support'!$B40=0,\"\",\"\")","v":""},{"$f":"IF('effRT Support'!$B40=0,\"\",\"\")","v":""},{"$f":"IF('effRT Support'!$B40=0,\"\",\"\")","v":""},{"$f":"IF('effRT Support'!$B40=0,\"\",\"\")","v":""},{"$f":"IF('effRT Support'!$B40=0,\"\",IF('Project Information'!$D$13=\"\",\"\",'Project Information'!$D$13))","v":""},{"$f":"IF('effRT Support'!$B40=0,\"\",IF('Project Information'!$E$13=\"\",\"\",'Project Information'!$E$13))","v":""},{"$f":"IF('effRT Support'!$B40=0,\"\",IF('Project Information'!$D$14=\"\",\"\",'Project Information'!$D$14))","v":""},{"$f":"IF('effRT Support'!$B40=0,\"\",IF('Project Information'!$D$15=\"\",\"\",'Project Information'!$D$15))","v":""},{"$f":"IF('effRT Support'!$B40=0,\"\",IF('Project Information'!$D$16=\"\",\"\",'Project Information'!$D$16))","v":""},null,{"$f":"IF('effRT Support'!$B40=0,\"\",'Project Information'!$D$18)","v":""},{"$f":"IF('effRT Support'!$B40=0,\"\",IF('Project Information'!$D$23=\"\",\"\",'Project Information'!$D$23))","v":""},{"$f":"IF('effRT Support'!$B40=0,\"\",IF('Project Information'!$D$24=\"\",\"\",'Project Information'!$D$24))","v":""},{"$f":"IF('effRT Support'!$B40=0,\"\",IF('Project Information'!$D$25=\"\",\"\",'Project Information'!$D$25))","v":""},{"$f":"IF('effRT Support'!$B40=0,\"\",IF('Project Information'!$E$25=\"\",\"\",'Project Information'!$E$25))","v":""},{"$f":"IF('effRT Support'!$B40=0,\"\",IF('Project Information'!$F$25=\"\",\"\",'Project Information'!$F$25))","v":""},{"$f":"IF('effRT Support'!$B40=0,\"\",IF('Project Information'!$D$27=\"\",\"Y\",\"N\"))","v":""},{"$f":"IF('effRT Support'!$B40=0,\"\",IF('Project Information'!$D$27=\"\",\"\",'Project Information'!$D$27))","v":""},{"$f":"IF('effRT Support'!$B40=0,\"\",IF('Project Information'!$D$28=\"\",\"\",'Project Information'!$D$28))","v":""},{"$f":"IF('effRT Support'!$B40=0,\"\",IF('Project Information'!$D$29=\"\",\"\",'Project Information'!$D$29))","v":""},{"$f":"IF('effRT Support'!$B40=0,\"\",IF('Project Information'!$E$29=\"\",\"\",'Project Information'!$E$29))","v":""},{"$f":"IF('effRT Support'!$B40=0,\"\",IF('Project Information'!$F$29=\"\",\"\",'Project Information'!$F$29))","v":""},{"$f":"IF('effRT Support'!$B40=0,\"\",\"\")","v":""},{"$f":"IF('effRT Support'!$B40=0,\"\",\"\")","v":""},{"$f":"IF('effRT Support'!$B40=0,\"\",IF('Project Information'!$D$36=\"\",\"\",'Project Information'!$D$36))","v":""},{"$f":"IF('effRT Support'!$B40=0,\"\",IF('Project Information'!$D$42=\"\",\"\",'Project Information'!$D$42))","v":""},{"$f":"IF('effRT Support'!$B40=0,\"\",'effRT Support'!$D40)","v":""},{"$f":"IF('effRT Support'!$B40=0,\"\",'effRT Support'!$L40)","v":""},{"$f":"IF('effRT Support'!$B40=0,\"\",'effRT Support'!$N40)","v":""},null,null,{"$f":"IF('effRT Support'!$B40=0,\"\",'effRT Support'!$P40)","v":""},{"$f":"IF('effRT Support'!$B40=0,\"\",'effRT Support'!$Q40)","v":""},{"$f":"IF('effRT Support'!$B40=0,\"\",'effRT Support'!U40)","v":""},{"$f":"IF('effRT Support'!$B40=0,\"\",'effRT Support'!V40)","v":""},{"$f":"IF('effRT Support'!$B40=0,\"\",'effRT Support'!W40)","v":""},{"$f":"IF('effRT Support'!$B40=0,\"\",'effRT Support'!X40)","v":""},{"$f":"IF('effRT Support'!$B40=0,\"\",'effRT Support'!Y40)","v":""},{"$f":"IF('effRT Support'!$B40=0,\"\",'effRT Support'!Z40*10)","v":""},{"$f":"IF('effRT Support'!$B40=0,\"\",'effRT Support'!AA40)","v":""},{"$f":"IF('effRT Support'!$B40=0,\"\",'effRT Support'!AB40)","v":""},{"$f":"IF('effRT Support'!$B40=0,\"\",'effRT Support'!AC40)","v":""},{"$f":"IF('effRT Support'!$B40=0,\"\",'effRT Support'!AD40)","v":""},{"$f":"IF('effRT Support'!$B40=0,\"\",'effRT Support'!AE40)","v":""},{"$f":"IF('effRT Support'!$B40=0,\"\",\"Hours Actual or Deemed\")","v":""},{"$f":"IF('effRT Support'!$B40=0,\"\",'effRT Support'!$F40)","v":""},{"$f":"IF('effRT Support'!$B40=0,\"\",\"Wattage Actual or Deemed\")","v":""},{"$f":"IF('effRT Support'!$B40=0,\"\",IF('Project Information'!$D$33=\"Pay For Performance\",\"Actual\",\"Deemed\"))","v":""},{"$f":"IF('effRT Support'!$B40=0,\"\",\"Cost Actual or Deemed\")","v":""},{"$f":"IF('effRT Support'!$B40=0,\"\",IF('Project Information'!$D$33=\"Pay For Performance\",\"Actual\",\"Deemed\"))","v":""},{"$f":"IF('effRT Support'!$B40=0,\"\",\"Location\")","v":""},{"$f":"IF('effRT Support'!$B40=0,\"\",'effRT Support'!$E40)","v":""},{"$f":"IF('effRT Support'!$B40=0,\"\",\"Space Type\")","v":""},{"$f":"IF('effRT Support'!$B40=0,\"\",'effRT Support'!$G40)","v":""},{"$f":"IF('effRT Support'!$B40=0,\"\",\"Existing Fixture Description\")","v":""},{"$f":"IF('effRT Support'!$B40=0,\"\",'effRT Support'!$H40)","v":""},{"$f":"IF('effRT Support'!$B40=0,\"\",\"Existing Fixture Quantity\")","v":""},{"$f":"IF('effRT Support'!$B40=0,\"\",'effRT Support'!$I40)","v":""},{"$f":"IF('effRT Support'!$B40=0,\"\",\"Existing Fixture Wattage\")","v":""},{"$f":"IF('effRT Support'!$B40=0,\"\",'effRT Support'!$J40)","v":""},{"$f":"IF('effRT Support'!$B40=0,\"\",\"Annual Hours of Operation\")","v":""},{"$f":"IF('effRT Support'!$B40=0,\"\",'effRT Support'!$K40)","v":""},{"$f":"IF('effRT Support'!$B40=0,\"\",\"Installed Fixture Description\")","v":""},{"$f":"IF('effRT Support'!$B40=0,\"\",'effRT Support'!$M40)","v":""},{"$f":"IF('effRT Support'!$B40=0,\"\",\"Installed Fixture Wattage\")","v":""},{"$f":"IF('effRT Support'!$B40=0,\"\",'effRT Support'!$O40)","v":""},{"$f":"IF('effRT Support'!$B40=0,\"\",\"Material Cost\")","v":""},{"$f":"IF('effRT Support'!$B40=0,\"\",'effRT Support'!$R40)","v":""},{"$f":"IF('effRT Support'!$B40=0,\"\",\"Labor Cost\")","v":""},{"$f":"IF('effRT Support'!$B40=0,\"\",'effRT Support'!$S40)","v":""},{"$f":"IF('effRT Support'!$B40=0,\"\",\"Ancillary Costs - Measure Specific\")","v":""},{"$f":"IF('effRT Support'!$B40=0,\"\",'effRT Support'!$T40)","v":""},{"$f":"IF('effRT Support'!$B40=0,\"\",\"Fuel Type\")","v":""},{"$f":"IF('effRT Support'!$B40=0,\"\",'Project Information'!$D$44)","v":""}]
[{"$f":"IF('effRT Support'!$B41=0,\"\",IF('Project Information'!$D$33=\"Small Business\",\"SBL\",\"CILS\"))","v":""},{"$f":"IF('effRT Support'!$B41=0,\"\",IF('Project Information'!$K$2=\"\",\"\",'Project Information'!$K$2))","v":""},null,{"$f":"IF('effRT Support'!$B41=0,\"\",IF('Project Information'!$D$46=\"\",\"\",'Project Information'!$D$46))","v":""},{"$f":"IF('effRT Support'!$B41=0,\"\",IF('Project Information'!$D$20=\"\",\"\",VLOOKUP('Project Information'!$D$20,'Other Data'!$B$159:$E$189,4,FALSE)))","v":""},{"$f":"IF('effRT Support'!$B41=0,\"\",IF('Project Information'!$D$31=\"\",\"\",'Project Information'!$D$31))","v":""},{"$f":"IF('effRT Support'!$B41=0,\"\",IF('Project Information'!$D$5=\"\",\"\",'Project Information'!$D$5))","v":""},null,null,{"$f":"IF('effRT Support'!$B41=0,\"\",IF('Project Information'!$D$20=\"\",\"\",VLOOKUP('Project Information'!$D$20,'Other Data'!$B$159:$E$189,2,FALSE)))","v":""},{"$f":"IF('effRT Support'!$B41=0,\"\",IF('Project Information'!$D$20=\"\",\"\",VLOOKUP('Project Information'!$D$20,'Other Data'!$B$159:$E$189,3,FALSE)))","v":""},{"$f":"IF('effRT Support'!$B41=0,\"\",\"Existing\")","v":""},null,{"$f":"IF('effRT Support'!$B41=0,\"\",IF('Project Information'!$D$21=\"\",\"\",'Project Information'!$D$21))","v":""},{"$f":"IF('effRT Support'!$B41=0,\"\",IF('Project Information'!$D$48=\"\",\"\",'Project Information'!$D$48))","v":""},{"$f":"IF('effRT Support'!$B41=0,\"\",\"\")","v":""},{"$f":"IF('effRT Support'!$B41=0,\"\",\"\")","v":""},{"$f":"IF('effRT Support'!$B41=0,\"\",\"\")","v":""},{"$f":"IF('effRT Support'!$B41=0,\"\",\"\")","v":""},{"$f":"IF('effRT Support'!$B41=0,\"\",IF('Project Information'!$D$13=\"\",\"\",'Project Information'!$D$13))","v":""},{"$f":"IF('effRT Support'!$B41=0,\"\",IF('Project Information'!$E$13=\"\",\"\",'Project Information'!$E$13))","v":""},{"$f":"IF('effRT Support'!$B41=0,\"\",IF('Project Information'!$D$14=\"\",\"\",'Project Information'!$D$14))","v":""},{"$f":"IF('effRT Support'!$B41=0,\"\",IF('Project Information'!$D$15=\"\",\"\",'Project Information'!$D$15))","v":""},{"$f":"IF('effRT Support'!$B41=0,\"\",IF('Project Information'!$D$16=\"\",\"\",'Project Information'!$D$16))","v":""},null,{"$f":"IF('effRT Support'!$B41=0,\"\",'Project Information'!$D$18)","v":""},{"$f":"IF('effRT Support'!$B41=0,\"\",IF('Project Information'!$D$23=\"\",\"\",'Project Information'!$D$23))","v":""},{"$f":"IF('effRT Support'!$B41=0,\"\",IF('Project Information'!$D$24=\"\",\"\",'Project Information'!$D$24))","v":""},{"$f":"IF('effRT Support'!$B41=0,\"\",IF('Project Information'!$D$25=\"\",\"\",'Project Information'!$D$25))","v":""},{"$f":"IF('effRT Support'!$B41=0,\"\",IF('Project Information'!$E$25=\"\",\"\",'Project Information'!$E$25))","v":""},{"$f":"IF('effRT Support'!$B41=0,\"\",IF('Project Information'!$F$25=\"\",\"\",'Project Information'!$F$25))","v":""},{"$f":"IF('effRT Support'!$B41=0,\"\",IF('Project Information'!$D$27=\"\",\"Y\",\"N\"))","v":""},{"$f":"IF('effRT Support'!$B41=0,\"\",IF('Project Information'!$D$27=\"\",\"\",'Project Information'!$D$27))","v":""},{"$f":"IF('effRT Support'!$B41=0,\"\",IF('Project Information'!$D$28=\"\",\"\",'Project Information'!$D$28))","v":""},{"$f":"IF('effRT Support'!$B41=0,\"\",IF('Project Information'!$D$29=\"\",\"\",'Project Information'!$D$29))","v":""},{"$f":"IF('effRT Support'!$B41=0,\"\",IF('Project Information'!$E$29=\"\",\"\",'Project Information'!$E$29))","v":""},{"$f":"IF('effRT Support'!$B41=0,\"\",IF('Project Information'!$F$29=\"\",\"\",'Project Information'!$F$29))","v":""},{"$f":"IF('effRT Support'!$B41=0,\"\",\"\")","v":""},{"$f":"IF('effRT Support'!$B41=0,\"\",\"\")","v":""},{"$f":"IF('effRT Support'!$B41=0,\"\",IF('Project Information'!$D$36=\"\",\"\",'Project Information'!$D$36))","v":""},{"$f":"IF('effRT Support'!$B41=0,\"\",IF('Project Information'!$D$42=\"\",\"\",'Project Information'!$D$42))","v":""},{"$f":"IF('effRT Support'!$B41=0,\"\",'effRT Support'!$D41)","v":""},{"$f":"IF('effRT Support'!$B41=0,\"\",'effRT Support'!$L41)","v":""},{"$f":"IF('effRT Support'!$B41=0,\"\",'effRT Support'!$N41)","v":""},null,null,{"$f":"IF('effRT Support'!$B41=0,\"\",'effRT Support'!$P41)","v":""},{"$f":"IF('effRT Support'!$B41=0,\"\",'effRT Support'!$Q41)","v":""},{"$f":"IF('effRT Support'!$B41=0,\"\",'effRT Support'!U41)","v":""},{"$f":"IF('effRT Support'!$B41=0,\"\",'effRT Support'!V41)","v":""},{"$f":"IF('effRT Support'!$B41=0,\"\",'effRT Support'!W41)","v":""},{"$f":"IF('effRT Support'!$B41=0,\"\",'effRT Support'!X41)","v":""},{"$f":"IF('effRT Support'!$B41=0,\"\",'effRT Support'!Y41)","v":""},{"$f":"IF('effRT Support'!$B41=0,\"\",'effRT Support'!Z41*10)","v":""},{"$f":"IF('effRT Support'!$B41=0,\"\",'effRT Support'!AA41)","v":""},{"$f":"IF('effRT Support'!$B41=0,\"\",'effRT Support'!AB41)","v":""},{"$f":"IF('effRT Support'!$B41=0,\"\",'effRT Support'!AC41)","v":""},{"$f":"IF('effRT Support'!$B41=0,\"\",'effRT Support'!AD41)","v":""},{"$f":"IF('effRT Support'!$B41=0,\"\",'effRT Support'!AE41)","v":""},{"$f":"IF('effRT Support'!$B41=0,\"\",\"Hours Actual or Deemed\")","v":""},{"$f":"IF('effRT Support'!$B41=0,\"\",'effRT Support'!$F41)","v":""},{"$f":"IF('effRT Support'!$B41=0,\"\",\"Wattage Actual or Deemed\")","v":""},{"$f":"IF('effRT Support'!$B41=0,\"\",IF('Project Information'!$D$33=\"Pay For Performance\",\"Actual\",\"Deemed\"))","v":""},{"$f":"IF('effRT Support'!$B41=0,\"\",\"Cost Actual or Deemed\")","v":""},{"$f":"IF('effRT Support'!$B41=0,\"\",IF('Project Information'!$D$33=\"Pay For Performance\",\"Actual\",\"Deemed\"))","v":""},{"$f":"IF('effRT Support'!$B41=0,\"\",\"Location\")","v":""},{"$f":"IF('effRT Support'!$B41=0,\"\",'effRT Support'!$E41)","v":""},{"$f":"IF('effRT Support'!$B41=0,\"\",\"Space Type\")","v":""},{"$f":"IF('effRT Support'!$B41=0,\"\",'effRT Support'!$G41)","v":""},{"$f":"IF('effRT Support'!$B41=0,\"\",\"Existing Fixture Description\")","v":""},{"$f":"IF('effRT Support'!$B41=0,\"\",'effRT Support'!$H41)","v":""},{"$f":"IF('effRT Support'!$B41=0,\"\",\"Existing Fixture Quantity\")","v":""},{"$f":"IF('effRT Support'!$B41=0,\"\",'effRT Support'!$I41)","v":""},{"$f":"IF('effRT Support'!$B41=0,\"\",\"Existing Fixture Wattage\")","v":""},{"$f":"IF('effRT Support'!$B41=0,\"\",'effRT Support'!$J41)","v":""},{"$f":"IF('effRT Support'!$B41=0,\"\",\"Annual Hours of Operation\")","v":""},{"$f":"IF('effRT Support'!$B41=0,\"\",'effRT Support'!$K41)","v":""},{"$f":"IF('effRT Support'!$B41=0,\"\",\"Installed Fixture Description\")","v":""},{"$f":"IF('effRT Support'!$B41=0,\"\",'effRT Support'!$M41)","v":""},{"$f":"IF('effRT Support'!$B41=0,\"\",\"Installed Fixture Wattage\")","v":""},{"$f":"IF('effRT Support'!$B41=0,\"\",'effRT Support'!$O41)","v":""},{"$f":"IF('effRT Support'!$B41=0,\"\",\"Material Cost\")","v":""},{"$f":"IF('effRT Support'!$B41=0,\"\",'effRT Support'!$R41)","v":""},{"$f":"IF('effRT Support'!$B41=0,\"\",\"Labor Cost\")","v":""},{"$f":"IF('effRT Support'!$B41=0,\"\",'effRT Support'!$S41)","v":""},{"$f":"IF('effRT Support'!$B41=0,\"\",\"Ancillary Costs - Measure Specific\")","v":""},{"$f":"IF('effRT Support'!$B41=0,\"\",'effRT Support'!$T41)","v":""},{"$f":"IF('effRT Support'!$B41=0,\"\",\"Fuel Type\")","v":""},{"$f":"IF('effRT Support'!$B41=0,\"\",'Project Information'!$D$44)","v":""},{"$f":"IF('effRT Support'!$B41=0,\"\",\"Installed Fixture Quantity\")","v":""},{"$f":"IF('effRT Support'!$B41=0,\"\",'effRT Support'!P40)","v":""}]
[{"$f":"IF('effRT Support'!$B42=0,\"\",IF('Project Information'!$D$33=\"Small Business\",\"SBL\",\"CILS\"))","v":""},{"$f":"IF('effRT Support'!$B42=0,\"\",IF('Project Information'!$K$2=\"\",\"\",'Project Information'!$K$2))","v":""},null,{"$f":"IF('effRT Support'!$B42=0,\"\",IF('Project Information'!$D$46=\"\",\"\",'Project Information'!$D$46))","v":""},{"$f":"IF('effRT Support'!$B42=0,\"\",IF('Project Information'!$D$20=\"\",\"\",VLOOKUP('Project Information'!$D$20,'Other Data'!$B$159:$E$189,4,FALSE)))","v":""},{"$f":"IF('effRT Support'!$B42=0,\"\",IF('Project Information'!$D$31=\"\",\"\",'Project Information'!$D$31))","v":""},{"$f":"IF('effRT Support'!$B42=0,\"\",IF('Project Information'!$D$5=\"\",\"\",'Project Information'!$D$5))","v":""},null,null,{"$f":"IF('effRT Support'!$B42=0,\"\",IF('Project Information'!$D$20=\"\",\"\",VLOOKUP('Project Information'!$D$20,'Other Data'!$B$159:$E$189,2,FALSE)))","v":""},{"$f":"IF('effRT Support'!$B42=0,\"\",IF('Project Information'!$D$20=\"\",\"\",VLOOKUP('Project Information'!$D$20,'Other Data'!$B$159:$E$189,3,FALSE)))","v":""},{"$f":"IF('effRT Support'!$B42=0,\"\",\"Existing\")","v":""},null,{"$f":"IF('effRT Support'!$B42=0,\"\",IF('Project Information'!$D$21=\"\",\"\",'Project Information'!$D$21))","v":""},{"$f":"IF('effRT Support'!$B42=0,\"\",IF('Project Information'!$D$48=\"\",\"\",'Project Information'!$D$48))","v":""},{"$f":"IF('effRT Support'!$B42=0,\"\",\"\")","v":""},{"$f":"IF('effRT Support'!$B42=0,\"\",\"\")","v":""},{"$f":"IF('effRT Support'!$B42=0,\"\",\"\")","v":""},{"$f":"IF('effRT Support'!$B42=0,\"\",\"\")","v":""},{"$f":"IF('effRT Support'!$B42=0,\"\",IF('Project Information'!$D$13=\"\",\"\",'Project Information'!$D$13))","v":""},{"$f":"IF('effRT Support'!$B42=0,\"\",IF('Project Information'!$E$13=\"\",\"\",'Project Information'!$E$13))","v":""},{"$f":"IF('effRT Support'!$B42=0,\"\",IF('Project Information'!$D$14=\"\",\"\",'Project Information'!$D$14))","v":""},{"$f":"IF('effRT Support'!$B42=0,\"\",IF('Project Information'!$D$15=\"\",\"\",'Project Information'!$D$15))","v":""},{"$f":"IF('effRT Support'!$B42=0,\"\",IF('Project Information'!$D$16=\"\",\"\",'Project Information'!$D$16))","v":""},null,{"$f":"IF('effRT Support'!$B42=0,\"\",'Project Information'!$D$18)","v":""},{"$f":"IF('effRT Support'!$B42=0,\"\",IF('Project Information'!$D$23=\"\",\"\",'Project Information'!$D$23))","v":""},{"$f":"IF('effRT Support'!$B42=0,\"\",IF('Project Information'!$D$24=\"\",\"\",'Project Information'!$D$24))","v":""},{"$f":"IF('effRT Support'!$B42=0,\"\",IF('Project Information'!$D$25=\"\",\"\",'Project Information'!$D$25))","v":""},{"$f":"IF('effRT Support'!$B42=0,\"\",IF('Project Information'!$E$25=\"\",\"\",'Project Information'!$E$25))","v":""},{"$f":"IF('effRT Support'!$B42=0,\"\",IF('Project Information'!$F$25=\"\",\"\",'Project Information'!$F$25))","v":""},{"$f":"IF('effRT Support'!$B42=0,\"\",IF('Project Information'!$D$27=\"\",\"Y\",\"N\"))","v":""},{"$f":"IF('effRT Support'!$B42=0,\"\",IF('Project Information'!$D$27=\"\",\"\",'Project Information'!$D$27))","v":""},{"$f":"IF('effRT Support'!$B42=0,\"\",IF('Project Information'!$D$28=\"\",\"\",'Project Information'!$D$28))","v":""},{"$f":"IF('effRT Support'!$B42=0,\"\",IF('Project Information'!$D$29=\"\",\"\",'Project Information'!$D$29))","v":""},{"$f":"IF('effRT Support'!$B42=0,\"\",IF('Project Information'!$E$29=\"\",\"\",'Project Information'!$E$29))","v":""},{"$f":"IF('effRT Support'!$B42=0,\"\",IF('Project Information'!$F$29=\"\",\"\",'Project Information'!$F$29))","v":""},{"$f":"IF('effRT Support'!$B42=0,\"\",\"\")","v":""},{"$f":"IF('effRT Support'!$B42=0,\"\",\"\")","v":""},{"$f":"IF('effRT Support'!$B42=0,\"\",IF('Project Information'!$D$36=\"\",\"\",'Project Information'!$D$36))","v":""},{"$f":"IF('effRT Support'!$B42=0,\"\",IF('Project Information'!$D$42=\"\",\"\",'Project Information'!$D$42))","v":""},{"$f":"IF('effRT Support'!$B42=0,\"\",'effRT Support'!$D42)","v":""},{"$f":"IF('effRT Support'!$B42=0,\"\",'effRT Support'!$L42)","v":""},{"$f":"IF('effRT Support'!$B42=0,\"\",'effRT Support'!$N42)","v":""},null,null,{"$f":"IF('effRT Support'!$B42=0,\"\",'effRT Support'!$P42)","v":""},{"$f":"IF('effRT Support'!$B42=0,\"\",'effRT Support'!$Q42)","v":""},{"$f":"IF('effRT Support'!$B42=0,\"\",'effRT Support'!U42)","v":""},{"$f":"IF('effRT Support'!$B42=0,\"\",'effRT Support'!V42)","v":""},{"$f":"IF('effRT Support'!$B42=0,\"\",'effRT Support'!W42)","v":""},{"$f":"IF('effRT Support'!$B42=0,\"\",'effRT Support'!X42)","v":""},{"$f":"IF('effRT Support'!$B42=0,\"\",'effRT Support'!Y42)","v":""},{"$f":"IF('effRT Support'!$B42=0,\"\",'effRT Support'!Z42*10)","v":""},{"$f":"IF('effRT Support'!$B42=0,\"\",'effRT Support'!AA42)","v":""},{"$f":"IF('effRT Support'!$B42=0,\"\",'effRT Support'!AB42)","v":""},{"$f":"IF('effRT Support'!$B42=0,\"\",'effRT Support'!AC42)","v":""},{"$f":"IF('effRT Support'!$B42=0,\"\",'effRT Support'!AD42)","v":""},{"$f":"IF('effRT Support'!$B42=0,\"\",'effRT Support'!AE42)","v":""},{"$f":"IF('effRT Support'!$B42=0,\"\",\"Hours Actual or Deemed\")","v":""},{"$f":"IF('effRT Support'!$B42=0,\"\",'effRT Support'!$F42)","v":""},{"$f":"IF('effRT Support'!$B42=0,\"\",\"Wattage Actual or Deemed\")","v":""},{"$f":"IF('effRT Support'!$B42=0,\"\",IF('Project Information'!$D$33=\"Pay For Performance\",\"Actual\",\"Deemed\"))","v":""},{"$f":"IF('effRT Support'!$B42=0,\"\",\"Cost Actual or Deemed\")","v":""},{"$f":"IF('effRT Support'!$B42=0,\"\",IF('Project Information'!$D$33=\"Pay For Performance\",\"Actual\",\"Deemed\"))","v":""},{"$f":"IF('effRT Support'!$B42=0,\"\",\"Location\")","v":""},{"$f":"IF('effRT Support'!$B42=0,\"\",'effRT Support'!$E42)","v":""},{"$f":"IF('effRT Support'!$B42=0,\"\",\"Space Type\")","v":""},{"$f":"IF('effRT Support'!$B42=0,\"\",'effRT Support'!$G42)","v":""},{"$f":"IF('effRT Support'!$B42=0,\"\",\"Existing Fixture Description\")","v":""},{"$f":"IF('effRT Support'!$B42=0,\"\",'effRT Support'!$H42)","v":""},{"$f":"IF('effRT Support'!$B42=0,\"\",\"Existing Fixture Quantity\")","v":""},{"$f":"IF('effRT Support'!$B42=0,\"\",'effRT Support'!$I42)","v":""},{"$f":"IF('effRT Support'!$B42=0,\"\",\"Existing Fixture Wattage\")","v":""},{"$f":"IF('effRT Support'!$B42=0,\"\",'effRT Support'!$J42)","v":""},{"$f":"IF('effRT Support'!$B42=0,\"\",\"Annual Hours of Operation\")","v":""},{"$f":"IF('effRT Support'!$B42=0,\"\",'effRT Support'!$K42)","v":""},{"$f":"IF('effRT Support'!$B42=0,\"\",\"Installed Fixture Description\")","v":""},{"$f":"IF('effRT Support'!$B42=0,\"\",'effRT Support'!$M42)","v":""},{"$f":"IF('effRT Support'!$B42=0,\"\",\"Installed Fixture Wattage\")","v":""},{"$f":"IF('effRT Support'!$B42=0,\"\",'effRT Support'!$O42)","v":""},{"$f":"IF('effRT Support'!$B42=0,\"\",\"Material Cost\")","v":""},{"$f":"IF('effRT Support'!$B42=0,\"\",'effRT Support'!$R42)","v":""},{"$f":"IF('effRT Support'!$B42=0,\"\",\"Labor Cost\")","v":""},{"$f":"IF('effRT Support'!$B42=0,\"\",'effRT Support'!$S42)","v":""},{"$f":"IF('effRT Support'!$B42=0,\"\",\"Ancillary Costs - Measure Specific\")","v":""},{"$f":"IF('effRT Support'!$B42=0,\"\",'effRT Support'!$T42)","v":""},{"$f":"IF('effRT Support'!$B42=0,\"\",\"Fuel Type\")","v":""},{"$f":"IF('effRT Support'!$B42=0,\"\",'Project Information'!$D$44)","v":""}]
[{"$f":"IF('effRT Support'!$B43=0,\"\",IF('Project Information'!$D$33=\"Small Business\",\"SBL\",\"CILS\"))","v":""},{"$f":"IF('effRT Support'!$B43=0,\"\",IF('Project Information'!$K$2=\"\",\"\",'Project Information'!$K$2))","v":""},null,{"$f":"IF('effRT Support'!$B43=0,\"\",IF('Project Information'!$D$46=\"\",\"\",'Project Information'!$D$46))","v":""},{"$f":"IF('effRT Support'!$B43=0,\"\",IF('Project Information'!$D$20=\"\",\"\",VLOOKUP('Project Information'!$D$20,'Other Data'!$B$159:$E$189,4,FALSE)))","v":""},{"$f":"IF('effRT Support'!$B43=0,\"\",IF('Project Information'!$D$31=\"\",\"\",'Project Information'!$D$31))","v":""},{"$f":"IF('effRT Support'!$B43=0,\"\",IF('Project Information'!$D$5=\"\",\"\",'Project Information'!$D$5))","v":""},null,null,{"$f":"IF('effRT Support'!$B43=0,\"\",IF('Project Information'!$D$20=\"\",\"\",VLOOKUP('Project Information'!$D$20,'Other Data'!$B$159:$E$189,2,FALSE)))","v":""},{"$f":"IF('effRT Support'!$B43=0,\"\",IF('Project Information'!$D$20=\"\",\"\",VLOOKUP('Project Information'!$D$20,'Other Data'!$B$159:$E$189,3,FALSE)))","v":""},{"$f":"IF('effRT Support'!$B43=0,\"\",\"Existing\")","v":""},null,{"$f":"IF('effRT Support'!$B43=0,\"\",IF('Project Information'!$D$21=\"\",\"\",'Project Information'!$D$21))","v":""},{"$f":"IF('effRT Support'!$B43=0,\"\",IF('Project Information'!$D$48=\"\",\"\",'Project Information'!$D$48))","v":""},{"$f":"IF('effRT Support'!$B43=0,\"\",\"\")","v":""},{"$f":"IF('effRT Support'!$B43=0,\"\",\"\")","v":""},{"$f":"IF('effRT Support'!$B43=0,\"\",\"\")","v":""},{"$f":"IF('effRT Support'!$B43=0,\"\",\"\")","v":""},{"$f":"IF('effRT Support'!$B43=0,\"\",IF('Project Information'!$D$13=\"\",\"\",'Project Information'!$D$13))","v":""},{"$f":"IF('effRT Support'!$B43=0,\"\",IF('Project Information'!$E$13=\"\",\"\",'Project Information'!$E$13))","v":""},{"$f":"IF('effRT Support'!$B43=0,\"\",IF('Project Information'!$D$14=\"\",\"\",'Project Information'!$D$14))","v":""},{"$f":"IF('effRT Support'!$B43=0,\"\",IF('Project Information'!$D$15=\"\",\"\",'Project Information'!$D$15))","v":""},{"$f":"IF('effRT Support'!$B43=0,\"\",IF('Project Information'!$D$16=\"\",\"\",'Project Information'!$D$16))","v":""},null,{"$f":"IF('effRT Support'!$B43=0,\"\",'Project Information'!$D$18)","v":""},{"$f":"IF('effRT Support'!$B43=0,\"\",IF('Project Information'!$D$23=\"\",\"\",'Project Information'!$D$23))","v":""},{"$f":"IF('effRT Support'!$B43=0,\"\",IF('Project Information'!$D$24=\"\",\"\",'Project Information'!$D$24))","v":""},{"$f":"IF('effRT Support'!$B43=0,\"\",IF('Project Information'!$D$25=\"\",\"\",'Project Information'!$D$25))","v":""},{"$f":"IF('effRT Support'!$B43=0,\"\",IF('Project Information'!$E$25=\"\",\"\",'Project Information'!$E$25))","v":""},{"$f":"IF('effRT Support'!$B43=0,\"\",IF('Project Information'!$F$25=\"\",\"\",'Project Information'!$F$25))","v":""},{"$f":"IF('effRT Support'!$B43=0,\"\",IF('Project Information'!$D$27=\"\",\"Y\",\"N\"))","v":""},{"$f":"IF('effRT Support'!$B43=0,\"\",IF('Project Information'!$D$27=\"\",\"\",'Project Information'!$D$27))","v":""},{"$f":"IF('effRT Support'!$B43=0,\"\",IF('Project Information'!$D$28=\"\",\"\",'Project Information'!$D$28))","v":""},{"$f":"IF('effRT Support'!$B43=0,\"\",IF('Project Information'!$D$29=\"\",\"\",'Project Information'!$D$29))","v":""},{"$f":"IF('effRT Support'!$B43=0,\"\",IF('Project Information'!$E$29=\"\",\"\",'Project Information'!$E$29))","v":""},{"$f":"IF('effRT Support'!$B43=0,\"\",IF('Project Information'!$F$29=\"\",\"\",'Project Information'!$F$29))","v":""},{"$f":"IF('effRT Support'!$B43=0,\"\",\"\")","v":""},{"$f":"IF('effRT Support'!$B43=0,\"\",\"\")","v":""},{"$f":"IF('effRT Support'!$B43=0,\"\",IF('Project Information'!$D$36=\"\",\"\",'Project Information'!$D$36))","v":""},{"$f":"IF('effRT Support'!$B43=0,\"\",IF('Project Information'!$D$42=\"\",\"\",'Project Information'!$D$42))","v":""},{"$f":"IF('effRT Support'!$B43=0,\"\",'effRT Support'!$D43)","v":""},{"$f":"IF('effRT Support'!$B43=0,\"\",'effRT Support'!$L43)","v":""},{"$f":"IF('effRT Support'!$B43=0,\"\",'effRT Support'!$N43)","v":""},null,null,{"$f":"IF('effRT Support'!$B43=0,\"\",'effRT Support'!$P43)","v":""},{"$f":"IF('effRT Support'!$B43=0,\"\",'effRT Support'!$Q43)","v":""},{"$f":"IF('effRT Support'!$B43=0,\"\",'effRT Support'!U43)","v":""},{"$f":"IF('effRT Support'!$B43=0,\"\",'effRT Support'!V43)","v":""},{"$f":"IF('effRT Support'!$B43=0,\"\",'effRT Support'!W43)","v":""},{"$f":"IF('effRT Support'!$B43=0,\"\",'effRT Support'!X43)","v":""},{"$f":"IF('effRT Support'!$B43=0,\"\",'effRT Support'!Y43)","v":""},{"$f":"IF('effRT Support'!$B43=0,\"\",'effRT Support'!Z43*10)","v":""},{"$f":"IF('effRT Support'!$B43=0,\"\",'effRT Support'!AA43)","v":""},{"$f":"IF('effRT Support'!$B43=0,\"\",'effRT Support'!AB43)","v":""},{"$f":"IF('effRT Support'!$B43=0,\"\",'effRT Support'!AC43)","v":""},{"$f":"IF('effRT Support'!$B43=0,\"\",'effRT Support'!AD43)","v":""},{"$f":"IF('effRT Support'!$B43=0,\"\",'effRT Support'!AE43)","v":""},{"$f":"IF('effRT Support'!$B43=0,\"\",\"Hours Actual or Deemed\")","v":""},{"$f":"IF('effRT Support'!$B43=0,\"\",'effRT Support'!$F43)","v":""},{"$f":"IF('effRT Support'!$B43=0,\"\",\"Wattage Actual or Deemed\")","v":""},{"$f":"IF('effRT Support'!$B43=0,\"\",IF('Project Information'!$D$33=\"Pay For Performance\",\"Actual\",\"Deemed\"))","v":""},{"$f":"IF('effRT Support'!$B43=0,\"\",\"Cost Actual or Deemed\")","v":""},{"$f":"IF('effRT Support'!$B43=0,\"\",IF('Project Information'!$D$33=\"Pay For Performance\",\"Actual\",\"Deemed\"))","v":""},{"$f":"IF('effRT Support'!$B43=0,\"\",\"Location\")","v":""},{"$f":"IF('effRT Support'!$B43=0,\"\",'effRT Support'!$E43)","v":""},{"$f":"IF('effRT Support'!$B43=0,\"\",\"Space Type\")","v":""},{"$f":"IF('effRT Support'!$B43=0,\"\",'effRT Support'!$G43)","v":""},{"$f":"IF('effRT Support'!$B43=0,\"\",\"Existing Fixture Description\")","v":""},{"$f":"IF('effRT Support'!$B43=0,\"\",'effRT Support'!$H43)","v":""},{"$f":"IF('effRT Support'!$B43=0,\"\",\"Existing Fixture Quantity\")","v":""},{"$f":"IF('effRT Support'!$B43=0,\"\",'effRT Support'!$I43)","v":""},{"$f":"IF('effRT Support'!$B43=0,\"\",\"Existing Fixture Wattage\")","v":""},{"$f":"IF('effRT Support'!$B43=0,\"\",'effRT Support'!$J43)","v":""},{"$f":"IF('effRT Support'!$B43=0,\"\",\"Annual Hours of Operation\")","v":""},{"$f":"IF('effRT Support'!$B43=0,\"\",'effRT Support'!$K43)","v":""},{"$f":"IF('effRT Support'!$B43=0,\"\",\"Installed Fixture Description\")","v":""},{"$f":"IF('effRT Support'!$B43=0,\"\",'effRT Support'!$M43)","v":""},{"$f":"IF('effRT Support'!$B43=0,\"\",\"Installed Fixture Wattage\")","v":""},{"$f":"IF('effRT Support'!$B43=0,\"\",'effRT Support'!$O43)","v":""},{"$f":"IF('effRT Support'!$B43=0,\"\",\"Material Cost\")","v":""},{"$f":"IF('effRT Support'!$B43=0,\"\",'effRT Support'!$R43)","v":""},{"$f":"IF('effRT Support'!$B43=0,\"\",\"Labor Cost\")","v":""},{"$f":"IF('effRT Support'!$B43=0,\"\",'effRT Support'!$S43)","v":""},{"$f":"IF('effRT Support'!$B43=0,\"\",\"Ancillary Costs - Measure Specific\")","v":""},{"$f":"IF('effRT Support'!$B43=0,\"\",'effRT Support'!$T43)","v":""},{"$f":"IF('effRT Support'!$B43=0,\"\",\"Fuel Type\")","v":""},{"$f":"IF('effRT Support'!$B43=0,\"\",'Project Information'!$D$44)","v":""},{"$f":"IF('effRT Support'!$B43=0,\"\",\"Installed Fixture Quantity\")","v":""},{"$f":"IF('effRT Support'!$B43=0,\"\",'effRT Support'!P42)","v":""}]
[{"$f":"IF('effRT Support'!$B44=0,\"\",IF('Project Information'!$D$33=\"Small Business\",\"SBL\",\"CILS\"))","v":""},{"$f":"IF('effRT Support'!$B44=0,\"\",IF('Project Information'!$K$2=\"\",\"\",'Project Information'!$K$2))","v":""},null,{"$f":"IF('effRT Support'!$B44=0,\"\",IF('Project Information'!$D$46=\"\",\"\",'Project Information'!$D$46))","v":""},{"$f":"IF('effRT Support'!$B44=0,\"\",IF('Project Information'!$D$20=\"\",\"\",VLOOKUP('Project Information'!$D$20,'Other Data'!$B$159:$E$189,4,FALSE)))","v":""},{"$f":"IF('effRT Support'!$B44=0,\"\",IF('Project Information'!$D$31=\"\",\"\",'Project Information'!$D$31))","v":""},{"$f":"IF('effRT Support'!$B44=0,\"\",IF('Project Information'!$D$5=\"\",\"\",'Project Information'!$D$5))","v":""},null,null,{"$f":"IF('effRT Support'!$B44=0,\"\",IF('Project Information'!$D$20=\"\",\"\",VLOOKUP('Project Information'!$D$20,'Other Data'!$B$159:$E$189,2,FALSE)))","v":""},{"$f":"IF('effRT Support'!$B44=0,\"\",IF('Project Information'!$D$20=\"\",\"\",VLOOKUP('Project Information'!$D$20,'Other Data'!$B$159:$E$189,3,FALSE)))","v":""},{"$f":"IF('effRT Support'!$B44=0,\"\",\"Existing\")","v":""},null,{"$f":"IF('effRT Support'!$B44=0,\"\",IF('Project Information'!$D$21=\"\",\"\",'Project Information'!$D$21))","v":""},{"$f":"IF('effRT Support'!$B44=0,\"\",IF('Project Information'!$D$48=\"\",\"\",'Project Information'!$D$48))","v":""},{"$f":"IF('effRT Support'!$B44=0,\"\",\"\")","v":""},{"$f":"IF('effRT Support'!$B44=0,\"\",\"\")","v":""},{"$f":"IF('effRT Support'!$B44=0,\"\",\"\")","v":""},{"$f":"IF('effRT Support'!$B44=0,\"\",\"\")","v":""},{"$f":"IF('effRT Support'!$B44=0,\"\",IF('Project Information'!$D$13=\"\",\"\",'Project Information'!$D$13))","v":""},{"$f":"IF('effRT Support'!$B44=0,\"\",IF('Project Information'!$E$13=\"\",\"\",'Project Information'!$E$13))","v":""},{"$f":"IF('effRT Support'!$B44=0,\"\",IF('Project Information'!$D$14=\"\",\"\",'Project Information'!$D$14))","v":""},{"$f":"IF('effRT Support'!$B44=0,\"\",IF('Project Information'!$D$15=\"\",\"\",'Project Information'!$D$15))","v":""},{"$f":"IF('effRT Support'!$B44=0,\"\",IF('Project Information'!$D$16=\"\",\"\",'Project Information'!$D$16))","v":""},null,{"$f":"IF('effRT Support'!$B44=0,\"\",'Project Information'!$D$18)","v":""},{"$f":"IF('effRT Support'!$B44=0,\"\",IF('Project Information'!$D$23=\"\",\"\",'Project Information'!$D$23))","v":""},{"$f":"IF('effRT Support'!$B44=0,\"\",IF('Project Information'!$D$24=\"\",\"\",'Project Information'!$D$24))","v":""},{"$f":"IF('effRT Support'!$B44=0,\"\",IF('Project Information'!$D$25=\"\",\"\",'Project Information'!$D$25))","v":""},{"$f":"IF('effRT Support'!$B44=0,\"\",IF('Project Information'!$E$25=\"\",\"\",'Project Information'!$E$25))","v":""},{"$f":"IF('effRT Support'!$B44=0,\"\",IF('Project Information'!$F$25=\"\",\"\",'Project Information'!$F$25))","v":""},{"$f":"IF('effRT Support'!$B44=0,\"\",IF('Project Information'!$D$27=\"\",\"Y\",\"N\"))","v":""},{"$f":"IF('effRT Support'!$B44=0,\"\",IF('Project Information'!$D$27=\"\",\"\",'Project Information'!$D$27))","v":""},{"$f":"IF('effRT Support'!$B44=0,\"\",IF('Project Information'!$D$28=\"\",\"\",'Project Information'!$D$28))","v":""},{"$f":"IF('effRT Support'!$B44=0,\"\",IF('Project Information'!$D$29=\"\",\"\",'Project Information'!$D$29))","v":""},{"$f":"IF('effRT Support'!$B44=0,\"\",IF('Project Information'!$E$29=\"\",\"\",'Project Information'!$E$29))","v":""},{"$f":"IF('effRT Support'!$B44=0,\"\",IF('Project Information'!$F$29=\"\",\"\",'Project Information'!$F$29))","v":""},{"$f":"IF('effRT Support'!$B44=0,\"\",\"\")","v":""},{"$f":"IF('effRT Support'!$B44=0,\"\",\"\")","v":""},{"$f":"IF('effRT Support'!$B44=0,\"\",IF('Project Information'!$D$36=\"\",\"\",'Project Information'!$D$36))","v":""},{"$f":"IF('effRT Support'!$B44=0,\"\",IF('Project Information'!$D$42=\"\",\"\",'Project Information'!$D$42))","v":""},{"$f":"IF('effRT Support'!$B44=0,\"\",'effRT Support'!$D44)","v":""},{"$f":"IF('effRT Support'!$B44=0,\"\",'effRT Support'!$L44)","v":""},{"$f":"IF('effRT Support'!$B44=0,\"\",'effRT Support'!$N44)","v":""},null,null,{"$f":"IF('effRT Support'!$B44=0,\"\",'effRT Support'!$P44)","v":""},{"$f":"IF('effRT Support'!$B44=0,\"\",'effRT Support'!$Q44)","v":""},{"$f":"IF('effRT Support'!$B44=0,\"\",'effRT Support'!U44)","v":""},{"$f":"IF('effRT Support'!$B44=0,\"\",'effRT Support'!V44)","v":""},{"$f":"IF('effRT Support'!$B44=0,\"\",'effRT Support'!W44)","v":""},{"$f":"IF('effRT Support'!$B44=0,\"\",'effRT Support'!X44)","v":""},{"$f":"IF('effRT Support'!$B44=0,\"\",'effRT Support'!Y44)","v":""},{"$f":"IF('effRT Support'!$B44=0,\"\",'effRT Support'!Z44*10)","v":""},{"$f":"IF('effRT Support'!$B44=0,\"\",'effRT Support'!AA44)","v":""},{"$f":"IF('effRT Support'!$B44=0,\"\",'effRT Support'!AB44)","v":""},{"$f":"IF('effRT Support'!$B44=0,\"\",'effRT Support'!AC44)","v":""},{"$f":"IF('effRT Support'!$B44=0,\"\",'effRT Support'!AD44)","v":""},{"$f":"IF('effRT Support'!$B44=0,\"\",'effRT Support'!AE44)","v":""},{"$f":"IF('effRT Support'!$B44=0,\"\",\"Hours Actual or Deemed\")","v":""},{"$f":"IF('effRT Support'!$B44=0,\"\",'effRT Support'!$F44)","v":""},{"$f":"IF('effRT Support'!$B44=0,\"\",\"Wattage Actual or Deemed\")","v":""},{"$f":"IF('effRT Support'!$B44=0,\"\",IF('Project Information'!$D$33=\"Pay For Performance\",\"Actual\",\"Deemed\"))","v":""},{"$f":"IF('effRT Support'!$B44=0,\"\",\"Cost Actual or Deemed\")","v":""},{"$f":"IF('effRT Support'!$B44=0,\"\",IF('Project Information'!$D$33=\"Pay For Performance\",\"Actual\",\"Deemed\"))","v":""},{"$f":"IF('effRT Support'!$B44=0,\"\",\"Location\")","v":""},{"$f":"IF('effRT Support'!$B44=0,\"\",'effRT Support'!$E44)","v":""},{"$f":"IF('effRT Support'!$B44=0,\"\",\"Space Type\")","v":""},{"$f":"IF('effRT Support'!$B44=0,\"\",'effRT Support'!$G44)","v":""},{"$f":"IF('effRT Support'!$B44=0,\"\",\"Existing Fixture Description\")","v":""},{"$f":"IF('effRT Support'!$B44=0,\"\",'effRT Support'!$H44)","v":""},{"$f":"IF('effRT Support'!$B44=0,\"\",\"Existing Fixture Quantity\")","v":""},{"$f":"IF('effRT Support'!$B44=0,\"\",'effRT Support'!$I44)","v":""},{"$f":"IF('effRT Support'!$B44=0,\"\",\"Existing Fixture Wattage\")","v":""},{"$f":"IF('effRT Support'!$B44=0,\"\",'effRT Support'!$J44)","v":""},{"$f":"IF('effRT Support'!$B44=0,\"\",\"Annual Hours of Operation\")","v":""},{"$f":"IF('effRT Support'!$B44=0,\"\",'effRT Support'!$K44)","v":""},{"$f":"IF('effRT Support'!$B44=0,\"\",\"Installed Fixture Description\")","v":""},{"$f":"IF('effRT Support'!$B44=0,\"\",'effRT Support'!$M44)","v":""},{"$f":"IF('effRT Support'!$B44=0,\"\",\"Installed Fixture Wattage\")","v":""},{"$f":"IF('effRT Support'!$B44=0,\"\",'effRT Support'!$O44)","v":""},{"$f":"IF('effRT Support'!$B44=0,\"\",\"Material Cost\")","v":""},{"$f":"IF('effRT Support'!$B44=0,\"\",'effRT Support'!$R44)","v":""},{"$f":"IF('effRT Support'!$B44=0,\"\",\"Labor Cost\")","v":""},{"$f":"IF('effRT Support'!$B44=0,\"\",'effRT Support'!$S44)","v":""},{"$f":"IF('effRT Support'!$B44=0,\"\",\"Ancillary Costs - Measure Specific\")","v":""},{"$f":"IF('effRT Support'!$B44=0,\"\",'effRT Support'!$T44)","v":""},{"$f":"IF('effRT Support'!$B44=0,\"\",\"Fuel Type\")","v":""},{"$f":"IF('effRT Support'!$B44=0,\"\",'Project Information'!$D$44)","v":""}]
[{"$f":"IF('effRT Support'!$B45=0,\"\",IF('Project Information'!$D$33=\"Small Business\",\"SBL\",\"CILS\"))","v":""},{"$f":"IF('effRT Support'!$B45=0,\"\",IF('Project Information'!$K$2=\"\",\"\",'Project Information'!$K$2))","v":""},null,{"$f":"IF('effRT Support'!$B45=0,\"\",IF('Project Information'!$D$46=\"\",\"\",'Project Information'!$D$46))","v":""},{"$f":"IF('effRT Support'!$B45=0,\"\",IF('Project Information'!$D$20=\"\",\"\",VLOOKUP('Project Information'!$D$20,'Other Data'!$B$159:$E$189,4,FALSE)))","v":""},{"$f":"IF('effRT Support'!$B45=0,\"\",IF('Project Information'!$D$31=\"\",\"\",'Project Information'!$D$31))","v":""},{"$f":"IF('effRT Support'!$B45=0,\"\",IF('Project Information'!$D$5=\"\",\"\",'Project Information'!$D$5))","v":""},null,null,{"$f":"IF('effRT Support'!$B45=0,\"\",IF('Project Information'!$D$20=\"\",\"\",VLOOKUP('Project Information'!$D$20,'Other Data'!$B$159:$E$189,2,FALSE)))","v":""},{"$f":"IF('effRT Support'!$B45=0,\"\",IF('Project Information'!$D$20=\"\",\"\",VLOOKUP('Project Information'!$D$20,'Other Data'!$B$159:$E$189,3,FALSE)))","v":""},{"$f":"IF('effRT Support'!$B45=0,\"\",\"Existing\")","v":""},null,{"$f":"IF('effRT Support'!$B45=0,\"\",IF('Project Information'!$D$21=\"\",\"\",'Project Information'!$D$21))","v":""},{"$f":"IF('effRT Support'!$B45=0,\"\",IF('Project Information'!$D$48=\"\",\"\",'Project Information'!$D$48))","v":""},{"$f":"IF('effRT Support'!$B45=0,\"\",\"\")","v":""},{"$f":"IF('effRT Support'!$B45=0,\"\",\"\")","v":""},{"$f":"IF('effRT Support'!$B45=0,\"\",\"\")","v":""},{"$f":"IF('effRT Support'!$B45=0,\"\",\"\")","v":""},{"$f":"IF('effRT Support'!$B45=0,\"\",IF('Project Information'!$D$13=\"\",\"\",'Project Information'!$D$13))","v":""},{"$f":"IF('effRT Support'!$B45=0,\"\",IF('Project Information'!$E$13=\"\",\"\",'Project Information'!$E$13))","v":""},{"$f":"IF('effRT Support'!$B45=0,\"\",IF('Project Information'!$D$14=\"\",\"\",'Project Information'!$D$14))","v":""},{"$f":"IF('effRT Support'!$B45=0,\"\",IF('Project Information'!$D$15=\"\",\"\",'Project Information'!$D$15))","v":""},{"$f":"IF('effRT Support'!$B45=0,\"\",IF('Project Information'!$D$16=\"\",\"\",'Project Information'!$D$16))","v":""},null,{"$f":"IF('effRT Support'!$B45=0,\"\",'Project Information'!$D$18)","v":""},{"$f":"IF('effRT Support'!$B45=0,\"\",IF('Project Information'!$D$23=\"\",\"\",'Project Information'!$D$23))","v":""},{"$f":"IF('effRT Support'!$B45=0,\"\",IF('Project Information'!$D$24=\"\",\"\",'Project Information'!$D$24))","v":""},{"$f":"IF('effRT Support'!$B45=0,\"\",IF('Project Information'!$D$25=\"\",\"\",'Project Information'!$D$25))","v":""},{"$f":"IF('effRT Support'!$B45=0,\"\",IF('Project Information'!$E$25=\"\",\"\",'Project Information'!$E$25))","v":""},{"$f":"IF('effRT Support'!$B45=0,\"\",IF('Project Information'!$F$25=\"\",\"\",'Project Information'!$F$25))","v":""},{"$f":"IF('effRT Support'!$B45=0,\"\",IF('Project Information'!$D$27=\"\",\"Y\",\"N\"))","v":""},{"$f":"IF('effRT Support'!$B45=0,\"\",IF('Project Information'!$D$27=\"\",\"\",'Project Information'!$D$27))","v":""},{"$f":"IF('effRT Support'!$B45=0,\"\",IF('Project Information'!$D$28=\"\",\"\",'Project Information'!$D$28))","v":""},{"$f":"IF('effRT Support'!$B45=0,\"\",IF('Project Information'!$D$29=\"\",\"\",'Project Information'!$D$29))","v":""},{"$f":"IF('effRT Support'!$B45=0,\"\",IF('Project Information'!$E$29=\"\",\"\",'Project Information'!$E$29))","v":""},{"$f":"IF('effRT Support'!$B45=0,\"\",IF('Project Information'!$F$29=\"\",\"\",'Project Information'!$F$29))","v":""},{"$f":"IF('effRT Support'!$B45=0,\"\",\"\")","v":""},{"$f":"IF('effRT Support'!$B45=0,\"\",\"\")","v":""},{"$f":"IF('effRT Support'!$B45=0,\"\",IF('Project Information'!$D$36=\"\",\"\",'Project Information'!$D$36))","v":""},{"$f":"IF('effRT Support'!$B45=0,\"\",IF('Project Information'!$D$42=\"\",\"\",'Project Information'!$D$42))","v":""},{"$f":"IF('effRT Support'!$B45=0,\"\",'effRT Support'!$D45)","v":""},{"$f":"IF('effRT Support'!$B45=0,\"\",'effRT Support'!$L45)","v":""},{"$f":"IF('effRT Support'!$B45=0,\"\",'effRT Support'!$N45)","v":""},null,null,{"$f":"IF('effRT Support'!$B45=0,\"\",'effRT Support'!$P45)","v":""},{"$f":"IF('effRT Support'!$B45=0,\"\",'effRT Support'!$Q45)","v":""},{"$f":"IF('effRT Support'!$B45=0,\"\",'effRT Support'!U45)","v":""},{"$f":"IF('effRT Support'!$B45=0,\"\",'effRT Support'!V45)","v":""},{"$f":"IF('effRT Support'!$B45=0,\"\",'effRT Support'!W45)","v":""},{"$f":"IF('effRT Support'!$B45=0,\"\",'effRT Support'!X45)","v":""},{"$f":"IF('effRT Support'!$B45=0,\"\",'effRT Support'!Y45)","v":""},{"$f":"IF('effRT Support'!$B45=0,\"\",'effRT Support'!Z45*10)","v":""},{"$f":"IF('effRT Support'!$B45=0,\"\",'effRT Support'!AA45)","v":""},{"$f":"IF('effRT Support'!$B45=0,\"\",'effRT Support'!AB45)","v":""},{"$f":"IF('effRT Support'!$B45=0,\"\",'effRT Support'!AC45)","v":""},{"$f":"IF('effRT Support'!$B45=0,\"\",'effRT Support'!AD45)","v":""},{"$f":"IF('effRT Support'!$B45=0,\"\",'effRT Support'!AE45)","v":""},{"$f":"IF('effRT Support'!$B45=0,\"\",\"Hours Actual or Deemed\")","v":""},{"$f":"IF('effRT Support'!$B45=0,\"\",'effRT Support'!$F45)","v":""},{"$f":"IF('effRT Support'!$B45=0,\"\",\"Wattage Actual or Deemed\")","v":""},{"$f":"IF('effRT Support'!$B45=0,\"\",IF('Project Information'!$D$33=\"Pay For Performance\",\"Actual\",\"Deemed\"))","v":""},{"$f":"IF('effRT Support'!$B45=0,\"\",\"Cost Actual or Deemed\")","v":""},{"$f":"IF('effRT Support'!$B45=0,\"\",IF('Project Information'!$D$33=\"Pay For Performance\",\"Actual\",\"Deemed\"))","v":""},{"$f":"IF('effRT Support'!$B45=0,\"\",\"Location\")","v":""},{"$f":"IF('effRT Support'!$B45=0,\"\",'effRT Support'!$E45)","v":""},{"$f":"IF('effRT Support'!$B45=0,\"\",\"Space Type\")","v":""},{"$f":"IF('effRT Support'!$B45=0,\"\",'effRT Support'!$G45)","v":""},{"$f":"IF('effRT Support'!$B45=0,\"\",\"Existing Fixture Description\")","v":""},{"$f":"IF('effRT Support'!$B45=0,\"\",'effRT Support'!$H45)","v":""},{"$f":"IF('effRT Support'!$B45=0,\"\",\"Existing Fixture Quantity\")","v":""},{"$f":"IF('effRT Support'!$B45=0,\"\",'effRT Support'!$I45)","v":""},{"$f":"IF('effRT Support'!$B45=0,\"\",\"Existing Fixture Wattage\")","v":""},{"$f":"IF('effRT Support'!$B45=0,\"\",'effRT Support'!$J45)","v":""},{"$f":"IF('effRT Support'!$B45=0,\"\",\"Annual Hours of Operation\")","v":""},{"$f":"IF('effRT Support'!$B45=0,\"\",'effRT Support'!$K45)","v":""},{"$f":"IF('effRT Support'!$B45=0,\"\",\"Installed Fixture Description\")","v":""},{"$f":"IF('effRT Support'!$B45=0,\"\",'effRT Support'!$M45)","v":""},{"$f":"IF('effRT Support'!$B45=0,\"\",\"Installed Fixture Wattage\")","v":""},{"$f":"IF('effRT Support'!$B45=0,\"\",'effRT Support'!$O45)","v":""},{"$f":"IF('effRT Support'!$B45=0,\"\",\"Material Cost\")","v":""},{"$f":"IF('effRT Support'!$B45=0,\"\",'effRT Support'!$R45)","v":""},{"$f":"IF('effRT Support'!$B45=0,\"\",\"Labor Cost\")","v":""},{"$f":"IF('effRT Support'!$B45=0,\"\",'effRT Support'!$S45)","v":""},{"$f":"IF('effRT Support'!$B45=0,\"\",\"Ancillary Costs - Measure Specific\")","v":""},{"$f":"IF('effRT Support'!$B45=0,\"\",'effRT Support'!$T45)","v":""},{"$f":"IF('effRT Support'!$B45=0,\"\",\"Fuel Type\")","v":""},{"$f":"IF('effRT Support'!$B45=0,\"\",'Project Information'!$D$44)","v":""},{"$f":"IF('effRT Support'!$B45=0,\"\",\"Installed Fixture Quantity\")","v":""},{"$f":"IF('effRT Support'!$B45=0,\"\",'effRT Support'!P44)","v":""}]
[{"$f":"IF('effRT Support'!$B46=0,\"\",IF('Project Information'!$D$33=\"Small Business\",\"SBL\",\"CILS\"))","v":""},{"$f":"IF('effRT Support'!$B46=0,\"\",IF('Project Information'!$K$2=\"\",\"\",'Project Information'!$K$2))","v":""},null,{"$f":"IF('effRT Support'!$B46=0,\"\",IF('Project Information'!$D$46=\"\",\"\",'Project Information'!$D$46))","v":""},{"$f":"IF('effRT Support'!$B46=0,\"\",IF('Project Information'!$D$20=\"\",\"\",VLOOKUP('Project Information'!$D$20,'Other Data'!$B$159:$E$189,4,FALSE)))","v":""},{"$f":"IF('effRT Support'!$B46=0,\"\",IF('Project Information'!$D$31=\"\",\"\",'Project Information'!$D$31))","v":""},{"$f":"IF('effRT Support'!$B46=0,\"\",IF('Project Information'!$D$5=\"\",\"\",'Project Information'!$D$5))","v":""},null,null,{"$f":"IF('effRT Support'!$B46=0,\"\",IF('Project Information'!$D$20=\"\",\"\",VLOOKUP('Project Information'!$D$20,'Other Data'!$B$159:$E$189,2,FALSE)))","v":""},{"$f":"IF('effRT Support'!$B46=0,\"\",IF('Project Information'!$D$20=\"\",\"\",VLOOKUP('Project Information'!$D$20,'Other Data'!$B$159:$E$189,3,FALSE)))","v":""},{"$f":"IF('effRT Support'!$B46=0,\"\",\"Existing\")","v":""},null,{"$f":"IF('effRT Support'!$B46=0,\"\",IF('Project Information'!$D$21=\"\",\"\",'Project Information'!$D$21))","v":""},{"$f":"IF('effRT Support'!$B46=0,\"\",IF('Project Information'!$D$48=\"\",\"\",'Project Information'!$D$48))","v":""},{"$f":"IF('effRT Support'!$B46=0,\"\",\"\")","v":""},{"$f":"IF('effRT Support'!$B46=0,\"\",\"\")","v":""},{"$f":"IF('effRT Support'!$B46=0,\"\",\"\")","v":""},{"$f":"IF('effRT Support'!$B46=0,\"\",\"\")","v":""},{"$f":"IF('effRT Support'!$B46=0,\"\",IF('Project Information'!$D$13=\"\",\"\",'Project Information'!$D$13))","v":""},{"$f":"IF('effRT Support'!$B46=0,\"\",IF('Project Information'!$E$13=\"\",\"\",'Project Information'!$E$13))","v":""},{"$f":"IF('effRT Support'!$B46=0,\"\",IF('Project Information'!$D$14=\"\",\"\",'Project Information'!$D$14))","v":""},{"$f":"IF('effRT Support'!$B46=0,\"\",IF('Project Information'!$D$15=\"\",\"\",'Project Information'!$D$15))","v":""},{"$f":"IF('effRT Support'!$B46=0,\"\",IF('Project Information'!$D$16=\"\",\"\",'Project Information'!$D$16))","v":""},null,{"$f":"IF('effRT Support'!$B46=0,\"\",'Project Information'!$D$18)","v":""},{"$f":"IF('effRT Support'!$B46=0,\"\",IF('Project Information'!$D$23=\"\",\"\",'Project Information'!$D$23))","v":""},{"$f":"IF('effRT Support'!$B46=0,\"\",IF('Project Information'!$D$24=\"\",\"\",'Project Information'!$D$24))","v":""},{"$f":"IF('effRT Support'!$B46=0,\"\",IF('Project Information'!$D$25=\"\",\"\",'Project Information'!$D$25))","v":""},{"$f":"IF('effRT Support'!$B46=0,\"\",IF('Project Information'!$E$25=\"\",\"\",'Project Information'!$E$25))","v":""},{"$f":"IF('effRT Support'!$B46=0,\"\",IF('Project Information'!$F$25=\"\",\"\",'Project Information'!$F$25))","v":""},{"$f":"IF('effRT Support'!$B46=0,\"\",IF('Project Information'!$D$27=\"\",\"Y\",\"N\"))","v":""},{"$f":"IF('effRT Support'!$B46=0,\"\",IF('Project Information'!$D$27=\"\",\"\",'Project Information'!$D$27))","v":""},{"$f":"IF('effRT Support'!$B46=0,\"\",IF('Project Information'!$D$28=\"\",\"\",'Project Information'!$D$28))","v":""},{"$f":"IF('effRT Support'!$B46=0,\"\",IF('Project Information'!$D$29=\"\",\"\",'Project Information'!$D$29))","v":""},{"$f":"IF('effRT Support'!$B46=0,\"\",IF('Project Information'!$E$29=\"\",\"\",'Project Information'!$E$29))","v":""},{"$f":"IF('effRT Support'!$B46=0,\"\",IF('Project Information'!$F$29=\"\",\"\",'Project Information'!$F$29))","v":""},{"$f":"IF('effRT Support'!$B46=0,\"\",\"\")","v":""},{"$f":"IF('effRT Support'!$B46=0,\"\",\"\")","v":""},{"$f":"IF('effRT Support'!$B46=0,\"\",IF('Project Information'!$D$36=\"\",\"\",'Project Information'!$D$36))","v":""},{"$f":"IF('effRT Support'!$B46=0,\"\",IF('Project Information'!$D$42=\"\",\"\",'Project Information'!$D$42))","v":""},{"$f":"IF('effRT Support'!$B46=0,\"\",'effRT Support'!$D46)","v":""},{"$f":"IF('effRT Support'!$B46=0,\"\",'effRT Support'!$L46)","v":""},{"$f":"IF('effRT Support'!$B46=0,\"\",'effRT Support'!$N46)","v":""},null,null,{"$f":"IF('effRT Support'!$B46=0,\"\",'effRT Support'!$P46)","v":""},{"$f":"IF('effRT Support'!$B46=0,\"\",'effRT Support'!$Q46)","v":""},{"$f":"IF('effRT Support'!$B46=0,\"\",'effRT Support'!U46)","v":""},{"$f":"IF('effRT Support'!$B46=0,\"\",'effRT Support'!V46)","v":""},{"$f":"IF('effRT Support'!$B46=0,\"\",'effRT Support'!W46)","v":""},{"$f":"IF('effRT Support'!$B46=0,\"\",'effRT Support'!X46)","v":""},{"$f":"IF('effRT Support'!$B46=0,\"\",'effRT Support'!Y46)","v":""},{"$f":"IF('effRT Support'!$B46=0,\"\",'effRT Support'!Z46*10)","v":""},{"$f":"IF('effRT Support'!$B46=0,\"\",'effRT Support'!AA46)","v":""},{"$f":"IF('effRT Support'!$B46=0,\"\",'effRT Support'!AB46)","v":""},{"$f":"IF('effRT Support'!$B46=0,\"\",'effRT Support'!AC46)","v":""},{"$f":"IF('effRT Support'!$B46=0,\"\",'effRT Support'!AD46)","v":""},{"$f":"IF('effRT Support'!$B46=0,\"\",'effRT Support'!AE46)","v":""},{"$f":"IF('effRT Support'!$B46=0,\"\",\"Hours Actual or Deemed\")","v":""},{"$f":"IF('effRT Support'!$B46=0,\"\",'effRT Support'!$F46)","v":""},{"$f":"IF('effRT Support'!$B46=0,\"\",\"Wattage Actual or Deemed\")","v":""},{"$f":"IF('effRT Support'!$B46=0,\"\",IF('Project Information'!$D$33=\"Pay For Performance\",\"Actual\",\"Deemed\"))","v":""},{"$f":"IF('effRT Support'!$B46=0,\"\",\"Cost Actual or Deemed\")","v":""},{"$f":"IF('effRT Support'!$B46=0,\"\",IF('Project Information'!$D$33=\"Pay For Performance\",\"Actual\",\"Deemed\"))","v":""},{"$f":"IF('effRT Support'!$B46=0,\"\",\"Location\")","v":""},{"$f":"IF('effRT Support'!$B46=0,\"\",'effRT Support'!$E46)","v":""},{"$f":"IF('effRT Support'!$B46=0,\"\",\"Space Type\")","v":""},{"$f":"IF('effRT Support'!$B46=0,\"\",'effRT Support'!$G46)","v":""},{"$f":"IF('effRT Support'!$B46=0,\"\",\"Existing Fixture Description\")","v":""},{"$f":"IF('effRT Support'!$B46=0,\"\",'effRT Support'!$H46)","v":""},{"$f":"IF('effRT Support'!$B46=0,\"\",\"Existing Fixture Quantity\")","v":""},{"$f":"IF('effRT Support'!$B46=0,\"\",'effRT Support'!$I46)","v":""},{"$f":"IF('effRT Support'!$B46=0,\"\",\"Existing Fixture Wattage\")","v":""},{"$f":"IF('effRT Support'!$B46=0,\"\",'effRT Support'!$J46)","v":""},{"$f":"IF('effRT Support'!$B46=0,\"\",\"Annual Hours of Operation\")","v":""},{"$f":"IF('effRT Support'!$B46=0,\"\",'effRT Support'!$K46)","v":""},{"$f":"IF('effRT Support'!$B46=0,\"\",\"Installed Fixture Description\")","v":""},{"$f":"IF('effRT Support'!$B46=0,\"\",'effRT Support'!$M46)","v":""},{"$f":"IF('effRT Support'!$B46=0,\"\",\"Installed Fixture Wattage\")","v":""},{"$f":"IF('effRT Support'!$B46=0,\"\",'effRT Support'!$O46)","v":""},{"$f":"IF('effRT Support'!$B46=0,\"\",\"Material Cost\")","v":""},{"$f":"IF('effRT Support'!$B46=0,\"\",'effRT Support'!$R46)","v":""},{"$f":"IF('effRT Support'!$B46=0,\"\",\"Labor Cost\")","v":""},{"$f":"IF('effRT Support'!$B46=0,\"\",'effRT Support'!$S46)","v":""},{"$f":"IF('effRT Support'!$B46=0,\"\",\"Ancillary Costs - Measure Specific\")","v":""},{"$f":"IF('effRT Support'!$B46=0,\"\",'effRT Support'!$T46)","v":""},{"$f":"IF('effRT Support'!$B46=0,\"\",\"Fuel Type\")","v":""},{"$f":"IF('effRT Support'!$B46=0,\"\",'Project Information'!$D$44)","v":""}]
[{"$f":"IF('effRT Support'!$B47=0,\"\",IF('Project Information'!$D$33=\"Small Business\",\"SBL\",\"CILS\"))","v":""},{"$f":"IF('effRT Support'!$B47=0,\"\",IF('Project Information'!$K$2=\"\",\"\",'Project Information'!$K$2))","v":""},null,{"$f":"IF('effRT Support'!$B47=0,\"\",IF('Project Information'!$D$46=\"\",\"\",'Project Information'!$D$46))","v":""},{"$f":"IF('effRT Support'!$B47=0,\"\",IF('Project Information'!$D$20=\"\",\"\",VLOOKUP('Project Information'!$D$20,'Other Data'!$B$159:$E$189,4,FALSE)))","v":""},{"$f":"IF('effRT Support'!$B47=0,\"\",IF('Project Information'!$D$31=\"\",\"\",'Project Information'!$D$31))","v":""},{"$f":"IF('effRT Support'!$B47=0,\"\",IF('Project Information'!$D$5=\"\",\"\",'Project Information'!$D$5))","v":""},null,null,{"$f":"IF('effRT Support'!$B47=0,\"\",IF('Project Information'!$D$20=\"\",\"\",VLOOKUP('Project Information'!$D$20,'Other Data'!$B$159:$E$189,2,FALSE)))","v":""},{"$f":"IF('effRT Support'!$B47=0,\"\",IF('Project Information'!$D$20=\"\",\"\",VLOOKUP('Project Information'!$D$20,'Other Data'!$B$159:$E$189,3,FALSE)))","v":""},{"$f":"IF('effRT Support'!$B47=0,\"\",\"Existing\")","v":""},null,{"$f":"IF('effRT Support'!$B47=0,\"\",IF('Project Information'!$D$21=\"\",\"\",'Project Information'!$D$21))","v":""},{"$f":"IF('effRT Support'!$B47=0,\"\",IF('Project Information'!$D$48=\"\",\"\",'Project Information'!$D$48))","v":""},{"$f":"IF('effRT Support'!$B47=0,\"\",\"\")","v":""},{"$f":"IF('effRT Support'!$B47=0,\"\",\"\")","v":""},{"$f":"IF('effRT Support'!$B47=0,\"\",\"\")","v":""},{"$f":"IF('effRT Support'!$B47=0,\"\",\"\")","v":""},{"$f":"IF('effRT Support'!$B47=0,\"\",IF('Project Information'!$D$13=\"\",\"\",'Project Information'!$D$13))","v":""},{"$f":"IF('effRT Support'!$B47=0,\"\",IF('Project Information'!$E$13=\"\",\"\",'Project Information'!$E$13))","v":""},{"$f":"IF('effRT Support'!$B47=0,\"\",IF('Project Information'!$D$14=\"\",\"\",'Project Information'!$D$14))","v":""},{"$f":"IF('effRT Support'!$B47=0,\"\",IF('Project Information'!$D$15=\"\",\"\",'Project Information'!$D$15))","v":""},{"$f":"IF('effRT Support'!$B47=0,\"\",IF('Project Information'!$D$16=\"\",\"\",'Project Information'!$D$16))","v":""},null,{"$f":"IF('effRT Support'!$B47=0,\"\",'Project Information'!$D$18)","v":""},{"$f":"IF('effRT Support'!$B47=0,\"\",IF('Project Information'!$D$23=\"\",\"\",'Project Information'!$D$23))","v":""},{"$f":"IF('effRT Support'!$B47=0,\"\",IF('Project Information'!$D$24=\"\",\"\",'Project Information'!$D$24))","v":""},{"$f":"IF('effRT Support'!$B47=0,\"\",IF('Project Information'!$D$25=\"\",\"\",'Project Information'!$D$25))","v":""},{"$f":"IF('effRT Support'!$B47=0,\"\",IF('Project Information'!$E$25=\"\",\"\",'Project Information'!$E$25))","v":""},{"$f":"IF('effRT Support'!$B47=0,\"\",IF('Project Information'!$F$25=\"\",\"\",'Project Information'!$F$25))","v":""},{"$f":"IF('effRT Support'!$B47=0,\"\",IF('Project Information'!$D$27=\"\",\"Y\",\"N\"))","v":""},{"$f":"IF('effRT Support'!$B47=0,\"\",IF('Project Information'!$D$27=\"\",\"\",'Project Information'!$D$27))","v":""},{"$f":"IF('effRT Support'!$B47=0,\"\",IF('Project Information'!$D$28=\"\",\"\",'Project Information'!$D$28))","v":""},{"$f":"IF('effRT Support'!$B47=0,\"\",IF('Project Information'!$D$29=\"\",\"\",'Project Information'!$D$29))","v":""},{"$f":"IF('effRT Support'!$B47=0,\"\",IF('Project Information'!$E$29=\"\",\"\",'Project Information'!$E$29))","v":""},{"$f":"IF('effRT Support'!$B47=0,\"\",IF('Project Information'!$F$29=\"\",\"\",'Project Information'!$F$29))","v":""},{"$f":"IF('effRT Support'!$B47=0,\"\",\"\")","v":""},{"$f":"IF('effRT Support'!$B47=0,\"\",\"\")","v":""},{"$f":"IF('effRT Support'!$B47=0,\"\",IF('Project Information'!$D$36=\"\",\"\",'Project Information'!$D$36))","v":""},{"$f":"IF('effRT Support'!$B47=0,\"\",IF('Project Information'!$D$42=\"\",\"\",'Project Information'!$D$42))","v":""},{"$f":"IF('effRT Support'!$B47=0,\"\",'effRT Support'!$D47)","v":""},{"$f":"IF('effRT Support'!$B47=0,\"\",'effRT Support'!$L47)","v":""},{"$f":"IF('effRT Support'!$B47=0,\"\",'effRT Support'!$N47)","v":""},null,null,{"$f":"IF('effRT Support'!$B47=0,\"\",'effRT Support'!$P47)","v":""},{"$f":"IF('effRT Support'!$B47=0,\"\",'effRT Support'!$Q47)","v":""},{"$f":"IF('effRT Support'!$B47=0,\"\",'effRT Support'!U47)","v":""},{"$f":"IF('effRT Support'!$B47=0,\"\",'effRT Support'!V47)","v":""},{"$f":"IF('effRT Support'!$B47=0,\"\",'effRT Support'!W47)","v":""},{"$f":"IF('effRT Support'!$B47=0,\"\",'effRT Support'!X47)","v":""},{"$f":"IF('effRT Support'!$B47=0,\"\",'effRT Support'!Y47)","v":""},{"$f":"IF('effRT Support'!$B47=0,\"\",'effRT Support'!Z47*10)","v":""},{"$f":"IF('effRT Support'!$B47=0,\"\",'effRT Support'!AA47)","v":""},{"$f":"IF('effRT Support'!$B47=0,\"\",'effRT Support'!AB47)","v":""},{"$f":"IF('effRT Support'!$B47=0,\"\",'effRT Support'!AC47)","v":""},{"$f":"IF('effRT Support'!$B47=0,\"\",'effRT Support'!AD47)","v":""},{"$f":"IF('effRT Support'!$B47=0,\"\",'effRT Support'!AE47)","v":""},{"$f":"IF('effRT Support'!$B47=0,\"\",\"Hours Actual or Deemed\")","v":""},{"$f":"IF('effRT Support'!$B47=0,\"\",'effRT Support'!$F47)","v":""},{"$f":"IF('effRT Support'!$B47=0,\"\",\"Wattage Actual or Deemed\")","v":""},{"$f":"IF('effRT Support'!$B47=0,\"\",IF('Project Information'!$D$33=\"Pay For Performance\",\"Actual\",\"Deemed\"))","v":""},{"$f":"IF('effRT Support'!$B47=0,\"\",\"Cost Actual or Deemed\")","v":""},{"$f":"IF('effRT Support'!$B47=0,\"\",IF('Project Information'!$D$33=\"Pay For Performance\",\"Actual\",\"Deemed\"))","v":""},{"$f":"IF('effRT Support'!$B47=0,\"\",\"Location\")","v":""},{"$f":"IF('effRT Support'!$B47=0,\"\",'effRT Support'!$E47)","v":""},{"$f":"IF('effRT Support'!$B47=0,\"\",\"Space Type\")","v":""},{"$f":"IF('effRT Support'!$B47=0,\"\",'effRT Support'!$G47)","v":""},{"$f":"IF('effRT Support'!$B47=0,\"\",\"Existing Fixture Description\")","v":""},{"$f":"IF('effRT Support'!$B47=0,\"\",'effRT Support'!$H47)","v":""},{"$f":"IF('effRT Support'!$B47=0,\"\",\"Existing Fixture Quantity\")","v":""},{"$f":"IF('effRT Support'!$B47=0,\"\",'effRT Support'!$I47)","v":""},{"$f":"IF('effRT Support'!$B47=0,\"\",\"Existing Fixture Wattage\")","v":""},{"$f":"IF('effRT Support'!$B47=0,\"\",'effRT Support'!$J47)","v":""},{"$f":"IF('effRT Support'!$B47=0,\"\",\"Annual Hours of Operation\")","v":""},{"$f":"IF('effRT Support'!$B47=0,\"\",'effRT Support'!$K47)","v":""},{"$f":"IF('effRT Support'!$B47=0,\"\",\"Installed Fixture Description\")","v":""},{"$f":"IF('effRT Support'!$B47=0,\"\",'effRT Support'!$M47)","v":""},{"$f":"IF('effRT Support'!$B47=0,\"\",\"Installed Fixture Wattage\")","v":""},{"$f":"IF('effRT Support'!$B47=0,\"\",'effRT Support'!$O47)","v":""},{"$f":"IF('effRT Support'!$B47=0,\"\",\"Material Cost\")","v":""},{"$f":"IF('effRT Support'!$B47=0,\"\",'effRT Support'!$R47)","v":""},{"$f":"IF('effRT Support'!$B47=0,\"\",\"Labor Cost\")","v":""},{"$f":"IF('effRT Support'!$B47=0,\"\",'effRT Support'!$S47)","v":""},{"$f":"IF('effRT Support'!$B47=0,\"\",\"Ancillary Costs - Measure Specific\")","v":""},{"$f":"IF('effRT Support'!$B47=0,\"\",'effRT Support'!$T47)","v":""},{"$f":"IF('effRT Support'!$B47=0,\"\",\"Fuel Type\")","v":""},{"$f":"IF('effRT Support'!$B47=0,\"\",'Project Information'!$D$44)","v":""},{"$f":"IF('effRT Support'!$B47=0,\"\",\"Installed Fixture Quantity\")","v":""},{"$f":"IF('effRT Support'!$B47=0,\"\",'effRT Support'!P46)","v":""}]
[{"$f":"IF('effRT Support'!$B48=0,\"\",IF('Project Information'!$D$33=\"Small Business\",\"SBL\",\"CILS\"))","v":""},{"$f":"IF('effRT Support'!$B48=0,\"\",IF('Project Information'!$K$2=\"\",\"\",'Project Information'!$K$2))","v":""},null,{"$f":"IF('effRT Support'!$B48=0,\"\",IF('Project Information'!$D$46=\"\",\"\",'Project Information'!$D$46))","v":""},{"$f":"IF('effRT Support'!$B48=0,\"\",IF('Project Information'!$D$20=\"\",\"\",VLOOKUP('Project Information'!$D$20,'Other Data'!$B$159:$E$189,4,FALSE)))","v":""},{"$f":"IF('effRT Support'!$B48=0,\"\",IF('Project Information'!$D$31=\"\",\"\",'Project Information'!$D$31))","v":""},{"$f":"IF('effRT Support'!$B48=0,\"\",IF('Project Information'!$D$5=\"\",\"\",'Project Information'!$D$5))","v":""},null,null,{"$f":"IF('effRT Support'!$B48=0,\"\",IF('Project Information'!$D$20=\"\",\"\",VLOOKUP('Project Information'!$D$20,'Other Data'!$B$159:$E$189,2,FALSE)))","v":""},{"$f":"IF('effRT Support'!$B48=0,\"\",IF('Project Information'!$D$20=\"\",\"\",VLOOKUP('Project Information'!$D$20,'Other Data'!$B$159:$E$189,3,FALSE)))","v":""},{"$f":"IF('effRT Support'!$B48=0,\"\",\"Existing\")","v":""},null,{"$f":"IF('effRT Support'!$B48=0,\"\",IF('Project Information'!$D$21=\"\",\"\",'Project Information'!$D$21))","v":""},{"$f":"IF('effRT Support'!$B48=0,\"\",IF('Project Information'!$D$48=\"\",\"\",'Project Information'!$D$48))","v":""},{"$f":"IF('effRT Support'!$B48=0,\"\",\"\")","v":""},{"$f":"IF('effRT Support'!$B48=0,\"\",\"\")","v":""},{"$f":"IF('effRT Support'!$B48=0,\"\",\"\")","v":""},{"$f":"IF('effRT Support'!$B48=0,\"\",\"\")","v":""},{"$f":"IF('effRT Support'!$B48=0,\"\",IF('Project Information'!$D$13=\"\",\"\",'Project Information'!$D$13))","v":""},{"$f":"IF('effRT Support'!$B48=0,\"\",IF('Project Information'!$E$13=\"\",\"\",'Project Information'!$E$13))","v":""},{"$f":"IF('effRT Support'!$B48=0,\"\",IF('Project Information'!$D$14=\"\",\"\",'Project Information'!$D$14))","v":""},{"$f":"IF('effRT Support'!$B48=0,\"\",IF('Project Information'!$D$15=\"\",\"\",'Project Information'!$D$15))","v":""},{"$f":"IF('effRT Support'!$B48=0,\"\",IF('Project Information'!$D$16=\"\",\"\",'Project Information'!$D$16))","v":""},null,{"$f":"IF('effRT Support'!$B48=0,\"\",'Project Information'!$D$18)","v":""},{"$f":"IF('effRT Support'!$B48=0,\"\",IF('Project Information'!$D$23=\"\",\"\",'Project Information'!$D$23))","v":""},{"$f":"IF('effRT Support'!$B48=0,\"\",IF('Project Information'!$D$24=\"\",\"\",'Project Information'!$D$24))","v":""},{"$f":"IF('effRT Support'!$B48=0,\"\",IF('Project Information'!$D$25=\"\",\"\",'Project Information'!$D$25))","v":""},{"$f":"IF('effRT Support'!$B48=0,\"\",IF('Project Information'!$E$25=\"\",\"\",'Project Information'!$E$25))","v":""},{"$f":"IF('effRT Support'!$B48=0,\"\",IF('Project Information'!$F$25=\"\",\"\",'Project Information'!$F$25))","v":""},{"$f":"IF('effRT Support'!$B48=0,\"\",IF('Project Information'!$D$27=\"\",\"Y\",\"N\"))","v":""},{"$f":"IF('effRT Support'!$B48=0,\"\",IF('Project Information'!$D$27=\"\",\"\",'Project Information'!$D$27))","v":""},{"$f":"IF('effRT Support'!$B48=0,\"\",IF('Project Information'!$D$28=\"\",\"\",'Project Information'!$D$28))","v":""},{"$f":"IF('effRT Support'!$B48=0,\"\",IF('Project Information'!$D$29=\"\",\"\",'Project Information'!$D$29))","v":""},{"$f":"IF('effRT Support'!$B48=0,\"\",IF('Project Information'!$E$29=\"\",\"\",'Project Information'!$E$29))","v":""},{"$f":"IF('effRT Support'!$B48=0,\"\",IF('Project Information'!$F$29=\"\",\"\",'Project Information'!$F$29))","v":""},{"$f":"IF('effRT Support'!$B48=0,\"\",\"\")","v":""},{"$f":"IF('effRT Support'!$B48=0,\"\",\"\")","v":""},{"$f":"IF('effRT Support'!$B48=0,\"\",IF('Project Information'!$D$36=\"\",\"\",'Project Information'!$D$36))","v":""},{"$f":"IF('effRT Support'!$B48=0,\"\",IF('Project Information'!$D$42=\"\",\"\",'Project Information'!$D$42))","v":""},{"$f":"IF('effRT Support'!$B48=0,\"\",'effRT Support'!$D48)","v":""},{"$f":"IF('effRT Support'!$B48=0,\"\",'effRT Support'!$L48)","v":""},{"$f":"IF('effRT Support'!$B48=0,\"\",'effRT Support'!$N48)","v":""},null,null,{"$f":"IF('effRT Support'!$B48=0,\"\",'effRT Support'!$P48)","v":""},{"$f":"IF('effRT Support'!$B48=0,\"\",'effRT Support'!$Q48)","v":""},{"$f":"IF('effRT Support'!$B48=0,\"\",'effRT Support'!U48)","v":""},{"$f":"IF('effRT Support'!$B48=0,\"\",'effRT Support'!V48)","v":""},{"$f":"IF('effRT Support'!$B48=0,\"\",'effRT Support'!W48)","v":""},{"$f":"IF('effRT Support'!$B48=0,\"\",'effRT Support'!X48)","v":""},{"$f":"IF('effRT Support'!$B48=0,\"\",'effRT Support'!Y48)","v":""},{"$f":"IF('effRT Support'!$B48=0,\"\",'effRT Support'!Z48*10)","v":""},{"$f":"IF('effRT Support'!$B48=0,\"\",'effRT Support'!AA48)","v":""},{"$f":"IF('effRT Support'!$B48=0,\"\",'effRT Support'!AB48)","v":""},{"$f":"IF('effRT Support'!$B48=0,\"\",'effRT Support'!AC48)","v":""},{"$f":"IF('effRT Support'!$B48=0,\"\",'effRT Support'!AD48)","v":""},{"$f":"IF('effRT Support'!$B48=0,\"\",'effRT Support'!AE48)","v":""},{"$f":"IF('effRT Support'!$B48=0,\"\",\"Hours Actual or Deemed\")","v":""},{"$f":"IF('effRT Support'!$B48=0,\"\",'effRT Support'!$F48)","v":""},{"$f":"IF('effRT Support'!$B48=0,\"\",\"Wattage Actual or Deemed\")","v":""},{"$f":"IF('effRT Support'!$B48=0,\"\",IF('Project Information'!$D$33=\"Pay For Performance\",\"Actual\",\"Deemed\"))","v":""},{"$f":"IF('effRT Support'!$B48=0,\"\",\"Cost Actual or Deemed\")","v":""},{"$f":"IF('effRT Support'!$B48=0,\"\",IF('Project Information'!$D$33=\"Pay For Performance\",\"Actual\",\"Deemed\"))","v":""},{"$f":"IF('effRT Support'!$B48=0,\"\",\"Location\")","v":""},{"$f":"IF('effRT Support'!$B48=0,\"\",'effRT Support'!$E48)","v":""},{"$f":"IF('effRT Support'!$B48=0,\"\",\"Space Type\")","v":""},{"$f":"IF('effRT Support'!$B48=0,\"\",'effRT Support'!$G48)","v":""},{"$f":"IF('effRT Support'!$B48=0,\"\",\"Existing Fixture Description\")","v":""},{"$f":"IF('effRT Support'!$B48=0,\"\",'effRT Support'!$H48)","v":""},{"$f":"IF('effRT Support'!$B48=0,\"\",\"Existing Fixture Quantity\")","v":""},{"$f":"IF('effRT Support'!$B48=0,\"\",'effRT Support'!$I48)","v":""},{"$f":"IF('effRT Support'!$B48=0,\"\",\"Existing Fixture Wattage\")","v":""},{"$f":"IF('effRT Support'!$B48=0,\"\",'effRT Support'!$J48)","v":""},{"$f":"IF('effRT Support'!$B48=0,\"\",\"Annual Hours of Operation\")","v":""},{"$f":"IF('effRT Support'!$B48=0,\"\",'effRT Support'!$K48)","v":""},{"$f":"IF('effRT Support'!$B48=0,\"\",\"Installed Fixture Description\")","v":""},{"$f":"IF('effRT Support'!$B48=0,\"\",'effRT Support'!$M48)","v":""},{"$f":"IF('effRT Support'!$B48=0,\"\",\"Installed Fixture Wattage\")","v":""},{"$f":"IF('effRT Support'!$B48=0,\"\",'effRT Support'!$O48)","v":""},{"$f":"IF('effRT Support'!$B48=0,\"\",\"Material Cost\")","v":""},{"$f":"IF('effRT Support'!$B48=0,\"\",'effRT Support'!$R48)","v":""},{"$f":"IF('effRT Support'!$B48=0,\"\",\"Labor Cost\")","v":""},{"$f":"IF('effRT Support'!$B48=0,\"\",'effRT Support'!$S48)","v":""},{"$f":"IF('effRT Support'!$B48=0,\"\",\"Ancillary Costs - Measure Specific\")","v":""},{"$f":"IF('effRT Support'!$B48=0,\"\",'effRT Support'!$T48)","v":""},{"$f":"IF('effRT Support'!$B48=0,\"\",\"Fuel Type\")","v":""},{"$f":"IF('effRT Support'!$B48=0,\"\",'Project Information'!$D$44)","v":""}]
[{"$f":"IF('effRT Support'!$B49=0,\"\",IF('Project Information'!$D$33=\"Small Business\",\"SBL\",\"CILS\"))","v":""},{"$f":"IF('effRT Support'!$B49=0,\"\",IF('Project Information'!$K$2=\"\",\"\",'Project Information'!$K$2))","v":""},null,{"$f":"IF('effRT Support'!$B49=0,\"\",IF('Project Information'!$D$46=\"\",\"\",'Project Information'!$D$46))","v":""},{"$f":"IF('effRT Support'!$B49=0,\"\",IF('Project Information'!$D$20=\"\",\"\",VLOOKUP('Project Information'!$D$20,'Other Data'!$B$159:$E$189,4,FALSE)))","v":""},{"$f":"IF('effRT Support'!$B49=0,\"\",IF('Project Information'!$D$31=\"\",\"\",'Project Information'!$D$31))","v":""},{"$f":"IF('effRT Support'!$B49=0,\"\",IF('Project Information'!$D$5=\"\",\"\",'Project Information'!$D$5))","v":""},null,null,{"$f":"IF('effRT Support'!$B49=0,\"\",IF('Project Information'!$D$20=\"\",\"\",VLOOKUP('Project Information'!$D$20,'Other Data'!$B$159:$E$189,2,FALSE)))","v":""},{"$f":"IF('effRT Support'!$B49=0,\"\",IF('Project Information'!$D$20=\"\",\"\",VLOOKUP('Project Information'!$D$20,'Other Data'!$B$159:$E$189,3,FALSE)))","v":""},{"$f":"IF('effRT Support'!$B49=0,\"\",\"Existing\")","v":""},null,{"$f":"IF('effRT Support'!$B49=0,\"\",IF('Project Information'!$D$21=\"\",\"\",'Project Information'!$D$21))","v":""},{"$f":"IF('effRT Support'!$B49=0,\"\",IF('Project Information'!$D$48=\"\",\"\",'Project Information'!$D$48))","v":""},{"$f":"IF('effRT Support'!$B49=0,\"\",\"\")","v":""},{"$f":"IF('effRT Support'!$B49=0,\"\",\"\")","v":""},{"$f":"IF('effRT Support'!$B49=0,\"\",\"\")","v":""},{"$f":"IF('effRT Support'!$B49=0,\"\",\"\")","v":""},{"$f":"IF('effRT Support'!$B49=0,\"\",IF('Project Information'!$D$13=\"\",\"\",'Project Information'!$D$13))","v":""},{"$f":"IF('effRT Support'!$B49=0,\"\",IF('Project Information'!$E$13=\"\",\"\",'Project Information'!$E$13))","v":""},{"$f":"IF('effRT Support'!$B49=0,\"\",IF('Project Information'!$D$14=\"\",\"\",'Project Information'!$D$14))","v":""},{"$f":"IF('effRT Support'!$B49=0,\"\",IF('Project Information'!$D$15=\"\",\"\",'Project Information'!$D$15))","v":""},{"$f":"IF('effRT Support'!$B49=0,\"\",IF('Project Information'!$D$16=\"\",\"\",'Project Information'!$D$16))","v":""},null,{"$f":"IF('effRT Support'!$B49=0,\"\",'Project Information'!$D$18)","v":""},{"$f":"IF('effRT Support'!$B49=0,\"\",IF('Project Information'!$D$23=\"\",\"\",'Project Information'!$D$23))","v":""},{"$f":"IF('effRT Support'!$B49=0,\"\",IF('Project Information'!$D$24=\"\",\"\",'Project Information'!$D$24))","v":""},{"$f":"IF('effRT Support'!$B49=0,\"\",IF('Project Information'!$D$25=\"\",\"\",'Project Information'!$D$25))","v":""},{"$f":"IF('effRT Support'!$B49=0,\"\",IF('Project Information'!$E$25=\"\",\"\",'Project Information'!$E$25))","v":""},{"$f":"IF('effRT Support'!$B49=0,\"\",IF('Project Information'!$F$25=\"\",\"\",'Project Information'!$F$25))","v":""},{"$f":"IF('effRT Support'!$B49=0,\"\",IF('Project Information'!$D$27=\"\",\"Y\",\"N\"))","v":""},{"$f":"IF('effRT Support'!$B49=0,\"\",IF('Project Information'!$D$27=\"\",\"\",'Project Information'!$D$27))","v":""},{"$f":"IF('effRT Support'!$B49=0,\"\",IF('Project Information'!$D$28=\"\",\"\",'Project Information'!$D$28))","v":""},{"$f":"IF('effRT Support'!$B49=0,\"\",IF('Project Information'!$D$29=\"\",\"\",'Project Information'!$D$29))","v":""},{"$f":"IF('effRT Support'!$B49=0,\"\",IF('Project Information'!$E$29=\"\",\"\",'Project Information'!$E$29))","v":""},{"$f":"IF('effRT Support'!$B49=0,\"\",IF('Project Information'!$F$29=\"\",\"\",'Project Information'!$F$29))","v":""},{"$f":"IF('effRT Support'!$B49=0,\"\",\"\")","v":""},{"$f":"IF('effRT Support'!$B49=0,\"\",\"\")","v":""},{"$f":"IF('effRT Support'!$B49=0,\"\",IF('Project Information'!$D$36=\"\",\"\",'Project Information'!$D$36))","v":""},{"$f":"IF('effRT Support'!$B49=0,\"\",IF('Project Information'!$D$42=\"\",\"\",'Project Information'!$D$42))","v":""},{"$f":"IF('effRT Support'!$B49=0,\"\",'effRT Support'!$D49)","v":""},{"$f":"IF('effRT Support'!$B49=0,\"\",'effRT Support'!$L49)","v":""},{"$f":"IF('effRT Support'!$B49=0,\"\",'effRT Support'!$N49)","v":""},null,null,{"$f":"IF('effRT Support'!$B49=0,\"\",'effRT Support'!$P49)","v":""},{"$f":"IF('effRT Support'!$B49=0,\"\",'effRT Support'!$Q49)","v":""},{"$f":"IF('effRT Support'!$B49=0,\"\",'effRT Support'!U49)","v":""},{"$f":"IF('effRT Support'!$B49=0,\"\",'effRT Support'!V49)","v":""},{"$f":"IF('effRT Support'!$B49=0,\"\",'effRT Support'!W49)","v":""},{"$f":"IF('effRT Support'!$B49=0,\"\",'effRT Support'!X49)","v":""},{"$f":"IF('effRT Support'!$B49=0,\"\",'effRT Support'!Y49)","v":""},{"$f":"IF('effRT Support'!$B49=0,\"\",'effRT Support'!Z49*10)","v":""},{"$f":"IF('effRT Support'!$B49=0,\"\",'effRT Support'!AA49)","v":""},{"$f":"IF('effRT Support'!$B49=0,\"\",'effRT Support'!AB49)","v":""},{"$f":"IF('effRT Support'!$B49=0,\"\",'effRT Support'!AC49)","v":""},{"$f":"IF('effRT Support'!$B49=0,\"\",'effRT Support'!AD49)","v":""},{"$f":"IF('effRT Support'!$B49=0,\"\",'effRT Support'!AE49)","v":""},{"$f":"IF('effRT Support'!$B49=0,\"\",\"Hours Actual or Deemed\")","v":""},{"$f":"IF('effRT Support'!$B49=0,\"\",'effRT Support'!$F49)","v":""},{"$f":"IF('effRT Support'!$B49=0,\"\",\"Wattage Actual or Deemed\")","v":""},{"$f":"IF('effRT Support'!$B49=0,\"\",IF('Project Information'!$D$33=\"Pay For Performance\",\"Actual\",\"Deemed\"))","v":""},{"$f":"IF('effRT Support'!$B49=0,\"\",\"Cost Actual or Deemed\")","v":""},{"$f":"IF('effRT Support'!$B49=0,\"\",IF('Project Information'!$D$33=\"Pay For Performance\",\"Actual\",\"Deemed\"))","v":""},{"$f":"IF('effRT Support'!$B49=0,\"\",\"Location\")","v":""},{"$f":"IF('effRT Support'!$B49=0,\"\",'effRT Support'!$E49)","v":""},{"$f":"IF('effRT Support'!$B49=0,\"\",\"Space Type\")","v":""},{"$f":"IF('effRT Support'!$B49=0,\"\",'effRT Support'!$G49)","v":""},{"$f":"IF('effRT Support'!$B49=0,\"\",\"Existing Fixture Description\")","v":""},{"$f":"IF('effRT Support'!$B49=0,\"\",'effRT Support'!$H49)","v":""},{"$f":"IF('effRT Support'!$B49=0,\"\",\"Existing Fixture Quantity\")","v":""},{"$f":"IF('effRT Support'!$B49=0,\"\",'effRT Support'!$I49)","v":""},{"$f":"IF('effRT Support'!$B49=0,\"\",\"Existing Fixture Wattage\")","v":""},{"$f":"IF('effRT Support'!$B49=0,\"\",'effRT Support'!$J49)","v":""},{"$f":"IF('effRT Support'!$B49=0,\"\",\"Annual Hours of Operation\")","v":""},{"$f":"IF('effRT Support'!$B49=0,\"\",'effRT Support'!$K49)","v":""},{"$f":"IF('effRT Support'!$B49=0,\"\",\"Installed Fixture Description\")","v":""},{"$f":"IF('effRT Support'!$B49=0,\"\",'effRT Support'!$M49)","v":""},{"$f":"IF('effRT Support'!$B49=0,\"\",\"Installed Fixture Wattage\")","v":""},{"$f":"IF('effRT Support'!$B49=0,\"\",'effRT Support'!$O49)","v":""},{"$f":"IF('effRT Support'!$B49=0,\"\",\"Material Cost\")","v":""},{"$f":"IF('effRT Support'!$B49=0,\"\",'effRT Support'!$R49)","v":""},{"$f":"IF('effRT Support'!$B49=0,\"\",\"Labor Cost\")","v":""},{"$f":"IF('effRT Support'!$B49=0,\"\",'effRT Support'!$S49)","v":""},{"$f":"IF('effRT Support'!$B49=0,\"\",\"Ancillary Costs - Measure Specific\")","v":""},{"$f":"IF('effRT Support'!$B49=0,\"\",'effRT Support'!$T49)","v":""},{"$f":"IF('effRT Support'!$B49=0,\"\",\"Fuel Type\")","v":""},{"$f":"IF('effRT Support'!$B49=0,\"\",'Project Information'!$D$44)","v":""},{"$f":"IF('effRT Support'!$B49=0,\"\",\"Installed Fixture Quantity\")","v":""},{"$f":"IF('effRT Support'!$B49=0,\"\",'effRT Support'!P48)","v":""}]
[{"$f":"IF('effRT Support'!$B50=0,\"\",IF('Project Information'!$D$33=\"Small Business\",\"SBL\",\"CILS\"))","v":""},{"$f":"IF('effRT Support'!$B50=0,\"\",IF('Project Information'!$K$2=\"\",\"\",'Project Information'!$K$2))","v":""},null,{"$f":"IF('effRT Support'!$B50=0,\"\",IF('Project Information'!$D$46=\"\",\"\",'Project Information'!$D$46))","v":""},{"$f":"IF('effRT Support'!$B50=0,\"\",IF('Project Information'!$D$20=\"\",\"\",VLOOKUP('Project Information'!$D$20,'Other Data'!$B$159:$E$189,4,FALSE)))","v":""},{"$f":"IF('effRT Support'!$B50=0,\"\",IF('Project Information'!$D$31=\"\",\"\",'Project Information'!$D$31))","v":""},{"$f":"IF('effRT Support'!$B50=0,\"\",IF('Project Information'!$D$5=\"\",\"\",'Project Information'!$D$5))","v":""},null,null,{"$f":"IF('effRT Support'!$B50=0,\"\",IF('Project Information'!$D$20=\"\",\"\",VLOOKUP('Project Information'!$D$20,'Other Data'!$B$159:$E$189,2,FALSE)))","v":""},{"$f":"IF('effRT Support'!$B50=0,\"\",IF('Project Information'!$D$20=\"\",\"\",VLOOKUP('Project Information'!$D$20,'Other Data'!$B$159:$E$189,3,FALSE)))","v":""},{"$f":"IF('effRT Support'!$B50=0,\"\",\"Existing\")","v":""},null,{"$f":"IF('effRT Support'!$B50=0,\"\",IF('Project Information'!$D$21=\"\",\"\",'Project Information'!$D$21))","v":""},{"$f":"IF('effRT Support'!$B50=0,\"\",IF('Project Information'!$D$48=\"\",\"\",'Project Information'!$D$48))","v":""},{"$f":"IF('effRT Support'!$B50=0,\"\",\"\")","v":""},{"$f":"IF('effRT Support'!$B50=0,\"\",\"\")","v":""},{"$f":"IF('effRT Support'!$B50=0,\"\",\"\")","v":""},{"$f":"IF('effRT Support'!$B50=0,\"\",\"\")","v":""},{"$f":"IF('effRT Support'!$B50=0,\"\",IF('Project Information'!$D$13=\"\",\"\",'Project Information'!$D$13))","v":""},{"$f":"IF('effRT Support'!$B50=0,\"\",IF('Project Information'!$E$13=\"\",\"\",'Project Information'!$E$13))","v":""},{"$f":"IF('effRT Support'!$B50=0,\"\",IF('Project Information'!$D$14=\"\",\"\",'Project Information'!$D$14))","v":""},{"$f":"IF('effRT Support'!$B50=0,\"\",IF('Project Information'!$D$15=\"\",\"\",'Project Information'!$D$15))","v":""},{"$f":"IF('effRT Support'!$B50=0,\"\",IF('Project Information'!$D$16=\"\",\"\",'Project Information'!$D$16))","v":""},null,{"$f":"IF('effRT Support'!$B50=0,\"\",'Project Information'!$D$18)","v":""},{"$f":"IF('effRT Support'!$B50=0,\"\",IF('Project Information'!$D$23=\"\",\"\",'Project Information'!$D$23))","v":""},{"$f":"IF('effRT Support'!$B50=0,\"\",IF('Project Information'!$D$24=\"\",\"\",'Project Information'!$D$24))","v":""},{"$f":"IF('effRT Support'!$B50=0,\"\",IF('Project Information'!$D$25=\"\",\"\",'Project Information'!$D$25))","v":""},{"$f":"IF('effRT Support'!$B50=0,\"\",IF('Project Information'!$E$25=\"\",\"\",'Project Information'!$E$25))","v":""},{"$f":"IF('effRT Support'!$B50=0,\"\",IF('Project Information'!$F$25=\"\",\"\",'Project Information'!$F$25))","v":""},{"$f":"IF('effRT Support'!$B50=0,\"\",IF('Project Information'!$D$27=\"\",\"Y\",\"N\"))","v":""},{"$f":"IF('effRT Support'!$B50=0,\"\",IF('Project Information'!$D$27=\"\",\"\",'Project Information'!$D$27))","v":""},{"$f":"IF('effRT Support'!$B50=0,\"\",IF('Project Information'!$D$28=\"\",\"\",'Project Information'!$D$28))","v":""},{"$f":"IF('effRT Support'!$B50=0,\"\",IF('Project Information'!$D$29=\"\",\"\",'Project Information'!$D$29))","v":""},{"$f":"IF('effRT Support'!$B50=0,\"\",IF('Project Information'!$E$29=\"\",\"\",'Project Information'!$E$29))","v":""},{"$f":"IF('effRT Support'!$B50=0,\"\",IF('Project Information'!$F$29=\"\",\"\",'Project Information'!$F$29))","v":""},{"$f":"IF('effRT Support'!$B50=0,\"\",\"\")","v":""},{"$f":"IF('effRT Support'!$B50=0,\"\",\"\")","v":""},{"$f":"IF('effRT Support'!$B50=0,\"\",IF('Project Information'!$D$36=\"\",\"\",'Project Information'!$D$36))","v":""},{"$f":"IF('effRT Support'!$B50=0,\"\",IF('Project Information'!$D$42=\"\",\"\",'Project Information'!$D$42))","v":""},{"$f":"IF('effRT Support'!$B50=0,\"\",'effRT Support'!$D50)","v":""},{"$f":"IF('effRT Support'!$B50=0,\"\",'effRT Support'!$L50)","v":""},{"$f":"IF('effRT Support'!$B50=0,\"\",'effRT Support'!$N50)","v":""},null,null,{"$f":"IF('effRT Support'!$B50=0,\"\",'effRT Support'!$P50)","v":""},{"$f":"IF('effRT Support'!$B50=0,\"\",'effRT Support'!$Q50)","v":""},{"$f":"IF('effRT Support'!$B50=0,\"\",'effRT Support'!U50)","v":""},{"$f":"IF('effRT Support'!$B50=0,\"\",'effRT Support'!V50)","v":""},{"$f":"IF('effRT Support'!$B50=0,\"\",'effRT Support'!W50)","v":""},{"$f":"IF('effRT Support'!$B50=0,\"\",'effRT Support'!X50)","v":""},{"$f":"IF('effRT Support'!$B50=0,\"\",'effRT Support'!Y50)","v":""},{"$f":"IF('effRT Support'!$B50=0,\"\",'effRT Support'!Z50*10)","v":""},{"$f":"IF('effRT Support'!$B50=0,\"\",'effRT Support'!AA50)","v":""},{"$f":"IF('effRT Support'!$B50=0,\"\",'effRT Support'!AB50)","v":""},{"$f":"IF('effRT Support'!$B50=0,\"\",'effRT Support'!AC50)","v":""},{"$f":"IF('effRT Support'!$B50=0,\"\",'effRT Support'!AD50)","v":""},{"$f":"IF('effRT Support'!$B50=0,\"\",'effRT Support'!AE50)","v":""},{"$f":"IF('effRT Support'!$B50=0,\"\",\"Hours Actual or Deemed\")","v":""},{"$f":"IF('effRT Support'!$B50=0,\"\",'effRT Support'!$F50)","v":""},{"$f":"IF('effRT Support'!$B50=0,\"\",\"Wattage Actual or Deemed\")","v":""},{"$f":"IF('effRT Support'!$B50=0,\"\",IF('Project Information'!$D$33=\"Pay For Performance\",\"Actual\",\"Deemed\"))","v":""},{"$f":"IF('effRT Support'!$B50=0,\"\",\"Cost Actual or Deemed\")","v":""},{"$f":"IF('effRT Support'!$B50=0,\"\",IF('Project Information'!$D$33=\"Pay For Performance\",\"Actual\",\"Deemed\"))","v":""},{"$f":"IF('effRT Support'!$B50=0,\"\",\"Location\")","v":""},{"$f":"IF('effRT Support'!$B50=0,\"\",'effRT Support'!$E50)","v":""},{"$f":"IF('effRT Support'!$B50=0,\"\",\"Space Type\")","v":""},{"$f":"IF('effRT Support'!$B50=0,\"\",'effRT Support'!$G50)","v":""},{"$f":"IF('effRT Support'!$B50=0,\"\",\"Existing Fixture Description\")","v":""},{"$f":"IF('effRT Support'!$B50=0,\"\",'effRT Support'!$H50)","v":""},{"$f":"IF('effRT Support'!$B50=0,\"\",\"Existing Fixture Quantity\")","v":""},{"$f":"IF('effRT Support'!$B50=0,\"\",'effRT Support'!$I50)","v":""},{"$f":"IF('effRT Support'!$B50=0,\"\",\"Existing Fixture Wattage\")","v":""},{"$f":"IF('effRT Support'!$B50=0,\"\",'effRT Support'!$J50)","v":""},{"$f":"IF('effRT Support'!$B50=0,\"\",\"Annual Hours of Operation\")","v":""},{"$f":"IF('effRT Support'!$B50=0,\"\",'effRT Support'!$K50)","v":""},{"$f":"IF('effRT Support'!$B50=0,\"\",\"Installed Fixture Description\")","v":""},{"$f":"IF('effRT Support'!$B50=0,\"\",'effRT Support'!$M50)","v":""},{"$f":"IF('effRT Support'!$B50=0,\"\",\"Installed Fixture Wattage\")","v":""},{"$f":"IF('effRT Support'!$B50=0,\"\",'effRT Support'!$O50)","v":""},{"$f":"IF('effRT Support'!$B50=0,\"\",\"Material Cost\")","v":""},{"$f":"IF('effRT Support'!$B50=0,\"\",'effRT Support'!$R50)","v":""},{"$f":"IF('effRT Support'!$B50=0,\"\",\"Labor Cost\")","v":""},{"$f":"IF('effRT Support'!$B50=0,\"\",'effRT Support'!$S50)","v":""},{"$f":"IF('effRT Support'!$B50=0,\"\",\"Ancillary Costs - Measure Specific\")","v":""},{"$f":"IF('effRT Support'!$B50=0,\"\",'effRT Support'!$T50)","v":""},{"$f":"IF('effRT Support'!$B50=0,\"\",\"Fuel Type\")","v":""},{"$f":"IF('effRT Support'!$B50=0,\"\",'Project Information'!$D$44)","v":""}]
[{"$f":"IF('effRT Support'!$B51=0,\"\",IF('Project Information'!$D$33=\"Small Business\",\"SBL\",\"CILS\"))","v":""},{"$f":"IF('effRT Support'!$B51=0,\"\",IF('Project Information'!$K$2=\"\",\"\",'Project Information'!$K$2))","v":""},null,{"$f":"IF('effRT Support'!$B51=0,\"\",IF('Project Information'!$D$46=\"\",\"\",'Project Information'!$D$46))","v":""},{"$f":"IF('effRT Support'!$B51=0,\"\",IF('Project Information'!$D$20=\"\",\"\",VLOOKUP('Project Information'!$D$20,'Other Data'!$B$159:$E$189,4,FALSE)))","v":""},{"$f":"IF('effRT Support'!$B51=0,\"\",IF('Project Information'!$D$31=\"\",\"\",'Project Information'!$D$31))","v":""},{"$f":"IF('effRT Support'!$B51=0,\"\",IF('Project Information'!$D$5=\"\",\"\",'Project Information'!$D$5))","v":""},null,null,{"$f":"IF('effRT Support'!$B51=0,\"\",IF('Project Information'!$D$20=\"\",\"\",VLOOKUP('Project Information'!$D$20,'Other Data'!$B$159:$E$189,2,FALSE)))","v":""},{"$f":"IF('effRT Support'!$B51=0,\"\",IF('Project Information'!$D$20=\"\",\"\",VLOOKUP('Project Information'!$D$20,'Other Data'!$B$159:$E$189,3,FALSE)))","v":""},{"$f":"IF('effRT Support'!$B51=0,\"\",\"Existing\")","v":""},null,{"$f":"IF('effRT Support'!$B51=0,\"\",IF('Project Information'!$D$21=\"\",\"\",'Project Information'!$D$21))","v":""},{"$f":"IF('effRT Support'!$B51=0,\"\",IF('Project Information'!$D$48=\"\",\"\",'Project Information'!$D$48))","v":""},{"$f":"IF('effRT Support'!$B51=0,\"\",\"\")","v":""},{"$f":"IF('effRT Support'!$B51=0,\"\",\"\")","v":""},{"$f":"IF('effRT Support'!$B51=0,\"\",\"\")","v":""},{"$f":"IF('effRT Support'!$B51=0,\"\",\"\")","v":""},{"$f":"IF('effRT Support'!$B51=0,\"\",IF('Project Information'!$D$13=\"\",\"\",'Project Information'!$D$13))","v":""},{"$f":"IF('effRT Support'!$B51=0,\"\",IF('Project Information'!$E$13=\"\",\"\",'Project Information'!$E$13))","v":""},{"$f":"IF('effRT Support'!$B51=0,\"\",IF('Project Information'!$D$14=\"\",\"\",'Project Information'!$D$14))","v":""},{"$f":"IF('effRT Support'!$B51=0,\"\",IF('Project Information'!$D$15=\"\",\"\",'Project Information'!$D$15))","v":""},{"$f":"IF('effRT Support'!$B51=0,\"\",IF('Project Information'!$D$16=\"\",\"\",'Project Information'!$D$16))","v":""},null,{"$f":"IF('effRT Support'!$B51=0,\"\",'Project Information'!$D$18)","v":""},{"$f":"IF('effRT Support'!$B51=0,\"\",IF('Project Information'!$D$23=\"\",\"\",'Project Information'!$D$23))","v":""},{"$f":"IF('effRT Support'!$B51=0,\"\",IF('Project Information'!$D$24=\"\",\"\",'Project Information'!$D$24))","v":""},{"$f":"IF('effRT Support'!$B51=0,\"\",IF('Project Information'!$D$25=\"\",\"\",'Project Information'!$D$25))","v":""},{"$f":"IF('effRT Support'!$B51=0,\"\",IF('Project Information'!$E$25=\"\",\"\",'Project Information'!$E$25))","v":""},{"$f":"IF('effRT Support'!$B51=0,\"\",IF('Project Information'!$F$25=\"\",\"\",'Project Information'!$F$25))","v":""},{"$f":"IF('effRT Support'!$B51=0,\"\",IF('Project Information'!$D$27=\"\",\"Y\",\"N\"))","v":""},{"$f":"IF('effRT Support'!$B51=0,\"\",IF('Project Information'!$D$27=\"\",\"\",'Project Information'!$D$27))","v":""},{"$f":"IF('effRT Support'!$B51=0,\"\",IF('Project Information'!$D$28=\"\",\"\",'Project Information'!$D$28))","v":""},{"$f":"IF('effRT Support'!$B51=0,\"\",IF('Project Information'!$D$29=\"\",\"\",'Project Information'!$D$29))","v":""},{"$f":"IF('effRT Support'!$B51=0,\"\",IF('Project Information'!$E$29=\"\",\"\",'Project Information'!$E$29))","v":""},{"$f":"IF('effRT Support'!$B51=0,\"\",IF('Project Information'!$F$29=\"\",\"\",'Project Information'!$F$29))","v":""},{"$f":"IF('effRT Support'!$B51=0,\"\",\"\")","v":""},{"$f":"IF('effRT Support'!$B51=0,\"\",\"\")","v":""},{"$f":"IF('effRT Support'!$B51=0,\"\",IF('Project Information'!$D$36=\"\",\"\",'Project Information'!$D$36))","v":""},{"$f":"IF('effRT Support'!$B51=0,\"\",IF('Project Information'!$D$42=\"\",\"\",'Project Information'!$D$42))","v":""},{"$f":"IF('effRT Support'!$B51=0,\"\",'effRT Support'!$D51)","v":""},{"$f":"IF('effRT Support'!$B51=0,\"\",'effRT Support'!$L51)","v":""},{"$f":"IF('effRT Support'!$B51=0,\"\",'effRT Support'!$N51)","v":""},null,null,{"$f":"IF('effRT Support'!$B51=0,\"\",'effRT Support'!$P51)","v":""},{"$f":"IF('effRT Support'!$B51=0,\"\",'effRT Support'!$Q51)","v":""},{"$f":"IF('effRT Support'!$B51=0,\"\",'effRT Support'!U51)","v":""},{"$f":"IF('effRT Support'!$B51=0,\"\",'effRT Support'!V51)","v":""},{"$f":"IF('effRT Support'!$B51=0,\"\",'effRT Support'!W51)","v":""},{"$f":"IF('effRT Support'!$B51=0,\"\",'effRT Support'!X51)","v":""},{"$f":"IF('effRT Support'!$B51=0,\"\",'effRT Support'!Y51)","v":""},{"$f":"IF('effRT Support'!$B51=0,\"\",'effRT Support'!Z51*10)","v":""},{"$f":"IF('effRT Support'!$B51=0,\"\",'effRT Support'!AA51)","v":""},{"$f":"IF('effRT Support'!$B51=0,\"\",'effRT Support'!AB51)","v":""},{"$f":"IF('effRT Support'!$B51=0,\"\",'effRT Support'!AC51)","v":""},{"$f":"IF('effRT Support'!$B51=0,\"\",'effRT Support'!AD51)","v":""},{"$f":"IF('effRT Support'!$B51=0,\"\",'effRT Support'!AE51)","v":""},{"$f":"IF('effRT Support'!$B51=0,\"\",\"Hours Actual or Deemed\")","v":""},{"$f":"IF('effRT Support'!$B51=0,\"\",'effRT Support'!$F51)","v":""},{"$f":"IF('effRT Support'!$B51=0,\"\",\"Wattage Actual or Deemed\")","v":""},{"$f":"IF('effRT Support'!$B51=0,\"\",IF('Project Information'!$D$33=\"Pay For Performance\",\"Actual\",\"Deemed\"))","v":""},{"$f":"IF('effRT Support'!$B51=0,\"\",\"Cost Actual or Deemed\")","v":""},{"$f":"IF('effRT Support'!$B51=0,\"\",IF('Project Information'!$D$33=\"Pay For Performance\",\"Actual\",\"Deemed\"))","v":""},{"$f":"IF('effRT Support'!$B51=0,\"\",\"Location\")","v":""},{"$f":"IF('effRT Support'!$B51=0,\"\",'effRT Support'!$E51)","v":""},{"$f":"IF('effRT Support'!$B51=0,\"\",\"Space Type\")","v":""},{"$f":"IF('effRT Support'!$B51=0,\"\",'effRT Support'!$G51)","v":""},{"$f":"IF('effRT Support'!$B51=0,\"\",\"Existing Fixture Description\")","v":""},{"$f":"IF('effRT Support'!$B51=0,\"\",'effRT Support'!$H51)","v":""},{"$f":"IF('effRT Support'!$B51=0,\"\",\"Existing Fixture Quantity\")","v":""},{"$f":"IF('effRT Support'!$B51=0,\"\",'effRT Support'!$I51)","v":""},{"$f":"IF('effRT Support'!$B51=0,\"\",\"Existing Fixture Wattage\")","v":""},{"$f":"IF('effRT Support'!$B51=0,\"\",'effRT Support'!$J51)","v":""},{"$f":"IF('effRT Support'!$B51=0,\"\",\"Annual Hours of Operation\")","v":""},{"$f":"IF('effRT Support'!$B51=0,\"\",'effRT Support'!$K51)","v":""},{"$f":"IF('effRT Support'!$B51=0,\"\",\"Installed Fixture Description\")","v":""},{"$f":"IF('effRT Support'!$B51=0,\"\",'effRT Support'!$M51)","v":""},{"$f":"IF('effRT Support'!$B51=0,\"\",\"Installed Fixture Wattage\")","v":""},{"$f":"IF('effRT Support'!$B51=0,\"\",'effRT Support'!$O51)","v":""},{"$f":"IF('effRT Support'!$B51=0,\"\",\"Material Cost\")","v":""},{"$f":"IF('effRT Support'!$B51=0,\"\",'effRT Support'!$R51)","v":""},{"$f":"IF('effRT Support'!$B51=0,\"\",\"Labor Cost\")","v":""},{"$f":"IF('effRT Support'!$B51=0,\"\",'effRT Support'!$S51)","v":""},{"$f":"IF('effRT Support'!$B51=0,\"\",\"Ancillary Costs - Measure Specific\")","v":""},{"$f":"IF('effRT Support'!$B51=0,\"\",'effRT Support'!$T51)","v":""},{"$f":"IF('effRT Support'!$B51=0,\"\",\"Fuel Type\")","v":""},{"$f":"IF('effRT Support'!$B51=0,\"\",'Project Information'!$D$44)","v":""},{"$f":"IF('effRT Support'!$B51=0,\"\",\"Installed Fixture Quantity\")","v":""},{"$f":"IF('effRT Support'!$B51=0,\"\",'effRT Support'!P50)","v":""}]
[{"$f":"IF('effRT Support'!$B52=0,\"\",IF('Project Information'!$D$33=\"Small Business\",\"SBL\",\"CILS\"))","v":""},{"$f":"IF('effRT Support'!$B52=0,\"\",IF('Project Information'!$K$2=\"\",\"\",'Project Information'!$K$2))","v":""},null,{"$f":"IF('effRT Support'!$B52=0,\"\",IF('Project Information'!$D$46=\"\",\"\",'Project Information'!$D$46))","v":""},{"$f":"IF('effRT Support'!$B52=0,\"\",IF('Project Information'!$D$20=\"\",\"\",VLOOKUP('Project Information'!$D$20,'Other Data'!$B$159:$E$189,4,FALSE)))","v":""},{"$f":"IF('effRT Support'!$B52=0,\"\",IF('Project Information'!$D$31=\"\",\"\",'Project Information'!$D$31))","v":""},{"$f":"IF('effRT Support'!$B52=0,\"\",IF('Project Information'!$D$5=\"\",\"\",'Project Information'!$D$5))","v":""},null,null,{"$f":"IF('effRT Support'!$B52=0,\"\",IF('Project Information'!$D$20=\"\",\"\",VLOOKUP('Project Information'!$D$20,'Other Data'!$B$159:$E$189,2,FALSE)))","v":""},{"$f":"IF('effRT Support'!$B52=0,\"\",IF('Project Information'!$D$20=\"\",\"\",VLOOKUP('Project Information'!$D$20,'Other Data'!$B$159:$E$189,3,FALSE)))","v":""},{"$f":"IF('effRT Support'!$B52=0,\"\",\"Existing\")","v":""},null,{"$f":"IF('effRT Support'!$B52=0,\"\",IF('Project Information'!$D$21=\"\",\"\",'Project Information'!$D$21))","v":""},{"$f":"IF('effRT Support'!$B52=0,\"\",IF('Project Information'!$D$48=\"\",\"\",'Project Information'!$D$48))","v":""},{"$f":"IF('effRT Support'!$B52=0,\"\",\"\")","v":""},{"$f":"IF('effRT Support'!$B52=0,\"\",\"\")","v":""},{"$f":"IF('effRT Support'!$B52=0,\"\",\"\")","v":""},{"$f":"IF('effRT Support'!$B52=0,\"\",\"\")","v":""},{"$f":"IF('effRT Support'!$B52=0,\"\",IF('Project Information'!$D$13=\"\",\"\",'Project Information'!$D$13))","v":""},{"$f":"IF('effRT Support'!$B52=0,\"\",IF('Project Information'!$E$13=\"\",\"\",'Project Information'!$E$13))","v":""},{"$f":"IF('effRT Support'!$B52=0,\"\",IF('Project Information'!$D$14=\"\",\"\",'Project Information'!$D$14))","v":""},{"$f":"IF('effRT Support'!$B52=0,\"\",IF('Project Information'!$D$15=\"\",\"\",'Project Information'!$D$15))","v":""},{"$f":"IF('effRT Support'!$B52=0,\"\",IF('Project Information'!$D$16=\"\",\"\",'Project Information'!$D$16))","v":""},null,{"$f":"IF('effRT Support'!$B52=0,\"\",'Project Information'!$D$18)","v":""},{"$f":"IF('effRT Support'!$B52=0,\"\",IF('Project Information'!$D$23=\"\",\"\",'Project Information'!$D$23))","v":""},{"$f":"IF('effRT Support'!$B52=0,\"\",IF('Project Information'!$D$24=\"\",\"\",'Project Information'!$D$24))","v":""},{"$f":"IF('effRT Support'!$B52=0,\"\",IF('Project Information'!$D$25=\"\",\"\",'Project Information'!$D$25))","v":""},{"$f":"IF('effRT Support'!$B52=0,\"\",IF('Project Information'!$E$25=\"\",\"\",'Project Information'!$E$25))","v":""},{"$f":"IF('effRT Support'!$B52=0,\"\",IF('Project Information'!$F$25=\"\",\"\",'Project Information'!$F$25))","v":""},{"$f":"IF('effRT Support'!$B52=0,\"\",IF('Project Information'!$D$27=\"\",\"Y\",\"N\"))","v":""},{"$f":"IF('effRT Support'!$B52=0,\"\",IF('Project Information'!$D$27=\"\",\"\",'Project Information'!$D$27))","v":""},{"$f":"IF('effRT Support'!$B52=0,\"\",IF('Project Information'!$D$28=\"\",\"\",'Project Information'!$D$28))","v":""},{"$f":"IF('effRT Support'!$B52=0,\"\",IF('Project Information'!$D$29=\"\",\"\",'Project Information'!$D$29))","v":""},{"$f":"IF('effRT Support'!$B52=0,\"\",IF('Project Information'!$E$29=\"\",\"\",'Project Information'!$E$29))","v":""},{"$f":"IF('effRT Support'!$B52=0,\"\",IF('Project Information'!$F$29=\"\",\"\",'Project Information'!$F$29))","v":""},{"$f":"IF('effRT Support'!$B52=0,\"\",\"\")","v":""},{"$f":"IF('effRT Support'!$B52=0,\"\",\"\")","v":""},{"$f":"IF('effRT Support'!$B52=0,\"\",IF('Project Information'!$D$36=\"\",\"\",'Project Information'!$D$36))","v":""},{"$f":"IF('effRT Support'!$B52=0,\"\",IF('Project Information'!$D$42=\"\",\"\",'Project Information'!$D$42))","v":""},{"$f":"IF('effRT Support'!$B52=0,\"\",'effRT Support'!$D52)","v":""},{"$f":"IF('effRT Support'!$B52=0,\"\",'effRT Support'!$L52)","v":""},{"$f":"IF('effRT Support'!$B52=0,\"\",'effRT Support'!$N52)","v":""},null,null,{"$f":"IF('effRT Support'!$B52=0,\"\",'effRT Support'!$P52)","v":""},{"$f":"IF('effRT Support'!$B52=0,\"\",'effRT Support'!$Q52)","v":""},{"$f":"IF('effRT Support'!$B52=0,\"\",'effRT Support'!U52)","v":""},{"$f":"IF('effRT Support'!$B52=0,\"\",'effRT Support'!V52)","v":""},{"$f":"IF('effRT Support'!$B52=0,\"\",'effRT Support'!W52)","v":""},{"$f":"IF('effRT Support'!$B52=0,\"\",'effRT Support'!X52)","v":""},{"$f":"IF('effRT Support'!$B52=0,\"\",'effRT Support'!Y52)","v":""},{"$f":"IF('effRT Support'!$B52=0,\"\",'effRT Support'!Z52*10)","v":""},{"$f":"IF('effRT Support'!$B52=0,\"\",'effRT Support'!AA52)","v":""},{"$f":"IF('effRT Support'!$B52=0,\"\",'effRT Support'!AB52)","v":""},{"$f":"IF('effRT Support'!$B52=0,\"\",'effRT Support'!AC52)","v":""},{"$f":"IF('effRT Support'!$B52=0,\"\",'effRT Support'!AD52)","v":""},{"$f":"IF('effRT Support'!$B52=0,\"\",'effRT Support'!AE52)","v":""},{"$f":"IF('effRT Support'!$B52=0,\"\",\"Hours Actual or Deemed\")","v":""},{"$f":"IF('effRT Support'!$B52=0,\"\",'effRT Support'!$F52)","v":""},{"$f":"IF('effRT Support'!$B52=0,\"\",\"Wattage Actual or Deemed\")","v":""},{"$f":"IF('effRT Support'!$B52=0,\"\",IF('Project Information'!$D$33=\"Pay For Performance\",\"Actual\",\"Deemed\"))","v":""},{"$f":"IF('effRT Support'!$B52=0,\"\",\"Cost Actual or Deemed\")","v":""},{"$f":"IF('effRT Support'!$B52=0,\"\",IF('Project Information'!$D$33=\"Pay For Performance\",\"Actual\",\"Deemed\"))","v":""},{"$f":"IF('effRT Support'!$B52=0,\"\",\"Location\")","v":""},{"$f":"IF('effRT Support'!$B52=0,\"\",'effRT Support'!$E52)","v":""},{"$f":"IF('effRT Support'!$B52=0,\"\",\"Space Type\")","v":""},{"$f":"IF('effRT Support'!$B52=0,\"\",'effRT Support'!$G52)","v":""},{"$f":"IF('effRT Support'!$B52=0,\"\",\"Existing Fixture Description\")","v":""},{"$f":"IF('effRT Support'!$B52=0,\"\",'effRT Support'!$H52)","v":""},{"$f":"IF('effRT Support'!$B52=0,\"\",\"Existing Fixture Quantity\")","v":""},{"$f":"IF('effRT Support'!$B52=0,\"\",'effRT Support'!$I52)","v":""},{"$f":"IF('effRT Support'!$B52=0,\"\",\"Existing Fixture Wattage\")","v":""},{"$f":"IF('effRT Support'!$B52=0,\"\",'effRT Support'!$J52)","v":""},{"$f":"IF('effRT Support'!$B52=0,\"\",\"Annual Hours of Operation\")","v":""},{"$f":"IF('effRT Support'!$B52=0,\"\",'effRT Support'!$K52)","v":""},{"$f":"IF('effRT Support'!$B52=0,\"\",\"Installed Fixture Description\")","v":""},{"$f":"IF('effRT Support'!$B52=0,\"\",'effRT Support'!$M52)","v":""},{"$f":"IF('effRT Support'!$B52=0,\"\",\"Installed Fixture Wattage\")","v":""},{"$f":"IF('effRT Support'!$B52=0,\"\",'effRT Support'!$O52)","v":""},{"$f":"IF('effRT Support'!$B52=0,\"\",\"Material Cost\")","v":""},{"$f":"IF('effRT Support'!$B52=0,\"\",'effRT Support'!$R52)","v":""},{"$f":"IF('effRT Support'!$B52=0,\"\",\"Labor Cost\")","v":""},{"$f":"IF('effRT Support'!$B52=0,\"\",'effRT Support'!$S52)","v":""},{"$f":"IF('effRT Support'!$B52=0,\"\",\"Ancillary Costs - Measure Specific\")","v":""},{"$f":"IF('effRT Support'!$B52=0,\"\",'effRT Support'!$T52)","v":""},{"$f":"IF('effRT Support'!$B52=0,\"\",\"Fuel Type\")","v":""},{"$f":"IF('effRT Support'!$B52=0,\"\",'Project Information'!$D$44)","v":""}]
[{"$f":"IF('effRT Support'!$B53=0,\"\",IF('Project Information'!$D$33=\"Small Business\",\"SBL\",\"CILS\"))","v":""},{"$f":"IF('effRT Support'!$B53=0,\"\",IF('Project Information'!$K$2=\"\",\"\",'Project Information'!$K$2))","v":""},null,{"$f":"IF('effRT Support'!$B53=0,\"\",IF('Project Information'!$D$46=\"\",\"\",'Project Information'!$D$46))","v":""},{"$f":"IF('effRT Support'!$B53=0,\"\",IF('Project Information'!$D$20=\"\",\"\",VLOOKUP('Project Information'!$D$20,'Other Data'!$B$159:$E$189,4,FALSE)))","v":""},{"$f":"IF('effRT Support'!$B53=0,\"\",IF('Project Information'!$D$31=\"\",\"\",'Project Information'!$D$31))","v":""},{"$f":"IF('effRT Support'!$B53=0,\"\",IF('Project Information'!$D$5=\"\",\"\",'Project Information'!$D$5))","v":""},null,null,{"$f":"IF('effRT Support'!$B53=0,\"\",IF('Project Information'!$D$20=\"\",\"\",VLOOKUP('Project Information'!$D$20,'Other Data'!$B$159:$E$189,2,FALSE)))","v":""},{"$f":"IF('effRT Support'!$B53=0,\"\",IF('Project Information'!$D$20=\"\",\"\",VLOOKUP('Project Information'!$D$20,'Other Data'!$B$159:$E$189,3,FALSE)))","v":""},{"$f":"IF('effRT Support'!$B53=0,\"\",\"Existing\")","v":""},null,{"$f":"IF('effRT Support'!$B53=0,\"\",IF('Project Information'!$D$21=\"\",\"\",'Project Information'!$D$21))","v":""},{"$f":"IF('effRT Support'!$B53=0,\"\",IF('Project Information'!$D$48=\"\",\"\",'Project Information'!$D$48))","v":""},{"$f":"IF('effRT Support'!$B53=0,\"\",\"\")","v":""},{"$f":"IF('effRT Support'!$B53=0,\"\",\"\")","v":""},{"$f":"IF('effRT Support'!$B53=0,\"\",\"\")","v":""},{"$f":"IF('effRT Support'!$B53=0,\"\",\"\")","v":""},{"$f":"IF('effRT Support'!$B53=0,\"\",IF('Project Information'!$D$13=\"\",\"\",'Project Information'!$D$13))","v":""},{"$f":"IF('effRT Support'!$B53=0,\"\",IF('Project Information'!$E$13=\"\",\"\",'Project Information'!$E$13))","v":""},{"$f":"IF('effRT Support'!$B53=0,\"\",IF('Project Information'!$D$14=\"\",\"\",'Project Information'!$D$14))","v":""},{"$f":"IF('effRT Support'!$B53=0,\"\",IF('Project Information'!$D$15=\"\",\"\",'Project Information'!$D$15))","v":""},{"$f":"IF('effRT Support'!$B53=0,\"\",IF('Project Information'!$D$16=\"\",\"\",'Project Information'!$D$16))","v":""},null,{"$f":"IF('effRT Support'!$B53=0,\"\",'Project Information'!$D$18)","v":""},{"$f":"IF('effRT Support'!$B53=0,\"\",IF('Project Information'!$D$23=\"\",\"\",'Project Information'!$D$23))","v":""},{"$f":"IF('effRT Support'!$B53=0,\"\",IF('Project Information'!$D$24=\"\",\"\",'Project Information'!$D$24))","v":""},{"$f":"IF('effRT Support'!$B53=0,\"\",IF('Project Information'!$D$25=\"\",\"\",'Project Information'!$D$25))","v":""},{"$f":"IF('effRT Support'!$B53=0,\"\",IF('Project Information'!$E$25=\"\",\"\",'Project Information'!$E$25))","v":""},{"$f":"IF('effRT Support'!$B53=0,\"\",IF('Project Information'!$F$25=\"\",\"\",'Project Information'!$F$25))","v":""},{"$f":"IF('effRT Support'!$B53=0,\"\",IF('Project Information'!$D$27=\"\",\"Y\",\"N\"))","v":""},{"$f":"IF('effRT Support'!$B53=0,\"\",IF('Project Information'!$D$27=\"\",\"\",'Project Information'!$D$27))","v":""},{"$f":"IF('effRT Support'!$B53=0,\"\",IF('Project Information'!$D$28=\"\",\"\",'Project Information'!$D$28))","v":""},{"$f":"IF('effRT Support'!$B53=0,\"\",IF('Project Information'!$D$29=\"\",\"\",'Project Information'!$D$29))","v":""},{"$f":"IF('effRT Support'!$B53=0,\"\",IF('Project Information'!$E$29=\"\",\"\",'Project Information'!$E$29))","v":""},{"$f":"IF('effRT Support'!$B53=0,\"\",IF('Project Information'!$F$29=\"\",\"\",'Project Information'!$F$29))","v":""},{"$f":"IF('effRT Support'!$B53=0,\"\",\"\")","v":""},{"$f":"IF('effRT Support'!$B53=0,\"\",\"\")","v":""},{"$f":"IF('effRT Support'!$B53=0,\"\",IF('Project Information'!$D$36=\"\",\"\",'Project Information'!$D$36))","v":""},{"$f":"IF('effRT Support'!$B53=0,\"\",IF('Project Information'!$D$42=\"\",\"\",'Project Information'!$D$42))","v":""},{"$f":"IF('effRT Support'!$B53=0,\"\",'effRT Support'!$D53)","v":""},{"$f":"IF('effRT Support'!$B53=0,\"\",'effRT Support'!$L53)","v":""},{"$f":"IF('effRT Support'!$B53=0,\"\",'effRT Support'!$N53)","v":""},null,null,{"$f":"IF('effRT Support'!$B53=0,\"\",'effRT Support'!$P53)","v":""},{"$f":"IF('effRT Support'!$B53=0,\"\",'effRT Support'!$Q53)","v":""},{"$f":"IF('effRT Support'!$B53=0,\"\",'effRT Support'!U53)","v":""},{"$f":"IF('effRT Support'!$B53=0,\"\",'effRT Support'!V53)","v":""},{"$f":"IF('effRT Support'!$B53=0,\"\",'effRT Support'!W53)","v":""},{"$f":"IF('effRT Support'!$B53=0,\"\",'effRT Support'!X53)","v":""},{"$f":"IF('effRT Support'!$B53=0,\"\",'effRT Support'!Y53)","v":""},{"$f":"IF('effRT Support'!$B53=0,\"\",'effRT Support'!Z53*10)","v":""},{"$f":"IF('effRT Support'!$B53=0,\"\",'effRT Support'!AA53)","v":""},{"$f":"IF('effRT Support'!$B53=0,\"\",'effRT Support'!AB53)","v":""},{"$f":"IF('effRT Support'!$B53=0,\"\",'effRT Support'!AC53)","v":""},{"$f":"IF('effRT Support'!$B53=0,\"\",'effRT Support'!AD53)","v":""},{"$f":"IF('effRT Support'!$B53=0,\"\",'effRT Support'!AE53)","v":""},{"$f":"IF('effRT Support'!$B53=0,\"\",\"Hours Actual or Deemed\")","v":""},{"$f":"IF('effRT Support'!$B53=0,\"\",'effRT Support'!$F53)","v":""},{"$f":"IF('effRT Support'!$B53=0,\"\",\"Wattage Actual or Deemed\")","v":""},{"$f":"IF('effRT Support'!$B53=0,\"\",IF('Project Information'!$D$33=\"Pay For Performance\",\"Actual\",\"Deemed\"))","v":""},{"$f":"IF('effRT Support'!$B53=0,\"\",\"Cost Actual or Deemed\")","v":""},{"$f":"IF('effRT Support'!$B53=0,\"\",IF('Project Information'!$D$33=\"Pay For Performance\",\"Actual\",\"Deemed\"))","v":""},{"$f":"IF('effRT Support'!$B53=0,\"\",\"Location\")","v":""},{"$f":"IF('effRT Support'!$B53=0,\"\",'effRT Support'!$E53)","v":""},{"$f":"IF('effRT Support'!$B53=0,\"\",\"Space Type\")","v":""},{"$f":"IF('effRT Support'!$B53=0,\"\",'effRT Support'!$G53)","v":""},{"$f":"IF('effRT Support'!$B53=0,\"\",\"Existing Fixture Description\")","v":""},{"$f":"IF('effRT Support'!$B53=0,\"\",'effRT Support'!$H53)","v":""},{"$f":"IF('effRT Support'!$B53=0,\"\",\"Existing Fixture Quantity\")","v":""},{"$f":"IF('effRT Support'!$B53=0,\"\",'effRT Support'!$I53)","v":""},{"$f":"IF('effRT Support'!$B53=0,\"\",\"Existing Fixture Wattage\")","v":""},{"$f":"IF('effRT Support'!$B53=0,\"\",'effRT Support'!$J53)","v":""},{"$f":"IF('effRT Support'!$B53=0,\"\",\"Annual Hours of Operation\")","v":""},{"$f":"IF('effRT Support'!$B53=0,\"\",'effRT Support'!$K53)","v":""},{"$f":"IF('effRT Support'!$B53=0,\"\",\"Installed Fixture Description\")","v":""},{"$f":"IF('effRT Support'!$B53=0,\"\",'effRT Support'!$M53)","v":""},{"$f":"IF('effRT Support'!$B53=0,\"\",\"Installed Fixture Wattage\")","v":""},{"$f":"IF('effRT Support'!$B53=0,\"\",'effRT Support'!$O53)","v":""},{"$f":"IF('effRT Support'!$B53=0,\"\",\"Material Cost\")","v":""},{"$f":"IF('effRT Support'!$B53=0,\"\",'effRT Support'!$R53)","v":""},{"$f":"IF('effRT Support'!$B53=0,\"\",\"Labor Cost\")","v":""},{"$f":"IF('effRT Support'!$B53=0,\"\",'effRT Support'!$S53)","v":""},{"$f":"IF('effRT Support'!$B53=0,\"\",\"Ancillary Costs - Measure Specific\")","v":""},{"$f":"IF('effRT Support'!$B53=0,\"\",'effRT Support'!$T53)","v":""},{"$f":"IF('effRT Support'!$B53=0,\"\",\"Fuel Type\")","v":""},{"$f":"IF('effRT Support'!$B53=0,\"\",'Project Information'!$D$44)","v":""},{"$f":"IF('effRT Support'!$B53=0,\"\",\"Installed Fixture Quantity\")","v":""},{"$f":"IF('effRT Support'!$B53=0,\"\",'effRT Support'!P52)","v":""}]
[{"$f":"IF('effRT Support'!$B54=0,\"\",IF('Project Information'!$D$33=\"Small Business\",\"SBL\",\"CILS\"))","v":""},{"$f":"IF('effRT Support'!$B54=0,\"\",IF('Project Information'!$K$2=\"\",\"\",'Project Information'!$K$2))","v":""},null,{"$f":"IF('effRT Support'!$B54=0,\"\",IF('Project Information'!$D$46=\"\",\"\",'Project Information'!$D$46))","v":""},{"$f":"IF('effRT Support'!$B54=0,\"\",IF('Project Information'!$D$20=\"\",\"\",VLOOKUP('Project Information'!$D$20,'Other Data'!$B$159:$E$189,4,FALSE)))","v":""},{"$f":"IF('effRT Support'!$B54=0,\"\",IF('Project Information'!$D$31=\"\",\"\",'Project Information'!$D$31))","v":""},{"$f":"IF('effRT Support'!$B54=0,\"\",IF('Project Information'!$D$5=\"\",\"\",'Project Information'!$D$5))","v":""},null,null,{"$f":"IF('effRT Support'!$B54=0,\"\",IF('Project Information'!$D$20=\"\",\"\",VLOOKUP('Project Information'!$D$20,'Other Data'!$B$159:$E$189,2,FALSE)))","v":""},{"$f":"IF('effRT Support'!$B54=0,\"\",IF('Project Information'!$D$20=\"\",\"\",VLOOKUP('Project Information'!$D$20,'Other Data'!$B$159:$E$189,3,FALSE)))","v":""},{"$f":"IF('effRT Support'!$B54=0,\"\",\"Existing\")","v":""},null,{"$f":"IF('effRT Support'!$B54=0,\"\",IF('Project Information'!$D$21=\"\",\"\",'Project Information'!$D$21))","v":""},{"$f":"IF('effRT Support'!$B54=0,\"\",IF('Project Information'!$D$48=\"\",\"\",'Project Information'!$D$48))","v":""},{"$f":"IF('effRT Support'!$B54=0,\"\",\"\")","v":""},{"$f":"IF('effRT Support'!$B54=0,\"\",\"\")","v":""},{"$f":"IF('effRT Support'!$B54=0,\"\",\"\")","v":""},{"$f":"IF('effRT Support'!$B54=0,\"\",\"\")","v":""},{"$f":"IF('effRT Support'!$B54=0,\"\",IF('Project Information'!$D$13=\"\",\"\",'Project Information'!$D$13))","v":""},{"$f":"IF('effRT Support'!$B54=0,\"\",IF('Project Information'!$E$13=\"\",\"\",'Project Information'!$E$13))","v":""},{"$f":"IF('effRT Support'!$B54=0,\"\",IF('Project Information'!$D$14=\"\",\"\",'Project Information'!$D$14))","v":""},{"$f":"IF('effRT Support'!$B54=0,\"\",IF('Project Information'!$D$15=\"\",\"\",'Project Information'!$D$15))","v":""},{"$f":"IF('effRT Support'!$B54=0,\"\",IF('Project Information'!$D$16=\"\",\"\",'Project Information'!$D$16))","v":""},null,{"$f":"IF('effRT Support'!$B54=0,\"\",'Project Information'!$D$18)","v":""},{"$f":"IF('effRT Support'!$B54=0,\"\",IF('Project Information'!$D$23=\"\",\"\",'Project Information'!$D$23))","v":""},{"$f":"IF('effRT Support'!$B54=0,\"\",IF('Project Information'!$D$24=\"\",\"\",'Project Information'!$D$24))","v":""},{"$f":"IF('effRT Support'!$B54=0,\"\",IF('Project Information'!$D$25=\"\",\"\",'Project Information'!$D$25))","v":""},{"$f":"IF('effRT Support'!$B54=0,\"\",IF('Project Information'!$E$25=\"\",\"\",'Project Information'!$E$25))","v":""},{"$f":"IF('effRT Support'!$B54=0,\"\",IF('Project Information'!$F$25=\"\",\"\",'Project Information'!$F$25))","v":""},{"$f":"IF('effRT Support'!$B54=0,\"\",IF('Project Information'!$D$27=\"\",\"Y\",\"N\"))","v":""},{"$f":"IF('effRT Support'!$B54=0,\"\",IF('Project Information'!$D$27=\"\",\"\",'Project Information'!$D$27))","v":""},{"$f":"IF('effRT Support'!$B54=0,\"\",IF('Project Information'!$D$28=\"\",\"\",'Project Information'!$D$28))","v":""},{"$f":"IF('effRT Support'!$B54=0,\"\",IF('Project Information'!$D$29=\"\",\"\",'Project Information'!$D$29))","v":""},{"$f":"IF('effRT Support'!$B54=0,\"\",IF('Project Information'!$E$29=\"\",\"\",'Project Information'!$E$29))","v":""},{"$f":"IF('effRT Support'!$B54=0,\"\",IF('Project Information'!$F$29=\"\",\"\",'Project Information'!$F$29))","v":""},{"$f":"IF('effRT Support'!$B54=0,\"\",\"\")","v":""},{"$f":"IF('effRT Support'!$B54=0,\"\",\"\")","v":""},{"$f":"IF('effRT Support'!$B54=0,\"\",IF('Project Information'!$D$36=\"\",\"\",'Project Information'!$D$36))","v":""},{"$f":"IF('effRT Support'!$B54=0,\"\",IF('Project Information'!$D$42=\"\",\"\",'Project Information'!$D$42))","v":""},{"$f":"IF('effRT Support'!$B54=0,\"\",'effRT Support'!$D54)","v":""},{"$f":"IF('effRT Support'!$B54=0,\"\",'effRT Support'!$L54)","v":""},{"$f":"IF('effRT Support'!$B54=0,\"\",'effRT Support'!$N54)","v":""},null,null,{"$f":"IF('effRT Support'!$B54=0,\"\",'effRT Support'!$P54)","v":""},{"$f":"IF('effRT Support'!$B54=0,\"\",'effRT Support'!$Q54)","v":""},{"$f":"IF('effRT Support'!$B54=0,\"\",'effRT Support'!U54)","v":""},{"$f":"IF('effRT Support'!$B54=0,\"\",'effRT Support'!V54)","v":""},{"$f":"IF('effRT Support'!$B54=0,\"\",'effRT Support'!W54)","v":""},{"$f":"IF('effRT Support'!$B54=0,\"\",'effRT Support'!X54)","v":""},{"$f":"IF('effRT Support'!$B54=0,\"\",'effRT Support'!Y54)","v":""},{"$f":"IF('effRT Support'!$B54=0,\"\",'effRT Support'!Z54*10)","v":""},{"$f":"IF('effRT Support'!$B54=0,\"\",'effRT Support'!AA54)","v":""},{"$f":"IF('effRT Support'!$B54=0,\"\",'effRT Support'!AB54)","v":""},{"$f":"IF('effRT Support'!$B54=0,\"\",'effRT Support'!AC54)","v":""},{"$f":"IF('effRT Support'!$B54=0,\"\",'effRT Support'!AD54)","v":""},{"$f":"IF('effRT Support'!$B54=0,\"\",'effRT Support'!AE54)","v":""},{"$f":"IF('effRT Support'!$B54=0,\"\",\"Hours Actual or Deemed\")","v":""},{"$f":"IF('effRT Support'!$B54=0,\"\",'effRT Support'!$F54)","v":""},{"$f":"IF('effRT Support'!$B54=0,\"\",\"Wattage Actual or Deemed\")","v":""},{"$f":"IF('effRT Support'!$B54=0,\"\",IF('Project Information'!$D$33=\"Pay For Performance\",\"Actual\",\"Deemed\"))","v":""},{"$f":"IF('effRT Support'!$B54=0,\"\",\"Cost Actual or Deemed\")","v":""},{"$f":"IF('effRT Support'!$B54=0,\"\",IF('Project Information'!$D$33=\"Pay For Performance\",\"Actual\",\"Deemed\"))","v":""},{"$f":"IF('effRT Support'!$B54=0,\"\",\"Location\")","v":""},{"$f":"IF('effRT Support'!$B54=0,\"\",'effRT Support'!$E54)","v":""},{"$f":"IF('effRT Support'!$B54=0,\"\",\"Space Type\")","v":""},{"$f":"IF('effRT Support'!$B54=0,\"\",'effRT Support'!$G54)","v":""},{"$f":"IF('effRT Support'!$B54=0,\"\",\"Existing Fixture Description\")","v":""},{"$f":"IF('effRT Support'!$B54=0,\"\",'effRT Support'!$H54)","v":""},{"$f":"IF('effRT Support'!$B54=0,\"\",\"Existing Fixture Quantity\")","v":""},{"$f":"IF('effRT Support'!$B54=0,\"\",'effRT Support'!$I54)","v":""},{"$f":"IF('effRT Support'!$B54=0,\"\",\"Existing Fixture Wattage\")","v":""},{"$f":"IF('effRT Support'!$B54=0,\"\",'effRT Support'!$J54)","v":""},{"$f":"IF('effRT Support'!$B54=0,\"\",\"Annual Hours of Operation\")","v":""},{"$f":"IF('effRT Support'!$B54=0,\"\",'effRT Support'!$K54)","v":""},{"$f":"IF('effRT Support'!$B54=0,\"\",\"Installed Fixture Description\")","v":""},{"$f":"IF('effRT Support'!$B54=0,\"\",'effRT Support'!$M54)","v":""},{"$f":"IF('effRT Support'!$B54=0,\"\",\"Installed Fixture Wattage\")","v":""},{"$f":"IF('effRT Support'!$B54=0,\"\",'effRT Support'!$O54)","v":""},{"$f":"IF('effRT Support'!$B54=0,\"\",\"Material Cost\")","v":""},{"$f":"IF('effRT Support'!$B54=0,\"\",'effRT Support'!$R54)","v":""},{"$f":"IF('effRT Support'!$B54=0,\"\",\"Labor Cost\")","v":""},{"$f":"IF('effRT Support'!$B54=0,\"\",'effRT Support'!$S54)","v":""},{"$f":"IF('effRT Support'!$B54=0,\"\",\"Ancillary Costs - Measure Specific\")","v":""},{"$f":"IF('effRT Support'!$B54=0,\"\",'effRT Support'!$T54)","v":""},{"$f":"IF('effRT Support'!$B54=0,\"\",\"Fuel Type\")","v":""},{"$f":"IF('effRT Support'!$B54=0,\"\",'Project Information'!$D$44)","v":""}]
[{"$f":"IF('effRT Support'!$B55=0,\"\",IF('Project Information'!$D$33=\"Small Business\",\"SBL\",\"CILS\"))","v":""},{"$f":"IF('effRT Support'!$B55=0,\"\",IF('Project Information'!$K$2=\"\",\"\",'Project Information'!$K$2))","v":""},null,{"$f":"IF('effRT Support'!$B55=0,\"\",IF('Project Information'!$D$46=\"\",\"\",'Project Information'!$D$46))","v":""},{"$f":"IF('effRT Support'!$B55=0,\"\",IF('Project Information'!$D$20=\"\",\"\",VLOOKUP('Project Information'!$D$20,'Other Data'!$B$159:$E$189,4,FALSE)))","v":""},{"$f":"IF('effRT Support'!$B55=0,\"\",IF('Project Information'!$D$31=\"\",\"\",'Project Information'!$D$31))","v":""},{"$f":"IF('effRT Support'!$B55=0,\"\",IF('Project Information'!$D$5=\"\",\"\",'Project Information'!$D$5))","v":""},null,null,{"$f":"IF('effRT Support'!$B55=0,\"\",IF('Project Information'!$D$20=\"\",\"\",VLOOKUP('Project Information'!$D$20,'Other Data'!$B$159:$E$189,2,FALSE)))","v":""},{"$f":"IF('effRT Support'!$B55=0,\"\",IF('Project Information'!$D$20=\"\",\"\",VLOOKUP('Project Information'!$D$20,'Other Data'!$B$159:$E$189,3,FALSE)))","v":""},{"$f":"IF('effRT Support'!$B55=0,\"\",\"Existing\")","v":""},null,{"$f":"IF('effRT Support'!$B55=0,\"\",IF('Project Information'!$D$21=\"\",\"\",'Project Information'!$D$21))","v":""},{"$f":"IF('effRT Support'!$B55=0,\"\",IF('Project Information'!$D$48=\"\",\"\",'Project Information'!$D$48))","v":""},{"$f":"IF('effRT Support'!$B55=0,\"\",\"\")","v":""},{"$f":"IF('effRT Support'!$B55=0,\"\",\"\")","v":""},{"$f":"IF('effRT Support'!$B55=0,\"\",\"\")","v":""},{"$f":"IF('effRT Support'!$B55=0,\"\",\"\")","v":""},{"$f":"IF('effRT Support'!$B55=0,\"\",IF('Project Information'!$D$13=\"\",\"\",'Project Information'!$D$13))","v":""},{"$f":"IF('effRT Support'!$B55=0,\"\",IF('Project Information'!$E$13=\"\",\"\",'Project Information'!$E$13))","v":""},{"$f":"IF('effRT Support'!$B55=0,\"\",IF('Project Information'!$D$14=\"\",\"\",'Project Information'!$D$14))","v":""},{"$f":"IF('effRT Support'!$B55=0,\"\",IF('Project Information'!$D$15=\"\",\"\",'Project Information'!$D$15))","v":""},{"$f":"IF('effRT Support'!$B55=0,\"\",IF('Project Information'!$D$16=\"\",\"\",'Project Information'!$D$16))","v":""},null,{"$f":"IF('effRT Support'!$B55=0,\"\",'Project Information'!$D$18)","v":""},{"$f":"IF('effRT Support'!$B55=0,\"\",IF('Project Information'!$D$23=\"\",\"\",'Project Information'!$D$23))","v":""},{"$f":"IF('effRT Support'!$B55=0,\"\",IF('Project Information'!$D$24=\"\",\"\",'Project Information'!$D$24))","v":""},{"$f":"IF('effRT Support'!$B55=0,\"\",IF('Project Information'!$D$25=\"\",\"\",'Project Information'!$D$25))","v":""},{"$f":"IF('effRT Support'!$B55=0,\"\",IF('Project Information'!$E$25=\"\",\"\",'Project Information'!$E$25))","v":""},{"$f":"IF('effRT Support'!$B55=0,\"\",IF('Project Information'!$F$25=\"\",\"\",'Project Information'!$F$25))","v":""},{"$f":"IF('effRT Support'!$B55=0,\"\",IF('Project Information'!$D$27=\"\",\"Y\",\"N\"))","v":""},{"$f":"IF('effRT Support'!$B55=0,\"\",IF('Project Information'!$D$27=\"\",\"\",'Project Information'!$D$27))","v":""},{"$f":"IF('effRT Support'!$B55=0,\"\",IF('Project Information'!$D$28=\"\",\"\",'Project Information'!$D$28))","v":""},{"$f":"IF('effRT Support'!$B55=0,\"\",IF('Project Information'!$D$29=\"\",\"\",'Project Information'!$D$29))","v":""},{"$f":"IF('effRT Support'!$B55=0,\"\",IF('Project Information'!$E$29=\"\",\"\",'Project Information'!$E$29))","v":""},{"$f":"IF('effRT Support'!$B55=0,\"\",IF('Project Information'!$F$29=\"\",\"\",'Project Information'!$F$29))","v":""},{"$f":"IF('effRT Support'!$B55=0,\"\",\"\")","v":""},{"$f":"IF('effRT Support'!$B55=0,\"\",\"\")","v":""},{"$f":"IF('effRT Support'!$B55=0,\"\",IF('Project Information'!$D$36=\"\",\"\",'Project Information'!$D$36))","v":""},{"$f":"IF('effRT Support'!$B55=0,\"\",IF('Project Information'!$D$42=\"\",\"\",'Project Information'!$D$42))","v":""},{"$f":"IF('effRT Support'!$B55=0,\"\",'effRT Support'!$D55)","v":""},{"$f":"IF('effRT Support'!$B55=0,\"\",'effRT Support'!$L55)","v":""},{"$f":"IF('effRT Support'!$B55=0,\"\",'effRT Support'!$N55)","v":""},null,null,{"$f":"IF('effRT Support'!$B55=0,\"\",'effRT Support'!$P55)","v":""},{"$f":"IF('effRT Support'!$B55=0,\"\",'effRT Support'!$Q55)","v":""},{"$f":"IF('effRT Support'!$B55=0,\"\",'effRT Support'!U55)","v":""},{"$f":"IF('effRT Support'!$B55=0,\"\",'effRT Support'!V55)","v":""},{"$f":"IF('effRT Support'!$B55=0,\"\",'effRT Support'!W55)","v":""},{"$f":"IF('effRT Support'!$B55=0,\"\",'effRT Support'!X55)","v":""},{"$f":"IF('effRT Support'!$B55=0,\"\",'effRT Support'!Y55)","v":""},{"$f":"IF('effRT Support'!$B55=0,\"\",'effRT Support'!Z55*10)","v":""},{"$f":"IF('effRT Support'!$B55=0,\"\",'effRT Support'!AA55)","v":""},{"$f":"IF('effRT Support'!$B55=0,\"\",'effRT Support'!AB55)","v":""},{"$f":"IF('effRT Support'!$B55=0,\"\",'effRT Support'!AC55)","v":""},{"$f":"IF('effRT Support'!$B55=0,\"\",'effRT Support'!AD55)","v":""},{"$f":"IF('effRT Support'!$B55=0,\"\",'effRT Support'!AE55)","v":""},{"$f":"IF('effRT Support'!$B55=0,\"\",\"Hours Actual or Deemed\")","v":""},{"$f":"IF('effRT Support'!$B55=0,\"\",'effRT Support'!$F55)","v":""},{"$f":"IF('effRT Support'!$B55=0,\"\",\"Wattage Actual or Deemed\")","v":""},{"$f":"IF('effRT Support'!$B55=0,\"\",IF('Project Information'!$D$33=\"Pay For Performance\",\"Actual\",\"Deemed\"))","v":""},{"$f":"IF('effRT Support'!$B55=0,\"\",\"Cost Actual or Deemed\")","v":""},{"$f":"IF('effRT Support'!$B55=0,\"\",IF('Project Information'!$D$33=\"Pay For Performance\",\"Actual\",\"Deemed\"))","v":""},{"$f":"IF('effRT Support'!$B55=0,\"\",\"Location\")","v":""},{"$f":"IF('effRT Support'!$B55=0,\"\",'effRT Support'!$E55)","v":""},{"$f":"IF('effRT Support'!$B55=0,\"\",\"Space Type\")","v":""},{"$f":"IF('effRT Support'!$B55=0,\"\",'effRT Support'!$G55)","v":""},{"$f":"IF('effRT Support'!$B55=0,\"\",\"Existing Fixture Description\")","v":""},{"$f":"IF('effRT Support'!$B55=0,\"\",'effRT Support'!$H55)","v":""},{"$f":"IF('effRT Support'!$B55=0,\"\",\"Existing Fixture Quantity\")","v":""},{"$f":"IF('effRT Support'!$B55=0,\"\",'effRT Support'!$I55)","v":""},{"$f":"IF('effRT Support'!$B55=0,\"\",\"Existing Fixture Wattage\")","v":""},{"$f":"IF('effRT Support'!$B55=0,\"\",'effRT Support'!$J55)","v":""},{"$f":"IF('effRT Support'!$B55=0,\"\",\"Annual Hours of Operation\")","v":""},{"$f":"IF('effRT Support'!$B55=0,\"\",'effRT Support'!$K55)","v":""},{"$f":"IF('effRT Support'!$B55=0,\"\",\"Installed Fixture Description\")","v":""},{"$f":"IF('effRT Support'!$B55=0,\"\",'effRT Support'!$M55)","v":""},{"$f":"IF('effRT Support'!$B55=0,\"\",\"Installed Fixture Wattage\")","v":""},{"$f":"IF('effRT Support'!$B55=0,\"\",'effRT Support'!$O55)","v":""},{"$f":"IF('effRT Support'!$B55=0,\"\",\"Material Cost\")","v":""},{"$f":"IF('effRT Support'!$B55=0,\"\",'effRT Support'!$R55)","v":""},{"$f":"IF('effRT Support'!$B55=0,\"\",\"Labor Cost\")","v":""},{"$f":"IF('effRT Support'!$B55=0,\"\",'effRT Support'!$S55)","v":""},{"$f":"IF('effRT Support'!$B55=0,\"\",\"Ancillary Costs - Measure Specific\")","v":""},{"$f":"IF('effRT Support'!$B55=0,\"\",'effRT Support'!$T55)","v":""},{"$f":"IF('effRT Support'!$B55=0,\"\",\"Fuel Type\")","v":""},{"$f":"IF('effRT Support'!$B55=0,\"\",'Project Information'!$D$44)","v":""},{"$f":"IF('effRT Support'!$B55=0,\"\",\"Installed Fixture Quantity\")","v":""},{"$f":"IF('effRT Support'!$B55=0,\"\",'effRT Support'!P54)","v":""}]
[{"$f":"IF('effRT Support'!$B56=0,\"\",IF('Project Information'!$D$33=\"Small Business\",\"SBL\",\"CILS\"))","v":""},{"$f":"IF('effRT Support'!$B56=0,\"\",IF('Project Information'!$K$2=\"\",\"\",'Project Information'!$K$2))","v":""},null,{"$f":"IF('effRT Support'!$B56=0,\"\",IF('Project Information'!$D$46=\"\",\"\",'Project Information'!$D$46))","v":""},{"$f":"IF('effRT Support'!$B56=0,\"\",IF('Project Information'!$D$20=\"\",\"\",VLOOKUP('Project Information'!$D$20,'Other Data'!$B$159:$E$189,4,FALSE)))","v":""},{"$f":"IF('effRT Support'!$B56=0,\"\",IF('Project Information'!$D$31=\"\",\"\",'Project Information'!$D$31))","v":""},{"$f":"IF('effRT Support'!$B56=0,\"\",IF('Project Information'!$D$5=\"\",\"\",'Project Information'!$D$5))","v":""},null,null,{"$f":"IF('effRT Support'!$B56=0,\"\",IF('Project Information'!$D$20=\"\",\"\",VLOOKUP('Project Information'!$D$20,'Other Data'!$B$159:$E$189,2,FALSE)))","v":""},{"$f":"IF('effRT Support'!$B56=0,\"\",IF('Project Information'!$D$20=\"\",\"\",VLOOKUP('Project Information'!$D$20,'Other Data'!$B$159:$E$189,3,FALSE)))","v":""},{"$f":"IF('effRT Support'!$B56=0,\"\",\"Existing\")","v":""},null,{"$f":"IF('effRT Support'!$B56=0,\"\",IF('Project Information'!$D$21=\"\",\"\",'Project Information'!$D$21))","v":""},{"$f":"IF('effRT Support'!$B56=0,\"\",IF('Project Information'!$D$48=\"\",\"\",'Project Information'!$D$48))","v":""},{"$f":"IF('effRT Support'!$B56=0,\"\",\"\")","v":""},{"$f":"IF('effRT Support'!$B56=0,\"\",\"\")","v":""},{"$f":"IF('effRT Support'!$B56=0,\"\",\"\")","v":""},{"$f":"IF('effRT Support'!$B56=0,\"\",\"\")","v":""},{"$f":"IF('effRT Support'!$B56=0,\"\",IF('Project Information'!$D$13=\"\",\"\",'Project Information'!$D$13))","v":""},{"$f":"IF('effRT Support'!$B56=0,\"\",IF('Project Information'!$E$13=\"\",\"\",'Project Information'!$E$13))","v":""},{"$f":"IF('effRT Support'!$B56=0,\"\",IF('Project Information'!$D$14=\"\",\"\",'Project Information'!$D$14))","v":""},{"$f":"IF('effRT Support'!$B56=0,\"\",IF('Project Information'!$D$15=\"\",\"\",'Project Information'!$D$15))","v":""},{"$f":"IF('effRT Support'!$B56=0,\"\",IF('Project Information'!$D$16=\"\",\"\",'Project Information'!$D$16))","v":""},null,{"$f":"IF('effRT Support'!$B56=0,\"\",'Project Information'!$D$18)","v":""},{"$f":"IF('effRT Support'!$B56=0,\"\",IF('Project Information'!$D$23=\"\",\"\",'Project Information'!$D$23))","v":""},{"$f":"IF('effRT Support'!$B56=0,\"\",IF('Project Information'!$D$24=\"\",\"\",'Project Information'!$D$24))","v":""},{"$f":"IF('effRT Support'!$B56=0,\"\",IF('Project Information'!$D$25=\"\",\"\",'Project Information'!$D$25))","v":""},{"$f":"IF('effRT Support'!$B56=0,\"\",IF('Project Information'!$E$25=\"\",\"\",'Project Information'!$E$25))","v":""},{"$f":"IF('effRT Support'!$B56=0,\"\",IF('Project Information'!$F$25=\"\",\"\",'Project Information'!$F$25))","v":""},{"$f":"IF('effRT Support'!$B56=0,\"\",IF('Project Information'!$D$27=\"\",\"Y\",\"N\"))","v":""},{"$f":"IF('effRT Support'!$B56=0,\"\",IF('Project Information'!$D$27=\"\",\"\",'Project Information'!$D$27))","v":""},{"$f":"IF('effRT Support'!$B56=0,\"\",IF('Project Information'!$D$28=\"\",\"\",'Project Information'!$D$28))","v":""},{"$f":"IF('effRT Support'!$B56=0,\"\",IF('Project Information'!$D$29=\"\",\"\",'Project Information'!$D$29))","v":""},{"$f":"IF('effRT Support'!$B56=0,\"\",IF('Project Information'!$E$29=\"\",\"\",'Project Information'!$E$29))","v":""},{"$f":"IF('effRT Support'!$B56=0,\"\",IF('Project Information'!$F$29=\"\",\"\",'Project Information'!$F$29))","v":""},{"$f":"IF('effRT Support'!$B56=0,\"\",\"\")","v":""},{"$f":"IF('effRT Support'!$B56=0,\"\",\"\")","v":""},{"$f":"IF('effRT Support'!$B56=0,\"\",IF('Project Information'!$D$36=\"\",\"\",'Project Information'!$D$36))","v":""},{"$f":"IF('effRT Support'!$B56=0,\"\",IF('Project Information'!$D$42=\"\",\"\",'Project Information'!$D$42))","v":""},{"$f":"IF('effRT Support'!$B56=0,\"\",'effRT Support'!$D56)","v":""},{"$f":"IF('effRT Support'!$B56=0,\"\",'effRT Support'!$L56)","v":""},{"$f":"IF('effRT Support'!$B56=0,\"\",'effRT Support'!$N56)","v":""},null,null,{"$f":"IF('effRT Support'!$B56=0,\"\",'effRT Support'!$P56)","v":""},{"$f":"IF('effRT Support'!$B56=0,\"\",'effRT Support'!$Q56)","v":""},{"$f":"IF('effRT Support'!$B56=0,\"\",'effRT Support'!U56)","v":""},{"$f":"IF('effRT Support'!$B56=0,\"\",'effRT Support'!V56)","v":""},{"$f":"IF('effRT Support'!$B56=0,\"\",'effRT Support'!W56)","v":""},{"$f":"IF('effRT Support'!$B56=0,\"\",'effRT Support'!X56)","v":""},{"$f":"IF('effRT Support'!$B56=0,\"\",'effRT Support'!Y56)","v":""},{"$f":"IF('effRT Support'!$B56=0,\"\",'effRT Support'!Z56*10)","v":""},{"$f":"IF('effRT Support'!$B56=0,\"\",'effRT Support'!AA56)","v":""},{"$f":"IF('effRT Support'!$B56=0,\"\",'effRT Support'!AB56)","v":""},{"$f":"IF('effRT Support'!$B56=0,\"\",'effRT Support'!AC56)","v":""},{"$f":"IF('effRT Support'!$B56=0,\"\",'effRT Support'!AD56)","v":""},{"$f":"IF('effRT Support'!$B56=0,\"\",'effRT Support'!AE56)","v":""},{"$f":"IF('effRT Support'!$B56=0,\"\",\"Hours Actual or Deemed\")","v":""},{"$f":"IF('effRT Support'!$B56=0,\"\",'effRT Support'!$F56)","v":""},{"$f":"IF('effRT Support'!$B56=0,\"\",\"Wattage Actual or Deemed\")","v":""},{"$f":"IF('effRT Support'!$B56=0,\"\",IF('Project Information'!$D$33=\"Pay For Performance\",\"Actual\",\"Deemed\"))","v":""},{"$f":"IF('effRT Support'!$B56=0,\"\",\"Cost Actual or Deemed\")","v":""},{"$f":"IF('effRT Support'!$B56=0,\"\",IF('Project Information'!$D$33=\"Pay For Performance\",\"Actual\",\"Deemed\"))","v":""},{"$f":"IF('effRT Support'!$B56=0,\"\",\"Location\")","v":""},{"$f":"IF('effRT Support'!$B56=0,\"\",'effRT Support'!$E56)","v":""},{"$f":"IF('effRT Support'!$B56=0,\"\",\"Space Type\")","v":""},{"$f":"IF('effRT Support'!$B56=0,\"\",'effRT Support'!$G56)","v":""},{"$f":"IF('effRT Support'!$B56=0,\"\",\"Existing Fixture Description\")","v":""},{"$f":"IF('effRT Support'!$B56=0,\"\",'effRT Support'!$H56)","v":""},{"$f":"IF('effRT Support'!$B56=0,\"\",\"Existing Fixture Quantity\")","v":""},{"$f":"IF('effRT Support'!$B56=0,\"\",'effRT Support'!$I56)","v":""},{"$f":"IF('effRT Support'!$B56=0,\"\",\"Existing Fixture Wattage\")","v":""},{"$f":"IF('effRT Support'!$B56=0,\"\",'effRT Support'!$J56)","v":""},{"$f":"IF('effRT Support'!$B56=0,\"\",\"Annual Hours of Operation\")","v":""},{"$f":"IF('effRT Support'!$B56=0,\"\",'effRT Support'!$K56)","v":""},{"$f":"IF('effRT Support'!$B56=0,\"\",\"Installed Fixture Description\")","v":""},{"$f":"IF('effRT Support'!$B56=0,\"\",'effRT Support'!$M56)","v":""},{"$f":"IF('effRT Support'!$B56=0,\"\",\"Installed Fixture Wattage\")","v":""},{"$f":"IF('effRT Support'!$B56=0,\"\",'effRT Support'!$O56)","v":""},{"$f":"IF('effRT Support'!$B56=0,\"\",\"Material Cost\")","v":""},{"$f":"IF('effRT Support'!$B56=0,\"\",'effRT Support'!$R56)","v":""},{"$f":"IF('effRT Support'!$B56=0,\"\",\"Labor Cost\")","v":""},{"$f":"IF('effRT Support'!$B56=0,\"\",'effRT Support'!$S56)","v":""},{"$f":"IF('effRT Support'!$B56=0,\"\",\"Ancillary Costs - Measure Specific\")","v":""},{"$f":"IF('effRT Support'!$B56=0,\"\",'effRT Support'!$T56)","v":""},{"$f":"IF('effRT Support'!$B56=0,\"\",\"Fuel Type\")","v":""},{"$f":"IF('effRT Support'!$B56=0,\"\",'Project Information'!$D$44)","v":""}]
[{"$f":"IF('effRT Support'!$B57=0,\"\",IF('Project Information'!$D$33=\"Small Business\",\"SBL\",\"CILS\"))","v":""},{"$f":"IF('effRT Support'!$B57=0,\"\",IF('Project Information'!$K$2=\"\",\"\",'Project Information'!$K$2))","v":""},null,{"$f":"IF('effRT Support'!$B57=0,\"\",IF('Project Information'!$D$46=\"\",\"\",'Project Information'!$D$46))","v":""},{"$f":"IF('effRT Support'!$B57=0,\"\",IF('Project Information'!$D$20=\"\",\"\",VLOOKUP('Project Information'!$D$20,'Other Data'!$B$159:$E$189,4,FALSE)))","v":""},{"$f":"IF('effRT Support'!$B57=0,\"\",IF('Project Information'!$D$31=\"\",\"\",'Project Information'!$D$31))","v":""},{"$f":"IF('effRT Support'!$B57=0,\"\",IF('Project Information'!$D$5=\"\",\"\",'Project Information'!$D$5))","v":""},null,null,{"$f":"IF('effRT Support'!$B57=0,\"\",IF('Project Information'!$D$20=\"\",\"\",VLOOKUP('Project Information'!$D$20,'Other Data'!$B$159:$E$189,2,FALSE)))","v":""},{"$f":"IF('effRT Support'!$B57=0,\"\",IF('Project Information'!$D$20=\"\",\"\",VLOOKUP('Project Information'!$D$20,'Other Data'!$B$159:$E$189,3,FALSE)))","v":""},{"$f":"IF('effRT Support'!$B57=0,\"\",\"Existing\")","v":""},null,{"$f":"IF('effRT Support'!$B57=0,\"\",IF('Project Information'!$D$21=\"\",\"\",'Project Information'!$D$21))","v":""},{"$f":"IF('effRT Support'!$B57=0,\"\",IF('Project Information'!$D$48=\"\",\"\",'Project Information'!$D$48))","v":""},{"$f":"IF('effRT Support'!$B57=0,\"\",\"\")","v":""},{"$f":"IF('effRT Support'!$B57=0,\"\",\"\")","v":""},{"$f":"IF('effRT Support'!$B57=0,\"\",\"\")","v":""},{"$f":"IF('effRT Support'!$B57=0,\"\",\"\")","v":""},{"$f":"IF('effRT Support'!$B57=0,\"\",IF('Project Information'!$D$13=\"\",\"\",'Project Information'!$D$13))","v":""},{"$f":"IF('effRT Support'!$B57=0,\"\",IF('Project Information'!$E$13=\"\",\"\",'Project Information'!$E$13))","v":""},{"$f":"IF('effRT Support'!$B57=0,\"\",IF('Project Information'!$D$14=\"\",\"\",'Project Information'!$D$14))","v":""},{"$f":"IF('effRT Support'!$B57=0,\"\",IF('Project Information'!$D$15=\"\",\"\",'Project Information'!$D$15))","v":""},{"$f":"IF('effRT Support'!$B57=0,\"\",IF('Project Information'!$D$16=\"\",\"\",'Project Information'!$D$16))","v":""},null,{"$f":"IF('effRT Support'!$B57=0,\"\",'Project Information'!$D$18)","v":""},{"$f":"IF('effRT Support'!$B57=0,\"\",IF('Project Information'!$D$23=\"\",\"\",'Project Information'!$D$23))","v":""},{"$f":"IF('effRT Support'!$B57=0,\"\",IF('Project Information'!$D$24=\"\",\"\",'Project Information'!$D$24))","v":""},{"$f":"IF('effRT Support'!$B57=0,\"\",IF('Project Information'!$D$25=\"\",\"\",'Project Information'!$D$25))","v":""},{"$f":"IF('effRT Support'!$B57=0,\"\",IF('Project Information'!$E$25=\"\",\"\",'Project Information'!$E$25))","v":""},{"$f":"IF('effRT Support'!$B57=0,\"\",IF('Project Information'!$F$25=\"\",\"\",'Project Information'!$F$25))","v":""},{"$f":"IF('effRT Support'!$B57=0,\"\",IF('Project Information'!$D$27=\"\",\"Y\",\"N\"))","v":""},{"$f":"IF('effRT Support'!$B57=0,\"\",IF('Project Information'!$D$27=\"\",\"\",'Project Information'!$D$27))","v":""},{"$f":"IF('effRT Support'!$B57=0,\"\",IF('Project Information'!$D$28=\"\",\"\",'Project Information'!$D$28))","v":""},{"$f":"IF('effRT Support'!$B57=0,\"\",IF('Project Information'!$D$29=\"\",\"\",'Project Information'!$D$29))","v":""},{"$f":"IF('effRT Support'!$B57=0,\"\",IF('Project Information'!$E$29=\"\",\"\",'Project Information'!$E$29))","v":""},{"$f":"IF('effRT Support'!$B57=0,\"\",IF('Project Information'!$F$29=\"\",\"\",'Project Information'!$F$29))","v":""},{"$f":"IF('effRT Support'!$B57=0,\"\",\"\")","v":""},{"$f":"IF('effRT Support'!$B57=0,\"\",\"\")","v":""},{"$f":"IF('effRT Support'!$B57=0,\"\",IF('Project Information'!$D$36=\"\",\"\",'Project Information'!$D$36))","v":""},{"$f":"IF('effRT Support'!$B57=0,\"\",IF('Project Information'!$D$42=\"\",\"\",'Project Information'!$D$42))","v":""},{"$f":"IF('effRT Support'!$B57=0,\"\",'effRT Support'!$D57)","v":""},{"$f":"IF('effRT Support'!$B57=0,\"\",'effRT Support'!$L57)","v":""},{"$f":"IF('effRT Support'!$B57=0,\"\",'effRT Support'!$N57)","v":""},null,null,{"$f":"IF('effRT Support'!$B57=0,\"\",'effRT Support'!$P57)","v":""},{"$f":"IF('effRT Support'!$B57=0,\"\",'effRT Support'!$Q57)","v":""},{"$f":"IF('effRT Support'!$B57=0,\"\",'effRT Support'!U57)","v":""},{"$f":"IF('effRT Support'!$B57=0,\"\",'effRT Support'!V57)","v":""},{"$f":"IF('effRT Support'!$B57=0,\"\",'effRT Support'!W57)","v":""},{"$f":"IF('effRT Support'!$B57=0,\"\",'effRT Support'!X57)","v":""},{"$f":"IF('effRT Support'!$B57=0,\"\",'effRT Support'!Y57)","v":""},{"$f":"IF('effRT Support'!$B57=0,\"\",'effRT Support'!Z57*10)","v":""},{"$f":"IF('effRT Support'!$B57=0,\"\",'effRT Support'!AA57)","v":""},{"$f":"IF('effRT Support'!$B57=0,\"\",'effRT Support'!AB57)","v":""},{"$f":"IF('effRT Support'!$B57=0,\"\",'effRT Support'!AC57)","v":""},{"$f":"IF('effRT Support'!$B57=0,\"\",'effRT Support'!AD57)","v":""},{"$f":"IF('effRT Support'!$B57=0,\"\",'effRT Support'!AE57)","v":""},{"$f":"IF('effRT Support'!$B57=0,\"\",\"Hours Actual or Deemed\")","v":""},{"$f":"IF('effRT Support'!$B57=0,\"\",'effRT Support'!$F57)","v":""},{"$f":"IF('effRT Support'!$B57=0,\"\",\"Wattage Actual or Deemed\")","v":""},{"$f":"IF('effRT Support'!$B57=0,\"\",IF('Project Information'!$D$33=\"Pay For Performance\",\"Actual\",\"Deemed\"))","v":""},{"$f":"IF('effRT Support'!$B57=0,\"\",\"Cost Actual or Deemed\")","v":""},{"$f":"IF('effRT Support'!$B57=0,\"\",IF('Project Information'!$D$33=\"Pay For Performance\",\"Actual\",\"Deemed\"))","v":""},{"$f":"IF('effRT Support'!$B57=0,\"\",\"Location\")","v":""},{"$f":"IF('effRT Support'!$B57=0,\"\",'effRT Support'!$E57)","v":""},{"$f":"IF('effRT Support'!$B57=0,\"\",\"Space Type\")","v":""},{"$f":"IF('effRT Support'!$B57=0,\"\",'effRT Support'!$G57)","v":""},{"$f":"IF('effRT Support'!$B57=0,\"\",\"Existing Fixture Description\")","v":""},{"$f":"IF('effRT Support'!$B57=0,\"\",'effRT Support'!$H57)","v":""},{"$f":"IF('effRT Support'!$B57=0,\"\",\"Existing Fixture Quantity\")","v":""},{"$f":"IF('effRT Support'!$B57=0,\"\",'effRT Support'!$I57)","v":""},{"$f":"IF('effRT Support'!$B57=0,\"\",\"Existing Fixture Wattage\")","v":""},{"$f":"IF('effRT Support'!$B57=0,\"\",'effRT Support'!$J57)","v":""},{"$f":"IF('effRT Support'!$B57=0,\"\",\"Annual Hours of Operation\")","v":""},{"$f":"IF('effRT Support'!$B57=0,\"\",'effRT Support'!$K57)","v":""},{"$f":"IF('effRT Support'!$B57=0,\"\",\"Installed Fixture Description\")","v":""},{"$f":"IF('effRT Support'!$B57=0,\"\",'effRT Support'!$M57)","v":""},{"$f":"IF('effRT Support'!$B57=0,\"\",\"Installed Fixture Wattage\")","v":""},{"$f":"IF('effRT Support'!$B57=0,\"\",'effRT Support'!$O57)","v":""},{"$f":"IF('effRT Support'!$B57=0,\"\",\"Material Cost\")","v":""},{"$f":"IF('effRT Support'!$B57=0,\"\",'effRT Support'!$R57)","v":""},{"$f":"IF('effRT Support'!$B57=0,\"\",\"Labor Cost\")","v":""},{"$f":"IF('effRT Support'!$B57=0,\"\",'effRT Support'!$S57)","v":""},{"$f":"IF('effRT Support'!$B57=0,\"\",\"Ancillary Costs - Measure Specific\")","v":""},{"$f":"IF('effRT Support'!$B57=0,\"\",'effRT Support'!$T57)","v":""},{"$f":"IF('effRT Support'!$B57=0,\"\",\"Fuel Type\")","v":""},{"$f":"IF('effRT Support'!$B57=0,\"\",'Project Information'!$D$44)","v":""},{"$f":"IF('effRT Support'!$B57=0,\"\",\"Installed Fixture Quantity\")","v":""},{"$f":"IF('effRT Support'!$B57=0,\"\",'effRT Support'!P56)","v":""}]
[{"$f":"IF('effRT Support'!$B58=0,\"\",IF('Project Information'!$D$33=\"Small Business\",\"SBL\",\"CILS\"))","v":""},{"$f":"IF('effRT Support'!$B58=0,\"\",IF('Project Information'!$K$2=\"\",\"\",'Project Information'!$K$2))","v":""},null,{"$f":"IF('effRT Support'!$B58=0,\"\",IF('Project Information'!$D$46=\"\",\"\",'Project Information'!$D$46))","v":""},{"$f":"IF('effRT Support'!$B58=0,\"\",IF('Project Information'!$D$20=\"\",\"\",VLOOKUP('Project Information'!$D$20,'Other Data'!$B$159:$E$189,4,FALSE)))","v":""},{"$f":"IF('effRT Support'!$B58=0,\"\",IF('Project Information'!$D$31=\"\",\"\",'Project Information'!$D$31))","v":""},{"$f":"IF('effRT Support'!$B58=0,\"\",IF('Project Information'!$D$5=\"\",\"\",'Project Information'!$D$5))","v":""},null,null,{"$f":"IF('effRT Support'!$B58=0,\"\",IF('Project Information'!$D$20=\"\",\"\",VLOOKUP('Project Information'!$D$20,'Other Data'!$B$159:$E$189,2,FALSE)))","v":""},{"$f":"IF('effRT Support'!$B58=0,\"\",IF('Project Information'!$D$20=\"\",\"\",VLOOKUP('Project Information'!$D$20,'Other Data'!$B$159:$E$189,3,FALSE)))","v":""},{"$f":"IF('effRT Support'!$B58=0,\"\",\"Existing\")","v":""},null,{"$f":"IF('effRT Support'!$B58=0,\"\",IF('Project Information'!$D$21=\"\",\"\",'Project Information'!$D$21))","v":""},{"$f":"IF('effRT Support'!$B58=0,\"\",IF('Project Information'!$D$48=\"\",\"\",'Project Information'!$D$48))","v":""},{"$f":"IF('effRT Support'!$B58=0,\"\",\"\")","v":""},{"$f":"IF('effRT Support'!$B58=0,\"\",\"\")","v":""},{"$f":"IF('effRT Support'!$B58=0,\"\",\"\")","v":""},{"$f":"IF('effRT Support'!$B58=0,\"\",\"\")","v":""},{"$f":"IF('effRT Support'!$B58=0,\"\",IF('Project Information'!$D$13=\"\",\"\",'Project Information'!$D$13))","v":""},{"$f":"IF('effRT Support'!$B58=0,\"\",IF('Project Information'!$E$13=\"\",\"\",'Project Information'!$E$13))","v":""},{"$f":"IF('effRT Support'!$B58=0,\"\",IF('Project Information'!$D$14=\"\",\"\",'Project Information'!$D$14))","v":""},{"$f":"IF('effRT Support'!$B58=0,\"\",IF('Project Information'!$D$15=\"\",\"\",'Project Information'!$D$15))","v":""},{"$f":"IF('effRT Support'!$B58=0,\"\",IF('Project Information'!$D$16=\"\",\"\",'Project Information'!$D$16))","v":""},null,{"$f":"IF('effRT Support'!$B58=0,\"\",'Project Information'!$D$18)","v":""},{"$f":"IF('effRT Support'!$B58=0,\"\",IF('Project Information'!$D$23=\"\",\"\",'Project Information'!$D$23))","v":""},{"$f":"IF('effRT Support'!$B58=0,\"\",IF('Project Information'!$D$24=\"\",\"\",'Project Information'!$D$24))","v":""},{"$f":"IF('effRT Support'!$B58=0,\"\",IF('Project Information'!$D$25=\"\",\"\",'Project Information'!$D$25))","v":""},{"$f":"IF('effRT Support'!$B58=0,\"\",IF('Project Information'!$E$25=\"\",\"\",'Project Information'!$E$25))","v":""},{"$f":"IF('effRT Support'!$B58=0,\"\",IF('Project Information'!$F$25=\"\",\"\",'Project Information'!$F$25))","v":""},{"$f":"IF('effRT Support'!$B58=0,\"\",IF('Project Information'!$D$27=\"\",\"Y\",\"N\"))","v":""},{"$f":"IF('effRT Support'!$B58=0,\"\",IF('Project Information'!$D$27=\"\",\"\",'Project Information'!$D$27))","v":""},{"$f":"IF('effRT Support'!$B58=0,\"\",IF('Project Information'!$D$28=\"\",\"\",'Project Information'!$D$28))","v":""},{"$f":"IF('effRT Support'!$B58=0,\"\",IF('Project Information'!$D$29=\"\",\"\",'Project Information'!$D$29))","v":""},{"$f":"IF('effRT Support'!$B58=0,\"\",IF('Project Information'!$E$29=\"\",\"\",'Project Information'!$E$29))","v":""},{"$f":"IF('effRT Support'!$B58=0,\"\",IF('Project Information'!$F$29=\"\",\"\",'Project Information'!$F$29))","v":""},{"$f":"IF('effRT Support'!$B58=0,\"\",\"\")","v":""},{"$f":"IF('effRT Support'!$B58=0,\"\",\"\")","v":""},{"$f":"IF('effRT Support'!$B58=0,\"\",IF('Project Information'!$D$36=\"\",\"\",'Project Information'!$D$36))","v":""},{"$f":"IF('effRT Support'!$B58=0,\"\",IF('Project Information'!$D$42=\"\",\"\",'Project Information'!$D$42))","v":""},{"$f":"IF('effRT Support'!$B58=0,\"\",'effRT Support'!$D58)","v":""},{"$f":"IF('effRT Support'!$B58=0,\"\",'effRT Support'!$L58)","v":""},{"$f":"IF('effRT Support'!$B58=0,\"\",'effRT Support'!$N58)","v":""},null,null,{"$f":"IF('effRT Support'!$B58=0,\"\",'effRT Support'!$P58)","v":""},{"$f":"IF('effRT Support'!$B58=0,\"\",'effRT Support'!$Q58)","v":""},{"$f":"IF('effRT Support'!$B58=0,\"\",'effRT Support'!U58)","v":""},{"$f":"IF('effRT Support'!$B58=0,\"\",'effRT Support'!V58)","v":""},{"$f":"IF('effRT Support'!$B58=0,\"\",'effRT Support'!W58)","v":""},{"$f":"IF('effRT Support'!$B58=0,\"\",'effRT Support'!X58)","v":""},{"$f":"IF('effRT Support'!$B58=0,\"\",'effRT Support'!Y58)","v":""},{"$f":"IF('effRT Support'!$B58=0,\"\",'effRT Support'!Z58*10)","v":""},{"$f":"IF('effRT Support'!$B58=0,\"\",'effRT Support'!AA58)","v":""},{"$f":"IF('effRT Support'!$B58=0,\"\",'effRT Support'!AB58)","v":""},{"$f":"IF('effRT Support'!$B58=0,\"\",'effRT Support'!AC58)","v":""},{"$f":"IF('effRT Support'!$B58=0,\"\",'effRT Support'!AD58)","v":""},{"$f":"IF('effRT Support'!$B58=0,\"\",'effRT Support'!AE58)","v":""},{"$f":"IF('effRT Support'!$B58=0,\"\",\"Hours Actual or Deemed\")","v":""},{"$f":"IF('effRT Support'!$B58=0,\"\",'effRT Support'!$F58)","v":""},{"$f":"IF('effRT Support'!$B58=0,\"\",\"Wattage Actual or Deemed\")","v":""},{"$f":"IF('effRT Support'!$B58=0,\"\",IF('Project Information'!$D$33=\"Pay For Performance\",\"Actual\",\"Deemed\"))","v":""},{"$f":"IF('effRT Support'!$B58=0,\"\",\"Cost Actual or Deemed\")","v":""},{"$f":"IF('effRT Support'!$B58=0,\"\",IF('Project Information'!$D$33=\"Pay For Performance\",\"Actual\",\"Deemed\"))","v":""},{"$f":"IF('effRT Support'!$B58=0,\"\",\"Location\")","v":""},{"$f":"IF('effRT Support'!$B58=0,\"\",'effRT Support'!$E58)","v":""},{"$f":"IF('effRT Support'!$B58=0,\"\",\"Space Type\")","v":""},{"$f":"IF('effRT Support'!$B58=0,\"\",'effRT Support'!$G58)","v":""},{"$f":"IF('effRT Support'!$B58=0,\"\",\"Existing Fixture Description\")","v":""},{"$f":"IF('effRT Support'!$B58=0,\"\",'effRT Support'!$H58)","v":""},{"$f":"IF('effRT Support'!$B58=0,\"\",\"Existing Fixture Quantity\")","v":""},{"$f":"IF('effRT Support'!$B58=0,\"\",'effRT Support'!$I58)","v":""},{"$f":"IF('effRT Support'!$B58=0,\"\",\"Existing Fixture Wattage\")","v":""},{"$f":"IF('effRT Support'!$B58=0,\"\",'effRT Support'!$J58)","v":""},{"$f":"IF('effRT Support'!$B58=0,\"\",\"Annual Hours of Operation\")","v":""},{"$f":"IF('effRT Support'!$B58=0,\"\",'effRT Support'!$K58)","v":""},{"$f":"IF('effRT Support'!$B58=0,\"\",\"Installed Fixture Description\")","v":""},{"$f":"IF('effRT Support'!$B58=0,\"\",'effRT Support'!$M58)","v":""},{"$f":"IF('effRT Support'!$B58=0,\"\",\"Installed Fixture Wattage\")","v":""},{"$f":"IF('effRT Support'!$B58=0,\"\",'effRT Support'!$O58)","v":""},{"$f":"IF('effRT Support'!$B58=0,\"\",\"Material Cost\")","v":""},{"$f":"IF('effRT Support'!$B58=0,\"\",'effRT Support'!$R58)","v":""},{"$f":"IF('effRT Support'!$B58=0,\"\",\"Labor Cost\")","v":""},{"$f":"IF('effRT Support'!$B58=0,\"\",'effRT Support'!$S58)","v":""},{"$f":"IF('effRT Support'!$B58=0,\"\",\"Ancillary Costs - Measure Specific\")","v":""},{"$f":"IF('effRT Support'!$B58=0,\"\",'effRT Support'!$T58)","v":""},{"$f":"IF('effRT Support'!$B58=0,\"\",\"Fuel Type\")","v":""},{"$f":"IF('effRT Support'!$B58=0,\"\",'Project Information'!$D$44)","v":""}]
[{"$f":"IF('effRT Support'!$B59=0,\"\",IF('Project Information'!$D$33=\"Small Business\",\"SBL\",\"CILS\"))","v":""},{"$f":"IF('effRT Support'!$B59=0,\"\",IF('Project Information'!$K$2=\"\",\"\",'Project Information'!$K$2))","v":""},null,{"$f":"IF('effRT Support'!$B59=0,\"\",IF('Project Information'!$D$46=\"\",\"\",'Project Information'!$D$46))","v":""},{"$f":"IF('effRT Support'!$B59=0,\"\",IF('Project Information'!$D$20=\"\",\"\",VLOOKUP('Project Information'!$D$20,'Other Data'!$B$159:$E$189,4,FALSE)))","v":""},{"$f":"IF('effRT Support'!$B59=0,\"\",IF('Project Information'!$D$31=\"\",\"\",'Project Information'!$D$31))","v":""},{"$f":"IF('effRT Support'!$B59=0,\"\",IF('Project Information'!$D$5=\"\",\"\",'Project Information'!$D$5))","v":""},null,null,{"$f":"IF('effRT Support'!$B59=0,\"\",IF('Project Information'!$D$20=\"\",\"\",VLOOKUP('Project Information'!$D$20,'Other Data'!$B$159:$E$189,2,FALSE)))","v":""},{"$f":"IF('effRT Support'!$B59=0,\"\",IF('Project Information'!$D$20=\"\",\"\",VLOOKUP('Project Information'!$D$20,'Other Data'!$B$159:$E$189,3,FALSE)))","v":""},{"$f":"IF('effRT Support'!$B59=0,\"\",\"Existing\")","v":""},null,{"$f":"IF('effRT Support'!$B59=0,\"\",IF('Project Information'!$D$21=\"\",\"\",'Project Information'!$D$21))","v":""},{"$f":"IF('effRT Support'!$B59=0,\"\",IF('Project Information'!$D$48=\"\",\"\",'Project Information'!$D$48))","v":""},{"$f":"IF('effRT Support'!$B59=0,\"\",\"\")","v":""},{"$f":"IF('effRT Support'!$B59=0,\"\",\"\")","v":""},{"$f":"IF('effRT Support'!$B59=0,\"\",\"\")","v":""},{"$f":"IF('effRT Support'!$B59=0,\"\",\"\")","v":""},{"$f":"IF('effRT Support'!$B59=0,\"\",IF('Project Information'!$D$13=\"\",\"\",'Project Information'!$D$13))","v":""},{"$f":"IF('effRT Support'!$B59=0,\"\",IF('Project Information'!$E$13=\"\",\"\",'Project Information'!$E$13))","v":""},{"$f":"IF('effRT Support'!$B59=0,\"\",IF('Project Information'!$D$14=\"\",\"\",'Project Information'!$D$14))","v":""},{"$f":"IF('effRT Support'!$B59=0,\"\",IF('Project Information'!$D$15=\"\",\"\",'Project Information'!$D$15))","v":""},{"$f":"IF('effRT Support'!$B59=0,\"\",IF('Project Information'!$D$16=\"\",\"\",'Project Information'!$D$16))","v":""},null,{"$f":"IF('effRT Support'!$B59=0,\"\",'Project Information'!$D$18)","v":""},{"$f":"IF('effRT Support'!$B59=0,\"\",IF('Project Information'!$D$23=\"\",\"\",'Project Information'!$D$23))","v":""},{"$f":"IF('effRT Support'!$B59=0,\"\",IF('Project Information'!$D$24=\"\",\"\",'Project Information'!$D$24))","v":""},{"$f":"IF('effRT Support'!$B59=0,\"\",IF('Project Information'!$D$25=\"\",\"\",'Project Information'!$D$25))","v":""},{"$f":"IF('effRT Support'!$B59=0,\"\",IF('Project Information'!$E$25=\"\",\"\",'Project Information'!$E$25))","v":""},{"$f":"IF('effRT Support'!$B59=0,\"\",IF('Project Information'!$F$25=\"\",\"\",'Project Information'!$F$25))","v":""},{"$f":"IF('effRT Support'!$B59=0,\"\",IF('Project Information'!$D$27=\"\",\"Y\",\"N\"))","v":""},{"$f":"IF('effRT Support'!$B59=0,\"\",IF('Project Information'!$D$27=\"\",\"\",'Project Information'!$D$27))","v":""},{"$f":"IF('effRT Support'!$B59=0,\"\",IF('Project Information'!$D$28=\"\",\"\",'Project Information'!$D$28))","v":""},{"$f":"IF('effRT Support'!$B59=0,\"\",IF('Project Information'!$D$29=\"\",\"\",'Project Information'!$D$29))","v":""},{"$f":"IF('effRT Support'!$B59=0,\"\",IF('Project Information'!$E$29=\"\",\"\",'Project Information'!$E$29))","v":""},{"$f":"IF('effRT Support'!$B59=0,\"\",IF('Project Information'!$F$29=\"\",\"\",'Project Information'!$F$29))","v":""},{"$f":"IF('effRT Support'!$B59=0,\"\",\"\")","v":""},{"$f":"IF('effRT Support'!$B59=0,\"\",\"\")","v":""},{"$f":"IF('effRT Support'!$B59=0,\"\",IF('Project Information'!$D$36=\"\",\"\",'Project Information'!$D$36))","v":""},{"$f":"IF('effRT Support'!$B59=0,\"\",IF('Project Information'!$D$42=\"\",\"\",'Project Information'!$D$42))","v":""},{"$f":"IF('effRT Support'!$B59=0,\"\",'effRT Support'!$D59)","v":""},{"$f":"IF('effRT Support'!$B59=0,\"\",'effRT Support'!$L59)","v":""},{"$f":"IF('effRT Support'!$B59=0,\"\",'effRT Support'!$N59)","v":""},null,null,{"$f":"IF('effRT Support'!$B59=0,\"\",'effRT Support'!$P59)","v":""},{"$f":"IF('effRT Support'!$B59=0,\"\",'effRT Support'!$Q59)","v":""},{"$f":"IF('effRT Support'!$B59=0,\"\",'effRT Support'!U59)","v":""},{"$f":"IF('effRT Support'!$B59=0,\"\",'effRT Support'!V59)","v":""},{"$f":"IF('effRT Support'!$B59=0,\"\",'effRT Support'!W59)","v":""},{"$f":"IF('effRT Support'!$B59=0,\"\",'effRT Support'!X59)","v":""},{"$f":"IF('effRT Support'!$B59=0,\"\",'effRT Support'!Y59)","v":""},{"$f":"IF('effRT Support'!$B59=0,\"\",'effRT Support'!Z59*10)","v":""},{"$f":"IF('effRT Support'!$B59=0,\"\",'effRT Support'!AA59)","v":""},{"$f":"IF('effRT Support'!$B59=0,\"\",'effRT Support'!AB59)","v":""},{"$f":"IF('effRT Support'!$B59=0,\"\",'effRT Support'!AC59)","v":""},{"$f":"IF('effRT Support'!$B59=0,\"\",'effRT Support'!AD59)","v":""},{"$f":"IF('effRT Support'!$B59=0,\"\",'effRT Support'!AE59)","v":""},{"$f":"IF('effRT Support'!$B59=0,\"\",\"Hours Actual or Deemed\")","v":""},{"$f":"IF('effRT Support'!$B59=0,\"\",'effRT Support'!$F59)","v":""},{"$f":"IF('effRT Support'!$B59=0,\"\",\"Wattage Actual or Deemed\")","v":""},{"$f":"IF('effRT Support'!$B59=0,\"\",IF('Project Information'!$D$33=\"Pay For Performance\",\"Actual\",\"Deemed\"))","v":""},{"$f":"IF('effRT Support'!$B59=0,\"\",\"Cost Actual or Deemed\")","v":""},{"$f":"IF('effRT Support'!$B59=0,\"\",IF('Project Information'!$D$33=\"Pay For Performance\",\"Actual\",\"Deemed\"))","v":""},{"$f":"IF('effRT Support'!$B59=0,\"\",\"Location\")","v":""},{"$f":"IF('effRT Support'!$B59=0,\"\",'effRT Support'!$E59)","v":""},{"$f":"IF('effRT Support'!$B59=0,\"\",\"Space Type\")","v":""},{"$f":"IF('effRT Support'!$B59=0,\"\",'effRT Support'!$G59)","v":""},{"$f":"IF('effRT Support'!$B59=0,\"\",\"Existing Fixture Description\")","v":""},{"$f":"IF('effRT Support'!$B59=0,\"\",'effRT Support'!$H59)","v":""},{"$f":"IF('effRT Support'!$B59=0,\"\",\"Existing Fixture Quantity\")","v":""},{"$f":"IF('effRT Support'!$B59=0,\"\",'effRT Support'!$I59)","v":""},{"$f":"IF('effRT Support'!$B59=0,\"\",\"Existing Fixture Wattage\")","v":""},{"$f":"IF('effRT Support'!$B59=0,\"\",'effRT Support'!$J59)","v":""},{"$f":"IF('effRT Support'!$B59=0,\"\",\"Annual Hours of Operation\")","v":""},{"$f":"IF('effRT Support'!$B59=0,\"\",'effRT Support'!$K59)","v":""},{"$f":"IF('effRT Support'!$B59=0,\"\",\"Installed Fixture Description\")","v":""},{"$f":"IF('effRT Support'!$B59=0,\"\",'effRT Support'!$M59)","v":""},{"$f":"IF('effRT Support'!$B59=0,\"\",\"Installed Fixture Wattage\")","v":""},{"$f":"IF('effRT Support'!$B59=0,\"\",'effRT Support'!$O59)","v":""},{"$f":"IF('effRT Support'!$B59=0,\"\",\"Material Cost\")","v":""},{"$f":"IF('effRT Support'!$B59=0,\"\",'effRT Support'!$R59)","v":""},{"$f":"IF('effRT Support'!$B59=0,\"\",\"Labor Cost\")","v":""},{"$f":"IF('effRT Support'!$B59=0,\"\",'effRT Support'!$S59)","v":""},{"$f":"IF('effRT Support'!$B59=0,\"\",\"Ancillary Costs - Measure Specific\")","v":""},{"$f":"IF('effRT Support'!$B59=0,\"\",'effRT Support'!$T59)","v":""},{"$f":"IF('effRT Support'!$B59=0,\"\",\"Fuel Type\")","v":""},{"$f":"IF('effRT Support'!$B59=0,\"\",'Project Information'!$D$44)","v":""},{"$f":"IF('effRT Support'!$B59=0,\"\",\"Installed Fixture Quantity\")","v":""},{"$f":"IF('effRT Support'!$B59=0,\"\",'effRT Support'!P58)","v":""}]
[{"$f":"IF('effRT Support'!$B60=0,\"\",IF('Project Information'!$D$33=\"Small Business\",\"SBL\",\"CILS\"))","v":""},{"$f":"IF('effRT Support'!$B60=0,\"\",IF('Project Information'!$K$2=\"\",\"\",'Project Information'!$K$2))","v":""},null,{"$f":"IF('effRT Support'!$B60=0,\"\",IF('Project Information'!$D$46=\"\",\"\",'Project Information'!$D$46))","v":""},{"$f":"IF('effRT Support'!$B60=0,\"\",IF('Project Information'!$D$20=\"\",\"\",VLOOKUP('Project Information'!$D$20,'Other Data'!$B$159:$E$189,4,FALSE)))","v":""},{"$f":"IF('effRT Support'!$B60=0,\"\",IF('Project Information'!$D$31=\"\",\"\",'Project Information'!$D$31))","v":""},{"$f":"IF('effRT Support'!$B60=0,\"\",IF('Project Information'!$D$5=\"\",\"\",'Project Information'!$D$5))","v":""},null,null,{"$f":"IF('effRT Support'!$B60=0,\"\",IF('Project Information'!$D$20=\"\",\"\",VLOOKUP('Project Information'!$D$20,'Other Data'!$B$159:$E$189,2,FALSE)))","v":""},{"$f":"IF('effRT Support'!$B60=0,\"\",IF('Project Information'!$D$20=\"\",\"\",VLOOKUP('Project Information'!$D$20,'Other Data'!$B$159:$E$189,3,FALSE)))","v":""},{"$f":"IF('effRT Support'!$B60=0,\"\",\"Existing\")","v":""},null,{"$f":"IF('effRT Support'!$B60=0,\"\",IF('Project Information'!$D$21=\"\",\"\",'Project Information'!$D$21))","v":""},{"$f":"IF('effRT Support'!$B60=0,\"\",IF('Project Information'!$D$48=\"\",\"\",'Project Information'!$D$48))","v":""},{"$f":"IF('effRT Support'!$B60=0,\"\",\"\")","v":""},{"$f":"IF('effRT Support'!$B60=0,\"\",\"\")","v":""},{"$f":"IF('effRT Support'!$B60=0,\"\",\"\")","v":""},{"$f":"IF('effRT Support'!$B60=0,\"\",\"\")","v":""},{"$f":"IF('effRT Support'!$B60=0,\"\",IF('Project Information'!$D$13=\"\",\"\",'Project Information'!$D$13))","v":""},{"$f":"IF('effRT Support'!$B60=0,\"\",IF('Project Information'!$E$13=\"\",\"\",'Project Information'!$E$13))","v":""},{"$f":"IF('effRT Support'!$B60=0,\"\",IF('Project Information'!$D$14=\"\",\"\",'Project Information'!$D$14))","v":""},{"$f":"IF('effRT Support'!$B60=0,\"\",IF('Project Information'!$D$15=\"\",\"\",'Project Information'!$D$15))","v":""},{"$f":"IF('effRT Support'!$B60=0,\"\",IF('Project Information'!$D$16=\"\",\"\",'Project Information'!$D$16))","v":""},null,{"$f":"IF('effRT Support'!$B60=0,\"\",'Project Information'!$D$18)","v":""},{"$f":"IF('effRT Support'!$B60=0,\"\",IF('Project Information'!$D$23=\"\",\"\",'Project Information'!$D$23))","v":""},{"$f":"IF('effRT Support'!$B60=0,\"\",IF('Project Information'!$D$24=\"\",\"\",'Project Information'!$D$24))","v":""},{"$f":"IF('effRT Support'!$B60=0,\"\",IF('Project Information'!$D$25=\"\",\"\",'Project Information'!$D$25))","v":""},{"$f":"IF('effRT Support'!$B60=0,\"\",IF('Project Information'!$E$25=\"\",\"\",'Project Information'!$E$25))","v":""},{"$f":"IF('effRT Support'!$B60=0,\"\",IF('Project Information'!$F$25=\"\",\"\",'Project Information'!$F$25))","v":""},{"$f":"IF('effRT Support'!$B60=0,\"\",IF('Project Information'!$D$27=\"\",\"Y\",\"N\"))","v":""},{"$f":"IF('effRT Support'!$B60=0,\"\",IF('Project Information'!$D$27=\"\",\"\",'Project Information'!$D$27))","v":""},{"$f":"IF('effRT Support'!$B60=0,\"\",IF('Project Information'!$D$28=\"\",\"\",'Project Information'!$D$28))","v":""},{"$f":"IF('effRT Support'!$B60=0,\"\",IF('Project Information'!$D$29=\"\",\"\",'Project Information'!$D$29))","v":""},{"$f":"IF('effRT Support'!$B60=0,\"\",IF('Project Information'!$E$29=\"\",\"\",'Project Information'!$E$29))","v":""},{"$f":"IF('effRT Support'!$B60=0,\"\",IF('Project Information'!$F$29=\"\",\"\",'Project Information'!$F$29))","v":""},{"$f":"IF('effRT Support'!$B60=0,\"\",\"\")","v":""},{"$f":"IF('effRT Support'!$B60=0,\"\",\"\")","v":""},{"$f":"IF('effRT Support'!$B60=0,\"\",IF('Project Information'!$D$36=\"\",\"\",'Project Information'!$D$36))","v":""},{"$f":"IF('effRT Support'!$B60=0,\"\",IF('Project Information'!$D$42=\"\",\"\",'Project Information'!$D$42))","v":""},{"$f":"IF('effRT Support'!$B60=0,\"\",'effRT Support'!$D60)","v":""},{"$f":"IF('effRT Support'!$B60=0,\"\",'effRT Support'!$L60)","v":""},{"$f":"IF('effRT Support'!$B60=0,\"\",'effRT Support'!$N60)","v":""},null,null,{"$f":"IF('effRT Support'!$B60=0,\"\",'effRT Support'!$P60)","v":""},{"$f":"IF('effRT Support'!$B60=0,\"\",'effRT Support'!$Q60)","v":""},{"$f":"IF('effRT Support'!$B60=0,\"\",'effRT Support'!U60)","v":""},{"$f":"IF('effRT Support'!$B60=0,\"\",'effRT Support'!V60)","v":""},{"$f":"IF('effRT Support'!$B60=0,\"\",'effRT Support'!W60)","v":""},{"$f":"IF('effRT Support'!$B60=0,\"\",'effRT Support'!X60)","v":""},{"$f":"IF('effRT Support'!$B60=0,\"\",'effRT Support'!Y60)","v":""},{"$f":"IF('effRT Support'!$B60=0,\"\",'effRT Support'!Z60*10)","v":""},{"$f":"IF('effRT Support'!$B60=0,\"\",'effRT Support'!AA60)","v":""},{"$f":"IF('effRT Support'!$B60=0,\"\",'effRT Support'!AB60)","v":""},{"$f":"IF('effRT Support'!$B60=0,\"\",'effRT Support'!AC60)","v":""},{"$f":"IF('effRT Support'!$B60=0,\"\",'effRT Support'!AD60)","v":""},{"$f":"IF('effRT Support'!$B60=0,\"\",'effRT Support'!AE60)","v":""},{"$f":"IF('effRT Support'!$B60=0,\"\",\"Hours Actual or Deemed\")","v":""},{"$f":"IF('effRT Support'!$B60=0,\"\",'effRT Support'!$F60)","v":""},{"$f":"IF('effRT Support'!$B60=0,\"\",\"Wattage Actual or Deemed\")","v":""},{"$f":"IF('effRT Support'!$B60=0,\"\",IF('Project Information'!$D$33=\"Pay For Performance\",\"Actual\",\"Deemed\"))","v":""},{"$f":"IF('effRT Support'!$B60=0,\"\",\"Cost Actual or Deemed\")","v":""},{"$f":"IF('effRT Support'!$B60=0,\"\",IF('Project Information'!$D$33=\"Pay For Performance\",\"Actual\",\"Deemed\"))","v":""},{"$f":"IF('effRT Support'!$B60=0,\"\",\"Location\")","v":""},{"$f":"IF('effRT Support'!$B60=0,\"\",'effRT Support'!$E60)","v":""},{"$f":"IF('effRT Support'!$B60=0,\"\",\"Space Type\")","v":""},{"$f":"IF('effRT Support'!$B60=0,\"\",'effRT Support'!$G60)","v":""},{"$f":"IF('effRT Support'!$B60=0,\"\",\"Existing Fixture Description\")","v":""},{"$f":"IF('effRT Support'!$B60=0,\"\",'effRT Support'!$H60)","v":""},{"$f":"IF('effRT Support'!$B60=0,\"\",\"Existing Fixture Quantity\")","v":""},{"$f":"IF('effRT Support'!$B60=0,\"\",'effRT Support'!$I60)","v":""},{"$f":"IF('effRT Support'!$B60=0,\"\",\"Existing Fixture Wattage\")","v":""},{"$f":"IF('effRT Support'!$B60=0,\"\",'effRT Support'!$J60)","v":""},{"$f":"IF('effRT Support'!$B60=0,\"\",\"Annual Hours of Operation\")","v":""},{"$f":"IF('effRT Support'!$B60=0,\"\",'effRT Support'!$K60)","v":""},{"$f":"IF('effRT Support'!$B60=0,\"\",\"Installed Fixture Description\")","v":""},{"$f":"IF('effRT Support'!$B60=0,\"\",'effRT Support'!$M60)","v":""},{"$f":"IF('effRT Support'!$B60=0,\"\",\"Installed Fixture Wattage\")","v":""},{"$f":"IF('effRT Support'!$B60=0,\"\",'effRT Support'!$O60)","v":""},{"$f":"IF('effRT Support'!$B60=0,\"\",\"Material Cost\")","v":""},{"$f":"IF('effRT Support'!$B60=0,\"\",'effRT Support'!$R60)","v":""},{"$f":"IF('effRT Support'!$B60=0,\"\",\"Labor Cost\")","v":""},{"$f":"IF('effRT Support'!$B60=0,\"\",'effRT Support'!$S60)","v":""},{"$f":"IF('effRT Support'!$B60=0,\"\",\"Ancillary Costs - Measure Specific\")","v":""},{"$f":"IF('effRT Support'!$B60=0,\"\",'effRT Support'!$T60)","v":""},{"$f":"IF('effRT Support'!$B60=0,\"\",\"Fuel Type\")","v":""},{"$f":"IF('effRT Support'!$B60=0,\"\",'Project Information'!$D$44)","v":""}]
[{"$f":"IF('effRT Support'!$B61=0,\"\",IF('Project Information'!$D$33=\"Small Business\",\"SBL\",\"CILS\"))","v":""},{"$f":"IF('effRT Support'!$B61=0,\"\",IF('Project Information'!$K$2=\"\",\"\",'Project Information'!$K$2))","v":""},null,{"$f":"IF('effRT Support'!$B61=0,\"\",IF('Project Information'!$D$46=\"\",\"\",'Project Information'!$D$46))","v":""},{"$f":"IF('effRT Support'!$B61=0,\"\",IF('Project Information'!$D$20=\"\",\"\",VLOOKUP('Project Information'!$D$20,'Other Data'!$B$159:$E$189,4,FALSE)))","v":""},{"$f":"IF('effRT Support'!$B61=0,\"\",IF('Project Information'!$D$31=\"\",\"\",'Project Information'!$D$31))","v":""},{"$f":"IF('effRT Support'!$B61=0,\"\",IF('Project Information'!$D$5=\"\",\"\",'Project Information'!$D$5))","v":""},null,null,{"$f":"IF('effRT Support'!$B61=0,\"\",IF('Project Information'!$D$20=\"\",\"\",VLOOKUP('Project Information'!$D$20,'Other Data'!$B$159:$E$189,2,FALSE)))","v":""},{"$f":"IF('effRT Support'!$B61=0,\"\",IF('Project Information'!$D$20=\"\",\"\",VLOOKUP('Project Information'!$D$20,'Other Data'!$B$159:$E$189,3,FALSE)))","v":""},{"$f":"IF('effRT Support'!$B61=0,\"\",\"Existing\")","v":""},null,{"$f":"IF('effRT Support'!$B61=0,\"\",IF('Project Information'!$D$21=\"\",\"\",'Project Information'!$D$21))","v":""},{"$f":"IF('effRT Support'!$B61=0,\"\",IF('Project Information'!$D$48=\"\",\"\",'Project Information'!$D$48))","v":""},{"$f":"IF('effRT Support'!$B61=0,\"\",\"\")","v":""},{"$f":"IF('effRT Support'!$B61=0,\"\",\"\")","v":""},{"$f":"IF('effRT Support'!$B61=0,\"\",\"\")","v":""},{"$f":"IF('effRT Support'!$B61=0,\"\",\"\")","v":""},{"$f":"IF('effRT Support'!$B61=0,\"\",IF('Project Information'!$D$13=\"\",\"\",'Project Information'!$D$13))","v":""},{"$f":"IF('effRT Support'!$B61=0,\"\",IF('Project Information'!$E$13=\"\",\"\",'Project Information'!$E$13))","v":""},{"$f":"IF('effRT Support'!$B61=0,\"\",IF('Project Information'!$D$14=\"\",\"\",'Project Information'!$D$14))","v":""},{"$f":"IF('effRT Support'!$B61=0,\"\",IF('Project Information'!$D$15=\"\",\"\",'Project Information'!$D$15))","v":""},{"$f":"IF('effRT Support'!$B61=0,\"\",IF('Project Information'!$D$16=\"\",\"\",'Project Information'!$D$16))","v":""},null,{"$f":"IF('effRT Support'!$B61=0,\"\",'Project Information'!$D$18)","v":""},{"$f":"IF('effRT Support'!$B61=0,\"\",IF('Project Information'!$D$23=\"\",\"\",'Project Information'!$D$23))","v":""},{"$f":"IF('effRT Support'!$B61=0,\"\",IF('Project Information'!$D$24=\"\",\"\",'Project Information'!$D$24))","v":""},{"$f":"IF('effRT Support'!$B61=0,\"\",IF('Project Information'!$D$25=\"\",\"\",'Project Information'!$D$25))","v":""},{"$f":"IF('effRT Support'!$B61=0,\"\",IF('Project Information'!$E$25=\"\",\"\",'Project Information'!$E$25))","v":""},{"$f":"IF('effRT Support'!$B61=0,\"\",IF('Project Information'!$F$25=\"\",\"\",'Project Information'!$F$25))","v":""},{"$f":"IF('effRT Support'!$B61=0,\"\",IF('Project Information'!$D$27=\"\",\"Y\",\"N\"))","v":""},{"$f":"IF('effRT Support'!$B61=0,\"\",IF('Project Information'!$D$27=\"\",\"\",'Project Information'!$D$27))","v":""},{"$f":"IF('effRT Support'!$B61=0,\"\",IF('Project Information'!$D$28=\"\",\"\",'Project Information'!$D$28))","v":""},{"$f":"IF('effRT Support'!$B61=0,\"\",IF('Project Information'!$D$29=\"\",\"\",'Project Information'!$D$29))","v":""},{"$f":"IF('effRT Support'!$B61=0,\"\",IF('Project Information'!$E$29=\"\",\"\",'Project Information'!$E$29))","v":""},{"$f":"IF('effRT Support'!$B61=0,\"\",IF('Project Information'!$F$29=\"\",\"\",'Project Information'!$F$29))","v":""},{"$f":"IF('effRT Support'!$B61=0,\"\",\"\")","v":""},{"$f":"IF('effRT Support'!$B61=0,\"\",\"\")","v":""},{"$f":"IF('effRT Support'!$B61=0,\"\",IF('Project Information'!$D$36=\"\",\"\",'Project Information'!$D$36))","v":""},{"$f":"IF('effRT Support'!$B61=0,\"\",IF('Project Information'!$D$42=\"\",\"\",'Project Information'!$D$42))","v":""},{"$f":"IF('effRT Support'!$B61=0,\"\",'effRT Support'!$D61)","v":""},{"$f":"IF('effRT Support'!$B61=0,\"\",'effRT Support'!$L61)","v":""},{"$f":"IF('effRT Support'!$B61=0,\"\",'effRT Support'!$N61)","v":""},null,null,{"$f":"IF('effRT Support'!$B61=0,\"\",'effRT Support'!$P61)","v":""},{"$f":"IF('effRT Support'!$B61=0,\"\",'effRT Support'!$Q61)","v":""},{"$f":"IF('effRT Support'!$B61=0,\"\",'effRT Support'!U61)","v":""},{"$f":"IF('effRT Support'!$B61=0,\"\",'effRT Support'!V61)","v":""},{"$f":"IF('effRT Support'!$B61=0,\"\",'effRT Support'!W61)","v":""},{"$f":"IF('effRT Support'!$B61=0,\"\",'effRT Support'!X61)","v":""},{"$f":"IF('effRT Support'!$B61=0,\"\",'effRT Support'!Y61)","v":""},{"$f":"IF('effRT Support'!$B61=0,\"\",'effRT Support'!Z61*10)","v":""},{"$f":"IF('effRT Support'!$B61=0,\"\",'effRT Support'!AA61)","v":""},{"$f":"IF('effRT Support'!$B61=0,\"\",'effRT Support'!AB61)","v":""},{"$f":"IF('effRT Support'!$B61=0,\"\",'effRT Support'!AC61)","v":""},{"$f":"IF('effRT Support'!$B61=0,\"\",'effRT Support'!AD61)","v":""},{"$f":"IF('effRT Support'!$B61=0,\"\",'effRT Support'!AE61)","v":""},{"$f":"IF('effRT Support'!$B61=0,\"\",\"Hours Actual or Deemed\")","v":""},{"$f":"IF('effRT Support'!$B61=0,\"\",'effRT Support'!$F61)","v":""},{"$f":"IF('effRT Support'!$B61=0,\"\",\"Wattage Actual or Deemed\")","v":""},{"$f":"IF('effRT Support'!$B61=0,\"\",IF('Project Information'!$D$33=\"Pay For Performance\",\"Actual\",\"Deemed\"))","v":""},{"$f":"IF('effRT Support'!$B61=0,\"\",\"Cost Actual or Deemed\")","v":""},{"$f":"IF('effRT Support'!$B61=0,\"\",IF('Project Information'!$D$33=\"Pay For Performance\",\"Actual\",\"Deemed\"))","v":""},{"$f":"IF('effRT Support'!$B61=0,\"\",\"Location\")","v":""},{"$f":"IF('effRT Support'!$B61=0,\"\",'effRT Support'!$E61)","v":""},{"$f":"IF('effRT Support'!$B61=0,\"\",\"Space Type\")","v":""},{"$f":"IF('effRT Support'!$B61=0,\"\",'effRT Support'!$G61)","v":""},{"$f":"IF('effRT Support'!$B61=0,\"\",\"Existing Fixture Description\")","v":""},{"$f":"IF('effRT Support'!$B61=0,\"\",'effRT Support'!$H61)","v":""},{"$f":"IF('effRT Support'!$B61=0,\"\",\"Existing Fixture Quantity\")","v":""},{"$f":"IF('effRT Support'!$B61=0,\"\",'effRT Support'!$I61)","v":""},{"$f":"IF('effRT Support'!$B61=0,\"\",\"Existing Fixture Wattage\")","v":""},{"$f":"IF('effRT Support'!$B61=0,\"\",'effRT Support'!$J61)","v":""},{"$f":"IF('effRT Support'!$B61=0,\"\",\"Annual Hours of Operation\")","v":""},{"$f":"IF('effRT Support'!$B61=0,\"\",'effRT Support'!$K61)","v":""},{"$f":"IF('effRT Support'!$B61=0,\"\",\"Installed Fixture Description\")","v":""},{"$f":"IF('effRT Support'!$B61=0,\"\",'effRT Support'!$M61)","v":""},{"$f":"IF('effRT Support'!$B61=0,\"\",\"Installed Fixture Wattage\")","v":""},{"$f":"IF('effRT Support'!$B61=0,\"\",'effRT Support'!$O61)","v":""},{"$f":"IF('effRT Support'!$B61=0,\"\",\"Material Cost\")","v":""},{"$f":"IF('effRT Support'!$B61=0,\"\",'effRT Support'!$R61)","v":""},{"$f":"IF('effRT Support'!$B61=0,\"\",\"Labor Cost\")","v":""},{"$f":"IF('effRT Support'!$B61=0,\"\",'effRT Support'!$S61)","v":""},{"$f":"IF('effRT Support'!$B61=0,\"\",\"Ancillary Costs - Measure Specific\")","v":""},{"$f":"IF('effRT Support'!$B61=0,\"\",'effRT Support'!$T61)","v":""},{"$f":"IF('effRT Support'!$B61=0,\"\",\"Fuel Type\")","v":""},{"$f":"IF('effRT Support'!$B61=0,\"\",'Project Information'!$D$44)","v":""},{"$f":"IF('effRT Support'!$B61=0,\"\",\"Installed Fixture Quantity\")","v":""},{"$f":"IF('effRT Support'!$B61=0,\"\",'effRT Support'!P60)","v":""}]
[{"$f":"IF('effRT Support'!$B62=0,\"\",IF('Project Information'!$D$33=\"Small Business\",\"SBL\",\"CILS\"))","v":""},{"$f":"IF('effRT Support'!$B62=0,\"\",IF('Project Information'!$K$2=\"\",\"\",'Project Information'!$K$2))","v":""},null,{"$f":"IF('effRT Support'!$B62=0,\"\",IF('Project Information'!$D$46=\"\",\"\",'Project Information'!$D$46))","v":""},{"$f":"IF('effRT Support'!$B62=0,\"\",IF('Project Information'!$D$20=\"\",\"\",VLOOKUP('Project Information'!$D$20,'Other Data'!$B$159:$E$189,4,FALSE)))","v":""},{"$f":"IF('effRT Support'!$B62=0,\"\",IF('Project Information'!$D$31=\"\",\"\",'Project Information'!$D$31))","v":""},{"$f":"IF('effRT Support'!$B62=0,\"\",IF('Project Information'!$D$5=\"\",\"\",'Project Information'!$D$5))","v":""},null,null,{"$f":"IF('effRT Support'!$B62=0,\"\",IF('Project Information'!$D$20=\"\",\"\",VLOOKUP('Project Information'!$D$20,'Other Data'!$B$159:$E$189,2,FALSE)))","v":""},{"$f":"IF('effRT Support'!$B62=0,\"\",IF('Project Information'!$D$20=\"\",\"\",VLOOKUP('Project Information'!$D$20,'Other Data'!$B$159:$E$189,3,FALSE)))","v":""},{"$f":"IF('effRT Support'!$B62=0,\"\",\"Existing\")","v":""},null,{"$f":"IF('effRT Support'!$B62=0,\"\",IF('Project Information'!$D$21=\"\",\"\",'Project Information'!$D$21))","v":""},{"$f":"IF('effRT Support'!$B62=0,\"\",IF('Project Information'!$D$48=\"\",\"\",'Project Information'!$D$48))","v":""},{"$f":"IF('effRT Support'!$B62=0,\"\",\"\")","v":""},{"$f":"IF('effRT Support'!$B62=0,\"\",\"\")","v":""},{"$f":"IF('effRT Support'!$B62=0,\"\",\"\")","v":""},{"$f":"IF('effRT Support'!$B62=0,\"\",\"\")","v":""},{"$f":"IF('effRT Support'!$B62=0,\"\",IF('Project Information'!$D$13=\"\",\"\",'Project Information'!$D$13))","v":""},{"$f":"IF('effRT Support'!$B62=0,\"\",IF('Project Information'!$E$13=\"\",\"\",'Project Information'!$E$13))","v":""},{"$f":"IF('effRT Support'!$B62=0,\"\",IF('Project Information'!$D$14=\"\",\"\",'Project Information'!$D$14))","v":""},{"$f":"IF('effRT Support'!$B62=0,\"\",IF('Project Information'!$D$15=\"\",\"\",'Project Information'!$D$15))","v":""},{"$f":"IF('effRT Support'!$B62=0,\"\",IF('Project Information'!$D$16=\"\",\"\",'Project Information'!$D$16))","v":""},null,{"$f":"IF('effRT Support'!$B62=0,\"\",'Project Information'!$D$18)","v":""},{"$f":"IF('effRT Support'!$B62=0,\"\",IF('Project Information'!$D$23=\"\",\"\",'Project Information'!$D$23))","v":""},{"$f":"IF('effRT Support'!$B62=0,\"\",IF('Project Information'!$D$24=\"\",\"\",'Project Information'!$D$24))","v":""},{"$f":"IF('effRT Support'!$B62=0,\"\",IF('Project Information'!$D$25=\"\",\"\",'Project Information'!$D$25))","v":""},{"$f":"IF('effRT Support'!$B62=0,\"\",IF('Project Information'!$E$25=\"\",\"\",'Project Information'!$E$25))","v":""},{"$f":"IF('effRT Support'!$B62=0,\"\",IF('Project Information'!$F$25=\"\",\"\",'Project Information'!$F$25))","v":""},{"$f":"IF('effRT Support'!$B62=0,\"\",IF('Project Information'!$D$27=\"\",\"Y\",\"N\"))","v":""},{"$f":"IF('effRT Support'!$B62=0,\"\",IF('Project Information'!$D$27=\"\",\"\",'Project Information'!$D$27))","v":""},{"$f":"IF('effRT Support'!$B62=0,\"\",IF('Project Information'!$D$28=\"\",\"\",'Project Information'!$D$28))","v":""},{"$f":"IF('effRT Support'!$B62=0,\"\",IF('Project Information'!$D$29=\"\",\"\",'Project Information'!$D$29))","v":""},{"$f":"IF('effRT Support'!$B62=0,\"\",IF('Project Information'!$E$29=\"\",\"\",'Project Information'!$E$29))","v":""},{"$f":"IF('effRT Support'!$B62=0,\"\",IF('Project Information'!$F$29=\"\",\"\",'Project Information'!$F$29))","v":""},{"$f":"IF('effRT Support'!$B62=0,\"\",\"\")","v":""},{"$f":"IF('effRT Support'!$B62=0,\"\",\"\")","v":""},{"$f":"IF('effRT Support'!$B62=0,\"\",IF('Project Information'!$D$36=\"\",\"\",'Project Information'!$D$36))","v":""},{"$f":"IF('effRT Support'!$B62=0,\"\",IF('Project Information'!$D$42=\"\",\"\",'Project Information'!$D$42))","v":""},{"$f":"IF('effRT Support'!$B62=0,\"\",'effRT Support'!$D62)","v":""},{"$f":"IF('effRT Support'!$B62=0,\"\",'effRT Support'!$L62)","v":""},{"$f":"IF('effRT Support'!$B62=0,\"\",'effRT Support'!$N62)","v":""},null,null,{"$f":"IF('effRT Support'!$B62=0,\"\",'effRT Support'!$P62)","v":""},{"$f":"IF('effRT Support'!$B62=0,\"\",'effRT Support'!$Q62)","v":""},{"$f":"IF('effRT Support'!$B62=0,\"\",'effRT Support'!U62)","v":""},{"$f":"IF('effRT Support'!$B62=0,\"\",'effRT Support'!V62)","v":""},{"$f":"IF('effRT Support'!$B62=0,\"\",'effRT Support'!W62)","v":""},{"$f":"IF('effRT Support'!$B62=0,\"\",'effRT Support'!X62)","v":""},{"$f":"IF('effRT Support'!$B62=0,\"\",'effRT Support'!Y62)","v":""},{"$f":"IF('effRT Support'!$B62=0,\"\",'effRT Support'!Z62*10)","v":""},{"$f":"IF('effRT Support'!$B62=0,\"\",'effRT Support'!AA62)","v":""},{"$f":"IF('effRT Support'!$B62=0,\"\",'effRT Support'!AB62)","v":""},{"$f":"IF('effRT Support'!$B62=0,\"\",'effRT Support'!AC62)","v":""},{"$f":"IF('effRT Support'!$B62=0,\"\",'effRT Support'!AD62)","v":""},{"$f":"IF('effRT Support'!$B62=0,\"\",'effRT Support'!AE62)","v":""},{"$f":"IF('effRT Support'!$B62=0,\"\",\"Hours Actual or Deemed\")","v":""},{"$f":"IF('effRT Support'!$B62=0,\"\",'effRT Support'!$F62)","v":""},{"$f":"IF('effRT Support'!$B62=0,\"\",\"Wattage Actual or Deemed\")","v":""},{"$f":"IF('effRT Support'!$B62=0,\"\",IF('Project Information'!$D$33=\"Pay For Performance\",\"Actual\",\"Deemed\"))","v":""},{"$f":"IF('effRT Support'!$B62=0,\"\",\"Cost Actual or Deemed\")","v":""},{"$f":"IF('effRT Support'!$B62=0,\"\",IF('Project Information'!$D$33=\"Pay For Performance\",\"Actual\",\"Deemed\"))","v":""},{"$f":"IF('effRT Support'!$B62=0,\"\",\"Location\")","v":""},{"$f":"IF('effRT Support'!$B62=0,\"\",'effRT Support'!$E62)","v":""},{"$f":"IF('effRT Support'!$B62=0,\"\",\"Space Type\")","v":""},{"$f":"IF('effRT Support'!$B62=0,\"\",'effRT Support'!$G62)","v":""},{"$f":"IF('effRT Support'!$B62=0,\"\",\"Existing Fixture Description\")","v":""},{"$f":"IF('effRT Support'!$B62=0,\"\",'effRT Support'!$H62)","v":""},{"$f":"IF('effRT Support'!$B62=0,\"\",\"Existing Fixture Quantity\")","v":""},{"$f":"IF('effRT Support'!$B62=0,\"\",'effRT Support'!$I62)","v":""},{"$f":"IF('effRT Support'!$B62=0,\"\",\"Existing Fixture Wattage\")","v":""},{"$f":"IF('effRT Support'!$B62=0,\"\",'effRT Support'!$J62)","v":""},{"$f":"IF('effRT Support'!$B62=0,\"\",\"Annual Hours of Operation\")","v":""},{"$f":"IF('effRT Support'!$B62=0,\"\",'effRT Support'!$K62)","v":""},{"$f":"IF('effRT Support'!$B62=0,\"\",\"Installed Fixture Description\")","v":""},{"$f":"IF('effRT Support'!$B62=0,\"\",'effRT Support'!$M62)","v":""},{"$f":"IF('effRT Support'!$B62=0,\"\",\"Installed Fixture Wattage\")","v":""},{"$f":"IF('effRT Support'!$B62=0,\"\",'effRT Support'!$O62)","v":""},{"$f":"IF('effRT Support'!$B62=0,\"\",\"Material Cost\")","v":""},{"$f":"IF('effRT Support'!$B62=0,\"\",'effRT Support'!$R62)","v":""},{"$f":"IF('effRT Support'!$B62=0,\"\",\"Labor Cost\")","v":""},{"$f":"IF('effRT Support'!$B62=0,\"\",'effRT Support'!$S62)","v":""},{"$f":"IF('effRT Support'!$B62=0,\"\",\"Ancillary Costs - Measure Specific\")","v":""},{"$f":"IF('effRT Support'!$B62=0,\"\",'effRT Support'!$T62)","v":""},{"$f":"IF('effRT Support'!$B62=0,\"\",\"Fuel Type\")","v":""},{"$f":"IF('effRT Support'!$B62=0,\"\",'Project Information'!$D$44)","v":""}]
[{"$f":"IF('effRT Support'!$B63=0,\"\",IF('Project Information'!$D$33=\"Small Business\",\"SBL\",\"CILS\"))","v":""},{"$f":"IF('effRT Support'!$B63=0,\"\",IF('Project Information'!$K$2=\"\",\"\",'Project Information'!$K$2))","v":""},null,{"$f":"IF('effRT Support'!$B63=0,\"\",IF('Project Information'!$D$46=\"\",\"\",'Project Information'!$D$46))","v":""},{"$f":"IF('effRT Support'!$B63=0,\"\",IF('Project Information'!$D$20=\"\",\"\",VLOOKUP('Project Information'!$D$20,'Other Data'!$B$159:$E$189,4,FALSE)))","v":""},{"$f":"IF('effRT Support'!$B63=0,\"\",IF('Project Information'!$D$31=\"\",\"\",'Project Information'!$D$31))","v":""},{"$f":"IF('effRT Support'!$B63=0,\"\",IF('Project Information'!$D$5=\"\",\"\",'Project Information'!$D$5))","v":""},null,null,{"$f":"IF('effRT Support'!$B63=0,\"\",IF('Project Information'!$D$20=\"\",\"\",VLOOKUP('Project Information'!$D$20,'Other Data'!$B$159:$E$189,2,FALSE)))","v":""},{"$f":"IF('effRT Support'!$B63=0,\"\",IF('Project Information'!$D$20=\"\",\"\",VLOOKUP('Project Information'!$D$20,'Other Data'!$B$159:$E$189,3,FALSE)))","v":""},{"$f":"IF('effRT Support'!$B63=0,\"\",\"Existing\")","v":""},null,{"$f":"IF('effRT Support'!$B63=0,\"\",IF('Project Information'!$D$21=\"\",\"\",'Project Information'!$D$21))","v":""},{"$f":"IF('effRT Support'!$B63=0,\"\",IF('Project Information'!$D$48=\"\",\"\",'Project Information'!$D$48))","v":""},{"$f":"IF('effRT Support'!$B63=0,\"\",\"\")","v":""},{"$f":"IF('effRT Support'!$B63=0,\"\",\"\")","v":""},{"$f":"IF('effRT Support'!$B63=0,\"\",\"\")","v":""},{"$f":"IF('effRT Support'!$B63=0,\"\",\"\")","v":""},{"$f":"IF('effRT Support'!$B63=0,\"\",IF('Project Information'!$D$13=\"\",\"\",'Project Information'!$D$13))","v":""},{"$f":"IF('effRT Support'!$B63=0,\"\",IF('Project Information'!$E$13=\"\",\"\",'Project Information'!$E$13))","v":""},{"$f":"IF('effRT Support'!$B63=0,\"\",IF('Project Information'!$D$14=\"\",\"\",'Project Information'!$D$14))","v":""},{"$f":"IF('effRT Support'!$B63=0,\"\",IF('Project Information'!$D$15=\"\",\"\",'Project Information'!$D$15))","v":""},{"$f":"IF('effRT Support'!$B63=0,\"\",IF('Project Information'!$D$16=\"\",\"\",'Project Information'!$D$16))","v":""},null,{"$f":"IF('effRT Support'!$B63=0,\"\",'Project Information'!$D$18)","v":""},{"$f":"IF('effRT Support'!$B63=0,\"\",IF('Project Information'!$D$23=\"\",\"\",'Project Information'!$D$23))","v":""},{"$f":"IF('effRT Support'!$B63=0,\"\",IF('Project Information'!$D$24=\"\",\"\",'Project Information'!$D$24))","v":""},{"$f":"IF('effRT Support'!$B63=0,\"\",IF('Project Information'!$D$25=\"\",\"\",'Project Information'!$D$25))","v":""},{"$f":"IF('effRT Support'!$B63=0,\"\",IF('Project Information'!$E$25=\"\",\"\",'Project Information'!$E$25))","v":""},{"$f":"IF('effRT Support'!$B63=0,\"\",IF('Project Information'!$F$25=\"\",\"\",'Project Information'!$F$25))","v":""},{"$f":"IF('effRT Support'!$B63=0,\"\",IF('Project Information'!$D$27=\"\",\"Y\",\"N\"))","v":""},{"$f":"IF('effRT Support'!$B63=0,\"\",IF('Project Information'!$D$27=\"\",\"\",'Project Information'!$D$27))","v":""},{"$f":"IF('effRT Support'!$B63=0,\"\",IF('Project Information'!$D$28=\"\",\"\",'Project Information'!$D$28))","v":""},{"$f":"IF('effRT Support'!$B63=0,\"\",IF('Project Information'!$D$29=\"\",\"\",'Project Information'!$D$29))","v":""},{"$f":"IF('effRT Support'!$B63=0,\"\",IF('Project Information'!$E$29=\"\",\"\",'Project Information'!$E$29))","v":""},{"$f":"IF('effRT Support'!$B63=0,\"\",IF('Project Information'!$F$29=\"\",\"\",'Project Information'!$F$29))","v":""},{"$f":"IF('effRT Support'!$B63=0,\"\",\"\")","v":""},{"$f":"IF('effRT Support'!$B63=0,\"\",\"\")","v":""},{"$f":"IF('effRT Support'!$B63=0,\"\",IF('Project Information'!$D$36=\"\",\"\",'Project Information'!$D$36))","v":""},{"$f":"IF('effRT Support'!$B63=0,\"\",IF('Project Information'!$D$42=\"\",\"\",'Project Information'!$D$42))","v":""},{"$f":"IF('effRT Support'!$B63=0,\"\",'effRT Support'!$D63)","v":""},{"$f":"IF('effRT Support'!$B63=0,\"\",'effRT Support'!$L63)","v":""},{"$f":"IF('effRT Support'!$B63=0,\"\",'effRT Support'!$N63)","v":""},null,null,{"$f":"IF('effRT Support'!$B63=0,\"\",'effRT Support'!$P63)","v":""},{"$f":"IF('effRT Support'!$B63=0,\"\",'effRT Support'!$Q63)","v":""},{"$f":"IF('effRT Support'!$B63=0,\"\",'effRT Support'!U63)","v":""},{"$f":"IF('effRT Support'!$B63=0,\"\",'effRT Support'!V63)","v":""},{"$f":"IF('effRT Support'!$B63=0,\"\",'effRT Support'!W63)","v":""},{"$f":"IF('effRT Support'!$B63=0,\"\",'effRT Support'!X63)","v":""},{"$f":"IF('effRT Support'!$B63=0,\"\",'effRT Support'!Y63)","v":""},{"$f":"IF('effRT Support'!$B63=0,\"\",'effRT Support'!Z63*10)","v":""},{"$f":"IF('effRT Support'!$B63=0,\"\",'effRT Support'!AA63)","v":""},{"$f":"IF('effRT Support'!$B63=0,\"\",'effRT Support'!AB63)","v":""},{"$f":"IF('effRT Support'!$B63=0,\"\",'effRT Support'!AC63)","v":""},{"$f":"IF('effRT Support'!$B63=0,\"\",'effRT Support'!AD63)","v":""},{"$f":"IF('effRT Support'!$B63=0,\"\",'effRT Support'!AE63)","v":""},{"$f":"IF('effRT Support'!$B63=0,\"\",\"Hours Actual or Deemed\")","v":""},{"$f":"IF('effRT Support'!$B63=0,\"\",'effRT Support'!$F63)","v":""},{"$f":"IF('effRT Support'!$B63=0,\"\",\"Wattage Actual or Deemed\")","v":""},{"$f":"IF('effRT Support'!$B63=0,\"\",IF('Project Information'!$D$33=\"Pay For Performance\",\"Actual\",\"Deemed\"))","v":""},{"$f":"IF('effRT Support'!$B63=0,\"\",\"Cost Actual or Deemed\")","v":""},{"$f":"IF('effRT Support'!$B63=0,\"\",IF('Project Information'!$D$33=\"Pay For Performance\",\"Actual\",\"Deemed\"))","v":""},{"$f":"IF('effRT Support'!$B63=0,\"\",\"Location\")","v":""},{"$f":"IF('effRT Support'!$B63=0,\"\",'effRT Support'!$E63)","v":""},{"$f":"IF('effRT Support'!$B63=0,\"\",\"Space Type\")","v":""},{"$f":"IF('effRT Support'!$B63=0,\"\",'effRT Support'!$G63)","v":""},{"$f":"IF('effRT Support'!$B63=0,\"\",\"Existing Fixture Description\")","v":""},{"$f":"IF('effRT Support'!$B63=0,\"\",'effRT Support'!$H63)","v":""},{"$f":"IF('effRT Support'!$B63=0,\"\",\"Existing Fixture Quantity\")","v":""},{"$f":"IF('effRT Support'!$B63=0,\"\",'effRT Support'!$I63)","v":""},{"$f":"IF('effRT Support'!$B63=0,\"\",\"Existing Fixture Wattage\")","v":""},{"$f":"IF('effRT Support'!$B63=0,\"\",'effRT Support'!$J63)","v":""},{"$f":"IF('effRT Support'!$B63=0,\"\",\"Annual Hours of Operation\")","v":""},{"$f":"IF('effRT Support'!$B63=0,\"\",'effRT Support'!$K63)","v":""},{"$f":"IF('effRT Support'!$B63=0,\"\",\"Installed Fixture Description\")","v":""},{"$f":"IF('effRT Support'!$B63=0,\"\",'effRT Support'!$M63)","v":""},{"$f":"IF('effRT Support'!$B63=0,\"\",\"Installed Fixture Wattage\")","v":""},{"$f":"IF('effRT Support'!$B63=0,\"\",'effRT Support'!$O63)","v":""},{"$f":"IF('effRT Support'!$B63=0,\"\",\"Material Cost\")","v":""},{"$f":"IF('effRT Support'!$B63=0,\"\",'effRT Support'!$R63)","v":""},{"$f":"IF('effRT Support'!$B63=0,\"\",\"Labor Cost\")","v":""},{"$f":"IF('effRT Support'!$B63=0,\"\",'effRT Support'!$S63)","v":""},{"$f":"IF('effRT Support'!$B63=0,\"\",\"Ancillary Costs - Measure Specific\")","v":""},{"$f":"IF('effRT Support'!$B63=0,\"\",'effRT Support'!$T63)","v":""},{"$f":"IF('effRT Support'!$B63=0,\"\",\"Fuel Type\")","v":""},{"$f":"IF('effRT Support'!$B63=0,\"\",'Project Information'!$D$44)","v":""},{"$f":"IF('effRT Support'!$B63=0,\"\",\"Installed Fixture Quantity\")","v":""},{"$f":"IF('effRT Support'!$B63=0,\"\",'effRT Support'!P62)","v":""}]
[{"$f":"IF('effRT Support'!$B64=0,\"\",IF('Project Information'!$D$33=\"Small Business\",\"SBL\",\"CILS\"))","v":""},{"$f":"IF('effRT Support'!$B64=0,\"\",IF('Project Information'!$K$2=\"\",\"\",'Project Information'!$K$2))","v":""},null,{"$f":"IF('effRT Support'!$B64=0,\"\",IF('Project Information'!$D$46=\"\",\"\",'Project Information'!$D$46))","v":""},{"$f":"IF('effRT Support'!$B64=0,\"\",IF('Project Information'!$D$20=\"\",\"\",VLOOKUP('Project Information'!$D$20,'Other Data'!$B$159:$E$189,4,FALSE)))","v":""},{"$f":"IF('effRT Support'!$B64=0,\"\",IF('Project Information'!$D$31=\"\",\"\",'Project Information'!$D$31))","v":""},{"$f":"IF('effRT Support'!$B64=0,\"\",IF('Project Information'!$D$5=\"\",\"\",'Project Information'!$D$5))","v":""},null,null,{"$f":"IF('effRT Support'!$B64=0,\"\",IF('Project Information'!$D$20=\"\",\"\",VLOOKUP('Project Information'!$D$20,'Other Data'!$B$159:$E$189,2,FALSE)))","v":""},{"$f":"IF('effRT Support'!$B64=0,\"\",IF('Project Information'!$D$20=\"\",\"\",VLOOKUP('Project Information'!$D$20,'Other Data'!$B$159:$E$189,3,FALSE)))","v":""},{"$f":"IF('effRT Support'!$B64=0,\"\",\"Existing\")","v":""},null,{"$f":"IF('effRT Support'!$B64=0,\"\",IF('Project Information'!$D$21=\"\",\"\",'Project Information'!$D$21))","v":""},{"$f":"IF('effRT Support'!$B64=0,\"\",IF('Project Information'!$D$48=\"\",\"\",'Project Information'!$D$48))","v":""},{"$f":"IF('effRT Support'!$B64=0,\"\",\"\")","v":""},{"$f":"IF('effRT Support'!$B64=0,\"\",\"\")","v":""},{"$f":"IF('effRT Support'!$B64=0,\"\",\"\")","v":""},{"$f":"IF('effRT Support'!$B64=0,\"\",\"\")","v":""},{"$f":"IF('effRT Support'!$B64=0,\"\",IF('Project Information'!$D$13=\"\",\"\",'Project Information'!$D$13))","v":""},{"$f":"IF('effRT Support'!$B64=0,\"\",IF('Project Information'!$E$13=\"\",\"\",'Project Information'!$E$13))","v":""},{"$f":"IF('effRT Support'!$B64=0,\"\",IF('Project Information'!$D$14=\"\",\"\",'Project Information'!$D$14))","v":""},{"$f":"IF('effRT Support'!$B64=0,\"\",IF('Project Information'!$D$15=\"\",\"\",'Project Information'!$D$15))","v":""},{"$f":"IF('effRT Support'!$B64=0,\"\",IF('Project Information'!$D$16=\"\",\"\",'Project Information'!$D$16))","v":""},null,{"$f":"IF('effRT Support'!$B64=0,\"\",'Project Information'!$D$18)","v":""},{"$f":"IF('effRT Support'!$B64=0,\"\",IF('Project Information'!$D$23=\"\",\"\",'Project Information'!$D$23))","v":""},{"$f":"IF('effRT Support'!$B64=0,\"\",IF('Project Information'!$D$24=\"\",\"\",'Project Information'!$D$24))","v":""},{"$f":"IF('effRT Support'!$B64=0,\"\",IF('Project Information'!$D$25=\"\",\"\",'Project Information'!$D$25))","v":""},{"$f":"IF('effRT Support'!$B64=0,\"\",IF('Project Information'!$E$25=\"\",\"\",'Project Information'!$E$25))","v":""},{"$f":"IF('effRT Support'!$B64=0,\"\",IF('Project Information'!$F$25=\"\",\"\",'Project Information'!$F$25))","v":""},{"$f":"IF('effRT Support'!$B64=0,\"\",IF('Project Information'!$D$27=\"\",\"Y\",\"N\"))","v":""},{"$f":"IF('effRT Support'!$B64=0,\"\",IF('Project Information'!$D$27=\"\",\"\",'Project Information'!$D$27))","v":""},{"$f":"IF('effRT Support'!$B64=0,\"\",IF('Project Information'!$D$28=\"\",\"\",'Project Information'!$D$28))","v":""},{"$f":"IF('effRT Support'!$B64=0,\"\",IF('Project Information'!$D$29=\"\",\"\",'Project Information'!$D$29))","v":""},{"$f":"IF('effRT Support'!$B64=0,\"\",IF('Project Information'!$E$29=\"\",\"\",'Project Information'!$E$29))","v":""},{"$f":"IF('effRT Support'!$B64=0,\"\",IF('Project Information'!$F$29=\"\",\"\",'Project Information'!$F$29))","v":""},{"$f":"IF('effRT Support'!$B64=0,\"\",\"\")","v":""},{"$f":"IF('effRT Support'!$B64=0,\"\",\"\")","v":""},{"$f":"IF('effRT Support'!$B64=0,\"\",IF('Project Information'!$D$36=\"\",\"\",'Project Information'!$D$36))","v":""},{"$f":"IF('effRT Support'!$B64=0,\"\",IF('Project Information'!$D$42=\"\",\"\",'Project Information'!$D$42))","v":""},{"$f":"IF('effRT Support'!$B64=0,\"\",'effRT Support'!$D64)","v":""},{"$f":"IF('effRT Support'!$B64=0,\"\",'effRT Support'!$L64)","v":""},{"$f":"IF('effRT Support'!$B64=0,\"\",'effRT Support'!$N64)","v":""},null,null,{"$f":"IF('effRT Support'!$B64=0,\"\",'effRT Support'!$P64)","v":""},{"$f":"IF('effRT Support'!$B64=0,\"\",'effRT Support'!$Q64)","v":""},{"$f":"IF('effRT Support'!$B64=0,\"\",'effRT Support'!U64)","v":""},{"$f":"IF('effRT Support'!$B64=0,\"\",'effRT Support'!V64)","v":""},{"$f":"IF('effRT Support'!$B64=0,\"\",'effRT Support'!W64)","v":""},{"$f":"IF('effRT Support'!$B64=0,\"\",'effRT Support'!X64)","v":""},{"$f":"IF('effRT Support'!$B64=0,\"\",'effRT Support'!Y64)","v":""},{"$f":"IF('effRT Support'!$B64=0,\"\",'effRT Support'!Z64*10)","v":""},{"$f":"IF('effRT Support'!$B64=0,\"\",'effRT Support'!AA64)","v":""},{"$f":"IF('effRT Support'!$B64=0,\"\",'effRT Support'!AB64)","v":""},{"$f":"IF('effRT Support'!$B64=0,\"\",'effRT Support'!AC64)","v":""},{"$f":"IF('effRT Support'!$B64=0,\"\",'effRT Support'!AD64)","v":""},{"$f":"IF('effRT Support'!$B64=0,\"\",'effRT Support'!AE64)","v":""},{"$f":"IF('effRT Support'!$B64=0,\"\",\"Hours Actual or Deemed\")","v":""},{"$f":"IF('effRT Support'!$B64=0,\"\",'effRT Support'!$F64)","v":""},{"$f":"IF('effRT Support'!$B64=0,\"\",\"Wattage Actual or Deemed\")","v":""},{"$f":"IF('effRT Support'!$B64=0,\"\",IF('Project Information'!$D$33=\"Pay For Performance\",\"Actual\",\"Deemed\"))","v":""},{"$f":"IF('effRT Support'!$B64=0,\"\",\"Cost Actual or Deemed\")","v":""},{"$f":"IF('effRT Support'!$B64=0,\"\",IF('Project Information'!$D$33=\"Pay For Performance\",\"Actual\",\"Deemed\"))","v":""},{"$f":"IF('effRT Support'!$B64=0,\"\",\"Location\")","v":""},{"$f":"IF('effRT Support'!$B64=0,\"\",'effRT Support'!$E64)","v":""},{"$f":"IF('effRT Support'!$B64=0,\"\",\"Space Type\")","v":""},{"$f":"IF('effRT Support'!$B64=0,\"\",'effRT Support'!$G64)","v":""},{"$f":"IF('effRT Support'!$B64=0,\"\",\"Existing Fixture Description\")","v":""},{"$f":"IF('effRT Support'!$B64=0,\"\",'effRT Support'!$H64)","v":""},{"$f":"IF('effRT Support'!$B64=0,\"\",\"Existing Fixture Quantity\")","v":""},{"$f":"IF('effRT Support'!$B64=0,\"\",'effRT Support'!$I64)","v":""},{"$f":"IF('effRT Support'!$B64=0,\"\",\"Existing Fixture Wattage\")","v":""},{"$f":"IF('effRT Support'!$B64=0,\"\",'effRT Support'!$J64)","v":""},{"$f":"IF('effRT Support'!$B64=0,\"\",\"Annual Hours of Operation\")","v":""},{"$f":"IF('effRT Support'!$B64=0,\"\",'effRT Support'!$K64)","v":""},{"$f":"IF('effRT Support'!$B64=0,\"\",\"Installed Fixture Description\")","v":""},{"$f":"IF('effRT Support'!$B64=0,\"\",'effRT Support'!$M64)","v":""},{"$f":"IF('effRT Support'!$B64=0,\"\",\"Installed Fixture Wattage\")","v":""},{"$f":"IF('effRT Support'!$B64=0,\"\",'effRT Support'!$O64)","v":""},{"$f":"IF('effRT Support'!$B64=0,\"\",\"Material Cost\")","v":""},{"$f":"IF('effRT Support'!$B64=0,\"\",'effRT Support'!$R64)","v":""},{"$f":"IF('effRT Support'!$B64=0,\"\",\"Labor Cost\")","v":""},{"$f":"IF('effRT Support'!$B64=0,\"\",'effRT Support'!$S64)","v":""},{"$f":"IF('effRT Support'!$B64=0,\"\",\"Ancillary Costs - Measure Specific\")","v":""},{"$f":"IF('effRT Support'!$B64=0,\"\",'effRT Support'!$T64)","v":""},{"$f":"IF('effRT Support'!$B64=0,\"\",\"Fuel Type\")","v":""},{"$f":"IF('effRT Support'!$B64=0,\"\",'Project Information'!$D$44)","v":""}]
[{"$f":"IF('effRT Support'!$B65=0,\"\",IF('Project Information'!$D$33=\"Small Business\",\"SBL\",\"CILS\"))","v":""},{"$f":"IF('effRT Support'!$B65=0,\"\",IF('Project Information'!$K$2=\"\",\"\",'Project Information'!$K$2))","v":""},null,{"$f":"IF('effRT Support'!$B65=0,\"\",IF('Project Information'!$D$46=\"\",\"\",'Project Information'!$D$46))","v":""},{"$f":"IF('effRT Support'!$B65=0,\"\",IF('Project Information'!$D$20=\"\",\"\",VLOOKUP('Project Information'!$D$20,'Other Data'!$B$159:$E$189,4,FALSE)))","v":""},{"$f":"IF('effRT Support'!$B65=0,\"\",IF('Project Information'!$D$31=\"\",\"\",'Project Information'!$D$31))","v":""},{"$f":"IF('effRT Support'!$B65=0,\"\",IF('Project Information'!$D$5=\"\",\"\",'Project Information'!$D$5))","v":""},null,null,{"$f":"IF('effRT Support'!$B65=0,\"\",IF('Project Information'!$D$20=\"\",\"\",VLOOKUP('Project Information'!$D$20,'Other Data'!$B$159:$E$189,2,FALSE)))","v":""},{"$f":"IF('effRT Support'!$B65=0,\"\",IF('Project Information'!$D$20=\"\",\"\",VLOOKUP('Project Information'!$D$20,'Other Data'!$B$159:$E$189,3,FALSE)))","v":""},{"$f":"IF('effRT Support'!$B65=0,\"\",\"Existing\")","v":""},null,{"$f":"IF('effRT Support'!$B65=0,\"\",IF('Project Information'!$D$21=\"\",\"\",'Project Information'!$D$21))","v":""},{"$f":"IF('effRT Support'!$B65=0,\"\",IF('Project Information'!$D$48=\"\",\"\",'Project Information'!$D$48))","v":""},{"$f":"IF('effRT Support'!$B65=0,\"\",\"\")","v":""},{"$f":"IF('effRT Support'!$B65=0,\"\",\"\")","v":""},{"$f":"IF('effRT Support'!$B65=0,\"\",\"\")","v":""},{"$f":"IF('effRT Support'!$B65=0,\"\",\"\")","v":""},{"$f":"IF('effRT Support'!$B65=0,\"\",IF('Project Information'!$D$13=\"\",\"\",'Project Information'!$D$13))","v":""},{"$f":"IF('effRT Support'!$B65=0,\"\",IF('Project Information'!$E$13=\"\",\"\",'Project Information'!$E$13))","v":""},{"$f":"IF('effRT Support'!$B65=0,\"\",IF('Project Information'!$D$14=\"\",\"\",'Project Information'!$D$14))","v":""},{"$f":"IF('effRT Support'!$B65=0,\"\",IF('Project Information'!$D$15=\"\",\"\",'Project Information'!$D$15))","v":""},{"$f":"IF('effRT Support'!$B65=0,\"\",IF('Project Information'!$D$16=\"\",\"\",'Project Information'!$D$16))","v":""},null,{"$f":"IF('effRT Support'!$B65=0,\"\",'Project Information'!$D$18)","v":""},{"$f":"IF('effRT Support'!$B65=0,\"\",IF('Project Information'!$D$23=\"\",\"\",'Project Information'!$D$23))","v":""},{"$f":"IF('effRT Support'!$B65=0,\"\",IF('Project Information'!$D$24=\"\",\"\",'Project Information'!$D$24))","v":""},{"$f":"IF('effRT Support'!$B65=0,\"\",IF('Project Information'!$D$25=\"\",\"\",'Project Information'!$D$25))","v":""},{"$f":"IF('effRT Support'!$B65=0,\"\",IF('Project Information'!$E$25=\"\",\"\",'Project Information'!$E$25))","v":""},{"$f":"IF('effRT Support'!$B65=0,\"\",IF('Project Information'!$F$25=\"\",\"\",'Project Information'!$F$25))","v":""},{"$f":"IF('effRT Support'!$B65=0,\"\",IF('Project Information'!$D$27=\"\",\"Y\",\"N\"))","v":""},{"$f":"IF('effRT Support'!$B65=0,\"\",IF('Project Information'!$D$27=\"\",\"\",'Project Information'!$D$27))","v":""},{"$f":"IF('effRT Support'!$B65=0,\"\",IF('Project Information'!$D$28=\"\",\"\",'Project Information'!$D$28))","v":""},{"$f":"IF('effRT Support'!$B65=0,\"\",IF('Project Information'!$D$29=\"\",\"\",'Project Information'!$D$29))","v":""},{"$f":"IF('effRT Support'!$B65=0,\"\",IF('Project Information'!$E$29=\"\",\"\",'Project Information'!$E$29))","v":""},{"$f":"IF('effRT Support'!$B65=0,\"\",IF('Project Information'!$F$29=\"\",\"\",'Project Information'!$F$29))","v":""},{"$f":"IF('effRT Support'!$B65=0,\"\",\"\")","v":""},{"$f":"IF('effRT Support'!$B65=0,\"\",\"\")","v":""},{"$f":"IF('effRT Support'!$B65=0,\"\",IF('Project Information'!$D$36=\"\",\"\",'Project Information'!$D$36))","v":""},{"$f":"IF('effRT Support'!$B65=0,\"\",IF('Project Information'!$D$42=\"\",\"\",'Project Information'!$D$42))","v":""},{"$f":"IF('effRT Support'!$B65=0,\"\",'effRT Support'!$D65)","v":""},{"$f":"IF('effRT Support'!$B65=0,\"\",'effRT Support'!$L65)","v":""},{"$f":"IF('effRT Support'!$B65=0,\"\",'effRT Support'!$N65)","v":""},null,null,{"$f":"IF('effRT Support'!$B65=0,\"\",'effRT Support'!$P65)","v":""},{"$f":"IF('effRT Support'!$B65=0,\"\",'effRT Support'!$Q65)","v":""},{"$f":"IF('effRT Support'!$B65=0,\"\",'effRT Support'!U65)","v":""},{"$f":"IF('effRT Support'!$B65=0,\"\",'effRT Support'!V65)","v":""},{"$f":"IF('effRT Support'!$B65=0,\"\",'effRT Support'!W65)","v":""},{"$f":"IF('effRT Support'!$B65=0,\"\",'effRT Support'!X65)","v":""},{"$f":"IF('effRT Support'!$B65=0,\"\",'effRT Support'!Y65)","v":""},{"$f":"IF('effRT Support'!$B65=0,\"\",'effRT Support'!Z65*10)","v":""},{"$f":"IF('effRT Support'!$B65=0,\"\",'effRT Support'!AA65)","v":""},{"$f":"IF('effRT Support'!$B65=0,\"\",'effRT Support'!AB65)","v":""},{"$f":"IF('effRT Support'!$B65=0,\"\",'effRT Support'!AC65)","v":""},{"$f":"IF('effRT Support'!$B65=0,\"\",'effRT Support'!AD65)","v":""},{"$f":"IF('effRT Support'!$B65=0,\"\",'effRT Support'!AE65)","v":""},{"$f":"IF('effRT Support'!$B65=0,\"\",\"Hours Actual or Deemed\")","v":""},{"$f":"IF('effRT Support'!$B65=0,\"\",'effRT Support'!$F65)","v":""},{"$f":"IF('effRT Support'!$B65=0,\"\",\"Wattage Actual or Deemed\")","v":""},{"$f":"IF('effRT Support'!$B65=0,\"\",IF('Project Information'!$D$33=\"Pay For Performance\",\"Actual\",\"Deemed\"))","v":""},{"$f":"IF('effRT Support'!$B65=0,\"\",\"Cost Actual or Deemed\")","v":""},{"$f":"IF('effRT Support'!$B65=0,\"\",IF('Project Information'!$D$33=\"Pay For Performance\",\"Actual\",\"Deemed\"))","v":""},{"$f":"IF('effRT Support'!$B65=0,\"\",\"Location\")","v":""},{"$f":"IF('effRT Support'!$B65=0,\"\",'effRT Support'!$E65)","v":""},{"$f":"IF('effRT Support'!$B65=0,\"\",\"Space Type\")","v":""},{"$f":"IF('effRT Support'!$B65=0,\"\",'effRT Support'!$G65)","v":""},{"$f":"IF('effRT Support'!$B65=0,\"\",\"Existing Fixture Description\")","v":""},{"$f":"IF('effRT Support'!$B65=0,\"\",'effRT Support'!$H65)","v":""},{"$f":"IF('effRT Support'!$B65=0,\"\",\"Existing Fixture Quantity\")","v":""},{"$f":"IF('effRT Support'!$B65=0,\"\",'effRT Support'!$I65)","v":""},{"$f":"IF('effRT Support'!$B65=0,\"\",\"Existing Fixture Wattage\")","v":""},{"$f":"IF('effRT Support'!$B65=0,\"\",'effRT Support'!$J65)","v":""},{"$f":"IF('effRT Support'!$B65=0,\"\",\"Annual Hours of Operation\")","v":""},{"$f":"IF('effRT Support'!$B65=0,\"\",'effRT Support'!$K65)","v":""},{"$f":"IF('effRT Support'!$B65=0,\"\",\"Installed Fixture Description\")","v":""},{"$f":"IF('effRT Support'!$B65=0,\"\",'effRT Support'!$M65)","v":""},{"$f":"IF('effRT Support'!$B65=0,\"\",\"Installed Fixture Wattage\")","v":""},{"$f":"IF('effRT Support'!$B65=0,\"\",'effRT Support'!$O65)","v":""},{"$f":"IF('effRT Support'!$B65=0,\"\",\"Material Cost\")","v":""},{"$f":"IF('effRT Support'!$B65=0,\"\",'effRT Support'!$R65)","v":""},{"$f":"IF('effRT Support'!$B65=0,\"\",\"Labor Cost\")","v":""},{"$f":"IF('effRT Support'!$B65=0,\"\",'effRT Support'!$S65)","v":""},{"$f":"IF('effRT Support'!$B65=0,\"\",\"Ancillary Costs - Measure Specific\")","v":""},{"$f":"IF('effRT Support'!$B65=0,\"\",'effRT Support'!$T65)","v":""},{"$f":"IF('effRT Support'!$B65=0,\"\",\"Fuel Type\")","v":""},{"$f":"IF('effRT Support'!$B65=0,\"\",'Project Information'!$D$44)","v":""},{"$f":"IF('effRT Support'!$B65=0,\"\",\"Installed Fixture Quantity\")","v":""},{"$f":"IF('effRT Support'!$B65=0,\"\",'effRT Support'!P64)","v":""}]
[{"$f":"IF('effRT Support'!$B66=0,\"\",IF('Project Information'!$D$33=\"Small Business\",\"SBL\",\"CILS\"))","v":""},{"$f":"IF('effRT Support'!$B66=0,\"\",IF('Project Information'!$K$2=\"\",\"\",'Project Information'!$K$2))","v":""},null,{"$f":"IF('effRT Support'!$B66=0,\"\",IF('Project Information'!$D$46=\"\",\"\",'Project Information'!$D$46))","v":""},{"$f":"IF('effRT Support'!$B66=0,\"\",IF('Project Information'!$D$20=\"\",\"\",VLOOKUP('Project Information'!$D$20,'Other Data'!$B$159:$E$189,4,FALSE)))","v":""},{"$f":"IF('effRT Support'!$B66=0,\"\",IF('Project Information'!$D$31=\"\",\"\",'Project Information'!$D$31))","v":""},{"$f":"IF('effRT Support'!$B66=0,\"\",IF('Project Information'!$D$5=\"\",\"\",'Project Information'!$D$5))","v":""},null,null,{"$f":"IF('effRT Support'!$B66=0,\"\",IF('Project Information'!$D$20=\"\",\"\",VLOOKUP('Project Information'!$D$20,'Other Data'!$B$159:$E$189,2,FALSE)))","v":""},{"$f":"IF('effRT Support'!$B66=0,\"\",IF('Project Information'!$D$20=\"\",\"\",VLOOKUP('Project Information'!$D$20,'Other Data'!$B$159:$E$189,3,FALSE)))","v":""},{"$f":"IF('effRT Support'!$B66=0,\"\",\"Existing\")","v":""},null,{"$f":"IF('effRT Support'!$B66=0,\"\",IF('Project Information'!$D$21=\"\",\"\",'Project Information'!$D$21))","v":""},{"$f":"IF('effRT Support'!$B66=0,\"\",IF('Project Information'!$D$48=\"\",\"\",'Project Information'!$D$48))","v":""},{"$f":"IF('effRT Support'!$B66=0,\"\",\"\")","v":""},{"$f":"IF('effRT Support'!$B66=0,\"\",\"\")","v":""},{"$f":"IF('effRT Support'!$B66=0,\"\",\"\")","v":""},{"$f":"IF('effRT Support'!$B66=0,\"\",\"\")","v":""},{"$f":"IF('effRT Support'!$B66=0,\"\",IF('Project Information'!$D$13=\"\",\"\",'Project Information'!$D$13))","v":""},{"$f":"IF('effRT Support'!$B66=0,\"\",IF('Project Information'!$E$13=\"\",\"\",'Project Information'!$E$13))","v":""},{"$f":"IF('effRT Support'!$B66=0,\"\",IF('Project Information'!$D$14=\"\",\"\",'Project Information'!$D$14))","v":""},{"$f":"IF('effRT Support'!$B66=0,\"\",IF('Project Information'!$D$15=\"\",\"\",'Project Information'!$D$15))","v":""},{"$f":"IF('effRT Support'!$B66=0,\"\",IF('Project Information'!$D$16=\"\",\"\",'Project Information'!$D$16))","v":""},null,{"$f":"IF('effRT Support'!$B66=0,\"\",'Project Information'!$D$18)","v":""},{"$f":"IF('effRT Support'!$B66=0,\"\",IF('Project Information'!$D$23=\"\",\"\",'Project Information'!$D$23))","v":""},{"$f":"IF('effRT Support'!$B66=0,\"\",IF('Project Information'!$D$24=\"\",\"\",'Project Information'!$D$24))","v":""},{"$f":"IF('effRT Support'!$B66=0,\"\",IF('Project Information'!$D$25=\"\",\"\",'Project Information'!$D$25))","v":""},{"$f":"IF('effRT Support'!$B66=0,\"\",IF('Project Information'!$E$25=\"\",\"\",'Project Information'!$E$25))","v":""},{"$f":"IF('effRT Support'!$B66=0,\"\",IF('Project Information'!$F$25=\"\",\"\",'Project Information'!$F$25))","v":""},{"$f":"IF('effRT Support'!$B66=0,\"\",IF('Project Information'!$D$27=\"\",\"Y\",\"N\"))","v":""},{"$f":"IF('effRT Support'!$B66=0,\"\",IF('Project Information'!$D$27=\"\",\"\",'Project Information'!$D$27))","v":""},{"$f":"IF('effRT Support'!$B66=0,\"\",IF('Project Information'!$D$28=\"\",\"\",'Project Information'!$D$28))","v":""},{"$f":"IF('effRT Support'!$B66=0,\"\",IF('Project Information'!$D$29=\"\",\"\",'Project Information'!$D$29))","v":""},{"$f":"IF('effRT Support'!$B66=0,\"\",IF('Project Information'!$E$29=\"\",\"\",'Project Information'!$E$29))","v":""},{"$f":"IF('effRT Support'!$B66=0,\"\",IF('Project Information'!$F$29=\"\",\"\",'Project Information'!$F$29))","v":""},{"$f":"IF('effRT Support'!$B66=0,\"\",\"\")","v":""},{"$f":"IF('effRT Support'!$B66=0,\"\",\"\")","v":""},{"$f":"IF('effRT Support'!$B66=0,\"\",IF('Project Information'!$D$36=\"\",\"\",'Project Information'!$D$36))","v":""},{"$f":"IF('effRT Support'!$B66=0,\"\",IF('Project Information'!$D$42=\"\",\"\",'Project Information'!$D$42))","v":""},{"$f":"IF('effRT Support'!$B66=0,\"\",'effRT Support'!$D66)","v":""},{"$f":"IF('effRT Support'!$B66=0,\"\",'effRT Support'!$L66)","v":""},{"$f":"IF('effRT Support'!$B66=0,\"\",'effRT Support'!$N66)","v":""},null,null,{"$f":"IF('effRT Support'!$B66=0,\"\",'effRT Support'!$P66)","v":""},{"$f":"IF('effRT Support'!$B66=0,\"\",'effRT Support'!$Q66)","v":""},{"$f":"IF('effRT Support'!$B66=0,\"\",'effRT Support'!U66)","v":""},{"$f":"IF('effRT Support'!$B66=0,\"\",'effRT Support'!V66)","v":""},{"$f":"IF('effRT Support'!$B66=0,\"\",'effRT Support'!W66)","v":""},{"$f":"IF('effRT Support'!$B66=0,\"\",'effRT Support'!X66)","v":""},{"$f":"IF('effRT Support'!$B66=0,\"\",'effRT Support'!Y66)","v":""},{"$f":"IF('effRT Support'!$B66=0,\"\",'effRT Support'!Z66*10)","v":""},{"$f":"IF('effRT Support'!$B66=0,\"\",'effRT Support'!AA66)","v":""},{"$f":"IF('effRT Support'!$B66=0,\"\",'effRT Support'!AB66)","v":""},{"$f":"IF('effRT Support'!$B66=0,\"\",'effRT Support'!AC66)","v":""},{"$f":"IF('effRT Support'!$B66=0,\"\",'effRT Support'!AD66)","v":""},{"$f":"IF('effRT Support'!$B66=0,\"\",'effRT Support'!AE66)","v":""},{"$f":"IF('effRT Support'!$B66=0,\"\",\"Hours Actual or Deemed\")","v":""},{"$f":"IF('effRT Support'!$B66=0,\"\",'effRT Support'!$F66)","v":""},{"$f":"IF('effRT Support'!$B66=0,\"\",\"Wattage Actual or Deemed\")","v":""},{"$f":"IF('effRT Support'!$B66=0,\"\",IF('Project Information'!$D$33=\"Pay For Performance\",\"Actual\",\"Deemed\"))","v":""},{"$f":"IF('effRT Support'!$B66=0,\"\",\"Cost Actual or Deemed\")","v":""},{"$f":"IF('effRT Support'!$B66=0,\"\",IF('Project Information'!$D$33=\"Pay For Performance\",\"Actual\",\"Deemed\"))","v":""},{"$f":"IF('effRT Support'!$B66=0,\"\",\"Location\")","v":""},{"$f":"IF('effRT Support'!$B66=0,\"\",'effRT Support'!$E66)","v":""},{"$f":"IF('effRT Support'!$B66=0,\"\",\"Space Type\")","v":""},{"$f":"IF('effRT Support'!$B66=0,\"\",'effRT Support'!$G66)","v":""},{"$f":"IF('effRT Support'!$B66=0,\"\",\"Existing Fixture Description\")","v":""},{"$f":"IF('effRT Support'!$B66=0,\"\",'effRT Support'!$H66)","v":""},{"$f":"IF('effRT Support'!$B66=0,\"\",\"Existing Fixture Quantity\")","v":""},{"$f":"IF('effRT Support'!$B66=0,\"\",'effRT Support'!$I66)","v":""},{"$f":"IF('effRT Support'!$B66=0,\"\",\"Existing Fixture Wattage\")","v":""},{"$f":"IF('effRT Support'!$B66=0,\"\",'effRT Support'!$J66)","v":""},{"$f":"IF('effRT Support'!$B66=0,\"\",\"Annual Hours of Operation\")","v":""},{"$f":"IF('effRT Support'!$B66=0,\"\",'effRT Support'!$K66)","v":""},{"$f":"IF('effRT Support'!$B66=0,\"\",\"Installed Fixture Description\")","v":""},{"$f":"IF('effRT Support'!$B66=0,\"\",'effRT Support'!$M66)","v":""},{"$f":"IF('effRT Support'!$B66=0,\"\",\"Installed Fixture Wattage\")","v":""},{"$f":"IF('effRT Support'!$B66=0,\"\",'effRT Support'!$O66)","v":""},{"$f":"IF('effRT Support'!$B66=0,\"\",\"Material Cost\")","v":""},{"$f":"IF('effRT Support'!$B66=0,\"\",'effRT Support'!$R66)","v":""},{"$f":"IF('effRT Support'!$B66=0,\"\",\"Labor Cost\")","v":""},{"$f":"IF('effRT Support'!$B66=0,\"\",'effRT Support'!$S66)","v":""},{"$f":"IF('effRT Support'!$B66=0,\"\",\"Ancillary Costs - Measure Specific\")","v":""},{"$f":"IF('effRT Support'!$B66=0,\"\",'effRT Support'!$T66)","v":""},{"$f":"IF('effRT Support'!$B66=0,\"\",\"Fuel Type\")","v":""},{"$f":"IF('effRT Support'!$B66=0,\"\",'Project Information'!$D$44)","v":""}]
[{"$f":"IF('effRT Support'!$B67=0,\"\",IF('Project Information'!$D$33=\"Small Business\",\"SBL\",\"CILS\"))","v":""},{"$f":"IF('effRT Support'!$B67=0,\"\",IF('Project Information'!$K$2=\"\",\"\",'Project Information'!$K$2))","v":""},null,{"$f":"IF('effRT Support'!$B67=0,\"\",IF('Project Information'!$D$46=\"\",\"\",'Project Information'!$D$46))","v":""},{"$f":"IF('effRT Support'!$B67=0,\"\",IF('Project Information'!$D$20=\"\",\"\",VLOOKUP('Project Information'!$D$20,'Other Data'!$B$159:$E$189,4,FALSE)))","v":""},{"$f":"IF('effRT Support'!$B67=0,\"\",IF('Project Information'!$D$31=\"\",\"\",'Project Information'!$D$31))","v":""},{"$f":"IF('effRT Support'!$B67=0,\"\",IF('Project Information'!$D$5=\"\",\"\",'Project Information'!$D$5))","v":""},null,null,{"$f":"IF('effRT Support'!$B67=0,\"\",IF('Project Information'!$D$20=\"\",\"\",VLOOKUP('Project Information'!$D$20,'Other Data'!$B$159:$E$189,2,FALSE)))","v":""},{"$f":"IF('effRT Support'!$B67=0,\"\",IF('Project Information'!$D$20=\"\",\"\",VLOOKUP('Project Information'!$D$20,'Other Data'!$B$159:$E$189,3,FALSE)))","v":""},{"$f":"IF('effRT Support'!$B67=0,\"\",\"Existing\")","v":""},null,{"$f":"IF('effRT Support'!$B67=0,\"\",IF('Project Information'!$D$21=\"\",\"\",'Project Information'!$D$21))","v":""},{"$f":"IF('effRT Support'!$B67=0,\"\",IF('Project Information'!$D$48=\"\",\"\",'Project Information'!$D$48))","v":""},{"$f":"IF('effRT Support'!$B67=0,\"\",\"\")","v":""},{"$f":"IF('effRT Support'!$B67=0,\"\",\"\")","v":""},{"$f":"IF('effRT Support'!$B67=0,\"\",\"\")","v":""},{"$f":"IF('effRT Support'!$B67=0,\"\",\"\")","v":""},{"$f":"IF('effRT Support'!$B67=0,\"\",IF('Project Information'!$D$13=\"\",\"\",'Project Information'!$D$13))","v":""},{"$f":"IF('effRT Support'!$B67=0,\"\",IF('Project Information'!$E$13=\"\",\"\",'Project Information'!$E$13))","v":""},{"$f":"IF('effRT Support'!$B67=0,\"\",IF('Project Information'!$D$14=\"\",\"\",'Project Information'!$D$14))","v":""},{"$f":"IF('effRT Support'!$B67=0,\"\",IF('Project Information'!$D$15=\"\",\"\",'Project Information'!$D$15))","v":""},{"$f":"IF('effRT Support'!$B67=0,\"\",IF('Project Information'!$D$16=\"\",\"\",'Project Information'!$D$16))","v":""},null,{"$f":"IF('effRT Support'!$B67=0,\"\",'Project Information'!$D$18)","v":""},{"$f":"IF('effRT Support'!$B67=0,\"\",IF('Project Information'!$D$23=\"\",\"\",'Project Information'!$D$23))","v":""},{"$f":"IF('effRT Support'!$B67=0,\"\",IF('Project Information'!$D$24=\"\",\"\",'Project Information'!$D$24))","v":""},{"$f":"IF('effRT Support'!$B67=0,\"\",IF('Project Information'!$D$25=\"\",\"\",'Project Information'!$D$25))","v":""},{"$f":"IF('effRT Support'!$B67=0,\"\",IF('Project Information'!$E$25=\"\",\"\",'Project Information'!$E$25))","v":""},{"$f":"IF('effRT Support'!$B67=0,\"\",IF('Project Information'!$F$25=\"\",\"\",'Project Information'!$F$25))","v":""},{"$f":"IF('effRT Support'!$B67=0,\"\",IF('Project Information'!$D$27=\"\",\"Y\",\"N\"))","v":""},{"$f":"IF('effRT Support'!$B67=0,\"\",IF('Project Information'!$D$27=\"\",\"\",'Project Information'!$D$27))","v":""},{"$f":"IF('effRT Support'!$B67=0,\"\",IF('Project Information'!$D$28=\"\",\"\",'Project Information'!$D$28))","v":""},{"$f":"IF('effRT Support'!$B67=0,\"\",IF('Project Information'!$D$29=\"\",\"\",'Project Information'!$D$29))","v":""},{"$f":"IF('effRT Support'!$B67=0,\"\",IF('Project Information'!$E$29=\"\",\"\",'Project Information'!$E$29))","v":""},{"$f":"IF('effRT Support'!$B67=0,\"\",IF('Project Information'!$F$29=\"\",\"\",'Project Information'!$F$29))","v":""},{"$f":"IF('effRT Support'!$B67=0,\"\",\"\")","v":""},{"$f":"IF('effRT Support'!$B67=0,\"\",\"\")","v":""},{"$f":"IF('effRT Support'!$B67=0,\"\",IF('Project Information'!$D$36=\"\",\"\",'Project Information'!$D$36))","v":""},{"$f":"IF('effRT Support'!$B67=0,\"\",IF('Project Information'!$D$42=\"\",\"\",'Project Information'!$D$42))","v":""},{"$f":"IF('effRT Support'!$B67=0,\"\",'effRT Support'!$D67)","v":""},{"$f":"IF('effRT Support'!$B67=0,\"\",'effRT Support'!$L67)","v":""},{"$f":"IF('effRT Support'!$B67=0,\"\",'effRT Support'!$N67)","v":""},null,null,{"$f":"IF('effRT Support'!$B67=0,\"\",'effRT Support'!$P67)","v":""},{"$f":"IF('effRT Support'!$B67=0,\"\",'effRT Support'!$Q67)","v":""},{"$f":"IF('effRT Support'!$B67=0,\"\",'effRT Support'!U67)","v":""},{"$f":"IF('effRT Support'!$B67=0,\"\",'effRT Support'!V67)","v":""},{"$f":"IF('effRT Support'!$B67=0,\"\",'effRT Support'!W67)","v":""},{"$f":"IF('effRT Support'!$B67=0,\"\",'effRT Support'!X67)","v":""},{"$f":"IF('effRT Support'!$B67=0,\"\",'effRT Support'!Y67)","v":""},{"$f":"IF('effRT Support'!$B67=0,\"\",'effRT Support'!Z67*10)","v":""},{"$f":"IF('effRT Support'!$B67=0,\"\",'effRT Support'!AA67)","v":""},{"$f":"IF('effRT Support'!$B67=0,\"\",'effRT Support'!AB67)","v":""},{"$f":"IF('effRT Support'!$B67=0,\"\",'effRT Support'!AC67)","v":""},{"$f":"IF('effRT Support'!$B67=0,\"\",'effRT Support'!AD67)","v":""},{"$f":"IF('effRT Support'!$B67=0,\"\",'effRT Support'!AE67)","v":""},{"$f":"IF('effRT Support'!$B67=0,\"\",\"Hours Actual or Deemed\")","v":""},{"$f":"IF('effRT Support'!$B67=0,\"\",'effRT Support'!$F67)","v":""},{"$f":"IF('effRT Support'!$B67=0,\"\",\"Wattage Actual or Deemed\")","v":""},{"$f":"IF('effRT Support'!$B67=0,\"\",IF('Project Information'!$D$33=\"Pay For Performance\",\"Actual\",\"Deemed\"))","v":""},{"$f":"IF('effRT Support'!$B67=0,\"\",\"Cost Actual or Deemed\")","v":""},{"$f":"IF('effRT Support'!$B67=0,\"\",IF('Project Information'!$D$33=\"Pay For Performance\",\"Actual\",\"Deemed\"))","v":""},{"$f":"IF('effRT Support'!$B67=0,\"\",\"Location\")","v":""},{"$f":"IF('effRT Support'!$B67=0,\"\",'effRT Support'!$E67)","v":""},{"$f":"IF('effRT Support'!$B67=0,\"\",\"Space Type\")","v":""},{"$f":"IF('effRT Support'!$B67=0,\"\",'effRT Support'!$G67)","v":""},{"$f":"IF('effRT Support'!$B67=0,\"\",\"Existing Fixture Description\")","v":""},{"$f":"IF('effRT Support'!$B67=0,\"\",'effRT Support'!$H67)","v":""},{"$f":"IF('effRT Support'!$B67=0,\"\",\"Existing Fixture Quantity\")","v":""},{"$f":"IF('effRT Support'!$B67=0,\"\",'effRT Support'!$I67)","v":""},{"$f":"IF('effRT Support'!$B67=0,\"\",\"Existing Fixture Wattage\")","v":""},{"$f":"IF('effRT Support'!$B67=0,\"\",'effRT Support'!$J67)","v":""},{"$f":"IF('effRT Support'!$B67=0,\"\",\"Annual Hours of Operation\")","v":""},{"$f":"IF('effRT Support'!$B67=0,\"\",'effRT Support'!$K67)","v":""},{"$f":"IF('effRT Support'!$B67=0,\"\",\"Installed Fixture Description\")","v":""},{"$f":"IF('effRT Support'!$B67=0,\"\",'effRT Support'!$M67)","v":""},{"$f":"IF('effRT Support'!$B67=0,\"\",\"Installed Fixture Wattage\")","v":""},{"$f":"IF('effRT Support'!$B67=0,\"\",'effRT Support'!$O67)","v":""},{"$f":"IF('effRT Support'!$B67=0,\"\",\"Material Cost\")","v":""},{"$f":"IF('effRT Support'!$B67=0,\"\",'effRT Support'!$R67)","v":""},{"$f":"IF('effRT Support'!$B67=0,\"\",\"Labor Cost\")","v":""},{"$f":"IF('effRT Support'!$B67=0,\"\",'effRT Support'!$S67)","v":""},{"$f":"IF('effRT Support'!$B67=0,\"\",\"Ancillary Costs - Measure Specific\")","v":""},{"$f":"IF('effRT Support'!$B67=0,\"\",'effRT Support'!$T67)","v":""},{"$f":"IF('effRT Support'!$B67=0,\"\",\"Fuel Type\")","v":""},{"$f":"IF('effRT Support'!$B67=0,\"\",'Project Information'!$D$44)","v":""},{"$f":"IF('effRT Support'!$B67=0,\"\",\"Installed Fixture Quantity\")","v":""},{"$f":"IF('effRT Support'!$B67=0,\"\",'effRT Support'!P66)","v":""}]
[{"$f":"IF('effRT Support'!$B68=0,\"\",IF('Project Information'!$D$33=\"Small Business\",\"SBL\",\"CILS\"))","v":""},{"$f":"IF('effRT Support'!$B68=0,\"\",IF('Project Information'!$K$2=\"\",\"\",'Project Information'!$K$2))","v":""},null,{"$f":"IF('effRT Support'!$B68=0,\"\",IF('Project Information'!$D$46=\"\",\"\",'Project Information'!$D$46))","v":""},{"$f":"IF('effRT Support'!$B68=0,\"\",IF('Project Information'!$D$20=\"\",\"\",VLOOKUP('Project Information'!$D$20,'Other Data'!$B$159:$E$189,4,FALSE)))","v":""},{"$f":"IF('effRT Support'!$B68=0,\"\",IF('Project Information'!$D$31=\"\",\"\",'Project Information'!$D$31))","v":""},{"$f":"IF('effRT Support'!$B68=0,\"\",IF('Project Information'!$D$5=\"\",\"\",'Project Information'!$D$5))","v":""},null,null,{"$f":"IF('effRT Support'!$B68=0,\"\",IF('Project Information'!$D$20=\"\",\"\",VLOOKUP('Project Information'!$D$20,'Other Data'!$B$159:$E$189,2,FALSE)))","v":""},{"$f":"IF('effRT Support'!$B68=0,\"\",IF('Project Information'!$D$20=\"\",\"\",VLOOKUP('Project Information'!$D$20,'Other Data'!$B$159:$E$189,3,FALSE)))","v":""},{"$f":"IF('effRT Support'!$B68=0,\"\",\"Existing\")","v":""},null,{"$f":"IF('effRT Support'!$B68=0,\"\",IF('Project Information'!$D$21=\"\",\"\",'Project Information'!$D$21))","v":""},{"$f":"IF('effRT Support'!$B68=0,\"\",IF('Project Information'!$D$48=\"\",\"\",'Project Information'!$D$48))","v":""},{"$f":"IF('effRT Support'!$B68=0,\"\",\"\")","v":""},{"$f":"IF('effRT Support'!$B68=0,\"\",\"\")","v":""},{"$f":"IF('effRT Support'!$B68=0,\"\",\"\")","v":""},{"$f":"IF('effRT Support'!$B68=0,\"\",\"\")","v":""},{"$f":"IF('effRT Support'!$B68=0,\"\",IF('Project Information'!$D$13=\"\",\"\",'Project Information'!$D$13))","v":""},{"$f":"IF('effRT Support'!$B68=0,\"\",IF('Project Information'!$E$13=\"\",\"\",'Project Information'!$E$13))","v":""},{"$f":"IF('effRT Support'!$B68=0,\"\",IF('Project Information'!$D$14=\"\",\"\",'Project Information'!$D$14))","v":""},{"$f":"IF('effRT Support'!$B68=0,\"\",IF('Project Information'!$D$15=\"\",\"\",'Project Information'!$D$15))","v":""},{"$f":"IF('effRT Support'!$B68=0,\"\",IF('Project Information'!$D$16=\"\",\"\",'Project Information'!$D$16))","v":""},null,{"$f":"IF('effRT Support'!$B68=0,\"\",'Project Information'!$D$18)","v":""},{"$f":"IF('effRT Support'!$B68=0,\"\",IF('Project Information'!$D$23=\"\",\"\",'Project Information'!$D$23))","v":""},{"$f":"IF('effRT Support'!$B68=0,\"\",IF('Project Information'!$D$24=\"\",\"\",'Project Information'!$D$24))","v":""},{"$f":"IF('effRT Support'!$B68=0,\"\",IF('Project Information'!$D$25=\"\",\"\",'Project Information'!$D$25))","v":""},{"$f":"IF('effRT Support'!$B68=0,\"\",IF('Project Information'!$E$25=\"\",\"\",'Project Information'!$E$25))","v":""},{"$f":"IF('effRT Support'!$B68=0,\"\",IF('Project Information'!$F$25=\"\",\"\",'Project Information'!$F$25))","v":""},{"$f":"IF('effRT Support'!$B68=0,\"\",IF('Project Information'!$D$27=\"\",\"Y\",\"N\"))","v":""},{"$f":"IF('effRT Support'!$B68=0,\"\",IF('Project Information'!$D$27=\"\",\"\",'Project Information'!$D$27))","v":""},{"$f":"IF('effRT Support'!$B68=0,\"\",IF('Project Information'!$D$28=\"\",\"\",'Project Information'!$D$28))","v":""},{"$f":"IF('effRT Support'!$B68=0,\"\",IF('Project Information'!$D$29=\"\",\"\",'Project Information'!$D$29))","v":""},{"$f":"IF('effRT Support'!$B68=0,\"\",IF('Project Information'!$E$29=\"\",\"\",'Project Information'!$E$29))","v":""},{"$f":"IF('effRT Support'!$B68=0,\"\",IF('Project Information'!$F$29=\"\",\"\",'Project Information'!$F$29))","v":""},{"$f":"IF('effRT Support'!$B68=0,\"\",\"\")","v":""},{"$f":"IF('effRT Support'!$B68=0,\"\",\"\")","v":""},{"$f":"IF('effRT Support'!$B68=0,\"\",IF('Project Information'!$D$36=\"\",\"\",'Project Information'!$D$36))","v":""},{"$f":"IF('effRT Support'!$B68=0,\"\",IF('Project Information'!$D$42=\"\",\"\",'Project Information'!$D$42))","v":""},{"$f":"IF('effRT Support'!$B68=0,\"\",'effRT Support'!$D68)","v":""},{"$f":"IF('effRT Support'!$B68=0,\"\",'effRT Support'!$L68)","v":""},{"$f":"IF('effRT Support'!$B68=0,\"\",'effRT Support'!$N68)","v":""},null,null,{"$f":"IF('effRT Support'!$B68=0,\"\",'effRT Support'!$P68)","v":""},{"$f":"IF('effRT Support'!$B68=0,\"\",'effRT Support'!$Q68)","v":""},{"$f":"IF('effRT Support'!$B68=0,\"\",'effRT Support'!U68)","v":""},{"$f":"IF('effRT Support'!$B68=0,\"\",'effRT Support'!V68)","v":""},{"$f":"IF('effRT Support'!$B68=0,\"\",'effRT Support'!W68)","v":""},{"$f":"IF('effRT Support'!$B68=0,\"\",'effRT Support'!X68)","v":""},{"$f":"IF('effRT Support'!$B68=0,\"\",'effRT Support'!Y68)","v":""},{"$f":"IF('effRT Support'!$B68=0,\"\",'effRT Support'!Z68*10)","v":""},{"$f":"IF('effRT Support'!$B68=0,\"\",'effRT Support'!AA68)","v":""},{"$f":"IF('effRT Support'!$B68=0,\"\",'effRT Support'!AB68)","v":""},{"$f":"IF('effRT Support'!$B68=0,\"\",'effRT Support'!AC68)","v":""},{"$f":"IF('effRT Support'!$B68=0,\"\",'effRT Support'!AD68)","v":""},{"$f":"IF('effRT Support'!$B68=0,\"\",'effRT Support'!AE68)","v":""},{"$f":"IF('effRT Support'!$B68=0,\"\",\"Hours Actual or Deemed\")","v":""},{"$f":"IF('effRT Support'!$B68=0,\"\",'effRT Support'!$F68)","v":""},{"$f":"IF('effRT Support'!$B68=0,\"\",\"Wattage Actual or Deemed\")","v":""},{"$f":"IF('effRT Support'!$B68=0,\"\",IF('Project Information'!$D$33=\"Pay For Performance\",\"Actual\",\"Deemed\"))","v":""},{"$f":"IF('effRT Support'!$B68=0,\"\",\"Cost Actual or Deemed\")","v":""},{"$f":"IF('effRT Support'!$B68=0,\"\",IF('Project Information'!$D$33=\"Pay For Performance\",\"Actual\",\"Deemed\"))","v":""},{"$f":"IF('effRT Support'!$B68=0,\"\",\"Location\")","v":""},{"$f":"IF('effRT Support'!$B68=0,\"\",'effRT Support'!$E68)","v":""},{"$f":"IF('effRT Support'!$B68=0,\"\",\"Space Type\")","v":""},{"$f":"IF('effRT Support'!$B68=0,\"\",'effRT Support'!$G68)","v":""},{"$f":"IF('effRT Support'!$B68=0,\"\",\"Existing Fixture Description\")","v":""},{"$f":"IF('effRT Support'!$B68=0,\"\",'effRT Support'!$H68)","v":""},{"$f":"IF('effRT Support'!$B68=0,\"\",\"Existing Fixture Quantity\")","v":""},{"$f":"IF('effRT Support'!$B68=0,\"\",'effRT Support'!$I68)","v":""},{"$f":"IF('effRT Support'!$B68=0,\"\",\"Existing Fixture Wattage\")","v":""},{"$f":"IF('effRT Support'!$B68=0,\"\",'effRT Support'!$J68)","v":""},{"$f":"IF('effRT Support'!$B68=0,\"\",\"Annual Hours of Operation\")","v":""},{"$f":"IF('effRT Support'!$B68=0,\"\",'effRT Support'!$K68)","v":""},{"$f":"IF('effRT Support'!$B68=0,\"\",\"Installed Fixture Description\")","v":""},{"$f":"IF('effRT Support'!$B68=0,\"\",'effRT Support'!$M68)","v":""},{"$f":"IF('effRT Support'!$B68=0,\"\",\"Installed Fixture Wattage\")","v":""},{"$f":"IF('effRT Support'!$B68=0,\"\",'effRT Support'!$O68)","v":""},{"$f":"IF('effRT Support'!$B68=0,\"\",\"Material Cost\")","v":""},{"$f":"IF('effRT Support'!$B68=0,\"\",'effRT Support'!$R68)","v":""},{"$f":"IF('effRT Support'!$B68=0,\"\",\"Labor Cost\")","v":""},{"$f":"IF('effRT Support'!$B68=0,\"\",'effRT Support'!$S68)","v":""},{"$f":"IF('effRT Support'!$B68=0,\"\",\"Ancillary Costs - Measure Specific\")","v":""},{"$f":"IF('effRT Support'!$B68=0,\"\",'effRT Support'!$T68)","v":""},{"$f":"IF('effRT Support'!$B68=0,\"\",\"Fuel Type\")","v":""},{"$f":"IF('effRT Support'!$B68=0,\"\",'Project Information'!$D$44)","v":""}]
[{"$f":"IF('effRT Support'!$B69=0,\"\",IF('Project Information'!$D$33=\"Small Business\",\"SBL\",\"CILS\"))","v":""},{"$f":"IF('effRT Support'!$B69=0,\"\",IF('Project Information'!$K$2=\"\",\"\",'Project Information'!$K$2))","v":""},null,{"$f":"IF('effRT Support'!$B69=0,\"\",IF('Project Information'!$D$46=\"\",\"\",'Project Information'!$D$46))","v":""},{"$f":"IF('effRT Support'!$B69=0,\"\",IF('Project Information'!$D$20=\"\",\"\",VLOOKUP('Project Information'!$D$20,'Other Data'!$B$159:$E$189,4,FALSE)))","v":""},{"$f":"IF('effRT Support'!$B69=0,\"\",IF('Project Information'!$D$31=\"\",\"\",'Project Information'!$D$31))","v":""},{"$f":"IF('effRT Support'!$B69=0,\"\",IF('Project Information'!$D$5=\"\",\"\",'Project Information'!$D$5))","v":""},null,null,{"$f":"IF('effRT Support'!$B69=0,\"\",IF('Project Information'!$D$20=\"\",\"\",VLOOKUP('Project Information'!$D$20,'Other Data'!$B$159:$E$189,2,FALSE)))","v":""},{"$f":"IF('effRT Support'!$B69=0,\"\",IF('Project Information'!$D$20=\"\",\"\",VLOOKUP('Project Information'!$D$20,'Other Data'!$B$159:$E$189,3,FALSE)))","v":""},{"$f":"IF('effRT Support'!$B69=0,\"\",\"Existing\")","v":""},null,{"$f":"IF('effRT Support'!$B69=0,\"\",IF('Project Information'!$D$21=\"\",\"\",'Project Information'!$D$21))","v":""},{"$f":"IF('effRT Support'!$B69=0,\"\",IF('Project Information'!$D$48=\"\",\"\",'Project Information'!$D$48))","v":""},{"$f":"IF('effRT Support'!$B69=0,\"\",\"\")","v":""},{"$f":"IF('effRT Support'!$B69=0,\"\",\"\")","v":""},{"$f":"IF('effRT Support'!$B69=0,\"\",\"\")","v":""},{"$f":"IF('effRT Support'!$B69=0,\"\",\"\")","v":""},{"$f":"IF('effRT Support'!$B69=0,\"\",IF('Project Information'!$D$13=\"\",\"\",'Project Information'!$D$13))","v":""},{"$f":"IF('effRT Support'!$B69=0,\"\",IF('Project Information'!$E$13=\"\",\"\",'Project Information'!$E$13))","v":""},{"$f":"IF('effRT Support'!$B69=0,\"\",IF('Project Information'!$D$14=\"\",\"\",'Project Information'!$D$14))","v":""},{"$f":"IF('effRT Support'!$B69=0,\"\",IF('Project Information'!$D$15=\"\",\"\",'Project Information'!$D$15))","v":""},{"$f":"IF('effRT Support'!$B69=0,\"\",IF('Project Information'!$D$16=\"\",\"\",'Project Information'!$D$16))","v":""},null,{"$f":"IF('effRT Support'!$B69=0,\"\",'Project Information'!$D$18)","v":""},{"$f":"IF('effRT Support'!$B69=0,\"\",IF('Project Information'!$D$23=\"\",\"\",'Project Information'!$D$23))","v":""},{"$f":"IF('effRT Support'!$B69=0,\"\",IF('Project Information'!$D$24=\"\",\"\",'Project Information'!$D$24))","v":""},{"$f":"IF('effRT Support'!$B69=0,\"\",IF('Project Information'!$D$25=\"\",\"\",'Project Information'!$D$25))","v":""},{"$f":"IF('effRT Support'!$B69=0,\"\",IF('Project Information'!$E$25=\"\",\"\",'Project Information'!$E$25))","v":""},{"$f":"IF('effRT Support'!$B69=0,\"\",IF('Project Information'!$F$25=\"\",\"\",'Project Information'!$F$25))","v":""},{"$f":"IF('effRT Support'!$B69=0,\"\",IF('Project Information'!$D$27=\"\",\"Y\",\"N\"))","v":""},{"$f":"IF('effRT Support'!$B69=0,\"\",IF('Project Information'!$D$27=\"\",\"\",'Project Information'!$D$27))","v":""},{"$f":"IF('effRT Support'!$B69=0,\"\",IF('Project Information'!$D$28=\"\",\"\",'Project Information'!$D$28))","v":""},{"$f":"IF('effRT Support'!$B69=0,\"\",IF('Project Information'!$D$29=\"\",\"\",'Project Information'!$D$29))","v":""},{"$f":"IF('effRT Support'!$B69=0,\"\",IF('Project Information'!$E$29=\"\",\"\",'Project Information'!$E$29))","v":""},{"$f":"IF('effRT Support'!$B69=0,\"\",IF('Project Information'!$F$29=\"\",\"\",'Project Information'!$F$29))","v":""},{"$f":"IF('effRT Support'!$B69=0,\"\",\"\")","v":""},{"$f":"IF('effRT Support'!$B69=0,\"\",\"\")","v":""},{"$f":"IF('effRT Support'!$B69=0,\"\",IF('Project Information'!$D$36=\"\",\"\",'Project Information'!$D$36))","v":""},{"$f":"IF('effRT Support'!$B69=0,\"\",IF('Project Information'!$D$42=\"\",\"\",'Project Information'!$D$42))","v":""},{"$f":"IF('effRT Support'!$B69=0,\"\",'effRT Support'!$D69)","v":""},{"$f":"IF('effRT Support'!$B69=0,\"\",'effRT Support'!$L69)","v":""},{"$f":"IF('effRT Support'!$B69=0,\"\",'effRT Support'!$N69)","v":""},null,null,{"$f":"IF('effRT Support'!$B69=0,\"\",'effRT Support'!$P69)","v":""},{"$f":"IF('effRT Support'!$B69=0,\"\",'effRT Support'!$Q69)","v":""},{"$f":"IF('effRT Support'!$B69=0,\"\",'effRT Support'!U69)","v":""},{"$f":"IF('effRT Support'!$B69=0,\"\",'effRT Support'!V69)","v":""},{"$f":"IF('effRT Support'!$B69=0,\"\",'effRT Support'!W69)","v":""},{"$f":"IF('effRT Support'!$B69=0,\"\",'effRT Support'!X69)","v":""},{"$f":"IF('effRT Support'!$B69=0,\"\",'effRT Support'!Y69)","v":""},{"$f":"IF('effRT Support'!$B69=0,\"\",'effRT Support'!Z69*10)","v":""},{"$f":"IF('effRT Support'!$B69=0,\"\",'effRT Support'!AA69)","v":""},{"$f":"IF('effRT Support'!$B69=0,\"\",'effRT Support'!AB69)","v":""},{"$f":"IF('effRT Support'!$B69=0,\"\",'effRT Support'!AC69)","v":""},{"$f":"IF('effRT Support'!$B69=0,\"\",'effRT Support'!AD69)","v":""},{"$f":"IF('effRT Support'!$B69=0,\"\",'effRT Support'!AE69)","v":""},{"$f":"IF('effRT Support'!$B69=0,\"\",\"Hours Actual or Deemed\")","v":""},{"$f":"IF('effRT Support'!$B69=0,\"\",'effRT Support'!$F69)","v":""},{"$f":"IF('effRT Support'!$B69=0,\"\",\"Wattage Actual or Deemed\")","v":""},{"$f":"IF('effRT Support'!$B69=0,\"\",IF('Project Information'!$D$33=\"Pay For Performance\",\"Actual\",\"Deemed\"))","v":""},{"$f":"IF('effRT Support'!$B69=0,\"\",\"Cost Actual or Deemed\")","v":""},{"$f":"IF('effRT Support'!$B69=0,\"\",IF('Project Information'!$D$33=\"Pay For Performance\",\"Actual\",\"Deemed\"))","v":""},{"$f":"IF('effRT Support'!$B69=0,\"\",\"Location\")","v":""},{"$f":"IF('effRT Support'!$B69=0,\"\",'effRT Support'!$E69)","v":""},{"$f":"IF('effRT Support'!$B69=0,\"\",\"Space Type\")","v":""},{"$f":"IF('effRT Support'!$B69=0,\"\",'effRT Support'!$G69)","v":""},{"$f":"IF('effRT Support'!$B69=0,\"\",\"Existing Fixture Description\")","v":""},{"$f":"IF('effRT Support'!$B69=0,\"\",'effRT Support'!$H69)","v":""},{"$f":"IF('effRT Support'!$B69=0,\"\",\"Existing Fixture Quantity\")","v":""},{"$f":"IF('effRT Support'!$B69=0,\"\",'effRT Support'!$I69)","v":""},{"$f":"IF('effRT Support'!$B69=0,\"\",\"Existing Fixture Wattage\")","v":""},{"$f":"IF('effRT Support'!$B69=0,\"\",'effRT Support'!$J69)","v":""},{"$f":"IF('effRT Support'!$B69=0,\"\",\"Annual Hours of Operation\")","v":""},{"$f":"IF('effRT Support'!$B69=0,\"\",'effRT Support'!$K69)","v":""},{"$f":"IF('effRT Support'!$B69=0,\"\",\"Installed Fixture Description\")","v":""},{"$f":"IF('effRT Support'!$B69=0,\"\",'effRT Support'!$M69)","v":""},{"$f":"IF('effRT Support'!$B69=0,\"\",\"Installed Fixture Wattage\")","v":""},{"$f":"IF('effRT Support'!$B69=0,\"\",'effRT Support'!$O69)","v":""},{"$f":"IF('effRT Support'!$B69=0,\"\",\"Material Cost\")","v":""},{"$f":"IF('effRT Support'!$B69=0,\"\",'effRT Support'!$R69)","v":""},{"$f":"IF('effRT Support'!$B69=0,\"\",\"Labor Cost\")","v":""},{"$f":"IF('effRT Support'!$B69=0,\"\",'effRT Support'!$S69)","v":""},{"$f":"IF('effRT Support'!$B69=0,\"\",\"Ancillary Costs - Measure Specific\")","v":""},{"$f":"IF('effRT Support'!$B69=0,\"\",'effRT Support'!$T69)","v":""},{"$f":"IF('effRT Support'!$B69=0,\"\",\"Fuel Type\")","v":""},{"$f":"IF('effRT Support'!$B69=0,\"\",'Project Information'!$D$44)","v":""},{"$f":"IF('effRT Support'!$B69=0,\"\",\"Installed Fixture Quantity\")","v":""},{"$f":"IF('effRT Support'!$B69=0,\"\",'effRT Support'!P68)","v":""}]
[{"$f":"IF('effRT Support'!$B70=0,\"\",IF('Project Information'!$D$33=\"Small Business\",\"SBL\",\"CILS\"))","v":""},{"$f":"IF('effRT Support'!$B70=0,\"\",IF('Project Information'!$K$2=\"\",\"\",'Project Information'!$K$2))","v":""},null,{"$f":"IF('effRT Support'!$B70=0,\"\",IF('Project Information'!$D$46=\"\",\"\",'Project Information'!$D$46))","v":""},{"$f":"IF('effRT Support'!$B70=0,\"\",IF('Project Information'!$D$20=\"\",\"\",VLOOKUP('Project Information'!$D$20,'Other Data'!$B$159:$E$189,4,FALSE)))","v":""},{"$f":"IF('effRT Support'!$B70=0,\"\",IF('Project Information'!$D$31=\"\",\"\",'Project Information'!$D$31))","v":""},{"$f":"IF('effRT Support'!$B70=0,\"\",IF('Project Information'!$D$5=\"\",\"\",'Project Information'!$D$5))","v":""},null,null,{"$f":"IF('effRT Support'!$B70=0,\"\",IF('Project Information'!$D$20=\"\",\"\",VLOOKUP('Project Information'!$D$20,'Other Data'!$B$159:$E$189,2,FALSE)))","v":""},{"$f":"IF('effRT Support'!$B70=0,\"\",IF('Project Information'!$D$20=\"\",\"\",VLOOKUP('Project Information'!$D$20,'Other Data'!$B$159:$E$189,3,FALSE)))","v":""},{"$f":"IF('effRT Support'!$B70=0,\"\",\"Existing\")","v":""},null,{"$f":"IF('effRT Support'!$B70=0,\"\",IF('Project Information'!$D$21=\"\",\"\",'Project Information'!$D$21))","v":""},{"$f":"IF('effRT Support'!$B70=0,\"\",IF('Project Information'!$D$48=\"\",\"\",'Project Information'!$D$48))","v":""},{"$f":"IF('effRT Support'!$B70=0,\"\",\"\")","v":""},{"$f":"IF('effRT Support'!$B70=0,\"\",\"\")","v":""},{"$f":"IF('effRT Support'!$B70=0,\"\",\"\")","v":""},{"$f":"IF('effRT Support'!$B70=0,\"\",\"\")","v":""},{"$f":"IF('effRT Support'!$B70=0,\"\",IF('Project Information'!$D$13=\"\",\"\",'Project Information'!$D$13))","v":""},{"$f":"IF('effRT Support'!$B70=0,\"\",IF('Project Information'!$E$13=\"\",\"\",'Project Information'!$E$13))","v":""},{"$f":"IF('effRT Support'!$B70=0,\"\",IF('Project Information'!$D$14=\"\",\"\",'Project Information'!$D$14))","v":""},{"$f":"IF('effRT Support'!$B70=0,\"\",IF('Project Information'!$D$15=\"\",\"\",'Project Information'!$D$15))","v":""},{"$f":"IF('effRT Support'!$B70=0,\"\",IF('Project Information'!$D$16=\"\",\"\",'Project Information'!$D$16))","v":""},null,{"$f":"IF('effRT Support'!$B70=0,\"\",'Project Information'!$D$18)","v":""},{"$f":"IF('effRT Support'!$B70=0,\"\",IF('Project Information'!$D$23=\"\",\"\",'Project Information'!$D$23))","v":""},{"$f":"IF('effRT Support'!$B70=0,\"\",IF('Project Information'!$D$24=\"\",\"\",'Project Information'!$D$24))","v":""},{"$f":"IF('effRT Support'!$B70=0,\"\",IF('Project Information'!$D$25=\"\",\"\",'Project Information'!$D$25))","v":""},{"$f":"IF('effRT Support'!$B70=0,\"\",IF('Project Information'!$E$25=\"\",\"\",'Project Information'!$E$25))","v":""},{"$f":"IF('effRT Support'!$B70=0,\"\",IF('Project Information'!$F$25=\"\",\"\",'Project Information'!$F$25))","v":""},{"$f":"IF('effRT Support'!$B70=0,\"\",IF('Project Information'!$D$27=\"\",\"Y\",\"N\"))","v":""},{"$f":"IF('effRT Support'!$B70=0,\"\",IF('Project Information'!$D$27=\"\",\"\",'Project Information'!$D$27))","v":""},{"$f":"IF('effRT Support'!$B70=0,\"\",IF('Project Information'!$D$28=\"\",\"\",'Project Information'!$D$28))","v":""},{"$f":"IF('effRT Support'!$B70=0,\"\",IF('Project Information'!$D$29=\"\",\"\",'Project Information'!$D$29))","v":""},{"$f":"IF('effRT Support'!$B70=0,\"\",IF('Project Information'!$E$29=\"\",\"\",'Project Information'!$E$29))","v":""},{"$f":"IF('effRT Support'!$B70=0,\"\",IF('Project Information'!$F$29=\"\",\"\",'Project Information'!$F$29))","v":""},{"$f":"IF('effRT Support'!$B70=0,\"\",\"\")","v":""},{"$f":"IF('effRT Support'!$B70=0,\"\",\"\")","v":""},{"$f":"IF('effRT Support'!$B70=0,\"\",IF('Project Information'!$D$36=\"\",\"\",'Project Information'!$D$36))","v":""},{"$f":"IF('effRT Support'!$B70=0,\"\",IF('Project Information'!$D$42=\"\",\"\",'Project Information'!$D$42))","v":""},{"$f":"IF('effRT Support'!$B70=0,\"\",'effRT Support'!$D70)","v":""},{"$f":"IF('effRT Support'!$B70=0,\"\",'effRT Support'!$L70)","v":""},{"$f":"IF('effRT Support'!$B70=0,\"\",'effRT Support'!$N70)","v":""},null,null,{"$f":"IF('effRT Support'!$B70=0,\"\",'effRT Support'!$P70)","v":""},{"$f":"IF('effRT Support'!$B70=0,\"\",'effRT Support'!$Q70)","v":""},{"$f":"IF('effRT Support'!$B70=0,\"\",'effRT Support'!U70)","v":""},{"$f":"IF('effRT Support'!$B70=0,\"\",'effRT Support'!V70)","v":""},{"$f":"IF('effRT Support'!$B70=0,\"\",'effRT Support'!W70)","v":""},{"$f":"IF('effRT Support'!$B70=0,\"\",'effRT Support'!X70)","v":""},{"$f":"IF('effRT Support'!$B70=0,\"\",'effRT Support'!Y70)","v":""},{"$f":"IF('effRT Support'!$B70=0,\"\",'effRT Support'!Z70*10)","v":""},{"$f":"IF('effRT Support'!$B70=0,\"\",'effRT Support'!AA70)","v":""},{"$f":"IF('effRT Support'!$B70=0,\"\",'effRT Support'!AB70)","v":""},{"$f":"IF('effRT Support'!$B70=0,\"\",'effRT Support'!AC70)","v":""},{"$f":"IF('effRT Support'!$B70=0,\"\",'effRT Support'!AD70)","v":""},{"$f":"IF('effRT Support'!$B70=0,\"\",'effRT Support'!AE70)","v":""},{"$f":"IF('effRT Support'!$B70=0,\"\",\"Hours Actual or Deemed\")","v":""},{"$f":"IF('effRT Support'!$B70=0,\"\",'effRT Support'!$F70)","v":""},{"$f":"IF('effRT Support'!$B70=0,\"\",\"Wattage Actual or Deemed\")","v":""},{"$f":"IF('effRT Support'!$B70=0,\"\",IF('Project Information'!$D$33=\"Pay For Performance\",\"Actual\",\"Deemed\"))","v":""},{"$f":"IF('effRT Support'!$B70=0,\"\",\"Cost Actual or Deemed\")","v":""},{"$f":"IF('effRT Support'!$B70=0,\"\",IF('Project Information'!$D$33=\"Pay For Performance\",\"Actual\",\"Deemed\"))","v":""},{"$f":"IF('effRT Support'!$B70=0,\"\",\"Location\")","v":""},{"$f":"IF('effRT Support'!$B70=0,\"\",'effRT Support'!$E70)","v":""},{"$f":"IF('effRT Support'!$B70=0,\"\",\"Space Type\")","v":""},{"$f":"IF('effRT Support'!$B70=0,\"\",'effRT Support'!$G70)","v":""},{"$f":"IF('effRT Support'!$B70=0,\"\",\"Existing Fixture Description\")","v":""},{"$f":"IF('effRT Support'!$B70=0,\"\",'effRT Support'!$H70)","v":""},{"$f":"IF('effRT Support'!$B70=0,\"\",\"Existing Fixture Quantity\")","v":""},{"$f":"IF('effRT Support'!$B70=0,\"\",'effRT Support'!$I70)","v":""},{"$f":"IF('effRT Support'!$B70=0,\"\",\"Existing Fixture Wattage\")","v":""},{"$f":"IF('effRT Support'!$B70=0,\"\",'effRT Support'!$J70)","v":""},{"$f":"IF('effRT Support'!$B70=0,\"\",\"Annual Hours of Operation\")","v":""},{"$f":"IF('effRT Support'!$B70=0,\"\",'effRT Support'!$K70)","v":""},{"$f":"IF('effRT Support'!$B70=0,\"\",\"Installed Fixture Description\")","v":""},{"$f":"IF('effRT Support'!$B70=0,\"\",'effRT Support'!$M70)","v":""},{"$f":"IF('effRT Support'!$B70=0,\"\",\"Installed Fixture Wattage\")","v":""},{"$f":"IF('effRT Support'!$B70=0,\"\",'effRT Support'!$O70)","v":""},{"$f":"IF('effRT Support'!$B70=0,\"\",\"Material Cost\")","v":""},{"$f":"IF('effRT Support'!$B70=0,\"\",'effRT Support'!$R70)","v":""},{"$f":"IF('effRT Support'!$B70=0,\"\",\"Labor Cost\")","v":""},{"$f":"IF('effRT Support'!$B70=0,\"\",'effRT Support'!$S70)","v":""},{"$f":"IF('effRT Support'!$B70=0,\"\",\"Ancillary Costs - Measure Specific\")","v":""},{"$f":"IF('effRT Support'!$B70=0,\"\",'effRT Support'!$T70)","v":""},{"$f":"IF('effRT Support'!$B70=0,\"\",\"Fuel Type\")","v":""},{"$f":"IF('effRT Support'!$B70=0,\"\",'Project Information'!$D$44)","v":""}]
[{"$f":"IF('effRT Support'!$B71=0,\"\",IF('Project Information'!$D$33=\"Small Business\",\"SBL\",\"CILS\"))","v":""},{"$f":"IF('effRT Support'!$B71=0,\"\",IF('Project Information'!$K$2=\"\",\"\",'Project Information'!$K$2))","v":""},null,{"$f":"IF('effRT Support'!$B71=0,\"\",IF('Project Information'!$D$46=\"\",\"\",'Project Information'!$D$46))","v":""},{"$f":"IF('effRT Support'!$B71=0,\"\",IF('Project Information'!$D$20=\"\",\"\",VLOOKUP('Project Information'!$D$20,'Other Data'!$B$159:$E$189,4,FALSE)))","v":""},{"$f":"IF('effRT Support'!$B71=0,\"\",IF('Project Information'!$D$31=\"\",\"\",'Project Information'!$D$31))","v":""},{"$f":"IF('effRT Support'!$B71=0,\"\",IF('Project Information'!$D$5=\"\",\"\",'Project Information'!$D$5))","v":""},null,null,{"$f":"IF('effRT Support'!$B71=0,\"\",IF('Project Information'!$D$20=\"\",\"\",VLOOKUP('Project Information'!$D$20,'Other Data'!$B$159:$E$189,2,FALSE)))","v":""},{"$f":"IF('effRT Support'!$B71=0,\"\",IF('Project Information'!$D$20=\"\",\"\",VLOOKUP('Project Information'!$D$20,'Other Data'!$B$159:$E$189,3,FALSE)))","v":""},{"$f":"IF('effRT Support'!$B71=0,\"\",\"Existing\")","v":""},null,{"$f":"IF('effRT Support'!$B71=0,\"\",IF('Project Information'!$D$21=\"\",\"\",'Project Information'!$D$21))","v":""},{"$f":"IF('effRT Support'!$B71=0,\"\",IF('Project Information'!$D$48=\"\",\"\",'Project Information'!$D$48))","v":""},{"$f":"IF('effRT Support'!$B71=0,\"\",\"\")","v":""},{"$f":"IF('effRT Support'!$B71=0,\"\",\"\")","v":""},{"$f":"IF('effRT Support'!$B71=0,\"\",\"\")","v":""},{"$f":"IF('effRT Support'!$B71=0,\"\",\"\")","v":""},{"$f":"IF('effRT Support'!$B71=0,\"\",IF('Project Information'!$D$13=\"\",\"\",'Project Information'!$D$13))","v":""},{"$f":"IF('effRT Support'!$B71=0,\"\",IF('Project Information'!$E$13=\"\",\"\",'Project Information'!$E$13))","v":""},{"$f":"IF('effRT Support'!$B71=0,\"\",IF('Project Information'!$D$14=\"\",\"\",'Project Information'!$D$14))","v":""},{"$f":"IF('effRT Support'!$B71=0,\"\",IF('Project Information'!$D$15=\"\",\"\",'Project Information'!$D$15))","v":""},{"$f":"IF('effRT Support'!$B71=0,\"\",IF('Project Information'!$D$16=\"\",\"\",'Project Information'!$D$16))","v":""},null,{"$f":"IF('effRT Support'!$B71=0,\"\",'Project Information'!$D$18)","v":""},{"$f":"IF('effRT Support'!$B71=0,\"\",IF('Project Information'!$D$23=\"\",\"\",'Project Information'!$D$23))","v":""},{"$f":"IF('effRT Support'!$B71=0,\"\",IF('Project Information'!$D$24=\"\",\"\",'Project Information'!$D$24))","v":""},{"$f":"IF('effRT Support'!$B71=0,\"\",IF('Project Information'!$D$25=\"\",\"\",'Project Information'!$D$25))","v":""},{"$f":"IF('effRT Support'!$B71=0,\"\",IF('Project Information'!$E$25=\"\",\"\",'Project Information'!$E$25))","v":""},{"$f":"IF('effRT Support'!$B71=0,\"\",IF('Project Information'!$F$25=\"\",\"\",'Project Information'!$F$25))","v":""},{"$f":"IF('effRT Support'!$B71=0,\"\",IF('Project Information'!$D$27=\"\",\"Y\",\"N\"))","v":""},{"$f":"IF('effRT Support'!$B71=0,\"\",IF('Project Information'!$D$27=\"\",\"\",'Project Information'!$D$27))","v":""},{"$f":"IF('effRT Support'!$B71=0,\"\",IF('Project Information'!$D$28=\"\",\"\",'Project Information'!$D$28))","v":""},{"$f":"IF('effRT Support'!$B71=0,\"\",IF('Project Information'!$D$29=\"\",\"\",'Project Information'!$D$29))","v":""},{"$f":"IF('effRT Support'!$B71=0,\"\",IF('Project Information'!$E$29=\"\",\"\",'Project Information'!$E$29))","v":""},{"$f":"IF('effRT Support'!$B71=0,\"\",IF('Project Information'!$F$29=\"\",\"\",'Project Information'!$F$29))","v":""},{"$f":"IF('effRT Support'!$B71=0,\"\",\"\")","v":""},{"$f":"IF('effRT Support'!$B71=0,\"\",\"\")","v":""},{"$f":"IF('effRT Support'!$B71=0,\"\",IF('Project Information'!$D$36=\"\",\"\",'Project Information'!$D$36))","v":""},{"$f":"IF('effRT Support'!$B71=0,\"\",IF('Project Information'!$D$42=\"\",\"\",'Project Information'!$D$42))","v":""},{"$f":"IF('effRT Support'!$B71=0,\"\",'effRT Support'!$D71)","v":""},{"$f":"IF('effRT Support'!$B71=0,\"\",'effRT Support'!$L71)","v":""},{"$f":"IF('effRT Support'!$B71=0,\"\",'effRT Support'!$N71)","v":""},null,null,{"$f":"IF('effRT Support'!$B71=0,\"\",'effRT Support'!$P71)","v":""},{"$f":"IF('effRT Support'!$B71=0,\"\",'effRT Support'!$Q71)","v":""},{"$f":"IF('effRT Support'!$B71=0,\"\",'effRT Support'!U71)","v":""},{"$f":"IF('effRT Support'!$B71=0,\"\",'effRT Support'!V71)","v":""},{"$f":"IF('effRT Support'!$B71=0,\"\",'effRT Support'!W71)","v":""},{"$f":"IF('effRT Support'!$B71=0,\"\",'effRT Support'!X71)","v":""},{"$f":"IF('effRT Support'!$B71=0,\"\",'effRT Support'!Y71)","v":""},{"$f":"IF('effRT Support'!$B71=0,\"\",'effRT Support'!Z71*10)","v":""},{"$f":"IF('effRT Support'!$B71=0,\"\",'effRT Support'!AA71)","v":""},{"$f":"IF('effRT Support'!$B71=0,\"\",'effRT Support'!AB71)","v":""},{"$f":"IF('effRT Support'!$B71=0,\"\",'effRT Support'!AC71)","v":""},{"$f":"IF('effRT Support'!$B71=0,\"\",'effRT Support'!AD71)","v":""},{"$f":"IF('effRT Support'!$B71=0,\"\",'effRT Support'!AE71)","v":""},{"$f":"IF('effRT Support'!$B71=0,\"\",\"Hours Actual or Deemed\")","v":""},{"$f":"IF('effRT Support'!$B71=0,\"\",'effRT Support'!$F71)","v":""},{"$f":"IF('effRT Support'!$B71=0,\"\",\"Wattage Actual or Deemed\")","v":""},{"$f":"IF('effRT Support'!$B71=0,\"\",IF('Project Information'!$D$33=\"Pay For Performance\",\"Actual\",\"Deemed\"))","v":""},{"$f":"IF('effRT Support'!$B71=0,\"\",\"Cost Actual or Deemed\")","v":""},{"$f":"IF('effRT Support'!$B71=0,\"\",IF('Project Information'!$D$33=\"Pay For Performance\",\"Actual\",\"Deemed\"))","v":""},{"$f":"IF('effRT Support'!$B71=0,\"\",\"Location\")","v":""},{"$f":"IF('effRT Support'!$B71=0,\"\",'effRT Support'!$E71)","v":""},{"$f":"IF('effRT Support'!$B71=0,\"\",\"Space Type\")","v":""},{"$f":"IF('effRT Support'!$B71=0,\"\",'effRT Support'!$G71)","v":""},{"$f":"IF('effRT Support'!$B71=0,\"\",\"Existing Fixture Description\")","v":""},{"$f":"IF('effRT Support'!$B71=0,\"\",'effRT Support'!$H71)","v":""},{"$f":"IF('effRT Support'!$B71=0,\"\",\"Existing Fixture Quantity\")","v":""},{"$f":"IF('effRT Support'!$B71=0,\"\",'effRT Support'!$I71)","v":""},{"$f":"IF('effRT Support'!$B71=0,\"\",\"Existing Fixture Wattage\")","v":""},{"$f":"IF('effRT Support'!$B71=0,\"\",'effRT Support'!$J71)","v":""},{"$f":"IF('effRT Support'!$B71=0,\"\",\"Annual Hours of Operation\")","v":""},{"$f":"IF('effRT Support'!$B71=0,\"\",'effRT Support'!$K71)","v":""},{"$f":"IF('effRT Support'!$B71=0,\"\",\"Installed Fixture Description\")","v":""},{"$f":"IF('effRT Support'!$B71=0,\"\",'effRT Support'!$M71)","v":""},{"$f":"IF('effRT Support'!$B71=0,\"\",\"Installed Fixture Wattage\")","v":""},{"$f":"IF('effRT Support'!$B71=0,\"\",'effRT Support'!$O71)","v":""},{"$f":"IF('effRT Support'!$B71=0,\"\",\"Material Cost\")","v":""},{"$f":"IF('effRT Support'!$B71=0,\"\",'effRT Support'!$R71)","v":""},{"$f":"IF('effRT Support'!$B71=0,\"\",\"Labor Cost\")","v":""},{"$f":"IF('effRT Support'!$B71=0,\"\",'effRT Support'!$S71)","v":""},{"$f":"IF('effRT Support'!$B71=0,\"\",\"Ancillary Costs - Measure Specific\")","v":""},{"$f":"IF('effRT Support'!$B71=0,\"\",'effRT Support'!$T71)","v":""},{"$f":"IF('effRT Support'!$B71=0,\"\",\"Fuel Type\")","v":""},{"$f":"IF('effRT Support'!$B71=0,\"\",'Project Information'!$D$44)","v":""},{"$f":"IF('effRT Support'!$B71=0,\"\",\"Installed Fixture Quantity\")","v":""},{"$f":"IF('effRT Support'!$B71=0,\"\",'effRT Support'!P70)","v":""}]
[{"$f":"IF('effRT Support'!$B72=0,\"\",IF('Project Information'!$D$33=\"Small Business\",\"SBL\",\"CILS\"))","v":""},{"$f":"IF('effRT Support'!$B72=0,\"\",IF('Project Information'!$K$2=\"\",\"\",'Project Information'!$K$2))","v":""},null,{"$f":"IF('effRT Support'!$B72=0,\"\",IF('Project Information'!$D$46=\"\",\"\",'Project Information'!$D$46))","v":""},{"$f":"IF('effRT Support'!$B72=0,\"\",IF('Project Information'!$D$20=\"\",\"\",VLOOKUP('Project Information'!$D$20,'Other Data'!$B$159:$E$189,4,FALSE)))","v":""},{"$f":"IF('effRT Support'!$B72=0,\"\",IF('Project Information'!$D$31=\"\",\"\",'Project Information'!$D$31))","v":""},{"$f":"IF('effRT Support'!$B72=0,\"\",IF('Project Information'!$D$5=\"\",\"\",'Project Information'!$D$5))","v":""},null,null,{"$f":"IF('effRT Support'!$B72=0,\"\",IF('Project Information'!$D$20=\"\",\"\",VLOOKUP('Project Information'!$D$20,'Other Data'!$B$159:$E$189,2,FALSE)))","v":""},{"$f":"IF('effRT Support'!$B72=0,\"\",IF('Project Information'!$D$20=\"\",\"\",VLOOKUP('Project Information'!$D$20,'Other Data'!$B$159:$E$189,3,FALSE)))","v":""},{"$f":"IF('effRT Support'!$B72=0,\"\",\"Existing\")","v":""},null,{"$f":"IF('effRT Support'!$B72=0,\"\",IF('Project Information'!$D$21=\"\",\"\",'Project Information'!$D$21))","v":""},{"$f":"IF('effRT Support'!$B72=0,\"\",IF('Project Information'!$D$48=\"\",\"\",'Project Information'!$D$48))","v":""},{"$f":"IF('effRT Support'!$B72=0,\"\",\"\")","v":""},{"$f":"IF('effRT Support'!$B72=0,\"\",\"\")","v":""},{"$f":"IF('effRT Support'!$B72=0,\"\",\"\")","v":""},{"$f":"IF('effRT Support'!$B72=0,\"\",\"\")","v":""},{"$f":"IF('effRT Support'!$B72=0,\"\",IF('Project Information'!$D$13=\"\",\"\",'Project Information'!$D$13))","v":""},{"$f":"IF('effRT Support'!$B72=0,\"\",IF('Project Information'!$E$13=\"\",\"\",'Project Information'!$E$13))","v":""},{"$f":"IF('effRT Support'!$B72=0,\"\",IF('Project Information'!$D$14=\"\",\"\",'Project Information'!$D$14))","v":""},{"$f":"IF('effRT Support'!$B72=0,\"\",IF('Project Information'!$D$15=\"\",\"\",'Project Information'!$D$15))","v":""},{"$f":"IF('effRT Support'!$B72=0,\"\",IF('Project Information'!$D$16=\"\",\"\",'Project Information'!$D$16))","v":""},null,{"$f":"IF('effRT Support'!$B72=0,\"\",'Project Information'!$D$18)","v":""},{"$f":"IF('effRT Support'!$B72=0,\"\",IF('Project Information'!$D$23=\"\",\"\",'Project Information'!$D$23))","v":""},{"$f":"IF('effRT Support'!$B72=0,\"\",IF('Project Information'!$D$24=\"\",\"\",'Project Information'!$D$24))","v":""},{"$f":"IF('effRT Support'!$B72=0,\"\",IF('Project Information'!$D$25=\"\",\"\",'Project Information'!$D$25))","v":""},{"$f":"IF('effRT Support'!$B72=0,\"\",IF('Project Information'!$E$25=\"\",\"\",'Project Information'!$E$25))","v":""},{"$f":"IF('effRT Support'!$B72=0,\"\",IF('Project Information'!$F$25=\"\",\"\",'Project Information'!$F$25))","v":""},{"$f":"IF('effRT Support'!$B72=0,\"\",IF('Project Information'!$D$27=\"\",\"Y\",\"N\"))","v":""},{"$f":"IF('effRT Support'!$B72=0,\"\",IF('Project Information'!$D$27=\"\",\"\",'Project Information'!$D$27))","v":""},{"$f":"IF('effRT Support'!$B72=0,\"\",IF('Project Information'!$D$28=\"\",\"\",'Project Information'!$D$28))","v":""},{"$f":"IF('effRT Support'!$B72=0,\"\",IF('Project Information'!$D$29=\"\",\"\",'Project Information'!$D$29))","v":""},{"$f":"IF('effRT Support'!$B72=0,\"\",IF('Project Information'!$E$29=\"\",\"\",'Project Information'!$E$29))","v":""},{"$f":"IF('effRT Support'!$B72=0,\"\",IF('Project Information'!$F$29=\"\",\"\",'Project Information'!$F$29))","v":""},{"$f":"IF('effRT Support'!$B72=0,\"\",\"\")","v":""},{"$f":"IF('effRT Support'!$B72=0,\"\",\"\")","v":""},{"$f":"IF('effRT Support'!$B72=0,\"\",IF('Project Information'!$D$36=\"\",\"\",'Project Information'!$D$36))","v":""},{"$f":"IF('effRT Support'!$B72=0,\"\",IF('Project Information'!$D$42=\"\",\"\",'Project Information'!$D$42))","v":""},{"$f":"IF('effRT Support'!$B72=0,\"\",'effRT Support'!$D72)","v":""},{"$f":"IF('effRT Support'!$B72=0,\"\",'effRT Support'!$L72)","v":""},{"$f":"IF('effRT Support'!$B72=0,\"\",'effRT Support'!$N72)","v":""},null,null,{"$f":"IF('effRT Support'!$B72=0,\"\",'effRT Support'!$P72)","v":""},{"$f":"IF('effRT Support'!$B72=0,\"\",'effRT Support'!$Q72)","v":""},{"$f":"IF('effRT Support'!$B72=0,\"\",'effRT Support'!U72)","v":""},{"$f":"IF('effRT Support'!$B72=0,\"\",'effRT Support'!V72)","v":""},{"$f":"IF('effRT Support'!$B72=0,\"\",'effRT Support'!W72)","v":""},{"$f":"IF('effRT Support'!$B72=0,\"\",'effRT Support'!X72)","v":""},{"$f":"IF('effRT Support'!$B72=0,\"\",'effRT Support'!Y72)","v":""},{"$f":"IF('effRT Support'!$B72=0,\"\",'effRT Support'!Z72*10)","v":""},{"$f":"IF('effRT Support'!$B72=0,\"\",'effRT Support'!AA72)","v":""},{"$f":"IF('effRT Support'!$B72=0,\"\",'effRT Support'!AB72)","v":""},{"$f":"IF('effRT Support'!$B72=0,\"\",'effRT Support'!AC72)","v":""},{"$f":"IF('effRT Support'!$B72=0,\"\",'effRT Support'!AD72)","v":""},{"$f":"IF('effRT Support'!$B72=0,\"\",'effRT Support'!AE72)","v":""},{"$f":"IF('effRT Support'!$B72=0,\"\",\"Hours Actual or Deemed\")","v":""},{"$f":"IF('effRT Support'!$B72=0,\"\",'effRT Support'!$F72)","v":""},{"$f":"IF('effRT Support'!$B72=0,\"\",\"Wattage Actual or Deemed\")","v":""},{"$f":"IF('effRT Support'!$B72=0,\"\",IF('Project Information'!$D$33=\"Pay For Performance\",\"Actual\",\"Deemed\"))","v":""},{"$f":"IF('effRT Support'!$B72=0,\"\",\"Cost Actual or Deemed\")","v":""},{"$f":"IF('effRT Support'!$B72=0,\"\",IF('Project Information'!$D$33=\"Pay For Performance\",\"Actual\",\"Deemed\"))","v":""},{"$f":"IF('effRT Support'!$B72=0,\"\",\"Location\")","v":""},{"$f":"IF('effRT Support'!$B72=0,\"\",'effRT Support'!$E72)","v":""},{"$f":"IF('effRT Support'!$B72=0,\"\",\"Space Type\")","v":""},{"$f":"IF('effRT Support'!$B72=0,\"\",'effRT Support'!$G72)","v":""},{"$f":"IF('effRT Support'!$B72=0,\"\",\"Existing Fixture Description\")","v":""},{"$f":"IF('effRT Support'!$B72=0,\"\",'effRT Support'!$H72)","v":""},{"$f":"IF('effRT Support'!$B72=0,\"\",\"Existing Fixture Quantity\")","v":""},{"$f":"IF('effRT Support'!$B72=0,\"\",'effRT Support'!$I72)","v":""},{"$f":"IF('effRT Support'!$B72=0,\"\",\"Existing Fixture Wattage\")","v":""},{"$f":"IF('effRT Support'!$B72=0,\"\",'effRT Support'!$J72)","v":""},{"$f":"IF('effRT Support'!$B72=0,\"\",\"Annual Hours of Operation\")","v":""},{"$f":"IF('effRT Support'!$B72=0,\"\",'effRT Support'!$K72)","v":""},{"$f":"IF('effRT Support'!$B72=0,\"\",\"Installed Fixture Description\")","v":""},{"$f":"IF('effRT Support'!$B72=0,\"\",'effRT Support'!$M72)","v":""},{"$f":"IF('effRT Support'!$B72=0,\"\",\"Installed Fixture Wattage\")","v":""},{"$f":"IF('effRT Support'!$B72=0,\"\",'effRT Support'!$O72)","v":""},{"$f":"IF('effRT Support'!$B72=0,\"\",\"Material Cost\")","v":""},{"$f":"IF('effRT Support'!$B72=0,\"\",'effRT Support'!$R72)","v":""},{"$f":"IF('effRT Support'!$B72=0,\"\",\"Labor Cost\")","v":""},{"$f":"IF('effRT Support'!$B72=0,\"\",'effRT Support'!$S72)","v":""},{"$f":"IF('effRT Support'!$B72=0,\"\",\"Ancillary Costs - Measure Specific\")","v":""},{"$f":"IF('effRT Support'!$B72=0,\"\",'effRT Support'!$T72)","v":""},{"$f":"IF('effRT Support'!$B72=0,\"\",\"Fuel Type\")","v":""},{"$f":"IF('effRT Support'!$B72=0,\"\",'Project Information'!$D$44)","v":""}]
[{"$f":"IF('effRT Support'!$B73=0,\"\",IF('Project Information'!$D$33=\"Small Business\",\"SBL\",\"CILS\"))","v":""},{"$f":"IF('effRT Support'!$B73=0,\"\",IF('Project Information'!$K$2=\"\",\"\",'Project Information'!$K$2))","v":""},null,{"$f":"IF('effRT Support'!$B73=0,\"\",IF('Project Information'!$D$46=\"\",\"\",'Project Information'!$D$46))","v":""},{"$f":"IF('effRT Support'!$B73=0,\"\",IF('Project Information'!$D$20=\"\",\"\",VLOOKUP('Project Information'!$D$20,'Other Data'!$B$159:$E$189,4,FALSE)))","v":""},{"$f":"IF('effRT Support'!$B73=0,\"\",IF('Project Information'!$D$31=\"\",\"\",'Project Information'!$D$31))","v":""},{"$f":"IF('effRT Support'!$B73=0,\"\",IF('Project Information'!$D$5=\"\",\"\",'Project Information'!$D$5))","v":""},null,null,{"$f":"IF('effRT Support'!$B73=0,\"\",IF('Project Information'!$D$20=\"\",\"\",VLOOKUP('Project Information'!$D$20,'Other Data'!$B$159:$E$189,2,FALSE)))","v":""},{"$f":"IF('effRT Support'!$B73=0,\"\",IF('Project Information'!$D$20=\"\",\"\",VLOOKUP('Project Information'!$D$20,'Other Data'!$B$159:$E$189,3,FALSE)))","v":""},{"$f":"IF('effRT Support'!$B73=0,\"\",\"Existing\")","v":""},null,{"$f":"IF('effRT Support'!$B73=0,\"\",IF('Project Information'!$D$21=\"\",\"\",'Project Information'!$D$21))","v":""},{"$f":"IF('effRT Support'!$B73=0,\"\",IF('Project Information'!$D$48=\"\",\"\",'Project Information'!$D$48))","v":""},{"$f":"IF('effRT Support'!$B73=0,\"\",\"\")","v":""},{"$f":"IF('effRT Support'!$B73=0,\"\",\"\")","v":""},{"$f":"IF('effRT Support'!$B73=0,\"\",\"\")","v":""},{"$f":"IF('effRT Support'!$B73=0,\"\",\"\")","v":""},{"$f":"IF('effRT Support'!$B73=0,\"\",IF('Project Information'!$D$13=\"\",\"\",'Project Information'!$D$13))","v":""},{"$f":"IF('effRT Support'!$B73=0,\"\",IF('Project Information'!$E$13=\"\",\"\",'Project Information'!$E$13))","v":""},{"$f":"IF('effRT Support'!$B73=0,\"\",IF('Project Information'!$D$14=\"\",\"\",'Project Information'!$D$14))","v":""},{"$f":"IF('effRT Support'!$B73=0,\"\",IF('Project Information'!$D$15=\"\",\"\",'Project Information'!$D$15))","v":""},{"$f":"IF('effRT Support'!$B73=0,\"\",IF('Project Information'!$D$16=\"\",\"\",'Project Information'!$D$16))","v":""},null,{"$f":"IF('effRT Support'!$B73=0,\"\",'Project Information'!$D$18)","v":""},{"$f":"IF('effRT Support'!$B73=0,\"\",IF('Project Information'!$D$23=\"\",\"\",'Project Information'!$D$23))","v":""},{"$f":"IF('effRT Support'!$B73=0,\"\",IF('Project Information'!$D$24=\"\",\"\",'Project Information'!$D$24))","v":""},{"$f":"IF('effRT Support'!$B73=0,\"\",IF('Project Information'!$D$25=\"\",\"\",'Project Information'!$D$25))","v":""},{"$f":"IF('effRT Support'!$B73=0,\"\",IF('Project Information'!$E$25=\"\",\"\",'Project Information'!$E$25))","v":""},{"$f":"IF('effRT Support'!$B73=0,\"\",IF('Project Information'!$F$25=\"\",\"\",'Project Information'!$F$25))","v":""},{"$f":"IF('effRT Support'!$B73=0,\"\",IF('Project Information'!$D$27=\"\",\"Y\",\"N\"))","v":""},{"$f":"IF('effRT Support'!$B73=0,\"\",IF('Project Information'!$D$27=\"\",\"\",'Project Information'!$D$27))","v":""},{"$f":"IF('effRT Support'!$B73=0,\"\",IF('Project Information'!$D$28=\"\",\"\",'Project Information'!$D$28))","v":""},{"$f":"IF('effRT Support'!$B73=0,\"\",IF('Project Information'!$D$29=\"\",\"\",'Project Information'!$D$29))","v":""},{"$f":"IF('effRT Support'!$B73=0,\"\",IF('Project Information'!$E$29=\"\",\"\",'Project Information'!$E$29))","v":""},{"$f":"IF('effRT Support'!$B73=0,\"\",IF('Project Information'!$F$29=\"\",\"\",'Project Information'!$F$29))","v":""},{"$f":"IF('effRT Support'!$B73=0,\"\",\"\")","v":""},{"$f":"IF('effRT Support'!$B73=0,\"\",\"\")","v":""},{"$f":"IF('effRT Support'!$B73=0,\"\",IF('Project Information'!$D$36=\"\",\"\",'Project Information'!$D$36))","v":""},{"$f":"IF('effRT Support'!$B73=0,\"\",IF('Project Information'!$D$42=\"\",\"\",'Project Information'!$D$42))","v":""},{"$f":"IF('effRT Support'!$B73=0,\"\",'effRT Support'!$D73)","v":""},{"$f":"IF('effRT Support'!$B73=0,\"\",'effRT Support'!$L73)","v":""},{"$f":"IF('effRT Support'!$B73=0,\"\",'effRT Support'!$N73)","v":""},null,null,{"$f":"IF('effRT Support'!$B73=0,\"\",'effRT Support'!$P73)","v":""},{"$f":"IF('effRT Support'!$B73=0,\"\",'effRT Support'!$Q73)","v":""},{"$f":"IF('effRT Support'!$B73=0,\"\",'effRT Support'!U73)","v":""},{"$f":"IF('effRT Support'!$B73=0,\"\",'effRT Support'!V73)","v":""},{"$f":"IF('effRT Support'!$B73=0,\"\",'effRT Support'!W73)","v":""},{"$f":"IF('effRT Support'!$B73=0,\"\",'effRT Support'!X73)","v":""},{"$f":"IF('effRT Support'!$B73=0,\"\",'effRT Support'!Y73)","v":""},{"$f":"IF('effRT Support'!$B73=0,\"\",'effRT Support'!Z73*10)","v":""},{"$f":"IF('effRT Support'!$B73=0,\"\",'effRT Support'!AA73)","v":""},{"$f":"IF('effRT Support'!$B73=0,\"\",'effRT Support'!AB73)","v":""},{"$f":"IF('effRT Support'!$B73=0,\"\",'effRT Support'!AC73)","v":""},{"$f":"IF('effRT Support'!$B73=0,\"\",'effRT Support'!AD73)","v":""},{"$f":"IF('effRT Support'!$B73=0,\"\",'effRT Support'!AE73)","v":""},{"$f":"IF('effRT Support'!$B73=0,\"\",\"Hours Actual or Deemed\")","v":""},{"$f":"IF('effRT Support'!$B73=0,\"\",'effRT Support'!$F73)","v":""},{"$f":"IF('effRT Support'!$B73=0,\"\",\"Wattage Actual or Deemed\")","v":""},{"$f":"IF('effRT Support'!$B73=0,\"\",IF('Project Information'!$D$33=\"Pay For Performance\",\"Actual\",\"Deemed\"))","v":""},{"$f":"IF('effRT Support'!$B73=0,\"\",\"Cost Actual or Deemed\")","v":""},{"$f":"IF('effRT Support'!$B73=0,\"\",IF('Project Information'!$D$33=\"Pay For Performance\",\"Actual\",\"Deemed\"))","v":""},{"$f":"IF('effRT Support'!$B73=0,\"\",\"Location\")","v":""},{"$f":"IF('effRT Support'!$B73=0,\"\",'effRT Support'!$E73)","v":""},{"$f":"IF('effRT Support'!$B73=0,\"\",\"Space Type\")","v":""},{"$f":"IF('effRT Support'!$B73=0,\"\",'effRT Support'!$G73)","v":""},{"$f":"IF('effRT Support'!$B73=0,\"\",\"Existing Fixture Description\")","v":""},{"$f":"IF('effRT Support'!$B73=0,\"\",'effRT Support'!$H73)","v":""},{"$f":"IF('effRT Support'!$B73=0,\"\",\"Existing Fixture Quantity\")","v":""},{"$f":"IF('effRT Support'!$B73=0,\"\",'effRT Support'!$I73)","v":""},{"$f":"IF('effRT Support'!$B73=0,\"\",\"Existing Fixture Wattage\")","v":""},{"$f":"IF('effRT Support'!$B73=0,\"\",'effRT Support'!$J73)","v":""},{"$f":"IF('effRT Support'!$B73=0,\"\",\"Annual Hours of Operation\")","v":""},{"$f":"IF('effRT Support'!$B73=0,\"\",'effRT Support'!$K73)","v":""},{"$f":"IF('effRT Support'!$B73=0,\"\",\"Installed Fixture Description\")","v":""},{"$f":"IF('effRT Support'!$B73=0,\"\",'effRT Support'!$M73)","v":""},{"$f":"IF('effRT Support'!$B73=0,\"\",\"Installed Fixture Wattage\")","v":""},{"$f":"IF('effRT Support'!$B73=0,\"\",'effRT Support'!$O73)","v":""},{"$f":"IF('effRT Support'!$B73=0,\"\",\"Material Cost\")","v":""},{"$f":"IF('effRT Support'!$B73=0,\"\",'effRT Support'!$R73)","v":""},{"$f":"IF('effRT Support'!$B73=0,\"\",\"Labor Cost\")","v":""},{"$f":"IF('effRT Support'!$B73=0,\"\",'effRT Support'!$S73)","v":""},{"$f":"IF('effRT Support'!$B73=0,\"\",\"Ancillary Costs - Measure Specific\")","v":""},{"$f":"IF('effRT Support'!$B73=0,\"\",'effRT Support'!$T73)","v":""},{"$f":"IF('effRT Support'!$B73=0,\"\",\"Fuel Type\")","v":""},{"$f":"IF('effRT Support'!$B73=0,\"\",'Project Information'!$D$44)","v":""},{"$f":"IF('effRT Support'!$B73=0,\"\",\"Installed Fixture Quantity\")","v":""},{"$f":"IF('effRT Support'!$B73=0,\"\",'effRT Support'!P72)","v":""}]
[{"$f":"IF('effRT Support'!$B74=0,\"\",IF('Project Information'!$D$33=\"Small Business\",\"SBL\",\"CILS\"))","v":""},{"$f":"IF('effRT Support'!$B74=0,\"\",IF('Project Information'!$K$2=\"\",\"\",'Project Information'!$K$2))","v":""},null,{"$f":"IF('effRT Support'!$B74=0,\"\",IF('Project Information'!$D$46=\"\",\"\",'Project Information'!$D$46))","v":""},{"$f":"IF('effRT Support'!$B74=0,\"\",IF('Project Information'!$D$20=\"\",\"\",VLOOKUP('Project Information'!$D$20,'Other Data'!$B$159:$E$189,4,FALSE)))","v":""},{"$f":"IF('effRT Support'!$B74=0,\"\",IF('Project Information'!$D$31=\"\",\"\",'Project Information'!$D$31))","v":""},{"$f":"IF('effRT Support'!$B74=0,\"\",IF('Project Information'!$D$5=\"\",\"\",'Project Information'!$D$5))","v":""},null,null,{"$f":"IF('effRT Support'!$B74=0,\"\",IF('Project Information'!$D$20=\"\",\"\",VLOOKUP('Project Information'!$D$20,'Other Data'!$B$159:$E$189,2,FALSE)))","v":""},{"$f":"IF('effRT Support'!$B74=0,\"\",IF('Project Information'!$D$20=\"\",\"\",VLOOKUP('Project Information'!$D$20,'Other Data'!$B$159:$E$189,3,FALSE)))","v":""},{"$f":"IF('effRT Support'!$B74=0,\"\",\"Existing\")","v":""},null,{"$f":"IF('effRT Support'!$B74=0,\"\",IF('Project Information'!$D$21=\"\",\"\",'Project Information'!$D$21))","v":""},{"$f":"IF('effRT Support'!$B74=0,\"\",IF('Project Information'!$D$48=\"\",\"\",'Project Information'!$D$48))","v":""},{"$f":"IF('effRT Support'!$B74=0,\"\",\"\")","v":""},{"$f":"IF('effRT Support'!$B74=0,\"\",\"\")","v":""},{"$f":"IF('effRT Support'!$B74=0,\"\",\"\")","v":""},{"$f":"IF('effRT Support'!$B74=0,\"\",\"\")","v":""},{"$f":"IF('effRT Support'!$B74=0,\"\",IF('Project Information'!$D$13=\"\",\"\",'Project Information'!$D$13))","v":""},{"$f":"IF('effRT Support'!$B74=0,\"\",IF('Project Information'!$E$13=\"\",\"\",'Project Information'!$E$13))","v":""},{"$f":"IF('effRT Support'!$B74=0,\"\",IF('Project Information'!$D$14=\"\",\"\",'Project Information'!$D$14))","v":""},{"$f":"IF('effRT Support'!$B74=0,\"\",IF('Project Information'!$D$15=\"\",\"\",'Project Information'!$D$15))","v":""},{"$f":"IF('effRT Support'!$B74=0,\"\",IF('Project Information'!$D$16=\"\",\"\",'Project Information'!$D$16))","v":""},null,{"$f":"IF('effRT Support'!$B74=0,\"\",'Project Information'!$D$18)","v":""},{"$f":"IF('effRT Support'!$B74=0,\"\",IF('Project Information'!$D$23=\"\",\"\",'Project Information'!$D$23))","v":""},{"$f":"IF('effRT Support'!$B74=0,\"\",IF('Project Information'!$D$24=\"\",\"\",'Project Information'!$D$24))","v":""},{"$f":"IF('effRT Support'!$B74=0,\"\",IF('Project Information'!$D$25=\"\",\"\",'Project Information'!$D$25))","v":""},{"$f":"IF('effRT Support'!$B74=0,\"\",IF('Project Information'!$E$25=\"\",\"\",'Project Information'!$E$25))","v":""},{"$f":"IF('effRT Support'!$B74=0,\"\",IF('Project Information'!$F$25=\"\",\"\",'Project Information'!$F$25))","v":""},{"$f":"IF('effRT Support'!$B74=0,\"\",IF('Project Information'!$D$27=\"\",\"Y\",\"N\"))","v":""},{"$f":"IF('effRT Support'!$B74=0,\"\",IF('Project Information'!$D$27=\"\",\"\",'Project Information'!$D$27))","v":""},{"$f":"IF('effRT Support'!$B74=0,\"\",IF('Project Information'!$D$28=\"\",\"\",'Project Information'!$D$28))","v":""},{"$f":"IF('effRT Support'!$B74=0,\"\",IF('Project Information'!$D$29=\"\",\"\",'Project Information'!$D$29))","v":""},{"$f":"IF('effRT Support'!$B74=0,\"\",IF('Project Information'!$E$29=\"\",\"\",'Project Information'!$E$29))","v":""},{"$f":"IF('effRT Support'!$B74=0,\"\",IF('Project Information'!$F$29=\"\",\"\",'Project Information'!$F$29))","v":""},{"$f":"IF('effRT Support'!$B74=0,\"\",\"\")","v":""},{"$f":"IF('effRT Support'!$B74=0,\"\",\"\")","v":""},{"$f":"IF('effRT Support'!$B74=0,\"\",IF('Project Information'!$D$36=\"\",\"\",'Project Information'!$D$36))","v":""},{"$f":"IF('effRT Support'!$B74=0,\"\",IF('Project Information'!$D$42=\"\",\"\",'Project Information'!$D$42))","v":""},{"$f":"IF('effRT Support'!$B74=0,\"\",'effRT Support'!$D74)","v":""},{"$f":"IF('effRT Support'!$B74=0,\"\",'effRT Support'!$L74)","v":""},{"$f":"IF('effRT Support'!$B74=0,\"\",'effRT Support'!$N74)","v":""},null,null,{"$f":"IF('effRT Support'!$B74=0,\"\",'effRT Support'!$P74)","v":""},{"$f":"IF('effRT Support'!$B74=0,\"\",'effRT Support'!$Q74)","v":""},{"$f":"IF('effRT Support'!$B74=0,\"\",'effRT Support'!U74)","v":""},{"$f":"IF('effRT Support'!$B74=0,\"\",'effRT Support'!V74)","v":""},{"$f":"IF('effRT Support'!$B74=0,\"\",'effRT Support'!W74)","v":""},{"$f":"IF('effRT Support'!$B74=0,\"\",'effRT Support'!X74)","v":""},{"$f":"IF('effRT Support'!$B74=0,\"\",'effRT Support'!Y74)","v":""},{"$f":"IF('effRT Support'!$B74=0,\"\",'effRT Support'!Z74*10)","v":""},{"$f":"IF('effRT Support'!$B74=0,\"\",'effRT Support'!AA74)","v":""},{"$f":"IF('effRT Support'!$B74=0,\"\",'effRT Support'!AB74)","v":""},{"$f":"IF('effRT Support'!$B74=0,\"\",'effRT Support'!AC74)","v":""},{"$f":"IF('effRT Support'!$B74=0,\"\",'effRT Support'!AD74)","v":""},{"$f":"IF('effRT Support'!$B74=0,\"\",'effRT Support'!AE74)","v":""},{"$f":"IF('effRT Support'!$B74=0,\"\",\"Hours Actual or Deemed\")","v":""},{"$f":"IF('effRT Support'!$B74=0,\"\",'effRT Support'!$F74)","v":""},{"$f":"IF('effRT Support'!$B74=0,\"\",\"Wattage Actual or Deemed\")","v":""},{"$f":"IF('effRT Support'!$B74=0,\"\",IF('Project Information'!$D$33=\"Pay For Performance\",\"Actual\",\"Deemed\"))","v":""},{"$f":"IF('effRT Support'!$B74=0,\"\",\"Cost Actual or Deemed\")","v":""},{"$f":"IF('effRT Support'!$B74=0,\"\",IF('Project Information'!$D$33=\"Pay For Performance\",\"Actual\",\"Deemed\"))","v":""},{"$f":"IF('effRT Support'!$B74=0,\"\",\"Location\")","v":""},{"$f":"IF('effRT Support'!$B74=0,\"\",'effRT Support'!$E74)","v":""},{"$f":"IF('effRT Support'!$B74=0,\"\",\"Space Type\")","v":""},{"$f":"IF('effRT Support'!$B74=0,\"\",'effRT Support'!$G74)","v":""},{"$f":"IF('effRT Support'!$B74=0,\"\",\"Existing Fixture Description\")","v":""},{"$f":"IF('effRT Support'!$B74=0,\"\",'effRT Support'!$H74)","v":""},{"$f":"IF('effRT Support'!$B74=0,\"\",\"Existing Fixture Quantity\")","v":""},{"$f":"IF('effRT Support'!$B74=0,\"\",'effRT Support'!$I74)","v":""},{"$f":"IF('effRT Support'!$B74=0,\"\",\"Existing Fixture Wattage\")","v":""},{"$f":"IF('effRT Support'!$B74=0,\"\",'effRT Support'!$J74)","v":""},{"$f":"IF('effRT Support'!$B74=0,\"\",\"Annual Hours of Operation\")","v":""},{"$f":"IF('effRT Support'!$B74=0,\"\",'effRT Support'!$K74)","v":""},{"$f":"IF('effRT Support'!$B74=0,\"\",\"Installed Fixture Description\")","v":""},{"$f":"IF('effRT Support'!$B74=0,\"\",'effRT Support'!$M74)","v":""},{"$f":"IF('effRT Support'!$B74=0,\"\",\"Installed Fixture Wattage\")","v":""},{"$f":"IF('effRT Support'!$B74=0,\"\",'effRT Support'!$O74)","v":""},{"$f":"IF('effRT Support'!$B74=0,\"\",\"Material Cost\")","v":""},{"$f":"IF('effRT Support'!$B74=0,\"\",'effRT Support'!$R74)","v":""},{"$f":"IF('effRT Support'!$B74=0,\"\",\"Labor Cost\")","v":""},{"$f":"IF('effRT Support'!$B74=0,\"\",'effRT Support'!$S74)","v":""},{"$f":"IF('effRT Support'!$B74=0,\"\",\"Ancillary Costs - Measure Specific\")","v":""},{"$f":"IF('effRT Support'!$B74=0,\"\",'effRT Support'!$T74)","v":""},{"$f":"IF('effRT Support'!$B74=0,\"\",\"Fuel Type\")","v":""},{"$f":"IF('effRT Support'!$B74=0,\"\",'Project Information'!$D$44)","v":""}]
[{"$f":"IF('effRT Support'!$B75=0,\"\",IF('Project Information'!$D$33=\"Small Business\",\"SBL\",\"CILS\"))","v":""},{"$f":"IF('effRT Support'!$B75=0,\"\",IF('Project Information'!$K$2=\"\",\"\",'Project Information'!$K$2))","v":""},null,{"$f":"IF('effRT Support'!$B75=0,\"\",IF('Project Information'!$D$46=\"\",\"\",'Project Information'!$D$46))","v":""},{"$f":"IF('effRT Support'!$B75=0,\"\",IF('Project Information'!$D$20=\"\",\"\",VLOOKUP('Project Information'!$D$20,'Other Data'!$B$159:$E$189,4,FALSE)))","v":""},{"$f":"IF('effRT Support'!$B75=0,\"\",IF('Project Information'!$D$31=\"\",\"\",'Project Information'!$D$31))","v":""},{"$f":"IF('effRT Support'!$B75=0,\"\",IF('Project Information'!$D$5=\"\",\"\",'Project Information'!$D$5))","v":""},null,null,{"$f":"IF('effRT Support'!$B75=0,\"\",IF('Project Information'!$D$20=\"\",\"\",VLOOKUP('Project Information'!$D$20,'Other Data'!$B$159:$E$189,2,FALSE)))","v":""},{"$f":"IF('effRT Support'!$B75=0,\"\",IF('Project Information'!$D$20=\"\",\"\",VLOOKUP('Project Information'!$D$20,'Other Data'!$B$159:$E$189,3,FALSE)))","v":""},{"$f":"IF('effRT Support'!$B75=0,\"\",\"Existing\")","v":""},null,{"$f":"IF('effRT Support'!$B75=0,\"\",IF('Project Information'!$D$21=\"\",\"\",'Project Information'!$D$21))","v":""},{"$f":"IF('effRT Support'!$B75=0,\"\",IF('Project Information'!$D$48=\"\",\"\",'Project Information'!$D$48))","v":""},{"$f":"IF('effRT Support'!$B75=0,\"\",\"\")","v":""},{"$f":"IF('effRT Support'!$B75=0,\"\",\"\")","v":""},{"$f":"IF('effRT Support'!$B75=0,\"\",\"\")","v":""},{"$f":"IF('effRT Support'!$B75=0,\"\",\"\")","v":""},{"$f":"IF('effRT Support'!$B75=0,\"\",IF('Project Information'!$D$13=\"\",\"\",'Project Information'!$D$13))","v":""},{"$f":"IF('effRT Support'!$B75=0,\"\",IF('Project Information'!$E$13=\"\",\"\",'Project Information'!$E$13))","v":""},{"$f":"IF('effRT Support'!$B75=0,\"\",IF('Project Information'!$D$14=\"\",\"\",'Project Information'!$D$14))","v":""},{"$f":"IF('effRT Support'!$B75=0,\"\",IF('Project Information'!$D$15=\"\",\"\",'Project Information'!$D$15))","v":""},{"$f":"IF('effRT Support'!$B75=0,\"\",IF('Project Information'!$D$16=\"\",\"\",'Project Information'!$D$16))","v":""},null,{"$f":"IF('effRT Support'!$B75=0,\"\",'Project Information'!$D$18)","v":""},{"$f":"IF('effRT Support'!$B75=0,\"\",IF('Project Information'!$D$23=\"\",\"\",'Project Information'!$D$23))","v":""},{"$f":"IF('effRT Support'!$B75=0,\"\",IF('Project Information'!$D$24=\"\",\"\",'Project Information'!$D$24))","v":""},{"$f":"IF('effRT Support'!$B75=0,\"\",IF('Project Information'!$D$25=\"\",\"\",'Project Information'!$D$25))","v":""},{"$f":"IF('effRT Support'!$B75=0,\"\",IF('Project Information'!$E$25=\"\",\"\",'Project Information'!$E$25))","v":""},{"$f":"IF('effRT Support'!$B75=0,\"\",IF('Project Information'!$F$25=\"\",\"\",'Project Information'!$F$25))","v":""},{"$f":"IF('effRT Support'!$B75=0,\"\",IF('Project Information'!$D$27=\"\",\"Y\",\"N\"))","v":""},{"$f":"IF('effRT Support'!$B75=0,\"\",IF('Project Information'!$D$27=\"\",\"\",'Project Information'!$D$27))","v":""},{"$f":"IF('effRT Support'!$B75=0,\"\",IF('Project Information'!$D$28=\"\",\"\",'Project Information'!$D$28))","v":""},{"$f":"IF('effRT Support'!$B75=0,\"\",IF('Project Information'!$D$29=\"\",\"\",'Project Information'!$D$29))","v":""},{"$f":"IF('effRT Support'!$B75=0,\"\",IF('Project Information'!$E$29=\"\",\"\",'Project Information'!$E$29))","v":""},{"$f":"IF('effRT Support'!$B75=0,\"\",IF('Project Information'!$F$29=\"\",\"\",'Project Information'!$F$29))","v":""},{"$f":"IF('effRT Support'!$B75=0,\"\",\"\")","v":""},{"$f":"IF('effRT Support'!$B75=0,\"\",\"\")","v":""},{"$f":"IF('effRT Support'!$B75=0,\"\",IF('Project Information'!$D$36=\"\",\"\",'Project Information'!$D$36))","v":""},{"$f":"IF('effRT Support'!$B75=0,\"\",IF('Project Information'!$D$42=\"\",\"\",'Project Information'!$D$42))","v":""},{"$f":"IF('effRT Support'!$B75=0,\"\",'effRT Support'!$D75)","v":""},{"$f":"IF('effRT Support'!$B75=0,\"\",'effRT Support'!$L75)","v":""},{"$f":"IF('effRT Support'!$B75=0,\"\",'effRT Support'!$N75)","v":""},null,null,{"$f":"IF('effRT Support'!$B75=0,\"\",'effRT Support'!$P75)","v":""},{"$f":"IF('effRT Support'!$B75=0,\"\",'effRT Support'!$Q75)","v":""},{"$f":"IF('effRT Support'!$B75=0,\"\",'effRT Support'!U75)","v":""},{"$f":"IF('effRT Support'!$B75=0,\"\",'effRT Support'!V75)","v":""},{"$f":"IF('effRT Support'!$B75=0,\"\",'effRT Support'!W75)","v":""},{"$f":"IF('effRT Support'!$B75=0,\"\",'effRT Support'!X75)","v":""},{"$f":"IF('effRT Support'!$B75=0,\"\",'effRT Support'!Y75)","v":""},{"$f":"IF('effRT Support'!$B75=0,\"\",'effRT Support'!Z75*10)","v":""},{"$f":"IF('effRT Support'!$B75=0,\"\",'effRT Support'!AA75)","v":""},{"$f":"IF('effRT Support'!$B75=0,\"\",'effRT Support'!AB75)","v":""},{"$f":"IF('effRT Support'!$B75=0,\"\",'effRT Support'!AC75)","v":""},{"$f":"IF('effRT Support'!$B75=0,\"\",'effRT Support'!AD75)","v":""},{"$f":"IF('effRT Support'!$B75=0,\"\",'effRT Support'!AE75)","v":""},{"$f":"IF('effRT Support'!$B75=0,\"\",\"Hours Actual or Deemed\")","v":""},{"$f":"IF('effRT Support'!$B75=0,\"\",'effRT Support'!$F75)","v":""},{"$f":"IF('effRT Support'!$B75=0,\"\",\"Wattage Actual or Deemed\")","v":""},{"$f":"IF('effRT Support'!$B75=0,\"\",IF('Project Information'!$D$33=\"Pay For Performance\",\"Actual\",\"Deemed\"))","v":""},{"$f":"IF('effRT Support'!$B75=0,\"\",\"Cost Actual or Deemed\")","v":""},{"$f":"IF('effRT Support'!$B75=0,\"\",IF('Project Information'!$D$33=\"Pay For Performance\",\"Actual\",\"Deemed\"))","v":""},{"$f":"IF('effRT Support'!$B75=0,\"\",\"Location\")","v":""},{"$f":"IF('effRT Support'!$B75=0,\"\",'effRT Support'!$E75)","v":""},{"$f":"IF('effRT Support'!$B75=0,\"\",\"Space Type\")","v":""},{"$f":"IF('effRT Support'!$B75=0,\"\",'effRT Support'!$G75)","v":""},{"$f":"IF('effRT Support'!$B75=0,\"\",\"Existing Fixture Description\")","v":""},{"$f":"IF('effRT Support'!$B75=0,\"\",'effRT Support'!$H75)","v":""},{"$f":"IF('effRT Support'!$B75=0,\"\",\"Existing Fixture Quantity\")","v":""},{"$f":"IF('effRT Support'!$B75=0,\"\",'effRT Support'!$I75)","v":""},{"$f":"IF('effRT Support'!$B75=0,\"\",\"Existing Fixture Wattage\")","v":""},{"$f":"IF('effRT Support'!$B75=0,\"\",'effRT Support'!$J75)","v":""},{"$f":"IF('effRT Support'!$B75=0,\"\",\"Annual Hours of Operation\")","v":""},{"$f":"IF('effRT Support'!$B75=0,\"\",'effRT Support'!$K75)","v":""},{"$f":"IF('effRT Support'!$B75=0,\"\",\"Installed Fixture Description\")","v":""},{"$f":"IF('effRT Support'!$B75=0,\"\",'effRT Support'!$M75)","v":""},{"$f":"IF('effRT Support'!$B75=0,\"\",\"Installed Fixture Wattage\")","v":""},{"$f":"IF('effRT Support'!$B75=0,\"\",'effRT Support'!$O75)","v":""},{"$f":"IF('effRT Support'!$B75=0,\"\",\"Material Cost\")","v":""},{"$f":"IF('effRT Support'!$B75=0,\"\",'effRT Support'!$R75)","v":""},{"$f":"IF('effRT Support'!$B75=0,\"\",\"Labor Cost\")","v":""},{"$f":"IF('effRT Support'!$B75=0,\"\",'effRT Support'!$S75)","v":""},{"$f":"IF('effRT Support'!$B75=0,\"\",\"Ancillary Costs - Measure Specific\")","v":""},{"$f":"IF('effRT Support'!$B75=0,\"\",'effRT Support'!$T75)","v":""},{"$f":"IF('effRT Support'!$B75=0,\"\",\"Fuel Type\")","v":""},{"$f":"IF('effRT Support'!$B75=0,\"\",'Project Information'!$D$44)","v":""},{"$f":"IF('effRT Support'!$B75=0,\"\",\"Installed Fixture Quantity\")","v":""},{"$f":"IF('effRT Support'!$B75=0,\"\",'effRT Support'!P74)","v":""}]
[{"$f":"IF('effRT Support'!$B76=0,\"\",IF('Project Information'!$D$33=\"Small Business\",\"SBL\",\"CILS\"))","v":""},{"$f":"IF('effRT Support'!$B76=0,\"\",IF('Project Information'!$K$2=\"\",\"\",'Project Information'!$K$2))","v":""},null,{"$f":"IF('effRT Support'!$B76=0,\"\",IF('Project Information'!$D$46=\"\",\"\",'Project Information'!$D$46))","v":""},{"$f":"IF('effRT Support'!$B76=0,\"\",IF('Project Information'!$D$20=\"\",\"\",VLOOKUP('Project Information'!$D$20,'Other Data'!$B$159:$E$189,4,FALSE)))","v":""},{"$f":"IF('effRT Support'!$B76=0,\"\",IF('Project Information'!$D$31=\"\",\"\",'Project Information'!$D$31))","v":""},{"$f":"IF('effRT Support'!$B76=0,\"\",IF('Project Information'!$D$5=\"\",\"\",'Project Information'!$D$5))","v":""},null,null,{"$f":"IF('effRT Support'!$B76=0,\"\",IF('Project Information'!$D$20=\"\",\"\",VLOOKUP('Project Information'!$D$20,'Other Data'!$B$159:$E$189,2,FALSE)))","v":""},{"$f":"IF('effRT Support'!$B76=0,\"\",IF('Project Information'!$D$20=\"\",\"\",VLOOKUP('Project Information'!$D$20,'Other Data'!$B$159:$E$189,3,FALSE)))","v":""},{"$f":"IF('effRT Support'!$B76=0,\"\",\"Existing\")","v":""},null,{"$f":"IF('effRT Support'!$B76=0,\"\",IF('Project Information'!$D$21=\"\",\"\",'Project Information'!$D$21))","v":""},{"$f":"IF('effRT Support'!$B76=0,\"\",IF('Project Information'!$D$48=\"\",\"\",'Project Information'!$D$48))","v":""},{"$f":"IF('effRT Support'!$B76=0,\"\",\"\")","v":""},{"$f":"IF('effRT Support'!$B76=0,\"\",\"\")","v":""},{"$f":"IF('effRT Support'!$B76=0,\"\",\"\")","v":""},{"$f":"IF('effRT Support'!$B76=0,\"\",\"\")","v":""},{"$f":"IF('effRT Support'!$B76=0,\"\",IF('Project Information'!$D$13=\"\",\"\",'Project Information'!$D$13))","v":""},{"$f":"IF('effRT Support'!$B76=0,\"\",IF('Project Information'!$E$13=\"\",\"\",'Project Information'!$E$13))","v":""},{"$f":"IF('effRT Support'!$B76=0,\"\",IF('Project Information'!$D$14=\"\",\"\",'Project Information'!$D$14))","v":""},{"$f":"IF('effRT Support'!$B76=0,\"\",IF('Project Information'!$D$15=\"\",\"\",'Project Information'!$D$15))","v":""},{"$f":"IF('effRT Support'!$B76=0,\"\",IF('Project Information'!$D$16=\"\",\"\",'Project Information'!$D$16))","v":""},null,{"$f":"IF('effRT Support'!$B76=0,\"\",'Project Information'!$D$18)","v":""},{"$f":"IF('effRT Support'!$B76=0,\"\",IF('Project Information'!$D$23=\"\",\"\",'Project Information'!$D$23))","v":""},{"$f":"IF('effRT Support'!$B76=0,\"\",IF('Project Information'!$D$24=\"\",\"\",'Project Information'!$D$24))","v":""},{"$f":"IF('effRT Support'!$B76=0,\"\",IF('Project Information'!$D$25=\"\",\"\",'Project Information'!$D$25))","v":""},{"$f":"IF('effRT Support'!$B76=0,\"\",IF('Project Information'!$E$25=\"\",\"\",'Project Information'!$E$25))","v":""},{"$f":"IF('effRT Support'!$B76=0,\"\",IF('Project Information'!$F$25=\"\",\"\",'Project Information'!$F$25))","v":""},{"$f":"IF('effRT Support'!$B76=0,\"\",IF('Project Information'!$D$27=\"\",\"Y\",\"N\"))","v":""},{"$f":"IF('effRT Support'!$B76=0,\"\",IF('Project Information'!$D$27=\"\",\"\",'Project Information'!$D$27))","v":""},{"$f":"IF('effRT Support'!$B76=0,\"\",IF('Project Information'!$D$28=\"\",\"\",'Project Information'!$D$28))","v":""},{"$f":"IF('effRT Support'!$B76=0,\"\",IF('Project Information'!$D$29=\"\",\"\",'Project Information'!$D$29))","v":""},{"$f":"IF('effRT Support'!$B76=0,\"\",IF('Project Information'!$E$29=\"\",\"\",'Project Information'!$E$29))","v":""},{"$f":"IF('effRT Support'!$B76=0,\"\",IF('Project Information'!$F$29=\"\",\"\",'Project Information'!$F$29))","v":""},{"$f":"IF('effRT Support'!$B76=0,\"\",\"\")","v":""},{"$f":"IF('effRT Support'!$B76=0,\"\",\"\")","v":""},{"$f":"IF('effRT Support'!$B76=0,\"\",IF('Project Information'!$D$36=\"\",\"\",'Project Information'!$D$36))","v":""},{"$f":"IF('effRT Support'!$B76=0,\"\",IF('Project Information'!$D$42=\"\",\"\",'Project Information'!$D$42))","v":""},{"$f":"IF('effRT Support'!$B76=0,\"\",'effRT Support'!$D76)","v":""},{"$f":"IF('effRT Support'!$B76=0,\"\",'effRT Support'!$L76)","v":""},{"$f":"IF('effRT Support'!$B76=0,\"\",'effRT Support'!$N76)","v":""},null,null,{"$f":"IF('effRT Support'!$B76=0,\"\",'effRT Support'!$P76)","v":""},{"$f":"IF('effRT Support'!$B76=0,\"\",'effRT Support'!$Q76)","v":""},{"$f":"IF('effRT Support'!$B76=0,\"\",'effRT Support'!U76)","v":""},{"$f":"IF('effRT Support'!$B76=0,\"\",'effRT Support'!V76)","v":""},{"$f":"IF('effRT Support'!$B76=0,\"\",'effRT Support'!W76)","v":""},{"$f":"IF('effRT Support'!$B76=0,\"\",'effRT Support'!X76)","v":""},{"$f":"IF('effRT Support'!$B76=0,\"\",'effRT Support'!Y76)","v":""},{"$f":"IF('effRT Support'!$B76=0,\"\",'effRT Support'!Z76*10)","v":""},{"$f":"IF('effRT Support'!$B76=0,\"\",'effRT Support'!AA76)","v":""},{"$f":"IF('effRT Support'!$B76=0,\"\",'effRT Support'!AB76)","v":""},{"$f":"IF('effRT Support'!$B76=0,\"\",'effRT Support'!AC76)","v":""},{"$f":"IF('effRT Support'!$B76=0,\"\",'effRT Support'!AD76)","v":""},{"$f":"IF('effRT Support'!$B76=0,\"\",'effRT Support'!AE76)","v":""},{"$f":"IF('effRT Support'!$B76=0,\"\",\"Hours Actual or Deemed\")","v":""},{"$f":"IF('effRT Support'!$B76=0,\"\",'effRT Support'!$F76)","v":""},{"$f":"IF('effRT Support'!$B76=0,\"\",\"Wattage Actual or Deemed\")","v":""},{"$f":"IF('effRT Support'!$B76=0,\"\",IF('Project Information'!$D$33=\"Pay For Performance\",\"Actual\",\"Deemed\"))","v":""},{"$f":"IF('effRT Support'!$B76=0,\"\",\"Cost Actual or Deemed\")","v":""},{"$f":"IF('effRT Support'!$B76=0,\"\",IF('Project Information'!$D$33=\"Pay For Performance\",\"Actual\",\"Deemed\"))","v":""},{"$f":"IF('effRT Support'!$B76=0,\"\",\"Location\")","v":""},{"$f":"IF('effRT Support'!$B76=0,\"\",'effRT Support'!$E76)","v":""},{"$f":"IF('effRT Support'!$B76=0,\"\",\"Space Type\")","v":""},{"$f":"IF('effRT Support'!$B76=0,\"\",'effRT Support'!$G76)","v":""},{"$f":"IF('effRT Support'!$B76=0,\"\",\"Existing Fixture Description\")","v":""},{"$f":"IF('effRT Support'!$B76=0,\"\",'effRT Support'!$H76)","v":""},{"$f":"IF('effRT Support'!$B76=0,\"\",\"Existing Fixture Quantity\")","v":""},{"$f":"IF('effRT Support'!$B76=0,\"\",'effRT Support'!$I76)","v":""},{"$f":"IF('effRT Support'!$B76=0,\"\",\"Existing Fixture Wattage\")","v":""},{"$f":"IF('effRT Support'!$B76=0,\"\",'effRT Support'!$J76)","v":""},{"$f":"IF('effRT Support'!$B76=0,\"\",\"Annual Hours of Operation\")","v":""},{"$f":"IF('effRT Support'!$B76=0,\"\",'effRT Support'!$K76)","v":""},{"$f":"IF('effRT Support'!$B76=0,\"\",\"Installed Fixture Description\")","v":""},{"$f":"IF('effRT Support'!$B76=0,\"\",'effRT Support'!$M76)","v":""},{"$f":"IF('effRT Support'!$B76=0,\"\",\"Installed Fixture Wattage\")","v":""},{"$f":"IF('effRT Support'!$B76=0,\"\",'effRT Support'!$O76)","v":""},{"$f":"IF('effRT Support'!$B76=0,\"\",\"Material Cost\")","v":""},{"$f":"IF('effRT Support'!$B76=0,\"\",'effRT Support'!$R76)","v":""},{"$f":"IF('effRT Support'!$B76=0,\"\",\"Labor Cost\")","v":""},{"$f":"IF('effRT Support'!$B76=0,\"\",'effRT Support'!$S76)","v":""},{"$f":"IF('effRT Support'!$B76=0,\"\",\"Ancillary Costs - Measure Specific\")","v":""},{"$f":"IF('effRT Support'!$B76=0,\"\",'effRT Support'!$T76)","v":""},{"$f":"IF('effRT Support'!$B76=0,\"\",\"Fuel Type\")","v":""},{"$f":"IF('effRT Support'!$B76=0,\"\",'Project Information'!$D$44)","v":""}]
[{"$f":"IF('effRT Support'!$B77=0,\"\",IF('Project Information'!$D$33=\"Small Business\",\"SBL\",\"CILS\"))","v":""},{"$f":"IF('effRT Support'!$B77=0,\"\",IF('Project Information'!$K$2=\"\",\"\",'Project Information'!$K$2))","v":""},null,{"$f":"IF('effRT Support'!$B77=0,\"\",IF('Project Information'!$D$46=\"\",\"\",'Project Information'!$D$46))","v":""},{"$f":"IF('effRT Support'!$B77=0,\"\",IF('Project Information'!$D$20=\"\",\"\",VLOOKUP('Project Information'!$D$20,'Other Data'!$B$159:$E$189,4,FALSE)))","v":""},{"$f":"IF('effRT Support'!$B77=0,\"\",IF('Project Information'!$D$31=\"\",\"\",'Project Information'!$D$31))","v":""},{"$f":"IF('effRT Support'!$B77=0,\"\",IF('Project Information'!$D$5=\"\",\"\",'Project Information'!$D$5))","v":""},null,null,{"$f":"IF('effRT Support'!$B77=0,\"\",IF('Project Information'!$D$20=\"\",\"\",VLOOKUP('Project Information'!$D$20,'Other Data'!$B$159:$E$189,2,FALSE)))","v":""},{"$f":"IF('effRT Support'!$B77=0,\"\",IF('Project Information'!$D$20=\"\",\"\",VLOOKUP('Project Information'!$D$20,'Other Data'!$B$159:$E$189,3,FALSE)))","v":""},{"$f":"IF('effRT Support'!$B77=0,\"\",\"Existing\")","v":""},null,{"$f":"IF('effRT Support'!$B77=0,\"\",IF('Project Information'!$D$21=\"\",\"\",'Project Information'!$D$21))","v":""},{"$f":"IF('effRT Support'!$B77=0,\"\",IF('Project Information'!$D$48=\"\",\"\",'Project Information'!$D$48))","v":""},{"$f":"IF('effRT Support'!$B77=0,\"\",\"\")","v":""},{"$f":"IF('effRT Support'!$B77=0,\"\",\"\")","v":""},{"$f":"IF('effRT Support'!$B77=0,\"\",\"\")","v":""},{"$f":"IF('effRT Support'!$B77=0,\"\",\"\")","v":""},{"$f":"IF('effRT Support'!$B77=0,\"\",IF('Project Information'!$D$13=\"\",\"\",'Project Information'!$D$13))","v":""},{"$f":"IF('effRT Support'!$B77=0,\"\",IF('Project Information'!$E$13=\"\",\"\",'Project Information'!$E$13))","v":""},{"$f":"IF('effRT Support'!$B77=0,\"\",IF('Project Information'!$D$14=\"\",\"\",'Project Information'!$D$14))","v":""},{"$f":"IF('effRT Support'!$B77=0,\"\",IF('Project Information'!$D$15=\"\",\"\",'Project Information'!$D$15))","v":""},{"$f":"IF('effRT Support'!$B77=0,\"\",IF('Project Information'!$D$16=\"\",\"\",'Project Information'!$D$16))","v":""},null,{"$f":"IF('effRT Support'!$B77=0,\"\",'Project Information'!$D$18)","v":""},{"$f":"IF('effRT Support'!$B77=0,\"\",IF('Project Information'!$D$23=\"\",\"\",'Project Information'!$D$23))","v":""},{"$f":"IF('effRT Support'!$B77=0,\"\",IF('Project Information'!$D$24=\"\",\"\",'Project Information'!$D$24))","v":""},{"$f":"IF('effRT Support'!$B77=0,\"\",IF('Project Information'!$D$25=\"\",\"\",'Project Information'!$D$25))","v":""},{"$f":"IF('effRT Support'!$B77=0,\"\",IF('Project Information'!$E$25=\"\",\"\",'Project Information'!$E$25))","v":""},{"$f":"IF('effRT Support'!$B77=0,\"\",IF('Project Information'!$F$25=\"\",\"\",'Project Information'!$F$25))","v":""},{"$f":"IF('effRT Support'!$B77=0,\"\",IF('Project Information'!$D$27=\"\",\"Y\",\"N\"))","v":""},{"$f":"IF('effRT Support'!$B77=0,\"\",IF('Project Information'!$D$27=\"\",\"\",'Project Information'!$D$27))","v":""},{"$f":"IF('effRT Support'!$B77=0,\"\",IF('Project Information'!$D$28=\"\",\"\",'Project Information'!$D$28))","v":""},{"$f":"IF('effRT Support'!$B77=0,\"\",IF('Project Information'!$D$29=\"\",\"\",'Project Information'!$D$29))","v":""},{"$f":"IF('effRT Support'!$B77=0,\"\",IF('Project Information'!$E$29=\"\",\"\",'Project Information'!$E$29))","v":""},{"$f":"IF('effRT Support'!$B77=0,\"\",IF('Project Information'!$F$29=\"\",\"\",'Project Information'!$F$29))","v":""},{"$f":"IF('effRT Support'!$B77=0,\"\",\"\")","v":""},{"$f":"IF('effRT Support'!$B77=0,\"\",\"\")","v":""},{"$f":"IF('effRT Support'!$B77=0,\"\",IF('Project Information'!$D$36=\"\",\"\",'Project Information'!$D$36))","v":""},{"$f":"IF('effRT Support'!$B77=0,\"\",IF('Project Information'!$D$42=\"\",\"\",'Project Information'!$D$42))","v":""},{"$f":"IF('effRT Support'!$B77=0,\"\",'effRT Support'!$D77)","v":""},{"$f":"IF('effRT Support'!$B77=0,\"\",'effRT Support'!$L77)","v":""},{"$f":"IF('effRT Support'!$B77=0,\"\",'effRT Support'!$N77)","v":""},null,null,{"$f":"IF('effRT Support'!$B77=0,\"\",'effRT Support'!$P77)","v":""},{"$f":"IF('effRT Support'!$B77=0,\"\",'effRT Support'!$Q77)","v":""},{"$f":"IF('effRT Support'!$B77=0,\"\",'effRT Support'!U77)","v":""},{"$f":"IF('effRT Support'!$B77=0,\"\",'effRT Support'!V77)","v":""},{"$f":"IF('effRT Support'!$B77=0,\"\",'effRT Support'!W77)","v":""},{"$f":"IF('effRT Support'!$B77=0,\"\",'effRT Support'!X77)","v":""},{"$f":"IF('effRT Support'!$B77=0,\"\",'effRT Support'!Y77)","v":""},{"$f":"IF('effRT Support'!$B77=0,\"\",'effRT Support'!Z77*10)","v":""},{"$f":"IF('effRT Support'!$B77=0,\"\",'effRT Support'!AA77)","v":""},{"$f":"IF('effRT Support'!$B77=0,\"\",'effRT Support'!AB77)","v":""},{"$f":"IF('effRT Support'!$B77=0,\"\",'effRT Support'!AC77)","v":""},{"$f":"IF('effRT Support'!$B77=0,\"\",'effRT Support'!AD77)","v":""},{"$f":"IF('effRT Support'!$B77=0,\"\",'effRT Support'!AE77)","v":""},{"$f":"IF('effRT Support'!$B77=0,\"\",\"Hours Actual or Deemed\")","v":""},{"$f":"IF('effRT Support'!$B77=0,\"\",'effRT Support'!$F77)","v":""},{"$f":"IF('effRT Support'!$B77=0,\"\",\"Wattage Actual or Deemed\")","v":""},{"$f":"IF('effRT Support'!$B77=0,\"\",IF('Project Information'!$D$33=\"Pay For Performance\",\"Actual\",\"Deemed\"))","v":""},{"$f":"IF('effRT Support'!$B77=0,\"\",\"Cost Actual or Deemed\")","v":""},{"$f":"IF('effRT Support'!$B77=0,\"\",IF('Project Information'!$D$33=\"Pay For Performance\",\"Actual\",\"Deemed\"))","v":""},{"$f":"IF('effRT Support'!$B77=0,\"\",\"Location\")","v":""},{"$f":"IF('effRT Support'!$B77=0,\"\",'effRT Support'!$E77)","v":""},{"$f":"IF('effRT Support'!$B77=0,\"\",\"Space Type\")","v":""},{"$f":"IF('effRT Support'!$B77=0,\"\",'effRT Support'!$G77)","v":""},{"$f":"IF('effRT Support'!$B77=0,\"\",\"Existing Fixture Description\")","v":""},{"$f":"IF('effRT Support'!$B77=0,\"\",'effRT Support'!$H77)","v":""},{"$f":"IF('effRT Support'!$B77=0,\"\",\"Existing Fixture Quantity\")","v":""},{"$f":"IF('effRT Support'!$B77=0,\"\",'effRT Support'!$I77)","v":""},{"$f":"IF('effRT Support'!$B77=0,\"\",\"Existing Fixture Wattage\")","v":""},{"$f":"IF('effRT Support'!$B77=0,\"\",'effRT Support'!$J77)","v":""},{"$f":"IF('effRT Support'!$B77=0,\"\",\"Annual Hours of Operation\")","v":""},{"$f":"IF('effRT Support'!$B77=0,\"\",'effRT Support'!$K77)","v":""},{"$f":"IF('effRT Support'!$B77=0,\"\",\"Installed Fixture Description\")","v":""},{"$f":"IF('effRT Support'!$B77=0,\"\",'effRT Support'!$M77)","v":""},{"$f":"IF('effRT Support'!$B77=0,\"\",\"Installed Fixture Wattage\")","v":""},{"$f":"IF('effRT Support'!$B77=0,\"\",'effRT Support'!$O77)","v":""},{"$f":"IF('effRT Support'!$B77=0,\"\",\"Material Cost\")","v":""},{"$f":"IF('effRT Support'!$B77=0,\"\",'effRT Support'!$R77)","v":""},{"$f":"IF('effRT Support'!$B77=0,\"\",\"Labor Cost\")","v":""},{"$f":"IF('effRT Support'!$B77=0,\"\",'effRT Support'!$S77)","v":""},{"$f":"IF('effRT Support'!$B77=0,\"\",\"Ancillary Costs - Measure Specific\")","v":""},{"$f":"IF('effRT Support'!$B77=0,\"\",'effRT Support'!$T77)","v":""},{"$f":"IF('effRT Support'!$B77=0,\"\",\"Fuel Type\")","v":""},{"$f":"IF('effRT Support'!$B77=0,\"\",'Project Information'!$D$44)","v":""},{"$f":"IF('effRT Support'!$B77=0,\"\",\"Installed Fixture Quantity\")","v":""},{"$f":"IF('effRT Support'!$B77=0,\"\",'effRT Support'!P76)","v":""}]
[{"$f":"IF('effRT Support'!$B78=0,\"\",IF('Project Information'!$D$33=\"Small Business\",\"SBL\",\"CILS\"))","v":""},{"$f":"IF('effRT Support'!$B78=0,\"\",IF('Project Information'!$K$2=\"\",\"\",'Project Information'!$K$2))","v":""},null,{"$f":"IF('effRT Support'!$B78=0,\"\",IF('Project Information'!$D$46=\"\",\"\",'Project Information'!$D$46))","v":""},{"$f":"IF('effRT Support'!$B78=0,\"\",IF('Project Information'!$D$20=\"\",\"\",VLOOKUP('Project Information'!$D$20,'Other Data'!$B$159:$E$189,4,FALSE)))","v":""},{"$f":"IF('effRT Support'!$B78=0,\"\",IF('Project Information'!$D$31=\"\",\"\",'Project Information'!$D$31))","v":""},{"$f":"IF('effRT Support'!$B78=0,\"\",IF('Project Information'!$D$5=\"\",\"\",'Project Information'!$D$5))","v":""},null,null,{"$f":"IF('effRT Support'!$B78=0,\"\",IF('Project Information'!$D$20=\"\",\"\",VLOOKUP('Project Information'!$D$20,'Other Data'!$B$159:$E$189,2,FALSE)))","v":""},{"$f":"IF('effRT Support'!$B78=0,\"\",IF('Project Information'!$D$20=\"\",\"\",VLOOKUP('Project Information'!$D$20,'Other Data'!$B$159:$E$189,3,FALSE)))","v":""},{"$f":"IF('effRT Support'!$B78=0,\"\",\"Existing\")","v":""},null,{"$f":"IF('effRT Support'!$B78=0,\"\",IF('Project Information'!$D$21=\"\",\"\",'Project Information'!$D$21))","v":""},{"$f":"IF('effRT Support'!$B78=0,\"\",IF('Project Information'!$D$48=\"\",\"\",'Project Information'!$D$48))","v":""},{"$f":"IF('effRT Support'!$B78=0,\"\",\"\")","v":""},{"$f":"IF('effRT Support'!$B78=0,\"\",\"\")","v":""},{"$f":"IF('effRT Support'!$B78=0,\"\",\"\")","v":""},{"$f":"IF('effRT Support'!$B78=0,\"\",\"\")","v":""},{"$f":"IF('effRT Support'!$B78=0,\"\",IF('Project Information'!$D$13=\"\",\"\",'Project Information'!$D$13))","v":""},{"$f":"IF('effRT Support'!$B78=0,\"\",IF('Project Information'!$E$13=\"\",\"\",'Project Information'!$E$13))","v":""},{"$f":"IF('effRT Support'!$B78=0,\"\",IF('Project Information'!$D$14=\"\",\"\",'Project Information'!$D$14))","v":""},{"$f":"IF('effRT Support'!$B78=0,\"\",IF('Project Information'!$D$15=\"\",\"\",'Project Information'!$D$15))","v":""},{"$f":"IF('effRT Support'!$B78=0,\"\",IF('Project Information'!$D$16=\"\",\"\",'Project Information'!$D$16))","v":""},null,{"$f":"IF('effRT Support'!$B78=0,\"\",'Project Information'!$D$18)","v":""},{"$f":"IF('effRT Support'!$B78=0,\"\",IF('Project Information'!$D$23=\"\",\"\",'Project Information'!$D$23))","v":""},{"$f":"IF('effRT Support'!$B78=0,\"\",IF('Project Information'!$D$24=\"\",\"\",'Project Information'!$D$24))","v":""},{"$f":"IF('effRT Support'!$B78=0,\"\",IF('Project Information'!$D$25=\"\",\"\",'Project Information'!$D$25))","v":""},{"$f":"IF('effRT Support'!$B78=0,\"\",IF('Project Information'!$E$25=\"\",\"\",'Project Information'!$E$25))","v":""},{"$f":"IF('effRT Support'!$B78=0,\"\",IF('Project Information'!$F$25=\"\",\"\",'Project Information'!$F$25))","v":""},{"$f":"IF('effRT Support'!$B78=0,\"\",IF('Project Information'!$D$27=\"\",\"Y\",\"N\"))","v":""},{"$f":"IF('effRT Support'!$B78=0,\"\",IF('Project Information'!$D$27=\"\",\"\",'Project Information'!$D$27))","v":""},{"$f":"IF('effRT Support'!$B78=0,\"\",IF('Project Information'!$D$28=\"\",\"\",'Project Information'!$D$28))","v":""},{"$f":"IF('effRT Support'!$B78=0,\"\",IF('Project Information'!$D$29=\"\",\"\",'Project Information'!$D$29))","v":""},{"$f":"IF('effRT Support'!$B78=0,\"\",IF('Project Information'!$E$29=\"\",\"\",'Project Information'!$E$29))","v":""},{"$f":"IF('effRT Support'!$B78=0,\"\",IF('Project Information'!$F$29=\"\",\"\",'Project Information'!$F$29))","v":""},{"$f":"IF('effRT Support'!$B78=0,\"\",\"\")","v":""},{"$f":"IF('effRT Support'!$B78=0,\"\",\"\")","v":""},{"$f":"IF('effRT Support'!$B78=0,\"\",IF('Project Information'!$D$36=\"\",\"\",'Project Information'!$D$36))","v":""},{"$f":"IF('effRT Support'!$B78=0,\"\",IF('Project Information'!$D$42=\"\",\"\",'Project Information'!$D$42))","v":""},{"$f":"IF('effRT Support'!$B78=0,\"\",'effRT Support'!$D78)","v":""},{"$f":"IF('effRT Support'!$B78=0,\"\",'effRT Support'!$L78)","v":""},{"$f":"IF('effRT Support'!$B78=0,\"\",'effRT Support'!$N78)","v":""},null,null,{"$f":"IF('effRT Support'!$B78=0,\"\",'effRT Support'!$P78)","v":""},{"$f":"IF('effRT Support'!$B78=0,\"\",'effRT Support'!$Q78)","v":""},{"$f":"IF('effRT Support'!$B78=0,\"\",'effRT Support'!U78)","v":""},{"$f":"IF('effRT Support'!$B78=0,\"\",'effRT Support'!V78)","v":""},{"$f":"IF('effRT Support'!$B78=0,\"\",'effRT Support'!W78)","v":""},{"$f":"IF('effRT Support'!$B78=0,\"\",'effRT Support'!X78)","v":""},{"$f":"IF('effRT Support'!$B78=0,\"\",'effRT Support'!Y78)","v":""},{"$f":"IF('effRT Support'!$B78=0,\"\",'effRT Support'!Z78*10)","v":""},{"$f":"IF('effRT Support'!$B78=0,\"\",'effRT Support'!AA78)","v":""},{"$f":"IF('effRT Support'!$B78=0,\"\",'effRT Support'!AB78)","v":""},{"$f":"IF('effRT Support'!$B78=0,\"\",'effRT Support'!AC78)","v":""},{"$f":"IF('effRT Support'!$B78=0,\"\",'effRT Support'!AD78)","v":""},{"$f":"IF('effRT Support'!$B78=0,\"\",'effRT Support'!AE78)","v":""},{"$f":"IF('effRT Support'!$B78=0,\"\",\"Hours Actual or Deemed\")","v":""},{"$f":"IF('effRT Support'!$B78=0,\"\",'effRT Support'!$F78)","v":""},{"$f":"IF('effRT Support'!$B78=0,\"\",\"Wattage Actual or Deemed\")","v":""},{"$f":"IF('effRT Support'!$B78=0,\"\",IF('Project Information'!$D$33=\"Pay For Performance\",\"Actual\",\"Deemed\"))","v":""},{"$f":"IF('effRT Support'!$B78=0,\"\",\"Cost Actual or Deemed\")","v":""},{"$f":"IF('effRT Support'!$B78=0,\"\",IF('Project Information'!$D$33=\"Pay For Performance\",\"Actual\",\"Deemed\"))","v":""},{"$f":"IF('effRT Support'!$B78=0,\"\",\"Location\")","v":""},{"$f":"IF('effRT Support'!$B78=0,\"\",'effRT Support'!$E78)","v":""},{"$f":"IF('effRT Support'!$B78=0,\"\",\"Space Type\")","v":""},{"$f":"IF('effRT Support'!$B78=0,\"\",'effRT Support'!$G78)","v":""},{"$f":"IF('effRT Support'!$B78=0,\"\",\"Existing Fixture Description\")","v":""},{"$f":"IF('effRT Support'!$B78=0,\"\",'effRT Support'!$H78)","v":""},{"$f":"IF('effRT Support'!$B78=0,\"\",\"Existing Fixture Quantity\")","v":""},{"$f":"IF('effRT Support'!$B78=0,\"\",'effRT Support'!$I78)","v":""},{"$f":"IF('effRT Support'!$B78=0,\"\",\"Existing Fixture Wattage\")","v":""},{"$f":"IF('effRT Support'!$B78=0,\"\",'effRT Support'!$J78)","v":""},{"$f":"IF('effRT Support'!$B78=0,\"\",\"Annual Hours of Operation\")","v":""},{"$f":"IF('effRT Support'!$B78=0,\"\",'effRT Support'!$K78)","v":""},{"$f":"IF('effRT Support'!$B78=0,\"\",\"Installed Fixture Description\")","v":""},{"$f":"IF('effRT Support'!$B78=0,\"\",'effRT Support'!$M78)","v":""},{"$f":"IF('effRT Support'!$B78=0,\"\",\"Installed Fixture Wattage\")","v":""},{"$f":"IF('effRT Support'!$B78=0,\"\",'effRT Support'!$O78)","v":""},{"$f":"IF('effRT Support'!$B78=0,\"\",\"Material Cost\")","v":""},{"$f":"IF('effRT Support'!$B78=0,\"\",'effRT Support'!$R78)","v":""},{"$f":"IF('effRT Support'!$B78=0,\"\",\"Labor Cost\")","v":""},{"$f":"IF('effRT Support'!$B78=0,\"\",'effRT Support'!$S78)","v":""},{"$f":"IF('effRT Support'!$B78=0,\"\",\"Ancillary Costs - Measure Specific\")","v":""},{"$f":"IF('effRT Support'!$B78=0,\"\",'effRT Support'!$T78)","v":""},{"$f":"IF('effRT Support'!$B78=0,\"\",\"Fuel Type\")","v":""},{"$f":"IF('effRT Support'!$B78=0,\"\",'Project Information'!$D$44)","v":""}]
[{"$f":"IF('effRT Support'!$B79=0,\"\",IF('Project Information'!$D$33=\"Small Business\",\"SBL\",\"CILS\"))","v":""},{"$f":"IF('effRT Support'!$B79=0,\"\",IF('Project Information'!$K$2=\"\",\"\",'Project Information'!$K$2))","v":""},null,{"$f":"IF('effRT Support'!$B79=0,\"\",IF('Project Information'!$D$46=\"\",\"\",'Project Information'!$D$46))","v":""},{"$f":"IF('effRT Support'!$B79=0,\"\",IF('Project Information'!$D$20=\"\",\"\",VLOOKUP('Project Information'!$D$20,'Other Data'!$B$159:$E$189,4,FALSE)))","v":""},{"$f":"IF('effRT Support'!$B79=0,\"\",IF('Project Information'!$D$31=\"\",\"\",'Project Information'!$D$31))","v":""},{"$f":"IF('effRT Support'!$B79=0,\"\",IF('Project Information'!$D$5=\"\",\"\",'Project Information'!$D$5))","v":""},null,null,{"$f":"IF('effRT Support'!$B79=0,\"\",IF('Project Information'!$D$20=\"\",\"\",VLOOKUP('Project Information'!$D$20,'Other Data'!$B$159:$E$189,2,FALSE)))","v":""},{"$f":"IF('effRT Support'!$B79=0,\"\",IF('Project Information'!$D$20=\"\",\"\",VLOOKUP('Project Information'!$D$20,'Other Data'!$B$159:$E$189,3,FALSE)))","v":""},{"$f":"IF('effRT Support'!$B79=0,\"\",\"Existing\")","v":""},null,{"$f":"IF('effRT Support'!$B79=0,\"\",IF('Project Information'!$D$21=\"\",\"\",'Project Information'!$D$21))","v":""},{"$f":"IF('effRT Support'!$B79=0,\"\",IF('Project Information'!$D$48=\"\",\"\",'Project Information'!$D$48))","v":""},{"$f":"IF('effRT Support'!$B79=0,\"\",\"\")","v":""},{"$f":"IF('effRT Support'!$B79=0,\"\",\"\")","v":""},{"$f":"IF('effRT Support'!$B79=0,\"\",\"\")","v":""},{"$f":"IF('effRT Support'!$B79=0,\"\",\"\")","v":""},{"$f":"IF('effRT Support'!$B79=0,\"\",IF('Project Information'!$D$13=\"\",\"\",'Project Information'!$D$13))","v":""},{"$f":"IF('effRT Support'!$B79=0,\"\",IF('Project Information'!$E$13=\"\",\"\",'Project Information'!$E$13))","v":""},{"$f":"IF('effRT Support'!$B79=0,\"\",IF('Project Information'!$D$14=\"\",\"\",'Project Information'!$D$14))","v":""},{"$f":"IF('effRT Support'!$B79=0,\"\",IF('Project Information'!$D$15=\"\",\"\",'Project Information'!$D$15))","v":""},{"$f":"IF('effRT Support'!$B79=0,\"\",IF('Project Information'!$D$16=\"\",\"\",'Project Information'!$D$16))","v":""},null,{"$f":"IF('effRT Support'!$B79=0,\"\",'Project Information'!$D$18)","v":""},{"$f":"IF('effRT Support'!$B79=0,\"\",IF('Project Information'!$D$23=\"\",\"\",'Project Information'!$D$23))","v":""},{"$f":"IF('effRT Support'!$B79=0,\"\",IF('Project Information'!$D$24=\"\",\"\",'Project Information'!$D$24))","v":""},{"$f":"IF('effRT Support'!$B79=0,\"\",IF('Project Information'!$D$25=\"\",\"\",'Project Information'!$D$25))","v":""},{"$f":"IF('effRT Support'!$B79=0,\"\",IF('Project Information'!$E$25=\"\",\"\",'Project Information'!$E$25))","v":""},{"$f":"IF('effRT Support'!$B79=0,\"\",IF('Project Information'!$F$25=\"\",\"\",'Project Information'!$F$25))","v":""},{"$f":"IF('effRT Support'!$B79=0,\"\",IF('Project Information'!$D$27=\"\",\"Y\",\"N\"))","v":""},{"$f":"IF('effRT Support'!$B79=0,\"\",IF('Project Information'!$D$27=\"\",\"\",'Project Information'!$D$27))","v":""},{"$f":"IF('effRT Support'!$B79=0,\"\",IF('Project Information'!$D$28=\"\",\"\",'Project Information'!$D$28))","v":""},{"$f":"IF('effRT Support'!$B79=0,\"\",IF('Project Information'!$D$29=\"\",\"\",'Project Information'!$D$29))","v":""},{"$f":"IF('effRT Support'!$B79=0,\"\",IF('Project Information'!$E$29=\"\",\"\",'Project Information'!$E$29))","v":""},{"$f":"IF('effRT Support'!$B79=0,\"\",IF('Project Information'!$F$29=\"\",\"\",'Project Information'!$F$29))","v":""},{"$f":"IF('effRT Support'!$B79=0,\"\",\"\")","v":""},{"$f":"IF('effRT Support'!$B79=0,\"\",\"\")","v":""},{"$f":"IF('effRT Support'!$B79=0,\"\",IF('Project Information'!$D$36=\"\",\"\",'Project Information'!$D$36))","v":""},{"$f":"IF('effRT Support'!$B79=0,\"\",IF('Project Information'!$D$42=\"\",\"\",'Project Information'!$D$42))","v":""},{"$f":"IF('effRT Support'!$B79=0,\"\",'effRT Support'!$D79)","v":""},{"$f":"IF('effRT Support'!$B79=0,\"\",'effRT Support'!$L79)","v":""},{"$f":"IF('effRT Support'!$B79=0,\"\",'effRT Support'!$N79)","v":""},null,null,{"$f":"IF('effRT Support'!$B79=0,\"\",'effRT Support'!$P79)","v":""},{"$f":"IF('effRT Support'!$B79=0,\"\",'effRT Support'!$Q79)","v":""},{"$f":"IF('effRT Support'!$B79=0,\"\",'effRT Support'!U79)","v":""},{"$f":"IF('effRT Support'!$B79=0,\"\",'effRT Support'!V79)","v":""},{"$f":"IF('effRT Support'!$B79=0,\"\",'effRT Support'!W79)","v":""},{"$f":"IF('effRT Support'!$B79=0,\"\",'effRT Support'!X79)","v":""},{"$f":"IF('effRT Support'!$B79=0,\"\",'effRT Support'!Y79)","v":""},{"$f":"IF('effRT Support'!$B79=0,\"\",'effRT Support'!Z79*10)","v":""},{"$f":"IF('effRT Support'!$B79=0,\"\",'effRT Support'!AA79)","v":""},{"$f":"IF('effRT Support'!$B79=0,\"\",'effRT Support'!AB79)","v":""},{"$f":"IF('effRT Support'!$B79=0,\"\",'effRT Support'!AC79)","v":""},{"$f":"IF('effRT Support'!$B79=0,\"\",'effRT Support'!AD79)","v":""},{"$f":"IF('effRT Support'!$B79=0,\"\",'effRT Support'!AE79)","v":""},{"$f":"IF('effRT Support'!$B79=0,\"\",\"Hours Actual or Deemed\")","v":""},{"$f":"IF('effRT Support'!$B79=0,\"\",'effRT Support'!$F79)","v":""},{"$f":"IF('effRT Support'!$B79=0,\"\",\"Wattage Actual or Deemed\")","v":""},{"$f":"IF('effRT Support'!$B79=0,\"\",IF('Project Information'!$D$33=\"Pay For Performance\",\"Actual\",\"Deemed\"))","v":""},{"$f":"IF('effRT Support'!$B79=0,\"\",\"Cost Actual or Deemed\")","v":""},{"$f":"IF('effRT Support'!$B79=0,\"\",IF('Project Information'!$D$33=\"Pay For Performance\",\"Actual\",\"Deemed\"))","v":""},{"$f":"IF('effRT Support'!$B79=0,\"\",\"Location\")","v":""},{"$f":"IF('effRT Support'!$B79=0,\"\",'effRT Support'!$E79)","v":""},{"$f":"IF('effRT Support'!$B79=0,\"\",\"Space Type\")","v":""},{"$f":"IF('effRT Support'!$B79=0,\"\",'effRT Support'!$G79)","v":""},{"$f":"IF('effRT Support'!$B79=0,\"\",\"Existing Fixture Description\")","v":""},{"$f":"IF('effRT Support'!$B79=0,\"\",'effRT Support'!$H79)","v":""},{"$f":"IF('effRT Support'!$B79=0,\"\",\"Existing Fixture Quantity\")","v":""},{"$f":"IF('effRT Support'!$B79=0,\"\",'effRT Support'!$I79)","v":""},{"$f":"IF('effRT Support'!$B79=0,\"\",\"Existing Fixture Wattage\")","v":""},{"$f":"IF('effRT Support'!$B79=0,\"\",'effRT Support'!$J79)","v":""},{"$f":"IF('effRT Support'!$B79=0,\"\",\"Annual Hours of Operation\")","v":""},{"$f":"IF('effRT Support'!$B79=0,\"\",'effRT Support'!$K79)","v":""},{"$f":"IF('effRT Support'!$B79=0,\"\",\"Installed Fixture Description\")","v":""},{"$f":"IF('effRT Support'!$B79=0,\"\",'effRT Support'!$M79)","v":""},{"$f":"IF('effRT Support'!$B79=0,\"\",\"Installed Fixture Wattage\")","v":""},{"$f":"IF('effRT Support'!$B79=0,\"\",'effRT Support'!$O79)","v":""},{"$f":"IF('effRT Support'!$B79=0,\"\",\"Material Cost\")","v":""},{"$f":"IF('effRT Support'!$B79=0,\"\",'effRT Support'!$R79)","v":""},{"$f":"IF('effRT Support'!$B79=0,\"\",\"Labor Cost\")","v":""},{"$f":"IF('effRT Support'!$B79=0,\"\",'effRT Support'!$S79)","v":""},{"$f":"IF('effRT Support'!$B79=0,\"\",\"Ancillary Costs - Measure Specific\")","v":""},{"$f":"IF('effRT Support'!$B79=0,\"\",'effRT Support'!$T79)","v":""},{"$f":"IF('effRT Support'!$B79=0,\"\",\"Fuel Type\")","v":""},{"$f":"IF('effRT Support'!$B79=0,\"\",'Project Information'!$D$44)","v":""},{"$f":"IF('effRT Support'!$B79=0,\"\",\"Installed Fixture Quantity\")","v":""},{"$f":"IF('effRT Support'!$B79=0,\"\",'effRT Support'!P78)","v":""}]
[{"$f":"IF('effRT Support'!$B80=0,\"\",IF('Project Information'!$D$33=\"Small Business\",\"SBL\",\"CILS\"))","v":""},{"$f":"IF('effRT Support'!$B80=0,\"\",IF('Project Information'!$K$2=\"\",\"\",'Project Information'!$K$2))","v":""},null,{"$f":"IF('effRT Support'!$B80=0,\"\",IF('Project Information'!$D$46=\"\",\"\",'Project Information'!$D$46))","v":""},{"$f":"IF('effRT Support'!$B80=0,\"\",IF('Project Information'!$D$20=\"\",\"\",VLOOKUP('Project Information'!$D$20,'Other Data'!$B$159:$E$189,4,FALSE)))","v":""},{"$f":"IF('effRT Support'!$B80=0,\"\",IF('Project Information'!$D$31=\"\",\"\",'Project Information'!$D$31))","v":""},{"$f":"IF('effRT Support'!$B80=0,\"\",IF('Project Information'!$D$5=\"\",\"\",'Project Information'!$D$5))","v":""},null,null,{"$f":"IF('effRT Support'!$B80=0,\"\",IF('Project Information'!$D$20=\"\",\"\",VLOOKUP('Project Information'!$D$20,'Other Data'!$B$159:$E$189,2,FALSE)))","v":""},{"$f":"IF('effRT Support'!$B80=0,\"\",IF('Project Information'!$D$20=\"\",\"\",VLOOKUP('Project Information'!$D$20,'Other Data'!$B$159:$E$189,3,FALSE)))","v":""},{"$f":"IF('effRT Support'!$B80=0,\"\",\"Existing\")","v":""},null,{"$f":"IF('effRT Support'!$B80=0,\"\",IF('Project Information'!$D$21=\"\",\"\",'Project Information'!$D$21))","v":""},{"$f":"IF('effRT Support'!$B80=0,\"\",IF('Project Information'!$D$48=\"\",\"\",'Project Information'!$D$48))","v":""},{"$f":"IF('effRT Support'!$B80=0,\"\",\"\")","v":""},{"$f":"IF('effRT Support'!$B80=0,\"\",\"\")","v":""},{"$f":"IF('effRT Support'!$B80=0,\"\",\"\")","v":""},{"$f":"IF('effRT Support'!$B80=0,\"\",\"\")","v":""},{"$f":"IF('effRT Support'!$B80=0,\"\",IF('Project Information'!$D$13=\"\",\"\",'Project Information'!$D$13))","v":""},{"$f":"IF('effRT Support'!$B80=0,\"\",IF('Project Information'!$E$13=\"\",\"\",'Project Information'!$E$13))","v":""},{"$f":"IF('effRT Support'!$B80=0,\"\",IF('Project Information'!$D$14=\"\",\"\",'Project Information'!$D$14))","v":""},{"$f":"IF('effRT Support'!$B80=0,\"\",IF('Project Information'!$D$15=\"\",\"\",'Project Information'!$D$15))","v":""},{"$f":"IF('effRT Support'!$B80=0,\"\",IF('Project Information'!$D$16=\"\",\"\",'Project Information'!$D$16))","v":""},null,{"$f":"IF('effRT Support'!$B80=0,\"\",'Project Information'!$D$18)","v":""},{"$f":"IF('effRT Support'!$B80=0,\"\",IF('Project Information'!$D$23=\"\",\"\",'Project Information'!$D$23))","v":""},{"$f":"IF('effRT Support'!$B80=0,\"\",IF('Project Information'!$D$24=\"\",\"\",'Project Information'!$D$24))","v":""},{"$f":"IF('effRT Support'!$B80=0,\"\",IF('Project Information'!$D$25=\"\",\"\",'Project Information'!$D$25))","v":""},{"$f":"IF('effRT Support'!$B80=0,\"\",IF('Project Information'!$E$25=\"\",\"\",'Project Information'!$E$25))","v":""},{"$f":"IF('effRT Support'!$B80=0,\"\",IF('Project Information'!$F$25=\"\",\"\",'Project Information'!$F$25))","v":""},{"$f":"IF('effRT Support'!$B80=0,\"\",IF('Project Information'!$D$27=\"\",\"Y\",\"N\"))","v":""},{"$f":"IF('effRT Support'!$B80=0,\"\",IF('Project Information'!$D$27=\"\",\"\",'Project Information'!$D$27))","v":""},{"$f":"IF('effRT Support'!$B80=0,\"\",IF('Project Information'!$D$28=\"\",\"\",'Project Information'!$D$28))","v":""},{"$f":"IF('effRT Support'!$B80=0,\"\",IF('Project Information'!$D$29=\"\",\"\",'Project Information'!$D$29))","v":""},{"$f":"IF('effRT Support'!$B80=0,\"\",IF('Project Information'!$E$29=\"\",\"\",'Project Information'!$E$29))","v":""},{"$f":"IF('effRT Support'!$B80=0,\"\",IF('Project Information'!$F$29=\"\",\"\",'Project Information'!$F$29))","v":""},{"$f":"IF('effRT Support'!$B80=0,\"\",\"\")","v":""},{"$f":"IF('effRT Support'!$B80=0,\"\",\"\")","v":""},{"$f":"IF('effRT Support'!$B80=0,\"\",IF('Project Information'!$D$36=\"\",\"\",'Project Information'!$D$36))","v":""},{"$f":"IF('effRT Support'!$B80=0,\"\",IF('Project Information'!$D$42=\"\",\"\",'Project Information'!$D$42))","v":""},{"$f":"IF('effRT Support'!$B80=0,\"\",'effRT Support'!$D80)","v":""},{"$f":"IF('effRT Support'!$B80=0,\"\",'effRT Support'!$L80)","v":""},{"$f":"IF('effRT Support'!$B80=0,\"\",'effRT Support'!$N80)","v":""},null,null,{"$f":"IF('effRT Support'!$B80=0,\"\",'effRT Support'!$P80)","v":""},{"$f":"IF('effRT Support'!$B80=0,\"\",'effRT Support'!$Q80)","v":""},{"$f":"IF('effRT Support'!$B80=0,\"\",'effRT Support'!U80)","v":""},{"$f":"IF('effRT Support'!$B80=0,\"\",'effRT Support'!V80)","v":""},{"$f":"IF('effRT Support'!$B80=0,\"\",'effRT Support'!W80)","v":""},{"$f":"IF('effRT Support'!$B80=0,\"\",'effRT Support'!X80)","v":""},{"$f":"IF('effRT Support'!$B80=0,\"\",'effRT Support'!Y80)","v":""},{"$f":"IF('effRT Support'!$B80=0,\"\",'effRT Support'!Z80*10)","v":""},{"$f":"IF('effRT Support'!$B80=0,\"\",'effRT Support'!AA80)","v":""},{"$f":"IF('effRT Support'!$B80=0,\"\",'effRT Support'!AB80)","v":""},{"$f":"IF('effRT Support'!$B80=0,\"\",'effRT Support'!AC80)","v":""},{"$f":"IF('effRT Support'!$B80=0,\"\",'effRT Support'!AD80)","v":""},{"$f":"IF('effRT Support'!$B80=0,\"\",'effRT Support'!AE80)","v":""},{"$f":"IF('effRT Support'!$B80=0,\"\",\"Hours Actual or Deemed\")","v":""},{"$f":"IF('effRT Support'!$B80=0,\"\",'effRT Support'!$F80)","v":""},{"$f":"IF('effRT Support'!$B80=0,\"\",\"Wattage Actual or Deemed\")","v":""},{"$f":"IF('effRT Support'!$B80=0,\"\",IF('Project Information'!$D$33=\"Pay For Performance\",\"Actual\",\"Deemed\"))","v":""},{"$f":"IF('effRT Support'!$B80=0,\"\",\"Cost Actual or Deemed\")","v":""},{"$f":"IF('effRT Support'!$B80=0,\"\",IF('Project Information'!$D$33=\"Pay For Performance\",\"Actual\",\"Deemed\"))","v":""},{"$f":"IF('effRT Support'!$B80=0,\"\",\"Location\")","v":""},{"$f":"IF('effRT Support'!$B80=0,\"\",'effRT Support'!$E80)","v":""},{"$f":"IF('effRT Support'!$B80=0,\"\",\"Space Type\")","v":""},{"$f":"IF('effRT Support'!$B80=0,\"\",'effRT Support'!$G80)","v":""},{"$f":"IF('effRT Support'!$B80=0,\"\",\"Existing Fixture Description\")","v":""},{"$f":"IF('effRT Support'!$B80=0,\"\",'effRT Support'!$H80)","v":""},{"$f":"IF('effRT Support'!$B80=0,\"\",\"Existing Fixture Quantity\")","v":""},{"$f":"IF('effRT Support'!$B80=0,\"\",'effRT Support'!$I80)","v":""},{"$f":"IF('effRT Support'!$B80=0,\"\",\"Existing Fixture Wattage\")","v":""},{"$f":"IF('effRT Support'!$B80=0,\"\",'effRT Support'!$J80)","v":""},{"$f":"IF('effRT Support'!$B80=0,\"\",\"Annual Hours of Operation\")","v":""},{"$f":"IF('effRT Support'!$B80=0,\"\",'effRT Support'!$K80)","v":""},{"$f":"IF('effRT Support'!$B80=0,\"\",\"Installed Fixture Description\")","v":""},{"$f":"IF('effRT Support'!$B80=0,\"\",'effRT Support'!$M80)","v":""},{"$f":"IF('effRT Support'!$B80=0,\"\",\"Installed Fixture Wattage\")","v":""},{"$f":"IF('effRT Support'!$B80=0,\"\",'effRT Support'!$O80)","v":""},{"$f":"IF('effRT Support'!$B80=0,\"\",\"Material Cost\")","v":""},{"$f":"IF('effRT Support'!$B80=0,\"\",'effRT Support'!$R80)","v":""},{"$f":"IF('effRT Support'!$B80=0,\"\",\"Labor Cost\")","v":""},{"$f":"IF('effRT Support'!$B80=0,\"\",'effRT Support'!$S80)","v":""},{"$f":"IF('effRT Support'!$B80=0,\"\",\"Ancillary Costs - Measure Specific\")","v":""},{"$f":"IF('effRT Support'!$B80=0,\"\",'effRT Support'!$T80)","v":""},{"$f":"IF('effRT Support'!$B80=0,\"\",\"Fuel Type\")","v":""},{"$f":"IF('effRT Support'!$B80=0,\"\",'Project Information'!$D$44)","v":""}]
[{"$f":"IF('effRT Support'!$B81=0,\"\",IF('Project Information'!$D$33=\"Small Business\",\"SBL\",\"CILS\"))","v":""},{"$f":"IF('effRT Support'!$B81=0,\"\",IF('Project Information'!$K$2=\"\",\"\",'Project Information'!$K$2))","v":""},null,{"$f":"IF('effRT Support'!$B81=0,\"\",IF('Project Information'!$D$46=\"\",\"\",'Project Information'!$D$46))","v":""},{"$f":"IF('effRT Support'!$B81=0,\"\",IF('Project Information'!$D$20=\"\",\"\",VLOOKUP('Project Information'!$D$20,'Other Data'!$B$159:$E$189,4,FALSE)))","v":""},{"$f":"IF('effRT Support'!$B81=0,\"\",IF('Project Information'!$D$31=\"\",\"\",'Project Information'!$D$31))","v":""},{"$f":"IF('effRT Support'!$B81=0,\"\",IF('Project Information'!$D$5=\"\",\"\",'Project Information'!$D$5))","v":""},null,null,{"$f":"IF('effRT Support'!$B81=0,\"\",IF('Project Information'!$D$20=\"\",\"\",VLOOKUP('Project Information'!$D$20,'Other Data'!$B$159:$E$189,2,FALSE)))","v":""},{"$f":"IF('effRT Support'!$B81=0,\"\",IF('Project Information'!$D$20=\"\",\"\",VLOOKUP('Project Information'!$D$20,'Other Data'!$B$159:$E$189,3,FALSE)))","v":""},{"$f":"IF('effRT Support'!$B81=0,\"\",\"Existing\")","v":""},null,{"$f":"IF('effRT Support'!$B81=0,\"\",IF('Project Information'!$D$21=\"\",\"\",'Project Information'!$D$21))","v":""},{"$f":"IF('effRT Support'!$B81=0,\"\",IF('Project Information'!$D$48=\"\",\"\",'Project Information'!$D$48))","v":""},{"$f":"IF('effRT Support'!$B81=0,\"\",\"\")","v":""},{"$f":"IF('effRT Support'!$B81=0,\"\",\"\")","v":""},{"$f":"IF('effRT Support'!$B81=0,\"\",\"\")","v":""},{"$f":"IF('effRT Support'!$B81=0,\"\",\"\")","v":""},{"$f":"IF('effRT Support'!$B81=0,\"\",IF('Project Information'!$D$13=\"\",\"\",'Project Information'!$D$13))","v":""},{"$f":"IF('effRT Support'!$B81=0,\"\",IF('Project Information'!$E$13=\"\",\"\",'Project Information'!$E$13))","v":""},{"$f":"IF('effRT Support'!$B81=0,\"\",IF('Project Information'!$D$14=\"\",\"\",'Project Information'!$D$14))","v":""},{"$f":"IF('effRT Support'!$B81=0,\"\",IF('Project Information'!$D$15=\"\",\"\",'Project Information'!$D$15))","v":""},{"$f":"IF('effRT Support'!$B81=0,\"\",IF('Project Information'!$D$16=\"\",\"\",'Project Information'!$D$16))","v":""},null,{"$f":"IF('effRT Support'!$B81=0,\"\",'Project Information'!$D$18)","v":""},{"$f":"IF('effRT Support'!$B81=0,\"\",IF('Project Information'!$D$23=\"\",\"\",'Project Information'!$D$23))","v":""},{"$f":"IF('effRT Support'!$B81=0,\"\",IF('Project Information'!$D$24=\"\",\"\",'Project Information'!$D$24))","v":""},{"$f":"IF('effRT Support'!$B81=0,\"\",IF('Project Information'!$D$25=\"\",\"\",'Project Information'!$D$25))","v":""},{"$f":"IF('effRT Support'!$B81=0,\"\",IF('Project Information'!$E$25=\"\",\"\",'Project Information'!$E$25))","v":""},{"$f":"IF('effRT Support'!$B81=0,\"\",IF('Project Information'!$F$25=\"\",\"\",'Project Information'!$F$25))","v":""},{"$f":"IF('effRT Support'!$B81=0,\"\",IF('Project Information'!$D$27=\"\",\"Y\",\"N\"))","v":""},{"$f":"IF('effRT Support'!$B81=0,\"\",IF('Project Information'!$D$27=\"\",\"\",'Project Information'!$D$27))","v":""},{"$f":"IF('effRT Support'!$B81=0,\"\",IF('Project Information'!$D$28=\"\",\"\",'Project Information'!$D$28))","v":""},{"$f":"IF('effRT Support'!$B81=0,\"\",IF('Project Information'!$D$29=\"\",\"\",'Project Information'!$D$29))","v":""},{"$f":"IF('effRT Support'!$B81=0,\"\",IF('Project Information'!$E$29=\"\",\"\",'Project Information'!$E$29))","v":""},{"$f":"IF('effRT Support'!$B81=0,\"\",IF('Project Information'!$F$29=\"\",\"\",'Project Information'!$F$29))","v":""},{"$f":"IF('effRT Support'!$B81=0,\"\",\"\")","v":""},{"$f":"IF('effRT Support'!$B81=0,\"\",\"\")","v":""},{"$f":"IF('effRT Support'!$B81=0,\"\",IF('Project Information'!$D$36=\"\",\"\",'Project Information'!$D$36))","v":""},{"$f":"IF('effRT Support'!$B81=0,\"\",IF('Project Information'!$D$42=\"\",\"\",'Project Information'!$D$42))","v":""},{"$f":"IF('effRT Support'!$B81=0,\"\",'effRT Support'!$D81)","v":""},{"$f":"IF('effRT Support'!$B81=0,\"\",'effRT Support'!$L81)","v":""},{"$f":"IF('effRT Support'!$B81=0,\"\",'effRT Support'!$N81)","v":""},null,null,{"$f":"IF('effRT Support'!$B81=0,\"\",'effRT Support'!$P81)","v":""},{"$f":"IF('effRT Support'!$B81=0,\"\",'effRT Support'!$Q81)","v":""},{"$f":"IF('effRT Support'!$B81=0,\"\",'effRT Support'!U81)","v":""},{"$f":"IF('effRT Support'!$B81=0,\"\",'effRT Support'!V81)","v":""},{"$f":"IF('effRT Support'!$B81=0,\"\",'effRT Support'!W81)","v":""},{"$f":"IF('effRT Support'!$B81=0,\"\",'effRT Support'!X81)","v":""},{"$f":"IF('effRT Support'!$B81=0,\"\",'effRT Support'!Y81)","v":""},{"$f":"IF('effRT Support'!$B81=0,\"\",'effRT Support'!Z81*10)","v":""},{"$f":"IF('effRT Support'!$B81=0,\"\",'effRT Support'!AA81)","v":""},{"$f":"IF('effRT Support'!$B81=0,\"\",'effRT Support'!AB81)","v":""},{"$f":"IF('effRT Support'!$B81=0,\"\",'effRT Support'!AC81)","v":""},{"$f":"IF('effRT Support'!$B81=0,\"\",'effRT Support'!AD81)","v":""},{"$f":"IF('effRT Support'!$B81=0,\"\",'effRT Support'!AE81)","v":""},{"$f":"IF('effRT Support'!$B81=0,\"\",\"Hours Actual or Deemed\")","v":""},{"$f":"IF('effRT Support'!$B81=0,\"\",'effRT Support'!$F81)","v":""},{"$f":"IF('effRT Support'!$B81=0,\"\",\"Wattage Actual or Deemed\")","v":""},{"$f":"IF('effRT Support'!$B81=0,\"\",IF('Project Information'!$D$33=\"Pay For Performance\",\"Actual\",\"Deemed\"))","v":""},{"$f":"IF('effRT Support'!$B81=0,\"\",\"Cost Actual or Deemed\")","v":""},{"$f":"IF('effRT Support'!$B81=0,\"\",IF('Project Information'!$D$33=\"Pay For Performance\",\"Actual\",\"Deemed\"))","v":""},{"$f":"IF('effRT Support'!$B81=0,\"\",\"Location\")","v":""},{"$f":"IF('effRT Support'!$B81=0,\"\",'effRT Support'!$E81)","v":""},{"$f":"IF('effRT Support'!$B81=0,\"\",\"Space Type\")","v":""},{"$f":"IF('effRT Support'!$B81=0,\"\",'effRT Support'!$G81)","v":""},{"$f":"IF('effRT Support'!$B81=0,\"\",\"Existing Fixture Description\")","v":""},{"$f":"IF('effRT Support'!$B81=0,\"\",'effRT Support'!$H81)","v":""},{"$f":"IF('effRT Support'!$B81=0,\"\",\"Existing Fixture Quantity\")","v":""},{"$f":"IF('effRT Support'!$B81=0,\"\",'effRT Support'!$I81)","v":""},{"$f":"IF('effRT Support'!$B81=0,\"\",\"Existing Fixture Wattage\")","v":""},{"$f":"IF('effRT Support'!$B81=0,\"\",'effRT Support'!$J81)","v":""},{"$f":"IF('effRT Support'!$B81=0,\"\",\"Annual Hours of Operation\")","v":""},{"$f":"IF('effRT Support'!$B81=0,\"\",'effRT Support'!$K81)","v":""},{"$f":"IF('effRT Support'!$B81=0,\"\",\"Installed Fixture Description\")","v":""},{"$f":"IF('effRT Support'!$B81=0,\"\",'effRT Support'!$M81)","v":""},{"$f":"IF('effRT Support'!$B81=0,\"\",\"Installed Fixture Wattage\")","v":""},{"$f":"IF('effRT Support'!$B81=0,\"\",'effRT Support'!$O81)","v":""},{"$f":"IF('effRT Support'!$B81=0,\"\",\"Material Cost\")","v":""},{"$f":"IF('effRT Support'!$B81=0,\"\",'effRT Support'!$R81)","v":""},{"$f":"IF('effRT Support'!$B81=0,\"\",\"Labor Cost\")","v":""},{"$f":"IF('effRT Support'!$B81=0,\"\",'effRT Support'!$S81)","v":""},{"$f":"IF('effRT Support'!$B81=0,\"\",\"Ancillary Costs - Measure Specific\")","v":""},{"$f":"IF('effRT Support'!$B81=0,\"\",'effRT Support'!$T81)","v":""},{"$f":"IF('effRT Support'!$B81=0,\"\",\"Fuel Type\")","v":""},{"$f":"IF('effRT Support'!$B81=0,\"\",'Project Information'!$D$44)","v":""},{"$f":"IF('effRT Support'!$B81=0,\"\",\"Installed Fixture Quantity\")","v":""},{"$f":"IF('effRT Support'!$B81=0,\"\",'effRT Support'!P80)","v":""}]
[{"$f":"IF('effRT Support'!$B82=0,\"\",IF('Project Information'!$D$33=\"Small Business\",\"SBL\",\"CILS\"))","v":""},{"$f":"IF('effRT Support'!$B82=0,\"\",IF('Project Information'!$K$2=\"\",\"\",'Project Information'!$K$2))","v":""},null,{"$f":"IF('effRT Support'!$B82=0,\"\",IF('Project Information'!$D$46=\"\",\"\",'Project Information'!$D$46))","v":""},{"$f":"IF('effRT Support'!$B82=0,\"\",IF('Project Information'!$D$20=\"\",\"\",VLOOKUP('Project Information'!$D$20,'Other Data'!$B$159:$E$189,4,FALSE)))","v":""},{"$f":"IF('effRT Support'!$B82=0,\"\",IF('Project Information'!$D$31=\"\",\"\",'Project Information'!$D$31))","v":""},{"$f":"IF('effRT Support'!$B82=0,\"\",IF('Project Information'!$D$5=\"\",\"\",'Project Information'!$D$5))","v":""},null,null,{"$f":"IF('effRT Support'!$B82=0,\"\",IF('Project Information'!$D$20=\"\",\"\",VLOOKUP('Project Information'!$D$20,'Other Data'!$B$159:$E$189,2,FALSE)))","v":""},{"$f":"IF('effRT Support'!$B82=0,\"\",IF('Project Information'!$D$20=\"\",\"\",VLOOKUP('Project Information'!$D$20,'Other Data'!$B$159:$E$189,3,FALSE)))","v":""},{"$f":"IF('effRT Support'!$B82=0,\"\",\"Existing\")","v":""},null,{"$f":"IF('effRT Support'!$B82=0,\"\",IF('Project Information'!$D$21=\"\",\"\",'Project Information'!$D$21))","v":""},{"$f":"IF('effRT Support'!$B82=0,\"\",IF('Project Information'!$D$48=\"\",\"\",'Project Information'!$D$48))","v":""},{"$f":"IF('effRT Support'!$B82=0,\"\",\"\")","v":""},{"$f":"IF('effRT Support'!$B82=0,\"\",\"\")","v":""},{"$f":"IF('effRT Support'!$B82=0,\"\",\"\")","v":""},{"$f":"IF('effRT Support'!$B82=0,\"\",\"\")","v":""},{"$f":"IF('effRT Support'!$B82=0,\"\",IF('Project Information'!$D$13=\"\",\"\",'Project Information'!$D$13))","v":""},{"$f":"IF('effRT Support'!$B82=0,\"\",IF('Project Information'!$E$13=\"\",\"\",'Project Information'!$E$13))","v":""},{"$f":"IF('effRT Support'!$B82=0,\"\",IF('Project Information'!$D$14=\"\",\"\",'Project Information'!$D$14))","v":""},{"$f":"IF('effRT Support'!$B82=0,\"\",IF('Project Information'!$D$15=\"\",\"\",'Project Information'!$D$15))","v":""},{"$f":"IF('effRT Support'!$B82=0,\"\",IF('Project Information'!$D$16=\"\",\"\",'Project Information'!$D$16))","v":""},null,{"$f":"IF('effRT Support'!$B82=0,\"\",'Project Information'!$D$18)","v":""},{"$f":"IF('effRT Support'!$B82=0,\"\",IF('Project Information'!$D$23=\"\",\"\",'Project Information'!$D$23))","v":""},{"$f":"IF('effRT Support'!$B82=0,\"\",IF('Project Information'!$D$24=\"\",\"\",'Project Information'!$D$24))","v":""},{"$f":"IF('effRT Support'!$B82=0,\"\",IF('Project Information'!$D$25=\"\",\"\",'Project Information'!$D$25))","v":""},{"$f":"IF('effRT Support'!$B82=0,\"\",IF('Project Information'!$E$25=\"\",\"\",'Project Information'!$E$25))","v":""},{"$f":"IF('effRT Support'!$B82=0,\"\",IF('Project Information'!$F$25=\"\",\"\",'Project Information'!$F$25))","v":""},{"$f":"IF('effRT Support'!$B82=0,\"\",IF('Project Information'!$D$27=\"\",\"Y\",\"N\"))","v":""},{"$f":"IF('effRT Support'!$B82=0,\"\",IF('Project Information'!$D$27=\"\",\"\",'Project Information'!$D$27))","v":""},{"$f":"IF('effRT Support'!$B82=0,\"\",IF('Project Information'!$D$28=\"\",\"\",'Project Information'!$D$28))","v":""},{"$f":"IF('effRT Support'!$B82=0,\"\",IF('Project Information'!$D$29=\"\",\"\",'Project Information'!$D$29))","v":""},{"$f":"IF('effRT Support'!$B82=0,\"\",IF('Project Information'!$E$29=\"\",\"\",'Project Information'!$E$29))","v":""},{"$f":"IF('effRT Support'!$B82=0,\"\",IF('Project Information'!$F$29=\"\",\"\",'Project Information'!$F$29))","v":""},{"$f":"IF('effRT Support'!$B82=0,\"\",\"\")","v":""},{"$f":"IF('effRT Support'!$B82=0,\"\",\"\")","v":""},{"$f":"IF('effRT Support'!$B82=0,\"\",IF('Project Information'!$D$36=\"\",\"\",'Project Information'!$D$36))","v":""},{"$f":"IF('effRT Support'!$B82=0,\"\",IF('Project Information'!$D$42=\"\",\"\",'Project Information'!$D$42))","v":""},{"$f":"IF('effRT Support'!$B82=0,\"\",'effRT Support'!$D82)","v":""},{"$f":"IF('effRT Support'!$B82=0,\"\",'effRT Support'!$L82)","v":""},{"$f":"IF('effRT Support'!$B82=0,\"\",'effRT Support'!$N82)","v":""},null,null,{"$f":"IF('effRT Support'!$B82=0,\"\",'effRT Support'!$P82)","v":""},{"$f":"IF('effRT Support'!$B82=0,\"\",'effRT Support'!$Q82)","v":""},{"$f":"IF('effRT Support'!$B82=0,\"\",'effRT Support'!U82)","v":""},{"$f":"IF('effRT Support'!$B82=0,\"\",'effRT Support'!V82)","v":""},{"$f":"IF('effRT Support'!$B82=0,\"\",'effRT Support'!W82)","v":""},{"$f":"IF('effRT Support'!$B82=0,\"\",'effRT Support'!X82)","v":""},{"$f":"IF('effRT Support'!$B82=0,\"\",'effRT Support'!Y82)","v":""},{"$f":"IF('effRT Support'!$B82=0,\"\",'effRT Support'!Z82*10)","v":""},{"$f":"IF('effRT Support'!$B82=0,\"\",'effRT Support'!AA82)","v":""},{"$f":"IF('effRT Support'!$B82=0,\"\",'effRT Support'!AB82)","v":""},{"$f":"IF('effRT Support'!$B82=0,\"\",'effRT Support'!AC82)","v":""},{"$f":"IF('effRT Support'!$B82=0,\"\",'effRT Support'!AD82)","v":""},{"$f":"IF('effRT Support'!$B82=0,\"\",'effRT Support'!AE82)","v":""},{"$f":"IF('effRT Support'!$B82=0,\"\",\"Hours Actual or Deemed\")","v":""},{"$f":"IF('effRT Support'!$B82=0,\"\",'effRT Support'!$F82)","v":""},{"$f":"IF('effRT Support'!$B82=0,\"\",\"Wattage Actual or Deemed\")","v":""},{"$f":"IF('effRT Support'!$B82=0,\"\",IF('Project Information'!$D$33=\"Pay For Performance\",\"Actual\",\"Deemed\"))","v":""},{"$f":"IF('effRT Support'!$B82=0,\"\",\"Cost Actual or Deemed\")","v":""},{"$f":"IF('effRT Support'!$B82=0,\"\",IF('Project Information'!$D$33=\"Pay For Performance\",\"Actual\",\"Deemed\"))","v":""},{"$f":"IF('effRT Support'!$B82=0,\"\",\"Location\")","v":""},{"$f":"IF('effRT Support'!$B82=0,\"\",'effRT Support'!$E82)","v":""},{"$f":"IF('effRT Support'!$B82=0,\"\",\"Space Type\")","v":""},{"$f":"IF('effRT Support'!$B82=0,\"\",'effRT Support'!$G82)","v":""},{"$f":"IF('effRT Support'!$B82=0,\"\",\"Existing Fixture Description\")","v":""},{"$f":"IF('effRT Support'!$B82=0,\"\",'effRT Support'!$H82)","v":""},{"$f":"IF('effRT Support'!$B82=0,\"\",\"Existing Fixture Quantity\")","v":""},{"$f":"IF('effRT Support'!$B82=0,\"\",'effRT Support'!$I82)","v":""},{"$f":"IF('effRT Support'!$B82=0,\"\",\"Existing Fixture Wattage\")","v":""},{"$f":"IF('effRT Support'!$B82=0,\"\",'effRT Support'!$J82)","v":""},{"$f":"IF('effRT Support'!$B82=0,\"\",\"Annual Hours of Operation\")","v":""},{"$f":"IF('effRT Support'!$B82=0,\"\",'effRT Support'!$K82)","v":""},{"$f":"IF('effRT Support'!$B82=0,\"\",\"Installed Fixture Description\")","v":""},{"$f":"IF('effRT Support'!$B82=0,\"\",'effRT Support'!$M82)","v":""},{"$f":"IF('effRT Support'!$B82=0,\"\",\"Installed Fixture Wattage\")","v":""},{"$f":"IF('effRT Support'!$B82=0,\"\",'effRT Support'!$O82)","v":""},{"$f":"IF('effRT Support'!$B82=0,\"\",\"Material Cost\")","v":""},{"$f":"IF('effRT Support'!$B82=0,\"\",'effRT Support'!$R82)","v":""},{"$f":"IF('effRT Support'!$B82=0,\"\",\"Labor Cost\")","v":""},{"$f":"IF('effRT Support'!$B82=0,\"\",'effRT Support'!$S82)","v":""},{"$f":"IF('effRT Support'!$B82=0,\"\",\"Ancillary Costs - Measure Specific\")","v":""},{"$f":"IF('effRT Support'!$B82=0,\"\",'effRT Support'!$T82)","v":""},{"$f":"IF('effRT Support'!$B82=0,\"\",\"Fuel Type\")","v":""},{"$f":"IF('effRT Support'!$B82=0,\"\",'Project Information'!$D$44)","v":""}]
[{"$f":"IF('effRT Support'!$B83=0,\"\",IF('Project Information'!$D$33=\"Small Business\",\"SBL\",\"CILS\"))","v":""},{"$f":"IF('effRT Support'!$B83=0,\"\",IF('Project Information'!$K$2=\"\",\"\",'Project Information'!$K$2))","v":""},null,{"$f":"IF('effRT Support'!$B83=0,\"\",IF('Project Information'!$D$46=\"\",\"\",'Project Information'!$D$46))","v":""},{"$f":"IF('effRT Support'!$B83=0,\"\",IF('Project Information'!$D$20=\"\",\"\",VLOOKUP('Project Information'!$D$20,'Other Data'!$B$159:$E$189,4,FALSE)))","v":""},{"$f":"IF('effRT Support'!$B83=0,\"\",IF('Project Information'!$D$31=\"\",\"\",'Project Information'!$D$31))","v":""},{"$f":"IF('effRT Support'!$B83=0,\"\",IF('Project Information'!$D$5=\"\",\"\",'Project Information'!$D$5))","v":""},null,null,{"$f":"IF('effRT Support'!$B83=0,\"\",IF('Project Information'!$D$20=\"\",\"\",VLOOKUP('Project Information'!$D$20,'Other Data'!$B$159:$E$189,2,FALSE)))","v":""},{"$f":"IF('effRT Support'!$B83=0,\"\",IF('Project Information'!$D$20=\"\",\"\",VLOOKUP('Project Information'!$D$20,'Other Data'!$B$159:$E$189,3,FALSE)))","v":""},{"$f":"IF('effRT Support'!$B83=0,\"\",\"Existing\")","v":""},null,{"$f":"IF('effRT Support'!$B83=0,\"\",IF('Project Information'!$D$21=\"\",\"\",'Project Information'!$D$21))","v":""},{"$f":"IF('effRT Support'!$B83=0,\"\",IF('Project Information'!$D$48=\"\",\"\",'Project Information'!$D$48))","v":""},{"$f":"IF('effRT Support'!$B83=0,\"\",\"\")","v":""},{"$f":"IF('effRT Support'!$B83=0,\"\",\"\")","v":""},{"$f":"IF('effRT Support'!$B83=0,\"\",\"\")","v":""},{"$f":"IF('effRT Support'!$B83=0,\"\",\"\")","v":""},{"$f":"IF('effRT Support'!$B83=0,\"\",IF('Project Information'!$D$13=\"\",\"\",'Project Information'!$D$13))","v":""},{"$f":"IF('effRT Support'!$B83=0,\"\",IF('Project Information'!$E$13=\"\",\"\",'Project Information'!$E$13))","v":""},{"$f":"IF('effRT Support'!$B83=0,\"\",IF('Project Information'!$D$14=\"\",\"\",'Project Information'!$D$14))","v":""},{"$f":"IF('effRT Support'!$B83=0,\"\",IF('Project Information'!$D$15=\"\",\"\",'Project Information'!$D$15))","v":""},{"$f":"IF('effRT Support'!$B83=0,\"\",IF('Project Information'!$D$16=\"\",\"\",'Project Information'!$D$16))","v":""},null,{"$f":"IF('effRT Support'!$B83=0,\"\",'Project Information'!$D$18)","v":""},{"$f":"IF('effRT Support'!$B83=0,\"\",IF('Project Information'!$D$23=\"\",\"\",'Project Information'!$D$23))","v":""},{"$f":"IF('effRT Support'!$B83=0,\"\",IF('Project Information'!$D$24=\"\",\"\",'Project Information'!$D$24))","v":""},{"$f":"IF('effRT Support'!$B83=0,\"\",IF('Project Information'!$D$25=\"\",\"\",'Project Information'!$D$25))","v":""},{"$f":"IF('effRT Support'!$B83=0,\"\",IF('Project Information'!$E$25=\"\",\"\",'Project Information'!$E$25))","v":""},{"$f":"IF('effRT Support'!$B83=0,\"\",IF('Project Information'!$F$25=\"\",\"\",'Project Information'!$F$25))","v":""},{"$f":"IF('effRT Support'!$B83=0,\"\",IF('Project Information'!$D$27=\"\",\"Y\",\"N\"))","v":""},{"$f":"IF('effRT Support'!$B83=0,\"\",IF('Project Information'!$D$27=\"\",\"\",'Project Information'!$D$27))","v":""},{"$f":"IF('effRT Support'!$B83=0,\"\",IF('Project Information'!$D$28=\"\",\"\",'Project Information'!$D$28))","v":""},{"$f":"IF('effRT Support'!$B83=0,\"\",IF('Project Information'!$D$29=\"\",\"\",'Project Information'!$D$29))","v":""},{"$f":"IF('effRT Support'!$B83=0,\"\",IF('Project Information'!$E$29=\"\",\"\",'Project Information'!$E$29))","v":""},{"$f":"IF('effRT Support'!$B83=0,\"\",IF('Project Information'!$F$29=\"\",\"\",'Project Information'!$F$29))","v":""},{"$f":"IF('effRT Support'!$B83=0,\"\",\"\")","v":""},{"$f":"IF('effRT Support'!$B83=0,\"\",\"\")","v":""},{"$f":"IF('effRT Support'!$B83=0,\"\",IF('Project Information'!$D$36=\"\",\"\",'Project Information'!$D$36))","v":""},{"$f":"IF('effRT Support'!$B83=0,\"\",IF('Project Information'!$D$42=\"\",\"\",'Project Information'!$D$42))","v":""},{"$f":"IF('effRT Support'!$B83=0,\"\",'effRT Support'!$D83)","v":""},{"$f":"IF('effRT Support'!$B83=0,\"\",'effRT Support'!$L83)","v":""},{"$f":"IF('effRT Support'!$B83=0,\"\",'effRT Support'!$N83)","v":""},null,null,{"$f":"IF('effRT Support'!$B83=0,\"\",'effRT Support'!$P83)","v":""},{"$f":"IF('effRT Support'!$B83=0,\"\",'effRT Support'!$Q83)","v":""},{"$f":"IF('effRT Support'!$B83=0,\"\",'effRT Support'!U83)","v":""},{"$f":"IF('effRT Support'!$B83=0,\"\",'effRT Support'!V83)","v":""},{"$f":"IF('effRT Support'!$B83=0,\"\",'effRT Support'!W83)","v":""},{"$f":"IF('effRT Support'!$B83=0,\"\",'effRT Support'!X83)","v":""},{"$f":"IF('effRT Support'!$B83=0,\"\",'effRT Support'!Y83)","v":""},{"$f":"IF('effRT Support'!$B83=0,\"\",'effRT Support'!Z83*10)","v":""},{"$f":"IF('effRT Support'!$B83=0,\"\",'effRT Support'!AA83)","v":""},{"$f":"IF('effRT Support'!$B83=0,\"\",'effRT Support'!AB83)","v":""},{"$f":"IF('effRT Support'!$B83=0,\"\",'effRT Support'!AC83)","v":""},{"$f":"IF('effRT Support'!$B83=0,\"\",'effRT Support'!AD83)","v":""},{"$f":"IF('effRT Support'!$B83=0,\"\",'effRT Support'!AE83)","v":""},{"$f":"IF('effRT Support'!$B83=0,\"\",\"Hours Actual or Deemed\")","v":""},{"$f":"IF('effRT Support'!$B83=0,\"\",'effRT Support'!$F83)","v":""},{"$f":"IF('effRT Support'!$B83=0,\"\",\"Wattage Actual or Deemed\")","v":""},{"$f":"IF('effRT Support'!$B83=0,\"\",IF('Project Information'!$D$33=\"Pay For Performance\",\"Actual\",\"Deemed\"))","v":""},{"$f":"IF('effRT Support'!$B83=0,\"\",\"Cost Actual or Deemed\")","v":""},{"$f":"IF('effRT Support'!$B83=0,\"\",IF('Project Information'!$D$33=\"Pay For Performance\",\"Actual\",\"Deemed\"))","v":""},{"$f":"IF('effRT Support'!$B83=0,\"\",\"Location\")","v":""},{"$f":"IF('effRT Support'!$B83=0,\"\",'effRT Support'!$E83)","v":""},{"$f":"IF('effRT Support'!$B83=0,\"\",\"Space Type\")","v":""},{"$f":"IF('effRT Support'!$B83=0,\"\",'effRT Support'!$G83)","v":""},{"$f":"IF('effRT Support'!$B83=0,\"\",\"Existing Fixture Description\")","v":""},{"$f":"IF('effRT Support'!$B83=0,\"\",'effRT Support'!$H83)","v":""},{"$f":"IF('effRT Support'!$B83=0,\"\",\"Existing Fixture Quantity\")","v":""},{"$f":"IF('effRT Support'!$B83=0,\"\",'effRT Support'!$I83)","v":""},{"$f":"IF('effRT Support'!$B83=0,\"\",\"Existing Fixture Wattage\")","v":""},{"$f":"IF('effRT Support'!$B83=0,\"\",'effRT Support'!$J83)","v":""},{"$f":"IF('effRT Support'!$B83=0,\"\",\"Annual Hours of Operation\")","v":""},{"$f":"IF('effRT Support'!$B83=0,\"\",'effRT Support'!$K83)","v":""},{"$f":"IF('effRT Support'!$B83=0,\"\",\"Installed Fixture Description\")","v":""},{"$f":"IF('effRT Support'!$B83=0,\"\",'effRT Support'!$M83)","v":""},{"$f":"IF('effRT Support'!$B83=0,\"\",\"Installed Fixture Wattage\")","v":""},{"$f":"IF('effRT Support'!$B83=0,\"\",'effRT Support'!$O83)","v":""},{"$f":"IF('effRT Support'!$B83=0,\"\",\"Material Cost\")","v":""},{"$f":"IF('effRT Support'!$B83=0,\"\",'effRT Support'!$R83)","v":""},{"$f":"IF('effRT Support'!$B83=0,\"\",\"Labor Cost\")","v":""},{"$f":"IF('effRT Support'!$B83=0,\"\",'effRT Support'!$S83)","v":""},{"$f":"IF('effRT Support'!$B83=0,\"\",\"Ancillary Costs - Measure Specific\")","v":""},{"$f":"IF('effRT Support'!$B83=0,\"\",'effRT Support'!$T83)","v":""},{"$f":"IF('effRT Support'!$B83=0,\"\",\"Fuel Type\")","v":""},{"$f":"IF('effRT Support'!$B83=0,\"\",'Project Information'!$D$44)","v":""},{"$f":"IF('effRT Support'!$B83=0,\"\",\"Installed Fixture Quantity\")","v":""},{"$f":"IF('effRT Support'!$B83=0,\"\",'effRT Support'!P82)","v":""}]
[{"$f":"IF('effRT Support'!$B84=0,\"\",IF('Project Information'!$D$33=\"Small Business\",\"SBL\",\"CILS\"))","v":""},{"$f":"IF('effRT Support'!$B84=0,\"\",IF('Project Information'!$K$2=\"\",\"\",'Project Information'!$K$2))","v":""},null,{"$f":"IF('effRT Support'!$B84=0,\"\",IF('Project Information'!$D$46=\"\",\"\",'Project Information'!$D$46))","v":""},{"$f":"IF('effRT Support'!$B84=0,\"\",IF('Project Information'!$D$20=\"\",\"\",VLOOKUP('Project Information'!$D$20,'Other Data'!$B$159:$E$189,4,FALSE)))","v":""},{"$f":"IF('effRT Support'!$B84=0,\"\",IF('Project Information'!$D$31=\"\",\"\",'Project Information'!$D$31))","v":""},{"$f":"IF('effRT Support'!$B84=0,\"\",IF('Project Information'!$D$5=\"\",\"\",'Project Information'!$D$5))","v":""},null,null,{"$f":"IF('effRT Support'!$B84=0,\"\",IF('Project Information'!$D$20=\"\",\"\",VLOOKUP('Project Information'!$D$20,'Other Data'!$B$159:$E$189,2,FALSE)))","v":""},{"$f":"IF('effRT Support'!$B84=0,\"\",IF('Project Information'!$D$20=\"\",\"\",VLOOKUP('Project Information'!$D$20,'Other Data'!$B$159:$E$189,3,FALSE)))","v":""},{"$f":"IF('effRT Support'!$B84=0,\"\",\"Existing\")","v":""},null,{"$f":"IF('effRT Support'!$B84=0,\"\",IF('Project Information'!$D$21=\"\",\"\",'Project Information'!$D$21))","v":""},{"$f":"IF('effRT Support'!$B84=0,\"\",IF('Project Information'!$D$48=\"\",\"\",'Project Information'!$D$48))","v":""},{"$f":"IF('effRT Support'!$B84=0,\"\",\"\")","v":""},{"$f":"IF('effRT Support'!$B84=0,\"\",\"\")","v":""},{"$f":"IF('effRT Support'!$B84=0,\"\",\"\")","v":""},{"$f":"IF('effRT Support'!$B84=0,\"\",\"\")","v":""},{"$f":"IF('effRT Support'!$B84=0,\"\",IF('Project Information'!$D$13=\"\",\"\",'Project Information'!$D$13))","v":""},{"$f":"IF('effRT Support'!$B84=0,\"\",IF('Project Information'!$E$13=\"\",\"\",'Project Information'!$E$13))","v":""},{"$f":"IF('effRT Support'!$B84=0,\"\",IF('Project Information'!$D$14=\"\",\"\",'Project Information'!$D$14))","v":""},{"$f":"IF('effRT Support'!$B84=0,\"\",IF('Project Information'!$D$15=\"\",\"\",'Project Information'!$D$15))","v":""},{"$f":"IF('effRT Support'!$B84=0,\"\",IF('Project Information'!$D$16=\"\",\"\",'Project Information'!$D$16))","v":""},null,{"$f":"IF('effRT Support'!$B84=0,\"\",'Project Information'!$D$18)","v":""},{"$f":"IF('effRT Support'!$B84=0,\"\",IF('Project Information'!$D$23=\"\",\"\",'Project Information'!$D$23))","v":""},{"$f":"IF('effRT Support'!$B84=0,\"\",IF('Project Information'!$D$24=\"\",\"\",'Project Information'!$D$24))","v":""},{"$f":"IF('effRT Support'!$B84=0,\"\",IF('Project Information'!$D$25=\"\",\"\",'Project Information'!$D$25))","v":""},{"$f":"IF('effRT Support'!$B84=0,\"\",IF('Project Information'!$E$25=\"\",\"\",'Project Information'!$E$25))","v":""},{"$f":"IF('effRT Support'!$B84=0,\"\",IF('Project Information'!$F$25=\"\",\"\",'Project Information'!$F$25))","v":""},{"$f":"IF('effRT Support'!$B84=0,\"\",IF('Project Information'!$D$27=\"\",\"Y\",\"N\"))","v":""},{"$f":"IF('effRT Support'!$B84=0,\"\",IF('Project Information'!$D$27=\"\",\"\",'Project Information'!$D$27))","v":""},{"$f":"IF('effRT Support'!$B84=0,\"\",IF('Project Information'!$D$28=\"\",\"\",'Project Information'!$D$28))","v":""},{"$f":"IF('effRT Support'!$B84=0,\"\",IF('Project Information'!$D$29=\"\",\"\",'Project Information'!$D$29))","v":""},{"$f":"IF('effRT Support'!$B84=0,\"\",IF('Project Information'!$E$29=\"\",\"\",'Project Information'!$E$29))","v":""},{"$f":"IF('effRT Support'!$B84=0,\"\",IF('Project Information'!$F$29=\"\",\"\",'Project Information'!$F$29))","v":""},{"$f":"IF('effRT Support'!$B84=0,\"\",\"\")","v":""},{"$f":"IF('effRT Support'!$B84=0,\"\",\"\")","v":""},{"$f":"IF('effRT Support'!$B84=0,\"\",IF('Project Information'!$D$36=\"\",\"\",'Project Information'!$D$36))","v":""},{"$f":"IF('effRT Support'!$B84=0,\"\",IF('Project Information'!$D$42=\"\",\"\",'Project Information'!$D$42))","v":""},{"$f":"IF('effRT Support'!$B84=0,\"\",'effRT Support'!$D84)","v":""},{"$f":"IF('effRT Support'!$B84=0,\"\",'effRT Support'!$L84)","v":""},{"$f":"IF('effRT Support'!$B84=0,\"\",'effRT Support'!$N84)","v":""},null,null,{"$f":"IF('effRT Support'!$B84=0,\"\",'effRT Support'!$P84)","v":""},{"$f":"IF('effRT Support'!$B84=0,\"\",'effRT Support'!$Q84)","v":""},{"$f":"IF('effRT Support'!$B84=0,\"\",'effRT Support'!U84)","v":""},{"$f":"IF('effRT Support'!$B84=0,\"\",'effRT Support'!V84)","v":""},{"$f":"IF('effRT Support'!$B84=0,\"\",'effRT Support'!W84)","v":""},{"$f":"IF('effRT Support'!$B84=0,\"\",'effRT Support'!X84)","v":""},{"$f":"IF('effRT Support'!$B84=0,\"\",'effRT Support'!Y84)","v":""},{"$f":"IF('effRT Support'!$B84=0,\"\",'effRT Support'!Z84*10)","v":""},{"$f":"IF('effRT Support'!$B84=0,\"\",'effRT Support'!AA84)","v":""},{"$f":"IF('effRT Support'!$B84=0,\"\",'effRT Support'!AB84)","v":""},{"$f":"IF('effRT Support'!$B84=0,\"\",'effRT Support'!AC84)","v":""},{"$f":"IF('effRT Support'!$B84=0,\"\",'effRT Support'!AD84)","v":""},{"$f":"IF('effRT Support'!$B84=0,\"\",'effRT Support'!AE84)","v":""},{"$f":"IF('effRT Support'!$B84=0,\"\",\"Hours Actual or Deemed\")","v":""},{"$f":"IF('effRT Support'!$B84=0,\"\",'effRT Support'!$F84)","v":""},{"$f":"IF('effRT Support'!$B84=0,\"\",\"Wattage Actual or Deemed\")","v":""},{"$f":"IF('effRT Support'!$B84=0,\"\",IF('Project Information'!$D$33=\"Pay For Performance\",\"Actual\",\"Deemed\"))","v":""},{"$f":"IF('effRT Support'!$B84=0,\"\",\"Cost Actual or Deemed\")","v":""},{"$f":"IF('effRT Support'!$B84=0,\"\",IF('Project Information'!$D$33=\"Pay For Performance\",\"Actual\",\"Deemed\"))","v":""},{"$f":"IF('effRT Support'!$B84=0,\"\",\"Location\")","v":""},{"$f":"IF('effRT Support'!$B84=0,\"\",'effRT Support'!$E84)","v":""},{"$f":"IF('effRT Support'!$B84=0,\"\",\"Space Type\")","v":""},{"$f":"IF('effRT Support'!$B84=0,\"\",'effRT Support'!$G84)","v":""},{"$f":"IF('effRT Support'!$B84=0,\"\",\"Existing Fixture Description\")","v":""},{"$f":"IF('effRT Support'!$B84=0,\"\",'effRT Support'!$H84)","v":""},{"$f":"IF('effRT Support'!$B84=0,\"\",\"Existing Fixture Quantity\")","v":""},{"$f":"IF('effRT Support'!$B84=0,\"\",'effRT Support'!$I84)","v":""},{"$f":"IF('effRT Support'!$B84=0,\"\",\"Existing Fixture Wattage\")","v":""},{"$f":"IF('effRT Support'!$B84=0,\"\",'effRT Support'!$J84)","v":""},{"$f":"IF('effRT Support'!$B84=0,\"\",\"Annual Hours of Operation\")","v":""},{"$f":"IF('effRT Support'!$B84=0,\"\",'effRT Support'!$K84)","v":""},{"$f":"IF('effRT Support'!$B84=0,\"\",\"Installed Fixture Description\")","v":""},{"$f":"IF('effRT Support'!$B84=0,\"\",'effRT Support'!$M84)","v":""},{"$f":"IF('effRT Support'!$B84=0,\"\",\"Installed Fixture Wattage\")","v":""},{"$f":"IF('effRT Support'!$B84=0,\"\",'effRT Support'!$O84)","v":""},{"$f":"IF('effRT Support'!$B84=0,\"\",\"Material Cost\")","v":""},{"$f":"IF('effRT Support'!$B84=0,\"\",'effRT Support'!$R84)","v":""},{"$f":"IF('effRT Support'!$B84=0,\"\",\"Labor Cost\")","v":""},{"$f":"IF('effRT Support'!$B84=0,\"\",'effRT Support'!$S84)","v":""},{"$f":"IF('effRT Support'!$B84=0,\"\",\"Ancillary Costs - Measure Specific\")","v":""},{"$f":"IF('effRT Support'!$B84=0,\"\",'effRT Support'!$T84)","v":""},{"$f":"IF('effRT Support'!$B84=0,\"\",\"Fuel Type\")","v":""},{"$f":"IF('effRT Support'!$B84=0,\"\",'Project Information'!$D$44)","v":""}]
[{"$f":"IF('effRT Support'!$B85=0,\"\",IF('Project Information'!$D$33=\"Small Business\",\"SBL\",\"CILS\"))","v":""},{"$f":"IF('effRT Support'!$B85=0,\"\",IF('Project Information'!$K$2=\"\",\"\",'Project Information'!$K$2))","v":""},null,{"$f":"IF('effRT Support'!$B85=0,\"\",IF('Project Information'!$D$46=\"\",\"\",'Project Information'!$D$46))","v":""},{"$f":"IF('effRT Support'!$B85=0,\"\",IF('Project Information'!$D$20=\"\",\"\",VLOOKUP('Project Information'!$D$20,'Other Data'!$B$159:$E$189,4,FALSE)))","v":""},{"$f":"IF('effRT Support'!$B85=0,\"\",IF('Project Information'!$D$31=\"\",\"\",'Project Information'!$D$31))","v":""},{"$f":"IF('effRT Support'!$B85=0,\"\",IF('Project Information'!$D$5=\"\",\"\",'Project Information'!$D$5))","v":""},null,null,{"$f":"IF('effRT Support'!$B85=0,\"\",IF('Project Information'!$D$20=\"\",\"\",VLOOKUP('Project Information'!$D$20,'Other Data'!$B$159:$E$189,2,FALSE)))","v":""},{"$f":"IF('effRT Support'!$B85=0,\"\",IF('Project Information'!$D$20=\"\",\"\",VLOOKUP('Project Information'!$D$20,'Other Data'!$B$159:$E$189,3,FALSE)))","v":""},{"$f":"IF('effRT Support'!$B85=0,\"\",\"Existing\")","v":""},null,{"$f":"IF('effRT Support'!$B85=0,\"\",IF('Project Information'!$D$21=\"\",\"\",'Project Information'!$D$21))","v":""},{"$f":"IF('effRT Support'!$B85=0,\"\",IF('Project Information'!$D$48=\"\",\"\",'Project Information'!$D$48))","v":""},{"$f":"IF('effRT Support'!$B85=0,\"\",\"\")","v":""},{"$f":"IF('effRT Support'!$B85=0,\"\",\"\")","v":""},{"$f":"IF('effRT Support'!$B85=0,\"\",\"\")","v":""},{"$f":"IF('effRT Support'!$B85=0,\"\",\"\")","v":""},{"$f":"IF('effRT Support'!$B85=0,\"\",IF('Project Information'!$D$13=\"\",\"\",'Project Information'!$D$13))","v":""},{"$f":"IF('effRT Support'!$B85=0,\"\",IF('Project Information'!$E$13=\"\",\"\",'Project Information'!$E$13))","v":""},{"$f":"IF('effRT Support'!$B85=0,\"\",IF('Project Information'!$D$14=\"\",\"\",'Project Information'!$D$14))","v":""},{"$f":"IF('effRT Support'!$B85=0,\"\",IF('Project Information'!$D$15=\"\",\"\",'Project Information'!$D$15))","v":""},{"$f":"IF('effRT Support'!$B85=0,\"\",IF('Project Information'!$D$16=\"\",\"\",'Project Information'!$D$16))","v":""},null,{"$f":"IF('effRT Support'!$B85=0,\"\",'Project Information'!$D$18)","v":""},{"$f":"IF('effRT Support'!$B85=0,\"\",IF('Project Information'!$D$23=\"\",\"\",'Project Information'!$D$23))","v":""},{"$f":"IF('effRT Support'!$B85=0,\"\",IF('Project Information'!$D$24=\"\",\"\",'Project Information'!$D$24))","v":""},{"$f":"IF('effRT Support'!$B85=0,\"\",IF('Project Information'!$D$25=\"\",\"\",'Project Information'!$D$25))","v":""},{"$f":"IF('effRT Support'!$B85=0,\"\",IF('Project Information'!$E$25=\"\",\"\",'Project Information'!$E$25))","v":""},{"$f":"IF('effRT Support'!$B85=0,\"\",IF('Project Information'!$F$25=\"\",\"\",'Project Information'!$F$25))","v":""},{"$f":"IF('effRT Support'!$B85=0,\"\",IF('Project Information'!$D$27=\"\",\"Y\",\"N\"))","v":""},{"$f":"IF('effRT Support'!$B85=0,\"\",IF('Project Information'!$D$27=\"\",\"\",'Project Information'!$D$27))","v":""},{"$f":"IF('effRT Support'!$B85=0,\"\",IF('Project Information'!$D$28=\"\",\"\",'Project Information'!$D$28))","v":""},{"$f":"IF('effRT Support'!$B85=0,\"\",IF('Project Information'!$D$29=\"\",\"\",'Project Information'!$D$29))","v":""},{"$f":"IF('effRT Support'!$B85=0,\"\",IF('Project Information'!$E$29=\"\",\"\",'Project Information'!$E$29))","v":""},{"$f":"IF('effRT Support'!$B85=0,\"\",IF('Project Information'!$F$29=\"\",\"\",'Project Information'!$F$29))","v":""},{"$f":"IF('effRT Support'!$B85=0,\"\",\"\")","v":""},{"$f":"IF('effRT Support'!$B85=0,\"\",\"\")","v":""},{"$f":"IF('effRT Support'!$B85=0,\"\",IF('Project Information'!$D$36=\"\",\"\",'Project Information'!$D$36))","v":""},{"$f":"IF('effRT Support'!$B85=0,\"\",IF('Project Information'!$D$42=\"\",\"\",'Project Information'!$D$42))","v":""},{"$f":"IF('effRT Support'!$B85=0,\"\",'effRT Support'!$D85)","v":""},{"$f":"IF('effRT Support'!$B85=0,\"\",'effRT Support'!$L85)","v":""},{"$f":"IF('effRT Support'!$B85=0,\"\",'effRT Support'!$N85)","v":""},null,null,{"$f":"IF('effRT Support'!$B85=0,\"\",'effRT Support'!$P85)","v":""},{"$f":"IF('effRT Support'!$B85=0,\"\",'effRT Support'!$Q85)","v":""},{"$f":"IF('effRT Support'!$B85=0,\"\",'effRT Support'!U85)","v":""},{"$f":"IF('effRT Support'!$B85=0,\"\",'effRT Support'!V85)","v":""},{"$f":"IF('effRT Support'!$B85=0,\"\",'effRT Support'!W85)","v":""},{"$f":"IF('effRT Support'!$B85=0,\"\",'effRT Support'!X85)","v":""},{"$f":"IF('effRT Support'!$B85=0,\"\",'effRT Support'!Y85)","v":""},{"$f":"IF('effRT Support'!$B85=0,\"\",'effRT Support'!Z85*10)","v":""},{"$f":"IF('effRT Support'!$B85=0,\"\",'effRT Support'!AA85)","v":""},{"$f":"IF('effRT Support'!$B85=0,\"\",'effRT Support'!AB85)","v":""},{"$f":"IF('effRT Support'!$B85=0,\"\",'effRT Support'!AC85)","v":""},{"$f":"IF('effRT Support'!$B85=0,\"\",'effRT Support'!AD85)","v":""},{"$f":"IF('effRT Support'!$B85=0,\"\",'effRT Support'!AE85)","v":""},{"$f":"IF('effRT Support'!$B85=0,\"\",\"Hours Actual or Deemed\")","v":""},{"$f":"IF('effRT Support'!$B85=0,\"\",'effRT Support'!$F85)","v":""},{"$f":"IF('effRT Support'!$B85=0,\"\",\"Wattage Actual or Deemed\")","v":""},{"$f":"IF('effRT Support'!$B85=0,\"\",IF('Project Information'!$D$33=\"Pay For Performance\",\"Actual\",\"Deemed\"))","v":""},{"$f":"IF('effRT Support'!$B85=0,\"\",\"Cost Actual or Deemed\")","v":""},{"$f":"IF('effRT Support'!$B85=0,\"\",IF('Project Information'!$D$33=\"Pay For Performance\",\"Actual\",\"Deemed\"))","v":""},{"$f":"IF('effRT Support'!$B85=0,\"\",\"Location\")","v":""},{"$f":"IF('effRT Support'!$B85=0,\"\",'effRT Support'!$E85)","v":""},{"$f":"IF('effRT Support'!$B85=0,\"\",\"Space Type\")","v":""},{"$f":"IF('effRT Support'!$B85=0,\"\",'effRT Support'!$G85)","v":""},{"$f":"IF('effRT Support'!$B85=0,\"\",\"Existing Fixture Description\")","v":""},{"$f":"IF('effRT Support'!$B85=0,\"\",'effRT Support'!$H85)","v":""},{"$f":"IF('effRT Support'!$B85=0,\"\",\"Existing Fixture Quantity\")","v":""},{"$f":"IF('effRT Support'!$B85=0,\"\",'effRT Support'!$I85)","v":""},{"$f":"IF('effRT Support'!$B85=0,\"\",\"Existing Fixture Wattage\")","v":""},{"$f":"IF('effRT Support'!$B85=0,\"\",'effRT Support'!$J85)","v":""},{"$f":"IF('effRT Support'!$B85=0,\"\",\"Annual Hours of Operation\")","v":""},{"$f":"IF('effRT Support'!$B85=0,\"\",'effRT Support'!$K85)","v":""},{"$f":"IF('effRT Support'!$B85=0,\"\",\"Installed Fixture Description\")","v":""},{"$f":"IF('effRT Support'!$B85=0,\"\",'effRT Support'!$M85)","v":""},{"$f":"IF('effRT Support'!$B85=0,\"\",\"Installed Fixture Wattage\")","v":""},{"$f":"IF('effRT Support'!$B85=0,\"\",'effRT Support'!$O85)","v":""},{"$f":"IF('effRT Support'!$B85=0,\"\",\"Material Cost\")","v":""},{"$f":"IF('effRT Support'!$B85=0,\"\",'effRT Support'!$R85)","v":""},{"$f":"IF('effRT Support'!$B85=0,\"\",\"Labor Cost\")","v":""},{"$f":"IF('effRT Support'!$B85=0,\"\",'effRT Support'!$S85)","v":""},{"$f":"IF('effRT Support'!$B85=0,\"\",\"Ancillary Costs - Measure Specific\")","v":""},{"$f":"IF('effRT Support'!$B85=0,\"\",'effRT Support'!$T85)","v":""},{"$f":"IF('effRT Support'!$B85=0,\"\",\"Fuel Type\")","v":""},{"$f":"IF('effRT Support'!$B85=0,\"\",'Project Information'!$D$44)","v":""},{"$f":"IF('effRT Support'!$B85=0,\"\",\"Installed Fixture Quantity\")","v":""},{"$f":"IF('effRT Support'!$B85=0,\"\",'effRT Support'!P84)","v":""}]
[{"$f":"IF('effRT Support'!$B86=0,\"\",IF('Project Information'!$D$33=\"Small Business\",\"SBL\",\"CILS\"))","v":""},{"$f":"IF('effRT Support'!$B86=0,\"\",IF('Project Information'!$K$2=\"\",\"\",'Project Information'!$K$2))","v":""},null,{"$f":"IF('effRT Support'!$B86=0,\"\",IF('Project Information'!$D$46=\"\",\"\",'Project Information'!$D$46))","v":""},{"$f":"IF('effRT Support'!$B86=0,\"\",IF('Project Information'!$D$20=\"\",\"\",VLOOKUP('Project Information'!$D$20,'Other Data'!$B$159:$E$189,4,FALSE)))","v":""},{"$f":"IF('effRT Support'!$B86=0,\"\",IF('Project Information'!$D$31=\"\",\"\",'Project Information'!$D$31))","v":""},{"$f":"IF('effRT Support'!$B86=0,\"\",IF('Project Information'!$D$5=\"\",\"\",'Project Information'!$D$5))","v":""},null,null,{"$f":"IF('effRT Support'!$B86=0,\"\",IF('Project Information'!$D$20=\"\",\"\",VLOOKUP('Project Information'!$D$20,'Other Data'!$B$159:$E$189,2,FALSE)))","v":""},{"$f":"IF('effRT Support'!$B86=0,\"\",IF('Project Information'!$D$20=\"\",\"\",VLOOKUP('Project Information'!$D$20,'Other Data'!$B$159:$E$189,3,FALSE)))","v":""},{"$f":"IF('effRT Support'!$B86=0,\"\",\"Existing\")","v":""},null,{"$f":"IF('effRT Support'!$B86=0,\"\",IF('Project Information'!$D$21=\"\",\"\",'Project Information'!$D$21))","v":""},{"$f":"IF('effRT Support'!$B86=0,\"\",IF('Project Information'!$D$48=\"\",\"\",'Project Information'!$D$48))","v":""},{"$f":"IF('effRT Support'!$B86=0,\"\",\"\")","v":""},{"$f":"IF('effRT Support'!$B86=0,\"\",\"\")","v":""},{"$f":"IF('effRT Support'!$B86=0,\"\",\"\")","v":""},{"$f":"IF('effRT Support'!$B86=0,\"\",\"\")","v":""},{"$f":"IF('effRT Support'!$B86=0,\"\",IF('Project Information'!$D$13=\"\",\"\",'Project Information'!$D$13))","v":""},{"$f":"IF('effRT Support'!$B86=0,\"\",IF('Project Information'!$E$13=\"\",\"\",'Project Information'!$E$13))","v":""},{"$f":"IF('effRT Support'!$B86=0,\"\",IF('Project Information'!$D$14=\"\",\"\",'Project Information'!$D$14))","v":""},{"$f":"IF('effRT Support'!$B86=0,\"\",IF('Project Information'!$D$15=\"\",\"\",'Project Information'!$D$15))","v":""},{"$f":"IF('effRT Support'!$B86=0,\"\",IF('Project Information'!$D$16=\"\",\"\",'Project Information'!$D$16))","v":""},null,{"$f":"IF('effRT Support'!$B86=0,\"\",'Project Information'!$D$18)","v":""},{"$f":"IF('effRT Support'!$B86=0,\"\",IF('Project Information'!$D$23=\"\",\"\",'Project Information'!$D$23))","v":""},{"$f":"IF('effRT Support'!$B86=0,\"\",IF('Project Information'!$D$24=\"\",\"\",'Project Information'!$D$24))","v":""},{"$f":"IF('effRT Support'!$B86=0,\"\",IF('Project Information'!$D$25=\"\",\"\",'Project Information'!$D$25))","v":""},{"$f":"IF('effRT Support'!$B86=0,\"\",IF('Project Information'!$E$25=\"\",\"\",'Project Information'!$E$25))","v":""},{"$f":"IF('effRT Support'!$B86=0,\"\",IF('Project Information'!$F$25=\"\",\"\",'Project Information'!$F$25))","v":""},{"$f":"IF('effRT Support'!$B86=0,\"\",IF('Project Information'!$D$27=\"\",\"Y\",\"N\"))","v":""},{"$f":"IF('effRT Support'!$B86=0,\"\",IF('Project Information'!$D$27=\"\",\"\",'Project Information'!$D$27))","v":""},{"$f":"IF('effRT Support'!$B86=0,\"\",IF('Project Information'!$D$28=\"\",\"\",'Project Information'!$D$28))","v":""},{"$f":"IF('effRT Support'!$B86=0,\"\",IF('Project Information'!$D$29=\"\",\"\",'Project Information'!$D$29))","v":""},{"$f":"IF('effRT Support'!$B86=0,\"\",IF('Project Information'!$E$29=\"\",\"\",'Project Information'!$E$29))","v":""},{"$f":"IF('effRT Support'!$B86=0,\"\",IF('Project Information'!$F$29=\"\",\"\",'Project Information'!$F$29))","v":""},{"$f":"IF('effRT Support'!$B86=0,\"\",\"\")","v":""},{"$f":"IF('effRT Support'!$B86=0,\"\",\"\")","v":""},{"$f":"IF('effRT Support'!$B86=0,\"\",IF('Project Information'!$D$36=\"\",\"\",'Project Information'!$D$36))","v":""},{"$f":"IF('effRT Support'!$B86=0,\"\",IF('Project Information'!$D$42=\"\",\"\",'Project Information'!$D$42))","v":""},{"$f":"IF('effRT Support'!$B86=0,\"\",'effRT Support'!$D86)","v":""},{"$f":"IF('effRT Support'!$B86=0,\"\",'effRT Support'!$L86)","v":""},{"$f":"IF('effRT Support'!$B86=0,\"\",'effRT Support'!$N86)","v":""},null,null,{"$f":"IF('effRT Support'!$B86=0,\"\",'effRT Support'!$P86)","v":""},{"$f":"IF('effRT Support'!$B86=0,\"\",'effRT Support'!$Q86)","v":""},{"$f":"IF('effRT Support'!$B86=0,\"\",'effRT Support'!U86)","v":""},{"$f":"IF('effRT Support'!$B86=0,\"\",'effRT Support'!V86)","v":""},{"$f":"IF('effRT Support'!$B86=0,\"\",'effRT Support'!W86)","v":""},{"$f":"IF('effRT Support'!$B86=0,\"\",'effRT Support'!X86)","v":""},{"$f":"IF('effRT Support'!$B86=0,\"\",'effRT Support'!Y86)","v":""},{"$f":"IF('effRT Support'!$B86=0,\"\",'effRT Support'!Z86*10)","v":""},{"$f":"IF('effRT Support'!$B86=0,\"\",'effRT Support'!AA86)","v":""},{"$f":"IF('effRT Support'!$B86=0,\"\",'effRT Support'!AB86)","v":""},{"$f":"IF('effRT Support'!$B86=0,\"\",'effRT Support'!AC86)","v":""},{"$f":"IF('effRT Support'!$B86=0,\"\",'effRT Support'!AD86)","v":""},{"$f":"IF('effRT Support'!$B86=0,\"\",'effRT Support'!AE86)","v":""},{"$f":"IF('effRT Support'!$B86=0,\"\",\"Hours Actual or Deemed\")","v":""},{"$f":"IF('effRT Support'!$B86=0,\"\",'effRT Support'!$F86)","v":""},{"$f":"IF('effRT Support'!$B86=0,\"\",\"Wattage Actual or Deemed\")","v":""},{"$f":"IF('effRT Support'!$B86=0,\"\",IF('Project Information'!$D$33=\"Pay For Performance\",\"Actual\",\"Deemed\"))","v":""},{"$f":"IF('effRT Support'!$B86=0,\"\",\"Cost Actual or Deemed\")","v":""},{"$f":"IF('effRT Support'!$B86=0,\"\",IF('Project Information'!$D$33=\"Pay For Performance\",\"Actual\",\"Deemed\"))","v":""},{"$f":"IF('effRT Support'!$B86=0,\"\",\"Location\")","v":""},{"$f":"IF('effRT Support'!$B86=0,\"\",'effRT Support'!$E86)","v":""},{"$f":"IF('effRT Support'!$B86=0,\"\",\"Space Type\")","v":""},{"$f":"IF('effRT Support'!$B86=0,\"\",'effRT Support'!$G86)","v":""},{"$f":"IF('effRT Support'!$B86=0,\"\",\"Existing Fixture Description\")","v":""},{"$f":"IF('effRT Support'!$B86=0,\"\",'effRT Support'!$H86)","v":""},{"$f":"IF('effRT Support'!$B86=0,\"\",\"Existing Fixture Quantity\")","v":""},{"$f":"IF('effRT Support'!$B86=0,\"\",'effRT Support'!$I86)","v":""},{"$f":"IF('effRT Support'!$B86=0,\"\",\"Existing Fixture Wattage\")","v":""},{"$f":"IF('effRT Support'!$B86=0,\"\",'effRT Support'!$J86)","v":""},{"$f":"IF('effRT Support'!$B86=0,\"\",\"Annual Hours of Operation\")","v":""},{"$f":"IF('effRT Support'!$B86=0,\"\",'effRT Support'!$K86)","v":""},{"$f":"IF('effRT Support'!$B86=0,\"\",\"Installed Fixture Description\")","v":""},{"$f":"IF('effRT Support'!$B86=0,\"\",'effRT Support'!$M86)","v":""},{"$f":"IF('effRT Support'!$B86=0,\"\",\"Installed Fixture Wattage\")","v":""},{"$f":"IF('effRT Support'!$B86=0,\"\",'effRT Support'!$O86)","v":""},{"$f":"IF('effRT Support'!$B86=0,\"\",\"Material Cost\")","v":""},{"$f":"IF('effRT Support'!$B86=0,\"\",'effRT Support'!$R86)","v":""},{"$f":"IF('effRT Support'!$B86=0,\"\",\"Labor Cost\")","v":""},{"$f":"IF('effRT Support'!$B86=0,\"\",'effRT Support'!$S86)","v":""},{"$f":"IF('effRT Support'!$B86=0,\"\",\"Ancillary Costs - Measure Specific\")","v":""},{"$f":"IF('effRT Support'!$B86=0,\"\",'effRT Support'!$T86)","v":""},{"$f":"IF('effRT Support'!$B86=0,\"\",\"Fuel Type\")","v":""},{"$f":"IF('effRT Support'!$B86=0,\"\",'Project Information'!$D$44)","v":""}]
[{"$f":"IF('effRT Support'!$B87=0,\"\",IF('Project Information'!$D$33=\"Small Business\",\"SBL\",\"CILS\"))","v":""},{"$f":"IF('effRT Support'!$B87=0,\"\",IF('Project Information'!$K$2=\"\",\"\",'Project Information'!$K$2))","v":""},null,{"$f":"IF('effRT Support'!$B87=0,\"\",IF('Project Information'!$D$46=\"\",\"\",'Project Information'!$D$46))","v":""},{"$f":"IF('effRT Support'!$B87=0,\"\",IF('Project Information'!$D$20=\"\",\"\",VLOOKUP('Project Information'!$D$20,'Other Data'!$B$159:$E$189,4,FALSE)))","v":""},{"$f":"IF('effRT Support'!$B87=0,\"\",IF('Project Information'!$D$31=\"\",\"\",'Project Information'!$D$31))","v":""},{"$f":"IF('effRT Support'!$B87=0,\"\",IF('Project Information'!$D$5=\"\",\"\",'Project Information'!$D$5))","v":""},null,null,{"$f":"IF('effRT Support'!$B87=0,\"\",IF('Project Information'!$D$20=\"\",\"\",VLOOKUP('Project Information'!$D$20,'Other Data'!$B$159:$E$189,2,FALSE)))","v":""},{"$f":"IF('effRT Support'!$B87=0,\"\",IF('Project Information'!$D$20=\"\",\"\",VLOOKUP('Project Information'!$D$20,'Other Data'!$B$159:$E$189,3,FALSE)))","v":""},{"$f":"IF('effRT Support'!$B87=0,\"\",\"Existing\")","v":""},null,{"$f":"IF('effRT Support'!$B87=0,\"\",IF('Project Information'!$D$21=\"\",\"\",'Project Information'!$D$21))","v":""},{"$f":"IF('effRT Support'!$B87=0,\"\",IF('Project Information'!$D$48=\"\",\"\",'Project Information'!$D$48))","v":""},{"$f":"IF('effRT Support'!$B87=0,\"\",\"\")","v":""},{"$f":"IF('effRT Support'!$B87=0,\"\",\"\")","v":""},{"$f":"IF('effRT Support'!$B87=0,\"\",\"\")","v":""},{"$f":"IF('effRT Support'!$B87=0,\"\",\"\")","v":""},{"$f":"IF('effRT Support'!$B87=0,\"\",IF('Project Information'!$D$13=\"\",\"\",'Project Information'!$D$13))","v":""},{"$f":"IF('effRT Support'!$B87=0,\"\",IF('Project Information'!$E$13=\"\",\"\",'Project Information'!$E$13))","v":""},{"$f":"IF('effRT Support'!$B87=0,\"\",IF('Project Information'!$D$14=\"\",\"\",'Project Information'!$D$14))","v":""},{"$f":"IF('effRT Support'!$B87=0,\"\",IF('Project Information'!$D$15=\"\",\"\",'Project Information'!$D$15))","v":""},{"$f":"IF('effRT Support'!$B87=0,\"\",IF('Project Information'!$D$16=\"\",\"\",'Project Information'!$D$16))","v":""},null,{"$f":"IF('effRT Support'!$B87=0,\"\",'Project Information'!$D$18)","v":""},{"$f":"IF('effRT Support'!$B87=0,\"\",IF('Project Information'!$D$23=\"\",\"\",'Project Information'!$D$23))","v":""},{"$f":"IF('effRT Support'!$B87=0,\"\",IF('Project Information'!$D$24=\"\",\"\",'Project Information'!$D$24))","v":""},{"$f":"IF('effRT Support'!$B87=0,\"\",IF('Project Information'!$D$25=\"\",\"\",'Project Information'!$D$25))","v":""},{"$f":"IF('effRT Support'!$B87=0,\"\",IF('Project Information'!$E$25=\"\",\"\",'Project Information'!$E$25))","v":""},{"$f":"IF('effRT Support'!$B87=0,\"\",IF('Project Information'!$F$25=\"\",\"\",'Project Information'!$F$25))","v":""},{"$f":"IF('effRT Support'!$B87=0,\"\",IF('Project Information'!$D$27=\"\",\"Y\",\"N\"))","v":""},{"$f":"IF('effRT Support'!$B87=0,\"\",IF('Project Information'!$D$27=\"\",\"\",'Project Information'!$D$27))","v":""},{"$f":"IF('effRT Support'!$B87=0,\"\",IF('Project Information'!$D$28=\"\",\"\",'Project Information'!$D$28))","v":""},{"$f":"IF('effRT Support'!$B87=0,\"\",IF('Project Information'!$D$29=\"\",\"\",'Project Information'!$D$29))","v":""},{"$f":"IF('effRT Support'!$B87=0,\"\",IF('Project Information'!$E$29=\"\",\"\",'Project Information'!$E$29))","v":""},{"$f":"IF('effRT Support'!$B87=0,\"\",IF('Project Information'!$F$29=\"\",\"\",'Project Information'!$F$29))","v":""},{"$f":"IF('effRT Support'!$B87=0,\"\",\"\")","v":""},{"$f":"IF('effRT Support'!$B87=0,\"\",\"\")","v":""},{"$f":"IF('effRT Support'!$B87=0,\"\",IF('Project Information'!$D$36=\"\",\"\",'Project Information'!$D$36))","v":""},{"$f":"IF('effRT Support'!$B87=0,\"\",IF('Project Information'!$D$42=\"\",\"\",'Project Information'!$D$42))","v":""},{"$f":"IF('effRT Support'!$B87=0,\"\",'effRT Support'!$D87)","v":""},{"$f":"IF('effRT Support'!$B87=0,\"\",'effRT Support'!$L87)","v":""},{"$f":"IF('effRT Support'!$B87=0,\"\",'effRT Support'!$N87)","v":""},null,null,{"$f":"IF('effRT Support'!$B87=0,\"\",'effRT Support'!$P87)","v":""},{"$f":"IF('effRT Support'!$B87=0,\"\",'effRT Support'!$Q87)","v":""},{"$f":"IF('effRT Support'!$B87=0,\"\",'effRT Support'!U87)","v":""},{"$f":"IF('effRT Support'!$B87=0,\"\",'effRT Support'!V87)","v":""},{"$f":"IF('effRT Support'!$B87=0,\"\",'effRT Support'!W87)","v":""},{"$f":"IF('effRT Support'!$B87=0,\"\",'effRT Support'!X87)","v":""},{"$f":"IF('effRT Support'!$B87=0,\"\",'effRT Support'!Y87)","v":""},{"$f":"IF('effRT Support'!$B87=0,\"\",'effRT Support'!Z87*10)","v":""},{"$f":"IF('effRT Support'!$B87=0,\"\",'effRT Support'!AA87)","v":""},{"$f":"IF('effRT Support'!$B87=0,\"\",'effRT Support'!AB87)","v":""},{"$f":"IF('effRT Support'!$B87=0,\"\",'effRT Support'!AC87)","v":""},{"$f":"IF('effRT Support'!$B87=0,\"\",'effRT Support'!AD87)","v":""},{"$f":"IF('effRT Support'!$B87=0,\"\",'effRT Support'!AE87)","v":""},{"$f":"IF('effRT Support'!$B87=0,\"\",\"Hours Actual or Deemed\")","v":""},{"$f":"IF('effRT Support'!$B87=0,\"\",'effRT Support'!$F87)","v":""},{"$f":"IF('effRT Support'!$B87=0,\"\",\"Wattage Actual or Deemed\")","v":""},{"$f":"IF('effRT Support'!$B87=0,\"\",IF('Project Information'!$D$33=\"Pay For Performance\",\"Actual\",\"Deemed\"))","v":""},{"$f":"IF('effRT Support'!$B87=0,\"\",\"Cost Actual or Deemed\")","v":""},{"$f":"IF('effRT Support'!$B87=0,\"\",IF('Project Information'!$D$33=\"Pay For Performance\",\"Actual\",\"Deemed\"))","v":""},{"$f":"IF('effRT Support'!$B87=0,\"\",\"Location\")","v":""},{"$f":"IF('effRT Support'!$B87=0,\"\",'effRT Support'!$E87)","v":""},{"$f":"IF('effRT Support'!$B87=0,\"\",\"Space Type\")","v":""},{"$f":"IF('effRT Support'!$B87=0,\"\",'effRT Support'!$G87)","v":""},{"$f":"IF('effRT Support'!$B87=0,\"\",\"Existing Fixture Description\")","v":""},{"$f":"IF('effRT Support'!$B87=0,\"\",'effRT Support'!$H87)","v":""},{"$f":"IF('effRT Support'!$B87=0,\"\",\"Existing Fixture Quantity\")","v":""},{"$f":"IF('effRT Support'!$B87=0,\"\",'effRT Support'!$I87)","v":""},{"$f":"IF('effRT Support'!$B87=0,\"\",\"Existing Fixture Wattage\")","v":""},{"$f":"IF('effRT Support'!$B87=0,\"\",'effRT Support'!$J87)","v":""},{"$f":"IF('effRT Support'!$B87=0,\"\",\"Annual Hours of Operation\")","v":""},{"$f":"IF('effRT Support'!$B87=0,\"\",'effRT Support'!$K87)","v":""},{"$f":"IF('effRT Support'!$B87=0,\"\",\"Installed Fixture Description\")","v":""},{"$f":"IF('effRT Support'!$B87=0,\"\",'effRT Support'!$M87)","v":""},{"$f":"IF('effRT Support'!$B87=0,\"\",\"Installed Fixture Wattage\")","v":""},{"$f":"IF('effRT Support'!$B87=0,\"\",'effRT Support'!$O87)","v":""},{"$f":"IF('effRT Support'!$B87=0,\"\",\"Material Cost\")","v":""},{"$f":"IF('effRT Support'!$B87=0,\"\",'effRT Support'!$R87)","v":""},{"$f":"IF('effRT Support'!$B87=0,\"\",\"Labor Cost\")","v":""},{"$f":"IF('effRT Support'!$B87=0,\"\",'effRT Support'!$S87)","v":""},{"$f":"IF('effRT Support'!$B87=0,\"\",\"Ancillary Costs - Measure Specific\")","v":""},{"$f":"IF('effRT Support'!$B87=0,\"\",'effRT Support'!$T87)","v":""},{"$f":"IF('effRT Support'!$B87=0,\"\",\"Fuel Type\")","v":""},{"$f":"IF('effRT Support'!$B87=0,\"\",'Project Information'!$D$44)","v":""},{"$f":"IF('effRT Support'!$B87=0,\"\",\"Installed Fixture Quantity\")","v":""},{"$f":"IF('effRT Support'!$B87=0,\"\",'effRT Support'!P86)","v":""}]
[{"$f":"IF('effRT Support'!$B88=0,\"\",IF('Project Information'!$D$33=\"Small Business\",\"SBL\",\"CILS\"))","v":""},{"$f":"IF('effRT Support'!$B88=0,\"\",IF('Project Information'!$K$2=\"\",\"\",'Project Information'!$K$2))","v":""},null,{"$f":"IF('effRT Support'!$B88=0,\"\",IF('Project Information'!$D$46=\"\",\"\",'Project Information'!$D$46))","v":""},{"$f":"IF('effRT Support'!$B88=0,\"\",IF('Project Information'!$D$20=\"\",\"\",VLOOKUP('Project Information'!$D$20,'Other Data'!$B$159:$E$189,4,FALSE)))","v":""},{"$f":"IF('effRT Support'!$B88=0,\"\",IF('Project Information'!$D$31=\"\",\"\",'Project Information'!$D$31))","v":""},{"$f":"IF('effRT Support'!$B88=0,\"\",IF('Project Information'!$D$5=\"\",\"\",'Project Information'!$D$5))","v":""},null,null,{"$f":"IF('effRT Support'!$B88=0,\"\",IF('Project Information'!$D$20=\"\",\"\",VLOOKUP('Project Information'!$D$20,'Other Data'!$B$159:$E$189,2,FALSE)))","v":""},{"$f":"IF('effRT Support'!$B88=0,\"\",IF('Project Information'!$D$20=\"\",\"\",VLOOKUP('Project Information'!$D$20,'Other Data'!$B$159:$E$189,3,FALSE)))","v":""},{"$f":"IF('effRT Support'!$B88=0,\"\",\"Existing\")","v":""},null,{"$f":"IF('effRT Support'!$B88=0,\"\",IF('Project Information'!$D$21=\"\",\"\",'Project Information'!$D$21))","v":""},{"$f":"IF('effRT Support'!$B88=0,\"\",IF('Project Information'!$D$48=\"\",\"\",'Project Information'!$D$48))","v":""},{"$f":"IF('effRT Support'!$B88=0,\"\",\"\")","v":""},{"$f":"IF('effRT Support'!$B88=0,\"\",\"\")","v":""},{"$f":"IF('effRT Support'!$B88=0,\"\",\"\")","v":""},{"$f":"IF('effRT Support'!$B88=0,\"\",\"\")","v":""},{"$f":"IF('effRT Support'!$B88=0,\"\",IF('Project Information'!$D$13=\"\",\"\",'Project Information'!$D$13))","v":""},{"$f":"IF('effRT Support'!$B88=0,\"\",IF('Project Information'!$E$13=\"\",\"\",'Project Information'!$E$13))","v":""},{"$f":"IF('effRT Support'!$B88=0,\"\",IF('Project Information'!$D$14=\"\",\"\",'Project Information'!$D$14))","v":""},{"$f":"IF('effRT Support'!$B88=0,\"\",IF('Project Information'!$D$15=\"\",\"\",'Project Information'!$D$15))","v":""},{"$f":"IF('effRT Support'!$B88=0,\"\",IF('Project Information'!$D$16=\"\",\"\",'Project Information'!$D$16))","v":""},null,{"$f":"IF('effRT Support'!$B88=0,\"\",'Project Information'!$D$18)","v":""},{"$f":"IF('effRT Support'!$B88=0,\"\",IF('Project Information'!$D$23=\"\",\"\",'Project Information'!$D$23))","v":""},{"$f":"IF('effRT Support'!$B88=0,\"\",IF('Project Information'!$D$24=\"\",\"\",'Project Information'!$D$24))","v":""},{"$f":"IF('effRT Support'!$B88=0,\"\",IF('Project Information'!$D$25=\"\",\"\",'Project Information'!$D$25))","v":""},{"$f":"IF('effRT Support'!$B88=0,\"\",IF('Project Information'!$E$25=\"\",\"\",'Project Information'!$E$25))","v":""},{"$f":"IF('effRT Support'!$B88=0,\"\",IF('Project Information'!$F$25=\"\",\"\",'Project Information'!$F$25))","v":""},{"$f":"IF('effRT Support'!$B88=0,\"\",IF('Project Information'!$D$27=\"\",\"Y\",\"N\"))","v":""},{"$f":"IF('effRT Support'!$B88=0,\"\",IF('Project Information'!$D$27=\"\",\"\",'Project Information'!$D$27))","v":""},{"$f":"IF('effRT Support'!$B88=0,\"\",IF('Project Information'!$D$28=\"\",\"\",'Project Information'!$D$28))","v":""},{"$f":"IF('effRT Support'!$B88=0,\"\",IF('Project Information'!$D$29=\"\",\"\",'Project Information'!$D$29))","v":""},{"$f":"IF('effRT Support'!$B88=0,\"\",IF('Project Information'!$E$29=\"\",\"\",'Project Information'!$E$29))","v":""},{"$f":"IF('effRT Support'!$B88=0,\"\",IF('Project Information'!$F$29=\"\",\"\",'Project Information'!$F$29))","v":""},{"$f":"IF('effRT Support'!$B88=0,\"\",\"\")","v":""},{"$f":"IF('effRT Support'!$B88=0,\"\",\"\")","v":""},{"$f":"IF('effRT Support'!$B88=0,\"\",IF('Project Information'!$D$36=\"\",\"\",'Project Information'!$D$36))","v":""},{"$f":"IF('effRT Support'!$B88=0,\"\",IF('Project Information'!$D$42=\"\",\"\",'Project Information'!$D$42))","v":""},{"$f":"IF('effRT Support'!$B88=0,\"\",'effRT Support'!$D88)","v":""},{"$f":"IF('effRT Support'!$B88=0,\"\",'effRT Support'!$L88)","v":""},{"$f":"IF('effRT Support'!$B88=0,\"\",'effRT Support'!$N88)","v":""},null,null,{"$f":"IF('effRT Support'!$B88=0,\"\",'effRT Support'!$P88)","v":""},{"$f":"IF('effRT Support'!$B88=0,\"\",'effRT Support'!$Q88)","v":""},{"$f":"IF('effRT Support'!$B88=0,\"\",'effRT Support'!U88)","v":""},{"$f":"IF('effRT Support'!$B88=0,\"\",'effRT Support'!V88)","v":""},{"$f":"IF('effRT Support'!$B88=0,\"\",'effRT Support'!W88)","v":""},{"$f":"IF('effRT Support'!$B88=0,\"\",'effRT Support'!X88)","v":""},{"$f":"IF('effRT Support'!$B88=0,\"\",'effRT Support'!Y88)","v":""},{"$f":"IF('effRT Support'!$B88=0,\"\",'effRT Support'!Z88*10)","v":""},{"$f":"IF('effRT Support'!$B88=0,\"\",'effRT Support'!AA88)","v":""},{"$f":"IF('effRT Support'!$B88=0,\"\",'effRT Support'!AB88)","v":""},{"$f":"IF('effRT Support'!$B88=0,\"\",'effRT Support'!AC88)","v":""},{"$f":"IF('effRT Support'!$B88=0,\"\",'effRT Support'!AD88)","v":""},{"$f":"IF('effRT Support'!$B88=0,\"\",'effRT Support'!AE88)","v":""},{"$f":"IF('effRT Support'!$B88=0,\"\",\"Hours Actual or Deemed\")","v":""},{"$f":"IF('effRT Support'!$B88=0,\"\",'effRT Support'!$F88)","v":""},{"$f":"IF('effRT Support'!$B88=0,\"\",\"Wattage Actual or Deemed\")","v":""},{"$f":"IF('effRT Support'!$B88=0,\"\",IF('Project Information'!$D$33=\"Pay For Performance\",\"Actual\",\"Deemed\"))","v":""},{"$f":"IF('effRT Support'!$B88=0,\"\",\"Cost Actual or Deemed\")","v":""},{"$f":"IF('effRT Support'!$B88=0,\"\",IF('Project Information'!$D$33=\"Pay For Performance\",\"Actual\",\"Deemed\"))","v":""},{"$f":"IF('effRT Support'!$B88=0,\"\",\"Location\")","v":""},{"$f":"IF('effRT Support'!$B88=0,\"\",'effRT Support'!$E88)","v":""},{"$f":"IF('effRT Support'!$B88=0,\"\",\"Space Type\")","v":""},{"$f":"IF('effRT Support'!$B88=0,\"\",'effRT Support'!$G88)","v":""},{"$f":"IF('effRT Support'!$B88=0,\"\",\"Existing Fixture Description\")","v":""},{"$f":"IF('effRT Support'!$B88=0,\"\",'effRT Support'!$H88)","v":""},{"$f":"IF('effRT Support'!$B88=0,\"\",\"Existing Fixture Quantity\")","v":""},{"$f":"IF('effRT Support'!$B88=0,\"\",'effRT Support'!$I88)","v":""},{"$f":"IF('effRT Support'!$B88=0,\"\",\"Existing Fixture Wattage\")","v":""},{"$f":"IF('effRT Support'!$B88=0,\"\",'effRT Support'!$J88)","v":""},{"$f":"IF('effRT Support'!$B88=0,\"\",\"Annual Hours of Operation\")","v":""},{"$f":"IF('effRT Support'!$B88=0,\"\",'effRT Support'!$K88)","v":""},{"$f":"IF('effRT Support'!$B88=0,\"\",\"Installed Fixture Description\")","v":""},{"$f":"IF('effRT Support'!$B88=0,\"\",'effRT Support'!$M88)","v":""},{"$f":"IF('effRT Support'!$B88=0,\"\",\"Installed Fixture Wattage\")","v":""},{"$f":"IF('effRT Support'!$B88=0,\"\",'effRT Support'!$O88)","v":""},{"$f":"IF('effRT Support'!$B88=0,\"\",\"Material Cost\")","v":""},{"$f":"IF('effRT Support'!$B88=0,\"\",'effRT Support'!$R88)","v":""},{"$f":"IF('effRT Support'!$B88=0,\"\",\"Labor Cost\")","v":""},{"$f":"IF('effRT Support'!$B88=0,\"\",'effRT Support'!$S88)","v":""},{"$f":"IF('effRT Support'!$B88=0,\"\",\"Ancillary Costs - Measure Specific\")","v":""},{"$f":"IF('effRT Support'!$B88=0,\"\",'effRT Support'!$T88)","v":""},{"$f":"IF('effRT Support'!$B88=0,\"\",\"Fuel Type\")","v":""},{"$f":"IF('effRT Support'!$B88=0,\"\",'Project Information'!$D$44)","v":""}]
[{"$f":"IF('effRT Support'!$B89=0,\"\",IF('Project Information'!$D$33=\"Small Business\",\"SBL\",\"CILS\"))","v":""},{"$f":"IF('effRT Support'!$B89=0,\"\",IF('Project Information'!$K$2=\"\",\"\",'Project Information'!$K$2))","v":""},null,{"$f":"IF('effRT Support'!$B89=0,\"\",IF('Project Information'!$D$46=\"\",\"\",'Project Information'!$D$46))","v":""},{"$f":"IF('effRT Support'!$B89=0,\"\",IF('Project Information'!$D$20=\"\",\"\",VLOOKUP('Project Information'!$D$20,'Other Data'!$B$159:$E$189,4,FALSE)))","v":""},{"$f":"IF('effRT Support'!$B89=0,\"\",IF('Project Information'!$D$31=\"\",\"\",'Project Information'!$D$31))","v":""},{"$f":"IF('effRT Support'!$B89=0,\"\",IF('Project Information'!$D$5=\"\",\"\",'Project Information'!$D$5))","v":""},null,null,{"$f":"IF('effRT Support'!$B89=0,\"\",IF('Project Information'!$D$20=\"\",\"\",VLOOKUP('Project Information'!$D$20,'Other Data'!$B$159:$E$189,2,FALSE)))","v":""},{"$f":"IF('effRT Support'!$B89=0,\"\",IF('Project Information'!$D$20=\"\",\"\",VLOOKUP('Project Information'!$D$20,'Other Data'!$B$159:$E$189,3,FALSE)))","v":""},{"$f":"IF('effRT Support'!$B89=0,\"\",\"Existing\")","v":""},null,{"$f":"IF('effRT Support'!$B89=0,\"\",IF('Project Information'!$D$21=\"\",\"\",'Project Information'!$D$21))","v":""},{"$f":"IF('effRT Support'!$B89=0,\"\",IF('Project Information'!$D$48=\"\",\"\",'Project Information'!$D$48))","v":""},{"$f":"IF('effRT Support'!$B89=0,\"\",\"\")","v":""},{"$f":"IF('effRT Support'!$B89=0,\"\",\"\")","v":""},{"$f":"IF('effRT Support'!$B89=0,\"\",\"\")","v":""},{"$f":"IF('effRT Support'!$B89=0,\"\",\"\")","v":""},{"$f":"IF('effRT Support'!$B89=0,\"\",IF('Project Information'!$D$13=\"\",\"\",'Project Information'!$D$13))","v":""},{"$f":"IF('effRT Support'!$B89=0,\"\",IF('Project Information'!$E$13=\"\",\"\",'Project Information'!$E$13))","v":""},{"$f":"IF('effRT Support'!$B89=0,\"\",IF('Project Information'!$D$14=\"\",\"\",'Project Information'!$D$14))","v":""},{"$f":"IF('effRT Support'!$B89=0,\"\",IF('Project Information'!$D$15=\"\",\"\",'Project Information'!$D$15))","v":""},{"$f":"IF('effRT Support'!$B89=0,\"\",IF('Project Information'!$D$16=\"\",\"\",'Project Information'!$D$16))","v":""},null,{"$f":"IF('effRT Support'!$B89=0,\"\",'Project Information'!$D$18)","v":""},{"$f":"IF('effRT Support'!$B89=0,\"\",IF('Project Information'!$D$23=\"\",\"\",'Project Information'!$D$23))","v":""},{"$f":"IF('effRT Support'!$B89=0,\"\",IF('Project Information'!$D$24=\"\",\"\",'Project Information'!$D$24))","v":""},{"$f":"IF('effRT Support'!$B89=0,\"\",IF('Project Information'!$D$25=\"\",\"\",'Project Information'!$D$25))","v":""},{"$f":"IF('effRT Support'!$B89=0,\"\",IF('Project Information'!$E$25=\"\",\"\",'Project Information'!$E$25))","v":""},{"$f":"IF('effRT Support'!$B89=0,\"\",IF('Project Information'!$F$25=\"\",\"\",'Project Information'!$F$25))","v":""},{"$f":"IF('effRT Support'!$B89=0,\"\",IF('Project Information'!$D$27=\"\",\"Y\",\"N\"))","v":""},{"$f":"IF('effRT Support'!$B89=0,\"\",IF('Project Information'!$D$27=\"\",\"\",'Project Information'!$D$27))","v":""},{"$f":"IF('effRT Support'!$B89=0,\"\",IF('Project Information'!$D$28=\"\",\"\",'Project Information'!$D$28))","v":""},{"$f":"IF('effRT Support'!$B89=0,\"\",IF('Project Information'!$D$29=\"\",\"\",'Project Information'!$D$29))","v":""},{"$f":"IF('effRT Support'!$B89=0,\"\",IF('Project Information'!$E$29=\"\",\"\",'Project Information'!$E$29))","v":""},{"$f":"IF('effRT Support'!$B89=0,\"\",IF('Project Information'!$F$29=\"\",\"\",'Project Information'!$F$29))","v":""},{"$f":"IF('effRT Support'!$B89=0,\"\",\"\")","v":""},{"$f":"IF('effRT Support'!$B89=0,\"\",\"\")","v":""},{"$f":"IF('effRT Support'!$B89=0,\"\",IF('Project Information'!$D$36=\"\",\"\",'Project Information'!$D$36))","v":""},{"$f":"IF('effRT Support'!$B89=0,\"\",IF('Project Information'!$D$42=\"\",\"\",'Project Information'!$D$42))","v":""},{"$f":"IF('effRT Support'!$B89=0,\"\",'effRT Support'!$D89)","v":""},{"$f":"IF('effRT Support'!$B89=0,\"\",'effRT Support'!$L89)","v":""},{"$f":"IF('effRT Support'!$B89=0,\"\",'effRT Support'!$N89)","v":""},null,null,{"$f":"IF('effRT Support'!$B89=0,\"\",'effRT Support'!$P89)","v":""},{"$f":"IF('effRT Support'!$B89=0,\"\",'effRT Support'!$Q89)","v":""},{"$f":"IF('effRT Support'!$B89=0,\"\",'effRT Support'!U89)","v":""},{"$f":"IF('effRT Support'!$B89=0,\"\",'effRT Support'!V89)","v":""},{"$f":"IF('effRT Support'!$B89=0,\"\",'effRT Support'!W89)","v":""},{"$f":"IF('effRT Support'!$B89=0,\"\",'effRT Support'!X89)","v":""},{"$f":"IF('effRT Support'!$B89=0,\"\",'effRT Support'!Y89)","v":""},{"$f":"IF('effRT Support'!$B89=0,\"\",'effRT Support'!Z89*10)","v":""},{"$f":"IF('effRT Support'!$B89=0,\"\",'effRT Support'!AA89)","v":""},{"$f":"IF('effRT Support'!$B89=0,\"\",'effRT Support'!AB89)","v":""},{"$f":"IF('effRT Support'!$B89=0,\"\",'effRT Support'!AC89)","v":""},{"$f":"IF('effRT Support'!$B89=0,\"\",'effRT Support'!AD89)","v":""},{"$f":"IF('effRT Support'!$B89=0,\"\",'effRT Support'!AE89)","v":""},{"$f":"IF('effRT Support'!$B89=0,\"\",\"Hours Actual or Deemed\")","v":""},{"$f":"IF('effRT Support'!$B89=0,\"\",'effRT Support'!$F89)","v":""},{"$f":"IF('effRT Support'!$B89=0,\"\",\"Wattage Actual or Deemed\")","v":""},{"$f":"IF('effRT Support'!$B89=0,\"\",IF('Project Information'!$D$33=\"Pay For Performance\",\"Actual\",\"Deemed\"))","v":""},{"$f":"IF('effRT Support'!$B89=0,\"\",\"Cost Actual or Deemed\")","v":""},{"$f":"IF('effRT Support'!$B89=0,\"\",IF('Project Information'!$D$33=\"Pay For Performance\",\"Actual\",\"Deemed\"))","v":""},{"$f":"IF('effRT Support'!$B89=0,\"\",\"Location\")","v":""},{"$f":"IF('effRT Support'!$B89=0,\"\",'effRT Support'!$E89)","v":""},{"$f":"IF('effRT Support'!$B89=0,\"\",\"Space Type\")","v":""},{"$f":"IF('effRT Support'!$B89=0,\"\",'effRT Support'!$G89)","v":""},{"$f":"IF('effRT Support'!$B89=0,\"\",\"Existing Fixture Description\")","v":""},{"$f":"IF('effRT Support'!$B89=0,\"\",'effRT Support'!$H89)","v":""},{"$f":"IF('effRT Support'!$B89=0,\"\",\"Existing Fixture Quantity\")","v":""},{"$f":"IF('effRT Support'!$B89=0,\"\",'effRT Support'!$I89)","v":""},{"$f":"IF('effRT Support'!$B89=0,\"\",\"Existing Fixture Wattage\")","v":""},{"$f":"IF('effRT Support'!$B89=0,\"\",'effRT Support'!$J89)","v":""},{"$f":"IF('effRT Support'!$B89=0,\"\",\"Annual Hours of Operation\")","v":""},{"$f":"IF('effRT Support'!$B89=0,\"\",'effRT Support'!$K89)","v":""},{"$f":"IF('effRT Support'!$B89=0,\"\",\"Installed Fixture Description\")","v":""},{"$f":"IF('effRT Support'!$B89=0,\"\",'effRT Support'!$M89)","v":""},{"$f":"IF('effRT Support'!$B89=0,\"\",\"Installed Fixture Wattage\")","v":""},{"$f":"IF('effRT Support'!$B89=0,\"\",'effRT Support'!$O89)","v":""},{"$f":"IF('effRT Support'!$B89=0,\"\",\"Material Cost\")","v":""},{"$f":"IF('effRT Support'!$B89=0,\"\",'effRT Support'!$R89)","v":""},{"$f":"IF('effRT Support'!$B89=0,\"\",\"Labor Cost\")","v":""},{"$f":"IF('effRT Support'!$B89=0,\"\",'effRT Support'!$S89)","v":""},{"$f":"IF('effRT Support'!$B89=0,\"\",\"Ancillary Costs - Measure Specific\")","v":""},{"$f":"IF('effRT Support'!$B89=0,\"\",'effRT Support'!$T89)","v":""},{"$f":"IF('effRT Support'!$B89=0,\"\",\"Fuel Type\")","v":""},{"$f":"IF('effRT Support'!$B89=0,\"\",'Project Information'!$D$44)","v":""},{"$f":"IF('effRT Support'!$B89=0,\"\",\"Installed Fixture Quantity\")","v":""},{"$f":"IF('effRT Support'!$B89=0,\"\",'effRT Support'!P88)","v":""}]
[{"$f":"IF('effRT Support'!$B90=0,\"\",IF('Project Information'!$D$33=\"Small Business\",\"SBL\",\"CILS\"))","v":""},{"$f":"IF('effRT Support'!$B90=0,\"\",IF('Project Information'!$K$2=\"\",\"\",'Project Information'!$K$2))","v":""},null,{"$f":"IF('effRT Support'!$B90=0,\"\",IF('Project Information'!$D$46=\"\",\"\",'Project Information'!$D$46))","v":""},{"$f":"IF('effRT Support'!$B90=0,\"\",IF('Project Information'!$D$20=\"\",\"\",VLOOKUP('Project Information'!$D$20,'Other Data'!$B$159:$E$189,4,FALSE)))","v":""},{"$f":"IF('effRT Support'!$B90=0,\"\",IF('Project Information'!$D$31=\"\",\"\",'Project Information'!$D$31))","v":""},{"$f":"IF('effRT Support'!$B90=0,\"\",IF('Project Information'!$D$5=\"\",\"\",'Project Information'!$D$5))","v":""},null,null,{"$f":"IF('effRT Support'!$B90=0,\"\",IF('Project Information'!$D$20=\"\",\"\",VLOOKUP('Project Information'!$D$20,'Other Data'!$B$159:$E$189,2,FALSE)))","v":""},{"$f":"IF('effRT Support'!$B90=0,\"\",IF('Project Information'!$D$20=\"\",\"\",VLOOKUP('Project Information'!$D$20,'Other Data'!$B$159:$E$189,3,FALSE)))","v":""},{"$f":"IF('effRT Support'!$B90=0,\"\",\"Existing\")","v":""},null,{"$f":"IF('effRT Support'!$B90=0,\"\",IF('Project Information'!$D$21=\"\",\"\",'Project Information'!$D$21))","v":""},{"$f":"IF('effRT Support'!$B90=0,\"\",IF('Project Information'!$D$48=\"\",\"\",'Project Information'!$D$48))","v":""},{"$f":"IF('effRT Support'!$B90=0,\"\",\"\")","v":""},{"$f":"IF('effRT Support'!$B90=0,\"\",\"\")","v":""},{"$f":"IF('effRT Support'!$B90=0,\"\",\"\")","v":""},{"$f":"IF('effRT Support'!$B90=0,\"\",\"\")","v":""},{"$f":"IF('effRT Support'!$B90=0,\"\",IF('Project Information'!$D$13=\"\",\"\",'Project Information'!$D$13))","v":""},{"$f":"IF('effRT Support'!$B90=0,\"\",IF('Project Information'!$E$13=\"\",\"\",'Project Information'!$E$13))","v":""},{"$f":"IF('effRT Support'!$B90=0,\"\",IF('Project Information'!$D$14=\"\",\"\",'Project Information'!$D$14))","v":""},{"$f":"IF('effRT Support'!$B90=0,\"\",IF('Project Information'!$D$15=\"\",\"\",'Project Information'!$D$15))","v":""},{"$f":"IF('effRT Support'!$B90=0,\"\",IF('Project Information'!$D$16=\"\",\"\",'Project Information'!$D$16))","v":""},null,{"$f":"IF('effRT Support'!$B90=0,\"\",'Project Information'!$D$18)","v":""},{"$f":"IF('effRT Support'!$B90=0,\"\",IF('Project Information'!$D$23=\"\",\"\",'Project Information'!$D$23))","v":""},{"$f":"IF('effRT Support'!$B90=0,\"\",IF('Project Information'!$D$24=\"\",\"\",'Project Information'!$D$24))","v":""},{"$f":"IF('effRT Support'!$B90=0,\"\",IF('Project Information'!$D$25=\"\",\"\",'Project Information'!$D$25))","v":""},{"$f":"IF('effRT Support'!$B90=0,\"\",IF('Project Information'!$E$25=\"\",\"\",'Project Information'!$E$25))","v":""},{"$f":"IF('effRT Support'!$B90=0,\"\",IF('Project Information'!$F$25=\"\",\"\",'Project Information'!$F$25))","v":""},{"$f":"IF('effRT Support'!$B90=0,\"\",IF('Project Information'!$D$27=\"\",\"Y\",\"N\"))","v":""},{"$f":"IF('effRT Support'!$B90=0,\"\",IF('Project Information'!$D$27=\"\",\"\",'Project Information'!$D$27))","v":""},{"$f":"IF('effRT Support'!$B90=0,\"\",IF('Project Information'!$D$28=\"\",\"\",'Project Information'!$D$28))","v":""},{"$f":"IF('effRT Support'!$B90=0,\"\",IF('Project Information'!$D$29=\"\",\"\",'Project Information'!$D$29))","v":""},{"$f":"IF('effRT Support'!$B90=0,\"\",IF('Project Information'!$E$29=\"\",\"\",'Project Information'!$E$29))","v":""},{"$f":"IF('effRT Support'!$B90=0,\"\",IF('Project Information'!$F$29=\"\",\"\",'Project Information'!$F$29))","v":""},{"$f":"IF('effRT Support'!$B90=0,\"\",\"\")","v":""},{"$f":"IF('effRT Support'!$B90=0,\"\",\"\")","v":""},{"$f":"IF('effRT Support'!$B90=0,\"\",IF('Project Information'!$D$36=\"\",\"\",'Project Information'!$D$36))","v":""},{"$f":"IF('effRT Support'!$B90=0,\"\",IF('Project Information'!$D$42=\"\",\"\",'Project Information'!$D$42))","v":""},{"$f":"IF('effRT Support'!$B90=0,\"\",'effRT Support'!$D90)","v":""},{"$f":"IF('effRT Support'!$B90=0,\"\",'effRT Support'!$L90)","v":""},{"$f":"IF('effRT Support'!$B90=0,\"\",'effRT Support'!$N90)","v":""},null,null,{"$f":"IF('effRT Support'!$B90=0,\"\",'effRT Support'!$P90)","v":""},{"$f":"IF('effRT Support'!$B90=0,\"\",'effRT Support'!$Q90)","v":""},{"$f":"IF('effRT Support'!$B90=0,\"\",'effRT Support'!U90)","v":""},{"$f":"IF('effRT Support'!$B90=0,\"\",'effRT Support'!V90)","v":""},{"$f":"IF('effRT Support'!$B90=0,\"\",'effRT Support'!W90)","v":""},{"$f":"IF('effRT Support'!$B90=0,\"\",'effRT Support'!X90)","v":""},{"$f":"IF('effRT Support'!$B90=0,\"\",'effRT Support'!Y90)","v":""},{"$f":"IF('effRT Support'!$B90=0,\"\",'effRT Support'!Z90*10)","v":""},{"$f":"IF('effRT Support'!$B90=0,\"\",'effRT Support'!AA90)","v":""},{"$f":"IF('effRT Support'!$B90=0,\"\",'effRT Support'!AB90)","v":""},{"$f":"IF('effRT Support'!$B90=0,\"\",'effRT Support'!AC90)","v":""},{"$f":"IF('effRT Support'!$B90=0,\"\",'effRT Support'!AD90)","v":""},{"$f":"IF('effRT Support'!$B90=0,\"\",'effRT Support'!AE90)","v":""},{"$f":"IF('effRT Support'!$B90=0,\"\",\"Hours Actual or Deemed\")","v":""},{"$f":"IF('effRT Support'!$B90=0,\"\",'effRT Support'!$F90)","v":""},{"$f":"IF('effRT Support'!$B90=0,\"\",\"Wattage Actual or Deemed\")","v":""},{"$f":"IF('effRT Support'!$B90=0,\"\",IF('Project Information'!$D$33=\"Pay For Performance\",\"Actual\",\"Deemed\"))","v":""},{"$f":"IF('effRT Support'!$B90=0,\"\",\"Cost Actual or Deemed\")","v":""},{"$f":"IF('effRT Support'!$B90=0,\"\",IF('Project Information'!$D$33=\"Pay For Performance\",\"Actual\",\"Deemed\"))","v":""},{"$f":"IF('effRT Support'!$B90=0,\"\",\"Location\")","v":""},{"$f":"IF('effRT Support'!$B90=0,\"\",'effRT Support'!$E90)","v":""},{"$f":"IF('effRT Support'!$B90=0,\"\",\"Space Type\")","v":""},{"$f":"IF('effRT Support'!$B90=0,\"\",'effRT Support'!$G90)","v":""},{"$f":"IF('effRT Support'!$B90=0,\"\",\"Existing Fixture Description\")","v":""},{"$f":"IF('effRT Support'!$B90=0,\"\",'effRT Support'!$H90)","v":""},{"$f":"IF('effRT Support'!$B90=0,\"\",\"Existing Fixture Quantity\")","v":""},{"$f":"IF('effRT Support'!$B90=0,\"\",'effRT Support'!$I90)","v":""},{"$f":"IF('effRT Support'!$B90=0,\"\",\"Existing Fixture Wattage\")","v":""},{"$f":"IF('effRT Support'!$B90=0,\"\",'effRT Support'!$J90)","v":""},{"$f":"IF('effRT Support'!$B90=0,\"\",\"Annual Hours of Operation\")","v":""},{"$f":"IF('effRT Support'!$B90=0,\"\",'effRT Support'!$K90)","v":""},{"$f":"IF('effRT Support'!$B90=0,\"\",\"Installed Fixture Description\")","v":""},{"$f":"IF('effRT Support'!$B90=0,\"\",'effRT Support'!$M90)","v":""},{"$f":"IF('effRT Support'!$B90=0,\"\",\"Installed Fixture Wattage\")","v":""},{"$f":"IF('effRT Support'!$B90=0,\"\",'effRT Support'!$O90)","v":""},{"$f":"IF('effRT Support'!$B90=0,\"\",\"Material Cost\")","v":""},{"$f":"IF('effRT Support'!$B90=0,\"\",'effRT Support'!$R90)","v":""},{"$f":"IF('effRT Support'!$B90=0,\"\",\"Labor Cost\")","v":""},{"$f":"IF('effRT Support'!$B90=0,\"\",'effRT Support'!$S90)","v":""},{"$f":"IF('effRT Support'!$B90=0,\"\",\"Ancillary Costs - Measure Specific\")","v":""},{"$f":"IF('effRT Support'!$B90=0,\"\",'effRT Support'!$T90)","v":""},{"$f":"IF('effRT Support'!$B90=0,\"\",\"Fuel Type\")","v":""},{"$f":"IF('effRT Support'!$B90=0,\"\",'Project Information'!$D$44)","v":""}]
[{"$f":"IF('effRT Support'!$B91=0,\"\",IF('Project Information'!$D$33=\"Small Business\",\"SBL\",\"CILS\"))","v":""},{"$f":"IF('effRT Support'!$B91=0,\"\",IF('Project Information'!$K$2=\"\",\"\",'Project Information'!$K$2))","v":""},null,{"$f":"IF('effRT Support'!$B91=0,\"\",IF('Project Information'!$D$46=\"\",\"\",'Project Information'!$D$46))","v":""},{"$f":"IF('effRT Support'!$B91=0,\"\",IF('Project Information'!$D$20=\"\",\"\",VLOOKUP('Project Information'!$D$20,'Other Data'!$B$159:$E$189,4,FALSE)))","v":""},{"$f":"IF('effRT Support'!$B91=0,\"\",IF('Project Information'!$D$31=\"\",\"\",'Project Information'!$D$31))","v":""},{"$f":"IF('effRT Support'!$B91=0,\"\",IF('Project Information'!$D$5=\"\",\"\",'Project Information'!$D$5))","v":""},null,null,{"$f":"IF('effRT Support'!$B91=0,\"\",IF('Project Information'!$D$20=\"\",\"\",VLOOKUP('Project Information'!$D$20,'Other Data'!$B$159:$E$189,2,FALSE)))","v":""},{"$f":"IF('effRT Support'!$B91=0,\"\",IF('Project Information'!$D$20=\"\",\"\",VLOOKUP('Project Information'!$D$20,'Other Data'!$B$159:$E$189,3,FALSE)))","v":""},{"$f":"IF('effRT Support'!$B91=0,\"\",\"Existing\")","v":""},null,{"$f":"IF('effRT Support'!$B91=0,\"\",IF('Project Information'!$D$21=\"\",\"\",'Project Information'!$D$21))","v":""},{"$f":"IF('effRT Support'!$B91=0,\"\",IF('Project Information'!$D$48=\"\",\"\",'Project Information'!$D$48))","v":""},{"$f":"IF('effRT Support'!$B91=0,\"\",\"\")","v":""},{"$f":"IF('effRT Support'!$B91=0,\"\",\"\")","v":""},{"$f":"IF('effRT Support'!$B91=0,\"\",\"\")","v":""},{"$f":"IF('effRT Support'!$B91=0,\"\",\"\")","v":""},{"$f":"IF('effRT Support'!$B91=0,\"\",IF('Project Information'!$D$13=\"\",\"\",'Project Information'!$D$13))","v":""},{"$f":"IF('effRT Support'!$B91=0,\"\",IF('Project Information'!$E$13=\"\",\"\",'Project Information'!$E$13))","v":""},{"$f":"IF('effRT Support'!$B91=0,\"\",IF('Project Information'!$D$14=\"\",\"\",'Project Information'!$D$14))","v":""},{"$f":"IF('effRT Support'!$B91=0,\"\",IF('Project Information'!$D$15=\"\",\"\",'Project Information'!$D$15))","v":""},{"$f":"IF('effRT Support'!$B91=0,\"\",IF('Project Information'!$D$16=\"\",\"\",'Project Information'!$D$16))","v":""},null,{"$f":"IF('effRT Support'!$B91=0,\"\",'Project Information'!$D$18)","v":""},{"$f":"IF('effRT Support'!$B91=0,\"\",IF('Project Information'!$D$23=\"\",\"\",'Project Information'!$D$23))","v":""},{"$f":"IF('effRT Support'!$B91=0,\"\",IF('Project Information'!$D$24=\"\",\"\",'Project Information'!$D$24))","v":""},{"$f":"IF('effRT Support'!$B91=0,\"\",IF('Project Information'!$D$25=\"\",\"\",'Project Information'!$D$25))","v":""},{"$f":"IF('effRT Support'!$B91=0,\"\",IF('Project Information'!$E$25=\"\",\"\",'Project Information'!$E$25))","v":""},{"$f":"IF('effRT Support'!$B91=0,\"\",IF('Project Information'!$F$25=\"\",\"\",'Project Information'!$F$25))","v":""},{"$f":"IF('effRT Support'!$B91=0,\"\",IF('Project Information'!$D$27=\"\",\"Y\",\"N\"))","v":""},{"$f":"IF('effRT Support'!$B91=0,\"\",IF('Project Information'!$D$27=\"\",\"\",'Project Information'!$D$27))","v":""},{"$f":"IF('effRT Support'!$B91=0,\"\",IF('Project Information'!$D$28=\"\",\"\",'Project Information'!$D$28))","v":""},{"$f":"IF('effRT Support'!$B91=0,\"\",IF('Project Information'!$D$29=\"\",\"\",'Project Information'!$D$29))","v":""},{"$f":"IF('effRT Support'!$B91=0,\"\",IF('Project Information'!$E$29=\"\",\"\",'Project Information'!$E$29))","v":""},{"$f":"IF('effRT Support'!$B91=0,\"\",IF('Project Information'!$F$29=\"\",\"\",'Project Information'!$F$29))","v":""},{"$f":"IF('effRT Support'!$B91=0,\"\",\"\")","v":""},{"$f":"IF('effRT Support'!$B91=0,\"\",\"\")","v":""},{"$f":"IF('effRT Support'!$B91=0,\"\",IF('Project Information'!$D$36=\"\",\"\",'Project Information'!$D$36))","v":""},{"$f":"IF('effRT Support'!$B91=0,\"\",IF('Project Information'!$D$42=\"\",\"\",'Project Information'!$D$42))","v":""},{"$f":"IF('effRT Support'!$B91=0,\"\",'effRT Support'!$D91)","v":""},{"$f":"IF('effRT Support'!$B91=0,\"\",'effRT Support'!$L91)","v":""},{"$f":"IF('effRT Support'!$B91=0,\"\",'effRT Support'!$N91)","v":""},null,null,{"$f":"IF('effRT Support'!$B91=0,\"\",'effRT Support'!$P91)","v":""},{"$f":"IF('effRT Support'!$B91=0,\"\",'effRT Support'!$Q91)","v":""},{"$f":"IF('effRT Support'!$B91=0,\"\",'effRT Support'!U91)","v":""},{"$f":"IF('effRT Support'!$B91=0,\"\",'effRT Support'!V91)","v":""},{"$f":"IF('effRT Support'!$B91=0,\"\",'effRT Support'!W91)","v":""},{"$f":"IF('effRT Support'!$B91=0,\"\",'effRT Support'!X91)","v":""},{"$f":"IF('effRT Support'!$B91=0,\"\",'effRT Support'!Y91)","v":""},{"$f":"IF('effRT Support'!$B91=0,\"\",'effRT Support'!Z91*10)","v":""},{"$f":"IF('effRT Support'!$B91=0,\"\",'effRT Support'!AA91)","v":""},{"$f":"IF('effRT Support'!$B91=0,\"\",'effRT Support'!AB91)","v":""},{"$f":"IF('effRT Support'!$B91=0,\"\",'effRT Support'!AC91)","v":""},{"$f":"IF('effRT Support'!$B91=0,\"\",'effRT Support'!AD91)","v":""},{"$f":"IF('effRT Support'!$B91=0,\"\",'effRT Support'!AE91)","v":""},{"$f":"IF('effRT Support'!$B91=0,\"\",\"Hours Actual or Deemed\")","v":""},{"$f":"IF('effRT Support'!$B91=0,\"\",'effRT Support'!$F91)","v":""},{"$f":"IF('effRT Support'!$B91=0,\"\",\"Wattage Actual or Deemed\")","v":""},{"$f":"IF('effRT Support'!$B91=0,\"\",IF('Project Information'!$D$33=\"Pay For Performance\",\"Actual\",\"Deemed\"))","v":""},{"$f":"IF('effRT Support'!$B91=0,\"\",\"Cost Actual or Deemed\")","v":""},{"$f":"IF('effRT Support'!$B91=0,\"\",IF('Project Information'!$D$33=\"Pay For Performance\",\"Actual\",\"Deemed\"))","v":""},{"$f":"IF('effRT Support'!$B91=0,\"\",\"Location\")","v":""},{"$f":"IF('effRT Support'!$B91=0,\"\",'effRT Support'!$E91)","v":""},{"$f":"IF('effRT Support'!$B91=0,\"\",\"Space Type\")","v":""},{"$f":"IF('effRT Support'!$B91=0,\"\",'effRT Support'!$G91)","v":""},{"$f":"IF('effRT Support'!$B91=0,\"\",\"Existing Fixture Description\")","v":""},{"$f":"IF('effRT Support'!$B91=0,\"\",'effRT Support'!$H91)","v":""},{"$f":"IF('effRT Support'!$B91=0,\"\",\"Existing Fixture Quantity\")","v":""},{"$f":"IF('effRT Support'!$B91=0,\"\",'effRT Support'!$I91)","v":""},{"$f":"IF('effRT Support'!$B91=0,\"\",\"Existing Fixture Wattage\")","v":""},{"$f":"IF('effRT Support'!$B91=0,\"\",'effRT Support'!$J91)","v":""},{"$f":"IF('effRT Support'!$B91=0,\"\",\"Annual Hours of Operation\")","v":""},{"$f":"IF('effRT Support'!$B91=0,\"\",'effRT Support'!$K91)","v":""},{"$f":"IF('effRT Support'!$B91=0,\"\",\"Installed Fixture Description\")","v":""},{"$f":"IF('effRT Support'!$B91=0,\"\",'effRT Support'!$M91)","v":""},{"$f":"IF('effRT Support'!$B91=0,\"\",\"Installed Fixture Wattage\")","v":""},{"$f":"IF('effRT Support'!$B91=0,\"\",'effRT Support'!$O91)","v":""},{"$f":"IF('effRT Support'!$B91=0,\"\",\"Material Cost\")","v":""},{"$f":"IF('effRT Support'!$B91=0,\"\",'effRT Support'!$R91)","v":""},{"$f":"IF('effRT Support'!$B91=0,\"\",\"Labor Cost\")","v":""},{"$f":"IF('effRT Support'!$B91=0,\"\",'effRT Support'!$S91)","v":""},{"$f":"IF('effRT Support'!$B91=0,\"\",\"Ancillary Costs - Measure Specific\")","v":""},{"$f":"IF('effRT Support'!$B91=0,\"\",'effRT Support'!$T91)","v":""},{"$f":"IF('effRT Support'!$B91=0,\"\",\"Fuel Type\")","v":""},{"$f":"IF('effRT Support'!$B91=0,\"\",'Project Information'!$D$44)","v":""},{"$f":"IF('effRT Support'!$B91=0,\"\",\"Installed Fixture Quantity\")","v":""},{"$f":"IF('effRT Support'!$B91=0,\"\",'effRT Support'!P90)","v":""}]
[{"$f":"IF('effRT Support'!$B92=0,\"\",IF('Project Information'!$D$33=\"Small Business\",\"SBL\",\"CILS\"))","v":""},{"$f":"IF('effRT Support'!$B92=0,\"\",IF('Project Information'!$K$2=\"\",\"\",'Project Information'!$K$2))","v":""},null,{"$f":"IF('effRT Support'!$B92=0,\"\",IF('Project Information'!$D$46=\"\",\"\",'Project Information'!$D$46))","v":""},{"$f":"IF('effRT Support'!$B92=0,\"\",IF('Project Information'!$D$20=\"\",\"\",VLOOKUP('Project Information'!$D$20,'Other Data'!$B$159:$E$189,4,FALSE)))","v":""},{"$f":"IF('effRT Support'!$B92=0,\"\",IF('Project Information'!$D$31=\"\",\"\",'Project Information'!$D$31))","v":""},{"$f":"IF('effRT Support'!$B92=0,\"\",IF('Project Information'!$D$5=\"\",\"\",'Project Information'!$D$5))","v":""},null,null,{"$f":"IF('effRT Support'!$B92=0,\"\",IF('Project Information'!$D$20=\"\",\"\",VLOOKUP('Project Information'!$D$20,'Other Data'!$B$159:$E$189,2,FALSE)))","v":""},{"$f":"IF('effRT Support'!$B92=0,\"\",IF('Project Information'!$D$20=\"\",\"\",VLOOKUP('Project Information'!$D$20,'Other Data'!$B$159:$E$189,3,FALSE)))","v":""},{"$f":"IF('effRT Support'!$B92=0,\"\",\"Existing\")","v":""},null,{"$f":"IF('effRT Support'!$B92=0,\"\",IF('Project Information'!$D$21=\"\",\"\",'Project Information'!$D$21))","v":""},{"$f":"IF('effRT Support'!$B92=0,\"\",IF('Project Information'!$D$48=\"\",\"\",'Project Information'!$D$48))","v":""},{"$f":"IF('effRT Support'!$B92=0,\"\",\"\")","v":""},{"$f":"IF('effRT Support'!$B92=0,\"\",\"\")","v":""},{"$f":"IF('effRT Support'!$B92=0,\"\",\"\")","v":""},{"$f":"IF('effRT Support'!$B92=0,\"\",\"\")","v":""},{"$f":"IF('effRT Support'!$B92=0,\"\",IF('Project Information'!$D$13=\"\",\"\",'Project Information'!$D$13))","v":""},{"$f":"IF('effRT Support'!$B92=0,\"\",IF('Project Information'!$E$13=\"\",\"\",'Project Information'!$E$13))","v":""},{"$f":"IF('effRT Support'!$B92=0,\"\",IF('Project Information'!$D$14=\"\",\"\",'Project Information'!$D$14))","v":""},{"$f":"IF('effRT Support'!$B92=0,\"\",IF('Project Information'!$D$15=\"\",\"\",'Project Information'!$D$15))","v":""},{"$f":"IF('effRT Support'!$B92=0,\"\",IF('Project Information'!$D$16=\"\",\"\",'Project Information'!$D$16))","v":""},null,{"$f":"IF('effRT Support'!$B92=0,\"\",'Project Information'!$D$18)","v":""},{"$f":"IF('effRT Support'!$B92=0,\"\",IF('Project Information'!$D$23=\"\",\"\",'Project Information'!$D$23))","v":""},{"$f":"IF('effRT Support'!$B92=0,\"\",IF('Project Information'!$D$24=\"\",\"\",'Project Information'!$D$24))","v":""},{"$f":"IF('effRT Support'!$B92=0,\"\",IF('Project Information'!$D$25=\"\",\"\",'Project Information'!$D$25))","v":""},{"$f":"IF('effRT Support'!$B92=0,\"\",IF('Project Information'!$E$25=\"\",\"\",'Project Information'!$E$25))","v":""},{"$f":"IF('effRT Support'!$B92=0,\"\",IF('Project Information'!$F$25=\"\",\"\",'Project Information'!$F$25))","v":""},{"$f":"IF('effRT Support'!$B92=0,\"\",IF('Project Information'!$D$27=\"\",\"Y\",\"N\"))","v":""},{"$f":"IF('effRT Support'!$B92=0,\"\",IF('Project Information'!$D$27=\"\",\"\",'Project Information'!$D$27))","v":""},{"$f":"IF('effRT Support'!$B92=0,\"\",IF('Project Information'!$D$28=\"\",\"\",'Project Information'!$D$28))","v":""},{"$f":"IF('effRT Support'!$B92=0,\"\",IF('Project Information'!$D$29=\"\",\"\",'Project Information'!$D$29))","v":""},{"$f":"IF('effRT Support'!$B92=0,\"\",IF('Project Information'!$E$29=\"\",\"\",'Project Information'!$E$29))","v":""},{"$f":"IF('effRT Support'!$B92=0,\"\",IF('Project Information'!$F$29=\"\",\"\",'Project Information'!$F$29))","v":""},{"$f":"IF('effRT Support'!$B92=0,\"\",\"\")","v":""},{"$f":"IF('effRT Support'!$B92=0,\"\",\"\")","v":""},{"$f":"IF('effRT Support'!$B92=0,\"\",IF('Project Information'!$D$36=\"\",\"\",'Project Information'!$D$36))","v":""},{"$f":"IF('effRT Support'!$B92=0,\"\",IF('Project Information'!$D$42=\"\",\"\",'Project Information'!$D$42))","v":""},{"$f":"IF('effRT Support'!$B92=0,\"\",'effRT Support'!$D92)","v":""},{"$f":"IF('effRT Support'!$B92=0,\"\",'effRT Support'!$L92)","v":""},{"$f":"IF('effRT Support'!$B92=0,\"\",'effRT Support'!$N92)","v":""},null,null,{"$f":"IF('effRT Support'!$B92=0,\"\",'effRT Support'!$P92)","v":""},{"$f":"IF('effRT Support'!$B92=0,\"\",'effRT Support'!$Q92)","v":""},{"$f":"IF('effRT Support'!$B92=0,\"\",'effRT Support'!U92)","v":""},{"$f":"IF('effRT Support'!$B92=0,\"\",'effRT Support'!V92)","v":""},{"$f":"IF('effRT Support'!$B92=0,\"\",'effRT Support'!W92)","v":""},{"$f":"IF('effRT Support'!$B92=0,\"\",'effRT Support'!X92)","v":""},{"$f":"IF('effRT Support'!$B92=0,\"\",'effRT Support'!Y92)","v":""},{"$f":"IF('effRT Support'!$B92=0,\"\",'effRT Support'!Z92*10)","v":""},{"$f":"IF('effRT Support'!$B92=0,\"\",'effRT Support'!AA92)","v":""},{"$f":"IF('effRT Support'!$B92=0,\"\",'effRT Support'!AB92)","v":""},{"$f":"IF('effRT Support'!$B92=0,\"\",'effRT Support'!AC92)","v":""},{"$f":"IF('effRT Support'!$B92=0,\"\",'effRT Support'!AD92)","v":""},{"$f":"IF('effRT Support'!$B92=0,\"\",'effRT Support'!AE92)","v":""},{"$f":"IF('effRT Support'!$B92=0,\"\",\"Hours Actual or Deemed\")","v":""},{"$f":"IF('effRT Support'!$B92=0,\"\",'effRT Support'!$F92)","v":""},{"$f":"IF('effRT Support'!$B92=0,\"\",\"Wattage Actual or Deemed\")","v":""},{"$f":"IF('effRT Support'!$B92=0,\"\",IF('Project Information'!$D$33=\"Pay For Performance\",\"Actual\",\"Deemed\"))","v":""},{"$f":"IF('effRT Support'!$B92=0,\"\",\"Cost Actual or Deemed\")","v":""},{"$f":"IF('effRT Support'!$B92=0,\"\",IF('Project Information'!$D$33=\"Pay For Performance\",\"Actual\",\"Deemed\"))","v":""},{"$f":"IF('effRT Support'!$B92=0,\"\",\"Location\")","v":""},{"$f":"IF('effRT Support'!$B92=0,\"\",'effRT Support'!$E92)","v":""},{"$f":"IF('effRT Support'!$B92=0,\"\",\"Space Type\")","v":""},{"$f":"IF('effRT Support'!$B92=0,\"\",'effRT Support'!$G92)","v":""},{"$f":"IF('effRT Support'!$B92=0,\"\",\"Existing Fixture Description\")","v":""},{"$f":"IF('effRT Support'!$B92=0,\"\",'effRT Support'!$H92)","v":""},{"$f":"IF('effRT Support'!$B92=0,\"\",\"Existing Fixture Quantity\")","v":""},{"$f":"IF('effRT Support'!$B92=0,\"\",'effRT Support'!$I92)","v":""},{"$f":"IF('effRT Support'!$B92=0,\"\",\"Existing Fixture Wattage\")","v":""},{"$f":"IF('effRT Support'!$B92=0,\"\",'effRT Support'!$J92)","v":""},{"$f":"IF('effRT Support'!$B92=0,\"\",\"Annual Hours of Operation\")","v":""},{"$f":"IF('effRT Support'!$B92=0,\"\",'effRT Support'!$K92)","v":""},{"$f":"IF('effRT Support'!$B92=0,\"\",\"Installed Fixture Description\")","v":""},{"$f":"IF('effRT Support'!$B92=0,\"\",'effRT Support'!$M92)","v":""},{"$f":"IF('effRT Support'!$B92=0,\"\",\"Installed Fixture Wattage\")","v":""},{"$f":"IF('effRT Support'!$B92=0,\"\",'effRT Support'!$O92)","v":""},{"$f":"IF('effRT Support'!$B92=0,\"\",\"Material Cost\")","v":""},{"$f":"IF('effRT Support'!$B92=0,\"\",'effRT Support'!$R92)","v":""},{"$f":"IF('effRT Support'!$B92=0,\"\",\"Labor Cost\")","v":""},{"$f":"IF('effRT Support'!$B92=0,\"\",'effRT Support'!$S92)","v":""},{"$f":"IF('effRT Support'!$B92=0,\"\",\"Ancillary Costs - Measure Specific\")","v":""},{"$f":"IF('effRT Support'!$B92=0,\"\",'effRT Support'!$T92)","v":""},{"$f":"IF('effRT Support'!$B92=0,\"\",\"Fuel Type\")","v":""},{"$f":"IF('effRT Support'!$B92=0,\"\",'Project Information'!$D$44)","v":""}]
[{"$f":"IF('effRT Support'!$B93=0,\"\",IF('Project Information'!$D$33=\"Small Business\",\"SBL\",\"CILS\"))","v":""},{"$f":"IF('effRT Support'!$B93=0,\"\",IF('Project Information'!$K$2=\"\",\"\",'Project Information'!$K$2))","v":""},null,{"$f":"IF('effRT Support'!$B93=0,\"\",IF('Project Information'!$D$46=\"\",\"\",'Project Information'!$D$46))","v":""},{"$f":"IF('effRT Support'!$B93=0,\"\",IF('Project Information'!$D$20=\"\",\"\",VLOOKUP('Project Information'!$D$20,'Other Data'!$B$159:$E$189,4,FALSE)))","v":""},{"$f":"IF('effRT Support'!$B93=0,\"\",IF('Project Information'!$D$31=\"\",\"\",'Project Information'!$D$31))","v":""},{"$f":"IF('effRT Support'!$B93=0,\"\",IF('Project Information'!$D$5=\"\",\"\",'Project Information'!$D$5))","v":""},null,null,{"$f":"IF('effRT Support'!$B93=0,\"\",IF('Project Information'!$D$20=\"\",\"\",VLOOKUP('Project Information'!$D$20,'Other Data'!$B$159:$E$189,2,FALSE)))","v":""},{"$f":"IF('effRT Support'!$B93=0,\"\",IF('Project Information'!$D$20=\"\",\"\",VLOOKUP('Project Information'!$D$20,'Other Data'!$B$159:$E$189,3,FALSE)))","v":""},{"$f":"IF('effRT Support'!$B93=0,\"\",\"Existing\")","v":""},null,{"$f":"IF('effRT Support'!$B93=0,\"\",IF('Project Information'!$D$21=\"\",\"\",'Project Information'!$D$21))","v":""},{"$f":"IF('effRT Support'!$B93=0,\"\",IF('Project Information'!$D$48=\"\",\"\",'Project Information'!$D$48))","v":""},{"$f":"IF('effRT Support'!$B93=0,\"\",\"\")","v":""},{"$f":"IF('effRT Support'!$B93=0,\"\",\"\")","v":""},{"$f":"IF('effRT Support'!$B93=0,\"\",\"\")","v":""},{"$f":"IF('effRT Support'!$B93=0,\"\",\"\")","v":""},{"$f":"IF('effRT Support'!$B93=0,\"\",IF('Project Information'!$D$13=\"\",\"\",'Project Information'!$D$13))","v":""},{"$f":"IF('effRT Support'!$B93=0,\"\",IF('Project Information'!$E$13=\"\",\"\",'Project Information'!$E$13))","v":""},{"$f":"IF('effRT Support'!$B93=0,\"\",IF('Project Information'!$D$14=\"\",\"\",'Project Information'!$D$14))","v":""},{"$f":"IF('effRT Support'!$B93=0,\"\",IF('Project Information'!$D$15=\"\",\"\",'Project Information'!$D$15))","v":""},{"$f":"IF('effRT Support'!$B93=0,\"\",IF('Project Information'!$D$16=\"\",\"\",'Project Information'!$D$16))","v":""},null,{"$f":"IF('effRT Support'!$B93=0,\"\",'Project Information'!$D$18)","v":""},{"$f":"IF('effRT Support'!$B93=0,\"\",IF('Project Information'!$D$23=\"\",\"\",'Project Information'!$D$23))","v":""},{"$f":"IF('effRT Support'!$B93=0,\"\",IF('Project Information'!$D$24=\"\",\"\",'Project Information'!$D$24))","v":""},{"$f":"IF('effRT Support'!$B93=0,\"\",IF('Project Information'!$D$25=\"\",\"\",'Project Information'!$D$25))","v":""},{"$f":"IF('effRT Support'!$B93=0,\"\",IF('Project Information'!$E$25=\"\",\"\",'Project Information'!$E$25))","v":""},{"$f":"IF('effRT Support'!$B93=0,\"\",IF('Project Information'!$F$25=\"\",\"\",'Project Information'!$F$25))","v":""},{"$f":"IF('effRT Support'!$B93=0,\"\",IF('Project Information'!$D$27=\"\",\"Y\",\"N\"))","v":""},{"$f":"IF('effRT Support'!$B93=0,\"\",IF('Project Information'!$D$27=\"\",\"\",'Project Information'!$D$27))","v":""},{"$f":"IF('effRT Support'!$B93=0,\"\",IF('Project Information'!$D$28=\"\",\"\",'Project Information'!$D$28))","v":""},{"$f":"IF('effRT Support'!$B93=0,\"\",IF('Project Information'!$D$29=\"\",\"\",'Project Information'!$D$29))","v":""},{"$f":"IF('effRT Support'!$B93=0,\"\",IF('Project Information'!$E$29=\"\",\"\",'Project Information'!$E$29))","v":""},{"$f":"IF('effRT Support'!$B93=0,\"\",IF('Project Information'!$F$29=\"\",\"\",'Project Information'!$F$29))","v":""},{"$f":"IF('effRT Support'!$B93=0,\"\",\"\")","v":""},{"$f":"IF('effRT Support'!$B93=0,\"\",\"\")","v":""},{"$f":"IF('effRT Support'!$B93=0,\"\",IF('Project Information'!$D$36=\"\",\"\",'Project Information'!$D$36))","v":""},{"$f":"IF('effRT Support'!$B93=0,\"\",IF('Project Information'!$D$42=\"\",\"\",'Project Information'!$D$42))","v":""},{"$f":"IF('effRT Support'!$B93=0,\"\",'effRT Support'!$D93)","v":""},{"$f":"IF('effRT Support'!$B93=0,\"\",'effRT Support'!$L93)","v":""},{"$f":"IF('effRT Support'!$B93=0,\"\",'effRT Support'!$N93)","v":""},null,null,{"$f":"IF('effRT Support'!$B93=0,\"\",'effRT Support'!$P93)","v":""},{"$f":"IF('effRT Support'!$B93=0,\"\",'effRT Support'!$Q93)","v":""},{"$f":"IF('effRT Support'!$B93=0,\"\",'effRT Support'!U93)","v":""},{"$f":"IF('effRT Support'!$B93=0,\"\",'effRT Support'!V93)","v":""},{"$f":"IF('effRT Support'!$B93=0,\"\",'effRT Support'!W93)","v":""},{"$f":"IF('effRT Support'!$B93=0,\"\",'effRT Support'!X93)","v":""},{"$f":"IF('effRT Support'!$B93=0,\"\",'effRT Support'!Y93)","v":""},{"$f":"IF('effRT Support'!$B93=0,\"\",'effRT Support'!Z93*10)","v":""},{"$f":"IF('effRT Support'!$B93=0,\"\",'effRT Support'!AA93)","v":""},{"$f":"IF('effRT Support'!$B93=0,\"\",'effRT Support'!AB93)","v":""},{"$f":"IF('effRT Support'!$B93=0,\"\",'effRT Support'!AC93)","v":""},{"$f":"IF('effRT Support'!$B93=0,\"\",'effRT Support'!AD93)","v":""},{"$f":"IF('effRT Support'!$B93=0,\"\",'effRT Support'!AE93)","v":""},{"$f":"IF('effRT Support'!$B93=0,\"\",\"Hours Actual or Deemed\")","v":""},{"$f":"IF('effRT Support'!$B93=0,\"\",'effRT Support'!$F93)","v":""},{"$f":"IF('effRT Support'!$B93=0,\"\",\"Wattage Actual or Deemed\")","v":""},{"$f":"IF('effRT Support'!$B93=0,\"\",IF('Project Information'!$D$33=\"Pay For Performance\",\"Actual\",\"Deemed\"))","v":""},{"$f":"IF('effRT Support'!$B93=0,\"\",\"Cost Actual or Deemed\")","v":""},{"$f":"IF('effRT Support'!$B93=0,\"\",IF('Project Information'!$D$33=\"Pay For Performance\",\"Actual\",\"Deemed\"))","v":""},{"$f":"IF('effRT Support'!$B93=0,\"\",\"Location\")","v":""},{"$f":"IF('effRT Support'!$B93=0,\"\",'effRT Support'!$E93)","v":""},{"$f":"IF('effRT Support'!$B93=0,\"\",\"Space Type\")","v":""},{"$f":"IF('effRT Support'!$B93=0,\"\",'effRT Support'!$G93)","v":""},{"$f":"IF('effRT Support'!$B93=0,\"\",\"Existing Fixture Description\")","v":""},{"$f":"IF('effRT Support'!$B93=0,\"\",'effRT Support'!$H93)","v":""},{"$f":"IF('effRT Support'!$B93=0,\"\",\"Existing Fixture Quantity\")","v":""},{"$f":"IF('effRT Support'!$B93=0,\"\",'effRT Support'!$I93)","v":""},{"$f":"IF('effRT Support'!$B93=0,\"\",\"Existing Fixture Wattage\")","v":""},{"$f":"IF('effRT Support'!$B93=0,\"\",'effRT Support'!$J93)","v":""},{"$f":"IF('effRT Support'!$B93=0,\"\",\"Annual Hours of Operation\")","v":""},{"$f":"IF('effRT Support'!$B93=0,\"\",'effRT Support'!$K93)","v":""},{"$f":"IF('effRT Support'!$B93=0,\"\",\"Installed Fixture Description\")","v":""},{"$f":"IF('effRT Support'!$B93=0,\"\",'effRT Support'!$M93)","v":""},{"$f":"IF('effRT Support'!$B93=0,\"\",\"Installed Fixture Wattage\")","v":""},{"$f":"IF('effRT Support'!$B93=0,\"\",'effRT Support'!$O93)","v":""},{"$f":"IF('effRT Support'!$B93=0,\"\",\"Material Cost\")","v":""},{"$f":"IF('effRT Support'!$B93=0,\"\",'effRT Support'!$R93)","v":""},{"$f":"IF('effRT Support'!$B93=0,\"\",\"Labor Cost\")","v":""},{"$f":"IF('effRT Support'!$B93=0,\"\",'effRT Support'!$S93)","v":""},{"$f":"IF('effRT Support'!$B93=0,\"\",\"Ancillary Costs - Measure Specific\")","v":""},{"$f":"IF('effRT Support'!$B93=0,\"\",'effRT Support'!$T93)","v":""},{"$f":"IF('effRT Support'!$B93=0,\"\",\"Fuel Type\")","v":""},{"$f":"IF('effRT Support'!$B93=0,\"\",'Project Information'!$D$44)","v":""},{"$f":"IF('effRT Support'!$B93=0,\"\",\"Installed Fixture Quantity\")","v":""},{"$f":"IF('effRT Support'!$B93=0,\"\",'effRT Support'!P92)","v":""}]
[{"$f":"IF('effRT Support'!$B94=0,\"\",IF('Project Information'!$D$33=\"Small Business\",\"SBL\",\"CILS\"))","v":""},{"$f":"IF('effRT Support'!$B94=0,\"\",IF('Project Information'!$K$2=\"\",\"\",'Project Information'!$K$2))","v":""},null,{"$f":"IF('effRT Support'!$B94=0,\"\",IF('Project Information'!$D$46=\"\",\"\",'Project Information'!$D$46))","v":""},{"$f":"IF('effRT Support'!$B94=0,\"\",IF('Project Information'!$D$20=\"\",\"\",VLOOKUP('Project Information'!$D$20,'Other Data'!$B$159:$E$189,4,FALSE)))","v":""},{"$f":"IF('effRT Support'!$B94=0,\"\",IF('Project Information'!$D$31=\"\",\"\",'Project Information'!$D$31))","v":""},{"$f":"IF('effRT Support'!$B94=0,\"\",IF('Project Information'!$D$5=\"\",\"\",'Project Information'!$D$5))","v":""},null,null,{"$f":"IF('effRT Support'!$B94=0,\"\",IF('Project Information'!$D$20=\"\",\"\",VLOOKUP('Project Information'!$D$20,'Other Data'!$B$159:$E$189,2,FALSE)))","v":""},{"$f":"IF('effRT Support'!$B94=0,\"\",IF('Project Information'!$D$20=\"\",\"\",VLOOKUP('Project Information'!$D$20,'Other Data'!$B$159:$E$189,3,FALSE)))","v":""},{"$f":"IF('effRT Support'!$B94=0,\"\",\"Existing\")","v":""},null,{"$f":"IF('effRT Support'!$B94=0,\"\",IF('Project Information'!$D$21=\"\",\"\",'Project Information'!$D$21))","v":""},{"$f":"IF('effRT Support'!$B94=0,\"\",IF('Project Information'!$D$48=\"\",\"\",'Project Information'!$D$48))","v":""},{"$f":"IF('effRT Support'!$B94=0,\"\",\"\")","v":""},{"$f":"IF('effRT Support'!$B94=0,\"\",\"\")","v":""},{"$f":"IF('effRT Support'!$B94=0,\"\",\"\")","v":""},{"$f":"IF('effRT Support'!$B94=0,\"\",\"\")","v":""},{"$f":"IF('effRT Support'!$B94=0,\"\",IF('Project Information'!$D$13=\"\",\"\",'Project Information'!$D$13))","v":""},{"$f":"IF('effRT Support'!$B94=0,\"\",IF('Project Information'!$E$13=\"\",\"\",'Project Information'!$E$13))","v":""},{"$f":"IF('effRT Support'!$B94=0,\"\",IF('Project Information'!$D$14=\"\",\"\",'Project Information'!$D$14))","v":""},{"$f":"IF('effRT Support'!$B94=0,\"\",IF('Project Information'!$D$15=\"\",\"\",'Project Information'!$D$15))","v":""},{"$f":"IF('effRT Support'!$B94=0,\"\",IF('Project Information'!$D$16=\"\",\"\",'Project Information'!$D$16))","v":""},null,{"$f":"IF('effRT Support'!$B94=0,\"\",'Project Information'!$D$18)","v":""},{"$f":"IF('effRT Support'!$B94=0,\"\",IF('Project Information'!$D$23=\"\",\"\",'Project Information'!$D$23))","v":""},{"$f":"IF('effRT Support'!$B94=0,\"\",IF('Project Information'!$D$24=\"\",\"\",'Project Information'!$D$24))","v":""},{"$f":"IF('effRT Support'!$B94=0,\"\",IF('Project Information'!$D$25=\"\",\"\",'Project Information'!$D$25))","v":""},{"$f":"IF('effRT Support'!$B94=0,\"\",IF('Project Information'!$E$25=\"\",\"\",'Project Information'!$E$25))","v":""},{"$f":"IF('effRT Support'!$B94=0,\"\",IF('Project Information'!$F$25=\"\",\"\",'Project Information'!$F$25))","v":""},{"$f":"IF('effRT Support'!$B94=0,\"\",IF('Project Information'!$D$27=\"\",\"Y\",\"N\"))","v":""},{"$f":"IF('effRT Support'!$B94=0,\"\",IF('Project Information'!$D$27=\"\",\"\",'Project Information'!$D$27))","v":""},{"$f":"IF('effRT Support'!$B94=0,\"\",IF('Project Information'!$D$28=\"\",\"\",'Project Information'!$D$28))","v":""},{"$f":"IF('effRT Support'!$B94=0,\"\",IF('Project Information'!$D$29=\"\",\"\",'Project Information'!$D$29))","v":""},{"$f":"IF('effRT Support'!$B94=0,\"\",IF('Project Information'!$E$29=\"\",\"\",'Project Information'!$E$29))","v":""},{"$f":"IF('effRT Support'!$B94=0,\"\",IF('Project Information'!$F$29=\"\",\"\",'Project Information'!$F$29))","v":""},{"$f":"IF('effRT Support'!$B94=0,\"\",\"\")","v":""},{"$f":"IF('effRT Support'!$B94=0,\"\",\"\")","v":""},{"$f":"IF('effRT Support'!$B94=0,\"\",IF('Project Information'!$D$36=\"\",\"\",'Project Information'!$D$36))","v":""},{"$f":"IF('effRT Support'!$B94=0,\"\",IF('Project Information'!$D$42=\"\",\"\",'Project Information'!$D$42))","v":""},{"$f":"IF('effRT Support'!$B94=0,\"\",'effRT Support'!$D94)","v":""},{"$f":"IF('effRT Support'!$B94=0,\"\",'effRT Support'!$L94)","v":""},{"$f":"IF('effRT Support'!$B94=0,\"\",'effRT Support'!$N94)","v":""},null,null,{"$f":"IF('effRT Support'!$B94=0,\"\",'effRT Support'!$P94)","v":""},{"$f":"IF('effRT Support'!$B94=0,\"\",'effRT Support'!$Q94)","v":""},{"$f":"IF('effRT Support'!$B94=0,\"\",'effRT Support'!U94)","v":""},{"$f":"IF('effRT Support'!$B94=0,\"\",'effRT Support'!V94)","v":""},{"$f":"IF('effRT Support'!$B94=0,\"\",'effRT Support'!W94)","v":""},{"$f":"IF('effRT Support'!$B94=0,\"\",'effRT Support'!X94)","v":""},{"$f":"IF('effRT Support'!$B94=0,\"\",'effRT Support'!Y94)","v":""},{"$f":"IF('effRT Support'!$B94=0,\"\",'effRT Support'!Z94*10)","v":""},{"$f":"IF('effRT Support'!$B94=0,\"\",'effRT Support'!AA94)","v":""},{"$f":"IF('effRT Support'!$B94=0,\"\",'effRT Support'!AB94)","v":""},{"$f":"IF('effRT Support'!$B94=0,\"\",'effRT Support'!AC94)","v":""},{"$f":"IF('effRT Support'!$B94=0,\"\",'effRT Support'!AD94)","v":""},{"$f":"IF('effRT Support'!$B94=0,\"\",'effRT Support'!AE94)","v":""},{"$f":"IF('effRT Support'!$B94=0,\"\",\"Hours Actual or Deemed\")","v":""},{"$f":"IF('effRT Support'!$B94=0,\"\",'effRT Support'!$F94)","v":""},{"$f":"IF('effRT Support'!$B94=0,\"\",\"Wattage Actual or Deemed\")","v":""},{"$f":"IF('effRT Support'!$B94=0,\"\",IF('Project Information'!$D$33=\"Pay For Performance\",\"Actual\",\"Deemed\"))","v":""},{"$f":"IF('effRT Support'!$B94=0,\"\",\"Cost Actual or Deemed\")","v":""},{"$f":"IF('effRT Support'!$B94=0,\"\",IF('Project Information'!$D$33=\"Pay For Performance\",\"Actual\",\"Deemed\"))","v":""},{"$f":"IF('effRT Support'!$B94=0,\"\",\"Location\")","v":""},{"$f":"IF('effRT Support'!$B94=0,\"\",'effRT Support'!$E94)","v":""},{"$f":"IF('effRT Support'!$B94=0,\"\",\"Space Type\")","v":""},{"$f":"IF('effRT Support'!$B94=0,\"\",'effRT Support'!$G94)","v":""},{"$f":"IF('effRT Support'!$B94=0,\"\",\"Existing Fixture Description\")","v":""},{"$f":"IF('effRT Support'!$B94=0,\"\",'effRT Support'!$H94)","v":""},{"$f":"IF('effRT Support'!$B94=0,\"\",\"Existing Fixture Quantity\")","v":""},{"$f":"IF('effRT Support'!$B94=0,\"\",'effRT Support'!$I94)","v":""},{"$f":"IF('effRT Support'!$B94=0,\"\",\"Existing Fixture Wattage\")","v":""},{"$f":"IF('effRT Support'!$B94=0,\"\",'effRT Support'!$J94)","v":""},{"$f":"IF('effRT Support'!$B94=0,\"\",\"Annual Hours of Operation\")","v":""},{"$f":"IF('effRT Support'!$B94=0,\"\",'effRT Support'!$K94)","v":""},{"$f":"IF('effRT Support'!$B94=0,\"\",\"Installed Fixture Description\")","v":""},{"$f":"IF('effRT Support'!$B94=0,\"\",'effRT Support'!$M94)","v":""},{"$f":"IF('effRT Support'!$B94=0,\"\",\"Installed Fixture Wattage\")","v":""},{"$f":"IF('effRT Support'!$B94=0,\"\",'effRT Support'!$O94)","v":""},{"$f":"IF('effRT Support'!$B94=0,\"\",\"Material Cost\")","v":""},{"$f":"IF('effRT Support'!$B94=0,\"\",'effRT Support'!$R94)","v":""},{"$f":"IF('effRT Support'!$B94=0,\"\",\"Labor Cost\")","v":""},{"$f":"IF('effRT Support'!$B94=0,\"\",'effRT Support'!$S94)","v":""},{"$f":"IF('effRT Support'!$B94=0,\"\",\"Ancillary Costs - Measure Specific\")","v":""},{"$f":"IF('effRT Support'!$B94=0,\"\",'effRT Support'!$T94)","v":""},{"$f":"IF('effRT Support'!$B94=0,\"\",\"Fuel Type\")","v":""},{"$f":"IF('effRT Support'!$B94=0,\"\",'Project Information'!$D$44)","v":""}]
[{"$f":"IF('effRT Support'!$B95=0,\"\",IF('Project Information'!$D$33=\"Small Business\",\"SBL\",\"CILS\"))","v":""},{"$f":"IF('effRT Support'!$B95=0,\"\",IF('Project Information'!$K$2=\"\",\"\",'Project Information'!$K$2))","v":""},null,{"$f":"IF('effRT Support'!$B95=0,\"\",IF('Project Information'!$D$46=\"\",\"\",'Project Information'!$D$46))","v":""},{"$f":"IF('effRT Support'!$B95=0,\"\",IF('Project Information'!$D$20=\"\",\"\",VLOOKUP('Project Information'!$D$20,'Other Data'!$B$159:$E$189,4,FALSE)))","v":""},{"$f":"IF('effRT Support'!$B95=0,\"\",IF('Project Information'!$D$31=\"\",\"\",'Project Information'!$D$31))","v":""},{"$f":"IF('effRT Support'!$B95=0,\"\",IF('Project Information'!$D$5=\"\",\"\",'Project Information'!$D$5))","v":""},null,null,{"$f":"IF('effRT Support'!$B95=0,\"\",IF('Project Information'!$D$20=\"\",\"\",VLOOKUP('Project Information'!$D$20,'Other Data'!$B$159:$E$189,2,FALSE)))","v":""},{"$f":"IF('effRT Support'!$B95=0,\"\",IF('Project Information'!$D$20=\"\",\"\",VLOOKUP('Project Information'!$D$20,'Other Data'!$B$159:$E$189,3,FALSE)))","v":""},{"$f":"IF('effRT Support'!$B95=0,\"\",\"Existing\")","v":""},null,{"$f":"IF('effRT Support'!$B95=0,\"\",IF('Project Information'!$D$21=\"\",\"\",'Project Information'!$D$21))","v":""},{"$f":"IF('effRT Support'!$B95=0,\"\",IF('Project Information'!$D$48=\"\",\"\",'Project Information'!$D$48))","v":""},{"$f":"IF('effRT Support'!$B95=0,\"\",\"\")","v":""},{"$f":"IF('effRT Support'!$B95=0,\"\",\"\")","v":""},{"$f":"IF('effRT Support'!$B95=0,\"\",\"\")","v":""},{"$f":"IF('effRT Support'!$B95=0,\"\",\"\")","v":""},{"$f":"IF('effRT Support'!$B95=0,\"\",IF('Project Information'!$D$13=\"\",\"\",'Project Information'!$D$13))","v":""},{"$f":"IF('effRT Support'!$B95=0,\"\",IF('Project Information'!$E$13=\"\",\"\",'Project Information'!$E$13))","v":""},{"$f":"IF('effRT Support'!$B95=0,\"\",IF('Project Information'!$D$14=\"\",\"\",'Project Information'!$D$14))","v":""},{"$f":"IF('effRT Support'!$B95=0,\"\",IF('Project Information'!$D$15=\"\",\"\",'Project Information'!$D$15))","v":""},{"$f":"IF('effRT Support'!$B95=0,\"\",IF('Project Information'!$D$16=\"\",\"\",'Project Information'!$D$16))","v":""},null,{"$f":"IF('effRT Support'!$B95=0,\"\",'Project Information'!$D$18)","v":""},{"$f":"IF('effRT Support'!$B95=0,\"\",IF('Project Information'!$D$23=\"\",\"\",'Project Information'!$D$23))","v":""},{"$f":"IF('effRT Support'!$B95=0,\"\",IF('Project Information'!$D$24=\"\",\"\",'Project Information'!$D$24))","v":""},{"$f":"IF('effRT Support'!$B95=0,\"\",IF('Project Information'!$D$25=\"\",\"\",'Project Information'!$D$25))","v":""},{"$f":"IF('effRT Support'!$B95=0,\"\",IF('Project Information'!$E$25=\"\",\"\",'Project Information'!$E$25))","v":""},{"$f":"IF('effRT Support'!$B95=0,\"\",IF('Project Information'!$F$25=\"\",\"\",'Project Information'!$F$25))","v":""},{"$f":"IF('effRT Support'!$B95=0,\"\",IF('Project Information'!$D$27=\"\",\"Y\",\"N\"))","v":""},{"$f":"IF('effRT Support'!$B95=0,\"\",IF('Project Information'!$D$27=\"\",\"\",'Project Information'!$D$27))","v":""},{"$f":"IF('effRT Support'!$B95=0,\"\",IF('Project Information'!$D$28=\"\",\"\",'Project Information'!$D$28))","v":""},{"$f":"IF('effRT Support'!$B95=0,\"\",IF('Project Information'!$D$29=\"\",\"\",'Project Information'!$D$29))","v":""},{"$f":"IF('effRT Support'!$B95=0,\"\",IF('Project Information'!$E$29=\"\",\"\",'Project Information'!$E$29))","v":""},{"$f":"IF('effRT Support'!$B95=0,\"\",IF('Project Information'!$F$29=\"\",\"\",'Project Information'!$F$29))","v":""},{"$f":"IF('effRT Support'!$B95=0,\"\",\"\")","v":""},{"$f":"IF('effRT Support'!$B95=0,\"\",\"\")","v":""},{"$f":"IF('effRT Support'!$B95=0,\"\",IF('Project Information'!$D$36=\"\",\"\",'Project Information'!$D$36))","v":""},{"$f":"IF('effRT Support'!$B95=0,\"\",IF('Project Information'!$D$42=\"\",\"\",'Project Information'!$D$42))","v":""},{"$f":"IF('effRT Support'!$B95=0,\"\",'effRT Support'!$D95)","v":""},{"$f":"IF('effRT Support'!$B95=0,\"\",'effRT Support'!$L95)","v":""},{"$f":"IF('effRT Support'!$B95=0,\"\",'effRT Support'!$N95)","v":""},null,null,{"$f":"IF('effRT Support'!$B95=0,\"\",'effRT Support'!$P95)","v":""},{"$f":"IF('effRT Support'!$B95=0,\"\",'effRT Support'!$Q95)","v":""},{"$f":"IF('effRT Support'!$B95=0,\"\",'effRT Support'!U95)","v":""},{"$f":"IF('effRT Support'!$B95=0,\"\",'effRT Support'!V95)","v":""},{"$f":"IF('effRT Support'!$B95=0,\"\",'effRT Support'!W95)","v":""},{"$f":"IF('effRT Support'!$B95=0,\"\",'effRT Support'!X95)","v":""},{"$f":"IF('effRT Support'!$B95=0,\"\",'effRT Support'!Y95)","v":""},{"$f":"IF('effRT Support'!$B95=0,\"\",'effRT Support'!Z95*10)","v":""},{"$f":"IF('effRT Support'!$B95=0,\"\",'effRT Support'!AA95)","v":""},{"$f":"IF('effRT Support'!$B95=0,\"\",'effRT Support'!AB95)","v":""},{"$f":"IF('effRT Support'!$B95=0,\"\",'effRT Support'!AC95)","v":""},{"$f":"IF('effRT Support'!$B95=0,\"\",'effRT Support'!AD95)","v":""},{"$f":"IF('effRT Support'!$B95=0,\"\",'effRT Support'!AE95)","v":""},{"$f":"IF('effRT Support'!$B95=0,\"\",\"Hours Actual or Deemed\")","v":""},{"$f":"IF('effRT Support'!$B95=0,\"\",'effRT Support'!$F95)","v":""},{"$f":"IF('effRT Support'!$B95=0,\"\",\"Wattage Actual or Deemed\")","v":""},{"$f":"IF('effRT Support'!$B95=0,\"\",IF('Project Information'!$D$33=\"Pay For Performance\",\"Actual\",\"Deemed\"))","v":""},{"$f":"IF('effRT Support'!$B95=0,\"\",\"Cost Actual or Deemed\")","v":""},{"$f":"IF('effRT Support'!$B95=0,\"\",IF('Project Information'!$D$33=\"Pay For Performance\",\"Actual\",\"Deemed\"))","v":""},{"$f":"IF('effRT Support'!$B95=0,\"\",\"Location\")","v":""},{"$f":"IF('effRT Support'!$B95=0,\"\",'effRT Support'!$E95)","v":""},{"$f":"IF('effRT Support'!$B95=0,\"\",\"Space Type\")","v":""},{"$f":"IF('effRT Support'!$B95=0,\"\",'effRT Support'!$G95)","v":""},{"$f":"IF('effRT Support'!$B95=0,\"\",\"Existing Fixture Description\")","v":""},{"$f":"IF('effRT Support'!$B95=0,\"\",'effRT Support'!$H95)","v":""},{"$f":"IF('effRT Support'!$B95=0,\"\",\"Existing Fixture Quantity\")","v":""},{"$f":"IF('effRT Support'!$B95=0,\"\",'effRT Support'!$I95)","v":""},{"$f":"IF('effRT Support'!$B95=0,\"\",\"Existing Fixture Wattage\")","v":""},{"$f":"IF('effRT Support'!$B95=0,\"\",'effRT Support'!$J95)","v":""},{"$f":"IF('effRT Support'!$B95=0,\"\",\"Annual Hours of Operation\")","v":""},{"$f":"IF('effRT Support'!$B95=0,\"\",'effRT Support'!$K95)","v":""},{"$f":"IF('effRT Support'!$B95=0,\"\",\"Installed Fixture Description\")","v":""},{"$f":"IF('effRT Support'!$B95=0,\"\",'effRT Support'!$M95)","v":""},{"$f":"IF('effRT Support'!$B95=0,\"\",\"Installed Fixture Wattage\")","v":""},{"$f":"IF('effRT Support'!$B95=0,\"\",'effRT Support'!$O95)","v":""},{"$f":"IF('effRT Support'!$B95=0,\"\",\"Material Cost\")","v":""},{"$f":"IF('effRT Support'!$B95=0,\"\",'effRT Support'!$R95)","v":""},{"$f":"IF('effRT Support'!$B95=0,\"\",\"Labor Cost\")","v":""},{"$f":"IF('effRT Support'!$B95=0,\"\",'effRT Support'!$S95)","v":""},{"$f":"IF('effRT Support'!$B95=0,\"\",\"Ancillary Costs - Measure Specific\")","v":""},{"$f":"IF('effRT Support'!$B95=0,\"\",'effRT Support'!$T95)","v":""},{"$f":"IF('effRT Support'!$B95=0,\"\",\"Fuel Type\")","v":""},{"$f":"IF('effRT Support'!$B95=0,\"\",'Project Information'!$D$44)","v":""},{"$f":"IF('effRT Support'!$B95=0,\"\",\"Installed Fixture Quantity\")","v":""},{"$f":"IF('effRT Support'!$B95=0,\"\",'effRT Support'!P94)","v":""}]
[{"$f":"IF('effRT Support'!$B96=0,\"\",IF('Project Information'!$D$33=\"Small Business\",\"SBL\",\"CILS\"))","v":""},{"$f":"IF('effRT Support'!$B96=0,\"\",IF('Project Information'!$K$2=\"\",\"\",'Project Information'!$K$2))","v":""},null,{"$f":"IF('effRT Support'!$B96=0,\"\",IF('Project Information'!$D$46=\"\",\"\",'Project Information'!$D$46))","v":""},{"$f":"IF('effRT Support'!$B96=0,\"\",IF('Project Information'!$D$20=\"\",\"\",VLOOKUP('Project Information'!$D$20,'Other Data'!$B$159:$E$189,4,FALSE)))","v":""},{"$f":"IF('effRT Support'!$B96=0,\"\",IF('Project Information'!$D$31=\"\",\"\",'Project Information'!$D$31))","v":""},{"$f":"IF('effRT Support'!$B96=0,\"\",IF('Project Information'!$D$5=\"\",\"\",'Project Information'!$D$5))","v":""},null,null,{"$f":"IF('effRT Support'!$B96=0,\"\",IF('Project Information'!$D$20=\"\",\"\",VLOOKUP('Project Information'!$D$20,'Other Data'!$B$159:$E$189,2,FALSE)))","v":""},{"$f":"IF('effRT Support'!$B96=0,\"\",IF('Project Information'!$D$20=\"\",\"\",VLOOKUP('Project Information'!$D$20,'Other Data'!$B$159:$E$189,3,FALSE)))","v":""},{"$f":"IF('effRT Support'!$B96=0,\"\",\"Existing\")","v":""},null,{"$f":"IF('effRT Support'!$B96=0,\"\",IF('Project Information'!$D$21=\"\",\"\",'Project Information'!$D$21))","v":""},{"$f":"IF('effRT Support'!$B96=0,\"\",IF('Project Information'!$D$48=\"\",\"\",'Project Information'!$D$48))","v":""},{"$f":"IF('effRT Support'!$B96=0,\"\",\"\")","v":""},{"$f":"IF('effRT Support'!$B96=0,\"\",\"\")","v":""},{"$f":"IF('effRT Support'!$B96=0,\"\",\"\")","v":""},{"$f":"IF('effRT Support'!$B96=0,\"\",\"\")","v":""},{"$f":"IF('effRT Support'!$B96=0,\"\",IF('Project Information'!$D$13=\"\",\"\",'Project Information'!$D$13))","v":""},{"$f":"IF('effRT Support'!$B96=0,\"\",IF('Project Information'!$E$13=\"\",\"\",'Project Information'!$E$13))","v":""},{"$f":"IF('effRT Support'!$B96=0,\"\",IF('Project Information'!$D$14=\"\",\"\",'Project Information'!$D$14))","v":""},{"$f":"IF('effRT Support'!$B96=0,\"\",IF('Project Information'!$D$15=\"\",\"\",'Project Information'!$D$15))","v":""},{"$f":"IF('effRT Support'!$B96=0,\"\",IF('Project Information'!$D$16=\"\",\"\",'Project Information'!$D$16))","v":""},null,{"$f":"IF('effRT Support'!$B96=0,\"\",'Project Information'!$D$18)","v":""},{"$f":"IF('effRT Support'!$B96=0,\"\",IF('Project Information'!$D$23=\"\",\"\",'Project Information'!$D$23))","v":""},{"$f":"IF('effRT Support'!$B96=0,\"\",IF('Project Information'!$D$24=\"\",\"\",'Project Information'!$D$24))","v":""},{"$f":"IF('effRT Support'!$B96=0,\"\",IF('Project Information'!$D$25=\"\",\"\",'Project Information'!$D$25))","v":""},{"$f":"IF('effRT Support'!$B96=0,\"\",IF('Project Information'!$E$25=\"\",\"\",'Project Information'!$E$25))","v":""},{"$f":"IF('effRT Support'!$B96=0,\"\",IF('Project Information'!$F$25=\"\",\"\",'Project Information'!$F$25))","v":""},{"$f":"IF('effRT Support'!$B96=0,\"\",IF('Project Information'!$D$27=\"\",\"Y\",\"N\"))","v":""},{"$f":"IF('effRT Support'!$B96=0,\"\",IF('Project Information'!$D$27=\"\",\"\",'Project Information'!$D$27))","v":""},{"$f":"IF('effRT Support'!$B96=0,\"\",IF('Project Information'!$D$28=\"\",\"\",'Project Information'!$D$28))","v":""},{"$f":"IF('effRT Support'!$B96=0,\"\",IF('Project Information'!$D$29=\"\",\"\",'Project Information'!$D$29))","v":""},{"$f":"IF('effRT Support'!$B96=0,\"\",IF('Project Information'!$E$29=\"\",\"\",'Project Information'!$E$29))","v":""},{"$f":"IF('effRT Support'!$B96=0,\"\",IF('Project Information'!$F$29=\"\",\"\",'Project Information'!$F$29))","v":""},{"$f":"IF('effRT Support'!$B96=0,\"\",\"\")","v":""},{"$f":"IF('effRT Support'!$B96=0,\"\",\"\")","v":""},{"$f":"IF('effRT Support'!$B96=0,\"\",IF('Project Information'!$D$36=\"\",\"\",'Project Information'!$D$36))","v":""},{"$f":"IF('effRT Support'!$B96=0,\"\",IF('Project Information'!$D$42=\"\",\"\",'Project Information'!$D$42))","v":""},{"$f":"IF('effRT Support'!$B96=0,\"\",'effRT Support'!$D96)","v":""},{"$f":"IF('effRT Support'!$B96=0,\"\",'effRT Support'!$L96)","v":""},{"$f":"IF('effRT Support'!$B96=0,\"\",'effRT Support'!$N96)","v":""},null,null,{"$f":"IF('effRT Support'!$B96=0,\"\",'effRT Support'!$P96)","v":""},{"$f":"IF('effRT Support'!$B96=0,\"\",'effRT Support'!$Q96)","v":""},{"$f":"IF('effRT Support'!$B96=0,\"\",'effRT Support'!U96)","v":""},{"$f":"IF('effRT Support'!$B96=0,\"\",'effRT Support'!V96)","v":""},{"$f":"IF('effRT Support'!$B96=0,\"\",'effRT Support'!W96)","v":""},{"$f":"IF('effRT Support'!$B96=0,\"\",'effRT Support'!X96)","v":""},{"$f":"IF('effRT Support'!$B96=0,\"\",'effRT Support'!Y96)","v":""},{"$f":"IF('effRT Support'!$B96=0,\"\",'effRT Support'!Z96*10)","v":""},{"$f":"IF('effRT Support'!$B96=0,\"\",'effRT Support'!AA96)","v":""},{"$f":"IF('effRT Support'!$B96=0,\"\",'effRT Support'!AB96)","v":""},{"$f":"IF('effRT Support'!$B96=0,\"\",'effRT Support'!AC96)","v":""},{"$f":"IF('effRT Support'!$B96=0,\"\",'effRT Support'!AD96)","v":""},{"$f":"IF('effRT Support'!$B96=0,\"\",'effRT Support'!AE96)","v":""},{"$f":"IF('effRT Support'!$B96=0,\"\",\"Hours Actual or Deemed\")","v":""},{"$f":"IF('effRT Support'!$B96=0,\"\",'effRT Support'!$F96)","v":""},{"$f":"IF('effRT Support'!$B96=0,\"\",\"Wattage Actual or Deemed\")","v":""},{"$f":"IF('effRT Support'!$B96=0,\"\",IF('Project Information'!$D$33=\"Pay For Performance\",\"Actual\",\"Deemed\"))","v":""},{"$f":"IF('effRT Support'!$B96=0,\"\",\"Cost Actual or Deemed\")","v":""},{"$f":"IF('effRT Support'!$B96=0,\"\",IF('Project Information'!$D$33=\"Pay For Performance\",\"Actual\",\"Deemed\"))","v":""},{"$f":"IF('effRT Support'!$B96=0,\"\",\"Location\")","v":""},{"$f":"IF('effRT Support'!$B96=0,\"\",'effRT Support'!$E96)","v":""},{"$f":"IF('effRT Support'!$B96=0,\"\",\"Space Type\")","v":""},{"$f":"IF('effRT Support'!$B96=0,\"\",'effRT Support'!$G96)","v":""},{"$f":"IF('effRT Support'!$B96=0,\"\",\"Existing Fixture Description\")","v":""},{"$f":"IF('effRT Support'!$B96=0,\"\",'effRT Support'!$H96)","v":""},{"$f":"IF('effRT Support'!$B96=0,\"\",\"Existing Fixture Quantity\")","v":""},{"$f":"IF('effRT Support'!$B96=0,\"\",'effRT Support'!$I96)","v":""},{"$f":"IF('effRT Support'!$B96=0,\"\",\"Existing Fixture Wattage\")","v":""},{"$f":"IF('effRT Support'!$B96=0,\"\",'effRT Support'!$J96)","v":""},{"$f":"IF('effRT Support'!$B96=0,\"\",\"Annual Hours of Operation\")","v":""},{"$f":"IF('effRT Support'!$B96=0,\"\",'effRT Support'!$K96)","v":""},{"$f":"IF('effRT Support'!$B96=0,\"\",\"Installed Fixture Description\")","v":""},{"$f":"IF('effRT Support'!$B96=0,\"\",'effRT Support'!$M96)","v":""},{"$f":"IF('effRT Support'!$B96=0,\"\",\"Installed Fixture Wattage\")","v":""},{"$f":"IF('effRT Support'!$B96=0,\"\",'effRT Support'!$O96)","v":""},{"$f":"IF('effRT Support'!$B96=0,\"\",\"Material Cost\")","v":""},{"$f":"IF('effRT Support'!$B96=0,\"\",'effRT Support'!$R96)","v":""},{"$f":"IF('effRT Support'!$B96=0,\"\",\"Labor Cost\")","v":""},{"$f":"IF('effRT Support'!$B96=0,\"\",'effRT Support'!$S96)","v":""},{"$f":"IF('effRT Support'!$B96=0,\"\",\"Ancillary Costs - Measure Specific\")","v":""},{"$f":"IF('effRT Support'!$B96=0,\"\",'effRT Support'!$T96)","v":""},{"$f":"IF('effRT Support'!$B96=0,\"\",\"Fuel Type\")","v":""},{"$f":"IF('effRT Support'!$B96=0,\"\",'Project Information'!$D$44)","v":""}]
[{"$f":"IF('effRT Support'!$B97=0,\"\",IF('Project Information'!$D$33=\"Small Business\",\"SBL\",\"CILS\"))","v":""},{"$f":"IF('effRT Support'!$B97=0,\"\",IF('Project Information'!$K$2=\"\",\"\",'Project Information'!$K$2))","v":""},null,{"$f":"IF('effRT Support'!$B97=0,\"\",IF('Project Information'!$D$46=\"\",\"\",'Project Information'!$D$46))","v":""},{"$f":"IF('effRT Support'!$B97=0,\"\",IF('Project Information'!$D$20=\"\",\"\",VLOOKUP('Project Information'!$D$20,'Other Data'!$B$159:$E$189,4,FALSE)))","v":""},{"$f":"IF('effRT Support'!$B97=0,\"\",IF('Project Information'!$D$31=\"\",\"\",'Project Information'!$D$31))","v":""},{"$f":"IF('effRT Support'!$B97=0,\"\",IF('Project Information'!$D$5=\"\",\"\",'Project Information'!$D$5))","v":""},null,null,{"$f":"IF('effRT Support'!$B97=0,\"\",IF('Project Information'!$D$20=\"\",\"\",VLOOKUP('Project Information'!$D$20,'Other Data'!$B$159:$E$189,2,FALSE)))","v":""},{"$f":"IF('effRT Support'!$B97=0,\"\",IF('Project Information'!$D$20=\"\",\"\",VLOOKUP('Project Information'!$D$20,'Other Data'!$B$159:$E$189,3,FALSE)))","v":""},{"$f":"IF('effRT Support'!$B97=0,\"\",\"Existing\")","v":""},null,{"$f":"IF('effRT Support'!$B97=0,\"\",IF('Project Information'!$D$21=\"\",\"\",'Project Information'!$D$21))","v":""},{"$f":"IF('effRT Support'!$B97=0,\"\",IF('Project Information'!$D$48=\"\",\"\",'Project Information'!$D$48))","v":""},{"$f":"IF('effRT Support'!$B97=0,\"\",\"\")","v":""},{"$f":"IF('effRT Support'!$B97=0,\"\",\"\")","v":""},{"$f":"IF('effRT Support'!$B97=0,\"\",\"\")","v":""},{"$f":"IF('effRT Support'!$B97=0,\"\",\"\")","v":""},{"$f":"IF('effRT Support'!$B97=0,\"\",IF('Project Information'!$D$13=\"\",\"\",'Project Information'!$D$13))","v":""},{"$f":"IF('effRT Support'!$B97=0,\"\",IF('Project Information'!$E$13=\"\",\"\",'Project Information'!$E$13))","v":""},{"$f":"IF('effRT Support'!$B97=0,\"\",IF('Project Information'!$D$14=\"\",\"\",'Project Information'!$D$14))","v":""},{"$f":"IF('effRT Support'!$B97=0,\"\",IF('Project Information'!$D$15=\"\",\"\",'Project Information'!$D$15))","v":""},{"$f":"IF('effRT Support'!$B97=0,\"\",IF('Project Information'!$D$16=\"\",\"\",'Project Information'!$D$16))","v":""},null,{"$f":"IF('effRT Support'!$B97=0,\"\",'Project Information'!$D$18)","v":""},{"$f":"IF('effRT Support'!$B97=0,\"\",IF('Project Information'!$D$23=\"\",\"\",'Project Information'!$D$23))","v":""},{"$f":"IF('effRT Support'!$B97=0,\"\",IF('Project Information'!$D$24=\"\",\"\",'Project Information'!$D$24))","v":""},{"$f":"IF('effRT Support'!$B97=0,\"\",IF('Project Information'!$D$25=\"\",\"\",'Project Information'!$D$25))","v":""},{"$f":"IF('effRT Support'!$B97=0,\"\",IF('Project Information'!$E$25=\"\",\"\",'Project Information'!$E$25))","v":""},{"$f":"IF('effRT Support'!$B97=0,\"\",IF('Project Information'!$F$25=\"\",\"\",'Project Information'!$F$25))","v":""},{"$f":"IF('effRT Support'!$B97=0,\"\",IF('Project Information'!$D$27=\"\",\"Y\",\"N\"))","v":""},{"$f":"IF('effRT Support'!$B97=0,\"\",IF('Project Information'!$D$27=\"\",\"\",'Project Information'!$D$27))","v":""},{"$f":"IF('effRT Support'!$B97=0,\"\",IF('Project Information'!$D$28=\"\",\"\",'Project Information'!$D$28))","v":""},{"$f":"IF('effRT Support'!$B97=0,\"\",IF('Project Information'!$D$29=\"\",\"\",'Project Information'!$D$29))","v":""},{"$f":"IF('effRT Support'!$B97=0,\"\",IF('Project Information'!$E$29=\"\",\"\",'Project Information'!$E$29))","v":""},{"$f":"IF('effRT Support'!$B97=0,\"\",IF('Project Information'!$F$29=\"\",\"\",'Project Information'!$F$29))","v":""},{"$f":"IF('effRT Support'!$B97=0,\"\",\"\")","v":""},{"$f":"IF('effRT Support'!$B97=0,\"\",\"\")","v":""},{"$f":"IF('effRT Support'!$B97=0,\"\",IF('Project Information'!$D$36=\"\",\"\",'Project Information'!$D$36))","v":""},{"$f":"IF('effRT Support'!$B97=0,\"\",IF('Project Information'!$D$42=\"\",\"\",'Project Information'!$D$42))","v":""},{"$f":"IF('effRT Support'!$B97=0,\"\",'effRT Support'!$D97)","v":""},{"$f":"IF('effRT Support'!$B97=0,\"\",'effRT Support'!$L97)","v":""},{"$f":"IF('effRT Support'!$B97=0,\"\",'effRT Support'!$N97)","v":""},null,null,{"$f":"IF('effRT Support'!$B97=0,\"\",'effRT Support'!$P97)","v":""},{"$f":"IF('effRT Support'!$B97=0,\"\",'effRT Support'!$Q97)","v":""},{"$f":"IF('effRT Support'!$B97=0,\"\",'effRT Support'!U97)","v":""},{"$f":"IF('effRT Support'!$B97=0,\"\",'effRT Support'!V97)","v":""},{"$f":"IF('effRT Support'!$B97=0,\"\",'effRT Support'!W97)","v":""},{"$f":"IF('effRT Support'!$B97=0,\"\",'effRT Support'!X97)","v":""},{"$f":"IF('effRT Support'!$B97=0,\"\",'effRT Support'!Y97)","v":""},{"$f":"IF('effRT Support'!$B97=0,\"\",'effRT Support'!Z97*10)","v":""},{"$f":"IF('effRT Support'!$B97=0,\"\",'effRT Support'!AA97)","v":""},{"$f":"IF('effRT Support'!$B97=0,\"\",'effRT Support'!AB97)","v":""},{"$f":"IF('effRT Support'!$B97=0,\"\",'effRT Support'!AC97)","v":""},{"$f":"IF('effRT Support'!$B97=0,\"\",'effRT Support'!AD97)","v":""},{"$f":"IF('effRT Support'!$B97=0,\"\",'effRT Support'!AE97)","v":""},{"$f":"IF('effRT Support'!$B97=0,\"\",\"Hours Actual or Deemed\")","v":""},{"$f":"IF('effRT Support'!$B97=0,\"\",'effRT Support'!$F97)","v":""},{"$f":"IF('effRT Support'!$B97=0,\"\",\"Wattage Actual or Deemed\")","v":""},{"$f":"IF('effRT Support'!$B97=0,\"\",IF('Project Information'!$D$33=\"Pay For Performance\",\"Actual\",\"Deemed\"))","v":""},{"$f":"IF('effRT Support'!$B97=0,\"\",\"Cost Actual or Deemed\")","v":""},{"$f":"IF('effRT Support'!$B97=0,\"\",IF('Project Information'!$D$33=\"Pay For Performance\",\"Actual\",\"Deemed\"))","v":""},{"$f":"IF('effRT Support'!$B97=0,\"\",\"Location\")","v":""},{"$f":"IF('effRT Support'!$B97=0,\"\",'effRT Support'!$E97)","v":""},{"$f":"IF('effRT Support'!$B97=0,\"\",\"Space Type\")","v":""},{"$f":"IF('effRT Support'!$B97=0,\"\",'effRT Support'!$G97)","v":""},{"$f":"IF('effRT Support'!$B97=0,\"\",\"Existing Fixture Description\")","v":""},{"$f":"IF('effRT Support'!$B97=0,\"\",'effRT Support'!$H97)","v":""},{"$f":"IF('effRT Support'!$B97=0,\"\",\"Existing Fixture Quantity\")","v":""},{"$f":"IF('effRT Support'!$B97=0,\"\",'effRT Support'!$I97)","v":""},{"$f":"IF('effRT Support'!$B97=0,\"\",\"Existing Fixture Wattage\")","v":""},{"$f":"IF('effRT Support'!$B97=0,\"\",'effRT Support'!$J97)","v":""},{"$f":"IF('effRT Support'!$B97=0,\"\",\"Annual Hours of Operation\")","v":""},{"$f":"IF('effRT Support'!$B97=0,\"\",'effRT Support'!$K97)","v":""},{"$f":"IF('effRT Support'!$B97=0,\"\",\"Installed Fixture Description\")","v":""},{"$f":"IF('effRT Support'!$B97=0,\"\",'effRT Support'!$M97)","v":""},{"$f":"IF('effRT Support'!$B97=0,\"\",\"Installed Fixture Wattage\")","v":""},{"$f":"IF('effRT Support'!$B97=0,\"\",'effRT Support'!$O97)","v":""},{"$f":"IF('effRT Support'!$B97=0,\"\",\"Material Cost\")","v":""},{"$f":"IF('effRT Support'!$B97=0,\"\",'effRT Support'!$R97)","v":""},{"$f":"IF('effRT Support'!$B97=0,\"\",\"Labor Cost\")","v":""},{"$f":"IF('effRT Support'!$B97=0,\"\",'effRT Support'!$S97)","v":""},{"$f":"IF('effRT Support'!$B97=0,\"\",\"Ancillary Costs - Measure Specific\")","v":""},{"$f":"IF('effRT Support'!$B97=0,\"\",'effRT Support'!$T97)","v":""},{"$f":"IF('effRT Support'!$B97=0,\"\",\"Fuel Type\")","v":""},{"$f":"IF('effRT Support'!$B97=0,\"\",'Project Information'!$D$44)","v":""},{"$f":"IF('effRT Support'!$B97=0,\"\",\"Installed Fixture Quantity\")","v":""},{"$f":"IF('effRT Support'!$B97=0,\"\",'effRT Support'!P96)","v":""}]
[{"$f":"IF('effRT Support'!$B98=0,\"\",IF('Project Information'!$D$33=\"Small Business\",\"SBL\",\"CILS\"))","v":""},{"$f":"IF('effRT Support'!$B98=0,\"\",IF('Project Information'!$K$2=\"\",\"\",'Project Information'!$K$2))","v":""},null,{"$f":"IF('effRT Support'!$B98=0,\"\",IF('Project Information'!$D$46=\"\",\"\",'Project Information'!$D$46))","v":""},{"$f":"IF('effRT Support'!$B98=0,\"\",IF('Project Information'!$D$20=\"\",\"\",VLOOKUP('Project Information'!$D$20,'Other Data'!$B$159:$E$189,4,FALSE)))","v":""},{"$f":"IF('effRT Support'!$B98=0,\"\",IF('Project Information'!$D$31=\"\",\"\",'Project Information'!$D$31))","v":""},{"$f":"IF('effRT Support'!$B98=0,\"\",IF('Project Information'!$D$5=\"\",\"\",'Project Information'!$D$5))","v":""},null,null,{"$f":"IF('effRT Support'!$B98=0,\"\",IF('Project Information'!$D$20=\"\",\"\",VLOOKUP('Project Information'!$D$20,'Other Data'!$B$159:$E$189,2,FALSE)))","v":""},{"$f":"IF('effRT Support'!$B98=0,\"\",IF('Project Information'!$D$20=\"\",\"\",VLOOKUP('Project Information'!$D$20,'Other Data'!$B$159:$E$189,3,FALSE)))","v":""},{"$f":"IF('effRT Support'!$B98=0,\"\",\"Existing\")","v":""},null,{"$f":"IF('effRT Support'!$B98=0,\"\",IF('Project Information'!$D$21=\"\",\"\",'Project Information'!$D$21))","v":""},{"$f":"IF('effRT Support'!$B98=0,\"\",IF('Project Information'!$D$48=\"\",\"\",'Project Information'!$D$48))","v":""},{"$f":"IF('effRT Support'!$B98=0,\"\",\"\")","v":""},{"$f":"IF('effRT Support'!$B98=0,\"\",\"\")","v":""},{"$f":"IF('effRT Support'!$B98=0,\"\",\"\")","v":""},{"$f":"IF('effRT Support'!$B98=0,\"\",\"\")","v":""},{"$f":"IF('effRT Support'!$B98=0,\"\",IF('Project Information'!$D$13=\"\",\"\",'Project Information'!$D$13))","v":""},{"$f":"IF('effRT Support'!$B98=0,\"\",IF('Project Information'!$E$13=\"\",\"\",'Project Information'!$E$13))","v":""},{"$f":"IF('effRT Support'!$B98=0,\"\",IF('Project Information'!$D$14=\"\",\"\",'Project Information'!$D$14))","v":""},{"$f":"IF('effRT Support'!$B98=0,\"\",IF('Project Information'!$D$15=\"\",\"\",'Project Information'!$D$15))","v":""},{"$f":"IF('effRT Support'!$B98=0,\"\",IF('Project Information'!$D$16=\"\",\"\",'Project Information'!$D$16))","v":""},null,{"$f":"IF('effRT Support'!$B98=0,\"\",'Project Information'!$D$18)","v":""},{"$f":"IF('effRT Support'!$B98=0,\"\",IF('Project Information'!$D$23=\"\",\"\",'Project Information'!$D$23))","v":""},{"$f":"IF('effRT Support'!$B98=0,\"\",IF('Project Information'!$D$24=\"\",\"\",'Project Information'!$D$24))","v":""},{"$f":"IF('effRT Support'!$B98=0,\"\",IF('Project Information'!$D$25=\"\",\"\",'Project Information'!$D$25))","v":""},{"$f":"IF('effRT Support'!$B98=0,\"\",IF('Project Information'!$E$25=\"\",\"\",'Project Information'!$E$25))","v":""},{"$f":"IF('effRT Support'!$B98=0,\"\",IF('Project Information'!$F$25=\"\",\"\",'Project Information'!$F$25))","v":""},{"$f":"IF('effRT Support'!$B98=0,\"\",IF('Project Information'!$D$27=\"\",\"Y\",\"N\"))","v":""},{"$f":"IF('effRT Support'!$B98=0,\"\",IF('Project Information'!$D$27=\"\",\"\",'Project Information'!$D$27))","v":""},{"$f":"IF('effRT Support'!$B98=0,\"\",IF('Project Information'!$D$28=\"\",\"\",'Project Information'!$D$28))","v":""},{"$f":"IF('effRT Support'!$B98=0,\"\",IF('Project Information'!$D$29=\"\",\"\",'Project Information'!$D$29))","v":""},{"$f":"IF('effRT Support'!$B98=0,\"\",IF('Project Information'!$E$29=\"\",\"\",'Project Information'!$E$29))","v":""},{"$f":"IF('effRT Support'!$B98=0,\"\",IF('Project Information'!$F$29=\"\",\"\",'Project Information'!$F$29))","v":""},{"$f":"IF('effRT Support'!$B98=0,\"\",\"\")","v":""},{"$f":"IF('effRT Support'!$B98=0,\"\",\"\")","v":""},{"$f":"IF('effRT Support'!$B98=0,\"\",IF('Project Information'!$D$36=\"\",\"\",'Project Information'!$D$36))","v":""},{"$f":"IF('effRT Support'!$B98=0,\"\",IF('Project Information'!$D$42=\"\",\"\",'Project Information'!$D$42))","v":""},{"$f":"IF('effRT Support'!$B98=0,\"\",'effRT Support'!$D98)","v":""},{"$f":"IF('effRT Support'!$B98=0,\"\",'effRT Support'!$L98)","v":""},{"$f":"IF('effRT Support'!$B98=0,\"\",'effRT Support'!$N98)","v":""},null,null,{"$f":"IF('effRT Support'!$B98=0,\"\",'effRT Support'!$P98)","v":""},{"$f":"IF('effRT Support'!$B98=0,\"\",'effRT Support'!$Q98)","v":""},{"$f":"IF('effRT Support'!$B98=0,\"\",'effRT Support'!U98)","v":""},{"$f":"IF('effRT Support'!$B98=0,\"\",'effRT Support'!V98)","v":""},{"$f":"IF('effRT Support'!$B98=0,\"\",'effRT Support'!W98)","v":""},{"$f":"IF('effRT Support'!$B98=0,\"\",'effRT Support'!X98)","v":""},{"$f":"IF('effRT Support'!$B98=0,\"\",'effRT Support'!Y98)","v":""},{"$f":"IF('effRT Support'!$B98=0,\"\",'effRT Support'!Z98*10)","v":""},{"$f":"IF('effRT Support'!$B98=0,\"\",'effRT Support'!AA98)","v":""},{"$f":"IF('effRT Support'!$B98=0,\"\",'effRT Support'!AB98)","v":""},{"$f":"IF('effRT Support'!$B98=0,\"\",'effRT Support'!AC98)","v":""},{"$f":"IF('effRT Support'!$B98=0,\"\",'effRT Support'!AD98)","v":""},{"$f":"IF('effRT Support'!$B98=0,\"\",'effRT Support'!AE98)","v":""},{"$f":"IF('effRT Support'!$B98=0,\"\",\"Hours Actual or Deemed\")","v":""},{"$f":"IF('effRT Support'!$B98=0,\"\",'effRT Support'!$F98)","v":""},{"$f":"IF('effRT Support'!$B98=0,\"\",\"Wattage Actual or Deemed\")","v":""},{"$f":"IF('effRT Support'!$B98=0,\"\",IF('Project Information'!$D$33=\"Pay For Performance\",\"Actual\",\"Deemed\"))","v":""},{"$f":"IF('effRT Support'!$B98=0,\"\",\"Cost Actual or Deemed\")","v":""},{"$f":"IF('effRT Support'!$B98=0,\"\",IF('Project Information'!$D$33=\"Pay For Performance\",\"Actual\",\"Deemed\"))","v":""},{"$f":"IF('effRT Support'!$B98=0,\"\",\"Location\")","v":""},{"$f":"IF('effRT Support'!$B98=0,\"\",'effRT Support'!$E98)","v":""},{"$f":"IF('effRT Support'!$B98=0,\"\",\"Space Type\")","v":""},{"$f":"IF('effRT Support'!$B98=0,\"\",'effRT Support'!$G98)","v":""},{"$f":"IF('effRT Support'!$B98=0,\"\",\"Existing Fixture Description\")","v":""},{"$f":"IF('effRT Support'!$B98=0,\"\",'effRT Support'!$H98)","v":""},{"$f":"IF('effRT Support'!$B98=0,\"\",\"Existing Fixture Quantity\")","v":""},{"$f":"IF('effRT Support'!$B98=0,\"\",'effRT Support'!$I98)","v":""},{"$f":"IF('effRT Support'!$B98=0,\"\",\"Existing Fixture Wattage\")","v":""},{"$f":"IF('effRT Support'!$B98=0,\"\",'effRT Support'!$J98)","v":""},{"$f":"IF('effRT Support'!$B98=0,\"\",\"Annual Hours of Operation\")","v":""},{"$f":"IF('effRT Support'!$B98=0,\"\",'effRT Support'!$K98)","v":""},{"$f":"IF('effRT Support'!$B98=0,\"\",\"Installed Fixture Description\")","v":""},{"$f":"IF('effRT Support'!$B98=0,\"\",'effRT Support'!$M98)","v":""},{"$f":"IF('effRT Support'!$B98=0,\"\",\"Installed Fixture Wattage\")","v":""},{"$f":"IF('effRT Support'!$B98=0,\"\",'effRT Support'!$O98)","v":""},{"$f":"IF('effRT Support'!$B98=0,\"\",\"Material Cost\")","v":""},{"$f":"IF('effRT Support'!$B98=0,\"\",'effRT Support'!$R98)","v":""},{"$f":"IF('effRT Support'!$B98=0,\"\",\"Labor Cost\")","v":""},{"$f":"IF('effRT Support'!$B98=0,\"\",'effRT Support'!$S98)","v":""},{"$f":"IF('effRT Support'!$B98=0,\"\",\"Ancillary Costs - Measure Specific\")","v":""},{"$f":"IF('effRT Support'!$B98=0,\"\",'effRT Support'!$T98)","v":""},{"$f":"IF('effRT Support'!$B98=0,\"\",\"Fuel Type\")","v":""},{"$f":"IF('effRT Support'!$B98=0,\"\",'Project Information'!$D$44)","v":""}]
[{"$f":"IF('effRT Support'!$B99=0,\"\",IF('Project Information'!$D$33=\"Small Business\",\"SBL\",\"CILS\"))","v":""},{"$f":"IF('effRT Support'!$B99=0,\"\",IF('Project Information'!$K$2=\"\",\"\",'Project Information'!$K$2))","v":""},null,{"$f":"IF('effRT Support'!$B99=0,\"\",IF('Project Information'!$D$46=\"\",\"\",'Project Information'!$D$46))","v":""},{"$f":"IF('effRT Support'!$B99=0,\"\",IF('Project Information'!$D$20=\"\",\"\",VLOOKUP('Project Information'!$D$20,'Other Data'!$B$159:$E$189,4,FALSE)))","v":""},{"$f":"IF('effRT Support'!$B99=0,\"\",IF('Project Information'!$D$31=\"\",\"\",'Project Information'!$D$31))","v":""},{"$f":"IF('effRT Support'!$B99=0,\"\",IF('Project Information'!$D$5=\"\",\"\",'Project Information'!$D$5))","v":""},null,null,{"$f":"IF('effRT Support'!$B99=0,\"\",IF('Project Information'!$D$20=\"\",\"\",VLOOKUP('Project Information'!$D$20,'Other Data'!$B$159:$E$189,2,FALSE)))","v":""},{"$f":"IF('effRT Support'!$B99=0,\"\",IF('Project Information'!$D$20=\"\",\"\",VLOOKUP('Project Information'!$D$20,'Other Data'!$B$159:$E$189,3,FALSE)))","v":""},{"$f":"IF('effRT Support'!$B99=0,\"\",\"Existing\")","v":""},null,{"$f":"IF('effRT Support'!$B99=0,\"\",IF('Project Information'!$D$21=\"\",\"\",'Project Information'!$D$21))","v":""},{"$f":"IF('effRT Support'!$B99=0,\"\",IF('Project Information'!$D$48=\"\",\"\",'Project Information'!$D$48))","v":""},{"$f":"IF('effRT Support'!$B99=0,\"\",\"\")","v":""},{"$f":"IF('effRT Support'!$B99=0,\"\",\"\")","v":""},{"$f":"IF('effRT Support'!$B99=0,\"\",\"\")","v":""},{"$f":"IF('effRT Support'!$B99=0,\"\",\"\")","v":""},{"$f":"IF('effRT Support'!$B99=0,\"\",IF('Project Information'!$D$13=\"\",\"\",'Project Information'!$D$13))","v":""},{"$f":"IF('effRT Support'!$B99=0,\"\",IF('Project Information'!$E$13=\"\",\"\",'Project Information'!$E$13))","v":""},{"$f":"IF('effRT Support'!$B99=0,\"\",IF('Project Information'!$D$14=\"\",\"\",'Project Information'!$D$14))","v":""},{"$f":"IF('effRT Support'!$B99=0,\"\",IF('Project Information'!$D$15=\"\",\"\",'Project Information'!$D$15))","v":""},{"$f":"IF('effRT Support'!$B99=0,\"\",IF('Project Information'!$D$16=\"\",\"\",'Project Information'!$D$16))","v":""},null,{"$f":"IF('effRT Support'!$B99=0,\"\",'Project Information'!$D$18)","v":""},{"$f":"IF('effRT Support'!$B99=0,\"\",IF('Project Information'!$D$23=\"\",\"\",'Project Information'!$D$23))","v":""},{"$f":"IF('effRT Support'!$B99=0,\"\",IF('Project Information'!$D$24=\"\",\"\",'Project Information'!$D$24))","v":""},{"$f":"IF('effRT Support'!$B99=0,\"\",IF('Project Information'!$D$25=\"\",\"\",'Project Information'!$D$25))","v":""},{"$f":"IF('effRT Support'!$B99=0,\"\",IF('Project Information'!$E$25=\"\",\"\",'Project Information'!$E$25))","v":""},{"$f":"IF('effRT Support'!$B99=0,\"\",IF('Project Information'!$F$25=\"\",\"\",'Project Information'!$F$25))","v":""},{"$f":"IF('effRT Support'!$B99=0,\"\",IF('Project Information'!$D$27=\"\",\"Y\",\"N\"))","v":""},{"$f":"IF('effRT Support'!$B99=0,\"\",IF('Project Information'!$D$27=\"\",\"\",'Project Information'!$D$27))","v":""},{"$f":"IF('effRT Support'!$B99=0,\"\",IF('Project Information'!$D$28=\"\",\"\",'Project Information'!$D$28))","v":""},{"$f":"IF('effRT Support'!$B99=0,\"\",IF('Project Information'!$D$29=\"\",\"\",'Project Information'!$D$29))","v":""},{"$f":"IF('effRT Support'!$B99=0,\"\",IF('Project Information'!$E$29=\"\",\"\",'Project Information'!$E$29))","v":""},{"$f":"IF('effRT Support'!$B99=0,\"\",IF('Project Information'!$F$29=\"\",\"\",'Project Information'!$F$29))","v":""},{"$f":"IF('effRT Support'!$B99=0,\"\",\"\")","v":""},{"$f":"IF('effRT Support'!$B99=0,\"\",\"\")","v":""},{"$f":"IF('effRT Support'!$B99=0,\"\",IF('Project Information'!$D$36=\"\",\"\",'Project Information'!$D$36))","v":""},{"$f":"IF('effRT Support'!$B99=0,\"\",IF('Project Information'!$D$42=\"\",\"\",'Project Information'!$D$42))","v":""},{"$f":"IF('effRT Support'!$B99=0,\"\",'effRT Support'!$D99)","v":""},{"$f":"IF('effRT Support'!$B99=0,\"\",'effRT Support'!$L99)","v":""},{"$f":"IF('effRT Support'!$B99=0,\"\",'effRT Support'!$N99)","v":""},null,null,{"$f":"IF('effRT Support'!$B99=0,\"\",'effRT Support'!$P99)","v":""},{"$f":"IF('effRT Support'!$B99=0,\"\",'effRT Support'!$Q99)","v":""},{"$f":"IF('effRT Support'!$B99=0,\"\",'effRT Support'!U99)","v":""},{"$f":"IF('effRT Support'!$B99=0,\"\",'effRT Support'!V99)","v":""},{"$f":"IF('effRT Support'!$B99=0,\"\",'effRT Support'!W99)","v":""},{"$f":"IF('effRT Support'!$B99=0,\"\",'effRT Support'!X99)","v":""},{"$f":"IF('effRT Support'!$B99=0,\"\",'effRT Support'!Y99)","v":""},{"$f":"IF('effRT Support'!$B99=0,\"\",'effRT Support'!Z99*10)","v":""},{"$f":"IF('effRT Support'!$B99=0,\"\",'effRT Support'!AA99)","v":""},{"$f":"IF('effRT Support'!$B99=0,\"\",'effRT Support'!AB99)","v":""},{"$f":"IF('effRT Support'!$B99=0,\"\",'effRT Support'!AC99)","v":""},{"$f":"IF('effRT Support'!$B99=0,\"\",'effRT Support'!AD99)","v":""},{"$f":"IF('effRT Support'!$B99=0,\"\",'effRT Support'!AE99)","v":""},{"$f":"IF('effRT Support'!$B99=0,\"\",\"Hours Actual or Deemed\")","v":""},{"$f":"IF('effRT Support'!$B99=0,\"\",'effRT Support'!$F99)","v":""},{"$f":"IF('effRT Support'!$B99=0,\"\",\"Wattage Actual or Deemed\")","v":""},{"$f":"IF('effRT Support'!$B99=0,\"\",IF('Project Information'!$D$33=\"Pay For Performance\",\"Actual\",\"Deemed\"))","v":""},{"$f":"IF('effRT Support'!$B99=0,\"\",\"Cost Actual or Deemed\")","v":""},{"$f":"IF('effRT Support'!$B99=0,\"\",IF('Project Information'!$D$33=\"Pay For Performance\",\"Actual\",\"Deemed\"))","v":""},{"$f":"IF('effRT Support'!$B99=0,\"\",\"Location\")","v":""},{"$f":"IF('effRT Support'!$B99=0,\"\",'effRT Support'!$E99)","v":""},{"$f":"IF('effRT Support'!$B99=0,\"\",\"Space Type\")","v":""},{"$f":"IF('effRT Support'!$B99=0,\"\",'effRT Support'!$G99)","v":""},{"$f":"IF('effRT Support'!$B99=0,\"\",\"Existing Fixture Description\")","v":""},{"$f":"IF('effRT Support'!$B99=0,\"\",'effRT Support'!$H99)","v":""},{"$f":"IF('effRT Support'!$B99=0,\"\",\"Existing Fixture Quantity\")","v":""},{"$f":"IF('effRT Support'!$B99=0,\"\",'effRT Support'!$I99)","v":""},{"$f":"IF('effRT Support'!$B99=0,\"\",\"Existing Fixture Wattage\")","v":""},{"$f":"IF('effRT Support'!$B99=0,\"\",'effRT Support'!$J99)","v":""},{"$f":"IF('effRT Support'!$B99=0,\"\",\"Annual Hours of Operation\")","v":""},{"$f":"IF('effRT Support'!$B99=0,\"\",'effRT Support'!$K99)","v":""},{"$f":"IF('effRT Support'!$B99=0,\"\",\"Installed Fixture Description\")","v":""},{"$f":"IF('effRT Support'!$B99=0,\"\",'effRT Support'!$M99)","v":""},{"$f":"IF('effRT Support'!$B99=0,\"\",\"Installed Fixture Wattage\")","v":""},{"$f":"IF('effRT Support'!$B99=0,\"\",'effRT Support'!$O99)","v":""},{"$f":"IF('effRT Support'!$B99=0,\"\",\"Material Cost\")","v":""},{"$f":"IF('effRT Support'!$B99=0,\"\",'effRT Support'!$R99)","v":""},{"$f":"IF('effRT Support'!$B99=0,\"\",\"Labor Cost\")","v":""},{"$f":"IF('effRT Support'!$B99=0,\"\",'effRT Support'!$S99)","v":""},{"$f":"IF('effRT Support'!$B99=0,\"\",\"Ancillary Costs - Measure Specific\")","v":""},{"$f":"IF('effRT Support'!$B99=0,\"\",'effRT Support'!$T99)","v":""},{"$f":"IF('effRT Support'!$B99=0,\"\",\"Fuel Type\")","v":""},{"$f":"IF('effRT Support'!$B99=0,\"\",'Project Information'!$D$44)","v":""},{"$f":"IF('effRT Support'!$B99=0,\"\",\"Installed Fixture Quantity\")","v":""},{"$f":"IF('effRT Support'!$B99=0,\"\",'effRT Support'!P98)","v":""}]
[{"$f":"IF('effRT Support'!$B100=0,\"\",IF('Project Information'!$D$33=\"Small Business\",\"SBL\",\"CILS\"))","v":""},{"$f":"IF('effRT Support'!$B100=0,\"\",IF('Project Information'!$K$2=\"\",\"\",'Project Information'!$K$2))","v":""},null,{"$f":"IF('effRT Support'!$B100=0,\"\",IF('Project Information'!$D$46=\"\",\"\",'Project Information'!$D$46))","v":""},{"$f":"IF('effRT Support'!$B100=0,\"\",IF('Project Information'!$D$20=\"\",\"\",VLOOKUP('Project Information'!$D$20,'Other Data'!$B$159:$E$189,4,FALSE)))","v":""},{"$f":"IF('effRT Support'!$B100=0,\"\",IF('Project Information'!$D$31=\"\",\"\",'Project Information'!$D$31))","v":""},{"$f":"IF('effRT Support'!$B100=0,\"\",IF('Project Information'!$D$5=\"\",\"\",'Project Information'!$D$5))","v":""},null,null,{"$f":"IF('effRT Support'!$B100=0,\"\",IF('Project Information'!$D$20=\"\",\"\",VLOOKUP('Project Information'!$D$20,'Other Data'!$B$159:$E$189,2,FALSE)))","v":""},{"$f":"IF('effRT Support'!$B100=0,\"\",IF('Project Information'!$D$20=\"\",\"\",VLOOKUP('Project Information'!$D$20,'Other Data'!$B$159:$E$189,3,FALSE)))","v":""},{"$f":"IF('effRT Support'!$B100=0,\"\",\"Existing\")","v":""},null,{"$f":"IF('effRT Support'!$B100=0,\"\",IF('Project Information'!$D$21=\"\",\"\",'Project Information'!$D$21))","v":""},{"$f":"IF('effRT Support'!$B100=0,\"\",IF('Project Information'!$D$48=\"\",\"\",'Project Information'!$D$48))","v":""},{"$f":"IF('effRT Support'!$B100=0,\"\",\"\")","v":""},{"$f":"IF('effRT Support'!$B100=0,\"\",\"\")","v":""},{"$f":"IF('effRT Support'!$B100=0,\"\",\"\")","v":""},{"$f":"IF('effRT Support'!$B100=0,\"\",\"\")","v":""},{"$f":"IF('effRT Support'!$B100=0,\"\",IF('Project Information'!$D$13=\"\",\"\",'Project Information'!$D$13))","v":""},{"$f":"IF('effRT Support'!$B100=0,\"\",IF('Project Information'!$E$13=\"\",\"\",'Project Information'!$E$13))","v":""},{"$f":"IF('effRT Support'!$B100=0,\"\",IF('Project Information'!$D$14=\"\",\"\",'Project Information'!$D$14))","v":""},{"$f":"IF('effRT Support'!$B100=0,\"\",IF('Project Information'!$D$15=\"\",\"\",'Project Information'!$D$15))","v":""},{"$f":"IF('effRT Support'!$B100=0,\"\",IF('Project Information'!$D$16=\"\",\"\",'Project Information'!$D$16))","v":""},null,{"$f":"IF('effRT Support'!$B100=0,\"\",'Project Information'!$D$18)","v":""},{"$f":"IF('effRT Support'!$B100=0,\"\",IF('Project Information'!$D$23=\"\",\"\",'Project Information'!$D$23))","v":""},{"$f":"IF('effRT Support'!$B100=0,\"\",IF('Project Information'!$D$24=\"\",\"\",'Project Information'!$D$24))","v":""},{"$f":"IF('effRT Support'!$B100=0,\"\",IF('Project Information'!$D$25=\"\",\"\",'Project Information'!$D$25))","v":""},{"$f":"IF('effRT Support'!$B100=0,\"\",IF('Project Information'!$E$25=\"\",\"\",'Project Information'!$E$25))","v":""},{"$f":"IF('effRT Support'!$B100=0,\"\",IF('Project Information'!$F$25=\"\",\"\",'Project Information'!$F$25))","v":""},{"$f":"IF('effRT Support'!$B100=0,\"\",IF('Project Information'!$D$27=\"\",\"Y\",\"N\"))","v":""},{"$f":"IF('effRT Support'!$B100=0,\"\",IF('Project Information'!$D$27=\"\",\"\",'Project Information'!$D$27))","v":""},{"$f":"IF('effRT Support'!$B100=0,\"\",IF('Project Information'!$D$28=\"\",\"\",'Project Information'!$D$28))","v":""},{"$f":"IF('effRT Support'!$B100=0,\"\",IF('Project Information'!$D$29=\"\",\"\",'Project Information'!$D$29))","v":""},{"$f":"IF('effRT Support'!$B100=0,\"\",IF('Project Information'!$E$29=\"\",\"\",'Project Information'!$E$29))","v":""},{"$f":"IF('effRT Support'!$B100=0,\"\",IF('Project Information'!$F$29=\"\",\"\",'Project Information'!$F$29))","v":""},{"$f":"IF('effRT Support'!$B100=0,\"\",\"\")","v":""},{"$f":"IF('effRT Support'!$B100=0,\"\",\"\")","v":""},{"$f":"IF('effRT Support'!$B100=0,\"\",IF('Project Information'!$D$36=\"\",\"\",'Project Information'!$D$36))","v":""},{"$f":"IF('effRT Support'!$B100=0,\"\",IF('Project Information'!$D$42=\"\",\"\",'Project Information'!$D$42))","v":""},{"$f":"IF('effRT Support'!$B100=0,\"\",'effRT Support'!$D100)","v":""},{"$f":"IF('effRT Support'!$B100=0,\"\",'effRT Support'!$L100)","v":""},{"$f":"IF('effRT Support'!$B100=0,\"\",'effRT Support'!$N100)","v":""},null,null,{"$f":"IF('effRT Support'!$B100=0,\"\",'effRT Support'!$P100)","v":""},{"$f":"IF('effRT Support'!$B100=0,\"\",'effRT Support'!$Q100)","v":""},{"$f":"IF('effRT Support'!$B100=0,\"\",'effRT Support'!U100)","v":""},{"$f":"IF('effRT Support'!$B100=0,\"\",'effRT Support'!V100)","v":""},{"$f":"IF('effRT Support'!$B100=0,\"\",'effRT Support'!W100)","v":""},{"$f":"IF('effRT Support'!$B100=0,\"\",'effRT Support'!X100)","v":""},{"$f":"IF('effRT Support'!$B100=0,\"\",'effRT Support'!Y100)","v":""},{"$f":"IF('effRT Support'!$B100=0,\"\",'effRT Support'!Z100*10)","v":""},{"$f":"IF('effRT Support'!$B100=0,\"\",'effRT Support'!AA100)","v":""},{"$f":"IF('effRT Support'!$B100=0,\"\",'effRT Support'!AB100)","v":""},{"$f":"IF('effRT Support'!$B100=0,\"\",'effRT Support'!AC100)","v":""},{"$f":"IF('effRT Support'!$B100=0,\"\",'effRT Support'!AD100)","v":""},{"$f":"IF('effRT Support'!$B100=0,\"\",'effRT Support'!AE100)","v":""},{"$f":"IF('effRT Support'!$B100=0,\"\",\"Hours Actual or Deemed\")","v":""},{"$f":"IF('effRT Support'!$B100=0,\"\",'effRT Support'!$F100)","v":""},{"$f":"IF('effRT Support'!$B100=0,\"\",\"Wattage Actual or Deemed\")","v":""},{"$f":"IF('effRT Support'!$B100=0,\"\",IF('Project Information'!$D$33=\"Pay For Performance\",\"Actual\",\"Deemed\"))","v":""},{"$f":"IF('effRT Support'!$B100=0,\"\",\"Cost Actual or Deemed\")","v":""},{"$f":"IF('effRT Support'!$B100=0,\"\",IF('Project Information'!$D$33=\"Pay For Performance\",\"Actual\",\"Deemed\"))","v":""},{"$f":"IF('effRT Support'!$B100=0,\"\",\"Location\")","v":""},{"$f":"IF('effRT Support'!$B100=0,\"\",'effRT Support'!$E100)","v":""},{"$f":"IF('effRT Support'!$B100=0,\"\",\"Space Type\")","v":""},{"$f":"IF('effRT Support'!$B100=0,\"\",'effRT Support'!$G100)","v":""},{"$f":"IF('effRT Support'!$B100=0,\"\",\"Existing Fixture Description\")","v":""},{"$f":"IF('effRT Support'!$B100=0,\"\",'effRT Support'!$H100)","v":""},{"$f":"IF('effRT Support'!$B100=0,\"\",\"Existing Fixture Quantity\")","v":""},{"$f":"IF('effRT Support'!$B100=0,\"\",'effRT Support'!$I100)","v":""},{"$f":"IF('effRT Support'!$B100=0,\"\",\"Existing Fixture Wattage\")","v":""},{"$f":"IF('effRT Support'!$B100=0,\"\",'effRT Support'!$J100)","v":""},{"$f":"IF('effRT Support'!$B100=0,\"\",\"Annual Hours of Operation\")","v":""},{"$f":"IF('effRT Support'!$B100=0,\"\",'effRT Support'!$K100)","v":""},{"$f":"IF('effRT Support'!$B100=0,\"\",\"Installed Fixture Description\")","v":""},{"$f":"IF('effRT Support'!$B100=0,\"\",'effRT Support'!$M100)","v":""},{"$f":"IF('effRT Support'!$B100=0,\"\",\"Installed Fixture Wattage\")","v":""},{"$f":"IF('effRT Support'!$B100=0,\"\",'effRT Support'!$O100)","v":""},{"$f":"IF('effRT Support'!$B100=0,\"\",\"Material Cost\")","v":""},{"$f":"IF('effRT Support'!$B100=0,\"\",'effRT Support'!$R100)","v":""},{"$f":"IF('effRT Support'!$B100=0,\"\",\"Labor Cost\")","v":""},{"$f":"IF('effRT Support'!$B100=0,\"\",'effRT Support'!$S100)","v":""},{"$f":"IF('effRT Support'!$B100=0,\"\",\"Ancillary Costs - Measure Specific\")","v":""},{"$f":"IF('effRT Support'!$B100=0,\"\",'effRT Support'!$T100)","v":""},{"$f":"IF('effRT Support'!$B100=0,\"\",\"Fuel Type\")","v":""},{"$f":"IF('effRT Support'!$B100=0,\"\",'Project Information'!$D$44)","v":""}]
[{"$f":"IF('effRT Support'!$B101=0,\"\",IF('Project Information'!$D$33=\"Small Business\",\"SBL\",\"CILS\"))","v":""},{"$f":"IF('effRT Support'!$B101=0,\"\",IF('Project Information'!$K$2=\"\",\"\",'Project Information'!$K$2))","v":""},null,{"$f":"IF('effRT Support'!$B101=0,\"\",IF('Project Information'!$D$46=\"\",\"\",'Project Information'!$D$46))","v":""},{"$f":"IF('effRT Support'!$B101=0,\"\",IF('Project Information'!$D$20=\"\",\"\",VLOOKUP('Project Information'!$D$20,'Other Data'!$B$159:$E$189,4,FALSE)))","v":""},{"$f":"IF('effRT Support'!$B101=0,\"\",IF('Project Information'!$D$31=\"\",\"\",'Project Information'!$D$31))","v":""},{"$f":"IF('effRT Support'!$B101=0,\"\",IF('Project Information'!$D$5=\"\",\"\",'Project Information'!$D$5))","v":""},null,null,{"$f":"IF('effRT Support'!$B101=0,\"\",IF('Project Information'!$D$20=\"\",\"\",VLOOKUP('Project Information'!$D$20,'Other Data'!$B$159:$E$189,2,FALSE)))","v":""},{"$f":"IF('effRT Support'!$B101=0,\"\",IF('Project Information'!$D$20=\"\",\"\",VLOOKUP('Project Information'!$D$20,'Other Data'!$B$159:$E$189,3,FALSE)))","v":""},{"$f":"IF('effRT Support'!$B101=0,\"\",\"Existing\")","v":""},null,{"$f":"IF('effRT Support'!$B101=0,\"\",IF('Project Information'!$D$21=\"\",\"\",'Project Information'!$D$21))","v":""},{"$f":"IF('effRT Support'!$B101=0,\"\",IF('Project Information'!$D$48=\"\",\"\",'Project Information'!$D$48))","v":""},{"$f":"IF('effRT Support'!$B101=0,\"\",\"\")","v":""},{"$f":"IF('effRT Support'!$B101=0,\"\",\"\")","v":""},{"$f":"IF('effRT Support'!$B101=0,\"\",\"\")","v":""},{"$f":"IF('effRT Support'!$B101=0,\"\",\"\")","v":""},{"$f":"IF('effRT Support'!$B101=0,\"\",IF('Project Information'!$D$13=\"\",\"\",'Project Information'!$D$13))","v":""},{"$f":"IF('effRT Support'!$B101=0,\"\",IF('Project Information'!$E$13=\"\",\"\",'Project Information'!$E$13))","v":""},{"$f":"IF('effRT Support'!$B101=0,\"\",IF('Project Information'!$D$14=\"\",\"\",'Project Information'!$D$14))","v":""},{"$f":"IF('effRT Support'!$B101=0,\"\",IF('Project Information'!$D$15=\"\",\"\",'Project Information'!$D$15))","v":""},{"$f":"IF('effRT Support'!$B101=0,\"\",IF('Project Information'!$D$16=\"\",\"\",'Project Information'!$D$16))","v":""},null,{"$f":"IF('effRT Support'!$B101=0,\"\",'Project Information'!$D$18)","v":""},{"$f":"IF('effRT Support'!$B101=0,\"\",IF('Project Information'!$D$23=\"\",\"\",'Project Information'!$D$23))","v":""},{"$f":"IF('effRT Support'!$B101=0,\"\",IF('Project Information'!$D$24=\"\",\"\",'Project Information'!$D$24))","v":""},{"$f":"IF('effRT Support'!$B101=0,\"\",IF('Project Information'!$D$25=\"\",\"\",'Project Information'!$D$25))","v":""},{"$f":"IF('effRT Support'!$B101=0,\"\",IF('Project Information'!$E$25=\"\",\"\",'Project Information'!$E$25))","v":""},{"$f":"IF('effRT Support'!$B101=0,\"\",IF('Project Information'!$F$25=\"\",\"\",'Project Information'!$F$25))","v":""},{"$f":"IF('effRT Support'!$B101=0,\"\",IF('Project Information'!$D$27=\"\",\"Y\",\"N\"))","v":""},{"$f":"IF('effRT Support'!$B101=0,\"\",IF('Project Information'!$D$27=\"\",\"\",'Project Information'!$D$27))","v":""},{"$f":"IF('effRT Support'!$B101=0,\"\",IF('Project Information'!$D$28=\"\",\"\",'Project Information'!$D$28))","v":""},{"$f":"IF('effRT Support'!$B101=0,\"\",IF('Project Information'!$D$29=\"\",\"\",'Project Information'!$D$29))","v":""},{"$f":"IF('effRT Support'!$B101=0,\"\",IF('Project Information'!$E$29=\"\",\"\",'Project Information'!$E$29))","v":""},{"$f":"IF('effRT Support'!$B101=0,\"\",IF('Project Information'!$F$29=\"\",\"\",'Project Information'!$F$29))","v":""},{"$f":"IF('effRT Support'!$B101=0,\"\",\"\")","v":""},{"$f":"IF('effRT Support'!$B101=0,\"\",\"\")","v":""},{"$f":"IF('effRT Support'!$B101=0,\"\",IF('Project Information'!$D$36=\"\",\"\",'Project Information'!$D$36))","v":""},{"$f":"IF('effRT Support'!$B101=0,\"\",IF('Project Information'!$D$42=\"\",\"\",'Project Information'!$D$42))","v":""},{"$f":"IF('effRT Support'!$B101=0,\"\",'effRT Support'!$D101)","v":""},{"$f":"IF('effRT Support'!$B101=0,\"\",'effRT Support'!$L101)","v":""},{"$f":"IF('effRT Support'!$B101=0,\"\",'effRT Support'!$N101)","v":""},null,null,{"$f":"IF('effRT Support'!$B101=0,\"\",'effRT Support'!$P101)","v":""},{"$f":"IF('effRT Support'!$B101=0,\"\",'effRT Support'!$Q101)","v":""},{"$f":"IF('effRT Support'!$B101=0,\"\",'effRT Support'!U101)","v":""},{"$f":"IF('effRT Support'!$B101=0,\"\",'effRT Support'!V101)","v":""},{"$f":"IF('effRT Support'!$B101=0,\"\",'effRT Support'!W101)","v":""},{"$f":"IF('effRT Support'!$B101=0,\"\",'effRT Support'!X101)","v":""},{"$f":"IF('effRT Support'!$B101=0,\"\",'effRT Support'!Y101)","v":""},{"$f":"IF('effRT Support'!$B101=0,\"\",'effRT Support'!Z101*10)","v":""},{"$f":"IF('effRT Support'!$B101=0,\"\",'effRT Support'!AA101)","v":""},{"$f":"IF('effRT Support'!$B101=0,\"\",'effRT Support'!AB101)","v":""},{"$f":"IF('effRT Support'!$B101=0,\"\",'effRT Support'!AC101)","v":""},{"$f":"IF('effRT Support'!$B101=0,\"\",'effRT Support'!AD101)","v":""},{"$f":"IF('effRT Support'!$B101=0,\"\",'effRT Support'!AE101)","v":""},{"$f":"IF('effRT Support'!$B101=0,\"\",\"Hours Actual or Deemed\")","v":""},{"$f":"IF('effRT Support'!$B101=0,\"\",'effRT Support'!$F101)","v":""},{"$f":"IF('effRT Support'!$B101=0,\"\",\"Wattage Actual or Deemed\")","v":""},{"$f":"IF('effRT Support'!$B101=0,\"\",IF('Project Information'!$D$33=\"Pay For Performance\",\"Actual\",\"Deemed\"))","v":""},{"$f":"IF('effRT Support'!$B101=0,\"\",\"Cost Actual or Deemed\")","v":""},{"$f":"IF('effRT Support'!$B101=0,\"\",IF('Project Information'!$D$33=\"Pay For Performance\",\"Actual\",\"Deemed\"))","v":""},{"$f":"IF('effRT Support'!$B101=0,\"\",\"Location\")","v":""},{"$f":"IF('effRT Support'!$B101=0,\"\",'effRT Support'!$E101)","v":""},{"$f":"IF('effRT Support'!$B101=0,\"\",\"Space Type\")","v":""},{"$f":"IF('effRT Support'!$B101=0,\"\",'effRT Support'!$G101)","v":""},{"$f":"IF('effRT Support'!$B101=0,\"\",\"Existing Fixture Description\")","v":""},{"$f":"IF('effRT Support'!$B101=0,\"\",'effRT Support'!$H101)","v":""},{"$f":"IF('effRT Support'!$B101=0,\"\",\"Existing Fixture Quantity\")","v":""},{"$f":"IF('effRT Support'!$B101=0,\"\",'effRT Support'!$I101)","v":""},{"$f":"IF('effRT Support'!$B101=0,\"\",\"Existing Fixture Wattage\")","v":""},{"$f":"IF('effRT Support'!$B101=0,\"\",'effRT Support'!$J101)","v":""},{"$f":"IF('effRT Support'!$B101=0,\"\",\"Annual Hours of Operation\")","v":""},{"$f":"IF('effRT Support'!$B101=0,\"\",'effRT Support'!$K101)","v":""},{"$f":"IF('effRT Support'!$B101=0,\"\",\"Installed Fixture Description\")","v":""},{"$f":"IF('effRT Support'!$B101=0,\"\",'effRT Support'!$M101)","v":""},{"$f":"IF('effRT Support'!$B101=0,\"\",\"Installed Fixture Wattage\")","v":""},{"$f":"IF('effRT Support'!$B101=0,\"\",'effRT Support'!$O101)","v":""},{"$f":"IF('effRT Support'!$B101=0,\"\",\"Material Cost\")","v":""},{"$f":"IF('effRT Support'!$B101=0,\"\",'effRT Support'!$R101)","v":""},{"$f":"IF('effRT Support'!$B101=0,\"\",\"Labor Cost\")","v":""},{"$f":"IF('effRT Support'!$B101=0,\"\",'effRT Support'!$S101)","v":""},{"$f":"IF('effRT Support'!$B101=0,\"\",\"Ancillary Costs - Measure Specific\")","v":""},{"$f":"IF('effRT Support'!$B101=0,\"\",'effRT Support'!$T101)","v":""},{"$f":"IF('effRT Support'!$B101=0,\"\",\"Fuel Type\")","v":""},{"$f":"IF('effRT Support'!$B101=0,\"\",'Project Information'!$D$44)","v":""},{"$f":"IF('effRT Support'!$B101=0,\"\",\"Installed Fixture Quantity\")","v":""},{"$f":"IF('effRT Support'!$B101=0,\"\",'effRT Support'!P100)","v":""}]
[{"$f":"IF('effRT Support'!$B102=0,\"\",IF('Project Information'!$D$33=\"Small Business\",\"SBL\",\"CILS\"))","v":""},{"$f":"IF('effRT Support'!$B102=0,\"\",IF('Project Information'!$K$2=\"\",\"\",'Project Information'!$K$2))","v":""},null,{"$f":"IF('effRT Support'!$B102=0,\"\",IF('Project Information'!$D$46=\"\",\"\",'Project Information'!$D$46))","v":""},{"$f":"IF('effRT Support'!$B102=0,\"\",IF('Project Information'!$D$20=\"\",\"\",VLOOKUP('Project Information'!$D$20,'Other Data'!$B$159:$E$189,4,FALSE)))","v":""},{"$f":"IF('effRT Support'!$B102=0,\"\",IF('Project Information'!$D$31=\"\",\"\",'Project Information'!$D$31))","v":""},{"$f":"IF('effRT Support'!$B102=0,\"\",IF('Project Information'!$D$5=\"\",\"\",'Project Information'!$D$5))","v":""},null,null,{"$f":"IF('effRT Support'!$B102=0,\"\",IF('Project Information'!$D$20=\"\",\"\",VLOOKUP('Project Information'!$D$20,'Other Data'!$B$159:$E$189,2,FALSE)))","v":""},{"$f":"IF('effRT Support'!$B102=0,\"\",IF('Project Information'!$D$20=\"\",\"\",VLOOKUP('Project Information'!$D$20,'Other Data'!$B$159:$E$189,3,FALSE)))","v":""},{"$f":"IF('effRT Support'!$B102=0,\"\",\"Existing\")","v":""},null,{"$f":"IF('effRT Support'!$B102=0,\"\",IF('Project Information'!$D$21=\"\",\"\",'Project Information'!$D$21))","v":""},{"$f":"IF('effRT Support'!$B102=0,\"\",IF('Project Information'!$D$48=\"\",\"\",'Project Information'!$D$48))","v":""},{"$f":"IF('effRT Support'!$B102=0,\"\",\"\")","v":""},{"$f":"IF('effRT Support'!$B102=0,\"\",\"\")","v":""},{"$f":"IF('effRT Support'!$B102=0,\"\",\"\")","v":""},{"$f":"IF('effRT Support'!$B102=0,\"\",\"\")","v":""},{"$f":"IF('effRT Support'!$B102=0,\"\",IF('Project Information'!$D$13=\"\",\"\",'Project Information'!$D$13))","v":""},{"$f":"IF('effRT Support'!$B102=0,\"\",IF('Project Information'!$E$13=\"\",\"\",'Project Information'!$E$13))","v":""},{"$f":"IF('effRT Support'!$B102=0,\"\",IF('Project Information'!$D$14=\"\",\"\",'Project Information'!$D$14))","v":""},{"$f":"IF('effRT Support'!$B102=0,\"\",IF('Project Information'!$D$15=\"\",\"\",'Project Information'!$D$15))","v":""},{"$f":"IF('effRT Support'!$B102=0,\"\",IF('Project Information'!$D$16=\"\",\"\",'Project Information'!$D$16))","v":""},null,{"$f":"IF('effRT Support'!$B102=0,\"\",'Project Information'!$D$18)","v":""},{"$f":"IF('effRT Support'!$B102=0,\"\",IF('Project Information'!$D$23=\"\",\"\",'Project Information'!$D$23))","v":""},{"$f":"IF('effRT Support'!$B102=0,\"\",IF('Project Information'!$D$24=\"\",\"\",'Project Information'!$D$24))","v":""},{"$f":"IF('effRT Support'!$B102=0,\"\",IF('Project Information'!$D$25=\"\",\"\",'Project Information'!$D$25))","v":""},{"$f":"IF('effRT Support'!$B102=0,\"\",IF('Project Information'!$E$25=\"\",\"\",'Project Information'!$E$25))","v":""},{"$f":"IF('effRT Support'!$B102=0,\"\",IF('Project Information'!$F$25=\"\",\"\",'Project Information'!$F$25))","v":""},{"$f":"IF('effRT Support'!$B102=0,\"\",IF('Project Information'!$D$27=\"\",\"Y\",\"N\"))","v":""},{"$f":"IF('effRT Support'!$B102=0,\"\",IF('Project Information'!$D$27=\"\",\"\",'Project Information'!$D$27))","v":""},{"$f":"IF('effRT Support'!$B102=0,\"\",IF('Project Information'!$D$28=\"\",\"\",'Project Information'!$D$28))","v":""},{"$f":"IF('effRT Support'!$B102=0,\"\",IF('Project Information'!$D$29=\"\",\"\",'Project Information'!$D$29))","v":""},{"$f":"IF('effRT Support'!$B102=0,\"\",IF('Project Information'!$E$29=\"\",\"\",'Project Information'!$E$29))","v":""},{"$f":"IF('effRT Support'!$B102=0,\"\",IF('Project Information'!$F$29=\"\",\"\",'Project Information'!$F$29))","v":""},{"$f":"IF('effRT Support'!$B102=0,\"\",\"\")","v":""},{"$f":"IF('effRT Support'!$B102=0,\"\",\"\")","v":""},{"$f":"IF('effRT Support'!$B102=0,\"\",IF('Project Information'!$D$36=\"\",\"\",'Project Information'!$D$36))","v":""},{"$f":"IF('effRT Support'!$B102=0,\"\",IF('Project Information'!$D$42=\"\",\"\",'Project Information'!$D$42))","v":""},{"$f":"IF('effRT Support'!$B102=0,\"\",'effRT Support'!$D102)","v":""},{"$f":"IF('effRT Support'!$B102=0,\"\",'effRT Support'!$L102)","v":""},{"$f":"IF('effRT Support'!$B102=0,\"\",'effRT Support'!$N102)","v":""},null,null,{"$f":"IF('effRT Support'!$B102=0,\"\",'effRT Support'!$P102)","v":""},{"$f":"IF('effRT Support'!$B102=0,\"\",'effRT Support'!$Q102)","v":""},{"$f":"IF('effRT Support'!$B102=0,\"\",'effRT Support'!U102)","v":""},{"$f":"IF('effRT Support'!$B102=0,\"\",'effRT Support'!V102)","v":""},{"$f":"IF('effRT Support'!$B102=0,\"\",'effRT Support'!W102)","v":""},{"$f":"IF('effRT Support'!$B102=0,\"\",'effRT Support'!X102)","v":""},{"$f":"IF('effRT Support'!$B102=0,\"\",'effRT Support'!Y102)","v":""},{"$f":"IF('effRT Support'!$B102=0,\"\",'effRT Support'!Z102*10)","v":""},{"$f":"IF('effRT Support'!$B102=0,\"\",'effRT Support'!AA102)","v":""},{"$f":"IF('effRT Support'!$B102=0,\"\",'effRT Support'!AB102)","v":""},{"$f":"IF('effRT Support'!$B102=0,\"\",'effRT Support'!AC102)","v":""},{"$f":"IF('effRT Support'!$B102=0,\"\",'effRT Support'!AD102)","v":""},{"$f":"IF('effRT Support'!$B102=0,\"\",'effRT Support'!AE102)","v":""},{"$f":"IF('effRT Support'!$B102=0,\"\",\"Hours Actual or Deemed\")","v":""},{"$f":"IF('effRT Support'!$B102=0,\"\",'effRT Support'!$F102)","v":""},{"$f":"IF('effRT Support'!$B102=0,\"\",\"Wattage Actual or Deemed\")","v":""},{"$f":"IF('effRT Support'!$B102=0,\"\",IF('Project Information'!$D$33=\"Pay For Performance\",\"Actual\",\"Deemed\"))","v":""},{"$f":"IF('effRT Support'!$B102=0,\"\",\"Cost Actual or Deemed\")","v":""},{"$f":"IF('effRT Support'!$B102=0,\"\",IF('Project Information'!$D$33=\"Pay For Performance\",\"Actual\",\"Deemed\"))","v":""},{"$f":"IF('effRT Support'!$B102=0,\"\",\"Location\")","v":""},{"$f":"IF('effRT Support'!$B102=0,\"\",'effRT Support'!$E102)","v":""},{"$f":"IF('effRT Support'!$B102=0,\"\",\"Space Type\")","v":""},{"$f":"IF('effRT Support'!$B102=0,\"\",'effRT Support'!$G102)","v":""},{"$f":"IF('effRT Support'!$B102=0,\"\",\"Existing Fixture Description\")","v":""},{"$f":"IF('effRT Support'!$B102=0,\"\",'effRT Support'!$H102)","v":""},{"$f":"IF('effRT Support'!$B102=0,\"\",\"Existing Fixture Quantity\")","v":""},{"$f":"IF('effRT Support'!$B102=0,\"\",'effRT Support'!$I102)","v":""},{"$f":"IF('effRT Support'!$B102=0,\"\",\"Existing Fixture Wattage\")","v":""},{"$f":"IF('effRT Support'!$B102=0,\"\",'effRT Support'!$J102)","v":""},{"$f":"IF('effRT Support'!$B102=0,\"\",\"Annual Hours of Operation\")","v":""},{"$f":"IF('effRT Support'!$B102=0,\"\",'effRT Support'!$K102)","v":""},{"$f":"IF('effRT Support'!$B102=0,\"\",\"Installed Fixture Description\")","v":""},{"$f":"IF('effRT Support'!$B102=0,\"\",'effRT Support'!$M102)","v":""},{"$f":"IF('effRT Support'!$B102=0,\"\",\"Installed Fixture Wattage\")","v":""},{"$f":"IF('effRT Support'!$B102=0,\"\",'effRT Support'!$O102)","v":""},{"$f":"IF('effRT Support'!$B102=0,\"\",\"Material Cost\")","v":""},{"$f":"IF('effRT Support'!$B102=0,\"\",'effRT Support'!$R102)","v":""},{"$f":"IF('effRT Support'!$B102=0,\"\",\"Labor Cost\")","v":""},{"$f":"IF('effRT Support'!$B102=0,\"\",'effRT Support'!$S102)","v":""},{"$f":"IF('effRT Support'!$B102=0,\"\",\"Ancillary Costs - Measure Specific\")","v":""},{"$f":"IF('effRT Support'!$B102=0,\"\",'effRT Support'!$T102)","v":""},{"$f":"IF('effRT Support'!$B102=0,\"\",\"Fuel Type\")","v":""},{"$f":"IF('effRT Support'!$B102=0,\"\",'Project Information'!$D$44)","v":""}]
[{"$f":"IF('effRT Support'!$B103=0,\"\",IF('Project Information'!$D$33=\"Small Business\",\"SBL\",\"CILS\"))","v":""},{"$f":"IF('effRT Support'!$B103=0,\"\",IF('Project Information'!$K$2=\"\",\"\",'Project Information'!$K$2))","v":""},null,{"$f":"IF('effRT Support'!$B103=0,\"\",IF('Project Information'!$D$46=\"\",\"\",'Project Information'!$D$46))","v":""},{"$f":"IF('effRT Support'!$B103=0,\"\",IF('Project Information'!$D$20=\"\",\"\",VLOOKUP('Project Information'!$D$20,'Other Data'!$B$159:$E$189,4,FALSE)))","v":""},{"$f":"IF('effRT Support'!$B103=0,\"\",IF('Project Information'!$D$31=\"\",\"\",'Project Information'!$D$31))","v":""},{"$f":"IF('effRT Support'!$B103=0,\"\",IF('Project Information'!$D$5=\"\",\"\",'Project Information'!$D$5))","v":""},null,null,{"$f":"IF('effRT Support'!$B103=0,\"\",IF('Project Information'!$D$20=\"\",\"\",VLOOKUP('Project Information'!$D$20,'Other Data'!$B$159:$E$189,2,FALSE)))","v":""},{"$f":"IF('effRT Support'!$B103=0,\"\",IF('Project Information'!$D$20=\"\",\"\",VLOOKUP('Project Information'!$D$20,'Other Data'!$B$159:$E$189,3,FALSE)))","v":""},{"$f":"IF('effRT Support'!$B103=0,\"\",\"Existing\")","v":""},null,{"$f":"IF('effRT Support'!$B103=0,\"\",IF('Project Information'!$D$21=\"\",\"\",'Project Information'!$D$21))","v":""},{"$f":"IF('effRT Support'!$B103=0,\"\",IF('Project Information'!$D$48=\"\",\"\",'Project Information'!$D$48))","v":""},{"$f":"IF('effRT Support'!$B103=0,\"\",\"\")","v":""},{"$f":"IF('effRT Support'!$B103=0,\"\",\"\")","v":""},{"$f":"IF('effRT Support'!$B103=0,\"\",\"\")","v":""},{"$f":"IF('effRT Support'!$B103=0,\"\",\"\")","v":""},{"$f":"IF('effRT Support'!$B103=0,\"\",IF('Project Information'!$D$13=\"\",\"\",'Project Information'!$D$13))","v":""},{"$f":"IF('effRT Support'!$B103=0,\"\",IF('Project Information'!$E$13=\"\",\"\",'Project Information'!$E$13))","v":""},{"$f":"IF('effRT Support'!$B103=0,\"\",IF('Project Information'!$D$14=\"\",\"\",'Project Information'!$D$14))","v":""},{"$f":"IF('effRT Support'!$B103=0,\"\",IF('Project Information'!$D$15=\"\",\"\",'Project Information'!$D$15))","v":""},{"$f":"IF('effRT Support'!$B103=0,\"\",IF('Project Information'!$D$16=\"\",\"\",'Project Information'!$D$16))","v":""},null,{"$f":"IF('effRT Support'!$B103=0,\"\",'Project Information'!$D$18)","v":""},{"$f":"IF('effRT Support'!$B103=0,\"\",IF('Project Information'!$D$23=\"\",\"\",'Project Information'!$D$23))","v":""},{"$f":"IF('effRT Support'!$B103=0,\"\",IF('Project Information'!$D$24=\"\",\"\",'Project Information'!$D$24))","v":""},{"$f":"IF('effRT Support'!$B103=0,\"\",IF('Project Information'!$D$25=\"\",\"\",'Project Information'!$D$25))","v":""},{"$f":"IF('effRT Support'!$B103=0,\"\",IF('Project Information'!$E$25=\"\",\"\",'Project Information'!$E$25))","v":""},{"$f":"IF('effRT Support'!$B103=0,\"\",IF('Project Information'!$F$25=\"\",\"\",'Project Information'!$F$25))","v":""},{"$f":"IF('effRT Support'!$B103=0,\"\",IF('Project Information'!$D$27=\"\",\"Y\",\"N\"))","v":""},{"$f":"IF('effRT Support'!$B103=0,\"\",IF('Project Information'!$D$27=\"\",\"\",'Project Information'!$D$27))","v":""},{"$f":"IF('effRT Support'!$B103=0,\"\",IF('Project Information'!$D$28=\"\",\"\",'Project Information'!$D$28))","v":""},{"$f":"IF('effRT Support'!$B103=0,\"\",IF('Project Information'!$D$29=\"\",\"\",'Project Information'!$D$29))","v":""},{"$f":"IF('effRT Support'!$B103=0,\"\",IF('Project Information'!$E$29=\"\",\"\",'Project Information'!$E$29))","v":""},{"$f":"IF('effRT Support'!$B103=0,\"\",IF('Project Information'!$F$29=\"\",\"\",'Project Information'!$F$29))","v":""},{"$f":"IF('effRT Support'!$B103=0,\"\",\"\")","v":""},{"$f":"IF('effRT Support'!$B103=0,\"\",\"\")","v":""},{"$f":"IF('effRT Support'!$B103=0,\"\",IF('Project Information'!$D$36=\"\",\"\",'Project Information'!$D$36))","v":""},{"$f":"IF('effRT Support'!$B103=0,\"\",IF('Project Information'!$D$42=\"\",\"\",'Project Information'!$D$42))","v":""},{"$f":"IF('effRT Support'!$B103=0,\"\",'effRT Support'!$D103)","v":""},{"$f":"IF('effRT Support'!$B103=0,\"\",'effRT Support'!$L103)","v":""},{"$f":"IF('effRT Support'!$B103=0,\"\",'effRT Support'!$N103)","v":""},null,null,{"$f":"IF('effRT Support'!$B103=0,\"\",'effRT Support'!$P103)","v":""},{"$f":"IF('effRT Support'!$B103=0,\"\",'effRT Support'!$Q103)","v":""},{"$f":"IF('effRT Support'!$B103=0,\"\",'effRT Support'!U103)","v":""},{"$f":"IF('effRT Support'!$B103=0,\"\",'effRT Support'!V103)","v":""},{"$f":"IF('effRT Support'!$B103=0,\"\",'effRT Support'!W103)","v":""},{"$f":"IF('effRT Support'!$B103=0,\"\",'effRT Support'!X103)","v":""},{"$f":"IF('effRT Support'!$B103=0,\"\",'effRT Support'!Y103)","v":""},{"$f":"IF('effRT Support'!$B103=0,\"\",'effRT Support'!Z103*10)","v":""},{"$f":"IF('effRT Support'!$B103=0,\"\",'effRT Support'!AA103)","v":""},{"$f":"IF('effRT Support'!$B103=0,\"\",'effRT Support'!AB103)","v":""},{"$f":"IF('effRT Support'!$B103=0,\"\",'effRT Support'!AC103)","v":""},{"$f":"IF('effRT Support'!$B103=0,\"\",'effRT Support'!AD103)","v":""},{"$f":"IF('effRT Support'!$B103=0,\"\",'effRT Support'!AE103)","v":""},{"$f":"IF('effRT Support'!$B103=0,\"\",\"Hours Actual or Deemed\")","v":""},{"$f":"IF('effRT Support'!$B103=0,\"\",'effRT Support'!$F103)","v":""},{"$f":"IF('effRT Support'!$B103=0,\"\",\"Wattage Actual or Deemed\")","v":""},{"$f":"IF('effRT Support'!$B103=0,\"\",IF('Project Information'!$D$33=\"Pay For Performance\",\"Actual\",\"Deemed\"))","v":""},{"$f":"IF('effRT Support'!$B103=0,\"\",\"Cost Actual or Deemed\")","v":""},{"$f":"IF('effRT Support'!$B103=0,\"\",IF('Project Information'!$D$33=\"Pay For Performance\",\"Actual\",\"Deemed\"))","v":""},{"$f":"IF('effRT Support'!$B103=0,\"\",\"Location\")","v":""},{"$f":"IF('effRT Support'!$B103=0,\"\",'effRT Support'!$E103)","v":""},{"$f":"IF('effRT Support'!$B103=0,\"\",\"Space Type\")","v":""},{"$f":"IF('effRT Support'!$B103=0,\"\",'effRT Support'!$G103)","v":""},{"$f":"IF('effRT Support'!$B103=0,\"\",\"Existing Fixture Description\")","v":""},{"$f":"IF('effRT Support'!$B103=0,\"\",'effRT Support'!$H103)","v":""},{"$f":"IF('effRT Support'!$B103=0,\"\",\"Existing Fixture Quantity\")","v":""},{"$f":"IF('effRT Support'!$B103=0,\"\",'effRT Support'!$I103)","v":""},{"$f":"IF('effRT Support'!$B103=0,\"\",\"Existing Fixture Wattage\")","v":""},{"$f":"IF('effRT Support'!$B103=0,\"\",'effRT Support'!$J103)","v":""},{"$f":"IF('effRT Support'!$B103=0,\"\",\"Annual Hours of Operation\")","v":""},{"$f":"IF('effRT Support'!$B103=0,\"\",'effRT Support'!$K103)","v":""},{"$f":"IF('effRT Support'!$B103=0,\"\",\"Installed Fixture Description\")","v":""},{"$f":"IF('effRT Support'!$B103=0,\"\",'effRT Support'!$M103)","v":""},{"$f":"IF('effRT Support'!$B103=0,\"\",\"Installed Fixture Wattage\")","v":""},{"$f":"IF('effRT Support'!$B103=0,\"\",'effRT Support'!$O103)","v":""},{"$f":"IF('effRT Support'!$B103=0,\"\",\"Material Cost\")","v":""},{"$f":"IF('effRT Support'!$B103=0,\"\",'effRT Support'!$R103)","v":""},{"$f":"IF('effRT Support'!$B103=0,\"\",\"Labor Cost\")","v":""},{"$f":"IF('effRT Support'!$B103=0,\"\",'effRT Support'!$S103)","v":""},{"$f":"IF('effRT Support'!$B103=0,\"\",\"Ancillary Costs - Measure Specific\")","v":""},{"$f":"IF('effRT Support'!$B103=0,\"\",'effRT Support'!$T103)","v":""},{"$f":"IF('effRT Support'!$B103=0,\"\",\"Fuel Type\")","v":""},{"$f":"IF('effRT Support'!$B103=0,\"\",'Project Information'!$D$44)","v":""},{"$f":"IF('effRT Support'!$B103=0,\"\",\"Installed Fixture Quantity\")","v":""},{"$f":"IF('effRT Support'!$B103=0,\"\",'effRT Support'!P102)","v":""}]
[{"$f":"IF('effRT Support'!$B104=0,\"\",IF('Project Information'!$D$33=\"Small Business\",\"SBL\",\"CILS\"))","v":""},{"$f":"IF('effRT Support'!$B104=0,\"\",IF('Project Information'!$K$2=\"\",\"\",'Project Information'!$K$2))","v":""},null,{"$f":"IF('effRT Support'!$B104=0,\"\",IF('Project Information'!$D$46=\"\",\"\",'Project Information'!$D$46))","v":""},{"$f":"IF('effRT Support'!$B104=0,\"\",IF('Project Information'!$D$20=\"\",\"\",VLOOKUP('Project Information'!$D$20,'Other Data'!$B$159:$E$189,4,FALSE)))","v":""},{"$f":"IF('effRT Support'!$B104=0,\"\",IF('Project Information'!$D$31=\"\",\"\",'Project Information'!$D$31))","v":""},{"$f":"IF('effRT Support'!$B104=0,\"\",IF('Project Information'!$D$5=\"\",\"\",'Project Information'!$D$5))","v":""},null,null,{"$f":"IF('effRT Support'!$B104=0,\"\",IF('Project Information'!$D$20=\"\",\"\",VLOOKUP('Project Information'!$D$20,'Other Data'!$B$159:$E$189,2,FALSE)))","v":""},{"$f":"IF('effRT Support'!$B104=0,\"\",IF('Project Information'!$D$20=\"\",\"\",VLOOKUP('Project Information'!$D$20,'Other Data'!$B$159:$E$189,3,FALSE)))","v":""},{"$f":"IF('effRT Support'!$B104=0,\"\",\"Existing\")","v":""},null,{"$f":"IF('effRT Support'!$B104=0,\"\",IF('Project Information'!$D$21=\"\",\"\",'Project Information'!$D$21))","v":""},{"$f":"IF('effRT Support'!$B104=0,\"\",IF('Project Information'!$D$48=\"\",\"\",'Project Information'!$D$48))","v":""},{"$f":"IF('effRT Support'!$B104=0,\"\",\"\")","v":""},{"$f":"IF('effRT Support'!$B104=0,\"\",\"\")","v":""},{"$f":"IF('effRT Support'!$B104=0,\"\",\"\")","v":""},{"$f":"IF('effRT Support'!$B104=0,\"\",\"\")","v":""},{"$f":"IF('effRT Support'!$B104=0,\"\",IF('Project Information'!$D$13=\"\",\"\",'Project Information'!$D$13))","v":""},{"$f":"IF('effRT Support'!$B104=0,\"\",IF('Project Information'!$E$13=\"\",\"\",'Project Information'!$E$13))","v":""},{"$f":"IF('effRT Support'!$B104=0,\"\",IF('Project Information'!$D$14=\"\",\"\",'Project Information'!$D$14))","v":""},{"$f":"IF('effRT Support'!$B104=0,\"\",IF('Project Information'!$D$15=\"\",\"\",'Project Information'!$D$15))","v":""},{"$f":"IF('effRT Support'!$B104=0,\"\",IF('Project Information'!$D$16=\"\",\"\",'Project Information'!$D$16))","v":""},null,{"$f":"IF('effRT Support'!$B104=0,\"\",'Project Information'!$D$18)","v":""},{"$f":"IF('effRT Support'!$B104=0,\"\",IF('Project Information'!$D$23=\"\",\"\",'Project Information'!$D$23))","v":""},{"$f":"IF('effRT Support'!$B104=0,\"\",IF('Project Information'!$D$24=\"\",\"\",'Project Information'!$D$24))","v":""},{"$f":"IF('effRT Support'!$B104=0,\"\",IF('Project Information'!$D$25=\"\",\"\",'Project Information'!$D$25))","v":""},{"$f":"IF('effRT Support'!$B104=0,\"\",IF('Project Information'!$E$25=\"\",\"\",'Project Information'!$E$25))","v":""},{"$f":"IF('effRT Support'!$B104=0,\"\",IF('Project Information'!$F$25=\"\",\"\",'Project Information'!$F$25))","v":""},{"$f":"IF('effRT Support'!$B104=0,\"\",IF('Project Information'!$D$27=\"\",\"Y\",\"N\"))","v":""},{"$f":"IF('effRT Support'!$B104=0,\"\",IF('Project Information'!$D$27=\"\",\"\",'Project Information'!$D$27))","v":""},{"$f":"IF('effRT Support'!$B104=0,\"\",IF('Project Information'!$D$28=\"\",\"\",'Project Information'!$D$28))","v":""},{"$f":"IF('effRT Support'!$B104=0,\"\",IF('Project Information'!$D$29=\"\",\"\",'Project Information'!$D$29))","v":""},{"$f":"IF('effRT Support'!$B104=0,\"\",IF('Project Information'!$E$29=\"\",\"\",'Project Information'!$E$29))","v":""},{"$f":"IF('effRT Support'!$B104=0,\"\",IF('Project Information'!$F$29=\"\",\"\",'Project Information'!$F$29))","v":""},{"$f":"IF('effRT Support'!$B104=0,\"\",\"\")","v":""},{"$f":"IF('effRT Support'!$B104=0,\"\",\"\")","v":""},{"$f":"IF('effRT Support'!$B104=0,\"\",IF('Project Information'!$D$36=\"\",\"\",'Project Information'!$D$36))","v":""},{"$f":"IF('effRT Support'!$B104=0,\"\",IF('Project Information'!$D$42=\"\",\"\",'Project Information'!$D$42))","v":""},{"$f":"IF('effRT Support'!$B104=0,\"\",'effRT Support'!$D104)","v":""},{"$f":"IF('effRT Support'!$B104=0,\"\",'effRT Support'!$L104)","v":""},{"$f":"IF('effRT Support'!$B104=0,\"\",'effRT Support'!$N104)","v":""},null,null,{"$f":"IF('effRT Support'!$B104=0,\"\",'effRT Support'!$P104)","v":""},{"$f":"IF('effRT Support'!$B104=0,\"\",'effRT Support'!$Q104)","v":""},{"$f":"IF('effRT Support'!$B104=0,\"\",'effRT Support'!U104)","v":""},{"$f":"IF('effRT Support'!$B104=0,\"\",'effRT Support'!V104)","v":""},{"$f":"IF('effRT Support'!$B104=0,\"\",'effRT Support'!W104)","v":""},{"$f":"IF('effRT Support'!$B104=0,\"\",'effRT Support'!X104)","v":""},{"$f":"IF('effRT Support'!$B104=0,\"\",'effRT Support'!Y104)","v":""},{"$f":"IF('effRT Support'!$B104=0,\"\",'effRT Support'!Z104*10)","v":""},{"$f":"IF('effRT Support'!$B104=0,\"\",'effRT Support'!AA104)","v":""},{"$f":"IF('effRT Support'!$B104=0,\"\",'effRT Support'!AB104)","v":""},{"$f":"IF('effRT Support'!$B104=0,\"\",'effRT Support'!AC104)","v":""},{"$f":"IF('effRT Support'!$B104=0,\"\",'effRT Support'!AD104)","v":""},{"$f":"IF('effRT Support'!$B104=0,\"\",'effRT Support'!AE104)","v":""},{"$f":"IF('effRT Support'!$B104=0,\"\",\"Hours Actual or Deemed\")","v":""},{"$f":"IF('effRT Support'!$B104=0,\"\",'effRT Support'!$F104)","v":""},{"$f":"IF('effRT Support'!$B104=0,\"\",\"Wattage Actual or Deemed\")","v":""},{"$f":"IF('effRT Support'!$B104=0,\"\",IF('Project Information'!$D$33=\"Pay For Performance\",\"Actual\",\"Deemed\"))","v":""},{"$f":"IF('effRT Support'!$B104=0,\"\",\"Cost Actual or Deemed\")","v":""},{"$f":"IF('effRT Support'!$B104=0,\"\",IF('Project Information'!$D$33=\"Pay For Performance\",\"Actual\",\"Deemed\"))","v":""},{"$f":"IF('effRT Support'!$B104=0,\"\",\"Location\")","v":""},{"$f":"IF('effRT Support'!$B104=0,\"\",'effRT Support'!$E104)","v":""},{"$f":"IF('effRT Support'!$B104=0,\"\",\"Space Type\")","v":""},{"$f":"IF('effRT Support'!$B104=0,\"\",'effRT Support'!$G104)","v":""},{"$f":"IF('effRT Support'!$B104=0,\"\",\"Existing Fixture Description\")","v":""},{"$f":"IF('effRT Support'!$B104=0,\"\",'effRT Support'!$H104)","v":""},{"$f":"IF('effRT Support'!$B104=0,\"\",\"Existing Fixture Quantity\")","v":""},{"$f":"IF('effRT Support'!$B104=0,\"\",'effRT Support'!$I104)","v":""},{"$f":"IF('effRT Support'!$B104=0,\"\",\"Existing Fixture Wattage\")","v":""},{"$f":"IF('effRT Support'!$B104=0,\"\",'effRT Support'!$J104)","v":""},{"$f":"IF('effRT Support'!$B104=0,\"\",\"Annual Hours of Operation\")","v":""},{"$f":"IF('effRT Support'!$B104=0,\"\",'effRT Support'!$K104)","v":""},{"$f":"IF('effRT Support'!$B104=0,\"\",\"Installed Fixture Description\")","v":""},{"$f":"IF('effRT Support'!$B104=0,\"\",'effRT Support'!$M104)","v":""},{"$f":"IF('effRT Support'!$B104=0,\"\",\"Installed Fixture Wattage\")","v":""},{"$f":"IF('effRT Support'!$B104=0,\"\",'effRT Support'!$O104)","v":""},{"$f":"IF('effRT Support'!$B104=0,\"\",\"Material Cost\")","v":""},{"$f":"IF('effRT Support'!$B104=0,\"\",'effRT Support'!$R104)","v":""},{"$f":"IF('effRT Support'!$B104=0,\"\",\"Labor Cost\")","v":""},{"$f":"IF('effRT Support'!$B104=0,\"\",'effRT Support'!$S104)","v":""},{"$f":"IF('effRT Support'!$B104=0,\"\",\"Ancillary Costs - Measure Specific\")","v":""},{"$f":"IF('effRT Support'!$B104=0,\"\",'effRT Support'!$T104)","v":""},{"$f":"IF('effRT Support'!$B104=0,\"\",\"Fuel Type\")","v":""},{"$f":"IF('effRT Support'!$B104=0,\"\",'Project Information'!$D$44)","v":""}]
[{"$f":"IF('effRT Support'!$B105=0,\"\",IF('Project Information'!$D$33=\"Small Business\",\"SBL\",\"CILS\"))","v":""},{"$f":"IF('effRT Support'!$B105=0,\"\",IF('Project Information'!$K$2=\"\",\"\",'Project Information'!$K$2))","v":""},null,{"$f":"IF('effRT Support'!$B105=0,\"\",IF('Project Information'!$D$46=\"\",\"\",'Project Information'!$D$46))","v":""},{"$f":"IF('effRT Support'!$B105=0,\"\",IF('Project Information'!$D$20=\"\",\"\",VLOOKUP('Project Information'!$D$20,'Other Data'!$B$159:$E$189,4,FALSE)))","v":""},{"$f":"IF('effRT Support'!$B105=0,\"\",IF('Project Information'!$D$31=\"\",\"\",'Project Information'!$D$31))","v":""},{"$f":"IF('effRT Support'!$B105=0,\"\",IF('Project Information'!$D$5=\"\",\"\",'Project Information'!$D$5))","v":""},null,null,{"$f":"IF('effRT Support'!$B105=0,\"\",IF('Project Information'!$D$20=\"\",\"\",VLOOKUP('Project Information'!$D$20,'Other Data'!$B$159:$E$189,2,FALSE)))","v":""},{"$f":"IF('effRT Support'!$B105=0,\"\",IF('Project Information'!$D$20=\"\",\"\",VLOOKUP('Project Information'!$D$20,'Other Data'!$B$159:$E$189,3,FALSE)))","v":""},{"$f":"IF('effRT Support'!$B105=0,\"\",\"Existing\")","v":""},null,{"$f":"IF('effRT Support'!$B105=0,\"\",IF('Project Information'!$D$21=\"\",\"\",'Project Information'!$D$21))","v":""},{"$f":"IF('effRT Support'!$B105=0,\"\",IF('Project Information'!$D$48=\"\",\"\",'Project Information'!$D$48))","v":""},{"$f":"IF('effRT Support'!$B105=0,\"\",\"\")","v":""},{"$f":"IF('effRT Support'!$B105=0,\"\",\"\")","v":""},{"$f":"IF('effRT Support'!$B105=0,\"\",\"\")","v":""},{"$f":"IF('effRT Support'!$B105=0,\"\",\"\")","v":""},{"$f":"IF('effRT Support'!$B105=0,\"\",IF('Project Information'!$D$13=\"\",\"\",'Project Information'!$D$13))","v":""},{"$f":"IF('effRT Support'!$B105=0,\"\",IF('Project Information'!$E$13=\"\",\"\",'Project Information'!$E$13))","v":""},{"$f":"IF('effRT Support'!$B105=0,\"\",IF('Project Information'!$D$14=\"\",\"\",'Project Information'!$D$14))","v":""},{"$f":"IF('effRT Support'!$B105=0,\"\",IF('Project Information'!$D$15=\"\",\"\",'Project Information'!$D$15))","v":""},{"$f":"IF('effRT Support'!$B105=0,\"\",IF('Project Information'!$D$16=\"\",\"\",'Project Information'!$D$16))","v":""},null,{"$f":"IF('effRT Support'!$B105=0,\"\",'Project Information'!$D$18)","v":""},{"$f":"IF('effRT Support'!$B105=0,\"\",IF('Project Information'!$D$23=\"\",\"\",'Project Information'!$D$23))","v":""},{"$f":"IF('effRT Support'!$B105=0,\"\",IF('Project Information'!$D$24=\"\",\"\",'Project Information'!$D$24))","v":""},{"$f":"IF('effRT Support'!$B105=0,\"\",IF('Project Information'!$D$25=\"\",\"\",'Project Information'!$D$25))","v":""},{"$f":"IF('effRT Support'!$B105=0,\"\",IF('Project Information'!$E$25=\"\",\"\",'Project Information'!$E$25))","v":""},{"$f":"IF('effRT Support'!$B105=0,\"\",IF('Project Information'!$F$25=\"\",\"\",'Project Information'!$F$25))","v":""},{"$f":"IF('effRT Support'!$B105=0,\"\",IF('Project Information'!$D$27=\"\",\"Y\",\"N\"))","v":""},{"$f":"IF('effRT Support'!$B105=0,\"\",IF('Project Information'!$D$27=\"\",\"\",'Project Information'!$D$27))","v":""},{"$f":"IF('effRT Support'!$B105=0,\"\",IF('Project Information'!$D$28=\"\",\"\",'Project Information'!$D$28))","v":""},{"$f":"IF('effRT Support'!$B105=0,\"\",IF('Project Information'!$D$29=\"\",\"\",'Project Information'!$D$29))","v":""},{"$f":"IF('effRT Support'!$B105=0,\"\",IF('Project Information'!$E$29=\"\",\"\",'Project Information'!$E$29))","v":""},{"$f":"IF('effRT Support'!$B105=0,\"\",IF('Project Information'!$F$29=\"\",\"\",'Project Information'!$F$29))","v":""},{"$f":"IF('effRT Support'!$B105=0,\"\",\"\")","v":""},{"$f":"IF('effRT Support'!$B105=0,\"\",\"\")","v":""},{"$f":"IF('effRT Support'!$B105=0,\"\",IF('Project Information'!$D$36=\"\",\"\",'Project Information'!$D$36))","v":""},{"$f":"IF('effRT Support'!$B105=0,\"\",IF('Project Information'!$D$42=\"\",\"\",'Project Information'!$D$42))","v":""},{"$f":"IF('effRT Support'!$B105=0,\"\",'effRT Support'!$D105)","v":""},{"$f":"IF('effRT Support'!$B105=0,\"\",'effRT Support'!$L105)","v":""},{"$f":"IF('effRT Support'!$B105=0,\"\",'effRT Support'!$N105)","v":""},null,null,{"$f":"IF('effRT Support'!$B105=0,\"\",'effRT Support'!$P105)","v":""},{"$f":"IF('effRT Support'!$B105=0,\"\",'effRT Support'!$Q105)","v":""},{"$f":"IF('effRT Support'!$B105=0,\"\",'effRT Support'!U105)","v":""},{"$f":"IF('effRT Support'!$B105=0,\"\",'effRT Support'!V105)","v":""},{"$f":"IF('effRT Support'!$B105=0,\"\",'effRT Support'!W105)","v":""},{"$f":"IF('effRT Support'!$B105=0,\"\",'effRT Support'!X105)","v":""},{"$f":"IF('effRT Support'!$B105=0,\"\",'effRT Support'!Y105)","v":""},{"$f":"IF('effRT Support'!$B105=0,\"\",'effRT Support'!Z105*10)","v":""},{"$f":"IF('effRT Support'!$B105=0,\"\",'effRT Support'!AA105)","v":""},{"$f":"IF('effRT Support'!$B105=0,\"\",'effRT Support'!AB105)","v":""},{"$f":"IF('effRT Support'!$B105=0,\"\",'effRT Support'!AC105)","v":""},{"$f":"IF('effRT Support'!$B105=0,\"\",'effRT Support'!AD105)","v":""},{"$f":"IF('effRT Support'!$B105=0,\"\",'effRT Support'!AE105)","v":""},{"$f":"IF('effRT Support'!$B105=0,\"\",\"Hours Actual or Deemed\")","v":""},{"$f":"IF('effRT Support'!$B105=0,\"\",'effRT Support'!$F105)","v":""},{"$f":"IF('effRT Support'!$B105=0,\"\",\"Wattage Actual or Deemed\")","v":""},{"$f":"IF('effRT Support'!$B105=0,\"\",IF('Project Information'!$D$33=\"Pay For Performance\",\"Actual\",\"Deemed\"))","v":""},{"$f":"IF('effRT Support'!$B105=0,\"\",\"Cost Actual or Deemed\")","v":""},{"$f":"IF('effRT Support'!$B105=0,\"\",IF('Project Information'!$D$33=\"Pay For Performance\",\"Actual\",\"Deemed\"))","v":""},{"$f":"IF('effRT Support'!$B105=0,\"\",\"Location\")","v":""},{"$f":"IF('effRT Support'!$B105=0,\"\",'effRT Support'!$E105)","v":""},{"$f":"IF('effRT Support'!$B105=0,\"\",\"Space Type\")","v":""},{"$f":"IF('effRT Support'!$B105=0,\"\",'effRT Support'!$G105)","v":""},{"$f":"IF('effRT Support'!$B105=0,\"\",\"Existing Fixture Description\")","v":""},{"$f":"IF('effRT Support'!$B105=0,\"\",'effRT Support'!$H105)","v":""},{"$f":"IF('effRT Support'!$B105=0,\"\",\"Existing Fixture Quantity\")","v":""},{"$f":"IF('effRT Support'!$B105=0,\"\",'effRT Support'!$I105)","v":""},{"$f":"IF('effRT Support'!$B105=0,\"\",\"Existing Fixture Wattage\")","v":""},{"$f":"IF('effRT Support'!$B105=0,\"\",'effRT Support'!$J105)","v":""},{"$f":"IF('effRT Support'!$B105=0,\"\",\"Annual Hours of Operation\")","v":""},{"$f":"IF('effRT Support'!$B105=0,\"\",'effRT Support'!$K105)","v":""},{"$f":"IF('effRT Support'!$B105=0,\"\",\"Installed Fixture Description\")","v":""},{"$f":"IF('effRT Support'!$B105=0,\"\",'effRT Support'!$M105)","v":""},{"$f":"IF('effRT Support'!$B105=0,\"\",\"Installed Fixture Wattage\")","v":""},{"$f":"IF('effRT Support'!$B105=0,\"\",'effRT Support'!$O105)","v":""},{"$f":"IF('effRT Support'!$B105=0,\"\",\"Material Cost\")","v":""},{"$f":"IF('effRT Support'!$B105=0,\"\",'effRT Support'!$R105)","v":""},{"$f":"IF('effRT Support'!$B105=0,\"\",\"Labor Cost\")","v":""},{"$f":"IF('effRT Support'!$B105=0,\"\",'effRT Support'!$S105)","v":""},{"$f":"IF('effRT Support'!$B105=0,\"\",\"Ancillary Costs - Measure Specific\")","v":""},{"$f":"IF('effRT Support'!$B105=0,\"\",'effRT Support'!$T105)","v":""},{"$f":"IF('effRT Support'!$B105=0,\"\",\"Fuel Type\")","v":""},{"$f":"IF('effRT Support'!$B105=0,\"\",'Project Information'!$D$44)","v":""},{"$f":"IF('effRT Support'!$B105=0,\"\",\"Installed Fixture Quantity\")","v":""},{"$f":"IF('effRT Support'!$B105=0,\"\",'effRT Support'!P104)","v":""}]
[{"$f":"IF('effRT Support'!$B106=0,\"\",IF('Project Information'!$D$33=\"Small Business\",\"SBL\",\"CILS\"))","v":""},{"$f":"IF('effRT Support'!$B106=0,\"\",IF('Project Information'!$K$2=\"\",\"\",'Project Information'!$K$2))","v":""},null,{"$f":"IF('effRT Support'!$B106=0,\"\",IF('Project Information'!$D$46=\"\",\"\",'Project Information'!$D$46))","v":""},{"$f":"IF('effRT Support'!$B106=0,\"\",IF('Project Information'!$D$20=\"\",\"\",VLOOKUP('Project Information'!$D$20,'Other Data'!$B$159:$E$189,4,FALSE)))","v":""},{"$f":"IF('effRT Support'!$B106=0,\"\",IF('Project Information'!$D$31=\"\",\"\",'Project Information'!$D$31))","v":""},{"$f":"IF('effRT Support'!$B106=0,\"\",IF('Project Information'!$D$5=\"\",\"\",'Project Information'!$D$5))","v":""},null,null,{"$f":"IF('effRT Support'!$B106=0,\"\",IF('Project Information'!$D$20=\"\",\"\",VLOOKUP('Project Information'!$D$20,'Other Data'!$B$159:$E$189,2,FALSE)))","v":""},{"$f":"IF('effRT Support'!$B106=0,\"\",IF('Project Information'!$D$20=\"\",\"\",VLOOKUP('Project Information'!$D$20,'Other Data'!$B$159:$E$189,3,FALSE)))","v":""},{"$f":"IF('effRT Support'!$B106=0,\"\",\"Existing\")","v":""},null,{"$f":"IF('effRT Support'!$B106=0,\"\",IF('Project Information'!$D$21=\"\",\"\",'Project Information'!$D$21))","v":""},{"$f":"IF('effRT Support'!$B106=0,\"\",IF('Project Information'!$D$48=\"\",\"\",'Project Information'!$D$48))","v":""},{"$f":"IF('effRT Support'!$B106=0,\"\",\"\")","v":""},{"$f":"IF('effRT Support'!$B106=0,\"\",\"\")","v":""},{"$f":"IF('effRT Support'!$B106=0,\"\",\"\")","v":""},{"$f":"IF('effRT Support'!$B106=0,\"\",\"\")","v":""},{"$f":"IF('effRT Support'!$B106=0,\"\",IF('Project Information'!$D$13=\"\",\"\",'Project Information'!$D$13))","v":""},{"$f":"IF('effRT Support'!$B106=0,\"\",IF('Project Information'!$E$13=\"\",\"\",'Project Information'!$E$13))","v":""},{"$f":"IF('effRT Support'!$B106=0,\"\",IF('Project Information'!$D$14=\"\",\"\",'Project Information'!$D$14))","v":""},{"$f":"IF('effRT Support'!$B106=0,\"\",IF('Project Information'!$D$15=\"\",\"\",'Project Information'!$D$15))","v":""},{"$f":"IF('effRT Support'!$B106=0,\"\",IF('Project Information'!$D$16=\"\",\"\",'Project Information'!$D$16))","v":""},null,{"$f":"IF('effRT Support'!$B106=0,\"\",'Project Information'!$D$18)","v":""},{"$f":"IF('effRT Support'!$B106=0,\"\",IF('Project Information'!$D$23=\"\",\"\",'Project Information'!$D$23))","v":""},{"$f":"IF('effRT Support'!$B106=0,\"\",IF('Project Information'!$D$24=\"\",\"\",'Project Information'!$D$24))","v":""},{"$f":"IF('effRT Support'!$B106=0,\"\",IF('Project Information'!$D$25=\"\",\"\",'Project Information'!$D$25))","v":""},{"$f":"IF('effRT Support'!$B106=0,\"\",IF('Project Information'!$E$25=\"\",\"\",'Project Information'!$E$25))","v":""},{"$f":"IF('effRT Support'!$B106=0,\"\",IF('Project Information'!$F$25=\"\",\"\",'Project Information'!$F$25))","v":""},{"$f":"IF('effRT Support'!$B106=0,\"\",IF('Project Information'!$D$27=\"\",\"Y\",\"N\"))","v":""},{"$f":"IF('effRT Support'!$B106=0,\"\",IF('Project Information'!$D$27=\"\",\"\",'Project Information'!$D$27))","v":""},{"$f":"IF('effRT Support'!$B106=0,\"\",IF('Project Information'!$D$28=\"\",\"\",'Project Information'!$D$28))","v":""},{"$f":"IF('effRT Support'!$B106=0,\"\",IF('Project Information'!$D$29=\"\",\"\",'Project Information'!$D$29))","v":""},{"$f":"IF('effRT Support'!$B106=0,\"\",IF('Project Information'!$E$29=\"\",\"\",'Project Information'!$E$29))","v":""},{"$f":"IF('effRT Support'!$B106=0,\"\",IF('Project Information'!$F$29=\"\",\"\",'Project Information'!$F$29))","v":""},{"$f":"IF('effRT Support'!$B106=0,\"\",\"\")","v":""},{"$f":"IF('effRT Support'!$B106=0,\"\",\"\")","v":""},{"$f":"IF('effRT Support'!$B106=0,\"\",IF('Project Information'!$D$36=\"\",\"\",'Project Information'!$D$36))","v":""},{"$f":"IF('effRT Support'!$B106=0,\"\",IF('Project Information'!$D$42=\"\",\"\",'Project Information'!$D$42))","v":""},{"$f":"IF('effRT Support'!$B106=0,\"\",'effRT Support'!$D106)","v":""},{"$f":"IF('effRT Support'!$B106=0,\"\",'effRT Support'!$L106)","v":""},{"$f":"IF('effRT Support'!$B106=0,\"\",'effRT Support'!$N106)","v":""},null,null,{"$f":"IF('effRT Support'!$B106=0,\"\",'effRT Support'!$P106)","v":""},{"$f":"IF('effRT Support'!$B106=0,\"\",'effRT Support'!$Q106)","v":""},{"$f":"IF('effRT Support'!$B106=0,\"\",'effRT Support'!U106)","v":""},{"$f":"IF('effRT Support'!$B106=0,\"\",'effRT Support'!V106)","v":""},{"$f":"IF('effRT Support'!$B106=0,\"\",'effRT Support'!W106)","v":""},{"$f":"IF('effRT Support'!$B106=0,\"\",'effRT Support'!X106)","v":""},{"$f":"IF('effRT Support'!$B106=0,\"\",'effRT Support'!Y106)","v":""},{"$f":"IF('effRT Support'!$B106=0,\"\",'effRT Support'!Z106*10)","v":""},{"$f":"IF('effRT Support'!$B106=0,\"\",'effRT Support'!AA106)","v":""},{"$f":"IF('effRT Support'!$B106=0,\"\",'effRT Support'!AB106)","v":""},{"$f":"IF('effRT Support'!$B106=0,\"\",'effRT Support'!AC106)","v":""},{"$f":"IF('effRT Support'!$B106=0,\"\",'effRT Support'!AD106)","v":""},{"$f":"IF('effRT Support'!$B106=0,\"\",'effRT Support'!AE106)","v":""},{"$f":"IF('effRT Support'!$B106=0,\"\",\"Hours Actual or Deemed\")","v":""},{"$f":"IF('effRT Support'!$B106=0,\"\",'effRT Support'!$F106)","v":""},{"$f":"IF('effRT Support'!$B106=0,\"\",\"Wattage Actual or Deemed\")","v":""},{"$f":"IF('effRT Support'!$B106=0,\"\",IF('Project Information'!$D$33=\"Pay For Performance\",\"Actual\",\"Deemed\"))","v":""},{"$f":"IF('effRT Support'!$B106=0,\"\",\"Cost Actual or Deemed\")","v":""},{"$f":"IF('effRT Support'!$B106=0,\"\",IF('Project Information'!$D$33=\"Pay For Performance\",\"Actual\",\"Deemed\"))","v":""},{"$f":"IF('effRT Support'!$B106=0,\"\",\"Location\")","v":""},{"$f":"IF('effRT Support'!$B106=0,\"\",'effRT Support'!$E106)","v":""},{"$f":"IF('effRT Support'!$B106=0,\"\",\"Space Type\")","v":""},{"$f":"IF('effRT Support'!$B106=0,\"\",'effRT Support'!$G106)","v":""},{"$f":"IF('effRT Support'!$B106=0,\"\",\"Existing Fixture Description\")","v":""},{"$f":"IF('effRT Support'!$B106=0,\"\",'effRT Support'!$H106)","v":""},{"$f":"IF('effRT Support'!$B106=0,\"\",\"Existing Fixture Quantity\")","v":""},{"$f":"IF('effRT Support'!$B106=0,\"\",'effRT Support'!$I106)","v":""},{"$f":"IF('effRT Support'!$B106=0,\"\",\"Existing Fixture Wattage\")","v":""},{"$f":"IF('effRT Support'!$B106=0,\"\",'effRT Support'!$J106)","v":""},{"$f":"IF('effRT Support'!$B106=0,\"\",\"Annual Hours of Operation\")","v":""},{"$f":"IF('effRT Support'!$B106=0,\"\",'effRT Support'!$K106)","v":""},{"$f":"IF('effRT Support'!$B106=0,\"\",\"Installed Fixture Description\")","v":""},{"$f":"IF('effRT Support'!$B106=0,\"\",'effRT Support'!$M106)","v":""},{"$f":"IF('effRT Support'!$B106=0,\"\",\"Installed Fixture Wattage\")","v":""},{"$f":"IF('effRT Support'!$B106=0,\"\",'effRT Support'!$O106)","v":""},{"$f":"IF('effRT Support'!$B106=0,\"\",\"Material Cost\")","v":""},{"$f":"IF('effRT Support'!$B106=0,\"\",'effRT Support'!$R106)","v":""},{"$f":"IF('effRT Support'!$B106=0,\"\",\"Labor Cost\")","v":""},{"$f":"IF('effRT Support'!$B106=0,\"\",'effRT Support'!$S106)","v":""},{"$f":"IF('effRT Support'!$B106=0,\"\",\"Ancillary Costs - Measure Specific\")","v":""},{"$f":"IF('effRT Support'!$B106=0,\"\",'effRT Support'!$T106)","v":""},{"$f":"IF('effRT Support'!$B106=0,\"\",\"Fuel Type\")","v":""},{"$f":"IF('effRT Support'!$B106=0,\"\",'Project Information'!$D$44)","v":""}]
[{"$f":"IF('effRT Support'!$B107=0,\"\",IF('Project Information'!$D$33=\"Small Business\",\"SBL\",\"CILS\"))","v":""},{"$f":"IF('effRT Support'!$B107=0,\"\",IF('Project Information'!$K$2=\"\",\"\",'Project Information'!$K$2))","v":""},null,{"$f":"IF('effRT Support'!$B107=0,\"\",IF('Project Information'!$D$46=\"\",\"\",'Project Information'!$D$46))","v":""},{"$f":"IF('effRT Support'!$B107=0,\"\",IF('Project Information'!$D$20=\"\",\"\",VLOOKUP('Project Information'!$D$20,'Other Data'!$B$159:$E$189,4,FALSE)))","v":""},{"$f":"IF('effRT Support'!$B107=0,\"\",IF('Project Information'!$D$31=\"\",\"\",'Project Information'!$D$31))","v":""},{"$f":"IF('effRT Support'!$B107=0,\"\",IF('Project Information'!$D$5=\"\",\"\",'Project Information'!$D$5))","v":""},null,null,{"$f":"IF('effRT Support'!$B107=0,\"\",IF('Project Information'!$D$20=\"\",\"\",VLOOKUP('Project Information'!$D$20,'Other Data'!$B$159:$E$189,2,FALSE)))","v":""},{"$f":"IF('effRT Support'!$B107=0,\"\",IF('Project Information'!$D$20=\"\",\"\",VLOOKUP('Project Information'!$D$20,'Other Data'!$B$159:$E$189,3,FALSE)))","v":""},{"$f":"IF('effRT Support'!$B107=0,\"\",\"Existing\")","v":""},null,{"$f":"IF('effRT Support'!$B107=0,\"\",IF('Project Information'!$D$21=\"\",\"\",'Project Information'!$D$21))","v":""},{"$f":"IF('effRT Support'!$B107=0,\"\",IF('Project Information'!$D$48=\"\",\"\",'Project Information'!$D$48))","v":""},{"$f":"IF('effRT Support'!$B107=0,\"\",\"\")","v":""},{"$f":"IF('effRT Support'!$B107=0,\"\",\"\")","v":""},{"$f":"IF('effRT Support'!$B107=0,\"\",\"\")","v":""},{"$f":"IF('effRT Support'!$B107=0,\"\",\"\")","v":""},{"$f":"IF('effRT Support'!$B107=0,\"\",IF('Project Information'!$D$13=\"\",\"\",'Project Information'!$D$13))","v":""},{"$f":"IF('effRT Support'!$B107=0,\"\",IF('Project Information'!$E$13=\"\",\"\",'Project Information'!$E$13))","v":""},{"$f":"IF('effRT Support'!$B107=0,\"\",IF('Project Information'!$D$14=\"\",\"\",'Project Information'!$D$14))","v":""},{"$f":"IF('effRT Support'!$B107=0,\"\",IF('Project Information'!$D$15=\"\",\"\",'Project Information'!$D$15))","v":""},{"$f":"IF('effRT Support'!$B107=0,\"\",IF('Project Information'!$D$16=\"\",\"\",'Project Information'!$D$16))","v":""},null,{"$f":"IF('effRT Support'!$B107=0,\"\",'Project Information'!$D$18)","v":""},{"$f":"IF('effRT Support'!$B107=0,\"\",IF('Project Information'!$D$23=\"\",\"\",'Project Information'!$D$23))","v":""},{"$f":"IF('effRT Support'!$B107=0,\"\",IF('Project Information'!$D$24=\"\",\"\",'Project Information'!$D$24))","v":""},{"$f":"IF('effRT Support'!$B107=0,\"\",IF('Project Information'!$D$25=\"\",\"\",'Project Information'!$D$25))","v":""},{"$f":"IF('effRT Support'!$B107=0,\"\",IF('Project Information'!$E$25=\"\",\"\",'Project Information'!$E$25))","v":""},{"$f":"IF('effRT Support'!$B107=0,\"\",IF('Project Information'!$F$25=\"\",\"\",'Project Information'!$F$25))","v":""},{"$f":"IF('effRT Support'!$B107=0,\"\",IF('Project Information'!$D$27=\"\",\"Y\",\"N\"))","v":""},{"$f":"IF('effRT Support'!$B107=0,\"\",IF('Project Information'!$D$27=\"\",\"\",'Project Information'!$D$27))","v":""},{"$f":"IF('effRT Support'!$B107=0,\"\",IF('Project Information'!$D$28=\"\",\"\",'Project Information'!$D$28))","v":""},{"$f":"IF('effRT Support'!$B107=0,\"\",IF('Project Information'!$D$29=\"\",\"\",'Project Information'!$D$29))","v":""},{"$f":"IF('effRT Support'!$B107=0,\"\",IF('Project Information'!$E$29=\"\",\"\",'Project Information'!$E$29))","v":""},{"$f":"IF('effRT Support'!$B107=0,\"\",IF('Project Information'!$F$29=\"\",\"\",'Project Information'!$F$29))","v":""},{"$f":"IF('effRT Support'!$B107=0,\"\",\"\")","v":""},{"$f":"IF('effRT Support'!$B107=0,\"\",\"\")","v":""},{"$f":"IF('effRT Support'!$B107=0,\"\",IF('Project Information'!$D$36=\"\",\"\",'Project Information'!$D$36))","v":""},{"$f":"IF('effRT Support'!$B107=0,\"\",IF('Project Information'!$D$42=\"\",\"\",'Project Information'!$D$42))","v":""},{"$f":"IF('effRT Support'!$B107=0,\"\",'effRT Support'!$D107)","v":""},{"$f":"IF('effRT Support'!$B107=0,\"\",'effRT Support'!$L107)","v":""},{"$f":"IF('effRT Support'!$B107=0,\"\",'effRT Support'!$N107)","v":""},null,null,{"$f":"IF('effRT Support'!$B107=0,\"\",'effRT Support'!$P107)","v":""},{"$f":"IF('effRT Support'!$B107=0,\"\",'effRT Support'!$Q107)","v":""},{"$f":"IF('effRT Support'!$B107=0,\"\",'effRT Support'!U107)","v":""},{"$f":"IF('effRT Support'!$B107=0,\"\",'effRT Support'!V107)","v":""},{"$f":"IF('effRT Support'!$B107=0,\"\",'effRT Support'!W107)","v":""},{"$f":"IF('effRT Support'!$B107=0,\"\",'effRT Support'!X107)","v":""},{"$f":"IF('effRT Support'!$B107=0,\"\",'effRT Support'!Y107)","v":""},{"$f":"IF('effRT Support'!$B107=0,\"\",'effRT Support'!Z107*10)","v":""},{"$f":"IF('effRT Support'!$B107=0,\"\",'effRT Support'!AA107)","v":""},{"$f":"IF('effRT Support'!$B107=0,\"\",'effRT Support'!AB107)","v":""},{"$f":"IF('effRT Support'!$B107=0,\"\",'effRT Support'!AC107)","v":""},{"$f":"IF('effRT Support'!$B107=0,\"\",'effRT Support'!AD107)","v":""},{"$f":"IF('effRT Support'!$B107=0,\"\",'effRT Support'!AE107)","v":""},{"$f":"IF('effRT Support'!$B107=0,\"\",\"Hours Actual or Deemed\")","v":""},{"$f":"IF('effRT Support'!$B107=0,\"\",'effRT Support'!$F107)","v":""},{"$f":"IF('effRT Support'!$B107=0,\"\",\"Wattage Actual or Deemed\")","v":""},{"$f":"IF('effRT Support'!$B107=0,\"\",IF('Project Information'!$D$33=\"Pay For Performance\",\"Actual\",\"Deemed\"))","v":""},{"$f":"IF('effRT Support'!$B107=0,\"\",\"Cost Actual or Deemed\")","v":""},{"$f":"IF('effRT Support'!$B107=0,\"\",IF('Project Information'!$D$33=\"Pay For Performance\",\"Actual\",\"Deemed\"))","v":""},{"$f":"IF('effRT Support'!$B107=0,\"\",\"Location\")","v":""},{"$f":"IF('effRT Support'!$B107=0,\"\",'effRT Support'!$E107)","v":""},{"$f":"IF('effRT Support'!$B107=0,\"\",\"Space Type\")","v":""},{"$f":"IF('effRT Support'!$B107=0,\"\",'effRT Support'!$G107)","v":""},{"$f":"IF('effRT Support'!$B107=0,\"\",\"Existing Fixture Description\")","v":""},{"$f":"IF('effRT Support'!$B107=0,\"\",'effRT Support'!$H107)","v":""},{"$f":"IF('effRT Support'!$B107=0,\"\",\"Existing Fixture Quantity\")","v":""},{"$f":"IF('effRT Support'!$B107=0,\"\",'effRT Support'!$I107)","v":""},{"$f":"IF('effRT Support'!$B107=0,\"\",\"Existing Fixture Wattage\")","v":""},{"$f":"IF('effRT Support'!$B107=0,\"\",'effRT Support'!$J107)","v":""},{"$f":"IF('effRT Support'!$B107=0,\"\",\"Annual Hours of Operation\")","v":""},{"$f":"IF('effRT Support'!$B107=0,\"\",'effRT Support'!$K107)","v":""},{"$f":"IF('effRT Support'!$B107=0,\"\",\"Installed Fixture Description\")","v":""},{"$f":"IF('effRT Support'!$B107=0,\"\",'effRT Support'!$M107)","v":""},{"$f":"IF('effRT Support'!$B107=0,\"\",\"Installed Fixture Wattage\")","v":""},{"$f":"IF('effRT Support'!$B107=0,\"\",'effRT Support'!$O107)","v":""},{"$f":"IF('effRT Support'!$B107=0,\"\",\"Material Cost\")","v":""},{"$f":"IF('effRT Support'!$B107=0,\"\",'effRT Support'!$R107)","v":""},{"$f":"IF('effRT Support'!$B107=0,\"\",\"Labor Cost\")","v":""},{"$f":"IF('effRT Support'!$B107=0,\"\",'effRT Support'!$S107)","v":""},{"$f":"IF('effRT Support'!$B107=0,\"\",\"Ancillary Costs - Measure Specific\")","v":""},{"$f":"IF('effRT Support'!$B107=0,\"\",'effRT Support'!$T107)","v":""},{"$f":"IF('effRT Support'!$B107=0,\"\",\"Fuel Type\")","v":""},{"$f":"IF('effRT Support'!$B107=0,\"\",'Project Information'!$D$44)","v":""},{"$f":"IF('effRT Support'!$B107=0,\"\",\"Installed Fixture Quantity\")","v":""},{"$f":"IF('effRT Support'!$B107=0,\"\",'effRT Support'!P106)","v":""}]
[{"$f":"IF('effRT Support'!$B108=0,\"\",IF('Project Information'!$D$33=\"Small Business\",\"SBL\",\"CILS\"))","v":""},{"$f":"IF('effRT Support'!$B108=0,\"\",IF('Project Information'!$K$2=\"\",\"\",'Project Information'!$K$2))","v":""},null,{"$f":"IF('effRT Support'!$B108=0,\"\",IF('Project Information'!$D$46=\"\",\"\",'Project Information'!$D$46))","v":""},{"$f":"IF('effRT Support'!$B108=0,\"\",IF('Project Information'!$D$20=\"\",\"\",VLOOKUP('Project Information'!$D$20,'Other Data'!$B$159:$E$189,4,FALSE)))","v":""},{"$f":"IF('effRT Support'!$B108=0,\"\",IF('Project Information'!$D$31=\"\",\"\",'Project Information'!$D$31))","v":""},{"$f":"IF('effRT Support'!$B108=0,\"\",IF('Project Information'!$D$5=\"\",\"\",'Project Information'!$D$5))","v":""},null,null,{"$f":"IF('effRT Support'!$B108=0,\"\",IF('Project Information'!$D$20=\"\",\"\",VLOOKUP('Project Information'!$D$20,'Other Data'!$B$159:$E$189,2,FALSE)))","v":""},{"$f":"IF('effRT Support'!$B108=0,\"\",IF('Project Information'!$D$20=\"\",\"\",VLOOKUP('Project Information'!$D$20,'Other Data'!$B$159:$E$189,3,FALSE)))","v":""},{"$f":"IF('effRT Support'!$B108=0,\"\",\"Existing\")","v":""},null,{"$f":"IF('effRT Support'!$B108=0,\"\",IF('Project Information'!$D$21=\"\",\"\",'Project Information'!$D$21))","v":""},{"$f":"IF('effRT Support'!$B108=0,\"\",IF('Project Information'!$D$48=\"\",\"\",'Project Information'!$D$48))","v":""},{"$f":"IF('effRT Support'!$B108=0,\"\",\"\")","v":""},{"$f":"IF('effRT Support'!$B108=0,\"\",\"\")","v":""},{"$f":"IF('effRT Support'!$B108=0,\"\",\"\")","v":""},{"$f":"IF('effRT Support'!$B108=0,\"\",\"\")","v":""},{"$f":"IF('effRT Support'!$B108=0,\"\",IF('Project Information'!$D$13=\"\",\"\",'Project Information'!$D$13))","v":""},{"$f":"IF('effRT Support'!$B108=0,\"\",IF('Project Information'!$E$13=\"\",\"\",'Project Information'!$E$13))","v":""},{"$f":"IF('effRT Support'!$B108=0,\"\",IF('Project Information'!$D$14=\"\",\"\",'Project Information'!$D$14))","v":""},{"$f":"IF('effRT Support'!$B108=0,\"\",IF('Project Information'!$D$15=\"\",\"\",'Project Information'!$D$15))","v":""},{"$f":"IF('effRT Support'!$B108=0,\"\",IF('Project Information'!$D$16=\"\",\"\",'Project Information'!$D$16))","v":""},null,{"$f":"IF('effRT Support'!$B108=0,\"\",'Project Information'!$D$18)","v":""},{"$f":"IF('effRT Support'!$B108=0,\"\",IF('Project Information'!$D$23=\"\",\"\",'Project Information'!$D$23))","v":""},{"$f":"IF('effRT Support'!$B108=0,\"\",IF('Project Information'!$D$24=\"\",\"\",'Project Information'!$D$24))","v":""},{"$f":"IF('effRT Support'!$B108=0,\"\",IF('Project Information'!$D$25=\"\",\"\",'Project Information'!$D$25))","v":""},{"$f":"IF('effRT Support'!$B108=0,\"\",IF('Project Information'!$E$25=\"\",\"\",'Project Information'!$E$25))","v":""},{"$f":"IF('effRT Support'!$B108=0,\"\",IF('Project Information'!$F$25=\"\",\"\",'Project Information'!$F$25))","v":""},{"$f":"IF('effRT Support'!$B108=0,\"\",IF('Project Information'!$D$27=\"\",\"Y\",\"N\"))","v":""},{"$f":"IF('effRT Support'!$B108=0,\"\",IF('Project Information'!$D$27=\"\",\"\",'Project Information'!$D$27))","v":""},{"$f":"IF('effRT Support'!$B108=0,\"\",IF('Project Information'!$D$28=\"\",\"\",'Project Information'!$D$28))","v":""},{"$f":"IF('effRT Support'!$B108=0,\"\",IF('Project Information'!$D$29=\"\",\"\",'Project Information'!$D$29))","v":""},{"$f":"IF('effRT Support'!$B108=0,\"\",IF('Project Information'!$E$29=\"\",\"\",'Project Information'!$E$29))","v":""},{"$f":"IF('effRT Support'!$B108=0,\"\",IF('Project Information'!$F$29=\"\",\"\",'Project Information'!$F$29))","v":""},{"$f":"IF('effRT Support'!$B108=0,\"\",\"\")","v":""},{"$f":"IF('effRT Support'!$B108=0,\"\",\"\")","v":""},{"$f":"IF('effRT Support'!$B108=0,\"\",IF('Project Information'!$D$36=\"\",\"\",'Project Information'!$D$36))","v":""},{"$f":"IF('effRT Support'!$B108=0,\"\",IF('Project Information'!$D$42=\"\",\"\",'Project Information'!$D$42))","v":""},{"$f":"IF('effRT Support'!$B108=0,\"\",'effRT Support'!$D108)","v":""},{"$f":"IF('effRT Support'!$B108=0,\"\",'effRT Support'!$L108)","v":""},{"$f":"IF('effRT Support'!$B108=0,\"\",'effRT Support'!$N108)","v":""},null,null,{"$f":"IF('effRT Support'!$B108=0,\"\",'effRT Support'!$P108)","v":""},{"$f":"IF('effRT Support'!$B108=0,\"\",'effRT Support'!$Q108)","v":""},{"$f":"IF('effRT Support'!$B108=0,\"\",'effRT Support'!U108)","v":""},{"$f":"IF('effRT Support'!$B108=0,\"\",'effRT Support'!V108)","v":""},{"$f":"IF('effRT Support'!$B108=0,\"\",'effRT Support'!W108)","v":""},{"$f":"IF('effRT Support'!$B108=0,\"\",'effRT Support'!X108)","v":""},{"$f":"IF('effRT Support'!$B108=0,\"\",'effRT Support'!Y108)","v":""},{"$f":"IF('effRT Support'!$B108=0,\"\",'effRT Support'!Z108*10)","v":""},{"$f":"IF('effRT Support'!$B108=0,\"\",'effRT Support'!AA108)","v":""},{"$f":"IF('effRT Support'!$B108=0,\"\",'effRT Support'!AB108)","v":""},{"$f":"IF('effRT Support'!$B108=0,\"\",'effRT Support'!AC108)","v":""},{"$f":"IF('effRT Support'!$B108=0,\"\",'effRT Support'!AD108)","v":""},{"$f":"IF('effRT Support'!$B108=0,\"\",'effRT Support'!AE108)","v":""},{"$f":"IF('effRT Support'!$B108=0,\"\",\"Hours Actual or Deemed\")","v":""},{"$f":"IF('effRT Support'!$B108=0,\"\",'effRT Support'!$F108)","v":""},{"$f":"IF('effRT Support'!$B108=0,\"\",\"Wattage Actual or Deemed\")","v":""},{"$f":"IF('effRT Support'!$B108=0,\"\",IF('Project Information'!$D$33=\"Pay For Performance\",\"Actual\",\"Deemed\"))","v":""},{"$f":"IF('effRT Support'!$B108=0,\"\",\"Cost Actual or Deemed\")","v":""},{"$f":"IF('effRT Support'!$B108=0,\"\",IF('Project Information'!$D$33=\"Pay For Performance\",\"Actual\",\"Deemed\"))","v":""},{"$f":"IF('effRT Support'!$B108=0,\"\",\"Location\")","v":""},{"$f":"IF('effRT Support'!$B108=0,\"\",'effRT Support'!$E108)","v":""},{"$f":"IF('effRT Support'!$B108=0,\"\",\"Space Type\")","v":""},{"$f":"IF('effRT Support'!$B108=0,\"\",'effRT Support'!$G108)","v":""},{"$f":"IF('effRT Support'!$B108=0,\"\",\"Existing Fixture Description\")","v":""},{"$f":"IF('effRT Support'!$B108=0,\"\",'effRT Support'!$H108)","v":""},{"$f":"IF('effRT Support'!$B108=0,\"\",\"Existing Fixture Quantity\")","v":""},{"$f":"IF('effRT Support'!$B108=0,\"\",'effRT Support'!$I108)","v":""},{"$f":"IF('effRT Support'!$B108=0,\"\",\"Existing Fixture Wattage\")","v":""},{"$f":"IF('effRT Support'!$B108=0,\"\",'effRT Support'!$J108)","v":""},{"$f":"IF('effRT Support'!$B108=0,\"\",\"Annual Hours of Operation\")","v":""},{"$f":"IF('effRT Support'!$B108=0,\"\",'effRT Support'!$K108)","v":""},{"$f":"IF('effRT Support'!$B108=0,\"\",\"Installed Fixture Description\")","v":""},{"$f":"IF('effRT Support'!$B108=0,\"\",'effRT Support'!$M108)","v":""},{"$f":"IF('effRT Support'!$B108=0,\"\",\"Installed Fixture Wattage\")","v":""},{"$f":"IF('effRT Support'!$B108=0,\"\",'effRT Support'!$O108)","v":""},{"$f":"IF('effRT Support'!$B108=0,\"\",\"Material Cost\")","v":""},{"$f":"IF('effRT Support'!$B108=0,\"\",'effRT Support'!$R108)","v":""},{"$f":"IF('effRT Support'!$B108=0,\"\",\"Labor Cost\")","v":""},{"$f":"IF('effRT Support'!$B108=0,\"\",'effRT Support'!$S108)","v":""},{"$f":"IF('effRT Support'!$B108=0,\"\",\"Ancillary Costs - Measure Specific\")","v":""},{"$f":"IF('effRT Support'!$B108=0,\"\",'effRT Support'!$T108)","v":""},{"$f":"IF('effRT Support'!$B108=0,\"\",\"Fuel Type\")","v":""},{"$f":"IF('effRT Support'!$B108=0,\"\",'Project Information'!$D$44)","v":""}]
[{"$f":"IF('effRT Support'!$B109=0,\"\",IF('Project Information'!$D$33=\"Small Business\",\"SBL\",\"CILS\"))","v":""},{"$f":"IF('effRT Support'!$B109=0,\"\",IF('Project Information'!$K$2=\"\",\"\",'Project Information'!$K$2))","v":""},null,{"$f":"IF('effRT Support'!$B109=0,\"\",IF('Project Information'!$D$46=\"\",\"\",'Project Information'!$D$46))","v":""},{"$f":"IF('effRT Support'!$B109=0,\"\",IF('Project Information'!$D$20=\"\",\"\",VLOOKUP('Project Information'!$D$20,'Other Data'!$B$159:$E$189,4,FALSE)))","v":""},{"$f":"IF('effRT Support'!$B109=0,\"\",IF('Project Information'!$D$31=\"\",\"\",'Project Information'!$D$31))","v":""},{"$f":"IF('effRT Support'!$B109=0,\"\",IF('Project Information'!$D$5=\"\",\"\",'Project Information'!$D$5))","v":""},null,null,{"$f":"IF('effRT Support'!$B109=0,\"\",IF('Project Information'!$D$20=\"\",\"\",VLOOKUP('Project Information'!$D$20,'Other Data'!$B$159:$E$189,2,FALSE)))","v":""},{"$f":"IF('effRT Support'!$B109=0,\"\",IF('Project Information'!$D$20=\"\",\"\",VLOOKUP('Project Information'!$D$20,'Other Data'!$B$159:$E$189,3,FALSE)))","v":""},{"$f":"IF('effRT Support'!$B109=0,\"\",\"Existing\")","v":""},null,{"$f":"IF('effRT Support'!$B109=0,\"\",IF('Project Information'!$D$21=\"\",\"\",'Project Information'!$D$21))","v":""},{"$f":"IF('effRT Support'!$B109=0,\"\",IF('Project Information'!$D$48=\"\",\"\",'Project Information'!$D$48))","v":""},{"$f":"IF('effRT Support'!$B109=0,\"\",\"\")","v":""},{"$f":"IF('effRT Support'!$B109=0,\"\",\"\")","v":""},{"$f":"IF('effRT Support'!$B109=0,\"\",\"\")","v":""},{"$f":"IF('effRT Support'!$B109=0,\"\",\"\")","v":""},{"$f":"IF('effRT Support'!$B109=0,\"\",IF('Project Information'!$D$13=\"\",\"\",'Project Information'!$D$13))","v":""},{"$f":"IF('effRT Support'!$B109=0,\"\",IF('Project Information'!$E$13=\"\",\"\",'Project Information'!$E$13))","v":""},{"$f":"IF('effRT Support'!$B109=0,\"\",IF('Project Information'!$D$14=\"\",\"\",'Project Information'!$D$14))","v":""},{"$f":"IF('effRT Support'!$B109=0,\"\",IF('Project Information'!$D$15=\"\",\"\",'Project Information'!$D$15))","v":""},{"$f":"IF('effRT Support'!$B109=0,\"\",IF('Project Information'!$D$16=\"\",\"\",'Project Information'!$D$16))","v":""},null,{"$f":"IF('effRT Support'!$B109=0,\"\",'Project Information'!$D$18)","v":""},{"$f":"IF('effRT Support'!$B109=0,\"\",IF('Project Information'!$D$23=\"\",\"\",'Project Information'!$D$23))","v":""},{"$f":"IF('effRT Support'!$B109=0,\"\",IF('Project Information'!$D$24=\"\",\"\",'Project Information'!$D$24))","v":""},{"$f":"IF('effRT Support'!$B109=0,\"\",IF('Project Information'!$D$25=\"\",\"\",'Project Information'!$D$25))","v":""},{"$f":"IF('effRT Support'!$B109=0,\"\",IF('Project Information'!$E$25=\"\",\"\",'Project Information'!$E$25))","v":""},{"$f":"IF('effRT Support'!$B109=0,\"\",IF('Project Information'!$F$25=\"\",\"\",'Project Information'!$F$25))","v":""},{"$f":"IF('effRT Support'!$B109=0,\"\",IF('Project Information'!$D$27=\"\",\"Y\",\"N\"))","v":""},{"$f":"IF('effRT Support'!$B109=0,\"\",IF('Project Information'!$D$27=\"\",\"\",'Project Information'!$D$27))","v":""},{"$f":"IF('effRT Support'!$B109=0,\"\",IF('Project Information'!$D$28=\"\",\"\",'Project Information'!$D$28))","v":""},{"$f":"IF('effRT Support'!$B109=0,\"\",IF('Project Information'!$D$29=\"\",\"\",'Project Information'!$D$29))","v":""},{"$f":"IF('effRT Support'!$B109=0,\"\",IF('Project Information'!$E$29=\"\",\"\",'Project Information'!$E$29))","v":""},{"$f":"IF('effRT Support'!$B109=0,\"\",IF('Project Information'!$F$29=\"\",\"\",'Project Information'!$F$29))","v":""},{"$f":"IF('effRT Support'!$B109=0,\"\",\"\")","v":""},{"$f":"IF('effRT Support'!$B109=0,\"\",\"\")","v":""},{"$f":"IF('effRT Support'!$B109=0,\"\",IF('Project Information'!$D$36=\"\",\"\",'Project Information'!$D$36))","v":""},{"$f":"IF('effRT Support'!$B109=0,\"\",IF('Project Information'!$D$42=\"\",\"\",'Project Information'!$D$42))","v":""},{"$f":"IF('effRT Support'!$B109=0,\"\",'effRT Support'!$D109)","v":""},{"$f":"IF('effRT Support'!$B109=0,\"\",'effRT Support'!$L109)","v":""},{"$f":"IF('effRT Support'!$B109=0,\"\",'effRT Support'!$N109)","v":""},null,null,{"$f":"IF('effRT Support'!$B109=0,\"\",'effRT Support'!$P109)","v":""},{"$f":"IF('effRT Support'!$B109=0,\"\",'effRT Support'!$Q109)","v":""},{"$f":"IF('effRT Support'!$B109=0,\"\",'effRT Support'!U109)","v":""},{"$f":"IF('effRT Support'!$B109=0,\"\",'effRT Support'!V109)","v":""},{"$f":"IF('effRT Support'!$B109=0,\"\",'effRT Support'!W109)","v":""},{"$f":"IF('effRT Support'!$B109=0,\"\",'effRT Support'!X109)","v":""},{"$f":"IF('effRT Support'!$B109=0,\"\",'effRT Support'!Y109)","v":""},{"$f":"IF('effRT Support'!$B109=0,\"\",'effRT Support'!Z109*10)","v":""},{"$f":"IF('effRT Support'!$B109=0,\"\",'effRT Support'!AA109)","v":""},{"$f":"IF('effRT Support'!$B109=0,\"\",'effRT Support'!AB109)","v":""},{"$f":"IF('effRT Support'!$B109=0,\"\",'effRT Support'!AC109)","v":""},{"$f":"IF('effRT Support'!$B109=0,\"\",'effRT Support'!AD109)","v":""},{"$f":"IF('effRT Support'!$B109=0,\"\",'effRT Support'!AE109)","v":""},{"$f":"IF('effRT Support'!$B109=0,\"\",\"Hours Actual or Deemed\")","v":""},{"$f":"IF('effRT Support'!$B109=0,\"\",'effRT Support'!$F109)","v":""},{"$f":"IF('effRT Support'!$B109=0,\"\",\"Wattage Actual or Deemed\")","v":""},{"$f":"IF('effRT Support'!$B109=0,\"\",IF('Project Information'!$D$33=\"Pay For Performance\",\"Actual\",\"Deemed\"))","v":""},{"$f":"IF('effRT Support'!$B109=0,\"\",\"Cost Actual or Deemed\")","v":""},{"$f":"IF('effRT Support'!$B109=0,\"\",IF('Project Information'!$D$33=\"Pay For Performance\",\"Actual\",\"Deemed\"))","v":""},{"$f":"IF('effRT Support'!$B109=0,\"\",\"Location\")","v":""},{"$f":"IF('effRT Support'!$B109=0,\"\",'effRT Support'!$E109)","v":""},{"$f":"IF('effRT Support'!$B109=0,\"\",\"Space Type\")","v":""},{"$f":"IF('effRT Support'!$B109=0,\"\",'effRT Support'!$G109)","v":""},{"$f":"IF('effRT Support'!$B109=0,\"\",\"Existing Fixture Description\")","v":""},{"$f":"IF('effRT Support'!$B109=0,\"\",'effRT Support'!$H109)","v":""},{"$f":"IF('effRT Support'!$B109=0,\"\",\"Existing Fixture Quantity\")","v":""},{"$f":"IF('effRT Support'!$B109=0,\"\",'effRT Support'!$I109)","v":""},{"$f":"IF('effRT Support'!$B109=0,\"\",\"Existing Fixture Wattage\")","v":""},{"$f":"IF('effRT Support'!$B109=0,\"\",'effRT Support'!$J109)","v":""},{"$f":"IF('effRT Support'!$B109=0,\"\",\"Annual Hours of Operation\")","v":""},{"$f":"IF('effRT Support'!$B109=0,\"\",'effRT Support'!$K109)","v":""},{"$f":"IF('effRT Support'!$B109=0,\"\",\"Installed Fixture Description\")","v":""},{"$f":"IF('effRT Support'!$B109=0,\"\",'effRT Support'!$M109)","v":""},{"$f":"IF('effRT Support'!$B109=0,\"\",\"Installed Fixture Wattage\")","v":""},{"$f":"IF('effRT Support'!$B109=0,\"\",'effRT Support'!$O109)","v":""},{"$f":"IF('effRT Support'!$B109=0,\"\",\"Material Cost\")","v":""},{"$f":"IF('effRT Support'!$B109=0,\"\",'effRT Support'!$R109)","v":""},{"$f":"IF('effRT Support'!$B109=0,\"\",\"Labor Cost\")","v":""},{"$f":"IF('effRT Support'!$B109=0,\"\",'effRT Support'!$S109)","v":""},{"$f":"IF('effRT Support'!$B109=0,\"\",\"Ancillary Costs - Measure Specific\")","v":""},{"$f":"IF('effRT Support'!$B109=0,\"\",'effRT Support'!$T109)","v":""},{"$f":"IF('effRT Support'!$B109=0,\"\",\"Fuel Type\")","v":""},{"$f":"IF('effRT Support'!$B109=0,\"\",'Project Information'!$D$44)","v":""},{"$f":"IF('effRT Support'!$B109=0,\"\",\"Installed Fixture Quantity\")","v":""},{"$f":"IF('effRT Support'!$B109=0,\"\",'effRT Support'!P108)","v":""}]
[{"$f":"IF('effRT Support'!$B110=0,\"\",IF('Project Information'!$D$33=\"Small Business\",\"SBL\",\"CILS\"))","v":""},{"$f":"IF('effRT Support'!$B110=0,\"\",IF('Project Information'!$K$2=\"\",\"\",'Project Information'!$K$2))","v":""},null,{"$f":"IF('effRT Support'!$B110=0,\"\",IF('Project Information'!$D$46=\"\",\"\",'Project Information'!$D$46))","v":""},{"$f":"IF('effRT Support'!$B110=0,\"\",IF('Project Information'!$D$20=\"\",\"\",VLOOKUP('Project Information'!$D$20,'Other Data'!$B$159:$E$189,4,FALSE)))","v":""},{"$f":"IF('effRT Support'!$B110=0,\"\",IF('Project Information'!$D$31=\"\",\"\",'Project Information'!$D$31))","v":""},{"$f":"IF('effRT Support'!$B110=0,\"\",IF('Project Information'!$D$5=\"\",\"\",'Project Information'!$D$5))","v":""},null,null,{"$f":"IF('effRT Support'!$B110=0,\"\",IF('Project Information'!$D$20=\"\",\"\",VLOOKUP('Project Information'!$D$20,'Other Data'!$B$159:$E$189,2,FALSE)))","v":""},{"$f":"IF('effRT Support'!$B110=0,\"\",IF('Project Information'!$D$20=\"\",\"\",VLOOKUP('Project Information'!$D$20,'Other Data'!$B$159:$E$189,3,FALSE)))","v":""},{"$f":"IF('effRT Support'!$B110=0,\"\",\"Existing\")","v":""},null,{"$f":"IF('effRT Support'!$B110=0,\"\",IF('Project Information'!$D$21=\"\",\"\",'Project Information'!$D$21))","v":""},{"$f":"IF('effRT Support'!$B110=0,\"\",IF('Project Information'!$D$48=\"\",\"\",'Project Information'!$D$48))","v":""},{"$f":"IF('effRT Support'!$B110=0,\"\",\"\")","v":""},{"$f":"IF('effRT Support'!$B110=0,\"\",\"\")","v":""},{"$f":"IF('effRT Support'!$B110=0,\"\",\"\")","v":""},{"$f":"IF('effRT Support'!$B110=0,\"\",\"\")","v":""},{"$f":"IF('effRT Support'!$B110=0,\"\",IF('Project Information'!$D$13=\"\",\"\",'Project Information'!$D$13))","v":""},{"$f":"IF('effRT Support'!$B110=0,\"\",IF('Project Information'!$E$13=\"\",\"\",'Project Information'!$E$13))","v":""},{"$f":"IF('effRT Support'!$B110=0,\"\",IF('Project Information'!$D$14=\"\",\"\",'Project Information'!$D$14))","v":""},{"$f":"IF('effRT Support'!$B110=0,\"\",IF('Project Information'!$D$15=\"\",\"\",'Project Information'!$D$15))","v":""},{"$f":"IF('effRT Support'!$B110=0,\"\",IF('Project Information'!$D$16=\"\",\"\",'Project Information'!$D$16))","v":""},null,{"$f":"IF('effRT Support'!$B110=0,\"\",'Project Information'!$D$18)","v":""},{"$f":"IF('effRT Support'!$B110=0,\"\",IF('Project Information'!$D$23=\"\",\"\",'Project Information'!$D$23))","v":""},{"$f":"IF('effRT Support'!$B110=0,\"\",IF('Project Information'!$D$24=\"\",\"\",'Project Information'!$D$24))","v":""},{"$f":"IF('effRT Support'!$B110=0,\"\",IF('Project Information'!$D$25=\"\",\"\",'Project Information'!$D$25))","v":""},{"$f":"IF('effRT Support'!$B110=0,\"\",IF('Project Information'!$E$25=\"\",\"\",'Project Information'!$E$25))","v":""},{"$f":"IF('effRT Support'!$B110=0,\"\",IF('Project Information'!$F$25=\"\",\"\",'Project Information'!$F$25))","v":""},{"$f":"IF('effRT Support'!$B110=0,\"\",IF('Project Information'!$D$27=\"\",\"Y\",\"N\"))","v":""},{"$f":"IF('effRT Support'!$B110=0,\"\",IF('Project Information'!$D$27=\"\",\"\",'Project Information'!$D$27))","v":""},{"$f":"IF('effRT Support'!$B110=0,\"\",IF('Project Information'!$D$28=\"\",\"\",'Project Information'!$D$28))","v":""},{"$f":"IF('effRT Support'!$B110=0,\"\",IF('Project Information'!$D$29=\"\",\"\",'Project Information'!$D$29))","v":""},{"$f":"IF('effRT Support'!$B110=0,\"\",IF('Project Information'!$E$29=\"\",\"\",'Project Information'!$E$29))","v":""},{"$f":"IF('effRT Support'!$B110=0,\"\",IF('Project Information'!$F$29=\"\",\"\",'Project Information'!$F$29))","v":""},{"$f":"IF('effRT Support'!$B110=0,\"\",\"\")","v":""},{"$f":"IF('effRT Support'!$B110=0,\"\",\"\")","v":""},{"$f":"IF('effRT Support'!$B110=0,\"\",IF('Project Information'!$D$36=\"\",\"\",'Project Information'!$D$36))","v":""},{"$f":"IF('effRT Support'!$B110=0,\"\",IF('Project Information'!$D$42=\"\",\"\",'Project Information'!$D$42))","v":""},{"$f":"IF('effRT Support'!$B110=0,\"\",'effRT Support'!$D110)","v":""},{"$f":"IF('effRT Support'!$B110=0,\"\",'effRT Support'!$L110)","v":""},{"$f":"IF('effRT Support'!$B110=0,\"\",'effRT Support'!$N110)","v":""},null,null,{"$f":"IF('effRT Support'!$B110=0,\"\",'effRT Support'!$P110)","v":""},{"$f":"IF('effRT Support'!$B110=0,\"\",'effRT Support'!$Q110)","v":""},{"$f":"IF('effRT Support'!$B110=0,\"\",'effRT Support'!U110)","v":""},{"$f":"IF('effRT Support'!$B110=0,\"\",'effRT Support'!V110)","v":""},{"$f":"IF('effRT Support'!$B110=0,\"\",'effRT Support'!W110)","v":""},{"$f":"IF('effRT Support'!$B110=0,\"\",'effRT Support'!X110)","v":""},{"$f":"IF('effRT Support'!$B110=0,\"\",'effRT Support'!Y110)","v":""},{"$f":"IF('effRT Support'!$B110=0,\"\",'effRT Support'!Z110*10)","v":""},{"$f":"IF('effRT Support'!$B110=0,\"\",'effRT Support'!AA110)","v":""},{"$f":"IF('effRT Support'!$B110=0,\"\",'effRT Support'!AB110)","v":""},{"$f":"IF('effRT Support'!$B110=0,\"\",'effRT Support'!AC110)","v":""},{"$f":"IF('effRT Support'!$B110=0,\"\",'effRT Support'!AD110)","v":""},{"$f":"IF('effRT Support'!$B110=0,\"\",'effRT Support'!AE110)","v":""},{"$f":"IF('effRT Support'!$B110=0,\"\",\"Hours Actual or Deemed\")","v":""},{"$f":"IF('effRT Support'!$B110=0,\"\",'effRT Support'!$F110)","v":""},{"$f":"IF('effRT Support'!$B110=0,\"\",\"Wattage Actual or Deemed\")","v":""},{"$f":"IF('effRT Support'!$B110=0,\"\",IF('Project Information'!$D$33=\"Pay For Performance\",\"Actual\",\"Deemed\"))","v":""},{"$f":"IF('effRT Support'!$B110=0,\"\",\"Cost Actual or Deemed\")","v":""},{"$f":"IF('effRT Support'!$B110=0,\"\",IF('Project Information'!$D$33=\"Pay For Performance\",\"Actual\",\"Deemed\"))","v":""},{"$f":"IF('effRT Support'!$B110=0,\"\",\"Location\")","v":""},{"$f":"IF('effRT Support'!$B110=0,\"\",'effRT Support'!$E110)","v":""},{"$f":"IF('effRT Support'!$B110=0,\"\",\"Space Type\")","v":""},{"$f":"IF('effRT Support'!$B110=0,\"\",'effRT Support'!$G110)","v":""},{"$f":"IF('effRT Support'!$B110=0,\"\",\"Existing Fixture Description\")","v":""},{"$f":"IF('effRT Support'!$B110=0,\"\",'effRT Support'!$H110)","v":""},{"$f":"IF('effRT Support'!$B110=0,\"\",\"Existing Fixture Quantity\")","v":""},{"$f":"IF('effRT Support'!$B110=0,\"\",'effRT Support'!$I110)","v":""},{"$f":"IF('effRT Support'!$B110=0,\"\",\"Existing Fixture Wattage\")","v":""},{"$f":"IF('effRT Support'!$B110=0,\"\",'effRT Support'!$J110)","v":""},{"$f":"IF('effRT Support'!$B110=0,\"\",\"Annual Hours of Operation\")","v":""},{"$f":"IF('effRT Support'!$B110=0,\"\",'effRT Support'!$K110)","v":""},{"$f":"IF('effRT Support'!$B110=0,\"\",\"Installed Fixture Description\")","v":""},{"$f":"IF('effRT Support'!$B110=0,\"\",'effRT Support'!$M110)","v":""},{"$f":"IF('effRT Support'!$B110=0,\"\",\"Installed Fixture Wattage\")","v":""},{"$f":"IF('effRT Support'!$B110=0,\"\",'effRT Support'!$O110)","v":""},{"$f":"IF('effRT Support'!$B110=0,\"\",\"Material Cost\")","v":""},{"$f":"IF('effRT Support'!$B110=0,\"\",'effRT Support'!$R110)","v":""},{"$f":"IF('effRT Support'!$B110=0,\"\",\"Labor Cost\")","v":""},{"$f":"IF('effRT Support'!$B110=0,\"\",'effRT Support'!$S110)","v":""},{"$f":"IF('effRT Support'!$B110=0,\"\",\"Ancillary Costs - Measure Specific\")","v":""},{"$f":"IF('effRT Support'!$B110=0,\"\",'effRT Support'!$T110)","v":""},{"$f":"IF('effRT Support'!$B110=0,\"\",\"Fuel Type\")","v":""},{"$f":"IF('effRT Support'!$B110=0,\"\",'Project Information'!$D$44)","v":""}]
[{"$f":"IF('effRT Support'!$B111=0,\"\",IF('Project Information'!$D$33=\"Small Business\",\"SBL\",\"CILS\"))","v":""},{"$f":"IF('effRT Support'!$B111=0,\"\",IF('Project Information'!$K$2=\"\",\"\",'Project Information'!$K$2))","v":""},null,{"$f":"IF('effRT Support'!$B111=0,\"\",IF('Project Information'!$D$46=\"\",\"\",'Project Information'!$D$46))","v":""},{"$f":"IF('effRT Support'!$B111=0,\"\",IF('Project Information'!$D$20=\"\",\"\",VLOOKUP('Project Information'!$D$20,'Other Data'!$B$159:$E$189,4,FALSE)))","v":""},{"$f":"IF('effRT Support'!$B111=0,\"\",IF('Project Information'!$D$31=\"\",\"\",'Project Information'!$D$31))","v":""},{"$f":"IF('effRT Support'!$B111=0,\"\",IF('Project Information'!$D$5=\"\",\"\",'Project Information'!$D$5))","v":""},null,null,{"$f":"IF('effRT Support'!$B111=0,\"\",IF('Project Information'!$D$20=\"\",\"\",VLOOKUP('Project Information'!$D$20,'Other Data'!$B$159:$E$189,2,FALSE)))","v":""},{"$f":"IF('effRT Support'!$B111=0,\"\",IF('Project Information'!$D$20=\"\",\"\",VLOOKUP('Project Information'!$D$20,'Other Data'!$B$159:$E$189,3,FALSE)))","v":""},{"$f":"IF('effRT Support'!$B111=0,\"\",\"Existing\")","v":""},null,{"$f":"IF('effRT Support'!$B111=0,\"\",IF('Project Information'!$D$21=\"\",\"\",'Project Information'!$D$21))","v":""},{"$f":"IF('effRT Support'!$B111=0,\"\",IF('Project Information'!$D$48=\"\",\"\",'Project Information'!$D$48))","v":""},{"$f":"IF('effRT Support'!$B111=0,\"\",\"\")","v":""},{"$f":"IF('effRT Support'!$B111=0,\"\",\"\")","v":""},{"$f":"IF('effRT Support'!$B111=0,\"\",\"\")","v":""},{"$f":"IF('effRT Support'!$B111=0,\"\",\"\")","v":""},{"$f":"IF('effRT Support'!$B111=0,\"\",IF('Project Information'!$D$13=\"\",\"\",'Project Information'!$D$13))","v":""},{"$f":"IF('effRT Support'!$B111=0,\"\",IF('Project Information'!$E$13=\"\",\"\",'Project Information'!$E$13))","v":""},{"$f":"IF('effRT Support'!$B111=0,\"\",IF('Project Information'!$D$14=\"\",\"\",'Project Information'!$D$14))","v":""},{"$f":"IF('effRT Support'!$B111=0,\"\",IF('Project Information'!$D$15=\"\",\"\",'Project Information'!$D$15))","v":""},{"$f":"IF('effRT Support'!$B111=0,\"\",IF('Project Information'!$D$16=\"\",\"\",'Project Information'!$D$16))","v":""},null,{"$f":"IF('effRT Support'!$B111=0,\"\",'Project Information'!$D$18)","v":""},{"$f":"IF('effRT Support'!$B111=0,\"\",IF('Project Information'!$D$23=\"\",\"\",'Project Information'!$D$23))","v":""},{"$f":"IF('effRT Support'!$B111=0,\"\",IF('Project Information'!$D$24=\"\",\"\",'Project Information'!$D$24))","v":""},{"$f":"IF('effRT Support'!$B111=0,\"\",IF('Project Information'!$D$25=\"\",\"\",'Project Information'!$D$25))","v":""},{"$f":"IF('effRT Support'!$B111=0,\"\",IF('Project Information'!$E$25=\"\",\"\",'Project Information'!$E$25))","v":""},{"$f":"IF('effRT Support'!$B111=0,\"\",IF('Project Information'!$F$25=\"\",\"\",'Project Information'!$F$25))","v":""},{"$f":"IF('effRT Support'!$B111=0,\"\",IF('Project Information'!$D$27=\"\",\"Y\",\"N\"))","v":""},{"$f":"IF('effRT Support'!$B111=0,\"\",IF('Project Information'!$D$27=\"\",\"\",'Project Information'!$D$27))","v":""},{"$f":"IF('effRT Support'!$B111=0,\"\",IF('Project Information'!$D$28=\"\",\"\",'Project Information'!$D$28))","v":""},{"$f":"IF('effRT Support'!$B111=0,\"\",IF('Project Information'!$D$29=\"\",\"\",'Project Information'!$D$29))","v":""},{"$f":"IF('effRT Support'!$B111=0,\"\",IF('Project Information'!$E$29=\"\",\"\",'Project Information'!$E$29))","v":""},{"$f":"IF('effRT Support'!$B111=0,\"\",IF('Project Information'!$F$29=\"\",\"\",'Project Information'!$F$29))","v":""},{"$f":"IF('effRT Support'!$B111=0,\"\",\"\")","v":""},{"$f":"IF('effRT Support'!$B111=0,\"\",\"\")","v":""},{"$f":"IF('effRT Support'!$B111=0,\"\",IF('Project Information'!$D$36=\"\",\"\",'Project Information'!$D$36))","v":""},{"$f":"IF('effRT Support'!$B111=0,\"\",IF('Project Information'!$D$42=\"\",\"\",'Project Information'!$D$42))","v":""},{"$f":"IF('effRT Support'!$B111=0,\"\",'effRT Support'!$D111)","v":""},{"$f":"IF('effRT Support'!$B111=0,\"\",'effRT Support'!$L111)","v":""},{"$f":"IF('effRT Support'!$B111=0,\"\",'effRT Support'!$N111)","v":""},null,null,{"$f":"IF('effRT Support'!$B111=0,\"\",'effRT Support'!$P111)","v":""},{"$f":"IF('effRT Support'!$B111=0,\"\",'effRT Support'!$Q111)","v":""},{"$f":"IF('effRT Support'!$B111=0,\"\",'effRT Support'!U111)","v":""},{"$f":"IF('effRT Support'!$B111=0,\"\",'effRT Support'!V111)","v":""},{"$f":"IF('effRT Support'!$B111=0,\"\",'effRT Support'!W111)","v":""},{"$f":"IF('effRT Support'!$B111=0,\"\",'effRT Support'!X111)","v":""},{"$f":"IF('effRT Support'!$B111=0,\"\",'effRT Support'!Y111)","v":""},{"$f":"IF('effRT Support'!$B111=0,\"\",'effRT Support'!Z111*10)","v":""},{"$f":"IF('effRT Support'!$B111=0,\"\",'effRT Support'!AA111)","v":""},{"$f":"IF('effRT Support'!$B111=0,\"\",'effRT Support'!AB111)","v":""},{"$f":"IF('effRT Support'!$B111=0,\"\",'effRT Support'!AC111)","v":""},{"$f":"IF('effRT Support'!$B111=0,\"\",'effRT Support'!AD111)","v":""},{"$f":"IF('effRT Support'!$B111=0,\"\",'effRT Support'!AE111)","v":""},{"$f":"IF('effRT Support'!$B111=0,\"\",\"Hours Actual or Deemed\")","v":""},{"$f":"IF('effRT Support'!$B111=0,\"\",'effRT Support'!$F111)","v":""},{"$f":"IF('effRT Support'!$B111=0,\"\",\"Wattage Actual or Deemed\")","v":""},{"$f":"IF('effRT Support'!$B111=0,\"\",IF('Project Information'!$D$33=\"Pay For Performance\",\"Actual\",\"Deemed\"))","v":""},{"$f":"IF('effRT Support'!$B111=0,\"\",\"Cost Actual or Deemed\")","v":""},{"$f":"IF('effRT Support'!$B111=0,\"\",IF('Project Information'!$D$33=\"Pay For Performance\",\"Actual\",\"Deemed\"))","v":""},{"$f":"IF('effRT Support'!$B111=0,\"\",\"Location\")","v":""},{"$f":"IF('effRT Support'!$B111=0,\"\",'effRT Support'!$E111)","v":""},{"$f":"IF('effRT Support'!$B111=0,\"\",\"Space Type\")","v":""},{"$f":"IF('effRT Support'!$B111=0,\"\",'effRT Support'!$G111)","v":""},{"$f":"IF('effRT Support'!$B111=0,\"\",\"Existing Fixture Description\")","v":""},{"$f":"IF('effRT Support'!$B111=0,\"\",'effRT Support'!$H111)","v":""},{"$f":"IF('effRT Support'!$B111=0,\"\",\"Existing Fixture Quantity\")","v":""},{"$f":"IF('effRT Support'!$B111=0,\"\",'effRT Support'!$I111)","v":""},{"$f":"IF('effRT Support'!$B111=0,\"\",\"Existing Fixture Wattage\")","v":""},{"$f":"IF('effRT Support'!$B111=0,\"\",'effRT Support'!$J111)","v":""},{"$f":"IF('effRT Support'!$B111=0,\"\",\"Annual Hours of Operation\")","v":""},{"$f":"IF('effRT Support'!$B111=0,\"\",'effRT Support'!$K111)","v":""},{"$f":"IF('effRT Support'!$B111=0,\"\",\"Installed Fixture Description\")","v":""},{"$f":"IF('effRT Support'!$B111=0,\"\",'effRT Support'!$M111)","v":""},{"$f":"IF('effRT Support'!$B111=0,\"\",\"Installed Fixture Wattage\")","v":""},{"$f":"IF('effRT Support'!$B111=0,\"\",'effRT Support'!$O111)","v":""},{"$f":"IF('effRT Support'!$B111=0,\"\",\"Material Cost\")","v":""},{"$f":"IF('effRT Support'!$B111=0,\"\",'effRT Support'!$R111)","v":""},{"$f":"IF('effRT Support'!$B111=0,\"\",\"Labor Cost\")","v":""},{"$f":"IF('effRT Support'!$B111=0,\"\",'effRT Support'!$S111)","v":""},{"$f":"IF('effRT Support'!$B111=0,\"\",\"Ancillary Costs - Measure Specific\")","v":""},{"$f":"IF('effRT Support'!$B111=0,\"\",'effRT Support'!$T111)","v":""},{"$f":"IF('effRT Support'!$B111=0,\"\",\"Fuel Type\")","v":""},{"$f":"IF('effRT Support'!$B111=0,\"\",'Project Information'!$D$44)","v":""},{"$f":"IF('effRT Support'!$B111=0,\"\",\"Installed Fixture Quantity\")","v":""},{"$f":"IF('effRT Support'!$B111=0,\"\",'effRT Support'!P110)","v":""}]
[{"$f":"IF('effRT Support'!$B112=0,\"\",IF('Project Information'!$D$33=\"Small Business\",\"SBL\",\"CILS\"))","v":""},{"$f":"IF('effRT Support'!$B112=0,\"\",IF('Project Information'!$K$2=\"\",\"\",'Project Information'!$K$2))","v":""},null,{"$f":"IF('effRT Support'!$B112=0,\"\",IF('Project Information'!$D$46=\"\",\"\",'Project Information'!$D$46))","v":""},{"$f":"IF('effRT Support'!$B112=0,\"\",IF('Project Information'!$D$20=\"\",\"\",VLOOKUP('Project Information'!$D$20,'Other Data'!$B$159:$E$189,4,FALSE)))","v":""},{"$f":"IF('effRT Support'!$B112=0,\"\",IF('Project Information'!$D$31=\"\",\"\",'Project Information'!$D$31))","v":""},{"$f":"IF('effRT Support'!$B112=0,\"\",IF('Project Information'!$D$5=\"\",\"\",'Project Information'!$D$5))","v":""},null,null,{"$f":"IF('effRT Support'!$B112=0,\"\",IF('Project Information'!$D$20=\"\",\"\",VLOOKUP('Project Information'!$D$20,'Other Data'!$B$159:$E$189,2,FALSE)))","v":""},{"$f":"IF('effRT Support'!$B112=0,\"\",IF('Project Information'!$D$20=\"\",\"\",VLOOKUP('Project Information'!$D$20,'Other Data'!$B$159:$E$189,3,FALSE)))","v":""},{"$f":"IF('effRT Support'!$B112=0,\"\",\"Existing\")","v":""},null,{"$f":"IF('effRT Support'!$B112=0,\"\",IF('Project Information'!$D$21=\"\",\"\",'Project Information'!$D$21))","v":""},{"$f":"IF('effRT Support'!$B112=0,\"\",IF('Project Information'!$D$48=\"\",\"\",'Project Information'!$D$48))","v":""},{"$f":"IF('effRT Support'!$B112=0,\"\",\"\")","v":""},{"$f":"IF('effRT Support'!$B112=0,\"\",\"\")","v":""},{"$f":"IF('effRT Support'!$B112=0,\"\",\"\")","v":""},{"$f":"IF('effRT Support'!$B112=0,\"\",\"\")","v":""},{"$f":"IF('effRT Support'!$B112=0,\"\",IF('Project Information'!$D$13=\"\",\"\",'Project Information'!$D$13))","v":""},{"$f":"IF('effRT Support'!$B112=0,\"\",IF('Project Information'!$E$13=\"\",\"\",'Project Information'!$E$13))","v":""},{"$f":"IF('effRT Support'!$B112=0,\"\",IF('Project Information'!$D$14=\"\",\"\",'Project Information'!$D$14))","v":""},{"$f":"IF('effRT Support'!$B112=0,\"\",IF('Project Information'!$D$15=\"\",\"\",'Project Information'!$D$15))","v":""},{"$f":"IF('effRT Support'!$B112=0,\"\",IF('Project Information'!$D$16=\"\",\"\",'Project Information'!$D$16))","v":""},null,{"$f":"IF('effRT Support'!$B112=0,\"\",'Project Information'!$D$18)","v":""},{"$f":"IF('effRT Support'!$B112=0,\"\",IF('Project Information'!$D$23=\"\",\"\",'Project Information'!$D$23))","v":""},{"$f":"IF('effRT Support'!$B112=0,\"\",IF('Project Information'!$D$24=\"\",\"\",'Project Information'!$D$24))","v":""},{"$f":"IF('effRT Support'!$B112=0,\"\",IF('Project Information'!$D$25=\"\",\"\",'Project Information'!$D$25))","v":""},{"$f":"IF('effRT Support'!$B112=0,\"\",IF('Project Information'!$E$25=\"\",\"\",'Project Information'!$E$25))","v":""},{"$f":"IF('effRT Support'!$B112=0,\"\",IF('Project Information'!$F$25=\"\",\"\",'Project Information'!$F$25))","v":""},{"$f":"IF('effRT Support'!$B112=0,\"\",IF('Project Information'!$D$27=\"\",\"Y\",\"N\"))","v":""},{"$f":"IF('effRT Support'!$B112=0,\"\",IF('Project Information'!$D$27=\"\",\"\",'Project Information'!$D$27))","v":""},{"$f":"IF('effRT Support'!$B112=0,\"\",IF('Project Information'!$D$28=\"\",\"\",'Project Information'!$D$28))","v":""},{"$f":"IF('effRT Support'!$B112=0,\"\",IF('Project Information'!$D$29=\"\",\"\",'Project Information'!$D$29))","v":""},{"$f":"IF('effRT Support'!$B112=0,\"\",IF('Project Information'!$E$29=\"\",\"\",'Project Information'!$E$29))","v":""},{"$f":"IF('effRT Support'!$B112=0,\"\",IF('Project Information'!$F$29=\"\",\"\",'Project Information'!$F$29))","v":""},{"$f":"IF('effRT Support'!$B112=0,\"\",\"\")","v":""},{"$f":"IF('effRT Support'!$B112=0,\"\",\"\")","v":""},{"$f":"IF('effRT Support'!$B112=0,\"\",IF('Project Information'!$D$36=\"\",\"\",'Project Information'!$D$36))","v":""},{"$f":"IF('effRT Support'!$B112=0,\"\",IF('Project Information'!$D$42=\"\",\"\",'Project Information'!$D$42))","v":""},{"$f":"IF('effRT Support'!$B112=0,\"\",'effRT Support'!$D112)","v":""},{"$f":"IF('effRT Support'!$B112=0,\"\",'effRT Support'!$L112)","v":""},{"$f":"IF('effRT Support'!$B112=0,\"\",'effRT Support'!$N112)","v":""},null,null,{"$f":"IF('effRT Support'!$B112=0,\"\",'effRT Support'!$P112)","v":""},{"$f":"IF('effRT Support'!$B112=0,\"\",'effRT Support'!$Q112)","v":""},{"$f":"IF('effRT Support'!$B112=0,\"\",'effRT Support'!U112)","v":""},{"$f":"IF('effRT Support'!$B112=0,\"\",'effRT Support'!V112)","v":""},{"$f":"IF('effRT Support'!$B112=0,\"\",'effRT Support'!W112)","v":""},{"$f":"IF('effRT Support'!$B112=0,\"\",'effRT Support'!X112)","v":""},{"$f":"IF('effRT Support'!$B112=0,\"\",'effRT Support'!Y112)","v":""},{"$f":"IF('effRT Support'!$B112=0,\"\",'effRT Support'!Z112*10)","v":""},{"$f":"IF('effRT Support'!$B112=0,\"\",'effRT Support'!AA112)","v":""},{"$f":"IF('effRT Support'!$B112=0,\"\",'effRT Support'!AB112)","v":""},{"$f":"IF('effRT Support'!$B112=0,\"\",'effRT Support'!AC112)","v":""},{"$f":"IF('effRT Support'!$B112=0,\"\",'effRT Support'!AD112)","v":""},{"$f":"IF('effRT Support'!$B112=0,\"\",'effRT Support'!AE112)","v":""},{"$f":"IF('effRT Support'!$B112=0,\"\",\"Hours Actual or Deemed\")","v":""},{"$f":"IF('effRT Support'!$B112=0,\"\",'effRT Support'!$F112)","v":""},{"$f":"IF('effRT Support'!$B112=0,\"\",\"Wattage Actual or Deemed\")","v":""},{"$f":"IF('effRT Support'!$B112=0,\"\",IF('Project Information'!$D$33=\"Pay For Performance\",\"Actual\",\"Deemed\"))","v":""},{"$f":"IF('effRT Support'!$B112=0,\"\",\"Cost Actual or Deemed\")","v":""},{"$f":"IF('effRT Support'!$B112=0,\"\",IF('Project Information'!$D$33=\"Pay For Performance\",\"Actual\",\"Deemed\"))","v":""},{"$f":"IF('effRT Support'!$B112=0,\"\",\"Location\")","v":""},{"$f":"IF('effRT Support'!$B112=0,\"\",'effRT Support'!$E112)","v":""},{"$f":"IF('effRT Support'!$B112=0,\"\",\"Space Type\")","v":""},{"$f":"IF('effRT Support'!$B112=0,\"\",'effRT Support'!$G112)","v":""},{"$f":"IF('effRT Support'!$B112=0,\"\",\"Existing Fixture Description\")","v":""},{"$f":"IF('effRT Support'!$B112=0,\"\",'effRT Support'!$H112)","v":""},{"$f":"IF('effRT Support'!$B112=0,\"\",\"Existing Fixture Quantity\")","v":""},{"$f":"IF('effRT Support'!$B112=0,\"\",'effRT Support'!$I112)","v":""},{"$f":"IF('effRT Support'!$B112=0,\"\",\"Existing Fixture Wattage\")","v":""},{"$f":"IF('effRT Support'!$B112=0,\"\",'effRT Support'!$J112)","v":""},{"$f":"IF('effRT Support'!$B112=0,\"\",\"Annual Hours of Operation\")","v":""},{"$f":"IF('effRT Support'!$B112=0,\"\",'effRT Support'!$K112)","v":""},{"$f":"IF('effRT Support'!$B112=0,\"\",\"Installed Fixture Description\")","v":""},{"$f":"IF('effRT Support'!$B112=0,\"\",'effRT Support'!$M112)","v":""},{"$f":"IF('effRT Support'!$B112=0,\"\",\"Installed Fixture Wattage\")","v":""},{"$f":"IF('effRT Support'!$B112=0,\"\",'effRT Support'!$O112)","v":""},{"$f":"IF('effRT Support'!$B112=0,\"\",\"Material Cost\")","v":""},{"$f":"IF('effRT Support'!$B112=0,\"\",'effRT Support'!$R112)","v":""},{"$f":"IF('effRT Support'!$B112=0,\"\",\"Labor Cost\")","v":""},{"$f":"IF('effRT Support'!$B112=0,\"\",'effRT Support'!$S112)","v":""},{"$f":"IF('effRT Support'!$B112=0,\"\",\"Ancillary Costs - Measure Specific\")","v":""},{"$f":"IF('effRT Support'!$B112=0,\"\",'effRT Support'!$T112)","v":""},{"$f":"IF('effRT Support'!$B112=0,\"\",\"Fuel Type\")","v":""},{"$f":"IF('effRT Support'!$B112=0,\"\",'Project Information'!$D$44)","v":""}]
[{"$f":"IF('effRT Support'!$B113=0,\"\",IF('Project Information'!$D$33=\"Small Business\",\"SBL\",\"CILS\"))","v":""},{"$f":"IF('effRT Support'!$B113=0,\"\",IF('Project Information'!$K$2=\"\",\"\",'Project Information'!$K$2))","v":""},null,{"$f":"IF('effRT Support'!$B113=0,\"\",IF('Project Information'!$D$46=\"\",\"\",'Project Information'!$D$46))","v":""},{"$f":"IF('effRT Support'!$B113=0,\"\",IF('Project Information'!$D$20=\"\",\"\",VLOOKUP('Project Information'!$D$20,'Other Data'!$B$159:$E$189,4,FALSE)))","v":""},{"$f":"IF('effRT Support'!$B113=0,\"\",IF('Project Information'!$D$31=\"\",\"\",'Project Information'!$D$31))","v":""},{"$f":"IF('effRT Support'!$B113=0,\"\",IF('Project Information'!$D$5=\"\",\"\",'Project Information'!$D$5))","v":""},null,null,{"$f":"IF('effRT Support'!$B113=0,\"\",IF('Project Information'!$D$20=\"\",\"\",VLOOKUP('Project Information'!$D$20,'Other Data'!$B$159:$E$189,2,FALSE)))","v":""},{"$f":"IF('effRT Support'!$B113=0,\"\",IF('Project Information'!$D$20=\"\",\"\",VLOOKUP('Project Information'!$D$20,'Other Data'!$B$159:$E$189,3,FALSE)))","v":""},{"$f":"IF('effRT Support'!$B113=0,\"\",\"Existing\")","v":""},null,{"$f":"IF('effRT Support'!$B113=0,\"\",IF('Project Information'!$D$21=\"\",\"\",'Project Information'!$D$21))","v":""},{"$f":"IF('effRT Support'!$B113=0,\"\",IF('Project Information'!$D$48=\"\",\"\",'Project Information'!$D$48))","v":""},{"$f":"IF('effRT Support'!$B113=0,\"\",\"\")","v":""},{"$f":"IF('effRT Support'!$B113=0,\"\",\"\")","v":""},{"$f":"IF('effRT Support'!$B113=0,\"\",\"\")","v":""},{"$f":"IF('effRT Support'!$B113=0,\"\",\"\")","v":""},{"$f":"IF('effRT Support'!$B113=0,\"\",IF('Project Information'!$D$13=\"\",\"\",'Project Information'!$D$13))","v":""},{"$f":"IF('effRT Support'!$B113=0,\"\",IF('Project Information'!$E$13=\"\",\"\",'Project Information'!$E$13))","v":""},{"$f":"IF('effRT Support'!$B113=0,\"\",IF('Project Information'!$D$14=\"\",\"\",'Project Information'!$D$14))","v":""},{"$f":"IF('effRT Support'!$B113=0,\"\",IF('Project Information'!$D$15=\"\",\"\",'Project Information'!$D$15))","v":""},{"$f":"IF('effRT Support'!$B113=0,\"\",IF('Project Information'!$D$16=\"\",\"\",'Project Information'!$D$16))","v":""},null,{"$f":"IF('effRT Support'!$B113=0,\"\",'Project Information'!$D$18)","v":""},{"$f":"IF('effRT Support'!$B113=0,\"\",IF('Project Information'!$D$23=\"\",\"\",'Project Information'!$D$23))","v":""},{"$f":"IF('effRT Support'!$B113=0,\"\",IF('Project Information'!$D$24=\"\",\"\",'Project Information'!$D$24))","v":""},{"$f":"IF('effRT Support'!$B113=0,\"\",IF('Project Information'!$D$25=\"\",\"\",'Project Information'!$D$25))","v":""},{"$f":"IF('effRT Support'!$B113=0,\"\",IF('Project Information'!$E$25=\"\",\"\",'Project Information'!$E$25))","v":""},{"$f":"IF('effRT Support'!$B113=0,\"\",IF('Project Information'!$F$25=\"\",\"\",'Project Information'!$F$25))","v":""},{"$f":"IF('effRT Support'!$B113=0,\"\",IF('Project Information'!$D$27=\"\",\"Y\",\"N\"))","v":""},{"$f":"IF('effRT Support'!$B113=0,\"\",IF('Project Information'!$D$27=\"\",\"\",'Project Information'!$D$27))","v":""},{"$f":"IF('effRT Support'!$B113=0,\"\",IF('Project Information'!$D$28=\"\",\"\",'Project Information'!$D$28))","v":""},{"$f":"IF('effRT Support'!$B113=0,\"\",IF('Project Information'!$D$29=\"\",\"\",'Project Information'!$D$29))","v":""},{"$f":"IF('effRT Support'!$B113=0,\"\",IF('Project Information'!$E$29=\"\",\"\",'Project Information'!$E$29))","v":""},{"$f":"IF('effRT Support'!$B113=0,\"\",IF('Project Information'!$F$29=\"\",\"\",'Project Information'!$F$29))","v":""},{"$f":"IF('effRT Support'!$B113=0,\"\",\"\")","v":""},{"$f":"IF('effRT Support'!$B113=0,\"\",\"\")","v":""},{"$f":"IF('effRT Support'!$B113=0,\"\",IF('Project Information'!$D$36=\"\",\"\",'Project Information'!$D$36))","v":""},{"$f":"IF('effRT Support'!$B113=0,\"\",IF('Project Information'!$D$42=\"\",\"\",'Project Information'!$D$42))","v":""},{"$f":"IF('effRT Support'!$B113=0,\"\",'effRT Support'!$D113)","v":""},{"$f":"IF('effRT Support'!$B113=0,\"\",'effRT Support'!$L113)","v":""},{"$f":"IF('effRT Support'!$B113=0,\"\",'effRT Support'!$N113)","v":""},null,null,{"$f":"IF('effRT Support'!$B113=0,\"\",'effRT Support'!$P113)","v":""},{"$f":"IF('effRT Support'!$B113=0,\"\",'effRT Support'!$Q113)","v":""},{"$f":"IF('effRT Support'!$B113=0,\"\",'effRT Support'!U113)","v":""},{"$f":"IF('effRT Support'!$B113=0,\"\",'effRT Support'!V113)","v":""},{"$f":"IF('effRT Support'!$B113=0,\"\",'effRT Support'!W113)","v":""},{"$f":"IF('effRT Support'!$B113=0,\"\",'effRT Support'!X113)","v":""},{"$f":"IF('effRT Support'!$B113=0,\"\",'effRT Support'!Y113)","v":""},{"$f":"IF('effRT Support'!$B113=0,\"\",'effRT Support'!Z113*10)","v":""},{"$f":"IF('effRT Support'!$B113=0,\"\",'effRT Support'!AA113)","v":""},{"$f":"IF('effRT Support'!$B113=0,\"\",'effRT Support'!AB113)","v":""},{"$f":"IF('effRT Support'!$B113=0,\"\",'effRT Support'!AC113)","v":""},{"$f":"IF('effRT Support'!$B113=0,\"\",'effRT Support'!AD113)","v":""},{"$f":"IF('effRT Support'!$B113=0,\"\",'effRT Support'!AE113)","v":""},{"$f":"IF('effRT Support'!$B113=0,\"\",\"Hours Actual or Deemed\")","v":""},{"$f":"IF('effRT Support'!$B113=0,\"\",'effRT Support'!$F113)","v":""},{"$f":"IF('effRT Support'!$B113=0,\"\",\"Wattage Actual or Deemed\")","v":""},{"$f":"IF('effRT Support'!$B113=0,\"\",IF('Project Information'!$D$33=\"Pay For Performance\",\"Actual\",\"Deemed\"))","v":""},{"$f":"IF('effRT Support'!$B113=0,\"\",\"Cost Actual or Deemed\")","v":""},{"$f":"IF('effRT Support'!$B113=0,\"\",IF('Project Information'!$D$33=\"Pay For Performance\",\"Actual\",\"Deemed\"))","v":""},{"$f":"IF('effRT Support'!$B113=0,\"\",\"Location\")","v":""},{"$f":"IF('effRT Support'!$B113=0,\"\",'effRT Support'!$E113)","v":""},{"$f":"IF('effRT Support'!$B113=0,\"\",\"Space Type\")","v":""},{"$f":"IF('effRT Support'!$B113=0,\"\",'effRT Support'!$G113)","v":""},{"$f":"IF('effRT Support'!$B113=0,\"\",\"Existing Fixture Description\")","v":""},{"$f":"IF('effRT Support'!$B113=0,\"\",'effRT Support'!$H113)","v":""},{"$f":"IF('effRT Support'!$B113=0,\"\",\"Existing Fixture Quantity\")","v":""},{"$f":"IF('effRT Support'!$B113=0,\"\",'effRT Support'!$I113)","v":""},{"$f":"IF('effRT Support'!$B113=0,\"\",\"Existing Fixture Wattage\")","v":""},{"$f":"IF('effRT Support'!$B113=0,\"\",'effRT Support'!$J113)","v":""},{"$f":"IF('effRT Support'!$B113=0,\"\",\"Annual Hours of Operation\")","v":""},{"$f":"IF('effRT Support'!$B113=0,\"\",'effRT Support'!$K113)","v":""},{"$f":"IF('effRT Support'!$B113=0,\"\",\"Installed Fixture Description\")","v":""},{"$f":"IF('effRT Support'!$B113=0,\"\",'effRT Support'!$M113)","v":""},{"$f":"IF('effRT Support'!$B113=0,\"\",\"Installed Fixture Wattage\")","v":""},{"$f":"IF('effRT Support'!$B113=0,\"\",'effRT Support'!$O113)","v":""},{"$f":"IF('effRT Support'!$B113=0,\"\",\"Material Cost\")","v":""},{"$f":"IF('effRT Support'!$B113=0,\"\",'effRT Support'!$R113)","v":""},{"$f":"IF('effRT Support'!$B113=0,\"\",\"Labor Cost\")","v":""},{"$f":"IF('effRT Support'!$B113=0,\"\",'effRT Support'!$S113)","v":""},{"$f":"IF('effRT Support'!$B113=0,\"\",\"Ancillary Costs - Measure Specific\")","v":""},{"$f":"IF('effRT Support'!$B113=0,\"\",'effRT Support'!$T113)","v":""},{"$f":"IF('effRT Support'!$B113=0,\"\",\"Fuel Type\")","v":""},{"$f":"IF('effRT Support'!$B113=0,\"\",'Project Information'!$D$44)","v":""},{"$f":"IF('effRT Support'!$B113=0,\"\",\"Installed Fixture Quantity\")","v":""},{"$f":"IF('effRT Support'!$B113=0,\"\",'effRT Support'!P112)","v":""}]
[{"$f":"IF('effRT Support'!$B114=0,\"\",IF('Project Information'!$D$33=\"Small Business\",\"SBL\",\"CILS\"))","v":""},{"$f":"IF('effRT Support'!$B114=0,\"\",IF('Project Information'!$K$2=\"\",\"\",'Project Information'!$K$2))","v":""},null,{"$f":"IF('effRT Support'!$B114=0,\"\",IF('Project Information'!$D$46=\"\",\"\",'Project Information'!$D$46))","v":""},{"$f":"IF('effRT Support'!$B114=0,\"\",IF('Project Information'!$D$20=\"\",\"\",VLOOKUP('Project Information'!$D$20,'Other Data'!$B$159:$E$189,4,FALSE)))","v":""},{"$f":"IF('effRT Support'!$B114=0,\"\",IF('Project Information'!$D$31=\"\",\"\",'Project Information'!$D$31))","v":""},{"$f":"IF('effRT Support'!$B114=0,\"\",IF('Project Information'!$D$5=\"\",\"\",'Project Information'!$D$5))","v":""},null,null,{"$f":"IF('effRT Support'!$B114=0,\"\",IF('Project Information'!$D$20=\"\",\"\",VLOOKUP('Project Information'!$D$20,'Other Data'!$B$159:$E$189,2,FALSE)))","v":""},{"$f":"IF('effRT Support'!$B114=0,\"\",IF('Project Information'!$D$20=\"\",\"\",VLOOKUP('Project Information'!$D$20,'Other Data'!$B$159:$E$189,3,FALSE)))","v":""},{"$f":"IF('effRT Support'!$B114=0,\"\",\"Existing\")","v":""},null,{"$f":"IF('effRT Support'!$B114=0,\"\",IF('Project Information'!$D$21=\"\",\"\",'Project Information'!$D$21))","v":""},{"$f":"IF('effRT Support'!$B114=0,\"\",IF('Project Information'!$D$48=\"\",\"\",'Project Information'!$D$48))","v":""},{"$f":"IF('effRT Support'!$B114=0,\"\",\"\")","v":""},{"$f":"IF('effRT Support'!$B114=0,\"\",\"\")","v":""},{"$f":"IF('effRT Support'!$B114=0,\"\",\"\")","v":""},{"$f":"IF('effRT Support'!$B114=0,\"\",\"\")","v":""},{"$f":"IF('effRT Support'!$B114=0,\"\",IF('Project Information'!$D$13=\"\",\"\",'Project Information'!$D$13))","v":""},{"$f":"IF('effRT Support'!$B114=0,\"\",IF('Project Information'!$E$13=\"\",\"\",'Project Information'!$E$13))","v":""},{"$f":"IF('effRT Support'!$B114=0,\"\",IF('Project Information'!$D$14=\"\",\"\",'Project Information'!$D$14))","v":""},{"$f":"IF('effRT Support'!$B114=0,\"\",IF('Project Information'!$D$15=\"\",\"\",'Project Information'!$D$15))","v":""},{"$f":"IF('effRT Support'!$B114=0,\"\",IF('Project Information'!$D$16=\"\",\"\",'Project Information'!$D$16))","v":""},null,{"$f":"IF('effRT Support'!$B114=0,\"\",'Project Information'!$D$18)","v":""},{"$f":"IF('effRT Support'!$B114=0,\"\",IF('Project Information'!$D$23=\"\",\"\",'Project Information'!$D$23))","v":""},{"$f":"IF('effRT Support'!$B114=0,\"\",IF('Project Information'!$D$24=\"\",\"\",'Project Information'!$D$24))","v":""},{"$f":"IF('effRT Support'!$B114=0,\"\",IF('Project Information'!$D$25=\"\",\"\",'Project Information'!$D$25))","v":""},{"$f":"IF('effRT Support'!$B114=0,\"\",IF('Project Information'!$E$25=\"\",\"\",'Project Information'!$E$25))","v":""},{"$f":"IF('effRT Support'!$B114=0,\"\",IF('Project Information'!$F$25=\"\",\"\",'Project Information'!$F$25))","v":""},{"$f":"IF('effRT Support'!$B114=0,\"\",IF('Project Information'!$D$27=\"\",\"Y\",\"N\"))","v":""},{"$f":"IF('effRT Support'!$B114=0,\"\",IF('Project Information'!$D$27=\"\",\"\",'Project Information'!$D$27))","v":""},{"$f":"IF('effRT Support'!$B114=0,\"\",IF('Project Information'!$D$28=\"\",\"\",'Project Information'!$D$28))","v":""},{"$f":"IF('effRT Support'!$B114=0,\"\",IF('Project Information'!$D$29=\"\",\"\",'Project Information'!$D$29))","v":""},{"$f":"IF('effRT Support'!$B114=0,\"\",IF('Project Information'!$E$29=\"\",\"\",'Project Information'!$E$29))","v":""},{"$f":"IF('effRT Support'!$B114=0,\"\",IF('Project Information'!$F$29=\"\",\"\",'Project Information'!$F$29))","v":""},{"$f":"IF('effRT Support'!$B114=0,\"\",\"\")","v":""},{"$f":"IF('effRT Support'!$B114=0,\"\",\"\")","v":""},{"$f":"IF('effRT Support'!$B114=0,\"\",IF('Project Information'!$D$36=\"\",\"\",'Project Information'!$D$36))","v":""},{"$f":"IF('effRT Support'!$B114=0,\"\",IF('Project Information'!$D$42=\"\",\"\",'Project Information'!$D$42))","v":""},{"$f":"IF('effRT Support'!$B114=0,\"\",'effRT Support'!$D114)","v":""},{"$f":"IF('effRT Support'!$B114=0,\"\",'effRT Support'!$L114)","v":""},{"$f":"IF('effRT Support'!$B114=0,\"\",'effRT Support'!$N114)","v":""},null,null,{"$f":"IF('effRT Support'!$B114=0,\"\",'effRT Support'!$P114)","v":""},{"$f":"IF('effRT Support'!$B114=0,\"\",'effRT Support'!$Q114)","v":""},{"$f":"IF('effRT Support'!$B114=0,\"\",'effRT Support'!U114)","v":""},{"$f":"IF('effRT Support'!$B114=0,\"\",'effRT Support'!V114)","v":""},{"$f":"IF('effRT Support'!$B114=0,\"\",'effRT Support'!W114)","v":""},{"$f":"IF('effRT Support'!$B114=0,\"\",'effRT Support'!X114)","v":""},{"$f":"IF('effRT Support'!$B114=0,\"\",'effRT Support'!Y114)","v":""},{"$f":"IF('effRT Support'!$B114=0,\"\",'effRT Support'!Z114*10)","v":""},{"$f":"IF('effRT Support'!$B114=0,\"\",'effRT Support'!AA114)","v":""},{"$f":"IF('effRT Support'!$B114=0,\"\",'effRT Support'!AB114)","v":""},{"$f":"IF('effRT Support'!$B114=0,\"\",'effRT Support'!AC114)","v":""},{"$f":"IF('effRT Support'!$B114=0,\"\",'effRT Support'!AD114)","v":""},{"$f":"IF('effRT Support'!$B114=0,\"\",'effRT Support'!AE114)","v":""},{"$f":"IF('effRT Support'!$B114=0,\"\",\"Hours Actual or Deemed\")","v":""},{"$f":"IF('effRT Support'!$B114=0,\"\",'effRT Support'!$F114)","v":""},{"$f":"IF('effRT Support'!$B114=0,\"\",\"Wattage Actual or Deemed\")","v":""},{"$f":"IF('effRT Support'!$B114=0,\"\",IF('Project Information'!$D$33=\"Pay For Performance\",\"Actual\",\"Deemed\"))","v":""},{"$f":"IF('effRT Support'!$B114=0,\"\",\"Cost Actual or Deemed\")","v":""},{"$f":"IF('effRT Support'!$B114=0,\"\",IF('Project Information'!$D$33=\"Pay For Performance\",\"Actual\",\"Deemed\"))","v":""},{"$f":"IF('effRT Support'!$B114=0,\"\",\"Location\")","v":""},{"$f":"IF('effRT Support'!$B114=0,\"\",'effRT Support'!$E114)","v":""},{"$f":"IF('effRT Support'!$B114=0,\"\",\"Space Type\")","v":""},{"$f":"IF('effRT Support'!$B114=0,\"\",'effRT Support'!$G114)","v":""},{"$f":"IF('effRT Support'!$B114=0,\"\",\"Existing Fixture Description\")","v":""},{"$f":"IF('effRT Support'!$B114=0,\"\",'effRT Support'!$H114)","v":""},{"$f":"IF('effRT Support'!$B114=0,\"\",\"Existing Fixture Quantity\")","v":""},{"$f":"IF('effRT Support'!$B114=0,\"\",'effRT Support'!$I114)","v":""},{"$f":"IF('effRT Support'!$B114=0,\"\",\"Existing Fixture Wattage\")","v":""},{"$f":"IF('effRT Support'!$B114=0,\"\",'effRT Support'!$J114)","v":""},{"$f":"IF('effRT Support'!$B114=0,\"\",\"Annual Hours of Operation\")","v":""},{"$f":"IF('effRT Support'!$B114=0,\"\",'effRT Support'!$K114)","v":""},{"$f":"IF('effRT Support'!$B114=0,\"\",\"Installed Fixture Description\")","v":""},{"$f":"IF('effRT Support'!$B114=0,\"\",'effRT Support'!$M114)","v":""},{"$f":"IF('effRT Support'!$B114=0,\"\",\"Installed Fixture Wattage\")","v":""},{"$f":"IF('effRT Support'!$B114=0,\"\",'effRT Support'!$O114)","v":""},{"$f":"IF('effRT Support'!$B114=0,\"\",\"Material Cost\")","v":""},{"$f":"IF('effRT Support'!$B114=0,\"\",'effRT Support'!$R114)","v":""},{"$f":"IF('effRT Support'!$B114=0,\"\",\"Labor Cost\")","v":""},{"$f":"IF('effRT Support'!$B114=0,\"\",'effRT Support'!$S114)","v":""},{"$f":"IF('effRT Support'!$B114=0,\"\",\"Ancillary Costs - Measure Specific\")","v":""},{"$f":"IF('effRT Support'!$B114=0,\"\",'effRT Support'!$T114)","v":""},{"$f":"IF('effRT Support'!$B114=0,\"\",\"Fuel Type\")","v":""},{"$f":"IF('effRT Support'!$B114=0,\"\",'Project Information'!$D$44)","v":""}]
[{"$f":"IF('effRT Support'!$B115=0,\"\",IF('Project Information'!$D$33=\"Small Business\",\"SBL\",\"CILS\"))","v":""},{"$f":"IF('effRT Support'!$B115=0,\"\",IF('Project Information'!$K$2=\"\",\"\",'Project Information'!$K$2))","v":""},null,{"$f":"IF('effRT Support'!$B115=0,\"\",IF('Project Information'!$D$46=\"\",\"\",'Project Information'!$D$46))","v":""},{"$f":"IF('effRT Support'!$B115=0,\"\",IF('Project Information'!$D$20=\"\",\"\",VLOOKUP('Project Information'!$D$20,'Other Data'!$B$159:$E$189,4,FALSE)))","v":""},{"$f":"IF('effRT Support'!$B115=0,\"\",IF('Project Information'!$D$31=\"\",\"\",'Project Information'!$D$31))","v":""},{"$f":"IF('effRT Support'!$B115=0,\"\",IF('Project Information'!$D$5=\"\",\"\",'Project Information'!$D$5))","v":""},null,null,{"$f":"IF('effRT Support'!$B115=0,\"\",IF('Project Information'!$D$20=\"\",\"\",VLOOKUP('Project Information'!$D$20,'Other Data'!$B$159:$E$189,2,FALSE)))","v":""},{"$f":"IF('effRT Support'!$B115=0,\"\",IF('Project Information'!$D$20=\"\",\"\",VLOOKUP('Project Information'!$D$20,'Other Data'!$B$159:$E$189,3,FALSE)))","v":""},{"$f":"IF('effRT Support'!$B115=0,\"\",\"Existing\")","v":""},null,{"$f":"IF('effRT Support'!$B115=0,\"\",IF('Project Information'!$D$21=\"\",\"\",'Project Information'!$D$21))","v":""},{"$f":"IF('effRT Support'!$B115=0,\"\",IF('Project Information'!$D$48=\"\",\"\",'Project Information'!$D$48))","v":""},{"$f":"IF('effRT Support'!$B115=0,\"\",\"\")","v":""},{"$f":"IF('effRT Support'!$B115=0,\"\",\"\")","v":""},{"$f":"IF('effRT Support'!$B115=0,\"\",\"\")","v":""},{"$f":"IF('effRT Support'!$B115=0,\"\",\"\")","v":""},{"$f":"IF('effRT Support'!$B115=0,\"\",IF('Project Information'!$D$13=\"\",\"\",'Project Information'!$D$13))","v":""},{"$f":"IF('effRT Support'!$B115=0,\"\",IF('Project Information'!$E$13=\"\",\"\",'Project Information'!$E$13))","v":""},{"$f":"IF('effRT Support'!$B115=0,\"\",IF('Project Information'!$D$14=\"\",\"\",'Project Information'!$D$14))","v":""},{"$f":"IF('effRT Support'!$B115=0,\"\",IF('Project Information'!$D$15=\"\",\"\",'Project Information'!$D$15))","v":""},{"$f":"IF('effRT Support'!$B115=0,\"\",IF('Project Information'!$D$16=\"\",\"\",'Project Information'!$D$16))","v":""},null,{"$f":"IF('effRT Support'!$B115=0,\"\",'Project Information'!$D$18)","v":""},{"$f":"IF('effRT Support'!$B115=0,\"\",IF('Project Information'!$D$23=\"\",\"\",'Project Information'!$D$23))","v":""},{"$f":"IF('effRT Support'!$B115=0,\"\",IF('Project Information'!$D$24=\"\",\"\",'Project Information'!$D$24))","v":""},{"$f":"IF('effRT Support'!$B115=0,\"\",IF('Project Information'!$D$25=\"\",\"\",'Project Information'!$D$25))","v":""},{"$f":"IF('effRT Support'!$B115=0,\"\",IF('Project Information'!$E$25=\"\",\"\",'Project Information'!$E$25))","v":""},{"$f":"IF('effRT Support'!$B115=0,\"\",IF('Project Information'!$F$25=\"\",\"\",'Project Information'!$F$25))","v":""},{"$f":"IF('effRT Support'!$B115=0,\"\",IF('Project Information'!$D$27=\"\",\"Y\",\"N\"))","v":""},{"$f":"IF('effRT Support'!$B115=0,\"\",IF('Project Information'!$D$27=\"\",\"\",'Project Information'!$D$27))","v":""},{"$f":"IF('effRT Support'!$B115=0,\"\",IF('Project Information'!$D$28=\"\",\"\",'Project Information'!$D$28))","v":""},{"$f":"IF('effRT Support'!$B115=0,\"\",IF('Project Information'!$D$29=\"\",\"\",'Project Information'!$D$29))","v":""},{"$f":"IF('effRT Support'!$B115=0,\"\",IF('Project Information'!$E$29=\"\",\"\",'Project Information'!$E$29))","v":""},{"$f":"IF('effRT Support'!$B115=0,\"\",IF('Project Information'!$F$29=\"\",\"\",'Project Information'!$F$29))","v":""},{"$f":"IF('effRT Support'!$B115=0,\"\",\"\")","v":""},{"$f":"IF('effRT Support'!$B115=0,\"\",\"\")","v":""},{"$f":"IF('effRT Support'!$B115=0,\"\",IF('Project Information'!$D$36=\"\",\"\",'Project Information'!$D$36))","v":""},{"$f":"IF('effRT Support'!$B115=0,\"\",IF('Project Information'!$D$42=\"\",\"\",'Project Information'!$D$42))","v":""},{"$f":"IF('effRT Support'!$B115=0,\"\",'effRT Support'!$D115)","v":""},{"$f":"IF('effRT Support'!$B115=0,\"\",'effRT Support'!$L115)","v":""},{"$f":"IF('effRT Support'!$B115=0,\"\",'effRT Support'!$N115)","v":""},null,null,{"$f":"IF('effRT Support'!$B115=0,\"\",'effRT Support'!$P115)","v":""},{"$f":"IF('effRT Support'!$B115=0,\"\",'effRT Support'!$Q115)","v":""},{"$f":"IF('effRT Support'!$B115=0,\"\",'effRT Support'!U115)","v":""},{"$f":"IF('effRT Support'!$B115=0,\"\",'effRT Support'!V115)","v":""},{"$f":"IF('effRT Support'!$B115=0,\"\",'effRT Support'!W115)","v":""},{"$f":"IF('effRT Support'!$B115=0,\"\",'effRT Support'!X115)","v":""},{"$f":"IF('effRT Support'!$B115=0,\"\",'effRT Support'!Y115)","v":""},{"$f":"IF('effRT Support'!$B115=0,\"\",'effRT Support'!Z115*10)","v":""},{"$f":"IF('effRT Support'!$B115=0,\"\",'effRT Support'!AA115)","v":""},{"$f":"IF('effRT Support'!$B115=0,\"\",'effRT Support'!AB115)","v":""},{"$f":"IF('effRT Support'!$B115=0,\"\",'effRT Support'!AC115)","v":""},{"$f":"IF('effRT Support'!$B115=0,\"\",'effRT Support'!AD115)","v":""},{"$f":"IF('effRT Support'!$B115=0,\"\",'effRT Support'!AE115)","v":""},{"$f":"IF('effRT Support'!$B115=0,\"\",\"Hours Actual or Deemed\")","v":""},{"$f":"IF('effRT Support'!$B115=0,\"\",'effRT Support'!$F115)","v":""},{"$f":"IF('effRT Support'!$B115=0,\"\",\"Wattage Actual or Deemed\")","v":""},{"$f":"IF('effRT Support'!$B115=0,\"\",IF('Project Information'!$D$33=\"Pay For Performance\",\"Actual\",\"Deemed\"))","v":""},{"$f":"IF('effRT Support'!$B115=0,\"\",\"Cost Actual or Deemed\")","v":""},{"$f":"IF('effRT Support'!$B115=0,\"\",IF('Project Information'!$D$33=\"Pay For Performance\",\"Actual\",\"Deemed\"))","v":""},{"$f":"IF('effRT Support'!$B115=0,\"\",\"Location\")","v":""},{"$f":"IF('effRT Support'!$B115=0,\"\",'effRT Support'!$E115)","v":""},{"$f":"IF('effRT Support'!$B115=0,\"\",\"Space Type\")","v":""},{"$f":"IF('effRT Support'!$B115=0,\"\",'effRT Support'!$G115)","v":""},{"$f":"IF('effRT Support'!$B115=0,\"\",\"Existing Fixture Description\")","v":""},{"$f":"IF('effRT Support'!$B115=0,\"\",'effRT Support'!$H115)","v":""},{"$f":"IF('effRT Support'!$B115=0,\"\",\"Existing Fixture Quantity\")","v":""},{"$f":"IF('effRT Support'!$B115=0,\"\",'effRT Support'!$I115)","v":""},{"$f":"IF('effRT Support'!$B115=0,\"\",\"Existing Fixture Wattage\")","v":""},{"$f":"IF('effRT Support'!$B115=0,\"\",'effRT Support'!$J115)","v":""},{"$f":"IF('effRT Support'!$B115=0,\"\",\"Annual Hours of Operation\")","v":""},{"$f":"IF('effRT Support'!$B115=0,\"\",'effRT Support'!$K115)","v":""},{"$f":"IF('effRT Support'!$B115=0,\"\",\"Installed Fixture Description\")","v":""},{"$f":"IF('effRT Support'!$B115=0,\"\",'effRT Support'!$M115)","v":""},{"$f":"IF('effRT Support'!$B115=0,\"\",\"Installed Fixture Wattage\")","v":""},{"$f":"IF('effRT Support'!$B115=0,\"\",'effRT Support'!$O115)","v":""},{"$f":"IF('effRT Support'!$B115=0,\"\",\"Material Cost\")","v":""},{"$f":"IF('effRT Support'!$B115=0,\"\",'effRT Support'!$R115)","v":""},{"$f":"IF('effRT Support'!$B115=0,\"\",\"Labor Cost\")","v":""},{"$f":"IF('effRT Support'!$B115=0,\"\",'effRT Support'!$S115)","v":""},{"$f":"IF('effRT Support'!$B115=0,\"\",\"Ancillary Costs - Measure Specific\")","v":""},{"$f":"IF('effRT Support'!$B115=0,\"\",'effRT Support'!$T115)","v":""},{"$f":"IF('effRT Support'!$B115=0,\"\",\"Fuel Type\")","v":""},{"$f":"IF('effRT Support'!$B115=0,\"\",'Project Information'!$D$44)","v":""},{"$f":"IF('effRT Support'!$B115=0,\"\",\"Installed Fixture Quantity\")","v":""},{"$f":"IF('effRT Support'!$B115=0,\"\",'effRT Support'!P114)","v":""}]
[{"$f":"IF('effRT Support'!$B116=0,\"\",IF('Project Information'!$D$33=\"Small Business\",\"SBL\",\"CILS\"))","v":""},{"$f":"IF('effRT Support'!$B116=0,\"\",IF('Project Information'!$K$2=\"\",\"\",'Project Information'!$K$2))","v":""},null,{"$f":"IF('effRT Support'!$B116=0,\"\",IF('Project Information'!$D$46=\"\",\"\",'Project Information'!$D$46))","v":""},{"$f":"IF('effRT Support'!$B116=0,\"\",IF('Project Information'!$D$20=\"\",\"\",VLOOKUP('Project Information'!$D$20,'Other Data'!$B$159:$E$189,4,FALSE)))","v":""},{"$f":"IF('effRT Support'!$B116=0,\"\",IF('Project Information'!$D$31=\"\",\"\",'Project Information'!$D$31))","v":""},{"$f":"IF('effRT Support'!$B116=0,\"\",IF('Project Information'!$D$5=\"\",\"\",'Project Information'!$D$5))","v":""},null,null,{"$f":"IF('effRT Support'!$B116=0,\"\",IF('Project Information'!$D$20=\"\",\"\",VLOOKUP('Project Information'!$D$20,'Other Data'!$B$159:$E$189,2,FALSE)))","v":""},{"$f":"IF('effRT Support'!$B116=0,\"\",IF('Project Information'!$D$20=\"\",\"\",VLOOKUP('Project Information'!$D$20,'Other Data'!$B$159:$E$189,3,FALSE)))","v":""},{"$f":"IF('effRT Support'!$B116=0,\"\",\"Existing\")","v":""},null,{"$f":"IF('effRT Support'!$B116=0,\"\",IF('Project Information'!$D$21=\"\",\"\",'Project Information'!$D$21))","v":""},{"$f":"IF('effRT Support'!$B116=0,\"\",IF('Project Information'!$D$48=\"\",\"\",'Project Information'!$D$48))","v":""},{"$f":"IF('effRT Support'!$B116=0,\"\",\"\")","v":""},{"$f":"IF('effRT Support'!$B116=0,\"\",\"\")","v":""},{"$f":"IF('effRT Support'!$B116=0,\"\",\"\")","v":""},{"$f":"IF('effRT Support'!$B116=0,\"\",\"\")","v":""},{"$f":"IF('effRT Support'!$B116=0,\"\",IF('Project Information'!$D$13=\"\",\"\",'Project Information'!$D$13))","v":""},{"$f":"IF('effRT Support'!$B116=0,\"\",IF('Project Information'!$E$13=\"\",\"\",'Project Information'!$E$13))","v":""},{"$f":"IF('effRT Support'!$B116=0,\"\",IF('Project Information'!$D$14=\"\",\"\",'Project Information'!$D$14))","v":""},{"$f":"IF('effRT Support'!$B116=0,\"\",IF('Project Information'!$D$15=\"\",\"\",'Project Information'!$D$15))","v":""},{"$f":"IF('effRT Support'!$B116=0,\"\",IF('Project Information'!$D$16=\"\",\"\",'Project Information'!$D$16))","v":""},null,{"$f":"IF('effRT Support'!$B116=0,\"\",'Project Information'!$D$18)","v":""},{"$f":"IF('effRT Support'!$B116=0,\"\",IF('Project Information'!$D$23=\"\",\"\",'Project Information'!$D$23))","v":""},{"$f":"IF('effRT Support'!$B116=0,\"\",IF('Project Information'!$D$24=\"\",\"\",'Project Information'!$D$24))","v":""},{"$f":"IF('effRT Support'!$B116=0,\"\",IF('Project Information'!$D$25=\"\",\"\",'Project Information'!$D$25))","v":""},{"$f":"IF('effRT Support'!$B116=0,\"\",IF('Project Information'!$E$25=\"\",\"\",'Project Information'!$E$25))","v":""},{"$f":"IF('effRT Support'!$B116=0,\"\",IF('Project Information'!$F$25=\"\",\"\",'Project Information'!$F$25))","v":""},{"$f":"IF('effRT Support'!$B116=0,\"\",IF('Project Information'!$D$27=\"\",\"Y\",\"N\"))","v":""},{"$f":"IF('effRT Support'!$B116=0,\"\",IF('Project Information'!$D$27=\"\",\"\",'Project Information'!$D$27))","v":""},{"$f":"IF('effRT Support'!$B116=0,\"\",IF('Project Information'!$D$28=\"\",\"\",'Project Information'!$D$28))","v":""},{"$f":"IF('effRT Support'!$B116=0,\"\",IF('Project Information'!$D$29=\"\",\"\",'Project Information'!$D$29))","v":""},{"$f":"IF('effRT Support'!$B116=0,\"\",IF('Project Information'!$E$29=\"\",\"\",'Project Information'!$E$29))","v":""},{"$f":"IF('effRT Support'!$B116=0,\"\",IF('Project Information'!$F$29=\"\",\"\",'Project Information'!$F$29))","v":""},{"$f":"IF('effRT Support'!$B116=0,\"\",\"\")","v":""},{"$f":"IF('effRT Support'!$B116=0,\"\",\"\")","v":""},{"$f":"IF('effRT Support'!$B116=0,\"\",IF('Project Information'!$D$36=\"\",\"\",'Project Information'!$D$36))","v":""},{"$f":"IF('effRT Support'!$B116=0,\"\",IF('Project Information'!$D$42=\"\",\"\",'Project Information'!$D$42))","v":""},{"$f":"IF('effRT Support'!$B116=0,\"\",'effRT Support'!$D116)","v":""},{"$f":"IF('effRT Support'!$B116=0,\"\",'effRT Support'!$L116)","v":""},{"$f":"IF('effRT Support'!$B116=0,\"\",'effRT Support'!$N116)","v":""},null,null,{"$f":"IF('effRT Support'!$B116=0,\"\",'effRT Support'!$P116)","v":""},{"$f":"IF('effRT Support'!$B116=0,\"\",'effRT Support'!$Q116)","v":""},{"$f":"IF('effRT Support'!$B116=0,\"\",'effRT Support'!U116)","v":""},{"$f":"IF('effRT Support'!$B116=0,\"\",'effRT Support'!V116)","v":""},{"$f":"IF('effRT Support'!$B116=0,\"\",'effRT Support'!W116)","v":""},{"$f":"IF('effRT Support'!$B116=0,\"\",'effRT Support'!X116)","v":""},{"$f":"IF('effRT Support'!$B116=0,\"\",'effRT Support'!Y116)","v":""},{"$f":"IF('effRT Support'!$B116=0,\"\",'effRT Support'!Z116*10)","v":""},{"$f":"IF('effRT Support'!$B116=0,\"\",'effRT Support'!AA116)","v":""},{"$f":"IF('effRT Support'!$B116=0,\"\",'effRT Support'!AB116)","v":""},{"$f":"IF('effRT Support'!$B116=0,\"\",'effRT Support'!AC116)","v":""},{"$f":"IF('effRT Support'!$B116=0,\"\",'effRT Support'!AD116)","v":""},{"$f":"IF('effRT Support'!$B116=0,\"\",'effRT Support'!AE116)","v":""},{"$f":"IF('effRT Support'!$B116=0,\"\",\"Hours Actual or Deemed\")","v":""},{"$f":"IF('effRT Support'!$B116=0,\"\",'effRT Support'!$F116)","v":""},{"$f":"IF('effRT Support'!$B116=0,\"\",\"Wattage Actual or Deemed\")","v":""},{"$f":"IF('effRT Support'!$B116=0,\"\",IF('Project Information'!$D$33=\"Pay For Performance\",\"Actual\",\"Deemed\"))","v":""},{"$f":"IF('effRT Support'!$B116=0,\"\",\"Cost Actual or Deemed\")","v":""},{"$f":"IF('effRT Support'!$B116=0,\"\",IF('Project Information'!$D$33=\"Pay For Performance\",\"Actual\",\"Deemed\"))","v":""},{"$f":"IF('effRT Support'!$B116=0,\"\",\"Location\")","v":""},{"$f":"IF('effRT Support'!$B116=0,\"\",'effRT Support'!$E116)","v":""},{"$f":"IF('effRT Support'!$B116=0,\"\",\"Space Type\")","v":""},{"$f":"IF('effRT Support'!$B116=0,\"\",'effRT Support'!$G116)","v":""},{"$f":"IF('effRT Support'!$B116=0,\"\",\"Existing Fixture Description\")","v":""},{"$f":"IF('effRT Support'!$B116=0,\"\",'effRT Support'!$H116)","v":""},{"$f":"IF('effRT Support'!$B116=0,\"\",\"Existing Fixture Quantity\")","v":""},{"$f":"IF('effRT Support'!$B116=0,\"\",'effRT Support'!$I116)","v":""},{"$f":"IF('effRT Support'!$B116=0,\"\",\"Existing Fixture Wattage\")","v":""},{"$f":"IF('effRT Support'!$B116=0,\"\",'effRT Support'!$J116)","v":""},{"$f":"IF('effRT Support'!$B116=0,\"\",\"Annual Hours of Operation\")","v":""},{"$f":"IF('effRT Support'!$B116=0,\"\",'effRT Support'!$K116)","v":""},{"$f":"IF('effRT Support'!$B116=0,\"\",\"Installed Fixture Description\")","v":""},{"$f":"IF('effRT Support'!$B116=0,\"\",'effRT Support'!$M116)","v":""},{"$f":"IF('effRT Support'!$B116=0,\"\",\"Installed Fixture Wattage\")","v":""},{"$f":"IF('effRT Support'!$B116=0,\"\",'effRT Support'!$O116)","v":""},{"$f":"IF('effRT Support'!$B116=0,\"\",\"Material Cost\")","v":""},{"$f":"IF('effRT Support'!$B116=0,\"\",'effRT Support'!$R116)","v":""},{"$f":"IF('effRT Support'!$B116=0,\"\",\"Labor Cost\")","v":""},{"$f":"IF('effRT Support'!$B116=0,\"\",'effRT Support'!$S116)","v":""},{"$f":"IF('effRT Support'!$B116=0,\"\",\"Ancillary Costs - Measure Specific\")","v":""},{"$f":"IF('effRT Support'!$B116=0,\"\",'effRT Support'!$T116)","v":""},{"$f":"IF('effRT Support'!$B116=0,\"\",\"Fuel Type\")","v":""},{"$f":"IF('effRT Support'!$B116=0,\"\",'Project Information'!$D$44)","v":""}]
[{"$f":"IF('effRT Support'!$B117=0,\"\",IF('Project Information'!$D$33=\"Small Business\",\"SBL\",\"CILS\"))","v":""},{"$f":"IF('effRT Support'!$B117=0,\"\",IF('Project Information'!$K$2=\"\",\"\",'Project Information'!$K$2))","v":""},null,{"$f":"IF('effRT Support'!$B117=0,\"\",IF('Project Information'!$D$46=\"\",\"\",'Project Information'!$D$46))","v":""},{"$f":"IF('effRT Support'!$B117=0,\"\",IF('Project Information'!$D$20=\"\",\"\",VLOOKUP('Project Information'!$D$20,'Other Data'!$B$159:$E$189,4,FALSE)))","v":""},{"$f":"IF('effRT Support'!$B117=0,\"\",IF('Project Information'!$D$31=\"\",\"\",'Project Information'!$D$31))","v":""},{"$f":"IF('effRT Support'!$B117=0,\"\",IF('Project Information'!$D$5=\"\",\"\",'Project Information'!$D$5))","v":""},null,null,{"$f":"IF('effRT Support'!$B117=0,\"\",IF('Project Information'!$D$20=\"\",\"\",VLOOKUP('Project Information'!$D$20,'Other Data'!$B$159:$E$189,2,FALSE)))","v":""},{"$f":"IF('effRT Support'!$B117=0,\"\",IF('Project Information'!$D$20=\"\",\"\",VLOOKUP('Project Information'!$D$20,'Other Data'!$B$159:$E$189,3,FALSE)))","v":""},{"$f":"IF('effRT Support'!$B117=0,\"\",\"Existing\")","v":""},null,{"$f":"IF('effRT Support'!$B117=0,\"\",IF('Project Information'!$D$21=\"\",\"\",'Project Information'!$D$21))","v":""},{"$f":"IF('effRT Support'!$B117=0,\"\",IF('Project Information'!$D$48=\"\",\"\",'Project Information'!$D$48))","v":""},{"$f":"IF('effRT Support'!$B117=0,\"\",\"\")","v":""},{"$f":"IF('effRT Support'!$B117=0,\"\",\"\")","v":""},{"$f":"IF('effRT Support'!$B117=0,\"\",\"\")","v":""},{"$f":"IF('effRT Support'!$B117=0,\"\",\"\")","v":""},{"$f":"IF('effRT Support'!$B117=0,\"\",IF('Project Information'!$D$13=\"\",\"\",'Project Information'!$D$13))","v":""},{"$f":"IF('effRT Support'!$B117=0,\"\",IF('Project Information'!$E$13=\"\",\"\",'Project Information'!$E$13))","v":""},{"$f":"IF('effRT Support'!$B117=0,\"\",IF('Project Information'!$D$14=\"\",\"\",'Project Information'!$D$14))","v":""},{"$f":"IF('effRT Support'!$B117=0,\"\",IF('Project Information'!$D$15=\"\",\"\",'Project Information'!$D$15))","v":""},{"$f":"IF('effRT Support'!$B117=0,\"\",IF('Project Information'!$D$16=\"\",\"\",'Project Information'!$D$16))","v":""},null,{"$f":"IF('effRT Support'!$B117=0,\"\",'Project Information'!$D$18)","v":""},{"$f":"IF('effRT Support'!$B117=0,\"\",IF('Project Information'!$D$23=\"\",\"\",'Project Information'!$D$23))","v":""},{"$f":"IF('effRT Support'!$B117=0,\"\",IF('Project Information'!$D$24=\"\",\"\",'Project Information'!$D$24))","v":""},{"$f":"IF('effRT Support'!$B117=0,\"\",IF('Project Information'!$D$25=\"\",\"\",'Project Information'!$D$25))","v":""},{"$f":"IF('effRT Support'!$B117=0,\"\",IF('Project Information'!$E$25=\"\",\"\",'Project Information'!$E$25))","v":""},{"$f":"IF('effRT Support'!$B117=0,\"\",IF('Project Information'!$F$25=\"\",\"\",'Project Information'!$F$25))","v":""},{"$f":"IF('effRT Support'!$B117=0,\"\",IF('Project Information'!$D$27=\"\",\"Y\",\"N\"))","v":""},{"$f":"IF('effRT Support'!$B117=0,\"\",IF('Project Information'!$D$27=\"\",\"\",'Project Information'!$D$27))","v":""},{"$f":"IF('effRT Support'!$B117=0,\"\",IF('Project Information'!$D$28=\"\",\"\",'Project Information'!$D$28))","v":""},{"$f":"IF('effRT Support'!$B117=0,\"\",IF('Project Information'!$D$29=\"\",\"\",'Project Information'!$D$29))","v":""},{"$f":"IF('effRT Support'!$B117=0,\"\",IF('Project Information'!$E$29=\"\",\"\",'Project Information'!$E$29))","v":""},{"$f":"IF('effRT Support'!$B117=0,\"\",IF('Project Information'!$F$29=\"\",\"\",'Project Information'!$F$29))","v":""},{"$f":"IF('effRT Support'!$B117=0,\"\",\"\")","v":""},{"$f":"IF('effRT Support'!$B117=0,\"\",\"\")","v":""},{"$f":"IF('effRT Support'!$B117=0,\"\",IF('Project Information'!$D$36=\"\",\"\",'Project Information'!$D$36))","v":""},{"$f":"IF('effRT Support'!$B117=0,\"\",IF('Project Information'!$D$42=\"\",\"\",'Project Information'!$D$42))","v":""},{"$f":"IF('effRT Support'!$B117=0,\"\",'effRT Support'!$D117)","v":""},{"$f":"IF('effRT Support'!$B117=0,\"\",'effRT Support'!$L117)","v":""},{"$f":"IF('effRT Support'!$B117=0,\"\",'effRT Support'!$N117)","v":""},null,null,{"$f":"IF('effRT Support'!$B117=0,\"\",'effRT Support'!$P117)","v":""},{"$f":"IF('effRT Support'!$B117=0,\"\",'effRT Support'!$Q117)","v":""},{"$f":"IF('effRT Support'!$B117=0,\"\",'effRT Support'!U117)","v":""},{"$f":"IF('effRT Support'!$B117=0,\"\",'effRT Support'!V117)","v":""},{"$f":"IF('effRT Support'!$B117=0,\"\",'effRT Support'!W117)","v":""},{"$f":"IF('effRT Support'!$B117=0,\"\",'effRT Support'!X117)","v":""},{"$f":"IF('effRT Support'!$B117=0,\"\",'effRT Support'!Y117)","v":""},{"$f":"IF('effRT Support'!$B117=0,\"\",'effRT Support'!Z117*10)","v":""},{"$f":"IF('effRT Support'!$B117=0,\"\",'effRT Support'!AA117)","v":""},{"$f":"IF('effRT Support'!$B117=0,\"\",'effRT Support'!AB117)","v":""},{"$f":"IF('effRT Support'!$B117=0,\"\",'effRT Support'!AC117)","v":""},{"$f":"IF('effRT Support'!$B117=0,\"\",'effRT Support'!AD117)","v":""},{"$f":"IF('effRT Support'!$B117=0,\"\",'effRT Support'!AE117)","v":""},{"$f":"IF('effRT Support'!$B117=0,\"\",\"Hours Actual or Deemed\")","v":""},{"$f":"IF('effRT Support'!$B117=0,\"\",'effRT Support'!$F117)","v":""},{"$f":"IF('effRT Support'!$B117=0,\"\",\"Wattage Actual or Deemed\")","v":""},{"$f":"IF('effRT Support'!$B117=0,\"\",IF('Project Information'!$D$33=\"Pay For Performance\",\"Actual\",\"Deemed\"))","v":""},{"$f":"IF('effRT Support'!$B117=0,\"\",\"Cost Actual or Deemed\")","v":""},{"$f":"IF('effRT Support'!$B117=0,\"\",IF('Project Information'!$D$33=\"Pay For Performance\",\"Actual\",\"Deemed\"))","v":""},{"$f":"IF('effRT Support'!$B117=0,\"\",\"Location\")","v":""},{"$f":"IF('effRT Support'!$B117=0,\"\",'effRT Support'!$E117)","v":""},{"$f":"IF('effRT Support'!$B117=0,\"\",\"Space Type\")","v":""},{"$f":"IF('effRT Support'!$B117=0,\"\",'effRT Support'!$G117)","v":""},{"$f":"IF('effRT Support'!$B117=0,\"\",\"Existing Fixture Description\")","v":""},{"$f":"IF('effRT Support'!$B117=0,\"\",'effRT Support'!$H117)","v":""},{"$f":"IF('effRT Support'!$B117=0,\"\",\"Existing Fixture Quantity\")","v":""},{"$f":"IF('effRT Support'!$B117=0,\"\",'effRT Support'!$I117)","v":""},{"$f":"IF('effRT Support'!$B117=0,\"\",\"Existing Fixture Wattage\")","v":""},{"$f":"IF('effRT Support'!$B117=0,\"\",'effRT Support'!$J117)","v":""},{"$f":"IF('effRT Support'!$B117=0,\"\",\"Annual Hours of Operation\")","v":""},{"$f":"IF('effRT Support'!$B117=0,\"\",'effRT Support'!$K117)","v":""},{"$f":"IF('effRT Support'!$B117=0,\"\",\"Installed Fixture Description\")","v":""},{"$f":"IF('effRT Support'!$B117=0,\"\",'effRT Support'!$M117)","v":""},{"$f":"IF('effRT Support'!$B117=0,\"\",\"Installed Fixture Wattage\")","v":""},{"$f":"IF('effRT Support'!$B117=0,\"\",'effRT Support'!$O117)","v":""},{"$f":"IF('effRT Support'!$B117=0,\"\",\"Material Cost\")","v":""},{"$f":"IF('effRT Support'!$B117=0,\"\",'effRT Support'!$R117)","v":""},{"$f":"IF('effRT Support'!$B117=0,\"\",\"Labor Cost\")","v":""},{"$f":"IF('effRT Support'!$B117=0,\"\",'effRT Support'!$S117)","v":""},{"$f":"IF('effRT Support'!$B117=0,\"\",\"Ancillary Costs - Measure Specific\")","v":""},{"$f":"IF('effRT Support'!$B117=0,\"\",'effRT Support'!$T117)","v":""},{"$f":"IF('effRT Support'!$B117=0,\"\",\"Fuel Type\")","v":""},{"$f":"IF('effRT Support'!$B117=0,\"\",'Project Information'!$D$44)","v":""},{"$f":"IF('effRT Support'!$B117=0,\"\",\"Installed Fixture Quantity\")","v":""},{"$f":"IF('effRT Support'!$B117=0,\"\",'effRT Support'!P116)","v":""}]
[{"$f":"IF('effRT Support'!$B118=0,\"\",IF('Project Information'!$D$33=\"Small Business\",\"SBL\",\"CILS\"))","v":""},{"$f":"IF('effRT Support'!$B118=0,\"\",IF('Project Information'!$K$2=\"\",\"\",'Project Information'!$K$2))","v":""},null,{"$f":"IF('effRT Support'!$B118=0,\"\",IF('Project Information'!$D$46=\"\",\"\",'Project Information'!$D$46))","v":""},{"$f":"IF('effRT Support'!$B118=0,\"\",IF('Project Information'!$D$20=\"\",\"\",VLOOKUP('Project Information'!$D$20,'Other Data'!$B$159:$E$189,4,FALSE)))","v":""},{"$f":"IF('effRT Support'!$B118=0,\"\",IF('Project Information'!$D$31=\"\",\"\",'Project Information'!$D$31))","v":""},{"$f":"IF('effRT Support'!$B118=0,\"\",IF('Project Information'!$D$5=\"\",\"\",'Project Information'!$D$5))","v":""},null,null,{"$f":"IF('effRT Support'!$B118=0,\"\",IF('Project Information'!$D$20=\"\",\"\",VLOOKUP('Project Information'!$D$20,'Other Data'!$B$159:$E$189,2,FALSE)))","v":""},{"$f":"IF('effRT Support'!$B118=0,\"\",IF('Project Information'!$D$20=\"\",\"\",VLOOKUP('Project Information'!$D$20,'Other Data'!$B$159:$E$189,3,FALSE)))","v":""},{"$f":"IF('effRT Support'!$B118=0,\"\",\"Existing\")","v":""},null,{"$f":"IF('effRT Support'!$B118=0,\"\",IF('Project Information'!$D$21=\"\",\"\",'Project Information'!$D$21))","v":""},{"$f":"IF('effRT Support'!$B118=0,\"\",IF('Project Information'!$D$48=\"\",\"\",'Project Information'!$D$48))","v":""},{"$f":"IF('effRT Support'!$B118=0,\"\",\"\")","v":""},{"$f":"IF('effRT Support'!$B118=0,\"\",\"\")","v":""},{"$f":"IF('effRT Support'!$B118=0,\"\",\"\")","v":""},{"$f":"IF('effRT Support'!$B118=0,\"\",\"\")","v":""},{"$f":"IF('effRT Support'!$B118=0,\"\",IF('Project Information'!$D$13=\"\",\"\",'Project Information'!$D$13))","v":""},{"$f":"IF('effRT Support'!$B118=0,\"\",IF('Project Information'!$E$13=\"\",\"\",'Project Information'!$E$13))","v":""},{"$f":"IF('effRT Support'!$B118=0,\"\",IF('Project Information'!$D$14=\"\",\"\",'Project Information'!$D$14))","v":""},{"$f":"IF('effRT Support'!$B118=0,\"\",IF('Project Information'!$D$15=\"\",\"\",'Project Information'!$D$15))","v":""},{"$f":"IF('effRT Support'!$B118=0,\"\",IF('Project Information'!$D$16=\"\",\"\",'Project Information'!$D$16))","v":""},null,{"$f":"IF('effRT Support'!$B118=0,\"\",'Project Information'!$D$18)","v":""},{"$f":"IF('effRT Support'!$B118=0,\"\",IF('Project Information'!$D$23=\"\",\"\",'Project Information'!$D$23))","v":""},{"$f":"IF('effRT Support'!$B118=0,\"\",IF('Project Information'!$D$24=\"\",\"\",'Project Information'!$D$24))","v":""},{"$f":"IF('effRT Support'!$B118=0,\"\",IF('Project Information'!$D$25=\"\",\"\",'Project Information'!$D$25))","v":""},{"$f":"IF('effRT Support'!$B118=0,\"\",IF('Project Information'!$E$25=\"\",\"\",'Project Information'!$E$25))","v":""},{"$f":"IF('effRT Support'!$B118=0,\"\",IF('Project Information'!$F$25=\"\",\"\",'Project Information'!$F$25))","v":""},{"$f":"IF('effRT Support'!$B118=0,\"\",IF('Project Information'!$D$27=\"\",\"Y\",\"N\"))","v":""},{"$f":"IF('effRT Support'!$B118=0,\"\",IF('Project Information'!$D$27=\"\",\"\",'Project Information'!$D$27))","v":""},{"$f":"IF('effRT Support'!$B118=0,\"\",IF('Project Information'!$D$28=\"\",\"\",'Project Information'!$D$28))","v":""},{"$f":"IF('effRT Support'!$B118=0,\"\",IF('Project Information'!$D$29=\"\",\"\",'Project Information'!$D$29))","v":""},{"$f":"IF('effRT Support'!$B118=0,\"\",IF('Project Information'!$E$29=\"\",\"\",'Project Information'!$E$29))","v":""},{"$f":"IF('effRT Support'!$B118=0,\"\",IF('Project Information'!$F$29=\"\",\"\",'Project Information'!$F$29))","v":""},{"$f":"IF('effRT Support'!$B118=0,\"\",\"\")","v":""},{"$f":"IF('effRT Support'!$B118=0,\"\",\"\")","v":""},{"$f":"IF('effRT Support'!$B118=0,\"\",IF('Project Information'!$D$36=\"\",\"\",'Project Information'!$D$36))","v":""},{"$f":"IF('effRT Support'!$B118=0,\"\",IF('Project Information'!$D$42=\"\",\"\",'Project Information'!$D$42))","v":""},{"$f":"IF('effRT Support'!$B118=0,\"\",'effRT Support'!$D118)","v":""},{"$f":"IF('effRT Support'!$B118=0,\"\",'effRT Support'!$L118)","v":""},{"$f":"IF('effRT Support'!$B118=0,\"\",'effRT Support'!$N118)","v":""},null,null,{"$f":"IF('effRT Support'!$B118=0,\"\",'effRT Support'!$P118)","v":""},{"$f":"IF('effRT Support'!$B118=0,\"\",'effRT Support'!$Q118)","v":""},{"$f":"IF('effRT Support'!$B118=0,\"\",'effRT Support'!U118)","v":""},{"$f":"IF('effRT Support'!$B118=0,\"\",'effRT Support'!V118)","v":""},{"$f":"IF('effRT Support'!$B118=0,\"\",'effRT Support'!W118)","v":""},{"$f":"IF('effRT Support'!$B118=0,\"\",'effRT Support'!X118)","v":""},{"$f":"IF('effRT Support'!$B118=0,\"\",'effRT Support'!Y118)","v":""},{"$f":"IF('effRT Support'!$B118=0,\"\",'effRT Support'!Z118*10)","v":""},{"$f":"IF('effRT Support'!$B118=0,\"\",'effRT Support'!AA118)","v":""},{"$f":"IF('effRT Support'!$B118=0,\"\",'effRT Support'!AB118)","v":""},{"$f":"IF('effRT Support'!$B118=0,\"\",'effRT Support'!AC118)","v":""},{"$f":"IF('effRT Support'!$B118=0,\"\",'effRT Support'!AD118)","v":""},{"$f":"IF('effRT Support'!$B118=0,\"\",'effRT Support'!AE118)","v":""},{"$f":"IF('effRT Support'!$B118=0,\"\",\"Hours Actual or Deemed\")","v":""},{"$f":"IF('effRT Support'!$B118=0,\"\",'effRT Support'!$F118)","v":""},{"$f":"IF('effRT Support'!$B118=0,\"\",\"Wattage Actual or Deemed\")","v":""},{"$f":"IF('effRT Support'!$B118=0,\"\",IF('Project Information'!$D$33=\"Pay For Performance\",\"Actual\",\"Deemed\"))","v":""},{"$f":"IF('effRT Support'!$B118=0,\"\",\"Cost Actual or Deemed\")","v":""},{"$f":"IF('effRT Support'!$B118=0,\"\",IF('Project Information'!$D$33=\"Pay For Performance\",\"Actual\",\"Deemed\"))","v":""},{"$f":"IF('effRT Support'!$B118=0,\"\",\"Location\")","v":""},{"$f":"IF('effRT Support'!$B118=0,\"\",'effRT Support'!$E118)","v":""},{"$f":"IF('effRT Support'!$B118=0,\"\",\"Space Type\")","v":""},{"$f":"IF('effRT Support'!$B118=0,\"\",'effRT Support'!$G118)","v":""},{"$f":"IF('effRT Support'!$B118=0,\"\",\"Existing Fixture Description\")","v":""},{"$f":"IF('effRT Support'!$B118=0,\"\",'effRT Support'!$H118)","v":""},{"$f":"IF('effRT Support'!$B118=0,\"\",\"Existing Fixture Quantity\")","v":""},{"$f":"IF('effRT Support'!$B118=0,\"\",'effRT Support'!$I118)","v":""},{"$f":"IF('effRT Support'!$B118=0,\"\",\"Existing Fixture Wattage\")","v":""},{"$f":"IF('effRT Support'!$B118=0,\"\",'effRT Support'!$J118)","v":""},{"$f":"IF('effRT Support'!$B118=0,\"\",\"Annual Hours of Operation\")","v":""},{"$f":"IF('effRT Support'!$B118=0,\"\",'effRT Support'!$K118)","v":""},{"$f":"IF('effRT Support'!$B118=0,\"\",\"Installed Fixture Description\")","v":""},{"$f":"IF('effRT Support'!$B118=0,\"\",'effRT Support'!$M118)","v":""},{"$f":"IF('effRT Support'!$B118=0,\"\",\"Installed Fixture Wattage\")","v":""},{"$f":"IF('effRT Support'!$B118=0,\"\",'effRT Support'!$O118)","v":""},{"$f":"IF('effRT Support'!$B118=0,\"\",\"Material Cost\")","v":""},{"$f":"IF('effRT Support'!$B118=0,\"\",'effRT Support'!$R118)","v":""},{"$f":"IF('effRT Support'!$B118=0,\"\",\"Labor Cost\")","v":""},{"$f":"IF('effRT Support'!$B118=0,\"\",'effRT Support'!$S118)","v":""},{"$f":"IF('effRT Support'!$B118=0,\"\",\"Ancillary Costs - Measure Specific\")","v":""},{"$f":"IF('effRT Support'!$B118=0,\"\",'effRT Support'!$T118)","v":""},{"$f":"IF('effRT Support'!$B118=0,\"\",\"Fuel Type\")","v":""},{"$f":"IF('effRT Support'!$B118=0,\"\",'Project Information'!$D$44)","v":""}]
[{"$f":"IF('effRT Support'!$B119=0,\"\",IF('Project Information'!$D$33=\"Small Business\",\"SBL\",\"CILS\"))","v":""},{"$f":"IF('effRT Support'!$B119=0,\"\",IF('Project Information'!$K$2=\"\",\"\",'Project Information'!$K$2))","v":""},null,{"$f":"IF('effRT Support'!$B119=0,\"\",IF('Project Information'!$D$46=\"\",\"\",'Project Information'!$D$46))","v":""},{"$f":"IF('effRT Support'!$B119=0,\"\",IF('Project Information'!$D$20=\"\",\"\",VLOOKUP('Project Information'!$D$20,'Other Data'!$B$159:$E$189,4,FALSE)))","v":""},{"$f":"IF('effRT Support'!$B119=0,\"\",IF('Project Information'!$D$31=\"\",\"\",'Project Information'!$D$31))","v":""},{"$f":"IF('effRT Support'!$B119=0,\"\",IF('Project Information'!$D$5=\"\",\"\",'Project Information'!$D$5))","v":""},null,null,{"$f":"IF('effRT Support'!$B119=0,\"\",IF('Project Information'!$D$20=\"\",\"\",VLOOKUP('Project Information'!$D$20,'Other Data'!$B$159:$E$189,2,FALSE)))","v":""},{"$f":"IF('effRT Support'!$B119=0,\"\",IF('Project Information'!$D$20=\"\",\"\",VLOOKUP('Project Information'!$D$20,'Other Data'!$B$159:$E$189,3,FALSE)))","v":""},{"$f":"IF('effRT Support'!$B119=0,\"\",\"Existing\")","v":""},null,{"$f":"IF('effRT Support'!$B119=0,\"\",IF('Project Information'!$D$21=\"\",\"\",'Project Information'!$D$21))","v":""},{"$f":"IF('effRT Support'!$B119=0,\"\",IF('Project Information'!$D$48=\"\",\"\",'Project Information'!$D$48))","v":""},{"$f":"IF('effRT Support'!$B119=0,\"\",\"\")","v":""},{"$f":"IF('effRT Support'!$B119=0,\"\",\"\")","v":""},{"$f":"IF('effRT Support'!$B119=0,\"\",\"\")","v":""},{"$f":"IF('effRT Support'!$B119=0,\"\",\"\")","v":""},{"$f":"IF('effRT Support'!$B119=0,\"\",IF('Project Information'!$D$13=\"\",\"\",'Project Information'!$D$13))","v":""},{"$f":"IF('effRT Support'!$B119=0,\"\",IF('Project Information'!$E$13=\"\",\"\",'Project Information'!$E$13))","v":""},{"$f":"IF('effRT Support'!$B119=0,\"\",IF('Project Information'!$D$14=\"\",\"\",'Project Information'!$D$14))","v":""},{"$f":"IF('effRT Support'!$B119=0,\"\",IF('Project Information'!$D$15=\"\",\"\",'Project Information'!$D$15))","v":""},{"$f":"IF('effRT Support'!$B119=0,\"\",IF('Project Information'!$D$16=\"\",\"\",'Project Information'!$D$16))","v":""},null,{"$f":"IF('effRT Support'!$B119=0,\"\",'Project Information'!$D$18)","v":""},{"$f":"IF('effRT Support'!$B119=0,\"\",IF('Project Information'!$D$23=\"\",\"\",'Project Information'!$D$23))","v":""},{"$f":"IF('effRT Support'!$B119=0,\"\",IF('Project Information'!$D$24=\"\",\"\",'Project Information'!$D$24))","v":""},{"$f":"IF('effRT Support'!$B119=0,\"\",IF('Project Information'!$D$25=\"\",\"\",'Project Information'!$D$25))","v":""},{"$f":"IF('effRT Support'!$B119=0,\"\",IF('Project Information'!$E$25=\"\",\"\",'Project Information'!$E$25))","v":""},{"$f":"IF('effRT Support'!$B119=0,\"\",IF('Project Information'!$F$25=\"\",\"\",'Project Information'!$F$25))","v":""},{"$f":"IF('effRT Support'!$B119=0,\"\",IF('Project Information'!$D$27=\"\",\"Y\",\"N\"))","v":""},{"$f":"IF('effRT Support'!$B119=0,\"\",IF('Project Information'!$D$27=\"\",\"\",'Project Information'!$D$27))","v":""},{"$f":"IF('effRT Support'!$B119=0,\"\",IF('Project Information'!$D$28=\"\",\"\",'Project Information'!$D$28))","v":""},{"$f":"IF('effRT Support'!$B119=0,\"\",IF('Project Information'!$D$29=\"\",\"\",'Project Information'!$D$29))","v":""},{"$f":"IF('effRT Support'!$B119=0,\"\",IF('Project Information'!$E$29=\"\",\"\",'Project Information'!$E$29))","v":""},{"$f":"IF('effRT Support'!$B119=0,\"\",IF('Project Information'!$F$29=\"\",\"\",'Project Information'!$F$29))","v":""},{"$f":"IF('effRT Support'!$B119=0,\"\",\"\")","v":""},{"$f":"IF('effRT Support'!$B119=0,\"\",\"\")","v":""},{"$f":"IF('effRT Support'!$B119=0,\"\",IF('Project Information'!$D$36=\"\",\"\",'Project Information'!$D$36))","v":""},{"$f":"IF('effRT Support'!$B119=0,\"\",IF('Project Information'!$D$42=\"\",\"\",'Project Information'!$D$42))","v":""},{"$f":"IF('effRT Support'!$B119=0,\"\",'effRT Support'!$D119)","v":""},{"$f":"IF('effRT Support'!$B119=0,\"\",'effRT Support'!$L119)","v":""},{"$f":"IF('effRT Support'!$B119=0,\"\",'effRT Support'!$N119)","v":""},null,null,{"$f":"IF('effRT Support'!$B119=0,\"\",'effRT Support'!$P119)","v":""},{"$f":"IF('effRT Support'!$B119=0,\"\",'effRT Support'!$Q119)","v":""},{"$f":"IF('effRT Support'!$B119=0,\"\",'effRT Support'!U119)","v":""},{"$f":"IF('effRT Support'!$B119=0,\"\",'effRT Support'!V119)","v":""},{"$f":"IF('effRT Support'!$B119=0,\"\",'effRT Support'!W119)","v":""},{"$f":"IF('effRT Support'!$B119=0,\"\",'effRT Support'!X119)","v":""},{"$f":"IF('effRT Support'!$B119=0,\"\",'effRT Support'!Y119)","v":""},{"$f":"IF('effRT Support'!$B119=0,\"\",'effRT Support'!Z119*10)","v":""},{"$f":"IF('effRT Support'!$B119=0,\"\",'effRT Support'!AA119)","v":""},{"$f":"IF('effRT Support'!$B119=0,\"\",'effRT Support'!AB119)","v":""},{"$f":"IF('effRT Support'!$B119=0,\"\",'effRT Support'!AC119)","v":""},{"$f":"IF('effRT Support'!$B119=0,\"\",'effRT Support'!AD119)","v":""},{"$f":"IF('effRT Support'!$B119=0,\"\",'effRT Support'!AE119)","v":""},{"$f":"IF('effRT Support'!$B119=0,\"\",\"Hours Actual or Deemed\")","v":""},{"$f":"IF('effRT Support'!$B119=0,\"\",'effRT Support'!$F119)","v":""},{"$f":"IF('effRT Support'!$B119=0,\"\",\"Wattage Actual or Deemed\")","v":""},{"$f":"IF('effRT Support'!$B119=0,\"\",IF('Project Information'!$D$33=\"Pay For Performance\",\"Actual\",\"Deemed\"))","v":""},{"$f":"IF('effRT Support'!$B119=0,\"\",\"Cost Actual or Deemed\")","v":""},{"$f":"IF('effRT Support'!$B119=0,\"\",IF('Project Information'!$D$33=\"Pay For Performance\",\"Actual\",\"Deemed\"))","v":""},{"$f":"IF('effRT Support'!$B119=0,\"\",\"Location\")","v":""},{"$f":"IF('effRT Support'!$B119=0,\"\",'effRT Support'!$E119)","v":""},{"$f":"IF('effRT Support'!$B119=0,\"\",\"Space Type\")","v":""},{"$f":"IF('effRT Support'!$B119=0,\"\",'effRT Support'!$G119)","v":""},{"$f":"IF('effRT Support'!$B119=0,\"\",\"Existing Fixture Description\")","v":""},{"$f":"IF('effRT Support'!$B119=0,\"\",'effRT Support'!$H119)","v":""},{"$f":"IF('effRT Support'!$B119=0,\"\",\"Existing Fixture Quantity\")","v":""},{"$f":"IF('effRT Support'!$B119=0,\"\",'effRT Support'!$I119)","v":""},{"$f":"IF('effRT Support'!$B119=0,\"\",\"Existing Fixture Wattage\")","v":""},{"$f":"IF('effRT Support'!$B119=0,\"\",'effRT Support'!$J119)","v":""},{"$f":"IF('effRT Support'!$B119=0,\"\",\"Annual Hours of Operation\")","v":""},{"$f":"IF('effRT Support'!$B119=0,\"\",'effRT Support'!$K119)","v":""},{"$f":"IF('effRT Support'!$B119=0,\"\",\"Installed Fixture Description\")","v":""},{"$f":"IF('effRT Support'!$B119=0,\"\",'effRT Support'!$M119)","v":""},{"$f":"IF('effRT Support'!$B119=0,\"\",\"Installed Fixture Wattage\")","v":""},{"$f":"IF('effRT Support'!$B119=0,\"\",'effRT Support'!$O119)","v":""},{"$f":"IF('effRT Support'!$B119=0,\"\",\"Material Cost\")","v":""},{"$f":"IF('effRT Support'!$B119=0,\"\",'effRT Support'!$R119)","v":""},{"$f":"IF('effRT Support'!$B119=0,\"\",\"Labor Cost\")","v":""},{"$f":"IF('effRT Support'!$B119=0,\"\",'effRT Support'!$S119)","v":""},{"$f":"IF('effRT Support'!$B119=0,\"\",\"Ancillary Costs - Measure Specific\")","v":""},{"$f":"IF('effRT Support'!$B119=0,\"\",'effRT Support'!$T119)","v":""},{"$f":"IF('effRT Support'!$B119=0,\"\",\"Fuel Type\")","v":""},{"$f":"IF('effRT Support'!$B119=0,\"\",'Project Information'!$D$44)","v":""},{"$f":"IF('effRT Support'!$B119=0,\"\",\"Installed Fixture Quantity\")","v":""},{"$f":"IF('effRT Support'!$B119=0,\"\",'effRT Support'!P118)","v":""}]
[{"$f":"IF('effRT Support'!$B120=0,\"\",IF('Project Information'!$D$33=\"Small Business\",\"SBL\",\"CILS\"))","v":""},{"$f":"IF('effRT Support'!$B120=0,\"\",IF('Project Information'!$K$2=\"\",\"\",'Project Information'!$K$2))","v":""},null,{"$f":"IF('effRT Support'!$B120=0,\"\",IF('Project Information'!$D$46=\"\",\"\",'Project Information'!$D$46))","v":""},{"$f":"IF('effRT Support'!$B120=0,\"\",IF('Project Information'!$D$20=\"\",\"\",VLOOKUP('Project Information'!$D$20,'Other Data'!$B$159:$E$189,4,FALSE)))","v":""},{"$f":"IF('effRT Support'!$B120=0,\"\",IF('Project Information'!$D$31=\"\",\"\",'Project Information'!$D$31))","v":""},{"$f":"IF('effRT Support'!$B120=0,\"\",IF('Project Information'!$D$5=\"\",\"\",'Project Information'!$D$5))","v":""},null,null,{"$f":"IF('effRT Support'!$B120=0,\"\",IF('Project Information'!$D$20=\"\",\"\",VLOOKUP('Project Information'!$D$20,'Other Data'!$B$159:$E$189,2,FALSE)))","v":""},{"$f":"IF('effRT Support'!$B120=0,\"\",IF('Project Information'!$D$20=\"\",\"\",VLOOKUP('Project Information'!$D$20,'Other Data'!$B$159:$E$189,3,FALSE)))","v":""},{"$f":"IF('effRT Support'!$B120=0,\"\",\"Existing\")","v":""},null,{"$f":"IF('effRT Support'!$B120=0,\"\",IF('Project Information'!$D$21=\"\",\"\",'Project Information'!$D$21))","v":""},{"$f":"IF('effRT Support'!$B120=0,\"\",IF('Project Information'!$D$48=\"\",\"\",'Project Information'!$D$48))","v":""},{"$f":"IF('effRT Support'!$B120=0,\"\",\"\")","v":""},{"$f":"IF('effRT Support'!$B120=0,\"\",\"\")","v":""},{"$f":"IF('effRT Support'!$B120=0,\"\",\"\")","v":""},{"$f":"IF('effRT Support'!$B120=0,\"\",\"\")","v":""},{"$f":"IF('effRT Support'!$B120=0,\"\",IF('Project Information'!$D$13=\"\",\"\",'Project Information'!$D$13))","v":""},{"$f":"IF('effRT Support'!$B120=0,\"\",IF('Project Information'!$E$13=\"\",\"\",'Project Information'!$E$13))","v":""},{"$f":"IF('effRT Support'!$B120=0,\"\",IF('Project Information'!$D$14=\"\",\"\",'Project Information'!$D$14))","v":""},{"$f":"IF('effRT Support'!$B120=0,\"\",IF('Project Information'!$D$15=\"\",\"\",'Project Information'!$D$15))","v":""},{"$f":"IF('effRT Support'!$B120=0,\"\",IF('Project Information'!$D$16=\"\",\"\",'Project Information'!$D$16))","v":""},null,{"$f":"IF('effRT Support'!$B120=0,\"\",'Project Information'!$D$18)","v":""},{"$f":"IF('effRT Support'!$B120=0,\"\",IF('Project Information'!$D$23=\"\",\"\",'Project Information'!$D$23))","v":""},{"$f":"IF('effRT Support'!$B120=0,\"\",IF('Project Information'!$D$24=\"\",\"\",'Project Information'!$D$24))","v":""},{"$f":"IF('effRT Support'!$B120=0,\"\",IF('Project Information'!$D$25=\"\",\"\",'Project Information'!$D$25))","v":""},{"$f":"IF('effRT Support'!$B120=0,\"\",IF('Project Information'!$E$25=\"\",\"\",'Project Information'!$E$25))","v":""},{"$f":"IF('effRT Support'!$B120=0,\"\",IF('Project Information'!$F$25=\"\",\"\",'Project Information'!$F$25))","v":""},{"$f":"IF('effRT Support'!$B120=0,\"\",IF('Project Information'!$D$27=\"\",\"Y\",\"N\"))","v":""},{"$f":"IF('effRT Support'!$B120=0,\"\",IF('Project Information'!$D$27=\"\",\"\",'Project Information'!$D$27))","v":""},{"$f":"IF('effRT Support'!$B120=0,\"\",IF('Project Information'!$D$28=\"\",\"\",'Project Information'!$D$28))","v":""},{"$f":"IF('effRT Support'!$B120=0,\"\",IF('Project Information'!$D$29=\"\",\"\",'Project Information'!$D$29))","v":""},{"$f":"IF('effRT Support'!$B120=0,\"\",IF('Project Information'!$E$29=\"\",\"\",'Project Information'!$E$29))","v":""},{"$f":"IF('effRT Support'!$B120=0,\"\",IF('Project Information'!$F$29=\"\",\"\",'Project Information'!$F$29))","v":""},{"$f":"IF('effRT Support'!$B120=0,\"\",\"\")","v":""},{"$f":"IF('effRT Support'!$B120=0,\"\",\"\")","v":""},{"$f":"IF('effRT Support'!$B120=0,\"\",IF('Project Information'!$D$36=\"\",\"\",'Project Information'!$D$36))","v":""},{"$f":"IF('effRT Support'!$B120=0,\"\",IF('Project Information'!$D$42=\"\",\"\",'Project Information'!$D$42))","v":""},{"$f":"IF('effRT Support'!$B120=0,\"\",'effRT Support'!$D120)","v":""},{"$f":"IF('effRT Support'!$B120=0,\"\",'effRT Support'!$L120)","v":""},{"$f":"IF('effRT Support'!$B120=0,\"\",'effRT Support'!$N120)","v":""},null,null,{"$f":"IF('effRT Support'!$B120=0,\"\",'effRT Support'!$P120)","v":""},{"$f":"IF('effRT Support'!$B120=0,\"\",'effRT Support'!$Q120)","v":""},{"$f":"IF('effRT Support'!$B120=0,\"\",'effRT Support'!U120)","v":""},{"$f":"IF('effRT Support'!$B120=0,\"\",'effRT Support'!V120)","v":""},{"$f":"IF('effRT Support'!$B120=0,\"\",'effRT Support'!W120)","v":""},{"$f":"IF('effRT Support'!$B120=0,\"\",'effRT Support'!X120)","v":""},{"$f":"IF('effRT Support'!$B120=0,\"\",'effRT Support'!Y120)","v":""},{"$f":"IF('effRT Support'!$B120=0,\"\",'effRT Support'!Z120*10)","v":""},{"$f":"IF('effRT Support'!$B120=0,\"\",'effRT Support'!AA120)","v":""},{"$f":"IF('effRT Support'!$B120=0,\"\",'effRT Support'!AB120)","v":""},{"$f":"IF('effRT Support'!$B120=0,\"\",'effRT Support'!AC120)","v":""},{"$f":"IF('effRT Support'!$B120=0,\"\",'effRT Support'!AD120)","v":""},{"$f":"IF('effRT Support'!$B120=0,\"\",'effRT Support'!AE120)","v":""},{"$f":"IF('effRT Support'!$B120=0,\"\",\"Hours Actual or Deemed\")","v":""},{"$f":"IF('effRT Support'!$B120=0,\"\",'effRT Support'!$F120)","v":""},{"$f":"IF('effRT Support'!$B120=0,\"\",\"Wattage Actual or Deemed\")","v":""},{"$f":"IF('effRT Support'!$B120=0,\"\",IF('Project Information'!$D$33=\"Pay For Performance\",\"Actual\",\"Deemed\"))","v":""},{"$f":"IF('effRT Support'!$B120=0,\"\",\"Cost Actual or Deemed\")","v":""},{"$f":"IF('effRT Support'!$B120=0,\"\",IF('Project Information'!$D$33=\"Pay For Performance\",\"Actual\",\"Deemed\"))","v":""},{"$f":"IF('effRT Support'!$B120=0,\"\",\"Location\")","v":""},{"$f":"IF('effRT Support'!$B120=0,\"\",'effRT Support'!$E120)","v":""},{"$f":"IF('effRT Support'!$B120=0,\"\",\"Space Type\")","v":""},{"$f":"IF('effRT Support'!$B120=0,\"\",'effRT Support'!$G120)","v":""},{"$f":"IF('effRT Support'!$B120=0,\"\",\"Existing Fixture Description\")","v":""},{"$f":"IF('effRT Support'!$B120=0,\"\",'effRT Support'!$H120)","v":""},{"$f":"IF('effRT Support'!$B120=0,\"\",\"Existing Fixture Quantity\")","v":""},{"$f":"IF('effRT Support'!$B120=0,\"\",'effRT Support'!$I120)","v":""},{"$f":"IF('effRT Support'!$B120=0,\"\",\"Existing Fixture Wattage\")","v":""},{"$f":"IF('effRT Support'!$B120=0,\"\",'effRT Support'!$J120)","v":""},{"$f":"IF('effRT Support'!$B120=0,\"\",\"Annual Hours of Operation\")","v":""},{"$f":"IF('effRT Support'!$B120=0,\"\",'effRT Support'!$K120)","v":""},{"$f":"IF('effRT Support'!$B120=0,\"\",\"Installed Fixture Description\")","v":""},{"$f":"IF('effRT Support'!$B120=0,\"\",'effRT Support'!$M120)","v":""},{"$f":"IF('effRT Support'!$B120=0,\"\",\"Installed Fixture Wattage\")","v":""},{"$f":"IF('effRT Support'!$B120=0,\"\",'effRT Support'!$O120)","v":""},{"$f":"IF('effRT Support'!$B120=0,\"\",\"Material Cost\")","v":""},{"$f":"IF('effRT Support'!$B120=0,\"\",'effRT Support'!$R120)","v":""},{"$f":"IF('effRT Support'!$B120=0,\"\",\"Labor Cost\")","v":""},{"$f":"IF('effRT Support'!$B120=0,\"\",'effRT Support'!$S120)","v":""},{"$f":"IF('effRT Support'!$B120=0,\"\",\"Ancillary Costs - Measure Specific\")","v":""},{"$f":"IF('effRT Support'!$B120=0,\"\",'effRT Support'!$T120)","v":""},{"$f":"IF('effRT Support'!$B120=0,\"\",\"Fuel Type\")","v":""},{"$f":"IF('effRT Support'!$B120=0,\"\",'Project Information'!$D$44)","v":""}]
[{"$f":"IF('effRT Support'!$B121=0,\"\",IF('Project Information'!$D$33=\"Small Business\",\"SBL\",\"CILS\"))","v":""},{"$f":"IF('effRT Support'!$B121=0,\"\",IF('Project Information'!$K$2=\"\",\"\",'Project Information'!$K$2))","v":""},null,{"$f":"IF('effRT Support'!$B121=0,\"\",IF('Project Information'!$D$46=\"\",\"\",'Project Information'!$D$46))","v":""},{"$f":"IF('effRT Support'!$B121=0,\"\",IF('Project Information'!$D$20=\"\",\"\",VLOOKUP('Project Information'!$D$20,'Other Data'!$B$159:$E$189,4,FALSE)))","v":""},{"$f":"IF('effRT Support'!$B121=0,\"\",IF('Project Information'!$D$31=\"\",\"\",'Project Information'!$D$31))","v":""},{"$f":"IF('effRT Support'!$B121=0,\"\",IF('Project Information'!$D$5=\"\",\"\",'Project Information'!$D$5))","v":""},null,null,{"$f":"IF('effRT Support'!$B121=0,\"\",IF('Project Information'!$D$20=\"\",\"\",VLOOKUP('Project Information'!$D$20,'Other Data'!$B$159:$E$189,2,FALSE)))","v":""},{"$f":"IF('effRT Support'!$B121=0,\"\",IF('Project Information'!$D$20=\"\",\"\",VLOOKUP('Project Information'!$D$20,'Other Data'!$B$159:$E$189,3,FALSE)))","v":""},{"$f":"IF('effRT Support'!$B121=0,\"\",\"Existing\")","v":""},null,{"$f":"IF('effRT Support'!$B121=0,\"\",IF('Project Information'!$D$21=\"\",\"\",'Project Information'!$D$21))","v":""},{"$f":"IF('effRT Support'!$B121=0,\"\",IF('Project Information'!$D$48=\"\",\"\",'Project Information'!$D$48))","v":""},{"$f":"IF('effRT Support'!$B121=0,\"\",\"\")","v":""},{"$f":"IF('effRT Support'!$B121=0,\"\",\"\")","v":""},{"$f":"IF('effRT Support'!$B121=0,\"\",\"\")","v":""},{"$f":"IF('effRT Support'!$B121=0,\"\",\"\")","v":""},{"$f":"IF('effRT Support'!$B121=0,\"\",IF('Project Information'!$D$13=\"\",\"\",'Project Information'!$D$13))","v":""},{"$f":"IF('effRT Support'!$B121=0,\"\",IF('Project Information'!$E$13=\"\",\"\",'Project Information'!$E$13))","v":""},{"$f":"IF('effRT Support'!$B121=0,\"\",IF('Project Information'!$D$14=\"\",\"\",'Project Information'!$D$14))","v":""},{"$f":"IF('effRT Support'!$B121=0,\"\",IF('Project Information'!$D$15=\"\",\"\",'Project Information'!$D$15))","v":""},{"$f":"IF('effRT Support'!$B121=0,\"\",IF('Project Information'!$D$16=\"\",\"\",'Project Information'!$D$16))","v":""},null,{"$f":"IF('effRT Support'!$B121=0,\"\",'Project Information'!$D$18)","v":""},{"$f":"IF('effRT Support'!$B121=0,\"\",IF('Project Information'!$D$23=\"\",\"\",'Project Information'!$D$23))","v":""},{"$f":"IF('effRT Support'!$B121=0,\"\",IF('Project Information'!$D$24=\"\",\"\",'Project Information'!$D$24))","v":""},{"$f":"IF('effRT Support'!$B121=0,\"\",IF('Project Information'!$D$25=\"\",\"\",'Project Information'!$D$25))","v":""},{"$f":"IF('effRT Support'!$B121=0,\"\",IF('Project Information'!$E$25=\"\",\"\",'Project Information'!$E$25))","v":""},{"$f":"IF('effRT Support'!$B121=0,\"\",IF('Project Information'!$F$25=\"\",\"\",'Project Information'!$F$25))","v":""},{"$f":"IF('effRT Support'!$B121=0,\"\",IF('Project Information'!$D$27=\"\",\"Y\",\"N\"))","v":""},{"$f":"IF('effRT Support'!$B121=0,\"\",IF('Project Information'!$D$27=\"\",\"\",'Project Information'!$D$27))","v":""},{"$f":"IF('effRT Support'!$B121=0,\"\",IF('Project Information'!$D$28=\"\",\"\",'Project Information'!$D$28))","v":""},{"$f":"IF('effRT Support'!$B121=0,\"\",IF('Project Information'!$D$29=\"\",\"\",'Project Information'!$D$29))","v":""},{"$f":"IF('effRT Support'!$B121=0,\"\",IF('Project Information'!$E$29=\"\",\"\",'Project Information'!$E$29))","v":""},{"$f":"IF('effRT Support'!$B121=0,\"\",IF('Project Information'!$F$29=\"\",\"\",'Project Information'!$F$29))","v":""},{"$f":"IF('effRT Support'!$B121=0,\"\",\"\")","v":""},{"$f":"IF('effRT Support'!$B121=0,\"\",\"\")","v":""},{"$f":"IF('effRT Support'!$B121=0,\"\",IF('Project Information'!$D$36=\"\",\"\",'Project Information'!$D$36))","v":""},{"$f":"IF('effRT Support'!$B121=0,\"\",IF('Project Information'!$D$42=\"\",\"\",'Project Information'!$D$42))","v":""},{"$f":"IF('effRT Support'!$B121=0,\"\",'effRT Support'!$D121)","v":""},{"$f":"IF('effRT Support'!$B121=0,\"\",'effRT Support'!$L121)","v":""},{"$f":"IF('effRT Support'!$B121=0,\"\",'effRT Support'!$N121)","v":""},null,null,{"$f":"IF('effRT Support'!$B121=0,\"\",'effRT Support'!$P121)","v":""},{"$f":"IF('effRT Support'!$B121=0,\"\",'effRT Support'!$Q121)","v":""},{"$f":"IF('effRT Support'!$B121=0,\"\",'effRT Support'!U121)","v":""},{"$f":"IF('effRT Support'!$B121=0,\"\",'effRT Support'!V121)","v":""},{"$f":"IF('effRT Support'!$B121=0,\"\",'effRT Support'!W121)","v":""},{"$f":"IF('effRT Support'!$B121=0,\"\",'effRT Support'!X121)","v":""},{"$f":"IF('effRT Support'!$B121=0,\"\",'effRT Support'!Y121)","v":""},{"$f":"IF('effRT Support'!$B121=0,\"\",'effRT Support'!Z121*10)","v":""},{"$f":"IF('effRT Support'!$B121=0,\"\",'effRT Support'!AA121)","v":""},{"$f":"IF('effRT Support'!$B121=0,\"\",'effRT Support'!AB121)","v":""},{"$f":"IF('effRT Support'!$B121=0,\"\",'effRT Support'!AC121)","v":""},{"$f":"IF('effRT Support'!$B121=0,\"\",'effRT Support'!AD121)","v":""},{"$f":"IF('effRT Support'!$B121=0,\"\",'effRT Support'!AE121)","v":""},{"$f":"IF('effRT Support'!$B121=0,\"\",\"Hours Actual or Deemed\")","v":""},{"$f":"IF('effRT Support'!$B121=0,\"\",'effRT Support'!$F121)","v":""},{"$f":"IF('effRT Support'!$B121=0,\"\",\"Wattage Actual or Deemed\")","v":""},{"$f":"IF('effRT Support'!$B121=0,\"\",IF('Project Information'!$D$33=\"Pay For Performance\",\"Actual\",\"Deemed\"))","v":""},{"$f":"IF('effRT Support'!$B121=0,\"\",\"Cost Actual or Deemed\")","v":""},{"$f":"IF('effRT Support'!$B121=0,\"\",IF('Project Information'!$D$33=\"Pay For Performance\",\"Actual\",\"Deemed\"))","v":""},{"$f":"IF('effRT Support'!$B121=0,\"\",\"Location\")","v":""},{"$f":"IF('effRT Support'!$B121=0,\"\",'effRT Support'!$E121)","v":""},{"$f":"IF('effRT Support'!$B121=0,\"\",\"Space Type\")","v":""},{"$f":"IF('effRT Support'!$B121=0,\"\",'effRT Support'!$G121)","v":""},{"$f":"IF('effRT Support'!$B121=0,\"\",\"Existing Fixture Description\")","v":""},{"$f":"IF('effRT Support'!$B121=0,\"\",'effRT Support'!$H121)","v":""},{"$f":"IF('effRT Support'!$B121=0,\"\",\"Existing Fixture Quantity\")","v":""},{"$f":"IF('effRT Support'!$B121=0,\"\",'effRT Support'!$I121)","v":""},{"$f":"IF('effRT Support'!$B121=0,\"\",\"Existing Fixture Wattage\")","v":""},{"$f":"IF('effRT Support'!$B121=0,\"\",'effRT Support'!$J121)","v":""},{"$f":"IF('effRT Support'!$B121=0,\"\",\"Annual Hours of Operation\")","v":""},{"$f":"IF('effRT Support'!$B121=0,\"\",'effRT Support'!$K121)","v":""},{"$f":"IF('effRT Support'!$B121=0,\"\",\"Installed Fixture Description\")","v":""},{"$f":"IF('effRT Support'!$B121=0,\"\",'effRT Support'!$M121)","v":""},{"$f":"IF('effRT Support'!$B121=0,\"\",\"Installed Fixture Wattage\")","v":""},{"$f":"IF('effRT Support'!$B121=0,\"\",'effRT Support'!$O121)","v":""},{"$f":"IF('effRT Support'!$B121=0,\"\",\"Material Cost\")","v":""},{"$f":"IF('effRT Support'!$B121=0,\"\",'effRT Support'!$R121)","v":""},{"$f":"IF('effRT Support'!$B121=0,\"\",\"Labor Cost\")","v":""},{"$f":"IF('effRT Support'!$B121=0,\"\",'effRT Support'!$S121)","v":""},{"$f":"IF('effRT Support'!$B121=0,\"\",\"Ancillary Costs - Measure Specific\")","v":""},{"$f":"IF('effRT Support'!$B121=0,\"\",'effRT Support'!$T121)","v":""},{"$f":"IF('effRT Support'!$B121=0,\"\",\"Fuel Type\")","v":""},{"$f":"IF('effRT Support'!$B121=0,\"\",'Project Information'!$D$44)","v":""},{"$f":"IF('effRT Support'!$B121=0,\"\",\"Installed Fixture Quantity\")","v":""},{"$f":"IF('effRT Support'!$B121=0,\"\",'effRT Support'!P120)","v":""}]
[{"$f":"IF('effRT Support'!$B122=0,\"\",IF('Project Information'!$D$33=\"Small Business\",\"SBL\",\"CILS\"))","v":""},{"$f":"IF('effRT Support'!$B122=0,\"\",IF('Project Information'!$K$2=\"\",\"\",'Project Information'!$K$2))","v":""},null,{"$f":"IF('effRT Support'!$B122=0,\"\",IF('Project Information'!$D$46=\"\",\"\",'Project Information'!$D$46))","v":""},{"$f":"IF('effRT Support'!$B122=0,\"\",IF('Project Information'!$D$20=\"\",\"\",VLOOKUP('Project Information'!$D$20,'Other Data'!$B$159:$E$189,4,FALSE)))","v":""},{"$f":"IF('effRT Support'!$B122=0,\"\",IF('Project Information'!$D$31=\"\",\"\",'Project Information'!$D$31))","v":""},{"$f":"IF('effRT Support'!$B122=0,\"\",IF('Project Information'!$D$5=\"\",\"\",'Project Information'!$D$5))","v":""},null,null,{"$f":"IF('effRT Support'!$B122=0,\"\",IF('Project Information'!$D$20=\"\",\"\",VLOOKUP('Project Information'!$D$20,'Other Data'!$B$159:$E$189,2,FALSE)))","v":""},{"$f":"IF('effRT Support'!$B122=0,\"\",IF('Project Information'!$D$20=\"\",\"\",VLOOKUP('Project Information'!$D$20,'Other Data'!$B$159:$E$189,3,FALSE)))","v":""},{"$f":"IF('effRT Support'!$B122=0,\"\",\"Existing\")","v":""},null,{"$f":"IF('effRT Support'!$B122=0,\"\",IF('Project Information'!$D$21=\"\",\"\",'Project Information'!$D$21))","v":""},{"$f":"IF('effRT Support'!$B122=0,\"\",IF('Project Information'!$D$48=\"\",\"\",'Project Information'!$D$48))","v":""},{"$f":"IF('effRT Support'!$B122=0,\"\",\"\")","v":""},{"$f":"IF('effRT Support'!$B122=0,\"\",\"\")","v":""},{"$f":"IF('effRT Support'!$B122=0,\"\",\"\")","v":""},{"$f":"IF('effRT Support'!$B122=0,\"\",\"\")","v":""},{"$f":"IF('effRT Support'!$B122=0,\"\",IF('Project Information'!$D$13=\"\",\"\",'Project Information'!$D$13))","v":""},{"$f":"IF('effRT Support'!$B122=0,\"\",IF('Project Information'!$E$13=\"\",\"\",'Project Information'!$E$13))","v":""},{"$f":"IF('effRT Support'!$B122=0,\"\",IF('Project Information'!$D$14=\"\",\"\",'Project Information'!$D$14))","v":""},{"$f":"IF('effRT Support'!$B122=0,\"\",IF('Project Information'!$D$15=\"\",\"\",'Project Information'!$D$15))","v":""},{"$f":"IF('effRT Support'!$B122=0,\"\",IF('Project Information'!$D$16=\"\",\"\",'Project Information'!$D$16))","v":""},null,{"$f":"IF('effRT Support'!$B122=0,\"\",'Project Information'!$D$18)","v":""},{"$f":"IF('effRT Support'!$B122=0,\"\",IF('Project Information'!$D$23=\"\",\"\",'Project Information'!$D$23))","v":""},{"$f":"IF('effRT Support'!$B122=0,\"\",IF('Project Information'!$D$24=\"\",\"\",'Project Information'!$D$24))","v":""},{"$f":"IF('effRT Support'!$B122=0,\"\",IF('Project Information'!$D$25=\"\",\"\",'Project Information'!$D$25))","v":""},{"$f":"IF('effRT Support'!$B122=0,\"\",IF('Project Information'!$E$25=\"\",\"\",'Project Information'!$E$25))","v":""},{"$f":"IF('effRT Support'!$B122=0,\"\",IF('Project Information'!$F$25=\"\",\"\",'Project Information'!$F$25))","v":""},{"$f":"IF('effRT Support'!$B122=0,\"\",IF('Project Information'!$D$27=\"\",\"Y\",\"N\"))","v":""},{"$f":"IF('effRT Support'!$B122=0,\"\",IF('Project Information'!$D$27=\"\",\"\",'Project Information'!$D$27))","v":""},{"$f":"IF('effRT Support'!$B122=0,\"\",IF('Project Information'!$D$28=\"\",\"\",'Project Information'!$D$28))","v":""},{"$f":"IF('effRT Support'!$B122=0,\"\",IF('Project Information'!$D$29=\"\",\"\",'Project Information'!$D$29))","v":""},{"$f":"IF('effRT Support'!$B122=0,\"\",IF('Project Information'!$E$29=\"\",\"\",'Project Information'!$E$29))","v":""},{"$f":"IF('effRT Support'!$B122=0,\"\",IF('Project Information'!$F$29=\"\",\"\",'Project Information'!$F$29))","v":""},{"$f":"IF('effRT Support'!$B122=0,\"\",\"\")","v":""},{"$f":"IF('effRT Support'!$B122=0,\"\",\"\")","v":""},{"$f":"IF('effRT Support'!$B122=0,\"\",IF('Project Information'!$D$36=\"\",\"\",'Project Information'!$D$36))","v":""},{"$f":"IF('effRT Support'!$B122=0,\"\",IF('Project Information'!$D$42=\"\",\"\",'Project Information'!$D$42))","v":""},{"$f":"IF('effRT Support'!$B122=0,\"\",'effRT Support'!$D122)","v":""},{"$f":"IF('effRT Support'!$B122=0,\"\",'effRT Support'!$L122)","v":""},{"$f":"IF('effRT Support'!$B122=0,\"\",'effRT Support'!$N122)","v":""},null,null,{"$f":"IF('effRT Support'!$B122=0,\"\",'effRT Support'!$P122)","v":""},{"$f":"IF('effRT Support'!$B122=0,\"\",'effRT Support'!$Q122)","v":""},{"$f":"IF('effRT Support'!$B122=0,\"\",'effRT Support'!U122)","v":""},{"$f":"IF('effRT Support'!$B122=0,\"\",'effRT Support'!V122)","v":""},{"$f":"IF('effRT Support'!$B122=0,\"\",'effRT Support'!W122)","v":""},{"$f":"IF('effRT Support'!$B122=0,\"\",'effRT Support'!X122)","v":""},{"$f":"IF('effRT Support'!$B122=0,\"\",'effRT Support'!Y122)","v":""},{"$f":"IF('effRT Support'!$B122=0,\"\",'effRT Support'!Z122*10)","v":""},{"$f":"IF('effRT Support'!$B122=0,\"\",'effRT Support'!AA122)","v":""},{"$f":"IF('effRT Support'!$B122=0,\"\",'effRT Support'!AB122)","v":""},{"$f":"IF('effRT Support'!$B122=0,\"\",'effRT Support'!AC122)","v":""},{"$f":"IF('effRT Support'!$B122=0,\"\",'effRT Support'!AD122)","v":""},{"$f":"IF('effRT Support'!$B122=0,\"\",'effRT Support'!AE122)","v":""},{"$f":"IF('effRT Support'!$B122=0,\"\",\"Hours Actual or Deemed\")","v":""},{"$f":"IF('effRT Support'!$B122=0,\"\",'effRT Support'!$F122)","v":""},{"$f":"IF('effRT Support'!$B122=0,\"\",\"Wattage Actual or Deemed\")","v":""},{"$f":"IF('effRT Support'!$B122=0,\"\",IF('Project Information'!$D$33=\"Pay For Performance\",\"Actual\",\"Deemed\"))","v":""},{"$f":"IF('effRT Support'!$B122=0,\"\",\"Cost Actual or Deemed\")","v":""},{"$f":"IF('effRT Support'!$B122=0,\"\",IF('Project Information'!$D$33=\"Pay For Performance\",\"Actual\",\"Deemed\"))","v":""},{"$f":"IF('effRT Support'!$B122=0,\"\",\"Location\")","v":""},{"$f":"IF('effRT Support'!$B122=0,\"\",'effRT Support'!$E122)","v":""},{"$f":"IF('effRT Support'!$B122=0,\"\",\"Space Type\")","v":""},{"$f":"IF('effRT Support'!$B122=0,\"\",'effRT Support'!$G122)","v":""},{"$f":"IF('effRT Support'!$B122=0,\"\",\"Existing Fixture Description\")","v":""},{"$f":"IF('effRT Support'!$B122=0,\"\",'effRT Support'!$H122)","v":""},{"$f":"IF('effRT Support'!$B122=0,\"\",\"Existing Fixture Quantity\")","v":""},{"$f":"IF('effRT Support'!$B122=0,\"\",'effRT Support'!$I122)","v":""},{"$f":"IF('effRT Support'!$B122=0,\"\",\"Existing Fixture Wattage\")","v":""},{"$f":"IF('effRT Support'!$B122=0,\"\",'effRT Support'!$J122)","v":""},{"$f":"IF('effRT Support'!$B122=0,\"\",\"Annual Hours of Operation\")","v":""},{"$f":"IF('effRT Support'!$B122=0,\"\",'effRT Support'!$K122)","v":""},{"$f":"IF('effRT Support'!$B122=0,\"\",\"Installed Fixture Description\")","v":""},{"$f":"IF('effRT Support'!$B122=0,\"\",'effRT Support'!$M122)","v":""},{"$f":"IF('effRT Support'!$B122=0,\"\",\"Installed Fixture Wattage\")","v":""},{"$f":"IF('effRT Support'!$B122=0,\"\",'effRT Support'!$O122)","v":""},{"$f":"IF('effRT Support'!$B122=0,\"\",\"Material Cost\")","v":""},{"$f":"IF('effRT Support'!$B122=0,\"\",'effRT Support'!$R122)","v":""},{"$f":"IF('effRT Support'!$B122=0,\"\",\"Labor Cost\")","v":""},{"$f":"IF('effRT Support'!$B122=0,\"\",'effRT Support'!$S122)","v":""},{"$f":"IF('effRT Support'!$B122=0,\"\",\"Ancillary Costs - Measure Specific\")","v":""},{"$f":"IF('effRT Support'!$B122=0,\"\",'effRT Support'!$T122)","v":""},{"$f":"IF('effRT Support'!$B122=0,\"\",\"Fuel Type\")","v":""},{"$f":"IF('effRT Support'!$B122=0,\"\",'Project Information'!$D$44)","v":""}]
[{"$f":"IF('effRT Support'!$B123=0,\"\",IF('Project Information'!$D$33=\"Small Business\",\"SBL\",\"CILS\"))","v":""},{"$f":"IF('effRT Support'!$B123=0,\"\",IF('Project Information'!$K$2=\"\",\"\",'Project Information'!$K$2))","v":""},null,{"$f":"IF('effRT Support'!$B123=0,\"\",IF('Project Information'!$D$46=\"\",\"\",'Project Information'!$D$46))","v":""},{"$f":"IF('effRT Support'!$B123=0,\"\",IF('Project Information'!$D$20=\"\",\"\",VLOOKUP('Project Information'!$D$20,'Other Data'!$B$159:$E$189,4,FALSE)))","v":""},{"$f":"IF('effRT Support'!$B123=0,\"\",IF('Project Information'!$D$31=\"\",\"\",'Project Information'!$D$31))","v":""},{"$f":"IF('effRT Support'!$B123=0,\"\",IF('Project Information'!$D$5=\"\",\"\",'Project Information'!$D$5))","v":""},null,null,{"$f":"IF('effRT Support'!$B123=0,\"\",IF('Project Information'!$D$20=\"\",\"\",VLOOKUP('Project Information'!$D$20,'Other Data'!$B$159:$E$189,2,FALSE)))","v":""},{"$f":"IF('effRT Support'!$B123=0,\"\",IF('Project Information'!$D$20=\"\",\"\",VLOOKUP('Project Information'!$D$20,'Other Data'!$B$159:$E$189,3,FALSE)))","v":""},{"$f":"IF('effRT Support'!$B123=0,\"\",\"Existing\")","v":""},null,{"$f":"IF('effRT Support'!$B123=0,\"\",IF('Project Information'!$D$21=\"\",\"\",'Project Information'!$D$21))","v":""},{"$f":"IF('effRT Support'!$B123=0,\"\",IF('Project Information'!$D$48=\"\",\"\",'Project Information'!$D$48))","v":""},{"$f":"IF('effRT Support'!$B123=0,\"\",\"\")","v":""},{"$f":"IF('effRT Support'!$B123=0,\"\",\"\")","v":""},{"$f":"IF('effRT Support'!$B123=0,\"\",\"\")","v":""},{"$f":"IF('effRT Support'!$B123=0,\"\",\"\")","v":""},{"$f":"IF('effRT Support'!$B123=0,\"\",IF('Project Information'!$D$13=\"\",\"\",'Project Information'!$D$13))","v":""},{"$f":"IF('effRT Support'!$B123=0,\"\",IF('Project Information'!$E$13=\"\",\"\",'Project Information'!$E$13))","v":""},{"$f":"IF('effRT Support'!$B123=0,\"\",IF('Project Information'!$D$14=\"\",\"\",'Project Information'!$D$14))","v":""},{"$f":"IF('effRT Support'!$B123=0,\"\",IF('Project Information'!$D$15=\"\",\"\",'Project Information'!$D$15))","v":""},{"$f":"IF('effRT Support'!$B123=0,\"\",IF('Project Information'!$D$16=\"\",\"\",'Project Information'!$D$16))","v":""},null,{"$f":"IF('effRT Support'!$B123=0,\"\",'Project Information'!$D$18)","v":""},{"$f":"IF('effRT Support'!$B123=0,\"\",IF('Project Information'!$D$23=\"\",\"\",'Project Information'!$D$23))","v":""},{"$f":"IF('effRT Support'!$B123=0,\"\",IF('Project Information'!$D$24=\"\",\"\",'Project Information'!$D$24))","v":""},{"$f":"IF('effRT Support'!$B123=0,\"\",IF('Project Information'!$D$25=\"\",\"\",'Project Information'!$D$25))","v":""},{"$f":"IF('effRT Support'!$B123=0,\"\",IF('Project Information'!$E$25=\"\",\"\",'Project Information'!$E$25))","v":""},{"$f":"IF('effRT Support'!$B123=0,\"\",IF('Project Information'!$F$25=\"\",\"\",'Project Information'!$F$25))","v":""},{"$f":"IF('effRT Support'!$B123=0,\"\",IF('Project Information'!$D$27=\"\",\"Y\",\"N\"))","v":""},{"$f":"IF('effRT Support'!$B123=0,\"\",IF('Project Information'!$D$27=\"\",\"\",'Project Information'!$D$27))","v":""},{"$f":"IF('effRT Support'!$B123=0,\"\",IF('Project Information'!$D$28=\"\",\"\",'Project Information'!$D$28))","v":""},{"$f":"IF('effRT Support'!$B123=0,\"\",IF('Project Information'!$D$29=\"\",\"\",'Project Information'!$D$29))","v":""},{"$f":"IF('effRT Support'!$B123=0,\"\",IF('Project Information'!$E$29=\"\",\"\",'Project Information'!$E$29))","v":""},{"$f":"IF('effRT Support'!$B123=0,\"\",IF('Project Information'!$F$29=\"\",\"\",'Project Information'!$F$29))","v":""},{"$f":"IF('effRT Support'!$B123=0,\"\",\"\")","v":""},{"$f":"IF('effRT Support'!$B123=0,\"\",\"\")","v":""},{"$f":"IF('effRT Support'!$B123=0,\"\",IF('Project Information'!$D$36=\"\",\"\",'Project Information'!$D$36))","v":""},{"$f":"IF('effRT Support'!$B123=0,\"\",IF('Project Information'!$D$42=\"\",\"\",'Project Information'!$D$42))","v":""},{"$f":"IF('effRT Support'!$B123=0,\"\",'effRT Support'!$D123)","v":""},{"$f":"IF('effRT Support'!$B123=0,\"\",'effRT Support'!$L123)","v":""},{"$f":"IF('effRT Support'!$B123=0,\"\",'effRT Support'!$N123)","v":""},null,null,{"$f":"IF('effRT Support'!$B123=0,\"\",'effRT Support'!$P123)","v":""},{"$f":"IF('effRT Support'!$B123=0,\"\",'effRT Support'!$Q123)","v":""},{"$f":"IF('effRT Support'!$B123=0,\"\",'effRT Support'!U123)","v":""},{"$f":"IF('effRT Support'!$B123=0,\"\",'effRT Support'!V123)","v":""},{"$f":"IF('effRT Support'!$B123=0,\"\",'effRT Support'!W123)","v":""},{"$f":"IF('effRT Support'!$B123=0,\"\",'effRT Support'!X123)","v":""},{"$f":"IF('effRT Support'!$B123=0,\"\",'effRT Support'!Y123)","v":""},{"$f":"IF('effRT Support'!$B123=0,\"\",'effRT Support'!Z123*10)","v":""},{"$f":"IF('effRT Support'!$B123=0,\"\",'effRT Support'!AA123)","v":""},{"$f":"IF('effRT Support'!$B123=0,\"\",'effRT Support'!AB123)","v":""},{"$f":"IF('effRT Support'!$B123=0,\"\",'effRT Support'!AC123)","v":""},{"$f":"IF('effRT Support'!$B123=0,\"\",'effRT Support'!AD123)","v":""},{"$f":"IF('effRT Support'!$B123=0,\"\",'effRT Support'!AE123)","v":""},{"$f":"IF('effRT Support'!$B123=0,\"\",\"Hours Actual or Deemed\")","v":""},{"$f":"IF('effRT Support'!$B123=0,\"\",'effRT Support'!$F123)","v":""},{"$f":"IF('effRT Support'!$B123=0,\"\",\"Wattage Actual or Deemed\")","v":""},{"$f":"IF('effRT Support'!$B123=0,\"\",IF('Project Information'!$D$33=\"Pay For Performance\",\"Actual\",\"Deemed\"))","v":""},{"$f":"IF('effRT Support'!$B123=0,\"\",\"Cost Actual or Deemed\")","v":""},{"$f":"IF('effRT Support'!$B123=0,\"\",IF('Project Information'!$D$33=\"Pay For Performance\",\"Actual\",\"Deemed\"))","v":""},{"$f":"IF('effRT Support'!$B123=0,\"\",\"Location\")","v":""},{"$f":"IF('effRT Support'!$B123=0,\"\",'effRT Support'!$E123)","v":""},{"$f":"IF('effRT Support'!$B123=0,\"\",\"Space Type\")","v":""},{"$f":"IF('effRT Support'!$B123=0,\"\",'effRT Support'!$G123)","v":""},{"$f":"IF('effRT Support'!$B123=0,\"\",\"Existing Fixture Description\")","v":""},{"$f":"IF('effRT Support'!$B123=0,\"\",'effRT Support'!$H123)","v":""},{"$f":"IF('effRT Support'!$B123=0,\"\",\"Existing Fixture Quantity\")","v":""},{"$f":"IF('effRT Support'!$B123=0,\"\",'effRT Support'!$I123)","v":""},{"$f":"IF('effRT Support'!$B123=0,\"\",\"Existing Fixture Wattage\")","v":""},{"$f":"IF('effRT Support'!$B123=0,\"\",'effRT Support'!$J123)","v":""},{"$f":"IF('effRT Support'!$B123=0,\"\",\"Annual Hours of Operation\")","v":""},{"$f":"IF('effRT Support'!$B123=0,\"\",'effRT Support'!$K123)","v":""},{"$f":"IF('effRT Support'!$B123=0,\"\",\"Installed Fixture Description\")","v":""},{"$f":"IF('effRT Support'!$B123=0,\"\",'effRT Support'!$M123)","v":""},{"$f":"IF('effRT Support'!$B123=0,\"\",\"Installed Fixture Wattage\")","v":""},{"$f":"IF('effRT Support'!$B123=0,\"\",'effRT Support'!$O123)","v":""},{"$f":"IF('effRT Support'!$B123=0,\"\",\"Material Cost\")","v":""},{"$f":"IF('effRT Support'!$B123=0,\"\",'effRT Support'!$R123)","v":""},{"$f":"IF('effRT Support'!$B123=0,\"\",\"Labor Cost\")","v":""},{"$f":"IF('effRT Support'!$B123=0,\"\",'effRT Support'!$S123)","v":""},{"$f":"IF('effRT Support'!$B123=0,\"\",\"Ancillary Costs - Measure Specific\")","v":""},{"$f":"IF('effRT Support'!$B123=0,\"\",'effRT Support'!$T123)","v":""},{"$f":"IF('effRT Support'!$B123=0,\"\",\"Fuel Type\")","v":""},{"$f":"IF('effRT Support'!$B123=0,\"\",'Project Information'!$D$44)","v":""},{"$f":"IF('effRT Support'!$B123=0,\"\",\"Installed Fixture Quantity\")","v":""},{"$f":"IF('effRT Support'!$B123=0,\"\",'effRT Support'!P122)","v":""}]
[{"$f":"IF('effRT Support'!$B124=0,\"\",IF('Project Information'!$D$33=\"Small Business\",\"SBL\",\"CILS\"))","v":""},{"$f":"IF('effRT Support'!$B124=0,\"\",IF('Project Information'!$K$2=\"\",\"\",'Project Information'!$K$2))","v":""},null,{"$f":"IF('effRT Support'!$B124=0,\"\",IF('Project Information'!$D$46=\"\",\"\",'Project Information'!$D$46))","v":""},{"$f":"IF('effRT Support'!$B124=0,\"\",IF('Project Information'!$D$20=\"\",\"\",VLOOKUP('Project Information'!$D$20,'Other Data'!$B$159:$E$189,4,FALSE)))","v":""},{"$f":"IF('effRT Support'!$B124=0,\"\",IF('Project Information'!$D$31=\"\",\"\",'Project Information'!$D$31))","v":""},{"$f":"IF('effRT Support'!$B124=0,\"\",IF('Project Information'!$D$5=\"\",\"\",'Project Information'!$D$5))","v":""},null,null,{"$f":"IF('effRT Support'!$B124=0,\"\",IF('Project Information'!$D$20=\"\",\"\",VLOOKUP('Project Information'!$D$20,'Other Data'!$B$159:$E$189,2,FALSE)))","v":""},{"$f":"IF('effRT Support'!$B124=0,\"\",IF('Project Information'!$D$20=\"\",\"\",VLOOKUP('Project Information'!$D$20,'Other Data'!$B$159:$E$189,3,FALSE)))","v":""},{"$f":"IF('effRT Support'!$B124=0,\"\",\"Existing\")","v":""},null,{"$f":"IF('effRT Support'!$B124=0,\"\",IF('Project Information'!$D$21=\"\",\"\",'Project Information'!$D$21))","v":""},{"$f":"IF('effRT Support'!$B124=0,\"\",IF('Project Information'!$D$48=\"\",\"\",'Project Information'!$D$48))","v":""},{"$f":"IF('effRT Support'!$B124=0,\"\",\"\")","v":""},{"$f":"IF('effRT Support'!$B124=0,\"\",\"\")","v":""},{"$f":"IF('effRT Support'!$B124=0,\"\",\"\")","v":""},{"$f":"IF('effRT Support'!$B124=0,\"\",\"\")","v":""},{"$f":"IF('effRT Support'!$B124=0,\"\",IF('Project Information'!$D$13=\"\",\"\",'Project Information'!$D$13))","v":""},{"$f":"IF('effRT Support'!$B124=0,\"\",IF('Project Information'!$E$13=\"\",\"\",'Project Information'!$E$13))","v":""},{"$f":"IF('effRT Support'!$B124=0,\"\",IF('Project Information'!$D$14=\"\",\"\",'Project Information'!$D$14))","v":""},{"$f":"IF('effRT Support'!$B124=0,\"\",IF('Project Information'!$D$15=\"\",\"\",'Project Information'!$D$15))","v":""},{"$f":"IF('effRT Support'!$B124=0,\"\",IF('Project Information'!$D$16=\"\",\"\",'Project Information'!$D$16))","v":""},null,{"$f":"IF('effRT Support'!$B124=0,\"\",'Project Information'!$D$18)","v":""},{"$f":"IF('effRT Support'!$B124=0,\"\",IF('Project Information'!$D$23=\"\",\"\",'Project Information'!$D$23))","v":""},{"$f":"IF('effRT Support'!$B124=0,\"\",IF('Project Information'!$D$24=\"\",\"\",'Project Information'!$D$24))","v":""},{"$f":"IF('effRT Support'!$B124=0,\"\",IF('Project Information'!$D$25=\"\",\"\",'Project Information'!$D$25))","v":""},{"$f":"IF('effRT Support'!$B124=0,\"\",IF('Project Information'!$E$25=\"\",\"\",'Project Information'!$E$25))","v":""},{"$f":"IF('effRT Support'!$B124=0,\"\",IF('Project Information'!$F$25=\"\",\"\",'Project Information'!$F$25))","v":""},{"$f":"IF('effRT Support'!$B124=0,\"\",IF('Project Information'!$D$27=\"\",\"Y\",\"N\"))","v":""},{"$f":"IF('effRT Support'!$B124=0,\"\",IF('Project Information'!$D$27=\"\",\"\",'Project Information'!$D$27))","v":""},{"$f":"IF('effRT Support'!$B124=0,\"\",IF('Project Information'!$D$28=\"\",\"\",'Project Information'!$D$28))","v":""},{"$f":"IF('effRT Support'!$B124=0,\"\",IF('Project Information'!$D$29=\"\",\"\",'Project Information'!$D$29))","v":""},{"$f":"IF('effRT Support'!$B124=0,\"\",IF('Project Information'!$E$29=\"\",\"\",'Project Information'!$E$29))","v":""},{"$f":"IF('effRT Support'!$B124=0,\"\",IF('Project Information'!$F$29=\"\",\"\",'Project Information'!$F$29))","v":""},{"$f":"IF('effRT Support'!$B124=0,\"\",\"\")","v":""},{"$f":"IF('effRT Support'!$B124=0,\"\",\"\")","v":""},{"$f":"IF('effRT Support'!$B124=0,\"\",IF('Project Information'!$D$36=\"\",\"\",'Project Information'!$D$36))","v":""},{"$f":"IF('effRT Support'!$B124=0,\"\",IF('Project Information'!$D$42=\"\",\"\",'Project Information'!$D$42))","v":""},{"$f":"IF('effRT Support'!$B124=0,\"\",'effRT Support'!$D124)","v":""},{"$f":"IF('effRT Support'!$B124=0,\"\",'effRT Support'!$L124)","v":""},{"$f":"IF('effRT Support'!$B124=0,\"\",'effRT Support'!$N124)","v":""},null,null,{"$f":"IF('effRT Support'!$B124=0,\"\",'effRT Support'!$P124)","v":""},{"$f":"IF('effRT Support'!$B124=0,\"\",'effRT Support'!$Q124)","v":""},{"$f":"IF('effRT Support'!$B124=0,\"\",'effRT Support'!U124)","v":""},{"$f":"IF('effRT Support'!$B124=0,\"\",'effRT Support'!V124)","v":""},{"$f":"IF('effRT Support'!$B124=0,\"\",'effRT Support'!W124)","v":""},{"$f":"IF('effRT Support'!$B124=0,\"\",'effRT Support'!X124)","v":""},{"$f":"IF('effRT Support'!$B124=0,\"\",'effRT Support'!Y124)","v":""},{"$f":"IF('effRT Support'!$B124=0,\"\",'effRT Support'!Z124*10)","v":""},{"$f":"IF('effRT Support'!$B124=0,\"\",'effRT Support'!AA124)","v":""},{"$f":"IF('effRT Support'!$B124=0,\"\",'effRT Support'!AB124)","v":""},{"$f":"IF('effRT Support'!$B124=0,\"\",'effRT Support'!AC124)","v":""},{"$f":"IF('effRT Support'!$B124=0,\"\",'effRT Support'!AD124)","v":""},{"$f":"IF('effRT Support'!$B124=0,\"\",'effRT Support'!AE124)","v":""},{"$f":"IF('effRT Support'!$B124=0,\"\",\"Hours Actual or Deemed\")","v":""},{"$f":"IF('effRT Support'!$B124=0,\"\",'effRT Support'!$F124)","v":""},{"$f":"IF('effRT Support'!$B124=0,\"\",\"Wattage Actual or Deemed\")","v":""},{"$f":"IF('effRT Support'!$B124=0,\"\",IF('Project Information'!$D$33=\"Pay For Performance\",\"Actual\",\"Deemed\"))","v":""},{"$f":"IF('effRT Support'!$B124=0,\"\",\"Cost Actual or Deemed\")","v":""},{"$f":"IF('effRT Support'!$B124=0,\"\",IF('Project Information'!$D$33=\"Pay For Performance\",\"Actual\",\"Deemed\"))","v":""},{"$f":"IF('effRT Support'!$B124=0,\"\",\"Location\")","v":""},{"$f":"IF('effRT Support'!$B124=0,\"\",'effRT Support'!$E124)","v":""},{"$f":"IF('effRT Support'!$B124=0,\"\",\"Space Type\")","v":""},{"$f":"IF('effRT Support'!$B124=0,\"\",'effRT Support'!$G124)","v":""},{"$f":"IF('effRT Support'!$B124=0,\"\",\"Existing Fixture Description\")","v":""},{"$f":"IF('effRT Support'!$B124=0,\"\",'effRT Support'!$H124)","v":""},{"$f":"IF('effRT Support'!$B124=0,\"\",\"Existing Fixture Quantity\")","v":""},{"$f":"IF('effRT Support'!$B124=0,\"\",'effRT Support'!$I124)","v":""},{"$f":"IF('effRT Support'!$B124=0,\"\",\"Existing Fixture Wattage\")","v":""},{"$f":"IF('effRT Support'!$B124=0,\"\",'effRT Support'!$J124)","v":""},{"$f":"IF('effRT Support'!$B124=0,\"\",\"Annual Hours of Operation\")","v":""},{"$f":"IF('effRT Support'!$B124=0,\"\",'effRT Support'!$K124)","v":""},{"$f":"IF('effRT Support'!$B124=0,\"\",\"Installed Fixture Description\")","v":""},{"$f":"IF('effRT Support'!$B124=0,\"\",'effRT Support'!$M124)","v":""},{"$f":"IF('effRT Support'!$B124=0,\"\",\"Installed Fixture Wattage\")","v":""},{"$f":"IF('effRT Support'!$B124=0,\"\",'effRT Support'!$O124)","v":""},{"$f":"IF('effRT Support'!$B124=0,\"\",\"Material Cost\")","v":""},{"$f":"IF('effRT Support'!$B124=0,\"\",'effRT Support'!$R124)","v":""},{"$f":"IF('effRT Support'!$B124=0,\"\",\"Labor Cost\")","v":""},{"$f":"IF('effRT Support'!$B124=0,\"\",'effRT Support'!$S124)","v":""},{"$f":"IF('effRT Support'!$B124=0,\"\",\"Ancillary Costs - Measure Specific\")","v":""},{"$f":"IF('effRT Support'!$B124=0,\"\",'effRT Support'!$T124)","v":""},{"$f":"IF('effRT Support'!$B124=0,\"\",\"Fuel Type\")","v":""},{"$f":"IF('effRT Support'!$B124=0,\"\",'Project Information'!$D$44)","v":""}]
[{"$f":"IF('effRT Support'!$B125=0,\"\",IF('Project Information'!$D$33=\"Small Business\",\"SBL\",\"CILS\"))","v":""},{"$f":"IF('effRT Support'!$B125=0,\"\",IF('Project Information'!$K$2=\"\",\"\",'Project Information'!$K$2))","v":""},null,{"$f":"IF('effRT Support'!$B125=0,\"\",IF('Project Information'!$D$46=\"\",\"\",'Project Information'!$D$46))","v":""},{"$f":"IF('effRT Support'!$B125=0,\"\",IF('Project Information'!$D$20=\"\",\"\",VLOOKUP('Project Information'!$D$20,'Other Data'!$B$159:$E$189,4,FALSE)))","v":""},{"$f":"IF('effRT Support'!$B125=0,\"\",IF('Project Information'!$D$31=\"\",\"\",'Project Information'!$D$31))","v":""},{"$f":"IF('effRT Support'!$B125=0,\"\",IF('Project Information'!$D$5=\"\",\"\",'Project Information'!$D$5))","v":""},null,null,{"$f":"IF('effRT Support'!$B125=0,\"\",IF('Project Information'!$D$20=\"\",\"\",VLOOKUP('Project Information'!$D$20,'Other Data'!$B$159:$E$189,2,FALSE)))","v":""},{"$f":"IF('effRT Support'!$B125=0,\"\",IF('Project Information'!$D$20=\"\",\"\",VLOOKUP('Project Information'!$D$20,'Other Data'!$B$159:$E$189,3,FALSE)))","v":""},{"$f":"IF('effRT Support'!$B125=0,\"\",\"Existing\")","v":""},null,{"$f":"IF('effRT Support'!$B125=0,\"\",IF('Project Information'!$D$21=\"\",\"\",'Project Information'!$D$21))","v":""},{"$f":"IF('effRT Support'!$B125=0,\"\",IF('Project Information'!$D$48=\"\",\"\",'Project Information'!$D$48))","v":""},{"$f":"IF('effRT Support'!$B125=0,\"\",\"\")","v":""},{"$f":"IF('effRT Support'!$B125=0,\"\",\"\")","v":""},{"$f":"IF('effRT Support'!$B125=0,\"\",\"\")","v":""},{"$f":"IF('effRT Support'!$B125=0,\"\",\"\")","v":""},{"$f":"IF('effRT Support'!$B125=0,\"\",IF('Project Information'!$D$13=\"\",\"\",'Project Information'!$D$13))","v":""},{"$f":"IF('effRT Support'!$B125=0,\"\",IF('Project Information'!$E$13=\"\",\"\",'Project Information'!$E$13))","v":""},{"$f":"IF('effRT Support'!$B125=0,\"\",IF('Project Information'!$D$14=\"\",\"\",'Project Information'!$D$14))","v":""},{"$f":"IF('effRT Support'!$B125=0,\"\",IF('Project Information'!$D$15=\"\",\"\",'Project Information'!$D$15))","v":""},{"$f":"IF('effRT Support'!$B125=0,\"\",IF('Project Information'!$D$16=\"\",\"\",'Project Information'!$D$16))","v":""},null,{"$f":"IF('effRT Support'!$B125=0,\"\",'Project Information'!$D$18)","v":""},{"$f":"IF('effRT Support'!$B125=0,\"\",IF('Project Information'!$D$23=\"\",\"\",'Project Information'!$D$23))","v":""},{"$f":"IF('effRT Support'!$B125=0,\"\",IF('Project Information'!$D$24=\"\",\"\",'Project Information'!$D$24))","v":""},{"$f":"IF('effRT Support'!$B125=0,\"\",IF('Project Information'!$D$25=\"\",\"\",'Project Information'!$D$25))","v":""},{"$f":"IF('effRT Support'!$B125=0,\"\",IF('Project Information'!$E$25=\"\",\"\",'Project Information'!$E$25))","v":""},{"$f":"IF('effRT Support'!$B125=0,\"\",IF('Project Information'!$F$25=\"\",\"\",'Project Information'!$F$25))","v":""},{"$f":"IF('effRT Support'!$B125=0,\"\",IF('Project Information'!$D$27=\"\",\"Y\",\"N\"))","v":""},{"$f":"IF('effRT Support'!$B125=0,\"\",IF('Project Information'!$D$27=\"\",\"\",'Project Information'!$D$27))","v":""},{"$f":"IF('effRT Support'!$B125=0,\"\",IF('Project Information'!$D$28=\"\",\"\",'Project Information'!$D$28))","v":""},{"$f":"IF('effRT Support'!$B125=0,\"\",IF('Project Information'!$D$29=\"\",\"\",'Project Information'!$D$29))","v":""},{"$f":"IF('effRT Support'!$B125=0,\"\",IF('Project Information'!$E$29=\"\",\"\",'Project Information'!$E$29))","v":""},{"$f":"IF('effRT Support'!$B125=0,\"\",IF('Project Information'!$F$29=\"\",\"\",'Project Information'!$F$29))","v":""},{"$f":"IF('effRT Support'!$B125=0,\"\",\"\")","v":""},{"$f":"IF('effRT Support'!$B125=0,\"\",\"\")","v":""},{"$f":"IF('effRT Support'!$B125=0,\"\",IF('Project Information'!$D$36=\"\",\"\",'Project Information'!$D$36))","v":""},{"$f":"IF('effRT Support'!$B125=0,\"\",IF('Project Information'!$D$42=\"\",\"\",'Project Information'!$D$42))","v":""},{"$f":"IF('effRT Support'!$B125=0,\"\",'effRT Support'!$D125)","v":""},{"$f":"IF('effRT Support'!$B125=0,\"\",'effRT Support'!$L125)","v":""},{"$f":"IF('effRT Support'!$B125=0,\"\",'effRT Support'!$N125)","v":""},null,null,{"$f":"IF('effRT Support'!$B125=0,\"\",'effRT Support'!$P125)","v":""},{"$f":"IF('effRT Support'!$B125=0,\"\",'effRT Support'!$Q125)","v":""},{"$f":"IF('effRT Support'!$B125=0,\"\",'effRT Support'!U125)","v":""},{"$f":"IF('effRT Support'!$B125=0,\"\",'effRT Support'!V125)","v":""},{"$f":"IF('effRT Support'!$B125=0,\"\",'effRT Support'!W125)","v":""},{"$f":"IF('effRT Support'!$B125=0,\"\",'effRT Support'!X125)","v":""},{"$f":"IF('effRT Support'!$B125=0,\"\",'effRT Support'!Y125)","v":""},{"$f":"IF('effRT Support'!$B125=0,\"\",'effRT Support'!Z125*10)","v":""},{"$f":"IF('effRT Support'!$B125=0,\"\",'effRT Support'!AA125)","v":""},{"$f":"IF('effRT Support'!$B125=0,\"\",'effRT Support'!AB125)","v":""},{"$f":"IF('effRT Support'!$B125=0,\"\",'effRT Support'!AC125)","v":""},{"$f":"IF('effRT Support'!$B125=0,\"\",'effRT Support'!AD125)","v":""},{"$f":"IF('effRT Support'!$B125=0,\"\",'effRT Support'!AE125)","v":""},{"$f":"IF('effRT Support'!$B125=0,\"\",\"Hours Actual or Deemed\")","v":""},{"$f":"IF('effRT Support'!$B125=0,\"\",'effRT Support'!$F125)","v":""},{"$f":"IF('effRT Support'!$B125=0,\"\",\"Wattage Actual or Deemed\")","v":""},{"$f":"IF('effRT Support'!$B125=0,\"\",IF('Project Information'!$D$33=\"Pay For Performance\",\"Actual\",\"Deemed\"))","v":""},{"$f":"IF('effRT Support'!$B125=0,\"\",\"Cost Actual or Deemed\")","v":""},{"$f":"IF('effRT Support'!$B125=0,\"\",IF('Project Information'!$D$33=\"Pay For Performance\",\"Actual\",\"Deemed\"))","v":""},{"$f":"IF('effRT Support'!$B125=0,\"\",\"Location\")","v":""},{"$f":"IF('effRT Support'!$B125=0,\"\",'effRT Support'!$E125)","v":""},{"$f":"IF('effRT Support'!$B125=0,\"\",\"Space Type\")","v":""},{"$f":"IF('effRT Support'!$B125=0,\"\",'effRT Support'!$G125)","v":""},{"$f":"IF('effRT Support'!$B125=0,\"\",\"Existing Fixture Description\")","v":""},{"$f":"IF('effRT Support'!$B125=0,\"\",'effRT Support'!$H125)","v":""},{"$f":"IF('effRT Support'!$B125=0,\"\",\"Existing Fixture Quantity\")","v":""},{"$f":"IF('effRT Support'!$B125=0,\"\",'effRT Support'!$I125)","v":""},{"$f":"IF('effRT Support'!$B125=0,\"\",\"Existing Fixture Wattage\")","v":""},{"$f":"IF('effRT Support'!$B125=0,\"\",'effRT Support'!$J125)","v":""},{"$f":"IF('effRT Support'!$B125=0,\"\",\"Annual Hours of Operation\")","v":""},{"$f":"IF('effRT Support'!$B125=0,\"\",'effRT Support'!$K125)","v":""},{"$f":"IF('effRT Support'!$B125=0,\"\",\"Installed Fixture Description\")","v":""},{"$f":"IF('effRT Support'!$B125=0,\"\",'effRT Support'!$M125)","v":""},{"$f":"IF('effRT Support'!$B125=0,\"\",\"Installed Fixture Wattage\")","v":""},{"$f":"IF('effRT Support'!$B125=0,\"\",'effRT Support'!$O125)","v":""},{"$f":"IF('effRT Support'!$B125=0,\"\",\"Material Cost\")","v":""},{"$f":"IF('effRT Support'!$B125=0,\"\",'effRT Support'!$R125)","v":""},{"$f":"IF('effRT Support'!$B125=0,\"\",\"Labor Cost\")","v":""},{"$f":"IF('effRT Support'!$B125=0,\"\",'effRT Support'!$S125)","v":""},{"$f":"IF('effRT Support'!$B125=0,\"\",\"Ancillary Costs - Measure Specific\")","v":""},{"$f":"IF('effRT Support'!$B125=0,\"\",'effRT Support'!$T125)","v":""},{"$f":"IF('effRT Support'!$B125=0,\"\",\"Fuel Type\")","v":""},{"$f":"IF('effRT Support'!$B125=0,\"\",'Project Information'!$D$44)","v":""},{"$f":"IF('effRT Support'!$B125=0,\"\",\"Installed Fixture Quantity\")","v":""},{"$f":"IF('effRT Support'!$B125=0,\"\",'effRT Support'!P124)","v":""}]
[{"$f":"IF('effRT Support'!$B126=0,\"\",IF('Project Information'!$D$33=\"Small Business\",\"SBL\",\"CILS\"))","v":""},{"$f":"IF('effRT Support'!$B126=0,\"\",IF('Project Information'!$K$2=\"\",\"\",'Project Information'!$K$2))","v":""},null,{"$f":"IF('effRT Support'!$B126=0,\"\",IF('Project Information'!$D$46=\"\",\"\",'Project Information'!$D$46))","v":""},{"$f":"IF('effRT Support'!$B126=0,\"\",IF('Project Information'!$D$20=\"\",\"\",VLOOKUP('Project Information'!$D$20,'Other Data'!$B$159:$E$189,4,FALSE)))","v":""},{"$f":"IF('effRT Support'!$B126=0,\"\",IF('Project Information'!$D$31=\"\",\"\",'Project Information'!$D$31))","v":""},{"$f":"IF('effRT Support'!$B126=0,\"\",IF('Project Information'!$D$5=\"\",\"\",'Project Information'!$D$5))","v":""},null,null,{"$f":"IF('effRT Support'!$B126=0,\"\",IF('Project Information'!$D$20=\"\",\"\",VLOOKUP('Project Information'!$D$20,'Other Data'!$B$159:$E$189,2,FALSE)))","v":""},{"$f":"IF('effRT Support'!$B126=0,\"\",IF('Project Information'!$D$20=\"\",\"\",VLOOKUP('Project Information'!$D$20,'Other Data'!$B$159:$E$189,3,FALSE)))","v":""},{"$f":"IF('effRT Support'!$B126=0,\"\",\"Existing\")","v":""},null,{"$f":"IF('effRT Support'!$B126=0,\"\",IF('Project Information'!$D$21=\"\",\"\",'Project Information'!$D$21))","v":""},{"$f":"IF('effRT Support'!$B126=0,\"\",IF('Project Information'!$D$48=\"\",\"\",'Project Information'!$D$48))","v":""},{"$f":"IF('effRT Support'!$B126=0,\"\",\"\")","v":""},{"$f":"IF('effRT Support'!$B126=0,\"\",\"\")","v":""},{"$f":"IF('effRT Support'!$B126=0,\"\",\"\")","v":""},{"$f":"IF('effRT Support'!$B126=0,\"\",\"\")","v":""},{"$f":"IF('effRT Support'!$B126=0,\"\",IF('Project Information'!$D$13=\"\",\"\",'Project Information'!$D$13))","v":""},{"$f":"IF('effRT Support'!$B126=0,\"\",IF('Project Information'!$E$13=\"\",\"\",'Project Information'!$E$13))","v":""},{"$f":"IF('effRT Support'!$B126=0,\"\",IF('Project Information'!$D$14=\"\",\"\",'Project Information'!$D$14))","v":""},{"$f":"IF('effRT Support'!$B126=0,\"\",IF('Project Information'!$D$15=\"\",\"\",'Project Information'!$D$15))","v":""},{"$f":"IF('effRT Support'!$B126=0,\"\",IF('Project Information'!$D$16=\"\",\"\",'Project Information'!$D$16))","v":""},null,{"$f":"IF('effRT Support'!$B126=0,\"\",'Project Information'!$D$18)","v":""},{"$f":"IF('effRT Support'!$B126=0,\"\",IF('Project Information'!$D$23=\"\",\"\",'Project Information'!$D$23))","v":""},{"$f":"IF('effRT Support'!$B126=0,\"\",IF('Project Information'!$D$24=\"\",\"\",'Project Information'!$D$24))","v":""},{"$f":"IF('effRT Support'!$B126=0,\"\",IF('Project Information'!$D$25=\"\",\"\",'Project Information'!$D$25))","v":""},{"$f":"IF('effRT Support'!$B126=0,\"\",IF('Project Information'!$E$25=\"\",\"\",'Project Information'!$E$25))","v":""},{"$f":"IF('effRT Support'!$B126=0,\"\",IF('Project Information'!$F$25=\"\",\"\",'Project Information'!$F$25))","v":""},{"$f":"IF('effRT Support'!$B126=0,\"\",IF('Project Information'!$D$27=\"\",\"Y\",\"N\"))","v":""},{"$f":"IF('effRT Support'!$B126=0,\"\",IF('Project Information'!$D$27=\"\",\"\",'Project Information'!$D$27))","v":""},{"$f":"IF('effRT Support'!$B126=0,\"\",IF('Project Information'!$D$28=\"\",\"\",'Project Information'!$D$28))","v":""},{"$f":"IF('effRT Support'!$B126=0,\"\",IF('Project Information'!$D$29=\"\",\"\",'Project Information'!$D$29))","v":""},{"$f":"IF('effRT Support'!$B126=0,\"\",IF('Project Information'!$E$29=\"\",\"\",'Project Information'!$E$29))","v":""},{"$f":"IF('effRT Support'!$B126=0,\"\",IF('Project Information'!$F$29=\"\",\"\",'Project Information'!$F$29))","v":""},{"$f":"IF('effRT Support'!$B126=0,\"\",\"\")","v":""},{"$f":"IF('effRT Support'!$B126=0,\"\",\"\")","v":""},{"$f":"IF('effRT Support'!$B126=0,\"\",IF('Project Information'!$D$36=\"\",\"\",'Project Information'!$D$36))","v":""},{"$f":"IF('effRT Support'!$B126=0,\"\",IF('Project Information'!$D$42=\"\",\"\",'Project Information'!$D$42))","v":""},{"$f":"IF('effRT Support'!$B126=0,\"\",'effRT Support'!$D126)","v":""},{"$f":"IF('effRT Support'!$B126=0,\"\",'effRT Support'!$L126)","v":""},{"$f":"IF('effRT Support'!$B126=0,\"\",'effRT Support'!$N126)","v":""},null,null,{"$f":"IF('effRT Support'!$B126=0,\"\",'effRT Support'!$P126)","v":""},{"$f":"IF('effRT Support'!$B126=0,\"\",'effRT Support'!$Q126)","v":""},{"$f":"IF('effRT Support'!$B126=0,\"\",'effRT Support'!U126)","v":""},{"$f":"IF('effRT Support'!$B126=0,\"\",'effRT Support'!V126)","v":""},{"$f":"IF('effRT Support'!$B126=0,\"\",'effRT Support'!W126)","v":""},{"$f":"IF('effRT Support'!$B126=0,\"\",'effRT Support'!X126)","v":""},{"$f":"IF('effRT Support'!$B126=0,\"\",'effRT Support'!Y126)","v":""},{"$f":"IF('effRT Support'!$B126=0,\"\",'effRT Support'!Z126*10)","v":""},{"$f":"IF('effRT Support'!$B126=0,\"\",'effRT Support'!AA126)","v":""},{"$f":"IF('effRT Support'!$B126=0,\"\",'effRT Support'!AB126)","v":""},{"$f":"IF('effRT Support'!$B126=0,\"\",'effRT Support'!AC126)","v":""},{"$f":"IF('effRT Support'!$B126=0,\"\",'effRT Support'!AD126)","v":""},{"$f":"IF('effRT Support'!$B126=0,\"\",'effRT Support'!AE126)","v":""},{"$f":"IF('effRT Support'!$B126=0,\"\",\"Hours Actual or Deemed\")","v":""},{"$f":"IF('effRT Support'!$B126=0,\"\",'effRT Support'!$F126)","v":""},{"$f":"IF('effRT Support'!$B126=0,\"\",\"Wattage Actual or Deemed\")","v":""},{"$f":"IF('effRT Support'!$B126=0,\"\",IF('Project Information'!$D$33=\"Pay For Performance\",\"Actual\",\"Deemed\"))","v":""},{"$f":"IF('effRT Support'!$B126=0,\"\",\"Cost Actual or Deemed\")","v":""},{"$f":"IF('effRT Support'!$B126=0,\"\",IF('Project Information'!$D$33=\"Pay For Performance\",\"Actual\",\"Deemed\"))","v":""},{"$f":"IF('effRT Support'!$B126=0,\"\",\"Location\")","v":""},{"$f":"IF('effRT Support'!$B126=0,\"\",'effRT Support'!$E126)","v":""},{"$f":"IF('effRT Support'!$B126=0,\"\",\"Space Type\")","v":""},{"$f":"IF('effRT Support'!$B126=0,\"\",'effRT Support'!$G126)","v":""},{"$f":"IF('effRT Support'!$B126=0,\"\",\"Existing Fixture Description\")","v":""},{"$f":"IF('effRT Support'!$B126=0,\"\",'effRT Support'!$H126)","v":""},{"$f":"IF('effRT Support'!$B126=0,\"\",\"Existing Fixture Quantity\")","v":""},{"$f":"IF('effRT Support'!$B126=0,\"\",'effRT Support'!$I126)","v":""},{"$f":"IF('effRT Support'!$B126=0,\"\",\"Existing Fixture Wattage\")","v":""},{"$f":"IF('effRT Support'!$B126=0,\"\",'effRT Support'!$J126)","v":""},{"$f":"IF('effRT Support'!$B126=0,\"\",\"Annual Hours of Operation\")","v":""},{"$f":"IF('effRT Support'!$B126=0,\"\",'effRT Support'!$K126)","v":""},{"$f":"IF('effRT Support'!$B126=0,\"\",\"Installed Fixture Description\")","v":""},{"$f":"IF('effRT Support'!$B126=0,\"\",'effRT Support'!$M126)","v":""},{"$f":"IF('effRT Support'!$B126=0,\"\",\"Installed Fixture Wattage\")","v":""},{"$f":"IF('effRT Support'!$B126=0,\"\",'effRT Support'!$O126)","v":""},{"$f":"IF('effRT Support'!$B126=0,\"\",\"Material Cost\")","v":""},{"$f":"IF('effRT Support'!$B126=0,\"\",'effRT Support'!$R126)","v":""},{"$f":"IF('effRT Support'!$B126=0,\"\",\"Labor Cost\")","v":""},{"$f":"IF('effRT Support'!$B126=0,\"\",'effRT Support'!$S126)","v":""},{"$f":"IF('effRT Support'!$B126=0,\"\",\"Ancillary Costs - Measure Specific\")","v":""},{"$f":"IF('effRT Support'!$B126=0,\"\",'effRT Support'!$T126)","v":""},{"$f":"IF('effRT Support'!$B126=0,\"\",\"Fuel Type\")","v":""},{"$f":"IF('effRT Support'!$B126=0,\"\",'Project Information'!$D$44)","v":""}]
[{"$f":"IF('effRT Support'!$B127=0,\"\",IF('Project Information'!$D$33=\"Small Business\",\"SBL\",\"CILS\"))","v":""},{"$f":"IF('effRT Support'!$B127=0,\"\",IF('Project Information'!$K$2=\"\",\"\",'Project Information'!$K$2))","v":""},null,{"$f":"IF('effRT Support'!$B127=0,\"\",IF('Project Information'!$D$46=\"\",\"\",'Project Information'!$D$46))","v":""},{"$f":"IF('effRT Support'!$B127=0,\"\",IF('Project Information'!$D$20=\"\",\"\",VLOOKUP('Project Information'!$D$20,'Other Data'!$B$159:$E$189,4,FALSE)))","v":""},{"$f":"IF('effRT Support'!$B127=0,\"\",IF('Project Information'!$D$31=\"\",\"\",'Project Information'!$D$31))","v":""},{"$f":"IF('effRT Support'!$B127=0,\"\",IF('Project Information'!$D$5=\"\",\"\",'Project Information'!$D$5))","v":""},null,null,{"$f":"IF('effRT Support'!$B127=0,\"\",IF('Project Information'!$D$20=\"\",\"\",VLOOKUP('Project Information'!$D$20,'Other Data'!$B$159:$E$189,2,FALSE)))","v":""},{"$f":"IF('effRT Support'!$B127=0,\"\",IF('Project Information'!$D$20=\"\",\"\",VLOOKUP('Project Information'!$D$20,'Other Data'!$B$159:$E$189,3,FALSE)))","v":""},{"$f":"IF('effRT Support'!$B127=0,\"\",\"Existing\")","v":""},null,{"$f":"IF('effRT Support'!$B127=0,\"\",IF('Project Information'!$D$21=\"\",\"\",'Project Information'!$D$21))","v":""},{"$f":"IF('effRT Support'!$B127=0,\"\",IF('Project Information'!$D$48=\"\",\"\",'Project Information'!$D$48))","v":""},{"$f":"IF('effRT Support'!$B127=0,\"\",\"\")","v":""},{"$f":"IF('effRT Support'!$B127=0,\"\",\"\")","v":""},{"$f":"IF('effRT Support'!$B127=0,\"\",\"\")","v":""},{"$f":"IF('effRT Support'!$B127=0,\"\",\"\")","v":""},{"$f":"IF('effRT Support'!$B127=0,\"\",IF('Project Information'!$D$13=\"\",\"\",'Project Information'!$D$13))","v":""},{"$f":"IF('effRT Support'!$B127=0,\"\",IF('Project Information'!$E$13=\"\",\"\",'Project Information'!$E$13))","v":""},{"$f":"IF('effRT Support'!$B127=0,\"\",IF('Project Information'!$D$14=\"\",\"\",'Project Information'!$D$14))","v":""},{"$f":"IF('effRT Support'!$B127=0,\"\",IF('Project Information'!$D$15=\"\",\"\",'Project Information'!$D$15))","v":""},{"$f":"IF('effRT Support'!$B127=0,\"\",IF('Project Information'!$D$16=\"\",\"\",'Project Information'!$D$16))","v":""},null,{"$f":"IF('effRT Support'!$B127=0,\"\",'Project Information'!$D$18)","v":""},{"$f":"IF('effRT Support'!$B127=0,\"\",IF('Project Information'!$D$23=\"\",\"\",'Project Information'!$D$23))","v":""},{"$f":"IF('effRT Support'!$B127=0,\"\",IF('Project Information'!$D$24=\"\",\"\",'Project Information'!$D$24))","v":""},{"$f":"IF('effRT Support'!$B127=0,\"\",IF('Project Information'!$D$25=\"\",\"\",'Project Information'!$D$25))","v":""},{"$f":"IF('effRT Support'!$B127=0,\"\",IF('Project Information'!$E$25=\"\",\"\",'Project Information'!$E$25))","v":""},{"$f":"IF('effRT Support'!$B127=0,\"\",IF('Project Information'!$F$25=\"\",\"\",'Project Information'!$F$25))","v":""},{"$f":"IF('effRT Support'!$B127=0,\"\",IF('Project Information'!$D$27=\"\",\"Y\",\"N\"))","v":""},{"$f":"IF('effRT Support'!$B127=0,\"\",IF('Project Information'!$D$27=\"\",\"\",'Project Information'!$D$27))","v":""},{"$f":"IF('effRT Support'!$B127=0,\"\",IF('Project Information'!$D$28=\"\",\"\",'Project Information'!$D$28))","v":""},{"$f":"IF('effRT Support'!$B127=0,\"\",IF('Project Information'!$D$29=\"\",\"\",'Project Information'!$D$29))","v":""},{"$f":"IF('effRT Support'!$B127=0,\"\",IF('Project Information'!$E$29=\"\",\"\",'Project Information'!$E$29))","v":""},{"$f":"IF('effRT Support'!$B127=0,\"\",IF('Project Information'!$F$29=\"\",\"\",'Project Information'!$F$29))","v":""},{"$f":"IF('effRT Support'!$B127=0,\"\",\"\")","v":""},{"$f":"IF('effRT Support'!$B127=0,\"\",\"\")","v":""},{"$f":"IF('effRT Support'!$B127=0,\"\",IF('Project Information'!$D$36=\"\",\"\",'Project Information'!$D$36))","v":""},{"$f":"IF('effRT Support'!$B127=0,\"\",IF('Project Information'!$D$42=\"\",\"\",'Project Information'!$D$42))","v":""},{"$f":"IF('effRT Support'!$B127=0,\"\",'effRT Support'!$D127)","v":""},{"$f":"IF('effRT Support'!$B127=0,\"\",'effRT Support'!$L127)","v":""},{"$f":"IF('effRT Support'!$B127=0,\"\",'effRT Support'!$N127)","v":""},null,null,{"$f":"IF('effRT Support'!$B127=0,\"\",'effRT Support'!$P127)","v":""},{"$f":"IF('effRT Support'!$B127=0,\"\",'effRT Support'!$Q127)","v":""},{"$f":"IF('effRT Support'!$B127=0,\"\",'effRT Support'!U127)","v":""},{"$f":"IF('effRT Support'!$B127=0,\"\",'effRT Support'!V127)","v":""},{"$f":"IF('effRT Support'!$B127=0,\"\",'effRT Support'!W127)","v":""},{"$f":"IF('effRT Support'!$B127=0,\"\",'effRT Support'!X127)","v":""},{"$f":"IF('effRT Support'!$B127=0,\"\",'effRT Support'!Y127)","v":""},{"$f":"IF('effRT Support'!$B127=0,\"\",'effRT Support'!Z127*10)","v":""},{"$f":"IF('effRT Support'!$B127=0,\"\",'effRT Support'!AA127)","v":""},{"$f":"IF('effRT Support'!$B127=0,\"\",'effRT Support'!AB127)","v":""},{"$f":"IF('effRT Support'!$B127=0,\"\",'effRT Support'!AC127)","v":""},{"$f":"IF('effRT Support'!$B127=0,\"\",'effRT Support'!AD127)","v":""},{"$f":"IF('effRT Support'!$B127=0,\"\",'effRT Support'!AE127)","v":""},{"$f":"IF('effRT Support'!$B127=0,\"\",\"Hours Actual or Deemed\")","v":""},{"$f":"IF('effRT Support'!$B127=0,\"\",'effRT Support'!$F127)","v":""},{"$f":"IF('effRT Support'!$B127=0,\"\",\"Wattage Actual or Deemed\")","v":""},{"$f":"IF('effRT Support'!$B127=0,\"\",IF('Project Information'!$D$33=\"Pay For Performance\",\"Actual\",\"Deemed\"))","v":""},{"$f":"IF('effRT Support'!$B127=0,\"\",\"Cost Actual or Deemed\")","v":""},{"$f":"IF('effRT Support'!$B127=0,\"\",IF('Project Information'!$D$33=\"Pay For Performance\",\"Actual\",\"Deemed\"))","v":""},{"$f":"IF('effRT Support'!$B127=0,\"\",\"Location\")","v":""},{"$f":"IF('effRT Support'!$B127=0,\"\",'effRT Support'!$E127)","v":""},{"$f":"IF('effRT Support'!$B127=0,\"\",\"Space Type\")","v":""},{"$f":"IF('effRT Support'!$B127=0,\"\",'effRT Support'!$G127)","v":""},{"$f":"IF('effRT Support'!$B127=0,\"\",\"Existing Fixture Description\")","v":""},{"$f":"IF('effRT Support'!$B127=0,\"\",'effRT Support'!$H127)","v":""},{"$f":"IF('effRT Support'!$B127=0,\"\",\"Existing Fixture Quantity\")","v":""},{"$f":"IF('effRT Support'!$B127=0,\"\",'effRT Support'!$I127)","v":""},{"$f":"IF('effRT Support'!$B127=0,\"\",\"Existing Fixture Wattage\")","v":""},{"$f":"IF('effRT Support'!$B127=0,\"\",'effRT Support'!$J127)","v":""},{"$f":"IF('effRT Support'!$B127=0,\"\",\"Annual Hours of Operation\")","v":""},{"$f":"IF('effRT Support'!$B127=0,\"\",'effRT Support'!$K127)","v":""},{"$f":"IF('effRT Support'!$B127=0,\"\",\"Installed Fixture Description\")","v":""},{"$f":"IF('effRT Support'!$B127=0,\"\",'effRT Support'!$M127)","v":""},{"$f":"IF('effRT Support'!$B127=0,\"\",\"Installed Fixture Wattage\")","v":""},{"$f":"IF('effRT Support'!$B127=0,\"\",'effRT Support'!$O127)","v":""},{"$f":"IF('effRT Support'!$B127=0,\"\",\"Material Cost\")","v":""},{"$f":"IF('effRT Support'!$B127=0,\"\",'effRT Support'!$R127)","v":""},{"$f":"IF('effRT Support'!$B127=0,\"\",\"Labor Cost\")","v":""},{"$f":"IF('effRT Support'!$B127=0,\"\",'effRT Support'!$S127)","v":""},{"$f":"IF('effRT Support'!$B127=0,\"\",\"Ancillary Costs - Measure Specific\")","v":""},{"$f":"IF('effRT Support'!$B127=0,\"\",'effRT Support'!$T127)","v":""},{"$f":"IF('effRT Support'!$B127=0,\"\",\"Fuel Type\")","v":""},{"$f":"IF('effRT Support'!$B127=0,\"\",'Project Information'!$D$44)","v":""},{"$f":"IF('effRT Support'!$B127=0,\"\",\"Installed Fixture Quantity\")","v":""},{"$f":"IF('effRT Support'!$B127=0,\"\",'effRT Support'!P126)","v":""}]
[{"$f":"IF('effRT Support'!$B128=0,\"\",IF('Project Information'!$D$33=\"Small Business\",\"SBL\",\"CILS\"))","v":""},{"$f":"IF('effRT Support'!$B128=0,\"\",IF('Project Information'!$K$2=\"\",\"\",'Project Information'!$K$2))","v":""},null,{"$f":"IF('effRT Support'!$B128=0,\"\",IF('Project Information'!$D$46=\"\",\"\",'Project Information'!$D$46))","v":""},{"$f":"IF('effRT Support'!$B128=0,\"\",IF('Project Information'!$D$20=\"\",\"\",VLOOKUP('Project Information'!$D$20,'Other Data'!$B$159:$E$189,4,FALSE)))","v":""},{"$f":"IF('effRT Support'!$B128=0,\"\",IF('Project Information'!$D$31=\"\",\"\",'Project Information'!$D$31))","v":""},{"$f":"IF('effRT Support'!$B128=0,\"\",IF('Project Information'!$D$5=\"\",\"\",'Project Information'!$D$5))","v":""},null,null,{"$f":"IF('effRT Support'!$B128=0,\"\",IF('Project Information'!$D$20=\"\",\"\",VLOOKUP('Project Information'!$D$20,'Other Data'!$B$159:$E$189,2,FALSE)))","v":""},{"$f":"IF('effRT Support'!$B128=0,\"\",IF('Project Information'!$D$20=\"\",\"\",VLOOKUP('Project Information'!$D$20,'Other Data'!$B$159:$E$189,3,FALSE)))","v":""},{"$f":"IF('effRT Support'!$B128=0,\"\",\"Existing\")","v":""},null,{"$f":"IF('effRT Support'!$B128=0,\"\",IF('Project Information'!$D$21=\"\",\"\",'Project Information'!$D$21))","v":""},{"$f":"IF('effRT Support'!$B128=0,\"\",IF('Project Information'!$D$48=\"\",\"\",'Project Information'!$D$48))","v":""},{"$f":"IF('effRT Support'!$B128=0,\"\",\"\")","v":""},{"$f":"IF('effRT Support'!$B128=0,\"\",\"\")","v":""},{"$f":"IF('effRT Support'!$B128=0,\"\",\"\")","v":""},{"$f":"IF('effRT Support'!$B128=0,\"\",\"\")","v":""},{"$f":"IF('effRT Support'!$B128=0,\"\",IF('Project Information'!$D$13=\"\",\"\",'Project Information'!$D$13))","v":""},{"$f":"IF('effRT Support'!$B128=0,\"\",IF('Project Information'!$E$13=\"\",\"\",'Project Information'!$E$13))","v":""},{"$f":"IF('effRT Support'!$B128=0,\"\",IF('Project Information'!$D$14=\"\",\"\",'Project Information'!$D$14))","v":""},{"$f":"IF('effRT Support'!$B128=0,\"\",IF('Project Information'!$D$15=\"\",\"\",'Project Information'!$D$15))","v":""},{"$f":"IF('effRT Support'!$B128=0,\"\",IF('Project Information'!$D$16=\"\",\"\",'Project Information'!$D$16))","v":""},null,{"$f":"IF('effRT Support'!$B128=0,\"\",'Project Information'!$D$18)","v":""},{"$f":"IF('effRT Support'!$B128=0,\"\",IF('Project Information'!$D$23=\"\",\"\",'Project Information'!$D$23))","v":""},{"$f":"IF('effRT Support'!$B128=0,\"\",IF('Project Information'!$D$24=\"\",\"\",'Project Information'!$D$24))","v":""},{"$f":"IF('effRT Support'!$B128=0,\"\",IF('Project Information'!$D$25=\"\",\"\",'Project Information'!$D$25))","v":""},{"$f":"IF('effRT Support'!$B128=0,\"\",IF('Project Information'!$E$25=\"\",\"\",'Project Information'!$E$25))","v":""},{"$f":"IF('effRT Support'!$B128=0,\"\",IF('Project Information'!$F$25=\"\",\"\",'Project Information'!$F$25))","v":""},{"$f":"IF('effRT Support'!$B128=0,\"\",IF('Project Information'!$D$27=\"\",\"Y\",\"N\"))","v":""},{"$f":"IF('effRT Support'!$B128=0,\"\",IF('Project Information'!$D$27=\"\",\"\",'Project Information'!$D$27))","v":""},{"$f":"IF('effRT Support'!$B128=0,\"\",IF('Project Information'!$D$28=\"\",\"\",'Project Information'!$D$28))","v":""},{"$f":"IF('effRT Support'!$B128=0,\"\",IF('Project Information'!$D$29=\"\",\"\",'Project Information'!$D$29))","v":""},{"$f":"IF('effRT Support'!$B128=0,\"\",IF('Project Information'!$E$29=\"\",\"\",'Project Information'!$E$29))","v":""},{"$f":"IF('effRT Support'!$B128=0,\"\",IF('Project Information'!$F$29=\"\",\"\",'Project Information'!$F$29))","v":""},{"$f":"IF('effRT Support'!$B128=0,\"\",\"\")","v":""},{"$f":"IF('effRT Support'!$B128=0,\"\",\"\")","v":""},{"$f":"IF('effRT Support'!$B128=0,\"\",IF('Project Information'!$D$36=\"\",\"\",'Project Information'!$D$36))","v":""},{"$f":"IF('effRT Support'!$B128=0,\"\",IF('Project Information'!$D$42=\"\",\"\",'Project Information'!$D$42))","v":""},{"$f":"IF('effRT Support'!$B128=0,\"\",'effRT Support'!$D128)","v":""},{"$f":"IF('effRT Support'!$B128=0,\"\",'effRT Support'!$L128)","v":""},{"$f":"IF('effRT Support'!$B128=0,\"\",'effRT Support'!$N128)","v":""},null,null,{"$f":"IF('effRT Support'!$B128=0,\"\",'effRT Support'!$P128)","v":""},{"$f":"IF('effRT Support'!$B128=0,\"\",'effRT Support'!$Q128)","v":""},{"$f":"IF('effRT Support'!$B128=0,\"\",'effRT Support'!U128)","v":""},{"$f":"IF('effRT Support'!$B128=0,\"\",'effRT Support'!V128)","v":""},{"$f":"IF('effRT Support'!$B128=0,\"\",'effRT Support'!W128)","v":""},{"$f":"IF('effRT Support'!$B128=0,\"\",'effRT Support'!X128)","v":""},{"$f":"IF('effRT Support'!$B128=0,\"\",'effRT Support'!Y128)","v":""},{"$f":"IF('effRT Support'!$B128=0,\"\",'effRT Support'!Z128*10)","v":""},{"$f":"IF('effRT Support'!$B128=0,\"\",'effRT Support'!AA128)","v":""},{"$f":"IF('effRT Support'!$B128=0,\"\",'effRT Support'!AB128)","v":""},{"$f":"IF('effRT Support'!$B128=0,\"\",'effRT Support'!AC128)","v":""},{"$f":"IF('effRT Support'!$B128=0,\"\",'effRT Support'!AD128)","v":""},{"$f":"IF('effRT Support'!$B128=0,\"\",'effRT Support'!AE128)","v":""},{"$f":"IF('effRT Support'!$B128=0,\"\",\"Hours Actual or Deemed\")","v":""},{"$f":"IF('effRT Support'!$B128=0,\"\",'effRT Support'!$F128)","v":""},{"$f":"IF('effRT Support'!$B128=0,\"\",\"Wattage Actual or Deemed\")","v":""},{"$f":"IF('effRT Support'!$B128=0,\"\",IF('Project Information'!$D$33=\"Pay For Performance\",\"Actual\",\"Deemed\"))","v":""},{"$f":"IF('effRT Support'!$B128=0,\"\",\"Cost Actual or Deemed\")","v":""},{"$f":"IF('effRT Support'!$B128=0,\"\",IF('Project Information'!$D$33=\"Pay For Performance\",\"Actual\",\"Deemed\"))","v":""},{"$f":"IF('effRT Support'!$B128=0,\"\",\"Location\")","v":""},{"$f":"IF('effRT Support'!$B128=0,\"\",'effRT Support'!$E128)","v":""},{"$f":"IF('effRT Support'!$B128=0,\"\",\"Space Type\")","v":""},{"$f":"IF('effRT Support'!$B128=0,\"\",'effRT Support'!$G128)","v":""},{"$f":"IF('effRT Support'!$B128=0,\"\",\"Existing Fixture Description\")","v":""},{"$f":"IF('effRT Support'!$B128=0,\"\",'effRT Support'!$H128)","v":""},{"$f":"IF('effRT Support'!$B128=0,\"\",\"Existing Fixture Quantity\")","v":""},{"$f":"IF('effRT Support'!$B128=0,\"\",'effRT Support'!$I128)","v":""},{"$f":"IF('effRT Support'!$B128=0,\"\",\"Existing Fixture Wattage\")","v":""},{"$f":"IF('effRT Support'!$B128=0,\"\",'effRT Support'!$J128)","v":""},{"$f":"IF('effRT Support'!$B128=0,\"\",\"Annual Hours of Operation\")","v":""},{"$f":"IF('effRT Support'!$B128=0,\"\",'effRT Support'!$K128)","v":""},{"$f":"IF('effRT Support'!$B128=0,\"\",\"Installed Fixture Description\")","v":""},{"$f":"IF('effRT Support'!$B128=0,\"\",'effRT Support'!$M128)","v":""},{"$f":"IF('effRT Support'!$B128=0,\"\",\"Installed Fixture Wattage\")","v":""},{"$f":"IF('effRT Support'!$B128=0,\"\",'effRT Support'!$O128)","v":""},{"$f":"IF('effRT Support'!$B128=0,\"\",\"Material Cost\")","v":""},{"$f":"IF('effRT Support'!$B128=0,\"\",'effRT Support'!$R128)","v":""},{"$f":"IF('effRT Support'!$B128=0,\"\",\"Labor Cost\")","v":""},{"$f":"IF('effRT Support'!$B128=0,\"\",'effRT Support'!$S128)","v":""},{"$f":"IF('effRT Support'!$B128=0,\"\",\"Ancillary Costs - Measure Specific\")","v":""},{"$f":"IF('effRT Support'!$B128=0,\"\",'effRT Support'!$T128)","v":""},{"$f":"IF('effRT Support'!$B128=0,\"\",\"Fuel Type\")","v":""},{"$f":"IF('effRT Support'!$B128=0,\"\",'Project Information'!$D$44)","v":""}]
[{"$f":"IF('effRT Support'!$B129=0,\"\",IF('Project Information'!$D$33=\"Small Business\",\"SBL\",\"CILS\"))","v":""},{"$f":"IF('effRT Support'!$B129=0,\"\",IF('Project Information'!$K$2=\"\",\"\",'Project Information'!$K$2))","v":""},null,{"$f":"IF('effRT Support'!$B129=0,\"\",IF('Project Information'!$D$46=\"\",\"\",'Project Information'!$D$46))","v":""},{"$f":"IF('effRT Support'!$B129=0,\"\",IF('Project Information'!$D$20=\"\",\"\",VLOOKUP('Project Information'!$D$20,'Other Data'!$B$159:$E$189,4,FALSE)))","v":""},{"$f":"IF('effRT Support'!$B129=0,\"\",IF('Project Information'!$D$31=\"\",\"\",'Project Information'!$D$31))","v":""},{"$f":"IF('effRT Support'!$B129=0,\"\",IF('Project Information'!$D$5=\"\",\"\",'Project Information'!$D$5))","v":""},null,null,{"$f":"IF('effRT Support'!$B129=0,\"\",IF('Project Information'!$D$20=\"\",\"\",VLOOKUP('Project Information'!$D$20,'Other Data'!$B$159:$E$189,2,FALSE)))","v":""},{"$f":"IF('effRT Support'!$B129=0,\"\",IF('Project Information'!$D$20=\"\",\"\",VLOOKUP('Project Information'!$D$20,'Other Data'!$B$159:$E$189,3,FALSE)))","v":""},{"$f":"IF('effRT Support'!$B129=0,\"\",\"Existing\")","v":""},null,{"$f":"IF('effRT Support'!$B129=0,\"\",IF('Project Information'!$D$21=\"\",\"\",'Project Information'!$D$21))","v":""},{"$f":"IF('effRT Support'!$B129=0,\"\",IF('Project Information'!$D$48=\"\",\"\",'Project Information'!$D$48))","v":""},{"$f":"IF('effRT Support'!$B129=0,\"\",\"\")","v":""},{"$f":"IF('effRT Support'!$B129=0,\"\",\"\")","v":""},{"$f":"IF('effRT Support'!$B129=0,\"\",\"\")","v":""},{"$f":"IF('effRT Support'!$B129=0,\"\",\"\")","v":""},{"$f":"IF('effRT Support'!$B129=0,\"\",IF('Project Information'!$D$13=\"\",\"\",'Project Information'!$D$13))","v":""},{"$f":"IF('effRT Support'!$B129=0,\"\",IF('Project Information'!$E$13=\"\",\"\",'Project Information'!$E$13))","v":""},{"$f":"IF('effRT Support'!$B129=0,\"\",IF('Project Information'!$D$14=\"\",\"\",'Project Information'!$D$14))","v":""},{"$f":"IF('effRT Support'!$B129=0,\"\",IF('Project Information'!$D$15=\"\",\"\",'Project Information'!$D$15))","v":""},{"$f":"IF('effRT Support'!$B129=0,\"\",IF('Project Information'!$D$16=\"\",\"\",'Project Information'!$D$16))","v":""},null,{"$f":"IF('effRT Support'!$B129=0,\"\",'Project Information'!$D$18)","v":""},{"$f":"IF('effRT Support'!$B129=0,\"\",IF('Project Information'!$D$23=\"\",\"\",'Project Information'!$D$23))","v":""},{"$f":"IF('effRT Support'!$B129=0,\"\",IF('Project Information'!$D$24=\"\",\"\",'Project Information'!$D$24))","v":""},{"$f":"IF('effRT Support'!$B129=0,\"\",IF('Project Information'!$D$25=\"\",\"\",'Project Information'!$D$25))","v":""},{"$f":"IF('effRT Support'!$B129=0,\"\",IF('Project Information'!$E$25=\"\",\"\",'Project Information'!$E$25))","v":""},{"$f":"IF('effRT Support'!$B129=0,\"\",IF('Project Information'!$F$25=\"\",\"\",'Project Information'!$F$25))","v":""},{"$f":"IF('effRT Support'!$B129=0,\"\",IF('Project Information'!$D$27=\"\",\"Y\",\"N\"))","v":""},{"$f":"IF('effRT Support'!$B129=0,\"\",IF('Project Information'!$D$27=\"\",\"\",'Project Information'!$D$27))","v":""},{"$f":"IF('effRT Support'!$B129=0,\"\",IF('Project Information'!$D$28=\"\",\"\",'Project Information'!$D$28))","v":""},{"$f":"IF('effRT Support'!$B129=0,\"\",IF('Project Information'!$D$29=\"\",\"\",'Project Information'!$D$29))","v":""},{"$f":"IF('effRT Support'!$B129=0,\"\",IF('Project Information'!$E$29=\"\",\"\",'Project Information'!$E$29))","v":""},{"$f":"IF('effRT Support'!$B129=0,\"\",IF('Project Information'!$F$29=\"\",\"\",'Project Information'!$F$29))","v":""},{"$f":"IF('effRT Support'!$B129=0,\"\",\"\")","v":""},{"$f":"IF('effRT Support'!$B129=0,\"\",\"\")","v":""},{"$f":"IF('effRT Support'!$B129=0,\"\",IF('Project Information'!$D$36=\"\",\"\",'Project Information'!$D$36))","v":""},{"$f":"IF('effRT Support'!$B129=0,\"\",IF('Project Information'!$D$42=\"\",\"\",'Project Information'!$D$42))","v":""},{"$f":"IF('effRT Support'!$B129=0,\"\",'effRT Support'!$D129)","v":""},{"$f":"IF('effRT Support'!$B129=0,\"\",'effRT Support'!$L129)","v":""},{"$f":"IF('effRT Support'!$B129=0,\"\",'effRT Support'!$N129)","v":""},null,null,{"$f":"IF('effRT Support'!$B129=0,\"\",'effRT Support'!$P129)","v":""},{"$f":"IF('effRT Support'!$B129=0,\"\",'effRT Support'!$Q129)","v":""},{"$f":"IF('effRT Support'!$B129=0,\"\",'effRT Support'!U129)","v":""},{"$f":"IF('effRT Support'!$B129=0,\"\",'effRT Support'!V129)","v":""},{"$f":"IF('effRT Support'!$B129=0,\"\",'effRT Support'!W129)","v":""},{"$f":"IF('effRT Support'!$B129=0,\"\",'effRT Support'!X129)","v":""},{"$f":"IF('effRT Support'!$B129=0,\"\",'effRT Support'!Y129)","v":""},{"$f":"IF('effRT Support'!$B129=0,\"\",'effRT Support'!Z129*10)","v":""},{"$f":"IF('effRT Support'!$B129=0,\"\",'effRT Support'!AA129)","v":""},{"$f":"IF('effRT Support'!$B129=0,\"\",'effRT Support'!AB129)","v":""},{"$f":"IF('effRT Support'!$B129=0,\"\",'effRT Support'!AC129)","v":""},{"$f":"IF('effRT Support'!$B129=0,\"\",'effRT Support'!AD129)","v":""},{"$f":"IF('effRT Support'!$B129=0,\"\",'effRT Support'!AE129)","v":""},{"$f":"IF('effRT Support'!$B129=0,\"\",\"Hours Actual or Deemed\")","v":""},{"$f":"IF('effRT Support'!$B129=0,\"\",'effRT Support'!$F129)","v":""},{"$f":"IF('effRT Support'!$B129=0,\"\",\"Wattage Actual or Deemed\")","v":""},{"$f":"IF('effRT Support'!$B129=0,\"\",IF('Project Information'!$D$33=\"Pay For Performance\",\"Actual\",\"Deemed\"))","v":""},{"$f":"IF('effRT Support'!$B129=0,\"\",\"Cost Actual or Deemed\")","v":""},{"$f":"IF('effRT Support'!$B129=0,\"\",IF('Project Information'!$D$33=\"Pay For Performance\",\"Actual\",\"Deemed\"))","v":""},{"$f":"IF('effRT Support'!$B129=0,\"\",\"Location\")","v":""},{"$f":"IF('effRT Support'!$B129=0,\"\",'effRT Support'!$E129)","v":""},{"$f":"IF('effRT Support'!$B129=0,\"\",\"Space Type\")","v":""},{"$f":"IF('effRT Support'!$B129=0,\"\",'effRT Support'!$G129)","v":""},{"$f":"IF('effRT Support'!$B129=0,\"\",\"Existing Fixture Description\")","v":""},{"$f":"IF('effRT Support'!$B129=0,\"\",'effRT Support'!$H129)","v":""},{"$f":"IF('effRT Support'!$B129=0,\"\",\"Existing Fixture Quantity\")","v":""},{"$f":"IF('effRT Support'!$B129=0,\"\",'effRT Support'!$I129)","v":""},{"$f":"IF('effRT Support'!$B129=0,\"\",\"Existing Fixture Wattage\")","v":""},{"$f":"IF('effRT Support'!$B129=0,\"\",'effRT Support'!$J129)","v":""},{"$f":"IF('effRT Support'!$B129=0,\"\",\"Annual Hours of Operation\")","v":""},{"$f":"IF('effRT Support'!$B129=0,\"\",'effRT Support'!$K129)","v":""},{"$f":"IF('effRT Support'!$B129=0,\"\",\"Installed Fixture Description\")","v":""},{"$f":"IF('effRT Support'!$B129=0,\"\",'effRT Support'!$M129)","v":""},{"$f":"IF('effRT Support'!$B129=0,\"\",\"Installed Fixture Wattage\")","v":""},{"$f":"IF('effRT Support'!$B129=0,\"\",'effRT Support'!$O129)","v":""},{"$f":"IF('effRT Support'!$B129=0,\"\",\"Material Cost\")","v":""},{"$f":"IF('effRT Support'!$B129=0,\"\",'effRT Support'!$R129)","v":""},{"$f":"IF('effRT Support'!$B129=0,\"\",\"Labor Cost\")","v":""},{"$f":"IF('effRT Support'!$B129=0,\"\",'effRT Support'!$S129)","v":""},{"$f":"IF('effRT Support'!$B129=0,\"\",\"Ancillary Costs - Measure Specific\")","v":""},{"$f":"IF('effRT Support'!$B129=0,\"\",'effRT Support'!$T129)","v":""},{"$f":"IF('effRT Support'!$B129=0,\"\",\"Fuel Type\")","v":""},{"$f":"IF('effRT Support'!$B129=0,\"\",'Project Information'!$D$44)","v":""},{"$f":"IF('effRT Support'!$B129=0,\"\",\"Installed Fixture Quantity\")","v":""},{"$f":"IF('effRT Support'!$B129=0,\"\",'effRT Support'!P128)","v":""}]
[{"$f":"IF('effRT Support'!$B130=0,\"\",IF('Project Information'!$D$33=\"Small Business\",\"SBL\",\"CILS\"))","v":""},{"$f":"IF('effRT Support'!$B130=0,\"\",IF('Project Information'!$K$2=\"\",\"\",'Project Information'!$K$2))","v":""},null,{"$f":"IF('effRT Support'!$B130=0,\"\",IF('Project Information'!$D$46=\"\",\"\",'Project Information'!$D$46))","v":""},{"$f":"IF('effRT Support'!$B130=0,\"\",IF('Project Information'!$D$20=\"\",\"\",VLOOKUP('Project Information'!$D$20,'Other Data'!$B$159:$E$189,4,FALSE)))","v":""},{"$f":"IF('effRT Support'!$B130=0,\"\",IF('Project Information'!$D$31=\"\",\"\",'Project Information'!$D$31))","v":""},{"$f":"IF('effRT Support'!$B130=0,\"\",IF('Project Information'!$D$5=\"\",\"\",'Project Information'!$D$5))","v":""},null,null,{"$f":"IF('effRT Support'!$B130=0,\"\",IF('Project Information'!$D$20=\"\",\"\",VLOOKUP('Project Information'!$D$20,'Other Data'!$B$159:$E$189,2,FALSE)))","v":""},{"$f":"IF('effRT Support'!$B130=0,\"\",IF('Project Information'!$D$20=\"\",\"\",VLOOKUP('Project Information'!$D$20,'Other Data'!$B$159:$E$189,3,FALSE)))","v":""},{"$f":"IF('effRT Support'!$B130=0,\"\",\"Existing\")","v":""},null,{"$f":"IF('effRT Support'!$B130=0,\"\",IF('Project Information'!$D$21=\"\",\"\",'Project Information'!$D$21))","v":""},{"$f":"IF('effRT Support'!$B130=0,\"\",IF('Project Information'!$D$48=\"\",\"\",'Project Information'!$D$48))","v":""},{"$f":"IF('effRT Support'!$B130=0,\"\",\"\")","v":""},{"$f":"IF('effRT Support'!$B130=0,\"\",\"\")","v":""},{"$f":"IF('effRT Support'!$B130=0,\"\",\"\")","v":""},{"$f":"IF('effRT Support'!$B130=0,\"\",\"\")","v":""},{"$f":"IF('effRT Support'!$B130=0,\"\",IF('Project Information'!$D$13=\"\",\"\",'Project Information'!$D$13))","v":""},{"$f":"IF('effRT Support'!$B130=0,\"\",IF('Project Information'!$E$13=\"\",\"\",'Project Information'!$E$13))","v":""},{"$f":"IF('effRT Support'!$B130=0,\"\",IF('Project Information'!$D$14=\"\",\"\",'Project Information'!$D$14))","v":""},{"$f":"IF('effRT Support'!$B130=0,\"\",IF('Project Information'!$D$15=\"\",\"\",'Project Information'!$D$15))","v":""},{"$f":"IF('effRT Support'!$B130=0,\"\",IF('Project Information'!$D$16=\"\",\"\",'Project Information'!$D$16))","v":""},null,{"$f":"IF('effRT Support'!$B130=0,\"\",'Project Information'!$D$18)","v":""},{"$f":"IF('effRT Support'!$B130=0,\"\",IF('Project Information'!$D$23=\"\",\"\",'Project Information'!$D$23))","v":""},{"$f":"IF('effRT Support'!$B130=0,\"\",IF('Project Information'!$D$24=\"\",\"\",'Project Information'!$D$24))","v":""},{"$f":"IF('effRT Support'!$B130=0,\"\",IF('Project Information'!$D$25=\"\",\"\",'Project Information'!$D$25))","v":""},{"$f":"IF('effRT Support'!$B130=0,\"\",IF('Project Information'!$E$25=\"\",\"\",'Project Information'!$E$25))","v":""},{"$f":"IF('effRT Support'!$B130=0,\"\",IF('Project Information'!$F$25=\"\",\"\",'Project Information'!$F$25))","v":""},{"$f":"IF('effRT Support'!$B130=0,\"\",IF('Project Information'!$D$27=\"\",\"Y\",\"N\"))","v":""},{"$f":"IF('effRT Support'!$B130=0,\"\",IF('Project Information'!$D$27=\"\",\"\",'Project Information'!$D$27))","v":""},{"$f":"IF('effRT Support'!$B130=0,\"\",IF('Project Information'!$D$28=\"\",\"\",'Project Information'!$D$28))","v":""},{"$f":"IF('effRT Support'!$B130=0,\"\",IF('Project Information'!$D$29=\"\",\"\",'Project Information'!$D$29))","v":""},{"$f":"IF('effRT Support'!$B130=0,\"\",IF('Project Information'!$E$29=\"\",\"\",'Project Information'!$E$29))","v":""},{"$f":"IF('effRT Support'!$B130=0,\"\",IF('Project Information'!$F$29=\"\",\"\",'Project Information'!$F$29))","v":""},{"$f":"IF('effRT Support'!$B130=0,\"\",\"\")","v":""},{"$f":"IF('effRT Support'!$B130=0,\"\",\"\")","v":""},{"$f":"IF('effRT Support'!$B130=0,\"\",IF('Project Information'!$D$36=\"\",\"\",'Project Information'!$D$36))","v":""},{"$f":"IF('effRT Support'!$B130=0,\"\",IF('Project Information'!$D$42=\"\",\"\",'Project Information'!$D$42))","v":""},{"$f":"IF('effRT Support'!$B130=0,\"\",'effRT Support'!$D130)","v":""},{"$f":"IF('effRT Support'!$B130=0,\"\",'effRT Support'!$L130)","v":""},{"$f":"IF('effRT Support'!$B130=0,\"\",'effRT Support'!$N130)","v":""},null,null,{"$f":"IF('effRT Support'!$B130=0,\"\",'effRT Support'!$P130)","v":""},{"$f":"IF('effRT Support'!$B130=0,\"\",'effRT Support'!$Q130)","v":""},{"$f":"IF('effRT Support'!$B130=0,\"\",'effRT Support'!U130)","v":""},{"$f":"IF('effRT Support'!$B130=0,\"\",'effRT Support'!V130)","v":""},{"$f":"IF('effRT Support'!$B130=0,\"\",'effRT Support'!W130)","v":""},{"$f":"IF('effRT Support'!$B130=0,\"\",'effRT Support'!X130)","v":""},{"$f":"IF('effRT Support'!$B130=0,\"\",'effRT Support'!Y130)","v":""},{"$f":"IF('effRT Support'!$B130=0,\"\",'effRT Support'!Z130*10)","v":""},{"$f":"IF('effRT Support'!$B130=0,\"\",'effRT Support'!AA130)","v":""},{"$f":"IF('effRT Support'!$B130=0,\"\",'effRT Support'!AB130)","v":""},{"$f":"IF('effRT Support'!$B130=0,\"\",'effRT Support'!AC130)","v":""},{"$f":"IF('effRT Support'!$B130=0,\"\",'effRT Support'!AD130)","v":""},{"$f":"IF('effRT Support'!$B130=0,\"\",'effRT Support'!AE130)","v":""},{"$f":"IF('effRT Support'!$B130=0,\"\",\"Hours Actual or Deemed\")","v":""},{"$f":"IF('effRT Support'!$B130=0,\"\",'effRT Support'!$F130)","v":""},{"$f":"IF('effRT Support'!$B130=0,\"\",\"Wattage Actual or Deemed\")","v":""},{"$f":"IF('effRT Support'!$B130=0,\"\",IF('Project Information'!$D$33=\"Pay For Performance\",\"Actual\",\"Deemed\"))","v":""},{"$f":"IF('effRT Support'!$B130=0,\"\",\"Cost Actual or Deemed\")","v":""},{"$f":"IF('effRT Support'!$B130=0,\"\",IF('Project Information'!$D$33=\"Pay For Performance\",\"Actual\",\"Deemed\"))","v":""},{"$f":"IF('effRT Support'!$B130=0,\"\",\"Location\")","v":""},{"$f":"IF('effRT Support'!$B130=0,\"\",'effRT Support'!$E130)","v":""},{"$f":"IF('effRT Support'!$B130=0,\"\",\"Space Type\")","v":""},{"$f":"IF('effRT Support'!$B130=0,\"\",'effRT Support'!$G130)","v":""},{"$f":"IF('effRT Support'!$B130=0,\"\",\"Existing Fixture Description\")","v":""},{"$f":"IF('effRT Support'!$B130=0,\"\",'effRT Support'!$H130)","v":""},{"$f":"IF('effRT Support'!$B130=0,\"\",\"Existing Fixture Quantity\")","v":""},{"$f":"IF('effRT Support'!$B130=0,\"\",'effRT Support'!$I130)","v":""},{"$f":"IF('effRT Support'!$B130=0,\"\",\"Existing Fixture Wattage\")","v":""},{"$f":"IF('effRT Support'!$B130=0,\"\",'effRT Support'!$J130)","v":""},{"$f":"IF('effRT Support'!$B130=0,\"\",\"Annual Hours of Operation\")","v":""},{"$f":"IF('effRT Support'!$B130=0,\"\",'effRT Support'!$K130)","v":""},{"$f":"IF('effRT Support'!$B130=0,\"\",\"Installed Fixture Description\")","v":""},{"$f":"IF('effRT Support'!$B130=0,\"\",'effRT Support'!$M130)","v":""},{"$f":"IF('effRT Support'!$B130=0,\"\",\"Installed Fixture Wattage\")","v":""},{"$f":"IF('effRT Support'!$B130=0,\"\",'effRT Support'!$O130)","v":""},{"$f":"IF('effRT Support'!$B130=0,\"\",\"Material Cost\")","v":""},{"$f":"IF('effRT Support'!$B130=0,\"\",'effRT Support'!$R130)","v":""},{"$f":"IF('effRT Support'!$B130=0,\"\",\"Labor Cost\")","v":""},{"$f":"IF('effRT Support'!$B130=0,\"\",'effRT Support'!$S130)","v":""},{"$f":"IF('effRT Support'!$B130=0,\"\",\"Ancillary Costs - Measure Specific\")","v":""},{"$f":"IF('effRT Support'!$B130=0,\"\",'effRT Support'!$T130)","v":""},{"$f":"IF('effRT Support'!$B130=0,\"\",\"Fuel Type\")","v":""},{"$f":"IF('effRT Support'!$B130=0,\"\",'Project Information'!$D$44)","v":""}]
[{"$f":"IF('effRT Support'!$B131=0,\"\",IF('Project Information'!$D$33=\"Small Business\",\"SBL\",\"CILS\"))","v":""},{"$f":"IF('effRT Support'!$B131=0,\"\",IF('Project Information'!$K$2=\"\",\"\",'Project Information'!$K$2))","v":""},null,{"$f":"IF('effRT Support'!$B131=0,\"\",IF('Project Information'!$D$46=\"\",\"\",'Project Information'!$D$46))","v":""},{"$f":"IF('effRT Support'!$B131=0,\"\",IF('Project Information'!$D$20=\"\",\"\",VLOOKUP('Project Information'!$D$20,'Other Data'!$B$159:$E$189,4,FALSE)))","v":""},{"$f":"IF('effRT Support'!$B131=0,\"\",IF('Project Information'!$D$31=\"\",\"\",'Project Information'!$D$31))","v":""},{"$f":"IF('effRT Support'!$B131=0,\"\",IF('Project Information'!$D$5=\"\",\"\",'Project Information'!$D$5))","v":""},null,null,{"$f":"IF('effRT Support'!$B131=0,\"\",IF('Project Information'!$D$20=\"\",\"\",VLOOKUP('Project Information'!$D$20,'Other Data'!$B$159:$E$189,2,FALSE)))","v":""},{"$f":"IF('effRT Support'!$B131=0,\"\",IF('Project Information'!$D$20=\"\",\"\",VLOOKUP('Project Information'!$D$20,'Other Data'!$B$159:$E$189,3,FALSE)))","v":""},{"$f":"IF('effRT Support'!$B131=0,\"\",\"Existing\")","v":""},null,{"$f":"IF('effRT Support'!$B131=0,\"\",IF('Project Information'!$D$21=\"\",\"\",'Project Information'!$D$21))","v":""},{"$f":"IF('effRT Support'!$B131=0,\"\",IF('Project Information'!$D$48=\"\",\"\",'Project Information'!$D$48))","v":""},{"$f":"IF('effRT Support'!$B131=0,\"\",\"\")","v":""},{"$f":"IF('effRT Support'!$B131=0,\"\",\"\")","v":""},{"$f":"IF('effRT Support'!$B131=0,\"\",\"\")","v":""},{"$f":"IF('effRT Support'!$B131=0,\"\",\"\")","v":""},{"$f":"IF('effRT Support'!$B131=0,\"\",IF('Project Information'!$D$13=\"\",\"\",'Project Information'!$D$13))","v":""},{"$f":"IF('effRT Support'!$B131=0,\"\",IF('Project Information'!$E$13=\"\",\"\",'Project Information'!$E$13))","v":""},{"$f":"IF('effRT Support'!$B131=0,\"\",IF('Project Information'!$D$14=\"\",\"\",'Project Information'!$D$14))","v":""},{"$f":"IF('effRT Support'!$B131=0,\"\",IF('Project Information'!$D$15=\"\",\"\",'Project Information'!$D$15))","v":""},{"$f":"IF('effRT Support'!$B131=0,\"\",IF('Project Information'!$D$16=\"\",\"\",'Project Information'!$D$16))","v":""},null,{"$f":"IF('effRT Support'!$B131=0,\"\",'Project Information'!$D$18)","v":""},{"$f":"IF('effRT Support'!$B131=0,\"\",IF('Project Information'!$D$23=\"\",\"\",'Project Information'!$D$23))","v":""},{"$f":"IF('effRT Support'!$B131=0,\"\",IF('Project Information'!$D$24=\"\",\"\",'Project Information'!$D$24))","v":""},{"$f":"IF('effRT Support'!$B131=0,\"\",IF('Project Information'!$D$25=\"\",\"\",'Project Information'!$D$25))","v":""},{"$f":"IF('effRT Support'!$B131=0,\"\",IF('Project Information'!$E$25=\"\",\"\",'Project Information'!$E$25))","v":""},{"$f":"IF('effRT Support'!$B131=0,\"\",IF('Project Information'!$F$25=\"\",\"\",'Project Information'!$F$25))","v":""},{"$f":"IF('effRT Support'!$B131=0,\"\",IF('Project Information'!$D$27=\"\",\"Y\",\"N\"))","v":""},{"$f":"IF('effRT Support'!$B131=0,\"\",IF('Project Information'!$D$27=\"\",\"\",'Project Information'!$D$27))","v":""},{"$f":"IF('effRT Support'!$B131=0,\"\",IF('Project Information'!$D$28=\"\",\"\",'Project Information'!$D$28))","v":""},{"$f":"IF('effRT Support'!$B131=0,\"\",IF('Project Information'!$D$29=\"\",\"\",'Project Information'!$D$29))","v":""},{"$f":"IF('effRT Support'!$B131=0,\"\",IF('Project Information'!$E$29=\"\",\"\",'Project Information'!$E$29))","v":""},{"$f":"IF('effRT Support'!$B131=0,\"\",IF('Project Information'!$F$29=\"\",\"\",'Project Information'!$F$29))","v":""},{"$f":"IF('effRT Support'!$B131=0,\"\",\"\")","v":""},{"$f":"IF('effRT Support'!$B131=0,\"\",\"\")","v":""},{"$f":"IF('effRT Support'!$B131=0,\"\",IF('Project Information'!$D$36=\"\",\"\",'Project Information'!$D$36))","v":""},{"$f":"IF('effRT Support'!$B131=0,\"\",IF('Project Information'!$D$42=\"\",\"\",'Project Information'!$D$42))","v":""},{"$f":"IF('effRT Support'!$B131=0,\"\",'effRT Support'!$D131)","v":""},{"$f":"IF('effRT Support'!$B131=0,\"\",'effRT Support'!$L131)","v":""},{"$f":"IF('effRT Support'!$B131=0,\"\",'effRT Support'!$N131)","v":""},null,null,{"$f":"IF('effRT Support'!$B131=0,\"\",'effRT Support'!$P131)","v":""},{"$f":"IF('effRT Support'!$B131=0,\"\",'effRT Support'!$Q131)","v":""},{"$f":"IF('effRT Support'!$B131=0,\"\",'effRT Support'!U131)","v":""},{"$f":"IF('effRT Support'!$B131=0,\"\",'effRT Support'!V131)","v":""},{"$f":"IF('effRT Support'!$B131=0,\"\",'effRT Support'!W131)","v":""},{"$f":"IF('effRT Support'!$B131=0,\"\",'effRT Support'!X131)","v":""},{"$f":"IF('effRT Support'!$B131=0,\"\",'effRT Support'!Y131)","v":""},{"$f":"IF('effRT Support'!$B131=0,\"\",'effRT Support'!Z131*10)","v":""},{"$f":"IF('effRT Support'!$B131=0,\"\",'effRT Support'!AA131)","v":""},{"$f":"IF('effRT Support'!$B131=0,\"\",'effRT Support'!AB131)","v":""},{"$f":"IF('effRT Support'!$B131=0,\"\",'effRT Support'!AC131)","v":""},{"$f":"IF('effRT Support'!$B131=0,\"\",'effRT Support'!AD131)","v":""},{"$f":"IF('effRT Support'!$B131=0,\"\",'effRT Support'!AE131)","v":""},{"$f":"IF('effRT Support'!$B131=0,\"\",\"Hours Actual or Deemed\")","v":""},{"$f":"IF('effRT Support'!$B131=0,\"\",'effRT Support'!$F131)","v":""},{"$f":"IF('effRT Support'!$B131=0,\"\",\"Wattage Actual or Deemed\")","v":""},{"$f":"IF('effRT Support'!$B131=0,\"\",IF('Project Information'!$D$33=\"Pay For Performance\",\"Actual\",\"Deemed\"))","v":""},{"$f":"IF('effRT Support'!$B131=0,\"\",\"Cost Actual or Deemed\")","v":""},{"$f":"IF('effRT Support'!$B131=0,\"\",IF('Project Information'!$D$33=\"Pay For Performance\",\"Actual\",\"Deemed\"))","v":""},{"$f":"IF('effRT Support'!$B131=0,\"\",\"Location\")","v":""},{"$f":"IF('effRT Support'!$B131=0,\"\",'effRT Support'!$E131)","v":""},{"$f":"IF('effRT Support'!$B131=0,\"\",\"Space Type\")","v":""},{"$f":"IF('effRT Support'!$B131=0,\"\",'effRT Support'!$G131)","v":""},{"$f":"IF('effRT Support'!$B131=0,\"\",\"Existing Fixture Description\")","v":""},{"$f":"IF('effRT Support'!$B131=0,\"\",'effRT Support'!$H131)","v":""},{"$f":"IF('effRT Support'!$B131=0,\"\",\"Existing Fixture Quantity\")","v":""},{"$f":"IF('effRT Support'!$B131=0,\"\",'effRT Support'!$I131)","v":""},{"$f":"IF('effRT Support'!$B131=0,\"\",\"Existing Fixture Wattage\")","v":""},{"$f":"IF('effRT Support'!$B131=0,\"\",'effRT Support'!$J131)","v":""},{"$f":"IF('effRT Support'!$B131=0,\"\",\"Annual Hours of Operation\")","v":""},{"$f":"IF('effRT Support'!$B131=0,\"\",'effRT Support'!$K131)","v":""},{"$f":"IF('effRT Support'!$B131=0,\"\",\"Installed Fixture Description\")","v":""},{"$f":"IF('effRT Support'!$B131=0,\"\",'effRT Support'!$M131)","v":""},{"$f":"IF('effRT Support'!$B131=0,\"\",\"Installed Fixture Wattage\")","v":""},{"$f":"IF('effRT Support'!$B131=0,\"\",'effRT Support'!$O131)","v":""},{"$f":"IF('effRT Support'!$B131=0,\"\",\"Material Cost\")","v":""},{"$f":"IF('effRT Support'!$B131=0,\"\",'effRT Support'!$R131)","v":""},{"$f":"IF('effRT Support'!$B131=0,\"\",\"Labor Cost\")","v":""},{"$f":"IF('effRT Support'!$B131=0,\"\",'effRT Support'!$S131)","v":""},{"$f":"IF('effRT Support'!$B131=0,\"\",\"Ancillary Costs - Measure Specific\")","v":""},{"$f":"IF('effRT Support'!$B131=0,\"\",'effRT Support'!$T131)","v":""},{"$f":"IF('effRT Support'!$B131=0,\"\",\"Fuel Type\")","v":""},{"$f":"IF('effRT Support'!$B131=0,\"\",'Project Information'!$D$44)","v":""},{"$f":"IF('effRT Support'!$B131=0,\"\",\"Installed Fixture Quantity\")","v":""},{"$f":"IF('effRT Support'!$B131=0,\"\",'effRT Support'!P130)","v":""}]
[{"$f":"IF('effRT Support'!$B132=0,\"\",IF('Project Information'!$D$33=\"Small Business\",\"SBL\",\"CILS\"))","v":""},{"$f":"IF('effRT Support'!$B132=0,\"\",IF('Project Information'!$K$2=\"\",\"\",'Project Information'!$K$2))","v":""},null,{"$f":"IF('effRT Support'!$B132=0,\"\",IF('Project Information'!$D$46=\"\",\"\",'Project Information'!$D$46))","v":""},{"$f":"IF('effRT Support'!$B132=0,\"\",IF('Project Information'!$D$20=\"\",\"\",VLOOKUP('Project Information'!$D$20,'Other Data'!$B$159:$E$189,4,FALSE)))","v":""},{"$f":"IF('effRT Support'!$B132=0,\"\",IF('Project Information'!$D$31=\"\",\"\",'Project Information'!$D$31))","v":""},{"$f":"IF('effRT Support'!$B132=0,\"\",IF('Project Information'!$D$5=\"\",\"\",'Project Information'!$D$5))","v":""},null,null,{"$f":"IF('effRT Support'!$B132=0,\"\",IF('Project Information'!$D$20=\"\",\"\",VLOOKUP('Project Information'!$D$20,'Other Data'!$B$159:$E$189,2,FALSE)))","v":""},{"$f":"IF('effRT Support'!$B132=0,\"\",IF('Project Information'!$D$20=\"\",\"\",VLOOKUP('Project Information'!$D$20,'Other Data'!$B$159:$E$189,3,FALSE)))","v":""},{"$f":"IF('effRT Support'!$B132=0,\"\",\"Existing\")","v":""},null,{"$f":"IF('effRT Support'!$B132=0,\"\",IF('Project Information'!$D$21=\"\",\"\",'Project Information'!$D$21))","v":""},{"$f":"IF('effRT Support'!$B132=0,\"\",IF('Project Information'!$D$48=\"\",\"\",'Project Information'!$D$48))","v":""},{"$f":"IF('effRT Support'!$B132=0,\"\",\"\")","v":""},{"$f":"IF('effRT Support'!$B132=0,\"\",\"\")","v":""},{"$f":"IF('effRT Support'!$B132=0,\"\",\"\")","v":""},{"$f":"IF('effRT Support'!$B132=0,\"\",\"\")","v":""},{"$f":"IF('effRT Support'!$B132=0,\"\",IF('Project Information'!$D$13=\"\",\"\",'Project Information'!$D$13))","v":""},{"$f":"IF('effRT Support'!$B132=0,\"\",IF('Project Information'!$E$13=\"\",\"\",'Project Information'!$E$13))","v":""},{"$f":"IF('effRT Support'!$B132=0,\"\",IF('Project Information'!$D$14=\"\",\"\",'Project Information'!$D$14))","v":""},{"$f":"IF('effRT Support'!$B132=0,\"\",IF('Project Information'!$D$15=\"\",\"\",'Project Information'!$D$15))","v":""},{"$f":"IF('effRT Support'!$B132=0,\"\",IF('Project Information'!$D$16=\"\",\"\",'Project Information'!$D$16))","v":""},null,{"$f":"IF('effRT Support'!$B132=0,\"\",'Project Information'!$D$18)","v":""},{"$f":"IF('effRT Support'!$B132=0,\"\",IF('Project Information'!$D$23=\"\",\"\",'Project Information'!$D$23))","v":""},{"$f":"IF('effRT Support'!$B132=0,\"\",IF('Project Information'!$D$24=\"\",\"\",'Project Information'!$D$24))","v":""},{"$f":"IF('effRT Support'!$B132=0,\"\",IF('Project Information'!$D$25=\"\",\"\",'Project Information'!$D$25))","v":""},{"$f":"IF('effRT Support'!$B132=0,\"\",IF('Project Information'!$E$25=\"\",\"\",'Project Information'!$E$25))","v":""},{"$f":"IF('effRT Support'!$B132=0,\"\",IF('Project Information'!$F$25=\"\",\"\",'Project Information'!$F$25))","v":""},{"$f":"IF('effRT Support'!$B132=0,\"\",IF('Project Information'!$D$27=\"\",\"Y\",\"N\"))","v":""},{"$f":"IF('effRT Support'!$B132=0,\"\",IF('Project Information'!$D$27=\"\",\"\",'Project Information'!$D$27))","v":""},{"$f":"IF('effRT Support'!$B132=0,\"\",IF('Project Information'!$D$28=\"\",\"\",'Project Information'!$D$28))","v":""},{"$f":"IF('effRT Support'!$B132=0,\"\",IF('Project Information'!$D$29=\"\",\"\",'Project Information'!$D$29))","v":""},{"$f":"IF('effRT Support'!$B132=0,\"\",IF('Project Information'!$E$29=\"\",\"\",'Project Information'!$E$29))","v":""},{"$f":"IF('effRT Support'!$B132=0,\"\",IF('Project Information'!$F$29=\"\",\"\",'Project Information'!$F$29))","v":""},{"$f":"IF('effRT Support'!$B132=0,\"\",\"\")","v":""},{"$f":"IF('effRT Support'!$B132=0,\"\",\"\")","v":""},{"$f":"IF('effRT Support'!$B132=0,\"\",IF('Project Information'!$D$36=\"\",\"\",'Project Information'!$D$36))","v":""},{"$f":"IF('effRT Support'!$B132=0,\"\",IF('Project Information'!$D$42=\"\",\"\",'Project Information'!$D$42))","v":""},{"$f":"IF('effRT Support'!$B132=0,\"\",'effRT Support'!$D132)","v":""},{"$f":"IF('effRT Support'!$B132=0,\"\",'effRT Support'!$L132)","v":""},{"$f":"IF('effRT Support'!$B132=0,\"\",'effRT Support'!$N132)","v":""},null,null,{"$f":"IF('effRT Support'!$B132=0,\"\",'effRT Support'!$P132)","v":""},{"$f":"IF('effRT Support'!$B132=0,\"\",'effRT Support'!$Q132)","v":""},{"$f":"IF('effRT Support'!$B132=0,\"\",'effRT Support'!U132)","v":""},{"$f":"IF('effRT Support'!$B132=0,\"\",'effRT Support'!V132)","v":""},{"$f":"IF('effRT Support'!$B132=0,\"\",'effRT Support'!W132)","v":""},{"$f":"IF('effRT Support'!$B132=0,\"\",'effRT Support'!X132)","v":""},{"$f":"IF('effRT Support'!$B132=0,\"\",'effRT Support'!Y132)","v":""},{"$f":"IF('effRT Support'!$B132=0,\"\",'effRT Support'!Z132*10)","v":""},{"$f":"IF('effRT Support'!$B132=0,\"\",'effRT Support'!AA132)","v":""},{"$f":"IF('effRT Support'!$B132=0,\"\",'effRT Support'!AB132)","v":""},{"$f":"IF('effRT Support'!$B132=0,\"\",'effRT Support'!AC132)","v":""},{"$f":"IF('effRT Support'!$B132=0,\"\",'effRT Support'!AD132)","v":""},{"$f":"IF('effRT Support'!$B132=0,\"\",'effRT Support'!AE132)","v":""},{"$f":"IF('effRT Support'!$B132=0,\"\",\"Hours Actual or Deemed\")","v":""},{"$f":"IF('effRT Support'!$B132=0,\"\",'effRT Support'!$F132)","v":""},{"$f":"IF('effRT Support'!$B132=0,\"\",\"Wattage Actual or Deemed\")","v":""},{"$f":"IF('effRT Support'!$B132=0,\"\",IF('Project Information'!$D$33=\"Pay For Performance\",\"Actual\",\"Deemed\"))","v":""},{"$f":"IF('effRT Support'!$B132=0,\"\",\"Cost Actual or Deemed\")","v":""},{"$f":"IF('effRT Support'!$B132=0,\"\",IF('Project Information'!$D$33=\"Pay For Performance\",\"Actual\",\"Deemed\"))","v":""},{"$f":"IF('effRT Support'!$B132=0,\"\",\"Location\")","v":""},{"$f":"IF('effRT Support'!$B132=0,\"\",'effRT Support'!$E132)","v":""},{"$f":"IF('effRT Support'!$B132=0,\"\",\"Space Type\")","v":""},{"$f":"IF('effRT Support'!$B132=0,\"\",'effRT Support'!$G132)","v":""},{"$f":"IF('effRT Support'!$B132=0,\"\",\"Existing Fixture Description\")","v":""},{"$f":"IF('effRT Support'!$B132=0,\"\",'effRT Support'!$H132)","v":""},{"$f":"IF('effRT Support'!$B132=0,\"\",\"Existing Fixture Quantity\")","v":""},{"$f":"IF('effRT Support'!$B132=0,\"\",'effRT Support'!$I132)","v":""},{"$f":"IF('effRT Support'!$B132=0,\"\",\"Existing Fixture Wattage\")","v":""},{"$f":"IF('effRT Support'!$B132=0,\"\",'effRT Support'!$J132)","v":""},{"$f":"IF('effRT Support'!$B132=0,\"\",\"Annual Hours of Operation\")","v":""},{"$f":"IF('effRT Support'!$B132=0,\"\",'effRT Support'!$K132)","v":""},{"$f":"IF('effRT Support'!$B132=0,\"\",\"Installed Fixture Description\")","v":""},{"$f":"IF('effRT Support'!$B132=0,\"\",'effRT Support'!$M132)","v":""},{"$f":"IF('effRT Support'!$B132=0,\"\",\"Installed Fixture Wattage\")","v":""},{"$f":"IF('effRT Support'!$B132=0,\"\",'effRT Support'!$O132)","v":""},{"$f":"IF('effRT Support'!$B132=0,\"\",\"Material Cost\")","v":""},{"$f":"IF('effRT Support'!$B132=0,\"\",'effRT Support'!$R132)","v":""},{"$f":"IF('effRT Support'!$B132=0,\"\",\"Labor Cost\")","v":""},{"$f":"IF('effRT Support'!$B132=0,\"\",'effRT Support'!$S132)","v":""},{"$f":"IF('effRT Support'!$B132=0,\"\",\"Ancillary Costs - Measure Specific\")","v":""},{"$f":"IF('effRT Support'!$B132=0,\"\",'effRT Support'!$T132)","v":""},{"$f":"IF('effRT Support'!$B132=0,\"\",\"Fuel Type\")","v":""},{"$f":"IF('effRT Support'!$B132=0,\"\",'Project Information'!$D$44)","v":""}]
[{"$f":"IF('effRT Support'!$B133=0,\"\",IF('Project Information'!$D$33=\"Small Business\",\"SBL\",\"CILS\"))","v":""},{"$f":"IF('effRT Support'!$B133=0,\"\",IF('Project Information'!$K$2=\"\",\"\",'Project Information'!$K$2))","v":""},null,{"$f":"IF('effRT Support'!$B133=0,\"\",IF('Project Information'!$D$46=\"\",\"\",'Project Information'!$D$46))","v":""},{"$f":"IF('effRT Support'!$B133=0,\"\",IF('Project Information'!$D$20=\"\",\"\",VLOOKUP('Project Information'!$D$20,'Other Data'!$B$159:$E$189,4,FALSE)))","v":""},{"$f":"IF('effRT Support'!$B133=0,\"\",IF('Project Information'!$D$31=\"\",\"\",'Project Information'!$D$31))","v":""},{"$f":"IF('effRT Support'!$B133=0,\"\",IF('Project Information'!$D$5=\"\",\"\",'Project Information'!$D$5))","v":""},null,null,{"$f":"IF('effRT Support'!$B133=0,\"\",IF('Project Information'!$D$20=\"\",\"\",VLOOKUP('Project Information'!$D$20,'Other Data'!$B$159:$E$189,2,FALSE)))","v":""},{"$f":"IF('effRT Support'!$B133=0,\"\",IF('Project Information'!$D$20=\"\",\"\",VLOOKUP('Project Information'!$D$20,'Other Data'!$B$159:$E$189,3,FALSE)))","v":""},{"$f":"IF('effRT Support'!$B133=0,\"\",\"Existing\")","v":""},null,{"$f":"IF('effRT Support'!$B133=0,\"\",IF('Project Information'!$D$21=\"\",\"\",'Project Information'!$D$21))","v":""},{"$f":"IF('effRT Support'!$B133=0,\"\",IF('Project Information'!$D$48=\"\",\"\",'Project Information'!$D$48))","v":""},{"$f":"IF('effRT Support'!$B133=0,\"\",\"\")","v":""},{"$f":"IF('effRT Support'!$B133=0,\"\",\"\")","v":""},{"$f":"IF('effRT Support'!$B133=0,\"\",\"\")","v":""},{"$f":"IF('effRT Support'!$B133=0,\"\",\"\")","v":""},{"$f":"IF('effRT Support'!$B133=0,\"\",IF('Project Information'!$D$13=\"\",\"\",'Project Information'!$D$13))","v":""},{"$f":"IF('effRT Support'!$B133=0,\"\",IF('Project Information'!$E$13=\"\",\"\",'Project Information'!$E$13))","v":""},{"$f":"IF('effRT Support'!$B133=0,\"\",IF('Project Information'!$D$14=\"\",\"\",'Project Information'!$D$14))","v":""},{"$f":"IF('effRT Support'!$B133=0,\"\",IF('Project Information'!$D$15=\"\",\"\",'Project Information'!$D$15))","v":""},{"$f":"IF('effRT Support'!$B133=0,\"\",IF('Project Information'!$D$16=\"\",\"\",'Project Information'!$D$16))","v":""},null,{"$f":"IF('effRT Support'!$B133=0,\"\",'Project Information'!$D$18)","v":""},{"$f":"IF('effRT Support'!$B133=0,\"\",IF('Project Information'!$D$23=\"\",\"\",'Project Information'!$D$23))","v":""},{"$f":"IF('effRT Support'!$B133=0,\"\",IF('Project Information'!$D$24=\"\",\"\",'Project Information'!$D$24))","v":""},{"$f":"IF('effRT Support'!$B133=0,\"\",IF('Project Information'!$D$25=\"\",\"\",'Project Information'!$D$25))","v":""},{"$f":"IF('effRT Support'!$B133=0,\"\",IF('Project Information'!$E$25=\"\",\"\",'Project Information'!$E$25))","v":""},{"$f":"IF('effRT Support'!$B133=0,\"\",IF('Project Information'!$F$25=\"\",\"\",'Project Information'!$F$25))","v":""},{"$f":"IF('effRT Support'!$B133=0,\"\",IF('Project Information'!$D$27=\"\",\"Y\",\"N\"))","v":""},{"$f":"IF('effRT Support'!$B133=0,\"\",IF('Project Information'!$D$27=\"\",\"\",'Project Information'!$D$27))","v":""},{"$f":"IF('effRT Support'!$B133=0,\"\",IF('Project Information'!$D$28=\"\",\"\",'Project Information'!$D$28))","v":""},{"$f":"IF('effRT Support'!$B133=0,\"\",IF('Project Information'!$D$29=\"\",\"\",'Project Information'!$D$29))","v":""},{"$f":"IF('effRT Support'!$B133=0,\"\",IF('Project Information'!$E$29=\"\",\"\",'Project Information'!$E$29))","v":""},{"$f":"IF('effRT Support'!$B133=0,\"\",IF('Project Information'!$F$29=\"\",\"\",'Project Information'!$F$29))","v":""},{"$f":"IF('effRT Support'!$B133=0,\"\",\"\")","v":""},{"$f":"IF('effRT Support'!$B133=0,\"\",\"\")","v":""},{"$f":"IF('effRT Support'!$B133=0,\"\",IF('Project Information'!$D$36=\"\",\"\",'Project Information'!$D$36))","v":""},{"$f":"IF('effRT Support'!$B133=0,\"\",IF('Project Information'!$D$42=\"\",\"\",'Project Information'!$D$42))","v":""},{"$f":"IF('effRT Support'!$B133=0,\"\",'effRT Support'!$D133)","v":""},{"$f":"IF('effRT Support'!$B133=0,\"\",'effRT Support'!$L133)","v":""},{"$f":"IF('effRT Support'!$B133=0,\"\",'effRT Support'!$N133)","v":""},null,null,{"$f":"IF('effRT Support'!$B133=0,\"\",'effRT Support'!$P133)","v":""},{"$f":"IF('effRT Support'!$B133=0,\"\",'effRT Support'!$Q133)","v":""},{"$f":"IF('effRT Support'!$B133=0,\"\",'effRT Support'!U133)","v":""},{"$f":"IF('effRT Support'!$B133=0,\"\",'effRT Support'!V133)","v":""},{"$f":"IF('effRT Support'!$B133=0,\"\",'effRT Support'!W133)","v":""},{"$f":"IF('effRT Support'!$B133=0,\"\",'effRT Support'!X133)","v":""},{"$f":"IF('effRT Support'!$B133=0,\"\",'effRT Support'!Y133)","v":""},{"$f":"IF('effRT Support'!$B133=0,\"\",'effRT Support'!Z133*10)","v":""},{"$f":"IF('effRT Support'!$B133=0,\"\",'effRT Support'!AA133)","v":""},{"$f":"IF('effRT Support'!$B133=0,\"\",'effRT Support'!AB133)","v":""},{"$f":"IF('effRT Support'!$B133=0,\"\",'effRT Support'!AC133)","v":""},{"$f":"IF('effRT Support'!$B133=0,\"\",'effRT Support'!AD133)","v":""},{"$f":"IF('effRT Support'!$B133=0,\"\",'effRT Support'!AE133)","v":""},{"$f":"IF('effRT Support'!$B133=0,\"\",\"Hours Actual or Deemed\")","v":""},{"$f":"IF('effRT Support'!$B133=0,\"\",'effRT Support'!$F133)","v":""},{"$f":"IF('effRT Support'!$B133=0,\"\",\"Wattage Actual or Deemed\")","v":""},{"$f":"IF('effRT Support'!$B133=0,\"\",IF('Project Information'!$D$33=\"Pay For Performance\",\"Actual\",\"Deemed\"))","v":""},{"$f":"IF('effRT Support'!$B133=0,\"\",\"Cost Actual or Deemed\")","v":""},{"$f":"IF('effRT Support'!$B133=0,\"\",IF('Project Information'!$D$33=\"Pay For Performance\",\"Actual\",\"Deemed\"))","v":""},{"$f":"IF('effRT Support'!$B133=0,\"\",\"Location\")","v":""},{"$f":"IF('effRT Support'!$B133=0,\"\",'effRT Support'!$E133)","v":""},{"$f":"IF('effRT Support'!$B133=0,\"\",\"Space Type\")","v":""},{"$f":"IF('effRT Support'!$B133=0,\"\",'effRT Support'!$G133)","v":""},{"$f":"IF('effRT Support'!$B133=0,\"\",\"Existing Fixture Description\")","v":""},{"$f":"IF('effRT Support'!$B133=0,\"\",'effRT Support'!$H133)","v":""},{"$f":"IF('effRT Support'!$B133=0,\"\",\"Existing Fixture Quantity\")","v":""},{"$f":"IF('effRT Support'!$B133=0,\"\",'effRT Support'!$I133)","v":""},{"$f":"IF('effRT Support'!$B133=0,\"\",\"Existing Fixture Wattage\")","v":""},{"$f":"IF('effRT Support'!$B133=0,\"\",'effRT Support'!$J133)","v":""},{"$f":"IF('effRT Support'!$B133=0,\"\",\"Annual Hours of Operation\")","v":""},{"$f":"IF('effRT Support'!$B133=0,\"\",'effRT Support'!$K133)","v":""},{"$f":"IF('effRT Support'!$B133=0,\"\",\"Installed Fixture Description\")","v":""},{"$f":"IF('effRT Support'!$B133=0,\"\",'effRT Support'!$M133)","v":""},{"$f":"IF('effRT Support'!$B133=0,\"\",\"Installed Fixture Wattage\")","v":""},{"$f":"IF('effRT Support'!$B133=0,\"\",'effRT Support'!$O133)","v":""},{"$f":"IF('effRT Support'!$B133=0,\"\",\"Material Cost\")","v":""},{"$f":"IF('effRT Support'!$B133=0,\"\",'effRT Support'!$R133)","v":""},{"$f":"IF('effRT Support'!$B133=0,\"\",\"Labor Cost\")","v":""},{"$f":"IF('effRT Support'!$B133=0,\"\",'effRT Support'!$S133)","v":""},{"$f":"IF('effRT Support'!$B133=0,\"\",\"Ancillary Costs - Measure Specific\")","v":""},{"$f":"IF('effRT Support'!$B133=0,\"\",'effRT Support'!$T133)","v":""},{"$f":"IF('effRT Support'!$B133=0,\"\",\"Fuel Type\")","v":""},{"$f":"IF('effRT Support'!$B133=0,\"\",'Project Information'!$D$44)","v":""},{"$f":"IF('effRT Support'!$B133=0,\"\",\"Installed Fixture Quantity\")","v":""},{"$f":"IF('effRT Support'!$B133=0,\"\",'effRT Support'!P132)","v":""}]
[{"$f":"IF('effRT Support'!$B134=0,\"\",IF('Project Information'!$D$33=\"Small Business\",\"SBL\",\"CILS\"))","v":""},{"$f":"IF('effRT Support'!$B134=0,\"\",IF('Project Information'!$K$2=\"\",\"\",'Project Information'!$K$2))","v":""},null,{"$f":"IF('effRT Support'!$B134=0,\"\",IF('Project Information'!$D$46=\"\",\"\",'Project Information'!$D$46))","v":""},{"$f":"IF('effRT Support'!$B134=0,\"\",IF('Project Information'!$D$20=\"\",\"\",VLOOKUP('Project Information'!$D$20,'Other Data'!$B$159:$E$189,4,FALSE)))","v":""},{"$f":"IF('effRT Support'!$B134=0,\"\",IF('Project Information'!$D$31=\"\",\"\",'Project Information'!$D$31))","v":""},{"$f":"IF('effRT Support'!$B134=0,\"\",IF('Project Information'!$D$5=\"\",\"\",'Project Information'!$D$5))","v":""},null,null,{"$f":"IF('effRT Support'!$B134=0,\"\",IF('Project Information'!$D$20=\"\",\"\",VLOOKUP('Project Information'!$D$20,'Other Data'!$B$159:$E$189,2,FALSE)))","v":""},{"$f":"IF('effRT Support'!$B134=0,\"\",IF('Project Information'!$D$20=\"\",\"\",VLOOKUP('Project Information'!$D$20,'Other Data'!$B$159:$E$189,3,FALSE)))","v":""},{"$f":"IF('effRT Support'!$B134=0,\"\",\"Existing\")","v":""},null,{"$f":"IF('effRT Support'!$B134=0,\"\",IF('Project Information'!$D$21=\"\",\"\",'Project Information'!$D$21))","v":""},{"$f":"IF('effRT Support'!$B134=0,\"\",IF('Project Information'!$D$48=\"\",\"\",'Project Information'!$D$48))","v":""},{"$f":"IF('effRT Support'!$B134=0,\"\",\"\")","v":""},{"$f":"IF('effRT Support'!$B134=0,\"\",\"\")","v":""},{"$f":"IF('effRT Support'!$B134=0,\"\",\"\")","v":""},{"$f":"IF('effRT Support'!$B134=0,\"\",\"\")","v":""},{"$f":"IF('effRT Support'!$B134=0,\"\",IF('Project Information'!$D$13=\"\",\"\",'Project Information'!$D$13))","v":""},{"$f":"IF('effRT Support'!$B134=0,\"\",IF('Project Information'!$E$13=\"\",\"\",'Project Information'!$E$13))","v":""},{"$f":"IF('effRT Support'!$B134=0,\"\",IF('Project Information'!$D$14=\"\",\"\",'Project Information'!$D$14))","v":""},{"$f":"IF('effRT Support'!$B134=0,\"\",IF('Project Information'!$D$15=\"\",\"\",'Project Information'!$D$15))","v":""},{"$f":"IF('effRT Support'!$B134=0,\"\",IF('Project Information'!$D$16=\"\",\"\",'Project Information'!$D$16))","v":""},null,{"$f":"IF('effRT Support'!$B134=0,\"\",'Project Information'!$D$18)","v":""},{"$f":"IF('effRT Support'!$B134=0,\"\",IF('Project Information'!$D$23=\"\",\"\",'Project Information'!$D$23))","v":""},{"$f":"IF('effRT Support'!$B134=0,\"\",IF('Project Information'!$D$24=\"\",\"\",'Project Information'!$D$24))","v":""},{"$f":"IF('effRT Support'!$B134=0,\"\",IF('Project Information'!$D$25=\"\",\"\",'Project Information'!$D$25))","v":""},{"$f":"IF('effRT Support'!$B134=0,\"\",IF('Project Information'!$E$25=\"\",\"\",'Project Information'!$E$25))","v":""},{"$f":"IF('effRT Support'!$B134=0,\"\",IF('Project Information'!$F$25=\"\",\"\",'Project Information'!$F$25))","v":""},{"$f":"IF('effRT Support'!$B134=0,\"\",IF('Project Information'!$D$27=\"\",\"Y\",\"N\"))","v":""},{"$f":"IF('effRT Support'!$B134=0,\"\",IF('Project Information'!$D$27=\"\",\"\",'Project Information'!$D$27))","v":""},{"$f":"IF('effRT Support'!$B134=0,\"\",IF('Project Information'!$D$28=\"\",\"\",'Project Information'!$D$28))","v":""},{"$f":"IF('effRT Support'!$B134=0,\"\",IF('Project Information'!$D$29=\"\",\"\",'Project Information'!$D$29))","v":""},{"$f":"IF('effRT Support'!$B134=0,\"\",IF('Project Information'!$E$29=\"\",\"\",'Project Information'!$E$29))","v":""},{"$f":"IF('effRT Support'!$B134=0,\"\",IF('Project Information'!$F$29=\"\",\"\",'Project Information'!$F$29))","v":""},{"$f":"IF('effRT Support'!$B134=0,\"\",\"\")","v":""},{"$f":"IF('effRT Support'!$B134=0,\"\",\"\")","v":""},{"$f":"IF('effRT Support'!$B134=0,\"\",IF('Project Information'!$D$36=\"\",\"\",'Project Information'!$D$36))","v":""},{"$f":"IF('effRT Support'!$B134=0,\"\",IF('Project Information'!$D$42=\"\",\"\",'Project Information'!$D$42))","v":""},{"$f":"IF('effRT Support'!$B134=0,\"\",'effRT Support'!$D134)","v":""},{"$f":"IF('effRT Support'!$B134=0,\"\",'effRT Support'!$L134)","v":""},{"$f":"IF('effRT Support'!$B134=0,\"\",'effRT Support'!$N134)","v":""},null,null,{"$f":"IF('effRT Support'!$B134=0,\"\",'effRT Support'!$P134)","v":""},{"$f":"IF('effRT Support'!$B134=0,\"\",'effRT Support'!$Q134)","v":""},{"$f":"IF('effRT Support'!$B134=0,\"\",'effRT Support'!U134)","v":""},{"$f":"IF('effRT Support'!$B134=0,\"\",'effRT Support'!V134)","v":""},{"$f":"IF('effRT Support'!$B134=0,\"\",'effRT Support'!W134)","v":""},{"$f":"IF('effRT Support'!$B134=0,\"\",'effRT Support'!X134)","v":""},{"$f":"IF('effRT Support'!$B134=0,\"\",'effRT Support'!Y134)","v":""},{"$f":"IF('effRT Support'!$B134=0,\"\",'effRT Support'!Z134*10)","v":""},{"$f":"IF('effRT Support'!$B134=0,\"\",'effRT Support'!AA134)","v":""},{"$f":"IF('effRT Support'!$B134=0,\"\",'effRT Support'!AB134)","v":""},{"$f":"IF('effRT Support'!$B134=0,\"\",'effRT Support'!AC134)","v":""},{"$f":"IF('effRT Support'!$B134=0,\"\",'effRT Support'!AD134)","v":""},{"$f":"IF('effRT Support'!$B134=0,\"\",'effRT Support'!AE134)","v":""},{"$f":"IF('effRT Support'!$B134=0,\"\",\"Hours Actual or Deemed\")","v":""},{"$f":"IF('effRT Support'!$B134=0,\"\",'effRT Support'!$F134)","v":""},{"$f":"IF('effRT Support'!$B134=0,\"\",\"Wattage Actual or Deemed\")","v":""},{"$f":"IF('effRT Support'!$B134=0,\"\",IF('Project Information'!$D$33=\"Pay For Performance\",\"Actual\",\"Deemed\"))","v":""},{"$f":"IF('effRT Support'!$B134=0,\"\",\"Cost Actual or Deemed\")","v":""},{"$f":"IF('effRT Support'!$B134=0,\"\",IF('Project Information'!$D$33=\"Pay For Performance\",\"Actual\",\"Deemed\"))","v":""},{"$f":"IF('effRT Support'!$B134=0,\"\",\"Location\")","v":""},{"$f":"IF('effRT Support'!$B134=0,\"\",'effRT Support'!$E134)","v":""},{"$f":"IF('effRT Support'!$B134=0,\"\",\"Space Type\")","v":""},{"$f":"IF('effRT Support'!$B134=0,\"\",'effRT Support'!$G134)","v":""},{"$f":"IF('effRT Support'!$B134=0,\"\",\"Existing Fixture Description\")","v":""},{"$f":"IF('effRT Support'!$B134=0,\"\",'effRT Support'!$H134)","v":""},{"$f":"IF('effRT Support'!$B134=0,\"\",\"Existing Fixture Quantity\")","v":""},{"$f":"IF('effRT Support'!$B134=0,\"\",'effRT Support'!$I134)","v":""},{"$f":"IF('effRT Support'!$B134=0,\"\",\"Existing Fixture Wattage\")","v":""},{"$f":"IF('effRT Support'!$B134=0,\"\",'effRT Support'!$J134)","v":""},{"$f":"IF('effRT Support'!$B134=0,\"\",\"Annual Hours of Operation\")","v":""},{"$f":"IF('effRT Support'!$B134=0,\"\",'effRT Support'!$K134)","v":""},{"$f":"IF('effRT Support'!$B134=0,\"\",\"Installed Fixture Description\")","v":""},{"$f":"IF('effRT Support'!$B134=0,\"\",'effRT Support'!$M134)","v":""},{"$f":"IF('effRT Support'!$B134=0,\"\",\"Installed Fixture Wattage\")","v":""},{"$f":"IF('effRT Support'!$B134=0,\"\",'effRT Support'!$O134)","v":""},{"$f":"IF('effRT Support'!$B134=0,\"\",\"Material Cost\")","v":""},{"$f":"IF('effRT Support'!$B134=0,\"\",'effRT Support'!$R134)","v":""},{"$f":"IF('effRT Support'!$B134=0,\"\",\"Labor Cost\")","v":""},{"$f":"IF('effRT Support'!$B134=0,\"\",'effRT Support'!$S134)","v":""},{"$f":"IF('effRT Support'!$B134=0,\"\",\"Ancillary Costs - Measure Specific\")","v":""},{"$f":"IF('effRT Support'!$B134=0,\"\",'effRT Support'!$T134)","v":""},{"$f":"IF('effRT Support'!$B134=0,\"\",\"Fuel Type\")","v":""},{"$f":"IF('effRT Support'!$B134=0,\"\",'Project Information'!$D$44)","v":""}]
[{"$f":"IF('effRT Support'!$B135=0,\"\",IF('Project Information'!$D$33=\"Small Business\",\"SBL\",\"CILS\"))","v":""},{"$f":"IF('effRT Support'!$B135=0,\"\",IF('Project Information'!$K$2=\"\",\"\",'Project Information'!$K$2))","v":""},null,{"$f":"IF('effRT Support'!$B135=0,\"\",IF('Project Information'!$D$46=\"\",\"\",'Project Information'!$D$46))","v":""},{"$f":"IF('effRT Support'!$B135=0,\"\",IF('Project Information'!$D$20=\"\",\"\",VLOOKUP('Project Information'!$D$20,'Other Data'!$B$159:$E$189,4,FALSE)))","v":""},{"$f":"IF('effRT Support'!$B135=0,\"\",IF('Project Information'!$D$31=\"\",\"\",'Project Information'!$D$31))","v":""},{"$f":"IF('effRT Support'!$B135=0,\"\",IF('Project Information'!$D$5=\"\",\"\",'Project Information'!$D$5))","v":""},null,null,{"$f":"IF('effRT Support'!$B135=0,\"\",IF('Project Information'!$D$20=\"\",\"\",VLOOKUP('Project Information'!$D$20,'Other Data'!$B$159:$E$189,2,FALSE)))","v":""},{"$f":"IF('effRT Support'!$B135=0,\"\",IF('Project Information'!$D$20=\"\",\"\",VLOOKUP('Project Information'!$D$20,'Other Data'!$B$159:$E$189,3,FALSE)))","v":""},{"$f":"IF('effRT Support'!$B135=0,\"\",\"Existing\")","v":""},null,{"$f":"IF('effRT Support'!$B135=0,\"\",IF('Project Information'!$D$21=\"\",\"\",'Project Information'!$D$21))","v":""},{"$f":"IF('effRT Support'!$B135=0,\"\",IF('Project Information'!$D$48=\"\",\"\",'Project Information'!$D$48))","v":""},{"$f":"IF('effRT Support'!$B135=0,\"\",\"\")","v":""},{"$f":"IF('effRT Support'!$B135=0,\"\",\"\")","v":""},{"$f":"IF('effRT Support'!$B135=0,\"\",\"\")","v":""},{"$f":"IF('effRT Support'!$B135=0,\"\",\"\")","v":""},{"$f":"IF('effRT Support'!$B135=0,\"\",IF('Project Information'!$D$13=\"\",\"\",'Project Information'!$D$13))","v":""},{"$f":"IF('effRT Support'!$B135=0,\"\",IF('Project Information'!$E$13=\"\",\"\",'Project Information'!$E$13))","v":""},{"$f":"IF('effRT Support'!$B135=0,\"\",IF('Project Information'!$D$14=\"\",\"\",'Project Information'!$D$14))","v":""},{"$f":"IF('effRT Support'!$B135=0,\"\",IF('Project Information'!$D$15=\"\",\"\",'Project Information'!$D$15))","v":""},{"$f":"IF('effRT Support'!$B135=0,\"\",IF('Project Information'!$D$16=\"\",\"\",'Project Information'!$D$16))","v":""},null,{"$f":"IF('effRT Support'!$B135=0,\"\",'Project Information'!$D$18)","v":""},{"$f":"IF('effRT Support'!$B135=0,\"\",IF('Project Information'!$D$23=\"\",\"\",'Project Information'!$D$23))","v":""},{"$f":"IF('effRT Support'!$B135=0,\"\",IF('Project Information'!$D$24=\"\",\"\",'Project Information'!$D$24))","v":""},{"$f":"IF('effRT Support'!$B135=0,\"\",IF('Project Information'!$D$25=\"\",\"\",'Project Information'!$D$25))","v":""},{"$f":"IF('effRT Support'!$B135=0,\"\",IF('Project Information'!$E$25=\"\",\"\",'Project Information'!$E$25))","v":""},{"$f":"IF('effRT Support'!$B135=0,\"\",IF('Project Information'!$F$25=\"\",\"\",'Project Information'!$F$25))","v":""},{"$f":"IF('effRT Support'!$B135=0,\"\",IF('Project Information'!$D$27=\"\",\"Y\",\"N\"))","v":""},{"$f":"IF('effRT Support'!$B135=0,\"\",IF('Project Information'!$D$27=\"\",\"\",'Project Information'!$D$27))","v":""},{"$f":"IF('effRT Support'!$B135=0,\"\",IF('Project Information'!$D$28=\"\",\"\",'Project Information'!$D$28))","v":""},{"$f":"IF('effRT Support'!$B135=0,\"\",IF('Project Information'!$D$29=\"\",\"\",'Project Information'!$D$29))","v":""},{"$f":"IF('effRT Support'!$B135=0,\"\",IF('Project Information'!$E$29=\"\",\"\",'Project Information'!$E$29))","v":""},{"$f":"IF('effRT Support'!$B135=0,\"\",IF('Project Information'!$F$29=\"\",\"\",'Project Information'!$F$29))","v":""},{"$f":"IF('effRT Support'!$B135=0,\"\",\"\")","v":""},{"$f":"IF('effRT Support'!$B135=0,\"\",\"\")","v":""},{"$f":"IF('effRT Support'!$B135=0,\"\",IF('Project Information'!$D$36=\"\",\"\",'Project Information'!$D$36))","v":""},{"$f":"IF('effRT Support'!$B135=0,\"\",IF('Project Information'!$D$42=\"\",\"\",'Project Information'!$D$42))","v":""},{"$f":"IF('effRT Support'!$B135=0,\"\",'effRT Support'!$D135)","v":""},{"$f":"IF('effRT Support'!$B135=0,\"\",'effRT Support'!$L135)","v":""},{"$f":"IF('effRT Support'!$B135=0,\"\",'effRT Support'!$N135)","v":""},null,null,{"$f":"IF('effRT Support'!$B135=0,\"\",'effRT Support'!$P135)","v":""},{"$f":"IF('effRT Support'!$B135=0,\"\",'effRT Support'!$Q135)","v":""},{"$f":"IF('effRT Support'!$B135=0,\"\",'effRT Support'!U135)","v":""},{"$f":"IF('effRT Support'!$B135=0,\"\",'effRT Support'!V135)","v":""},{"$f":"IF('effRT Support'!$B135=0,\"\",'effRT Support'!W135)","v":""},{"$f":"IF('effRT Support'!$B135=0,\"\",'effRT Support'!X135)","v":""},{"$f":"IF('effRT Support'!$B135=0,\"\",'effRT Support'!Y135)","v":""},{"$f":"IF('effRT Support'!$B135=0,\"\",'effRT Support'!Z135*10)","v":""},{"$f":"IF('effRT Support'!$B135=0,\"\",'effRT Support'!AA135)","v":""},{"$f":"IF('effRT Support'!$B135=0,\"\",'effRT Support'!AB135)","v":""},{"$f":"IF('effRT Support'!$B135=0,\"\",'effRT Support'!AC135)","v":""},{"$f":"IF('effRT Support'!$B135=0,\"\",'effRT Support'!AD135)","v":""},{"$f":"IF('effRT Support'!$B135=0,\"\",'effRT Support'!AE135)","v":""},{"$f":"IF('effRT Support'!$B135=0,\"\",\"Hours Actual or Deemed\")","v":""},{"$f":"IF('effRT Support'!$B135=0,\"\",'effRT Support'!$F135)","v":""},{"$f":"IF('effRT Support'!$B135=0,\"\",\"Wattage Actual or Deemed\")","v":""},{"$f":"IF('effRT Support'!$B135=0,\"\",IF('Project Information'!$D$33=\"Pay For Performance\",\"Actual\",\"Deemed\"))","v":""},{"$f":"IF('effRT Support'!$B135=0,\"\",\"Cost Actual or Deemed\")","v":""},{"$f":"IF('effRT Support'!$B135=0,\"\",IF('Project Information'!$D$33=\"Pay For Performance\",\"Actual\",\"Deemed\"))","v":""},{"$f":"IF('effRT Support'!$B135=0,\"\",\"Location\")","v":""},{"$f":"IF('effRT Support'!$B135=0,\"\",'effRT Support'!$E135)","v":""},{"$f":"IF('effRT Support'!$B135=0,\"\",\"Space Type\")","v":""},{"$f":"IF('effRT Support'!$B135=0,\"\",'effRT Support'!$G135)","v":""},{"$f":"IF('effRT Support'!$B135=0,\"\",\"Existing Fixture Description\")","v":""},{"$f":"IF('effRT Support'!$B135=0,\"\",'effRT Support'!$H135)","v":""},{"$f":"IF('effRT Support'!$B135=0,\"\",\"Existing Fixture Quantity\")","v":""},{"$f":"IF('effRT Support'!$B135=0,\"\",'effRT Support'!$I135)","v":""},{"$f":"IF('effRT Support'!$B135=0,\"\",\"Existing Fixture Wattage\")","v":""},{"$f":"IF('effRT Support'!$B135=0,\"\",'effRT Support'!$J135)","v":""},{"$f":"IF('effRT Support'!$B135=0,\"\",\"Annual Hours of Operation\")","v":""},{"$f":"IF('effRT Support'!$B135=0,\"\",'effRT Support'!$K135)","v":""},{"$f":"IF('effRT Support'!$B135=0,\"\",\"Installed Fixture Description\")","v":""},{"$f":"IF('effRT Support'!$B135=0,\"\",'effRT Support'!$M135)","v":""},{"$f":"IF('effRT Support'!$B135=0,\"\",\"Installed Fixture Wattage\")","v":""},{"$f":"IF('effRT Support'!$B135=0,\"\",'effRT Support'!$O135)","v":""},{"$f":"IF('effRT Support'!$B135=0,\"\",\"Material Cost\")","v":""},{"$f":"IF('effRT Support'!$B135=0,\"\",'effRT Support'!$R135)","v":""},{"$f":"IF('effRT Support'!$B135=0,\"\",\"Labor Cost\")","v":""},{"$f":"IF('effRT Support'!$B135=0,\"\",'effRT Support'!$S135)","v":""},{"$f":"IF('effRT Support'!$B135=0,\"\",\"Ancillary Costs - Measure Specific\")","v":""},{"$f":"IF('effRT Support'!$B135=0,\"\",'effRT Support'!$T135)","v":""},{"$f":"IF('effRT Support'!$B135=0,\"\",\"Fuel Type\")","v":""},{"$f":"IF('effRT Support'!$B135=0,\"\",'Project Information'!$D$44)","v":""},{"$f":"IF('effRT Support'!$B135=0,\"\",\"Installed Fixture Quantity\")","v":""},{"$f":"IF('effRT Support'!$B135=0,\"\",'effRT Support'!P134)","v":""}]
[{"$f":"IF('effRT Support'!$B136=0,\"\",IF('Project Information'!$D$33=\"Small Business\",\"SBL\",\"CILS\"))","v":""},{"$f":"IF('effRT Support'!$B136=0,\"\",IF('Project Information'!$K$2=\"\",\"\",'Project Information'!$K$2))","v":""},null,{"$f":"IF('effRT Support'!$B136=0,\"\",IF('Project Information'!$D$46=\"\",\"\",'Project Information'!$D$46))","v":""},{"$f":"IF('effRT Support'!$B136=0,\"\",IF('Project Information'!$D$20=\"\",\"\",VLOOKUP('Project Information'!$D$20,'Other Data'!$B$159:$E$189,4,FALSE)))","v":""},{"$f":"IF('effRT Support'!$B136=0,\"\",IF('Project Information'!$D$31=\"\",\"\",'Project Information'!$D$31))","v":""},{"$f":"IF('effRT Support'!$B136=0,\"\",IF('Project Information'!$D$5=\"\",\"\",'Project Information'!$D$5))","v":""},null,null,{"$f":"IF('effRT Support'!$B136=0,\"\",IF('Project Information'!$D$20=\"\",\"\",VLOOKUP('Project Information'!$D$20,'Other Data'!$B$159:$E$189,2,FALSE)))","v":""},{"$f":"IF('effRT Support'!$B136=0,\"\",IF('Project Information'!$D$20=\"\",\"\",VLOOKUP('Project Information'!$D$20,'Other Data'!$B$159:$E$189,3,FALSE)))","v":""},{"$f":"IF('effRT Support'!$B136=0,\"\",\"Existing\")","v":""},null,{"$f":"IF('effRT Support'!$B136=0,\"\",IF('Project Information'!$D$21=\"\",\"\",'Project Information'!$D$21))","v":""},{"$f":"IF('effRT Support'!$B136=0,\"\",IF('Project Information'!$D$48=\"\",\"\",'Project Information'!$D$48))","v":""},{"$f":"IF('effRT Support'!$B136=0,\"\",\"\")","v":""},{"$f":"IF('effRT Support'!$B136=0,\"\",\"\")","v":""},{"$f":"IF('effRT Support'!$B136=0,\"\",\"\")","v":""},{"$f":"IF('effRT Support'!$B136=0,\"\",\"\")","v":""},{"$f":"IF('effRT Support'!$B136=0,\"\",IF('Project Information'!$D$13=\"\",\"\",'Project Information'!$D$13))","v":""},{"$f":"IF('effRT Support'!$B136=0,\"\",IF('Project Information'!$E$13=\"\",\"\",'Project Information'!$E$13))","v":""},{"$f":"IF('effRT Support'!$B136=0,\"\",IF('Project Information'!$D$14=\"\",\"\",'Project Information'!$D$14))","v":""},{"$f":"IF('effRT Support'!$B136=0,\"\",IF('Project Information'!$D$15=\"\",\"\",'Project Information'!$D$15))","v":""},{"$f":"IF('effRT Support'!$B136=0,\"\",IF('Project Information'!$D$16=\"\",\"\",'Project Information'!$D$16))","v":""},null,{"$f":"IF('effRT Support'!$B136=0,\"\",'Project Information'!$D$18)","v":""},{"$f":"IF('effRT Support'!$B136=0,\"\",IF('Project Information'!$D$23=\"\",\"\",'Project Information'!$D$23))","v":""},{"$f":"IF('effRT Support'!$B136=0,\"\",IF('Project Information'!$D$24=\"\",\"\",'Project Information'!$D$24))","v":""},{"$f":"IF('effRT Support'!$B136=0,\"\",IF('Project Information'!$D$25=\"\",\"\",'Project Information'!$D$25))","v":""},{"$f":"IF('effRT Support'!$B136=0,\"\",IF('Project Information'!$E$25=\"\",\"\",'Project Information'!$E$25))","v":""},{"$f":"IF('effRT Support'!$B136=0,\"\",IF('Project Information'!$F$25=\"\",\"\",'Project Information'!$F$25))","v":""},{"$f":"IF('effRT Support'!$B136=0,\"\",IF('Project Information'!$D$27=\"\",\"Y\",\"N\"))","v":""},{"$f":"IF('effRT Support'!$B136=0,\"\",IF('Project Information'!$D$27=\"\",\"\",'Project Information'!$D$27))","v":""},{"$f":"IF('effRT Support'!$B136=0,\"\",IF('Project Information'!$D$28=\"\",\"\",'Project Information'!$D$28))","v":""},{"$f":"IF('effRT Support'!$B136=0,\"\",IF('Project Information'!$D$29=\"\",\"\",'Project Information'!$D$29))","v":""},{"$f":"IF('effRT Support'!$B136=0,\"\",IF('Project Information'!$E$29=\"\",\"\",'Project Information'!$E$29))","v":""},{"$f":"IF('effRT Support'!$B136=0,\"\",IF('Project Information'!$F$29=\"\",\"\",'Project Information'!$F$29))","v":""},{"$f":"IF('effRT Support'!$B136=0,\"\",\"\")","v":""},{"$f":"IF('effRT Support'!$B136=0,\"\",\"\")","v":""},{"$f":"IF('effRT Support'!$B136=0,\"\",IF('Project Information'!$D$36=\"\",\"\",'Project Information'!$D$36))","v":""},{"$f":"IF('effRT Support'!$B136=0,\"\",IF('Project Information'!$D$42=\"\",\"\",'Project Information'!$D$42))","v":""},{"$f":"IF('effRT Support'!$B136=0,\"\",'effRT Support'!$D136)","v":""},{"$f":"IF('effRT Support'!$B136=0,\"\",'effRT Support'!$L136)","v":""},{"$f":"IF('effRT Support'!$B136=0,\"\",'effRT Support'!$N136)","v":""},null,null,{"$f":"IF('effRT Support'!$B136=0,\"\",'effRT Support'!$P136)","v":""},{"$f":"IF('effRT Support'!$B136=0,\"\",'effRT Support'!$Q136)","v":""},{"$f":"IF('effRT Support'!$B136=0,\"\",'effRT Support'!U136)","v":""},{"$f":"IF('effRT Support'!$B136=0,\"\",'effRT Support'!V136)","v":""},{"$f":"IF('effRT Support'!$B136=0,\"\",'effRT Support'!W136)","v":""},{"$f":"IF('effRT Support'!$B136=0,\"\",'effRT Support'!X136)","v":""},{"$f":"IF('effRT Support'!$B136=0,\"\",'effRT Support'!Y136)","v":""},{"$f":"IF('effRT Support'!$B136=0,\"\",'effRT Support'!Z136*10)","v":""},{"$f":"IF('effRT Support'!$B136=0,\"\",'effRT Support'!AA136)","v":""},{"$f":"IF('effRT Support'!$B136=0,\"\",'effRT Support'!AB136)","v":""},{"$f":"IF('effRT Support'!$B136=0,\"\",'effRT Support'!AC136)","v":""},{"$f":"IF('effRT Support'!$B136=0,\"\",'effRT Support'!AD136)","v":""},{"$f":"IF('effRT Support'!$B136=0,\"\",'effRT Support'!AE136)","v":""},{"$f":"IF('effRT Support'!$B136=0,\"\",\"Hours Actual or Deemed\")","v":""},{"$f":"IF('effRT Support'!$B136=0,\"\",'effRT Support'!$F136)","v":""},{"$f":"IF('effRT Support'!$B136=0,\"\",\"Wattage Actual or Deemed\")","v":""},{"$f":"IF('effRT Support'!$B136=0,\"\",IF('Project Information'!$D$33=\"Pay For Performance\",\"Actual\",\"Deemed\"))","v":""},{"$f":"IF('effRT Support'!$B136=0,\"\",\"Cost Actual or Deemed\")","v":""},{"$f":"IF('effRT Support'!$B136=0,\"\",IF('Project Information'!$D$33=\"Pay For Performance\",\"Actual\",\"Deemed\"))","v":""},{"$f":"IF('effRT Support'!$B136=0,\"\",\"Location\")","v":""},{"$f":"IF('effRT Support'!$B136=0,\"\",'effRT Support'!$E136)","v":""},{"$f":"IF('effRT Support'!$B136=0,\"\",\"Space Type\")","v":""},{"$f":"IF('effRT Support'!$B136=0,\"\",'effRT Support'!$G136)","v":""},{"$f":"IF('effRT Support'!$B136=0,\"\",\"Existing Fixture Description\")","v":""},{"$f":"IF('effRT Support'!$B136=0,\"\",'effRT Support'!$H136)","v":""},{"$f":"IF('effRT Support'!$B136=0,\"\",\"Existing Fixture Quantity\")","v":""},{"$f":"IF('effRT Support'!$B136=0,\"\",'effRT Support'!$I136)","v":""},{"$f":"IF('effRT Support'!$B136=0,\"\",\"Existing Fixture Wattage\")","v":""},{"$f":"IF('effRT Support'!$B136=0,\"\",'effRT Support'!$J136)","v":""},{"$f":"IF('effRT Support'!$B136=0,\"\",\"Annual Hours of Operation\")","v":""},{"$f":"IF('effRT Support'!$B136=0,\"\",'effRT Support'!$K136)","v":""},{"$f":"IF('effRT Support'!$B136=0,\"\",\"Installed Fixture Description\")","v":""},{"$f":"IF('effRT Support'!$B136=0,\"\",'effRT Support'!$M136)","v":""},{"$f":"IF('effRT Support'!$B136=0,\"\",\"Installed Fixture Wattage\")","v":""},{"$f":"IF('effRT Support'!$B136=0,\"\",'effRT Support'!$O136)","v":""},{"$f":"IF('effRT Support'!$B136=0,\"\",\"Material Cost\")","v":""},{"$f":"IF('effRT Support'!$B136=0,\"\",'effRT Support'!$R136)","v":""},{"$f":"IF('effRT Support'!$B136=0,\"\",\"Labor Cost\")","v":""},{"$f":"IF('effRT Support'!$B136=0,\"\",'effRT Support'!$S136)","v":""},{"$f":"IF('effRT Support'!$B136=0,\"\",\"Ancillary Costs - Measure Specific\")","v":""},{"$f":"IF('effRT Support'!$B136=0,\"\",'effRT Support'!$T136)","v":""},{"$f":"IF('effRT Support'!$B136=0,\"\",\"Fuel Type\")","v":""},{"$f":"IF('effRT Support'!$B136=0,\"\",'Project Information'!$D$44)","v":""}]
[{"$f":"IF('effRT Support'!$B137=0,\"\",IF('Project Information'!$D$33=\"Small Business\",\"SBL\",\"CILS\"))","v":""},{"$f":"IF('effRT Support'!$B137=0,\"\",IF('Project Information'!$K$2=\"\",\"\",'Project Information'!$K$2))","v":""},null,{"$f":"IF('effRT Support'!$B137=0,\"\",IF('Project Information'!$D$46=\"\",\"\",'Project Information'!$D$46))","v":""},{"$f":"IF('effRT Support'!$B137=0,\"\",IF('Project Information'!$D$20=\"\",\"\",VLOOKUP('Project Information'!$D$20,'Other Data'!$B$159:$E$189,4,FALSE)))","v":""},{"$f":"IF('effRT Support'!$B137=0,\"\",IF('Project Information'!$D$31=\"\",\"\",'Project Information'!$D$31))","v":""},{"$f":"IF('effRT Support'!$B137=0,\"\",IF('Project Information'!$D$5=\"\",\"\",'Project Information'!$D$5))","v":""},null,null,{"$f":"IF('effRT Support'!$B137=0,\"\",IF('Project Information'!$D$20=\"\",\"\",VLOOKUP('Project Information'!$D$20,'Other Data'!$B$159:$E$189,2,FALSE)))","v":""},{"$f":"IF('effRT Support'!$B137=0,\"\",IF('Project Information'!$D$20=\"\",\"\",VLOOKUP('Project Information'!$D$20,'Other Data'!$B$159:$E$189,3,FALSE)))","v":""},{"$f":"IF('effRT Support'!$B137=0,\"\",\"Existing\")","v":""},null,{"$f":"IF('effRT Support'!$B137=0,\"\",IF('Project Information'!$D$21=\"\",\"\",'Project Information'!$D$21))","v":""},{"$f":"IF('effRT Support'!$B137=0,\"\",IF('Project Information'!$D$48=\"\",\"\",'Project Information'!$D$48))","v":""},{"$f":"IF('effRT Support'!$B137=0,\"\",\"\")","v":""},{"$f":"IF('effRT Support'!$B137=0,\"\",\"\")","v":""},{"$f":"IF('effRT Support'!$B137=0,\"\",\"\")","v":""},{"$f":"IF('effRT Support'!$B137=0,\"\",\"\")","v":""},{"$f":"IF('effRT Support'!$B137=0,\"\",IF('Project Information'!$D$13=\"\",\"\",'Project Information'!$D$13))","v":""},{"$f":"IF('effRT Support'!$B137=0,\"\",IF('Project Information'!$E$13=\"\",\"\",'Project Information'!$E$13))","v":""},{"$f":"IF('effRT Support'!$B137=0,\"\",IF('Project Information'!$D$14=\"\",\"\",'Project Information'!$D$14))","v":""},{"$f":"IF('effRT Support'!$B137=0,\"\",IF('Project Information'!$D$15=\"\",\"\",'Project Information'!$D$15))","v":""},{"$f":"IF('effRT Support'!$B137=0,\"\",IF('Project Information'!$D$16=\"\",\"\",'Project Information'!$D$16))","v":""},null,{"$f":"IF('effRT Support'!$B137=0,\"\",'Project Information'!$D$18)","v":""},{"$f":"IF('effRT Support'!$B137=0,\"\",IF('Project Information'!$D$23=\"\",\"\",'Project Information'!$D$23))","v":""},{"$f":"IF('effRT Support'!$B137=0,\"\",IF('Project Information'!$D$24=\"\",\"\",'Project Information'!$D$24))","v":""},{"$f":"IF('effRT Support'!$B137=0,\"\",IF('Project Information'!$D$25=\"\",\"\",'Project Information'!$D$25))","v":""},{"$f":"IF('effRT Support'!$B137=0,\"\",IF('Project Information'!$E$25=\"\",\"\",'Project Information'!$E$25))","v":""},{"$f":"IF('effRT Support'!$B137=0,\"\",IF('Project Information'!$F$25=\"\",\"\",'Project Information'!$F$25))","v":""},{"$f":"IF('effRT Support'!$B137=0,\"\",IF('Project Information'!$D$27=\"\",\"Y\",\"N\"))","v":""},{"$f":"IF('effRT Support'!$B137=0,\"\",IF('Project Information'!$D$27=\"\",\"\",'Project Information'!$D$27))","v":""},{"$f":"IF('effRT Support'!$B137=0,\"\",IF('Project Information'!$D$28=\"\",\"\",'Project Information'!$D$28))","v":""},{"$f":"IF('effRT Support'!$B137=0,\"\",IF('Project Information'!$D$29=\"\",\"\",'Project Information'!$D$29))","v":""},{"$f":"IF('effRT Support'!$B137=0,\"\",IF('Project Information'!$E$29=\"\",\"\",'Project Information'!$E$29))","v":""},{"$f":"IF('effRT Support'!$B137=0,\"\",IF('Project Information'!$F$29=\"\",\"\",'Project Information'!$F$29))","v":""},{"$f":"IF('effRT Support'!$B137=0,\"\",\"\")","v":""},{"$f":"IF('effRT Support'!$B137=0,\"\",\"\")","v":""},{"$f":"IF('effRT Support'!$B137=0,\"\",IF('Project Information'!$D$36=\"\",\"\",'Project Information'!$D$36))","v":""},{"$f":"IF('effRT Support'!$B137=0,\"\",IF('Project Information'!$D$42=\"\",\"\",'Project Information'!$D$42))","v":""},{"$f":"IF('effRT Support'!$B137=0,\"\",'effRT Support'!$D137)","v":""},{"$f":"IF('effRT Support'!$B137=0,\"\",'effRT Support'!$L137)","v":""},{"$f":"IF('effRT Support'!$B137=0,\"\",'effRT Support'!$N137)","v":""},null,null,{"$f":"IF('effRT Support'!$B137=0,\"\",'effRT Support'!$P137)","v":""},{"$f":"IF('effRT Support'!$B137=0,\"\",'effRT Support'!$Q137)","v":""},{"$f":"IF('effRT Support'!$B137=0,\"\",'effRT Support'!U137)","v":""},{"$f":"IF('effRT Support'!$B137=0,\"\",'effRT Support'!V137)","v":""},{"$f":"IF('effRT Support'!$B137=0,\"\",'effRT Support'!W137)","v":""},{"$f":"IF('effRT Support'!$B137=0,\"\",'effRT Support'!X137)","v":""},{"$f":"IF('effRT Support'!$B137=0,\"\",'effRT Support'!Y137)","v":""},{"$f":"IF('effRT Support'!$B137=0,\"\",'effRT Support'!Z137*10)","v":""},{"$f":"IF('effRT Support'!$B137=0,\"\",'effRT Support'!AA137)","v":""},{"$f":"IF('effRT Support'!$B137=0,\"\",'effRT Support'!AB137)","v":""},{"$f":"IF('effRT Support'!$B137=0,\"\",'effRT Support'!AC137)","v":""},{"$f":"IF('effRT Support'!$B137=0,\"\",'effRT Support'!AD137)","v":""},{"$f":"IF('effRT Support'!$B137=0,\"\",'effRT Support'!AE137)","v":""},{"$f":"IF('effRT Support'!$B137=0,\"\",\"Hours Actual or Deemed\")","v":""},{"$f":"IF('effRT Support'!$B137=0,\"\",'effRT Support'!$F137)","v":""},{"$f":"IF('effRT Support'!$B137=0,\"\",\"Wattage Actual or Deemed\")","v":""},{"$f":"IF('effRT Support'!$B137=0,\"\",IF('Project Information'!$D$33=\"Pay For Performance\",\"Actual\",\"Deemed\"))","v":""},{"$f":"IF('effRT Support'!$B137=0,\"\",\"Cost Actual or Deemed\")","v":""},{"$f":"IF('effRT Support'!$B137=0,\"\",IF('Project Information'!$D$33=\"Pay For Performance\",\"Actual\",\"Deemed\"))","v":""},{"$f":"IF('effRT Support'!$B137=0,\"\",\"Location\")","v":""},{"$f":"IF('effRT Support'!$B137=0,\"\",'effRT Support'!$E137)","v":""},{"$f":"IF('effRT Support'!$B137=0,\"\",\"Space Type\")","v":""},{"$f":"IF('effRT Support'!$B137=0,\"\",'effRT Support'!$G137)","v":""},{"$f":"IF('effRT Support'!$B137=0,\"\",\"Existing Fixture Description\")","v":""},{"$f":"IF('effRT Support'!$B137=0,\"\",'effRT Support'!$H137)","v":""},{"$f":"IF('effRT Support'!$B137=0,\"\",\"Existing Fixture Quantity\")","v":""},{"$f":"IF('effRT Support'!$B137=0,\"\",'effRT Support'!$I137)","v":""},{"$f":"IF('effRT Support'!$B137=0,\"\",\"Existing Fixture Wattage\")","v":""},{"$f":"IF('effRT Support'!$B137=0,\"\",'effRT Support'!$J137)","v":""},{"$f":"IF('effRT Support'!$B137=0,\"\",\"Annual Hours of Operation\")","v":""},{"$f":"IF('effRT Support'!$B137=0,\"\",'effRT Support'!$K137)","v":""},{"$f":"IF('effRT Support'!$B137=0,\"\",\"Installed Fixture Description\")","v":""},{"$f":"IF('effRT Support'!$B137=0,\"\",'effRT Support'!$M137)","v":""},{"$f":"IF('effRT Support'!$B137=0,\"\",\"Installed Fixture Wattage\")","v":""},{"$f":"IF('effRT Support'!$B137=0,\"\",'effRT Support'!$O137)","v":""},{"$f":"IF('effRT Support'!$B137=0,\"\",\"Material Cost\")","v":""},{"$f":"IF('effRT Support'!$B137=0,\"\",'effRT Support'!$R137)","v":""},{"$f":"IF('effRT Support'!$B137=0,\"\",\"Labor Cost\")","v":""},{"$f":"IF('effRT Support'!$B137=0,\"\",'effRT Support'!$S137)","v":""},{"$f":"IF('effRT Support'!$B137=0,\"\",\"Ancillary Costs - Measure Specific\")","v":""},{"$f":"IF('effRT Support'!$B137=0,\"\",'effRT Support'!$T137)","v":""},{"$f":"IF('effRT Support'!$B137=0,\"\",\"Fuel Type\")","v":""},{"$f":"IF('effRT Support'!$B137=0,\"\",'Project Information'!$D$44)","v":""},{"$f":"IF('effRT Support'!$B137=0,\"\",\"Installed Fixture Quantity\")","v":""},{"$f":"IF('effRT Support'!$B137=0,\"\",'effRT Support'!P136)","v":""}]
[{"$f":"IF('effRT Support'!$B138=0,\"\",IF('Project Information'!$D$33=\"Small Business\",\"SBL\",\"CILS\"))","v":""},{"$f":"IF('effRT Support'!$B138=0,\"\",IF('Project Information'!$K$2=\"\",\"\",'Project Information'!$K$2))","v":""},null,{"$f":"IF('effRT Support'!$B138=0,\"\",IF('Project Information'!$D$46=\"\",\"\",'Project Information'!$D$46))","v":""},{"$f":"IF('effRT Support'!$B138=0,\"\",IF('Project Information'!$D$20=\"\",\"\",VLOOKUP('Project Information'!$D$20,'Other Data'!$B$159:$E$189,4,FALSE)))","v":""},{"$f":"IF('effRT Support'!$B138=0,\"\",IF('Project Information'!$D$31=\"\",\"\",'Project Information'!$D$31))","v":""},{"$f":"IF('effRT Support'!$B138=0,\"\",IF('Project Information'!$D$5=\"\",\"\",'Project Information'!$D$5))","v":""},null,null,{"$f":"IF('effRT Support'!$B138=0,\"\",IF('Project Information'!$D$20=\"\",\"\",VLOOKUP('Project Information'!$D$20,'Other Data'!$B$159:$E$189,2,FALSE)))","v":""},{"$f":"IF('effRT Support'!$B138=0,\"\",IF('Project Information'!$D$20=\"\",\"\",VLOOKUP('Project Information'!$D$20,'Other Data'!$B$159:$E$189,3,FALSE)))","v":""},{"$f":"IF('effRT Support'!$B138=0,\"\",\"Existing\")","v":""},null,{"$f":"IF('effRT Support'!$B138=0,\"\",IF('Project Information'!$D$21=\"\",\"\",'Project Information'!$D$21))","v":""},{"$f":"IF('effRT Support'!$B138=0,\"\",IF('Project Information'!$D$48=\"\",\"\",'Project Information'!$D$48))","v":""},{"$f":"IF('effRT Support'!$B138=0,\"\",\"\")","v":""},{"$f":"IF('effRT Support'!$B138=0,\"\",\"\")","v":""},{"$f":"IF('effRT Support'!$B138=0,\"\",\"\")","v":""},{"$f":"IF('effRT Support'!$B138=0,\"\",\"\")","v":""},{"$f":"IF('effRT Support'!$B138=0,\"\",IF('Project Information'!$D$13=\"\",\"\",'Project Information'!$D$13))","v":""},{"$f":"IF('effRT Support'!$B138=0,\"\",IF('Project Information'!$E$13=\"\",\"\",'Project Information'!$E$13))","v":""},{"$f":"IF('effRT Support'!$B138=0,\"\",IF('Project Information'!$D$14=\"\",\"\",'Project Information'!$D$14))","v":""},{"$f":"IF('effRT Support'!$B138=0,\"\",IF('Project Information'!$D$15=\"\",\"\",'Project Information'!$D$15))","v":""},{"$f":"IF('effRT Support'!$B138=0,\"\",IF('Project Information'!$D$16=\"\",\"\",'Project Information'!$D$16))","v":""},null,{"$f":"IF('effRT Support'!$B138=0,\"\",'Project Information'!$D$18)","v":""},{"$f":"IF('effRT Support'!$B138=0,\"\",IF('Project Information'!$D$23=\"\",\"\",'Project Information'!$D$23))","v":""},{"$f":"IF('effRT Support'!$B138=0,\"\",IF('Project Information'!$D$24=\"\",\"\",'Project Information'!$D$24))","v":""},{"$f":"IF('effRT Support'!$B138=0,\"\",IF('Project Information'!$D$25=\"\",\"\",'Project Information'!$D$25))","v":""},{"$f":"IF('effRT Support'!$B138=0,\"\",IF('Project Information'!$E$25=\"\",\"\",'Project Information'!$E$25))","v":""},{"$f":"IF('effRT Support'!$B138=0,\"\",IF('Project Information'!$F$25=\"\",\"\",'Project Information'!$F$25))","v":""},{"$f":"IF('effRT Support'!$B138=0,\"\",IF('Project Information'!$D$27=\"\",\"Y\",\"N\"))","v":""},{"$f":"IF('effRT Support'!$B138=0,\"\",IF('Project Information'!$D$27=\"\",\"\",'Project Information'!$D$27))","v":""},{"$f":"IF('effRT Support'!$B138=0,\"\",IF('Project Information'!$D$28=\"\",\"\",'Project Information'!$D$28))","v":""},{"$f":"IF('effRT Support'!$B138=0,\"\",IF('Project Information'!$D$29=\"\",\"\",'Project Information'!$D$29))","v":""},{"$f":"IF('effRT Support'!$B138=0,\"\",IF('Project Information'!$E$29=\"\",\"\",'Project Information'!$E$29))","v":""},{"$f":"IF('effRT Support'!$B138=0,\"\",IF('Project Information'!$F$29=\"\",\"\",'Project Information'!$F$29))","v":""},{"$f":"IF('effRT Support'!$B138=0,\"\",\"\")","v":""},{"$f":"IF('effRT Support'!$B138=0,\"\",\"\")","v":""},{"$f":"IF('effRT Support'!$B138=0,\"\",IF('Project Information'!$D$36=\"\",\"\",'Project Information'!$D$36))","v":""},{"$f":"IF('effRT Support'!$B138=0,\"\",IF('Project Information'!$D$42=\"\",\"\",'Project Information'!$D$42))","v":""},{"$f":"IF('effRT Support'!$B138=0,\"\",'effRT Support'!$D138)","v":""},{"$f":"IF('effRT Support'!$B138=0,\"\",'effRT Support'!$L138)","v":""},{"$f":"IF('effRT Support'!$B138=0,\"\",'effRT Support'!$N138)","v":""},null,null,{"$f":"IF('effRT Support'!$B138=0,\"\",'effRT Support'!$P138)","v":""},{"$f":"IF('effRT Support'!$B138=0,\"\",'effRT Support'!$Q138)","v":""},{"$f":"IF('effRT Support'!$B138=0,\"\",'effRT Support'!U138)","v":""},{"$f":"IF('effRT Support'!$B138=0,\"\",'effRT Support'!V138)","v":""},{"$f":"IF('effRT Support'!$B138=0,\"\",'effRT Support'!W138)","v":""},{"$f":"IF('effRT Support'!$B138=0,\"\",'effRT Support'!X138)","v":""},{"$f":"IF('effRT Support'!$B138=0,\"\",'effRT Support'!Y138)","v":""},{"$f":"IF('effRT Support'!$B138=0,\"\",'effRT Support'!Z138*10)","v":""},{"$f":"IF('effRT Support'!$B138=0,\"\",'effRT Support'!AA138)","v":""},{"$f":"IF('effRT Support'!$B138=0,\"\",'effRT Support'!AB138)","v":""},{"$f":"IF('effRT Support'!$B138=0,\"\",'effRT Support'!AC138)","v":""},{"$f":"IF('effRT Support'!$B138=0,\"\",'effRT Support'!AD138)","v":""},{"$f":"IF('effRT Support'!$B138=0,\"\",'effRT Support'!AE138)","v":""},{"$f":"IF('effRT Support'!$B138=0,\"\",\"Hours Actual or Deemed\")","v":""},{"$f":"IF('effRT Support'!$B138=0,\"\",'effRT Support'!$F138)","v":""},{"$f":"IF('effRT Support'!$B138=0,\"\",\"Wattage Actual or Deemed\")","v":""},{"$f":"IF('effRT Support'!$B138=0,\"\",IF('Project Information'!$D$33=\"Pay For Performance\",\"Actual\",\"Deemed\"))","v":""},{"$f":"IF('effRT Support'!$B138=0,\"\",\"Cost Actual or Deemed\")","v":""},{"$f":"IF('effRT Support'!$B138=0,\"\",IF('Project Information'!$D$33=\"Pay For Performance\",\"Actual\",\"Deemed\"))","v":""},{"$f":"IF('effRT Support'!$B138=0,\"\",\"Location\")","v":""},{"$f":"IF('effRT Support'!$B138=0,\"\",'effRT Support'!$E138)","v":""},{"$f":"IF('effRT Support'!$B138=0,\"\",\"Space Type\")","v":""},{"$f":"IF('effRT Support'!$B138=0,\"\",'effRT Support'!$G138)","v":""},{"$f":"IF('effRT Support'!$B138=0,\"\",\"Existing Fixture Description\")","v":""},{"$f":"IF('effRT Support'!$B138=0,\"\",'effRT Support'!$H138)","v":""},{"$f":"IF('effRT Support'!$B138=0,\"\",\"Existing Fixture Quantity\")","v":""},{"$f":"IF('effRT Support'!$B138=0,\"\",'effRT Support'!$I138)","v":""},{"$f":"IF('effRT Support'!$B138=0,\"\",\"Existing Fixture Wattage\")","v":""},{"$f":"IF('effRT Support'!$B138=0,\"\",'effRT Support'!$J138)","v":""},{"$f":"IF('effRT Support'!$B138=0,\"\",\"Annual Hours of Operation\")","v":""},{"$f":"IF('effRT Support'!$B138=0,\"\",'effRT Support'!$K138)","v":""},{"$f":"IF('effRT Support'!$B138=0,\"\",\"Installed Fixture Description\")","v":""},{"$f":"IF('effRT Support'!$B138=0,\"\",'effRT Support'!$M138)","v":""},{"$f":"IF('effRT Support'!$B138=0,\"\",\"Installed Fixture Wattage\")","v":""},{"$f":"IF('effRT Support'!$B138=0,\"\",'effRT Support'!$O138)","v":""},{"$f":"IF('effRT Support'!$B138=0,\"\",\"Material Cost\")","v":""},{"$f":"IF('effRT Support'!$B138=0,\"\",'effRT Support'!$R138)","v":""},{"$f":"IF('effRT Support'!$B138=0,\"\",\"Labor Cost\")","v":""},{"$f":"IF('effRT Support'!$B138=0,\"\",'effRT Support'!$S138)","v":""},{"$f":"IF('effRT Support'!$B138=0,\"\",\"Ancillary Costs - Measure Specific\")","v":""},{"$f":"IF('effRT Support'!$B138=0,\"\",'effRT Support'!$T138)","v":""},{"$f":"IF('effRT Support'!$B138=0,\"\",\"Fuel Type\")","v":""},{"$f":"IF('effRT Support'!$B138=0,\"\",'Project Information'!$D$44)","v":""}]
[{"$f":"IF('effRT Support'!$B139=0,\"\",IF('Project Information'!$D$33=\"Small Business\",\"SBL\",\"CILS\"))","v":""},{"$f":"IF('effRT Support'!$B139=0,\"\",IF('Project Information'!$K$2=\"\",\"\",'Project Information'!$K$2))","v":""},null,{"$f":"IF('effRT Support'!$B139=0,\"\",IF('Project Information'!$D$46=\"\",\"\",'Project Information'!$D$46))","v":""},{"$f":"IF('effRT Support'!$B139=0,\"\",IF('Project Information'!$D$20=\"\",\"\",VLOOKUP('Project Information'!$D$20,'Other Data'!$B$159:$E$189,4,FALSE)))","v":""},{"$f":"IF('effRT Support'!$B139=0,\"\",IF('Project Information'!$D$31=\"\",\"\",'Project Information'!$D$31))","v":""},{"$f":"IF('effRT Support'!$B139=0,\"\",IF('Project Information'!$D$5=\"\",\"\",'Project Information'!$D$5))","v":""},null,null,{"$f":"IF('effRT Support'!$B139=0,\"\",IF('Project Information'!$D$20=\"\",\"\",VLOOKUP('Project Information'!$D$20,'Other Data'!$B$159:$E$189,2,FALSE)))","v":""},{"$f":"IF('effRT Support'!$B139=0,\"\",IF('Project Information'!$D$20=\"\",\"\",VLOOKUP('Project Information'!$D$20,'Other Data'!$B$159:$E$189,3,FALSE)))","v":""},{"$f":"IF('effRT Support'!$B139=0,\"\",\"Existing\")","v":""},null,{"$f":"IF('effRT Support'!$B139=0,\"\",IF('Project Information'!$D$21=\"\",\"\",'Project Information'!$D$21))","v":""},{"$f":"IF('effRT Support'!$B139=0,\"\",IF('Project Information'!$D$48=\"\",\"\",'Project Information'!$D$48))","v":""},{"$f":"IF('effRT Support'!$B139=0,\"\",\"\")","v":""},{"$f":"IF('effRT Support'!$B139=0,\"\",\"\")","v":""},{"$f":"IF('effRT Support'!$B139=0,\"\",\"\")","v":""},{"$f":"IF('effRT Support'!$B139=0,\"\",\"\")","v":""},{"$f":"IF('effRT Support'!$B139=0,\"\",IF('Project Information'!$D$13=\"\",\"\",'Project Information'!$D$13))","v":""},{"$f":"IF('effRT Support'!$B139=0,\"\",IF('Project Information'!$E$13=\"\",\"\",'Project Information'!$E$13))","v":""},{"$f":"IF('effRT Support'!$B139=0,\"\",IF('Project Information'!$D$14=\"\",\"\",'Project Information'!$D$14))","v":""},{"$f":"IF('effRT Support'!$B139=0,\"\",IF('Project Information'!$D$15=\"\",\"\",'Project Information'!$D$15))","v":""},{"$f":"IF('effRT Support'!$B139=0,\"\",IF('Project Information'!$D$16=\"\",\"\",'Project Information'!$D$16))","v":""},null,{"$f":"IF('effRT Support'!$B139=0,\"\",'Project Information'!$D$18)","v":""},{"$f":"IF('effRT Support'!$B139=0,\"\",IF('Project Information'!$D$23=\"\",\"\",'Project Information'!$D$23))","v":""},{"$f":"IF('effRT Support'!$B139=0,\"\",IF('Project Information'!$D$24=\"\",\"\",'Project Information'!$D$24))","v":""},{"$f":"IF('effRT Support'!$B139=0,\"\",IF('Project Information'!$D$25=\"\",\"\",'Project Information'!$D$25))","v":""},{"$f":"IF('effRT Support'!$B139=0,\"\",IF('Project Information'!$E$25=\"\",\"\",'Project Information'!$E$25))","v":""},{"$f":"IF('effRT Support'!$B139=0,\"\",IF('Project Information'!$F$25=\"\",\"\",'Project Information'!$F$25))","v":""},{"$f":"IF('effRT Support'!$B139=0,\"\",IF('Project Information'!$D$27=\"\",\"Y\",\"N\"))","v":""},{"$f":"IF('effRT Support'!$B139=0,\"\",IF('Project Information'!$D$27=\"\",\"\",'Project Information'!$D$27))","v":""},{"$f":"IF('effRT Support'!$B139=0,\"\",IF('Project Information'!$D$28=\"\",\"\",'Project Information'!$D$28))","v":""},{"$f":"IF('effRT Support'!$B139=0,\"\",IF('Project Information'!$D$29=\"\",\"\",'Project Information'!$D$29))","v":""},{"$f":"IF('effRT Support'!$B139=0,\"\",IF('Project Information'!$E$29=\"\",\"\",'Project Information'!$E$29))","v":""},{"$f":"IF('effRT Support'!$B139=0,\"\",IF('Project Information'!$F$29=\"\",\"\",'Project Information'!$F$29))","v":""},{"$f":"IF('effRT Support'!$B139=0,\"\",\"\")","v":""},{"$f":"IF('effRT Support'!$B139=0,\"\",\"\")","v":""},{"$f":"IF('effRT Support'!$B139=0,\"\",IF('Project Information'!$D$36=\"\",\"\",'Project Information'!$D$36))","v":""},{"$f":"IF('effRT Support'!$B139=0,\"\",IF('Project Information'!$D$42=\"\",\"\",'Project Information'!$D$42))","v":""},{"$f":"IF('effRT Support'!$B139=0,\"\",'effRT Support'!$D139)","v":""},{"$f":"IF('effRT Support'!$B139=0,\"\",'effRT Support'!$L139)","v":""},{"$f":"IF('effRT Support'!$B139=0,\"\",'effRT Support'!$N139)","v":""},null,null,{"$f":"IF('effRT Support'!$B139=0,\"\",'effRT Support'!$P139)","v":""},{"$f":"IF('effRT Support'!$B139=0,\"\",'effRT Support'!$Q139)","v":""},{"$f":"IF('effRT Support'!$B139=0,\"\",'effRT Support'!U139)","v":""},{"$f":"IF('effRT Support'!$B139=0,\"\",'effRT Support'!V139)","v":""},{"$f":"IF('effRT Support'!$B139=0,\"\",'effRT Support'!W139)","v":""},{"$f":"IF('effRT Support'!$B139=0,\"\",'effRT Support'!X139)","v":""},{"$f":"IF('effRT Support'!$B139=0,\"\",'effRT Support'!Y139)","v":""},{"$f":"IF('effRT Support'!$B139=0,\"\",'effRT Support'!Z139*10)","v":""},{"$f":"IF('effRT Support'!$B139=0,\"\",'effRT Support'!AA139)","v":""},{"$f":"IF('effRT Support'!$B139=0,\"\",'effRT Support'!AB139)","v":""},{"$f":"IF('effRT Support'!$B139=0,\"\",'effRT Support'!AC139)","v":""},{"$f":"IF('effRT Support'!$B139=0,\"\",'effRT Support'!AD139)","v":""},{"$f":"IF('effRT Support'!$B139=0,\"\",'effRT Support'!AE139)","v":""},{"$f":"IF('effRT Support'!$B139=0,\"\",\"Hours Actual or Deemed\")","v":""},{"$f":"IF('effRT Support'!$B139=0,\"\",'effRT Support'!$F139)","v":""},{"$f":"IF('effRT Support'!$B139=0,\"\",\"Wattage Actual or Deemed\")","v":""},{"$f":"IF('effRT Support'!$B139=0,\"\",IF('Project Information'!$D$33=\"Pay For Performance\",\"Actual\",\"Deemed\"))","v":""},{"$f":"IF('effRT Support'!$B139=0,\"\",\"Cost Actual or Deemed\")","v":""},{"$f":"IF('effRT Support'!$B139=0,\"\",IF('Project Information'!$D$33=\"Pay For Performance\",\"Actual\",\"Deemed\"))","v":""},{"$f":"IF('effRT Support'!$B139=0,\"\",\"Location\")","v":""},{"$f":"IF('effRT Support'!$B139=0,\"\",'effRT Support'!$E139)","v":""},{"$f":"IF('effRT Support'!$B139=0,\"\",\"Space Type\")","v":""},{"$f":"IF('effRT Support'!$B139=0,\"\",'effRT Support'!$G139)","v":""},{"$f":"IF('effRT Support'!$B139=0,\"\",\"Existing Fixture Description\")","v":""},{"$f":"IF('effRT Support'!$B139=0,\"\",'effRT Support'!$H139)","v":""},{"$f":"IF('effRT Support'!$B139=0,\"\",\"Existing Fixture Quantity\")","v":""},{"$f":"IF('effRT Support'!$B139=0,\"\",'effRT Support'!$I139)","v":""},{"$f":"IF('effRT Support'!$B139=0,\"\",\"Existing Fixture Wattage\")","v":""},{"$f":"IF('effRT Support'!$B139=0,\"\",'effRT Support'!$J139)","v":""},{"$f":"IF('effRT Support'!$B139=0,\"\",\"Annual Hours of Operation\")","v":""},{"$f":"IF('effRT Support'!$B139=0,\"\",'effRT Support'!$K139)","v":""},{"$f":"IF('effRT Support'!$B139=0,\"\",\"Installed Fixture Description\")","v":""},{"$f":"IF('effRT Support'!$B139=0,\"\",'effRT Support'!$M139)","v":""},{"$f":"IF('effRT Support'!$B139=0,\"\",\"Installed Fixture Wattage\")","v":""},{"$f":"IF('effRT Support'!$B139=0,\"\",'effRT Support'!$O139)","v":""},{"$f":"IF('effRT Support'!$B139=0,\"\",\"Material Cost\")","v":""},{"$f":"IF('effRT Support'!$B139=0,\"\",'effRT Support'!$R139)","v":""},{"$f":"IF('effRT Support'!$B139=0,\"\",\"Labor Cost\")","v":""},{"$f":"IF('effRT Support'!$B139=0,\"\",'effRT Support'!$S139)","v":""},{"$f":"IF('effRT Support'!$B139=0,\"\",\"Ancillary Costs - Measure Specific\")","v":""},{"$f":"IF('effRT Support'!$B139=0,\"\",'effRT Support'!$T139)","v":""},{"$f":"IF('effRT Support'!$B139=0,\"\",\"Fuel Type\")","v":""},{"$f":"IF('effRT Support'!$B139=0,\"\",'Project Information'!$D$44)","v":""},{"$f":"IF('effRT Support'!$B139=0,\"\",\"Installed Fixture Quantity\")","v":""},{"$f":"IF('effRT Support'!$B139=0,\"\",'effRT Support'!P138)","v":""}]
[{"$f":"IF('effRT Support'!$B140=0,\"\",IF('Project Information'!$D$33=\"Small Business\",\"SBL\",\"CILS\"))","v":""},{"$f":"IF('effRT Support'!$B140=0,\"\",IF('Project Information'!$K$2=\"\",\"\",'Project Information'!$K$2))","v":""},null,{"$f":"IF('effRT Support'!$B140=0,\"\",IF('Project Information'!$D$46=\"\",\"\",'Project Information'!$D$46))","v":""},{"$f":"IF('effRT Support'!$B140=0,\"\",IF('Project Information'!$D$20=\"\",\"\",VLOOKUP('Project Information'!$D$20,'Other Data'!$B$159:$E$189,4,FALSE)))","v":""},{"$f":"IF('effRT Support'!$B140=0,\"\",IF('Project Information'!$D$31=\"\",\"\",'Project Information'!$D$31))","v":""},{"$f":"IF('effRT Support'!$B140=0,\"\",IF('Project Information'!$D$5=\"\",\"\",'Project Information'!$D$5))","v":""},null,null,{"$f":"IF('effRT Support'!$B140=0,\"\",IF('Project Information'!$D$20=\"\",\"\",VLOOKUP('Project Information'!$D$20,'Other Data'!$B$159:$E$189,2,FALSE)))","v":""},{"$f":"IF('effRT Support'!$B140=0,\"\",IF('Project Information'!$D$20=\"\",\"\",VLOOKUP('Project Information'!$D$20,'Other Data'!$B$159:$E$189,3,FALSE)))","v":""},{"$f":"IF('effRT Support'!$B140=0,\"\",\"Existing\")","v":""},null,{"$f":"IF('effRT Support'!$B140=0,\"\",IF('Project Information'!$D$21=\"\",\"\",'Project Information'!$D$21))","v":""},{"$f":"IF('effRT Support'!$B140=0,\"\",IF('Project Information'!$D$48=\"\",\"\",'Project Information'!$D$48))","v":""},{"$f":"IF('effRT Support'!$B140=0,\"\",\"\")","v":""},{"$f":"IF('effRT Support'!$B140=0,\"\",\"\")","v":""},{"$f":"IF('effRT Support'!$B140=0,\"\",\"\")","v":""},{"$f":"IF('effRT Support'!$B140=0,\"\",\"\")","v":""},{"$f":"IF('effRT Support'!$B140=0,\"\",IF('Project Information'!$D$13=\"\",\"\",'Project Information'!$D$13))","v":""},{"$f":"IF('effRT Support'!$B140=0,\"\",IF('Project Information'!$E$13=\"\",\"\",'Project Information'!$E$13))","v":""},{"$f":"IF('effRT Support'!$B140=0,\"\",IF('Project Information'!$D$14=\"\",\"\",'Project Information'!$D$14))","v":""},{"$f":"IF('effRT Support'!$B140=0,\"\",IF('Project Information'!$D$15=\"\",\"\",'Project Information'!$D$15))","v":""},{"$f":"IF('effRT Support'!$B140=0,\"\",IF('Project Information'!$D$16=\"\",\"\",'Project Information'!$D$16))","v":""},null,{"$f":"IF('effRT Support'!$B140=0,\"\",'Project Information'!$D$18)","v":""},{"$f":"IF('effRT Support'!$B140=0,\"\",IF('Project Information'!$D$23=\"\",\"\",'Project Information'!$D$23))","v":""},{"$f":"IF('effRT Support'!$B140=0,\"\",IF('Project Information'!$D$24=\"\",\"\",'Project Information'!$D$24))","v":""},{"$f":"IF('effRT Support'!$B140=0,\"\",IF('Project Information'!$D$25=\"\",\"\",'Project Information'!$D$25))","v":""},{"$f":"IF('effRT Support'!$B140=0,\"\",IF('Project Information'!$E$25=\"\",\"\",'Project Information'!$E$25))","v":""},{"$f":"IF('effRT Support'!$B140=0,\"\",IF('Project Information'!$F$25=\"\",\"\",'Project Information'!$F$25))","v":""},{"$f":"IF('effRT Support'!$B140=0,\"\",IF('Project Information'!$D$27=\"\",\"Y\",\"N\"))","v":""},{"$f":"IF('effRT Support'!$B140=0,\"\",IF('Project Information'!$D$27=\"\",\"\",'Project Information'!$D$27))","v":""},{"$f":"IF('effRT Support'!$B140=0,\"\",IF('Project Information'!$D$28=\"\",\"\",'Project Information'!$D$28))","v":""},{"$f":"IF('effRT Support'!$B140=0,\"\",IF('Project Information'!$D$29=\"\",\"\",'Project Information'!$D$29))","v":""},{"$f":"IF('effRT Support'!$B140=0,\"\",IF('Project Information'!$E$29=\"\",\"\",'Project Information'!$E$29))","v":""},{"$f":"IF('effRT Support'!$B140=0,\"\",IF('Project Information'!$F$29=\"\",\"\",'Project Information'!$F$29))","v":""},{"$f":"IF('effRT Support'!$B140=0,\"\",\"\")","v":""},{"$f":"IF('effRT Support'!$B140=0,\"\",\"\")","v":""},{"$f":"IF('effRT Support'!$B140=0,\"\",IF('Project Information'!$D$36=\"\",\"\",'Project Information'!$D$36))","v":""},{"$f":"IF('effRT Support'!$B140=0,\"\",IF('Project Information'!$D$42=\"\",\"\",'Project Information'!$D$42))","v":""},{"$f":"IF('effRT Support'!$B140=0,\"\",'effRT Support'!$D140)","v":""},{"$f":"IF('effRT Support'!$B140=0,\"\",'effRT Support'!$L140)","v":""},{"$f":"IF('effRT Support'!$B140=0,\"\",'effRT Support'!$N140)","v":""},null,null,{"$f":"IF('effRT Support'!$B140=0,\"\",'effRT Support'!$P140)","v":""},{"$f":"IF('effRT Support'!$B140=0,\"\",'effRT Support'!$Q140)","v":""},{"$f":"IF('effRT Support'!$B140=0,\"\",'effRT Support'!U140)","v":""},{"$f":"IF('effRT Support'!$B140=0,\"\",'effRT Support'!V140)","v":""},{"$f":"IF('effRT Support'!$B140=0,\"\",'effRT Support'!W140)","v":""},{"$f":"IF('effRT Support'!$B140=0,\"\",'effRT Support'!X140)","v":""},{"$f":"IF('effRT Support'!$B140=0,\"\",'effRT Support'!Y140)","v":""},{"$f":"IF('effRT Support'!$B140=0,\"\",'effRT Support'!Z140*10)","v":""},{"$f":"IF('effRT Support'!$B140=0,\"\",'effRT Support'!AA140)","v":""},{"$f":"IF('effRT Support'!$B140=0,\"\",'effRT Support'!AB140)","v":""},{"$f":"IF('effRT Support'!$B140=0,\"\",'effRT Support'!AC140)","v":""},{"$f":"IF('effRT Support'!$B140=0,\"\",'effRT Support'!AD140)","v":""},{"$f":"IF('effRT Support'!$B140=0,\"\",'effRT Support'!AE140)","v":""},{"$f":"IF('effRT Support'!$B140=0,\"\",\"Hours Actual or Deemed\")","v":""},{"$f":"IF('effRT Support'!$B140=0,\"\",'effRT Support'!$F140)","v":""},{"$f":"IF('effRT Support'!$B140=0,\"\",\"Wattage Actual or Deemed\")","v":""},{"$f":"IF('effRT Support'!$B140=0,\"\",IF('Project Information'!$D$33=\"Pay For Performance\",\"Actual\",\"Deemed\"))","v":""},{"$f":"IF('effRT Support'!$B140=0,\"\",\"Cost Actual or Deemed\")","v":""},{"$f":"IF('effRT Support'!$B140=0,\"\",IF('Project Information'!$D$33=\"Pay For Performance\",\"Actual\",\"Deemed\"))","v":""},{"$f":"IF('effRT Support'!$B140=0,\"\",\"Location\")","v":""},{"$f":"IF('effRT Support'!$B140=0,\"\",'effRT Support'!$E140)","v":""},{"$f":"IF('effRT Support'!$B140=0,\"\",\"Space Type\")","v":""},{"$f":"IF('effRT Support'!$B140=0,\"\",'effRT Support'!$G140)","v":""},{"$f":"IF('effRT Support'!$B140=0,\"\",\"Existing Fixture Description\")","v":""},{"$f":"IF('effRT Support'!$B140=0,\"\",'effRT Support'!$H140)","v":""},{"$f":"IF('effRT Support'!$B140=0,\"\",\"Existing Fixture Quantity\")","v":""},{"$f":"IF('effRT Support'!$B140=0,\"\",'effRT Support'!$I140)","v":""},{"$f":"IF('effRT Support'!$B140=0,\"\",\"Existing Fixture Wattage\")","v":""},{"$f":"IF('effRT Support'!$B140=0,\"\",'effRT Support'!$J140)","v":""},{"$f":"IF('effRT Support'!$B140=0,\"\",\"Annual Hours of Operation\")","v":""},{"$f":"IF('effRT Support'!$B140=0,\"\",'effRT Support'!$K140)","v":""},{"$f":"IF('effRT Support'!$B140=0,\"\",\"Installed Fixture Description\")","v":""},{"$f":"IF('effRT Support'!$B140=0,\"\",'effRT Support'!$M140)","v":""},{"$f":"IF('effRT Support'!$B140=0,\"\",\"Installed Fixture Wattage\")","v":""},{"$f":"IF('effRT Support'!$B140=0,\"\",'effRT Support'!$O140)","v":""},{"$f":"IF('effRT Support'!$B140=0,\"\",\"Material Cost\")","v":""},{"$f":"IF('effRT Support'!$B140=0,\"\",'effRT Support'!$R140)","v":""},{"$f":"IF('effRT Support'!$B140=0,\"\",\"Labor Cost\")","v":""},{"$f":"IF('effRT Support'!$B140=0,\"\",'effRT Support'!$S140)","v":""},{"$f":"IF('effRT Support'!$B140=0,\"\",\"Ancillary Costs - Measure Specific\")","v":""},{"$f":"IF('effRT Support'!$B140=0,\"\",'effRT Support'!$T140)","v":""},{"$f":"IF('effRT Support'!$B140=0,\"\",\"Fuel Type\")","v":""},{"$f":"IF('effRT Support'!$B140=0,\"\",'Project Information'!$D$44)","v":""}]
[{"$f":"IF('effRT Support'!$B141=0,\"\",IF('Project Information'!$D$33=\"Small Business\",\"SBL\",\"CILS\"))","v":""},{"$f":"IF('effRT Support'!$B141=0,\"\",IF('Project Information'!$K$2=\"\",\"\",'Project Information'!$K$2))","v":""},null,{"$f":"IF('effRT Support'!$B141=0,\"\",IF('Project Information'!$D$46=\"\",\"\",'Project Information'!$D$46))","v":""},{"$f":"IF('effRT Support'!$B141=0,\"\",IF('Project Information'!$D$20=\"\",\"\",VLOOKUP('Project Information'!$D$20,'Other Data'!$B$159:$E$189,4,FALSE)))","v":""},{"$f":"IF('effRT Support'!$B141=0,\"\",IF('Project Information'!$D$31=\"\",\"\",'Project Information'!$D$31))","v":""},{"$f":"IF('effRT Support'!$B141=0,\"\",IF('Project Information'!$D$5=\"\",\"\",'Project Information'!$D$5))","v":""},null,null,{"$f":"IF('effRT Support'!$B141=0,\"\",IF('Project Information'!$D$20=\"\",\"\",VLOOKUP('Project Information'!$D$20,'Other Data'!$B$159:$E$189,2,FALSE)))","v":""},{"$f":"IF('effRT Support'!$B141=0,\"\",IF('Project Information'!$D$20=\"\",\"\",VLOOKUP('Project Information'!$D$20,'Other Data'!$B$159:$E$189,3,FALSE)))","v":""},{"$f":"IF('effRT Support'!$B141=0,\"\",\"Existing\")","v":""},null,{"$f":"IF('effRT Support'!$B141=0,\"\",IF('Project Information'!$D$21=\"\",\"\",'Project Information'!$D$21))","v":""},{"$f":"IF('effRT Support'!$B141=0,\"\",IF('Project Information'!$D$48=\"\",\"\",'Project Information'!$D$48))","v":""},{"$f":"IF('effRT Support'!$B141=0,\"\",\"\")","v":""},{"$f":"IF('effRT Support'!$B141=0,\"\",\"\")","v":""},{"$f":"IF('effRT Support'!$B141=0,\"\",\"\")","v":""},{"$f":"IF('effRT Support'!$B141=0,\"\",\"\")","v":""},{"$f":"IF('effRT Support'!$B141=0,\"\",IF('Project Information'!$D$13=\"\",\"\",'Project Information'!$D$13))","v":""},{"$f":"IF('effRT Support'!$B141=0,\"\",IF('Project Information'!$E$13=\"\",\"\",'Project Information'!$E$13))","v":""},{"$f":"IF('effRT Support'!$B141=0,\"\",IF('Project Information'!$D$14=\"\",\"\",'Project Information'!$D$14))","v":""},{"$f":"IF('effRT Support'!$B141=0,\"\",IF('Project Information'!$D$15=\"\",\"\",'Project Information'!$D$15))","v":""},{"$f":"IF('effRT Support'!$B141=0,\"\",IF('Project Information'!$D$16=\"\",\"\",'Project Information'!$D$16))","v":""},null,{"$f":"IF('effRT Support'!$B141=0,\"\",'Project Information'!$D$18)","v":""},{"$f":"IF('effRT Support'!$B141=0,\"\",IF('Project Information'!$D$23=\"\",\"\",'Project Information'!$D$23))","v":""},{"$f":"IF('effRT Support'!$B141=0,\"\",IF('Project Information'!$D$24=\"\",\"\",'Project Information'!$D$24))","v":""},{"$f":"IF('effRT Support'!$B141=0,\"\",IF('Project Information'!$D$25=\"\",\"\",'Project Information'!$D$25))","v":""},{"$f":"IF('effRT Support'!$B141=0,\"\",IF('Project Information'!$E$25=\"\",\"\",'Project Information'!$E$25))","v":""},{"$f":"IF('effRT Support'!$B141=0,\"\",IF('Project Information'!$F$25=\"\",\"\",'Project Information'!$F$25))","v":""},{"$f":"IF('effRT Support'!$B141=0,\"\",IF('Project Information'!$D$27=\"\",\"Y\",\"N\"))","v":""},{"$f":"IF('effRT Support'!$B141=0,\"\",IF('Project Information'!$D$27=\"\",\"\",'Project Information'!$D$27))","v":""},{"$f":"IF('effRT Support'!$B141=0,\"\",IF('Project Information'!$D$28=\"\",\"\",'Project Information'!$D$28))","v":""},{"$f":"IF('effRT Support'!$B141=0,\"\",IF('Project Information'!$D$29=\"\",\"\",'Project Information'!$D$29))","v":""},{"$f":"IF('effRT Support'!$B141=0,\"\",IF('Project Information'!$E$29=\"\",\"\",'Project Information'!$E$29))","v":""},{"$f":"IF('effRT Support'!$B141=0,\"\",IF('Project Information'!$F$29=\"\",\"\",'Project Information'!$F$29))","v":""},{"$f":"IF('effRT Support'!$B141=0,\"\",\"\")","v":""},{"$f":"IF('effRT Support'!$B141=0,\"\",\"\")","v":""},{"$f":"IF('effRT Support'!$B141=0,\"\",IF('Project Information'!$D$36=\"\",\"\",'Project Information'!$D$36))","v":""},{"$f":"IF('effRT Support'!$B141=0,\"\",IF('Project Information'!$D$42=\"\",\"\",'Project Information'!$D$42))","v":""},{"$f":"IF('effRT Support'!$B141=0,\"\",'effRT Support'!$D141)","v":""},{"$f":"IF('effRT Support'!$B141=0,\"\",'effRT Support'!$L141)","v":""},{"$f":"IF('effRT Support'!$B141=0,\"\",'effRT Support'!$N141)","v":""},null,null,{"$f":"IF('effRT Support'!$B141=0,\"\",'effRT Support'!$P141)","v":""},{"$f":"IF('effRT Support'!$B141=0,\"\",'effRT Support'!$Q141)","v":""},{"$f":"IF('effRT Support'!$B141=0,\"\",'effRT Support'!U141)","v":""},{"$f":"IF('effRT Support'!$B141=0,\"\",'effRT Support'!V141)","v":""},{"$f":"IF('effRT Support'!$B141=0,\"\",'effRT Support'!W141)","v":""},{"$f":"IF('effRT Support'!$B141=0,\"\",'effRT Support'!X141)","v":""},{"$f":"IF('effRT Support'!$B141=0,\"\",'effRT Support'!Y141)","v":""},{"$f":"IF('effRT Support'!$B141=0,\"\",'effRT Support'!Z141*10)","v":""},{"$f":"IF('effRT Support'!$B141=0,\"\",'effRT Support'!AA141)","v":""},{"$f":"IF('effRT Support'!$B141=0,\"\",'effRT Support'!AB141)","v":""},{"$f":"IF('effRT Support'!$B141=0,\"\",'effRT Support'!AC141)","v":""},{"$f":"IF('effRT Support'!$B141=0,\"\",'effRT Support'!AD141)","v":""},{"$f":"IF('effRT Support'!$B141=0,\"\",'effRT Support'!AE141)","v":""},{"$f":"IF('effRT Support'!$B141=0,\"\",\"Hours Actual or Deemed\")","v":""},{"$f":"IF('effRT Support'!$B141=0,\"\",'effRT Support'!$F141)","v":""},{"$f":"IF('effRT Support'!$B141=0,\"\",\"Wattage Actual or Deemed\")","v":""},{"$f":"IF('effRT Support'!$B141=0,\"\",IF('Project Information'!$D$33=\"Pay For Performance\",\"Actual\",\"Deemed\"))","v":""},{"$f":"IF('effRT Support'!$B141=0,\"\",\"Cost Actual or Deemed\")","v":""},{"$f":"IF('effRT Support'!$B141=0,\"\",IF('Project Information'!$D$33=\"Pay For Performance\",\"Actual\",\"Deemed\"))","v":""},{"$f":"IF('effRT Support'!$B141=0,\"\",\"Location\")","v":""},{"$f":"IF('effRT Support'!$B141=0,\"\",'effRT Support'!$E141)","v":""},{"$f":"IF('effRT Support'!$B141=0,\"\",\"Space Type\")","v":""},{"$f":"IF('effRT Support'!$B141=0,\"\",'effRT Support'!$G141)","v":""},{"$f":"IF('effRT Support'!$B141=0,\"\",\"Existing Fixture Description\")","v":""},{"$f":"IF('effRT Support'!$B141=0,\"\",'effRT Support'!$H141)","v":""},{"$f":"IF('effRT Support'!$B141=0,\"\",\"Existing Fixture Quantity\")","v":""},{"$f":"IF('effRT Support'!$B141=0,\"\",'effRT Support'!$I141)","v":""},{"$f":"IF('effRT Support'!$B141=0,\"\",\"Existing Fixture Wattage\")","v":""},{"$f":"IF('effRT Support'!$B141=0,\"\",'effRT Support'!$J141)","v":""},{"$f":"IF('effRT Support'!$B141=0,\"\",\"Annual Hours of Operation\")","v":""},{"$f":"IF('effRT Support'!$B141=0,\"\",'effRT Support'!$K141)","v":""},{"$f":"IF('effRT Support'!$B141=0,\"\",\"Installed Fixture Description\")","v":""},{"$f":"IF('effRT Support'!$B141=0,\"\",'effRT Support'!$M141)","v":""},{"$f":"IF('effRT Support'!$B141=0,\"\",\"Installed Fixture Wattage\")","v":""},{"$f":"IF('effRT Support'!$B141=0,\"\",'effRT Support'!$O141)","v":""},{"$f":"IF('effRT Support'!$B141=0,\"\",\"Material Cost\")","v":""},{"$f":"IF('effRT Support'!$B141=0,\"\",'effRT Support'!$R141)","v":""},{"$f":"IF('effRT Support'!$B141=0,\"\",\"Labor Cost\")","v":""},{"$f":"IF('effRT Support'!$B141=0,\"\",'effRT Support'!$S141)","v":""},{"$f":"IF('effRT Support'!$B141=0,\"\",\"Ancillary Costs - Measure Specific\")","v":""},{"$f":"IF('effRT Support'!$B141=0,\"\",'effRT Support'!$T141)","v":""},{"$f":"IF('effRT Support'!$B141=0,\"\",\"Fuel Type\")","v":""},{"$f":"IF('effRT Support'!$B141=0,\"\",'Project Information'!$D$44)","v":""},{"$f":"IF('effRT Support'!$B141=0,\"\",\"Installed Fixture Quantity\")","v":""},{"$f":"IF('effRT Support'!$B141=0,\"\",'effRT Support'!P140)","v":""}]
[{"$f":"IF('effRT Support'!$B142=0,\"\",IF('Project Information'!$D$33=\"Small Business\",\"SBL\",\"CILS\"))","v":""},{"$f":"IF('effRT Support'!$B142=0,\"\",IF('Project Information'!$K$2=\"\",\"\",'Project Information'!$K$2))","v":""},null,{"$f":"IF('effRT Support'!$B142=0,\"\",IF('Project Information'!$D$46=\"\",\"\",'Project Information'!$D$46))","v":""},{"$f":"IF('effRT Support'!$B142=0,\"\",IF('Project Information'!$D$20=\"\",\"\",VLOOKUP('Project Information'!$D$20,'Other Data'!$B$159:$E$189,4,FALSE)))","v":""},{"$f":"IF('effRT Support'!$B142=0,\"\",IF('Project Information'!$D$31=\"\",\"\",'Project Information'!$D$31))","v":""},{"$f":"IF('effRT Support'!$B142=0,\"\",IF('Project Information'!$D$5=\"\",\"\",'Project Information'!$D$5))","v":""},null,null,{"$f":"IF('effRT Support'!$B142=0,\"\",IF('Project Information'!$D$20=\"\",\"\",VLOOKUP('Project Information'!$D$20,'Other Data'!$B$159:$E$189,2,FALSE)))","v":""},{"$f":"IF('effRT Support'!$B142=0,\"\",IF('Project Information'!$D$20=\"\",\"\",VLOOKUP('Project Information'!$D$20,'Other Data'!$B$159:$E$189,3,FALSE)))","v":""},{"$f":"IF('effRT Support'!$B142=0,\"\",\"Existing\")","v":""},null,{"$f":"IF('effRT Support'!$B142=0,\"\",IF('Project Information'!$D$21=\"\",\"\",'Project Information'!$D$21))","v":""},{"$f":"IF('effRT Support'!$B142=0,\"\",IF('Project Information'!$D$48=\"\",\"\",'Project Information'!$D$48))","v":""},{"$f":"IF('effRT Support'!$B142=0,\"\",\"\")","v":""},{"$f":"IF('effRT Support'!$B142=0,\"\",\"\")","v":""},{"$f":"IF('effRT Support'!$B142=0,\"\",\"\")","v":""},{"$f":"IF('effRT Support'!$B142=0,\"\",\"\")","v":""},{"$f":"IF('effRT Support'!$B142=0,\"\",IF('Project Information'!$D$13=\"\",\"\",'Project Information'!$D$13))","v":""},{"$f":"IF('effRT Support'!$B142=0,\"\",IF('Project Information'!$E$13=\"\",\"\",'Project Information'!$E$13))","v":""},{"$f":"IF('effRT Support'!$B142=0,\"\",IF('Project Information'!$D$14=\"\",\"\",'Project Information'!$D$14))","v":""},{"$f":"IF('effRT Support'!$B142=0,\"\",IF('Project Information'!$D$15=\"\",\"\",'Project Information'!$D$15))","v":""},{"$f":"IF('effRT Support'!$B142=0,\"\",IF('Project Information'!$D$16=\"\",\"\",'Project Information'!$D$16))","v":""},null,{"$f":"IF('effRT Support'!$B142=0,\"\",'Project Information'!$D$18)","v":""},{"$f":"IF('effRT Support'!$B142=0,\"\",IF('Project Information'!$D$23=\"\",\"\",'Project Information'!$D$23))","v":""},{"$f":"IF('effRT Support'!$B142=0,\"\",IF('Project Information'!$D$24=\"\",\"\",'Project Information'!$D$24))","v":""},{"$f":"IF('effRT Support'!$B142=0,\"\",IF('Project Information'!$D$25=\"\",\"\",'Project Information'!$D$25))","v":""},{"$f":"IF('effRT Support'!$B142=0,\"\",IF('Project Information'!$E$25=\"\",\"\",'Project Information'!$E$25))","v":""},{"$f":"IF('effRT Support'!$B142=0,\"\",IF('Project Information'!$F$25=\"\",\"\",'Project Information'!$F$25))","v":""},{"$f":"IF('effRT Support'!$B142=0,\"\",IF('Project Information'!$D$27=\"\",\"Y\",\"N\"))","v":""},{"$f":"IF('effRT Support'!$B142=0,\"\",IF('Project Information'!$D$27=\"\",\"\",'Project Information'!$D$27))","v":""},{"$f":"IF('effRT Support'!$B142=0,\"\",IF('Project Information'!$D$28=\"\",\"\",'Project Information'!$D$28))","v":""},{"$f":"IF('effRT Support'!$B142=0,\"\",IF('Project Information'!$D$29=\"\",\"\",'Project Information'!$D$29))","v":""},{"$f":"IF('effRT Support'!$B142=0,\"\",IF('Project Information'!$E$29=\"\",\"\",'Project Information'!$E$29))","v":""},{"$f":"IF('effRT Support'!$B142=0,\"\",IF('Project Information'!$F$29=\"\",\"\",'Project Information'!$F$29))","v":""},{"$f":"IF('effRT Support'!$B142=0,\"\",\"\")","v":""},{"$f":"IF('effRT Support'!$B142=0,\"\",\"\")","v":""},{"$f":"IF('effRT Support'!$B142=0,\"\",IF('Project Information'!$D$36=\"\",\"\",'Project Information'!$D$36))","v":""},{"$f":"IF('effRT Support'!$B142=0,\"\",IF('Project Information'!$D$42=\"\",\"\",'Project Information'!$D$42))","v":""},{"$f":"IF('effRT Support'!$B142=0,\"\",'effRT Support'!$D142)","v":""},{"$f":"IF('effRT Support'!$B142=0,\"\",'effRT Support'!$L142)","v":""},{"$f":"IF('effRT Support'!$B142=0,\"\",'effRT Support'!$N142)","v":""},null,null,{"$f":"IF('effRT Support'!$B142=0,\"\",'effRT Support'!$P142)","v":""},{"$f":"IF('effRT Support'!$B142=0,\"\",'effRT Support'!$Q142)","v":""},{"$f":"IF('effRT Support'!$B142=0,\"\",'effRT Support'!U142)","v":""},{"$f":"IF('effRT Support'!$B142=0,\"\",'effRT Support'!V142)","v":""},{"$f":"IF('effRT Support'!$B142=0,\"\",'effRT Support'!W142)","v":""},{"$f":"IF('effRT Support'!$B142=0,\"\",'effRT Support'!X142)","v":""},{"$f":"IF('effRT Support'!$B142=0,\"\",'effRT Support'!Y142)","v":""},{"$f":"IF('effRT Support'!$B142=0,\"\",'effRT Support'!Z142*10)","v":""},{"$f":"IF('effRT Support'!$B142=0,\"\",'effRT Support'!AA142)","v":""},{"$f":"IF('effRT Support'!$B142=0,\"\",'effRT Support'!AB142)","v":""},{"$f":"IF('effRT Support'!$B142=0,\"\",'effRT Support'!AC142)","v":""},{"$f":"IF('effRT Support'!$B142=0,\"\",'effRT Support'!AD142)","v":""},{"$f":"IF('effRT Support'!$B142=0,\"\",'effRT Support'!AE142)","v":""},{"$f":"IF('effRT Support'!$B142=0,\"\",\"Hours Actual or Deemed\")","v":""},{"$f":"IF('effRT Support'!$B142=0,\"\",'effRT Support'!$F142)","v":""},{"$f":"IF('effRT Support'!$B142=0,\"\",\"Wattage Actual or Deemed\")","v":""},{"$f":"IF('effRT Support'!$B142=0,\"\",IF('Project Information'!$D$33=\"Pay For Performance\",\"Actual\",\"Deemed\"))","v":""},{"$f":"IF('effRT Support'!$B142=0,\"\",\"Cost Actual or Deemed\")","v":""},{"$f":"IF('effRT Support'!$B142=0,\"\",IF('Project Information'!$D$33=\"Pay For Performance\",\"Actual\",\"Deemed\"))","v":""},{"$f":"IF('effRT Support'!$B142=0,\"\",\"Location\")","v":""},{"$f":"IF('effRT Support'!$B142=0,\"\",'effRT Support'!$E142)","v":""},{"$f":"IF('effRT Support'!$B142=0,\"\",\"Space Type\")","v":""},{"$f":"IF('effRT Support'!$B142=0,\"\",'effRT Support'!$G142)","v":""},{"$f":"IF('effRT Support'!$B142=0,\"\",\"Existing Fixture Description\")","v":""},{"$f":"IF('effRT Support'!$B142=0,\"\",'effRT Support'!$H142)","v":""},{"$f":"IF('effRT Support'!$B142=0,\"\",\"Existing Fixture Quantity\")","v":""},{"$f":"IF('effRT Support'!$B142=0,\"\",'effRT Support'!$I142)","v":""},{"$f":"IF('effRT Support'!$B142=0,\"\",\"Existing Fixture Wattage\")","v":""},{"$f":"IF('effRT Support'!$B142=0,\"\",'effRT Support'!$J142)","v":""},{"$f":"IF('effRT Support'!$B142=0,\"\",\"Annual Hours of Operation\")","v":""},{"$f":"IF('effRT Support'!$B142=0,\"\",'effRT Support'!$K142)","v":""},{"$f":"IF('effRT Support'!$B142=0,\"\",\"Installed Fixture Description\")","v":""},{"$f":"IF('effRT Support'!$B142=0,\"\",'effRT Support'!$M142)","v":""},{"$f":"IF('effRT Support'!$B142=0,\"\",\"Installed Fixture Wattage\")","v":""},{"$f":"IF('effRT Support'!$B142=0,\"\",'effRT Support'!$O142)","v":""},{"$f":"IF('effRT Support'!$B142=0,\"\",\"Material Cost\")","v":""},{"$f":"IF('effRT Support'!$B142=0,\"\",'effRT Support'!$R142)","v":""},{"$f":"IF('effRT Support'!$B142=0,\"\",\"Labor Cost\")","v":""},{"$f":"IF('effRT Support'!$B142=0,\"\",'effRT Support'!$S142)","v":""},{"$f":"IF('effRT Support'!$B142=0,\"\",\"Ancillary Costs - Measure Specific\")","v":""},{"$f":"IF('effRT Support'!$B142=0,\"\",'effRT Support'!$T142)","v":""},{"$f":"IF('effRT Support'!$B142=0,\"\",\"Fuel Type\")","v":""},{"$f":"IF('effRT Support'!$B142=0,\"\",'Project Information'!$D$44)","v":""}]
[{"$f":"IF('effRT Support'!$B143=0,\"\",IF('Project Information'!$D$33=\"Small Business\",\"SBL\",\"CILS\"))","v":""},{"$f":"IF('effRT Support'!$B143=0,\"\",IF('Project Information'!$K$2=\"\",\"\",'Project Information'!$K$2))","v":""},null,{"$f":"IF('effRT Support'!$B143=0,\"\",IF('Project Information'!$D$46=\"\",\"\",'Project Information'!$D$46))","v":""},{"$f":"IF('effRT Support'!$B143=0,\"\",IF('Project Information'!$D$20=\"\",\"\",VLOOKUP('Project Information'!$D$20,'Other Data'!$B$159:$E$189,4,FALSE)))","v":""},{"$f":"IF('effRT Support'!$B143=0,\"\",IF('Project Information'!$D$31=\"\",\"\",'Project Information'!$D$31))","v":""},{"$f":"IF('effRT Support'!$B143=0,\"\",IF('Project Information'!$D$5=\"\",\"\",'Project Information'!$D$5))","v":""},null,null,{"$f":"IF('effRT Support'!$B143=0,\"\",IF('Project Information'!$D$20=\"\",\"\",VLOOKUP('Project Information'!$D$20,'Other Data'!$B$159:$E$189,2,FALSE)))","v":""},{"$f":"IF('effRT Support'!$B143=0,\"\",IF('Project Information'!$D$20=\"\",\"\",VLOOKUP('Project Information'!$D$20,'Other Data'!$B$159:$E$189,3,FALSE)))","v":""},{"$f":"IF('effRT Support'!$B143=0,\"\",\"Existing\")","v":""},null,{"$f":"IF('effRT Support'!$B143=0,\"\",IF('Project Information'!$D$21=\"\",\"\",'Project Information'!$D$21))","v":""},{"$f":"IF('effRT Support'!$B143=0,\"\",IF('Project Information'!$D$48=\"\",\"\",'Project Information'!$D$48))","v":""},{"$f":"IF('effRT Support'!$B143=0,\"\",\"\")","v":""},{"$f":"IF('effRT Support'!$B143=0,\"\",\"\")","v":""},{"$f":"IF('effRT Support'!$B143=0,\"\",\"\")","v":""},{"$f":"IF('effRT Support'!$B143=0,\"\",\"\")","v":""},{"$f":"IF('effRT Support'!$B143=0,\"\",IF('Project Information'!$D$13=\"\",\"\",'Project Information'!$D$13))","v":""},{"$f":"IF('effRT Support'!$B143=0,\"\",IF('Project Information'!$E$13=\"\",\"\",'Project Information'!$E$13))","v":""},{"$f":"IF('effRT Support'!$B143=0,\"\",IF('Project Information'!$D$14=\"\",\"\",'Project Information'!$D$14))","v":""},{"$f":"IF('effRT Support'!$B143=0,\"\",IF('Project Information'!$D$15=\"\",\"\",'Project Information'!$D$15))","v":""},{"$f":"IF('effRT Support'!$B143=0,\"\",IF('Project Information'!$D$16=\"\",\"\",'Project Information'!$D$16))","v":""},null,{"$f":"IF('effRT Support'!$B143=0,\"\",'Project Information'!$D$18)","v":""},{"$f":"IF('effRT Support'!$B143=0,\"\",IF('Project Information'!$D$23=\"\",\"\",'Project Information'!$D$23))","v":""},{"$f":"IF('effRT Support'!$B143=0,\"\",IF('Project Information'!$D$24=\"\",\"\",'Project Information'!$D$24))","v":""},{"$f":"IF('effRT Support'!$B143=0,\"\",IF('Project Information'!$D$25=\"\",\"\",'Project Information'!$D$25))","v":""},{"$f":"IF('effRT Support'!$B143=0,\"\",IF('Project Information'!$E$25=\"\",\"\",'Project Information'!$E$25))","v":""},{"$f":"IF('effRT Support'!$B143=0,\"\",IF('Project Information'!$F$25=\"\",\"\",'Project Information'!$F$25))","v":""},{"$f":"IF('effRT Support'!$B143=0,\"\",IF('Project Information'!$D$27=\"\",\"Y\",\"N\"))","v":""},{"$f":"IF('effRT Support'!$B143=0,\"\",IF('Project Information'!$D$27=\"\",\"\",'Project Information'!$D$27))","v":""},{"$f":"IF('effRT Support'!$B143=0,\"\",IF('Project Information'!$D$28=\"\",\"\",'Project Information'!$D$28))","v":""},{"$f":"IF('effRT Support'!$B143=0,\"\",IF('Project Information'!$D$29=\"\",\"\",'Project Information'!$D$29))","v":""},{"$f":"IF('effRT Support'!$B143=0,\"\",IF('Project Information'!$E$29=\"\",\"\",'Project Information'!$E$29))","v":""},{"$f":"IF('effRT Support'!$B143=0,\"\",IF('Project Information'!$F$29=\"\",\"\",'Project Information'!$F$29))","v":""},{"$f":"IF('effRT Support'!$B143=0,\"\",\"\")","v":""},{"$f":"IF('effRT Support'!$B143=0,\"\",\"\")","v":""},{"$f":"IF('effRT Support'!$B143=0,\"\",IF('Project Information'!$D$36=\"\",\"\",'Project Information'!$D$36))","v":""},{"$f":"IF('effRT Support'!$B143=0,\"\",IF('Project Information'!$D$42=\"\",\"\",'Project Information'!$D$42))","v":""},{"$f":"IF('effRT Support'!$B143=0,\"\",'effRT Support'!$D143)","v":""},{"$f":"IF('effRT Support'!$B143=0,\"\",'effRT Support'!$L143)","v":""},{"$f":"IF('effRT Support'!$B143=0,\"\",'effRT Support'!$N143)","v":""},null,null,{"$f":"IF('effRT Support'!$B143=0,\"\",'effRT Support'!$P143)","v":""},{"$f":"IF('effRT Support'!$B143=0,\"\",'effRT Support'!$Q143)","v":""},{"$f":"IF('effRT Support'!$B143=0,\"\",'effRT Support'!U143)","v":""},{"$f":"IF('effRT Support'!$B143=0,\"\",'effRT Support'!V143)","v":""},{"$f":"IF('effRT Support'!$B143=0,\"\",'effRT Support'!W143)","v":""},{"$f":"IF('effRT Support'!$B143=0,\"\",'effRT Support'!X143)","v":""},{"$f":"IF('effRT Support'!$B143=0,\"\",'effRT Support'!Y143)","v":""},{"$f":"IF('effRT Support'!$B143=0,\"\",'effRT Support'!Z143*10)","v":""},{"$f":"IF('effRT Support'!$B143=0,\"\",'effRT Support'!AA143)","v":""},{"$f":"IF('effRT Support'!$B143=0,\"\",'effRT Support'!AB143)","v":""},{"$f":"IF('effRT Support'!$B143=0,\"\",'effRT Support'!AC143)","v":""},{"$f":"IF('effRT Support'!$B143=0,\"\",'effRT Support'!AD143)","v":""},{"$f":"IF('effRT Support'!$B143=0,\"\",'effRT Support'!AE143)","v":""},{"$f":"IF('effRT Support'!$B143=0,\"\",\"Hours Actual or Deemed\")","v":""},{"$f":"IF('effRT Support'!$B143=0,\"\",'effRT Support'!$F143)","v":""},{"$f":"IF('effRT Support'!$B143=0,\"\",\"Wattage Actual or Deemed\")","v":""},{"$f":"IF('effRT Support'!$B143=0,\"\",IF('Project Information'!$D$33=\"Pay For Performance\",\"Actual\",\"Deemed\"))","v":""},{"$f":"IF('effRT Support'!$B143=0,\"\",\"Cost Actual or Deemed\")","v":""},{"$f":"IF('effRT Support'!$B143=0,\"\",IF('Project Information'!$D$33=\"Pay For Performance\",\"Actual\",\"Deemed\"))","v":""},{"$f":"IF('effRT Support'!$B143=0,\"\",\"Location\")","v":""},{"$f":"IF('effRT Support'!$B143=0,\"\",'effRT Support'!$E143)","v":""},{"$f":"IF('effRT Support'!$B143=0,\"\",\"Space Type\")","v":""},{"$f":"IF('effRT Support'!$B143=0,\"\",'effRT Support'!$G143)","v":""},{"$f":"IF('effRT Support'!$B143=0,\"\",\"Existing Fixture Description\")","v":""},{"$f":"IF('effRT Support'!$B143=0,\"\",'effRT Support'!$H143)","v":""},{"$f":"IF('effRT Support'!$B143=0,\"\",\"Existing Fixture Quantity\")","v":""},{"$f":"IF('effRT Support'!$B143=0,\"\",'effRT Support'!$I143)","v":""},{"$f":"IF('effRT Support'!$B143=0,\"\",\"Existing Fixture Wattage\")","v":""},{"$f":"IF('effRT Support'!$B143=0,\"\",'effRT Support'!$J143)","v":""},{"$f":"IF('effRT Support'!$B143=0,\"\",\"Annual Hours of Operation\")","v":""},{"$f":"IF('effRT Support'!$B143=0,\"\",'effRT Support'!$K143)","v":""},{"$f":"IF('effRT Support'!$B143=0,\"\",\"Installed Fixture Description\")","v":""},{"$f":"IF('effRT Support'!$B143=0,\"\",'effRT Support'!$M143)","v":""},{"$f":"IF('effRT Support'!$B143=0,\"\",\"Installed Fixture Wattage\")","v":""},{"$f":"IF('effRT Support'!$B143=0,\"\",'effRT Support'!$O143)","v":""},{"$f":"IF('effRT Support'!$B143=0,\"\",\"Material Cost\")","v":""},{"$f":"IF('effRT Support'!$B143=0,\"\",'effRT Support'!$R143)","v":""},{"$f":"IF('effRT Support'!$B143=0,\"\",\"Labor Cost\")","v":""},{"$f":"IF('effRT Support'!$B143=0,\"\",'effRT Support'!$S143)","v":""},{"$f":"IF('effRT Support'!$B143=0,\"\",\"Ancillary Costs - Measure Specific\")","v":""},{"$f":"IF('effRT Support'!$B143=0,\"\",'effRT Support'!$T143)","v":""},{"$f":"IF('effRT Support'!$B143=0,\"\",\"Fuel Type\")","v":""},{"$f":"IF('effRT Support'!$B143=0,\"\",'Project Information'!$D$44)","v":""},{"$f":"IF('effRT Support'!$B143=0,\"\",\"Installed Fixture Quantity\")","v":""},{"$f":"IF('effRT Support'!$B143=0,\"\",'effRT Support'!P142)","v":""}]
[{"$f":"IF('effRT Support'!$B144=0,\"\",IF('Project Information'!$D$33=\"Small Business\",\"SBL\",\"CILS\"))","v":""},{"$f":"IF('effRT Support'!$B144=0,\"\",IF('Project Information'!$K$2=\"\",\"\",'Project Information'!$K$2))","v":""},null,{"$f":"IF('effRT Support'!$B144=0,\"\",IF('Project Information'!$D$46=\"\",\"\",'Project Information'!$D$46))","v":""},{"$f":"IF('effRT Support'!$B144=0,\"\",IF('Project Information'!$D$20=\"\",\"\",VLOOKUP('Project Information'!$D$20,'Other Data'!$B$159:$E$189,4,FALSE)))","v":""},{"$f":"IF('effRT Support'!$B144=0,\"\",IF('Project Information'!$D$31=\"\",\"\",'Project Information'!$D$31))","v":""},{"$f":"IF('effRT Support'!$B144=0,\"\",IF('Project Information'!$D$5=\"\",\"\",'Project Information'!$D$5))","v":""},null,null,{"$f":"IF('effRT Support'!$B144=0,\"\",IF('Project Information'!$D$20=\"\",\"\",VLOOKUP('Project Information'!$D$20,'Other Data'!$B$159:$E$189,2,FALSE)))","v":""},{"$f":"IF('effRT Support'!$B144=0,\"\",IF('Project Information'!$D$20=\"\",\"\",VLOOKUP('Project Information'!$D$20,'Other Data'!$B$159:$E$189,3,FALSE)))","v":""},{"$f":"IF('effRT Support'!$B144=0,\"\",\"Existing\")","v":""},null,{"$f":"IF('effRT Support'!$B144=0,\"\",IF('Project Information'!$D$21=\"\",\"\",'Project Information'!$D$21))","v":""},{"$f":"IF('effRT Support'!$B144=0,\"\",IF('Project Information'!$D$48=\"\",\"\",'Project Information'!$D$48))","v":""},{"$f":"IF('effRT Support'!$B144=0,\"\",\"\")","v":""},{"$f":"IF('effRT Support'!$B144=0,\"\",\"\")","v":""},{"$f":"IF('effRT Support'!$B144=0,\"\",\"\")","v":""},{"$f":"IF('effRT Support'!$B144=0,\"\",\"\")","v":""},{"$f":"IF('effRT Support'!$B144=0,\"\",IF('Project Information'!$D$13=\"\",\"\",'Project Information'!$D$13))","v":""},{"$f":"IF('effRT Support'!$B144=0,\"\",IF('Project Information'!$E$13=\"\",\"\",'Project Information'!$E$13))","v":""},{"$f":"IF('effRT Support'!$B144=0,\"\",IF('Project Information'!$D$14=\"\",\"\",'Project Information'!$D$14))","v":""},{"$f":"IF('effRT Support'!$B144=0,\"\",IF('Project Information'!$D$15=\"\",\"\",'Project Information'!$D$15))","v":""},{"$f":"IF('effRT Support'!$B144=0,\"\",IF('Project Information'!$D$16=\"\",\"\",'Project Information'!$D$16))","v":""},null,{"$f":"IF('effRT Support'!$B144=0,\"\",'Project Information'!$D$18)","v":""},{"$f":"IF('effRT Support'!$B144=0,\"\",IF('Project Information'!$D$23=\"\",\"\",'Project Information'!$D$23))","v":""},{"$f":"IF('effRT Support'!$B144=0,\"\",IF('Project Information'!$D$24=\"\",\"\",'Project Information'!$D$24))","v":""},{"$f":"IF('effRT Support'!$B144=0,\"\",IF('Project Information'!$D$25=\"\",\"\",'Project Information'!$D$25))","v":""},{"$f":"IF('effRT Support'!$B144=0,\"\",IF('Project Information'!$E$25=\"\",\"\",'Project Information'!$E$25))","v":""},{"$f":"IF('effRT Support'!$B144=0,\"\",IF('Project Information'!$F$25=\"\",\"\",'Project Information'!$F$25))","v":""},{"$f":"IF('effRT Support'!$B144=0,\"\",IF('Project Information'!$D$27=\"\",\"Y\",\"N\"))","v":""},{"$f":"IF('effRT Support'!$B144=0,\"\",IF('Project Information'!$D$27=\"\",\"\",'Project Information'!$D$27))","v":""},{"$f":"IF('effRT Support'!$B144=0,\"\",IF('Project Information'!$D$28=\"\",\"\",'Project Information'!$D$28))","v":""},{"$f":"IF('effRT Support'!$B144=0,\"\",IF('Project Information'!$D$29=\"\",\"\",'Project Information'!$D$29))","v":""},{"$f":"IF('effRT Support'!$B144=0,\"\",IF('Project Information'!$E$29=\"\",\"\",'Project Information'!$E$29))","v":""},{"$f":"IF('effRT Support'!$B144=0,\"\",IF('Project Information'!$F$29=\"\",\"\",'Project Information'!$F$29))","v":""},{"$f":"IF('effRT Support'!$B144=0,\"\",\"\")","v":""},{"$f":"IF('effRT Support'!$B144=0,\"\",\"\")","v":""},{"$f":"IF('effRT Support'!$B144=0,\"\",IF('Project Information'!$D$36=\"\",\"\",'Project Information'!$D$36))","v":""},{"$f":"IF('effRT Support'!$B144=0,\"\",IF('Project Information'!$D$42=\"\",\"\",'Project Information'!$D$42))","v":""},{"$f":"IF('effRT Support'!$B144=0,\"\",'effRT Support'!$D144)","v":""},{"$f":"IF('effRT Support'!$B144=0,\"\",'effRT Support'!$L144)","v":""},{"$f":"IF('effRT Support'!$B144=0,\"\",'effRT Support'!$N144)","v":""},null,null,{"$f":"IF('effRT Support'!$B144=0,\"\",'effRT Support'!$P144)","v":""},{"$f":"IF('effRT Support'!$B144=0,\"\",'effRT Support'!$Q144)","v":""},{"$f":"IF('effRT Support'!$B144=0,\"\",'effRT Support'!U144)","v":""},{"$f":"IF('effRT Support'!$B144=0,\"\",'effRT Support'!V144)","v":""},{"$f":"IF('effRT Support'!$B144=0,\"\",'effRT Support'!W144)","v":""},{"$f":"IF('effRT Support'!$B144=0,\"\",'effRT Support'!X144)","v":""},{"$f":"IF('effRT Support'!$B144=0,\"\",'effRT Support'!Y144)","v":""},{"$f":"IF('effRT Support'!$B144=0,\"\",'effRT Support'!Z144*10)","v":""},{"$f":"IF('effRT Support'!$B144=0,\"\",'effRT Support'!AA144)","v":""},{"$f":"IF('effRT Support'!$B144=0,\"\",'effRT Support'!AB144)","v":""},{"$f":"IF('effRT Support'!$B144=0,\"\",'effRT Support'!AC144)","v":""},{"$f":"IF('effRT Support'!$B144=0,\"\",'effRT Support'!AD144)","v":""},{"$f":"IF('effRT Support'!$B144=0,\"\",'effRT Support'!AE144)","v":""},{"$f":"IF('effRT Support'!$B144=0,\"\",\"Hours Actual or Deemed\")","v":""},{"$f":"IF('effRT Support'!$B144=0,\"\",'effRT Support'!$F144)","v":""},{"$f":"IF('effRT Support'!$B144=0,\"\",\"Wattage Actual or Deemed\")","v":""},{"$f":"IF('effRT Support'!$B144=0,\"\",IF('Project Information'!$D$33=\"Pay For Performance\",\"Actual\",\"Deemed\"))","v":""},{"$f":"IF('effRT Support'!$B144=0,\"\",\"Cost Actual or Deemed\")","v":""},{"$f":"IF('effRT Support'!$B144=0,\"\",IF('Project Information'!$D$33=\"Pay For Performance\",\"Actual\",\"Deemed\"))","v":""},{"$f":"IF('effRT Support'!$B144=0,\"\",\"Location\")","v":""},{"$f":"IF('effRT Support'!$B144=0,\"\",'effRT Support'!$E144)","v":""},{"$f":"IF('effRT Support'!$B144=0,\"\",\"Space Type\")","v":""},{"$f":"IF('effRT Support'!$B144=0,\"\",'effRT Support'!$G144)","v":""},{"$f":"IF('effRT Support'!$B144=0,\"\",\"Existing Fixture Description\")","v":""},{"$f":"IF('effRT Support'!$B144=0,\"\",'effRT Support'!$H144)","v":""},{"$f":"IF('effRT Support'!$B144=0,\"\",\"Existing Fixture Quantity\")","v":""},{"$f":"IF('effRT Support'!$B144=0,\"\",'effRT Support'!$I144)","v":""},{"$f":"IF('effRT Support'!$B144=0,\"\",\"Existing Fixture Wattage\")","v":""},{"$f":"IF('effRT Support'!$B144=0,\"\",'effRT Support'!$J144)","v":""},{"$f":"IF('effRT Support'!$B144=0,\"\",\"Annual Hours of Operation\")","v":""},{"$f":"IF('effRT Support'!$B144=0,\"\",'effRT Support'!$K144)","v":""},{"$f":"IF('effRT Support'!$B144=0,\"\",\"Installed Fixture Description\")","v":""},{"$f":"IF('effRT Support'!$B144=0,\"\",'effRT Support'!$M144)","v":""},{"$f":"IF('effRT Support'!$B144=0,\"\",\"Installed Fixture Wattage\")","v":""},{"$f":"IF('effRT Support'!$B144=0,\"\",'effRT Support'!$O144)","v":""},{"$f":"IF('effRT Support'!$B144=0,\"\",\"Material Cost\")","v":""},{"$f":"IF('effRT Support'!$B144=0,\"\",'effRT Support'!$R144)","v":""},{"$f":"IF('effRT Support'!$B144=0,\"\",\"Labor Cost\")","v":""},{"$f":"IF('effRT Support'!$B144=0,\"\",'effRT Support'!$S144)","v":""},{"$f":"IF('effRT Support'!$B144=0,\"\",\"Ancillary Costs - Measure Specific\")","v":""},{"$f":"IF('effRT Support'!$B144=0,\"\",'effRT Support'!$T144)","v":""},{"$f":"IF('effRT Support'!$B144=0,\"\",\"Fuel Type\")","v":""},{"$f":"IF('effRT Support'!$B144=0,\"\",'Project Information'!$D$44)","v":""}]
[{"$f":"IF('effRT Support'!$B145=0,\"\",IF('Project Information'!$D$33=\"Small Business\",\"SBL\",\"CILS\"))","v":""},{"$f":"IF('effRT Support'!$B145=0,\"\",IF('Project Information'!$K$2=\"\",\"\",'Project Information'!$K$2))","v":""},null,{"$f":"IF('effRT Support'!$B145=0,\"\",IF('Project Information'!$D$46=\"\",\"\",'Project Information'!$D$46))","v":""},{"$f":"IF('effRT Support'!$B145=0,\"\",IF('Project Information'!$D$20=\"\",\"\",VLOOKUP('Project Information'!$D$20,'Other Data'!$B$159:$E$189,4,FALSE)))","v":""},{"$f":"IF('effRT Support'!$B145=0,\"\",IF('Project Information'!$D$31=\"\",\"\",'Project Information'!$D$31))","v":""},{"$f":"IF('effRT Support'!$B145=0,\"\",IF('Project Information'!$D$5=\"\",\"\",'Project Information'!$D$5))","v":""},null,null,{"$f":"IF('effRT Support'!$B145=0,\"\",IF('Project Information'!$D$20=\"\",\"\",VLOOKUP('Project Information'!$D$20,'Other Data'!$B$159:$E$189,2,FALSE)))","v":""},{"$f":"IF('effRT Support'!$B145=0,\"\",IF('Project Information'!$D$20=\"\",\"\",VLOOKUP('Project Information'!$D$20,'Other Data'!$B$159:$E$189,3,FALSE)))","v":""},{"$f":"IF('effRT Support'!$B145=0,\"\",\"Existing\")","v":""},null,{"$f":"IF('effRT Support'!$B145=0,\"\",IF('Project Information'!$D$21=\"\",\"\",'Project Information'!$D$21))","v":""},{"$f":"IF('effRT Support'!$B145=0,\"\",IF('Project Information'!$D$48=\"\",\"\",'Project Information'!$D$48))","v":""},{"$f":"IF('effRT Support'!$B145=0,\"\",\"\")","v":""},{"$f":"IF('effRT Support'!$B145=0,\"\",\"\")","v":""},{"$f":"IF('effRT Support'!$B145=0,\"\",\"\")","v":""},{"$f":"IF('effRT Support'!$B145=0,\"\",\"\")","v":""},{"$f":"IF('effRT Support'!$B145=0,\"\",IF('Project Information'!$D$13=\"\",\"\",'Project Information'!$D$13))","v":""},{"$f":"IF('effRT Support'!$B145=0,\"\",IF('Project Information'!$E$13=\"\",\"\",'Project Information'!$E$13))","v":""},{"$f":"IF('effRT Support'!$B145=0,\"\",IF('Project Information'!$D$14=\"\",\"\",'Project Information'!$D$14))","v":""},{"$f":"IF('effRT Support'!$B145=0,\"\",IF('Project Information'!$D$15=\"\",\"\",'Project Information'!$D$15))","v":""},{"$f":"IF('effRT Support'!$B145=0,\"\",IF('Project Information'!$D$16=\"\",\"\",'Project Information'!$D$16))","v":""},null,{"$f":"IF('effRT Support'!$B145=0,\"\",'Project Information'!$D$18)","v":""},{"$f":"IF('effRT Support'!$B145=0,\"\",IF('Project Information'!$D$23=\"\",\"\",'Project Information'!$D$23))","v":""},{"$f":"IF('effRT Support'!$B145=0,\"\",IF('Project Information'!$D$24=\"\",\"\",'Project Information'!$D$24))","v":""},{"$f":"IF('effRT Support'!$B145=0,\"\",IF('Project Information'!$D$25=\"\",\"\",'Project Information'!$D$25))","v":""},{"$f":"IF('effRT Support'!$B145=0,\"\",IF('Project Information'!$E$25=\"\",\"\",'Project Information'!$E$25))","v":""},{"$f":"IF('effRT Support'!$B145=0,\"\",IF('Project Information'!$F$25=\"\",\"\",'Project Information'!$F$25))","v":""},{"$f":"IF('effRT Support'!$B145=0,\"\",IF('Project Information'!$D$27=\"\",\"Y\",\"N\"))","v":""},{"$f":"IF('effRT Support'!$B145=0,\"\",IF('Project Information'!$D$27=\"\",\"\",'Project Information'!$D$27))","v":""},{"$f":"IF('effRT Support'!$B145=0,\"\",IF('Project Information'!$D$28=\"\",\"\",'Project Information'!$D$28))","v":""},{"$f":"IF('effRT Support'!$B145=0,\"\",IF('Project Information'!$D$29=\"\",\"\",'Project Information'!$D$29))","v":""},{"$f":"IF('effRT Support'!$B145=0,\"\",IF('Project Information'!$E$29=\"\",\"\",'Project Information'!$E$29))","v":""},{"$f":"IF('effRT Support'!$B145=0,\"\",IF('Project Information'!$F$29=\"\",\"\",'Project Information'!$F$29))","v":""},{"$f":"IF('effRT Support'!$B145=0,\"\",\"\")","v":""},{"$f":"IF('effRT Support'!$B145=0,\"\",\"\")","v":""},{"$f":"IF('effRT Support'!$B145=0,\"\",IF('Project Information'!$D$36=\"\",\"\",'Project Information'!$D$36))","v":""},{"$f":"IF('effRT Support'!$B145=0,\"\",IF('Project Information'!$D$42=\"\",\"\",'Project Information'!$D$42))","v":""},{"$f":"IF('effRT Support'!$B145=0,\"\",'effRT Support'!$D145)","v":""},{"$f":"IF('effRT Support'!$B145=0,\"\",'effRT Support'!$L145)","v":""},{"$f":"IF('effRT Support'!$B145=0,\"\",'effRT Support'!$N145)","v":""},null,null,{"$f":"IF('effRT Support'!$B145=0,\"\",'effRT Support'!$P145)","v":""},{"$f":"IF('effRT Support'!$B145=0,\"\",'effRT Support'!$Q145)","v":""},{"$f":"IF('effRT Support'!$B145=0,\"\",'effRT Support'!U145)","v":""},{"$f":"IF('effRT Support'!$B145=0,\"\",'effRT Support'!V145)","v":""},{"$f":"IF('effRT Support'!$B145=0,\"\",'effRT Support'!W145)","v":""},{"$f":"IF('effRT Support'!$B145=0,\"\",'effRT Support'!X145)","v":""},{"$f":"IF('effRT Support'!$B145=0,\"\",'effRT Support'!Y145)","v":""},{"$f":"IF('effRT Support'!$B145=0,\"\",'effRT Support'!Z145*10)","v":""},{"$f":"IF('effRT Support'!$B145=0,\"\",'effRT Support'!AA145)","v":""},{"$f":"IF('effRT Support'!$B145=0,\"\",'effRT Support'!AB145)","v":""},{"$f":"IF('effRT Support'!$B145=0,\"\",'effRT Support'!AC145)","v":""},{"$f":"IF('effRT Support'!$B145=0,\"\",'effRT Support'!AD145)","v":""},{"$f":"IF('effRT Support'!$B145=0,\"\",'effRT Support'!AE145)","v":""},{"$f":"IF('effRT Support'!$B145=0,\"\",\"Hours Actual or Deemed\")","v":""},{"$f":"IF('effRT Support'!$B145=0,\"\",'effRT Support'!$F145)","v":""},{"$f":"IF('effRT Support'!$B145=0,\"\",\"Wattage Actual or Deemed\")","v":""},{"$f":"IF('effRT Support'!$B145=0,\"\",IF('Project Information'!$D$33=\"Pay For Performance\",\"Actual\",\"Deemed\"))","v":""},{"$f":"IF('effRT Support'!$B145=0,\"\",\"Cost Actual or Deemed\")","v":""},{"$f":"IF('effRT Support'!$B145=0,\"\",IF('Project Information'!$D$33=\"Pay For Performance\",\"Actual\",\"Deemed\"))","v":""},{"$f":"IF('effRT Support'!$B145=0,\"\",\"Location\")","v":""},{"$f":"IF('effRT Support'!$B145=0,\"\",'effRT Support'!$E145)","v":""},{"$f":"IF('effRT Support'!$B145=0,\"\",\"Space Type\")","v":""},{"$f":"IF('effRT Support'!$B145=0,\"\",'effRT Support'!$G145)","v":""},{"$f":"IF('effRT Support'!$B145=0,\"\",\"Existing Fixture Description\")","v":""},{"$f":"IF('effRT Support'!$B145=0,\"\",'effRT Support'!$H145)","v":""},{"$f":"IF('effRT Support'!$B145=0,\"\",\"Existing Fixture Quantity\")","v":""},{"$f":"IF('effRT Support'!$B145=0,\"\",'effRT Support'!$I145)","v":""},{"$f":"IF('effRT Support'!$B145=0,\"\",\"Existing Fixture Wattage\")","v":""},{"$f":"IF('effRT Support'!$B145=0,\"\",'effRT Support'!$J145)","v":""},{"$f":"IF('effRT Support'!$B145=0,\"\",\"Annual Hours of Operation\")","v":""},{"$f":"IF('effRT Support'!$B145=0,\"\",'effRT Support'!$K145)","v":""},{"$f":"IF('effRT Support'!$B145=0,\"\",\"Installed Fixture Description\")","v":""},{"$f":"IF('effRT Support'!$B145=0,\"\",'effRT Support'!$M145)","v":""},{"$f":"IF('effRT Support'!$B145=0,\"\",\"Installed Fixture Wattage\")","v":""},{"$f":"IF('effRT Support'!$B145=0,\"\",'effRT Support'!$O145)","v":""},{"$f":"IF('effRT Support'!$B145=0,\"\",\"Material Cost\")","v":""},{"$f":"IF('effRT Support'!$B145=0,\"\",'effRT Support'!$R145)","v":""},{"$f":"IF('effRT Support'!$B145=0,\"\",\"Labor Cost\")","v":""},{"$f":"IF('effRT Support'!$B145=0,\"\",'effRT Support'!$S145)","v":""},{"$f":"IF('effRT Support'!$B145=0,\"\",\"Ancillary Costs - Measure Specific\")","v":""},{"$f":"IF('effRT Support'!$B145=0,\"\",'effRT Support'!$T145)","v":""},{"$f":"IF('effRT Support'!$B145=0,\"\",\"Fuel Type\")","v":""},{"$f":"IF('effRT Support'!$B145=0,\"\",'Project Information'!$D$44)","v":""},{"$f":"IF('effRT Support'!$B145=0,\"\",\"Installed Fixture Quantity\")","v":""},{"$f":"IF('effRT Support'!$B145=0,\"\",'effRT Support'!P144)","v":""}]
[{"$f":"IF('effRT Support'!$B146=0,\"\",IF('Project Information'!$D$33=\"Small Business\",\"SBL\",\"CILS\"))","v":""},{"$f":"IF('effRT Support'!$B146=0,\"\",IF('Project Information'!$K$2=\"\",\"\",'Project Information'!$K$2))","v":""},null,{"$f":"IF('effRT Support'!$B146=0,\"\",IF('Project Information'!$D$46=\"\",\"\",'Project Information'!$D$46))","v":""},{"$f":"IF('effRT Support'!$B146=0,\"\",IF('Project Information'!$D$20=\"\",\"\",VLOOKUP('Project Information'!$D$20,'Other Data'!$B$159:$E$189,4,FALSE)))","v":""},{"$f":"IF('effRT Support'!$B146=0,\"\",IF('Project Information'!$D$31=\"\",\"\",'Project Information'!$D$31))","v":""},{"$f":"IF('effRT Support'!$B146=0,\"\",IF('Project Information'!$D$5=\"\",\"\",'Project Information'!$D$5))","v":""},null,null,{"$f":"IF('effRT Support'!$B146=0,\"\",IF('Project Information'!$D$20=\"\",\"\",VLOOKUP('Project Information'!$D$20,'Other Data'!$B$159:$E$189,2,FALSE)))","v":""},{"$f":"IF('effRT Support'!$B146=0,\"\",IF('Project Information'!$D$20=\"\",\"\",VLOOKUP('Project Information'!$D$20,'Other Data'!$B$159:$E$189,3,FALSE)))","v":""},{"$f":"IF('effRT Support'!$B146=0,\"\",\"Existing\")","v":""},null,{"$f":"IF('effRT Support'!$B146=0,\"\",IF('Project Information'!$D$21=\"\",\"\",'Project Information'!$D$21))","v":""},{"$f":"IF('effRT Support'!$B146=0,\"\",IF('Project Information'!$D$48=\"\",\"\",'Project Information'!$D$48))","v":""},{"$f":"IF('effRT Support'!$B146=0,\"\",\"\")","v":""},{"$f":"IF('effRT Support'!$B146=0,\"\",\"\")","v":""},{"$f":"IF('effRT Support'!$B146=0,\"\",\"\")","v":""},{"$f":"IF('effRT Support'!$B146=0,\"\",\"\")","v":""},{"$f":"IF('effRT Support'!$B146=0,\"\",IF('Project Information'!$D$13=\"\",\"\",'Project Information'!$D$13))","v":""},{"$f":"IF('effRT Support'!$B146=0,\"\",IF('Project Information'!$E$13=\"\",\"\",'Project Information'!$E$13))","v":""},{"$f":"IF('effRT Support'!$B146=0,\"\",IF('Project Information'!$D$14=\"\",\"\",'Project Information'!$D$14))","v":""},{"$f":"IF('effRT Support'!$B146=0,\"\",IF('Project Information'!$D$15=\"\",\"\",'Project Information'!$D$15))","v":""},{"$f":"IF('effRT Support'!$B146=0,\"\",IF('Project Information'!$D$16=\"\",\"\",'Project Information'!$D$16))","v":""},null,{"$f":"IF('effRT Support'!$B146=0,\"\",'Project Information'!$D$18)","v":""},{"$f":"IF('effRT Support'!$B146=0,\"\",IF('Project Information'!$D$23=\"\",\"\",'Project Information'!$D$23))","v":""},{"$f":"IF('effRT Support'!$B146=0,\"\",IF('Project Information'!$D$24=\"\",\"\",'Project Information'!$D$24))","v":""},{"$f":"IF('effRT Support'!$B146=0,\"\",IF('Project Information'!$D$25=\"\",\"\",'Project Information'!$D$25))","v":""},{"$f":"IF('effRT Support'!$B146=0,\"\",IF('Project Information'!$E$25=\"\",\"\",'Project Information'!$E$25))","v":""},{"$f":"IF('effRT Support'!$B146=0,\"\",IF('Project Information'!$F$25=\"\",\"\",'Project Information'!$F$25))","v":""},{"$f":"IF('effRT Support'!$B146=0,\"\",IF('Project Information'!$D$27=\"\",\"Y\",\"N\"))","v":""},{"$f":"IF('effRT Support'!$B146=0,\"\",IF('Project Information'!$D$27=\"\",\"\",'Project Information'!$D$27))","v":""},{"$f":"IF('effRT Support'!$B146=0,\"\",IF('Project Information'!$D$28=\"\",\"\",'Project Information'!$D$28))","v":""},{"$f":"IF('effRT Support'!$B146=0,\"\",IF('Project Information'!$D$29=\"\",\"\",'Project Information'!$D$29))","v":""},{"$f":"IF('effRT Support'!$B146=0,\"\",IF('Project Information'!$E$29=\"\",\"\",'Project Information'!$E$29))","v":""},{"$f":"IF('effRT Support'!$B146=0,\"\",IF('Project Information'!$F$29=\"\",\"\",'Project Information'!$F$29))","v":""},{"$f":"IF('effRT Support'!$B146=0,\"\",\"\")","v":""},{"$f":"IF('effRT Support'!$B146=0,\"\",\"\")","v":""},{"$f":"IF('effRT Support'!$B146=0,\"\",IF('Project Information'!$D$36=\"\",\"\",'Project Information'!$D$36))","v":""},{"$f":"IF('effRT Support'!$B146=0,\"\",IF('Project Information'!$D$42=\"\",\"\",'Project Information'!$D$42))","v":""},{"$f":"IF('effRT Support'!$B146=0,\"\",'effRT Support'!$D146)","v":""},{"$f":"IF('effRT Support'!$B146=0,\"\",'effRT Support'!$L146)","v":""},{"$f":"IF('effRT Support'!$B146=0,\"\",'effRT Support'!$N146)","v":""},null,null,{"$f":"IF('effRT Support'!$B146=0,\"\",'effRT Support'!$P146)","v":""},{"$f":"IF('effRT Support'!$B146=0,\"\",'effRT Support'!$Q146)","v":""},{"$f":"IF('effRT Support'!$B146=0,\"\",'effRT Support'!U146)","v":""},{"$f":"IF('effRT Support'!$B146=0,\"\",'effRT Support'!V146)","v":""},{"$f":"IF('effRT Support'!$B146=0,\"\",'effRT Support'!W146)","v":""},{"$f":"IF('effRT Support'!$B146=0,\"\",'effRT Support'!X146)","v":""},{"$f":"IF('effRT Support'!$B146=0,\"\",'effRT Support'!Y146)","v":""},{"$f":"IF('effRT Support'!$B146=0,\"\",'effRT Support'!Z146*10)","v":""},{"$f":"IF('effRT Support'!$B146=0,\"\",'effRT Support'!AA146)","v":""},{"$f":"IF('effRT Support'!$B146=0,\"\",'effRT Support'!AB146)","v":""},{"$f":"IF('effRT Support'!$B146=0,\"\",'effRT Support'!AC146)","v":""},{"$f":"IF('effRT Support'!$B146=0,\"\",'effRT Support'!AD146)","v":""},{"$f":"IF('effRT Support'!$B146=0,\"\",'effRT Support'!AE146)","v":""},{"$f":"IF('effRT Support'!$B146=0,\"\",\"Hours Actual or Deemed\")","v":""},{"$f":"IF('effRT Support'!$B146=0,\"\",'effRT Support'!$F146)","v":""},{"$f":"IF('effRT Support'!$B146=0,\"\",\"Wattage Actual or Deemed\")","v":""},{"$f":"IF('effRT Support'!$B146=0,\"\",IF('Project Information'!$D$33=\"Pay For Performance\",\"Actual\",\"Deemed\"))","v":""},{"$f":"IF('effRT Support'!$B146=0,\"\",\"Cost Actual or Deemed\")","v":""},{"$f":"IF('effRT Support'!$B146=0,\"\",IF('Project Information'!$D$33=\"Pay For Performance\",\"Actual\",\"Deemed\"))","v":""},{"$f":"IF('effRT Support'!$B146=0,\"\",\"Location\")","v":""},{"$f":"IF('effRT Support'!$B146=0,\"\",'effRT Support'!$E146)","v":""},{"$f":"IF('effRT Support'!$B146=0,\"\",\"Space Type\")","v":""},{"$f":"IF('effRT Support'!$B146=0,\"\",'effRT Support'!$G146)","v":""},{"$f":"IF('effRT Support'!$B146=0,\"\",\"Existing Fixture Description\")","v":""},{"$f":"IF('effRT Support'!$B146=0,\"\",'effRT Support'!$H146)","v":""},{"$f":"IF('effRT Support'!$B146=0,\"\",\"Existing Fixture Quantity\")","v":""},{"$f":"IF('effRT Support'!$B146=0,\"\",'effRT Support'!$I146)","v":""},{"$f":"IF('effRT Support'!$B146=0,\"\",\"Existing Fixture Wattage\")","v":""},{"$f":"IF('effRT Support'!$B146=0,\"\",'effRT Support'!$J146)","v":""},{"$f":"IF('effRT Support'!$B146=0,\"\",\"Annual Hours of Operation\")","v":""},{"$f":"IF('effRT Support'!$B146=0,\"\",'effRT Support'!$K146)","v":""},{"$f":"IF('effRT Support'!$B146=0,\"\",\"Installed Fixture Description\")","v":""},{"$f":"IF('effRT Support'!$B146=0,\"\",'effRT Support'!$M146)","v":""},{"$f":"IF('effRT Support'!$B146=0,\"\",\"Installed Fixture Wattage\")","v":""},{"$f":"IF('effRT Support'!$B146=0,\"\",'effRT Support'!$O146)","v":""},{"$f":"IF('effRT Support'!$B146=0,\"\",\"Material Cost\")","v":""},{"$f":"IF('effRT Support'!$B146=0,\"\",'effRT Support'!$R146)","v":""},{"$f":"IF('effRT Support'!$B146=0,\"\",\"Labor Cost\")","v":""},{"$f":"IF('effRT Support'!$B146=0,\"\",'effRT Support'!$S146)","v":""},{"$f":"IF('effRT Support'!$B146=0,\"\",\"Ancillary Costs - Measure Specific\")","v":""},{"$f":"IF('effRT Support'!$B146=0,\"\",'effRT Support'!$T146)","v":""},{"$f":"IF('effRT Support'!$B146=0,\"\",\"Fuel Type\")","v":""},{"$f":"IF('effRT Support'!$B146=0,\"\",'Project Information'!$D$44)","v":""}]
[{"$f":"IF('effRT Support'!$B147=0,\"\",IF('Project Information'!$D$33=\"Small Business\",\"SBL\",\"CILS\"))","v":""},{"$f":"IF('effRT Support'!$B147=0,\"\",IF('Project Information'!$K$2=\"\",\"\",'Project Information'!$K$2))","v":""},null,{"$f":"IF('effRT Support'!$B147=0,\"\",IF('Project Information'!$D$46=\"\",\"\",'Project Information'!$D$46))","v":""},{"$f":"IF('effRT Support'!$B147=0,\"\",IF('Project Information'!$D$20=\"\",\"\",VLOOKUP('Project Information'!$D$20,'Other Data'!$B$159:$E$189,4,FALSE)))","v":""},{"$f":"IF('effRT Support'!$B147=0,\"\",IF('Project Information'!$D$31=\"\",\"\",'Project Information'!$D$31))","v":""},{"$f":"IF('effRT Support'!$B147=0,\"\",IF('Project Information'!$D$5=\"\",\"\",'Project Information'!$D$5))","v":""},null,null,{"$f":"IF('effRT Support'!$B147=0,\"\",IF('Project Information'!$D$20=\"\",\"\",VLOOKUP('Project Information'!$D$20,'Other Data'!$B$159:$E$189,2,FALSE)))","v":""},{"$f":"IF('effRT Support'!$B147=0,\"\",IF('Project Information'!$D$20=\"\",\"\",VLOOKUP('Project Information'!$D$20,'Other Data'!$B$159:$E$189,3,FALSE)))","v":""},{"$f":"IF('effRT Support'!$B147=0,\"\",\"Existing\")","v":""},null,{"$f":"IF('effRT Support'!$B147=0,\"\",IF('Project Information'!$D$21=\"\",\"\",'Project Information'!$D$21))","v":""},{"$f":"IF('effRT Support'!$B147=0,\"\",IF('Project Information'!$D$48=\"\",\"\",'Project Information'!$D$48))","v":""},{"$f":"IF('effRT Support'!$B147=0,\"\",\"\")","v":""},{"$f":"IF('effRT Support'!$B147=0,\"\",\"\")","v":""},{"$f":"IF('effRT Support'!$B147=0,\"\",\"\")","v":""},{"$f":"IF('effRT Support'!$B147=0,\"\",\"\")","v":""},{"$f":"IF('effRT Support'!$B147=0,\"\",IF('Project Information'!$D$13=\"\",\"\",'Project Information'!$D$13))","v":""},{"$f":"IF('effRT Support'!$B147=0,\"\",IF('Project Information'!$E$13=\"\",\"\",'Project Information'!$E$13))","v":""},{"$f":"IF('effRT Support'!$B147=0,\"\",IF('Project Information'!$D$14=\"\",\"\",'Project Information'!$D$14))","v":""},{"$f":"IF('effRT Support'!$B147=0,\"\",IF('Project Information'!$D$15=\"\",\"\",'Project Information'!$D$15))","v":""},{"$f":"IF('effRT Support'!$B147=0,\"\",IF('Project Information'!$D$16=\"\",\"\",'Project Information'!$D$16))","v":""},null,{"$f":"IF('effRT Support'!$B147=0,\"\",'Project Information'!$D$18)","v":""},{"$f":"IF('effRT Support'!$B147=0,\"\",IF('Project Information'!$D$23=\"\",\"\",'Project Information'!$D$23))","v":""},{"$f":"IF('effRT Support'!$B147=0,\"\",IF('Project Information'!$D$24=\"\",\"\",'Project Information'!$D$24))","v":""},{"$f":"IF('effRT Support'!$B147=0,\"\",IF('Project Information'!$D$25=\"\",\"\",'Project Information'!$D$25))","v":""},{"$f":"IF('effRT Support'!$B147=0,\"\",IF('Project Information'!$E$25=\"\",\"\",'Project Information'!$E$25))","v":""},{"$f":"IF('effRT Support'!$B147=0,\"\",IF('Project Information'!$F$25=\"\",\"\",'Project Information'!$F$25))","v":""},{"$f":"IF('effRT Support'!$B147=0,\"\",IF('Project Information'!$D$27=\"\",\"Y\",\"N\"))","v":""},{"$f":"IF('effRT Support'!$B147=0,\"\",IF('Project Information'!$D$27=\"\",\"\",'Project Information'!$D$27))","v":""},{"$f":"IF('effRT Support'!$B147=0,\"\",IF('Project Information'!$D$28=\"\",\"\",'Project Information'!$D$28))","v":""},{"$f":"IF('effRT Support'!$B147=0,\"\",IF('Project Information'!$D$29=\"\",\"\",'Project Information'!$D$29))","v":""},{"$f":"IF('effRT Support'!$B147=0,\"\",IF('Project Information'!$E$29=\"\",\"\",'Project Information'!$E$29))","v":""},{"$f":"IF('effRT Support'!$B147=0,\"\",IF('Project Information'!$F$29=\"\",\"\",'Project Information'!$F$29))","v":""},{"$f":"IF('effRT Support'!$B147=0,\"\",\"\")","v":""},{"$f":"IF('effRT Support'!$B147=0,\"\",\"\")","v":""},{"$f":"IF('effRT Support'!$B147=0,\"\",IF('Project Information'!$D$36=\"\",\"\",'Project Information'!$D$36))","v":""},{"$f":"IF('effRT Support'!$B147=0,\"\",IF('Project Information'!$D$42=\"\",\"\",'Project Information'!$D$42))","v":""},{"$f":"IF('effRT Support'!$B147=0,\"\",'effRT Support'!$D147)","v":""},{"$f":"IF('effRT Support'!$B147=0,\"\",'effRT Support'!$L147)","v":""},{"$f":"IF('effRT Support'!$B147=0,\"\",'effRT Support'!$N147)","v":""},null,null,{"$f":"IF('effRT Support'!$B147=0,\"\",'effRT Support'!$P147)","v":""},{"$f":"IF('effRT Support'!$B147=0,\"\",'effRT Support'!$Q147)","v":""},{"$f":"IF('effRT Support'!$B147=0,\"\",'effRT Support'!U147)","v":""},{"$f":"IF('effRT Support'!$B147=0,\"\",'effRT Support'!V147)","v":""},{"$f":"IF('effRT Support'!$B147=0,\"\",'effRT Support'!W147)","v":""},{"$f":"IF('effRT Support'!$B147=0,\"\",'effRT Support'!X147)","v":""},{"$f":"IF('effRT Support'!$B147=0,\"\",'effRT Support'!Y147)","v":""},{"$f":"IF('effRT Support'!$B147=0,\"\",'effRT Support'!Z147*10)","v":""},{"$f":"IF('effRT Support'!$B147=0,\"\",'effRT Support'!AA147)","v":""},{"$f":"IF('effRT Support'!$B147=0,\"\",'effRT Support'!AB147)","v":""},{"$f":"IF('effRT Support'!$B147=0,\"\",'effRT Support'!AC147)","v":""},{"$f":"IF('effRT Support'!$B147=0,\"\",'effRT Support'!AD147)","v":""},{"$f":"IF('effRT Support'!$B147=0,\"\",'effRT Support'!AE147)","v":""},{"$f":"IF('effRT Support'!$B147=0,\"\",\"Hours Actual or Deemed\")","v":""},{"$f":"IF('effRT Support'!$B147=0,\"\",'effRT Support'!$F147)","v":""},{"$f":"IF('effRT Support'!$B147=0,\"\",\"Wattage Actual or Deemed\")","v":""},{"$f":"IF('effRT Support'!$B147=0,\"\",IF('Project Information'!$D$33=\"Pay For Performance\",\"Actual\",\"Deemed\"))","v":""},{"$f":"IF('effRT Support'!$B147=0,\"\",\"Cost Actual or Deemed\")","v":""},{"$f":"IF('effRT Support'!$B147=0,\"\",IF('Project Information'!$D$33=\"Pay For Performance\",\"Actual\",\"Deemed\"))","v":""},{"$f":"IF('effRT Support'!$B147=0,\"\",\"Location\")","v":""},{"$f":"IF('effRT Support'!$B147=0,\"\",'effRT Support'!$E147)","v":""},{"$f":"IF('effRT Support'!$B147=0,\"\",\"Space Type\")","v":""},{"$f":"IF('effRT Support'!$B147=0,\"\",'effRT Support'!$G147)","v":""},{"$f":"IF('effRT Support'!$B147=0,\"\",\"Existing Fixture Description\")","v":""},{"$f":"IF('effRT Support'!$B147=0,\"\",'effRT Support'!$H147)","v":""},{"$f":"IF('effRT Support'!$B147=0,\"\",\"Existing Fixture Quantity\")","v":""},{"$f":"IF('effRT Support'!$B147=0,\"\",'effRT Support'!$I147)","v":""},{"$f":"IF('effRT Support'!$B147=0,\"\",\"Existing Fixture Wattage\")","v":""},{"$f":"IF('effRT Support'!$B147=0,\"\",'effRT Support'!$J147)","v":""},{"$f":"IF('effRT Support'!$B147=0,\"\",\"Annual Hours of Operation\")","v":""},{"$f":"IF('effRT Support'!$B147=0,\"\",'effRT Support'!$K147)","v":""},{"$f":"IF('effRT Support'!$B147=0,\"\",\"Installed Fixture Description\")","v":""},{"$f":"IF('effRT Support'!$B147=0,\"\",'effRT Support'!$M147)","v":""},{"$f":"IF('effRT Support'!$B147=0,\"\",\"Installed Fixture Wattage\")","v":""},{"$f":"IF('effRT Support'!$B147=0,\"\",'effRT Support'!$O147)","v":""},{"$f":"IF('effRT Support'!$B147=0,\"\",\"Material Cost\")","v":""},{"$f":"IF('effRT Support'!$B147=0,\"\",'effRT Support'!$R147)","v":""},{"$f":"IF('effRT Support'!$B147=0,\"\",\"Labor Cost\")","v":""},{"$f":"IF('effRT Support'!$B147=0,\"\",'effRT Support'!$S147)","v":""},{"$f":"IF('effRT Support'!$B147=0,\"\",\"Ancillary Costs - Measure Specific\")","v":""},{"$f":"IF('effRT Support'!$B147=0,\"\",'effRT Support'!$T147)","v":""},{"$f":"IF('effRT Support'!$B147=0,\"\",\"Fuel Type\")","v":""},{"$f":"IF('effRT Support'!$B147=0,\"\",'Project Information'!$D$44)","v":""},{"$f":"IF('effRT Support'!$B147=0,\"\",\"Installed Fixture Quantity\")","v":""},{"$f":"IF('effRT Support'!$B147=0,\"\",'effRT Support'!P146)","v":""}]
[{"$f":"IF('effRT Support'!$B148=0,\"\",IF('Project Information'!$D$33=\"Small Business\",\"SBL\",\"CILS\"))","v":""},{"$f":"IF('effRT Support'!$B148=0,\"\",IF('Project Information'!$K$2=\"\",\"\",'Project Information'!$K$2))","v":""},null,{"$f":"IF('effRT Support'!$B148=0,\"\",IF('Project Information'!$D$46=\"\",\"\",'Project Information'!$D$46))","v":""},{"$f":"IF('effRT Support'!$B148=0,\"\",IF('Project Information'!$D$20=\"\",\"\",VLOOKUP('Project Information'!$D$20,'Other Data'!$B$159:$E$189,4,FALSE)))","v":""},{"$f":"IF('effRT Support'!$B148=0,\"\",IF('Project Information'!$D$31=\"\",\"\",'Project Information'!$D$31))","v":""},{"$f":"IF('effRT Support'!$B148=0,\"\",IF('Project Information'!$D$5=\"\",\"\",'Project Information'!$D$5))","v":""},null,null,{"$f":"IF('effRT Support'!$B148=0,\"\",IF('Project Information'!$D$20=\"\",\"\",VLOOKUP('Project Information'!$D$20,'Other Data'!$B$159:$E$189,2,FALSE)))","v":""},{"$f":"IF('effRT Support'!$B148=0,\"\",IF('Project Information'!$D$20=\"\",\"\",VLOOKUP('Project Information'!$D$20,'Other Data'!$B$159:$E$189,3,FALSE)))","v":""},{"$f":"IF('effRT Support'!$B148=0,\"\",\"Existing\")","v":""},null,{"$f":"IF('effRT Support'!$B148=0,\"\",IF('Project Information'!$D$21=\"\",\"\",'Project Information'!$D$21))","v":""},{"$f":"IF('effRT Support'!$B148=0,\"\",IF('Project Information'!$D$48=\"\",\"\",'Project Information'!$D$48))","v":""},{"$f":"IF('effRT Support'!$B148=0,\"\",\"\")","v":""},{"$f":"IF('effRT Support'!$B148=0,\"\",\"\")","v":""},{"$f":"IF('effRT Support'!$B148=0,\"\",\"\")","v":""},{"$f":"IF('effRT Support'!$B148=0,\"\",\"\")","v":""},{"$f":"IF('effRT Support'!$B148=0,\"\",IF('Project Information'!$D$13=\"\",\"\",'Project Information'!$D$13))","v":""},{"$f":"IF('effRT Support'!$B148=0,\"\",IF('Project Information'!$E$13=\"\",\"\",'Project Information'!$E$13))","v":""},{"$f":"IF('effRT Support'!$B148=0,\"\",IF('Project Information'!$D$14=\"\",\"\",'Project Information'!$D$14))","v":""},{"$f":"IF('effRT Support'!$B148=0,\"\",IF('Project Information'!$D$15=\"\",\"\",'Project Information'!$D$15))","v":""},{"$f":"IF('effRT Support'!$B148=0,\"\",IF('Project Information'!$D$16=\"\",\"\",'Project Information'!$D$16))","v":""},null,{"$f":"IF('effRT Support'!$B148=0,\"\",'Project Information'!$D$18)","v":""},{"$f":"IF('effRT Support'!$B148=0,\"\",IF('Project Information'!$D$23=\"\",\"\",'Project Information'!$D$23))","v":""},{"$f":"IF('effRT Support'!$B148=0,\"\",IF('Project Information'!$D$24=\"\",\"\",'Project Information'!$D$24))","v":""},{"$f":"IF('effRT Support'!$B148=0,\"\",IF('Project Information'!$D$25=\"\",\"\",'Project Information'!$D$25))","v":""},{"$f":"IF('effRT Support'!$B148=0,\"\",IF('Project Information'!$E$25=\"\",\"\",'Project Information'!$E$25))","v":""},{"$f":"IF('effRT Support'!$B148=0,\"\",IF('Project Information'!$F$25=\"\",\"\",'Project Information'!$F$25))","v":""},{"$f":"IF('effRT Support'!$B148=0,\"\",IF('Project Information'!$D$27=\"\",\"Y\",\"N\"))","v":""},{"$f":"IF('effRT Support'!$B148=0,\"\",IF('Project Information'!$D$27=\"\",\"\",'Project Information'!$D$27))","v":""},{"$f":"IF('effRT Support'!$B148=0,\"\",IF('Project Information'!$D$28=\"\",\"\",'Project Information'!$D$28))","v":""},{"$f":"IF('effRT Support'!$B148=0,\"\",IF('Project Information'!$D$29=\"\",\"\",'Project Information'!$D$29))","v":""},{"$f":"IF('effRT Support'!$B148=0,\"\",IF('Project Information'!$E$29=\"\",\"\",'Project Information'!$E$29))","v":""},{"$f":"IF('effRT Support'!$B148=0,\"\",IF('Project Information'!$F$29=\"\",\"\",'Project Information'!$F$29))","v":""},{"$f":"IF('effRT Support'!$B148=0,\"\",\"\")","v":""},{"$f":"IF('effRT Support'!$B148=0,\"\",\"\")","v":""},{"$f":"IF('effRT Support'!$B148=0,\"\",IF('Project Information'!$D$36=\"\",\"\",'Project Information'!$D$36))","v":""},{"$f":"IF('effRT Support'!$B148=0,\"\",IF('Project Information'!$D$42=\"\",\"\",'Project Information'!$D$42))","v":""},{"$f":"IF('effRT Support'!$B148=0,\"\",'effRT Support'!$D148)","v":""},{"$f":"IF('effRT Support'!$B148=0,\"\",'effRT Support'!$L148)","v":""},{"$f":"IF('effRT Support'!$B148=0,\"\",'effRT Support'!$N148)","v":""},null,null,{"$f":"IF('effRT Support'!$B148=0,\"\",'effRT Support'!$P148)","v":""},{"$f":"IF('effRT Support'!$B148=0,\"\",'effRT Support'!$Q148)","v":""},{"$f":"IF('effRT Support'!$B148=0,\"\",'effRT Support'!U148)","v":""},{"$f":"IF('effRT Support'!$B148=0,\"\",'effRT Support'!V148)","v":""},{"$f":"IF('effRT Support'!$B148=0,\"\",'effRT Support'!W148)","v":""},{"$f":"IF('effRT Support'!$B148=0,\"\",'effRT Support'!X148)","v":""},{"$f":"IF('effRT Support'!$B148=0,\"\",'effRT Support'!Y148)","v":""},{"$f":"IF('effRT Support'!$B148=0,\"\",'effRT Support'!Z148*10)","v":""},{"$f":"IF('effRT Support'!$B148=0,\"\",'effRT Support'!AA148)","v":""},{"$f":"IF('effRT Support'!$B148=0,\"\",'effRT Support'!AB148)","v":""},{"$f":"IF('effRT Support'!$B148=0,\"\",'effRT Support'!AC148)","v":""},{"$f":"IF('effRT Support'!$B148=0,\"\",'effRT Support'!AD148)","v":""},{"$f":"IF('effRT Support'!$B148=0,\"\",'effRT Support'!AE148)","v":""},{"$f":"IF('effRT Support'!$B148=0,\"\",\"Hours Actual or Deemed\")","v":""},{"$f":"IF('effRT Support'!$B148=0,\"\",'effRT Support'!$F148)","v":""},{"$f":"IF('effRT Support'!$B148=0,\"\",\"Wattage Actual or Deemed\")","v":""},{"$f":"IF('effRT Support'!$B148=0,\"\",IF('Project Information'!$D$33=\"Pay For Performance\",\"Actual\",\"Deemed\"))","v":""},{"$f":"IF('effRT Support'!$B148=0,\"\",\"Cost Actual or Deemed\")","v":""},{"$f":"IF('effRT Support'!$B148=0,\"\",IF('Project Information'!$D$33=\"Pay For Performance\",\"Actual\",\"Deemed\"))","v":""},{"$f":"IF('effRT Support'!$B148=0,\"\",\"Location\")","v":""},{"$f":"IF('effRT Support'!$B148=0,\"\",'effRT Support'!$E148)","v":""},{"$f":"IF('effRT Support'!$B148=0,\"\",\"Space Type\")","v":""},{"$f":"IF('effRT Support'!$B148=0,\"\",'effRT Support'!$G148)","v":""},{"$f":"IF('effRT Support'!$B148=0,\"\",\"Existing Fixture Description\")","v":""},{"$f":"IF('effRT Support'!$B148=0,\"\",'effRT Support'!$H148)","v":""},{"$f":"IF('effRT Support'!$B148=0,\"\",\"Existing Fixture Quantity\")","v":""},{"$f":"IF('effRT Support'!$B148=0,\"\",'effRT Support'!$I148)","v":""},{"$f":"IF('effRT Support'!$B148=0,\"\",\"Existing Fixture Wattage\")","v":""},{"$f":"IF('effRT Support'!$B148=0,\"\",'effRT Support'!$J148)","v":""},{"$f":"IF('effRT Support'!$B148=0,\"\",\"Annual Hours of Operation\")","v":""},{"$f":"IF('effRT Support'!$B148=0,\"\",'effRT Support'!$K148)","v":""},{"$f":"IF('effRT Support'!$B148=0,\"\",\"Installed Fixture Description\")","v":""},{"$f":"IF('effRT Support'!$B148=0,\"\",'effRT Support'!$M148)","v":""},{"$f":"IF('effRT Support'!$B148=0,\"\",\"Installed Fixture Wattage\")","v":""},{"$f":"IF('effRT Support'!$B148=0,\"\",'effRT Support'!$O148)","v":""},{"$f":"IF('effRT Support'!$B148=0,\"\",\"Material Cost\")","v":""},{"$f":"IF('effRT Support'!$B148=0,\"\",'effRT Support'!$R148)","v":""},{"$f":"IF('effRT Support'!$B148=0,\"\",\"Labor Cost\")","v":""},{"$f":"IF('effRT Support'!$B148=0,\"\",'effRT Support'!$S148)","v":""},{"$f":"IF('effRT Support'!$B148=0,\"\",\"Ancillary Costs - Measure Specific\")","v":""},{"$f":"IF('effRT Support'!$B148=0,\"\",'effRT Support'!$T148)","v":""},{"$f":"IF('effRT Support'!$B148=0,\"\",\"Fuel Type\")","v":""},{"$f":"IF('effRT Support'!$B148=0,\"\",'Project Information'!$D$44)","v":""}]
[{"$f":"IF('effRT Support'!$B149=0,\"\",IF('Project Information'!$D$33=\"Small Business\",\"SBL\",\"CILS\"))","v":""},{"$f":"IF('effRT Support'!$B149=0,\"\",IF('Project Information'!$K$2=\"\",\"\",'Project Information'!$K$2))","v":""},null,{"$f":"IF('effRT Support'!$B149=0,\"\",IF('Project Information'!$D$46=\"\",\"\",'Project Information'!$D$46))","v":""},{"$f":"IF('effRT Support'!$B149=0,\"\",IF('Project Information'!$D$20=\"\",\"\",VLOOKUP('Project Information'!$D$20,'Other Data'!$B$159:$E$189,4,FALSE)))","v":""},{"$f":"IF('effRT Support'!$B149=0,\"\",IF('Project Information'!$D$31=\"\",\"\",'Project Information'!$D$31))","v":""},{"$f":"IF('effRT Support'!$B149=0,\"\",IF('Project Information'!$D$5=\"\",\"\",'Project Information'!$D$5))","v":""},null,null,{"$f":"IF('effRT Support'!$B149=0,\"\",IF('Project Information'!$D$20=\"\",\"\",VLOOKUP('Project Information'!$D$20,'Other Data'!$B$159:$E$189,2,FALSE)))","v":""},{"$f":"IF('effRT Support'!$B149=0,\"\",IF('Project Information'!$D$20=\"\",\"\",VLOOKUP('Project Information'!$D$20,'Other Data'!$B$159:$E$189,3,FALSE)))","v":""},{"$f":"IF('effRT Support'!$B149=0,\"\",\"Existing\")","v":""},null,{"$f":"IF('effRT Support'!$B149=0,\"\",IF('Project Information'!$D$21=\"\",\"\",'Project Information'!$D$21))","v":""},{"$f":"IF('effRT Support'!$B149=0,\"\",IF('Project Information'!$D$48=\"\",\"\",'Project Information'!$D$48))","v":""},{"$f":"IF('effRT Support'!$B149=0,\"\",\"\")","v":""},{"$f":"IF('effRT Support'!$B149=0,\"\",\"\")","v":""},{"$f":"IF('effRT Support'!$B149=0,\"\",\"\")","v":""},{"$f":"IF('effRT Support'!$B149=0,\"\",\"\")","v":""},{"$f":"IF('effRT Support'!$B149=0,\"\",IF('Project Information'!$D$13=\"\",\"\",'Project Information'!$D$13))","v":""},{"$f":"IF('effRT Support'!$B149=0,\"\",IF('Project Information'!$E$13=\"\",\"\",'Project Information'!$E$13))","v":""},{"$f":"IF('effRT Support'!$B149=0,\"\",IF('Project Information'!$D$14=\"\",\"\",'Project Information'!$D$14))","v":""},{"$f":"IF('effRT Support'!$B149=0,\"\",IF('Project Information'!$D$15=\"\",\"\",'Project Information'!$D$15))","v":""},{"$f":"IF('effRT Support'!$B149=0,\"\",IF('Project Information'!$D$16=\"\",\"\",'Project Information'!$D$16))","v":""},null,{"$f":"IF('effRT Support'!$B149=0,\"\",'Project Information'!$D$18)","v":""},{"$f":"IF('effRT Support'!$B149=0,\"\",IF('Project Information'!$D$23=\"\",\"\",'Project Information'!$D$23))","v":""},{"$f":"IF('effRT Support'!$B149=0,\"\",IF('Project Information'!$D$24=\"\",\"\",'Project Information'!$D$24))","v":""},{"$f":"IF('effRT Support'!$B149=0,\"\",IF('Project Information'!$D$25=\"\",\"\",'Project Information'!$D$25))","v":""},{"$f":"IF('effRT Support'!$B149=0,\"\",IF('Project Information'!$E$25=\"\",\"\",'Project Information'!$E$25))","v":""},{"$f":"IF('effRT Support'!$B149=0,\"\",IF('Project Information'!$F$25=\"\",\"\",'Project Information'!$F$25))","v":""},{"$f":"IF('effRT Support'!$B149=0,\"\",IF('Project Information'!$D$27=\"\",\"Y\",\"N\"))","v":""},{"$f":"IF('effRT Support'!$B149=0,\"\",IF('Project Information'!$D$27=\"\",\"\",'Project Information'!$D$27))","v":""},{"$f":"IF('effRT Support'!$B149=0,\"\",IF('Project Information'!$D$28=\"\",\"\",'Project Information'!$D$28))","v":""},{"$f":"IF('effRT Support'!$B149=0,\"\",IF('Project Information'!$D$29=\"\",\"\",'Project Information'!$D$29))","v":""},{"$f":"IF('effRT Support'!$B149=0,\"\",IF('Project Information'!$E$29=\"\",\"\",'Project Information'!$E$29))","v":""},{"$f":"IF('effRT Support'!$B149=0,\"\",IF('Project Information'!$F$29=\"\",\"\",'Project Information'!$F$29))","v":""},{"$f":"IF('effRT Support'!$B149=0,\"\",\"\")","v":""},{"$f":"IF('effRT Support'!$B149=0,\"\",\"\")","v":""},{"$f":"IF('effRT Support'!$B149=0,\"\",IF('Project Information'!$D$36=\"\",\"\",'Project Information'!$D$36))","v":""},{"$f":"IF('effRT Support'!$B149=0,\"\",IF('Project Information'!$D$42=\"\",\"\",'Project Information'!$D$42))","v":""},{"$f":"IF('effRT Support'!$B149=0,\"\",'effRT Support'!$D149)","v":""},{"$f":"IF('effRT Support'!$B149=0,\"\",'effRT Support'!$L149)","v":""},{"$f":"IF('effRT Support'!$B149=0,\"\",'effRT Support'!$N149)","v":""},null,null,{"$f":"IF('effRT Support'!$B149=0,\"\",'effRT Support'!$P149)","v":""},{"$f":"IF('effRT Support'!$B149=0,\"\",'effRT Support'!$Q149)","v":""},{"$f":"IF('effRT Support'!$B149=0,\"\",'effRT Support'!U149)","v":""},{"$f":"IF('effRT Support'!$B149=0,\"\",'effRT Support'!V149)","v":""},{"$f":"IF('effRT Support'!$B149=0,\"\",'effRT Support'!W149)","v":""},{"$f":"IF('effRT Support'!$B149=0,\"\",'effRT Support'!X149)","v":""},{"$f":"IF('effRT Support'!$B149=0,\"\",'effRT Support'!Y149)","v":""},{"$f":"IF('effRT Support'!$B149=0,\"\",'effRT Support'!Z149*10)","v":""},{"$f":"IF('effRT Support'!$B149=0,\"\",'effRT Support'!AA149)","v":""},{"$f":"IF('effRT Support'!$B149=0,\"\",'effRT Support'!AB149)","v":""},{"$f":"IF('effRT Support'!$B149=0,\"\",'effRT Support'!AC149)","v":""},{"$f":"IF('effRT Support'!$B149=0,\"\",'effRT Support'!AD149)","v":""},{"$f":"IF('effRT Support'!$B149=0,\"\",'effRT Support'!AE149)","v":""},{"$f":"IF('effRT Support'!$B149=0,\"\",\"Hours Actual or Deemed\")","v":""},{"$f":"IF('effRT Support'!$B149=0,\"\",'effRT Support'!$F149)","v":""},{"$f":"IF('effRT Support'!$B149=0,\"\",\"Wattage Actual or Deemed\")","v":""},{"$f":"IF('effRT Support'!$B149=0,\"\",IF('Project Information'!$D$33=\"Pay For Performance\",\"Actual\",\"Deemed\"))","v":""},{"$f":"IF('effRT Support'!$B149=0,\"\",\"Cost Actual or Deemed\")","v":""},{"$f":"IF('effRT Support'!$B149=0,\"\",IF('Project Information'!$D$33=\"Pay For Performance\",\"Actual\",\"Deemed\"))","v":""},{"$f":"IF('effRT Support'!$B149=0,\"\",\"Location\")","v":""},{"$f":"IF('effRT Support'!$B149=0,\"\",'effRT Support'!$E149)","v":""},{"$f":"IF('effRT Support'!$B149=0,\"\",\"Space Type\")","v":""},{"$f":"IF('effRT Support'!$B149=0,\"\",'effRT Support'!$G149)","v":""},{"$f":"IF('effRT Support'!$B149=0,\"\",\"Existing Fixture Description\")","v":""},{"$f":"IF('effRT Support'!$B149=0,\"\",'effRT Support'!$H149)","v":""},{"$f":"IF('effRT Support'!$B149=0,\"\",\"Existing Fixture Quantity\")","v":""},{"$f":"IF('effRT Support'!$B149=0,\"\",'effRT Support'!$I149)","v":""},{"$f":"IF('effRT Support'!$B149=0,\"\",\"Existing Fixture Wattage\")","v":""},{"$f":"IF('effRT Support'!$B149=0,\"\",'effRT Support'!$J149)","v":""},{"$f":"IF('effRT Support'!$B149=0,\"\",\"Annual Hours of Operation\")","v":""},{"$f":"IF('effRT Support'!$B149=0,\"\",'effRT Support'!$K149)","v":""},{"$f":"IF('effRT Support'!$B149=0,\"\",\"Installed Fixture Description\")","v":""},{"$f":"IF('effRT Support'!$B149=0,\"\",'effRT Support'!$M149)","v":""},{"$f":"IF('effRT Support'!$B149=0,\"\",\"Installed Fixture Wattage\")","v":""},{"$f":"IF('effRT Support'!$B149=0,\"\",'effRT Support'!$O149)","v":""},{"$f":"IF('effRT Support'!$B149=0,\"\",\"Material Cost\")","v":""},{"$f":"IF('effRT Support'!$B149=0,\"\",'effRT Support'!$R149)","v":""},{"$f":"IF('effRT Support'!$B149=0,\"\",\"Labor Cost\")","v":""},{"$f":"IF('effRT Support'!$B149=0,\"\",'effRT Support'!$S149)","v":""},{"$f":"IF('effRT Support'!$B149=0,\"\",\"Ancillary Costs - Measure Specific\")","v":""},{"$f":"IF('effRT Support'!$B149=0,\"\",'effRT Support'!$T149)","v":""},{"$f":"IF('effRT Support'!$B149=0,\"\",\"Fuel Type\")","v":""},{"$f":"IF('effRT Support'!$B149=0,\"\",'Project Information'!$D$44)","v":""},{"$f":"IF('effRT Support'!$B149=0,\"\",\"Installed Fixture Quantity\")","v":""},{"$f":"IF('effRT Support'!$B149=0,\"\",'effRT Support'!P148)","v":""}]
[{"$f":"IF('effRT Support'!$B150=0,\"\",IF('Project Information'!$D$33=\"Small Business\",\"SBL\",\"CILS\"))","v":""},{"$f":"IF('effRT Support'!$B150=0,\"\",IF('Project Information'!$K$2=\"\",\"\",'Project Information'!$K$2))","v":""},null,{"$f":"IF('effRT Support'!$B150=0,\"\",IF('Project Information'!$D$46=\"\",\"\",'Project Information'!$D$46))","v":""},{"$f":"IF('effRT Support'!$B150=0,\"\",IF('Project Information'!$D$20=\"\",\"\",VLOOKUP('Project Information'!$D$20,'Other Data'!$B$159:$E$189,4,FALSE)))","v":""},{"$f":"IF('effRT Support'!$B150=0,\"\",IF('Project Information'!$D$31=\"\",\"\",'Project Information'!$D$31))","v":""},{"$f":"IF('effRT Support'!$B150=0,\"\",IF('Project Information'!$D$5=\"\",\"\",'Project Information'!$D$5))","v":""},null,null,{"$f":"IF('effRT Support'!$B150=0,\"\",IF('Project Information'!$D$20=\"\",\"\",VLOOKUP('Project Information'!$D$20,'Other Data'!$B$159:$E$189,2,FALSE)))","v":""},{"$f":"IF('effRT Support'!$B150=0,\"\",IF('Project Information'!$D$20=\"\",\"\",VLOOKUP('Project Information'!$D$20,'Other Data'!$B$159:$E$189,3,FALSE)))","v":""},{"$f":"IF('effRT Support'!$B150=0,\"\",\"Existing\")","v":""},null,{"$f":"IF('effRT Support'!$B150=0,\"\",IF('Project Information'!$D$21=\"\",\"\",'Project Information'!$D$21))","v":""},{"$f":"IF('effRT Support'!$B150=0,\"\",IF('Project Information'!$D$48=\"\",\"\",'Project Information'!$D$48))","v":""},{"$f":"IF('effRT Support'!$B150=0,\"\",\"\")","v":""},{"$f":"IF('effRT Support'!$B150=0,\"\",\"\")","v":""},{"$f":"IF('effRT Support'!$B150=0,\"\",\"\")","v":""},{"$f":"IF('effRT Support'!$B150=0,\"\",\"\")","v":""},{"$f":"IF('effRT Support'!$B150=0,\"\",IF('Project Information'!$D$13=\"\",\"\",'Project Information'!$D$13))","v":""},{"$f":"IF('effRT Support'!$B150=0,\"\",IF('Project Information'!$E$13=\"\",\"\",'Project Information'!$E$13))","v":""},{"$f":"IF('effRT Support'!$B150=0,\"\",IF('Project Information'!$D$14=\"\",\"\",'Project Information'!$D$14))","v":""},{"$f":"IF('effRT Support'!$B150=0,\"\",IF('Project Information'!$D$15=\"\",\"\",'Project Information'!$D$15))","v":""},{"$f":"IF('effRT Support'!$B150=0,\"\",IF('Project Information'!$D$16=\"\",\"\",'Project Information'!$D$16))","v":""},null,{"$f":"IF('effRT Support'!$B150=0,\"\",'Project Information'!$D$18)","v":""},{"$f":"IF('effRT Support'!$B150=0,\"\",IF('Project Information'!$D$23=\"\",\"\",'Project Information'!$D$23))","v":""},{"$f":"IF('effRT Support'!$B150=0,\"\",IF('Project Information'!$D$24=\"\",\"\",'Project Information'!$D$24))","v":""},{"$f":"IF('effRT Support'!$B150=0,\"\",IF('Project Information'!$D$25=\"\",\"\",'Project Information'!$D$25))","v":""},{"$f":"IF('effRT Support'!$B150=0,\"\",IF('Project Information'!$E$25=\"\",\"\",'Project Information'!$E$25))","v":""},{"$f":"IF('effRT Support'!$B150=0,\"\",IF('Project Information'!$F$25=\"\",\"\",'Project Information'!$F$25))","v":""},{"$f":"IF('effRT Support'!$B150=0,\"\",IF('Project Information'!$D$27=\"\",\"Y\",\"N\"))","v":""},{"$f":"IF('effRT Support'!$B150=0,\"\",IF('Project Information'!$D$27=\"\",\"\",'Project Information'!$D$27))","v":""},{"$f":"IF('effRT Support'!$B150=0,\"\",IF('Project Information'!$D$28=\"\",\"\",'Project Information'!$D$28))","v":""},{"$f":"IF('effRT Support'!$B150=0,\"\",IF('Project Information'!$D$29=\"\",\"\",'Project Information'!$D$29))","v":""},{"$f":"IF('effRT Support'!$B150=0,\"\",IF('Project Information'!$E$29=\"\",\"\",'Project Information'!$E$29))","v":""},{"$f":"IF('effRT Support'!$B150=0,\"\",IF('Project Information'!$F$29=\"\",\"\",'Project Information'!$F$29))","v":""},{"$f":"IF('effRT Support'!$B150=0,\"\",\"\")","v":""},{"$f":"IF('effRT Support'!$B150=0,\"\",\"\")","v":""},{"$f":"IF('effRT Support'!$B150=0,\"\",IF('Project Information'!$D$36=\"\",\"\",'Project Information'!$D$36))","v":""},{"$f":"IF('effRT Support'!$B150=0,\"\",IF('Project Information'!$D$42=\"\",\"\",'Project Information'!$D$42))","v":""},{"$f":"IF('effRT Support'!$B150=0,\"\",'effRT Support'!$D150)","v":""},{"$f":"IF('effRT Support'!$B150=0,\"\",'effRT Support'!$L150)","v":""},{"$f":"IF('effRT Support'!$B150=0,\"\",'effRT Support'!$N150)","v":""},null,null,{"$f":"IF('effRT Support'!$B150=0,\"\",'effRT Support'!$P150)","v":""},{"$f":"IF('effRT Support'!$B150=0,\"\",'effRT Support'!$Q150)","v":""},{"$f":"IF('effRT Support'!$B150=0,\"\",'effRT Support'!U150)","v":""},{"$f":"IF('effRT Support'!$B150=0,\"\",'effRT Support'!V150)","v":""},{"$f":"IF('effRT Support'!$B150=0,\"\",'effRT Support'!W150)","v":""},{"$f":"IF('effRT Support'!$B150=0,\"\",'effRT Support'!X150)","v":""},{"$f":"IF('effRT Support'!$B150=0,\"\",'effRT Support'!Y150)","v":""},{"$f":"IF('effRT Support'!$B150=0,\"\",'effRT Support'!Z150*10)","v":""},{"$f":"IF('effRT Support'!$B150=0,\"\",'effRT Support'!AA150)","v":""},{"$f":"IF('effRT Support'!$B150=0,\"\",'effRT Support'!AB150)","v":""},{"$f":"IF('effRT Support'!$B150=0,\"\",'effRT Support'!AC150)","v":""},{"$f":"IF('effRT Support'!$B150=0,\"\",'effRT Support'!AD150)","v":""},{"$f":"IF('effRT Support'!$B150=0,\"\",'effRT Support'!AE150)","v":""},{"$f":"IF('effRT Support'!$B150=0,\"\",\"Hours Actual or Deemed\")","v":""},{"$f":"IF('effRT Support'!$B150=0,\"\",'effRT Support'!$F150)","v":""},{"$f":"IF('effRT Support'!$B150=0,\"\",\"Wattage Actual or Deemed\")","v":""},{"$f":"IF('effRT Support'!$B150=0,\"\",IF('Project Information'!$D$33=\"Pay For Performance\",\"Actual\",\"Deemed\"))","v":""},{"$f":"IF('effRT Support'!$B150=0,\"\",\"Cost Actual or Deemed\")","v":""},{"$f":"IF('effRT Support'!$B150=0,\"\",IF('Project Information'!$D$33=\"Pay For Performance\",\"Actual\",\"Deemed\"))","v":""},{"$f":"IF('effRT Support'!$B150=0,\"\",\"Location\")","v":""},{"$f":"IF('effRT Support'!$B150=0,\"\",'effRT Support'!$E150)","v":""},{"$f":"IF('effRT Support'!$B150=0,\"\",\"Space Type\")","v":""},{"$f":"IF('effRT Support'!$B150=0,\"\",'effRT Support'!$G150)","v":""},{"$f":"IF('effRT Support'!$B150=0,\"\",\"Existing Fixture Description\")","v":""},{"$f":"IF('effRT Support'!$B150=0,\"\",'effRT Support'!$H150)","v":""},{"$f":"IF('effRT Support'!$B150=0,\"\",\"Existing Fixture Quantity\")","v":""},{"$f":"IF('effRT Support'!$B150=0,\"\",'effRT Support'!$I150)","v":""},{"$f":"IF('effRT Support'!$B150=0,\"\",\"Existing Fixture Wattage\")","v":""},{"$f":"IF('effRT Support'!$B150=0,\"\",'effRT Support'!$J150)","v":""},{"$f":"IF('effRT Support'!$B150=0,\"\",\"Annual Hours of Operation\")","v":""},{"$f":"IF('effRT Support'!$B150=0,\"\",'effRT Support'!$K150)","v":""},{"$f":"IF('effRT Support'!$B150=0,\"\",\"Installed Fixture Description\")","v":""},{"$f":"IF('effRT Support'!$B150=0,\"\",'effRT Support'!$M150)","v":""},{"$f":"IF('effRT Support'!$B150=0,\"\",\"Installed Fixture Wattage\")","v":""},{"$f":"IF('effRT Support'!$B150=0,\"\",'effRT Support'!$O150)","v":""},{"$f":"IF('effRT Support'!$B150=0,\"\",\"Material Cost\")","v":""},{"$f":"IF('effRT Support'!$B150=0,\"\",'effRT Support'!$R150)","v":""},{"$f":"IF('effRT Support'!$B150=0,\"\",\"Labor Cost\")","v":""},{"$f":"IF('effRT Support'!$B150=0,\"\",'effRT Support'!$S150)","v":""},{"$f":"IF('effRT Support'!$B150=0,\"\",\"Ancillary Costs - Measure Specific\")","v":""},{"$f":"IF('effRT Support'!$B150=0,\"\",'effRT Support'!$T150)","v":""},{"$f":"IF('effRT Support'!$B150=0,\"\",\"Fuel Type\")","v":""},{"$f":"IF('effRT Support'!$B150=0,\"\",'Project Information'!$D$44)","v":""}]
[{"$f":"IF('effRT Support'!$B151=0,\"\",IF('Project Information'!$D$33=\"Small Business\",\"SBL\",\"CILS\"))","v":""},{"$f":"IF('effRT Support'!$B151=0,\"\",IF('Project Information'!$K$2=\"\",\"\",'Project Information'!$K$2))","v":""},null,{"$f":"IF('effRT Support'!$B151=0,\"\",IF('Project Information'!$D$46=\"\",\"\",'Project Information'!$D$46))","v":""},{"$f":"IF('effRT Support'!$B151=0,\"\",IF('Project Information'!$D$20=\"\",\"\",VLOOKUP('Project Information'!$D$20,'Other Data'!$B$159:$E$189,4,FALSE)))","v":""},{"$f":"IF('effRT Support'!$B151=0,\"\",IF('Project Information'!$D$31=\"\",\"\",'Project Information'!$D$31))","v":""},{"$f":"IF('effRT Support'!$B151=0,\"\",IF('Project Information'!$D$5=\"\",\"\",'Project Information'!$D$5))","v":""},null,null,{"$f":"IF('effRT Support'!$B151=0,\"\",IF('Project Information'!$D$20=\"\",\"\",VLOOKUP('Project Information'!$D$20,'Other Data'!$B$159:$E$189,2,FALSE)))","v":""},{"$f":"IF('effRT Support'!$B151=0,\"\",IF('Project Information'!$D$20=\"\",\"\",VLOOKUP('Project Information'!$D$20,'Other Data'!$B$159:$E$189,3,FALSE)))","v":""},{"$f":"IF('effRT Support'!$B151=0,\"\",\"Existing\")","v":""},null,{"$f":"IF('effRT Support'!$B151=0,\"\",IF('Project Information'!$D$21=\"\",\"\",'Project Information'!$D$21))","v":""},{"$f":"IF('effRT Support'!$B151=0,\"\",IF('Project Information'!$D$48=\"\",\"\",'Project Information'!$D$48))","v":""},{"$f":"IF('effRT Support'!$B151=0,\"\",\"\")","v":""},{"$f":"IF('effRT Support'!$B151=0,\"\",\"\")","v":""},{"$f":"IF('effRT Support'!$B151=0,\"\",\"\")","v":""},{"$f":"IF('effRT Support'!$B151=0,\"\",\"\")","v":""},{"$f":"IF('effRT Support'!$B151=0,\"\",IF('Project Information'!$D$13=\"\",\"\",'Project Information'!$D$13))","v":""},{"$f":"IF('effRT Support'!$B151=0,\"\",IF('Project Information'!$E$13=\"\",\"\",'Project Information'!$E$13))","v":""},{"$f":"IF('effRT Support'!$B151=0,\"\",IF('Project Information'!$D$14=\"\",\"\",'Project Information'!$D$14))","v":""},{"$f":"IF('effRT Support'!$B151=0,\"\",IF('Project Information'!$D$15=\"\",\"\",'Project Information'!$D$15))","v":""},{"$f":"IF('effRT Support'!$B151=0,\"\",IF('Project Information'!$D$16=\"\",\"\",'Project Information'!$D$16))","v":""},null,{"$f":"IF('effRT Support'!$B151=0,\"\",'Project Information'!$D$18)","v":""},{"$f":"IF('effRT Support'!$B151=0,\"\",IF('Project Information'!$D$23=\"\",\"\",'Project Information'!$D$23))","v":""},{"$f":"IF('effRT Support'!$B151=0,\"\",IF('Project Information'!$D$24=\"\",\"\",'Project Information'!$D$24))","v":""},{"$f":"IF('effRT Support'!$B151=0,\"\",IF('Project Information'!$D$25=\"\",\"\",'Project Information'!$D$25))","v":""},{"$f":"IF('effRT Support'!$B151=0,\"\",IF('Project Information'!$E$25=\"\",\"\",'Project Information'!$E$25))","v":""},{"$f":"IF('effRT Support'!$B151=0,\"\",IF('Project Information'!$F$25=\"\",\"\",'Project Information'!$F$25))","v":""},{"$f":"IF('effRT Support'!$B151=0,\"\",IF('Project Information'!$D$27=\"\",\"Y\",\"N\"))","v":""},{"$f":"IF('effRT Support'!$B151=0,\"\",IF('Project Information'!$D$27=\"\",\"\",'Project Information'!$D$27))","v":""},{"$f":"IF('effRT Support'!$B151=0,\"\",IF('Project Information'!$D$28=\"\",\"\",'Project Information'!$D$28))","v":""},{"$f":"IF('effRT Support'!$B151=0,\"\",IF('Project Information'!$D$29=\"\",\"\",'Project Information'!$D$29))","v":""},{"$f":"IF('effRT Support'!$B151=0,\"\",IF('Project Information'!$E$29=\"\",\"\",'Project Information'!$E$29))","v":""},{"$f":"IF('effRT Support'!$B151=0,\"\",IF('Project Information'!$F$29=\"\",\"\",'Project Information'!$F$29))","v":""},{"$f":"IF('effRT Support'!$B151=0,\"\",\"\")","v":""},{"$f":"IF('effRT Support'!$B151=0,\"\",\"\")","v":""},{"$f":"IF('effRT Support'!$B151=0,\"\",IF('Project Information'!$D$36=\"\",\"\",'Project Information'!$D$36))","v":""},{"$f":"IF('effRT Support'!$B151=0,\"\",IF('Project Information'!$D$42=\"\",\"\",'Project Information'!$D$42))","v":""},{"$f":"IF('effRT Support'!$B151=0,\"\",'effRT Support'!$D151)","v":""},{"$f":"IF('effRT Support'!$B151=0,\"\",'effRT Support'!$L151)","v":""},{"$f":"IF('effRT Support'!$B151=0,\"\",'effRT Support'!$N151)","v":""},null,null,{"$f":"IF('effRT Support'!$B151=0,\"\",'effRT Support'!$P151)","v":""},{"$f":"IF('effRT Support'!$B151=0,\"\",'effRT Support'!$Q151)","v":""},{"$f":"IF('effRT Support'!$B151=0,\"\",'effRT Support'!U151)","v":""},{"$f":"IF('effRT Support'!$B151=0,\"\",'effRT Support'!V151)","v":""},{"$f":"IF('effRT Support'!$B151=0,\"\",'effRT Support'!W151)","v":""},{"$f":"IF('effRT Support'!$B151=0,\"\",'effRT Support'!X151)","v":""},{"$f":"IF('effRT Support'!$B151=0,\"\",'effRT Support'!Y151)","v":""},{"$f":"IF('effRT Support'!$B151=0,\"\",'effRT Support'!Z151*10)","v":""},{"$f":"IF('effRT Support'!$B151=0,\"\",'effRT Support'!AA151)","v":""},{"$f":"IF('effRT Support'!$B151=0,\"\",'effRT Support'!AB151)","v":""},{"$f":"IF('effRT Support'!$B151=0,\"\",'effRT Support'!AC151)","v":""},{"$f":"IF('effRT Support'!$B151=0,\"\",'effRT Support'!AD151)","v":""},{"$f":"IF('effRT Support'!$B151=0,\"\",'effRT Support'!AE151)","v":""},{"$f":"IF('effRT Support'!$B151=0,\"\",\"Hours Actual or Deemed\")","v":""},{"$f":"IF('effRT Support'!$B151=0,\"\",'effRT Support'!$F151)","v":""},{"$f":"IF('effRT Support'!$B151=0,\"\",\"Wattage Actual or Deemed\")","v":""},{"$f":"IF('effRT Support'!$B151=0,\"\",IF('Project Information'!$D$33=\"Pay For Performance\",\"Actual\",\"Deemed\"))","v":""},{"$f":"IF('effRT Support'!$B151=0,\"\",\"Cost Actual or Deemed\")","v":""},{"$f":"IF('effRT Support'!$B151=0,\"\",IF('Project Information'!$D$33=\"Pay For Performance\",\"Actual\",\"Deemed\"))","v":""},{"$f":"IF('effRT Support'!$B151=0,\"\",\"Location\")","v":""},{"$f":"IF('effRT Support'!$B151=0,\"\",'effRT Support'!$E151)","v":""},{"$f":"IF('effRT Support'!$B151=0,\"\",\"Space Type\")","v":""},{"$f":"IF('effRT Support'!$B151=0,\"\",'effRT Support'!$G151)","v":""},{"$f":"IF('effRT Support'!$B151=0,\"\",\"Existing Fixture Description\")","v":""},{"$f":"IF('effRT Support'!$B151=0,\"\",'effRT Support'!$H151)","v":""},{"$f":"IF('effRT Support'!$B151=0,\"\",\"Existing Fixture Quantity\")","v":""},{"$f":"IF('effRT Support'!$B151=0,\"\",'effRT Support'!$I151)","v":""},{"$f":"IF('effRT Support'!$B151=0,\"\",\"Existing Fixture Wattage\")","v":""},{"$f":"IF('effRT Support'!$B151=0,\"\",'effRT Support'!$J151)","v":""},{"$f":"IF('effRT Support'!$B151=0,\"\",\"Annual Hours of Operation\")","v":""},{"$f":"IF('effRT Support'!$B151=0,\"\",'effRT Support'!$K151)","v":""},{"$f":"IF('effRT Support'!$B151=0,\"\",\"Installed Fixture Description\")","v":""},{"$f":"IF('effRT Support'!$B151=0,\"\",'effRT Support'!$M151)","v":""},{"$f":"IF('effRT Support'!$B151=0,\"\",\"Installed Fixture Wattage\")","v":""},{"$f":"IF('effRT Support'!$B151=0,\"\",'effRT Support'!$O151)","v":""},{"$f":"IF('effRT Support'!$B151=0,\"\",\"Material Cost\")","v":""},{"$f":"IF('effRT Support'!$B151=0,\"\",'effRT Support'!$R151)","v":""},{"$f":"IF('effRT Support'!$B151=0,\"\",\"Labor Cost\")","v":""},{"$f":"IF('effRT Support'!$B151=0,\"\",'effRT Support'!$S151)","v":""},{"$f":"IF('effRT Support'!$B151=0,\"\",\"Ancillary Costs - Measure Specific\")","v":""},{"$f":"IF('effRT Support'!$B151=0,\"\",'effRT Support'!$T151)","v":""},{"$f":"IF('effRT Support'!$B151=0,\"\",\"Fuel Type\")","v":""},{"$f":"IF('effRT Support'!$B151=0,\"\",'Project Information'!$D$44)","v":""},{"$f":"IF('effRT Support'!$B151=0,\"\",\"Installed Fixture Quantity\")","v":""},{"$f":"IF('effRT Support'!$B151=0,\"\",'effRT Support'!P150)","v":""}]
[{"$f":"IF('effRT Support'!$B152=0,\"\",IF('Project Information'!$D$33=\"Small Business\",\"SBL\",\"CILS\"))","v":""},{"$f":"IF('effRT Support'!$B152=0,\"\",IF('Project Information'!$K$2=\"\",\"\",'Project Information'!$K$2))","v":""},null,{"$f":"IF('effRT Support'!$B152=0,\"\",IF('Project Information'!$D$46=\"\",\"\",'Project Information'!$D$46))","v":""},{"$f":"IF('effRT Support'!$B152=0,\"\",IF('Project Information'!$D$20=\"\",\"\",VLOOKUP('Project Information'!$D$20,'Other Data'!$B$159:$E$189,4,FALSE)))","v":""},{"$f":"IF('effRT Support'!$B152=0,\"\",IF('Project Information'!$D$31=\"\",\"\",'Project Information'!$D$31))","v":""},{"$f":"IF('effRT Support'!$B152=0,\"\",IF('Project Information'!$D$5=\"\",\"\",'Project Information'!$D$5))","v":""},null,null,{"$f":"IF('effRT Support'!$B152=0,\"\",IF('Project Information'!$D$20=\"\",\"\",VLOOKUP('Project Information'!$D$20,'Other Data'!$B$159:$E$189,2,FALSE)))","v":""},{"$f":"IF('effRT Support'!$B152=0,\"\",IF('Project Information'!$D$20=\"\",\"\",VLOOKUP('Project Information'!$D$20,'Other Data'!$B$159:$E$189,3,FALSE)))","v":""},{"$f":"IF('effRT Support'!$B152=0,\"\",\"Existing\")","v":""},null,{"$f":"IF('effRT Support'!$B152=0,\"\",IF('Project Information'!$D$21=\"\",\"\",'Project Information'!$D$21))","v":""},{"$f":"IF('effRT Support'!$B152=0,\"\",IF('Project Information'!$D$48=\"\",\"\",'Project Information'!$D$48))","v":""},{"$f":"IF('effRT Support'!$B152=0,\"\",\"\")","v":""},{"$f":"IF('effRT Support'!$B152=0,\"\",\"\")","v":""},{"$f":"IF('effRT Support'!$B152=0,\"\",\"\")","v":""},{"$f":"IF('effRT Support'!$B152=0,\"\",\"\")","v":""},{"$f":"IF('effRT Support'!$B152=0,\"\",IF('Project Information'!$D$13=\"\",\"\",'Project Information'!$D$13))","v":""},{"$f":"IF('effRT Support'!$B152=0,\"\",IF('Project Information'!$E$13=\"\",\"\",'Project Information'!$E$13))","v":""},{"$f":"IF('effRT Support'!$B152=0,\"\",IF('Project Information'!$D$14=\"\",\"\",'Project Information'!$D$14))","v":""},{"$f":"IF('effRT Support'!$B152=0,\"\",IF('Project Information'!$D$15=\"\",\"\",'Project Information'!$D$15))","v":""},{"$f":"IF('effRT Support'!$B152=0,\"\",IF('Project Information'!$D$16=\"\",\"\",'Project Information'!$D$16))","v":""},null,{"$f":"IF('effRT Support'!$B152=0,\"\",'Project Information'!$D$18)","v":""},{"$f":"IF('effRT Support'!$B152=0,\"\",IF('Project Information'!$D$23=\"\",\"\",'Project Information'!$D$23))","v":""},{"$f":"IF('effRT Support'!$B152=0,\"\",IF('Project Information'!$D$24=\"\",\"\",'Project Information'!$D$24))","v":""},{"$f":"IF('effRT Support'!$B152=0,\"\",IF('Project Information'!$D$25=\"\",\"\",'Project Information'!$D$25))","v":""},{"$f":"IF('effRT Support'!$B152=0,\"\",IF('Project Information'!$E$25=\"\",\"\",'Project Information'!$E$25))","v":""},{"$f":"IF('effRT Support'!$B152=0,\"\",IF('Project Information'!$F$25=\"\",\"\",'Project Information'!$F$25))","v":""},{"$f":"IF('effRT Support'!$B152=0,\"\",IF('Project Information'!$D$27=\"\",\"Y\",\"N\"))","v":""},{"$f":"IF('effRT Support'!$B152=0,\"\",IF('Project Information'!$D$27=\"\",\"\",'Project Information'!$D$27))","v":""},{"$f":"IF('effRT Support'!$B152=0,\"\",IF('Project Information'!$D$28=\"\",\"\",'Project Information'!$D$28))","v":""},{"$f":"IF('effRT Support'!$B152=0,\"\",IF('Project Information'!$D$29=\"\",\"\",'Project Information'!$D$29))","v":""},{"$f":"IF('effRT Support'!$B152=0,\"\",IF('Project Information'!$E$29=\"\",\"\",'Project Information'!$E$29))","v":""},{"$f":"IF('effRT Support'!$B152=0,\"\",IF('Project Information'!$F$29=\"\",\"\",'Project Information'!$F$29))","v":""},{"$f":"IF('effRT Support'!$B152=0,\"\",\"\")","v":""},{"$f":"IF('effRT Support'!$B152=0,\"\",\"\")","v":""},{"$f":"IF('effRT Support'!$B152=0,\"\",IF('Project Information'!$D$36=\"\",\"\",'Project Information'!$D$36))","v":""},{"$f":"IF('effRT Support'!$B152=0,\"\",IF('Project Information'!$D$42=\"\",\"\",'Project Information'!$D$42))","v":""},{"$f":"IF('effRT Support'!$B152=0,\"\",'effRT Support'!$D152)","v":""},{"$f":"IF('effRT Support'!$B152=0,\"\",'effRT Support'!$L152)","v":""},{"$f":"IF('effRT Support'!$B152=0,\"\",'effRT Support'!$N152)","v":""},null,null,{"$f":"IF('effRT Support'!$B152=0,\"\",'effRT Support'!$P152)","v":""},{"$f":"IF('effRT Support'!$B152=0,\"\",'effRT Support'!$Q152)","v":""},{"$f":"IF('effRT Support'!$B152=0,\"\",'effRT Support'!U152)","v":""},{"$f":"IF('effRT Support'!$B152=0,\"\",'effRT Support'!V152)","v":""},{"$f":"IF('effRT Support'!$B152=0,\"\",'effRT Support'!W152)","v":""},{"$f":"IF('effRT Support'!$B152=0,\"\",'effRT Support'!X152)","v":""},{"$f":"IF('effRT Support'!$B152=0,\"\",'effRT Support'!Y152)","v":""},{"$f":"IF('effRT Support'!$B152=0,\"\",'effRT Support'!Z152*10)","v":""},{"$f":"IF('effRT Support'!$B152=0,\"\",'effRT Support'!AA152)","v":""},{"$f":"IF('effRT Support'!$B152=0,\"\",'effRT Support'!AB152)","v":""},{"$f":"IF('effRT Support'!$B152=0,\"\",'effRT Support'!AC152)","v":""},{"$f":"IF('effRT Support'!$B152=0,\"\",'effRT Support'!AD152)","v":""},{"$f":"IF('effRT Support'!$B152=0,\"\",'effRT Support'!AE152)","v":""},{"$f":"IF('effRT Support'!$B152=0,\"\",\"Hours Actual or Deemed\")","v":""},{"$f":"IF('effRT Support'!$B152=0,\"\",'effRT Support'!$F152)","v":""},{"$f":"IF('effRT Support'!$B152=0,\"\",\"Wattage Actual or Deemed\")","v":""},{"$f":"IF('effRT Support'!$B152=0,\"\",IF('Project Information'!$D$33=\"Pay For Performance\",\"Actual\",\"Deemed\"))","v":""},{"$f":"IF('effRT Support'!$B152=0,\"\",\"Cost Actual or Deemed\")","v":""},{"$f":"IF('effRT Support'!$B152=0,\"\",IF('Project Information'!$D$33=\"Pay For Performance\",\"Actual\",\"Deemed\"))","v":""},{"$f":"IF('effRT Support'!$B152=0,\"\",\"Location\")","v":""},{"$f":"IF('effRT Support'!$B152=0,\"\",'effRT Support'!$E152)","v":""},{"$f":"IF('effRT Support'!$B152=0,\"\",\"Space Type\")","v":""},{"$f":"IF('effRT Support'!$B152=0,\"\",'effRT Support'!$G152)","v":""},{"$f":"IF('effRT Support'!$B152=0,\"\",\"Existing Fixture Description\")","v":""},{"$f":"IF('effRT Support'!$B152=0,\"\",'effRT Support'!$H152)","v":""},{"$f":"IF('effRT Support'!$B152=0,\"\",\"Existing Fixture Quantity\")","v":""},{"$f":"IF('effRT Support'!$B152=0,\"\",'effRT Support'!$I152)","v":""},{"$f":"IF('effRT Support'!$B152=0,\"\",\"Existing Fixture Wattage\")","v":""},{"$f":"IF('effRT Support'!$B152=0,\"\",'effRT Support'!$J152)","v":""},{"$f":"IF('effRT Support'!$B152=0,\"\",\"Annual Hours of Operation\")","v":""},{"$f":"IF('effRT Support'!$B152=0,\"\",'effRT Support'!$K152)","v":""},{"$f":"IF('effRT Support'!$B152=0,\"\",\"Installed Fixture Description\")","v":""},{"$f":"IF('effRT Support'!$B152=0,\"\",'effRT Support'!$M152)","v":""},{"$f":"IF('effRT Support'!$B152=0,\"\",\"Installed Fixture Wattage\")","v":""},{"$f":"IF('effRT Support'!$B152=0,\"\",'effRT Support'!$O152)","v":""},{"$f":"IF('effRT Support'!$B152=0,\"\",\"Material Cost\")","v":""},{"$f":"IF('effRT Support'!$B152=0,\"\",'effRT Support'!$R152)","v":""},{"$f":"IF('effRT Support'!$B152=0,\"\",\"Labor Cost\")","v":""},{"$f":"IF('effRT Support'!$B152=0,\"\",'effRT Support'!$S152)","v":""},{"$f":"IF('effRT Support'!$B152=0,\"\",\"Ancillary Costs - Measure Specific\")","v":""},{"$f":"IF('effRT Support'!$B152=0,\"\",'effRT Support'!$T152)","v":""},{"$f":"IF('effRT Support'!$B152=0,\"\",\"Fuel Type\")","v":""},{"$f":"IF('effRT Support'!$B152=0,\"\",'Project Information'!$D$44)","v":""}]
[{"$f":"IF('effRT Support'!$B153=0,\"\",IF('Project Information'!$D$33=\"Small Business\",\"SBL\",\"CILS\"))","v":""},{"$f":"IF('effRT Support'!$B153=0,\"\",IF('Project Information'!$K$2=\"\",\"\",'Project Information'!$K$2))","v":""},null,{"$f":"IF('effRT Support'!$B153=0,\"\",IF('Project Information'!$D$46=\"\",\"\",'Project Information'!$D$46))","v":""},{"$f":"IF('effRT Support'!$B153=0,\"\",IF('Project Information'!$D$20=\"\",\"\",VLOOKUP('Project Information'!$D$20,'Other Data'!$B$159:$E$189,4,FALSE)))","v":""},{"$f":"IF('effRT Support'!$B153=0,\"\",IF('Project Information'!$D$31=\"\",\"\",'Project Information'!$D$31))","v":""},{"$f":"IF('effRT Support'!$B153=0,\"\",IF('Project Information'!$D$5=\"\",\"\",'Project Information'!$D$5))","v":""},null,null,{"$f":"IF('effRT Support'!$B153=0,\"\",IF('Project Information'!$D$20=\"\",\"\",VLOOKUP('Project Information'!$D$20,'Other Data'!$B$159:$E$189,2,FALSE)))","v":""},{"$f":"IF('effRT Support'!$B153=0,\"\",IF('Project Information'!$D$20=\"\",\"\",VLOOKUP('Project Information'!$D$20,'Other Data'!$B$159:$E$189,3,FALSE)))","v":""},{"$f":"IF('effRT Support'!$B153=0,\"\",\"Existing\")","v":""},null,{"$f":"IF('effRT Support'!$B153=0,\"\",IF('Project Information'!$D$21=\"\",\"\",'Project Information'!$D$21))","v":""},{"$f":"IF('effRT Support'!$B153=0,\"\",IF('Project Information'!$D$48=\"\",\"\",'Project Information'!$D$48))","v":""},{"$f":"IF('effRT Support'!$B153=0,\"\",\"\")","v":""},{"$f":"IF('effRT Support'!$B153=0,\"\",\"\")","v":""},{"$f":"IF('effRT Support'!$B153=0,\"\",\"\")","v":""},{"$f":"IF('effRT Support'!$B153=0,\"\",\"\")","v":""},{"$f":"IF('effRT Support'!$B153=0,\"\",IF('Project Information'!$D$13=\"\",\"\",'Project Information'!$D$13))","v":""},{"$f":"IF('effRT Support'!$B153=0,\"\",IF('Project Information'!$E$13=\"\",\"\",'Project Information'!$E$13))","v":""},{"$f":"IF('effRT Support'!$B153=0,\"\",IF('Project Information'!$D$14=\"\",\"\",'Project Information'!$D$14))","v":""},{"$f":"IF('effRT Support'!$B153=0,\"\",IF('Project Information'!$D$15=\"\",\"\",'Project Information'!$D$15))","v":""},{"$f":"IF('effRT Support'!$B153=0,\"\",IF('Project Information'!$D$16=\"\",\"\",'Project Information'!$D$16))","v":""},null,{"$f":"IF('effRT Support'!$B153=0,\"\",'Project Information'!$D$18)","v":""},{"$f":"IF('effRT Support'!$B153=0,\"\",IF('Project Information'!$D$23=\"\",\"\",'Project Information'!$D$23))","v":""},{"$f":"IF('effRT Support'!$B153=0,\"\",IF('Project Information'!$D$24=\"\",\"\",'Project Information'!$D$24))","v":""},{"$f":"IF('effRT Support'!$B153=0,\"\",IF('Project Information'!$D$25=\"\",\"\",'Project Information'!$D$25))","v":""},{"$f":"IF('effRT Support'!$B153=0,\"\",IF('Project Information'!$E$25=\"\",\"\",'Project Information'!$E$25))","v":""},{"$f":"IF('effRT Support'!$B153=0,\"\",IF('Project Information'!$F$25=\"\",\"\",'Project Information'!$F$25))","v":""},{"$f":"IF('effRT Support'!$B153=0,\"\",IF('Project Information'!$D$27=\"\",\"Y\",\"N\"))","v":""},{"$f":"IF('effRT Support'!$B153=0,\"\",IF('Project Information'!$D$27=\"\",\"\",'Project Information'!$D$27))","v":""},{"$f":"IF('effRT Support'!$B153=0,\"\",IF('Project Information'!$D$28=\"\",\"\",'Project Information'!$D$28))","v":""},{"$f":"IF('effRT Support'!$B153=0,\"\",IF('Project Information'!$D$29=\"\",\"\",'Project Information'!$D$29))","v":""},{"$f":"IF('effRT Support'!$B153=0,\"\",IF('Project Information'!$E$29=\"\",\"\",'Project Information'!$E$29))","v":""},{"$f":"IF('effRT Support'!$B153=0,\"\",IF('Project Information'!$F$29=\"\",\"\",'Project Information'!$F$29))","v":""},{"$f":"IF('effRT Support'!$B153=0,\"\",\"\")","v":""},{"$f":"IF('effRT Support'!$B153=0,\"\",\"\")","v":""},{"$f":"IF('effRT Support'!$B153=0,\"\",IF('Project Information'!$D$36=\"\",\"\",'Project Information'!$D$36))","v":""},{"$f":"IF('effRT Support'!$B153=0,\"\",IF('Project Information'!$D$42=\"\",\"\",'Project Information'!$D$42))","v":""},{"$f":"IF('effRT Support'!$B153=0,\"\",'effRT Support'!$D153)","v":""},{"$f":"IF('effRT Support'!$B153=0,\"\",'effRT Support'!$L153)","v":""},{"$f":"IF('effRT Support'!$B153=0,\"\",'effRT Support'!$N153)","v":""},null,null,{"$f":"IF('effRT Support'!$B153=0,\"\",'effRT Support'!$P153)","v":""},{"$f":"IF('effRT Support'!$B153=0,\"\",'effRT Support'!$Q153)","v":""},{"$f":"IF('effRT Support'!$B153=0,\"\",'effRT Support'!U153)","v":""},{"$f":"IF('effRT Support'!$B153=0,\"\",'effRT Support'!V153)","v":""},{"$f":"IF('effRT Support'!$B153=0,\"\",'effRT Support'!W153)","v":""},{"$f":"IF('effRT Support'!$B153=0,\"\",'effRT Support'!X153)","v":""},{"$f":"IF('effRT Support'!$B153=0,\"\",'effRT Support'!Y153)","v":""},{"$f":"IF('effRT Support'!$B153=0,\"\",'effRT Support'!Z153*10)","v":""},{"$f":"IF('effRT Support'!$B153=0,\"\",'effRT Support'!AA153)","v":""},{"$f":"IF('effRT Support'!$B153=0,\"\",'effRT Support'!AB153)","v":""},{"$f":"IF('effRT Support'!$B153=0,\"\",'effRT Support'!AC153)","v":""},{"$f":"IF('effRT Support'!$B153=0,\"\",'effRT Support'!AD153)","v":""},{"$f":"IF('effRT Support'!$B153=0,\"\",'effRT Support'!AE153)","v":""},{"$f":"IF('effRT Support'!$B153=0,\"\",\"Hours Actual or Deemed\")","v":""},{"$f":"IF('effRT Support'!$B153=0,\"\",'effRT Support'!$F153)","v":""},{"$f":"IF('effRT Support'!$B153=0,\"\",\"Wattage Actual or Deemed\")","v":""},{"$f":"IF('effRT Support'!$B153=0,\"\",IF('Project Information'!$D$33=\"Pay For Performance\",\"Actual\",\"Deemed\"))","v":""},{"$f":"IF('effRT Support'!$B153=0,\"\",\"Cost Actual or Deemed\")","v":""},{"$f":"IF('effRT Support'!$B153=0,\"\",IF('Project Information'!$D$33=\"Pay For Performance\",\"Actual\",\"Deemed\"))","v":""},{"$f":"IF('effRT Support'!$B153=0,\"\",\"Location\")","v":""},{"$f":"IF('effRT Support'!$B153=0,\"\",'effRT Support'!$E153)","v":""},{"$f":"IF('effRT Support'!$B153=0,\"\",\"Space Type\")","v":""},{"$f":"IF('effRT Support'!$B153=0,\"\",'effRT Support'!$G153)","v":""},{"$f":"IF('effRT Support'!$B153=0,\"\",\"Existing Fixture Description\")","v":""},{"$f":"IF('effRT Support'!$B153=0,\"\",'effRT Support'!$H153)","v":""},{"$f":"IF('effRT Support'!$B153=0,\"\",\"Existing Fixture Quantity\")","v":""},{"$f":"IF('effRT Support'!$B153=0,\"\",'effRT Support'!$I153)","v":""},{"$f":"IF('effRT Support'!$B153=0,\"\",\"Existing Fixture Wattage\")","v":""},{"$f":"IF('effRT Support'!$B153=0,\"\",'effRT Support'!$J153)","v":""},{"$f":"IF('effRT Support'!$B153=0,\"\",\"Annual Hours of Operation\")","v":""},{"$f":"IF('effRT Support'!$B153=0,\"\",'effRT Support'!$K153)","v":""},{"$f":"IF('effRT Support'!$B153=0,\"\",\"Installed Fixture Description\")","v":""},{"$f":"IF('effRT Support'!$B153=0,\"\",'effRT Support'!$M153)","v":""},{"$f":"IF('effRT Support'!$B153=0,\"\",\"Installed Fixture Wattage\")","v":""},{"$f":"IF('effRT Support'!$B153=0,\"\",'effRT Support'!$O153)","v":""},{"$f":"IF('effRT Support'!$B153=0,\"\",\"Material Cost\")","v":""},{"$f":"IF('effRT Support'!$B153=0,\"\",'effRT Support'!$R153)","v":""},{"$f":"IF('effRT Support'!$B153=0,\"\",\"Labor Cost\")","v":""},{"$f":"IF('effRT Support'!$B153=0,\"\",'effRT Support'!$S153)","v":""},{"$f":"IF('effRT Support'!$B153=0,\"\",\"Ancillary Costs - Measure Specific\")","v":""},{"$f":"IF('effRT Support'!$B153=0,\"\",'effRT Support'!$T153)","v":""},{"$f":"IF('effRT Support'!$B153=0,\"\",\"Fuel Type\")","v":""},{"$f":"IF('effRT Support'!$B153=0,\"\",'Project Information'!$D$44)","v":""},{"$f":"IF('effRT Support'!$B153=0,\"\",\"Installed Fixture Quantity\")","v":""},{"$f":"IF('effRT Support'!$B153=0,\"\",'effRT Support'!P152)","v":""}]
[{"$f":"IF('effRT Support'!$B154=0,\"\",IF('Project Information'!$D$33=\"Small Business\",\"SBL\",\"CILS\"))","v":""},{"$f":"IF('effRT Support'!$B154=0,\"\",IF('Project Information'!$K$2=\"\",\"\",'Project Information'!$K$2))","v":""},null,{"$f":"IF('effRT Support'!$B154=0,\"\",IF('Project Information'!$D$46=\"\",\"\",'Project Information'!$D$46))","v":""},{"$f":"IF('effRT Support'!$B154=0,\"\",IF('Project Information'!$D$20=\"\",\"\",VLOOKUP('Project Information'!$D$20,'Other Data'!$B$159:$E$189,4,FALSE)))","v":""},{"$f":"IF('effRT Support'!$B154=0,\"\",IF('Project Information'!$D$31=\"\",\"\",'Project Information'!$D$31))","v":""},{"$f":"IF('effRT Support'!$B154=0,\"\",IF('Project Information'!$D$5=\"\",\"\",'Project Information'!$D$5))","v":""},null,null,{"$f":"IF('effRT Support'!$B154=0,\"\",IF('Project Information'!$D$20=\"\",\"\",VLOOKUP('Project Information'!$D$20,'Other Data'!$B$159:$E$189,2,FALSE)))","v":""},{"$f":"IF('effRT Support'!$B154=0,\"\",IF('Project Information'!$D$20=\"\",\"\",VLOOKUP('Project Information'!$D$20,'Other Data'!$B$159:$E$189,3,FALSE)))","v":""},{"$f":"IF('effRT Support'!$B154=0,\"\",\"Existing\")","v":""},null,{"$f":"IF('effRT Support'!$B154=0,\"\",IF('Project Information'!$D$21=\"\",\"\",'Project Information'!$D$21))","v":""},{"$f":"IF('effRT Support'!$B154=0,\"\",IF('Project Information'!$D$48=\"\",\"\",'Project Information'!$D$48))","v":""},{"$f":"IF('effRT Support'!$B154=0,\"\",\"\")","v":""},{"$f":"IF('effRT Support'!$B154=0,\"\",\"\")","v":""},{"$f":"IF('effRT Support'!$B154=0,\"\",\"\")","v":""},{"$f":"IF('effRT Support'!$B154=0,\"\",\"\")","v":""},{"$f":"IF('effRT Support'!$B154=0,\"\",IF('Project Information'!$D$13=\"\",\"\",'Project Information'!$D$13))","v":""},{"$f":"IF('effRT Support'!$B154=0,\"\",IF('Project Information'!$E$13=\"\",\"\",'Project Information'!$E$13))","v":""},{"$f":"IF('effRT Support'!$B154=0,\"\",IF('Project Information'!$D$14=\"\",\"\",'Project Information'!$D$14))","v":""},{"$f":"IF('effRT Support'!$B154=0,\"\",IF('Project Information'!$D$15=\"\",\"\",'Project Information'!$D$15))","v":""},{"$f":"IF('effRT Support'!$B154=0,\"\",IF('Project Information'!$D$16=\"\",\"\",'Project Information'!$D$16))","v":""},null,{"$f":"IF('effRT Support'!$B154=0,\"\",'Project Information'!$D$18)","v":""},{"$f":"IF('effRT Support'!$B154=0,\"\",IF('Project Information'!$D$23=\"\",\"\",'Project Information'!$D$23))","v":""},{"$f":"IF('effRT Support'!$B154=0,\"\",IF('Project Information'!$D$24=\"\",\"\",'Project Information'!$D$24))","v":""},{"$f":"IF('effRT Support'!$B154=0,\"\",IF('Project Information'!$D$25=\"\",\"\",'Project Information'!$D$25))","v":""},{"$f":"IF('effRT Support'!$B154=0,\"\",IF('Project Information'!$E$25=\"\",\"\",'Project Information'!$E$25))","v":""},{"$f":"IF('effRT Support'!$B154=0,\"\",IF('Project Information'!$F$25=\"\",\"\",'Project Information'!$F$25))","v":""},{"$f":"IF('effRT Support'!$B154=0,\"\",IF('Project Information'!$D$27=\"\",\"Y\",\"N\"))","v":""},{"$f":"IF('effRT Support'!$B154=0,\"\",IF('Project Information'!$D$27=\"\",\"\",'Project Information'!$D$27))","v":""},{"$f":"IF('effRT Support'!$B154=0,\"\",IF('Project Information'!$D$28=\"\",\"\",'Project Information'!$D$28))","v":""},{"$f":"IF('effRT Support'!$B154=0,\"\",IF('Project Information'!$D$29=\"\",\"\",'Project Information'!$D$29))","v":""},{"$f":"IF('effRT Support'!$B154=0,\"\",IF('Project Information'!$E$29=\"\",\"\",'Project Information'!$E$29))","v":""},{"$f":"IF('effRT Support'!$B154=0,\"\",IF('Project Information'!$F$29=\"\",\"\",'Project Information'!$F$29))","v":""},{"$f":"IF('effRT Support'!$B154=0,\"\",\"\")","v":""},{"$f":"IF('effRT Support'!$B154=0,\"\",\"\")","v":""},{"$f":"IF('effRT Support'!$B154=0,\"\",IF('Project Information'!$D$36=\"\",\"\",'Project Information'!$D$36))","v":""},{"$f":"IF('effRT Support'!$B154=0,\"\",IF('Project Information'!$D$42=\"\",\"\",'Project Information'!$D$42))","v":""},{"$f":"IF('effRT Support'!$B154=0,\"\",'effRT Support'!$D154)","v":""},{"$f":"IF('effRT Support'!$B154=0,\"\",'effRT Support'!$L154)","v":""},{"$f":"IF('effRT Support'!$B154=0,\"\",'effRT Support'!$N154)","v":""},null,null,{"$f":"IF('effRT Support'!$B154=0,\"\",'effRT Support'!$P154)","v":""},{"$f":"IF('effRT Support'!$B154=0,\"\",'effRT Support'!$Q154)","v":""},{"$f":"IF('effRT Support'!$B154=0,\"\",'effRT Support'!U154)","v":""},{"$f":"IF('effRT Support'!$B154=0,\"\",'effRT Support'!V154)","v":""},{"$f":"IF('effRT Support'!$B154=0,\"\",'effRT Support'!W154)","v":""},{"$f":"IF('effRT Support'!$B154=0,\"\",'effRT Support'!X154)","v":""},{"$f":"IF('effRT Support'!$B154=0,\"\",'effRT Support'!Y154)","v":""},{"$f":"IF('effRT Support'!$B154=0,\"\",'effRT Support'!Z154*10)","v":""},{"$f":"IF('effRT Support'!$B154=0,\"\",'effRT Support'!AA154)","v":""},{"$f":"IF('effRT Support'!$B154=0,\"\",'effRT Support'!AB154)","v":""},{"$f":"IF('effRT Support'!$B154=0,\"\",'effRT Support'!AC154)","v":""},{"$f":"IF('effRT Support'!$B154=0,\"\",'effRT Support'!AD154)","v":""},{"$f":"IF('effRT Support'!$B154=0,\"\",'effRT Support'!AE154)","v":""},{"$f":"IF('effRT Support'!$B154=0,\"\",\"Hours Actual or Deemed\")","v":""},{"$f":"IF('effRT Support'!$B154=0,\"\",'effRT Support'!$F154)","v":""},{"$f":"IF('effRT Support'!$B154=0,\"\",\"Wattage Actual or Deemed\")","v":""},{"$f":"IF('effRT Support'!$B154=0,\"\",IF('Project Information'!$D$33=\"Pay For Performance\",\"Actual\",\"Deemed\"))","v":""},{"$f":"IF('effRT Support'!$B154=0,\"\",\"Cost Actual or Deemed\")","v":""},{"$f":"IF('effRT Support'!$B154=0,\"\",IF('Project Information'!$D$33=\"Pay For Performance\",\"Actual\",\"Deemed\"))","v":""},{"$f":"IF('effRT Support'!$B154=0,\"\",\"Location\")","v":""},{"$f":"IF('effRT Support'!$B154=0,\"\",'effRT Support'!$E154)","v":""},{"$f":"IF('effRT Support'!$B154=0,\"\",\"Space Type\")","v":""},{"$f":"IF('effRT Support'!$B154=0,\"\",'effRT Support'!$G154)","v":""},{"$f":"IF('effRT Support'!$B154=0,\"\",\"Existing Fixture Description\")","v":""},{"$f":"IF('effRT Support'!$B154=0,\"\",'effRT Support'!$H154)","v":""},{"$f":"IF('effRT Support'!$B154=0,\"\",\"Existing Fixture Quantity\")","v":""},{"$f":"IF('effRT Support'!$B154=0,\"\",'effRT Support'!$I154)","v":""},{"$f":"IF('effRT Support'!$B154=0,\"\",\"Existing Fixture Wattage\")","v":""},{"$f":"IF('effRT Support'!$B154=0,\"\",'effRT Support'!$J154)","v":""},{"$f":"IF('effRT Support'!$B154=0,\"\",\"Annual Hours of Operation\")","v":""},{"$f":"IF('effRT Support'!$B154=0,\"\",'effRT Support'!$K154)","v":""},{"$f":"IF('effRT Support'!$B154=0,\"\",\"Installed Fixture Description\")","v":""},{"$f":"IF('effRT Support'!$B154=0,\"\",'effRT Support'!$M154)","v":""},{"$f":"IF('effRT Support'!$B154=0,\"\",\"Installed Fixture Wattage\")","v":""},{"$f":"IF('effRT Support'!$B154=0,\"\",'effRT Support'!$O154)","v":""},{"$f":"IF('effRT Support'!$B154=0,\"\",\"Material Cost\")","v":""},{"$f":"IF('effRT Support'!$B154=0,\"\",'effRT Support'!$R154)","v":""},{"$f":"IF('effRT Support'!$B154=0,\"\",\"Labor Cost\")","v":""},{"$f":"IF('effRT Support'!$B154=0,\"\",'effRT Support'!$S154)","v":""},{"$f":"IF('effRT Support'!$B154=0,\"\",\"Ancillary Costs - Measure Specific\")","v":""},{"$f":"IF('effRT Support'!$B154=0,\"\",'effRT Support'!$T154)","v":""},{"$f":"IF('effRT Support'!$B154=0,\"\",\"Fuel Type\")","v":""},{"$f":"IF('effRT Support'!$B154=0,\"\",'Project Information'!$D$44)","v":""}]
[{"$f":"IF('effRT Support'!$B155=0,\"\",IF('Project Information'!$D$33=\"Small Business\",\"SBL\",\"CILS\"))","v":""},{"$f":"IF('effRT Support'!$B155=0,\"\",IF('Project Information'!$K$2=\"\",\"\",'Project Information'!$K$2))","v":""},null,{"$f":"IF('effRT Support'!$B155=0,\"\",IF('Project Information'!$D$46=\"\",\"\",'Project Information'!$D$46))","v":""},{"$f":"IF('effRT Support'!$B155=0,\"\",IF('Project Information'!$D$20=\"\",\"\",VLOOKUP('Project Information'!$D$20,'Other Data'!$B$159:$E$189,4,FALSE)))","v":""},{"$f":"IF('effRT Support'!$B155=0,\"\",IF('Project Information'!$D$31=\"\",\"\",'Project Information'!$D$31))","v":""},{"$f":"IF('effRT Support'!$B155=0,\"\",IF('Project Information'!$D$5=\"\",\"\",'Project Information'!$D$5))","v":""},null,null,{"$f":"IF('effRT Support'!$B155=0,\"\",IF('Project Information'!$D$20=\"\",\"\",VLOOKUP('Project Information'!$D$20,'Other Data'!$B$159:$E$189,2,FALSE)))","v":""},{"$f":"IF('effRT Support'!$B155=0,\"\",IF('Project Information'!$D$20=\"\",\"\",VLOOKUP('Project Information'!$D$20,'Other Data'!$B$159:$E$189,3,FALSE)))","v":""},{"$f":"IF('effRT Support'!$B155=0,\"\",\"Existing\")","v":""},null,{"$f":"IF('effRT Support'!$B155=0,\"\",IF('Project Information'!$D$21=\"\",\"\",'Project Information'!$D$21))","v":""},{"$f":"IF('effRT Support'!$B155=0,\"\",IF('Project Information'!$D$48=\"\",\"\",'Project Information'!$D$48))","v":""},{"$f":"IF('effRT Support'!$B155=0,\"\",\"\")","v":""},{"$f":"IF('effRT Support'!$B155=0,\"\",\"\")","v":""},{"$f":"IF('effRT Support'!$B155=0,\"\",\"\")","v":""},{"$f":"IF('effRT Support'!$B155=0,\"\",\"\")","v":""},{"$f":"IF('effRT Support'!$B155=0,\"\",IF('Project Information'!$D$13=\"\",\"\",'Project Information'!$D$13))","v":""},{"$f":"IF('effRT Support'!$B155=0,\"\",IF('Project Information'!$E$13=\"\",\"\",'Project Information'!$E$13))","v":""},{"$f":"IF('effRT Support'!$B155=0,\"\",IF('Project Information'!$D$14=\"\",\"\",'Project Information'!$D$14))","v":""},{"$f":"IF('effRT Support'!$B155=0,\"\",IF('Project Information'!$D$15=\"\",\"\",'Project Information'!$D$15))","v":""},{"$f":"IF('effRT Support'!$B155=0,\"\",IF('Project Information'!$D$16=\"\",\"\",'Project Information'!$D$16))","v":""},null,{"$f":"IF('effRT Support'!$B155=0,\"\",'Project Information'!$D$18)","v":""},{"$f":"IF('effRT Support'!$B155=0,\"\",IF('Project Information'!$D$23=\"\",\"\",'Project Information'!$D$23))","v":""},{"$f":"IF('effRT Support'!$B155=0,\"\",IF('Project Information'!$D$24=\"\",\"\",'Project Information'!$D$24))","v":""},{"$f":"IF('effRT Support'!$B155=0,\"\",IF('Project Information'!$D$25=\"\",\"\",'Project Information'!$D$25))","v":""},{"$f":"IF('effRT Support'!$B155=0,\"\",IF('Project Information'!$E$25=\"\",\"\",'Project Information'!$E$25))","v":""},{"$f":"IF('effRT Support'!$B155=0,\"\",IF('Project Information'!$F$25=\"\",\"\",'Project Information'!$F$25))","v":""},{"$f":"IF('effRT Support'!$B155=0,\"\",IF('Project Information'!$D$27=\"\",\"Y\",\"N\"))","v":""},{"$f":"IF('effRT Support'!$B155=0,\"\",IF('Project Information'!$D$27=\"\",\"\",'Project Information'!$D$27))","v":""},{"$f":"IF('effRT Support'!$B155=0,\"\",IF('Project Information'!$D$28=\"\",\"\",'Project Information'!$D$28))","v":""},{"$f":"IF('effRT Support'!$B155=0,\"\",IF('Project Information'!$D$29=\"\",\"\",'Project Information'!$D$29))","v":""},{"$f":"IF('effRT Support'!$B155=0,\"\",IF('Project Information'!$E$29=\"\",\"\",'Project Information'!$E$29))","v":""},{"$f":"IF('effRT Support'!$B155=0,\"\",IF('Project Information'!$F$29=\"\",\"\",'Project Information'!$F$29))","v":""},{"$f":"IF('effRT Support'!$B155=0,\"\",\"\")","v":""},{"$f":"IF('effRT Support'!$B155=0,\"\",\"\")","v":""},{"$f":"IF('effRT Support'!$B155=0,\"\",IF('Project Information'!$D$36=\"\",\"\",'Project Information'!$D$36))","v":""},{"$f":"IF('effRT Support'!$B155=0,\"\",IF('Project Information'!$D$42=\"\",\"\",'Project Information'!$D$42))","v":""},{"$f":"IF('effRT Support'!$B155=0,\"\",'effRT Support'!$D155)","v":""},{"$f":"IF('effRT Support'!$B155=0,\"\",'effRT Support'!$L155)","v":""},{"$f":"IF('effRT Support'!$B155=0,\"\",'effRT Support'!$N155)","v":""},null,null,{"$f":"IF('effRT Support'!$B155=0,\"\",'effRT Support'!$P155)","v":""},{"$f":"IF('effRT Support'!$B155=0,\"\",'effRT Support'!$Q155)","v":""},{"$f":"IF('effRT Support'!$B155=0,\"\",'effRT Support'!U155)","v":""},{"$f":"IF('effRT Support'!$B155=0,\"\",'effRT Support'!V155)","v":""},{"$f":"IF('effRT Support'!$B155=0,\"\",'effRT Support'!W155)","v":""},{"$f":"IF('effRT Support'!$B155=0,\"\",'effRT Support'!X155)","v":""},{"$f":"IF('effRT Support'!$B155=0,\"\",'effRT Support'!Y155)","v":""},{"$f":"IF('effRT Support'!$B155=0,\"\",'effRT Support'!Z155*10)","v":""},{"$f":"IF('effRT Support'!$B155=0,\"\",'effRT Support'!AA155)","v":""},{"$f":"IF('effRT Support'!$B155=0,\"\",'effRT Support'!AB155)","v":""},{"$f":"IF('effRT Support'!$B155=0,\"\",'effRT Support'!AC155)","v":""},{"$f":"IF('effRT Support'!$B155=0,\"\",'effRT Support'!AD155)","v":""},{"$f":"IF('effRT Support'!$B155=0,\"\",'effRT Support'!AE155)","v":""},{"$f":"IF('effRT Support'!$B155=0,\"\",\"Hours Actual or Deemed\")","v":""},{"$f":"IF('effRT Support'!$B155=0,\"\",'effRT Support'!$F155)","v":""},{"$f":"IF('effRT Support'!$B155=0,\"\",\"Wattage Actual or Deemed\")","v":""},{"$f":"IF('effRT Support'!$B155=0,\"\",IF('Project Information'!$D$33=\"Pay For Performance\",\"Actual\",\"Deemed\"))","v":""},{"$f":"IF('effRT Support'!$B155=0,\"\",\"Cost Actual or Deemed\")","v":""},{"$f":"IF('effRT Support'!$B155=0,\"\",IF('Project Information'!$D$33=\"Pay For Performance\",\"Actual\",\"Deemed\"))","v":""},{"$f":"IF('effRT Support'!$B155=0,\"\",\"Location\")","v":""},{"$f":"IF('effRT Support'!$B155=0,\"\",'effRT Support'!$E155)","v":""},{"$f":"IF('effRT Support'!$B155=0,\"\",\"Space Type\")","v":""},{"$f":"IF('effRT Support'!$B155=0,\"\",'effRT Support'!$G155)","v":""},{"$f":"IF('effRT Support'!$B155=0,\"\",\"Existing Fixture Description\")","v":""},{"$f":"IF('effRT Support'!$B155=0,\"\",'effRT Support'!$H155)","v":""},{"$f":"IF('effRT Support'!$B155=0,\"\",\"Existing Fixture Quantity\")","v":""},{"$f":"IF('effRT Support'!$B155=0,\"\",'effRT Support'!$I155)","v":""},{"$f":"IF('effRT Support'!$B155=0,\"\",\"Existing Fixture Wattage\")","v":""},{"$f":"IF('effRT Support'!$B155=0,\"\",'effRT Support'!$J155)","v":""},{"$f":"IF('effRT Support'!$B155=0,\"\",\"Annual Hours of Operation\")","v":""},{"$f":"IF('effRT Support'!$B155=0,\"\",'effRT Support'!$K155)","v":""},{"$f":"IF('effRT Support'!$B155=0,\"\",\"Installed Fixture Description\")","v":""},{"$f":"IF('effRT Support'!$B155=0,\"\",'effRT Support'!$M155)","v":""},{"$f":"IF('effRT Support'!$B155=0,\"\",\"Installed Fixture Wattage\")","v":""},{"$f":"IF('effRT Support'!$B155=0,\"\",'effRT Support'!$O155)","v":""},{"$f":"IF('effRT Support'!$B155=0,\"\",\"Material Cost\")","v":""},{"$f":"IF('effRT Support'!$B155=0,\"\",'effRT Support'!$R155)","v":""},{"$f":"IF('effRT Support'!$B155=0,\"\",\"Labor Cost\")","v":""},{"$f":"IF('effRT Support'!$B155=0,\"\",'effRT Support'!$S155)","v":""},{"$f":"IF('effRT Support'!$B155=0,\"\",\"Ancillary Costs - Measure Specific\")","v":""},{"$f":"IF('effRT Support'!$B155=0,\"\",'effRT Support'!$T155)","v":""},{"$f":"IF('effRT Support'!$B155=0,\"\",\"Fuel Type\")","v":""},{"$f":"IF('effRT Support'!$B155=0,\"\",'Project Information'!$D$44)","v":""},{"$f":"IF('effRT Support'!$B155=0,\"\",\"Installed Fixture Quantity\")","v":""},{"$f":"IF('effRT Support'!$B155=0,\"\",'effRT Support'!P154)","v":""}]
[{"$f":"IF('effRT Support'!$B156=0,\"\",IF('Project Information'!$D$33=\"Small Business\",\"SBL\",\"CILS\"))","v":""},{"$f":"IF('effRT Support'!$B156=0,\"\",IF('Project Information'!$K$2=\"\",\"\",'Project Information'!$K$2))","v":""},null,{"$f":"IF('effRT Support'!$B156=0,\"\",IF('Project Information'!$D$46=\"\",\"\",'Project Information'!$D$46))","v":""},{"$f":"IF('effRT Support'!$B156=0,\"\",IF('Project Information'!$D$20=\"\",\"\",VLOOKUP('Project Information'!$D$20,'Other Data'!$B$159:$E$189,4,FALSE)))","v":""},{"$f":"IF('effRT Support'!$B156=0,\"\",IF('Project Information'!$D$31=\"\",\"\",'Project Information'!$D$31))","v":""},{"$f":"IF('effRT Support'!$B156=0,\"\",IF('Project Information'!$D$5=\"\",\"\",'Project Information'!$D$5))","v":""},null,null,{"$f":"IF('effRT Support'!$B156=0,\"\",IF('Project Information'!$D$20=\"\",\"\",VLOOKUP('Project Information'!$D$20,'Other Data'!$B$159:$E$189,2,FALSE)))","v":""},{"$f":"IF('effRT Support'!$B156=0,\"\",IF('Project Information'!$D$20=\"\",\"\",VLOOKUP('Project Information'!$D$20,'Other Data'!$B$159:$E$189,3,FALSE)))","v":""},{"$f":"IF('effRT Support'!$B156=0,\"\",\"Existing\")","v":""},null,{"$f":"IF('effRT Support'!$B156=0,\"\",IF('Project Information'!$D$21=\"\",\"\",'Project Information'!$D$21))","v":""},{"$f":"IF('effRT Support'!$B156=0,\"\",IF('Project Information'!$D$48=\"\",\"\",'Project Information'!$D$48))","v":""},{"$f":"IF('effRT Support'!$B156=0,\"\",\"\")","v":""},{"$f":"IF('effRT Support'!$B156=0,\"\",\"\")","v":""},{"$f":"IF('effRT Support'!$B156=0,\"\",\"\")","v":""},{"$f":"IF('effRT Support'!$B156=0,\"\",\"\")","v":""},{"$f":"IF('effRT Support'!$B156=0,\"\",IF('Project Information'!$D$13=\"\",\"\",'Project Information'!$D$13))","v":""},{"$f":"IF('effRT Support'!$B156=0,\"\",IF('Project Information'!$E$13=\"\",\"\",'Project Information'!$E$13))","v":""},{"$f":"IF('effRT Support'!$B156=0,\"\",IF('Project Information'!$D$14=\"\",\"\",'Project Information'!$D$14))","v":""},{"$f":"IF('effRT Support'!$B156=0,\"\",IF('Project Information'!$D$15=\"\",\"\",'Project Information'!$D$15))","v":""},{"$f":"IF('effRT Support'!$B156=0,\"\",IF('Project Information'!$D$16=\"\",\"\",'Project Information'!$D$16))","v":""},null,{"$f":"IF('effRT Support'!$B156=0,\"\",'Project Information'!$D$18)","v":""},{"$f":"IF('effRT Support'!$B156=0,\"\",IF('Project Information'!$D$23=\"\",\"\",'Project Information'!$D$23))","v":""},{"$f":"IF('effRT Support'!$B156=0,\"\",IF('Project Information'!$D$24=\"\",\"\",'Project Information'!$D$24))","v":""},{"$f":"IF('effRT Support'!$B156=0,\"\",IF('Project Information'!$D$25=\"\",\"\",'Project Information'!$D$25))","v":""},{"$f":"IF('effRT Support'!$B156=0,\"\",IF('Project Information'!$E$25=\"\",\"\",'Project Information'!$E$25))","v":""},{"$f":"IF('effRT Support'!$B156=0,\"\",IF('Project Information'!$F$25=\"\",\"\",'Project Information'!$F$25))","v":""},{"$f":"IF('effRT Support'!$B156=0,\"\",IF('Project Information'!$D$27=\"\",\"Y\",\"N\"))","v":""},{"$f":"IF('effRT Support'!$B156=0,\"\",IF('Project Information'!$D$27=\"\",\"\",'Project Information'!$D$27))","v":""},{"$f":"IF('effRT Support'!$B156=0,\"\",IF('Project Information'!$D$28=\"\",\"\",'Project Information'!$D$28))","v":""},{"$f":"IF('effRT Support'!$B156=0,\"\",IF('Project Information'!$D$29=\"\",\"\",'Project Information'!$D$29))","v":""},{"$f":"IF('effRT Support'!$B156=0,\"\",IF('Project Information'!$E$29=\"\",\"\",'Project Information'!$E$29))","v":""},{"$f":"IF('effRT Support'!$B156=0,\"\",IF('Project Information'!$F$29=\"\",\"\",'Project Information'!$F$29))","v":""},{"$f":"IF('effRT Support'!$B156=0,\"\",\"\")","v":""},{"$f":"IF('effRT Support'!$B156=0,\"\",\"\")","v":""},{"$f":"IF('effRT Support'!$B156=0,\"\",IF('Project Information'!$D$36=\"\",\"\",'Project Information'!$D$36))","v":""},{"$f":"IF('effRT Support'!$B156=0,\"\",IF('Project Information'!$D$42=\"\",\"\",'Project Information'!$D$42))","v":""},{"$f":"IF('effRT Support'!$B156=0,\"\",'effRT Support'!$D156)","v":""},{"$f":"IF('effRT Support'!$B156=0,\"\",'effRT Support'!$L156)","v":""},{"$f":"IF('effRT Support'!$B156=0,\"\",'effRT Support'!$N156)","v":""},null,null,{"$f":"IF('effRT Support'!$B156=0,\"\",'effRT Support'!$P156)","v":""},{"$f":"IF('effRT Support'!$B156=0,\"\",'effRT Support'!$Q156)","v":""},{"$f":"IF('effRT Support'!$B156=0,\"\",'effRT Support'!U156)","v":""},{"$f":"IF('effRT Support'!$B156=0,\"\",'effRT Support'!V156)","v":""},{"$f":"IF('effRT Support'!$B156=0,\"\",'effRT Support'!W156)","v":""},{"$f":"IF('effRT Support'!$B156=0,\"\",'effRT Support'!X156)","v":""},{"$f":"IF('effRT Support'!$B156=0,\"\",'effRT Support'!Y156)","v":""},{"$f":"IF('effRT Support'!$B156=0,\"\",'effRT Support'!Z156*10)","v":""},{"$f":"IF('effRT Support'!$B156=0,\"\",'effRT Support'!AA156)","v":""},{"$f":"IF('effRT Support'!$B156=0,\"\",'effRT Support'!AB156)","v":""},{"$f":"IF('effRT Support'!$B156=0,\"\",'effRT Support'!AC156)","v":""},{"$f":"IF('effRT Support'!$B156=0,\"\",'effRT Support'!AD156)","v":""},{"$f":"IF('effRT Support'!$B156=0,\"\",'effRT Support'!AE156)","v":""},{"$f":"IF('effRT Support'!$B156=0,\"\",\"Hours Actual or Deemed\")","v":""},{"$f":"IF('effRT Support'!$B156=0,\"\",'effRT Support'!$F156)","v":""},{"$f":"IF('effRT Support'!$B156=0,\"\",\"Wattage Actual or Deemed\")","v":""},{"$f":"IF('effRT Support'!$B156=0,\"\",IF('Project Information'!$D$33=\"Pay For Performance\",\"Actual\",\"Deemed\"))","v":""},{"$f":"IF('effRT Support'!$B156=0,\"\",\"Cost Actual or Deemed\")","v":""},{"$f":"IF('effRT Support'!$B156=0,\"\",IF('Project Information'!$D$33=\"Pay For Performance\",\"Actual\",\"Deemed\"))","v":""},{"$f":"IF('effRT Support'!$B156=0,\"\",\"Location\")","v":""},{"$f":"IF('effRT Support'!$B156=0,\"\",'effRT Support'!$E156)","v":""},{"$f":"IF('effRT Support'!$B156=0,\"\",\"Space Type\")","v":""},{"$f":"IF('effRT Support'!$B156=0,\"\",'effRT Support'!$G156)","v":""},{"$f":"IF('effRT Support'!$B156=0,\"\",\"Existing Fixture Description\")","v":""},{"$f":"IF('effRT Support'!$B156=0,\"\",'effRT Support'!$H156)","v":""},{"$f":"IF('effRT Support'!$B156=0,\"\",\"Existing Fixture Quantity\")","v":""},{"$f":"IF('effRT Support'!$B156=0,\"\",'effRT Support'!$I156)","v":""},{"$f":"IF('effRT Support'!$B156=0,\"\",\"Existing Fixture Wattage\")","v":""},{"$f":"IF('effRT Support'!$B156=0,\"\",'effRT Support'!$J156)","v":""},{"$f":"IF('effRT Support'!$B156=0,\"\",\"Annual Hours of Operation\")","v":""},{"$f":"IF('effRT Support'!$B156=0,\"\",'effRT Support'!$K156)","v":""},{"$f":"IF('effRT Support'!$B156=0,\"\",\"Installed Fixture Description\")","v":""},{"$f":"IF('effRT Support'!$B156=0,\"\",'effRT Support'!$M156)","v":""},{"$f":"IF('effRT Support'!$B156=0,\"\",\"Installed Fixture Wattage\")","v":""},{"$f":"IF('effRT Support'!$B156=0,\"\",'effRT Support'!$O156)","v":""},{"$f":"IF('effRT Support'!$B156=0,\"\",\"Material Cost\")","v":""},{"$f":"IF('effRT Support'!$B156=0,\"\",'effRT Support'!$R156)","v":""},{"$f":"IF('effRT Support'!$B156=0,\"\",\"Labor Cost\")","v":""},{"$f":"IF('effRT Support'!$B156=0,\"\",'effRT Support'!$S156)","v":""},{"$f":"IF('effRT Support'!$B156=0,\"\",\"Ancillary Costs - Measure Specific\")","v":""},{"$f":"IF('effRT Support'!$B156=0,\"\",'effRT Support'!$T156)","v":""},{"$f":"IF('effRT Support'!$B156=0,\"\",\"Fuel Type\")","v":""},{"$f":"IF('effRT Support'!$B156=0,\"\",'Project Information'!$D$44)","v":""}]
[{"$f":"IF('effRT Support'!$B157=0,\"\",IF('Project Information'!$D$33=\"Small Business\",\"SBL\",\"CILS\"))","v":""},{"$f":"IF('effRT Support'!$B157=0,\"\",IF('Project Information'!$K$2=\"\",\"\",'Project Information'!$K$2))","v":""},null,{"$f":"IF('effRT Support'!$B157=0,\"\",IF('Project Information'!$D$46=\"\",\"\",'Project Information'!$D$46))","v":""},{"$f":"IF('effRT Support'!$B157=0,\"\",IF('Project Information'!$D$20=\"\",\"\",VLOOKUP('Project Information'!$D$20,'Other Data'!$B$159:$E$189,4,FALSE)))","v":""},{"$f":"IF('effRT Support'!$B157=0,\"\",IF('Project Information'!$D$31=\"\",\"\",'Project Information'!$D$31))","v":""},{"$f":"IF('effRT Support'!$B157=0,\"\",IF('Project Information'!$D$5=\"\",\"\",'Project Information'!$D$5))","v":""},null,null,{"$f":"IF('effRT Support'!$B157=0,\"\",IF('Project Information'!$D$20=\"\",\"\",VLOOKUP('Project Information'!$D$20,'Other Data'!$B$159:$E$189,2,FALSE)))","v":""},{"$f":"IF('effRT Support'!$B157=0,\"\",IF('Project Information'!$D$20=\"\",\"\",VLOOKUP('Project Information'!$D$20,'Other Data'!$B$159:$E$189,3,FALSE)))","v":""},{"$f":"IF('effRT Support'!$B157=0,\"\",\"Existing\")","v":""},null,{"$f":"IF('effRT Support'!$B157=0,\"\",IF('Project Information'!$D$21=\"\",\"\",'Project Information'!$D$21))","v":""},{"$f":"IF('effRT Support'!$B157=0,\"\",IF('Project Information'!$D$48=\"\",\"\",'Project Information'!$D$48))","v":""},{"$f":"IF('effRT Support'!$B157=0,\"\",\"\")","v":""},{"$f":"IF('effRT Support'!$B157=0,\"\",\"\")","v":""},{"$f":"IF('effRT Support'!$B157=0,\"\",\"\")","v":""},{"$f":"IF('effRT Support'!$B157=0,\"\",\"\")","v":""},{"$f":"IF('effRT Support'!$B157=0,\"\",IF('Project Information'!$D$13=\"\",\"\",'Project Information'!$D$13))","v":""},{"$f":"IF('effRT Support'!$B157=0,\"\",IF('Project Information'!$E$13=\"\",\"\",'Project Information'!$E$13))","v":""},{"$f":"IF('effRT Support'!$B157=0,\"\",IF('Project Information'!$D$14=\"\",\"\",'Project Information'!$D$14))","v":""},{"$f":"IF('effRT Support'!$B157=0,\"\",IF('Project Information'!$D$15=\"\",\"\",'Project Information'!$D$15))","v":""},{"$f":"IF('effRT Support'!$B157=0,\"\",IF('Project Information'!$D$16=\"\",\"\",'Project Information'!$D$16))","v":""},null,{"$f":"IF('effRT Support'!$B157=0,\"\",'Project Information'!$D$18)","v":""},{"$f":"IF('effRT Support'!$B157=0,\"\",IF('Project Information'!$D$23=\"\",\"\",'Project Information'!$D$23))","v":""},{"$f":"IF('effRT Support'!$B157=0,\"\",IF('Project Information'!$D$24=\"\",\"\",'Project Information'!$D$24))","v":""},{"$f":"IF('effRT Support'!$B157=0,\"\",IF('Project Information'!$D$25=\"\",\"\",'Project Information'!$D$25))","v":""},{"$f":"IF('effRT Support'!$B157=0,\"\",IF('Project Information'!$E$25=\"\",\"\",'Project Information'!$E$25))","v":""},{"$f":"IF('effRT Support'!$B157=0,\"\",IF('Project Information'!$F$25=\"\",\"\",'Project Information'!$F$25))","v":""},{"$f":"IF('effRT Support'!$B157=0,\"\",IF('Project Information'!$D$27=\"\",\"Y\",\"N\"))","v":""},{"$f":"IF('effRT Support'!$B157=0,\"\",IF('Project Information'!$D$27=\"\",\"\",'Project Information'!$D$27))","v":""},{"$f":"IF('effRT Support'!$B157=0,\"\",IF('Project Information'!$D$28=\"\",\"\",'Project Information'!$D$28))","v":""},{"$f":"IF('effRT Support'!$B157=0,\"\",IF('Project Information'!$D$29=\"\",\"\",'Project Information'!$D$29))","v":""},{"$f":"IF('effRT Support'!$B157=0,\"\",IF('Project Information'!$E$29=\"\",\"\",'Project Information'!$E$29))","v":""},{"$f":"IF('effRT Support'!$B157=0,\"\",IF('Project Information'!$F$29=\"\",\"\",'Project Information'!$F$29))","v":""},{"$f":"IF('effRT Support'!$B157=0,\"\",\"\")","v":""},{"$f":"IF('effRT Support'!$B157=0,\"\",\"\")","v":""},{"$f":"IF('effRT Support'!$B157=0,\"\",IF('Project Information'!$D$36=\"\",\"\",'Project Information'!$D$36))","v":""},{"$f":"IF('effRT Support'!$B157=0,\"\",IF('Project Information'!$D$42=\"\",\"\",'Project Information'!$D$42))","v":""},{"$f":"IF('effRT Support'!$B157=0,\"\",'effRT Support'!$D157)","v":""},{"$f":"IF('effRT Support'!$B157=0,\"\",'effRT Support'!$L157)","v":""},{"$f":"IF('effRT Support'!$B157=0,\"\",'effRT Support'!$N157)","v":""},null,null,{"$f":"IF('effRT Support'!$B157=0,\"\",'effRT Support'!$P157)","v":""},{"$f":"IF('effRT Support'!$B157=0,\"\",'effRT Support'!$Q157)","v":""},{"$f":"IF('effRT Support'!$B157=0,\"\",'effRT Support'!U157)","v":""},{"$f":"IF('effRT Support'!$B157=0,\"\",'effRT Support'!V157)","v":""},{"$f":"IF('effRT Support'!$B157=0,\"\",'effRT Support'!W157)","v":""},{"$f":"IF('effRT Support'!$B157=0,\"\",'effRT Support'!X157)","v":""},{"$f":"IF('effRT Support'!$B157=0,\"\",'effRT Support'!Y157)","v":""},{"$f":"IF('effRT Support'!$B157=0,\"\",'effRT Support'!Z157*10)","v":""},{"$f":"IF('effRT Support'!$B157=0,\"\",'effRT Support'!AA157)","v":""},{"$f":"IF('effRT Support'!$B157=0,\"\",'effRT Support'!AB157)","v":""},{"$f":"IF('effRT Support'!$B157=0,\"\",'effRT Support'!AC157)","v":""},{"$f":"IF('effRT Support'!$B157=0,\"\",'effRT Support'!AD157)","v":""},{"$f":"IF('effRT Support'!$B157=0,\"\",'effRT Support'!AE157)","v":""},{"$f":"IF('effRT Support'!$B157=0,\"\",\"Hours Actual or Deemed\")","v":""},{"$f":"IF('effRT Support'!$B157=0,\"\",'effRT Support'!$F157)","v":""},{"$f":"IF('effRT Support'!$B157=0,\"\",\"Wattage Actual or Deemed\")","v":""},{"$f":"IF('effRT Support'!$B157=0,\"\",IF('Project Information'!$D$33=\"Pay For Performance\",\"Actual\",\"Deemed\"))","v":""},{"$f":"IF('effRT Support'!$B157=0,\"\",\"Cost Actual or Deemed\")","v":""},{"$f":"IF('effRT Support'!$B157=0,\"\",IF('Project Information'!$D$33=\"Pay For Performance\",\"Actual\",\"Deemed\"))","v":""},{"$f":"IF('effRT Support'!$B157=0,\"\",\"Location\")","v":""},{"$f":"IF('effRT Support'!$B157=0,\"\",'effRT Support'!$E157)","v":""},{"$f":"IF('effRT Support'!$B157=0,\"\",\"Space Type\")","v":""},{"$f":"IF('effRT Support'!$B157=0,\"\",'effRT Support'!$G157)","v":""},{"$f":"IF('effRT Support'!$B157=0,\"\",\"Existing Fixture Description\")","v":""},{"$f":"IF('effRT Support'!$B157=0,\"\",'effRT Support'!$H157)","v":""},{"$f":"IF('effRT Support'!$B157=0,\"\",\"Existing Fixture Quantity\")","v":""},{"$f":"IF('effRT Support'!$B157=0,\"\",'effRT Support'!$I157)","v":""},{"$f":"IF('effRT Support'!$B157=0,\"\",\"Existing Fixture Wattage\")","v":""},{"$f":"IF('effRT Support'!$B157=0,\"\",'effRT Support'!$J157)","v":""},{"$f":"IF('effRT Support'!$B157=0,\"\",\"Annual Hours of Operation\")","v":""},{"$f":"IF('effRT Support'!$B157=0,\"\",'effRT Support'!$K157)","v":""},{"$f":"IF('effRT Support'!$B157=0,\"\",\"Installed Fixture Description\")","v":""},{"$f":"IF('effRT Support'!$B157=0,\"\",'effRT Support'!$M157)","v":""},{"$f":"IF('effRT Support'!$B157=0,\"\",\"Installed Fixture Wattage\")","v":""},{"$f":"IF('effRT Support'!$B157=0,\"\",'effRT Support'!$O157)","v":""},{"$f":"IF('effRT Support'!$B157=0,\"\",\"Material Cost\")","v":""},{"$f":"IF('effRT Support'!$B157=0,\"\",'effRT Support'!$R157)","v":""},{"$f":"IF('effRT Support'!$B157=0,\"\",\"Labor Cost\")","v":""},{"$f":"IF('effRT Support'!$B157=0,\"\",'effRT Support'!$S157)","v":""},{"$f":"IF('effRT Support'!$B157=0,\"\",\"Ancillary Costs - Measure Specific\")","v":""},{"$f":"IF('effRT Support'!$B157=0,\"\",'effRT Support'!$T157)","v":""},{"$f":"IF('effRT Support'!$B157=0,\"\",\"Fuel Type\")","v":""},{"$f":"IF('effRT Support'!$B157=0,\"\",'Project Information'!$D$44)","v":""},{"$f":"IF('effRT Support'!$B157=0,\"\",\"Installed Fixture Quantity\")","v":""},{"$f":"IF('effRT Support'!$B157=0,\"\",'effRT Support'!P156)","v":""}]
[{"$f":"IF('effRT Support'!$B158=0,\"\",IF('Project Information'!$D$33=\"Small Business\",\"SBL\",\"CILS\"))","v":""},{"$f":"IF('effRT Support'!$B158=0,\"\",IF('Project Information'!$K$2=\"\",\"\",'Project Information'!$K$2))","v":""},null,{"$f":"IF('effRT Support'!$B158=0,\"\",IF('Project Information'!$D$46=\"\",\"\",'Project Information'!$D$46))","v":""},{"$f":"IF('effRT Support'!$B158=0,\"\",IF('Project Information'!$D$20=\"\",\"\",VLOOKUP('Project Information'!$D$20,'Other Data'!$B$159:$E$189,4,FALSE)))","v":""},{"$f":"IF('effRT Support'!$B158=0,\"\",IF('Project Information'!$D$31=\"\",\"\",'Project Information'!$D$31))","v":""},{"$f":"IF('effRT Support'!$B158=0,\"\",IF('Project Information'!$D$5=\"\",\"\",'Project Information'!$D$5))","v":""},null,null,{"$f":"IF('effRT Support'!$B158=0,\"\",IF('Project Information'!$D$20=\"\",\"\",VLOOKUP('Project Information'!$D$20,'Other Data'!$B$159:$E$189,2,FALSE)))","v":""},{"$f":"IF('effRT Support'!$B158=0,\"\",IF('Project Information'!$D$20=\"\",\"\",VLOOKUP('Project Information'!$D$20,'Other Data'!$B$159:$E$189,3,FALSE)))","v":""},{"$f":"IF('effRT Support'!$B158=0,\"\",\"Existing\")","v":""},null,{"$f":"IF('effRT Support'!$B158=0,\"\",IF('Project Information'!$D$21=\"\",\"\",'Project Information'!$D$21))","v":""},{"$f":"IF('effRT Support'!$B158=0,\"\",IF('Project Information'!$D$48=\"\",\"\",'Project Information'!$D$48))","v":""},{"$f":"IF('effRT Support'!$B158=0,\"\",\"\")","v":""},{"$f":"IF('effRT Support'!$B158=0,\"\",\"\")","v":""},{"$f":"IF('effRT Support'!$B158=0,\"\",\"\")","v":""},{"$f":"IF('effRT Support'!$B158=0,\"\",\"\")","v":""},{"$f":"IF('effRT Support'!$B158=0,\"\",IF('Project Information'!$D$13=\"\",\"\",'Project Information'!$D$13))","v":""},{"$f":"IF('effRT Support'!$B158=0,\"\",IF('Project Information'!$E$13=\"\",\"\",'Project Information'!$E$13))","v":""},{"$f":"IF('effRT Support'!$B158=0,\"\",IF('Project Information'!$D$14=\"\",\"\",'Project Information'!$D$14))","v":""},{"$f":"IF('effRT Support'!$B158=0,\"\",IF('Project Information'!$D$15=\"\",\"\",'Project Information'!$D$15))","v":""},{"$f":"IF('effRT Support'!$B158=0,\"\",IF('Project Information'!$D$16=\"\",\"\",'Project Information'!$D$16))","v":""},null,{"$f":"IF('effRT Support'!$B158=0,\"\",'Project Information'!$D$18)","v":""},{"$f":"IF('effRT Support'!$B158=0,\"\",IF('Project Information'!$D$23=\"\",\"\",'Project Information'!$D$23))","v":""},{"$f":"IF('effRT Support'!$B158=0,\"\",IF('Project Information'!$D$24=\"\",\"\",'Project Information'!$D$24))","v":""},{"$f":"IF('effRT Support'!$B158=0,\"\",IF('Project Information'!$D$25=\"\",\"\",'Project Information'!$D$25))","v":""},{"$f":"IF('effRT Support'!$B158=0,\"\",IF('Project Information'!$E$25=\"\",\"\",'Project Information'!$E$25))","v":""},{"$f":"IF('effRT Support'!$B158=0,\"\",IF('Project Information'!$F$25=\"\",\"\",'Project Information'!$F$25))","v":""},{"$f":"IF('effRT Support'!$B158=0,\"\",IF('Project Information'!$D$27=\"\",\"Y\",\"N\"))","v":""},{"$f":"IF('effRT Support'!$B158=0,\"\",IF('Project Information'!$D$27=\"\",\"\",'Project Information'!$D$27))","v":""},{"$f":"IF('effRT Support'!$B158=0,\"\",IF('Project Information'!$D$28=\"\",\"\",'Project Information'!$D$28))","v":""},{"$f":"IF('effRT Support'!$B158=0,\"\",IF('Project Information'!$D$29=\"\",\"\",'Project Information'!$D$29))","v":""},{"$f":"IF('effRT Support'!$B158=0,\"\",IF('Project Information'!$E$29=\"\",\"\",'Project Information'!$E$29))","v":""},{"$f":"IF('effRT Support'!$B158=0,\"\",IF('Project Information'!$F$29=\"\",\"\",'Project Information'!$F$29))","v":""},{"$f":"IF('effRT Support'!$B158=0,\"\",\"\")","v":""},{"$f":"IF('effRT Support'!$B158=0,\"\",\"\")","v":""},{"$f":"IF('effRT Support'!$B158=0,\"\",IF('Project Information'!$D$36=\"\",\"\",'Project Information'!$D$36))","v":""},{"$f":"IF('effRT Support'!$B158=0,\"\",IF('Project Information'!$D$42=\"\",\"\",'Project Information'!$D$42))","v":""},{"$f":"IF('effRT Support'!$B158=0,\"\",'effRT Support'!$D158)","v":""},{"$f":"IF('effRT Support'!$B158=0,\"\",'effRT Support'!$L158)","v":""},{"$f":"IF('effRT Support'!$B158=0,\"\",'effRT Support'!$N158)","v":""},null,null,{"$f":"IF('effRT Support'!$B158=0,\"\",'effRT Support'!$P158)","v":""},{"$f":"IF('effRT Support'!$B158=0,\"\",'effRT Support'!$Q158)","v":""},{"$f":"IF('effRT Support'!$B158=0,\"\",'effRT Support'!U158)","v":""},{"$f":"IF('effRT Support'!$B158=0,\"\",'effRT Support'!V158)","v":""},{"$f":"IF('effRT Support'!$B158=0,\"\",'effRT Support'!W158)","v":""},{"$f":"IF('effRT Support'!$B158=0,\"\",'effRT Support'!X158)","v":""},{"$f":"IF('effRT Support'!$B158=0,\"\",'effRT Support'!Y158)","v":""},{"$f":"IF('effRT Support'!$B158=0,\"\",'effRT Support'!Z158*10)","v":""},{"$f":"IF('effRT Support'!$B158=0,\"\",'effRT Support'!AA158)","v":""},{"$f":"IF('effRT Support'!$B158=0,\"\",'effRT Support'!AB158)","v":""},{"$f":"IF('effRT Support'!$B158=0,\"\",'effRT Support'!AC158)","v":""},{"$f":"IF('effRT Support'!$B158=0,\"\",'effRT Support'!AD158)","v":""},{"$f":"IF('effRT Support'!$B158=0,\"\",'effRT Support'!AE158)","v":""},{"$f":"IF('effRT Support'!$B158=0,\"\",\"Hours Actual or Deemed\")","v":""},{"$f":"IF('effRT Support'!$B158=0,\"\",'effRT Support'!$F158)","v":""},{"$f":"IF('effRT Support'!$B158=0,\"\",\"Wattage Actual or Deemed\")","v":""},{"$f":"IF('effRT Support'!$B158=0,\"\",IF('Project Information'!$D$33=\"Pay For Performance\",\"Actual\",\"Deemed\"))","v":""},{"$f":"IF('effRT Support'!$B158=0,\"\",\"Cost Actual or Deemed\")","v":""},{"$f":"IF('effRT Support'!$B158=0,\"\",IF('Project Information'!$D$33=\"Pay For Performance\",\"Actual\",\"Deemed\"))","v":""},{"$f":"IF('effRT Support'!$B158=0,\"\",\"Location\")","v":""},{"$f":"IF('effRT Support'!$B158=0,\"\",'effRT Support'!$E158)","v":""},{"$f":"IF('effRT Support'!$B158=0,\"\",\"Space Type\")","v":""},{"$f":"IF('effRT Support'!$B158=0,\"\",'effRT Support'!$G158)","v":""},{"$f":"IF('effRT Support'!$B158=0,\"\",\"Existing Fixture Description\")","v":""},{"$f":"IF('effRT Support'!$B158=0,\"\",'effRT Support'!$H158)","v":""},{"$f":"IF('effRT Support'!$B158=0,\"\",\"Existing Fixture Quantity\")","v":""},{"$f":"IF('effRT Support'!$B158=0,\"\",'effRT Support'!$I158)","v":""},{"$f":"IF('effRT Support'!$B158=0,\"\",\"Existing Fixture Wattage\")","v":""},{"$f":"IF('effRT Support'!$B158=0,\"\",'effRT Support'!$J158)","v":""},{"$f":"IF('effRT Support'!$B158=0,\"\",\"Annual Hours of Operation\")","v":""},{"$f":"IF('effRT Support'!$B158=0,\"\",'effRT Support'!$K158)","v":""},{"$f":"IF('effRT Support'!$B158=0,\"\",\"Installed Fixture Description\")","v":""},{"$f":"IF('effRT Support'!$B158=0,\"\",'effRT Support'!$M158)","v":""},{"$f":"IF('effRT Support'!$B158=0,\"\",\"Installed Fixture Wattage\")","v":""},{"$f":"IF('effRT Support'!$B158=0,\"\",'effRT Support'!$O158)","v":""},{"$f":"IF('effRT Support'!$B158=0,\"\",\"Material Cost\")","v":""},{"$f":"IF('effRT Support'!$B158=0,\"\",'effRT Support'!$R158)","v":""},{"$f":"IF('effRT Support'!$B158=0,\"\",\"Labor Cost\")","v":""},{"$f":"IF('effRT Support'!$B158=0,\"\",'effRT Support'!$S158)","v":""},{"$f":"IF('effRT Support'!$B158=0,\"\",\"Ancillary Costs - Measure Specific\")","v":""},{"$f":"IF('effRT Support'!$B158=0,\"\",'effRT Support'!$T158)","v":""},{"$f":"IF('effRT Support'!$B158=0,\"\",\"Fuel Type\")","v":""},{"$f":"IF('effRT Support'!$B158=0,\"\",'Project Information'!$D$44)","v":""}]
[{"$f":"IF('effRT Support'!$B159=0,\"\",IF('Project Information'!$D$33=\"Small Business\",\"SBL\",\"CILS\"))","v":""},{"$f":"IF('effRT Support'!$B159=0,\"\",IF('Project Information'!$K$2=\"\",\"\",'Project Information'!$K$2))","v":""},null,{"$f":"IF('effRT Support'!$B159=0,\"\",IF('Project Information'!$D$46=\"\",\"\",'Project Information'!$D$46))","v":""},{"$f":"IF('effRT Support'!$B159=0,\"\",IF('Project Information'!$D$20=\"\",\"\",VLOOKUP('Project Information'!$D$20,'Other Data'!$B$159:$E$189,4,FALSE)))","v":""},{"$f":"IF('effRT Support'!$B159=0,\"\",IF('Project Information'!$D$31=\"\",\"\",'Project Information'!$D$31))","v":""},{"$f":"IF('effRT Support'!$B159=0,\"\",IF('Project Information'!$D$5=\"\",\"\",'Project Information'!$D$5))","v":""},null,null,{"$f":"IF('effRT Support'!$B159=0,\"\",IF('Project Information'!$D$20=\"\",\"\",VLOOKUP('Project Information'!$D$20,'Other Data'!$B$159:$E$189,2,FALSE)))","v":""},{"$f":"IF('effRT Support'!$B159=0,\"\",IF('Project Information'!$D$20=\"\",\"\",VLOOKUP('Project Information'!$D$20,'Other Data'!$B$159:$E$189,3,FALSE)))","v":""},{"$f":"IF('effRT Support'!$B159=0,\"\",\"Existing\")","v":""},null,{"$f":"IF('effRT Support'!$B159=0,\"\",IF('Project Information'!$D$21=\"\",\"\",'Project Information'!$D$21))","v":""},{"$f":"IF('effRT Support'!$B159=0,\"\",IF('Project Information'!$D$48=\"\",\"\",'Project Information'!$D$48))","v":""},{"$f":"IF('effRT Support'!$B159=0,\"\",\"\")","v":""},{"$f":"IF('effRT Support'!$B159=0,\"\",\"\")","v":""},{"$f":"IF('effRT Support'!$B159=0,\"\",\"\")","v":""},{"$f":"IF('effRT Support'!$B159=0,\"\",\"\")","v":""},{"$f":"IF('effRT Support'!$B159=0,\"\",IF('Project Information'!$D$13=\"\",\"\",'Project Information'!$D$13))","v":""},{"$f":"IF('effRT Support'!$B159=0,\"\",IF('Project Information'!$E$13=\"\",\"\",'Project Information'!$E$13))","v":""},{"$f":"IF('effRT Support'!$B159=0,\"\",IF('Project Information'!$D$14=\"\",\"\",'Project Information'!$D$14))","v":""},{"$f":"IF('effRT Support'!$B159=0,\"\",IF('Project Information'!$D$15=\"\",\"\",'Project Information'!$D$15))","v":""},{"$f":"IF('effRT Support'!$B159=0,\"\",IF('Project Information'!$D$16=\"\",\"\",'Project Information'!$D$16))","v":""},null,{"$f":"IF('effRT Support'!$B159=0,\"\",'Project Information'!$D$18)","v":""},{"$f":"IF('effRT Support'!$B159=0,\"\",IF('Project Information'!$D$23=\"\",\"\",'Project Information'!$D$23))","v":""},{"$f":"IF('effRT Support'!$B159=0,\"\",IF('Project Information'!$D$24=\"\",\"\",'Project Information'!$D$24))","v":""},{"$f":"IF('effRT Support'!$B159=0,\"\",IF('Project Information'!$D$25=\"\",\"\",'Project Information'!$D$25))","v":""},{"$f":"IF('effRT Support'!$B159=0,\"\",IF('Project Information'!$E$25=\"\",\"\",'Project Information'!$E$25))","v":""},{"$f":"IF('effRT Support'!$B159=0,\"\",IF('Project Information'!$F$25=\"\",\"\",'Project Information'!$F$25))","v":""},{"$f":"IF('effRT Support'!$B159=0,\"\",IF('Project Information'!$D$27=\"\",\"Y\",\"N\"))","v":""},{"$f":"IF('effRT Support'!$B159=0,\"\",IF('Project Information'!$D$27=\"\",\"\",'Project Information'!$D$27))","v":""},{"$f":"IF('effRT Support'!$B159=0,\"\",IF('Project Information'!$D$28=\"\",\"\",'Project Information'!$D$28))","v":""},{"$f":"IF('effRT Support'!$B159=0,\"\",IF('Project Information'!$D$29=\"\",\"\",'Project Information'!$D$29))","v":""},{"$f":"IF('effRT Support'!$B159=0,\"\",IF('Project Information'!$E$29=\"\",\"\",'Project Information'!$E$29))","v":""},{"$f":"IF('effRT Support'!$B159=0,\"\",IF('Project Information'!$F$29=\"\",\"\",'Project Information'!$F$29))","v":""},{"$f":"IF('effRT Support'!$B159=0,\"\",\"\")","v":""},{"$f":"IF('effRT Support'!$B159=0,\"\",\"\")","v":""},{"$f":"IF('effRT Support'!$B159=0,\"\",IF('Project Information'!$D$36=\"\",\"\",'Project Information'!$D$36))","v":""},{"$f":"IF('effRT Support'!$B159=0,\"\",IF('Project Information'!$D$42=\"\",\"\",'Project Information'!$D$42))","v":""},{"$f":"IF('effRT Support'!$B159=0,\"\",'effRT Support'!$D159)","v":""},{"$f":"IF('effRT Support'!$B159=0,\"\",'effRT Support'!$L159)","v":""},{"$f":"IF('effRT Support'!$B159=0,\"\",'effRT Support'!$N159)","v":""},null,null,{"$f":"IF('effRT Support'!$B159=0,\"\",'effRT Support'!$P159)","v":""},{"$f":"IF('effRT Support'!$B159=0,\"\",'effRT Support'!$Q159)","v":""},{"$f":"IF('effRT Support'!$B159=0,\"\",'effRT Support'!U159)","v":""},{"$f":"IF('effRT Support'!$B159=0,\"\",'effRT Support'!V159)","v":""},{"$f":"IF('effRT Support'!$B159=0,\"\",'effRT Support'!W159)","v":""},{"$f":"IF('effRT Support'!$B159=0,\"\",'effRT Support'!X159)","v":""},{"$f":"IF('effRT Support'!$B159=0,\"\",'effRT Support'!Y159)","v":""},{"$f":"IF('effRT Support'!$B159=0,\"\",'effRT Support'!Z159*10)","v":""},{"$f":"IF('effRT Support'!$B159=0,\"\",'effRT Support'!AA159)","v":""},{"$f":"IF('effRT Support'!$B159=0,\"\",'effRT Support'!AB159)","v":""},{"$f":"IF('effRT Support'!$B159=0,\"\",'effRT Support'!AC159)","v":""},{"$f":"IF('effRT Support'!$B159=0,\"\",'effRT Support'!AD159)","v":""},{"$f":"IF('effRT Support'!$B159=0,\"\",'effRT Support'!AE159)","v":""},{"$f":"IF('effRT Support'!$B159=0,\"\",\"Hours Actual or Deemed\")","v":""},{"$f":"IF('effRT Support'!$B159=0,\"\",'effRT Support'!$F159)","v":""},{"$f":"IF('effRT Support'!$B159=0,\"\",\"Wattage Actual or Deemed\")","v":""},{"$f":"IF('effRT Support'!$B159=0,\"\",IF('Project Information'!$D$33=\"Pay For Performance\",\"Actual\",\"Deemed\"))","v":""},{"$f":"IF('effRT Support'!$B159=0,\"\",\"Cost Actual or Deemed\")","v":""},{"$f":"IF('effRT Support'!$B159=0,\"\",IF('Project Information'!$D$33=\"Pay For Performance\",\"Actual\",\"Deemed\"))","v":""},{"$f":"IF('effRT Support'!$B159=0,\"\",\"Location\")","v":""},{"$f":"IF('effRT Support'!$B159=0,\"\",'effRT Support'!$E159)","v":""},{"$f":"IF('effRT Support'!$B159=0,\"\",\"Space Type\")","v":""},{"$f":"IF('effRT Support'!$B159=0,\"\",'effRT Support'!$G159)","v":""},{"$f":"IF('effRT Support'!$B159=0,\"\",\"Existing Fixture Description\")","v":""},{"$f":"IF('effRT Support'!$B159=0,\"\",'effRT Support'!$H159)","v":""},{"$f":"IF('effRT Support'!$B159=0,\"\",\"Existing Fixture Quantity\")","v":""},{"$f":"IF('effRT Support'!$B159=0,\"\",'effRT Support'!$I159)","v":""},{"$f":"IF('effRT Support'!$B159=0,\"\",\"Existing Fixture Wattage\")","v":""},{"$f":"IF('effRT Support'!$B159=0,\"\",'effRT Support'!$J159)","v":""},{"$f":"IF('effRT Support'!$B159=0,\"\",\"Annual Hours of Operation\")","v":""},{"$f":"IF('effRT Support'!$B159=0,\"\",'effRT Support'!$K159)","v":""},{"$f":"IF('effRT Support'!$B159=0,\"\",\"Installed Fixture Description\")","v":""},{"$f":"IF('effRT Support'!$B159=0,\"\",'effRT Support'!$M159)","v":""},{"$f":"IF('effRT Support'!$B159=0,\"\",\"Installed Fixture Wattage\")","v":""},{"$f":"IF('effRT Support'!$B159=0,\"\",'effRT Support'!$O159)","v":""},{"$f":"IF('effRT Support'!$B159=0,\"\",\"Material Cost\")","v":""},{"$f":"IF('effRT Support'!$B159=0,\"\",'effRT Support'!$R159)","v":""},{"$f":"IF('effRT Support'!$B159=0,\"\",\"Labor Cost\")","v":""},{"$f":"IF('effRT Support'!$B159=0,\"\",'effRT Support'!$S159)","v":""},{"$f":"IF('effRT Support'!$B159=0,\"\",\"Ancillary Costs - Measure Specific\")","v":""},{"$f":"IF('effRT Support'!$B159=0,\"\",'effRT Support'!$T159)","v":""},{"$f":"IF('effRT Support'!$B159=0,\"\",\"Fuel Type\")","v":""},{"$f":"IF('effRT Support'!$B159=0,\"\",'Project Information'!$D$44)","v":""},{"$f":"IF('effRT Support'!$B159=0,\"\",\"Installed Fixture Quantity\")","v":""},{"$f":"IF('effRT Support'!$B159=0,\"\",'effRT Support'!P158)","v":""}]
[{"$f":"IF('effRT Support'!$B160=0,\"\",IF('Project Information'!$D$33=\"Small Business\",\"SBL\",\"CILS\"))","v":""},{"$f":"IF('effRT Support'!$B160=0,\"\",IF('Project Information'!$K$2=\"\",\"\",'Project Information'!$K$2))","v":""},null,{"$f":"IF('effRT Support'!$B160=0,\"\",IF('Project Information'!$D$46=\"\",\"\",'Project Information'!$D$46))","v":""},{"$f":"IF('effRT Support'!$B160=0,\"\",IF('Project Information'!$D$20=\"\",\"\",VLOOKUP('Project Information'!$D$20,'Other Data'!$B$159:$E$189,4,FALSE)))","v":""},{"$f":"IF('effRT Support'!$B160=0,\"\",IF('Project Information'!$D$31=\"\",\"\",'Project Information'!$D$31))","v":""},{"$f":"IF('effRT Support'!$B160=0,\"\",IF('Project Information'!$D$5=\"\",\"\",'Project Information'!$D$5))","v":""},null,null,{"$f":"IF('effRT Support'!$B160=0,\"\",IF('Project Information'!$D$20=\"\",\"\",VLOOKUP('Project Information'!$D$20,'Other Data'!$B$159:$E$189,2,FALSE)))","v":""},{"$f":"IF('effRT Support'!$B160=0,\"\",IF('Project Information'!$D$20=\"\",\"\",VLOOKUP('Project Information'!$D$20,'Other Data'!$B$159:$E$189,3,FALSE)))","v":""},{"$f":"IF('effRT Support'!$B160=0,\"\",\"Existing\")","v":""},null,{"$f":"IF('effRT Support'!$B160=0,\"\",IF('Project Information'!$D$21=\"\",\"\",'Project Information'!$D$21))","v":""},{"$f":"IF('effRT Support'!$B160=0,\"\",IF('Project Information'!$D$48=\"\",\"\",'Project Information'!$D$48))","v":""},{"$f":"IF('effRT Support'!$B160=0,\"\",\"\")","v":""},{"$f":"IF('effRT Support'!$B160=0,\"\",\"\")","v":""},{"$f":"IF('effRT Support'!$B160=0,\"\",\"\")","v":""},{"$f":"IF('effRT Support'!$B160=0,\"\",\"\")","v":""},{"$f":"IF('effRT Support'!$B160=0,\"\",IF('Project Information'!$D$13=\"\",\"\",'Project Information'!$D$13))","v":""},{"$f":"IF('effRT Support'!$B160=0,\"\",IF('Project Information'!$E$13=\"\",\"\",'Project Information'!$E$13))","v":""},{"$f":"IF('effRT Support'!$B160=0,\"\",IF('Project Information'!$D$14=\"\",\"\",'Project Information'!$D$14))","v":""},{"$f":"IF('effRT Support'!$B160=0,\"\",IF('Project Information'!$D$15=\"\",\"\",'Project Information'!$D$15))","v":""},{"$f":"IF('effRT Support'!$B160=0,\"\",IF('Project Information'!$D$16=\"\",\"\",'Project Information'!$D$16))","v":""},null,{"$f":"IF('effRT Support'!$B160=0,\"\",'Project Information'!$D$18)","v":""},{"$f":"IF('effRT Support'!$B160=0,\"\",IF('Project Information'!$D$23=\"\",\"\",'Project Information'!$D$23))","v":""},{"$f":"IF('effRT Support'!$B160=0,\"\",IF('Project Information'!$D$24=\"\",\"\",'Project Information'!$D$24))","v":""},{"$f":"IF('effRT Support'!$B160=0,\"\",IF('Project Information'!$D$25=\"\",\"\",'Project Information'!$D$25))","v":""},{"$f":"IF('effRT Support'!$B160=0,\"\",IF('Project Information'!$E$25=\"\",\"\",'Project Information'!$E$25))","v":""},{"$f":"IF('effRT Support'!$B160=0,\"\",IF('Project Information'!$F$25=\"\",\"\",'Project Information'!$F$25))","v":""},{"$f":"IF('effRT Support'!$B160=0,\"\",IF('Project Information'!$D$27=\"\",\"Y\",\"N\"))","v":""},{"$f":"IF('effRT Support'!$B160=0,\"\",IF('Project Information'!$D$27=\"\",\"\",'Project Information'!$D$27))","v":""},{"$f":"IF('effRT Support'!$B160=0,\"\",IF('Project Information'!$D$28=\"\",\"\",'Project Information'!$D$28))","v":""},{"$f":"IF('effRT Support'!$B160=0,\"\",IF('Project Information'!$D$29=\"\",\"\",'Project Information'!$D$29))","v":""},{"$f":"IF('effRT Support'!$B160=0,\"\",IF('Project Information'!$E$29=\"\",\"\",'Project Information'!$E$29))","v":""},{"$f":"IF('effRT Support'!$B160=0,\"\",IF('Project Information'!$F$29=\"\",\"\",'Project Information'!$F$29))","v":""},{"$f":"IF('effRT Support'!$B160=0,\"\",\"\")","v":""},{"$f":"IF('effRT Support'!$B160=0,\"\",\"\")","v":""},{"$f":"IF('effRT Support'!$B160=0,\"\",IF('Project Information'!$D$36=\"\",\"\",'Project Information'!$D$36))","v":""},{"$f":"IF('effRT Support'!$B160=0,\"\",IF('Project Information'!$D$42=\"\",\"\",'Project Information'!$D$42))","v":""},{"$f":"IF('effRT Support'!$B160=0,\"\",'effRT Support'!$D160)","v":""},{"$f":"IF('effRT Support'!$B160=0,\"\",'effRT Support'!$L160)","v":""},{"$f":"IF('effRT Support'!$B160=0,\"\",'effRT Support'!$N160)","v":""},null,null,{"$f":"IF('effRT Support'!$B160=0,\"\",'effRT Support'!$P160)","v":""},{"$f":"IF('effRT Support'!$B160=0,\"\",'effRT Support'!$Q160)","v":""},{"$f":"IF('effRT Support'!$B160=0,\"\",'effRT Support'!U160)","v":""},{"$f":"IF('effRT Support'!$B160=0,\"\",'effRT Support'!V160)","v":""},{"$f":"IF('effRT Support'!$B160=0,\"\",'effRT Support'!W160)","v":""},{"$f":"IF('effRT Support'!$B160=0,\"\",'effRT Support'!X160)","v":""},{"$f":"IF('effRT Support'!$B160=0,\"\",'effRT Support'!Y160)","v":""},{"$f":"IF('effRT Support'!$B160=0,\"\",'effRT Support'!Z160*10)","v":""},{"$f":"IF('effRT Support'!$B160=0,\"\",'effRT Support'!AA160)","v":""},{"$f":"IF('effRT Support'!$B160=0,\"\",'effRT Support'!AB160)","v":""},{"$f":"IF('effRT Support'!$B160=0,\"\",'effRT Support'!AC160)","v":""},{"$f":"IF('effRT Support'!$B160=0,\"\",'effRT Support'!AD160)","v":""},{"$f":"IF('effRT Support'!$B160=0,\"\",'effRT Support'!AE160)","v":""},{"$f":"IF('effRT Support'!$B160=0,\"\",\"Hours Actual or Deemed\")","v":""},{"$f":"IF('effRT Support'!$B160=0,\"\",'effRT Support'!$F160)","v":""},{"$f":"IF('effRT Support'!$B160=0,\"\",\"Wattage Actual or Deemed\")","v":""},{"$f":"IF('effRT Support'!$B160=0,\"\",IF('Project Information'!$D$33=\"Pay For Performance\",\"Actual\",\"Deemed\"))","v":""},{"$f":"IF('effRT Support'!$B160=0,\"\",\"Cost Actual or Deemed\")","v":""},{"$f":"IF('effRT Support'!$B160=0,\"\",IF('Project Information'!$D$33=\"Pay For Performance\",\"Actual\",\"Deemed\"))","v":""},{"$f":"IF('effRT Support'!$B160=0,\"\",\"Location\")","v":""},{"$f":"IF('effRT Support'!$B160=0,\"\",'effRT Support'!$E160)","v":""},{"$f":"IF('effRT Support'!$B160=0,\"\",\"Space Type\")","v":""},{"$f":"IF('effRT Support'!$B160=0,\"\",'effRT Support'!$G160)","v":""},{"$f":"IF('effRT Support'!$B160=0,\"\",\"Existing Fixture Description\")","v":""},{"$f":"IF('effRT Support'!$B160=0,\"\",'effRT Support'!$H160)","v":""},{"$f":"IF('effRT Support'!$B160=0,\"\",\"Existing Fixture Quantity\")","v":""},{"$f":"IF('effRT Support'!$B160=0,\"\",'effRT Support'!$I160)","v":""},{"$f":"IF('effRT Support'!$B160=0,\"\",\"Existing Fixture Wattage\")","v":""},{"$f":"IF('effRT Support'!$B160=0,\"\",'effRT Support'!$J160)","v":""},{"$f":"IF('effRT Support'!$B160=0,\"\",\"Annual Hours of Operation\")","v":""},{"$f":"IF('effRT Support'!$B160=0,\"\",'effRT Support'!$K160)","v":""},{"$f":"IF('effRT Support'!$B160=0,\"\",\"Installed Fixture Description\")","v":""},{"$f":"IF('effRT Support'!$B160=0,\"\",'effRT Support'!$M160)","v":""},{"$f":"IF('effRT Support'!$B160=0,\"\",\"Installed Fixture Wattage\")","v":""},{"$f":"IF('effRT Support'!$B160=0,\"\",'effRT Support'!$O160)","v":""},{"$f":"IF('effRT Support'!$B160=0,\"\",\"Material Cost\")","v":""},{"$f":"IF('effRT Support'!$B160=0,\"\",'effRT Support'!$R160)","v":""},{"$f":"IF('effRT Support'!$B160=0,\"\",\"Labor Cost\")","v":""},{"$f":"IF('effRT Support'!$B160=0,\"\",'effRT Support'!$S160)","v":""},{"$f":"IF('effRT Support'!$B160=0,\"\",\"Ancillary Costs - Measure Specific\")","v":""},{"$f":"IF('effRT Support'!$B160=0,\"\",'effRT Support'!$T160)","v":""},{"$f":"IF('effRT Support'!$B160=0,\"\",\"Fuel Type\")","v":""},{"$f":"IF('effRT Support'!$B160=0,\"\",'Project Information'!$D$44)","v":""}]
[{"$f":"IF('effRT Support'!$B161=0,\"\",IF('Project Information'!$D$33=\"Small Business\",\"SBL\",\"CILS\"))","v":""},{"$f":"IF('effRT Support'!$B161=0,\"\",IF('Project Information'!$K$2=\"\",\"\",'Project Information'!$K$2))","v":""},null,{"$f":"IF('effRT Support'!$B161=0,\"\",IF('Project Information'!$D$46=\"\",\"\",'Project Information'!$D$46))","v":""},{"$f":"IF('effRT Support'!$B161=0,\"\",IF('Project Information'!$D$20=\"\",\"\",VLOOKUP('Project Information'!$D$20,'Other Data'!$B$159:$E$189,4,FALSE)))","v":""},{"$f":"IF('effRT Support'!$B161=0,\"\",IF('Project Information'!$D$31=\"\",\"\",'Project Information'!$D$31))","v":""},{"$f":"IF('effRT Support'!$B161=0,\"\",IF('Project Information'!$D$5=\"\",\"\",'Project Information'!$D$5))","v":""},null,null,{"$f":"IF('effRT Support'!$B161=0,\"\",IF('Project Information'!$D$20=\"\",\"\",VLOOKUP('Project Information'!$D$20,'Other Data'!$B$159:$E$189,2,FALSE)))","v":""},{"$f":"IF('effRT Support'!$B161=0,\"\",IF('Project Information'!$D$20=\"\",\"\",VLOOKUP('Project Information'!$D$20,'Other Data'!$B$159:$E$189,3,FALSE)))","v":""},{"$f":"IF('effRT Support'!$B161=0,\"\",\"Existing\")","v":""},null,{"$f":"IF('effRT Support'!$B161=0,\"\",IF('Project Information'!$D$21=\"\",\"\",'Project Information'!$D$21))","v":""},{"$f":"IF('effRT Support'!$B161=0,\"\",IF('Project Information'!$D$48=\"\",\"\",'Project Information'!$D$48))","v":""},{"$f":"IF('effRT Support'!$B161=0,\"\",\"\")","v":""},{"$f":"IF('effRT Support'!$B161=0,\"\",\"\")","v":""},{"$f":"IF('effRT Support'!$B161=0,\"\",\"\")","v":""},{"$f":"IF('effRT Support'!$B161=0,\"\",\"\")","v":""},{"$f":"IF('effRT Support'!$B161=0,\"\",IF('Project Information'!$D$13=\"\",\"\",'Project Information'!$D$13))","v":""},{"$f":"IF('effRT Support'!$B161=0,\"\",IF('Project Information'!$E$13=\"\",\"\",'Project Information'!$E$13))","v":""},{"$f":"IF('effRT Support'!$B161=0,\"\",IF('Project Information'!$D$14=\"\",\"\",'Project Information'!$D$14))","v":""},{"$f":"IF('effRT Support'!$B161=0,\"\",IF('Project Information'!$D$15=\"\",\"\",'Project Information'!$D$15))","v":""},{"$f":"IF('effRT Support'!$B161=0,\"\",IF('Project Information'!$D$16=\"\",\"\",'Project Information'!$D$16))","v":""},null,{"$f":"IF('effRT Support'!$B161=0,\"\",'Project Information'!$D$18)","v":""},{"$f":"IF('effRT Support'!$B161=0,\"\",IF('Project Information'!$D$23=\"\",\"\",'Project Information'!$D$23))","v":""},{"$f":"IF('effRT Support'!$B161=0,\"\",IF('Project Information'!$D$24=\"\",\"\",'Project Information'!$D$24))","v":""},{"$f":"IF('effRT Support'!$B161=0,\"\",IF('Project Information'!$D$25=\"\",\"\",'Project Information'!$D$25))","v":""},{"$f":"IF('effRT Support'!$B161=0,\"\",IF('Project Information'!$E$25=\"\",\"\",'Project Information'!$E$25))","v":""},{"$f":"IF('effRT Support'!$B161=0,\"\",IF('Project Information'!$F$25=\"\",\"\",'Project Information'!$F$25))","v":""},{"$f":"IF('effRT Support'!$B161=0,\"\",IF('Project Information'!$D$27=\"\",\"Y\",\"N\"))","v":""},{"$f":"IF('effRT Support'!$B161=0,\"\",IF('Project Information'!$D$27=\"\",\"\",'Project Information'!$D$27))","v":""},{"$f":"IF('effRT Support'!$B161=0,\"\",IF('Project Information'!$D$28=\"\",\"\",'Project Information'!$D$28))","v":""},{"$f":"IF('effRT Support'!$B161=0,\"\",IF('Project Information'!$D$29=\"\",\"\",'Project Information'!$D$29))","v":""},{"$f":"IF('effRT Support'!$B161=0,\"\",IF('Project Information'!$E$29=\"\",\"\",'Project Information'!$E$29))","v":""},{"$f":"IF('effRT Support'!$B161=0,\"\",IF('Project Information'!$F$29=\"\",\"\",'Project Information'!$F$29))","v":""},{"$f":"IF('effRT Support'!$B161=0,\"\",\"\")","v":""},{"$f":"IF('effRT Support'!$B161=0,\"\",\"\")","v":""},{"$f":"IF('effRT Support'!$B161=0,\"\",IF('Project Information'!$D$36=\"\",\"\",'Project Information'!$D$36))","v":""},{"$f":"IF('effRT Support'!$B161=0,\"\",IF('Project Information'!$D$42=\"\",\"\",'Project Information'!$D$42))","v":""},{"$f":"IF('effRT Support'!$B161=0,\"\",'effRT Support'!$D161)","v":""},{"$f":"IF('effRT Support'!$B161=0,\"\",'effRT Support'!$L161)","v":""},{"$f":"IF('effRT Support'!$B161=0,\"\",'effRT Support'!$N161)","v":""},null,null,{"$f":"IF('effRT Support'!$B161=0,\"\",'effRT Support'!$P161)","v":""},{"$f":"IF('effRT Support'!$B161=0,\"\",'effRT Support'!$Q161)","v":""},{"$f":"IF('effRT Support'!$B161=0,\"\",'effRT Support'!U161)","v":""},{"$f":"IF('effRT Support'!$B161=0,\"\",'effRT Support'!V161)","v":""},{"$f":"IF('effRT Support'!$B161=0,\"\",'effRT Support'!W161)","v":""},{"$f":"IF('effRT Support'!$B161=0,\"\",'effRT Support'!X161)","v":""},{"$f":"IF('effRT Support'!$B161=0,\"\",'effRT Support'!Y161)","v":""},{"$f":"IF('effRT Support'!$B161=0,\"\",'effRT Support'!Z161*10)","v":""},{"$f":"IF('effRT Support'!$B161=0,\"\",'effRT Support'!AA161)","v":""},{"$f":"IF('effRT Support'!$B161=0,\"\",'effRT Support'!AB161)","v":""},{"$f":"IF('effRT Support'!$B161=0,\"\",'effRT Support'!AC161)","v":""},{"$f":"IF('effRT Support'!$B161=0,\"\",'effRT Support'!AD161)","v":""},{"$f":"IF('effRT Support'!$B161=0,\"\",'effRT Support'!AE161)","v":""},{"$f":"IF('effRT Support'!$B161=0,\"\",\"Hours Actual or Deemed\")","v":""},{"$f":"IF('effRT Support'!$B161=0,\"\",'effRT Support'!$F161)","v":""},{"$f":"IF('effRT Support'!$B161=0,\"\",\"Wattage Actual or Deemed\")","v":""},{"$f":"IF('effRT Support'!$B161=0,\"\",IF('Project Information'!$D$33=\"Pay For Performance\",\"Actual\",\"Deemed\"))","v":""},{"$f":"IF('effRT Support'!$B161=0,\"\",\"Cost Actual or Deemed\")","v":""},{"$f":"IF('effRT Support'!$B161=0,\"\",IF('Project Information'!$D$33=\"Pay For Performance\",\"Actual\",\"Deemed\"))","v":""},{"$f":"IF('effRT Support'!$B161=0,\"\",\"Location\")","v":""},{"$f":"IF('effRT Support'!$B161=0,\"\",'effRT Support'!$E161)","v":""},{"$f":"IF('effRT Support'!$B161=0,\"\",\"Space Type\")","v":""},{"$f":"IF('effRT Support'!$B161=0,\"\",'effRT Support'!$G161)","v":""},{"$f":"IF('effRT Support'!$B161=0,\"\",\"Existing Fixture Description\")","v":""},{"$f":"IF('effRT Support'!$B161=0,\"\",'effRT Support'!$H161)","v":""},{"$f":"IF('effRT Support'!$B161=0,\"\",\"Existing Fixture Quantity\")","v":""},{"$f":"IF('effRT Support'!$B161=0,\"\",'effRT Support'!$I161)","v":""},{"$f":"IF('effRT Support'!$B161=0,\"\",\"Existing Fixture Wattage\")","v":""},{"$f":"IF('effRT Support'!$B161=0,\"\",'effRT Support'!$J161)","v":""},{"$f":"IF('effRT Support'!$B161=0,\"\",\"Annual Hours of Operation\")","v":""},{"$f":"IF('effRT Support'!$B161=0,\"\",'effRT Support'!$K161)","v":""},{"$f":"IF('effRT Support'!$B161=0,\"\",\"Installed Fixture Description\")","v":""},{"$f":"IF('effRT Support'!$B161=0,\"\",'effRT Support'!$M161)","v":""},{"$f":"IF('effRT Support'!$B161=0,\"\",\"Installed Fixture Wattage\")","v":""},{"$f":"IF('effRT Support'!$B161=0,\"\",'effRT Support'!$O161)","v":""},{"$f":"IF('effRT Support'!$B161=0,\"\",\"Material Cost\")","v":""},{"$f":"IF('effRT Support'!$B161=0,\"\",'effRT Support'!$R161)","v":""},{"$f":"IF('effRT Support'!$B161=0,\"\",\"Labor Cost\")","v":""},{"$f":"IF('effRT Support'!$B161=0,\"\",'effRT Support'!$S161)","v":""},{"$f":"IF('effRT Support'!$B161=0,\"\",\"Ancillary Costs - Measure Specific\")","v":""},{"$f":"IF('effRT Support'!$B161=0,\"\",'effRT Support'!$T161)","v":""},{"$f":"IF('effRT Support'!$B161=0,\"\",\"Fuel Type\")","v":""},{"$f":"IF('effRT Support'!$B161=0,\"\",'Project Information'!$D$44)","v":""},{"$f":"IF('effRT Support'!$B161=0,\"\",\"Installed Fixture Quantity\")","v":""},{"$f":"IF('effRT Support'!$B161=0,\"\",'effRT Support'!P160)","v":""}]
[{"$f":"IF('effRT Support'!$B162=0,\"\",IF('Project Information'!$D$33=\"Small Business\",\"SBL\",\"CILS\"))","v":""},{"$f":"IF('effRT Support'!$B162=0,\"\",IF('Project Information'!$K$2=\"\",\"\",'Project Information'!$K$2))","v":""},null,{"$f":"IF('effRT Support'!$B162=0,\"\",IF('Project Information'!$D$46=\"\",\"\",'Project Information'!$D$46))","v":""},{"$f":"IF('effRT Support'!$B162=0,\"\",IF('Project Information'!$D$20=\"\",\"\",VLOOKUP('Project Information'!$D$20,'Other Data'!$B$159:$E$189,4,FALSE)))","v":""},{"$f":"IF('effRT Support'!$B162=0,\"\",IF('Project Information'!$D$31=\"\",\"\",'Project Information'!$D$31))","v":""},{"$f":"IF('effRT Support'!$B162=0,\"\",IF('Project Information'!$D$5=\"\",\"\",'Project Information'!$D$5))","v":""},null,null,{"$f":"IF('effRT Support'!$B162=0,\"\",IF('Project Information'!$D$20=\"\",\"\",VLOOKUP('Project Information'!$D$20,'Other Data'!$B$159:$E$189,2,FALSE)))","v":""},{"$f":"IF('effRT Support'!$B162=0,\"\",IF('Project Information'!$D$20=\"\",\"\",VLOOKUP('Project Information'!$D$20,'Other Data'!$B$159:$E$189,3,FALSE)))","v":""},{"$f":"IF('effRT Support'!$B162=0,\"\",\"Existing\")","v":""},null,{"$f":"IF('effRT Support'!$B162=0,\"\",IF('Project Information'!$D$21=\"\",\"\",'Project Information'!$D$21))","v":""},{"$f":"IF('effRT Support'!$B162=0,\"\",IF('Project Information'!$D$48=\"\",\"\",'Project Information'!$D$48))","v":""},{"$f":"IF('effRT Support'!$B162=0,\"\",\"\")","v":""},{"$f":"IF('effRT Support'!$B162=0,\"\",\"\")","v":""},{"$f":"IF('effRT Support'!$B162=0,\"\",\"\")","v":""},{"$f":"IF('effRT Support'!$B162=0,\"\",\"\")","v":""},{"$f":"IF('effRT Support'!$B162=0,\"\",IF('Project Information'!$D$13=\"\",\"\",'Project Information'!$D$13))","v":""},{"$f":"IF('effRT Support'!$B162=0,\"\",IF('Project Information'!$E$13=\"\",\"\",'Project Information'!$E$13))","v":""},{"$f":"IF('effRT Support'!$B162=0,\"\",IF('Project Information'!$D$14=\"\",\"\",'Project Information'!$D$14))","v":""},{"$f":"IF('effRT Support'!$B162=0,\"\",IF('Project Information'!$D$15=\"\",\"\",'Project Information'!$D$15))","v":""},{"$f":"IF('effRT Support'!$B162=0,\"\",IF('Project Information'!$D$16=\"\",\"\",'Project Information'!$D$16))","v":""},null,{"$f":"IF('effRT Support'!$B162=0,\"\",'Project Information'!$D$18)","v":""},{"$f":"IF('effRT Support'!$B162=0,\"\",IF('Project Information'!$D$23=\"\",\"\",'Project Information'!$D$23))","v":""},{"$f":"IF('effRT Support'!$B162=0,\"\",IF('Project Information'!$D$24=\"\",\"\",'Project Information'!$D$24))","v":""},{"$f":"IF('effRT Support'!$B162=0,\"\",IF('Project Information'!$D$25=\"\",\"\",'Project Information'!$D$25))","v":""},{"$f":"IF('effRT Support'!$B162=0,\"\",IF('Project Information'!$E$25=\"\",\"\",'Project Information'!$E$25))","v":""},{"$f":"IF('effRT Support'!$B162=0,\"\",IF('Project Information'!$F$25=\"\",\"\",'Project Information'!$F$25))","v":""},{"$f":"IF('effRT Support'!$B162=0,\"\",IF('Project Information'!$D$27=\"\",\"Y\",\"N\"))","v":""},{"$f":"IF('effRT Support'!$B162=0,\"\",IF('Project Information'!$D$27=\"\",\"\",'Project Information'!$D$27))","v":""},{"$f":"IF('effRT Support'!$B162=0,\"\",IF('Project Information'!$D$28=\"\",\"\",'Project Information'!$D$28))","v":""},{"$f":"IF('effRT Support'!$B162=0,\"\",IF('Project Information'!$D$29=\"\",\"\",'Project Information'!$D$29))","v":""},{"$f":"IF('effRT Support'!$B162=0,\"\",IF('Project Information'!$E$29=\"\",\"\",'Project Information'!$E$29))","v":""},{"$f":"IF('effRT Support'!$B162=0,\"\",IF('Project Information'!$F$29=\"\",\"\",'Project Information'!$F$29))","v":""},{"$f":"IF('effRT Support'!$B162=0,\"\",\"\")","v":""},{"$f":"IF('effRT Support'!$B162=0,\"\",\"\")","v":""},{"$f":"IF('effRT Support'!$B162=0,\"\",IF('Project Information'!$D$36=\"\",\"\",'Project Information'!$D$36))","v":""},{"$f":"IF('effRT Support'!$B162=0,\"\",IF('Project Information'!$D$42=\"\",\"\",'Project Information'!$D$42))","v":""},{"$f":"IF('effRT Support'!$B162=0,\"\",'effRT Support'!$D162)","v":""},{"$f":"IF('effRT Support'!$B162=0,\"\",'effRT Support'!$L162)","v":""},{"$f":"IF('effRT Support'!$B162=0,\"\",'effRT Support'!$N162)","v":""},null,null,{"$f":"IF('effRT Support'!$B162=0,\"\",'effRT Support'!$P162)","v":""},{"$f":"IF('effRT Support'!$B162=0,\"\",'effRT Support'!$Q162)","v":""},{"$f":"IF('effRT Support'!$B162=0,\"\",'effRT Support'!U162)","v":""},{"$f":"IF('effRT Support'!$B162=0,\"\",'effRT Support'!V162)","v":""},{"$f":"IF('effRT Support'!$B162=0,\"\",'effRT Support'!W162)","v":""},{"$f":"IF('effRT Support'!$B162=0,\"\",'effRT Support'!X162)","v":""},{"$f":"IF('effRT Support'!$B162=0,\"\",'effRT Support'!Y162)","v":""},{"$f":"IF('effRT Support'!$B162=0,\"\",'effRT Support'!Z162*10)","v":""},{"$f":"IF('effRT Support'!$B162=0,\"\",'effRT Support'!AA162)","v":""},{"$f":"IF('effRT Support'!$B162=0,\"\",'effRT Support'!AB162)","v":""},{"$f":"IF('effRT Support'!$B162=0,\"\",'effRT Support'!AC162)","v":""},{"$f":"IF('effRT Support'!$B162=0,\"\",'effRT Support'!AD162)","v":""},{"$f":"IF('effRT Support'!$B162=0,\"\",'effRT Support'!AE162)","v":""},{"$f":"IF('effRT Support'!$B162=0,\"\",\"Hours Actual or Deemed\")","v":""},{"$f":"IF('effRT Support'!$B162=0,\"\",'effRT Support'!$F162)","v":""},{"$f":"IF('effRT Support'!$B162=0,\"\",\"Wattage Actual or Deemed\")","v":""},{"$f":"IF('effRT Support'!$B162=0,\"\",IF('Project Information'!$D$33=\"Pay For Performance\",\"Actual\",\"Deemed\"))","v":""},{"$f":"IF('effRT Support'!$B162=0,\"\",\"Cost Actual or Deemed\")","v":""},{"$f":"IF('effRT Support'!$B162=0,\"\",IF('Project Information'!$D$33=\"Pay For Performance\",\"Actual\",\"Deemed\"))","v":""},{"$f":"IF('effRT Support'!$B162=0,\"\",\"Location\")","v":""},{"$f":"IF('effRT Support'!$B162=0,\"\",'effRT Support'!$E162)","v":""},{"$f":"IF('effRT Support'!$B162=0,\"\",\"Space Type\")","v":""},{"$f":"IF('effRT Support'!$B162=0,\"\",'effRT Support'!$G162)","v":""},{"$f":"IF('effRT Support'!$B162=0,\"\",\"Existing Fixture Description\")","v":""},{"$f":"IF('effRT Support'!$B162=0,\"\",'effRT Support'!$H162)","v":""},{"$f":"IF('effRT Support'!$B162=0,\"\",\"Existing Fixture Quantity\")","v":""},{"$f":"IF('effRT Support'!$B162=0,\"\",'effRT Support'!$I162)","v":""},{"$f":"IF('effRT Support'!$B162=0,\"\",\"Existing Fixture Wattage\")","v":""},{"$f":"IF('effRT Support'!$B162=0,\"\",'effRT Support'!$J162)","v":""},{"$f":"IF('effRT Support'!$B162=0,\"\",\"Annual Hours of Operation\")","v":""},{"$f":"IF('effRT Support'!$B162=0,\"\",'effRT Support'!$K162)","v":""},{"$f":"IF('effRT Support'!$B162=0,\"\",\"Installed Fixture Description\")","v":""},{"$f":"IF('effRT Support'!$B162=0,\"\",'effRT Support'!$M162)","v":""},{"$f":"IF('effRT Support'!$B162=0,\"\",\"Installed Fixture Wattage\")","v":""},{"$f":"IF('effRT Support'!$B162=0,\"\",'effRT Support'!$O162)","v":""},{"$f":"IF('effRT Support'!$B162=0,\"\",\"Material Cost\")","v":""},{"$f":"IF('effRT Support'!$B162=0,\"\",'effRT Support'!$R162)","v":""},{"$f":"IF('effRT Support'!$B162=0,\"\",\"Labor Cost\")","v":""},{"$f":"IF('effRT Support'!$B162=0,\"\",'effRT Support'!$S162)","v":""},{"$f":"IF('effRT Support'!$B162=0,\"\",\"Ancillary Costs - Measure Specific\")","v":""},{"$f":"IF('effRT Support'!$B162=0,\"\",'effRT Support'!$T162)","v":""},{"$f":"IF('effRT Support'!$B162=0,\"\",\"Fuel Type\")","v":""},{"$f":"IF('effRT Support'!$B162=0,\"\",'Project Information'!$D$44)","v":""}]
[{"$f":"IF('effRT Support'!$B163=0,\"\",IF('Project Information'!$D$33=\"Small Business\",\"SBL\",\"CILS\"))","v":""},{"$f":"IF('effRT Support'!$B163=0,\"\",IF('Project Information'!$K$2=\"\",\"\",'Project Information'!$K$2))","v":""},null,{"$f":"IF('effRT Support'!$B163=0,\"\",IF('Project Information'!$D$46=\"\",\"\",'Project Information'!$D$46))","v":""},{"$f":"IF('effRT Support'!$B163=0,\"\",IF('Project Information'!$D$20=\"\",\"\",VLOOKUP('Project Information'!$D$20,'Other Data'!$B$159:$E$189,4,FALSE)))","v":""},{"$f":"IF('effRT Support'!$B163=0,\"\",IF('Project Information'!$D$31=\"\",\"\",'Project Information'!$D$31))","v":""},{"$f":"IF('effRT Support'!$B163=0,\"\",IF('Project Information'!$D$5=\"\",\"\",'Project Information'!$D$5))","v":""},null,null,{"$f":"IF('effRT Support'!$B163=0,\"\",IF('Project Information'!$D$20=\"\",\"\",VLOOKUP('Project Information'!$D$20,'Other Data'!$B$159:$E$189,2,FALSE)))","v":""},{"$f":"IF('effRT Support'!$B163=0,\"\",IF('Project Information'!$D$20=\"\",\"\",VLOOKUP('Project Information'!$D$20,'Other Data'!$B$159:$E$189,3,FALSE)))","v":""},{"$f":"IF('effRT Support'!$B163=0,\"\",\"Existing\")","v":""},null,{"$f":"IF('effRT Support'!$B163=0,\"\",IF('Project Information'!$D$21=\"\",\"\",'Project Information'!$D$21))","v":""},{"$f":"IF('effRT Support'!$B163=0,\"\",IF('Project Information'!$D$48=\"\",\"\",'Project Information'!$D$48))","v":""},{"$f":"IF('effRT Support'!$B163=0,\"\",\"\")","v":""},{"$f":"IF('effRT Support'!$B163=0,\"\",\"\")","v":""},{"$f":"IF('effRT Support'!$B163=0,\"\",\"\")","v":""},{"$f":"IF('effRT Support'!$B163=0,\"\",\"\")","v":""},{"$f":"IF('effRT Support'!$B163=0,\"\",IF('Project Information'!$D$13=\"\",\"\",'Project Information'!$D$13))","v":""},{"$f":"IF('effRT Support'!$B163=0,\"\",IF('Project Information'!$E$13=\"\",\"\",'Project Information'!$E$13))","v":""},{"$f":"IF('effRT Support'!$B163=0,\"\",IF('Project Information'!$D$14=\"\",\"\",'Project Information'!$D$14))","v":""},{"$f":"IF('effRT Support'!$B163=0,\"\",IF('Project Information'!$D$15=\"\",\"\",'Project Information'!$D$15))","v":""},{"$f":"IF('effRT Support'!$B163=0,\"\",IF('Project Information'!$D$16=\"\",\"\",'Project Information'!$D$16))","v":""},null,{"$f":"IF('effRT Support'!$B163=0,\"\",'Project Information'!$D$18)","v":""},{"$f":"IF('effRT Support'!$B163=0,\"\",IF('Project Information'!$D$23=\"\",\"\",'Project Information'!$D$23))","v":""},{"$f":"IF('effRT Support'!$B163=0,\"\",IF('Project Information'!$D$24=\"\",\"\",'Project Information'!$D$24))","v":""},{"$f":"IF('effRT Support'!$B163=0,\"\",IF('Project Information'!$D$25=\"\",\"\",'Project Information'!$D$25))","v":""},{"$f":"IF('effRT Support'!$B163=0,\"\",IF('Project Information'!$E$25=\"\",\"\",'Project Information'!$E$25))","v":""},{"$f":"IF('effRT Support'!$B163=0,\"\",IF('Project Information'!$F$25=\"\",\"\",'Project Information'!$F$25))","v":""},{"$f":"IF('effRT Support'!$B163=0,\"\",IF('Project Information'!$D$27=\"\",\"Y\",\"N\"))","v":""},{"$f":"IF('effRT Support'!$B163=0,\"\",IF('Project Information'!$D$27=\"\",\"\",'Project Information'!$D$27))","v":""},{"$f":"IF('effRT Support'!$B163=0,\"\",IF('Project Information'!$D$28=\"\",\"\",'Project Information'!$D$28))","v":""},{"$f":"IF('effRT Support'!$B163=0,\"\",IF('Project Information'!$D$29=\"\",\"\",'Project Information'!$D$29))","v":""},{"$f":"IF('effRT Support'!$B163=0,\"\",IF('Project Information'!$E$29=\"\",\"\",'Project Information'!$E$29))","v":""},{"$f":"IF('effRT Support'!$B163=0,\"\",IF('Project Information'!$F$29=\"\",\"\",'Project Information'!$F$29))","v":""},{"$f":"IF('effRT Support'!$B163=0,\"\",\"\")","v":""},{"$f":"IF('effRT Support'!$B163=0,\"\",\"\")","v":""},{"$f":"IF('effRT Support'!$B163=0,\"\",IF('Project Information'!$D$36=\"\",\"\",'Project Information'!$D$36))","v":""},{"$f":"IF('effRT Support'!$B163=0,\"\",IF('Project Information'!$D$42=\"\",\"\",'Project Information'!$D$42))","v":""},{"$f":"IF('effRT Support'!$B163=0,\"\",'effRT Support'!$D163)","v":""},{"$f":"IF('effRT Support'!$B163=0,\"\",'effRT Support'!$L163)","v":""},{"$f":"IF('effRT Support'!$B163=0,\"\",'effRT Support'!$N163)","v":""},null,null,{"$f":"IF('effRT Support'!$B163=0,\"\",'effRT Support'!$P163)","v":""},{"$f":"IF('effRT Support'!$B163=0,\"\",'effRT Support'!$Q163)","v":""},{"$f":"IF('effRT Support'!$B163=0,\"\",'effRT Support'!U163)","v":""},{"$f":"IF('effRT Support'!$B163=0,\"\",'effRT Support'!V163)","v":""},{"$f":"IF('effRT Support'!$B163=0,\"\",'effRT Support'!W163)","v":""},{"$f":"IF('effRT Support'!$B163=0,\"\",'effRT Support'!X163)","v":""},{"$f":"IF('effRT Support'!$B163=0,\"\",'effRT Support'!Y163)","v":""},{"$f":"IF('effRT Support'!$B163=0,\"\",'effRT Support'!Z163*10)","v":""},{"$f":"IF('effRT Support'!$B163=0,\"\",'effRT Support'!AA163)","v":""},{"$f":"IF('effRT Support'!$B163=0,\"\",'effRT Support'!AB163)","v":""},{"$f":"IF('effRT Support'!$B163=0,\"\",'effRT Support'!AC163)","v":""},{"$f":"IF('effRT Support'!$B163=0,\"\",'effRT Support'!AD163)","v":""},{"$f":"IF('effRT Support'!$B163=0,\"\",'effRT Support'!AE163)","v":""},{"$f":"IF('effRT Support'!$B163=0,\"\",\"Hours Actual or Deemed\")","v":""},{"$f":"IF('effRT Support'!$B163=0,\"\",'effRT Support'!$F163)","v":""},{"$f":"IF('effRT Support'!$B163=0,\"\",\"Wattage Actual or Deemed\")","v":""},{"$f":"IF('effRT Support'!$B163=0,\"\",IF('Project Information'!$D$33=\"Pay For Performance\",\"Actual\",\"Deemed\"))","v":""},{"$f":"IF('effRT Support'!$B163=0,\"\",\"Cost Actual or Deemed\")","v":""},{"$f":"IF('effRT Support'!$B163=0,\"\",IF('Project Information'!$D$33=\"Pay For Performance\",\"Actual\",\"Deemed\"))","v":""},{"$f":"IF('effRT Support'!$B163=0,\"\",\"Location\")","v":""},{"$f":"IF('effRT Support'!$B163=0,\"\",'effRT Support'!$E163)","v":""},{"$f":"IF('effRT Support'!$B163=0,\"\",\"Space Type\")","v":""},{"$f":"IF('effRT Support'!$B163=0,\"\",'effRT Support'!$G163)","v":""},{"$f":"IF('effRT Support'!$B163=0,\"\",\"Existing Fixture Description\")","v":""},{"$f":"IF('effRT Support'!$B163=0,\"\",'effRT Support'!$H163)","v":""},{"$f":"IF('effRT Support'!$B163=0,\"\",\"Existing Fixture Quantity\")","v":""},{"$f":"IF('effRT Support'!$B163=0,\"\",'effRT Support'!$I163)","v":""},{"$f":"IF('effRT Support'!$B163=0,\"\",\"Existing Fixture Wattage\")","v":""},{"$f":"IF('effRT Support'!$B163=0,\"\",'effRT Support'!$J163)","v":""},{"$f":"IF('effRT Support'!$B163=0,\"\",\"Annual Hours of Operation\")","v":""},{"$f":"IF('effRT Support'!$B163=0,\"\",'effRT Support'!$K163)","v":""},{"$f":"IF('effRT Support'!$B163=0,\"\",\"Installed Fixture Description\")","v":""},{"$f":"IF('effRT Support'!$B163=0,\"\",'effRT Support'!$M163)","v":""},{"$f":"IF('effRT Support'!$B163=0,\"\",\"Installed Fixture Wattage\")","v":""},{"$f":"IF('effRT Support'!$B163=0,\"\",'effRT Support'!$O163)","v":""},{"$f":"IF('effRT Support'!$B163=0,\"\",\"Material Cost\")","v":""},{"$f":"IF('effRT Support'!$B163=0,\"\",'effRT Support'!$R163)","v":""},{"$f":"IF('effRT Support'!$B163=0,\"\",\"Labor Cost\")","v":""},{"$f":"IF('effRT Support'!$B163=0,\"\",'effRT Support'!$S163)","v":""},{"$f":"IF('effRT Support'!$B163=0,\"\",\"Ancillary Costs - Measure Specific\")","v":""},{"$f":"IF('effRT Support'!$B163=0,\"\",'effRT Support'!$T163)","v":""},{"$f":"IF('effRT Support'!$B163=0,\"\",\"Fuel Type\")","v":""},{"$f":"IF('effRT Support'!$B163=0,\"\",'Project Information'!$D$44)","v":""},{"$f":"IF('effRT Support'!$B163=0,\"\",\"Installed Fixture Quantity\")","v":""},{"$f":"IF('effRT Support'!$B163=0,\"\",'effRT Support'!P162)","v":""}]
[{"$f":"IF('effRT Support'!$B164=0,\"\",IF('Project Information'!$D$33=\"Small Business\",\"SBL\",\"CILS\"))","v":""},{"$f":"IF('effRT Support'!$B164=0,\"\",IF('Project Information'!$K$2=\"\",\"\",'Project Information'!$K$2))","v":""},null,{"$f":"IF('effRT Support'!$B164=0,\"\",IF('Project Information'!$D$46=\"\",\"\",'Project Information'!$D$46))","v":""},{"$f":"IF('effRT Support'!$B164=0,\"\",IF('Project Information'!$D$20=\"\",\"\",VLOOKUP('Project Information'!$D$20,'Other Data'!$B$159:$E$189,4,FALSE)))","v":""},{"$f":"IF('effRT Support'!$B164=0,\"\",IF('Project Information'!$D$31=\"\",\"\",'Project Information'!$D$31))","v":""},{"$f":"IF('effRT Support'!$B164=0,\"\",IF('Project Information'!$D$5=\"\",\"\",'Project Information'!$D$5))","v":""},null,null,{"$f":"IF('effRT Support'!$B164=0,\"\",IF('Project Information'!$D$20=\"\",\"\",VLOOKUP('Project Information'!$D$20,'Other Data'!$B$159:$E$189,2,FALSE)))","v":""},{"$f":"IF('effRT Support'!$B164=0,\"\",IF('Project Information'!$D$20=\"\",\"\",VLOOKUP('Project Information'!$D$20,'Other Data'!$B$159:$E$189,3,FALSE)))","v":""},{"$f":"IF('effRT Support'!$B164=0,\"\",\"Existing\")","v":""},null,{"$f":"IF('effRT Support'!$B164=0,\"\",IF('Project Information'!$D$21=\"\",\"\",'Project Information'!$D$21))","v":""},{"$f":"IF('effRT Support'!$B164=0,\"\",IF('Project Information'!$D$48=\"\",\"\",'Project Information'!$D$48))","v":""},{"$f":"IF('effRT Support'!$B164=0,\"\",\"\")","v":""},{"$f":"IF('effRT Support'!$B164=0,\"\",\"\")","v":""},{"$f":"IF('effRT Support'!$B164=0,\"\",\"\")","v":""},{"$f":"IF('effRT Support'!$B164=0,\"\",\"\")","v":""},{"$f":"IF('effRT Support'!$B164=0,\"\",IF('Project Information'!$D$13=\"\",\"\",'Project Information'!$D$13))","v":""},{"$f":"IF('effRT Support'!$B164=0,\"\",IF('Project Information'!$E$13=\"\",\"\",'Project Information'!$E$13))","v":""},{"$f":"IF('effRT Support'!$B164=0,\"\",IF('Project Information'!$D$14=\"\",\"\",'Project Information'!$D$14))","v":""},{"$f":"IF('effRT Support'!$B164=0,\"\",IF('Project Information'!$D$15=\"\",\"\",'Project Information'!$D$15))","v":""},{"$f":"IF('effRT Support'!$B164=0,\"\",IF('Project Information'!$D$16=\"\",\"\",'Project Information'!$D$16))","v":""},null,{"$f":"IF('effRT Support'!$B164=0,\"\",'Project Information'!$D$18)","v":""},{"$f":"IF('effRT Support'!$B164=0,\"\",IF('Project Information'!$D$23=\"\",\"\",'Project Information'!$D$23))","v":""},{"$f":"IF('effRT Support'!$B164=0,\"\",IF('Project Information'!$D$24=\"\",\"\",'Project Information'!$D$24))","v":""},{"$f":"IF('effRT Support'!$B164=0,\"\",IF('Project Information'!$D$25=\"\",\"\",'Project Information'!$D$25))","v":""},{"$f":"IF('effRT Support'!$B164=0,\"\",IF('Project Information'!$E$25=\"\",\"\",'Project Information'!$E$25))","v":""},{"$f":"IF('effRT Support'!$B164=0,\"\",IF('Project Information'!$F$25=\"\",\"\",'Project Information'!$F$25))","v":""},{"$f":"IF('effRT Support'!$B164=0,\"\",IF('Project Information'!$D$27=\"\",\"Y\",\"N\"))","v":""},{"$f":"IF('effRT Support'!$B164=0,\"\",IF('Project Information'!$D$27=\"\",\"\",'Project Information'!$D$27))","v":""},{"$f":"IF('effRT Support'!$B164=0,\"\",IF('Project Information'!$D$28=\"\",\"\",'Project Information'!$D$28))","v":""},{"$f":"IF('effRT Support'!$B164=0,\"\",IF('Project Information'!$D$29=\"\",\"\",'Project Information'!$D$29))","v":""},{"$f":"IF('effRT Support'!$B164=0,\"\",IF('Project Information'!$E$29=\"\",\"\",'Project Information'!$E$29))","v":""},{"$f":"IF('effRT Support'!$B164=0,\"\",IF('Project Information'!$F$29=\"\",\"\",'Project Information'!$F$29))","v":""},{"$f":"IF('effRT Support'!$B164=0,\"\",\"\")","v":""},{"$f":"IF('effRT Support'!$B164=0,\"\",\"\")","v":""},{"$f":"IF('effRT Support'!$B164=0,\"\",IF('Project Information'!$D$36=\"\",\"\",'Project Information'!$D$36))","v":""},{"$f":"IF('effRT Support'!$B164=0,\"\",IF('Project Information'!$D$42=\"\",\"\",'Project Information'!$D$42))","v":""},{"$f":"IF('effRT Support'!$B164=0,\"\",'effRT Support'!$D164)","v":""},{"$f":"IF('effRT Support'!$B164=0,\"\",'effRT Support'!$L164)","v":""},{"$f":"IF('effRT Support'!$B164=0,\"\",'effRT Support'!$N164)","v":""},null,null,{"$f":"IF('effRT Support'!$B164=0,\"\",'effRT Support'!$P164)","v":""},{"$f":"IF('effRT Support'!$B164=0,\"\",'effRT Support'!$Q164)","v":""},{"$f":"IF('effRT Support'!$B164=0,\"\",'effRT Support'!U164)","v":""},{"$f":"IF('effRT Support'!$B164=0,\"\",'effRT Support'!V164)","v":""},{"$f":"IF('effRT Support'!$B164=0,\"\",'effRT Support'!W164)","v":""},{"$f":"IF('effRT Support'!$B164=0,\"\",'effRT Support'!X164)","v":""},{"$f":"IF('effRT Support'!$B164=0,\"\",'effRT Support'!Y164)","v":""},{"$f":"IF('effRT Support'!$B164=0,\"\",'effRT Support'!Z164*10)","v":""},{"$f":"IF('effRT Support'!$B164=0,\"\",'effRT Support'!AA164)","v":""},{"$f":"IF('effRT Support'!$B164=0,\"\",'effRT Support'!AB164)","v":""},{"$f":"IF('effRT Support'!$B164=0,\"\",'effRT Support'!AC164)","v":""},{"$f":"IF('effRT Support'!$B164=0,\"\",'effRT Support'!AD164)","v":""},{"$f":"IF('effRT Support'!$B164=0,\"\",'effRT Support'!AE164)","v":""},{"$f":"IF('effRT Support'!$B164=0,\"\",\"Hours Actual or Deemed\")","v":""},{"$f":"IF('effRT Support'!$B164=0,\"\",'effRT Support'!$F164)","v":""},{"$f":"IF('effRT Support'!$B164=0,\"\",\"Wattage Actual or Deemed\")","v":""},{"$f":"IF('effRT Support'!$B164=0,\"\",IF('Project Information'!$D$33=\"Pay For Performance\",\"Actual\",\"Deemed\"))","v":""},{"$f":"IF('effRT Support'!$B164=0,\"\",\"Cost Actual or Deemed\")","v":""},{"$f":"IF('effRT Support'!$B164=0,\"\",IF('Project Information'!$D$33=\"Pay For Performance\",\"Actual\",\"Deemed\"))","v":""},{"$f":"IF('effRT Support'!$B164=0,\"\",\"Location\")","v":""},{"$f":"IF('effRT Support'!$B164=0,\"\",'effRT Support'!$E164)","v":""},{"$f":"IF('effRT Support'!$B164=0,\"\",\"Space Type\")","v":""},{"$f":"IF('effRT Support'!$B164=0,\"\",'effRT Support'!$G164)","v":""},{"$f":"IF('effRT Support'!$B164=0,\"\",\"Existing Fixture Description\")","v":""},{"$f":"IF('effRT Support'!$B164=0,\"\",'effRT Support'!$H164)","v":""},{"$f":"IF('effRT Support'!$B164=0,\"\",\"Existing Fixture Quantity\")","v":""},{"$f":"IF('effRT Support'!$B164=0,\"\",'effRT Support'!$I164)","v":""},{"$f":"IF('effRT Support'!$B164=0,\"\",\"Existing Fixture Wattage\")","v":""},{"$f":"IF('effRT Support'!$B164=0,\"\",'effRT Support'!$J164)","v":""},{"$f":"IF('effRT Support'!$B164=0,\"\",\"Annual Hours of Operation\")","v":""},{"$f":"IF('effRT Support'!$B164=0,\"\",'effRT Support'!$K164)","v":""},{"$f":"IF('effRT Support'!$B164=0,\"\",\"Installed Fixture Description\")","v":""},{"$f":"IF('effRT Support'!$B164=0,\"\",'effRT Support'!$M164)","v":""},{"$f":"IF('effRT Support'!$B164=0,\"\",\"Installed Fixture Wattage\")","v":""},{"$f":"IF('effRT Support'!$B164=0,\"\",'effRT Support'!$O164)","v":""},{"$f":"IF('effRT Support'!$B164=0,\"\",\"Material Cost\")","v":""},{"$f":"IF('effRT Support'!$B164=0,\"\",'effRT Support'!$R164)","v":""},{"$f":"IF('effRT Support'!$B164=0,\"\",\"Labor Cost\")","v":""},{"$f":"IF('effRT Support'!$B164=0,\"\",'effRT Support'!$S164)","v":""},{"$f":"IF('effRT Support'!$B164=0,\"\",\"Ancillary Costs - Measure Specific\")","v":""},{"$f":"IF('effRT Support'!$B164=0,\"\",'effRT Support'!$T164)","v":""},{"$f":"IF('effRT Support'!$B164=0,\"\",\"Fuel Type\")","v":""},{"$f":"IF('effRT Support'!$B164=0,\"\",'Project Information'!$D$44)","v":""}]
[{"$f":"IF('effRT Support'!$B165=0,\"\",IF('Project Information'!$D$33=\"Small Business\",\"SBL\",\"CILS\"))","v":""},{"$f":"IF('effRT Support'!$B165=0,\"\",IF('Project Information'!$K$2=\"\",\"\",'Project Information'!$K$2))","v":""},null,{"$f":"IF('effRT Support'!$B165=0,\"\",IF('Project Information'!$D$46=\"\",\"\",'Project Information'!$D$46))","v":""},{"$f":"IF('effRT Support'!$B165=0,\"\",IF('Project Information'!$D$20=\"\",\"\",VLOOKUP('Project Information'!$D$20,'Other Data'!$B$159:$E$189,4,FALSE)))","v":""},{"$f":"IF('effRT Support'!$B165=0,\"\",IF('Project Information'!$D$31=\"\",\"\",'Project Information'!$D$31))","v":""},{"$f":"IF('effRT Support'!$B165=0,\"\",IF('Project Information'!$D$5=\"\",\"\",'Project Information'!$D$5))","v":""},null,null,{"$f":"IF('effRT Support'!$B165=0,\"\",IF('Project Information'!$D$20=\"\",\"\",VLOOKUP('Project Information'!$D$20,'Other Data'!$B$159:$E$189,2,FALSE)))","v":""},{"$f":"IF('effRT Support'!$B165=0,\"\",IF('Project Information'!$D$20=\"\",\"\",VLOOKUP('Project Information'!$D$20,'Other Data'!$B$159:$E$189,3,FALSE)))","v":""},{"$f":"IF('effRT Support'!$B165=0,\"\",\"Existing\")","v":""},null,{"$f":"IF('effRT Support'!$B165=0,\"\",IF('Project Information'!$D$21=\"\",\"\",'Project Information'!$D$21))","v":""},{"$f":"IF('effRT Support'!$B165=0,\"\",IF('Project Information'!$D$48=\"\",\"\",'Project Information'!$D$48))","v":""},{"$f":"IF('effRT Support'!$B165=0,\"\",\"\")","v":""},{"$f":"IF('effRT Support'!$B165=0,\"\",\"\")","v":""},{"$f":"IF('effRT Support'!$B165=0,\"\",\"\")","v":""},{"$f":"IF('effRT Support'!$B165=0,\"\",\"\")","v":""},{"$f":"IF('effRT Support'!$B165=0,\"\",IF('Project Information'!$D$13=\"\",\"\",'Project Information'!$D$13))","v":""},{"$f":"IF('effRT Support'!$B165=0,\"\",IF('Project Information'!$E$13=\"\",\"\",'Project Information'!$E$13))","v":""},{"$f":"IF('effRT Support'!$B165=0,\"\",IF('Project Information'!$D$14=\"\",\"\",'Project Information'!$D$14))","v":""},{"$f":"IF('effRT Support'!$B165=0,\"\",IF('Project Information'!$D$15=\"\",\"\",'Project Information'!$D$15))","v":""},{"$f":"IF('effRT Support'!$B165=0,\"\",IF('Project Information'!$D$16=\"\",\"\",'Project Information'!$D$16))","v":""},null,{"$f":"IF('effRT Support'!$B165=0,\"\",'Project Information'!$D$18)","v":""},{"$f":"IF('effRT Support'!$B165=0,\"\",IF('Project Information'!$D$23=\"\",\"\",'Project Information'!$D$23))","v":""},{"$f":"IF('effRT Support'!$B165=0,\"\",IF('Project Information'!$D$24=\"\",\"\",'Project Information'!$D$24))","v":""},{"$f":"IF('effRT Support'!$B165=0,\"\",IF('Project Information'!$D$25=\"\",\"\",'Project Information'!$D$25))","v":""},{"$f":"IF('effRT Support'!$B165=0,\"\",IF('Project Information'!$E$25=\"\",\"\",'Project Information'!$E$25))","v":""},{"$f":"IF('effRT Support'!$B165=0,\"\",IF('Project Information'!$F$25=\"\",\"\",'Project Information'!$F$25))","v":""},{"$f":"IF('effRT Support'!$B165=0,\"\",IF('Project Information'!$D$27=\"\",\"Y\",\"N\"))","v":""},{"$f":"IF('effRT Support'!$B165=0,\"\",IF('Project Information'!$D$27=\"\",\"\",'Project Information'!$D$27))","v":""},{"$f":"IF('effRT Support'!$B165=0,\"\",IF('Project Information'!$D$28=\"\",\"\",'Project Information'!$D$28))","v":""},{"$f":"IF('effRT Support'!$B165=0,\"\",IF('Project Information'!$D$29=\"\",\"\",'Project Information'!$D$29))","v":""},{"$f":"IF('effRT Support'!$B165=0,\"\",IF('Project Information'!$E$29=\"\",\"\",'Project Information'!$E$29))","v":""},{"$f":"IF('effRT Support'!$B165=0,\"\",IF('Project Information'!$F$29=\"\",\"\",'Project Information'!$F$29))","v":""},{"$f":"IF('effRT Support'!$B165=0,\"\",\"\")","v":""},{"$f":"IF('effRT Support'!$B165=0,\"\",\"\")","v":""},{"$f":"IF('effRT Support'!$B165=0,\"\",IF('Project Information'!$D$36=\"\",\"\",'Project Information'!$D$36))","v":""},{"$f":"IF('effRT Support'!$B165=0,\"\",IF('Project Information'!$D$42=\"\",\"\",'Project Information'!$D$42))","v":""},{"$f":"IF('effRT Support'!$B165=0,\"\",'effRT Support'!$D165)","v":""},{"$f":"IF('effRT Support'!$B165=0,\"\",'effRT Support'!$L165)","v":""},{"$f":"IF('effRT Support'!$B165=0,\"\",'effRT Support'!$N165)","v":""},null,null,{"$f":"IF('effRT Support'!$B165=0,\"\",'effRT Support'!$P165)","v":""},{"$f":"IF('effRT Support'!$B165=0,\"\",'effRT Support'!$Q165)","v":""},{"$f":"IF('effRT Support'!$B165=0,\"\",'effRT Support'!U165)","v":""},{"$f":"IF('effRT Support'!$B165=0,\"\",'effRT Support'!V165)","v":""},{"$f":"IF('effRT Support'!$B165=0,\"\",'effRT Support'!W165)","v":""},{"$f":"IF('effRT Support'!$B165=0,\"\",'effRT Support'!X165)","v":""},{"$f":"IF('effRT Support'!$B165=0,\"\",'effRT Support'!Y165)","v":""},{"$f":"IF('effRT Support'!$B165=0,\"\",'effRT Support'!Z165*10)","v":""},{"$f":"IF('effRT Support'!$B165=0,\"\",'effRT Support'!AA165)","v":""},{"$f":"IF('effRT Support'!$B165=0,\"\",'effRT Support'!AB165)","v":""},{"$f":"IF('effRT Support'!$B165=0,\"\",'effRT Support'!AC165)","v":""},{"$f":"IF('effRT Support'!$B165=0,\"\",'effRT Support'!AD165)","v":""},{"$f":"IF('effRT Support'!$B165=0,\"\",'effRT Support'!AE165)","v":""},{"$f":"IF('effRT Support'!$B165=0,\"\",\"Hours Actual or Deemed\")","v":""},{"$f":"IF('effRT Support'!$B165=0,\"\",'effRT Support'!$F165)","v":""},{"$f":"IF('effRT Support'!$B165=0,\"\",\"Wattage Actual or Deemed\")","v":""},{"$f":"IF('effRT Support'!$B165=0,\"\",IF('Project Information'!$D$33=\"Pay For Performance\",\"Actual\",\"Deemed\"))","v":""},{"$f":"IF('effRT Support'!$B165=0,\"\",\"Cost Actual or Deemed\")","v":""},{"$f":"IF('effRT Support'!$B165=0,\"\",IF('Project Information'!$D$33=\"Pay For Performance\",\"Actual\",\"Deemed\"))","v":""},{"$f":"IF('effRT Support'!$B165=0,\"\",\"Location\")","v":""},{"$f":"IF('effRT Support'!$B165=0,\"\",'effRT Support'!$E165)","v":""},{"$f":"IF('effRT Support'!$B165=0,\"\",\"Space Type\")","v":""},{"$f":"IF('effRT Support'!$B165=0,\"\",'effRT Support'!$G165)","v":""},{"$f":"IF('effRT Support'!$B165=0,\"\",\"Existing Fixture Description\")","v":""},{"$f":"IF('effRT Support'!$B165=0,\"\",'effRT Support'!$H165)","v":""},{"$f":"IF('effRT Support'!$B165=0,\"\",\"Existing Fixture Quantity\")","v":""},{"$f":"IF('effRT Support'!$B165=0,\"\",'effRT Support'!$I165)","v":""},{"$f":"IF('effRT Support'!$B165=0,\"\",\"Existing Fixture Wattage\")","v":""},{"$f":"IF('effRT Support'!$B165=0,\"\",'effRT Support'!$J165)","v":""},{"$f":"IF('effRT Support'!$B165=0,\"\",\"Annual Hours of Operation\")","v":""},{"$f":"IF('effRT Support'!$B165=0,\"\",'effRT Support'!$K165)","v":""},{"$f":"IF('effRT Support'!$B165=0,\"\",\"Installed Fixture Description\")","v":""},{"$f":"IF('effRT Support'!$B165=0,\"\",'effRT Support'!$M165)","v":""},{"$f":"IF('effRT Support'!$B165=0,\"\",\"Installed Fixture Wattage\")","v":""},{"$f":"IF('effRT Support'!$B165=0,\"\",'effRT Support'!$O165)","v":""},{"$f":"IF('effRT Support'!$B165=0,\"\",\"Material Cost\")","v":""},{"$f":"IF('effRT Support'!$B165=0,\"\",'effRT Support'!$R165)","v":""},{"$f":"IF('effRT Support'!$B165=0,\"\",\"Labor Cost\")","v":""},{"$f":"IF('effRT Support'!$B165=0,\"\",'effRT Support'!$S165)","v":""},{"$f":"IF('effRT Support'!$B165=0,\"\",\"Ancillary Costs - Measure Specific\")","v":""},{"$f":"IF('effRT Support'!$B165=0,\"\",'effRT Support'!$T165)","v":""},{"$f":"IF('effRT Support'!$B165=0,\"\",\"Fuel Type\")","v":""},{"$f":"IF('effRT Support'!$B165=0,\"\",'Project Information'!$D$44)","v":""},{"$f":"IF('effRT Support'!$B165=0,\"\",\"Installed Fixture Quantity\")","v":""},{"$f":"IF('effRT Support'!$B165=0,\"\",'effRT Support'!P164)","v":""}]
[{"$f":"IF('effRT Support'!$B166=0,\"\",IF('Project Information'!$D$33=\"Small Business\",\"SBL\",\"CILS\"))","v":""},{"$f":"IF('effRT Support'!$B166=0,\"\",IF('Project Information'!$K$2=\"\",\"\",'Project Information'!$K$2))","v":""},null,{"$f":"IF('effRT Support'!$B166=0,\"\",IF('Project Information'!$D$46=\"\",\"\",'Project Information'!$D$46))","v":""},{"$f":"IF('effRT Support'!$B166=0,\"\",IF('Project Information'!$D$20=\"\",\"\",VLOOKUP('Project Information'!$D$20,'Other Data'!$B$159:$E$189,4,FALSE)))","v":""},{"$f":"IF('effRT Support'!$B166=0,\"\",IF('Project Information'!$D$31=\"\",\"\",'Project Information'!$D$31))","v":""},{"$f":"IF('effRT Support'!$B166=0,\"\",IF('Project Information'!$D$5=\"\",\"\",'Project Information'!$D$5))","v":""},null,null,{"$f":"IF('effRT Support'!$B166=0,\"\",IF('Project Information'!$D$20=\"\",\"\",VLOOKUP('Project Information'!$D$20,'Other Data'!$B$159:$E$189,2,FALSE)))","v":""},{"$f":"IF('effRT Support'!$B166=0,\"\",IF('Project Information'!$D$20=\"\",\"\",VLOOKUP('Project Information'!$D$20,'Other Data'!$B$159:$E$189,3,FALSE)))","v":""},{"$f":"IF('effRT Support'!$B166=0,\"\",\"Existing\")","v":""},null,{"$f":"IF('effRT Support'!$B166=0,\"\",IF('Project Information'!$D$21=\"\",\"\",'Project Information'!$D$21))","v":""},{"$f":"IF('effRT Support'!$B166=0,\"\",IF('Project Information'!$D$48=\"\",\"\",'Project Information'!$D$48))","v":""},{"$f":"IF('effRT Support'!$B166=0,\"\",\"\")","v":""},{"$f":"IF('effRT Support'!$B166=0,\"\",\"\")","v":""},{"$f":"IF('effRT Support'!$B166=0,\"\",\"\")","v":""},{"$f":"IF('effRT Support'!$B166=0,\"\",\"\")","v":""},{"$f":"IF('effRT Support'!$B166=0,\"\",IF('Project Information'!$D$13=\"\",\"\",'Project Information'!$D$13))","v":""},{"$f":"IF('effRT Support'!$B166=0,\"\",IF('Project Information'!$E$13=\"\",\"\",'Project Information'!$E$13))","v":""},{"$f":"IF('effRT Support'!$B166=0,\"\",IF('Project Information'!$D$14=\"\",\"\",'Project Information'!$D$14))","v":""},{"$f":"IF('effRT Support'!$B166=0,\"\",IF('Project Information'!$D$15=\"\",\"\",'Project Information'!$D$15))","v":""},{"$f":"IF('effRT Support'!$B166=0,\"\",IF('Project Information'!$D$16=\"\",\"\",'Project Information'!$D$16))","v":""},null,{"$f":"IF('effRT Support'!$B166=0,\"\",'Project Information'!$D$18)","v":""},{"$f":"IF('effRT Support'!$B166=0,\"\",IF('Project Information'!$D$23=\"\",\"\",'Project Information'!$D$23))","v":""},{"$f":"IF('effRT Support'!$B166=0,\"\",IF('Project Information'!$D$24=\"\",\"\",'Project Information'!$D$24))","v":""},{"$f":"IF('effRT Support'!$B166=0,\"\",IF('Project Information'!$D$25=\"\",\"\",'Project Information'!$D$25))","v":""},{"$f":"IF('effRT Support'!$B166=0,\"\",IF('Project Information'!$E$25=\"\",\"\",'Project Information'!$E$25))","v":""},{"$f":"IF('effRT Support'!$B166=0,\"\",IF('Project Information'!$F$25=\"\",\"\",'Project Information'!$F$25))","v":""},{"$f":"IF('effRT Support'!$B166=0,\"\",IF('Project Information'!$D$27=\"\",\"Y\",\"N\"))","v":""},{"$f":"IF('effRT Support'!$B166=0,\"\",IF('Project Information'!$D$27=\"\",\"\",'Project Information'!$D$27))","v":""},{"$f":"IF('effRT Support'!$B166=0,\"\",IF('Project Information'!$D$28=\"\",\"\",'Project Information'!$D$28))","v":""},{"$f":"IF('effRT Support'!$B166=0,\"\",IF('Project Information'!$D$29=\"\",\"\",'Project Information'!$D$29))","v":""},{"$f":"IF('effRT Support'!$B166=0,\"\",IF('Project Information'!$E$29=\"\",\"\",'Project Information'!$E$29))","v":""},{"$f":"IF('effRT Support'!$B166=0,\"\",IF('Project Information'!$F$29=\"\",\"\",'Project Information'!$F$29))","v":""},{"$f":"IF('effRT Support'!$B166=0,\"\",\"\")","v":""},{"$f":"IF('effRT Support'!$B166=0,\"\",\"\")","v":""},{"$f":"IF('effRT Support'!$B166=0,\"\",IF('Project Information'!$D$36=\"\",\"\",'Project Information'!$D$36))","v":""},{"$f":"IF('effRT Support'!$B166=0,\"\",IF('Project Information'!$D$42=\"\",\"\",'Project Information'!$D$42))","v":""},{"$f":"IF('effRT Support'!$B166=0,\"\",'effRT Support'!$D166)","v":""},{"$f":"IF('effRT Support'!$B166=0,\"\",'effRT Support'!$L166)","v":""},{"$f":"IF('effRT Support'!$B166=0,\"\",'effRT Support'!$N166)","v":""},null,null,{"$f":"IF('effRT Support'!$B166=0,\"\",'effRT Support'!$P166)","v":""},{"$f":"IF('effRT Support'!$B166=0,\"\",'effRT Support'!$Q166)","v":""},{"$f":"IF('effRT Support'!$B166=0,\"\",'effRT Support'!U166)","v":""},{"$f":"IF('effRT Support'!$B166=0,\"\",'effRT Support'!V166)","v":""},{"$f":"IF('effRT Support'!$B166=0,\"\",'effRT Support'!W166)","v":""},{"$f":"IF('effRT Support'!$B166=0,\"\",'effRT Support'!X166)","v":""},{"$f":"IF('effRT Support'!$B166=0,\"\",'effRT Support'!Y166)","v":""},{"$f":"IF('effRT Support'!$B166=0,\"\",'effRT Support'!Z166*10)","v":""},{"$f":"IF('effRT Support'!$B166=0,\"\",'effRT Support'!AA166)","v":""},{"$f":"IF('effRT Support'!$B166=0,\"\",'effRT Support'!AB166)","v":""},{"$f":"IF('effRT Support'!$B166=0,\"\",'effRT Support'!AC166)","v":""},{"$f":"IF('effRT Support'!$B166=0,\"\",'effRT Support'!AD166)","v":""},{"$f":"IF('effRT Support'!$B166=0,\"\",'effRT Support'!AE166)","v":""},{"$f":"IF('effRT Support'!$B166=0,\"\",\"Hours Actual or Deemed\")","v":""},{"$f":"IF('effRT Support'!$B166=0,\"\",'effRT Support'!$F166)","v":""},{"$f":"IF('effRT Support'!$B166=0,\"\",\"Wattage Actual or Deemed\")","v":""},{"$f":"IF('effRT Support'!$B166=0,\"\",IF('Project Information'!$D$33=\"Pay For Performance\",\"Actual\",\"Deemed\"))","v":""},{"$f":"IF('effRT Support'!$B166=0,\"\",\"Cost Actual or Deemed\")","v":""},{"$f":"IF('effRT Support'!$B166=0,\"\",IF('Project Information'!$D$33=\"Pay For Performance\",\"Actual\",\"Deemed\"))","v":""},{"$f":"IF('effRT Support'!$B166=0,\"\",\"Location\")","v":""},{"$f":"IF('effRT Support'!$B166=0,\"\",'effRT Support'!$E166)","v":""},{"$f":"IF('effRT Support'!$B166=0,\"\",\"Space Type\")","v":""},{"$f":"IF('effRT Support'!$B166=0,\"\",'effRT Support'!$G166)","v":""},{"$f":"IF('effRT Support'!$B166=0,\"\",\"Existing Fixture Description\")","v":""},{"$f":"IF('effRT Support'!$B166=0,\"\",'effRT Support'!$H166)","v":""},{"$f":"IF('effRT Support'!$B166=0,\"\",\"Existing Fixture Quantity\")","v":""},{"$f":"IF('effRT Support'!$B166=0,\"\",'effRT Support'!$I166)","v":""},{"$f":"IF('effRT Support'!$B166=0,\"\",\"Existing Fixture Wattage\")","v":""},{"$f":"IF('effRT Support'!$B166=0,\"\",'effRT Support'!$J166)","v":""},{"$f":"IF('effRT Support'!$B166=0,\"\",\"Annual Hours of Operation\")","v":""},{"$f":"IF('effRT Support'!$B166=0,\"\",'effRT Support'!$K166)","v":""},{"$f":"IF('effRT Support'!$B166=0,\"\",\"Installed Fixture Description\")","v":""},{"$f":"IF('effRT Support'!$B166=0,\"\",'effRT Support'!$M166)","v":""},{"$f":"IF('effRT Support'!$B166=0,\"\",\"Installed Fixture Wattage\")","v":""},{"$f":"IF('effRT Support'!$B166=0,\"\",'effRT Support'!$O166)","v":""},{"$f":"IF('effRT Support'!$B166=0,\"\",\"Material Cost\")","v":""},{"$f":"IF('effRT Support'!$B166=0,\"\",'effRT Support'!$R166)","v":""},{"$f":"IF('effRT Support'!$B166=0,\"\",\"Labor Cost\")","v":""},{"$f":"IF('effRT Support'!$B166=0,\"\",'effRT Support'!$S166)","v":""},{"$f":"IF('effRT Support'!$B166=0,\"\",\"Ancillary Costs - Measure Specific\")","v":""},{"$f":"IF('effRT Support'!$B166=0,\"\",'effRT Support'!$T166)","v":""},{"$f":"IF('effRT Support'!$B166=0,\"\",\"Fuel Type\")","v":""},{"$f":"IF('effRT Support'!$B166=0,\"\",'Project Information'!$D$44)","v":""}]
[{"$f":"IF('effRT Support'!$B167=0,\"\",IF('Project Information'!$D$33=\"Small Business\",\"SBL\",\"CILS\"))","v":""},{"$f":"IF('effRT Support'!$B167=0,\"\",IF('Project Information'!$K$2=\"\",\"\",'Project Information'!$K$2))","v":""},null,{"$f":"IF('effRT Support'!$B167=0,\"\",IF('Project Information'!$D$46=\"\",\"\",'Project Information'!$D$46))","v":""},{"$f":"IF('effRT Support'!$B167=0,\"\",IF('Project Information'!$D$20=\"\",\"\",VLOOKUP('Project Information'!$D$20,'Other Data'!$B$159:$E$189,4,FALSE)))","v":""},{"$f":"IF('effRT Support'!$B167=0,\"\",IF('Project Information'!$D$31=\"\",\"\",'Project Information'!$D$31))","v":""},{"$f":"IF('effRT Support'!$B167=0,\"\",IF('Project Information'!$D$5=\"\",\"\",'Project Information'!$D$5))","v":""},null,null,{"$f":"IF('effRT Support'!$B167=0,\"\",IF('Project Information'!$D$20=\"\",\"\",VLOOKUP('Project Information'!$D$20,'Other Data'!$B$159:$E$189,2,FALSE)))","v":""},{"$f":"IF('effRT Support'!$B167=0,\"\",IF('Project Information'!$D$20=\"\",\"\",VLOOKUP('Project Information'!$D$20,'Other Data'!$B$159:$E$189,3,FALSE)))","v":""},{"$f":"IF('effRT Support'!$B167=0,\"\",\"Existing\")","v":""},null,{"$f":"IF('effRT Support'!$B167=0,\"\",IF('Project Information'!$D$21=\"\",\"\",'Project Information'!$D$21))","v":""},{"$f":"IF('effRT Support'!$B167=0,\"\",IF('Project Information'!$D$48=\"\",\"\",'Project Information'!$D$48))","v":""},{"$f":"IF('effRT Support'!$B167=0,\"\",\"\")","v":""},{"$f":"IF('effRT Support'!$B167=0,\"\",\"\")","v":""},{"$f":"IF('effRT Support'!$B167=0,\"\",\"\")","v":""},{"$f":"IF('effRT Support'!$B167=0,\"\",\"\")","v":""},{"$f":"IF('effRT Support'!$B167=0,\"\",IF('Project Information'!$D$13=\"\",\"\",'Project Information'!$D$13))","v":""},{"$f":"IF('effRT Support'!$B167=0,\"\",IF('Project Information'!$E$13=\"\",\"\",'Project Information'!$E$13))","v":""},{"$f":"IF('effRT Support'!$B167=0,\"\",IF('Project Information'!$D$14=\"\",\"\",'Project Information'!$D$14))","v":""},{"$f":"IF('effRT Support'!$B167=0,\"\",IF('Project Information'!$D$15=\"\",\"\",'Project Information'!$D$15))","v":""},{"$f":"IF('effRT Support'!$B167=0,\"\",IF('Project Information'!$D$16=\"\",\"\",'Project Information'!$D$16))","v":""},null,{"$f":"IF('effRT Support'!$B167=0,\"\",'Project Information'!$D$18)","v":""},{"$f":"IF('effRT Support'!$B167=0,\"\",IF('Project Information'!$D$23=\"\",\"\",'Project Information'!$D$23))","v":""},{"$f":"IF('effRT Support'!$B167=0,\"\",IF('Project Information'!$D$24=\"\",\"\",'Project Information'!$D$24))","v":""},{"$f":"IF('effRT Support'!$B167=0,\"\",IF('Project Information'!$D$25=\"\",\"\",'Project Information'!$D$25))","v":""},{"$f":"IF('effRT Support'!$B167=0,\"\",IF('Project Information'!$E$25=\"\",\"\",'Project Information'!$E$25))","v":""},{"$f":"IF('effRT Support'!$B167=0,\"\",IF('Project Information'!$F$25=\"\",\"\",'Project Information'!$F$25))","v":""},{"$f":"IF('effRT Support'!$B167=0,\"\",IF('Project Information'!$D$27=\"\",\"Y\",\"N\"))","v":""},{"$f":"IF('effRT Support'!$B167=0,\"\",IF('Project Information'!$D$27=\"\",\"\",'Project Information'!$D$27))","v":""},{"$f":"IF('effRT Support'!$B167=0,\"\",IF('Project Information'!$D$28=\"\",\"\",'Project Information'!$D$28))","v":""},{"$f":"IF('effRT Support'!$B167=0,\"\",IF('Project Information'!$D$29=\"\",\"\",'Project Information'!$D$29))","v":""},{"$f":"IF('effRT Support'!$B167=0,\"\",IF('Project Information'!$E$29=\"\",\"\",'Project Information'!$E$29))","v":""},{"$f":"IF('effRT Support'!$B167=0,\"\",IF('Project Information'!$F$29=\"\",\"\",'Project Information'!$F$29))","v":""},{"$f":"IF('effRT Support'!$B167=0,\"\",\"\")","v":""},{"$f":"IF('effRT Support'!$B167=0,\"\",\"\")","v":""},{"$f":"IF('effRT Support'!$B167=0,\"\",IF('Project Information'!$D$36=\"\",\"\",'Project Information'!$D$36))","v":""},{"$f":"IF('effRT Support'!$B167=0,\"\",IF('Project Information'!$D$42=\"\",\"\",'Project Information'!$D$42))","v":""},{"$f":"IF('effRT Support'!$B167=0,\"\",'effRT Support'!$D167)","v":""},{"$f":"IF('effRT Support'!$B167=0,\"\",'effRT Support'!$L167)","v":""},{"$f":"IF('effRT Support'!$B167=0,\"\",'effRT Support'!$N167)","v":""},null,null,{"$f":"IF('effRT Support'!$B167=0,\"\",'effRT Support'!$P167)","v":""},{"$f":"IF('effRT Support'!$B167=0,\"\",'effRT Support'!$Q167)","v":""},{"$f":"IF('effRT Support'!$B167=0,\"\",'effRT Support'!U167)","v":""},{"$f":"IF('effRT Support'!$B167=0,\"\",'effRT Support'!V167)","v":""},{"$f":"IF('effRT Support'!$B167=0,\"\",'effRT Support'!W167)","v":""},{"$f":"IF('effRT Support'!$B167=0,\"\",'effRT Support'!X167)","v":""},{"$f":"IF('effRT Support'!$B167=0,\"\",'effRT Support'!Y167)","v":""},{"$f":"IF('effRT Support'!$B167=0,\"\",'effRT Support'!Z167*10)","v":""},{"$f":"IF('effRT Support'!$B167=0,\"\",'effRT Support'!AA167)","v":""},{"$f":"IF('effRT Support'!$B167=0,\"\",'effRT Support'!AB167)","v":""},{"$f":"IF('effRT Support'!$B167=0,\"\",'effRT Support'!AC167)","v":""},{"$f":"IF('effRT Support'!$B167=0,\"\",'effRT Support'!AD167)","v":""},{"$f":"IF('effRT Support'!$B167=0,\"\",'effRT Support'!AE167)","v":""},{"$f":"IF('effRT Support'!$B167=0,\"\",\"Hours Actual or Deemed\")","v":""},{"$f":"IF('effRT Support'!$B167=0,\"\",'effRT Support'!$F167)","v":""},{"$f":"IF('effRT Support'!$B167=0,\"\",\"Wattage Actual or Deemed\")","v":""},{"$f":"IF('effRT Support'!$B167=0,\"\",IF('Project Information'!$D$33=\"Pay For Performance\",\"Actual\",\"Deemed\"))","v":""},{"$f":"IF('effRT Support'!$B167=0,\"\",\"Cost Actual or Deemed\")","v":""},{"$f":"IF('effRT Support'!$B167=0,\"\",IF('Project Information'!$D$33=\"Pay For Performance\",\"Actual\",\"Deemed\"))","v":""},{"$f":"IF('effRT Support'!$B167=0,\"\",\"Location\")","v":""},{"$f":"IF('effRT Support'!$B167=0,\"\",'effRT Support'!$E167)","v":""},{"$f":"IF('effRT Support'!$B167=0,\"\",\"Space Type\")","v":""},{"$f":"IF('effRT Support'!$B167=0,\"\",'effRT Support'!$G167)","v":""},{"$f":"IF('effRT Support'!$B167=0,\"\",\"Existing Fixture Description\")","v":""},{"$f":"IF('effRT Support'!$B167=0,\"\",'effRT Support'!$H167)","v":""},{"$f":"IF('effRT Support'!$B167=0,\"\",\"Existing Fixture Quantity\")","v":""},{"$f":"IF('effRT Support'!$B167=0,\"\",'effRT Support'!$I167)","v":""},{"$f":"IF('effRT Support'!$B167=0,\"\",\"Existing Fixture Wattage\")","v":""},{"$f":"IF('effRT Support'!$B167=0,\"\",'effRT Support'!$J167)","v":""},{"$f":"IF('effRT Support'!$B167=0,\"\",\"Annual Hours of Operation\")","v":""},{"$f":"IF('effRT Support'!$B167=0,\"\",'effRT Support'!$K167)","v":""},{"$f":"IF('effRT Support'!$B167=0,\"\",\"Installed Fixture Description\")","v":""},{"$f":"IF('effRT Support'!$B167=0,\"\",'effRT Support'!$M167)","v":""},{"$f":"IF('effRT Support'!$B167=0,\"\",\"Installed Fixture Wattage\")","v":""},{"$f":"IF('effRT Support'!$B167=0,\"\",'effRT Support'!$O167)","v":""},{"$f":"IF('effRT Support'!$B167=0,\"\",\"Material Cost\")","v":""},{"$f":"IF('effRT Support'!$B167=0,\"\",'effRT Support'!$R167)","v":""},{"$f":"IF('effRT Support'!$B167=0,\"\",\"Labor Cost\")","v":""},{"$f":"IF('effRT Support'!$B167=0,\"\",'effRT Support'!$S167)","v":""},{"$f":"IF('effRT Support'!$B167=0,\"\",\"Ancillary Costs - Measure Specific\")","v":""},{"$f":"IF('effRT Support'!$B167=0,\"\",'effRT Support'!$T167)","v":""},{"$f":"IF('effRT Support'!$B167=0,\"\",\"Fuel Type\")","v":""},{"$f":"IF('effRT Support'!$B167=0,\"\",'Project Information'!$D$44)","v":""},{"$f":"IF('effRT Support'!$B167=0,\"\",\"Installed Fixture Quantity\")","v":""},{"$f":"IF('effRT Support'!$B167=0,\"\",'effRT Support'!P166)","v":""}]
[{"$f":"IF('effRT Support'!$B168=0,\"\",IF('Project Information'!$D$33=\"Small Business\",\"SBL\",\"CILS\"))","v":""},{"$f":"IF('effRT Support'!$B168=0,\"\",IF('Project Information'!$K$2=\"\",\"\",'Project Information'!$K$2))","v":""},null,{"$f":"IF('effRT Support'!$B168=0,\"\",IF('Project Information'!$D$46=\"\",\"\",'Project Information'!$D$46))","v":""},{"$f":"IF('effRT Support'!$B168=0,\"\",IF('Project Information'!$D$20=\"\",\"\",VLOOKUP('Project Information'!$D$20,'Other Data'!$B$159:$E$189,4,FALSE)))","v":""},{"$f":"IF('effRT Support'!$B168=0,\"\",IF('Project Information'!$D$31=\"\",\"\",'Project Information'!$D$31))","v":""},{"$f":"IF('effRT Support'!$B168=0,\"\",IF('Project Information'!$D$5=\"\",\"\",'Project Information'!$D$5))","v":""},null,null,{"$f":"IF('effRT Support'!$B168=0,\"\",IF('Project Information'!$D$20=\"\",\"\",VLOOKUP('Project Information'!$D$20,'Other Data'!$B$159:$E$189,2,FALSE)))","v":""},{"$f":"IF('effRT Support'!$B168=0,\"\",IF('Project Information'!$D$20=\"\",\"\",VLOOKUP('Project Information'!$D$20,'Other Data'!$B$159:$E$189,3,FALSE)))","v":""},{"$f":"IF('effRT Support'!$B168=0,\"\",\"Existing\")","v":""},null,{"$f":"IF('effRT Support'!$B168=0,\"\",IF('Project Information'!$D$21=\"\",\"\",'Project Information'!$D$21))","v":""},{"$f":"IF('effRT Support'!$B168=0,\"\",IF('Project Information'!$D$48=\"\",\"\",'Project Information'!$D$48))","v":""},{"$f":"IF('effRT Support'!$B168=0,\"\",\"\")","v":""},{"$f":"IF('effRT Support'!$B168=0,\"\",\"\")","v":""},{"$f":"IF('effRT Support'!$B168=0,\"\",\"\")","v":""},{"$f":"IF('effRT Support'!$B168=0,\"\",\"\")","v":""},{"$f":"IF('effRT Support'!$B168=0,\"\",IF('Project Information'!$D$13=\"\",\"\",'Project Information'!$D$13))","v":""},{"$f":"IF('effRT Support'!$B168=0,\"\",IF('Project Information'!$E$13=\"\",\"\",'Project Information'!$E$13))","v":""},{"$f":"IF('effRT Support'!$B168=0,\"\",IF('Project Information'!$D$14=\"\",\"\",'Project Information'!$D$14))","v":""},{"$f":"IF('effRT Support'!$B168=0,\"\",IF('Project Information'!$D$15=\"\",\"\",'Project Information'!$D$15))","v":""},{"$f":"IF('effRT Support'!$B168=0,\"\",IF('Project Information'!$D$16=\"\",\"\",'Project Information'!$D$16))","v":""},null,{"$f":"IF('effRT Support'!$B168=0,\"\",'Project Information'!$D$18)","v":""},{"$f":"IF('effRT Support'!$B168=0,\"\",IF('Project Information'!$D$23=\"\",\"\",'Project Information'!$D$23))","v":""},{"$f":"IF('effRT Support'!$B168=0,\"\",IF('Project Information'!$D$24=\"\",\"\",'Project Information'!$D$24))","v":""},{"$f":"IF('effRT Support'!$B168=0,\"\",IF('Project Information'!$D$25=\"\",\"\",'Project Information'!$D$25))","v":""},{"$f":"IF('effRT Support'!$B168=0,\"\",IF('Project Information'!$E$25=\"\",\"\",'Project Information'!$E$25))","v":""},{"$f":"IF('effRT Support'!$B168=0,\"\",IF('Project Information'!$F$25=\"\",\"\",'Project Information'!$F$25))","v":""},{"$f":"IF('effRT Support'!$B168=0,\"\",IF('Project Information'!$D$27=\"\",\"Y\",\"N\"))","v":""},{"$f":"IF('effRT Support'!$B168=0,\"\",IF('Project Information'!$D$27=\"\",\"\",'Project Information'!$D$27))","v":""},{"$f":"IF('effRT Support'!$B168=0,\"\",IF('Project Information'!$D$28=\"\",\"\",'Project Information'!$D$28))","v":""},{"$f":"IF('effRT Support'!$B168=0,\"\",IF('Project Information'!$D$29=\"\",\"\",'Project Information'!$D$29))","v":""},{"$f":"IF('effRT Support'!$B168=0,\"\",IF('Project Information'!$E$29=\"\",\"\",'Project Information'!$E$29))","v":""},{"$f":"IF('effRT Support'!$B168=0,\"\",IF('Project Information'!$F$29=\"\",\"\",'Project Information'!$F$29))","v":""},{"$f":"IF('effRT Support'!$B168=0,\"\",\"\")","v":""},{"$f":"IF('effRT Support'!$B168=0,\"\",\"\")","v":""},{"$f":"IF('effRT Support'!$B168=0,\"\",IF('Project Information'!$D$36=\"\",\"\",'Project Information'!$D$36))","v":""},{"$f":"IF('effRT Support'!$B168=0,\"\",IF('Project Information'!$D$42=\"\",\"\",'Project Information'!$D$42))","v":""},{"$f":"IF('effRT Support'!$B168=0,\"\",'effRT Support'!$D168)","v":""},{"$f":"IF('effRT Support'!$B168=0,\"\",'effRT Support'!$L168)","v":""},{"$f":"IF('effRT Support'!$B168=0,\"\",'effRT Support'!$N168)","v":""},null,null,{"$f":"IF('effRT Support'!$B168=0,\"\",'effRT Support'!$P168)","v":""},{"$f":"IF('effRT Support'!$B168=0,\"\",'effRT Support'!$Q168)","v":""},{"$f":"IF('effRT Support'!$B168=0,\"\",'effRT Support'!U168)","v":""},{"$f":"IF('effRT Support'!$B168=0,\"\",'effRT Support'!V168)","v":""},{"$f":"IF('effRT Support'!$B168=0,\"\",'effRT Support'!W168)","v":""},{"$f":"IF('effRT Support'!$B168=0,\"\",'effRT Support'!X168)","v":""},{"$f":"IF('effRT Support'!$B168=0,\"\",'effRT Support'!Y168)","v":""},{"$f":"IF('effRT Support'!$B168=0,\"\",'effRT Support'!Z168*10)","v":""},{"$f":"IF('effRT Support'!$B168=0,\"\",'effRT Support'!AA168)","v":""},{"$f":"IF('effRT Support'!$B168=0,\"\",'effRT Support'!AB168)","v":""},{"$f":"IF('effRT Support'!$B168=0,\"\",'effRT Support'!AC168)","v":""},{"$f":"IF('effRT Support'!$B168=0,\"\",'effRT Support'!AD168)","v":""},{"$f":"IF('effRT Support'!$B168=0,\"\",'effRT Support'!AE168)","v":""},{"$f":"IF('effRT Support'!$B168=0,\"\",\"Hours Actual or Deemed\")","v":""},{"$f":"IF('effRT Support'!$B168=0,\"\",'effRT Support'!$F168)","v":""},{"$f":"IF('effRT Support'!$B168=0,\"\",\"Wattage Actual or Deemed\")","v":""},{"$f":"IF('effRT Support'!$B168=0,\"\",IF('Project Information'!$D$33=\"Pay For Performance\",\"Actual\",\"Deemed\"))","v":""},{"$f":"IF('effRT Support'!$B168=0,\"\",\"Cost Actual or Deemed\")","v":""},{"$f":"IF('effRT Support'!$B168=0,\"\",IF('Project Information'!$D$33=\"Pay For Performance\",\"Actual\",\"Deemed\"))","v":""},{"$f":"IF('effRT Support'!$B168=0,\"\",\"Location\")","v":""},{"$f":"IF('effRT Support'!$B168=0,\"\",'effRT Support'!$E168)","v":""},{"$f":"IF('effRT Support'!$B168=0,\"\",\"Space Type\")","v":""},{"$f":"IF('effRT Support'!$B168=0,\"\",'effRT Support'!$G168)","v":""},{"$f":"IF('effRT Support'!$B168=0,\"\",\"Existing Fixture Description\")","v":""},{"$f":"IF('effRT Support'!$B168=0,\"\",'effRT Support'!$H168)","v":""},{"$f":"IF('effRT Support'!$B168=0,\"\",\"Existing Fixture Quantity\")","v":""},{"$f":"IF('effRT Support'!$B168=0,\"\",'effRT Support'!$I168)","v":""},{"$f":"IF('effRT Support'!$B168=0,\"\",\"Existing Fixture Wattage\")","v":""},{"$f":"IF('effRT Support'!$B168=0,\"\",'effRT Support'!$J168)","v":""},{"$f":"IF('effRT Support'!$B168=0,\"\",\"Annual Hours of Operation\")","v":""},{"$f":"IF('effRT Support'!$B168=0,\"\",'effRT Support'!$K168)","v":""},{"$f":"IF('effRT Support'!$B168=0,\"\",\"Installed Fixture Description\")","v":""},{"$f":"IF('effRT Support'!$B168=0,\"\",'effRT Support'!$M168)","v":""},{"$f":"IF('effRT Support'!$B168=0,\"\",\"Installed Fixture Wattage\")","v":""},{"$f":"IF('effRT Support'!$B168=0,\"\",'effRT Support'!$O168)","v":""},{"$f":"IF('effRT Support'!$B168=0,\"\",\"Material Cost\")","v":""},{"$f":"IF('effRT Support'!$B168=0,\"\",'effRT Support'!$R168)","v":""},{"$f":"IF('effRT Support'!$B168=0,\"\",\"Labor Cost\")","v":""},{"$f":"IF('effRT Support'!$B168=0,\"\",'effRT Support'!$S168)","v":""},{"$f":"IF('effRT Support'!$B168=0,\"\",\"Ancillary Costs - Measure Specific\")","v":""},{"$f":"IF('effRT Support'!$B168=0,\"\",'effRT Support'!$T168)","v":""},{"$f":"IF('effRT Support'!$B168=0,\"\",\"Fuel Type\")","v":""},{"$f":"IF('effRT Support'!$B168=0,\"\",'Project Information'!$D$44)","v":""}]
[{"$f":"IF('effRT Support'!$B169=0,\"\",IF('Project Information'!$D$33=\"Small Business\",\"SBL\",\"CILS\"))","v":""},{"$f":"IF('effRT Support'!$B169=0,\"\",IF('Project Information'!$K$2=\"\",\"\",'Project Information'!$K$2))","v":""},null,{"$f":"IF('effRT Support'!$B169=0,\"\",IF('Project Information'!$D$46=\"\",\"\",'Project Information'!$D$46))","v":""},{"$f":"IF('effRT Support'!$B169=0,\"\",IF('Project Information'!$D$20=\"\",\"\",VLOOKUP('Project Information'!$D$20,'Other Data'!$B$159:$E$189,4,FALSE)))","v":""},{"$f":"IF('effRT Support'!$B169=0,\"\",IF('Project Information'!$D$31=\"\",\"\",'Project Information'!$D$31))","v":""},{"$f":"IF('effRT Support'!$B169=0,\"\",IF('Project Information'!$D$5=\"\",\"\",'Project Information'!$D$5))","v":""},null,null,{"$f":"IF('effRT Support'!$B169=0,\"\",IF('Project Information'!$D$20=\"\",\"\",VLOOKUP('Project Information'!$D$20,'Other Data'!$B$159:$E$189,2,FALSE)))","v":""},{"$f":"IF('effRT Support'!$B169=0,\"\",IF('Project Information'!$D$20=\"\",\"\",VLOOKUP('Project Information'!$D$20,'Other Data'!$B$159:$E$189,3,FALSE)))","v":""},{"$f":"IF('effRT Support'!$B169=0,\"\",\"Existing\")","v":""},null,{"$f":"IF('effRT Support'!$B169=0,\"\",IF('Project Information'!$D$21=\"\",\"\",'Project Information'!$D$21))","v":""},{"$f":"IF('effRT Support'!$B169=0,\"\",IF('Project Information'!$D$48=\"\",\"\",'Project Information'!$D$48))","v":""},{"$f":"IF('effRT Support'!$B169=0,\"\",\"\")","v":""},{"$f":"IF('effRT Support'!$B169=0,\"\",\"\")","v":""},{"$f":"IF('effRT Support'!$B169=0,\"\",\"\")","v":""},{"$f":"IF('effRT Support'!$B169=0,\"\",\"\")","v":""},{"$f":"IF('effRT Support'!$B169=0,\"\",IF('Project Information'!$D$13=\"\",\"\",'Project Information'!$D$13))","v":""},{"$f":"IF('effRT Support'!$B169=0,\"\",IF('Project Information'!$E$13=\"\",\"\",'Project Information'!$E$13))","v":""},{"$f":"IF('effRT Support'!$B169=0,\"\",IF('Project Information'!$D$14=\"\",\"\",'Project Information'!$D$14))","v":""},{"$f":"IF('effRT Support'!$B169=0,\"\",IF('Project Information'!$D$15=\"\",\"\",'Project Information'!$D$15))","v":""},{"$f":"IF('effRT Support'!$B169=0,\"\",IF('Project Information'!$D$16=\"\",\"\",'Project Information'!$D$16))","v":""},null,{"$f":"IF('effRT Support'!$B169=0,\"\",'Project Information'!$D$18)","v":""},{"$f":"IF('effRT Support'!$B169=0,\"\",IF('Project Information'!$D$23=\"\",\"\",'Project Information'!$D$23))","v":""},{"$f":"IF('effRT Support'!$B169=0,\"\",IF('Project Information'!$D$24=\"\",\"\",'Project Information'!$D$24))","v":""},{"$f":"IF('effRT Support'!$B169=0,\"\",IF('Project Information'!$D$25=\"\",\"\",'Project Information'!$D$25))","v":""},{"$f":"IF('effRT Support'!$B169=0,\"\",IF('Project Information'!$E$25=\"\",\"\",'Project Information'!$E$25))","v":""},{"$f":"IF('effRT Support'!$B169=0,\"\",IF('Project Information'!$F$25=\"\",\"\",'Project Information'!$F$25))","v":""},{"$f":"IF('effRT Support'!$B169=0,\"\",IF('Project Information'!$D$27=\"\",\"Y\",\"N\"))","v":""},{"$f":"IF('effRT Support'!$B169=0,\"\",IF('Project Information'!$D$27=\"\",\"\",'Project Information'!$D$27))","v":""},{"$f":"IF('effRT Support'!$B169=0,\"\",IF('Project Information'!$D$28=\"\",\"\",'Project Information'!$D$28))","v":""},{"$f":"IF('effRT Support'!$B169=0,\"\",IF('Project Information'!$D$29=\"\",\"\",'Project Information'!$D$29))","v":""},{"$f":"IF('effRT Support'!$B169=0,\"\",IF('Project Information'!$E$29=\"\",\"\",'Project Information'!$E$29))","v":""},{"$f":"IF('effRT Support'!$B169=0,\"\",IF('Project Information'!$F$29=\"\",\"\",'Project Information'!$F$29))","v":""},{"$f":"IF('effRT Support'!$B169=0,\"\",\"\")","v":""},{"$f":"IF('effRT Support'!$B169=0,\"\",\"\")","v":""},{"$f":"IF('effRT Support'!$B169=0,\"\",IF('Project Information'!$D$36=\"\",\"\",'Project Information'!$D$36))","v":""},{"$f":"IF('effRT Support'!$B169=0,\"\",IF('Project Information'!$D$42=\"\",\"\",'Project Information'!$D$42))","v":""},{"$f":"IF('effRT Support'!$B169=0,\"\",'effRT Support'!$D169)","v":""},{"$f":"IF('effRT Support'!$B169=0,\"\",'effRT Support'!$L169)","v":""},{"$f":"IF('effRT Support'!$B169=0,\"\",'effRT Support'!$N169)","v":""},null,null,{"$f":"IF('effRT Support'!$B169=0,\"\",'effRT Support'!$P169)","v":""},{"$f":"IF('effRT Support'!$B169=0,\"\",'effRT Support'!$Q169)","v":""},{"$f":"IF('effRT Support'!$B169=0,\"\",'effRT Support'!U169)","v":""},{"$f":"IF('effRT Support'!$B169=0,\"\",'effRT Support'!V169)","v":""},{"$f":"IF('effRT Support'!$B169=0,\"\",'effRT Support'!W169)","v":""},{"$f":"IF('effRT Support'!$B169=0,\"\",'effRT Support'!X169)","v":""},{"$f":"IF('effRT Support'!$B169=0,\"\",'effRT Support'!Y169)","v":""},{"$f":"IF('effRT Support'!$B169=0,\"\",'effRT Support'!Z169*10)","v":""},{"$f":"IF('effRT Support'!$B169=0,\"\",'effRT Support'!AA169)","v":""},{"$f":"IF('effRT Support'!$B169=0,\"\",'effRT Support'!AB169)","v":""},{"$f":"IF('effRT Support'!$B169=0,\"\",'effRT Support'!AC169)","v":""},{"$f":"IF('effRT Support'!$B169=0,\"\",'effRT Support'!AD169)","v":""},{"$f":"IF('effRT Support'!$B169=0,\"\",'effRT Support'!AE169)","v":""},{"$f":"IF('effRT Support'!$B169=0,\"\",\"Hours Actual or Deemed\")","v":""},{"$f":"IF('effRT Support'!$B169=0,\"\",'effRT Support'!$F169)","v":""},{"$f":"IF('effRT Support'!$B169=0,\"\",\"Wattage Actual or Deemed\")","v":""},{"$f":"IF('effRT Support'!$B169=0,\"\",IF('Project Information'!$D$33=\"Pay For Performance\",\"Actual\",\"Deemed\"))","v":""},{"$f":"IF('effRT Support'!$B169=0,\"\",\"Cost Actual or Deemed\")","v":""},{"$f":"IF('effRT Support'!$B169=0,\"\",IF('Project Information'!$D$33=\"Pay For Performance\",\"Actual\",\"Deemed\"))","v":""},{"$f":"IF('effRT Support'!$B169=0,\"\",\"Location\")","v":""},{"$f":"IF('effRT Support'!$B169=0,\"\",'effRT Support'!$E169)","v":""},{"$f":"IF('effRT Support'!$B169=0,\"\",\"Space Type\")","v":""},{"$f":"IF('effRT Support'!$B169=0,\"\",'effRT Support'!$G169)","v":""},{"$f":"IF('effRT Support'!$B169=0,\"\",\"Existing Fixture Description\")","v":""},{"$f":"IF('effRT Support'!$B169=0,\"\",'effRT Support'!$H169)","v":""},{"$f":"IF('effRT Support'!$B169=0,\"\",\"Existing Fixture Quantity\")","v":""},{"$f":"IF('effRT Support'!$B169=0,\"\",'effRT Support'!$I169)","v":""},{"$f":"IF('effRT Support'!$B169=0,\"\",\"Existing Fixture Wattage\")","v":""},{"$f":"IF('effRT Support'!$B169=0,\"\",'effRT Support'!$J169)","v":""},{"$f":"IF('effRT Support'!$B169=0,\"\",\"Annual Hours of Operation\")","v":""},{"$f":"IF('effRT Support'!$B169=0,\"\",'effRT Support'!$K169)","v":""},{"$f":"IF('effRT Support'!$B169=0,\"\",\"Installed Fixture Description\")","v":""},{"$f":"IF('effRT Support'!$B169=0,\"\",'effRT Support'!$M169)","v":""},{"$f":"IF('effRT Support'!$B169=0,\"\",\"Installed Fixture Wattage\")","v":""},{"$f":"IF('effRT Support'!$B169=0,\"\",'effRT Support'!$O169)","v":""},{"$f":"IF('effRT Support'!$B169=0,\"\",\"Material Cost\")","v":""},{"$f":"IF('effRT Support'!$B169=0,\"\",'effRT Support'!$R169)","v":""},{"$f":"IF('effRT Support'!$B169=0,\"\",\"Labor Cost\")","v":""},{"$f":"IF('effRT Support'!$B169=0,\"\",'effRT Support'!$S169)","v":""},{"$f":"IF('effRT Support'!$B169=0,\"\",\"Ancillary Costs - Measure Specific\")","v":""},{"$f":"IF('effRT Support'!$B169=0,\"\",'effRT Support'!$T169)","v":""},{"$f":"IF('effRT Support'!$B169=0,\"\",\"Fuel Type\")","v":""},{"$f":"IF('effRT Support'!$B169=0,\"\",'Project Information'!$D$44)","v":""},{"$f":"IF('effRT Support'!$B169=0,\"\",\"Installed Fixture Quantity\")","v":""},{"$f":"IF('effRT Support'!$B169=0,\"\",'effRT Support'!P168)","v":""}]
[{"$f":"IF('effRT Support'!$B170=0,\"\",IF('Project Information'!$D$33=\"Small Business\",\"SBL\",\"CILS\"))","v":""},{"$f":"IF('effRT Support'!$B170=0,\"\",IF('Project Information'!$K$2=\"\",\"\",'Project Information'!$K$2))","v":""},null,{"$f":"IF('effRT Support'!$B170=0,\"\",IF('Project Information'!$D$46=\"\",\"\",'Project Information'!$D$46))","v":""},{"$f":"IF('effRT Support'!$B170=0,\"\",IF('Project Information'!$D$20=\"\",\"\",VLOOKUP('Project Information'!$D$20,'Other Data'!$B$159:$E$189,4,FALSE)))","v":""},{"$f":"IF('effRT Support'!$B170=0,\"\",IF('Project Information'!$D$31=\"\",\"\",'Project Information'!$D$31))","v":""},{"$f":"IF('effRT Support'!$B170=0,\"\",IF('Project Information'!$D$5=\"\",\"\",'Project Information'!$D$5))","v":""},null,null,{"$f":"IF('effRT Support'!$B170=0,\"\",IF('Project Information'!$D$20=\"\",\"\",VLOOKUP('Project Information'!$D$20,'Other Data'!$B$159:$E$189,2,FALSE)))","v":""},{"$f":"IF('effRT Support'!$B170=0,\"\",IF('Project Information'!$D$20=\"\",\"\",VLOOKUP('Project Information'!$D$20,'Other Data'!$B$159:$E$189,3,FALSE)))","v":""},{"$f":"IF('effRT Support'!$B170=0,\"\",\"Existing\")","v":""},null,{"$f":"IF('effRT Support'!$B170=0,\"\",IF('Project Information'!$D$21=\"\",\"\",'Project Information'!$D$21))","v":""},{"$f":"IF('effRT Support'!$B170=0,\"\",IF('Project Information'!$D$48=\"\",\"\",'Project Information'!$D$48))","v":""},{"$f":"IF('effRT Support'!$B170=0,\"\",\"\")","v":""},{"$f":"IF('effRT Support'!$B170=0,\"\",\"\")","v":""},{"$f":"IF('effRT Support'!$B170=0,\"\",\"\")","v":""},{"$f":"IF('effRT Support'!$B170=0,\"\",\"\")","v":""},{"$f":"IF('effRT Support'!$B170=0,\"\",IF('Project Information'!$D$13=\"\",\"\",'Project Information'!$D$13))","v":""},{"$f":"IF('effRT Support'!$B170=0,\"\",IF('Project Information'!$E$13=\"\",\"\",'Project Information'!$E$13))","v":""},{"$f":"IF('effRT Support'!$B170=0,\"\",IF('Project Information'!$D$14=\"\",\"\",'Project Information'!$D$14))","v":""},{"$f":"IF('effRT Support'!$B170=0,\"\",IF('Project Information'!$D$15=\"\",\"\",'Project Information'!$D$15))","v":""},{"$f":"IF('effRT Support'!$B170=0,\"\",IF('Project Information'!$D$16=\"\",\"\",'Project Information'!$D$16))","v":""},null,{"$f":"IF('effRT Support'!$B170=0,\"\",'Project Information'!$D$18)","v":""},{"$f":"IF('effRT Support'!$B170=0,\"\",IF('Project Information'!$D$23=\"\",\"\",'Project Information'!$D$23))","v":""},{"$f":"IF('effRT Support'!$B170=0,\"\",IF('Project Information'!$D$24=\"\",\"\",'Project Information'!$D$24))","v":""},{"$f":"IF('effRT Support'!$B170=0,\"\",IF('Project Information'!$D$25=\"\",\"\",'Project Information'!$D$25))","v":""},{"$f":"IF('effRT Support'!$B170=0,\"\",IF('Project Information'!$E$25=\"\",\"\",'Project Information'!$E$25))","v":""},{"$f":"IF('effRT Support'!$B170=0,\"\",IF('Project Information'!$F$25=\"\",\"\",'Project Information'!$F$25))","v":""},{"$f":"IF('effRT Support'!$B170=0,\"\",IF('Project Information'!$D$27=\"\",\"Y\",\"N\"))","v":""},{"$f":"IF('effRT Support'!$B170=0,\"\",IF('Project Information'!$D$27=\"\",\"\",'Project Information'!$D$27))","v":""},{"$f":"IF('effRT Support'!$B170=0,\"\",IF('Project Information'!$D$28=\"\",\"\",'Project Information'!$D$28))","v":""},{"$f":"IF('effRT Support'!$B170=0,\"\",IF('Project Information'!$D$29=\"\",\"\",'Project Information'!$D$29))","v":""},{"$f":"IF('effRT Support'!$B170=0,\"\",IF('Project Information'!$E$29=\"\",\"\",'Project Information'!$E$29))","v":""},{"$f":"IF('effRT Support'!$B170=0,\"\",IF('Project Information'!$F$29=\"\",\"\",'Project Information'!$F$29))","v":""},{"$f":"IF('effRT Support'!$B170=0,\"\",\"\")","v":""},{"$f":"IF('effRT Support'!$B170=0,\"\",\"\")","v":""},{"$f":"IF('effRT Support'!$B170=0,\"\",IF('Project Information'!$D$36=\"\",\"\",'Project Information'!$D$36))","v":""},{"$f":"IF('effRT Support'!$B170=0,\"\",IF('Project Information'!$D$42=\"\",\"\",'Project Information'!$D$42))","v":""},{"$f":"IF('effRT Support'!$B170=0,\"\",'effRT Support'!$D170)","v":""},{"$f":"IF('effRT Support'!$B170=0,\"\",'effRT Support'!$L170)","v":""},{"$f":"IF('effRT Support'!$B170=0,\"\",'effRT Support'!$N170)","v":""},null,null,{"$f":"IF('effRT Support'!$B170=0,\"\",'effRT Support'!$P170)","v":""},{"$f":"IF('effRT Support'!$B170=0,\"\",'effRT Support'!$Q170)","v":""},{"$f":"IF('effRT Support'!$B170=0,\"\",'effRT Support'!U170)","v":""},{"$f":"IF('effRT Support'!$B170=0,\"\",'effRT Support'!V170)","v":""},{"$f":"IF('effRT Support'!$B170=0,\"\",'effRT Support'!W170)","v":""},{"$f":"IF('effRT Support'!$B170=0,\"\",'effRT Support'!X170)","v":""},{"$f":"IF('effRT Support'!$B170=0,\"\",'effRT Support'!Y170)","v":""},{"$f":"IF('effRT Support'!$B170=0,\"\",'effRT Support'!Z170*10)","v":""},{"$f":"IF('effRT Support'!$B170=0,\"\",'effRT Support'!AA170)","v":""},{"$f":"IF('effRT Support'!$B170=0,\"\",'effRT Support'!AB170)","v":""},{"$f":"IF('effRT Support'!$B170=0,\"\",'effRT Support'!AC170)","v":""},{"$f":"IF('effRT Support'!$B170=0,\"\",'effRT Support'!AD170)","v":""},{"$f":"IF('effRT Support'!$B170=0,\"\",'effRT Support'!AE170)","v":""},{"$f":"IF('effRT Support'!$B170=0,\"\",\"Hours Actual or Deemed\")","v":""},{"$f":"IF('effRT Support'!$B170=0,\"\",'effRT Support'!$F170)","v":""},{"$f":"IF('effRT Support'!$B170=0,\"\",\"Wattage Actual or Deemed\")","v":""},{"$f":"IF('effRT Support'!$B170=0,\"\",IF('Project Information'!$D$33=\"Pay For Performance\",\"Actual\",\"Deemed\"))","v":""},{"$f":"IF('effRT Support'!$B170=0,\"\",\"Cost Actual or Deemed\")","v":""},{"$f":"IF('effRT Support'!$B170=0,\"\",IF('Project Information'!$D$33=\"Pay For Performance\",\"Actual\",\"Deemed\"))","v":""},{"$f":"IF('effRT Support'!$B170=0,\"\",\"Location\")","v":""},{"$f":"IF('effRT Support'!$B170=0,\"\",'effRT Support'!$E170)","v":""},{"$f":"IF('effRT Support'!$B170=0,\"\",\"Space Type\")","v":""},{"$f":"IF('effRT Support'!$B170=0,\"\",'effRT Support'!$G170)","v":""},{"$f":"IF('effRT Support'!$B170=0,\"\",\"Existing Fixture Description\")","v":""},{"$f":"IF('effRT Support'!$B170=0,\"\",'effRT Support'!$H170)","v":""},{"$f":"IF('effRT Support'!$B170=0,\"\",\"Existing Fixture Quantity\")","v":""},{"$f":"IF('effRT Support'!$B170=0,\"\",'effRT Support'!$I170)","v":""},{"$f":"IF('effRT Support'!$B170=0,\"\",\"Existing Fixture Wattage\")","v":""},{"$f":"IF('effRT Support'!$B170=0,\"\",'effRT Support'!$J170)","v":""},{"$f":"IF('effRT Support'!$B170=0,\"\",\"Annual Hours of Operation\")","v":""},{"$f":"IF('effRT Support'!$B170=0,\"\",'effRT Support'!$K170)","v":""},{"$f":"IF('effRT Support'!$B170=0,\"\",\"Installed Fixture Description\")","v":""},{"$f":"IF('effRT Support'!$B170=0,\"\",'effRT Support'!$M170)","v":""},{"$f":"IF('effRT Support'!$B170=0,\"\",\"Installed Fixture Wattage\")","v":""},{"$f":"IF('effRT Support'!$B170=0,\"\",'effRT Support'!$O170)","v":""},{"$f":"IF('effRT Support'!$B170=0,\"\",\"Material Cost\")","v":""},{"$f":"IF('effRT Support'!$B170=0,\"\",'effRT Support'!$R170)","v":""},{"$f":"IF('effRT Support'!$B170=0,\"\",\"Labor Cost\")","v":""},{"$f":"IF('effRT Support'!$B170=0,\"\",'effRT Support'!$S170)","v":""},{"$f":"IF('effRT Support'!$B170=0,\"\",\"Ancillary Costs - Measure Specific\")","v":""},{"$f":"IF('effRT Support'!$B170=0,\"\",'effRT Support'!$T170)","v":""},{"$f":"IF('effRT Support'!$B170=0,\"\",\"Fuel Type\")","v":""},{"$f":"IF('effRT Support'!$B170=0,\"\",'Project Information'!$D$44)","v":""}]
[{"$f":"IF('effRT Support'!$B171=0,\"\",IF('Project Information'!$D$33=\"Small Business\",\"SBL\",\"CILS\"))","v":""},{"$f":"IF('effRT Support'!$B171=0,\"\",IF('Project Information'!$K$2=\"\",\"\",'Project Information'!$K$2))","v":""},null,{"$f":"IF('effRT Support'!$B171=0,\"\",IF('Project Information'!$D$46=\"\",\"\",'Project Information'!$D$46))","v":""},{"$f":"IF('effRT Support'!$B171=0,\"\",IF('Project Information'!$D$20=\"\",\"\",VLOOKUP('Project Information'!$D$20,'Other Data'!$B$159:$E$189,4,FALSE)))","v":""},{"$f":"IF('effRT Support'!$B171=0,\"\",IF('Project Information'!$D$31=\"\",\"\",'Project Information'!$D$31))","v":""},{"$f":"IF('effRT Support'!$B171=0,\"\",IF('Project Information'!$D$5=\"\",\"\",'Project Information'!$D$5))","v":""},null,null,{"$f":"IF('effRT Support'!$B171=0,\"\",IF('Project Information'!$D$20=\"\",\"\",VLOOKUP('Project Information'!$D$20,'Other Data'!$B$159:$E$189,2,FALSE)))","v":""},{"$f":"IF('effRT Support'!$B171=0,\"\",IF('Project Information'!$D$20=\"\",\"\",VLOOKUP('Project Information'!$D$20,'Other Data'!$B$159:$E$189,3,FALSE)))","v":""},{"$f":"IF('effRT Support'!$B171=0,\"\",\"Existing\")","v":""},null,{"$f":"IF('effRT Support'!$B171=0,\"\",IF('Project Information'!$D$21=\"\",\"\",'Project Information'!$D$21))","v":""},{"$f":"IF('effRT Support'!$B171=0,\"\",IF('Project Information'!$D$48=\"\",\"\",'Project Information'!$D$48))","v":""},{"$f":"IF('effRT Support'!$B171=0,\"\",\"\")","v":""},{"$f":"IF('effRT Support'!$B171=0,\"\",\"\")","v":""},{"$f":"IF('effRT Support'!$B171=0,\"\",\"\")","v":""},{"$f":"IF('effRT Support'!$B171=0,\"\",\"\")","v":""},{"$f":"IF('effRT Support'!$B171=0,\"\",IF('Project Information'!$D$13=\"\",\"\",'Project Information'!$D$13))","v":""},{"$f":"IF('effRT Support'!$B171=0,\"\",IF('Project Information'!$E$13=\"\",\"\",'Project Information'!$E$13))","v":""},{"$f":"IF('effRT Support'!$B171=0,\"\",IF('Project Information'!$D$14=\"\",\"\",'Project Information'!$D$14))","v":""},{"$f":"IF('effRT Support'!$B171=0,\"\",IF('Project Information'!$D$15=\"\",\"\",'Project Information'!$D$15))","v":""},{"$f":"IF('effRT Support'!$B171=0,\"\",IF('Project Information'!$D$16=\"\",\"\",'Project Information'!$D$16))","v":""},null,{"$f":"IF('effRT Support'!$B171=0,\"\",'Project Information'!$D$18)","v":""},{"$f":"IF('effRT Support'!$B171=0,\"\",IF('Project Information'!$D$23=\"\",\"\",'Project Information'!$D$23))","v":""},{"$f":"IF('effRT Support'!$B171=0,\"\",IF('Project Information'!$D$24=\"\",\"\",'Project Information'!$D$24))","v":""},{"$f":"IF('effRT Support'!$B171=0,\"\",IF('Project Information'!$D$25=\"\",\"\",'Project Information'!$D$25))","v":""},{"$f":"IF('effRT Support'!$B171=0,\"\",IF('Project Information'!$E$25=\"\",\"\",'Project Information'!$E$25))","v":""},{"$f":"IF('effRT Support'!$B171=0,\"\",IF('Project Information'!$F$25=\"\",\"\",'Project Information'!$F$25))","v":""},{"$f":"IF('effRT Support'!$B171=0,\"\",IF('Project Information'!$D$27=\"\",\"Y\",\"N\"))","v":""},{"$f":"IF('effRT Support'!$B171=0,\"\",IF('Project Information'!$D$27=\"\",\"\",'Project Information'!$D$27))","v":""},{"$f":"IF('effRT Support'!$B171=0,\"\",IF('Project Information'!$D$28=\"\",\"\",'Project Information'!$D$28))","v":""},{"$f":"IF('effRT Support'!$B171=0,\"\",IF('Project Information'!$D$29=\"\",\"\",'Project Information'!$D$29))","v":""},{"$f":"IF('effRT Support'!$B171=0,\"\",IF('Project Information'!$E$29=\"\",\"\",'Project Information'!$E$29))","v":""},{"$f":"IF('effRT Support'!$B171=0,\"\",IF('Project Information'!$F$29=\"\",\"\",'Project Information'!$F$29))","v":""},{"$f":"IF('effRT Support'!$B171=0,\"\",\"\")","v":""},{"$f":"IF('effRT Support'!$B171=0,\"\",\"\")","v":""},{"$f":"IF('effRT Support'!$B171=0,\"\",IF('Project Information'!$D$36=\"\",\"\",'Project Information'!$D$36))","v":""},{"$f":"IF('effRT Support'!$B171=0,\"\",IF('Project Information'!$D$42=\"\",\"\",'Project Information'!$D$42))","v":""},{"$f":"IF('effRT Support'!$B171=0,\"\",'effRT Support'!$D171)","v":""},{"$f":"IF('effRT Support'!$B171=0,\"\",'effRT Support'!$L171)","v":""},{"$f":"IF('effRT Support'!$B171=0,\"\",'effRT Support'!$N171)","v":""},null,null,{"$f":"IF('effRT Support'!$B171=0,\"\",'effRT Support'!$P171)","v":""},{"$f":"IF('effRT Support'!$B171=0,\"\",'effRT Support'!$Q171)","v":""},{"$f":"IF('effRT Support'!$B171=0,\"\",'effRT Support'!U171)","v":""},{"$f":"IF('effRT Support'!$B171=0,\"\",'effRT Support'!V171)","v":""},{"$f":"IF('effRT Support'!$B171=0,\"\",'effRT Support'!W171)","v":""},{"$f":"IF('effRT Support'!$B171=0,\"\",'effRT Support'!X171)","v":""},{"$f":"IF('effRT Support'!$B171=0,\"\",'effRT Support'!Y171)","v":""},{"$f":"IF('effRT Support'!$B171=0,\"\",'effRT Support'!Z171*10)","v":""},{"$f":"IF('effRT Support'!$B171=0,\"\",'effRT Support'!AA171)","v":""},{"$f":"IF('effRT Support'!$B171=0,\"\",'effRT Support'!AB171)","v":""},{"$f":"IF('effRT Support'!$B171=0,\"\",'effRT Support'!AC171)","v":""},{"$f":"IF('effRT Support'!$B171=0,\"\",'effRT Support'!AD171)","v":""},{"$f":"IF('effRT Support'!$B171=0,\"\",'effRT Support'!AE171)","v":""},{"$f":"IF('effRT Support'!$B171=0,\"\",\"Hours Actual or Deemed\")","v":""},{"$f":"IF('effRT Support'!$B171=0,\"\",'effRT Support'!$F171)","v":""},{"$f":"IF('effRT Support'!$B171=0,\"\",\"Wattage Actual or Deemed\")","v":""},{"$f":"IF('effRT Support'!$B171=0,\"\",IF('Project Information'!$D$33=\"Pay For Performance\",\"Actual\",\"Deemed\"))","v":""},{"$f":"IF('effRT Support'!$B171=0,\"\",\"Cost Actual or Deemed\")","v":""},{"$f":"IF('effRT Support'!$B171=0,\"\",IF('Project Information'!$D$33=\"Pay For Performance\",\"Actual\",\"Deemed\"))","v":""},{"$f":"IF('effRT Support'!$B171=0,\"\",\"Location\")","v":""},{"$f":"IF('effRT Support'!$B171=0,\"\",'effRT Support'!$E171)","v":""},{"$f":"IF('effRT Support'!$B171=0,\"\",\"Space Type\")","v":""},{"$f":"IF('effRT Support'!$B171=0,\"\",'effRT Support'!$G171)","v":""},{"$f":"IF('effRT Support'!$B171=0,\"\",\"Existing Fixture Description\")","v":""},{"$f":"IF('effRT Support'!$B171=0,\"\",'effRT Support'!$H171)","v":""},{"$f":"IF('effRT Support'!$B171=0,\"\",\"Existing Fixture Quantity\")","v":""},{"$f":"IF('effRT Support'!$B171=0,\"\",'effRT Support'!$I171)","v":""},{"$f":"IF('effRT Support'!$B171=0,\"\",\"Existing Fixture Wattage\")","v":""},{"$f":"IF('effRT Support'!$B171=0,\"\",'effRT Support'!$J171)","v":""},{"$f":"IF('effRT Support'!$B171=0,\"\",\"Annual Hours of Operation\")","v":""},{"$f":"IF('effRT Support'!$B171=0,\"\",'effRT Support'!$K171)","v":""},{"$f":"IF('effRT Support'!$B171=0,\"\",\"Installed Fixture Description\")","v":""},{"$f":"IF('effRT Support'!$B171=0,\"\",'effRT Support'!$M171)","v":""},{"$f":"IF('effRT Support'!$B171=0,\"\",\"Installed Fixture Wattage\")","v":""},{"$f":"IF('effRT Support'!$B171=0,\"\",'effRT Support'!$O171)","v":""},{"$f":"IF('effRT Support'!$B171=0,\"\",\"Material Cost\")","v":""},{"$f":"IF('effRT Support'!$B171=0,\"\",'effRT Support'!$R171)","v":""},{"$f":"IF('effRT Support'!$B171=0,\"\",\"Labor Cost\")","v":""},{"$f":"IF('effRT Support'!$B171=0,\"\",'effRT Support'!$S171)","v":""},{"$f":"IF('effRT Support'!$B171=0,\"\",\"Ancillary Costs - Measure Specific\")","v":""},{"$f":"IF('effRT Support'!$B171=0,\"\",'effRT Support'!$T171)","v":""},{"$f":"IF('effRT Support'!$B171=0,\"\",\"Fuel Type\")","v":""},{"$f":"IF('effRT Support'!$B171=0,\"\",'Project Information'!$D$44)","v":""},{"$f":"IF('effRT Support'!$B171=0,\"\",\"Installed Fixture Quantity\")","v":""},{"$f":"IF('effRT Support'!$B171=0,\"\",'effRT Support'!P170)","v":""}]
[{"$f":"IF('effRT Support'!$B172=0,\"\",IF('Project Information'!$D$33=\"Small Business\",\"SBL\",\"CILS\"))","v":""},{"$f":"IF('effRT Support'!$B172=0,\"\",IF('Project Information'!$K$2=\"\",\"\",'Project Information'!$K$2))","v":""},null,{"$f":"IF('effRT Support'!$B172=0,\"\",IF('Project Information'!$D$46=\"\",\"\",'Project Information'!$D$46))","v":""},{"$f":"IF('effRT Support'!$B172=0,\"\",IF('Project Information'!$D$20=\"\",\"\",VLOOKUP('Project Information'!$D$20,'Other Data'!$B$159:$E$189,4,FALSE)))","v":""},{"$f":"IF('effRT Support'!$B172=0,\"\",IF('Project Information'!$D$31=\"\",\"\",'Project Information'!$D$31))","v":""},{"$f":"IF('effRT Support'!$B172=0,\"\",IF('Project Information'!$D$5=\"\",\"\",'Project Information'!$D$5))","v":""},null,null,{"$f":"IF('effRT Support'!$B172=0,\"\",IF('Project Information'!$D$20=\"\",\"\",VLOOKUP('Project Information'!$D$20,'Other Data'!$B$159:$E$189,2,FALSE)))","v":""},{"$f":"IF('effRT Support'!$B172=0,\"\",IF('Project Information'!$D$20=\"\",\"\",VLOOKUP('Project Information'!$D$20,'Other Data'!$B$159:$E$189,3,FALSE)))","v":""},{"$f":"IF('effRT Support'!$B172=0,\"\",\"Existing\")","v":""},null,{"$f":"IF('effRT Support'!$B172=0,\"\",IF('Project Information'!$D$21=\"\",\"\",'Project Information'!$D$21))","v":""},{"$f":"IF('effRT Support'!$B172=0,\"\",IF('Project Information'!$D$48=\"\",\"\",'Project Information'!$D$48))","v":""},{"$f":"IF('effRT Support'!$B172=0,\"\",\"\")","v":""},{"$f":"IF('effRT Support'!$B172=0,\"\",\"\")","v":""},{"$f":"IF('effRT Support'!$B172=0,\"\",\"\")","v":""},{"$f":"IF('effRT Support'!$B172=0,\"\",\"\")","v":""},{"$f":"IF('effRT Support'!$B172=0,\"\",IF('Project Information'!$D$13=\"\",\"\",'Project Information'!$D$13))","v":""},{"$f":"IF('effRT Support'!$B172=0,\"\",IF('Project Information'!$E$13=\"\",\"\",'Project Information'!$E$13))","v":""},{"$f":"IF('effRT Support'!$B172=0,\"\",IF('Project Information'!$D$14=\"\",\"\",'Project Information'!$D$14))","v":""},{"$f":"IF('effRT Support'!$B172=0,\"\",IF('Project Information'!$D$15=\"\",\"\",'Project Information'!$D$15))","v":""},{"$f":"IF('effRT Support'!$B172=0,\"\",IF('Project Information'!$D$16=\"\",\"\",'Project Information'!$D$16))","v":""},null,{"$f":"IF('effRT Support'!$B172=0,\"\",'Project Information'!$D$18)","v":""},{"$f":"IF('effRT Support'!$B172=0,\"\",IF('Project Information'!$D$23=\"\",\"\",'Project Information'!$D$23))","v":""},{"$f":"IF('effRT Support'!$B172=0,\"\",IF('Project Information'!$D$24=\"\",\"\",'Project Information'!$D$24))","v":""},{"$f":"IF('effRT Support'!$B172=0,\"\",IF('Project Information'!$D$25=\"\",\"\",'Project Information'!$D$25))","v":""},{"$f":"IF('effRT Support'!$B172=0,\"\",IF('Project Information'!$E$25=\"\",\"\",'Project Information'!$E$25))","v":""},{"$f":"IF('effRT Support'!$B172=0,\"\",IF('Project Information'!$F$25=\"\",\"\",'Project Information'!$F$25))","v":""},{"$f":"IF('effRT Support'!$B172=0,\"\",IF('Project Information'!$D$27=\"\",\"Y\",\"N\"))","v":""},{"$f":"IF('effRT Support'!$B172=0,\"\",IF('Project Information'!$D$27=\"\",\"\",'Project Information'!$D$27))","v":""},{"$f":"IF('effRT Support'!$B172=0,\"\",IF('Project Information'!$D$28=\"\",\"\",'Project Information'!$D$28))","v":""},{"$f":"IF('effRT Support'!$B172=0,\"\",IF('Project Information'!$D$29=\"\",\"\",'Project Information'!$D$29))","v":""},{"$f":"IF('effRT Support'!$B172=0,\"\",IF('Project Information'!$E$29=\"\",\"\",'Project Information'!$E$29))","v":""},{"$f":"IF('effRT Support'!$B172=0,\"\",IF('Project Information'!$F$29=\"\",\"\",'Project Information'!$F$29))","v":""},{"$f":"IF('effRT Support'!$B172=0,\"\",\"\")","v":""},{"$f":"IF('effRT Support'!$B172=0,\"\",\"\")","v":""},{"$f":"IF('effRT Support'!$B172=0,\"\",IF('Project Information'!$D$36=\"\",\"\",'Project Information'!$D$36))","v":""},{"$f":"IF('effRT Support'!$B172=0,\"\",IF('Project Information'!$D$42=\"\",\"\",'Project Information'!$D$42))","v":""},{"$f":"IF('effRT Support'!$B172=0,\"\",'effRT Support'!$D172)","v":""},{"$f":"IF('effRT Support'!$B172=0,\"\",'effRT Support'!$L172)","v":""},{"$f":"IF('effRT Support'!$B172=0,\"\",'effRT Support'!$N172)","v":""},null,null,{"$f":"IF('effRT Support'!$B172=0,\"\",'effRT Support'!$P172)","v":""},{"$f":"IF('effRT Support'!$B172=0,\"\",'effRT Support'!$Q172)","v":""},{"$f":"IF('effRT Support'!$B172=0,\"\",'effRT Support'!U172)","v":""},{"$f":"IF('effRT Support'!$B172=0,\"\",'effRT Support'!V172)","v":""},{"$f":"IF('effRT Support'!$B172=0,\"\",'effRT Support'!W172)","v":""},{"$f":"IF('effRT Support'!$B172=0,\"\",'effRT Support'!X172)","v":""},{"$f":"IF('effRT Support'!$B172=0,\"\",'effRT Support'!Y172)","v":""},{"$f":"IF('effRT Support'!$B172=0,\"\",'effRT Support'!Z172*10)","v":""},{"$f":"IF('effRT Support'!$B172=0,\"\",'effRT Support'!AA172)","v":""},{"$f":"IF('effRT Support'!$B172=0,\"\",'effRT Support'!AB172)","v":""},{"$f":"IF('effRT Support'!$B172=0,\"\",'effRT Support'!AC172)","v":""},{"$f":"IF('effRT Support'!$B172=0,\"\",'effRT Support'!AD172)","v":""},{"$f":"IF('effRT Support'!$B172=0,\"\",'effRT Support'!AE172)","v":""},{"$f":"IF('effRT Support'!$B172=0,\"\",\"Hours Actual or Deemed\")","v":""},{"$f":"IF('effRT Support'!$B172=0,\"\",'effRT Support'!$F172)","v":""},{"$f":"IF('effRT Support'!$B172=0,\"\",\"Wattage Actual or Deemed\")","v":""},{"$f":"IF('effRT Support'!$B172=0,\"\",IF('Project Information'!$D$33=\"Pay For Performance\",\"Actual\",\"Deemed\"))","v":""},{"$f":"IF('effRT Support'!$B172=0,\"\",\"Cost Actual or Deemed\")","v":""},{"$f":"IF('effRT Support'!$B172=0,\"\",IF('Project Information'!$D$33=\"Pay For Performance\",\"Actual\",\"Deemed\"))","v":""},{"$f":"IF('effRT Support'!$B172=0,\"\",\"Location\")","v":""},{"$f":"IF('effRT Support'!$B172=0,\"\",'effRT Support'!$E172)","v":""},{"$f":"IF('effRT Support'!$B172=0,\"\",\"Space Type\")","v":""},{"$f":"IF('effRT Support'!$B172=0,\"\",'effRT Support'!$G172)","v":""},{"$f":"IF('effRT Support'!$B172=0,\"\",\"Existing Fixture Description\")","v":""},{"$f":"IF('effRT Support'!$B172=0,\"\",'effRT Support'!$H172)","v":""},{"$f":"IF('effRT Support'!$B172=0,\"\",\"Existing Fixture Quantity\")","v":""},{"$f":"IF('effRT Support'!$B172=0,\"\",'effRT Support'!$I172)","v":""},{"$f":"IF('effRT Support'!$B172=0,\"\",\"Existing Fixture Wattage\")","v":""},{"$f":"IF('effRT Support'!$B172=0,\"\",'effRT Support'!$J172)","v":""},{"$f":"IF('effRT Support'!$B172=0,\"\",\"Annual Hours of Operation\")","v":""},{"$f":"IF('effRT Support'!$B172=0,\"\",'effRT Support'!$K172)","v":""},{"$f":"IF('effRT Support'!$B172=0,\"\",\"Installed Fixture Description\")","v":""},{"$f":"IF('effRT Support'!$B172=0,\"\",'effRT Support'!$M172)","v":""},{"$f":"IF('effRT Support'!$B172=0,\"\",\"Installed Fixture Wattage\")","v":""},{"$f":"IF('effRT Support'!$B172=0,\"\",'effRT Support'!$O172)","v":""},{"$f":"IF('effRT Support'!$B172=0,\"\",\"Material Cost\")","v":""},{"$f":"IF('effRT Support'!$B172=0,\"\",'effRT Support'!$R172)","v":""},{"$f":"IF('effRT Support'!$B172=0,\"\",\"Labor Cost\")","v":""},{"$f":"IF('effRT Support'!$B172=0,\"\",'effRT Support'!$S172)","v":""},{"$f":"IF('effRT Support'!$B172=0,\"\",\"Ancillary Costs - Measure Specific\")","v":""},{"$f":"IF('effRT Support'!$B172=0,\"\",'effRT Support'!$T172)","v":""},{"$f":"IF('effRT Support'!$B172=0,\"\",\"Fuel Type\")","v":""},{"$f":"IF('effRT Support'!$B172=0,\"\",'Project Information'!$D$44)","v":""}]
[{"$f":"IF('effRT Support'!$B173=0,\"\",IF('Project Information'!$D$33=\"Small Business\",\"SBL\",\"CILS\"))","v":""},{"$f":"IF('effRT Support'!$B173=0,\"\",IF('Project Information'!$K$2=\"\",\"\",'Project Information'!$K$2))","v":""},null,{"$f":"IF('effRT Support'!$B173=0,\"\",IF('Project Information'!$D$46=\"\",\"\",'Project Information'!$D$46))","v":""},{"$f":"IF('effRT Support'!$B173=0,\"\",IF('Project Information'!$D$20=\"\",\"\",VLOOKUP('Project Information'!$D$20,'Other Data'!$B$159:$E$189,4,FALSE)))","v":""},{"$f":"IF('effRT Support'!$B173=0,\"\",IF('Project Information'!$D$31=\"\",\"\",'Project Information'!$D$31))","v":""},{"$f":"IF('effRT Support'!$B173=0,\"\",IF('Project Information'!$D$5=\"\",\"\",'Project Information'!$D$5))","v":""},null,null,{"$f":"IF('effRT Support'!$B173=0,\"\",IF('Project Information'!$D$20=\"\",\"\",VLOOKUP('Project Information'!$D$20,'Other Data'!$B$159:$E$189,2,FALSE)))","v":""},{"$f":"IF('effRT Support'!$B173=0,\"\",IF('Project Information'!$D$20=\"\",\"\",VLOOKUP('Project Information'!$D$20,'Other Data'!$B$159:$E$189,3,FALSE)))","v":""},{"$f":"IF('effRT Support'!$B173=0,\"\",\"Existing\")","v":""},null,{"$f":"IF('effRT Support'!$B173=0,\"\",IF('Project Information'!$D$21=\"\",\"\",'Project Information'!$D$21))","v":""},{"$f":"IF('effRT Support'!$B173=0,\"\",IF('Project Information'!$D$48=\"\",\"\",'Project Information'!$D$48))","v":""},{"$f":"IF('effRT Support'!$B173=0,\"\",\"\")","v":""},{"$f":"IF('effRT Support'!$B173=0,\"\",\"\")","v":""},{"$f":"IF('effRT Support'!$B173=0,\"\",\"\")","v":""},{"$f":"IF('effRT Support'!$B173=0,\"\",\"\")","v":""},{"$f":"IF('effRT Support'!$B173=0,\"\",IF('Project Information'!$D$13=\"\",\"\",'Project Information'!$D$13))","v":""},{"$f":"IF('effRT Support'!$B173=0,\"\",IF('Project Information'!$E$13=\"\",\"\",'Project Information'!$E$13))","v":""},{"$f":"IF('effRT Support'!$B173=0,\"\",IF('Project Information'!$D$14=\"\",\"\",'Project Information'!$D$14))","v":""},{"$f":"IF('effRT Support'!$B173=0,\"\",IF('Project Information'!$D$15=\"\",\"\",'Project Information'!$D$15))","v":""},{"$f":"IF('effRT Support'!$B173=0,\"\",IF('Project Information'!$D$16=\"\",\"\",'Project Information'!$D$16))","v":""},null,{"$f":"IF('effRT Support'!$B173=0,\"\",'Project Information'!$D$18)","v":""},{"$f":"IF('effRT Support'!$B173=0,\"\",IF('Project Information'!$D$23=\"\",\"\",'Project Information'!$D$23))","v":""},{"$f":"IF('effRT Support'!$B173=0,\"\",IF('Project Information'!$D$24=\"\",\"\",'Project Information'!$D$24))","v":""},{"$f":"IF('effRT Support'!$B173=0,\"\",IF('Project Information'!$D$25=\"\",\"\",'Project Information'!$D$25))","v":""},{"$f":"IF('effRT Support'!$B173=0,\"\",IF('Project Information'!$E$25=\"\",\"\",'Project Information'!$E$25))","v":""},{"$f":"IF('effRT Support'!$B173=0,\"\",IF('Project Information'!$F$25=\"\",\"\",'Project Information'!$F$25))","v":""},{"$f":"IF('effRT Support'!$B173=0,\"\",IF('Project Information'!$D$27=\"\",\"Y\",\"N\"))","v":""},{"$f":"IF('effRT Support'!$B173=0,\"\",IF('Project Information'!$D$27=\"\",\"\",'Project Information'!$D$27))","v":""},{"$f":"IF('effRT Support'!$B173=0,\"\",IF('Project Information'!$D$28=\"\",\"\",'Project Information'!$D$28))","v":""},{"$f":"IF('effRT Support'!$B173=0,\"\",IF('Project Information'!$D$29=\"\",\"\",'Project Information'!$D$29))","v":""},{"$f":"IF('effRT Support'!$B173=0,\"\",IF('Project Information'!$E$29=\"\",\"\",'Project Information'!$E$29))","v":""},{"$f":"IF('effRT Support'!$B173=0,\"\",IF('Project Information'!$F$29=\"\",\"\",'Project Information'!$F$29))","v":""},{"$f":"IF('effRT Support'!$B173=0,\"\",\"\")","v":""},{"$f":"IF('effRT Support'!$B173=0,\"\",\"\")","v":""},{"$f":"IF('effRT Support'!$B173=0,\"\",IF('Project Information'!$D$36=\"\",\"\",'Project Information'!$D$36))","v":""},{"$f":"IF('effRT Support'!$B173=0,\"\",IF('Project Information'!$D$42=\"\",\"\",'Project Information'!$D$42))","v":""},{"$f":"IF('effRT Support'!$B173=0,\"\",'effRT Support'!$D173)","v":""},{"$f":"IF('effRT Support'!$B173=0,\"\",'effRT Support'!$L173)","v":""},{"$f":"IF('effRT Support'!$B173=0,\"\",'effRT Support'!$N173)","v":""},null,null,{"$f":"IF('effRT Support'!$B173=0,\"\",'effRT Support'!$P173)","v":""},{"$f":"IF('effRT Support'!$B173=0,\"\",'effRT Support'!$Q173)","v":""},{"$f":"IF('effRT Support'!$B173=0,\"\",'effRT Support'!U173)","v":""},{"$f":"IF('effRT Support'!$B173=0,\"\",'effRT Support'!V173)","v":""},{"$f":"IF('effRT Support'!$B173=0,\"\",'effRT Support'!W173)","v":""},{"$f":"IF('effRT Support'!$B173=0,\"\",'effRT Support'!X173)","v":""},{"$f":"IF('effRT Support'!$B173=0,\"\",'effRT Support'!Y173)","v":""},{"$f":"IF('effRT Support'!$B173=0,\"\",'effRT Support'!Z173*10)","v":""},{"$f":"IF('effRT Support'!$B173=0,\"\",'effRT Support'!AA173)","v":""},{"$f":"IF('effRT Support'!$B173=0,\"\",'effRT Support'!AB173)","v":""},{"$f":"IF('effRT Support'!$B173=0,\"\",'effRT Support'!AC173)","v":""},{"$f":"IF('effRT Support'!$B173=0,\"\",'effRT Support'!AD173)","v":""},{"$f":"IF('effRT Support'!$B173=0,\"\",'effRT Support'!AE173)","v":""},{"$f":"IF('effRT Support'!$B173=0,\"\",\"Hours Actual or Deemed\")","v":""},{"$f":"IF('effRT Support'!$B173=0,\"\",'effRT Support'!$F173)","v":""},{"$f":"IF('effRT Support'!$B173=0,\"\",\"Wattage Actual or Deemed\")","v":""},{"$f":"IF('effRT Support'!$B173=0,\"\",IF('Project Information'!$D$33=\"Pay For Performance\",\"Actual\",\"Deemed\"))","v":""},{"$f":"IF('effRT Support'!$B173=0,\"\",\"Cost Actual or Deemed\")","v":""},{"$f":"IF('effRT Support'!$B173=0,\"\",IF('Project Information'!$D$33=\"Pay For Performance\",\"Actual\",\"Deemed\"))","v":""},{"$f":"IF('effRT Support'!$B173=0,\"\",\"Location\")","v":""},{"$f":"IF('effRT Support'!$B173=0,\"\",'effRT Support'!$E173)","v":""},{"$f":"IF('effRT Support'!$B173=0,\"\",\"Space Type\")","v":""},{"$f":"IF('effRT Support'!$B173=0,\"\",'effRT Support'!$G173)","v":""},{"$f":"IF('effRT Support'!$B173=0,\"\",\"Existing Fixture Description\")","v":""},{"$f":"IF('effRT Support'!$B173=0,\"\",'effRT Support'!$H173)","v":""},{"$f":"IF('effRT Support'!$B173=0,\"\",\"Existing Fixture Quantity\")","v":""},{"$f":"IF('effRT Support'!$B173=0,\"\",'effRT Support'!$I173)","v":""},{"$f":"IF('effRT Support'!$B173=0,\"\",\"Existing Fixture Wattage\")","v":""},{"$f":"IF('effRT Support'!$B173=0,\"\",'effRT Support'!$J173)","v":""},{"$f":"IF('effRT Support'!$B173=0,\"\",\"Annual Hours of Operation\")","v":""},{"$f":"IF('effRT Support'!$B173=0,\"\",'effRT Support'!$K173)","v":""},{"$f":"IF('effRT Support'!$B173=0,\"\",\"Installed Fixture Description\")","v":""},{"$f":"IF('effRT Support'!$B173=0,\"\",'effRT Support'!$M173)","v":""},{"$f":"IF('effRT Support'!$B173=0,\"\",\"Installed Fixture Wattage\")","v":""},{"$f":"IF('effRT Support'!$B173=0,\"\",'effRT Support'!$O173)","v":""},{"$f":"IF('effRT Support'!$B173=0,\"\",\"Material Cost\")","v":""},{"$f":"IF('effRT Support'!$B173=0,\"\",'effRT Support'!$R173)","v":""},{"$f":"IF('effRT Support'!$B173=0,\"\",\"Labor Cost\")","v":""},{"$f":"IF('effRT Support'!$B173=0,\"\",'effRT Support'!$S173)","v":""},{"$f":"IF('effRT Support'!$B173=0,\"\",\"Ancillary Costs - Measure Specific\")","v":""},{"$f":"IF('effRT Support'!$B173=0,\"\",'effRT Support'!$T173)","v":""},{"$f":"IF('effRT Support'!$B173=0,\"\",\"Fuel Type\")","v":""},{"$f":"IF('effRT Support'!$B173=0,\"\",'Project Information'!$D$44)","v":""},{"$f":"IF('effRT Support'!$B173=0,\"\",\"Installed Fixture Quantity\")","v":""},{"$f":"IF('effRT Support'!$B173=0,\"\",'effRT Support'!P172)","v":""}]
[{"$f":"IF('effRT Support'!$B174=0,\"\",IF('Project Information'!$D$33=\"Small Business\",\"SBL\",\"CILS\"))","v":""},{"$f":"IF('effRT Support'!$B174=0,\"\",IF('Project Information'!$K$2=\"\",\"\",'Project Information'!$K$2))","v":""},null,{"$f":"IF('effRT Support'!$B174=0,\"\",IF('Project Information'!$D$46=\"\",\"\",'Project Information'!$D$46))","v":""},{"$f":"IF('effRT Support'!$B174=0,\"\",IF('Project Information'!$D$20=\"\",\"\",VLOOKUP('Project Information'!$D$20,'Other Data'!$B$159:$E$189,4,FALSE)))","v":""},{"$f":"IF('effRT Support'!$B174=0,\"\",IF('Project Information'!$D$31=\"\",\"\",'Project Information'!$D$31))","v":""},{"$f":"IF('effRT Support'!$B174=0,\"\",IF('Project Information'!$D$5=\"\",\"\",'Project Information'!$D$5))","v":""},null,null,{"$f":"IF('effRT Support'!$B174=0,\"\",IF('Project Information'!$D$20=\"\",\"\",VLOOKUP('Project Information'!$D$20,'Other Data'!$B$159:$E$189,2,FALSE)))","v":""},{"$f":"IF('effRT Support'!$B174=0,\"\",IF('Project Information'!$D$20=\"\",\"\",VLOOKUP('Project Information'!$D$20,'Other Data'!$B$159:$E$189,3,FALSE)))","v":""},{"$f":"IF('effRT Support'!$B174=0,\"\",\"Existing\")","v":""},null,{"$f":"IF('effRT Support'!$B174=0,\"\",IF('Project Information'!$D$21=\"\",\"\",'Project Information'!$D$21))","v":""},{"$f":"IF('effRT Support'!$B174=0,\"\",IF('Project Information'!$D$48=\"\",\"\",'Project Information'!$D$48))","v":""},{"$f":"IF('effRT Support'!$B174=0,\"\",\"\")","v":""},{"$f":"IF('effRT Support'!$B174=0,\"\",\"\")","v":""},{"$f":"IF('effRT Support'!$B174=0,\"\",\"\")","v":""},{"$f":"IF('effRT Support'!$B174=0,\"\",\"\")","v":""},{"$f":"IF('effRT Support'!$B174=0,\"\",IF('Project Information'!$D$13=\"\",\"\",'Project Information'!$D$13))","v":""},{"$f":"IF('effRT Support'!$B174=0,\"\",IF('Project Information'!$E$13=\"\",\"\",'Project Information'!$E$13))","v":""},{"$f":"IF('effRT Support'!$B174=0,\"\",IF('Project Information'!$D$14=\"\",\"\",'Project Information'!$D$14))","v":""},{"$f":"IF('effRT Support'!$B174=0,\"\",IF('Project Information'!$D$15=\"\",\"\",'Project Information'!$D$15))","v":""},{"$f":"IF('effRT Support'!$B174=0,\"\",IF('Project Information'!$D$16=\"\",\"\",'Project Information'!$D$16))","v":""},null,{"$f":"IF('effRT Support'!$B174=0,\"\",'Project Information'!$D$18)","v":""},{"$f":"IF('effRT Support'!$B174=0,\"\",IF('Project Information'!$D$23=\"\",\"\",'Project Information'!$D$23))","v":""},{"$f":"IF('effRT Support'!$B174=0,\"\",IF('Project Information'!$D$24=\"\",\"\",'Project Information'!$D$24))","v":""},{"$f":"IF('effRT Support'!$B174=0,\"\",IF('Project Information'!$D$25=\"\",\"\",'Project Information'!$D$25))","v":""},{"$f":"IF('effRT Support'!$B174=0,\"\",IF('Project Information'!$E$25=\"\",\"\",'Project Information'!$E$25))","v":""},{"$f":"IF('effRT Support'!$B174=0,\"\",IF('Project Information'!$F$25=\"\",\"\",'Project Information'!$F$25))","v":""},{"$f":"IF('effRT Support'!$B174=0,\"\",IF('Project Information'!$D$27=\"\",\"Y\",\"N\"))","v":""},{"$f":"IF('effRT Support'!$B174=0,\"\",IF('Project Information'!$D$27=\"\",\"\",'Project Information'!$D$27))","v":""},{"$f":"IF('effRT Support'!$B174=0,\"\",IF('Project Information'!$D$28=\"\",\"\",'Project Information'!$D$28))","v":""},{"$f":"IF('effRT Support'!$B174=0,\"\",IF('Project Information'!$D$29=\"\",\"\",'Project Information'!$D$29))","v":""},{"$f":"IF('effRT Support'!$B174=0,\"\",IF('Project Information'!$E$29=\"\",\"\",'Project Information'!$E$29))","v":""},{"$f":"IF('effRT Support'!$B174=0,\"\",IF('Project Information'!$F$29=\"\",\"\",'Project Information'!$F$29))","v":""},{"$f":"IF('effRT Support'!$B174=0,\"\",\"\")","v":""},{"$f":"IF('effRT Support'!$B174=0,\"\",\"\")","v":""},{"$f":"IF('effRT Support'!$B174=0,\"\",IF('Project Information'!$D$36=\"\",\"\",'Project Information'!$D$36))","v":""},{"$f":"IF('effRT Support'!$B174=0,\"\",IF('Project Information'!$D$42=\"\",\"\",'Project Information'!$D$42))","v":""},{"$f":"IF('effRT Support'!$B174=0,\"\",'effRT Support'!$D174)","v":""},{"$f":"IF('effRT Support'!$B174=0,\"\",'effRT Support'!$L174)","v":""},{"$f":"IF('effRT Support'!$B174=0,\"\",'effRT Support'!$N174)","v":""},null,null,{"$f":"IF('effRT Support'!$B174=0,\"\",'effRT Support'!$P174)","v":""},{"$f":"IF('effRT Support'!$B174=0,\"\",'effRT Support'!$Q174)","v":""},{"$f":"IF('effRT Support'!$B174=0,\"\",'effRT Support'!U174)","v":""},{"$f":"IF('effRT Support'!$B174=0,\"\",'effRT Support'!V174)","v":""},{"$f":"IF('effRT Support'!$B174=0,\"\",'effRT Support'!W174)","v":""},{"$f":"IF('effRT Support'!$B174=0,\"\",'effRT Support'!X174)","v":""},{"$f":"IF('effRT Support'!$B174=0,\"\",'effRT Support'!Y174)","v":""},{"$f":"IF('effRT Support'!$B174=0,\"\",'effRT Support'!Z174*10)","v":""},{"$f":"IF('effRT Support'!$B174=0,\"\",'effRT Support'!AA174)","v":""},{"$f":"IF('effRT Support'!$B174=0,\"\",'effRT Support'!AB174)","v":""},{"$f":"IF('effRT Support'!$B174=0,\"\",'effRT Support'!AC174)","v":""},{"$f":"IF('effRT Support'!$B174=0,\"\",'effRT Support'!AD174)","v":""},{"$f":"IF('effRT Support'!$B174=0,\"\",'effRT Support'!AE174)","v":""},{"$f":"IF('effRT Support'!$B174=0,\"\",\"Hours Actual or Deemed\")","v":""},{"$f":"IF('effRT Support'!$B174=0,\"\",'effRT Support'!$F174)","v":""},{"$f":"IF('effRT Support'!$B174=0,\"\",\"Wattage Actual or Deemed\")","v":""},{"$f":"IF('effRT Support'!$B174=0,\"\",IF('Project Information'!$D$33=\"Pay For Performance\",\"Actual\",\"Deemed\"))","v":""},{"$f":"IF('effRT Support'!$B174=0,\"\",\"Cost Actual or Deemed\")","v":""},{"$f":"IF('effRT Support'!$B174=0,\"\",IF('Project Information'!$D$33=\"Pay For Performance\",\"Actual\",\"Deemed\"))","v":""},{"$f":"IF('effRT Support'!$B174=0,\"\",\"Location\")","v":""},{"$f":"IF('effRT Support'!$B174=0,\"\",'effRT Support'!$E174)","v":""},{"$f":"IF('effRT Support'!$B174=0,\"\",\"Space Type\")","v":""},{"$f":"IF('effRT Support'!$B174=0,\"\",'effRT Support'!$G174)","v":""},{"$f":"IF('effRT Support'!$B174=0,\"\",\"Existing Fixture Description\")","v":""},{"$f":"IF('effRT Support'!$B174=0,\"\",'effRT Support'!$H174)","v":""},{"$f":"IF('effRT Support'!$B174=0,\"\",\"Existing Fixture Quantity\")","v":""},{"$f":"IF('effRT Support'!$B174=0,\"\",'effRT Support'!$I174)","v":""},{"$f":"IF('effRT Support'!$B174=0,\"\",\"Existing Fixture Wattage\")","v":""},{"$f":"IF('effRT Support'!$B174=0,\"\",'effRT Support'!$J174)","v":""},{"$f":"IF('effRT Support'!$B174=0,\"\",\"Annual Hours of Operation\")","v":""},{"$f":"IF('effRT Support'!$B174=0,\"\",'effRT Support'!$K174)","v":""},{"$f":"IF('effRT Support'!$B174=0,\"\",\"Installed Fixture Description\")","v":""},{"$f":"IF('effRT Support'!$B174=0,\"\",'effRT Support'!$M174)","v":""},{"$f":"IF('effRT Support'!$B174=0,\"\",\"Installed Fixture Wattage\")","v":""},{"$f":"IF('effRT Support'!$B174=0,\"\",'effRT Support'!$O174)","v":""},{"$f":"IF('effRT Support'!$B174=0,\"\",\"Material Cost\")","v":""},{"$f":"IF('effRT Support'!$B174=0,\"\",'effRT Support'!$R174)","v":""},{"$f":"IF('effRT Support'!$B174=0,\"\",\"Labor Cost\")","v":""},{"$f":"IF('effRT Support'!$B174=0,\"\",'effRT Support'!$S174)","v":""},{"$f":"IF('effRT Support'!$B174=0,\"\",\"Ancillary Costs - Measure Specific\")","v":""},{"$f":"IF('effRT Support'!$B174=0,\"\",'effRT Support'!$T174)","v":""},{"$f":"IF('effRT Support'!$B174=0,\"\",\"Fuel Type\")","v":""},{"$f":"IF('effRT Support'!$B174=0,\"\",'Project Information'!$D$44)","v":""}]
[{"$f":"IF('effRT Support'!$B175=0,\"\",IF('Project Information'!$D$33=\"Small Business\",\"SBL\",\"CILS\"))","v":""},{"$f":"IF('effRT Support'!$B175=0,\"\",IF('Project Information'!$K$2=\"\",\"\",'Project Information'!$K$2))","v":""},null,{"$f":"IF('effRT Support'!$B175=0,\"\",IF('Project Information'!$D$46=\"\",\"\",'Project Information'!$D$46))","v":""},{"$f":"IF('effRT Support'!$B175=0,\"\",IF('Project Information'!$D$20=\"\",\"\",VLOOKUP('Project Information'!$D$20,'Other Data'!$B$159:$E$189,4,FALSE)))","v":""},{"$f":"IF('effRT Support'!$B175=0,\"\",IF('Project Information'!$D$31=\"\",\"\",'Project Information'!$D$31))","v":""},{"$f":"IF('effRT Support'!$B175=0,\"\",IF('Project Information'!$D$5=\"\",\"\",'Project Information'!$D$5))","v":""},null,null,{"$f":"IF('effRT Support'!$B175=0,\"\",IF('Project Information'!$D$20=\"\",\"\",VLOOKUP('Project Information'!$D$20,'Other Data'!$B$159:$E$189,2,FALSE)))","v":""},{"$f":"IF('effRT Support'!$B175=0,\"\",IF('Project Information'!$D$20=\"\",\"\",VLOOKUP('Project Information'!$D$20,'Other Data'!$B$159:$E$189,3,FALSE)))","v":""},{"$f":"IF('effRT Support'!$B175=0,\"\",\"Existing\")","v":""},null,{"$f":"IF('effRT Support'!$B175=0,\"\",IF('Project Information'!$D$21=\"\",\"\",'Project Information'!$D$21))","v":""},{"$f":"IF('effRT Support'!$B175=0,\"\",IF('Project Information'!$D$48=\"\",\"\",'Project Information'!$D$48))","v":""},{"$f":"IF('effRT Support'!$B175=0,\"\",\"\")","v":""},{"$f":"IF('effRT Support'!$B175=0,\"\",\"\")","v":""},{"$f":"IF('effRT Support'!$B175=0,\"\",\"\")","v":""},{"$f":"IF('effRT Support'!$B175=0,\"\",\"\")","v":""},{"$f":"IF('effRT Support'!$B175=0,\"\",IF('Project Information'!$D$13=\"\",\"\",'Project Information'!$D$13))","v":""},{"$f":"IF('effRT Support'!$B175=0,\"\",IF('Project Information'!$E$13=\"\",\"\",'Project Information'!$E$13))","v":""},{"$f":"IF('effRT Support'!$B175=0,\"\",IF('Project Information'!$D$14=\"\",\"\",'Project Information'!$D$14))","v":""},{"$f":"IF('effRT Support'!$B175=0,\"\",IF('Project Information'!$D$15=\"\",\"\",'Project Information'!$D$15))","v":""},{"$f":"IF('effRT Support'!$B175=0,\"\",IF('Project Information'!$D$16=\"\",\"\",'Project Information'!$D$16))","v":""},null,{"$f":"IF('effRT Support'!$B175=0,\"\",'Project Information'!$D$18)","v":""},{"$f":"IF('effRT Support'!$B175=0,\"\",IF('Project Information'!$D$23=\"\",\"\",'Project Information'!$D$23))","v":""},{"$f":"IF('effRT Support'!$B175=0,\"\",IF('Project Information'!$D$24=\"\",\"\",'Project Information'!$D$24))","v":""},{"$f":"IF('effRT Support'!$B175=0,\"\",IF('Project Information'!$D$25=\"\",\"\",'Project Information'!$D$25))","v":""},{"$f":"IF('effRT Support'!$B175=0,\"\",IF('Project Information'!$E$25=\"\",\"\",'Project Information'!$E$25))","v":""},{"$f":"IF('effRT Support'!$B175=0,\"\",IF('Project Information'!$F$25=\"\",\"\",'Project Information'!$F$25))","v":""},{"$f":"IF('effRT Support'!$B175=0,\"\",IF('Project Information'!$D$27=\"\",\"Y\",\"N\"))","v":""},{"$f":"IF('effRT Support'!$B175=0,\"\",IF('Project Information'!$D$27=\"\",\"\",'Project Information'!$D$27))","v":""},{"$f":"IF('effRT Support'!$B175=0,\"\",IF('Project Information'!$D$28=\"\",\"\",'Project Information'!$D$28))","v":""},{"$f":"IF('effRT Support'!$B175=0,\"\",IF('Project Information'!$D$29=\"\",\"\",'Project Information'!$D$29))","v":""},{"$f":"IF('effRT Support'!$B175=0,\"\",IF('Project Information'!$E$29=\"\",\"\",'Project Information'!$E$29))","v":""},{"$f":"IF('effRT Support'!$B175=0,\"\",IF('Project Information'!$F$29=\"\",\"\",'Project Information'!$F$29))","v":""},{"$f":"IF('effRT Support'!$B175=0,\"\",\"\")","v":""},{"$f":"IF('effRT Support'!$B175=0,\"\",\"\")","v":""},{"$f":"IF('effRT Support'!$B175=0,\"\",IF('Project Information'!$D$36=\"\",\"\",'Project Information'!$D$36))","v":""},{"$f":"IF('effRT Support'!$B175=0,\"\",IF('Project Information'!$D$42=\"\",\"\",'Project Information'!$D$42))","v":""},{"$f":"IF('effRT Support'!$B175=0,\"\",'effRT Support'!$D175)","v":""},{"$f":"IF('effRT Support'!$B175=0,\"\",'effRT Support'!$L175)","v":""},{"$f":"IF('effRT Support'!$B175=0,\"\",'effRT Support'!$N175)","v":""},null,null,{"$f":"IF('effRT Support'!$B175=0,\"\",'effRT Support'!$P175)","v":""},{"$f":"IF('effRT Support'!$B175=0,\"\",'effRT Support'!$Q175)","v":""},{"$f":"IF('effRT Support'!$B175=0,\"\",'effRT Support'!U175)","v":""},{"$f":"IF('effRT Support'!$B175=0,\"\",'effRT Support'!V175)","v":""},{"$f":"IF('effRT Support'!$B175=0,\"\",'effRT Support'!W175)","v":""},{"$f":"IF('effRT Support'!$B175=0,\"\",'effRT Support'!X175)","v":""},{"$f":"IF('effRT Support'!$B175=0,\"\",'effRT Support'!Y175)","v":""},{"$f":"IF('effRT Support'!$B175=0,\"\",'effRT Support'!Z175*10)","v":""},{"$f":"IF('effRT Support'!$B175=0,\"\",'effRT Support'!AA175)","v":""},{"$f":"IF('effRT Support'!$B175=0,\"\",'effRT Support'!AB175)","v":""},{"$f":"IF('effRT Support'!$B175=0,\"\",'effRT Support'!AC175)","v":""},{"$f":"IF('effRT Support'!$B175=0,\"\",'effRT Support'!AD175)","v":""},{"$f":"IF('effRT Support'!$B175=0,\"\",'effRT Support'!AE175)","v":""},{"$f":"IF('effRT Support'!$B175=0,\"\",\"Hours Actual or Deemed\")","v":""},{"$f":"IF('effRT Support'!$B175=0,\"\",'effRT Support'!$F175)","v":""},{"$f":"IF('effRT Support'!$B175=0,\"\",\"Wattage Actual or Deemed\")","v":""},{"$f":"IF('effRT Support'!$B175=0,\"\",IF('Project Information'!$D$33=\"Pay For Performance\",\"Actual\",\"Deemed\"))","v":""},{"$f":"IF('effRT Support'!$B175=0,\"\",\"Cost Actual or Deemed\")","v":""},{"$f":"IF('effRT Support'!$B175=0,\"\",IF('Project Information'!$D$33=\"Pay For Performance\",\"Actual\",\"Deemed\"))","v":""},{"$f":"IF('effRT Support'!$B175=0,\"\",\"Location\")","v":""},{"$f":"IF('effRT Support'!$B175=0,\"\",'effRT Support'!$E175)","v":""},{"$f":"IF('effRT Support'!$B175=0,\"\",\"Space Type\")","v":""},{"$f":"IF('effRT Support'!$B175=0,\"\",'effRT Support'!$G175)","v":""},{"$f":"IF('effRT Support'!$B175=0,\"\",\"Existing Fixture Description\")","v":""},{"$f":"IF('effRT Support'!$B175=0,\"\",'effRT Support'!$H175)","v":""},{"$f":"IF('effRT Support'!$B175=0,\"\",\"Existing Fixture Quantity\")","v":""},{"$f":"IF('effRT Support'!$B175=0,\"\",'effRT Support'!$I175)","v":""},{"$f":"IF('effRT Support'!$B175=0,\"\",\"Existing Fixture Wattage\")","v":""},{"$f":"IF('effRT Support'!$B175=0,\"\",'effRT Support'!$J175)","v":""},{"$f":"IF('effRT Support'!$B175=0,\"\",\"Annual Hours of Operation\")","v":""},{"$f":"IF('effRT Support'!$B175=0,\"\",'effRT Support'!$K175)","v":""},{"$f":"IF('effRT Support'!$B175=0,\"\",\"Installed Fixture Description\")","v":""},{"$f":"IF('effRT Support'!$B175=0,\"\",'effRT Support'!$M175)","v":""},{"$f":"IF('effRT Support'!$B175=0,\"\",\"Installed Fixture Wattage\")","v":""},{"$f":"IF('effRT Support'!$B175=0,\"\",'effRT Support'!$O175)","v":""},{"$f":"IF('effRT Support'!$B175=0,\"\",\"Material Cost\")","v":""},{"$f":"IF('effRT Support'!$B175=0,\"\",'effRT Support'!$R175)","v":""},{"$f":"IF('effRT Support'!$B175=0,\"\",\"Labor Cost\")","v":""},{"$f":"IF('effRT Support'!$B175=0,\"\",'effRT Support'!$S175)","v":""},{"$f":"IF('effRT Support'!$B175=0,\"\",\"Ancillary Costs - Measure Specific\")","v":""},{"$f":"IF('effRT Support'!$B175=0,\"\",'effRT Support'!$T175)","v":""},{"$f":"IF('effRT Support'!$B175=0,\"\",\"Fuel Type\")","v":""},{"$f":"IF('effRT Support'!$B175=0,\"\",'Project Information'!$D$44)","v":""},{"$f":"IF('effRT Support'!$B175=0,\"\",\"Installed Fixture Quantity\")","v":""},{"$f":"IF('effRT Support'!$B175=0,\"\",'effRT Support'!P174)","v":""}]
[{"$f":"IF('effRT Support'!$B176=0,\"\",IF('Project Information'!$D$33=\"Small Business\",\"SBL\",\"CILS\"))","v":""},{"$f":"IF('effRT Support'!$B176=0,\"\",IF('Project Information'!$K$2=\"\",\"\",'Project Information'!$K$2))","v":""},null,{"$f":"IF('effRT Support'!$B176=0,\"\",IF('Project Information'!$D$46=\"\",\"\",'Project Information'!$D$46))","v":""},{"$f":"IF('effRT Support'!$B176=0,\"\",IF('Project Information'!$D$20=\"\",\"\",VLOOKUP('Project Information'!$D$20,'Other Data'!$B$159:$E$189,4,FALSE)))","v":""},{"$f":"IF('effRT Support'!$B176=0,\"\",IF('Project Information'!$D$31=\"\",\"\",'Project Information'!$D$31))","v":""},{"$f":"IF('effRT Support'!$B176=0,\"\",IF('Project Information'!$D$5=\"\",\"\",'Project Information'!$D$5))","v":""},null,null,{"$f":"IF('effRT Support'!$B176=0,\"\",IF('Project Information'!$D$20=\"\",\"\",VLOOKUP('Project Information'!$D$20,'Other Data'!$B$159:$E$189,2,FALSE)))","v":""},{"$f":"IF('effRT Support'!$B176=0,\"\",IF('Project Information'!$D$20=\"\",\"\",VLOOKUP('Project Information'!$D$20,'Other Data'!$B$159:$E$189,3,FALSE)))","v":""},{"$f":"IF('effRT Support'!$B176=0,\"\",\"Existing\")","v":""},null,{"$f":"IF('effRT Support'!$B176=0,\"\",IF('Project Information'!$D$21=\"\",\"\",'Project Information'!$D$21))","v":""},{"$f":"IF('effRT Support'!$B176=0,\"\",IF('Project Information'!$D$48=\"\",\"\",'Project Information'!$D$48))","v":""},{"$f":"IF('effRT Support'!$B176=0,\"\",\"\")","v":""},{"$f":"IF('effRT Support'!$B176=0,\"\",\"\")","v":""},{"$f":"IF('effRT Support'!$B176=0,\"\",\"\")","v":""},{"$f":"IF('effRT Support'!$B176=0,\"\",\"\")","v":""},{"$f":"IF('effRT Support'!$B176=0,\"\",IF('Project Information'!$D$13=\"\",\"\",'Project Information'!$D$13))","v":""},{"$f":"IF('effRT Support'!$B176=0,\"\",IF('Project Information'!$E$13=\"\",\"\",'Project Information'!$E$13))","v":""},{"$f":"IF('effRT Support'!$B176=0,\"\",IF('Project Information'!$D$14=\"\",\"\",'Project Information'!$D$14))","v":""},{"$f":"IF('effRT Support'!$B176=0,\"\",IF('Project Information'!$D$15=\"\",\"\",'Project Information'!$D$15))","v":""},{"$f":"IF('effRT Support'!$B176=0,\"\",IF('Project Information'!$D$16=\"\",\"\",'Project Information'!$D$16))","v":""},null,{"$f":"IF('effRT Support'!$B176=0,\"\",'Project Information'!$D$18)","v":""},{"$f":"IF('effRT Support'!$B176=0,\"\",IF('Project Information'!$D$23=\"\",\"\",'Project Information'!$D$23))","v":""},{"$f":"IF('effRT Support'!$B176=0,\"\",IF('Project Information'!$D$24=\"\",\"\",'Project Information'!$D$24))","v":""},{"$f":"IF('effRT Support'!$B176=0,\"\",IF('Project Information'!$D$25=\"\",\"\",'Project Information'!$D$25))","v":""},{"$f":"IF('effRT Support'!$B176=0,\"\",IF('Project Information'!$E$25=\"\",\"\",'Project Information'!$E$25))","v":""},{"$f":"IF('effRT Support'!$B176=0,\"\",IF('Project Information'!$F$25=\"\",\"\",'Project Information'!$F$25))","v":""},{"$f":"IF('effRT Support'!$B176=0,\"\",IF('Project Information'!$D$27=\"\",\"Y\",\"N\"))","v":""},{"$f":"IF('effRT Support'!$B176=0,\"\",IF('Project Information'!$D$27=\"\",\"\",'Project Information'!$D$27))","v":""},{"$f":"IF('effRT Support'!$B176=0,\"\",IF('Project Information'!$D$28=\"\",\"\",'Project Information'!$D$28))","v":""},{"$f":"IF('effRT Support'!$B176=0,\"\",IF('Project Information'!$D$29=\"\",\"\",'Project Information'!$D$29))","v":""},{"$f":"IF('effRT Support'!$B176=0,\"\",IF('Project Information'!$E$29=\"\",\"\",'Project Information'!$E$29))","v":""},{"$f":"IF('effRT Support'!$B176=0,\"\",IF('Project Information'!$F$29=\"\",\"\",'Project Information'!$F$29))","v":""},{"$f":"IF('effRT Support'!$B176=0,\"\",\"\")","v":""},{"$f":"IF('effRT Support'!$B176=0,\"\",\"\")","v":""},{"$f":"IF('effRT Support'!$B176=0,\"\",IF('Project Information'!$D$36=\"\",\"\",'Project Information'!$D$36))","v":""},{"$f":"IF('effRT Support'!$B176=0,\"\",IF('Project Information'!$D$42=\"\",\"\",'Project Information'!$D$42))","v":""},{"$f":"IF('effRT Support'!$B176=0,\"\",'effRT Support'!$D176)","v":""},{"$f":"IF('effRT Support'!$B176=0,\"\",'effRT Support'!$L176)","v":""},{"$f":"IF('effRT Support'!$B176=0,\"\",'effRT Support'!$N176)","v":""},null,null,{"$f":"IF('effRT Support'!$B176=0,\"\",'effRT Support'!$P176)","v":""},{"$f":"IF('effRT Support'!$B176=0,\"\",'effRT Support'!$Q176)","v":""},{"$f":"IF('effRT Support'!$B176=0,\"\",'effRT Support'!U176)","v":""},{"$f":"IF('effRT Support'!$B176=0,\"\",'effRT Support'!V176)","v":""},{"$f":"IF('effRT Support'!$B176=0,\"\",'effRT Support'!W176)","v":""},{"$f":"IF('effRT Support'!$B176=0,\"\",'effRT Support'!X176)","v":""},{"$f":"IF('effRT Support'!$B176=0,\"\",'effRT Support'!Y176)","v":""},{"$f":"IF('effRT Support'!$B176=0,\"\",'effRT Support'!Z176*10)","v":""},{"$f":"IF('effRT Support'!$B176=0,\"\",'effRT Support'!AA176)","v":""},{"$f":"IF('effRT Support'!$B176=0,\"\",'effRT Support'!AB176)","v":""},{"$f":"IF('effRT Support'!$B176=0,\"\",'effRT Support'!AC176)","v":""},{"$f":"IF('effRT Support'!$B176=0,\"\",'effRT Support'!AD176)","v":""},{"$f":"IF('effRT Support'!$B176=0,\"\",'effRT Support'!AE176)","v":""},{"$f":"IF('effRT Support'!$B176=0,\"\",\"Hours Actual or Deemed\")","v":""},{"$f":"IF('effRT Support'!$B176=0,\"\",'effRT Support'!$F176)","v":""},{"$f":"IF('effRT Support'!$B176=0,\"\",\"Wattage Actual or Deemed\")","v":""},{"$f":"IF('effRT Support'!$B176=0,\"\",IF('Project Information'!$D$33=\"Pay For Performance\",\"Actual\",\"Deemed\"))","v":""},{"$f":"IF('effRT Support'!$B176=0,\"\",\"Cost Actual or Deemed\")","v":""},{"$f":"IF('effRT Support'!$B176=0,\"\",IF('Project Information'!$D$33=\"Pay For Performance\",\"Actual\",\"Deemed\"))","v":""},{"$f":"IF('effRT Support'!$B176=0,\"\",\"Location\")","v":""},{"$f":"IF('effRT Support'!$B176=0,\"\",'effRT Support'!$E176)","v":""},{"$f":"IF('effRT Support'!$B176=0,\"\",\"Space Type\")","v":""},{"$f":"IF('effRT Support'!$B176=0,\"\",'effRT Support'!$G176)","v":""},{"$f":"IF('effRT Support'!$B176=0,\"\",\"Existing Fixture Description\")","v":""},{"$f":"IF('effRT Support'!$B176=0,\"\",'effRT Support'!$H176)","v":""},{"$f":"IF('effRT Support'!$B176=0,\"\",\"Existing Fixture Quantity\")","v":""},{"$f":"IF('effRT Support'!$B176=0,\"\",'effRT Support'!$I176)","v":""},{"$f":"IF('effRT Support'!$B176=0,\"\",\"Existing Fixture Wattage\")","v":""},{"$f":"IF('effRT Support'!$B176=0,\"\",'effRT Support'!$J176)","v":""},{"$f":"IF('effRT Support'!$B176=0,\"\",\"Annual Hours of Operation\")","v":""},{"$f":"IF('effRT Support'!$B176=0,\"\",'effRT Support'!$K176)","v":""},{"$f":"IF('effRT Support'!$B176=0,\"\",\"Installed Fixture Description\")","v":""},{"$f":"IF('effRT Support'!$B176=0,\"\",'effRT Support'!$M176)","v":""},{"$f":"IF('effRT Support'!$B176=0,\"\",\"Installed Fixture Wattage\")","v":""},{"$f":"IF('effRT Support'!$B176=0,\"\",'effRT Support'!$O176)","v":""},{"$f":"IF('effRT Support'!$B176=0,\"\",\"Material Cost\")","v":""},{"$f":"IF('effRT Support'!$B176=0,\"\",'effRT Support'!$R176)","v":""},{"$f":"IF('effRT Support'!$B176=0,\"\",\"Labor Cost\")","v":""},{"$f":"IF('effRT Support'!$B176=0,\"\",'effRT Support'!$S176)","v":""},{"$f":"IF('effRT Support'!$B176=0,\"\",\"Ancillary Costs - Measure Specific\")","v":""},{"$f":"IF('effRT Support'!$B176=0,\"\",'effRT Support'!$T176)","v":""},{"$f":"IF('effRT Support'!$B176=0,\"\",\"Fuel Type\")","v":""},{"$f":"IF('effRT Support'!$B176=0,\"\",'Project Information'!$D$44)","v":""}]
[{"$f":"IF('effRT Support'!$B177=0,\"\",IF('Project Information'!$D$33=\"Small Business\",\"SBL\",\"CILS\"))","v":""},{"$f":"IF('effRT Support'!$B177=0,\"\",IF('Project Information'!$K$2=\"\",\"\",'Project Information'!$K$2))","v":""},null,{"$f":"IF('effRT Support'!$B177=0,\"\",IF('Project Information'!$D$46=\"\",\"\",'Project Information'!$D$46))","v":""},{"$f":"IF('effRT Support'!$B177=0,\"\",IF('Project Information'!$D$20=\"\",\"\",VLOOKUP('Project Information'!$D$20,'Other Data'!$B$159:$E$189,4,FALSE)))","v":""},{"$f":"IF('effRT Support'!$B177=0,\"\",IF('Project Information'!$D$31=\"\",\"\",'Project Information'!$D$31))","v":""},{"$f":"IF('effRT Support'!$B177=0,\"\",IF('Project Information'!$D$5=\"\",\"\",'Project Information'!$D$5))","v":""},null,null,{"$f":"IF('effRT Support'!$B177=0,\"\",IF('Project Information'!$D$20=\"\",\"\",VLOOKUP('Project Information'!$D$20,'Other Data'!$B$159:$E$189,2,FALSE)))","v":""},{"$f":"IF('effRT Support'!$B177=0,\"\",IF('Project Information'!$D$20=\"\",\"\",VLOOKUP('Project Information'!$D$20,'Other Data'!$B$159:$E$189,3,FALSE)))","v":""},{"$f":"IF('effRT Support'!$B177=0,\"\",\"Existing\")","v":""},null,{"$f":"IF('effRT Support'!$B177=0,\"\",IF('Project Information'!$D$21=\"\",\"\",'Project Information'!$D$21))","v":""},{"$f":"IF('effRT Support'!$B177=0,\"\",IF('Project Information'!$D$48=\"\",\"\",'Project Information'!$D$48))","v":""},{"$f":"IF('effRT Support'!$B177=0,\"\",\"\")","v":""},{"$f":"IF('effRT Support'!$B177=0,\"\",\"\")","v":""},{"$f":"IF('effRT Support'!$B177=0,\"\",\"\")","v":""},{"$f":"IF('effRT Support'!$B177=0,\"\",\"\")","v":""},{"$f":"IF('effRT Support'!$B177=0,\"\",IF('Project Information'!$D$13=\"\",\"\",'Project Information'!$D$13))","v":""},{"$f":"IF('effRT Support'!$B177=0,\"\",IF('Project Information'!$E$13=\"\",\"\",'Project Information'!$E$13))","v":""},{"$f":"IF('effRT Support'!$B177=0,\"\",IF('Project Information'!$D$14=\"\",\"\",'Project Information'!$D$14))","v":""},{"$f":"IF('effRT Support'!$B177=0,\"\",IF('Project Information'!$D$15=\"\",\"\",'Project Information'!$D$15))","v":""},{"$f":"IF('effRT Support'!$B177=0,\"\",IF('Project Information'!$D$16=\"\",\"\",'Project Information'!$D$16))","v":""},null,{"$f":"IF('effRT Support'!$B177=0,\"\",'Project Information'!$D$18)","v":""},{"$f":"IF('effRT Support'!$B177=0,\"\",IF('Project Information'!$D$23=\"\",\"\",'Project Information'!$D$23))","v":""},{"$f":"IF('effRT Support'!$B177=0,\"\",IF('Project Information'!$D$24=\"\",\"\",'Project Information'!$D$24))","v":""},{"$f":"IF('effRT Support'!$B177=0,\"\",IF('Project Information'!$D$25=\"\",\"\",'Project Information'!$D$25))","v":""},{"$f":"IF('effRT Support'!$B177=0,\"\",IF('Project Information'!$E$25=\"\",\"\",'Project Information'!$E$25))","v":""},{"$f":"IF('effRT Support'!$B177=0,\"\",IF('Project Information'!$F$25=\"\",\"\",'Project Information'!$F$25))","v":""},{"$f":"IF('effRT Support'!$B177=0,\"\",IF('Project Information'!$D$27=\"\",\"Y\",\"N\"))","v":""},{"$f":"IF('effRT Support'!$B177=0,\"\",IF('Project Information'!$D$27=\"\",\"\",'Project Information'!$D$27))","v":""},{"$f":"IF('effRT Support'!$B177=0,\"\",IF('Project Information'!$D$28=\"\",\"\",'Project Information'!$D$28))","v":""},{"$f":"IF('effRT Support'!$B177=0,\"\",IF('Project Information'!$D$29=\"\",\"\",'Project Information'!$D$29))","v":""},{"$f":"IF('effRT Support'!$B177=0,\"\",IF('Project Information'!$E$29=\"\",\"\",'Project Information'!$E$29))","v":""},{"$f":"IF('effRT Support'!$B177=0,\"\",IF('Project Information'!$F$29=\"\",\"\",'Project Information'!$F$29))","v":""},{"$f":"IF('effRT Support'!$B177=0,\"\",\"\")","v":""},{"$f":"IF('effRT Support'!$B177=0,\"\",\"\")","v":""},{"$f":"IF('effRT Support'!$B177=0,\"\",IF('Project Information'!$D$36=\"\",\"\",'Project Information'!$D$36))","v":""},{"$f":"IF('effRT Support'!$B177=0,\"\",IF('Project Information'!$D$42=\"\",\"\",'Project Information'!$D$42))","v":""},{"$f":"IF('effRT Support'!$B177=0,\"\",'effRT Support'!$D177)","v":""},{"$f":"IF('effRT Support'!$B177=0,\"\",'effRT Support'!$L177)","v":""},{"$f":"IF('effRT Support'!$B177=0,\"\",'effRT Support'!$N177)","v":""},null,null,{"$f":"IF('effRT Support'!$B177=0,\"\",'effRT Support'!$P177)","v":""},{"$f":"IF('effRT Support'!$B177=0,\"\",'effRT Support'!$Q177)","v":""},{"$f":"IF('effRT Support'!$B177=0,\"\",'effRT Support'!U177)","v":""},{"$f":"IF('effRT Support'!$B177=0,\"\",'effRT Support'!V177)","v":""},{"$f":"IF('effRT Support'!$B177=0,\"\",'effRT Support'!W177)","v":""},{"$f":"IF('effRT Support'!$B177=0,\"\",'effRT Support'!X177)","v":""},{"$f":"IF('effRT Support'!$B177=0,\"\",'effRT Support'!Y177)","v":""},{"$f":"IF('effRT Support'!$B177=0,\"\",'effRT Support'!Z177*10)","v":""},{"$f":"IF('effRT Support'!$B177=0,\"\",'effRT Support'!AA177)","v":""},{"$f":"IF('effRT Support'!$B177=0,\"\",'effRT Support'!AB177)","v":""},{"$f":"IF('effRT Support'!$B177=0,\"\",'effRT Support'!AC177)","v":""},{"$f":"IF('effRT Support'!$B177=0,\"\",'effRT Support'!AD177)","v":""},{"$f":"IF('effRT Support'!$B177=0,\"\",'effRT Support'!AE177)","v":""},{"$f":"IF('effRT Support'!$B177=0,\"\",\"Hours Actual or Deemed\")","v":""},{"$f":"IF('effRT Support'!$B177=0,\"\",'effRT Support'!$F177)","v":""},{"$f":"IF('effRT Support'!$B177=0,\"\",\"Wattage Actual or Deemed\")","v":""},{"$f":"IF('effRT Support'!$B177=0,\"\",IF('Project Information'!$D$33=\"Pay For Performance\",\"Actual\",\"Deemed\"))","v":""},{"$f":"IF('effRT Support'!$B177=0,\"\",\"Cost Actual or Deemed\")","v":""},{"$f":"IF('effRT Support'!$B177=0,\"\",IF('Project Information'!$D$33=\"Pay For Performance\",\"Actual\",\"Deemed\"))","v":""},{"$f":"IF('effRT Support'!$B177=0,\"\",\"Location\")","v":""},{"$f":"IF('effRT Support'!$B177=0,\"\",'effRT Support'!$E177)","v":""},{"$f":"IF('effRT Support'!$B177=0,\"\",\"Space Type\")","v":""},{"$f":"IF('effRT Support'!$B177=0,\"\",'effRT Support'!$G177)","v":""},{"$f":"IF('effRT Support'!$B177=0,\"\",\"Existing Fixture Description\")","v":""},{"$f":"IF('effRT Support'!$B177=0,\"\",'effRT Support'!$H177)","v":""},{"$f":"IF('effRT Support'!$B177=0,\"\",\"Existing Fixture Quantity\")","v":""},{"$f":"IF('effRT Support'!$B177=0,\"\",'effRT Support'!$I177)","v":""},{"$f":"IF('effRT Support'!$B177=0,\"\",\"Existing Fixture Wattage\")","v":""},{"$f":"IF('effRT Support'!$B177=0,\"\",'effRT Support'!$J177)","v":""},{"$f":"IF('effRT Support'!$B177=0,\"\",\"Annual Hours of Operation\")","v":""},{"$f":"IF('effRT Support'!$B177=0,\"\",'effRT Support'!$K177)","v":""},{"$f":"IF('effRT Support'!$B177=0,\"\",\"Installed Fixture Description\")","v":""},{"$f":"IF('effRT Support'!$B177=0,\"\",'effRT Support'!$M177)","v":""},{"$f":"IF('effRT Support'!$B177=0,\"\",\"Installed Fixture Wattage\")","v":""},{"$f":"IF('effRT Support'!$B177=0,\"\",'effRT Support'!$O177)","v":""},{"$f":"IF('effRT Support'!$B177=0,\"\",\"Material Cost\")","v":""},{"$f":"IF('effRT Support'!$B177=0,\"\",'effRT Support'!$R177)","v":""},{"$f":"IF('effRT Support'!$B177=0,\"\",\"Labor Cost\")","v":""},{"$f":"IF('effRT Support'!$B177=0,\"\",'effRT Support'!$S177)","v":""},{"$f":"IF('effRT Support'!$B177=0,\"\",\"Ancillary Costs - Measure Specific\")","v":""},{"$f":"IF('effRT Support'!$B177=0,\"\",'effRT Support'!$T177)","v":""},{"$f":"IF('effRT Support'!$B177=0,\"\",\"Fuel Type\")","v":""},{"$f":"IF('effRT Support'!$B177=0,\"\",'Project Information'!$D$44)","v":""},{"$f":"IF('effRT Support'!$B177=0,\"\",\"Installed Fixture Quantity\")","v":""},{"$f":"IF('effRT Support'!$B177=0,\"\",'effRT Support'!P176)","v":""}]
[{"$f":"IF('effRT Support'!$B178=0,\"\",IF('Project Information'!$D$33=\"Small Business\",\"SBL\",\"CILS\"))","v":""},{"$f":"IF('effRT Support'!$B178=0,\"\",IF('Project Information'!$K$2=\"\",\"\",'Project Information'!$K$2))","v":""},null,{"$f":"IF('effRT Support'!$B178=0,\"\",IF('Project Information'!$D$46=\"\",\"\",'Project Information'!$D$46))","v":""},{"$f":"IF('effRT Support'!$B178=0,\"\",IF('Project Information'!$D$20=\"\",\"\",VLOOKUP('Project Information'!$D$20,'Other Data'!$B$159:$E$189,4,FALSE)))","v":""},{"$f":"IF('effRT Support'!$B178=0,\"\",IF('Project Information'!$D$31=\"\",\"\",'Project Information'!$D$31))","v":""},{"$f":"IF('effRT Support'!$B178=0,\"\",IF('Project Information'!$D$5=\"\",\"\",'Project Information'!$D$5))","v":""},null,null,{"$f":"IF('effRT Support'!$B178=0,\"\",IF('Project Information'!$D$20=\"\",\"\",VLOOKUP('Project Information'!$D$20,'Other Data'!$B$159:$E$189,2,FALSE)))","v":""},{"$f":"IF('effRT Support'!$B178=0,\"\",IF('Project Information'!$D$20=\"\",\"\",VLOOKUP('Project Information'!$D$20,'Other Data'!$B$159:$E$189,3,FALSE)))","v":""},{"$f":"IF('effRT Support'!$B178=0,\"\",\"Existing\")","v":""},null,{"$f":"IF('effRT Support'!$B178=0,\"\",IF('Project Information'!$D$21=\"\",\"\",'Project Information'!$D$21))","v":""},{"$f":"IF('effRT Support'!$B178=0,\"\",IF('Project Information'!$D$48=\"\",\"\",'Project Information'!$D$48))","v":""},{"$f":"IF('effRT Support'!$B178=0,\"\",\"\")","v":""},{"$f":"IF('effRT Support'!$B178=0,\"\",\"\")","v":""},{"$f":"IF('effRT Support'!$B178=0,\"\",\"\")","v":""},{"$f":"IF('effRT Support'!$B178=0,\"\",\"\")","v":""},{"$f":"IF('effRT Support'!$B178=0,\"\",IF('Project Information'!$D$13=\"\",\"\",'Project Information'!$D$13))","v":""},{"$f":"IF('effRT Support'!$B178=0,\"\",IF('Project Information'!$E$13=\"\",\"\",'Project Information'!$E$13))","v":""},{"$f":"IF('effRT Support'!$B178=0,\"\",IF('Project Information'!$D$14=\"\",\"\",'Project Information'!$D$14))","v":""},{"$f":"IF('effRT Support'!$B178=0,\"\",IF('Project Information'!$D$15=\"\",\"\",'Project Information'!$D$15))","v":""},{"$f":"IF('effRT Support'!$B178=0,\"\",IF('Project Information'!$D$16=\"\",\"\",'Project Information'!$D$16))","v":""},null,{"$f":"IF('effRT Support'!$B178=0,\"\",'Project Information'!$D$18)","v":""},{"$f":"IF('effRT Support'!$B178=0,\"\",IF('Project Information'!$D$23=\"\",\"\",'Project Information'!$D$23))","v":""},{"$f":"IF('effRT Support'!$B178=0,\"\",IF('Project Information'!$D$24=\"\",\"\",'Project Information'!$D$24))","v":""},{"$f":"IF('effRT Support'!$B178=0,\"\",IF('Project Information'!$D$25=\"\",\"\",'Project Information'!$D$25))","v":""},{"$f":"IF('effRT Support'!$B178=0,\"\",IF('Project Information'!$E$25=\"\",\"\",'Project Information'!$E$25))","v":""},{"$f":"IF('effRT Support'!$B178=0,\"\",IF('Project Information'!$F$25=\"\",\"\",'Project Information'!$F$25))","v":""},{"$f":"IF('effRT Support'!$B178=0,\"\",IF('Project Information'!$D$27=\"\",\"Y\",\"N\"))","v":""},{"$f":"IF('effRT Support'!$B178=0,\"\",IF('Project Information'!$D$27=\"\",\"\",'Project Information'!$D$27))","v":""},{"$f":"IF('effRT Support'!$B178=0,\"\",IF('Project Information'!$D$28=\"\",\"\",'Project Information'!$D$28))","v":""},{"$f":"IF('effRT Support'!$B178=0,\"\",IF('Project Information'!$D$29=\"\",\"\",'Project Information'!$D$29))","v":""},{"$f":"IF('effRT Support'!$B178=0,\"\",IF('Project Information'!$E$29=\"\",\"\",'Project Information'!$E$29))","v":""},{"$f":"IF('effRT Support'!$B178=0,\"\",IF('Project Information'!$F$29=\"\",\"\",'Project Information'!$F$29))","v":""},{"$f":"IF('effRT Support'!$B178=0,\"\",\"\")","v":""},{"$f":"IF('effRT Support'!$B178=0,\"\",\"\")","v":""},{"$f":"IF('effRT Support'!$B178=0,\"\",IF('Project Information'!$D$36=\"\",\"\",'Project Information'!$D$36))","v":""},{"$f":"IF('effRT Support'!$B178=0,\"\",IF('Project Information'!$D$42=\"\",\"\",'Project Information'!$D$42))","v":""},{"$f":"IF('effRT Support'!$B178=0,\"\",'effRT Support'!$D178)","v":""},{"$f":"IF('effRT Support'!$B178=0,\"\",'effRT Support'!$L178)","v":""},{"$f":"IF('effRT Support'!$B178=0,\"\",'effRT Support'!$N178)","v":""},null,null,{"$f":"IF('effRT Support'!$B178=0,\"\",'effRT Support'!$P178)","v":""},{"$f":"IF('effRT Support'!$B178=0,\"\",'effRT Support'!$Q178)","v":""},{"$f":"IF('effRT Support'!$B178=0,\"\",'effRT Support'!U178)","v":""},{"$f":"IF('effRT Support'!$B178=0,\"\",'effRT Support'!V178)","v":""},{"$f":"IF('effRT Support'!$B178=0,\"\",'effRT Support'!W178)","v":""},{"$f":"IF('effRT Support'!$B178=0,\"\",'effRT Support'!X178)","v":""},{"$f":"IF('effRT Support'!$B178=0,\"\",'effRT Support'!Y178)","v":""},{"$f":"IF('effRT Support'!$B178=0,\"\",'effRT Support'!Z178*10)","v":""},{"$f":"IF('effRT Support'!$B178=0,\"\",'effRT Support'!AA178)","v":""},{"$f":"IF('effRT Support'!$B178=0,\"\",'effRT Support'!AB178)","v":""},{"$f":"IF('effRT Support'!$B178=0,\"\",'effRT Support'!AC178)","v":""},{"$f":"IF('effRT Support'!$B178=0,\"\",'effRT Support'!AD178)","v":""},{"$f":"IF('effRT Support'!$B178=0,\"\",'effRT Support'!AE178)","v":""},{"$f":"IF('effRT Support'!$B178=0,\"\",\"Hours Actual or Deemed\")","v":""},{"$f":"IF('effRT Support'!$B178=0,\"\",'effRT Support'!$F178)","v":""},{"$f":"IF('effRT Support'!$B178=0,\"\",\"Wattage Actual or Deemed\")","v":""},{"$f":"IF('effRT Support'!$B178=0,\"\",IF('Project Information'!$D$33=\"Pay For Performance\",\"Actual\",\"Deemed\"))","v":""},{"$f":"IF('effRT Support'!$B178=0,\"\",\"Cost Actual or Deemed\")","v":""},{"$f":"IF('effRT Support'!$B178=0,\"\",IF('Project Information'!$D$33=\"Pay For Performance\",\"Actual\",\"Deemed\"))","v":""},{"$f":"IF('effRT Support'!$B178=0,\"\",\"Location\")","v":""},{"$f":"IF('effRT Support'!$B178=0,\"\",'effRT Support'!$E178)","v":""},{"$f":"IF('effRT Support'!$B178=0,\"\",\"Space Type\")","v":""},{"$f":"IF('effRT Support'!$B178=0,\"\",'effRT Support'!$G178)","v":""},{"$f":"IF('effRT Support'!$B178=0,\"\",\"Existing Fixture Description\")","v":""},{"$f":"IF('effRT Support'!$B178=0,\"\",'effRT Support'!$H178)","v":""},{"$f":"IF('effRT Support'!$B178=0,\"\",\"Existing Fixture Quantity\")","v":""},{"$f":"IF('effRT Support'!$B178=0,\"\",'effRT Support'!$I178)","v":""},{"$f":"IF('effRT Support'!$B178=0,\"\",\"Existing Fixture Wattage\")","v":""},{"$f":"IF('effRT Support'!$B178=0,\"\",'effRT Support'!$J178)","v":""},{"$f":"IF('effRT Support'!$B178=0,\"\",\"Annual Hours of Operation\")","v":""},{"$f":"IF('effRT Support'!$B178=0,\"\",'effRT Support'!$K178)","v":""},{"$f":"IF('effRT Support'!$B178=0,\"\",\"Installed Fixture Description\")","v":""},{"$f":"IF('effRT Support'!$B178=0,\"\",'effRT Support'!$M178)","v":""},{"$f":"IF('effRT Support'!$B178=0,\"\",\"Installed Fixture Wattage\")","v":""},{"$f":"IF('effRT Support'!$B178=0,\"\",'effRT Support'!$O178)","v":""},{"$f":"IF('effRT Support'!$B178=0,\"\",\"Material Cost\")","v":""},{"$f":"IF('effRT Support'!$B178=0,\"\",'effRT Support'!$R178)","v":""},{"$f":"IF('effRT Support'!$B178=0,\"\",\"Labor Cost\")","v":""},{"$f":"IF('effRT Support'!$B178=0,\"\",'effRT Support'!$S178)","v":""},{"$f":"IF('effRT Support'!$B178=0,\"\",\"Ancillary Costs - Measure Specific\")","v":""},{"$f":"IF('effRT Support'!$B178=0,\"\",'effRT Support'!$T178)","v":""},{"$f":"IF('effRT Support'!$B178=0,\"\",\"Fuel Type\")","v":""},{"$f":"IF('effRT Support'!$B178=0,\"\",'Project Information'!$D$44)","v":""}]
[{"$f":"IF('effRT Support'!$B179=0,\"\",IF('Project Information'!$D$33=\"Small Business\",\"SBL\",\"CILS\"))","v":""},{"$f":"IF('effRT Support'!$B179=0,\"\",IF('Project Information'!$K$2=\"\",\"\",'Project Information'!$K$2))","v":""},null,{"$f":"IF('effRT Support'!$B179=0,\"\",IF('Project Information'!$D$46=\"\",\"\",'Project Information'!$D$46))","v":""},{"$f":"IF('effRT Support'!$B179=0,\"\",IF('Project Information'!$D$20=\"\",\"\",VLOOKUP('Project Information'!$D$20,'Other Data'!$B$159:$E$189,4,FALSE)))","v":""},{"$f":"IF('effRT Support'!$B179=0,\"\",IF('Project Information'!$D$31=\"\",\"\",'Project Information'!$D$31))","v":""},{"$f":"IF('effRT Support'!$B179=0,\"\",IF('Project Information'!$D$5=\"\",\"\",'Project Information'!$D$5))","v":""},null,null,{"$f":"IF('effRT Support'!$B179=0,\"\",IF('Project Information'!$D$20=\"\",\"\",VLOOKUP('Project Information'!$D$20,'Other Data'!$B$159:$E$189,2,FALSE)))","v":""},{"$f":"IF('effRT Support'!$B179=0,\"\",IF('Project Information'!$D$20=\"\",\"\",VLOOKUP('Project Information'!$D$20,'Other Data'!$B$159:$E$189,3,FALSE)))","v":""},{"$f":"IF('effRT Support'!$B179=0,\"\",\"Existing\")","v":""},null,{"$f":"IF('effRT Support'!$B179=0,\"\",IF('Project Information'!$D$21=\"\",\"\",'Project Information'!$D$21))","v":""},{"$f":"IF('effRT Support'!$B179=0,\"\",IF('Project Information'!$D$48=\"\",\"\",'Project Information'!$D$48))","v":""},{"$f":"IF('effRT Support'!$B179=0,\"\",\"\")","v":""},{"$f":"IF('effRT Support'!$B179=0,\"\",\"\")","v":""},{"$f":"IF('effRT Support'!$B179=0,\"\",\"\")","v":""},{"$f":"IF('effRT Support'!$B179=0,\"\",\"\")","v":""},{"$f":"IF('effRT Support'!$B179=0,\"\",IF('Project Information'!$D$13=\"\",\"\",'Project Information'!$D$13))","v":""},{"$f":"IF('effRT Support'!$B179=0,\"\",IF('Project Information'!$E$13=\"\",\"\",'Project Information'!$E$13))","v":""},{"$f":"IF('effRT Support'!$B179=0,\"\",IF('Project Information'!$D$14=\"\",\"\",'Project Information'!$D$14))","v":""},{"$f":"IF('effRT Support'!$B179=0,\"\",IF('Project Information'!$D$15=\"\",\"\",'Project Information'!$D$15))","v":""},{"$f":"IF('effRT Support'!$B179=0,\"\",IF('Project Information'!$D$16=\"\",\"\",'Project Information'!$D$16))","v":""},null,{"$f":"IF('effRT Support'!$B179=0,\"\",'Project Information'!$D$18)","v":""},{"$f":"IF('effRT Support'!$B179=0,\"\",IF('Project Information'!$D$23=\"\",\"\",'Project Information'!$D$23))","v":""},{"$f":"IF('effRT Support'!$B179=0,\"\",IF('Project Information'!$D$24=\"\",\"\",'Project Information'!$D$24))","v":""},{"$f":"IF('effRT Support'!$B179=0,\"\",IF('Project Information'!$D$25=\"\",\"\",'Project Information'!$D$25))","v":""},{"$f":"IF('effRT Support'!$B179=0,\"\",IF('Project Information'!$E$25=\"\",\"\",'Project Information'!$E$25))","v":""},{"$f":"IF('effRT Support'!$B179=0,\"\",IF('Project Information'!$F$25=\"\",\"\",'Project Information'!$F$25))","v":""},{"$f":"IF('effRT Support'!$B179=0,\"\",IF('Project Information'!$D$27=\"\",\"Y\",\"N\"))","v":""},{"$f":"IF('effRT Support'!$B179=0,\"\",IF('Project Information'!$D$27=\"\",\"\",'Project Information'!$D$27))","v":""},{"$f":"IF('effRT Support'!$B179=0,\"\",IF('Project Information'!$D$28=\"\",\"\",'Project Information'!$D$28))","v":""},{"$f":"IF('effRT Support'!$B179=0,\"\",IF('Project Information'!$D$29=\"\",\"\",'Project Information'!$D$29))","v":""},{"$f":"IF('effRT Support'!$B179=0,\"\",IF('Project Information'!$E$29=\"\",\"\",'Project Information'!$E$29))","v":""},{"$f":"IF('effRT Support'!$B179=0,\"\",IF('Project Information'!$F$29=\"\",\"\",'Project Information'!$F$29))","v":""},{"$f":"IF('effRT Support'!$B179=0,\"\",\"\")","v":""},{"$f":"IF('effRT Support'!$B179=0,\"\",\"\")","v":""},{"$f":"IF('effRT Support'!$B179=0,\"\",IF('Project Information'!$D$36=\"\",\"\",'Project Information'!$D$36))","v":""},{"$f":"IF('effRT Support'!$B179=0,\"\",IF('Project Information'!$D$42=\"\",\"\",'Project Information'!$D$42))","v":""},{"$f":"IF('effRT Support'!$B179=0,\"\",'effRT Support'!$D179)","v":""},{"$f":"IF('effRT Support'!$B179=0,\"\",'effRT Support'!$L179)","v":""},{"$f":"IF('effRT Support'!$B179=0,\"\",'effRT Support'!$N179)","v":""},null,null,{"$f":"IF('effRT Support'!$B179=0,\"\",'effRT Support'!$P179)","v":""},{"$f":"IF('effRT Support'!$B179=0,\"\",'effRT Support'!$Q179)","v":""},{"$f":"IF('effRT Support'!$B179=0,\"\",'effRT Support'!U179)","v":""},{"$f":"IF('effRT Support'!$B179=0,\"\",'effRT Support'!V179)","v":""},{"$f":"IF('effRT Support'!$B179=0,\"\",'effRT Support'!W179)","v":""},{"$f":"IF('effRT Support'!$B179=0,\"\",'effRT Support'!X179)","v":""},{"$f":"IF('effRT Support'!$B179=0,\"\",'effRT Support'!Y179)","v":""},{"$f":"IF('effRT Support'!$B179=0,\"\",'effRT Support'!Z179*10)","v":""},{"$f":"IF('effRT Support'!$B179=0,\"\",'effRT Support'!AA179)","v":""},{"$f":"IF('effRT Support'!$B179=0,\"\",'effRT Support'!AB179)","v":""},{"$f":"IF('effRT Support'!$B179=0,\"\",'effRT Support'!AC179)","v":""},{"$f":"IF('effRT Support'!$B179=0,\"\",'effRT Support'!AD179)","v":""},{"$f":"IF('effRT Support'!$B179=0,\"\",'effRT Support'!AE179)","v":""},{"$f":"IF('effRT Support'!$B179=0,\"\",\"Hours Actual or Deemed\")","v":""},{"$f":"IF('effRT Support'!$B179=0,\"\",'effRT Support'!$F179)","v":""},{"$f":"IF('effRT Support'!$B179=0,\"\",\"Wattage Actual or Deemed\")","v":""},{"$f":"IF('effRT Support'!$B179=0,\"\",IF('Project Information'!$D$33=\"Pay For Performance\",\"Actual\",\"Deemed\"))","v":""},{"$f":"IF('effRT Support'!$B179=0,\"\",\"Cost Actual or Deemed\")","v":""},{"$f":"IF('effRT Support'!$B179=0,\"\",IF('Project Information'!$D$33=\"Pay For Performance\",\"Actual\",\"Deemed\"))","v":""},{"$f":"IF('effRT Support'!$B179=0,\"\",\"Location\")","v":""},{"$f":"IF('effRT Support'!$B179=0,\"\",'effRT Support'!$E179)","v":""},{"$f":"IF('effRT Support'!$B179=0,\"\",\"Space Type\")","v":""},{"$f":"IF('effRT Support'!$B179=0,\"\",'effRT Support'!$G179)","v":""},{"$f":"IF('effRT Support'!$B179=0,\"\",\"Existing Fixture Description\")","v":""},{"$f":"IF('effRT Support'!$B179=0,\"\",'effRT Support'!$H179)","v":""},{"$f":"IF('effRT Support'!$B179=0,\"\",\"Existing Fixture Quantity\")","v":""},{"$f":"IF('effRT Support'!$B179=0,\"\",'effRT Support'!$I179)","v":""},{"$f":"IF('effRT Support'!$B179=0,\"\",\"Existing Fixture Wattage\")","v":""},{"$f":"IF('effRT Support'!$B179=0,\"\",'effRT Support'!$J179)","v":""},{"$f":"IF('effRT Support'!$B179=0,\"\",\"Annual Hours of Operation\")","v":""},{"$f":"IF('effRT Support'!$B179=0,\"\",'effRT Support'!$K179)","v":""},{"$f":"IF('effRT Support'!$B179=0,\"\",\"Installed Fixture Description\")","v":""},{"$f":"IF('effRT Support'!$B179=0,\"\",'effRT Support'!$M179)","v":""},{"$f":"IF('effRT Support'!$B179=0,\"\",\"Installed Fixture Wattage\")","v":""},{"$f":"IF('effRT Support'!$B179=0,\"\",'effRT Support'!$O179)","v":""},{"$f":"IF('effRT Support'!$B179=0,\"\",\"Material Cost\")","v":""},{"$f":"IF('effRT Support'!$B179=0,\"\",'effRT Support'!$R179)","v":""},{"$f":"IF('effRT Support'!$B179=0,\"\",\"Labor Cost\")","v":""},{"$f":"IF('effRT Support'!$B179=0,\"\",'effRT Support'!$S179)","v":""},{"$f":"IF('effRT Support'!$B179=0,\"\",\"Ancillary Costs - Measure Specific\")","v":""},{"$f":"IF('effRT Support'!$B179=0,\"\",'effRT Support'!$T179)","v":""},{"$f":"IF('effRT Support'!$B179=0,\"\",\"Fuel Type\")","v":""},{"$f":"IF('effRT Support'!$B179=0,\"\",'Project Information'!$D$44)","v":""},{"$f":"IF('effRT Support'!$B179=0,\"\",\"Installed Fixture Quantity\")","v":""},{"$f":"IF('effRT Support'!$B179=0,\"\",'effRT Support'!P178)","v":""}]
[{"$f":"IF('effRT Support'!$B180=0,\"\",IF('Project Information'!$D$33=\"Small Business\",\"SBL\",\"CILS\"))","v":""},{"$f":"IF('effRT Support'!$B180=0,\"\",IF('Project Information'!$K$2=\"\",\"\",'Project Information'!$K$2))","v":""},null,{"$f":"IF('effRT Support'!$B180=0,\"\",IF('Project Information'!$D$46=\"\",\"\",'Project Information'!$D$46))","v":""},{"$f":"IF('effRT Support'!$B180=0,\"\",IF('Project Information'!$D$20=\"\",\"\",VLOOKUP('Project Information'!$D$20,'Other Data'!$B$159:$E$189,4,FALSE)))","v":""},{"$f":"IF('effRT Support'!$B180=0,\"\",IF('Project Information'!$D$31=\"\",\"\",'Project Information'!$D$31))","v":""},{"$f":"IF('effRT Support'!$B180=0,\"\",IF('Project Information'!$D$5=\"\",\"\",'Project Information'!$D$5))","v":""},null,null,{"$f":"IF('effRT Support'!$B180=0,\"\",IF('Project Information'!$D$20=\"\",\"\",VLOOKUP('Project Information'!$D$20,'Other Data'!$B$159:$E$189,2,FALSE)))","v":""},{"$f":"IF('effRT Support'!$B180=0,\"\",IF('Project Information'!$D$20=\"\",\"\",VLOOKUP('Project Information'!$D$20,'Other Data'!$B$159:$E$189,3,FALSE)))","v":""},{"$f":"IF('effRT Support'!$B180=0,\"\",\"Existing\")","v":""},null,{"$f":"IF('effRT Support'!$B180=0,\"\",IF('Project Information'!$D$21=\"\",\"\",'Project Information'!$D$21))","v":""},{"$f":"IF('effRT Support'!$B180=0,\"\",IF('Project Information'!$D$48=\"\",\"\",'Project Information'!$D$48))","v":""},{"$f":"IF('effRT Support'!$B180=0,\"\",\"\")","v":""},{"$f":"IF('effRT Support'!$B180=0,\"\",\"\")","v":""},{"$f":"IF('effRT Support'!$B180=0,\"\",\"\")","v":""},{"$f":"IF('effRT Support'!$B180=0,\"\",\"\")","v":""},{"$f":"IF('effRT Support'!$B180=0,\"\",IF('Project Information'!$D$13=\"\",\"\",'Project Information'!$D$13))","v":""},{"$f":"IF('effRT Support'!$B180=0,\"\",IF('Project Information'!$E$13=\"\",\"\",'Project Information'!$E$13))","v":""},{"$f":"IF('effRT Support'!$B180=0,\"\",IF('Project Information'!$D$14=\"\",\"\",'Project Information'!$D$14))","v":""},{"$f":"IF('effRT Support'!$B180=0,\"\",IF('Project Information'!$D$15=\"\",\"\",'Project Information'!$D$15))","v":""},{"$f":"IF('effRT Support'!$B180=0,\"\",IF('Project Information'!$D$16=\"\",\"\",'Project Information'!$D$16))","v":""},null,{"$f":"IF('effRT Support'!$B180=0,\"\",'Project Information'!$D$18)","v":""},{"$f":"IF('effRT Support'!$B180=0,\"\",IF('Project Information'!$D$23=\"\",\"\",'Project Information'!$D$23))","v":""},{"$f":"IF('effRT Support'!$B180=0,\"\",IF('Project Information'!$D$24=\"\",\"\",'Project Information'!$D$24))","v":""},{"$f":"IF('effRT Support'!$B180=0,\"\",IF('Project Information'!$D$25=\"\",\"\",'Project Information'!$D$25))","v":""},{"$f":"IF('effRT Support'!$B180=0,\"\",IF('Project Information'!$E$25=\"\",\"\",'Project Information'!$E$25))","v":""},{"$f":"IF('effRT Support'!$B180=0,\"\",IF('Project Information'!$F$25=\"\",\"\",'Project Information'!$F$25))","v":""},{"$f":"IF('effRT Support'!$B180=0,\"\",IF('Project Information'!$D$27=\"\",\"Y\",\"N\"))","v":""},{"$f":"IF('effRT Support'!$B180=0,\"\",IF('Project Information'!$D$27=\"\",\"\",'Project Information'!$D$27))","v":""},{"$f":"IF('effRT Support'!$B180=0,\"\",IF('Project Information'!$D$28=\"\",\"\",'Project Information'!$D$28))","v":""},{"$f":"IF('effRT Support'!$B180=0,\"\",IF('Project Information'!$D$29=\"\",\"\",'Project Information'!$D$29))","v":""},{"$f":"IF('effRT Support'!$B180=0,\"\",IF('Project Information'!$E$29=\"\",\"\",'Project Information'!$E$29))","v":""},{"$f":"IF('effRT Support'!$B180=0,\"\",IF('Project Information'!$F$29=\"\",\"\",'Project Information'!$F$29))","v":""},{"$f":"IF('effRT Support'!$B180=0,\"\",\"\")","v":""},{"$f":"IF('effRT Support'!$B180=0,\"\",\"\")","v":""},{"$f":"IF('effRT Support'!$B180=0,\"\",IF('Project Information'!$D$36=\"\",\"\",'Project Information'!$D$36))","v":""},{"$f":"IF('effRT Support'!$B180=0,\"\",IF('Project Information'!$D$42=\"\",\"\",'Project Information'!$D$42))","v":""},{"$f":"IF('effRT Support'!$B180=0,\"\",'effRT Support'!$D180)","v":""},{"$f":"IF('effRT Support'!$B180=0,\"\",'effRT Support'!$L180)","v":""},{"$f":"IF('effRT Support'!$B180=0,\"\",'effRT Support'!$N180)","v":""},null,null,{"$f":"IF('effRT Support'!$B180=0,\"\",'effRT Support'!$P180)","v":""},{"$f":"IF('effRT Support'!$B180=0,\"\",'effRT Support'!$Q180)","v":""},{"$f":"IF('effRT Support'!$B180=0,\"\",'effRT Support'!U180)","v":""},{"$f":"IF('effRT Support'!$B180=0,\"\",'effRT Support'!V180)","v":""},{"$f":"IF('effRT Support'!$B180=0,\"\",'effRT Support'!W180)","v":""},{"$f":"IF('effRT Support'!$B180=0,\"\",'effRT Support'!X180)","v":""},{"$f":"IF('effRT Support'!$B180=0,\"\",'effRT Support'!Y180)","v":""},{"$f":"IF('effRT Support'!$B180=0,\"\",'effRT Support'!Z180*10)","v":""},{"$f":"IF('effRT Support'!$B180=0,\"\",'effRT Support'!AA180)","v":""},{"$f":"IF('effRT Support'!$B180=0,\"\",'effRT Support'!AB180)","v":""},{"$f":"IF('effRT Support'!$B180=0,\"\",'effRT Support'!AC180)","v":""},{"$f":"IF('effRT Support'!$B180=0,\"\",'effRT Support'!AD180)","v":""},{"$f":"IF('effRT Support'!$B180=0,\"\",'effRT Support'!AE180)","v":""},{"$f":"IF('effRT Support'!$B180=0,\"\",\"Hours Actual or Deemed\")","v":""},{"$f":"IF('effRT Support'!$B180=0,\"\",'effRT Support'!$F180)","v":""},{"$f":"IF('effRT Support'!$B180=0,\"\",\"Wattage Actual or Deemed\")","v":""},{"$f":"IF('effRT Support'!$B180=0,\"\",IF('Project Information'!$D$33=\"Pay For Performance\",\"Actual\",\"Deemed\"))","v":""},{"$f":"IF('effRT Support'!$B180=0,\"\",\"Cost Actual or Deemed\")","v":""},{"$f":"IF('effRT Support'!$B180=0,\"\",IF('Project Information'!$D$33=\"Pay For Performance\",\"Actual\",\"Deemed\"))","v":""},{"$f":"IF('effRT Support'!$B180=0,\"\",\"Location\")","v":""},{"$f":"IF('effRT Support'!$B180=0,\"\",'effRT Support'!$E180)","v":""},{"$f":"IF('effRT Support'!$B180=0,\"\",\"Space Type\")","v":""},{"$f":"IF('effRT Support'!$B180=0,\"\",'effRT Support'!$G180)","v":""},{"$f":"IF('effRT Support'!$B180=0,\"\",\"Existing Fixture Description\")","v":""},{"$f":"IF('effRT Support'!$B180=0,\"\",'effRT Support'!$H180)","v":""},{"$f":"IF('effRT Support'!$B180=0,\"\",\"Existing Fixture Quantity\")","v":""},{"$f":"IF('effRT Support'!$B180=0,\"\",'effRT Support'!$I180)","v":""},{"$f":"IF('effRT Support'!$B180=0,\"\",\"Existing Fixture Wattage\")","v":""},{"$f":"IF('effRT Support'!$B180=0,\"\",'effRT Support'!$J180)","v":""},{"$f":"IF('effRT Support'!$B180=0,\"\",\"Annual Hours of Operation\")","v":""},{"$f":"IF('effRT Support'!$B180=0,\"\",'effRT Support'!$K180)","v":""},{"$f":"IF('effRT Support'!$B180=0,\"\",\"Installed Fixture Description\")","v":""},{"$f":"IF('effRT Support'!$B180=0,\"\",'effRT Support'!$M180)","v":""},{"$f":"IF('effRT Support'!$B180=0,\"\",\"Installed Fixture Wattage\")","v":""},{"$f":"IF('effRT Support'!$B180=0,\"\",'effRT Support'!$O180)","v":""},{"$f":"IF('effRT Support'!$B180=0,\"\",\"Material Cost\")","v":""},{"$f":"IF('effRT Support'!$B180=0,\"\",'effRT Support'!$R180)","v":""},{"$f":"IF('effRT Support'!$B180=0,\"\",\"Labor Cost\")","v":""},{"$f":"IF('effRT Support'!$B180=0,\"\",'effRT Support'!$S180)","v":""},{"$f":"IF('effRT Support'!$B180=0,\"\",\"Ancillary Costs - Measure Specific\")","v":""},{"$f":"IF('effRT Support'!$B180=0,\"\",'effRT Support'!$T180)","v":""},{"$f":"IF('effRT Support'!$B180=0,\"\",\"Fuel Type\")","v":""},{"$f":"IF('effRT Support'!$B180=0,\"\",'Project Information'!$D$44)","v":""}]
[{"$f":"IF('effRT Support'!$B181=0,\"\",IF('Project Information'!$D$33=\"Small Business\",\"SBL\",\"CILS\"))","v":""},{"$f":"IF('effRT Support'!$B181=0,\"\",IF('Project Information'!$K$2=\"\",\"\",'Project Information'!$K$2))","v":""},null,{"$f":"IF('effRT Support'!$B181=0,\"\",IF('Project Information'!$D$46=\"\",\"\",'Project Information'!$D$46))","v":""},{"$f":"IF('effRT Support'!$B181=0,\"\",IF('Project Information'!$D$20=\"\",\"\",VLOOKUP('Project Information'!$D$20,'Other Data'!$B$159:$E$189,4,FALSE)))","v":""},{"$f":"IF('effRT Support'!$B181=0,\"\",IF('Project Information'!$D$31=\"\",\"\",'Project Information'!$D$31))","v":""},{"$f":"IF('effRT Support'!$B181=0,\"\",IF('Project Information'!$D$5=\"\",\"\",'Project Information'!$D$5))","v":""},null,null,{"$f":"IF('effRT Support'!$B181=0,\"\",IF('Project Information'!$D$20=\"\",\"\",VLOOKUP('Project Information'!$D$20,'Other Data'!$B$159:$E$189,2,FALSE)))","v":""},{"$f":"IF('effRT Support'!$B181=0,\"\",IF('Project Information'!$D$20=\"\",\"\",VLOOKUP('Project Information'!$D$20,'Other Data'!$B$159:$E$189,3,FALSE)))","v":""},{"$f":"IF('effRT Support'!$B181=0,\"\",\"Existing\")","v":""},null,{"$f":"IF('effRT Support'!$B181=0,\"\",IF('Project Information'!$D$21=\"\",\"\",'Project Information'!$D$21))","v":""},{"$f":"IF('effRT Support'!$B181=0,\"\",IF('Project Information'!$D$48=\"\",\"\",'Project Information'!$D$48))","v":""},{"$f":"IF('effRT Support'!$B181=0,\"\",\"\")","v":""},{"$f":"IF('effRT Support'!$B181=0,\"\",\"\")","v":""},{"$f":"IF('effRT Support'!$B181=0,\"\",\"\")","v":""},{"$f":"IF('effRT Support'!$B181=0,\"\",\"\")","v":""},{"$f":"IF('effRT Support'!$B181=0,\"\",IF('Project Information'!$D$13=\"\",\"\",'Project Information'!$D$13))","v":""},{"$f":"IF('effRT Support'!$B181=0,\"\",IF('Project Information'!$E$13=\"\",\"\",'Project Information'!$E$13))","v":""},{"$f":"IF('effRT Support'!$B181=0,\"\",IF('Project Information'!$D$14=\"\",\"\",'Project Information'!$D$14))","v":""},{"$f":"IF('effRT Support'!$B181=0,\"\",IF('Project Information'!$D$15=\"\",\"\",'Project Information'!$D$15))","v":""},{"$f":"IF('effRT Support'!$B181=0,\"\",IF('Project Information'!$D$16=\"\",\"\",'Project Information'!$D$16))","v":""},null,{"$f":"IF('effRT Support'!$B181=0,\"\",'Project Information'!$D$18)","v":""},{"$f":"IF('effRT Support'!$B181=0,\"\",IF('Project Information'!$D$23=\"\",\"\",'Project Information'!$D$23))","v":""},{"$f":"IF('effRT Support'!$B181=0,\"\",IF('Project Information'!$D$24=\"\",\"\",'Project Information'!$D$24))","v":""},{"$f":"IF('effRT Support'!$B181=0,\"\",IF('Project Information'!$D$25=\"\",\"\",'Project Information'!$D$25))","v":""},{"$f":"IF('effRT Support'!$B181=0,\"\",IF('Project Information'!$E$25=\"\",\"\",'Project Information'!$E$25))","v":""},{"$f":"IF('effRT Support'!$B181=0,\"\",IF('Project Information'!$F$25=\"\",\"\",'Project Information'!$F$25))","v":""},{"$f":"IF('effRT Support'!$B181=0,\"\",IF('Project Information'!$D$27=\"\",\"Y\",\"N\"))","v":""},{"$f":"IF('effRT Support'!$B181=0,\"\",IF('Project Information'!$D$27=\"\",\"\",'Project Information'!$D$27))","v":""},{"$f":"IF('effRT Support'!$B181=0,\"\",IF('Project Information'!$D$28=\"\",\"\",'Project Information'!$D$28))","v":""},{"$f":"IF('effRT Support'!$B181=0,\"\",IF('Project Information'!$D$29=\"\",\"\",'Project Information'!$D$29))","v":""},{"$f":"IF('effRT Support'!$B181=0,\"\",IF('Project Information'!$E$29=\"\",\"\",'Project Information'!$E$29))","v":""},{"$f":"IF('effRT Support'!$B181=0,\"\",IF('Project Information'!$F$29=\"\",\"\",'Project Information'!$F$29))","v":""},{"$f":"IF('effRT Support'!$B181=0,\"\",\"\")","v":""},{"$f":"IF('effRT Support'!$B181=0,\"\",\"\")","v":""},{"$f":"IF('effRT Support'!$B181=0,\"\",IF('Project Information'!$D$36=\"\",\"\",'Project Information'!$D$36))","v":""},{"$f":"IF('effRT Support'!$B181=0,\"\",IF('Project Information'!$D$42=\"\",\"\",'Project Information'!$D$42))","v":""},{"$f":"IF('effRT Support'!$B181=0,\"\",'effRT Support'!$D181)","v":""},{"$f":"IF('effRT Support'!$B181=0,\"\",'effRT Support'!$L181)","v":""},{"$f":"IF('effRT Support'!$B181=0,\"\",'effRT Support'!$N181)","v":""},null,null,{"$f":"IF('effRT Support'!$B181=0,\"\",'effRT Support'!$P181)","v":""},{"$f":"IF('effRT Support'!$B181=0,\"\",'effRT Support'!$Q181)","v":""},{"$f":"IF('effRT Support'!$B181=0,\"\",'effRT Support'!U181)","v":""},{"$f":"IF('effRT Support'!$B181=0,\"\",'effRT Support'!V181)","v":""},{"$f":"IF('effRT Support'!$B181=0,\"\",'effRT Support'!W181)","v":""},{"$f":"IF('effRT Support'!$B181=0,\"\",'effRT Support'!X181)","v":""},{"$f":"IF('effRT Support'!$B181=0,\"\",'effRT Support'!Y181)","v":""},{"$f":"IF('effRT Support'!$B181=0,\"\",'effRT Support'!Z181*10)","v":""},{"$f":"IF('effRT Support'!$B181=0,\"\",'effRT Support'!AA181)","v":""},{"$f":"IF('effRT Support'!$B181=0,\"\",'effRT Support'!AB181)","v":""},{"$f":"IF('effRT Support'!$B181=0,\"\",'effRT Support'!AC181)","v":""},{"$f":"IF('effRT Support'!$B181=0,\"\",'effRT Support'!AD181)","v":""},{"$f":"IF('effRT Support'!$B181=0,\"\",'effRT Support'!AE181)","v":""},{"$f":"IF('effRT Support'!$B181=0,\"\",\"Hours Actual or Deemed\")","v":""},{"$f":"IF('effRT Support'!$B181=0,\"\",'effRT Support'!$F181)","v":""},{"$f":"IF('effRT Support'!$B181=0,\"\",\"Wattage Actual or Deemed\")","v":""},{"$f":"IF('effRT Support'!$B181=0,\"\",IF('Project Information'!$D$33=\"Pay For Performance\",\"Actual\",\"Deemed\"))","v":""},{"$f":"IF('effRT Support'!$B181=0,\"\",\"Cost Actual or Deemed\")","v":""},{"$f":"IF('effRT Support'!$B181=0,\"\",IF('Project Information'!$D$33=\"Pay For Performance\",\"Actual\",\"Deemed\"))","v":""},{"$f":"IF('effRT Support'!$B181=0,\"\",\"Location\")","v":""},{"$f":"IF('effRT Support'!$B181=0,\"\",'effRT Support'!$E181)","v":""},{"$f":"IF('effRT Support'!$B181=0,\"\",\"Space Type\")","v":""},{"$f":"IF('effRT Support'!$B181=0,\"\",'effRT Support'!$G181)","v":""},{"$f":"IF('effRT Support'!$B181=0,\"\",\"Existing Fixture Description\")","v":""},{"$f":"IF('effRT Support'!$B181=0,\"\",'effRT Support'!$H181)","v":""},{"$f":"IF('effRT Support'!$B181=0,\"\",\"Existing Fixture Quantity\")","v":""},{"$f":"IF('effRT Support'!$B181=0,\"\",'effRT Support'!$I181)","v":""},{"$f":"IF('effRT Support'!$B181=0,\"\",\"Existing Fixture Wattage\")","v":""},{"$f":"IF('effRT Support'!$B181=0,\"\",'effRT Support'!$J181)","v":""},{"$f":"IF('effRT Support'!$B181=0,\"\",\"Annual Hours of Operation\")","v":""},{"$f":"IF('effRT Support'!$B181=0,\"\",'effRT Support'!$K181)","v":""},{"$f":"IF('effRT Support'!$B181=0,\"\",\"Installed Fixture Description\")","v":""},{"$f":"IF('effRT Support'!$B181=0,\"\",'effRT Support'!$M181)","v":""},{"$f":"IF('effRT Support'!$B181=0,\"\",\"Installed Fixture Wattage\")","v":""},{"$f":"IF('effRT Support'!$B181=0,\"\",'effRT Support'!$O181)","v":""},{"$f":"IF('effRT Support'!$B181=0,\"\",\"Material Cost\")","v":""},{"$f":"IF('effRT Support'!$B181=0,\"\",'effRT Support'!$R181)","v":""},{"$f":"IF('effRT Support'!$B181=0,\"\",\"Labor Cost\")","v":""},{"$f":"IF('effRT Support'!$B181=0,\"\",'effRT Support'!$S181)","v":""},{"$f":"IF('effRT Support'!$B181=0,\"\",\"Ancillary Costs - Measure Specific\")","v":""},{"$f":"IF('effRT Support'!$B181=0,\"\",'effRT Support'!$T181)","v":""},{"$f":"IF('effRT Support'!$B181=0,\"\",\"Fuel Type\")","v":""},{"$f":"IF('effRT Support'!$B181=0,\"\",'Project Information'!$D$44)","v":""},{"$f":"IF('effRT Support'!$B181=0,\"\",\"Installed Fixture Quantity\")","v":""},{"$f":"IF('effRT Support'!$B181=0,\"\",'effRT Support'!P180)","v":""}]
[{"$f":"IF('effRT Support'!$B182=0,\"\",IF('Project Information'!$D$33=\"Small Business\",\"SBL\",\"CILS\"))","v":""},{"$f":"IF('effRT Support'!$B182=0,\"\",IF('Project Information'!$K$2=\"\",\"\",'Project Information'!$K$2))","v":""},null,{"$f":"IF('effRT Support'!$B182=0,\"\",IF('Project Information'!$D$46=\"\",\"\",'Project Information'!$D$46))","v":""},{"$f":"IF('effRT Support'!$B182=0,\"\",IF('Project Information'!$D$20=\"\",\"\",VLOOKUP('Project Information'!$D$20,'Other Data'!$B$159:$E$189,4,FALSE)))","v":""},{"$f":"IF('effRT Support'!$B182=0,\"\",IF('Project Information'!$D$31=\"\",\"\",'Project Information'!$D$31))","v":""},{"$f":"IF('effRT Support'!$B182=0,\"\",IF('Project Information'!$D$5=\"\",\"\",'Project Information'!$D$5))","v":""},null,null,{"$f":"IF('effRT Support'!$B182=0,\"\",IF('Project Information'!$D$20=\"\",\"\",VLOOKUP('Project Information'!$D$20,'Other Data'!$B$159:$E$189,2,FALSE)))","v":""},{"$f":"IF('effRT Support'!$B182=0,\"\",IF('Project Information'!$D$20=\"\",\"\",VLOOKUP('Project Information'!$D$20,'Other Data'!$B$159:$E$189,3,FALSE)))","v":""},{"$f":"IF('effRT Support'!$B182=0,\"\",\"Existing\")","v":""},null,{"$f":"IF('effRT Support'!$B182=0,\"\",IF('Project Information'!$D$21=\"\",\"\",'Project Information'!$D$21))","v":""},{"$f":"IF('effRT Support'!$B182=0,\"\",IF('Project Information'!$D$48=\"\",\"\",'Project Information'!$D$48))","v":""},{"$f":"IF('effRT Support'!$B182=0,\"\",\"\")","v":""},{"$f":"IF('effRT Support'!$B182=0,\"\",\"\")","v":""},{"$f":"IF('effRT Support'!$B182=0,\"\",\"\")","v":""},{"$f":"IF('effRT Support'!$B182=0,\"\",\"\")","v":""},{"$f":"IF('effRT Support'!$B182=0,\"\",IF('Project Information'!$D$13=\"\",\"\",'Project Information'!$D$13))","v":""},{"$f":"IF('effRT Support'!$B182=0,\"\",IF('Project Information'!$E$13=\"\",\"\",'Project Information'!$E$13))","v":""},{"$f":"IF('effRT Support'!$B182=0,\"\",IF('Project Information'!$D$14=\"\",\"\",'Project Information'!$D$14))","v":""},{"$f":"IF('effRT Support'!$B182=0,\"\",IF('Project Information'!$D$15=\"\",\"\",'Project Information'!$D$15))","v":""},{"$f":"IF('effRT Support'!$B182=0,\"\",IF('Project Information'!$D$16=\"\",\"\",'Project Information'!$D$16))","v":""},null,{"$f":"IF('effRT Support'!$B182=0,\"\",'Project Information'!$D$18)","v":""},{"$f":"IF('effRT Support'!$B182=0,\"\",IF('Project Information'!$D$23=\"\",\"\",'Project Information'!$D$23))","v":""},{"$f":"IF('effRT Support'!$B182=0,\"\",IF('Project Information'!$D$24=\"\",\"\",'Project Information'!$D$24))","v":""},{"$f":"IF('effRT Support'!$B182=0,\"\",IF('Project Information'!$D$25=\"\",\"\",'Project Information'!$D$25))","v":""},{"$f":"IF('effRT Support'!$B182=0,\"\",IF('Project Information'!$E$25=\"\",\"\",'Project Information'!$E$25))","v":""},{"$f":"IF('effRT Support'!$B182=0,\"\",IF('Project Information'!$F$25=\"\",\"\",'Project Information'!$F$25))","v":""},{"$f":"IF('effRT Support'!$B182=0,\"\",IF('Project Information'!$D$27=\"\",\"Y\",\"N\"))","v":""},{"$f":"IF('effRT Support'!$B182=0,\"\",IF('Project Information'!$D$27=\"\",\"\",'Project Information'!$D$27))","v":""},{"$f":"IF('effRT Support'!$B182=0,\"\",IF('Project Information'!$D$28=\"\",\"\",'Project Information'!$D$28))","v":""},{"$f":"IF('effRT Support'!$B182=0,\"\",IF('Project Information'!$D$29=\"\",\"\",'Project Information'!$D$29))","v":""},{"$f":"IF('effRT Support'!$B182=0,\"\",IF('Project Information'!$E$29=\"\",\"\",'Project Information'!$E$29))","v":""},{"$f":"IF('effRT Support'!$B182=0,\"\",IF('Project Information'!$F$29=\"\",\"\",'Project Information'!$F$29))","v":""},{"$f":"IF('effRT Support'!$B182=0,\"\",\"\")","v":""},{"$f":"IF('effRT Support'!$B182=0,\"\",\"\")","v":""},{"$f":"IF('effRT Support'!$B182=0,\"\",IF('Project Information'!$D$36=\"\",\"\",'Project Information'!$D$36))","v":""},{"$f":"IF('effRT Support'!$B182=0,\"\",IF('Project Information'!$D$42=\"\",\"\",'Project Information'!$D$42))","v":""},{"$f":"IF('effRT Support'!$B182=0,\"\",'effRT Support'!$D182)","v":""},{"$f":"IF('effRT Support'!$B182=0,\"\",'effRT Support'!$L182)","v":""},{"$f":"IF('effRT Support'!$B182=0,\"\",'effRT Support'!$N182)","v":""},null,null,{"$f":"IF('effRT Support'!$B182=0,\"\",'effRT Support'!$P182)","v":""},{"$f":"IF('effRT Support'!$B182=0,\"\",'effRT Support'!$Q182)","v":""},{"$f":"IF('effRT Support'!$B182=0,\"\",'effRT Support'!U182)","v":""},{"$f":"IF('effRT Support'!$B182=0,\"\",'effRT Support'!V182)","v":""},{"$f":"IF('effRT Support'!$B182=0,\"\",'effRT Support'!W182)","v":""},{"$f":"IF('effRT Support'!$B182=0,\"\",'effRT Support'!X182)","v":""},{"$f":"IF('effRT Support'!$B182=0,\"\",'effRT Support'!Y182)","v":""},{"$f":"IF('effRT Support'!$B182=0,\"\",'effRT Support'!Z182*10)","v":""},{"$f":"IF('effRT Support'!$B182=0,\"\",'effRT Support'!AA182)","v":""},{"$f":"IF('effRT Support'!$B182=0,\"\",'effRT Support'!AB182)","v":""},{"$f":"IF('effRT Support'!$B182=0,\"\",'effRT Support'!AC182)","v":""},{"$f":"IF('effRT Support'!$B182=0,\"\",'effRT Support'!AD182)","v":""},{"$f":"IF('effRT Support'!$B182=0,\"\",'effRT Support'!AE182)","v":""},{"$f":"IF('effRT Support'!$B182=0,\"\",\"Hours Actual or Deemed\")","v":""},{"$f":"IF('effRT Support'!$B182=0,\"\",'effRT Support'!$F182)","v":""},{"$f":"IF('effRT Support'!$B182=0,\"\",\"Wattage Actual or Deemed\")","v":""},{"$f":"IF('effRT Support'!$B182=0,\"\",IF('Project Information'!$D$33=\"Pay For Performance\",\"Actual\",\"Deemed\"))","v":""},{"$f":"IF('effRT Support'!$B182=0,\"\",\"Cost Actual or Deemed\")","v":""},{"$f":"IF('effRT Support'!$B182=0,\"\",IF('Project Information'!$D$33=\"Pay For Performance\",\"Actual\",\"Deemed\"))","v":""},{"$f":"IF('effRT Support'!$B182=0,\"\",\"Location\")","v":""},{"$f":"IF('effRT Support'!$B182=0,\"\",'effRT Support'!$E182)","v":""},{"$f":"IF('effRT Support'!$B182=0,\"\",\"Space Type\")","v":""},{"$f":"IF('effRT Support'!$B182=0,\"\",'effRT Support'!$G182)","v":""},{"$f":"IF('effRT Support'!$B182=0,\"\",\"Existing Fixture Description\")","v":""},{"$f":"IF('effRT Support'!$B182=0,\"\",'effRT Support'!$H182)","v":""},{"$f":"IF('effRT Support'!$B182=0,\"\",\"Existing Fixture Quantity\")","v":""},{"$f":"IF('effRT Support'!$B182=0,\"\",'effRT Support'!$I182)","v":""},{"$f":"IF('effRT Support'!$B182=0,\"\",\"Existing Fixture Wattage\")","v":""},{"$f":"IF('effRT Support'!$B182=0,\"\",'effRT Support'!$J182)","v":""},{"$f":"IF('effRT Support'!$B182=0,\"\",\"Annual Hours of Operation\")","v":""},{"$f":"IF('effRT Support'!$B182=0,\"\",'effRT Support'!$K182)","v":""},{"$f":"IF('effRT Support'!$B182=0,\"\",\"Installed Fixture Description\")","v":""},{"$f":"IF('effRT Support'!$B182=0,\"\",'effRT Support'!$M182)","v":""},{"$f":"IF('effRT Support'!$B182=0,\"\",\"Installed Fixture Wattage\")","v":""},{"$f":"IF('effRT Support'!$B182=0,\"\",'effRT Support'!$O182)","v":""},{"$f":"IF('effRT Support'!$B182=0,\"\",\"Material Cost\")","v":""},{"$f":"IF('effRT Support'!$B182=0,\"\",'effRT Support'!$R182)","v":""},{"$f":"IF('effRT Support'!$B182=0,\"\",\"Labor Cost\")","v":""},{"$f":"IF('effRT Support'!$B182=0,\"\",'effRT Support'!$S182)","v":""},{"$f":"IF('effRT Support'!$B182=0,\"\",\"Ancillary Costs - Measure Specific\")","v":""},{"$f":"IF('effRT Support'!$B182=0,\"\",'effRT Support'!$T182)","v":""},{"$f":"IF('effRT Support'!$B182=0,\"\",\"Fuel Type\")","v":""},{"$f":"IF('effRT Support'!$B182=0,\"\",'Project Information'!$D$44)","v":""}]
[{"$f":"IF('effRT Support'!$B183=0,\"\",IF('Project Information'!$D$33=\"Small Business\",\"SBL\",\"CILS\"))","v":""},{"$f":"IF('effRT Support'!$B183=0,\"\",IF('Project Information'!$K$2=\"\",\"\",'Project Information'!$K$2))","v":""},null,{"$f":"IF('effRT Support'!$B183=0,\"\",IF('Project Information'!$D$46=\"\",\"\",'Project Information'!$D$46))","v":""},{"$f":"IF('effRT Support'!$B183=0,\"\",IF('Project Information'!$D$20=\"\",\"\",VLOOKUP('Project Information'!$D$20,'Other Data'!$B$159:$E$189,4,FALSE)))","v":""},{"$f":"IF('effRT Support'!$B183=0,\"\",IF('Project Information'!$D$31=\"\",\"\",'Project Information'!$D$31))","v":""},{"$f":"IF('effRT Support'!$B183=0,\"\",IF('Project Information'!$D$5=\"\",\"\",'Project Information'!$D$5))","v":""},null,null,{"$f":"IF('effRT Support'!$B183=0,\"\",IF('Project Information'!$D$20=\"\",\"\",VLOOKUP('Project Information'!$D$20,'Other Data'!$B$159:$E$189,2,FALSE)))","v":""},{"$f":"IF('effRT Support'!$B183=0,\"\",IF('Project Information'!$D$20=\"\",\"\",VLOOKUP('Project Information'!$D$20,'Other Data'!$B$159:$E$189,3,FALSE)))","v":""},{"$f":"IF('effRT Support'!$B183=0,\"\",\"Existing\")","v":""},null,{"$f":"IF('effRT Support'!$B183=0,\"\",IF('Project Information'!$D$21=\"\",\"\",'Project Information'!$D$21))","v":""},{"$f":"IF('effRT Support'!$B183=0,\"\",IF('Project Information'!$D$48=\"\",\"\",'Project Information'!$D$48))","v":""},{"$f":"IF('effRT Support'!$B183=0,\"\",\"\")","v":""},{"$f":"IF('effRT Support'!$B183=0,\"\",\"\")","v":""},{"$f":"IF('effRT Support'!$B183=0,\"\",\"\")","v":""},{"$f":"IF('effRT Support'!$B183=0,\"\",\"\")","v":""},{"$f":"IF('effRT Support'!$B183=0,\"\",IF('Project Information'!$D$13=\"\",\"\",'Project Information'!$D$13))","v":""},{"$f":"IF('effRT Support'!$B183=0,\"\",IF('Project Information'!$E$13=\"\",\"\",'Project Information'!$E$13))","v":""},{"$f":"IF('effRT Support'!$B183=0,\"\",IF('Project Information'!$D$14=\"\",\"\",'Project Information'!$D$14))","v":""},{"$f":"IF('effRT Support'!$B183=0,\"\",IF('Project Information'!$D$15=\"\",\"\",'Project Information'!$D$15))","v":""},{"$f":"IF('effRT Support'!$B183=0,\"\",IF('Project Information'!$D$16=\"\",\"\",'Project Information'!$D$16))","v":""},null,{"$f":"IF('effRT Support'!$B183=0,\"\",'Project Information'!$D$18)","v":""},{"$f":"IF('effRT Support'!$B183=0,\"\",IF('Project Information'!$D$23=\"\",\"\",'Project Information'!$D$23))","v":""},{"$f":"IF('effRT Support'!$B183=0,\"\",IF('Project Information'!$D$24=\"\",\"\",'Project Information'!$D$24))","v":""},{"$f":"IF('effRT Support'!$B183=0,\"\",IF('Project Information'!$D$25=\"\",\"\",'Project Information'!$D$25))","v":""},{"$f":"IF('effRT Support'!$B183=0,\"\",IF('Project Information'!$E$25=\"\",\"\",'Project Information'!$E$25))","v":""},{"$f":"IF('effRT Support'!$B183=0,\"\",IF('Project Information'!$F$25=\"\",\"\",'Project Information'!$F$25))","v":""},{"$f":"IF('effRT Support'!$B183=0,\"\",IF('Project Information'!$D$27=\"\",\"Y\",\"N\"))","v":""},{"$f":"IF('effRT Support'!$B183=0,\"\",IF('Project Information'!$D$27=\"\",\"\",'Project Information'!$D$27))","v":""},{"$f":"IF('effRT Support'!$B183=0,\"\",IF('Project Information'!$D$28=\"\",\"\",'Project Information'!$D$28))","v":""},{"$f":"IF('effRT Support'!$B183=0,\"\",IF('Project Information'!$D$29=\"\",\"\",'Project Information'!$D$29))","v":""},{"$f":"IF('effRT Support'!$B183=0,\"\",IF('Project Information'!$E$29=\"\",\"\",'Project Information'!$E$29))","v":""},{"$f":"IF('effRT Support'!$B183=0,\"\",IF('Project Information'!$F$29=\"\",\"\",'Project Information'!$F$29))","v":""},{"$f":"IF('effRT Support'!$B183=0,\"\",\"\")","v":""},{"$f":"IF('effRT Support'!$B183=0,\"\",\"\")","v":""},{"$f":"IF('effRT Support'!$B183=0,\"\",IF('Project Information'!$D$36=\"\",\"\",'Project Information'!$D$36))","v":""},{"$f":"IF('effRT Support'!$B183=0,\"\",IF('Project Information'!$D$42=\"\",\"\",'Project Information'!$D$42))","v":""},{"$f":"IF('effRT Support'!$B183=0,\"\",'effRT Support'!$D183)","v":""},{"$f":"IF('effRT Support'!$B183=0,\"\",'effRT Support'!$L183)","v":""},{"$f":"IF('effRT Support'!$B183=0,\"\",'effRT Support'!$N183)","v":""},null,null,{"$f":"IF('effRT Support'!$B183=0,\"\",'effRT Support'!$P183)","v":""},{"$f":"IF('effRT Support'!$B183=0,\"\",'effRT Support'!$Q183)","v":""},{"$f":"IF('effRT Support'!$B183=0,\"\",'effRT Support'!U183)","v":""},{"$f":"IF('effRT Support'!$B183=0,\"\",'effRT Support'!V183)","v":""},{"$f":"IF('effRT Support'!$B183=0,\"\",'effRT Support'!W183)","v":""},{"$f":"IF('effRT Support'!$B183=0,\"\",'effRT Support'!X183)","v":""},{"$f":"IF('effRT Support'!$B183=0,\"\",'effRT Support'!Y183)","v":""},{"$f":"IF('effRT Support'!$B183=0,\"\",'effRT Support'!Z183*10)","v":""},{"$f":"IF('effRT Support'!$B183=0,\"\",'effRT Support'!AA183)","v":""},{"$f":"IF('effRT Support'!$B183=0,\"\",'effRT Support'!AB183)","v":""},{"$f":"IF('effRT Support'!$B183=0,\"\",'effRT Support'!AC183)","v":""},{"$f":"IF('effRT Support'!$B183=0,\"\",'effRT Support'!AD183)","v":""},{"$f":"IF('effRT Support'!$B183=0,\"\",'effRT Support'!AE183)","v":""},{"$f":"IF('effRT Support'!$B183=0,\"\",\"Hours Actual or Deemed\")","v":""},{"$f":"IF('effRT Support'!$B183=0,\"\",'effRT Support'!$F183)","v":""},{"$f":"IF('effRT Support'!$B183=0,\"\",\"Wattage Actual or Deemed\")","v":""},{"$f":"IF('effRT Support'!$B183=0,\"\",IF('Project Information'!$D$33=\"Pay For Performance\",\"Actual\",\"Deemed\"))","v":""},{"$f":"IF('effRT Support'!$B183=0,\"\",\"Cost Actual or Deemed\")","v":""},{"$f":"IF('effRT Support'!$B183=0,\"\",IF('Project Information'!$D$33=\"Pay For Performance\",\"Actual\",\"Deemed\"))","v":""},{"$f":"IF('effRT Support'!$B183=0,\"\",\"Location\")","v":""},{"$f":"IF('effRT Support'!$B183=0,\"\",'effRT Support'!$E183)","v":""},{"$f":"IF('effRT Support'!$B183=0,\"\",\"Space Type\")","v":""},{"$f":"IF('effRT Support'!$B183=0,\"\",'effRT Support'!$G183)","v":""},{"$f":"IF('effRT Support'!$B183=0,\"\",\"Existing Fixture Description\")","v":""},{"$f":"IF('effRT Support'!$B183=0,\"\",'effRT Support'!$H183)","v":""},{"$f":"IF('effRT Support'!$B183=0,\"\",\"Existing Fixture Quantity\")","v":""},{"$f":"IF('effRT Support'!$B183=0,\"\",'effRT Support'!$I183)","v":""},{"$f":"IF('effRT Support'!$B183=0,\"\",\"Existing Fixture Wattage\")","v":""},{"$f":"IF('effRT Support'!$B183=0,\"\",'effRT Support'!$J183)","v":""},{"$f":"IF('effRT Support'!$B183=0,\"\",\"Annual Hours of Operation\")","v":""},{"$f":"IF('effRT Support'!$B183=0,\"\",'effRT Support'!$K183)","v":""},{"$f":"IF('effRT Support'!$B183=0,\"\",\"Installed Fixture Description\")","v":""},{"$f":"IF('effRT Support'!$B183=0,\"\",'effRT Support'!$M183)","v":""},{"$f":"IF('effRT Support'!$B183=0,\"\",\"Installed Fixture Wattage\")","v":""},{"$f":"IF('effRT Support'!$B183=0,\"\",'effRT Support'!$O183)","v":""},{"$f":"IF('effRT Support'!$B183=0,\"\",\"Material Cost\")","v":""},{"$f":"IF('effRT Support'!$B183=0,\"\",'effRT Support'!$R183)","v":""},{"$f":"IF('effRT Support'!$B183=0,\"\",\"Labor Cost\")","v":""},{"$f":"IF('effRT Support'!$B183=0,\"\",'effRT Support'!$S183)","v":""},{"$f":"IF('effRT Support'!$B183=0,\"\",\"Ancillary Costs - Measure Specific\")","v":""},{"$f":"IF('effRT Support'!$B183=0,\"\",'effRT Support'!$T183)","v":""},{"$f":"IF('effRT Support'!$B183=0,\"\",\"Fuel Type\")","v":""},{"$f":"IF('effRT Support'!$B183=0,\"\",'Project Information'!$D$44)","v":""},{"$f":"IF('effRT Support'!$B183=0,\"\",\"Installed Fixture Quantity\")","v":""},{"$f":"IF('effRT Support'!$B183=0,\"\",'effRT Support'!P182)","v":""}]
[{"$f":"IF('effRT Support'!$B184=0,\"\",IF('Project Information'!$D$33=\"Small Business\",\"SBL\",\"CILS\"))","v":""},{"$f":"IF('effRT Support'!$B184=0,\"\",IF('Project Information'!$K$2=\"\",\"\",'Project Information'!$K$2))","v":""},null,{"$f":"IF('effRT Support'!$B184=0,\"\",IF('Project Information'!$D$46=\"\",\"\",'Project Information'!$D$46))","v":""},{"$f":"IF('effRT Support'!$B184=0,\"\",IF('Project Information'!$D$20=\"\",\"\",VLOOKUP('Project Information'!$D$20,'Other Data'!$B$159:$E$189,4,FALSE)))","v":""},{"$f":"IF('effRT Support'!$B184=0,\"\",IF('Project Information'!$D$31=\"\",\"\",'Project Information'!$D$31))","v":""},{"$f":"IF('effRT Support'!$B184=0,\"\",IF('Project Information'!$D$5=\"\",\"\",'Project Information'!$D$5))","v":""},null,null,{"$f":"IF('effRT Support'!$B184=0,\"\",IF('Project Information'!$D$20=\"\",\"\",VLOOKUP('Project Information'!$D$20,'Other Data'!$B$159:$E$189,2,FALSE)))","v":""},{"$f":"IF('effRT Support'!$B184=0,\"\",IF('Project Information'!$D$20=\"\",\"\",VLOOKUP('Project Information'!$D$20,'Other Data'!$B$159:$E$189,3,FALSE)))","v":""},{"$f":"IF('effRT Support'!$B184=0,\"\",\"Existing\")","v":""},null,{"$f":"IF('effRT Support'!$B184=0,\"\",IF('Project Information'!$D$21=\"\",\"\",'Project Information'!$D$21))","v":""},{"$f":"IF('effRT Support'!$B184=0,\"\",IF('Project Information'!$D$48=\"\",\"\",'Project Information'!$D$48))","v":""},{"$f":"IF('effRT Support'!$B184=0,\"\",\"\")","v":""},{"$f":"IF('effRT Support'!$B184=0,\"\",\"\")","v":""},{"$f":"IF('effRT Support'!$B184=0,\"\",\"\")","v":""},{"$f":"IF('effRT Support'!$B184=0,\"\",\"\")","v":""},{"$f":"IF('effRT Support'!$B184=0,\"\",IF('Project Information'!$D$13=\"\",\"\",'Project Information'!$D$13))","v":""},{"$f":"IF('effRT Support'!$B184=0,\"\",IF('Project Information'!$E$13=\"\",\"\",'Project Information'!$E$13))","v":""},{"$f":"IF('effRT Support'!$B184=0,\"\",IF('Project Information'!$D$14=\"\",\"\",'Project Information'!$D$14))","v":""},{"$f":"IF('effRT Support'!$B184=0,\"\",IF('Project Information'!$D$15=\"\",\"\",'Project Information'!$D$15))","v":""},{"$f":"IF('effRT Support'!$B184=0,\"\",IF('Project Information'!$D$16=\"\",\"\",'Project Information'!$D$16))","v":""},null,{"$f":"IF('effRT Support'!$B184=0,\"\",'Project Information'!$D$18)","v":""},{"$f":"IF('effRT Support'!$B184=0,\"\",IF('Project Information'!$D$23=\"\",\"\",'Project Information'!$D$23))","v":""},{"$f":"IF('effRT Support'!$B184=0,\"\",IF('Project Information'!$D$24=\"\",\"\",'Project Information'!$D$24))","v":""},{"$f":"IF('effRT Support'!$B184=0,\"\",IF('Project Information'!$D$25=\"\",\"\",'Project Information'!$D$25))","v":""},{"$f":"IF('effRT Support'!$B184=0,\"\",IF('Project Information'!$E$25=\"\",\"\",'Project Information'!$E$25))","v":""},{"$f":"IF('effRT Support'!$B184=0,\"\",IF('Project Information'!$F$25=\"\",\"\",'Project Information'!$F$25))","v":""},{"$f":"IF('effRT Support'!$B184=0,\"\",IF('Project Information'!$D$27=\"\",\"Y\",\"N\"))","v":""},{"$f":"IF('effRT Support'!$B184=0,\"\",IF('Project Information'!$D$27=\"\",\"\",'Project Information'!$D$27))","v":""},{"$f":"IF('effRT Support'!$B184=0,\"\",IF('Project Information'!$D$28=\"\",\"\",'Project Information'!$D$28))","v":""},{"$f":"IF('effRT Support'!$B184=0,\"\",IF('Project Information'!$D$29=\"\",\"\",'Project Information'!$D$29))","v":""},{"$f":"IF('effRT Support'!$B184=0,\"\",IF('Project Information'!$E$29=\"\",\"\",'Project Information'!$E$29))","v":""},{"$f":"IF('effRT Support'!$B184=0,\"\",IF('Project Information'!$F$29=\"\",\"\",'Project Information'!$F$29))","v":""},{"$f":"IF('effRT Support'!$B184=0,\"\",\"\")","v":""},{"$f":"IF('effRT Support'!$B184=0,\"\",\"\")","v":""},{"$f":"IF('effRT Support'!$B184=0,\"\",IF('Project Information'!$D$36=\"\",\"\",'Project Information'!$D$36))","v":""},{"$f":"IF('effRT Support'!$B184=0,\"\",IF('Project Information'!$D$42=\"\",\"\",'Project Information'!$D$42))","v":""},{"$f":"IF('effRT Support'!$B184=0,\"\",'effRT Support'!$D184)","v":""},{"$f":"IF('effRT Support'!$B184=0,\"\",'effRT Support'!$L184)","v":""},{"$f":"IF('effRT Support'!$B184=0,\"\",'effRT Support'!$N184)","v":""},null,null,{"$f":"IF('effRT Support'!$B184=0,\"\",'effRT Support'!$P184)","v":""},{"$f":"IF('effRT Support'!$B184=0,\"\",'effRT Support'!$Q184)","v":""},{"$f":"IF('effRT Support'!$B184=0,\"\",'effRT Support'!U184)","v":""},{"$f":"IF('effRT Support'!$B184=0,\"\",'effRT Support'!V184)","v":""},{"$f":"IF('effRT Support'!$B184=0,\"\",'effRT Support'!W184)","v":""},{"$f":"IF('effRT Support'!$B184=0,\"\",'effRT Support'!X184)","v":""},{"$f":"IF('effRT Support'!$B184=0,\"\",'effRT Support'!Y184)","v":""},{"$f":"IF('effRT Support'!$B184=0,\"\",'effRT Support'!Z184*10)","v":""},{"$f":"IF('effRT Support'!$B184=0,\"\",'effRT Support'!AA184)","v":""},{"$f":"IF('effRT Support'!$B184=0,\"\",'effRT Support'!AB184)","v":""},{"$f":"IF('effRT Support'!$B184=0,\"\",'effRT Support'!AC184)","v":""},{"$f":"IF('effRT Support'!$B184=0,\"\",'effRT Support'!AD184)","v":""},{"$f":"IF('effRT Support'!$B184=0,\"\",'effRT Support'!AE184)","v":""},{"$f":"IF('effRT Support'!$B184=0,\"\",\"Hours Actual or Deemed\")","v":""},{"$f":"IF('effRT Support'!$B184=0,\"\",'effRT Support'!$F184)","v":""},{"$f":"IF('effRT Support'!$B184=0,\"\",\"Wattage Actual or Deemed\")","v":""},{"$f":"IF('effRT Support'!$B184=0,\"\",IF('Project Information'!$D$33=\"Pay For Performance\",\"Actual\",\"Deemed\"))","v":""},{"$f":"IF('effRT Support'!$B184=0,\"\",\"Cost Actual or Deemed\")","v":""},{"$f":"IF('effRT Support'!$B184=0,\"\",IF('Project Information'!$D$33=\"Pay For Performance\",\"Actual\",\"Deemed\"))","v":""},{"$f":"IF('effRT Support'!$B184=0,\"\",\"Location\")","v":""},{"$f":"IF('effRT Support'!$B184=0,\"\",'effRT Support'!$E184)","v":""},{"$f":"IF('effRT Support'!$B184=0,\"\",\"Space Type\")","v":""},{"$f":"IF('effRT Support'!$B184=0,\"\",'effRT Support'!$G184)","v":""},{"$f":"IF('effRT Support'!$B184=0,\"\",\"Existing Fixture Description\")","v":""},{"$f":"IF('effRT Support'!$B184=0,\"\",'effRT Support'!$H184)","v":""},{"$f":"IF('effRT Support'!$B184=0,\"\",\"Existing Fixture Quantity\")","v":""},{"$f":"IF('effRT Support'!$B184=0,\"\",'effRT Support'!$I184)","v":""},{"$f":"IF('effRT Support'!$B184=0,\"\",\"Existing Fixture Wattage\")","v":""},{"$f":"IF('effRT Support'!$B184=0,\"\",'effRT Support'!$J184)","v":""},{"$f":"IF('effRT Support'!$B184=0,\"\",\"Annual Hours of Operation\")","v":""},{"$f":"IF('effRT Support'!$B184=0,\"\",'effRT Support'!$K184)","v":""},{"$f":"IF('effRT Support'!$B184=0,\"\",\"Installed Fixture Description\")","v":""},{"$f":"IF('effRT Support'!$B184=0,\"\",'effRT Support'!$M184)","v":""},{"$f":"IF('effRT Support'!$B184=0,\"\",\"Installed Fixture Wattage\")","v":""},{"$f":"IF('effRT Support'!$B184=0,\"\",'effRT Support'!$O184)","v":""},{"$f":"IF('effRT Support'!$B184=0,\"\",\"Material Cost\")","v":""},{"$f":"IF('effRT Support'!$B184=0,\"\",'effRT Support'!$R184)","v":""},{"$f":"IF('effRT Support'!$B184=0,\"\",\"Labor Cost\")","v":""},{"$f":"IF('effRT Support'!$B184=0,\"\",'effRT Support'!$S184)","v":""},{"$f":"IF('effRT Support'!$B184=0,\"\",\"Ancillary Costs - Measure Specific\")","v":""},{"$f":"IF('effRT Support'!$B184=0,\"\",'effRT Support'!$T184)","v":""},{"$f":"IF('effRT Support'!$B184=0,\"\",\"Fuel Type\")","v":""},{"$f":"IF('effRT Support'!$B184=0,\"\",'Project Information'!$D$44)","v":""}]
[{"$f":"IF('effRT Support'!$B185=0,\"\",IF('Project Information'!$D$33=\"Small Business\",\"SBL\",\"CILS\"))","v":""},{"$f":"IF('effRT Support'!$B185=0,\"\",IF('Project Information'!$K$2=\"\",\"\",'Project Information'!$K$2))","v":""},null,{"$f":"IF('effRT Support'!$B185=0,\"\",IF('Project Information'!$D$46=\"\",\"\",'Project Information'!$D$46))","v":""},{"$f":"IF('effRT Support'!$B185=0,\"\",IF('Project Information'!$D$20=\"\",\"\",VLOOKUP('Project Information'!$D$20,'Other Data'!$B$159:$E$189,4,FALSE)))","v":""},{"$f":"IF('effRT Support'!$B185=0,\"\",IF('Project Information'!$D$31=\"\",\"\",'Project Information'!$D$31))","v":""},{"$f":"IF('effRT Support'!$B185=0,\"\",IF('Project Information'!$D$5=\"\",\"\",'Project Information'!$D$5))","v":""},null,null,{"$f":"IF('effRT Support'!$B185=0,\"\",IF('Project Information'!$D$20=\"\",\"\",VLOOKUP('Project Information'!$D$20,'Other Data'!$B$159:$E$189,2,FALSE)))","v":""},{"$f":"IF('effRT Support'!$B185=0,\"\",IF('Project Information'!$D$20=\"\",\"\",VLOOKUP('Project Information'!$D$20,'Other Data'!$B$159:$E$189,3,FALSE)))","v":""},{"$f":"IF('effRT Support'!$B185=0,\"\",\"Existing\")","v":""},null,{"$f":"IF('effRT Support'!$B185=0,\"\",IF('Project Information'!$D$21=\"\",\"\",'Project Information'!$D$21))","v":""},{"$f":"IF('effRT Support'!$B185=0,\"\",IF('Project Information'!$D$48=\"\",\"\",'Project Information'!$D$48))","v":""},{"$f":"IF('effRT Support'!$B185=0,\"\",\"\")","v":""},{"$f":"IF('effRT Support'!$B185=0,\"\",\"\")","v":""},{"$f":"IF('effRT Support'!$B185=0,\"\",\"\")","v":""},{"$f":"IF('effRT Support'!$B185=0,\"\",\"\")","v":""},{"$f":"IF('effRT Support'!$B185=0,\"\",IF('Project Information'!$D$13=\"\",\"\",'Project Information'!$D$13))","v":""},{"$f":"IF('effRT Support'!$B185=0,\"\",IF('Project Information'!$E$13=\"\",\"\",'Project Information'!$E$13))","v":""},{"$f":"IF('effRT Support'!$B185=0,\"\",IF('Project Information'!$D$14=\"\",\"\",'Project Information'!$D$14))","v":""},{"$f":"IF('effRT Support'!$B185=0,\"\",IF('Project Information'!$D$15=\"\",\"\",'Project Information'!$D$15))","v":""},{"$f":"IF('effRT Support'!$B185=0,\"\",IF('Project Information'!$D$16=\"\",\"\",'Project Information'!$D$16))","v":""},null,{"$f":"IF('effRT Support'!$B185=0,\"\",'Project Information'!$D$18)","v":""},{"$f":"IF('effRT Support'!$B185=0,\"\",IF('Project Information'!$D$23=\"\",\"\",'Project Information'!$D$23))","v":""},{"$f":"IF('effRT Support'!$B185=0,\"\",IF('Project Information'!$D$24=\"\",\"\",'Project Information'!$D$24))","v":""},{"$f":"IF('effRT Support'!$B185=0,\"\",IF('Project Information'!$D$25=\"\",\"\",'Project Information'!$D$25))","v":""},{"$f":"IF('effRT Support'!$B185=0,\"\",IF('Project Information'!$E$25=\"\",\"\",'Project Information'!$E$25))","v":""},{"$f":"IF('effRT Support'!$B185=0,\"\",IF('Project Information'!$F$25=\"\",\"\",'Project Information'!$F$25))","v":""},{"$f":"IF('effRT Support'!$B185=0,\"\",IF('Project Information'!$D$27=\"\",\"Y\",\"N\"))","v":""},{"$f":"IF('effRT Support'!$B185=0,\"\",IF('Project Information'!$D$27=\"\",\"\",'Project Information'!$D$27))","v":""},{"$f":"IF('effRT Support'!$B185=0,\"\",IF('Project Information'!$D$28=\"\",\"\",'Project Information'!$D$28))","v":""},{"$f":"IF('effRT Support'!$B185=0,\"\",IF('Project Information'!$D$29=\"\",\"\",'Project Information'!$D$29))","v":""},{"$f":"IF('effRT Support'!$B185=0,\"\",IF('Project Information'!$E$29=\"\",\"\",'Project Information'!$E$29))","v":""},{"$f":"IF('effRT Support'!$B185=0,\"\",IF('Project Information'!$F$29=\"\",\"\",'Project Information'!$F$29))","v":""},{"$f":"IF('effRT Support'!$B185=0,\"\",\"\")","v":""},{"$f":"IF('effRT Support'!$B185=0,\"\",\"\")","v":""},{"$f":"IF('effRT Support'!$B185=0,\"\",IF('Project Information'!$D$36=\"\",\"\",'Project Information'!$D$36))","v":""},{"$f":"IF('effRT Support'!$B185=0,\"\",IF('Project Information'!$D$42=\"\",\"\",'Project Information'!$D$42))","v":""},{"$f":"IF('effRT Support'!$B185=0,\"\",'effRT Support'!$D185)","v":""},{"$f":"IF('effRT Support'!$B185=0,\"\",'effRT Support'!$L185)","v":""},{"$f":"IF('effRT Support'!$B185=0,\"\",'effRT Support'!$N185)","v":""},null,null,{"$f":"IF('effRT Support'!$B185=0,\"\",'effRT Support'!$P185)","v":""},{"$f":"IF('effRT Support'!$B185=0,\"\",'effRT Support'!$Q185)","v":""},{"$f":"IF('effRT Support'!$B185=0,\"\",'effRT Support'!U185)","v":""},{"$f":"IF('effRT Support'!$B185=0,\"\",'effRT Support'!V185)","v":""},{"$f":"IF('effRT Support'!$B185=0,\"\",'effRT Support'!W185)","v":""},{"$f":"IF('effRT Support'!$B185=0,\"\",'effRT Support'!X185)","v":""},{"$f":"IF('effRT Support'!$B185=0,\"\",'effRT Support'!Y185)","v":""},{"$f":"IF('effRT Support'!$B185=0,\"\",'effRT Support'!Z185*10)","v":""},{"$f":"IF('effRT Support'!$B185=0,\"\",'effRT Support'!AA185)","v":""},{"$f":"IF('effRT Support'!$B185=0,\"\",'effRT Support'!AB185)","v":""},{"$f":"IF('effRT Support'!$B185=0,\"\",'effRT Support'!AC185)","v":""},{"$f":"IF('effRT Support'!$B185=0,\"\",'effRT Support'!AD185)","v":""},{"$f":"IF('effRT Support'!$B185=0,\"\",'effRT Support'!AE185)","v":""},{"$f":"IF('effRT Support'!$B185=0,\"\",\"Hours Actual or Deemed\")","v":""},{"$f":"IF('effRT Support'!$B185=0,\"\",'effRT Support'!$F185)","v":""},{"$f":"IF('effRT Support'!$B185=0,\"\",\"Wattage Actual or Deemed\")","v":""},{"$f":"IF('effRT Support'!$B185=0,\"\",IF('Project Information'!$D$33=\"Pay For Performance\",\"Actual\",\"Deemed\"))","v":""},{"$f":"IF('effRT Support'!$B185=0,\"\",\"Cost Actual or Deemed\")","v":""},{"$f":"IF('effRT Support'!$B185=0,\"\",IF('Project Information'!$D$33=\"Pay For Performance\",\"Actual\",\"Deemed\"))","v":""},{"$f":"IF('effRT Support'!$B185=0,\"\",\"Location\")","v":""},{"$f":"IF('effRT Support'!$B185=0,\"\",'effRT Support'!$E185)","v":""},{"$f":"IF('effRT Support'!$B185=0,\"\",\"Space Type\")","v":""},{"$f":"IF('effRT Support'!$B185=0,\"\",'effRT Support'!$G185)","v":""},{"$f":"IF('effRT Support'!$B185=0,\"\",\"Existing Fixture Description\")","v":""},{"$f":"IF('effRT Support'!$B185=0,\"\",'effRT Support'!$H185)","v":""},{"$f":"IF('effRT Support'!$B185=0,\"\",\"Existing Fixture Quantity\")","v":""},{"$f":"IF('effRT Support'!$B185=0,\"\",'effRT Support'!$I185)","v":""},{"$f":"IF('effRT Support'!$B185=0,\"\",\"Existing Fixture Wattage\")","v":""},{"$f":"IF('effRT Support'!$B185=0,\"\",'effRT Support'!$J185)","v":""},{"$f":"IF('effRT Support'!$B185=0,\"\",\"Annual Hours of Operation\")","v":""},{"$f":"IF('effRT Support'!$B185=0,\"\",'effRT Support'!$K185)","v":""},{"$f":"IF('effRT Support'!$B185=0,\"\",\"Installed Fixture Description\")","v":""},{"$f":"IF('effRT Support'!$B185=0,\"\",'effRT Support'!$M185)","v":""},{"$f":"IF('effRT Support'!$B185=0,\"\",\"Installed Fixture Wattage\")","v":""},{"$f":"IF('effRT Support'!$B185=0,\"\",'effRT Support'!$O185)","v":""},{"$f":"IF('effRT Support'!$B185=0,\"\",\"Material Cost\")","v":""},{"$f":"IF('effRT Support'!$B185=0,\"\",'effRT Support'!$R185)","v":""},{"$f":"IF('effRT Support'!$B185=0,\"\",\"Labor Cost\")","v":""},{"$f":"IF('effRT Support'!$B185=0,\"\",'effRT Support'!$S185)","v":""},{"$f":"IF('effRT Support'!$B185=0,\"\",\"Ancillary Costs - Measure Specific\")","v":""},{"$f":"IF('effRT Support'!$B185=0,\"\",'effRT Support'!$T185)","v":""},{"$f":"IF('effRT Support'!$B185=0,\"\",\"Fuel Type\")","v":""},{"$f":"IF('effRT Support'!$B185=0,\"\",'Project Information'!$D$44)","v":""},{"$f":"IF('effRT Support'!$B185=0,\"\",\"Installed Fixture Quantity\")","v":""},{"$f":"IF('effRT Support'!$B185=0,\"\",'effRT Support'!P184)","v":""}]
[{"$f":"IF('effRT Support'!$B186=0,\"\",IF('Project Information'!$D$33=\"Small Business\",\"SBL\",\"CILS\"))","v":""},{"$f":"IF('effRT Support'!$B186=0,\"\",IF('Project Information'!$K$2=\"\",\"\",'Project Information'!$K$2))","v":""},null,{"$f":"IF('effRT Support'!$B186=0,\"\",IF('Project Information'!$D$46=\"\",\"\",'Project Information'!$D$46))","v":""},{"$f":"IF('effRT Support'!$B186=0,\"\",IF('Project Information'!$D$20=\"\",\"\",VLOOKUP('Project Information'!$D$20,'Other Data'!$B$159:$E$189,4,FALSE)))","v":""},{"$f":"IF('effRT Support'!$B186=0,\"\",IF('Project Information'!$D$31=\"\",\"\",'Project Information'!$D$31))","v":""},{"$f":"IF('effRT Support'!$B186=0,\"\",IF('Project Information'!$D$5=\"\",\"\",'Project Information'!$D$5))","v":""},null,null,{"$f":"IF('effRT Support'!$B186=0,\"\",IF('Project Information'!$D$20=\"\",\"\",VLOOKUP('Project Information'!$D$20,'Other Data'!$B$159:$E$189,2,FALSE)))","v":""},{"$f":"IF('effRT Support'!$B186=0,\"\",IF('Project Information'!$D$20=\"\",\"\",VLOOKUP('Project Information'!$D$20,'Other Data'!$B$159:$E$189,3,FALSE)))","v":""},{"$f":"IF('effRT Support'!$B186=0,\"\",\"Existing\")","v":""},null,{"$f":"IF('effRT Support'!$B186=0,\"\",IF('Project Information'!$D$21=\"\",\"\",'Project Information'!$D$21))","v":""},{"$f":"IF('effRT Support'!$B186=0,\"\",IF('Project Information'!$D$48=\"\",\"\",'Project Information'!$D$48))","v":""},{"$f":"IF('effRT Support'!$B186=0,\"\",\"\")","v":""},{"$f":"IF('effRT Support'!$B186=0,\"\",\"\")","v":""},{"$f":"IF('effRT Support'!$B186=0,\"\",\"\")","v":""},{"$f":"IF('effRT Support'!$B186=0,\"\",\"\")","v":""},{"$f":"IF('effRT Support'!$B186=0,\"\",IF('Project Information'!$D$13=\"\",\"\",'Project Information'!$D$13))","v":""},{"$f":"IF('effRT Support'!$B186=0,\"\",IF('Project Information'!$E$13=\"\",\"\",'Project Information'!$E$13))","v":""},{"$f":"IF('effRT Support'!$B186=0,\"\",IF('Project Information'!$D$14=\"\",\"\",'Project Information'!$D$14))","v":""},{"$f":"IF('effRT Support'!$B186=0,\"\",IF('Project Information'!$D$15=\"\",\"\",'Project Information'!$D$15))","v":""},{"$f":"IF('effRT Support'!$B186=0,\"\",IF('Project Information'!$D$16=\"\",\"\",'Project Information'!$D$16))","v":""},null,{"$f":"IF('effRT Support'!$B186=0,\"\",'Project Information'!$D$18)","v":""},{"$f":"IF('effRT Support'!$B186=0,\"\",IF('Project Information'!$D$23=\"\",\"\",'Project Information'!$D$23))","v":""},{"$f":"IF('effRT Support'!$B186=0,\"\",IF('Project Information'!$D$24=\"\",\"\",'Project Information'!$D$24))","v":""},{"$f":"IF('effRT Support'!$B186=0,\"\",IF('Project Information'!$D$25=\"\",\"\",'Project Information'!$D$25))","v":""},{"$f":"IF('effRT Support'!$B186=0,\"\",IF('Project Information'!$E$25=\"\",\"\",'Project Information'!$E$25))","v":""},{"$f":"IF('effRT Support'!$B186=0,\"\",IF('Project Information'!$F$25=\"\",\"\",'Project Information'!$F$25))","v":""},{"$f":"IF('effRT Support'!$B186=0,\"\",IF('Project Information'!$D$27=\"\",\"Y\",\"N\"))","v":""},{"$f":"IF('effRT Support'!$B186=0,\"\",IF('Project Information'!$D$27=\"\",\"\",'Project Information'!$D$27))","v":""},{"$f":"IF('effRT Support'!$B186=0,\"\",IF('Project Information'!$D$28=\"\",\"\",'Project Information'!$D$28))","v":""},{"$f":"IF('effRT Support'!$B186=0,\"\",IF('Project Information'!$D$29=\"\",\"\",'Project Information'!$D$29))","v":""},{"$f":"IF('effRT Support'!$B186=0,\"\",IF('Project Information'!$E$29=\"\",\"\",'Project Information'!$E$29))","v":""},{"$f":"IF('effRT Support'!$B186=0,\"\",IF('Project Information'!$F$29=\"\",\"\",'Project Information'!$F$29))","v":""},{"$f":"IF('effRT Support'!$B186=0,\"\",\"\")","v":""},{"$f":"IF('effRT Support'!$B186=0,\"\",\"\")","v":""},{"$f":"IF('effRT Support'!$B186=0,\"\",IF('Project Information'!$D$36=\"\",\"\",'Project Information'!$D$36))","v":""},{"$f":"IF('effRT Support'!$B186=0,\"\",IF('Project Information'!$D$42=\"\",\"\",'Project Information'!$D$42))","v":""},{"$f":"IF('effRT Support'!$B186=0,\"\",'effRT Support'!$D186)","v":""},{"$f":"IF('effRT Support'!$B186=0,\"\",'effRT Support'!$L186)","v":""},{"$f":"IF('effRT Support'!$B186=0,\"\",'effRT Support'!$N186)","v":""},null,null,{"$f":"IF('effRT Support'!$B186=0,\"\",'effRT Support'!$P186)","v":""},{"$f":"IF('effRT Support'!$B186=0,\"\",'effRT Support'!$Q186)","v":""},{"$f":"IF('effRT Support'!$B186=0,\"\",'effRT Support'!U186)","v":""},{"$f":"IF('effRT Support'!$B186=0,\"\",'effRT Support'!V186)","v":""},{"$f":"IF('effRT Support'!$B186=0,\"\",'effRT Support'!W186)","v":""},{"$f":"IF('effRT Support'!$B186=0,\"\",'effRT Support'!X186)","v":""},{"$f":"IF('effRT Support'!$B186=0,\"\",'effRT Support'!Y186)","v":""},{"$f":"IF('effRT Support'!$B186=0,\"\",'effRT Support'!Z186*10)","v":""},{"$f":"IF('effRT Support'!$B186=0,\"\",'effRT Support'!AA186)","v":""},{"$f":"IF('effRT Support'!$B186=0,\"\",'effRT Support'!AB186)","v":""},{"$f":"IF('effRT Support'!$B186=0,\"\",'effRT Support'!AC186)","v":""},{"$f":"IF('effRT Support'!$B186=0,\"\",'effRT Support'!AD186)","v":""},{"$f":"IF('effRT Support'!$B186=0,\"\",'effRT Support'!AE186)","v":""},{"$f":"IF('effRT Support'!$B186=0,\"\",\"Hours Actual or Deemed\")","v":""},{"$f":"IF('effRT Support'!$B186=0,\"\",'effRT Support'!$F186)","v":""},{"$f":"IF('effRT Support'!$B186=0,\"\",\"Wattage Actual or Deemed\")","v":""},{"$f":"IF('effRT Support'!$B186=0,\"\",IF('Project Information'!$D$33=\"Pay For Performance\",\"Actual\",\"Deemed\"))","v":""},{"$f":"IF('effRT Support'!$B186=0,\"\",\"Cost Actual or Deemed\")","v":""},{"$f":"IF('effRT Support'!$B186=0,\"\",IF('Project Information'!$D$33=\"Pay For Performance\",\"Actual\",\"Deemed\"))","v":""},{"$f":"IF('effRT Support'!$B186=0,\"\",\"Location\")","v":""},{"$f":"IF('effRT Support'!$B186=0,\"\",'effRT Support'!$E186)","v":""},{"$f":"IF('effRT Support'!$B186=0,\"\",\"Space Type\")","v":""},{"$f":"IF('effRT Support'!$B186=0,\"\",'effRT Support'!$G186)","v":""},{"$f":"IF('effRT Support'!$B186=0,\"\",\"Existing Fixture Description\")","v":""},{"$f":"IF('effRT Support'!$B186=0,\"\",'effRT Support'!$H186)","v":""},{"$f":"IF('effRT Support'!$B186=0,\"\",\"Existing Fixture Quantity\")","v":""},{"$f":"IF('effRT Support'!$B186=0,\"\",'effRT Support'!$I186)","v":""},{"$f":"IF('effRT Support'!$B186=0,\"\",\"Existing Fixture Wattage\")","v":""},{"$f":"IF('effRT Support'!$B186=0,\"\",'effRT Support'!$J186)","v":""},{"$f":"IF('effRT Support'!$B186=0,\"\",\"Annual Hours of Operation\")","v":""},{"$f":"IF('effRT Support'!$B186=0,\"\",'effRT Support'!$K186)","v":""},{"$f":"IF('effRT Support'!$B186=0,\"\",\"Installed Fixture Description\")","v":""},{"$f":"IF('effRT Support'!$B186=0,\"\",'effRT Support'!$M186)","v":""},{"$f":"IF('effRT Support'!$B186=0,\"\",\"Installed Fixture Wattage\")","v":""},{"$f":"IF('effRT Support'!$B186=0,\"\",'effRT Support'!$O186)","v":""},{"$f":"IF('effRT Support'!$B186=0,\"\",\"Material Cost\")","v":""},{"$f":"IF('effRT Support'!$B186=0,\"\",'effRT Support'!$R186)","v":""},{"$f":"IF('effRT Support'!$B186=0,\"\",\"Labor Cost\")","v":""},{"$f":"IF('effRT Support'!$B186=0,\"\",'effRT Support'!$S186)","v":""},{"$f":"IF('effRT Support'!$B186=0,\"\",\"Ancillary Costs - Measure Specific\")","v":""},{"$f":"IF('effRT Support'!$B186=0,\"\",'effRT Support'!$T186)","v":""},{"$f":"IF('effRT Support'!$B186=0,\"\",\"Fuel Type\")","v":""},{"$f":"IF('effRT Support'!$B186=0,\"\",'Project Information'!$D$44)","v":""}]
[{"$f":"IF('effRT Support'!$B187=0,\"\",IF('Project Information'!$D$33=\"Small Business\",\"SBL\",\"CILS\"))","v":""},{"$f":"IF('effRT Support'!$B187=0,\"\",IF('Project Information'!$K$2=\"\",\"\",'Project Information'!$K$2))","v":""},null,{"$f":"IF('effRT Support'!$B187=0,\"\",IF('Project Information'!$D$46=\"\",\"\",'Project Information'!$D$46))","v":""},{"$f":"IF('effRT Support'!$B187=0,\"\",IF('Project Information'!$D$20=\"\",\"\",VLOOKUP('Project Information'!$D$20,'Other Data'!$B$159:$E$189,4,FALSE)))","v":""},{"$f":"IF('effRT Support'!$B187=0,\"\",IF('Project Information'!$D$31=\"\",\"\",'Project Information'!$D$31))","v":""},{"$f":"IF('effRT Support'!$B187=0,\"\",IF('Project Information'!$D$5=\"\",\"\",'Project Information'!$D$5))","v":""},null,null,{"$f":"IF('effRT Support'!$B187=0,\"\",IF('Project Information'!$D$20=\"\",\"\",VLOOKUP('Project Information'!$D$20,'Other Data'!$B$159:$E$189,2,FALSE)))","v":""},{"$f":"IF('effRT Support'!$B187=0,\"\",IF('Project Information'!$D$20=\"\",\"\",VLOOKUP('Project Information'!$D$20,'Other Data'!$B$159:$E$189,3,FALSE)))","v":""},{"$f":"IF('effRT Support'!$B187=0,\"\",\"Existing\")","v":""},null,{"$f":"IF('effRT Support'!$B187=0,\"\",IF('Project Information'!$D$21=\"\",\"\",'Project Information'!$D$21))","v":""},{"$f":"IF('effRT Support'!$B187=0,\"\",IF('Project Information'!$D$48=\"\",\"\",'Project Information'!$D$48))","v":""},{"$f":"IF('effRT Support'!$B187=0,\"\",\"\")","v":""},{"$f":"IF('effRT Support'!$B187=0,\"\",\"\")","v":""},{"$f":"IF('effRT Support'!$B187=0,\"\",\"\")","v":""},{"$f":"IF('effRT Support'!$B187=0,\"\",\"\")","v":""},{"$f":"IF('effRT Support'!$B187=0,\"\",IF('Project Information'!$D$13=\"\",\"\",'Project Information'!$D$13))","v":""},{"$f":"IF('effRT Support'!$B187=0,\"\",IF('Project Information'!$E$13=\"\",\"\",'Project Information'!$E$13))","v":""},{"$f":"IF('effRT Support'!$B187=0,\"\",IF('Project Information'!$D$14=\"\",\"\",'Project Information'!$D$14))","v":""},{"$f":"IF('effRT Support'!$B187=0,\"\",IF('Project Information'!$D$15=\"\",\"\",'Project Information'!$D$15))","v":""},{"$f":"IF('effRT Support'!$B187=0,\"\",IF('Project Information'!$D$16=\"\",\"\",'Project Information'!$D$16))","v":""},null,{"$f":"IF('effRT Support'!$B187=0,\"\",'Project Information'!$D$18)","v":""},{"$f":"IF('effRT Support'!$B187=0,\"\",IF('Project Information'!$D$23=\"\",\"\",'Project Information'!$D$23))","v":""},{"$f":"IF('effRT Support'!$B187=0,\"\",IF('Project Information'!$D$24=\"\",\"\",'Project Information'!$D$24))","v":""},{"$f":"IF('effRT Support'!$B187=0,\"\",IF('Project Information'!$D$25=\"\",\"\",'Project Information'!$D$25))","v":""},{"$f":"IF('effRT Support'!$B187=0,\"\",IF('Project Information'!$E$25=\"\",\"\",'Project Information'!$E$25))","v":""},{"$f":"IF('effRT Support'!$B187=0,\"\",IF('Project Information'!$F$25=\"\",\"\",'Project Information'!$F$25))","v":""},{"$f":"IF('effRT Support'!$B187=0,\"\",IF('Project Information'!$D$27=\"\",\"Y\",\"N\"))","v":""},{"$f":"IF('effRT Support'!$B187=0,\"\",IF('Project Information'!$D$27=\"\",\"\",'Project Information'!$D$27))","v":""},{"$f":"IF('effRT Support'!$B187=0,\"\",IF('Project Information'!$D$28=\"\",\"\",'Project Information'!$D$28))","v":""},{"$f":"IF('effRT Support'!$B187=0,\"\",IF('Project Information'!$D$29=\"\",\"\",'Project Information'!$D$29))","v":""},{"$f":"IF('effRT Support'!$B187=0,\"\",IF('Project Information'!$E$29=\"\",\"\",'Project Information'!$E$29))","v":""},{"$f":"IF('effRT Support'!$B187=0,\"\",IF('Project Information'!$F$29=\"\",\"\",'Project Information'!$F$29))","v":""},{"$f":"IF('effRT Support'!$B187=0,\"\",\"\")","v":""},{"$f":"IF('effRT Support'!$B187=0,\"\",\"\")","v":""},{"$f":"IF('effRT Support'!$B187=0,\"\",IF('Project Information'!$D$36=\"\",\"\",'Project Information'!$D$36))","v":""},{"$f":"IF('effRT Support'!$B187=0,\"\",IF('Project Information'!$D$42=\"\",\"\",'Project Information'!$D$42))","v":""},{"$f":"IF('effRT Support'!$B187=0,\"\",'effRT Support'!$D187)","v":""},{"$f":"IF('effRT Support'!$B187=0,\"\",'effRT Support'!$L187)","v":""},{"$f":"IF('effRT Support'!$B187=0,\"\",'effRT Support'!$N187)","v":""},null,null,{"$f":"IF('effRT Support'!$B187=0,\"\",'effRT Support'!$P187)","v":""},{"$f":"IF('effRT Support'!$B187=0,\"\",'effRT Support'!$Q187)","v":""},{"$f":"IF('effRT Support'!$B187=0,\"\",'effRT Support'!U187)","v":""},{"$f":"IF('effRT Support'!$B187=0,\"\",'effRT Support'!V187)","v":""},{"$f":"IF('effRT Support'!$B187=0,\"\",'effRT Support'!W187)","v":""},{"$f":"IF('effRT Support'!$B187=0,\"\",'effRT Support'!X187)","v":""},{"$f":"IF('effRT Support'!$B187=0,\"\",'effRT Support'!Y187)","v":""},{"$f":"IF('effRT Support'!$B187=0,\"\",'effRT Support'!Z187*10)","v":""},{"$f":"IF('effRT Support'!$B187=0,\"\",'effRT Support'!AA187)","v":""},{"$f":"IF('effRT Support'!$B187=0,\"\",'effRT Support'!AB187)","v":""},{"$f":"IF('effRT Support'!$B187=0,\"\",'effRT Support'!AC187)","v":""},{"$f":"IF('effRT Support'!$B187=0,\"\",'effRT Support'!AD187)","v":""},{"$f":"IF('effRT Support'!$B187=0,\"\",'effRT Support'!AE187)","v":""},{"$f":"IF('effRT Support'!$B187=0,\"\",\"Hours Actual or Deemed\")","v":""},{"$f":"IF('effRT Support'!$B187=0,\"\",'effRT Support'!$F187)","v":""},{"$f":"IF('effRT Support'!$B187=0,\"\",\"Wattage Actual or Deemed\")","v":""},{"$f":"IF('effRT Support'!$B187=0,\"\",IF('Project Information'!$D$33=\"Pay For Performance\",\"Actual\",\"Deemed\"))","v":""},{"$f":"IF('effRT Support'!$B187=0,\"\",\"Cost Actual or Deemed\")","v":""},{"$f":"IF('effRT Support'!$B187=0,\"\",IF('Project Information'!$D$33=\"Pay For Performance\",\"Actual\",\"Deemed\"))","v":""},{"$f":"IF('effRT Support'!$B187=0,\"\",\"Location\")","v":""},{"$f":"IF('effRT Support'!$B187=0,\"\",'effRT Support'!$E187)","v":""},{"$f":"IF('effRT Support'!$B187=0,\"\",\"Space Type\")","v":""},{"$f":"IF('effRT Support'!$B187=0,\"\",'effRT Support'!$G187)","v":""},{"$f":"IF('effRT Support'!$B187=0,\"\",\"Existing Fixture Description\")","v":""},{"$f":"IF('effRT Support'!$B187=0,\"\",'effRT Support'!$H187)","v":""},{"$f":"IF('effRT Support'!$B187=0,\"\",\"Existing Fixture Quantity\")","v":""},{"$f":"IF('effRT Support'!$B187=0,\"\",'effRT Support'!$I187)","v":""},{"$f":"IF('effRT Support'!$B187=0,\"\",\"Existing Fixture Wattage\")","v":""},{"$f":"IF('effRT Support'!$B187=0,\"\",'effRT Support'!$J187)","v":""},{"$f":"IF('effRT Support'!$B187=0,\"\",\"Annual Hours of Operation\")","v":""},{"$f":"IF('effRT Support'!$B187=0,\"\",'effRT Support'!$K187)","v":""},{"$f":"IF('effRT Support'!$B187=0,\"\",\"Installed Fixture Description\")","v":""},{"$f":"IF('effRT Support'!$B187=0,\"\",'effRT Support'!$M187)","v":""},{"$f":"IF('effRT Support'!$B187=0,\"\",\"Installed Fixture Wattage\")","v":""},{"$f":"IF('effRT Support'!$B187=0,\"\",'effRT Support'!$O187)","v":""},{"$f":"IF('effRT Support'!$B187=0,\"\",\"Material Cost\")","v":""},{"$f":"IF('effRT Support'!$B187=0,\"\",'effRT Support'!$R187)","v":""},{"$f":"IF('effRT Support'!$B187=0,\"\",\"Labor Cost\")","v":""},{"$f":"IF('effRT Support'!$B187=0,\"\",'effRT Support'!$S187)","v":""},{"$f":"IF('effRT Support'!$B187=0,\"\",\"Ancillary Costs - Measure Specific\")","v":""},{"$f":"IF('effRT Support'!$B187=0,\"\",'effRT Support'!$T187)","v":""},{"$f":"IF('effRT Support'!$B187=0,\"\",\"Fuel Type\")","v":""},{"$f":"IF('effRT Support'!$B187=0,\"\",'Project Information'!$D$44)","v":""},{"$f":"IF('effRT Support'!$B187=0,\"\",\"Installed Fixture Quantity\")","v":""},{"$f":"IF('effRT Support'!$B187=0,\"\",'effRT Support'!P186)","v":""}]
[{"$f":"IF('effRT Support'!$B188=0,\"\",IF('Project Information'!$D$33=\"Small Business\",\"SBL\",\"CILS\"))","v":""},{"$f":"IF('effRT Support'!$B188=0,\"\",IF('Project Information'!$K$2=\"\",\"\",'Project Information'!$K$2))","v":""},null,{"$f":"IF('effRT Support'!$B188=0,\"\",IF('Project Information'!$D$46=\"\",\"\",'Project Information'!$D$46))","v":""},{"$f":"IF('effRT Support'!$B188=0,\"\",IF('Project Information'!$D$20=\"\",\"\",VLOOKUP('Project Information'!$D$20,'Other Data'!$B$159:$E$189,4,FALSE)))","v":""},{"$f":"IF('effRT Support'!$B188=0,\"\",IF('Project Information'!$D$31=\"\",\"\",'Project Information'!$D$31))","v":""},{"$f":"IF('effRT Support'!$B188=0,\"\",IF('Project Information'!$D$5=\"\",\"\",'Project Information'!$D$5))","v":""},null,null,{"$f":"IF('effRT Support'!$B188=0,\"\",IF('Project Information'!$D$20=\"\",\"\",VLOOKUP('Project Information'!$D$20,'Other Data'!$B$159:$E$189,2,FALSE)))","v":""},{"$f":"IF('effRT Support'!$B188=0,\"\",IF('Project Information'!$D$20=\"\",\"\",VLOOKUP('Project Information'!$D$20,'Other Data'!$B$159:$E$189,3,FALSE)))","v":""},{"$f":"IF('effRT Support'!$B188=0,\"\",\"Existing\")","v":""},null,{"$f":"IF('effRT Support'!$B188=0,\"\",IF('Project Information'!$D$21=\"\",\"\",'Project Information'!$D$21))","v":""},{"$f":"IF('effRT Support'!$B188=0,\"\",IF('Project Information'!$D$48=\"\",\"\",'Project Information'!$D$48))","v":""},{"$f":"IF('effRT Support'!$B188=0,\"\",\"\")","v":""},{"$f":"IF('effRT Support'!$B188=0,\"\",\"\")","v":""},{"$f":"IF('effRT Support'!$B188=0,\"\",\"\")","v":""},{"$f":"IF('effRT Support'!$B188=0,\"\",\"\")","v":""},{"$f":"IF('effRT Support'!$B188=0,\"\",IF('Project Information'!$D$13=\"\",\"\",'Project Information'!$D$13))","v":""},{"$f":"IF('effRT Support'!$B188=0,\"\",IF('Project Information'!$E$13=\"\",\"\",'Project Information'!$E$13))","v":""},{"$f":"IF('effRT Support'!$B188=0,\"\",IF('Project Information'!$D$14=\"\",\"\",'Project Information'!$D$14))","v":""},{"$f":"IF('effRT Support'!$B188=0,\"\",IF('Project Information'!$D$15=\"\",\"\",'Project Information'!$D$15))","v":""},{"$f":"IF('effRT Support'!$B188=0,\"\",IF('Project Information'!$D$16=\"\",\"\",'Project Information'!$D$16))","v":""},null,{"$f":"IF('effRT Support'!$B188=0,\"\",'Project Information'!$D$18)","v":""},{"$f":"IF('effRT Support'!$B188=0,\"\",IF('Project Information'!$D$23=\"\",\"\",'Project Information'!$D$23))","v":""},{"$f":"IF('effRT Support'!$B188=0,\"\",IF('Project Information'!$D$24=\"\",\"\",'Project Information'!$D$24))","v":""},{"$f":"IF('effRT Support'!$B188=0,\"\",IF('Project Information'!$D$25=\"\",\"\",'Project Information'!$D$25))","v":""},{"$f":"IF('effRT Support'!$B188=0,\"\",IF('Project Information'!$E$25=\"\",\"\",'Project Information'!$E$25))","v":""},{"$f":"IF('effRT Support'!$B188=0,\"\",IF('Project Information'!$F$25=\"\",\"\",'Project Information'!$F$25))","v":""},{"$f":"IF('effRT Support'!$B188=0,\"\",IF('Project Information'!$D$27=\"\",\"Y\",\"N\"))","v":""},{"$f":"IF('effRT Support'!$B188=0,\"\",IF('Project Information'!$D$27=\"\",\"\",'Project Information'!$D$27))","v":""},{"$f":"IF('effRT Support'!$B188=0,\"\",IF('Project Information'!$D$28=\"\",\"\",'Project Information'!$D$28))","v":""},{"$f":"IF('effRT Support'!$B188=0,\"\",IF('Project Information'!$D$29=\"\",\"\",'Project Information'!$D$29))","v":""},{"$f":"IF('effRT Support'!$B188=0,\"\",IF('Project Information'!$E$29=\"\",\"\",'Project Information'!$E$29))","v":""},{"$f":"IF('effRT Support'!$B188=0,\"\",IF('Project Information'!$F$29=\"\",\"\",'Project Information'!$F$29))","v":""},{"$f":"IF('effRT Support'!$B188=0,\"\",\"\")","v":""},{"$f":"IF('effRT Support'!$B188=0,\"\",\"\")","v":""},{"$f":"IF('effRT Support'!$B188=0,\"\",IF('Project Information'!$D$36=\"\",\"\",'Project Information'!$D$36))","v":""},{"$f":"IF('effRT Support'!$B188=0,\"\",IF('Project Information'!$D$42=\"\",\"\",'Project Information'!$D$42))","v":""},{"$f":"IF('effRT Support'!$B188=0,\"\",'effRT Support'!$D188)","v":""},{"$f":"IF('effRT Support'!$B188=0,\"\",'effRT Support'!$L188)","v":""},{"$f":"IF('effRT Support'!$B188=0,\"\",'effRT Support'!$N188)","v":""},null,null,{"$f":"IF('effRT Support'!$B188=0,\"\",'effRT Support'!$P188)","v":""},{"$f":"IF('effRT Support'!$B188=0,\"\",'effRT Support'!$Q188)","v":""},{"$f":"IF('effRT Support'!$B188=0,\"\",'effRT Support'!U188)","v":""},{"$f":"IF('effRT Support'!$B188=0,\"\",'effRT Support'!V188)","v":""},{"$f":"IF('effRT Support'!$B188=0,\"\",'effRT Support'!W188)","v":""},{"$f":"IF('effRT Support'!$B188=0,\"\",'effRT Support'!X188)","v":""},{"$f":"IF('effRT Support'!$B188=0,\"\",'effRT Support'!Y188)","v":""},{"$f":"IF('effRT Support'!$B188=0,\"\",'effRT Support'!Z188*10)","v":""},{"$f":"IF('effRT Support'!$B188=0,\"\",'effRT Support'!AA188)","v":""},{"$f":"IF('effRT Support'!$B188=0,\"\",'effRT Support'!AB188)","v":""},{"$f":"IF('effRT Support'!$B188=0,\"\",'effRT Support'!AC188)","v":""},{"$f":"IF('effRT Support'!$B188=0,\"\",'effRT Support'!AD188)","v":""},{"$f":"IF('effRT Support'!$B188=0,\"\",'effRT Support'!AE188)","v":""},{"$f":"IF('effRT Support'!$B188=0,\"\",\"Hours Actual or Deemed\")","v":""},{"$f":"IF('effRT Support'!$B188=0,\"\",'effRT Support'!$F188)","v":""},{"$f":"IF('effRT Support'!$B188=0,\"\",\"Wattage Actual or Deemed\")","v":""},{"$f":"IF('effRT Support'!$B188=0,\"\",IF('Project Information'!$D$33=\"Pay For Performance\",\"Actual\",\"Deemed\"))","v":""},{"$f":"IF('effRT Support'!$B188=0,\"\",\"Cost Actual or Deemed\")","v":""},{"$f":"IF('effRT Support'!$B188=0,\"\",IF('Project Information'!$D$33=\"Pay For Performance\",\"Actual\",\"Deemed\"))","v":""},{"$f":"IF('effRT Support'!$B188=0,\"\",\"Location\")","v":""},{"$f":"IF('effRT Support'!$B188=0,\"\",'effRT Support'!$E188)","v":""},{"$f":"IF('effRT Support'!$B188=0,\"\",\"Space Type\")","v":""},{"$f":"IF('effRT Support'!$B188=0,\"\",'effRT Support'!$G188)","v":""},{"$f":"IF('effRT Support'!$B188=0,\"\",\"Existing Fixture Description\")","v":""},{"$f":"IF('effRT Support'!$B188=0,\"\",'effRT Support'!$H188)","v":""},{"$f":"IF('effRT Support'!$B188=0,\"\",\"Existing Fixture Quantity\")","v":""},{"$f":"IF('effRT Support'!$B188=0,\"\",'effRT Support'!$I188)","v":""},{"$f":"IF('effRT Support'!$B188=0,\"\",\"Existing Fixture Wattage\")","v":""},{"$f":"IF('effRT Support'!$B188=0,\"\",'effRT Support'!$J188)","v":""},{"$f":"IF('effRT Support'!$B188=0,\"\",\"Annual Hours of Operation\")","v":""},{"$f":"IF('effRT Support'!$B188=0,\"\",'effRT Support'!$K188)","v":""},{"$f":"IF('effRT Support'!$B188=0,\"\",\"Installed Fixture Description\")","v":""},{"$f":"IF('effRT Support'!$B188=0,\"\",'effRT Support'!$M188)","v":""},{"$f":"IF('effRT Support'!$B188=0,\"\",\"Installed Fixture Wattage\")","v":""},{"$f":"IF('effRT Support'!$B188=0,\"\",'effRT Support'!$O188)","v":""},{"$f":"IF('effRT Support'!$B188=0,\"\",\"Material Cost\")","v":""},{"$f":"IF('effRT Support'!$B188=0,\"\",'effRT Support'!$R188)","v":""},{"$f":"IF('effRT Support'!$B188=0,\"\",\"Labor Cost\")","v":""},{"$f":"IF('effRT Support'!$B188=0,\"\",'effRT Support'!$S188)","v":""},{"$f":"IF('effRT Support'!$B188=0,\"\",\"Ancillary Costs - Measure Specific\")","v":""},{"$f":"IF('effRT Support'!$B188=0,\"\",'effRT Support'!$T188)","v":""},{"$f":"IF('effRT Support'!$B188=0,\"\",\"Fuel Type\")","v":""},{"$f":"IF('effRT Support'!$B188=0,\"\",'Project Information'!$D$44)","v":""}]
[{"$f":"IF('effRT Support'!$B189=0,\"\",IF('Project Information'!$D$33=\"Small Business\",\"SBL\",\"CILS\"))","v":""},{"$f":"IF('effRT Support'!$B189=0,\"\",IF('Project Information'!$K$2=\"\",\"\",'Project Information'!$K$2))","v":""},null,{"$f":"IF('effRT Support'!$B189=0,\"\",IF('Project Information'!$D$46=\"\",\"\",'Project Information'!$D$46))","v":""},{"$f":"IF('effRT Support'!$B189=0,\"\",IF('Project Information'!$D$20=\"\",\"\",VLOOKUP('Project Information'!$D$20,'Other Data'!$B$159:$E$189,4,FALSE)))","v":""},{"$f":"IF('effRT Support'!$B189=0,\"\",IF('Project Information'!$D$31=\"\",\"\",'Project Information'!$D$31))","v":""},{"$f":"IF('effRT Support'!$B189=0,\"\",IF('Project Information'!$D$5=\"\",\"\",'Project Information'!$D$5))","v":""},null,null,{"$f":"IF('effRT Support'!$B189=0,\"\",IF('Project Information'!$D$20=\"\",\"\",VLOOKUP('Project Information'!$D$20,'Other Data'!$B$159:$E$189,2,FALSE)))","v":""},{"$f":"IF('effRT Support'!$B189=0,\"\",IF('Project Information'!$D$20=\"\",\"\",VLOOKUP('Project Information'!$D$20,'Other Data'!$B$159:$E$189,3,FALSE)))","v":""},{"$f":"IF('effRT Support'!$B189=0,\"\",\"Existing\")","v":""},null,{"$f":"IF('effRT Support'!$B189=0,\"\",IF('Project Information'!$D$21=\"\",\"\",'Project Information'!$D$21))","v":""},{"$f":"IF('effRT Support'!$B189=0,\"\",IF('Project Information'!$D$48=\"\",\"\",'Project Information'!$D$48))","v":""},{"$f":"IF('effRT Support'!$B189=0,\"\",\"\")","v":""},{"$f":"IF('effRT Support'!$B189=0,\"\",\"\")","v":""},{"$f":"IF('effRT Support'!$B189=0,\"\",\"\")","v":""},{"$f":"IF('effRT Support'!$B189=0,\"\",\"\")","v":""},{"$f":"IF('effRT Support'!$B189=0,\"\",IF('Project Information'!$D$13=\"\",\"\",'Project Information'!$D$13))","v":""},{"$f":"IF('effRT Support'!$B189=0,\"\",IF('Project Information'!$E$13=\"\",\"\",'Project Information'!$E$13))","v":""},{"$f":"IF('effRT Support'!$B189=0,\"\",IF('Project Information'!$D$14=\"\",\"\",'Project Information'!$D$14))","v":""},{"$f":"IF('effRT Support'!$B189=0,\"\",IF('Project Information'!$D$15=\"\",\"\",'Project Information'!$D$15))","v":""},{"$f":"IF('effRT Support'!$B189=0,\"\",IF('Project Information'!$D$16=\"\",\"\",'Project Information'!$D$16))","v":""},null,{"$f":"IF('effRT Support'!$B189=0,\"\",'Project Information'!$D$18)","v":""},{"$f":"IF('effRT Support'!$B189=0,\"\",IF('Project Information'!$D$23=\"\",\"\",'Project Information'!$D$23))","v":""},{"$f":"IF('effRT Support'!$B189=0,\"\",IF('Project Information'!$D$24=\"\",\"\",'Project Information'!$D$24))","v":""},{"$f":"IF('effRT Support'!$B189=0,\"\",IF('Project Information'!$D$25=\"\",\"\",'Project Information'!$D$25))","v":""},{"$f":"IF('effRT Support'!$B189=0,\"\",IF('Project Information'!$E$25=\"\",\"\",'Project Information'!$E$25))","v":""},{"$f":"IF('effRT Support'!$B189=0,\"\",IF('Project Information'!$F$25=\"\",\"\",'Project Information'!$F$25))","v":""},{"$f":"IF('effRT Support'!$B189=0,\"\",IF('Project Information'!$D$27=\"\",\"Y\",\"N\"))","v":""},{"$f":"IF('effRT Support'!$B189=0,\"\",IF('Project Information'!$D$27=\"\",\"\",'Project Information'!$D$27))","v":""},{"$f":"IF('effRT Support'!$B189=0,\"\",IF('Project Information'!$D$28=\"\",\"\",'Project Information'!$D$28))","v":""},{"$f":"IF('effRT Support'!$B189=0,\"\",IF('Project Information'!$D$29=\"\",\"\",'Project Information'!$D$29))","v":""},{"$f":"IF('effRT Support'!$B189=0,\"\",IF('Project Information'!$E$29=\"\",\"\",'Project Information'!$E$29))","v":""},{"$f":"IF('effRT Support'!$B189=0,\"\",IF('Project Information'!$F$29=\"\",\"\",'Project Information'!$F$29))","v":""},{"$f":"IF('effRT Support'!$B189=0,\"\",\"\")","v":""},{"$f":"IF('effRT Support'!$B189=0,\"\",\"\")","v":""},{"$f":"IF('effRT Support'!$B189=0,\"\",IF('Project Information'!$D$36=\"\",\"\",'Project Information'!$D$36))","v":""},{"$f":"IF('effRT Support'!$B189=0,\"\",IF('Project Information'!$D$42=\"\",\"\",'Project Information'!$D$42))","v":""},{"$f":"IF('effRT Support'!$B189=0,\"\",'effRT Support'!$D189)","v":""},{"$f":"IF('effRT Support'!$B189=0,\"\",'effRT Support'!$L189)","v":""},{"$f":"IF('effRT Support'!$B189=0,\"\",'effRT Support'!$N189)","v":""},null,null,{"$f":"IF('effRT Support'!$B189=0,\"\",'effRT Support'!$P189)","v":""},{"$f":"IF('effRT Support'!$B189=0,\"\",'effRT Support'!$Q189)","v":""},{"$f":"IF('effRT Support'!$B189=0,\"\",'effRT Support'!U189)","v":""},{"$f":"IF('effRT Support'!$B189=0,\"\",'effRT Support'!V189)","v":""},{"$f":"IF('effRT Support'!$B189=0,\"\",'effRT Support'!W189)","v":""},{"$f":"IF('effRT Support'!$B189=0,\"\",'effRT Support'!X189)","v":""},{"$f":"IF('effRT Support'!$B189=0,\"\",'effRT Support'!Y189)","v":""},{"$f":"IF('effRT Support'!$B189=0,\"\",'effRT Support'!Z189*10)","v":""},{"$f":"IF('effRT Support'!$B189=0,\"\",'effRT Support'!AA189)","v":""},{"$f":"IF('effRT Support'!$B189=0,\"\",'effRT Support'!AB189)","v":""},{"$f":"IF('effRT Support'!$B189=0,\"\",'effRT Support'!AC189)","v":""},{"$f":"IF('effRT Support'!$B189=0,\"\",'effRT Support'!AD189)","v":""},{"$f":"IF('effRT Support'!$B189=0,\"\",'effRT Support'!AE189)","v":""},{"$f":"IF('effRT Support'!$B189=0,\"\",\"Hours Actual or Deemed\")","v":""},{"$f":"IF('effRT Support'!$B189=0,\"\",'effRT Support'!$F189)","v":""},{"$f":"IF('effRT Support'!$B189=0,\"\",\"Wattage Actual or Deemed\")","v":""},{"$f":"IF('effRT Support'!$B189=0,\"\",IF('Project Information'!$D$33=\"Pay For Performance\",\"Actual\",\"Deemed\"))","v":""},{"$f":"IF('effRT Support'!$B189=0,\"\",\"Cost Actual or Deemed\")","v":""},{"$f":"IF('effRT Support'!$B189=0,\"\",IF('Project Information'!$D$33=\"Pay For Performance\",\"Actual\",\"Deemed\"))","v":""},{"$f":"IF('effRT Support'!$B189=0,\"\",\"Location\")","v":""},{"$f":"IF('effRT Support'!$B189=0,\"\",'effRT Support'!$E189)","v":""},{"$f":"IF('effRT Support'!$B189=0,\"\",\"Space Type\")","v":""},{"$f":"IF('effRT Support'!$B189=0,\"\",'effRT Support'!$G189)","v":""},{"$f":"IF('effRT Support'!$B189=0,\"\",\"Existing Fixture Description\")","v":""},{"$f":"IF('effRT Support'!$B189=0,\"\",'effRT Support'!$H189)","v":""},{"$f":"IF('effRT Support'!$B189=0,\"\",\"Existing Fixture Quantity\")","v":""},{"$f":"IF('effRT Support'!$B189=0,\"\",'effRT Support'!$I189)","v":""},{"$f":"IF('effRT Support'!$B189=0,\"\",\"Existing Fixture Wattage\")","v":""},{"$f":"IF('effRT Support'!$B189=0,\"\",'effRT Support'!$J189)","v":""},{"$f":"IF('effRT Support'!$B189=0,\"\",\"Annual Hours of Operation\")","v":""},{"$f":"IF('effRT Support'!$B189=0,\"\",'effRT Support'!$K189)","v":""},{"$f":"IF('effRT Support'!$B189=0,\"\",\"Installed Fixture Description\")","v":""},{"$f":"IF('effRT Support'!$B189=0,\"\",'effRT Support'!$M189)","v":""},{"$f":"IF('effRT Support'!$B189=0,\"\",\"Installed Fixture Wattage\")","v":""},{"$f":"IF('effRT Support'!$B189=0,\"\",'effRT Support'!$O189)","v":""},{"$f":"IF('effRT Support'!$B189=0,\"\",\"Material Cost\")","v":""},{"$f":"IF('effRT Support'!$B189=0,\"\",'effRT Support'!$R189)","v":""},{"$f":"IF('effRT Support'!$B189=0,\"\",\"Labor Cost\")","v":""},{"$f":"IF('effRT Support'!$B189=0,\"\",'effRT Support'!$S189)","v":""},{"$f":"IF('effRT Support'!$B189=0,\"\",\"Ancillary Costs - Measure Specific\")","v":""},{"$f":"IF('effRT Support'!$B189=0,\"\",'effRT Support'!$T189)","v":""},{"$f":"IF('effRT Support'!$B189=0,\"\",\"Fuel Type\")","v":""},{"$f":"IF('effRT Support'!$B189=0,\"\",'Project Information'!$D$44)","v":""},{"$f":"IF('effRT Support'!$B189=0,\"\",\"Installed Fixture Quantity\")","v":""},{"$f":"IF('effRT Support'!$B189=0,\"\",'effRT Support'!P188)","v":""}]
[{"$f":"IF('effRT Support'!$B190=0,\"\",IF('Project Information'!$D$33=\"Small Business\",\"SBL\",\"CILS\"))","v":""},{"$f":"IF('effRT Support'!$B190=0,\"\",IF('Project Information'!$K$2=\"\",\"\",'Project Information'!$K$2))","v":""},null,{"$f":"IF('effRT Support'!$B190=0,\"\",IF('Project Information'!$D$46=\"\",\"\",'Project Information'!$D$46))","v":""},{"$f":"IF('effRT Support'!$B190=0,\"\",IF('Project Information'!$D$20=\"\",\"\",VLOOKUP('Project Information'!$D$20,'Other Data'!$B$159:$E$189,4,FALSE)))","v":""},{"$f":"IF('effRT Support'!$B190=0,\"\",IF('Project Information'!$D$31=\"\",\"\",'Project Information'!$D$31))","v":""},{"$f":"IF('effRT Support'!$B190=0,\"\",IF('Project Information'!$D$5=\"\",\"\",'Project Information'!$D$5))","v":""},null,null,{"$f":"IF('effRT Support'!$B190=0,\"\",IF('Project Information'!$D$20=\"\",\"\",VLOOKUP('Project Information'!$D$20,'Other Data'!$B$159:$E$189,2,FALSE)))","v":""},{"$f":"IF('effRT Support'!$B190=0,\"\",IF('Project Information'!$D$20=\"\",\"\",VLOOKUP('Project Information'!$D$20,'Other Data'!$B$159:$E$189,3,FALSE)))","v":""},{"$f":"IF('effRT Support'!$B190=0,\"\",\"Existing\")","v":""},null,{"$f":"IF('effRT Support'!$B190=0,\"\",IF('Project Information'!$D$21=\"\",\"\",'Project Information'!$D$21))","v":""},{"$f":"IF('effRT Support'!$B190=0,\"\",IF('Project Information'!$D$48=\"\",\"\",'Project Information'!$D$48))","v":""},{"$f":"IF('effRT Support'!$B190=0,\"\",\"\")","v":""},{"$f":"IF('effRT Support'!$B190=0,\"\",\"\")","v":""},{"$f":"IF('effRT Support'!$B190=0,\"\",\"\")","v":""},{"$f":"IF('effRT Support'!$B190=0,\"\",\"\")","v":""},{"$f":"IF('effRT Support'!$B190=0,\"\",IF('Project Information'!$D$13=\"\",\"\",'Project Information'!$D$13))","v":""},{"$f":"IF('effRT Support'!$B190=0,\"\",IF('Project Information'!$E$13=\"\",\"\",'Project Information'!$E$13))","v":""},{"$f":"IF('effRT Support'!$B190=0,\"\",IF('Project Information'!$D$14=\"\",\"\",'Project Information'!$D$14))","v":""},{"$f":"IF('effRT Support'!$B190=0,\"\",IF('Project Information'!$D$15=\"\",\"\",'Project Information'!$D$15))","v":""},{"$f":"IF('effRT Support'!$B190=0,\"\",IF('Project Information'!$D$16=\"\",\"\",'Project Information'!$D$16))","v":""},null,{"$f":"IF('effRT Support'!$B190=0,\"\",'Project Information'!$D$18)","v":""},{"$f":"IF('effRT Support'!$B190=0,\"\",IF('Project Information'!$D$23=\"\",\"\",'Project Information'!$D$23))","v":""},{"$f":"IF('effRT Support'!$B190=0,\"\",IF('Project Information'!$D$24=\"\",\"\",'Project Information'!$D$24))","v":""},{"$f":"IF('effRT Support'!$B190=0,\"\",IF('Project Information'!$D$25=\"\",\"\",'Project Information'!$D$25))","v":""},{"$f":"IF('effRT Support'!$B190=0,\"\",IF('Project Information'!$E$25=\"\",\"\",'Project Information'!$E$25))","v":""},{"$f":"IF('effRT Support'!$B190=0,\"\",IF('Project Information'!$F$25=\"\",\"\",'Project Information'!$F$25))","v":""},{"$f":"IF('effRT Support'!$B190=0,\"\",IF('Project Information'!$D$27=\"\",\"Y\",\"N\"))","v":""},{"$f":"IF('effRT Support'!$B190=0,\"\",IF('Project Information'!$D$27=\"\",\"\",'Project Information'!$D$27))","v":""},{"$f":"IF('effRT Support'!$B190=0,\"\",IF('Project Information'!$D$28=\"\",\"\",'Project Information'!$D$28))","v":""},{"$f":"IF('effRT Support'!$B190=0,\"\",IF('Project Information'!$D$29=\"\",\"\",'Project Information'!$D$29))","v":""},{"$f":"IF('effRT Support'!$B190=0,\"\",IF('Project Information'!$E$29=\"\",\"\",'Project Information'!$E$29))","v":""},{"$f":"IF('effRT Support'!$B190=0,\"\",IF('Project Information'!$F$29=\"\",\"\",'Project Information'!$F$29))","v":""},{"$f":"IF('effRT Support'!$B190=0,\"\",\"\")","v":""},{"$f":"IF('effRT Support'!$B190=0,\"\",\"\")","v":""},{"$f":"IF('effRT Support'!$B190=0,\"\",IF('Project Information'!$D$36=\"\",\"\",'Project Information'!$D$36))","v":""},{"$f":"IF('effRT Support'!$B190=0,\"\",IF('Project Information'!$D$42=\"\",\"\",'Project Information'!$D$42))","v":""},{"$f":"IF('effRT Support'!$B190=0,\"\",'effRT Support'!$D190)","v":""},{"$f":"IF('effRT Support'!$B190=0,\"\",'effRT Support'!$L190)","v":""},{"$f":"IF('effRT Support'!$B190=0,\"\",'effRT Support'!$N190)","v":""},null,null,{"$f":"IF('effRT Support'!$B190=0,\"\",'effRT Support'!$P190)","v":""},{"$f":"IF('effRT Support'!$B190=0,\"\",'effRT Support'!$Q190)","v":""},{"$f":"IF('effRT Support'!$B190=0,\"\",'effRT Support'!U190)","v":""},{"$f":"IF('effRT Support'!$B190=0,\"\",'effRT Support'!V190)","v":""},{"$f":"IF('effRT Support'!$B190=0,\"\",'effRT Support'!W190)","v":""},{"$f":"IF('effRT Support'!$B190=0,\"\",'effRT Support'!X190)","v":""},{"$f":"IF('effRT Support'!$B190=0,\"\",'effRT Support'!Y190)","v":""},{"$f":"IF('effRT Support'!$B190=0,\"\",'effRT Support'!Z190*10)","v":""},{"$f":"IF('effRT Support'!$B190=0,\"\",'effRT Support'!AA190)","v":""},{"$f":"IF('effRT Support'!$B190=0,\"\",'effRT Support'!AB190)","v":""},{"$f":"IF('effRT Support'!$B190=0,\"\",'effRT Support'!AC190)","v":""},{"$f":"IF('effRT Support'!$B190=0,\"\",'effRT Support'!AD190)","v":""},{"$f":"IF('effRT Support'!$B190=0,\"\",'effRT Support'!AE190)","v":""},{"$f":"IF('effRT Support'!$B190=0,\"\",\"Hours Actual or Deemed\")","v":""},{"$f":"IF('effRT Support'!$B190=0,\"\",'effRT Support'!$F190)","v":""},{"$f":"IF('effRT Support'!$B190=0,\"\",\"Wattage Actual or Deemed\")","v":""},{"$f":"IF('effRT Support'!$B190=0,\"\",IF('Project Information'!$D$33=\"Pay For Performance\",\"Actual\",\"Deemed\"))","v":""},{"$f":"IF('effRT Support'!$B190=0,\"\",\"Cost Actual or Deemed\")","v":""},{"$f":"IF('effRT Support'!$B190=0,\"\",IF('Project Information'!$D$33=\"Pay For Performance\",\"Actual\",\"Deemed\"))","v":""},{"$f":"IF('effRT Support'!$B190=0,\"\",\"Location\")","v":""},{"$f":"IF('effRT Support'!$B190=0,\"\",'effRT Support'!$E190)","v":""},{"$f":"IF('effRT Support'!$B190=0,\"\",\"Space Type\")","v":""},{"$f":"IF('effRT Support'!$B190=0,\"\",'effRT Support'!$G190)","v":""},{"$f":"IF('effRT Support'!$B190=0,\"\",\"Existing Fixture Description\")","v":""},{"$f":"IF('effRT Support'!$B190=0,\"\",'effRT Support'!$H190)","v":""},{"$f":"IF('effRT Support'!$B190=0,\"\",\"Existing Fixture Quantity\")","v":""},{"$f":"IF('effRT Support'!$B190=0,\"\",'effRT Support'!$I190)","v":""},{"$f":"IF('effRT Support'!$B190=0,\"\",\"Existing Fixture Wattage\")","v":""},{"$f":"IF('effRT Support'!$B190=0,\"\",'effRT Support'!$J190)","v":""},{"$f":"IF('effRT Support'!$B190=0,\"\",\"Annual Hours of Operation\")","v":""},{"$f":"IF('effRT Support'!$B190=0,\"\",'effRT Support'!$K190)","v":""},{"$f":"IF('effRT Support'!$B190=0,\"\",\"Installed Fixture Description\")","v":""},{"$f":"IF('effRT Support'!$B190=0,\"\",'effRT Support'!$M190)","v":""},{"$f":"IF('effRT Support'!$B190=0,\"\",\"Installed Fixture Wattage\")","v":""},{"$f":"IF('effRT Support'!$B190=0,\"\",'effRT Support'!$O190)","v":""},{"$f":"IF('effRT Support'!$B190=0,\"\",\"Material Cost\")","v":""},{"$f":"IF('effRT Support'!$B190=0,\"\",'effRT Support'!$R190)","v":""},{"$f":"IF('effRT Support'!$B190=0,\"\",\"Labor Cost\")","v":""},{"$f":"IF('effRT Support'!$B190=0,\"\",'effRT Support'!$S190)","v":""},{"$f":"IF('effRT Support'!$B190=0,\"\",\"Ancillary Costs - Measure Specific\")","v":""},{"$f":"IF('effRT Support'!$B190=0,\"\",'effRT Support'!$T190)","v":""},{"$f":"IF('effRT Support'!$B190=0,\"\",\"Fuel Type\")","v":""},{"$f":"IF('effRT Support'!$B190=0,\"\",'Project Information'!$D$44)","v":""}]
[{"$f":"IF('effRT Support'!$B191=0,\"\",IF('Project Information'!$D$33=\"Small Business\",\"SBL\",\"CILS\"))","v":""},{"$f":"IF('effRT Support'!$B191=0,\"\",IF('Project Information'!$K$2=\"\",\"\",'Project Information'!$K$2))","v":""},null,{"$f":"IF('effRT Support'!$B191=0,\"\",IF('Project Information'!$D$46=\"\",\"\",'Project Information'!$D$46))","v":""},{"$f":"IF('effRT Support'!$B191=0,\"\",IF('Project Information'!$D$20=\"\",\"\",VLOOKUP('Project Information'!$D$20,'Other Data'!$B$159:$E$189,4,FALSE)))","v":""},{"$f":"IF('effRT Support'!$B191=0,\"\",IF('Project Information'!$D$31=\"\",\"\",'Project Information'!$D$31))","v":""},{"$f":"IF('effRT Support'!$B191=0,\"\",IF('Project Information'!$D$5=\"\",\"\",'Project Information'!$D$5))","v":""},null,null,{"$f":"IF('effRT Support'!$B191=0,\"\",IF('Project Information'!$D$20=\"\",\"\",VLOOKUP('Project Information'!$D$20,'Other Data'!$B$159:$E$189,2,FALSE)))","v":""},{"$f":"IF('effRT Support'!$B191=0,\"\",IF('Project Information'!$D$20=\"\",\"\",VLOOKUP('Project Information'!$D$20,'Other Data'!$B$159:$E$189,3,FALSE)))","v":""},{"$f":"IF('effRT Support'!$B191=0,\"\",\"Existing\")","v":""},null,{"$f":"IF('effRT Support'!$B191=0,\"\",IF('Project Information'!$D$21=\"\",\"\",'Project Information'!$D$21))","v":""},{"$f":"IF('effRT Support'!$B191=0,\"\",IF('Project Information'!$D$48=\"\",\"\",'Project Information'!$D$48))","v":""},{"$f":"IF('effRT Support'!$B191=0,\"\",\"\")","v":""},{"$f":"IF('effRT Support'!$B191=0,\"\",\"\")","v":""},{"$f":"IF('effRT Support'!$B191=0,\"\",\"\")","v":""},{"$f":"IF('effRT Support'!$B191=0,\"\",\"\")","v":""},{"$f":"IF('effRT Support'!$B191=0,\"\",IF('Project Information'!$D$13=\"\",\"\",'Project Information'!$D$13))","v":""},{"$f":"IF('effRT Support'!$B191=0,\"\",IF('Project Information'!$E$13=\"\",\"\",'Project Information'!$E$13))","v":""},{"$f":"IF('effRT Support'!$B191=0,\"\",IF('Project Information'!$D$14=\"\",\"\",'Project Information'!$D$14))","v":""},{"$f":"IF('effRT Support'!$B191=0,\"\",IF('Project Information'!$D$15=\"\",\"\",'Project Information'!$D$15))","v":""},{"$f":"IF('effRT Support'!$B191=0,\"\",IF('Project Information'!$D$16=\"\",\"\",'Project Information'!$D$16))","v":""},null,{"$f":"IF('effRT Support'!$B191=0,\"\",'Project Information'!$D$18)","v":""},{"$f":"IF('effRT Support'!$B191=0,\"\",IF('Project Information'!$D$23=\"\",\"\",'Project Information'!$D$23))","v":""},{"$f":"IF('effRT Support'!$B191=0,\"\",IF('Project Information'!$D$24=\"\",\"\",'Project Information'!$D$24))","v":""},{"$f":"IF('effRT Support'!$B191=0,\"\",IF('Project Information'!$D$25=\"\",\"\",'Project Information'!$D$25))","v":""},{"$f":"IF('effRT Support'!$B191=0,\"\",IF('Project Information'!$E$25=\"\",\"\",'Project Information'!$E$25))","v":""},{"$f":"IF('effRT Support'!$B191=0,\"\",IF('Project Information'!$F$25=\"\",\"\",'Project Information'!$F$25))","v":""},{"$f":"IF('effRT Support'!$B191=0,\"\",IF('Project Information'!$D$27=\"\",\"Y\",\"N\"))","v":""},{"$f":"IF('effRT Support'!$B191=0,\"\",IF('Project Information'!$D$27=\"\",\"\",'Project Information'!$D$27))","v":""},{"$f":"IF('effRT Support'!$B191=0,\"\",IF('Project Information'!$D$28=\"\",\"\",'Project Information'!$D$28))","v":""},{"$f":"IF('effRT Support'!$B191=0,\"\",IF('Project Information'!$D$29=\"\",\"\",'Project Information'!$D$29))","v":""},{"$f":"IF('effRT Support'!$B191=0,\"\",IF('Project Information'!$E$29=\"\",\"\",'Project Information'!$E$29))","v":""},{"$f":"IF('effRT Support'!$B191=0,\"\",IF('Project Information'!$F$29=\"\",\"\",'Project Information'!$F$29))","v":""},{"$f":"IF('effRT Support'!$B191=0,\"\",\"\")","v":""},{"$f":"IF('effRT Support'!$B191=0,\"\",\"\")","v":""},{"$f":"IF('effRT Support'!$B191=0,\"\",IF('Project Information'!$D$36=\"\",\"\",'Project Information'!$D$36))","v":""},{"$f":"IF('effRT Support'!$B191=0,\"\",IF('Project Information'!$D$42=\"\",\"\",'Project Information'!$D$42))","v":""},{"$f":"IF('effRT Support'!$B191=0,\"\",'effRT Support'!$D191)","v":""},{"$f":"IF('effRT Support'!$B191=0,\"\",'effRT Support'!$L191)","v":""},{"$f":"IF('effRT Support'!$B191=0,\"\",'effRT Support'!$N191)","v":""},null,null,{"$f":"IF('effRT Support'!$B191=0,\"\",'effRT Support'!$P191)","v":""},{"$f":"IF('effRT Support'!$B191=0,\"\",'effRT Support'!$Q191)","v":""},{"$f":"IF('effRT Support'!$B191=0,\"\",'effRT Support'!U191)","v":""},{"$f":"IF('effRT Support'!$B191=0,\"\",'effRT Support'!V191)","v":""},{"$f":"IF('effRT Support'!$B191=0,\"\",'effRT Support'!W191)","v":""},{"$f":"IF('effRT Support'!$B191=0,\"\",'effRT Support'!X191)","v":""},{"$f":"IF('effRT Support'!$B191=0,\"\",'effRT Support'!Y191)","v":""},{"$f":"IF('effRT Support'!$B191=0,\"\",'effRT Support'!Z191*10)","v":""},{"$f":"IF('effRT Support'!$B191=0,\"\",'effRT Support'!AA191)","v":""},{"$f":"IF('effRT Support'!$B191=0,\"\",'effRT Support'!AB191)","v":""},{"$f":"IF('effRT Support'!$B191=0,\"\",'effRT Support'!AC191)","v":""},{"$f":"IF('effRT Support'!$B191=0,\"\",'effRT Support'!AD191)","v":""},{"$f":"IF('effRT Support'!$B191=0,\"\",'effRT Support'!AE191)","v":""},{"$f":"IF('effRT Support'!$B191=0,\"\",\"Hours Actual or Deemed\")","v":""},{"$f":"IF('effRT Support'!$B191=0,\"\",'effRT Support'!$F191)","v":""},{"$f":"IF('effRT Support'!$B191=0,\"\",\"Wattage Actual or Deemed\")","v":""},{"$f":"IF('effRT Support'!$B191=0,\"\",IF('Project Information'!$D$33=\"Pay For Performance\",\"Actual\",\"Deemed\"))","v":""},{"$f":"IF('effRT Support'!$B191=0,\"\",\"Cost Actual or Deemed\")","v":""},{"$f":"IF('effRT Support'!$B191=0,\"\",IF('Project Information'!$D$33=\"Pay For Performance\",\"Actual\",\"Deemed\"))","v":""},{"$f":"IF('effRT Support'!$B191=0,\"\",\"Location\")","v":""},{"$f":"IF('effRT Support'!$B191=0,\"\",'effRT Support'!$E191)","v":""},{"$f":"IF('effRT Support'!$B191=0,\"\",\"Space Type\")","v":""},{"$f":"IF('effRT Support'!$B191=0,\"\",'effRT Support'!$G191)","v":""},{"$f":"IF('effRT Support'!$B191=0,\"\",\"Existing Fixture Description\")","v":""},{"$f":"IF('effRT Support'!$B191=0,\"\",'effRT Support'!$H191)","v":""},{"$f":"IF('effRT Support'!$B191=0,\"\",\"Existing Fixture Quantity\")","v":""},{"$f":"IF('effRT Support'!$B191=0,\"\",'effRT Support'!$I191)","v":""},{"$f":"IF('effRT Support'!$B191=0,\"\",\"Existing Fixture Wattage\")","v":""},{"$f":"IF('effRT Support'!$B191=0,\"\",'effRT Support'!$J191)","v":""},{"$f":"IF('effRT Support'!$B191=0,\"\",\"Annual Hours of Operation\")","v":""},{"$f":"IF('effRT Support'!$B191=0,\"\",'effRT Support'!$K191)","v":""},{"$f":"IF('effRT Support'!$B191=0,\"\",\"Installed Fixture Description\")","v":""},{"$f":"IF('effRT Support'!$B191=0,\"\",'effRT Support'!$M191)","v":""},{"$f":"IF('effRT Support'!$B191=0,\"\",\"Installed Fixture Wattage\")","v":""},{"$f":"IF('effRT Support'!$B191=0,\"\",'effRT Support'!$O191)","v":""},{"$f":"IF('effRT Support'!$B191=0,\"\",\"Material Cost\")","v":""},{"$f":"IF('effRT Support'!$B191=0,\"\",'effRT Support'!$R191)","v":""},{"$f":"IF('effRT Support'!$B191=0,\"\",\"Labor Cost\")","v":""},{"$f":"IF('effRT Support'!$B191=0,\"\",'effRT Support'!$S191)","v":""},{"$f":"IF('effRT Support'!$B191=0,\"\",\"Ancillary Costs - Measure Specific\")","v":""},{"$f":"IF('effRT Support'!$B191=0,\"\",'effRT Support'!$T191)","v":""},{"$f":"IF('effRT Support'!$B191=0,\"\",\"Fuel Type\")","v":""},{"$f":"IF('effRT Support'!$B191=0,\"\",'Project Information'!$D$44)","v":""},{"$f":"IF('effRT Support'!$B191=0,\"\",\"Installed Fixture Quantity\")","v":""},{"$f":"IF('effRT Support'!$B191=0,\"\",'effRT Support'!P190)","v":""}]
[{"$f":"IF('effRT Support'!$B192=0,\"\",IF('Project Information'!$D$33=\"Small Business\",\"SBL\",\"CILS\"))","v":""},{"$f":"IF('effRT Support'!$B192=0,\"\",IF('Project Information'!$K$2=\"\",\"\",'Project Information'!$K$2))","v":""},null,{"$f":"IF('effRT Support'!$B192=0,\"\",IF('Project Information'!$D$46=\"\",\"\",'Project Information'!$D$46))","v":""},{"$f":"IF('effRT Support'!$B192=0,\"\",IF('Project Information'!$D$20=\"\",\"\",VLOOKUP('Project Information'!$D$20,'Other Data'!$B$159:$E$189,4,FALSE)))","v":""},{"$f":"IF('effRT Support'!$B192=0,\"\",IF('Project Information'!$D$31=\"\",\"\",'Project Information'!$D$31))","v":""},{"$f":"IF('effRT Support'!$B192=0,\"\",IF('Project Information'!$D$5=\"\",\"\",'Project Information'!$D$5))","v":""},null,null,{"$f":"IF('effRT Support'!$B192=0,\"\",IF('Project Information'!$D$20=\"\",\"\",VLOOKUP('Project Information'!$D$20,'Other Data'!$B$159:$E$189,2,FALSE)))","v":""},{"$f":"IF('effRT Support'!$B192=0,\"\",IF('Project Information'!$D$20=\"\",\"\",VLOOKUP('Project Information'!$D$20,'Other Data'!$B$159:$E$189,3,FALSE)))","v":""},{"$f":"IF('effRT Support'!$B192=0,\"\",\"Existing\")","v":""},null,{"$f":"IF('effRT Support'!$B192=0,\"\",IF('Project Information'!$D$21=\"\",\"\",'Project Information'!$D$21))","v":""},{"$f":"IF('effRT Support'!$B192=0,\"\",IF('Project Information'!$D$48=\"\",\"\",'Project Information'!$D$48))","v":""},{"$f":"IF('effRT Support'!$B192=0,\"\",\"\")","v":""},{"$f":"IF('effRT Support'!$B192=0,\"\",\"\")","v":""},{"$f":"IF('effRT Support'!$B192=0,\"\",\"\")","v":""},{"$f":"IF('effRT Support'!$B192=0,\"\",\"\")","v":""},{"$f":"IF('effRT Support'!$B192=0,\"\",IF('Project Information'!$D$13=\"\",\"\",'Project Information'!$D$13))","v":""},{"$f":"IF('effRT Support'!$B192=0,\"\",IF('Project Information'!$E$13=\"\",\"\",'Project Information'!$E$13))","v":""},{"$f":"IF('effRT Support'!$B192=0,\"\",IF('Project Information'!$D$14=\"\",\"\",'Project Information'!$D$14))","v":""},{"$f":"IF('effRT Support'!$B192=0,\"\",IF('Project Information'!$D$15=\"\",\"\",'Project Information'!$D$15))","v":""},{"$f":"IF('effRT Support'!$B192=0,\"\",IF('Project Information'!$D$16=\"\",\"\",'Project Information'!$D$16))","v":""},null,{"$f":"IF('effRT Support'!$B192=0,\"\",'Project Information'!$D$18)","v":""},{"$f":"IF('effRT Support'!$B192=0,\"\",IF('Project Information'!$D$23=\"\",\"\",'Project Information'!$D$23))","v":""},{"$f":"IF('effRT Support'!$B192=0,\"\",IF('Project Information'!$D$24=\"\",\"\",'Project Information'!$D$24))","v":""},{"$f":"IF('effRT Support'!$B192=0,\"\",IF('Project Information'!$D$25=\"\",\"\",'Project Information'!$D$25))","v":""},{"$f":"IF('effRT Support'!$B192=0,\"\",IF('Project Information'!$E$25=\"\",\"\",'Project Information'!$E$25))","v":""},{"$f":"IF('effRT Support'!$B192=0,\"\",IF('Project Information'!$F$25=\"\",\"\",'Project Information'!$F$25))","v":""},{"$f":"IF('effRT Support'!$B192=0,\"\",IF('Project Information'!$D$27=\"\",\"Y\",\"N\"))","v":""},{"$f":"IF('effRT Support'!$B192=0,\"\",IF('Project Information'!$D$27=\"\",\"\",'Project Information'!$D$27))","v":""},{"$f":"IF('effRT Support'!$B192=0,\"\",IF('Project Information'!$D$28=\"\",\"\",'Project Information'!$D$28))","v":""},{"$f":"IF('effRT Support'!$B192=0,\"\",IF('Project Information'!$D$29=\"\",\"\",'Project Information'!$D$29))","v":""},{"$f":"IF('effRT Support'!$B192=0,\"\",IF('Project Information'!$E$29=\"\",\"\",'Project Information'!$E$29))","v":""},{"$f":"IF('effRT Support'!$B192=0,\"\",IF('Project Information'!$F$29=\"\",\"\",'Project Information'!$F$29))","v":""},{"$f":"IF('effRT Support'!$B192=0,\"\",\"\")","v":""},{"$f":"IF('effRT Support'!$B192=0,\"\",\"\")","v":""},{"$f":"IF('effRT Support'!$B192=0,\"\",IF('Project Information'!$D$36=\"\",\"\",'Project Information'!$D$36))","v":""},{"$f":"IF('effRT Support'!$B192=0,\"\",IF('Project Information'!$D$42=\"\",\"\",'Project Information'!$D$42))","v":""},{"$f":"IF('effRT Support'!$B192=0,\"\",'effRT Support'!$D192)","v":""},{"$f":"IF('effRT Support'!$B192=0,\"\",'effRT Support'!$L192)","v":""},{"$f":"IF('effRT Support'!$B192=0,\"\",'effRT Support'!$N192)","v":""},null,null,{"$f":"IF('effRT Support'!$B192=0,\"\",'effRT Support'!$P192)","v":""},{"$f":"IF('effRT Support'!$B192=0,\"\",'effRT Support'!$Q192)","v":""},{"$f":"IF('effRT Support'!$B192=0,\"\",'effRT Support'!U192)","v":""},{"$f":"IF('effRT Support'!$B192=0,\"\",'effRT Support'!V192)","v":""},{"$f":"IF('effRT Support'!$B192=0,\"\",'effRT Support'!W192)","v":""},{"$f":"IF('effRT Support'!$B192=0,\"\",'effRT Support'!X192)","v":""},{"$f":"IF('effRT Support'!$B192=0,\"\",'effRT Support'!Y192)","v":""},{"$f":"IF('effRT Support'!$B192=0,\"\",'effRT Support'!Z192*10)","v":""},{"$f":"IF('effRT Support'!$B192=0,\"\",'effRT Support'!AA192)","v":""},{"$f":"IF('effRT Support'!$B192=0,\"\",'effRT Support'!AB192)","v":""},{"$f":"IF('effRT Support'!$B192=0,\"\",'effRT Support'!AC192)","v":""},{"$f":"IF('effRT Support'!$B192=0,\"\",'effRT Support'!AD192)","v":""},{"$f":"IF('effRT Support'!$B192=0,\"\",'effRT Support'!AE192)","v":""},{"$f":"IF('effRT Support'!$B192=0,\"\",\"Hours Actual or Deemed\")","v":""},{"$f":"IF('effRT Support'!$B192=0,\"\",'effRT Support'!$F192)","v":""},{"$f":"IF('effRT Support'!$B192=0,\"\",\"Wattage Actual or Deemed\")","v":""},{"$f":"IF('effRT Support'!$B192=0,\"\",IF('Project Information'!$D$33=\"Pay For Performance\",\"Actual\",\"Deemed\"))","v":""},{"$f":"IF('effRT Support'!$B192=0,\"\",\"Cost Actual or Deemed\")","v":""},{"$f":"IF('effRT Support'!$B192=0,\"\",IF('Project Information'!$D$33=\"Pay For Performance\",\"Actual\",\"Deemed\"))","v":""},{"$f":"IF('effRT Support'!$B192=0,\"\",\"Location\")","v":""},{"$f":"IF('effRT Support'!$B192=0,\"\",'effRT Support'!$E192)","v":""},{"$f":"IF('effRT Support'!$B192=0,\"\",\"Space Type\")","v":""},{"$f":"IF('effRT Support'!$B192=0,\"\",'effRT Support'!$G192)","v":""},{"$f":"IF('effRT Support'!$B192=0,\"\",\"Existing Fixture Description\")","v":""},{"$f":"IF('effRT Support'!$B192=0,\"\",'effRT Support'!$H192)","v":""},{"$f":"IF('effRT Support'!$B192=0,\"\",\"Existing Fixture Quantity\")","v":""},{"$f":"IF('effRT Support'!$B192=0,\"\",'effRT Support'!$I192)","v":""},{"$f":"IF('effRT Support'!$B192=0,\"\",\"Existing Fixture Wattage\")","v":""},{"$f":"IF('effRT Support'!$B192=0,\"\",'effRT Support'!$J192)","v":""},{"$f":"IF('effRT Support'!$B192=0,\"\",\"Annual Hours of Operation\")","v":""},{"$f":"IF('effRT Support'!$B192=0,\"\",'effRT Support'!$K192)","v":""},{"$f":"IF('effRT Support'!$B192=0,\"\",\"Installed Fixture Description\")","v":""},{"$f":"IF('effRT Support'!$B192=0,\"\",'effRT Support'!$M192)","v":""},{"$f":"IF('effRT Support'!$B192=0,\"\",\"Installed Fixture Wattage\")","v":""},{"$f":"IF('effRT Support'!$B192=0,\"\",'effRT Support'!$O192)","v":""},{"$f":"IF('effRT Support'!$B192=0,\"\",\"Material Cost\")","v":""},{"$f":"IF('effRT Support'!$B192=0,\"\",'effRT Support'!$R192)","v":""},{"$f":"IF('effRT Support'!$B192=0,\"\",\"Labor Cost\")","v":""},{"$f":"IF('effRT Support'!$B192=0,\"\",'effRT Support'!$S192)","v":""},{"$f":"IF('effRT Support'!$B192=0,\"\",\"Ancillary Costs - Measure Specific\")","v":""},{"$f":"IF('effRT Support'!$B192=0,\"\",'effRT Support'!$T192)","v":""},{"$f":"IF('effRT Support'!$B192=0,\"\",\"Fuel Type\")","v":""},{"$f":"IF('effRT Support'!$B192=0,\"\",'Project Information'!$D$44)","v":""}]
[{"$f":"IF('effRT Support'!$B193=0,\"\",IF('Project Information'!$D$33=\"Small Business\",\"SBL\",\"CILS\"))","v":""},{"$f":"IF('effRT Support'!$B193=0,\"\",IF('Project Information'!$K$2=\"\",\"\",'Project Information'!$K$2))","v":""},null,{"$f":"IF('effRT Support'!$B193=0,\"\",IF('Project Information'!$D$46=\"\",\"\",'Project Information'!$D$46))","v":""},{"$f":"IF('effRT Support'!$B193=0,\"\",IF('Project Information'!$D$20=\"\",\"\",VLOOKUP('Project Information'!$D$20,'Other Data'!$B$159:$E$189,4,FALSE)))","v":""},{"$f":"IF('effRT Support'!$B193=0,\"\",IF('Project Information'!$D$31=\"\",\"\",'Project Information'!$D$31))","v":""},{"$f":"IF('effRT Support'!$B193=0,\"\",IF('Project Information'!$D$5=\"\",\"\",'Project Information'!$D$5))","v":""},null,null,{"$f":"IF('effRT Support'!$B193=0,\"\",IF('Project Information'!$D$20=\"\",\"\",VLOOKUP('Project Information'!$D$20,'Other Data'!$B$159:$E$189,2,FALSE)))","v":""},{"$f":"IF('effRT Support'!$B193=0,\"\",IF('Project Information'!$D$20=\"\",\"\",VLOOKUP('Project Information'!$D$20,'Other Data'!$B$159:$E$189,3,FALSE)))","v":""},{"$f":"IF('effRT Support'!$B193=0,\"\",\"Existing\")","v":""},null,{"$f":"IF('effRT Support'!$B193=0,\"\",IF('Project Information'!$D$21=\"\",\"\",'Project Information'!$D$21))","v":""},{"$f":"IF('effRT Support'!$B193=0,\"\",IF('Project Information'!$D$48=\"\",\"\",'Project Information'!$D$48))","v":""},{"$f":"IF('effRT Support'!$B193=0,\"\",\"\")","v":""},{"$f":"IF('effRT Support'!$B193=0,\"\",\"\")","v":""},{"$f":"IF('effRT Support'!$B193=0,\"\",\"\")","v":""},{"$f":"IF('effRT Support'!$B193=0,\"\",\"\")","v":""},{"$f":"IF('effRT Support'!$B193=0,\"\",IF('Project Information'!$D$13=\"\",\"\",'Project Information'!$D$13))","v":""},{"$f":"IF('effRT Support'!$B193=0,\"\",IF('Project Information'!$E$13=\"\",\"\",'Project Information'!$E$13))","v":""},{"$f":"IF('effRT Support'!$B193=0,\"\",IF('Project Information'!$D$14=\"\",\"\",'Project Information'!$D$14))","v":""},{"$f":"IF('effRT Support'!$B193=0,\"\",IF('Project Information'!$D$15=\"\",\"\",'Project Information'!$D$15))","v":""},{"$f":"IF('effRT Support'!$B193=0,\"\",IF('Project Information'!$D$16=\"\",\"\",'Project Information'!$D$16))","v":""},null,{"$f":"IF('effRT Support'!$B193=0,\"\",'Project Information'!$D$18)","v":""},{"$f":"IF('effRT Support'!$B193=0,\"\",IF('Project Information'!$D$23=\"\",\"\",'Project Information'!$D$23))","v":""},{"$f":"IF('effRT Support'!$B193=0,\"\",IF('Project Information'!$D$24=\"\",\"\",'Project Information'!$D$24))","v":""},{"$f":"IF('effRT Support'!$B193=0,\"\",IF('Project Information'!$D$25=\"\",\"\",'Project Information'!$D$25))","v":""},{"$f":"IF('effRT Support'!$B193=0,\"\",IF('Project Information'!$E$25=\"\",\"\",'Project Information'!$E$25))","v":""},{"$f":"IF('effRT Support'!$B193=0,\"\",IF('Project Information'!$F$25=\"\",\"\",'Project Information'!$F$25))","v":""},{"$f":"IF('effRT Support'!$B193=0,\"\",IF('Project Information'!$D$27=\"\",\"Y\",\"N\"))","v":""},{"$f":"IF('effRT Support'!$B193=0,\"\",IF('Project Information'!$D$27=\"\",\"\",'Project Information'!$D$27))","v":""},{"$f":"IF('effRT Support'!$B193=0,\"\",IF('Project Information'!$D$28=\"\",\"\",'Project Information'!$D$28))","v":""},{"$f":"IF('effRT Support'!$B193=0,\"\",IF('Project Information'!$D$29=\"\",\"\",'Project Information'!$D$29))","v":""},{"$f":"IF('effRT Support'!$B193=0,\"\",IF('Project Information'!$E$29=\"\",\"\",'Project Information'!$E$29))","v":""},{"$f":"IF('effRT Support'!$B193=0,\"\",IF('Project Information'!$F$29=\"\",\"\",'Project Information'!$F$29))","v":""},{"$f":"IF('effRT Support'!$B193=0,\"\",\"\")","v":""},{"$f":"IF('effRT Support'!$B193=0,\"\",\"\")","v":""},{"$f":"IF('effRT Support'!$B193=0,\"\",IF('Project Information'!$D$36=\"\",\"\",'Project Information'!$D$36))","v":""},{"$f":"IF('effRT Support'!$B193=0,\"\",IF('Project Information'!$D$42=\"\",\"\",'Project Information'!$D$42))","v":""},{"$f":"IF('effRT Support'!$B193=0,\"\",'effRT Support'!$D193)","v":""},{"$f":"IF('effRT Support'!$B193=0,\"\",'effRT Support'!$L193)","v":""},{"$f":"IF('effRT Support'!$B193=0,\"\",'effRT Support'!$N193)","v":""},null,null,{"$f":"IF('effRT Support'!$B193=0,\"\",'effRT Support'!$P193)","v":""},{"$f":"IF('effRT Support'!$B193=0,\"\",'effRT Support'!$Q193)","v":""},{"$f":"IF('effRT Support'!$B193=0,\"\",'effRT Support'!U193)","v":""},{"$f":"IF('effRT Support'!$B193=0,\"\",'effRT Support'!V193)","v":""},{"$f":"IF('effRT Support'!$B193=0,\"\",'effRT Support'!W193)","v":""},{"$f":"IF('effRT Support'!$B193=0,\"\",'effRT Support'!X193)","v":""},{"$f":"IF('effRT Support'!$B193=0,\"\",'effRT Support'!Y193)","v":""},{"$f":"IF('effRT Support'!$B193=0,\"\",'effRT Support'!Z193*10)","v":""},{"$f":"IF('effRT Support'!$B193=0,\"\",'effRT Support'!AA193)","v":""},{"$f":"IF('effRT Support'!$B193=0,\"\",'effRT Support'!AB193)","v":""},{"$f":"IF('effRT Support'!$B193=0,\"\",'effRT Support'!AC193)","v":""},{"$f":"IF('effRT Support'!$B193=0,\"\",'effRT Support'!AD193)","v":""},{"$f":"IF('effRT Support'!$B193=0,\"\",'effRT Support'!AE193)","v":""},{"$f":"IF('effRT Support'!$B193=0,\"\",\"Hours Actual or Deemed\")","v":""},{"$f":"IF('effRT Support'!$B193=0,\"\",'effRT Support'!$F193)","v":""},{"$f":"IF('effRT Support'!$B193=0,\"\",\"Wattage Actual or Deemed\")","v":""},{"$f":"IF('effRT Support'!$B193=0,\"\",IF('Project Information'!$D$33=\"Pay For Performance\",\"Actual\",\"Deemed\"))","v":""},{"$f":"IF('effRT Support'!$B193=0,\"\",\"Cost Actual or Deemed\")","v":""},{"$f":"IF('effRT Support'!$B193=0,\"\",IF('Project Information'!$D$33=\"Pay For Performance\",\"Actual\",\"Deemed\"))","v":""},{"$f":"IF('effRT Support'!$B193=0,\"\",\"Location\")","v":""},{"$f":"IF('effRT Support'!$B193=0,\"\",'effRT Support'!$E193)","v":""},{"$f":"IF('effRT Support'!$B193=0,\"\",\"Space Type\")","v":""},{"$f":"IF('effRT Support'!$B193=0,\"\",'effRT Support'!$G193)","v":""},{"$f":"IF('effRT Support'!$B193=0,\"\",\"Existing Fixture Description\")","v":""},{"$f":"IF('effRT Support'!$B193=0,\"\",'effRT Support'!$H193)","v":""},{"$f":"IF('effRT Support'!$B193=0,\"\",\"Existing Fixture Quantity\")","v":""},{"$f":"IF('effRT Support'!$B193=0,\"\",'effRT Support'!$I193)","v":""},{"$f":"IF('effRT Support'!$B193=0,\"\",\"Existing Fixture Wattage\")","v":""},{"$f":"IF('effRT Support'!$B193=0,\"\",'effRT Support'!$J193)","v":""},{"$f":"IF('effRT Support'!$B193=0,\"\",\"Annual Hours of Operation\")","v":""},{"$f":"IF('effRT Support'!$B193=0,\"\",'effRT Support'!$K193)","v":""},{"$f":"IF('effRT Support'!$B193=0,\"\",\"Installed Fixture Description\")","v":""},{"$f":"IF('effRT Support'!$B193=0,\"\",'effRT Support'!$M193)","v":""},{"$f":"IF('effRT Support'!$B193=0,\"\",\"Installed Fixture Wattage\")","v":""},{"$f":"IF('effRT Support'!$B193=0,\"\",'effRT Support'!$O193)","v":""},{"$f":"IF('effRT Support'!$B193=0,\"\",\"Material Cost\")","v":""},{"$f":"IF('effRT Support'!$B193=0,\"\",'effRT Support'!$R193)","v":""},{"$f":"IF('effRT Support'!$B193=0,\"\",\"Labor Cost\")","v":""},{"$f":"IF('effRT Support'!$B193=0,\"\",'effRT Support'!$S193)","v":""},{"$f":"IF('effRT Support'!$B193=0,\"\",\"Ancillary Costs - Measure Specific\")","v":""},{"$f":"IF('effRT Support'!$B193=0,\"\",'effRT Support'!$T193)","v":""},{"$f":"IF('effRT Support'!$B193=0,\"\",\"Fuel Type\")","v":""},{"$f":"IF('effRT Support'!$B193=0,\"\",'Project Information'!$D$44)","v":""},{"$f":"IF('effRT Support'!$B193=0,\"\",\"Installed Fixture Quantity\")","v":""},{"$f":"IF('effRT Support'!$B193=0,\"\",'effRT Support'!P192)","v":""}]
[{"$f":"IF('effRT Support'!$B194=0,\"\",IF('Project Information'!$D$33=\"Small Business\",\"SBL\",\"CILS\"))","v":""},{"$f":"IF('effRT Support'!$B194=0,\"\",IF('Project Information'!$K$2=\"\",\"\",'Project Information'!$K$2))","v":""},null,{"$f":"IF('effRT Support'!$B194=0,\"\",IF('Project Information'!$D$46=\"\",\"\",'Project Information'!$D$46))","v":""},{"$f":"IF('effRT Support'!$B194=0,\"\",IF('Project Information'!$D$20=\"\",\"\",VLOOKUP('Project Information'!$D$20,'Other Data'!$B$159:$E$189,4,FALSE)))","v":""},{"$f":"IF('effRT Support'!$B194=0,\"\",IF('Project Information'!$D$31=\"\",\"\",'Project Information'!$D$31))","v":""},{"$f":"IF('effRT Support'!$B194=0,\"\",IF('Project Information'!$D$5=\"\",\"\",'Project Information'!$D$5))","v":""},null,null,{"$f":"IF('effRT Support'!$B194=0,\"\",IF('Project Information'!$D$20=\"\",\"\",VLOOKUP('Project Information'!$D$20,'Other Data'!$B$159:$E$189,2,FALSE)))","v":""},{"$f":"IF('effRT Support'!$B194=0,\"\",IF('Project Information'!$D$20=\"\",\"\",VLOOKUP('Project Information'!$D$20,'Other Data'!$B$159:$E$189,3,FALSE)))","v":""},{"$f":"IF('effRT Support'!$B194=0,\"\",\"Existing\")","v":""},null,{"$f":"IF('effRT Support'!$B194=0,\"\",IF('Project Information'!$D$21=\"\",\"\",'Project Information'!$D$21))","v":""},{"$f":"IF('effRT Support'!$B194=0,\"\",IF('Project Information'!$D$48=\"\",\"\",'Project Information'!$D$48))","v":""},{"$f":"IF('effRT Support'!$B194=0,\"\",\"\")","v":""},{"$f":"IF('effRT Support'!$B194=0,\"\",\"\")","v":""},{"$f":"IF('effRT Support'!$B194=0,\"\",\"\")","v":""},{"$f":"IF('effRT Support'!$B194=0,\"\",\"\")","v":""},{"$f":"IF('effRT Support'!$B194=0,\"\",IF('Project Information'!$D$13=\"\",\"\",'Project Information'!$D$13))","v":""},{"$f":"IF('effRT Support'!$B194=0,\"\",IF('Project Information'!$E$13=\"\",\"\",'Project Information'!$E$13))","v":""},{"$f":"IF('effRT Support'!$B194=0,\"\",IF('Project Information'!$D$14=\"\",\"\",'Project Information'!$D$14))","v":""},{"$f":"IF('effRT Support'!$B194=0,\"\",IF('Project Information'!$D$15=\"\",\"\",'Project Information'!$D$15))","v":""},{"$f":"IF('effRT Support'!$B194=0,\"\",IF('Project Information'!$D$16=\"\",\"\",'Project Information'!$D$16))","v":""},null,{"$f":"IF('effRT Support'!$B194=0,\"\",'Project Information'!$D$18)","v":""},{"$f":"IF('effRT Support'!$B194=0,\"\",IF('Project Information'!$D$23=\"\",\"\",'Project Information'!$D$23))","v":""},{"$f":"IF('effRT Support'!$B194=0,\"\",IF('Project Information'!$D$24=\"\",\"\",'Project Information'!$D$24))","v":""},{"$f":"IF('effRT Support'!$B194=0,\"\",IF('Project Information'!$D$25=\"\",\"\",'Project Information'!$D$25))","v":""},{"$f":"IF('effRT Support'!$B194=0,\"\",IF('Project Information'!$E$25=\"\",\"\",'Project Information'!$E$25))","v":""},{"$f":"IF('effRT Support'!$B194=0,\"\",IF('Project Information'!$F$25=\"\",\"\",'Project Information'!$F$25))","v":""},{"$f":"IF('effRT Support'!$B194=0,\"\",IF('Project Information'!$D$27=\"\",\"Y\",\"N\"))","v":""},{"$f":"IF('effRT Support'!$B194=0,\"\",IF('Project Information'!$D$27=\"\",\"\",'Project Information'!$D$27))","v":""},{"$f":"IF('effRT Support'!$B194=0,\"\",IF('Project Information'!$D$28=\"\",\"\",'Project Information'!$D$28))","v":""},{"$f":"IF('effRT Support'!$B194=0,\"\",IF('Project Information'!$D$29=\"\",\"\",'Project Information'!$D$29))","v":""},{"$f":"IF('effRT Support'!$B194=0,\"\",IF('Project Information'!$E$29=\"\",\"\",'Project Information'!$E$29))","v":""},{"$f":"IF('effRT Support'!$B194=0,\"\",IF('Project Information'!$F$29=\"\",\"\",'Project Information'!$F$29))","v":""},{"$f":"IF('effRT Support'!$B194=0,\"\",\"\")","v":""},{"$f":"IF('effRT Support'!$B194=0,\"\",\"\")","v":""},{"$f":"IF('effRT Support'!$B194=0,\"\",IF('Project Information'!$D$36=\"\",\"\",'Project Information'!$D$36))","v":""},{"$f":"IF('effRT Support'!$B194=0,\"\",IF('Project Information'!$D$42=\"\",\"\",'Project Information'!$D$42))","v":""},{"$f":"IF('effRT Support'!$B194=0,\"\",'effRT Support'!$D194)","v":""},{"$f":"IF('effRT Support'!$B194=0,\"\",'effRT Support'!$L194)","v":""},{"$f":"IF('effRT Support'!$B194=0,\"\",'effRT Support'!$N194)","v":""},null,null,{"$f":"IF('effRT Support'!$B194=0,\"\",'effRT Support'!$P194)","v":""},{"$f":"IF('effRT Support'!$B194=0,\"\",'effRT Support'!$Q194)","v":""},{"$f":"IF('effRT Support'!$B194=0,\"\",'effRT Support'!U194)","v":""},{"$f":"IF('effRT Support'!$B194=0,\"\",'effRT Support'!V194)","v":""},{"$f":"IF('effRT Support'!$B194=0,\"\",'effRT Support'!W194)","v":""},{"$f":"IF('effRT Support'!$B194=0,\"\",'effRT Support'!X194)","v":""},{"$f":"IF('effRT Support'!$B194=0,\"\",'effRT Support'!Y194)","v":""},{"$f":"IF('effRT Support'!$B194=0,\"\",'effRT Support'!Z194*10)","v":""},{"$f":"IF('effRT Support'!$B194=0,\"\",'effRT Support'!AA194)","v":""},{"$f":"IF('effRT Support'!$B194=0,\"\",'effRT Support'!AB194)","v":""},{"$f":"IF('effRT Support'!$B194=0,\"\",'effRT Support'!AC194)","v":""},{"$f":"IF('effRT Support'!$B194=0,\"\",'effRT Support'!AD194)","v":""},{"$f":"IF('effRT Support'!$B194=0,\"\",'effRT Support'!AE194)","v":""},{"$f":"IF('effRT Support'!$B194=0,\"\",\"Hours Actual or Deemed\")","v":""},{"$f":"IF('effRT Support'!$B194=0,\"\",'effRT Support'!$F194)","v":""},{"$f":"IF('effRT Support'!$B194=0,\"\",\"Wattage Actual or Deemed\")","v":""},{"$f":"IF('effRT Support'!$B194=0,\"\",IF('Project Information'!$D$33=\"Pay For Performance\",\"Actual\",\"Deemed\"))","v":""},{"$f":"IF('effRT Support'!$B194=0,\"\",\"Cost Actual or Deemed\")","v":""},{"$f":"IF('effRT Support'!$B194=0,\"\",IF('Project Information'!$D$33=\"Pay For Performance\",\"Actual\",\"Deemed\"))","v":""},{"$f":"IF('effRT Support'!$B194=0,\"\",\"Location\")","v":""},{"$f":"IF('effRT Support'!$B194=0,\"\",'effRT Support'!$E194)","v":""},{"$f":"IF('effRT Support'!$B194=0,\"\",\"Space Type\")","v":""},{"$f":"IF('effRT Support'!$B194=0,\"\",'effRT Support'!$G194)","v":""},{"$f":"IF('effRT Support'!$B194=0,\"\",\"Existing Fixture Description\")","v":""},{"$f":"IF('effRT Support'!$B194=0,\"\",'effRT Support'!$H194)","v":""},{"$f":"IF('effRT Support'!$B194=0,\"\",\"Existing Fixture Quantity\")","v":""},{"$f":"IF('effRT Support'!$B194=0,\"\",'effRT Support'!$I194)","v":""},{"$f":"IF('effRT Support'!$B194=0,\"\",\"Existing Fixture Wattage\")","v":""},{"$f":"IF('effRT Support'!$B194=0,\"\",'effRT Support'!$J194)","v":""},{"$f":"IF('effRT Support'!$B194=0,\"\",\"Annual Hours of Operation\")","v":""},{"$f":"IF('effRT Support'!$B194=0,\"\",'effRT Support'!$K194)","v":""},{"$f":"IF('effRT Support'!$B194=0,\"\",\"Installed Fixture Description\")","v":""},{"$f":"IF('effRT Support'!$B194=0,\"\",'effRT Support'!$M194)","v":""},{"$f":"IF('effRT Support'!$B194=0,\"\",\"Installed Fixture Wattage\")","v":""},{"$f":"IF('effRT Support'!$B194=0,\"\",'effRT Support'!$O194)","v":""},{"$f":"IF('effRT Support'!$B194=0,\"\",\"Material Cost\")","v":""},{"$f":"IF('effRT Support'!$B194=0,\"\",'effRT Support'!$R194)","v":""},{"$f":"IF('effRT Support'!$B194=0,\"\",\"Labor Cost\")","v":""},{"$f":"IF('effRT Support'!$B194=0,\"\",'effRT Support'!$S194)","v":""},{"$f":"IF('effRT Support'!$B194=0,\"\",\"Ancillary Costs - Measure Specific\")","v":""},{"$f":"IF('effRT Support'!$B194=0,\"\",'effRT Support'!$T194)","v":""},{"$f":"IF('effRT Support'!$B194=0,\"\",\"Fuel Type\")","v":""},{"$f":"IF('effRT Support'!$B194=0,\"\",'Project Information'!$D$44)","v":""}]
[{"$f":"IF('effRT Support'!$B195=0,\"\",IF('Project Information'!$D$33=\"Small Business\",\"SBL\",\"CILS\"))","v":""},{"$f":"IF('effRT Support'!$B195=0,\"\",IF('Project Information'!$K$2=\"\",\"\",'Project Information'!$K$2))","v":""},null,{"$f":"IF('effRT Support'!$B195=0,\"\",IF('Project Information'!$D$46=\"\",\"\",'Project Information'!$D$46))","v":""},{"$f":"IF('effRT Support'!$B195=0,\"\",IF('Project Information'!$D$20=\"\",\"\",VLOOKUP('Project Information'!$D$20,'Other Data'!$B$159:$E$189,4,FALSE)))","v":""},{"$f":"IF('effRT Support'!$B195=0,\"\",IF('Project Information'!$D$31=\"\",\"\",'Project Information'!$D$31))","v":""},{"$f":"IF('effRT Support'!$B195=0,\"\",IF('Project Information'!$D$5=\"\",\"\",'Project Information'!$D$5))","v":""},null,null,{"$f":"IF('effRT Support'!$B195=0,\"\",IF('Project Information'!$D$20=\"\",\"\",VLOOKUP('Project Information'!$D$20,'Other Data'!$B$159:$E$189,2,FALSE)))","v":""},{"$f":"IF('effRT Support'!$B195=0,\"\",IF('Project Information'!$D$20=\"\",\"\",VLOOKUP('Project Information'!$D$20,'Other Data'!$B$159:$E$189,3,FALSE)))","v":""},{"$f":"IF('effRT Support'!$B195=0,\"\",\"Existing\")","v":""},null,{"$f":"IF('effRT Support'!$B195=0,\"\",IF('Project Information'!$D$21=\"\",\"\",'Project Information'!$D$21))","v":""},{"$f":"IF('effRT Support'!$B195=0,\"\",IF('Project Information'!$D$48=\"\",\"\",'Project Information'!$D$48))","v":""},{"$f":"IF('effRT Support'!$B195=0,\"\",\"\")","v":""},{"$f":"IF('effRT Support'!$B195=0,\"\",\"\")","v":""},{"$f":"IF('effRT Support'!$B195=0,\"\",\"\")","v":""},{"$f":"IF('effRT Support'!$B195=0,\"\",\"\")","v":""},{"$f":"IF('effRT Support'!$B195=0,\"\",IF('Project Information'!$D$13=\"\",\"\",'Project Information'!$D$13))","v":""},{"$f":"IF('effRT Support'!$B195=0,\"\",IF('Project Information'!$E$13=\"\",\"\",'Project Information'!$E$13))","v":""},{"$f":"IF('effRT Support'!$B195=0,\"\",IF('Project Information'!$D$14=\"\",\"\",'Project Information'!$D$14))","v":""},{"$f":"IF('effRT Support'!$B195=0,\"\",IF('Project Information'!$D$15=\"\",\"\",'Project Information'!$D$15))","v":""},{"$f":"IF('effRT Support'!$B195=0,\"\",IF('Project Information'!$D$16=\"\",\"\",'Project Information'!$D$16))","v":""},null,{"$f":"IF('effRT Support'!$B195=0,\"\",'Project Information'!$D$18)","v":""},{"$f":"IF('effRT Support'!$B195=0,\"\",IF('Project Information'!$D$23=\"\",\"\",'Project Information'!$D$23))","v":""},{"$f":"IF('effRT Support'!$B195=0,\"\",IF('Project Information'!$D$24=\"\",\"\",'Project Information'!$D$24))","v":""},{"$f":"IF('effRT Support'!$B195=0,\"\",IF('Project Information'!$D$25=\"\",\"\",'Project Information'!$D$25))","v":""},{"$f":"IF('effRT Support'!$B195=0,\"\",IF('Project Information'!$E$25=\"\",\"\",'Project Information'!$E$25))","v":""},{"$f":"IF('effRT Support'!$B195=0,\"\",IF('Project Information'!$F$25=\"\",\"\",'Project Information'!$F$25))","v":""},{"$f":"IF('effRT Support'!$B195=0,\"\",IF('Project Information'!$D$27=\"\",\"Y\",\"N\"))","v":""},{"$f":"IF('effRT Support'!$B195=0,\"\",IF('Project Information'!$D$27=\"\",\"\",'Project Information'!$D$27))","v":""},{"$f":"IF('effRT Support'!$B195=0,\"\",IF('Project Information'!$D$28=\"\",\"\",'Project Information'!$D$28))","v":""},{"$f":"IF('effRT Support'!$B195=0,\"\",IF('Project Information'!$D$29=\"\",\"\",'Project Information'!$D$29))","v":""},{"$f":"IF('effRT Support'!$B195=0,\"\",IF('Project Information'!$E$29=\"\",\"\",'Project Information'!$E$29))","v":""},{"$f":"IF('effRT Support'!$B195=0,\"\",IF('Project Information'!$F$29=\"\",\"\",'Project Information'!$F$29))","v":""},{"$f":"IF('effRT Support'!$B195=0,\"\",\"\")","v":""},{"$f":"IF('effRT Support'!$B195=0,\"\",\"\")","v":""},{"$f":"IF('effRT Support'!$B195=0,\"\",IF('Project Information'!$D$36=\"\",\"\",'Project Information'!$D$36))","v":""},{"$f":"IF('effRT Support'!$B195=0,\"\",IF('Project Information'!$D$42=\"\",\"\",'Project Information'!$D$42))","v":""},{"$f":"IF('effRT Support'!$B195=0,\"\",'effRT Support'!$D195)","v":""},{"$f":"IF('effRT Support'!$B195=0,\"\",'effRT Support'!$L195)","v":""},{"$f":"IF('effRT Support'!$B195=0,\"\",'effRT Support'!$N195)","v":""},null,null,{"$f":"IF('effRT Support'!$B195=0,\"\",'effRT Support'!$P195)","v":""},{"$f":"IF('effRT Support'!$B195=0,\"\",'effRT Support'!$Q195)","v":""},{"$f":"IF('effRT Support'!$B195=0,\"\",'effRT Support'!U195)","v":""},{"$f":"IF('effRT Support'!$B195=0,\"\",'effRT Support'!V195)","v":""},{"$f":"IF('effRT Support'!$B195=0,\"\",'effRT Support'!W195)","v":""},{"$f":"IF('effRT Support'!$B195=0,\"\",'effRT Support'!X195)","v":""},{"$f":"IF('effRT Support'!$B195=0,\"\",'effRT Support'!Y195)","v":""},{"$f":"IF('effRT Support'!$B195=0,\"\",'effRT Support'!Z195*10)","v":""},{"$f":"IF('effRT Support'!$B195=0,\"\",'effRT Support'!AA195)","v":""},{"$f":"IF('effRT Support'!$B195=0,\"\",'effRT Support'!AB195)","v":""},{"$f":"IF('effRT Support'!$B195=0,\"\",'effRT Support'!AC195)","v":""},{"$f":"IF('effRT Support'!$B195=0,\"\",'effRT Support'!AD195)","v":""},{"$f":"IF('effRT Support'!$B195=0,\"\",'effRT Support'!AE195)","v":""},{"$f":"IF('effRT Support'!$B195=0,\"\",\"Hours Actual or Deemed\")","v":""},{"$f":"IF('effRT Support'!$B195=0,\"\",'effRT Support'!$F195)","v":""},{"$f":"IF('effRT Support'!$B195=0,\"\",\"Wattage Actual or Deemed\")","v":""},{"$f":"IF('effRT Support'!$B195=0,\"\",IF('Project Information'!$D$33=\"Pay For Performance\",\"Actual\",\"Deemed\"))","v":""},{"$f":"IF('effRT Support'!$B195=0,\"\",\"Cost Actual or Deemed\")","v":""},{"$f":"IF('effRT Support'!$B195=0,\"\",IF('Project Information'!$D$33=\"Pay For Performance\",\"Actual\",\"Deemed\"))","v":""},{"$f":"IF('effRT Support'!$B195=0,\"\",\"Location\")","v":""},{"$f":"IF('effRT Support'!$B195=0,\"\",'effRT Support'!$E195)","v":""},{"$f":"IF('effRT Support'!$B195=0,\"\",\"Space Type\")","v":""},{"$f":"IF('effRT Support'!$B195=0,\"\",'effRT Support'!$G195)","v":""},{"$f":"IF('effRT Support'!$B195=0,\"\",\"Existing Fixture Description\")","v":""},{"$f":"IF('effRT Support'!$B195=0,\"\",'effRT Support'!$H195)","v":""},{"$f":"IF('effRT Support'!$B195=0,\"\",\"Existing Fixture Quantity\")","v":""},{"$f":"IF('effRT Support'!$B195=0,\"\",'effRT Support'!$I195)","v":""},{"$f":"IF('effRT Support'!$B195=0,\"\",\"Existing Fixture Wattage\")","v":""},{"$f":"IF('effRT Support'!$B195=0,\"\",'effRT Support'!$J195)","v":""},{"$f":"IF('effRT Support'!$B195=0,\"\",\"Annual Hours of Operation\")","v":""},{"$f":"IF('effRT Support'!$B195=0,\"\",'effRT Support'!$K195)","v":""},{"$f":"IF('effRT Support'!$B195=0,\"\",\"Installed Fixture Description\")","v":""},{"$f":"IF('effRT Support'!$B195=0,\"\",'effRT Support'!$M195)","v":""},{"$f":"IF('effRT Support'!$B195=0,\"\",\"Installed Fixture Wattage\")","v":""},{"$f":"IF('effRT Support'!$B195=0,\"\",'effRT Support'!$O195)","v":""},{"$f":"IF('effRT Support'!$B195=0,\"\",\"Material Cost\")","v":""},{"$f":"IF('effRT Support'!$B195=0,\"\",'effRT Support'!$R195)","v":""},{"$f":"IF('effRT Support'!$B195=0,\"\",\"Labor Cost\")","v":""},{"$f":"IF('effRT Support'!$B195=0,\"\",'effRT Support'!$S195)","v":""},{"$f":"IF('effRT Support'!$B195=0,\"\",\"Ancillary Costs - Measure Specific\")","v":""},{"$f":"IF('effRT Support'!$B195=0,\"\",'effRT Support'!$T195)","v":""},{"$f":"IF('effRT Support'!$B195=0,\"\",\"Fuel Type\")","v":""},{"$f":"IF('effRT Support'!$B195=0,\"\",'Project Information'!$D$44)","v":""},{"$f":"IF('effRT Support'!$B195=0,\"\",\"Installed Fixture Quantity\")","v":""},{"$f":"IF('effRT Support'!$B195=0,\"\",'effRT Support'!P194)","v":""}]
[{"$f":"IF('effRT Support'!$B196=0,\"\",IF('Project Information'!$D$33=\"Small Business\",\"SBL\",\"CILS\"))","v":""},{"$f":"IF('effRT Support'!$B196=0,\"\",IF('Project Information'!$K$2=\"\",\"\",'Project Information'!$K$2))","v":""},null,{"$f":"IF('effRT Support'!$B196=0,\"\",IF('Project Information'!$D$46=\"\",\"\",'Project Information'!$D$46))","v":""},{"$f":"IF('effRT Support'!$B196=0,\"\",IF('Project Information'!$D$20=\"\",\"\",VLOOKUP('Project Information'!$D$20,'Other Data'!$B$159:$E$189,4,FALSE)))","v":""},{"$f":"IF('effRT Support'!$B196=0,\"\",IF('Project Information'!$D$31=\"\",\"\",'Project Information'!$D$31))","v":""},{"$f":"IF('effRT Support'!$B196=0,\"\",IF('Project Information'!$D$5=\"\",\"\",'Project Information'!$D$5))","v":""},null,null,{"$f":"IF('effRT Support'!$B196=0,\"\",IF('Project Information'!$D$20=\"\",\"\",VLOOKUP('Project Information'!$D$20,'Other Data'!$B$159:$E$189,2,FALSE)))","v":""},{"$f":"IF('effRT Support'!$B196=0,\"\",IF('Project Information'!$D$20=\"\",\"\",VLOOKUP('Project Information'!$D$20,'Other Data'!$B$159:$E$189,3,FALSE)))","v":""},{"$f":"IF('effRT Support'!$B196=0,\"\",\"Existing\")","v":""},null,{"$f":"IF('effRT Support'!$B196=0,\"\",IF('Project Information'!$D$21=\"\",\"\",'Project Information'!$D$21))","v":""},{"$f":"IF('effRT Support'!$B196=0,\"\",IF('Project Information'!$D$48=\"\",\"\",'Project Information'!$D$48))","v":""},{"$f":"IF('effRT Support'!$B196=0,\"\",\"\")","v":""},{"$f":"IF('effRT Support'!$B196=0,\"\",\"\")","v":""},{"$f":"IF('effRT Support'!$B196=0,\"\",\"\")","v":""},{"$f":"IF('effRT Support'!$B196=0,\"\",\"\")","v":""},{"$f":"IF('effRT Support'!$B196=0,\"\",IF('Project Information'!$D$13=\"\",\"\",'Project Information'!$D$13))","v":""},{"$f":"IF('effRT Support'!$B196=0,\"\",IF('Project Information'!$E$13=\"\",\"\",'Project Information'!$E$13))","v":""},{"$f":"IF('effRT Support'!$B196=0,\"\",IF('Project Information'!$D$14=\"\",\"\",'Project Information'!$D$14))","v":""},{"$f":"IF('effRT Support'!$B196=0,\"\",IF('Project Information'!$D$15=\"\",\"\",'Project Information'!$D$15))","v":""},{"$f":"IF('effRT Support'!$B196=0,\"\",IF('Project Information'!$D$16=\"\",\"\",'Project Information'!$D$16))","v":""},null,{"$f":"IF('effRT Support'!$B196=0,\"\",'Project Information'!$D$18)","v":""},{"$f":"IF('effRT Support'!$B196=0,\"\",IF('Project Information'!$D$23=\"\",\"\",'Project Information'!$D$23))","v":""},{"$f":"IF('effRT Support'!$B196=0,\"\",IF('Project Information'!$D$24=\"\",\"\",'Project Information'!$D$24))","v":""},{"$f":"IF('effRT Support'!$B196=0,\"\",IF('Project Information'!$D$25=\"\",\"\",'Project Information'!$D$25))","v":""},{"$f":"IF('effRT Support'!$B196=0,\"\",IF('Project Information'!$E$25=\"\",\"\",'Project Information'!$E$25))","v":""},{"$f":"IF('effRT Support'!$B196=0,\"\",IF('Project Information'!$F$25=\"\",\"\",'Project Information'!$F$25))","v":""},{"$f":"IF('effRT Support'!$B196=0,\"\",IF('Project Information'!$D$27=\"\",\"Y\",\"N\"))","v":""},{"$f":"IF('effRT Support'!$B196=0,\"\",IF('Project Information'!$D$27=\"\",\"\",'Project Information'!$D$27))","v":""},{"$f":"IF('effRT Support'!$B196=0,\"\",IF('Project Information'!$D$28=\"\",\"\",'Project Information'!$D$28))","v":""},{"$f":"IF('effRT Support'!$B196=0,\"\",IF('Project Information'!$D$29=\"\",\"\",'Project Information'!$D$29))","v":""},{"$f":"IF('effRT Support'!$B196=0,\"\",IF('Project Information'!$E$29=\"\",\"\",'Project Information'!$E$29))","v":""},{"$f":"IF('effRT Support'!$B196=0,\"\",IF('Project Information'!$F$29=\"\",\"\",'Project Information'!$F$29))","v":""},{"$f":"IF('effRT Support'!$B196=0,\"\",\"\")","v":""},{"$f":"IF('effRT Support'!$B196=0,\"\",\"\")","v":""},{"$f":"IF('effRT Support'!$B196=0,\"\",IF('Project Information'!$D$36=\"\",\"\",'Project Information'!$D$36))","v":""},{"$f":"IF('effRT Support'!$B196=0,\"\",IF('Project Information'!$D$42=\"\",\"\",'Project Information'!$D$42))","v":""},{"$f":"IF('effRT Support'!$B196=0,\"\",'effRT Support'!$D196)","v":""},{"$f":"IF('effRT Support'!$B196=0,\"\",'effRT Support'!$L196)","v":""},{"$f":"IF('effRT Support'!$B196=0,\"\",'effRT Support'!$N196)","v":""},null,null,{"$f":"IF('effRT Support'!$B196=0,\"\",'effRT Support'!$P196)","v":""},{"$f":"IF('effRT Support'!$B196=0,\"\",'effRT Support'!$Q196)","v":""},{"$f":"IF('effRT Support'!$B196=0,\"\",'effRT Support'!U196)","v":""},{"$f":"IF('effRT Support'!$B196=0,\"\",'effRT Support'!V196)","v":""},{"$f":"IF('effRT Support'!$B196=0,\"\",'effRT Support'!W196)","v":""},{"$f":"IF('effRT Support'!$B196=0,\"\",'effRT Support'!X196)","v":""},{"$f":"IF('effRT Support'!$B196=0,\"\",'effRT Support'!Y196)","v":""},{"$f":"IF('effRT Support'!$B196=0,\"\",'effRT Support'!Z196*10)","v":""},{"$f":"IF('effRT Support'!$B196=0,\"\",'effRT Support'!AA196)","v":""},{"$f":"IF('effRT Support'!$B196=0,\"\",'effRT Support'!AB196)","v":""},{"$f":"IF('effRT Support'!$B196=0,\"\",'effRT Support'!AC196)","v":""},{"$f":"IF('effRT Support'!$B196=0,\"\",'effRT Support'!AD196)","v":""},{"$f":"IF('effRT Support'!$B196=0,\"\",'effRT Support'!AE196)","v":""},{"$f":"IF('effRT Support'!$B196=0,\"\",\"Hours Actual or Deemed\")","v":""},{"$f":"IF('effRT Support'!$B196=0,\"\",'effRT Support'!$F196)","v":""},{"$f":"IF('effRT Support'!$B196=0,\"\",\"Wattage Actual or Deemed\")","v":""},{"$f":"IF('effRT Support'!$B196=0,\"\",IF('Project Information'!$D$33=\"Pay For Performance\",\"Actual\",\"Deemed\"))","v":""},{"$f":"IF('effRT Support'!$B196=0,\"\",\"Cost Actual or Deemed\")","v":""},{"$f":"IF('effRT Support'!$B196=0,\"\",IF('Project Information'!$D$33=\"Pay For Performance\",\"Actual\",\"Deemed\"))","v":""},{"$f":"IF('effRT Support'!$B196=0,\"\",\"Location\")","v":""},{"$f":"IF('effRT Support'!$B196=0,\"\",'effRT Support'!$E196)","v":""},{"$f":"IF('effRT Support'!$B196=0,\"\",\"Space Type\")","v":""},{"$f":"IF('effRT Support'!$B196=0,\"\",'effRT Support'!$G196)","v":""},{"$f":"IF('effRT Support'!$B196=0,\"\",\"Existing Fixture Description\")","v":""},{"$f":"IF('effRT Support'!$B196=0,\"\",'effRT Support'!$H196)","v":""},{"$f":"IF('effRT Support'!$B196=0,\"\",\"Existing Fixture Quantity\")","v":""},{"$f":"IF('effRT Support'!$B196=0,\"\",'effRT Support'!$I196)","v":""},{"$f":"IF('effRT Support'!$B196=0,\"\",\"Existing Fixture Wattage\")","v":""},{"$f":"IF('effRT Support'!$B196=0,\"\",'effRT Support'!$J196)","v":""},{"$f":"IF('effRT Support'!$B196=0,\"\",\"Annual Hours of Operation\")","v":""},{"$f":"IF('effRT Support'!$B196=0,\"\",'effRT Support'!$K196)","v":""},{"$f":"IF('effRT Support'!$B196=0,\"\",\"Installed Fixture Description\")","v":""},{"$f":"IF('effRT Support'!$B196=0,\"\",'effRT Support'!$M196)","v":""},{"$f":"IF('effRT Support'!$B196=0,\"\",\"Installed Fixture Wattage\")","v":""},{"$f":"IF('effRT Support'!$B196=0,\"\",'effRT Support'!$O196)","v":""},{"$f":"IF('effRT Support'!$B196=0,\"\",\"Material Cost\")","v":""},{"$f":"IF('effRT Support'!$B196=0,\"\",'effRT Support'!$R196)","v":""},{"$f":"IF('effRT Support'!$B196=0,\"\",\"Labor Cost\")","v":""},{"$f":"IF('effRT Support'!$B196=0,\"\",'effRT Support'!$S196)","v":""},{"$f":"IF('effRT Support'!$B196=0,\"\",\"Ancillary Costs - Measure Specific\")","v":""},{"$f":"IF('effRT Support'!$B196=0,\"\",'effRT Support'!$T196)","v":""},{"$f":"IF('effRT Support'!$B196=0,\"\",\"Fuel Type\")","v":""},{"$f":"IF('effRT Support'!$B196=0,\"\",'Project Information'!$D$44)","v":""}]
[{"$f":"IF('effRT Support'!$B197=0,\"\",IF('Project Information'!$D$33=\"Small Business\",\"SBL\",\"CILS\"))","v":""},{"$f":"IF('effRT Support'!$B197=0,\"\",IF('Project Information'!$K$2=\"\",\"\",'Project Information'!$K$2))","v":""},null,{"$f":"IF('effRT Support'!$B197=0,\"\",IF('Project Information'!$D$46=\"\",\"\",'Project Information'!$D$46))","v":""},{"$f":"IF('effRT Support'!$B197=0,\"\",IF('Project Information'!$D$20=\"\",\"\",VLOOKUP('Project Information'!$D$20,'Other Data'!$B$159:$E$189,4,FALSE)))","v":""},{"$f":"IF('effRT Support'!$B197=0,\"\",IF('Project Information'!$D$31=\"\",\"\",'Project Information'!$D$31))","v":""},{"$f":"IF('effRT Support'!$B197=0,\"\",IF('Project Information'!$D$5=\"\",\"\",'Project Information'!$D$5))","v":""},null,null,{"$f":"IF('effRT Support'!$B197=0,\"\",IF('Project Information'!$D$20=\"\",\"\",VLOOKUP('Project Information'!$D$20,'Other Data'!$B$159:$E$189,2,FALSE)))","v":""},{"$f":"IF('effRT Support'!$B197=0,\"\",IF('Project Information'!$D$20=\"\",\"\",VLOOKUP('Project Information'!$D$20,'Other Data'!$B$159:$E$189,3,FALSE)))","v":""},{"$f":"IF('effRT Support'!$B197=0,\"\",\"Existing\")","v":""},null,{"$f":"IF('effRT Support'!$B197=0,\"\",IF('Project Information'!$D$21=\"\",\"\",'Project Information'!$D$21))","v":""},{"$f":"IF('effRT Support'!$B197=0,\"\",IF('Project Information'!$D$48=\"\",\"\",'Project Information'!$D$48))","v":""},{"$f":"IF('effRT Support'!$B197=0,\"\",\"\")","v":""},{"$f":"IF('effRT Support'!$B197=0,\"\",\"\")","v":""},{"$f":"IF('effRT Support'!$B197=0,\"\",\"\")","v":""},{"$f":"IF('effRT Support'!$B197=0,\"\",\"\")","v":""},{"$f":"IF('effRT Support'!$B197=0,\"\",IF('Project Information'!$D$13=\"\",\"\",'Project Information'!$D$13))","v":""},{"$f":"IF('effRT Support'!$B197=0,\"\",IF('Project Information'!$E$13=\"\",\"\",'Project Information'!$E$13))","v":""},{"$f":"IF('effRT Support'!$B197=0,\"\",IF('Project Information'!$D$14=\"\",\"\",'Project Information'!$D$14))","v":""},{"$f":"IF('effRT Support'!$B197=0,\"\",IF('Project Information'!$D$15=\"\",\"\",'Project Information'!$D$15))","v":""},{"$f":"IF('effRT Support'!$B197=0,\"\",IF('Project Information'!$D$16=\"\",\"\",'Project Information'!$D$16))","v":""},null,{"$f":"IF('effRT Support'!$B197=0,\"\",'Project Information'!$D$18)","v":""},{"$f":"IF('effRT Support'!$B197=0,\"\",IF('Project Information'!$D$23=\"\",\"\",'Project Information'!$D$23))","v":""},{"$f":"IF('effRT Support'!$B197=0,\"\",IF('Project Information'!$D$24=\"\",\"\",'Project Information'!$D$24))","v":""},{"$f":"IF('effRT Support'!$B197=0,\"\",IF('Project Information'!$D$25=\"\",\"\",'Project Information'!$D$25))","v":""},{"$f":"IF('effRT Support'!$B197=0,\"\",IF('Project Information'!$E$25=\"\",\"\",'Project Information'!$E$25))","v":""},{"$f":"IF('effRT Support'!$B197=0,\"\",IF('Project Information'!$F$25=\"\",\"\",'Project Information'!$F$25))","v":""},{"$f":"IF('effRT Support'!$B197=0,\"\",IF('Project Information'!$D$27=\"\",\"Y\",\"N\"))","v":""},{"$f":"IF('effRT Support'!$B197=0,\"\",IF('Project Information'!$D$27=\"\",\"\",'Project Information'!$D$27))","v":""},{"$f":"IF('effRT Support'!$B197=0,\"\",IF('Project Information'!$D$28=\"\",\"\",'Project Information'!$D$28))","v":""},{"$f":"IF('effRT Support'!$B197=0,\"\",IF('Project Information'!$D$29=\"\",\"\",'Project Information'!$D$29))","v":""},{"$f":"IF('effRT Support'!$B197=0,\"\",IF('Project Information'!$E$29=\"\",\"\",'Project Information'!$E$29))","v":""},{"$f":"IF('effRT Support'!$B197=0,\"\",IF('Project Information'!$F$29=\"\",\"\",'Project Information'!$F$29))","v":""},{"$f":"IF('effRT Support'!$B197=0,\"\",\"\")","v":""},{"$f":"IF('effRT Support'!$B197=0,\"\",\"\")","v":""},{"$f":"IF('effRT Support'!$B197=0,\"\",IF('Project Information'!$D$36=\"\",\"\",'Project Information'!$D$36))","v":""},{"$f":"IF('effRT Support'!$B197=0,\"\",IF('Project Information'!$D$42=\"\",\"\",'Project Information'!$D$42))","v":""},{"$f":"IF('effRT Support'!$B197=0,\"\",'effRT Support'!$D197)","v":""},{"$f":"IF('effRT Support'!$B197=0,\"\",'effRT Support'!$L197)","v":""},{"$f":"IF('effRT Support'!$B197=0,\"\",'effRT Support'!$N197)","v":""},null,null,{"$f":"IF('effRT Support'!$B197=0,\"\",'effRT Support'!$P197)","v":""},{"$f":"IF('effRT Support'!$B197=0,\"\",'effRT Support'!$Q197)","v":""},{"$f":"IF('effRT Support'!$B197=0,\"\",'effRT Support'!U197)","v":""},{"$f":"IF('effRT Support'!$B197=0,\"\",'effRT Support'!V197)","v":""},{"$f":"IF('effRT Support'!$B197=0,\"\",'effRT Support'!W197)","v":""},{"$f":"IF('effRT Support'!$B197=0,\"\",'effRT Support'!X197)","v":""},{"$f":"IF('effRT Support'!$B197=0,\"\",'effRT Support'!Y197)","v":""},{"$f":"IF('effRT Support'!$B197=0,\"\",'effRT Support'!Z197*10)","v":""},{"$f":"IF('effRT Support'!$B197=0,\"\",'effRT Support'!AA197)","v":""},{"$f":"IF('effRT Support'!$B197=0,\"\",'effRT Support'!AB197)","v":""},{"$f":"IF('effRT Support'!$B197=0,\"\",'effRT Support'!AC197)","v":""},{"$f":"IF('effRT Support'!$B197=0,\"\",'effRT Support'!AD197)","v":""},{"$f":"IF('effRT Support'!$B197=0,\"\",'effRT Support'!AE197)","v":""},{"$f":"IF('effRT Support'!$B197=0,\"\",\"Hours Actual or Deemed\")","v":""},{"$f":"IF('effRT Support'!$B197=0,\"\",'effRT Support'!$F197)","v":""},{"$f":"IF('effRT Support'!$B197=0,\"\",\"Wattage Actual or Deemed\")","v":""},{"$f":"IF('effRT Support'!$B197=0,\"\",IF('Project Information'!$D$33=\"Pay For Performance\",\"Actual\",\"Deemed\"))","v":""},{"$f":"IF('effRT Support'!$B197=0,\"\",\"Cost Actual or Deemed\")","v":""},{"$f":"IF('effRT Support'!$B197=0,\"\",IF('Project Information'!$D$33=\"Pay For Performance\",\"Actual\",\"Deemed\"))","v":""},{"$f":"IF('effRT Support'!$B197=0,\"\",\"Location\")","v":""},{"$f":"IF('effRT Support'!$B197=0,\"\",'effRT Support'!$E197)","v":""},{"$f":"IF('effRT Support'!$B197=0,\"\",\"Space Type\")","v":""},{"$f":"IF('effRT Support'!$B197=0,\"\",'effRT Support'!$G197)","v":""},{"$f":"IF('effRT Support'!$B197=0,\"\",\"Existing Fixture Description\")","v":""},{"$f":"IF('effRT Support'!$B197=0,\"\",'effRT Support'!$H197)","v":""},{"$f":"IF('effRT Support'!$B197=0,\"\",\"Existing Fixture Quantity\")","v":""},{"$f":"IF('effRT Support'!$B197=0,\"\",'effRT Support'!$I197)","v":""},{"$f":"IF('effRT Support'!$B197=0,\"\",\"Existing Fixture Wattage\")","v":""},{"$f":"IF('effRT Support'!$B197=0,\"\",'effRT Support'!$J197)","v":""},{"$f":"IF('effRT Support'!$B197=0,\"\",\"Annual Hours of Operation\")","v":""},{"$f":"IF('effRT Support'!$B197=0,\"\",'effRT Support'!$K197)","v":""},{"$f":"IF('effRT Support'!$B197=0,\"\",\"Installed Fixture Description\")","v":""},{"$f":"IF('effRT Support'!$B197=0,\"\",'effRT Support'!$M197)","v":""},{"$f":"IF('effRT Support'!$B197=0,\"\",\"Installed Fixture Wattage\")","v":""},{"$f":"IF('effRT Support'!$B197=0,\"\",'effRT Support'!$O197)","v":""},{"$f":"IF('effRT Support'!$B197=0,\"\",\"Material Cost\")","v":""},{"$f":"IF('effRT Support'!$B197=0,\"\",'effRT Support'!$R197)","v":""},{"$f":"IF('effRT Support'!$B197=0,\"\",\"Labor Cost\")","v":""},{"$f":"IF('effRT Support'!$B197=0,\"\",'effRT Support'!$S197)","v":""},{"$f":"IF('effRT Support'!$B197=0,\"\",\"Ancillary Costs - Measure Specific\")","v":""},{"$f":"IF('effRT Support'!$B197=0,\"\",'effRT Support'!$T197)","v":""},{"$f":"IF('effRT Support'!$B197=0,\"\",\"Fuel Type\")","v":""},{"$f":"IF('effRT Support'!$B197=0,\"\",'Project Information'!$D$44)","v":""},{"$f":"IF('effRT Support'!$B197=0,\"\",\"Installed Fixture Quantity\")","v":""},{"$f":"IF('effRT Support'!$B197=0,\"\",'effRT Support'!P196)","v":""}]
[{"$f":"IF('effRT Support'!$B198=0,\"\",IF('Project Information'!$D$33=\"Small Business\",\"SBL\",\"CILS\"))","v":""},{"$f":"IF('effRT Support'!$B198=0,\"\",IF('Project Information'!$K$2=\"\",\"\",'Project Information'!$K$2))","v":""},null,{"$f":"IF('effRT Support'!$B198=0,\"\",IF('Project Information'!$D$46=\"\",\"\",'Project Information'!$D$46))","v":""},{"$f":"IF('effRT Support'!$B198=0,\"\",IF('Project Information'!$D$20=\"\",\"\",VLOOKUP('Project Information'!$D$20,'Other Data'!$B$159:$E$189,4,FALSE)))","v":""},{"$f":"IF('effRT Support'!$B198=0,\"\",IF('Project Information'!$D$31=\"\",\"\",'Project Information'!$D$31))","v":""},{"$f":"IF('effRT Support'!$B198=0,\"\",IF('Project Information'!$D$5=\"\",\"\",'Project Information'!$D$5))","v":""},null,null,{"$f":"IF('effRT Support'!$B198=0,\"\",IF('Project Information'!$D$20=\"\",\"\",VLOOKUP('Project Information'!$D$20,'Other Data'!$B$159:$E$189,2,FALSE)))","v":""},{"$f":"IF('effRT Support'!$B198=0,\"\",IF('Project Information'!$D$20=\"\",\"\",VLOOKUP('Project Information'!$D$20,'Other Data'!$B$159:$E$189,3,FALSE)))","v":""},{"$f":"IF('effRT Support'!$B198=0,\"\",\"Existing\")","v":""},null,{"$f":"IF('effRT Support'!$B198=0,\"\",IF('Project Information'!$D$21=\"\",\"\",'Project Information'!$D$21))","v":""},{"$f":"IF('effRT Support'!$B198=0,\"\",IF('Project Information'!$D$48=\"\",\"\",'Project Information'!$D$48))","v":""},{"$f":"IF('effRT Support'!$B198=0,\"\",\"\")","v":""},{"$f":"IF('effRT Support'!$B198=0,\"\",\"\")","v":""},{"$f":"IF('effRT Support'!$B198=0,\"\",\"\")","v":""},{"$f":"IF('effRT Support'!$B198=0,\"\",\"\")","v":""},{"$f":"IF('effRT Support'!$B198=0,\"\",IF('Project Information'!$D$13=\"\",\"\",'Project Information'!$D$13))","v":""},{"$f":"IF('effRT Support'!$B198=0,\"\",IF('Project Information'!$E$13=\"\",\"\",'Project Information'!$E$13))","v":""},{"$f":"IF('effRT Support'!$B198=0,\"\",IF('Project Information'!$D$14=\"\",\"\",'Project Information'!$D$14))","v":""},{"$f":"IF('effRT Support'!$B198=0,\"\",IF('Project Information'!$D$15=\"\",\"\",'Project Information'!$D$15))","v":""},{"$f":"IF('effRT Support'!$B198=0,\"\",IF('Project Information'!$D$16=\"\",\"\",'Project Information'!$D$16))","v":""},null,{"$f":"IF('effRT Support'!$B198=0,\"\",'Project Information'!$D$18)","v":""},{"$f":"IF('effRT Support'!$B198=0,\"\",IF('Project Information'!$D$23=\"\",\"\",'Project Information'!$D$23))","v":""},{"$f":"IF('effRT Support'!$B198=0,\"\",IF('Project Information'!$D$24=\"\",\"\",'Project Information'!$D$24))","v":""},{"$f":"IF('effRT Support'!$B198=0,\"\",IF('Project Information'!$D$25=\"\",\"\",'Project Information'!$D$25))","v":""},{"$f":"IF('effRT Support'!$B198=0,\"\",IF('Project Information'!$E$25=\"\",\"\",'Project Information'!$E$25))","v":""},{"$f":"IF('effRT Support'!$B198=0,\"\",IF('Project Information'!$F$25=\"\",\"\",'Project Information'!$F$25))","v":""},{"$f":"IF('effRT Support'!$B198=0,\"\",IF('Project Information'!$D$27=\"\",\"Y\",\"N\"))","v":""},{"$f":"IF('effRT Support'!$B198=0,\"\",IF('Project Information'!$D$27=\"\",\"\",'Project Information'!$D$27))","v":""},{"$f":"IF('effRT Support'!$B198=0,\"\",IF('Project Information'!$D$28=\"\",\"\",'Project Information'!$D$28))","v":""},{"$f":"IF('effRT Support'!$B198=0,\"\",IF('Project Information'!$D$29=\"\",\"\",'Project Information'!$D$29))","v":""},{"$f":"IF('effRT Support'!$B198=0,\"\",IF('Project Information'!$E$29=\"\",\"\",'Project Information'!$E$29))","v":""},{"$f":"IF('effRT Support'!$B198=0,\"\",IF('Project Information'!$F$29=\"\",\"\",'Project Information'!$F$29))","v":""},{"$f":"IF('effRT Support'!$B198=0,\"\",\"\")","v":""},{"$f":"IF('effRT Support'!$B198=0,\"\",\"\")","v":""},{"$f":"IF('effRT Support'!$B198=0,\"\",IF('Project Information'!$D$36=\"\",\"\",'Project Information'!$D$36))","v":""},{"$f":"IF('effRT Support'!$B198=0,\"\",IF('Project Information'!$D$42=\"\",\"\",'Project Information'!$D$42))","v":""},{"$f":"IF('effRT Support'!$B198=0,\"\",'effRT Support'!$D198)","v":""},{"$f":"IF('effRT Support'!$B198=0,\"\",'effRT Support'!$L198)","v":""},{"$f":"IF('effRT Support'!$B198=0,\"\",'effRT Support'!$N198)","v":""},null,null,{"$f":"IF('effRT Support'!$B198=0,\"\",'effRT Support'!$P198)","v":""},{"$f":"IF('effRT Support'!$B198=0,\"\",'effRT Support'!$Q198)","v":""},{"$f":"IF('effRT Support'!$B198=0,\"\",'effRT Support'!U198)","v":""},{"$f":"IF('effRT Support'!$B198=0,\"\",'effRT Support'!V198)","v":""},{"$f":"IF('effRT Support'!$B198=0,\"\",'effRT Support'!W198)","v":""},{"$f":"IF('effRT Support'!$B198=0,\"\",'effRT Support'!X198)","v":""},{"$f":"IF('effRT Support'!$B198=0,\"\",'effRT Support'!Y198)","v":""},{"$f":"IF('effRT Support'!$B198=0,\"\",'effRT Support'!Z198*10)","v":""},{"$f":"IF('effRT Support'!$B198=0,\"\",'effRT Support'!AA198)","v":""},{"$f":"IF('effRT Support'!$B198=0,\"\",'effRT Support'!AB198)","v":""},{"$f":"IF('effRT Support'!$B198=0,\"\",'effRT Support'!AC198)","v":""},{"$f":"IF('effRT Support'!$B198=0,\"\",'effRT Support'!AD198)","v":""},{"$f":"IF('effRT Support'!$B198=0,\"\",'effRT Support'!AE198)","v":""},{"$f":"IF('effRT Support'!$B198=0,\"\",\"Hours Actual or Deemed\")","v":""},{"$f":"IF('effRT Support'!$B198=0,\"\",'effRT Support'!$F198)","v":""},{"$f":"IF('effRT Support'!$B198=0,\"\",\"Wattage Actual or Deemed\")","v":""},{"$f":"IF('effRT Support'!$B198=0,\"\",IF('Project Information'!$D$33=\"Pay For Performance\",\"Actual\",\"Deemed\"))","v":""},{"$f":"IF('effRT Support'!$B198=0,\"\",\"Cost Actual or Deemed\")","v":""},{"$f":"IF('effRT Support'!$B198=0,\"\",IF('Project Information'!$D$33=\"Pay For Performance\",\"Actual\",\"Deemed\"))","v":""},{"$f":"IF('effRT Support'!$B198=0,\"\",\"Location\")","v":""},{"$f":"IF('effRT Support'!$B198=0,\"\",'effRT Support'!$E198)","v":""},{"$f":"IF('effRT Support'!$B198=0,\"\",\"Space Type\")","v":""},{"$f":"IF('effRT Support'!$B198=0,\"\",'effRT Support'!$G198)","v":""},{"$f":"IF('effRT Support'!$B198=0,\"\",\"Existing Fixture Description\")","v":""},{"$f":"IF('effRT Support'!$B198=0,\"\",'effRT Support'!$H198)","v":""},{"$f":"IF('effRT Support'!$B198=0,\"\",\"Existing Fixture Quantity\")","v":""},{"$f":"IF('effRT Support'!$B198=0,\"\",'effRT Support'!$I198)","v":""},{"$f":"IF('effRT Support'!$B198=0,\"\",\"Existing Fixture Wattage\")","v":""},{"$f":"IF('effRT Support'!$B198=0,\"\",'effRT Support'!$J198)","v":""},{"$f":"IF('effRT Support'!$B198=0,\"\",\"Annual Hours of Operation\")","v":""},{"$f":"IF('effRT Support'!$B198=0,\"\",'effRT Support'!$K198)","v":""},{"$f":"IF('effRT Support'!$B198=0,\"\",\"Installed Fixture Description\")","v":""},{"$f":"IF('effRT Support'!$B198=0,\"\",'effRT Support'!$M198)","v":""},{"$f":"IF('effRT Support'!$B198=0,\"\",\"Installed Fixture Wattage\")","v":""},{"$f":"IF('effRT Support'!$B198=0,\"\",'effRT Support'!$O198)","v":""},{"$f":"IF('effRT Support'!$B198=0,\"\",\"Material Cost\")","v":""},{"$f":"IF('effRT Support'!$B198=0,\"\",'effRT Support'!$R198)","v":""},{"$f":"IF('effRT Support'!$B198=0,\"\",\"Labor Cost\")","v":""},{"$f":"IF('effRT Support'!$B198=0,\"\",'effRT Support'!$S198)","v":""},{"$f":"IF('effRT Support'!$B198=0,\"\",\"Ancillary Costs - Measure Specific\")","v":""},{"$f":"IF('effRT Support'!$B198=0,\"\",'effRT Support'!$T198)","v":""},{"$f":"IF('effRT Support'!$B198=0,\"\",\"Fuel Type\")","v":""},{"$f":"IF('effRT Support'!$B198=0,\"\",'Project Information'!$D$44)","v":""}]
[{"$f":"IF('effRT Support'!$B199=0,\"\",IF('Project Information'!$D$33=\"Small Business\",\"SBL\",\"CILS\"))","v":""},{"$f":"IF('effRT Support'!$B199=0,\"\",IF('Project Information'!$K$2=\"\",\"\",'Project Information'!$K$2))","v":""},null,{"$f":"IF('effRT Support'!$B199=0,\"\",IF('Project Information'!$D$46=\"\",\"\",'Project Information'!$D$46))","v":""},{"$f":"IF('effRT Support'!$B199=0,\"\",IF('Project Information'!$D$20=\"\",\"\",VLOOKUP('Project Information'!$D$20,'Other Data'!$B$159:$E$189,4,FALSE)))","v":""},{"$f":"IF('effRT Support'!$B199=0,\"\",IF('Project Information'!$D$31=\"\",\"\",'Project Information'!$D$31))","v":""},{"$f":"IF('effRT Support'!$B199=0,\"\",IF('Project Information'!$D$5=\"\",\"\",'Project Information'!$D$5))","v":""},null,null,{"$f":"IF('effRT Support'!$B199=0,\"\",IF('Project Information'!$D$20=\"\",\"\",VLOOKUP('Project Information'!$D$20,'Other Data'!$B$159:$E$189,2,FALSE)))","v":""},{"$f":"IF('effRT Support'!$B199=0,\"\",IF('Project Information'!$D$20=\"\",\"\",VLOOKUP('Project Information'!$D$20,'Other Data'!$B$159:$E$189,3,FALSE)))","v":""},{"$f":"IF('effRT Support'!$B199=0,\"\",\"Existing\")","v":""},null,{"$f":"IF('effRT Support'!$B199=0,\"\",IF('Project Information'!$D$21=\"\",\"\",'Project Information'!$D$21))","v":""},{"$f":"IF('effRT Support'!$B199=0,\"\",IF('Project Information'!$D$48=\"\",\"\",'Project Information'!$D$48))","v":""},{"$f":"IF('effRT Support'!$B199=0,\"\",\"\")","v":""},{"$f":"IF('effRT Support'!$B199=0,\"\",\"\")","v":""},{"$f":"IF('effRT Support'!$B199=0,\"\",\"\")","v":""},{"$f":"IF('effRT Support'!$B199=0,\"\",\"\")","v":""},{"$f":"IF('effRT Support'!$B199=0,\"\",IF('Project Information'!$D$13=\"\",\"\",'Project Information'!$D$13))","v":""},{"$f":"IF('effRT Support'!$B199=0,\"\",IF('Project Information'!$E$13=\"\",\"\",'Project Information'!$E$13))","v":""},{"$f":"IF('effRT Support'!$B199=0,\"\",IF('Project Information'!$D$14=\"\",\"\",'Project Information'!$D$14))","v":""},{"$f":"IF('effRT Support'!$B199=0,\"\",IF('Project Information'!$D$15=\"\",\"\",'Project Information'!$D$15))","v":""},{"$f":"IF('effRT Support'!$B199=0,\"\",IF('Project Information'!$D$16=\"\",\"\",'Project Information'!$D$16))","v":""},null,{"$f":"IF('effRT Support'!$B199=0,\"\",'Project Information'!$D$18)","v":""},{"$f":"IF('effRT Support'!$B199=0,\"\",IF('Project Information'!$D$23=\"\",\"\",'Project Information'!$D$23))","v":""},{"$f":"IF('effRT Support'!$B199=0,\"\",IF('Project Information'!$D$24=\"\",\"\",'Project Information'!$D$24))","v":""},{"$f":"IF('effRT Support'!$B199=0,\"\",IF('Project Information'!$D$25=\"\",\"\",'Project Information'!$D$25))","v":""},{"$f":"IF('effRT Support'!$B199=0,\"\",IF('Project Information'!$E$25=\"\",\"\",'Project Information'!$E$25))","v":""},{"$f":"IF('effRT Support'!$B199=0,\"\",IF('Project Information'!$F$25=\"\",\"\",'Project Information'!$F$25))","v":""},{"$f":"IF('effRT Support'!$B199=0,\"\",IF('Project Information'!$D$27=\"\",\"Y\",\"N\"))","v":""},{"$f":"IF('effRT Support'!$B199=0,\"\",IF('Project Information'!$D$27=\"\",\"\",'Project Information'!$D$27))","v":""},{"$f":"IF('effRT Support'!$B199=0,\"\",IF('Project Information'!$D$28=\"\",\"\",'Project Information'!$D$28))","v":""},{"$f":"IF('effRT Support'!$B199=0,\"\",IF('Project Information'!$D$29=\"\",\"\",'Project Information'!$D$29))","v":""},{"$f":"IF('effRT Support'!$B199=0,\"\",IF('Project Information'!$E$29=\"\",\"\",'Project Information'!$E$29))","v":""},{"$f":"IF('effRT Support'!$B199=0,\"\",IF('Project Information'!$F$29=\"\",\"\",'Project Information'!$F$29))","v":""},{"$f":"IF('effRT Support'!$B199=0,\"\",\"\")","v":""},{"$f":"IF('effRT Support'!$B199=0,\"\",\"\")","v":""},{"$f":"IF('effRT Support'!$B199=0,\"\",IF('Project Information'!$D$36=\"\",\"\",'Project Information'!$D$36))","v":""},{"$f":"IF('effRT Support'!$B199=0,\"\",IF('Project Information'!$D$42=\"\",\"\",'Project Information'!$D$42))","v":""},{"$f":"IF('effRT Support'!$B199=0,\"\",'effRT Support'!$D199)","v":""},{"$f":"IF('effRT Support'!$B199=0,\"\",'effRT Support'!$L199)","v":""},{"$f":"IF('effRT Support'!$B199=0,\"\",'effRT Support'!$N199)","v":""},null,null,{"$f":"IF('effRT Support'!$B199=0,\"\",'effRT Support'!$P199)","v":""},{"$f":"IF('effRT Support'!$B199=0,\"\",'effRT Support'!$Q199)","v":""},{"$f":"IF('effRT Support'!$B199=0,\"\",'effRT Support'!U199)","v":""},{"$f":"IF('effRT Support'!$B199=0,\"\",'effRT Support'!V199)","v":""},{"$f":"IF('effRT Support'!$B199=0,\"\",'effRT Support'!W199)","v":""},{"$f":"IF('effRT Support'!$B199=0,\"\",'effRT Support'!X199)","v":""},{"$f":"IF('effRT Support'!$B199=0,\"\",'effRT Support'!Y199)","v":""},{"$f":"IF('effRT Support'!$B199=0,\"\",'effRT Support'!Z199*10)","v":""},{"$f":"IF('effRT Support'!$B199=0,\"\",'effRT Support'!AA199)","v":""},{"$f":"IF('effRT Support'!$B199=0,\"\",'effRT Support'!AB199)","v":""},{"$f":"IF('effRT Support'!$B199=0,\"\",'effRT Support'!AC199)","v":""},{"$f":"IF('effRT Support'!$B199=0,\"\",'effRT Support'!AD199)","v":""},{"$f":"IF('effRT Support'!$B199=0,\"\",'effRT Support'!AE199)","v":""},{"$f":"IF('effRT Support'!$B199=0,\"\",\"Hours Actual or Deemed\")","v":""},{"$f":"IF('effRT Support'!$B199=0,\"\",'effRT Support'!$F199)","v":""},{"$f":"IF('effRT Support'!$B199=0,\"\",\"Wattage Actual or Deemed\")","v":""},{"$f":"IF('effRT Support'!$B199=0,\"\",IF('Project Information'!$D$33=\"Pay For Performance\",\"Actual\",\"Deemed\"))","v":""},{"$f":"IF('effRT Support'!$B199=0,\"\",\"Cost Actual or Deemed\")","v":""},{"$f":"IF('effRT Support'!$B199=0,\"\",IF('Project Information'!$D$33=\"Pay For Performance\",\"Actual\",\"Deemed\"))","v":""},{"$f":"IF('effRT Support'!$B199=0,\"\",\"Location\")","v":""},{"$f":"IF('effRT Support'!$B199=0,\"\",'effRT Support'!$E199)","v":""},{"$f":"IF('effRT Support'!$B199=0,\"\",\"Space Type\")","v":""},{"$f":"IF('effRT Support'!$B199=0,\"\",'effRT Support'!$G199)","v":""},{"$f":"IF('effRT Support'!$B199=0,\"\",\"Existing Fixture Description\")","v":""},{"$f":"IF('effRT Support'!$B199=0,\"\",'effRT Support'!$H199)","v":""},{"$f":"IF('effRT Support'!$B199=0,\"\",\"Existing Fixture Quantity\")","v":""},{"$f":"IF('effRT Support'!$B199=0,\"\",'effRT Support'!$I199)","v":""},{"$f":"IF('effRT Support'!$B199=0,\"\",\"Existing Fixture Wattage\")","v":""},{"$f":"IF('effRT Support'!$B199=0,\"\",'effRT Support'!$J199)","v":""},{"$f":"IF('effRT Support'!$B199=0,\"\",\"Annual Hours of Operation\")","v":""},{"$f":"IF('effRT Support'!$B199=0,\"\",'effRT Support'!$K199)","v":""},{"$f":"IF('effRT Support'!$B199=0,\"\",\"Installed Fixture Description\")","v":""},{"$f":"IF('effRT Support'!$B199=0,\"\",'effRT Support'!$M199)","v":""},{"$f":"IF('effRT Support'!$B199=0,\"\",\"Installed Fixture Wattage\")","v":""},{"$f":"IF('effRT Support'!$B199=0,\"\",'effRT Support'!$O199)","v":""},{"$f":"IF('effRT Support'!$B199=0,\"\",\"Material Cost\")","v":""},{"$f":"IF('effRT Support'!$B199=0,\"\",'effRT Support'!$R199)","v":""},{"$f":"IF('effRT Support'!$B199=0,\"\",\"Labor Cost\")","v":""},{"$f":"IF('effRT Support'!$B199=0,\"\",'effRT Support'!$S199)","v":""},{"$f":"IF('effRT Support'!$B199=0,\"\",\"Ancillary Costs - Measure Specific\")","v":""},{"$f":"IF('effRT Support'!$B199=0,\"\",'effRT Support'!$T199)","v":""},{"$f":"IF('effRT Support'!$B199=0,\"\",\"Fuel Type\")","v":""},{"$f":"IF('effRT Support'!$B199=0,\"\",'Project Information'!$D$44)","v":""},{"$f":"IF('effRT Support'!$B199=0,\"\",\"Installed Fixture Quantity\")","v":""},{"$f":"IF('effRT Support'!$B199=0,\"\",'effRT Support'!P198)","v":""}]
[{"$f":"IF('effRT Support'!$B200=0,\"\",IF('Project Information'!$D$33=\"Small Business\",\"SBL\",\"CILS\"))","v":""},{"$f":"IF('effRT Support'!$B200=0,\"\",IF('Project Information'!$K$2=\"\",\"\",'Project Information'!$K$2))","v":""},null,{"$f":"IF('effRT Support'!$B200=0,\"\",IF('Project Information'!$D$46=\"\",\"\",'Project Information'!$D$46))","v":""},{"$f":"IF('effRT Support'!$B200=0,\"\",IF('Project Information'!$D$20=\"\",\"\",VLOOKUP('Project Information'!$D$20,'Other Data'!$B$159:$E$189,4,FALSE)))","v":""},{"$f":"IF('effRT Support'!$B200=0,\"\",IF('Project Information'!$D$31=\"\",\"\",'Project Information'!$D$31))","v":""},{"$f":"IF('effRT Support'!$B200=0,\"\",IF('Project Information'!$D$5=\"\",\"\",'Project Information'!$D$5))","v":""},null,null,{"$f":"IF('effRT Support'!$B200=0,\"\",IF('Project Information'!$D$20=\"\",\"\",VLOOKUP('Project Information'!$D$20,'Other Data'!$B$159:$E$189,2,FALSE)))","v":""},{"$f":"IF('effRT Support'!$B200=0,\"\",IF('Project Information'!$D$20=\"\",\"\",VLOOKUP('Project Information'!$D$20,'Other Data'!$B$159:$E$189,3,FALSE)))","v":""},{"$f":"IF('effRT Support'!$B200=0,\"\",\"Existing\")","v":""},null,{"$f":"IF('effRT Support'!$B200=0,\"\",IF('Project Information'!$D$21=\"\",\"\",'Project Information'!$D$21))","v":""},{"$f":"IF('effRT Support'!$B200=0,\"\",IF('Project Information'!$D$48=\"\",\"\",'Project Information'!$D$48))","v":""},{"$f":"IF('effRT Support'!$B200=0,\"\",\"\")","v":""},{"$f":"IF('effRT Support'!$B200=0,\"\",\"\")","v":""},{"$f":"IF('effRT Support'!$B200=0,\"\",\"\")","v":""},{"$f":"IF('effRT Support'!$B200=0,\"\",\"\")","v":""},{"$f":"IF('effRT Support'!$B200=0,\"\",IF('Project Information'!$D$13=\"\",\"\",'Project Information'!$D$13))","v":""},{"$f":"IF('effRT Support'!$B200=0,\"\",IF('Project Information'!$E$13=\"\",\"\",'Project Information'!$E$13))","v":""},{"$f":"IF('effRT Support'!$B200=0,\"\",IF('Project Information'!$D$14=\"\",\"\",'Project Information'!$D$14))","v":""},{"$f":"IF('effRT Support'!$B200=0,\"\",IF('Project Information'!$D$15=\"\",\"\",'Project Information'!$D$15))","v":""},{"$f":"IF('effRT Support'!$B200=0,\"\",IF('Project Information'!$D$16=\"\",\"\",'Project Information'!$D$16))","v":""},null,{"$f":"IF('effRT Support'!$B200=0,\"\",'Project Information'!$D$18)","v":""},{"$f":"IF('effRT Support'!$B200=0,\"\",IF('Project Information'!$D$23=\"\",\"\",'Project Information'!$D$23))","v":""},{"$f":"IF('effRT Support'!$B200=0,\"\",IF('Project Information'!$D$24=\"\",\"\",'Project Information'!$D$24))","v":""},{"$f":"IF('effRT Support'!$B200=0,\"\",IF('Project Information'!$D$25=\"\",\"\",'Project Information'!$D$25))","v":""},{"$f":"IF('effRT Support'!$B200=0,\"\",IF('Project Information'!$E$25=\"\",\"\",'Project Information'!$E$25))","v":""},{"$f":"IF('effRT Support'!$B200=0,\"\",IF('Project Information'!$F$25=\"\",\"\",'Project Information'!$F$25))","v":""},{"$f":"IF('effRT Support'!$B200=0,\"\",IF('Project Information'!$D$27=\"\",\"Y\",\"N\"))","v":""},{"$f":"IF('effRT Support'!$B200=0,\"\",IF('Project Information'!$D$27=\"\",\"\",'Project Information'!$D$27))","v":""},{"$f":"IF('effRT Support'!$B200=0,\"\",IF('Project Information'!$D$28=\"\",\"\",'Project Information'!$D$28))","v":""},{"$f":"IF('effRT Support'!$B200=0,\"\",IF('Project Information'!$D$29=\"\",\"\",'Project Information'!$D$29))","v":""},{"$f":"IF('effRT Support'!$B200=0,\"\",IF('Project Information'!$E$29=\"\",\"\",'Project Information'!$E$29))","v":""},{"$f":"IF('effRT Support'!$B200=0,\"\",IF('Project Information'!$F$29=\"\",\"\",'Project Information'!$F$29))","v":""},{"$f":"IF('effRT Support'!$B200=0,\"\",\"\")","v":""},{"$f":"IF('effRT Support'!$B200=0,\"\",\"\")","v":""},{"$f":"IF('effRT Support'!$B200=0,\"\",IF('Project Information'!$D$36=\"\",\"\",'Project Information'!$D$36))","v":""},{"$f":"IF('effRT Support'!$B200=0,\"\",IF('Project Information'!$D$42=\"\",\"\",'Project Information'!$D$42))","v":""},{"$f":"IF('effRT Support'!$B200=0,\"\",'effRT Support'!$D200)","v":""},{"$f":"IF('effRT Support'!$B200=0,\"\",'effRT Support'!$L200)","v":""},{"$f":"IF('effRT Support'!$B200=0,\"\",'effRT Support'!$N200)","v":""},null,null,{"$f":"IF('effRT Support'!$B200=0,\"\",'effRT Support'!$P200)","v":""},{"$f":"IF('effRT Support'!$B200=0,\"\",'effRT Support'!$Q200)","v":""},{"$f":"IF('effRT Support'!$B200=0,\"\",'effRT Support'!U200)","v":""},{"$f":"IF('effRT Support'!$B200=0,\"\",'effRT Support'!V200)","v":""},{"$f":"IF('effRT Support'!$B200=0,\"\",'effRT Support'!W200)","v":""},{"$f":"IF('effRT Support'!$B200=0,\"\",'effRT Support'!X200)","v":""},{"$f":"IF('effRT Support'!$B200=0,\"\",'effRT Support'!Y200)","v":""},{"$f":"IF('effRT Support'!$B200=0,\"\",'effRT Support'!Z200*10)","v":""},{"$f":"IF('effRT Support'!$B200=0,\"\",'effRT Support'!AA200)","v":""},{"$f":"IF('effRT Support'!$B200=0,\"\",'effRT Support'!AB200)","v":""},{"$f":"IF('effRT Support'!$B200=0,\"\",'effRT Support'!AC200)","v":""},{"$f":"IF('effRT Support'!$B200=0,\"\",'effRT Support'!AD200)","v":""},{"$f":"IF('effRT Support'!$B200=0,\"\",'effRT Support'!AE200)","v":""},{"$f":"IF('effRT Support'!$B200=0,\"\",\"Hours Actual or Deemed\")","v":""},{"$f":"IF('effRT Support'!$B200=0,\"\",'effRT Support'!$F200)","v":""},{"$f":"IF('effRT Support'!$B200=0,\"\",\"Wattage Actual or Deemed\")","v":""},{"$f":"IF('effRT Support'!$B200=0,\"\",IF('Project Information'!$D$33=\"Pay For Performance\",\"Actual\",\"Deemed\"))","v":""},{"$f":"IF('effRT Support'!$B200=0,\"\",\"Cost Actual or Deemed\")","v":""},{"$f":"IF('effRT Support'!$B200=0,\"\",IF('Project Information'!$D$33=\"Pay For Performance\",\"Actual\",\"Deemed\"))","v":""},{"$f":"IF('effRT Support'!$B200=0,\"\",\"Location\")","v":""},{"$f":"IF('effRT Support'!$B200=0,\"\",'effRT Support'!$E200)","v":""},{"$f":"IF('effRT Support'!$B200=0,\"\",\"Space Type\")","v":""},{"$f":"IF('effRT Support'!$B200=0,\"\",'effRT Support'!$G200)","v":""},{"$f":"IF('effRT Support'!$B200=0,\"\",\"Existing Fixture Description\")","v":""},{"$f":"IF('effRT Support'!$B200=0,\"\",'effRT Support'!$H200)","v":""},{"$f":"IF('effRT Support'!$B200=0,\"\",\"Existing Fixture Quantity\")","v":""},{"$f":"IF('effRT Support'!$B200=0,\"\",'effRT Support'!$I200)","v":""},{"$f":"IF('effRT Support'!$B200=0,\"\",\"Existing Fixture Wattage\")","v":""},{"$f":"IF('effRT Support'!$B200=0,\"\",'effRT Support'!$J200)","v":""},{"$f":"IF('effRT Support'!$B200=0,\"\",\"Annual Hours of Operation\")","v":""},{"$f":"IF('effRT Support'!$B200=0,\"\",'effRT Support'!$K200)","v":""},{"$f":"IF('effRT Support'!$B200=0,\"\",\"Installed Fixture Description\")","v":""},{"$f":"IF('effRT Support'!$B200=0,\"\",'effRT Support'!$M200)","v":""},{"$f":"IF('effRT Support'!$B200=0,\"\",\"Installed Fixture Wattage\")","v":""},{"$f":"IF('effRT Support'!$B200=0,\"\",'effRT Support'!$O200)","v":""},{"$f":"IF('effRT Support'!$B200=0,\"\",\"Material Cost\")","v":""},{"$f":"IF('effRT Support'!$B200=0,\"\",'effRT Support'!$R200)","v":""},{"$f":"IF('effRT Support'!$B200=0,\"\",\"Labor Cost\")","v":""},{"$f":"IF('effRT Support'!$B200=0,\"\",'effRT Support'!$S200)","v":""},{"$f":"IF('effRT Support'!$B200=0,\"\",\"Ancillary Costs - Measure Specific\")","v":""},{"$f":"IF('effRT Support'!$B200=0,\"\",'effRT Support'!$T200)","v":""},{"$f":"IF('effRT Support'!$B200=0,\"\",\"Fuel Type\")","v":""},{"$f":"IF('effRT Support'!$B200=0,\"\",'Project Information'!$D$44)","v":""}]
[{"$f":"IF('effRT Support'!$B201=0,\"\",IF('Project Information'!$D$33=\"Small Business\",\"SBL\",\"CILS\"))","v":""},{"$f":"IF('effRT Support'!$B201=0,\"\",IF('Project Information'!$K$2=\"\",\"\",'Project Information'!$K$2))","v":""},null,{"$f":"IF('effRT Support'!$B201=0,\"\",IF('Project Information'!$D$46=\"\",\"\",'Project Information'!$D$46))","v":""},{"$f":"IF('effRT Support'!$B201=0,\"\",IF('Project Information'!$D$20=\"\",\"\",VLOOKUP('Project Information'!$D$20,'Other Data'!$B$159:$E$189,4,FALSE)))","v":""},{"$f":"IF('effRT Support'!$B201=0,\"\",IF('Project Information'!$D$31=\"\",\"\",'Project Information'!$D$31))","v":""},{"$f":"IF('effRT Support'!$B201=0,\"\",IF('Project Information'!$D$5=\"\",\"\",'Project Information'!$D$5))","v":""},null,null,{"$f":"IF('effRT Support'!$B201=0,\"\",IF('Project Information'!$D$20=\"\",\"\",VLOOKUP('Project Information'!$D$20,'Other Data'!$B$159:$E$189,2,FALSE)))","v":""},{"$f":"IF('effRT Support'!$B201=0,\"\",IF('Project Information'!$D$20=\"\",\"\",VLOOKUP('Project Information'!$D$20,'Other Data'!$B$159:$E$189,3,FALSE)))","v":""},{"$f":"IF('effRT Support'!$B201=0,\"\",\"Existing\")","v":""},null,{"$f":"IF('effRT Support'!$B201=0,\"\",IF('Project Information'!$D$21=\"\",\"\",'Project Information'!$D$21))","v":""},{"$f":"IF('effRT Support'!$B201=0,\"\",IF('Project Information'!$D$48=\"\",\"\",'Project Information'!$D$48))","v":""},{"$f":"IF('effRT Support'!$B201=0,\"\",\"\")","v":""},{"$f":"IF('effRT Support'!$B201=0,\"\",\"\")","v":""},{"$f":"IF('effRT Support'!$B201=0,\"\",\"\")","v":""},{"$f":"IF('effRT Support'!$B201=0,\"\",\"\")","v":""},{"$f":"IF('effRT Support'!$B201=0,\"\",IF('Project Information'!$D$13=\"\",\"\",'Project Information'!$D$13))","v":""},{"$f":"IF('effRT Support'!$B201=0,\"\",IF('Project Information'!$E$13=\"\",\"\",'Project Information'!$E$13))","v":""},{"$f":"IF('effRT Support'!$B201=0,\"\",IF('Project Information'!$D$14=\"\",\"\",'Project Information'!$D$14))","v":""},{"$f":"IF('effRT Support'!$B201=0,\"\",IF('Project Information'!$D$15=\"\",\"\",'Project Information'!$D$15))","v":""},{"$f":"IF('effRT Support'!$B201=0,\"\",IF('Project Information'!$D$16=\"\",\"\",'Project Information'!$D$16))","v":""},null,{"$f":"IF('effRT Support'!$B201=0,\"\",'Project Information'!$D$18)","v":""},{"$f":"IF('effRT Support'!$B201=0,\"\",IF('Project Information'!$D$23=\"\",\"\",'Project Information'!$D$23))","v":""},{"$f":"IF('effRT Support'!$B201=0,\"\",IF('Project Information'!$D$24=\"\",\"\",'Project Information'!$D$24))","v":""},{"$f":"IF('effRT Support'!$B201=0,\"\",IF('Project Information'!$D$25=\"\",\"\",'Project Information'!$D$25))","v":""},{"$f":"IF('effRT Support'!$B201=0,\"\",IF('Project Information'!$E$25=\"\",\"\",'Project Information'!$E$25))","v":""},{"$f":"IF('effRT Support'!$B201=0,\"\",IF('Project Information'!$F$25=\"\",\"\",'Project Information'!$F$25))","v":""},{"$f":"IF('effRT Support'!$B201=0,\"\",IF('Project Information'!$D$27=\"\",\"Y\",\"N\"))","v":""},{"$f":"IF('effRT Support'!$B201=0,\"\",IF('Project Information'!$D$27=\"\",\"\",'Project Information'!$D$27))","v":""},{"$f":"IF('effRT Support'!$B201=0,\"\",IF('Project Information'!$D$28=\"\",\"\",'Project Information'!$D$28))","v":""},{"$f":"IF('effRT Support'!$B201=0,\"\",IF('Project Information'!$D$29=\"\",\"\",'Project Information'!$D$29))","v":""},{"$f":"IF('effRT Support'!$B201=0,\"\",IF('Project Information'!$E$29=\"\",\"\",'Project Information'!$E$29))","v":""},{"$f":"IF('effRT Support'!$B201=0,\"\",IF('Project Information'!$F$29=\"\",\"\",'Project Information'!$F$29))","v":""},{"$f":"IF('effRT Support'!$B201=0,\"\",\"\")","v":""},{"$f":"IF('effRT Support'!$B201=0,\"\",\"\")","v":""},{"$f":"IF('effRT Support'!$B201=0,\"\",IF('Project Information'!$D$36=\"\",\"\",'Project Information'!$D$36))","v":""},{"$f":"IF('effRT Support'!$B201=0,\"\",IF('Project Information'!$D$42=\"\",\"\",'Project Information'!$D$42))","v":""},{"$f":"IF('effRT Support'!$B201=0,\"\",'effRT Support'!$D201)","v":""},{"$f":"IF('effRT Support'!$B201=0,\"\",'effRT Support'!$L201)","v":""},{"$f":"IF('effRT Support'!$B201=0,\"\",'effRT Support'!$N201)","v":""},null,null,{"$f":"IF('effRT Support'!$B201=0,\"\",'effRT Support'!$P201)","v":""},{"$f":"IF('effRT Support'!$B201=0,\"\",'effRT Support'!$Q201)","v":""},{"$f":"IF('effRT Support'!$B201=0,\"\",'effRT Support'!U201)","v":""},{"$f":"IF('effRT Support'!$B201=0,\"\",'effRT Support'!V201)","v":""},{"$f":"IF('effRT Support'!$B201=0,\"\",'effRT Support'!W201)","v":""},{"$f":"IF('effRT Support'!$B201=0,\"\",'effRT Support'!X201)","v":""},{"$f":"IF('effRT Support'!$B201=0,\"\",'effRT Support'!Y201)","v":""},{"$f":"IF('effRT Support'!$B201=0,\"\",'effRT Support'!Z201*10)","v":""},{"$f":"IF('effRT Support'!$B201=0,\"\",'effRT Support'!AA201)","v":""},{"$f":"IF('effRT Support'!$B201=0,\"\",'effRT Support'!AB201)","v":""},{"$f":"IF('effRT Support'!$B201=0,\"\",'effRT Support'!AC201)","v":""},{"$f":"IF('effRT Support'!$B201=0,\"\",'effRT Support'!AD201)","v":""},{"$f":"IF('effRT Support'!$B201=0,\"\",'effRT Support'!AE201)","v":""},{"$f":"IF('effRT Support'!$B201=0,\"\",\"Hours Actual or Deemed\")","v":""},{"$f":"IF('effRT Support'!$B201=0,\"\",'effRT Support'!$F201)","v":""},{"$f":"IF('effRT Support'!$B201=0,\"\",\"Wattage Actual or Deemed\")","v":""},{"$f":"IF('effRT Support'!$B201=0,\"\",IF('Project Information'!$D$33=\"Pay For Performance\",\"Actual\",\"Deemed\"))","v":""},{"$f":"IF('effRT Support'!$B201=0,\"\",\"Cost Actual or Deemed\")","v":""},{"$f":"IF('effRT Support'!$B201=0,\"\",IF('Project Information'!$D$33=\"Pay For Performance\",\"Actual\",\"Deemed\"))","v":""},{"$f":"IF('effRT Support'!$B201=0,\"\",\"Location\")","v":""},{"$f":"IF('effRT Support'!$B201=0,\"\",'effRT Support'!$E201)","v":""},{"$f":"IF('effRT Support'!$B201=0,\"\",\"Space Type\")","v":""},{"$f":"IF('effRT Support'!$B201=0,\"\",'effRT Support'!$G201)","v":""},{"$f":"IF('effRT Support'!$B201=0,\"\",\"Existing Fixture Description\")","v":""},{"$f":"IF('effRT Support'!$B201=0,\"\",'effRT Support'!$H201)","v":""},{"$f":"IF('effRT Support'!$B201=0,\"\",\"Existing Fixture Quantity\")","v":""},{"$f":"IF('effRT Support'!$B201=0,\"\",'effRT Support'!$I201)","v":""},{"$f":"IF('effRT Support'!$B201=0,\"\",\"Existing Fixture Wattage\")","v":""},{"$f":"IF('effRT Support'!$B201=0,\"\",'effRT Support'!$J201)","v":""},{"$f":"IF('effRT Support'!$B201=0,\"\",\"Annual Hours of Operation\")","v":""},{"$f":"IF('effRT Support'!$B201=0,\"\",'effRT Support'!$K201)","v":""},{"$f":"IF('effRT Support'!$B201=0,\"\",\"Installed Fixture Description\")","v":""},{"$f":"IF('effRT Support'!$B201=0,\"\",'effRT Support'!$M201)","v":""},{"$f":"IF('effRT Support'!$B201=0,\"\",\"Installed Fixture Wattage\")","v":""},{"$f":"IF('effRT Support'!$B201=0,\"\",'effRT Support'!$O201)","v":""},{"$f":"IF('effRT Support'!$B201=0,\"\",\"Material Cost\")","v":""},{"$f":"IF('effRT Support'!$B201=0,\"\",'effRT Support'!$R201)","v":""},{"$f":"IF('effRT Support'!$B201=0,\"\",\"Labor Cost\")","v":""},{"$f":"IF('effRT Support'!$B201=0,\"\",'effRT Support'!$S201)","v":""},{"$f":"IF('effRT Support'!$B201=0,\"\",\"Ancillary Costs - Measure Specific\")","v":""},{"$f":"IF('effRT Support'!$B201=0,\"\",'effRT Support'!$T201)","v":""},{"$f":"IF('effRT Support'!$B201=0,\"\",\"Fuel Type\")","v":""},{"$f":"IF('effRT Support'!$B201=0,\"\",'Project Information'!$D$44)","v":""},{"$f":"IF('effRT Support'!$B201=0,\"\",\"Installed Fixture Quantity\")","v":""},{"$f":"IF('effRT Support'!$B201=0,\"\",'effRT Support'!P200)","v":""}]
[{"$f":"IF('effRT Support'!$B202=0,\"\",IF('Project Information'!$D$33=\"Small Business\",\"SBL\",\"CILS\"))","v":""},{"$f":"IF('effRT Support'!$B202=0,\"\",IF('Project Information'!$K$2=\"\",\"\",'Project Information'!$K$2))","v":""},null,{"$f":"IF('effRT Support'!$B202=0,\"\",IF('Project Information'!$D$46=\"\",\"\",'Project Information'!$D$46))","v":""},{"$f":"IF('effRT Support'!$B202=0,\"\",IF('Project Information'!$D$20=\"\",\"\",VLOOKUP('Project Information'!$D$20,'Other Data'!$B$159:$E$189,4,FALSE)))","v":""},{"$f":"IF('effRT Support'!$B202=0,\"\",IF('Project Information'!$D$31=\"\",\"\",'Project Information'!$D$31))","v":""},{"$f":"IF('effRT Support'!$B202=0,\"\",IF('Project Information'!$D$5=\"\",\"\",'Project Information'!$D$5))","v":""},null,null,{"$f":"IF('effRT Support'!$B202=0,\"\",IF('Project Information'!$D$20=\"\",\"\",VLOOKUP('Project Information'!$D$20,'Other Data'!$B$159:$E$189,2,FALSE)))","v":""},{"$f":"IF('effRT Support'!$B202=0,\"\",IF('Project Information'!$D$20=\"\",\"\",VLOOKUP('Project Information'!$D$20,'Other Data'!$B$159:$E$189,3,FALSE)))","v":""},{"$f":"IF('effRT Support'!$B202=0,\"\",\"Existing\")","v":""},null,{"$f":"IF('effRT Support'!$B202=0,\"\",IF('Project Information'!$D$21=\"\",\"\",'Project Information'!$D$21))","v":""},{"$f":"IF('effRT Support'!$B202=0,\"\",IF('Project Information'!$D$48=\"\",\"\",'Project Information'!$D$48))","v":""},{"$f":"IF('effRT Support'!$B202=0,\"\",\"\")","v":""},{"$f":"IF('effRT Support'!$B202=0,\"\",\"\")","v":""},{"$f":"IF('effRT Support'!$B202=0,\"\",\"\")","v":""},{"$f":"IF('effRT Support'!$B202=0,\"\",\"\")","v":""},{"$f":"IF('effRT Support'!$B202=0,\"\",IF('Project Information'!$D$13=\"\",\"\",'Project Information'!$D$13))","v":""},{"$f":"IF('effRT Support'!$B202=0,\"\",IF('Project Information'!$E$13=\"\",\"\",'Project Information'!$E$13))","v":""},{"$f":"IF('effRT Support'!$B202=0,\"\",IF('Project Information'!$D$14=\"\",\"\",'Project Information'!$D$14))","v":""},{"$f":"IF('effRT Support'!$B202=0,\"\",IF('Project Information'!$D$15=\"\",\"\",'Project Information'!$D$15))","v":""},{"$f":"IF('effRT Support'!$B202=0,\"\",IF('Project Information'!$D$16=\"\",\"\",'Project Information'!$D$16))","v":""},null,{"$f":"IF('effRT Support'!$B202=0,\"\",'Project Information'!$D$18)","v":""},{"$f":"IF('effRT Support'!$B202=0,\"\",IF('Project Information'!$D$23=\"\",\"\",'Project Information'!$D$23))","v":""},{"$f":"IF('effRT Support'!$B202=0,\"\",IF('Project Information'!$D$24=\"\",\"\",'Project Information'!$D$24))","v":""},{"$f":"IF('effRT Support'!$B202=0,\"\",IF('Project Information'!$D$25=\"\",\"\",'Project Information'!$D$25))","v":""},{"$f":"IF('effRT Support'!$B202=0,\"\",IF('Project Information'!$E$25=\"\",\"\",'Project Information'!$E$25))","v":""},{"$f":"IF('effRT Support'!$B202=0,\"\",IF('Project Information'!$F$25=\"\",\"\",'Project Information'!$F$25))","v":""},{"$f":"IF('effRT Support'!$B202=0,\"\",IF('Project Information'!$D$27=\"\",\"Y\",\"N\"))","v":""},{"$f":"IF('effRT Support'!$B202=0,\"\",IF('Project Information'!$D$27=\"\",\"\",'Project Information'!$D$27))","v":""},{"$f":"IF('effRT Support'!$B202=0,\"\",IF('Project Information'!$D$28=\"\",\"\",'Project Information'!$D$28))","v":""},{"$f":"IF('effRT Support'!$B202=0,\"\",IF('Project Information'!$D$29=\"\",\"\",'Project Information'!$D$29))","v":""},{"$f":"IF('effRT Support'!$B202=0,\"\",IF('Project Information'!$E$29=\"\",\"\",'Project Information'!$E$29))","v":""},{"$f":"IF('effRT Support'!$B202=0,\"\",IF('Project Information'!$F$29=\"\",\"\",'Project Information'!$F$29))","v":""},{"$f":"IF('effRT Support'!$B202=0,\"\",\"\")","v":""},{"$f":"IF('effRT Support'!$B202=0,\"\",\"\")","v":""},{"$f":"IF('effRT Support'!$B202=0,\"\",IF('Project Information'!$D$36=\"\",\"\",'Project Information'!$D$36))","v":""},{"$f":"IF('effRT Support'!$B202=0,\"\",IF('Project Information'!$D$42=\"\",\"\",'Project Information'!$D$42))","v":""},{"$f":"IF('effRT Support'!$B202=0,\"\",'effRT Support'!$D202)","v":""},{"$f":"IF('effRT Support'!$B202=0,\"\",'effRT Support'!$L202)","v":""},{"$f":"IF('effRT Support'!$B202=0,\"\",'effRT Support'!$N202)","v":""},null,null,{"$f":"IF('effRT Support'!$B202=0,\"\",'effRT Support'!$P202)","v":""},{"$f":"IF('effRT Support'!$B202=0,\"\",'effRT Support'!$Q202)","v":""},{"$f":"IF('effRT Support'!$B202=0,\"\",'effRT Support'!U202)","v":""},{"$f":"IF('effRT Support'!$B202=0,\"\",'effRT Support'!V202)","v":""},{"$f":"IF('effRT Support'!$B202=0,\"\",'effRT Support'!W202)","v":""},{"$f":"IF('effRT Support'!$B202=0,\"\",'effRT Support'!X202)","v":""},{"$f":"IF('effRT Support'!$B202=0,\"\",'effRT Support'!Y202)","v":""},{"$f":"IF('effRT Support'!$B202=0,\"\",'effRT Support'!Z202*10)","v":""},{"$f":"IF('effRT Support'!$B202=0,\"\",'effRT Support'!AA202)","v":""},{"$f":"IF('effRT Support'!$B202=0,\"\",'effRT Support'!AB202)","v":""},{"$f":"IF('effRT Support'!$B202=0,\"\",'effRT Support'!AC202)","v":""},{"$f":"IF('effRT Support'!$B202=0,\"\",'effRT Support'!AD202)","v":""},{"$f":"IF('effRT Support'!$B202=0,\"\",'effRT Support'!AE202)","v":""},{"$f":"IF('effRT Support'!$B202=0,\"\",\"Hours Actual or Deemed\")","v":""},{"$f":"IF('effRT Support'!$B202=0,\"\",'effRT Support'!$F202)","v":""},{"$f":"IF('effRT Support'!$B202=0,\"\",\"Wattage Actual or Deemed\")","v":""},{"$f":"IF('effRT Support'!$B202=0,\"\",IF('Project Information'!$D$33=\"Pay For Performance\",\"Actual\",\"Deemed\"))","v":""},{"$f":"IF('effRT Support'!$B202=0,\"\",\"Cost Actual or Deemed\")","v":""},{"$f":"IF('effRT Support'!$B202=0,\"\",IF('Project Information'!$D$33=\"Pay For Performance\",\"Actual\",\"Deemed\"))","v":""},{"$f":"IF('effRT Support'!$B202=0,\"\",\"Location\")","v":""},{"$f":"IF('effRT Support'!$B202=0,\"\",'effRT Support'!$E202)","v":""},{"$f":"IF('effRT Support'!$B202=0,\"\",\"Space Type\")","v":""},{"$f":"IF('effRT Support'!$B202=0,\"\",'effRT Support'!$G202)","v":""},{"$f":"IF('effRT Support'!$B202=0,\"\",\"Existing Fixture Description\")","v":""},{"$f":"IF('effRT Support'!$B202=0,\"\",'effRT Support'!$H202)","v":""},{"$f":"IF('effRT Support'!$B202=0,\"\",\"Existing Fixture Quantity\")","v":""},{"$f":"IF('effRT Support'!$B202=0,\"\",'effRT Support'!$I202)","v":""},{"$f":"IF('effRT Support'!$B202=0,\"\",\"Existing Fixture Wattage\")","v":""},{"$f":"IF('effRT Support'!$B202=0,\"\",'effRT Support'!$J202)","v":""},{"$f":"IF('effRT Support'!$B202=0,\"\",\"Annual Hours of Operation\")","v":""},{"$f":"IF('effRT Support'!$B202=0,\"\",'effRT Support'!$K202)","v":""},{"$f":"IF('effRT Support'!$B202=0,\"\",\"Installed Fixture Description\")","v":""},{"$f":"IF('effRT Support'!$B202=0,\"\",'effRT Support'!$M202)","v":""},{"$f":"IF('effRT Support'!$B202=0,\"\",\"Installed Fixture Wattage\")","v":""},{"$f":"IF('effRT Support'!$B202=0,\"\",'effRT Support'!$O202)","v":""},{"$f":"IF('effRT Support'!$B202=0,\"\",\"Material Cost\")","v":""},{"$f":"IF('effRT Support'!$B202=0,\"\",'effRT Support'!$R202)","v":""},{"$f":"IF('effRT Support'!$B202=0,\"\",\"Labor Cost\")","v":""},{"$f":"IF('effRT Support'!$B202=0,\"\",'effRT Support'!$S202)","v":""},{"$f":"IF('effRT Support'!$B202=0,\"\",\"Ancillary Costs - Measure Specific\")","v":""},{"$f":"IF('effRT Support'!$B202=0,\"\",'effRT Support'!$T202)","v":""},{"$f":"IF('effRT Support'!$B202=0,\"\",\"Fuel Type\")","v":""},{"$f":"IF('effRT Support'!$B202=0,\"\",'Project Information'!$D$44)","v":""}]
[{"$f":"IF('effRT Support'!$B203=0,\"\",IF('Project Information'!$D$33=\"Small Business\",\"SBL\",\"CILS\"))","v":""},{"$f":"IF('effRT Support'!$B203=0,\"\",IF('Project Information'!$K$2=\"\",\"\",'Project Information'!$K$2))","v":""},null,{"$f":"IF('effRT Support'!$B203=0,\"\",IF('Project Information'!$D$46=\"\",\"\",'Project Information'!$D$46))","v":""},{"$f":"IF('effRT Support'!$B203=0,\"\",IF('Project Information'!$D$20=\"\",\"\",VLOOKUP('Project Information'!$D$20,'Other Data'!$B$159:$E$189,4,FALSE)))","v":""},{"$f":"IF('effRT Support'!$B203=0,\"\",IF('Project Information'!$D$31=\"\",\"\",'Project Information'!$D$31))","v":""},{"$f":"IF('effRT Support'!$B203=0,\"\",IF('Project Information'!$D$5=\"\",\"\",'Project Information'!$D$5))","v":""},null,null,{"$f":"IF('effRT Support'!$B203=0,\"\",IF('Project Information'!$D$20=\"\",\"\",VLOOKUP('Project Information'!$D$20,'Other Data'!$B$159:$E$189,2,FALSE)))","v":""},{"$f":"IF('effRT Support'!$B203=0,\"\",IF('Project Information'!$D$20=\"\",\"\",VLOOKUP('Project Information'!$D$20,'Other Data'!$B$159:$E$189,3,FALSE)))","v":""},{"$f":"IF('effRT Support'!$B203=0,\"\",\"Existing\")","v":""},null,{"$f":"IF('effRT Support'!$B203=0,\"\",IF('Project Information'!$D$21=\"\",\"\",'Project Information'!$D$21))","v":""},{"$f":"IF('effRT Support'!$B203=0,\"\",IF('Project Information'!$D$48=\"\",\"\",'Project Information'!$D$48))","v":""},{"$f":"IF('effRT Support'!$B203=0,\"\",\"\")","v":""},{"$f":"IF('effRT Support'!$B203=0,\"\",\"\")","v":""},{"$f":"IF('effRT Support'!$B203=0,\"\",\"\")","v":""},{"$f":"IF('effRT Support'!$B203=0,\"\",\"\")","v":""},{"$f":"IF('effRT Support'!$B203=0,\"\",IF('Project Information'!$D$13=\"\",\"\",'Project Information'!$D$13))","v":""},{"$f":"IF('effRT Support'!$B203=0,\"\",IF('Project Information'!$E$13=\"\",\"\",'Project Information'!$E$13))","v":""},{"$f":"IF('effRT Support'!$B203=0,\"\",IF('Project Information'!$D$14=\"\",\"\",'Project Information'!$D$14))","v":""},{"$f":"IF('effRT Support'!$B203=0,\"\",IF('Project Information'!$D$15=\"\",\"\",'Project Information'!$D$15))","v":""},{"$f":"IF('effRT Support'!$B203=0,\"\",IF('Project Information'!$D$16=\"\",\"\",'Project Information'!$D$16))","v":""},null,{"$f":"IF('effRT Support'!$B203=0,\"\",'Project Information'!$D$18)","v":""},{"$f":"IF('effRT Support'!$B203=0,\"\",IF('Project Information'!$D$23=\"\",\"\",'Project Information'!$D$23))","v":""},{"$f":"IF('effRT Support'!$B203=0,\"\",IF('Project Information'!$D$24=\"\",\"\",'Project Information'!$D$24))","v":""},{"$f":"IF('effRT Support'!$B203=0,\"\",IF('Project Information'!$D$25=\"\",\"\",'Project Information'!$D$25))","v":""},{"$f":"IF('effRT Support'!$B203=0,\"\",IF('Project Information'!$E$25=\"\",\"\",'Project Information'!$E$25))","v":""},{"$f":"IF('effRT Support'!$B203=0,\"\",IF('Project Information'!$F$25=\"\",\"\",'Project Information'!$F$25))","v":""},{"$f":"IF('effRT Support'!$B203=0,\"\",IF('Project Information'!$D$27=\"\",\"Y\",\"N\"))","v":""},{"$f":"IF('effRT Support'!$B203=0,\"\",IF('Project Information'!$D$27=\"\",\"\",'Project Information'!$D$27))","v":""},{"$f":"IF('effRT Support'!$B203=0,\"\",IF('Project Information'!$D$28=\"\",\"\",'Project Information'!$D$28))","v":""},{"$f":"IF('effRT Support'!$B203=0,\"\",IF('Project Information'!$D$29=\"\",\"\",'Project Information'!$D$29))","v":""},{"$f":"IF('effRT Support'!$B203=0,\"\",IF('Project Information'!$E$29=\"\",\"\",'Project Information'!$E$29))","v":""},{"$f":"IF('effRT Support'!$B203=0,\"\",IF('Project Information'!$F$29=\"\",\"\",'Project Information'!$F$29))","v":""},{"$f":"IF('effRT Support'!$B203=0,\"\",\"\")","v":""},{"$f":"IF('effRT Support'!$B203=0,\"\",\"\")","v":""},{"$f":"IF('effRT Support'!$B203=0,\"\",IF('Project Information'!$D$36=\"\",\"\",'Project Information'!$D$36))","v":""},{"$f":"IF('effRT Support'!$B203=0,\"\",IF('Project Information'!$D$42=\"\",\"\",'Project Information'!$D$42))","v":""},{"$f":"IF('effRT Support'!$B203=0,\"\",'effRT Support'!$D203)","v":""},{"$f":"IF('effRT Support'!$B203=0,\"\",'effRT Support'!$L203)","v":""},{"$f":"IF('effRT Support'!$B203=0,\"\",'effRT Support'!$N203)","v":""},null,null,{"$f":"IF('effRT Support'!$B203=0,\"\",'effRT Support'!$P203)","v":""},{"$f":"IF('effRT Support'!$B203=0,\"\",'effRT Support'!$Q203)","v":""},{"$f":"IF('effRT Support'!$B203=0,\"\",'effRT Support'!U203)","v":""},{"$f":"IF('effRT Support'!$B203=0,\"\",'effRT Support'!V203)","v":""},{"$f":"IF('effRT Support'!$B203=0,\"\",'effRT Support'!W203)","v":""},{"$f":"IF('effRT Support'!$B203=0,\"\",'effRT Support'!X203)","v":""},{"$f":"IF('effRT Support'!$B203=0,\"\",'effRT Support'!Y203)","v":""},{"$f":"IF('effRT Support'!$B203=0,\"\",'effRT Support'!Z203*10)","v":""},{"$f":"IF('effRT Support'!$B203=0,\"\",'effRT Support'!AA203)","v":""},{"$f":"IF('effRT Support'!$B203=0,\"\",'effRT Support'!AB203)","v":""},{"$f":"IF('effRT Support'!$B203=0,\"\",'effRT Support'!AC203)","v":""},{"$f":"IF('effRT Support'!$B203=0,\"\",'effRT Support'!AD203)","v":""},{"$f":"IF('effRT Support'!$B203=0,\"\",'effRT Support'!AE203)","v":""},{"$f":"IF('effRT Support'!$B203=0,\"\",\"Hours Actual or Deemed\")","v":""},{"$f":"IF('effRT Support'!$B203=0,\"\",'effRT Support'!$F203)","v":""},{"$f":"IF('effRT Support'!$B203=0,\"\",\"Wattage Actual or Deemed\")","v":""},{"$f":"IF('effRT Support'!$B203=0,\"\",IF('Project Information'!$D$33=\"Pay For Performance\",\"Actual\",\"Deemed\"))","v":""},{"$f":"IF('effRT Support'!$B203=0,\"\",\"Cost Actual or Deemed\")","v":""},{"$f":"IF('effRT Support'!$B203=0,\"\",IF('Project Information'!$D$33=\"Pay For Performance\",\"Actual\",\"Deemed\"))","v":""},{"$f":"IF('effRT Support'!$B203=0,\"\",\"Location\")","v":""},{"$f":"IF('effRT Support'!$B203=0,\"\",'effRT Support'!$E203)","v":""},{"$f":"IF('effRT Support'!$B203=0,\"\",\"Space Type\")","v":""},{"$f":"IF('effRT Support'!$B203=0,\"\",'effRT Support'!$G203)","v":""},{"$f":"IF('effRT Support'!$B203=0,\"\",\"Existing Fixture Description\")","v":""},{"$f":"IF('effRT Support'!$B203=0,\"\",'effRT Support'!$H203)","v":""},{"$f":"IF('effRT Support'!$B203=0,\"\",\"Existing Fixture Quantity\")","v":""},{"$f":"IF('effRT Support'!$B203=0,\"\",'effRT Support'!$I203)","v":""},{"$f":"IF('effRT Support'!$B203=0,\"\",\"Existing Fixture Wattage\")","v":""},{"$f":"IF('effRT Support'!$B203=0,\"\",'effRT Support'!$J203)","v":""},{"$f":"IF('effRT Support'!$B203=0,\"\",\"Annual Hours of Operation\")","v":""},{"$f":"IF('effRT Support'!$B203=0,\"\",'effRT Support'!$K203)","v":""},{"$f":"IF('effRT Support'!$B203=0,\"\",\"Installed Fixture Description\")","v":""},{"$f":"IF('effRT Support'!$B203=0,\"\",'effRT Support'!$M203)","v":""},{"$f":"IF('effRT Support'!$B203=0,\"\",\"Installed Fixture Wattage\")","v":""},{"$f":"IF('effRT Support'!$B203=0,\"\",'effRT Support'!$O203)","v":""},{"$f":"IF('effRT Support'!$B203=0,\"\",\"Material Cost\")","v":""},{"$f":"IF('effRT Support'!$B203=0,\"\",'effRT Support'!$R203)","v":""},{"$f":"IF('effRT Support'!$B203=0,\"\",\"Labor Cost\")","v":""},{"$f":"IF('effRT Support'!$B203=0,\"\",'effRT Support'!$S203)","v":""},{"$f":"IF('effRT Support'!$B203=0,\"\",\"Ancillary Costs - Measure Specific\")","v":""},{"$f":"IF('effRT Support'!$B203=0,\"\",'effRT Support'!$T203)","v":""},{"$f":"IF('effRT Support'!$B203=0,\"\",\"Fuel Type\")","v":""},{"$f":"IF('effRT Support'!$B203=0,\"\",'Project Information'!$D$44)","v":""},{"$f":"IF('effRT Support'!$B203=0,\"\",\"Installed Fixture Quantity\")","v":""},{"$f":"IF('effRT Support'!$B203=0,\"\",'effRT Support'!P202)","v":""}]
[{"$f":"IF('effRT Support'!$B204=0,\"\",IF('Project Information'!$D$33=\"Small Business\",\"SBL\",\"CILS\"))","v":""},{"$f":"IF('effRT Support'!$B204=0,\"\",IF('Project Information'!$K$2=\"\",\"\",'Project Information'!$K$2))","v":""},null,{"$f":"IF('effRT Support'!$B204=0,\"\",IF('Project Information'!$D$46=\"\",\"\",'Project Information'!$D$46))","v":""},{"$f":"IF('effRT Support'!$B204=0,\"\",IF('Project Information'!$D$20=\"\",\"\",VLOOKUP('Project Information'!$D$20,'Other Data'!$B$159:$E$189,4,FALSE)))","v":""},{"$f":"IF('effRT Support'!$B204=0,\"\",IF('Project Information'!$D$31=\"\",\"\",'Project Information'!$D$31))","v":""},{"$f":"IF('effRT Support'!$B204=0,\"\",IF('Project Information'!$D$5=\"\",\"\",'Project Information'!$D$5))","v":""},null,null,{"$f":"IF('effRT Support'!$B204=0,\"\",IF('Project Information'!$D$20=\"\",\"\",VLOOKUP('Project Information'!$D$20,'Other Data'!$B$159:$E$189,2,FALSE)))","v":""},{"$f":"IF('effRT Support'!$B204=0,\"\",IF('Project Information'!$D$20=\"\",\"\",VLOOKUP('Project Information'!$D$20,'Other Data'!$B$159:$E$189,3,FALSE)))","v":""},{"$f":"IF('effRT Support'!$B204=0,\"\",\"Existing\")","v":""},null,{"$f":"IF('effRT Support'!$B204=0,\"\",IF('Project Information'!$D$21=\"\",\"\",'Project Information'!$D$21))","v":""},{"$f":"IF('effRT Support'!$B204=0,\"\",IF('Project Information'!$D$48=\"\",\"\",'Project Information'!$D$48))","v":""},{"$f":"IF('effRT Support'!$B204=0,\"\",\"\")","v":""},{"$f":"IF('effRT Support'!$B204=0,\"\",\"\")","v":""},{"$f":"IF('effRT Support'!$B204=0,\"\",\"\")","v":""},{"$f":"IF('effRT Support'!$B204=0,\"\",\"\")","v":""},{"$f":"IF('effRT Support'!$B204=0,\"\",IF('Project Information'!$D$13=\"\",\"\",'Project Information'!$D$13))","v":""},{"$f":"IF('effRT Support'!$B204=0,\"\",IF('Project Information'!$E$13=\"\",\"\",'Project Information'!$E$13))","v":""},{"$f":"IF('effRT Support'!$B204=0,\"\",IF('Project Information'!$D$14=\"\",\"\",'Project Information'!$D$14))","v":""},{"$f":"IF('effRT Support'!$B204=0,\"\",IF('Project Information'!$D$15=\"\",\"\",'Project Information'!$D$15))","v":""},{"$f":"IF('effRT Support'!$B204=0,\"\",IF('Project Information'!$D$16=\"\",\"\",'Project Information'!$D$16))","v":""},null,{"$f":"IF('effRT Support'!$B204=0,\"\",'Project Information'!$D$18)","v":""},{"$f":"IF('effRT Support'!$B204=0,\"\",IF('Project Information'!$D$23=\"\",\"\",'Project Information'!$D$23))","v":""},{"$f":"IF('effRT Support'!$B204=0,\"\",IF('Project Information'!$D$24=\"\",\"\",'Project Information'!$D$24))","v":""},{"$f":"IF('effRT Support'!$B204=0,\"\",IF('Project Information'!$D$25=\"\",\"\",'Project Information'!$D$25))","v":""},{"$f":"IF('effRT Support'!$B204=0,\"\",IF('Project Information'!$E$25=\"\",\"\",'Project Information'!$E$25))","v":""},{"$f":"IF('effRT Support'!$B204=0,\"\",IF('Project Information'!$F$25=\"\",\"\",'Project Information'!$F$25))","v":""},{"$f":"IF('effRT Support'!$B204=0,\"\",IF('Project Information'!$D$27=\"\",\"Y\",\"N\"))","v":""},{"$f":"IF('effRT Support'!$B204=0,\"\",IF('Project Information'!$D$27=\"\",\"\",'Project Information'!$D$27))","v":""},{"$f":"IF('effRT Support'!$B204=0,\"\",IF('Project Information'!$D$28=\"\",\"\",'Project Information'!$D$28))","v":""},{"$f":"IF('effRT Support'!$B204=0,\"\",IF('Project Information'!$D$29=\"\",\"\",'Project Information'!$D$29))","v":""},{"$f":"IF('effRT Support'!$B204=0,\"\",IF('Project Information'!$E$29=\"\",\"\",'Project Information'!$E$29))","v":""},{"$f":"IF('effRT Support'!$B204=0,\"\",IF('Project Information'!$F$29=\"\",\"\",'Project Information'!$F$29))","v":""},{"$f":"IF('effRT Support'!$B204=0,\"\",\"\")","v":""},{"$f":"IF('effRT Support'!$B204=0,\"\",\"\")","v":""},{"$f":"IF('effRT Support'!$B204=0,\"\",IF('Project Information'!$D$36=\"\",\"\",'Project Information'!$D$36))","v":""},{"$f":"IF('effRT Support'!$B204=0,\"\",IF('Project Information'!$D$42=\"\",\"\",'Project Information'!$D$42))","v":""},{"$f":"IF('effRT Support'!$B204=0,\"\",'effRT Support'!$D204)","v":""},{"$f":"IF('effRT Support'!$B204=0,\"\",'effRT Support'!$L204)","v":""},{"$f":"IF('effRT Support'!$B204=0,\"\",'effRT Support'!$N204)","v":""},null,null,{"$f":"IF('effRT Support'!$B204=0,\"\",'effRT Support'!$P204)","v":""},{"$f":"IF('effRT Support'!$B204=0,\"\",'effRT Support'!$Q204)","v":""},{"$f":"IF('effRT Support'!$B204=0,\"\",'effRT Support'!U204)","v":""},{"$f":"IF('effRT Support'!$B204=0,\"\",'effRT Support'!V204)","v":""},{"$f":"IF('effRT Support'!$B204=0,\"\",'effRT Support'!W204)","v":""},{"$f":"IF('effRT Support'!$B204=0,\"\",'effRT Support'!X204)","v":""},{"$f":"IF('effRT Support'!$B204=0,\"\",'effRT Support'!Y204)","v":""},{"$f":"IF('effRT Support'!$B204=0,\"\",'effRT Support'!Z204*10)","v":""},{"$f":"IF('effRT Support'!$B204=0,\"\",'effRT Support'!AA204)","v":""},{"$f":"IF('effRT Support'!$B204=0,\"\",'effRT Support'!AB204)","v":""},{"$f":"IF('effRT Support'!$B204=0,\"\",'effRT Support'!AC204)","v":""},{"$f":"IF('effRT Support'!$B204=0,\"\",'effRT Support'!AD204)","v":""},{"$f":"IF('effRT Support'!$B204=0,\"\",'effRT Support'!AE204)","v":""},{"$f":"IF('effRT Support'!$B204=0,\"\",\"Hours Actual or Deemed\")","v":""},{"$f":"IF('effRT Support'!$B204=0,\"\",'effRT Support'!$F204)","v":""},{"$f":"IF('effRT Support'!$B204=0,\"\",\"Wattage Actual or Deemed\")","v":""},{"$f":"IF('effRT Support'!$B204=0,\"\",IF('Project Information'!$D$33=\"Pay For Performance\",\"Actual\",\"Deemed\"))","v":""},{"$f":"IF('effRT Support'!$B204=0,\"\",\"Cost Actual or Deemed\")","v":""},{"$f":"IF('effRT Support'!$B204=0,\"\",IF('Project Information'!$D$33=\"Pay For Performance\",\"Actual\",\"Deemed\"))","v":""},{"$f":"IF('effRT Support'!$B204=0,\"\",\"Location\")","v":""},{"$f":"IF('effRT Support'!$B204=0,\"\",'effRT Support'!$E204)","v":""},{"$f":"IF('effRT Support'!$B204=0,\"\",\"Space Type\")","v":""},{"$f":"IF('effRT Support'!$B204=0,\"\",'effRT Support'!$G204)","v":""},{"$f":"IF('effRT Support'!$B204=0,\"\",\"Existing Fixture Description\")","v":""},{"$f":"IF('effRT Support'!$B204=0,\"\",'effRT Support'!$H204)","v":""},{"$f":"IF('effRT Support'!$B204=0,\"\",\"Existing Fixture Quantity\")","v":""},{"$f":"IF('effRT Support'!$B204=0,\"\",'effRT Support'!$I204)","v":""},{"$f":"IF('effRT Support'!$B204=0,\"\",\"Existing Fixture Wattage\")","v":""},{"$f":"IF('effRT Support'!$B204=0,\"\",'effRT Support'!$J204)","v":""},{"$f":"IF('effRT Support'!$B204=0,\"\",\"Annual Hours of Operation\")","v":""},{"$f":"IF('effRT Support'!$B204=0,\"\",'effRT Support'!$K204)","v":""},{"$f":"IF('effRT Support'!$B204=0,\"\",\"Installed Fixture Description\")","v":""},{"$f":"IF('effRT Support'!$B204=0,\"\",'effRT Support'!$M204)","v":""},{"$f":"IF('effRT Support'!$B204=0,\"\",\"Installed Fixture Wattage\")","v":""},{"$f":"IF('effRT Support'!$B204=0,\"\",'effRT Support'!$O204)","v":""},{"$f":"IF('effRT Support'!$B204=0,\"\",\"Material Cost\")","v":""},{"$f":"IF('effRT Support'!$B204=0,\"\",'effRT Support'!$R204)","v":""},{"$f":"IF('effRT Support'!$B204=0,\"\",\"Labor Cost\")","v":""},{"$f":"IF('effRT Support'!$B204=0,\"\",'effRT Support'!$S204)","v":""},{"$f":"IF('effRT Support'!$B204=0,\"\",\"Ancillary Costs - Measure Specific\")","v":""},{"$f":"IF('effRT Support'!$B204=0,\"\",'effRT Support'!$T204)","v":""},{"$f":"IF('effRT Support'!$B204=0,\"\",\"Fuel Type\")","v":""},{"$f":"IF('effRT Support'!$B204=0,\"\",'Project Information'!$D$44)","v":""}]
[{"$f":"IF('effRT Support'!$B205=0,\"\",IF('Project Information'!$D$33=\"Small Business\",\"SBL\",\"CILS\"))","v":""},{"$f":"IF('effRT Support'!$B205=0,\"\",IF('Project Information'!$K$2=\"\",\"\",'Project Information'!$K$2))","v":""},null,{"$f":"IF('effRT Support'!$B205=0,\"\",IF('Project Information'!$D$46=\"\",\"\",'Project Information'!$D$46))","v":""},{"$f":"IF('effRT Support'!$B205=0,\"\",IF('Project Information'!$D$20=\"\",\"\",VLOOKUP('Project Information'!$D$20,'Other Data'!$B$159:$E$189,4,FALSE)))","v":""},{"$f":"IF('effRT Support'!$B205=0,\"\",IF('Project Information'!$D$31=\"\",\"\",'Project Information'!$D$31))","v":""},{"$f":"IF('effRT Support'!$B205=0,\"\",IF('Project Information'!$D$5=\"\",\"\",'Project Information'!$D$5))","v":""},null,null,{"$f":"IF('effRT Support'!$B205=0,\"\",IF('Project Information'!$D$20=\"\",\"\",VLOOKUP('Project Information'!$D$20,'Other Data'!$B$159:$E$189,2,FALSE)))","v":""},{"$f":"IF('effRT Support'!$B205=0,\"\",IF('Project Information'!$D$20=\"\",\"\",VLOOKUP('Project Information'!$D$20,'Other Data'!$B$159:$E$189,3,FALSE)))","v":""},{"$f":"IF('effRT Support'!$B205=0,\"\",\"Existing\")","v":""},null,{"$f":"IF('effRT Support'!$B205=0,\"\",IF('Project Information'!$D$21=\"\",\"\",'Project Information'!$D$21))","v":""},{"$f":"IF('effRT Support'!$B205=0,\"\",IF('Project Information'!$D$48=\"\",\"\",'Project Information'!$D$48))","v":""},{"$f":"IF('effRT Support'!$B205=0,\"\",\"\")","v":""},{"$f":"IF('effRT Support'!$B205=0,\"\",\"\")","v":""},{"$f":"IF('effRT Support'!$B205=0,\"\",\"\")","v":""},{"$f":"IF('effRT Support'!$B205=0,\"\",\"\")","v":""},{"$f":"IF('effRT Support'!$B205=0,\"\",IF('Project Information'!$D$13=\"\",\"\",'Project Information'!$D$13))","v":""},{"$f":"IF('effRT Support'!$B205=0,\"\",IF('Project Information'!$E$13=\"\",\"\",'Project Information'!$E$13))","v":""},{"$f":"IF('effRT Support'!$B205=0,\"\",IF('Project Information'!$D$14=\"\",\"\",'Project Information'!$D$14))","v":""},{"$f":"IF('effRT Support'!$B205=0,\"\",IF('Project Information'!$D$15=\"\",\"\",'Project Information'!$D$15))","v":""},{"$f":"IF('effRT Support'!$B205=0,\"\",IF('Project Information'!$D$16=\"\",\"\",'Project Information'!$D$16))","v":""},null,{"$f":"IF('effRT Support'!$B205=0,\"\",'Project Information'!$D$18)","v":""},{"$f":"IF('effRT Support'!$B205=0,\"\",IF('Project Information'!$D$23=\"\",\"\",'Project Information'!$D$23))","v":""},{"$f":"IF('effRT Support'!$B205=0,\"\",IF('Project Information'!$D$24=\"\",\"\",'Project Information'!$D$24))","v":""},{"$f":"IF('effRT Support'!$B205=0,\"\",IF('Project Information'!$D$25=\"\",\"\",'Project Information'!$D$25))","v":""},{"$f":"IF('effRT Support'!$B205=0,\"\",IF('Project Information'!$E$25=\"\",\"\",'Project Information'!$E$25))","v":""},{"$f":"IF('effRT Support'!$B205=0,\"\",IF('Project Information'!$F$25=\"\",\"\",'Project Information'!$F$25))","v":""},{"$f":"IF('effRT Support'!$B205=0,\"\",IF('Project Information'!$D$27=\"\",\"Y\",\"N\"))","v":""},{"$f":"IF('effRT Support'!$B205=0,\"\",IF('Project Information'!$D$27=\"\",\"\",'Project Information'!$D$27))","v":""},{"$f":"IF('effRT Support'!$B205=0,\"\",IF('Project Information'!$D$28=\"\",\"\",'Project Information'!$D$28))","v":""},{"$f":"IF('effRT Support'!$B205=0,\"\",IF('Project Information'!$D$29=\"\",\"\",'Project Information'!$D$29))","v":""},{"$f":"IF('effRT Support'!$B205=0,\"\",IF('Project Information'!$E$29=\"\",\"\",'Project Information'!$E$29))","v":""},{"$f":"IF('effRT Support'!$B205=0,\"\",IF('Project Information'!$F$29=\"\",\"\",'Project Information'!$F$29))","v":""},{"$f":"IF('effRT Support'!$B205=0,\"\",\"\")","v":""},{"$f":"IF('effRT Support'!$B205=0,\"\",\"\")","v":""},{"$f":"IF('effRT Support'!$B205=0,\"\",IF('Project Information'!$D$36=\"\",\"\",'Project Information'!$D$36))","v":""},{"$f":"IF('effRT Support'!$B205=0,\"\",IF('Project Information'!$D$42=\"\",\"\",'Project Information'!$D$42))","v":""},{"$f":"IF('effRT Support'!$B205=0,\"\",'effRT Support'!$D205)","v":""},{"$f":"IF('effRT Support'!$B205=0,\"\",'effRT Support'!$L205)","v":""},{"$f":"IF('effRT Support'!$B205=0,\"\",'effRT Support'!$N205)","v":""},null,null,{"$f":"IF('effRT Support'!$B205=0,\"\",'effRT Support'!$P205)","v":""},{"$f":"IF('effRT Support'!$B205=0,\"\",'effRT Support'!$Q205)","v":""},{"$f":"IF('effRT Support'!$B205=0,\"\",'effRT Support'!U205)","v":""},{"$f":"IF('effRT Support'!$B205=0,\"\",'effRT Support'!V205)","v":""},{"$f":"IF('effRT Support'!$B205=0,\"\",'effRT Support'!W205)","v":""},{"$f":"IF('effRT Support'!$B205=0,\"\",'effRT Support'!X205)","v":""},{"$f":"IF('effRT Support'!$B205=0,\"\",'effRT Support'!Y205)","v":""},{"$f":"IF('effRT Support'!$B205=0,\"\",'effRT Support'!Z205*10)","v":""},{"$f":"IF('effRT Support'!$B205=0,\"\",'effRT Support'!AA205)","v":""},{"$f":"IF('effRT Support'!$B205=0,\"\",'effRT Support'!AB205)","v":""},{"$f":"IF('effRT Support'!$B205=0,\"\",'effRT Support'!AC205)","v":""},{"$f":"IF('effRT Support'!$B205=0,\"\",'effRT Support'!AD205)","v":""},{"$f":"IF('effRT Support'!$B205=0,\"\",'effRT Support'!AE205)","v":""},{"$f":"IF('effRT Support'!$B205=0,\"\",\"Hours Actual or Deemed\")","v":""},{"$f":"IF('effRT Support'!$B205=0,\"\",'effRT Support'!$F205)","v":""},{"$f":"IF('effRT Support'!$B205=0,\"\",\"Wattage Actual or Deemed\")","v":""},{"$f":"IF('effRT Support'!$B205=0,\"\",IF('Project Information'!$D$33=\"Pay For Performance\",\"Actual\",\"Deemed\"))","v":""},{"$f":"IF('effRT Support'!$B205=0,\"\",\"Cost Actual or Deemed\")","v":""},{"$f":"IF('effRT Support'!$B205=0,\"\",IF('Project Information'!$D$33=\"Pay For Performance\",\"Actual\",\"Deemed\"))","v":""},{"$f":"IF('effRT Support'!$B205=0,\"\",\"Location\")","v":""},{"$f":"IF('effRT Support'!$B205=0,\"\",'effRT Support'!$E205)","v":""},{"$f":"IF('effRT Support'!$B205=0,\"\",\"Space Type\")","v":""},{"$f":"IF('effRT Support'!$B205=0,\"\",'effRT Support'!$G205)","v":""},{"$f":"IF('effRT Support'!$B205=0,\"\",\"Existing Fixture Description\")","v":""},{"$f":"IF('effRT Support'!$B205=0,\"\",'effRT Support'!$H205)","v":""},{"$f":"IF('effRT Support'!$B205=0,\"\",\"Existing Fixture Quantity\")","v":""},{"$f":"IF('effRT Support'!$B205=0,\"\",'effRT Support'!$I205)","v":""},{"$f":"IF('effRT Support'!$B205=0,\"\",\"Existing Fixture Wattage\")","v":""},{"$f":"IF('effRT Support'!$B205=0,\"\",'effRT Support'!$J205)","v":""},{"$f":"IF('effRT Support'!$B205=0,\"\",\"Annual Hours of Operation\")","v":""},{"$f":"IF('effRT Support'!$B205=0,\"\",'effRT Support'!$K205)","v":""},{"$f":"IF('effRT Support'!$B205=0,\"\",\"Installed Fixture Description\")","v":""},{"$f":"IF('effRT Support'!$B205=0,\"\",'effRT Support'!$M205)","v":""},{"$f":"IF('effRT Support'!$B205=0,\"\",\"Installed Fixture Wattage\")","v":""},{"$f":"IF('effRT Support'!$B205=0,\"\",'effRT Support'!$O205)","v":""},{"$f":"IF('effRT Support'!$B205=0,\"\",\"Material Cost\")","v":""},{"$f":"IF('effRT Support'!$B205=0,\"\",'effRT Support'!$R205)","v":""},{"$f":"IF('effRT Support'!$B205=0,\"\",\"Labor Cost\")","v":""},{"$f":"IF('effRT Support'!$B205=0,\"\",'effRT Support'!$S205)","v":""},{"$f":"IF('effRT Support'!$B205=0,\"\",\"Ancillary Costs - Measure Specific\")","v":""},{"$f":"IF('effRT Support'!$B205=0,\"\",'effRT Support'!$T205)","v":""},{"$f":"IF('effRT Support'!$B205=0,\"\",\"Fuel Type\")","v":""},{"$f":"IF('effRT Support'!$B205=0,\"\",'Project Information'!$D$44)","v":""},{"$f":"IF('effRT Support'!$B205=0,\"\",\"Installed Fixture Quantity\")","v":""},{"$f":"IF('effRT Support'!$B205=0,\"\",'effRT Support'!P204)","v":""}]

{"sheet":"Edit Mode","index":10,"n_rows":5,"n_cols":3,"rows_kept":5,"cut":false,"hidden":false,"merged":[]}
[]
[null,"Edit Mode"]
[]
[]
[null,"Edit Mode","Production"]

{"sheet":"CBAT","index":11,"n_rows":107,"n_cols":115,"rows_kept":107,"cut":false,"hidden":true,"merged":[]}
[]
[]
[]
[]
[]
[null,null,null,null,null,null,"From \"Project Scope\" Tab",null,null,null,null,null,"Fixture Factors per Efficiency Maine TRM",null,null,null,null,null,null,null,null,null,null,null,null,null,null,"Fixture Calculated Savings per TRM formulas",null,null,null,null,null,null,null,null,null,null,null,"Seasonally Adjusted EPF",null,null,null,null,null,null,null,"Fixture Benefits",null,null,null,null,null,null,null,null,null,null,null,null,null,"Control Factors per Efficiency Maine TRM",null,null,null,null,null,null,null,null,null,null,null,null,null,null,null,"Control Calculated Savings per TRM formulas",null,null,null,null,null,null,null,null,null,null,null,"Seasonally Adjusted EPF",null,null,null,null,null,null,null,"Control Benefits",null,null,null,null,null,null,null,null,null,null,null,null,null,"Measure Screening: >1 is cost effective","Measure Screening: >1 is cost effective","Measure Screening: >1 is cost effective","Net to Gross?"]
["Reference Number","Location","Space Type","Location Type","Customer Type (Res/Com)","Seasonality","Existing Fixture Watts","Existing Fixture Quantity","Proposed Fixture Watts","Proposed Fixture Quantity","Proposed Controls Quantity","Yearly Hours of Operation","Useful Life","Winter CF","Summer CF","EPF Winter Peak","EPF Winter Off Peak","EPF Summer Peak","EPF Summer Off Peak","WHFd","WHFe,cool","WHFe,heat","ISR","RRe","RRd","FR","SO","kWh","kW","Winter kW","Summer kW","Electricity","Natural Gas","Propane","Heating Oil","Kerosene","Wood","Water","Gasoline","EPF Winter Peak Adjustment","EPF Winter Off Peak Adjustment","EPF Summer Peak Adjustment","EPF Summer Off Peak Adjustment","EPF Winter Peak","EPF Winter Off Peak","EPF Summer Peak","EPF Summer Off Peak","Electric Energy Benefit","Electric Demand Benefit","NG Benefit","Oil Benefit","Kerosene Benefit","Propane Benefit","Wood Benefit","Water Benefit","Gasoline Benefit","Non-energy Benefits - Fixtures","Incentive - Fixtures","Measure Cost - Fixtures","Discounted Future O&M (decreased future O&M entered as a negative value) - Fixtures","Discounted future replacement costs (decreased future replacement cost entered as a negative value) - Fixtures","Useful Life","Winter CF","Summer CF","EPF Winter Peak","EPF Winter Off Peak","EPF Summer Peak","EPF Summer Off Peak","WHFd","WHFe,cool","WHFe,heat","SVG","ISR","RRe","RRd","FR","SO","kWh","kW","Winter kW","Summer kW","Electricity","Natural Gas","Propane","Heating Oil","Kerosene","Wood","Water","Gasoline","EPF Winter Peak Adjustment","EPF Winter Off Peak Adjustment","EPF Summer Peak Adjustment","EPF Summer Off Peak Adjustment","EPF Winter Peak","EPF Winter Off Peak","EPF Summer Peak","EPF Summer Off Peak","Electric Energy Benefit","Electric Demand Benefit","NG Benefit","Oil Benefit","Kerosene Benefit","Propane Benefit","Wood Benefit","Water Benefit","Gasonline Benefit","Non-energy Benefits - Controls","Incentive - Controls","Measure Cost - Controls","Discounted Future O&M (decreased future O&M entered as a negative value) - Controls","Discounted future replacement costs (decreased future replacement cost entered as a negative value) - Controls","CBAT - Fixtures","CBAT - Controls","Total CBAT","NTG = 1 if Gross,  NTG = 1-FR+SO if Net"]
[{"$f":"'Project Scope'!$B8","v":1},{"$f":"IF('Project Scope'!$C8=\"\",\"\",'Project Scope'!$C8)","v":""},{"$f":"IF('Project Scope'!$C8=\"\",\"\",'Project Scope'!$H8)","v":""},{"$f":"IF(ISNUMBER(SEARCH(\"Bay\",'Project Scope'!$Q8)),\"Bay\",IF('Project Scope'!C8=\"\",\"\",'Project Scope'!E8))","v":""},{"$f":"IF('Project Scope'!$C8=\"\",\"\",\"Com\")","v":""},{"$f":"IF('Project Scope'!$C8=\"\",\"\",'Project Scope'!$L8)","v":""},{"$f":"IF('Project Scope'!$C8=\"\",\"\",IF('Project Scope'!$CJ8=\"\",0,'Project Scope'!$CJ8))","v":""},{"$f":"IF('Project Scope'!$C8=\"\",\"\",IF('Project Scope'!$N8=\"\",0,'Project Scope'!$N8))","v":""},{"$f":"IF('Project Scope'!$C8=\"\",\"\",IF('Project Scope'!$CK8=\"\",0,'Project Scope'!$CK8))","v":""},{"$f":"IF('Project Scope'!$C8=\"\",\"\",IF('Project Scope'!$AO8=\"\",0,'Project Scope'!$AO8))","v":""},{"$f":"IF('Project Scope'!$C8=\"\",\"\",IF('Project Scope'!$AX8=\"\",0,'Project Scope'!$AX8))","v":""},{"$f":"IF('Project Scope'!$C8=\"\",\"\",IF('Project Scope'!$M8=\"\",0,'Project Scope'!$M8))","v":""},{"$f":"IF('Project Scope'!$C8=\"\",\"\",IF(COUNTIF('CBAT Lookups'!$B$5:$B$12,\"Fixtures-\"&CBAT!$D8)=1,VLOOKUP(\"Fixtures-\"&CBAT!$D8,'CBAT Lookups'!$B$5:$L$12,11),0))","v":""},{"$f":"IF('Project Scope'!$C8=\"\",\"\",(IF(COUNTIF('CBAT Lookups'!$B$5:$B$12,\"Fixtures-\"&CBAT!$D8)=1,VLOOKUP(\"Fixtures-\"&CBAT!$D8,'CBAT Lookups'!$B$5:$K$12,2),0))*VLOOKUP($F8,'CBAT Lookups'!$B$17:$K$19,2))","v":""},{"$f":"IF('Project Scope'!$C8=\"\",\"\",(IF(COUNTIF('CBAT Lookups'!$B$5:$B$12,\"Fixtures-\"&CBAT!$D8)=1,VLOOKUP(\"Fixtures-\"&CBAT!$D8,'CBAT Lookups'!$B$5:$K$12,3),0))*VLOOKUP($F8,'CBAT Lookups'!$B$17:$K$19,3))","v":""},{"$f":"IF('Project Scope'!$C8=\"\",\"\",(IF(COUNTIF('CBAT Lookups'!$B$5:$B$12,\"Fixtures-\"&CBAT!$D8)=1,VLOOKUP(\"Fixtures-\"&CBAT!$D8,'CBAT Lookups'!$B$5:$K$12,4),0)))","v":""},{"$f":"IF('Project Scope'!$C8=\"\",\"\",(IF(COUNTIF('CBAT Lookups'!$B$5:$B$12,\"Fixtures-\"&CBAT!$D8)=1,VLOOKUP(\"Fixtures-\"&CBAT!$D8,'CBAT Lookups'!$B$5:$K$12,5),0)))","v":""},{"$f":"IF('Project Scope'!$C8=\"\",\"\",(IF(COUNTIF('CBAT Lookups'!$B$5:$B$12,\"Fixtures-\"&CBAT!$D8)=1,VLOOKUP(\"Fixtures-\"&CBAT!$D8,'CBAT Lookups'!$B$5:$K$12,6),0)))","v":""},{"$f":"IF('Project Scope'!$C8=\"\",\"\",IF(COUNTIF('CBAT Lookups'!$B$5:$B$12,\"Fixtures-\"&CBAT!$D8)=1,VLOOKUP(\"Fixtures-\"&CBAT!$D8,'CBAT Lookups'!$B$5:$K$12,7),0))","v":""},{"$f":"IF('Project Scope'!$C8=\"\",\"\",IF(VLOOKUP($F8,'CBAT Lookups'!$B$17:$K$19,8)=\"W\",1,IF(COUNTIF('CBAT Lookups'!$B$5:$B$12,\"Fixtures-\"&CBAT!$D8)=1,VLOOKUP(\"Fixtures-\"&CBAT!$D8,'CBAT Lookups'!$B$5:$K$12,8),0)*VLOOKUP($F8,'CBAT Lookups'!$B$17:$K$19,8)))","v":""},{"$f":"IF('Project Scope'!$C8=\"\",\"\",IF(VLOOKUP($F8,'CBAT Lookups'!$B$17:$K$19,9)=\"W\",1,IF(COUNTIF('CBAT Lookups'!$B$5:$B$12,\"Fixtures-\"&CBAT!$D8)=1,VLOOKUP(\"Fixtures-\"&CBAT!$D8,'CBAT Lookups'!$B$5:$K$12,9),0)*VLOOKUP($F8,'CBAT Lookups'!$B$17:$K$19,9)))","v":""},{"$f":"IF('Project Scope'!$C8=\"\",\"\",IF(COUNTIF('CBAT Lookups'!$B$5:$B$12,\"Fixtures-\"&CBAT!$D8)=1,VLOOKUP(\"Fixtures-\"&CBAT!$D8,'CBAT Lookups'!$B$5:$K$12,10),0)*VLOOKUP($F8,'CBAT Lookups'!$B$17:$K$19,10))","v":""},{"$f":"IF('Project Scope'!$C8=\"\",\"\",IF(COUNTIF('CBAT Lookups'!$B$5:$B$12,\"Fixtures-\"&CBAT!$D8)=1,VLOOKUP(\"Fixtures-\"&CBAT!$D8,'CBAT Lookups'!$B$5:$O$12,12),0))","v":""},{"$f":"IF('Project Scope'!$C8=\"\",\"\",IF(COUNTIF('CBAT Lookups'!$B$5:$B$12,\"Fixtures-\"&CBAT!$D8)=1,VLOOKUP(\"Fixtures-\"&CBAT!$D8,'CBAT Lookups'!$B$5:$O$12,13),0))","v":""},{"$f":"IF('Project Scope'!$C8=\"\",\"\",IF(COUNTIF('CBAT Lookups'!$B$5:$B$12,\"Fixtures-\"&CBAT!$D8)=1,VLOOKUP(\"Fixtures-\"&CBAT!$D8,'CBAT Lookups'!$B$5:$O$12,14),0))","v":""},{"$f":"IF('Project Scope'!$C8=\"\",\"\",'TRM Data'!$U$3)","v":""},{"$f":"IF('Project Scope'!$C8=\"\",\"\",'TRM Data'!$V$3)","v":""},{"$f":"IF('Project Scope'!$C8=\"\",\"\",IF($J8<=0,0,MAX(0,(($G8*$H8/1000)-($I8*$J8/1000))*$L8)*$U8)+($AF8/0.003412))","v":""},{"$f":"IF('Project Scope'!$C8=\"\",\"\",IF($J8<=0,0,MAX(0,(($G8*$H8/1000)-($I8*$J8/1000)))*$T8))","v":""},{"$f":"IF('Project Scope'!$C8=\"\",\"\",IF($J8<=0,0,MAX(0,(($G8*$H8/1000)-($I8*$J8/1000))*$N8)))","v":""},{"$f":"IF('Project Scope'!$C8=\"\",\"\",IF($J8<=0,0,MAX(0,(($G8*$H8/1000)-($I8*$J8/1000))*$O8)*$T8))","v":""},{"$f":"IF('Project Scope'!$C8=\"\",\"\",IF(OR($J8<=0,'Project Information'!$D$44=\"\"),0,-1*MAX(0,(($G8*$H8/1000)-($I8*$J8/1000))*$L8)*$V8*VLOOKUP('Project Information'!$D$44,'CBAT Lookups'!$A$23:$H$30,2)))","v":""},{"$f":"IF('Project Scope'!$C8=\"\",\"\",IF(OR($J8<=0,'Project Information'!$D$44=\"\"),0,-1*MAX(0,(($G8*$H8/1000)-($I8*$J8/1000))*$L8)*$V8*VLOOKUP('Project Information'!$D$44,'CBAT Lookups'!$A$23:$H$30,3)))","v":""},{"$f":"IF('Project Scope'!$C8=\"\",\"\",IF(OR($J8<=0,'Project Information'!$D$44=\"\"),0,-1*MAX(0,(($G8*$H8/1000)-($I8*$J8/1000))*$L8)*$V8*VLOOKUP('Project Information'!$D$44,'CBAT Lookups'!$A$23:$H$30,4)))","v":""},{"$f":"IF('Project Scope'!$C8=\"\",\"\",IF(OR($J8<=0,'Project Information'!$D$44=\"\"),0,-1*MAX(0,(($G8*$H8/1000)-($I8*$J8/1000))*$L8)*$V8*VLOOKUP('Project Information'!$D$44,'CBAT Lookups'!$A$23:$H$30,5)))","v":""},{"$f":"IF('Project Scope'!$C8=\"\",\"\",IF(OR($J8<=0,'Project Information'!$D$44=\"\"),0,-1*MAX(0,(($G8*$H8/1000)-($I8*$J8/1000))*$L8)*$V8*VLOOKUP('Project Information'!$D$44,'CBAT Lookups'!$A$23:$H$30,6)))","v":""},{"$f":"IF('Project Scope'!$C8=\"\",\"\",IF(OR($J8<=0,'Project Information'!$D$44=\"\"),0,-1*MAX(0,(($G8*$H8/1000)-($I8*$J8/1000))*$L8)*$V8*VLOOKUP('Project Information'!$D$44,'CBAT Lookups'!$A$23:$H$30,7)))","v":""},{"$f":"IF('Project Scope'!$C8=\"\",\"\",IF(OR($J8<=0,'Project Information'!$D$44=\"\"),0,-1*MAX(0,(($G8*$H8/1000)-($I8*$J8/1000))*$L8)*$V8*VLOOKUP('Project Information'!$D$44,'CBAT Lookups'!$A$23:$H$30,8)))","v":""},0,{"$f":"IF('Project Scope'!$C8=\"\",\"\",VLOOKUP($F8,'CBAT Lookups'!$B$17:$K$19,4))","v":""},{"$f":"IF('Project Scope'!$C8=\"\",\"\",VLOOKUP($F8,'CBAT Lookups'!$B$17:$K$19,5))","v":""},{"$f":"IF('Project Scope'!$C8=\"\",\"\",VLOOKUP($F8,'CBAT Lookups'!$B$17:$K$19,6))","v":""},{"$f":"IF('Project Scope'!$C8=\"\",\"\",VLOOKUP($F8,'CBAT Lookups'!$B$17:$K$19,7))","v":""},{"$f":"IF('Project Scope'!$C8=\"\",\"\",IF(SUMPRODUCT($P8:$S8,$AN8:$AQ8)=0,0,P8*AN8/SUMPRODUCT($P8:$S8,$AN8:$AQ8)))","v":""},{"$f":"IF('Project Scope'!$C8=\"\",\"\",IF(SUMPRODUCT($P8:$S8,$AN8:$AQ8)=0,0,Q8*AO8/SUMPRODUCT($P8:$S8,$AN8:$AQ8)))","v":""},{"$f":"IF('Project Scope'!$C8=\"\",\"\",IF(SUMPRODUCT($P8:$S8,$AN8:$AQ8)=0,0,R8*AP8/SUMPRODUCT($P8:$S8,$AN8:$AQ8)))","v":""},{"$f":"IF('Project Scope'!$C8=\"\",\"\",IF(SUMPRODUCT($P8:$S8,$AN8:$AQ8)=0,0,S8*AQ8/SUMPRODUCT($P8:$S8,$AN8:$AQ8)))","v":""},{"$f":"IF('Project Scope'!$C8=\"\",\"\",Benefits($AB8,$AD8,$AE8,$AG8,$AH8,$AI8,$AJ8,$AK8,$AL8,$AM8,$M8,$AR8,$AS8,$AT8,$AU8,$W8,$X8,$Y8,$Z8,$AA8,$E8))","v":""},"","","","","","","","",null,{"$f":"IF('Project Scope'!$C8=\"\",\"\",SUM('Project Scope'!$AT8,'Project Scope'!$AU8))","v":""},{"$f":"IF('Project Scope'!$C8=\"\",\"\",SUM('Project Scope'!$BG8, 'Project Scope'!$AR8,(IF(ISNUMBER('Project Scope'!$AS8),'Project Scope'!$AS8,0)*'Project Information'!$D$12)))","v":""},null,null,{"$f":"IF('Project Scope'!$C8=\"\",\"\",IF(COUNTIF('CBAT Lookups'!$B$5:$B$12,\"Controls-\"&CBAT!$D8)=1,VLOOKUP(\"Controls-\"&CBAT!$D8,'CBAT Lookups'!$B$5:$L$12,11),0))","v":""},{"$f":"IF('Project Scope'!$C8=\"\",\"\",IF(COUNTIF('CBAT Lookups'!$B$5:$B$12,\"Controls-\"&CBAT!$D8)=1,VLOOKUP(\"Controls-\"&CBAT!$D8,'CBAT Lookups'!$B$5:$K$12,2),0)*VLOOKUP($F8,'CBAT Lookups'!$B$17:$K$19,2))","v":""},{"$f":"IF('Project Scope'!$C8=\"\",\"\",IF(COUNTIF('CBAT Lookups'!$B$5:$B$12,\"Controls-\"&CBAT!$D8)=1,VLOOKUP(\"Controls-\"&CBAT!$D8,'CBAT Lookups'!$B$5:$K$12,3),0)*VLOOKUP($F8,'CBAT Lookups'!$B$17:$K$19,3))","v":""},{"$f":"IF('Project Scope'!$C8=\"\",\"\",IF(COUNTIF('CBAT Lookups'!$B$5:$B$12,\"Controls-\"&CBAT!$D8)=1,VLOOKUP(\"Controls-\"&CBAT!$D8,'CBAT Lookups'!$B$5:$K$12,4),0))","v":""},{"$f":"IF('Project Scope'!$C8=\"\",\"\",IF(COUNTIF('CBAT Lookups'!$B$5:$B$12,\"Controls-\"&CBAT!$D8)=1,VLOOKUP(\"Controls-\"&CBAT!$D8,'CBAT Lookups'!$B$5:$K$12,5),0))","v":""},{"$f":"IF('Project Scope'!$C8=\"\",\"\",IF(COUNTIF('CBAT Lookups'!$B$5:$B$12,\"Controls-\"&CBAT!$D8)=1,VLOOKUP(\"Controls-\"&CBAT!$D8,'CBAT Lookups'!$B$5:$K$12,6),0))","v":""},{"$f":"IF('Project Scope'!$C8=\"\",\"\",IF(COUNTIF('CBAT Lookups'!$B$5:$B$12,\"Controls-\"&CBAT!$D8)=1,VLOOKUP(\"Controls-\"&CBAT!$D8,'CBAT Lookups'!$B$5:$K$12,7),0))","v":""},{"$f":"IF('Project Scope'!$C8=\"\",\"\",IF(VLOOKUP($F8,'CBAT Lookups'!$B$17:$K$19,8)=\"W\",1,IF(COUNTIF('CBAT Lookups'!$B$5:$B$12,\"Controls-\"&CBAT!$D8)=1,VLOOKUP(\"Controls-\"&CBAT!$D8,'CBAT Lookups'!$B$5:$K$12,8),0)*VLOOKUP($F8,'CBAT Lookups'!$B$17:$K$19,8)))","v":""},{"$f":"IF('Project Scope'!$C8=\"\",\"\",IF(VLOOKUP($F8,'CBAT Lookups'!$B$17:$K$19,9)=\"W\",1,IF(COUNTIF('CBAT Lookups'!$B$5:$B$12,\"Controls-\"&CBAT!$D8)=1,VLOOKUP(\"Controls-\"&CBAT!$D8,'CBAT Lookups'!$B$5:$K$12,9),0)*VLOOKUP($F8,'CBAT Lookups'!$B$17:$K$19,9)))","v":""},{"$f":"IF('Project Scope'!$C8=\"\",\"\",IF(COUNTIF('CBAT Lookups'!$B$5:$B$12,\"Controls-\"&CBAT!$D8)=1,VLOOKUP(\"Controls-\"&CBAT!$D8,'CBAT Lookups'!$B$5:$K$12,10),0)*VLOOKUP($F8,'CBAT Lookups'!$B$17:$K$19,10))","v":""},{"$f":"IF('Project Scope'!$C8=\"\",\"\",VLOOKUP($C8,'CBAT Lookups'!$A$33:$B$57,2))","v":""},{"$f":"IF('Project Scope'!$C8=\"\",\"\",IF(COUNTIF('CBAT Lookups'!$B$5:$B$12,\"Controls-\"&CBAT!$D8)=1,VLOOKUP(\"Controls-\"&CBAT!$D8,'CBAT Lookups'!$B$5:$O$12,12),0))","v":""},{"$f":"IF('Project Scope'!$C8=\"\",\"\",IF(COUNTIF('CBAT Lookups'!$B$5:$B$12,\"Controls-\"&CBAT!$D8)=1,VLOOKUP(\"Controls-\"&CBAT!$D8,'CBAT Lookups'!$B$5:$O$12,13),0))","v":""},{"$f":"IF('Project Scope'!$C8=\"\",\"\",IF(COUNTIF('CBAT Lookups'!$B$5:$B$12,\"Controls-\"&CBAT!$D8)=1,VLOOKUP(\"Controls-\"&CBAT!$D8,'CBAT Lookups'!$B$5:$O$12,14),0))","v":""},{"$f":"IF('Project Scope'!$C8=\"\",\"\",'TRM Data'!$U$3)","v":""},{"$f":"IF('Project Scope'!$C8=\"\",\"\",'TRM Data'!$V$3)","v":""},{"$f":"IF('Project Scope'!$C8=\"\",\"\",IF($K8<=0,0,MAX(0,(IF(AND($I8>0,$J8>0),($I8*$J8)/1000,($G8*$H8)/1000)*$L8))*$BT8*$BR8)+($CD8/0.003412))","v":""},{"$f":"IF('Project Scope'!$C8=\"\",\"\",IF($K8<=0,0,MAX(0,IF(AND($I8>0,$J8>0),($I8*$J8)/1000,($G8*$H8)/1000))*$BQ8))","v":""},{"$f":"IF('Project Scope'!$C8=\"\",\"\",IF($K8<=0,0,MAX(0,IF(AND($I8>0,$J8>0),($I8*$J8)/1000,($G8*$H8)/1000))*$BK8))","v":""},{"$f":"IF('Project Scope'!$C8=\"\",\"\",IF($K8<=0,0,MAX(0,IF(AND($I8>0,$J8>0),($I8*$J8)/1000,($G8*$H8)/1000))*$BL8*$BQ8))","v":""},{"$f":"IF('Project Scope'!$C8=\"\",\"\",IF(OR($K8<=0,'Project Information'!$D$44=\"\"),0,-1*MAX(0,IF(AND($I8>0,$J8>0),($I8*$J8)/1000,($G8*$H8)/1000))*$BT8*$L8*$BS8*VLOOKUP('Project Information'!$D$44,'CBAT Lookups'!$A$23:$H$30,2)))","v":""},{"$f":"IF('Project Scope'!$C8=\"\",\"\",IF(OR($K8<=0,'Project Information'!$D$44=\"\"),0,-1*MAX(0,IF(AND($I8>0,$J8>0),($I8*$J8)/1000,($G8*$H8)/1000))*$BT8*$L8*$BS8*VLOOKUP('Project Information'!$D$44,'CBAT Lookups'!$A$23:$H$30,3)))","v":""},{"$f":"IF('Project Scope'!$C8=\"\",\"\",IF(OR($K8<=0,'Project Information'!$D$44=\"\"),0,-1*MAX(0,IF(AND($I8>0,$J8>0),($I8*$J8)/1000,($G8*$H8)/1000))*$BT8*$L8*$BS8*VLOOKUP('Project Information'!$D$44,'CBAT Lookups'!$A$23:$H$30,4)))","v":""},{"$f":"IF('Project Scope'!$C8=\"\",\"\",IF(OR($K8<=0,'Project Information'!$D$44=\"\"),0,-1*MAX(0,IF(AND($I8>0,$J8>0),($I8*$J8)/1000,($G8*$H8)/1000))*$BT8*$L8*$BS8*VLOOKUP('Project Information'!$D$44,'CBAT Lookups'!$A$23:$H$30,5)))","v":""},{"$f":"IF('Project Scope'!$C8=\"\",\"\",IF(OR($K8<=0,'Project Information'!$D$44=\"\"),0,-1*MAX(0,IF(AND($I8>0,$J8>0),($I8*$J8)/1000,($G8*$H8)/1000))*$BT8*$L8*$BS8*VLOOKUP('Project Information'!$D$44,'CBAT Lookups'!$A$23:$H$30,6)))","v":""},{"$f":"IF('Project Scope'!$C8=\"\",\"\",IF(OR($K8<=0,'Project Information'!$D$44=\"\"),0,-1*MAX(0,IF(AND($I8>0,$J8>0),($I8*$J8)/1000,($G8*$H8)/1000))*$BT8*$L8*$BS8*VLOOKUP('Project Information'!$D$44,'CBAT Lookups'!$A$23:$H$30,7)))","v":""},{"$f":"IF('Project Scope'!$C8=\"\",\"\",IF(OR($K8<=0,'Project Information'!$D$44=\"\"),0,-1*MAX(0,IF(AND($I8>0,$J8>0),($I8*$J8)/1000,($G8*$H8)/1000))*$BT8*$L8*$BS8*VLOOKUP('Project Information'!$D$44,'CBAT Lookups'!$A$23:$H$30,8)))","v":""},null,{"$f":"IF('Project Scope'!$C8=\"\",\"\",VLOOKUP($F8,'CBAT Lookups'!$B$17:$K$19,4))","v":""},{"$f":"IF('Project Scope'!$C8=\"\",\"\",VLOOKUP($F8,'CBAT Lookups'!$B$17:$K$19,5))","v":""},{"$f":"IF('Project Scope'!$C8=\"\",\"\",VLOOKUP($F8,'CBAT Lookups'!$B$17:$K$19,6))","v":""},{"$f":"IF('Project Scope'!$C8=\"\",\"\",VLOOKUP($F8,'CBAT Lookups'!$B$17:$K$19,7))","v":""},{"$f":"IF('Project Scope'!$C8=\"\",\"\",IF(SUMPRODUCT($BM8:$BP8,$CL8:$CO8)=0,0,BM8*CL8/SUMPRODUCT($BM8:$BP8,$CL8:$CO8)))","v":""},{"$f":"IF('Project Scope'!$C8=\"\",\"\",IF(SUMPRODUCT($BM8:$BP8,$CL8:$CO8)=0,0,BN8*CM8/SUMPRODUCT($BM8:$BP8,$CL8:$CO8)))","v":""},{"$f":"IF('Project Scope'!$C8=\"\",\"\",IF(SUMPRODUCT($BM8:$BP8,$CL8:$CO8)=0,0,BO8*CN8/SUMPRODUCT($BM8:$BP8,$CL8:$CO8)))","v":""},{"$f":"IF('Project Scope'!$C8=\"\",\"\",IF(SUMPRODUCT($BM8:$BP8,$CL8:$CO8)=0,0,BP8*CO8/SUMPRODUCT($BM8:$BP8,$CL8:$CO8)))","v":""},{"$f":"IF('Project Scope'!$C8=\"\",\"\",Benefits($BZ8,$CB8,$CC8,$CE8,$CF8,$CG8,$CH8,$CI8,$CJ8,$CK8,$BJ8,$CP8,$CQ8,$CR8,$CS8,$BU8,$BV8,$BW8,$BX8,$BY8,$E8))","v":""},"","","","","","","","",null,{"$f":"IF('Project Scope'!$C8=\"\",\"\",SUM('Project Scope'!$BB8,'Project Scope'!$BC8))","v":""},{"$f":"IF('Project Scope'!$C8=\"\",\"\",SUM('Project Scope'!$BH8, 'Project Scope'!$AZ8,(IF(ISNUMBER('Project Scope'!$BA8),'Project Scope'!$BA8,0)*'Project Information'!$D$12)))","v":""},null,null,{"$f":"IF('Project Scope'!$C8=\"\",\"\",IF($J8<=0,0,(SUMPRODUCT($AV8:$BC8,--($AV8:$BC8>0))+$BE8)*$DK8/((-SUMPRODUCT($AV8:$BC8,--($AV8:$BC8<0))+$BG8+$BH8+$BI8)*$DK8)))","v":""},{"$f":"IF('Project Scope'!$C8=\"\",\"\",IF($K8<=0,0,(SUMPRODUCT($CT8:$DA8,--($CT8:$DA8>0))+$DC8)*$DK8/((-SUMPRODUCT($CT8:$DA8,--($CT8:$DA8<0))+$DE8+$DF8+$DG8)*$DK8)))","v":""},{"$f":"IF('Project Scope'!$C8=\"\",\"\",IF(AND($J8<=0,$K8<=0),0,(SUMPRODUCT($AV8:$BC8,--($AV8:$BC8>0))+$BE8+SUMPRODUCT($CT8:$DA8,--($CT8:$DA8>0))+$DC8)*$DK8/((-SUMPRODUCT($AV8:$BC8,--($AV8:$BC8<0))+$BG8+$BH8+$BI8-SUMPRODUCT($CT8:$DA8,--($CT8:$DA8<0))+$DE8+$DF8+$DG8)*$DK8)))","v":""},{"$f":"IF('Project Scope'!$C8=\"\",\"\",IF(NetOrGross=\"Net\",(1-Z8+AA8),1))","v":""}]
[{"$f":"'Project Scope'!$B9","v":2},{"$f":"IF('Project Scope'!$C9=\"\",\"\",'Project Scope'!$C9)","v":""},{"$f":"IF('Project Scope'!$C9=\"\",\"\",'Project Scope'!$H9)","v":""},{"$f":"IF(ISNUMBER(SEARCH(\"Bay\",'Project Scope'!$Q9)),\"Bay\",IF('Project Scope'!C9=\"\",\"\",'Project Scope'!E9))","v":""},{"$f":"IF('Project Scope'!$C9=\"\",\"\",\"Com\")","v":""},{"$f":"IF('Project Scope'!$C9=\"\",\"\",'Project Scope'!$L9)","v":""},{"$f":"IF('Project Scope'!$C9=\"\",\"\",IF('Project Scope'!$CJ9=\"\",0,'Project Scope'!$CJ9))","v":""},{"$f":"IF('Project Scope'!$C9=\"\",\"\",IF('Project Scope'!$N9=\"\",0,'Project Scope'!$N9))","v":""},{"$f":"IF('Project Scope'!$C9=\"\",\"\",IF('Project Scope'!$CK9=\"\",0,'Project Scope'!$CK9))","v":""},{"$f":"IF('Project Scope'!$C9=\"\",\"\",IF('Project Scope'!$AO9=\"\",0,'Project Scope'!$AO9))","v":""},{"$f":"IF('Project Scope'!$C9=\"\",\"\",IF('Project Scope'!$AX9=\"\",0,'Project Scope'!$AX9))","v":""},{"$f":"IF('Project Scope'!$C9=\"\",\"\",IF('Project Scope'!$M9=\"\",0,'Project Scope'!$M9))","v":""},{"$f":"IF('Project Scope'!$C9=\"\",\"\",IF(COUNTIF('CBAT Lookups'!$B$5:$B$12,\"Fixtures-\"&CBAT!$D9)=1,VLOOKUP(\"Fixtures-\"&CBAT!$D9,'CBAT Lookups'!$B$5:$L$12,11),0))","v":""},{"$f":"IF('Project Scope'!$C9=\"\",\"\",(IF(COUNTIF('CBAT Lookups'!$B$5:$B$12,\"Fixtures-\"&CBAT!$D9)=1,VLOOKUP(\"Fixtures-\"&CBAT!$D9,'CBAT Lookups'!$B$5:$K$12,2),0))*VLOOKUP($F9,'CBAT Lookups'!$B$17:$K$19,2))","v":""},{"$f":"IF('Project Scope'!$C9=\"\",\"\",(IF(COUNTIF('CBAT Lookups'!$B$5:$B$12,\"Fixtures-\"&CBAT!$D9)=1,VLOOKUP(\"Fixtures-\"&CBAT!$D9,'CBAT Lookups'!$B$5:$K$12,3),0))*VLOOKUP($F9,'CBAT Lookups'!$B$17:$K$19,3))","v":""},{"$f":"IF('Project Scope'!$C9=\"\",\"\",(IF(COUNTIF('CBAT Lookups'!$B$5:$B$12,\"Fixtures-\"&CBAT!$D9)=1,VLOOKUP(\"Fixtures-\"&CBAT!$D9,'CBAT Lookups'!$B$5:$K$12,4),0)))","v":""},{"$f":"IF('Project Scope'!$C9=\"\",\"\",(IF(COUNTIF('CBAT Lookups'!$B$5:$B$12,\"Fixtures-\"&CBAT!$D9)=1,VLOOKUP(\"Fixtures-\"&CBAT!$D9,'CBAT Lookups'!$B$5:$K$12,5),0)))","v":""},{"$f":"IF('Project Scope'!$C9=\"\",\"\",(IF(COUNTIF('CBAT Lookups'!$B$5:$B$12,\"Fixtures-\"&CBAT!$D9)=1,VLOOKUP(\"Fixtures-\"&CBAT!$D9,'CBAT Lookups'!$B$5:$K$12,6),0)))","v":""},{"$f":"IF('Project Scope'!$C9=\"\",\"\",IF(COUNTIF('CBAT Lookups'!$B$5:$B$12,\"Fixtures-\"&CBAT!$D9)=1,VLOOKUP(\"Fixtures-\"&CBAT!$D9,'CBAT Lookups'!$B$5:$K$12,7),0))","v":""},{"$f":"IF('Project Scope'!$C9=\"\",\"\",IF(VLOOKUP($F9,'CBAT Lookups'!$B$17:$K$19,8)=\"W\",1,IF(COUNTIF('CBAT Lookups'!$B$5:$B$12,\"Fixtures-\"&CBAT!$D9)=1,VLOOKUP(\"Fixtures-\"&CBAT!$D9,'CBAT Lookups'!$B$5:$K$12,8),0)*VLOOKUP($F9,'CBAT Lookups'!$B$17:$K$19,8)))","v":""},{"$f":"IF('Project Scope'!$C9=\"\",\"\",IF(VLOOKUP($F9,'CBAT Lookups'!$B$17:$K$19,9)=\"W\",1,IF(COUNTIF('CBAT Lookups'!$B$5:$B$12,\"Fixtures-\"&CBAT!$D9)=1,VLOOKUP(\"Fixtures-\"&CBAT!$D9,'CBAT Lookups'!$B$5:$K$12,9),0)*VLOOKUP($F9,'CBAT Lookups'!$B$17:$K$19,9)))","v":""},{"$f":"IF('Project Scope'!$C9=\"\",\"\",IF(COUNTIF('CBAT Lookups'!$B$5:$B$12,\"Fixtures-\"&CBAT!$D9)=1,VLOOKUP(\"Fixtures-\"&CBAT!$D9,'CBAT Lookups'!$B$5:$K$12,10),0)*VLOOKUP($F9,'CBAT Lookups'!$B$17:$K$19,10))","v":""},{"$f":"IF('Project Scope'!$C9=\"\",\"\",IF(COUNTIF('CBAT Lookups'!$B$5:$B$12,\"Fixtures-\"&CBAT!$D9)=1,VLOOKUP(\"Fixtures-\"&CBAT!$D9,'CBAT Lookups'!$B$5:$O$12,12),0))","v":""},{"$f":"IF('Project Scope'!$C9=\"\",\"\",IF(COUNTIF('CBAT Lookups'!$B$5:$B$12,\"Fixtures-\"&CBAT!$D9)=1,VLOOKUP(\"Fixtures-\"&CBAT!$D9,'CBAT Lookups'!$B$5:$O$12,13),0))","v":""},{"$f":"IF('Project Scope'!$C9=\"\",\"\",IF(COUNTIF('CBAT Lookups'!$B$5:$B$12,\"Fixtures-\"&CBAT!$D9)=1,VLOOKUP(\"Fixtures-\"&CBAT!$D9,'CBAT Lookups'!$B$5:$O$12,14),0))","v":""},{"$f":"IF('Project Scope'!$C9=\"\",\"\",'TRM Data'!$U$3)","v":""},{"$f":"IF('Project Scope'!$C9=\"\",\"\",'TRM Data'!$V$3)","v":""},{"$f":"IF('Project Scope'!$C9=\"\",\"\",IF($J9<=0,0,MAX(0,(($G9*$H9/1000)-($I9*$J9/1000))*$L9)*$U9)+($AF9/0.003412))","v":""},{"$f":"IF('Project Scope'!$C9=\"\",\"\",IF($J9<=0,0,MAX(0,(($G9*$H9/1000)-($I9*$J9/1000)))*$T9))","v":""},{"$f":"IF('Project Scope'!$C9=\"\",\"\",IF($J9<=0,0,MAX(0,(($G9*$H9/1000)-($I9*$J9/1000))*$N9)))","v":""},{"$f":"IF('Project Scope'!$C9=\"\",\"\",IF($J9<=0,0,MAX(0,(($G9*$H9/1000)-($I9*$J9/1000))*$O9)*$T9))","v":""},{"$f":"IF('Project Scope'!$C9=\"\",\"\",IF(OR($J9<=0,'Project Information'!$D$44=\"\"),0,-1*MAX(0,(($G9*$H9/1000)-($I9*$J9/1000))*$L9)*$V9*VLOOKUP('Project Information'!$D$44,'CBAT Lookups'!$A$23:$H$30,2)))","v":""},{"$f":"IF('Project Scope'!$C9=\"\",\"\",IF(OR($J9<=0,'Project Information'!$D$44=\"\"),0,-1*MAX(0,(($G9*$H9/1000)-($I9*$J9/1000))*$L9)*$V9*VLOOKUP('Project Information'!$D$44,'CBAT Lookups'!$A$23:$H$30,3)))","v":""},{"$f":"IF('Project Scope'!$C9=\"\",\"\",IF(OR($J9<=0,'Project Information'!$D$44=\"\"),0,-1*MAX(0,(($G9*$H9/1000)-($I9*$J9/1000))*$L9)*$V9*VLOOKUP('Project Information'!$D$44,'CBAT Lookups'!$A$23:$H$30,4)))","v":""},{"$f":"IF('Project Scope'!$C9=\"\",\"\",IF(OR($J9<=0,'Project Information'!$D$44=\"\"),0,-1*MAX(0,(($G9*$H9/1000)-($I9*$J9/1000))*$L9)*$V9*VLOOKUP('Project Information'!$D$44,'CBAT Lookups'!$A$23:$H$30,5)))","v":""},{"$f":"IF('Project Scope'!$C9=\"\",\"\",IF(OR($J9<=0,'Project Information'!$D$44=\"\"),0,-1*MAX(0,(($G9*$H9/1000)-($I9*$J9/1000))*$L9)*$V9*VLOOKUP('Project Information'!$D$44,'CBAT Lookups'!$A$23:$H$30,6)))","v":""},{"$f":"IF('Project Scope'!$C9=\"\",\"\",IF(OR($J9<=0,'Project Information'!$D$44=\"\"),0,-1*MAX(0,(($G9*$H9/1000)-($I9*$J9/1000))*$L9)*$V9*VLOOKUP('Project Information'!$D$44,'CBAT Lookups'!$A$23:$H$30,7)))","v":""},{"$f":"IF('Project Scope'!$C9=\"\",\"\",IF(OR($J9<=0,'Project Information'!$D$44=\"\"),0,-1*MAX(0,(($G9*$H9/1000)-($I9*$J9/1000))*$L9)*$V9*VLOOKUP('Project Information'!$D$44,'CBAT Lookups'!$A$23:$H$30,8)))","v":""},0,{"$f":"IF('Project Scope'!$C9=\"\",\"\",VLOOKUP($F9,'CBAT Lookups'!$B$17:$K$19,4))","v":""},{"$f":"IF('Project Scope'!$C9=\"\",\"\",VLOOKUP($F9,'CBAT Lookups'!$B$17:$K$19,5))","v":""},{"$f":"IF('Project Scope'!$C9=\"\",\"\",VLOOKUP($F9,'CBAT Lookups'!$B$17:$K$19,6))","v":""},{"$f":"IF('Project Scope'!$C9=\"\",\"\",VLOOKUP($F9,'CBAT Lookups'!$B$17:$K$19,7))","v":""},{"$f":"IF('Project Scope'!$C9=\"\",\"\",IF(SUMPRODUCT($P9:$S9,$AN9:$AQ9)=0,0,P9*AN9/SUMPRODUCT($P9:$S9,$AN9:$AQ9)))","v":""},{"$f":"IF('Project Scope'!$C9=\"\",\"\",IF(SUMPRODUCT($P9:$S9,$AN9:$AQ9)=0,0,Q9*AO9/SUMPRODUCT($P9:$S9,$AN9:$AQ9)))","v":""},{"$f":"IF('Project Scope'!$C9=\"\",\"\",IF(SUMPRODUCT($P9:$S9,$AN9:$AQ9)=0,0,R9*AP9/SUMPRODUCT($P9:$S9,$AN9:$AQ9)))","v":""},{"$f":"IF('Project Scope'!$C9=\"\",\"\",IF(SUMPRODUCT($P9:$S9,$AN9:$AQ9)=0,0,S9*AQ9/SUMPRODUCT($P9:$S9,$AN9:$AQ9)))","v":""},{"$f":"IF('Project Scope'!$C9=\"\",\"\",Benefits($AB9,$AD9,$AE9,$AG9,$AH9,$AI9,$AJ9,$AK9,$AL9,$AM9,$M9,$AR9,$AS9,$AT9,$AU9,$W9,$X9,$Y9,$Z9,$AA9,$E9))","v":""},"","","","","","","","",null,{"$f":"IF('Project Scope'!$C9=\"\",\"\",SUM('Project Scope'!$AT9,'Project Scope'!$AU9))","v":""},{"$f":"IF('Project Scope'!$C9=\"\",\"\",SUM('Project Scope'!$BG9, 'Project Scope'!$AR9,(IF(ISNUMBER('Project Scope'!$AS9),'Project Scope'!$AS9,0)*'Project Information'!$D$12)))","v":""},null,null,{"$f":"IF('Project Scope'!$C9=\"\",\"\",IF(COUNTIF('CBAT Lookups'!$B$5:$B$12,\"Controls-\"&CBAT!$D9)=1,VLOOKUP(\"Controls-\"&CBAT!$D9,'CBAT Lookups'!$B$5:$L$12,11),0))","v":""},{"$f":"IF('Project Scope'!$C9=\"\",\"\",IF(COUNTIF('CBAT Lookups'!$B$5:$B$12,\"Controls-\"&CBAT!$D9)=1,VLOOKUP(\"Controls-\"&CBAT!$D9,'CBAT Lookups'!$B$5:$K$12,2),0)*VLOOKUP($F9,'CBAT Lookups'!$B$17:$K$19,2))","v":""},{"$f":"IF('Project Scope'!$C9=\"\",\"\",IF(COUNTIF('CBAT Lookups'!$B$5:$B$12,\"Controls-\"&CBAT!$D9)=1,VLOOKUP(\"Controls-\"&CBAT!$D9,'CBAT Lookups'!$B$5:$K$12,3),0)*VLOOKUP($F9,'CBAT Lookups'!$B$17:$K$19,3))","v":""},{"$f":"IF('Project Scope'!$C9=\"\",\"\",IF(COUNTIF('CBAT Lookups'!$B$5:$B$12,\"Controls-\"&CBAT!$D9)=1,VLOOKUP(\"Controls-\"&CBAT!$D9,'CBAT Lookups'!$B$5:$K$12,4),0))","v":""},{"$f":"IF('Project Scope'!$C9=\"\",\"\",IF(COUNTIF('CBAT Lookups'!$B$5:$B$12,\"Controls-\"&CBAT!$D9)=1,VLOOKUP(\"Controls-\"&CBAT!$D9,'CBAT Lookups'!$B$5:$K$12,5),0))","v":""},{"$f":"IF('Project Scope'!$C9=\"\",\"\",IF(COUNTIF('CBAT Lookups'!$B$5:$B$12,\"Controls-\"&CBAT!$D9)=1,VLOOKUP(\"Controls-\"&CBAT!$D9,'CBAT Lookups'!$B$5:$K$12,6),0))","v":""},{"$f":"IF('Project Scope'!$C9=\"\",\"\",IF(COUNTIF('CBAT Lookups'!$B$5:$B$12,\"Controls-\"&CBAT!$D9)=1,VLOOKUP(\"Controls-\"&CBAT!$D9,'CBAT Lookups'!$B$5:$K$12,7),0))","v":""},{"$f":"IF('Project Scope'!$C9=\"\",\"\",IF(VLOOKUP($F9,'CBAT Lookups'!$B$17:$K$19,8)=\"W\",1,IF(COUNTIF('CBAT Lookups'!$B$5:$B$12,\"Controls-\"&CBAT!$D9)=1,VLOOKUP(\"Controls-\"&CBAT!$D9,'CBAT Lookups'!$B$5:$K$12,8),0)*VLOOKUP($F9,'CBAT Lookups'!$B$17:$K$19,8)))","v":""},{"$f":"IF('Project Scope'!$C9=\"\",\"\",IF(VLOOKUP($F9,'CBAT Lookups'!$B$17:$K$19,9)=\"W\",1,IF(COUNTIF('CBAT Lookups'!$B$5:$B$12,\"Controls-\"&CBAT!$D9)=1,VLOOKUP(\"Controls-\"&CBAT!$D9,'CBAT Lookups'!$B$5:$K$12,9),0)*VLOOKUP($F9,'CBAT Lookups'!$B$17:$K$19,9)))","v":""},{"$f":"IF('Project Scope'!$C9=\"\",\"\",IF(COUNTIF('CBAT Lookups'!$B$5:$B$12,\"Controls-\"&CBAT!$D9)=1,VLOOKUP(\"Controls-\"&CBAT!$D9,'CBAT Lookups'!$B$5:$K$12,10),0)*VLOOKUP($F9,'CBAT Lookups'!$B$17:$K$19,10))","v":""},{"$f":"IF('Project Scope'!$C9=\"\",\"\",VLOOKUP($C9,'CBAT Lookups'!$A$33:$B$57,2))","v":""},{"$f":"IF('Project Scope'!$C9=\"\",\"\",IF(COUNTIF('CBAT Lookups'!$B$5:$B$12,\"Controls-\"&CBAT!$D9)=1,VLOOKUP(\"Controls-\"&CBAT!$D9,'CBAT Lookups'!$B$5:$O$12,12),0))","v":""},{"$f":"IF('Project Scope'!$C9=\"\",\"\",IF(COUNTIF('CBAT Lookups'!$B$5:$B$12,\"Controls-\"&CBAT!$D9)=1,VLOOKUP(\"Controls-\"&CBAT!$D9,'CBAT Lookups'!$B$5:$O$12,13),0))","v":""},{"$f":"IF('Project Scope'!$C9=\"\",\"\",IF(COUNTIF('CBAT Lookups'!$B$5:$B$12,\"Controls-\"&CBAT!$D9)=1,VLOOKUP(\"Controls-\"&CBAT!$D9,'CBAT Lookups'!$B$5:$O$12,14),0))","v":""},{"$f":"IF('Project Scope'!$C9=\"\",\"\",'TRM Data'!$U$3)","v":""},{"$f":"IF('Project Scope'!$C9=\"\",\"\",'TRM Data'!$V$3)","v":""},{"$f":"IF('Project Scope'!$C9=\"\",\"\",IF($K9<=0,0,MAX(0,(IF(AND($I9>0,$J9>0),($I9*$J9)/1000,($G9*$H9)/1000)*$L9))*$BT9*$BR9)+($CD9/0.003412))","v":""},{"$f":"IF('Project Scope'!$C9=\"\",\"\",IF($K9<=0,0,MAX(0,IF(AND($I9>0,$J9>0),($I9*$J9)/1000,($G9*$H9)/1000))*$BQ9))","v":""},{"$f":"IF('Project Scope'!$C9=\"\",\"\",IF($K9<=0,0,MAX(0,IF(AND($I9>0,$J9>0),($I9*$J9)/1000,($G9*$H9)/1000))*$BK9))","v":""},{"$f":"IF('Project Scope'!$C9=\"\",\"\",IF($K9<=0,0,MAX(0,IF(AND($I9>0,$J9>0),($I9*$J9)/1000,($G9*$H9)/1000))*$BL9*$BQ9))","v":""},{"$f":"IF('Project Scope'!$C9=\"\",\"\",IF(OR($K9<=0,'Project Information'!$D$44=\"\"),0,-1*MAX(0,IF(AND($I9>0,$J9>0),($I9*$J9)/1000,($G9*$H9)/1000))*$BT9*$L9*$BS9*VLOOKUP('Project Information'!$D$44,'CBAT Lookups'!$A$23:$H$30,2)))","v":""},{"$f":"IF('Project Scope'!$C9=\"\",\"\",IF(OR($K9<=0,'Project Information'!$D$44=\"\"),0,-1*MAX(0,IF(AND($I9>0,$J9>0),($I9*$J9)/1000,($G9*$H9)/1000))*$BT9*$L9*$BS9*VLOOKUP('Project Information'!$D$44,'CBAT Lookups'!$A$23:$H$30,3)))","v":""},{"$f":"IF('Project Scope'!$C9=\"\",\"\",IF(OR($K9<=0,'Project Information'!$D$44=\"\"),0,-1*MAX(0,IF(AND($I9>0,$J9>0),($I9*$J9)/1000,($G9*$H9)/1000))*$BT9*$L9*$BS9*VLOOKUP('Project Information'!$D$44,'CBAT Lookups'!$A$23:$H$30,4)))","v":""},{"$f":"IF('Project Scope'!$C9=\"\",\"\",IF(OR($K9<=0,'Project Information'!$D$44=\"\"),0,-1*MAX(0,IF(AND($I9>0,$J9>0),($I9*$J9)/1000,($G9*$H9)/1000))*$BT9*$L9*$BS9*VLOOKUP('Project Information'!$D$44,'CBAT Lookups'!$A$23:$H$30,5)))","v":""},{"$f":"IF('Project Scope'!$C9=\"\",\"\",IF(OR($K9<=0,'Project Information'!$D$44=\"\"),0,-1*MAX(0,IF(AND($I9>0,$J9>0),($I9*$J9)/1000,($G9*$H9)/1000))*$BT9*$L9*$BS9*VLOOKUP('Project Information'!$D$44,'CBAT Lookups'!$A$23:$H$30,6)))","v":""},{"$f":"IF('Project Scope'!$C9=\"\",\"\",IF(OR($K9<=0,'Project Information'!$D$44=\"\"),0,-1*MAX(0,IF(AND($I9>0,$J9>0),($I9*$J9)/1000,($G9*$H9)/1000))*$BT9*$L9*$BS9*VLOOKUP('Project Information'!$D$44,'CBAT Lookups'!$A$23:$H$30,7)))","v":""},{"$f":"IF('Project Scope'!$C9=\"\",\"\",IF(OR($K9<=0,'Project Information'!$D$44=\"\"),0,-1*MAX(0,IF(AND($I9>0,$J9>0),($I9*$J9)/1000,($G9*$H9)/1000))*$BT9*$L9*$BS9*VLOOKUP('Project Information'!$D$44,'CBAT Lookups'!$A$23:$H$30,8)))","v":""},null,{"$f":"IF('Project Scope'!$C9=\"\",\"\",VLOOKUP($F9,'CBAT Lookups'!$B$17:$K$19,4))","v":""},{"$f":"IF('Project Scope'!$C9=\"\",\"\",VLOOKUP($F9,'CBAT Lookups'!$B$17:$K$19,5))","v":""},{"$f":"IF('Project Scope'!$C9=\"\",\"\",VLOOKUP($F9,'CBAT Lookups'!$B$17:$K$19,6))","v":""},{"$f":"IF('Project Scope'!$C9=\"\",\"\",VLOOKUP($F9,'CBAT Lookups'!$B$17:$K$19,7))","v":""},{"$f":"IF('Project Scope'!$C9=\"\",\"\",IF(SUMPRODUCT($BM9:$BP9,$CL9:$CO9)=0,0,BM9*CL9/SUMPRODUCT($BM9:$BP9,$CL9:$CO9)))","v":""},{"$f":"IF('Project Scope'!$C9=\"\",\"\",IF(SUMPRODUCT($BM9:$BP9,$CL9:$CO9)=0,0,BN9*CM9/SUMPRODUCT($BM9:$BP9,$CL9:$CO9)))","v":""},{"$f":"IF('Project Scope'!$C9=\"\",\"\",IF(SUMPRODUCT($BM9:$BP9,$CL9:$CO9)=0,0,BO9*CN9/SUMPRODUCT($BM9:$BP9,$CL9:$CO9)))","v":""},{"$f":"IF('Project Scope'!$C9=\"\",\"\",IF(SUMPRODUCT($BM9:$BP9,$CL9:$CO9)=0,0,BP9*CO9/SUMPRODUCT($BM9:$BP9,$CL9:$CO9)))","v":""},{"$f":"IF('Project Scope'!$C9=\"\",\"\",Benefits($BZ9,$CB9,$CC9,$CE9,$CF9,$CG9,$CH9,$CI9,$CJ9,$CK9,$BJ9,$CP9,$CQ9,$CR9,$CS9,$BU9,$BV9,$BW9,$BX9,$BY9,$E9))","v":""},"","","","","","","","",null,{"$f":"IF('Project Scope'!$C9=\"\",\"\",SUM('Project Scope'!$BB9,'Project Scope'!$BC9))","v":""},{"$f":"IF('Project Scope'!$C9=\"\",\"\",SUM('Project Scope'!$BH9, 'Project Scope'!$AZ9,(IF(ISNUMBER('Project Scope'!$BA9),'Project Scope'!$BA9,0)*'Project Information'!$D$12)))","v":""},null,null,{"$f":"IF('Project Scope'!$C9=\"\",\"\",IF($J9<=0,0,(SUMPRODUCT($AV9:$BC9,--($AV9:$BC9>0))+$BE9)*$DK9/((-SUMPRODUCT($AV9:$BC9,--($AV9:$BC9<0))+$BG9+$BH9+$BI9)*$DK9)))","v":""},{"$f":"IF('Project Scope'!$C9=\"\",\"\",IF($K9<=0,0,(SUMPRODUCT($CT9:$DA9,--($CT9:$DA9>0))+$DC9)*$DK9/((-SUMPRODUCT($CT9:$DA9,--($CT9:$DA9<0))+$DE9+$DF9+$DG9)*$DK9)))","v":""},{"$f":"IF('Project Scope'!$C9=\"\",\"\",IF(AND($J9<=0,$K9<=0),0,(SUMPRODUCT($AV9:$BC9,--($AV9:$BC9>0))+$BE9+SUMPRODUCT($CT9:$DA9,--($CT9:$DA9>0))+$DC9)*$DK9/((-SUMPRODUCT($AV9:$BC9,--($AV9:$BC9<0))+$BG9+$BH9+$BI9-SUMPRODUCT($CT9:$DA9,--($CT9:$DA9<0))+$DE9+$DF9+$DG9)*$DK9)))","v":""},{"$f":"IF('Project Scope'!$C9=\"\",\"\",IF(NetOrGross=\"Net\",(1-Z9+AA9),1))","v":""}]
[{"$f":"'Project Scope'!$B10","v":3},{"$f":"IF('Project Scope'!$C10=\"\",\"\",'Project Scope'!$C10)","v":""},{"$f":"IF('Project Scope'!$C10=\"\",\"\",'Project Scope'!$H10)","v":""},{"$f":"IF(ISNUMBER(SEARCH(\"Bay\",'Project Scope'!$Q10)),\"Bay\",IF('Project Scope'!C10=\"\",\"\",'Project Scope'!E10))","v":""},{"$f":"IF('Project Scope'!$C10=\"\",\"\",\"Com\")","v":""},{"$f":"IF('Project Scope'!$C10=\"\",\"\",'Project Scope'!$L10)","v":""},{"$f":"IF('Project Scope'!$C10=\"\",\"\",IF('Project Scope'!$CJ10=\"\",0,'Project Scope'!$CJ10))","v":""},{"$f":"IF('Project Scope'!$C10=\"\",\"\",IF('Project Scope'!$N10=\"\",0,'Project Scope'!$N10))","v":""},{"$f":"IF('Project Scope'!$C10=\"\",\"\",IF('Project Scope'!$CK10=\"\",0,'Project Scope'!$CK10))","v":""},{"$f":"IF('Project Scope'!$C10=\"\",\"\",IF('Project Scope'!$AO10=\"\",0,'Project Scope'!$AO10))","v":""},{"$f":"IF('Project Scope'!$C10=\"\",\"\",IF('Project Scope'!$AX10=\"\",0,'Project Scope'!$AX10))","v":""},{"$f":"IF('Project Scope'!$C10=\"\",\"\",IF('Project Scope'!$M10=\"\",0,'Project Scope'!$M10))","v":""},{"$f":"IF('Project Scope'!$C10=\"\",\"\",IF(COUNTIF('CBAT Lookups'!$B$5:$B$12,\"Fixtures-\"&CBAT!$D10)=1,VLOOKUP(\"Fixtures-\"&CBAT!$D10,'CBAT Lookups'!$B$5:$L$12,11),0))","v":""},{"$f":"IF('Project Scope'!$C10=\"\",\"\",(IF(COUNTIF('CBAT Lookups'!$B$5:$B$12,\"Fixtures-\"&CBAT!$D10)=1,VLOOKUP(\"Fixtures-\"&CBAT!$D10,'CBAT Lookups'!$B$5:$K$12,2),0))*VLOOKUP($F10,'CBAT Lookups'!$B$17:$K$19,2))","v":""},{"$f":"IF('Project Scope'!$C10=\"\",\"\",(IF(COUNTIF('CBAT Lookups'!$B$5:$B$12,\"Fixtures-\"&CBAT!$D10)=1,VLOOKUP(\"Fixtures-\"&CBAT!$D10,'CBAT Lookups'!$B$5:$K$12,3),0))*VLOOKUP($F10,'CBAT Lookups'!$B$17:$K$19,3))","v":""},{"$f":"IF('Project Scope'!$C10=\"\",\"\",(IF(COUNTIF('CBAT Lookups'!$B$5:$B$12,\"Fixtures-\"&CBAT!$D10)=1,VLOOKUP(\"Fixtures-\"&CBAT!$D10,'CBAT Lookups'!$B$5:$K$12,4),0)))","v":""},{"$f":"IF('Project Scope'!$C10=\"\",\"\",(IF(COUNTIF('CBAT Lookups'!$B$5:$B$12,\"Fixtures-\"&CBAT!$D10)=1,VLOOKUP(\"Fixtures-\"&CBAT!$D10,'CBAT Lookups'!$B$5:$K$12,5),0)))","v":""},{"$f":"IF('Project Scope'!$C10=\"\",\"\",(IF(COUNTIF('CBAT Lookups'!$B$5:$B$12,\"Fixtures-\"&CBAT!$D10)=1,VLOOKUP(\"Fixtures-\"&CBAT!$D10,'CBAT Lookups'!$B$5:$K$12,6),0)))","v":""},{"$f":"IF('Project Scope'!$C10=\"\",\"\",IF(COUNTIF('CBAT Lookups'!$B$5:$B$12,\"Fixtures-\"&CBAT!$D10)=1,VLOOKUP(\"Fixtures-\"&CBAT!$D10,'CBAT Lookups'!$B$5:$K$12,7),0))","v":""},{"$f":"IF('Project Scope'!$C10=\"\",\"\",IF(VLOOKUP($F10,'CBAT Lookups'!$B$17:$K$19,8)=\"W\",1,IF(COUNTIF('CBAT Lookups'!$B$5:$B$12,\"Fixtures-\"&CBAT!$D10)=1,VLOOKUP(\"Fixtures-\"&CBAT!$D10,'CBAT Lookups'!$B$5:$K$12,8),0)*VLOOKUP($F10,'CBAT Lookups'!$B$17:$K$19,8)))","v":""},{"$f":"IF('Project Scope'!$C10=\"\",\"\",IF(VLOOKUP($F10,'CBAT Lookups'!$B$17:$K$19,9)=\"W\",1,IF(COUNTIF('CBAT Lookups'!$B$5:$B$12,\"Fixtures-\"&CBAT!$D10)=1,VLOOKUP(\"Fixtures-\"&CBAT!$D10,'CBAT Lookups'!$B$5:$K$12,9),0)*VLOOKUP($F10,'CBAT Lookups'!$B$17:$K$19,9)))","v":""},{"$f":"IF('Project Scope'!$C10=\"\",\"\",IF(COUNTIF('CBAT Lookups'!$B$5:$B$12,\"Fixtures-\"&CBAT!$D10)=1,VLOOKUP(\"Fixtures-\"&CBAT!$D10,'CBAT Lookups'!$B$5:$K$12,10),0)*VLOOKUP($F10,'CBAT Lookups'!$B$17:$K$19,10))","v":""},{"$f":"IF('Project Scope'!$C10=\"\",\"\",IF(COUNTIF('CBAT Lookups'!$B$5:$B$12,\"Fixtures-\"&CBAT!$D10)=1,VLOOKUP(\"Fixtures-\"&CBAT!$D10,'CBAT Lookups'!$B$5:$O$12,12),0))","v":""},{"$f":"IF('Project Scope'!$C10=\"\",\"\",IF(COUNTIF('CBAT Lookups'!$B$5:$B$12,\"Fixtures-\"&CBAT!$D10)=1,VLOOKUP(\"Fixtures-\"&CBAT!$D10,'CBAT Lookups'!$B$5:$O$12,13),0))","v":""},{"$f":"IF('Project Scope'!$C10=\"\",\"\",IF(COUNTIF('CBAT Lookups'!$B$5:$B$12,\"Fixtures-\"&CBAT!$D10)=1,VLOOKUP(\"Fixtures-\"&CBAT!$D10,'CBAT Lookups'!$B$5:$O$12,14),0))","v":""},{"$f":"IF('Project Scope'!$C10=\"\",\"\",'TRM Data'!$U$3)","v":""},{"$f":"IF('Project Scope'!$C10=\"\",\"\",'TRM Data'!$V$3)","v":""},{"$f":"IF('Project Scope'!$C10=\"\",\"\",IF($J10<=0,0,MAX(0,(($G10*$H10/1000)-($I10*$J10/1000))*$L10)*$U10)+($AF10/0.003412))","v":""},{"$f":"IF('Project Scope'!$C10=\"\",\"\",IF($J10<=0,0,MAX(0,(($G10*$H10/1000)-($I10*$J10/1000)))*$T10))","v":""},{"$f":"IF('Project Scope'!$C10=\"\",\"\",IF($J10<=0,0,MAX(0,(($G10*$H10/1000)-($I10*$J10/1000))*$N10)))","v":""},{"$f":"IF('Project Scope'!$C10=\"\",\"\",IF($J10<=0,0,MAX(0,(($G10*$H10/1000)-($I10*$J10/1000))*$O10)*$T10))","v":""},{"$f":"IF('Project Scope'!$C10=\"\",\"\",IF(OR($J10<=0,'Project Information'!$D$44=\"\"),0,-1*MAX(0,(($G10*$H10/1000)-($I10*$J10/1000))*$L10)*$V10*VLOOKUP('Project Information'!$D$44,'CBAT Lookups'!$A$23:$H$30,2)))","v":""},{"$f":"IF('Project Scope'!$C10=\"\",\"\",IF(OR($J10<=0,'Project Information'!$D$44=\"\"),0,-1*MAX(0,(($G10*$H10/1000)-($I10*$J10/1000))*$L10)*$V10*VLOOKUP('Project Information'!$D$44,'CBAT Lookups'!$A$23:$H$30,3)))","v":""},{"$f":"IF('Project Scope'!$C10=\"\",\"\",IF(OR($J10<=0,'Project Information'!$D$44=\"\"),0,-1*MAX(0,(($G10*$H10/1000)-($I10*$J10/1000))*$L10)*$V10*VLOOKUP('Project Information'!$D$44,'CBAT Lookups'!$A$23:$H$30,4)))","v":""},{"$f":"IF('Project Scope'!$C10=\"\",\"\",IF(OR($J10<=0,'Project Information'!$D$44=\"\"),0,-1*MAX(0,(($G10*$H10/1000)-($I10*$J10/1000))*$L10)*$V10*VLOOKUP('Project Information'!$D$44,'CBAT Lookups'!$A$23:$H$30,5)))","v":""},{"$f":"IF('Project Scope'!$C10=\"\",\"\",IF(OR($J10<=0,'Project Information'!$D$44=\"\"),0,-1*MAX(0,(($G10*$H10/1000)-($I10*$J10/1000))*$L10)*$V10*VLOOKUP('Project Information'!$D$44,'CBAT Lookups'!$A$23:$H$30,6)))","v":""},{"$f":"IF('Project Scope'!$C10=\"\",\"\",IF(OR($J10<=0,'Project Information'!$D$44=\"\"),0,-1*MAX(0,(($G10*$H10/1000)-($I10*$J10/1000))*$L10)*$V10*VLOOKUP('Project Information'!$D$44,'CBAT Lookups'!$A$23:$H$30,7)))","v":""},{"$f":"IF('Project Scope'!$C10=\"\",\"\",IF(OR($J10<=0,'Project Information'!$D$44=\"\"),0,-1*MAX(0,(($G10*$H10/1000)-($I10*$J10/1000))*$L10)*$V10*VLOOKUP('Project Information'!$D$44,'CBAT Lookups'!$A$23:$H$30,8)))","v":""},null,{"$f":"IF('Project Scope'!$C10=\"\",\"\",VLOOKUP($F10,'CBAT Lookups'!$B$17:$K$19,4))","v":""},{"$f":"IF('Project Scope'!$C10=\"\",\"\",VLOOKUP($F10,'CBAT Lookups'!$B$17:$K$19,5))","v":""},{"$f":"IF('Project Scope'!$C10=\"\",\"\",VLOOKUP($F10,'CBAT Lookups'!$B$17:$K$19,6))","v":""},{"$f":"IF('Project Scope'!$C10=\"\",\"\",VLOOKUP($F10,'CBAT Lookups'!$B$17:$K$19,7))","v":""},{"$f":"IF('Project Scope'!$C10=\"\",\"\",IF(SUMPRODUCT($P10:$S10,$AN10:$AQ10)=0,0,P10*AN10/SUMPRODUCT($P10:$S10,$AN10:$AQ10)))","v":""},{"$f":"IF('Project Scope'!$C10=\"\",\"\",IF(SUMPRODUCT($P10:$S10,$AN10:$AQ10)=0,0,Q10*AO10/SUMPRODUCT($P10:$S10,$AN10:$AQ10)))","v":""},{"$f":"IF('Project Scope'!$C10=\"\",\"\",IF(SUMPRODUCT($P10:$S10,$AN10:$AQ10)=0,0,R10*AP10/SUMPRODUCT($P10:$S10,$AN10:$AQ10)))","v":""},{"$f":"IF('Project Scope'!$C10=\"\",\"\",IF(SUMPRODUCT($P10:$S10,$AN10:$AQ10)=0,0,S10*AQ10/SUMPRODUCT($P10:$S10,$AN10:$AQ10)))","v":""},{"$f":"IF('Project Scope'!$C10=\"\",\"\",Benefits($AB10,$AD10,$AE10,$AG10,$AH10,$AI10,$AJ10,$AK10,$AL10,$AM10,$M10,$AR10,$AS10,$AT10,$AU10,$W10,$X10,$Y10,$Z10,$AA10,$E10))","v":""},"","","","","","","","",null,{"$f":"IF('Project Scope'!$C10=\"\",\"\",SUM('Project Scope'!$AT10,'Project Scope'!$AU10))","v":""},{"$f":"IF('Project Scope'!$C10=\"\",\"\",SUM('Project Scope'!$BG10, 'Project Scope'!$AR10,(IF(ISNUMBER('Project Scope'!$AS10),'Project Scope'!$AS10,0)*'Project Information'!$D$12)))","v":""},null,null,{"$f":"IF('Project Scope'!$C10=\"\",\"\",IF(COUNTIF('CBAT Lookups'!$B$5:$B$12,\"Controls-\"&CBAT!$D10)=1,VLOOKUP(\"Controls-\"&CBAT!$D10,'CBAT Lookups'!$B$5:$L$12,11),0))","v":""},{"$f":"IF('Project Scope'!$C10=\"\",\"\",IF(COUNTIF('CBAT Lookups'!$B$5:$B$12,\"Controls-\"&CBAT!$D10)=1,VLOOKUP(\"Controls-\"&CBAT!$D10,'CBAT Lookups'!$B$5:$K$12,2),0)*VLOOKUP($F10,'CBAT Lookups'!$B$17:$K$19,2))","v":""},{"$f":"IF('Project Scope'!$C10=\"\",\"\",IF(COUNTIF('CBAT Lookups'!$B$5:$B$12,\"Controls-\"&CBAT!$D10)=1,VLOOKUP(\"Controls-\"&CBAT!$D10,'CBAT Lookups'!$B$5:$K$12,3),0)*VLOOKUP($F10,'CBAT Lookups'!$B$17:$K$19,3))","v":""},{"$f":"IF('Project Scope'!$C10=\"\",\"\",IF(COUNTIF('CBAT Lookups'!$B$5:$B$12,\"Controls-\"&CBAT!$D10)=1,VLOOKUP(\"Controls-\"&CBAT!$D10,'CBAT Lookups'!$B$5:$K$12,4),0))","v":""},{"$f":"IF('Project Scope'!$C10=\"\",\"\",IF(COUNTIF('CBAT Lookups'!$B$5:$B$12,\"Controls-\"&CBAT!$D10)=1,VLOOKUP(\"Controls-\"&CBAT!$D10,'CBAT Lookups'!$B$5:$K$12,5),0))","v":""},{"$f":"IF('Project Scope'!$C10=\"\",\"\",IF(COUNTIF('CBAT Lookups'!$B$5:$B$12,\"Controls-\"&CBAT!$D10)=1,VLOOKUP(\"Controls-\"&CBAT!$D10,'CBAT Lookups'!$B$5:$K$12,6),0))","v":""},{"$f":"IF('Project Scope'!$C10=\"\",\"\",IF(COUNTIF('CBAT Lookups'!$B$5:$B$12,\"Controls-\"&CBAT!$D10)=1,VLOOKUP(\"Controls-\"&CBAT!$D10,'CBAT Lookups'!$B$5:$K$12,7),0))","v":""},{"$f":"IF('Project Scope'!$C10=\"\",\"\",IF(VLOOKUP($F10,'CBAT Lookups'!$B$17:$K$19,8)=\"W\",1,IF(COUNTIF('CBAT Lookups'!$B$5:$B$12,\"Controls-\"&CBAT!$D10)=1,VLOOKUP(\"Controls-\"&CBAT!$D10,'CBAT Lookups'!$B$5:$K$12,8),0)*VLOOKUP($F10,'CBAT Lookups'!$B$17:$K$19,8)))","v":""},{"$f":"IF('Project Scope'!$C10=\"\",\"\",IF(VLOOKUP($F10,'CBAT Lookups'!$B$17:$K$19,9)=\"W\",1,IF(COUNTIF('CBAT Lookups'!$B$5:$B$12,\"Controls-\"&CBAT!$D10)=1,VLOOKUP(\"Controls-\"&CBAT!$D10,'CBAT Lookups'!$B$5:$K$12,9),0)*VLOOKUP($F10,'CBAT Lookups'!$B$17:$K$19,9)))","v":""},{"$f":"IF('Project Scope'!$C10=\"\",\"\",IF(COUNTIF('CBAT Lookups'!$B$5:$B$12,\"Controls-\"&CBAT!$D10)=1,VLOOKUP(\"Controls-\"&CBAT!$D10,'CBAT Lookups'!$B$5:$K$12,10),0)*VLOOKUP($F10,'CBAT Lookups'!$B$17:$K$19,10))","v":""},{"$f":"IF('Project Scope'!$C10=\"\",\"\",VLOOKUP($C10,'CBAT Lookups'!$A$33:$B$57,2))","v":""},{"$f":"IF('Project Scope'!$C10=\"\",\"\",IF(COUNTIF('CBAT Lookups'!$B$5:$B$12,\"Controls-\"&CBAT!$D10)=1,VLOOKUP(\"Controls-\"&CBAT!$D10,'CBAT Lookups'!$B$5:$O$12,12),0))","v":""},{"$f":"IF('Project Scope'!$C10=\"\",\"\",IF(COUNTIF('CBAT Lookups'!$B$5:$B$12,\"Controls-\"&CBAT!$D10)=1,VLOOKUP(\"Controls-\"&CBAT!$D10,'CBAT Lookups'!$B$5:$O$12,13),0))","v":""},{"$f":"IF('Project Scope'!$C10=\"\",\"\",IF(COUNTIF('CBAT Lookups'!$B$5:$B$12,\"Controls-\"&CBAT!$D10)=1,VLOOKUP(\"Controls-\"&CBAT!$D10,'CBAT Lookups'!$B$5:$O$12,14),0))","v":""},{"$f":"IF('Project Scope'!$C10=\"\",\"\",'TRM Data'!$U$3)","v":""},{"$f":"IF('Project Scope'!$C10=\"\",\"\",'TRM Data'!$V$3)","v":""},{"$f":"IF('Project Scope'!$C10=\"\",\"\",IF($K10<=0,0,MAX(0,(IF(AND($I10>0,$J10>0),($I10*$J10)/1000,($G10*$H10)/1000)*$L10))*$BT10*$BR10)+($CD10/0.003412))","v":""},{"$f":"IF('Project Scope'!$C10=\"\",\"\",IF($K10<=0,0,MAX(0,IF(AND($I10>0,$J10>0),($I10*$J10)/1000,($G10*$H10)/1000))*$BQ10))","v":""},{"$f":"IF('Project Scope'!$C10=\"\",\"\",IF($K10<=0,0,MAX(0,IF(AND($I10>0,$J10>0),($I10*$J10)/1000,($G10*$H10)/1000))*$BK10))","v":""},{"$f":"IF('Project Scope'!$C10=\"\",\"\",IF($K10<=0,0,MAX(0,IF(AND($I10>0,$J10>0),($I10*$J10)/1000,($G10*$H10)/1000))*$BL10*$BQ10))","v":""},{"$f":"IF('Project Scope'!$C10=\"\",\"\",IF(OR($K10<=0,'Project Information'!$D$44=\"\"),0,-1*MAX(0,IF(AND($I10>0,$J10>0),($I10*$J10)/1000,($G10*$H10)/1000))*$BT10*$L10*$BS10*VLOOKUP('Project Information'!$D$44,'CBAT Lookups'!$A$23:$H$30,2)))","v":""},{"$f":"IF('Project Scope'!$C10=\"\",\"\",IF(OR($K10<=0,'Project Information'!$D$44=\"\"),0,-1*MAX(0,IF(AND($I10>0,$J10>0),($I10*$J10)/1000,($G10*$H10)/1000))*$BT10*$L10*$BS10*VLOOKUP('Project Information'!$D$44,'CBAT Lookups'!$A$23:$H$30,3)))","v":""},{"$f":"IF('Project Scope'!$C10=\"\",\"\",IF(OR($K10<=0,'Project Information'!$D$44=\"\"),0,-1*MAX(0,IF(AND($I10>0,$J10>0),($I10*$J10)/1000,($G10*$H10)/1000))*$BT10*$L10*$BS10*VLOOKUP('Project Information'!$D$44,'CBAT Lookups'!$A$23:$H$30,4)))","v":""},{"$f":"IF('Project Scope'!$C10=\"\",\"\",IF(OR($K10<=0,'Project Information'!$D$44=\"\"),0,-1*MAX(0,IF(AND($I10>0,$J10>0),($I10*$J10)/1000,($G10*$H10)/1000))*$BT10*$L10*$BS10*VLOOKUP('Project Information'!$D$44,'CBAT Lookups'!$A$23:$H$30,5)))","v":""},{"$f":"IF('Project Scope'!$C10=\"\",\"\",IF(OR($K10<=0,'Project Information'!$D$44=\"\"),0,-1*MAX(0,IF(AND($I10>0,$J10>0),($I10*$J10)/1000,($G10*$H10)/1000))*$BT10*$L10*$BS10*VLOOKUP('Project Information'!$D$44,'CBAT Lookups'!$A$23:$H$30,6)))","v":""},{"$f":"IF('Project Scope'!$C10=\"\",\"\",IF(OR($K10<=0,'Project Information'!$D$44=\"\"),0,-1*MAX(0,IF(AND($I10>0,$J10>0),($I10*$J10)/1000,($G10*$H10)/1000))*$BT10*$L10*$BS10*VLOOKUP('Project Information'!$D$44,'CBAT Lookups'!$A$23:$H$30,7)))","v":""},{"$f":"IF('Project Scope'!$C10=\"\",\"\",IF(OR($K10<=0,'Project Information'!$D$44=\"\"),0,-1*MAX(0,IF(AND($I10>0,$J10>0),($I10*$J10)/1000,($G10*$H10)/1000))*$BT10*$L10*$BS10*VLOOKUP('Project Information'!$D$44,'CBAT Lookups'!$A$23:$H$30,8)))","v":""},null,{"$f":"IF('Project Scope'!$C10=\"\",\"\",VLOOKUP($F10,'CBAT Lookups'!$B$17:$K$19,4))","v":""},{"$f":"IF('Project Scope'!$C10=\"\",\"\",VLOOKUP($F10,'CBAT Lookups'!$B$17:$K$19,5))","v":""},{"$f":"IF('Project Scope'!$C10=\"\",\"\",VLOOKUP($F10,'CBAT Lookups'!$B$17:$K$19,6))","v":""},{"$f":"IF('Project Scope'!$C10=\"\",\"\",VLOOKUP($F10,'CBAT Lookups'!$B$17:$K$19,7))","v":""},{"$f":"IF('Project Scope'!$C10=\"\",\"\",IF(SUMPRODUCT($BM10:$BP10,$CL10:$CO10)=0,0,BM10*CL10/SUMPRODUCT($BM10:$BP10,$CL10:$CO10)))","v":""},{"$f":"IF('Project Scope'!$C10=\"\",\"\",IF(SUMPRODUCT($BM10:$BP10,$CL10:$CO10)=0,0,BN10*CM10/SUMPRODUCT($BM10:$BP10,$CL10:$CO10)))","v":""},{"$f":"IF('Project Scope'!$C10=\"\",\"\",IF(SUMPRODUCT($BM10:$BP10,$CL10:$CO10)=0,0,BO10*CN10/SUMPRODUCT($BM10:$BP10,$CL10:$CO10)))","v":""},{"$f":"IF('Project Scope'!$C10=\"\",\"\",IF(SUMPRODUCT($BM10:$BP10,$CL10:$CO10)=0,0,BP10*CO10/SUMPRODUCT($BM10:$BP10,$CL10:$CO10)))","v":""},{"$f":"IF('Project Scope'!$C10=\"\",\"\",Benefits($BZ10,$CB10,$CC10,$CE10,$CF10,$CG10,$CH10,$CI10,$CJ10,$CK10,$BJ10,$CP10,$CQ10,$CR10,$CS10,$BU10,$BV10,$BW10,$BX10,$BY10,$E10))","v":""},"","","","","","","","",null,{"$f":"IF('Project Scope'!$C10=\"\",\"\",SUM('Project Scope'!$BB10,'Project Scope'!$BC10))","v":""},{"$f":"IF('Project Scope'!$C10=\"\",\"\",SUM('Project Scope'!$BH10, 'Project Scope'!$AZ10,(IF(ISNUMBER('Project Scope'!$BA10),'Project Scope'!$BA10,0)*'Project Information'!$D$12)))","v":""},null,null,{"$f":"IF('Project Scope'!$C10=\"\",\"\",IF($J10<=0,0,(SUMPRODUCT($AV10:$BC10,--($AV10:$BC10>0))+$BE10)*$DK10/((-SUMPRODUCT($AV10:$BC10,--($AV10:$BC10<0))+$BG10+$BH10+$BI10)*$DK10)))","v":""},{"$f":"IF('Project Scope'!$C10=\"\",\"\",IF($K10<=0,0,(SUMPRODUCT($CT10:$DA10,--($CT10:$DA10>0))+$DC10)*$DK10/((-SUMPRODUCT($CT10:$DA10,--($CT10:$DA10<0))+$DE10+$DF10+$DG10)*$DK10)))","v":""},{"$f":"IF('Project Scope'!$C10=\"\",\"\",IF(AND($J10<=0,$K10<=0),0,(SUMPRODUCT($AV10:$BC10,--($AV10:$BC10>0))+$BE10+SUMPRODUCT($CT10:$DA10,--($CT10:$DA10>0))+$DC10)*$DK10/((-SUMPRODUCT($AV10:$BC10,--($AV10:$BC10<0))+$BG10+$BH10+$BI10-SUMPRODUCT($CT10:$DA10,--($CT10:$DA10<0))+$DE10+$DF10+$DG10)*$DK10)))","v":""},{"$f":"IF('Project Scope'!$C10=\"\",\"\",IF(NetOrGross=\"Net\",(1-Z10+AA10),1))","v":""}]
[{"$f":"'Project Scope'!$B11","v":4},{"$f":"IF('Project Scope'!$C11=\"\",\"\",'Project Scope'!$C11)","v":""},{"$f":"IF('Project Scope'!$C11=\"\",\"\",'Project Scope'!$H11)","v":""},{"$f":"IF(ISNUMBER(SEARCH(\"Bay\",'Project Scope'!$Q11)),\"Bay\",IF('Project Scope'!C11=\"\",\"\",'Project Scope'!E11))","v":""},{"$f":"IF('Project Scope'!$C11=\"\",\"\",\"Com\")","v":""},{"$f":"IF('Project Scope'!$C11=\"\",\"\",'Project Scope'!$L11)","v":""},{"$f":"IF('Project Scope'!$C11=\"\",\"\",IF('Project Scope'!$CJ11=\"\",0,'Project Scope'!$CJ11))","v":""},{"$f":"IF('Project Scope'!$C11=\"\",\"\",IF('Project Scope'!$N11=\"\",0,'Project Scope'!$N11))","v":""},{"$f":"IF('Project Scope'!$C11=\"\",\"\",IF('Project Scope'!$CK11=\"\",0,'Project Scope'!$CK11))","v":""},{"$f":"IF('Project Scope'!$C11=\"\",\"\",IF('Project Scope'!$AO11=\"\",0,'Project Scope'!$AO11))","v":""},{"$f":"IF('Project Scope'!$C11=\"\",\"\",IF('Project Scope'!$AX11=\"\",0,'Project Scope'!$AX11))","v":""},{"$f":"IF('Project Scope'!$C11=\"\",\"\",IF('Project Scope'!$M11=\"\",0,'Project Scope'!$M11))","v":""},{"$f":"IF('Project Scope'!$C11=\"\",\"\",IF(COUNTIF('CBAT Lookups'!$B$5:$B$12,\"Fixtures-\"&CBAT!$D11)=1,VLOOKUP(\"Fixtures-\"&CBAT!$D11,'CBAT Lookups'!$B$5:$L$12,11),0))","v":""},{"$f":"IF('Project Scope'!$C11=\"\",\"\",(IF(COUNTIF('CBAT Lookups'!$B$5:$B$12,\"Fixtures-\"&CBAT!$D11)=1,VLOOKUP(\"Fixtures-\"&CBAT!$D11,'CBAT Lookups'!$B$5:$K$12,2),0))*VLOOKUP($F11,'CBAT Lookups'!$B$17:$K$19,2))","v":""},{"$f":"IF('Project Scope'!$C11=\"\",\"\",(IF(COUNTIF('CBAT Lookups'!$B$5:$B$12,\"Fixtures-\"&CBAT!$D11)=1,VLOOKUP(\"Fixtures-\"&CBAT!$D11,'CBAT Lookups'!$B$5:$K$12,3),0))*VLOOKUP($F11,'CBAT Lookups'!$B$17:$K$19,3))","v":""},{"$f":"IF('Project Scope'!$C11=\"\",\"\",(IF(COUNTIF('CBAT Lookups'!$B$5:$B$12,\"Fixtures-\"&CBAT!$D11)=1,VLOOKUP(\"Fixtures-\"&CBAT!$D11,'CBAT Lookups'!$B$5:$K$12,4),0)))","v":""},{"$f":"IF('Project Scope'!$C11=\"\",\"\",(IF(COUNTIF('CBAT Lookups'!$B$5:$B$12,\"Fixtures-\"&CBAT!$D11)=1,VLOOKUP(\"Fixtures-\"&CBAT!$D11,'CBAT Lookups'!$B$5:$K$12,5),0)))","v":""},{"$f":"IF('Project Scope'!$C11=\"\",\"\",(IF(COUNTIF('CBAT Lookups'!$B$5:$B$12,\"Fixtures-\"&CBAT!$D11)=1,VLOOKUP(\"Fixtures-\"&CBAT!$D11,'CBAT Lookups'!$B$5:$K$12,6),0)))","v":""},{"$f":"IF('Project Scope'!$C11=\"\",\"\",IF(COUNTIF('CBAT Lookups'!$B$5:$B$12,\"Fixtures-\"&CBAT!$D11)=1,VLOOKUP(\"Fixtures-\"&CBAT!$D11,'CBAT Lookups'!$B$5:$K$12,7),0))","v":""},{"$f":"IF('Project Scope'!$C11=\"\",\"\",IF(VLOOKUP($F11,'CBAT Lookups'!$B$17:$K$19,8)=\"W\",1,IF(COUNTIF('CBAT Lookups'!$B$5:$B$12,\"Fixtures-\"&CBAT!$D11)=1,VLOOKUP(\"Fixtures-\"&CBAT!$D11,'CBAT Lookups'!$B$5:$K$12,8),0)*VLOOKUP($F11,'CBAT Lookups'!$B$17:$K$19,8)))","v":""},{"$f":"IF('Project Scope'!$C11=\"\",\"\",IF(VLOOKUP($F11,'CBAT Lookups'!$B$17:$K$19,9)=\"W\",1,IF(COUNTIF('CBAT Lookups'!$B$5:$B$12,\"Fixtures-\"&CBAT!$D11)=1,VLOOKUP(\"Fixtures-\"&CBAT!$D11,'CBAT Lookups'!$B$5:$K$12,9),0)*VLOOKUP($F11,'CBAT Lookups'!$B$17:$K$19,9)))","v":""},{"$f":"IF('Project Scope'!$C11=\"\",\"\",IF(COUNTIF('CBAT Lookups'!$B$5:$B$12,\"Fixtures-\"&CBAT!$D11)=1,VLOOKUP(\"Fixtures-\"&CBAT!$D11,'CBAT Lookups'!$B$5:$K$12,10),0)*VLOOKUP($F11,'CBAT Lookups'!$B$17:$K$19,10))","v":""},{"$f":"IF('Project Scope'!$C11=\"\",\"\",IF(COUNTIF('CBAT Lookups'!$B$5:$B$12,\"Fixtures-\"&CBAT!$D11)=1,VLOOKUP(\"Fixtures-\"&CBAT!$D11,'CBAT Lookups'!$B$5:$O$12,12),0))","v":""},{"$f":"IF('Project Scope'!$C11=\"\",\"\",IF(COUNTIF('CBAT Lookups'!$B$5:$B$12,\"Fixtures-\"&CBAT!$D11)=1,VLOOKUP(\"Fixtures-\"&CBAT!$D11,'CBAT Lookups'!$B$5:$O$12,13),0))","v":""},{"$f":"IF('Project Scope'!$C11=\"\",\"\",IF(COUNTIF('CBAT Lookups'!$B$5:$B$12,\"Fixtures-\"&CBAT!$D11)=1,VLOOKUP(\"Fixtures-\"&CBAT!$D11,'CBAT Lookups'!$B$5:$O$12,14),0))","v":""},{"$f":"IF('Project Scope'!$C11=\"\",\"\",'TRM Data'!$U$3)","v":""},{"$f":"IF('Project Scope'!$C11=\"\",\"\",'TRM Data'!$V$3)","v":""},{"$f":"IF('Project Scope'!$C11=\"\",\"\",IF($J11<=0,0,MAX(0,(($G11*$H11/1000)-($I11*$J11/1000))*$L11)*$U11)+($AF11/0.003412))","v":""},{"$f":"IF('Project Scope'!$C11=\"\",\"\",IF($J11<=0,0,MAX(0,(($G11*$H11/1000)-($I11*$J11/1000)))*$T11))","v":""},{"$f":"IF('Project Scope'!$C11=\"\",\"\",IF($J11<=0,0,MAX(0,(($G11*$H11/1000)-($I11*$J11/1000))*$N11)))","v":""},{"$f":"IF('Project Scope'!$C11=\"\",\"\",IF($J11<=0,0,MAX(0,(($G11*$H11/1000)-($I11*$J11/1000))*$O11)*$T11))","v":""},{"$f":"IF('Project Scope'!$C11=\"\",\"\",IF(OR($J11<=0,'Project Information'!$D$44=\"\"),0,-1*MAX(0,(($G11*$H11/1000)-($I11*$J11/1000))*$L11)*$V11*VLOOKUP('Project Information'!$D$44,'CBAT Lookups'!$A$23:$H$30,2)))","v":""},{"$f":"IF('Project Scope'!$C11=\"\",\"\",IF(OR($J11<=0,'Project Information'!$D$44=\"\"),0,-1*MAX(0,(($G11*$H11/1000)-($I11*$J11/1000))*$L11)*$V11*VLOOKUP('Project Information'!$D$44,'CBAT Lookups'!$A$23:$H$30,3)))","v":""},{"$f":"IF('Project Scope'!$C11=\"\",\"\",IF(OR($J11<=0,'Project Information'!$D$44=\"\"),0,-1*MAX(0,(($G11*$H11/1000)-($I11*$J11/1000))*$L11)*$V11*VLOOKUP('Project Information'!$D$44,'CBAT Lookups'!$A$23:$H$30,4)))","v":""},{"$f":"IF('Project Scope'!$C11=\"\",\"\",IF(OR($J11<=0,'Project Information'!$D$44=\"\"),0,-1*MAX(0,(($G11*$H11/1000)-($I11*$J11/1000))*$L11)*$V11*VLOOKUP('Project Information'!$D$44,'CBAT Lookups'!$A$23:$H$30,5)))","v":""},{"$f":"IF('Project Scope'!$C11=\"\",\"\",IF(OR($J11<=0,'Project Information'!$D$44=\"\"),0,-1*MAX(0,(($G11*$H11/1000)-($I11*$J11/1000))*$L11)*$V11*VLOOKUP('Project Information'!$D$44,'CBAT Lookups'!$A$23:$H$30,6)))","v":""},{"$f":"IF('Project Scope'!$C11=\"\",\"\",IF(OR($J11<=0,'Project Information'!$D$44=\"\"),0,-1*MAX(0,(($G11*$H11/1000)-($I11*$J11/1000))*$L11)*$V11*VLOOKUP('Project Information'!$D$44,'CBAT Lookups'!$A$23:$H$30,7)))","v":""},{"$f":"IF('Project Scope'!$C11=\"\",\"\",IF(OR($J11<=0,'Project Information'!$D$44=\"\"),0,-1*MAX(0,(($G11*$H11/1000)-($I11*$J11/1000))*$L11)*$V11*VLOOKUP('Project Information'!$D$44,'CBAT Lookups'!$A$23:$H$30,8)))","v":""},null,{"$f":"IF('Project Scope'!$C11=\"\",\"\",VLOOKUP($F11,'CBAT Lookups'!$B$17:$K$19,4))","v":""},{"$f":"IF('Project Scope'!$C11=\"\",\"\",VLOOKUP($F11,'CBAT Lookups'!$B$17:$K$19,5))","v":""},{"$f":"IF('Project Scope'!$C11=\"\",\"\",VLOOKUP($F11,'CBAT Lookups'!$B$17:$K$19,6))","v":""},{"$f":"IF('Project Scope'!$C11=\"\",\"\",VLOOKUP($F11,'CBAT Lookups'!$B$17:$K$19,7))","v":""},{"$f":"IF('Project Scope'!$C11=\"\",\"\",IF(SUMPRODUCT($P11:$S11,$AN11:$AQ11)=0,0,P11*AN11/SUMPRODUCT($P11:$S11,$AN11:$AQ11)))","v":""},{"$f":"IF('Project Scope'!$C11=\"\",\"\",IF(SUMPRODUCT($P11:$S11,$AN11:$AQ11)=0,0,Q11*AO11/SUMPRODUCT($P11:$S11,$AN11:$AQ11)))","v":""},{"$f":"IF('Project Scope'!$C11=\"\",\"\",IF(SUMPRODUCT($P11:$S11,$AN11:$AQ11)=0,0,R11*AP11/SUMPRODUCT($P11:$S11,$AN11:$AQ11)))","v":""},{"$f":"IF('Project Scope'!$C11=\"\",\"\",IF(SUMPRODUCT($P11:$S11,$AN11:$AQ11)=0,0,S11*AQ11/SUMPRODUCT($P11:$S11,$AN11:$AQ11)))","v":""},{"$f":"IF('Project Scope'!$C11=\"\",\"\",Benefits($AB11,$AD11,$AE11,$AG11,$AH11,$AI11,$AJ11,$AK11,$AL11,$AM11,$M11,$AR11,$AS11,$AT11,$AU11,$W11,$X11,$Y11,$Z11,$AA11,$E11))","v":""},"","","","","","","","",null,{"$f":"IF('Project Scope'!$C11=\"\",\"\",SUM('Project Scope'!$AT11,'Project Scope'!$AU11))","v":""},{"$f":"IF('Project Scope'!$C11=\"\",\"\",SUM('Project Scope'!$BG11, 'Project Scope'!$AR11,(IF(ISNUMBER('Project Scope'!$AS11),'Project Scope'!$AS11,0)*'Project Information'!$D$12)))","v":""},null,null,{"$f":"IF('Project Scope'!$C11=\"\",\"\",IF(COUNTIF('CBAT Lookups'!$B$5:$B$12,\"Controls-\"&CBAT!$D11)=1,VLOOKUP(\"Controls-\"&CBAT!$D11,'CBAT Lookups'!$B$5:$L$12,11),0))","v":""},{"$f":"IF('Project Scope'!$C11=\"\",\"\",IF(COUNTIF('CBAT Lookups'!$B$5:$B$12,\"Controls-\"&CBAT!$D11)=1,VLOOKUP(\"Controls-\"&CBAT!$D11,'CBAT Lookups'!$B$5:$K$12,2),0)*VLOOKUP($F11,'CBAT Lookups'!$B$17:$K$19,2))","v":""},{"$f":"IF('Project Scope'!$C11=\"\",\"\",IF(COUNTIF('CBAT Lookups'!$B$5:$B$12,\"Controls-\"&CBAT!$D11)=1,VLOOKUP(\"Controls-\"&CBAT!$D11,'CBAT Lookups'!$B$5:$K$12,3),0)*VLOOKUP($F11,'CBAT Lookups'!$B$17:$K$19,3))","v":""},{"$f":"IF('Project Scope'!$C11=\"\",\"\",IF(COUNTIF('CBAT Lookups'!$B$5:$B$12,\"Controls-\"&CBAT!$D11)=1,VLOOKUP(\"Controls-\"&CBAT!$D11,'CBAT Lookups'!$B$5:$K$12,4),0))","v":""},{"$f":"IF('Project Scope'!$C11=\"\",\"\",IF(COUNTIF('CBAT Lookups'!$B$5:$B$12,\"Controls-\"&CBAT!$D11)=1,VLOOKUP(\"Controls-\"&CBAT!$D11,'CBAT Lookups'!$B$5:$K$12,5),0))","v":""},{"$f":"IF('Project Scope'!$C11=\"\",\"\",IF(COUNTIF('CBAT Lookups'!$B$5:$B$12,\"Controls-\"&CBAT!$D11)=1,VLOOKUP(\"Controls-\"&CBAT!$D11,'CBAT Lookups'!$B$5:$K$12,6),0))","v":""},{"$f":"IF('Project Scope'!$C11=\"\",\"\",IF(COUNTIF('CBAT Lookups'!$B$5:$B$12,\"Controls-\"&CBAT!$D11)=1,VLOOKUP(\"Controls-\"&CBAT!$D11,'CBAT Lookups'!$B$5:$K$12,7),0))","v":""},{"$f":"IF('Project Scope'!$C11=\"\",\"\",IF(VLOOKUP($F11,'CBAT Lookups'!$B$17:$K$19,8)=\"W\",1,IF(COUNTIF('CBAT Lookups'!$B$5:$B$12,\"Controls-\"&CBAT!$D11)=1,VLOOKUP(\"Controls-\"&CBAT!$D11,'CBAT Lookups'!$B$5:$K$12,8),0)*VLOOKUP($F11,'CBAT Lookups'!$B$17:$K$19,8)))","v":""},{"$f":"IF('Project Scope'!$C11=\"\",\"\",IF(VLOOKUP($F11,'CBAT Lookups'!$B$17:$K$19,9)=\"W\",1,IF(COUNTIF('CBAT Lookups'!$B$5:$B$12,\"Controls-\"&CBAT!$D11)=1,VLOOKUP(\"Controls-\"&CBAT!$D11,'CBAT Lookups'!$B$5:$K$12,9),0)*VLOOKUP($F11,'CBAT Lookups'!$B$17:$K$19,9)))","v":""},{"$f":"IF('Project Scope'!$C11=\"\",\"\",IF(COUNTIF('CBAT Lookups'!$B$5:$B$12,\"Controls-\"&CBAT!$D11)=1,VLOOKUP(\"Controls-\"&CBAT!$D11,'CBAT Lookups'!$B$5:$K$12,10),0)*VLOOKUP($F11,'CBAT Lookups'!$B$17:$K$19,10))","v":""},{"$f":"IF('Project Scope'!$C11=\"\",\"\",VLOOKUP($C11,'CBAT Lookups'!$A$33:$B$57,2))","v":""},{"$f":"IF('Project Scope'!$C11=\"\",\"\",IF(COUNTIF('CBAT Lookups'!$B$5:$B$12,\"Controls-\"&CBAT!$D11)=1,VLOOKUP(\"Controls-\"&CBAT!$D11,'CBAT Lookups'!$B$5:$O$12,12),0))","v":""},{"$f":"IF('Project Scope'!$C11=\"\",\"\",IF(COUNTIF('CBAT Lookups'!$B$5:$B$12,\"Controls-\"&CBAT!$D11)=1,VLOOKUP(\"Controls-\"&CBAT!$D11,'CBAT Lookups'!$B$5:$O$12,13),0))","v":""},{"$f":"IF('Project Scope'!$C11=\"\",\"\",IF(COUNTIF('CBAT Lookups'!$B$5:$B$12,\"Controls-\"&CBAT!$D11)=1,VLOOKUP(\"Controls-\"&CBAT!$D11,'CBAT Lookups'!$B$5:$O$12,14),0))","v":""},{"$f":"IF('Project Scope'!$C11=\"\",\"\",'TRM Data'!$U$3)","v":""},{"$f":"IF('Project Scope'!$C11=\"\",\"\",'TRM Data'!$V$3)","v":""},{"$f":"IF('Project Scope'!$C11=\"\",\"\",IF($K11<=0,0,MAX(0,(IF(AND($I11>0,$J11>0),($I11*$J11)/1000,($G11*$H11)/1000)*$L11))*$BT11*$BR11)+($CD11/0.003412))","v":""},{"$f":"IF('Project Scope'!$C11=\"\",\"\",IF($K11<=0,0,MAX(0,IF(AND($I11>0,$J11>0),($I11*$J11)/1000,($G11*$H11)/1000))*$BQ11))","v":""},{"$f":"IF('Project Scope'!$C11=\"\",\"\",IF($K11<=0,0,MAX(0,IF(AND($I11>0,$J11>0),($I11*$J11)/1000,($G11*$H11)/1000))*$BK11))","v":""},{"$f":"IF('Project Scope'!$C11=\"\",\"\",IF($K11<=0,0,MAX(0,IF(AND($I11>0,$J11>0),($I11*$J11)/1000,($G11*$H11)/1000))*$BL11*$BQ11))","v":""},{"$f":"IF('Project Scope'!$C11=\"\",\"\",IF(OR($K11<=0,'Project Information'!$D$44=\"\"),0,-1*MAX(0,IF(AND($I11>0,$J11>0),($I11*$J11)/1000,($G11*$H11)/1000))*$BT11*$L11*$BS11*VLOOKUP('Project Information'!$D$44,'CBAT Lookups'!$A$23:$H$30,2)))","v":""},{"$f":"IF('Project Scope'!$C11=\"\",\"\",IF(OR($K11<=0,'Project Information'!$D$44=\"\"),0,-1*MAX(0,IF(AND($I11>0,$J11>0),($I11*$J11)/1000,($G11*$H11)/1000))*$BT11*$L11*$BS11*VLOOKUP('Project Information'!$D$44,'CBAT Lookups'!$A$23:$H$30,3)))","v":""},{"$f":"IF('Project Scope'!$C11=\"\",\"\",IF(OR($K11<=0,'Project Information'!$D$44=\"\"),0,-1*MAX(0,IF(AND($I11>0,$J11>0),($I11*$J11)/1000,($G11*$H11)/1000))*$BT11*$L11*$BS11*VLOOKUP('Project Information'!$D$44,'CBAT Lookups'!$A$23:$H$30,4)))","v":""},{"$f":"IF('Project Scope'!$C11=\"\",\"\",IF(OR($K11<=0,'Project Information'!$D$44=\"\"),0,-1*MAX(0,IF(AND($I11>0,$J11>0),($I11*$J11)/1000,($G11*$H11)/1000))*$BT11*$L11*$BS11*VLOOKUP('Project Information'!$D$44,'CBAT Lookups'!$A$23:$H$30,5)))","v":""},{"$f":"IF('Project Scope'!$C11=\"\",\"\",IF(OR($K11<=0,'Project Information'!$D$44=\"\"),0,-1*MAX(0,IF(AND($I11>0,$J11>0),($I11*$J11)/1000,($G11*$H11)/1000))*$BT11*$L11*$BS11*VLOOKUP('Project Information'!$D$44,'CBAT Lookups'!$A$23:$H$30,6)))","v":""},{"$f":"IF('Project Scope'!$C11=\"\",\"\",IF(OR($K11<=0,'Project Information'!$D$44=\"\"),0,-1*MAX(0,IF(AND($I11>0,$J11>0),($I11*$J11)/1000,($G11*$H11)/1000))*$BT11*$L11*$BS11*VLOOKUP('Project Information'!$D$44,'CBAT Lookups'!$A$23:$H$30,7)))","v":""},{"$f":"IF('Project Scope'!$C11=\"\",\"\",IF(OR($K11<=0,'Project Information'!$D$44=\"\"),0,-1*MAX(0,IF(AND($I11>0,$J11>0),($I11*$J11)/1000,($G11*$H11)/1000))*$BT11*$L11*$BS11*VLOOKUP('Project Information'!$D$44,'CBAT Lookups'!$A$23:$H$30,8)))","v":""},null,{"$f":"IF('Project Scope'!$C11=\"\",\"\",VLOOKUP($F11,'CBAT Lookups'!$B$17:$K$19,4))","v":""},{"$f":"IF('Project Scope'!$C11=\"\",\"\",VLOOKUP($F11,'CBAT Lookups'!$B$17:$K$19,5))","v":""},{"$f":"IF('Project Scope'!$C11=\"\",\"\",VLOOKUP($F11,'CBAT Lookups'!$B$17:$K$19,6))","v":""},{"$f":"IF('Project Scope'!$C11=\"\",\"\",VLOOKUP($F11,'CBAT Lookups'!$B$17:$K$19,7))","v":""},{"$f":"IF('Project Scope'!$C11=\"\",\"\",IF(SUMPRODUCT($BM11:$BP11,$CL11:$CO11)=0,0,BM11*CL11/SUMPRODUCT($BM11:$BP11,$CL11:$CO11)))","v":""},{"$f":"IF('Project Scope'!$C11=\"\",\"\",IF(SUMPRODUCT($BM11:$BP11,$CL11:$CO11)=0,0,BN11*CM11/SUMPRODUCT($BM11:$BP11,$CL11:$CO11)))","v":""},{"$f":"IF('Project Scope'!$C11=\"\",\"\",IF(SUMPRODUCT($BM11:$BP11,$CL11:$CO11)=0,0,BO11*CN11/SUMPRODUCT($BM11:$BP11,$CL11:$CO11)))","v":""},{"$f":"IF('Project Scope'!$C11=\"\",\"\",IF(SUMPRODUCT($BM11:$BP11,$CL11:$CO11)=0,0,BP11*CO11/SUMPRODUCT($BM11:$BP11,$CL11:$CO11)))","v":""},{"$f":"IF('Project Scope'!$C11=\"\",\"\",Benefits($BZ11,$CB11,$CC11,$CE11,$CF11,$CG11,$CH11,$CI11,$CJ11,$CK11,$BJ11,$CP11,$CQ11,$CR11,$CS11,$BU11,$BV11,$BW11,$BX11,$BY11,$E11))","v":""},"","","","","","","","",null,{"$f":"IF('Project Scope'!$C11=\"\",\"\",SUM('Project Scope'!$BB11,'Project Scope'!$BC11))","v":""},{"$f":"IF('Project Scope'!$C11=\"\",\"\",SUM('Project Scope'!$BH11, 'Project Scope'!$AZ11,(IF(ISNUMBER('Project Scope'!$BA11),'Project Scope'!$BA11,0)*'Project Information'!$D$12)))","v":""},null,null,{"$f":"IF('Project Scope'!$C11=\"\",\"\",IF($J11<=0,0,(SUMPRODUCT($AV11:$BC11,--($AV11:$BC11>0))+$BE11)*$DK11/((-SUMPRODUCT($AV11:$BC11,--($AV11:$BC11<0))+$BG11+$BH11+$BI11)*$DK11)))","v":""},{"$f":"IF('Project Scope'!$C11=\"\",\"\",IF($K11<=0,0,(SUMPRODUCT($CT11:$DA11,--($CT11:$DA11>0))+$DC11)*$DK11/((-SUMPRODUCT($CT11:$DA11,--($CT11:$DA11<0))+$DE11+$DF11+$DG11)*$DK11)))","v":""},{"$f":"IF('Project Scope'!$C11=\"\",\"\",IF(AND($J11<=0,$K11<=0),0,(SUMPRODUCT($AV11:$BC11,--($AV11:$BC11>0))+$BE11+SUMPRODUCT($CT11:$DA11,--($CT11:$DA11>0))+$DC11)*$DK11/((-SUMPRODUCT($AV11:$BC11,--($AV11:$BC11<0))+$BG11+$BH11+$BI11-SUMPRODUCT($CT11:$DA11,--($CT11:$DA11<0))+$DE11+$DF11+$DG11)*$DK11)))","v":""},{"$f":"IF('Project Scope'!$C11=\"\",\"\",IF(NetOrGross=\"Net\",(1-Z11+AA11),1))","v":""}]
[{"$f":"'Project Scope'!$B12","v":5},{"$f":"IF('Project Scope'!$C12=\"\",\"\",'Project Scope'!$C12)","v":""},{"$f":"IF('Project Scope'!$C12=\"\",\"\",'Project Scope'!$H12)","v":""},{"$f":"IF(ISNUMBER(SEARCH(\"Bay\",'Project Scope'!$Q12)),\"Bay\",IF('Project Scope'!C12=\"\",\"\",'Project Scope'!E12))","v":""},{"$f":"IF('Project Scope'!$C12=\"\",\"\",\"Com\")","v":""},{"$f":"IF('Project Scope'!$C12=\"\",\"\",'Project Scope'!$L12)","v":""},{"$f":"IF('Project Scope'!$C12=\"\",\"\",IF('Project Scope'!$CJ12=\"\",0,'Project Scope'!$CJ12))","v":""},{"$f":"IF('Project Scope'!$C12=\"\",\"\",IF('Project Scope'!$N12=\"\",0,'Project Scope'!$N12))","v":""},{"$f":"IF('Project Scope'!$C12=\"\",\"\",IF('Project Scope'!$CK12=\"\",0,'Project Scope'!$CK12))","v":""},{"$f":"IF('Project Scope'!$C12=\"\",\"\",IF('Project Scope'!$AO12=\"\",0,'Project Scope'!$AO12))","v":""},{"$f":"IF('Project Scope'!$C12=\"\",\"\",IF('Project Scope'!$AX12=\"\",0,'Project Scope'!$AX12))","v":""},{"$f":"IF('Project Scope'!$C12=\"\",\"\",IF('Project Scope'!$M12=\"\",0,'Project Scope'!$M12))","v":""},{"$f":"IF('Project Scope'!$C12=\"\",\"\",IF(COUNTIF('CBAT Lookups'!$B$5:$B$12,\"Fixtures-\"&CBAT!$D12)=1,VLOOKUP(\"Fixtures-\"&CBAT!$D12,'CBAT Lookups'!$B$5:$L$12,11),0))","v":""},{"$f":"IF('Project Scope'!$C12=\"\",\"\",(IF(COUNTIF('CBAT Lookups'!$B$5:$B$12,\"Fixtures-\"&CBAT!$D12)=1,VLOOKUP(\"Fixtures-\"&CBAT!$D12,'CBAT Lookups'!$B$5:$K$12,2),0))*VLOOKUP($F12,'CBAT Lookups'!$B$17:$K$19,2))","v":""},{"$f":"IF('Project Scope'!$C12=\"\",\"\",(IF(COUNTIF('CBAT Lookups'!$B$5:$B$12,\"Fixtures-\"&CBAT!$D12)=1,VLOOKUP(\"Fixtures-\"&CBAT!$D12,'CBAT Lookups'!$B$5:$K$12,3),0))*VLOOKUP($F12,'CBAT Lookups'!$B$17:$K$19,3))","v":""},{"$f":"IF('Project Scope'!$C12=\"\",\"\",(IF(COUNTIF('CBAT Lookups'!$B$5:$B$12,\"Fixtures-\"&CBAT!$D12)=1,VLOOKUP(\"Fixtures-\"&CBAT!$D12,'CBAT Lookups'!$B$5:$K$12,4),0)))","v":""},{"$f":"IF('Project Scope'!$C12=\"\",\"\",(IF(COUNTIF('CBAT Lookups'!$B$5:$B$12,\"Fixtures-\"&CBAT!$D12)=1,VLOOKUP(\"Fixtures-\"&CBAT!$D12,'CBAT Lookups'!$B$5:$K$12,5),0)))","v":""},{"$f":"IF('Project Scope'!$C12=\"\",\"\",(IF(COUNTIF('CBAT Lookups'!$B$5:$B$12,\"Fixtures-\"&CBAT!$D12)=1,VLOOKUP(\"Fixtures-\"&CBAT!$D12,'CBAT Lookups'!$B$5:$K$12,6),0)))","v":""},{"$f":"IF('Project Scope'!$C12=\"\",\"\",IF(COUNTIF('CBAT Lookups'!$B$5:$B$12,\"Fixtures-\"&CBAT!$D12)=1,VLOOKUP(\"Fixtures-\"&CBAT!$D12,'CBAT Lookups'!$B$5:$K$12,7),0))","v":""},{"$f":"IF('Project Scope'!$C12=\"\",\"\",IF(VLOOKUP($F12,'CBAT Lookups'!$B$17:$K$19,8)=\"W\",1,IF(COUNTIF('CBAT Lookups'!$B$5:$B$12,\"Fixtures-\"&CBAT!$D12)=1,VLOOKUP(\"Fixtures-\"&CBAT!$D12,'CBAT Lookups'!$B$5:$K$12,8),0)*VLOOKUP($F12,'CBAT Lookups'!$B$17:$K$19,8)))","v":""},{"$f":"IF('Project Scope'!$C12=\"\",\"\",IF(VLOOKUP($F12,'CBAT Lookups'!$B$17:$K$19,9)=\"W\",1,IF(COUNTIF('CBAT Lookups'!$B$5:$B$12,\"Fixtures-\"&CBAT!$D12)=1,VLOOKUP(\"Fixtures-\"&CBAT!$D12,'CBAT Lookups'!$B$5:$K$12,9),0)*VLOOKUP($F12,'CBAT Lookups'!$B$17:$K$19,9)))","v":""},{"$f":"IF('Project Scope'!$C12=\"\",\"\",IF(COUNTIF('CBAT Lookups'!$B$5:$B$12,\"Fixtures-\"&CBAT!$D12)=1,VLOOKUP(\"Fixtures-\"&CBAT!$D12,'CBAT Lookups'!$B$5:$K$12,10),0)*VLOOKUP($F12,'CBAT Lookups'!$B$17:$K$19,10))","v":""},{"$f":"IF('Project Scope'!$C12=\"\",\"\",IF(COUNTIF('CBAT Lookups'!$B$5:$B$12,\"Fixtures-\"&CBAT!$D12)=1,VLOOKUP(\"Fixtures-\"&CBAT!$D12,'CBAT Lookups'!$B$5:$O$12,12),0))","v":""},{"$f":"IF('Project Scope'!$C12=\"\",\"\",IF(COUNTIF('CBAT Lookups'!$B$5:$B$12,\"Fixtures-\"&CBAT!$D12)=1,VLOOKUP(\"Fixtures-\"&CBAT!$D12,'CBAT Lookups'!$B$5:$O$12,13),0))","v":""},{"$f":"IF('Project Scope'!$C12=\"\",\"\",IF(COUNTIF('CBAT Lookups'!$B$5:$B$12,\"Fixtures-\"&CBAT!$D12)=1,VLOOKUP(\"Fixtures-\"&CBAT!$D12,'CBAT Lookups'!$B$5:$O$12,14),0))","v":""},{"$f":"IF('Project Scope'!$C12=\"\",\"\",'TRM Data'!$U$3)","v":""},{"$f":"IF('Project Scope'!$C12=\"\",\"\",'TRM Data'!$V$3)","v":""},{"$f":"IF('Project Scope'!$C12=\"\",\"\",IF($J12<=0,0,MAX(0,(($G12*$H12/1000)-($I12*$J12/1000))*$L12)*$U12)+($AF12/0.003412))","v":""},{"$f":"IF('Project Scope'!$C12=\"\",\"\",IF($J12<=0,0,MAX(0,(($G12*$H12/1000)-($I12*$J12/1000)))*$T12))","v":""},{"$f":"IF('Project Scope'!$C12=\"\",\"\",IF($J12<=0,0,MAX(0,(($G12*$H12/1000)-($I12*$J12/1000))*$N12)))","v":""},{"$f":"IF('Project Scope'!$C12=\"\",\"\",IF($J12<=0,0,MAX(0,(($G12*$H12/1000)-($I12*$J12/1000))*$O12)*$T12))","v":""},{"$f":"IF('Project Scope'!$C12=\"\",\"\",IF(OR($J12<=0,'Project Information'!$D$44=\"\"),0,-1*MAX(0,(($G12*$H12/1000)-($I12*$J12/1000))*$L12)*$V12*VLOOKUP('Project Information'!$D$44,'CBAT Lookups'!$A$23:$H$30,2)))","v":""},{"$f":"IF('Project Scope'!$C12=\"\",\"\",IF(OR($J12<=0,'Project Information'!$D$44=\"\"),0,-1*MAX(0,(($G12*$H12/1000)-($I12*$J12/1000))*$L12)*$V12*VLOOKUP('Project Information'!$D$44,'CBAT Lookups'!$A$23:$H$30,3)))","v":""},{"$f":"IF('Project Scope'!$C12=\"\",\"\",IF(OR($J12<=0,'Project Information'!$D$44=\"\"),0,-1*MAX(0,(($G12*$H12/1000)-($I12*$J12/1000))*$L12)*$V12*VLOOKUP('Project Information'!$D$44,'CBAT Lookups'!$A$23:$H$30,4)))","v":""},{"$f":"IF('Project Scope'!$C12=\"\",\"\",IF(OR($J12<=0,'Project Information'!$D$44=\"\"),0,-1*MAX(0,(($G12*$H12/1000)-($I12*$J12/1000))*$L12)*$V12*VLOOKUP('Project Information'!$D$44,'CBAT Lookups'!$A$23:$H$30,5)))","v":""},{"$f":"IF('Project Scope'!$C12=\"\",\"\",IF(OR($J12<=0,'Project Information'!$D$44=\"\"),0,-1*MAX(0,(($G12*$H12/1000)-($I12*$J12/1000))*$L12)*$V12*VLOOKUP('Project Information'!$D$44,'CBAT Lookups'!$A$23:$H$30,6)))","v":""},{"$f":"IF('Project Scope'!$C12=\"\",\"\",IF(OR($J12<=0,'Project Information'!$D$44=\"\"),0,-1*MAX(0,(($G12*$H12/1000)-($I12*$J12/1000))*$L12)*$V12*VLOOKUP('Project Information'!$D$44,'CBAT Lookups'!$A$23:$H$30,7)))","v":""},{"$f":"IF('Project Scope'!$C12=\"\",\"\",IF(OR($J12<=0,'Project Information'!$D$44=\"\"),0,-1*MAX(0,(($G12*$H12/1000)-($I12*$J12/1000))*$L12)*$V12*VLOOKUP('Project Information'!$D$44,'CBAT Lookups'!$A$23:$H$30,8)))","v":""},null,{"$f":"IF('Project Scope'!$C12=\"\",\"\",VLOOKUP($F12,'CBAT Lookups'!$B$17:$K$19,4))","v":""},{"$f":"IF('Project Scope'!$C12=\"\",\"\",VLOOKUP($F12,'CBAT Lookups'!$B$17:$K$19,5))","v":""},{"$f":"IF('Project Scope'!$C12=\"\",\"\",VLOOKUP($F12,'CBAT Lookups'!$B$17:$K$19,6))","v":""},{"$f":"IF('Project Scope'!$C12=\"\",\"\",VLOOKUP($F12,'CBAT Lookups'!$B$17:$K$19,7))","v":""},{"$f":"IF('Project Scope'!$C12=\"\",\"\",IF(SUMPRODUCT($P12:$S12,$AN12:$AQ12)=0,0,P12*AN12/SUMPRODUCT($P12:$S12,$AN12:$AQ12)))","v":""},{"$f":"IF('Project Scope'!$C12=\"\",\"\",IF(SUMPRODUCT($P12:$S12,$AN12:$AQ12)=0,0,Q12*AO12/SUMPRODUCT($P12:$S12,$AN12:$AQ12)))","v":""},{"$f":"IF('Project Scope'!$C12=\"\",\"\",IF(SUMPRODUCT($P12:$S12,$AN12:$AQ12)=0,0,R12*AP12/SUMPRODUCT($P12:$S12,$AN12:$AQ12)))","v":""},{"$f":"IF('Project Scope'!$C12=\"\",\"\",IF(SUMPRODUCT($P12:$S12,$AN12:$AQ12)=0,0,S12*AQ12/SUMPRODUCT($P12:$S12,$AN12:$AQ12)))","v":""},{"$f":"IF('Project Scope'!$C12=\"\",\"\",Benefits($AB12,$AD12,$AE12,$AG12,$AH12,$AI12,$AJ12,$AK12,$AL12,$AM12,$M12,$AR12,$AS12,$AT12,$AU12,$W12,$X12,$Y12,$Z12,$AA12,$E12))","v":""},"","","","","","","","",null,{"$f":"IF('Project Scope'!$C12=\"\",\"\",SUM('Project Scope'!$AT12,'Project Scope'!$AU12))","v":""},{"$f":"IF('Project Scope'!$C12=\"\",\"\",SUM('Project Scope'!$BG12, 'Project Scope'!$AR12,(IF(ISNUMBER('Project Scope'!$AS12),'Project Scope'!$AS12,0)*'Project Information'!$D$12)))","v":""},null,null,{"$f":"IF('Project Scope'!$C12=\"\",\"\",IF(COUNTIF('CBAT Lookups'!$B$5:$B$12,\"Controls-\"&CBAT!$D12)=1,VLOOKUP(\"Controls-\"&CBAT!$D12,'CBAT Lookups'!$B$5:$L$12,11),0))","v":""},{"$f":"IF('Project Scope'!$C12=\"\",\"\",IF(COUNTIF('CBAT Lookups'!$B$5:$B$12,\"Controls-\"&CBAT!$D12)=1,VLOOKUP(\"Controls-\"&CBAT!$D12,'CBAT Lookups'!$B$5:$K$12,2),0)*VLOOKUP($F12,'CBAT Lookups'!$B$17:$K$19,2))","v":""},{"$f":"IF('Project Scope'!$C12=\"\",\"\",IF(COUNTIF('CBAT Lookups'!$B$5:$B$12,\"Controls-\"&CBAT!$D12)=1,VLOOKUP(\"Controls-\"&CBAT!$D12,'CBAT Lookups'!$B$5:$K$12,3),0)*VLOOKUP($F12,'CBAT Lookups'!$B$17:$K$19,3))","v":""},{"$f":"IF('Project Scope'!$C12=\"\",\"\",IF(COUNTIF('CBAT Lookups'!$B$5:$B$12,\"Controls-\"&CBAT!$D12)=1,VLOOKUP(\"Controls-\"&CBAT!$D12,'CBAT Lookups'!$B$5:$K$12,4),0))","v":""},{"$f":"IF('Project Scope'!$C12=\"\",\"\",IF(COUNTIF('CBAT Lookups'!$B$5:$B$12,\"Controls-\"&CBAT!$D12)=1,VLOOKUP(\"Controls-\"&CBAT!$D12,'CBAT Lookups'!$B$5:$K$12,5),0))","v":""},{"$f":"IF('Project Scope'!$C12=\"\",\"\",IF(COUNTIF('CBAT Lookups'!$B$5:$B$12,\"Controls-\"&CBAT!$D12)=1,VLOOKUP(\"Controls-\"&CBAT!$D12,'CBAT Lookups'!$B$5:$K$12,6),0))","v":""},{"$f":"IF('Project Scope'!$C12=\"\",\"\",IF(COUNTIF('CBAT Lookups'!$B$5:$B$12,\"Controls-\"&CBAT!$D12)=1,VLOOKUP(\"Controls-\"&CBAT!$D12,'CBAT Lookups'!$B$5:$K$12,7),0))","v":""},{"$f":"IF('Project Scope'!$C12=\"\",\"\",IF(VLOOKUP($F12,'CBAT Lookups'!$B$17:$K$19,8)=\"W\",1,IF(COUNTIF('CBAT Lookups'!$B$5:$B$12,\"Controls-\"&CBAT!$D12)=1,VLOOKUP(\"Controls-\"&CBAT!$D12,'CBAT Lookups'!$B$5:$K$12,8),0)*VLOOKUP($F12,'CBAT Lookups'!$B$17:$K$19,8)))","v":""},{"$f":"IF('Project Scope'!$C12=\"\",\"\",IF(VLOOKUP($F12,'CBAT Lookups'!$B$17:$K$19,9)=\"W\",1,IF(COUNTIF('CBAT Lookups'!$B$5:$B$12,\"Controls-\"&CBAT!$D12)=1,VLOOKUP(\"Controls-\"&CBAT!$D12,'CBAT Lookups'!$B$5:$K$12,9),0)*VLOOKUP($F12,'CBAT Lookups'!$B$17:$K$19,9)))","v":""},{"$f":"IF('Project Scope'!$C12=\"\",\"\",IF(COUNTIF('CBAT Lookups'!$B$5:$B$12,\"Controls-\"&CBAT!$D12)=1,VLOOKUP(\"Controls-\"&CBAT!$D12,'CBAT Lookups'!$B$5:$K$12,10),0)*VLOOKUP($F12,'CBAT Lookups'!$B$17:$K$19,10))","v":""},{"$f":"IF('Project Scope'!$C12=\"\",\"\",VLOOKUP($C12,'CBAT Lookups'!$A$33:$B$57,2))","v":""},{"$f":"IF('Project Scope'!$C12=\"\",\"\",IF(COUNTIF('CBAT Lookups'!$B$5:$B$12,\"Controls-\"&CBAT!$D12)=1,VLOOKUP(\"Controls-\"&CBAT!$D12,'CBAT Lookups'!$B$5:$O$12,12),0))","v":""},{"$f":"IF('Project Scope'!$C12=\"\",\"\",IF(COUNTIF('CBAT Lookups'!$B$5:$B$12,\"Controls-\"&CBAT!$D12)=1,VLOOKUP(\"Controls-\"&CBAT!$D12,'CBAT Lookups'!$B$5:$O$12,13),0))","v":""},{"$f":"IF('Project Scope'!$C12=\"\",\"\",IF(COUNTIF('CBAT Lookups'!$B$5:$B$12,\"Controls-\"&CBAT!$D12)=1,VLOOKUP(\"Controls-\"&CBAT!$D12,'CBAT Lookups'!$B$5:$O$12,14),0))","v":""},{"$f":"IF('Project Scope'!$C12=\"\",\"\",'TRM Data'!$U$3)","v":""},{"$f":"IF('Project Scope'!$C12=\"\",\"\",'TRM Data'!$V$3)","v":""},{"$f":"IF('Project Scope'!$C12=\"\",\"\",IF($K12<=0,0,MAX(0,(IF(AND($I12>0,$J12>0),($I12*$J12)/1000,($G12*$H12)/1000)*$L12))*$BT12*$BR12)+($CD12/0.003412))","v":""},{"$f":"IF('Project Scope'!$C12=\"\",\"\",IF($K12<=0,0,MAX(0,IF(AND($I12>0,$J12>0),($I12*$J12)/1000,($G12*$H12)/1000))*$BQ12))","v":""},{"$f":"IF('Project Scope'!$C12=\"\",\"\",IF($K12<=0,0,MAX(0,IF(AND($I12>0,$J12>0),($I12*$J12)/1000,($G12*$H12)/1000))*$BK12))","v":""},{"$f":"IF('Project Scope'!$C12=\"\",\"\",IF($K12<=0,0,MAX(0,IF(AND($I12>0,$J12>0),($I12*$J12)/1000,($G12*$H12)/1000))*$BL12*$BQ12))","v":""},{"$f":"IF('Project Scope'!$C12=\"\",\"\",IF(OR($K12<=0,'Project Information'!$D$44=\"\"),0,-1*MAX(0,IF(AND($I12>0,$J12>0),($I12*$J12)/1000,($G12*$H12)/1000))*$BT12*$L12*$BS12*VLOOKUP('Project Information'!$D$44,'CBAT Lookups'!$A$23:$H$30,2)))","v":""},{"$f":"IF('Project Scope'!$C12=\"\",\"\",IF(OR($K12<=0,'Project Information'!$D$44=\"\"),0,-1*MAX(0,IF(AND($I12>0,$J12>0),($I12*$J12)/1000,($G12*$H12)/1000))*$BT12*$L12*$BS12*VLOOKUP('Project Information'!$D$44,'CBAT Lookups'!$A$23:$H$30,3)))","v":""},{"$f":"IF('Project Scope'!$C12=\"\",\"\",IF(OR($K12<=0,'Project Information'!$D$44=\"\"),0,-1*MAX(0,IF(AND($I12>0,$J12>0),($I12*$J12)/1000,($G12*$H12)/1000))*$BT12*$L12*$BS12*VLOOKUP('Project Information'!$D$44,'CBAT Lookups'!$A$23:$H$30,4)))","v":""},{"$f":"IF('Project Scope'!$C12=\"\",\"\",IF(OR($K12<=0,'Project Information'!$D$44=\"\"),0,-1*MAX(0,IF(AND($I12>0,$J12>0),($I12*$J12)/1000,($G12*$H12)/1000))*$BT12*$L12*$BS12*VLOOKUP('Project Information'!$D$44,'CBAT Lookups'!$A$23:$H$30,5)))","v":""},{"$f":"IF('Project Scope'!$C12=\"\",\"\",IF(OR($K12<=0,'Project Information'!$D$44=\"\"),0,-1*MAX(0,IF(AND($I12>0,$J12>0),($I12*$J12)/1000,($G12*$H12)/1000))*$BT12*$L12*$BS12*VLOOKUP('Project Information'!$D$44,'CBAT Lookups'!$A$23:$H$30,6)))","v":""},{"$f":"IF('Project Scope'!$C12=\"\",\"\",IF(OR($K12<=0,'Project Information'!$D$44=\"\"),0,-1*MAX(0,IF(AND($I12>0,$J12>0),($I12*$J12)/1000,($G12*$H12)/1000))*$BT12*$L12*$BS12*VLOOKUP('Project Information'!$D$44,'CBAT Lookups'!$A$23:$H$30,7)))","v":""},{"$f":"IF('Project Scope'!$C12=\"\",\"\",IF(OR($K12<=0,'Project Information'!$D$44=\"\"),0,-1*MAX(0,IF(AND($I12>0,$J12>0),($I12*$J12)/1000,($G12*$H12)/1000))*$BT12*$L12*$BS12*VLOOKUP('Project Information'!$D$44,'CBAT Lookups'!$A$23:$H$30,8)))","v":""},null,{"$f":"IF('Project Scope'!$C12=\"\",\"\",VLOOKUP($F12,'CBAT Lookups'!$B$17:$K$19,4))","v":""},{"$f":"IF('Project Scope'!$C12=\"\",\"\",VLOOKUP($F12,'CBAT Lookups'!$B$17:$K$19,5))","v":""},{"$f":"IF('Project Scope'!$C12=\"\",\"\",VLOOKUP($F12,'CBAT Lookups'!$B$17:$K$19,6))","v":""},{"$f":"IF('Project Scope'!$C12=\"\",\"\",VLOOKUP($F12,'CBAT Lookups'!$B$17:$K$19,7))","v":""},{"$f":"IF('Project Scope'!$C12=\"\",\"\",IF(SUMPRODUCT($BM12:$BP12,$CL12:$CO12)=0,0,BM12*CL12/SUMPRODUCT($BM12:$BP12,$CL12:$CO12)))","v":""},{"$f":"IF('Project Scope'!$C12=\"\",\"\",IF(SUMPRODUCT($BM12:$BP12,$CL12:$CO12)=0,0,BN12*CM12/SUMPRODUCT($BM12:$BP12,$CL12:$CO12)))","v":""},{"$f":"IF('Project Scope'!$C12=\"\",\"\",IF(SUMPRODUCT($BM12:$BP12,$CL12:$CO12)=0,0,BO12*CN12/SUMPRODUCT($BM12:$BP12,$CL12:$CO12)))","v":""},{"$f":"IF('Project Scope'!$C12=\"\",\"\",IF(SUMPRODUCT($BM12:$BP12,$CL12:$CO12)=0,0,BP12*CO12/SUMPRODUCT($BM12:$BP12,$CL12:$CO12)))","v":""},{"$f":"IF('Project Scope'!$C12=\"\",\"\",Benefits($BZ12,$CB12,$CC12,$CE12,$CF12,$CG12,$CH12,$CI12,$CJ12,$CK12,$BJ12,$CP12,$CQ12,$CR12,$CS12,$BU12,$BV12,$BW12,$BX12,$BY12,$E12))","v":""},"","","","","","","","",null,{"$f":"IF('Project Scope'!$C12=\"\",\"\",SUM('Project Scope'!$BB12,'Project Scope'!$BC12))","v":""},{"$f":"IF('Project Scope'!$C12=\"\",\"\",SUM('Project Scope'!$BH12, 'Project Scope'!$AZ12,(IF(ISNUMBER('Project Scope'!$BA12),'Project Scope'!$BA12,0)*'Project Information'!$D$12)))","v":""},null,null,{"$f":"IF('Project Scope'!$C12=\"\",\"\",IF($J12<=0,0,(SUMPRODUCT($AV12:$BC12,--($AV12:$BC12>0))+$BE12)*$DK12/((-SUMPRODUCT($AV12:$BC12,--($AV12:$BC12<0))+$BG12+$BH12+$BI12)*$DK12)))","v":""},{"$f":"IF('Project Scope'!$C12=\"\",\"\",IF($K12<=0,0,(SUMPRODUCT($CT12:$DA12,--($CT12:$DA12>0))+$DC12)*$DK12/((-SUMPRODUCT($CT12:$DA12,--($CT12:$DA12<0))+$DE12+$DF12+$DG12)*$DK12)))","v":""},{"$f":"IF('Project Scope'!$C12=\"\",\"\",IF(AND($J12<=0,$K12<=0),0,(SUMPRODUCT($AV12:$BC12,--($AV12:$BC12>0))+$BE12+SUMPRODUCT($CT12:$DA12,--($CT12:$DA12>0))+$DC12)*$DK12/((-SUMPRODUCT($AV12:$BC12,--($AV12:$BC12<0))+$BG12+$BH12+$BI12-SUMPRODUCT($CT12:$DA12,--($CT12:$DA12<0))+$DE12+$DF12+$DG12)*$DK12)))","v":""},{"$f":"IF('Project Scope'!$C12=\"\",\"\",IF(NetOrGross=\"Net\",(1-Z12+AA12),1))","v":""}]
[{"$f":"'Project Scope'!$B13","v":6},{"$f":"IF('Project Scope'!$C13=\"\",\"\",'Project Scope'!$C13)","v":""},{"$f":"IF('Project Scope'!$C13=\"\",\"\",'Project Scope'!$H13)","v":""},{"$f":"IF(ISNUMBER(SEARCH(\"Bay\",'Project Scope'!$Q13)),\"Bay\",IF('Project Scope'!C13=\"\",\"\",'Project Scope'!E13))","v":""},{"$f":"IF('Project Scope'!$C13=\"\",\"\",\"Com\")","v":""},{"$f":"IF('Project Scope'!$C13=\"\",\"\",'Project Scope'!$L13)","v":""},{"$f":"IF('Project Scope'!$C13=\"\",\"\",IF('Project Scope'!$CJ13=\"\",0,'Project Scope'!$CJ13))","v":""},{"$f":"IF('Project Scope'!$C13=\"\",\"\",IF('Project Scope'!$N13=\"\",0,'Project Scope'!$N13))","v":""},{"$f":"IF('Project Scope'!$C13=\"\",\"\",IF('Project Scope'!$CK13=\"\",0,'Project Scope'!$CK13))","v":""},{"$f":"IF('Project Scope'!$C13=\"\",\"\",IF('Project Scope'!$AO13=\"\",0,'Project Scope'!$AO13))","v":""},{"$f":"IF('Project Scope'!$C13=\"\",\"\",IF('Project Scope'!$AX13=\"\",0,'Project Scope'!$AX13))","v":""},{"$f":"IF('Project Scope'!$C13=\"\",\"\",IF('Project Scope'!$M13=\"\",0,'Project Scope'!$M13))","v":""},{"$f":"IF('Project Scope'!$C13=\"\",\"\",IF(COUNTIF('CBAT Lookups'!$B$5:$B$12,\"Fixtures-\"&CBAT!$D13)=1,VLOOKUP(\"Fixtures-\"&CBAT!$D13,'CBAT Lookups'!$B$5:$L$12,11),0))","v":""},{"$f":"IF('Project Scope'!$C13=\"\",\"\",(IF(COUNTIF('CBAT Lookups'!$B$5:$B$12,\"Fixtures-\"&CBAT!$D13)=1,VLOOKUP(\"Fixtures-\"&CBAT!$D13,'CBAT Lookups'!$B$5:$K$12,2),0))*VLOOKUP($F13,'CBAT Lookups'!$B$17:$K$19,2))","v":""},{"$f":"IF('Project Scope'!$C13=\"\",\"\",(IF(COUNTIF('CBAT Lookups'!$B$5:$B$12,\"Fixtures-\"&CBAT!$D13)=1,VLOOKUP(\"Fixtures-\"&CBAT!$D13,'CBAT Lookups'!$B$5:$K$12,3),0))*VLOOKUP($F13,'CBAT Lookups'!$B$17:$K$19,3))","v":""},{"$f":"IF('Project Scope'!$C13=\"\",\"\",(IF(COUNTIF('CBAT Lookups'!$B$5:$B$12,\"Fixtures-\"&CBAT!$D13)=1,VLOOKUP(\"Fixtures-\"&CBAT!$D13,'CBAT Lookups'!$B$5:$K$12,4),0)))","v":""},{"$f":"IF('Project Scope'!$C13=\"\",\"\",(IF(COUNTIF('CBAT Lookups'!$B$5:$B$12,\"Fixtures-\"&CBAT!$D13)=1,VLOOKUP(\"Fixtures-\"&CBAT!$D13,'CBAT Lookups'!$B$5:$K$12,5),0)))","v":""},{"$f":"IF('Project Scope'!$C13=\"\",\"\",(IF(COUNTIF('CBAT Lookups'!$B$5:$B$12,\"Fixtures-\"&CBAT!$D13)=1,VLOOKUP(\"Fixtures-\"&CBAT!$D13,'CBAT Lookups'!$B$5:$K$12,6),0)))","v":""},{"$f":"IF('Project Scope'!$C13=\"\",\"\",IF(COUNTIF('CBAT Lookups'!$B$5:$B$12,\"Fixtures-\"&CBAT!$D13)=1,VLOOKUP(\"Fixtures-\"&CBAT!$D13,'CBAT Lookups'!$B$5:$K$12,7),0))","v":""},{"$f":"IF('Project Scope'!$C13=\"\",\"\",IF(VLOOKUP($F13,'CBAT Lookups'!$B$17:$K$19,8)=\"W\",1,IF(COUNTIF('CBAT Lookups'!$B$5:$B$12,\"Fixtures-\"&CBAT!$D13)=1,VLOOKUP(\"Fixtures-\"&CBAT!$D13,'CBAT Lookups'!$B$5:$K$12,8),0)*VLOOKUP($F13,'CBAT Lookups'!$B$17:$K$19,8)))","v":""},{"$f":"IF('Project Scope'!$C13=\"\",\"\",IF(VLOOKUP($F13,'CBAT Lookups'!$B$17:$K$19,9)=\"W\",1,IF(COUNTIF('CBAT Lookups'!$B$5:$B$12,\"Fixtures-\"&CBAT!$D13)=1,VLOOKUP(\"Fixtures-\"&CBAT!$D13,'CBAT Lookups'!$B$5:$K$12,9),0)*VLOOKUP($F13,'CBAT Lookups'!$B$17:$K$19,9)))","v":""},{"$f":"IF('Project Scope'!$C13=\"\",\"\",IF(COUNTIF('CBAT Lookups'!$B$5:$B$12,\"Fixtures-\"&CBAT!$D13)=1,VLOOKUP(\"Fixtures-\"&CBAT!$D13,'CBAT Lookups'!$B$5:$K$12,10),0)*VLOOKUP($F13,'CBAT Lookups'!$B$17:$K$19,10))","v":""},{"$f":"IF('Project Scope'!$C13=\"\",\"\",IF(COUNTIF('CBAT Lookups'!$B$5:$B$12,\"Fixtures-\"&CBAT!$D13)=1,VLOOKUP(\"Fixtures-\"&CBAT!$D13,'CBAT Lookups'!$B$5:$O$12,12),0))","v":""},{"$f":"IF('Project Scope'!$C13=\"\",\"\",IF(COUNTIF('CBAT Lookups'!$B$5:$B$12,\"Fixtures-\"&CBAT!$D13)=1,VLOOKUP(\"Fixtures-\"&CBAT!$D13,'CBAT Lookups'!$B$5:$O$12,13),0))","v":""},{"$f":"IF('Project Scope'!$C13=\"\",\"\",IF(COUNTIF('CBAT Lookups'!$B$5:$B$12,\"Fixtures-\"&CBAT!$D13)=1,VLOOKUP(\"Fixtures-\"&CBAT!$D13,'CBAT Lookups'!$B$5:$O$12,14),0))","v":""},{"$f":"IF('Project Scope'!$C13=\"\",\"\",'TRM Data'!$U$3)","v":""},{"$f":"IF('Project Scope'!$C13=\"\",\"\",'TRM Data'!$V$3)","v":""},{"$f":"IF('Project Scope'!$C13=\"\",\"\",IF($J13<=0,0,MAX(0,(($G13*$H13/1000)-($I13*$J13/1000))*$L13)*$U13)+($AF13/0.003412))","v":""},{"$f":"IF('Project Scope'!$C13=\"\",\"\",IF($J13<=0,0,MAX(0,(($G13*$H13/1000)-($I13*$J13/1000)))*$T13))","v":""},{"$f":"IF('Project Scope'!$C13=\"\",\"\",IF($J13<=0,0,MAX(0,(($G13*$H13/1000)-($I13*$J13/1000))*$N13)))","v":""},{"$f":"IF('Project Scope'!$C13=\"\",\"\",IF($J13<=0,0,MAX(0,(($G13*$H13/1000)-($I13*$J13/1000))*$O13)*$T13))","v":""},{"$f":"IF('Project Scope'!$C13=\"\",\"\",IF(OR($J13<=0,'Project Information'!$D$44=\"\"),0,-1*MAX(0,(($G13*$H13/1000)-($I13*$J13/1000))*$L13)*$V13*VLOOKUP('Project Information'!$D$44,'CBAT Lookups'!$A$23:$H$30,2)))","v":""},{"$f":"IF('Project Scope'!$C13=\"\",\"\",IF(OR($J13<=0,'Project Information'!$D$44=\"\"),0,-1*MAX(0,(($G13*$H13/1000)-($I13*$J13/1000))*$L13)*$V13*VLOOKUP('Project Information'!$D$44,'CBAT Lookups'!$A$23:$H$30,3)))","v":""},{"$f":"IF('Project Scope'!$C13=\"\",\"\",IF(OR($J13<=0,'Project Information'!$D$44=\"\"),0,-1*MAX(0,(($G13*$H13/1000)-($I13*$J13/1000))*$L13)*$V13*VLOOKUP('Project Information'!$D$44,'CBAT Lookups'!$A$23:$H$30,4)))","v":""},{"$f":"IF('Project Scope'!$C13=\"\",\"\",IF(OR($J13<=0,'Project Information'!$D$44=\"\"),0,-1*MAX(0,(($G13*$H13/1000)-($I13*$J13/1000))*$L13)*$V13*VLOOKUP('Project Information'!$D$44,'CBAT Lookups'!$A$23:$H$30,5)))","v":""},{"$f":"IF('Project Scope'!$C13=\"\",\"\",IF(OR($J13<=0,'Project Information'!$D$44=\"\"),0,-1*MAX(0,(($G13*$H13/1000)-($I13*$J13/1000))*$L13)*$V13*VLOOKUP('Project Information'!$D$44,'CBAT Lookups'!$A$23:$H$30,6)))","v":""},{"$f":"IF('Project Scope'!$C13=\"\",\"\",IF(OR($J13<=0,'Project Information'!$D$44=\"\"),0,-1*MAX(0,(($G13*$H13/1000)-($I13*$J13/1000))*$L13)*$V13*VLOOKUP('Project Information'!$D$44,'CBAT Lookups'!$A$23:$H$30,7)))","v":""},{"$f":"IF('Project Scope'!$C13=\"\",\"\",IF(OR($J13<=0,'Project Information'!$D$44=\"\"),0,-1*MAX(0,(($G13*$H13/1000)-($I13*$J13/1000))*$L13)*$V13*VLOOKUP('Project Information'!$D$44,'CBAT Lookups'!$A$23:$H$30,8)))","v":""},null,{"$f":"IF('Project Scope'!$C13=\"\",\"\",VLOOKUP($F13,'CBAT Lookups'!$B$17:$K$19,4))","v":""},{"$f":"IF('Project Scope'!$C13=\"\",\"\",VLOOKUP($F13,'CBAT Lookups'!$B$17:$K$19,5))","v":""},{"$f":"IF('Project Scope'!$C13=\"\",\"\",VLOOKUP($F13,'CBAT Lookups'!$B$17:$K$19,6))","v":""},{"$f":"IF('Project Scope'!$C13=\"\",\"\",VLOOKUP($F13,'CBAT Lookups'!$B$17:$K$19,7))","v":""},{"$f":"IF('Project Scope'!$C13=\"\",\"\",IF(SUMPRODUCT($P13:$S13,$AN13:$AQ13)=0,0,P13*AN13/SUMPRODUCT($P13:$S13,$AN13:$AQ13)))","v":""},{"$f":"IF('Project Scope'!$C13=\"\",\"\",IF(SUMPRODUCT($P13:$S13,$AN13:$AQ13)=0,0,Q13*AO13/SUMPRODUCT($P13:$S13,$AN13:$AQ13)))","v":""},{"$f":"IF('Project Scope'!$C13=\"\",\"\",IF(SUMPRODUCT($P13:$S13,$AN13:$AQ13)=0,0,R13*AP13/SUMPRODUCT($P13:$S13,$AN13:$AQ13)))","v":""},{"$f":"IF('Project Scope'!$C13=\"\",\"\",IF(SUMPRODUCT($P13:$S13,$AN13:$AQ13)=0,0,S13*AQ13/SUMPRODUCT($P13:$S13,$AN13:$AQ13)))","v":""},{"$f":"IF('Project Scope'!$C13=\"\",\"\",Benefits($AB13,$AD13,$AE13,$AG13,$AH13,$AI13,$AJ13,$AK13,$AL13,$AM13,$M13,$AR13,$AS13,$AT13,$AU13,$W13,$X13,$Y13,$Z13,$AA13,$E13))","v":""},"","","","","","","","",null,{"$f":"IF('Project Scope'!$C13=\"\",\"\",SUM('Project Scope'!$AT13,'Project Scope'!$AU13))","v":""},{"$f":"IF('Project Scope'!$C13=\"\",\"\",SUM('Project Scope'!$BG13, 'Project Scope'!$AR13,(IF(ISNUMBER('Project Scope'!$AS13),'Project Scope'!$AS13,0)*'Project Information'!$D$12)))","v":""},null,null,{"$f":"IF('Project Scope'!$C13=\"\",\"\",IF(COUNTIF('CBAT Lookups'!$B$5:$B$12,\"Controls-\"&CBAT!$D13)=1,VLOOKUP(\"Controls-\"&CBAT!$D13,'CBAT Lookups'!$B$5:$L$12,11),0))","v":""},{"$f":"IF('Project Scope'!$C13=\"\",\"\",IF(COUNTIF('CBAT Lookups'!$B$5:$B$12,\"Controls-\"&CBAT!$D13)=1,VLOOKUP(\"Controls-\"&CBAT!$D13,'CBAT Lookups'!$B$5:$K$12,2),0)*VLOOKUP($F13,'CBAT Lookups'!$B$17:$K$19,2))","v":""},{"$f":"IF('Project Scope'!$C13=\"\",\"\",IF(COUNTIF('CBAT Lookups'!$B$5:$B$12,\"Controls-\"&CBAT!$D13)=1,VLOOKUP(\"Controls-\"&CBAT!$D13,'CBAT Lookups'!$B$5:$K$12,3),0)*VLOOKUP($F13,'CBAT Lookups'!$B$17:$K$19,3))","v":""},{"$f":"IF('Project Scope'!$C13=\"\",\"\",IF(COUNTIF('CBAT Lookups'!$B$5:$B$12,\"Controls-\"&CBAT!$D13)=1,VLOOKUP(\"Controls-\"&CBAT!$D13,'CBAT Lookups'!$B$5:$K$12,4),0))","v":""},{"$f":"IF('Project Scope'!$C13=\"\",\"\",IF(COUNTIF('CBAT Lookups'!$B$5:$B$12,\"Controls-\"&CBAT!$D13)=1,VLOOKUP(\"Controls-\"&CBAT!$D13,'CBAT Lookups'!$B$5:$K$12,5),0))","v":""},{"$f":"IF('Project Scope'!$C13=\"\",\"\",IF(COUNTIF('CBAT Lookups'!$B$5:$B$12,\"Controls-\"&CBAT!$D13)=1,VLOOKUP(\"Controls-\"&CBAT!$D13,'CBAT Lookups'!$B$5:$K$12,6),0))","v":""},{"$f":"IF('Project Scope'!$C13=\"\",\"\",IF(COUNTIF('CBAT Lookups'!$B$5:$B$12,\"Controls-\"&CBAT!$D13)=1,VLOOKUP(\"Controls-\"&CBAT!$D13,'CBAT Lookups'!$B$5:$K$12,7),0))","v":""},{"$f":"IF('Project Scope'!$C13=\"\",\"\",IF(VLOOKUP($F13,'CBAT Lookups'!$B$17:$K$19,8)=\"W\",1,IF(COUNTIF('CBAT Lookups'!$B$5:$B$12,\"Controls-\"&CBAT!$D13)=1,VLOOKUP(\"Controls-\"&CBAT!$D13,'CBAT Lookups'!$B$5:$K$12,8),0)*VLOOKUP($F13,'CBAT Lookups'!$B$17:$K$19,8)))","v":""},{"$f":"IF('Project Scope'!$C13=\"\",\"\",IF(VLOOKUP($F13,'CBAT Lookups'!$B$17:$K$19,9)=\"W\",1,IF(COUNTIF('CBAT Lookups'!$B$5:$B$12,\"Controls-\"&CBAT!$D13)=1,VLOOKUP(\"Controls-\"&CBAT!$D13,'CBAT Lookups'!$B$5:$K$12,9),0)*VLOOKUP($F13,'CBAT Lookups'!$B$17:$K$19,9)))","v":""},{"$f":"IF('Project Scope'!$C13=\"\",\"\",IF(COUNTIF('CBAT Lookups'!$B$5:$B$12,\"Controls-\"&CBAT!$D13)=1,VLOOKUP(\"Controls-\"&CBAT!$D13,'CBAT Lookups'!$B$5:$K$12,10),0)*VLOOKUP($F13,'CBAT Lookups'!$B$17:$K$19,10))","v":""},{"$f":"IF('Project Scope'!$C13=\"\",\"\",VLOOKUP($C13,'CBAT Lookups'!$A$33:$B$57,2))","v":""},{"$f":"IF('Project Scope'!$C13=\"\",\"\",IF(COUNTIF('CBAT Lookups'!$B$5:$B$12,\"Controls-\"&CBAT!$D13)=1,VLOOKUP(\"Controls-\"&CBAT!$D13,'CBAT Lookups'!$B$5:$O$12,12),0))","v":""},{"$f":"IF('Project Scope'!$C13=\"\",\"\",IF(COUNTIF('CBAT Lookups'!$B$5:$B$12,\"Controls-\"&CBAT!$D13)=1,VLOOKUP(\"Controls-\"&CBAT!$D13,'CBAT Lookups'!$B$5:$O$12,13),0))","v":""},{"$f":"IF('Project Scope'!$C13=\"\",\"\",IF(COUNTIF('CBAT Lookups'!$B$5:$B$12,\"Controls-\"&CBAT!$D13)=1,VLOOKUP(\"Controls-\"&CBAT!$D13,'CBAT Lookups'!$B$5:$O$12,14),0))","v":""},{"$f":"IF('Project Scope'!$C13=\"\",\"\",'TRM Data'!$U$3)","v":""},{"$f":"IF('Project Scope'!$C13=\"\",\"\",'TRM Data'!$V$3)","v":""},{"$f":"IF('Project Scope'!$C13=\"\",\"\",IF($K13<=0,0,MAX(0,(IF(AND($I13>0,$J13>0),($I13*$J13)/1000,($G13*$H13)/1000)*$L13))*$BT13*$BR13)+($CD13/0.003412))","v":""},{"$f":"IF('Project Scope'!$C13=\"\",\"\",IF($K13<=0,0,MAX(0,IF(AND($I13>0,$J13>0),($I13*$J13)/1000,($G13*$H13)/1000))*$BQ13))","v":""},{"$f":"IF('Project Scope'!$C13=\"\",\"\",IF($K13<=0,0,MAX(0,IF(AND($I13>0,$J13>0),($I13*$J13)/1000,($G13*$H13)/1000))*$BK13))","v":""},{"$f":"IF('Project Scope'!$C13=\"\",\"\",IF($K13<=0,0,MAX(0,IF(AND($I13>0,$J13>0),($I13*$J13)/1000,($G13*$H13)/1000))*$BL13*$BQ13))","v":""},{"$f":"IF('Project Scope'!$C13=\"\",\"\",IF(OR($K13<=0,'Project Information'!$D$44=\"\"),0,-1*MAX(0,IF(AND($I13>0,$J13>0),($I13*$J13)/1000,($G13*$H13)/1000))*$BT13*$L13*$BS13*VLOOKUP('Project Information'!$D$44,'CBAT Lookups'!$A$23:$H$30,2)))","v":""},{"$f":"IF('Project Scope'!$C13=\"\",\"\",IF(OR($K13<=0,'Project Information'!$D$44=\"\"),0,-1*MAX(0,IF(AND($I13>0,$J13>0),($I13*$J13)/1000,($G13*$H13)/1000))*$BT13*$L13*$BS13*VLOOKUP('Project Information'!$D$44,'CBAT Lookups'!$A$23:$H$30,3)))","v":""},{"$f":"IF('Project Scope'!$C13=\"\",\"\",IF(OR($K13<=0,'Project Information'!$D$44=\"\"),0,-1*MAX(0,IF(AND($I13>0,$J13>0),($I13*$J13)/1000,($G13*$H13)/1000))*$BT13*$L13*$BS13*VLOOKUP('Project Information'!$D$44,'CBAT Lookups'!$A$23:$H$30,4)))","v":""},{"$f":"IF('Project Scope'!$C13=\"\",\"\",IF(OR($K13<=0,'Project Information'!$D$44=\"\"),0,-1*MAX(0,IF(AND($I13>0,$J13>0),($I13*$J13)/1000,($G13*$H13)/1000))*$BT13*$L13*$BS13*VLOOKUP('Project Information'!$D$44,'CBAT Lookups'!$A$23:$H$30,5)))","v":""},{"$f":"IF('Project Scope'!$C13=\"\",\"\",IF(OR($K13<=0,'Project Information'!$D$44=\"\"),0,-1*MAX(0,IF(AND($I13>0,$J13>0),($I13*$J13)/1000,($G13*$H13)/1000))*$BT13*$L13*$BS13*VLOOKUP('Project Information'!$D$44,'CBAT Lookups'!$A$23:$H$30,6)))","v":""},{"$f":"IF('Project Scope'!$C13=\"\",\"\",IF(OR($K13<=0,'Project Information'!$D$44=\"\"),0,-1*MAX(0,IF(AND($I13>0,$J13>0),($I13*$J13)/1000,($G13*$H13)/1000))*$BT13*$L13*$BS13*VLOOKUP('Project Information'!$D$44,'CBAT Lookups'!$A$23:$H$30,7)))","v":""},{"$f":"IF('Project Scope'!$C13=\"\",\"\",IF(OR($K13<=0,'Project Information'!$D$44=\"\"),0,-1*MAX(0,IF(AND($I13>0,$J13>0),($I13*$J13)/1000,($G13*$H13)/1000))*$BT13*$L13*$BS13*VLOOKUP('Project Information'!$D$44,'CBAT Lookups'!$A$23:$H$30,8)))","v":""},null,{"$f":"IF('Project Scope'!$C13=\"\",\"\",VLOOKUP($F13,'CBAT Lookups'!$B$17:$K$19,4))","v":""},{"$f":"IF('Project Scope'!$C13=\"\",\"\",VLOOKUP($F13,'CBAT Lookups'!$B$17:$K$19,5))","v":""},{"$f":"IF('Project Scope'!$C13=\"\",\"\",VLOOKUP($F13,'CBAT Lookups'!$B$17:$K$19,6))","v":""},{"$f":"IF('Project Scope'!$C13=\"\",\"\",VLOOKUP($F13,'CBAT Lookups'!$B$17:$K$19,7))","v":""},{"$f":"IF('Project Scope'!$C13=\"\",\"\",IF(SUMPRODUCT($BM13:$BP13,$CL13:$CO13)=0,0,BM13*CL13/SUMPRODUCT($BM13:$BP13,$CL13:$CO13)))","v":""},{"$f":"IF('Project Scope'!$C13=\"\",\"\",IF(SUMPRODUCT($BM13:$BP13,$CL13:$CO13)=0,0,BN13*CM13/SUMPRODUCT($BM13:$BP13,$CL13:$CO13)))","v":""},{"$f":"IF('Project Scope'!$C13=\"\",\"\",IF(SUMPRODUCT($BM13:$BP13,$CL13:$CO13)=0,0,BO13*CN13/SUMPRODUCT($BM13:$BP13,$CL13:$CO13)))","v":""},{"$f":"IF('Project Scope'!$C13=\"\",\"\",IF(SUMPRODUCT($BM13:$BP13,$CL13:$CO13)=0,0,BP13*CO13/SUMPRODUCT($BM13:$BP13,$CL13:$CO13)))","v":""},{"$f":"IF('Project Scope'!$C13=\"\",\"\",Benefits($BZ13,$CB13,$CC13,$CE13,$CF13,$CG13,$CH13,$CI13,$CJ13,$CK13,$BJ13,$CP13,$CQ13,$CR13,$CS13,$BU13,$BV13,$BW13,$BX13,$BY13,$E13))","v":""},"","","","","","","","",null,{"$f":"IF('Project Scope'!$C13=\"\",\"\",SUM('Project Scope'!$BB13,'Project Scope'!$BC13))","v":""},{"$f":"IF('Project Scope'!$C13=\"\",\"\",SUM('Project Scope'!$BH13, 'Project Scope'!$AZ13,(IF(ISNUMBER('Project Scope'!$BA13),'Project Scope'!$BA13,0)*'Project Information'!$D$12)))","v":""},null,null,{"$f":"IF('Project Scope'!$C13=\"\",\"\",IF($J13<=0,0,(SUMPRODUCT($AV13:$BC13,--($AV13:$BC13>0))+$BE13)*$DK13/((-SUMPRODUCT($AV13:$BC13,--($AV13:$BC13<0))+$BG13+$BH13+$BI13)*$DK13)))","v":""},{"$f":"IF('Project Scope'!$C13=\"\",\"\",IF($K13<=0,0,(SUMPRODUCT($CT13:$DA13,--($CT13:$DA13>0))+$DC13)*$DK13/((-SUMPRODUCT($CT13:$DA13,--($CT13:$DA13<0))+$DE13+$DF13+$DG13)*$DK13)))","v":""},{"$f":"IF('Project Scope'!$C13=\"\",\"\",IF(AND($J13<=0,$K13<=0),0,(SUMPRODUCT($AV13:$BC13,--($AV13:$BC13>0))+$BE13+SUMPRODUCT($CT13:$DA13,--($CT13:$DA13>0))+$DC13)*$DK13/((-SUMPRODUCT($AV13:$BC13,--($AV13:$BC13<0))+$BG13+$BH13+$BI13-SUMPRODUCT($CT13:$DA13,--($CT13:$DA13<0))+$DE13+$DF13+$DG13)*$DK13)))","v":""},{"$f":"IF('Project Scope'!$C13=\"\",\"\",IF(NetOrGross=\"Net\",(1-Z13+AA13),1))","v":""}]
[{"$f":"'Project Scope'!$B14","v":7},{"$f":"IF('Project Scope'!$C14=\"\",\"\",'Project Scope'!$C14)","v":""},{"$f":"IF('Project Scope'!$C14=\"\",\"\",'Project Scope'!$H14)","v":""},{"$f":"IF(ISNUMBER(SEARCH(\"Bay\",'Project Scope'!$Q14)),\"Bay\",IF('Project Scope'!C14=\"\",\"\",'Project Scope'!E14))","v":""},{"$f":"IF('Project Scope'!$C14=\"\",\"\",\"Com\")","v":""},{"$f":"IF('Project Scope'!$C14=\"\",\"\",'Project Scope'!$L14)","v":""},{"$f":"IF('Project Scope'!$C14=\"\",\"\",IF('Project Scope'!$CJ14=\"\",0,'Project Scope'!$CJ14))","v":""},{"$f":"IF('Project Scope'!$C14=\"\",\"\",IF('Project Scope'!$N14=\"\",0,'Project Scope'!$N14))","v":""},{"$f":"IF('Project Scope'!$C14=\"\",\"\",IF('Project Scope'!$CK14=\"\",0,'Project Scope'!$CK14))","v":""},{"$f":"IF('Project Scope'!$C14=\"\",\"\",IF('Project Scope'!$AO14=\"\",0,'Project Scope'!$AO14))","v":""},{"$f":"IF('Project Scope'!$C14=\"\",\"\",IF('Project Scope'!$AX14=\"\",0,'Project Scope'!$AX14))","v":""},{"$f":"IF('Project Scope'!$C14=\"\",\"\",IF('Project Scope'!$M14=\"\",0,'Project Scope'!$M14))","v":""},{"$f":"IF('Project Scope'!$C14=\"\",\"\",IF(COUNTIF('CBAT Lookups'!$B$5:$B$12,\"Fixtures-\"&CBAT!$D14)=1,VLOOKUP(\"Fixtures-\"&CBAT!$D14,'CBAT Lookups'!$B$5:$L$12,11),0))","v":""},{"$f":"IF('Project Scope'!$C14=\"\",\"\",(IF(COUNTIF('CBAT Lookups'!$B$5:$B$12,\"Fixtures-\"&CBAT!$D14)=1,VLOOKUP(\"Fixtures-\"&CBAT!$D14,'CBAT Lookups'!$B$5:$K$12,2),0))*VLOOKUP($F14,'CBAT Lookups'!$B$17:$K$19,2))","v":""},{"$f":"IF('Project Scope'!$C14=\"\",\"\",(IF(COUNTIF('CBAT Lookups'!$B$5:$B$12,\"Fixtures-\"&CBAT!$D14)=1,VLOOKUP(\"Fixtures-\"&CBAT!$D14,'CBAT Lookups'!$B$5:$K$12,3),0))*VLOOKUP($F14,'CBAT Lookups'!$B$17:$K$19,3))","v":""},{"$f":"IF('Project Scope'!$C14=\"\",\"\",(IF(COUNTIF('CBAT Lookups'!$B$5:$B$12,\"Fixtures-\"&CBAT!$D14)=1,VLOOKUP(\"Fixtures-\"&CBAT!$D14,'CBAT Lookups'!$B$5:$K$12,4),0)))","v":""},{"$f":"IF('Project Scope'!$C14=\"\",\"\",(IF(COUNTIF('CBAT Lookups'!$B$5:$B$12,\"Fixtures-\"&CBAT!$D14)=1,VLOOKUP(\"Fixtures-\"&CBAT!$D14,'CBAT Lookups'!$B$5:$K$12,5),0)))","v":""},{"$f":"IF('Project Scope'!$C14=\"\",\"\",(IF(COUNTIF('CBAT Lookups'!$B$5:$B$12,\"Fixtures-\"&CBAT!$D14)=1,VLOOKUP(\"Fixtures-\"&CBAT!$D14,'CBAT Lookups'!$B$5:$K$12,6),0)))","v":""},{"$f":"IF('Project Scope'!$C14=\"\",\"\",IF(COUNTIF('CBAT Lookups'!$B$5:$B$12,\"Fixtures-\"&CBAT!$D14)=1,VLOOKUP(\"Fixtures-\"&CBAT!$D14,'CBAT Lookups'!$B$5:$K$12,7),0))","v":""},{"$f":"IF('Project Scope'!$C14=\"\",\"\",IF(VLOOKUP($F14,'CBAT Lookups'!$B$17:$K$19,8)=\"W\",1,IF(COUNTIF('CBAT Lookups'!$B$5:$B$12,\"Fixtures-\"&CBAT!$D14)=1,VLOOKUP(\"Fixtures-\"&CBAT!$D14,'CBAT Lookups'!$B$5:$K$12,8),0)*VLOOKUP($F14,'CBAT Lookups'!$B$17:$K$19,8)))","v":""},{"$f":"IF('Project Scope'!$C14=\"\",\"\",IF(VLOOKUP($F14,'CBAT Lookups'!$B$17:$K$19,9)=\"W\",1,IF(COUNTIF('CBAT Lookups'!$B$5:$B$12,\"Fixtures-\"&CBAT!$D14)=1,VLOOKUP(\"Fixtures-\"&CBAT!$D14,'CBAT Lookups'!$B$5:$K$12,9),0)*VLOOKUP($F14,'CBAT Lookups'!$B$17:$K$19,9)))","v":""},{"$f":"IF('Project Scope'!$C14=\"\",\"\",IF(COUNTIF('CBAT Lookups'!$B$5:$B$12,\"Fixtures-\"&CBAT!$D14)=1,VLOOKUP(\"Fixtures-\"&CBAT!$D14,'CBAT Lookups'!$B$5:$K$12,10),0)*VLOOKUP($F14,'CBAT Lookups'!$B$17:$K$19,10))","v":""},{"$f":"IF('Project Scope'!$C14=\"\",\"\",IF(COUNTIF('CBAT Lookups'!$B$5:$B$12,\"Fixtures-\"&CBAT!$D14)=1,VLOOKUP(\"Fixtures-\"&CBAT!$D14,'CBAT Lookups'!$B$5:$O$12,12),0))","v":""},{"$f":"IF('Project Scope'!$C14=\"\",\"\",IF(COUNTIF('CBAT Lookups'!$B$5:$B$12,\"Fixtures-\"&CBAT!$D14)=1,VLOOKUP(\"Fixtures-\"&CBAT!$D14,'CBAT Lookups'!$B$5:$O$12,13),0))","v":""},{"$f":"IF('Project Scope'!$C14=\"\",\"\",IF(COUNTIF('CBAT Lookups'!$B$5:$B$12,\"Fixtures-\"&CBAT!$D14)=1,VLOOKUP(\"Fixtures-\"&CBAT!$D14,'CBAT Lookups'!$B$5:$O$12,14),0))","v":""},{"$f":"IF('Project Scope'!$C14=\"\",\"\",'TRM Data'!$U$3)","v":""},{"$f":"IF('Project Scope'!$C14=\"\",\"\",'TRM Data'!$V$3)","v":""},{"$f":"IF('Project Scope'!$C14=\"\",\"\",IF($J14<=0,0,MAX(0,(($G14*$H14/1000)-($I14*$J14/1000))*$L14)*$U14)+($AF14/0.003412))","v":""},{"$f":"IF('Project Scope'!$C14=\"\",\"\",IF($J14<=0,0,MAX(0,(($G14*$H14/1000)-($I14*$J14/1000)))*$T14))","v":""},{"$f":"IF('Project Scope'!$C14=\"\",\"\",IF($J14<=0,0,MAX(0,(($G14*$H14/1000)-($I14*$J14/1000))*$N14)))","v":""},{"$f":"IF('Project Scope'!$C14=\"\",\"\",IF($J14<=0,0,MAX(0,(($G14*$H14/1000)-($I14*$J14/1000))*$O14)*$T14))","v":""},{"$f":"IF('Project Scope'!$C14=\"\",\"\",IF(OR($J14<=0,'Project Information'!$D$44=\"\"),0,-1*MAX(0,(($G14*$H14/1000)-($I14*$J14/1000))*$L14)*$V14*VLOOKUP('Project Information'!$D$44,'CBAT Lookups'!$A$23:$H$30,2)))","v":""},{"$f":"IF('Project Scope'!$C14=\"\",\"\",IF(OR($J14<=0,'Project Information'!$D$44=\"\"),0,-1*MAX(0,(($G14*$H14/1000)-($I14*$J14/1000))*$L14)*$V14*VLOOKUP('Project Information'!$D$44,'CBAT Lookups'!$A$23:$H$30,3)))","v":""},{"$f":"IF('Project Scope'!$C14=\"\",\"\",IF(OR($J14<=0,'Project Information'!$D$44=\"\"),0,-1*MAX(0,(($G14*$H14/1000)-($I14*$J14/1000))*$L14)*$V14*VLOOKUP('Project Information'!$D$44,'CBAT Lookups'!$A$23:$H$30,4)))","v":""},{"$f":"IF('Project Scope'!$C14=\"\",\"\",IF(OR($J14<=0,'Project Information'!$D$44=\"\"),0,-1*MAX(0,(($G14*$H14/1000)-($I14*$J14/1000))*$L14)*$V14*VLOOKUP('Project Information'!$D$44,'CBAT Lookups'!$A$23:$H$30,5)))","v":""},{"$f":"IF('Project Scope'!$C14=\"\",\"\",IF(OR($J14<=0,'Project Information'!$D$44=\"\"),0,-1*MAX(0,(($G14*$H14/1000)-($I14*$J14/1000))*$L14)*$V14*VLOOKUP('Project Information'!$D$44,'CBAT Lookups'!$A$23:$H$30,6)))","v":""},{"$f":"IF('Project Scope'!$C14=\"\",\"\",IF(OR($J14<=0,'Project Information'!$D$44=\"\"),0,-1*MAX(0,(($G14*$H14/1000)-($I14*$J14/1000))*$L14)*$V14*VLOOKUP('Project Information'!$D$44,'CBAT Lookups'!$A$23:$H$30,7)))","v":""},{"$f":"IF('Project Scope'!$C14=\"\",\"\",IF(OR($J14<=0,'Project Information'!$D$44=\"\"),0,-1*MAX(0,(($G14*$H14/1000)-($I14*$J14/1000))*$L14)*$V14*VLOOKUP('Project Information'!$D$44,'CBAT Lookups'!$A$23:$H$30,8)))","v":""},null,{"$f":"IF('Project Scope'!$C14=\"\",\"\",VLOOKUP($F14,'CBAT Lookups'!$B$17:$K$19,4))","v":""},{"$f":"IF('Project Scope'!$C14=\"\",\"\",VLOOKUP($F14,'CBAT Lookups'!$B$17:$K$19,5))","v":""},{"$f":"IF('Project Scope'!$C14=\"\",\"\",VLOOKUP($F14,'CBAT Lookups'!$B$17:$K$19,6))","v":""},{"$f":"IF('Project Scope'!$C14=\"\",\"\",VLOOKUP($F14,'CBAT Lookups'!$B$17:$K$19,7))","v":""},{"$f":"IF('Project Scope'!$C14=\"\",\"\",IF(SUMPRODUCT($P14:$S14,$AN14:$AQ14)=0,0,P14*AN14/SUMPRODUCT($P14:$S14,$AN14:$AQ14)))","v":""},{"$f":"IF('Project Scope'!$C14=\"\",\"\",IF(SUMPRODUCT($P14:$S14,$AN14:$AQ14)=0,0,Q14*AO14/SUMPRODUCT($P14:$S14,$AN14:$AQ14)))","v":""},{"$f":"IF('Project Scope'!$C14=\"\",\"\",IF(SUMPRODUCT($P14:$S14,$AN14:$AQ14)=0,0,R14*AP14/SUMPRODUCT($P14:$S14,$AN14:$AQ14)))","v":""},{"$f":"IF('Project Scope'!$C14=\"\",\"\",IF(SUMPRODUCT($P14:$S14,$AN14:$AQ14)=0,0,S14*AQ14/SUMPRODUCT($P14:$S14,$AN14:$AQ14)))","v":""},{"$f":"IF('Project Scope'!$C14=\"\",\"\",Benefits($AB14,$AD14,$AE14,$AG14,$AH14,$AI14,$AJ14,$AK14,$AL14,$AM14,$M14,$AR14,$AS14,$AT14,$AU14,$W14,$X14,$Y14,$Z14,$AA14,$E14))","v":""},"","","","","","","","",null,{"$f":"IF('Project Scope'!$C14=\"\",\"\",SUM('Project Scope'!$AT14,'Project Scope'!$AU14))","v":""},{"$f":"IF('Project Scope'!$C14=\"\",\"\",SUM('Project Scope'!$BG14, 'Project Scope'!$AR14,(IF(ISNUMBER('Project Scope'!$AS14),'Project Scope'!$AS14,0)*'Project Information'!$D$12)))","v":""},null,null,{"$f":"IF('Project Scope'!$C14=\"\",\"\",IF(COUNTIF('CBAT Lookups'!$B$5:$B$12,\"Controls-\"&CBAT!$D14)=1,VLOOKUP(\"Controls-\"&CBAT!$D14,'CBAT Lookups'!$B$5:$L$12,11),0))","v":""},{"$f":"IF('Project Scope'!$C14=\"\",\"\",IF(COUNTIF('CBAT Lookups'!$B$5:$B$12,\"Controls-\"&CBAT!$D14)=1,VLOOKUP(\"Controls-\"&CBAT!$D14,'CBAT Lookups'!$B$5:$K$12,2),0)*VLOOKUP($F14,'CBAT Lookups'!$B$17:$K$19,2))","v":""},{"$f":"IF('Project Scope'!$C14=\"\",\"\",IF(COUNTIF('CBAT Lookups'!$B$5:$B$12,\"Controls-\"&CBAT!$D14)=1,VLOOKUP(\"Controls-\"&CBAT!$D14,'CBAT Lookups'!$B$5:$K$12,3),0)*VLOOKUP($F14,'CBAT Lookups'!$B$17:$K$19,3))","v":""},{"$f":"IF('Project Scope'!$C14=\"\",\"\",IF(COUNTIF('CBAT Lookups'!$B$5:$B$12,\"Controls-\"&CBAT!$D14)=1,VLOOKUP(\"Controls-\"&CBAT!$D14,'CBAT Lookups'!$B$5:$K$12,4),0))","v":""},{"$f":"IF('Project Scope'!$C14=\"\",\"\",IF(COUNTIF('CBAT Lookups'!$B$5:$B$12,\"Controls-\"&CBAT!$D14)=1,VLOOKUP(\"Controls-\"&CBAT!$D14,'CBAT Lookups'!$B$5:$K$12,5),0))","v":""},{"$f":"IF('Project Scope'!$C14=\"\",\"\",IF(COUNTIF('CBAT Lookups'!$B$5:$B$12,\"Controls-\"&CBAT!$D14)=1,VLOOKUP(\"Controls-\"&CBAT!$D14,'CBAT Lookups'!$B$5:$K$12,6),0))","v":""},{"$f":"IF('Project Scope'!$C14=\"\",\"\",IF(COUNTIF('CBAT Lookups'!$B$5:$B$12,\"Controls-\"&CBAT!$D14)=1,VLOOKUP(\"Controls-\"&CBAT!$D14,'CBAT Lookups'!$B$5:$K$12,7),0))","v":""},{"$f":"IF('Project Scope'!$C14=\"\",\"\",IF(VLOOKUP($F14,'CBAT Lookups'!$B$17:$K$19,8)=\"W\",1,IF(COUNTIF('CBAT Lookups'!$B$5:$B$12,\"Controls-\"&CBAT!$D14)=1,VLOOKUP(\"Controls-\"&CBAT!$D14,'CBAT Lookups'!$B$5:$K$12,8),0)*VLOOKUP($F14,'CBAT Lookups'!$B$17:$K$19,8)))","v":""},{"$f":"IF('Project Scope'!$C14=\"\",\"\",IF(VLOOKUP($F14,'CBAT Lookups'!$B$17:$K$19,9)=\"W\",1,IF(COUNTIF('CBAT Lookups'!$B$5:$B$12,\"Controls-\"&CBAT!$D14)=1,VLOOKUP(\"Controls-\"&CBAT!$D14,'CBAT Lookups'!$B$5:$K$12,9),0)*VLOOKUP($F14,'CBAT Lookups'!$B$17:$K$19,9)))","v":""},{"$f":"IF('Project Scope'!$C14=\"\",\"\",IF(COUNTIF('CBAT Lookups'!$B$5:$B$12,\"Controls-\"&CBAT!$D14)=1,VLOOKUP(\"Controls-\"&CBAT!$D14,'CBAT Lookups'!$B$5:$K$12,10),0)*VLOOKUP($F14,'CBAT Lookups'!$B$17:$K$19,10))","v":""},{"$f":"IF('Project Scope'!$C14=\"\",\"\",VLOOKUP($C14,'CBAT Lookups'!$A$33:$B$57,2))","v":""},{"$f":"IF('Project Scope'!$C14=\"\",\"\",IF(COUNTIF('CBAT Lookups'!$B$5:$B$12,\"Controls-\"&CBAT!$D14)=1,VLOOKUP(\"Controls-\"&CBAT!$D14,'CBAT Lookups'!$B$5:$O$12,12),0))","v":""},{"$f":"IF('Project Scope'!$C14=\"\",\"\",IF(COUNTIF('CBAT Lookups'!$B$5:$B$12,\"Controls-\"&CBAT!$D14)=1,VLOOKUP(\"Controls-\"&CBAT!$D14,'CBAT Lookups'!$B$5:$O$12,13),0))","v":""},{"$f":"IF('Project Scope'!$C14=\"\",\"\",IF(COUNTIF('CBAT Lookups'!$B$5:$B$12,\"Controls-\"&CBAT!$D14)=1,VLOOKUP(\"Controls-\"&CBAT!$D14,'CBAT Lookups'!$B$5:$O$12,14),0))","v":""},{"$f":"IF('Project Scope'!$C14=\"\",\"\",'TRM Data'!$U$3)","v":""},{"$f":"IF('Project Scope'!$C14=\"\",\"\",'TRM Data'!$V$3)","v":""},{"$f":"IF('Project Scope'!$C14=\"\",\"\",IF($K14<=0,0,MAX(0,(IF(AND($I14>0,$J14>0),($I14*$J14)/1000,($G14*$H14)/1000)*$L14))*$BT14*$BR14)+($CD14/0.003412))","v":""},{"$f":"IF('Project Scope'!$C14=\"\",\"\",IF($K14<=0,0,MAX(0,IF(AND($I14>0,$J14>0),($I14*$J14)/1000,($G14*$H14)/1000))*$BQ14))","v":""},{"$f":"IF('Project Scope'!$C14=\"\",\"\",IF($K14<=0,0,MAX(0,IF(AND($I14>0,$J14>0),($I14*$J14)/1000,($G14*$H14)/1000))*$BK14))","v":""},{"$f":"IF('Project Scope'!$C14=\"\",\"\",IF($K14<=0,0,MAX(0,IF(AND($I14>0,$J14>0),($I14*$J14)/1000,($G14*$H14)/1000))*$BL14*$BQ14))","v":""},{"$f":"IF('Project Scope'!$C14=\"\",\"\",IF(OR($K14<=0,'Project Information'!$D$44=\"\"),0,-1*MAX(0,IF(AND($I14>0,$J14>0),($I14*$J14)/1000,($G14*$H14)/1000))*$BT14*$L14*$BS14*VLOOKUP('Project Information'!$D$44,'CBAT Lookups'!$A$23:$H$30,2)))","v":""},{"$f":"IF('Project Scope'!$C14=\"\",\"\",IF(OR($K14<=0,'Project Information'!$D$44=\"\"),0,-1*MAX(0,IF(AND($I14>0,$J14>0),($I14*$J14)/1000,($G14*$H14)/1000))*$BT14*$L14*$BS14*VLOOKUP('Project Information'!$D$44,'CBAT Lookups'!$A$23:$H$30,3)))","v":""},{"$f":"IF('Project Scope'!$C14=\"\",\"\",IF(OR($K14<=0,'Project Information'!$D$44=\"\"),0,-1*MAX(0,IF(AND($I14>0,$J14>0),($I14*$J14)/1000,($G14*$H14)/1000))*$BT14*$L14*$BS14*VLOOKUP('Project Information'!$D$44,'CBAT Lookups'!$A$23:$H$30,4)))","v":""},{"$f":"IF('Project Scope'!$C14=\"\",\"\",IF(OR($K14<=0,'Project Information'!$D$44=\"\"),0,-1*MAX(0,IF(AND($I14>0,$J14>0),($I14*$J14)/1000,($G14*$H14)/1000))*$BT14*$L14*$BS14*VLOOKUP('Project Information'!$D$44,'CBAT Lookups'!$A$23:$H$30,5)))","v":""},{"$f":"IF('Project Scope'!$C14=\"\",\"\",IF(OR($K14<=0,'Project Information'!$D$44=\"\"),0,-1*MAX(0,IF(AND($I14>0,$J14>0),($I14*$J14)/1000,($G14*$H14)/1000))*$BT14*$L14*$BS14*VLOOKUP('Project Information'!$D$44,'CBAT Lookups'!$A$23:$H$30,6)))","v":""},{"$f":"IF('Project Scope'!$C14=\"\",\"\",IF(OR($K14<=0,'Project Information'!$D$44=\"\"),0,-1*MAX(0,IF(AND($I14>0,$J14>0),($I14*$J14)/1000,($G14*$H14)/1000))*$BT14*$L14*$BS14*VLOOKUP('Project Information'!$D$44,'CBAT Lookups'!$A$23:$H$30,7)))","v":""},{"$f":"IF('Project Scope'!$C14=\"\",\"\",IF(OR($K14<=0,'Project Information'!$D$44=\"\"),0,-1*MAX(0,IF(AND($I14>0,$J14>0),($I14*$J14)/1000,($G14*$H14)/1000))*$BT14*$L14*$BS14*VLOOKUP('Project Information'!$D$44,'CBAT Lookups'!$A$23:$H$30,8)))","v":""},null,{"$f":"IF('Project Scope'!$C14=\"\",\"\",VLOOKUP($F14,'CBAT Lookups'!$B$17:$K$19,4))","v":""},{"$f":"IF('Project Scope'!$C14=\"\",\"\",VLOOKUP($F14,'CBAT Lookups'!$B$17:$K$19,5))","v":""},{"$f":"IF('Project Scope'!$C14=\"\",\"\",VLOOKUP($F14,'CBAT Lookups'!$B$17:$K$19,6))","v":""},{"$f":"IF('Project Scope'!$C14=\"\",\"\",VLOOKUP($F14,'CBAT Lookups'!$B$17:$K$19,7))","v":""},{"$f":"IF('Project Scope'!$C14=\"\",\"\",IF(SUMPRODUCT($BM14:$BP14,$CL14:$CO14)=0,0,BM14*CL14/SUMPRODUCT($BM14:$BP14,$CL14:$CO14)))","v":""},{"$f":"IF('Project Scope'!$C14=\"\",\"\",IF(SUMPRODUCT($BM14:$BP14,$CL14:$CO14)=0,0,BN14*CM14/SUMPRODUCT($BM14:$BP14,$CL14:$CO14)))","v":""},{"$f":"IF('Project Scope'!$C14=\"\",\"\",IF(SUMPRODUCT($BM14:$BP14,$CL14:$CO14)=0,0,BO14*CN14/SUMPRODUCT($BM14:$BP14,$CL14:$CO14)))","v":""},{"$f":"IF('Project Scope'!$C14=\"\",\"\",IF(SUMPRODUCT($BM14:$BP14,$CL14:$CO14)=0,0,BP14*CO14/SUMPRODUCT($BM14:$BP14,$CL14:$CO14)))","v":""},{"$f":"IF('Project Scope'!$C14=\"\",\"\",Benefits($BZ14,$CB14,$CC14,$CE14,$CF14,$CG14,$CH14,$CI14,$CJ14,$CK14,$BJ14,$CP14,$CQ14,$CR14,$CS14,$BU14,$BV14,$BW14,$BX14,$BY14,$E14))","v":""},"","","","","","","","",null,{"$f":"IF('Project Scope'!$C14=\"\",\"\",SUM('Project Scope'!$BB14,'Project Scope'!$BC14))","v":""},{"$f":"IF('Project Scope'!$C14=\"\",\"\",SUM('Project Scope'!$BH14, 'Project Scope'!$AZ14,(IF(ISNUMBER('Project Scope'!$BA14),'Project Scope'!$BA14,0)*'Project Information'!$D$12)))","v":""},null,null,{"$f":"IF('Project Scope'!$C14=\"\",\"\",IF($J14<=0,0,(SUMPRODUCT($AV14:$BC14,--($AV14:$BC14>0))+$BE14)*$DK14/((-SUMPRODUCT($AV14:$BC14,--($AV14:$BC14<0))+$BG14+$BH14+$BI14)*$DK14)))","v":""},{"$f":"IF('Project Scope'!$C14=\"\",\"\",IF($K14<=0,0,(SUMPRODUCT($CT14:$DA14,--($CT14:$DA14>0))+$DC14)*$DK14/((-SUMPRODUCT($CT14:$DA14,--($CT14:$DA14<0))+$DE14+$DF14+$DG14)*$DK14)))","v":""},{"$f":"IF('Project Scope'!$C14=\"\",\"\",IF(AND($J14<=0,$K14<=0),0,(SUMPRODUCT($AV14:$BC14,--($AV14:$BC14>0))+$BE14+SUMPRODUCT($CT14:$DA14,--($CT14:$DA14>0))+$DC14)*$DK14/((-SUMPRODUCT($AV14:$BC14,--($AV14:$BC14<0))+$BG14+$BH14+$BI14-SUMPRODUCT($CT14:$DA14,--($CT14:$DA14<0))+$DE14+$DF14+$DG14)*$DK14)))","v":""},{"$f":"IF('Project Scope'!$C14=\"\",\"\",IF(NetOrGross=\"Net\",(1-Z14+AA14),1))","v":""}]
[{"$f":"'Project Scope'!$B15","v":8},{"$f":"IF('Project Scope'!$C15=\"\",\"\",'Project Scope'!$C15)","v":""},{"$f":"IF('Project Scope'!$C15=\"\",\"\",'Project Scope'!$H15)","v":""},{"$f":"IF(ISNUMBER(SEARCH(\"Bay\",'Project Scope'!$Q15)),\"Bay\",IF('Project Scope'!C15=\"\",\"\",'Project Scope'!E15))","v":""},{"$f":"IF('Project Scope'!$C15=\"\",\"\",\"Com\")","v":""},{"$f":"IF('Project Scope'!$C15=\"\",\"\",'Project Scope'!$L15)","v":""},{"$f":"IF('Project Scope'!$C15=\"\",\"\",IF('Project Scope'!$CJ15=\"\",0,'Project Scope'!$CJ15))","v":""},{"$f":"IF('Project Scope'!$C15=\"\",\"\",IF('Project Scope'!$N15=\"\",0,'Project Scope'!$N15))","v":""},{"$f":"IF('Project Scope'!$C15=\"\",\"\",IF('Project Scope'!$CK15=\"\",0,'Project Scope'!$CK15))","v":""},{"$f":"IF('Project Scope'!$C15=\"\",\"\",IF('Project Scope'!$AO15=\"\",0,'Project Scope'!$AO15))","v":""},{"$f":"IF('Project Scope'!$C15=\"\",\"\",IF('Project Scope'!$AX15=\"\",0,'Project Scope'!$AX15))","v":""},{"$f":"IF('Project Scope'!$C15=\"\",\"\",IF('Project Scope'!$M15=\"\",0,'Project Scope'!$M15))","v":""},{"$f":"IF('Project Scope'!$C15=\"\",\"\",IF(COUNTIF('CBAT Lookups'!$B$5:$B$12,\"Fixtures-\"&CBAT!$D15)=1,VLOOKUP(\"Fixtures-\"&CBAT!$D15,'CBAT Lookups'!$B$5:$L$12,11),0))","v":""},{"$f":"IF('Project Scope'!$C15=\"\",\"\",(IF(COUNTIF('CBAT Lookups'!$B$5:$B$12,\"Fixtures-\"&CBAT!$D15)=1,VLOOKUP(\"Fixtures-\"&CBAT!$D15,'CBAT Lookups'!$B$5:$K$12,2),0))*VLOOKUP($F15,'CBAT Lookups'!$B$17:$K$19,2))","v":""},{"$f":"IF('Project Scope'!$C15=\"\",\"\",(IF(COUNTIF('CBAT Lookups'!$B$5:$B$12,\"Fixtures-\"&CBAT!$D15)=1,VLOOKUP(\"Fixtures-\"&CBAT!$D15,'CBAT Lookups'!$B$5:$K$12,3),0))*VLOOKUP($F15,'CBAT Lookups'!$B$17:$K$19,3))","v":""},{"$f":"IF('Project Scope'!$C15=\"\",\"\",(IF(COUNTIF('CBAT Lookups'!$B$5:$B$12,\"Fixtures-\"&CBAT!$D15)=1,VLOOKUP(\"Fixtures-\"&CBAT!$D15,'CBAT Lookups'!$B$5:$K$12,4),0)))","v":""},{"$f":"IF('Project Scope'!$C15=\"\",\"\",(IF(COUNTIF('CBAT Lookups'!$B$5:$B$12,\"Fixtures-\"&CBAT!$D15)=1,VLOOKUP(\"Fixtures-\"&CBAT!$D15,'CBAT Lookups'!$B$5:$K$12,5),0)))","v":""},{"$f":"IF('Project Scope'!$C15=\"\",\"\",(IF(COUNTIF('CBAT Lookups'!$B$5:$B$12,\"Fixtures-\"&CBAT!$D15)=1,VLOOKUP(\"Fixtures-\"&CBAT!$D15,'CBAT Lookups'!$B$5:$K$12,6),0)))","v":""},{"$f":"IF('Project Scope'!$C15=\"\",\"\",IF(COUNTIF('CBAT Lookups'!$B$5:$B$12,\"Fixtures-\"&CBAT!$D15)=1,VLOOKUP(\"Fixtures-\"&CBAT!$D15,'CBAT Lookups'!$B$5:$K$12,7),0))","v":""},{"$f":"IF('Project Scope'!$C15=\"\",\"\",IF(VLOOKUP($F15,'CBAT Lookups'!$B$17:$K$19,8)=\"W\",1,IF(COUNTIF('CBAT Lookups'!$B$5:$B$12,\"Fixtures-\"&CBAT!$D15)=1,VLOOKUP(\"Fixtures-\"&CBAT!$D15,'CBAT Lookups'!$B$5:$K$12,8),0)*VLOOKUP($F15,'CBAT Lookups'!$B$17:$K$19,8)))","v":""},{"$f":"IF('Project Scope'!$C15=\"\",\"\",IF(VLOOKUP($F15,'CBAT Lookups'!$B$17:$K$19,9)=\"W\",1,IF(COUNTIF('CBAT Lookups'!$B$5:$B$12,\"Fixtures-\"&CBAT!$D15)=1,VLOOKUP(\"Fixtures-\"&CBAT!$D15,'CBAT Lookups'!$B$5:$K$12,9),0)*VLOOKUP($F15,'CBAT Lookups'!$B$17:$K$19,9)))","v":""},{"$f":"IF('Project Scope'!$C15=\"\",\"\",IF(COUNTIF('CBAT Lookups'!$B$5:$B$12,\"Fixtures-\"&CBAT!$D15)=1,VLOOKUP(\"Fixtures-\"&CBAT!$D15,'CBAT Lookups'!$B$5:$K$12,10),0)*VLOOKUP($F15,'CBAT Lookups'!$B$17:$K$19,10))","v":""},{"$f":"IF('Project Scope'!$C15=\"\",\"\",IF(COUNTIF('CBAT Lookups'!$B$5:$B$12,\"Fixtures-\"&CBAT!$D15)=1,VLOOKUP(\"Fixtures-\"&CBAT!$D15,'CBAT Lookups'!$B$5:$O$12,12),0))","v":""},{"$f":"IF('Project Scope'!$C15=\"\",\"\",IF(COUNTIF('CBAT Lookups'!$B$5:$B$12,\"Fixtures-\"&CBAT!$D15)=1,VLOOKUP(\"Fixtures-\"&CBAT!$D15,'CBAT Lookups'!$B$5:$O$12,13),0))","v":""},{"$f":"IF('Project Scope'!$C15=\"\",\"\",IF(COUNTIF('CBAT Lookups'!$B$5:$B$12,\"Fixtures-\"&CBAT!$D15)=1,VLOOKUP(\"Fixtures-\"&CBAT!$D15,'CBAT Lookups'!$B$5:$O$12,14),0))","v":""},{"$f":"IF('Project Scope'!$C15=\"\",\"\",'TRM Data'!$U$3)","v":""},{"$f":"IF('Project Scope'!$C15=\"\",\"\",'TRM Data'!$V$3)","v":""},{"$f":"IF('Project Scope'!$C15=\"\",\"\",IF($J15<=0,0,MAX(0,(($G15*$H15/1000)-($I15*$J15/1000))*$L15)*$U15)+($AF15/0.003412))","v":""},{"$f":"IF('Project Scope'!$C15=\"\",\"\",IF($J15<=0,0,MAX(0,(($G15*$H15/1000)-($I15*$J15/1000)))*$T15))","v":""},{"$f":"IF('Project Scope'!$C15=\"\",\"\",IF($J15<=0,0,MAX(0,(($G15*$H15/1000)-($I15*$J15/1000))*$N15)))","v":""},{"$f":"IF('Project Scope'!$C15=\"\",\"\",IF($J15<=0,0,MAX(0,(($G15*$H15/1000)-($I15*$J15/1000))*$O15)*$T15))","v":""},{"$f":"IF('Project Scope'!$C15=\"\",\"\",IF(OR($J15<=0,'Project Information'!$D$44=\"\"),0,-1*MAX(0,(($G15*$H15/1000)-($I15*$J15/1000))*$L15)*$V15*VLOOKUP('Project Information'!$D$44,'CBAT Lookups'!$A$23:$H$30,2)))","v":""},{"$f":"IF('Project Scope'!$C15=\"\",\"\",IF(OR($J15<=0,'Project Information'!$D$44=\"\"),0,-1*MAX(0,(($G15*$H15/1000)-($I15*$J15/1000))*$L15)*$V15*VLOOKUP('Project Information'!$D$44,'CBAT Lookups'!$A$23:$H$30,3)))","v":""},{"$f":"IF('Project Scope'!$C15=\"\",\"\",IF(OR($J15<=0,'Project Information'!$D$44=\"\"),0,-1*MAX(0,(($G15*$H15/1000)-($I15*$J15/1000))*$L15)*$V15*VLOOKUP('Project Information'!$D$44,'CBAT Lookups'!$A$23:$H$30,4)))","v":""},{"$f":"IF('Project Scope'!$C15=\"\",\"\",IF(OR($J15<=0,'Project Information'!$D$44=\"\"),0,-1*MAX(0,(($G15*$H15/1000)-($I15*$J15/1000))*$L15)*$V15*VLOOKUP('Project Information'!$D$44,'CBAT Lookups'!$A$23:$H$30,5)))","v":""},{"$f":"IF('Project Scope'!$C15=\"\",\"\",IF(OR($J15<=0,'Project Information'!$D$44=\"\"),0,-1*MAX(0,(($G15*$H15/1000)-($I15*$J15/1000))*$L15)*$V15*VLOOKUP('Project Information'!$D$44,'CBAT Lookups'!$A$23:$H$30,6)))","v":""},{"$f":"IF('Project Scope'!$C15=\"\",\"\",IF(OR($J15<=0,'Project Information'!$D$44=\"\"),0,-1*MAX(0,(($G15*$H15/1000)-($I15*$J15/1000))*$L15)*$V15*VLOOKUP('Project Information'!$D$44,'CBAT Lookups'!$A$23:$H$30,7)))","v":""},{"$f":"IF('Project Scope'!$C15=\"\",\"\",IF(OR($J15<=0,'Project Information'!$D$44=\"\"),0,-1*MAX(0,(($G15*$H15/1000)-($I15*$J15/1000))*$L15)*$V15*VLOOKUP('Project Information'!$D$44,'CBAT Lookups'!$A$23:$H$30,8)))","v":""},null,{"$f":"IF('Project Scope'!$C15=\"\",\"\",VLOOKUP($F15,'CBAT Lookups'!$B$17:$K$19,4))","v":""},{"$f":"IF('Project Scope'!$C15=\"\",\"\",VLOOKUP($F15,'CBAT Lookups'!$B$17:$K$19,5))","v":""},{"$f":"IF('Project Scope'!$C15=\"\",\"\",VLOOKUP($F15,'CBAT Lookups'!$B$17:$K$19,6))","v":""},{"$f":"IF('Project Scope'!$C15=\"\",\"\",VLOOKUP($F15,'CBAT Lookups'!$B$17:$K$19,7))","v":""},{"$f":"IF('Project Scope'!$C15=\"\",\"\",IF(SUMPRODUCT($P15:$S15,$AN15:$AQ15)=0,0,P15*AN15/SUMPRODUCT($P15:$S15,$AN15:$AQ15)))","v":""},{"$f":"IF('Project Scope'!$C15=\"\",\"\",IF(SUMPRODUCT($P15:$S15,$AN15:$AQ15)=0,0,Q15*AO15/SUMPRODUCT($P15:$S15,$AN15:$AQ15)))","v":""},{"$f":"IF('Project Scope'!$C15=\"\",\"\",IF(SUMPRODUCT($P15:$S15,$AN15:$AQ15)=0,0,R15*AP15/SUMPRODUCT($P15:$S15,$AN15:$AQ15)))","v":""},{"$f":"IF('Project Scope'!$C15=\"\",\"\",IF(SUMPRODUCT($P15:$S15,$AN15:$AQ15)=0,0,S15*AQ15/SUMPRODUCT($P15:$S15,$AN15:$AQ15)))","v":""},{"$f":"IF('Project Scope'!$C15=\"\",\"\",Benefits($AB15,$AD15,$AE15,$AG15,$AH15,$AI15,$AJ15,$AK15,$AL15,$AM15,$M15,$AR15,$AS15,$AT15,$AU15,$W15,$X15,$Y15,$Z15,$AA15,$E15))","v":""},"","","","","","","","",null,{"$f":"IF('Project Scope'!$C15=\"\",\"\",SUM('Project Scope'!$AT15,'Project Scope'!$AU15))","v":""},{"$f":"IF('Project Scope'!$C15=\"\",\"\",SUM('Project Scope'!$BG15, 'Project Scope'!$AR15,(IF(ISNUMBER('Project Scope'!$AS15),'Project Scope'!$AS15,0)*'Project Information'!$D$12)))","v":""},null,null,{"$f":"IF('Project Scope'!$C15=\"\",\"\",IF(COUNTIF('CBAT Lookups'!$B$5:$B$12,\"Controls-\"&CBAT!$D15)=1,VLOOKUP(\"Controls-\"&CBAT!$D15,'CBAT Lookups'!$B$5:$L$12,11),0))","v":""},{"$f":"IF('Project Scope'!$C15=\"\",\"\",IF(COUNTIF('CBAT Lookups'!$B$5:$B$12,\"Controls-\"&CBAT!$D15)=1,VLOOKUP(\"Controls-\"&CBAT!$D15,'CBAT Lookups'!$B$5:$K$12,2),0)*VLOOKUP($F15,'CBAT Lookups'!$B$17:$K$19,2))","v":""},{"$f":"IF('Project Scope'!$C15=\"\",\"\",IF(COUNTIF('CBAT Lookups'!$B$5:$B$12,\"Controls-\"&CBAT!$D15)=1,VLOOKUP(\"Controls-\"&CBAT!$D15,'CBAT Lookups'!$B$5:$K$12,3),0)*VLOOKUP($F15,'CBAT Lookups'!$B$17:$K$19,3))","v":""},{"$f":"IF('Project Scope'!$C15=\"\",\"\",IF(COUNTIF('CBAT Lookups'!$B$5:$B$12,\"Controls-\"&CBAT!$D15)=1,VLOOKUP(\"Controls-\"&CBAT!$D15,'CBAT Lookups'!$B$5:$K$12,4),0))","v":""},{"$f":"IF('Project Scope'!$C15=\"\",\"\",IF(COUNTIF('CBAT Lookups'!$B$5:$B$12,\"Controls-\"&CBAT!$D15)=1,VLOOKUP(\"Controls-\"&CBAT!$D15,'CBAT Lookups'!$B$5:$K$12,5),0))","v":""},{"$f":"IF('Project Scope'!$C15=\"\",\"\",IF(COUNTIF('CBAT Lookups'!$B$5:$B$12,\"Controls-\"&CBAT!$D15)=1,VLOOKUP(\"Controls-\"&CBAT!$D15,'CBAT Lookups'!$B$5:$K$12,6),0))","v":""},{"$f":"IF('Project Scope'!$C15=\"\",\"\",IF(COUNTIF('CBAT Lookups'!$B$5:$B$12,\"Controls-\"&CBAT!$D15)=1,VLOOKUP(\"Controls-\"&CBAT!$D15,'CBAT Lookups'!$B$5:$K$12,7),0))","v":""},{"$f":"IF('Project Scope'!$C15=\"\",\"\",IF(VLOOKUP($F15,'CBAT Lookups'!$B$17:$K$19,8)=\"W\",1,IF(COUNTIF('CBAT Lookups'!$B$5:$B$12,\"Controls-\"&CBAT!$D15)=1,VLOOKUP(\"Controls-\"&CBAT!$D15,'CBAT Lookups'!$B$5:$K$12,8),0)*VLOOKUP($F15,'CBAT Lookups'!$B$17:$K$19,8)))","v":""},{"$f":"IF('Project Scope'!$C15=\"\",\"\",IF(VLOOKUP($F15,'CBAT Lookups'!$B$17:$K$19,9)=\"W\",1,IF(COUNTIF('CBAT Lookups'!$B$5:$B$12,\"Controls-\"&CBAT!$D15)=1,VLOOKUP(\"Controls-\"&CBAT!$D15,'CBAT Lookups'!$B$5:$K$12,9),0)*VLOOKUP($F15,'CBAT Lookups'!$B$17:$K$19,9)))","v":""},{"$f":"IF('Project Scope'!$C15=\"\",\"\",IF(COUNTIF('CBAT Lookups'!$B$5:$B$12,\"Controls-\"&CBAT!$D15)=1,VLOOKUP(\"Controls-\"&CBAT!$D15,'CBAT Lookups'!$B$5:$K$12,10),0)*VLOOKUP($F15,'CBAT Lookups'!$B$17:$K$19,10))","v":""},{"$f":"IF('Project Scope'!$C15=\"\",\"\",VLOOKUP($C15,'CBAT Lookups'!$A$33:$B$57,2))","v":""},{"$f":"IF('Project Scope'!$C15=\"\",\"\",IF(COUNTIF('CBAT Lookups'!$B$5:$B$12,\"Controls-\"&CBAT!$D15)=1,VLOOKUP(\"Controls-\"&CBAT!$D15,'CBAT Lookups'!$B$5:$O$12,12),0))","v":""},{"$f":"IF('Project Scope'!$C15=\"\",\"\",IF(COUNTIF('CBAT Lookups'!$B$5:$B$12,\"Controls-\"&CBAT!$D15)=1,VLOOKUP(\"Controls-\"&CBAT!$D15,'CBAT Lookups'!$B$5:$O$12,13),0))","v":""},{"$f":"IF('Project Scope'!$C15=\"\",\"\",IF(COUNTIF('CBAT Lookups'!$B$5:$B$12,\"Controls-\"&CBAT!$D15)=1,VLOOKUP(\"Controls-\"&CBAT!$D15,'CBAT Lookups'!$B$5:$O$12,14),0))","v":""},{"$f":"IF('Project Scope'!$C15=\"\",\"\",'TRM Data'!$U$3)","v":""},{"$f":"IF('Project Scope'!$C15=\"\",\"\",'TRM Data'!$V$3)","v":""},{"$f":"IF('Project Scope'!$C15=\"\",\"\",IF($K15<=0,0,MAX(0,(IF(AND($I15>0,$J15>0),($I15*$J15)/1000,($G15*$H15)/1000)*$L15))*$BT15*$BR15)+($CD15/0.003412))","v":""},{"$f":"IF('Project Scope'!$C15=\"\",\"\",IF($K15<=0,0,MAX(0,IF(AND($I15>0,$J15>0),($I15*$J15)/1000,($G15*$H15)/1000))*$BQ15))","v":""},{"$f":"IF('Project Scope'!$C15=\"\",\"\",IF($K15<=0,0,MAX(0,IF(AND($I15>0,$J15>0),($I15*$J15)/1000,($G15*$H15)/1000))*$BK15))","v":""},{"$f":"IF('Project Scope'!$C15=\"\",\"\",IF($K15<=0,0,MAX(0,IF(AND($I15>0,$J15>0),($I15*$J15)/1000,($G15*$H15)/1000))*$BL15*$BQ15))","v":""},{"$f":"IF('Project Scope'!$C15=\"\",\"\",IF(OR($K15<=0,'Project Information'!$D$44=\"\"),0,-1*MAX(0,IF(AND($I15>0,$J15>0),($I15*$J15)/1000,($G15*$H15)/1000))*$BT15*$L15*$BS15*VLOOKUP('Project Information'!$D$44,'CBAT Lookups'!$A$23:$H$30,2)))","v":""},{"$f":"IF('Project Scope'!$C15=\"\",\"\",IF(OR($K15<=0,'Project Information'!$D$44=\"\"),0,-1*MAX(0,IF(AND($I15>0,$J15>0),($I15*$J15)/1000,($G15*$H15)/1000))*$BT15*$L15*$BS15*VLOOKUP('Project Information'!$D$44,'CBAT Lookups'!$A$23:$H$30,3)))","v":""},{"$f":"IF('Project Scope'!$C15=\"\",\"\",IF(OR($K15<=0,'Project Information'!$D$44=\"\"),0,-1*MAX(0,IF(AND($I15>0,$J15>0),($I15*$J15)/1000,($G15*$H15)/1000))*$BT15*$L15*$BS15*VLOOKUP('Project Information'!$D$44,'CBAT Lookups'!$A$23:$H$30,4)))","v":""},{"$f":"IF('Project Scope'!$C15=\"\",\"\",IF(OR($K15<=0,'Project Information'!$D$44=\"\"),0,-1*MAX(0,IF(AND($I15>0,$J15>0),($I15*$J15)/1000,($G15*$H15)/1000))*$BT15*$L15*$BS15*VLOOKUP('Project Information'!$D$44,'CBAT Lookups'!$A$23:$H$30,5)))","v":""},{"$f":"IF('Project Scope'!$C15=\"\",\"\",IF(OR($K15<=0,'Project Information'!$D$44=\"\"),0,-1*MAX(0,IF(AND($I15>0,$J15>0),($I15*$J15)/1000,($G15*$H15)/1000))*$BT15*$L15*$BS15*VLOOKUP('Project Information'!$D$44,'CBAT Lookups'!$A$23:$H$30,6)))","v":""},{"$f":"IF('Project Scope'!$C15=\"\",\"\",IF(OR($K15<=0,'Project Information'!$D$44=\"\"),0,-1*MAX(0,IF(AND($I15>0,$J15>0),($I15*$J15)/1000,($G15*$H15)/1000))*$BT15*$L15*$BS15*VLOOKUP('Project Information'!$D$44,'CBAT Lookups'!$A$23:$H$30,7)))","v":""},{"$f":"IF('Project Scope'!$C15=\"\",\"\",IF(OR($K15<=0,'Project Information'!$D$44=\"\"),0,-1*MAX(0,IF(AND($I15>0,$J15>0),($I15*$J15)/1000,($G15*$H15)/1000))*$BT15*$L15*$BS15*VLOOKUP('Project Information'!$D$44,'CBAT Lookups'!$A$23:$H$30,8)))","v":""},null,{"$f":"IF('Project Scope'!$C15=\"\",\"\",VLOOKUP($F15,'CBAT Lookups'!$B$17:$K$19,4))","v":""},{"$f":"IF('Project Scope'!$C15=\"\",\"\",VLOOKUP($F15,'CBAT Lookups'!$B$17:$K$19,5))","v":""},{"$f":"IF('Project Scope'!$C15=\"\",\"\",VLOOKUP($F15,'CBAT Lookups'!$B$17:$K$19,6))","v":""},{"$f":"IF('Project Scope'!$C15=\"\",\"\",VLOOKUP($F15,'CBAT Lookups'!$B$17:$K$19,7))","v":""},{"$f":"IF('Project Scope'!$C15=\"\",\"\",IF(SUMPRODUCT($BM15:$BP15,$CL15:$CO15)=0,0,BM15*CL15/SUMPRODUCT($BM15:$BP15,$CL15:$CO15)))","v":""},{"$f":"IF('Project Scope'!$C15=\"\",\"\",IF(SUMPRODUCT($BM15:$BP15,$CL15:$CO15)=0,0,BN15*CM15/SUMPRODUCT($BM15:$BP15,$CL15:$CO15)))","v":""},{"$f":"IF('Project Scope'!$C15=\"\",\"\",IF(SUMPRODUCT($BM15:$BP15,$CL15:$CO15)=0,0,BO15*CN15/SUMPRODUCT($BM15:$BP15,$CL15:$CO15)))","v":""},{"$f":"IF('Project Scope'!$C15=\"\",\"\",IF(SUMPRODUCT($BM15:$BP15,$CL15:$CO15)=0,0,BP15*CO15/SUMPRODUCT($BM15:$BP15,$CL15:$CO15)))","v":""},{"$f":"IF('Project Scope'!$C15=\"\",\"\",Benefits($BZ15,$CB15,$CC15,$CE15,$CF15,$CG15,$CH15,$CI15,$CJ15,$CK15,$BJ15,$CP15,$CQ15,$CR15,$CS15,$BU15,$BV15,$BW15,$BX15,$BY15,$E15))","v":""},"","","","","","","","",null,{"$f":"IF('Project Scope'!$C15=\"\",\"\",SUM('Project Scope'!$BB15,'Project Scope'!$BC15))","v":""},{"$f":"IF('Project Scope'!$C15=\"\",\"\",SUM('Project Scope'!$BH15, 'Project Scope'!$AZ15,(IF(ISNUMBER('Project Scope'!$BA15),'Project Scope'!$BA15,0)*'Project Information'!$D$12)))","v":""},null,null,{"$f":"IF('Project Scope'!$C15=\"\",\"\",IF($J15<=0,0,(SUMPRODUCT($AV15:$BC15,--($AV15:$BC15>0))+$BE15)*$DK15/((-SUMPRODUCT($AV15:$BC15,--($AV15:$BC15<0))+$BG15+$BH15+$BI15)*$DK15)))","v":""},{"$f":"IF('Project Scope'!$C15=\"\",\"\",IF($K15<=0,0,(SUMPRODUCT($CT15:$DA15,--($CT15:$DA15>0))+$DC15)*$DK15/((-SUMPRODUCT($CT15:$DA15,--($CT15:$DA15<0))+$DE15+$DF15+$DG15)*$DK15)))","v":""},{"$f":"IF('Project Scope'!$C15=\"\",\"\",IF(AND($J15<=0,$K15<=0),0,(SUMPRODUCT($AV15:$BC15,--($AV15:$BC15>0))+$BE15+SUMPRODUCT($CT15:$DA15,--($CT15:$DA15>0))+$DC15)*$DK15/((-SUMPRODUCT($AV15:$BC15,--($AV15:$BC15<0))+$BG15+$BH15+$BI15-SUMPRODUCT($CT15:$DA15,--($CT15:$DA15<0))+$DE15+$DF15+$DG15)*$DK15)))","v":""},{"$f":"IF('Project Scope'!$C15=\"\",\"\",IF(NetOrGross=\"Net\",(1-Z15+AA15),1))","v":""}]
[{"$f":"'Project Scope'!$B16","v":9},{"$f":"IF('Project Scope'!$C16=\"\",\"\",'Project Scope'!$C16)","v":""},{"$f":"IF('Project Scope'!$C16=\"\",\"\",'Project Scope'!$H16)","v":""},{"$f":"IF(ISNUMBER(SEARCH(\"Bay\",'Project Scope'!$Q16)),\"Bay\",IF('Project Scope'!C16=\"\",\"\",'Project Scope'!E16))","v":""},{"$f":"IF('Project Scope'!$C16=\"\",\"\",\"Com\")","v":""},{"$f":"IF('Project Scope'!$C16=\"\",\"\",'Project Scope'!$L16)","v":""},{"$f":"IF('Project Scope'!$C16=\"\",\"\",IF('Project Scope'!$CJ16=\"\",0,'Project Scope'!$CJ16))","v":""},{"$f":"IF('Project Scope'!$C16=\"\",\"\",IF('Project Scope'!$N16=\"\",0,'Project Scope'!$N16))","v":""},{"$f":"IF('Project Scope'!$C16=\"\",\"\",IF('Project Scope'!$CK16=\"\",0,'Project Scope'!$CK16))","v":""},{"$f":"IF('Project Scope'!$C16=\"\",\"\",IF('Project Scope'!$AO16=\"\",0,'Project Scope'!$AO16))","v":""},{"$f":"IF('Project Scope'!$C16=\"\",\"\",IF('Project Scope'!$AX16=\"\",0,'Project Scope'!$AX16))","v":""},{"$f":"IF('Project Scope'!$C16=\"\",\"\",IF('Project Scope'!$M16=\"\",0,'Project Scope'!$M16))","v":""},{"$f":"IF('Project Scope'!$C16=\"\",\"\",IF(COUNTIF('CBAT Lookups'!$B$5:$B$12,\"Fixtures-\"&CBAT!$D16)=1,VLOOKUP(\"Fixtures-\"&CBAT!$D16,'CBAT Lookups'!$B$5:$L$12,11),0))","v":""},{"$f":"IF('Project Scope'!$C16=\"\",\"\",(IF(COUNTIF('CBAT Lookups'!$B$5:$B$12,\"Fixtures-\"&CBAT!$D16)=1,VLOOKUP(\"Fixtures-\"&CBAT!$D16,'CBAT Lookups'!$B$5:$K$12,2),0))*VLOOKUP($F16,'CBAT Lookups'!$B$17:$K$19,2))","v":""},{"$f":"IF('Project Scope'!$C16=\"\",\"\",(IF(COUNTIF('CBAT Lookups'!$B$5:$B$12,\"Fixtures-\"&CBAT!$D16)=1,VLOOKUP(\"Fixtures-\"&CBAT!$D16,'CBAT Lookups'!$B$5:$K$12,3),0))*VLOOKUP($F16,'CBAT Lookups'!$B$17:$K$19,3))","v":""},{"$f":"IF('Project Scope'!$C16=\"\",\"\",(IF(COUNTIF('CBAT Lookups'!$B$5:$B$12,\"Fixtures-\"&CBAT!$D16)=1,VLOOKUP(\"Fixtures-\"&CBAT!$D16,'CBAT Lookups'!$B$5:$K$12,4),0)))","v":""},{"$f":"IF('Project Scope'!$C16=\"\",\"\",(IF(COUNTIF('CBAT Lookups'!$B$5:$B$12,\"Fixtures-\"&CBAT!$D16)=1,VLOOKUP(\"Fixtures-\"&CBAT!$D16,'CBAT Lookups'!$B$5:$K$12,5),0)))","v":""},{"$f":"IF('Project Scope'!$C16=\"\",\"\",(IF(COUNTIF('CBAT Lookups'!$B$5:$B$12,\"Fixtures-\"&CBAT!$D16)=1,VLOOKUP(\"Fixtures-\"&CBAT!$D16,'CBAT Lookups'!$B$5:$K$12,6),0)))","v":""},{"$f":"IF('Project Scope'!$C16=\"\",\"\",IF(COUNTIF('CBAT Lookups'!$B$5:$B$12,\"Fixtures-\"&CBAT!$D16)=1,VLOOKUP(\"Fixtures-\"&CBAT!$D16,'CBAT Lookups'!$B$5:$K$12,7),0))","v":""},{"$f":"IF('Project Scope'!$C16=\"\",\"\",IF(VLOOKUP($F16,'CBAT Lookups'!$B$17:$K$19,8)=\"W\",1,IF(COUNTIF('CBAT Lookups'!$B$5:$B$12,\"Fixtures-\"&CBAT!$D16)=1,VLOOKUP(\"Fixtures-\"&CBAT!$D16,'CBAT Lookups'!$B$5:$K$12,8),0)*VLOOKUP($F16,'CBAT Lookups'!$B$17:$K$19,8)))","v":""},{"$f":"IF('Project Scope'!$C16=\"\",\"\",IF(VLOOKUP($F16,'CBAT Lookups'!$B$17:$K$19,9)=\"W\",1,IF(COUNTIF('CBAT Lookups'!$B$5:$B$12,\"Fixtures-\"&CBAT!$D16)=1,VLOOKUP(\"Fixtures-\"&CBAT!$D16,'CBAT Lookups'!$B$5:$K$12,9),0)*VLOOKUP($F16,'CBAT Lookups'!$B$17:$K$19,9)))","v":""},{"$f":"IF('Project Scope'!$C16=\"\",\"\",IF(COUNTIF('CBAT Lookups'!$B$5:$B$12,\"Fixtures-\"&CBAT!$D16)=1,VLOOKUP(\"Fixtures-\"&CBAT!$D16,'CBAT Lookups'!$B$5:$K$12,10),0)*VLOOKUP($F16,'CBAT Lookups'!$B$17:$K$19,10))","v":""},{"$f":"IF('Project Scope'!$C16=\"\",\"\",IF(COUNTIF('CBAT Lookups'!$B$5:$B$12,\"Fixtures-\"&CBAT!$D16)=1,VLOOKUP(\"Fixtures-\"&CBAT!$D16,'CBAT Lookups'!$B$5:$O$12,12),0))","v":""},{"$f":"IF('Project Scope'!$C16=\"\",\"\",IF(COUNTIF('CBAT Lookups'!$B$5:$B$12,\"Fixtures-\"&CBAT!$D16)=1,VLOOKUP(\"Fixtures-\"&CBAT!$D16,'CBAT Lookups'!$B$5:$O$12,13),0))","v":""},{"$f":"IF('Project Scope'!$C16=\"\",\"\",IF(COUNTIF('CBAT Lookups'!$B$5:$B$12,\"Fixtures-\"&CBAT!$D16)=1,VLOOKUP(\"Fixtures-\"&CBAT!$D16,'CBAT Lookups'!$B$5:$O$12,14),0))","v":""},{"$f":"IF('Project Scope'!$C16=\"\",\"\",'TRM Data'!$U$3)","v":""},{"$f":"IF('Project Scope'!$C16=\"\",\"\",'TRM Data'!$V$3)","v":""},{"$f":"IF('Project Scope'!$C16=\"\",\"\",IF($J16<=0,0,MAX(0,(($G16*$H16/1000)-($I16*$J16/1000))*$L16)*$U16)+($AF16/0.003412))","v":""},{"$f":"IF('Project Scope'!$C16=\"\",\"\",IF($J16<=0,0,MAX(0,(($G16*$H16/1000)-($I16*$J16/1000)))*$T16))","v":""},{"$f":"IF('Project Scope'!$C16=\"\",\"\",IF($J16<=0,0,MAX(0,(($G16*$H16/1000)-($I16*$J16/1000))*$N16)))","v":""},{"$f":"IF('Project Scope'!$C16=\"\",\"\",IF($J16<=0,0,MAX(0,(($G16*$H16/1000)-($I16*$J16/1000))*$O16)*$T16))","v":""},{"$f":"IF('Project Scope'!$C16=\"\",\"\",IF(OR($J16<=0,'Project Information'!$D$44=\"\"),0,-1*MAX(0,(($G16*$H16/1000)-($I16*$J16/1000))*$L16)*$V16*VLOOKUP('Project Information'!$D$44,'CBAT Lookups'!$A$23:$H$30,2)))","v":""},{"$f":"IF('Project Scope'!$C16=\"\",\"\",IF(OR($J16<=0,'Project Information'!$D$44=\"\"),0,-1*MAX(0,(($G16*$H16/1000)-($I16*$J16/1000))*$L16)*$V16*VLOOKUP('Project Information'!$D$44,'CBAT Lookups'!$A$23:$H$30,3)))","v":""},{"$f":"IF('Project Scope'!$C16=\"\",\"\",IF(OR($J16<=0,'Project Information'!$D$44=\"\"),0,-1*MAX(0,(($G16*$H16/1000)-($I16*$J16/1000))*$L16)*$V16*VLOOKUP('Project Information'!$D$44,'CBAT Lookups'!$A$23:$H$30,4)))","v":""},{"$f":"IF('Project Scope'!$C16=\"\",\"\",IF(OR($J16<=0,'Project Information'!$D$44=\"\"),0,-1*MAX(0,(($G16*$H16/1000)-($I16*$J16/1000))*$L16)*$V16*VLOOKUP('Project Information'!$D$44,'CBAT Lookups'!$A$23:$H$30,5)))","v":""},{"$f":"IF('Project Scope'!$C16=\"\",\"\",IF(OR($J16<=0,'Project Information'!$D$44=\"\"),0,-1*MAX(0,(($G16*$H16/1000)-($I16*$J16/1000))*$L16)*$V16*VLOOKUP('Project Information'!$D$44,'CBAT Lookups'!$A$23:$H$30,6)))","v":""},{"$f":"IF('Project Scope'!$C16=\"\",\"\",IF(OR($J16<=0,'Project Information'!$D$44=\"\"),0,-1*MAX(0,(($G16*$H16/1000)-($I16*$J16/1000))*$L16)*$V16*VLOOKUP('Project Information'!$D$44,'CBAT Lookups'!$A$23:$H$30,7)))","v":""},{"$f":"IF('Project Scope'!$C16=\"\",\"\",IF(OR($J16<=0,'Project Information'!$D$44=\"\"),0,-1*MAX(0,(($G16*$H16/1000)-($I16*$J16/1000))*$L16)*$V16*VLOOKUP('Project Information'!$D$44,'CBAT Lookups'!$A$23:$H$30,8)))","v":""},null,{"$f":"IF('Project Scope'!$C16=\"\",\"\",VLOOKUP($F16,'CBAT Lookups'!$B$17:$K$19,4))","v":""},{"$f":"IF('Project Scope'!$C16=\"\",\"\",VLOOKUP($F16,'CBAT Lookups'!$B$17:$K$19,5))","v":""},{"$f":"IF('Project Scope'!$C16=\"\",\"\",VLOOKUP($F16,'CBAT Lookups'!$B$17:$K$19,6))","v":""},{"$f":"IF('Project Scope'!$C16=\"\",\"\",VLOOKUP($F16,'CBAT Lookups'!$B$17:$K$19,7))","v":""},{"$f":"IF('Project Scope'!$C16=\"\",\"\",IF(SUMPRODUCT($P16:$S16,$AN16:$AQ16)=0,0,P16*AN16/SUMPRODUCT($P16:$S16,$AN16:$AQ16)))","v":""},{"$f":"IF('Project Scope'!$C16=\"\",\"\",IF(SUMPRODUCT($P16:$S16,$AN16:$AQ16)=0,0,Q16*AO16/SUMPRODUCT($P16:$S16,$AN16:$AQ16)))","v":""},{"$f":"IF('Project Scope'!$C16=\"\",\"\",IF(SUMPRODUCT($P16:$S16,$AN16:$AQ16)=0,0,R16*AP16/SUMPRODUCT($P16:$S16,$AN16:$AQ16)))","v":""},{"$f":"IF('Project Scope'!$C16=\"\",\"\",IF(SUMPRODUCT($P16:$S16,$AN16:$AQ16)=0,0,S16*AQ16/SUMPRODUCT($P16:$S16,$AN16:$AQ16)))","v":""},{"$f":"IF('Project Scope'!$C16=\"\",\"\",Benefits($AB16,$AD16,$AE16,$AG16,$AH16,$AI16,$AJ16,$AK16,$AL16,$AM16,$M16,$AR16,$AS16,$AT16,$AU16,$W16,$X16,$Y16,$Z16,$AA16,$E16))","v":""},"","","","","","","","",null,{"$f":"IF('Project Scope'!$C16=\"\",\"\",SUM('Project Scope'!$AT16,'Project Scope'!$AU16))","v":""},{"$f":"IF('Project Scope'!$C16=\"\",\"\",SUM('Project Scope'!$BG16, 'Project Scope'!$AR16,(IF(ISNUMBER('Project Scope'!$AS16),'Project Scope'!$AS16,0)*'Project Information'!$D$12)))","v":""},null,null,{"$f":"IF('Project Scope'!$C16=\"\",\"\",IF(COUNTIF('CBAT Lookups'!$B$5:$B$12,\"Controls-\"&CBAT!$D16)=1,VLOOKUP(\"Controls-\"&CBAT!$D16,'CBAT Lookups'!$B$5:$L$12,11),0))","v":""},{"$f":"IF('Project Scope'!$C16=\"\",\"\",IF(COUNTIF('CBAT Lookups'!$B$5:$B$12,\"Controls-\"&CBAT!$D16)=1,VLOOKUP(\"Controls-\"&CBAT!$D16,'CBAT Lookups'!$B$5:$K$12,2),0)*VLOOKUP($F16,'CBAT Lookups'!$B$17:$K$19,2))","v":""},{"$f":"IF('Project Scope'!$C16=\"\",\"\",IF(COUNTIF('CBAT Lookups'!$B$5:$B$12,\"Controls-\"&CBAT!$D16)=1,VLOOKUP(\"Controls-\"&CBAT!$D16,'CBAT Lookups'!$B$5:$K$12,3),0)*VLOOKUP($F16,'CBAT Lookups'!$B$17:$K$19,3))","v":""},{"$f":"IF('Project Scope'!$C16=\"\",\"\",IF(COUNTIF('CBAT Lookups'!$B$5:$B$12,\"Controls-\"&CBAT!$D16)=1,VLOOKUP(\"Controls-\"&CBAT!$D16,'CBAT Lookups'!$B$5:$K$12,4),0))","v":""},{"$f":"IF('Project Scope'!$C16=\"\",\"\",IF(COUNTIF('CBAT Lookups'!$B$5:$B$12,\"Controls-\"&CBAT!$D16)=1,VLOOKUP(\"Controls-\"&CBAT!$D16,'CBAT Lookups'!$B$5:$K$12,5),0))","v":""},{"$f":"IF('Project Scope'!$C16=\"\",\"\",IF(COUNTIF('CBAT Lookups'!$B$5:$B$12,\"Controls-\"&CBAT!$D16)=1,VLOOKUP(\"Controls-\"&CBAT!$D16,'CBAT Lookups'!$B$5:$K$12,6),0))","v":""},{"$f":"IF('Project Scope'!$C16=\"\",\"\",IF(COUNTIF('CBAT Lookups'!$B$5:$B$12,\"Controls-\"&CBAT!$D16)=1,VLOOKUP(\"Controls-\"&CBAT!$D16,'CBAT Lookups'!$B$5:$K$12,7),0))","v":""},{"$f":"IF('Project Scope'!$C16=\"\",\"\",IF(VLOOKUP($F16,'CBAT Lookups'!$B$17:$K$19,8)=\"W\",1,IF(COUNTIF('CBAT Lookups'!$B$5:$B$12,\"Controls-\"&CBAT!$D16)=1,VLOOKUP(\"Controls-\"&CBAT!$D16,'CBAT Lookups'!$B$5:$K$12,8),0)*VLOOKUP($F16,'CBAT Lookups'!$B$17:$K$19,8)))","v":""},{"$f":"IF('Project Scope'!$C16=\"\",\"\",IF(VLOOKUP($F16,'CBAT Lookups'!$B$17:$K$19,9)=\"W\",1,IF(COUNTIF('CBAT Lookups'!$B$5:$B$12,\"Controls-\"&CBAT!$D16)=1,VLOOKUP(\"Controls-\"&CBAT!$D16,'CBAT Lookups'!$B$5:$K$12,9),0)*VLOOKUP($F16,'CBAT Lookups'!$B$17:$K$19,9)))","v":""},{"$f":"IF('Project Scope'!$C16=\"\",\"\",IF(COUNTIF('CBAT Lookups'!$B$5:$B$12,\"Controls-\"&CBAT!$D16)=1,VLOOKUP(\"Controls-\"&CBAT!$D16,'CBAT Lookups'!$B$5:$K$12,10),0)*VLOOKUP($F16,'CBAT Lookups'!$B$17:$K$19,10))","v":""},{"$f":"IF('Project Scope'!$C16=\"\",\"\",VLOOKUP($C16,'CBAT Lookups'!$A$33:$B$57,2))","v":""},{"$f":"IF('Project Scope'!$C16=\"\",\"\",IF(COUNTIF('CBAT Lookups'!$B$5:$B$12,\"Controls-\"&CBAT!$D16)=1,VLOOKUP(\"Controls-\"&CBAT!$D16,'CBAT Lookups'!$B$5:$O$12,12),0))","v":""},{"$f":"IF('Project Scope'!$C16=\"\",\"\",IF(COUNTIF('CBAT Lookups'!$B$5:$B$12,\"Controls-\"&CBAT!$D16)=1,VLOOKUP(\"Controls-\"&CBAT!$D16,'CBAT Lookups'!$B$5:$O$12,13),0))","v":""},{"$f":"IF('Project Scope'!$C16=\"\",\"\",IF(COUNTIF('CBAT Lookups'!$B$5:$B$12,\"Controls-\"&CBAT!$D16)=1,VLOOKUP(\"Controls-\"&CBAT!$D16,'CBAT Lookups'!$B$5:$O$12,14),0))","v":""},{"$f":"IF('Project Scope'!$C16=\"\",\"\",'TRM Data'!$U$3)","v":""},{"$f":"IF('Project Scope'!$C16=\"\",\"\",'TRM Data'!$V$3)","v":""},{"$f":"IF('Project Scope'!$C16=\"\",\"\",IF($K16<=0,0,MAX(0,(IF(AND($I16>0,$J16>0),($I16*$J16)/1000,($G16*$H16)/1000)*$L16))*$BT16*$BR16)+($CD16/0.003412))","v":""},{"$f":"IF('Project Scope'!$C16=\"\",\"\",IF($K16<=0,0,MAX(0,IF(AND($I16>0,$J16>0),($I16*$J16)/1000,($G16*$H16)/1000))*$BQ16))","v":""},{"$f":"IF('Project Scope'!$C16=\"\",\"\",IF($K16<=0,0,MAX(0,IF(AND($I16>0,$J16>0),($I16*$J16)/1000,($G16*$H16)/1000))*$BK16))","v":""},{"$f":"IF('Project Scope'!$C16=\"\",\"\",IF($K16<=0,0,MAX(0,IF(AND($I16>0,$J16>0),($I16*$J16)/1000,($G16*$H16)/1000))*$BL16*$BQ16))","v":""},{"$f":"IF('Project Scope'!$C16=\"\",\"\",IF(OR($K16<=0,'Project Information'!$D$44=\"\"),0,-1*MAX(0,IF(AND($I16>0,$J16>0),($I16*$J16)/1000,($G16*$H16)/1000))*$BT16*$L16*$BS16*VLOOKUP('Project Information'!$D$44,'CBAT Lookups'!$A$23:$H$30,2)))","v":""},{"$f":"IF('Project Scope'!$C16=\"\",\"\",IF(OR($K16<=0,'Project Information'!$D$44=\"\"),0,-1*MAX(0,IF(AND($I16>0,$J16>0),($I16*$J16)/1000,($G16*$H16)/1000))*$BT16*$L16*$BS16*VLOOKUP('Project Information'!$D$44,'CBAT Lookups'!$A$23:$H$30,3)))","v":""},{"$f":"IF('Project Scope'!$C16=\"\",\"\",IF(OR($K16<=0,'Project Information'!$D$44=\"\"),0,-1*MAX(0,IF(AND($I16>0,$J16>0),($I16*$J16)/1000,($G16*$H16)/1000))*$BT16*$L16*$BS16*VLOOKUP('Project Information'!$D$44,'CBAT Lookups'!$A$23:$H$30,4)))","v":""},{"$f":"IF('Project Scope'!$C16=\"\",\"\",IF(OR($K16<=0,'Project Information'!$D$44=\"\"),0,-1*MAX(0,IF(AND($I16>0,$J16>0),($I16*$J16)/1000,($G16*$H16)/1000))*$BT16*$L16*$BS16*VLOOKUP('Project Information'!$D$44,'CBAT Lookups'!$A$23:$H$30,5)))","v":""},{"$f":"IF('Project Scope'!$C16=\"\",\"\",IF(OR($K16<=0,'Project Information'!$D$44=\"\"),0,-1*MAX(0,IF(AND($I16>0,$J16>0),($I16*$J16)/1000,($G16*$H16)/1000))*$BT16*$L16*$BS16*VLOOKUP('Project Information'!$D$44,'CBAT Lookups'!$A$23:$H$30,6)))","v":""},{"$f":"IF('Project Scope'!$C16=\"\",\"\",IF(OR($K16<=0,'Project Information'!$D$44=\"\"),0,-1*MAX(0,IF(AND($I16>0,$J16>0),($I16*$J16)/1000,($G16*$H16)/1000))*$BT16*$L16*$BS16*VLOOKUP('Project Information'!$D$44,'CBAT Lookups'!$A$23:$H$30,7)))","v":""},{"$f":"IF('Project Scope'!$C16=\"\",\"\",IF(OR($K16<=0,'Project Information'!$D$44=\"\"),0,-1*MAX(0,IF(AND($I16>0,$J16>0),($I16*$J16)/1000,($G16*$H16)/1000))*$BT16*$L16*$BS16*VLOOKUP('Project Information'!$D$44,'CBAT Lookups'!$A$23:$H$30,8)))","v":""},null,{"$f":"IF('Project Scope'!$C16=\"\",\"\",VLOOKUP($F16,'CBAT Lookups'!$B$17:$K$19,4))","v":""},{"$f":"IF('Project Scope'!$C16=\"\",\"\",VLOOKUP($F16,'CBAT Lookups'!$B$17:$K$19,5))","v":""},{"$f":"IF('Project Scope'!$C16=\"\",\"\",VLOOKUP($F16,'CBAT Lookups'!$B$17:$K$19,6))","v":""},{"$f":"IF('Project Scope'!$C16=\"\",\"\",VLOOKUP($F16,'CBAT Lookups'!$B$17:$K$19,7))","v":""},{"$f":"IF('Project Scope'!$C16=\"\",\"\",IF(SUMPRODUCT($BM16:$BP16,$CL16:$CO16)=0,0,BM16*CL16/SUMPRODUCT($BM16:$BP16,$CL16:$CO16)))","v":""},{"$f":"IF('Project Scope'!$C16=\"\",\"\",IF(SUMPRODUCT($BM16:$BP16,$CL16:$CO16)=0,0,BN16*CM16/SUMPRODUCT($BM16:$BP16,$CL16:$CO16)))","v":""},{"$f":"IF('Project Scope'!$C16=\"\",\"\",IF(SUMPRODUCT($BM16:$BP16,$CL16:$CO16)=0,0,BO16*CN16/SUMPRODUCT($BM16:$BP16,$CL16:$CO16)))","v":""},{"$f":"IF('Project Scope'!$C16=\"\",\"\",IF(SUMPRODUCT($BM16:$BP16,$CL16:$CO16)=0,0,BP16*CO16/SUMPRODUCT($BM16:$BP16,$CL16:$CO16)))","v":""},{"$f":"IF('Project Scope'!$C16=\"\",\"\",Benefits($BZ16,$CB16,$CC16,$CE16,$CF16,$CG16,$CH16,$CI16,$CJ16,$CK16,$BJ16,$CP16,$CQ16,$CR16,$CS16,$BU16,$BV16,$BW16,$BX16,$BY16,$E16))","v":""},"","","","","","","","",null,{"$f":"IF('Project Scope'!$C16=\"\",\"\",SUM('Project Scope'!$BB16,'Project Scope'!$BC16))","v":""},{"$f":"IF('Project Scope'!$C16=\"\",\"\",SUM('Project Scope'!$BH16, 'Project Scope'!$AZ16,(IF(ISNUMBER('Project Scope'!$BA16),'Project Scope'!$BA16,0)*'Project Information'!$D$12)))","v":""},null,null,{"$f":"IF('Project Scope'!$C16=\"\",\"\",IF($J16<=0,0,(SUMPRODUCT($AV16:$BC16,--($AV16:$BC16>0))+$BE16)*$DK16/((-SUMPRODUCT($AV16:$BC16,--($AV16:$BC16<0))+$BG16+$BH16+$BI16)*$DK16)))","v":""},{"$f":"IF('Project Scope'!$C16=\"\",\"\",IF($K16<=0,0,(SUMPRODUCT($CT16:$DA16,--($CT16:$DA16>0))+$DC16)*$DK16/((-SUMPRODUCT($CT16:$DA16,--($CT16:$DA16<0))+$DE16+$DF16+$DG16)*$DK16)))","v":""},{"$f":"IF('Project Scope'!$C16=\"\",\"\",IF(AND($J16<=0,$K16<=0),0,(SUMPRODUCT($AV16:$BC16,--($AV16:$BC16>0))+$BE16+SUMPRODUCT($CT16:$DA16,--($CT16:$DA16>0))+$DC16)*$DK16/((-SUMPRODUCT($AV16:$BC16,--($AV16:$BC16<0))+$BG16+$BH16+$BI16-SUMPRODUCT($CT16:$DA16,--($CT16:$DA16<0))+$DE16+$DF16+$DG16)*$DK16)))","v":""},{"$f":"IF('Project Scope'!$C16=\"\",\"\",IF(NetOrGross=\"Net\",(1-Z16+AA16),1))","v":""}]
[{"$f":"'Project Scope'!$B17","v":10},{"$f":"IF('Project Scope'!$C17=\"\",\"\",'Project Scope'!$C17)","v":""},{"$f":"IF('Project Scope'!$C17=\"\",\"\",'Project Scope'!$H17)","v":""},{"$f":"IF(ISNUMBER(SEARCH(\"Bay\",'Project Scope'!$Q17)),\"Bay\",IF('Project Scope'!C17=\"\",\"\",'Project Scope'!E17))","v":""},{"$f":"IF('Project Scope'!$C17=\"\",\"\",\"Com\")","v":""},{"$f":"IF('Project Scope'!$C17=\"\",\"\",'Project Scope'!$L17)","v":""},{"$f":"IF('Project Scope'!$C17=\"\",\"\",IF('Project Scope'!$CJ17=\"\",0,'Project Scope'!$CJ17))","v":""},{"$f":"IF('Project Scope'!$C17=\"\",\"\",IF('Project Scope'!$N17=\"\",0,'Project Scope'!$N17))","v":""},{"$f":"IF('Project Scope'!$C17=\"\",\"\",IF('Project Scope'!$CK17=\"\",0,'Project Scope'!$CK17))","v":""},{"$f":"IF('Project Scope'!$C17=\"\",\"\",IF('Project Scope'!$AO17=\"\",0,'Project Scope'!$AO17))","v":""},{"$f":"IF('Project Scope'!$C17=\"\",\"\",IF('Project Scope'!$AX17=\"\",0,'Project Scope'!$AX17))","v":""},{"$f":"IF('Project Scope'!$C17=\"\",\"\",IF('Project Scope'!$M17=\"\",0,'Project Scope'!$M17))","v":""},{"$f":"IF('Project Scope'!$C17=\"\",\"\",IF(COUNTIF('CBAT Lookups'!$B$5:$B$12,\"Fixtures-\"&CBAT!$D17)=1,VLOOKUP(\"Fixtures-\"&CBAT!$D17,'CBAT Lookups'!$B$5:$L$12,11),0))","v":""},{"$f":"IF('Project Scope'!$C17=\"\",\"\",(IF(COUNTIF('CBAT Lookups'!$B$5:$B$12,\"Fixtures-\"&CBAT!$D17)=1,VLOOKUP(\"Fixtures-\"&CBAT!$D17,'CBAT Lookups'!$B$5:$K$12,2),0))*VLOOKUP($F17,'CBAT Lookups'!$B$17:$K$19,2))","v":""},{"$f":"IF('Project Scope'!$C17=\"\",\"\",(IF(COUNTIF('CBAT Lookups'!$B$5:$B$12,\"Fixtures-\"&CBAT!$D17)=1,VLOOKUP(\"Fixtures-\"&CBAT!$D17,'CBAT Lookups'!$B$5:$K$12,3),0))*VLOOKUP($F17,'CBAT Lookups'!$B$17:$K$19,3))","v":""},{"$f":"IF('Project Scope'!$C17=\"\",\"\",(IF(COUNTIF('CBAT Lookups'!$B$5:$B$12,\"Fixtures-\"&CBAT!$D17)=1,VLOOKUP(\"Fixtures-\"&CBAT!$D17,'CBAT Lookups'!$B$5:$K$12,4),0)))","v":""},{"$f":"IF('Project Scope'!$C17=\"\",\"\",(IF(COUNTIF('CBAT Lookups'!$B$5:$B$12,\"Fixtures-\"&CBAT!$D17)=1,VLOOKUP(\"Fixtures-\"&CBAT!$D17,'CBAT Lookups'!$B$5:$K$12,5),0)))","v":""},{"$f":"IF('Project Scope'!$C17=\"\",\"\",(IF(COUNTIF('CBAT Lookups'!$B$5:$B$12,\"Fixtures-\"&CBAT!$D17)=1,VLOOKUP(\"Fixtures-\"&CBAT!$D17,'CBAT Lookups'!$B$5:$K$12,6),0)))","v":""},{"$f":"IF('Project Scope'!$C17=\"\",\"\",IF(COUNTIF('CBAT Lookups'!$B$5:$B$12,\"Fixtures-\"&CBAT!$D17)=1,VLOOKUP(\"Fixtures-\"&CBAT!$D17,'CBAT Lookups'!$B$5:$K$12,7),0))","v":""},{"$f":"IF('Project Scope'!$C17=\"\",\"\",IF(VLOOKUP($F17,'CBAT Lookups'!$B$17:$K$19,8)=\"W\",1,IF(COUNTIF('CBAT Lookups'!$B$5:$B$12,\"Fixtures-\"&CBAT!$D17)=1,VLOOKUP(\"Fixtures-\"&CBAT!$D17,'CBAT Lookups'!$B$5:$K$12,8),0)*VLOOKUP($F17,'CBAT Lookups'!$B$17:$K$19,8)))","v":""},{"$f":"IF('Project Scope'!$C17=\"\",\"\",IF(VLOOKUP($F17,'CBAT Lookups'!$B$17:$K$19,9)=\"W\",1,IF(COUNTIF('CBAT Lookups'!$B$5:$B$12,\"Fixtures-\"&CBAT!$D17)=1,VLOOKUP(\"Fixtures-\"&CBAT!$D17,'CBAT Lookups'!$B$5:$K$12,9),0)*VLOOKUP($F17,'CBAT Lookups'!$B$17:$K$19,9)))","v":""},{"$f":"IF('Project Scope'!$C17=\"\",\"\",IF(COUNTIF('CBAT Lookups'!$B$5:$B$12,\"Fixtures-\"&CBAT!$D17)=1,VLOOKUP(\"Fixtures-\"&CBAT!$D17,'CBAT Lookups'!$B$5:$K$12,10),0)*VLOOKUP($F17,'CBAT Lookups'!$B$17:$K$19,10))","v":""},{"$f":"IF('Project Scope'!$C17=\"\",\"\",IF(COUNTIF('CBAT Lookups'!$B$5:$B$12,\"Fixtures-\"&CBAT!$D17)=1,VLOOKUP(\"Fixtures-\"&CBAT!$D17,'CBAT Lookups'!$B$5:$O$12,12),0))","v":""},{"$f":"IF('Project Scope'!$C17=\"\",\"\",IF(COUNTIF('CBAT Lookups'!$B$5:$B$12,\"Fixtures-\"&CBAT!$D17)=1,VLOOKUP(\"Fixtures-\"&CBAT!$D17,'CBAT Lookups'!$B$5:$O$12,13),0))","v":""},{"$f":"IF('Project Scope'!$C17=\"\",\"\",IF(COUNTIF('CBAT Lookups'!$B$5:$B$12,\"Fixtures-\"&CBAT!$D17)=1,VLOOKUP(\"Fixtures-\"&CBAT!$D17,'CBAT Lookups'!$B$5:$O$12,14),0))","v":""},{"$f":"IF('Project Scope'!$C17=\"\",\"\",'TRM Data'!$U$3)","v":""},{"$f":"IF('Project Scope'!$C17=\"\",\"\",'TRM Data'!$V$3)","v":""},{"$f":"IF('Project Scope'!$C17=\"\",\"\",IF($J17<=0,0,MAX(0,(($G17*$H17/1000)-($I17*$J17/1000))*$L17)*$U17)+($AF17/0.003412))","v":""},{"$f":"IF('Project Scope'!$C17=\"\",\"\",IF($J17<=0,0,MAX(0,(($G17*$H17/1000)-($I17*$J17/1000)))*$T17))","v":""},{"$f":"IF('Project Scope'!$C17=\"\",\"\",IF($J17<=0,0,MAX(0,(($G17*$H17/1000)-($I17*$J17/1000))*$N17)))","v":""},{"$f":"IF('Project Scope'!$C17=\"\",\"\",IF($J17<=0,0,MAX(0,(($G17*$H17/1000)-($I17*$J17/1000))*$O17)*$T17))","v":""},{"$f":"IF('Project Scope'!$C17=\"\",\"\",IF(OR($J17<=0,'Project Information'!$D$44=\"\"),0,-1*MAX(0,(($G17*$H17/1000)-($I17*$J17/1000))*$L17)*$V17*VLOOKUP('Project Information'!$D$44,'CBAT Lookups'!$A$23:$H$30,2)))","v":""},{"$f":"IF('Project Scope'!$C17=\"\",\"\",IF(OR($J17<=0,'Project Information'!$D$44=\"\"),0,-1*MAX(0,(($G17*$H17/1000)-($I17*$J17/1000))*$L17)*$V17*VLOOKUP('Project Information'!$D$44,'CBAT Lookups'!$A$23:$H$30,3)))","v":""},{"$f":"IF('Project Scope'!$C17=\"\",\"\",IF(OR($J17<=0,'Project Information'!$D$44=\"\"),0,-1*MAX(0,(($G17*$H17/1000)-($I17*$J17/1000))*$L17)*$V17*VLOOKUP('Project Information'!$D$44,'CBAT Lookups'!$A$23:$H$30,4)))","v":""},{"$f":"IF('Project Scope'!$C17=\"\",\"\",IF(OR($J17<=0,'Project Information'!$D$44=\"\"),0,-1*MAX(0,(($G17*$H17/1000)-($I17*$J17/1000))*$L17)*$V17*VLOOKUP('Project Information'!$D$44,'CBAT Lookups'!$A$23:$H$30,5)))","v":""},{"$f":"IF('Project Scope'!$C17=\"\",\"\",IF(OR($J17<=0,'Project Information'!$D$44=\"\"),0,-1*MAX(0,(($G17*$H17/1000)-($I17*$J17/1000))*$L17)*$V17*VLOOKUP('Project Information'!$D$44,'CBAT Lookups'!$A$23:$H$30,6)))","v":""},{"$f":"IF('Project Scope'!$C17=\"\",\"\",IF(OR($J17<=0,'Project Information'!$D$44=\"\"),0,-1*MAX(0,(($G17*$H17/1000)-($I17*$J17/1000))*$L17)*$V17*VLOOKUP('Project Information'!$D$44,'CBAT Lookups'!$A$23:$H$30,7)))","v":""},{"$f":"IF('Project Scope'!$C17=\"\",\"\",IF(OR($J17<=0,'Project Information'!$D$44=\"\"),0,-1*MAX(0,(($G17*$H17/1000)-($I17*$J17/1000))*$L17)*$V17*VLOOKUP('Project Information'!$D$44,'CBAT Lookups'!$A$23:$H$30,8)))","v":""},null,{"$f":"IF('Project Scope'!$C17=\"\",\"\",VLOOKUP($F17,'CBAT Lookups'!$B$17:$K$19,4))","v":""},{"$f":"IF('Project Scope'!$C17=\"\",\"\",VLOOKUP($F17,'CBAT Lookups'!$B$17:$K$19,5))","v":""},{"$f":"IF('Project Scope'!$C17=\"\",\"\",VLOOKUP($F17,'CBAT Lookups'!$B$17:$K$19,6))","v":""},{"$f":"IF('Project Scope'!$C17=\"\",\"\",VLOOKUP($F17,'CBAT Lookups'!$B$17:$K$19,7))","v":""},{"$f":"IF('Project Scope'!$C17=\"\",\"\",IF(SUMPRODUCT($P17:$S17,$AN17:$AQ17)=0,0,P17*AN17/SUMPRODUCT($P17:$S17,$AN17:$AQ17)))","v":""},{"$f":"IF('Project Scope'!$C17=\"\",\"\",IF(SUMPRODUCT($P17:$S17,$AN17:$AQ17)=0,0,Q17*AO17/SUMPRODUCT($P17:$S17,$AN17:$AQ17)))","v":""},{"$f":"IF('Project Scope'!$C17=\"\",\"\",IF(SUMPRODUCT($P17:$S17,$AN17:$AQ17)=0,0,R17*AP17/SUMPRODUCT($P17:$S17,$AN17:$AQ17)))","v":""},{"$f":"IF('Project Scope'!$C17=\"\",\"\",IF(SUMPRODUCT($P17:$S17,$AN17:$AQ17)=0,0,S17*AQ17/SUMPRODUCT($P17:$S17,$AN17:$AQ17)))","v":""},{"$f":"IF('Project Scope'!$C17=\"\",\"\",Benefits($AB17,$AD17,$AE17,$AG17,$AH17,$AI17,$AJ17,$AK17,$AL17,$AM17,$M17,$AR17,$AS17,$AT17,$AU17,$W17,$X17,$Y17,$Z17,$AA17,$E17))","v":""},"","","","","","","","",null,{"$f":"IF('Project Scope'!$C17=\"\",\"\",SUM('Project Scope'!$AT17,'Project Scope'!$AU17))","v":""},{"$f":"IF('Project Scope'!$C17=\"\",\"\",SUM('Project Scope'!$BG17, 'Project Scope'!$AR17,(IF(ISNUMBER('Project Scope'!$AS17),'Project Scope'!$AS17,0)*'Project Information'!$D$12)))","v":""},null,null,{"$f":"IF('Project Scope'!$C17=\"\",\"\",IF(COUNTIF('CBAT Lookups'!$B$5:$B$12,\"Controls-\"&CBAT!$D17)=1,VLOOKUP(\"Controls-\"&CBAT!$D17,'CBAT Lookups'!$B$5:$L$12,11),0))","v":""},{"$f":"IF('Project Scope'!$C17=\"\",\"\",IF(COUNTIF('CBAT Lookups'!$B$5:$B$12,\"Controls-\"&CBAT!$D17)=1,VLOOKUP(\"Controls-\"&CBAT!$D17,'CBAT Lookups'!$B$5:$K$12,2),0)*VLOOKUP($F17,'CBAT Lookups'!$B$17:$K$19,2))","v":""},{"$f":"IF('Project Scope'!$C17=\"\",\"\",IF(COUNTIF('CBAT Lookups'!$B$5:$B$12,\"Controls-\"&CBAT!$D17)=1,VLOOKUP(\"Controls-\"&CBAT!$D17,'CBAT Lookups'!$B$5:$K$12,3),0)*VLOOKUP($F17,'CBAT Lookups'!$B$17:$K$19,3))","v":""},{"$f":"IF('Project Scope'!$C17=\"\",\"\",IF(COUNTIF('CBAT Lookups'!$B$5:$B$12,\"Controls-\"&CBAT!$D17)=1,VLOOKUP(\"Controls-\"&CBAT!$D17,'CBAT Lookups'!$B$5:$K$12,4),0))","v":""},{"$f":"IF('Project Scope'!$C17=\"\",\"\",IF(COUNTIF('CBAT Lookups'!$B$5:$B$12,\"Controls-\"&CBAT!$D17)=1,VLOOKUP(\"Controls-\"&CBAT!$D17,'CBAT Lookups'!$B$5:$K$12,5),0))","v":""},{"$f":"IF('Project Scope'!$C17=\"\",\"\",IF(COUNTIF('CBAT Lookups'!$B$5:$B$12,\"Controls-\"&CBAT!$D17)=1,VLOOKUP(\"Controls-\"&CBAT!$D17,'CBAT Lookups'!$B$5:$K$12,6),0))","v":""},{"$f":"IF('Project Scope'!$C17=\"\",\"\",IF(COUNTIF('CBAT Lookups'!$B$5:$B$12,\"Controls-\"&CBAT!$D17)=1,VLOOKUP(\"Controls-\"&CBAT!$D17,'CBAT Lookups'!$B$5:$K$12,7),0))","v":""},{"$f":"IF('Project Scope'!$C17=\"\",\"\",IF(VLOOKUP($F17,'CBAT Lookups'!$B$17:$K$19,8)=\"W\",1,IF(COUNTIF('CBAT Lookups'!$B$5:$B$12,\"Controls-\"&CBAT!$D17)=1,VLOOKUP(\"Controls-\"&CBAT!$D17,'CBAT Lookups'!$B$5:$K$12,8),0)*VLOOKUP($F17,'CBAT Lookups'!$B$17:$K$19,8)))","v":""},{"$f":"IF('Project Scope'!$C17=\"\",\"\",IF(VLOOKUP($F17,'CBAT Lookups'!$B$17:$K$19,9)=\"W\",1,IF(COUNTIF('CBAT Lookups'!$B$5:$B$12,\"Controls-\"&CBAT!$D17)=1,VLOOKUP(\"Controls-\"&CBAT!$D17,'CBAT Lookups'!$B$5:$K$12,9),0)*VLOOKUP($F17,'CBAT Lookups'!$B$17:$K$19,9)))","v":""},{"$f":"IF('Project Scope'!$C17=\"\",\"\",IF(COUNTIF('CBAT Lookups'!$B$5:$B$12,\"Controls-\"&CBAT!$D17)=1,VLOOKUP(\"Controls-\"&CBAT!$D17,'CBAT Lookups'!$B$5:$K$12,10),0)*VLOOKUP($F17,'CBAT Lookups'!$B$17:$K$19,10))","v":""},{"$f":"IF('Project Scope'!$C17=\"\",\"\",VLOOKUP($C17,'CBAT Lookups'!$A$33:$B$57,2))","v":""},{"$f":"IF('Project Scope'!$C17=\"\",\"\",IF(COUNTIF('CBAT Lookups'!$B$5:$B$12,\"Controls-\"&CBAT!$D17)=1,VLOOKUP(\"Controls-\"&CBAT!$D17,'CBAT Lookups'!$B$5:$O$12,12),0))","v":""},{"$f":"IF('Project Scope'!$C17=\"\",\"\",IF(COUNTIF('CBAT Lookups'!$B$5:$B$12,\"Controls-\"&CBAT!$D17)=1,VLOOKUP(\"Controls-\"&CBAT!$D17,'CBAT Lookups'!$B$5:$O$12,13),0))","v":""},{"$f":"IF('Project Scope'!$C17=\"\",\"\",IF(COUNTIF('CBAT Lookups'!$B$5:$B$12,\"Controls-\"&CBAT!$D17)=1,VLOOKUP(\"Controls-\"&CBAT!$D17,'CBAT Lookups'!$B$5:$O$12,14),0))","v":""},{"$f":"IF('Project Scope'!$C17=\"\",\"\",'TRM Data'!$U$3)","v":""},{"$f":"IF('Project Scope'!$C17=\"\",\"\",'TRM Data'!$V$3)","v":""},{"$f":"IF('Project Scope'!$C17=\"\",\"\",IF($K17<=0,0,MAX(0,(IF(AND($I17>0,$J17>0),($I17*$J17)/1000,($G17*$H17)/1000)*$L17))*$BT17*$BR17)+($CD17/0.003412))","v":""},{"$f":"IF('Project Scope'!$C17=\"\",\"\",IF($K17<=0,0,MAX(0,IF(AND($I17>0,$J17>0),($I17*$J17)/1000,($G17*$H17)/1000))*$BQ17))","v":""},{"$f":"IF('Project Scope'!$C17=\"\",\"\",IF($K17<=0,0,MAX(0,IF(AND($I17>0,$J17>0),($I17*$J17)/1000,($G17*$H17)/1000))*$BK17))","v":""},{"$f":"IF('Project Scope'!$C17=\"\",\"\",IF($K17<=0,0,MAX(0,IF(AND($I17>0,$J17>0),($I17*$J17)/1000,($G17*$H17)/1000))*$BL17*$BQ17))","v":""},{"$f":"IF('Project Scope'!$C17=\"\",\"\",IF(OR($K17<=0,'Project Information'!$D$44=\"\"),0,-1*MAX(0,IF(AND($I17>0,$J17>0),($I17*$J17)/1000,($G17*$H17)/1000))*$BT17*$L17*$BS17*VLOOKUP('Project Information'!$D$44,'CBAT Lookups'!$A$23:$H$30,2)))","v":""},{"$f":"IF('Project Scope'!$C17=\"\",\"\",IF(OR($K17<=0,'Project Information'!$D$44=\"\"),0,-1*MAX(0,IF(AND($I17>0,$J17>0),($I17*$J17)/1000,($G17*$H17)/1000))*$BT17*$L17*$BS17*VLOOKUP('Project Information'!$D$44,'CBAT Lookups'!$A$23:$H$30,3)))","v":""},{"$f":"IF('Project Scope'!$C17=\"\",\"\",IF(OR($K17<=0,'Project Information'!$D$44=\"\"),0,-1*MAX(0,IF(AND($I17>0,$J17>0),($I17*$J17)/1000,($G17*$H17)/1000))*$BT17*$L17*$BS17*VLOOKUP('Project Information'!$D$44,'CBAT Lookups'!$A$23:$H$30,4)))","v":""},{"$f":"IF('Project Scope'!$C17=\"\",\"\",IF(OR($K17<=0,'Project Information'!$D$44=\"\"),0,-1*MAX(0,IF(AND($I17>0,$J17>0),($I17*$J17)/1000,($G17*$H17)/1000))*$BT17*$L17*$BS17*VLOOKUP('Project Information'!$D$44,'CBAT Lookups'!$A$23:$H$30,5)))","v":""},{"$f":"IF('Project Scope'!$C17=\"\",\"\",IF(OR($K17<=0,'Project Information'!$D$44=\"\"),0,-1*MAX(0,IF(AND($I17>0,$J17>0),($I17*$J17)/1000,($G17*$H17)/1000))*$BT17*$L17*$BS17*VLOOKUP('Project Information'!$D$44,'CBAT Lookups'!$A$23:$H$30,6)))","v":""},{"$f":"IF('Project Scope'!$C17=\"\",\"\",IF(OR($K17<=0,'Project Information'!$D$44=\"\"),0,-1*MAX(0,IF(AND($I17>0,$J17>0),($I17*$J17)/1000,($G17*$H17)/1000))*$BT17*$L17*$BS17*VLOOKUP('Project Information'!$D$44,'CBAT Lookups'!$A$23:$H$30,7)))","v":""},{"$f":"IF('Project Scope'!$C17=\"\",\"\",IF(OR($K17<=0,'Project Information'!$D$44=\"\"),0,-1*MAX(0,IF(AND($I17>0,$J17>0),($I17*$J17)/1000,($G17*$H17)/1000))*$BT17*$L17*$BS17*VLOOKUP('Project Information'!$D$44,'CBAT Lookups'!$A$23:$H$30,8)))","v":""},null,{"$f":"IF('Project Scope'!$C17=\"\",\"\",VLOOKUP($F17,'CBAT Lookups'!$B$17:$K$19,4))","v":""},{"$f":"IF('Project Scope'!$C17=\"\",\"\",VLOOKUP($F17,'CBAT Lookups'!$B$17:$K$19,5))","v":""},{"$f":"IF('Project Scope'!$C17=\"\",\"\",VLOOKUP($F17,'CBAT Lookups'!$B$17:$K$19,6))","v":""},{"$f":"IF('Project Scope'!$C17=\"\",\"\",VLOOKUP($F17,'CBAT Lookups'!$B$17:$K$19,7))","v":""},{"$f":"IF('Project Scope'!$C17=\"\",\"\",IF(SUMPRODUCT($BM17:$BP17,$CL17:$CO17)=0,0,BM17*CL17/SUMPRODUCT($BM17:$BP17,$CL17:$CO17)))","v":""},{"$f":"IF('Project Scope'!$C17=\"\",\"\",IF(SUMPRODUCT($BM17:$BP17,$CL17:$CO17)=0,0,BN17*CM17/SUMPRODUCT($BM17:$BP17,$CL17:$CO17)))","v":""},{"$f":"IF('Project Scope'!$C17=\"\",\"\",IF(SUMPRODUCT($BM17:$BP17,$CL17:$CO17)=0,0,BO17*CN17/SUMPRODUCT($BM17:$BP17,$CL17:$CO17)))","v":""},{"$f":"IF('Project Scope'!$C17=\"\",\"\",IF(SUMPRODUCT($BM17:$BP17,$CL17:$CO17)=0,0,BP17*CO17/SUMPRODUCT($BM17:$BP17,$CL17:$CO17)))","v":""},{"$f":"IF('Project Scope'!$C17=\"\",\"\",Benefits($BZ17,$CB17,$CC17,$CE17,$CF17,$CG17,$CH17,$CI17,$CJ17,$CK17,$BJ17,$CP17,$CQ17,$CR17,$CS17,$BU17,$BV17,$BW17,$BX17,$BY17,$E17))","v":""},"","","","","","","","",null,{"$f":"IF('Project Scope'!$C17=\"\",\"\",SUM('Project Scope'!$BB17,'Project Scope'!$BC17))","v":""},{"$f":"IF('Project Scope'!$C17=\"\",\"\",SUM('Project Scope'!$BH17, 'Project Scope'!$AZ17,(IF(ISNUMBER('Project Scope'!$BA17),'Project Scope'!$BA17,0)*'Project Information'!$D$12)))","v":""},null,null,{"$f":"IF('Project Scope'!$C17=\"\",\"\",IF($J17<=0,0,(SUMPRODUCT($AV17:$BC17,--($AV17:$BC17>0))+$BE17)*$DK17/((-SUMPRODUCT($AV17:$BC17,--($AV17:$BC17<0))+$BG17+$BH17+$BI17)*$DK17)))","v":""},{"$f":"IF('Project Scope'!$C17=\"\",\"\",IF($K17<=0,0,(SUMPRODUCT($CT17:$DA17,--($CT17:$DA17>0))+$DC17)*$DK17/((-SUMPRODUCT($CT17:$DA17,--($CT17:$DA17<0))+$DE17+$DF17+$DG17)*$DK17)))","v":""},{"$f":"IF('Project Scope'!$C17=\"\",\"\",IF(AND($J17<=0,$K17<=0),0,(SUMPRODUCT($AV17:$BC17,--($AV17:$BC17>0))+$BE17+SUMPRODUCT($CT17:$DA17,--($CT17:$DA17>0))+$DC17)*$DK17/((-SUMPRODUCT($AV17:$BC17,--($AV17:$BC17<0))+$BG17+$BH17+$BI17-SUMPRODUCT($CT17:$DA17,--($CT17:$DA17<0))+$DE17+$DF17+$DG17)*$DK17)))","v":""},{"$f":"IF('Project Scope'!$C17=\"\",\"\",IF(NetOrGross=\"Net\",(1-Z17+AA17),1))","v":""}]
[{"$f":"'Project Scope'!$B18","v":11},{"$f":"IF('Project Scope'!$C18=\"\",\"\",'Project Scope'!$C18)","v":""},{"$f":"IF('Project Scope'!$C18=\"\",\"\",'Project Scope'!$H18)","v":""},{"$f":"IF(ISNUMBER(SEARCH(\"Bay\",'Project Scope'!$Q18)),\"Bay\",IF('Project Scope'!C18=\"\",\"\",'Project Scope'!E18))","v":""},{"$f":"IF('Project Scope'!$C18=\"\",\"\",\"Com\")","v":""},{"$f":"IF('Project Scope'!$C18=\"\",\"\",'Project Scope'!$L18)","v":""},{"$f":"IF('Project Scope'!$C18=\"\",\"\",IF('Project Scope'!$CJ18=\"\",0,'Project Scope'!$CJ18))","v":""},{"$f":"IF('Project Scope'!$C18=\"\",\"\",IF('Project Scope'!$N18=\"\",0,'Project Scope'!$N18))","v":""},{"$f":"IF('Project Scope'!$C18=\"\",\"\",IF('Project Scope'!$CK18=\"\",0,'Project Scope'!$CK18))","v":""},{"$f":"IF('Project Scope'!$C18=\"\",\"\",IF('Project Scope'!$AO18=\"\",0,'Project Scope'!$AO18))","v":""},{"$f":"IF('Project Scope'!$C18=\"\",\"\",IF('Project Scope'!$AX18=\"\",0,'Project Scope'!$AX18))","v":""},{"$f":"IF('Project Scope'!$C18=\"\",\"\",IF('Project Scope'!$M18=\"\",0,'Project Scope'!$M18))","v":""},{"$f":"IF('Project Scope'!$C18=\"\",\"\",IF(COUNTIF('CBAT Lookups'!$B$5:$B$12,\"Fixtures-\"&CBAT!$D18)=1,VLOOKUP(\"Fixtures-\"&CBAT!$D18,'CBAT Lookups'!$B$5:$L$12,11),0))","v":""},{"$f":"IF('Project Scope'!$C18=\"\",\"\",(IF(COUNTIF('CBAT Lookups'!$B$5:$B$12,\"Fixtures-\"&CBAT!$D18)=1,VLOOKUP(\"Fixtures-\"&CBAT!$D18,'CBAT Lookups'!$B$5:$K$12,2),0))*VLOOKUP($F18,'CBAT Lookups'!$B$17:$K$19,2))","v":""},{"$f":"IF('Project Scope'!$C18=\"\",\"\",(IF(COUNTIF('CBAT Lookups'!$B$5:$B$12,\"Fixtures-\"&CBAT!$D18)=1,VLOOKUP(\"Fixtures-\"&CBAT!$D18,'CBAT Lookups'!$B$5:$K$12,3),0))*VLOOKUP($F18,'CBAT Lookups'!$B$17:$K$19,3))","v":""},{"$f":"IF('Project Scope'!$C18=\"\",\"\",(IF(COUNTIF('CBAT Lookups'!$B$5:$B$12,\"Fixtures-\"&CBAT!$D18)=1,VLOOKUP(\"Fixtures-\"&CBAT!$D18,'CBAT Lookups'!$B$5:$K$12,4),0)))","v":""},{"$f":"IF('Project Scope'!$C18=\"\",\"\",(IF(COUNTIF('CBAT Lookups'!$B$5:$B$12,\"Fixtures-\"&CBAT!$D18)=1,VLOOKUP(\"Fixtures-\"&CBAT!$D18,'CBAT Lookups'!$B$5:$K$12,5),0)))","v":""},{"$f":"IF('Project Scope'!$C18=\"\",\"\",(IF(COUNTIF('CBAT Lookups'!$B$5:$B$12,\"Fixtures-\"&CBAT!$D18)=1,VLOOKUP(\"Fixtures-\"&CBAT!$D18,'CBAT Lookups'!$B$5:$K$12,6),0)))","v":""},{"$f":"IF('Project Scope'!$C18=\"\",\"\",IF(COUNTIF('CBAT Lookups'!$B$5:$B$12,\"Fixtures-\"&CBAT!$D18)=1,VLOOKUP(\"Fixtures-\"&CBAT!$D18,'CBAT Lookups'!$B$5:$K$12,7),0))","v":""},{"$f":"IF('Project Scope'!$C18=\"\",\"\",IF(VLOOKUP($F18,'CBAT Lookups'!$B$17:$K$19,8)=\"W\",1,IF(COUNTIF('CBAT Lookups'!$B$5:$B$12,\"Fixtures-\"&CBAT!$D18)=1,VLOOKUP(\"Fixtures-\"&CBAT!$D18,'CBAT Lookups'!$B$5:$K$12,8),0)*VLOOKUP($F18,'CBAT Lookups'!$B$17:$K$19,8)))","v":""},{"$f":"IF('Project Scope'!$C18=\"\",\"\",IF(VLOOKUP($F18,'CBAT Lookups'!$B$17:$K$19,9)=\"W\",1,IF(COUNTIF('CBAT Lookups'!$B$5:$B$12,\"Fixtures-\"&CBAT!$D18)=1,VLOOKUP(\"Fixtures-\"&CBAT!$D18,'CBAT Lookups'!$B$5:$K$12,9),0)*VLOOKUP($F18,'CBAT Lookups'!$B$17:$K$19,9)))","v":""},{"$f":"IF('Project Scope'!$C18=\"\",\"\",IF(COUNTIF('CBAT Lookups'!$B$5:$B$12,\"Fixtures-\"&CBAT!$D18)=1,VLOOKUP(\"Fixtures-\"&CBAT!$D18,'CBAT Lookups'!$B$5:$K$12,10),0)*VLOOKUP($F18,'CBAT Lookups'!$B$17:$K$19,10))","v":""},{"$f":"IF('Project Scope'!$C18=\"\",\"\",IF(COUNTIF('CBAT Lookups'!$B$5:$B$12,\"Fixtures-\"&CBAT!$D18)=1,VLOOKUP(\"Fixtures-\"&CBAT!$D18,'CBAT Lookups'!$B$5:$O$12,12),0))","v":""},{"$f":"IF('Project Scope'!$C18=\"\",\"\",IF(COUNTIF('CBAT Lookups'!$B$5:$B$12,\"Fixtures-\"&CBAT!$D18)=1,VLOOKUP(\"Fixtures-\"&CBAT!$D18,'CBAT Lookups'!$B$5:$O$12,13),0))","v":""},{"$f":"IF('Project Scope'!$C18=\"\",\"\",IF(COUNTIF('CBAT Lookups'!$B$5:$B$12,\"Fixtures-\"&CBAT!$D18)=1,VLOOKUP(\"Fixtures-\"&CBAT!$D18,'CBAT Lookups'!$B$5:$O$12,14),0))","v":""},{"$f":"IF('Project Scope'!$C18=\"\",\"\",'TRM Data'!$U$3)","v":""},{"$f":"IF('Project Scope'!$C18=\"\",\"\",'TRM Data'!$V$3)","v":""},{"$f":"IF('Project Scope'!$C18=\"\",\"\",IF($J18<=0,0,MAX(0,(($G18*$H18/1000)-($I18*$J18/1000))*$L18)*$U18)+($AF18/0.003412))","v":""},{"$f":"IF('Project Scope'!$C18=\"\",\"\",IF($J18<=0,0,MAX(0,(($G18*$H18/1000)-($I18*$J18/1000)))*$T18))","v":""},{"$f":"IF('Project Scope'!$C18=\"\",\"\",IF($J18<=0,0,MAX(0,(($G18*$H18/1000)-($I18*$J18/1000))*$N18)))","v":""},{"$f":"IF('Project Scope'!$C18=\"\",\"\",IF($J18<=0,0,MAX(0,(($G18*$H18/1000)-($I18*$J18/1000))*$O18)*$T18))","v":""},{"$f":"IF('Project Scope'!$C18=\"\",\"\",IF(OR($J18<=0,'Project Information'!$D$44=\"\"),0,-1*MAX(0,(($G18*$H18/1000)-($I18*$J18/1000))*$L18)*$V18*VLOOKUP('Project Information'!$D$44,'CBAT Lookups'!$A$23:$H$30,2)))","v":""},{"$f":"IF('Project Scope'!$C18=\"\",\"\",IF(OR($J18<=0,'Project Information'!$D$44=\"\"),0,-1*MAX(0,(($G18*$H18/1000)-($I18*$J18/1000))*$L18)*$V18*VLOOKUP('Project Information'!$D$44,'CBAT Lookups'!$A$23:$H$30,3)))","v":""},{"$f":"IF('Project Scope'!$C18=\"\",\"\",IF(OR($J18<=0,'Project Information'!$D$44=\"\"),0,-1*MAX(0,(($G18*$H18/1000)-($I18*$J18/1000))*$L18)*$V18*VLOOKUP('Project Information'!$D$44,'CBAT Lookups'!$A$23:$H$30,4)))","v":""},{"$f":"IF('Project Scope'!$C18=\"\",\"\",IF(OR($J18<=0,'Project Information'!$D$44=\"\"),0,-1*MAX(0,(($G18*$H18/1000)-($I18*$J18/1000))*$L18)*$V18*VLOOKUP('Project Information'!$D$44,'CBAT Lookups'!$A$23:$H$30,5)))","v":""},{"$f":"IF('Project Scope'!$C18=\"\",\"\",IF(OR($J18<=0,'Project Information'!$D$44=\"\"),0,-1*MAX(0,(($G18*$H18/1000)-($I18*$J18/1000))*$L18)*$V18*VLOOKUP('Project Information'!$D$44,'CBAT Lookups'!$A$23:$H$30,6)))","v":""},{"$f":"IF('Project Scope'!$C18=\"\",\"\",IF(OR($J18<=0,'Project Information'!$D$44=\"\"),0,-1*MAX(0,(($G18*$H18/1000)-($I18*$J18/1000))*$L18)*$V18*VLOOKUP('Project Information'!$D$44,'CBAT Lookups'!$A$23:$H$30,7)))","v":""},{"$f":"IF('Project Scope'!$C18=\"\",\"\",IF(OR($J18<=0,'Project Information'!$D$44=\"\"),0,-1*MAX(0,(($G18*$H18/1000)-($I18*$J18/1000))*$L18)*$V18*VLOOKUP('Project Information'!$D$44,'CBAT Lookups'!$A$23:$H$30,8)))","v":""},null,{"$f":"IF('Project Scope'!$C18=\"\",\"\",VLOOKUP($F18,'CBAT Lookups'!$B$17:$K$19,4))","v":""},{"$f":"IF('Project Scope'!$C18=\"\",\"\",VLOOKUP($F18,'CBAT Lookups'!$B$17:$K$19,5))","v":""},{"$f":"IF('Project Scope'!$C18=\"\",\"\",VLOOKUP($F18,'CBAT Lookups'!$B$17:$K$19,6))","v":""},{"$f":"IF('Project Scope'!$C18=\"\",\"\",VLOOKUP($F18,'CBAT Lookups'!$B$17:$K$19,7))","v":""},{"$f":"IF('Project Scope'!$C18=\"\",\"\",IF(SUMPRODUCT($P18:$S18,$AN18:$AQ18)=0,0,P18*AN18/SUMPRODUCT($P18:$S18,$AN18:$AQ18)))","v":""},{"$f":"IF('Project Scope'!$C18=\"\",\"\",IF(SUMPRODUCT($P18:$S18,$AN18:$AQ18)=0,0,Q18*AO18/SUMPRODUCT($P18:$S18,$AN18:$AQ18)))","v":""},{"$f":"IF('Project Scope'!$C18=\"\",\"\",IF(SUMPRODUCT($P18:$S18,$AN18:$AQ18)=0,0,R18*AP18/SUMPRODUCT($P18:$S18,$AN18:$AQ18)))","v":""},{"$f":"IF('Project Scope'!$C18=\"\",\"\",IF(SUMPRODUCT($P18:$S18,$AN18:$AQ18)=0,0,S18*AQ18/SUMPRODUCT($P18:$S18,$AN18:$AQ18)))","v":""},{"$f":"IF('Project Scope'!$C18=\"\",\"\",Benefits($AB18,$AD18,$AE18,$AG18,$AH18,$AI18,$AJ18,$AK18,$AL18,$AM18,$M18,$AR18,$AS18,$AT18,$AU18,$W18,$X18,$Y18,$Z18,$AA18,$E18))","v":""},"","","","","","","","",null,{"$f":"IF('Project Scope'!$C18=\"\",\"\",SUM('Project Scope'!$AT18,'Project Scope'!$AU18))","v":""},{"$f":"IF('Project Scope'!$C18=\"\",\"\",SUM('Project Scope'!$BG18, 'Project Scope'!$AR18,(IF(ISNUMBER('Project Scope'!$AS18),'Project Scope'!$AS18,0)*'Project Information'!$D$12)))","v":""},null,null,{"$f":"IF('Project Scope'!$C18=\"\",\"\",IF(COUNTIF('CBAT Lookups'!$B$5:$B$12,\"Controls-\"&CBAT!$D18)=1,VLOOKUP(\"Controls-\"&CBAT!$D18,'CBAT Lookups'!$B$5:$L$12,11),0))","v":""},{"$f":"IF('Project Scope'!$C18=\"\",\"\",IF(COUNTIF('CBAT Lookups'!$B$5:$B$12,\"Controls-\"&CBAT!$D18)=1,VLOOKUP(\"Controls-\"&CBAT!$D18,'CBAT Lookups'!$B$5:$K$12,2),0)*VLOOKUP($F18,'CBAT Lookups'!$B$17:$K$19,2))","v":""},{"$f":"IF('Project Scope'!$C18=\"\",\"\",IF(COUNTIF('CBAT Lookups'!$B$5:$B$12,\"Controls-\"&CBAT!$D18)=1,VLOOKUP(\"Controls-\"&CBAT!$D18,'CBAT Lookups'!$B$5:$K$12,3),0)*VLOOKUP($F18,'CBAT Lookups'!$B$17:$K$19,3))","v":""},{"$f":"IF('Project Scope'!$C18=\"\",\"\",IF(COUNTIF('CBAT Lookups'!$B$5:$B$12,\"Controls-\"&CBAT!$D18)=1,VLOOKUP(\"Controls-\"&CBAT!$D18,'CBAT Lookups'!$B$5:$K$12,4),0))","v":""},{"$f":"IF('Project Scope'!$C18=\"\",\"\",IF(COUNTIF('CBAT Lookups'!$B$5:$B$12,\"Controls-\"&CBAT!$D18)=1,VLOOKUP(\"Controls-\"&CBAT!$D18,'CBAT Lookups'!$B$5:$K$12,5),0))","v":""},{"$f":"IF('Project Scope'!$C18=\"\",\"\",IF(COUNTIF('CBAT Lookups'!$B$5:$B$12,\"Controls-\"&CBAT!$D18)=1,VLOOKUP(\"Controls-\"&CBAT!$D18,'CBAT Lookups'!$B$5:$K$12,6),0))","v":""},{"$f":"IF('Project Scope'!$C18=\"\",\"\",IF(COUNTIF('CBAT Lookups'!$B$5:$B$12,\"Controls-\"&CBAT!$D18)=1,VLOOKUP(\"Controls-\"&CBAT!$D18,'CBAT Lookups'!$B$5:$K$12,7),0))","v":""},{"$f":"IF('Project Scope'!$C18=\"\",\"\",IF(VLOOKUP($F18,'CBAT Lookups'!$B$17:$K$19,8)=\"W\",1,IF(COUNTIF('CBAT Lookups'!$B$5:$B$12,\"Controls-\"&CBAT!$D18)=1,VLOOKUP(\"Controls-\"&CBAT!$D18,'CBAT Lookups'!$B$5:$K$12,8),0)*VLOOKUP($F18,'CBAT Lookups'!$B$17:$K$19,8)))","v":""},{"$f":"IF('Project Scope'!$C18=\"\",\"\",IF(VLOOKUP($F18,'CBAT Lookups'!$B$17:$K$19,9)=\"W\",1,IF(COUNTIF('CBAT Lookups'!$B$5:$B$12,\"Controls-\"&CBAT!$D18)=1,VLOOKUP(\"Controls-\"&CBAT!$D18,'CBAT Lookups'!$B$5:$K$12,9),0)*VLOOKUP($F18,'CBAT Lookups'!$B$17:$K$19,9)))","v":""},{"$f":"IF('Project Scope'!$C18=\"\",\"\",IF(COUNTIF('CBAT Lookups'!$B$5:$B$12,\"Controls-\"&CBAT!$D18)=1,VLOOKUP(\"Controls-\"&CBAT!$D18,'CBAT Lookups'!$B$5:$K$12,10),0)*VLOOKUP($F18,'CBAT Lookups'!$B$17:$K$19,10))","v":""},{"$f":"IF('Project Scope'!$C18=\"\",\"\",VLOOKUP($C18,'CBAT Lookups'!$A$33:$B$57,2))","v":""},{"$f":"IF('Project Scope'!$C18=\"\",\"\",IF(COUNTIF('CBAT Lookups'!$B$5:$B$12,\"Controls-\"&CBAT!$D18)=1,VLOOKUP(\"Controls-\"&CBAT!$D18,'CBAT Lookups'!$B$5:$O$12,12),0))","v":""},{"$f":"IF('Project Scope'!$C18=\"\",\"\",IF(COUNTIF('CBAT Lookups'!$B$5:$B$12,\"Controls-\"&CBAT!$D18)=1,VLOOKUP(\"Controls-\"&CBAT!$D18,'CBAT Lookups'!$B$5:$O$12,13),0))","v":""},{"$f":"IF('Project Scope'!$C18=\"\",\"\",IF(COUNTIF('CBAT Lookups'!$B$5:$B$12,\"Controls-\"&CBAT!$D18)=1,VLOOKUP(\"Controls-\"&CBAT!$D18,'CBAT Lookups'!$B$5:$O$12,14),0))","v":""},{"$f":"IF('Project Scope'!$C18=\"\",\"\",'TRM Data'!$U$3)","v":""},{"$f":"IF('Project Scope'!$C18=\"\",\"\",'TRM Data'!$V$3)","v":""},{"$f":"IF('Project Scope'!$C18=\"\",\"\",IF($K18<=0,0,MAX(0,(IF(AND($I18>0,$J18>0),($I18*$J18)/1000,($G18*$H18)/1000)*$L18))*$BT18*$BR18)+($CD18/0.003412))","v":""},{"$f":"IF('Project Scope'!$C18=\"\",\"\",IF($K18<=0,0,MAX(0,IF(AND($I18>0,$J18>0),($I18*$J18)/1000,($G18*$H18)/1000))*$BQ18))","v":""},{"$f":"IF('Project Scope'!$C18=\"\",\"\",IF($K18<=0,0,MAX(0,IF(AND($I18>0,$J18>0),($I18*$J18)/1000,($G18*$H18)/1000))*$BK18))","v":""},{"$f":"IF('Project Scope'!$C18=\"\",\"\",IF($K18<=0,0,MAX(0,IF(AND($I18>0,$J18>0),($I18*$J18)/1000,($G18*$H18)/1000))*$BL18*$BQ18))","v":""},{"$f":"IF('Project Scope'!$C18=\"\",\"\",IF(OR($K18<=0,'Project Information'!$D$44=\"\"),0,-1*MAX(0,IF(AND($I18>0,$J18>0),($I18*$J18)/1000,($G18*$H18)/1000))*$BT18*$L18*$BS18*VLOOKUP('Project Information'!$D$44,'CBAT Lookups'!$A$23:$H$30,2)))","v":""},{"$f":"IF('Project Scope'!$C18=\"\",\"\",IF(OR($K18<=0,'Project Information'!$D$44=\"\"),0,-1*MAX(0,IF(AND($I18>0,$J18>0),($I18*$J18)/1000,($G18*$H18)/1000))*$BT18*$L18*$BS18*VLOOKUP('Project Information'!$D$44,'CBAT Lookups'!$A$23:$H$30,3)))","v":""},{"$f":"IF('Project Scope'!$C18=\"\",\"\",IF(OR($K18<=0,'Project Information'!$D$44=\"\"),0,-1*MAX(0,IF(AND($I18>0,$J18>0),($I18*$J18)/1000,($G18*$H18)/1000))*$BT18*$L18*$BS18*VLOOKUP('Project Information'!$D$44,'CBAT Lookups'!$A$23:$H$30,4)))","v":""},{"$f":"IF('Project Scope'!$C18=\"\",\"\",IF(OR($K18<=0,'Project Information'!$D$44=\"\"),0,-1*MAX(0,IF(AND($I18>0,$J18>0),($I18*$J18)/1000,($G18*$H18)/1000))*$BT18*$L18*$BS18*VLOOKUP('Project Information'!$D$44,'CBAT Lookups'!$A$23:$H$30,5)))","v":""},{"$f":"IF('Project Scope'!$C18=\"\",\"\",IF(OR($K18<=0,'Project Information'!$D$44=\"\"),0,-1*MAX(0,IF(AND($I18>0,$J18>0),($I18*$J18)/1000,($G18*$H18)/1000))*$BT18*$L18*$BS18*VLOOKUP('Project Information'!$D$44,'CBAT Lookups'!$A$23:$H$30,6)))","v":""},{"$f":"IF('Project Scope'!$C18=\"\",\"\",IF(OR($K18<=0,'Project Information'!$D$44=\"\"),0,-1*MAX(0,IF(AND($I18>0,$J18>0),($I18*$J18)/1000,($G18*$H18)/1000))*$BT18*$L18*$BS18*VLOOKUP('Project Information'!$D$44,'CBAT Lookups'!$A$23:$H$30,7)))","v":""},{"$f":"IF('Project Scope'!$C18=\"\",\"\",IF(OR($K18<=0,'Project Information'!$D$44=\"\"),0,-1*MAX(0,IF(AND($I18>0,$J18>0),($I18*$J18)/1000,($G18*$H18)/1000))*$BT18*$L18*$BS18*VLOOKUP('Project Information'!$D$44,'CBAT Lookups'!$A$23:$H$30,8)))","v":""},null,{"$f":"IF('Project Scope'!$C18=\"\",\"\",VLOOKUP($F18,'CBAT Lookups'!$B$17:$K$19,4))","v":""},{"$f":"IF('Project Scope'!$C18=\"\",\"\",VLOOKUP($F18,'CBAT Lookups'!$B$17:$K$19,5))","v":""},{"$f":"IF('Project Scope'!$C18=\"\",\"\",VLOOKUP($F18,'CBAT Lookups'!$B$17:$K$19,6))","v":""},{"$f":"IF('Project Scope'!$C18=\"\",\"\",VLOOKUP($F18,'CBAT Lookups'!$B$17:$K$19,7))","v":""},{"$f":"IF('Project Scope'!$C18=\"\",\"\",IF(SUMPRODUCT($BM18:$BP18,$CL18:$CO18)=0,0,BM18*CL18/SUMPRODUCT($BM18:$BP18,$CL18:$CO18)))","v":""},{"$f":"IF('Project Scope'!$C18=\"\",\"\",IF(SUMPRODUCT($BM18:$BP18,$CL18:$CO18)=0,0,BN18*CM18/SUMPRODUCT($BM18:$BP18,$CL18:$CO18)))","v":""},{"$f":"IF('Project Scope'!$C18=\"\",\"\",IF(SUMPRODUCT($BM18:$BP18,$CL18:$CO18)=0,0,BO18*CN18/SUMPRODUCT($BM18:$BP18,$CL18:$CO18)))","v":""},{"$f":"IF('Project Scope'!$C18=\"\",\"\",IF(SUMPRODUCT($BM18:$BP18,$CL18:$CO18)=0,0,BP18*CO18/SUMPRODUCT($BM18:$BP18,$CL18:$CO18)))","v":""},{"$f":"IF('Project Scope'!$C18=\"\",\"\",Benefits($BZ18,$CB18,$CC18,$CE18,$CF18,$CG18,$CH18,$CI18,$CJ18,$CK18,$BJ18,$CP18,$CQ18,$CR18,$CS18,$BU18,$BV18,$BW18,$BX18,$BY18,$E18))","v":""},"","","","","","","","",null,{"$f":"IF('Project Scope'!$C18=\"\",\"\",SUM('Project Scope'!$BB18,'Project Scope'!$BC18))","v":""},{"$f":"IF('Project Scope'!$C18=\"\",\"\",SUM('Project Scope'!$BH18, 'Project Scope'!$AZ18,(IF(ISNUMBER('Project Scope'!$BA18),'Project Scope'!$BA18,0)*'Project Information'!$D$12)))","v":""},null,null,{"$f":"IF('Project Scope'!$C18=\"\",\"\",IF($J18<=0,0,(SUMPRODUCT($AV18:$BC18,--($AV18:$BC18>0))+$BE18)*$DK18/((-SUMPRODUCT($AV18:$BC18,--($AV18:$BC18<0))+$BG18+$BH18+$BI18)*$DK18)))","v":""},{"$f":"IF('Project Scope'!$C18=\"\",\"\",IF($K18<=0,0,(SUMPRODUCT($CT18:$DA18,--($CT18:$DA18>0))+$DC18)*$DK18/((-SUMPRODUCT($CT18:$DA18,--($CT18:$DA18<0))+$DE18+$DF18+$DG18)*$DK18)))","v":""},{"$f":"IF('Project Scope'!$C18=\"\",\"\",IF(AND($J18<=0,$K18<=0),0,(SUMPRODUCT($AV18:$BC18,--($AV18:$BC18>0))+$BE18+SUMPRODUCT($CT18:$DA18,--($CT18:$DA18>0))+$DC18)*$DK18/((-SUMPRODUCT($AV18:$BC18,--($AV18:$BC18<0))+$BG18+$BH18+$BI18-SUMPRODUCT($CT18:$DA18,--($CT18:$DA18<0))+$DE18+$DF18+$DG18)*$DK18)))","v":""},{"$f":"IF('Project Scope'!$C18=\"\",\"\",IF(NetOrGross=\"Net\",(1-Z18+AA18),1))","v":""}]
[{"$f":"'Project Scope'!$B19","v":12},{"$f":"IF('Project Scope'!$C19=\"\",\"\",'Project Scope'!$C19)","v":""},{"$f":"IF('Project Scope'!$C19=\"\",\"\",'Project Scope'!$H19)","v":""},{"$f":"IF(ISNUMBER(SEARCH(\"Bay\",'Project Scope'!$Q19)),\"Bay\",IF('Project Scope'!C19=\"\",\"\",'Project Scope'!E19))","v":""},{"$f":"IF('Project Scope'!$C19=\"\",\"\",\"Com\")","v":""},{"$f":"IF('Project Scope'!$C19=\"\",\"\",'Project Scope'!$L19)","v":""},{"$f":"IF('Project Scope'!$C19=\"\",\"\",IF('Project Scope'!$CJ19=\"\",0,'Project Scope'!$CJ19))","v":""},{"$f":"IF('Project Scope'!$C19=\"\",\"\",IF('Project Scope'!$N19=\"\",0,'Project Scope'!$N19))","v":""},{"$f":"IF('Project Scope'!$C19=\"\",\"\",IF('Project Scope'!$CK19=\"\",0,'Project Scope'!$CK19))","v":""},{"$f":"IF('Project Scope'!$C19=\"\",\"\",IF('Project Scope'!$AO19=\"\",0,'Project Scope'!$AO19))","v":""},{"$f":"IF('Project Scope'!$C19=\"\",\"\",IF('Project Scope'!$AX19=\"\",0,'Project Scope'!$AX19))","v":""},{"$f":"IF('Project Scope'!$C19=\"\",\"\",IF('Project Scope'!$M19=\"\",0,'Project Scope'!$M19))","v":""},{"$f":"IF('Project Scope'!$C19=\"\",\"\",IF(COUNTIF('CBAT Lookups'!$B$5:$B$12,\"Fixtures-\"&CBAT!$D19)=1,VLOOKUP(\"Fixtures-\"&CBAT!$D19,'CBAT Lookups'!$B$5:$L$12,11),0))","v":""},{"$f":"IF('Project Scope'!$C19=\"\",\"\",(IF(COUNTIF('CBAT Lookups'!$B$5:$B$12,\"Fixtures-\"&CBAT!$D19)=1,VLOOKUP(\"Fixtures-\"&CBAT!$D19,'CBAT Lookups'!$B$5:$K$12,2),0))*VLOOKUP($F19,'CBAT Lookups'!$B$17:$K$19,2))","v":""},{"$f":"IF('Project Scope'!$C19=\"\",\"\",(IF(COUNTIF('CBAT Lookups'!$B$5:$B$12,\"Fixtures-\"&CBAT!$D19)=1,VLOOKUP(\"Fixtures-\"&CBAT!$D19,'CBAT Lookups'!$B$5:$K$12,3),0))*VLOOKUP($F19,'CBAT Lookups'!$B$17:$K$19,3))","v":""},{"$f":"IF('Project Scope'!$C19=\"\",\"\",(IF(COUNTIF('CBAT Lookups'!$B$5:$B$12,\"Fixtures-\"&CBAT!$D19)=1,VLOOKUP(\"Fixtures-\"&CBAT!$D19,'CBAT Lookups'!$B$5:$K$12,4),0)))","v":""},{"$f":"IF('Project Scope'!$C19=\"\",\"\",(IF(COUNTIF('CBAT Lookups'!$B$5:$B$12,\"Fixtures-\"&CBAT!$D19)=1,VLOOKUP(\"Fixtures-\"&CBAT!$D19,'CBAT Lookups'!$B$5:$K$12,5),0)))","v":""},{"$f":"IF('Project Scope'!$C19=\"\",\"\",(IF(COUNTIF('CBAT Lookups'!$B$5:$B$12,\"Fixtures-\"&CBAT!$D19)=1,VLOOKUP(\"Fixtures-\"&CBAT!$D19,'CBAT Lookups'!$B$5:$K$12,6),0)))","v":""},{"$f":"IF('Project Scope'!$C19=\"\",\"\",IF(COUNTIF('CBAT Lookups'!$B$5:$B$12,\"Fixtures-\"&CBAT!$D19)=1,VLOOKUP(\"Fixtures-\"&CBAT!$D19,'CBAT Lookups'!$B$5:$K$12,7),0))","v":""},{"$f":"IF('Project Scope'!$C19=\"\",\"\",IF(VLOOKUP($F19,'CBAT Lookups'!$B$17:$K$19,8)=\"W\",1,IF(COUNTIF('CBAT Lookups'!$B$5:$B$12,\"Fixtures-\"&CBAT!$D19)=1,VLOOKUP(\"Fixtures-\"&CBAT!$D19,'CBAT Lookups'!$B$5:$K$12,8),0)*VLOOKUP($F19,'CBAT Lookups'!$B$17:$K$19,8)))","v":""},{"$f":"IF('Project Scope'!$C19=\"\",\"\",IF(VLOOKUP($F19,'CBAT Lookups'!$B$17:$K$19,9)=\"W\",1,IF(COUNTIF('CBAT Lookups'!$B$5:$B$12,\"Fixtures-\"&CBAT!$D19)=1,VLOOKUP(\"Fixtures-\"&CBAT!$D19,'CBAT Lookups'!$B$5:$K$12,9),0)*VLOOKUP($F19,'CBAT Lookups'!$B$17:$K$19,9)))","v":""},{"$f":"IF('Project Scope'!$C19=\"\",\"\",IF(COUNTIF('CBAT Lookups'!$B$5:$B$12,\"Fixtures-\"&CBAT!$D19)=1,VLOOKUP(\"Fixtures-\"&CBAT!$D19,'CBAT Lookups'!$B$5:$K$12,10),0)*VLOOKUP($F19,'CBAT Lookups'!$B$17:$K$19,10))","v":""},{"$f":"IF('Project Scope'!$C19=\"\",\"\",IF(COUNTIF('CBAT Lookups'!$B$5:$B$12,\"Fixtures-\"&CBAT!$D19)=1,VLOOKUP(\"Fixtures-\"&CBAT!$D19,'CBAT Lookups'!$B$5:$O$12,12),0))","v":""},{"$f":"IF('Project Scope'!$C19=\"\",\"\",IF(COUNTIF('CBAT Lookups'!$B$5:$B$12,\"Fixtures-\"&CBAT!$D19)=1,VLOOKUP(\"Fixtures-\"&CBAT!$D19,'CBAT Lookups'!$B$5:$O$12,13),0))","v":""},{"$f":"IF('Project Scope'!$C19=\"\",\"\",IF(COUNTIF('CBAT Lookups'!$B$5:$B$12,\"Fixtures-\"&CBAT!$D19)=1,VLOOKUP(\"Fixtures-\"&CBAT!$D19,'CBAT Lookups'!$B$5:$O$12,14),0))","v":""},{"$f":"IF('Project Scope'!$C19=\"\",\"\",'TRM Data'!$U$3)","v":""},{"$f":"IF('Project Scope'!$C19=\"\",\"\",'TRM Data'!$V$3)","v":""},{"$f":"IF('Project Scope'!$C19=\"\",\"\",IF($J19<=0,0,MAX(0,(($G19*$H19/1000)-($I19*$J19/1000))*$L19)*$U19)+($AF19/0.003412))","v":""},{"$f":"IF('Project Scope'!$C19=\"\",\"\",IF($J19<=0,0,MAX(0,(($G19*$H19/1000)-($I19*$J19/1000)))*$T19))","v":""},{"$f":"IF('Project Scope'!$C19=\"\",\"\",IF($J19<=0,0,MAX(0,(($G19*$H19/1000)-($I19*$J19/1000))*$N19)))","v":""},{"$f":"IF('Project Scope'!$C19=\"\",\"\",IF($J19<=0,0,MAX(0,(($G19*$H19/1000)-($I19*$J19/1000))*$O19)*$T19))","v":""},{"$f":"IF('Project Scope'!$C19=\"\",\"\",IF(OR($J19<=0,'Project Information'!$D$44=\"\"),0,-1*MAX(0,(($G19*$H19/1000)-($I19*$J19/1000))*$L19)*$V19*VLOOKUP('Project Information'!$D$44,'CBAT Lookups'!$A$23:$H$30,2)))","v":""},{"$f":"IF('Project Scope'!$C19=\"\",\"\",IF(OR($J19<=0,'Project Information'!$D$44=\"\"),0,-1*MAX(0,(($G19*$H19/1000)-($I19*$J19/1000))*$L19)*$V19*VLOOKUP('Project Information'!$D$44,'CBAT Lookups'!$A$23:$H$30,3)))","v":""},{"$f":"IF('Project Scope'!$C19=\"\",\"\",IF(OR($J19<=0,'Project Information'!$D$44=\"\"),0,-1*MAX(0,(($G19*$H19/1000)-($I19*$J19/1000))*$L19)*$V19*VLOOKUP('Project Information'!$D$44,'CBAT Lookups'!$A$23:$H$30,4)))","v":""},{"$f":"IF('Project Scope'!$C19=\"\",\"\",IF(OR($J19<=0,'Project Information'!$D$44=\"\"),0,-1*MAX(0,(($G19*$H19/1000)-($I19*$J19/1000))*$L19)*$V19*VLOOKUP('Project Information'!$D$44,'CBAT Lookups'!$A$23:$H$30,5)))","v":""},{"$f":"IF('Project Scope'!$C19=\"\",\"\",IF(OR($J19<=0,'Project Information'!$D$44=\"\"),0,-1*MAX(0,(($G19*$H19/1000)-($I19*$J19/1000))*$L19)*$V19*VLOOKUP('Project Information'!$D$44,'CBAT Lookups'!$A$23:$H$30,6)))","v":""},{"$f":"IF('Project Scope'!$C19=\"\",\"\",IF(OR($J19<=0,'Project Information'!$D$44=\"\"),0,-1*MAX(0,(($G19*$H19/1000)-($I19*$J19/1000))*$L19)*$V19*VLOOKUP('Project Information'!$D$44,'CBAT Lookups'!$A$23:$H$30,7)))","v":""},{"$f":"IF('Project Scope'!$C19=\"\",\"\",IF(OR($J19<=0,'Project Information'!$D$44=\"\"),0,-1*MAX(0,(($G19*$H19/1000)-($I19*$J19/1000))*$L19)*$V19*VLOOKUP('Project Information'!$D$44,'CBAT Lookups'!$A$23:$H$30,8)))","v":""},null,{"$f":"IF('Project Scope'!$C19=\"\",\"\",VLOOKUP($F19,'CBAT Lookups'!$B$17:$K$19,4))","v":""},{"$f":"IF('Project Scope'!$C19=\"\",\"\",VLOOKUP($F19,'CBAT Lookups'!$B$17:$K$19,5))","v":""},{"$f":"IF('Project Scope'!$C19=\"\",\"\",VLOOKUP($F19,'CBAT Lookups'!$B$17:$K$19,6))","v":""},{"$f":"IF('Project Scope'!$C19=\"\",\"\",VLOOKUP($F19,'CBAT Lookups'!$B$17:$K$19,7))","v":""},{"$f":"IF('Project Scope'!$C19=\"\",\"\",IF(SUMPRODUCT($P19:$S19,$AN19:$AQ19)=0,0,P19*AN19/SUMPRODUCT($P19:$S19,$AN19:$AQ19)))","v":""},{"$f":"IF('Project Scope'!$C19=\"\",\"\",IF(SUMPRODUCT($P19:$S19,$AN19:$AQ19)=0,0,Q19*AO19/SUMPRODUCT($P19:$S19,$AN19:$AQ19)))","v":""},{"$f":"IF('Project Scope'!$C19=\"\",\"\",IF(SUMPRODUCT($P19:$S19,$AN19:$AQ19)=0,0,R19*AP19/SUMPRODUCT($P19:$S19,$AN19:$AQ19)))","v":""},{"$f":"IF('Project Scope'!$C19=\"\",\"\",IF(SUMPRODUCT($P19:$S19,$AN19:$AQ19)=0,0,S19*AQ19/SUMPRODUCT($P19:$S19,$AN19:$AQ19)))","v":""},{"$f":"IF('Project Scope'!$C19=\"\",\"\",Benefits($AB19,$AD19,$AE19,$AG19,$AH19,$AI19,$AJ19,$AK19,$AL19,$AM19,$M19,$AR19,$AS19,$AT19,$AU19,$W19,$X19,$Y19,$Z19,$AA19,$E19))","v":""},"","","","","","","","",null,{"$f":"IF('Project Scope'!$C19=\"\",\"\",SUM('Project Scope'!$AT19,'Project Scope'!$AU19))","v":""},{"$f":"IF('Project Scope'!$C19=\"\",\"\",SUM('Project Scope'!$BG19, 'Project Scope'!$AR19,(IF(ISNUMBER('Project Scope'!$AS19),'Project Scope'!$AS19,0)*'Project Information'!$D$12)))","v":""},null,null,{"$f":"IF('Project Scope'!$C19=\"\",\"\",IF(COUNTIF('CBAT Lookups'!$B$5:$B$12,\"Controls-\"&CBAT!$D19)=1,VLOOKUP(\"Controls-\"&CBAT!$D19,'CBAT Lookups'!$B$5:$L$12,11),0))","v":""},{"$f":"IF('Project Scope'!$C19=\"\",\"\",IF(COUNTIF('CBAT Lookups'!$B$5:$B$12,\"Controls-\"&CBAT!$D19)=1,VLOOKUP(\"Controls-\"&CBAT!$D19,'CBAT Lookups'!$B$5:$K$12,2),0)*VLOOKUP($F19,'CBAT Lookups'!$B$17:$K$19,2))","v":""},{"$f":"IF('Project Scope'!$C19=\"\",\"\",IF(COUNTIF('CBAT Lookups'!$B$5:$B$12,\"Controls-\"&CBAT!$D19)=1,VLOOKUP(\"Controls-\"&CBAT!$D19,'CBAT Lookups'!$B$5:$K$12,3),0)*VLOOKUP($F19,'CBAT Lookups'!$B$17:$K$19,3))","v":""},{"$f":"IF('Project Scope'!$C19=\"\",\"\",IF(COUNTIF('CBAT Lookups'!$B$5:$B$12,\"Controls-\"&CBAT!$D19)=1,VLOOKUP(\"Controls-\"&CBAT!$D19,'CBAT Lookups'!$B$5:$K$12,4),0))","v":""},{"$f":"IF('Project Scope'!$C19=\"\",\"\",IF(COUNTIF('CBAT Lookups'!$B$5:$B$12,\"Controls-\"&CBAT!$D19)=1,VLOOKUP(\"Controls-\"&CBAT!$D19,'CBAT Lookups'!$B$5:$K$12,5),0))","v":""},{"$f":"IF('Project Scope'!$C19=\"\",\"\",IF(COUNTIF('CBAT Lookups'!$B$5:$B$12,\"Controls-\"&CBAT!$D19)=1,VLOOKUP(\"Controls-\"&CBAT!$D19,'CBAT Lookups'!$B$5:$K$12,6),0))","v":""},{"$f":"IF('Project Scope'!$C19=\"\",\"\",IF(COUNTIF('CBAT Lookups'!$B$5:$B$12,\"Controls-\"&CBAT!$D19)=1,VLOOKUP(\"Controls-\"&CBAT!$D19,'CBAT Lookups'!$B$5:$K$12,7),0))","v":""},{"$f":"IF('Project Scope'!$C19=\"\",\"\",IF(VLOOKUP($F19,'CBAT Lookups'!$B$17:$K$19,8)=\"W\",1,IF(COUNTIF('CBAT Lookups'!$B$5:$B$12,\"Controls-\"&CBAT!$D19)=1,VLOOKUP(\"Controls-\"&CBAT!$D19,'CBAT Lookups'!$B$5:$K$12,8),0)*VLOOKUP($F19,'CBAT Lookups'!$B$17:$K$19,8)))","v":""},{"$f":"IF('Project Scope'!$C19=\"\",\"\",IF(VLOOKUP($F19,'CBAT Lookups'!$B$17:$K$19,9)=\"W\",1,IF(COUNTIF('CBAT Lookups'!$B$5:$B$12,\"Controls-\"&CBAT!$D19)=1,VLOOKUP(\"Controls-\"&CBAT!$D19,'CBAT Lookups'!$B$5:$K$12,9),0)*VLOOKUP($F19,'CBAT Lookups'!$B$17:$K$19,9)))","v":""},{"$f":"IF('Project Scope'!$C19=\"\",\"\",IF(COUNTIF('CBAT Lookups'!$B$5:$B$12,\"Controls-\"&CBAT!$D19)=1,VLOOKUP(\"Controls-\"&CBAT!$D19,'CBAT Lookups'!$B$5:$K$12,10),0)*VLOOKUP($F19,'CBAT Lookups'!$B$17:$K$19,10))","v":""},{"$f":"IF('Project Scope'!$C19=\"\",\"\",VLOOKUP($C19,'CBAT Lookups'!$A$33:$B$57,2))","v":""},{"$f":"IF('Project Scope'!$C19=\"\",\"\",IF(COUNTIF('CBAT Lookups'!$B$5:$B$12,\"Controls-\"&CBAT!$D19)=1,VLOOKUP(\"Controls-\"&CBAT!$D19,'CBAT Lookups'!$B$5:$O$12,12),0))","v":""},{"$f":"IF('Project Scope'!$C19=\"\",\"\",IF(COUNTIF('CBAT Lookups'!$B$5:$B$12,\"Controls-\"&CBAT!$D19)=1,VLOOKUP(\"Controls-\"&CBAT!$D19,'CBAT Lookups'!$B$5:$O$12,13),0))","v":""},{"$f":"IF('Project Scope'!$C19=\"\",\"\",IF(COUNTIF('CBAT Lookups'!$B$5:$B$12,\"Controls-\"&CBAT!$D19)=1,VLOOKUP(\"Controls-\"&CBAT!$D19,'CBAT Lookups'!$B$5:$O$12,14),0))","v":""},{"$f":"IF('Project Scope'!$C19=\"\",\"\",'TRM Data'!$U$3)","v":""},{"$f":"IF('Project Scope'!$C19=\"\",\"\",'TRM Data'!$V$3)","v":""},{"$f":"IF('Project Scope'!$C19=\"\",\"\",IF($K19<=0,0,MAX(0,(IF(AND($I19>0,$J19>0),($I19*$J19)/1000,($G19*$H19)/1000)*$L19))*$BT19*$BR19)+($CD19/0.003412))","v":""},{"$f":"IF('Project Scope'!$C19=\"\",\"\",IF($K19<=0,0,MAX(0,IF(AND($I19>0,$J19>0),($I19*$J19)/1000,($G19*$H19)/1000))*$BQ19))","v":""},{"$f":"IF('Project Scope'!$C19=\"\",\"\",IF($K19<=0,0,MAX(0,IF(AND($I19>0,$J19>0),($I19*$J19)/1000,($G19*$H19)/1000))*$BK19))","v":""},{"$f":"IF('Project Scope'!$C19=\"\",\"\",IF($K19<=0,0,MAX(0,IF(AND($I19>0,$J19>0),($I19*$J19)/1000,($G19*$H19)/1000))*$BL19*$BQ19))","v":""},{"$f":"IF('Project Scope'!$C19=\"\",\"\",IF(OR($K19<=0,'Project Information'!$D$44=\"\"),0,-1*MAX(0,IF(AND($I19>0,$J19>0),($I19*$J19)/1000,($G19*$H19)/1000))*$BT19*$L19*$BS19*VLOOKUP('Project Information'!$D$44,'CBAT Lookups'!$A$23:$H$30,2)))","v":""},{"$f":"IF('Project Scope'!$C19=\"\",\"\",IF(OR($K19<=0,'Project Information'!$D$44=\"\"),0,-1*MAX(0,IF(AND($I19>0,$J19>0),($I19*$J19)/1000,($G19*$H19)/1000))*$BT19*$L19*$BS19*VLOOKUP('Project Information'!$D$44,'CBAT Lookups'!$A$23:$H$30,3)))","v":""},{"$f":"IF('Project Scope'!$C19=\"\",\"\",IF(OR($K19<=0,'Project Information'!$D$44=\"\"),0,-1*MAX(0,IF(AND($I19>0,$J19>0),($I19*$J19)/1000,($G19*$H19)/1000))*$BT19*$L19*$BS19*VLOOKUP('Project Information'!$D$44,'CBAT Lookups'!$A$23:$H$30,4)))","v":""},{"$f":"IF('Project Scope'!$C19=\"\",\"\",IF(OR($K19<=0,'Project Information'!$D$44=\"\"),0,-1*MAX(0,IF(AND($I19>0,$J19>0),($I19*$J19)/1000,($G19*$H19)/1000))*$BT19*$L19*$BS19*VLOOKUP('Project Information'!$D$44,'CBAT Lookups'!$A$23:$H$30,5)))","v":""},{"$f":"IF('Project Scope'!$C19=\"\",\"\",IF(OR($K19<=0,'Project Information'!$D$44=\"\"),0,-1*MAX(0,IF(AND($I19>0,$J19>0),($I19*$J19)/1000,($G19*$H19)/1000))*$BT19*$L19*$BS19*VLOOKUP('Project Information'!$D$44,'CBAT Lookups'!$A$23:$H$30,6)))","v":""},{"$f":"IF('Project Scope'!$C19=\"\",\"\",IF(OR($K19<=0,'Project Information'!$D$44=\"\"),0,-1*MAX(0,IF(AND($I19>0,$J19>0),($I19*$J19)/1000,($G19*$H19)/1000))*$BT19*$L19*$BS19*VLOOKUP('Project Information'!$D$44,'CBAT Lookups'!$A$23:$H$30,7)))","v":""},{"$f":"IF('Project Scope'!$C19=\"\",\"\",IF(OR($K19<=0,'Project Information'!$D$44=\"\"),0,-1*MAX(0,IF(AND($I19>0,$J19>0),($I19*$J19)/1000,($G19*$H19)/1000))*$BT19*$L19*$BS19*VLOOKUP('Project Information'!$D$44,'CBAT Lookups'!$A$23:$H$30,8)))","v":""},null,{"$f":"IF('Project Scope'!$C19=\"\",\"\",VLOOKUP($F19,'CBAT Lookups'!$B$17:$K$19,4))","v":""},{"$f":"IF('Project Scope'!$C19=\"\",\"\",VLOOKUP($F19,'CBAT Lookups'!$B$17:$K$19,5))","v":""},{"$f":"IF('Project Scope'!$C19=\"\",\"\",VLOOKUP($F19,'CBAT Lookups'!$B$17:$K$19,6))","v":""},{"$f":"IF('Project Scope'!$C19=\"\",\"\",VLOOKUP($F19,'CBAT Lookups'!$B$17:$K$19,7))","v":""},{"$f":"IF('Project Scope'!$C19=\"\",\"\",IF(SUMPRODUCT($BM19:$BP19,$CL19:$CO19)=0,0,BM19*CL19/SUMPRODUCT($BM19:$BP19,$CL19:$CO19)))","v":""},{"$f":"IF('Project Scope'!$C19=\"\",\"\",IF(SUMPRODUCT($BM19:$BP19,$CL19:$CO19)=0,0,BN19*CM19/SUMPRODUCT($BM19:$BP19,$CL19:$CO19)))","v":""},{"$f":"IF('Project Scope'!$C19=\"\",\"\",IF(SUMPRODUCT($BM19:$BP19,$CL19:$CO19)=0,0,BO19*CN19/SUMPRODUCT($BM19:$BP19,$CL19:$CO19)))","v":""},{"$f":"IF('Project Scope'!$C19=\"\",\"\",IF(SUMPRODUCT($BM19:$BP19,$CL19:$CO19)=0,0,BP19*CO19/SUMPRODUCT($BM19:$BP19,$CL19:$CO19)))","v":""},{"$f":"IF('Project Scope'!$C19=\"\",\"\",Benefits($BZ19,$CB19,$CC19,$CE19,$CF19,$CG19,$CH19,$CI19,$CJ19,$CK19,$BJ19,$CP19,$CQ19,$CR19,$CS19,$BU19,$BV19,$BW19,$BX19,$BY19,$E19))","v":""},"","","","","","","","",null,{"$f":"IF('Project Scope'!$C19=\"\",\"\",SUM('Project Scope'!$BB19,'Project Scope'!$BC19))","v":""},{"$f":"IF('Project Scope'!$C19=\"\",\"\",SUM('Project Scope'!$BH19, 'Project Scope'!$AZ19,(IF(ISNUMBER('Project Scope'!$BA19),'Project Scope'!$BA19,0)*'Project Information'!$D$12)))","v":""},null,null,{"$f":"IF('Project Scope'!$C19=\"\",\"\",IF($J19<=0,0,(SUMPRODUCT($AV19:$BC19,--($AV19:$BC19>0))+$BE19)*$DK19/((-SUMPRODUCT($AV19:$BC19,--($AV19:$BC19<0))+$BG19+$BH19+$BI19)*$DK19)))","v":""},{"$f":"IF('Project Scope'!$C19=\"\",\"\",IF($K19<=0,0,(SUMPRODUCT($CT19:$DA19,--($CT19:$DA19>0))+$DC19)*$DK19/((-SUMPRODUCT($CT19:$DA19,--($CT19:$DA19<0))+$DE19+$DF19+$DG19)*$DK19)))","v":""},{"$f":"IF('Project Scope'!$C19=\"\",\"\",IF(AND($J19<=0,$K19<=0),0,(SUMPRODUCT($AV19:$BC19,--($AV19:$BC19>0))+$BE19+SUMPRODUCT($CT19:$DA19,--($CT19:$DA19>0))+$DC19)*$DK19/((-SUMPRODUCT($AV19:$BC19,--($AV19:$BC19<0))+$BG19+$BH19+$BI19-SUMPRODUCT($CT19:$DA19,--($CT19:$DA19<0))+$DE19+$DF19+$DG19)*$DK19)))","v":""},{"$f":"IF('Project Scope'!$C19=\"\",\"\",IF(NetOrGross=\"Net\",(1-Z19+AA19),1))","v":""}]
[{"$f":"'Project Scope'!$B20","v":13},{"$f":"IF('Project Scope'!$C20=\"\",\"\",'Project Scope'!$C20)","v":""},{"$f":"IF('Project Scope'!$C20=\"\",\"\",'Project Scope'!$H20)","v":""},{"$f":"IF(ISNUMBER(SEARCH(\"Bay\",'Project Scope'!$Q20)),\"Bay\",IF('Project Scope'!C20=\"\",\"\",'Project Scope'!E20))","v":""},{"$f":"IF('Project Scope'!$C20=\"\",\"\",\"Com\")","v":""},{"$f":"IF('Project Scope'!$C20=\"\",\"\",'Project Scope'!$L20)","v":""},{"$f":"IF('Project Scope'!$C20=\"\",\"\",IF('Project Scope'!$CJ20=\"\",0,'Project Scope'!$CJ20))","v":""},{"$f":"IF('Project Scope'!$C20=\"\",\"\",IF('Project Scope'!$N20=\"\",0,'Project Scope'!$N20))","v":""},{"$f":"IF('Project Scope'!$C20=\"\",\"\",IF('Project Scope'!$CK20=\"\",0,'Project Scope'!$CK20))","v":""},{"$f":"IF('Project Scope'!$C20=\"\",\"\",IF('Project Scope'!$AO20=\"\",0,'Project Scope'!$AO20))","v":""},{"$f":"IF('Project Scope'!$C20=\"\",\"\",IF('Project Scope'!$AX20=\"\",0,'Project Scope'!$AX20))","v":""},{"$f":"IF('Project Scope'!$C20=\"\",\"\",IF('Project Scope'!$M20=\"\",0,'Project Scope'!$M20))","v":""},{"$f":"IF('Project Scope'!$C20=\"\",\"\",IF(COUNTIF('CBAT Lookups'!$B$5:$B$12,\"Fixtures-\"&CBAT!$D20)=1,VLOOKUP(\"Fixtures-\"&CBAT!$D20,'CBAT Lookups'!$B$5:$L$12,11),0))","v":""},{"$f":"IF('Project Scope'!$C20=\"\",\"\",(IF(COUNTIF('CBAT Lookups'!$B$5:$B$12,\"Fixtures-\"&CBAT!$D20)=1,VLOOKUP(\"Fixtures-\"&CBAT!$D20,'CBAT Lookups'!$B$5:$K$12,2),0))*VLOOKUP($F20,'CBAT Lookups'!$B$17:$K$19,2))","v":""},{"$f":"IF('Project Scope'!$C20=\"\",\"\",(IF(COUNTIF('CBAT Lookups'!$B$5:$B$12,\"Fixtures-\"&CBAT!$D20)=1,VLOOKUP(\"Fixtures-\"&CBAT!$D20,'CBAT Lookups'!$B$5:$K$12,3),0))*VLOOKUP($F20,'CBAT Lookups'!$B$17:$K$19,3))","v":""},{"$f":"IF('Project Scope'!$C20=\"\",\"\",(IF(COUNTIF('CBAT Lookups'!$B$5:$B$12,\"Fixtures-\"&CBAT!$D20)=1,VLOOKUP(\"Fixtures-\"&CBAT!$D20,'CBAT Lookups'!$B$5:$K$12,4),0)))","v":""},{"$f":"IF('Project Scope'!$C20=\"\",\"\",(IF(COUNTIF('CBAT Lookups'!$B$5:$B$12,\"Fixtures-\"&CBAT!$D20)=1,VLOOKUP(\"Fixtures-\"&CBAT!$D20,'CBAT Lookups'!$B$5:$K$12,5),0)))","v":""},{"$f":"IF('Project Scope'!$C20=\"\",\"\",(IF(COUNTIF('CBAT Lookups'!$B$5:$B$12,\"Fixtures-\"&CBAT!$D20)=1,VLOOKUP(\"Fixtures-\"&CBAT!$D20,'CBAT Lookups'!$B$5:$K$12,6),0)))","v":""},{"$f":"IF('Project Scope'!$C20=\"\",\"\",IF(COUNTIF('CBAT Lookups'!$B$5:$B$12,\"Fixtures-\"&CBAT!$D20)=1,VLOOKUP(\"Fixtures-\"&CBAT!$D20,'CBAT Lookups'!$B$5:$K$12,7),0))","v":""},{"$f":"IF('Project Scope'!$C20=\"\",\"\",IF(VLOOKUP($F20,'CBAT Lookups'!$B$17:$K$19,8)=\"W\",1,IF(COUNTIF('CBAT Lookups'!$B$5:$B$12,\"Fixtures-\"&CBAT!$D20)=1,VLOOKUP(\"Fixtures-\"&CBAT!$D20,'CBAT Lookups'!$B$5:$K$12,8),0)*VLOOKUP($F20,'CBAT Lookups'!$B$17:$K$19,8)))","v":""},{"$f":"IF('Project Scope'!$C20=\"\",\"\",IF(VLOOKUP($F20,'CBAT Lookups'!$B$17:$K$19,9)=\"W\",1,IF(COUNTIF('CBAT Lookups'!$B$5:$B$12,\"Fixtures-\"&CBAT!$D20)=1,VLOOKUP(\"Fixtures-\"&CBAT!$D20,'CBAT Lookups'!$B$5:$K$12,9),0)*VLOOKUP($F20,'CBAT Lookups'!$B$17:$K$19,9)))","v":""},{"$f":"IF('Project Scope'!$C20=\"\",\"\",IF(COUNTIF('CBAT Lookups'!$B$5:$B$12,\"Fixtures-\"&CBAT!$D20)=1,VLOOKUP(\"Fixtures-\"&CBAT!$D20,'CBAT Lookups'!$B$5:$K$12,10),0)*VLOOKUP($F20,'CBAT Lookups'!$B$17:$K$19,10))","v":""},{"$f":"IF('Project Scope'!$C20=\"\",\"\",IF(COUNTIF('CBAT Lookups'!$B$5:$B$12,\"Fixtures-\"&CBAT!$D20)=1,VLOOKUP(\"Fixtures-\"&CBAT!$D20,'CBAT Lookups'!$B$5:$O$12,12),0))","v":""},{"$f":"IF('Project Scope'!$C20=\"\",\"\",IF(COUNTIF('CBAT Lookups'!$B$5:$B$12,\"Fixtures-\"&CBAT!$D20)=1,VLOOKUP(\"Fixtures-\"&CBAT!$D20,'CBAT Lookups'!$B$5:$O$12,13),0))","v":""},{"$f":"IF('Project Scope'!$C20=\"\",\"\",IF(COUNTIF('CBAT Lookups'!$B$5:$B$12,\"Fixtures-\"&CBAT!$D20)=1,VLOOKUP(\"Fixtures-\"&CBAT!$D20,'CBAT Lookups'!$B$5:$O$12,14),0))","v":""},{"$f":"IF('Project Scope'!$C20=\"\",\"\",'TRM Data'!$U$3)","v":""},{"$f":"IF('Project Scope'!$C20=\"\",\"\",'TRM Data'!$V$3)","v":""},{"$f":"IF('Project Scope'!$C20=\"\",\"\",IF($J20<=0,0,MAX(0,(($G20*$H20/1000)-($I20*$J20/1000))*$L20)*$U20)+($AF20/0.003412))","v":""},{"$f":"IF('Project Scope'!$C20=\"\",\"\",IF($J20<=0,0,MAX(0,(($G20*$H20/1000)-($I20*$J20/1000)))*$T20))","v":""},{"$f":"IF('Project Scope'!$C20=\"\",\"\",IF($J20<=0,0,MAX(0,(($G20*$H20/1000)-($I20*$J20/1000))*$N20)))","v":""},{"$f":"IF('Project Scope'!$C20=\"\",\"\",IF($J20<=0,0,MAX(0,(($G20*$H20/1000)-($I20*$J20/1000))*$O20)*$T20))","v":""},{"$f":"IF('Project Scope'!$C20=\"\",\"\",IF(OR($J20<=0,'Project Information'!$D$44=\"\"),0,-1*MAX(0,(($G20*$H20/1000)-($I20*$J20/1000))*$L20)*$V20*VLOOKUP('Project Information'!$D$44,'CBAT Lookups'!$A$23:$H$30,2)))","v":""},{"$f":"IF('Project Scope'!$C20=\"\",\"\",IF(OR($J20<=0,'Project Information'!$D$44=\"\"),0,-1*MAX(0,(($G20*$H20/1000)-($I20*$J20/1000))*$L20)*$V20*VLOOKUP('Project Information'!$D$44,'CBAT Lookups'!$A$23:$H$30,3)))","v":""},{"$f":"IF('Project Scope'!$C20=\"\",\"\",IF(OR($J20<=0,'Project Information'!$D$44=\"\"),0,-1*MAX(0,(($G20*$H20/1000)-($I20*$J20/1000))*$L20)*$V20*VLOOKUP('Project Information'!$D$44,'CBAT Lookups'!$A$23:$H$30,4)))","v":""},{"$f":"IF('Project Scope'!$C20=\"\",\"\",IF(OR($J20<=0,'Project Information'!$D$44=\"\"),0,-1*MAX(0,(($G20*$H20/1000)-($I20*$J20/1000))*$L20)*$V20*VLOOKUP('Project Information'!$D$44,'CBAT Lookups'!$A$23:$H$30,5)))","v":""},{"$f":"IF('Project Scope'!$C20=\"\",\"\",IF(OR($J20<=0,'Project Information'!$D$44=\"\"),0,-1*MAX(0,(($G20*$H20/1000)-($I20*$J20/1000))*$L20)*$V20*VLOOKUP('Project Information'!$D$44,'CBAT Lookups'!$A$23:$H$30,6)))","v":""},{"$f":"IF('Project Scope'!$C20=\"\",\"\",IF(OR($J20<=0,'Project Information'!$D$44=\"\"),0,-1*MAX(0,(($G20*$H20/1000)-($I20*$J20/1000))*$L20)*$V20*VLOOKUP('Project Information'!$D$44,'CBAT Lookups'!$A$23:$H$30,7)))","v":""},{"$f":"IF('Project Scope'!$C20=\"\",\"\",IF(OR($J20<=0,'Project Information'!$D$44=\"\"),0,-1*MAX(0,(($G20*$H20/1000)-($I20*$J20/1000))*$L20)*$V20*VLOOKUP('Project Information'!$D$44,'CBAT Lookups'!$A$23:$H$30,8)))","v":""},null,{"$f":"IF('Project Scope'!$C20=\"\",\"\",VLOOKUP($F20,'CBAT Lookups'!$B$17:$K$19,4))","v":""},{"$f":"IF('Project Scope'!$C20=\"\",\"\",VLOOKUP($F20,'CBAT Lookups'!$B$17:$K$19,5))","v":""},{"$f":"IF('Project Scope'!$C20=\"\",\"\",VLOOKUP($F20,'CBAT Lookups'!$B$17:$K$19,6))","v":""},{"$f":"IF('Project Scope'!$C20=\"\",\"\",VLOOKUP($F20,'CBAT Lookups'!$B$17:$K$19,7))","v":""},{"$f":"IF('Project Scope'!$C20=\"\",\"\",IF(SUMPRODUCT($P20:$S20,$AN20:$AQ20)=0,0,P20*AN20/SUMPRODUCT($P20:$S20,$AN20:$AQ20)))","v":""},{"$f":"IF('Project Scope'!$C20=\"\",\"\",IF(SUMPRODUCT($P20:$S20,$AN20:$AQ20)=0,0,Q20*AO20/SUMPRODUCT($P20:$S20,$AN20:$AQ20)))","v":""},{"$f":"IF('Project Scope'!$C20=\"\",\"\",IF(SUMPRODUCT($P20:$S20,$AN20:$AQ20)=0,0,R20*AP20/SUMPRODUCT($P20:$S20,$AN20:$AQ20)))","v":""},{"$f":"IF('Project Scope'!$C20=\"\",\"\",IF(SUMPRODUCT($P20:$S20,$AN20:$AQ20)=0,0,S20*AQ20/SUMPRODUCT($P20:$S20,$AN20:$AQ20)))","v":""},{"$f":"IF('Project Scope'!$C20=\"\",\"\",Benefits($AB20,$AD20,$AE20,$AG20,$AH20,$AI20,$AJ20,$AK20,$AL20,$AM20,$M20,$AR20,$AS20,$AT20,$AU20,$W20,$X20,$Y20,$Z20,$AA20,$E20))","v":""},"","","","","","","","",null,{"$f":"IF('Project Scope'!$C20=\"\",\"\",SUM('Project Scope'!$AT20,'Project Scope'!$AU20))","v":""},{"$f":"IF('Project Scope'!$C20=\"\",\"\",SUM('Project Scope'!$BG20, 'Project Scope'!$AR20,(IF(ISNUMBER('Project Scope'!$AS20),'Project Scope'!$AS20,0)*'Project Information'!$D$12)))","v":""},null,null,{"$f":"IF('Project Scope'!$C20=\"\",\"\",IF(COUNTIF('CBAT Lookups'!$B$5:$B$12,\"Controls-\"&CBAT!$D20)=1,VLOOKUP(\"Controls-\"&CBAT!$D20,'CBAT Lookups'!$B$5:$L$12,11),0))","v":""},{"$f":"IF('Project Scope'!$C20=\"\",\"\",IF(COUNTIF('CBAT Lookups'!$B$5:$B$12,\"Controls-\"&CBAT!$D20)=1,VLOOKUP(\"Controls-\"&CBAT!$D20,'CBAT Lookups'!$B$5:$K$12,2),0)*VLOOKUP($F20,'CBAT Lookups'!$B$17:$K$19,2))","v":""},{"$f":"IF('Project Scope'!$C20=\"\",\"\",IF(COUNTIF('CBAT Lookups'!$B$5:$B$12,\"Controls-\"&CBAT!$D20)=1,VLOOKUP(\"Controls-\"&CBAT!$D20,'CBAT Lookups'!$B$5:$K$12,3),0)*VLOOKUP($F20,'CBAT Lookups'!$B$17:$K$19,3))","v":""},{"$f":"IF('Project Scope'!$C20=\"\",\"\",IF(COUNTIF('CBAT Lookups'!$B$5:$B$12,\"Controls-\"&CBAT!$D20)=1,VLOOKUP(\"Controls-\"&CBAT!$D20,'CBAT Lookups'!$B$5:$K$12,4),0))","v":""},{"$f":"IF('Project Scope'!$C20=\"\",\"\",IF(COUNTIF('CBAT Lookups'!$B$5:$B$12,\"Controls-\"&CBAT!$D20)=1,VLOOKUP(\"Controls-\"&CBAT!$D20,'CBAT Lookups'!$B$5:$K$12,5),0))","v":""},{"$f":"IF('Project Scope'!$C20=\"\",\"\",IF(COUNTIF('CBAT Lookups'!$B$5:$B$12,\"Controls-\"&CBAT!$D20)=1,VLOOKUP(\"Controls-\"&CBAT!$D20,'CBAT Lookups'!$B$5:$K$12,6),0))","v":""},{"$f":"IF('Project Scope'!$C20=\"\",\"\",IF(COUNTIF('CBAT Lookups'!$B$5:$B$12,\"Controls-\"&CBAT!$D20)=1,VLOOKUP(\"Controls-\"&CBAT!$D20,'CBAT Lookups'!$B$5:$K$12,7),0))","v":""},{"$f":"IF('Project Scope'!$C20=\"\",\"\",IF(VLOOKUP($F20,'CBAT Lookups'!$B$17:$K$19,8)=\"W\",1,IF(COUNTIF('CBAT Lookups'!$B$5:$B$12,\"Controls-\"&CBAT!$D20)=1,VLOOKUP(\"Controls-\"&CBAT!$D20,'CBAT Lookups'!$B$5:$K$12,8),0)*VLOOKUP($F20,'CBAT Lookups'!$B$17:$K$19,8)))","v":""},{"$f":"IF('Project Scope'!$C20=\"\",\"\",IF(VLOOKUP($F20,'CBAT Lookups'!$B$17:$K$19,9)=\"W\",1,IF(COUNTIF('CBAT Lookups'!$B$5:$B$12,\"Controls-\"&CBAT!$D20)=1,VLOOKUP(\"Controls-\"&CBAT!$D20,'CBAT Lookups'!$B$5:$K$12,9),0)*VLOOKUP($F20,'CBAT Lookups'!$B$17:$K$19,9)))","v":""},{"$f":"IF('Project Scope'!$C20=\"\",\"\",IF(COUNTIF('CBAT Lookups'!$B$5:$B$12,\"Controls-\"&CBAT!$D20)=1,VLOOKUP(\"Controls-\"&CBAT!$D20,'CBAT Lookups'!$B$5:$K$12,10),0)*VLOOKUP($F20,'CBAT Lookups'!$B$17:$K$19,10))","v":""},{"$f":"IF('Project Scope'!$C20=\"\",\"\",VLOOKUP($C20,'CBAT Lookups'!$A$33:$B$57,2))","v":""},{"$f":"IF('Project Scope'!$C20=\"\",\"\",IF(COUNTIF('CBAT Lookups'!$B$5:$B$12,\"Controls-\"&CBAT!$D20)=1,VLOOKUP(\"Controls-\"&CBAT!$D20,'CBAT Lookups'!$B$5:$O$12,12),0))","v":""},{"$f":"IF('Project Scope'!$C20=\"\",\"\",IF(COUNTIF('CBAT Lookups'!$B$5:$B$12,\"Controls-\"&CBAT!$D20)=1,VLOOKUP(\"Controls-\"&CBAT!$D20,'CBAT Lookups'!$B$5:$O$12,13),0))","v":""},{"$f":"IF('Project Scope'!$C20=\"\",\"\",IF(COUNTIF('CBAT Lookups'!$B$5:$B$12,\"Controls-\"&CBAT!$D20)=1,VLOOKUP(\"Controls-\"&CBAT!$D20,'CBAT Lookups'!$B$5:$O$12,14),0))","v":""},{"$f":"IF('Project Scope'!$C20=\"\",\"\",'TRM Data'!$U$3)","v":""},{"$f":"IF('Project Scope'!$C20=\"\",\"\",'TRM Data'!$V$3)","v":""},{"$f":"IF('Project Scope'!$C20=\"\",\"\",IF($K20<=0,0,MAX(0,(IF(AND($I20>0,$J20>0),($I20*$J20)/1000,($G20*$H20)/1000)*$L20))*$BT20*$BR20)+($CD20/0.003412))","v":""},{"$f":"IF('Project Scope'!$C20=\"\",\"\",IF($K20<=0,0,MAX(0,IF(AND($I20>0,$J20>0),($I20*$J20)/1000,($G20*$H20)/1000))*$BQ20))","v":""},{"$f":"IF('Project Scope'!$C20=\"\",\"\",IF($K20<=0,0,MAX(0,IF(AND($I20>0,$J20>0),($I20*$J20)/1000,($G20*$H20)/1000))*$BK20))","v":""},{"$f":"IF('Project Scope'!$C20=\"\",\"\",IF($K20<=0,0,MAX(0,IF(AND($I20>0,$J20>0),($I20*$J20)/1000,($G20*$H20)/1000))*$BL20*$BQ20))","v":""},{"$f":"IF('Project Scope'!$C20=\"\",\"\",IF(OR($K20<=0,'Project Information'!$D$44=\"\"),0,-1*MAX(0,IF(AND($I20>0,$J20>0),($I20*$J20)/1000,($G20*$H20)/1000))*$BT20*$L20*$BS20*VLOOKUP('Project Information'!$D$44,'CBAT Lookups'!$A$23:$H$30,2)))","v":""},{"$f":"IF('Project Scope'!$C20=\"\",\"\",IF(OR($K20<=0,'Project Information'!$D$44=\"\"),0,-1*MAX(0,IF(AND($I20>0,$J20>0),($I20*$J20)/1000,($G20*$H20)/1000))*$BT20*$L20*$BS20*VLOOKUP('Project Information'!$D$44,'CBAT Lookups'!$A$23:$H$30,3)))","v":""},{"$f":"IF('Project Scope'!$C20=\"\",\"\",IF(OR($K20<=0,'Project Information'!$D$44=\"\"),0,-1*MAX(0,IF(AND($I20>0,$J20>0),($I20*$J20)/1000,($G20*$H20)/1000))*$BT20*$L20*$BS20*VLOOKUP('Project Information'!$D$44,'CBAT Lookups'!$A$23:$H$30,4)))","v":""},{"$f":"IF('Project Scope'!$C20=\"\",\"\",IF(OR($K20<=0,'Project Information'!$D$44=\"\"),0,-1*MAX(0,IF(AND($I20>0,$J20>0),($I20*$J20)/1000,($G20*$H20)/1000))*$BT20*$L20*$BS20*VLOOKUP('Project Information'!$D$44,'CBAT Lookups'!$A$23:$H$30,5)))","v":""},{"$f":"IF('Project Scope'!$C20=\"\",\"\",IF(OR($K20<=0,'Project Information'!$D$44=\"\"),0,-1*MAX(0,IF(AND($I20>0,$J20>0),($I20*$J20)/1000,($G20*$H20)/1000))*$BT20*$L20*$BS20*VLOOKUP('Project Information'!$D$44,'CBAT Lookups'!$A$23:$H$30,6)))","v":""},{"$f":"IF('Project Scope'!$C20=\"\",\"\",IF(OR($K20<=0,'Project Information'!$D$44=\"\"),0,-1*MAX(0,IF(AND($I20>0,$J20>0),($I20*$J20)/1000,($G20*$H20)/1000))*$BT20*$L20*$BS20*VLOOKUP('Project Information'!$D$44,'CBAT Lookups'!$A$23:$H$30,7)))","v":""},{"$f":"IF('Project Scope'!$C20=\"\",\"\",IF(OR($K20<=0,'Project Information'!$D$44=\"\"),0,-1*MAX(0,IF(AND($I20>0,$J20>0),($I20*$J20)/1000,($G20*$H20)/1000))*$BT20*$L20*$BS20*VLOOKUP('Project Information'!$D$44,'CBAT Lookups'!$A$23:$H$30,8)))","v":""},null,{"$f":"IF('Project Scope'!$C20=\"\",\"\",VLOOKUP($F20,'CBAT Lookups'!$B$17:$K$19,4))","v":""},{"$f":"IF('Project Scope'!$C20=\"\",\"\",VLOOKUP($F20,'CBAT Lookups'!$B$17:$K$19,5))","v":""},{"$f":"IF('Project Scope'!$C20=\"\",\"\",VLOOKUP($F20,'CBAT Lookups'!$B$17:$K$19,6))","v":""},{"$f":"IF('Project Scope'!$C20=\"\",\"\",VLOOKUP($F20,'CBAT Lookups'!$B$17:$K$19,7))","v":""},{"$f":"IF('Project Scope'!$C20=\"\",\"\",IF(SUMPRODUCT($BM20:$BP20,$CL20:$CO20)=0,0,BM20*CL20/SUMPRODUCT($BM20:$BP20,$CL20:$CO20)))","v":""},{"$f":"IF('Project Scope'!$C20=\"\",\"\",IF(SUMPRODUCT($BM20:$BP20,$CL20:$CO20)=0,0,BN20*CM20/SUMPRODUCT($BM20:$BP20,$CL20:$CO20)))","v":""},{"$f":"IF('Project Scope'!$C20=\"\",\"\",IF(SUMPRODUCT($BM20:$BP20,$CL20:$CO20)=0,0,BO20*CN20/SUMPRODUCT($BM20:$BP20,$CL20:$CO20)))","v":""},{"$f":"IF('Project Scope'!$C20=\"\",\"\",IF(SUMPRODUCT($BM20:$BP20,$CL20:$CO20)=0,0,BP20*CO20/SUMPRODUCT($BM20:$BP20,$CL20:$CO20)))","v":""},{"$f":"IF('Project Scope'!$C20=\"\",\"\",Benefits($BZ20,$CB20,$CC20,$CE20,$CF20,$CG20,$CH20,$CI20,$CJ20,$CK20,$BJ20,$CP20,$CQ20,$CR20,$CS20,$BU20,$BV20,$BW20,$BX20,$BY20,$E20))","v":""},"","","","","","","","",null,{"$f":"IF('Project Scope'!$C20=\"\",\"\",SUM('Project Scope'!$BB20,'Project Scope'!$BC20))","v":""},{"$f":"IF('Project Scope'!$C20=\"\",\"\",SUM('Project Scope'!$BH20, 'Project Scope'!$AZ20,(IF(ISNUMBER('Project Scope'!$BA20),'Project Scope'!$BA20,0)*'Project Information'!$D$12)))","v":""},null,null,{"$f":"IF('Project Scope'!$C20=\"\",\"\",IF($J20<=0,0,(SUMPRODUCT($AV20:$BC20,--($AV20:$BC20>0))+$BE20)*$DK20/((-SUMPRODUCT($AV20:$BC20,--($AV20:$BC20<0))+$BG20+$BH20+$BI20)*$DK20)))","v":""},{"$f":"IF('Project Scope'!$C20=\"\",\"\",IF($K20<=0,0,(SUMPRODUCT($CT20:$DA20,--($CT20:$DA20>0))+$DC20)*$DK20/((-SUMPRODUCT($CT20:$DA20,--($CT20:$DA20<0))+$DE20+$DF20+$DG20)*$DK20)))","v":""},{"$f":"IF('Project Scope'!$C20=\"\",\"\",IF(AND($J20<=0,$K20<=0),0,(SUMPRODUCT($AV20:$BC20,--($AV20:$BC20>0))+$BE20+SUMPRODUCT($CT20:$DA20,--($CT20:$DA20>0))+$DC20)*$DK20/((-SUMPRODUCT($AV20:$BC20,--($AV20:$BC20<0))+$BG20+$BH20+$BI20-SUMPRODUCT($CT20:$DA20,--($CT20:$DA20<0))+$DE20+$DF20+$DG20)*$DK20)))","v":""},{"$f":"IF('Project Scope'!$C20=\"\",\"\",IF(NetOrGross=\"Net\",(1-Z20+AA20),1))","v":""}]
[{"$f":"'Project Scope'!$B21","v":14},{"$f":"IF('Project Scope'!$C21=\"\",\"\",'Project Scope'!$C21)","v":""},{"$f":"IF('Project Scope'!$C21=\"\",\"\",'Project Scope'!$H21)","v":""},{"$f":"IF(ISNUMBER(SEARCH(\"Bay\",'Project Scope'!$Q21)),\"Bay\",IF('Project Scope'!C21=\"\",\"\",'Project Scope'!E21))","v":""},{"$f":"IF('Project Scope'!$C21=\"\",\"\",\"Com\")","v":""},{"$f":"IF('Project Scope'!$C21=\"\",\"\",'Project Scope'!$L21)","v":""},{"$f":"IF('Project Scope'!$C21=\"\",\"\",IF('Project Scope'!$CJ21=\"\",0,'Project Scope'!$CJ21))","v":""},{"$f":"IF('Project Scope'!$C21=\"\",\"\",IF('Project Scope'!$N21=\"\",0,'Project Scope'!$N21))","v":""},{"$f":"IF('Project Scope'!$C21=\"\",\"\",IF('Project Scope'!$CK21=\"\",0,'Project Scope'!$CK21))","v":""},{"$f":"IF('Project Scope'!$C21=\"\",\"\",IF('Project Scope'!$AO21=\"\",0,'Project Scope'!$AO21))","v":""},{"$f":"IF('Project Scope'!$C21=\"\",\"\",IF('Project Scope'!$AX21=\"\",0,'Project Scope'!$AX21))","v":""},{"$f":"IF('Project Scope'!$C21=\"\",\"\",IF('Project Scope'!$M21=\"\",0,'Project Scope'!$M21))","v":""},{"$f":"IF('Project Scope'!$C21=\"\",\"\",IF(COUNTIF('CBAT Lookups'!$B$5:$B$12,\"Fixtures-\"&CBAT!$D21)=1,VLOOKUP(\"Fixtures-\"&CBAT!$D21,'CBAT Lookups'!$B$5:$L$12,11),0))","v":""},{"$f":"IF('Project Scope'!$C21=\"\",\"\",(IF(COUNTIF('CBAT Lookups'!$B$5:$B$12,\"Fixtures-\"&CBAT!$D21)=1,VLOOKUP(\"Fixtures-\"&CBAT!$D21,'CBAT Lookups'!$B$5:$K$12,2),0))*VLOOKUP($F21,'CBAT Lookups'!$B$17:$K$19,2))","v":""},{"$f":"IF('Project Scope'!$C21=\"\",\"\",(IF(COUNTIF('CBAT Lookups'!$B$5:$B$12,\"Fixtures-\"&CBAT!$D21)=1,VLOOKUP(\"Fixtures-\"&CBAT!$D21,'CBAT Lookups'!$B$5:$K$12,3),0))*VLOOKUP($F21,'CBAT Lookups'!$B$17:$K$19,3))","v":""},{"$f":"IF('Project Scope'!$C21=\"\",\"\",(IF(COUNTIF('CBAT Lookups'!$B$5:$B$12,\"Fixtures-\"&CBAT!$D21)=1,VLOOKUP(\"Fixtures-\"&CBAT!$D21,'CBAT Lookups'!$B$5:$K$12,4),0)))","v":""},{"$f":"IF('Project Scope'!$C21=\"\",\"\",(IF(COUNTIF('CBAT Lookups'!$B$5:$B$12,\"Fixtures-\"&CBAT!$D21)=1,VLOOKUP(\"Fixtures-\"&CBAT!$D21,'CBAT Lookups'!$B$5:$K$12,5),0)))","v":""},{"$f":"IF('Project Scope'!$C21=\"\",\"\",(IF(COUNTIF('CBAT Lookups'!$B$5:$B$12,\"Fixtures-\"&CBAT!$D21)=1,VLOOKUP(\"Fixtures-\"&CBAT!$D21,'CBAT Lookups'!$B$5:$K$12,6),0)))","v":""},{"$f":"IF('Project Scope'!$C21=\"\",\"\",IF(COUNTIF('CBAT Lookups'!$B$5:$B$12,\"Fixtures-\"&CBAT!$D21)=1,VLOOKUP(\"Fixtures-\"&CBAT!$D21,'CBAT Lookups'!$B$5:$K$12,7),0))","v":""},{"$f":"IF('Project Scope'!$C21=\"\",\"\",IF(VLOOKUP($F21,'CBAT Lookups'!$B$17:$K$19,8)=\"W\",1,IF(COUNTIF('CBAT Lookups'!$B$5:$B$12,\"Fixtures-\"&CBAT!$D21)=1,VLOOKUP(\"Fixtures-\"&CBAT!$D21,'CBAT Lookups'!$B$5:$K$12,8),0)*VLOOKUP($F21,'CBAT Lookups'!$B$17:$K$19,8)))","v":""},{"$f":"IF('Project Scope'!$C21=\"\",\"\",IF(VLOOKUP($F21,'CBAT Lookups'!$B$17:$K$19,9)=\"W\",1,IF(COUNTIF('CBAT Lookups'!$B$5:$B$12,\"Fixtures-\"&CBAT!$D21)=1,VLOOKUP(\"Fixtures-\"&CBAT!$D21,'CBAT Lookups'!$B$5:$K$12,9),0)*VLOOKUP($F21,'CBAT Lookups'!$B$17:$K$19,9)))","v":""},{"$f":"IF('Project Scope'!$C21=\"\",\"\",IF(COUNTIF('CBAT Lookups'!$B$5:$B$12,\"Fixtures-\"&CBAT!$D21)=1,VLOOKUP(\"Fixtures-\"&CBAT!$D21,'CBAT Lookups'!$B$5:$K$12,10),0)*VLOOKUP($F21,'CBAT Lookups'!$B$17:$K$19,10))","v":""},{"$f":"IF('Project Scope'!$C21=\"\",\"\",IF(COUNTIF('CBAT Lookups'!$B$5:$B$12,\"Fixtures-\"&CBAT!$D21)=1,VLOOKUP(\"Fixtures-\"&CBAT!$D21,'CBAT Lookups'!$B$5:$O$12,12),0))","v":""},{"$f":"IF('Project Scope'!$C21=\"\",\"\",IF(COUNTIF('CBAT Lookups'!$B$5:$B$12,\"Fixtures-\"&CBAT!$D21)=1,VLOOKUP(\"Fixtures-\"&CBAT!$D21,'CBAT Lookups'!$B$5:$O$12,13),0))","v":""},{"$f":"IF('Project Scope'!$C21=\"\",\"\",IF(COUNTIF('CBAT Lookups'!$B$5:$B$12,\"Fixtures-\"&CBAT!$D21)=1,VLOOKUP(\"Fixtures-\"&CBAT!$D21,'CBAT Lookups'!$B$5:$O$12,14),0))","v":""},{"$f":"IF('Project Scope'!$C21=\"\",\"\",'TRM Data'!$U$3)","v":""},{"$f":"IF('Project Scope'!$C21=\"\",\"\",'TRM Data'!$V$3)","v":""},{"$f":"IF('Project Scope'!$C21=\"\",\"\",IF($J21<=0,0,MAX(0,(($G21*$H21/1000)-($I21*$J21/1000))*$L21)*$U21)+($AF21/0.003412))","v":""},{"$f":"IF('Project Scope'!$C21=\"\",\"\",IF($J21<=0,0,MAX(0,(($G21*$H21/1000)-($I21*$J21/1000)))*$T21))","v":""},{"$f":"IF('Project Scope'!$C21=\"\",\"\",IF($J21<=0,0,MAX(0,(($G21*$H21/1000)-($I21*$J21/1000))*$N21)))","v":""},{"$f":"IF('Project Scope'!$C21=\"\",\"\",IF($J21<=0,0,MAX(0,(($G21*$H21/1000)-($I21*$J21/1000))*$O21)*$T21))","v":""},{"$f":"IF('Project Scope'!$C21=\"\",\"\",IF(OR($J21<=0,'Project Information'!$D$44=\"\"),0,-1*MAX(0,(($G21*$H21/1000)-($I21*$J21/1000))*$L21)*$V21*VLOOKUP('Project Information'!$D$44,'CBAT Lookups'!$A$23:$H$30,2)))","v":""},{"$f":"IF('Project Scope'!$C21=\"\",\"\",IF(OR($J21<=0,'Project Information'!$D$44=\"\"),0,-1*MAX(0,(($G21*$H21/1000)-($I21*$J21/1000))*$L21)*$V21*VLOOKUP('Project Information'!$D$44,'CBAT Lookups'!$A$23:$H$30,3)))","v":""},{"$f":"IF('Project Scope'!$C21=\"\",\"\",IF(OR($J21<=0,'Project Information'!$D$44=\"\"),0,-1*MAX(0,(($G21*$H21/1000)-($I21*$J21/1000))*$L21)*$V21*VLOOKUP('Project Information'!$D$44,'CBAT Lookups'!$A$23:$H$30,4)))","v":""},{"$f":"IF('Project Scope'!$C21=\"\",\"\",IF(OR($J21<=0,'Project Information'!$D$44=\"\"),0,-1*MAX(0,(($G21*$H21/1000)-($I21*$J21/1000))*$L21)*$V21*VLOOKUP('Project Information'!$D$44,'CBAT Lookups'!$A$23:$H$30,5)))","v":""},{"$f":"IF('Project Scope'!$C21=\"\",\"\",IF(OR($J21<=0,'Project Information'!$D$44=\"\"),0,-1*MAX(0,(($G21*$H21/1000)-($I21*$J21/1000))*$L21)*$V21*VLOOKUP('Project Information'!$D$44,'CBAT Lookups'!$A$23:$H$30,6)))","v":""},{"$f":"IF('Project Scope'!$C21=\"\",\"\",IF(OR($J21<=0,'Project Information'!$D$44=\"\"),0,-1*MAX(0,(($G21*$H21/1000)-($I21*$J21/1000))*$L21)*$V21*VLOOKUP('Project Information'!$D$44,'CBAT Lookups'!$A$23:$H$30,7)))","v":""},{"$f":"IF('Project Scope'!$C21=\"\",\"\",IF(OR($J21<=0,'Project Information'!$D$44=\"\"),0,-1*MAX(0,(($G21*$H21/1000)-($I21*$J21/1000))*$L21)*$V21*VLOOKUP('Project Information'!$D$44,'CBAT Lookups'!$A$23:$H$30,8)))","v":""},null,{"$f":"IF('Project Scope'!$C21=\"\",\"\",VLOOKUP($F21,'CBAT Lookups'!$B$17:$K$19,4))","v":""},{"$f":"IF('Project Scope'!$C21=\"\",\"\",VLOOKUP($F21,'CBAT Lookups'!$B$17:$K$19,5))","v":""},{"$f":"IF('Project Scope'!$C21=\"\",\"\",VLOOKUP($F21,'CBAT Lookups'!$B$17:$K$19,6))","v":""},{"$f":"IF('Project Scope'!$C21=\"\",\"\",VLOOKUP($F21,'CBAT Lookups'!$B$17:$K$19,7))","v":""},{"$f":"IF('Project Scope'!$C21=\"\",\"\",IF(SUMPRODUCT($P21:$S21,$AN21:$AQ21)=0,0,P21*AN21/SUMPRODUCT($P21:$S21,$AN21:$AQ21)))","v":""},{"$f":"IF('Project Scope'!$C21=\"\",\"\",IF(SUMPRODUCT($P21:$S21,$AN21:$AQ21)=0,0,Q21*AO21/SUMPRODUCT($P21:$S21,$AN21:$AQ21)))","v":""},{"$f":"IF('Project Scope'!$C21=\"\",\"\",IF(SUMPRODUCT($P21:$S21,$AN21:$AQ21)=0,0,R21*AP21/SUMPRODUCT($P21:$S21,$AN21:$AQ21)))","v":""},{"$f":"IF('Project Scope'!$C21=\"\",\"\",IF(SUMPRODUCT($P21:$S21,$AN21:$AQ21)=0,0,S21*AQ21/SUMPRODUCT($P21:$S21,$AN21:$AQ21)))","v":""},{"$f":"IF('Project Scope'!$C21=\"\",\"\",Benefits($AB21,$AD21,$AE21,$AG21,$AH21,$AI21,$AJ21,$AK21,$AL21,$AM21,$M21,$AR21,$AS21,$AT21,$AU21,$W21,$X21,$Y21,$Z21,$AA21,$E21))","v":""},"","","","","","","","",null,{"$f":"IF('Project Scope'!$C21=\"\",\"\",SUM('Project Scope'!$AT21,'Project Scope'!$AU21))","v":""},{"$f":"IF('Project Scope'!$C21=\"\",\"\",SUM('Project Scope'!$BG21, 'Project Scope'!$AR21,(IF(ISNUMBER('Project Scope'!$AS21),'Project Scope'!$AS21,0)*'Project Information'!$D$12)))","v":""},null,null,{"$f":"IF('Project Scope'!$C21=\"\",\"\",IF(COUNTIF('CBAT Lookups'!$B$5:$B$12,\"Controls-\"&CBAT!$D21)=1,VLOOKUP(\"Controls-\"&CBAT!$D21,'CBAT Lookups'!$B$5:$L$12,11),0))","v":""},{"$f":"IF('Project Scope'!$C21=\"\",\"\",IF(COUNTIF('CBAT Lookups'!$B$5:$B$12,\"Controls-\"&CBAT!$D21)=1,VLOOKUP(\"Controls-\"&CBAT!$D21,'CBAT Lookups'!$B$5:$K$12,2),0)*VLOOKUP($F21,'CBAT Lookups'!$B$17:$K$19,2))","v":""},{"$f":"IF('Project Scope'!$C21=\"\",\"\",IF(COUNTIF('CBAT Lookups'!$B$5:$B$12,\"Controls-\"&CBAT!$D21)=1,VLOOKUP(\"Controls-\"&CBAT!$D21,'CBAT Lookups'!$B$5:$K$12,3),0)*VLOOKUP($F21,'CBAT Lookups'!$B$17:$K$19,3))","v":""},{"$f":"IF('Project Scope'!$C21=\"\",\"\",IF(COUNTIF('CBAT Lookups'!$B$5:$B$12,\"Controls-\"&CBAT!$D21)=1,VLOOKUP(\"Controls-\"&CBAT!$D21,'CBAT Lookups'!$B$5:$K$12,4),0))","v":""},{"$f":"IF('Project Scope'!$C21=\"\",\"\",IF(COUNTIF('CBAT Lookups'!$B$5:$B$12,\"Controls-\"&CBAT!$D21)=1,VLOOKUP(\"Controls-\"&CBAT!$D21,'CBAT Lookups'!$B$5:$K$12,5),0))","v":""},{"$f":"IF('Project Scope'!$C21=\"\",\"\",IF(COUNTIF('CBAT Lookups'!$B$5:$B$12,\"Controls-\"&CBAT!$D21)=1,VLOOKUP(\"Controls-\"&CBAT!$D21,'CBAT Lookups'!$B$5:$K$12,6),0))","v":""},{"$f":"IF('Project Scope'!$C21=\"\",\"\",IF(COUNTIF('CBAT Lookups'!$B$5:$B$12,\"Controls-\"&CBAT!$D21)=1,VLOOKUP(\"Controls-\"&CBAT!$D21,'CBAT Lookups'!$B$5:$K$12,7),0))","v":""},{"$f":"IF('Project Scope'!$C21=\"\",\"\",IF(VLOOKUP($F21,'CBAT Lookups'!$B$17:$K$19,8)=\"W\",1,IF(COUNTIF('CBAT Lookups'!$B$5:$B$12,\"Controls-\"&CBAT!$D21)=1,VLOOKUP(\"Controls-\"&CBAT!$D21,'CBAT Lookups'!$B$5:$K$12,8),0)*VLOOKUP($F21,'CBAT Lookups'!$B$17:$K$19,8)))","v":""},{"$f":"IF('Project Scope'!$C21=\"\",\"\",IF(VLOOKUP($F21,'CBAT Lookups'!$B$17:$K$19,9)=\"W\",1,IF(COUNTIF('CBAT Lookups'!$B$5:$B$12,\"Controls-\"&CBAT!$D21)=1,VLOOKUP(\"Controls-\"&CBAT!$D21,'CBAT Lookups'!$B$5:$K$12,9),0)*VLOOKUP($F21,'CBAT Lookups'!$B$17:$K$19,9)))","v":""},{"$f":"IF('Project Scope'!$C21=\"\",\"\",IF(COUNTIF('CBAT Lookups'!$B$5:$B$12,\"Controls-\"&CBAT!$D21)=1,VLOOKUP(\"Controls-\"&CBAT!$D21,'CBAT Lookups'!$B$5:$K$12,10),0)*VLOOKUP($F21,'CBAT Lookups'!$B$17:$K$19,10))","v":""},{"$f":"IF('Project Scope'!$C21=\"\",\"\",VLOOKUP($C21,'CBAT Lookups'!$A$33:$B$57,2))","v":""},{"$f":"IF('Project Scope'!$C21=\"\",\"\",IF(COUNTIF('CBAT Lookups'!$B$5:$B$12,\"Controls-\"&CBAT!$D21)=1,VLOOKUP(\"Controls-\"&CBAT!$D21,'CBAT Lookups'!$B$5:$O$12,12),0))","v":""},{"$f":"IF('Project Scope'!$C21=\"\",\"\",IF(COUNTIF('CBAT Lookups'!$B$5:$B$12,\"Controls-\"&CBAT!$D21)=1,VLOOKUP(\"Controls-\"&CBAT!$D21,'CBAT Lookups'!$B$5:$O$12,13),0))","v":""},{"$f":"IF('Project Scope'!$C21=\"\",\"\",IF(COUNTIF('CBAT Lookups'!$B$5:$B$12,\"Controls-\"&CBAT!$D21)=1,VLOOKUP(\"Controls-\"&CBAT!$D21,'CBAT Lookups'!$B$5:$O$12,14),0))","v":""},{"$f":"IF('Project Scope'!$C21=\"\",\"\",'TRM Data'!$U$3)","v":""},{"$f":"IF('Project Scope'!$C21=\"\",\"\",'TRM Data'!$V$3)","v":""},{"$f":"IF('Project Scope'!$C21=\"\",\"\",IF($K21<=0,0,MAX(0,(IF(AND($I21>0,$J21>0),($I21*$J21)/1000,($G21*$H21)/1000)*$L21))*$BT21*$BR21)+($CD21/0.003412))","v":""},{"$f":"IF('Project Scope'!$C21=\"\",\"\",IF($K21<=0,0,MAX(0,IF(AND($I21>0,$J21>0),($I21*$J21)/1000,($G21*$H21)/1000))*$BQ21))","v":""},{"$f":"IF('Project Scope'!$C21=\"\",\"\",IF($K21<=0,0,MAX(0,IF(AND($I21>0,$J21>0),($I21*$J21)/1000,($G21*$H21)/1000))*$BK21))","v":""},{"$f":"IF('Project Scope'!$C21=\"\",\"\",IF($K21<=0,0,MAX(0,IF(AND($I21>0,$J21>0),($I21*$J21)/1000,($G21*$H21)/1000))*$BL21*$BQ21))","v":""},{"$f":"IF('Project Scope'!$C21=\"\",\"\",IF(OR($K21<=0,'Project Information'!$D$44=\"\"),0,-1*MAX(0,IF(AND($I21>0,$J21>0),($I21*$J21)/1000,($G21*$H21)/1000))*$BT21*$L21*$BS21*VLOOKUP('Project Information'!$D$44,'CBAT Lookups'!$A$23:$H$30,2)))","v":""},{"$f":"IF('Project Scope'!$C21=\"\",\"\",IF(OR($K21<=0,'Project Information'!$D$44=\"\"),0,-1*MAX(0,IF(AND($I21>0,$J21>0),($I21*$J21)/1000,($G21*$H21)/1000))*$BT21*$L21*$BS21*VLOOKUP('Project Information'!$D$44,'CBAT Lookups'!$A$23:$H$30,3)))","v":""},{"$f":"IF('Project Scope'!$C21=\"\",\"\",IF(OR($K21<=0,'Project Information'!$D$44=\"\"),0,-1*MAX(0,IF(AND($I21>0,$J21>0),($I21*$J21)/1000,($G21*$H21)/1000))*$BT21*$L21*$BS21*VLOOKUP('Project Information'!$D$44,'CBAT Lookups'!$A$23:$H$30,4)))","v":""},{"$f":"IF('Project Scope'!$C21=\"\",\"\",IF(OR($K21<=0,'Project Information'!$D$44=\"\"),0,-1*MAX(0,IF(AND($I21>0,$J21>0),($I21*$J21)/1000,($G21*$H21)/1000))*$BT21*$L21*$BS21*VLOOKUP('Project Information'!$D$44,'CBAT Lookups'!$A$23:$H$30,5)))","v":""},{"$f":"IF('Project Scope'!$C21=\"\",\"\",IF(OR($K21<=0,'Project Information'!$D$44=\"\"),0,-1*MAX(0,IF(AND($I21>0,$J21>0),($I21*$J21)/1000,($G21*$H21)/1000))*$BT21*$L21*$BS21*VLOOKUP('Project Information'!$D$44,'CBAT Lookups'!$A$23:$H$30,6)))","v":""},{"$f":"IF('Project Scope'!$C21=\"\",\"\",IF(OR($K21<=0,'Project Information'!$D$44=\"\"),0,-1*MAX(0,IF(AND($I21>0,$J21>0),($I21*$J21)/1000,($G21*$H21)/1000))*$BT21*$L21*$BS21*VLOOKUP('Project Information'!$D$44,'CBAT Lookups'!$A$23:$H$30,7)))","v":""},{"$f":"IF('Project Scope'!$C21=\"\",\"\",IF(OR($K21<=0,'Project Information'!$D$44=\"\"),0,-1*MAX(0,IF(AND($I21>0,$J21>0),($I21*$J21)/1000,($G21*$H21)/1000))*$BT21*$L21*$BS21*VLOOKUP('Project Information'!$D$44,'CBAT Lookups'!$A$23:$H$30,8)))","v":""},null,{"$f":"IF('Project Scope'!$C21=\"\",\"\",VLOOKUP($F21,'CBAT Lookups'!$B$17:$K$19,4))","v":""},{"$f":"IF('Project Scope'!$C21=\"\",\"\",VLOOKUP($F21,'CBAT Lookups'!$B$17:$K$19,5))","v":""},{"$f":"IF('Project Scope'!$C21=\"\",\"\",VLOOKUP($F21,'CBAT Lookups'!$B$17:$K$19,6))","v":""},{"$f":"IF('Project Scope'!$C21=\"\",\"\",VLOOKUP($F21,'CBAT Lookups'!$B$17:$K$19,7))","v":""},{"$f":"IF('Project Scope'!$C21=\"\",\"\",IF(SUMPRODUCT($BM21:$BP21,$CL21:$CO21)=0,0,BM21*CL21/SUMPRODUCT($BM21:$BP21,$CL21:$CO21)))","v":""},{"$f":"IF('Project Scope'!$C21=\"\",\"\",IF(SUMPRODUCT($BM21:$BP21,$CL21:$CO21)=0,0,BN21*CM21/SUMPRODUCT($BM21:$BP21,$CL21:$CO21)))","v":""},{"$f":"IF('Project Scope'!$C21=\"\",\"\",IF(SUMPRODUCT($BM21:$BP21,$CL21:$CO21)=0,0,BO21*CN21/SUMPRODUCT($BM21:$BP21,$CL21:$CO21)))","v":""},{"$f":"IF('Project Scope'!$C21=\"\",\"\",IF(SUMPRODUCT($BM21:$BP21,$CL21:$CO21)=0,0,BP21*CO21/SUMPRODUCT($BM21:$BP21,$CL21:$CO21)))","v":""},{"$f":"IF('Project Scope'!$C21=\"\",\"\",Benefits($BZ21,$CB21,$CC21,$CE21,$CF21,$CG21,$CH21,$CI21,$CJ21,$CK21,$BJ21,$CP21,$CQ21,$CR21,$CS21,$BU21,$BV21,$BW21,$BX21,$BY21,$E21))","v":""},"","","","","","","","",null,{"$f":"IF('Project Scope'!$C21=\"\",\"\",SUM('Project Scope'!$BB21,'Project Scope'!$BC21))","v":""},{"$f":"IF('Project Scope'!$C21=\"\",\"\",SUM('Project Scope'!$BH21, 'Project Scope'!$AZ21,(IF(ISNUMBER('Project Scope'!$BA21),'Project Scope'!$BA21,0)*'Project Information'!$D$12)))","v":""},null,null,{"$f":"IF('Project Scope'!$C21=\"\",\"\",IF($J21<=0,0,(SUMPRODUCT($AV21:$BC21,--($AV21:$BC21>0))+$BE21)*$DK21/((-SUMPRODUCT($AV21:$BC21,--($AV21:$BC21<0))+$BG21+$BH21+$BI21)*$DK21)))","v":""},{"$f":"IF('Project Scope'!$C21=\"\",\"\",IF($K21<=0,0,(SUMPRODUCT($CT21:$DA21,--($CT21:$DA21>0))+$DC21)*$DK21/((-SUMPRODUCT($CT21:$DA21,--($CT21:$DA21<0))+$DE21+$DF21+$DG21)*$DK21)))","v":""},{"$f":"IF('Project Scope'!$C21=\"\",\"\",IF(AND($J21<=0,$K21<=0),0,(SUMPRODUCT($AV21:$BC21,--($AV21:$BC21>0))+$BE21+SUMPRODUCT($CT21:$DA21,--($CT21:$DA21>0))+$DC21)*$DK21/((-SUMPRODUCT($AV21:$BC21,--($AV21:$BC21<0))+$BG21+$BH21+$BI21-SUMPRODUCT($CT21:$DA21,--($CT21:$DA21<0))+$DE21+$DF21+$DG21)*$DK21)))","v":""},{"$f":"IF('Project Scope'!$C21=\"\",\"\",IF(NetOrGross=\"Net\",(1-Z21+AA21),1))","v":""}]
[{"$f":"'Project Scope'!$B22","v":15},{"$f":"IF('Project Scope'!$C22=\"\",\"\",'Project Scope'!$C22)","v":""},{"$f":"IF('Project Scope'!$C22=\"\",\"\",'Project Scope'!$H22)","v":""},{"$f":"IF(ISNUMBER(SEARCH(\"Bay\",'Project Scope'!$Q22)),\"Bay\",IF('Project Scope'!C22=\"\",\"\",'Project Scope'!E22))","v":""},{"$f":"IF('Project Scope'!$C22=\"\",\"\",\"Com\")","v":""},{"$f":"IF('Project Scope'!$C22=\"\",\"\",'Project Scope'!$L22)","v":""},{"$f":"IF('Project Scope'!$C22=\"\",\"\",IF('Project Scope'!$CJ22=\"\",0,'Project Scope'!$CJ22))","v":""},{"$f":"IF('Project Scope'!$C22=\"\",\"\",IF('Project Scope'!$N22=\"\",0,'Project Scope'!$N22))","v":""},{"$f":"IF('Project Scope'!$C22=\"\",\"\",IF('Project Scope'!$CK22=\"\",0,'Project Scope'!$CK22))","v":""},{"$f":"IF('Project Scope'!$C22=\"\",\"\",IF('Project Scope'!$AO22=\"\",0,'Project Scope'!$AO22))","v":""},{"$f":"IF('Project Scope'!$C22=\"\",\"\",IF('Project Scope'!$AX22=\"\",0,'Project Scope'!$AX22))","v":""},{"$f":"IF('Project Scope'!$C22=\"\",\"\",IF('Project Scope'!$M22=\"\",0,'Project Scope'!$M22))","v":""},{"$f":"IF('Project Scope'!$C22=\"\",\"\",IF(COUNTIF('CBAT Lookups'!$B$5:$B$12,\"Fixtures-\"&CBAT!$D22)=1,VLOOKUP(\"Fixtures-\"&CBAT!$D22,'CBAT Lookups'!$B$5:$L$12,11),0))","v":""},{"$f":"IF('Project Scope'!$C22=\"\",\"\",(IF(COUNTIF('CBAT Lookups'!$B$5:$B$12,\"Fixtures-\"&CBAT!$D22)=1,VLOOKUP(\"Fixtures-\"&CBAT!$D22,'CBAT Lookups'!$B$5:$K$12,2),0))*VLOOKUP($F22,'CBAT Lookups'!$B$17:$K$19,2))","v":""},{"$f":"IF('Project Scope'!$C22=\"\",\"\",(IF(COUNTIF('CBAT Lookups'!$B$5:$B$12,\"Fixtures-\"&CBAT!$D22)=1,VLOOKUP(\"Fixtures-\"&CBAT!$D22,'CBAT Lookups'!$B$5:$K$12,3),0))*VLOOKUP($F22,'CBAT Lookups'!$B$17:$K$19,3))","v":""},{"$f":"IF('Project Scope'!$C22=\"\",\"\",(IF(COUNTIF('CBAT Lookups'!$B$5:$B$12,\"Fixtures-\"&CBAT!$D22)=1,VLOOKUP(\"Fixtures-\"&CBAT!$D22,'CBAT Lookups'!$B$5:$K$12,4),0)))","v":""},{"$f":"IF('Project Scope'!$C22=\"\",\"\",(IF(COUNTIF('CBAT Lookups'!$B$5:$B$12,\"Fixtures-\"&CBAT!$D22)=1,VLOOKUP(\"Fixtures-\"&CBAT!$D22,'CBAT Lookups'!$B$5:$K$12,5),0)))","v":""},{"$f":"IF('Project Scope'!$C22=\"\",\"\",(IF(COUNTIF('CBAT Lookups'!$B$5:$B$12,\"Fixtures-\"&CBAT!$D22)=1,VLOOKUP(\"Fixtures-\"&CBAT!$D22,'CBAT Lookups'!$B$5:$K$12,6),0)))","v":""},{"$f":"IF('Project Scope'!$C22=\"\",\"\",IF(COUNTIF('CBAT Lookups'!$B$5:$B$12,\"Fixtures-\"&CBAT!$D22)=1,VLOOKUP(\"Fixtures-\"&CBAT!$D22,'CBAT Lookups'!$B$5:$K$12,7),0))","v":""},{"$f":"IF('Project Scope'!$C22=\"\",\"\",IF(VLOOKUP($F22,'CBAT Lookups'!$B$17:$K$19,8)=\"W\",1,IF(COUNTIF('CBAT Lookups'!$B$5:$B$12,\"Fixtures-\"&CBAT!$D22)=1,VLOOKUP(\"Fixtures-\"&CBAT!$D22,'CBAT Lookups'!$B$5:$K$12,8),0)*VLOOKUP($F22,'CBAT Lookups'!$B$17:$K$19,8)))","v":""},{"$f":"IF('Project Scope'!$C22=\"\",\"\",IF(VLOOKUP($F22,'CBAT Lookups'!$B$17:$K$19,9)=\"W\",1,IF(COUNTIF('CBAT Lookups'!$B$5:$B$12,\"Fixtures-\"&CBAT!$D22)=1,VLOOKUP(\"Fixtures-\"&CBAT!$D22,'CBAT Lookups'!$B$5:$K$12,9),0)*VLOOKUP($F22,'CBAT Lookups'!$B$17:$K$19,9)))","v":""},{"$f":"IF('Project Scope'!$C22=\"\",\"\",IF(COUNTIF('CBAT Lookups'!$B$5:$B$12,\"Fixtures-\"&CBAT!$D22)=1,VLOOKUP(\"Fixtures-\"&CBAT!$D22,'CBAT Lookups'!$B$5:$K$12,10),0)*VLOOKUP($F22,'CBAT Lookups'!$B$17:$K$19,10))","v":""},{"$f":"IF('Project Scope'!$C22=\"\",\"\",IF(COUNTIF('CBAT Lookups'!$B$5:$B$12,\"Fixtures-\"&CBAT!$D22)=1,VLOOKUP(\"Fixtures-\"&CBAT!$D22,'CBAT Lookups'!$B$5:$O$12,12),0))","v":""},{"$f":"IF('Project Scope'!$C22=\"\",\"\",IF(COUNTIF('CBAT Lookups'!$B$5:$B$12,\"Fixtures-\"&CBAT!$D22)=1,VLOOKUP(\"Fixtures-\"&CBAT!$D22,'CBAT Lookups'!$B$5:$O$12,13),0))","v":""},{"$f":"IF('Project Scope'!$C22=\"\",\"\",IF(COUNTIF('CBAT Lookups'!$B$5:$B$12,\"Fixtures-\"&CBAT!$D22)=1,VLOOKUP(\"Fixtures-\"&CBAT!$D22,'CBAT Lookups'!$B$5:$O$12,14),0))","v":""},{"$f":"IF('Project Scope'!$C22=\"\",\"\",'TRM Data'!$U$3)","v":""},{"$f":"IF('Project Scope'!$C22=\"\",\"\",'TRM Data'!$V$3)","v":""},{"$f":"IF('Project Scope'!$C22=\"\",\"\",IF($J22<=0,0,MAX(0,(($G22*$H22/1000)-($I22*$J22/1000))*$L22)*$U22)+($AF22/0.003412))","v":""},{"$f":"IF('Project Scope'!$C22=\"\",\"\",IF($J22<=0,0,MAX(0,(($G22*$H22/1000)-($I22*$J22/1000)))*$T22))","v":""},{"$f":"IF('Project Scope'!$C22=\"\",\"\",IF($J22<=0,0,MAX(0,(($G22*$H22/1000)-($I22*$J22/1000))*$N22)))","v":""},{"$f":"IF('Project Scope'!$C22=\"\",\"\",IF($J22<=0,0,MAX(0,(($G22*$H22/1000)-($I22*$J22/1000))*$O22)*$T22))","v":""},{"$f":"IF('Project Scope'!$C22=\"\",\"\",IF(OR($J22<=0,'Project Information'!$D$44=\"\"),0,-1*MAX(0,(($G22*$H22/1000)-($I22*$J22/1000))*$L22)*$V22*VLOOKUP('Project Information'!$D$44,'CBAT Lookups'!$A$23:$H$30,2)))","v":""},{"$f":"IF('Project Scope'!$C22=\"\",\"\",IF(OR($J22<=0,'Project Information'!$D$44=\"\"),0,-1*MAX(0,(($G22*$H22/1000)-($I22*$J22/1000))*$L22)*$V22*VLOOKUP('Project Information'!$D$44,'CBAT Lookups'!$A$23:$H$30,3)))","v":""},{"$f":"IF('Project Scope'!$C22=\"\",\"\",IF(OR($J22<=0,'Project Information'!$D$44=\"\"),0,-1*MAX(0,(($G22*$H22/1000)-($I22*$J22/1000))*$L22)*$V22*VLOOKUP('Project Information'!$D$44,'CBAT Lookups'!$A$23:$H$30,4)))","v":""},{"$f":"IF('Project Scope'!$C22=\"\",\"\",IF(OR($J22<=0,'Project Information'!$D$44=\"\"),0,-1*MAX(0,(($G22*$H22/1000)-($I22*$J22/1000))*$L22)*$V22*VLOOKUP('Project Information'!$D$44,'CBAT Lookups'!$A$23:$H$30,5)))","v":""},{"$f":"IF('Project Scope'!$C22=\"\",\"\",IF(OR($J22<=0,'Project Information'!$D$44=\"\"),0,-1*MAX(0,(($G22*$H22/1000)-($I22*$J22/1000))*$L22)*$V22*VLOOKUP('Project Information'!$D$44,'CBAT Lookups'!$A$23:$H$30,6)))","v":""},{"$f":"IF('Project Scope'!$C22=\"\",\"\",IF(OR($J22<=0,'Project Information'!$D$44=\"\"),0,-1*MAX(0,(($G22*$H22/1000)-($I22*$J22/1000))*$L22)*$V22*VLOOKUP('Project Information'!$D$44,'CBAT Lookups'!$A$23:$H$30,7)))","v":""},{"$f":"IF('Project Scope'!$C22=\"\",\"\",IF(OR($J22<=0,'Project Information'!$D$44=\"\"),0,-1*MAX(0,(($G22*$H22/1000)-($I22*$J22/1000))*$L22)*$V22*VLOOKUP('Project Information'!$D$44,'CBAT Lookups'!$A$23:$H$30,8)))","v":""},null,{"$f":"IF('Project Scope'!$C22=\"\",\"\",VLOOKUP($F22,'CBAT Lookups'!$B$17:$K$19,4))","v":""},{"$f":"IF('Project Scope'!$C22=\"\",\"\",VLOOKUP($F22,'CBAT Lookups'!$B$17:$K$19,5))","v":""},{"$f":"IF('Project Scope'!$C22=\"\",\"\",VLOOKUP($F22,'CBAT Lookups'!$B$17:$K$19,6))","v":""},{"$f":"IF('Project Scope'!$C22=\"\",\"\",VLOOKUP($F22,'CBAT Lookups'!$B$17:$K$19,7))","v":""},{"$f":"IF('Project Scope'!$C22=\"\",\"\",IF(SUMPRODUCT($P22:$S22,$AN22:$AQ22)=0,0,P22*AN22/SUMPRODUCT($P22:$S22,$AN22:$AQ22)))","v":""},{"$f":"IF('Project Scope'!$C22=\"\",\"\",IF(SUMPRODUCT($P22:$S22,$AN22:$AQ22)=0,0,Q22*AO22/SUMPRODUCT($P22:$S22,$AN22:$AQ22)))","v":""},{"$f":"IF('Project Scope'!$C22=\"\",\"\",IF(SUMPRODUCT($P22:$S22,$AN22:$AQ22)=0,0,R22*AP22/SUMPRODUCT($P22:$S22,$AN22:$AQ22)))","v":""},{"$f":"IF('Project Scope'!$C22=\"\",\"\",IF(SUMPRODUCT($P22:$S22,$AN22:$AQ22)=0,0,S22*AQ22/SUMPRODUCT($P22:$S22,$AN22:$AQ22)))","v":""},{"$f":"IF('Project Scope'!$C22=\"\",\"\",Benefits($AB22,$AD22,$AE22,$AG22,$AH22,$AI22,$AJ22,$AK22,$AL22,$AM22,$M22,$AR22,$AS22,$AT22,$AU22,$W22,$X22,$Y22,$Z22,$AA22,$E22))","v":""},"","","","","","","","",null,{"$f":"IF('Project Scope'!$C22=\"\",\"\",SUM('Project Scope'!$AT22,'Project Scope'!$AU22))","v":""},{"$f":"IF('Project Scope'!$C22=\"\",\"\",SUM('Project Scope'!$BG22, 'Project Scope'!$AR22,(IF(ISNUMBER('Project Scope'!$AS22),'Project Scope'!$AS22,0)*'Project Information'!$D$12)))","v":""},null,null,{"$f":"IF('Project Scope'!$C22=\"\",\"\",IF(COUNTIF('CBAT Lookups'!$B$5:$B$12,\"Controls-\"&CBAT!$D22)=1,VLOOKUP(\"Controls-\"&CBAT!$D22,'CBAT Lookups'!$B$5:$L$12,11),0))","v":""},{"$f":"IF('Project Scope'!$C22=\"\",\"\",IF(COUNTIF('CBAT Lookups'!$B$5:$B$12,\"Controls-\"&CBAT!$D22)=1,VLOOKUP(\"Controls-\"&CBAT!$D22,'CBAT Lookups'!$B$5:$K$12,2),0)*VLOOKUP($F22,'CBAT Lookups'!$B$17:$K$19,2))","v":""},{"$f":"IF('Project Scope'!$C22=\"\",\"\",IF(COUNTIF('CBAT Lookups'!$B$5:$B$12,\"Controls-\"&CBAT!$D22)=1,VLOOKUP(\"Controls-\"&CBAT!$D22,'CBAT Lookups'!$B$5:$K$12,3),0)*VLOOKUP($F22,'CBAT Lookups'!$B$17:$K$19,3))","v":""},{"$f":"IF('Project Scope'!$C22=\"\",\"\",IF(COUNTIF('CBAT Lookups'!$B$5:$B$12,\"Controls-\"&CBAT!$D22)=1,VLOOKUP(\"Controls-\"&CBAT!$D22,'CBAT Lookups'!$B$5:$K$12,4),0))","v":""},{"$f":"IF('Project Scope'!$C22=\"\",\"\",IF(COUNTIF('CBAT Lookups'!$B$5:$B$12,\"Controls-\"&CBAT!$D22)=1,VLOOKUP(\"Controls-\"&CBAT!$D22,'CBAT Lookups'!$B$5:$K$12,5),0))","v":""},{"$f":"IF('Project Scope'!$C22=\"\",\"\",IF(COUNTIF('CBAT Lookups'!$B$5:$B$12,\"Controls-\"&CBAT!$D22)=1,VLOOKUP(\"Controls-\"&CBAT!$D22,'CBAT Lookups'!$B$5:$K$12,6),0))","v":""},{"$f":"IF('Project Scope'!$C22=\"\",\"\",IF(COUNTIF('CBAT Lookups'!$B$5:$B$12,\"Controls-\"&CBAT!$D22)=1,VLOOKUP(\"Controls-\"&CBAT!$D22,'CBAT Lookups'!$B$5:$K$12,7),0))","v":""},{"$f":"IF('Project Scope'!$C22=\"\",\"\",IF(VLOOKUP($F22,'CBAT Lookups'!$B$17:$K$19,8)=\"W\",1,IF(COUNTIF('CBAT Lookups'!$B$5:$B$12,\"Controls-\"&CBAT!$D22)=1,VLOOKUP(\"Controls-\"&CBAT!$D22,'CBAT Lookups'!$B$5:$K$12,8),0)*VLOOKUP($F22,'CBAT Lookups'!$B$17:$K$19,8)))","v":""},{"$f":"IF('Project Scope'!$C22=\"\",\"\",IF(VLOOKUP($F22,'CBAT Lookups'!$B$17:$K$19,9)=\"W\",1,IF(COUNTIF('CBAT Lookups'!$B$5:$B$12,\"Controls-\"&CBAT!$D22)=1,VLOOKUP(\"Controls-\"&CBAT!$D22,'CBAT Lookups'!$B$5:$K$12,9),0)*VLOOKUP($F22,'CBAT Lookups'!$B$17:$K$19,9)))","v":""},{"$f":"IF('Project Scope'!$C22=\"\",\"\",IF(COUNTIF('CBAT Lookups'!$B$5:$B$12,\"Controls-\"&CBAT!$D22)=1,VLOOKUP(\"Controls-\"&CBAT!$D22,'CBAT Lookups'!$B$5:$K$12,10),0)*VLOOKUP($F22,'CBAT Lookups'!$B$17:$K$19,10))","v":""},{"$f":"IF('Project Scope'!$C22=\"\",\"\",VLOOKUP($C22,'CBAT Lookups'!$A$33:$B$57,2))","v":""},{"$f":"IF('Project Scope'!$C22=\"\",\"\",IF(COUNTIF('CBAT Lookups'!$B$5:$B$12,\"Controls-\"&CBAT!$D22)=1,VLOOKUP(\"Controls-\"&CBAT!$D22,'CBAT Lookups'!$B$5:$O$12,12),0))","v":""},{"$f":"IF('Project Scope'!$C22=\"\",\"\",IF(COUNTIF('CBAT Lookups'!$B$5:$B$12,\"Controls-\"&CBAT!$D22)=1,VLOOKUP(\"Controls-\"&CBAT!$D22,'CBAT Lookups'!$B$5:$O$12,13),0))","v":""},{"$f":"IF('Project Scope'!$C22=\"\",\"\",IF(COUNTIF('CBAT Lookups'!$B$5:$B$12,\"Controls-\"&CBAT!$D22)=1,VLOOKUP(\"Controls-\"&CBAT!$D22,'CBAT Lookups'!$B$5:$O$12,14),0))","v":""},{"$f":"IF('Project Scope'!$C22=\"\",\"\",'TRM Data'!$U$3)","v":""},{"$f":"IF('Project Scope'!$C22=\"\",\"\",'TRM Data'!$V$3)","v":""},{"$f":"IF('Project Scope'!$C22=\"\",\"\",IF($K22<=0,0,MAX(0,(IF(AND($I22>0,$J22>0),($I22*$J22)/1000,($G22*$H22)/1000)*$L22))*$BT22*$BR22)+($CD22/0.003412))","v":""},{"$f":"IF('Project Scope'!$C22=\"\",\"\",IF($K22<=0,0,MAX(0,IF(AND($I22>0,$J22>0),($I22*$J22)/1000,($G22*$H22)/1000))*$BQ22))","v":""},{"$f":"IF('Project Scope'!$C22=\"\",\"\",IF($K22<=0,0,MAX(0,IF(AND($I22>0,$J22>0),($I22*$J22)/1000,($G22*$H22)/1000))*$BK22))","v":""},{"$f":"IF('Project Scope'!$C22=\"\",\"\",IF($K22<=0,0,MAX(0,IF(AND($I22>0,$J22>0),($I22*$J22)/1000,($G22*$H22)/1000))*$BL22*$BQ22))","v":""},{"$f":"IF('Project Scope'!$C22=\"\",\"\",IF(OR($K22<=0,'Project Information'!$D$44=\"\"),0,-1*MAX(0,IF(AND($I22>0,$J22>0),($I22*$J22)/1000,($G22*$H22)/1000))*$BT22*$L22*$BS22*VLOOKUP('Project Information'!$D$44,'CBAT Lookups'!$A$23:$H$30,2)))","v":""},{"$f":"IF('Project Scope'!$C22=\"\",\"\",IF(OR($K22<=0,'Project Information'!$D$44=\"\"),0,-1*MAX(0,IF(AND($I22>0,$J22>0),($I22*$J22)/1000,($G22*$H22)/1000))*$BT22*$L22*$BS22*VLOOKUP('Project Information'!$D$44,'CBAT Lookups'!$A$23:$H$30,3)))","v":""},{"$f":"IF('Project Scope'!$C22=\"\",\"\",IF(OR($K22<=0,'Project Information'!$D$44=\"\"),0,-1*MAX(0,IF(AND($I22>0,$J22>0),($I22*$J22)/1000,($G22*$H22)/1000))*$BT22*$L22*$BS22*VLOOKUP('Project Information'!$D$44,'CBAT Lookups'!$A$23:$H$30,4)))","v":""},{"$f":"IF('Project Scope'!$C22=\"\",\"\",IF(OR($K22<=0,'Project Information'!$D$44=\"\"),0,-1*MAX(0,IF(AND($I22>0,$J22>0),($I22*$J22)/1000,($G22*$H22)/1000))*$BT22*$L22*$BS22*VLOOKUP('Project Information'!$D$44,'CBAT Lookups'!$A$23:$H$30,5)))","v":""},{"$f":"IF('Project Scope'!$C22=\"\",\"\",IF(OR($K22<=0,'Project Information'!$D$44=\"\"),0,-1*MAX(0,IF(AND($I22>0,$J22>0),($I22*$J22)/1000,($G22*$H22)/1000))*$BT22*$L22*$BS22*VLOOKUP('Project Information'!$D$44,'CBAT Lookups'!$A$23:$H$30,6)))","v":""},{"$f":"IF('Project Scope'!$C22=\"\",\"\",IF(OR($K22<=0,'Project Information'!$D$44=\"\"),0,-1*MAX(0,IF(AND($I22>0,$J22>0),($I22*$J22)/1000,($G22*$H22)/1000))*$BT22*$L22*$BS22*VLOOKUP('Project Information'!$D$44,'CBAT Lookups'!$A$23:$H$30,7)))","v":""},{"$f":"IF('Project Scope'!$C22=\"\",\"\",IF(OR($K22<=0,'Project Information'!$D$44=\"\"),0,-1*MAX(0,IF(AND($I22>0,$J22>0),($I22*$J22)/1000,($G22*$H22)/1000))*$BT22*$L22*$BS22*VLOOKUP('Project Information'!$D$44,'CBAT Lookups'!$A$23:$H$30,8)))","v":""},null,{"$f":"IF('Project Scope'!$C22=\"\",\"\",VLOOKUP($F22,'CBAT Lookups'!$B$17:$K$19,4))","v":""},{"$f":"IF('Project Scope'!$C22=\"\",\"\",VLOOKUP($F22,'CBAT Lookups'!$B$17:$K$19,5))","v":""},{"$f":"IF('Project Scope'!$C22=\"\",\"\",VLOOKUP($F22,'CBAT Lookups'!$B$17:$K$19,6))","v":""},{"$f":"IF('Project Scope'!$C22=\"\",\"\",VLOOKUP($F22,'CBAT Lookups'!$B$17:$K$19,7))","v":""},{"$f":"IF('Project Scope'!$C22=\"\",\"\",IF(SUMPRODUCT($BM22:$BP22,$CL22:$CO22)=0,0,BM22*CL22/SUMPRODUCT($BM22:$BP22,$CL22:$CO22)))","v":""},{"$f":"IF('Project Scope'!$C22=\"\",\"\",IF(SUMPRODUCT($BM22:$BP22,$CL22:$CO22)=0,0,BN22*CM22/SUMPRODUCT($BM22:$BP22,$CL22:$CO22)))","v":""},{"$f":"IF('Project Scope'!$C22=\"\",\"\",IF(SUMPRODUCT($BM22:$BP22,$CL22:$CO22)=0,0,BO22*CN22/SUMPRODUCT($BM22:$BP22,$CL22:$CO22)))","v":""},{"$f":"IF('Project Scope'!$C22=\"\",\"\",IF(SUMPRODUCT($BM22:$BP22,$CL22:$CO22)=0,0,BP22*CO22/SUMPRODUCT($BM22:$BP22,$CL22:$CO22)))","v":""},{"$f":"IF('Project Scope'!$C22=\"\",\"\",Benefits($BZ22,$CB22,$CC22,$CE22,$CF22,$CG22,$CH22,$CI22,$CJ22,$CK22,$BJ22,$CP22,$CQ22,$CR22,$CS22,$BU22,$BV22,$BW22,$BX22,$BY22,$E22))","v":""},"","","","","","","","",null,{"$f":"IF('Project Scope'!$C22=\"\",\"\",SUM('Project Scope'!$BB22,'Project Scope'!$BC22))","v":""},{"$f":"IF('Project Scope'!$C22=\"\",\"\",SUM('Project Scope'!$BH22, 'Project Scope'!$AZ22,(IF(ISNUMBER('Project Scope'!$BA22),'Project Scope'!$BA22,0)*'Project Information'!$D$12)))","v":""},null,null,{"$f":"IF('Project Scope'!$C22=\"\",\"\",IF($J22<=0,0,(SUMPRODUCT($AV22:$BC22,--($AV22:$BC22>0))+$BE22)*$DK22/((-SUMPRODUCT($AV22:$BC22,--($AV22:$BC22<0))+$BG22+$BH22+$BI22)*$DK22)))","v":""},{"$f":"IF('Project Scope'!$C22=\"\",\"\",IF($K22<=0,0,(SUMPRODUCT($CT22:$DA22,--($CT22:$DA22>0))+$DC22)*$DK22/((-SUMPRODUCT($CT22:$DA22,--($CT22:$DA22<0))+$DE22+$DF22+$DG22)*$DK22)))","v":""},{"$f":"IF('Project Scope'!$C22=\"\",\"\",IF(AND($J22<=0,$K22<=0),0,(SUMPRODUCT($AV22:$BC22,--($AV22:$BC22>0))+$BE22+SUMPRODUCT($CT22:$DA22,--($CT22:$DA22>0))+$DC22)*$DK22/((-SUMPRODUCT($AV22:$BC22,--($AV22:$BC22<0))+$BG22+$BH22+$BI22-SUMPRODUCT($CT22:$DA22,--($CT22:$DA22<0))+$DE22+$DF22+$DG22)*$DK22)))","v":""},{"$f":"IF('Project Scope'!$C22=\"\",\"\",IF(NetOrGross=\"Net\",(1-Z22+AA22),1))","v":""}]
[{"$f":"'Project Scope'!$B23","v":16},{"$f":"IF('Project Scope'!$C23=\"\",\"\",'Project Scope'!$C23)","v":""},{"$f":"IF('Project Scope'!$C23=\"\",\"\",'Project Scope'!$H23)","v":""},{"$f":"IF(ISNUMBER(SEARCH(\"Bay\",'Project Scope'!$Q23)),\"Bay\",IF('Project Scope'!C23=\"\",\"\",'Project Scope'!E23))","v":""},{"$f":"IF('Project Scope'!$C23=\"\",\"\",\"Com\")","v":""},{"$f":"IF('Project Scope'!$C23=\"\",\"\",'Project Scope'!$L23)","v":""},{"$f":"IF('Project Scope'!$C23=\"\",\"\",IF('Project Scope'!$CJ23=\"\",0,'Project Scope'!$CJ23))","v":""},{"$f":"IF('Project Scope'!$C23=\"\",\"\",IF('Project Scope'!$N23=\"\",0,'Project Scope'!$N23))","v":""},{"$f":"IF('Project Scope'!$C23=\"\",\"\",IF('Project Scope'!$CK23=\"\",0,'Project Scope'!$CK23))","v":""},{"$f":"IF('Project Scope'!$C23=\"\",\"\",IF('Project Scope'!$AO23=\"\",0,'Project Scope'!$AO23))","v":""},{"$f":"IF('Project Scope'!$C23=\"\",\"\",IF('Project Scope'!$AX23=\"\",0,'Project Scope'!$AX23))","v":""},{"$f":"IF('Project Scope'!$C23=\"\",\"\",IF('Project Scope'!$M23=\"\",0,'Project Scope'!$M23))","v":""},{"$f":"IF('Project Scope'!$C23=\"\",\"\",IF(COUNTIF('CBAT Lookups'!$B$5:$B$12,\"Fixtures-\"&CBAT!$D23)=1,VLOOKUP(\"Fixtures-\"&CBAT!$D23,'CBAT Lookups'!$B$5:$L$12,11),0))","v":""},{"$f":"IF('Project Scope'!$C23=\"\",\"\",(IF(COUNTIF('CBAT Lookups'!$B$5:$B$12,\"Fixtures-\"&CBAT!$D23)=1,VLOOKUP(\"Fixtures-\"&CBAT!$D23,'CBAT Lookups'!$B$5:$K$12,2),0))*VLOOKUP($F23,'CBAT Lookups'!$B$17:$K$19,2))","v":""},{"$f":"IF('Project Scope'!$C23=\"\",\"\",(IF(COUNTIF('CBAT Lookups'!$B$5:$B$12,\"Fixtures-\"&CBAT!$D23)=1,VLOOKUP(\"Fixtures-\"&CBAT!$D23,'CBAT Lookups'!$B$5:$K$12,3),0))*VLOOKUP($F23,'CBAT Lookups'!$B$17:$K$19,3))","v":""},{"$f":"IF('Project Scope'!$C23=\"\",\"\",(IF(COUNTIF('CBAT Lookups'!$B$5:$B$12,\"Fixtures-\"&CBAT!$D23)=1,VLOOKUP(\"Fixtures-\"&CBAT!$D23,'CBAT Lookups'!$B$5:$K$12,4),0)))","v":""},{"$f":"IF('Project Scope'!$C23=\"\",\"\",(IF(COUNTIF('CBAT Lookups'!$B$5:$B$12,\"Fixtures-\"&CBAT!$D23)=1,VLOOKUP(\"Fixtures-\"&CBAT!$D23,'CBAT Lookups'!$B$5:$K$12,5),0)))","v":""},{"$f":"IF('Project Scope'!$C23=\"\",\"\",(IF(COUNTIF('CBAT Lookups'!$B$5:$B$12,\"Fixtures-\"&CBAT!$D23)=1,VLOOKUP(\"Fixtures-\"&CBAT!$D23,'CBAT Lookups'!$B$5:$K$12,6),0)))","v":""},{"$f":"IF('Project Scope'!$C23=\"\",\"\",IF(COUNTIF('CBAT Lookups'!$B$5:$B$12,\"Fixtures-\"&CBAT!$D23)=1,VLOOKUP(\"Fixtures-\"&CBAT!$D23,'CBAT Lookups'!$B$5:$K$12,7),0))","v":""},{"$f":"IF('Project Scope'!$C23=\"\",\"\",IF(VLOOKUP($F23,'CBAT Lookups'!$B$17:$K$19,8)=\"W\",1,IF(COUNTIF('CBAT Lookups'!$B$5:$B$12,\"Fixtures-\"&CBAT!$D23)=1,VLOOKUP(\"Fixtures-\"&CBAT!$D23,'CBAT Lookups'!$B$5:$K$12,8),0)*VLOOKUP($F23,'CBAT Lookups'!$B$17:$K$19,8)))","v":""},{"$f":"IF('Project Scope'!$C23=\"\",\"\",IF(VLOOKUP($F23,'CBAT Lookups'!$B$17:$K$19,9)=\"W\",1,IF(COUNTIF('CBAT Lookups'!$B$5:$B$12,\"Fixtures-\"&CBAT!$D23)=1,VLOOKUP(\"Fixtures-\"&CBAT!$D23,'CBAT Lookups'!$B$5:$K$12,9),0)*VLOOKUP($F23,'CBAT Lookups'!$B$17:$K$19,9)))","v":""},{"$f":"IF('Project Scope'!$C23=\"\",\"\",IF(COUNTIF('CBAT Lookups'!$B$5:$B$12,\"Fixtures-\"&CBAT!$D23)=1,VLOOKUP(\"Fixtures-\"&CBAT!$D23,'CBAT Lookups'!$B$5:$K$12,10),0)*VLOOKUP($F23,'CBAT Lookups'!$B$17:$K$19,10))","v":""},{"$f":"IF('Project Scope'!$C23=\"\",\"\",IF(COUNTIF('CBAT Lookups'!$B$5:$B$12,\"Fixtures-\"&CBAT!$D23)=1,VLOOKUP(\"Fixtures-\"&CBAT!$D23,'CBAT Lookups'!$B$5:$O$12,12),0))","v":""},{"$f":"IF('Project Scope'!$C23=\"\",\"\",IF(COUNTIF('CBAT Lookups'!$B$5:$B$12,\"Fixtures-\"&CBAT!$D23)=1,VLOOKUP(\"Fixtures-\"&CBAT!$D23,'CBAT Lookups'!$B$5:$O$12,13),0))","v":""},{"$f":"IF('Project Scope'!$C23=\"\",\"\",IF(COUNTIF('CBAT Lookups'!$B$5:$B$12,\"Fixtures-\"&CBAT!$D23)=1,VLOOKUP(\"Fixtures-\"&CBAT!$D23,'CBAT Lookups'!$B$5:$O$12,14),0))","v":""},{"$f":"IF('Project Scope'!$C23=\"\",\"\",'TRM Data'!$U$3)","v":""},{"$f":"IF('Project Scope'!$C23=\"\",\"\",'TRM Data'!$V$3)","v":""},{"$f":"IF('Project Scope'!$C23=\"\",\"\",IF($J23<=0,0,MAX(0,(($G23*$H23/1000)-($I23*$J23/1000))*$L23)*$U23)+($AF23/0.003412))","v":""},{"$f":"IF('Project Scope'!$C23=\"\",\"\",IF($J23<=0,0,MAX(0,(($G23*$H23/1000)-($I23*$J23/1000)))*$T23))","v":""},{"$f":"IF('Project Scope'!$C23=\"\",\"\",IF($J23<=0,0,MAX(0,(($G23*$H23/1000)-($I23*$J23/1000))*$N23)))","v":""},{"$f":"IF('Project Scope'!$C23=\"\",\"\",IF($J23<=0,0,MAX(0,(($G23*$H23/1000)-($I23*$J23/1000))*$O23)*$T23))","v":""},{"$f":"IF('Project Scope'!$C23=\"\",\"\",IF(OR($J23<=0,'Project Information'!$D$44=\"\"),0,-1*MAX(0,(($G23*$H23/1000)-($I23*$J23/1000))*$L23)*$V23*VLOOKUP('Project Information'!$D$44,'CBAT Lookups'!$A$23:$H$30,2)))","v":""},{"$f":"IF('Project Scope'!$C23=\"\",\"\",IF(OR($J23<=0,'Project Information'!$D$44=\"\"),0,-1*MAX(0,(($G23*$H23/1000)-($I23*$J23/1000))*$L23)*$V23*VLOOKUP('Project Information'!$D$44,'CBAT Lookups'!$A$23:$H$30,3)))","v":""},{"$f":"IF('Project Scope'!$C23=\"\",\"\",IF(OR($J23<=0,'Project Information'!$D$44=\"\"),0,-1*MAX(0,(($G23*$H23/1000)-($I23*$J23/1000))*$L23)*$V23*VLOOKUP('Project Information'!$D$44,'CBAT Lookups'!$A$23:$H$30,4)))","v":""},{"$f":"IF('Project Scope'!$C23=\"\",\"\",IF(OR($J23<=0,'Project Information'!$D$44=\"\"),0,-1*MAX(0,(($G23*$H23/1000)-($I23*$J23/1000))*$L23)*$V23*VLOOKUP('Project Information'!$D$44,'CBAT Lookups'!$A$23:$H$30,5)))","v":""},{"$f":"IF('Project Scope'!$C23=\"\",\"\",IF(OR($J23<=0,'Project Information'!$D$44=\"\"),0,-1*MAX(0,(($G23*$H23/1000)-($I23*$J23/1000))*$L23)*$V23*VLOOKUP('Project Information'!$D$44,'CBAT Lookups'!$A$23:$H$30,6)))","v":""},{"$f":"IF('Project Scope'!$C23=\"\",\"\",IF(OR($J23<=0,'Project Information'!$D$44=\"\"),0,-1*MAX(0,(($G23*$H23/1000)-($I23*$J23/1000))*$L23)*$V23*VLOOKUP('Project Information'!$D$44,'CBAT Lookups'!$A$23:$H$30,7)))","v":""},{"$f":"IF('Project Scope'!$C23=\"\",\"\",IF(OR($J23<=0,'Project Information'!$D$44=\"\"),0,-1*MAX(0,(($G23*$H23/1000)-($I23*$J23/1000))*$L23)*$V23*VLOOKUP('Project Information'!$D$44,'CBAT Lookups'!$A$23:$H$30,8)))","v":""},null,{"$f":"IF('Project Scope'!$C23=\"\",\"\",VLOOKUP($F23,'CBAT Lookups'!$B$17:$K$19,4))","v":""},{"$f":"IF('Project Scope'!$C23=\"\",\"\",VLOOKUP($F23,'CBAT Lookups'!$B$17:$K$19,5))","v":""},{"$f":"IF('Project Scope'!$C23=\"\",\"\",VLOOKUP($F23,'CBAT Lookups'!$B$17:$K$19,6))","v":""},{"$f":"IF('Project Scope'!$C23=\"\",\"\",VLOOKUP($F23,'CBAT Lookups'!$B$17:$K$19,7))","v":""},{"$f":"IF('Project Scope'!$C23=\"\",\"\",IF(SUMPRODUCT($P23:$S23,$AN23:$AQ23)=0,0,P23*AN23/SUMPRODUCT($P23:$S23,$AN23:$AQ23)))","v":""},{"$f":"IF('Project Scope'!$C23=\"\",\"\",IF(SUMPRODUCT($P23:$S23,$AN23:$AQ23)=0,0,Q23*AO23/SUMPRODUCT($P23:$S23,$AN23:$AQ23)))","v":""},{"$f":"IF('Project Scope'!$C23=\"\",\"\",IF(SUMPRODUCT($P23:$S23,$AN23:$AQ23)=0,0,R23*AP23/SUMPRODUCT($P23:$S23,$AN23:$AQ23)))","v":""},{"$f":"IF('Project Scope'!$C23=\"\",\"\",IF(SUMPRODUCT($P23:$S23,$AN23:$AQ23)=0,0,S23*AQ23/SUMPRODUCT($P23:$S23,$AN23:$AQ23)))","v":""},{"$f":"IF('Project Scope'!$C23=\"\",\"\",Benefits($AB23,$AD23,$AE23,$AG23,$AH23,$AI23,$AJ23,$AK23,$AL23,$AM23,$M23,$AR23,$AS23,$AT23,$AU23,$W23,$X23,$Y23,$Z23,$AA23,$E23))","v":""},"","","","","","","","",null,{"$f":"IF('Project Scope'!$C23=\"\",\"\",SUM('Project Scope'!$AT23,'Project Scope'!$AU23))","v":""},{"$f":"IF('Project Scope'!$C23=\"\",\"\",SUM('Project Scope'!$BG23, 'Project Scope'!$AR23,(IF(ISNUMBER('Project Scope'!$AS23),'Project Scope'!$AS23,0)*'Project Information'!$D$12)))","v":""},null,null,{"$f":"IF('Project Scope'!$C23=\"\",\"\",IF(COUNTIF('CBAT Lookups'!$B$5:$B$12,\"Controls-\"&CBAT!$D23)=1,VLOOKUP(\"Controls-\"&CBAT!$D23,'CBAT Lookups'!$B$5:$L$12,11),0))","v":""},{"$f":"IF('Project Scope'!$C23=\"\",\"\",IF(COUNTIF('CBAT Lookups'!$B$5:$B$12,\"Controls-\"&CBAT!$D23)=1,VLOOKUP(\"Controls-\"&CBAT!$D23,'CBAT Lookups'!$B$5:$K$12,2),0)*VLOOKUP($F23,'CBAT Lookups'!$B$17:$K$19,2))","v":""},{"$f":"IF('Project Scope'!$C23=\"\",\"\",IF(COUNTIF('CBAT Lookups'!$B$5:$B$12,\"Controls-\"&CBAT!$D23)=1,VLOOKUP(\"Controls-\"&CBAT!$D23,'CBAT Lookups'!$B$5:$K$12,3),0)*VLOOKUP($F23,'CBAT Lookups'!$B$17:$K$19,3))","v":""},{"$f":"IF('Project Scope'!$C23=\"\",\"\",IF(COUNTIF('CBAT Lookups'!$B$5:$B$12,\"Controls-\"&CBAT!$D23)=1,VLOOKUP(\"Controls-\"&CBAT!$D23,'CBAT Lookups'!$B$5:$K$12,4),0))","v":""},{"$f":"IF('Project Scope'!$C23=\"\",\"\",IF(COUNTIF('CBAT Lookups'!$B$5:$B$12,\"Controls-\"&CBAT!$D23)=1,VLOOKUP(\"Controls-\"&CBAT!$D23,'CBAT Lookups'!$B$5:$K$12,5),0))","v":""},{"$f":"IF('Project Scope'!$C23=\"\",\"\",IF(COUNTIF('CBAT Lookups'!$B$5:$B$12,\"Controls-\"&CBAT!$D23)=1,VLOOKUP(\"Controls-\"&CBAT!$D23,'CBAT Lookups'!$B$5:$K$12,6),0))","v":""},{"$f":"IF('Project Scope'!$C23=\"\",\"\",IF(COUNTIF('CBAT Lookups'!$B$5:$B$12,\"Controls-\"&CBAT!$D23)=1,VLOOKUP(\"Controls-\"&CBAT!$D23,'CBAT Lookups'!$B$5:$K$12,7),0))","v":""},{"$f":"IF('Project Scope'!$C23=\"\",\"\",IF(VLOOKUP($F23,'CBAT Lookups'!$B$17:$K$19,8)=\"W\",1,IF(COUNTIF('CBAT Lookups'!$B$5:$B$12,\"Controls-\"&CBAT!$D23)=1,VLOOKUP(\"Controls-\"&CBAT!$D23,'CBAT Lookups'!$B$5:$K$12,8),0)*VLOOKUP($F23,'CBAT Lookups'!$B$17:$K$19,8)))","v":""},{"$f":"IF('Project Scope'!$C23=\"\",\"\",IF(VLOOKUP($F23,'CBAT Lookups'!$B$17:$K$19,9)=\"W\",1,IF(COUNTIF('CBAT Lookups'!$B$5:$B$12,\"Controls-\"&CBAT!$D23)=1,VLOOKUP(\"Controls-\"&CBAT!$D23,'CBAT Lookups'!$B$5:$K$12,9),0)*VLOOKUP($F23,'CBAT Lookups'!$B$17:$K$19,9)))","v":""},{"$f":"IF('Project Scope'!$C23=\"\",\"\",IF(COUNTIF('CBAT Lookups'!$B$5:$B$12,\"Controls-\"&CBAT!$D23)=1,VLOOKUP(\"Controls-\"&CBAT!$D23,'CBAT Lookups'!$B$5:$K$12,10),0)*VLOOKUP($F23,'CBAT Lookups'!$B$17:$K$19,10))","v":""},{"$f":"IF('Project Scope'!$C23=\"\",\"\",VLOOKUP($C23,'CBAT Lookups'!$A$33:$B$57,2))","v":""},{"$f":"IF('Project Scope'!$C23=\"\",\"\",IF(COUNTIF('CBAT Lookups'!$B$5:$B$12,\"Controls-\"&CBAT!$D23)=1,VLOOKUP(\"Controls-\"&CBAT!$D23,'CBAT Lookups'!$B$5:$O$12,12),0))","v":""},{"$f":"IF('Project Scope'!$C23=\"\",\"\",IF(COUNTIF('CBAT Lookups'!$B$5:$B$12,\"Controls-\"&CBAT!$D23)=1,VLOOKUP(\"Controls-\"&CBAT!$D23,'CBAT Lookups'!$B$5:$O$12,13),0))","v":""},{"$f":"IF('Project Scope'!$C23=\"\",\"\",IF(COUNTIF('CBAT Lookups'!$B$5:$B$12,\"Controls-\"&CBAT!$D23)=1,VLOOKUP(\"Controls-\"&CBAT!$D23,'CBAT Lookups'!$B$5:$O$12,14),0))","v":""},{"$f":"IF('Project Scope'!$C23=\"\",\"\",'TRM Data'!$U$3)","v":""},{"$f":"IF('Project Scope'!$C23=\"\",\"\",'TRM Data'!$V$3)","v":""},{"$f":"IF('Project Scope'!$C23=\"\",\"\",IF($K23<=0,0,MAX(0,(IF(AND($I23>0,$J23>0),($I23*$J23)/1000,($G23*$H23)/1000)*$L23))*$BT23*$BR23)+($CD23/0.003412))","v":""},{"$f":"IF('Project Scope'!$C23=\"\",\"\",IF($K23<=0,0,MAX(0,IF(AND($I23>0,$J23>0),($I23*$J23)/1000,($G23*$H23)/1000))*$BQ23))","v":""},{"$f":"IF('Project Scope'!$C23=\"\",\"\",IF($K23<=0,0,MAX(0,IF(AND($I23>0,$J23>0),($I23*$J23)/1000,($G23*$H23)/1000))*$BK23))","v":""},{"$f":"IF('Project Scope'!$C23=\"\",\"\",IF($K23<=0,0,MAX(0,IF(AND($I23>0,$J23>0),($I23*$J23)/1000,($G23*$H23)/1000))*$BL23*$BQ23))","v":""},{"$f":"IF('Project Scope'!$C23=\"\",\"\",IF(OR($K23<=0,'Project Information'!$D$44=\"\"),0,-1*MAX(0,IF(AND($I23>0,$J23>0),($I23*$J23)/1000,($G23*$H23)/1000))*$BT23*$L23*$BS23*VLOOKUP('Project Information'!$D$44,'CBAT Lookups'!$A$23:$H$30,2)))","v":""},{"$f":"IF('Project Scope'!$C23=\"\",\"\",IF(OR($K23<=0,'Project Information'!$D$44=\"\"),0,-1*MAX(0,IF(AND($I23>0,$J23>0),($I23*$J23)/1000,($G23*$H23)/1000))*$BT23*$L23*$BS23*VLOOKUP('Project Information'!$D$44,'CBAT Lookups'!$A$23:$H$30,3)))","v":""},{"$f":"IF('Project Scope'!$C23=\"\",\"\",IF(OR($K23<=0,'Project Information'!$D$44=\"\"),0,-1*MAX(0,IF(AND($I23>0,$J23>0),($I23*$J23)/1000,($G23*$H23)/1000))*$BT23*$L23*$BS23*VLOOKUP('Project Information'!$D$44,'CBAT Lookups'!$A$23:$H$30,4)))","v":""},{"$f":"IF('Project Scope'!$C23=\"\",\"\",IF(OR($K23<=0,'Project Information'!$D$44=\"\"),0,-1*MAX(0,IF(AND($I23>0,$J23>0),($I23*$J23)/1000,($G23*$H23)/1000))*$BT23*$L23*$BS23*VLOOKUP('Project Information'!$D$44,'CBAT Lookups'!$A$23:$H$30,5)))","v":""},{"$f":"IF('Project Scope'!$C23=\"\",\"\",IF(OR($K23<=0,'Project Information'!$D$44=\"\"),0,-1*MAX(0,IF(AND($I23>0,$J23>0),($I23*$J23)/1000,($G23*$H23)/1000))*$BT23*$L23*$BS23*VLOOKUP('Project Information'!$D$44,'CBAT Lookups'!$A$23:$H$30,6)))","v":""},{"$f":"IF('Project Scope'!$C23=\"\",\"\",IF(OR($K23<=0,'Project Information'!$D$44=\"\"),0,-1*MAX(0,IF(AND($I23>0,$J23>0),($I23*$J23)/1000,($G23*$H23)/1000))*$BT23*$L23*$BS23*VLOOKUP('Project Information'!$D$44,'CBAT Lookups'!$A$23:$H$30,7)))","v":""},{"$f":"IF('Project Scope'!$C23=\"\",\"\",IF(OR($K23<=0,'Project Information'!$D$44=\"\"),0,-1*MAX(0,IF(AND($I23>0,$J23>0),($I23*$J23)/1000,($G23*$H23)/1000))*$BT23*$L23*$BS23*VLOOKUP('Project Information'!$D$44,'CBAT Lookups'!$A$23:$H$30,8)))","v":""},null,{"$f":"IF('Project Scope'!$C23=\"\",\"\",VLOOKUP($F23,'CBAT Lookups'!$B$17:$K$19,4))","v":""},{"$f":"IF('Project Scope'!$C23=\"\",\"\",VLOOKUP($F23,'CBAT Lookups'!$B$17:$K$19,5))","v":""},{"$f":"IF('Project Scope'!$C23=\"\",\"\",VLOOKUP($F23,'CBAT Lookups'!$B$17:$K$19,6))","v":""},{"$f":"IF('Project Scope'!$C23=\"\",\"\",VLOOKUP($F23,'CBAT Lookups'!$B$17:$K$19,7))","v":""},{"$f":"IF('Project Scope'!$C23=\"\",\"\",IF(SUMPRODUCT($BM23:$BP23,$CL23:$CO23)=0,0,BM23*CL23/SUMPRODUCT($BM23:$BP23,$CL23:$CO23)))","v":""},{"$f":"IF('Project Scope'!$C23=\"\",\"\",IF(SUMPRODUCT($BM23:$BP23,$CL23:$CO23)=0,0,BN23*CM23/SUMPRODUCT($BM23:$BP23,$CL23:$CO23)))","v":""},{"$f":"IF('Project Scope'!$C23=\"\",\"\",IF(SUMPRODUCT($BM23:$BP23,$CL23:$CO23)=0,0,BO23*CN23/SUMPRODUCT($BM23:$BP23,$CL23:$CO23)))","v":""},{"$f":"IF('Project Scope'!$C23=\"\",\"\",IF(SUMPRODUCT($BM23:$BP23,$CL23:$CO23)=0,0,BP23*CO23/SUMPRODUCT($BM23:$BP23,$CL23:$CO23)))","v":""},{"$f":"IF('Project Scope'!$C23=\"\",\"\",Benefits($BZ23,$CB23,$CC23,$CE23,$CF23,$CG23,$CH23,$CI23,$CJ23,$CK23,$BJ23,$CP23,$CQ23,$CR23,$CS23,$BU23,$BV23,$BW23,$BX23,$BY23,$E23))","v":""},"","","","","","","","",null,{"$f":"IF('Project Scope'!$C23=\"\",\"\",SUM('Project Scope'!$BB23,'Project Scope'!$BC23))","v":""},{"$f":"IF('Project Scope'!$C23=\"\",\"\",SUM('Project Scope'!$BH23, 'Project Scope'!$AZ23,(IF(ISNUMBER('Project Scope'!$BA23),'Project Scope'!$BA23,0)*'Project Information'!$D$12)))","v":""},null,null,{"$f":"IF('Project Scope'!$C23=\"\",\"\",IF($J23<=0,0,(SUMPRODUCT($AV23:$BC23,--($AV23:$BC23>0))+$BE23)*$DK23/((-SUMPRODUCT($AV23:$BC23,--($AV23:$BC23<0))+$BG23+$BH23+$BI23)*$DK23)))","v":""},{"$f":"IF('Project Scope'!$C23=\"\",\"\",IF($K23<=0,0,(SUMPRODUCT($CT23:$DA23,--($CT23:$DA23>0))+$DC23)*$DK23/((-SUMPRODUCT($CT23:$DA23,--($CT23:$DA23<0))+$DE23+$DF23+$DG23)*$DK23)))","v":""},{"$f":"IF('Project Scope'!$C23=\"\",\"\",IF(AND($J23<=0,$K23<=0),0,(SUMPRODUCT($AV23:$BC23,--($AV23:$BC23>0))+$BE23+SUMPRODUCT($CT23:$DA23,--($CT23:$DA23>0))+$DC23)*$DK23/((-SUMPRODUCT($AV23:$BC23,--($AV23:$BC23<0))+$BG23+$BH23+$BI23-SUMPRODUCT($CT23:$DA23,--($CT23:$DA23<0))+$DE23+$DF23+$DG23)*$DK23)))","v":""},{"$f":"IF('Project Scope'!$C23=\"\",\"\",IF(NetOrGross=\"Net\",(1-Z23+AA23),1))","v":""}]
[{"$f":"'Project Scope'!$B24","v":17},{"$f":"IF('Project Scope'!$C24=\"\",\"\",'Project Scope'!$C24)","v":""},{"$f":"IF('Project Scope'!$C24=\"\",\"\",'Project Scope'!$H24)","v":""},{"$f":"IF(ISNUMBER(SEARCH(\"Bay\",'Project Scope'!$Q24)),\"Bay\",IF('Project Scope'!C24=\"\",\"\",'Project Scope'!E24))","v":""},{"$f":"IF('Project Scope'!$C24=\"\",\"\",\"Com\")","v":""},{"$f":"IF('Project Scope'!$C24=\"\",\"\",'Project Scope'!$L24)","v":""},{"$f":"IF('Project Scope'!$C24=\"\",\"\",IF('Project Scope'!$CJ24=\"\",0,'Project Scope'!$CJ24))","v":""},{"$f":"IF('Project Scope'!$C24=\"\",\"\",IF('Project Scope'!$N24=\"\",0,'Project Scope'!$N24))","v":""},{"$f":"IF('Project Scope'!$C24=\"\",\"\",IF('Project Scope'!$CK24=\"\",0,'Project Scope'!$CK24))","v":""},{"$f":"IF('Project Scope'!$C24=\"\",\"\",IF('Project Scope'!$AO24=\"\",0,'Project Scope'!$AO24))","v":""},{"$f":"IF('Project Scope'!$C24=\"\",\"\",IF('Project Scope'!$AX24=\"\",0,'Project Scope'!$AX24))","v":""},{"$f":"IF('Project Scope'!$C24=\"\",\"\",IF('Project Scope'!$M24=\"\",0,'Project Scope'!$M24))","v":""},{"$f":"IF('Project Scope'!$C24=\"\",\"\",IF(COUNTIF('CBAT Lookups'!$B$5:$B$12,\"Fixtures-\"&CBAT!$D24)=1,VLOOKUP(\"Fixtures-\"&CBAT!$D24,'CBAT Lookups'!$B$5:$L$12,11),0))","v":""},{"$f":"IF('Project Scope'!$C24=\"\",\"\",(IF(COUNTIF('CBAT Lookups'!$B$5:$B$12,\"Fixtures-\"&CBAT!$D24)=1,VLOOKUP(\"Fixtures-\"&CBAT!$D24,'CBAT Lookups'!$B$5:$K$12,2),0))*VLOOKUP($F24,'CBAT Lookups'!$B$17:$K$19,2))","v":""},{"$f":"IF('Project Scope'!$C24=\"\",\"\",(IF(COUNTIF('CBAT Lookups'!$B$5:$B$12,\"Fixtures-\"&CBAT!$D24)=1,VLOOKUP(\"Fixtures-\"&CBAT!$D24,'CBAT Lookups'!$B$5:$K$12,3),0))*VLOOKUP($F24,'CBAT Lookups'!$B$17:$K$19,3))","v":""},{"$f":"IF('Project Scope'!$C24=\"\",\"\",(IF(COUNTIF('CBAT Lookups'!$B$5:$B$12,\"Fixtures-\"&CBAT!$D24)=1,VLOOKUP(\"Fixtures-\"&CBAT!$D24,'CBAT Lookups'!$B$5:$K$12,4),0)))","v":""},{"$f":"IF('Project Scope'!$C24=\"\",\"\",(IF(COUNTIF('CBAT Lookups'!$B$5:$B$12,\"Fixtures-\"&CBAT!$D24)=1,VLOOKUP(\"Fixtures-\"&CBAT!$D24,'CBAT Lookups'!$B$5:$K$12,5),0)))","v":""},{"$f":"IF('Project Scope'!$C24=\"\",\"\",(IF(COUNTIF('CBAT Lookups'!$B$5:$B$12,\"Fixtures-\"&CBAT!$D24)=1,VLOOKUP(\"Fixtures-\"&CBAT!$D24,'CBAT Lookups'!$B$5:$K$12,6),0)))","v":""},{"$f":"IF('Project Scope'!$C24=\"\",\"\",IF(COUNTIF('CBAT Lookups'!$B$5:$B$12,\"Fixtures-\"&CBAT!$D24)=1,VLOOKUP(\"Fixtures-\"&CBAT!$D24,'CBAT Lookups'!$B$5:$K$12,7),0))","v":""},{"$f":"IF('Project Scope'!$C24=\"\",\"\",IF(VLOOKUP($F24,'CBAT Lookups'!$B$17:$K$19,8)=\"W\",1,IF(COUNTIF('CBAT Lookups'!$B$5:$B$12,\"Fixtures-\"&CBAT!$D24)=1,VLOOKUP(\"Fixtures-\"&CBAT!$D24,'CBAT Lookups'!$B$5:$K$12,8),0)*VLOOKUP($F24,'CBAT Lookups'!$B$17:$K$19,8)))","v":""},{"$f":"IF('Project Scope'!$C24=\"\",\"\",IF(VLOOKUP($F24,'CBAT Lookups'!$B$17:$K$19,9)=\"W\",1,IF(COUNTIF('CBAT Lookups'!$B$5:$B$12,\"Fixtures-\"&CBAT!$D24)=1,VLOOKUP(\"Fixtures-\"&CBAT!$D24,'CBAT Lookups'!$B$5:$K$12,9),0)*VLOOKUP($F24,'CBAT Lookups'!$B$17:$K$19,9)))","v":""},{"$f":"IF('Project Scope'!$C24=\"\",\"\",IF(COUNTIF('CBAT Lookups'!$B$5:$B$12,\"Fixtures-\"&CBAT!$D24)=1,VLOOKUP(\"Fixtures-\"&CBAT!$D24,'CBAT Lookups'!$B$5:$K$12,10),0)*VLOOKUP($F24,'CBAT Lookups'!$B$17:$K$19,10))","v":""},{"$f":"IF('Project Scope'!$C24=\"\",\"\",IF(COUNTIF('CBAT Lookups'!$B$5:$B$12,\"Fixtures-\"&CBAT!$D24)=1,VLOOKUP(\"Fixtures-\"&CBAT!$D24,'CBAT Lookups'!$B$5:$O$12,12),0))","v":""},{"$f":"IF('Project Scope'!$C24=\"\",\"\",IF(COUNTIF('CBAT Lookups'!$B$5:$B$12,\"Fixtures-\"&CBAT!$D24)=1,VLOOKUP(\"Fixtures-\"&CBAT!$D24,'CBAT Lookups'!$B$5:$O$12,13),0))","v":""},{"$f":"IF('Project Scope'!$C24=\"\",\"\",IF(COUNTIF('CBAT Lookups'!$B$5:$B$12,\"Fixtures-\"&CBAT!$D24)=1,VLOOKUP(\"Fixtures-\"&CBAT!$D24,'CBAT Lookups'!$B$5:$O$12,14),0))","v":""},{"$f":"IF('Project Scope'!$C24=\"\",\"\",'TRM Data'!$U$3)","v":""},{"$f":"IF('Project Scope'!$C24=\"\",\"\",'TRM Data'!$V$3)","v":""},{"$f":"IF('Project Scope'!$C24=\"\",\"\",IF($J24<=0,0,MAX(0,(($G24*$H24/1000)-($I24*$J24/1000))*$L24)*$U24)+($AF24/0.003412))","v":""},{"$f":"IF('Project Scope'!$C24=\"\",\"\",IF($J24<=0,0,MAX(0,(($G24*$H24/1000)-($I24*$J24/1000)))*$T24))","v":""},{"$f":"IF('Project Scope'!$C24=\"\",\"\",IF($J24<=0,0,MAX(0,(($G24*$H24/1000)-($I24*$J24/1000))*$N24)))","v":""},{"$f":"IF('Project Scope'!$C24=\"\",\"\",IF($J24<=0,0,MAX(0,(($G24*$H24/1000)-($I24*$J24/1000))*$O24)*$T24))","v":""},{"$f":"IF('Project Scope'!$C24=\"\",\"\",IF(OR($J24<=0,'Project Information'!$D$44=\"\"),0,-1*MAX(0,(($G24*$H24/1000)-($I24*$J24/1000))*$L24)*$V24*VLOOKUP('Project Information'!$D$44,'CBAT Lookups'!$A$23:$H$30,2)))","v":""},{"$f":"IF('Project Scope'!$C24=\"\",\"\",IF(OR($J24<=0,'Project Information'!$D$44=\"\"),0,-1*MAX(0,(($G24*$H24/1000)-($I24*$J24/1000))*$L24)*$V24*VLOOKUP('Project Information'!$D$44,'CBAT Lookups'!$A$23:$H$30,3)))","v":""},{"$f":"IF('Project Scope'!$C24=\"\",\"\",IF(OR($J24<=0,'Project Information'!$D$44=\"\"),0,-1*MAX(0,(($G24*$H24/1000)-($I24*$J24/1000))*$L24)*$V24*VLOOKUP('Project Information'!$D$44,'CBAT Lookups'!$A$23:$H$30,4)))","v":""},{"$f":"IF('Project Scope'!$C24=\"\",\"\",IF(OR($J24<=0,'Project Information'!$D$44=\"\"),0,-1*MAX(0,(($G24*$H24/1000)-($I24*$J24/1000))*$L24)*$V24*VLOOKUP('Project Information'!$D$44,'CBAT Lookups'!$A$23:$H$30,5)))","v":""},{"$f":"IF('Project Scope'!$C24=\"\",\"\",IF(OR($J24<=0,'Project Information'!$D$44=\"\"),0,-1*MAX(0,(($G24*$H24/1000)-($I24*$J24/1000))*$L24)*$V24*VLOOKUP('Project Information'!$D$44,'CBAT Lookups'!$A$23:$H$30,6)))","v":""},{"$f":"IF('Project Scope'!$C24=\"\",\"\",IF(OR($J24<=0,'Project Information'!$D$44=\"\"),0,-1*MAX(0,(($G24*$H24/1000)-($I24*$J24/1000))*$L24)*$V24*VLOOKUP('Project Information'!$D$44,'CBAT Lookups'!$A$23:$H$30,7)))","v":""},{"$f":"IF('Project Scope'!$C24=\"\",\"\",IF(OR($J24<=0,'Project Information'!$D$44=\"\"),0,-1*MAX(0,(($G24*$H24/1000)-($I24*$J24/1000))*$L24)*$V24*VLOOKUP('Project Information'!$D$44,'CBAT Lookups'!$A$23:$H$30,8)))","v":""},null,{"$f":"IF('Project Scope'!$C24=\"\",\"\",VLOOKUP($F24,'CBAT Lookups'!$B$17:$K$19,4))","v":""},{"$f":"IF('Project Scope'!$C24=\"\",\"\",VLOOKUP($F24,'CBAT Lookups'!$B$17:$K$19,5))","v":""},{"$f":"IF('Project Scope'!$C24=\"\",\"\",VLOOKUP($F24,'CBAT Lookups'!$B$17:$K$19,6))","v":""},{"$f":"IF('Project Scope'!$C24=\"\",\"\",VLOOKUP($F24,'CBAT Lookups'!$B$17:$K$19,7))","v":""},{"$f":"IF('Project Scope'!$C24=\"\",\"\",IF(SUMPRODUCT($P24:$S24,$AN24:$AQ24)=0,0,P24*AN24/SUMPRODUCT($P24:$S24,$AN24:$AQ24)))","v":""},{"$f":"IF('Project Scope'!$C24=\"\",\"\",IF(SUMPRODUCT($P24:$S24,$AN24:$AQ24)=0,0,Q24*AO24/SUMPRODUCT($P24:$S24,$AN24:$AQ24)))","v":""},{"$f":"IF('Project Scope'!$C24=\"\",\"\",IF(SUMPRODUCT($P24:$S24,$AN24:$AQ24)=0,0,R24*AP24/SUMPRODUCT($P24:$S24,$AN24:$AQ24)))","v":""},{"$f":"IF('Project Scope'!$C24=\"\",\"\",IF(SUMPRODUCT($P24:$S24,$AN24:$AQ24)=0,0,S24*AQ24/SUMPRODUCT($P24:$S24,$AN24:$AQ24)))","v":""},{"$f":"IF('Project Scope'!$C24=\"\",\"\",Benefits($AB24,$AD24,$AE24,$AG24,$AH24,$AI24,$AJ24,$AK24,$AL24,$AM24,$M24,$AR24,$AS24,$AT24,$AU24,$W24,$X24,$Y24,$Z24,$AA24,$E24))","v":""},"","","","","","","","",null,{"$f":"IF('Project Scope'!$C24=\"\",\"\",SUM('Project Scope'!$AT24,'Project Scope'!$AU24))","v":""},{"$f":"IF('Project Scope'!$C24=\"\",\"\",SUM('Project Scope'!$BG24, 'Project Scope'!$AR24,(IF(ISNUMBER('Project Scope'!$AS24),'Project Scope'!$AS24,0)*'Project Information'!$D$12)))","v":""},null,null,{"$f":"IF('Project Scope'!$C24=\"\",\"\",IF(COUNTIF('CBAT Lookups'!$B$5:$B$12,\"Controls-\"&CBAT!$D24)=1,VLOOKUP(\"Controls-\"&CBAT!$D24,'CBAT Lookups'!$B$5:$L$12,11),0))","v":""},{"$f":"IF('Project Scope'!$C24=\"\",\"\",IF(COUNTIF('CBAT Lookups'!$B$5:$B$12,\"Controls-\"&CBAT!$D24)=1,VLOOKUP(\"Controls-\"&CBAT!$D24,'CBAT Lookups'!$B$5:$K$12,2),0)*VLOOKUP($F24,'CBAT Lookups'!$B$17:$K$19,2))","v":""},{"$f":"IF('Project Scope'!$C24=\"\",\"\",IF(COUNTIF('CBAT Lookups'!$B$5:$B$12,\"Controls-\"&CBAT!$D24)=1,VLOOKUP(\"Controls-\"&CBAT!$D24,'CBAT Lookups'!$B$5:$K$12,3),0)*VLOOKUP($F24,'CBAT Lookups'!$B$17:$K$19,3))","v":""},{"$f":"IF('Project Scope'!$C24=\"\",\"\",IF(COUNTIF('CBAT Lookups'!$B$5:$B$12,\"Controls-\"&CBAT!$D24)=1,VLOOKUP(\"Controls-\"&CBAT!$D24,'CBAT Lookups'!$B$5:$K$12,4),0))","v":""},{"$f":"IF('Project Scope'!$C24=\"\",\"\",IF(COUNTIF('CBAT Lookups'!$B$5:$B$12,\"Controls-\"&CBAT!$D24)=1,VLOOKUP(\"Controls-\"&CBAT!$D24,'CBAT Lookups'!$B$5:$K$12,5),0))","v":""},{"$f":"IF('Project Scope'!$C24=\"\",\"\",IF(COUNTIF('CBAT Lookups'!$B$5:$B$12,\"Controls-\"&CBAT!$D24)=1,VLOOKUP(\"Controls-\"&CBAT!$D24,'CBAT Lookups'!$B$5:$K$12,6),0))","v":""},{"$f":"IF('Project Scope'!$C24=\"\",\"\",IF(COUNTIF('CBAT Lookups'!$B$5:$B$12,\"Controls-\"&CBAT!$D24)=1,VLOOKUP(\"Controls-\"&CBAT!$D24,'CBAT Lookups'!$B$5:$K$12,7),0))","v":""},{"$f":"IF('Project Scope'!$C24=\"\",\"\",IF(VLOOKUP($F24,'CBAT Lookups'!$B$17:$K$19,8)=\"W\",1,IF(COUNTIF('CBAT Lookups'!$B$5:$B$12,\"Controls-\"&CBAT!$D24)=1,VLOOKUP(\"Controls-\"&CBAT!$D24,'CBAT Lookups'!$B$5:$K$12,8),0)*VLOOKUP($F24,'CBAT Lookups'!$B$17:$K$19,8)))","v":""},{"$f":"IF('Project Scope'!$C24=\"\",\"\",IF(VLOOKUP($F24,'CBAT Lookups'!$B$17:$K$19,9)=\"W\",1,IF(COUNTIF('CBAT Lookups'!$B$5:$B$12,\"Controls-\"&CBAT!$D24)=1,VLOOKUP(\"Controls-\"&CBAT!$D24,'CBAT Lookups'!$B$5:$K$12,9),0)*VLOOKUP($F24,'CBAT Lookups'!$B$17:$K$19,9)))","v":""},{"$f":"IF('Project Scope'!$C24=\"\",\"\",IF(COUNTIF('CBAT Lookups'!$B$5:$B$12,\"Controls-\"&CBAT!$D24)=1,VLOOKUP(\"Controls-\"&CBAT!$D24,'CBAT Lookups'!$B$5:$K$12,10),0)*VLOOKUP($F24,'CBAT Lookups'!$B$17:$K$19,10))","v":""},{"$f":"IF('Project Scope'!$C24=\"\",\"\",VLOOKUP($C24,'CBAT Lookups'!$A$33:$B$57,2))","v":""},{"$f":"IF('Project Scope'!$C24=\"\",\"\",IF(COUNTIF('CBAT Lookups'!$B$5:$B$12,\"Controls-\"&CBAT!$D24)=1,VLOOKUP(\"Controls-\"&CBAT!$D24,'CBAT Lookups'!$B$5:$O$12,12),0))","v":""},{"$f":"IF('Project Scope'!$C24=\"\",\"\",IF(COUNTIF('CBAT Lookups'!$B$5:$B$12,\"Controls-\"&CBAT!$D24)=1,VLOOKUP(\"Controls-\"&CBAT!$D24,'CBAT Lookups'!$B$5:$O$12,13),0))","v":""},{"$f":"IF('Project Scope'!$C24=\"\",\"\",IF(COUNTIF('CBAT Lookups'!$B$5:$B$12,\"Controls-\"&CBAT!$D24)=1,VLOOKUP(\"Controls-\"&CBAT!$D24,'CBAT Lookups'!$B$5:$O$12,14),0))","v":""},{"$f":"IF('Project Scope'!$C24=\"\",\"\",'TRM Data'!$U$3)","v":""},{"$f":"IF('Project Scope'!$C24=\"\",\"\",'TRM Data'!$V$3)","v":""},{"$f":"IF('Project Scope'!$C24=\"\",\"\",IF($K24<=0,0,MAX(0,(IF(AND($I24>0,$J24>0),($I24*$J24)/1000,($G24*$H24)/1000)*$L24))*$BT24*$BR24)+($CD24/0.003412))","v":""},{"$f":"IF('Project Scope'!$C24=\"\",\"\",IF($K24<=0,0,MAX(0,IF(AND($I24>0,$J24>0),($I24*$J24)/1000,($G24*$H24)/1000))*$BQ24))","v":""},{"$f":"IF('Project Scope'!$C24=\"\",\"\",IF($K24<=0,0,MAX(0,IF(AND($I24>0,$J24>0),($I24*$J24)/1000,($G24*$H24)/1000))*$BK24))","v":""},{"$f":"IF('Project Scope'!$C24=\"\",\"\",IF($K24<=0,0,MAX(0,IF(AND($I24>0,$J24>0),($I24*$J24)/1000,($G24*$H24)/1000))*$BL24*$BQ24))","v":""},{"$f":"IF('Project Scope'!$C24=\"\",\"\",IF(OR($K24<=0,'Project Information'!$D$44=\"\"),0,-1*MAX(0,IF(AND($I24>0,$J24>0),($I24*$J24)/1000,($G24*$H24)/1000))*$BT24*$L24*$BS24*VLOOKUP('Project Information'!$D$44,'CBAT Lookups'!$A$23:$H$30,2)))","v":""},{"$f":"IF('Project Scope'!$C24=\"\",\"\",IF(OR($K24<=0,'Project Information'!$D$44=\"\"),0,-1*MAX(0,IF(AND($I24>0,$J24>0),($I24*$J24)/1000,($G24*$H24)/1000))*$BT24*$L24*$BS24*VLOOKUP('Project Information'!$D$44,'CBAT Lookups'!$A$23:$H$30,3)))","v":""},{"$f":"IF('Project Scope'!$C24=\"\",\"\",IF(OR($K24<=0,'Project Information'!$D$44=\"\"),0,-1*MAX(0,IF(AND($I24>0,$J24>0),($I24*$J24)/1000,($G24*$H24)/1000))*$BT24*$L24*$BS24*VLOOKUP('Project Information'!$D$44,'CBAT Lookups'!$A$23:$H$30,4)))","v":""},{"$f":"IF('Project Scope'!$C24=\"\",\"\",IF(OR($K24<=0,'Project Information'!$D$44=\"\"),0,-1*MAX(0,IF(AND($I24>0,$J24>0),($I24*$J24)/1000,($G24*$H24)/1000))*$BT24*$L24*$BS24*VLOOKUP('Project Information'!$D$44,'CBAT Lookups'!$A$23:$H$30,5)))","v":""},{"$f":"IF('Project Scope'!$C24=\"\",\"\",IF(OR($K24<=0,'Project Information'!$D$44=\"\"),0,-1*MAX(0,IF(AND($I24>0,$J24>0),($I24*$J24)/1000,($G24*$H24)/1000))*$BT24*$L24*$BS24*VLOOKUP('Project Information'!$D$44,'CBAT Lookups'!$A$23:$H$30,6)))","v":""},{"$f":"IF('Project Scope'!$C24=\"\",\"\",IF(OR($K24<=0,'Project Information'!$D$44=\"\"),0,-1*MAX(0,IF(AND($I24>0,$J24>0),($I24*$J24)/1000,($G24*$H24)/1000))*$BT24*$L24*$BS24*VLOOKUP('Project Information'!$D$44,'CBAT Lookups'!$A$23:$H$30,7)))","v":""},{"$f":"IF('Project Scope'!$C24=\"\",\"\",IF(OR($K24<=0,'Project Information'!$D$44=\"\"),0,-1*MAX(0,IF(AND($I24>0,$J24>0),($I24*$J24)/1000,($G24*$H24)/1000))*$BT24*$L24*$BS24*VLOOKUP('Project Information'!$D$44,'CBAT Lookups'!$A$23:$H$30,8)))","v":""},null,{"$f":"IF('Project Scope'!$C24=\"\",\"\",VLOOKUP($F24,'CBAT Lookups'!$B$17:$K$19,4))","v":""},{"$f":"IF('Project Scope'!$C24=\"\",\"\",VLOOKUP($F24,'CBAT Lookups'!$B$17:$K$19,5))","v":""},{"$f":"IF('Project Scope'!$C24=\"\",\"\",VLOOKUP($F24,'CBAT Lookups'!$B$17:$K$19,6))","v":""},{"$f":"IF('Project Scope'!$C24=\"\",\"\",VLOOKUP($F24,'CBAT Lookups'!$B$17:$K$19,7))","v":""},{"$f":"IF('Project Scope'!$C24=\"\",\"\",IF(SUMPRODUCT($BM24:$BP24,$CL24:$CO24)=0,0,BM24*CL24/SUMPRODUCT($BM24:$BP24,$CL24:$CO24)))","v":""},{"$f":"IF('Project Scope'!$C24=\"\",\"\",IF(SUMPRODUCT($BM24:$BP24,$CL24:$CO24)=0,0,BN24*CM24/SUMPRODUCT($BM24:$BP24,$CL24:$CO24)))","v":""},{"$f":"IF('Project Scope'!$C24=\"\",\"\",IF(SUMPRODUCT($BM24:$BP24,$CL24:$CO24)=0,0,BO24*CN24/SUMPRODUCT($BM24:$BP24,$CL24:$CO24)))","v":""},{"$f":"IF('Project Scope'!$C24=\"\",\"\",IF(SUMPRODUCT($BM24:$BP24,$CL24:$CO24)=0,0,BP24*CO24/SUMPRODUCT($BM24:$BP24,$CL24:$CO24)))","v":""},{"$f":"IF('Project Scope'!$C24=\"\",\"\",Benefits($BZ24,$CB24,$CC24,$CE24,$CF24,$CG24,$CH24,$CI24,$CJ24,$CK24,$BJ24,$CP24,$CQ24,$CR24,$CS24,$BU24,$BV24,$BW24,$BX24,$BY24,$E24))","v":""},"","","","","","","","",null,{"$f":"IF('Project Scope'!$C24=\"\",\"\",SUM('Project Scope'!$BB24,'Project Scope'!$BC24))","v":""},{"$f":"IF('Project Scope'!$C24=\"\",\"\",SUM('Project Scope'!$BH24, 'Project Scope'!$AZ24,(IF(ISNUMBER('Project Scope'!$BA24),'Project Scope'!$BA24,0)*'Project Information'!$D$12)))","v":""},null,null,{"$f":"IF('Project Scope'!$C24=\"\",\"\",IF($J24<=0,0,(SUMPRODUCT($AV24:$BC24,--($AV24:$BC24>0))+$BE24)*$DK24/((-SUMPRODUCT($AV24:$BC24,--($AV24:$BC24<0))+$BG24+$BH24+$BI24)*$DK24)))","v":""},{"$f":"IF('Project Scope'!$C24=\"\",\"\",IF($K24<=0,0,(SUMPRODUCT($CT24:$DA24,--($CT24:$DA24>0))+$DC24)*$DK24/((-SUMPRODUCT($CT24:$DA24,--($CT24:$DA24<0))+$DE24+$DF24+$DG24)*$DK24)))","v":""},{"$f":"IF('Project Scope'!$C24=\"\",\"\",IF(AND($J24<=0,$K24<=0),0,(SUMPRODUCT($AV24:$BC24,--($AV24:$BC24>0))+$BE24+SUMPRODUCT($CT24:$DA24,--($CT24:$DA24>0))+$DC24)*$DK24/((-SUMPRODUCT($AV24:$BC24,--($AV24:$BC24<0))+$BG24+$BH24+$BI24-SUMPRODUCT($CT24:$DA24,--($CT24:$DA24<0))+$DE24+$DF24+$DG24)*$DK24)))","v":""},{"$f":"IF('Project Scope'!$C24=\"\",\"\",IF(NetOrGross=\"Net\",(1-Z24+AA24),1))","v":""}]
[{"$f":"'Project Scope'!$B25","v":18},{"$f":"IF('Project Scope'!$C25=\"\",\"\",'Project Scope'!$C25)","v":""},{"$f":"IF('Project Scope'!$C25=\"\",\"\",'Project Scope'!$H25)","v":""},{"$f":"IF(ISNUMBER(SEARCH(\"Bay\",'Project Scope'!$Q25)),\"Bay\",IF('Project Scope'!C25=\"\",\"\",'Project Scope'!E25))","v":""},{"$f":"IF('Project Scope'!$C25=\"\",\"\",\"Com\")","v":""},{"$f":"IF('Project Scope'!$C25=\"\",\"\",'Project Scope'!$L25)","v":""},{"$f":"IF('Project Scope'!$C25=\"\",\"\",IF('Project Scope'!$CJ25=\"\",0,'Project Scope'!$CJ25))","v":""},{"$f":"IF('Project Scope'!$C25=\"\",\"\",IF('Project Scope'!$N25=\"\",0,'Project Scope'!$N25))","v":""},{"$f":"IF('Project Scope'!$C25=\"\",\"\",IF('Project Scope'!$CK25=\"\",0,'Project Scope'!$CK25))","v":""},{"$f":"IF('Project Scope'!$C25=\"\",\"\",IF('Project Scope'!$AO25=\"\",0,'Project Scope'!$AO25))","v":""},{"$f":"IF('Project Scope'!$C25=\"\",\"\",IF('Project Scope'!$AX25=\"\",0,'Project Scope'!$AX25))","v":""},{"$f":"IF('Project Scope'!$C25=\"\",\"\",IF('Project Scope'!$M25=\"\",0,'Project Scope'!$M25))","v":""},{"$f":"IF('Project Scope'!$C25=\"\",\"\",IF(COUNTIF('CBAT Lookups'!$B$5:$B$12,\"Fixtures-\"&CBAT!$D25)=1,VLOOKUP(\"Fixtures-\"&CBAT!$D25,'CBAT Lookups'!$B$5:$L$12,11),0))","v":""},{"$f":"IF('Project Scope'!$C25=\"\",\"\",(IF(COUNTIF('CBAT Lookups'!$B$5:$B$12,\"Fixtures-\"&CBAT!$D25)=1,VLOOKUP(\"Fixtures-\"&CBAT!$D25,'CBAT Lookups'!$B$5:$K$12,2),0))*VLOOKUP($F25,'CBAT Lookups'!$B$17:$K$19,2))","v":""},{"$f":"IF('Project Scope'!$C25=\"\",\"\",(IF(COUNTIF('CBAT Lookups'!$B$5:$B$12,\"Fixtures-\"&CBAT!$D25)=1,VLOOKUP(\"Fixtures-\"&CBAT!$D25,'CBAT Lookups'!$B$5:$K$12,3),0))*VLOOKUP($F25,'CBAT Lookups'!$B$17:$K$19,3))","v":""},{"$f":"IF('Project Scope'!$C25=\"\",\"\",(IF(COUNTIF('CBAT Lookups'!$B$5:$B$12,\"Fixtures-\"&CBAT!$D25)=1,VLOOKUP(\"Fixtures-\"&CBAT!$D25,'CBAT Lookups'!$B$5:$K$12,4),0)))","v":""},{"$f":"IF('Project Scope'!$C25=\"\",\"\",(IF(COUNTIF('CBAT Lookups'!$B$5:$B$12,\"Fixtures-\"&CBAT!$D25)=1,VLOOKUP(\"Fixtures-\"&CBAT!$D25,'CBAT Lookups'!$B$5:$K$12,5),0)))","v":""},{"$f":"IF('Project Scope'!$C25=\"\",\"\",(IF(COUNTIF('CBAT Lookups'!$B$5:$B$12,\"Fixtures-\"&CBAT!$D25)=1,VLOOKUP(\"Fixtures-\"&CBAT!$D25,'CBAT Lookups'!$B$5:$K$12,6),0)))","v":""},{"$f":"IF('Project Scope'!$C25=\"\",\"\",IF(COUNTIF('CBAT Lookups'!$B$5:$B$12,\"Fixtures-\"&CBAT!$D25)=1,VLOOKUP(\"Fixtures-\"&CBAT!$D25,'CBAT Lookups'!$B$5:$K$12,7),0))","v":""},{"$f":"IF('Project Scope'!$C25=\"\",\"\",IF(VLOOKUP($F25,'CBAT Lookups'!$B$17:$K$19,8)=\"W\",1,IF(COUNTIF('CBAT Lookups'!$B$5:$B$12,\"Fixtures-\"&CBAT!$D25)=1,VLOOKUP(\"Fixtures-\"&CBAT!$D25,'CBAT Lookups'!$B$5:$K$12,8),0)*VLOOKUP($F25,'CBAT Lookups'!$B$17:$K$19,8)))","v":""},{"$f":"IF('Project Scope'!$C25=\"\",\"\",IF(VLOOKUP($F25,'CBAT Lookups'!$B$17:$K$19,9)=\"W\",1,IF(COUNTIF('CBAT Lookups'!$B$5:$B$12,\"Fixtures-\"&CBAT!$D25)=1,VLOOKUP(\"Fixtures-\"&CBAT!$D25,'CBAT Lookups'!$B$5:$K$12,9),0)*VLOOKUP($F25,'CBAT Lookups'!$B$17:$K$19,9)))","v":""},{"$f":"IF('Project Scope'!$C25=\"\",\"\",IF(COUNTIF('CBAT Lookups'!$B$5:$B$12,\"Fixtures-\"&CBAT!$D25)=1,VLOOKUP(\"Fixtures-\"&CBAT!$D25,'CBAT Lookups'!$B$5:$K$12,10),0)*VLOOKUP($F25,'CBAT Lookups'!$B$17:$K$19,10))","v":""},{"$f":"IF('Project Scope'!$C25=\"\",\"\",IF(COUNTIF('CBAT Lookups'!$B$5:$B$12,\"Fixtures-\"&CBAT!$D25)=1,VLOOKUP(\"Fixtures-\"&CBAT!$D25,'CBAT Lookups'!$B$5:$O$12,12),0))","v":""},{"$f":"IF('Project Scope'!$C25=\"\",\"\",IF(COUNTIF('CBAT Lookups'!$B$5:$B$12,\"Fixtures-\"&CBAT!$D25)=1,VLOOKUP(\"Fixtures-\"&CBAT!$D25,'CBAT Lookups'!$B$5:$O$12,13),0))","v":""},{"$f":"IF('Project Scope'!$C25=\"\",\"\",IF(COUNTIF('CBAT Lookups'!$B$5:$B$12,\"Fixtures-\"&CBAT!$D25)=1,VLOOKUP(\"Fixtures-\"&CBAT!$D25,'CBAT Lookups'!$B$5:$O$12,14),0))","v":""},{"$f":"IF('Project Scope'!$C25=\"\",\"\",'TRM Data'!$U$3)","v":""},{"$f":"IF('Project Scope'!$C25=\"\",\"\",'TRM Data'!$V$3)","v":""},{"$f":"IF('Project Scope'!$C25=\"\",\"\",IF($J25<=0,0,MAX(0,(($G25*$H25/1000)-($I25*$J25/1000))*$L25)*$U25)+($AF25/0.003412))","v":""},{"$f":"IF('Project Scope'!$C25=\"\",\"\",IF($J25<=0,0,MAX(0,(($G25*$H25/1000)-($I25*$J25/1000)))*$T25))","v":""},{"$f":"IF('Project Scope'!$C25=\"\",\"\",IF($J25<=0,0,MAX(0,(($G25*$H25/1000)-($I25*$J25/1000))*$N25)))","v":""},{"$f":"IF('Project Scope'!$C25=\"\",\"\",IF($J25<=0,0,MAX(0,(($G25*$H25/1000)-($I25*$J25/1000))*$O25)*$T25))","v":""},{"$f":"IF('Project Scope'!$C25=\"\",\"\",IF(OR($J25<=0,'Project Information'!$D$44=\"\"),0,-1*MAX(0,(($G25*$H25/1000)-($I25*$J25/1000))*$L25)*$V25*VLOOKUP('Project Information'!$D$44,'CBAT Lookups'!$A$23:$H$30,2)))","v":""},{"$f":"IF('Project Scope'!$C25=\"\",\"\",IF(OR($J25<=0,'Project Information'!$D$44=\"\"),0,-1*MAX(0,(($G25*$H25/1000)-($I25*$J25/1000))*$L25)*$V25*VLOOKUP('Project Information'!$D$44,'CBAT Lookups'!$A$23:$H$30,3)))","v":""},{"$f":"IF('Project Scope'!$C25=\"\",\"\",IF(OR($J25<=0,'Project Information'!$D$44=\"\"),0,-1*MAX(0,(($G25*$H25/1000)-($I25*$J25/1000))*$L25)*$V25*VLOOKUP('Project Information'!$D$44,'CBAT Lookups'!$A$23:$H$30,4)))","v":""},{"$f":"IF('Project Scope'!$C25=\"\",\"\",IF(OR($J25<=0,'Project Information'!$D$44=\"\"),0,-1*MAX(0,(($G25*$H25/1000)-($I25*$J25/1000))*$L25)*$V25*VLOOKUP('Project Information'!$D$44,'CBAT Lookups'!$A$23:$H$30,5)))","v":""},{"$f":"IF('Project Scope'!$C25=\"\",\"\",IF(OR($J25<=0,'Project Information'!$D$44=\"\"),0,-1*MAX(0,(($G25*$H25/1000)-($I25*$J25/1000))*$L25)*$V25*VLOOKUP('Project Information'!$D$44,'CBAT Lookups'!$A$23:$H$30,6)))","v":""},{"$f":"IF('Project Scope'!$C25=\"\",\"\",IF(OR($J25<=0,'Project Information'!$D$44=\"\"),0,-1*MAX(0,(($G25*$H25/1000)-($I25*$J25/1000))*$L25)*$V25*VLOOKUP('Project Information'!$D$44,'CBAT Lookups'!$A$23:$H$30,7)))","v":""},{"$f":"IF('Project Scope'!$C25=\"\",\"\",IF(OR($J25<=0,'Project Information'!$D$44=\"\"),0,-1*MAX(0,(($G25*$H25/1000)-($I25*$J25/1000))*$L25)*$V25*VLOOKUP('Project Information'!$D$44,'CBAT Lookups'!$A$23:$H$30,8)))","v":""},null,{"$f":"IF('Project Scope'!$C25=\"\",\"\",VLOOKUP($F25,'CBAT Lookups'!$B$17:$K$19,4))","v":""},{"$f":"IF('Project Scope'!$C25=\"\",\"\",VLOOKUP($F25,'CBAT Lookups'!$B$17:$K$19,5))","v":""},{"$f":"IF('Project Scope'!$C25=\"\",\"\",VLOOKUP($F25,'CBAT Lookups'!$B$17:$K$19,6))","v":""},{"$f":"IF('Project Scope'!$C25=\"\",\"\",VLOOKUP($F25,'CBAT Lookups'!$B$17:$K$19,7))","v":""},{"$f":"IF('Project Scope'!$C25=\"\",\"\",IF(SUMPRODUCT($P25:$S25,$AN25:$AQ25)=0,0,P25*AN25/SUMPRODUCT($P25:$S25,$AN25:$AQ25)))","v":""},{"$f":"IF('Project Scope'!$C25=\"\",\"\",IF(SUMPRODUCT($P25:$S25,$AN25:$AQ25)=0,0,Q25*AO25/SUMPRODUCT($P25:$S25,$AN25:$AQ25)))","v":""},{"$f":"IF('Project Scope'!$C25=\"\",\"\",IF(SUMPRODUCT($P25:$S25,$AN25:$AQ25)=0,0,R25*AP25/SUMPRODUCT($P25:$S25,$AN25:$AQ25)))","v":""},{"$f":"IF('Project Scope'!$C25=\"\",\"\",IF(SUMPRODUCT($P25:$S25,$AN25:$AQ25)=0,0,S25*AQ25/SUMPRODUCT($P25:$S25,$AN25:$AQ25)))","v":""},{"$f":"IF('Project Scope'!$C25=\"\",\"\",Benefits($AB25,$AD25,$AE25,$AG25,$AH25,$AI25,$AJ25,$AK25,$AL25,$AM25,$M25,$AR25,$AS25,$AT25,$AU25,$W25,$X25,$Y25,$Z25,$AA25,$E25))","v":""},"","","","","","","","",null,{"$f":"IF('Project Scope'!$C25=\"\",\"\",SUM('Project Scope'!$AT25,'Project Scope'!$AU25))","v":""},{"$f":"IF('Project Scope'!$C25=\"\",\"\",SUM('Project Scope'!$BG25, 'Project Scope'!$AR25,(IF(ISNUMBER('Project Scope'!$AS25),'Project Scope'!$AS25,0)*'Project Information'!$D$12)))","v":""},null,null,{"$f":"IF('Project Scope'!$C25=\"\",\"\",IF(COUNTIF('CBAT Lookups'!$B$5:$B$12,\"Controls-\"&CBAT!$D25)=1,VLOOKUP(\"Controls-\"&CBAT!$D25,'CBAT Lookups'!$B$5:$L$12,11),0))","v":""},{"$f":"IF('Project Scope'!$C25=\"\",\"\",IF(COUNTIF('CBAT Lookups'!$B$5:$B$12,\"Controls-\"&CBAT!$D25)=1,VLOOKUP(\"Controls-\"&CBAT!$D25,'CBAT Lookups'!$B$5:$K$12,2),0)*VLOOKUP($F25,'CBAT Lookups'!$B$17:$K$19,2))","v":""},{"$f":"IF('Project Scope'!$C25=\"\",\"\",IF(COUNTIF('CBAT Lookups'!$B$5:$B$12,\"Controls-\"&CBAT!$D25)=1,VLOOKUP(\"Controls-\"&CBAT!$D25,'CBAT Lookups'!$B$5:$K$12,3),0)*VLOOKUP($F25,'CBAT Lookups'!$B$17:$K$19,3))","v":""},{"$f":"IF('Project Scope'!$C25=\"\",\"\",IF(COUNTIF('CBAT Lookups'!$B$5:$B$12,\"Controls-\"&CBAT!$D25)=1,VLOOKUP(\"Controls-\"&CBAT!$D25,'CBAT Lookups'!$B$5:$K$12,4),0))","v":""},{"$f":"IF('Project Scope'!$C25=\"\",\"\",IF(COUNTIF('CBAT Lookups'!$B$5:$B$12,\"Controls-\"&CBAT!$D25)=1,VLOOKUP(\"Controls-\"&CBAT!$D25,'CBAT Lookups'!$B$5:$K$12,5),0))","v":""},{"$f":"IF('Project Scope'!$C25=\"\",\"\",IF(COUNTIF('CBAT Lookups'!$B$5:$B$12,\"Controls-\"&CBAT!$D25)=1,VLOOKUP(\"Controls-\"&CBAT!$D25,'CBAT Lookups'!$B$5:$K$12,6),0))","v":""},{"$f":"IF('Project Scope'!$C25=\"\",\"\",IF(COUNTIF('CBAT Lookups'!$B$5:$B$12,\"Controls-\"&CBAT!$D25)=1,VLOOKUP(\"Controls-\"&CBAT!$D25,'CBAT Lookups'!$B$5:$K$12,7),0))","v":""},{"$f":"IF('Project Scope'!$C25=\"\",\"\",IF(VLOOKUP($F25,'CBAT Lookups'!$B$17:$K$19,8)=\"W\",1,IF(COUNTIF('CBAT Lookups'!$B$5:$B$12,\"Controls-\"&CBAT!$D25)=1,VLOOKUP(\"Controls-\"&CBAT!$D25,'CBAT Lookups'!$B$5:$K$12,8),0)*VLOOKUP($F25,'CBAT Lookups'!$B$17:$K$19,8)))","v":""},{"$f":"IF('Project Scope'!$C25=\"\",\"\",IF(VLOOKUP($F25,'CBAT Lookups'!$B$17:$K$19,9)=\"W\",1,IF(COUNTIF('CBAT Lookups'!$B$5:$B$12,\"Controls-\"&CBAT!$D25)=1,VLOOKUP(\"Controls-\"&CBAT!$D25,'CBAT Lookups'!$B$5:$K$12,9),0)*VLOOKUP($F25,'CBAT Lookups'!$B$17:$K$19,9)))","v":""},{"$f":"IF('Project Scope'!$C25=\"\",\"\",IF(COUNTIF('CBAT Lookups'!$B$5:$B$12,\"Controls-\"&CBAT!$D25)=1,VLOOKUP(\"Controls-\"&CBAT!$D25,'CBAT Lookups'!$B$5:$K$12,10),0)*VLOOKUP($F25,'CBAT Lookups'!$B$17:$K$19,10))","v":""},{"$f":"IF('Project Scope'!$C25=\"\",\"\",VLOOKUP($C25,'CBAT Lookups'!$A$33:$B$57,2))","v":""},{"$f":"IF('Project Scope'!$C25=\"\",\"\",IF(COUNTIF('CBAT Lookups'!$B$5:$B$12,\"Controls-\"&CBAT!$D25)=1,VLOOKUP(\"Controls-\"&CBAT!$D25,'CBAT Lookups'!$B$5:$O$12,12),0))","v":""},{"$f":"IF('Project Scope'!$C25=\"\",\"\",IF(COUNTIF('CBAT Lookups'!$B$5:$B$12,\"Controls-\"&CBAT!$D25)=1,VLOOKUP(\"Controls-\"&CBAT!$D25,'CBAT Lookups'!$B$5:$O$12,13),0))","v":""},{"$f":"IF('Project Scope'!$C25=\"\",\"\",IF(COUNTIF('CBAT Lookups'!$B$5:$B$12,\"Controls-\"&CBAT!$D25)=1,VLOOKUP(\"Controls-\"&CBAT!$D25,'CBAT Lookups'!$B$5:$O$12,14),0))","v":""},{"$f":"IF('Project Scope'!$C25=\"\",\"\",'TRM Data'!$U$3)","v":""},{"$f":"IF('Project Scope'!$C25=\"\",\"\",'TRM Data'!$V$3)","v":""},{"$f":"IF('Project Scope'!$C25=\"\",\"\",IF($K25<=0,0,MAX(0,(IF(AND($I25>0,$J25>0),($I25*$J25)/1000,($G25*$H25)/1000)*$L25))*$BT25*$BR25)+($CD25/0.003412))","v":""},{"$f":"IF('Project Scope'!$C25=\"\",\"\",IF($K25<=0,0,MAX(0,IF(AND($I25>0,$J25>0),($I25*$J25)/1000,($G25*$H25)/1000))*$BQ25))","v":""},{"$f":"IF('Project Scope'!$C25=\"\",\"\",IF($K25<=0,0,MAX(0,IF(AND($I25>0,$J25>0),($I25*$J25)/1000,($G25*$H25)/1000))*$BK25))","v":""},{"$f":"IF('Project Scope'!$C25=\"\",\"\",IF($K25<=0,0,MAX(0,IF(AND($I25>0,$J25>0),($I25*$J25)/1000,($G25*$H25)/1000))*$BL25*$BQ25))","v":""},{"$f":"IF('Project Scope'!$C25=\"\",\"\",IF(OR($K25<=0,'Project Information'!$D$44=\"\"),0,-1*MAX(0,IF(AND($I25>0,$J25>0),($I25*$J25)/1000,($G25*$H25)/1000))*$BT25*$L25*$BS25*VLOOKUP('Project Information'!$D$44,'CBAT Lookups'!$A$23:$H$30,2)))","v":""},{"$f":"IF('Project Scope'!$C25=\"\",\"\",IF(OR($K25<=0,'Project Information'!$D$44=\"\"),0,-1*MAX(0,IF(AND($I25>0,$J25>0),($I25*$J25)/1000,($G25*$H25)/1000))*$BT25*$L25*$BS25*VLOOKUP('Project Information'!$D$44,'CBAT Lookups'!$A$23:$H$30,3)))","v":""},{"$f":"IF('Project Scope'!$C25=\"\",\"\",IF(OR($K25<=0,'Project Information'!$D$44=\"\"),0,-1*MAX(0,IF(AND($I25>0,$J25>0),($I25*$J25)/1000,($G25*$H25)/1000))*$BT25*$L25*$BS25*VLOOKUP('Project Information'!$D$44,'CBAT Lookups'!$A$23:$H$30,4)))","v":""},{"$f":"IF('Project Scope'!$C25=\"\",\"\",IF(OR($K25<=0,'Project Information'!$D$44=\"\"),0,-1*MAX(0,IF(AND($I25>0,$J25>0),($I25*$J25)/1000,($G25*$H25)/1000))*$BT25*$L25*$BS25*VLOOKUP('Project Information'!$D$44,'CBAT Lookups'!$A$23:$H$30,5)))","v":""},{"$f":"IF('Project Scope'!$C25=\"\",\"\",IF(OR($K25<=0,'Project Information'!$D$44=\"\"),0,-1*MAX(0,IF(AND($I25>0,$J25>0),($I25*$J25)/1000,($G25*$H25)/1000))*$BT25*$L25*$BS25*VLOOKUP('Project Information'!$D$44,'CBAT Lookups'!$A$23:$H$30,6)))","v":""},{"$f":"IF('Project Scope'!$C25=\"\",\"\",IF(OR($K25<=0,'Project Information'!$D$44=\"\"),0,-1*MAX(0,IF(AND($I25>0,$J25>0),($I25*$J25)/1000,($G25*$H25)/1000))*$BT25*$L25*$BS25*VLOOKUP('Project Information'!$D$44,'CBAT Lookups'!$A$23:$H$30,7)))","v":""},{"$f":"IF('Project Scope'!$C25=\"\",\"\",IF(OR($K25<=0,'Project Information'!$D$44=\"\"),0,-1*MAX(0,IF(AND($I25>0,$J25>0),($I25*$J25)/1000,($G25*$H25)/1000))*$BT25*$L25*$BS25*VLOOKUP('Project Information'!$D$44,'CBAT Lookups'!$A$23:$H$30,8)))","v":""},null,{"$f":"IF('Project Scope'!$C25=\"\",\"\",VLOOKUP($F25,'CBAT Lookups'!$B$17:$K$19,4))","v":""},{"$f":"IF('Project Scope'!$C25=\"\",\"\",VLOOKUP($F25,'CBAT Lookups'!$B$17:$K$19,5))","v":""},{"$f":"IF('Project Scope'!$C25=\"\",\"\",VLOOKUP($F25,'CBAT Lookups'!$B$17:$K$19,6))","v":""},{"$f":"IF('Project Scope'!$C25=\"\",\"\",VLOOKUP($F25,'CBAT Lookups'!$B$17:$K$19,7))","v":""},{"$f":"IF('Project Scope'!$C25=\"\",\"\",IF(SUMPRODUCT($BM25:$BP25,$CL25:$CO25)=0,0,BM25*CL25/SUMPRODUCT($BM25:$BP25,$CL25:$CO25)))","v":""},{"$f":"IF('Project Scope'!$C25=\"\",\"\",IF(SUMPRODUCT($BM25:$BP25,$CL25:$CO25)=0,0,BN25*CM25/SUMPRODUCT($BM25:$BP25,$CL25:$CO25)))","v":""},{"$f":"IF('Project Scope'!$C25=\"\",\"\",IF(SUMPRODUCT($BM25:$BP25,$CL25:$CO25)=0,0,BO25*CN25/SUMPRODUCT($BM25:$BP25,$CL25:$CO25)))","v":""},{"$f":"IF('Project Scope'!$C25=\"\",\"\",IF(SUMPRODUCT($BM25:$BP25,$CL25:$CO25)=0,0,BP25*CO25/SUMPRODUCT($BM25:$BP25,$CL25:$CO25)))","v":""},{"$f":"IF('Project Scope'!$C25=\"\",\"\",Benefits($BZ25,$CB25,$CC25,$CE25,$CF25,$CG25,$CH25,$CI25,$CJ25,$CK25,$BJ25,$CP25,$CQ25,$CR25,$CS25,$BU25,$BV25,$BW25,$BX25,$BY25,$E25))","v":""},"","","","","","","","",null,{"$f":"IF('Project Scope'!$C25=\"\",\"\",SUM('Project Scope'!$BB25,'Project Scope'!$BC25))","v":""},{"$f":"IF('Project Scope'!$C25=\"\",\"\",SUM('Project Scope'!$BH25, 'Project Scope'!$AZ25,(IF(ISNUMBER('Project Scope'!$BA25),'Project Scope'!$BA25,0)*'Project Information'!$D$12)))","v":""},null,null,{"$f":"IF('Project Scope'!$C25=\"\",\"\",IF($J25<=0,0,(SUMPRODUCT($AV25:$BC25,--($AV25:$BC25>0))+$BE25)*$DK25/((-SUMPRODUCT($AV25:$BC25,--($AV25:$BC25<0))+$BG25+$BH25+$BI25)*$DK25)))","v":""},{"$f":"IF('Project Scope'!$C25=\"\",\"\",IF($K25<=0,0,(SUMPRODUCT($CT25:$DA25,--($CT25:$DA25>0))+$DC25)*$DK25/((-SUMPRODUCT($CT25:$DA25,--($CT25:$DA25<0))+$DE25+$DF25+$DG25)*$DK25)))","v":""},{"$f":"IF('Project Scope'!$C25=\"\",\"\",IF(AND($J25<=0,$K25<=0),0,(SUMPRODUCT($AV25:$BC25,--($AV25:$BC25>0))+$BE25+SUMPRODUCT($CT25:$DA25,--($CT25:$DA25>0))+$DC25)*$DK25/((-SUMPRODUCT($AV25:$BC25,--($AV25:$BC25<0))+$BG25+$BH25+$BI25-SUMPRODUCT($CT25:$DA25,--($CT25:$DA25<0))+$DE25+$DF25+$DG25)*$DK25)))","v":""},{"$f":"IF('Project Scope'!$C25=\"\",\"\",IF(NetOrGross=\"Net\",(1-Z25+AA25),1))","v":""}]
[{"$f":"'Project Scope'!$B26","v":19},{"$f":"IF('Project Scope'!$C26=\"\",\"\",'Project Scope'!$C26)","v":""},{"$f":"IF('Project Scope'!$C26=\"\",\"\",'Project Scope'!$H26)","v":""},{"$f":"IF(ISNUMBER(SEARCH(\"Bay\",'Project Scope'!$Q26)),\"Bay\",IF('Project Scope'!C26=\"\",\"\",'Project Scope'!E26))","v":""},{"$f":"IF('Project Scope'!$C26=\"\",\"\",\"Com\")","v":""},{"$f":"IF('Project Scope'!$C26=\"\",\"\",'Project Scope'!$L26)","v":""},{"$f":"IF('Project Scope'!$C26=\"\",\"\",IF('Project Scope'!$CJ26=\"\",0,'Project Scope'!$CJ26))","v":""},{"$f":"IF('Project Scope'!$C26=\"\",\"\",IF('Project Scope'!$N26=\"\",0,'Project Scope'!$N26))","v":""},{"$f":"IF('Project Scope'!$C26=\"\",\"\",IF('Project Scope'!$CK26=\"\",0,'Project Scope'!$CK26))","v":""},{"$f":"IF('Project Scope'!$C26=\"\",\"\",IF('Project Scope'!$AO26=\"\",0,'Project Scope'!$AO26))","v":""},{"$f":"IF('Project Scope'!$C26=\"\",\"\",IF('Project Scope'!$AX26=\"\",0,'Project Scope'!$AX26))","v":""},{"$f":"IF('Project Scope'!$C26=\"\",\"\",IF('Project Scope'!$M26=\"\",0,'Project Scope'!$M26))","v":""},{"$f":"IF('Project Scope'!$C26=\"\",\"\",IF(COUNTIF('CBAT Lookups'!$B$5:$B$12,\"Fixtures-\"&CBAT!$D26)=1,VLOOKUP(\"Fixtures-\"&CBAT!$D26,'CBAT Lookups'!$B$5:$L$12,11),0))","v":""},{"$f":"IF('Project Scope'!$C26=\"\",\"\",(IF(COUNTIF('CBAT Lookups'!$B$5:$B$12,\"Fixtures-\"&CBAT!$D26)=1,VLOOKUP(\"Fixtures-\"&CBAT!$D26,'CBAT Lookups'!$B$5:$K$12,2),0))*VLOOKUP($F26,'CBAT Lookups'!$B$17:$K$19,2))","v":""},{"$f":"IF('Project Scope'!$C26=\"\",\"\",(IF(COUNTIF('CBAT Lookups'!$B$5:$B$12,\"Fixtures-\"&CBAT!$D26)=1,VLOOKUP(\"Fixtures-\"&CBAT!$D26,'CBAT Lookups'!$B$5:$K$12,3),0))*VLOOKUP($F26,'CBAT Lookups'!$B$17:$K$19,3))","v":""},{"$f":"IF('Project Scope'!$C26=\"\",\"\",(IF(COUNTIF('CBAT Lookups'!$B$5:$B$12,\"Fixtures-\"&CBAT!$D26)=1,VLOOKUP(\"Fixtures-\"&CBAT!$D26,'CBAT Lookups'!$B$5:$K$12,4),0)))","v":""},{"$f":"IF('Project Scope'!$C26=\"\",\"\",(IF(COUNTIF('CBAT Lookups'!$B$5:$B$12,\"Fixtures-\"&CBAT!$D26)=1,VLOOKUP(\"Fixtures-\"&CBAT!$D26,'CBAT Lookups'!$B$5:$K$12,5),0)))","v":""},{"$f":"IF('Project Scope'!$C26=\"\",\"\",(IF(COUNTIF('CBAT Lookups'!$B$5:$B$12,\"Fixtures-\"&CBAT!$D26)=1,VLOOKUP(\"Fixtures-\"&CBAT!$D26,'CBAT Lookups'!$B$5:$K$12,6),0)))","v":""},{"$f":"IF('Project Scope'!$C26=\"\",\"\",IF(COUNTIF('CBAT Lookups'!$B$5:$B$12,\"Fixtures-\"&CBAT!$D26)=1,VLOOKUP(\"Fixtures-\"&CBAT!$D26,'CBAT Lookups'!$B$5:$K$12,7),0))","v":""},{"$f":"IF('Project Scope'!$C26=\"\",\"\",IF(VLOOKUP($F26,'CBAT Lookups'!$B$17:$K$19,8)=\"W\",1,IF(COUNTIF('CBAT Lookups'!$B$5:$B$12,\"Fixtures-\"&CBAT!$D26)=1,VLOOKUP(\"Fixtures-\"&CBAT!$D26,'CBAT Lookups'!$B$5:$K$12,8),0)*VLOOKUP($F26,'CBAT Lookups'!$B$17:$K$19,8)))","v":""},{"$f":"IF('Project Scope'!$C26=\"\",\"\",IF(VLOOKUP($F26,'CBAT Lookups'!$B$17:$K$19,9)=\"W\",1,IF(COUNTIF('CBAT Lookups'!$B$5:$B$12,\"Fixtures-\"&CBAT!$D26)=1,VLOOKUP(\"Fixtures-\"&CBAT!$D26,'CBAT Lookups'!$B$5:$K$12,9),0)*VLOOKUP($F26,'CBAT Lookups'!$B$17:$K$19,9)))","v":""},{"$f":"IF('Project Scope'!$C26=\"\",\"\",IF(COUNTIF('CBAT Lookups'!$B$5:$B$12,\"Fixtures-\"&CBAT!$D26)=1,VLOOKUP(\"Fixtures-\"&CBAT!$D26,'CBAT Lookups'!$B$5:$K$12,10),0)*VLOOKUP($F26,'CBAT Lookups'!$B$17:$K$19,10))","v":""},{"$f":"IF('Project Scope'!$C26=\"\",\"\",IF(COUNTIF('CBAT Lookups'!$B$5:$B$12,\"Fixtures-\"&CBAT!$D26)=1,VLOOKUP(\"Fixtures-\"&CBAT!$D26,'CBAT Lookups'!$B$5:$O$12,12),0))","v":""},{"$f":"IF('Project Scope'!$C26=\"\",\"\",IF(COUNTIF('CBAT Lookups'!$B$5:$B$12,\"Fixtures-\"&CBAT!$D26)=1,VLOOKUP(\"Fixtures-\"&CBAT!$D26,'CBAT Lookups'!$B$5:$O$12,13),0))","v":""},{"$f":"IF('Project Scope'!$C26=\"\",\"\",IF(COUNTIF('CBAT Lookups'!$B$5:$B$12,\"Fixtures-\"&CBAT!$D26)=1,VLOOKUP(\"Fixtures-\"&CBAT!$D26,'CBAT Lookups'!$B$5:$O$12,14),0))","v":""},{"$f":"IF('Project Scope'!$C26=\"\",\"\",'TRM Data'!$U$3)","v":""},{"$f":"IF('Project Scope'!$C26=\"\",\"\",'TRM Data'!$V$3)","v":""},{"$f":"IF('Project Scope'!$C26=\"\",\"\",IF($J26<=0,0,MAX(0,(($G26*$H26/1000)-($I26*$J26/1000))*$L26)*$U26)+($AF26/0.003412))","v":""},{"$f":"IF('Project Scope'!$C26=\"\",\"\",IF($J26<=0,0,MAX(0,(($G26*$H26/1000)-($I26*$J26/1000)))*$T26))","v":""},{"$f":"IF('Project Scope'!$C26=\"\",\"\",IF($J26<=0,0,MAX(0,(($G26*$H26/1000)-($I26*$J26/1000))*$N26)))","v":""},{"$f":"IF('Project Scope'!$C26=\"\",\"\",IF($J26<=0,0,MAX(0,(($G26*$H26/1000)-($I26*$J26/1000))*$O26)*$T26))","v":""},{"$f":"IF('Project Scope'!$C26=\"\",\"\",IF(OR($J26<=0,'Project Information'!$D$44=\"\"),0,-1*MAX(0,(($G26*$H26/1000)-($I26*$J26/1000))*$L26)*$V26*VLOOKUP('Project Information'!$D$44,'CBAT Lookups'!$A$23:$H$30,2)))","v":""},{"$f":"IF('Project Scope'!$C26=\"\",\"\",IF(OR($J26<=0,'Project Information'!$D$44=\"\"),0,-1*MAX(0,(($G26*$H26/1000)-($I26*$J26/1000))*$L26)*$V26*VLOOKUP('Project Information'!$D$44,'CBAT Lookups'!$A$23:$H$30,3)))","v":""},{"$f":"IF('Project Scope'!$C26=\"\",\"\",IF(OR($J26<=0,'Project Information'!$D$44=\"\"),0,-1*MAX(0,(($G26*$H26/1000)-($I26*$J26/1000))*$L26)*$V26*VLOOKUP('Project Information'!$D$44,'CBAT Lookups'!$A$23:$H$30,4)))","v":""},{"$f":"IF('Project Scope'!$C26=\"\",\"\",IF(OR($J26<=0,'Project Information'!$D$44=\"\"),0,-1*MAX(0,(($G26*$H26/1000)-($I26*$J26/1000))*$L26)*$V26*VLOOKUP('Project Information'!$D$44,'CBAT Lookups'!$A$23:$H$30,5)))","v":""},{"$f":"IF('Project Scope'!$C26=\"\",\"\",IF(OR($J26<=0,'Project Information'!$D$44=\"\"),0,-1*MAX(0,(($G26*$H26/1000)-($I26*$J26/1000))*$L26)*$V26*VLOOKUP('Project Information'!$D$44,'CBAT Lookups'!$A$23:$H$30,6)))","v":""},{"$f":"IF('Project Scope'!$C26=\"\",\"\",IF(OR($J26<=0,'Project Information'!$D$44=\"\"),0,-1*MAX(0,(($G26*$H26/1000)-($I26*$J26/1000))*$L26)*$V26*VLOOKUP('Project Information'!$D$44,'CBAT Lookups'!$A$23:$H$30,7)))","v":""},{"$f":"IF('Project Scope'!$C26=\"\",\"\",IF(OR($J26<=0,'Project Information'!$D$44=\"\"),0,-1*MAX(0,(($G26*$H26/1000)-($I26*$J26/1000))*$L26)*$V26*VLOOKUP('Project Information'!$D$44,'CBAT Lookups'!$A$23:$H$30,8)))","v":""},null,{"$f":"IF('Project Scope'!$C26=\"\",\"\",VLOOKUP($F26,'CBAT Lookups'!$B$17:$K$19,4))","v":""},{"$f":"IF('Project Scope'!$C26=\"\",\"\",VLOOKUP($F26,'CBAT Lookups'!$B$17:$K$19,5))","v":""},{"$f":"IF('Project Scope'!$C26=\"\",\"\",VLOOKUP($F26,'CBAT Lookups'!$B$17:$K$19,6))","v":""},{"$f":"IF('Project Scope'!$C26=\"\",\"\",VLOOKUP($F26,'CBAT Lookups'!$B$17:$K$19,7))","v":""},{"$f":"IF('Project Scope'!$C26=\"\",\"\",IF(SUMPRODUCT($P26:$S26,$AN26:$AQ26)=0,0,P26*AN26/SUMPRODUCT($P26:$S26,$AN26:$AQ26)))","v":""},{"$f":"IF('Project Scope'!$C26=\"\",\"\",IF(SUMPRODUCT($P26:$S26,$AN26:$AQ26)=0,0,Q26*AO26/SUMPRODUCT($P26:$S26,$AN26:$AQ26)))","v":""},{"$f":"IF('Project Scope'!$C26=\"\",\"\",IF(SUMPRODUCT($P26:$S26,$AN26:$AQ26)=0,0,R26*AP26/SUMPRODUCT($P26:$S26,$AN26:$AQ26)))","v":""},{"$f":"IF('Project Scope'!$C26=\"\",\"\",IF(SUMPRODUCT($P26:$S26,$AN26:$AQ26)=0,0,S26*AQ26/SUMPRODUCT($P26:$S26,$AN26:$AQ26)))","v":""},{"$f":"IF('Project Scope'!$C26=\"\",\"\",Benefits($AB26,$AD26,$AE26,$AG26,$AH26,$AI26,$AJ26,$AK26,$AL26,$AM26,$M26,$AR26,$AS26,$AT26,$AU26,$W26,$X26,$Y26,$Z26,$AA26,$E26))","v":""},"","","","","","","","",null,{"$f":"IF('Project Scope'!$C26=\"\",\"\",SUM('Project Scope'!$AT26,'Project Scope'!$AU26))","v":""},{"$f":"IF('Project Scope'!$C26=\"\",\"\",SUM('Project Scope'!$BG26, 'Project Scope'!$AR26,(IF(ISNUMBER('Project Scope'!$AS26),'Project Scope'!$AS26,0)*'Project Information'!$D$12)))","v":""},null,null,{"$f":"IF('Project Scope'!$C26=\"\",\"\",IF(COUNTIF('CBAT Lookups'!$B$5:$B$12,\"Controls-\"&CBAT!$D26)=1,VLOOKUP(\"Controls-\"&CBAT!$D26,'CBAT Lookups'!$B$5:$L$12,11),0))","v":""},{"$f":"IF('Project Scope'!$C26=\"\",\"\",IF(COUNTIF('CBAT Lookups'!$B$5:$B$12,\"Controls-\"&CBAT!$D26)=1,VLOOKUP(\"Controls-\"&CBAT!$D26,'CBAT Lookups'!$B$5:$K$12,2),0)*VLOOKUP($F26,'CBAT Lookups'!$B$17:$K$19,2))","v":""},{"$f":"IF('Project Scope'!$C26=\"\",\"\",IF(COUNTIF('CBAT Lookups'!$B$5:$B$12,\"Controls-\"&CBAT!$D26)=1,VLOOKUP(\"Controls-\"&CBAT!$D26,'CBAT Lookups'!$B$5:$K$12,3),0)*VLOOKUP($F26,'CBAT Lookups'!$B$17:$K$19,3))","v":""},{"$f":"IF('Project Scope'!$C26=\"\",\"\",IF(COUNTIF('CBAT Lookups'!$B$5:$B$12,\"Controls-\"&CBAT!$D26)=1,VLOOKUP(\"Controls-\"&CBAT!$D26,'CBAT Lookups'!$B$5:$K$12,4),0))","v":""},{"$f":"IF('Project Scope'!$C26=\"\",\"\",IF(COUNTIF('CBAT Lookups'!$B$5:$B$12,\"Controls-\"&CBAT!$D26)=1,VLOOKUP(\"Controls-\"&CBAT!$D26,'CBAT Lookups'!$B$5:$K$12,5),0))","v":""},{"$f":"IF('Project Scope'!$C26=\"\",\"\",IF(COUNTIF('CBAT Lookups'!$B$5:$B$12,\"Controls-\"&CBAT!$D26)=1,VLOOKUP(\"Controls-\"&CBAT!$D26,'CBAT Lookups'!$B$5:$K$12,6),0))","v":""},{"$f":"IF('Project Scope'!$C26=\"\",\"\",IF(COUNTIF('CBAT Lookups'!$B$5:$B$12,\"Controls-\"&CBAT!$D26)=1,VLOOKUP(\"Controls-\"&CBAT!$D26,'CBAT Lookups'!$B$5:$K$12,7),0))","v":""},{"$f":"IF('Project Scope'!$C26=\"\",\"\",IF(VLOOKUP($F26,'CBAT Lookups'!$B$17:$K$19,8)=\"W\",1,IF(COUNTIF('CBAT Lookups'!$B$5:$B$12,\"Controls-\"&CBAT!$D26)=1,VLOOKUP(\"Controls-\"&CBAT!$D26,'CBAT Lookups'!$B$5:$K$12,8),0)*VLOOKUP($F26,'CBAT Lookups'!$B$17:$K$19,8)))","v":""},{"$f":"IF('Project Scope'!$C26=\"\",\"\",IF(VLOOKUP($F26,'CBAT Lookups'!$B$17:$K$19,9)=\"W\",1,IF(COUNTIF('CBAT Lookups'!$B$5:$B$12,\"Controls-\"&CBAT!$D26)=1,VLOOKUP(\"Controls-\"&CBAT!$D26,'CBAT Lookups'!$B$5:$K$12,9),0)*VLOOKUP($F26,'CBAT Lookups'!$B$17:$K$19,9)))","v":""},{"$f":"IF('Project Scope'!$C26=\"\",\"\",IF(COUNTIF('CBAT Lookups'!$B$5:$B$12,\"Controls-\"&CBAT!$D26)=1,VLOOKUP(\"Controls-\"&CBAT!$D26,'CBAT Lookups'!$B$5:$K$12,10),0)*VLOOKUP($F26,'CBAT Lookups'!$B$17:$K$19,10))","v":""},{"$f":"IF('Project Scope'!$C26=\"\",\"\",VLOOKUP($C26,'CBAT Lookups'!$A$33:$B$57,2))","v":""},{"$f":"IF('Project Scope'!$C26=\"\",\"\",IF(COUNTIF('CBAT Lookups'!$B$5:$B$12,\"Controls-\"&CBAT!$D26)=1,VLOOKUP(\"Controls-\"&CBAT!$D26,'CBAT Lookups'!$B$5:$O$12,12),0))","v":""},{"$f":"IF('Project Scope'!$C26=\"\",\"\",IF(COUNTIF('CBAT Lookups'!$B$5:$B$12,\"Controls-\"&CBAT!$D26)=1,VLOOKUP(\"Controls-\"&CBAT!$D26,'CBAT Lookups'!$B$5:$O$12,13),0))","v":""},{"$f":"IF('Project Scope'!$C26=\"\",\"\",IF(COUNTIF('CBAT Lookups'!$B$5:$B$12,\"Controls-\"&CBAT!$D26)=1,VLOOKUP(\"Controls-\"&CBAT!$D26,'CBAT Lookups'!$B$5:$O$12,14),0))","v":""},{"$f":"IF('Project Scope'!$C26=\"\",\"\",'TRM Data'!$U$3)","v":""},{"$f":"IF('Project Scope'!$C26=\"\",\"\",'TRM Data'!$V$3)","v":""},{"$f":"IF('Project Scope'!$C26=\"\",\"\",IF($K26<=0,0,MAX(0,(IF(AND($I26>0,$J26>0),($I26*$J26)/1000,($G26*$H26)/1000)*$L26))*$BT26*$BR26)+($CD26/0.003412))","v":""},{"$f":"IF('Project Scope'!$C26=\"\",\"\",IF($K26<=0,0,MAX(0,IF(AND($I26>0,$J26>0),($I26*$J26)/1000,($G26*$H26)/1000))*$BQ26))","v":""},{"$f":"IF('Project Scope'!$C26=\"\",\"\",IF($K26<=0,0,MAX(0,IF(AND($I26>0,$J26>0),($I26*$J26)/1000,($G26*$H26)/1000))*$BK26))","v":""},{"$f":"IF('Project Scope'!$C26=\"\",\"\",IF($K26<=0,0,MAX(0,IF(AND($I26>0,$J26>0),($I26*$J26)/1000,($G26*$H26)/1000))*$BL26*$BQ26))","v":""},{"$f":"IF('Project Scope'!$C26=\"\",\"\",IF(OR($K26<=0,'Project Information'!$D$44=\"\"),0,-1*MAX(0,IF(AND($I26>0,$J26>0),($I26*$J26)/1000,($G26*$H26)/1000))*$BT26*$L26*$BS26*VLOOKUP('Project Information'!$D$44,'CBAT Lookups'!$A$23:$H$30,2)))","v":""},{"$f":"IF('Project Scope'!$C26=\"\",\"\",IF(OR($K26<=0,'Project Information'!$D$44=\"\"),0,-1*MAX(0,IF(AND($I26>0,$J26>0),($I26*$J26)/1000,($G26*$H26)/1000))*$BT26*$L26*$BS26*VLOOKUP('Project Information'!$D$44,'CBAT Lookups'!$A$23:$H$30,3)))","v":""},{"$f":"IF('Project Scope'!$C26=\"\",\"\",IF(OR($K26<=0,'Project Information'!$D$44=\"\"),0,-1*MAX(0,IF(AND($I26>0,$J26>0),($I26*$J26)/1000,($G26*$H26)/1000))*$BT26*$L26*$BS26*VLOOKUP('Project Information'!$D$44,'CBAT Lookups'!$A$23:$H$30,4)))","v":""},{"$f":"IF('Project Scope'!$C26=\"\",\"\",IF(OR($K26<=0,'Project Information'!$D$44=\"\"),0,-1*MAX(0,IF(AND($I26>0,$J26>0),($I26*$J26)/1000,($G26*$H26)/1000))*$BT26*$L26*$BS26*VLOOKUP('Project Information'!$D$44,'CBAT Lookups'!$A$23:$H$30,5)))","v":""},{"$f":"IF('Project Scope'!$C26=\"\",\"\",IF(OR($K26<=0,'Project Information'!$D$44=\"\"),0,-1*MAX(0,IF(AND($I26>0,$J26>0),($I26*$J26)/1000,($G26*$H26)/1000))*$BT26*$L26*$BS26*VLOOKUP('Project Information'!$D$44,'CBAT Lookups'!$A$23:$H$30,6)))","v":""},{"$f":"IF('Project Scope'!$C26=\"\",\"\",IF(OR($K26<=0,'Project Information'!$D$44=\"\"),0,-1*MAX(0,IF(AND($I26>0,$J26>0),($I26*$J26)/1000,($G26*$H26)/1000))*$BT26*$L26*$BS26*VLOOKUP('Project Information'!$D$44,'CBAT Lookups'!$A$23:$H$30,7)))","v":""},{"$f":"IF('Project Scope'!$C26=\"\",\"\",IF(OR($K26<=0,'Project Information'!$D$44=\"\"),0,-1*MAX(0,IF(AND($I26>0,$J26>0),($I26*$J26)/1000,($G26*$H26)/1000))*$BT26*$L26*$BS26*VLOOKUP('Project Information'!$D$44,'CBAT Lookups'!$A$23:$H$30,8)))","v":""},null,{"$f":"IF('Project Scope'!$C26=\"\",\"\",VLOOKUP($F26,'CBAT Lookups'!$B$17:$K$19,4))","v":""},{"$f":"IF('Project Scope'!$C26=\"\",\"\",VLOOKUP($F26,'CBAT Lookups'!$B$17:$K$19,5))","v":""},{"$f":"IF('Project Scope'!$C26=\"\",\"\",VLOOKUP($F26,'CBAT Lookups'!$B$17:$K$19,6))","v":""},{"$f":"IF('Project Scope'!$C26=\"\",\"\",VLOOKUP($F26,'CBAT Lookups'!$B$17:$K$19,7))","v":""},{"$f":"IF('Project Scope'!$C26=\"\",\"\",IF(SUMPRODUCT($BM26:$BP26,$CL26:$CO26)=0,0,BM26*CL26/SUMPRODUCT($BM26:$BP26,$CL26:$CO26)))","v":""},{"$f":"IF('Project Scope'!$C26=\"\",\"\",IF(SUMPRODUCT($BM26:$BP26,$CL26:$CO26)=0,0,BN26*CM26/SUMPRODUCT($BM26:$BP26,$CL26:$CO26)))","v":""},{"$f":"IF('Project Scope'!$C26=\"\",\"\",IF(SUMPRODUCT($BM26:$BP26,$CL26:$CO26)=0,0,BO26*CN26/SUMPRODUCT($BM26:$BP26,$CL26:$CO26)))","v":""},{"$f":"IF('Project Scope'!$C26=\"\",\"\",IF(SUMPRODUCT($BM26:$BP26,$CL26:$CO26)=0,0,BP26*CO26/SUMPRODUCT($BM26:$BP26,$CL26:$CO26)))","v":""},{"$f":"IF('Project Scope'!$C26=\"\",\"\",Benefits($BZ26,$CB26,$CC26,$CE26,$CF26,$CG26,$CH26,$CI26,$CJ26,$CK26,$BJ26,$CP26,$CQ26,$CR26,$CS26,$BU26,$BV26,$BW26,$BX26,$BY26,$E26))","v":""},"","","","","","","","",null,{"$f":"IF('Project Scope'!$C26=\"\",\"\",SUM('Project Scope'!$BB26,'Project Scope'!$BC26))","v":""},{"$f":"IF('Project Scope'!$C26=\"\",\"\",SUM('Project Scope'!$BH26, 'Project Scope'!$AZ26,(IF(ISNUMBER('Project Scope'!$BA26),'Project Scope'!$BA26,0)*'Project Information'!$D$12)))","v":""},null,null,{"$f":"IF('Project Scope'!$C26=\"\",\"\",IF($J26<=0,0,(SUMPRODUCT($AV26:$BC26,--($AV26:$BC26>0))+$BE26)*$DK26/((-SUMPRODUCT($AV26:$BC26,--($AV26:$BC26<0))+$BG26+$BH26+$BI26)*$DK26)))","v":""},{"$f":"IF('Project Scope'!$C26=\"\",\"\",IF($K26<=0,0,(SUMPRODUCT($CT26:$DA26,--($CT26:$DA26>0))+$DC26)*$DK26/((-SUMPRODUCT($CT26:$DA26,--($CT26:$DA26<0))+$DE26+$DF26+$DG26)*$DK26)))","v":""},{"$f":"IF('Project Scope'!$C26=\"\",\"\",IF(AND($J26<=0,$K26<=0),0,(SUMPRODUCT($AV26:$BC26,--($AV26:$BC26>0))+$BE26+SUMPRODUCT($CT26:$DA26,--($CT26:$DA26>0))+$DC26)*$DK26/((-SUMPRODUCT($AV26:$BC26,--($AV26:$BC26<0))+$BG26+$BH26+$BI26-SUMPRODUCT($CT26:$DA26,--($CT26:$DA26<0))+$DE26+$DF26+$DG26)*$DK26)))","v":""},{"$f":"IF('Project Scope'!$C26=\"\",\"\",IF(NetOrGross=\"Net\",(1-Z26+AA26),1))","v":""}]
[{"$f":"'Project Scope'!$B27","v":20},{"$f":"IF('Project Scope'!$C27=\"\",\"\",'Project Scope'!$C27)","v":""},{"$f":"IF('Project Scope'!$C27=\"\",\"\",'Project Scope'!$H27)","v":""},{"$f":"IF(ISNUMBER(SEARCH(\"Bay\",'Project Scope'!$Q27)),\"Bay\",IF('Project Scope'!C27=\"\",\"\",'Project Scope'!E27))","v":""},{"$f":"IF('Project Scope'!$C27=\"\",\"\",\"Com\")","v":""},{"$f":"IF('Project Scope'!$C27=\"\",\"\",'Project Scope'!$L27)","v":""},{"$f":"IF('Project Scope'!$C27=\"\",\"\",IF('Project Scope'!$CJ27=\"\",0,'Project Scope'!$CJ27))","v":""},{"$f":"IF('Project Scope'!$C27=\"\",\"\",IF('Project Scope'!$N27=\"\",0,'Project Scope'!$N27))","v":""},{"$f":"IF('Project Scope'!$C27=\"\",\"\",IF('Project Scope'!$CK27=\"\",0,'Project Scope'!$CK27))","v":""},{"$f":"IF('Project Scope'!$C27=\"\",\"\",IF('Project Scope'!$AO27=\"\",0,'Project Scope'!$AO27))","v":""},{"$f":"IF('Project Scope'!$C27=\"\",\"\",IF('Project Scope'!$AX27=\"\",0,'Project Scope'!$AX27))","v":""},{"$f":"IF('Project Scope'!$C27=\"\",\"\",IF('Project Scope'!$M27=\"\",0,'Project Scope'!$M27))","v":""},{"$f":"IF('Project Scope'!$C27=\"\",\"\",IF(COUNTIF('CBAT Lookups'!$B$5:$B$12,\"Fixtures-\"&CBAT!$D27)=1,VLOOKUP(\"Fixtures-\"&CBAT!$D27,'CBAT Lookups'!$B$5:$L$12,11),0))","v":""},{"$f":"IF('Project Scope'!$C27=\"\",\"\",(IF(COUNTIF('CBAT Lookups'!$B$5:$B$12,\"Fixtures-\"&CBAT!$D27)=1,VLOOKUP(\"Fixtures-\"&CBAT!$D27,'CBAT Lookups'!$B$5:$K$12,2),0))*VLOOKUP($F27,'CBAT Lookups'!$B$17:$K$19,2))","v":""},{"$f":"IF('Project Scope'!$C27=\"\",\"\",(IF(COUNTIF('CBAT Lookups'!$B$5:$B$12,\"Fixtures-\"&CBAT!$D27)=1,VLOOKUP(\"Fixtures-\"&CBAT!$D27,'CBAT Lookups'!$B$5:$K$12,3),0))*VLOOKUP($F27,'CBAT Lookups'!$B$17:$K$19,3))","v":""},{"$f":"IF('Project Scope'!$C27=\"\",\"\",(IF(COUNTIF('CBAT Lookups'!$B$5:$B$12,\"Fixtures-\"&CBAT!$D27)=1,VLOOKUP(\"Fixtures-\"&CBAT!$D27,'CBAT Lookups'!$B$5:$K$12,4),0)))","v":""},{"$f":"IF('Project Scope'!$C27=\"\",\"\",(IF(COUNTIF('CBAT Lookups'!$B$5:$B$12,\"Fixtures-\"&CBAT!$D27)=1,VLOOKUP(\"Fixtures-\"&CBAT!$D27,'CBAT Lookups'!$B$5:$K$12,5),0)))","v":""},{"$f":"IF('Project Scope'!$C27=\"\",\"\",(IF(COUNTIF('CBAT Lookups'!$B$5:$B$12,\"Fixtures-\"&CBAT!$D27)=1,VLOOKUP(\"Fixtures-\"&CBAT!$D27,'CBAT Lookups'!$B$5:$K$12,6),0)))","v":""},{"$f":"IF('Project Scope'!$C27=\"\",\"\",IF(COUNTIF('CBAT Lookups'!$B$5:$B$12,\"Fixtures-\"&CBAT!$D27)=1,VLOOKUP(\"Fixtures-\"&CBAT!$D27,'CBAT Lookups'!$B$5:$K$12,7),0))","v":""},{"$f":"IF('Project Scope'!$C27=\"\",\"\",IF(VLOOKUP($F27,'CBAT Lookups'!$B$17:$K$19,8)=\"W\",1,IF(COUNTIF('CBAT Lookups'!$B$5:$B$12,\"Fixtures-\"&CBAT!$D27)=1,VLOOKUP(\"Fixtures-\"&CBAT!$D27,'CBAT Lookups'!$B$5:$K$12,8),0)*VLOOKUP($F27,'CBAT Lookups'!$B$17:$K$19,8)))","v":""},{"$f":"IF('Project Scope'!$C27=\"\",\"\",IF(VLOOKUP($F27,'CBAT Lookups'!$B$17:$K$19,9)=\"W\",1,IF(COUNTIF('CBAT Lookups'!$B$5:$B$12,\"Fixtures-\"&CBAT!$D27)=1,VLOOKUP(\"Fixtures-\"&CBAT!$D27,'CBAT Lookups'!$B$5:$K$12,9),0)*VLOOKUP($F27,'CBAT Lookups'!$B$17:$K$19,9)))","v":""},{"$f":"IF('Project Scope'!$C27=\"\",\"\",IF(COUNTIF('CBAT Lookups'!$B$5:$B$12,\"Fixtures-\"&CBAT!$D27)=1,VLOOKUP(\"Fixtures-\"&CBAT!$D27,'CBAT Lookups'!$B$5:$K$12,10),0)*VLOOKUP($F27,'CBAT Lookups'!$B$17:$K$19,10))","v":""},{"$f":"IF('Project Scope'!$C27=\"\",\"\",IF(COUNTIF('CBAT Lookups'!$B$5:$B$12,\"Fixtures-\"&CBAT!$D27)=1,VLOOKUP(\"Fixtures-\"&CBAT!$D27,'CBAT Lookups'!$B$5:$O$12,12),0))","v":""},{"$f":"IF('Project Scope'!$C27=\"\",\"\",IF(COUNTIF('CBAT Lookups'!$B$5:$B$12,\"Fixtures-\"&CBAT!$D27)=1,VLOOKUP(\"Fixtures-\"&CBAT!$D27,'CBAT Lookups'!$B$5:$O$12,13),0))","v":""},{"$f":"IF('Project Scope'!$C27=\"\",\"\",IF(COUNTIF('CBAT Lookups'!$B$5:$B$12,\"Fixtures-\"&CBAT!$D27)=1,VLOOKUP(\"Fixtures-\"&CBAT!$D27,'CBAT Lookups'!$B$5:$O$12,14),0))","v":""},{"$f":"IF('Project Scope'!$C27=\"\",\"\",'TRM Data'!$U$3)","v":""},{"$f":"IF('Project Scope'!$C27=\"\",\"\",'TRM Data'!$V$3)","v":""},{"$f":"IF('Project Scope'!$C27=\"\",\"\",IF($J27<=0,0,MAX(0,(($G27*$H27/1000)-($I27*$J27/1000))*$L27)*$U27)+($AF27/0.003412))","v":""},{"$f":"IF('Project Scope'!$C27=\"\",\"\",IF($J27<=0,0,MAX(0,(($G27*$H27/1000)-($I27*$J27/1000)))*$T27))","v":""},{"$f":"IF('Project Scope'!$C27=\"\",\"\",IF($J27<=0,0,MAX(0,(($G27*$H27/1000)-($I27*$J27/1000))*$N27)))","v":""},{"$f":"IF('Project Scope'!$C27=\"\",\"\",IF($J27<=0,0,MAX(0,(($G27*$H27/1000)-($I27*$J27/1000))*$O27)*$T27))","v":""},{"$f":"IF('Project Scope'!$C27=\"\",\"\",IF(OR($J27<=0,'Project Information'!$D$44=\"\"),0,-1*MAX(0,(($G27*$H27/1000)-($I27*$J27/1000))*$L27)*$V27*VLOOKUP('Project Information'!$D$44,'CBAT Lookups'!$A$23:$H$30,2)))","v":""},{"$f":"IF('Project Scope'!$C27=\"\",\"\",IF(OR($J27<=0,'Project Information'!$D$44=\"\"),0,-1*MAX(0,(($G27*$H27/1000)-($I27*$J27/1000))*$L27)*$V27*VLOOKUP('Project Information'!$D$44,'CBAT Lookups'!$A$23:$H$30,3)))","v":""},{"$f":"IF('Project Scope'!$C27=\"\",\"\",IF(OR($J27<=0,'Project Information'!$D$44=\"\"),0,-1*MAX(0,(($G27*$H27/1000)-($I27*$J27/1000))*$L27)*$V27*VLOOKUP('Project Information'!$D$44,'CBAT Lookups'!$A$23:$H$30,4)))","v":""},{"$f":"IF('Project Scope'!$C27=\"\",\"\",IF(OR($J27<=0,'Project Information'!$D$44=\"\"),0,-1*MAX(0,(($G27*$H27/1000)-($I27*$J27/1000))*$L27)*$V27*VLOOKUP('Project Information'!$D$44,'CBAT Lookups'!$A$23:$H$30,5)))","v":""},{"$f":"IF('Project Scope'!$C27=\"\",\"\",IF(OR($J27<=0,'Project Information'!$D$44=\"\"),0,-1*MAX(0,(($G27*$H27/1000)-($I27*$J27/1000))*$L27)*$V27*VLOOKUP('Project Information'!$D$44,'CBAT Lookups'!$A$23:$H$30,6)))","v":""},{"$f":"IF('Project Scope'!$C27=\"\",\"\",IF(OR($J27<=0,'Project Information'!$D$44=\"\"),0,-1*MAX(0,(($G27*$H27/1000)-($I27*$J27/1000))*$L27)*$V27*VLOOKUP('Project Information'!$D$44,'CBAT Lookups'!$A$23:$H$30,7)))","v":""},{"$f":"IF('Project Scope'!$C27=\"\",\"\",IF(OR($J27<=0,'Project Information'!$D$44=\"\"),0,-1*MAX(0,(($G27*$H27/1000)-($I27*$J27/1000))*$L27)*$V27*VLOOKUP('Project Information'!$D$44,'CBAT Lookups'!$A$23:$H$30,8)))","v":""},null,{"$f":"IF('Project Scope'!$C27=\"\",\"\",VLOOKUP($F27,'CBAT Lookups'!$B$17:$K$19,4))","v":""},{"$f":"IF('Project Scope'!$C27=\"\",\"\",VLOOKUP($F27,'CBAT Lookups'!$B$17:$K$19,5))","v":""},{"$f":"IF('Project Scope'!$C27=\"\",\"\",VLOOKUP($F27,'CBAT Lookups'!$B$17:$K$19,6))","v":""},{"$f":"IF('Project Scope'!$C27=\"\",\"\",VLOOKUP($F27,'CBAT Lookups'!$B$17:$K$19,7))","v":""},{"$f":"IF('Project Scope'!$C27=\"\",\"\",IF(SUMPRODUCT($P27:$S27,$AN27:$AQ27)=0,0,P27*AN27/SUMPRODUCT($P27:$S27,$AN27:$AQ27)))","v":""},{"$f":"IF('Project Scope'!$C27=\"\",\"\",IF(SUMPRODUCT($P27:$S27,$AN27:$AQ27)=0,0,Q27*AO27/SUMPRODUCT($P27:$S27,$AN27:$AQ27)))","v":""},{"$f":"IF('Project Scope'!$C27=\"\",\"\",IF(SUMPRODUCT($P27:$S27,$AN27:$AQ27)=0,0,R27*AP27/SUMPRODUCT($P27:$S27,$AN27:$AQ27)))","v":""},{"$f":"IF('Project Scope'!$C27=\"\",\"\",IF(SUMPRODUCT($P27:$S27,$AN27:$AQ27)=0,0,S27*AQ27/SUMPRODUCT($P27:$S27,$AN27:$AQ27)))","v":""},{"$f":"IF('Project Scope'!$C27=\"\",\"\",Benefits($AB27,$AD27,$AE27,$AG27,$AH27,$AI27,$AJ27,$AK27,$AL27,$AM27,$M27,$AR27,$AS27,$AT27,$AU27,$W27,$X27,$Y27,$Z27,$AA27,$E27))","v":""},"","","","","","","","",null,{"$f":"IF('Project Scope'!$C27=\"\",\"\",SUM('Project Scope'!$AT27,'Project Scope'!$AU27))","v":""},{"$f":"IF('Project Scope'!$C27=\"\",\"\",SUM('Project Scope'!$BG27, 'Project Scope'!$AR27,(IF(ISNUMBER('Project Scope'!$AS27),'Project Scope'!$AS27,0)*'Project Information'!$D$12)))","v":""},null,null,{"$f":"IF('Project Scope'!$C27=\"\",\"\",IF(COUNTIF('CBAT Lookups'!$B$5:$B$12,\"Controls-\"&CBAT!$D27)=1,VLOOKUP(\"Controls-\"&CBAT!$D27,'CBAT Lookups'!$B$5:$L$12,11),0))","v":""},{"$f":"IF('Project Scope'!$C27=\"\",\"\",IF(COUNTIF('CBAT Lookups'!$B$5:$B$12,\"Controls-\"&CBAT!$D27)=1,VLOOKUP(\"Controls-\"&CBAT!$D27,'CBAT Lookups'!$B$5:$K$12,2),0)*VLOOKUP($F27,'CBAT Lookups'!$B$17:$K$19,2))","v":""},{"$f":"IF('Project Scope'!$C27=\"\",\"\",IF(COUNTIF('CBAT Lookups'!$B$5:$B$12,\"Controls-\"&CBAT!$D27)=1,VLOOKUP(\"Controls-\"&CBAT!$D27,'CBAT Lookups'!$B$5:$K$12,3),0)*VLOOKUP($F27,'CBAT Lookups'!$B$17:$K$19,3))","v":""},{"$f":"IF('Project Scope'!$C27=\"\",\"\",IF(COUNTIF('CBAT Lookups'!$B$5:$B$12,\"Controls-\"&CBAT!$D27)=1,VLOOKUP(\"Controls-\"&CBAT!$D27,'CBAT Lookups'!$B$5:$K$12,4),0))","v":""},{"$f":"IF('Project Scope'!$C27=\"\",\"\",IF(COUNTIF('CBAT Lookups'!$B$5:$B$12,\"Controls-\"&CBAT!$D27)=1,VLOOKUP(\"Controls-\"&CBAT!$D27,'CBAT Lookups'!$B$5:$K$12,5),0))","v":""},{"$f":"IF('Project Scope'!$C27=\"\",\"\",IF(COUNTIF('CBAT Lookups'!$B$5:$B$12,\"Controls-\"&CBAT!$D27)=1,VLOOKUP(\"Controls-\"&CBAT!$D27,'CBAT Lookups'!$B$5:$K$12,6),0))","v":""},{"$f":"IF('Project Scope'!$C27=\"\",\"\",IF(COUNTIF('CBAT Lookups'!$B$5:$B$12,\"Controls-\"&CBAT!$D27)=1,VLOOKUP(\"Controls-\"&CBAT!$D27,'CBAT Lookups'!$B$5:$K$12,7),0))","v":""},{"$f":"IF('Project Scope'!$C27=\"\",\"\",IF(VLOOKUP($F27,'CBAT Lookups'!$B$17:$K$19,8)=\"W\",1,IF(COUNTIF('CBAT Lookups'!$B$5:$B$12,\"Controls-\"&CBAT!$D27)=1,VLOOKUP(\"Controls-\"&CBAT!$D27,'CBAT Lookups'!$B$5:$K$12,8),0)*VLOOKUP($F27,'CBAT Lookups'!$B$17:$K$19,8)))","v":""},{"$f":"IF('Project Scope'!$C27=\"\",\"\",IF(VLOOKUP($F27,'CBAT Lookups'!$B$17:$K$19,9)=\"W\",1,IF(COUNTIF('CBAT Lookups'!$B$5:$B$12,\"Controls-\"&CBAT!$D27)=1,VLOOKUP(\"Controls-\"&CBAT!$D27,'CBAT Lookups'!$B$5:$K$12,9),0)*VLOOKUP($F27,'CBAT Lookups'!$B$17:$K$19,9)))","v":""},{"$f":"IF('Project Scope'!$C27=\"\",\"\",IF(COUNTIF('CBAT Lookups'!$B$5:$B$12,\"Controls-\"&CBAT!$D27)=1,VLOOKUP(\"Controls-\"&CBAT!$D27,'CBAT Lookups'!$B$5:$K$12,10),0)*VLOOKUP($F27,'CBAT Lookups'!$B$17:$K$19,10))","v":""},{"$f":"IF('Project Scope'!$C27=\"\",\"\",VLOOKUP($C27,'CBAT Lookups'!$A$33:$B$57,2))","v":""},{"$f":"IF('Project Scope'!$C27=\"\",\"\",IF(COUNTIF('CBAT Lookups'!$B$5:$B$12,\"Controls-\"&CBAT!$D27)=1,VLOOKUP(\"Controls-\"&CBAT!$D27,'CBAT Lookups'!$B$5:$O$12,12),0))","v":""},{"$f":"IF('Project Scope'!$C27=\"\",\"\",IF(COUNTIF('CBAT Lookups'!$B$5:$B$12,\"Controls-\"&CBAT!$D27)=1,VLOOKUP(\"Controls-\"&CBAT!$D27,'CBAT Lookups'!$B$5:$O$12,13),0))","v":""},{"$f":"IF('Project Scope'!$C27=\"\",\"\",IF(COUNTIF('CBAT Lookups'!$B$5:$B$12,\"Controls-\"&CBAT!$D27)=1,VLOOKUP(\"Controls-\"&CBAT!$D27,'CBAT Lookups'!$B$5:$O$12,14),0))","v":""},{"$f":"IF('Project Scope'!$C27=\"\",\"\",'TRM Data'!$U$3)","v":""},{"$f":"IF('Project Scope'!$C27=\"\",\"\",'TRM Data'!$V$3)","v":""},{"$f":"IF('Project Scope'!$C27=\"\",\"\",IF($K27<=0,0,MAX(0,(IF(AND($I27>0,$J27>0),($I27*$J27)/1000,($G27*$H27)/1000)*$L27))*$BT27*$BR27)+($CD27/0.003412))","v":""},{"$f":"IF('Project Scope'!$C27=\"\",\"\",IF($K27<=0,0,MAX(0,IF(AND($I27>0,$J27>0),($I27*$J27)/1000,($G27*$H27)/1000))*$BQ27))","v":""},{"$f":"IF('Project Scope'!$C27=\"\",\"\",IF($K27<=0,0,MAX(0,IF(AND($I27>0,$J27>0),($I27*$J27)/1000,($G27*$H27)/1000))*$BK27))","v":""},{"$f":"IF('Project Scope'!$C27=\"\",\"\",IF($K27<=0,0,MAX(0,IF(AND($I27>0,$J27>0),($I27*$J27)/1000,($G27*$H27)/1000))*$BL27*$BQ27))","v":""},{"$f":"IF('Project Scope'!$C27=\"\",\"\",IF(OR($K27<=0,'Project Information'!$D$44=\"\"),0,-1*MAX(0,IF(AND($I27>0,$J27>0),($I27*$J27)/1000,($G27*$H27)/1000))*$BT27*$L27*$BS27*VLOOKUP('Project Information'!$D$44,'CBAT Lookups'!$A$23:$H$30,2)))","v":""},{"$f":"IF('Project Scope'!$C27=\"\",\"\",IF(OR($K27<=0,'Project Information'!$D$44=\"\"),0,-1*MAX(0,IF(AND($I27>0,$J27>0),($I27*$J27)/1000,($G27*$H27)/1000))*$BT27*$L27*$BS27*VLOOKUP('Project Information'!$D$44,'CBAT Lookups'!$A$23:$H$30,3)))","v":""},{"$f":"IF('Project Scope'!$C27=\"\",\"\",IF(OR($K27<=0,'Project Information'!$D$44=\"\"),0,-1*MAX(0,IF(AND($I27>0,$J27>0),($I27*$J27)/1000,($G27*$H27)/1000))*$BT27*$L27*$BS27*VLOOKUP('Project Information'!$D$44,'CBAT Lookups'!$A$23:$H$30,4)))","v":""},{"$f":"IF('Project Scope'!$C27=\"\",\"\",IF(OR($K27<=0,'Project Information'!$D$44=\"\"),0,-1*MAX(0,IF(AND($I27>0,$J27>0),($I27*$J27)/1000,($G27*$H27)/1000))*$BT27*$L27*$BS27*VLOOKUP('Project Information'!$D$44,'CBAT Lookups'!$A$23:$H$30,5)))","v":""},{"$f":"IF('Project Scope'!$C27=\"\",\"\",IF(OR($K27<=0,'Project Information'!$D$44=\"\"),0,-1*MAX(0,IF(AND($I27>0,$J27>0),($I27*$J27)/1000,($G27*$H27)/1000))*$BT27*$L27*$BS27*VLOOKUP('Project Information'!$D$44,'CBAT Lookups'!$A$23:$H$30,6)))","v":""},{"$f":"IF('Project Scope'!$C27=\"\",\"\",IF(OR($K27<=0,'Project Information'!$D$44=\"\"),0,-1*MAX(0,IF(AND($I27>0,$J27>0),($I27*$J27)/1000,($G27*$H27)/1000))*$BT27*$L27*$BS27*VLOOKUP('Project Information'!$D$44,'CBAT Lookups'!$A$23:$H$30,7)))","v":""},{"$f":"IF('Project Scope'!$C27=\"\",\"\",IF(OR($K27<=0,'Project Information'!$D$44=\"\"),0,-1*MAX(0,IF(AND($I27>0,$J27>0),($I27*$J27)/1000,($G27*$H27)/1000))*$BT27*$L27*$BS27*VLOOKUP('Project Information'!$D$44,'CBAT Lookups'!$A$23:$H$30,8)))","v":""},null,{"$f":"IF('Project Scope'!$C27=\"\",\"\",VLOOKUP($F27,'CBAT Lookups'!$B$17:$K$19,4))","v":""},{"$f":"IF('Project Scope'!$C27=\"\",\"\",VLOOKUP($F27,'CBAT Lookups'!$B$17:$K$19,5))","v":""},{"$f":"IF('Project Scope'!$C27=\"\",\"\",VLOOKUP($F27,'CBAT Lookups'!$B$17:$K$19,6))","v":""},{"$f":"IF('Project Scope'!$C27=\"\",\"\",VLOOKUP($F27,'CBAT Lookups'!$B$17:$K$19,7))","v":""},{"$f":"IF('Project Scope'!$C27=\"\",\"\",IF(SUMPRODUCT($BM27:$BP27,$CL27:$CO27)=0,0,BM27*CL27/SUMPRODUCT($BM27:$BP27,$CL27:$CO27)))","v":""},{"$f":"IF('Project Scope'!$C27=\"\",\"\",IF(SUMPRODUCT($BM27:$BP27,$CL27:$CO27)=0,0,BN27*CM27/SUMPRODUCT($BM27:$BP27,$CL27:$CO27)))","v":""},{"$f":"IF('Project Scope'!$C27=\"\",\"\",IF(SUMPRODUCT($BM27:$BP27,$CL27:$CO27)=0,0,BO27*CN27/SUMPRODUCT($BM27:$BP27,$CL27:$CO27)))","v":""},{"$f":"IF('Project Scope'!$C27=\"\",\"\",IF(SUMPRODUCT($BM27:$BP27,$CL27:$CO27)=0,0,BP27*CO27/SUMPRODUCT($BM27:$BP27,$CL27:$CO27)))","v":""},{"$f":"IF('Project Scope'!$C27=\"\",\"\",Benefits($BZ27,$CB27,$CC27,$CE27,$CF27,$CG27,$CH27,$CI27,$CJ27,$CK27,$BJ27,$CP27,$CQ27,$CR27,$CS27,$BU27,$BV27,$BW27,$BX27,$BY27,$E27))","v":""},"","","","","","","","",null,{"$f":"IF('Project Scope'!$C27=\"\",\"\",SUM('Project Scope'!$BB27,'Project Scope'!$BC27))","v":""},{"$f":"IF('Project Scope'!$C27=\"\",\"\",SUM('Project Scope'!$BH27, 'Project Scope'!$AZ27,(IF(ISNUMBER('Project Scope'!$BA27),'Project Scope'!$BA27,0)*'Project Information'!$D$12)))","v":""},null,null,{"$f":"IF('Project Scope'!$C27=\"\",\"\",IF($J27<=0,0,(SUMPRODUCT($AV27:$BC27,--($AV27:$BC27>0))+$BE27)*$DK27/((-SUMPRODUCT($AV27:$BC27,--($AV27:$BC27<0))+$BG27+$BH27+$BI27)*$DK27)))","v":""},{"$f":"IF('Project Scope'!$C27=\"\",\"\",IF($K27<=0,0,(SUMPRODUCT($CT27:$DA27,--($CT27:$DA27>0))+$DC27)*$DK27/((-SUMPRODUCT($CT27:$DA27,--($CT27:$DA27<0))+$DE27+$DF27+$DG27)*$DK27)))","v":""},{"$f":"IF('Project Scope'!$C27=\"\",\"\",IF(AND($J27<=0,$K27<=0),0,(SUMPRODUCT($AV27:$BC27,--($AV27:$BC27>0))+$BE27+SUMPRODUCT($CT27:$DA27,--($CT27:$DA27>0))+$DC27)*$DK27/((-SUMPRODUCT($AV27:$BC27,--($AV27:$BC27<0))+$BG27+$BH27+$BI27-SUMPRODUCT($CT27:$DA27,--($CT27:$DA27<0))+$DE27+$DF27+$DG27)*$DK27)))","v":""},{"$f":"IF('Project Scope'!$C27=\"\",\"\",IF(NetOrGross=\"Net\",(1-Z27+AA27),1))","v":""}]
[{"$f":"'Project Scope'!$B28","v":21},{"$f":"IF('Project Scope'!$C28=\"\",\"\",'Project Scope'!$C28)","v":""},{"$f":"IF('Project Scope'!$C28=\"\",\"\",'Project Scope'!$H28)","v":""},{"$f":"IF(ISNUMBER(SEARCH(\"Bay\",'Project Scope'!$Q28)),\"Bay\",IF('Project Scope'!C28=\"\",\"\",'Project Scope'!E28))","v":""},{"$f":"IF('Project Scope'!$C28=\"\",\"\",\"Com\")","v":""},{"$f":"IF('Project Scope'!$C28=\"\",\"\",'Project Scope'!$L28)","v":""},{"$f":"IF('Project Scope'!$C28=\"\",\"\",IF('Project Scope'!$CJ28=\"\",0,'Project Scope'!$CJ28))","v":""},{"$f":"IF('Project Scope'!$C28=\"\",\"\",IF('Project Scope'!$N28=\"\",0,'Project Scope'!$N28))","v":""},{"$f":"IF('Project Scope'!$C28=\"\",\"\",IF('Project Scope'!$CK28=\"\",0,'Project Scope'!$CK28))","v":""},{"$f":"IF('Project Scope'!$C28=\"\",\"\",IF('Project Scope'!$AO28=\"\",0,'Project Scope'!$AO28))","v":""},{"$f":"IF('Project Scope'!$C28=\"\",\"\",IF('Project Scope'!$AX28=\"\",0,'Project Scope'!$AX28))","v":""},{"$f":"IF('Project Scope'!$C28=\"\",\"\",IF('Project Scope'!$M28=\"\",0,'Project Scope'!$M28))","v":""},{"$f":"IF('Project Scope'!$C28=\"\",\"\",IF(COUNTIF('CBAT Lookups'!$B$5:$B$12,\"Fixtures-\"&CBAT!$D28)=1,VLOOKUP(\"Fixtures-\"&CBAT!$D28,'CBAT Lookups'!$B$5:$L$12,11),0))","v":""},{"$f":"IF('Project Scope'!$C28=\"\",\"\",(IF(COUNTIF('CBAT Lookups'!$B$5:$B$12,\"Fixtures-\"&CBAT!$D28)=1,VLOOKUP(\"Fixtures-\"&CBAT!$D28,'CBAT Lookups'!$B$5:$K$12,2),0))*VLOOKUP($F28,'CBAT Lookups'!$B$17:$K$19,2))","v":""},{"$f":"IF('Project Scope'!$C28=\"\",\"\",(IF(COUNTIF('CBAT Lookups'!$B$5:$B$12,\"Fixtures-\"&CBAT!$D28)=1,VLOOKUP(\"Fixtures-\"&CBAT!$D28,'CBAT Lookups'!$B$5:$K$12,3),0))*VLOOKUP($F28,'CBAT Lookups'!$B$17:$K$19,3))","v":""},{"$f":"IF('Project Scope'!$C28=\"\",\"\",(IF(COUNTIF('CBAT Lookups'!$B$5:$B$12,\"Fixtures-\"&CBAT!$D28)=1,VLOOKUP(\"Fixtures-\"&CBAT!$D28,'CBAT Lookups'!$B$5:$K$12,4),0)))","v":""},{"$f":"IF('Project Scope'!$C28=\"\",\"\",(IF(COUNTIF('CBAT Lookups'!$B$5:$B$12,\"Fixtures-\"&CBAT!$D28)=1,VLOOKUP(\"Fixtures-\"&CBAT!$D28,'CBAT Lookups'!$B$5:$K$12,5),0)))","v":""},{"$f":"IF('Project Scope'!$C28=\"\",\"\",(IF(COUNTIF('CBAT Lookups'!$B$5:$B$12,\"Fixtures-\"&CBAT!$D28)=1,VLOOKUP(\"Fixtures-\"&CBAT!$D28,'CBAT Lookups'!$B$5:$K$12,6),0)))","v":""},{"$f":"IF('Project Scope'!$C28=\"\",\"\",IF(COUNTIF('CBAT Lookups'!$B$5:$B$12,\"Fixtures-\"&CBAT!$D28)=1,VLOOKUP(\"Fixtures-\"&CBAT!$D28,'CBAT Lookups'!$B$5:$K$12,7),0))","v":""},{"$f":"IF('Project Scope'!$C28=\"\",\"\",IF(VLOOKUP($F28,'CBAT Lookups'!$B$17:$K$19,8)=\"W\",1,IF(COUNTIF('CBAT Lookups'!$B$5:$B$12,\"Fixtures-\"&CBAT!$D28)=1,VLOOKUP(\"Fixtures-\"&CBAT!$D28,'CBAT Lookups'!$B$5:$K$12,8),0)*VLOOKUP($F28,'CBAT Lookups'!$B$17:$K$19,8)))","v":""},{"$f":"IF('Project Scope'!$C28=\"\",\"\",IF(VLOOKUP($F28,'CBAT Lookups'!$B$17:$K$19,9)=\"W\",1,IF(COUNTIF('CBAT Lookups'!$B$5:$B$12,\"Fixtures-\"&CBAT!$D28)=1,VLOOKUP(\"Fixtures-\"&CBAT!$D28,'CBAT Lookups'!$B$5:$K$12,9),0)*VLOOKUP($F28,'CBAT Lookups'!$B$17:$K$19,9)))","v":""},{"$f":"IF('Project Scope'!$C28=\"\",\"\",IF(COUNTIF('CBAT Lookups'!$B$5:$B$12,\"Fixtures-\"&CBAT!$D28)=1,VLOOKUP(\"Fixtures-\"&CBAT!$D28,'CBAT Lookups'!$B$5:$K$12,10),0)*VLOOKUP($F28,'CBAT Lookups'!$B$17:$K$19,10))","v":""},{"$f":"IF('Project Scope'!$C28=\"\",\"\",IF(COUNTIF('CBAT Lookups'!$B$5:$B$12,\"Fixtures-\"&CBAT!$D28)=1,VLOOKUP(\"Fixtures-\"&CBAT!$D28,'CBAT Lookups'!$B$5:$O$12,12),0))","v":""},{"$f":"IF('Project Scope'!$C28=\"\",\"\",IF(COUNTIF('CBAT Lookups'!$B$5:$B$12,\"Fixtures-\"&CBAT!$D28)=1,VLOOKUP(\"Fixtures-\"&CBAT!$D28,'CBAT Lookups'!$B$5:$O$12,13),0))","v":""},{"$f":"IF('Project Scope'!$C28=\"\",\"\",IF(COUNTIF('CBAT Lookups'!$B$5:$B$12,\"Fixtures-\"&CBAT!$D28)=1,VLOOKUP(\"Fixtures-\"&CBAT!$D28,'CBAT Lookups'!$B$5:$O$12,14),0))","v":""},{"$f":"IF('Project Scope'!$C28=\"\",\"\",'TRM Data'!$U$3)","v":""},{"$f":"IF('Project Scope'!$C28=\"\",\"\",'TRM Data'!$V$3)","v":""},{"$f":"IF('Project Scope'!$C28=\"\",\"\",IF($J28<=0,0,MAX(0,(($G28*$H28/1000)-($I28*$J28/1000))*$L28)*$U28)+($AF28/0.003412))","v":""},{"$f":"IF('Project Scope'!$C28=\"\",\"\",IF($J28<=0,0,MAX(0,(($G28*$H28/1000)-($I28*$J28/1000)))*$T28))","v":""},{"$f":"IF('Project Scope'!$C28=\"\",\"\",IF($J28<=0,0,MAX(0,(($G28*$H28/1000)-($I28*$J28/1000))*$N28)))","v":""},{"$f":"IF('Project Scope'!$C28=\"\",\"\",IF($J28<=0,0,MAX(0,(($G28*$H28/1000)-($I28*$J28/1000))*$O28)*$T28))","v":""},{"$f":"IF('Project Scope'!$C28=\"\",\"\",IF(OR($J28<=0,'Project Information'!$D$44=\"\"),0,-1*MAX(0,(($G28*$H28/1000)-($I28*$J28/1000))*$L28)*$V28*VLOOKUP('Project Information'!$D$44,'CBAT Lookups'!$A$23:$H$30,2)))","v":""},{"$f":"IF('Project Scope'!$C28=\"\",\"\",IF(OR($J28<=0,'Project Information'!$D$44=\"\"),0,-1*MAX(0,(($G28*$H28/1000)-($I28*$J28/1000))*$L28)*$V28*VLOOKUP('Project Information'!$D$44,'CBAT Lookups'!$A$23:$H$30,3)))","v":""},{"$f":"IF('Project Scope'!$C28=\"\",\"\",IF(OR($J28<=0,'Project Information'!$D$44=\"\"),0,-1*MAX(0,(($G28*$H28/1000)-($I28*$J28/1000))*$L28)*$V28*VLOOKUP('Project Information'!$D$44,'CBAT Lookups'!$A$23:$H$30,4)))","v":""},{"$f":"IF('Project Scope'!$C28=\"\",\"\",IF(OR($J28<=0,'Project Information'!$D$44=\"\"),0,-1*MAX(0,(($G28*$H28/1000)-($I28*$J28/1000))*$L28)*$V28*VLOOKUP('Project Information'!$D$44,'CBAT Lookups'!$A$23:$H$30,5)))","v":""},{"$f":"IF('Project Scope'!$C28=\"\",\"\",IF(OR($J28<=0,'Project Information'!$D$44=\"\"),0,-1*MAX(0,(($G28*$H28/1000)-($I28*$J28/1000))*$L28)*$V28*VLOOKUP('Project Information'!$D$44,'CBAT Lookups'!$A$23:$H$30,6)))","v":""},{"$f":"IF('Project Scope'!$C28=\"\",\"\",IF(OR($J28<=0,'Project Information'!$D$44=\"\"),0,-1*MAX(0,(($G28*$H28/1000)-($I28*$J28/1000))*$L28)*$V28*VLOOKUP('Project Information'!$D$44,'CBAT Lookups'!$A$23:$H$30,7)))","v":""},{"$f":"IF('Project Scope'!$C28=\"\",\"\",IF(OR($J28<=0,'Project Information'!$D$44=\"\"),0,-1*MAX(0,(($G28*$H28/1000)-($I28*$J28/1000))*$L28)*$V28*VLOOKUP('Project Information'!$D$44,'CBAT Lookups'!$A$23:$H$30,8)))","v":""},null,{"$f":"IF('Project Scope'!$C28=\"\",\"\",VLOOKUP($F28,'CBAT Lookups'!$B$17:$K$19,4))","v":""},{"$f":"IF('Project Scope'!$C28=\"\",\"\",VLOOKUP($F28,'CBAT Lookups'!$B$17:$K$19,5))","v":""},{"$f":"IF('Project Scope'!$C28=\"\",\"\",VLOOKUP($F28,'CBAT Lookups'!$B$17:$K$19,6))","v":""},{"$f":"IF('Project Scope'!$C28=\"\",\"\",VLOOKUP($F28,'CBAT Lookups'!$B$17:$K$19,7))","v":""},{"$f":"IF('Project Scope'!$C28=\"\",\"\",IF(SUMPRODUCT($P28:$S28,$AN28:$AQ28)=0,0,P28*AN28/SUMPRODUCT($P28:$S28,$AN28:$AQ28)))","v":""},{"$f":"IF('Project Scope'!$C28=\"\",\"\",IF(SUMPRODUCT($P28:$S28,$AN28:$AQ28)=0,0,Q28*AO28/SUMPRODUCT($P28:$S28,$AN28:$AQ28)))","v":""},{"$f":"IF('Project Scope'!$C28=\"\",\"\",IF(SUMPRODUCT($P28:$S28,$AN28:$AQ28)=0,0,R28*AP28/SUMPRODUCT($P28:$S28,$AN28:$AQ28)))","v":""},{"$f":"IF('Project Scope'!$C28=\"\",\"\",IF(SUMPRODUCT($P28:$S28,$AN28:$AQ28)=0,0,S28*AQ28/SUMPRODUCT($P28:$S28,$AN28:$AQ28)))","v":""},{"$f":"IF('Project Scope'!$C28=\"\",\"\",Benefits($AB28,$AD28,$AE28,$AG28,$AH28,$AI28,$AJ28,$AK28,$AL28,$AM28,$M28,$AR28,$AS28,$AT28,$AU28,$W28,$X28,$Y28,$Z28,$AA28,$E28))","v":""},"","","","","","","","",null,{"$f":"IF('Project Scope'!$C28=\"\",\"\",SUM('Project Scope'!$AT28,'Project Scope'!$AU28))","v":""},{"$f":"IF('Project Scope'!$C28=\"\",\"\",SUM('Project Scope'!$BG28, 'Project Scope'!$AR28,(IF(ISNUMBER('Project Scope'!$AS28),'Project Scope'!$AS28,0)*'Project Information'!$D$12)))","v":""},null,null,{"$f":"IF('Project Scope'!$C28=\"\",\"\",IF(COUNTIF('CBAT Lookups'!$B$5:$B$12,\"Controls-\"&CBAT!$D28)=1,VLOOKUP(\"Controls-\"&CBAT!$D28,'CBAT Lookups'!$B$5:$L$12,11),0))","v":""},{"$f":"IF('Project Scope'!$C28=\"\",\"\",IF(COUNTIF('CBAT Lookups'!$B$5:$B$12,\"Controls-\"&CBAT!$D28)=1,VLOOKUP(\"Controls-\"&CBAT!$D28,'CBAT Lookups'!$B$5:$K$12,2),0)*VLOOKUP($F28,'CBAT Lookups'!$B$17:$K$19,2))","v":""},{"$f":"IF('Project Scope'!$C28=\"\",\"\",IF(COUNTIF('CBAT Lookups'!$B$5:$B$12,\"Controls-\"&CBAT!$D28)=1,VLOOKUP(\"Controls-\"&CBAT!$D28,'CBAT Lookups'!$B$5:$K$12,3),0)*VLOOKUP($F28,'CBAT Lookups'!$B$17:$K$19,3))","v":""},{"$f":"IF('Project Scope'!$C28=\"\",\"\",IF(COUNTIF('CBAT Lookups'!$B$5:$B$12,\"Controls-\"&CBAT!$D28)=1,VLOOKUP(\"Controls-\"&CBAT!$D28,'CBAT Lookups'!$B$5:$K$12,4),0))","v":""},{"$f":"IF('Project Scope'!$C28=\"\",\"\",IF(COUNTIF('CBAT Lookups'!$B$5:$B$12,\"Controls-\"&CBAT!$D28)=1,VLOOKUP(\"Controls-\"&CBAT!$D28,'CBAT Lookups'!$B$5:$K$12,5),0))","v":""},{"$f":"IF('Project Scope'!$C28=\"\",\"\",IF(COUNTIF('CBAT Lookups'!$B$5:$B$12,\"Controls-\"&CBAT!$D28)=1,VLOOKUP(\"Controls-\"&CBAT!$D28,'CBAT Lookups'!$B$5:$K$12,6),0))","v":""},{"$f":"IF('Project Scope'!$C28=\"\",\"\",IF(COUNTIF('CBAT Lookups'!$B$5:$B$12,\"Controls-\"&CBAT!$D28)=1,VLOOKUP(\"Controls-\"&CBAT!$D28,'CBAT Lookups'!$B$5:$K$12,7),0))","v":""},{"$f":"IF('Project Scope'!$C28=\"\",\"\",IF(VLOOKUP($F28,'CBAT Lookups'!$B$17:$K$19,8)=\"W\",1,IF(COUNTIF('CBAT Lookups'!$B$5:$B$12,\"Controls-\"&CBAT!$D28)=1,VLOOKUP(\"Controls-\"&CBAT!$D28,'CBAT Lookups'!$B$5:$K$12,8),0)*VLOOKUP($F28,'CBAT Lookups'!$B$17:$K$19,8)))","v":""},{"$f":"IF('Project Scope'!$C28=\"\",\"\",IF(VLOOKUP($F28,'CBAT Lookups'!$B$17:$K$19,9)=\"W\",1,IF(COUNTIF('CBAT Lookups'!$B$5:$B$12,\"Controls-\"&CBAT!$D28)=1,VLOOKUP(\"Controls-\"&CBAT!$D28,'CBAT Lookups'!$B$5:$K$12,9),0)*VLOOKUP($F28,'CBAT Lookups'!$B$17:$K$19,9)))","v":""},{"$f":"IF('Project Scope'!$C28=\"\",\"\",IF(COUNTIF('CBAT Lookups'!$B$5:$B$12,\"Controls-\"&CBAT!$D28)=1,VLOOKUP(\"Controls-\"&CBAT!$D28,'CBAT Lookups'!$B$5:$K$12,10),0)*VLOOKUP($F28,'CBAT Lookups'!$B$17:$K$19,10))","v":""},{"$f":"IF('Project Scope'!$C28=\"\",\"\",VLOOKUP($C28,'CBAT Lookups'!$A$33:$B$57,2))","v":""},{"$f":"IF('Project Scope'!$C28=\"\",\"\",IF(COUNTIF('CBAT Lookups'!$B$5:$B$12,\"Controls-\"&CBAT!$D28)=1,VLOOKUP(\"Controls-\"&CBAT!$D28,'CBAT Lookups'!$B$5:$O$12,12),0))","v":""},{"$f":"IF('Project Scope'!$C28=\"\",\"\",IF(COUNTIF('CBAT Lookups'!$B$5:$B$12,\"Controls-\"&CBAT!$D28)=1,VLOOKUP(\"Controls-\"&CBAT!$D28,'CBAT Lookups'!$B$5:$O$12,13),0))","v":""},{"$f":"IF('Project Scope'!$C28=\"\",\"\",IF(COUNTIF('CBAT Lookups'!$B$5:$B$12,\"Controls-\"&CBAT!$D28)=1,VLOOKUP(\"Controls-\"&CBAT!$D28,'CBAT Lookups'!$B$5:$O$12,14),0))","v":""},{"$f":"IF('Project Scope'!$C28=\"\",\"\",'TRM Data'!$U$3)","v":""},{"$f":"IF('Project Scope'!$C28=\"\",\"\",'TRM Data'!$V$3)","v":""},{"$f":"IF('Project Scope'!$C28=\"\",\"\",IF($K28<=0,0,MAX(0,(IF(AND($I28>0,$J28>0),($I28*$J28)/1000,($G28*$H28)/1000)*$L28))*$BT28*$BR28)+($CD28/0.003412))","v":""},{"$f":"IF('Project Scope'!$C28=\"\",\"\",IF($K28<=0,0,MAX(0,IF(AND($I28>0,$J28>0),($I28*$J28)/1000,($G28*$H28)/1000))*$BQ28))","v":""},{"$f":"IF('Project Scope'!$C28=\"\",\"\",IF($K28<=0,0,MAX(0,IF(AND($I28>0,$J28>0),($I28*$J28)/1000,($G28*$H28)/1000))*$BK28))","v":""},{"$f":"IF('Project Scope'!$C28=\"\",\"\",IF($K28<=0,0,MAX(0,IF(AND($I28>0,$J28>0),($I28*$J28)/1000,($G28*$H28)/1000))*$BL28*$BQ28))","v":""},{"$f":"IF('Project Scope'!$C28=\"\",\"\",IF(OR($K28<=0,'Project Information'!$D$44=\"\"),0,-1*MAX(0,IF(AND($I28>0,$J28>0),($I28*$J28)/1000,($G28*$H28)/1000))*$BT28*$L28*$BS28*VLOOKUP('Project Information'!$D$44,'CBAT Lookups'!$A$23:$H$30,2)))","v":""},{"$f":"IF('Project Scope'!$C28=\"\",\"\",IF(OR($K28<=0,'Project Information'!$D$44=\"\"),0,-1*MAX(0,IF(AND($I28>0,$J28>0),($I28*$J28)/1000,($G28*$H28)/1000))*$BT28*$L28*$BS28*VLOOKUP('Project Information'!$D$44,'CBAT Lookups'!$A$23:$H$30,3)))","v":""},{"$f":"IF('Project Scope'!$C28=\"\",\"\",IF(OR($K28<=0,'Project Information'!$D$44=\"\"),0,-1*MAX(0,IF(AND($I28>0,$J28>0),($I28*$J28)/1000,($G28*$H28)/1000))*$BT28*$L28*$BS28*VLOOKUP('Project Information'!$D$44,'CBAT Lookups'!$A$23:$H$30,4)))","v":""},{"$f":"IF('Project Scope'!$C28=\"\",\"\",IF(OR($K28<=0,'Project Information'!$D$44=\"\"),0,-1*MAX(0,IF(AND($I28>0,$J28>0),($I28*$J28)/1000,($G28*$H28)/1000))*$BT28*$L28*$BS28*VLOOKUP('Project Information'!$D$44,'CBAT Lookups'!$A$23:$H$30,5)))","v":""},{"$f":"IF('Project Scope'!$C28=\"\",\"\",IF(OR($K28<=0,'Project Information'!$D$44=\"\"),0,-1*MAX(0,IF(AND($I28>0,$J28>0),($I28*$J28)/1000,($G28*$H28)/1000))*$BT28*$L28*$BS28*VLOOKUP('Project Information'!$D$44,'CBAT Lookups'!$A$23:$H$30,6)))","v":""},{"$f":"IF('Project Scope'!$C28=\"\",\"\",IF(OR($K28<=0,'Project Information'!$D$44=\"\"),0,-1*MAX(0,IF(AND($I28>0,$J28>0),($I28*$J28)/1000,($G28*$H28)/1000))*$BT28*$L28*$BS28*VLOOKUP('Project Information'!$D$44,'CBAT Lookups'!$A$23:$H$30,7)))","v":""},{"$f":"IF('Project Scope'!$C28=\"\",\"\",IF(OR($K28<=0,'Project Information'!$D$44=\"\"),0,-1*MAX(0,IF(AND($I28>0,$J28>0),($I28*$J28)/1000,($G28*$H28)/1000))*$BT28*$L28*$BS28*VLOOKUP('Project Information'!$D$44,'CBAT Lookups'!$A$23:$H$30,8)))","v":""},null,{"$f":"IF('Project Scope'!$C28=\"\",\"\",VLOOKUP($F28,'CBAT Lookups'!$B$17:$K$19,4))","v":""},{"$f":"IF('Project Scope'!$C28=\"\",\"\",VLOOKUP($F28,'CBAT Lookups'!$B$17:$K$19,5))","v":""},{"$f":"IF('Project Scope'!$C28=\"\",\"\",VLOOKUP($F28,'CBAT Lookups'!$B$17:$K$19,6))","v":""},{"$f":"IF('Project Scope'!$C28=\"\",\"\",VLOOKUP($F28,'CBAT Lookups'!$B$17:$K$19,7))","v":""},{"$f":"IF('Project Scope'!$C28=\"\",\"\",IF(SUMPRODUCT($BM28:$BP28,$CL28:$CO28)=0,0,BM28*CL28/SUMPRODUCT($BM28:$BP28,$CL28:$CO28)))","v":""},{"$f":"IF('Project Scope'!$C28=\"\",\"\",IF(SUMPRODUCT($BM28:$BP28,$CL28:$CO28)=0,0,BN28*CM28/SUMPRODUCT($BM28:$BP28,$CL28:$CO28)))","v":""},{"$f":"IF('Project Scope'!$C28=\"\",\"\",IF(SUMPRODUCT($BM28:$BP28,$CL28:$CO28)=0,0,BO28*CN28/SUMPRODUCT($BM28:$BP28,$CL28:$CO28)))","v":""},{"$f":"IF('Project Scope'!$C28=\"\",\"\",IF(SUMPRODUCT($BM28:$BP28,$CL28:$CO28)=0,0,BP28*CO28/SUMPRODUCT($BM28:$BP28,$CL28:$CO28)))","v":""},{"$f":"IF('Project Scope'!$C28=\"\",\"\",Benefits($BZ28,$CB28,$CC28,$CE28,$CF28,$CG28,$CH28,$CI28,$CJ28,$CK28,$BJ28,$CP28,$CQ28,$CR28,$CS28,$BU28,$BV28,$BW28,$BX28,$BY28,$E28))","v":""},"","","","","","","","",null,{"$f":"IF('Project Scope'!$C28=\"\",\"\",SUM('Project Scope'!$BB28,'Project Scope'!$BC28))","v":""},{"$f":"IF('Project Scope'!$C28=\"\",\"\",SUM('Project Scope'!$BH28, 'Project Scope'!$AZ28,(IF(ISNUMBER('Project Scope'!$BA28),'Project Scope'!$BA28,0)*'Project Information'!$D$12)))","v":""},null,null,{"$f":"IF('Project Scope'!$C28=\"\",\"\",IF($J28<=0,0,(SUMPRODUCT($AV28:$BC28,--($AV28:$BC28>0))+$BE28)*$DK28/((-SUMPRODUCT($AV28:$BC28,--($AV28:$BC28<0))+$BG28+$BH28+$BI28)*$DK28)))","v":""},{"$f":"IF('Project Scope'!$C28=\"\",\"\",IF($K28<=0,0,(SUMPRODUCT($CT28:$DA28,--($CT28:$DA28>0))+$DC28)*$DK28/((-SUMPRODUCT($CT28:$DA28,--($CT28:$DA28<0))+$DE28+$DF28+$DG28)*$DK28)))","v":""},{"$f":"IF('Project Scope'!$C28=\"\",\"\",IF(AND($J28<=0,$K28<=0),0,(SUMPRODUCT($AV28:$BC28,--($AV28:$BC28>0))+$BE28+SUMPRODUCT($CT28:$DA28,--($CT28:$DA28>0))+$DC28)*$DK28/((-SUMPRODUCT($AV28:$BC28,--($AV28:$BC28<0))+$BG28+$BH28+$BI28-SUMPRODUCT($CT28:$DA28,--($CT28:$DA28<0))+$DE28+$DF28+$DG28)*$DK28)))","v":""},{"$f":"IF('Project Scope'!$C28=\"\",\"\",IF(NetOrGross=\"Net\",(1-Z28+AA28),1))","v":""}]
[{"$f":"'Project Scope'!$B29","v":22},{"$f":"IF('Project Scope'!$C29=\"\",\"\",'Project Scope'!$C29)","v":""},{"$f":"IF('Project Scope'!$C29=\"\",\"\",'Project Scope'!$H29)","v":""},{"$f":"IF(ISNUMBER(SEARCH(\"Bay\",'Project Scope'!$Q29)),\"Bay\",IF('Project Scope'!C29=\"\",\"\",'Project Scope'!E29))","v":""},{"$f":"IF('Project Scope'!$C29=\"\",\"\",\"Com\")","v":""},{"$f":"IF('Project Scope'!$C29=\"\",\"\",'Project Scope'!$L29)","v":""},{"$f":"IF('Project Scope'!$C29=\"\",\"\",IF('Project Scope'!$CJ29=\"\",0,'Project Scope'!$CJ29))","v":""},{"$f":"IF('Project Scope'!$C29=\"\",\"\",IF('Project Scope'!$N29=\"\",0,'Project Scope'!$N29))","v":""},{"$f":"IF('Project Scope'!$C29=\"\",\"\",IF('Project Scope'!$CK29=\"\",0,'Project Scope'!$CK29))","v":""},{"$f":"IF('Project Scope'!$C29=\"\",\"\",IF('Project Scope'!$AO29=\"\",0,'Project Scope'!$AO29))","v":""},{"$f":"IF('Project Scope'!$C29=\"\",\"\",IF('Project Scope'!$AX29=\"\",0,'Project Scope'!$AX29))","v":""},{"$f":"IF('Project Scope'!$C29=\"\",\"\",IF('Project Scope'!$M29=\"\",0,'Project Scope'!$M29))","v":""},{"$f":"IF('Project Scope'!$C29=\"\",\"\",IF(COUNTIF('CBAT Lookups'!$B$5:$B$12,\"Fixtures-\"&CBAT!$D29)=1,VLOOKUP(\"Fixtures-\"&CBAT!$D29,'CBAT Lookups'!$B$5:$L$12,11),0))","v":""},{"$f":"IF('Project Scope'!$C29=\"\",\"\",(IF(COUNTIF('CBAT Lookups'!$B$5:$B$12,\"Fixtures-\"&CBAT!$D29)=1,VLOOKUP(\"Fixtures-\"&CBAT!$D29,'CBAT Lookups'!$B$5:$K$12,2),0))*VLOOKUP($F29,'CBAT Lookups'!$B$17:$K$19,2))","v":""},{"$f":"IF('Project Scope'!$C29=\"\",\"\",(IF(COUNTIF('CBAT Lookups'!$B$5:$B$12,\"Fixtures-\"&CBAT!$D29)=1,VLOOKUP(\"Fixtures-\"&CBAT!$D29,'CBAT Lookups'!$B$5:$K$12,3),0))*VLOOKUP($F29,'CBAT Lookups'!$B$17:$K$19,3))","v":""},{"$f":"IF('Project Scope'!$C29=\"\",\"\",(IF(COUNTIF('CBAT Lookups'!$B$5:$B$12,\"Fixtures-\"&CBAT!$D29)=1,VLOOKUP(\"Fixtures-\"&CBAT!$D29,'CBAT Lookups'!$B$5:$K$12,4),0)))","v":""},{"$f":"IF('Project Scope'!$C29=\"\",\"\",(IF(COUNTIF('CBAT Lookups'!$B$5:$B$12,\"Fixtures-\"&CBAT!$D29)=1,VLOOKUP(\"Fixtures-\"&CBAT!$D29,'CBAT Lookups'!$B$5:$K$12,5),0)))","v":""},{"$f":"IF('Project Scope'!$C29=\"\",\"\",(IF(COUNTIF('CBAT Lookups'!$B$5:$B$12,\"Fixtures-\"&CBAT!$D29)=1,VLOOKUP(\"Fixtures-\"&CBAT!$D29,'CBAT Lookups'!$B$5:$K$12,6),0)))","v":""},{"$f":"IF('Project Scope'!$C29=\"\",\"\",IF(COUNTIF('CBAT Lookups'!$B$5:$B$12,\"Fixtures-\"&CBAT!$D29)=1,VLOOKUP(\"Fixtures-\"&CBAT!$D29,'CBAT Lookups'!$B$5:$K$12,7),0))","v":""},{"$f":"IF('Project Scope'!$C29=\"\",\"\",IF(VLOOKUP($F29,'CBAT Lookups'!$B$17:$K$19,8)=\"W\",1,IF(COUNTIF('CBAT Lookups'!$B$5:$B$12,\"Fixtures-\"&CBAT!$D29)=1,VLOOKUP(\"Fixtures-\"&CBAT!$D29,'CBAT Lookups'!$B$5:$K$12,8),0)*VLOOKUP($F29,'CBAT Lookups'!$B$17:$K$19,8)))","v":""},{"$f":"IF('Project Scope'!$C29=\"\",\"\",IF(VLOOKUP($F29,'CBAT Lookups'!$B$17:$K$19,9)=\"W\",1,IF(COUNTIF('CBAT Lookups'!$B$5:$B$12,\"Fixtures-\"&CBAT!$D29)=1,VLOOKUP(\"Fixtures-\"&CBAT!$D29,'CBAT Lookups'!$B$5:$K$12,9),0)*VLOOKUP($F29,'CBAT Lookups'!$B$17:$K$19,9)))","v":""},{"$f":"IF('Project Scope'!$C29=\"\",\"\",IF(COUNTIF('CBAT Lookups'!$B$5:$B$12,\"Fixtures-\"&CBAT!$D29)=1,VLOOKUP(\"Fixtures-\"&CBAT!$D29,'CBAT Lookups'!$B$5:$K$12,10),0)*VLOOKUP($F29,'CBAT Lookups'!$B$17:$K$19,10))","v":""},{"$f":"IF('Project Scope'!$C29=\"\",\"\",IF(COUNTIF('CBAT Lookups'!$B$5:$B$12,\"Fixtures-\"&CBAT!$D29)=1,VLOOKUP(\"Fixtures-\"&CBAT!$D29,'CBAT Lookups'!$B$5:$O$12,12),0))","v":""},{"$f":"IF('Project Scope'!$C29=\"\",\"\",IF(COUNTIF('CBAT Lookups'!$B$5:$B$12,\"Fixtures-\"&CBAT!$D29)=1,VLOOKUP(\"Fixtures-\"&CBAT!$D29,'CBAT Lookups'!$B$5:$O$12,13),0))","v":""},{"$f":"IF('Project Scope'!$C29=\"\",\"\",IF(COUNTIF('CBAT Lookups'!$B$5:$B$12,\"Fixtures-\"&CBAT!$D29)=1,VLOOKUP(\"Fixtures-\"&CBAT!$D29,'CBAT Lookups'!$B$5:$O$12,14),0))","v":""},{"$f":"IF('Project Scope'!$C29=\"\",\"\",'TRM Data'!$U$3)","v":""},{"$f":"IF('Project Scope'!$C29=\"\",\"\",'TRM Data'!$V$3)","v":""},{"$f":"IF('Project Scope'!$C29=\"\",\"\",IF($J29<=0,0,MAX(0,(($G29*$H29/1000)-($I29*$J29/1000))*$L29)*$U29)+($AF29/0.003412))","v":""},{"$f":"IF('Project Scope'!$C29=\"\",\"\",IF($J29<=0,0,MAX(0,(($G29*$H29/1000)-($I29*$J29/1000)))*$T29))","v":""},{"$f":"IF('Project Scope'!$C29=\"\",\"\",IF($J29<=0,0,MAX(0,(($G29*$H29/1000)-($I29*$J29/1000))*$N29)))","v":""},{"$f":"IF('Project Scope'!$C29=\"\",\"\",IF($J29<=0,0,MAX(0,(($G29*$H29/1000)-($I29*$J29/1000))*$O29)*$T29))","v":""},{"$f":"IF('Project Scope'!$C29=\"\",\"\",IF(OR($J29<=0,'Project Information'!$D$44=\"\"),0,-1*MAX(0,(($G29*$H29/1000)-($I29*$J29/1000))*$L29)*$V29*VLOOKUP('Project Information'!$D$44,'CBAT Lookups'!$A$23:$H$30,2)))","v":""},{"$f":"IF('Project Scope'!$C29=\"\",\"\",IF(OR($J29<=0,'Project Information'!$D$44=\"\"),0,-1*MAX(0,(($G29*$H29/1000)-($I29*$J29/1000))*$L29)*$V29*VLOOKUP('Project Information'!$D$44,'CBAT Lookups'!$A$23:$H$30,3)))","v":""},{"$f":"IF('Project Scope'!$C29=\"\",\"\",IF(OR($J29<=0,'Project Information'!$D$44=\"\"),0,-1*MAX(0,(($G29*$H29/1000)-($I29*$J29/1000))*$L29)*$V29*VLOOKUP('Project Information'!$D$44,'CBAT Lookups'!$A$23:$H$30,4)))","v":""},{"$f":"IF('Project Scope'!$C29=\"\",\"\",IF(OR($J29<=0,'Project Information'!$D$44=\"\"),0,-1*MAX(0,(($G29*$H29/1000)-($I29*$J29/1000))*$L29)*$V29*VLOOKUP('Project Information'!$D$44,'CBAT Lookups'!$A$23:$H$30,5)))","v":""},{"$f":"IF('Project Scope'!$C29=\"\",\"\",IF(OR($J29<=0,'Project Information'!$D$44=\"\"),0,-1*MAX(0,(($G29*$H29/1000)-($I29*$J29/1000))*$L29)*$V29*VLOOKUP('Project Information'!$D$44,'CBAT Lookups'!$A$23:$H$30,6)))","v":""},{"$f":"IF('Project Scope'!$C29=\"\",\"\",IF(OR($J29<=0,'Project Information'!$D$44=\"\"),0,-1*MAX(0,(($G29*$H29/1000)-($I29*$J29/1000))*$L29)*$V29*VLOOKUP('Project Information'!$D$44,'CBAT Lookups'!$A$23:$H$30,7)))","v":""},{"$f":"IF('Project Scope'!$C29=\"\",\"\",IF(OR($J29<=0,'Project Information'!$D$44=\"\"),0,-1*MAX(0,(($G29*$H29/1000)-($I29*$J29/1000))*$L29)*$V29*VLOOKUP('Project Information'!$D$44,'CBAT Lookups'!$A$23:$H$30,8)))","v":""},null,{"$f":"IF('Project Scope'!$C29=\"\",\"\",VLOOKUP($F29,'CBAT Lookups'!$B$17:$K$19,4))","v":""},{"$f":"IF('Project Scope'!$C29=\"\",\"\",VLOOKUP($F29,'CBAT Lookups'!$B$17:$K$19,5))","v":""},{"$f":"IF('Project Scope'!$C29=\"\",\"\",VLOOKUP($F29,'CBAT Lookups'!$B$17:$K$19,6))","v":""},{"$f":"IF('Project Scope'!$C29=\"\",\"\",VLOOKUP($F29,'CBAT Lookups'!$B$17:$K$19,7))","v":""},{"$f":"IF('Project Scope'!$C29=\"\",\"\",IF(SUMPRODUCT($P29:$S29,$AN29:$AQ29)=0,0,P29*AN29/SUMPRODUCT($P29:$S29,$AN29:$AQ29)))","v":""},{"$f":"IF('Project Scope'!$C29=\"\",\"\",IF(SUMPRODUCT($P29:$S29,$AN29:$AQ29)=0,0,Q29*AO29/SUMPRODUCT($P29:$S29,$AN29:$AQ29)))","v":""},{"$f":"IF('Project Scope'!$C29=\"\",\"\",IF(SUMPRODUCT($P29:$S29,$AN29:$AQ29)=0,0,R29*AP29/SUMPRODUCT($P29:$S29,$AN29:$AQ29)))","v":""},{"$f":"IF('Project Scope'!$C29=\"\",\"\",IF(SUMPRODUCT($P29:$S29,$AN29:$AQ29)=0,0,S29*AQ29/SUMPRODUCT($P29:$S29,$AN29:$AQ29)))","v":""},{"$f":"IF('Project Scope'!$C29=\"\",\"\",Benefits($AB29,$AD29,$AE29,$AG29,$AH29,$AI29,$AJ29,$AK29,$AL29,$AM29,$M29,$AR29,$AS29,$AT29,$AU29,$W29,$X29,$Y29,$Z29,$AA29,$E29))","v":""},"","","","","","","","",null,{"$f":"IF('Project Scope'!$C29=\"\",\"\",SUM('Project Scope'!$AT29,'Project Scope'!$AU29))","v":""},{"$f":"IF('Project Scope'!$C29=\"\",\"\",SUM('Project Scope'!$BG29, 'Project Scope'!$AR29,(IF(ISNUMBER('Project Scope'!$AS29),'Project Scope'!$AS29,0)*'Project Information'!$D$12)))","v":""},null,null,{"$f":"IF('Project Scope'!$C29=\"\",\"\",IF(COUNTIF('CBAT Lookups'!$B$5:$B$12,\"Controls-\"&CBAT!$D29)=1,VLOOKUP(\"Controls-\"&CBAT!$D29,'CBAT Lookups'!$B$5:$L$12,11),0))","v":""},{"$f":"IF('Project Scope'!$C29=\"\",\"\",IF(COUNTIF('CBAT Lookups'!$B$5:$B$12,\"Controls-\"&CBAT!$D29)=1,VLOOKUP(\"Controls-\"&CBAT!$D29,'CBAT Lookups'!$B$5:$K$12,2),0)*VLOOKUP($F29,'CBAT Lookups'!$B$17:$K$19,2))","v":""},{"$f":"IF('Project Scope'!$C29=\"\",\"\",IF(COUNTIF('CBAT Lookups'!$B$5:$B$12,\"Controls-\"&CBAT!$D29)=1,VLOOKUP(\"Controls-\"&CBAT!$D29,'CBAT Lookups'!$B$5:$K$12,3),0)*VLOOKUP($F29,'CBAT Lookups'!$B$17:$K$19,3))","v":""},{"$f":"IF('Project Scope'!$C29=\"\",\"\",IF(COUNTIF('CBAT Lookups'!$B$5:$B$12,\"Controls-\"&CBAT!$D29)=1,VLOOKUP(\"Controls-\"&CBAT!$D29,'CBAT Lookups'!$B$5:$K$12,4),0))","v":""},{"$f":"IF('Project Scope'!$C29=\"\",\"\",IF(COUNTIF('CBAT Lookups'!$B$5:$B$12,\"Controls-\"&CBAT!$D29)=1,VLOOKUP(\"Controls-\"&CBAT!$D29,'CBAT Lookups'!$B$5:$K$12,5),0))","v":""},{"$f":"IF('Project Scope'!$C29=\"\",\"\",IF(COUNTIF('CBAT Lookups'!$B$5:$B$12,\"Controls-\"&CBAT!$D29)=1,VLOOKUP(\"Controls-\"&CBAT!$D29,'CBAT Lookups'!$B$5:$K$12,6),0))","v":""},{"$f":"IF('Project Scope'!$C29=\"\",\"\",IF(COUNTIF('CBAT Lookups'!$B$5:$B$12,\"Controls-\"&CBAT!$D29)=1,VLOOKUP(\"Controls-\"&CBAT!$D29,'CBAT Lookups'!$B$5:$K$12,7),0))","v":""},{"$f":"IF('Project Scope'!$C29=\"\",\"\",IF(VLOOKUP($F29,'CBAT Lookups'!$B$17:$K$19,8)=\"W\",1,IF(COUNTIF('CBAT Lookups'!$B$5:$B$12,\"Controls-\"&CBAT!$D29)=1,VLOOKUP(\"Controls-\"&CBAT!$D29,'CBAT Lookups'!$B$5:$K$12,8),0)*VLOOKUP($F29,'CBAT Lookups'!$B$17:$K$19,8)))","v":""},{"$f":"IF('Project Scope'!$C29=\"\",\"\",IF(VLOOKUP($F29,'CBAT Lookups'!$B$17:$K$19,9)=\"W\",1,IF(COUNTIF('CBAT Lookups'!$B$5:$B$12,\"Controls-\"&CBAT!$D29)=1,VLOOKUP(\"Controls-\"&CBAT!$D29,'CBAT Lookups'!$B$5:$K$12,9),0)*VLOOKUP($F29,'CBAT Lookups'!$B$17:$K$19,9)))","v":""},{"$f":"IF('Project Scope'!$C29=\"\",\"\",IF(COUNTIF('CBAT Lookups'!$B$5:$B$12,\"Controls-\"&CBAT!$D29)=1,VLOOKUP(\"Controls-\"&CBAT!$D29,'CBAT Lookups'!$B$5:$K$12,10),0)*VLOOKUP($F29,'CBAT Lookups'!$B$17:$K$19,10))","v":""},{"$f":"IF('Project Scope'!$C29=\"\",\"\",VLOOKUP($C29,'CBAT Lookups'!$A$33:$B$57,2))","v":""},{"$f":"IF('Project Scope'!$C29=\"\",\"\",IF(COUNTIF('CBAT Lookups'!$B$5:$B$12,\"Controls-\"&CBAT!$D29)=1,VLOOKUP(\"Controls-\"&CBAT!$D29,'CBAT Lookups'!$B$5:$O$12,12),0))","v":""},{"$f":"IF('Project Scope'!$C29=\"\",\"\",IF(COUNTIF('CBAT Lookups'!$B$5:$B$12,\"Controls-\"&CBAT!$D29)=1,VLOOKUP(\"Controls-\"&CBAT!$D29,'CBAT Lookups'!$B$5:$O$12,13),0))","v":""},{"$f":"IF('Project Scope'!$C29=\"\",\"\",IF(COUNTIF('CBAT Lookups'!$B$5:$B$12,\"Controls-\"&CBAT!$D29)=1,VLOOKUP(\"Controls-\"&CBAT!$D29,'CBAT Lookups'!$B$5:$O$12,14),0))","v":""},{"$f":"IF('Project Scope'!$C29=\"\",\"\",'TRM Data'!$U$3)","v":""},{"$f":"IF('Project Scope'!$C29=\"\",\"\",'TRM Data'!$V$3)","v":""},{"$f":"IF('Project Scope'!$C29=\"\",\"\",IF($K29<=0,0,MAX(0,(IF(AND($I29>0,$J29>0),($I29*$J29)/1000,($G29*$H29)/1000)*$L29))*$BT29*$BR29)+($CD29/0.003412))","v":""},{"$f":"IF('Project Scope'!$C29=\"\",\"\",IF($K29<=0,0,MAX(0,IF(AND($I29>0,$J29>0),($I29*$J29)/1000,($G29*$H29)/1000))*$BQ29))","v":""},{"$f":"IF('Project Scope'!$C29=\"\",\"\",IF($K29<=0,0,MAX(0,IF(AND($I29>0,$J29>0),($I29*$J29)/1000,($G29*$H29)/1000))*$BK29))","v":""},{"$f":"IF('Project Scope'!$C29=\"\",\"\",IF($K29<=0,0,MAX(0,IF(AND($I29>0,$J29>0),($I29*$J29)/1000,($G29*$H29)/1000))*$BL29*$BQ29))","v":""},{"$f":"IF('Project Scope'!$C29=\"\",\"\",IF(OR($K29<=0,'Project Information'!$D$44=\"\"),0,-1*MAX(0,IF(AND($I29>0,$J29>0),($I29*$J29)/1000,($G29*$H29)/1000))*$BT29*$L29*$BS29*VLOOKUP('Project Information'!$D$44,'CBAT Lookups'!$A$23:$H$30,2)))","v":""},{"$f":"IF('Project Scope'!$C29=\"\",\"\",IF(OR($K29<=0,'Project Information'!$D$44=\"\"),0,-1*MAX(0,IF(AND($I29>0,$J29>0),($I29*$J29)/1000,($G29*$H29)/1000))*$BT29*$L29*$BS29*VLOOKUP('Project Information'!$D$44,'CBAT Lookups'!$A$23:$H$30,3)))","v":""},{"$f":"IF('Project Scope'!$C29=\"\",\"\",IF(OR($K29<=0,'Project Information'!$D$44=\"\"),0,-1*MAX(0,IF(AND($I29>0,$J29>0),($I29*$J29)/1000,($G29*$H29)/1000))*$BT29*$L29*$BS29*VLOOKUP('Project Information'!$D$44,'CBAT Lookups'!$A$23:$H$30,4)))","v":""},{"$f":"IF('Project Scope'!$C29=\"\",\"\",IF(OR($K29<=0,'Project Information'!$D$44=\"\"),0,-1*MAX(0,IF(AND($I29>0,$J29>0),($I29*$J29)/1000,($G29*$H29)/1000))*$BT29*$L29*$BS29*VLOOKUP('Project Information'!$D$44,'CBAT Lookups'!$A$23:$H$30,5)))","v":""},{"$f":"IF('Project Scope'!$C29=\"\",\"\",IF(OR($K29<=0,'Project Information'!$D$44=\"\"),0,-1*MAX(0,IF(AND($I29>0,$J29>0),($I29*$J29)/1000,($G29*$H29)/1000))*$BT29*$L29*$BS29*VLOOKUP('Project Information'!$D$44,'CBAT Lookups'!$A$23:$H$30,6)))","v":""},{"$f":"IF('Project Scope'!$C29=\"\",\"\",IF(OR($K29<=0,'Project Information'!$D$44=\"\"),0,-1*MAX(0,IF(AND($I29>0,$J29>0),($I29*$J29)/1000,($G29*$H29)/1000))*$BT29*$L29*$BS29*VLOOKUP('Project Information'!$D$44,'CBAT Lookups'!$A$23:$H$30,7)))","v":""},{"$f":"IF('Project Scope'!$C29=\"\",\"\",IF(OR($K29<=0,'Project Information'!$D$44=\"\"),0,-1*MAX(0,IF(AND($I29>0,$J29>0),($I29*$J29)/1000,($G29*$H29)/1000))*$BT29*$L29*$BS29*VLOOKUP('Project Information'!$D$44,'CBAT Lookups'!$A$23:$H$30,8)))","v":""},null,{"$f":"IF('Project Scope'!$C29=\"\",\"\",VLOOKUP($F29,'CBAT Lookups'!$B$17:$K$19,4))","v":""},{"$f":"IF('Project Scope'!$C29=\"\",\"\",VLOOKUP($F29,'CBAT Lookups'!$B$17:$K$19,5))","v":""},{"$f":"IF('Project Scope'!$C29=\"\",\"\",VLOOKUP($F29,'CBAT Lookups'!$B$17:$K$19,6))","v":""},{"$f":"IF('Project Scope'!$C29=\"\",\"\",VLOOKUP($F29,'CBAT Lookups'!$B$17:$K$19,7))","v":""},{"$f":"IF('Project Scope'!$C29=\"\",\"\",IF(SUMPRODUCT($BM29:$BP29,$CL29:$CO29)=0,0,BM29*CL29/SUMPRODUCT($BM29:$BP29,$CL29:$CO29)))","v":""},{"$f":"IF('Project Scope'!$C29=\"\",\"\",IF(SUMPRODUCT($BM29:$BP29,$CL29:$CO29)=0,0,BN29*CM29/SUMPRODUCT($BM29:$BP29,$CL29:$CO29)))","v":""},{"$f":"IF('Project Scope'!$C29=\"\",\"\",IF(SUMPRODUCT($BM29:$BP29,$CL29:$CO29)=0,0,BO29*CN29/SUMPRODUCT($BM29:$BP29,$CL29:$CO29)))","v":""},{"$f":"IF('Project Scope'!$C29=\"\",\"\",IF(SUMPRODUCT($BM29:$BP29,$CL29:$CO29)=0,0,BP29*CO29/SUMPRODUCT($BM29:$BP29,$CL29:$CO29)))","v":""},{"$f":"IF('Project Scope'!$C29=\"\",\"\",Benefits($BZ29,$CB29,$CC29,$CE29,$CF29,$CG29,$CH29,$CI29,$CJ29,$CK29,$BJ29,$CP29,$CQ29,$CR29,$CS29,$BU29,$BV29,$BW29,$BX29,$BY29,$E29))","v":""},"","","","","","","","",null,{"$f":"IF('Project Scope'!$C29=\"\",\"\",SUM('Project Scope'!$BB29,'Project Scope'!$BC29))","v":""},{"$f":"IF('Project Scope'!$C29=\"\",\"\",SUM('Project Scope'!$BH29, 'Project Scope'!$AZ29,(IF(ISNUMBER('Project Scope'!$BA29),'Project Scope'!$BA29,0)*'Project Information'!$D$12)))","v":""},null,null,{"$f":"IF('Project Scope'!$C29=\"\",\"\",IF($J29<=0,0,(SUMPRODUCT($AV29:$BC29,--($AV29:$BC29>0))+$BE29)*$DK29/((-SUMPRODUCT($AV29:$BC29,--($AV29:$BC29<0))+$BG29+$BH29+$BI29)*$DK29)))","v":""},{"$f":"IF('Project Scope'!$C29=\"\",\"\",IF($K29<=0,0,(SUMPRODUCT($CT29:$DA29,--($CT29:$DA29>0))+$DC29)*$DK29/((-SUMPRODUCT($CT29:$DA29,--($CT29:$DA29<0))+$DE29+$DF29+$DG29)*$DK29)))","v":""},{"$f":"IF('Project Scope'!$C29=\"\",\"\",IF(AND($J29<=0,$K29<=0),0,(SUMPRODUCT($AV29:$BC29,--($AV29:$BC29>0))+$BE29+SUMPRODUCT($CT29:$DA29,--($CT29:$DA29>0))+$DC29)*$DK29/((-SUMPRODUCT($AV29:$BC29,--($AV29:$BC29<0))+$BG29+$BH29+$BI29-SUMPRODUCT($CT29:$DA29,--($CT29:$DA29<0))+$DE29+$DF29+$DG29)*$DK29)))","v":""},{"$f":"IF('Project Scope'!$C29=\"\",\"\",IF(NetOrGross=\"Net\",(1-Z29+AA29),1))","v":""}]
[{"$f":"'Project Scope'!$B30","v":23},{"$f":"IF('Project Scope'!$C30=\"\",\"\",'Project Scope'!$C30)","v":""},{"$f":"IF('Project Scope'!$C30=\"\",\"\",'Project Scope'!$H30)","v":""},{"$f":"IF(ISNUMBER(SEARCH(\"Bay\",'Project Scope'!$Q30)),\"Bay\",IF('Project Scope'!C30=\"\",\"\",'Project Scope'!E30))","v":""},{"$f":"IF('Project Scope'!$C30=\"\",\"\",\"Com\")","v":""},{"$f":"IF('Project Scope'!$C30=\"\",\"\",'Project Scope'!$L30)","v":""},{"$f":"IF('Project Scope'!$C30=\"\",\"\",IF('Project Scope'!$CJ30=\"\",0,'Project Scope'!$CJ30))","v":""},{"$f":"IF('Project Scope'!$C30=\"\",\"\",IF('Project Scope'!$N30=\"\",0,'Project Scope'!$N30))","v":""},{"$f":"IF('Project Scope'!$C30=\"\",\"\",IF('Project Scope'!$CK30=\"\",0,'Project Scope'!$CK30))","v":""},{"$f":"IF('Project Scope'!$C30=\"\",\"\",IF('Project Scope'!$AO30=\"\",0,'Project Scope'!$AO30))","v":""},{"$f":"IF('Project Scope'!$C30=\"\",\"\",IF('Project Scope'!$AX30=\"\",0,'Project Scope'!$AX30))","v":""},{"$f":"IF('Project Scope'!$C30=\"\",\"\",IF('Project Scope'!$M30=\"\",0,'Project Scope'!$M30))","v":""},{"$f":"IF('Project Scope'!$C30=\"\",\"\",IF(COUNTIF('CBAT Lookups'!$B$5:$B$12,\"Fixtures-\"&CBAT!$D30)=1,VLOOKUP(\"Fixtures-\"&CBAT!$D30,'CBAT Lookups'!$B$5:$L$12,11),0))","v":""},{"$f":"IF('Project Scope'!$C30=\"\",\"\",(IF(COUNTIF('CBAT Lookups'!$B$5:$B$12,\"Fixtures-\"&CBAT!$D30)=1,VLOOKUP(\"Fixtures-\"&CBAT!$D30,'CBAT Lookups'!$B$5:$K$12,2),0))*VLOOKUP($F30,'CBAT Lookups'!$B$17:$K$19,2))","v":""},{"$f":"IF('Project Scope'!$C30=\"\",\"\",(IF(COUNTIF('CBAT Lookups'!$B$5:$B$12,\"Fixtures-\"&CBAT!$D30)=1,VLOOKUP(\"Fixtures-\"&CBAT!$D30,'CBAT Lookups'!$B$5:$K$12,3),0))*VLOOKUP($F30,'CBAT Lookups'!$B$17:$K$19,3))","v":""},{"$f":"IF('Project Scope'!$C30=\"\",\"\",(IF(COUNTIF('CBAT Lookups'!$B$5:$B$12,\"Fixtures-\"&CBAT!$D30)=1,VLOOKUP(\"Fixtures-\"&CBAT!$D30,'CBAT Lookups'!$B$5:$K$12,4),0)))","v":""},{"$f":"IF('Project Scope'!$C30=\"\",\"\",(IF(COUNTIF('CBAT Lookups'!$B$5:$B$12,\"Fixtures-\"&CBAT!$D30)=1,VLOOKUP(\"Fixtures-\"&CBAT!$D30,'CBAT Lookups'!$B$5:$K$12,5),0)))","v":""},{"$f":"IF('Project Scope'!$C30=\"\",\"\",(IF(COUNTIF('CBAT Lookups'!$B$5:$B$12,\"Fixtures-\"&CBAT!$D30)=1,VLOOKUP(\"Fixtures-\"&CBAT!$D30,'CBAT Lookups'!$B$5:$K$12,6),0)))","v":""},{"$f":"IF('Project Scope'!$C30=\"\",\"\",IF(COUNTIF('CBAT Lookups'!$B$5:$B$12,\"Fixtures-\"&CBAT!$D30)=1,VLOOKUP(\"Fixtures-\"&CBAT!$D30,'CBAT Lookups'!$B$5:$K$12,7),0))","v":""},{"$f":"IF('Project Scope'!$C30=\"\",\"\",IF(VLOOKUP($F30,'CBAT Lookups'!$B$17:$K$19,8)=\"W\",1,IF(COUNTIF('CBAT Lookups'!$B$5:$B$12,\"Fixtures-\"&CBAT!$D30)=1,VLOOKUP(\"Fixtures-\"&CBAT!$D30,'CBAT Lookups'!$B$5:$K$12,8),0)*VLOOKUP($F30,'CBAT Lookups'!$B$17:$K$19,8)))","v":""},{"$f":"IF('Project Scope'!$C30=\"\",\"\",IF(VLOOKUP($F30,'CBAT Lookups'!$B$17:$K$19,9)=\"W\",1,IF(COUNTIF('CBAT Lookups'!$B$5:$B$12,\"Fixtures-\"&CBAT!$D30)=1,VLOOKUP(\"Fixtures-\"&CBAT!$D30,'CBAT Lookups'!$B$5:$K$12,9),0)*VLOOKUP($F30,'CBAT Lookups'!$B$17:$K$19,9)))","v":""},{"$f":"IF('Project Scope'!$C30=\"\",\"\",IF(COUNTIF('CBAT Lookups'!$B$5:$B$12,\"Fixtures-\"&CBAT!$D30)=1,VLOOKUP(\"Fixtures-\"&CBAT!$D30,'CBAT Lookups'!$B$5:$K$12,10),0)*VLOOKUP($F30,'CBAT Lookups'!$B$17:$K$19,10))","v":""},{"$f":"IF('Project Scope'!$C30=\"\",\"\",IF(COUNTIF('CBAT Lookups'!$B$5:$B$12,\"Fixtures-\"&CBAT!$D30)=1,VLOOKUP(\"Fixtures-\"&CBAT!$D30,'CBAT Lookups'!$B$5:$O$12,12),0))","v":""},{"$f":"IF('Project Scope'!$C30=\"\",\"\",IF(COUNTIF('CBAT Lookups'!$B$5:$B$12,\"Fixtures-\"&CBAT!$D30)=1,VLOOKUP(\"Fixtures-\"&CBAT!$D30,'CBAT Lookups'!$B$5:$O$12,13),0))","v":""},{"$f":"IF('Project Scope'!$C30=\"\",\"\",IF(COUNTIF('CBAT Lookups'!$B$5:$B$12,\"Fixtures-\"&CBAT!$D30)=1,VLOOKUP(\"Fixtures-\"&CBAT!$D30,'CBAT Lookups'!$B$5:$O$12,14),0))","v":""},{"$f":"IF('Project Scope'!$C30=\"\",\"\",'TRM Data'!$U$3)","v":""},{"$f":"IF('Project Scope'!$C30=\"\",\"\",'TRM Data'!$V$3)","v":""},{"$f":"IF('Project Scope'!$C30=\"\",\"\",IF($J30<=0,0,MAX(0,(($G30*$H30/1000)-($I30*$J30/1000))*$L30)*$U30)+($AF30/0.003412))","v":""},{"$f":"IF('Project Scope'!$C30=\"\",\"\",IF($J30<=0,0,MAX(0,(($G30*$H30/1000)-($I30*$J30/1000)))*$T30))","v":""},{"$f":"IF('Project Scope'!$C30=\"\",\"\",IF($J30<=0,0,MAX(0,(($G30*$H30/1000)-($I30*$J30/1000))*$N30)))","v":""},{"$f":"IF('Project Scope'!$C30=\"\",\"\",IF($J30<=0,0,MAX(0,(($G30*$H30/1000)-($I30*$J30/1000))*$O30)*$T30))","v":""},{"$f":"IF('Project Scope'!$C30=\"\",\"\",IF(OR($J30<=0,'Project Information'!$D$44=\"\"),0,-1*MAX(0,(($G30*$H30/1000)-($I30*$J30/1000))*$L30)*$V30*VLOOKUP('Project Information'!$D$44,'CBAT Lookups'!$A$23:$H$30,2)))","v":""},{"$f":"IF('Project Scope'!$C30=\"\",\"\",IF(OR($J30<=0,'Project Information'!$D$44=\"\"),0,-1*MAX(0,(($G30*$H30/1000)-($I30*$J30/1000))*$L30)*$V30*VLOOKUP('Project Information'!$D$44,'CBAT Lookups'!$A$23:$H$30,3)))","v":""},{"$f":"IF('Project Scope'!$C30=\"\",\"\",IF(OR($J30<=0,'Project Information'!$D$44=\"\"),0,-1*MAX(0,(($G30*$H30/1000)-($I30*$J30/1000))*$L30)*$V30*VLOOKUP('Project Information'!$D$44,'CBAT Lookups'!$A$23:$H$30,4)))","v":""},{"$f":"IF('Project Scope'!$C30=\"\",\"\",IF(OR($J30<=0,'Project Information'!$D$44=\"\"),0,-1*MAX(0,(($G30*$H30/1000)-($I30*$J30/1000))*$L30)*$V30*VLOOKUP('Project Information'!$D$44,'CBAT Lookups'!$A$23:$H$30,5)))","v":""},{"$f":"IF('Project Scope'!$C30=\"\",\"\",IF(OR($J30<=0,'Project Information'!$D$44=\"\"),0,-1*MAX(0,(($G30*$H30/1000)-($I30*$J30/1000))*$L30)*$V30*VLOOKUP('Project Information'!$D$44,'CBAT Lookups'!$A$23:$H$30,6)))","v":""},{"$f":"IF('Project Scope'!$C30=\"\",\"\",IF(OR($J30<=0,'Project Information'!$D$44=\"\"),0,-1*MAX(0,(($G30*$H30/1000)-($I30*$J30/1000))*$L30)*$V30*VLOOKUP('Project Information'!$D$44,'CBAT Lookups'!$A$23:$H$30,7)))","v":""},{"$f":"IF('Project Scope'!$C30=\"\",\"\",IF(OR($J30<=0,'Project Information'!$D$44=\"\"),0,-1*MAX(0,(($G30*$H30/1000)-($I30*$J30/1000))*$L30)*$V30*VLOOKUP('Project Information'!$D$44,'CBAT Lookups'!$A$23:$H$30,8)))","v":""},null,{"$f":"IF('Project Scope'!$C30=\"\",\"\",VLOOKUP($F30,'CBAT Lookups'!$B$17:$K$19,4))","v":""},{"$f":"IF('Project Scope'!$C30=\"\",\"\",VLOOKUP($F30,'CBAT Lookups'!$B$17:$K$19,5))","v":""},{"$f":"IF('Project Scope'!$C30=\"\",\"\",VLOOKUP($F30,'CBAT Lookups'!$B$17:$K$19,6))","v":""},{"$f":"IF('Project Scope'!$C30=\"\",\"\",VLOOKUP($F30,'CBAT Lookups'!$B$17:$K$19,7))","v":""},{"$f":"IF('Project Scope'!$C30=\"\",\"\",IF(SUMPRODUCT($P30:$S30,$AN30:$AQ30)=0,0,P30*AN30/SUMPRODUCT($P30:$S30,$AN30:$AQ30)))","v":""},{"$f":"IF('Project Scope'!$C30=\"\",\"\",IF(SUMPRODUCT($P30:$S30,$AN30:$AQ30)=0,0,Q30*AO30/SUMPRODUCT($P30:$S30,$AN30:$AQ30)))","v":""},{"$f":"IF('Project Scope'!$C30=\"\",\"\",IF(SUMPRODUCT($P30:$S30,$AN30:$AQ30)=0,0,R30*AP30/SUMPRODUCT($P30:$S30,$AN30:$AQ30)))","v":""},{"$f":"IF('Project Scope'!$C30=\"\",\"\",IF(SUMPRODUCT($P30:$S30,$AN30:$AQ30)=0,0,S30*AQ30/SUMPRODUCT($P30:$S30,$AN30:$AQ30)))","v":""},{"$f":"IF('Project Scope'!$C30=\"\",\"\",Benefits($AB30,$AD30,$AE30,$AG30,$AH30,$AI30,$AJ30,$AK30,$AL30,$AM30,$M30,$AR30,$AS30,$AT30,$AU30,$W30,$X30,$Y30,$Z30,$AA30,$E30))","v":""},"","","","","","","","",null,{"$f":"IF('Project Scope'!$C30=\"\",\"\",SUM('Project Scope'!$AT30,'Project Scope'!$AU30))","v":""},{"$f":"IF('Project Scope'!$C30=\"\",\"\",SUM('Project Scope'!$BG30, 'Project Scope'!$AR30,(IF(ISNUMBER('Project Scope'!$AS30),'Project Scope'!$AS30,0)*'Project Information'!$D$12)))","v":""},null,null,{"$f":"IF('Project Scope'!$C30=\"\",\"\",IF(COUNTIF('CBAT Lookups'!$B$5:$B$12,\"Controls-\"&CBAT!$D30)=1,VLOOKUP(\"Controls-\"&CBAT!$D30,'CBAT Lookups'!$B$5:$L$12,11),0))","v":""},{"$f":"IF('Project Scope'!$C30=\"\",\"\",IF(COUNTIF('CBAT Lookups'!$B$5:$B$12,\"Controls-\"&CBAT!$D30)=1,VLOOKUP(\"Controls-\"&CBAT!$D30,'CBAT Lookups'!$B$5:$K$12,2),0)*VLOOKUP($F30,'CBAT Lookups'!$B$17:$K$19,2))","v":""},{"$f":"IF('Project Scope'!$C30=\"\",\"\",IF(COUNTIF('CBAT Lookups'!$B$5:$B$12,\"Controls-\"&CBAT!$D30)=1,VLOOKUP(\"Controls-\"&CBAT!$D30,'CBAT Lookups'!$B$5:$K$12,3),0)*VLOOKUP($F30,'CBAT Lookups'!$B$17:$K$19,3))","v":""},{"$f":"IF('Project Scope'!$C30=\"\",\"\",IF(COUNTIF('CBAT Lookups'!$B$5:$B$12,\"Controls-\"&CBAT!$D30)=1,VLOOKUP(\"Controls-\"&CBAT!$D30,'CBAT Lookups'!$B$5:$K$12,4),0))","v":""},{"$f":"IF('Project Scope'!$C30=\"\",\"\",IF(COUNTIF('CBAT Lookups'!$B$5:$B$12,\"Controls-\"&CBAT!$D30)=1,VLOOKUP(\"Controls-\"&CBAT!$D30,'CBAT Lookups'!$B$5:$K$12,5),0))","v":""},{"$f":"IF('Project Scope'!$C30=\"\",\"\",IF(COUNTIF('CBAT Lookups'!$B$5:$B$12,\"Controls-\"&CBAT!$D30)=1,VLOOKUP(\"Controls-\"&CBAT!$D30,'CBAT Lookups'!$B$5:$K$12,6),0))","v":""},{"$f":"IF('Project Scope'!$C30=\"\",\"\",IF(COUNTIF('CBAT Lookups'!$B$5:$B$12,\"Controls-\"&CBAT!$D30)=1,VLOOKUP(\"Controls-\"&CBAT!$D30,'CBAT Lookups'!$B$5:$K$12,7),0))","v":""},{"$f":"IF('Project Scope'!$C30=\"\",\"\",IF(VLOOKUP($F30,'CBAT Lookups'!$B$17:$K$19,8)=\"W\",1,IF(COUNTIF('CBAT Lookups'!$B$5:$B$12,\"Controls-\"&CBAT!$D30)=1,VLOOKUP(\"Controls-\"&CBAT!$D30,'CBAT Lookups'!$B$5:$K$12,8),0)*VLOOKUP($F30,'CBAT Lookups'!$B$17:$K$19,8)))","v":""},{"$f":"IF('Project Scope'!$C30=\"\",\"\",IF(VLOOKUP($F30,'CBAT Lookups'!$B$17:$K$19,9)=\"W\",1,IF(COUNTIF('CBAT Lookups'!$B$5:$B$12,\"Controls-\"&CBAT!$D30)=1,VLOOKUP(\"Controls-\"&CBAT!$D30,'CBAT Lookups'!$B$5:$K$12,9),0)*VLOOKUP($F30,'CBAT Lookups'!$B$17:$K$19,9)))","v":""},{"$f":"IF('Project Scope'!$C30=\"\",\"\",IF(COUNTIF('CBAT Lookups'!$B$5:$B$12,\"Controls-\"&CBAT!$D30)=1,VLOOKUP(\"Controls-\"&CBAT!$D30,'CBAT Lookups'!$B$5:$K$12,10),0)*VLOOKUP($F30,'CBAT Lookups'!$B$17:$K$19,10))","v":""},{"$f":"IF('Project Scope'!$C30=\"\",\"\",VLOOKUP($C30,'CBAT Lookups'!$A$33:$B$57,2))","v":""},{"$f":"IF('Project Scope'!$C30=\"\",\"\",IF(COUNTIF('CBAT Lookups'!$B$5:$B$12,\"Controls-\"&CBAT!$D30)=1,VLOOKUP(\"Controls-\"&CBAT!$D30,'CBAT Lookups'!$B$5:$O$12,12),0))","v":""},{"$f":"IF('Project Scope'!$C30=\"\",\"\",IF(COUNTIF('CBAT Lookups'!$B$5:$B$12,\"Controls-\"&CBAT!$D30)=1,VLOOKUP(\"Controls-\"&CBAT!$D30,'CBAT Lookups'!$B$5:$O$12,13),0))","v":""},{"$f":"IF('Project Scope'!$C30=\"\",\"\",IF(COUNTIF('CBAT Lookups'!$B$5:$B$12,\"Controls-\"&CBAT!$D30)=1,VLOOKUP(\"Controls-\"&CBAT!$D30,'CBAT Lookups'!$B$5:$O$12,14),0))","v":""},{"$f":"IF('Project Scope'!$C30=\"\",\"\",'TRM Data'!$U$3)","v":""},{"$f":"IF('Project Scope'!$C30=\"\",\"\",'TRM Data'!$V$3)","v":""},{"$f":"IF('Project Scope'!$C30=\"\",\"\",IF($K30<=0,0,MAX(0,(IF(AND($I30>0,$J30>0),($I30*$J30)/1000,($G30*$H30)/1000)*$L30))*$BT30*$BR30)+($CD30/0.003412))","v":""},{"$f":"IF('Project Scope'!$C30=\"\",\"\",IF($K30<=0,0,MAX(0,IF(AND($I30>0,$J30>0),($I30*$J30)/1000,($G30*$H30)/1000))*$BQ30))","v":""},{"$f":"IF('Project Scope'!$C30=\"\",\"\",IF($K30<=0,0,MAX(0,IF(AND($I30>0,$J30>0),($I30*$J30)/1000,($G30*$H30)/1000))*$BK30))","v":""},{"$f":"IF('Project Scope'!$C30=\"\",\"\",IF($K30<=0,0,MAX(0,IF(AND($I30>0,$J30>0),($I30*$J30)/1000,($G30*$H30)/1000))*$BL30*$BQ30))","v":""},{"$f":"IF('Project Scope'!$C30=\"\",\"\",IF(OR($K30<=0,'Project Information'!$D$44=\"\"),0,-1*MAX(0,IF(AND($I30>0,$J30>0),($I30*$J30)/1000,($G30*$H30)/1000))*$BT30*$L30*$BS30*VLOOKUP('Project Information'!$D$44,'CBAT Lookups'!$A$23:$H$30,2)))","v":""},{"$f":"IF('Project Scope'!$C30=\"\",\"\",IF(OR($K30<=0,'Project Information'!$D$44=\"\"),0,-1*MAX(0,IF(AND($I30>0,$J30>0),($I30*$J30)/1000,($G30*$H30)/1000))*$BT30*$L30*$BS30*VLOOKUP('Project Information'!$D$44,'CBAT Lookups'!$A$23:$H$30,3)))","v":""},{"$f":"IF('Project Scope'!$C30=\"\",\"\",IF(OR($K30<=0,'Project Information'!$D$44=\"\"),0,-1*MAX(0,IF(AND($I30>0,$J30>0),($I30*$J30)/1000,($G30*$H30)/1000))*$BT30*$L30*$BS30*VLOOKUP('Project Information'!$D$44,'CBAT Lookups'!$A$23:$H$30,4)))","v":""},{"$f":"IF('Project Scope'!$C30=\"\",\"\",IF(OR($K30<=0,'Project Information'!$D$44=\"\"),0,-1*MAX(0,IF(AND($I30>0,$J30>0),($I30*$J30)/1000,($G30*$H30)/1000))*$BT30*$L30*$BS30*VLOOKUP('Project Information'!$D$44,'CBAT Lookups'!$A$23:$H$30,5)))","v":""},{"$f":"IF('Project Scope'!$C30=\"\",\"\",IF(OR($K30<=0,'Project Information'!$D$44=\"\"),0,-1*MAX(0,IF(AND($I30>0,$J30>0),($I30*$J30)/1000,($G30*$H30)/1000))*$BT30*$L30*$BS30*VLOOKUP('Project Information'!$D$44,'CBAT Lookups'!$A$23:$H$30,6)))","v":""},{"$f":"IF('Project Scope'!$C30=\"\",\"\",IF(OR($K30<=0,'Project Information'!$D$44=\"\"),0,-1*MAX(0,IF(AND($I30>0,$J30>0),($I30*$J30)/1000,($G30*$H30)/1000))*$BT30*$L30*$BS30*VLOOKUP('Project Information'!$D$44,'CBAT Lookups'!$A$23:$H$30,7)))","v":""},{"$f":"IF('Project Scope'!$C30=\"\",\"\",IF(OR($K30<=0,'Project Information'!$D$44=\"\"),0,-1*MAX(0,IF(AND($I30>0,$J30>0),($I30*$J30)/1000,($G30*$H30)/1000))*$BT30*$L30*$BS30*VLOOKUP('Project Information'!$D$44,'CBAT Lookups'!$A$23:$H$30,8)))","v":""},null,{"$f":"IF('Project Scope'!$C30=\"\",\"\",VLOOKUP($F30,'CBAT Lookups'!$B$17:$K$19,4))","v":""},{"$f":"IF('Project Scope'!$C30=\"\",\"\",VLOOKUP($F30,'CBAT Lookups'!$B$17:$K$19,5))","v":""},{"$f":"IF('Project Scope'!$C30=\"\",\"\",VLOOKUP($F30,'CBAT Lookups'!$B$17:$K$19,6))","v":""},{"$f":"IF('Project Scope'!$C30=\"\",\"\",VLOOKUP($F30,'CBAT Lookups'!$B$17:$K$19,7))","v":""},{"$f":"IF('Project Scope'!$C30=\"\",\"\",IF(SUMPRODUCT($BM30:$BP30,$CL30:$CO30)=0,0,BM30*CL30/SUMPRODUCT($BM30:$BP30,$CL30:$CO30)))","v":""},{"$f":"IF('Project Scope'!$C30=\"\",\"\",IF(SUMPRODUCT($BM30:$BP30,$CL30:$CO30)=0,0,BN30*CM30/SUMPRODUCT($BM30:$BP30,$CL30:$CO30)))","v":""},{"$f":"IF('Project Scope'!$C30=\"\",\"\",IF(SUMPRODUCT($BM30:$BP30,$CL30:$CO30)=0,0,BO30*CN30/SUMPRODUCT($BM30:$BP30,$CL30:$CO30)))","v":""},{"$f":"IF('Project Scope'!$C30=\"\",\"\",IF(SUMPRODUCT($BM30:$BP30,$CL30:$CO30)=0,0,BP30*CO30/SUMPRODUCT($BM30:$BP30,$CL30:$CO30)))","v":""},{"$f":"IF('Project Scope'!$C30=\"\",\"\",Benefits($BZ30,$CB30,$CC30,$CE30,$CF30,$CG30,$CH30,$CI30,$CJ30,$CK30,$BJ30,$CP30,$CQ30,$CR30,$CS30,$BU30,$BV30,$BW30,$BX30,$BY30,$E30))","v":""},"","","","","","","","",null,{"$f":"IF('Project Scope'!$C30=\"\",\"\",SUM('Project Scope'!$BB30,'Project Scope'!$BC30))","v":""},{"$f":"IF('Project Scope'!$C30=\"\",\"\",SUM('Project Scope'!$BH30, 'Project Scope'!$AZ30,(IF(ISNUMBER('Project Scope'!$BA30),'Project Scope'!$BA30,0)*'Project Information'!$D$12)))","v":""},null,null,{"$f":"IF('Project Scope'!$C30=\"\",\"\",IF($J30<=0,0,(SUMPRODUCT($AV30:$BC30,--($AV30:$BC30>0))+$BE30)*$DK30/((-SUMPRODUCT($AV30:$BC30,--($AV30:$BC30<0))+$BG30+$BH30+$BI30)*$DK30)))","v":""},{"$f":"IF('Project Scope'!$C30=\"\",\"\",IF($K30<=0,0,(SUMPRODUCT($CT30:$DA30,--($CT30:$DA30>0))+$DC30)*$DK30/((-SUMPRODUCT($CT30:$DA30,--($CT30:$DA30<0))+$DE30+$DF30+$DG30)*$DK30)))","v":""},{"$f":"IF('Project Scope'!$C30=\"\",\"\",IF(AND($J30<=0,$K30<=0),0,(SUMPRODUCT($AV30:$BC30,--($AV30:$BC30>0))+$BE30+SUMPRODUCT($CT30:$DA30,--($CT30:$DA30>0))+$DC30)*$DK30/((-SUMPRODUCT($AV30:$BC30,--($AV30:$BC30<0))+$BG30+$BH30+$BI30-SUMPRODUCT($CT30:$DA30,--($CT30:$DA30<0))+$DE30+$DF30+$DG30)*$DK30)))","v":""},{"$f":"IF('Project Scope'!$C30=\"\",\"\",IF(NetOrGross=\"Net\",(1-Z30+AA30),1))","v":""}]
[{"$f":"'Project Scope'!$B31","v":24},{"$f":"IF('Project Scope'!$C31=\"\",\"\",'Project Scope'!$C31)","v":""},{"$f":"IF('Project Scope'!$C31=\"\",\"\",'Project Scope'!$H31)","v":""},{"$f":"IF(ISNUMBER(SEARCH(\"Bay\",'Project Scope'!$Q31)),\"Bay\",IF('Project Scope'!C31=\"\",\"\",'Project Scope'!E31))","v":""},{"$f":"IF('Project Scope'!$C31=\"\",\"\",\"Com\")","v":""},{"$f":"IF('Project Scope'!$C31=\"\",\"\",'Project Scope'!$L31)","v":""},{"$f":"IF('Project Scope'!$C31=\"\",\"\",IF('Project Scope'!$CJ31=\"\",0,'Project Scope'!$CJ31))","v":""},{"$f":"IF('Project Scope'!$C31=\"\",\"\",IF('Project Scope'!$N31=\"\",0,'Project Scope'!$N31))","v":""},{"$f":"IF('Project Scope'!$C31=\"\",\"\",IF('Project Scope'!$CK31=\"\",0,'Project Scope'!$CK31))","v":""},{"$f":"IF('Project Scope'!$C31=\"\",\"\",IF('Project Scope'!$AO31=\"\",0,'Project Scope'!$AO31))","v":""},{"$f":"IF('Project Scope'!$C31=\"\",\"\",IF('Project Scope'!$AX31=\"\",0,'Project Scope'!$AX31))","v":""},{"$f":"IF('Project Scope'!$C31=\"\",\"\",IF('Project Scope'!$M31=\"\",0,'Project Scope'!$M31))","v":""},{"$f":"IF('Project Scope'!$C31=\"\",\"\",IF(COUNTIF('CBAT Lookups'!$B$5:$B$12,\"Fixtures-\"&CBAT!$D31)=1,VLOOKUP(\"Fixtures-\"&CBAT!$D31,'CBAT Lookups'!$B$5:$L$12,11),0))","v":""},{"$f":"IF('Project Scope'!$C31=\"\",\"\",(IF(COUNTIF('CBAT Lookups'!$B$5:$B$12,\"Fixtures-\"&CBAT!$D31)=1,VLOOKUP(\"Fixtures-\"&CBAT!$D31,'CBAT Lookups'!$B$5:$K$12,2),0))*VLOOKUP($F31,'CBAT Lookups'!$B$17:$K$19,2))","v":""},{"$f":"IF('Project Scope'!$C31=\"\",\"\",(IF(COUNTIF('CBAT Lookups'!$B$5:$B$12,\"Fixtures-\"&CBAT!$D31)=1,VLOOKUP(\"Fixtures-\"&CBAT!$D31,'CBAT Lookups'!$B$5:$K$12,3),0))*VLOOKUP($F31,'CBAT Lookups'!$B$17:$K$19,3))","v":""},{"$f":"IF('Project Scope'!$C31=\"\",\"\",(IF(COUNTIF('CBAT Lookups'!$B$5:$B$12,\"Fixtures-\"&CBAT!$D31)=1,VLOOKUP(\"Fixtures-\"&CBAT!$D31,'CBAT Lookups'!$B$5:$K$12,4),0)))","v":""},{"$f":"IF('Project Scope'!$C31=\"\",\"\",(IF(COUNTIF('CBAT Lookups'!$B$5:$B$12,\"Fixtures-\"&CBAT!$D31)=1,VLOOKUP(\"Fixtures-\"&CBAT!$D31,'CBAT Lookups'!$B$5:$K$12,5),0)))","v":""},{"$f":"IF('Project Scope'!$C31=\"\",\"\",(IF(COUNTIF('CBAT Lookups'!$B$5:$B$12,\"Fixtures-\"&CBAT!$D31)=1,VLOOKUP(\"Fixtures-\"&CBAT!$D31,'CBAT Lookups'!$B$5:$K$12,6),0)))","v":""},{"$f":"IF('Project Scope'!$C31=\"\",\"\",IF(COUNTIF('CBAT Lookups'!$B$5:$B$12,\"Fixtures-\"&CBAT!$D31)=1,VLOOKUP(\"Fixtures-\"&CBAT!$D31,'CBAT Lookups'!$B$5:$K$12,7),0))","v":""},{"$f":"IF('Project Scope'!$C31=\"\",\"\",IF(VLOOKUP($F31,'CBAT Lookups'!$B$17:$K$19,8)=\"W\",1,IF(COUNTIF('CBAT Lookups'!$B$5:$B$12,\"Fixtures-\"&CBAT!$D31)=1,VLOOKUP(\"Fixtures-\"&CBAT!$D31,'CBAT Lookups'!$B$5:$K$12,8),0)*VLOOKUP($F31,'CBAT Lookups'!$B$17:$K$19,8)))","v":""},{"$f":"IF('Project Scope'!$C31=\"\",\"\",IF(VLOOKUP($F31,'CBAT Lookups'!$B$17:$K$19,9)=\"W\",1,IF(COUNTIF('CBAT Lookups'!$B$5:$B$12,\"Fixtures-\"&CBAT!$D31)=1,VLOOKUP(\"Fixtures-\"&CBAT!$D31,'CBAT Lookups'!$B$5:$K$12,9),0)*VLOOKUP($F31,'CBAT Lookups'!$B$17:$K$19,9)))","v":""},{"$f":"IF('Project Scope'!$C31=\"\",\"\",IF(COUNTIF('CBAT Lookups'!$B$5:$B$12,\"Fixtures-\"&CBAT!$D31)=1,VLOOKUP(\"Fixtures-\"&CBAT!$D31,'CBAT Lookups'!$B$5:$K$12,10),0)*VLOOKUP($F31,'CBAT Lookups'!$B$17:$K$19,10))","v":""},{"$f":"IF('Project Scope'!$C31=\"\",\"\",IF(COUNTIF('CBAT Lookups'!$B$5:$B$12,\"Fixtures-\"&CBAT!$D31)=1,VLOOKUP(\"Fixtures-\"&CBAT!$D31,'CBAT Lookups'!$B$5:$O$12,12),0))","v":""},{"$f":"IF('Project Scope'!$C31=\"\",\"\",IF(COUNTIF('CBAT Lookups'!$B$5:$B$12,\"Fixtures-\"&CBAT!$D31)=1,VLOOKUP(\"Fixtures-\"&CBAT!$D31,'CBAT Lookups'!$B$5:$O$12,13),0))","v":""},{"$f":"IF('Project Scope'!$C31=\"\",\"\",IF(COUNTIF('CBAT Lookups'!$B$5:$B$12,\"Fixtures-\"&CBAT!$D31)=1,VLOOKUP(\"Fixtures-\"&CBAT!$D31,'CBAT Lookups'!$B$5:$O$12,14),0))","v":""},{"$f":"IF('Project Scope'!$C31=\"\",\"\",'TRM Data'!$U$3)","v":""},{"$f":"IF('Project Scope'!$C31=\"\",\"\",'TRM Data'!$V$3)","v":""},{"$f":"IF('Project Scope'!$C31=\"\",\"\",IF($J31<=0,0,MAX(0,(($G31*$H31/1000)-($I31*$J31/1000))*$L31)*$U31)+($AF31/0.003412))","v":""},{"$f":"IF('Project Scope'!$C31=\"\",\"\",IF($J31<=0,0,MAX(0,(($G31*$H31/1000)-($I31*$J31/1000)))*$T31))","v":""},{"$f":"IF('Project Scope'!$C31=\"\",\"\",IF($J31<=0,0,MAX(0,(($G31*$H31/1000)-($I31*$J31/1000))*$N31)))","v":""},{"$f":"IF('Project Scope'!$C31=\"\",\"\",IF($J31<=0,0,MAX(0,(($G31*$H31/1000)-($I31*$J31/1000))*$O31)*$T31))","v":""},{"$f":"IF('Project Scope'!$C31=\"\",\"\",IF(OR($J31<=0,'Project Information'!$D$44=\"\"),0,-1*MAX(0,(($G31*$H31/1000)-($I31*$J31/1000))*$L31)*$V31*VLOOKUP('Project Information'!$D$44,'CBAT Lookups'!$A$23:$H$30,2)))","v":""},{"$f":"IF('Project Scope'!$C31=\"\",\"\",IF(OR($J31<=0,'Project Information'!$D$44=\"\"),0,-1*MAX(0,(($G31*$H31/1000)-($I31*$J31/1000))*$L31)*$V31*VLOOKUP('Project Information'!$D$44,'CBAT Lookups'!$A$23:$H$30,3)))","v":""},{"$f":"IF('Project Scope'!$C31=\"\",\"\",IF(OR($J31<=0,'Project Information'!$D$44=\"\"),0,-1*MAX(0,(($G31*$H31/1000)-($I31*$J31/1000))*$L31)*$V31*VLOOKUP('Project Information'!$D$44,'CBAT Lookups'!$A$23:$H$30,4)))","v":""},{"$f":"IF('Project Scope'!$C31=\"\",\"\",IF(OR($J31<=0,'Project Information'!$D$44=\"\"),0,-1*MAX(0,(($G31*$H31/1000)-($I31*$J31/1000))*$L31)*$V31*VLOOKUP('Project Information'!$D$44,'CBAT Lookups'!$A$23:$H$30,5)))","v":""},{"$f":"IF('Project Scope'!$C31=\"\",\"\",IF(OR($J31<=0,'Project Information'!$D$44=\"\"),0,-1*MAX(0,(($G31*$H31/1000)-($I31*$J31/1000))*$L31)*$V31*VLOOKUP('Project Information'!$D$44,'CBAT Lookups'!$A$23:$H$30,6)))","v":""},{"$f":"IF('Project Scope'!$C31=\"\",\"\",IF(OR($J31<=0,'Project Information'!$D$44=\"\"),0,-1*MAX(0,(($G31*$H31/1000)-($I31*$J31/1000))*$L31)*$V31*VLOOKUP('Project Information'!$D$44,'CBAT Lookups'!$A$23:$H$30,7)))","v":""},{"$f":"IF('Project Scope'!$C31=\"\",\"\",IF(OR($J31<=0,'Project Information'!$D$44=\"\"),0,-1*MAX(0,(($G31*$H31/1000)-($I31*$J31/1000))*$L31)*$V31*VLOOKUP('Project Information'!$D$44,'CBAT Lookups'!$A$23:$H$30,8)))","v":""},null,{"$f":"IF('Project Scope'!$C31=\"\",\"\",VLOOKUP($F31,'CBAT Lookups'!$B$17:$K$19,4))","v":""},{"$f":"IF('Project Scope'!$C31=\"\",\"\",VLOOKUP($F31,'CBAT Lookups'!$B$17:$K$19,5))","v":""},{"$f":"IF('Project Scope'!$C31=\"\",\"\",VLOOKUP($F31,'CBAT Lookups'!$B$17:$K$19,6))","v":""},{"$f":"IF('Project Scope'!$C31=\"\",\"\",VLOOKUP($F31,'CBAT Lookups'!$B$17:$K$19,7))","v":""},{"$f":"IF('Project Scope'!$C31=\"\",\"\",IF(SUMPRODUCT($P31:$S31,$AN31:$AQ31)=0,0,P31*AN31/SUMPRODUCT($P31:$S31,$AN31:$AQ31)))","v":""},{"$f":"IF('Project Scope'!$C31=\"\",\"\",IF(SUMPRODUCT($P31:$S31,$AN31:$AQ31)=0,0,Q31*AO31/SUMPRODUCT($P31:$S31,$AN31:$AQ31)))","v":""},{"$f":"IF('Project Scope'!$C31=\"\",\"\",IF(SUMPRODUCT($P31:$S31,$AN31:$AQ31)=0,0,R31*AP31/SUMPRODUCT($P31:$S31,$AN31:$AQ31)))","v":""},{"$f":"IF('Project Scope'!$C31=\"\",\"\",IF(SUMPRODUCT($P31:$S31,$AN31:$AQ31)=0,0,S31*AQ31/SUMPRODUCT($P31:$S31,$AN31:$AQ31)))","v":""},{"$f":"IF('Project Scope'!$C31=\"\",\"\",Benefits($AB31,$AD31,$AE31,$AG31,$AH31,$AI31,$AJ31,$AK31,$AL31,$AM31,$M31,$AR31,$AS31,$AT31,$AU31,$W31,$X31,$Y31,$Z31,$AA31,$E31))","v":""},"","","","","","","","",null,{"$f":"IF('Project Scope'!$C31=\"\",\"\",SUM('Project Scope'!$AT31,'Project Scope'!$AU31))","v":""},{"$f":"IF('Project Scope'!$C31=\"\",\"\",SUM('Project Scope'!$BG31, 'Project Scope'!$AR31,(IF(ISNUMBER('Project Scope'!$AS31),'Project Scope'!$AS31,0)*'Project Information'!$D$12)))","v":""},null,null,{"$f":"IF('Project Scope'!$C31=\"\",\"\",IF(COUNTIF('CBAT Lookups'!$B$5:$B$12,\"Controls-\"&CBAT!$D31)=1,VLOOKUP(\"Controls-\"&CBAT!$D31,'CBAT Lookups'!$B$5:$L$12,11),0))","v":""},{"$f":"IF('Project Scope'!$C31=\"\",\"\",IF(COUNTIF('CBAT Lookups'!$B$5:$B$12,\"Controls-\"&CBAT!$D31)=1,VLOOKUP(\"Controls-\"&CBAT!$D31,'CBAT Lookups'!$B$5:$K$12,2),0)*VLOOKUP($F31,'CBAT Lookups'!$B$17:$K$19,2))","v":""},{"$f":"IF('Project Scope'!$C31=\"\",\"\",IF(COUNTIF('CBAT Lookups'!$B$5:$B$12,\"Controls-\"&CBAT!$D31)=1,VLOOKUP(\"Controls-\"&CBAT!$D31,'CBAT Lookups'!$B$5:$K$12,3),0)*VLOOKUP($F31,'CBAT Lookups'!$B$17:$K$19,3))","v":""},{"$f":"IF('Project Scope'!$C31=\"\",\"\",IF(COUNTIF('CBAT Lookups'!$B$5:$B$12,\"Controls-\"&CBAT!$D31)=1,VLOOKUP(\"Controls-\"&CBAT!$D31,'CBAT Lookups'!$B$5:$K$12,4),0))","v":""},{"$f":"IF('Project Scope'!$C31=\"\",\"\",IF(COUNTIF('CBAT Lookups'!$B$5:$B$12,\"Controls-\"&CBAT!$D31)=1,VLOOKUP(\"Controls-\"&CBAT!$D31,'CBAT Lookups'!$B$5:$K$12,5),0))","v":""},{"$f":"IF('Project Scope'!$C31=\"\",\"\",IF(COUNTIF('CBAT Lookups'!$B$5:$B$12,\"Controls-\"&CBAT!$D31)=1,VLOOKUP(\"Controls-\"&CBAT!$D31,'CBAT Lookups'!$B$5:$K$12,6),0))","v":""},{"$f":"IF('Project Scope'!$C31=\"\",\"\",IF(COUNTIF('CBAT Lookups'!$B$5:$B$12,\"Controls-\"&CBAT!$D31)=1,VLOOKUP(\"Controls-\"&CBAT!$D31,'CBAT Lookups'!$B$5:$K$12,7),0))","v":""},{"$f":"IF('Project Scope'!$C31=\"\",\"\",IF(VLOOKUP($F31,'CBAT Lookups'!$B$17:$K$19,8)=\"W\",1,IF(COUNTIF('CBAT Lookups'!$B$5:$B$12,\"Controls-\"&CBAT!$D31)=1,VLOOKUP(\"Controls-\"&CBAT!$D31,'CBAT Lookups'!$B$5:$K$12,8),0)*VLOOKUP($F31,'CBAT Lookups'!$B$17:$K$19,8)))","v":""},{"$f":"IF('Project Scope'!$C31=\"\",\"\",IF(VLOOKUP($F31,'CBAT Lookups'!$B$17:$K$19,9)=\"W\",1,IF(COUNTIF('CBAT Lookups'!$B$5:$B$12,\"Controls-\"&CBAT!$D31)=1,VLOOKUP(\"Controls-\"&CBAT!$D31,'CBAT Lookups'!$B$5:$K$12,9),0)*VLOOKUP($F31,'CBAT Lookups'!$B$17:$K$19,9)))","v":""},{"$f":"IF('Project Scope'!$C31=\"\",\"\",IF(COUNTIF('CBAT Lookups'!$B$5:$B$12,\"Controls-\"&CBAT!$D31)=1,VLOOKUP(\"Controls-\"&CBAT!$D31,'CBAT Lookups'!$B$5:$K$12,10),0)*VLOOKUP($F31,'CBAT Lookups'!$B$17:$K$19,10))","v":""},{"$f":"IF('Project Scope'!$C31=\"\",\"\",VLOOKUP($C31,'CBAT Lookups'!$A$33:$B$57,2))","v":""},{"$f":"IF('Project Scope'!$C31=\"\",\"\",IF(COUNTIF('CBAT Lookups'!$B$5:$B$12,\"Controls-\"&CBAT!$D31)=1,VLOOKUP(\"Controls-\"&CBAT!$D31,'CBAT Lookups'!$B$5:$O$12,12),0))","v":""},{"$f":"IF('Project Scope'!$C31=\"\",\"\",IF(COUNTIF('CBAT Lookups'!$B$5:$B$12,\"Controls-\"&CBAT!$D31)=1,VLOOKUP(\"Controls-\"&CBAT!$D31,'CBAT Lookups'!$B$5:$O$12,13),0))","v":""},{"$f":"IF('Project Scope'!$C31=\"\",\"\",IF(COUNTIF('CBAT Lookups'!$B$5:$B$12,\"Controls-\"&CBAT!$D31)=1,VLOOKUP(\"Controls-\"&CBAT!$D31,'CBAT Lookups'!$B$5:$O$12,14),0))","v":""},{"$f":"IF('Project Scope'!$C31=\"\",\"\",'TRM Data'!$U$3)","v":""},{"$f":"IF('Project Scope'!$C31=\"\",\"\",'TRM Data'!$V$3)","v":""},{"$f":"IF('Project Scope'!$C31=\"\",\"\",IF($K31<=0,0,MAX(0,(IF(AND($I31>0,$J31>0),($I31*$J31)/1000,($G31*$H31)/1000)*$L31))*$BT31*$BR31)+($CD31/0.003412))","v":""},{"$f":"IF('Project Scope'!$C31=\"\",\"\",IF($K31<=0,0,MAX(0,IF(AND($I31>0,$J31>0),($I31*$J31)/1000,($G31*$H31)/1000))*$BQ31))","v":""},{"$f":"IF('Project Scope'!$C31=\"\",\"\",IF($K31<=0,0,MAX(0,IF(AND($I31>0,$J31>0),($I31*$J31)/1000,($G31*$H31)/1000))*$BK31))","v":""},{"$f":"IF('Project Scope'!$C31=\"\",\"\",IF($K31<=0,0,MAX(0,IF(AND($I31>0,$J31>0),($I31*$J31)/1000,($G31*$H31)/1000))*$BL31*$BQ31))","v":""},{"$f":"IF('Project Scope'!$C31=\"\",\"\",IF(OR($K31<=0,'Project Information'!$D$44=\"\"),0,-1*MAX(0,IF(AND($I31>0,$J31>0),($I31*$J31)/1000,($G31*$H31)/1000))*$BT31*$L31*$BS31*VLOOKUP('Project Information'!$D$44,'CBAT Lookups'!$A$23:$H$30,2)))","v":""},{"$f":"IF('Project Scope'!$C31=\"\",\"\",IF(OR($K31<=0,'Project Information'!$D$44=\"\"),0,-1*MAX(0,IF(AND($I31>0,$J31>0),($I31*$J31)/1000,($G31*$H31)/1000))*$BT31*$L31*$BS31*VLOOKUP('Project Information'!$D$44,'CBAT Lookups'!$A$23:$H$30,3)))","v":""},{"$f":"IF('Project Scope'!$C31=\"\",\"\",IF(OR($K31<=0,'Project Information'!$D$44=\"\"),0,-1*MAX(0,IF(AND($I31>0,$J31>0),($I31*$J31)/1000,($G31*$H31)/1000))*$BT31*$L31*$BS31*VLOOKUP('Project Information'!$D$44,'CBAT Lookups'!$A$23:$H$30,4)))","v":""},{"$f":"IF('Project Scope'!$C31=\"\",\"\",IF(OR($K31<=0,'Project Information'!$D$44=\"\"),0,-1*MAX(0,IF(AND($I31>0,$J31>0),($I31*$J31)/1000,($G31*$H31)/1000))*$BT31*$L31*$BS31*VLOOKUP('Project Information'!$D$44,'CBAT Lookups'!$A$23:$H$30,5)))","v":""},{"$f":"IF('Project Scope'!$C31=\"\",\"\",IF(OR($K31<=0,'Project Information'!$D$44=\"\"),0,-1*MAX(0,IF(AND($I31>0,$J31>0),($I31*$J31)/1000,($G31*$H31)/1000))*$BT31*$L31*$BS31*VLOOKUP('Project Information'!$D$44,'CBAT Lookups'!$A$23:$H$30,6)))","v":""},{"$f":"IF('Project Scope'!$C31=\"\",\"\",IF(OR($K31<=0,'Project Information'!$D$44=\"\"),0,-1*MAX(0,IF(AND($I31>0,$J31>0),($I31*$J31)/1000,($G31*$H31)/1000))*$BT31*$L31*$BS31*VLOOKUP('Project Information'!$D$44,'CBAT Lookups'!$A$23:$H$30,7)))","v":""},{"$f":"IF('Project Scope'!$C31=\"\",\"\",IF(OR($K31<=0,'Project Information'!$D$44=\"\"),0,-1*MAX(0,IF(AND($I31>0,$J31>0),($I31*$J31)/1000,($G31*$H31)/1000))*$BT31*$L31*$BS31*VLOOKUP('Project Information'!$D$44,'CBAT Lookups'!$A$23:$H$30,8)))","v":""},null,{"$f":"IF('Project Scope'!$C31=\"\",\"\",VLOOKUP($F31,'CBAT Lookups'!$B$17:$K$19,4))","v":""},{"$f":"IF('Project Scope'!$C31=\"\",\"\",VLOOKUP($F31,'CBAT Lookups'!$B$17:$K$19,5))","v":""},{"$f":"IF('Project Scope'!$C31=\"\",\"\",VLOOKUP($F31,'CBAT Lookups'!$B$17:$K$19,6))","v":""},{"$f":"IF('Project Scope'!$C31=\"\",\"\",VLOOKUP($F31,'CBAT Lookups'!$B$17:$K$19,7))","v":""},{"$f":"IF('Project Scope'!$C31=\"\",\"\",IF(SUMPRODUCT($BM31:$BP31,$CL31:$CO31)=0,0,BM31*CL31/SUMPRODUCT($BM31:$BP31,$CL31:$CO31)))","v":""},{"$f":"IF('Project Scope'!$C31=\"\",\"\",IF(SUMPRODUCT($BM31:$BP31,$CL31:$CO31)=0,0,BN31*CM31/SUMPRODUCT($BM31:$BP31,$CL31:$CO31)))","v":""},{"$f":"IF('Project Scope'!$C31=\"\",\"\",IF(SUMPRODUCT($BM31:$BP31,$CL31:$CO31)=0,0,BO31*CN31/SUMPRODUCT($BM31:$BP31,$CL31:$CO31)))","v":""},{"$f":"IF('Project Scope'!$C31=\"\",\"\",IF(SUMPRODUCT($BM31:$BP31,$CL31:$CO31)=0,0,BP31*CO31/SUMPRODUCT($BM31:$BP31,$CL31:$CO31)))","v":""},{"$f":"IF('Project Scope'!$C31=\"\",\"\",Benefits($BZ31,$CB31,$CC31,$CE31,$CF31,$CG31,$CH31,$CI31,$CJ31,$CK31,$BJ31,$CP31,$CQ31,$CR31,$CS31,$BU31,$BV31,$BW31,$BX31,$BY31,$E31))","v":""},"","","","","","","","",null,{"$f":"IF('Project Scope'!$C31=\"\",\"\",SUM('Project Scope'!$BB31,'Project Scope'!$BC31))","v":""},{"$f":"IF('Project Scope'!$C31=\"\",\"\",SUM('Project Scope'!$BH31, 'Project Scope'!$AZ31,(IF(ISNUMBER('Project Scope'!$BA31),'Project Scope'!$BA31,0)*'Project Information'!$D$12)))","v":""},null,null,{"$f":"IF('Project Scope'!$C31=\"\",\"\",IF($J31<=0,0,(SUMPRODUCT($AV31:$BC31,--($AV31:$BC31>0))+$BE31)*$DK31/((-SUMPRODUCT($AV31:$BC31,--($AV31:$BC31<0))+$BG31+$BH31+$BI31)*$DK31)))","v":""},{"$f":"IF('Project Scope'!$C31=\"\",\"\",IF($K31<=0,0,(SUMPRODUCT($CT31:$DA31,--($CT31:$DA31>0))+$DC31)*$DK31/((-SUMPRODUCT($CT31:$DA31,--($CT31:$DA31<0))+$DE31+$DF31+$DG31)*$DK31)))","v":""},{"$f":"IF('Project Scope'!$C31=\"\",\"\",IF(AND($J31<=0,$K31<=0),0,(SUMPRODUCT($AV31:$BC31,--($AV31:$BC31>0))+$BE31+SUMPRODUCT($CT31:$DA31,--($CT31:$DA31>0))+$DC31)*$DK31/((-SUMPRODUCT($AV31:$BC31,--($AV31:$BC31<0))+$BG31+$BH31+$BI31-SUMPRODUCT($CT31:$DA31,--($CT31:$DA31<0))+$DE31+$DF31+$DG31)*$DK31)))","v":""},{"$f":"IF('Project Scope'!$C31=\"\",\"\",IF(NetOrGross=\"Net\",(1-Z31+AA31),1))","v":""}]
[{"$f":"'Project Scope'!$B32","v":25},{"$f":"IF('Project Scope'!$C32=\"\",\"\",'Project Scope'!$C32)","v":""},{"$f":"IF('Project Scope'!$C32=\"\",\"\",'Project Scope'!$H32)","v":""},{"$f":"IF(ISNUMBER(SEARCH(\"Bay\",'Project Scope'!$Q32)),\"Bay\",IF('Project Scope'!C32=\"\",\"\",'Project Scope'!E32))","v":""},{"$f":"IF('Project Scope'!$C32=\"\",\"\",\"Com\")","v":""},{"$f":"IF('Project Scope'!$C32=\"\",\"\",'Project Scope'!$L32)","v":""},{"$f":"IF('Project Scope'!$C32=\"\",\"\",IF('Project Scope'!$CJ32=\"\",0,'Project Scope'!$CJ32))","v":""},{"$f":"IF('Project Scope'!$C32=\"\",\"\",IF('Project Scope'!$N32=\"\",0,'Project Scope'!$N32))","v":""},{"$f":"IF('Project Scope'!$C32=\"\",\"\",IF('Project Scope'!$CK32=\"\",0,'Project Scope'!$CK32))","v":""},{"$f":"IF('Project Scope'!$C32=\"\",\"\",IF('Project Scope'!$AO32=\"\",0,'Project Scope'!$AO32))","v":""},{"$f":"IF('Project Scope'!$C32=\"\",\"\",IF('Project Scope'!$AX32=\"\",0,'Project Scope'!$AX32))","v":""},{"$f":"IF('Project Scope'!$C32=\"\",\"\",IF('Project Scope'!$M32=\"\",0,'Project Scope'!$M32))","v":""},{"$f":"IF('Project Scope'!$C32=\"\",\"\",IF(COUNTIF('CBAT Lookups'!$B$5:$B$12,\"Fixtures-\"&CBAT!$D32)=1,VLOOKUP(\"Fixtures-\"&CBAT!$D32,'CBAT Lookups'!$B$5:$L$12,11),0))","v":""},{"$f":"IF('Project Scope'!$C32=\"\",\"\",(IF(COUNTIF('CBAT Lookups'!$B$5:$B$12,\"Fixtures-\"&CBAT!$D32)=1,VLOOKUP(\"Fixtures-\"&CBAT!$D32,'CBAT Lookups'!$B$5:$K$12,2),0))*VLOOKUP($F32,'CBAT Lookups'!$B$17:$K$19,2))","v":""},{"$f":"IF('Project Scope'!$C32=\"\",\"\",(IF(COUNTIF('CBAT Lookups'!$B$5:$B$12,\"Fixtures-\"&CBAT!$D32)=1,VLOOKUP(\"Fixtures-\"&CBAT!$D32,'CBAT Lookups'!$B$5:$K$12,3),0))*VLOOKUP($F32,'CBAT Lookups'!$B$17:$K$19,3))","v":""},{"$f":"IF('Project Scope'!$C32=\"\",\"\",(IF(COUNTIF('CBAT Lookups'!$B$5:$B$12,\"Fixtures-\"&CBAT!$D32)=1,VLOOKUP(\"Fixtures-\"&CBAT!$D32,'CBAT Lookups'!$B$5:$K$12,4),0)))","v":""},{"$f":"IF('Project Scope'!$C32=\"\",\"\",(IF(COUNTIF('CBAT Lookups'!$B$5:$B$12,\"Fixtures-\"&CBAT!$D32)=1,VLOOKUP(\"Fixtures-\"&CBAT!$D32,'CBAT Lookups'!$B$5:$K$12,5),0)))","v":""},{"$f":"IF('Project Scope'!$C32=\"\",\"\",(IF(COUNTIF('CBAT Lookups'!$B$5:$B$12,\"Fixtures-\"&CBAT!$D32)=1,VLOOKUP(\"Fixtures-\"&CBAT!$D32,'CBAT Lookups'!$B$5:$K$12,6),0)))","v":""},{"$f":"IF('Project Scope'!$C32=\"\",\"\",IF(COUNTIF('CBAT Lookups'!$B$5:$B$12,\"Fixtures-\"&CBAT!$D32)=1,VLOOKUP(\"Fixtures-\"&CBAT!$D32,'CBAT Lookups'!$B$5:$K$12,7),0))","v":""},{"$f":"IF('Project Scope'!$C32=\"\",\"\",IF(VLOOKUP($F32,'CBAT Lookups'!$B$17:$K$19,8)=\"W\",1,IF(COUNTIF('CBAT Lookups'!$B$5:$B$12,\"Fixtures-\"&CBAT!$D32)=1,VLOOKUP(\"Fixtures-\"&CBAT!$D32,'CBAT Lookups'!$B$5:$K$12,8),0)*VLOOKUP($F32,'CBAT Lookups'!$B$17:$K$19,8)))","v":""},{"$f":"IF('Project Scope'!$C32=\"\",\"\",IF(VLOOKUP($F32,'CBAT Lookups'!$B$17:$K$19,9)=\"W\",1,IF(COUNTIF('CBAT Lookups'!$B$5:$B$12,\"Fixtures-\"&CBAT!$D32)=1,VLOOKUP(\"Fixtures-\"&CBAT!$D32,'CBAT Lookups'!$B$5:$K$12,9),0)*VLOOKUP($F32,'CBAT Lookups'!$B$17:$K$19,9)))","v":""},{"$f":"IF('Project Scope'!$C32=\"\",\"\",IF(COUNTIF('CBAT Lookups'!$B$5:$B$12,\"Fixtures-\"&CBAT!$D32)=1,VLOOKUP(\"Fixtures-\"&CBAT!$D32,'CBAT Lookups'!$B$5:$K$12,10),0)*VLOOKUP($F32,'CBAT Lookups'!$B$17:$K$19,10))","v":""},{"$f":"IF('Project Scope'!$C32=\"\",\"\",IF(COUNTIF('CBAT Lookups'!$B$5:$B$12,\"Fixtures-\"&CBAT!$D32)=1,VLOOKUP(\"Fixtures-\"&CBAT!$D32,'CBAT Lookups'!$B$5:$O$12,12),0))","v":""},{"$f":"IF('Project Scope'!$C32=\"\",\"\",IF(COUNTIF('CBAT Lookups'!$B$5:$B$12,\"Fixtures-\"&CBAT!$D32)=1,VLOOKUP(\"Fixtures-\"&CBAT!$D32,'CBAT Lookups'!$B$5:$O$12,13),0))","v":""},{"$f":"IF('Project Scope'!$C32=\"\",\"\",IF(COUNTIF('CBAT Lookups'!$B$5:$B$12,\"Fixtures-\"&CBAT!$D32)=1,VLOOKUP(\"Fixtures-\"&CBAT!$D32,'CBAT Lookups'!$B$5:$O$12,14),0))","v":""},{"$f":"IF('Project Scope'!$C32=\"\",\"\",'TRM Data'!$U$3)","v":""},{"$f":"IF('Project Scope'!$C32=\"\",\"\",'TRM Data'!$V$3)","v":""},{"$f":"IF('Project Scope'!$C32=\"\",\"\",IF($J32<=0,0,MAX(0,(($G32*$H32/1000)-($I32*$J32/1000))*$L32)*$U32)+($AF32/0.003412))","v":""},{"$f":"IF('Project Scope'!$C32=\"\",\"\",IF($J32<=0,0,MAX(0,(($G32*$H32/1000)-($I32*$J32/1000)))*$T32))","v":""},{"$f":"IF('Project Scope'!$C32=\"\",\"\",IF($J32<=0,0,MAX(0,(($G32*$H32/1000)-($I32*$J32/1000))*$N32)))","v":""},{"$f":"IF('Project Scope'!$C32=\"\",\"\",IF($J32<=0,0,MAX(0,(($G32*$H32/1000)-($I32*$J32/1000))*$O32)*$T32))","v":""},{"$f":"IF('Project Scope'!$C32=\"\",\"\",IF(OR($J32<=0,'Project Information'!$D$44=\"\"),0,-1*MAX(0,(($G32*$H32/1000)-($I32*$J32/1000))*$L32)*$V32*VLOOKUP('Project Information'!$D$44,'CBAT Lookups'!$A$23:$H$30,2)))","v":""},{"$f":"IF('Project Scope'!$C32=\"\",\"\",IF(OR($J32<=0,'Project Information'!$D$44=\"\"),0,-1*MAX(0,(($G32*$H32/1000)-($I32*$J32/1000))*$L32)*$V32*VLOOKUP('Project Information'!$D$44,'CBAT Lookups'!$A$23:$H$30,3)))","v":""},{"$f":"IF('Project Scope'!$C32=\"\",\"\",IF(OR($J32<=0,'Project Information'!$D$44=\"\"),0,-1*MAX(0,(($G32*$H32/1000)-($I32*$J32/1000))*$L32)*$V32*VLOOKUP('Project Information'!$D$44,'CBAT Lookups'!$A$23:$H$30,4)))","v":""},{"$f":"IF('Project Scope'!$C32=\"\",\"\",IF(OR($J32<=0,'Project Information'!$D$44=\"\"),0,-1*MAX(0,(($G32*$H32/1000)-($I32*$J32/1000))*$L32)*$V32*VLOOKUP('Project Information'!$D$44,'CBAT Lookups'!$A$23:$H$30,5)))","v":""},{"$f":"IF('Project Scope'!$C32=\"\",\"\",IF(OR($J32<=0,'Project Information'!$D$44=\"\"),0,-1*MAX(0,(($G32*$H32/1000)-($I32*$J32/1000))*$L32)*$V32*VLOOKUP('Project Information'!$D$44,'CBAT Lookups'!$A$23:$H$30,6)))","v":""},{"$f":"IF('Project Scope'!$C32=\"\",\"\",IF(OR($J32<=0,'Project Information'!$D$44=\"\"),0,-1*MAX(0,(($G32*$H32/1000)-($I32*$J32/1000))*$L32)*$V32*VLOOKUP('Project Information'!$D$44,'CBAT Lookups'!$A$23:$H$30,7)))","v":""},{"$f":"IF('Project Scope'!$C32=\"\",\"\",IF(OR($J32<=0,'Project Information'!$D$44=\"\"),0,-1*MAX(0,(($G32*$H32/1000)-($I32*$J32/1000))*$L32)*$V32*VLOOKUP('Project Information'!$D$44,'CBAT Lookups'!$A$23:$H$30,8)))","v":""},null,{"$f":"IF('Project Scope'!$C32=\"\",\"\",VLOOKUP($F32,'CBAT Lookups'!$B$17:$K$19,4))","v":""},{"$f":"IF('Project Scope'!$C32=\"\",\"\",VLOOKUP($F32,'CBAT Lookups'!$B$17:$K$19,5))","v":""},{"$f":"IF('Project Scope'!$C32=\"\",\"\",VLOOKUP($F32,'CBAT Lookups'!$B$17:$K$19,6))","v":""},{"$f":"IF('Project Scope'!$C32=\"\",\"\",VLOOKUP($F32,'CBAT Lookups'!$B$17:$K$19,7))","v":""},{"$f":"IF('Project Scope'!$C32=\"\",\"\",IF(SUMPRODUCT($P32:$S32,$AN32:$AQ32)=0,0,P32*AN32/SUMPRODUCT($P32:$S32,$AN32:$AQ32)))","v":""},{"$f":"IF('Project Scope'!$C32=\"\",\"\",IF(SUMPRODUCT($P32:$S32,$AN32:$AQ32)=0,0,Q32*AO32/SUMPRODUCT($P32:$S32,$AN32:$AQ32)))","v":""},{"$f":"IF('Project Scope'!$C32=\"\",\"\",IF(SUMPRODUCT($P32:$S32,$AN32:$AQ32)=0,0,R32*AP32/SUMPRODUCT($P32:$S32,$AN32:$AQ32)))","v":""},{"$f":"IF('Project Scope'!$C32=\"\",\"\",IF(SUMPRODUCT($P32:$S32,$AN32:$AQ32)=0,0,S32*AQ32/SUMPRODUCT($P32:$S32,$AN32:$AQ32)))","v":""},{"$f":"IF('Project Scope'!$C32=\"\",\"\",Benefits($AB32,$AD32,$AE32,$AG32,$AH32,$AI32,$AJ32,$AK32,$AL32,$AM32,$M32,$AR32,$AS32,$AT32,$AU32,$W32,$X32,$Y32,$Z32,$AA32,$E32))","v":""},"","","","","","","","",null,{"$f":"IF('Project Scope'!$C32=\"\",\"\",SUM('Project Scope'!$AT32,'Project Scope'!$AU32))","v":""},{"$f":"IF('Project Scope'!$C32=\"\",\"\",SUM('Project Scope'!$BG32, 'Project Scope'!$AR32,(IF(ISNUMBER('Project Scope'!$AS32),'Project Scope'!$AS32,0)*'Project Information'!$D$12)))","v":""},null,null,{"$f":"IF('Project Scope'!$C32=\"\",\"\",IF(COUNTIF('CBAT Lookups'!$B$5:$B$12,\"Controls-\"&CBAT!$D32)=1,VLOOKUP(\"Controls-\"&CBAT!$D32,'CBAT Lookups'!$B$5:$L$12,11),0))","v":""},{"$f":"IF('Project Scope'!$C32=\"\",\"\",IF(COUNTIF('CBAT Lookups'!$B$5:$B$12,\"Controls-\"&CBAT!$D32)=1,VLOOKUP(\"Controls-\"&CBAT!$D32,'CBAT Lookups'!$B$5:$K$12,2),0)*VLOOKUP($F32,'CBAT Lookups'!$B$17:$K$19,2))","v":""},{"$f":"IF('Project Scope'!$C32=\"\",\"\",IF(COUNTIF('CBAT Lookups'!$B$5:$B$12,\"Controls-\"&CBAT!$D32)=1,VLOOKUP(\"Controls-\"&CBAT!$D32,'CBAT Lookups'!$B$5:$K$12,3),0)*VLOOKUP($F32,'CBAT Lookups'!$B$17:$K$19,3))","v":""},{"$f":"IF('Project Scope'!$C32=\"\",\"\",IF(COUNTIF('CBAT Lookups'!$B$5:$B$12,\"Controls-\"&CBAT!$D32)=1,VLOOKUP(\"Controls-\"&CBAT!$D32,'CBAT Lookups'!$B$5:$K$12,4),0))","v":""},{"$f":"IF('Project Scope'!$C32=\"\",\"\",IF(COUNTIF('CBAT Lookups'!$B$5:$B$12,\"Controls-\"&CBAT!$D32)=1,VLOOKUP(\"Controls-\"&CBAT!$D32,'CBAT Lookups'!$B$5:$K$12,5),0))","v":""},{"$f":"IF('Project Scope'!$C32=\"\",\"\",IF(COUNTIF('CBAT Lookups'!$B$5:$B$12,\"Controls-\"&CBAT!$D32)=1,VLOOKUP(\"Controls-\"&CBAT!$D32,'CBAT Lookups'!$B$5:$K$12,6),0))","v":""},{"$f":"IF('Project Scope'!$C32=\"\",\"\",IF(COUNTIF('CBAT Lookups'!$B$5:$B$12,\"Controls-\"&CBAT!$D32)=1,VLOOKUP(\"Controls-\"&CBAT!$D32,'CBAT Lookups'!$B$5:$K$12,7),0))","v":""},{"$f":"IF('Project Scope'!$C32=\"\",\"\",IF(VLOOKUP($F32,'CBAT Lookups'!$B$17:$K$19,8)=\"W\",1,IF(COUNTIF('CBAT Lookups'!$B$5:$B$12,\"Controls-\"&CBAT!$D32)=1,VLOOKUP(\"Controls-\"&CBAT!$D32,'CBAT Lookups'!$B$5:$K$12,8),0)*VLOOKUP($F32,'CBAT Lookups'!$B$17:$K$19,8)))","v":""},{"$f":"IF('Project Scope'!$C32=\"\",\"\",IF(VLOOKUP($F32,'CBAT Lookups'!$B$17:$K$19,9)=\"W\",1,IF(COUNTIF('CBAT Lookups'!$B$5:$B$12,\"Controls-\"&CBAT!$D32)=1,VLOOKUP(\"Controls-\"&CBAT!$D32,'CBAT Lookups'!$B$5:$K$12,9),0)*VLOOKUP($F32,'CBAT Lookups'!$B$17:$K$19,9)))","v":""},{"$f":"IF('Project Scope'!$C32=\"\",\"\",IF(COUNTIF('CBAT Lookups'!$B$5:$B$12,\"Controls-\"&CBAT!$D32)=1,VLOOKUP(\"Controls-\"&CBAT!$D32,'CBAT Lookups'!$B$5:$K$12,10),0)*VLOOKUP($F32,'CBAT Lookups'!$B$17:$K$19,10))","v":""},{"$f":"IF('Project Scope'!$C32=\"\",\"\",VLOOKUP($C32,'CBAT Lookups'!$A$33:$B$57,2))","v":""},{"$f":"IF('Project Scope'!$C32=\"\",\"\",IF(COUNTIF('CBAT Lookups'!$B$5:$B$12,\"Controls-\"&CBAT!$D32)=1,VLOOKUP(\"Controls-\"&CBAT!$D32,'CBAT Lookups'!$B$5:$O$12,12),0))","v":""},{"$f":"IF('Project Scope'!$C32=\"\",\"\",IF(COUNTIF('CBAT Lookups'!$B$5:$B$12,\"Controls-\"&CBAT!$D32)=1,VLOOKUP(\"Controls-\"&CBAT!$D32,'CBAT Lookups'!$B$5:$O$12,13),0))","v":""},{"$f":"IF('Project Scope'!$C32=\"\",\"\",IF(COUNTIF('CBAT Lookups'!$B$5:$B$12,\"Controls-\"&CBAT!$D32)=1,VLOOKUP(\"Controls-\"&CBAT!$D32,'CBAT Lookups'!$B$5:$O$12,14),0))","v":""},{"$f":"IF('Project Scope'!$C32=\"\",\"\",'TRM Data'!$U$3)","v":""},{"$f":"IF('Project Scope'!$C32=\"\",\"\",'TRM Data'!$V$3)","v":""},{"$f":"IF('Project Scope'!$C32=\"\",\"\",IF($K32<=0,0,MAX(0,(IF(AND($I32>0,$J32>0),($I32*$J32)/1000,($G32*$H32)/1000)*$L32))*$BT32*$BR32)+($CD32/0.003412))","v":""},{"$f":"IF('Project Scope'!$C32=\"\",\"\",IF($K32<=0,0,MAX(0,IF(AND($I32>0,$J32>0),($I32*$J32)/1000,($G32*$H32)/1000))*$BQ32))","v":""},{"$f":"IF('Project Scope'!$C32=\"\",\"\",IF($K32<=0,0,MAX(0,IF(AND($I32>0,$J32>0),($I32*$J32)/1000,($G32*$H32)/1000))*$BK32))","v":""},{"$f":"IF('Project Scope'!$C32=\"\",\"\",IF($K32<=0,0,MAX(0,IF(AND($I32>0,$J32>0),($I32*$J32)/1000,($G32*$H32)/1000))*$BL32*$BQ32))","v":""},{"$f":"IF('Project Scope'!$C32=\"\",\"\",IF(OR($K32<=0,'Project Information'!$D$44=\"\"),0,-1*MAX(0,IF(AND($I32>0,$J32>0),($I32*$J32)/1000,($G32*$H32)/1000))*$BT32*$L32*$BS32*VLOOKUP('Project Information'!$D$44,'CBAT Lookups'!$A$23:$H$30,2)))","v":""},{"$f":"IF('Project Scope'!$C32=\"\",\"\",IF(OR($K32<=0,'Project Information'!$D$44=\"\"),0,-1*MAX(0,IF(AND($I32>0,$J32>0),($I32*$J32)/1000,($G32*$H32)/1000))*$BT32*$L32*$BS32*VLOOKUP('Project Information'!$D$44,'CBAT Lookups'!$A$23:$H$30,3)))","v":""},{"$f":"IF('Project Scope'!$C32=\"\",\"\",IF(OR($K32<=0,'Project Information'!$D$44=\"\"),0,-1*MAX(0,IF(AND($I32>0,$J32>0),($I32*$J32)/1000,($G32*$H32)/1000))*$BT32*$L32*$BS32*VLOOKUP('Project Information'!$D$44,'CBAT Lookups'!$A$23:$H$30,4)))","v":""},{"$f":"IF('Project Scope'!$C32=\"\",\"\",IF(OR($K32<=0,'Project Information'!$D$44=\"\"),0,-1*MAX(0,IF(AND($I32>0,$J32>0),($I32*$J32)/1000,($G32*$H32)/1000))*$BT32*$L32*$BS32*VLOOKUP('Project Information'!$D$44,'CBAT Lookups'!$A$23:$H$30,5)))","v":""},{"$f":"IF('Project Scope'!$C32=\"\",\"\",IF(OR($K32<=0,'Project Information'!$D$44=\"\"),0,-1*MAX(0,IF(AND($I32>0,$J32>0),($I32*$J32)/1000,($G32*$H32)/1000))*$BT32*$L32*$BS32*VLOOKUP('Project Information'!$D$44,'CBAT Lookups'!$A$23:$H$30,6)))","v":""},{"$f":"IF('Project Scope'!$C32=\"\",\"\",IF(OR($K32<=0,'Project Information'!$D$44=\"\"),0,-1*MAX(0,IF(AND($I32>0,$J32>0),($I32*$J32)/1000,($G32*$H32)/1000))*$BT32*$L32*$BS32*VLOOKUP('Project Information'!$D$44,'CBAT Lookups'!$A$23:$H$30,7)))","v":""},{"$f":"IF('Project Scope'!$C32=\"\",\"\",IF(OR($K32<=0,'Project Information'!$D$44=\"\"),0,-1*MAX(0,IF(AND($I32>0,$J32>0),($I32*$J32)/1000,($G32*$H32)/1000))*$BT32*$L32*$BS32*VLOOKUP('Project Information'!$D$44,'CBAT Lookups'!$A$23:$H$30,8)))","v":""},null,{"$f":"IF('Project Scope'!$C32=\"\",\"\",VLOOKUP($F32,'CBAT Lookups'!$B$17:$K$19,4))","v":""},{"$f":"IF('Project Scope'!$C32=\"\",\"\",VLOOKUP($F32,'CBAT Lookups'!$B$17:$K$19,5))","v":""},{"$f":"IF('Project Scope'!$C32=\"\",\"\",VLOOKUP($F32,'CBAT Lookups'!$B$17:$K$19,6))","v":""},{"$f":"IF('Project Scope'!$C32=\"\",\"\",VLOOKUP($F32,'CBAT Lookups'!$B$17:$K$19,7))","v":""},{"$f":"IF('Project Scope'!$C32=\"\",\"\",IF(SUMPRODUCT($BM32:$BP32,$CL32:$CO32)=0,0,BM32*CL32/SUMPRODUCT($BM32:$BP32,$CL32:$CO32)))","v":""},{"$f":"IF('Project Scope'!$C32=\"\",\"\",IF(SUMPRODUCT($BM32:$BP32,$CL32:$CO32)=0,0,BN32*CM32/SUMPRODUCT($BM32:$BP32,$CL32:$CO32)))","v":""},{"$f":"IF('Project Scope'!$C32=\"\",\"\",IF(SUMPRODUCT($BM32:$BP32,$CL32:$CO32)=0,0,BO32*CN32/SUMPRODUCT($BM32:$BP32,$CL32:$CO32)))","v":""},{"$f":"IF('Project Scope'!$C32=\"\",\"\",IF(SUMPRODUCT($BM32:$BP32,$CL32:$CO32)=0,0,BP32*CO32/SUMPRODUCT($BM32:$BP32,$CL32:$CO32)))","v":""},{"$f":"IF('Project Scope'!$C32=\"\",\"\",Benefits($BZ32,$CB32,$CC32,$CE32,$CF32,$CG32,$CH32,$CI32,$CJ32,$CK32,$BJ32,$CP32,$CQ32,$CR32,$CS32,$BU32,$BV32,$BW32,$BX32,$BY32,$E32))","v":""},"","","","","","","","",null,{"$f":"IF('Project Scope'!$C32=\"\",\"\",SUM('Project Scope'!$BB32,'Project Scope'!$BC32))","v":""},{"$f":"IF('Project Scope'!$C32=\"\",\"\",SUM('Project Scope'!$BH32, 'Project Scope'!$AZ32,(IF(ISNUMBER('Project Scope'!$BA32),'Project Scope'!$BA32,0)*'Project Information'!$D$12)))","v":""},null,null,{"$f":"IF('Project Scope'!$C32=\"\",\"\",IF($J32<=0,0,(SUMPRODUCT($AV32:$BC32,--($AV32:$BC32>0))+$BE32)*$DK32/((-SUMPRODUCT($AV32:$BC32,--($AV32:$BC32<0))+$BG32+$BH32+$BI32)*$DK32)))","v":""},{"$f":"IF('Project Scope'!$C32=\"\",\"\",IF($K32<=0,0,(SUMPRODUCT($CT32:$DA32,--($CT32:$DA32>0))+$DC32)*$DK32/((-SUMPRODUCT($CT32:$DA32,--($CT32:$DA32<0))+$DE32+$DF32+$DG32)*$DK32)))","v":""},{"$f":"IF('Project Scope'!$C32=\"\",\"\",IF(AND($J32<=0,$K32<=0),0,(SUMPRODUCT($AV32:$BC32,--($AV32:$BC32>0))+$BE32+SUMPRODUCT($CT32:$DA32,--($CT32:$DA32>0))+$DC32)*$DK32/((-SUMPRODUCT($AV32:$BC32,--($AV32:$BC32<0))+$BG32+$BH32+$BI32-SUMPRODUCT($CT32:$DA32,--($CT32:$DA32<0))+$DE32+$DF32+$DG32)*$DK32)))","v":""},{"$f":"IF('Project Scope'!$C32=\"\",\"\",IF(NetOrGross=\"Net\",(1-Z32+AA32),1))","v":""}]
[{"$f":"'Project Scope'!$B33","v":26},{"$f":"IF('Project Scope'!$C33=\"\",\"\",'Project Scope'!$C33)","v":""},{"$f":"IF('Project Scope'!$C33=\"\",\"\",'Project Scope'!$H33)","v":""},{"$f":"IF(ISNUMBER(SEARCH(\"Bay\",'Project Scope'!$Q33)),\"Bay\",IF('Project Scope'!C33=\"\",\"\",'Project Scope'!E33))","v":""},{"$f":"IF('Project Scope'!$C33=\"\",\"\",\"Com\")","v":""},{"$f":"IF('Project Scope'!$C33=\"\",\"\",'Project Scope'!$L33)","v":""},{"$f":"IF('Project Scope'!$C33=\"\",\"\",IF('Project Scope'!$CJ33=\"\",0,'Project Scope'!$CJ33))","v":""},{"$f":"IF('Project Scope'!$C33=\"\",\"\",IF('Project Scope'!$N33=\"\",0,'Project Scope'!$N33))","v":""},{"$f":"IF('Project Scope'!$C33=\"\",\"\",IF('Project Scope'!$CK33=\"\",0,'Project Scope'!$CK33))","v":""},{"$f":"IF('Project Scope'!$C33=\"\",\"\",IF('Project Scope'!$AO33=\"\",0,'Project Scope'!$AO33))","v":""},{"$f":"IF('Project Scope'!$C33=\"\",\"\",IF('Project Scope'!$AX33=\"\",0,'Project Scope'!$AX33))","v":""},{"$f":"IF('Project Scope'!$C33=\"\",\"\",IF('Project Scope'!$M33=\"\",0,'Project Scope'!$M33))","v":""},{"$f":"IF('Project Scope'!$C33=\"\",\"\",IF(COUNTIF('CBAT Lookups'!$B$5:$B$12,\"Fixtures-\"&CBAT!$D33)=1,VLOOKUP(\"Fixtures-\"&CBAT!$D33,'CBAT Lookups'!$B$5:$L$12,11),0))","v":""},{"$f":"IF('Project Scope'!$C33=\"\",\"\",(IF(COUNTIF('CBAT Lookups'!$B$5:$B$12,\"Fixtures-\"&CBAT!$D33)=1,VLOOKUP(\"Fixtures-\"&CBAT!$D33,'CBAT Lookups'!$B$5:$K$12,2),0))*VLOOKUP($F33,'CBAT Lookups'!$B$17:$K$19,2))","v":""},{"$f":"IF('Project Scope'!$C33=\"\",\"\",(IF(COUNTIF('CBAT Lookups'!$B$5:$B$12,\"Fixtures-\"&CBAT!$D33)=1,VLOOKUP(\"Fixtures-\"&CBAT!$D33,'CBAT Lookups'!$B$5:$K$12,3),0))*VLOOKUP($F33,'CBAT Lookups'!$B$17:$K$19,3))","v":""},{"$f":"IF('Project Scope'!$C33=\"\",\"\",(IF(COUNTIF('CBAT Lookups'!$B$5:$B$12,\"Fixtures-\"&CBAT!$D33)=1,VLOOKUP(\"Fixtures-\"&CBAT!$D33,'CBAT Lookups'!$B$5:$K$12,4),0)))","v":""},{"$f":"IF('Project Scope'!$C33=\"\",\"\",(IF(COUNTIF('CBAT Lookups'!$B$5:$B$12,\"Fixtures-\"&CBAT!$D33)=1,VLOOKUP(\"Fixtures-\"&CBAT!$D33,'CBAT Lookups'!$B$5:$K$12,5),0)))","v":""},{"$f":"IF('Project Scope'!$C33=\"\",\"\",(IF(COUNTIF('CBAT Lookups'!$B$5:$B$12,\"Fixtures-\"&CBAT!$D33)=1,VLOOKUP(\"Fixtures-\"&CBAT!$D33,'CBAT Lookups'!$B$5:$K$12,6),0)))","v":""},{"$f":"IF('Project Scope'!$C33=\"\",\"\",IF(COUNTIF('CBAT Lookups'!$B$5:$B$12,\"Fixtures-\"&CBAT!$D33)=1,VLOOKUP(\"Fixtures-\"&CBAT!$D33,'CBAT Lookups'!$B$5:$K$12,7),0))","v":""},{"$f":"IF('Project Scope'!$C33=\"\",\"\",IF(VLOOKUP($F33,'CBAT Lookups'!$B$17:$K$19,8)=\"W\",1,IF(COUNTIF('CBAT Lookups'!$B$5:$B$12,\"Fixtures-\"&CBAT!$D33)=1,VLOOKUP(\"Fixtures-\"&CBAT!$D33,'CBAT Lookups'!$B$5:$K$12,8),0)*VLOOKUP($F33,'CBAT Lookups'!$B$17:$K$19,8)))","v":""},{"$f":"IF('Project Scope'!$C33=\"\",\"\",IF(VLOOKUP($F33,'CBAT Lookups'!$B$17:$K$19,9)=\"W\",1,IF(COUNTIF('CBAT Lookups'!$B$5:$B$12,\"Fixtures-\"&CBAT!$D33)=1,VLOOKUP(\"Fixtures-\"&CBAT!$D33,'CBAT Lookups'!$B$5:$K$12,9),0)*VLOOKUP($F33,'CBAT Lookups'!$B$17:$K$19,9)))","v":""},{"$f":"IF('Project Scope'!$C33=\"\",\"\",IF(COUNTIF('CBAT Lookups'!$B$5:$B$12,\"Fixtures-\"&CBAT!$D33)=1,VLOOKUP(\"Fixtures-\"&CBAT!$D33,'CBAT Lookups'!$B$5:$K$12,10),0)*VLOOKUP($F33,'CBAT Lookups'!$B$17:$K$19,10))","v":""},{"$f":"IF('Project Scope'!$C33=\"\",\"\",IF(COUNTIF('CBAT Lookups'!$B$5:$B$12,\"Fixtures-\"&CBAT!$D33)=1,VLOOKUP(\"Fixtures-\"&CBAT!$D33,'CBAT Lookups'!$B$5:$O$12,12),0))","v":""},{"$f":"IF('Project Scope'!$C33=\"\",\"\",IF(COUNTIF('CBAT Lookups'!$B$5:$B$12,\"Fixtures-\"&CBAT!$D33)=1,VLOOKUP(\"Fixtures-\"&CBAT!$D33,'CBAT Lookups'!$B$5:$O$12,13),0))","v":""},{"$f":"IF('Project Scope'!$C33=\"\",\"\",IF(COUNTIF('CBAT Lookups'!$B$5:$B$12,\"Fixtures-\"&CBAT!$D33)=1,VLOOKUP(\"Fixtures-\"&CBAT!$D33,'CBAT Lookups'!$B$5:$O$12,14),0))","v":""},{"$f":"IF('Project Scope'!$C33=\"\",\"\",'TRM Data'!$U$3)","v":""},{"$f":"IF('Project Scope'!$C33=\"\",\"\",'TRM Data'!$V$3)","v":""},{"$f":"IF('Project Scope'!$C33=\"\",\"\",IF($J33<=0,0,MAX(0,(($G33*$H33/1000)-($I33*$J33/1000))*$L33)*$U33)+($AF33/0.003412))","v":""},{"$f":"IF('Project Scope'!$C33=\"\",\"\",IF($J33<=0,0,MAX(0,(($G33*$H33/1000)-($I33*$J33/1000)))*$T33))","v":""},{"$f":"IF('Project Scope'!$C33=\"\",\"\",IF($J33<=0,0,MAX(0,(($G33*$H33/1000)-($I33*$J33/1000))*$N33)))","v":""},{"$f":"IF('Project Scope'!$C33=\"\",\"\",IF($J33<=0,0,MAX(0,(($G33*$H33/1000)-($I33*$J33/1000))*$O33)*$T33))","v":""},{"$f":"IF('Project Scope'!$C33=\"\",\"\",IF(OR($J33<=0,'Project Information'!$D$44=\"\"),0,-1*MAX(0,(($G33*$H33/1000)-($I33*$J33/1000))*$L33)*$V33*VLOOKUP('Project Information'!$D$44,'CBAT Lookups'!$A$23:$H$30,2)))","v":""},{"$f":"IF('Project Scope'!$C33=\"\",\"\",IF(OR($J33<=0,'Project Information'!$D$44=\"\"),0,-1*MAX(0,(($G33*$H33/1000)-($I33*$J33/1000))*$L33)*$V33*VLOOKUP('Project Information'!$D$44,'CBAT Lookups'!$A$23:$H$30,3)))","v":""},{"$f":"IF('Project Scope'!$C33=\"\",\"\",IF(OR($J33<=0,'Project Information'!$D$44=\"\"),0,-1*MAX(0,(($G33*$H33/1000)-($I33*$J33/1000))*$L33)*$V33*VLOOKUP('Project Information'!$D$44,'CBAT Lookups'!$A$23:$H$30,4)))","v":""},{"$f":"IF('Project Scope'!$C33=\"\",\"\",IF(OR($J33<=0,'Project Information'!$D$44=\"\"),0,-1*MAX(0,(($G33*$H33/1000)-($I33*$J33/1000))*$L33)*$V33*VLOOKUP('Project Information'!$D$44,'CBAT Lookups'!$A$23:$H$30,5)))","v":""},{"$f":"IF('Project Scope'!$C33=\"\",\"\",IF(OR($J33<=0,'Project Information'!$D$44=\"\"),0,-1*MAX(0,(($G33*$H33/1000)-($I33*$J33/1000))*$L33)*$V33*VLOOKUP('Project Information'!$D$44,'CBAT Lookups'!$A$23:$H$30,6)))","v":""},{"$f":"IF('Project Scope'!$C33=\"\",\"\",IF(OR($J33<=0,'Project Information'!$D$44=\"\"),0,-1*MAX(0,(($G33*$H33/1000)-($I33*$J33/1000))*$L33)*$V33*VLOOKUP('Project Information'!$D$44,'CBAT Lookups'!$A$23:$H$30,7)))","v":""},{"$f":"IF('Project Scope'!$C33=\"\",\"\",IF(OR($J33<=0,'Project Information'!$D$44=\"\"),0,-1*MAX(0,(($G33*$H33/1000)-($I33*$J33/1000))*$L33)*$V33*VLOOKUP('Project Information'!$D$44,'CBAT Lookups'!$A$23:$H$30,8)))","v":""},null,{"$f":"IF('Project Scope'!$C33=\"\",\"\",VLOOKUP($F33,'CBAT Lookups'!$B$17:$K$19,4))","v":""},{"$f":"IF('Project Scope'!$C33=\"\",\"\",VLOOKUP($F33,'CBAT Lookups'!$B$17:$K$19,5))","v":""},{"$f":"IF('Project Scope'!$C33=\"\",\"\",VLOOKUP($F33,'CBAT Lookups'!$B$17:$K$19,6))","v":""},{"$f":"IF('Project Scope'!$C33=\"\",\"\",VLOOKUP($F33,'CBAT Lookups'!$B$17:$K$19,7))","v":""},{"$f":"IF('Project Scope'!$C33=\"\",\"\",IF(SUMPRODUCT($P33:$S33,$AN33:$AQ33)=0,0,P33*AN33/SUMPRODUCT($P33:$S33,$AN33:$AQ33)))","v":""},{"$f":"IF('Project Scope'!$C33=\"\",\"\",IF(SUMPRODUCT($P33:$S33,$AN33:$AQ33)=0,0,Q33*AO33/SUMPRODUCT($P33:$S33,$AN33:$AQ33)))","v":""},{"$f":"IF('Project Scope'!$C33=\"\",\"\",IF(SUMPRODUCT($P33:$S33,$AN33:$AQ33)=0,0,R33*AP33/SUMPRODUCT($P33:$S33,$AN33:$AQ33)))","v":""},{"$f":"IF('Project Scope'!$C33=\"\",\"\",IF(SUMPRODUCT($P33:$S33,$AN33:$AQ33)=0,0,S33*AQ33/SUMPRODUCT($P33:$S33,$AN33:$AQ33)))","v":""},{"$f":"IF('Project Scope'!$C33=\"\",\"\",Benefits($AB33,$AD33,$AE33,$AG33,$AH33,$AI33,$AJ33,$AK33,$AL33,$AM33,$M33,$AR33,$AS33,$AT33,$AU33,$W33,$X33,$Y33,$Z33,$AA33,$E33))","v":""},"","","","","","","","",null,{"$f":"IF('Project Scope'!$C33=\"\",\"\",SUM('Project Scope'!$AT33,'Project Scope'!$AU33))","v":""},{"$f":"IF('Project Scope'!$C33=\"\",\"\",SUM('Project Scope'!$BG33, 'Project Scope'!$AR33,(IF(ISNUMBER('Project Scope'!$AS33),'Project Scope'!$AS33,0)*'Project Information'!$D$12)))","v":""},null,null,{"$f":"IF('Project Scope'!$C33=\"\",\"\",IF(COUNTIF('CBAT Lookups'!$B$5:$B$12,\"Controls-\"&CBAT!$D33)=1,VLOOKUP(\"Controls-\"&CBAT!$D33,'CBAT Lookups'!$B$5:$L$12,11),0))","v":""},{"$f":"IF('Project Scope'!$C33=\"\",\"\",IF(COUNTIF('CBAT Lookups'!$B$5:$B$12,\"Controls-\"&CBAT!$D33)=1,VLOOKUP(\"Controls-\"&CBAT!$D33,'CBAT Lookups'!$B$5:$K$12,2),0)*VLOOKUP($F33,'CBAT Lookups'!$B$17:$K$19,2))","v":""},{"$f":"IF('Project Scope'!$C33=\"\",\"\",IF(COUNTIF('CBAT Lookups'!$B$5:$B$12,\"Controls-\"&CBAT!$D33)=1,VLOOKUP(\"Controls-\"&CBAT!$D33,'CBAT Lookups'!$B$5:$K$12,3),0)*VLOOKUP($F33,'CBAT Lookups'!$B$17:$K$19,3))","v":""},{"$f":"IF('Project Scope'!$C33=\"\",\"\",IF(COUNTIF('CBAT Lookups'!$B$5:$B$12,\"Controls-\"&CBAT!$D33)=1,VLOOKUP(\"Controls-\"&CBAT!$D33,'CBAT Lookups'!$B$5:$K$12,4),0))","v":""},{"$f":"IF('Project Scope'!$C33=\"\",\"\",IF(COUNTIF('CBAT Lookups'!$B$5:$B$12,\"Controls-\"&CBAT!$D33)=1,VLOOKUP(\"Controls-\"&CBAT!$D33,'CBAT Lookups'!$B$5:$K$12,5),0))","v":""},{"$f":"IF('Project Scope'!$C33=\"\",\"\",IF(COUNTIF('CBAT Lookups'!$B$5:$B$12,\"Controls-\"&CBAT!$D33)=1,VLOOKUP(\"Controls-\"&CBAT!$D33,'CBAT Lookups'!$B$5:$K$12,6),0))","v":""},{"$f":"IF('Project Scope'!$C33=\"\",\"\",IF(COUNTIF('CBAT Lookups'!$B$5:$B$12,\"Controls-\"&CBAT!$D33)=1,VLOOKUP(\"Controls-\"&CBAT!$D33,'CBAT Lookups'!$B$5:$K$12,7),0))","v":""},{"$f":"IF('Project Scope'!$C33=\"\",\"\",IF(VLOOKUP($F33,'CBAT Lookups'!$B$17:$K$19,8)=\"W\",1,IF(COUNTIF('CBAT Lookups'!$B$5:$B$12,\"Controls-\"&CBAT!$D33)=1,VLOOKUP(\"Controls-\"&CBAT!$D33,'CBAT Lookups'!$B$5:$K$12,8),0)*VLOOKUP($F33,'CBAT Lookups'!$B$17:$K$19,8)))","v":""},{"$f":"IF('Project Scope'!$C33=\"\",\"\",IF(VLOOKUP($F33,'CBAT Lookups'!$B$17:$K$19,9)=\"W\",1,IF(COUNTIF('CBAT Lookups'!$B$5:$B$12,\"Controls-\"&CBAT!$D33)=1,VLOOKUP(\"Controls-\"&CBAT!$D33,'CBAT Lookups'!$B$5:$K$12,9),0)*VLOOKUP($F33,'CBAT Lookups'!$B$17:$K$19,9)))","v":""},{"$f":"IF('Project Scope'!$C33=\"\",\"\",IF(COUNTIF('CBAT Lookups'!$B$5:$B$12,\"Controls-\"&CBAT!$D33)=1,VLOOKUP(\"Controls-\"&CBAT!$D33,'CBAT Lookups'!$B$5:$K$12,10),0)*VLOOKUP($F33,'CBAT Lookups'!$B$17:$K$19,10))","v":""},{"$f":"IF('Project Scope'!$C33=\"\",\"\",VLOOKUP($C33,'CBAT Lookups'!$A$33:$B$57,2))","v":""},{"$f":"IF('Project Scope'!$C33=\"\",\"\",IF(COUNTIF('CBAT Lookups'!$B$5:$B$12,\"Controls-\"&CBAT!$D33)=1,VLOOKUP(\"Controls-\"&CBAT!$D33,'CBAT Lookups'!$B$5:$O$12,12),0))","v":""},{"$f":"IF('Project Scope'!$C33=\"\",\"\",IF(COUNTIF('CBAT Lookups'!$B$5:$B$12,\"Controls-\"&CBAT!$D33)=1,VLOOKUP(\"Controls-\"&CBAT!$D33,'CBAT Lookups'!$B$5:$O$12,13),0))","v":""},{"$f":"IF('Project Scope'!$C33=\"\",\"\",IF(COUNTIF('CBAT Lookups'!$B$5:$B$12,\"Controls-\"&CBAT!$D33)=1,VLOOKUP(\"Controls-\"&CBAT!$D33,'CBAT Lookups'!$B$5:$O$12,14),0))","v":""},{"$f":"IF('Project Scope'!$C33=\"\",\"\",'TRM Data'!$U$3)","v":""},{"$f":"IF('Project Scope'!$C33=\"\",\"\",'TRM Data'!$V$3)","v":""},{"$f":"IF('Project Scope'!$C33=\"\",\"\",IF($K33<=0,0,MAX(0,(IF(AND($I33>0,$J33>0),($I33*$J33)/1000,($G33*$H33)/1000)*$L33))*$BT33*$BR33)+($CD33/0.003412))","v":""},{"$f":"IF('Project Scope'!$C33=\"\",\"\",IF($K33<=0,0,MAX(0,IF(AND($I33>0,$J33>0),($I33*$J33)/1000,($G33*$H33)/1000))*$BQ33))","v":""},{"$f":"IF('Project Scope'!$C33=\"\",\"\",IF($K33<=0,0,MAX(0,IF(AND($I33>0,$J33>0),($I33*$J33)/1000,($G33*$H33)/1000))*$BK33))","v":""},{"$f":"IF('Project Scope'!$C33=\"\",\"\",IF($K33<=0,0,MAX(0,IF(AND($I33>0,$J33>0),($I33*$J33)/1000,($G33*$H33)/1000))*$BL33*$BQ33))","v":""},{"$f":"IF('Project Scope'!$C33=\"\",\"\",IF(OR($K33<=0,'Project Information'!$D$44=\"\"),0,-1*MAX(0,IF(AND($I33>0,$J33>0),($I33*$J33)/1000,($G33*$H33)/1000))*$BT33*$L33*$BS33*VLOOKUP('Project Information'!$D$44,'CBAT Lookups'!$A$23:$H$30,2)))","v":""},{"$f":"IF('Project Scope'!$C33=\"\",\"\",IF(OR($K33<=0,'Project Information'!$D$44=\"\"),0,-1*MAX(0,IF(AND($I33>0,$J33>0),($I33*$J33)/1000,($G33*$H33)/1000))*$BT33*$L33*$BS33*VLOOKUP('Project Information'!$D$44,'CBAT Lookups'!$A$23:$H$30,3)))","v":""},{"$f":"IF('Project Scope'!$C33=\"\",\"\",IF(OR($K33<=0,'Project Information'!$D$44=\"\"),0,-1*MAX(0,IF(AND($I33>0,$J33>0),($I33*$J33)/1000,($G33*$H33)/1000))*$BT33*$L33*$BS33*VLOOKUP('Project Information'!$D$44,'CBAT Lookups'!$A$23:$H$30,4)))","v":""},{"$f":"IF('Project Scope'!$C33=\"\",\"\",IF(OR($K33<=0,'Project Information'!$D$44=\"\"),0,-1*MAX(0,IF(AND($I33>0,$J33>0),($I33*$J33)/1000,($G33*$H33)/1000))*$BT33*$L33*$BS33*VLOOKUP('Project Information'!$D$44,'CBAT Lookups'!$A$23:$H$30,5)))","v":""},{"$f":"IF('Project Scope'!$C33=\"\",\"\",IF(OR($K33<=0,'Project Information'!$D$44=\"\"),0,-1*MAX(0,IF(AND($I33>0,$J33>0),($I33*$J33)/1000,($G33*$H33)/1000))*$BT33*$L33*$BS33*VLOOKUP('Project Information'!$D$44,'CBAT Lookups'!$A$23:$H$30,6)))","v":""},{"$f":"IF('Project Scope'!$C33=\"\",\"\",IF(OR($K33<=0,'Project Information'!$D$44=\"\"),0,-1*MAX(0,IF(AND($I33>0,$J33>0),($I33*$J33)/1000,($G33*$H33)/1000))*$BT33*$L33*$BS33*VLOOKUP('Project Information'!$D$44,'CBAT Lookups'!$A$23:$H$30,7)))","v":""},{"$f":"IF('Project Scope'!$C33=\"\",\"\",IF(OR($K33<=0,'Project Information'!$D$44=\"\"),0,-1*MAX(0,IF(AND($I33>0,$J33>0),($I33*$J33)/1000,($G33*$H33)/1000))*$BT33*$L33*$BS33*VLOOKUP('Project Information'!$D$44,'CBAT Lookups'!$A$23:$H$30,8)))","v":""},null,{"$f":"IF('Project Scope'!$C33=\"\",\"\",VLOOKUP($F33,'CBAT Lookups'!$B$17:$K$19,4))","v":""},{"$f":"IF('Project Scope'!$C33=\"\",\"\",VLOOKUP($F33,'CBAT Lookups'!$B$17:$K$19,5))","v":""},{"$f":"IF('Project Scope'!$C33=\"\",\"\",VLOOKUP($F33,'CBAT Lookups'!$B$17:$K$19,6))","v":""},{"$f":"IF('Project Scope'!$C33=\"\",\"\",VLOOKUP($F33,'CBAT Lookups'!$B$17:$K$19,7))","v":""},{"$f":"IF('Project Scope'!$C33=\"\",\"\",IF(SUMPRODUCT($BM33:$BP33,$CL33:$CO33)=0,0,BM33*CL33/SUMPRODUCT($BM33:$BP33,$CL33:$CO33)))","v":""},{"$f":"IF('Project Scope'!$C33=\"\",\"\",IF(SUMPRODUCT($BM33:$BP33,$CL33:$CO33)=0,0,BN33*CM33/SUMPRODUCT($BM33:$BP33,$CL33:$CO33)))","v":""},{"$f":"IF('Project Scope'!$C33=\"\",\"\",IF(SUMPRODUCT($BM33:$BP33,$CL33:$CO33)=0,0,BO33*CN33/SUMPRODUCT($BM33:$BP33,$CL33:$CO33)))","v":""},{"$f":"IF('Project Scope'!$C33=\"\",\"\",IF(SUMPRODUCT($BM33:$BP33,$CL33:$CO33)=0,0,BP33*CO33/SUMPRODUCT($BM33:$BP33,$CL33:$CO33)))","v":""},{"$f":"IF('Project Scope'!$C33=\"\",\"\",Benefits($BZ33,$CB33,$CC33,$CE33,$CF33,$CG33,$CH33,$CI33,$CJ33,$CK33,$BJ33,$CP33,$CQ33,$CR33,$CS33,$BU33,$BV33,$BW33,$BX33,$BY33,$E33))","v":""},"","","","","","","","",null,{"$f":"IF('Project Scope'!$C33=\"\",\"\",SUM('Project Scope'!$BB33,'Project Scope'!$BC33))","v":""},{"$f":"IF('Project Scope'!$C33=\"\",\"\",SUM('Project Scope'!$BH33, 'Project Scope'!$AZ33,(IF(ISNUMBER('Project Scope'!$BA33),'Project Scope'!$BA33,0)*'Project Information'!$D$12)))","v":""},null,null,{"$f":"IF('Project Scope'!$C33=\"\",\"\",IF($J33<=0,0,(SUMPRODUCT($AV33:$BC33,--($AV33:$BC33>0))+$BE33)*$DK33/((-SUMPRODUCT($AV33:$BC33,--($AV33:$BC33<0))+$BG33+$BH33+$BI33)*$DK33)))","v":""},{"$f":"IF('Project Scope'!$C33=\"\",\"\",IF($K33<=0,0,(SUMPRODUCT($CT33:$DA33,--($CT33:$DA33>0))+$DC33)*$DK33/((-SUMPRODUCT($CT33:$DA33,--($CT33:$DA33<0))+$DE33+$DF33+$DG33)*$DK33)))","v":""},{"$f":"IF('Project Scope'!$C33=\"\",\"\",IF(AND($J33<=0,$K33<=0),0,(SUMPRODUCT($AV33:$BC33,--($AV33:$BC33>0))+$BE33+SUMPRODUCT($CT33:$DA33,--($CT33:$DA33>0))+$DC33)*$DK33/((-SUMPRODUCT($AV33:$BC33,--($AV33:$BC33<0))+$BG33+$BH33+$BI33-SUMPRODUCT($CT33:$DA33,--($CT33:$DA33<0))+$DE33+$DF33+$DG33)*$DK33)))","v":""},{"$f":"IF('Project Scope'!$C33=\"\",\"\",IF(NetOrGross=\"Net\",(1-Z33+AA33),1))","v":""}]
[{"$f":"'Project Scope'!$B34","v":27},{"$f":"IF('Project Scope'!$C34=\"\",\"\",'Project Scope'!$C34)","v":""},{"$f":"IF('Project Scope'!$C34=\"\",\"\",'Project Scope'!$H34)","v":""},{"$f":"IF(ISNUMBER(SEARCH(\"Bay\",'Project Scope'!$Q34)),\"Bay\",IF('Project Scope'!C34=\"\",\"\",'Project Scope'!E34))","v":""},{"$f":"IF('Project Scope'!$C34=\"\",\"\",\"Com\")","v":""},{"$f":"IF('Project Scope'!$C34=\"\",\"\",'Project Scope'!$L34)","v":""},{"$f":"IF('Project Scope'!$C34=\"\",\"\",IF('Project Scope'!$CJ34=\"\",0,'Project Scope'!$CJ34))","v":""},{"$f":"IF('Project Scope'!$C34=\"\",\"\",IF('Project Scope'!$N34=\"\",0,'Project Scope'!$N34))","v":""},{"$f":"IF('Project Scope'!$C34=\"\",\"\",IF('Project Scope'!$CK34=\"\",0,'Project Scope'!$CK34))","v":""},{"$f":"IF('Project Scope'!$C34=\"\",\"\",IF('Project Scope'!$AO34=\"\",0,'Project Scope'!$AO34))","v":""},{"$f":"IF('Project Scope'!$C34=\"\",\"\",IF('Project Scope'!$AX34=\"\",0,'Project Scope'!$AX34))","v":""},{"$f":"IF('Project Scope'!$C34=\"\",\"\",IF('Project Scope'!$M34=\"\",0,'Project Scope'!$M34))","v":""},{"$f":"IF('Project Scope'!$C34=\"\",\"\",IF(COUNTIF('CBAT Lookups'!$B$5:$B$12,\"Fixtures-\"&CBAT!$D34)=1,VLOOKUP(\"Fixtures-\"&CBAT!$D34,'CBAT Lookups'!$B$5:$L$12,11),0))","v":""},{"$f":"IF('Project Scope'!$C34=\"\",\"\",(IF(COUNTIF('CBAT Lookups'!$B$5:$B$12,\"Fixtures-\"&CBAT!$D34)=1,VLOOKUP(\"Fixtures-\"&CBAT!$D34,'CBAT Lookups'!$B$5:$K$12,2),0))*VLOOKUP($F34,'CBAT Lookups'!$B$17:$K$19,2))","v":""},{"$f":"IF('Project Scope'!$C34=\"\",\"\",(IF(COUNTIF('CBAT Lookups'!$B$5:$B$12,\"Fixtures-\"&CBAT!$D34)=1,VLOOKUP(\"Fixtures-\"&CBAT!$D34,'CBAT Lookups'!$B$5:$K$12,3),0))*VLOOKUP($F34,'CBAT Lookups'!$B$17:$K$19,3))","v":""},{"$f":"IF('Project Scope'!$C34=\"\",\"\",(IF(COUNTIF('CBAT Lookups'!$B$5:$B$12,\"Fixtures-\"&CBAT!$D34)=1,VLOOKUP(\"Fixtures-\"&CBAT!$D34,'CBAT Lookups'!$B$5:$K$12,4),0)))","v":""},{"$f":"IF('Project Scope'!$C34=\"\",\"\",(IF(COUNTIF('CBAT Lookups'!$B$5:$B$12,\"Fixtures-\"&CBAT!$D34)=1,VLOOKUP(\"Fixtures-\"&CBAT!$D34,'CBAT Lookups'!$B$5:$K$12,5),0)))","v":""},{"$f":"IF('Project Scope'!$C34=\"\",\"\",(IF(COUNTIF('CBAT Lookups'!$B$5:$B$12,\"Fixtures-\"&CBAT!$D34)=1,VLOOKUP(\"Fixtures-\"&CBAT!$D34,'CBAT Lookups'!$B$5:$K$12,6),0)))","v":""},{"$f":"IF('Project Scope'!$C34=\"\",\"\",IF(COUNTIF('CBAT Lookups'!$B$5:$B$12,\"Fixtures-\"&CBAT!$D34)=1,VLOOKUP(\"Fixtures-\"&CBAT!$D34,'CBAT Lookups'!$B$5:$K$12,7),0))","v":""},{"$f":"IF('Project Scope'!$C34=\"\",\"\",IF(VLOOKUP($F34,'CBAT Lookups'!$B$17:$K$19,8)=\"W\",1,IF(COUNTIF('CBAT Lookups'!$B$5:$B$12,\"Fixtures-\"&CBAT!$D34)=1,VLOOKUP(\"Fixtures-\"&CBAT!$D34,'CBAT Lookups'!$B$5:$K$12,8),0)*VLOOKUP($F34,'CBAT Lookups'!$B$17:$K$19,8)))","v":""},{"$f":"IF('Project Scope'!$C34=\"\",\"\",IF(VLOOKUP($F34,'CBAT Lookups'!$B$17:$K$19,9)=\"W\",1,IF(COUNTIF('CBAT Lookups'!$B$5:$B$12,\"Fixtures-\"&CBAT!$D34)=1,VLOOKUP(\"Fixtures-\"&CBAT!$D34,'CBAT Lookups'!$B$5:$K$12,9),0)*VLOOKUP($F34,'CBAT Lookups'!$B$17:$K$19,9)))","v":""},{"$f":"IF('Project Scope'!$C34=\"\",\"\",IF(COUNTIF('CBAT Lookups'!$B$5:$B$12,\"Fixtures-\"&CBAT!$D34)=1,VLOOKUP(\"Fixtures-\"&CBAT!$D34,'CBAT Lookups'!$B$5:$K$12,10),0)*VLOOKUP($F34,'CBAT Lookups'!$B$17:$K$19,10))","v":""},{"$f":"IF('Project Scope'!$C34=\"\",\"\",IF(COUNTIF('CBAT Lookups'!$B$5:$B$12,\"Fixtures-\"&CBAT!$D34)=1,VLOOKUP(\"Fixtures-\"&CBAT!$D34,'CBAT Lookups'!$B$5:$O$12,12),0))","v":""},{"$f":"IF('Project Scope'!$C34=\"\",\"\",IF(COUNTIF('CBAT Lookups'!$B$5:$B$12,\"Fixtures-\"&CBAT!$D34)=1,VLOOKUP(\"Fixtures-\"&CBAT!$D34,'CBAT Lookups'!$B$5:$O$12,13),0))","v":""},{"$f":"IF('Project Scope'!$C34=\"\",\"\",IF(COUNTIF('CBAT Lookups'!$B$5:$B$12,\"Fixtures-\"&CBAT!$D34)=1,VLOOKUP(\"Fixtures-\"&CBAT!$D34,'CBAT Lookups'!$B$5:$O$12,14),0))","v":""},{"$f":"IF('Project Scope'!$C34=\"\",\"\",'TRM Data'!$U$3)","v":""},{"$f":"IF('Project Scope'!$C34=\"\",\"\",'TRM Data'!$V$3)","v":""},{"$f":"IF('Project Scope'!$C34=\"\",\"\",IF($J34<=0,0,MAX(0,(($G34*$H34/1000)-($I34*$J34/1000))*$L34)*$U34)+($AF34/0.003412))","v":""},{"$f":"IF('Project Scope'!$C34=\"\",\"\",IF($J34<=0,0,MAX(0,(($G34*$H34/1000)-($I34*$J34/1000)))*$T34))","v":""},{"$f":"IF('Project Scope'!$C34=\"\",\"\",IF($J34<=0,0,MAX(0,(($G34*$H34/1000)-($I34*$J34/1000))*$N34)))","v":""},{"$f":"IF('Project Scope'!$C34=\"\",\"\",IF($J34<=0,0,MAX(0,(($G34*$H34/1000)-($I34*$J34/1000))*$O34)*$T34))","v":""},{"$f":"IF('Project Scope'!$C34=\"\",\"\",IF(OR($J34<=0,'Project Information'!$D$44=\"\"),0,-1*MAX(0,(($G34*$H34/1000)-($I34*$J34/1000))*$L34)*$V34*VLOOKUP('Project Information'!$D$44,'CBAT Lookups'!$A$23:$H$30,2)))","v":""},{"$f":"IF('Project Scope'!$C34=\"\",\"\",IF(OR($J34<=0,'Project Information'!$D$44=\"\"),0,-1*MAX(0,(($G34*$H34/1000)-($I34*$J34/1000))*$L34)*$V34*VLOOKUP('Project Information'!$D$44,'CBAT Lookups'!$A$23:$H$30,3)))","v":""},{"$f":"IF('Project Scope'!$C34=\"\",\"\",IF(OR($J34<=0,'Project Information'!$D$44=\"\"),0,-1*MAX(0,(($G34*$H34/1000)-($I34*$J34/1000))*$L34)*$V34*VLOOKUP('Project Information'!$D$44,'CBAT Lookups'!$A$23:$H$30,4)))","v":""},{"$f":"IF('Project Scope'!$C34=\"\",\"\",IF(OR($J34<=0,'Project Information'!$D$44=\"\"),0,-1*MAX(0,(($G34*$H34/1000)-($I34*$J34/1000))*$L34)*$V34*VLOOKUP('Project Information'!$D$44,'CBAT Lookups'!$A$23:$H$30,5)))","v":""},{"$f":"IF('Project Scope'!$C34=\"\",\"\",IF(OR($J34<=0,'Project Information'!$D$44=\"\"),0,-1*MAX(0,(($G34*$H34/1000)-($I34*$J34/1000))*$L34)*$V34*VLOOKUP('Project Information'!$D$44,'CBAT Lookups'!$A$23:$H$30,6)))","v":""},{"$f":"IF('Project Scope'!$C34=\"\",\"\",IF(OR($J34<=0,'Project Information'!$D$44=\"\"),0,-1*MAX(0,(($G34*$H34/1000)-($I34*$J34/1000))*$L34)*$V34*VLOOKUP('Project Information'!$D$44,'CBAT Lookups'!$A$23:$H$30,7)))","v":""},{"$f":"IF('Project Scope'!$C34=\"\",\"\",IF(OR($J34<=0,'Project Information'!$D$44=\"\"),0,-1*MAX(0,(($G34*$H34/1000)-($I34*$J34/1000))*$L34)*$V34*VLOOKUP('Project Information'!$D$44,'CBAT Lookups'!$A$23:$H$30,8)))","v":""},null,{"$f":"IF('Project Scope'!$C34=\"\",\"\",VLOOKUP($F34,'CBAT Lookups'!$B$17:$K$19,4))","v":""},{"$f":"IF('Project Scope'!$C34=\"\",\"\",VLOOKUP($F34,'CBAT Lookups'!$B$17:$K$19,5))","v":""},{"$f":"IF('Project Scope'!$C34=\"\",\"\",VLOOKUP($F34,'CBAT Lookups'!$B$17:$K$19,6))","v":""},{"$f":"IF('Project Scope'!$C34=\"\",\"\",VLOOKUP($F34,'CBAT Lookups'!$B$17:$K$19,7))","v":""},{"$f":"IF('Project Scope'!$C34=\"\",\"\",IF(SUMPRODUCT($P34:$S34,$AN34:$AQ34)=0,0,P34*AN34/SUMPRODUCT($P34:$S34,$AN34:$AQ34)))","v":""},{"$f":"IF('Project Scope'!$C34=\"\",\"\",IF(SUMPRODUCT($P34:$S34,$AN34:$AQ34)=0,0,Q34*AO34/SUMPRODUCT($P34:$S34,$AN34:$AQ34)))","v":""},{"$f":"IF('Project Scope'!$C34=\"\",\"\",IF(SUMPRODUCT($P34:$S34,$AN34:$AQ34)=0,0,R34*AP34/SUMPRODUCT($P34:$S34,$AN34:$AQ34)))","v":""},{"$f":"IF('Project Scope'!$C34=\"\",\"\",IF(SUMPRODUCT($P34:$S34,$AN34:$AQ34)=0,0,S34*AQ34/SUMPRODUCT($P34:$S34,$AN34:$AQ34)))","v":""},{"$f":"IF('Project Scope'!$C34=\"\",\"\",Benefits($AB34,$AD34,$AE34,$AG34,$AH34,$AI34,$AJ34,$AK34,$AL34,$AM34,$M34,$AR34,$AS34,$AT34,$AU34,$W34,$X34,$Y34,$Z34,$AA34,$E34))","v":""},"","","","","","","","",null,{"$f":"IF('Project Scope'!$C34=\"\",\"\",SUM('Project Scope'!$AT34,'Project Scope'!$AU34))","v":""},{"$f":"IF('Project Scope'!$C34=\"\",\"\",SUM('Project Scope'!$BG34, 'Project Scope'!$AR34,(IF(ISNUMBER('Project Scope'!$AS34),'Project Scope'!$AS34,0)*'Project Information'!$D$12)))","v":""},null,null,{"$f":"IF('Project Scope'!$C34=\"\",\"\",IF(COUNTIF('CBAT Lookups'!$B$5:$B$12,\"Controls-\"&CBAT!$D34)=1,VLOOKUP(\"Controls-\"&CBAT!$D34,'CBAT Lookups'!$B$5:$L$12,11),0))","v":""},{"$f":"IF('Project Scope'!$C34=\"\",\"\",IF(COUNTIF('CBAT Lookups'!$B$5:$B$12,\"Controls-\"&CBAT!$D34)=1,VLOOKUP(\"Controls-\"&CBAT!$D34,'CBAT Lookups'!$B$5:$K$12,2),0)*VLOOKUP($F34,'CBAT Lookups'!$B$17:$K$19,2))","v":""},{"$f":"IF('Project Scope'!$C34=\"\",\"\",IF(COUNTIF('CBAT Lookups'!$B$5:$B$12,\"Controls-\"&CBAT!$D34)=1,VLOOKUP(\"Controls-\"&CBAT!$D34,'CBAT Lookups'!$B$5:$K$12,3),0)*VLOOKUP($F34,'CBAT Lookups'!$B$17:$K$19,3))","v":""},{"$f":"IF('Project Scope'!$C34=\"\",\"\",IF(COUNTIF('CBAT Lookups'!$B$5:$B$12,\"Controls-\"&CBAT!$D34)=1,VLOOKUP(\"Controls-\"&CBAT!$D34,'CBAT Lookups'!$B$5:$K$12,4),0))","v":""},{"$f":"IF('Project Scope'!$C34=\"\",\"\",IF(COUNTIF('CBAT Lookups'!$B$5:$B$12,\"Controls-\"&CBAT!$D34)=1,VLOOKUP(\"Controls-\"&CBAT!$D34,'CBAT Lookups'!$B$5:$K$12,5),0))","v":""},{"$f":"IF('Project Scope'!$C34=\"\",\"\",IF(COUNTIF('CBAT Lookups'!$B$5:$B$12,\"Controls-\"&CBAT!$D34)=1,VLOOKUP(\"Controls-\"&CBAT!$D34,'CBAT Lookups'!$B$5:$K$12,6),0))","v":""},{"$f":"IF('Project Scope'!$C34=\"\",\"\",IF(COUNTIF('CBAT Lookups'!$B$5:$B$12,\"Controls-\"&CBAT!$D34)=1,VLOOKUP(\"Controls-\"&CBAT!$D34,'CBAT Lookups'!$B$5:$K$12,7),0))","v":""},{"$f":"IF('Project Scope'!$C34=\"\",\"\",IF(VLOOKUP($F34,'CBAT Lookups'!$B$17:$K$19,8)=\"W\",1,IF(COUNTIF('CBAT Lookups'!$B$5:$B$12,\"Controls-\"&CBAT!$D34)=1,VLOOKUP(\"Controls-\"&CBAT!$D34,'CBAT Lookups'!$B$5:$K$12,8),0)*VLOOKUP($F34,'CBAT Lookups'!$B$17:$K$19,8)))","v":""},{"$f":"IF('Project Scope'!$C34=\"\",\"\",IF(VLOOKUP($F34,'CBAT Lookups'!$B$17:$K$19,9)=\"W\",1,IF(COUNTIF('CBAT Lookups'!$B$5:$B$12,\"Controls-\"&CBAT!$D34)=1,VLOOKUP(\"Controls-\"&CBAT!$D34,'CBAT Lookups'!$B$5:$K$12,9),0)*VLOOKUP($F34,'CBAT Lookups'!$B$17:$K$19,9)))","v":""},{"$f":"IF('Project Scope'!$C34=\"\",\"\",IF(COUNTIF('CBAT Lookups'!$B$5:$B$12,\"Controls-\"&CBAT!$D34)=1,VLOOKUP(\"Controls-\"&CBAT!$D34,'CBAT Lookups'!$B$5:$K$12,10),0)*VLOOKUP($F34,'CBAT Lookups'!$B$17:$K$19,10))","v":""},{"$f":"IF('Project Scope'!$C34=\"\",\"\",VLOOKUP($C34,'CBAT Lookups'!$A$33:$B$57,2))","v":""},{"$f":"IF('Project Scope'!$C34=\"\",\"\",IF(COUNTIF('CBAT Lookups'!$B$5:$B$12,\"Controls-\"&CBAT!$D34)=1,VLOOKUP(\"Controls-\"&CBAT!$D34,'CBAT Lookups'!$B$5:$O$12,12),0))","v":""},{"$f":"IF('Project Scope'!$C34=\"\",\"\",IF(COUNTIF('CBAT Lookups'!$B$5:$B$12,\"Controls-\"&CBAT!$D34)=1,VLOOKUP(\"Controls-\"&CBAT!$D34,'CBAT Lookups'!$B$5:$O$12,13),0))","v":""},{"$f":"IF('Project Scope'!$C34=\"\",\"\",IF(COUNTIF('CBAT Lookups'!$B$5:$B$12,\"Controls-\"&CBAT!$D34)=1,VLOOKUP(\"Controls-\"&CBAT!$D34,'CBAT Lookups'!$B$5:$O$12,14),0))","v":""},{"$f":"IF('Project Scope'!$C34=\"\",\"\",'TRM Data'!$U$3)","v":""},{"$f":"IF('Project Scope'!$C34=\"\",\"\",'TRM Data'!$V$3)","v":""},{"$f":"IF('Project Scope'!$C34=\"\",\"\",IF($K34<=0,0,MAX(0,(IF(AND($I34>0,$J34>0),($I34*$J34)/1000,($G34*$H34)/1000)*$L34))*$BT34*$BR34)+($CD34/0.003412))","v":""},{"$f":"IF('Project Scope'!$C34=\"\",\"\",IF($K34<=0,0,MAX(0,IF(AND($I34>0,$J34>0),($I34*$J34)/1000,($G34*$H34)/1000))*$BQ34))","v":""},{"$f":"IF('Project Scope'!$C34=\"\",\"\",IF($K34<=0,0,MAX(0,IF(AND($I34>0,$J34>0),($I34*$J34)/1000,($G34*$H34)/1000))*$BK34))","v":""},{"$f":"IF('Project Scope'!$C34=\"\",\"\",IF($K34<=0,0,MAX(0,IF(AND($I34>0,$J34>0),($I34*$J34)/1000,($G34*$H34)/1000))*$BL34*$BQ34))","v":""},{"$f":"IF('Project Scope'!$C34=\"\",\"\",IF(OR($K34<=0,'Project Information'!$D$44=\"\"),0,-1*MAX(0,IF(AND($I34>0,$J34>0),($I34*$J34)/1000,($G34*$H34)/1000))*$BT34*$L34*$BS34*VLOOKUP('Project Information'!$D$44,'CBAT Lookups'!$A$23:$H$30,2)))","v":""},{"$f":"IF('Project Scope'!$C34=\"\",\"\",IF(OR($K34<=0,'Project Information'!$D$44=\"\"),0,-1*MAX(0,IF(AND($I34>0,$J34>0),($I34*$J34)/1000,($G34*$H34)/1000))*$BT34*$L34*$BS34*VLOOKUP('Project Information'!$D$44,'CBAT Lookups'!$A$23:$H$30,3)))","v":""},{"$f":"IF('Project Scope'!$C34=\"\",\"\",IF(OR($K34<=0,'Project Information'!$D$44=\"\"),0,-1*MAX(0,IF(AND($I34>0,$J34>0),($I34*$J34)/1000,($G34*$H34)/1000))*$BT34*$L34*$BS34*VLOOKUP('Project Information'!$D$44,'CBAT Lookups'!$A$23:$H$30,4)))","v":""},{"$f":"IF('Project Scope'!$C34=\"\",\"\",IF(OR($K34<=0,'Project Information'!$D$44=\"\"),0,-1*MAX(0,IF(AND($I34>0,$J34>0),($I34*$J34)/1000,($G34*$H34)/1000))*$BT34*$L34*$BS34*VLOOKUP('Project Information'!$D$44,'CBAT Lookups'!$A$23:$H$30,5)))","v":""},{"$f":"IF('Project Scope'!$C34=\"\",\"\",IF(OR($K34<=0,'Project Information'!$D$44=\"\"),0,-1*MAX(0,IF(AND($I34>0,$J34>0),($I34*$J34)/1000,($G34*$H34)/1000))*$BT34*$L34*$BS34*VLOOKUP('Project Information'!$D$44,'CBAT Lookups'!$A$23:$H$30,6)))","v":""},{"$f":"IF('Project Scope'!$C34=\"\",\"\",IF(OR($K34<=0,'Project Information'!$D$44=\"\"),0,-1*MAX(0,IF(AND($I34>0,$J34>0),($I34*$J34)/1000,($G34*$H34)/1000))*$BT34*$L34*$BS34*VLOOKUP('Project Information'!$D$44,'CBAT Lookups'!$A$23:$H$30,7)))","v":""},{"$f":"IF('Project Scope'!$C34=\"\",\"\",IF(OR($K34<=0,'Project Information'!$D$44=\"\"),0,-1*MAX(0,IF(AND($I34>0,$J34>0),($I34*$J34)/1000,($G34*$H34)/1000))*$BT34*$L34*$BS34*VLOOKUP('Project Information'!$D$44,'CBAT Lookups'!$A$23:$H$30,8)))","v":""},null,{"$f":"IF('Project Scope'!$C34=\"\",\"\",VLOOKUP($F34,'CBAT Lookups'!$B$17:$K$19,4))","v":""},{"$f":"IF('Project Scope'!$C34=\"\",\"\",VLOOKUP($F34,'CBAT Lookups'!$B$17:$K$19,5))","v":""},{"$f":"IF('Project Scope'!$C34=\"\",\"\",VLOOKUP($F34,'CBAT Lookups'!$B$17:$K$19,6))","v":""},{"$f":"IF('Project Scope'!$C34=\"\",\"\",VLOOKUP($F34,'CBAT Lookups'!$B$17:$K$19,7))","v":""},{"$f":"IF('Project Scope'!$C34=\"\",\"\",IF(SUMPRODUCT($BM34:$BP34,$CL34:$CO34)=0,0,BM34*CL34/SUMPRODUCT($BM34:$BP34,$CL34:$CO34)))","v":""},{"$f":"IF('Project Scope'!$C34=\"\",\"\",IF(SUMPRODUCT($BM34:$BP34,$CL34:$CO34)=0,0,BN34*CM34/SUMPRODUCT($BM34:$BP34,$CL34:$CO34)))","v":""},{"$f":"IF('Project Scope'!$C34=\"\",\"\",IF(SUMPRODUCT($BM34:$BP34,$CL34:$CO34)=0,0,BO34*CN34/SUMPRODUCT($BM34:$BP34,$CL34:$CO34)))","v":""},{"$f":"IF('Project Scope'!$C34=\"\",\"\",IF(SUMPRODUCT($BM34:$BP34,$CL34:$CO34)=0,0,BP34*CO34/SUMPRODUCT($BM34:$BP34,$CL34:$CO34)))","v":""},{"$f":"IF('Project Scope'!$C34=\"\",\"\",Benefits($BZ34,$CB34,$CC34,$CE34,$CF34,$CG34,$CH34,$CI34,$CJ34,$CK34,$BJ34,$CP34,$CQ34,$CR34,$CS34,$BU34,$BV34,$BW34,$BX34,$BY34,$E34))","v":""},"","","","","","","","",null,{"$f":"IF('Project Scope'!$C34=\"\",\"\",SUM('Project Scope'!$BB34,'Project Scope'!$BC34))","v":""},{"$f":"IF('Project Scope'!$C34=\"\",\"\",SUM('Project Scope'!$BH34, 'Project Scope'!$AZ34,(IF(ISNUMBER('Project Scope'!$BA34),'Project Scope'!$BA34,0)*'Project Information'!$D$12)))","v":""},null,null,{"$f":"IF('Project Scope'!$C34=\"\",\"\",IF($J34<=0,0,(SUMPRODUCT($AV34:$BC34,--($AV34:$BC34>0))+$BE34)*$DK34/((-SUMPRODUCT($AV34:$BC34,--($AV34:$BC34<0))+$BG34+$BH34+$BI34)*$DK34)))","v":""},{"$f":"IF('Project Scope'!$C34=\"\",\"\",IF($K34<=0,0,(SUMPRODUCT($CT34:$DA34,--($CT34:$DA34>0))+$DC34)*$DK34/((-SUMPRODUCT($CT34:$DA34,--($CT34:$DA34<0))+$DE34+$DF34+$DG34)*$DK34)))","v":""},{"$f":"IF('Project Scope'!$C34=\"\",\"\",IF(AND($J34<=0,$K34<=0),0,(SUMPRODUCT($AV34:$BC34,--($AV34:$BC34>0))+$BE34+SUMPRODUCT($CT34:$DA34,--($CT34:$DA34>0))+$DC34)*$DK34/((-SUMPRODUCT($AV34:$BC34,--($AV34:$BC34<0))+$BG34+$BH34+$BI34-SUMPRODUCT($CT34:$DA34,--($CT34:$DA34<0))+$DE34+$DF34+$DG34)*$DK34)))","v":""},{"$f":"IF('Project Scope'!$C34=\"\",\"\",IF(NetOrGross=\"Net\",(1-Z34+AA34),1))","v":""}]
[{"$f":"'Project Scope'!$B35","v":28},{"$f":"IF('Project Scope'!$C35=\"\",\"\",'Project Scope'!$C35)","v":""},{"$f":"IF('Project Scope'!$C35=\"\",\"\",'Project Scope'!$H35)","v":""},{"$f":"IF(ISNUMBER(SEARCH(\"Bay\",'Project Scope'!$Q35)),\"Bay\",IF('Project Scope'!C35=\"\",\"\",'Project Scope'!E35))","v":""},{"$f":"IF('Project Scope'!$C35=\"\",\"\",\"Com\")","v":""},{"$f":"IF('Project Scope'!$C35=\"\",\"\",'Project Scope'!$L35)","v":""},{"$f":"IF('Project Scope'!$C35=\"\",\"\",IF('Project Scope'!$CJ35=\"\",0,'Project Scope'!$CJ35))","v":""},{"$f":"IF('Project Scope'!$C35=\"\",\"\",IF('Project Scope'!$N35=\"\",0,'Project Scope'!$N35))","v":""},{"$f":"IF('Project Scope'!$C35=\"\",\"\",IF('Project Scope'!$CK35=\"\",0,'Project Scope'!$CK35))","v":""},{"$f":"IF('Project Scope'!$C35=\"\",\"\",IF('Project Scope'!$AO35=\"\",0,'Project Scope'!$AO35))","v":""},{"$f":"IF('Project Scope'!$C35=\"\",\"\",IF('Project Scope'!$AX35=\"\",0,'Project Scope'!$AX35))","v":""},{"$f":"IF('Project Scope'!$C35=\"\",\"\",IF('Project Scope'!$M35=\"\",0,'Project Scope'!$M35))","v":""},{"$f":"IF('Project Scope'!$C35=\"\",\"\",IF(COUNTIF('CBAT Lookups'!$B$5:$B$12,\"Fixtures-\"&CBAT!$D35)=1,VLOOKUP(\"Fixtures-\"&CBAT!$D35,'CBAT Lookups'!$B$5:$L$12,11),0))","v":""},{"$f":"IF('Project Scope'!$C35=\"\",\"\",(IF(COUNTIF('CBAT Lookups'!$B$5:$B$12,\"Fixtures-\"&CBAT!$D35)=1,VLOOKUP(\"Fixtures-\"&CBAT!$D35,'CBAT Lookups'!$B$5:$K$12,2),0))*VLOOKUP($F35,'CBAT Lookups'!$B$17:$K$19,2))","v":""},{"$f":"IF('Project Scope'!$C35=\"\",\"\",(IF(COUNTIF('CBAT Lookups'!$B$5:$B$12,\"Fixtures-\"&CBAT!$D35)=1,VLOOKUP(\"Fixtures-\"&CBAT!$D35,'CBAT Lookups'!$B$5:$K$12,3),0))*VLOOKUP($F35,'CBAT Lookups'!$B$17:$K$19,3))","v":""},{"$f":"IF('Project Scope'!$C35=\"\",\"\",(IF(COUNTIF('CBAT Lookups'!$B$5:$B$12,\"Fixtures-\"&CBAT!$D35)=1,VLOOKUP(\"Fixtures-\"&CBAT!$D35,'CBAT Lookups'!$B$5:$K$12,4),0)))","v":""},{"$f":"IF('Project Scope'!$C35=\"\",\"\",(IF(COUNTIF('CBAT Lookups'!$B$5:$B$12,\"Fixtures-\"&CBAT!$D35)=1,VLOOKUP(\"Fixtures-\"&CBAT!$D35,'CBAT Lookups'!$B$5:$K$12,5),0)))","v":""},{"$f":"IF('Project Scope'!$C35=\"\",\"\",(IF(COUNTIF('CBAT Lookups'!$B$5:$B$12,\"Fixtures-\"&CBAT!$D35)=1,VLOOKUP(\"Fixtures-\"&CBAT!$D35,'CBAT Lookups'!$B$5:$K$12,6),0)))","v":""},{"$f":"IF('Project Scope'!$C35=\"\",\"\",IF(COUNTIF('CBAT Lookups'!$B$5:$B$12,\"Fixtures-\"&CBAT!$D35)=1,VLOOKUP(\"Fixtures-\"&CBAT!$D35,'CBAT Lookups'!$B$5:$K$12,7),0))","v":""},{"$f":"IF('Project Scope'!$C35=\"\",\"\",IF(VLOOKUP($F35,'CBAT Lookups'!$B$17:$K$19,8)=\"W\",1,IF(COUNTIF('CBAT Lookups'!$B$5:$B$12,\"Fixtures-\"&CBAT!$D35)=1,VLOOKUP(\"Fixtures-\"&CBAT!$D35,'CBAT Lookups'!$B$5:$K$12,8),0)*VLOOKUP($F35,'CBAT Lookups'!$B$17:$K$19,8)))","v":""},{"$f":"IF('Project Scope'!$C35=\"\",\"\",IF(VLOOKUP($F35,'CBAT Lookups'!$B$17:$K$19,9)=\"W\",1,IF(COUNTIF('CBAT Lookups'!$B$5:$B$12,\"Fixtures-\"&CBAT!$D35)=1,VLOOKUP(\"Fixtures-\"&CBAT!$D35,'CBAT Lookups'!$B$5:$K$12,9),0)*VLOOKUP($F35,'CBAT Lookups'!$B$17:$K$19,9)))","v":""},{"$f":"IF('Project Scope'!$C35=\"\",\"\",IF(COUNTIF('CBAT Lookups'!$B$5:$B$12,\"Fixtures-\"&CBAT!$D35)=1,VLOOKUP(\"Fixtures-\"&CBAT!$D35,'CBAT Lookups'!$B$5:$K$12,10),0)*VLOOKUP($F35,'CBAT Lookups'!$B$17:$K$19,10))","v":""},{"$f":"IF('Project Scope'!$C35=\"\",\"\",IF(COUNTIF('CBAT Lookups'!$B$5:$B$12,\"Fixtures-\"&CBAT!$D35)=1,VLOOKUP(\"Fixtures-\"&CBAT!$D35,'CBAT Lookups'!$B$5:$O$12,12),0))","v":""},{"$f":"IF('Project Scope'!$C35=\"\",\"\",IF(COUNTIF('CBAT Lookups'!$B$5:$B$12,\"Fixtures-\"&CBAT!$D35)=1,VLOOKUP(\"Fixtures-\"&CBAT!$D35,'CBAT Lookups'!$B$5:$O$12,13),0))","v":""},{"$f":"IF('Project Scope'!$C35=\"\",\"\",IF(COUNTIF('CBAT Lookups'!$B$5:$B$12,\"Fixtures-\"&CBAT!$D35)=1,VLOOKUP(\"Fixtures-\"&CBAT!$D35,'CBAT Lookups'!$B$5:$O$12,14),0))","v":""},{"$f":"IF('Project Scope'!$C35=\"\",\"\",'TRM Data'!$U$3)","v":""},{"$f":"IF('Project Scope'!$C35=\"\",\"\",'TRM Data'!$V$3)","v":""},{"$f":"IF('Project Scope'!$C35=\"\",\"\",IF($J35<=0,0,MAX(0,(($G35*$H35/1000)-($I35*$J35/1000))*$L35)*$U35)+($AF35/0.003412))","v":""},{"$f":"IF('Project Scope'!$C35=\"\",\"\",IF($J35<=0,0,MAX(0,(($G35*$H35/1000)-($I35*$J35/1000)))*$T35))","v":""},{"$f":"IF('Project Scope'!$C35=\"\",\"\",IF($J35<=0,0,MAX(0,(($G35*$H35/1000)-($I35*$J35/1000))*$N35)))","v":""},{"$f":"IF('Project Scope'!$C35=\"\",\"\",IF($J35<=0,0,MAX(0,(($G35*$H35/1000)-($I35*$J35/1000))*$O35)*$T35))","v":""},{"$f":"IF('Project Scope'!$C35=\"\",\"\",IF(OR($J35<=0,'Project Information'!$D$44=\"\"),0,-1*MAX(0,(($G35*$H35/1000)-($I35*$J35/1000))*$L35)*$V35*VLOOKUP('Project Information'!$D$44,'CBAT Lookups'!$A$23:$H$30,2)))","v":""},{"$f":"IF('Project Scope'!$C35=\"\",\"\",IF(OR($J35<=0,'Project Information'!$D$44=\"\"),0,-1*MAX(0,(($G35*$H35/1000)-($I35*$J35/1000))*$L35)*$V35*VLOOKUP('Project Information'!$D$44,'CBAT Lookups'!$A$23:$H$30,3)))","v":""},{"$f":"IF('Project Scope'!$C35=\"\",\"\",IF(OR($J35<=0,'Project Information'!$D$44=\"\"),0,-1*MAX(0,(($G35*$H35/1000)-($I35*$J35/1000))*$L35)*$V35*VLOOKUP('Project Information'!$D$44,'CBAT Lookups'!$A$23:$H$30,4)))","v":""},{"$f":"IF('Project Scope'!$C35=\"\",\"\",IF(OR($J35<=0,'Project Information'!$D$44=\"\"),0,-1*MAX(0,(($G35*$H35/1000)-($I35*$J35/1000))*$L35)*$V35*VLOOKUP('Project Information'!$D$44,'CBAT Lookups'!$A$23:$H$30,5)))","v":""},{"$f":"IF('Project Scope'!$C35=\"\",\"\",IF(OR($J35<=0,'Project Information'!$D$44=\"\"),0,-1*MAX(0,(($G35*$H35/1000)-($I35*$J35/1000))*$L35)*$V35*VLOOKUP('Project Information'!$D$44,'CBAT Lookups'!$A$23:$H$30,6)))","v":""},{"$f":"IF('Project Scope'!$C35=\"\",\"\",IF(OR($J35<=0,'Project Information'!$D$44=\"\"),0,-1*MAX(0,(($G35*$H35/1000)-($I35*$J35/1000))*$L35)*$V35*VLOOKUP('Project Information'!$D$44,'CBAT Lookups'!$A$23:$H$30,7)))","v":""},{"$f":"IF('Project Scope'!$C35=\"\",\"\",IF(OR($J35<=0,'Project Information'!$D$44=\"\"),0,-1*MAX(0,(($G35*$H35/1000)-($I35*$J35/1000))*$L35)*$V35*VLOOKUP('Project Information'!$D$44,'CBAT Lookups'!$A$23:$H$30,8)))","v":""},null,{"$f":"IF('Project Scope'!$C35=\"\",\"\",VLOOKUP($F35,'CBAT Lookups'!$B$17:$K$19,4))","v":""},{"$f":"IF('Project Scope'!$C35=\"\",\"\",VLOOKUP($F35,'CBAT Lookups'!$B$17:$K$19,5))","v":""},{"$f":"IF('Project Scope'!$C35=\"\",\"\",VLOOKUP($F35,'CBAT Lookups'!$B$17:$K$19,6))","v":""},{"$f":"IF('Project Scope'!$C35=\"\",\"\",VLOOKUP($F35,'CBAT Lookups'!$B$17:$K$19,7))","v":""},{"$f":"IF('Project Scope'!$C35=\"\",\"\",IF(SUMPRODUCT($P35:$S35,$AN35:$AQ35)=0,0,P35*AN35/SUMPRODUCT($P35:$S35,$AN35:$AQ35)))","v":""},{"$f":"IF('Project Scope'!$C35=\"\",\"\",IF(SUMPRODUCT($P35:$S35,$AN35:$AQ35)=0,0,Q35*AO35/SUMPRODUCT($P35:$S35,$AN35:$AQ35)))","v":""},{"$f":"IF('Project Scope'!$C35=\"\",\"\",IF(SUMPRODUCT($P35:$S35,$AN35:$AQ35)=0,0,R35*AP35/SUMPRODUCT($P35:$S35,$AN35:$AQ35)))","v":""},{"$f":"IF('Project Scope'!$C35=\"\",\"\",IF(SUMPRODUCT($P35:$S35,$AN35:$AQ35)=0,0,S35*AQ35/SUMPRODUCT($P35:$S35,$AN35:$AQ35)))","v":""},{"$f":"IF('Project Scope'!$C35=\"\",\"\",Benefits($AB35,$AD35,$AE35,$AG35,$AH35,$AI35,$AJ35,$AK35,$AL35,$AM35,$M35,$AR35,$AS35,$AT35,$AU35,$W35,$X35,$Y35,$Z35,$AA35,$E35))","v":""},"","","","","","","","",null,{"$f":"IF('Project Scope'!$C35=\"\",\"\",SUM('Project Scope'!$AT35,'Project Scope'!$AU35))","v":""},{"$f":"IF('Project Scope'!$C35=\"\",\"\",SUM('Project Scope'!$BG35, 'Project Scope'!$AR35,(IF(ISNUMBER('Project Scope'!$AS35),'Project Scope'!$AS35,0)*'Project Information'!$D$12)))","v":""},null,null,{"$f":"IF('Project Scope'!$C35=\"\",\"\",IF(COUNTIF('CBAT Lookups'!$B$5:$B$12,\"Controls-\"&CBAT!$D35)=1,VLOOKUP(\"Controls-\"&CBAT!$D35,'CBAT Lookups'!$B$5:$L$12,11),0))","v":""},{"$f":"IF('Project Scope'!$C35=\"\",\"\",IF(COUNTIF('CBAT Lookups'!$B$5:$B$12,\"Controls-\"&CBAT!$D35)=1,VLOOKUP(\"Controls-\"&CBAT!$D35,'CBAT Lookups'!$B$5:$K$12,2),0)*VLOOKUP($F35,'CBAT Lookups'!$B$17:$K$19,2))","v":""},{"$f":"IF('Project Scope'!$C35=\"\",\"\",IF(COUNTIF('CBAT Lookups'!$B$5:$B$12,\"Controls-\"&CBAT!$D35)=1,VLOOKUP(\"Controls-\"&CBAT!$D35,'CBAT Lookups'!$B$5:$K$12,3),0)*VLOOKUP($F35,'CBAT Lookups'!$B$17:$K$19,3))","v":""},{"$f":"IF('Project Scope'!$C35=\"\",\"\",IF(COUNTIF('CBAT Lookups'!$B$5:$B$12,\"Controls-\"&CBAT!$D35)=1,VLOOKUP(\"Controls-\"&CBAT!$D35,'CBAT Lookups'!$B$5:$K$12,4),0))","v":""},{"$f":"IF('Project Scope'!$C35=\"\",\"\",IF(COUNTIF('CBAT Lookups'!$B$5:$B$12,\"Controls-\"&CBAT!$D35)=1,VLOOKUP(\"Controls-\"&CBAT!$D35,'CBAT Lookups'!$B$5:$K$12,5),0))","v":""},{"$f":"IF('Project Scope'!$C35=\"\",\"\",IF(COUNTIF('CBAT Lookups'!$B$5:$B$12,\"Controls-\"&CBAT!$D35)=1,VLOOKUP(\"Controls-\"&CBAT!$D35,'CBAT Lookups'!$B$5:$K$12,6),0))","v":""},{"$f":"IF('Project Scope'!$C35=\"\",\"\",IF(COUNTIF('CBAT Lookups'!$B$5:$B$12,\"Controls-\"&CBAT!$D35)=1,VLOOKUP(\"Controls-\"&CBAT!$D35,'CBAT Lookups'!$B$5:$K$12,7),0))","v":""},{"$f":"IF('Project Scope'!$C35=\"\",\"\",IF(VLOOKUP($F35,'CBAT Lookups'!$B$17:$K$19,8)=\"W\",1,IF(COUNTIF('CBAT Lookups'!$B$5:$B$12,\"Controls-\"&CBAT!$D35)=1,VLOOKUP(\"Controls-\"&CBAT!$D35,'CBAT Lookups'!$B$5:$K$12,8),0)*VLOOKUP($F35,'CBAT Lookups'!$B$17:$K$19,8)))","v":""},{"$f":"IF('Project Scope'!$C35=\"\",\"\",IF(VLOOKUP($F35,'CBAT Lookups'!$B$17:$K$19,9)=\"W\",1,IF(COUNTIF('CBAT Lookups'!$B$5:$B$12,\"Controls-\"&CBAT!$D35)=1,VLOOKUP(\"Controls-\"&CBAT!$D35,'CBAT Lookups'!$B$5:$K$12,9),0)*VLOOKUP($F35,'CBAT Lookups'!$B$17:$K$19,9)))","v":""},{"$f":"IF('Project Scope'!$C35=\"\",\"\",IF(COUNTIF('CBAT Lookups'!$B$5:$B$12,\"Controls-\"&CBAT!$D35)=1,VLOOKUP(\"Controls-\"&CBAT!$D35,'CBAT Lookups'!$B$5:$K$12,10),0)*VLOOKUP($F35,'CBAT Lookups'!$B$17:$K$19,10))","v":""},{"$f":"IF('Project Scope'!$C35=\"\",\"\",VLOOKUP($C35,'CBAT Lookups'!$A$33:$B$57,2))","v":""},{"$f":"IF('Project Scope'!$C35=\"\",\"\",IF(COUNTIF('CBAT Lookups'!$B$5:$B$12,\"Controls-\"&CBAT!$D35)=1,VLOOKUP(\"Controls-\"&CBAT!$D35,'CBAT Lookups'!$B$5:$O$12,12),0))","v":""},{"$f":"IF('Project Scope'!$C35=\"\",\"\",IF(COUNTIF('CBAT Lookups'!$B$5:$B$12,\"Controls-\"&CBAT!$D35)=1,VLOOKUP(\"Controls-\"&CBAT!$D35,'CBAT Lookups'!$B$5:$O$12,13),0))","v":""},{"$f":"IF('Project Scope'!$C35=\"\",\"\",IF(COUNTIF('CBAT Lookups'!$B$5:$B$12,\"Controls-\"&CBAT!$D35)=1,VLOOKUP(\"Controls-\"&CBAT!$D35,'CBAT Lookups'!$B$5:$O$12,14),0))","v":""},{"$f":"IF('Project Scope'!$C35=\"\",\"\",'TRM Data'!$U$3)","v":""},{"$f":"IF('Project Scope'!$C35=\"\",\"\",'TRM Data'!$V$3)","v":""},{"$f":"IF('Project Scope'!$C35=\"\",\"\",IF($K35<=0,0,MAX(0,(IF(AND($I35>0,$J35>0),($I35*$J35)/1000,($G35*$H35)/1000)*$L35))*$BT35*$BR35)+($CD35/0.003412))","v":""},{"$f":"IF('Project Scope'!$C35=\"\",\"\",IF($K35<=0,0,MAX(0,IF(AND($I35>0,$J35>0),($I35*$J35)/1000,($G35*$H35)/1000))*$BQ35))","v":""},{"$f":"IF('Project Scope'!$C35=\"\",\"\",IF($K35<=0,0,MAX(0,IF(AND($I35>0,$J35>0),($I35*$J35)/1000,($G35*$H35)/1000))*$BK35))","v":""},{"$f":"IF('Project Scope'!$C35=\"\",\"\",IF($K35<=0,0,MAX(0,IF(AND($I35>0,$J35>0),($I35*$J35)/1000,($G35*$H35)/1000))*$BL35*$BQ35))","v":""},{"$f":"IF('Project Scope'!$C35=\"\",\"\",IF(OR($K35<=0,'Project Information'!$D$44=\"\"),0,-1*MAX(0,IF(AND($I35>0,$J35>0),($I35*$J35)/1000,($G35*$H35)/1000))*$BT35*$L35*$BS35*VLOOKUP('Project Information'!$D$44,'CBAT Lookups'!$A$23:$H$30,2)))","v":""},{"$f":"IF('Project Scope'!$C35=\"\",\"\",IF(OR($K35<=0,'Project Information'!$D$44=\"\"),0,-1*MAX(0,IF(AND($I35>0,$J35>0),($I35*$J35)/1000,($G35*$H35)/1000))*$BT35*$L35*$BS35*VLOOKUP('Project Information'!$D$44,'CBAT Lookups'!$A$23:$H$30,3)))","v":""},{"$f":"IF('Project Scope'!$C35=\"\",\"\",IF(OR($K35<=0,'Project Information'!$D$44=\"\"),0,-1*MAX(0,IF(AND($I35>0,$J35>0),($I35*$J35)/1000,($G35*$H35)/1000))*$BT35*$L35*$BS35*VLOOKUP('Project Information'!$D$44,'CBAT Lookups'!$A$23:$H$30,4)))","v":""},{"$f":"IF('Project Scope'!$C35=\"\",\"\",IF(OR($K35<=0,'Project Information'!$D$44=\"\"),0,-1*MAX(0,IF(AND($I35>0,$J35>0),($I35*$J35)/1000,($G35*$H35)/1000))*$BT35*$L35*$BS35*VLOOKUP('Project Information'!$D$44,'CBAT Lookups'!$A$23:$H$30,5)))","v":""},{"$f":"IF('Project Scope'!$C35=\"\",\"\",IF(OR($K35<=0,'Project Information'!$D$44=\"\"),0,-1*MAX(0,IF(AND($I35>0,$J35>0),($I35*$J35)/1000,($G35*$H35)/1000))*$BT35*$L35*$BS35*VLOOKUP('Project Information'!$D$44,'CBAT Lookups'!$A$23:$H$30,6)))","v":""},{"$f":"IF('Project Scope'!$C35=\"\",\"\",IF(OR($K35<=0,'Project Information'!$D$44=\"\"),0,-1*MAX(0,IF(AND($I35>0,$J35>0),($I35*$J35)/1000,($G35*$H35)/1000))*$BT35*$L35*$BS35*VLOOKUP('Project Information'!$D$44,'CBAT Lookups'!$A$23:$H$30,7)))","v":""},{"$f":"IF('Project Scope'!$C35=\"\",\"\",IF(OR($K35<=0,'Project Information'!$D$44=\"\"),0,-1*MAX(0,IF(AND($I35>0,$J35>0),($I35*$J35)/1000,($G35*$H35)/1000))*$BT35*$L35*$BS35*VLOOKUP('Project Information'!$D$44,'CBAT Lookups'!$A$23:$H$30,8)))","v":""},null,{"$f":"IF('Project Scope'!$C35=\"\",\"\",VLOOKUP($F35,'CBAT Lookups'!$B$17:$K$19,4))","v":""},{"$f":"IF('Project Scope'!$C35=\"\",\"\",VLOOKUP($F35,'CBAT Lookups'!$B$17:$K$19,5))","v":""},{"$f":"IF('Project Scope'!$C35=\"\",\"\",VLOOKUP($F35,'CBAT Lookups'!$B$17:$K$19,6))","v":""},{"$f":"IF('Project Scope'!$C35=\"\",\"\",VLOOKUP($F35,'CBAT Lookups'!$B$17:$K$19,7))","v":""},{"$f":"IF('Project Scope'!$C35=\"\",\"\",IF(SUMPRODUCT($BM35:$BP35,$CL35:$CO35)=0,0,BM35*CL35/SUMPRODUCT($BM35:$BP35,$CL35:$CO35)))","v":""},{"$f":"IF('Project Scope'!$C35=\"\",\"\",IF(SUMPRODUCT($BM35:$BP35,$CL35:$CO35)=0,0,BN35*CM35/SUMPRODUCT($BM35:$BP35,$CL35:$CO35)))","v":""},{"$f":"IF('Project Scope'!$C35=\"\",\"\",IF(SUMPRODUCT($BM35:$BP35,$CL35:$CO35)=0,0,BO35*CN35/SUMPRODUCT($BM35:$BP35,$CL35:$CO35)))","v":""},{"$f":"IF('Project Scope'!$C35=\"\",\"\",IF(SUMPRODUCT($BM35:$BP35,$CL35:$CO35)=0,0,BP35*CO35/SUMPRODUCT($BM35:$BP35,$CL35:$CO35)))","v":""},{"$f":"IF('Project Scope'!$C35=\"\",\"\",Benefits($BZ35,$CB35,$CC35,$CE35,$CF35,$CG35,$CH35,$CI35,$CJ35,$CK35,$BJ35,$CP35,$CQ35,$CR35,$CS35,$BU35,$BV35,$BW35,$BX35,$BY35,$E35))","v":""},"","","","","","","","",null,{"$f":"IF('Project Scope'!$C35=\"\",\"\",SUM('Project Scope'!$BB35,'Project Scope'!$BC35))","v":""},{"$f":"IF('Project Scope'!$C35=\"\",\"\",SUM('Project Scope'!$BH35, 'Project Scope'!$AZ35,(IF(ISNUMBER('Project Scope'!$BA35),'Project Scope'!$BA35,0)*'Project Information'!$D$12)))","v":""},null,null,{"$f":"IF('Project Scope'!$C35=\"\",\"\",IF($J35<=0,0,(SUMPRODUCT($AV35:$BC35,--($AV35:$BC35>0))+$BE35)*$DK35/((-SUMPRODUCT($AV35:$BC35,--($AV35:$BC35<0))+$BG35+$BH35+$BI35)*$DK35)))","v":""},{"$f":"IF('Project Scope'!$C35=\"\",\"\",IF($K35<=0,0,(SUMPRODUCT($CT35:$DA35,--($CT35:$DA35>0))+$DC35)*$DK35/((-SUMPRODUCT($CT35:$DA35,--($CT35:$DA35<0))+$DE35+$DF35+$DG35)*$DK35)))","v":""},{"$f":"IF('Project Scope'!$C35=\"\",\"\",IF(AND($J35<=0,$K35<=0),0,(SUMPRODUCT($AV35:$BC35,--($AV35:$BC35>0))+$BE35+SUMPRODUCT($CT35:$DA35,--($CT35:$DA35>0))+$DC35)*$DK35/((-SUMPRODUCT($AV35:$BC35,--($AV35:$BC35<0))+$BG35+$BH35+$BI35-SUMPRODUCT($CT35:$DA35,--($CT35:$DA35<0))+$DE35+$DF35+$DG35)*$DK35)))","v":""},{"$f":"IF('Project Scope'!$C35=\"\",\"\",IF(NetOrGross=\"Net\",(1-Z35+AA35),1))","v":""}]
[{"$f":"'Project Scope'!$B36","v":29},{"$f":"IF('Project Scope'!$C36=\"\",\"\",'Project Scope'!$C36)","v":""},{"$f":"IF('Project Scope'!$C36=\"\",\"\",'Project Scope'!$H36)","v":""},{"$f":"IF(ISNUMBER(SEARCH(\"Bay\",'Project Scope'!$Q36)),\"Bay\",IF('Project Scope'!C36=\"\",\"\",'Project Scope'!E36))","v":""},{"$f":"IF('Project Scope'!$C36=\"\",\"\",\"Com\")","v":""},{"$f":"IF('Project Scope'!$C36=\"\",\"\",'Project Scope'!$L36)","v":""},{"$f":"IF('Project Scope'!$C36=\"\",\"\",IF('Project Scope'!$CJ36=\"\",0,'Project Scope'!$CJ36))","v":""},{"$f":"IF('Project Scope'!$C36=\"\",\"\",IF('Project Scope'!$N36=\"\",0,'Project Scope'!$N36))","v":""},{"$f":"IF('Project Scope'!$C36=\"\",\"\",IF('Project Scope'!$CK36=\"\",0,'Project Scope'!$CK36))","v":""},{"$f":"IF('Project Scope'!$C36=\"\",\"\",IF('Project Scope'!$AO36=\"\",0,'Project Scope'!$AO36))","v":""},{"$f":"IF('Project Scope'!$C36=\"\",\"\",IF('Project Scope'!$AX36=\"\",0,'Project Scope'!$AX36))","v":""},{"$f":"IF('Project Scope'!$C36=\"\",\"\",IF('Project Scope'!$M36=\"\",0,'Project Scope'!$M36))","v":""},{"$f":"IF('Project Scope'!$C36=\"\",\"\",IF(COUNTIF('CBAT Lookups'!$B$5:$B$12,\"Fixtures-\"&CBAT!$D36)=1,VLOOKUP(\"Fixtures-\"&CBAT!$D36,'CBAT Lookups'!$B$5:$L$12,11),0))","v":""},{"$f":"IF('Project Scope'!$C36=\"\",\"\",(IF(COUNTIF('CBAT Lookups'!$B$5:$B$12,\"Fixtures-\"&CBAT!$D36)=1,VLOOKUP(\"Fixtures-\"&CBAT!$D36,'CBAT Lookups'!$B$5:$K$12,2),0))*VLOOKUP($F36,'CBAT Lookups'!$B$17:$K$19,2))","v":""},{"$f":"IF('Project Scope'!$C36=\"\",\"\",(IF(COUNTIF('CBAT Lookups'!$B$5:$B$12,\"Fixtures-\"&CBAT!$D36)=1,VLOOKUP(\"Fixtures-\"&CBAT!$D36,'CBAT Lookups'!$B$5:$K$12,3),0))*VLOOKUP($F36,'CBAT Lookups'!$B$17:$K$19,3))","v":""},{"$f":"IF('Project Scope'!$C36=\"\",\"\",(IF(COUNTIF('CBAT Lookups'!$B$5:$B$12,\"Fixtures-\"&CBAT!$D36)=1,VLOOKUP(\"Fixtures-\"&CBAT!$D36,'CBAT Lookups'!$B$5:$K$12,4),0)))","v":""},{"$f":"IF('Project Scope'!$C36=\"\",\"\",(IF(COUNTIF('CBAT Lookups'!$B$5:$B$12,\"Fixtures-\"&CBAT!$D36)=1,VLOOKUP(\"Fixtures-\"&CBAT!$D36,'CBAT Lookups'!$B$5:$K$12,5),0)))","v":""},{"$f":"IF('Project Scope'!$C36=\"\",\"\",(IF(COUNTIF('CBAT Lookups'!$B$5:$B$12,\"Fixtures-\"&CBAT!$D36)=1,VLOOKUP(\"Fixtures-\"&CBAT!$D36,'CBAT Lookups'!$B$5:$K$12,6),0)))","v":""},{"$f":"IF('Project Scope'!$C36=\"\",\"\",IF(COUNTIF('CBAT Lookups'!$B$5:$B$12,\"Fixtures-\"&CBAT!$D36)=1,VLOOKUP(\"Fixtures-\"&CBAT!$D36,'CBAT Lookups'!$B$5:$K$12,7),0))","v":""},{"$f":"IF('Project Scope'!$C36=\"\",\"\",IF(VLOOKUP($F36,'CBAT Lookups'!$B$17:$K$19,8)=\"W\",1,IF(COUNTIF('CBAT Lookups'!$B$5:$B$12,\"Fixtures-\"&CBAT!$D36)=1,VLOOKUP(\"Fixtures-\"&CBAT!$D36,'CBAT Lookups'!$B$5:$K$12,8),0)*VLOOKUP($F36,'CBAT Lookups'!$B$17:$K$19,8)))","v":""},{"$f":"IF('Project Scope'!$C36=\"\",\"\",IF(VLOOKUP($F36,'CBAT Lookups'!$B$17:$K$19,9)=\"W\",1,IF(COUNTIF('CBAT Lookups'!$B$5:$B$12,\"Fixtures-\"&CBAT!$D36)=1,VLOOKUP(\"Fixtures-\"&CBAT!$D36,'CBAT Lookups'!$B$5:$K$12,9),0)*VLOOKUP($F36,'CBAT Lookups'!$B$17:$K$19,9)))","v":""},{"$f":"IF('Project Scope'!$C36=\"\",\"\",IF(COUNTIF('CBAT Lookups'!$B$5:$B$12,\"Fixtures-\"&CBAT!$D36)=1,VLOOKUP(\"Fixtures-\"&CBAT!$D36,'CBAT Lookups'!$B$5:$K$12,10),0)*VLOOKUP($F36,'CBAT Lookups'!$B$17:$K$19,10))","v":""},{"$f":"IF('Project Scope'!$C36=\"\",\"\",IF(COUNTIF('CBAT Lookups'!$B$5:$B$12,\"Fixtures-\"&CBAT!$D36)=1,VLOOKUP(\"Fixtures-\"&CBAT!$D36,'CBAT Lookups'!$B$5:$O$12,12),0))","v":""},{"$f":"IF('Project Scope'!$C36=\"\",\"\",IF(COUNTIF('CBAT Lookups'!$B$5:$B$12,\"Fixtures-\"&CBAT!$D36)=1,VLOOKUP(\"Fixtures-\"&CBAT!$D36,'CBAT Lookups'!$B$5:$O$12,13),0))","v":""},{"$f":"IF('Project Scope'!$C36=\"\",\"\",IF(COUNTIF('CBAT Lookups'!$B$5:$B$12,\"Fixtures-\"&CBAT!$D36)=1,VLOOKUP(\"Fixtures-\"&CBAT!$D36,'CBAT Lookups'!$B$5:$O$12,14),0))","v":""},{"$f":"IF('Project Scope'!$C36=\"\",\"\",'TRM Data'!$U$3)","v":""},{"$f":"IF('Project Scope'!$C36=\"\",\"\",'TRM Data'!$V$3)","v":""},{"$f":"IF('Project Scope'!$C36=\"\",\"\",IF($J36<=0,0,MAX(0,(($G36*$H36/1000)-($I36*$J36/1000))*$L36)*$U36)+($AF36/0.003412))","v":""},{"$f":"IF('Project Scope'!$C36=\"\",\"\",IF($J36<=0,0,MAX(0,(($G36*$H36/1000)-($I36*$J36/1000)))*$T36))","v":""},{"$f":"IF('Project Scope'!$C36=\"\",\"\",IF($J36<=0,0,MAX(0,(($G36*$H36/1000)-($I36*$J36/1000))*$N36)))","v":""},{"$f":"IF('Project Scope'!$C36=\"\",\"\",IF($J36<=0,0,MAX(0,(($G36*$H36/1000)-($I36*$J36/1000))*$O36)*$T36))","v":""},{"$f":"IF('Project Scope'!$C36=\"\",\"\",IF(OR($J36<=0,'Project Information'!$D$44=\"\"),0,-1*MAX(0,(($G36*$H36/1000)-($I36*$J36/1000))*$L36)*$V36*VLOOKUP('Project Information'!$D$44,'CBAT Lookups'!$A$23:$H$30,2)))","v":""},{"$f":"IF('Project Scope'!$C36=\"\",\"\",IF(OR($J36<=0,'Project Information'!$D$44=\"\"),0,-1*MAX(0,(($G36*$H36/1000)-($I36*$J36/1000))*$L36)*$V36*VLOOKUP('Project Information'!$D$44,'CBAT Lookups'!$A$23:$H$30,3)))","v":""},{"$f":"IF('Project Scope'!$C36=\"\",\"\",IF(OR($J36<=0,'Project Information'!$D$44=\"\"),0,-1*MAX(0,(($G36*$H36/1000)-($I36*$J36/1000))*$L36)*$V36*VLOOKUP('Project Information'!$D$44,'CBAT Lookups'!$A$23:$H$30,4)))","v":""},{"$f":"IF('Project Scope'!$C36=\"\",\"\",IF(OR($J36<=0,'Project Information'!$D$44=\"\"),0,-1*MAX(0,(($G36*$H36/1000)-($I36*$J36/1000))*$L36)*$V36*VLOOKUP('Project Information'!$D$44,'CBAT Lookups'!$A$23:$H$30,5)))","v":""},{"$f":"IF('Project Scope'!$C36=\"\",\"\",IF(OR($J36<=0,'Project Information'!$D$44=\"\"),0,-1*MAX(0,(($G36*$H36/1000)-($I36*$J36/1000))*$L36)*$V36*VLOOKUP('Project Information'!$D$44,'CBAT Lookups'!$A$23:$H$30,6)))","v":""},{"$f":"IF('Project Scope'!$C36=\"\",\"\",IF(OR($J36<=0,'Project Information'!$D$44=\"\"),0,-1*MAX(0,(($G36*$H36/1000)-($I36*$J36/1000))*$L36)*$V36*VLOOKUP('Project Information'!$D$44,'CBAT Lookups'!$A$23:$H$30,7)))","v":""},{"$f":"IF('Project Scope'!$C36=\"\",\"\",IF(OR($J36<=0,'Project Information'!$D$44=\"\"),0,-1*MAX(0,(($G36*$H36/1000)-($I36*$J36/1000))*$L36)*$V36*VLOOKUP('Project Information'!$D$44,'CBAT Lookups'!$A$23:$H$30,8)))","v":""},null,{"$f":"IF('Project Scope'!$C36=\"\",\"\",VLOOKUP($F36,'CBAT Lookups'!$B$17:$K$19,4))","v":""},{"$f":"IF('Project Scope'!$C36=\"\",\"\",VLOOKUP($F36,'CBAT Lookups'!$B$17:$K$19,5))","v":""},{"$f":"IF('Project Scope'!$C36=\"\",\"\",VLOOKUP($F36,'CBAT Lookups'!$B$17:$K$19,6))","v":""},{"$f":"IF('Project Scope'!$C36=\"\",\"\",VLOOKUP($F36,'CBAT Lookups'!$B$17:$K$19,7))","v":""},{"$f":"IF('Project Scope'!$C36=\"\",\"\",IF(SUMPRODUCT($P36:$S36,$AN36:$AQ36)=0,0,P36*AN36/SUMPRODUCT($P36:$S36,$AN36:$AQ36)))","v":""},{"$f":"IF('Project Scope'!$C36=\"\",\"\",IF(SUMPRODUCT($P36:$S36,$AN36:$AQ36)=0,0,Q36*AO36/SUMPRODUCT($P36:$S36,$AN36:$AQ36)))","v":""},{"$f":"IF('Project Scope'!$C36=\"\",\"\",IF(SUMPRODUCT($P36:$S36,$AN36:$AQ36)=0,0,R36*AP36/SUMPRODUCT($P36:$S36,$AN36:$AQ36)))","v":""},{"$f":"IF('Project Scope'!$C36=\"\",\"\",IF(SUMPRODUCT($P36:$S36,$AN36:$AQ36)=0,0,S36*AQ36/SUMPRODUCT($P36:$S36,$AN36:$AQ36)))","v":""},{"$f":"IF('Project Scope'!$C36=\"\",\"\",Benefits($AB36,$AD36,$AE36,$AG36,$AH36,$AI36,$AJ36,$AK36,$AL36,$AM36,$M36,$AR36,$AS36,$AT36,$AU36,$W36,$X36,$Y36,$Z36,$AA36,$E36))","v":""},"","","","","","","","",null,{"$f":"IF('Project Scope'!$C36=\"\",\"\",SUM('Project Scope'!$AT36,'Project Scope'!$AU36))","v":""},{"$f":"IF('Project Scope'!$C36=\"\",\"\",SUM('Project Scope'!$BG36, 'Project Scope'!$AR36,(IF(ISNUMBER('Project Scope'!$AS36),'Project Scope'!$AS36,0)*'Project Information'!$D$12)))","v":""},null,null,{"$f":"IF('Project Scope'!$C36=\"\",\"\",IF(COUNTIF('CBAT Lookups'!$B$5:$B$12,\"Controls-\"&CBAT!$D36)=1,VLOOKUP(\"Controls-\"&CBAT!$D36,'CBAT Lookups'!$B$5:$L$12,11),0))","v":""},{"$f":"IF('Project Scope'!$C36=\"\",\"\",IF(COUNTIF('CBAT Lookups'!$B$5:$B$12,\"Controls-\"&CBAT!$D36)=1,VLOOKUP(\"Controls-\"&CBAT!$D36,'CBAT Lookups'!$B$5:$K$12,2),0)*VLOOKUP($F36,'CBAT Lookups'!$B$17:$K$19,2))","v":""},{"$f":"IF('Project Scope'!$C36=\"\",\"\",IF(COUNTIF('CBAT Lookups'!$B$5:$B$12,\"Controls-\"&CBAT!$D36)=1,VLOOKUP(\"Controls-\"&CBAT!$D36,'CBAT Lookups'!$B$5:$K$12,3),0)*VLOOKUP($F36,'CBAT Lookups'!$B$17:$K$19,3))","v":""},{"$f":"IF('Project Scope'!$C36=\"\",\"\",IF(COUNTIF('CBAT Lookups'!$B$5:$B$12,\"Controls-\"&CBAT!$D36)=1,VLOOKUP(\"Controls-\"&CBAT!$D36,'CBAT Lookups'!$B$5:$K$12,4),0))","v":""},{"$f":"IF('Project Scope'!$C36=\"\",\"\",IF(COUNTIF('CBAT Lookups'!$B$5:$B$12,\"Controls-\"&CBAT!$D36)=1,VLOOKUP(\"Controls-\"&CBAT!$D36,'CBAT Lookups'!$B$5:$K$12,5),0))","v":""},{"$f":"IF('Project Scope'!$C36=\"\",\"\",IF(COUNTIF('CBAT Lookups'!$B$5:$B$12,\"Controls-\"&CBAT!$D36)=1,VLOOKUP(\"Controls-\"&CBAT!$D36,'CBAT Lookups'!$B$5:$K$12,6),0))","v":""},{"$f":"IF('Project Scope'!$C36=\"\",\"\",IF(COUNTIF('CBAT Lookups'!$B$5:$B$12,\"Controls-\"&CBAT!$D36)=1,VLOOKUP(\"Controls-\"&CBAT!$D36,'CBAT Lookups'!$B$5:$K$12,7),0))","v":""},{"$f":"IF('Project Scope'!$C36=\"\",\"\",IF(VLOOKUP($F36,'CBAT Lookups'!$B$17:$K$19,8)=\"W\",1,IF(COUNTIF('CBAT Lookups'!$B$5:$B$12,\"Controls-\"&CBAT!$D36)=1,VLOOKUP(\"Controls-\"&CBAT!$D36,'CBAT Lookups'!$B$5:$K$12,8),0)*VLOOKUP($F36,'CBAT Lookups'!$B$17:$K$19,8)))","v":""},{"$f":"IF('Project Scope'!$C36=\"\",\"\",IF(VLOOKUP($F36,'CBAT Lookups'!$B$17:$K$19,9)=\"W\",1,IF(COUNTIF('CBAT Lookups'!$B$5:$B$12,\"Controls-\"&CBAT!$D36)=1,VLOOKUP(\"Controls-\"&CBAT!$D36,'CBAT Lookups'!$B$5:$K$12,9),0)*VLOOKUP($F36,'CBAT Lookups'!$B$17:$K$19,9)))","v":""},{"$f":"IF('Project Scope'!$C36=\"\",\"\",IF(COUNTIF('CBAT Lookups'!$B$5:$B$12,\"Controls-\"&CBAT!$D36)=1,VLOOKUP(\"Controls-\"&CBAT!$D36,'CBAT Lookups'!$B$5:$K$12,10),0)*VLOOKUP($F36,'CBAT Lookups'!$B$17:$K$19,10))","v":""},{"$f":"IF('Project Scope'!$C36=\"\",\"\",VLOOKUP($C36,'CBAT Lookups'!$A$33:$B$57,2))","v":""},{"$f":"IF('Project Scope'!$C36=\"\",\"\",IF(COUNTIF('CBAT Lookups'!$B$5:$B$12,\"Controls-\"&CBAT!$D36)=1,VLOOKUP(\"Controls-\"&CBAT!$D36,'CBAT Lookups'!$B$5:$O$12,12),0))","v":""},{"$f":"IF('Project Scope'!$C36=\"\",\"\",IF(COUNTIF('CBAT Lookups'!$B$5:$B$12,\"Controls-\"&CBAT!$D36)=1,VLOOKUP(\"Controls-\"&CBAT!$D36,'CBAT Lookups'!$B$5:$O$12,13),0))","v":""},{"$f":"IF('Project Scope'!$C36=\"\",\"\",IF(COUNTIF('CBAT Lookups'!$B$5:$B$12,\"Controls-\"&CBAT!$D36)=1,VLOOKUP(\"Controls-\"&CBAT!$D36,'CBAT Lookups'!$B$5:$O$12,14),0))","v":""},{"$f":"IF('Project Scope'!$C36=\"\",\"\",'TRM Data'!$U$3)","v":""},{"$f":"IF('Project Scope'!$C36=\"\",\"\",'TRM Data'!$V$3)","v":""},{"$f":"IF('Project Scope'!$C36=\"\",\"\",IF($K36<=0,0,MAX(0,(IF(AND($I36>0,$J36>0),($I36*$J36)/1000,($G36*$H36)/1000)*$L36))*$BT36*$BR36)+($CD36/0.003412))","v":""},{"$f":"IF('Project Scope'!$C36=\"\",\"\",IF($K36<=0,0,MAX(0,IF(AND($I36>0,$J36>0),($I36*$J36)/1000,($G36*$H36)/1000))*$BQ36))","v":""},{"$f":"IF('Project Scope'!$C36=\"\",\"\",IF($K36<=0,0,MAX(0,IF(AND($I36>0,$J36>0),($I36*$J36)/1000,($G36*$H36)/1000))*$BK36))","v":""},{"$f":"IF('Project Scope'!$C36=\"\",\"\",IF($K36<=0,0,MAX(0,IF(AND($I36>0,$J36>0),($I36*$J36)/1000,($G36*$H36)/1000))*$BL36*$BQ36))","v":""},{"$f":"IF('Project Scope'!$C36=\"\",\"\",IF(OR($K36<=0,'Project Information'!$D$44=\"\"),0,-1*MAX(0,IF(AND($I36>0,$J36>0),($I36*$J36)/1000,($G36*$H36)/1000))*$BT36*$L36*$BS36*VLOOKUP('Project Information'!$D$44,'CBAT Lookups'!$A$23:$H$30,2)))","v":""},{"$f":"IF('Project Scope'!$C36=\"\",\"\",IF(OR($K36<=0,'Project Information'!$D$44=\"\"),0,-1*MAX(0,IF(AND($I36>0,$J36>0),($I36*$J36)/1000,($G36*$H36)/1000))*$BT36*$L36*$BS36*VLOOKUP('Project Information'!$D$44,'CBAT Lookups'!$A$23:$H$30,3)))","v":""},{"$f":"IF('Project Scope'!$C36=\"\",\"\",IF(OR($K36<=0,'Project Information'!$D$44=\"\"),0,-1*MAX(0,IF(AND($I36>0,$J36>0),($I36*$J36)/1000,($G36*$H36)/1000))*$BT36*$L36*$BS36*VLOOKUP('Project Information'!$D$44,'CBAT Lookups'!$A$23:$H$30,4)))","v":""},{"$f":"IF('Project Scope'!$C36=\"\",\"\",IF(OR($K36<=0,'Project Information'!$D$44=\"\"),0,-1*MAX(0,IF(AND($I36>0,$J36>0),($I36*$J36)/1000,($G36*$H36)/1000))*$BT36*$L36*$BS36*VLOOKUP('Project Information'!$D$44,'CBAT Lookups'!$A$23:$H$30,5)))","v":""},{"$f":"IF('Project Scope'!$C36=\"\",\"\",IF(OR($K36<=0,'Project Information'!$D$44=\"\"),0,-1*MAX(0,IF(AND($I36>0,$J36>0),($I36*$J36)/1000,($G36*$H36)/1000))*$BT36*$L36*$BS36*VLOOKUP('Project Information'!$D$44,'CBAT Lookups'!$A$23:$H$30,6)))","v":""},{"$f":"IF('Project Scope'!$C36=\"\",\"\",IF(OR($K36<=0,'Project Information'!$D$44=\"\"),0,-1*MAX(0,IF(AND($I36>0,$J36>0),($I36*$J36)/1000,($G36*$H36)/1000))*$BT36*$L36*$BS36*VLOOKUP('Project Information'!$D$44,'CBAT Lookups'!$A$23:$H$30,7)))","v":""},{"$f":"IF('Project Scope'!$C36=\"\",\"\",IF(OR($K36<=0,'Project Information'!$D$44=\"\"),0,-1*MAX(0,IF(AND($I36>0,$J36>0),($I36*$J36)/1000,($G36*$H36)/1000))*$BT36*$L36*$BS36*VLOOKUP('Project Information'!$D$44,'CBAT Lookups'!$A$23:$H$30,8)))","v":""},null,{"$f":"IF('Project Scope'!$C36=\"\",\"\",VLOOKUP($F36,'CBAT Lookups'!$B$17:$K$19,4))","v":""},{"$f":"IF('Project Scope'!$C36=\"\",\"\",VLOOKUP($F36,'CBAT Lookups'!$B$17:$K$19,5))","v":""},{"$f":"IF('Project Scope'!$C36=\"\",\"\",VLOOKUP($F36,'CBAT Lookups'!$B$17:$K$19,6))","v":""},{"$f":"IF('Project Scope'!$C36=\"\",\"\",VLOOKUP($F36,'CBAT Lookups'!$B$17:$K$19,7))","v":""},{"$f":"IF('Project Scope'!$C36=\"\",\"\",IF(SUMPRODUCT($BM36:$BP36,$CL36:$CO36)=0,0,BM36*CL36/SUMPRODUCT($BM36:$BP36,$CL36:$CO36)))","v":""},{"$f":"IF('Project Scope'!$C36=\"\",\"\",IF(SUMPRODUCT($BM36:$BP36,$CL36:$CO36)=0,0,BN36*CM36/SUMPRODUCT($BM36:$BP36,$CL36:$CO36)))","v":""},{"$f":"IF('Project Scope'!$C36=\"\",\"\",IF(SUMPRODUCT($BM36:$BP36,$CL36:$CO36)=0,0,BO36*CN36/SUMPRODUCT($BM36:$BP36,$CL36:$CO36)))","v":""},{"$f":"IF('Project Scope'!$C36=\"\",\"\",IF(SUMPRODUCT($BM36:$BP36,$CL36:$CO36)=0,0,BP36*CO36/SUMPRODUCT($BM36:$BP36,$CL36:$CO36)))","v":""},{"$f":"IF('Project Scope'!$C36=\"\",\"\",Benefits($BZ36,$CB36,$CC36,$CE36,$CF36,$CG36,$CH36,$CI36,$CJ36,$CK36,$BJ36,$CP36,$CQ36,$CR36,$CS36,$BU36,$BV36,$BW36,$BX36,$BY36,$E36))","v":""},"","","","","","","","",null,{"$f":"IF('Project Scope'!$C36=\"\",\"\",SUM('Project Scope'!$BB36,'Project Scope'!$BC36))","v":""},{"$f":"IF('Project Scope'!$C36=\"\",\"\",SUM('Project Scope'!$BH36, 'Project Scope'!$AZ36,(IF(ISNUMBER('Project Scope'!$BA36),'Project Scope'!$BA36,0)*'Project Information'!$D$12)))","v":""},null,null,{"$f":"IF('Project Scope'!$C36=\"\",\"\",IF($J36<=0,0,(SUMPRODUCT($AV36:$BC36,--($AV36:$BC36>0))+$BE36)*$DK36/((-SUMPRODUCT($AV36:$BC36,--($AV36:$BC36<0))+$BG36+$BH36+$BI36)*$DK36)))","v":""},{"$f":"IF('Project Scope'!$C36=\"\",\"\",IF($K36<=0,0,(SUMPRODUCT($CT36:$DA36,--($CT36:$DA36>0))+$DC36)*$DK36/((-SUMPRODUCT($CT36:$DA36,--($CT36:$DA36<0))+$DE36+$DF36+$DG36)*$DK36)))","v":""},{"$f":"IF('Project Scope'!$C36=\"\",\"\",IF(AND($J36<=0,$K36<=0),0,(SUMPRODUCT($AV36:$BC36,--($AV36:$BC36>0))+$BE36+SUMPRODUCT($CT36:$DA36,--($CT36:$DA36>0))+$DC36)*$DK36/((-SUMPRODUCT($AV36:$BC36,--($AV36:$BC36<0))+$BG36+$BH36+$BI36-SUMPRODUCT($CT36:$DA36,--($CT36:$DA36<0))+$DE36+$DF36+$DG36)*$DK36)))","v":""},{"$f":"IF('Project Scope'!$C36=\"\",\"\",IF(NetOrGross=\"Net\",(1-Z36+AA36),1))","v":""}]
[{"$f":"'Project Scope'!$B37","v":30},{"$f":"IF('Project Scope'!$C37=\"\",\"\",'Project Scope'!$C37)","v":""},{"$f":"IF('Project Scope'!$C37=\"\",\"\",'Project Scope'!$H37)","v":""},{"$f":"IF(ISNUMBER(SEARCH(\"Bay\",'Project Scope'!$Q37)),\"Bay\",IF('Project Scope'!C37=\"\",\"\",'Project Scope'!E37))","v":""},{"$f":"IF('Project Scope'!$C37=\"\",\"\",\"Com\")","v":""},{"$f":"IF('Project Scope'!$C37=\"\",\"\",'Project Scope'!$L37)","v":""},{"$f":"IF('Project Scope'!$C37=\"\",\"\",IF('Project Scope'!$CJ37=\"\",0,'Project Scope'!$CJ37))","v":""},{"$f":"IF('Project Scope'!$C37=\"\",\"\",IF('Project Scope'!$N37=\"\",0,'Project Scope'!$N37))","v":""},{"$f":"IF('Project Scope'!$C37=\"\",\"\",IF('Project Scope'!$CK37=\"\",0,'Project Scope'!$CK37))","v":""},{"$f":"IF('Project Scope'!$C37=\"\",\"\",IF('Project Scope'!$AO37=\"\",0,'Project Scope'!$AO37))","v":""},{"$f":"IF('Project Scope'!$C37=\"\",\"\",IF('Project Scope'!$AX37=\"\",0,'Project Scope'!$AX37))","v":""},{"$f":"IF('Project Scope'!$C37=\"\",\"\",IF('Project Scope'!$M37=\"\",0,'Project Scope'!$M37))","v":""},{"$f":"IF('Project Scope'!$C37=\"\",\"\",IF(COUNTIF('CBAT Lookups'!$B$5:$B$12,\"Fixtures-\"&CBAT!$D37)=1,VLOOKUP(\"Fixtures-\"&CBAT!$D37,'CBAT Lookups'!$B$5:$L$12,11),0))","v":""},{"$f":"IF('Project Scope'!$C37=\"\",\"\",(IF(COUNTIF('CBAT Lookups'!$B$5:$B$12,\"Fixtures-\"&CBAT!$D37)=1,VLOOKUP(\"Fixtures-\"&CBAT!$D37,'CBAT Lookups'!$B$5:$K$12,2),0))*VLOOKUP($F37,'CBAT Lookups'!$B$17:$K$19,2))","v":""},{"$f":"IF('Project Scope'!$C37=\"\",\"\",(IF(COUNTIF('CBAT Lookups'!$B$5:$B$12,\"Fixtures-\"&CBAT!$D37)=1,VLOOKUP(\"Fixtures-\"&CBAT!$D37,'CBAT Lookups'!$B$5:$K$12,3),0))*VLOOKUP($F37,'CBAT Lookups'!$B$17:$K$19,3))","v":""},{"$f":"IF('Project Scope'!$C37=\"\",\"\",(IF(COUNTIF('CBAT Lookups'!$B$5:$B$12,\"Fixtures-\"&CBAT!$D37)=1,VLOOKUP(\"Fixtures-\"&CBAT!$D37,'CBAT Lookups'!$B$5:$K$12,4),0)))","v":""},{"$f":"IF('Project Scope'!$C37=\"\",\"\",(IF(COUNTIF('CBAT Lookups'!$B$5:$B$12,\"Fixtures-\"&CBAT!$D37)=1,VLOOKUP(\"Fixtures-\"&CBAT!$D37,'CBAT Lookups'!$B$5:$K$12,5),0)))","v":""},{"$f":"IF('Project Scope'!$C37=\"\",\"\",(IF(COUNTIF('CBAT Lookups'!$B$5:$B$12,\"Fixtures-\"&CBAT!$D37)=1,VLOOKUP(\"Fixtures-\"&CBAT!$D37,'CBAT Lookups'!$B$5:$K$12,6),0)))","v":""},{"$f":"IF('Project Scope'!$C37=\"\",\"\",IF(COUNTIF('CBAT Lookups'!$B$5:$B$12,\"Fixtures-\"&CBAT!$D37)=1,VLOOKUP(\"Fixtures-\"&CBAT!$D37,'CBAT Lookups'!$B$5:$K$12,7),0))","v":""},{"$f":"IF('Project Scope'!$C37=\"\",\"\",IF(VLOOKUP($F37,'CBAT Lookups'!$B$17:$K$19,8)=\"W\",1,IF(COUNTIF('CBAT Lookups'!$B$5:$B$12,\"Fixtures-\"&CBAT!$D37)=1,VLOOKUP(\"Fixtures-\"&CBAT!$D37,'CBAT Lookups'!$B$5:$K$12,8),0)*VLOOKUP($F37,'CBAT Lookups'!$B$17:$K$19,8)))","v":""},{"$f":"IF('Project Scope'!$C37=\"\",\"\",IF(VLOOKUP($F37,'CBAT Lookups'!$B$17:$K$19,9)=\"W\",1,IF(COUNTIF('CBAT Lookups'!$B$5:$B$12,\"Fixtures-\"&CBAT!$D37)=1,VLOOKUP(\"Fixtures-\"&CBAT!$D37,'CBAT Lookups'!$B$5:$K$12,9),0)*VLOOKUP($F37,'CBAT Lookups'!$B$17:$K$19,9)))","v":""},{"$f":"IF('Project Scope'!$C37=\"\",\"\",IF(COUNTIF('CBAT Lookups'!$B$5:$B$12,\"Fixtures-\"&CBAT!$D37)=1,VLOOKUP(\"Fixtures-\"&CBAT!$D37,'CBAT Lookups'!$B$5:$K$12,10),0)*VLOOKUP($F37,'CBAT Lookups'!$B$17:$K$19,10))","v":""},{"$f":"IF('Project Scope'!$C37=\"\",\"\",IF(COUNTIF('CBAT Lookups'!$B$5:$B$12,\"Fixtures-\"&CBAT!$D37)=1,VLOOKUP(\"Fixtures-\"&CBAT!$D37,'CBAT Lookups'!$B$5:$O$12,12),0))","v":""},{"$f":"IF('Project Scope'!$C37=\"\",\"\",IF(COUNTIF('CBAT Lookups'!$B$5:$B$12,\"Fixtures-\"&CBAT!$D37)=1,VLOOKUP(\"Fixtures-\"&CBAT!$D37,'CBAT Lookups'!$B$5:$O$12,13),0))","v":""},{"$f":"IF('Project Scope'!$C37=\"\",\"\",IF(COUNTIF('CBAT Lookups'!$B$5:$B$12,\"Fixtures-\"&CBAT!$D37)=1,VLOOKUP(\"Fixtures-\"&CBAT!$D37,'CBAT Lookups'!$B$5:$O$12,14),0))","v":""},{"$f":"IF('Project Scope'!$C37=\"\",\"\",'TRM Data'!$U$3)","v":""},{"$f":"IF('Project Scope'!$C37=\"\",\"\",'TRM Data'!$V$3)","v":""},{"$f":"IF('Project Scope'!$C37=\"\",\"\",IF($J37<=0,0,MAX(0,(($G37*$H37/1000)-($I37*$J37/1000))*$L37)*$U37)+($AF37/0.003412))","v":""},{"$f":"IF('Project Scope'!$C37=\"\",\"\",IF($J37<=0,0,MAX(0,(($G37*$H37/1000)-($I37*$J37/1000)))*$T37))","v":""},{"$f":"IF('Project Scope'!$C37=\"\",\"\",IF($J37<=0,0,MAX(0,(($G37*$H37/1000)-($I37*$J37/1000))*$N37)))","v":""},{"$f":"IF('Project Scope'!$C37=\"\",\"\",IF($J37<=0,0,MAX(0,(($G37*$H37/1000)-($I37*$J37/1000))*$O37)*$T37))","v":""},{"$f":"IF('Project Scope'!$C37=\"\",\"\",IF(OR($J37<=0,'Project Information'!$D$44=\"\"),0,-1*MAX(0,(($G37*$H37/1000)-($I37*$J37/1000))*$L37)*$V37*VLOOKUP('Project Information'!$D$44,'CBAT Lookups'!$A$23:$H$30,2)))","v":""},{"$f":"IF('Project Scope'!$C37=\"\",\"\",IF(OR($J37<=0,'Project Information'!$D$44=\"\"),0,-1*MAX(0,(($G37*$H37/1000)-($I37*$J37/1000))*$L37)*$V37*VLOOKUP('Project Information'!$D$44,'CBAT Lookups'!$A$23:$H$30,3)))","v":""},{"$f":"IF('Project Scope'!$C37=\"\",\"\",IF(OR($J37<=0,'Project Information'!$D$44=\"\"),0,-1*MAX(0,(($G37*$H37/1000)-($I37*$J37/1000))*$L37)*$V37*VLOOKUP('Project Information'!$D$44,'CBAT Lookups'!$A$23:$H$30,4)))","v":""},{"$f":"IF('Project Scope'!$C37=\"\",\"\",IF(OR($J37<=0,'Project Information'!$D$44=\"\"),0,-1*MAX(0,(($G37*$H37/1000)-($I37*$J37/1000))*$L37)*$V37*VLOOKUP('Project Information'!$D$44,'CBAT Lookups'!$A$23:$H$30,5)))","v":""},{"$f":"IF('Project Scope'!$C37=\"\",\"\",IF(OR($J37<=0,'Project Information'!$D$44=\"\"),0,-1*MAX(0,(($G37*$H37/1000)-($I37*$J37/1000))*$L37)*$V37*VLOOKUP('Project Information'!$D$44,'CBAT Lookups'!$A$23:$H$30,6)))","v":""},{"$f":"IF('Project Scope'!$C37=\"\",\"\",IF(OR($J37<=0,'Project Information'!$D$44=\"\"),0,-1*MAX(0,(($G37*$H37/1000)-($I37*$J37/1000))*$L37)*$V37*VLOOKUP('Project Information'!$D$44,'CBAT Lookups'!$A$23:$H$30,7)))","v":""},{"$f":"IF('Project Scope'!$C37=\"\",\"\",IF(OR($J37<=0,'Project Information'!$D$44=\"\"),0,-1*MAX(0,(($G37*$H37/1000)-($I37*$J37/1000))*$L37)*$V37*VLOOKUP('Project Information'!$D$44,'CBAT Lookups'!$A$23:$H$30,8)))","v":""},null,{"$f":"IF('Project Scope'!$C37=\"\",\"\",VLOOKUP($F37,'CBAT Lookups'!$B$17:$K$19,4))","v":""},{"$f":"IF('Project Scope'!$C37=\"\",\"\",VLOOKUP($F37,'CBAT Lookups'!$B$17:$K$19,5))","v":""},{"$f":"IF('Project Scope'!$C37=\"\",\"\",VLOOKUP($F37,'CBAT Lookups'!$B$17:$K$19,6))","v":""},{"$f":"IF('Project Scope'!$C37=\"\",\"\",VLOOKUP($F37,'CBAT Lookups'!$B$17:$K$19,7))","v":""},{"$f":"IF('Project Scope'!$C37=\"\",\"\",IF(SUMPRODUCT($P37:$S37,$AN37:$AQ37)=0,0,P37*AN37/SUMPRODUCT($P37:$S37,$AN37:$AQ37)))","v":""},{"$f":"IF('Project Scope'!$C37=\"\",\"\",IF(SUMPRODUCT($P37:$S37,$AN37:$AQ37)=0,0,Q37*AO37/SUMPRODUCT($P37:$S37,$AN37:$AQ37)))","v":""},{"$f":"IF('Project Scope'!$C37=\"\",\"\",IF(SUMPRODUCT($P37:$S37,$AN37:$AQ37)=0,0,R37*AP37/SUMPRODUCT($P37:$S37,$AN37:$AQ37)))","v":""},{"$f":"IF('Project Scope'!$C37=\"\",\"\",IF(SUMPRODUCT($P37:$S37,$AN37:$AQ37)=0,0,S37*AQ37/SUMPRODUCT($P37:$S37,$AN37:$AQ37)))","v":""},{"$f":"IF('Project Scope'!$C37=\"\",\"\",Benefits($AB37,$AD37,$AE37,$AG37,$AH37,$AI37,$AJ37,$AK37,$AL37,$AM37,$M37,$AR37,$AS37,$AT37,$AU37,$W37,$X37,$Y37,$Z37,$AA37,$E37))","v":""},"","","","","","","","",null,{"$f":"IF('Project Scope'!$C37=\"\",\"\",SUM('Project Scope'!$AT37,'Project Scope'!$AU37))","v":""},{"$f":"IF('Project Scope'!$C37=\"\",\"\",SUM('Project Scope'!$BG37, 'Project Scope'!$AR37,(IF(ISNUMBER('Project Scope'!$AS37),'Project Scope'!$AS37,0)*'Project Information'!$D$12)))","v":""},null,null,{"$f":"IF('Project Scope'!$C37=\"\",\"\",IF(COUNTIF('CBAT Lookups'!$B$5:$B$12,\"Controls-\"&CBAT!$D37)=1,VLOOKUP(\"Controls-\"&CBAT!$D37,'CBAT Lookups'!$B$5:$L$12,11),0))","v":""},{"$f":"IF('Project Scope'!$C37=\"\",\"\",IF(COUNTIF('CBAT Lookups'!$B$5:$B$12,\"Controls-\"&CBAT!$D37)=1,VLOOKUP(\"Controls-\"&CBAT!$D37,'CBAT Lookups'!$B$5:$K$12,2),0)*VLOOKUP($F37,'CBAT Lookups'!$B$17:$K$19,2))","v":""},{"$f":"IF('Project Scope'!$C37=\"\",\"\",IF(COUNTIF('CBAT Lookups'!$B$5:$B$12,\"Controls-\"&CBAT!$D37)=1,VLOOKUP(\"Controls-\"&CBAT!$D37,'CBAT Lookups'!$B$5:$K$12,3),0)*VLOOKUP($F37,'CBAT Lookups'!$B$17:$K$19,3))","v":""},{"$f":"IF('Project Scope'!$C37=\"\",\"\",IF(COUNTIF('CBAT Lookups'!$B$5:$B$12,\"Controls-\"&CBAT!$D37)=1,VLOOKUP(\"Controls-\"&CBAT!$D37,'CBAT Lookups'!$B$5:$K$12,4),0))","v":""},{"$f":"IF('Project Scope'!$C37=\"\",\"\",IF(COUNTIF('CBAT Lookups'!$B$5:$B$12,\"Controls-\"&CBAT!$D37)=1,VLOOKUP(\"Controls-\"&CBAT!$D37,'CBAT Lookups'!$B$5:$K$12,5),0))","v":""},{"$f":"IF('Project Scope'!$C37=\"\",\"\",IF(COUNTIF('CBAT Lookups'!$B$5:$B$12,\"Controls-\"&CBAT!$D37)=1,VLOOKUP(\"Controls-\"&CBAT!$D37,'CBAT Lookups'!$B$5:$K$12,6),0))","v":""},{"$f":"IF('Project Scope'!$C37=\"\",\"\",IF(COUNTIF('CBAT Lookups'!$B$5:$B$12,\"Controls-\"&CBAT!$D37)=1,VLOOKUP(\"Controls-\"&CBAT!$D37,'CBAT Lookups'!$B$5:$K$12,7),0))","v":""},{"$f":"IF('Project Scope'!$C37=\"\",\"\",IF(VLOOKUP($F37,'CBAT Lookups'!$B$17:$K$19,8)=\"W\",1,IF(COUNTIF('CBAT Lookups'!$B$5:$B$12,\"Controls-\"&CBAT!$D37)=1,VLOOKUP(\"Controls-\"&CBAT!$D37,'CBAT Lookups'!$B$5:$K$12,8),0)*VLOOKUP($F37,'CBAT Lookups'!$B$17:$K$19,8)))","v":""},{"$f":"IF('Project Scope'!$C37=\"\",\"\",IF(VLOOKUP($F37,'CBAT Lookups'!$B$17:$K$19,9)=\"W\",1,IF(COUNTIF('CBAT Lookups'!$B$5:$B$12,\"Controls-\"&CBAT!$D37)=1,VLOOKUP(\"Controls-\"&CBAT!$D37,'CBAT Lookups'!$B$5:$K$12,9),0)*VLOOKUP($F37,'CBAT Lookups'!$B$17:$K$19,9)))","v":""},{"$f":"IF('Project Scope'!$C37=\"\",\"\",IF(COUNTIF('CBAT Lookups'!$B$5:$B$12,\"Controls-\"&CBAT!$D37)=1,VLOOKUP(\"Controls-\"&CBAT!$D37,'CBAT Lookups'!$B$5:$K$12,10),0)*VLOOKUP($F37,'CBAT Lookups'!$B$17:$K$19,10))","v":""},{"$f":"IF('Project Scope'!$C37=\"\",\"\",VLOOKUP($C37,'CBAT Lookups'!$A$33:$B$57,2))","v":""},{"$f":"IF('Project Scope'!$C37=\"\",\"\",IF(COUNTIF('CBAT Lookups'!$B$5:$B$12,\"Controls-\"&CBAT!$D37)=1,VLOOKUP(\"Controls-\"&CBAT!$D37,'CBAT Lookups'!$B$5:$O$12,12),0))","v":""},{"$f":"IF('Project Scope'!$C37=\"\",\"\",IF(COUNTIF('CBAT Lookups'!$B$5:$B$12,\"Controls-\"&CBAT!$D37)=1,VLOOKUP(\"Controls-\"&CBAT!$D37,'CBAT Lookups'!$B$5:$O$12,13),0))","v":""},{"$f":"IF('Project Scope'!$C37=\"\",\"\",IF(COUNTIF('CBAT Lookups'!$B$5:$B$12,\"Controls-\"&CBAT!$D37)=1,VLOOKUP(\"Controls-\"&CBAT!$D37,'CBAT Lookups'!$B$5:$O$12,14),0))","v":""},{"$f":"IF('Project Scope'!$C37=\"\",\"\",'TRM Data'!$U$3)","v":""},{"$f":"IF('Project Scope'!$C37=\"\",\"\",'TRM Data'!$V$3)","v":""},{"$f":"IF('Project Scope'!$C37=\"\",\"\",IF($K37<=0,0,MAX(0,(IF(AND($I37>0,$J37>0),($I37*$J37)/1000,($G37*$H37)/1000)*$L37))*$BT37*$BR37)+($CD37/0.003412))","v":""},{"$f":"IF('Project Scope'!$C37=\"\",\"\",IF($K37<=0,0,MAX(0,IF(AND($I37>0,$J37>0),($I37*$J37)/1000,($G37*$H37)/1000))*$BQ37))","v":""},{"$f":"IF('Project Scope'!$C37=\"\",\"\",IF($K37<=0,0,MAX(0,IF(AND($I37>0,$J37>0),($I37*$J37)/1000,($G37*$H37)/1000))*$BK37))","v":""},{"$f":"IF('Project Scope'!$C37=\"\",\"\",IF($K37<=0,0,MAX(0,IF(AND($I37>0,$J37>0),($I37*$J37)/1000,($G37*$H37)/1000))*$BL37*$BQ37))","v":""},{"$f":"IF('Project Scope'!$C37=\"\",\"\",IF(OR($K37<=0,'Project Information'!$D$44=\"\"),0,-1*MAX(0,IF(AND($I37>0,$J37>0),($I37*$J37)/1000,($G37*$H37)/1000))*$BT37*$L37*$BS37*VLOOKUP('Project Information'!$D$44,'CBAT Lookups'!$A$23:$H$30,2)))","v":""},{"$f":"IF('Project Scope'!$C37=\"\",\"\",IF(OR($K37<=0,'Project Information'!$D$44=\"\"),0,-1*MAX(0,IF(AND($I37>0,$J37>0),($I37*$J37)/1000,($G37*$H37)/1000))*$BT37*$L37*$BS37*VLOOKUP('Project Information'!$D$44,'CBAT Lookups'!$A$23:$H$30,3)))","v":""},{"$f":"IF('Project Scope'!$C37=\"\",\"\",IF(OR($K37<=0,'Project Information'!$D$44=\"\"),0,-1*MAX(0,IF(AND($I37>0,$J37>0),($I37*$J37)/1000,($G37*$H37)/1000))*$BT37*$L37*$BS37*VLOOKUP('Project Information'!$D$44,'CBAT Lookups'!$A$23:$H$30,4)))","v":""},{"$f":"IF('Project Scope'!$C37=\"\",\"\",IF(OR($K37<=0,'Project Information'!$D$44=\"\"),0,-1*MAX(0,IF(AND($I37>0,$J37>0),($I37*$J37)/1000,($G37*$H37)/1000))*$BT37*$L37*$BS37*VLOOKUP('Project Information'!$D$44,'CBAT Lookups'!$A$23:$H$30,5)))","v":""},{"$f":"IF('Project Scope'!$C37=\"\",\"\",IF(OR($K37<=0,'Project Information'!$D$44=\"\"),0,-1*MAX(0,IF(AND($I37>0,$J37>0),($I37*$J37)/1000,($G37*$H37)/1000))*$BT37*$L37*$BS37*VLOOKUP('Project Information'!$D$44,'CBAT Lookups'!$A$23:$H$30,6)))","v":""},{"$f":"IF('Project Scope'!$C37=\"\",\"\",IF(OR($K37<=0,'Project Information'!$D$44=\"\"),0,-1*MAX(0,IF(AND($I37>0,$J37>0),($I37*$J37)/1000,($G37*$H37)/1000))*$BT37*$L37*$BS37*VLOOKUP('Project Information'!$D$44,'CBAT Lookups'!$A$23:$H$30,7)))","v":""},{"$f":"IF('Project Scope'!$C37=\"\",\"\",IF(OR($K37<=0,'Project Information'!$D$44=\"\"),0,-1*MAX(0,IF(AND($I37>0,$J37>0),($I37*$J37)/1000,($G37*$H37)/1000))*$BT37*$L37*$BS37*VLOOKUP('Project Information'!$D$44,'CBAT Lookups'!$A$23:$H$30,8)))","v":""},null,{"$f":"IF('Project Scope'!$C37=\"\",\"\",VLOOKUP($F37,'CBAT Lookups'!$B$17:$K$19,4))","v":""},{"$f":"IF('Project Scope'!$C37=\"\",\"\",VLOOKUP($F37,'CBAT Lookups'!$B$17:$K$19,5))","v":""},{"$f":"IF('Project Scope'!$C37=\"\",\"\",VLOOKUP($F37,'CBAT Lookups'!$B$17:$K$19,6))","v":""},{"$f":"IF('Project Scope'!$C37=\"\",\"\",VLOOKUP($F37,'CBAT Lookups'!$B$17:$K$19,7))","v":""},{"$f":"IF('Project Scope'!$C37=\"\",\"\",IF(SUMPRODUCT($BM37:$BP37,$CL37:$CO37)=0,0,BM37*CL37/SUMPRODUCT($BM37:$BP37,$CL37:$CO37)))","v":""},{"$f":"IF('Project Scope'!$C37=\"\",\"\",IF(SUMPRODUCT($BM37:$BP37,$CL37:$CO37)=0,0,BN37*CM37/SUMPRODUCT($BM37:$BP37,$CL37:$CO37)))","v":""},{"$f":"IF('Project Scope'!$C37=\"\",\"\",IF(SUMPRODUCT($BM37:$BP37,$CL37:$CO37)=0,0,BO37*CN37/SUMPRODUCT($BM37:$BP37,$CL37:$CO37)))","v":""},{"$f":"IF('Project Scope'!$C37=\"\",\"\",IF(SUMPRODUCT($BM37:$BP37,$CL37:$CO37)=0,0,BP37*CO37/SUMPRODUCT($BM37:$BP37,$CL37:$CO37)))","v":""},{"$f":"IF('Project Scope'!$C37=\"\",\"\",Benefits($BZ37,$CB37,$CC37,$CE37,$CF37,$CG37,$CH37,$CI37,$CJ37,$CK37,$BJ37,$CP37,$CQ37,$CR37,$CS37,$BU37,$BV37,$BW37,$BX37,$BY37,$E37))","v":""},"","","","","","","","",null,{"$f":"IF('Project Scope'!$C37=\"\",\"\",SUM('Project Scope'!$BB37,'Project Scope'!$BC37))","v":""},{"$f":"IF('Project Scope'!$C37=\"\",\"\",SUM('Project Scope'!$BH37, 'Project Scope'!$AZ37,(IF(ISNUMBER('Project Scope'!$BA37),'Project Scope'!$BA37,0)*'Project Information'!$D$12)))","v":""},null,null,{"$f":"IF('Project Scope'!$C37=\"\",\"\",IF($J37<=0,0,(SUMPRODUCT($AV37:$BC37,--($AV37:$BC37>0))+$BE37)*$DK37/((-SUMPRODUCT($AV37:$BC37,--($AV37:$BC37<0))+$BG37+$BH37+$BI37)*$DK37)))","v":""},{"$f":"IF('Project Scope'!$C37=\"\",\"\",IF($K37<=0,0,(SUMPRODUCT($CT37:$DA37,--($CT37:$DA37>0))+$DC37)*$DK37/((-SUMPRODUCT($CT37:$DA37,--($CT37:$DA37<0))+$DE37+$DF37+$DG37)*$DK37)))","v":""},{"$f":"IF('Project Scope'!$C37=\"\",\"\",IF(AND($J37<=0,$K37<=0),0,(SUMPRODUCT($AV37:$BC37,--($AV37:$BC37>0))+$BE37+SUMPRODUCT($CT37:$DA37,--($CT37:$DA37>0))+$DC37)*$DK37/((-SUMPRODUCT($AV37:$BC37,--($AV37:$BC37<0))+$BG37+$BH37+$BI37-SUMPRODUCT($CT37:$DA37,--($CT37:$DA37<0))+$DE37+$DF37+$DG37)*$DK37)))","v":""},{"$f":"IF('Project Scope'!$C37=\"\",\"\",IF(NetOrGross=\"Net\",(1-Z37+AA37),1))","v":""}]
[{"$f":"'Project Scope'!$B38","v":31},{"$f":"IF('Project Scope'!$C38=\"\",\"\",'Project Scope'!$C38)","v":""},{"$f":"IF('Project Scope'!$C38=\"\",\"\",'Project Scope'!$H38)","v":""},{"$f":"IF(ISNUMBER(SEARCH(\"Bay\",'Project Scope'!$Q38)),\"Bay\",IF('Project Scope'!C38=\"\",\"\",'Project Scope'!E38))","v":""},{"$f":"IF('Project Scope'!$C38=\"\",\"\",\"Com\")","v":""},{"$f":"IF('Project Scope'!$C38=\"\",\"\",'Project Scope'!$L38)","v":""},{"$f":"IF('Project Scope'!$C38=\"\",\"\",IF('Project Scope'!$CJ38=\"\",0,'Project Scope'!$CJ38))","v":""},{"$f":"IF('Project Scope'!$C38=\"\",\"\",IF('Project Scope'!$N38=\"\",0,'Project Scope'!$N38))","v":""},{"$f":"IF('Project Scope'!$C38=\"\",\"\",IF('Project Scope'!$CK38=\"\",0,'Project Scope'!$CK38))","v":""},{"$f":"IF('Project Scope'!$C38=\"\",\"\",IF('Project Scope'!$AO38=\"\",0,'Project Scope'!$AO38))","v":""},{"$f":"IF('Project Scope'!$C38=\"\",\"\",IF('Project Scope'!$AX38=\"\",0,'Project Scope'!$AX38))","v":""},{"$f":"IF('Project Scope'!$C38=\"\",\"\",IF('Project Scope'!$M38=\"\",0,'Project Scope'!$M38))","v":""},{"$f":"IF('Project Scope'!$C38=\"\",\"\",IF(COUNTIF('CBAT Lookups'!$B$5:$B$12,\"Fixtures-\"&CBAT!$D38)=1,VLOOKUP(\"Fixtures-\"&CBAT!$D38,'CBAT Lookups'!$B$5:$L$12,11),0))","v":""},{"$f":"IF('Project Scope'!$C38=\"\",\"\",(IF(COUNTIF('CBAT Lookups'!$B$5:$B$12,\"Fixtures-\"&CBAT!$D38)=1,VLOOKUP(\"Fixtures-\"&CBAT!$D38,'CBAT Lookups'!$B$5:$K$12,2),0))*VLOOKUP($F38,'CBAT Lookups'!$B$17:$K$19,2))","v":""},{"$f":"IF('Project Scope'!$C38=\"\",\"\",(IF(COUNTIF('CBAT Lookups'!$B$5:$B$12,\"Fixtures-\"&CBAT!$D38)=1,VLOOKUP(\"Fixtures-\"&CBAT!$D38,'CBAT Lookups'!$B$5:$K$12,3),0))*VLOOKUP($F38,'CBAT Lookups'!$B$17:$K$19,3))","v":""},{"$f":"IF('Project Scope'!$C38=\"\",\"\",(IF(COUNTIF('CBAT Lookups'!$B$5:$B$12,\"Fixtures-\"&CBAT!$D38)=1,VLOOKUP(\"Fixtures-\"&CBAT!$D38,'CBAT Lookups'!$B$5:$K$12,4),0)))","v":""},{"$f":"IF('Project Scope'!$C38=\"\",\"\",(IF(COUNTIF('CBAT Lookups'!$B$5:$B$12,\"Fixtures-\"&CBAT!$D38)=1,VLOOKUP(\"Fixtures-\"&CBAT!$D38,'CBAT Lookups'!$B$5:$K$12,5),0)))","v":""},{"$f":"IF('Project Scope'!$C38=\"\",\"\",(IF(COUNTIF('CBAT Lookups'!$B$5:$B$12,\"Fixtures-\"&CBAT!$D38)=1,VLOOKUP(\"Fixtures-\"&CBAT!$D38,'CBAT Lookups'!$B$5:$K$12,6),0)))","v":""},{"$f":"IF('Project Scope'!$C38=\"\",\"\",IF(COUNTIF('CBAT Lookups'!$B$5:$B$12,\"Fixtures-\"&CBAT!$D38)=1,VLOOKUP(\"Fixtures-\"&CBAT!$D38,'CBAT Lookups'!$B$5:$K$12,7),0))","v":""},{"$f":"IF('Project Scope'!$C38=\"\",\"\",IF(VLOOKUP($F38,'CBAT Lookups'!$B$17:$K$19,8)=\"W\",1,IF(COUNTIF('CBAT Lookups'!$B$5:$B$12,\"Fixtures-\"&CBAT!$D38)=1,VLOOKUP(\"Fixtures-\"&CBAT!$D38,'CBAT Lookups'!$B$5:$K$12,8),0)*VLOOKUP($F38,'CBAT Lookups'!$B$17:$K$19,8)))","v":""},{"$f":"IF('Project Scope'!$C38=\"\",\"\",IF(VLOOKUP($F38,'CBAT Lookups'!$B$17:$K$19,9)=\"W\",1,IF(COUNTIF('CBAT Lookups'!$B$5:$B$12,\"Fixtures-\"&CBAT!$D38)=1,VLOOKUP(\"Fixtures-\"&CBAT!$D38,'CBAT Lookups'!$B$5:$K$12,9),0)*VLOOKUP($F38,'CBAT Lookups'!$B$17:$K$19,9)))","v":""},{"$f":"IF('Project Scope'!$C38=\"\",\"\",IF(COUNTIF('CBAT Lookups'!$B$5:$B$12,\"Fixtures-\"&CBAT!$D38)=1,VLOOKUP(\"Fixtures-\"&CBAT!$D38,'CBAT Lookups'!$B$5:$K$12,10),0)*VLOOKUP($F38,'CBAT Lookups'!$B$17:$K$19,10))","v":""},{"$f":"IF('Project Scope'!$C38=\"\",\"\",IF(COUNTIF('CBAT Lookups'!$B$5:$B$12,\"Fixtures-\"&CBAT!$D38)=1,VLOOKUP(\"Fixtures-\"&CBAT!$D38,'CBAT Lookups'!$B$5:$O$12,12),0))","v":""},{"$f":"IF('Project Scope'!$C38=\"\",\"\",IF(COUNTIF('CBAT Lookups'!$B$5:$B$12,\"Fixtures-\"&CBAT!$D38)=1,VLOOKUP(\"Fixtures-\"&CBAT!$D38,'CBAT Lookups'!$B$5:$O$12,13),0))","v":""},{"$f":"IF('Project Scope'!$C38=\"\",\"\",IF(COUNTIF('CBAT Lookups'!$B$5:$B$12,\"Fixtures-\"&CBAT!$D38)=1,VLOOKUP(\"Fixtures-\"&CBAT!$D38,'CBAT Lookups'!$B$5:$O$12,14),0))","v":""},{"$f":"IF('Project Scope'!$C38=\"\",\"\",'TRM Data'!$U$3)","v":""},{"$f":"IF('Project Scope'!$C38=\"\",\"\",'TRM Data'!$V$3)","v":""},{"$f":"IF('Project Scope'!$C38=\"\",\"\",IF($J38<=0,0,MAX(0,(($G38*$H38/1000)-($I38*$J38/1000))*$L38)*$U38)+($AF38/0.003412))","v":""},{"$f":"IF('Project Scope'!$C38=\"\",\"\",IF($J38<=0,0,MAX(0,(($G38*$H38/1000)-($I38*$J38/1000)))*$T38))","v":""},{"$f":"IF('Project Scope'!$C38=\"\",\"\",IF($J38<=0,0,MAX(0,(($G38*$H38/1000)-($I38*$J38/1000))*$N38)))","v":""},{"$f":"IF('Project Scope'!$C38=\"\",\"\",IF($J38<=0,0,MAX(0,(($G38*$H38/1000)-($I38*$J38/1000))*$O38)*$T38))","v":""},{"$f":"IF('Project Scope'!$C38=\"\",\"\",IF(OR($J38<=0,'Project Information'!$D$44=\"\"),0,-1*MAX(0,(($G38*$H38/1000)-($I38*$J38/1000))*$L38)*$V38*VLOOKUP('Project Information'!$D$44,'CBAT Lookups'!$A$23:$H$30,2)))","v":""},{"$f":"IF('Project Scope'!$C38=\"\",\"\",IF(OR($J38<=0,'Project Information'!$D$44=\"\"),0,-1*MAX(0,(($G38*$H38/1000)-($I38*$J38/1000))*$L38)*$V38*VLOOKUP('Project Information'!$D$44,'CBAT Lookups'!$A$23:$H$30,3)))","v":""},{"$f":"IF('Project Scope'!$C38=\"\",\"\",IF(OR($J38<=0,'Project Information'!$D$44=\"\"),0,-1*MAX(0,(($G38*$H38/1000)-($I38*$J38/1000))*$L38)*$V38*VLOOKUP('Project Information'!$D$44,'CBAT Lookups'!$A$23:$H$30,4)))","v":""},{"$f":"IF('Project Scope'!$C38=\"\",\"\",IF(OR($J38<=0,'Project Information'!$D$44=\"\"),0,-1*MAX(0,(($G38*$H38/1000)-($I38*$J38/1000))*$L38)*$V38*VLOOKUP('Project Information'!$D$44,'CBAT Lookups'!$A$23:$H$30,5)))","v":""},{"$f":"IF('Project Scope'!$C38=\"\",\"\",IF(OR($J38<=0,'Project Information'!$D$44=\"\"),0,-1*MAX(0,(($G38*$H38/1000)-($I38*$J38/1000))*$L38)*$V38*VLOOKUP('Project Information'!$D$44,'CBAT Lookups'!$A$23:$H$30,6)))","v":""},{"$f":"IF('Project Scope'!$C38=\"\",\"\",IF(OR($J38<=0,'Project Information'!$D$44=\"\"),0,-1*MAX(0,(($G38*$H38/1000)-($I38*$J38/1000))*$L38)*$V38*VLOOKUP('Project Information'!$D$44,'CBAT Lookups'!$A$23:$H$30,7)))","v":""},{"$f":"IF('Project Scope'!$C38=\"\",\"\",IF(OR($J38<=0,'Project Information'!$D$44=\"\"),0,-1*MAX(0,(($G38*$H38/1000)-($I38*$J38/1000))*$L38)*$V38*VLOOKUP('Project Information'!$D$44,'CBAT Lookups'!$A$23:$H$30,8)))","v":""},null,{"$f":"IF('Project Scope'!$C38=\"\",\"\",VLOOKUP($F38,'CBAT Lookups'!$B$17:$K$19,4))","v":""},{"$f":"IF('Project Scope'!$C38=\"\",\"\",VLOOKUP($F38,'CBAT Lookups'!$B$17:$K$19,5))","v":""},{"$f":"IF('Project Scope'!$C38=\"\",\"\",VLOOKUP($F38,'CBAT Lookups'!$B$17:$K$19,6))","v":""},{"$f":"IF('Project Scope'!$C38=\"\",\"\",VLOOKUP($F38,'CBAT Lookups'!$B$17:$K$19,7))","v":""},{"$f":"IF('Project Scope'!$C38=\"\",\"\",IF(SUMPRODUCT($P38:$S38,$AN38:$AQ38)=0,0,P38*AN38/SUMPRODUCT($P38:$S38,$AN38:$AQ38)))","v":""},{"$f":"IF('Project Scope'!$C38=\"\",\"\",IF(SUMPRODUCT($P38:$S38,$AN38:$AQ38)=0,0,Q38*AO38/SUMPRODUCT($P38:$S38,$AN38:$AQ38)))","v":""},{"$f":"IF('Project Scope'!$C38=\"\",\"\",IF(SUMPRODUCT($P38:$S38,$AN38:$AQ38)=0,0,R38*AP38/SUMPRODUCT($P38:$S38,$AN38:$AQ38)))","v":""},{"$f":"IF('Project Scope'!$C38=\"\",\"\",IF(SUMPRODUCT($P38:$S38,$AN38:$AQ38)=0,0,S38*AQ38/SUMPRODUCT($P38:$S38,$AN38:$AQ38)))","v":""},{"$f":"IF('Project Scope'!$C38=\"\",\"\",Benefits($AB38,$AD38,$AE38,$AG38,$AH38,$AI38,$AJ38,$AK38,$AL38,$AM38,$M38,$AR38,$AS38,$AT38,$AU38,$W38,$X38,$Y38,$Z38,$AA38,$E38))","v":""},"","","","","","","","",null,{"$f":"IF('Project Scope'!$C38=\"\",\"\",SUM('Project Scope'!$AT38,'Project Scope'!$AU38))","v":""},{"$f":"IF('Project Scope'!$C38=\"\",\"\",SUM('Project Scope'!$BG38, 'Project Scope'!$AR38,(IF(ISNUMBER('Project Scope'!$AS38),'Project Scope'!$AS38,0)*'Project Information'!$D$12)))","v":""},null,null,{"$f":"IF('Project Scope'!$C38=\"\",\"\",IF(COUNTIF('CBAT Lookups'!$B$5:$B$12,\"Controls-\"&CBAT!$D38)=1,VLOOKUP(\"Controls-\"&CBAT!$D38,'CBAT Lookups'!$B$5:$L$12,11),0))","v":""},{"$f":"IF('Project Scope'!$C38=\"\",\"\",IF(COUNTIF('CBAT Lookups'!$B$5:$B$12,\"Controls-\"&CBAT!$D38)=1,VLOOKUP(\"Controls-\"&CBAT!$D38,'CBAT Lookups'!$B$5:$K$12,2),0)*VLOOKUP($F38,'CBAT Lookups'!$B$17:$K$19,2))","v":""},{"$f":"IF('Project Scope'!$C38=\"\",\"\",IF(COUNTIF('CBAT Lookups'!$B$5:$B$12,\"Controls-\"&CBAT!$D38)=1,VLOOKUP(\"Controls-\"&CBAT!$D38,'CBAT Lookups'!$B$5:$K$12,3),0)*VLOOKUP($F38,'CBAT Lookups'!$B$17:$K$19,3))","v":""},{"$f":"IF('Project Scope'!$C38=\"\",\"\",IF(COUNTIF('CBAT Lookups'!$B$5:$B$12,\"Controls-\"&CBAT!$D38)=1,VLOOKUP(\"Controls-\"&CBAT!$D38,'CBAT Lookups'!$B$5:$K$12,4),0))","v":""},{"$f":"IF('Project Scope'!$C38=\"\",\"\",IF(COUNTIF('CBAT Lookups'!$B$5:$B$12,\"Controls-\"&CBAT!$D38)=1,VLOOKUP(\"Controls-\"&CBAT!$D38,'CBAT Lookups'!$B$5:$K$12,5),0))","v":""},{"$f":"IF('Project Scope'!$C38=\"\",\"\",IF(COUNTIF('CBAT Lookups'!$B$5:$B$12,\"Controls-\"&CBAT!$D38)=1,VLOOKUP(\"Controls-\"&CBAT!$D38,'CBAT Lookups'!$B$5:$K$12,6),0))","v":""},{"$f":"IF('Project Scope'!$C38=\"\",\"\",IF(COUNTIF('CBAT Lookups'!$B$5:$B$12,\"Controls-\"&CBAT!$D38)=1,VLOOKUP(\"Controls-\"&CBAT!$D38,'CBAT Lookups'!$B$5:$K$12,7),0))","v":""},{"$f":"IF('Project Scope'!$C38=\"\",\"\",IF(VLOOKUP($F38,'CBAT Lookups'!$B$17:$K$19,8)=\"W\",1,IF(COUNTIF('CBAT Lookups'!$B$5:$B$12,\"Controls-\"&CBAT!$D38)=1,VLOOKUP(\"Controls-\"&CBAT!$D38,'CBAT Lookups'!$B$5:$K$12,8),0)*VLOOKUP($F38,'CBAT Lookups'!$B$17:$K$19,8)))","v":""},{"$f":"IF('Project Scope'!$C38=\"\",\"\",IF(VLOOKUP($F38,'CBAT Lookups'!$B$17:$K$19,9)=\"W\",1,IF(COUNTIF('CBAT Lookups'!$B$5:$B$12,\"Controls-\"&CBAT!$D38)=1,VLOOKUP(\"Controls-\"&CBAT!$D38,'CBAT Lookups'!$B$5:$K$12,9),0)*VLOOKUP($F38,'CBAT Lookups'!$B$17:$K$19,9)))","v":""},{"$f":"IF('Project Scope'!$C38=\"\",\"\",IF(COUNTIF('CBAT Lookups'!$B$5:$B$12,\"Controls-\"&CBAT!$D38)=1,VLOOKUP(\"Controls-\"&CBAT!$D38,'CBAT Lookups'!$B$5:$K$12,10),0)*VLOOKUP($F38,'CBAT Lookups'!$B$17:$K$19,10))","v":""},{"$f":"IF('Project Scope'!$C38=\"\",\"\",VLOOKUP($C38,'CBAT Lookups'!$A$33:$B$57,2))","v":""},{"$f":"IF('Project Scope'!$C38=\"\",\"\",IF(COUNTIF('CBAT Lookups'!$B$5:$B$12,\"Controls-\"&CBAT!$D38)=1,VLOOKUP(\"Controls-\"&CBAT!$D38,'CBAT Lookups'!$B$5:$O$12,12),0))","v":""},{"$f":"IF('Project Scope'!$C38=\"\",\"\",IF(COUNTIF('CBAT Lookups'!$B$5:$B$12,\"Controls-\"&CBAT!$D38)=1,VLOOKUP(\"Controls-\"&CBAT!$D38,'CBAT Lookups'!$B$5:$O$12,13),0))","v":""},{"$f":"IF('Project Scope'!$C38=\"\",\"\",IF(COUNTIF('CBAT Lookups'!$B$5:$B$12,\"Controls-\"&CBAT!$D38)=1,VLOOKUP(\"Controls-\"&CBAT!$D38,'CBAT Lookups'!$B$5:$O$12,14),0))","v":""},{"$f":"IF('Project Scope'!$C38=\"\",\"\",'TRM Data'!$U$3)","v":""},{"$f":"IF('Project Scope'!$C38=\"\",\"\",'TRM Data'!$V$3)","v":""},{"$f":"IF('Project Scope'!$C38=\"\",\"\",IF($K38<=0,0,MAX(0,(IF(AND($I38>0,$J38>0),($I38*$J38)/1000,($G38*$H38)/1000)*$L38))*$BT38*$BR38)+($CD38/0.003412))","v":""},{"$f":"IF('Project Scope'!$C38=\"\",\"\",IF($K38<=0,0,MAX(0,IF(AND($I38>0,$J38>0),($I38*$J38)/1000,($G38*$H38)/1000))*$BQ38))","v":""},{"$f":"IF('Project Scope'!$C38=\"\",\"\",IF($K38<=0,0,MAX(0,IF(AND($I38>0,$J38>0),($I38*$J38)/1000,($G38*$H38)/1000))*$BK38))","v":""},{"$f":"IF('Project Scope'!$C38=\"\",\"\",IF($K38<=0,0,MAX(0,IF(AND($I38>0,$J38>0),($I38*$J38)/1000,($G38*$H38)/1000))*$BL38*$BQ38))","v":""},{"$f":"IF('Project Scope'!$C38=\"\",\"\",IF(OR($K38<=0,'Project Information'!$D$44=\"\"),0,-1*MAX(0,IF(AND($I38>0,$J38>0),($I38*$J38)/1000,($G38*$H38)/1000))*$BT38*$L38*$BS38*VLOOKUP('Project Information'!$D$44,'CBAT Lookups'!$A$23:$H$30,2)))","v":""},{"$f":"IF('Project Scope'!$C38=\"\",\"\",IF(OR($K38<=0,'Project Information'!$D$44=\"\"),0,-1*MAX(0,IF(AND($I38>0,$J38>0),($I38*$J38)/1000,($G38*$H38)/1000))*$BT38*$L38*$BS38*VLOOKUP('Project Information'!$D$44,'CBAT Lookups'!$A$23:$H$30,3)))","v":""},{"$f":"IF('Project Scope'!$C38=\"\",\"\",IF(OR($K38<=0,'Project Information'!$D$44=\"\"),0,-1*MAX(0,IF(AND($I38>0,$J38>0),($I38*$J38)/1000,($G38*$H38)/1000))*$BT38*$L38*$BS38*VLOOKUP('Project Information'!$D$44,'CBAT Lookups'!$A$23:$H$30,4)))","v":""},{"$f":"IF('Project Scope'!$C38=\"\",\"\",IF(OR($K38<=0,'Project Information'!$D$44=\"\"),0,-1*MAX(0,IF(AND($I38>0,$J38>0),($I38*$J38)/1000,($G38*$H38)/1000))*$BT38*$L38*$BS38*VLOOKUP('Project Information'!$D$44,'CBAT Lookups'!$A$23:$H$30,5)))","v":""},{"$f":"IF('Project Scope'!$C38=\"\",\"\",IF(OR($K38<=0,'Project Information'!$D$44=\"\"),0,-1*MAX(0,IF(AND($I38>0,$J38>0),($I38*$J38)/1000,($G38*$H38)/1000))*$BT38*$L38*$BS38*VLOOKUP('Project Information'!$D$44,'CBAT Lookups'!$A$23:$H$30,6)))","v":""},{"$f":"IF('Project Scope'!$C38=\"\",\"\",IF(OR($K38<=0,'Project Information'!$D$44=\"\"),0,-1*MAX(0,IF(AND($I38>0,$J38>0),($I38*$J38)/1000,($G38*$H38)/1000))*$BT38*$L38*$BS38*VLOOKUP('Project Information'!$D$44,'CBAT Lookups'!$A$23:$H$30,7)))","v":""},{"$f":"IF('Project Scope'!$C38=\"\",\"\",IF(OR($K38<=0,'Project Information'!$D$44=\"\"),0,-1*MAX(0,IF(AND($I38>0,$J38>0),($I38*$J38)/1000,($G38*$H38)/1000))*$BT38*$L38*$BS38*VLOOKUP('Project Information'!$D$44,'CBAT Lookups'!$A$23:$H$30,8)))","v":""},null,{"$f":"IF('Project Scope'!$C38=\"\",\"\",VLOOKUP($F38,'CBAT Lookups'!$B$17:$K$19,4))","v":""},{"$f":"IF('Project Scope'!$C38=\"\",\"\",VLOOKUP($F38,'CBAT Lookups'!$B$17:$K$19,5))","v":""},{"$f":"IF('Project Scope'!$C38=\"\",\"\",VLOOKUP($F38,'CBAT Lookups'!$B$17:$K$19,6))","v":""},{"$f":"IF('Project Scope'!$C38=\"\",\"\",VLOOKUP($F38,'CBAT Lookups'!$B$17:$K$19,7))","v":""},{"$f":"IF('Project Scope'!$C38=\"\",\"\",IF(SUMPRODUCT($BM38:$BP38,$CL38:$CO38)=0,0,BM38*CL38/SUMPRODUCT($BM38:$BP38,$CL38:$CO38)))","v":""},{"$f":"IF('Project Scope'!$C38=\"\",\"\",IF(SUMPRODUCT($BM38:$BP38,$CL38:$CO38)=0,0,BN38*CM38/SUMPRODUCT($BM38:$BP38,$CL38:$CO38)))","v":""},{"$f":"IF('Project Scope'!$C38=\"\",\"\",IF(SUMPRODUCT($BM38:$BP38,$CL38:$CO38)=0,0,BO38*CN38/SUMPRODUCT($BM38:$BP38,$CL38:$CO38)))","v":""},{"$f":"IF('Project Scope'!$C38=\"\",\"\",IF(SUMPRODUCT($BM38:$BP38,$CL38:$CO38)=0,0,BP38*CO38/SUMPRODUCT($BM38:$BP38,$CL38:$CO38)))","v":""},{"$f":"IF('Project Scope'!$C38=\"\",\"\",Benefits($BZ38,$CB38,$CC38,$CE38,$CF38,$CG38,$CH38,$CI38,$CJ38,$CK38,$BJ38,$CP38,$CQ38,$CR38,$CS38,$BU38,$BV38,$BW38,$BX38,$BY38,$E38))","v":""},"","","","","","","","",null,{"$f":"IF('Project Scope'!$C38=\"\",\"\",SUM('Project Scope'!$BB38,'Project Scope'!$BC38))","v":""},{"$f":"IF('Project Scope'!$C38=\"\",\"\",SUM('Project Scope'!$BH38, 'Project Scope'!$AZ38,(IF(ISNUMBER('Project Scope'!$BA38),'Project Scope'!$BA38,0)*'Project Information'!$D$12)))","v":""},null,null,{"$f":"IF('Project Scope'!$C38=\"\",\"\",IF($J38<=0,0,(SUMPRODUCT($AV38:$BC38,--($AV38:$BC38>0))+$BE38)*$DK38/((-SUMPRODUCT($AV38:$BC38,--($AV38:$BC38<0))+$BG38+$BH38+$BI38)*$DK38)))","v":""},{"$f":"IF('Project Scope'!$C38=\"\",\"\",IF($K38<=0,0,(SUMPRODUCT($CT38:$DA38,--($CT38:$DA38>0))+$DC38)*$DK38/((-SUMPRODUCT($CT38:$DA38,--($CT38:$DA38<0))+$DE38+$DF38+$DG38)*$DK38)))","v":""},{"$f":"IF('Project Scope'!$C38=\"\",\"\",IF(AND($J38<=0,$K38<=0),0,(SUMPRODUCT($AV38:$BC38,--($AV38:$BC38>0))+$BE38+SUMPRODUCT($CT38:$DA38,--($CT38:$DA38>0))+$DC38)*$DK38/((-SUMPRODUCT($AV38:$BC38,--($AV38:$BC38<0))+$BG38+$BH38+$BI38-SUMPRODUCT($CT38:$DA38,--($CT38:$DA38<0))+$DE38+$DF38+$DG38)*$DK38)))","v":""},{"$f":"IF('Project Scope'!$C38=\"\",\"\",IF(NetOrGross=\"Net\",(1-Z38+AA38),1))","v":""}]
[{"$f":"'Project Scope'!$B39","v":32},{"$f":"IF('Project Scope'!$C39=\"\",\"\",'Project Scope'!$C39)","v":""},{"$f":"IF('Project Scope'!$C39=\"\",\"\",'Project Scope'!$H39)","v":""},{"$f":"IF(ISNUMBER(SEARCH(\"Bay\",'Project Scope'!$Q39)),\"Bay\",IF('Project Scope'!C39=\"\",\"\",'Project Scope'!E39))","v":""},{"$f":"IF('Project Scope'!$C39=\"\",\"\",\"Com\")","v":""},{"$f":"IF('Project Scope'!$C39=\"\",\"\",'Project Scope'!$L39)","v":""},{"$f":"IF('Project Scope'!$C39=\"\",\"\",IF('Project Scope'!$CJ39=\"\",0,'Project Scope'!$CJ39))","v":""},{"$f":"IF('Project Scope'!$C39=\"\",\"\",IF('Project Scope'!$N39=\"\",0,'Project Scope'!$N39))","v":""},{"$f":"IF('Project Scope'!$C39=\"\",\"\",IF('Project Scope'!$CK39=\"\",0,'Project Scope'!$CK39))","v":""},{"$f":"IF('Project Scope'!$C39=\"\",\"\",IF('Project Scope'!$AO39=\"\",0,'Project Scope'!$AO39))","v":""},{"$f":"IF('Project Scope'!$C39=\"\",\"\",IF('Project Scope'!$AX39=\"\",0,'Project Scope'!$AX39))","v":""},{"$f":"IF('Project Scope'!$C39=\"\",\"\",IF('Project Scope'!$M39=\"\",0,'Project Scope'!$M39))","v":""},{"$f":"IF('Project Scope'!$C39=\"\",\"\",IF(COUNTIF('CBAT Lookups'!$B$5:$B$12,\"Fixtures-\"&CBAT!$D39)=1,VLOOKUP(\"Fixtures-\"&CBAT!$D39,'CBAT Lookups'!$B$5:$L$12,11),0))","v":""},{"$f":"IF('Project Scope'!$C39=\"\",\"\",(IF(COUNTIF('CBAT Lookups'!$B$5:$B$12,\"Fixtures-\"&CBAT!$D39)=1,VLOOKUP(\"Fixtures-\"&CBAT!$D39,'CBAT Lookups'!$B$5:$K$12,2),0))*VLOOKUP($F39,'CBAT Lookups'!$B$17:$K$19,2))","v":""},{"$f":"IF('Project Scope'!$C39=\"\",\"\",(IF(COUNTIF('CBAT Lookups'!$B$5:$B$12,\"Fixtures-\"&CBAT!$D39)=1,VLOOKUP(\"Fixtures-\"&CBAT!$D39,'CBAT Lookups'!$B$5:$K$12,3),0))*VLOOKUP($F39,'CBAT Lookups'!$B$17:$K$19,3))","v":""},{"$f":"IF('Project Scope'!$C39=\"\",\"\",(IF(COUNTIF('CBAT Lookups'!$B$5:$B$12,\"Fixtures-\"&CBAT!$D39)=1,VLOOKUP(\"Fixtures-\"&CBAT!$D39,'CBAT Lookups'!$B$5:$K$12,4),0)))","v":""},{"$f":"IF('Project Scope'!$C39=\"\",\"\",(IF(COUNTIF('CBAT Lookups'!$B$5:$B$12,\"Fixtures-\"&CBAT!$D39)=1,VLOOKUP(\"Fixtures-\"&CBAT!$D39,'CBAT Lookups'!$B$5:$K$12,5),0)))","v":""},{"$f":"IF('Project Scope'!$C39=\"\",\"\",(IF(COUNTIF('CBAT Lookups'!$B$5:$B$12,\"Fixtures-\"&CBAT!$D39)=1,VLOOKUP(\"Fixtures-\"&CBAT!$D39,'CBAT Lookups'!$B$5:$K$12,6),0)))","v":""},{"$f":"IF('Project Scope'!$C39=\"\",\"\",IF(COUNTIF('CBAT Lookups'!$B$5:$B$12,\"Fixtures-\"&CBAT!$D39)=1,VLOOKUP(\"Fixtures-\"&CBAT!$D39,'CBAT Lookups'!$B$5:$K$12,7),0))","v":""},{"$f":"IF('Project Scope'!$C39=\"\",\"\",IF(VLOOKUP($F39,'CBAT Lookups'!$B$17:$K$19,8)=\"W\",1,IF(COUNTIF('CBAT Lookups'!$B$5:$B$12,\"Fixtures-\"&CBAT!$D39)=1,VLOOKUP(\"Fixtures-\"&CBAT!$D39,'CBAT Lookups'!$B$5:$K$12,8),0)*VLOOKUP($F39,'CBAT Lookups'!$B$17:$K$19,8)))","v":""},{"$f":"IF('Project Scope'!$C39=\"\",\"\",IF(VLOOKUP($F39,'CBAT Lookups'!$B$17:$K$19,9)=\"W\",1,IF(COUNTIF('CBAT Lookups'!$B$5:$B$12,\"Fixtures-\"&CBAT!$D39)=1,VLOOKUP(\"Fixtures-\"&CBAT!$D39,'CBAT Lookups'!$B$5:$K$12,9),0)*VLOOKUP($F39,'CBAT Lookups'!$B$17:$K$19,9)))","v":""},{"$f":"IF('Project Scope'!$C39=\"\",\"\",IF(COUNTIF('CBAT Lookups'!$B$5:$B$12,\"Fixtures-\"&CBAT!$D39)=1,VLOOKUP(\"Fixtures-\"&CBAT!$D39,'CBAT Lookups'!$B$5:$K$12,10),0)*VLOOKUP($F39,'CBAT Lookups'!$B$17:$K$19,10))","v":""},{"$f":"IF('Project Scope'!$C39=\"\",\"\",IF(COUNTIF('CBAT Lookups'!$B$5:$B$12,\"Fixtures-\"&CBAT!$D39)=1,VLOOKUP(\"Fixtures-\"&CBAT!$D39,'CBAT Lookups'!$B$5:$O$12,12),0))","v":""},{"$f":"IF('Project Scope'!$C39=\"\",\"\",IF(COUNTIF('CBAT Lookups'!$B$5:$B$12,\"Fixtures-\"&CBAT!$D39)=1,VLOOKUP(\"Fixtures-\"&CBAT!$D39,'CBAT Lookups'!$B$5:$O$12,13),0))","v":""},{"$f":"IF('Project Scope'!$C39=\"\",\"\",IF(COUNTIF('CBAT Lookups'!$B$5:$B$12,\"Fixtures-\"&CBAT!$D39)=1,VLOOKUP(\"Fixtures-\"&CBAT!$D39,'CBAT Lookups'!$B$5:$O$12,14),0))","v":""},{"$f":"IF('Project Scope'!$C39=\"\",\"\",'TRM Data'!$U$3)","v":""},{"$f":"IF('Project Scope'!$C39=\"\",\"\",'TRM Data'!$V$3)","v":""},{"$f":"IF('Project Scope'!$C39=\"\",\"\",IF($J39<=0,0,MAX(0,(($G39*$H39/1000)-($I39*$J39/1000))*$L39)*$U39)+($AF39/0.003412))","v":""},{"$f":"IF('Project Scope'!$C39=\"\",\"\",IF($J39<=0,0,MAX(0,(($G39*$H39/1000)-($I39*$J39/1000)))*$T39))","v":""},{"$f":"IF('Project Scope'!$C39=\"\",\"\",IF($J39<=0,0,MAX(0,(($G39*$H39/1000)-($I39*$J39/1000))*$N39)))","v":""},{"$f":"IF('Project Scope'!$C39=\"\",\"\",IF($J39<=0,0,MAX(0,(($G39*$H39/1000)-($I39*$J39/1000))*$O39)*$T39))","v":""},{"$f":"IF('Project Scope'!$C39=\"\",\"\",IF(OR($J39<=0,'Project Information'!$D$44=\"\"),0,-1*MAX(0,(($G39*$H39/1000)-($I39*$J39/1000))*$L39)*$V39*VLOOKUP('Project Information'!$D$44,'CBAT Lookups'!$A$23:$H$30,2)))","v":""},{"$f":"IF('Project Scope'!$C39=\"\",\"\",IF(OR($J39<=0,'Project Information'!$D$44=\"\"),0,-1*MAX(0,(($G39*$H39/1000)-($I39*$J39/1000))*$L39)*$V39*VLOOKUP('Project Information'!$D$44,'CBAT Lookups'!$A$23:$H$30,3)))","v":""},{"$f":"IF('Project Scope'!$C39=\"\",\"\",IF(OR($J39<=0,'Project Information'!$D$44=\"\"),0,-1*MAX(0,(($G39*$H39/1000)-($I39*$J39/1000))*$L39)*$V39*VLOOKUP('Project Information'!$D$44,'CBAT Lookups'!$A$23:$H$30,4)))","v":""},{"$f":"IF('Project Scope'!$C39=\"\",\"\",IF(OR($J39<=0,'Project Information'!$D$44=\"\"),0,-1*MAX(0,(($G39*$H39/1000)-($I39*$J39/1000))*$L39)*$V39*VLOOKUP('Project Information'!$D$44,'CBAT Lookups'!$A$23:$H$30,5)))","v":""},{"$f":"IF('Project Scope'!$C39=\"\",\"\",IF(OR($J39<=0,'Project Information'!$D$44=\"\"),0,-1*MAX(0,(($G39*$H39/1000)-($I39*$J39/1000))*$L39)*$V39*VLOOKUP('Project Information'!$D$44,'CBAT Lookups'!$A$23:$H$30,6)))","v":""},{"$f":"IF('Project Scope'!$C39=\"\",\"\",IF(OR($J39<=0,'Project Information'!$D$44=\"\"),0,-1*MAX(0,(($G39*$H39/1000)-($I39*$J39/1000))*$L39)*$V39*VLOOKUP('Project Information'!$D$44,'CBAT Lookups'!$A$23:$H$30,7)))","v":""},{"$f":"IF('Project Scope'!$C39=\"\",\"\",IF(OR($J39<=0,'Project Information'!$D$44=\"\"),0,-1*MAX(0,(($G39*$H39/1000)-($I39*$J39/1000))*$L39)*$V39*VLOOKUP('Project Information'!$D$44,'CBAT Lookups'!$A$23:$H$30,8)))","v":""},null,{"$f":"IF('Project Scope'!$C39=\"\",\"\",VLOOKUP($F39,'CBAT Lookups'!$B$17:$K$19,4))","v":""},{"$f":"IF('Project Scope'!$C39=\"\",\"\",VLOOKUP($F39,'CBAT Lookups'!$B$17:$K$19,5))","v":""},{"$f":"IF('Project Scope'!$C39=\"\",\"\",VLOOKUP($F39,'CBAT Lookups'!$B$17:$K$19,6))","v":""},{"$f":"IF('Project Scope'!$C39=\"\",\"\",VLOOKUP($F39,'CBAT Lookups'!$B$17:$K$19,7))","v":""},{"$f":"IF('Project Scope'!$C39=\"\",\"\",IF(SUMPRODUCT($P39:$S39,$AN39:$AQ39)=0,0,P39*AN39/SUMPRODUCT($P39:$S39,$AN39:$AQ39)))","v":""},{"$f":"IF('Project Scope'!$C39=\"\",\"\",IF(SUMPRODUCT($P39:$S39,$AN39:$AQ39)=0,0,Q39*AO39/SUMPRODUCT($P39:$S39,$AN39:$AQ39)))","v":""},{"$f":"IF('Project Scope'!$C39=\"\",\"\",IF(SUMPRODUCT($P39:$S39,$AN39:$AQ39)=0,0,R39*AP39/SUMPRODUCT($P39:$S39,$AN39:$AQ39)))","v":""},{"$f":"IF('Project Scope'!$C39=\"\",\"\",IF(SUMPRODUCT($P39:$S39,$AN39:$AQ39)=0,0,S39*AQ39/SUMPRODUCT($P39:$S39,$AN39:$AQ39)))","v":""},{"$f":"IF('Project Scope'!$C39=\"\",\"\",Benefits($AB39,$AD39,$AE39,$AG39,$AH39,$AI39,$AJ39,$AK39,$AL39,$AM39,$M39,$AR39,$AS39,$AT39,$AU39,$W39,$X39,$Y39,$Z39,$AA39,$E39))","v":""},"","","","","","","","",null,{"$f":"IF('Project Scope'!$C39=\"\",\"\",SUM('Project Scope'!$AT39,'Project Scope'!$AU39))","v":""},{"$f":"IF('Project Scope'!$C39=\"\",\"\",SUM('Project Scope'!$BG39, 'Project Scope'!$AR39,(IF(ISNUMBER('Project Scope'!$AS39),'Project Scope'!$AS39,0)*'Project Information'!$D$12)))","v":""},null,null,{"$f":"IF('Project Scope'!$C39=\"\",\"\",IF(COUNTIF('CBAT Lookups'!$B$5:$B$12,\"Controls-\"&CBAT!$D39)=1,VLOOKUP(\"Controls-\"&CBAT!$D39,'CBAT Lookups'!$B$5:$L$12,11),0))","v":""},{"$f":"IF('Project Scope'!$C39=\"\",\"\",IF(COUNTIF('CBAT Lookups'!$B$5:$B$12,\"Controls-\"&CBAT!$D39)=1,VLOOKUP(\"Controls-\"&CBAT!$D39,'CBAT Lookups'!$B$5:$K$12,2),0)*VLOOKUP($F39,'CBAT Lookups'!$B$17:$K$19,2))","v":""},{"$f":"IF('Project Scope'!$C39=\"\",\"\",IF(COUNTIF('CBAT Lookups'!$B$5:$B$12,\"Controls-\"&CBAT!$D39)=1,VLOOKUP(\"Controls-\"&CBAT!$D39,'CBAT Lookups'!$B$5:$K$12,3),0)*VLOOKUP($F39,'CBAT Lookups'!$B$17:$K$19,3))","v":""},{"$f":"IF('Project Scope'!$C39=\"\",\"\",IF(COUNTIF('CBAT Lookups'!$B$5:$B$12,\"Controls-\"&CBAT!$D39)=1,VLOOKUP(\"Controls-\"&CBAT!$D39,'CBAT Lookups'!$B$5:$K$12,4),0))","v":""},{"$f":"IF('Project Scope'!$C39=\"\",\"\",IF(COUNTIF('CBAT Lookups'!$B$5:$B$12,\"Controls-\"&CBAT!$D39)=1,VLOOKUP(\"Controls-\"&CBAT!$D39,'CBAT Lookups'!$B$5:$K$12,5),0))","v":""},{"$f":"IF('Project Scope'!$C39=\"\",\"\",IF(COUNTIF('CBAT Lookups'!$B$5:$B$12,\"Controls-\"&CBAT!$D39)=1,VLOOKUP(\"Controls-\"&CBAT!$D39,'CBAT Lookups'!$B$5:$K$12,6),0))","v":""},{"$f":"IF('Project Scope'!$C39=\"\",\"\",IF(COUNTIF('CBAT Lookups'!$B$5:$B$12,\"Controls-\"&CBAT!$D39)=1,VLOOKUP(\"Controls-\"&CBAT!$D39,'CBAT Lookups'!$B$5:$K$12,7),0))","v":""},{"$f":"IF('Project Scope'!$C39=\"\",\"\",IF(VLOOKUP($F39,'CBAT Lookups'!$B$17:$K$19,8)=\"W\",1,IF(COUNTIF('CBAT Lookups'!$B$5:$B$12,\"Controls-\"&CBAT!$D39)=1,VLOOKUP(\"Controls-\"&CBAT!$D39,'CBAT Lookups'!$B$5:$K$12,8),0)*VLOOKUP($F39,'CBAT Lookups'!$B$17:$K$19,8)))","v":""},{"$f":"IF('Project Scope'!$C39=\"\",\"\",IF(VLOOKUP($F39,'CBAT Lookups'!$B$17:$K$19,9)=\"W\",1,IF(COUNTIF('CBAT Lookups'!$B$5:$B$12,\"Controls-\"&CBAT!$D39)=1,VLOOKUP(\"Controls-\"&CBAT!$D39,'CBAT Lookups'!$B$5:$K$12,9),0)*VLOOKUP($F39,'CBAT Lookups'!$B$17:$K$19,9)))","v":""},{"$f":"IF('Project Scope'!$C39=\"\",\"\",IF(COUNTIF('CBAT Lookups'!$B$5:$B$12,\"Controls-\"&CBAT!$D39)=1,VLOOKUP(\"Controls-\"&CBAT!$D39,'CBAT Lookups'!$B$5:$K$12,10),0)*VLOOKUP($F39,'CBAT Lookups'!$B$17:$K$19,10))","v":""},{"$f":"IF('Project Scope'!$C39=\"\",\"\",VLOOKUP($C39,'CBAT Lookups'!$A$33:$B$57,2))","v":""},{"$f":"IF('Project Scope'!$C39=\"\",\"\",IF(COUNTIF('CBAT Lookups'!$B$5:$B$12,\"Controls-\"&CBAT!$D39)=1,VLOOKUP(\"Controls-\"&CBAT!$D39,'CBAT Lookups'!$B$5:$O$12,12),0))","v":""},{"$f":"IF('Project Scope'!$C39=\"\",\"\",IF(COUNTIF('CBAT Lookups'!$B$5:$B$12,\"Controls-\"&CBAT!$D39)=1,VLOOKUP(\"Controls-\"&CBAT!$D39,'CBAT Lookups'!$B$5:$O$12,13),0))","v":""},{"$f":"IF('Project Scope'!$C39=\"\",\"\",IF(COUNTIF('CBAT Lookups'!$B$5:$B$12,\"Controls-\"&CBAT!$D39)=1,VLOOKUP(\"Controls-\"&CBAT!$D39,'CBAT Lookups'!$B$5:$O$12,14),0))","v":""},{"$f":"IF('Project Scope'!$C39=\"\",\"\",'TRM Data'!$U$3)","v":""},{"$f":"IF('Project Scope'!$C39=\"\",\"\",'TRM Data'!$V$3)","v":""},{"$f":"IF('Project Scope'!$C39=\"\",\"\",IF($K39<=0,0,MAX(0,(IF(AND($I39>0,$J39>0),($I39*$J39)/1000,($G39*$H39)/1000)*$L39))*$BT39*$BR39)+($CD39/0.003412))","v":""},{"$f":"IF('Project Scope'!$C39=\"\",\"\",IF($K39<=0,0,MAX(0,IF(AND($I39>0,$J39>0),($I39*$J39)/1000,($G39*$H39)/1000))*$BQ39))","v":""},{"$f":"IF('Project Scope'!$C39=\"\",\"\",IF($K39<=0,0,MAX(0,IF(AND($I39>0,$J39>0),($I39*$J39)/1000,($G39*$H39)/1000))*$BK39))","v":""},{"$f":"IF('Project Scope'!$C39=\"\",\"\",IF($K39<=0,0,MAX(0,IF(AND($I39>0,$J39>0),($I39*$J39)/1000,($G39*$H39)/1000))*$BL39*$BQ39))","v":""},{"$f":"IF('Project Scope'!$C39=\"\",\"\",IF(OR($K39<=0,'Project Information'!$D$44=\"\"),0,-1*MAX(0,IF(AND($I39>0,$J39>0),($I39*$J39)/1000,($G39*$H39)/1000))*$BT39*$L39*$BS39*VLOOKUP('Project Information'!$D$44,'CBAT Lookups'!$A$23:$H$30,2)))","v":""},{"$f":"IF('Project Scope'!$C39=\"\",\"\",IF(OR($K39<=0,'Project Information'!$D$44=\"\"),0,-1*MAX(0,IF(AND($I39>0,$J39>0),($I39*$J39)/1000,($G39*$H39)/1000))*$BT39*$L39*$BS39*VLOOKUP('Project Information'!$D$44,'CBAT Lookups'!$A$23:$H$30,3)))","v":""},{"$f":"IF('Project Scope'!$C39=\"\",\"\",IF(OR($K39<=0,'Project Information'!$D$44=\"\"),0,-1*MAX(0,IF(AND($I39>0,$J39>0),($I39*$J39)/1000,($G39*$H39)/1000))*$BT39*$L39*$BS39*VLOOKUP('Project Information'!$D$44,'CBAT Lookups'!$A$23:$H$30,4)))","v":""},{"$f":"IF('Project Scope'!$C39=\"\",\"\",IF(OR($K39<=0,'Project Information'!$D$44=\"\"),0,-1*MAX(0,IF(AND($I39>0,$J39>0),($I39*$J39)/1000,($G39*$H39)/1000))*$BT39*$L39*$BS39*VLOOKUP('Project Information'!$D$44,'CBAT Lookups'!$A$23:$H$30,5)))","v":""},{"$f":"IF('Project Scope'!$C39=\"\",\"\",IF(OR($K39<=0,'Project Information'!$D$44=\"\"),0,-1*MAX(0,IF(AND($I39>0,$J39>0),($I39*$J39)/1000,($G39*$H39)/1000))*$BT39*$L39*$BS39*VLOOKUP('Project Information'!$D$44,'CBAT Lookups'!$A$23:$H$30,6)))","v":""},{"$f":"IF('Project Scope'!$C39=\"\",\"\",IF(OR($K39<=0,'Project Information'!$D$44=\"\"),0,-1*MAX(0,IF(AND($I39>0,$J39>0),($I39*$J39)/1000,($G39*$H39)/1000))*$BT39*$L39*$BS39*VLOOKUP('Project Information'!$D$44,'CBAT Lookups'!$A$23:$H$30,7)))","v":""},{"$f":"IF('Project Scope'!$C39=\"\",\"\",IF(OR($K39<=0,'Project Information'!$D$44=\"\"),0,-1*MAX(0,IF(AND($I39>0,$J39>0),($I39*$J39)/1000,($G39*$H39)/1000))*$BT39*$L39*$BS39*VLOOKUP('Project Information'!$D$44,'CBAT Lookups'!$A$23:$H$30,8)))","v":""},null,{"$f":"IF('Project Scope'!$C39=\"\",\"\",VLOOKUP($F39,'CBAT Lookups'!$B$17:$K$19,4))","v":""},{"$f":"IF('Project Scope'!$C39=\"\",\"\",VLOOKUP($F39,'CBAT Lookups'!$B$17:$K$19,5))","v":""},{"$f":"IF('Project Scope'!$C39=\"\",\"\",VLOOKUP($F39,'CBAT Lookups'!$B$17:$K$19,6))","v":""},{"$f":"IF('Project Scope'!$C39=\"\",\"\",VLOOKUP($F39,'CBAT Lookups'!$B$17:$K$19,7))","v":""},{"$f":"IF('Project Scope'!$C39=\"\",\"\",IF(SUMPRODUCT($BM39:$BP39,$CL39:$CO39)=0,0,BM39*CL39/SUMPRODUCT($BM39:$BP39,$CL39:$CO39)))","v":""},{"$f":"IF('Project Scope'!$C39=\"\",\"\",IF(SUMPRODUCT($BM39:$BP39,$CL39:$CO39)=0,0,BN39*CM39/SUMPRODUCT($BM39:$BP39,$CL39:$CO39)))","v":""},{"$f":"IF('Project Scope'!$C39=\"\",\"\",IF(SUMPRODUCT($BM39:$BP39,$CL39:$CO39)=0,0,BO39*CN39/SUMPRODUCT($BM39:$BP39,$CL39:$CO39)))","v":""},{"$f":"IF('Project Scope'!$C39=\"\",\"\",IF(SUMPRODUCT($BM39:$BP39,$CL39:$CO39)=0,0,BP39*CO39/SUMPRODUCT($BM39:$BP39,$CL39:$CO39)))","v":""},{"$f":"IF('Project Scope'!$C39=\"\",\"\",Benefits($BZ39,$CB39,$CC39,$CE39,$CF39,$CG39,$CH39,$CI39,$CJ39,$CK39,$BJ39,$CP39,$CQ39,$CR39,$CS39,$BU39,$BV39,$BW39,$BX39,$BY39,$E39))","v":""},"","","","","","","","",null,{"$f":"IF('Project Scope'!$C39=\"\",\"\",SUM('Project Scope'!$BB39,'Project Scope'!$BC39))","v":""},{"$f":"IF('Project Scope'!$C39=\"\",\"\",SUM('Project Scope'!$BH39, 'Project Scope'!$AZ39,(IF(ISNUMBER('Project Scope'!$BA39),'Project Scope'!$BA39,0)*'Project Information'!$D$12)))","v":""},null,null,{"$f":"IF('Project Scope'!$C39=\"\",\"\",IF($J39<=0,0,(SUMPRODUCT($AV39:$BC39,--($AV39:$BC39>0))+$BE39)*$DK39/((-SUMPRODUCT($AV39:$BC39,--($AV39:$BC39<0))+$BG39+$BH39+$BI39)*$DK39)))","v":""},{"$f":"IF('Project Scope'!$C39=\"\",\"\",IF($K39<=0,0,(SUMPRODUCT($CT39:$DA39,--($CT39:$DA39>0))+$DC39)*$DK39/((-SUMPRODUCT($CT39:$DA39,--($CT39:$DA39<0))+$DE39+$DF39+$DG39)*$DK39)))","v":""},{"$f":"IF('Project Scope'!$C39=\"\",\"\",IF(AND($J39<=0,$K39<=0),0,(SUMPRODUCT($AV39:$BC39,--($AV39:$BC39>0))+$BE39+SUMPRODUCT($CT39:$DA39,--($CT39:$DA39>0))+$DC39)*$DK39/((-SUMPRODUCT($AV39:$BC39,--($AV39:$BC39<0))+$BG39+$BH39+$BI39-SUMPRODUCT($CT39:$DA39,--($CT39:$DA39<0))+$DE39+$DF39+$DG39)*$DK39)))","v":""},{"$f":"IF('Project Scope'!$C39=\"\",\"\",IF(NetOrGross=\"Net\",(1-Z39+AA39),1))","v":""}]
[{"$f":"'Project Scope'!$B40","v":33},{"$f":"IF('Project Scope'!$C40=\"\",\"\",'Project Scope'!$C40)","v":""},{"$f":"IF('Project Scope'!$C40=\"\",\"\",'Project Scope'!$H40)","v":""},{"$f":"IF(ISNUMBER(SEARCH(\"Bay\",'Project Scope'!$Q40)),\"Bay\",IF('Project Scope'!C40=\"\",\"\",'Project Scope'!E40))","v":""},{"$f":"IF('Project Scope'!$C40=\"\",\"\",\"Com\")","v":""},{"$f":"IF('Project Scope'!$C40=\"\",\"\",'Project Scope'!$L40)","v":""},{"$f":"IF('Project Scope'!$C40=\"\",\"\",IF('Project Scope'!$CJ40=\"\",0,'Project Scope'!$CJ40))","v":""},{"$f":"IF('Project Scope'!$C40=\"\",\"\",IF('Project Scope'!$N40=\"\",0,'Project Scope'!$N40))","v":""},{"$f":"IF('Project Scope'!$C40=\"\",\"\",IF('Project Scope'!$CK40=\"\",0,'Project Scope'!$CK40))","v":""},{"$f":"IF('Project Scope'!$C40=\"\",\"\",IF('Project Scope'!$AO40=\"\",0,'Project Scope'!$AO40))","v":""},{"$f":"IF('Project Scope'!$C40=\"\",\"\",IF('Project Scope'!$AX40=\"\",0,'Project Scope'!$AX40))","v":""},{"$f":"IF('Project Scope'!$C40=\"\",\"\",IF('Project Scope'!$M40=\"\",0,'Project Scope'!$M40))","v":""},{"$f":"IF('Project Scope'!$C40=\"\",\"\",IF(COUNTIF('CBAT Lookups'!$B$5:$B$12,\"Fixtures-\"&CBAT!$D40)=1,VLOOKUP(\"Fixtures-\"&CBAT!$D40,'CBAT Lookups'!$B$5:$L$12,11),0))","v":""},{"$f":"IF('Project Scope'!$C40=\"\",\"\",(IF(COUNTIF('CBAT Lookups'!$B$5:$B$12,\"Fixtures-\"&CBAT!$D40)=1,VLOOKUP(\"Fixtures-\"&CBAT!$D40,'CBAT Lookups'!$B$5:$K$12,2),0))*VLOOKUP($F40,'CBAT Lookups'!$B$17:$K$19,2))","v":""},{"$f":"IF('Project Scope'!$C40=\"\",\"\",(IF(COUNTIF('CBAT Lookups'!$B$5:$B$12,\"Fixtures-\"&CBAT!$D40)=1,VLOOKUP(\"Fixtures-\"&CBAT!$D40,'CBAT Lookups'!$B$5:$K$12,3),0))*VLOOKUP($F40,'CBAT Lookups'!$B$17:$K$19,3))","v":""},{"$f":"IF('Project Scope'!$C40=\"\",\"\",(IF(COUNTIF('CBAT Lookups'!$B$5:$B$12,\"Fixtures-\"&CBAT!$D40)=1,VLOOKUP(\"Fixtures-\"&CBAT!$D40,'CBAT Lookups'!$B$5:$K$12,4),0)))","v":""},{"$f":"IF('Project Scope'!$C40=\"\",\"\",(IF(COUNTIF('CBAT Lookups'!$B$5:$B$12,\"Fixtures-\"&CBAT!$D40)=1,VLOOKUP(\"Fixtures-\"&CBAT!$D40,'CBAT Lookups'!$B$5:$K$12,5),0)))","v":""},{"$f":"IF('Project Scope'!$C40=\"\",\"\",(IF(COUNTIF('CBAT Lookups'!$B$5:$B$12,\"Fixtures-\"&CBAT!$D40)=1,VLOOKUP(\"Fixtures-\"&CBAT!$D40,'CBAT Lookups'!$B$5:$K$12,6),0)))","v":""},{"$f":"IF('Project Scope'!$C40=\"\",\"\",IF(COUNTIF('CBAT Lookups'!$B$5:$B$12,\"Fixtures-\"&CBAT!$D40)=1,VLOOKUP(\"Fixtures-\"&CBAT!$D40,'CBAT Lookups'!$B$5:$K$12,7),0))","v":""},{"$f":"IF('Project Scope'!$C40=\"\",\"\",IF(VLOOKUP($F40,'CBAT Lookups'!$B$17:$K$19,8)=\"W\",1,IF(COUNTIF('CBAT Lookups'!$B$5:$B$12,\"Fixtures-\"&CBAT!$D40)=1,VLOOKUP(\"Fixtures-\"&CBAT!$D40,'CBAT Lookups'!$B$5:$K$12,8),0)*VLOOKUP($F40,'CBAT Lookups'!$B$17:$K$19,8)))","v":""},{"$f":"IF('Project Scope'!$C40=\"\",\"\",IF(VLOOKUP($F40,'CBAT Lookups'!$B$17:$K$19,9)=\"W\",1,IF(COUNTIF('CBAT Lookups'!$B$5:$B$12,\"Fixtures-\"&CBAT!$D40)=1,VLOOKUP(\"Fixtures-\"&CBAT!$D40,'CBAT Lookups'!$B$5:$K$12,9),0)*VLOOKUP($F40,'CBAT Lookups'!$B$17:$K$19,9)))","v":""},{"$f":"IF('Project Scope'!$C40=\"\",\"\",IF(COUNTIF('CBAT Lookups'!$B$5:$B$12,\"Fixtures-\"&CBAT!$D40)=1,VLOOKUP(\"Fixtures-\"&CBAT!$D40,'CBAT Lookups'!$B$5:$K$12,10),0)*VLOOKUP($F40,'CBAT Lookups'!$B$17:$K$19,10))","v":""},{"$f":"IF('Project Scope'!$C40=\"\",\"\",IF(COUNTIF('CBAT Lookups'!$B$5:$B$12,\"Fixtures-\"&CBAT!$D40)=1,VLOOKUP(\"Fixtures-\"&CBAT!$D40,'CBAT Lookups'!$B$5:$O$12,12),0))","v":""},{"$f":"IF('Project Scope'!$C40=\"\",\"\",IF(COUNTIF('CBAT Lookups'!$B$5:$B$12,\"Fixtures-\"&CBAT!$D40)=1,VLOOKUP(\"Fixtures-\"&CBAT!$D40,'CBAT Lookups'!$B$5:$O$12,13),0))","v":""},{"$f":"IF('Project Scope'!$C40=\"\",\"\",IF(COUNTIF('CBAT Lookups'!$B$5:$B$12,\"Fixtures-\"&CBAT!$D40)=1,VLOOKUP(\"Fixtures-\"&CBAT!$D40,'CBAT Lookups'!$B$5:$O$12,14),0))","v":""},{"$f":"IF('Project Scope'!$C40=\"\",\"\",'TRM Data'!$U$3)","v":""},{"$f":"IF('Project Scope'!$C40=\"\",\"\",'TRM Data'!$V$3)","v":""},{"$f":"IF('Project Scope'!$C40=\"\",\"\",IF($J40<=0,0,MAX(0,(($G40*$H40/1000)-($I40*$J40/1000))*$L40)*$U40)+($AF40/0.003412))","v":""},{"$f":"IF('Project Scope'!$C40=\"\",\"\",IF($J40<=0,0,MAX(0,(($G40*$H40/1000)-($I40*$J40/1000)))*$T40))","v":""},{"$f":"IF('Project Scope'!$C40=\"\",\"\",IF($J40<=0,0,MAX(0,(($G40*$H40/1000)-($I40*$J40/1000))*$N40)))","v":""},{"$f":"IF('Project Scope'!$C40=\"\",\"\",IF($J40<=0,0,MAX(0,(($G40*$H40/1000)-($I40*$J40/1000))*$O40)*$T40))","v":""},{"$f":"IF('Project Scope'!$C40=\"\",\"\",IF(OR($J40<=0,'Project Information'!$D$44=\"\"),0,-1*MAX(0,(($G40*$H40/1000)-($I40*$J40/1000))*$L40)*$V40*VLOOKUP('Project Information'!$D$44,'CBAT Lookups'!$A$23:$H$30,2)))","v":""},{"$f":"IF('Project Scope'!$C40=\"\",\"\",IF(OR($J40<=0,'Project Information'!$D$44=\"\"),0,-1*MAX(0,(($G40*$H40/1000)-($I40*$J40/1000))*$L40)*$V40*VLOOKUP('Project Information'!$D$44,'CBAT Lookups'!$A$23:$H$30,3)))","v":""},{"$f":"IF('Project Scope'!$C40=\"\",\"\",IF(OR($J40<=0,'Project Information'!$D$44=\"\"),0,-1*MAX(0,(($G40*$H40/1000)-($I40*$J40/1000))*$L40)*$V40*VLOOKUP('Project Information'!$D$44,'CBAT Lookups'!$A$23:$H$30,4)))","v":""},{"$f":"IF('Project Scope'!$C40=\"\",\"\",IF(OR($J40<=0,'Project Information'!$D$44=\"\"),0,-1*MAX(0,(($G40*$H40/1000)-($I40*$J40/1000))*$L40)*$V40*VLOOKUP('Project Information'!$D$44,'CBAT Lookups'!$A$23:$H$30,5)))","v":""},{"$f":"IF('Project Scope'!$C40=\"\",\"\",IF(OR($J40<=0,'Project Information'!$D$44=\"\"),0,-1*MAX(0,(($G40*$H40/1000)-($I40*$J40/1000))*$L40)*$V40*VLOOKUP('Project Information'!$D$44,'CBAT Lookups'!$A$23:$H$30,6)))","v":""},{"$f":"IF('Project Scope'!$C40=\"\",\"\",IF(OR($J40<=0,'Project Information'!$D$44=\"\"),0,-1*MAX(0,(($G40*$H40/1000)-($I40*$J40/1000))*$L40)*$V40*VLOOKUP('Project Information'!$D$44,'CBAT Lookups'!$A$23:$H$30,7)))","v":""},{"$f":"IF('Project Scope'!$C40=\"\",\"\",IF(OR($J40<=0,'Project Information'!$D$44=\"\"),0,-1*MAX(0,(($G40*$H40/1000)-($I40*$J40/1000))*$L40)*$V40*VLOOKUP('Project Information'!$D$44,'CBAT Lookups'!$A$23:$H$30,8)))","v":""},null,{"$f":"IF('Project Scope'!$C40=\"\",\"\",VLOOKUP($F40,'CBAT Lookups'!$B$17:$K$19,4))","v":""},{"$f":"IF('Project Scope'!$C40=\"\",\"\",VLOOKUP($F40,'CBAT Lookups'!$B$17:$K$19,5))","v":""},{"$f":"IF('Project Scope'!$C40=\"\",\"\",VLOOKUP($F40,'CBAT Lookups'!$B$17:$K$19,6))","v":""},{"$f":"IF('Project Scope'!$C40=\"\",\"\",VLOOKUP($F40,'CBAT Lookups'!$B$17:$K$19,7))","v":""},{"$f":"IF('Project Scope'!$C40=\"\",\"\",IF(SUMPRODUCT($P40:$S40,$AN40:$AQ40)=0,0,P40*AN40/SUMPRODUCT($P40:$S40,$AN40:$AQ40)))","v":""},{"$f":"IF('Project Scope'!$C40=\"\",\"\",IF(SUMPRODUCT($P40:$S40,$AN40:$AQ40)=0,0,Q40*AO40/SUMPRODUCT($P40:$S40,$AN40:$AQ40)))","v":""},{"$f":"IF('Project Scope'!$C40=\"\",\"\",IF(SUMPRODUCT($P40:$S40,$AN40:$AQ40)=0,0,R40*AP40/SUMPRODUCT($P40:$S40,$AN40:$AQ40)))","v":""},{"$f":"IF('Project Scope'!$C40=\"\",\"\",IF(SUMPRODUCT($P40:$S40,$AN40:$AQ40)=0,0,S40*AQ40/SUMPRODUCT($P40:$S40,$AN40:$AQ40)))","v":""},{"$f":"IF('Project Scope'!$C40=\"\",\"\",Benefits($AB40,$AD40,$AE40,$AG40,$AH40,$AI40,$AJ40,$AK40,$AL40,$AM40,$M40,$AR40,$AS40,$AT40,$AU40,$W40,$X40,$Y40,$Z40,$AA40,$E40))","v":""},"","","","","","","","",null,{"$f":"IF('Project Scope'!$C40=\"\",\"\",SUM('Project Scope'!$AT40,'Project Scope'!$AU40))","v":""},{"$f":"IF('Project Scope'!$C40=\"\",\"\",SUM('Project Scope'!$BG40, 'Project Scope'!$AR40,(IF(ISNUMBER('Project Scope'!$AS40),'Project Scope'!$AS40,0)*'Project Information'!$D$12)))","v":""},null,null,{"$f":"IF('Project Scope'!$C40=\"\",\"\",IF(COUNTIF('CBAT Lookups'!$B$5:$B$12,\"Controls-\"&CBAT!$D40)=1,VLOOKUP(\"Controls-\"&CBAT!$D40,'CBAT Lookups'!$B$5:$L$12,11),0))","v":""},{"$f":"IF('Project Scope'!$C40=\"\",\"\",IF(COUNTIF('CBAT Lookups'!$B$5:$B$12,\"Controls-\"&CBAT!$D40)=1,VLOOKUP(\"Controls-\"&CBAT!$D40,'CBAT Lookups'!$B$5:$K$12,2),0)*VLOOKUP($F40,'CBAT Lookups'!$B$17:$K$19,2))","v":""},{"$f":"IF('Project Scope'!$C40=\"\",\"\",IF(COUNTIF('CBAT Lookups'!$B$5:$B$12,\"Controls-\"&CBAT!$D40)=1,VLOOKUP(\"Controls-\"&CBAT!$D40,'CBAT Lookups'!$B$5:$K$12,3),0)*VLOOKUP($F40,'CBAT Lookups'!$B$17:$K$19,3))","v":""},{"$f":"IF('Project Scope'!$C40=\"\",\"\",IF(COUNTIF('CBAT Lookups'!$B$5:$B$12,\"Controls-\"&CBAT!$D40)=1,VLOOKUP(\"Controls-\"&CBAT!$D40,'CBAT Lookups'!$B$5:$K$12,4),0))","v":""},{"$f":"IF('Project Scope'!$C40=\"\",\"\",IF(COUNTIF('CBAT Lookups'!$B$5:$B$12,\"Controls-\"&CBAT!$D40)=1,VLOOKUP(\"Controls-\"&CBAT!$D40,'CBAT Lookups'!$B$5:$K$12,5),0))","v":""},{"$f":"IF('Project Scope'!$C40=\"\",\"\",IF(COUNTIF('CBAT Lookups'!$B$5:$B$12,\"Controls-\"&CBAT!$D40)=1,VLOOKUP(\"Controls-\"&CBAT!$D40,'CBAT Lookups'!$B$5:$K$12,6),0))","v":""},{"$f":"IF('Project Scope'!$C40=\"\",\"\",IF(COUNTIF('CBAT Lookups'!$B$5:$B$12,\"Controls-\"&CBAT!$D40)=1,VLOOKUP(\"Controls-\"&CBAT!$D40,'CBAT Lookups'!$B$5:$K$12,7),0))","v":""},{"$f":"IF('Project Scope'!$C40=\"\",\"\",IF(VLOOKUP($F40,'CBAT Lookups'!$B$17:$K$19,8)=\"W\",1,IF(COUNTIF('CBAT Lookups'!$B$5:$B$12,\"Controls-\"&CBAT!$D40)=1,VLOOKUP(\"Controls-\"&CBAT!$D40,'CBAT Lookups'!$B$5:$K$12,8),0)*VLOOKUP($F40,'CBAT Lookups'!$B$17:$K$19,8)))","v":""},{"$f":"IF('Project Scope'!$C40=\"\",\"\",IF(VLOOKUP($F40,'CBAT Lookups'!$B$17:$K$19,9)=\"W\",1,IF(COUNTIF('CBAT Lookups'!$B$5:$B$12,\"Controls-\"&CBAT!$D40)=1,VLOOKUP(\"Controls-\"&CBAT!$D40,'CBAT Lookups'!$B$5:$K$12,9),0)*VLOOKUP($F40,'CBAT Lookups'!$B$17:$K$19,9)))","v":""},{"$f":"IF('Project Scope'!$C40=\"\",\"\",IF(COUNTIF('CBAT Lookups'!$B$5:$B$12,\"Controls-\"&CBAT!$D40)=1,VLOOKUP(\"Controls-\"&CBAT!$D40,'CBAT Lookups'!$B$5:$K$12,10),0)*VLOOKUP($F40,'CBAT Lookups'!$B$17:$K$19,10))","v":""},{"$f":"IF('Project Scope'!$C40=\"\",\"\",VLOOKUP($C40,'CBAT Lookups'!$A$33:$B$57,2))","v":""},{"$f":"IF('Project Scope'!$C40=\"\",\"\",IF(COUNTIF('CBAT Lookups'!$B$5:$B$12,\"Controls-\"&CBAT!$D40)=1,VLOOKUP(\"Controls-\"&CBAT!$D40,'CBAT Lookups'!$B$5:$O$12,12),0))","v":""},{"$f":"IF('Project Scope'!$C40=\"\",\"\",IF(COUNTIF('CBAT Lookups'!$B$5:$B$12,\"Controls-\"&CBAT!$D40)=1,VLOOKUP(\"Controls-\"&CBAT!$D40,'CBAT Lookups'!$B$5:$O$12,13),0))","v":""},{"$f":"IF('Project Scope'!$C40=\"\",\"\",IF(COUNTIF('CBAT Lookups'!$B$5:$B$12,\"Controls-\"&CBAT!$D40)=1,VLOOKUP(\"Controls-\"&CBAT!$D40,'CBAT Lookups'!$B$5:$O$12,14),0))","v":""},{"$f":"IF('Project Scope'!$C40=\"\",\"\",'TRM Data'!$U$3)","v":""},{"$f":"IF('Project Scope'!$C40=\"\",\"\",'TRM Data'!$V$3)","v":""},{"$f":"IF('Project Scope'!$C40=\"\",\"\",IF($K40<=0,0,MAX(0,(IF(AND($I40>0,$J40>0),($I40*$J40)/1000,($G40*$H40)/1000)*$L40))*$BT40*$BR40)+($CD40/0.003412))","v":""},{"$f":"IF('Project Scope'!$C40=\"\",\"\",IF($K40<=0,0,MAX(0,IF(AND($I40>0,$J40>0),($I40*$J40)/1000,($G40*$H40)/1000))*$BQ40))","v":""},{"$f":"IF('Project Scope'!$C40=\"\",\"\",IF($K40<=0,0,MAX(0,IF(AND($I40>0,$J40>0),($I40*$J40)/1000,($G40*$H40)/1000))*$BK40))","v":""},{"$f":"IF('Project Scope'!$C40=\"\",\"\",IF($K40<=0,0,MAX(0,IF(AND($I40>0,$J40>0),($I40*$J40)/1000,($G40*$H40)/1000))*$BL40*$BQ40))","v":""},{"$f":"IF('Project Scope'!$C40=\"\",\"\",IF(OR($K40<=0,'Project Information'!$D$44=\"\"),0,-1*MAX(0,IF(AND($I40>0,$J40>0),($I40*$J40)/1000,($G40*$H40)/1000))*$BT40*$L40*$BS40*VLOOKUP('Project Information'!$D$44,'CBAT Lookups'!$A$23:$H$30,2)))","v":""},{"$f":"IF('Project Scope'!$C40=\"\",\"\",IF(OR($K40<=0,'Project Information'!$D$44=\"\"),0,-1*MAX(0,IF(AND($I40>0,$J40>0),($I40*$J40)/1000,($G40*$H40)/1000))*$BT40*$L40*$BS40*VLOOKUP('Project Information'!$D$44,'CBAT Lookups'!$A$23:$H$30,3)))","v":""},{"$f":"IF('Project Scope'!$C40=\"\",\"\",IF(OR($K40<=0,'Project Information'!$D$44=\"\"),0,-1*MAX(0,IF(AND($I40>0,$J40>0),($I40*$J40)/1000,($G40*$H40)/1000))*$BT40*$L40*$BS40*VLOOKUP('Project Information'!$D$44,'CBAT Lookups'!$A$23:$H$30,4)))","v":""},{"$f":"IF('Project Scope'!$C40=\"\",\"\",IF(OR($K40<=0,'Project Information'!$D$44=\"\"),0,-1*MAX(0,IF(AND($I40>0,$J40>0),($I40*$J40)/1000,($G40*$H40)/1000))*$BT40*$L40*$BS40*VLOOKUP('Project Information'!$D$44,'CBAT Lookups'!$A$23:$H$30,5)))","v":""},{"$f":"IF('Project Scope'!$C40=\"\",\"\",IF(OR($K40<=0,'Project Information'!$D$44=\"\"),0,-1*MAX(0,IF(AND($I40>0,$J40>0),($I40*$J40)/1000,($G40*$H40)/1000))*$BT40*$L40*$BS40*VLOOKUP('Project Information'!$D$44,'CBAT Lookups'!$A$23:$H$30,6)))","v":""},{"$f":"IF('Project Scope'!$C40=\"\",\"\",IF(OR($K40<=0,'Project Information'!$D$44=\"\"),0,-1*MAX(0,IF(AND($I40>0,$J40>0),($I40*$J40)/1000,($G40*$H40)/1000))*$BT40*$L40*$BS40*VLOOKUP('Project Information'!$D$44,'CBAT Lookups'!$A$23:$H$30,7)))","v":""},{"$f":"IF('Project Scope'!$C40=\"\",\"\",IF(OR($K40<=0,'Project Information'!$D$44=\"\"),0,-1*MAX(0,IF(AND($I40>0,$J40>0),($I40*$J40)/1000,($G40*$H40)/1000))*$BT40*$L40*$BS40*VLOOKUP('Project Information'!$D$44,'CBAT Lookups'!$A$23:$H$30,8)))","v":""},null,{"$f":"IF('Project Scope'!$C40=\"\",\"\",VLOOKUP($F40,'CBAT Lookups'!$B$17:$K$19,4))","v":""},{"$f":"IF('Project Scope'!$C40=\"\",\"\",VLOOKUP($F40,'CBAT Lookups'!$B$17:$K$19,5))","v":""},{"$f":"IF('Project Scope'!$C40=\"\",\"\",VLOOKUP($F40,'CBAT Lookups'!$B$17:$K$19,6))","v":""},{"$f":"IF('Project Scope'!$C40=\"\",\"\",VLOOKUP($F40,'CBAT Lookups'!$B$17:$K$19,7))","v":""},{"$f":"IF('Project Scope'!$C40=\"\",\"\",IF(SUMPRODUCT($BM40:$BP40,$CL40:$CO40)=0,0,BM40*CL40/SUMPRODUCT($BM40:$BP40,$CL40:$CO40)))","v":""},{"$f":"IF('Project Scope'!$C40=\"\",\"\",IF(SUMPRODUCT($BM40:$BP40,$CL40:$CO40)=0,0,BN40*CM40/SUMPRODUCT($BM40:$BP40,$CL40:$CO40)))","v":""},{"$f":"IF('Project Scope'!$C40=\"\",\"\",IF(SUMPRODUCT($BM40:$BP40,$CL40:$CO40)=0,0,BO40*CN40/SUMPRODUCT($BM40:$BP40,$CL40:$CO40)))","v":""},{"$f":"IF('Project Scope'!$C40=\"\",\"\",IF(SUMPRODUCT($BM40:$BP40,$CL40:$CO40)=0,0,BP40*CO40/SUMPRODUCT($BM40:$BP40,$CL40:$CO40)))","v":""},{"$f":"IF('Project Scope'!$C40=\"\",\"\",Benefits($BZ40,$CB40,$CC40,$CE40,$CF40,$CG40,$CH40,$CI40,$CJ40,$CK40,$BJ40,$CP40,$CQ40,$CR40,$CS40,$BU40,$BV40,$BW40,$BX40,$BY40,$E40))","v":""},"","","","","","","","",null,{"$f":"IF('Project Scope'!$C40=\"\",\"\",SUM('Project Scope'!$BB40,'Project Scope'!$BC40))","v":""},{"$f":"IF('Project Scope'!$C40=\"\",\"\",SUM('Project Scope'!$BH40, 'Project Scope'!$AZ40,(IF(ISNUMBER('Project Scope'!$BA40),'Project Scope'!$BA40,0)*'Project Information'!$D$12)))","v":""},null,null,{"$f":"IF('Project Scope'!$C40=\"\",\"\",IF($J40<=0,0,(SUMPRODUCT($AV40:$BC40,--($AV40:$BC40>0))+$BE40)*$DK40/((-SUMPRODUCT($AV40:$BC40,--($AV40:$BC40<0))+$BG40+$BH40+$BI40)*$DK40)))","v":""},{"$f":"IF('Project Scope'!$C40=\"\",\"\",IF($K40<=0,0,(SUMPRODUCT($CT40:$DA40,--($CT40:$DA40>0))+$DC40)*$DK40/((-SUMPRODUCT($CT40:$DA40,--($CT40:$DA40<0))+$DE40+$DF40+$DG40)*$DK40)))","v":""},{"$f":"IF('Project Scope'!$C40=\"\",\"\",IF(AND($J40<=0,$K40<=0),0,(SUMPRODUCT($AV40:$BC40,--($AV40:$BC40>0))+$BE40+SUMPRODUCT($CT40:$DA40,--($CT40:$DA40>0))+$DC40)*$DK40/((-SUMPRODUCT($AV40:$BC40,--($AV40:$BC40<0))+$BG40+$BH40+$BI40-SUMPRODUCT($CT40:$DA40,--($CT40:$DA40<0))+$DE40+$DF40+$DG40)*$DK40)))","v":""},{"$f":"IF('Project Scope'!$C40=\"\",\"\",IF(NetOrGross=\"Net\",(1-Z40+AA40),1))","v":""}]
[{"$f":"'Project Scope'!$B41","v":34},{"$f":"IF('Project Scope'!$C41=\"\",\"\",'Project Scope'!$C41)","v":""},{"$f":"IF('Project Scope'!$C41=\"\",\"\",'Project Scope'!$H41)","v":""},{"$f":"IF(ISNUMBER(SEARCH(\"Bay\",'Project Scope'!$Q41)),\"Bay\",IF('Project Scope'!C41=\"\",\"\",'Project Scope'!E41))","v":""},{"$f":"IF('Project Scope'!$C41=\"\",\"\",\"Com\")","v":""},{"$f":"IF('Project Scope'!$C41=\"\",\"\",'Project Scope'!$L41)","v":""},{"$f":"IF('Project Scope'!$C41=\"\",\"\",IF('Project Scope'!$CJ41=\"\",0,'Project Scope'!$CJ41))","v":""},{"$f":"IF('Project Scope'!$C41=\"\",\"\",IF('Project Scope'!$N41=\"\",0,'Project Scope'!$N41))","v":""},{"$f":"IF('Project Scope'!$C41=\"\",\"\",IF('Project Scope'!$CK41=\"\",0,'Project Scope'!$CK41))","v":""},{"$f":"IF('Project Scope'!$C41=\"\",\"\",IF('Project Scope'!$AO41=\"\",0,'Project Scope'!$AO41))","v":""},{"$f":"IF('Project Scope'!$C41=\"\",\"\",IF('Project Scope'!$AX41=\"\",0,'Project Scope'!$AX41))","v":""},{"$f":"IF('Project Scope'!$C41=\"\",\"\",IF('Project Scope'!$M41=\"\",0,'Project Scope'!$M41))","v":""},{"$f":"IF('Project Scope'!$C41=\"\",\"\",IF(COUNTIF('CBAT Lookups'!$B$5:$B$12,\"Fixtures-\"&CBAT!$D41)=1,VLOOKUP(\"Fixtures-\"&CBAT!$D41,'CBAT Lookups'!$B$5:$L$12,11),0))","v":""},{"$f":"IF('Project Scope'!$C41=\"\",\"\",(IF(COUNTIF('CBAT Lookups'!$B$5:$B$12,\"Fixtures-\"&CBAT!$D41)=1,VLOOKUP(\"Fixtures-\"&CBAT!$D41,'CBAT Lookups'!$B$5:$K$12,2),0))*VLOOKUP($F41,'CBAT Lookups'!$B$17:$K$19,2))","v":""},{"$f":"IF('Project Scope'!$C41=\"\",\"\",(IF(COUNTIF('CBAT Lookups'!$B$5:$B$12,\"Fixtures-\"&CBAT!$D41)=1,VLOOKUP(\"Fixtures-\"&CBAT!$D41,'CBAT Lookups'!$B$5:$K$12,3),0))*VLOOKUP($F41,'CBAT Lookups'!$B$17:$K$19,3))","v":""},{"$f":"IF('Project Scope'!$C41=\"\",\"\",(IF(COUNTIF('CBAT Lookups'!$B$5:$B$12,\"Fixtures-\"&CBAT!$D41)=1,VLOOKUP(\"Fixtures-\"&CBAT!$D41,'CBAT Lookups'!$B$5:$K$12,4),0)))","v":""},{"$f":"IF('Project Scope'!$C41=\"\",\"\",(IF(COUNTIF('CBAT Lookups'!$B$5:$B$12,\"Fixtures-\"&CBAT!$D41)=1,VLOOKUP(\"Fixtures-\"&CBAT!$D41,'CBAT Lookups'!$B$5:$K$12,5),0)))","v":""},{"$f":"IF('Project Scope'!$C41=\"\",\"\",(IF(COUNTIF('CBAT Lookups'!$B$5:$B$12,\"Fixtures-\"&CBAT!$D41)=1,VLOOKUP(\"Fixtures-\"&CBAT!$D41,'CBAT Lookups'!$B$5:$K$12,6),0)))","v":""},{"$f":"IF('Project Scope'!$C41=\"\",\"\",IF(COUNTIF('CBAT Lookups'!$B$5:$B$12,\"Fixtures-\"&CBAT!$D41)=1,VLOOKUP(\"Fixtures-\"&CBAT!$D41,'CBAT Lookups'!$B$5:$K$12,7),0))","v":""},{"$f":"IF('Project Scope'!$C41=\"\",\"\",IF(VLOOKUP($F41,'CBAT Lookups'!$B$17:$K$19,8)=\"W\",1,IF(COUNTIF('CBAT Lookups'!$B$5:$B$12,\"Fixtures-\"&CBAT!$D41)=1,VLOOKUP(\"Fixtures-\"&CBAT!$D41,'CBAT Lookups'!$B$5:$K$12,8),0)*VLOOKUP($F41,'CBAT Lookups'!$B$17:$K$19,8)))","v":""},{"$f":"IF('Project Scope'!$C41=\"\",\"\",IF(VLOOKUP($F41,'CBAT Lookups'!$B$17:$K$19,9)=\"W\",1,IF(COUNTIF('CBAT Lookups'!$B$5:$B$12,\"Fixtures-\"&CBAT!$D41)=1,VLOOKUP(\"Fixtures-\"&CBAT!$D41,'CBAT Lookups'!$B$5:$K$12,9),0)*VLOOKUP($F41,'CBAT Lookups'!$B$17:$K$19,9)))","v":""},{"$f":"IF('Project Scope'!$C41=\"\",\"\",IF(COUNTIF('CBAT Lookups'!$B$5:$B$12,\"Fixtures-\"&CBAT!$D41)=1,VLOOKUP(\"Fixtures-\"&CBAT!$D41,'CBAT Lookups'!$B$5:$K$12,10),0)*VLOOKUP($F41,'CBAT Lookups'!$B$17:$K$19,10))","v":""},{"$f":"IF('Project Scope'!$C41=\"\",\"\",IF(COUNTIF('CBAT Lookups'!$B$5:$B$12,\"Fixtures-\"&CBAT!$D41)=1,VLOOKUP(\"Fixtures-\"&CBAT!$D41,'CBAT Lookups'!$B$5:$O$12,12),0))","v":""},{"$f":"IF('Project Scope'!$C41=\"\",\"\",IF(COUNTIF('CBAT Lookups'!$B$5:$B$12,\"Fixtures-\"&CBAT!$D41)=1,VLOOKUP(\"Fixtures-\"&CBAT!$D41,'CBAT Lookups'!$B$5:$O$12,13),0))","v":""},{"$f":"IF('Project Scope'!$C41=\"\",\"\",IF(COUNTIF('CBAT Lookups'!$B$5:$B$12,\"Fixtures-\"&CBAT!$D41)=1,VLOOKUP(\"Fixtures-\"&CBAT!$D41,'CBAT Lookups'!$B$5:$O$12,14),0))","v":""},{"$f":"IF('Project Scope'!$C41=\"\",\"\",'TRM Data'!$U$3)","v":""},{"$f":"IF('Project Scope'!$C41=\"\",\"\",'TRM Data'!$V$3)","v":""},{"$f":"IF('Project Scope'!$C41=\"\",\"\",IF($J41<=0,0,MAX(0,(($G41*$H41/1000)-($I41*$J41/1000))*$L41)*$U41)+($AF41/0.003412))","v":""},{"$f":"IF('Project Scope'!$C41=\"\",\"\",IF($J41<=0,0,MAX(0,(($G41*$H41/1000)-($I41*$J41/1000)))*$T41))","v":""},{"$f":"IF('Project Scope'!$C41=\"\",\"\",IF($J41<=0,0,MAX(0,(($G41*$H41/1000)-($I41*$J41/1000))*$N41)))","v":""},{"$f":"IF('Project Scope'!$C41=\"\",\"\",IF($J41<=0,0,MAX(0,(($G41*$H41/1000)-($I41*$J41/1000))*$O41)*$T41))","v":""},{"$f":"IF('Project Scope'!$C41=\"\",\"\",IF(OR($J41<=0,'Project Information'!$D$44=\"\"),0,-1*MAX(0,(($G41*$H41/1000)-($I41*$J41/1000))*$L41)*$V41*VLOOKUP('Project Information'!$D$44,'CBAT Lookups'!$A$23:$H$30,2)))","v":""},{"$f":"IF('Project Scope'!$C41=\"\",\"\",IF(OR($J41<=0,'Project Information'!$D$44=\"\"),0,-1*MAX(0,(($G41*$H41/1000)-($I41*$J41/1000))*$L41)*$V41*VLOOKUP('Project Information'!$D$44,'CBAT Lookups'!$A$23:$H$30,3)))","v":""},{"$f":"IF('Project Scope'!$C41=\"\",\"\",IF(OR($J41<=0,'Project Information'!$D$44=\"\"),0,-1*MAX(0,(($G41*$H41/1000)-($I41*$J41/1000))*$L41)*$V41*VLOOKUP('Project Information'!$D$44,'CBAT Lookups'!$A$23:$H$30,4)))","v":""},{"$f":"IF('Project Scope'!$C41=\"\",\"\",IF(OR($J41<=0,'Project Information'!$D$44=\"\"),0,-1*MAX(0,(($G41*$H41/1000)-($I41*$J41/1000))*$L41)*$V41*VLOOKUP('Project Information'!$D$44,'CBAT Lookups'!$A$23:$H$30,5)))","v":""},{"$f":"IF('Project Scope'!$C41=\"\",\"\",IF(OR($J41<=0,'Project Information'!$D$44=\"\"),0,-1*MAX(0,(($G41*$H41/1000)-($I41*$J41/1000))*$L41)*$V41*VLOOKUP('Project Information'!$D$44,'CBAT Lookups'!$A$23:$H$30,6)))","v":""},{"$f":"IF('Project Scope'!$C41=\"\",\"\",IF(OR($J41<=0,'Project Information'!$D$44=\"\"),0,-1*MAX(0,(($G41*$H41/1000)-($I41*$J41/1000))*$L41)*$V41*VLOOKUP('Project Information'!$D$44,'CBAT Lookups'!$A$23:$H$30,7)))","v":""},{"$f":"IF('Project Scope'!$C41=\"\",\"\",IF(OR($J41<=0,'Project Information'!$D$44=\"\"),0,-1*MAX(0,(($G41*$H41/1000)-($I41*$J41/1000))*$L41)*$V41*VLOOKUP('Project Information'!$D$44,'CBAT Lookups'!$A$23:$H$30,8)))","v":""},null,{"$f":"IF('Project Scope'!$C41=\"\",\"\",VLOOKUP($F41,'CBAT Lookups'!$B$17:$K$19,4))","v":""},{"$f":"IF('Project Scope'!$C41=\"\",\"\",VLOOKUP($F41,'CBAT Lookups'!$B$17:$K$19,5))","v":""},{"$f":"IF('Project Scope'!$C41=\"\",\"\",VLOOKUP($F41,'CBAT Lookups'!$B$17:$K$19,6))","v":""},{"$f":"IF('Project Scope'!$C41=\"\",\"\",VLOOKUP($F41,'CBAT Lookups'!$B$17:$K$19,7))","v":""},{"$f":"IF('Project Scope'!$C41=\"\",\"\",IF(SUMPRODUCT($P41:$S41,$AN41:$AQ41)=0,0,P41*AN41/SUMPRODUCT($P41:$S41,$AN41:$AQ41)))","v":""},{"$f":"IF('Project Scope'!$C41=\"\",\"\",IF(SUMPRODUCT($P41:$S41,$AN41:$AQ41)=0,0,Q41*AO41/SUMPRODUCT($P41:$S41,$AN41:$AQ41)))","v":""},{"$f":"IF('Project Scope'!$C41=\"\",\"\",IF(SUMPRODUCT($P41:$S41,$AN41:$AQ41)=0,0,R41*AP41/SUMPRODUCT($P41:$S41,$AN41:$AQ41)))","v":""},{"$f":"IF('Project Scope'!$C41=\"\",\"\",IF(SUMPRODUCT($P41:$S41,$AN41:$AQ41)=0,0,S41*AQ41/SUMPRODUCT($P41:$S41,$AN41:$AQ41)))","v":""},{"$f":"IF('Project Scope'!$C41=\"\",\"\",Benefits($AB41,$AD41,$AE41,$AG41,$AH41,$AI41,$AJ41,$AK41,$AL41,$AM41,$M41,$AR41,$AS41,$AT41,$AU41,$W41,$X41,$Y41,$Z41,$AA41,$E41))","v":""},"","","","","","","","",null,{"$f":"IF('Project Scope'!$C41=\"\",\"\",SUM('Project Scope'!$AT41,'Project Scope'!$AU41))","v":""},{"$f":"IF('Project Scope'!$C41=\"\",\"\",SUM('Project Scope'!$BG41, 'Project Scope'!$AR41,(IF(ISNUMBER('Project Scope'!$AS41),'Project Scope'!$AS41,0)*'Project Information'!$D$12)))","v":""},null,null,{"$f":"IF('Project Scope'!$C41=\"\",\"\",IF(COUNTIF('CBAT Lookups'!$B$5:$B$12,\"Controls-\"&CBAT!$D41)=1,VLOOKUP(\"Controls-\"&CBAT!$D41,'CBAT Lookups'!$B$5:$L$12,11),0))","v":""},{"$f":"IF('Project Scope'!$C41=\"\",\"\",IF(COUNTIF('CBAT Lookups'!$B$5:$B$12,\"Controls-\"&CBAT!$D41)=1,VLOOKUP(\"Controls-\"&CBAT!$D41,'CBAT Lookups'!$B$5:$K$12,2),0)*VLOOKUP($F41,'CBAT Lookups'!$B$17:$K$19,2))","v":""},{"$f":"IF('Project Scope'!$C41=\"\",\"\",IF(COUNTIF('CBAT Lookups'!$B$5:$B$12,\"Controls-\"&CBAT!$D41)=1,VLOOKUP(\"Controls-\"&CBAT!$D41,'CBAT Lookups'!$B$5:$K$12,3),0)*VLOOKUP($F41,'CBAT Lookups'!$B$17:$K$19,3))","v":""},{"$f":"IF('Project Scope'!$C41=\"\",\"\",IF(COUNTIF('CBAT Lookups'!$B$5:$B$12,\"Controls-\"&CBAT!$D41)=1,VLOOKUP(\"Controls-\"&CBAT!$D41,'CBAT Lookups'!$B$5:$K$12,4),0))","v":""},{"$f":"IF('Project Scope'!$C41=\"\",\"\",IF(COUNTIF('CBAT Lookups'!$B$5:$B$12,\"Controls-\"&CBAT!$D41)=1,VLOOKUP(\"Controls-\"&CBAT!$D41,'CBAT Lookups'!$B$5:$K$12,5),0))","v":""},{"$f":"IF('Project Scope'!$C41=\"\",\"\",IF(COUNTIF('CBAT Lookups'!$B$5:$B$12,\"Controls-\"&CBAT!$D41)=1,VLOOKUP(\"Controls-\"&CBAT!$D41,'CBAT Lookups'!$B$5:$K$12,6),0))","v":""},{"$f":"IF('Project Scope'!$C41=\"\",\"\",IF(COUNTIF('CBAT Lookups'!$B$5:$B$12,\"Controls-\"&CBAT!$D41)=1,VLOOKUP(\"Controls-\"&CBAT!$D41,'CBAT Lookups'!$B$5:$K$12,7),0))","v":""},{"$f":"IF('Project Scope'!$C41=\"\",\"\",IF(VLOOKUP($F41,'CBAT Lookups'!$B$17:$K$19,8)=\"W\",1,IF(COUNTIF('CBAT Lookups'!$B$5:$B$12,\"Controls-\"&CBAT!$D41)=1,VLOOKUP(\"Controls-\"&CBAT!$D41,'CBAT Lookups'!$B$5:$K$12,8),0)*VLOOKUP($F41,'CBAT Lookups'!$B$17:$K$19,8)))","v":""},{"$f":"IF('Project Scope'!$C41=\"\",\"\",IF(VLOOKUP($F41,'CBAT Lookups'!$B$17:$K$19,9)=\"W\",1,IF(COUNTIF('CBAT Lookups'!$B$5:$B$12,\"Controls-\"&CBAT!$D41)=1,VLOOKUP(\"Controls-\"&CBAT!$D41,'CBAT Lookups'!$B$5:$K$12,9),0)*VLOOKUP($F41,'CBAT Lookups'!$B$17:$K$19,9)))","v":""},{"$f":"IF('Project Scope'!$C41=\"\",\"\",IF(COUNTIF('CBAT Lookups'!$B$5:$B$12,\"Controls-\"&CBAT!$D41)=1,VLOOKUP(\"Controls-\"&CBAT!$D41,'CBAT Lookups'!$B$5:$K$12,10),0)*VLOOKUP($F41,'CBAT Lookups'!$B$17:$K$19,10))","v":""},{"$f":"IF('Project Scope'!$C41=\"\",\"\",VLOOKUP($C41,'CBAT Lookups'!$A$33:$B$57,2))","v":""},{"$f":"IF('Project Scope'!$C41=\"\",\"\",IF(COUNTIF('CBAT Lookups'!$B$5:$B$12,\"Controls-\"&CBAT!$D41)=1,VLOOKUP(\"Controls-\"&CBAT!$D41,'CBAT Lookups'!$B$5:$O$12,12),0))","v":""},{"$f":"IF('Project Scope'!$C41=\"\",\"\",IF(COUNTIF('CBAT Lookups'!$B$5:$B$12,\"Controls-\"&CBAT!$D41)=1,VLOOKUP(\"Controls-\"&CBAT!$D41,'CBAT Lookups'!$B$5:$O$12,13),0))","v":""},{"$f":"IF('Project Scope'!$C41=\"\",\"\",IF(COUNTIF('CBAT Lookups'!$B$5:$B$12,\"Controls-\"&CBAT!$D41)=1,VLOOKUP(\"Controls-\"&CBAT!$D41,'CBAT Lookups'!$B$5:$O$12,14),0))","v":""},{"$f":"IF('Project Scope'!$C41=\"\",\"\",'TRM Data'!$U$3)","v":""},{"$f":"IF('Project Scope'!$C41=\"\",\"\",'TRM Data'!$V$3)","v":""},{"$f":"IF('Project Scope'!$C41=\"\",\"\",IF($K41<=0,0,MAX(0,(IF(AND($I41>0,$J41>0),($I41*$J41)/1000,($G41*$H41)/1000)*$L41))*$BT41*$BR41)+($CD41/0.003412))","v":""},{"$f":"IF('Project Scope'!$C41=\"\",\"\",IF($K41<=0,0,MAX(0,IF(AND($I41>0,$J41>0),($I41*$J41)/1000,($G41*$H41)/1000))*$BQ41))","v":""},{"$f":"IF('Project Scope'!$C41=\"\",\"\",IF($K41<=0,0,MAX(0,IF(AND($I41>0,$J41>0),($I41*$J41)/1000,($G41*$H41)/1000))*$BK41))","v":""},{"$f":"IF('Project Scope'!$C41=\"\",\"\",IF($K41<=0,0,MAX(0,IF(AND($I41>0,$J41>0),($I41*$J41)/1000,($G41*$H41)/1000))*$BL41*$BQ41))","v":""},{"$f":"IF('Project Scope'!$C41=\"\",\"\",IF(OR($K41<=0,'Project Information'!$D$44=\"\"),0,-1*MAX(0,IF(AND($I41>0,$J41>0),($I41*$J41)/1000,($G41*$H41)/1000))*$BT41*$L41*$BS41*VLOOKUP('Project Information'!$D$44,'CBAT Lookups'!$A$23:$H$30,2)))","v":""},{"$f":"IF('Project Scope'!$C41=\"\",\"\",IF(OR($K41<=0,'Project Information'!$D$44=\"\"),0,-1*MAX(0,IF(AND($I41>0,$J41>0),($I41*$J41)/1000,($G41*$H41)/1000))*$BT41*$L41*$BS41*VLOOKUP('Project Information'!$D$44,'CBAT Lookups'!$A$23:$H$30,3)))","v":""},{"$f":"IF('Project Scope'!$C41=\"\",\"\",IF(OR($K41<=0,'Project Information'!$D$44=\"\"),0,-1*MAX(0,IF(AND($I41>0,$J41>0),($I41*$J41)/1000,($G41*$H41)/1000))*$BT41*$L41*$BS41*VLOOKUP('Project Information'!$D$44,'CBAT Lookups'!$A$23:$H$30,4)))","v":""},{"$f":"IF('Project Scope'!$C41=\"\",\"\",IF(OR($K41<=0,'Project Information'!$D$44=\"\"),0,-1*MAX(0,IF(AND($I41>0,$J41>0),($I41*$J41)/1000,($G41*$H41)/1000))*$BT41*$L41*$BS41*VLOOKUP('Project Information'!$D$44,'CBAT Lookups'!$A$23:$H$30,5)))","v":""},{"$f":"IF('Project Scope'!$C41=\"\",\"\",IF(OR($K41<=0,'Project Information'!$D$44=\"\"),0,-1*MAX(0,IF(AND($I41>0,$J41>0),($I41*$J41)/1000,($G41*$H41)/1000))*$BT41*$L41*$BS41*VLOOKUP('Project Information'!$D$44,'CBAT Lookups'!$A$23:$H$30,6)))","v":""},{"$f":"IF('Project Scope'!$C41=\"\",\"\",IF(OR($K41<=0,'Project Information'!$D$44=\"\"),0,-1*MAX(0,IF(AND($I41>0,$J41>0),($I41*$J41)/1000,($G41*$H41)/1000))*$BT41*$L41*$BS41*VLOOKUP('Project Information'!$D$44,'CBAT Lookups'!$A$23:$H$30,7)))","v":""},{"$f":"IF('Project Scope'!$C41=\"\",\"\",IF(OR($K41<=0,'Project Information'!$D$44=\"\"),0,-1*MAX(0,IF(AND($I41>0,$J41>0),($I41*$J41)/1000,($G41*$H41)/1000))*$BT41*$L41*$BS41*VLOOKUP('Project Information'!$D$44,'CBAT Lookups'!$A$23:$H$30,8)))","v":""},null,{"$f":"IF('Project Scope'!$C41=\"\",\"\",VLOOKUP($F41,'CBAT Lookups'!$B$17:$K$19,4))","v":""},{"$f":"IF('Project Scope'!$C41=\"\",\"\",VLOOKUP($F41,'CBAT Lookups'!$B$17:$K$19,5))","v":""},{"$f":"IF('Project Scope'!$C41=\"\",\"\",VLOOKUP($F41,'CBAT Lookups'!$B$17:$K$19,6))","v":""},{"$f":"IF('Project Scope'!$C41=\"\",\"\",VLOOKUP($F41,'CBAT Lookups'!$B$17:$K$19,7))","v":""},{"$f":"IF('Project Scope'!$C41=\"\",\"\",IF(SUMPRODUCT($BM41:$BP41,$CL41:$CO41)=0,0,BM41*CL41/SUMPRODUCT($BM41:$BP41,$CL41:$CO41)))","v":""},{"$f":"IF('Project Scope'!$C41=\"\",\"\",IF(SUMPRODUCT($BM41:$BP41,$CL41:$CO41)=0,0,BN41*CM41/SUMPRODUCT($BM41:$BP41,$CL41:$CO41)))","v":""},{"$f":"IF('Project Scope'!$C41=\"\",\"\",IF(SUMPRODUCT($BM41:$BP41,$CL41:$CO41)=0,0,BO41*CN41/SUMPRODUCT($BM41:$BP41,$CL41:$CO41)))","v":""},{"$f":"IF('Project Scope'!$C41=\"\",\"\",IF(SUMPRODUCT($BM41:$BP41,$CL41:$CO41)=0,0,BP41*CO41/SUMPRODUCT($BM41:$BP41,$CL41:$CO41)))","v":""},{"$f":"IF('Project Scope'!$C41=\"\",\"\",Benefits($BZ41,$CB41,$CC41,$CE41,$CF41,$CG41,$CH41,$CI41,$CJ41,$CK41,$BJ41,$CP41,$CQ41,$CR41,$CS41,$BU41,$BV41,$BW41,$BX41,$BY41,$E41))","v":""},"","","","","","","","",null,{"$f":"IF('Project Scope'!$C41=\"\",\"\",SUM('Project Scope'!$BB41,'Project Scope'!$BC41))","v":""},{"$f":"IF('Project Scope'!$C41=\"\",\"\",SUM('Project Scope'!$BH41, 'Project Scope'!$AZ41,(IF(ISNUMBER('Project Scope'!$BA41),'Project Scope'!$BA41,0)*'Project Information'!$D$12)))","v":""},null,null,{"$f":"IF('Project Scope'!$C41=\"\",\"\",IF($J41<=0,0,(SUMPRODUCT($AV41:$BC41,--($AV41:$BC41>0))+$BE41)*$DK41/((-SUMPRODUCT($AV41:$BC41,--($AV41:$BC41<0))+$BG41+$BH41+$BI41)*$DK41)))","v":""},{"$f":"IF('Project Scope'!$C41=\"\",\"\",IF($K41<=0,0,(SUMPRODUCT($CT41:$DA41,--($CT41:$DA41>0))+$DC41)*$DK41/((-SUMPRODUCT($CT41:$DA41,--($CT41:$DA41<0))+$DE41+$DF41+$DG41)*$DK41)))","v":""},{"$f":"IF('Project Scope'!$C41=\"\",\"\",IF(AND($J41<=0,$K41<=0),0,(SUMPRODUCT($AV41:$BC41,--($AV41:$BC41>0))+$BE41+SUMPRODUCT($CT41:$DA41,--($CT41:$DA41>0))+$DC41)*$DK41/((-SUMPRODUCT($AV41:$BC41,--($AV41:$BC41<0))+$BG41+$BH41+$BI41-SUMPRODUCT($CT41:$DA41,--($CT41:$DA41<0))+$DE41+$DF41+$DG41)*$DK41)))","v":""},{"$f":"IF('Project Scope'!$C41=\"\",\"\",IF(NetOrGross=\"Net\",(1-Z41+AA41),1))","v":""}]
[{"$f":"'Project Scope'!$B42","v":35},{"$f":"IF('Project Scope'!$C42=\"\",\"\",'Project Scope'!$C42)","v":""},{"$f":"IF('Project Scope'!$C42=\"\",\"\",'Project Scope'!$H42)","v":""},{"$f":"IF(ISNUMBER(SEARCH(\"Bay\",'Project Scope'!$Q42)),\"Bay\",IF('Project Scope'!C42=\"\",\"\",'Project Scope'!E42))","v":""},{"$f":"IF('Project Scope'!$C42=\"\",\"\",\"Com\")","v":""},{"$f":"IF('Project Scope'!$C42=\"\",\"\",'Project Scope'!$L42)","v":""},{"$f":"IF('Project Scope'!$C42=\"\",\"\",IF('Project Scope'!$CJ42=\"\",0,'Project Scope'!$CJ42))","v":""},{"$f":"IF('Project Scope'!$C42=\"\",\"\",IF('Project Scope'!$N42=\"\",0,'Project Scope'!$N42))","v":""},{"$f":"IF('Project Scope'!$C42=\"\",\"\",IF('Project Scope'!$CK42=\"\",0,'Project Scope'!$CK42))","v":""},{"$f":"IF('Project Scope'!$C42=\"\",\"\",IF('Project Scope'!$AO42=\"\",0,'Project Scope'!$AO42))","v":""},{"$f":"IF('Project Scope'!$C42=\"\",\"\",IF('Project Scope'!$AX42=\"\",0,'Project Scope'!$AX42))","v":""},{"$f":"IF('Project Scope'!$C42=\"\",\"\",IF('Project Scope'!$M42=\"\",0,'Project Scope'!$M42))","v":""},{"$f":"IF('Project Scope'!$C42=\"\",\"\",IF(COUNTIF('CBAT Lookups'!$B$5:$B$12,\"Fixtures-\"&CBAT!$D42)=1,VLOOKUP(\"Fixtures-\"&CBAT!$D42,'CBAT Lookups'!$B$5:$L$12,11),0))","v":""},{"$f":"IF('Project Scope'!$C42=\"\",\"\",(IF(COUNTIF('CBAT Lookups'!$B$5:$B$12,\"Fixtures-\"&CBAT!$D42)=1,VLOOKUP(\"Fixtures-\"&CBAT!$D42,'CBAT Lookups'!$B$5:$K$12,2),0))*VLOOKUP($F42,'CBAT Lookups'!$B$17:$K$19,2))","v":""},{"$f":"IF('Project Scope'!$C42=\"\",\"\",(IF(COUNTIF('CBAT Lookups'!$B$5:$B$12,\"Fixtures-\"&CBAT!$D42)=1,VLOOKUP(\"Fixtures-\"&CBAT!$D42,'CBAT Lookups'!$B$5:$K$12,3),0))*VLOOKUP($F42,'CBAT Lookups'!$B$17:$K$19,3))","v":""},{"$f":"IF('Project Scope'!$C42=\"\",\"\",(IF(COUNTIF('CBAT Lookups'!$B$5:$B$12,\"Fixtures-\"&CBAT!$D42)=1,VLOOKUP(\"Fixtures-\"&CBAT!$D42,'CBAT Lookups'!$B$5:$K$12,4),0)))","v":""},{"$f":"IF('Project Scope'!$C42=\"\",\"\",(IF(COUNTIF('CBAT Lookups'!$B$5:$B$12,\"Fixtures-\"&CBAT!$D42)=1,VLOOKUP(\"Fixtures-\"&CBAT!$D42,'CBAT Lookups'!$B$5:$K$12,5),0)))","v":""},{"$f":"IF('Project Scope'!$C42=\"\",\"\",(IF(COUNTIF('CBAT Lookups'!$B$5:$B$12,\"Fixtures-\"&CBAT!$D42)=1,VLOOKUP(\"Fixtures-\"&CBAT!$D42,'CBAT Lookups'!$B$5:$K$12,6),0)))","v":""},{"$f":"IF('Project Scope'!$C42=\"\",\"\",IF(COUNTIF('CBAT Lookups'!$B$5:$B$12,\"Fixtures-\"&CBAT!$D42)=1,VLOOKUP(\"Fixtures-\"&CBAT!$D42,'CBAT Lookups'!$B$5:$K$12,7),0))","v":""},{"$f":"IF('Project Scope'!$C42=\"\",\"\",IF(VLOOKUP($F42,'CBAT Lookups'!$B$17:$K$19,8)=\"W\",1,IF(COUNTIF('CBAT Lookups'!$B$5:$B$12,\"Fixtures-\"&CBAT!$D42)=1,VLOOKUP(\"Fixtures-\"&CBAT!$D42,'CBAT Lookups'!$B$5:$K$12,8),0)*VLOOKUP($F42,'CBAT Lookups'!$B$17:$K$19,8)))","v":""},{"$f":"IF('Project Scope'!$C42=\"\",\"\",IF(VLOOKUP($F42,'CBAT Lookups'!$B$17:$K$19,9)=\"W\",1,IF(COUNTIF('CBAT Lookups'!$B$5:$B$12,\"Fixtures-\"&CBAT!$D42)=1,VLOOKUP(\"Fixtures-\"&CBAT!$D42,'CBAT Lookups'!$B$5:$K$12,9),0)*VLOOKUP($F42,'CBAT Lookups'!$B$17:$K$19,9)))","v":""},{"$f":"IF('Project Scope'!$C42=\"\",\"\",IF(COUNTIF('CBAT Lookups'!$B$5:$B$12,\"Fixtures-\"&CBAT!$D42)=1,VLOOKUP(\"Fixtures-\"&CBAT!$D42,'CBAT Lookups'!$B$5:$K$12,10),0)*VLOOKUP($F42,'CBAT Lookups'!$B$17:$K$19,10))","v":""},{"$f":"IF('Project Scope'!$C42=\"\",\"\",IF(COUNTIF('CBAT Lookups'!$B$5:$B$12,\"Fixtures-\"&CBAT!$D42)=1,VLOOKUP(\"Fixtures-\"&CBAT!$D42,'CBAT Lookups'!$B$5:$O$12,12),0))","v":""},{"$f":"IF('Project Scope'!$C42=\"\",\"\",IF(COUNTIF('CBAT Lookups'!$B$5:$B$12,\"Fixtures-\"&CBAT!$D42)=1,VLOOKUP(\"Fixtures-\"&CBAT!$D42,'CBAT Lookups'!$B$5:$O$12,13),0))","v":""},{"$f":"IF('Project Scope'!$C42=\"\",\"\",IF(COUNTIF('CBAT Lookups'!$B$5:$B$12,\"Fixtures-\"&CBAT!$D42)=1,VLOOKUP(\"Fixtures-\"&CBAT!$D42,'CBAT Lookups'!$B$5:$O$12,14),0))","v":""},{"$f":"IF('Project Scope'!$C42=\"\",\"\",'TRM Data'!$U$3)","v":""},{"$f":"IF('Project Scope'!$C42=\"\",\"\",'TRM Data'!$V$3)","v":""},{"$f":"IF('Project Scope'!$C42=\"\",\"\",IF($J42<=0,0,MAX(0,(($G42*$H42/1000)-($I42*$J42/1000))*$L42)*$U42)+($AF42/0.003412))","v":""},{"$f":"IF('Project Scope'!$C42=\"\",\"\",IF($J42<=0,0,MAX(0,(($G42*$H42/1000)-($I42*$J42/1000)))*$T42))","v":""},{"$f":"IF('Project Scope'!$C42=\"\",\"\",IF($J42<=0,0,MAX(0,(($G42*$H42/1000)-($I42*$J42/1000))*$N42)))","v":""},{"$f":"IF('Project Scope'!$C42=\"\",\"\",IF($J42<=0,0,MAX(0,(($G42*$H42/1000)-($I42*$J42/1000))*$O42)*$T42))","v":""},{"$f":"IF('Project Scope'!$C42=\"\",\"\",IF(OR($J42<=0,'Project Information'!$D$44=\"\"),0,-1*MAX(0,(($G42*$H42/1000)-($I42*$J42/1000))*$L42)*$V42*VLOOKUP('Project Information'!$D$44,'CBAT Lookups'!$A$23:$H$30,2)))","v":""},{"$f":"IF('Project Scope'!$C42=\"\",\"\",IF(OR($J42<=0,'Project Information'!$D$44=\"\"),0,-1*MAX(0,(($G42*$H42/1000)-($I42*$J42/1000))*$L42)*$V42*VLOOKUP('Project Information'!$D$44,'CBAT Lookups'!$A$23:$H$30,3)))","v":""},{"$f":"IF('Project Scope'!$C42=\"\",\"\",IF(OR($J42<=0,'Project Information'!$D$44=\"\"),0,-1*MAX(0,(($G42*$H42/1000)-($I42*$J42/1000))*$L42)*$V42*VLOOKUP('Project Information'!$D$44,'CBAT Lookups'!$A$23:$H$30,4)))","v":""},{"$f":"IF('Project Scope'!$C42=\"\",\"\",IF(OR($J42<=0,'Project Information'!$D$44=\"\"),0,-1*MAX(0,(($G42*$H42/1000)-($I42*$J42/1000))*$L42)*$V42*VLOOKUP('Project Information'!$D$44,'CBAT Lookups'!$A$23:$H$30,5)))","v":""},{"$f":"IF('Project Scope'!$C42=\"\",\"\",IF(OR($J42<=0,'Project Information'!$D$44=\"\"),0,-1*MAX(0,(($G42*$H42/1000)-($I42*$J42/1000))*$L42)*$V42*VLOOKUP('Project Information'!$D$44,'CBAT Lookups'!$A$23:$H$30,6)))","v":""},{"$f":"IF('Project Scope'!$C42=\"\",\"\",IF(OR($J42<=0,'Project Information'!$D$44=\"\"),0,-1*MAX(0,(($G42*$H42/1000)-($I42*$J42/1000))*$L42)*$V42*VLOOKUP('Project Information'!$D$44,'CBAT Lookups'!$A$23:$H$30,7)))","v":""},{"$f":"IF('Project Scope'!$C42=\"\",\"\",IF(OR($J42<=0,'Project Information'!$D$44=\"\"),0,-1*MAX(0,(($G42*$H42/1000)-($I42*$J42/1000))*$L42)*$V42*VLOOKUP('Project Information'!$D$44,'CBAT Lookups'!$A$23:$H$30,8)))","v":""},null,{"$f":"IF('Project Scope'!$C42=\"\",\"\",VLOOKUP($F42,'CBAT Lookups'!$B$17:$K$19,4))","v":""},{"$f":"IF('Project Scope'!$C42=\"\",\"\",VLOOKUP($F42,'CBAT Lookups'!$B$17:$K$19,5))","v":""},{"$f":"IF('Project Scope'!$C42=\"\",\"\",VLOOKUP($F42,'CBAT Lookups'!$B$17:$K$19,6))","v":""},{"$f":"IF('Project Scope'!$C42=\"\",\"\",VLOOKUP($F42,'CBAT Lookups'!$B$17:$K$19,7))","v":""},{"$f":"IF('Project Scope'!$C42=\"\",\"\",IF(SUMPRODUCT($P42:$S42,$AN42:$AQ42)=0,0,P42*AN42/SUMPRODUCT($P42:$S42,$AN42:$AQ42)))","v":""},{"$f":"IF('Project Scope'!$C42=\"\",\"\",IF(SUMPRODUCT($P42:$S42,$AN42:$AQ42)=0,0,Q42*AO42/SUMPRODUCT($P42:$S42,$AN42:$AQ42)))","v":""},{"$f":"IF('Project Scope'!$C42=\"\",\"\",IF(SUMPRODUCT($P42:$S42,$AN42:$AQ42)=0,0,R42*AP42/SUMPRODUCT($P42:$S42,$AN42:$AQ42)))","v":""},{"$f":"IF('Project Scope'!$C42=\"\",\"\",IF(SUMPRODUCT($P42:$S42,$AN42:$AQ42)=0,0,S42*AQ42/SUMPRODUCT($P42:$S42,$AN42:$AQ42)))","v":""},{"$f":"IF('Project Scope'!$C42=\"\",\"\",Benefits($AB42,$AD42,$AE42,$AG42,$AH42,$AI42,$AJ42,$AK42,$AL42,$AM42,$M42,$AR42,$AS42,$AT42,$AU42,$W42,$X42,$Y42,$Z42,$AA42,$E42))","v":""},"","","","","","","","",null,{"$f":"IF('Project Scope'!$C42=\"\",\"\",SUM('Project Scope'!$AT42,'Project Scope'!$AU42))","v":""},{"$f":"IF('Project Scope'!$C42=\"\",\"\",SUM('Project Scope'!$BG42, 'Project Scope'!$AR42,(IF(ISNUMBER('Project Scope'!$AS42),'Project Scope'!$AS42,0)*'Project Information'!$D$12)))","v":""},null,null,{"$f":"IF('Project Scope'!$C42=\"\",\"\",IF(COUNTIF('CBAT Lookups'!$B$5:$B$12,\"Controls-\"&CBAT!$D42)=1,VLOOKUP(\"Controls-\"&CBAT!$D42,'CBAT Lookups'!$B$5:$L$12,11),0))","v":""},{"$f":"IF('Project Scope'!$C42=\"\",\"\",IF(COUNTIF('CBAT Lookups'!$B$5:$B$12,\"Controls-\"&CBAT!$D42)=1,VLOOKUP(\"Controls-\"&CBAT!$D42,'CBAT Lookups'!$B$5:$K$12,2),0)*VLOOKUP($F42,'CBAT Lookups'!$B$17:$K$19,2))","v":""},{"$f":"IF('Project Scope'!$C42=\"\",\"\",IF(COUNTIF('CBAT Lookups'!$B$5:$B$12,\"Controls-\"&CBAT!$D42)=1,VLOOKUP(\"Controls-\"&CBAT!$D42,'CBAT Lookups'!$B$5:$K$12,3),0)*VLOOKUP($F42,'CBAT Lookups'!$B$17:$K$19,3))","v":""},{"$f":"IF('Project Scope'!$C42=\"\",\"\",IF(COUNTIF('CBAT Lookups'!$B$5:$B$12,\"Controls-\"&CBAT!$D42)=1,VLOOKUP(\"Controls-\"&CBAT!$D42,'CBAT Lookups'!$B$5:$K$12,4),0))","v":""},{"$f":"IF('Project Scope'!$C42=\"\",\"\",IF(COUNTIF('CBAT Lookups'!$B$5:$B$12,\"Controls-\"&CBAT!$D42)=1,VLOOKUP(\"Controls-\"&CBAT!$D42,'CBAT Lookups'!$B$5:$K$12,5),0))","v":""},{"$f":"IF('Project Scope'!$C42=\"\",\"\",IF(COUNTIF('CBAT Lookups'!$B$5:$B$12,\"Controls-\"&CBAT!$D42)=1,VLOOKUP(\"Controls-\"&CBAT!$D42,'CBAT Lookups'!$B$5:$K$12,6),0))","v":""},{"$f":"IF('Project Scope'!$C42=\"\",\"\",IF(COUNTIF('CBAT Lookups'!$B$5:$B$12,\"Controls-\"&CBAT!$D42)=1,VLOOKUP(\"Controls-\"&CBAT!$D42,'CBAT Lookups'!$B$5:$K$12,7),0))","v":""},{"$f":"IF('Project Scope'!$C42=\"\",\"\",IF(VLOOKUP($F42,'CBAT Lookups'!$B$17:$K$19,8)=\"W\",1,IF(COUNTIF('CBAT Lookups'!$B$5:$B$12,\"Controls-\"&CBAT!$D42)=1,VLOOKUP(\"Controls-\"&CBAT!$D42,'CBAT Lookups'!$B$5:$K$12,8),0)*VLOOKUP($F42,'CBAT Lookups'!$B$17:$K$19,8)))","v":""},{"$f":"IF('Project Scope'!$C42=\"\",\"\",IF(VLOOKUP($F42,'CBAT Lookups'!$B$17:$K$19,9)=\"W\",1,IF(COUNTIF('CBAT Lookups'!$B$5:$B$12,\"Controls-\"&CBAT!$D42)=1,VLOOKUP(\"Controls-\"&CBAT!$D42,'CBAT Lookups'!$B$5:$K$12,9),0)*VLOOKUP($F42,'CBAT Lookups'!$B$17:$K$19,9)))","v":""},{"$f":"IF('Project Scope'!$C42=\"\",\"\",IF(COUNTIF('CBAT Lookups'!$B$5:$B$12,\"Controls-\"&CBAT!$D42)=1,VLOOKUP(\"Controls-\"&CBAT!$D42,'CBAT Lookups'!$B$5:$K$12,10),0)*VLOOKUP($F42,'CBAT Lookups'!$B$17:$K$19,10))","v":""},{"$f":"IF('Project Scope'!$C42=\"\",\"\",VLOOKUP($C42,'CBAT Lookups'!$A$33:$B$57,2))","v":""},{"$f":"IF('Project Scope'!$C42=\"\",\"\",IF(COUNTIF('CBAT Lookups'!$B$5:$B$12,\"Controls-\"&CBAT!$D42)=1,VLOOKUP(\"Controls-\"&CBAT!$D42,'CBAT Lookups'!$B$5:$O$12,12),0))","v":""},{"$f":"IF('Project Scope'!$C42=\"\",\"\",IF(COUNTIF('CBAT Lookups'!$B$5:$B$12,\"Controls-\"&CBAT!$D42)=1,VLOOKUP(\"Controls-\"&CBAT!$D42,'CBAT Lookups'!$B$5:$O$12,13),0))","v":""},{"$f":"IF('Project Scope'!$C42=\"\",\"\",IF(COUNTIF('CBAT Lookups'!$B$5:$B$12,\"Controls-\"&CBAT!$D42)=1,VLOOKUP(\"Controls-\"&CBAT!$D42,'CBAT Lookups'!$B$5:$O$12,14),0))","v":""},{"$f":"IF('Project Scope'!$C42=\"\",\"\",'TRM Data'!$U$3)","v":""},{"$f":"IF('Project Scope'!$C42=\"\",\"\",'TRM Data'!$V$3)","v":""},{"$f":"IF('Project Scope'!$C42=\"\",\"\",IF($K42<=0,0,MAX(0,(IF(AND($I42>0,$J42>0),($I42*$J42)/1000,($G42*$H42)/1000)*$L42))*$BT42*$BR42)+($CD42/0.003412))","v":""},{"$f":"IF('Project Scope'!$C42=\"\",\"\",IF($K42<=0,0,MAX(0,IF(AND($I42>0,$J42>0),($I42*$J42)/1000,($G42*$H42)/1000))*$BQ42))","v":""},{"$f":"IF('Project Scope'!$C42=\"\",\"\",IF($K42<=0,0,MAX(0,IF(AND($I42>0,$J42>0),($I42*$J42)/1000,($G42*$H42)/1000))*$BK42))","v":""},{"$f":"IF('Project Scope'!$C42=\"\",\"\",IF($K42<=0,0,MAX(0,IF(AND($I42>0,$J42>0),($I42*$J42)/1000,($G42*$H42)/1000))*$BL42*$BQ42))","v":""},{"$f":"IF('Project Scope'!$C42=\"\",\"\",IF(OR($K42<=0,'Project Information'!$D$44=\"\"),0,-1*MAX(0,IF(AND($I42>0,$J42>0),($I42*$J42)/1000,($G42*$H42)/1000))*$BT42*$L42*$BS42*VLOOKUP('Project Information'!$D$44,'CBAT Lookups'!$A$23:$H$30,2)))","v":""},{"$f":"IF('Project Scope'!$C42=\"\",\"\",IF(OR($K42<=0,'Project Information'!$D$44=\"\"),0,-1*MAX(0,IF(AND($I42>0,$J42>0),($I42*$J42)/1000,($G42*$H42)/1000))*$BT42*$L42*$BS42*VLOOKUP('Project Information'!$D$44,'CBAT Lookups'!$A$23:$H$30,3)))","v":""},{"$f":"IF('Project Scope'!$C42=\"\",\"\",IF(OR($K42<=0,'Project Information'!$D$44=\"\"),0,-1*MAX(0,IF(AND($I42>0,$J42>0),($I42*$J42)/1000,($G42*$H42)/1000))*$BT42*$L42*$BS42*VLOOKUP('Project Information'!$D$44,'CBAT Lookups'!$A$23:$H$30,4)))","v":""},{"$f":"IF('Project Scope'!$C42=\"\",\"\",IF(OR($K42<=0,'Project Information'!$D$44=\"\"),0,-1*MAX(0,IF(AND($I42>0,$J42>0),($I42*$J42)/1000,($G42*$H42)/1000))*$BT42*$L42*$BS42*VLOOKUP('Project Information'!$D$44,'CBAT Lookups'!$A$23:$H$30,5)))","v":""},{"$f":"IF('Project Scope'!$C42=\"\",\"\",IF(OR($K42<=0,'Project Information'!$D$44=\"\"),0,-1*MAX(0,IF(AND($I42>0,$J42>0),($I42*$J42)/1000,($G42*$H42)/1000))*$BT42*$L42*$BS42*VLOOKUP('Project Information'!$D$44,'CBAT Lookups'!$A$23:$H$30,6)))","v":""},{"$f":"IF('Project Scope'!$C42=\"\",\"\",IF(OR($K42<=0,'Project Information'!$D$44=\"\"),0,-1*MAX(0,IF(AND($I42>0,$J42>0),($I42*$J42)/1000,($G42*$H42)/1000))*$BT42*$L42*$BS42*VLOOKUP('Project Information'!$D$44,'CBAT Lookups'!$A$23:$H$30,7)))","v":""},{"$f":"IF('Project Scope'!$C42=\"\",\"\",IF(OR($K42<=0,'Project Information'!$D$44=\"\"),0,-1*MAX(0,IF(AND($I42>0,$J42>0),($I42*$J42)/1000,($G42*$H42)/1000))*$BT42*$L42*$BS42*VLOOKUP('Project Information'!$D$44,'CBAT Lookups'!$A$23:$H$30,8)))","v":""},null,{"$f":"IF('Project Scope'!$C42=\"\",\"\",VLOOKUP($F42,'CBAT Lookups'!$B$17:$K$19,4))","v":""},{"$f":"IF('Project Scope'!$C42=\"\",\"\",VLOOKUP($F42,'CBAT Lookups'!$B$17:$K$19,5))","v":""},{"$f":"IF('Project Scope'!$C42=\"\",\"\",VLOOKUP($F42,'CBAT Lookups'!$B$17:$K$19,6))","v":""},{"$f":"IF('Project Scope'!$C42=\"\",\"\",VLOOKUP($F42,'CBAT Lookups'!$B$17:$K$19,7))","v":""},{"$f":"IF('Project Scope'!$C42=\"\",\"\",IF(SUMPRODUCT($BM42:$BP42,$CL42:$CO42)=0,0,BM42*CL42/SUMPRODUCT($BM42:$BP42,$CL42:$CO42)))","v":""},{"$f":"IF('Project Scope'!$C42=\"\",\"\",IF(SUMPRODUCT($BM42:$BP42,$CL42:$CO42)=0,0,BN42*CM42/SUMPRODUCT($BM42:$BP42,$CL42:$CO42)))","v":""},{"$f":"IF('Project Scope'!$C42=\"\",\"\",IF(SUMPRODUCT($BM42:$BP42,$CL42:$CO42)=0,0,BO42*CN42/SUMPRODUCT($BM42:$BP42,$CL42:$CO42)))","v":""},{"$f":"IF('Project Scope'!$C42=\"\",\"\",IF(SUMPRODUCT($BM42:$BP42,$CL42:$CO42)=0,0,BP42*CO42/SUMPRODUCT($BM42:$BP42,$CL42:$CO42)))","v":""},{"$f":"IF('Project Scope'!$C42=\"\",\"\",Benefits($BZ42,$CB42,$CC42,$CE42,$CF42,$CG42,$CH42,$CI42,$CJ42,$CK42,$BJ42,$CP42,$CQ42,$CR42,$CS42,$BU42,$BV42,$BW42,$BX42,$BY42,$E42))","v":""},"","","","","","","","",null,{"$f":"IF('Project Scope'!$C42=\"\",\"\",SUM('Project Scope'!$BB42,'Project Scope'!$BC42))","v":""},{"$f":"IF('Project Scope'!$C42=\"\",\"\",SUM('Project Scope'!$BH42, 'Project Scope'!$AZ42,(IF(ISNUMBER('Project Scope'!$BA42),'Project Scope'!$BA42,0)*'Project Information'!$D$12)))","v":""},null,null,{"$f":"IF('Project Scope'!$C42=\"\",\"\",IF($J42<=0,0,(SUMPRODUCT($AV42:$BC42,--($AV42:$BC42>0))+$BE42)*$DK42/((-SUMPRODUCT($AV42:$BC42,--($AV42:$BC42<0))+$BG42+$BH42+$BI42)*$DK42)))","v":""},{"$f":"IF('Project Scope'!$C42=\"\",\"\",IF($K42<=0,0,(SUMPRODUCT($CT42:$DA42,--($CT42:$DA42>0))+$DC42)*$DK42/((-SUMPRODUCT($CT42:$DA42,--($CT42:$DA42<0))+$DE42+$DF42+$DG42)*$DK42)))","v":""},{"$f":"IF('Project Scope'!$C42=\"\",\"\",IF(AND($J42<=0,$K42<=0),0,(SUMPRODUCT($AV42:$BC42,--($AV42:$BC42>0))+$BE42+SUMPRODUCT($CT42:$DA42,--($CT42:$DA42>0))+$DC42)*$DK42/((-SUMPRODUCT($AV42:$BC42,--($AV42:$BC42<0))+$BG42+$BH42+$BI42-SUMPRODUCT($CT42:$DA42,--($CT42:$DA42<0))+$DE42+$DF42+$DG42)*$DK42)))","v":""},{"$f":"IF('Project Scope'!$C42=\"\",\"\",IF(NetOrGross=\"Net\",(1-Z42+AA42),1))","v":""}]
[{"$f":"'Project Scope'!$B43","v":36},{"$f":"IF('Project Scope'!$C43=\"\",\"\",'Project Scope'!$C43)","v":""},{"$f":"IF('Project Scope'!$C43=\"\",\"\",'Project Scope'!$H43)","v":""},{"$f":"IF(ISNUMBER(SEARCH(\"Bay\",'Project Scope'!$Q43)),\"Bay\",IF('Project Scope'!C43=\"\",\"\",'Project Scope'!E43))","v":""},{"$f":"IF('Project Scope'!$C43=\"\",\"\",\"Com\")","v":""},{"$f":"IF('Project Scope'!$C43=\"\",\"\",'Project Scope'!$L43)","v":""},{"$f":"IF('Project Scope'!$C43=\"\",\"\",IF('Project Scope'!$CJ43=\"\",0,'Project Scope'!$CJ43))","v":""},{"$f":"IF('Project Scope'!$C43=\"\",\"\",IF('Project Scope'!$N43=\"\",0,'Project Scope'!$N43))","v":""},{"$f":"IF('Project Scope'!$C43=\"\",\"\",IF('Project Scope'!$CK43=\"\",0,'Project Scope'!$CK43))","v":""},{"$f":"IF('Project Scope'!$C43=\"\",\"\",IF('Project Scope'!$AO43=\"\",0,'Project Scope'!$AO43))","v":""},{"$f":"IF('Project Scope'!$C43=\"\",\"\",IF('Project Scope'!$AX43=\"\",0,'Project Scope'!$AX43))","v":""},{"$f":"IF('Project Scope'!$C43=\"\",\"\",IF('Project Scope'!$M43=\"\",0,'Project Scope'!$M43))","v":""},{"$f":"IF('Project Scope'!$C43=\"\",\"\",IF(COUNTIF('CBAT Lookups'!$B$5:$B$12,\"Fixtures-\"&CBAT!$D43)=1,VLOOKUP(\"Fixtures-\"&CBAT!$D43,'CBAT Lookups'!$B$5:$L$12,11),0))","v":""},{"$f":"IF('Project Scope'!$C43=\"\",\"\",(IF(COUNTIF('CBAT Lookups'!$B$5:$B$12,\"Fixtures-\"&CBAT!$D43)=1,VLOOKUP(\"Fixtures-\"&CBAT!$D43,'CBAT Lookups'!$B$5:$K$12,2),0))*VLOOKUP($F43,'CBAT Lookups'!$B$17:$K$19,2))","v":""},{"$f":"IF('Project Scope'!$C43=\"\",\"\",(IF(COUNTIF('CBAT Lookups'!$B$5:$B$12,\"Fixtures-\"&CBAT!$D43)=1,VLOOKUP(\"Fixtures-\"&CBAT!$D43,'CBAT Lookups'!$B$5:$K$12,3),0))*VLOOKUP($F43,'CBAT Lookups'!$B$17:$K$19,3))","v":""},{"$f":"IF('Project Scope'!$C43=\"\",\"\",(IF(COUNTIF('CBAT Lookups'!$B$5:$B$12,\"Fixtures-\"&CBAT!$D43)=1,VLOOKUP(\"Fixtures-\"&CBAT!$D43,'CBAT Lookups'!$B$5:$K$12,4),0)))","v":""},{"$f":"IF('Project Scope'!$C43=\"\",\"\",(IF(COUNTIF('CBAT Lookups'!$B$5:$B$12,\"Fixtures-\"&CBAT!$D43)=1,VLOOKUP(\"Fixtures-\"&CBAT!$D43,'CBAT Lookups'!$B$5:$K$12,5),0)))","v":""},{"$f":"IF('Project Scope'!$C43=\"\",\"\",(IF(COUNTIF('CBAT Lookups'!$B$5:$B$12,\"Fixtures-\"&CBAT!$D43)=1,VLOOKUP(\"Fixtures-\"&CBAT!$D43,'CBAT Lookups'!$B$5:$K$12,6),0)))","v":""},{"$f":"IF('Project Scope'!$C43=\"\",\"\",IF(COUNTIF('CBAT Lookups'!$B$5:$B$12,\"Fixtures-\"&CBAT!$D43)=1,VLOOKUP(\"Fixtures-\"&CBAT!$D43,'CBAT Lookups'!$B$5:$K$12,7),0))","v":""},{"$f":"IF('Project Scope'!$C43=\"\",\"\",IF(VLOOKUP($F43,'CBAT Lookups'!$B$17:$K$19,8)=\"W\",1,IF(COUNTIF('CBAT Lookups'!$B$5:$B$12,\"Fixtures-\"&CBAT!$D43)=1,VLOOKUP(\"Fixtures-\"&CBAT!$D43,'CBAT Lookups'!$B$5:$K$12,8),0)*VLOOKUP($F43,'CBAT Lookups'!$B$17:$K$19,8)))","v":""},{"$f":"IF('Project Scope'!$C43=\"\",\"\",IF(VLOOKUP($F43,'CBAT Lookups'!$B$17:$K$19,9)=\"W\",1,IF(COUNTIF('CBAT Lookups'!$B$5:$B$12,\"Fixtures-\"&CBAT!$D43)=1,VLOOKUP(\"Fixtures-\"&CBAT!$D43,'CBAT Lookups'!$B$5:$K$12,9),0)*VLOOKUP($F43,'CBAT Lookups'!$B$17:$K$19,9)))","v":""},{"$f":"IF('Project Scope'!$C43=\"\",\"\",IF(COUNTIF('CBAT Lookups'!$B$5:$B$12,\"Fixtures-\"&CBAT!$D43)=1,VLOOKUP(\"Fixtures-\"&CBAT!$D43,'CBAT Lookups'!$B$5:$K$12,10),0)*VLOOKUP($F43,'CBAT Lookups'!$B$17:$K$19,10))","v":""},{"$f":"IF('Project Scope'!$C43=\"\",\"\",IF(COUNTIF('CBAT Lookups'!$B$5:$B$12,\"Fixtures-\"&CBAT!$D43)=1,VLOOKUP(\"Fixtures-\"&CBAT!$D43,'CBAT Lookups'!$B$5:$O$12,12),0))","v":""},{"$f":"IF('Project Scope'!$C43=\"\",\"\",IF(COUNTIF('CBAT Lookups'!$B$5:$B$12,\"Fixtures-\"&CBAT!$D43)=1,VLOOKUP(\"Fixtures-\"&CBAT!$D43,'CBAT Lookups'!$B$5:$O$12,13),0))","v":""},{"$f":"IF('Project Scope'!$C43=\"\",\"\",IF(COUNTIF('CBAT Lookups'!$B$5:$B$12,\"Fixtures-\"&CBAT!$D43)=1,VLOOKUP(\"Fixtures-\"&CBAT!$D43,'CBAT Lookups'!$B$5:$O$12,14),0))","v":""},{"$f":"IF('Project Scope'!$C43=\"\",\"\",'TRM Data'!$U$3)","v":""},{"$f":"IF('Project Scope'!$C43=\"\",\"\",'TRM Data'!$V$3)","v":""},{"$f":"IF('Project Scope'!$C43=\"\",\"\",IF($J43<=0,0,MAX(0,(($G43*$H43/1000)-($I43*$J43/1000))*$L43)*$U43)+($AF43/0.003412))","v":""},{"$f":"IF('Project Scope'!$C43=\"\",\"\",IF($J43<=0,0,MAX(0,(($G43*$H43/1000)-($I43*$J43/1000)))*$T43))","v":""},{"$f":"IF('Project Scope'!$C43=\"\",\"\",IF($J43<=0,0,MAX(0,(($G43*$H43/1000)-($I43*$J43/1000))*$N43)))","v":""},{"$f":"IF('Project Scope'!$C43=\"\",\"\",IF($J43<=0,0,MAX(0,(($G43*$H43/1000)-($I43*$J43/1000))*$O43)*$T43))","v":""},{"$f":"IF('Project Scope'!$C43=\"\",\"\",IF(OR($J43<=0,'Project Information'!$D$44=\"\"),0,-1*MAX(0,(($G43*$H43/1000)-($I43*$J43/1000))*$L43)*$V43*VLOOKUP('Project Information'!$D$44,'CBAT Lookups'!$A$23:$H$30,2)))","v":""},{"$f":"IF('Project Scope'!$C43=\"\",\"\",IF(OR($J43<=0,'Project Information'!$D$44=\"\"),0,-1*MAX(0,(($G43*$H43/1000)-($I43*$J43/1000))*$L43)*$V43*VLOOKUP('Project Information'!$D$44,'CBAT Lookups'!$A$23:$H$30,3)))","v":""},{"$f":"IF('Project Scope'!$C43=\"\",\"\",IF(OR($J43<=0,'Project Information'!$D$44=\"\"),0,-1*MAX(0,(($G43*$H43/1000)-($I43*$J43/1000))*$L43)*$V43*VLOOKUP('Project Information'!$D$44,'CBAT Lookups'!$A$23:$H$30,4)))","v":""},{"$f":"IF('Project Scope'!$C43=\"\",\"\",IF(OR($J43<=0,'Project Information'!$D$44=\"\"),0,-1*MAX(0,(($G43*$H43/1000)-($I43*$J43/1000))*$L43)*$V43*VLOOKUP('Project Information'!$D$44,'CBAT Lookups'!$A$23:$H$30,5)))","v":""},{"$f":"IF('Project Scope'!$C43=\"\",\"\",IF(OR($J43<=0,'Project Information'!$D$44=\"\"),0,-1*MAX(0,(($G43*$H43/1000)-($I43*$J43/1000))*$L43)*$V43*VLOOKUP('Project Information'!$D$44,'CBAT Lookups'!$A$23:$H$30,6)))","v":""},{"$f":"IF('Project Scope'!$C43=\"\",\"\",IF(OR($J43<=0,'Project Information'!$D$44=\"\"),0,-1*MAX(0,(($G43*$H43/1000)-($I43*$J43/1000))*$L43)*$V43*VLOOKUP('Project Information'!$D$44,'CBAT Lookups'!$A$23:$H$30,7)))","v":""},{"$f":"IF('Project Scope'!$C43=\"\",\"\",IF(OR($J43<=0,'Project Information'!$D$44=\"\"),0,-1*MAX(0,(($G43*$H43/1000)-($I43*$J43/1000))*$L43)*$V43*VLOOKUP('Project Information'!$D$44,'CBAT Lookups'!$A$23:$H$30,8)))","v":""},null,{"$f":"IF('Project Scope'!$C43=\"\",\"\",VLOOKUP($F43,'CBAT Lookups'!$B$17:$K$19,4))","v":""},{"$f":"IF('Project Scope'!$C43=\"\",\"\",VLOOKUP($F43,'CBAT Lookups'!$B$17:$K$19,5))","v":""},{"$f":"IF('Project Scope'!$C43=\"\",\"\",VLOOKUP($F43,'CBAT Lookups'!$B$17:$K$19,6))","v":""},{"$f":"IF('Project Scope'!$C43=\"\",\"\",VLOOKUP($F43,'CBAT Lookups'!$B$17:$K$19,7))","v":""},{"$f":"IF('Project Scope'!$C43=\"\",\"\",IF(SUMPRODUCT($P43:$S43,$AN43:$AQ43)=0,0,P43*AN43/SUMPRODUCT($P43:$S43,$AN43:$AQ43)))","v":""},{"$f":"IF('Project Scope'!$C43=\"\",\"\",IF(SUMPRODUCT($P43:$S43,$AN43:$AQ43)=0,0,Q43*AO43/SUMPRODUCT($P43:$S43,$AN43:$AQ43)))","v":""},{"$f":"IF('Project Scope'!$C43=\"\",\"\",IF(SUMPRODUCT($P43:$S43,$AN43:$AQ43)=0,0,R43*AP43/SUMPRODUCT($P43:$S43,$AN43:$AQ43)))","v":""},{"$f":"IF('Project Scope'!$C43=\"\",\"\",IF(SUMPRODUCT($P43:$S43,$AN43:$AQ43)=0,0,S43*AQ43/SUMPRODUCT($P43:$S43,$AN43:$AQ43)))","v":""},{"$f":"IF('Project Scope'!$C43=\"\",\"\",Benefits($AB43,$AD43,$AE43,$AG43,$AH43,$AI43,$AJ43,$AK43,$AL43,$AM43,$M43,$AR43,$AS43,$AT43,$AU43,$W43,$X43,$Y43,$Z43,$AA43,$E43))","v":""},"","","","","","","","",null,{"$f":"IF('Project Scope'!$C43=\"\",\"\",SUM('Project Scope'!$AT43,'Project Scope'!$AU43))","v":""},{"$f":"IF('Project Scope'!$C43=\"\",\"\",SUM('Project Scope'!$BG43, 'Project Scope'!$AR43,(IF(ISNUMBER('Project Scope'!$AS43),'Project Scope'!$AS43,0)*'Project Information'!$D$12)))","v":""},null,null,{"$f":"IF('Project Scope'!$C43=\"\",\"\",IF(COUNTIF('CBAT Lookups'!$B$5:$B$12,\"Controls-\"&CBAT!$D43)=1,VLOOKUP(\"Controls-\"&CBAT!$D43,'CBAT Lookups'!$B$5:$L$12,11),0))","v":""},{"$f":"IF('Project Scope'!$C43=\"\",\"\",IF(COUNTIF('CBAT Lookups'!$B$5:$B$12,\"Controls-\"&CBAT!$D43)=1,VLOOKUP(\"Controls-\"&CBAT!$D43,'CBAT Lookups'!$B$5:$K$12,2),0)*VLOOKUP($F43,'CBAT Lookups'!$B$17:$K$19,2))","v":""},{"$f":"IF('Project Scope'!$C43=\"\",\"\",IF(COUNTIF('CBAT Lookups'!$B$5:$B$12,\"Controls-\"&CBAT!$D43)=1,VLOOKUP(\"Controls-\"&CBAT!$D43,'CBAT Lookups'!$B$5:$K$12,3),0)*VLOOKUP($F43,'CBAT Lookups'!$B$17:$K$19,3))","v":""},{"$f":"IF('Project Scope'!$C43=\"\",\"\",IF(COUNTIF('CBAT Lookups'!$B$5:$B$12,\"Controls-\"&CBAT!$D43)=1,VLOOKUP(\"Controls-\"&CBAT!$D43,'CBAT Lookups'!$B$5:$K$12,4),0))","v":""},{"$f":"IF('Project Scope'!$C43=\"\",\"\",IF(COUNTIF('CBAT Lookups'!$B$5:$B$12,\"Controls-\"&CBAT!$D43)=1,VLOOKUP(\"Controls-\"&CBAT!$D43,'CBAT Lookups'!$B$5:$K$12,5),0))","v":""},{"$f":"IF('Project Scope'!$C43=\"\",\"\",IF(COUNTIF('CBAT Lookups'!$B$5:$B$12,\"Controls-\"&CBAT!$D43)=1,VLOOKUP(\"Controls-\"&CBAT!$D43,'CBAT Lookups'!$B$5:$K$12,6),0))","v":""},{"$f":"IF('Project Scope'!$C43=\"\",\"\",IF(COUNTIF('CBAT Lookups'!$B$5:$B$12,\"Controls-\"&CBAT!$D43)=1,VLOOKUP(\"Controls-\"&CBAT!$D43,'CBAT Lookups'!$B$5:$K$12,7),0))","v":""},{"$f":"IF('Project Scope'!$C43=\"\",\"\",IF(VLOOKUP($F43,'CBAT Lookups'!$B$17:$K$19,8)=\"W\",1,IF(COUNTIF('CBAT Lookups'!$B$5:$B$12,\"Controls-\"&CBAT!$D43)=1,VLOOKUP(\"Controls-\"&CBAT!$D43,'CBAT Lookups'!$B$5:$K$12,8),0)*VLOOKUP($F43,'CBAT Lookups'!$B$17:$K$19,8)))","v":""},{"$f":"IF('Project Scope'!$C43=\"\",\"\",IF(VLOOKUP($F43,'CBAT Lookups'!$B$17:$K$19,9)=\"W\",1,IF(COUNTIF('CBAT Lookups'!$B$5:$B$12,\"Controls-\"&CBAT!$D43)=1,VLOOKUP(\"Controls-\"&CBAT!$D43,'CBAT Lookups'!$B$5:$K$12,9),0)*VLOOKUP($F43,'CBAT Lookups'!$B$17:$K$19,9)))","v":""},{"$f":"IF('Project Scope'!$C43=\"\",\"\",IF(COUNTIF('CBAT Lookups'!$B$5:$B$12,\"Controls-\"&CBAT!$D43)=1,VLOOKUP(\"Controls-\"&CBAT!$D43,'CBAT Lookups'!$B$5:$K$12,10),0)*VLOOKUP($F43,'CBAT Lookups'!$B$17:$K$19,10))","v":""},{"$f":"IF('Project Scope'!$C43=\"\",\"\",VLOOKUP($C43,'CBAT Lookups'!$A$33:$B$57,2))","v":""},{"$f":"IF('Project Scope'!$C43=\"\",\"\",IF(COUNTIF('CBAT Lookups'!$B$5:$B$12,\"Controls-\"&CBAT!$D43)=1,VLOOKUP(\"Controls-\"&CBAT!$D43,'CBAT Lookups'!$B$5:$O$12,12),0))","v":""},{"$f":"IF('Project Scope'!$C43=\"\",\"\",IF(COUNTIF('CBAT Lookups'!$B$5:$B$12,\"Controls-\"&CBAT!$D43)=1,VLOOKUP(\"Controls-\"&CBAT!$D43,'CBAT Lookups'!$B$5:$O$12,13),0))","v":""},{"$f":"IF('Project Scope'!$C43=\"\",\"\",IF(COUNTIF('CBAT Lookups'!$B$5:$B$12,\"Controls-\"&CBAT!$D43)=1,VLOOKUP(\"Controls-\"&CBAT!$D43,'CBAT Lookups'!$B$5:$O$12,14),0))","v":""},{"$f":"IF('Project Scope'!$C43=\"\",\"\",'TRM Data'!$U$3)","v":""},{"$f":"IF('Project Scope'!$C43=\"\",\"\",'TRM Data'!$V$3)","v":""},{"$f":"IF('Project Scope'!$C43=\"\",\"\",IF($K43<=0,0,MAX(0,(IF(AND($I43>0,$J43>0),($I43*$J43)/1000,($G43*$H43)/1000)*$L43))*$BT43*$BR43)+($CD43/0.003412))","v":""},{"$f":"IF('Project Scope'!$C43=\"\",\"\",IF($K43<=0,0,MAX(0,IF(AND($I43>0,$J43>0),($I43*$J43)/1000,($G43*$H43)/1000))*$BQ43))","v":""},{"$f":"IF('Project Scope'!$C43=\"\",\"\",IF($K43<=0,0,MAX(0,IF(AND($I43>0,$J43>0),($I43*$J43)/1000,($G43*$H43)/1000))*$BK43))","v":""},{"$f":"IF('Project Scope'!$C43=\"\",\"\",IF($K43<=0,0,MAX(0,IF(AND($I43>0,$J43>0),($I43*$J43)/1000,($G43*$H43)/1000))*$BL43*$BQ43))","v":""},{"$f":"IF('Project Scope'!$C43=\"\",\"\",IF(OR($K43<=0,'Project Information'!$D$44=\"\"),0,-1*MAX(0,IF(AND($I43>0,$J43>0),($I43*$J43)/1000,($G43*$H43)/1000))*$BT43*$L43*$BS43*VLOOKUP('Project Information'!$D$44,'CBAT Lookups'!$A$23:$H$30,2)))","v":""},{"$f":"IF('Project Scope'!$C43=\"\",\"\",IF(OR($K43<=0,'Project Information'!$D$44=\"\"),0,-1*MAX(0,IF(AND($I43>0,$J43>0),($I43*$J43)/1000,($G43*$H43)/1000))*$BT43*$L43*$BS43*VLOOKUP('Project Information'!$D$44,'CBAT Lookups'!$A$23:$H$30,3)))","v":""},{"$f":"IF('Project Scope'!$C43=\"\",\"\",IF(OR($K43<=0,'Project Information'!$D$44=\"\"),0,-1*MAX(0,IF(AND($I43>0,$J43>0),($I43*$J43)/1000,($G43*$H43)/1000))*$BT43*$L43*$BS43*VLOOKUP('Project Information'!$D$44,'CBAT Lookups'!$A$23:$H$30,4)))","v":""},{"$f":"IF('Project Scope'!$C43=\"\",\"\",IF(OR($K43<=0,'Project Information'!$D$44=\"\"),0,-1*MAX(0,IF(AND($I43>0,$J43>0),($I43*$J43)/1000,($G43*$H43)/1000))*$BT43*$L43*$BS43*VLOOKUP('Project Information'!$D$44,'CBAT Lookups'!$A$23:$H$30,5)))","v":""},{"$f":"IF('Project Scope'!$C43=\"\",\"\",IF(OR($K43<=0,'Project Information'!$D$44=\"\"),0,-1*MAX(0,IF(AND($I43>0,$J43>0),($I43*$J43)/1000,($G43*$H43)/1000))*$BT43*$L43*$BS43*VLOOKUP('Project Information'!$D$44,'CBAT Lookups'!$A$23:$H$30,6)))","v":""},{"$f":"IF('Project Scope'!$C43=\"\",\"\",IF(OR($K43<=0,'Project Information'!$D$44=\"\"),0,-1*MAX(0,IF(AND($I43>0,$J43>0),($I43*$J43)/1000,($G43*$H43)/1000))*$BT43*$L43*$BS43*VLOOKUP('Project Information'!$D$44,'CBAT Lookups'!$A$23:$H$30,7)))","v":""},{"$f":"IF('Project Scope'!$C43=\"\",\"\",IF(OR($K43<=0,'Project Information'!$D$44=\"\"),0,-1*MAX(0,IF(AND($I43>0,$J43>0),($I43*$J43)/1000,($G43*$H43)/1000))*$BT43*$L43*$BS43*VLOOKUP('Project Information'!$D$44,'CBAT Lookups'!$A$23:$H$30,8)))","v":""},null,{"$f":"IF('Project Scope'!$C43=\"\",\"\",VLOOKUP($F43,'CBAT Lookups'!$B$17:$K$19,4))","v":""},{"$f":"IF('Project Scope'!$C43=\"\",\"\",VLOOKUP($F43,'CBAT Lookups'!$B$17:$K$19,5))","v":""},{"$f":"IF('Project Scope'!$C43=\"\",\"\",VLOOKUP($F43,'CBAT Lookups'!$B$17:$K$19,6))","v":""},{"$f":"IF('Project Scope'!$C43=\"\",\"\",VLOOKUP($F43,'CBAT Lookups'!$B$17:$K$19,7))","v":""},{"$f":"IF('Project Scope'!$C43=\"\",\"\",IF(SUMPRODUCT($BM43:$BP43,$CL43:$CO43)=0,0,BM43*CL43/SUMPRODUCT($BM43:$BP43,$CL43:$CO43)))","v":""},{"$f":"IF('Project Scope'!$C43=\"\",\"\",IF(SUMPRODUCT($BM43:$BP43,$CL43:$CO43)=0,0,BN43*CM43/SUMPRODUCT($BM43:$BP43,$CL43:$CO43)))","v":""},{"$f":"IF('Project Scope'!$C43=\"\",\"\",IF(SUMPRODUCT($BM43:$BP43,$CL43:$CO43)=0,0,BO43*CN43/SUMPRODUCT($BM43:$BP43,$CL43:$CO43)))","v":""},{"$f":"IF('Project Scope'!$C43=\"\",\"\",IF(SUMPRODUCT($BM43:$BP43,$CL43:$CO43)=0,0,BP43*CO43/SUMPRODUCT($BM43:$BP43,$CL43:$CO43)))","v":""},{"$f":"IF('Project Scope'!$C43=\"\",\"\",Benefits($BZ43,$CB43,$CC43,$CE43,$CF43,$CG43,$CH43,$CI43,$CJ43,$CK43,$BJ43,$CP43,$CQ43,$CR43,$CS43,$BU43,$BV43,$BW43,$BX43,$BY43,$E43))","v":""},"","","","","","","","",null,{"$f":"IF('Project Scope'!$C43=\"\",\"\",SUM('Project Scope'!$BB43,'Project Scope'!$BC43))","v":""},{"$f":"IF('Project Scope'!$C43=\"\",\"\",SUM('Project Scope'!$BH43, 'Project Scope'!$AZ43,(IF(ISNUMBER('Project Scope'!$BA43),'Project Scope'!$BA43,0)*'Project Information'!$D$12)))","v":""},null,null,{"$f":"IF('Project Scope'!$C43=\"\",\"\",IF($J43<=0,0,(SUMPRODUCT($AV43:$BC43,--($AV43:$BC43>0))+$BE43)*$DK43/((-SUMPRODUCT($AV43:$BC43,--($AV43:$BC43<0))+$BG43+$BH43+$BI43)*$DK43)))","v":""},{"$f":"IF('Project Scope'!$C43=\"\",\"\",IF($K43<=0,0,(SUMPRODUCT($CT43:$DA43,--($CT43:$DA43>0))+$DC43)*$DK43/((-SUMPRODUCT($CT43:$DA43,--($CT43:$DA43<0))+$DE43+$DF43+$DG43)*$DK43)))","v":""},{"$f":"IF('Project Scope'!$C43=\"\",\"\",IF(AND($J43<=0,$K43<=0),0,(SUMPRODUCT($AV43:$BC43,--($AV43:$BC43>0))+$BE43+SUMPRODUCT($CT43:$DA43,--($CT43:$DA43>0))+$DC43)*$DK43/((-SUMPRODUCT($AV43:$BC43,--($AV43:$BC43<0))+$BG43+$BH43+$BI43-SUMPRODUCT($CT43:$DA43,--($CT43:$DA43<0))+$DE43+$DF43+$DG43)*$DK43)))","v":""},{"$f":"IF('Project Scope'!$C43=\"\",\"\",IF(NetOrGross=\"Net\",(1-Z43+AA43),1))","v":""}]
[{"$f":"'Project Scope'!$B44","v":37},{"$f":"IF('Project Scope'!$C44=\"\",\"\",'Project Scope'!$C44)","v":""},{"$f":"IF('Project Scope'!$C44=\"\",\"\",'Project Scope'!$H44)","v":""},{"$f":"IF(ISNUMBER(SEARCH(\"Bay\",'Project Scope'!$Q44)),\"Bay\",IF('Project Scope'!C44=\"\",\"\",'Project Scope'!E44))","v":""},{"$f":"IF('Project Scope'!$C44=\"\",\"\",\"Com\")","v":""},{"$f":"IF('Project Scope'!$C44=\"\",\"\",'Project Scope'!$L44)","v":""},{"$f":"IF('Project Scope'!$C44=\"\",\"\",IF('Project Scope'!$CJ44=\"\",0,'Project Scope'!$CJ44))","v":""},{"$f":"IF('Project Scope'!$C44=\"\",\"\",IF('Project Scope'!$N44=\"\",0,'Project Scope'!$N44))","v":""},{"$f":"IF('Project Scope'!$C44=\"\",\"\",IF('Project Scope'!$CK44=\"\",0,'Project Scope'!$CK44))","v":""},{"$f":"IF('Project Scope'!$C44=\"\",\"\",IF('Project Scope'!$AO44=\"\",0,'Project Scope'!$AO44))","v":""},{"$f":"IF('Project Scope'!$C44=\"\",\"\",IF('Project Scope'!$AX44=\"\",0,'Project Scope'!$AX44))","v":""},{"$f":"IF('Project Scope'!$C44=\"\",\"\",IF('Project Scope'!$M44=\"\",0,'Project Scope'!$M44))","v":""},{"$f":"IF('Project Scope'!$C44=\"\",\"\",IF(COUNTIF('CBAT Lookups'!$B$5:$B$12,\"Fixtures-\"&CBAT!$D44)=1,VLOOKUP(\"Fixtures-\"&CBAT!$D44,'CBAT Lookups'!$B$5:$L$12,11),0))","v":""},{"$f":"IF('Project Scope'!$C44=\"\",\"\",(IF(COUNTIF('CBAT Lookups'!$B$5:$B$12,\"Fixtures-\"&CBAT!$D44)=1,VLOOKUP(\"Fixtures-\"&CBAT!$D44,'CBAT Lookups'!$B$5:$K$12,2),0))*VLOOKUP($F44,'CBAT Lookups'!$B$17:$K$19,2))","v":""},{"$f":"IF('Project Scope'!$C44=\"\",\"\",(IF(COUNTIF('CBAT Lookups'!$B$5:$B$12,\"Fixtures-\"&CBAT!$D44)=1,VLOOKUP(\"Fixtures-\"&CBAT!$D44,'CBAT Lookups'!$B$5:$K$12,3),0))*VLOOKUP($F44,'CBAT Lookups'!$B$17:$K$19,3))","v":""},{"$f":"IF('Project Scope'!$C44=\"\",\"\",(IF(COUNTIF('CBAT Lookups'!$B$5:$B$12,\"Fixtures-\"&CBAT!$D44)=1,VLOOKUP(\"Fixtures-\"&CBAT!$D44,'CBAT Lookups'!$B$5:$K$12,4),0)))","v":""},{"$f":"IF('Project Scope'!$C44=\"\",\"\",(IF(COUNTIF('CBAT Lookups'!$B$5:$B$12,\"Fixtures-\"&CBAT!$D44)=1,VLOOKUP(\"Fixtures-\"&CBAT!$D44,'CBAT Lookups'!$B$5:$K$12,5),0)))","v":""},{"$f":"IF('Project Scope'!$C44=\"\",\"\",(IF(COUNTIF('CBAT Lookups'!$B$5:$B$12,\"Fixtures-\"&CBAT!$D44)=1,VLOOKUP(\"Fixtures-\"&CBAT!$D44,'CBAT Lookups'!$B$5:$K$12,6),0)))","v":""},{"$f":"IF('Project Scope'!$C44=\"\",\"\",IF(COUNTIF('CBAT Lookups'!$B$5:$B$12,\"Fixtures-\"&CBAT!$D44)=1,VLOOKUP(\"Fixtures-\"&CBAT!$D44,'CBAT Lookups'!$B$5:$K$12,7),0))","v":""},{"$f":"IF('Project Scope'!$C44=\"\",\"\",IF(VLOOKUP($F44,'CBAT Lookups'!$B$17:$K$19,8)=\"W\",1,IF(COUNTIF('CBAT Lookups'!$B$5:$B$12,\"Fixtures-\"&CBAT!$D44)=1,VLOOKUP(\"Fixtures-\"&CBAT!$D44,'CBAT Lookups'!$B$5:$K$12,8),0)*VLOOKUP($F44,'CBAT Lookups'!$B$17:$K$19,8)))","v":""},{"$f":"IF('Project Scope'!$C44=\"\",\"\",IF(VLOOKUP($F44,'CBAT Lookups'!$B$17:$K$19,9)=\"W\",1,IF(COUNTIF('CBAT Lookups'!$B$5:$B$12,\"Fixtures-\"&CBAT!$D44)=1,VLOOKUP(\"Fixtures-\"&CBAT!$D44,'CBAT Lookups'!$B$5:$K$12,9),0)*VLOOKUP($F44,'CBAT Lookups'!$B$17:$K$19,9)))","v":""},{"$f":"IF('Project Scope'!$C44=\"\",\"\",IF(COUNTIF('CBAT Lookups'!$B$5:$B$12,\"Fixtures-\"&CBAT!$D44)=1,VLOOKUP(\"Fixtures-\"&CBAT!$D44,'CBAT Lookups'!$B$5:$K$12,10),0)*VLOOKUP($F44,'CBAT Lookups'!$B$17:$K$19,10))","v":""},{"$f":"IF('Project Scope'!$C44=\"\",\"\",IF(COUNTIF('CBAT Lookups'!$B$5:$B$12,\"Fixtures-\"&CBAT!$D44)=1,VLOOKUP(\"Fixtures-\"&CBAT!$D44,'CBAT Lookups'!$B$5:$O$12,12),0))","v":""},{"$f":"IF('Project Scope'!$C44=\"\",\"\",IF(COUNTIF('CBAT Lookups'!$B$5:$B$12,\"Fixtures-\"&CBAT!$D44)=1,VLOOKUP(\"Fixtures-\"&CBAT!$D44,'CBAT Lookups'!$B$5:$O$12,13),0))","v":""},{"$f":"IF('Project Scope'!$C44=\"\",\"\",IF(COUNTIF('CBAT Lookups'!$B$5:$B$12,\"Fixtures-\"&CBAT!$D44)=1,VLOOKUP(\"Fixtures-\"&CBAT!$D44,'CBAT Lookups'!$B$5:$O$12,14),0))","v":""},{"$f":"IF('Project Scope'!$C44=\"\",\"\",'TRM Data'!$U$3)","v":""},{"$f":"IF('Project Scope'!$C44=\"\",\"\",'TRM Data'!$V$3)","v":""},{"$f":"IF('Project Scope'!$C44=\"\",\"\",IF($J44<=0,0,MAX(0,(($G44*$H44/1000)-($I44*$J44/1000))*$L44)*$U44)+($AF44/0.003412))","v":""},{"$f":"IF('Project Scope'!$C44=\"\",\"\",IF($J44<=0,0,MAX(0,(($G44*$H44/1000)-($I44*$J44/1000)))*$T44))","v":""},{"$f":"IF('Project Scope'!$C44=\"\",\"\",IF($J44<=0,0,MAX(0,(($G44*$H44/1000)-($I44*$J44/1000))*$N44)))","v":""},{"$f":"IF('Project Scope'!$C44=\"\",\"\",IF($J44<=0,0,MAX(0,(($G44*$H44/1000)-($I44*$J44/1000))*$O44)*$T44))","v":""},{"$f":"IF('Project Scope'!$C44=\"\",\"\",IF(OR($J44<=0,'Project Information'!$D$44=\"\"),0,-1*MAX(0,(($G44*$H44/1000)-($I44*$J44/1000))*$L44)*$V44*VLOOKUP('Project Information'!$D$44,'CBAT Lookups'!$A$23:$H$30,2)))","v":""},{"$f":"IF('Project Scope'!$C44=\"\",\"\",IF(OR($J44<=0,'Project Information'!$D$44=\"\"),0,-1*MAX(0,(($G44*$H44/1000)-($I44*$J44/1000))*$L44)*$V44*VLOOKUP('Project Information'!$D$44,'CBAT Lookups'!$A$23:$H$30,3)))","v":""},{"$f":"IF('Project Scope'!$C44=\"\",\"\",IF(OR($J44<=0,'Project Information'!$D$44=\"\"),0,-1*MAX(0,(($G44*$H44/1000)-($I44*$J44/1000))*$L44)*$V44*VLOOKUP('Project Information'!$D$44,'CBAT Lookups'!$A$23:$H$30,4)))","v":""},{"$f":"IF('Project Scope'!$C44=\"\",\"\",IF(OR($J44<=0,'Project Information'!$D$44=\"\"),0,-1*MAX(0,(($G44*$H44/1000)-($I44*$J44/1000))*$L44)*$V44*VLOOKUP('Project Information'!$D$44,'CBAT Lookups'!$A$23:$H$30,5)))","v":""},{"$f":"IF('Project Scope'!$C44=\"\",\"\",IF(OR($J44<=0,'Project Information'!$D$44=\"\"),0,-1*MAX(0,(($G44*$H44/1000)-($I44*$J44/1000))*$L44)*$V44*VLOOKUP('Project Information'!$D$44,'CBAT Lookups'!$A$23:$H$30,6)))","v":""},{"$f":"IF('Project Scope'!$C44=\"\",\"\",IF(OR($J44<=0,'Project Information'!$D$44=\"\"),0,-1*MAX(0,(($G44*$H44/1000)-($I44*$J44/1000))*$L44)*$V44*VLOOKUP('Project Information'!$D$44,'CBAT Lookups'!$A$23:$H$30,7)))","v":""},{"$f":"IF('Project Scope'!$C44=\"\",\"\",IF(OR($J44<=0,'Project Information'!$D$44=\"\"),0,-1*MAX(0,(($G44*$H44/1000)-($I44*$J44/1000))*$L44)*$V44*VLOOKUP('Project Information'!$D$44,'CBAT Lookups'!$A$23:$H$30,8)))","v":""},null,{"$f":"IF('Project Scope'!$C44=\"\",\"\",VLOOKUP($F44,'CBAT Lookups'!$B$17:$K$19,4))","v":""},{"$f":"IF('Project Scope'!$C44=\"\",\"\",VLOOKUP($F44,'CBAT Lookups'!$B$17:$K$19,5))","v":""},{"$f":"IF('Project Scope'!$C44=\"\",\"\",VLOOKUP($F44,'CBAT Lookups'!$B$17:$K$19,6))","v":""},{"$f":"IF('Project Scope'!$C44=\"\",\"\",VLOOKUP($F44,'CBAT Lookups'!$B$17:$K$19,7))","v":""},{"$f":"IF('Project Scope'!$C44=\"\",\"\",IF(SUMPRODUCT($P44:$S44,$AN44:$AQ44)=0,0,P44*AN44/SUMPRODUCT($P44:$S44,$AN44:$AQ44)))","v":""},{"$f":"IF('Project Scope'!$C44=\"\",\"\",IF(SUMPRODUCT($P44:$S44,$AN44:$AQ44)=0,0,Q44*AO44/SUMPRODUCT($P44:$S44,$AN44:$AQ44)))","v":""},{"$f":"IF('Project Scope'!$C44=\"\",\"\",IF(SUMPRODUCT($P44:$S44,$AN44:$AQ44)=0,0,R44*AP44/SUMPRODUCT($P44:$S44,$AN44:$AQ44)))","v":""},{"$f":"IF('Project Scope'!$C44=\"\",\"\",IF(SUMPRODUCT($P44:$S44,$AN44:$AQ44)=0,0,S44*AQ44/SUMPRODUCT($P44:$S44,$AN44:$AQ44)))","v":""},{"$f":"IF('Project Scope'!$C44=\"\",\"\",Benefits($AB44,$AD44,$AE44,$AG44,$AH44,$AI44,$AJ44,$AK44,$AL44,$AM44,$M44,$AR44,$AS44,$AT44,$AU44,$W44,$X44,$Y44,$Z44,$AA44,$E44))","v":""},"","","","","","","","",null,{"$f":"IF('Project Scope'!$C44=\"\",\"\",SUM('Project Scope'!$AT44,'Project Scope'!$AU44))","v":""},{"$f":"IF('Project Scope'!$C44=\"\",\"\",SUM('Project Scope'!$BG44, 'Project Scope'!$AR44,(IF(ISNUMBER('Project Scope'!$AS44),'Project Scope'!$AS44,0)*'Project Information'!$D$12)))","v":""},null,null,{"$f":"IF('Project Scope'!$C44=\"\",\"\",IF(COUNTIF('CBAT Lookups'!$B$5:$B$12,\"Controls-\"&CBAT!$D44)=1,VLOOKUP(\"Controls-\"&CBAT!$D44,'CBAT Lookups'!$B$5:$L$12,11),0))","v":""},{"$f":"IF('Project Scope'!$C44=\"\",\"\",IF(COUNTIF('CBAT Lookups'!$B$5:$B$12,\"Controls-\"&CBAT!$D44)=1,VLOOKUP(\"Controls-\"&CBAT!$D44,'CBAT Lookups'!$B$5:$K$12,2),0)*VLOOKUP($F44,'CBAT Lookups'!$B$17:$K$19,2))","v":""},{"$f":"IF('Project Scope'!$C44=\"\",\"\",IF(COUNTIF('CBAT Lookups'!$B$5:$B$12,\"Controls-\"&CBAT!$D44)=1,VLOOKUP(\"Controls-\"&CBAT!$D44,'CBAT Lookups'!$B$5:$K$12,3),0)*VLOOKUP($F44,'CBAT Lookups'!$B$17:$K$19,3))","v":""},{"$f":"IF('Project Scope'!$C44=\"\",\"\",IF(COUNTIF('CBAT Lookups'!$B$5:$B$12,\"Controls-\"&CBAT!$D44)=1,VLOOKUP(\"Controls-\"&CBAT!$D44,'CBAT Lookups'!$B$5:$K$12,4),0))","v":""},{"$f":"IF('Project Scope'!$C44=\"\",\"\",IF(COUNTIF('CBAT Lookups'!$B$5:$B$12,\"Controls-\"&CBAT!$D44)=1,VLOOKUP(\"Controls-\"&CBAT!$D44,'CBAT Lookups'!$B$5:$K$12,5),0))","v":""},{"$f":"IF('Project Scope'!$C44=\"\",\"\",IF(COUNTIF('CBAT Lookups'!$B$5:$B$12,\"Controls-\"&CBAT!$D44)=1,VLOOKUP(\"Controls-\"&CBAT!$D44,'CBAT Lookups'!$B$5:$K$12,6),0))","v":""},{"$f":"IF('Project Scope'!$C44=\"\",\"\",IF(COUNTIF('CBAT Lookups'!$B$5:$B$12,\"Controls-\"&CBAT!$D44)=1,VLOOKUP(\"Controls-\"&CBAT!$D44,'CBAT Lookups'!$B$5:$K$12,7),0))","v":""},{"$f":"IF('Project Scope'!$C44=\"\",\"\",IF(VLOOKUP($F44,'CBAT Lookups'!$B$17:$K$19,8)=\"W\",1,IF(COUNTIF('CBAT Lookups'!$B$5:$B$12,\"Controls-\"&CBAT!$D44)=1,VLOOKUP(\"Controls-\"&CBAT!$D44,'CBAT Lookups'!$B$5:$K$12,8),0)*VLOOKUP($F44,'CBAT Lookups'!$B$17:$K$19,8)))","v":""},{"$f":"IF('Project Scope'!$C44=\"\",\"\",IF(VLOOKUP($F44,'CBAT Lookups'!$B$17:$K$19,9)=\"W\",1,IF(COUNTIF('CBAT Lookups'!$B$5:$B$12,\"Controls-\"&CBAT!$D44)=1,VLOOKUP(\"Controls-\"&CBAT!$D44,'CBAT Lookups'!$B$5:$K$12,9),0)*VLOOKUP($F44,'CBAT Lookups'!$B$17:$K$19,9)))","v":""},{"$f":"IF('Project Scope'!$C44=\"\",\"\",IF(COUNTIF('CBAT Lookups'!$B$5:$B$12,\"Controls-\"&CBAT!$D44)=1,VLOOKUP(\"Controls-\"&CBAT!$D44,'CBAT Lookups'!$B$5:$K$12,10),0)*VLOOKUP($F44,'CBAT Lookups'!$B$17:$K$19,10))","v":""},{"$f":"IF('Project Scope'!$C44=\"\",\"\",VLOOKUP($C44,'CBAT Lookups'!$A$33:$B$57,2))","v":""},{"$f":"IF('Project Scope'!$C44=\"\",\"\",IF(COUNTIF('CBAT Lookups'!$B$5:$B$12,\"Controls-\"&CBAT!$D44)=1,VLOOKUP(\"Controls-\"&CBAT!$D44,'CBAT Lookups'!$B$5:$O$12,12),0))","v":""},{"$f":"IF('Project Scope'!$C44=\"\",\"\",IF(COUNTIF('CBAT Lookups'!$B$5:$B$12,\"Controls-\"&CBAT!$D44)=1,VLOOKUP(\"Controls-\"&CBAT!$D44,'CBAT Lookups'!$B$5:$O$12,13),0))","v":""},{"$f":"IF('Project Scope'!$C44=\"\",\"\",IF(COUNTIF('CBAT Lookups'!$B$5:$B$12,\"Controls-\"&CBAT!$D44)=1,VLOOKUP(\"Controls-\"&CBAT!$D44,'CBAT Lookups'!$B$5:$O$12,14),0))","v":""},{"$f":"IF('Project Scope'!$C44=\"\",\"\",'TRM Data'!$U$3)","v":""},{"$f":"IF('Project Scope'!$C44=\"\",\"\",'TRM Data'!$V$3)","v":""},{"$f":"IF('Project Scope'!$C44=\"\",\"\",IF($K44<=0,0,MAX(0,(IF(AND($I44>0,$J44>0),($I44*$J44)/1000,($G44*$H44)/1000)*$L44))*$BT44*$BR44)+($CD44/0.003412))","v":""},{"$f":"IF('Project Scope'!$C44=\"\",\"\",IF($K44<=0,0,MAX(0,IF(AND($I44>0,$J44>0),($I44*$J44)/1000,($G44*$H44)/1000))*$BQ44))","v":""},{"$f":"IF('Project Scope'!$C44=\"\",\"\",IF($K44<=0,0,MAX(0,IF(AND($I44>0,$J44>0),($I44*$J44)/1000,($G44*$H44)/1000))*$BK44))","v":""},{"$f":"IF('Project Scope'!$C44=\"\",\"\",IF($K44<=0,0,MAX(0,IF(AND($I44>0,$J44>0),($I44*$J44)/1000,($G44*$H44)/1000))*$BL44*$BQ44))","v":""},{"$f":"IF('Project Scope'!$C44=\"\",\"\",IF(OR($K44<=0,'Project Information'!$D$44=\"\"),0,-1*MAX(0,IF(AND($I44>0,$J44>0),($I44*$J44)/1000,($G44*$H44)/1000))*$BT44*$L44*$BS44*VLOOKUP('Project Information'!$D$44,'CBAT Lookups'!$A$23:$H$30,2)))","v":""},{"$f":"IF('Project Scope'!$C44=\"\",\"\",IF(OR($K44<=0,'Project Information'!$D$44=\"\"),0,-1*MAX(0,IF(AND($I44>0,$J44>0),($I44*$J44)/1000,($G44*$H44)/1000))*$BT44*$L44*$BS44*VLOOKUP('Project Information'!$D$44,'CBAT Lookups'!$A$23:$H$30,3)))","v":""},{"$f":"IF('Project Scope'!$C44=\"\",\"\",IF(OR($K44<=0,'Project Information'!$D$44=\"\"),0,-1*MAX(0,IF(AND($I44>0,$J44>0),($I44*$J44)/1000,($G44*$H44)/1000))*$BT44*$L44*$BS44*VLOOKUP('Project Information'!$D$44,'CBAT Lookups'!$A$23:$H$30,4)))","v":""},{"$f":"IF('Project Scope'!$C44=\"\",\"\",IF(OR($K44<=0,'Project Information'!$D$44=\"\"),0,-1*MAX(0,IF(AND($I44>0,$J44>0),($I44*$J44)/1000,($G44*$H44)/1000))*$BT44*$L44*$BS44*VLOOKUP('Project Information'!$D$44,'CBAT Lookups'!$A$23:$H$30,5)))","v":""},{"$f":"IF('Project Scope'!$C44=\"\",\"\",IF(OR($K44<=0,'Project Information'!$D$44=\"\"),0,-1*MAX(0,IF(AND($I44>0,$J44>0),($I44*$J44)/1000,($G44*$H44)/1000))*$BT44*$L44*$BS44*VLOOKUP('Project Information'!$D$44,'CBAT Lookups'!$A$23:$H$30,6)))","v":""},{"$f":"IF('Project Scope'!$C44=\"\",\"\",IF(OR($K44<=0,'Project Information'!$D$44=\"\"),0,-1*MAX(0,IF(AND($I44>0,$J44>0),($I44*$J44)/1000,($G44*$H44)/1000))*$BT44*$L44*$BS44*VLOOKUP('Project Information'!$D$44,'CBAT Lookups'!$A$23:$H$30,7)))","v":""},{"$f":"IF('Project Scope'!$C44=\"\",\"\",IF(OR($K44<=0,'Project Information'!$D$44=\"\"),0,-1*MAX(0,IF(AND($I44>0,$J44>0),($I44*$J44)/1000,($G44*$H44)/1000))*$BT44*$L44*$BS44*VLOOKUP('Project Information'!$D$44,'CBAT Lookups'!$A$23:$H$30,8)))","v":""},null,{"$f":"IF('Project Scope'!$C44=\"\",\"\",VLOOKUP($F44,'CBAT Lookups'!$B$17:$K$19,4))","v":""},{"$f":"IF('Project Scope'!$C44=\"\",\"\",VLOOKUP($F44,'CBAT Lookups'!$B$17:$K$19,5))","v":""},{"$f":"IF('Project Scope'!$C44=\"\",\"\",VLOOKUP($F44,'CBAT Lookups'!$B$17:$K$19,6))","v":""},{"$f":"IF('Project Scope'!$C44=\"\",\"\",VLOOKUP($F44,'CBAT Lookups'!$B$17:$K$19,7))","v":""},{"$f":"IF('Project Scope'!$C44=\"\",\"\",IF(SUMPRODUCT($BM44:$BP44,$CL44:$CO44)=0,0,BM44*CL44/SUMPRODUCT($BM44:$BP44,$CL44:$CO44)))","v":""},{"$f":"IF('Project Scope'!$C44=\"\",\"\",IF(SUMPRODUCT($BM44:$BP44,$CL44:$CO44)=0,0,BN44*CM44/SUMPRODUCT($BM44:$BP44,$CL44:$CO44)))","v":""},{"$f":"IF('Project Scope'!$C44=\"\",\"\",IF(SUMPRODUCT($BM44:$BP44,$CL44:$CO44)=0,0,BO44*CN44/SUMPRODUCT($BM44:$BP44,$CL44:$CO44)))","v":""},{"$f":"IF('Project Scope'!$C44=\"\",\"\",IF(SUMPRODUCT($BM44:$BP44,$CL44:$CO44)=0,0,BP44*CO44/SUMPRODUCT($BM44:$BP44,$CL44:$CO44)))","v":""},{"$f":"IF('Project Scope'!$C44=\"\",\"\",Benefits($BZ44,$CB44,$CC44,$CE44,$CF44,$CG44,$CH44,$CI44,$CJ44,$CK44,$BJ44,$CP44,$CQ44,$CR44,$CS44,$BU44,$BV44,$BW44,$BX44,$BY44,$E44))","v":""},"","","","","","","","",null,{"$f":"IF('Project Scope'!$C44=\"\",\"\",SUM('Project Scope'!$BB44,'Project Scope'!$BC44))","v":""},{"$f":"IF('Project Scope'!$C44=\"\",\"\",SUM('Project Scope'!$BH44, 'Project Scope'!$AZ44,(IF(ISNUMBER('Project Scope'!$BA44),'Project Scope'!$BA44,0)*'Project Information'!$D$12)))","v":""},null,null,{"$f":"IF('Project Scope'!$C44=\"\",\"\",IF($J44<=0,0,(SUMPRODUCT($AV44:$BC44,--($AV44:$BC44>0))+$BE44)*$DK44/((-SUMPRODUCT($AV44:$BC44,--($AV44:$BC44<0))+$BG44+$BH44+$BI44)*$DK44)))","v":""},{"$f":"IF('Project Scope'!$C44=\"\",\"\",IF($K44<=0,0,(SUMPRODUCT($CT44:$DA44,--($CT44:$DA44>0))+$DC44)*$DK44/((-SUMPRODUCT($CT44:$DA44,--($CT44:$DA44<0))+$DE44+$DF44+$DG44)*$DK44)))","v":""},{"$f":"IF('Project Scope'!$C44=\"\",\"\",IF(AND($J44<=0,$K44<=0),0,(SUMPRODUCT($AV44:$BC44,--($AV44:$BC44>0))+$BE44+SUMPRODUCT($CT44:$DA44,--($CT44:$DA44>0))+$DC44)*$DK44/((-SUMPRODUCT($AV44:$BC44,--($AV44:$BC44<0))+$BG44+$BH44+$BI44-SUMPRODUCT($CT44:$DA44,--($CT44:$DA44<0))+$DE44+$DF44+$DG44)*$DK44)))","v":""},{"$f":"IF('Project Scope'!$C44=\"\",\"\",IF(NetOrGross=\"Net\",(1-Z44+AA44),1))","v":""}]
[{"$f":"'Project Scope'!$B45","v":38},{"$f":"IF('Project Scope'!$C45=\"\",\"\",'Project Scope'!$C45)","v":""},{"$f":"IF('Project Scope'!$C45=\"\",\"\",'Project Scope'!$H45)","v":""},{"$f":"IF(ISNUMBER(SEARCH(\"Bay\",'Project Scope'!$Q45)),\"Bay\",IF('Project Scope'!C45=\"\",\"\",'Project Scope'!E45))","v":""},{"$f":"IF('Project Scope'!$C45=\"\",\"\",\"Com\")","v":""},{"$f":"IF('Project Scope'!$C45=\"\",\"\",'Project Scope'!$L45)","v":""},{"$f":"IF('Project Scope'!$C45=\"\",\"\",IF('Project Scope'!$CJ45=\"\",0,'Project Scope'!$CJ45))","v":""},{"$f":"IF('Project Scope'!$C45=\"\",\"\",IF('Project Scope'!$N45=\"\",0,'Project Scope'!$N45))","v":""},{"$f":"IF('Project Scope'!$C45=\"\",\"\",IF('Project Scope'!$CK45=\"\",0,'Project Scope'!$CK45))","v":""},{"$f":"IF('Project Scope'!$C45=\"\",\"\",IF('Project Scope'!$AO45=\"\",0,'Project Scope'!$AO45))","v":""},{"$f":"IF('Project Scope'!$C45=\"\",\"\",IF('Project Scope'!$AX45=\"\",0,'Project Scope'!$AX45))","v":""},{"$f":"IF('Project Scope'!$C45=\"\",\"\",IF('Project Scope'!$M45=\"\",0,'Project Scope'!$M45))","v":""},{"$f":"IF('Project Scope'!$C45=\"\",\"\",IF(COUNTIF('CBAT Lookups'!$B$5:$B$12,\"Fixtures-\"&CBAT!$D45)=1,VLOOKUP(\"Fixtures-\"&CBAT!$D45,'CBAT Lookups'!$B$5:$L$12,11),0))","v":""},{"$f":"IF('Project Scope'!$C45=\"\",\"\",(IF(COUNTIF('CBAT Lookups'!$B$5:$B$12,\"Fixtures-\"&CBAT!$D45)=1,VLOOKUP(\"Fixtures-\"&CBAT!$D45,'CBAT Lookups'!$B$5:$K$12,2),0))*VLOOKUP($F45,'CBAT Lookups'!$B$17:$K$19,2))","v":""},{"$f":"IF('Project Scope'!$C45=\"\",\"\",(IF(COUNTIF('CBAT Lookups'!$B$5:$B$12,\"Fixtures-\"&CBAT!$D45)=1,VLOOKUP(\"Fixtures-\"&CBAT!$D45,'CBAT Lookups'!$B$5:$K$12,3),0))*VLOOKUP($F45,'CBAT Lookups'!$B$17:$K$19,3))","v":""},{"$f":"IF('Project Scope'!$C45=\"\",\"\",(IF(COUNTIF('CBAT Lookups'!$B$5:$B$12,\"Fixtures-\"&CBAT!$D45)=1,VLOOKUP(\"Fixtures-\"&CBAT!$D45,'CBAT Lookups'!$B$5:$K$12,4),0)))","v":""},{"$f":"IF('Project Scope'!$C45=\"\",\"\",(IF(COUNTIF('CBAT Lookups'!$B$5:$B$12,\"Fixtures-\"&CBAT!$D45)=1,VLOOKUP(\"Fixtures-\"&CBAT!$D45,'CBAT Lookups'!$B$5:$K$12,5),0)))","v":""},{"$f":"IF('Project Scope'!$C45=\"\",\"\",(IF(COUNTIF('CBAT Lookups'!$B$5:$B$12,\"Fixtures-\"&CBAT!$D45)=1,VLOOKUP(\"Fixtures-\"&CBAT!$D45,'CBAT Lookups'!$B$5:$K$12,6),0)))","v":""},{"$f":"IF('Project Scope'!$C45=\"\",\"\",IF(COUNTIF('CBAT Lookups'!$B$5:$B$12,\"Fixtures-\"&CBAT!$D45)=1,VLOOKUP(\"Fixtures-\"&CBAT!$D45,'CBAT Lookups'!$B$5:$K$12,7),0))","v":""},{"$f":"IF('Project Scope'!$C45=\"\",\"\",IF(VLOOKUP($F45,'CBAT Lookups'!$B$17:$K$19,8)=\"W\",1,IF(COUNTIF('CBAT Lookups'!$B$5:$B$12,\"Fixtures-\"&CBAT!$D45)=1,VLOOKUP(\"Fixtures-\"&CBAT!$D45,'CBAT Lookups'!$B$5:$K$12,8),0)*VLOOKUP($F45,'CBAT Lookups'!$B$17:$K$19,8)))","v":""},{"$f":"IF('Project Scope'!$C45=\"\",\"\",IF(VLOOKUP($F45,'CBAT Lookups'!$B$17:$K$19,9)=\"W\",1,IF(COUNTIF('CBAT Lookups'!$B$5:$B$12,\"Fixtures-\"&CBAT!$D45)=1,VLOOKUP(\"Fixtures-\"&CBAT!$D45,'CBAT Lookups'!$B$5:$K$12,9),0)*VLOOKUP($F45,'CBAT Lookups'!$B$17:$K$19,9)))","v":""},{"$f":"IF('Project Scope'!$C45=\"\",\"\",IF(COUNTIF('CBAT Lookups'!$B$5:$B$12,\"Fixtures-\"&CBAT!$D45)=1,VLOOKUP(\"Fixtures-\"&CBAT!$D45,'CBAT Lookups'!$B$5:$K$12,10),0)*VLOOKUP($F45,'CBAT Lookups'!$B$17:$K$19,10))","v":""},{"$f":"IF('Project Scope'!$C45=\"\",\"\",IF(COUNTIF('CBAT Lookups'!$B$5:$B$12,\"Fixtures-\"&CBAT!$D45)=1,VLOOKUP(\"Fixtures-\"&CBAT!$D45,'CBAT Lookups'!$B$5:$O$12,12),0))","v":""},{"$f":"IF('Project Scope'!$C45=\"\",\"\",IF(COUNTIF('CBAT Lookups'!$B$5:$B$12,\"Fixtures-\"&CBAT!$D45)=1,VLOOKUP(\"Fixtures-\"&CBAT!$D45,'CBAT Lookups'!$B$5:$O$12,13),0))","v":""},{"$f":"IF('Project Scope'!$C45=\"\",\"\",IF(COUNTIF('CBAT Lookups'!$B$5:$B$12,\"Fixtures-\"&CBAT!$D45)=1,VLOOKUP(\"Fixtures-\"&CBAT!$D45,'CBAT Lookups'!$B$5:$O$12,14),0))","v":""},{"$f":"IF('Project Scope'!$C45=\"\",\"\",'TRM Data'!$U$3)","v":""},{"$f":"IF('Project Scope'!$C45=\"\",\"\",'TRM Data'!$V$3)","v":""},{"$f":"IF('Project Scope'!$C45=\"\",\"\",IF($J45<=0,0,MAX(0,(($G45*$H45/1000)-($I45*$J45/1000))*$L45)*$U45)+($AF45/0.003412))","v":""},{"$f":"IF('Project Scope'!$C45=\"\",\"\",IF($J45<=0,0,MAX(0,(($G45*$H45/1000)-($I45*$J45/1000)))*$T45))","v":""},{"$f":"IF('Project Scope'!$C45=\"\",\"\",IF($J45<=0,0,MAX(0,(($G45*$H45/1000)-($I45*$J45/1000))*$N45)))","v":""},{"$f":"IF('Project Scope'!$C45=\"\",\"\",IF($J45<=0,0,MAX(0,(($G45*$H45/1000)-($I45*$J45/1000))*$O45)*$T45))","v":""},{"$f":"IF('Project Scope'!$C45=\"\",\"\",IF(OR($J45<=0,'Project Information'!$D$44=\"\"),0,-1*MAX(0,(($G45*$H45/1000)-($I45*$J45/1000))*$L45)*$V45*VLOOKUP('Project Information'!$D$44,'CBAT Lookups'!$A$23:$H$30,2)))","v":""},{"$f":"IF('Project Scope'!$C45=\"\",\"\",IF(OR($J45<=0,'Project Information'!$D$44=\"\"),0,-1*MAX(0,(($G45*$H45/1000)-($I45*$J45/1000))*$L45)*$V45*VLOOKUP('Project Information'!$D$44,'CBAT Lookups'!$A$23:$H$30,3)))","v":""},{"$f":"IF('Project Scope'!$C45=\"\",\"\",IF(OR($J45<=0,'Project Information'!$D$44=\"\"),0,-1*MAX(0,(($G45*$H45/1000)-($I45*$J45/1000))*$L45)*$V45*VLOOKUP('Project Information'!$D$44,'CBAT Lookups'!$A$23:$H$30,4)))","v":""},{"$f":"IF('Project Scope'!$C45=\"\",\"\",IF(OR($J45<=0,'Project Information'!$D$44=\"\"),0,-1*MAX(0,(($G45*$H45/1000)-($I45*$J45/1000))*$L45)*$V45*VLOOKUP('Project Information'!$D$44,'CBAT Lookups'!$A$23:$H$30,5)))","v":""},{"$f":"IF('Project Scope'!$C45=\"\",\"\",IF(OR($J45<=0,'Project Information'!$D$44=\"\"),0,-1*MAX(0,(($G45*$H45/1000)-($I45*$J45/1000))*$L45)*$V45*VLOOKUP('Project Information'!$D$44,'CBAT Lookups'!$A$23:$H$30,6)))","v":""},{"$f":"IF('Project Scope'!$C45=\"\",\"\",IF(OR($J45<=0,'Project Information'!$D$44=\"\"),0,-1*MAX(0,(($G45*$H45/1000)-($I45*$J45/1000))*$L45)*$V45*VLOOKUP('Project Information'!$D$44,'CBAT Lookups'!$A$23:$H$30,7)))","v":""},{"$f":"IF('Project Scope'!$C45=\"\",\"\",IF(OR($J45<=0,'Project Information'!$D$44=\"\"),0,-1*MAX(0,(($G45*$H45/1000)-($I45*$J45/1000))*$L45)*$V45*VLOOKUP('Project Information'!$D$44,'CBAT Lookups'!$A$23:$H$30,8)))","v":""},null,{"$f":"IF('Project Scope'!$C45=\"\",\"\",VLOOKUP($F45,'CBAT Lookups'!$B$17:$K$19,4))","v":""},{"$f":"IF('Project Scope'!$C45=\"\",\"\",VLOOKUP($F45,'CBAT Lookups'!$B$17:$K$19,5))","v":""},{"$f":"IF('Project Scope'!$C45=\"\",\"\",VLOOKUP($F45,'CBAT Lookups'!$B$17:$K$19,6))","v":""},{"$f":"IF('Project Scope'!$C45=\"\",\"\",VLOOKUP($F45,'CBAT Lookups'!$B$17:$K$19,7))","v":""},{"$f":"IF('Project Scope'!$C45=\"\",\"\",IF(SUMPRODUCT($P45:$S45,$AN45:$AQ45)=0,0,P45*AN45/SUMPRODUCT($P45:$S45,$AN45:$AQ45)))","v":""},{"$f":"IF('Project Scope'!$C45=\"\",\"\",IF(SUMPRODUCT($P45:$S45,$AN45:$AQ45)=0,0,Q45*AO45/SUMPRODUCT($P45:$S45,$AN45:$AQ45)))","v":""},{"$f":"IF('Project Scope'!$C45=\"\",\"\",IF(SUMPRODUCT($P45:$S45,$AN45:$AQ45)=0,0,R45*AP45/SUMPRODUCT($P45:$S45,$AN45:$AQ45)))","v":""},{"$f":"IF('Project Scope'!$C45=\"\",\"\",IF(SUMPRODUCT($P45:$S45,$AN45:$AQ45)=0,0,S45*AQ45/SUMPRODUCT($P45:$S45,$AN45:$AQ45)))","v":""},{"$f":"IF('Project Scope'!$C45=\"\",\"\",Benefits($AB45,$AD45,$AE45,$AG45,$AH45,$AI45,$AJ45,$AK45,$AL45,$AM45,$M45,$AR45,$AS45,$AT45,$AU45,$W45,$X45,$Y45,$Z45,$AA45,$E45))","v":""},"","","","","","","","",null,{"$f":"IF('Project Scope'!$C45=\"\",\"\",SUM('Project Scope'!$AT45,'Project Scope'!$AU45))","v":""},{"$f":"IF('Project Scope'!$C45=\"\",\"\",SUM('Project Scope'!$BG45, 'Project Scope'!$AR45,(IF(ISNUMBER('Project Scope'!$AS45),'Project Scope'!$AS45,0)*'Project Information'!$D$12)))","v":""},null,null,{"$f":"IF('Project Scope'!$C45=\"\",\"\",IF(COUNTIF('CBAT Lookups'!$B$5:$B$12,\"Controls-\"&CBAT!$D45)=1,VLOOKUP(\"Controls-\"&CBAT!$D45,'CBAT Lookups'!$B$5:$L$12,11),0))","v":""},{"$f":"IF('Project Scope'!$C45=\"\",\"\",IF(COUNTIF('CBAT Lookups'!$B$5:$B$12,\"Controls-\"&CBAT!$D45)=1,VLOOKUP(\"Controls-\"&CBAT!$D45,'CBAT Lookups'!$B$5:$K$12,2),0)*VLOOKUP($F45,'CBAT Lookups'!$B$17:$K$19,2))","v":""},{"$f":"IF('Project Scope'!$C45=\"\",\"\",IF(COUNTIF('CBAT Lookups'!$B$5:$B$12,\"Controls-\"&CBAT!$D45)=1,VLOOKUP(\"Controls-\"&CBAT!$D45,'CBAT Lookups'!$B$5:$K$12,3),0)*VLOOKUP($F45,'CBAT Lookups'!$B$17:$K$19,3))","v":""},{"$f":"IF('Project Scope'!$C45=\"\",\"\",IF(COUNTIF('CBAT Lookups'!$B$5:$B$12,\"Controls-\"&CBAT!$D45)=1,VLOOKUP(\"Controls-\"&CBAT!$D45,'CBAT Lookups'!$B$5:$K$12,4),0))","v":""},{"$f":"IF('Project Scope'!$C45=\"\",\"\",IF(COUNTIF('CBAT Lookups'!$B$5:$B$12,\"Controls-\"&CBAT!$D45)=1,VLOOKUP(\"Controls-\"&CBAT!$D45,'CBAT Lookups'!$B$5:$K$12,5),0))","v":""},{"$f":"IF('Project Scope'!$C45=\"\",\"\",IF(COUNTIF('CBAT Lookups'!$B$5:$B$12,\"Controls-\"&CBAT!$D45)=1,VLOOKUP(\"Controls-\"&CBAT!$D45,'CBAT Lookups'!$B$5:$K$12,6),0))","v":""},{"$f":"IF('Project Scope'!$C45=\"\",\"\",IF(COUNTIF('CBAT Lookups'!$B$5:$B$12,\"Controls-\"&CBAT!$D45)=1,VLOOKUP(\"Controls-\"&CBAT!$D45,'CBAT Lookups'!$B$5:$K$12,7),0))","v":""},{"$f":"IF('Project Scope'!$C45=\"\",\"\",IF(VLOOKUP($F45,'CBAT Lookups'!$B$17:$K$19,8)=\"W\",1,IF(COUNTIF('CBAT Lookups'!$B$5:$B$12,\"Controls-\"&CBAT!$D45)=1,VLOOKUP(\"Controls-\"&CBAT!$D45,'CBAT Lookups'!$B$5:$K$12,8),0)*VLOOKUP($F45,'CBAT Lookups'!$B$17:$K$19,8)))","v":""},{"$f":"IF('Project Scope'!$C45=\"\",\"\",IF(VLOOKUP($F45,'CBAT Lookups'!$B$17:$K$19,9)=\"W\",1,IF(COUNTIF('CBAT Lookups'!$B$5:$B$12,\"Controls-\"&CBAT!$D45)=1,VLOOKUP(\"Controls-\"&CBAT!$D45,'CBAT Lookups'!$B$5:$K$12,9),0)*VLOOKUP($F45,'CBAT Lookups'!$B$17:$K$19,9)))","v":""},{"$f":"IF('Project Scope'!$C45=\"\",\"\",IF(COUNTIF('CBAT Lookups'!$B$5:$B$12,\"Controls-\"&CBAT!$D45)=1,VLOOKUP(\"Controls-\"&CBAT!$D45,'CBAT Lookups'!$B$5:$K$12,10),0)*VLOOKUP($F45,'CBAT Lookups'!$B$17:$K$19,10))","v":""},{"$f":"IF('Project Scope'!$C45=\"\",\"\",VLOOKUP($C45,'CBAT Lookups'!$A$33:$B$57,2))","v":""},{"$f":"IF('Project Scope'!$C45=\"\",\"\",IF(COUNTIF('CBAT Lookups'!$B$5:$B$12,\"Controls-\"&CBAT!$D45)=1,VLOOKUP(\"Controls-\"&CBAT!$D45,'CBAT Lookups'!$B$5:$O$12,12),0))","v":""},{"$f":"IF('Project Scope'!$C45=\"\",\"\",IF(COUNTIF('CBAT Lookups'!$B$5:$B$12,\"Controls-\"&CBAT!$D45)=1,VLOOKUP(\"Controls-\"&CBAT!$D45,'CBAT Lookups'!$B$5:$O$12,13),0))","v":""},{"$f":"IF('Project Scope'!$C45=\"\",\"\",IF(COUNTIF('CBAT Lookups'!$B$5:$B$12,\"Controls-\"&CBAT!$D45)=1,VLOOKUP(\"Controls-\"&CBAT!$D45,'CBAT Lookups'!$B$5:$O$12,14),0))","v":""},{"$f":"IF('Project Scope'!$C45=\"\",\"\",'TRM Data'!$U$3)","v":""},{"$f":"IF('Project Scope'!$C45=\"\",\"\",'TRM Data'!$V$3)","v":""},{"$f":"IF('Project Scope'!$C45=\"\",\"\",IF($K45<=0,0,MAX(0,(IF(AND($I45>0,$J45>0),($I45*$J45)/1000,($G45*$H45)/1000)*$L45))*$BT45*$BR45)+($CD45/0.003412))","v":""},{"$f":"IF('Project Scope'!$C45=\"\",\"\",IF($K45<=0,0,MAX(0,IF(AND($I45>0,$J45>0),($I45*$J45)/1000,($G45*$H45)/1000))*$BQ45))","v":""},{"$f":"IF('Project Scope'!$C45=\"\",\"\",IF($K45<=0,0,MAX(0,IF(AND($I45>0,$J45>0),($I45*$J45)/1000,($G45*$H45)/1000))*$BK45))","v":""},{"$f":"IF('Project Scope'!$C45=\"\",\"\",IF($K45<=0,0,MAX(0,IF(AND($I45>0,$J45>0),($I45*$J45)/1000,($G45*$H45)/1000))*$BL45*$BQ45))","v":""},{"$f":"IF('Project Scope'!$C45=\"\",\"\",IF(OR($K45<=0,'Project Information'!$D$44=\"\"),0,-1*MAX(0,IF(AND($I45>0,$J45>0),($I45*$J45)/1000,($G45*$H45)/1000))*$BT45*$L45*$BS45*VLOOKUP('Project Information'!$D$44,'CBAT Lookups'!$A$23:$H$30,2)))","v":""},{"$f":"IF('Project Scope'!$C45=\"\",\"\",IF(OR($K45<=0,'Project Information'!$D$44=\"\"),0,-1*MAX(0,IF(AND($I45>0,$J45>0),($I45*$J45)/1000,($G45*$H45)/1000))*$BT45*$L45*$BS45*VLOOKUP('Project Information'!$D$44,'CBAT Lookups'!$A$23:$H$30,3)))","v":""},{"$f":"IF('Project Scope'!$C45=\"\",\"\",IF(OR($K45<=0,'Project Information'!$D$44=\"\"),0,-1*MAX(0,IF(AND($I45>0,$J45>0),($I45*$J45)/1000,($G45*$H45)/1000))*$BT45*$L45*$BS45*VLOOKUP('Project Information'!$D$44,'CBAT Lookups'!$A$23:$H$30,4)))","v":""},{"$f":"IF('Project Scope'!$C45=\"\",\"\",IF(OR($K45<=0,'Project Information'!$D$44=\"\"),0,-1*MAX(0,IF(AND($I45>0,$J45>0),($I45*$J45)/1000,($G45*$H45)/1000))*$BT45*$L45*$BS45*VLOOKUP('Project Information'!$D$44,'CBAT Lookups'!$A$23:$H$30,5)))","v":""},{"$f":"IF('Project Scope'!$C45=\"\",\"\",IF(OR($K45<=0,'Project Information'!$D$44=\"\"),0,-1*MAX(0,IF(AND($I45>0,$J45>0),($I45*$J45)/1000,($G45*$H45)/1000))*$BT45*$L45*$BS45*VLOOKUP('Project Information'!$D$44,'CBAT Lookups'!$A$23:$H$30,6)))","v":""},{"$f":"IF('Project Scope'!$C45=\"\",\"\",IF(OR($K45<=0,'Project Information'!$D$44=\"\"),0,-1*MAX(0,IF(AND($I45>0,$J45>0),($I45*$J45)/1000,($G45*$H45)/1000))*$BT45*$L45*$BS45*VLOOKUP('Project Information'!$D$44,'CBAT Lookups'!$A$23:$H$30,7)))","v":""},{"$f":"IF('Project Scope'!$C45=\"\",\"\",IF(OR($K45<=0,'Project Information'!$D$44=\"\"),0,-1*MAX(0,IF(AND($I45>0,$J45>0),($I45*$J45)/1000,($G45*$H45)/1000))*$BT45*$L45*$BS45*VLOOKUP('Project Information'!$D$44,'CBAT Lookups'!$A$23:$H$30,8)))","v":""},null,{"$f":"IF('Project Scope'!$C45=\"\",\"\",VLOOKUP($F45,'CBAT Lookups'!$B$17:$K$19,4))","v":""},{"$f":"IF('Project Scope'!$C45=\"\",\"\",VLOOKUP($F45,'CBAT Lookups'!$B$17:$K$19,5))","v":""},{"$f":"IF('Project Scope'!$C45=\"\",\"\",VLOOKUP($F45,'CBAT Lookups'!$B$17:$K$19,6))","v":""},{"$f":"IF('Project Scope'!$C45=\"\",\"\",VLOOKUP($F45,'CBAT Lookups'!$B$17:$K$19,7))","v":""},{"$f":"IF('Project Scope'!$C45=\"\",\"\",IF(SUMPRODUCT($BM45:$BP45,$CL45:$CO45)=0,0,BM45*CL45/SUMPRODUCT($BM45:$BP45,$CL45:$CO45)))","v":""},{"$f":"IF('Project Scope'!$C45=\"\",\"\",IF(SUMPRODUCT($BM45:$BP45,$CL45:$CO45)=0,0,BN45*CM45/SUMPRODUCT($BM45:$BP45,$CL45:$CO45)))","v":""},{"$f":"IF('Project Scope'!$C45=\"\",\"\",IF(SUMPRODUCT($BM45:$BP45,$CL45:$CO45)=0,0,BO45*CN45/SUMPRODUCT($BM45:$BP45,$CL45:$CO45)))","v":""},{"$f":"IF('Project Scope'!$C45=\"\",\"\",IF(SUMPRODUCT($BM45:$BP45,$CL45:$CO45)=0,0,BP45*CO45/SUMPRODUCT($BM45:$BP45,$CL45:$CO45)))","v":""},{"$f":"IF('Project Scope'!$C45=\"\",\"\",Benefits($BZ45,$CB45,$CC45,$CE45,$CF45,$CG45,$CH45,$CI45,$CJ45,$CK45,$BJ45,$CP45,$CQ45,$CR45,$CS45,$BU45,$BV45,$BW45,$BX45,$BY45,$E45))","v":""},"","","","","","","","",null,{"$f":"IF('Project Scope'!$C45=\"\",\"\",SUM('Project Scope'!$BB45,'Project Scope'!$BC45))","v":""},{"$f":"IF('Project Scope'!$C45=\"\",\"\",SUM('Project Scope'!$BH45, 'Project Scope'!$AZ45,(IF(ISNUMBER('Project Scope'!$BA45),'Project Scope'!$BA45,0)*'Project Information'!$D$12)))","v":""},null,null,{"$f":"IF('Project Scope'!$C45=\"\",\"\",IF($J45<=0,0,(SUMPRODUCT($AV45:$BC45,--($AV45:$BC45>0))+$BE45)*$DK45/((-SUMPRODUCT($AV45:$BC45,--($AV45:$BC45<0))+$BG45+$BH45+$BI45)*$DK45)))","v":""},{"$f":"IF('Project Scope'!$C45=\"\",\"\",IF($K45<=0,0,(SUMPRODUCT($CT45:$DA45,--($CT45:$DA45>0))+$DC45)*$DK45/((-SUMPRODUCT($CT45:$DA45,--($CT45:$DA45<0))+$DE45+$DF45+$DG45)*$DK45)))","v":""},{"$f":"IF('Project Scope'!$C45=\"\",\"\",IF(AND($J45<=0,$K45<=0),0,(SUMPRODUCT($AV45:$BC45,--($AV45:$BC45>0))+$BE45+SUMPRODUCT($CT45:$DA45,--($CT45:$DA45>0))+$DC45)*$DK45/((-SUMPRODUCT($AV45:$BC45,--($AV45:$BC45<0))+$BG45+$BH45+$BI45-SUMPRODUCT($CT45:$DA45,--($CT45:$DA45<0))+$DE45+$DF45+$DG45)*$DK45)))","v":""},{"$f":"IF('Project Scope'!$C45=\"\",\"\",IF(NetOrGross=\"Net\",(1-Z45+AA45),1))","v":""}]
[{"$f":"'Project Scope'!$B46","v":39},{"$f":"IF('Project Scope'!$C46=\"\",\"\",'Project Scope'!$C46)","v":""},{"$f":"IF('Project Scope'!$C46=\"\",\"\",'Project Scope'!$H46)","v":""},{"$f":"IF(ISNUMBER(SEARCH(\"Bay\",'Project Scope'!$Q46)),\"Bay\",IF('Project Scope'!C46=\"\",\"\",'Project Scope'!E46))","v":""},{"$f":"IF('Project Scope'!$C46=\"\",\"\",\"Com\")","v":""},{"$f":"IF('Project Scope'!$C46=\"\",\"\",'Project Scope'!$L46)","v":""},{"$f":"IF('Project Scope'!$C46=\"\",\"\",IF('Project Scope'!$CJ46=\"\",0,'Project Scope'!$CJ46))","v":""},{"$f":"IF('Project Scope'!$C46=\"\",\"\",IF('Project Scope'!$N46=\"\",0,'Project Scope'!$N46))","v":""},{"$f":"IF('Project Scope'!$C46=\"\",\"\",IF('Project Scope'!$CK46=\"\",0,'Project Scope'!$CK46))","v":""},{"$f":"IF('Project Scope'!$C46=\"\",\"\",IF('Project Scope'!$AO46=\"\",0,'Project Scope'!$AO46))","v":""},{"$f":"IF('Project Scope'!$C46=\"\",\"\",IF('Project Scope'!$AX46=\"\",0,'Project Scope'!$AX46))","v":""},{"$f":"IF('Project Scope'!$C46=\"\",\"\",IF('Project Scope'!$M46=\"\",0,'Project Scope'!$M46))","v":""},{"$f":"IF('Project Scope'!$C46=\"\",\"\",IF(COUNTIF('CBAT Lookups'!$B$5:$B$12,\"Fixtures-\"&CBAT!$D46)=1,VLOOKUP(\"Fixtures-\"&CBAT!$D46,'CBAT Lookups'!$B$5:$L$12,11),0))","v":""},{"$f":"IF('Project Scope'!$C46=\"\",\"\",(IF(COUNTIF('CBAT Lookups'!$B$5:$B$12,\"Fixtures-\"&CBAT!$D46)=1,VLOOKUP(\"Fixtures-\"&CBAT!$D46,'CBAT Lookups'!$B$5:$K$12,2),0))*VLOOKUP($F46,'CBAT Lookups'!$B$17:$K$19,2))","v":""},{"$f":"IF('Project Scope'!$C46=\"\",\"\",(IF(COUNTIF('CBAT Lookups'!$B$5:$B$12,\"Fixtures-\"&CBAT!$D46)=1,VLOOKUP(\"Fixtures-\"&CBAT!$D46,'CBAT Lookups'!$B$5:$K$12,3),0))*VLOOKUP($F46,'CBAT Lookups'!$B$17:$K$19,3))","v":""},{"$f":"IF('Project Scope'!$C46=\"\",\"\",(IF(COUNTIF('CBAT Lookups'!$B$5:$B$12,\"Fixtures-\"&CBAT!$D46)=1,VLOOKUP(\"Fixtures-\"&CBAT!$D46,'CBAT Lookups'!$B$5:$K$12,4),0)))","v":""},{"$f":"IF('Project Scope'!$C46=\"\",\"\",(IF(COUNTIF('CBAT Lookups'!$B$5:$B$12,\"Fixtures-\"&CBAT!$D46)=1,VLOOKUP(\"Fixtures-\"&CBAT!$D46,'CBAT Lookups'!$B$5:$K$12,5),0)))","v":""},{"$f":"IF('Project Scope'!$C46=\"\",\"\",(IF(COUNTIF('CBAT Lookups'!$B$5:$B$12,\"Fixtures-\"&CBAT!$D46)=1,VLOOKUP(\"Fixtures-\"&CBAT!$D46,'CBAT Lookups'!$B$5:$K$12,6),0)))","v":""},{"$f":"IF('Project Scope'!$C46=\"\",\"\",IF(COUNTIF('CBAT Lookups'!$B$5:$B$12,\"Fixtures-\"&CBAT!$D46)=1,VLOOKUP(\"Fixtures-\"&CBAT!$D46,'CBAT Lookups'!$B$5:$K$12,7),0))","v":""},{"$f":"IF('Project Scope'!$C46=\"\",\"\",IF(VLOOKUP($F46,'CBAT Lookups'!$B$17:$K$19,8)=\"W\",1,IF(COUNTIF('CBAT Lookups'!$B$5:$B$12,\"Fixtures-\"&CBAT!$D46)=1,VLOOKUP(\"Fixtures-\"&CBAT!$D46,'CBAT Lookups'!$B$5:$K$12,8),0)*VLOOKUP($F46,'CBAT Lookups'!$B$17:$K$19,8)))","v":""},{"$f":"IF('Project Scope'!$C46=\"\",\"\",IF(VLOOKUP($F46,'CBAT Lookups'!$B$17:$K$19,9)=\"W\",1,IF(COUNTIF('CBAT Lookups'!$B$5:$B$12,\"Fixtures-\"&CBAT!$D46)=1,VLOOKUP(\"Fixtures-\"&CBAT!$D46,'CBAT Lookups'!$B$5:$K$12,9),0)*VLOOKUP($F46,'CBAT Lookups'!$B$17:$K$19,9)))","v":""},{"$f":"IF('Project Scope'!$C46=\"\",\"\",IF(COUNTIF('CBAT Lookups'!$B$5:$B$12,\"Fixtures-\"&CBAT!$D46)=1,VLOOKUP(\"Fixtures-\"&CBAT!$D46,'CBAT Lookups'!$B$5:$K$12,10),0)*VLOOKUP($F46,'CBAT Lookups'!$B$17:$K$19,10))","v":""},{"$f":"IF('Project Scope'!$C46=\"\",\"\",IF(COUNTIF('CBAT Lookups'!$B$5:$B$12,\"Fixtures-\"&CBAT!$D46)=1,VLOOKUP(\"Fixtures-\"&CBAT!$D46,'CBAT Lookups'!$B$5:$O$12,12),0))","v":""},{"$f":"IF('Project Scope'!$C46=\"\",\"\",IF(COUNTIF('CBAT Lookups'!$B$5:$B$12,\"Fixtures-\"&CBAT!$D46)=1,VLOOKUP(\"Fixtures-\"&CBAT!$D46,'CBAT Lookups'!$B$5:$O$12,13),0))","v":""},{"$f":"IF('Project Scope'!$C46=\"\",\"\",IF(COUNTIF('CBAT Lookups'!$B$5:$B$12,\"Fixtures-\"&CBAT!$D46)=1,VLOOKUP(\"Fixtures-\"&CBAT!$D46,'CBAT Lookups'!$B$5:$O$12,14),0))","v":""},{"$f":"IF('Project Scope'!$C46=\"\",\"\",'TRM Data'!$U$3)","v":""},{"$f":"IF('Project Scope'!$C46=\"\",\"\",'TRM Data'!$V$3)","v":""},{"$f":"IF('Project Scope'!$C46=\"\",\"\",IF($J46<=0,0,MAX(0,(($G46*$H46/1000)-($I46*$J46/1000))*$L46)*$U46)+($AF46/0.003412))","v":""},{"$f":"IF('Project Scope'!$C46=\"\",\"\",IF($J46<=0,0,MAX(0,(($G46*$H46/1000)-($I46*$J46/1000)))*$T46))","v":""},{"$f":"IF('Project Scope'!$C46=\"\",\"\",IF($J46<=0,0,MAX(0,(($G46*$H46/1000)-($I46*$J46/1000))*$N46)))","v":""},{"$f":"IF('Project Scope'!$C46=\"\",\"\",IF($J46<=0,0,MAX(0,(($G46*$H46/1000)-($I46*$J46/1000))*$O46)*$T46))","v":""},{"$f":"IF('Project Scope'!$C46=\"\",\"\",IF(OR($J46<=0,'Project Information'!$D$44=\"\"),0,-1*MAX(0,(($G46*$H46/1000)-($I46*$J46/1000))*$L46)*$V46*VLOOKUP('Project Information'!$D$44,'CBAT Lookups'!$A$23:$H$30,2)))","v":""},{"$f":"IF('Project Scope'!$C46=\"\",\"\",IF(OR($J46<=0,'Project Information'!$D$44=\"\"),0,-1*MAX(0,(($G46*$H46/1000)-($I46*$J46/1000))*$L46)*$V46*VLOOKUP('Project Information'!$D$44,'CBAT Lookups'!$A$23:$H$30,3)))","v":""},{"$f":"IF('Project Scope'!$C46=\"\",\"\",IF(OR($J46<=0,'Project Information'!$D$44=\"\"),0,-1*MAX(0,(($G46*$H46/1000)-($I46*$J46/1000))*$L46)*$V46*VLOOKUP('Project Information'!$D$44,'CBAT Lookups'!$A$23:$H$30,4)))","v":""},{"$f":"IF('Project Scope'!$C46=\"\",\"\",IF(OR($J46<=0,'Project Information'!$D$44=\"\"),0,-1*MAX(0,(($G46*$H46/1000)-($I46*$J46/1000))*$L46)*$V46*VLOOKUP('Project Information'!$D$44,'CBAT Lookups'!$A$23:$H$30,5)))","v":""},{"$f":"IF('Project Scope'!$C46=\"\",\"\",IF(OR($J46<=0,'Project Information'!$D$44=\"\"),0,-1*MAX(0,(($G46*$H46/1000)-($I46*$J46/1000))*$L46)*$V46*VLOOKUP('Project Information'!$D$44,'CBAT Lookups'!$A$23:$H$30,6)))","v":""},{"$f":"IF('Project Scope'!$C46=\"\",\"\",IF(OR($J46<=0,'Project Information'!$D$44=\"\"),0,-1*MAX(0,(($G46*$H46/1000)-($I46*$J46/1000))*$L46)*$V46*VLOOKUP('Project Information'!$D$44,'CBAT Lookups'!$A$23:$H$30,7)))","v":""},{"$f":"IF('Project Scope'!$C46=\"\",\"\",IF(OR($J46<=0,'Project Information'!$D$44=\"\"),0,-1*MAX(0,(($G46*$H46/1000)-($I46*$J46/1000))*$L46)*$V46*VLOOKUP('Project Information'!$D$44,'CBAT Lookups'!$A$23:$H$30,8)))","v":""},null,{"$f":"IF('Project Scope'!$C46=\"\",\"\",VLOOKUP($F46,'CBAT Lookups'!$B$17:$K$19,4))","v":""},{"$f":"IF('Project Scope'!$C46=\"\",\"\",VLOOKUP($F46,'CBAT Lookups'!$B$17:$K$19,5))","v":""},{"$f":"IF('Project Scope'!$C46=\"\",\"\",VLOOKUP($F46,'CBAT Lookups'!$B$17:$K$19,6))","v":""},{"$f":"IF('Project Scope'!$C46=\"\",\"\",VLOOKUP($F46,'CBAT Lookups'!$B$17:$K$19,7))","v":""},{"$f":"IF('Project Scope'!$C46=\"\",\"\",IF(SUMPRODUCT($P46:$S46,$AN46:$AQ46)=0,0,P46*AN46/SUMPRODUCT($P46:$S46,$AN46:$AQ46)))","v":""},{"$f":"IF('Project Scope'!$C46=\"\",\"\",IF(SUMPRODUCT($P46:$S46,$AN46:$AQ46)=0,0,Q46*AO46/SUMPRODUCT($P46:$S46,$AN46:$AQ46)))","v":""},{"$f":"IF('Project Scope'!$C46=\"\",\"\",IF(SUMPRODUCT($P46:$S46,$AN46:$AQ46)=0,0,R46*AP46/SUMPRODUCT($P46:$S46,$AN46:$AQ46)))","v":""},{"$f":"IF('Project Scope'!$C46=\"\",\"\",IF(SUMPRODUCT($P46:$S46,$AN46:$AQ46)=0,0,S46*AQ46/SUMPRODUCT($P46:$S46,$AN46:$AQ46)))","v":""},{"$f":"IF('Project Scope'!$C46=\"\",\"\",Benefits($AB46,$AD46,$AE46,$AG46,$AH46,$AI46,$AJ46,$AK46,$AL46,$AM46,$M46,$AR46,$AS46,$AT46,$AU46,$W46,$X46,$Y46,$Z46,$AA46,$E46))","v":""},"","","","","","","","",null,{"$f":"IF('Project Scope'!$C46=\"\",\"\",SUM('Project Scope'!$AT46,'Project Scope'!$AU46))","v":""},{"$f":"IF('Project Scope'!$C46=\"\",\"\",SUM('Project Scope'!$BG46, 'Project Scope'!$AR46,(IF(ISNUMBER('Project Scope'!$AS46),'Project Scope'!$AS46,0)*'Project Information'!$D$12)))","v":""},null,null,{"$f":"IF('Project Scope'!$C46=\"\",\"\",IF(COUNTIF('CBAT Lookups'!$B$5:$B$12,\"Controls-\"&CBAT!$D46)=1,VLOOKUP(\"Controls-\"&CBAT!$D46,'CBAT Lookups'!$B$5:$L$12,11),0))","v":""},{"$f":"IF('Project Scope'!$C46=\"\",\"\",IF(COUNTIF('CBAT Lookups'!$B$5:$B$12,\"Controls-\"&CBAT!$D46)=1,VLOOKUP(\"Controls-\"&CBAT!$D46,'CBAT Lookups'!$B$5:$K$12,2),0)*VLOOKUP($F46,'CBAT Lookups'!$B$17:$K$19,2))","v":""},{"$f":"IF('Project Scope'!$C46=\"\",\"\",IF(COUNTIF('CBAT Lookups'!$B$5:$B$12,\"Controls-\"&CBAT!$D46)=1,VLOOKUP(\"Controls-\"&CBAT!$D46,'CBAT Lookups'!$B$5:$K$12,3),0)*VLOOKUP($F46,'CBAT Lookups'!$B$17:$K$19,3))","v":""},{"$f":"IF('Project Scope'!$C46=\"\",\"\",IF(COUNTIF('CBAT Lookups'!$B$5:$B$12,\"Controls-\"&CBAT!$D46)=1,VLOOKUP(\"Controls-\"&CBAT!$D46,'CBAT Lookups'!$B$5:$K$12,4),0))","v":""},{"$f":"IF('Project Scope'!$C46=\"\",\"\",IF(COUNTIF('CBAT Lookups'!$B$5:$B$12,\"Controls-\"&CBAT!$D46)=1,VLOOKUP(\"Controls-\"&CBAT!$D46,'CBAT Lookups'!$B$5:$K$12,5),0))","v":""},{"$f":"IF('Project Scope'!$C46=\"\",\"\",IF(COUNTIF('CBAT Lookups'!$B$5:$B$12,\"Controls-\"&CBAT!$D46)=1,VLOOKUP(\"Controls-\"&CBAT!$D46,'CBAT Lookups'!$B$5:$K$12,6),0))","v":""},{"$f":"IF('Project Scope'!$C46=\"\",\"\",IF(COUNTIF('CBAT Lookups'!$B$5:$B$12,\"Controls-\"&CBAT!$D46)=1,VLOOKUP(\"Controls-\"&CBAT!$D46,'CBAT Lookups'!$B$5:$K$12,7),0))","v":""},{"$f":"IF('Project Scope'!$C46=\"\",\"\",IF(VLOOKUP($F46,'CBAT Lookups'!$B$17:$K$19,8)=\"W\",1,IF(COUNTIF('CBAT Lookups'!$B$5:$B$12,\"Controls-\"&CBAT!$D46)=1,VLOOKUP(\"Controls-\"&CBAT!$D46,'CBAT Lookups'!$B$5:$K$12,8),0)*VLOOKUP($F46,'CBAT Lookups'!$B$17:$K$19,8)))","v":""},{"$f":"IF('Project Scope'!$C46=\"\",\"\",IF(VLOOKUP($F46,'CBAT Lookups'!$B$17:$K$19,9)=\"W\",1,IF(COUNTIF('CBAT Lookups'!$B$5:$B$12,\"Controls-\"&CBAT!$D46)=1,VLOOKUP(\"Controls-\"&CBAT!$D46,'CBAT Lookups'!$B$5:$K$12,9),0)*VLOOKUP($F46,'CBAT Lookups'!$B$17:$K$19,9)))","v":""},{"$f":"IF('Project Scope'!$C46=\"\",\"\",IF(COUNTIF('CBAT Lookups'!$B$5:$B$12,\"Controls-\"&CBAT!$D46)=1,VLOOKUP(\"Controls-\"&CBAT!$D46,'CBAT Lookups'!$B$5:$K$12,10),0)*VLOOKUP($F46,'CBAT Lookups'!$B$17:$K$19,10))","v":""},{"$f":"IF('Project Scope'!$C46=\"\",\"\",VLOOKUP($C46,'CBAT Lookups'!$A$33:$B$57,2))","v":""},{"$f":"IF('Project Scope'!$C46=\"\",\"\",IF(COUNTIF('CBAT Lookups'!$B$5:$B$12,\"Controls-\"&CBAT!$D46)=1,VLOOKUP(\"Controls-\"&CBAT!$D46,'CBAT Lookups'!$B$5:$O$12,12),0))","v":""},{"$f":"IF('Project Scope'!$C46=\"\",\"\",IF(COUNTIF('CBAT Lookups'!$B$5:$B$12,\"Controls-\"&CBAT!$D46)=1,VLOOKUP(\"Controls-\"&CBAT!$D46,'CBAT Lookups'!$B$5:$O$12,13),0))","v":""},{"$f":"IF('Project Scope'!$C46=\"\",\"\",IF(COUNTIF('CBAT Lookups'!$B$5:$B$12,\"Controls-\"&CBAT!$D46)=1,VLOOKUP(\"Controls-\"&CBAT!$D46,'CBAT Lookups'!$B$5:$O$12,14),0))","v":""},{"$f":"IF('Project Scope'!$C46=\"\",\"\",'TRM Data'!$U$3)","v":""},{"$f":"IF('Project Scope'!$C46=\"\",\"\",'TRM Data'!$V$3)","v":""},{"$f":"IF('Project Scope'!$C46=\"\",\"\",IF($K46<=0,0,MAX(0,(IF(AND($I46>0,$J46>0),($I46*$J46)/1000,($G46*$H46)/1000)*$L46))*$BT46*$BR46)+($CD46/0.003412))","v":""},{"$f":"IF('Project Scope'!$C46=\"\",\"\",IF($K46<=0,0,MAX(0,IF(AND($I46>0,$J46>0),($I46*$J46)/1000,($G46*$H46)/1000))*$BQ46))","v":""},{"$f":"IF('Project Scope'!$C46=\"\",\"\",IF($K46<=0,0,MAX(0,IF(AND($I46>0,$J46>0),($I46*$J46)/1000,($G46*$H46)/1000))*$BK46))","v":""},{"$f":"IF('Project Scope'!$C46=\"\",\"\",IF($K46<=0,0,MAX(0,IF(AND($I46>0,$J46>0),($I46*$J46)/1000,($G46*$H46)/1000))*$BL46*$BQ46))","v":""},{"$f":"IF('Project Scope'!$C46=\"\",\"\",IF(OR($K46<=0,'Project Information'!$D$44=\"\"),0,-1*MAX(0,IF(AND($I46>0,$J46>0),($I46*$J46)/1000,($G46*$H46)/1000))*$BT46*$L46*$BS46*VLOOKUP('Project Information'!$D$44,'CBAT Lookups'!$A$23:$H$30,2)))","v":""},{"$f":"IF('Project Scope'!$C46=\"\",\"\",IF(OR($K46<=0,'Project Information'!$D$44=\"\"),0,-1*MAX(0,IF(AND($I46>0,$J46>0),($I46*$J46)/1000,($G46*$H46)/1000))*$BT46*$L46*$BS46*VLOOKUP('Project Information'!$D$44,'CBAT Lookups'!$A$23:$H$30,3)))","v":""},{"$f":"IF('Project Scope'!$C46=\"\",\"\",IF(OR($K46<=0,'Project Information'!$D$44=\"\"),0,-1*MAX(0,IF(AND($I46>0,$J46>0),($I46*$J46)/1000,($G46*$H46)/1000))*$BT46*$L46*$BS46*VLOOKUP('Project Information'!$D$44,'CBAT Lookups'!$A$23:$H$30,4)))","v":""},{"$f":"IF('Project Scope'!$C46=\"\",\"\",IF(OR($K46<=0,'Project Information'!$D$44=\"\"),0,-1*MAX(0,IF(AND($I46>0,$J46>0),($I46*$J46)/1000,($G46*$H46)/1000))*$BT46*$L46*$BS46*VLOOKUP('Project Information'!$D$44,'CBAT Lookups'!$A$23:$H$30,5)))","v":""},{"$f":"IF('Project Scope'!$C46=\"\",\"\",IF(OR($K46<=0,'Project Information'!$D$44=\"\"),0,-1*MAX(0,IF(AND($I46>0,$J46>0),($I46*$J46)/1000,($G46*$H46)/1000))*$BT46*$L46*$BS46*VLOOKUP('Project Information'!$D$44,'CBAT Lookups'!$A$23:$H$30,6)))","v":""},{"$f":"IF('Project Scope'!$C46=\"\",\"\",IF(OR($K46<=0,'Project Information'!$D$44=\"\"),0,-1*MAX(0,IF(AND($I46>0,$J46>0),($I46*$J46)/1000,($G46*$H46)/1000))*$BT46*$L46*$BS46*VLOOKUP('Project Information'!$D$44,'CBAT Lookups'!$A$23:$H$30,7)))","v":""},{"$f":"IF('Project Scope'!$C46=\"\",\"\",IF(OR($K46<=0,'Project Information'!$D$44=\"\"),0,-1*MAX(0,IF(AND($I46>0,$J46>0),($I46*$J46)/1000,($G46*$H46)/1000))*$BT46*$L46*$BS46*VLOOKUP('Project Information'!$D$44,'CBAT Lookups'!$A$23:$H$30,8)))","v":""},null,{"$f":"IF('Project Scope'!$C46=\"\",\"\",VLOOKUP($F46,'CBAT Lookups'!$B$17:$K$19,4))","v":""},{"$f":"IF('Project Scope'!$C46=\"\",\"\",VLOOKUP($F46,'CBAT Lookups'!$B$17:$K$19,5))","v":""},{"$f":"IF('Project Scope'!$C46=\"\",\"\",VLOOKUP($F46,'CBAT Lookups'!$B$17:$K$19,6))","v":""},{"$f":"IF('Project Scope'!$C46=\"\",\"\",VLOOKUP($F46,'CBAT Lookups'!$B$17:$K$19,7))","v":""},{"$f":"IF('Project Scope'!$C46=\"\",\"\",IF(SUMPRODUCT($BM46:$BP46,$CL46:$CO46)=0,0,BM46*CL46/SUMPRODUCT($BM46:$BP46,$CL46:$CO46)))","v":""},{"$f":"IF('Project Scope'!$C46=\"\",\"\",IF(SUMPRODUCT($BM46:$BP46,$CL46:$CO46)=0,0,BN46*CM46/SUMPRODUCT($BM46:$BP46,$CL46:$CO46)))","v":""},{"$f":"IF('Project Scope'!$C46=\"\",\"\",IF(SUMPRODUCT($BM46:$BP46,$CL46:$CO46)=0,0,BO46*CN46/SUMPRODUCT($BM46:$BP46,$CL46:$CO46)))","v":""},{"$f":"IF('Project Scope'!$C46=\"\",\"\",IF(SUMPRODUCT($BM46:$BP46,$CL46:$CO46)=0,0,BP46*CO46/SUMPRODUCT($BM46:$BP46,$CL46:$CO46)))","v":""},{"$f":"IF('Project Scope'!$C46=\"\",\"\",Benefits($BZ46,$CB46,$CC46,$CE46,$CF46,$CG46,$CH46,$CI46,$CJ46,$CK46,$BJ46,$CP46,$CQ46,$CR46,$CS46,$BU46,$BV46,$BW46,$BX46,$BY46,$E46))","v":""},"","","","","","","","",null,{"$f":"IF('Project Scope'!$C46=\"\",\"\",SUM('Project Scope'!$BB46,'Project Scope'!$BC46))","v":""},{"$f":"IF('Project Scope'!$C46=\"\",\"\",SUM('Project Scope'!$BH46, 'Project Scope'!$AZ46,(IF(ISNUMBER('Project Scope'!$BA46),'Project Scope'!$BA46,0)*'Project Information'!$D$12)))","v":""},null,null,{"$f":"IF('Project Scope'!$C46=\"\",\"\",IF($J46<=0,0,(SUMPRODUCT($AV46:$BC46,--($AV46:$BC46>0))+$BE46)*$DK46/((-SUMPRODUCT($AV46:$BC46,--($AV46:$BC46<0))+$BG46+$BH46+$BI46)*$DK46)))","v":""},{"$f":"IF('Project Scope'!$C46=\"\",\"\",IF($K46<=0,0,(SUMPRODUCT($CT46:$DA46,--($CT46:$DA46>0))+$DC46)*$DK46/((-SUMPRODUCT($CT46:$DA46,--($CT46:$DA46<0))+$DE46+$DF46+$DG46)*$DK46)))","v":""},{"$f":"IF('Project Scope'!$C46=\"\",\"\",IF(AND($J46<=0,$K46<=0),0,(SUMPRODUCT($AV46:$BC46,--($AV46:$BC46>0))+$BE46+SUMPRODUCT($CT46:$DA46,--($CT46:$DA46>0))+$DC46)*$DK46/((-SUMPRODUCT($AV46:$BC46,--($AV46:$BC46<0))+$BG46+$BH46+$BI46-SUMPRODUCT($CT46:$DA46,--($CT46:$DA46<0))+$DE46+$DF46+$DG46)*$DK46)))","v":""},{"$f":"IF('Project Scope'!$C46=\"\",\"\",IF(NetOrGross=\"Net\",(1-Z46+AA46),1))","v":""}]
[{"$f":"'Project Scope'!$B47","v":40},{"$f":"IF('Project Scope'!$C47=\"\",\"\",'Project Scope'!$C47)","v":""},{"$f":"IF('Project Scope'!$C47=\"\",\"\",'Project Scope'!$H47)","v":""},{"$f":"IF(ISNUMBER(SEARCH(\"Bay\",'Project Scope'!$Q47)),\"Bay\",IF('Project Scope'!C47=\"\",\"\",'Project Scope'!E47))","v":""},{"$f":"IF('Project Scope'!$C47=\"\",\"\",\"Com\")","v":""},{"$f":"IF('Project Scope'!$C47=\"\",\"\",'Project Scope'!$L47)","v":""},{"$f":"IF('Project Scope'!$C47=\"\",\"\",IF('Project Scope'!$CJ47=\"\",0,'Project Scope'!$CJ47))","v":""},{"$f":"IF('Project Scope'!$C47=\"\",\"\",IF('Project Scope'!$N47=\"\",0,'Project Scope'!$N47))","v":""},{"$f":"IF('Project Scope'!$C47=\"\",\"\",IF('Project Scope'!$CK47=\"\",0,'Project Scope'!$CK47))","v":""},{"$f":"IF('Project Scope'!$C47=\"\",\"\",IF('Project Scope'!$AO47=\"\",0,'Project Scope'!$AO47))","v":""},{"$f":"IF('Project Scope'!$C47=\"\",\"\",IF('Project Scope'!$AX47=\"\",0,'Project Scope'!$AX47))","v":""},{"$f":"IF('Project Scope'!$C47=\"\",\"\",IF('Project Scope'!$M47=\"\",0,'Project Scope'!$M47))","v":""},{"$f":"IF('Project Scope'!$C47=\"\",\"\",IF(COUNTIF('CBAT Lookups'!$B$5:$B$12,\"Fixtures-\"&CBAT!$D47)=1,VLOOKUP(\"Fixtures-\"&CBAT!$D47,'CBAT Lookups'!$B$5:$L$12,11),0))","v":""},{"$f":"IF('Project Scope'!$C47=\"\",\"\",(IF(COUNTIF('CBAT Lookups'!$B$5:$B$12,\"Fixtures-\"&CBAT!$D47)=1,VLOOKUP(\"Fixtures-\"&CBAT!$D47,'CBAT Lookups'!$B$5:$K$12,2),0))*VLOOKUP($F47,'CBAT Lookups'!$B$17:$K$19,2))","v":""},{"$f":"IF('Project Scope'!$C47=\"\",\"\",(IF(COUNTIF('CBAT Lookups'!$B$5:$B$12,\"Fixtures-\"&CBAT!$D47)=1,VLOOKUP(\"Fixtures-\"&CBAT!$D47,'CBAT Lookups'!$B$5:$K$12,3),0))*VLOOKUP($F47,'CBAT Lookups'!$B$17:$K$19,3))","v":""},{"$f":"IF('Project Scope'!$C47=\"\",\"\",(IF(COUNTIF('CBAT Lookups'!$B$5:$B$12,\"Fixtures-\"&CBAT!$D47)=1,VLOOKUP(\"Fixtures-\"&CBAT!$D47,'CBAT Lookups'!$B$5:$K$12,4),0)))","v":""},{"$f":"IF('Project Scope'!$C47=\"\",\"\",(IF(COUNTIF('CBAT Lookups'!$B$5:$B$12,\"Fixtures-\"&CBAT!$D47)=1,VLOOKUP(\"Fixtures-\"&CBAT!$D47,'CBAT Lookups'!$B$5:$K$12,5),0)))","v":""},{"$f":"IF('Project Scope'!$C47=\"\",\"\",(IF(COUNTIF('CBAT Lookups'!$B$5:$B$12,\"Fixtures-\"&CBAT!$D47)=1,VLOOKUP(\"Fixtures-\"&CBAT!$D47,'CBAT Lookups'!$B$5:$K$12,6),0)))","v":""},{"$f":"IF('Project Scope'!$C47=\"\",\"\",IF(COUNTIF('CBAT Lookups'!$B$5:$B$12,\"Fixtures-\"&CBAT!$D47)=1,VLOOKUP(\"Fixtures-\"&CBAT!$D47,'CBAT Lookups'!$B$5:$K$12,7),0))","v":""},{"$f":"IF('Project Scope'!$C47=\"\",\"\",IF(VLOOKUP($F47,'CBAT Lookups'!$B$17:$K$19,8)=\"W\",1,IF(COUNTIF('CBAT Lookups'!$B$5:$B$12,\"Fixtures-\"&CBAT!$D47)=1,VLOOKUP(\"Fixtures-\"&CBAT!$D47,'CBAT Lookups'!$B$5:$K$12,8),0)*VLOOKUP($F47,'CBAT Lookups'!$B$17:$K$19,8)))","v":""},{"$f":"IF('Project Scope'!$C47=\"\",\"\",IF(VLOOKUP($F47,'CBAT Lookups'!$B$17:$K$19,9)=\"W\",1,IF(COUNTIF('CBAT Lookups'!$B$5:$B$12,\"Fixtures-\"&CBAT!$D47)=1,VLOOKUP(\"Fixtures-\"&CBAT!$D47,'CBAT Lookups'!$B$5:$K$12,9),0)*VLOOKUP($F47,'CBAT Lookups'!$B$17:$K$19,9)))","v":""},{"$f":"IF('Project Scope'!$C47=\"\",\"\",IF(COUNTIF('CBAT Lookups'!$B$5:$B$12,\"Fixtures-\"&CBAT!$D47)=1,VLOOKUP(\"Fixtures-\"&CBAT!$D47,'CBAT Lookups'!$B$5:$K$12,10),0)*VLOOKUP($F47,'CBAT Lookups'!$B$17:$K$19,10))","v":""},{"$f":"IF('Project Scope'!$C47=\"\",\"\",IF(COUNTIF('CBAT Lookups'!$B$5:$B$12,\"Fixtures-\"&CBAT!$D47)=1,VLOOKUP(\"Fixtures-\"&CBAT!$D47,'CBAT Lookups'!$B$5:$O$12,12),0))","v":""},{"$f":"IF('Project Scope'!$C47=\"\",\"\",IF(COUNTIF('CBAT Lookups'!$B$5:$B$12,\"Fixtures-\"&CBAT!$D47)=1,VLOOKUP(\"Fixtures-\"&CBAT!$D47,'CBAT Lookups'!$B$5:$O$12,13),0))","v":""},{"$f":"IF('Project Scope'!$C47=\"\",\"\",IF(COUNTIF('CBAT Lookups'!$B$5:$B$12,\"Fixtures-\"&CBAT!$D47)=1,VLOOKUP(\"Fixtures-\"&CBAT!$D47,'CBAT Lookups'!$B$5:$O$12,14),0))","v":""},{"$f":"IF('Project Scope'!$C47=\"\",\"\",'TRM Data'!$U$3)","v":""},{"$f":"IF('Project Scope'!$C47=\"\",\"\",'TRM Data'!$V$3)","v":""},{"$f":"IF('Project Scope'!$C47=\"\",\"\",IF($J47<=0,0,MAX(0,(($G47*$H47/1000)-($I47*$J47/1000))*$L47)*$U47)+($AF47/0.003412))","v":""},{"$f":"IF('Project Scope'!$C47=\"\",\"\",IF($J47<=0,0,MAX(0,(($G47*$H47/1000)-($I47*$J47/1000)))*$T47))","v":""},{"$f":"IF('Project Scope'!$C47=\"\",\"\",IF($J47<=0,0,MAX(0,(($G47*$H47/1000)-($I47*$J47/1000))*$N47)))","v":""},{"$f":"IF('Project Scope'!$C47=\"\",\"\",IF($J47<=0,0,MAX(0,(($G47*$H47/1000)-($I47*$J47/1000))*$O47)*$T47))","v":""},{"$f":"IF('Project Scope'!$C47=\"\",\"\",IF(OR($J47<=0,'Project Information'!$D$44=\"\"),0,-1*MAX(0,(($G47*$H47/1000)-($I47*$J47/1000))*$L47)*$V47*VLOOKUP('Project Information'!$D$44,'CBAT Lookups'!$A$23:$H$30,2)))","v":""},{"$f":"IF('Project Scope'!$C47=\"\",\"\",IF(OR($J47<=0,'Project Information'!$D$44=\"\"),0,-1*MAX(0,(($G47*$H47/1000)-($I47*$J47/1000))*$L47)*$V47*VLOOKUP('Project Information'!$D$44,'CBAT Lookups'!$A$23:$H$30,3)))","v":""},{"$f":"IF('Project Scope'!$C47=\"\",\"\",IF(OR($J47<=0,'Project Information'!$D$44=\"\"),0,-1*MAX(0,(($G47*$H47/1000)-($I47*$J47/1000))*$L47)*$V47*VLOOKUP('Project Information'!$D$44,'CBAT Lookups'!$A$23:$H$30,4)))","v":""},{"$f":"IF('Project Scope'!$C47=\"\",\"\",IF(OR($J47<=0,'Project Information'!$D$44=\"\"),0,-1*MAX(0,(($G47*$H47/1000)-($I47*$J47/1000))*$L47)*$V47*VLOOKUP('Project Information'!$D$44,'CBAT Lookups'!$A$23:$H$30,5)))","v":""},{"$f":"IF('Project Scope'!$C47=\"\",\"\",IF(OR($J47<=0,'Project Information'!$D$44=\"\"),0,-1*MAX(0,(($G47*$H47/1000)-($I47*$J47/1000))*$L47)*$V47*VLOOKUP('Project Information'!$D$44,'CBAT Lookups'!$A$23:$H$30,6)))","v":""},{"$f":"IF('Project Scope'!$C47=\"\",\"\",IF(OR($J47<=0,'Project Information'!$D$44=\"\"),0,-1*MAX(0,(($G47*$H47/1000)-($I47*$J47/1000))*$L47)*$V47*VLOOKUP('Project Information'!$D$44,'CBAT Lookups'!$A$23:$H$30,7)))","v":""},{"$f":"IF('Project Scope'!$C47=\"\",\"\",IF(OR($J47<=0,'Project Information'!$D$44=\"\"),0,-1*MAX(0,(($G47*$H47/1000)-($I47*$J47/1000))*$L47)*$V47*VLOOKUP('Project Information'!$D$44,'CBAT Lookups'!$A$23:$H$30,8)))","v":""},null,{"$f":"IF('Project Scope'!$C47=\"\",\"\",VLOOKUP($F47,'CBAT Lookups'!$B$17:$K$19,4))","v":""},{"$f":"IF('Project Scope'!$C47=\"\",\"\",VLOOKUP($F47,'CBAT Lookups'!$B$17:$K$19,5))","v":""},{"$f":"IF('Project Scope'!$C47=\"\",\"\",VLOOKUP($F47,'CBAT Lookups'!$B$17:$K$19,6))","v":""},{"$f":"IF('Project Scope'!$C47=\"\",\"\",VLOOKUP($F47,'CBAT Lookups'!$B$17:$K$19,7))","v":""},{"$f":"IF('Project Scope'!$C47=\"\",\"\",IF(SUMPRODUCT($P47:$S47,$AN47:$AQ47)=0,0,P47*AN47/SUMPRODUCT($P47:$S47,$AN47:$AQ47)))","v":""},{"$f":"IF('Project Scope'!$C47=\"\",\"\",IF(SUMPRODUCT($P47:$S47,$AN47:$AQ47)=0,0,Q47*AO47/SUMPRODUCT($P47:$S47,$AN47:$AQ47)))","v":""},{"$f":"IF('Project Scope'!$C47=\"\",\"\",IF(SUMPRODUCT($P47:$S47,$AN47:$AQ47)=0,0,R47*AP47/SUMPRODUCT($P47:$S47,$AN47:$AQ47)))","v":""},{"$f":"IF('Project Scope'!$C47=\"\",\"\",IF(SUMPRODUCT($P47:$S47,$AN47:$AQ47)=0,0,S47*AQ47/SUMPRODUCT($P47:$S47,$AN47:$AQ47)))","v":""},{"$f":"IF('Project Scope'!$C47=\"\",\"\",Benefits($AB47,$AD47,$AE47,$AG47,$AH47,$AI47,$AJ47,$AK47,$AL47,$AM47,$M47,$AR47,$AS47,$AT47,$AU47,$W47,$X47,$Y47,$Z47,$AA47,$E47))","v":""},"","","","","","","","",null,{"$f":"IF('Project Scope'!$C47=\"\",\"\",SUM('Project Scope'!$AT47,'Project Scope'!$AU47))","v":""},{"$f":"IF('Project Scope'!$C47=\"\",\"\",SUM('Project Scope'!$BG47, 'Project Scope'!$AR47,(IF(ISNUMBER('Project Scope'!$AS47),'Project Scope'!$AS47,0)*'Project Information'!$D$12)))","v":""},null,null,{"$f":"IF('Project Scope'!$C47=\"\",\"\",IF(COUNTIF('CBAT Lookups'!$B$5:$B$12,\"Controls-\"&CBAT!$D47)=1,VLOOKUP(\"Controls-\"&CBAT!$D47,'CBAT Lookups'!$B$5:$L$12,11),0))","v":""},{"$f":"IF('Project Scope'!$C47=\"\",\"\",IF(COUNTIF('CBAT Lookups'!$B$5:$B$12,\"Controls-\"&CBAT!$D47)=1,VLOOKUP(\"Controls-\"&CBAT!$D47,'CBAT Lookups'!$B$5:$K$12,2),0)*VLOOKUP($F47,'CBAT Lookups'!$B$17:$K$19,2))","v":""},{"$f":"IF('Project Scope'!$C47=\"\",\"\",IF(COUNTIF('CBAT Lookups'!$B$5:$B$12,\"Controls-\"&CBAT!$D47)=1,VLOOKUP(\"Controls-\"&CBAT!$D47,'CBAT Lookups'!$B$5:$K$12,3),0)*VLOOKUP($F47,'CBAT Lookups'!$B$17:$K$19,3))","v":""},{"$f":"IF('Project Scope'!$C47=\"\",\"\",IF(COUNTIF('CBAT Lookups'!$B$5:$B$12,\"Controls-\"&CBAT!$D47)=1,VLOOKUP(\"Controls-\"&CBAT!$D47,'CBAT Lookups'!$B$5:$K$12,4),0))","v":""},{"$f":"IF('Project Scope'!$C47=\"\",\"\",IF(COUNTIF('CBAT Lookups'!$B$5:$B$12,\"Controls-\"&CBAT!$D47)=1,VLOOKUP(\"Controls-\"&CBAT!$D47,'CBAT Lookups'!$B$5:$K$12,5),0))","v":""},{"$f":"IF('Project Scope'!$C47=\"\",\"\",IF(COUNTIF('CBAT Lookups'!$B$5:$B$12,\"Controls-\"&CBAT!$D47)=1,VLOOKUP(\"Controls-\"&CBAT!$D47,'CBAT Lookups'!$B$5:$K$12,6),0))","v":""},{"$f":"IF('Project Scope'!$C47=\"\",\"\",IF(COUNTIF('CBAT Lookups'!$B$5:$B$12,\"Controls-\"&CBAT!$D47)=1,VLOOKUP(\"Controls-\"&CBAT!$D47,'CBAT Lookups'!$B$5:$K$12,7),0))","v":""},{"$f":"IF('Project Scope'!$C47=\"\",\"\",IF(VLOOKUP($F47,'CBAT Lookups'!$B$17:$K$19,8)=\"W\",1,IF(COUNTIF('CBAT Lookups'!$B$5:$B$12,\"Controls-\"&CBAT!$D47)=1,VLOOKUP(\"Controls-\"&CBAT!$D47,'CBAT Lookups'!$B$5:$K$12,8),0)*VLOOKUP($F47,'CBAT Lookups'!$B$17:$K$19,8)))","v":""},{"$f":"IF('Project Scope'!$C47=\"\",\"\",IF(VLOOKUP($F47,'CBAT Lookups'!$B$17:$K$19,9)=\"W\",1,IF(COUNTIF('CBAT Lookups'!$B$5:$B$12,\"Controls-\"&CBAT!$D47)=1,VLOOKUP(\"Controls-\"&CBAT!$D47,'CBAT Lookups'!$B$5:$K$12,9),0)*VLOOKUP($F47,'CBAT Lookups'!$B$17:$K$19,9)))","v":""},{"$f":"IF('Project Scope'!$C47=\"\",\"\",IF(COUNTIF('CBAT Lookups'!$B$5:$B$12,\"Controls-\"&CBAT!$D47)=1,VLOOKUP(\"Controls-\"&CBAT!$D47,'CBAT Lookups'!$B$5:$K$12,10),0)*VLOOKUP($F47,'CBAT Lookups'!$B$17:$K$19,10))","v":""},{"$f":"IF('Project Scope'!$C47=\"\",\"\",VLOOKUP($C47,'CBAT Lookups'!$A$33:$B$57,2))","v":""},{"$f":"IF('Project Scope'!$C47=\"\",\"\",IF(COUNTIF('CBAT Lookups'!$B$5:$B$12,\"Controls-\"&CBAT!$D47)=1,VLOOKUP(\"Controls-\"&CBAT!$D47,'CBAT Lookups'!$B$5:$O$12,12),0))","v":""},{"$f":"IF('Project Scope'!$C47=\"\",\"\",IF(COUNTIF('CBAT Lookups'!$B$5:$B$12,\"Controls-\"&CBAT!$D47)=1,VLOOKUP(\"Controls-\"&CBAT!$D47,'CBAT Lookups'!$B$5:$O$12,13),0))","v":""},{"$f":"IF('Project Scope'!$C47=\"\",\"\",IF(COUNTIF('CBAT Lookups'!$B$5:$B$12,\"Controls-\"&CBAT!$D47)=1,VLOOKUP(\"Controls-\"&CBAT!$D47,'CBAT Lookups'!$B$5:$O$12,14),0))","v":""},{"$f":"IF('Project Scope'!$C47=\"\",\"\",'TRM Data'!$U$3)","v":""},{"$f":"IF('Project Scope'!$C47=\"\",\"\",'TRM Data'!$V$3)","v":""},{"$f":"IF('Project Scope'!$C47=\"\",\"\",IF($K47<=0,0,MAX(0,(IF(AND($I47>0,$J47>0),($I47*$J47)/1000,($G47*$H47)/1000)*$L47))*$BT47*$BR47)+($CD47/0.003412))","v":""},{"$f":"IF('Project Scope'!$C47=\"\",\"\",IF($K47<=0,0,MAX(0,IF(AND($I47>0,$J47>0),($I47*$J47)/1000,($G47*$H47)/1000))*$BQ47))","v":""},{"$f":"IF('Project Scope'!$C47=\"\",\"\",IF($K47<=0,0,MAX(0,IF(AND($I47>0,$J47>0),($I47*$J47)/1000,($G47*$H47)/1000))*$BK47))","v":""},{"$f":"IF('Project Scope'!$C47=\"\",\"\",IF($K47<=0,0,MAX(0,IF(AND($I47>0,$J47>0),($I47*$J47)/1000,($G47*$H47)/1000))*$BL47*$BQ47))","v":""},{"$f":"IF('Project Scope'!$C47=\"\",\"\",IF(OR($K47<=0,'Project Information'!$D$44=\"\"),0,-1*MAX(0,IF(AND($I47>0,$J47>0),($I47*$J47)/1000,($G47*$H47)/1000))*$BT47*$L47*$BS47*VLOOKUP('Project Information'!$D$44,'CBAT Lookups'!$A$23:$H$30,2)))","v":""},{"$f":"IF('Project Scope'!$C47=\"\",\"\",IF(OR($K47<=0,'Project Information'!$D$44=\"\"),0,-1*MAX(0,IF(AND($I47>0,$J47>0),($I47*$J47)/1000,($G47*$H47)/1000))*$BT47*$L47*$BS47*VLOOKUP('Project Information'!$D$44,'CBAT Lookups'!$A$23:$H$30,3)))","v":""},{"$f":"IF('Project Scope'!$C47=\"\",\"\",IF(OR($K47<=0,'Project Information'!$D$44=\"\"),0,-1*MAX(0,IF(AND($I47>0,$J47>0),($I47*$J47)/1000,($G47*$H47)/1000))*$BT47*$L47*$BS47*VLOOKUP('Project Information'!$D$44,'CBAT Lookups'!$A$23:$H$30,4)))","v":""},{"$f":"IF('Project Scope'!$C47=\"\",\"\",IF(OR($K47<=0,'Project Information'!$D$44=\"\"),0,-1*MAX(0,IF(AND($I47>0,$J47>0),($I47*$J47)/1000,($G47*$H47)/1000))*$BT47*$L47*$BS47*VLOOKUP('Project Information'!$D$44,'CBAT Lookups'!$A$23:$H$30,5)))","v":""},{"$f":"IF('Project Scope'!$C47=\"\",\"\",IF(OR($K47<=0,'Project Information'!$D$44=\"\"),0,-1*MAX(0,IF(AND($I47>0,$J47>0),($I47*$J47)/1000,($G47*$H47)/1000))*$BT47*$L47*$BS47*VLOOKUP('Project Information'!$D$44,'CBAT Lookups'!$A$23:$H$30,6)))","v":""},{"$f":"IF('Project Scope'!$C47=\"\",\"\",IF(OR($K47<=0,'Project Information'!$D$44=\"\"),0,-1*MAX(0,IF(AND($I47>0,$J47>0),($I47*$J47)/1000,($G47*$H47)/1000))*$BT47*$L47*$BS47*VLOOKUP('Project Information'!$D$44,'CBAT Lookups'!$A$23:$H$30,7)))","v":""},{"$f":"IF('Project Scope'!$C47=\"\",\"\",IF(OR($K47<=0,'Project Information'!$D$44=\"\"),0,-1*MAX(0,IF(AND($I47>0,$J47>0),($I47*$J47)/1000,($G47*$H47)/1000))*$BT47*$L47*$BS47*VLOOKUP('Project Information'!$D$44,'CBAT Lookups'!$A$23:$H$30,8)))","v":""},null,{"$f":"IF('Project Scope'!$C47=\"\",\"\",VLOOKUP($F47,'CBAT Lookups'!$B$17:$K$19,4))","v":""},{"$f":"IF('Project Scope'!$C47=\"\",\"\",VLOOKUP($F47,'CBAT Lookups'!$B$17:$K$19,5))","v":""},{"$f":"IF('Project Scope'!$C47=\"\",\"\",VLOOKUP($F47,'CBAT Lookups'!$B$17:$K$19,6))","v":""},{"$f":"IF('Project Scope'!$C47=\"\",\"\",VLOOKUP($F47,'CBAT Lookups'!$B$17:$K$19,7))","v":""},{"$f":"IF('Project Scope'!$C47=\"\",\"\",IF(SUMPRODUCT($BM47:$BP47,$CL47:$CO47)=0,0,BM47*CL47/SUMPRODUCT($BM47:$BP47,$CL47:$CO47)))","v":""},{"$f":"IF('Project Scope'!$C47=\"\",\"\",IF(SUMPRODUCT($BM47:$BP47,$CL47:$CO47)=0,0,BN47*CM47/SUMPRODUCT($BM47:$BP47,$CL47:$CO47)))","v":""},{"$f":"IF('Project Scope'!$C47=\"\",\"\",IF(SUMPRODUCT($BM47:$BP47,$CL47:$CO47)=0,0,BO47*CN47/SUMPRODUCT($BM47:$BP47,$CL47:$CO47)))","v":""},{"$f":"IF('Project Scope'!$C47=\"\",\"\",IF(SUMPRODUCT($BM47:$BP47,$CL47:$CO47)=0,0,BP47*CO47/SUMPRODUCT($BM47:$BP47,$CL47:$CO47)))","v":""},{"$f":"IF('Project Scope'!$C47=\"\",\"\",Benefits($BZ47,$CB47,$CC47,$CE47,$CF47,$CG47,$CH47,$CI47,$CJ47,$CK47,$BJ47,$CP47,$CQ47,$CR47,$CS47,$BU47,$BV47,$BW47,$BX47,$BY47,$E47))","v":""},"","","","","","","","",null,{"$f":"IF('Project Scope'!$C47=\"\",\"\",SUM('Project Scope'!$BB47,'Project Scope'!$BC47))","v":""},{"$f":"IF('Project Scope'!$C47=\"\",\"\",SUM('Project Scope'!$BH47, 'Project Scope'!$AZ47,(IF(ISNUMBER('Project Scope'!$BA47),'Project Scope'!$BA47,0)*'Project Information'!$D$12)))","v":""},null,null,{"$f":"IF('Project Scope'!$C47=\"\",\"\",IF($J47<=0,0,(SUMPRODUCT($AV47:$BC47,--($AV47:$BC47>0))+$BE47)*$DK47/((-SUMPRODUCT($AV47:$BC47,--($AV47:$BC47<0))+$BG47+$BH47+$BI47)*$DK47)))","v":""},{"$f":"IF('Project Scope'!$C47=\"\",\"\",IF($K47<=0,0,(SUMPRODUCT($CT47:$DA47,--($CT47:$DA47>0))+$DC47)*$DK47/((-SUMPRODUCT($CT47:$DA47,--($CT47:$DA47<0))+$DE47+$DF47+$DG47)*$DK47)))","v":""},{"$f":"IF('Project Scope'!$C47=\"\",\"\",IF(AND($J47<=0,$K47<=0),0,(SUMPRODUCT($AV47:$BC47,--($AV47:$BC47>0))+$BE47+SUMPRODUCT($CT47:$DA47,--($CT47:$DA47>0))+$DC47)*$DK47/((-SUMPRODUCT($AV47:$BC47,--($AV47:$BC47<0))+$BG47+$BH47+$BI47-SUMPRODUCT($CT47:$DA47,--($CT47:$DA47<0))+$DE47+$DF47+$DG47)*$DK47)))","v":""},{"$f":"IF('Project Scope'!$C47=\"\",\"\",IF(NetOrGross=\"Net\",(1-Z47+AA47),1))","v":""}]
[{"$f":"'Project Scope'!$B48","v":41},{"$f":"IF('Project Scope'!$C48=\"\",\"\",'Project Scope'!$C48)","v":""},{"$f":"IF('Project Scope'!$C48=\"\",\"\",'Project Scope'!$H48)","v":""},{"$f":"IF(ISNUMBER(SEARCH(\"Bay\",'Project Scope'!$Q48)),\"Bay\",IF('Project Scope'!C48=\"\",\"\",'Project Scope'!E48))","v":""},{"$f":"IF('Project Scope'!$C48=\"\",\"\",\"Com\")","v":""},{"$f":"IF('Project Scope'!$C48=\"\",\"\",'Project Scope'!$L48)","v":""},{"$f":"IF('Project Scope'!$C48=\"\",\"\",IF('Project Scope'!$CJ48=\"\",0,'Project Scope'!$CJ48))","v":""},{"$f":"IF('Project Scope'!$C48=\"\",\"\",IF('Project Scope'!$N48=\"\",0,'Project Scope'!$N48))","v":""},{"$f":"IF('Project Scope'!$C48=\"\",\"\",IF('Project Scope'!$CK48=\"\",0,'Project Scope'!$CK48))","v":""},{"$f":"IF('Project Scope'!$C48=\"\",\"\",IF('Project Scope'!$AO48=\"\",0,'Project Scope'!$AO48))","v":""},{"$f":"IF('Project Scope'!$C48=\"\",\"\",IF('Project Scope'!$AX48=\"\",0,'Project Scope'!$AX48))","v":""},{"$f":"IF('Project Scope'!$C48=\"\",\"\",IF('Project Scope'!$M48=\"\",0,'Project Scope'!$M48))","v":""},{"$f":"IF('Project Scope'!$C48=\"\",\"\",IF(COUNTIF('CBAT Lookups'!$B$5:$B$12,\"Fixtures-\"&CBAT!$D48)=1,VLOOKUP(\"Fixtures-\"&CBAT!$D48,'CBAT Lookups'!$B$5:$L$12,11),0))","v":""},{"$f":"IF('Project Scope'!$C48=\"\",\"\",(IF(COUNTIF('CBAT Lookups'!$B$5:$B$12,\"Fixtures-\"&CBAT!$D48)=1,VLOOKUP(\"Fixtures-\"&CBAT!$D48,'CBAT Lookups'!$B$5:$K$12,2),0))*VLOOKUP($F48,'CBAT Lookups'!$B$17:$K$19,2))","v":""},{"$f":"IF('Project Scope'!$C48=\"\",\"\",(IF(COUNTIF('CBAT Lookups'!$B$5:$B$12,\"Fixtures-\"&CBAT!$D48)=1,VLOOKUP(\"Fixtures-\"&CBAT!$D48,'CBAT Lookups'!$B$5:$K$12,3),0))*VLOOKUP($F48,'CBAT Lookups'!$B$17:$K$19,3))","v":""},{"$f":"IF('Project Scope'!$C48=\"\",\"\",(IF(COUNTIF('CBAT Lookups'!$B$5:$B$12,\"Fixtures-\"&CBAT!$D48)=1,VLOOKUP(\"Fixtures-\"&CBAT!$D48,'CBAT Lookups'!$B$5:$K$12,4),0)))","v":""},{"$f":"IF('Project Scope'!$C48=\"\",\"\",(IF(COUNTIF('CBAT Lookups'!$B$5:$B$12,\"Fixtures-\"&CBAT!$D48)=1,VLOOKUP(\"Fixtures-\"&CBAT!$D48,'CBAT Lookups'!$B$5:$K$12,5),0)))","v":""},{"$f":"IF('Project Scope'!$C48=\"\",\"\",(IF(COUNTIF('CBAT Lookups'!$B$5:$B$12,\"Fixtures-\"&CBAT!$D48)=1,VLOOKUP(\"Fixtures-\"&CBAT!$D48,'CBAT Lookups'!$B$5:$K$12,6),0)))","v":""},{"$f":"IF('Project Scope'!$C48=\"\",\"\",IF(COUNTIF('CBAT Lookups'!$B$5:$B$12,\"Fixtures-\"&CBAT!$D48)=1,VLOOKUP(\"Fixtures-\"&CBAT!$D48,'CBAT Lookups'!$B$5:$K$12,7),0))","v":""},{"$f":"IF('Project Scope'!$C48=\"\",\"\",IF(VLOOKUP($F48,'CBAT Lookups'!$B$17:$K$19,8)=\"W\",1,IF(COUNTIF('CBAT Lookups'!$B$5:$B$12,\"Fixtures-\"&CBAT!$D48)=1,VLOOKUP(\"Fixtures-\"&CBAT!$D48,'CBAT Lookups'!$B$5:$K$12,8),0)*VLOOKUP($F48,'CBAT Lookups'!$B$17:$K$19,8)))","v":""},{"$f":"IF('Project Scope'!$C48=\"\",\"\",IF(VLOOKUP($F48,'CBAT Lookups'!$B$17:$K$19,9)=\"W\",1,IF(COUNTIF('CBAT Lookups'!$B$5:$B$12,\"Fixtures-\"&CBAT!$D48)=1,VLOOKUP(\"Fixtures-\"&CBAT!$D48,'CBAT Lookups'!$B$5:$K$12,9),0)*VLOOKUP($F48,'CBAT Lookups'!$B$17:$K$19,9)))","v":""},{"$f":"IF('Project Scope'!$C48=\"\",\"\",IF(COUNTIF('CBAT Lookups'!$B$5:$B$12,\"Fixtures-\"&CBAT!$D48)=1,VLOOKUP(\"Fixtures-\"&CBAT!$D48,'CBAT Lookups'!$B$5:$K$12,10),0)*VLOOKUP($F48,'CBAT Lookups'!$B$17:$K$19,10))","v":""},{"$f":"IF('Project Scope'!$C48=\"\",\"\",IF(COUNTIF('CBAT Lookups'!$B$5:$B$12,\"Fixtures-\"&CBAT!$D48)=1,VLOOKUP(\"Fixtures-\"&CBAT!$D48,'CBAT Lookups'!$B$5:$O$12,12),0))","v":""},{"$f":"IF('Project Scope'!$C48=\"\",\"\",IF(COUNTIF('CBAT Lookups'!$B$5:$B$12,\"Fixtures-\"&CBAT!$D48)=1,VLOOKUP(\"Fixtures-\"&CBAT!$D48,'CBAT Lookups'!$B$5:$O$12,13),0))","v":""},{"$f":"IF('Project Scope'!$C48=\"\",\"\",IF(COUNTIF('CBAT Lookups'!$B$5:$B$12,\"Fixtures-\"&CBAT!$D48)=1,VLOOKUP(\"Fixtures-\"&CBAT!$D48,'CBAT Lookups'!$B$5:$O$12,14),0))","v":""},{"$f":"IF('Project Scope'!$C48=\"\",\"\",'TRM Data'!$U$3)","v":""},{"$f":"IF('Project Scope'!$C48=\"\",\"\",'TRM Data'!$V$3)","v":""},{"$f":"IF('Project Scope'!$C48=\"\",\"\",IF($J48<=0,0,MAX(0,(($G48*$H48/1000)-($I48*$J48/1000))*$L48)*$U48)+($AF48/0.003412))","v":""},{"$f":"IF('Project Scope'!$C48=\"\",\"\",IF($J48<=0,0,MAX(0,(($G48*$H48/1000)-($I48*$J48/1000)))*$T48))","v":""},{"$f":"IF('Project Scope'!$C48=\"\",\"\",IF($J48<=0,0,MAX(0,(($G48*$H48/1000)-($I48*$J48/1000))*$N48)))","v":""},{"$f":"IF('Project Scope'!$C48=\"\",\"\",IF($J48<=0,0,MAX(0,(($G48*$H48/1000)-($I48*$J48/1000))*$O48)*$T48))","v":""},{"$f":"IF('Project Scope'!$C48=\"\",\"\",IF(OR($J48<=0,'Project Information'!$D$44=\"\"),0,-1*MAX(0,(($G48*$H48/1000)-($I48*$J48/1000))*$L48)*$V48*VLOOKUP('Project Information'!$D$44,'CBAT Lookups'!$A$23:$H$30,2)))","v":""},{"$f":"IF('Project Scope'!$C48=\"\",\"\",IF(OR($J48<=0,'Project Information'!$D$44=\"\"),0,-1*MAX(0,(($G48*$H48/1000)-($I48*$J48/1000))*$L48)*$V48*VLOOKUP('Project Information'!$D$44,'CBAT Lookups'!$A$23:$H$30,3)))","v":""},{"$f":"IF('Project Scope'!$C48=\"\",\"\",IF(OR($J48<=0,'Project Information'!$D$44=\"\"),0,-1*MAX(0,(($G48*$H48/1000)-($I48*$J48/1000))*$L48)*$V48*VLOOKUP('Project Information'!$D$44,'CBAT Lookups'!$A$23:$H$30,4)))","v":""},{"$f":"IF('Project Scope'!$C48=\"\",\"\",IF(OR($J48<=0,'Project Information'!$D$44=\"\"),0,-1*MAX(0,(($G48*$H48/1000)-($I48*$J48/1000))*$L48)*$V48*VLOOKUP('Project Information'!$D$44,'CBAT Lookups'!$A$23:$H$30,5)))","v":""},{"$f":"IF('Project Scope'!$C48=\"\",\"\",IF(OR($J48<=0,'Project Information'!$D$44=\"\"),0,-1*MAX(0,(($G48*$H48/1000)-($I48*$J48/1000))*$L48)*$V48*VLOOKUP('Project Information'!$D$44,'CBAT Lookups'!$A$23:$H$30,6)))","v":""},{"$f":"IF('Project Scope'!$C48=\"\",\"\",IF(OR($J48<=0,'Project Information'!$D$44=\"\"),0,-1*MAX(0,(($G48*$H48/1000)-($I48*$J48/1000))*$L48)*$V48*VLOOKUP('Project Information'!$D$44,'CBAT Lookups'!$A$23:$H$30,7)))","v":""},{"$f":"IF('Project Scope'!$C48=\"\",\"\",IF(OR($J48<=0,'Project Information'!$D$44=\"\"),0,-1*MAX(0,(($G48*$H48/1000)-($I48*$J48/1000))*$L48)*$V48*VLOOKUP('Project Information'!$D$44,'CBAT Lookups'!$A$23:$H$30,8)))","v":""},null,{"$f":"IF('Project Scope'!$C48=\"\",\"\",VLOOKUP($F48,'CBAT Lookups'!$B$17:$K$19,4))","v":""},{"$f":"IF('Project Scope'!$C48=\"\",\"\",VLOOKUP($F48,'CBAT Lookups'!$B$17:$K$19,5))","v":""},{"$f":"IF('Project Scope'!$C48=\"\",\"\",VLOOKUP($F48,'CBAT Lookups'!$B$17:$K$19,6))","v":""},{"$f":"IF('Project Scope'!$C48=\"\",\"\",VLOOKUP($F48,'CBAT Lookups'!$B$17:$K$19,7))","v":""},{"$f":"IF('Project Scope'!$C48=\"\",\"\",IF(SUMPRODUCT($P48:$S48,$AN48:$AQ48)=0,0,P48*AN48/SUMPRODUCT($P48:$S48,$AN48:$AQ48)))","v":""},{"$f":"IF('Project Scope'!$C48=\"\",\"\",IF(SUMPRODUCT($P48:$S48,$AN48:$AQ48)=0,0,Q48*AO48/SUMPRODUCT($P48:$S48,$AN48:$AQ48)))","v":""},{"$f":"IF('Project Scope'!$C48=\"\",\"\",IF(SUMPRODUCT($P48:$S48,$AN48:$AQ48)=0,0,R48*AP48/SUMPRODUCT($P48:$S48,$AN48:$AQ48)))","v":""},{"$f":"IF('Project Scope'!$C48=\"\",\"\",IF(SUMPRODUCT($P48:$S48,$AN48:$AQ48)=0,0,S48*AQ48/SUMPRODUCT($P48:$S48,$AN48:$AQ48)))","v":""},{"$f":"IF('Project Scope'!$C48=\"\",\"\",Benefits($AB48,$AD48,$AE48,$AG48,$AH48,$AI48,$AJ48,$AK48,$AL48,$AM48,$M48,$AR48,$AS48,$AT48,$AU48,$W48,$X48,$Y48,$Z48,$AA48,$E48))","v":""},"","","","","","","","",null,{"$f":"IF('Project Scope'!$C48=\"\",\"\",SUM('Project Scope'!$AT48,'Project Scope'!$AU48))","v":""},{"$f":"IF('Project Scope'!$C48=\"\",\"\",SUM('Project Scope'!$BG48, 'Project Scope'!$AR48,(IF(ISNUMBER('Project Scope'!$AS48),'Project Scope'!$AS48,0)*'Project Information'!$D$12)))","v":""},null,null,{"$f":"IF('Project Scope'!$C48=\"\",\"\",IF(COUNTIF('CBAT Lookups'!$B$5:$B$12,\"Controls-\"&CBAT!$D48)=1,VLOOKUP(\"Controls-\"&CBAT!$D48,'CBAT Lookups'!$B$5:$L$12,11),0))","v":""},{"$f":"IF('Project Scope'!$C48=\"\",\"\",IF(COUNTIF('CBAT Lookups'!$B$5:$B$12,\"Controls-\"&CBAT!$D48)=1,VLOOKUP(\"Controls-\"&CBAT!$D48,'CBAT Lookups'!$B$5:$K$12,2),0)*VLOOKUP($F48,'CBAT Lookups'!$B$17:$K$19,2))","v":""},{"$f":"IF('Project Scope'!$C48=\"\",\"\",IF(COUNTIF('CBAT Lookups'!$B$5:$B$12,\"Controls-\"&CBAT!$D48)=1,VLOOKUP(\"Controls-\"&CBAT!$D48,'CBAT Lookups'!$B$5:$K$12,3),0)*VLOOKUP($F48,'CBAT Lookups'!$B$17:$K$19,3))","v":""},{"$f":"IF('Project Scope'!$C48=\"\",\"\",IF(COUNTIF('CBAT Lookups'!$B$5:$B$12,\"Controls-\"&CBAT!$D48)=1,VLOOKUP(\"Controls-\"&CBAT!$D48,'CBAT Lookups'!$B$5:$K$12,4),0))","v":""},{"$f":"IF('Project Scope'!$C48=\"\",\"\",IF(COUNTIF('CBAT Lookups'!$B$5:$B$12,\"Controls-\"&CBAT!$D48)=1,VLOOKUP(\"Controls-\"&CBAT!$D48,'CBAT Lookups'!$B$5:$K$12,5),0))","v":""},{"$f":"IF('Project Scope'!$C48=\"\",\"\",IF(COUNTIF('CBAT Lookups'!$B$5:$B$12,\"Controls-\"&CBAT!$D48)=1,VLOOKUP(\"Controls-\"&CBAT!$D48,'CBAT Lookups'!$B$5:$K$12,6),0))","v":""},{"$f":"IF('Project Scope'!$C48=\"\",\"\",IF(COUNTIF('CBAT Lookups'!$B$5:$B$12,\"Controls-\"&CBAT!$D48)=1,VLOOKUP(\"Controls-\"&CBAT!$D48,'CBAT Lookups'!$B$5:$K$12,7),0))","v":""},{"$f":"IF('Project Scope'!$C48=\"\",\"\",IF(VLOOKUP($F48,'CBAT Lookups'!$B$17:$K$19,8)=\"W\",1,IF(COUNTIF('CBAT Lookups'!$B$5:$B$12,\"Controls-\"&CBAT!$D48)=1,VLOOKUP(\"Controls-\"&CBAT!$D48,'CBAT Lookups'!$B$5:$K$12,8),0)*VLOOKUP($F48,'CBAT Lookups'!$B$17:$K$19,8)))","v":""},{"$f":"IF('Project Scope'!$C48=\"\",\"\",IF(VLOOKUP($F48,'CBAT Lookups'!$B$17:$K$19,9)=\"W\",1,IF(COUNTIF('CBAT Lookups'!$B$5:$B$12,\"Controls-\"&CBAT!$D48)=1,VLOOKUP(\"Controls-\"&CBAT!$D48,'CBAT Lookups'!$B$5:$K$12,9),0)*VLOOKUP($F48,'CBAT Lookups'!$B$17:$K$19,9)))","v":""},{"$f":"IF('Project Scope'!$C48=\"\",\"\",IF(COUNTIF('CBAT Lookups'!$B$5:$B$12,\"Controls-\"&CBAT!$D48)=1,VLOOKUP(\"Controls-\"&CBAT!$D48,'CBAT Lookups'!$B$5:$K$12,10),0)*VLOOKUP($F48,'CBAT Lookups'!$B$17:$K$19,10))","v":""},{"$f":"IF('Project Scope'!$C48=\"\",\"\",VLOOKUP($C48,'CBAT Lookups'!$A$33:$B$57,2))","v":""},{"$f":"IF('Project Scope'!$C48=\"\",\"\",IF(COUNTIF('CBAT Lookups'!$B$5:$B$12,\"Controls-\"&CBAT!$D48)=1,VLOOKUP(\"Controls-\"&CBAT!$D48,'CBAT Lookups'!$B$5:$O$12,12),0))","v":""},{"$f":"IF('Project Scope'!$C48=\"\",\"\",IF(COUNTIF('CBAT Lookups'!$B$5:$B$12,\"Controls-\"&CBAT!$D48)=1,VLOOKUP(\"Controls-\"&CBAT!$D48,'CBAT Lookups'!$B$5:$O$12,13),0))","v":""},{"$f":"IF('Project Scope'!$C48=\"\",\"\",IF(COUNTIF('CBAT Lookups'!$B$5:$B$12,\"Controls-\"&CBAT!$D48)=1,VLOOKUP(\"Controls-\"&CBAT!$D48,'CBAT Lookups'!$B$5:$O$12,14),0))","v":""},{"$f":"IF('Project Scope'!$C48=\"\",\"\",'TRM Data'!$U$3)","v":""},{"$f":"IF('Project Scope'!$C48=\"\",\"\",'TRM Data'!$V$3)","v":""},{"$f":"IF('Project Scope'!$C48=\"\",\"\",IF($K48<=0,0,MAX(0,(IF(AND($I48>0,$J48>0),($I48*$J48)/1000,($G48*$H48)/1000)*$L48))*$BT48*$BR48)+($CD48/0.003412))","v":""},{"$f":"IF('Project Scope'!$C48=\"\",\"\",IF($K48<=0,0,MAX(0,IF(AND($I48>0,$J48>0),($I48*$J48)/1000,($G48*$H48)/1000))*$BQ48))","v":""},{"$f":"IF('Project Scope'!$C48=\"\",\"\",IF($K48<=0,0,MAX(0,IF(AND($I48>0,$J48>0),($I48*$J48)/1000,($G48*$H48)/1000))*$BK48))","v":""},{"$f":"IF('Project Scope'!$C48=\"\",\"\",IF($K48<=0,0,MAX(0,IF(AND($I48>0,$J48>0),($I48*$J48)/1000,($G48*$H48)/1000))*$BL48*$BQ48))","v":""},{"$f":"IF('Project Scope'!$C48=\"\",\"\",IF(OR($K48<=0,'Project Information'!$D$44=\"\"),0,-1*MAX(0,IF(AND($I48>0,$J48>0),($I48*$J48)/1000,($G48*$H48)/1000))*$BT48*$L48*$BS48*VLOOKUP('Project Information'!$D$44,'CBAT Lookups'!$A$23:$H$30,2)))","v":""},{"$f":"IF('Project Scope'!$C48=\"\",\"\",IF(OR($K48<=0,'Project Information'!$D$44=\"\"),0,-1*MAX(0,IF(AND($I48>0,$J48>0),($I48*$J48)/1000,($G48*$H48)/1000))*$BT48*$L48*$BS48*VLOOKUP('Project Information'!$D$44,'CBAT Lookups'!$A$23:$H$30,3)))","v":""},{"$f":"IF('Project Scope'!$C48=\"\",\"\",IF(OR($K48<=0,'Project Information'!$D$44=\"\"),0,-1*MAX(0,IF(AND($I48>0,$J48>0),($I48*$J48)/1000,($G48*$H48)/1000))*$BT48*$L48*$BS48*VLOOKUP('Project Information'!$D$44,'CBAT Lookups'!$A$23:$H$30,4)))","v":""},{"$f":"IF('Project Scope'!$C48=\"\",\"\",IF(OR($K48<=0,'Project Information'!$D$44=\"\"),0,-1*MAX(0,IF(AND($I48>0,$J48>0),($I48*$J48)/1000,($G48*$H48)/1000))*$BT48*$L48*$BS48*VLOOKUP('Project Information'!$D$44,'CBAT Lookups'!$A$23:$H$30,5)))","v":""},{"$f":"IF('Project Scope'!$C48=\"\",\"\",IF(OR($K48<=0,'Project Information'!$D$44=\"\"),0,-1*MAX(0,IF(AND($I48>0,$J48>0),($I48*$J48)/1000,($G48*$H48)/1000))*$BT48*$L48*$BS48*VLOOKUP('Project Information'!$D$44,'CBAT Lookups'!$A$23:$H$30,6)))","v":""},{"$f":"IF('Project Scope'!$C48=\"\",\"\",IF(OR($K48<=0,'Project Information'!$D$44=\"\"),0,-1*MAX(0,IF(AND($I48>0,$J48>0),($I48*$J48)/1000,($G48*$H48)/1000))*$BT48*$L48*$BS48*VLOOKUP('Project Information'!$D$44,'CBAT Lookups'!$A$23:$H$30,7)))","v":""},{"$f":"IF('Project Scope'!$C48=\"\",\"\",IF(OR($K48<=0,'Project Information'!$D$44=\"\"),0,-1*MAX(0,IF(AND($I48>0,$J48>0),($I48*$J48)/1000,($G48*$H48)/1000))*$BT48*$L48*$BS48*VLOOKUP('Project Information'!$D$44,'CBAT Lookups'!$A$23:$H$30,8)))","v":""},null,{"$f":"IF('Project Scope'!$C48=\"\",\"\",VLOOKUP($F48,'CBAT Lookups'!$B$17:$K$19,4))","v":""},{"$f":"IF('Project Scope'!$C48=\"\",\"\",VLOOKUP($F48,'CBAT Lookups'!$B$17:$K$19,5))","v":""},{"$f":"IF('Project Scope'!$C48=\"\",\"\",VLOOKUP($F48,'CBAT Lookups'!$B$17:$K$19,6))","v":""},{"$f":"IF('Project Scope'!$C48=\"\",\"\",VLOOKUP($F48,'CBAT Lookups'!$B$17:$K$19,7))","v":""},{"$f":"IF('Project Scope'!$C48=\"\",\"\",IF(SUMPRODUCT($BM48:$BP48,$CL48:$CO48)=0,0,BM48*CL48/SUMPRODUCT($BM48:$BP48,$CL48:$CO48)))","v":""},{"$f":"IF('Project Scope'!$C48=\"\",\"\",IF(SUMPRODUCT($BM48:$BP48,$CL48:$CO48)=0,0,BN48*CM48/SUMPRODUCT($BM48:$BP48,$CL48:$CO48)))","v":""},{"$f":"IF('Project Scope'!$C48=\"\",\"\",IF(SUMPRODUCT($BM48:$BP48,$CL48:$CO48)=0,0,BO48*CN48/SUMPRODUCT($BM48:$BP48,$CL48:$CO48)))","v":""},{"$f":"IF('Project Scope'!$C48=\"\",\"\",IF(SUMPRODUCT($BM48:$BP48,$CL48:$CO48)=0,0,BP48*CO48/SUMPRODUCT($BM48:$BP48,$CL48:$CO48)))","v":""},{"$f":"IF('Project Scope'!$C48=\"\",\"\",Benefits($BZ48,$CB48,$CC48,$CE48,$CF48,$CG48,$CH48,$CI48,$CJ48,$CK48,$BJ48,$CP48,$CQ48,$CR48,$CS48,$BU48,$BV48,$BW48,$BX48,$BY48,$E48))","v":""},"","","","","","","","",null,{"$f":"IF('Project Scope'!$C48=\"\",\"\",SUM('Project Scope'!$BB48,'Project Scope'!$BC48))","v":""},{"$f":"IF('Project Scope'!$C48=\"\",\"\",SUM('Project Scope'!$BH48, 'Project Scope'!$AZ48,(IF(ISNUMBER('Project Scope'!$BA48),'Project Scope'!$BA48,0)*'Project Information'!$D$12)))","v":""},null,null,{"$f":"IF('Project Scope'!$C48=\"\",\"\",IF($J48<=0,0,(SUMPRODUCT($AV48:$BC48,--($AV48:$BC48>0))+$BE48)*$DK48/((-SUMPRODUCT($AV48:$BC48,--($AV48:$BC48<0))+$BG48+$BH48+$BI48)*$DK48)))","v":""},{"$f":"IF('Project Scope'!$C48=\"\",\"\",IF($K48<=0,0,(SUMPRODUCT($CT48:$DA48,--($CT48:$DA48>0))+$DC48)*$DK48/((-SUMPRODUCT($CT48:$DA48,--($CT48:$DA48<0))+$DE48+$DF48+$DG48)*$DK48)))","v":""},{"$f":"IF('Project Scope'!$C48=\"\",\"\",IF(AND($J48<=0,$K48<=0),0,(SUMPRODUCT($AV48:$BC48,--($AV48:$BC48>0))+$BE48+SUMPRODUCT($CT48:$DA48,--($CT48:$DA48>0))+$DC48)*$DK48/((-SUMPRODUCT($AV48:$BC48,--($AV48:$BC48<0))+$BG48+$BH48+$BI48-SUMPRODUCT($CT48:$DA48,--($CT48:$DA48<0))+$DE48+$DF48+$DG48)*$DK48)))","v":""},{"$f":"IF('Project Scope'!$C48=\"\",\"\",IF(NetOrGross=\"Net\",(1-Z48+AA48),1))","v":""}]
[{"$f":"'Project Scope'!$B49","v":42},{"$f":"IF('Project Scope'!$C49=\"\",\"\",'Project Scope'!$C49)","v":""},{"$f":"IF('Project Scope'!$C49=\"\",\"\",'Project Scope'!$H49)","v":""},{"$f":"IF(ISNUMBER(SEARCH(\"Bay\",'Project Scope'!$Q49)),\"Bay\",IF('Project Scope'!C49=\"\",\"\",'Project Scope'!E49))","v":""},{"$f":"IF('Project Scope'!$C49=\"\",\"\",\"Com\")","v":""},{"$f":"IF('Project Scope'!$C49=\"\",\"\",'Project Scope'!$L49)","v":""},{"$f":"IF('Project Scope'!$C49=\"\",\"\",IF('Project Scope'!$CJ49=\"\",0,'Project Scope'!$CJ49))","v":""},{"$f":"IF('Project Scope'!$C49=\"\",\"\",IF('Project Scope'!$N49=\"\",0,'Project Scope'!$N49))","v":""},{"$f":"IF('Project Scope'!$C49=\"\",\"\",IF('Project Scope'!$CK49=\"\",0,'Project Scope'!$CK49))","v":""},{"$f":"IF('Project Scope'!$C49=\"\",\"\",IF('Project Scope'!$AO49=\"\",0,'Project Scope'!$AO49))","v":""},{"$f":"IF('Project Scope'!$C49=\"\",\"\",IF('Project Scope'!$AX49=\"\",0,'Project Scope'!$AX49))","v":""},{"$f":"IF('Project Scope'!$C49=\"\",\"\",IF('Project Scope'!$M49=\"\",0,'Project Scope'!$M49))","v":""},{"$f":"IF('Project Scope'!$C49=\"\",\"\",IF(COUNTIF('CBAT Lookups'!$B$5:$B$12,\"Fixtures-\"&CBAT!$D49)=1,VLOOKUP(\"Fixtures-\"&CBAT!$D49,'CBAT Lookups'!$B$5:$L$12,11),0))","v":""},{"$f":"IF('Project Scope'!$C49=\"\",\"\",(IF(COUNTIF('CBAT Lookups'!$B$5:$B$12,\"Fixtures-\"&CBAT!$D49)=1,VLOOKUP(\"Fixtures-\"&CBAT!$D49,'CBAT Lookups'!$B$5:$K$12,2),0))*VLOOKUP($F49,'CBAT Lookups'!$B$17:$K$19,2))","v":""},{"$f":"IF('Project Scope'!$C49=\"\",\"\",(IF(COUNTIF('CBAT Lookups'!$B$5:$B$12,\"Fixtures-\"&CBAT!$D49)=1,VLOOKUP(\"Fixtures-\"&CBAT!$D49,'CBAT Lookups'!$B$5:$K$12,3),0))*VLOOKUP($F49,'CBAT Lookups'!$B$17:$K$19,3))","v":""},{"$f":"IF('Project Scope'!$C49=\"\",\"\",(IF(COUNTIF('CBAT Lookups'!$B$5:$B$12,\"Fixtures-\"&CBAT!$D49)=1,VLOOKUP(\"Fixtures-\"&CBAT!$D49,'CBAT Lookups'!$B$5:$K$12,4),0)))","v":""},{"$f":"IF('Project Scope'!$C49=\"\",\"\",(IF(COUNTIF('CBAT Lookups'!$B$5:$B$12,\"Fixtures-\"&CBAT!$D49)=1,VLOOKUP(\"Fixtures-\"&CBAT!$D49,'CBAT Lookups'!$B$5:$K$12,5),0)))","v":""},{"$f":"IF('Project Scope'!$C49=\"\",\"\",(IF(COUNTIF('CBAT Lookups'!$B$5:$B$12,\"Fixtures-\"&CBAT!$D49)=1,VLOOKUP(\"Fixtures-\"&CBAT!$D49,'CBAT Lookups'!$B$5:$K$12,6),0)))","v":""},{"$f":"IF('Project Scope'!$C49=\"\",\"\",IF(COUNTIF('CBAT Lookups'!$B$5:$B$12,\"Fixtures-\"&CBAT!$D49)=1,VLOOKUP(\"Fixtures-\"&CBAT!$D49,'CBAT Lookups'!$B$5:$K$12,7),0))","v":""},{"$f":"IF('Project Scope'!$C49=\"\",\"\",IF(VLOOKUP($F49,'CBAT Lookups'!$B$17:$K$19,8)=\"W\",1,IF(COUNTIF('CBAT Lookups'!$B$5:$B$12,\"Fixtures-\"&CBAT!$D49)=1,VLOOKUP(\"Fixtures-\"&CBAT!$D49,'CBAT Lookups'!$B$5:$K$12,8),0)*VLOOKUP($F49,'CBAT Lookups'!$B$17:$K$19,8)))","v":""},{"$f":"IF('Project Scope'!$C49=\"\",\"\",IF(VLOOKUP($F49,'CBAT Lookups'!$B$17:$K$19,9)=\"W\",1,IF(COUNTIF('CBAT Lookups'!$B$5:$B$12,\"Fixtures-\"&CBAT!$D49)=1,VLOOKUP(\"Fixtures-\"&CBAT!$D49,'CBAT Lookups'!$B$5:$K$12,9),0)*VLOOKUP($F49,'CBAT Lookups'!$B$17:$K$19,9)))","v":""},{"$f":"IF('Project Scope'!$C49=\"\",\"\",IF(COUNTIF('CBAT Lookups'!$B$5:$B$12,\"Fixtures-\"&CBAT!$D49)=1,VLOOKUP(\"Fixtures-\"&CBAT!$D49,'CBAT Lookups'!$B$5:$K$12,10),0)*VLOOKUP($F49,'CBAT Lookups'!$B$17:$K$19,10))","v":""},{"$f":"IF('Project Scope'!$C49=\"\",\"\",IF(COUNTIF('CBAT Lookups'!$B$5:$B$12,\"Fixtures-\"&CBAT!$D49)=1,VLOOKUP(\"Fixtures-\"&CBAT!$D49,'CBAT Lookups'!$B$5:$O$12,12),0))","v":""},{"$f":"IF('Project Scope'!$C49=\"\",\"\",IF(COUNTIF('CBAT Lookups'!$B$5:$B$12,\"Fixtures-\"&CBAT!$D49)=1,VLOOKUP(\"Fixtures-\"&CBAT!$D49,'CBAT Lookups'!$B$5:$O$12,13),0))","v":""},{"$f":"IF('Project Scope'!$C49=\"\",\"\",IF(COUNTIF('CBAT Lookups'!$B$5:$B$12,\"Fixtures-\"&CBAT!$D49)=1,VLOOKUP(\"Fixtures-\"&CBAT!$D49,'CBAT Lookups'!$B$5:$O$12,14),0))","v":""},{"$f":"IF('Project Scope'!$C49=\"\",\"\",'TRM Data'!$U$3)","v":""},{"$f":"IF('Project Scope'!$C49=\"\",\"\",'TRM Data'!$V$3)","v":""},{"$f":"IF('Project Scope'!$C49=\"\",\"\",IF($J49<=0,0,MAX(0,(($G49*$H49/1000)-($I49*$J49/1000))*$L49)*$U49)+($AF49/0.003412))","v":""},{"$f":"IF('Project Scope'!$C49=\"\",\"\",IF($J49<=0,0,MAX(0,(($G49*$H49/1000)-($I49*$J49/1000)))*$T49))","v":""},{"$f":"IF('Project Scope'!$C49=\"\",\"\",IF($J49<=0,0,MAX(0,(($G49*$H49/1000)-($I49*$J49/1000))*$N49)))","v":""},{"$f":"IF('Project Scope'!$C49=\"\",\"\",IF($J49<=0,0,MAX(0,(($G49*$H49/1000)-($I49*$J49/1000))*$O49)*$T49))","v":""},{"$f":"IF('Project Scope'!$C49=\"\",\"\",IF(OR($J49<=0,'Project Information'!$D$44=\"\"),0,-1*MAX(0,(($G49*$H49/1000)-($I49*$J49/1000))*$L49)*$V49*VLOOKUP('Project Information'!$D$44,'CBAT Lookups'!$A$23:$H$30,2)))","v":""},{"$f":"IF('Project Scope'!$C49=\"\",\"\",IF(OR($J49<=0,'Project Information'!$D$44=\"\"),0,-1*MAX(0,(($G49*$H49/1000)-($I49*$J49/1000))*$L49)*$V49*VLOOKUP('Project Information'!$D$44,'CBAT Lookups'!$A$23:$H$30,3)))","v":""},{"$f":"IF('Project Scope'!$C49=\"\",\"\",IF(OR($J49<=0,'Project Information'!$D$44=\"\"),0,-1*MAX(0,(($G49*$H49/1000)-($I49*$J49/1000))*$L49)*$V49*VLOOKUP('Project Information'!$D$44,'CBAT Lookups'!$A$23:$H$30,4)))","v":""},{"$f":"IF('Project Scope'!$C49=\"\",\"\",IF(OR($J49<=0,'Project Information'!$D$44=\"\"),0,-1*MAX(0,(($G49*$H49/1000)-($I49*$J49/1000))*$L49)*$V49*VLOOKUP('Project Information'!$D$44,'CBAT Lookups'!$A$23:$H$30,5)))","v":""},{"$f":"IF('Project Scope'!$C49=\"\",\"\",IF(OR($J49<=0,'Project Information'!$D$44=\"\"),0,-1*MAX(0,(($G49*$H49/1000)-($I49*$J49/1000))*$L49)*$V49*VLOOKUP('Project Information'!$D$44,'CBAT Lookups'!$A$23:$H$30,6)))","v":""},{"$f":"IF('Project Scope'!$C49=\"\",\"\",IF(OR($J49<=0,'Project Information'!$D$44=\"\"),0,-1*MAX(0,(($G49*$H49/1000)-($I49*$J49/1000))*$L49)*$V49*VLOOKUP('Project Information'!$D$44,'CBAT Lookups'!$A$23:$H$30,7)))","v":""},{"$f":"IF('Project Scope'!$C49=\"\",\"\",IF(OR($J49<=0,'Project Information'!$D$44=\"\"),0,-1*MAX(0,(($G49*$H49/1000)-($I49*$J49/1000))*$L49)*$V49*VLOOKUP('Project Information'!$D$44,'CBAT Lookups'!$A$23:$H$30,8)))","v":""},null,{"$f":"IF('Project Scope'!$C49=\"\",\"\",VLOOKUP($F49,'CBAT Lookups'!$B$17:$K$19,4))","v":""},{"$f":"IF('Project Scope'!$C49=\"\",\"\",VLOOKUP($F49,'CBAT Lookups'!$B$17:$K$19,5))","v":""},{"$f":"IF('Project Scope'!$C49=\"\",\"\",VLOOKUP($F49,'CBAT Lookups'!$B$17:$K$19,6))","v":""},{"$f":"IF('Project Scope'!$C49=\"\",\"\",VLOOKUP($F49,'CBAT Lookups'!$B$17:$K$19,7))","v":""},{"$f":"IF('Project Scope'!$C49=\"\",\"\",IF(SUMPRODUCT($P49:$S49,$AN49:$AQ49)=0,0,P49*AN49/SUMPRODUCT($P49:$S49,$AN49:$AQ49)))","v":""},{"$f":"IF('Project Scope'!$C49=\"\",\"\",IF(SUMPRODUCT($P49:$S49,$AN49:$AQ49)=0,0,Q49*AO49/SUMPRODUCT($P49:$S49,$AN49:$AQ49)))","v":""},{"$f":"IF('Project Scope'!$C49=\"\",\"\",IF(SUMPRODUCT($P49:$S49,$AN49:$AQ49)=0,0,R49*AP49/SUMPRODUCT($P49:$S49,$AN49:$AQ49)))","v":""},{"$f":"IF('Project Scope'!$C49=\"\",\"\",IF(SUMPRODUCT($P49:$S49,$AN49:$AQ49)=0,0,S49*AQ49/SUMPRODUCT($P49:$S49,$AN49:$AQ49)))","v":""},{"$f":"IF('Project Scope'!$C49=\"\",\"\",Benefits($AB49,$AD49,$AE49,$AG49,$AH49,$AI49,$AJ49,$AK49,$AL49,$AM49,$M49,$AR49,$AS49,$AT49,$AU49,$W49,$X49,$Y49,$Z49,$AA49,$E49))","v":""},"","","","","","","","",null,{"$f":"IF('Project Scope'!$C49=\"\",\"\",SUM('Project Scope'!$AT49,'Project Scope'!$AU49))","v":""},{"$f":"IF('Project Scope'!$C49=\"\",\"\",SUM('Project Scope'!$BG49, 'Project Scope'!$AR49,(IF(ISNUMBER('Project Scope'!$AS49),'Project Scope'!$AS49,0)*'Project Information'!$D$12)))","v":""},null,null,{"$f":"IF('Project Scope'!$C49=\"\",\"\",IF(COUNTIF('CBAT Lookups'!$B$5:$B$12,\"Controls-\"&CBAT!$D49)=1,VLOOKUP(\"Controls-\"&CBAT!$D49,'CBAT Lookups'!$B$5:$L$12,11),0))","v":""},{"$f":"IF('Project Scope'!$C49=\"\",\"\",IF(COUNTIF('CBAT Lookups'!$B$5:$B$12,\"Controls-\"&CBAT!$D49)=1,VLOOKUP(\"Controls-\"&CBAT!$D49,'CBAT Lookups'!$B$5:$K$12,2),0)*VLOOKUP($F49,'CBAT Lookups'!$B$17:$K$19,2))","v":""},{"$f":"IF('Project Scope'!$C49=\"\",\"\",IF(COUNTIF('CBAT Lookups'!$B$5:$B$12,\"Controls-\"&CBAT!$D49)=1,VLOOKUP(\"Controls-\"&CBAT!$D49,'CBAT Lookups'!$B$5:$K$12,3),0)*VLOOKUP($F49,'CBAT Lookups'!$B$17:$K$19,3))","v":""},{"$f":"IF('Project Scope'!$C49=\"\",\"\",IF(COUNTIF('CBAT Lookups'!$B$5:$B$12,\"Controls-\"&CBAT!$D49)=1,VLOOKUP(\"Controls-\"&CBAT!$D49,'CBAT Lookups'!$B$5:$K$12,4),0))","v":""},{"$f":"IF('Project Scope'!$C49=\"\",\"\",IF(COUNTIF('CBAT Lookups'!$B$5:$B$12,\"Controls-\"&CBAT!$D49)=1,VLOOKUP(\"Controls-\"&CBAT!$D49,'CBAT Lookups'!$B$5:$K$12,5),0))","v":""},{"$f":"IF('Project Scope'!$C49=\"\",\"\",IF(COUNTIF('CBAT Lookups'!$B$5:$B$12,\"Controls-\"&CBAT!$D49)=1,VLOOKUP(\"Controls-\"&CBAT!$D49,'CBAT Lookups'!$B$5:$K$12,6),0))","v":""},{"$f":"IF('Project Scope'!$C49=\"\",\"\",IF(COUNTIF('CBAT Lookups'!$B$5:$B$12,\"Controls-\"&CBAT!$D49)=1,VLOOKUP(\"Controls-\"&CBAT!$D49,'CBAT Lookups'!$B$5:$K$12,7),0))","v":""},{"$f":"IF('Project Scope'!$C49=\"\",\"\",IF(VLOOKUP($F49,'CBAT Lookups'!$B$17:$K$19,8)=\"W\",1,IF(COUNTIF('CBAT Lookups'!$B$5:$B$12,\"Controls-\"&CBAT!$D49)=1,VLOOKUP(\"Controls-\"&CBAT!$D49,'CBAT Lookups'!$B$5:$K$12,8),0)*VLOOKUP($F49,'CBAT Lookups'!$B$17:$K$19,8)))","v":""},{"$f":"IF('Project Scope'!$C49=\"\",\"\",IF(VLOOKUP($F49,'CBAT Lookups'!$B$17:$K$19,9)=\"W\",1,IF(COUNTIF('CBAT Lookups'!$B$5:$B$12,\"Controls-\"&CBAT!$D49)=1,VLOOKUP(\"Controls-\"&CBAT!$D49,'CBAT Lookups'!$B$5:$K$12,9),0)*VLOOKUP($F49,'CBAT Lookups'!$B$17:$K$19,9)))","v":""},{"$f":"IF('Project Scope'!$C49=\"\",\"\",IF(COUNTIF('CBAT Lookups'!$B$5:$B$12,\"Controls-\"&CBAT!$D49)=1,VLOOKUP(\"Controls-\"&CBAT!$D49,'CBAT Lookups'!$B$5:$K$12,10),0)*VLOOKUP($F49,'CBAT Lookups'!$B$17:$K$19,10))","v":""},{"$f":"IF('Project Scope'!$C49=\"\",\"\",VLOOKUP($C49,'CBAT Lookups'!$A$33:$B$57,2))","v":""},{"$f":"IF('Project Scope'!$C49=\"\",\"\",IF(COUNTIF('CBAT Lookups'!$B$5:$B$12,\"Controls-\"&CBAT!$D49)=1,VLOOKUP(\"Controls-\"&CBAT!$D49,'CBAT Lookups'!$B$5:$O$12,12),0))","v":""},{"$f":"IF('Project Scope'!$C49=\"\",\"\",IF(COUNTIF('CBAT Lookups'!$B$5:$B$12,\"Controls-\"&CBAT!$D49)=1,VLOOKUP(\"Controls-\"&CBAT!$D49,'CBAT Lookups'!$B$5:$O$12,13),0))","v":""},{"$f":"IF('Project Scope'!$C49=\"\",\"\",IF(COUNTIF('CBAT Lookups'!$B$5:$B$12,\"Controls-\"&CBAT!$D49)=1,VLOOKUP(\"Controls-\"&CBAT!$D49,'CBAT Lookups'!$B$5:$O$12,14),0))","v":""},{"$f":"IF('Project Scope'!$C49=\"\",\"\",'TRM Data'!$U$3)","v":""},{"$f":"IF('Project Scope'!$C49=\"\",\"\",'TRM Data'!$V$3)","v":""},{"$f":"IF('Project Scope'!$C49=\"\",\"\",IF($K49<=0,0,MAX(0,(IF(AND($I49>0,$J49>0),($I49*$J49)/1000,($G49*$H49)/1000)*$L49))*$BT49*$BR49)+($CD49/0.003412))","v":""},{"$f":"IF('Project Scope'!$C49=\"\",\"\",IF($K49<=0,0,MAX(0,IF(AND($I49>0,$J49>0),($I49*$J49)/1000,($G49*$H49)/1000))*$BQ49))","v":""},{"$f":"IF('Project Scope'!$C49=\"\",\"\",IF($K49<=0,0,MAX(0,IF(AND($I49>0,$J49>0),($I49*$J49)/1000,($G49*$H49)/1000))*$BK49))","v":""},{"$f":"IF('Project Scope'!$C49=\"\",\"\",IF($K49<=0,0,MAX(0,IF(AND($I49>0,$J49>0),($I49*$J49)/1000,($G49*$H49)/1000))*$BL49*$BQ49))","v":""},{"$f":"IF('Project Scope'!$C49=\"\",\"\",IF(OR($K49<=0,'Project Information'!$D$44=\"\"),0,-1*MAX(0,IF(AND($I49>0,$J49>0),($I49*$J49)/1000,($G49*$H49)/1000))*$BT49*$L49*$BS49*VLOOKUP('Project Information'!$D$44,'CBAT Lookups'!$A$23:$H$30,2)))","v":""},{"$f":"IF('Project Scope'!$C49=\"\",\"\",IF(OR($K49<=0,'Project Information'!$D$44=\"\"),0,-1*MAX(0,IF(AND($I49>0,$J49>0),($I49*$J49)/1000,($G49*$H49)/1000))*$BT49*$L49*$BS49*VLOOKUP('Project Information'!$D$44,'CBAT Lookups'!$A$23:$H$30,3)))","v":""},{"$f":"IF('Project Scope'!$C49=\"\",\"\",IF(OR($K49<=0,'Project Information'!$D$44=\"\"),0,-1*MAX(0,IF(AND($I49>0,$J49>0),($I49*$J49)/1000,($G49*$H49)/1000))*$BT49*$L49*$BS49*VLOOKUP('Project Information'!$D$44,'CBAT Lookups'!$A$23:$H$30,4)))","v":""},{"$f":"IF('Project Scope'!$C49=\"\",\"\",IF(OR($K49<=0,'Project Information'!$D$44=\"\"),0,-1*MAX(0,IF(AND($I49>0,$J49>0),($I49*$J49)/1000,($G49*$H49)/1000))*$BT49*$L49*$BS49*VLOOKUP('Project Information'!$D$44,'CBAT Lookups'!$A$23:$H$30,5)))","v":""},{"$f":"IF('Project Scope'!$C49=\"\",\"\",IF(OR($K49<=0,'Project Information'!$D$44=\"\"),0,-1*MAX(0,IF(AND($I49>0,$J49>0),($I49*$J49)/1000,($G49*$H49)/1000))*$BT49*$L49*$BS49*VLOOKUP('Project Information'!$D$44,'CBAT Lookups'!$A$23:$H$30,6)))","v":""},{"$f":"IF('Project Scope'!$C49=\"\",\"\",IF(OR($K49<=0,'Project Information'!$D$44=\"\"),0,-1*MAX(0,IF(AND($I49>0,$J49>0),($I49*$J49)/1000,($G49*$H49)/1000))*$BT49*$L49*$BS49*VLOOKUP('Project Information'!$D$44,'CBAT Lookups'!$A$23:$H$30,7)))","v":""},{"$f":"IF('Project Scope'!$C49=\"\",\"\",IF(OR($K49<=0,'Project Information'!$D$44=\"\"),0,-1*MAX(0,IF(AND($I49>0,$J49>0),($I49*$J49)/1000,($G49*$H49)/1000))*$BT49*$L49*$BS49*VLOOKUP('Project Information'!$D$44,'CBAT Lookups'!$A$23:$H$30,8)))","v":""},null,{"$f":"IF('Project Scope'!$C49=\"\",\"\",VLOOKUP($F49,'CBAT Lookups'!$B$17:$K$19,4))","v":""},{"$f":"IF('Project Scope'!$C49=\"\",\"\",VLOOKUP($F49,'CBAT Lookups'!$B$17:$K$19,5))","v":""},{"$f":"IF('Project Scope'!$C49=\"\",\"\",VLOOKUP($F49,'CBAT Lookups'!$B$17:$K$19,6))","v":""},{"$f":"IF('Project Scope'!$C49=\"\",\"\",VLOOKUP($F49,'CBAT Lookups'!$B$17:$K$19,7))","v":""},{"$f":"IF('Project Scope'!$C49=\"\",\"\",IF(SUMPRODUCT($BM49:$BP49,$CL49:$CO49)=0,0,BM49*CL49/SUMPRODUCT($BM49:$BP49,$CL49:$CO49)))","v":""},{"$f":"IF('Project Scope'!$C49=\"\",\"\",IF(SUMPRODUCT($BM49:$BP49,$CL49:$CO49)=0,0,BN49*CM49/SUMPRODUCT($BM49:$BP49,$CL49:$CO49)))","v":""},{"$f":"IF('Project Scope'!$C49=\"\",\"\",IF(SUMPRODUCT($BM49:$BP49,$CL49:$CO49)=0,0,BO49*CN49/SUMPRODUCT($BM49:$BP49,$CL49:$CO49)))","v":""},{"$f":"IF('Project Scope'!$C49=\"\",\"\",IF(SUMPRODUCT($BM49:$BP49,$CL49:$CO49)=0,0,BP49*CO49/SUMPRODUCT($BM49:$BP49,$CL49:$CO49)))","v":""},{"$f":"IF('Project Scope'!$C49=\"\",\"\",Benefits($BZ49,$CB49,$CC49,$CE49,$CF49,$CG49,$CH49,$CI49,$CJ49,$CK49,$BJ49,$CP49,$CQ49,$CR49,$CS49,$BU49,$BV49,$BW49,$BX49,$BY49,$E49))","v":""},"","","","","","","","",null,{"$f":"IF('Project Scope'!$C49=\"\",\"\",SUM('Project Scope'!$BB49,'Project Scope'!$BC49))","v":""},{"$f":"IF('Project Scope'!$C49=\"\",\"\",SUM('Project Scope'!$BH49, 'Project Scope'!$AZ49,(IF(ISNUMBER('Project Scope'!$BA49),'Project Scope'!$BA49,0)*'Project Information'!$D$12)))","v":""},null,null,{"$f":"IF('Project Scope'!$C49=\"\",\"\",IF($J49<=0,0,(SUMPRODUCT($AV49:$BC49,--($AV49:$BC49>0))+$BE49)*$DK49/((-SUMPRODUCT($AV49:$BC49,--($AV49:$BC49<0))+$BG49+$BH49+$BI49)*$DK49)))","v":""},{"$f":"IF('Project Scope'!$C49=\"\",\"\",IF($K49<=0,0,(SUMPRODUCT($CT49:$DA49,--($CT49:$DA49>0))+$DC49)*$DK49/((-SUMPRODUCT($CT49:$DA49,--($CT49:$DA49<0))+$DE49+$DF49+$DG49)*$DK49)))","v":""},{"$f":"IF('Project Scope'!$C49=\"\",\"\",IF(AND($J49<=0,$K49<=0),0,(SUMPRODUCT($AV49:$BC49,--($AV49:$BC49>0))+$BE49+SUMPRODUCT($CT49:$DA49,--($CT49:$DA49>0))+$DC49)*$DK49/((-SUMPRODUCT($AV49:$BC49,--($AV49:$BC49<0))+$BG49+$BH49+$BI49-SUMPRODUCT($CT49:$DA49,--($CT49:$DA49<0))+$DE49+$DF49+$DG49)*$DK49)))","v":""},{"$f":"IF('Project Scope'!$C49=\"\",\"\",IF(NetOrGross=\"Net\",(1-Z49+AA49),1))","v":""}]
[{"$f":"'Project Scope'!$B50","v":43},{"$f":"IF('Project Scope'!$C50=\"\",\"\",'Project Scope'!$C50)","v":""},{"$f":"IF('Project Scope'!$C50=\"\",\"\",'Project Scope'!$H50)","v":""},{"$f":"IF(ISNUMBER(SEARCH(\"Bay\",'Project Scope'!$Q50)),\"Bay\",IF('Project Scope'!C50=\"\",\"\",'Project Scope'!E50))","v":""},{"$f":"IF('Project Scope'!$C50=\"\",\"\",\"Com\")","v":""},{"$f":"IF('Project Scope'!$C50=\"\",\"\",'Project Scope'!$L50)","v":""},{"$f":"IF('Project Scope'!$C50=\"\",\"\",IF('Project Scope'!$CJ50=\"\",0,'Project Scope'!$CJ50))","v":""},{"$f":"IF('Project Scope'!$C50=\"\",\"\",IF('Project Scope'!$N50=\"\",0,'Project Scope'!$N50))","v":""},{"$f":"IF('Project Scope'!$C50=\"\",\"\",IF('Project Scope'!$CK50=\"\",0,'Project Scope'!$CK50))","v":""},{"$f":"IF('Project Scope'!$C50=\"\",\"\",IF('Project Scope'!$AO50=\"\",0,'Project Scope'!$AO50))","v":""},{"$f":"IF('Project Scope'!$C50=\"\",\"\",IF('Project Scope'!$AX50=\"\",0,'Project Scope'!$AX50))","v":""},{"$f":"IF('Project Scope'!$C50=\"\",\"\",IF('Project Scope'!$M50=\"\",0,'Project Scope'!$M50))","v":""},{"$f":"IF('Project Scope'!$C50=\"\",\"\",IF(COUNTIF('CBAT Lookups'!$B$5:$B$12,\"Fixtures-\"&CBAT!$D50)=1,VLOOKUP(\"Fixtures-\"&CBAT!$D50,'CBAT Lookups'!$B$5:$L$12,11),0))","v":""},{"$f":"IF('Project Scope'!$C50=\"\",\"\",(IF(COUNTIF('CBAT Lookups'!$B$5:$B$12,\"Fixtures-\"&CBAT!$D50)=1,VLOOKUP(\"Fixtures-\"&CBAT!$D50,'CBAT Lookups'!$B$5:$K$12,2),0))*VLOOKUP($F50,'CBAT Lookups'!$B$17:$K$19,2))","v":""},{"$f":"IF('Project Scope'!$C50=\"\",\"\",(IF(COUNTIF('CBAT Lookups'!$B$5:$B$12,\"Fixtures-\"&CBAT!$D50)=1,VLOOKUP(\"Fixtures-\"&CBAT!$D50,'CBAT Lookups'!$B$5:$K$12,3),0))*VLOOKUP($F50,'CBAT Lookups'!$B$17:$K$19,3))","v":""},{"$f":"IF('Project Scope'!$C50=\"\",\"\",(IF(COUNTIF('CBAT Lookups'!$B$5:$B$12,\"Fixtures-\"&CBAT!$D50)=1,VLOOKUP(\"Fixtures-\"&CBAT!$D50,'CBAT Lookups'!$B$5:$K$12,4),0)))","v":""},{"$f":"IF('Project Scope'!$C50=\"\",\"\",(IF(COUNTIF('CBAT Lookups'!$B$5:$B$12,\"Fixtures-\"&CBAT!$D50)=1,VLOOKUP(\"Fixtures-\"&CBAT!$D50,'CBAT Lookups'!$B$5:$K$12,5),0)))","v":""},{"$f":"IF('Project Scope'!$C50=\"\",\"\",(IF(COUNTIF('CBAT Lookups'!$B$5:$B$12,\"Fixtures-\"&CBAT!$D50)=1,VLOOKUP(\"Fixtures-\"&CBAT!$D50,'CBAT Lookups'!$B$5:$K$12,6),0)))","v":""},{"$f":"IF('Project Scope'!$C50=\"\",\"\",IF(COUNTIF('CBAT Lookups'!$B$5:$B$12,\"Fixtures-\"&CBAT!$D50)=1,VLOOKUP(\"Fixtures-\"&CBAT!$D50,'CBAT Lookups'!$B$5:$K$12,7),0))","v":""},{"$f":"IF('Project Scope'!$C50=\"\",\"\",IF(VLOOKUP($F50,'CBAT Lookups'!$B$17:$K$19,8)=\"W\",1,IF(COUNTIF('CBAT Lookups'!$B$5:$B$12,\"Fixtures-\"&CBAT!$D50)=1,VLOOKUP(\"Fixtures-\"&CBAT!$D50,'CBAT Lookups'!$B$5:$K$12,8),0)*VLOOKUP($F50,'CBAT Lookups'!$B$17:$K$19,8)))","v":""},{"$f":"IF('Project Scope'!$C50=\"\",\"\",IF(VLOOKUP($F50,'CBAT Lookups'!$B$17:$K$19,9)=\"W\",1,IF(COUNTIF('CBAT Lookups'!$B$5:$B$12,\"Fixtures-\"&CBAT!$D50)=1,VLOOKUP(\"Fixtures-\"&CBAT!$D50,'CBAT Lookups'!$B$5:$K$12,9),0)*VLOOKUP($F50,'CBAT Lookups'!$B$17:$K$19,9)))","v":""},{"$f":"IF('Project Scope'!$C50=\"\",\"\",IF(COUNTIF('CBAT Lookups'!$B$5:$B$12,\"Fixtures-\"&CBAT!$D50)=1,VLOOKUP(\"Fixtures-\"&CBAT!$D50,'CBAT Lookups'!$B$5:$K$12,10),0)*VLOOKUP($F50,'CBAT Lookups'!$B$17:$K$19,10))","v":""},{"$f":"IF('Project Scope'!$C50=\"\",\"\",IF(COUNTIF('CBAT Lookups'!$B$5:$B$12,\"Fixtures-\"&CBAT!$D50)=1,VLOOKUP(\"Fixtures-\"&CBAT!$D50,'CBAT Lookups'!$B$5:$O$12,12),0))","v":""},{"$f":"IF('Project Scope'!$C50=\"\",\"\",IF(COUNTIF('CBAT Lookups'!$B$5:$B$12,\"Fixtures-\"&CBAT!$D50)=1,VLOOKUP(\"Fixtures-\"&CBAT!$D50,'CBAT Lookups'!$B$5:$O$12,13),0))","v":""},{"$f":"IF('Project Scope'!$C50=\"\",\"\",IF(COUNTIF('CBAT Lookups'!$B$5:$B$12,\"Fixtures-\"&CBAT!$D50)=1,VLOOKUP(\"Fixtures-\"&CBAT!$D50,'CBAT Lookups'!$B$5:$O$12,14),0))","v":""},{"$f":"IF('Project Scope'!$C50=\"\",\"\",'TRM Data'!$U$3)","v":""},{"$f":"IF('Project Scope'!$C50=\"\",\"\",'TRM Data'!$V$3)","v":""},{"$f":"IF('Project Scope'!$C50=\"\",\"\",IF($J50<=0,0,MAX(0,(($G50*$H50/1000)-($I50*$J50/1000))*$L50)*$U50)+($AF50/0.003412))","v":""},{"$f":"IF('Project Scope'!$C50=\"\",\"\",IF($J50<=0,0,MAX(0,(($G50*$H50/1000)-($I50*$J50/1000)))*$T50))","v":""},{"$f":"IF('Project Scope'!$C50=\"\",\"\",IF($J50<=0,0,MAX(0,(($G50*$H50/1000)-($I50*$J50/1000))*$N50)))","v":""},{"$f":"IF('Project Scope'!$C50=\"\",\"\",IF($J50<=0,0,MAX(0,(($G50*$H50/1000)-($I50*$J50/1000))*$O50)*$T50))","v":""},{"$f":"IF('Project Scope'!$C50=\"\",\"\",IF(OR($J50<=0,'Project Information'!$D$44=\"\"),0,-1*MAX(0,(($G50*$H50/1000)-($I50*$J50/1000))*$L50)*$V50*VLOOKUP('Project Information'!$D$44,'CBAT Lookups'!$A$23:$H$30,2)))","v":""},{"$f":"IF('Project Scope'!$C50=\"\",\"\",IF(OR($J50<=0,'Project Information'!$D$44=\"\"),0,-1*MAX(0,(($G50*$H50/1000)-($I50*$J50/1000))*$L50)*$V50*VLOOKUP('Project Information'!$D$44,'CBAT Lookups'!$A$23:$H$30,3)))","v":""},{"$f":"IF('Project Scope'!$C50=\"\",\"\",IF(OR($J50<=0,'Project Information'!$D$44=\"\"),0,-1*MAX(0,(($G50*$H50/1000)-($I50*$J50/1000))*$L50)*$V50*VLOOKUP('Project Information'!$D$44,'CBAT Lookups'!$A$23:$H$30,4)))","v":""},{"$f":"IF('Project Scope'!$C50=\"\",\"\",IF(OR($J50<=0,'Project Information'!$D$44=\"\"),0,-1*MAX(0,(($G50*$H50/1000)-($I50*$J50/1000))*$L50)*$V50*VLOOKUP('Project Information'!$D$44,'CBAT Lookups'!$A$23:$H$30,5)))","v":""},{"$f":"IF('Project Scope'!$C50=\"\",\"\",IF(OR($J50<=0,'Project Information'!$D$44=\"\"),0,-1*MAX(0,(($G50*$H50/1000)-($I50*$J50/1000))*$L50)*$V50*VLOOKUP('Project Information'!$D$44,'CBAT Lookups'!$A$23:$H$30,6)))","v":""},{"$f":"IF('Project Scope'!$C50=\"\",\"\",IF(OR($J50<=0,'Project Information'!$D$44=\"\"),0,-1*MAX(0,(($G50*$H50/1000)-($I50*$J50/1000))*$L50)*$V50*VLOOKUP('Project Information'!$D$44,'CBAT Lookups'!$A$23:$H$30,7)))","v":""},{"$f":"IF('Project Scope'!$C50=\"\",\"\",IF(OR($J50<=0,'Project Information'!$D$44=\"\"),0,-1*MAX(0,(($G50*$H50/1000)-($I50*$J50/1000))*$L50)*$V50*VLOOKUP('Project Information'!$D$44,'CBAT Lookups'!$A$23:$H$30,8)))","v":""},null,{"$f":"IF('Project Scope'!$C50=\"\",\"\",VLOOKUP($F50,'CBAT Lookups'!$B$17:$K$19,4))","v":""},{"$f":"IF('Project Scope'!$C50=\"\",\"\",VLOOKUP($F50,'CBAT Lookups'!$B$17:$K$19,5))","v":""},{"$f":"IF('Project Scope'!$C50=\"\",\"\",VLOOKUP($F50,'CBAT Lookups'!$B$17:$K$19,6))","v":""},{"$f":"IF('Project Scope'!$C50=\"\",\"\",VLOOKUP($F50,'CBAT Lookups'!$B$17:$K$19,7))","v":""},{"$f":"IF('Project Scope'!$C50=\"\",\"\",IF(SUMPRODUCT($P50:$S50,$AN50:$AQ50)=0,0,P50*AN50/SUMPRODUCT($P50:$S50,$AN50:$AQ50)))","v":""},{"$f":"IF('Project Scope'!$C50=\"\",\"\",IF(SUMPRODUCT($P50:$S50,$AN50:$AQ50)=0,0,Q50*AO50/SUMPRODUCT($P50:$S50,$AN50:$AQ50)))","v":""},{"$f":"IF('Project Scope'!$C50=\"\",\"\",IF(SUMPRODUCT($P50:$S50,$AN50:$AQ50)=0,0,R50*AP50/SUMPRODUCT($P50:$S50,$AN50:$AQ50)))","v":""},{"$f":"IF('Project Scope'!$C50=\"\",\"\",IF(SUMPRODUCT($P50:$S50,$AN50:$AQ50)=0,0,S50*AQ50/SUMPRODUCT($P50:$S50,$AN50:$AQ50)))","v":""},{"$f":"IF('Project Scope'!$C50=\"\",\"\",Benefits($AB50,$AD50,$AE50,$AG50,$AH50,$AI50,$AJ50,$AK50,$AL50,$AM50,$M50,$AR50,$AS50,$AT50,$AU50,$W50,$X50,$Y50,$Z50,$AA50,$E50))","v":""},"","","","","","","","",null,{"$f":"IF('Project Scope'!$C50=\"\",\"\",SUM('Project Scope'!$AT50,'Project Scope'!$AU50))","v":""},{"$f":"IF('Project Scope'!$C50=\"\",\"\",SUM('Project Scope'!$BG50, 'Project Scope'!$AR50,(IF(ISNUMBER('Project Scope'!$AS50),'Project Scope'!$AS50,0)*'Project Information'!$D$12)))","v":""},null,null,{"$f":"IF('Project Scope'!$C50=\"\",\"\",IF(COUNTIF('CBAT Lookups'!$B$5:$B$12,\"Controls-\"&CBAT!$D50)=1,VLOOKUP(\"Controls-\"&CBAT!$D50,'CBAT Lookups'!$B$5:$L$12,11),0))","v":""},{"$f":"IF('Project Scope'!$C50=\"\",\"\",IF(COUNTIF('CBAT Lookups'!$B$5:$B$12,\"Controls-\"&CBAT!$D50)=1,VLOOKUP(\"Controls-\"&CBAT!$D50,'CBAT Lookups'!$B$5:$K$12,2),0)*VLOOKUP($F50,'CBAT Lookups'!$B$17:$K$19,2))","v":""},{"$f":"IF('Project Scope'!$C50=\"\",\"\",IF(COUNTIF('CBAT Lookups'!$B$5:$B$12,\"Controls-\"&CBAT!$D50)=1,VLOOKUP(\"Controls-\"&CBAT!$D50,'CBAT Lookups'!$B$5:$K$12,3),0)*VLOOKUP($F50,'CBAT Lookups'!$B$17:$K$19,3))","v":""},{"$f":"IF('Project Scope'!$C50=\"\",\"\",IF(COUNTIF('CBAT Lookups'!$B$5:$B$12,\"Controls-\"&CBAT!$D50)=1,VLOOKUP(\"Controls-\"&CBAT!$D50,'CBAT Lookups'!$B$5:$K$12,4),0))","v":""},{"$f":"IF('Project Scope'!$C50=\"\",\"\",IF(COUNTIF('CBAT Lookups'!$B$5:$B$12,\"Controls-\"&CBAT!$D50)=1,VLOOKUP(\"Controls-\"&CBAT!$D50,'CBAT Lookups'!$B$5:$K$12,5),0))","v":""},{"$f":"IF('Project Scope'!$C50=\"\",\"\",IF(COUNTIF('CBAT Lookups'!$B$5:$B$12,\"Controls-\"&CBAT!$D50)=1,VLOOKUP(\"Controls-\"&CBAT!$D50,'CBAT Lookups'!$B$5:$K$12,6),0))","v":""},{"$f":"IF('Project Scope'!$C50=\"\",\"\",IF(COUNTIF('CBAT Lookups'!$B$5:$B$12,\"Controls-\"&CBAT!$D50)=1,VLOOKUP(\"Controls-\"&CBAT!$D50,'CBAT Lookups'!$B$5:$K$12,7),0))","v":""},{"$f":"IF('Project Scope'!$C50=\"\",\"\",IF(VLOOKUP($F50,'CBAT Lookups'!$B$17:$K$19,8)=\"W\",1,IF(COUNTIF('CBAT Lookups'!$B$5:$B$12,\"Controls-\"&CBAT!$D50)=1,VLOOKUP(\"Controls-\"&CBAT!$D50,'CBAT Lookups'!$B$5:$K$12,8),0)*VLOOKUP($F50,'CBAT Lookups'!$B$17:$K$19,8)))","v":""},{"$f":"IF('Project Scope'!$C50=\"\",\"\",IF(VLOOKUP($F50,'CBAT Lookups'!$B$17:$K$19,9)=\"W\",1,IF(COUNTIF('CBAT Lookups'!$B$5:$B$12,\"Controls-\"&CBAT!$D50)=1,VLOOKUP(\"Controls-\"&CBAT!$D50,'CBAT Lookups'!$B$5:$K$12,9),0)*VLOOKUP($F50,'CBAT Lookups'!$B$17:$K$19,9)))","v":""},{"$f":"IF('Project Scope'!$C50=\"\",\"\",IF(COUNTIF('CBAT Lookups'!$B$5:$B$12,\"Controls-\"&CBAT!$D50)=1,VLOOKUP(\"Controls-\"&CBAT!$D50,'CBAT Lookups'!$B$5:$K$12,10),0)*VLOOKUP($F50,'CBAT Lookups'!$B$17:$K$19,10))","v":""},{"$f":"IF('Project Scope'!$C50=\"\",\"\",VLOOKUP($C50,'CBAT Lookups'!$A$33:$B$57,2))","v":""},{"$f":"IF('Project Scope'!$C50=\"\",\"\",IF(COUNTIF('CBAT Lookups'!$B$5:$B$12,\"Controls-\"&CBAT!$D50)=1,VLOOKUP(\"Controls-\"&CBAT!$D50,'CBAT Lookups'!$B$5:$O$12,12),0))","v":""},{"$f":"IF('Project Scope'!$C50=\"\",\"\",IF(COUNTIF('CBAT Lookups'!$B$5:$B$12,\"Controls-\"&CBAT!$D50)=1,VLOOKUP(\"Controls-\"&CBAT!$D50,'CBAT Lookups'!$B$5:$O$12,13),0))","v":""},{"$f":"IF('Project Scope'!$C50=\"\",\"\",IF(COUNTIF('CBAT Lookups'!$B$5:$B$12,\"Controls-\"&CBAT!$D50)=1,VLOOKUP(\"Controls-\"&CBAT!$D50,'CBAT Lookups'!$B$5:$O$12,14),0))","v":""},{"$f":"IF('Project Scope'!$C50=\"\",\"\",'TRM Data'!$U$3)","v":""},{"$f":"IF('Project Scope'!$C50=\"\",\"\",'TRM Data'!$V$3)","v":""},{"$f":"IF('Project Scope'!$C50=\"\",\"\",IF($K50<=0,0,MAX(0,(IF(AND($I50>0,$J50>0),($I50*$J50)/1000,($G50*$H50)/1000)*$L50))*$BT50*$BR50)+($CD50/0.003412))","v":""},{"$f":"IF('Project Scope'!$C50=\"\",\"\",IF($K50<=0,0,MAX(0,IF(AND($I50>0,$J50>0),($I50*$J50)/1000,($G50*$H50)/1000))*$BQ50))","v":""},{"$f":"IF('Project Scope'!$C50=\"\",\"\",IF($K50<=0,0,MAX(0,IF(AND($I50>0,$J50>0),($I50*$J50)/1000,($G50*$H50)/1000))*$BK50))","v":""},{"$f":"IF('Project Scope'!$C50=\"\",\"\",IF($K50<=0,0,MAX(0,IF(AND($I50>0,$J50>0),($I50*$J50)/1000,($G50*$H50)/1000))*$BL50*$BQ50))","v":""},{"$f":"IF('Project Scope'!$C50=\"\",\"\",IF(OR($K50<=0,'Project Information'!$D$44=\"\"),0,-1*MAX(0,IF(AND($I50>0,$J50>0),($I50*$J50)/1000,($G50*$H50)/1000))*$BT50*$L50*$BS50*VLOOKUP('Project Information'!$D$44,'CBAT Lookups'!$A$23:$H$30,2)))","v":""},{"$f":"IF('Project Scope'!$C50=\"\",\"\",IF(OR($K50<=0,'Project Information'!$D$44=\"\"),0,-1*MAX(0,IF(AND($I50>0,$J50>0),($I50*$J50)/1000,($G50*$H50)/1000))*$BT50*$L50*$BS50*VLOOKUP('Project Information'!$D$44,'CBAT Lookups'!$A$23:$H$30,3)))","v":""},{"$f":"IF('Project Scope'!$C50=\"\",\"\",IF(OR($K50<=0,'Project Information'!$D$44=\"\"),0,-1*MAX(0,IF(AND($I50>0,$J50>0),($I50*$J50)/1000,($G50*$H50)/1000))*$BT50*$L50*$BS50*VLOOKUP('Project Information'!$D$44,'CBAT Lookups'!$A$23:$H$30,4)))","v":""},{"$f":"IF('Project Scope'!$C50=\"\",\"\",IF(OR($K50<=0,'Project Information'!$D$44=\"\"),0,-1*MAX(0,IF(AND($I50>0,$J50>0),($I50*$J50)/1000,($G50*$H50)/1000))*$BT50*$L50*$BS50*VLOOKUP('Project Information'!$D$44,'CBAT Lookups'!$A$23:$H$30,5)))","v":""},{"$f":"IF('Project Scope'!$C50=\"\",\"\",IF(OR($K50<=0,'Project Information'!$D$44=\"\"),0,-1*MAX(0,IF(AND($I50>0,$J50>0),($I50*$J50)/1000,($G50*$H50)/1000))*$BT50*$L50*$BS50*VLOOKUP('Project Information'!$D$44,'CBAT Lookups'!$A$23:$H$30,6)))","v":""},{"$f":"IF('Project Scope'!$C50=\"\",\"\",IF(OR($K50<=0,'Project Information'!$D$44=\"\"),0,-1*MAX(0,IF(AND($I50>0,$J50>0),($I50*$J50)/1000,($G50*$H50)/1000))*$BT50*$L50*$BS50*VLOOKUP('Project Information'!$D$44,'CBAT Lookups'!$A$23:$H$30,7)))","v":""},{"$f":"IF('Project Scope'!$C50=\"\",\"\",IF(OR($K50<=0,'Project Information'!$D$44=\"\"),0,-1*MAX(0,IF(AND($I50>0,$J50>0),($I50*$J50)/1000,($G50*$H50)/1000))*$BT50*$L50*$BS50*VLOOKUP('Project Information'!$D$44,'CBAT Lookups'!$A$23:$H$30,8)))","v":""},null,{"$f":"IF('Project Scope'!$C50=\"\",\"\",VLOOKUP($F50,'CBAT Lookups'!$B$17:$K$19,4))","v":""},{"$f":"IF('Project Scope'!$C50=\"\",\"\",VLOOKUP($F50,'CBAT Lookups'!$B$17:$K$19,5))","v":""},{"$f":"IF('Project Scope'!$C50=\"\",\"\",VLOOKUP($F50,'CBAT Lookups'!$B$17:$K$19,6))","v":""},{"$f":"IF('Project Scope'!$C50=\"\",\"\",VLOOKUP($F50,'CBAT Lookups'!$B$17:$K$19,7))","v":""},{"$f":"IF('Project Scope'!$C50=\"\",\"\",IF(SUMPRODUCT($BM50:$BP50,$CL50:$CO50)=0,0,BM50*CL50/SUMPRODUCT($BM50:$BP50,$CL50:$CO50)))","v":""},{"$f":"IF('Project Scope'!$C50=\"\",\"\",IF(SUMPRODUCT($BM50:$BP50,$CL50:$CO50)=0,0,BN50*CM50/SUMPRODUCT($BM50:$BP50,$CL50:$CO50)))","v":""},{"$f":"IF('Project Scope'!$C50=\"\",\"\",IF(SUMPRODUCT($BM50:$BP50,$CL50:$CO50)=0,0,BO50*CN50/SUMPRODUCT($BM50:$BP50,$CL50:$CO50)))","v":""},{"$f":"IF('Project Scope'!$C50=\"\",\"\",IF(SUMPRODUCT($BM50:$BP50,$CL50:$CO50)=0,0,BP50*CO50/SUMPRODUCT($BM50:$BP50,$CL50:$CO50)))","v":""},{"$f":"IF('Project Scope'!$C50=\"\",\"\",Benefits($BZ50,$CB50,$CC50,$CE50,$CF50,$CG50,$CH50,$CI50,$CJ50,$CK50,$BJ50,$CP50,$CQ50,$CR50,$CS50,$BU50,$BV50,$BW50,$BX50,$BY50,$E50))","v":""},"","","","","","","","",null,{"$f":"IF('Project Scope'!$C50=\"\",\"\",SUM('Project Scope'!$BB50,'Project Scope'!$BC50))","v":""},{"$f":"IF('Project Scope'!$C50=\"\",\"\",SUM('Project Scope'!$BH50, 'Project Scope'!$AZ50,(IF(ISNUMBER('Project Scope'!$BA50),'Project Scope'!$BA50,0)*'Project Information'!$D$12)))","v":""},null,null,{"$f":"IF('Project Scope'!$C50=\"\",\"\",IF($J50<=0,0,(SUMPRODUCT($AV50:$BC50,--($AV50:$BC50>0))+$BE50)*$DK50/((-SUMPRODUCT($AV50:$BC50,--($AV50:$BC50<0))+$BG50+$BH50+$BI50)*$DK50)))","v":""},{"$f":"IF('Project Scope'!$C50=\"\",\"\",IF($K50<=0,0,(SUMPRODUCT($CT50:$DA50,--($CT50:$DA50>0))+$DC50)*$DK50/((-SUMPRODUCT($CT50:$DA50,--($CT50:$DA50<0))+$DE50+$DF50+$DG50)*$DK50)))","v":""},{"$f":"IF('Project Scope'!$C50=\"\",\"\",IF(AND($J50<=0,$K50<=0),0,(SUMPRODUCT($AV50:$BC50,--($AV50:$BC50>0))+$BE50+SUMPRODUCT($CT50:$DA50,--($CT50:$DA50>0))+$DC50)*$DK50/((-SUMPRODUCT($AV50:$BC50,--($AV50:$BC50<0))+$BG50+$BH50+$BI50-SUMPRODUCT($CT50:$DA50,--($CT50:$DA50<0))+$DE50+$DF50+$DG50)*$DK50)))","v":""},{"$f":"IF('Project Scope'!$C50=\"\",\"\",IF(NetOrGross=\"Net\",(1-Z50+AA50),1))","v":""}]
[{"$f":"'Project Scope'!$B51","v":44},{"$f":"IF('Project Scope'!$C51=\"\",\"\",'Project Scope'!$C51)","v":""},{"$f":"IF('Project Scope'!$C51=\"\",\"\",'Project Scope'!$H51)","v":""},{"$f":"IF(ISNUMBER(SEARCH(\"Bay\",'Project Scope'!$Q51)),\"Bay\",IF('Project Scope'!C51=\"\",\"\",'Project Scope'!E51))","v":""},{"$f":"IF('Project Scope'!$C51=\"\",\"\",\"Com\")","v":""},{"$f":"IF('Project Scope'!$C51=\"\",\"\",'Project Scope'!$L51)","v":""},{"$f":"IF('Project Scope'!$C51=\"\",\"\",IF('Project Scope'!$CJ51=\"\",0,'Project Scope'!$CJ51))","v":""},{"$f":"IF('Project Scope'!$C51=\"\",\"\",IF('Project Scope'!$N51=\"\",0,'Project Scope'!$N51))","v":""},{"$f":"IF('Project Scope'!$C51=\"\",\"\",IF('Project Scope'!$CK51=\"\",0,'Project Scope'!$CK51))","v":""},{"$f":"IF('Project Scope'!$C51=\"\",\"\",IF('Project Scope'!$AO51=\"\",0,'Project Scope'!$AO51))","v":""},{"$f":"IF('Project Scope'!$C51=\"\",\"\",IF('Project Scope'!$AX51=\"\",0,'Project Scope'!$AX51))","v":""},{"$f":"IF('Project Scope'!$C51=\"\",\"\",IF('Project Scope'!$M51=\"\",0,'Project Scope'!$M51))","v":""},{"$f":"IF('Project Scope'!$C51=\"\",\"\",IF(COUNTIF('CBAT Lookups'!$B$5:$B$12,\"Fixtures-\"&CBAT!$D51)=1,VLOOKUP(\"Fixtures-\"&CBAT!$D51,'CBAT Lookups'!$B$5:$L$12,11),0))","v":""},{"$f":"IF('Project Scope'!$C51=\"\",\"\",(IF(COUNTIF('CBAT Lookups'!$B$5:$B$12,\"Fixtures-\"&CBAT!$D51)=1,VLOOKUP(\"Fixtures-\"&CBAT!$D51,'CBAT Lookups'!$B$5:$K$12,2),0))*VLOOKUP($F51,'CBAT Lookups'!$B$17:$K$19,2))","v":""},{"$f":"IF('Project Scope'!$C51=\"\",\"\",(IF(COUNTIF('CBAT Lookups'!$B$5:$B$12,\"Fixtures-\"&CBAT!$D51)=1,VLOOKUP(\"Fixtures-\"&CBAT!$D51,'CBAT Lookups'!$B$5:$K$12,3),0))*VLOOKUP($F51,'CBAT Lookups'!$B$17:$K$19,3))","v":""},{"$f":"IF('Project Scope'!$C51=\"\",\"\",(IF(COUNTIF('CBAT Lookups'!$B$5:$B$12,\"Fixtures-\"&CBAT!$D51)=1,VLOOKUP(\"Fixtures-\"&CBAT!$D51,'CBAT Lookups'!$B$5:$K$12,4),0)))","v":""},{"$f":"IF('Project Scope'!$C51=\"\",\"\",(IF(COUNTIF('CBAT Lookups'!$B$5:$B$12,\"Fixtures-\"&CBAT!$D51)=1,VLOOKUP(\"Fixtures-\"&CBAT!$D51,'CBAT Lookups'!$B$5:$K$12,5),0)))","v":""},{"$f":"IF('Project Scope'!$C51=\"\",\"\",(IF(COUNTIF('CBAT Lookups'!$B$5:$B$12,\"Fixtures-\"&CBAT!$D51)=1,VLOOKUP(\"Fixtures-\"&CBAT!$D51,'CBAT Lookups'!$B$5:$K$12,6),0)))","v":""},{"$f":"IF('Project Scope'!$C51=\"\",\"\",IF(COUNTIF('CBAT Lookups'!$B$5:$B$12,\"Fixtures-\"&CBAT!$D51)=1,VLOOKUP(\"Fixtures-\"&CBAT!$D51,'CBAT Lookups'!$B$5:$K$12,7),0))","v":""},{"$f":"IF('Project Scope'!$C51=\"\",\"\",IF(VLOOKUP($F51,'CBAT Lookups'!$B$17:$K$19,8)=\"W\",1,IF(COUNTIF('CBAT Lookups'!$B$5:$B$12,\"Fixtures-\"&CBAT!$D51)=1,VLOOKUP(\"Fixtures-\"&CBAT!$D51,'CBAT Lookups'!$B$5:$K$12,8),0)*VLOOKUP($F51,'CBAT Lookups'!$B$17:$K$19,8)))","v":""},{"$f":"IF('Project Scope'!$C51=\"\",\"\",IF(VLOOKUP($F51,'CBAT Lookups'!$B$17:$K$19,9)=\"W\",1,IF(COUNTIF('CBAT Lookups'!$B$5:$B$12,\"Fixtures-\"&CBAT!$D51)=1,VLOOKUP(\"Fixtures-\"&CBAT!$D51,'CBAT Lookups'!$B$5:$K$12,9),0)*VLOOKUP($F51,'CBAT Lookups'!$B$17:$K$19,9)))","v":""},{"$f":"IF('Project Scope'!$C51=\"\",\"\",IF(COUNTIF('CBAT Lookups'!$B$5:$B$12,\"Fixtures-\"&CBAT!$D51)=1,VLOOKUP(\"Fixtures-\"&CBAT!$D51,'CBAT Lookups'!$B$5:$K$12,10),0)*VLOOKUP($F51,'CBAT Lookups'!$B$17:$K$19,10))","v":""},{"$f":"IF('Project Scope'!$C51=\"\",\"\",IF(COUNTIF('CBAT Lookups'!$B$5:$B$12,\"Fixtures-\"&CBAT!$D51)=1,VLOOKUP(\"Fixtures-\"&CBAT!$D51,'CBAT Lookups'!$B$5:$O$12,12),0))","v":""},{"$f":"IF('Project Scope'!$C51=\"\",\"\",IF(COUNTIF('CBAT Lookups'!$B$5:$B$12,\"Fixtures-\"&CBAT!$D51)=1,VLOOKUP(\"Fixtures-\"&CBAT!$D51,'CBAT Lookups'!$B$5:$O$12,13),0))","v":""},{"$f":"IF('Project Scope'!$C51=\"\",\"\",IF(COUNTIF('CBAT Lookups'!$B$5:$B$12,\"Fixtures-\"&CBAT!$D51)=1,VLOOKUP(\"Fixtures-\"&CBAT!$D51,'CBAT Lookups'!$B$5:$O$12,14),0))","v":""},{"$f":"IF('Project Scope'!$C51=\"\",\"\",'TRM Data'!$U$3)","v":""},{"$f":"IF('Project Scope'!$C51=\"\",\"\",'TRM Data'!$V$3)","v":""},{"$f":"IF('Project Scope'!$C51=\"\",\"\",IF($J51<=0,0,MAX(0,(($G51*$H51/1000)-($I51*$J51/1000))*$L51)*$U51)+($AF51/0.003412))","v":""},{"$f":"IF('Project Scope'!$C51=\"\",\"\",IF($J51<=0,0,MAX(0,(($G51*$H51/1000)-($I51*$J51/1000)))*$T51))","v":""},{"$f":"IF('Project Scope'!$C51=\"\",\"\",IF($J51<=0,0,MAX(0,(($G51*$H51/1000)-($I51*$J51/1000))*$N51)))","v":""},{"$f":"IF('Project Scope'!$C51=\"\",\"\",IF($J51<=0,0,MAX(0,(($G51*$H51/1000)-($I51*$J51/1000))*$O51)*$T51))","v":""},{"$f":"IF('Project Scope'!$C51=\"\",\"\",IF(OR($J51<=0,'Project Information'!$D$44=\"\"),0,-1*MAX(0,(($G51*$H51/1000)-($I51*$J51/1000))*$L51)*$V51*VLOOKUP('Project Information'!$D$44,'CBAT Lookups'!$A$23:$H$30,2)))","v":""},{"$f":"IF('Project Scope'!$C51=\"\",\"\",IF(OR($J51<=0,'Project Information'!$D$44=\"\"),0,-1*MAX(0,(($G51*$H51/1000)-($I51*$J51/1000))*$L51)*$V51*VLOOKUP('Project Information'!$D$44,'CBAT Lookups'!$A$23:$H$30,3)))","v":""},{"$f":"IF('Project Scope'!$C51=\"\",\"\",IF(OR($J51<=0,'Project Information'!$D$44=\"\"),0,-1*MAX(0,(($G51*$H51/1000)-($I51*$J51/1000))*$L51)*$V51*VLOOKUP('Project Information'!$D$44,'CBAT Lookups'!$A$23:$H$30,4)))","v":""},{"$f":"IF('Project Scope'!$C51=\"\",\"\",IF(OR($J51<=0,'Project Information'!$D$44=\"\"),0,-1*MAX(0,(($G51*$H51/1000)-($I51*$J51/1000))*$L51)*$V51*VLOOKUP('Project Information'!$D$44,'CBAT Lookups'!$A$23:$H$30,5)))","v":""},{"$f":"IF('Project Scope'!$C51=\"\",\"\",IF(OR($J51<=0,'Project Information'!$D$44=\"\"),0,-1*MAX(0,(($G51*$H51/1000)-($I51*$J51/1000))*$L51)*$V51*VLOOKUP('Project Information'!$D$44,'CBAT Lookups'!$A$23:$H$30,6)))","v":""},{"$f":"IF('Project Scope'!$C51=\"\",\"\",IF(OR($J51<=0,'Project Information'!$D$44=\"\"),0,-1*MAX(0,(($G51*$H51/1000)-($I51*$J51/1000))*$L51)*$V51*VLOOKUP('Project Information'!$D$44,'CBAT Lookups'!$A$23:$H$30,7)))","v":""},{"$f":"IF('Project Scope'!$C51=\"\",\"\",IF(OR($J51<=0,'Project Information'!$D$44=\"\"),0,-1*MAX(0,(($G51*$H51/1000)-($I51*$J51/1000))*$L51)*$V51*VLOOKUP('Project Information'!$D$44,'CBAT Lookups'!$A$23:$H$30,8)))","v":""},null,{"$f":"IF('Project Scope'!$C51=\"\",\"\",VLOOKUP($F51,'CBAT Lookups'!$B$17:$K$19,4))","v":""},{"$f":"IF('Project Scope'!$C51=\"\",\"\",VLOOKUP($F51,'CBAT Lookups'!$B$17:$K$19,5))","v":""},{"$f":"IF('Project Scope'!$C51=\"\",\"\",VLOOKUP($F51,'CBAT Lookups'!$B$17:$K$19,6))","v":""},{"$f":"IF('Project Scope'!$C51=\"\",\"\",VLOOKUP($F51,'CBAT Lookups'!$B$17:$K$19,7))","v":""},{"$f":"IF('Project Scope'!$C51=\"\",\"\",IF(SUMPRODUCT($P51:$S51,$AN51:$AQ51)=0,0,P51*AN51/SUMPRODUCT($P51:$S51,$AN51:$AQ51)))","v":""},{"$f":"IF('Project Scope'!$C51=\"\",\"\",IF(SUMPRODUCT($P51:$S51,$AN51:$AQ51)=0,0,Q51*AO51/SUMPRODUCT($P51:$S51,$AN51:$AQ51)))","v":""},{"$f":"IF('Project Scope'!$C51=\"\",\"\",IF(SUMPRODUCT($P51:$S51,$AN51:$AQ51)=0,0,R51*AP51/SUMPRODUCT($P51:$S51,$AN51:$AQ51)))","v":""},{"$f":"IF('Project Scope'!$C51=\"\",\"\",IF(SUMPRODUCT($P51:$S51,$AN51:$AQ51)=0,0,S51*AQ51/SUMPRODUCT($P51:$S51,$AN51:$AQ51)))","v":""},{"$f":"IF('Project Scope'!$C51=\"\",\"\",Benefits($AB51,$AD51,$AE51,$AG51,$AH51,$AI51,$AJ51,$AK51,$AL51,$AM51,$M51,$AR51,$AS51,$AT51,$AU51,$W51,$X51,$Y51,$Z51,$AA51,$E51))","v":""},"","","","","","","","",null,{"$f":"IF('Project Scope'!$C51=\"\",\"\",SUM('Project Scope'!$AT51,'Project Scope'!$AU51))","v":""},{"$f":"IF('Project Scope'!$C51=\"\",\"\",SUM('Project Scope'!$BG51, 'Project Scope'!$AR51,(IF(ISNUMBER('Project Scope'!$AS51),'Project Scope'!$AS51,0)*'Project Information'!$D$12)))","v":""},null,null,{"$f":"IF('Project Scope'!$C51=\"\",\"\",IF(COUNTIF('CBAT Lookups'!$B$5:$B$12,\"Controls-\"&CBAT!$D51)=1,VLOOKUP(\"Controls-\"&CBAT!$D51,'CBAT Lookups'!$B$5:$L$12,11),0))","v":""},{"$f":"IF('Project Scope'!$C51=\"\",\"\",IF(COUNTIF('CBAT Lookups'!$B$5:$B$12,\"Controls-\"&CBAT!$D51)=1,VLOOKUP(\"Controls-\"&CBAT!$D51,'CBAT Lookups'!$B$5:$K$12,2),0)*VLOOKUP($F51,'CBAT Lookups'!$B$17:$K$19,2))","v":""},{"$f":"IF('Project Scope'!$C51=\"\",\"\",IF(COUNTIF('CBAT Lookups'!$B$5:$B$12,\"Controls-\"&CBAT!$D51)=1,VLOOKUP(\"Controls-\"&CBAT!$D51,'CBAT Lookups'!$B$5:$K$12,3),0)*VLOOKUP($F51,'CBAT Lookups'!$B$17:$K$19,3))","v":""},{"$f":"IF('Project Scope'!$C51=\"\",\"\",IF(COUNTIF('CBAT Lookups'!$B$5:$B$12,\"Controls-\"&CBAT!$D51)=1,VLOOKUP(\"Controls-\"&CBAT!$D51,'CBAT Lookups'!$B$5:$K$12,4),0))","v":""},{"$f":"IF('Project Scope'!$C51=\"\",\"\",IF(COUNTIF('CBAT Lookups'!$B$5:$B$12,\"Controls-\"&CBAT!$D51)=1,VLOOKUP(\"Controls-\"&CBAT!$D51,'CBAT Lookups'!$B$5:$K$12,5),0))","v":""},{"$f":"IF('Project Scope'!$C51=\"\",\"\",IF(COUNTIF('CBAT Lookups'!$B$5:$B$12,\"Controls-\"&CBAT!$D51)=1,VLOOKUP(\"Controls-\"&CBAT!$D51,'CBAT Lookups'!$B$5:$K$12,6),0))","v":""},{"$f":"IF('Project Scope'!$C51=\"\",\"\",IF(COUNTIF('CBAT Lookups'!$B$5:$B$12,\"Controls-\"&CBAT!$D51)=1,VLOOKUP(\"Controls-\"&CBAT!$D51,'CBAT Lookups'!$B$5:$K$12,7),0))","v":""},{"$f":"IF('Project Scope'!$C51=\"\",\"\",IF(VLOOKUP($F51,'CBAT Lookups'!$B$17:$K$19,8)=\"W\",1,IF(COUNTIF('CBAT Lookups'!$B$5:$B$12,\"Controls-\"&CBAT!$D51)=1,VLOOKUP(\"Controls-\"&CBAT!$D51,'CBAT Lookups'!$B$5:$K$12,8),0)*VLOOKUP($F51,'CBAT Lookups'!$B$17:$K$19,8)))","v":""},{"$f":"IF('Project Scope'!$C51=\"\",\"\",IF(VLOOKUP($F51,'CBAT Lookups'!$B$17:$K$19,9)=\"W\",1,IF(COUNTIF('CBAT Lookups'!$B$5:$B$12,\"Controls-\"&CBAT!$D51)=1,VLOOKUP(\"Controls-\"&CBAT!$D51,'CBAT Lookups'!$B$5:$K$12,9),0)*VLOOKUP($F51,'CBAT Lookups'!$B$17:$K$19,9)))","v":""},{"$f":"IF('Project Scope'!$C51=\"\",\"\",IF(COUNTIF('CBAT Lookups'!$B$5:$B$12,\"Controls-\"&CBAT!$D51)=1,VLOOKUP(\"Controls-\"&CBAT!$D51,'CBAT Lookups'!$B$5:$K$12,10),0)*VLOOKUP($F51,'CBAT Lookups'!$B$17:$K$19,10))","v":""},{"$f":"IF('Project Scope'!$C51=\"\",\"\",VLOOKUP($C51,'CBAT Lookups'!$A$33:$B$57,2))","v":""},{"$f":"IF('Project Scope'!$C51=\"\",\"\",IF(COUNTIF('CBAT Lookups'!$B$5:$B$12,\"Controls-\"&CBAT!$D51)=1,VLOOKUP(\"Controls-\"&CBAT!$D51,'CBAT Lookups'!$B$5:$O$12,12),0))","v":""},{"$f":"IF('Project Scope'!$C51=\"\",\"\",IF(COUNTIF('CBAT Lookups'!$B$5:$B$12,\"Controls-\"&CBAT!$D51)=1,VLOOKUP(\"Controls-\"&CBAT!$D51,'CBAT Lookups'!$B$5:$O$12,13),0))","v":""},{"$f":"IF('Project Scope'!$C51=\"\",\"\",IF(COUNTIF('CBAT Lookups'!$B$5:$B$12,\"Controls-\"&CBAT!$D51)=1,VLOOKUP(\"Controls-\"&CBAT!$D51,'CBAT Lookups'!$B$5:$O$12,14),0))","v":""},{"$f":"IF('Project Scope'!$C51=\"\",\"\",'TRM Data'!$U$3)","v":""},{"$f":"IF('Project Scope'!$C51=\"\",\"\",'TRM Data'!$V$3)","v":""},{"$f":"IF('Project Scope'!$C51=\"\",\"\",IF($K51<=0,0,MAX(0,(IF(AND($I51>0,$J51>0),($I51*$J51)/1000,($G51*$H51)/1000)*$L51))*$BT51*$BR51)+($CD51/0.003412))","v":""},{"$f":"IF('Project Scope'!$C51=\"\",\"\",IF($K51<=0,0,MAX(0,IF(AND($I51>0,$J51>0),($I51*$J51)/1000,($G51*$H51)/1000))*$BQ51))","v":""},{"$f":"IF('Project Scope'!$C51=\"\",\"\",IF($K51<=0,0,MAX(0,IF(AND($I51>0,$J51>0),($I51*$J51)/1000,($G51*$H51)/1000))*$BK51))","v":""},{"$f":"IF('Project Scope'!$C51=\"\",\"\",IF($K51<=0,0,MAX(0,IF(AND($I51>0,$J51>0),($I51*$J51)/1000,($G51*$H51)/1000))*$BL51*$BQ51))","v":""},{"$f":"IF('Project Scope'!$C51=\"\",\"\",IF(OR($K51<=0,'Project Information'!$D$44=\"\"),0,-1*MAX(0,IF(AND($I51>0,$J51>0),($I51*$J51)/1000,($G51*$H51)/1000))*$BT51*$L51*$BS51*VLOOKUP('Project Information'!$D$44,'CBAT Lookups'!$A$23:$H$30,2)))","v":""},{"$f":"IF('Project Scope'!$C51=\"\",\"\",IF(OR($K51<=0,'Project Information'!$D$44=\"\"),0,-1*MAX(0,IF(AND($I51>0,$J51>0),($I51*$J51)/1000,($G51*$H51)/1000))*$BT51*$L51*$BS51*VLOOKUP('Project Information'!$D$44,'CBAT Lookups'!$A$23:$H$30,3)))","v":""},{"$f":"IF('Project Scope'!$C51=\"\",\"\",IF(OR($K51<=0,'Project Information'!$D$44=\"\"),0,-1*MAX(0,IF(AND($I51>0,$J51>0),($I51*$J51)/1000,($G51*$H51)/1000))*$BT51*$L51*$BS51*VLOOKUP('Project Information'!$D$44,'CBAT Lookups'!$A$23:$H$30,4)))","v":""},{"$f":"IF('Project Scope'!$C51=\"\",\"\",IF(OR($K51<=0,'Project Information'!$D$44=\"\"),0,-1*MAX(0,IF(AND($I51>0,$J51>0),($I51*$J51)/1000,($G51*$H51)/1000))*$BT51*$L51*$BS51*VLOOKUP('Project Information'!$D$44,'CBAT Lookups'!$A$23:$H$30,5)))","v":""},{"$f":"IF('Project Scope'!$C51=\"\",\"\",IF(OR($K51<=0,'Project Information'!$D$44=\"\"),0,-1*MAX(0,IF(AND($I51>0,$J51>0),($I51*$J51)/1000,($G51*$H51)/1000))*$BT51*$L51*$BS51*VLOOKUP('Project Information'!$D$44,'CBAT Lookups'!$A$23:$H$30,6)))","v":""},{"$f":"IF('Project Scope'!$C51=\"\",\"\",IF(OR($K51<=0,'Project Information'!$D$44=\"\"),0,-1*MAX(0,IF(AND($I51>0,$J51>0),($I51*$J51)/1000,($G51*$H51)/1000))*$BT51*$L51*$BS51*VLOOKUP('Project Information'!$D$44,'CBAT Lookups'!$A$23:$H$30,7)))","v":""},{"$f":"IF('Project Scope'!$C51=\"\",\"\",IF(OR($K51<=0,'Project Information'!$D$44=\"\"),0,-1*MAX(0,IF(AND($I51>0,$J51>0),($I51*$J51)/1000,($G51*$H51)/1000))*$BT51*$L51*$BS51*VLOOKUP('Project Information'!$D$44,'CBAT Lookups'!$A$23:$H$30,8)))","v":""},null,{"$f":"IF('Project Scope'!$C51=\"\",\"\",VLOOKUP($F51,'CBAT Lookups'!$B$17:$K$19,4))","v":""},{"$f":"IF('Project Scope'!$C51=\"\",\"\",VLOOKUP($F51,'CBAT Lookups'!$B$17:$K$19,5))","v":""},{"$f":"IF('Project Scope'!$C51=\"\",\"\",VLOOKUP($F51,'CBAT Lookups'!$B$17:$K$19,6))","v":""},{"$f":"IF('Project Scope'!$C51=\"\",\"\",VLOOKUP($F51,'CBAT Lookups'!$B$17:$K$19,7))","v":""},{"$f":"IF('Project Scope'!$C51=\"\",\"\",IF(SUMPRODUCT($BM51:$BP51,$CL51:$CO51)=0,0,BM51*CL51/SUMPRODUCT($BM51:$BP51,$CL51:$CO51)))","v":""},{"$f":"IF('Project Scope'!$C51=\"\",\"\",IF(SUMPRODUCT($BM51:$BP51,$CL51:$CO51)=0,0,BN51*CM51/SUMPRODUCT($BM51:$BP51,$CL51:$CO51)))","v":""},{"$f":"IF('Project Scope'!$C51=\"\",\"\",IF(SUMPRODUCT($BM51:$BP51,$CL51:$CO51)=0,0,BO51*CN51/SUMPRODUCT($BM51:$BP51,$CL51:$CO51)))","v":""},{"$f":"IF('Project Scope'!$C51=\"\",\"\",IF(SUMPRODUCT($BM51:$BP51,$CL51:$CO51)=0,0,BP51*CO51/SUMPRODUCT($BM51:$BP51,$CL51:$CO51)))","v":""},{"$f":"IF('Project Scope'!$C51=\"\",\"\",Benefits($BZ51,$CB51,$CC51,$CE51,$CF51,$CG51,$CH51,$CI51,$CJ51,$CK51,$BJ51,$CP51,$CQ51,$CR51,$CS51,$BU51,$BV51,$BW51,$BX51,$BY51,$E51))","v":""},"","","","","","","","",null,{"$f":"IF('Project Scope'!$C51=\"\",\"\",SUM('Project Scope'!$BB51,'Project Scope'!$BC51))","v":""},{"$f":"IF('Project Scope'!$C51=\"\",\"\",SUM('Project Scope'!$BH51, 'Project Scope'!$AZ51,(IF(ISNUMBER('Project Scope'!$BA51),'Project Scope'!$BA51,0)*'Project Information'!$D$12)))","v":""},null,null,{"$f":"IF('Project Scope'!$C51=\"\",\"\",IF($J51<=0,0,(SUMPRODUCT($AV51:$BC51,--($AV51:$BC51>0))+$BE51)*$DK51/((-SUMPRODUCT($AV51:$BC51,--($AV51:$BC51<0))+$BG51+$BH51+$BI51)*$DK51)))","v":""},{"$f":"IF('Project Scope'!$C51=\"\",\"\",IF($K51<=0,0,(SUMPRODUCT($CT51:$DA51,--($CT51:$DA51>0))+$DC51)*$DK51/((-SUMPRODUCT($CT51:$DA51,--($CT51:$DA51<0))+$DE51+$DF51+$DG51)*$DK51)))","v":""},{"$f":"IF('Project Scope'!$C51=\"\",\"\",IF(AND($J51<=0,$K51<=0),0,(SUMPRODUCT($AV51:$BC51,--($AV51:$BC51>0))+$BE51+SUMPRODUCT($CT51:$DA51,--($CT51:$DA51>0))+$DC51)*$DK51/((-SUMPRODUCT($AV51:$BC51,--($AV51:$BC51<0))+$BG51+$BH51+$BI51-SUMPRODUCT($CT51:$DA51,--($CT51:$DA51<0))+$DE51+$DF51+$DG51)*$DK51)))","v":""},{"$f":"IF('Project Scope'!$C51=\"\",\"\",IF(NetOrGross=\"Net\",(1-Z51+AA51),1))","v":""}]
[{"$f":"'Project Scope'!$B52","v":45},{"$f":"IF('Project Scope'!$C52=\"\",\"\",'Project Scope'!$C52)","v":""},{"$f":"IF('Project Scope'!$C52=\"\",\"\",'Project Scope'!$H52)","v":""},{"$f":"IF(ISNUMBER(SEARCH(\"Bay\",'Project Scope'!$Q52)),\"Bay\",IF('Project Scope'!C52=\"\",\"\",'Project Scope'!E52))","v":""},{"$f":"IF('Project Scope'!$C52=\"\",\"\",\"Com\")","v":""},{"$f":"IF('Project Scope'!$C52=\"\",\"\",'Project Scope'!$L52)","v":""},{"$f":"IF('Project Scope'!$C52=\"\",\"\",IF('Project Scope'!$CJ52=\"\",0,'Project Scope'!$CJ52))","v":""},{"$f":"IF('Project Scope'!$C52=\"\",\"\",IF('Project Scope'!$N52=\"\",0,'Project Scope'!$N52))","v":""},{"$f":"IF('Project Scope'!$C52=\"\",\"\",IF('Project Scope'!$CK52=\"\",0,'Project Scope'!$CK52))","v":""},{"$f":"IF('Project Scope'!$C52=\"\",\"\",IF('Project Scope'!$AO52=\"\",0,'Project Scope'!$AO52))","v":""},{"$f":"IF('Project Scope'!$C52=\"\",\"\",IF('Project Scope'!$AX52=\"\",0,'Project Scope'!$AX52))","v":""},{"$f":"IF('Project Scope'!$C52=\"\",\"\",IF('Project Scope'!$M52=\"\",0,'Project Scope'!$M52))","v":""},{"$f":"IF('Project Scope'!$C52=\"\",\"\",IF(COUNTIF('CBAT Lookups'!$B$5:$B$12,\"Fixtures-\"&CBAT!$D52)=1,VLOOKUP(\"Fixtures-\"&CBAT!$D52,'CBAT Lookups'!$B$5:$L$12,11),0))","v":""},{"$f":"IF('Project Scope'!$C52=\"\",\"\",(IF(COUNTIF('CBAT Lookups'!$B$5:$B$12,\"Fixtures-\"&CBAT!$D52)=1,VLOOKUP(\"Fixtures-\"&CBAT!$D52,'CBAT Lookups'!$B$5:$K$12,2),0))*VLOOKUP($F52,'CBAT Lookups'!$B$17:$K$19,2))","v":""},{"$f":"IF('Project Scope'!$C52=\"\",\"\",(IF(COUNTIF('CBAT Lookups'!$B$5:$B$12,\"Fixtures-\"&CBAT!$D52)=1,VLOOKUP(\"Fixtures-\"&CBAT!$D52,'CBAT Lookups'!$B$5:$K$12,3),0))*VLOOKUP($F52,'CBAT Lookups'!$B$17:$K$19,3))","v":""},{"$f":"IF('Project Scope'!$C52=\"\",\"\",(IF(COUNTIF('CBAT Lookups'!$B$5:$B$12,\"Fixtures-\"&CBAT!$D52)=1,VLOOKUP(\"Fixtures-\"&CBAT!$D52,'CBAT Lookups'!$B$5:$K$12,4),0)))","v":""},{"$f":"IF('Project Scope'!$C52=\"\",\"\",(IF(COUNTIF('CBAT Lookups'!$B$5:$B$12,\"Fixtures-\"&CBAT!$D52)=1,VLOOKUP(\"Fixtures-\"&CBAT!$D52,'CBAT Lookups'!$B$5:$K$12,5),0)))","v":""},{"$f":"IF('Project Scope'!$C52=\"\",\"\",(IF(COUNTIF('CBAT Lookups'!$B$5:$B$12,\"Fixtures-\"&CBAT!$D52)=1,VLOOKUP(\"Fixtures-\"&CBAT!$D52,'CBAT Lookups'!$B$5:$K$12,6),0)))","v":""},{"$f":"IF('Project Scope'!$C52=\"\",\"\",IF(COUNTIF('CBAT Lookups'!$B$5:$B$12,\"Fixtures-\"&CBAT!$D52)=1,VLOOKUP(\"Fixtures-\"&CBAT!$D52,'CBAT Lookups'!$B$5:$K$12,7),0))","v":""},{"$f":"IF('Project Scope'!$C52=\"\",\"\",IF(VLOOKUP($F52,'CBAT Lookups'!$B$17:$K$19,8)=\"W\",1,IF(COUNTIF('CBAT Lookups'!$B$5:$B$12,\"Fixtures-\"&CBAT!$D52)=1,VLOOKUP(\"Fixtures-\"&CBAT!$D52,'CBAT Lookups'!$B$5:$K$12,8),0)*VLOOKUP($F52,'CBAT Lookups'!$B$17:$K$19,8)))","v":""},{"$f":"IF('Project Scope'!$C52=\"\",\"\",IF(VLOOKUP($F52,'CBAT Lookups'!$B$17:$K$19,9)=\"W\",1,IF(COUNTIF('CBAT Lookups'!$B$5:$B$12,\"Fixtures-\"&CBAT!$D52)=1,VLOOKUP(\"Fixtures-\"&CBAT!$D52,'CBAT Lookups'!$B$5:$K$12,9),0)*VLOOKUP($F52,'CBAT Lookups'!$B$17:$K$19,9)))","v":""},{"$f":"IF('Project Scope'!$C52=\"\",\"\",IF(COUNTIF('CBAT Lookups'!$B$5:$B$12,\"Fixtures-\"&CBAT!$D52)=1,VLOOKUP(\"Fixtures-\"&CBAT!$D52,'CBAT Lookups'!$B$5:$K$12,10),0)*VLOOKUP($F52,'CBAT Lookups'!$B$17:$K$19,10))","v":""},{"$f":"IF('Project Scope'!$C52=\"\",\"\",IF(COUNTIF('CBAT Lookups'!$B$5:$B$12,\"Fixtures-\"&CBAT!$D52)=1,VLOOKUP(\"Fixtures-\"&CBAT!$D52,'CBAT Lookups'!$B$5:$O$12,12),0))","v":""},{"$f":"IF('Project Scope'!$C52=\"\",\"\",IF(COUNTIF('CBAT Lookups'!$B$5:$B$12,\"Fixtures-\"&CBAT!$D52)=1,VLOOKUP(\"Fixtures-\"&CBAT!$D52,'CBAT Lookups'!$B$5:$O$12,13),0))","v":""},{"$f":"IF('Project Scope'!$C52=\"\",\"\",IF(COUNTIF('CBAT Lookups'!$B$5:$B$12,\"Fixtures-\"&CBAT!$D52)=1,VLOOKUP(\"Fixtures-\"&CBAT!$D52,'CBAT Lookups'!$B$5:$O$12,14),0))","v":""},{"$f":"IF('Project Scope'!$C52=\"\",\"\",'TRM Data'!$U$3)","v":""},{"$f":"IF('Project Scope'!$C52=\"\",\"\",'TRM Data'!$V$3)","v":""},{"$f":"IF('Project Scope'!$C52=\"\",\"\",IF($J52<=0,0,MAX(0,(($G52*$H52/1000)-($I52*$J52/1000))*$L52)*$U52)+($AF52/0.003412))","v":""},{"$f":"IF('Project Scope'!$C52=\"\",\"\",IF($J52<=0,0,MAX(0,(($G52*$H52/1000)-($I52*$J52/1000)))*$T52))","v":""},{"$f":"IF('Project Scope'!$C52=\"\",\"\",IF($J52<=0,0,MAX(0,(($G52*$H52/1000)-($I52*$J52/1000))*$N52)))","v":""},{"$f":"IF('Project Scope'!$C52=\"\",\"\",IF($J52<=0,0,MAX(0,(($G52*$H52/1000)-($I52*$J52/1000))*$O52)*$T52))","v":""},{"$f":"IF('Project Scope'!$C52=\"\",\"\",IF(OR($J52<=0,'Project Information'!$D$44=\"\"),0,-1*MAX(0,(($G52*$H52/1000)-($I52*$J52/1000))*$L52)*$V52*VLOOKUP('Project Information'!$D$44,'CBAT Lookups'!$A$23:$H$30,2)))","v":""},{"$f":"IF('Project Scope'!$C52=\"\",\"\",IF(OR($J52<=0,'Project Information'!$D$44=\"\"),0,-1*MAX(0,(($G52*$H52/1000)-($I52*$J52/1000))*$L52)*$V52*VLOOKUP('Project Information'!$D$44,'CBAT Lookups'!$A$23:$H$30,3)))","v":""},{"$f":"IF('Project Scope'!$C52=\"\",\"\",IF(OR($J52<=0,'Project Information'!$D$44=\"\"),0,-1*MAX(0,(($G52*$H52/1000)-($I52*$J52/1000))*$L52)*$V52*VLOOKUP('Project Information'!$D$44,'CBAT Lookups'!$A$23:$H$30,4)))","v":""},{"$f":"IF('Project Scope'!$C52=\"\",\"\",IF(OR($J52<=0,'Project Information'!$D$44=\"\"),0,-1*MAX(0,(($G52*$H52/1000)-($I52*$J52/1000))*$L52)*$V52*VLOOKUP('Project Information'!$D$44,'CBAT Lookups'!$A$23:$H$30,5)))","v":""},{"$f":"IF('Project Scope'!$C52=\"\",\"\",IF(OR($J52<=0,'Project Information'!$D$44=\"\"),0,-1*MAX(0,(($G52*$H52/1000)-($I52*$J52/1000))*$L52)*$V52*VLOOKUP('Project Information'!$D$44,'CBAT Lookups'!$A$23:$H$30,6)))","v":""},{"$f":"IF('Project Scope'!$C52=\"\",\"\",IF(OR($J52<=0,'Project Information'!$D$44=\"\"),0,-1*MAX(0,(($G52*$H52/1000)-($I52*$J52/1000))*$L52)*$V52*VLOOKUP('Project Information'!$D$44,'CBAT Lookups'!$A$23:$H$30,7)))","v":""},{"$f":"IF('Project Scope'!$C52=\"\",\"\",IF(OR($J52<=0,'Project Information'!$D$44=\"\"),0,-1*MAX(0,(($G52*$H52/1000)-($I52*$J52/1000))*$L52)*$V52*VLOOKUP('Project Information'!$D$44,'CBAT Lookups'!$A$23:$H$30,8)))","v":""},null,{"$f":"IF('Project Scope'!$C52=\"\",\"\",VLOOKUP($F52,'CBAT Lookups'!$B$17:$K$19,4))","v":""},{"$f":"IF('Project Scope'!$C52=\"\",\"\",VLOOKUP($F52,'CBAT Lookups'!$B$17:$K$19,5))","v":""},{"$f":"IF('Project Scope'!$C52=\"\",\"\",VLOOKUP($F52,'CBAT Lookups'!$B$17:$K$19,6))","v":""},{"$f":"IF('Project Scope'!$C52=\"\",\"\",VLOOKUP($F52,'CBAT Lookups'!$B$17:$K$19,7))","v":""},{"$f":"IF('Project Scope'!$C52=\"\",\"\",IF(SUMPRODUCT($P52:$S52,$AN52:$AQ52)=0,0,P52*AN52/SUMPRODUCT($P52:$S52,$AN52:$AQ52)))","v":""},{"$f":"IF('Project Scope'!$C52=\"\",\"\",IF(SUMPRODUCT($P52:$S52,$AN52:$AQ52)=0,0,Q52*AO52/SUMPRODUCT($P52:$S52,$AN52:$AQ52)))","v":""},{"$f":"IF('Project Scope'!$C52=\"\",\"\",IF(SUMPRODUCT($P52:$S52,$AN52:$AQ52)=0,0,R52*AP52/SUMPRODUCT($P52:$S52,$AN52:$AQ52)))","v":""},{"$f":"IF('Project Scope'!$C52=\"\",\"\",IF(SUMPRODUCT($P52:$S52,$AN52:$AQ52)=0,0,S52*AQ52/SUMPRODUCT($P52:$S52,$AN52:$AQ52)))","v":""},{"$f":"IF('Project Scope'!$C52=\"\",\"\",Benefits($AB52,$AD52,$AE52,$AG52,$AH52,$AI52,$AJ52,$AK52,$AL52,$AM52,$M52,$AR52,$AS52,$AT52,$AU52,$W52,$X52,$Y52,$Z52,$AA52,$E52))","v":""},"","","","","","","","",null,{"$f":"IF('Project Scope'!$C52=\"\",\"\",SUM('Project Scope'!$AT52,'Project Scope'!$AU52))","v":""},{"$f":"IF('Project Scope'!$C52=\"\",\"\",SUM('Project Scope'!$BG52, 'Project Scope'!$AR52,(IF(ISNUMBER('Project Scope'!$AS52),'Project Scope'!$AS52,0)*'Project Information'!$D$12)))","v":""},null,null,{"$f":"IF('Project Scope'!$C52=\"\",\"\",IF(COUNTIF('CBAT Lookups'!$B$5:$B$12,\"Controls-\"&CBAT!$D52)=1,VLOOKUP(\"Controls-\"&CBAT!$D52,'CBAT Lookups'!$B$5:$L$12,11),0))","v":""},{"$f":"IF('Project Scope'!$C52=\"\",\"\",IF(COUNTIF('CBAT Lookups'!$B$5:$B$12,\"Controls-\"&CBAT!$D52)=1,VLOOKUP(\"Controls-\"&CBAT!$D52,'CBAT Lookups'!$B$5:$K$12,2),0)*VLOOKUP($F52,'CBAT Lookups'!$B$17:$K$19,2))","v":""},{"$f":"IF('Project Scope'!$C52=\"\",\"\",IF(COUNTIF('CBAT Lookups'!$B$5:$B$12,\"Controls-\"&CBAT!$D52)=1,VLOOKUP(\"Controls-\"&CBAT!$D52,'CBAT Lookups'!$B$5:$K$12,3),0)*VLOOKUP($F52,'CBAT Lookups'!$B$17:$K$19,3))","v":""},{"$f":"IF('Project Scope'!$C52=\"\",\"\",IF(COUNTIF('CBAT Lookups'!$B$5:$B$12,\"Controls-\"&CBAT!$D52)=1,VLOOKUP(\"Controls-\"&CBAT!$D52,'CBAT Lookups'!$B$5:$K$12,4),0))","v":""},{"$f":"IF('Project Scope'!$C52=\"\",\"\",IF(COUNTIF('CBAT Lookups'!$B$5:$B$12,\"Controls-\"&CBAT!$D52)=1,VLOOKUP(\"Controls-\"&CBAT!$D52,'CBAT Lookups'!$B$5:$K$12,5),0))","v":""},{"$f":"IF('Project Scope'!$C52=\"\",\"\",IF(COUNTIF('CBAT Lookups'!$B$5:$B$12,\"Controls-\"&CBAT!$D52)=1,VLOOKUP(\"Controls-\"&CBAT!$D52,'CBAT Lookups'!$B$5:$K$12,6),0))","v":""},{"$f":"IF('Project Scope'!$C52=\"\",\"\",IF(COUNTIF('CBAT Lookups'!$B$5:$B$12,\"Controls-\"&CBAT!$D52)=1,VLOOKUP(\"Controls-\"&CBAT!$D52,'CBAT Lookups'!$B$5:$K$12,7),0))","v":""},{"$f":"IF('Project Scope'!$C52=\"\",\"\",IF(VLOOKUP($F52,'CBAT Lookups'!$B$17:$K$19,8)=\"W\",1,IF(COUNTIF('CBAT Lookups'!$B$5:$B$12,\"Controls-\"&CBAT!$D52)=1,VLOOKUP(\"Controls-\"&CBAT!$D52,'CBAT Lookups'!$B$5:$K$12,8),0)*VLOOKUP($F52,'CBAT Lookups'!$B$17:$K$19,8)))","v":""},{"$f":"IF('Project Scope'!$C52=\"\",\"\",IF(VLOOKUP($F52,'CBAT Lookups'!$B$17:$K$19,9)=\"W\",1,IF(COUNTIF('CBAT Lookups'!$B$5:$B$12,\"Controls-\"&CBAT!$D52)=1,VLOOKUP(\"Controls-\"&CBAT!$D52,'CBAT Lookups'!$B$5:$K$12,9),0)*VLOOKUP($F52,'CBAT Lookups'!$B$17:$K$19,9)))","v":""},{"$f":"IF('Project Scope'!$C52=\"\",\"\",IF(COUNTIF('CBAT Lookups'!$B$5:$B$12,\"Controls-\"&CBAT!$D52)=1,VLOOKUP(\"Controls-\"&CBAT!$D52,'CBAT Lookups'!$B$5:$K$12,10),0)*VLOOKUP($F52,'CBAT Lookups'!$B$17:$K$19,10))","v":""},{"$f":"IF('Project Scope'!$C52=\"\",\"\",VLOOKUP($C52,'CBAT Lookups'!$A$33:$B$57,2))","v":""},{"$f":"IF('Project Scope'!$C52=\"\",\"\",IF(COUNTIF('CBAT Lookups'!$B$5:$B$12,\"Controls-\"&CBAT!$D52)=1,VLOOKUP(\"Controls-\"&CBAT!$D52,'CBAT Lookups'!$B$5:$O$12,12),0))","v":""},{"$f":"IF('Project Scope'!$C52=\"\",\"\",IF(COUNTIF('CBAT Lookups'!$B$5:$B$12,\"Controls-\"&CBAT!$D52)=1,VLOOKUP(\"Controls-\"&CBAT!$D52,'CBAT Lookups'!$B$5:$O$12,13),0))","v":""},{"$f":"IF('Project Scope'!$C52=\"\",\"\",IF(COUNTIF('CBAT Lookups'!$B$5:$B$12,\"Controls-\"&CBAT!$D52)=1,VLOOKUP(\"Controls-\"&CBAT!$D52,'CBAT Lookups'!$B$5:$O$12,14),0))","v":""},{"$f":"IF('Project Scope'!$C52=\"\",\"\",'TRM Data'!$U$3)","v":""},{"$f":"IF('Project Scope'!$C52=\"\",\"\",'TRM Data'!$V$3)","v":""},{"$f":"IF('Project Scope'!$C52=\"\",\"\",IF($K52<=0,0,MAX(0,(IF(AND($I52>0,$J52>0),($I52*$J52)/1000,($G52*$H52)/1000)*$L52))*$BT52*$BR52)+($CD52/0.003412))","v":""},{"$f":"IF('Project Scope'!$C52=\"\",\"\",IF($K52<=0,0,MAX(0,IF(AND($I52>0,$J52>0),($I52*$J52)/1000,($G52*$H52)/1000))*$BQ52))","v":""},{"$f":"IF('Project Scope'!$C52=\"\",\"\",IF($K52<=0,0,MAX(0,IF(AND($I52>0,$J52>0),($I52*$J52)/1000,($G52*$H52)/1000))*$BK52))","v":""},{"$f":"IF('Project Scope'!$C52=\"\",\"\",IF($K52<=0,0,MAX(0,IF(AND($I52>0,$J52>0),($I52*$J52)/1000,($G52*$H52)/1000))*$BL52*$BQ52))","v":""},{"$f":"IF('Project Scope'!$C52=\"\",\"\",IF(OR($K52<=0,'Project Information'!$D$44=\"\"),0,-1*MAX(0,IF(AND($I52>0,$J52>0),($I52*$J52)/1000,($G52*$H52)/1000))*$BT52*$L52*$BS52*VLOOKUP('Project Information'!$D$44,'CBAT Lookups'!$A$23:$H$30,2)))","v":""},{"$f":"IF('Project Scope'!$C52=\"\",\"\",IF(OR($K52<=0,'Project Information'!$D$44=\"\"),0,-1*MAX(0,IF(AND($I52>0,$J52>0),($I52*$J52)/1000,($G52*$H52)/1000))*$BT52*$L52*$BS52*VLOOKUP('Project Information'!$D$44,'CBAT Lookups'!$A$23:$H$30,3)))","v":""},{"$f":"IF('Project Scope'!$C52=\"\",\"\",IF(OR($K52<=0,'Project Information'!$D$44=\"\"),0,-1*MAX(0,IF(AND($I52>0,$J52>0),($I52*$J52)/1000,($G52*$H52)/1000))*$BT52*$L52*$BS52*VLOOKUP('Project Information'!$D$44,'CBAT Lookups'!$A$23:$H$30,4)))","v":""},{"$f":"IF('Project Scope'!$C52=\"\",\"\",IF(OR($K52<=0,'Project Information'!$D$44=\"\"),0,-1*MAX(0,IF(AND($I52>0,$J52>0),($I52*$J52)/1000,($G52*$H52)/1000))*$BT52*$L52*$BS52*VLOOKUP('Project Information'!$D$44,'CBAT Lookups'!$A$23:$H$30,5)))","v":""},{"$f":"IF('Project Scope'!$C52=\"\",\"\",IF(OR($K52<=0,'Project Information'!$D$44=\"\"),0,-1*MAX(0,IF(AND($I52>0,$J52>0),($I52*$J52)/1000,($G52*$H52)/1000))*$BT52*$L52*$BS52*VLOOKUP('Project Information'!$D$44,'CBAT Lookups'!$A$23:$H$30,6)))","v":""},{"$f":"IF('Project Scope'!$C52=\"\",\"\",IF(OR($K52<=0,'Project Information'!$D$44=\"\"),0,-1*MAX(0,IF(AND($I52>0,$J52>0),($I52*$J52)/1000,($G52*$H52)/1000))*$BT52*$L52*$BS52*VLOOKUP('Project Information'!$D$44,'CBAT Lookups'!$A$23:$H$30,7)))","v":""},{"$f":"IF('Project Scope'!$C52=\"\",\"\",IF(OR($K52<=0,'Project Information'!$D$44=\"\"),0,-1*MAX(0,IF(AND($I52>0,$J52>0),($I52*$J52)/1000,($G52*$H52)/1000))*$BT52*$L52*$BS52*VLOOKUP('Project Information'!$D$44,'CBAT Lookups'!$A$23:$H$30,8)))","v":""},null,{"$f":"IF('Project Scope'!$C52=\"\",\"\",VLOOKUP($F52,'CBAT Lookups'!$B$17:$K$19,4))","v":""},{"$f":"IF('Project Scope'!$C52=\"\",\"\",VLOOKUP($F52,'CBAT Lookups'!$B$17:$K$19,5))","v":""},{"$f":"IF('Project Scope'!$C52=\"\",\"\",VLOOKUP($F52,'CBAT Lookups'!$B$17:$K$19,6))","v":""},{"$f":"IF('Project Scope'!$C52=\"\",\"\",VLOOKUP($F52,'CBAT Lookups'!$B$17:$K$19,7))","v":""},{"$f":"IF('Project Scope'!$C52=\"\",\"\",IF(SUMPRODUCT($BM52:$BP52,$CL52:$CO52)=0,0,BM52*CL52/SUMPRODUCT($BM52:$BP52,$CL52:$CO52)))","v":""},{"$f":"IF('Project Scope'!$C52=\"\",\"\",IF(SUMPRODUCT($BM52:$BP52,$CL52:$CO52)=0,0,BN52*CM52/SUMPRODUCT($BM52:$BP52,$CL52:$CO52)))","v":""},{"$f":"IF('Project Scope'!$C52=\"\",\"\",IF(SUMPRODUCT($BM52:$BP52,$CL52:$CO52)=0,0,BO52*CN52/SUMPRODUCT($BM52:$BP52,$CL52:$CO52)))","v":""},{"$f":"IF('Project Scope'!$C52=\"\",\"\",IF(SUMPRODUCT($BM52:$BP52,$CL52:$CO52)=0,0,BP52*CO52/SUMPRODUCT($BM52:$BP52,$CL52:$CO52)))","v":""},{"$f":"IF('Project Scope'!$C52=\"\",\"\",Benefits($BZ52,$CB52,$CC52,$CE52,$CF52,$CG52,$CH52,$CI52,$CJ52,$CK52,$BJ52,$CP52,$CQ52,$CR52,$CS52,$BU52,$BV52,$BW52,$BX52,$BY52,$E52))","v":""},"","","","","","","","",null,{"$f":"IF('Project Scope'!$C52=\"\",\"\",SUM('Project Scope'!$BB52,'Project Scope'!$BC52))","v":""},{"$f":"IF('Project Scope'!$C52=\"\",\"\",SUM('Project Scope'!$BH52, 'Project Scope'!$AZ52,(IF(ISNUMBER('Project Scope'!$BA52),'Project Scope'!$BA52,0)*'Project Information'!$D$12)))","v":""},null,null,{"$f":"IF('Project Scope'!$C52=\"\",\"\",IF($J52<=0,0,(SUMPRODUCT($AV52:$BC52,--($AV52:$BC52>0))+$BE52)*$DK52/((-SUMPRODUCT($AV52:$BC52,--($AV52:$BC52<0))+$BG52+$BH52+$BI52)*$DK52)))","v":""},{"$f":"IF('Project Scope'!$C52=\"\",\"\",IF($K52<=0,0,(SUMPRODUCT($CT52:$DA52,--($CT52:$DA52>0))+$DC52)*$DK52/((-SUMPRODUCT($CT52:$DA52,--($CT52:$DA52<0))+$DE52+$DF52+$DG52)*$DK52)))","v":""},{"$f":"IF('Project Scope'!$C52=\"\",\"\",IF(AND($J52<=0,$K52<=0),0,(SUMPRODUCT($AV52:$BC52,--($AV52:$BC52>0))+$BE52+SUMPRODUCT($CT52:$DA52,--($CT52:$DA52>0))+$DC52)*$DK52/((-SUMPRODUCT($AV52:$BC52,--($AV52:$BC52<0))+$BG52+$BH52+$BI52-SUMPRODUCT($CT52:$DA52,--($CT52:$DA52<0))+$DE52+$DF52+$DG52)*$DK52)))","v":""},{"$f":"IF('Project Scope'!$C52=\"\",\"\",IF(NetOrGross=\"Net\",(1-Z52+AA52),1))","v":""}]
[{"$f":"'Project Scope'!$B53","v":46},{"$f":"IF('Project Scope'!$C53=\"\",\"\",'Project Scope'!$C53)","v":""},{"$f":"IF('Project Scope'!$C53=\"\",\"\",'Project Scope'!$H53)","v":""},{"$f":"IF(ISNUMBER(SEARCH(\"Bay\",'Project Scope'!$Q53)),\"Bay\",IF('Project Scope'!C53=\"\",\"\",'Project Scope'!E53))","v":""},{"$f":"IF('Project Scope'!$C53=\"\",\"\",\"Com\")","v":""},{"$f":"IF('Project Scope'!$C53=\"\",\"\",'Project Scope'!$L53)","v":""},{"$f":"IF('Project Scope'!$C53=\"\",\"\",IF('Project Scope'!$CJ53=\"\",0,'Project Scope'!$CJ53))","v":""},{"$f":"IF('Project Scope'!$C53=\"\",\"\",IF('Project Scope'!$N53=\"\",0,'Project Scope'!$N53))","v":""},{"$f":"IF('Project Scope'!$C53=\"\",\"\",IF('Project Scope'!$CK53=\"\",0,'Project Scope'!$CK53))","v":""},{"$f":"IF('Project Scope'!$C53=\"\",\"\",IF('Project Scope'!$AO53=\"\",0,'Project Scope'!$AO53))","v":""},{"$f":"IF('Project Scope'!$C53=\"\",\"\",IF('Project Scope'!$AX53=\"\",0,'Project Scope'!$AX53))","v":""},{"$f":"IF('Project Scope'!$C53=\"\",\"\",IF('Project Scope'!$M53=\"\",0,'Project Scope'!$M53))","v":""},{"$f":"IF('Project Scope'!$C53=\"\",\"\",IF(COUNTIF('CBAT Lookups'!$B$5:$B$12,\"Fixtures-\"&CBAT!$D53)=1,VLOOKUP(\"Fixtures-\"&CBAT!$D53,'CBAT Lookups'!$B$5:$L$12,11),0))","v":""},{"$f":"IF('Project Scope'!$C53=\"\",\"\",(IF(COUNTIF('CBAT Lookups'!$B$5:$B$12,\"Fixtures-\"&CBAT!$D53)=1,VLOOKUP(\"Fixtures-\"&CBAT!$D53,'CBAT Lookups'!$B$5:$K$12,2),0))*VLOOKUP($F53,'CBAT Lookups'!$B$17:$K$19,2))","v":""},{"$f":"IF('Project Scope'!$C53=\"\",\"\",(IF(COUNTIF('CBAT Lookups'!$B$5:$B$12,\"Fixtures-\"&CBAT!$D53)=1,VLOOKUP(\"Fixtures-\"&CBAT!$D53,'CBAT Lookups'!$B$5:$K$12,3),0))*VLOOKUP($F53,'CBAT Lookups'!$B$17:$K$19,3))","v":""},{"$f":"IF('Project Scope'!$C53=\"\",\"\",(IF(COUNTIF('CBAT Lookups'!$B$5:$B$12,\"Fixtures-\"&CBAT!$D53)=1,VLOOKUP(\"Fixtures-\"&CBAT!$D53,'CBAT Lookups'!$B$5:$K$12,4),0)))","v":""},{"$f":"IF('Project Scope'!$C53=\"\",\"\",(IF(COUNTIF('CBAT Lookups'!$B$5:$B$12,\"Fixtures-\"&CBAT!$D53)=1,VLOOKUP(\"Fixtures-\"&CBAT!$D53,'CBAT Lookups'!$B$5:$K$12,5),0)))","v":""},{"$f":"IF('Project Scope'!$C53=\"\",\"\",(IF(COUNTIF('CBAT Lookups'!$B$5:$B$12,\"Fixtures-\"&CBAT!$D53)=1,VLOOKUP(\"Fixtures-\"&CBAT!$D53,'CBAT Lookups'!$B$5:$K$12,6),0)))","v":""},{"$f":"IF('Project Scope'!$C53=\"\",\"\",IF(COUNTIF('CBAT Lookups'!$B$5:$B$12,\"Fixtures-\"&CBAT!$D53)=1,VLOOKUP(\"Fixtures-\"&CBAT!$D53,'CBAT Lookups'!$B$5:$K$12,7),0))","v":""},{"$f":"IF('Project Scope'!$C53=\"\",\"\",IF(VLOOKUP($F53,'CBAT Lookups'!$B$17:$K$19,8)=\"W\",1,IF(COUNTIF('CBAT Lookups'!$B$5:$B$12,\"Fixtures-\"&CBAT!$D53)=1,VLOOKUP(\"Fixtures-\"&CBAT!$D53,'CBAT Lookups'!$B$5:$K$12,8),0)*VLOOKUP($F53,'CBAT Lookups'!$B$17:$K$19,8)))","v":""},{"$f":"IF('Project Scope'!$C53=\"\",\"\",IF(VLOOKUP($F53,'CBAT Lookups'!$B$17:$K$19,9)=\"W\",1,IF(COUNTIF('CBAT Lookups'!$B$5:$B$12,\"Fixtures-\"&CBAT!$D53)=1,VLOOKUP(\"Fixtures-\"&CBAT!$D53,'CBAT Lookups'!$B$5:$K$12,9),0)*VLOOKUP($F53,'CBAT Lookups'!$B$17:$K$19,9)))","v":""},{"$f":"IF('Project Scope'!$C53=\"\",\"\",IF(COUNTIF('CBAT Lookups'!$B$5:$B$12,\"Fixtures-\"&CBAT!$D53)=1,VLOOKUP(\"Fixtures-\"&CBAT!$D53,'CBAT Lookups'!$B$5:$K$12,10),0)*VLOOKUP($F53,'CBAT Lookups'!$B$17:$K$19,10))","v":""},{"$f":"IF('Project Scope'!$C53=\"\",\"\",IF(COUNTIF('CBAT Lookups'!$B$5:$B$12,\"Fixtures-\"&CBAT!$D53)=1,VLOOKUP(\"Fixtures-\"&CBAT!$D53,'CBAT Lookups'!$B$5:$O$12,12),0))","v":""},{"$f":"IF('Project Scope'!$C53=\"\",\"\",IF(COUNTIF('CBAT Lookups'!$B$5:$B$12,\"Fixtures-\"&CBAT!$D53)=1,VLOOKUP(\"Fixtures-\"&CBAT!$D53,'CBAT Lookups'!$B$5:$O$12,13),0))","v":""},{"$f":"IF('Project Scope'!$C53=\"\",\"\",IF(COUNTIF('CBAT Lookups'!$B$5:$B$12,\"Fixtures-\"&CBAT!$D53)=1,VLOOKUP(\"Fixtures-\"&CBAT!$D53,'CBAT Lookups'!$B$5:$O$12,14),0))","v":""},{"$f":"IF('Project Scope'!$C53=\"\",\"\",'TRM Data'!$U$3)","v":""},{"$f":"IF('Project Scope'!$C53=\"\",\"\",'TRM Data'!$V$3)","v":""},{"$f":"IF('Project Scope'!$C53=\"\",\"\",IF($J53<=0,0,MAX(0,(($G53*$H53/1000)-($I53*$J53/1000))*$L53)*$U53)+($AF53/0.003412))","v":""},{"$f":"IF('Project Scope'!$C53=\"\",\"\",IF($J53<=0,0,MAX(0,(($G53*$H53/1000)-($I53*$J53/1000)))*$T53))","v":""},{"$f":"IF('Project Scope'!$C53=\"\",\"\",IF($J53<=0,0,MAX(0,(($G53*$H53/1000)-($I53*$J53/1000))*$N53)))","v":""},{"$f":"IF('Project Scope'!$C53=\"\",\"\",IF($J53<=0,0,MAX(0,(($G53*$H53/1000)-($I53*$J53/1000))*$O53)*$T53))","v":""},{"$f":"IF('Project Scope'!$C53=\"\",\"\",IF(OR($J53<=0,'Project Information'!$D$44=\"\"),0,-1*MAX(0,(($G53*$H53/1000)-($I53*$J53/1000))*$L53)*$V53*VLOOKUP('Project Information'!$D$44,'CBAT Lookups'!$A$23:$H$30,2)))","v":""},{"$f":"IF('Project Scope'!$C53=\"\",\"\",IF(OR($J53<=0,'Project Information'!$D$44=\"\"),0,-1*MAX(0,(($G53*$H53/1000)-($I53*$J53/1000))*$L53)*$V53*VLOOKUP('Project Information'!$D$44,'CBAT Lookups'!$A$23:$H$30,3)))","v":""},{"$f":"IF('Project Scope'!$C53=\"\",\"\",IF(OR($J53<=0,'Project Information'!$D$44=\"\"),0,-1*MAX(0,(($G53*$H53/1000)-($I53*$J53/1000))*$L53)*$V53*VLOOKUP('Project Information'!$D$44,'CBAT Lookups'!$A$23:$H$30,4)))","v":""},{"$f":"IF('Project Scope'!$C53=\"\",\"\",IF(OR($J53<=0,'Project Information'!$D$44=\"\"),0,-1*MAX(0,(($G53*$H53/1000)-($I53*$J53/1000))*$L53)*$V53*VLOOKUP('Project Information'!$D$44,'CBAT Lookups'!$A$23:$H$30,5)))","v":""},{"$f":"IF('Project Scope'!$C53=\"\",\"\",IF(OR($J53<=0,'Project Information'!$D$44=\"\"),0,-1*MAX(0,(($G53*$H53/1000)-($I53*$J53/1000))*$L53)*$V53*VLOOKUP('Project Information'!$D$44,'CBAT Lookups'!$A$23:$H$30,6)))","v":""},{"$f":"IF('Project Scope'!$C53=\"\",\"\",IF(OR($J53<=0,'Project Information'!$D$44=\"\"),0,-1*MAX(0,(($G53*$H53/1000)-($I53*$J53/1000))*$L53)*$V53*VLOOKUP('Project Information'!$D$44,'CBAT Lookups'!$A$23:$H$30,7)))","v":""},{"$f":"IF('Project Scope'!$C53=\"\",\"\",IF(OR($J53<=0,'Project Information'!$D$44=\"\"),0,-1*MAX(0,(($G53*$H53/1000)-($I53*$J53/1000))*$L53)*$V53*VLOOKUP('Project Information'!$D$44,'CBAT Lookups'!$A$23:$H$30,8)))","v":""},null,{"$f":"IF('Project Scope'!$C53=\"\",\"\",VLOOKUP($F53,'CBAT Lookups'!$B$17:$K$19,4))","v":""},{"$f":"IF('Project Scope'!$C53=\"\",\"\",VLOOKUP($F53,'CBAT Lookups'!$B$17:$K$19,5))","v":""},{"$f":"IF('Project Scope'!$C53=\"\",\"\",VLOOKUP($F53,'CBAT Lookups'!$B$17:$K$19,6))","v":""},{"$f":"IF('Project Scope'!$C53=\"\",\"\",VLOOKUP($F53,'CBAT Lookups'!$B$17:$K$19,7))","v":""},{"$f":"IF('Project Scope'!$C53=\"\",\"\",IF(SUMPRODUCT($P53:$S53,$AN53:$AQ53)=0,0,P53*AN53/SUMPRODUCT($P53:$S53,$AN53:$AQ53)))","v":""},{"$f":"IF('Project Scope'!$C53=\"\",\"\",IF(SUMPRODUCT($P53:$S53,$AN53:$AQ53)=0,0,Q53*AO53/SUMPRODUCT($P53:$S53,$AN53:$AQ53)))","v":""},{"$f":"IF('Project Scope'!$C53=\"\",\"\",IF(SUMPRODUCT($P53:$S53,$AN53:$AQ53)=0,0,R53*AP53/SUMPRODUCT($P53:$S53,$AN53:$AQ53)))","v":""},{"$f":"IF('Project Scope'!$C53=\"\",\"\",IF(SUMPRODUCT($P53:$S53,$AN53:$AQ53)=0,0,S53*AQ53/SUMPRODUCT($P53:$S53,$AN53:$AQ53)))","v":""},{"$f":"IF('Project Scope'!$C53=\"\",\"\",Benefits($AB53,$AD53,$AE53,$AG53,$AH53,$AI53,$AJ53,$AK53,$AL53,$AM53,$M53,$AR53,$AS53,$AT53,$AU53,$W53,$X53,$Y53,$Z53,$AA53,$E53))","v":""},"","","","","","","","",null,{"$f":"IF('Project Scope'!$C53=\"\",\"\",SUM('Project Scope'!$AT53,'Project Scope'!$AU53))","v":""},{"$f":"IF('Project Scope'!$C53=\"\",\"\",SUM('Project Scope'!$BG53, 'Project Scope'!$AR53,(IF(ISNUMBER('Project Scope'!$AS53),'Project Scope'!$AS53,0)*'Project Information'!$D$12)))","v":""},null,null,{"$f":"IF('Project Scope'!$C53=\"\",\"\",IF(COUNTIF('CBAT Lookups'!$B$5:$B$12,\"Controls-\"&CBAT!$D53)=1,VLOOKUP(\"Controls-\"&CBAT!$D53,'CBAT Lookups'!$B$5:$L$12,11),0))","v":""},{"$f":"IF('Project Scope'!$C53=\"\",\"\",IF(COUNTIF('CBAT Lookups'!$B$5:$B$12,\"Controls-\"&CBAT!$D53)=1,VLOOKUP(\"Controls-\"&CBAT!$D53,'CBAT Lookups'!$B$5:$K$12,2),0)*VLOOKUP($F53,'CBAT Lookups'!$B$17:$K$19,2))","v":""},{"$f":"IF('Project Scope'!$C53=\"\",\"\",IF(COUNTIF('CBAT Lookups'!$B$5:$B$12,\"Controls-\"&CBAT!$D53)=1,VLOOKUP(\"Controls-\"&CBAT!$D53,'CBAT Lookups'!$B$5:$K$12,3),0)*VLOOKUP($F53,'CBAT Lookups'!$B$17:$K$19,3))","v":""},{"$f":"IF('Project Scope'!$C53=\"\",\"\",IF(COUNTIF('CBAT Lookups'!$B$5:$B$12,\"Controls-\"&CBAT!$D53)=1,VLOOKUP(\"Controls-\"&CBAT!$D53,'CBAT Lookups'!$B$5:$K$12,4),0))","v":""},{"$f":"IF('Project Scope'!$C53=\"\",\"\",IF(COUNTIF('CBAT Lookups'!$B$5:$B$12,\"Controls-\"&CBAT!$D53)=1,VLOOKUP(\"Controls-\"&CBAT!$D53,'CBAT Lookups'!$B$5:$K$12,5),0))","v":""},{"$f":"IF('Project Scope'!$C53=\"\",\"\",IF(COUNTIF('CBAT Lookups'!$B$5:$B$12,\"Controls-\"&CBAT!$D53)=1,VLOOKUP(\"Controls-\"&CBAT!$D53,'CBAT Lookups'!$B$5:$K$12,6),0))","v":""},{"$f":"IF('Project Scope'!$C53=\"\",\"\",IF(COUNTIF('CBAT Lookups'!$B$5:$B$12,\"Controls-\"&CBAT!$D53)=1,VLOOKUP(\"Controls-\"&CBAT!$D53,'CBAT Lookups'!$B$5:$K$12,7),0))","v":""},{"$f":"IF('Project Scope'!$C53=\"\",\"\",IF(VLOOKUP($F53,'CBAT Lookups'!$B$17:$K$19,8)=\"W\",1,IF(COUNTIF('CBAT Lookups'!$B$5:$B$12,\"Controls-\"&CBAT!$D53)=1,VLOOKUP(\"Controls-\"&CBAT!$D53,'CBAT Lookups'!$B$5:$K$12,8),0)*VLOOKUP($F53,'CBAT Lookups'!$B$17:$K$19,8)))","v":""},{"$f":"IF('Project Scope'!$C53=\"\",\"\",IF(VLOOKUP($F53,'CBAT Lookups'!$B$17:$K$19,9)=\"W\",1,IF(COUNTIF('CBAT Lookups'!$B$5:$B$12,\"Controls-\"&CBAT!$D53)=1,VLOOKUP(\"Controls-\"&CBAT!$D53,'CBAT Lookups'!$B$5:$K$12,9),0)*VLOOKUP($F53,'CBAT Lookups'!$B$17:$K$19,9)))","v":""},{"$f":"IF('Project Scope'!$C53=\"\",\"\",IF(COUNTIF('CBAT Lookups'!$B$5:$B$12,\"Controls-\"&CBAT!$D53)=1,VLOOKUP(\"Controls-\"&CBAT!$D53,'CBAT Lookups'!$B$5:$K$12,10),0)*VLOOKUP($F53,'CBAT Lookups'!$B$17:$K$19,10))","v":""},{"$f":"IF('Project Scope'!$C53=\"\",\"\",VLOOKUP($C53,'CBAT Lookups'!$A$33:$B$57,2))","v":""},{"$f":"IF('Project Scope'!$C53=\"\",\"\",IF(COUNTIF('CBAT Lookups'!$B$5:$B$12,\"Controls-\"&CBAT!$D53)=1,VLOOKUP(\"Controls-\"&CBAT!$D53,'CBAT Lookups'!$B$5:$O$12,12),0))","v":""},{"$f":"IF('Project Scope'!$C53=\"\",\"\",IF(COUNTIF('CBAT Lookups'!$B$5:$B$12,\"Controls-\"&CBAT!$D53)=1,VLOOKUP(\"Controls-\"&CBAT!$D53,'CBAT Lookups'!$B$5:$O$12,13),0))","v":""},{"$f":"IF('Project Scope'!$C53=\"\",\"\",IF(COUNTIF('CBAT Lookups'!$B$5:$B$12,\"Controls-\"&CBAT!$D53)=1,VLOOKUP(\"Controls-\"&CBAT!$D53,'CBAT Lookups'!$B$5:$O$12,14),0))","v":""},{"$f":"IF('Project Scope'!$C53=\"\",\"\",'TRM Data'!$U$3)","v":""},{"$f":"IF('Project Scope'!$C53=\"\",\"\",'TRM Data'!$V$3)","v":""},{"$f":"IF('Project Scope'!$C53=\"\",\"\",IF($K53<=0,0,MAX(0,(IF(AND($I53>0,$J53>0),($I53*$J53)/1000,($G53*$H53)/1000)*$L53))*$BT53*$BR53)+($CD53/0.003412))","v":""},{"$f":"IF('Project Scope'!$C53=\"\",\"\",IF($K53<=0,0,MAX(0,IF(AND($I53>0,$J53>0),($I53*$J53)/1000,($G53*$H53)/1000))*$BQ53))","v":""},{"$f":"IF('Project Scope'!$C53=\"\",\"\",IF($K53<=0,0,MAX(0,IF(AND($I53>0,$J53>0),($I53*$J53)/1000,($G53*$H53)/1000))*$BK53))","v":""},{"$f":"IF('Project Scope'!$C53=\"\",\"\",IF($K53<=0,0,MAX(0,IF(AND($I53>0,$J53>0),($I53*$J53)/1000,($G53*$H53)/1000))*$BL53*$BQ53))","v":""},{"$f":"IF('Project Scope'!$C53=\"\",\"\",IF(OR($K53<=0,'Project Information'!$D$44=\"\"),0,-1*MAX(0,IF(AND($I53>0,$J53>0),($I53*$J53)/1000,($G53*$H53)/1000))*$BT53*$L53*$BS53*VLOOKUP('Project Information'!$D$44,'CBAT Lookups'!$A$23:$H$30,2)))","v":""},{"$f":"IF('Project Scope'!$C53=\"\",\"\",IF(OR($K53<=0,'Project Information'!$D$44=\"\"),0,-1*MAX(0,IF(AND($I53>0,$J53>0),($I53*$J53)/1000,($G53*$H53)/1000))*$BT53*$L53*$BS53*VLOOKUP('Project Information'!$D$44,'CBAT Lookups'!$A$23:$H$30,3)))","v":""},{"$f":"IF('Project Scope'!$C53=\"\",\"\",IF(OR($K53<=0,'Project Information'!$D$44=\"\"),0,-1*MAX(0,IF(AND($I53>0,$J53>0),($I53*$J53)/1000,($G53*$H53)/1000))*$BT53*$L53*$BS53*VLOOKUP('Project Information'!$D$44,'CBAT Lookups'!$A$23:$H$30,4)))","v":""},{"$f":"IF('Project Scope'!$C53=\"\",\"\",IF(OR($K53<=0,'Project Information'!$D$44=\"\"),0,-1*MAX(0,IF(AND($I53>0,$J53>0),($I53*$J53)/1000,($G53*$H53)/1000))*$BT53*$L53*$BS53*VLOOKUP('Project Information'!$D$44,'CBAT Lookups'!$A$23:$H$30,5)))","v":""},{"$f":"IF('Project Scope'!$C53=\"\",\"\",IF(OR($K53<=0,'Project Information'!$D$44=\"\"),0,-1*MAX(0,IF(AND($I53>0,$J53>0),($I53*$J53)/1000,($G53*$H53)/1000))*$BT53*$L53*$BS53*VLOOKUP('Project Information'!$D$44,'CBAT Lookups'!$A$23:$H$30,6)))","v":""},{"$f":"IF('Project Scope'!$C53=\"\",\"\",IF(OR($K53<=0,'Project Information'!$D$44=\"\"),0,-1*MAX(0,IF(AND($I53>0,$J53>0),($I53*$J53)/1000,($G53*$H53)/1000))*$BT53*$L53*$BS53*VLOOKUP('Project Information'!$D$44,'CBAT Lookups'!$A$23:$H$30,7)))","v":""},{"$f":"IF('Project Scope'!$C53=\"\",\"\",IF(OR($K53<=0,'Project Information'!$D$44=\"\"),0,-1*MAX(0,IF(AND($I53>0,$J53>0),($I53*$J53)/1000,($G53*$H53)/1000))*$BT53*$L53*$BS53*VLOOKUP('Project Information'!$D$44,'CBAT Lookups'!$A$23:$H$30,8)))","v":""},null,{"$f":"IF('Project Scope'!$C53=\"\",\"\",VLOOKUP($F53,'CBAT Lookups'!$B$17:$K$19,4))","v":""},{"$f":"IF('Project Scope'!$C53=\"\",\"\",VLOOKUP($F53,'CBAT Lookups'!$B$17:$K$19,5))","v":""},{"$f":"IF('Project Scope'!$C53=\"\",\"\",VLOOKUP($F53,'CBAT Lookups'!$B$17:$K$19,6))","v":""},{"$f":"IF('Project Scope'!$C53=\"\",\"\",VLOOKUP($F53,'CBAT Lookups'!$B$17:$K$19,7))","v":""},{"$f":"IF('Project Scope'!$C53=\"\",\"\",IF(SUMPRODUCT($BM53:$BP53,$CL53:$CO53)=0,0,BM53*CL53/SUMPRODUCT($BM53:$BP53,$CL53:$CO53)))","v":""},{"$f":"IF('Project Scope'!$C53=\"\",\"\",IF(SUMPRODUCT($BM53:$BP53,$CL53:$CO53)=0,0,BN53*CM53/SUMPRODUCT($BM53:$BP53,$CL53:$CO53)))","v":""},{"$f":"IF('Project Scope'!$C53=\"\",\"\",IF(SUMPRODUCT($BM53:$BP53,$CL53:$CO53)=0,0,BO53*CN53/SUMPRODUCT($BM53:$BP53,$CL53:$CO53)))","v":""},{"$f":"IF('Project Scope'!$C53=\"\",\"\",IF(SUMPRODUCT($BM53:$BP53,$CL53:$CO53)=0,0,BP53*CO53/SUMPRODUCT($BM53:$BP53,$CL53:$CO53)))","v":""},{"$f":"IF('Project Scope'!$C53=\"\",\"\",Benefits($BZ53,$CB53,$CC53,$CE53,$CF53,$CG53,$CH53,$CI53,$CJ53,$CK53,$BJ53,$CP53,$CQ53,$CR53,$CS53,$BU53,$BV53,$BW53,$BX53,$BY53,$E53))","v":""},"","","","","","","","",null,{"$f":"IF('Project Scope'!$C53=\"\",\"\",SUM('Project Scope'!$BB53,'Project Scope'!$BC53))","v":""},{"$f":"IF('Project Scope'!$C53=\"\",\"\",SUM('Project Scope'!$BH53, 'Project Scope'!$AZ53,(IF(ISNUMBER('Project Scope'!$BA53),'Project Scope'!$BA53,0)*'Project Information'!$D$12)))","v":""},null,null,{"$f":"IF('Project Scope'!$C53=\"\",\"\",IF($J53<=0,0,(SUMPRODUCT($AV53:$BC53,--($AV53:$BC53>0))+$BE53)*$DK53/((-SUMPRODUCT($AV53:$BC53,--($AV53:$BC53<0))+$BG53+$BH53+$BI53)*$DK53)))","v":""},{"$f":"IF('Project Scope'!$C53=\"\",\"\",IF($K53<=0,0,(SUMPRODUCT($CT53:$DA53,--($CT53:$DA53>0))+$DC53)*$DK53/((-SUMPRODUCT($CT53:$DA53,--($CT53:$DA53<0))+$DE53+$DF53+$DG53)*$DK53)))","v":""},{"$f":"IF('Project Scope'!$C53=\"\",\"\",IF(AND($J53<=0,$K53<=0),0,(SUMPRODUCT($AV53:$BC53,--($AV53:$BC53>0))+$BE53+SUMPRODUCT($CT53:$DA53,--($CT53:$DA53>0))+$DC53)*$DK53/((-SUMPRODUCT($AV53:$BC53,--($AV53:$BC53<0))+$BG53+$BH53+$BI53-SUMPRODUCT($CT53:$DA53,--($CT53:$DA53<0))+$DE53+$DF53+$DG53)*$DK53)))","v":""},{"$f":"IF('Project Scope'!$C53=\"\",\"\",IF(NetOrGross=\"Net\",(1-Z53+AA53),1))","v":""}]
[{"$f":"'Project Scope'!$B54","v":47},{"$f":"IF('Project Scope'!$C54=\"\",\"\",'Project Scope'!$C54)","v":""},{"$f":"IF('Project Scope'!$C54=\"\",\"\",'Project Scope'!$H54)","v":""},{"$f":"IF(ISNUMBER(SEARCH(\"Bay\",'Project Scope'!$Q54)),\"Bay\",IF('Project Scope'!C54=\"\",\"\",'Project Scope'!E54))","v":""},{"$f":"IF('Project Scope'!$C54=\"\",\"\",\"Com\")","v":""},{"$f":"IF('Project Scope'!$C54=\"\",\"\",'Project Scope'!$L54)","v":""},{"$f":"IF('Project Scope'!$C54=\"\",\"\",IF('Project Scope'!$CJ54=\"\",0,'Project Scope'!$CJ54))","v":""},{"$f":"IF('Project Scope'!$C54=\"\",\"\",IF('Project Scope'!$N54=\"\",0,'Project Scope'!$N54))","v":""},{"$f":"IF('Project Scope'!$C54=\"\",\"\",IF('Project Scope'!$CK54=\"\",0,'Project Scope'!$CK54))","v":""},{"$f":"IF('Project Scope'!$C54=\"\",\"\",IF('Project Scope'!$AO54=\"\",0,'Project Scope'!$AO54))","v":""},{"$f":"IF('Project Scope'!$C54=\"\",\"\",IF('Project Scope'!$AX54=\"\",0,'Project Scope'!$AX54))","v":""},{"$f":"IF('Project Scope'!$C54=\"\",\"\",IF('Project Scope'!$M54=\"\",0,'Project Scope'!$M54))","v":""},{"$f":"IF('Project Scope'!$C54=\"\",\"\",IF(COUNTIF('CBAT Lookups'!$B$5:$B$12,\"Fixtures-\"&CBAT!$D54)=1,VLOOKUP(\"Fixtures-\"&CBAT!$D54,'CBAT Lookups'!$B$5:$L$12,11),0))","v":""},{"$f":"IF('Project Scope'!$C54=\"\",\"\",(IF(COUNTIF('CBAT Lookups'!$B$5:$B$12,\"Fixtures-\"&CBAT!$D54)=1,VLOOKUP(\"Fixtures-\"&CBAT!$D54,'CBAT Lookups'!$B$5:$K$12,2),0))*VLOOKUP($F54,'CBAT Lookups'!$B$17:$K$19,2))","v":""},{"$f":"IF('Project Scope'!$C54=\"\",\"\",(IF(COUNTIF('CBAT Lookups'!$B$5:$B$12,\"Fixtures-\"&CBAT!$D54)=1,VLOOKUP(\"Fixtures-\"&CBAT!$D54,'CBAT Lookups'!$B$5:$K$12,3),0))*VLOOKUP($F54,'CBAT Lookups'!$B$17:$K$19,3))","v":""},{"$f":"IF('Project Scope'!$C54=\"\",\"\",(IF(COUNTIF('CBAT Lookups'!$B$5:$B$12,\"Fixtures-\"&CBAT!$D54)=1,VLOOKUP(\"Fixtures-\"&CBAT!$D54,'CBAT Lookups'!$B$5:$K$12,4),0)))","v":""},{"$f":"IF('Project Scope'!$C54=\"\",\"\",(IF(COUNTIF('CBAT Lookups'!$B$5:$B$12,\"Fixtures-\"&CBAT!$D54)=1,VLOOKUP(\"Fixtures-\"&CBAT!$D54,'CBAT Lookups'!$B$5:$K$12,5),0)))","v":""},{"$f":"IF('Project Scope'!$C54=\"\",\"\",(IF(COUNTIF('CBAT Lookups'!$B$5:$B$12,\"Fixtures-\"&CBAT!$D54)=1,VLOOKUP(\"Fixtures-\"&CBAT!$D54,'CBAT Lookups'!$B$5:$K$12,6),0)))","v":""},{"$f":"IF('Project Scope'!$C54=\"\",\"\",IF(COUNTIF('CBAT Lookups'!$B$5:$B$12,\"Fixtures-\"&CBAT!$D54)=1,VLOOKUP(\"Fixtures-\"&CBAT!$D54,'CBAT Lookups'!$B$5:$K$12,7),0))","v":""},{"$f":"IF('Project Scope'!$C54=\"\",\"\",IF(VLOOKUP($F54,'CBAT Lookups'!$B$17:$K$19,8)=\"W\",1,IF(COUNTIF('CBAT Lookups'!$B$5:$B$12,\"Fixtures-\"&CBAT!$D54)=1,VLOOKUP(\"Fixtures-\"&CBAT!$D54,'CBAT Lookups'!$B$5:$K$12,8),0)*VLOOKUP($F54,'CBAT Lookups'!$B$17:$K$19,8)))","v":""},{"$f":"IF('Project Scope'!$C54=\"\",\"\",IF(VLOOKUP($F54,'CBAT Lookups'!$B$17:$K$19,9)=\"W\",1,IF(COUNTIF('CBAT Lookups'!$B$5:$B$12,\"Fixtures-\"&CBAT!$D54)=1,VLOOKUP(\"Fixtures-\"&CBAT!$D54,'CBAT Lookups'!$B$5:$K$12,9),0)*VLOOKUP($F54,'CBAT Lookups'!$B$17:$K$19,9)))","v":""},{"$f":"IF('Project Scope'!$C54=\"\",\"\",IF(COUNTIF('CBAT Lookups'!$B$5:$B$12,\"Fixtures-\"&CBAT!$D54)=1,VLOOKUP(\"Fixtures-\"&CBAT!$D54,'CBAT Lookups'!$B$5:$K$12,10),0)*VLOOKUP($F54,'CBAT Lookups'!$B$17:$K$19,10))","v":""},{"$f":"IF('Project Scope'!$C54=\"\",\"\",IF(COUNTIF('CBAT Lookups'!$B$5:$B$12,\"Fixtures-\"&CBAT!$D54)=1,VLOOKUP(\"Fixtures-\"&CBAT!$D54,'CBAT Lookups'!$B$5:$O$12,12),0))","v":""},{"$f":"IF('Project Scope'!$C54=\"\",\"\",IF(COUNTIF('CBAT Lookups'!$B$5:$B$12,\"Fixtures-\"&CBAT!$D54)=1,VLOOKUP(\"Fixtures-\"&CBAT!$D54,'CBAT Lookups'!$B$5:$O$12,13),0))","v":""},{"$f":"IF('Project Scope'!$C54=\"\",\"\",IF(COUNTIF('CBAT Lookups'!$B$5:$B$12,\"Fixtures-\"&CBAT!$D54)=1,VLOOKUP(\"Fixtures-\"&CBAT!$D54,'CBAT Lookups'!$B$5:$O$12,14),0))","v":""},{"$f":"IF('Project Scope'!$C54=\"\",\"\",'TRM Data'!$U$3)","v":""},{"$f":"IF('Project Scope'!$C54=\"\",\"\",'TRM Data'!$V$3)","v":""},{"$f":"IF('Project Scope'!$C54=\"\",\"\",IF($J54<=0,0,MAX(0,(($G54*$H54/1000)-($I54*$J54/1000))*$L54)*$U54)+($AF54/0.003412))","v":""},{"$f":"IF('Project Scope'!$C54=\"\",\"\",IF($J54<=0,0,MAX(0,(($G54*$H54/1000)-($I54*$J54/1000)))*$T54))","v":""},{"$f":"IF('Project Scope'!$C54=\"\",\"\",IF($J54<=0,0,MAX(0,(($G54*$H54/1000)-($I54*$J54/1000))*$N54)))","v":""},{"$f":"IF('Project Scope'!$C54=\"\",\"\",IF($J54<=0,0,MAX(0,(($G54*$H54/1000)-($I54*$J54/1000))*$O54)*$T54))","v":""},{"$f":"IF('Project Scope'!$C54=\"\",\"\",IF(OR($J54<=0,'Project Information'!$D$44=\"\"),0,-1*MAX(0,(($G54*$H54/1000)-($I54*$J54/1000))*$L54)*$V54*VLOOKUP('Project Information'!$D$44,'CBAT Lookups'!$A$23:$H$30,2)))","v":""},{"$f":"IF('Project Scope'!$C54=\"\",\"\",IF(OR($J54<=0,'Project Information'!$D$44=\"\"),0,-1*MAX(0,(($G54*$H54/1000)-($I54*$J54/1000))*$L54)*$V54*VLOOKUP('Project Information'!$D$44,'CBAT Lookups'!$A$23:$H$30,3)))","v":""},{"$f":"IF('Project Scope'!$C54=\"\",\"\",IF(OR($J54<=0,'Project Information'!$D$44=\"\"),0,-1*MAX(0,(($G54*$H54/1000)-($I54*$J54/1000))*$L54)*$V54*VLOOKUP('Project Information'!$D$44,'CBAT Lookups'!$A$23:$H$30,4)))","v":""},{"$f":"IF('Project Scope'!$C54=\"\",\"\",IF(OR($J54<=0,'Project Information'!$D$44=\"\"),0,-1*MAX(0,(($G54*$H54/1000)-($I54*$J54/1000))*$L54)*$V54*VLOOKUP('Project Information'!$D$44,'CBAT Lookups'!$A$23:$H$30,5)))","v":""},{"$f":"IF('Project Scope'!$C54=\"\",\"\",IF(OR($J54<=0,'Project Information'!$D$44=\"\"),0,-1*MAX(0,(($G54*$H54/1000)-($I54*$J54/1000))*$L54)*$V54*VLOOKUP('Project Information'!$D$44,'CBAT Lookups'!$A$23:$H$30,6)))","v":""},{"$f":"IF('Project Scope'!$C54=\"\",\"\",IF(OR($J54<=0,'Project Information'!$D$44=\"\"),0,-1*MAX(0,(($G54*$H54/1000)-($I54*$J54/1000))*$L54)*$V54*VLOOKUP('Project Information'!$D$44,'CBAT Lookups'!$A$23:$H$30,7)))","v":""},{"$f":"IF('Project Scope'!$C54=\"\",\"\",IF(OR($J54<=0,'Project Information'!$D$44=\"\"),0,-1*MAX(0,(($G54*$H54/1000)-($I54*$J54/1000))*$L54)*$V54*VLOOKUP('Project Information'!$D$44,'CBAT Lookups'!$A$23:$H$30,8)))","v":""},null,{"$f":"IF('Project Scope'!$C54=\"\",\"\",VLOOKUP($F54,'CBAT Lookups'!$B$17:$K$19,4))","v":""},{"$f":"IF('Project Scope'!$C54=\"\",\"\",VLOOKUP($F54,'CBAT Lookups'!$B$17:$K$19,5))","v":""},{"$f":"IF('Project Scope'!$C54=\"\",\"\",VLOOKUP($F54,'CBAT Lookups'!$B$17:$K$19,6))","v":""},{"$f":"IF('Project Scope'!$C54=\"\",\"\",VLOOKUP($F54,'CBAT Lookups'!$B$17:$K$19,7))","v":""},{"$f":"IF('Project Scope'!$C54=\"\",\"\",IF(SUMPRODUCT($P54:$S54,$AN54:$AQ54)=0,0,P54*AN54/SUMPRODUCT($P54:$S54,$AN54:$AQ54)))","v":""},{"$f":"IF('Project Scope'!$C54=\"\",\"\",IF(SUMPRODUCT($P54:$S54,$AN54:$AQ54)=0,0,Q54*AO54/SUMPRODUCT($P54:$S54,$AN54:$AQ54)))","v":""},{"$f":"IF('Project Scope'!$C54=\"\",\"\",IF(SUMPRODUCT($P54:$S54,$AN54:$AQ54)=0,0,R54*AP54/SUMPRODUCT($P54:$S54,$AN54:$AQ54)))","v":""},{"$f":"IF('Project Scope'!$C54=\"\",\"\",IF(SUMPRODUCT($P54:$S54,$AN54:$AQ54)=0,0,S54*AQ54/SUMPRODUCT($P54:$S54,$AN54:$AQ54)))","v":""},{"$f":"IF('Project Scope'!$C54=\"\",\"\",Benefits($AB54,$AD54,$AE54,$AG54,$AH54,$AI54,$AJ54,$AK54,$AL54,$AM54,$M54,$AR54,$AS54,$AT54,$AU54,$W54,$X54,$Y54,$Z54,$AA54,$E54))","v":""},"","","","","","","","",null,{"$f":"IF('Project Scope'!$C54=\"\",\"\",SUM('Project Scope'!$AT54,'Project Scope'!$AU54))","v":""},{"$f":"IF('Project Scope'!$C54=\"\",\"\",SUM('Project Scope'!$BG54, 'Project Scope'!$AR54,(IF(ISNUMBER('Project Scope'!$AS54),'Project Scope'!$AS54,0)*'Project Information'!$D$12)))","v":""},null,null,{"$f":"IF('Project Scope'!$C54=\"\",\"\",IF(COUNTIF('CBAT Lookups'!$B$5:$B$12,\"Controls-\"&CBAT!$D54)=1,VLOOKUP(\"Controls-\"&CBAT!$D54,'CBAT Lookups'!$B$5:$L$12,11),0))","v":""},{"$f":"IF('Project Scope'!$C54=\"\",\"\",IF(COUNTIF('CBAT Lookups'!$B$5:$B$12,\"Controls-\"&CBAT!$D54)=1,VLOOKUP(\"Controls-\"&CBAT!$D54,'CBAT Lookups'!$B$5:$K$12,2),0)*VLOOKUP($F54,'CBAT Lookups'!$B$17:$K$19,2))","v":""},{"$f":"IF('Project Scope'!$C54=\"\",\"\",IF(COUNTIF('CBAT Lookups'!$B$5:$B$12,\"Controls-\"&CBAT!$D54)=1,VLOOKUP(\"Controls-\"&CBAT!$D54,'CBAT Lookups'!$B$5:$K$12,3),0)*VLOOKUP($F54,'CBAT Lookups'!$B$17:$K$19,3))","v":""},{"$f":"IF('Project Scope'!$C54=\"\",\"\",IF(COUNTIF('CBAT Lookups'!$B$5:$B$12,\"Controls-\"&CBAT!$D54)=1,VLOOKUP(\"Controls-\"&CBAT!$D54,'CBAT Lookups'!$B$5:$K$12,4),0))","v":""},{"$f":"IF('Project Scope'!$C54=\"\",\"\",IF(COUNTIF('CBAT Lookups'!$B$5:$B$12,\"Controls-\"&CBAT!$D54)=1,VLOOKUP(\"Controls-\"&CBAT!$D54,'CBAT Lookups'!$B$5:$K$12,5),0))","v":""},{"$f":"IF('Project Scope'!$C54=\"\",\"\",IF(COUNTIF('CBAT Lookups'!$B$5:$B$12,\"Controls-\"&CBAT!$D54)=1,VLOOKUP(\"Controls-\"&CBAT!$D54,'CBAT Lookups'!$B$5:$K$12,6),0))","v":""},{"$f":"IF('Project Scope'!$C54=\"\",\"\",IF(COUNTIF('CBAT Lookups'!$B$5:$B$12,\"Controls-\"&CBAT!$D54)=1,VLOOKUP(\"Controls-\"&CBAT!$D54,'CBAT Lookups'!$B$5:$K$12,7),0))","v":""},{"$f":"IF('Project Scope'!$C54=\"\",\"\",IF(VLOOKUP($F54,'CBAT Lookups'!$B$17:$K$19,8)=\"W\",1,IF(COUNTIF('CBAT Lookups'!$B$5:$B$12,\"Controls-\"&CBAT!$D54)=1,VLOOKUP(\"Controls-\"&CBAT!$D54,'CBAT Lookups'!$B$5:$K$12,8),0)*VLOOKUP($F54,'CBAT Lookups'!$B$17:$K$19,8)))","v":""},{"$f":"IF('Project Scope'!$C54=\"\",\"\",IF(VLOOKUP($F54,'CBAT Lookups'!$B$17:$K$19,9)=\"W\",1,IF(COUNTIF('CBAT Lookups'!$B$5:$B$12,\"Controls-\"&CBAT!$D54)=1,VLOOKUP(\"Controls-\"&CBAT!$D54,'CBAT Lookups'!$B$5:$K$12,9),0)*VLOOKUP($F54,'CBAT Lookups'!$B$17:$K$19,9)))","v":""},{"$f":"IF('Project Scope'!$C54=\"\",\"\",IF(COUNTIF('CBAT Lookups'!$B$5:$B$12,\"Controls-\"&CBAT!$D54)=1,VLOOKUP(\"Controls-\"&CBAT!$D54,'CBAT Lookups'!$B$5:$K$12,10),0)*VLOOKUP($F54,'CBAT Lookups'!$B$17:$K$19,10))","v":""},{"$f":"IF('Project Scope'!$C54=\"\",\"\",VLOOKUP($C54,'CBAT Lookups'!$A$33:$B$57,2))","v":""},{"$f":"IF('Project Scope'!$C54=\"\",\"\",IF(COUNTIF('CBAT Lookups'!$B$5:$B$12,\"Controls-\"&CBAT!$D54)=1,VLOOKUP(\"Controls-\"&CBAT!$D54,'CBAT Lookups'!$B$5:$O$12,12),0))","v":""},{"$f":"IF('Project Scope'!$C54=\"\",\"\",IF(COUNTIF('CBAT Lookups'!$B$5:$B$12,\"Controls-\"&CBAT!$D54)=1,VLOOKUP(\"Controls-\"&CBAT!$D54,'CBAT Lookups'!$B$5:$O$12,13),0))","v":""},{"$f":"IF('Project Scope'!$C54=\"\",\"\",IF(COUNTIF('CBAT Lookups'!$B$5:$B$12,\"Controls-\"&CBAT!$D54)=1,VLOOKUP(\"Controls-\"&CBAT!$D54,'CBAT Lookups'!$B$5:$O$12,14),0))","v":""},{"$f":"IF('Project Scope'!$C54=\"\",\"\",'TRM Data'!$U$3)","v":""},{"$f":"IF('Project Scope'!$C54=\"\",\"\",'TRM Data'!$V$3)","v":""},{"$f":"IF('Project Scope'!$C54=\"\",\"\",IF($K54<=0,0,MAX(0,(IF(AND($I54>0,$J54>0),($I54*$J54)/1000,($G54*$H54)/1000)*$L54))*$BT54*$BR54)+($CD54/0.003412))","v":""},{"$f":"IF('Project Scope'!$C54=\"\",\"\",IF($K54<=0,0,MAX(0,IF(AND($I54>0,$J54>0),($I54*$J54)/1000,($G54*$H54)/1000))*$BQ54))","v":""},{"$f":"IF('Project Scope'!$C54=\"\",\"\",IF($K54<=0,0,MAX(0,IF(AND($I54>0,$J54>0),($I54*$J54)/1000,($G54*$H54)/1000))*$BK54))","v":""},{"$f":"IF('Project Scope'!$C54=\"\",\"\",IF($K54<=0,0,MAX(0,IF(AND($I54>0,$J54>0),($I54*$J54)/1000,($G54*$H54)/1000))*$BL54*$BQ54))","v":""},{"$f":"IF('Project Scope'!$C54=\"\",\"\",IF(OR($K54<=0,'Project Information'!$D$44=\"\"),0,-1*MAX(0,IF(AND($I54>0,$J54>0),($I54*$J54)/1000,($G54*$H54)/1000))*$BT54*$L54*$BS54*VLOOKUP('Project Information'!$D$44,'CBAT Lookups'!$A$23:$H$30,2)))","v":""},{"$f":"IF('Project Scope'!$C54=\"\",\"\",IF(OR($K54<=0,'Project Information'!$D$44=\"\"),0,-1*MAX(0,IF(AND($I54>0,$J54>0),($I54*$J54)/1000,($G54*$H54)/1000))*$BT54*$L54*$BS54*VLOOKUP('Project Information'!$D$44,'CBAT Lookups'!$A$23:$H$30,3)))","v":""},{"$f":"IF('Project Scope'!$C54=\"\",\"\",IF(OR($K54<=0,'Project Information'!$D$44=\"\"),0,-1*MAX(0,IF(AND($I54>0,$J54>0),($I54*$J54)/1000,($G54*$H54)/1000))*$BT54*$L54*$BS54*VLOOKUP('Project Information'!$D$44,'CBAT Lookups'!$A$23:$H$30,4)))","v":""},{"$f":"IF('Project Scope'!$C54=\"\",\"\",IF(OR($K54<=0,'Project Information'!$D$44=\"\"),0,-1*MAX(0,IF(AND($I54>0,$J54>0),($I54*$J54)/1000,($G54*$H54)/1000))*$BT54*$L54*$BS54*VLOOKUP('Project Information'!$D$44,'CBAT Lookups'!$A$23:$H$30,5)))","v":""},{"$f":"IF('Project Scope'!$C54=\"\",\"\",IF(OR($K54<=0,'Project Information'!$D$44=\"\"),0,-1*MAX(0,IF(AND($I54>0,$J54>0),($I54*$J54)/1000,($G54*$H54)/1000))*$BT54*$L54*$BS54*VLOOKUP('Project Information'!$D$44,'CBAT Lookups'!$A$23:$H$30,6)))","v":""},{"$f":"IF('Project Scope'!$C54=\"\",\"\",IF(OR($K54<=0,'Project Information'!$D$44=\"\"),0,-1*MAX(0,IF(AND($I54>0,$J54>0),($I54*$J54)/1000,($G54*$H54)/1000))*$BT54*$L54*$BS54*VLOOKUP('Project Information'!$D$44,'CBAT Lookups'!$A$23:$H$30,7)))","v":""},{"$f":"IF('Project Scope'!$C54=\"\",\"\",IF(OR($K54<=0,'Project Information'!$D$44=\"\"),0,-1*MAX(0,IF(AND($I54>0,$J54>0),($I54*$J54)/1000,($G54*$H54)/1000))*$BT54*$L54*$BS54*VLOOKUP('Project Information'!$D$44,'CBAT Lookups'!$A$23:$H$30,8)))","v":""},null,{"$f":"IF('Project Scope'!$C54=\"\",\"\",VLOOKUP($F54,'CBAT Lookups'!$B$17:$K$19,4))","v":""},{"$f":"IF('Project Scope'!$C54=\"\",\"\",VLOOKUP($F54,'CBAT Lookups'!$B$17:$K$19,5))","v":""},{"$f":"IF('Project Scope'!$C54=\"\",\"\",VLOOKUP($F54,'CBAT Lookups'!$B$17:$K$19,6))","v":""},{"$f":"IF('Project Scope'!$C54=\"\",\"\",VLOOKUP($F54,'CBAT Lookups'!$B$17:$K$19,7))","v":""},{"$f":"IF('Project Scope'!$C54=\"\",\"\",IF(SUMPRODUCT($BM54:$BP54,$CL54:$CO54)=0,0,BM54*CL54/SUMPRODUCT($BM54:$BP54,$CL54:$CO54)))","v":""},{"$f":"IF('Project Scope'!$C54=\"\",\"\",IF(SUMPRODUCT($BM54:$BP54,$CL54:$CO54)=0,0,BN54*CM54/SUMPRODUCT($BM54:$BP54,$CL54:$CO54)))","v":""},{"$f":"IF('Project Scope'!$C54=\"\",\"\",IF(SUMPRODUCT($BM54:$BP54,$CL54:$CO54)=0,0,BO54*CN54/SUMPRODUCT($BM54:$BP54,$CL54:$CO54)))","v":""},{"$f":"IF('Project Scope'!$C54=\"\",\"\",IF(SUMPRODUCT($BM54:$BP54,$CL54:$CO54)=0,0,BP54*CO54/SUMPRODUCT($BM54:$BP54,$CL54:$CO54)))","v":""},{"$f":"IF('Project Scope'!$C54=\"\",\"\",Benefits($BZ54,$CB54,$CC54,$CE54,$CF54,$CG54,$CH54,$CI54,$CJ54,$CK54,$BJ54,$CP54,$CQ54,$CR54,$CS54,$BU54,$BV54,$BW54,$BX54,$BY54,$E54))","v":""},"","","","","","","","",null,{"$f":"IF('Project Scope'!$C54=\"\",\"\",SUM('Project Scope'!$BB54,'Project Scope'!$BC54))","v":""},{"$f":"IF('Project Scope'!$C54=\"\",\"\",SUM('Project Scope'!$BH54, 'Project Scope'!$AZ54,(IF(ISNUMBER('Project Scope'!$BA54),'Project Scope'!$BA54,0)*'Project Information'!$D$12)))","v":""},null,null,{"$f":"IF('Project Scope'!$C54=\"\",\"\",IF($J54<=0,0,(SUMPRODUCT($AV54:$BC54,--($AV54:$BC54>0))+$BE54)*$DK54/((-SUMPRODUCT($AV54:$BC54,--($AV54:$BC54<0))+$BG54+$BH54+$BI54)*$DK54)))","v":""},{"$f":"IF('Project Scope'!$C54=\"\",\"\",IF($K54<=0,0,(SUMPRODUCT($CT54:$DA54,--($CT54:$DA54>0))+$DC54)*$DK54/((-SUMPRODUCT($CT54:$DA54,--($CT54:$DA54<0))+$DE54+$DF54+$DG54)*$DK54)))","v":""},{"$f":"IF('Project Scope'!$C54=\"\",\"\",IF(AND($J54<=0,$K54<=0),0,(SUMPRODUCT($AV54:$BC54,--($AV54:$BC54>0))+$BE54+SUMPRODUCT($CT54:$DA54,--($CT54:$DA54>0))+$DC54)*$DK54/((-SUMPRODUCT($AV54:$BC54,--($AV54:$BC54<0))+$BG54+$BH54+$BI54-SUMPRODUCT($CT54:$DA54,--($CT54:$DA54<0))+$DE54+$DF54+$DG54)*$DK54)))","v":""},{"$f":"IF('Project Scope'!$C54=\"\",\"\",IF(NetOrGross=\"Net\",(1-Z54+AA54),1))","v":""}]
[{"$f":"'Project Scope'!$B55","v":48},{"$f":"IF('Project Scope'!$C55=\"\",\"\",'Project Scope'!$C55)","v":""},{"$f":"IF('Project Scope'!$C55=\"\",\"\",'Project Scope'!$H55)","v":""},{"$f":"IF(ISNUMBER(SEARCH(\"Bay\",'Project Scope'!$Q55)),\"Bay\",IF('Project Scope'!C55=\"\",\"\",'Project Scope'!E55))","v":""},{"$f":"IF('Project Scope'!$C55=\"\",\"\",\"Com\")","v":""},{"$f":"IF('Project Scope'!$C55=\"\",\"\",'Project Scope'!$L55)","v":""},{"$f":"IF('Project Scope'!$C55=\"\",\"\",IF('Project Scope'!$CJ55=\"\",0,'Project Scope'!$CJ55))","v":""},{"$f":"IF('Project Scope'!$C55=\"\",\"\",IF('Project Scope'!$N55=\"\",0,'Project Scope'!$N55))","v":""},{"$f":"IF('Project Scope'!$C55=\"\",\"\",IF('Project Scope'!$CK55=\"\",0,'Project Scope'!$CK55))","v":""},{"$f":"IF('Project Scope'!$C55=\"\",\"\",IF('Project Scope'!$AO55=\"\",0,'Project Scope'!$AO55))","v":""},{"$f":"IF('Project Scope'!$C55=\"\",\"\",IF('Project Scope'!$AX55=\"\",0,'Project Scope'!$AX55))","v":""},{"$f":"IF('Project Scope'!$C55=\"\",\"\",IF('Project Scope'!$M55=\"\",0,'Project Scope'!$M55))","v":""},{"$f":"IF('Project Scope'!$C55=\"\",\"\",IF(COUNTIF('CBAT Lookups'!$B$5:$B$12,\"Fixtures-\"&CBAT!$D55)=1,VLOOKUP(\"Fixtures-\"&CBAT!$D55,'CBAT Lookups'!$B$5:$L$12,11),0))","v":""},{"$f":"IF('Project Scope'!$C55=\"\",\"\",(IF(COUNTIF('CBAT Lookups'!$B$5:$B$12,\"Fixtures-\"&CBAT!$D55)=1,VLOOKUP(\"Fixtures-\"&CBAT!$D55,'CBAT Lookups'!$B$5:$K$12,2),0))*VLOOKUP($F55,'CBAT Lookups'!$B$17:$K$19,2))","v":""},{"$f":"IF('Project Scope'!$C55=\"\",\"\",(IF(COUNTIF('CBAT Lookups'!$B$5:$B$12,\"Fixtures-\"&CBAT!$D55)=1,VLOOKUP(\"Fixtures-\"&CBAT!$D55,'CBAT Lookups'!$B$5:$K$12,3),0))*VLOOKUP($F55,'CBAT Lookups'!$B$17:$K$19,3))","v":""},{"$f":"IF('Project Scope'!$C55=\"\",\"\",(IF(COUNTIF('CBAT Lookups'!$B$5:$B$12,\"Fixtures-\"&CBAT!$D55)=1,VLOOKUP(\"Fixtures-\"&CBAT!$D55,'CBAT Lookups'!$B$5:$K$12,4),0)))","v":""},{"$f":"IF('Project Scope'!$C55=\"\",\"\",(IF(COUNTIF('CBAT Lookups'!$B$5:$B$12,\"Fixtures-\"&CBAT!$D55)=1,VLOOKUP(\"Fixtures-\"&CBAT!$D55,'CBAT Lookups'!$B$5:$K$12,5),0)))","v":""},{"$f":"IF('Project Scope'!$C55=\"\",\"\",(IF(COUNTIF('CBAT Lookups'!$B$5:$B$12,\"Fixtures-\"&CBAT!$D55)=1,VLOOKUP(\"Fixtures-\"&CBAT!$D55,'CBAT Lookups'!$B$5:$K$12,6),0)))","v":""},{"$f":"IF('Project Scope'!$C55=\"\",\"\",IF(COUNTIF('CBAT Lookups'!$B$5:$B$12,\"Fixtures-\"&CBAT!$D55)=1,VLOOKUP(\"Fixtures-\"&CBAT!$D55,'CBAT Lookups'!$B$5:$K$12,7),0))","v":""},{"$f":"IF('Project Scope'!$C55=\"\",\"\",IF(VLOOKUP($F55,'CBAT Lookups'!$B$17:$K$19,8)=\"W\",1,IF(COUNTIF('CBAT Lookups'!$B$5:$B$12,\"Fixtures-\"&CBAT!$D55)=1,VLOOKUP(\"Fixtures-\"&CBAT!$D55,'CBAT Lookups'!$B$5:$K$12,8),0)*VLOOKUP($F55,'CBAT Lookups'!$B$17:$K$19,8)))","v":""},{"$f":"IF('Project Scope'!$C55=\"\",\"\",IF(VLOOKUP($F55,'CBAT Lookups'!$B$17:$K$19,9)=\"W\",1,IF(COUNTIF('CBAT Lookups'!$B$5:$B$12,\"Fixtures-\"&CBAT!$D55)=1,VLOOKUP(\"Fixtures-\"&CBAT!$D55,'CBAT Lookups'!$B$5:$K$12,9),0)*VLOOKUP($F55,'CBAT Lookups'!$B$17:$K$19,9)))","v":""},{"$f":"IF('Project Scope'!$C55=\"\",\"\",IF(COUNTIF('CBAT Lookups'!$B$5:$B$12,\"Fixtures-\"&CBAT!$D55)=1,VLOOKUP(\"Fixtures-\"&CBAT!$D55,'CBAT Lookups'!$B$5:$K$12,10),0)*VLOOKUP($F55,'CBAT Lookups'!$B$17:$K$19,10))","v":""},{"$f":"IF('Project Scope'!$C55=\"\",\"\",IF(COUNTIF('CBAT Lookups'!$B$5:$B$12,\"Fixtures-\"&CBAT!$D55)=1,VLOOKUP(\"Fixtures-\"&CBAT!$D55,'CBAT Lookups'!$B$5:$O$12,12),0))","v":""},{"$f":"IF('Project Scope'!$C55=\"\",\"\",IF(COUNTIF('CBAT Lookups'!$B$5:$B$12,\"Fixtures-\"&CBAT!$D55)=1,VLOOKUP(\"Fixtures-\"&CBAT!$D55,'CBAT Lookups'!$B$5:$O$12,13),0))","v":""},{"$f":"IF('Project Scope'!$C55=\"\",\"\",IF(COUNTIF('CBAT Lookups'!$B$5:$B$12,\"Fixtures-\"&CBAT!$D55)=1,VLOOKUP(\"Fixtures-\"&CBAT!$D55,'CBAT Lookups'!$B$5:$O$12,14),0))","v":""},{"$f":"IF('Project Scope'!$C55=\"\",\"\",'TRM Data'!$U$3)","v":""},{"$f":"IF('Project Scope'!$C55=\"\",\"\",'TRM Data'!$V$3)","v":""},{"$f":"IF('Project Scope'!$C55=\"\",\"\",IF($J55<=0,0,MAX(0,(($G55*$H55/1000)-($I55*$J55/1000))*$L55)*$U55)+($AF55/0.003412))","v":""},{"$f":"IF('Project Scope'!$C55=\"\",\"\",IF($J55<=0,0,MAX(0,(($G55*$H55/1000)-($I55*$J55/1000)))*$T55))","v":""},{"$f":"IF('Project Scope'!$C55=\"\",\"\",IF($J55<=0,0,MAX(0,(($G55*$H55/1000)-($I55*$J55/1000))*$N55)))","v":""},{"$f":"IF('Project Scope'!$C55=\"\",\"\",IF($J55<=0,0,MAX(0,(($G55*$H55/1000)-($I55*$J55/1000))*$O55)*$T55))","v":""},{"$f":"IF('Project Scope'!$C55=\"\",\"\",IF(OR($J55<=0,'Project Information'!$D$44=\"\"),0,-1*MAX(0,(($G55*$H55/1000)-($I55*$J55/1000))*$L55)*$V55*VLOOKUP('Project Information'!$D$44,'CBAT Lookups'!$A$23:$H$30,2)))","v":""},{"$f":"IF('Project Scope'!$C55=\"\",\"\",IF(OR($J55<=0,'Project Information'!$D$44=\"\"),0,-1*MAX(0,(($G55*$H55/1000)-($I55*$J55/1000))*$L55)*$V55*VLOOKUP('Project Information'!$D$44,'CBAT Lookups'!$A$23:$H$30,3)))","v":""},{"$f":"IF('Project Scope'!$C55=\"\",\"\",IF(OR($J55<=0,'Project Information'!$D$44=\"\"),0,-1*MAX(0,(($G55*$H55/1000)-($I55*$J55/1000))*$L55)*$V55*VLOOKUP('Project Information'!$D$44,'CBAT Lookups'!$A$23:$H$30,4)))","v":""},{"$f":"IF('Project Scope'!$C55=\"\",\"\",IF(OR($J55<=0,'Project Information'!$D$44=\"\"),0,-1*MAX(0,(($G55*$H55/1000)-($I55*$J55/1000))*$L55)*$V55*VLOOKUP('Project Information'!$D$44,'CBAT Lookups'!$A$23:$H$30,5)))","v":""},{"$f":"IF('Project Scope'!$C55=\"\",\"\",IF(OR($J55<=0,'Project Information'!$D$44=\"\"),0,-1*MAX(0,(($G55*$H55/1000)-($I55*$J55/1000))*$L55)*$V55*VLOOKUP('Project Information'!$D$44,'CBAT Lookups'!$A$23:$H$30,6)))","v":""},{"$f":"IF('Project Scope'!$C55=\"\",\"\",IF(OR($J55<=0,'Project Information'!$D$44=\"\"),0,-1*MAX(0,(($G55*$H55/1000)-($I55*$J55/1000))*$L55)*$V55*VLOOKUP('Project Information'!$D$44,'CBAT Lookups'!$A$23:$H$30,7)))","v":""},{"$f":"IF('Project Scope'!$C55=\"\",\"\",IF(OR($J55<=0,'Project Information'!$D$44=\"\"),0,-1*MAX(0,(($G55*$H55/1000)-($I55*$J55/1000))*$L55)*$V55*VLOOKUP('Project Information'!$D$44,'CBAT Lookups'!$A$23:$H$30,8)))","v":""},null,{"$f":"IF('Project Scope'!$C55=\"\",\"\",VLOOKUP($F55,'CBAT Lookups'!$B$17:$K$19,4))","v":""},{"$f":"IF('Project Scope'!$C55=\"\",\"\",VLOOKUP($F55,'CBAT Lookups'!$B$17:$K$19,5))","v":""},{"$f":"IF('Project Scope'!$C55=\"\",\"\",VLOOKUP($F55,'CBAT Lookups'!$B$17:$K$19,6))","v":""},{"$f":"IF('Project Scope'!$C55=\"\",\"\",VLOOKUP($F55,'CBAT Lookups'!$B$17:$K$19,7))","v":""},{"$f":"IF('Project Scope'!$C55=\"\",\"\",IF(SUMPRODUCT($P55:$S55,$AN55:$AQ55)=0,0,P55*AN55/SUMPRODUCT($P55:$S55,$AN55:$AQ55)))","v":""},{"$f":"IF('Project Scope'!$C55=\"\",\"\",IF(SUMPRODUCT($P55:$S55,$AN55:$AQ55)=0,0,Q55*AO55/SUMPRODUCT($P55:$S55,$AN55:$AQ55)))","v":""},{"$f":"IF('Project Scope'!$C55=\"\",\"\",IF(SUMPRODUCT($P55:$S55,$AN55:$AQ55)=0,0,R55*AP55/SUMPRODUCT($P55:$S55,$AN55:$AQ55)))","v":""},{"$f":"IF('Project Scope'!$C55=\"\",\"\",IF(SUMPRODUCT($P55:$S55,$AN55:$AQ55)=0,0,S55*AQ55/SUMPRODUCT($P55:$S55,$AN55:$AQ55)))","v":""},{"$f":"IF('Project Scope'!$C55=\"\",\"\",Benefits($AB55,$AD55,$AE55,$AG55,$AH55,$AI55,$AJ55,$AK55,$AL55,$AM55,$M55,$AR55,$AS55,$AT55,$AU55,$W55,$X55,$Y55,$Z55,$AA55,$E55))","v":""},"","","","","","","","",null,{"$f":"IF('Project Scope'!$C55=\"\",\"\",SUM('Project Scope'!$AT55,'Project Scope'!$AU55))","v":""},{"$f":"IF('Project Scope'!$C55=\"\",\"\",SUM('Project Scope'!$BG55, 'Project Scope'!$AR55,(IF(ISNUMBER('Project Scope'!$AS55),'Project Scope'!$AS55,0)*'Project Information'!$D$12)))","v":""},null,null,{"$f":"IF('Project Scope'!$C55=\"\",\"\",IF(COUNTIF('CBAT Lookups'!$B$5:$B$12,\"Controls-\"&CBAT!$D55)=1,VLOOKUP(\"Controls-\"&CBAT!$D55,'CBAT Lookups'!$B$5:$L$12,11),0))","v":""},{"$f":"IF('Project Scope'!$C55=\"\",\"\",IF(COUNTIF('CBAT Lookups'!$B$5:$B$12,\"Controls-\"&CBAT!$D55)=1,VLOOKUP(\"Controls-\"&CBAT!$D55,'CBAT Lookups'!$B$5:$K$12,2),0)*VLOOKUP($F55,'CBAT Lookups'!$B$17:$K$19,2))","v":""},{"$f":"IF('Project Scope'!$C55=\"\",\"\",IF(COUNTIF('CBAT Lookups'!$B$5:$B$12,\"Controls-\"&CBAT!$D55)=1,VLOOKUP(\"Controls-\"&CBAT!$D55,'CBAT Lookups'!$B$5:$K$12,3),0)*VLOOKUP($F55,'CBAT Lookups'!$B$17:$K$19,3))","v":""},{"$f":"IF('Project Scope'!$C55=\"\",\"\",IF(COUNTIF('CBAT Lookups'!$B$5:$B$12,\"Controls-\"&CBAT!$D55)=1,VLOOKUP(\"Controls-\"&CBAT!$D55,'CBAT Lookups'!$B$5:$K$12,4),0))","v":""},{"$f":"IF('Project Scope'!$C55=\"\",\"\",IF(COUNTIF('CBAT Lookups'!$B$5:$B$12,\"Controls-\"&CBAT!$D55)=1,VLOOKUP(\"Controls-\"&CBAT!$D55,'CBAT Lookups'!$B$5:$K$12,5),0))","v":""},{"$f":"IF('Project Scope'!$C55=\"\",\"\",IF(COUNTIF('CBAT Lookups'!$B$5:$B$12,\"Controls-\"&CBAT!$D55)=1,VLOOKUP(\"Controls-\"&CBAT!$D55,'CBAT Lookups'!$B$5:$K$12,6),0))","v":""},{"$f":"IF('Project Scope'!$C55=\"\",\"\",IF(COUNTIF('CBAT Lookups'!$B$5:$B$12,\"Controls-\"&CBAT!$D55)=1,VLOOKUP(\"Controls-\"&CBAT!$D55,'CBAT Lookups'!$B$5:$K$12,7),0))","v":""},{"$f":"IF('Project Scope'!$C55=\"\",\"\",IF(VLOOKUP($F55,'CBAT Lookups'!$B$17:$K$19,8)=\"W\",1,IF(COUNTIF('CBAT Lookups'!$B$5:$B$12,\"Controls-\"&CBAT!$D55)=1,VLOOKUP(\"Controls-\"&CBAT!$D55,'CBAT Lookups'!$B$5:$K$12,8),0)*VLOOKUP($F55,'CBAT Lookups'!$B$17:$K$19,8)))","v":""},{"$f":"IF('Project Scope'!$C55=\"\",\"\",IF(VLOOKUP($F55,'CBAT Lookups'!$B$17:$K$19,9)=\"W\",1,IF(COUNTIF('CBAT Lookups'!$B$5:$B$12,\"Controls-\"&CBAT!$D55)=1,VLOOKUP(\"Controls-\"&CBAT!$D55,'CBAT Lookups'!$B$5:$K$12,9),0)*VLOOKUP($F55,'CBAT Lookups'!$B$17:$K$19,9)))","v":""},{"$f":"IF('Project Scope'!$C55=\"\",\"\",IF(COUNTIF('CBAT Lookups'!$B$5:$B$12,\"Controls-\"&CBAT!$D55)=1,VLOOKUP(\"Controls-\"&CBAT!$D55,'CBAT Lookups'!$B$5:$K$12,10),0)*VLOOKUP($F55,'CBAT Lookups'!$B$17:$K$19,10))","v":""},{"$f":"IF('Project Scope'!$C55=\"\",\"\",VLOOKUP($C55,'CBAT Lookups'!$A$33:$B$57,2))","v":""},{"$f":"IF('Project Scope'!$C55=\"\",\"\",IF(COUNTIF('CBAT Lookups'!$B$5:$B$12,\"Controls-\"&CBAT!$D55)=1,VLOOKUP(\"Controls-\"&CBAT!$D55,'CBAT Lookups'!$B$5:$O$12,12),0))","v":""},{"$f":"IF('Project Scope'!$C55=\"\",\"\",IF(COUNTIF('CBAT Lookups'!$B$5:$B$12,\"Controls-\"&CBAT!$D55)=1,VLOOKUP(\"Controls-\"&CBAT!$D55,'CBAT Lookups'!$B$5:$O$12,13),0))","v":""},{"$f":"IF('Project Scope'!$C55=\"\",\"\",IF(COUNTIF('CBAT Lookups'!$B$5:$B$12,\"Controls-\"&CBAT!$D55)=1,VLOOKUP(\"Controls-\"&CBAT!$D55,'CBAT Lookups'!$B$5:$O$12,14),0))","v":""},{"$f":"IF('Project Scope'!$C55=\"\",\"\",'TRM Data'!$U$3)","v":""},{"$f":"IF('Project Scope'!$C55=\"\",\"\",'TRM Data'!$V$3)","v":""},{"$f":"IF('Project Scope'!$C55=\"\",\"\",IF($K55<=0,0,MAX(0,(IF(AND($I55>0,$J55>0),($I55*$J55)/1000,($G55*$H55)/1000)*$L55))*$BT55*$BR55)+($CD55/0.003412))","v":""},{"$f":"IF('Project Scope'!$C55=\"\",\"\",IF($K55<=0,0,MAX(0,IF(AND($I55>0,$J55>0),($I55*$J55)/1000,($G55*$H55)/1000))*$BQ55))","v":""},{"$f":"IF('Project Scope'!$C55=\"\",\"\",IF($K55<=0,0,MAX(0,IF(AND($I55>0,$J55>0),($I55*$J55)/1000,($G55*$H55)/1000))*$BK55))","v":""},{"$f":"IF('Project Scope'!$C55=\"\",\"\",IF($K55<=0,0,MAX(0,IF(AND($I55>0,$J55>0),($I55*$J55)/1000,($G55*$H55)/1000))*$BL55*$BQ55))","v":""},{"$f":"IF('Project Scope'!$C55=\"\",\"\",IF(OR($K55<=0,'Project Information'!$D$44=\"\"),0,-1*MAX(0,IF(AND($I55>0,$J55>0),($I55*$J55)/1000,($G55*$H55)/1000))*$BT55*$L55*$BS55*VLOOKUP('Project Information'!$D$44,'CBAT Lookups'!$A$23:$H$30,2)))","v":""},{"$f":"IF('Project Scope'!$C55=\"\",\"\",IF(OR($K55<=0,'Project Information'!$D$44=\"\"),0,-1*MAX(0,IF(AND($I55>0,$J55>0),($I55*$J55)/1000,($G55*$H55)/1000))*$BT55*$L55*$BS55*VLOOKUP('Project Information'!$D$44,'CBAT Lookups'!$A$23:$H$30,3)))","v":""},{"$f":"IF('Project Scope'!$C55=\"\",\"\",IF(OR($K55<=0,'Project Information'!$D$44=\"\"),0,-1*MAX(0,IF(AND($I55>0,$J55>0),($I55*$J55)/1000,($G55*$H55)/1000))*$BT55*$L55*$BS55*VLOOKUP('Project Information'!$D$44,'CBAT Lookups'!$A$23:$H$30,4)))","v":""},{"$f":"IF('Project Scope'!$C55=\"\",\"\",IF(OR($K55<=0,'Project Information'!$D$44=\"\"),0,-1*MAX(0,IF(AND($I55>0,$J55>0),($I55*$J55)/1000,($G55*$H55)/1000))*$BT55*$L55*$BS55*VLOOKUP('Project Information'!$D$44,'CBAT Lookups'!$A$23:$H$30,5)))","v":""},{"$f":"IF('Project Scope'!$C55=\"\",\"\",IF(OR($K55<=0,'Project Information'!$D$44=\"\"),0,-1*MAX(0,IF(AND($I55>0,$J55>0),($I55*$J55)/1000,($G55*$H55)/1000))*$BT55*$L55*$BS55*VLOOKUP('Project Information'!$D$44,'CBAT Lookups'!$A$23:$H$30,6)))","v":""},{"$f":"IF('Project Scope'!$C55=\"\",\"\",IF(OR($K55<=0,'Project Information'!$D$44=\"\"),0,-1*MAX(0,IF(AND($I55>0,$J55>0),($I55*$J55)/1000,($G55*$H55)/1000))*$BT55*$L55*$BS55*VLOOKUP('Project Information'!$D$44,'CBAT Lookups'!$A$23:$H$30,7)))","v":""},{"$f":"IF('Project Scope'!$C55=\"\",\"\",IF(OR($K55<=0,'Project Information'!$D$44=\"\"),0,-1*MAX(0,IF(AND($I55>0,$J55>0),($I55*$J55)/1000,($G55*$H55)/1000))*$BT55*$L55*$BS55*VLOOKUP('Project Information'!$D$44,'CBAT Lookups'!$A$23:$H$30,8)))","v":""},null,{"$f":"IF('Project Scope'!$C55=\"\",\"\",VLOOKUP($F55,'CBAT Lookups'!$B$17:$K$19,4))","v":""},{"$f":"IF('Project Scope'!$C55=\"\",\"\",VLOOKUP($F55,'CBAT Lookups'!$B$17:$K$19,5))","v":""},{"$f":"IF('Project Scope'!$C55=\"\",\"\",VLOOKUP($F55,'CBAT Lookups'!$B$17:$K$19,6))","v":""},{"$f":"IF('Project Scope'!$C55=\"\",\"\",VLOOKUP($F55,'CBAT Lookups'!$B$17:$K$19,7))","v":""},{"$f":"IF('Project Scope'!$C55=\"\",\"\",IF(SUMPRODUCT($BM55:$BP55,$CL55:$CO55)=0,0,BM55*CL55/SUMPRODUCT($BM55:$BP55,$CL55:$CO55)))","v":""},{"$f":"IF('Project Scope'!$C55=\"\",\"\",IF(SUMPRODUCT($BM55:$BP55,$CL55:$CO55)=0,0,BN55*CM55/SUMPRODUCT($BM55:$BP55,$CL55:$CO55)))","v":""},{"$f":"IF('Project Scope'!$C55=\"\",\"\",IF(SUMPRODUCT($BM55:$BP55,$CL55:$CO55)=0,0,BO55*CN55/SUMPRODUCT($BM55:$BP55,$CL55:$CO55)))","v":""},{"$f":"IF('Project Scope'!$C55=\"\",\"\",IF(SUMPRODUCT($BM55:$BP55,$CL55:$CO55)=0,0,BP55*CO55/SUMPRODUCT($BM55:$BP55,$CL55:$CO55)))","v":""},{"$f":"IF('Project Scope'!$C55=\"\",\"\",Benefits($BZ55,$CB55,$CC55,$CE55,$CF55,$CG55,$CH55,$CI55,$CJ55,$CK55,$BJ55,$CP55,$CQ55,$CR55,$CS55,$BU55,$BV55,$BW55,$BX55,$BY55,$E55))","v":""},"","","","","","","","",null,{"$f":"IF('Project Scope'!$C55=\"\",\"\",SUM('Project Scope'!$BB55,'Project Scope'!$BC55))","v":""},{"$f":"IF('Project Scope'!$C55=\"\",\"\",SUM('Project Scope'!$BH55, 'Project Scope'!$AZ55,(IF(ISNUMBER('Project Scope'!$BA55),'Project Scope'!$BA55,0)*'Project Information'!$D$12)))","v":""},null,null,{"$f":"IF('Project Scope'!$C55=\"\",\"\",IF($J55<=0,0,(SUMPRODUCT($AV55:$BC55,--($AV55:$BC55>0))+$BE55)*$DK55/((-SUMPRODUCT($AV55:$BC55,--($AV55:$BC55<0))+$BG55+$BH55+$BI55)*$DK55)))","v":""},{"$f":"IF('Project Scope'!$C55=\"\",\"\",IF($K55<=0,0,(SUMPRODUCT($CT55:$DA55,--($CT55:$DA55>0))+$DC55)*$DK55/((-SUMPRODUCT($CT55:$DA55,--($CT55:$DA55<0))+$DE55+$DF55+$DG55)*$DK55)))","v":""},{"$f":"IF('Project Scope'!$C55=\"\",\"\",IF(AND($J55<=0,$K55<=0),0,(SUMPRODUCT($AV55:$BC55,--($AV55:$BC55>0))+$BE55+SUMPRODUCT($CT55:$DA55,--($CT55:$DA55>0))+$DC55)*$DK55/((-SUMPRODUCT($AV55:$BC55,--($AV55:$BC55<0))+$BG55+$BH55+$BI55-SUMPRODUCT($CT55:$DA55,--($CT55:$DA55<0))+$DE55+$DF55+$DG55)*$DK55)))","v":""},{"$f":"IF('Project Scope'!$C55=\"\",\"\",IF(NetOrGross=\"Net\",(1-Z55+AA55),1))","v":""}]
[{"$f":"'Project Scope'!$B56","v":49},{"$f":"IF('Project Scope'!$C56=\"\",\"\",'Project Scope'!$C56)","v":""},{"$f":"IF('Project Scope'!$C56=\"\",\"\",'Project Scope'!$H56)","v":""},{"$f":"IF(ISNUMBER(SEARCH(\"Bay\",'Project Scope'!$Q56)),\"Bay\",IF('Project Scope'!C56=\"\",\"\",'Project Scope'!E56))","v":""},{"$f":"IF('Project Scope'!$C56=\"\",\"\",\"Com\")","v":""},{"$f":"IF('Project Scope'!$C56=\"\",\"\",'Project Scope'!$L56)","v":""},{"$f":"IF('Project Scope'!$C56=\"\",\"\",IF('Project Scope'!$CJ56=\"\",0,'Project Scope'!$CJ56))","v":""},{"$f":"IF('Project Scope'!$C56=\"\",\"\",IF('Project Scope'!$N56=\"\",0,'Project Scope'!$N56))","v":""},{"$f":"IF('Project Scope'!$C56=\"\",\"\",IF('Project Scope'!$CK56=\"\",0,'Project Scope'!$CK56))","v":""},{"$f":"IF('Project Scope'!$C56=\"\",\"\",IF('Project Scope'!$AO56=\"\",0,'Project Scope'!$AO56))","v":""},{"$f":"IF('Project Scope'!$C56=\"\",\"\",IF('Project Scope'!$AX56=\"\",0,'Project Scope'!$AX56))","v":""},{"$f":"IF('Project Scope'!$C56=\"\",\"\",IF('Project Scope'!$M56=\"\",0,'Project Scope'!$M56))","v":""},{"$f":"IF('Project Scope'!$C56=\"\",\"\",IF(COUNTIF('CBAT Lookups'!$B$5:$B$12,\"Fixtures-\"&CBAT!$D56)=1,VLOOKUP(\"Fixtures-\"&CBAT!$D56,'CBAT Lookups'!$B$5:$L$12,11),0))","v":""},{"$f":"IF('Project Scope'!$C56=\"\",\"\",(IF(COUNTIF('CBAT Lookups'!$B$5:$B$12,\"Fixtures-\"&CBAT!$D56)=1,VLOOKUP(\"Fixtures-\"&CBAT!$D56,'CBAT Lookups'!$B$5:$K$12,2),0))*VLOOKUP($F56,'CBAT Lookups'!$B$17:$K$19,2))","v":""},{"$f":"IF('Project Scope'!$C56=\"\",\"\",(IF(COUNTIF('CBAT Lookups'!$B$5:$B$12,\"Fixtures-\"&CBAT!$D56)=1,VLOOKUP(\"Fixtures-\"&CBAT!$D56,'CBAT Lookups'!$B$5:$K$12,3),0))*VLOOKUP($F56,'CBAT Lookups'!$B$17:$K$19,3))","v":""},{"$f":"IF('Project Scope'!$C56=\"\",\"\",(IF(COUNTIF('CBAT Lookups'!$B$5:$B$12,\"Fixtures-\"&CBAT!$D56)=1,VLOOKUP(\"Fixtures-\"&CBAT!$D56,'CBAT Lookups'!$B$5:$K$12,4),0)))","v":""},{"$f":"IF('Project Scope'!$C56=\"\",\"\",(IF(COUNTIF('CBAT Lookups'!$B$5:$B$12,\"Fixtures-\"&CBAT!$D56)=1,VLOOKUP(\"Fixtures-\"&CBAT!$D56,'CBAT Lookups'!$B$5:$K$12,5),0)))","v":""},{"$f":"IF('Project Scope'!$C56=\"\",\"\",(IF(COUNTIF('CBAT Lookups'!$B$5:$B$12,\"Fixtures-\"&CBAT!$D56)=1,VLOOKUP(\"Fixtures-\"&CBAT!$D56,'CBAT Lookups'!$B$5:$K$12,6),0)))","v":""},{"$f":"IF('Project Scope'!$C56=\"\",\"\",IF(COUNTIF('CBAT Lookups'!$B$5:$B$12,\"Fixtures-\"&CBAT!$D56)=1,VLOOKUP(\"Fixtures-\"&CBAT!$D56,'CBAT Lookups'!$B$5:$K$12,7),0))","v":""},{"$f":"IF('Project Scope'!$C56=\"\",\"\",IF(VLOOKUP($F56,'CBAT Lookups'!$B$17:$K$19,8)=\"W\",1,IF(COUNTIF('CBAT Lookups'!$B$5:$B$12,\"Fixtures-\"&CBAT!$D56)=1,VLOOKUP(\"Fixtures-\"&CBAT!$D56,'CBAT Lookups'!$B$5:$K$12,8),0)*VLOOKUP($F56,'CBAT Lookups'!$B$17:$K$19,8)))","v":""},{"$f":"IF('Project Scope'!$C56=\"\",\"\",IF(VLOOKUP($F56,'CBAT Lookups'!$B$17:$K$19,9)=\"W\",1,IF(COUNTIF('CBAT Lookups'!$B$5:$B$12,\"Fixtures-\"&CBAT!$D56)=1,VLOOKUP(\"Fixtures-\"&CBAT!$D56,'CBAT Lookups'!$B$5:$K$12,9),0)*VLOOKUP($F56,'CBAT Lookups'!$B$17:$K$19,9)))","v":""},{"$f":"IF('Project Scope'!$C56=\"\",\"\",IF(COUNTIF('CBAT Lookups'!$B$5:$B$12,\"Fixtures-\"&CBAT!$D56)=1,VLOOKUP(\"Fixtures-\"&CBAT!$D56,'CBAT Lookups'!$B$5:$K$12,10),0)*VLOOKUP($F56,'CBAT Lookups'!$B$17:$K$19,10))","v":""},{"$f":"IF('Project Scope'!$C56=\"\",\"\",IF(COUNTIF('CBAT Lookups'!$B$5:$B$12,\"Fixtures-\"&CBAT!$D56)=1,VLOOKUP(\"Fixtures-\"&CBAT!$D56,'CBAT Lookups'!$B$5:$O$12,12),0))","v":""},{"$f":"IF('Project Scope'!$C56=\"\",\"\",IF(COUNTIF('CBAT Lookups'!$B$5:$B$12,\"Fixtures-\"&CBAT!$D56)=1,VLOOKUP(\"Fixtures-\"&CBAT!$D56,'CBAT Lookups'!$B$5:$O$12,13),0))","v":""},{"$f":"IF('Project Scope'!$C56=\"\",\"\",IF(COUNTIF('CBAT Lookups'!$B$5:$B$12,\"Fixtures-\"&CBAT!$D56)=1,VLOOKUP(\"Fixtures-\"&CBAT!$D56,'CBAT Lookups'!$B$5:$O$12,14),0))","v":""},{"$f":"IF('Project Scope'!$C56=\"\",\"\",'TRM Data'!$U$3)","v":""},{"$f":"IF('Project Scope'!$C56=\"\",\"\",'TRM Data'!$V$3)","v":""},{"$f":"IF('Project Scope'!$C56=\"\",\"\",IF($J56<=0,0,MAX(0,(($G56*$H56/1000)-($I56*$J56/1000))*$L56)*$U56)+($AF56/0.003412))","v":""},{"$f":"IF('Project Scope'!$C56=\"\",\"\",IF($J56<=0,0,MAX(0,(($G56*$H56/1000)-($I56*$J56/1000)))*$T56))","v":""},{"$f":"IF('Project Scope'!$C56=\"\",\"\",IF($J56<=0,0,MAX(0,(($G56*$H56/1000)-($I56*$J56/1000))*$N56)))","v":""},{"$f":"IF('Project Scope'!$C56=\"\",\"\",IF($J56<=0,0,MAX(0,(($G56*$H56/1000)-($I56*$J56/1000))*$O56)*$T56))","v":""},{"$f":"IF('Project Scope'!$C56=\"\",\"\",IF(OR($J56<=0,'Project Information'!$D$44=\"\"),0,-1*MAX(0,(($G56*$H56/1000)-($I56*$J56/1000))*$L56)*$V56*VLOOKUP('Project Information'!$D$44,'CBAT Lookups'!$A$23:$H$30,2)))","v":""},{"$f":"IF('Project Scope'!$C56=\"\",\"\",IF(OR($J56<=0,'Project Information'!$D$44=\"\"),0,-1*MAX(0,(($G56*$H56/1000)-($I56*$J56/1000))*$L56)*$V56*VLOOKUP('Project Information'!$D$44,'CBAT Lookups'!$A$23:$H$30,3)))","v":""},{"$f":"IF('Project Scope'!$C56=\"\",\"\",IF(OR($J56<=0,'Project Information'!$D$44=\"\"),0,-1*MAX(0,(($G56*$H56/1000)-($I56*$J56/1000))*$L56)*$V56*VLOOKUP('Project Information'!$D$44,'CBAT Lookups'!$A$23:$H$30,4)))","v":""},{"$f":"IF('Project Scope'!$C56=\"\",\"\",IF(OR($J56<=0,'Project Information'!$D$44=\"\"),0,-1*MAX(0,(($G56*$H56/1000)-($I56*$J56/1000))*$L56)*$V56*VLOOKUP('Project Information'!$D$44,'CBAT Lookups'!$A$23:$H$30,5)))","v":""},{"$f":"IF('Project Scope'!$C56=\"\",\"\",IF(OR($J56<=0,'Project Information'!$D$44=\"\"),0,-1*MAX(0,(($G56*$H56/1000)-($I56*$J56/1000))*$L56)*$V56*VLOOKUP('Project Information'!$D$44,'CBAT Lookups'!$A$23:$H$30,6)))","v":""},{"$f":"IF('Project Scope'!$C56=\"\",\"\",IF(OR($J56<=0,'Project Information'!$D$44=\"\"),0,-1*MAX(0,(($G56*$H56/1000)-($I56*$J56/1000))*$L56)*$V56*VLOOKUP('Project Information'!$D$44,'CBAT Lookups'!$A$23:$H$30,7)))","v":""},{"$f":"IF('Project Scope'!$C56=\"\",\"\",IF(OR($J56<=0,'Project Information'!$D$44=\"\"),0,-1*MAX(0,(($G56*$H56/1000)-($I56*$J56/1000))*$L56)*$V56*VLOOKUP('Project Information'!$D$44,'CBAT Lookups'!$A$23:$H$30,8)))","v":""},null,{"$f":"IF('Project Scope'!$C56=\"\",\"\",VLOOKUP($F56,'CBAT Lookups'!$B$17:$K$19,4))","v":""},{"$f":"IF('Project Scope'!$C56=\"\",\"\",VLOOKUP($F56,'CBAT Lookups'!$B$17:$K$19,5))","v":""},{"$f":"IF('Project Scope'!$C56=\"\",\"\",VLOOKUP($F56,'CBAT Lookups'!$B$17:$K$19,6))","v":""},{"$f":"IF('Project Scope'!$C56=\"\",\"\",VLOOKUP($F56,'CBAT Lookups'!$B$17:$K$19,7))","v":""},{"$f":"IF('Project Scope'!$C56=\"\",\"\",IF(SUMPRODUCT($P56:$S56,$AN56:$AQ56)=0,0,P56*AN56/SUMPRODUCT($P56:$S56,$AN56:$AQ56)))","v":""},{"$f":"IF('Project Scope'!$C56=\"\",\"\",IF(SUMPRODUCT($P56:$S56,$AN56:$AQ56)=0,0,Q56*AO56/SUMPRODUCT($P56:$S56,$AN56:$AQ56)))","v":""},{"$f":"IF('Project Scope'!$C56=\"\",\"\",IF(SUMPRODUCT($P56:$S56,$AN56:$AQ56)=0,0,R56*AP56/SUMPRODUCT($P56:$S56,$AN56:$AQ56)))","v":""},{"$f":"IF('Project Scope'!$C56=\"\",\"\",IF(SUMPRODUCT($P56:$S56,$AN56:$AQ56)=0,0,S56*AQ56/SUMPRODUCT($P56:$S56,$AN56:$AQ56)))","v":""},{"$f":"IF('Project Scope'!$C56=\"\",\"\",Benefits($AB56,$AD56,$AE56,$AG56,$AH56,$AI56,$AJ56,$AK56,$AL56,$AM56,$M56,$AR56,$AS56,$AT56,$AU56,$W56,$X56,$Y56,$Z56,$AA56,$E56))","v":""},"","","","","","","","",null,{"$f":"IF('Project Scope'!$C56=\"\",\"\",SUM('Project Scope'!$AT56,'Project Scope'!$AU56))","v":""},{"$f":"IF('Project Scope'!$C56=\"\",\"\",SUM('Project Scope'!$BG56, 'Project Scope'!$AR56,(IF(ISNUMBER('Project Scope'!$AS56),'Project Scope'!$AS56,0)*'Project Information'!$D$12)))","v":""},null,null,{"$f":"IF('Project Scope'!$C56=\"\",\"\",IF(COUNTIF('CBAT Lookups'!$B$5:$B$12,\"Controls-\"&CBAT!$D56)=1,VLOOKUP(\"Controls-\"&CBAT!$D56,'CBAT Lookups'!$B$5:$L$12,11),0))","v":""},{"$f":"IF('Project Scope'!$C56=\"\",\"\",IF(COUNTIF('CBAT Lookups'!$B$5:$B$12,\"Controls-\"&CBAT!$D56)=1,VLOOKUP(\"Controls-\"&CBAT!$D56,'CBAT Lookups'!$B$5:$K$12,2),0)*VLOOKUP($F56,'CBAT Lookups'!$B$17:$K$19,2))","v":""},{"$f":"IF('Project Scope'!$C56=\"\",\"\",IF(COUNTIF('CBAT Lookups'!$B$5:$B$12,\"Controls-\"&CBAT!$D56)=1,VLOOKUP(\"Controls-\"&CBAT!$D56,'CBAT Lookups'!$B$5:$K$12,3),0)*VLOOKUP($F56,'CBAT Lookups'!$B$17:$K$19,3))","v":""},{"$f":"IF('Project Scope'!$C56=\"\",\"\",IF(COUNTIF('CBAT Lookups'!$B$5:$B$12,\"Controls-\"&CBAT!$D56)=1,VLOOKUP(\"Controls-\"&CBAT!$D56,'CBAT Lookups'!$B$5:$K$12,4),0))","v":""},{"$f":"IF('Project Scope'!$C56=\"\",\"\",IF(COUNTIF('CBAT Lookups'!$B$5:$B$12,\"Controls-\"&CBAT!$D56)=1,VLOOKUP(\"Controls-\"&CBAT!$D56,'CBAT Lookups'!$B$5:$K$12,5),0))","v":""},{"$f":"IF('Project Scope'!$C56=\"\",\"\",IF(COUNTIF('CBAT Lookups'!$B$5:$B$12,\"Controls-\"&CBAT!$D56)=1,VLOOKUP(\"Controls-\"&CBAT!$D56,'CBAT Lookups'!$B$5:$K$12,6),0))","v":""},{"$f":"IF('Project Scope'!$C56=\"\",\"\",IF(COUNTIF('CBAT Lookups'!$B$5:$B$12,\"Controls-\"&CBAT!$D56)=1,VLOOKUP(\"Controls-\"&CBAT!$D56,'CBAT Lookups'!$B$5:$K$12,7),0))","v":""},{"$f":"IF('Project Scope'!$C56=\"\",\"\",IF(VLOOKUP($F56,'CBAT Lookups'!$B$17:$K$19,8)=\"W\",1,IF(COUNTIF('CBAT Lookups'!$B$5:$B$12,\"Controls-\"&CBAT!$D56)=1,VLOOKUP(\"Controls-\"&CBAT!$D56,'CBAT Lookups'!$B$5:$K$12,8),0)*VLOOKUP($F56,'CBAT Lookups'!$B$17:$K$19,8)))","v":""},{"$f":"IF('Project Scope'!$C56=\"\",\"\",IF(VLOOKUP($F56,'CBAT Lookups'!$B$17:$K$19,9)=\"W\",1,IF(COUNTIF('CBAT Lookups'!$B$5:$B$12,\"Controls-\"&CBAT!$D56)=1,VLOOKUP(\"Controls-\"&CBAT!$D56,'CBAT Lookups'!$B$5:$K$12,9),0)*VLOOKUP($F56,'CBAT Lookups'!$B$17:$K$19,9)))","v":""},{"$f":"IF('Project Scope'!$C56=\"\",\"\",IF(COUNTIF('CBAT Lookups'!$B$5:$B$12,\"Controls-\"&CBAT!$D56)=1,VLOOKUP(\"Controls-\"&CBAT!$D56,'CBAT Lookups'!$B$5:$K$12,10),0)*VLOOKUP($F56,'CBAT Lookups'!$B$17:$K$19,10))","v":""},{"$f":"IF('Project Scope'!$C56=\"\",\"\",VLOOKUP($C56,'CBAT Lookups'!$A$33:$B$57,2))","v":""},{"$f":"IF('Project Scope'!$C56=\"\",\"\",IF(COUNTIF('CBAT Lookups'!$B$5:$B$12,\"Controls-\"&CBAT!$D56)=1,VLOOKUP(\"Controls-\"&CBAT!$D56,'CBAT Lookups'!$B$5:$O$12,12),0))","v":""},{"$f":"IF('Project Scope'!$C56=\"\",\"\",IF(COUNTIF('CBAT Lookups'!$B$5:$B$12,\"Controls-\"&CBAT!$D56)=1,VLOOKUP(\"Controls-\"&CBAT!$D56,'CBAT Lookups'!$B$5:$O$12,13),0))","v":""},{"$f":"IF('Project Scope'!$C56=\"\",\"\",IF(COUNTIF('CBAT Lookups'!$B$5:$B$12,\"Controls-\"&CBAT!$D56)=1,VLOOKUP(\"Controls-\"&CBAT!$D56,'CBAT Lookups'!$B$5:$O$12,14),0))","v":""},{"$f":"IF('Project Scope'!$C56=\"\",\"\",'TRM Data'!$U$3)","v":""},{"$f":"IF('Project Scope'!$C56=\"\",\"\",'TRM Data'!$V$3)","v":""},{"$f":"IF('Project Scope'!$C56=\"\",\"\",IF($K56<=0,0,MAX(0,(IF(AND($I56>0,$J56>0),($I56*$J56)/1000,($G56*$H56)/1000)*$L56))*$BT56*$BR56)+($CD56/0.003412))","v":""},{"$f":"IF('Project Scope'!$C56=\"\",\"\",IF($K56<=0,0,MAX(0,IF(AND($I56>0,$J56>0),($I56*$J56)/1000,($G56*$H56)/1000))*$BQ56))","v":""},{"$f":"IF('Project Scope'!$C56=\"\",\"\",IF($K56<=0,0,MAX(0,IF(AND($I56>0,$J56>0),($I56*$J56)/1000,($G56*$H56)/1000))*$BK56))","v":""},{"$f":"IF('Project Scope'!$C56=\"\",\"\",IF($K56<=0,0,MAX(0,IF(AND($I56>0,$J56>0),($I56*$J56)/1000,($G56*$H56)/1000))*$BL56*$BQ56))","v":""},{"$f":"IF('Project Scope'!$C56=\"\",\"\",IF(OR($K56<=0,'Project Information'!$D$44=\"\"),0,-1*MAX(0,IF(AND($I56>0,$J56>0),($I56*$J56)/1000,($G56*$H56)/1000))*$BT56*$L56*$BS56*VLOOKUP('Project Information'!$D$44,'CBAT Lookups'!$A$23:$H$30,2)))","v":""},{"$f":"IF('Project Scope'!$C56=\"\",\"\",IF(OR($K56<=0,'Project Information'!$D$44=\"\"),0,-1*MAX(0,IF(AND($I56>0,$J56>0),($I56*$J56)/1000,($G56*$H56)/1000))*$BT56*$L56*$BS56*VLOOKUP('Project Information'!$D$44,'CBAT Lookups'!$A$23:$H$30,3)))","v":""},{"$f":"IF('Project Scope'!$C56=\"\",\"\",IF(OR($K56<=0,'Project Information'!$D$44=\"\"),0,-1*MAX(0,IF(AND($I56>0,$J56>0),($I56*$J56)/1000,($G56*$H56)/1000))*$BT56*$L56*$BS56*VLOOKUP('Project Information'!$D$44,'CBAT Lookups'!$A$23:$H$30,4)))","v":""},{"$f":"IF('Project Scope'!$C56=\"\",\"\",IF(OR($K56<=0,'Project Information'!$D$44=\"\"),0,-1*MAX(0,IF(AND($I56>0,$J56>0),($I56*$J56)/1000,($G56*$H56)/1000))*$BT56*$L56*$BS56*VLOOKUP('Project Information'!$D$44,'CBAT Lookups'!$A$23:$H$30,5)))","v":""},{"$f":"IF('Project Scope'!$C56=\"\",\"\",IF(OR($K56<=0,'Project Information'!$D$44=\"\"),0,-1*MAX(0,IF(AND($I56>0,$J56>0),($I56*$J56)/1000,($G56*$H56)/1000))*$BT56*$L56*$BS56*VLOOKUP('Project Information'!$D$44,'CBAT Lookups'!$A$23:$H$30,6)))","v":""},{"$f":"IF('Project Scope'!$C56=\"\",\"\",IF(OR($K56<=0,'Project Information'!$D$44=\"\"),0,-1*MAX(0,IF(AND($I56>0,$J56>0),($I56*$J56)/1000,($G56*$H56)/1000))*$BT56*$L56*$BS56*VLOOKUP('Project Information'!$D$44,'CBAT Lookups'!$A$23:$H$30,7)))","v":""},{"$f":"IF('Project Scope'!$C56=\"\",\"\",IF(OR($K56<=0,'Project Information'!$D$44=\"\"),0,-1*MAX(0,IF(AND($I56>0,$J56>0),($I56*$J56)/1000,($G56*$H56)/1000))*$BT56*$L56*$BS56*VLOOKUP('Project Information'!$D$44,'CBAT Lookups'!$A$23:$H$30,8)))","v":""},null,{"$f":"IF('Project Scope'!$C56=\"\",\"\",VLOOKUP($F56,'CBAT Lookups'!$B$17:$K$19,4))","v":""},{"$f":"IF('Project Scope'!$C56=\"\",\"\",VLOOKUP($F56,'CBAT Lookups'!$B$17:$K$19,5))","v":""},{"$f":"IF('Project Scope'!$C56=\"\",\"\",VLOOKUP($F56,'CBAT Lookups'!$B$17:$K$19,6))","v":""},{"$f":"IF('Project Scope'!$C56=\"\",\"\",VLOOKUP($F56,'CBAT Lookups'!$B$17:$K$19,7))","v":""},{"$f":"IF('Project Scope'!$C56=\"\",\"\",IF(SUMPRODUCT($BM56:$BP56,$CL56:$CO56)=0,0,BM56*CL56/SUMPRODUCT($BM56:$BP56,$CL56:$CO56)))","v":""},{"$f":"IF('Project Scope'!$C56=\"\",\"\",IF(SUMPRODUCT($BM56:$BP56,$CL56:$CO56)=0,0,BN56*CM56/SUMPRODUCT($BM56:$BP56,$CL56:$CO56)))","v":""},{"$f":"IF('Project Scope'!$C56=\"\",\"\",IF(SUMPRODUCT($BM56:$BP56,$CL56:$CO56)=0,0,BO56*CN56/SUMPRODUCT($BM56:$BP56,$CL56:$CO56)))","v":""},{"$f":"IF('Project Scope'!$C56=\"\",\"\",IF(SUMPRODUCT($BM56:$BP56,$CL56:$CO56)=0,0,BP56*CO56/SUMPRODUCT($BM56:$BP56,$CL56:$CO56)))","v":""},{"$f":"IF('Project Scope'!$C56=\"\",\"\",Benefits($BZ56,$CB56,$CC56,$CE56,$CF56,$CG56,$CH56,$CI56,$CJ56,$CK56,$BJ56,$CP56,$CQ56,$CR56,$CS56,$BU56,$BV56,$BW56,$BX56,$BY56,$E56))","v":""},"","","","","","","","",null,{"$f":"IF('Project Scope'!$C56=\"\",\"\",SUM('Project Scope'!$BB56,'Project Scope'!$BC56))","v":""},{"$f":"IF('Project Scope'!$C56=\"\",\"\",SUM('Project Scope'!$BH56, 'Project Scope'!$AZ56,(IF(ISNUMBER('Project Scope'!$BA56),'Project Scope'!$BA56,0)*'Project Information'!$D$12)))","v":""},null,null,{"$f":"IF('Project Scope'!$C56=\"\",\"\",IF($J56<=0,0,(SUMPRODUCT($AV56:$BC56,--($AV56:$BC56>0))+$BE56)*$DK56/((-SUMPRODUCT($AV56:$BC56,--($AV56:$BC56<0))+$BG56+$BH56+$BI56)*$DK56)))","v":""},{"$f":"IF('Project Scope'!$C56=\"\",\"\",IF($K56<=0,0,(SUMPRODUCT($CT56:$DA56,--($CT56:$DA56>0))+$DC56)*$DK56/((-SUMPRODUCT($CT56:$DA56,--($CT56:$DA56<0))+$DE56+$DF56+$DG56)*$DK56)))","v":""},{"$f":"IF('Project Scope'!$C56=\"\",\"\",IF(AND($J56<=0,$K56<=0),0,(SUMPRODUCT($AV56:$BC56,--($AV56:$BC56>0))+$BE56+SUMPRODUCT($CT56:$DA56,--($CT56:$DA56>0))+$DC56)*$DK56/((-SUMPRODUCT($AV56:$BC56,--($AV56:$BC56<0))+$BG56+$BH56+$BI56-SUMPRODUCT($CT56:$DA56,--($CT56:$DA56<0))+$DE56+$DF56+$DG56)*$DK56)))","v":""},{"$f":"IF('Project Scope'!$C56=\"\",\"\",IF(NetOrGross=\"Net\",(1-Z56+AA56),1))","v":""}]
[{"$f":"'Project Scope'!$B57","v":50},{"$f":"IF('Project Scope'!$C57=\"\",\"\",'Project Scope'!$C57)","v":""},{"$f":"IF('Project Scope'!$C57=\"\",\"\",'Project Scope'!$H57)","v":""},{"$f":"IF(ISNUMBER(SEARCH(\"Bay\",'Project Scope'!$Q57)),\"Bay\",IF('Project Scope'!C57=\"\",\"\",'Project Scope'!E57))","v":""},{"$f":"IF('Project Scope'!$C57=\"\",\"\",\"Com\")","v":""},{"$f":"IF('Project Scope'!$C57=\"\",\"\",'Project Scope'!$L57)","v":""},{"$f":"IF('Project Scope'!$C57=\"\",\"\",IF('Project Scope'!$CJ57=\"\",0,'Project Scope'!$CJ57))","v":""},{"$f":"IF('Project Scope'!$C57=\"\",\"\",IF('Project Scope'!$N57=\"\",0,'Project Scope'!$N57))","v":""},{"$f":"IF('Project Scope'!$C57=\"\",\"\",IF('Project Scope'!$CK57=\"\",0,'Project Scope'!$CK57))","v":""},{"$f":"IF('Project Scope'!$C57=\"\",\"\",IF('Project Scope'!$AO57=\"\",0,'Project Scope'!$AO57))","v":""},{"$f":"IF('Project Scope'!$C57=\"\",\"\",IF('Project Scope'!$AX57=\"\",0,'Project Scope'!$AX57))","v":""},{"$f":"IF('Project Scope'!$C57=\"\",\"\",IF('Project Scope'!$M57=\"\",0,'Project Scope'!$M57))","v":""},{"$f":"IF('Project Scope'!$C57=\"\",\"\",IF(COUNTIF('CBAT Lookups'!$B$5:$B$12,\"Fixtures-\"&CBAT!$D57)=1,VLOOKUP(\"Fixtures-\"&CBAT!$D57,'CBAT Lookups'!$B$5:$L$12,11),0))","v":""},{"$f":"IF('Project Scope'!$C57=\"\",\"\",(IF(COUNTIF('CBAT Lookups'!$B$5:$B$12,\"Fixtures-\"&CBAT!$D57)=1,VLOOKUP(\"Fixtures-\"&CBAT!$D57,'CBAT Lookups'!$B$5:$K$12,2),0))*VLOOKUP($F57,'CBAT Lookups'!$B$17:$K$19,2))","v":""},{"$f":"IF('Project Scope'!$C57=\"\",\"\",(IF(COUNTIF('CBAT Lookups'!$B$5:$B$12,\"Fixtures-\"&CBAT!$D57)=1,VLOOKUP(\"Fixtures-\"&CBAT!$D57,'CBAT Lookups'!$B$5:$K$12,3),0))*VLOOKUP($F57,'CBAT Lookups'!$B$17:$K$19,3))","v":""},{"$f":"IF('Project Scope'!$C57=\"\",\"\",(IF(COUNTIF('CBAT Lookups'!$B$5:$B$12,\"Fixtures-\"&CBAT!$D57)=1,VLOOKUP(\"Fixtures-\"&CBAT!$D57,'CBAT Lookups'!$B$5:$K$12,4),0)))","v":""},{"$f":"IF('Project Scope'!$C57=\"\",\"\",(IF(COUNTIF('CBAT Lookups'!$B$5:$B$12,\"Fixtures-\"&CBAT!$D57)=1,VLOOKUP(\"Fixtures-\"&CBAT!$D57,'CBAT Lookups'!$B$5:$K$12,5),0)))","v":""},{"$f":"IF('Project Scope'!$C57=\"\",\"\",(IF(COUNTIF('CBAT Lookups'!$B$5:$B$12,\"Fixtures-\"&CBAT!$D57)=1,VLOOKUP(\"Fixtures-\"&CBAT!$D57,'CBAT Lookups'!$B$5:$K$12,6),0)))","v":""},{"$f":"IF('Project Scope'!$C57=\"\",\"\",IF(COUNTIF('CBAT Lookups'!$B$5:$B$12,\"Fixtures-\"&CBAT!$D57)=1,VLOOKUP(\"Fixtures-\"&CBAT!$D57,'CBAT Lookups'!$B$5:$K$12,7),0))","v":""},{"$f":"IF('Project Scope'!$C57=\"\",\"\",IF(VLOOKUP($F57,'CBAT Lookups'!$B$17:$K$19,8)=\"W\",1,IF(COUNTIF('CBAT Lookups'!$B$5:$B$12,\"Fixtures-\"&CBAT!$D57)=1,VLOOKUP(\"Fixtures-\"&CBAT!$D57,'CBAT Lookups'!$B$5:$K$12,8),0)*VLOOKUP($F57,'CBAT Lookups'!$B$17:$K$19,8)))","v":""},{"$f":"IF('Project Scope'!$C57=\"\",\"\",IF(VLOOKUP($F57,'CBAT Lookups'!$B$17:$K$19,9)=\"W\",1,IF(COUNTIF('CBAT Lookups'!$B$5:$B$12,\"Fixtures-\"&CBAT!$D57)=1,VLOOKUP(\"Fixtures-\"&CBAT!$D57,'CBAT Lookups'!$B$5:$K$12,9),0)*VLOOKUP($F57,'CBAT Lookups'!$B$17:$K$19,9)))","v":""},{"$f":"IF('Project Scope'!$C57=\"\",\"\",IF(COUNTIF('CBAT Lookups'!$B$5:$B$12,\"Fixtures-\"&CBAT!$D57)=1,VLOOKUP(\"Fixtures-\"&CBAT!$D57,'CBAT Lookups'!$B$5:$K$12,10),0)*VLOOKUP($F57,'CBAT Lookups'!$B$17:$K$19,10))","v":""},{"$f":"IF('Project Scope'!$C57=\"\",\"\",IF(COUNTIF('CBAT Lookups'!$B$5:$B$12,\"Fixtures-\"&CBAT!$D57)=1,VLOOKUP(\"Fixtures-\"&CBAT!$D57,'CBAT Lookups'!$B$5:$O$12,12),0))","v":""},{"$f":"IF('Project Scope'!$C57=\"\",\"\",IF(COUNTIF('CBAT Lookups'!$B$5:$B$12,\"Fixtures-\"&CBAT!$D57)=1,VLOOKUP(\"Fixtures-\"&CBAT!$D57,'CBAT Lookups'!$B$5:$O$12,13),0))","v":""},{"$f":"IF('Project Scope'!$C57=\"\",\"\",IF(COUNTIF('CBAT Lookups'!$B$5:$B$12,\"Fixtures-\"&CBAT!$D57)=1,VLOOKUP(\"Fixtures-\"&CBAT!$D57,'CBAT Lookups'!$B$5:$O$12,14),0))","v":""},{"$f":"IF('Project Scope'!$C57=\"\",\"\",'TRM Data'!$U$3)","v":""},{"$f":"IF('Project Scope'!$C57=\"\",\"\",'TRM Data'!$V$3)","v":""},{"$f":"IF('Project Scope'!$C57=\"\",\"\",IF($J57<=0,0,MAX(0,(($G57*$H57/1000)-($I57*$J57/1000))*$L57)*$U57)+($AF57/0.003412))","v":""},{"$f":"IF('Project Scope'!$C57=\"\",\"\",IF($J57<=0,0,MAX(0,(($G57*$H57/1000)-($I57*$J57/1000)))*$T57))","v":""},{"$f":"IF('Project Scope'!$C57=\"\",\"\",IF($J57<=0,0,MAX(0,(($G57*$H57/1000)-($I57*$J57/1000))*$N57)))","v":""},{"$f":"IF('Project Scope'!$C57=\"\",\"\",IF($J57<=0,0,MAX(0,(($G57*$H57/1000)-($I57*$J57/1000))*$O57)*$T57))","v":""},{"$f":"IF('Project Scope'!$C57=\"\",\"\",IF(OR($J57<=0,'Project Information'!$D$44=\"\"),0,-1*MAX(0,(($G57*$H57/1000)-($I57*$J57/1000))*$L57)*$V57*VLOOKUP('Project Information'!$D$44,'CBAT Lookups'!$A$23:$H$30,2)))","v":""},{"$f":"IF('Project Scope'!$C57=\"\",\"\",IF(OR($J57<=0,'Project Information'!$D$44=\"\"),0,-1*MAX(0,(($G57*$H57/1000)-($I57*$J57/1000))*$L57)*$V57*VLOOKUP('Project Information'!$D$44,'CBAT Lookups'!$A$23:$H$30,3)))","v":""},{"$f":"IF('Project Scope'!$C57=\"\",\"\",IF(OR($J57<=0,'Project Information'!$D$44=\"\"),0,-1*MAX(0,(($G57*$H57/1000)-($I57*$J57/1000))*$L57)*$V57*VLOOKUP('Project Information'!$D$44,'CBAT Lookups'!$A$23:$H$30,4)))","v":""},{"$f":"IF('Project Scope'!$C57=\"\",\"\",IF(OR($J57<=0,'Project Information'!$D$44=\"\"),0,-1*MAX(0,(($G57*$H57/1000)-($I57*$J57/1000))*$L57)*$V57*VLOOKUP('Project Information'!$D$44,'CBAT Lookups'!$A$23:$H$30,5)))","v":""},{"$f":"IF('Project Scope'!$C57=\"\",\"\",IF(OR($J57<=0,'Project Information'!$D$44=\"\"),0,-1*MAX(0,(($G57*$H57/1000)-($I57*$J57/1000))*$L57)*$V57*VLOOKUP('Project Information'!$D$44,'CBAT Lookups'!$A$23:$H$30,6)))","v":""},{"$f":"IF('Project Scope'!$C57=\"\",\"\",IF(OR($J57<=0,'Project Information'!$D$44=\"\"),0,-1*MAX(0,(($G57*$H57/1000)-($I57*$J57/1000))*$L57)*$V57*VLOOKUP('Project Information'!$D$44,'CBAT Lookups'!$A$23:$H$30,7)))","v":""},{"$f":"IF('Project Scope'!$C57=\"\",\"\",IF(OR($J57<=0,'Project Information'!$D$44=\"\"),0,-1*MAX(0,(($G57*$H57/1000)-($I57*$J57/1000))*$L57)*$V57*VLOOKUP('Project Information'!$D$44,'CBAT Lookups'!$A$23:$H$30,8)))","v":""},null,{"$f":"IF('Project Scope'!$C57=\"\",\"\",VLOOKUP($F57,'CBAT Lookups'!$B$17:$K$19,4))","v":""},{"$f":"IF('Project Scope'!$C57=\"\",\"\",VLOOKUP($F57,'CBAT Lookups'!$B$17:$K$19,5))","v":""},{"$f":"IF('Project Scope'!$C57=\"\",\"\",VLOOKUP($F57,'CBAT Lookups'!$B$17:$K$19,6))","v":""},{"$f":"IF('Project Scope'!$C57=\"\",\"\",VLOOKUP($F57,'CBAT Lookups'!$B$17:$K$19,7))","v":""},{"$f":"IF('Project Scope'!$C57=\"\",\"\",IF(SUMPRODUCT($P57:$S57,$AN57:$AQ57)=0,0,P57*AN57/SUMPRODUCT($P57:$S57,$AN57:$AQ57)))","v":""},{"$f":"IF('Project Scope'!$C57=\"\",\"\",IF(SUMPRODUCT($P57:$S57,$AN57:$AQ57)=0,0,Q57*AO57/SUMPRODUCT($P57:$S57,$AN57:$AQ57)))","v":""},{"$f":"IF('Project Scope'!$C57=\"\",\"\",IF(SUMPRODUCT($P57:$S57,$AN57:$AQ57)=0,0,R57*AP57/SUMPRODUCT($P57:$S57,$AN57:$AQ57)))","v":""},{"$f":"IF('Project Scope'!$C57=\"\",\"\",IF(SUMPRODUCT($P57:$S57,$AN57:$AQ57)=0,0,S57*AQ57/SUMPRODUCT($P57:$S57,$AN57:$AQ57)))","v":""},{"$f":"IF('Project Scope'!$C57=\"\",\"\",Benefits($AB57,$AD57,$AE57,$AG57,$AH57,$AI57,$AJ57,$AK57,$AL57,$AM57,$M57,$AR57,$AS57,$AT57,$AU57,$W57,$X57,$Y57,$Z57,$AA57,$E57))","v":""},"","","","","","","","",null,{"$f":"IF('Project Scope'!$C57=\"\",\"\",SUM('Project Scope'!$AT57,'Project Scope'!$AU57))","v":""},{"$f":"IF('Project Scope'!$C57=\"\",\"\",SUM('Project Scope'!$BG57, 'Project Scope'!$AR57,(IF(ISNUMBER('Project Scope'!$AS57),'Project Scope'!$AS57,0)*'Project Information'!$D$12)))","v":""},null,null,{"$f":"IF('Project Scope'!$C57=\"\",\"\",IF(COUNTIF('CBAT Lookups'!$B$5:$B$12,\"Controls-\"&CBAT!$D57)=1,VLOOKUP(\"Controls-\"&CBAT!$D57,'CBAT Lookups'!$B$5:$L$12,11),0))","v":""},{"$f":"IF('Project Scope'!$C57=\"\",\"\",IF(COUNTIF('CBAT Lookups'!$B$5:$B$12,\"Controls-\"&CBAT!$D57)=1,VLOOKUP(\"Controls-\"&CBAT!$D57,'CBAT Lookups'!$B$5:$K$12,2),0)*VLOOKUP($F57,'CBAT Lookups'!$B$17:$K$19,2))","v":""},{"$f":"IF('Project Scope'!$C57=\"\",\"\",IF(COUNTIF('CBAT Lookups'!$B$5:$B$12,\"Controls-\"&CBAT!$D57)=1,VLOOKUP(\"Controls-\"&CBAT!$D57,'CBAT Lookups'!$B$5:$K$12,3),0)*VLOOKUP($F57,'CBAT Lookups'!$B$17:$K$19,3))","v":""},{"$f":"IF('Project Scope'!$C57=\"\",\"\",IF(COUNTIF('CBAT Lookups'!$B$5:$B$12,\"Controls-\"&CBAT!$D57)=1,VLOOKUP(\"Controls-\"&CBAT!$D57,'CBAT Lookups'!$B$5:$K$12,4),0))","v":""},{"$f":"IF('Project Scope'!$C57=\"\",\"\",IF(COUNTIF('CBAT Lookups'!$B$5:$B$12,\"Controls-\"&CBAT!$D57)=1,VLOOKUP(\"Controls-\"&CBAT!$D57,'CBAT Lookups'!$B$5:$K$12,5),0))","v":""},{"$f":"IF('Project Scope'!$C57=\"\",\"\",IF(COUNTIF('CBAT Lookups'!$B$5:$B$12,\"Controls-\"&CBAT!$D57)=1,VLOOKUP(\"Controls-\"&CBAT!$D57,'CBAT Lookups'!$B$5:$K$12,6),0))","v":""},{"$f":"IF('Project Scope'!$C57=\"\",\"\",IF(COUNTIF('CBAT Lookups'!$B$5:$B$12,\"Controls-\"&CBAT!$D57)=1,VLOOKUP(\"Controls-\"&CBAT!$D57,'CBAT Lookups'!$B$5:$K$12,7),0))","v":""},{"$f":"IF('Project Scope'!$C57=\"\",\"\",IF(VLOOKUP($F57,'CBAT Lookups'!$B$17:$K$19,8)=\"W\",1,IF(COUNTIF('CBAT Lookups'!$B$5:$B$12,\"Controls-\"&CBAT!$D57)=1,VLOOKUP(\"Controls-\"&CBAT!$D57,'CBAT Lookups'!$B$5:$K$12,8),0)*VLOOKUP($F57,'CBAT Lookups'!$B$17:$K$19,8)))","v":""},{"$f":"IF('Project Scope'!$C57=\"\",\"\",IF(VLOOKUP($F57,'CBAT Lookups'!$B$17:$K$19,9)=\"W\",1,IF(COUNTIF('CBAT Lookups'!$B$5:$B$12,\"Controls-\"&CBAT!$D57)=1,VLOOKUP(\"Controls-\"&CBAT!$D57,'CBAT Lookups'!$B$5:$K$12,9),0)*VLOOKUP($F57,'CBAT Lookups'!$B$17:$K$19,9)))","v":""},{"$f":"IF('Project Scope'!$C57=\"\",\"\",IF(COUNTIF('CBAT Lookups'!$B$5:$B$12,\"Controls-\"&CBAT!$D57)=1,VLOOKUP(\"Controls-\"&CBAT!$D57,'CBAT Lookups'!$B$5:$K$12,10),0)*VLOOKUP($F57,'CBAT Lookups'!$B$17:$K$19,10))","v":""},{"$f":"IF('Project Scope'!$C57=\"\",\"\",VLOOKUP($C57,'CBAT Lookups'!$A$33:$B$57,2))","v":""},{"$f":"IF('Project Scope'!$C57=\"\",\"\",IF(COUNTIF('CBAT Lookups'!$B$5:$B$12,\"Controls-\"&CBAT!$D57)=1,VLOOKUP(\"Controls-\"&CBAT!$D57,'CBAT Lookups'!$B$5:$O$12,12),0))","v":""},{"$f":"IF('Project Scope'!$C57=\"\",\"\",IF(COUNTIF('CBAT Lookups'!$B$5:$B$12,\"Controls-\"&CBAT!$D57)=1,VLOOKUP(\"Controls-\"&CBAT!$D57,'CBAT Lookups'!$B$5:$O$12,13),0))","v":""},{"$f":"IF('Project Scope'!$C57=\"\",\"\",IF(COUNTIF('CBAT Lookups'!$B$5:$B$12,\"Controls-\"&CBAT!$D57)=1,VLOOKUP(\"Controls-\"&CBAT!$D57,'CBAT Lookups'!$B$5:$O$12,14),0))","v":""},{"$f":"IF('Project Scope'!$C57=\"\",\"\",'TRM Data'!$U$3)","v":""},{"$f":"IF('Project Scope'!$C57=\"\",\"\",'TRM Data'!$V$3)","v":""},{"$f":"IF('Project Scope'!$C57=\"\",\"\",IF($K57<=0,0,MAX(0,(IF(AND($I57>0,$J57>0),($I57*$J57)/1000,($G57*$H57)/1000)*$L57))*$BT57*$BR57)+($CD57/0.003412))","v":""},{"$f":"IF('Project Scope'!$C57=\"\",\"\",IF($K57<=0,0,MAX(0,IF(AND($I57>0,$J57>0),($I57*$J57)/1000,($G57*$H57)/1000))*$BQ57))","v":""},{"$f":"IF('Project Scope'!$C57=\"\",\"\",IF($K57<=0,0,MAX(0,IF(AND($I57>0,$J57>0),($I57*$J57)/1000,($G57*$H57)/1000))*$BK57))","v":""},{"$f":"IF('Project Scope'!$C57=\"\",\"\",IF($K57<=0,0,MAX(0,IF(AND($I57>0,$J57>0),($I57*$J57)/1000,($G57*$H57)/1000))*$BL57*$BQ57))","v":""},{"$f":"IF('Project Scope'!$C57=\"\",\"\",IF(OR($K57<=0,'Project Information'!$D$44=\"\"),0,-1*MAX(0,IF(AND($I57>0,$J57>0),($I57*$J57)/1000,($G57*$H57)/1000))*$BT57*$L57*$BS57*VLOOKUP('Project Information'!$D$44,'CBAT Lookups'!$A$23:$H$30,2)))","v":""},{"$f":"IF('Project Scope'!$C57=\"\",\"\",IF(OR($K57<=0,'Project Information'!$D$44=\"\"),0,-1*MAX(0,IF(AND($I57>0,$J57>0),($I57*$J57)/1000,($G57*$H57)/1000))*$BT57*$L57*$BS57*VLOOKUP('Project Information'!$D$44,'CBAT Lookups'!$A$23:$H$30,3)))","v":""},{"$f":"IF('Project Scope'!$C57=\"\",\"\",IF(OR($K57<=0,'Project Information'!$D$44=\"\"),0,-1*MAX(0,IF(AND($I57>0,$J57>0),($I57*$J57)/1000,($G57*$H57)/1000))*$BT57*$L57*$BS57*VLOOKUP('Project Information'!$D$44,'CBAT Lookups'!$A$23:$H$30,4)))","v":""},{"$f":"IF('Project Scope'!$C57=\"\",\"\",IF(OR($K57<=0,'Project Information'!$D$44=\"\"),0,-1*MAX(0,IF(AND($I57>0,$J57>0),($I57*$J57)/1000,($G57*$H57)/1000))*$BT57*$L57*$BS57*VLOOKUP('Project Information'!$D$44,'CBAT Lookups'!$A$23:$H$30,5)))","v":""},{"$f":"IF('Project Scope'!$C57=\"\",\"\",IF(OR($K57<=0,'Project Information'!$D$44=\"\"),0,-1*MAX(0,IF(AND($I57>0,$J57>0),($I57*$J57)/1000,($G57*$H57)/1000))*$BT57*$L57*$BS57*VLOOKUP('Project Information'!$D$44,'CBAT Lookups'!$A$23:$H$30,6)))","v":""},{"$f":"IF('Project Scope'!$C57=\"\",\"\",IF(OR($K57<=0,'Project Information'!$D$44=\"\"),0,-1*MAX(0,IF(AND($I57>0,$J57>0),($I57*$J57)/1000,($G57*$H57)/1000))*$BT57*$L57*$BS57*VLOOKUP('Project Information'!$D$44,'CBAT Lookups'!$A$23:$H$30,7)))","v":""},{"$f":"IF('Project Scope'!$C57=\"\",\"\",IF(OR($K57<=0,'Project Information'!$D$44=\"\"),0,-1*MAX(0,IF(AND($I57>0,$J57>0),($I57*$J57)/1000,($G57*$H57)/1000))*$BT57*$L57*$BS57*VLOOKUP('Project Information'!$D$44,'CBAT Lookups'!$A$23:$H$30,8)))","v":""},null,{"$f":"IF('Project Scope'!$C57=\"\",\"\",VLOOKUP($F57,'CBAT Lookups'!$B$17:$K$19,4))","v":""},{"$f":"IF('Project Scope'!$C57=\"\",\"\",VLOOKUP($F57,'CBAT Lookups'!$B$17:$K$19,5))","v":""},{"$f":"IF('Project Scope'!$C57=\"\",\"\",VLOOKUP($F57,'CBAT Lookups'!$B$17:$K$19,6))","v":""},{"$f":"IF('Project Scope'!$C57=\"\",\"\",VLOOKUP($F57,'CBAT Lookups'!$B$17:$K$19,7))","v":""},{"$f":"IF('Project Scope'!$C57=\"\",\"\",IF(SUMPRODUCT($BM57:$BP57,$CL57:$CO57)=0,0,BM57*CL57/SUMPRODUCT($BM57:$BP57,$CL57:$CO57)))","v":""},{"$f":"IF('Project Scope'!$C57=\"\",\"\",IF(SUMPRODUCT($BM57:$BP57,$CL57:$CO57)=0,0,BN57*CM57/SUMPRODUCT($BM57:$BP57,$CL57:$CO57)))","v":""},{"$f":"IF('Project Scope'!$C57=\"\",\"\",IF(SUMPRODUCT($BM57:$BP57,$CL57:$CO57)=0,0,BO57*CN57/SUMPRODUCT($BM57:$BP57,$CL57:$CO57)))","v":""},{"$f":"IF('Project Scope'!$C57=\"\",\"\",IF(SUMPRODUCT($BM57:$BP57,$CL57:$CO57)=0,0,BP57*CO57/SUMPRODUCT($BM57:$BP57,$CL57:$CO57)))","v":""},{"$f":"IF('Project Scope'!$C57=\"\",\"\",Benefits($BZ57,$CB57,$CC57,$CE57,$CF57,$CG57,$CH57,$CI57,$CJ57,$CK57,$BJ57,$CP57,$CQ57,$CR57,$CS57,$BU57,$BV57,$BW57,$BX57,$BY57,$E57))","v":""},"","","","","","","","",null,{"$f":"IF('Project Scope'!$C57=\"\",\"\",SUM('Project Scope'!$BB57,'Project Scope'!$BC57))","v":""},{"$f":"IF('Project Scope'!$C57=\"\",\"\",SUM('Project Scope'!$BH57, 'Project Scope'!$AZ57,(IF(ISNUMBER('Project Scope'!$BA57),'Project Scope'!$BA57,0)*'Project Information'!$D$12)))","v":""},null,null,{"$f":"IF('Project Scope'!$C57=\"\",\"\",IF($J57<=0,0,(SUMPRODUCT($AV57:$BC57,--($AV57:$BC57>0))+$BE57)*$DK57/((-SUMPRODUCT($AV57:$BC57,--($AV57:$BC57<0))+$BG57+$BH57+$BI57)*$DK57)))","v":""},{"$f":"IF('Project Scope'!$C57=\"\",\"\",IF($K57<=0,0,(SUMPRODUCT($CT57:$DA57,--($CT57:$DA57>0))+$DC57)*$DK57/((-SUMPRODUCT($CT57:$DA57,--($CT57:$DA57<0))+$DE57+$DF57+$DG57)*$DK57)))","v":""},{"$f":"IF('Project Scope'!$C57=\"\",\"\",IF(AND($J57<=0,$K57<=0),0,(SUMPRODUCT($AV57:$BC57,--($AV57:$BC57>0))+$BE57+SUMPRODUCT($CT57:$DA57,--($CT57:$DA57>0))+$DC57)*$DK57/((-SUMPRODUCT($AV57:$BC57,--($AV57:$BC57<0))+$BG57+$BH57+$BI57-SUMPRODUCT($CT57:$DA57,--($CT57:$DA57<0))+$DE57+$DF57+$DG57)*$DK57)))","v":""},{"$f":"IF('Project Scope'!$C57=\"\",\"\",IF(NetOrGross=\"Net\",(1-Z57+AA57),1))","v":""}]
[{"$f":"'Project Scope'!$B58","v":51},{"$f":"IF('Project Scope'!$C58=\"\",\"\",'Project Scope'!$C58)","v":""},{"$f":"IF('Project Scope'!$C58=\"\",\"\",'Project Scope'!$H58)","v":""},{"$f":"IF(ISNUMBER(SEARCH(\"Bay\",'Project Scope'!$Q58)),\"Bay\",IF('Project Scope'!C58=\"\",\"\",'Project Scope'!E58))","v":""},{"$f":"IF('Project Scope'!$C58=\"\",\"\",\"Com\")","v":""},{"$f":"IF('Project Scope'!$C58=\"\",\"\",'Project Scope'!$L58)","v":""},{"$f":"IF('Project Scope'!$C58=\"\",\"\",IF('Project Scope'!$CJ58=\"\",0,'Project Scope'!$CJ58))","v":""},{"$f":"IF('Project Scope'!$C58=\"\",\"\",IF('Project Scope'!$N58=\"\",0,'Project Scope'!$N58))","v":""},{"$f":"IF('Project Scope'!$C58=\"\",\"\",IF('Project Scope'!$CK58=\"\",0,'Project Scope'!$CK58))","v":""},{"$f":"IF('Project Scope'!$C58=\"\",\"\",IF('Project Scope'!$AO58=\"\",0,'Project Scope'!$AO58))","v":""},{"$f":"IF('Project Scope'!$C58=\"\",\"\",IF('Project Scope'!$AX58=\"\",0,'Project Scope'!$AX58))","v":""},{"$f":"IF('Project Scope'!$C58=\"\",\"\",IF('Project Scope'!$M58=\"\",0,'Project Scope'!$M58))","v":""},{"$f":"IF('Project Scope'!$C58=\"\",\"\",IF(COUNTIF('CBAT Lookups'!$B$5:$B$12,\"Fixtures-\"&CBAT!$D58)=1,VLOOKUP(\"Fixtures-\"&CBAT!$D58,'CBAT Lookups'!$B$5:$L$12,11),0))","v":""},{"$f":"IF('Project Scope'!$C58=\"\",\"\",(IF(COUNTIF('CBAT Lookups'!$B$5:$B$12,\"Fixtures-\"&CBAT!$D58)=1,VLOOKUP(\"Fixtures-\"&CBAT!$D58,'CBAT Lookups'!$B$5:$K$12,2),0))*VLOOKUP($F58,'CBAT Lookups'!$B$17:$K$19,2))","v":""},{"$f":"IF('Project Scope'!$C58=\"\",\"\",(IF(COUNTIF('CBAT Lookups'!$B$5:$B$12,\"Fixtures-\"&CBAT!$D58)=1,VLOOKUP(\"Fixtures-\"&CBAT!$D58,'CBAT Lookups'!$B$5:$K$12,3),0))*VLOOKUP($F58,'CBAT Lookups'!$B$17:$K$19,3))","v":""},{"$f":"IF('Project Scope'!$C58=\"\",\"\",(IF(COUNTIF('CBAT Lookups'!$B$5:$B$12,\"Fixtures-\"&CBAT!$D58)=1,VLOOKUP(\"Fixtures-\"&CBAT!$D58,'CBAT Lookups'!$B$5:$K$12,4),0)))","v":""},{"$f":"IF('Project Scope'!$C58=\"\",\"\",(IF(COUNTIF('CBAT Lookups'!$B$5:$B$12,\"Fixtures-\"&CBAT!$D58)=1,VLOOKUP(\"Fixtures-\"&CBAT!$D58,'CBAT Lookups'!$B$5:$K$12,5),0)))","v":""},{"$f":"IF('Project Scope'!$C58=\"\",\"\",(IF(COUNTIF('CBAT Lookups'!$B$5:$B$12,\"Fixtures-\"&CBAT!$D58)=1,VLOOKUP(\"Fixtures-\"&CBAT!$D58,'CBAT Lookups'!$B$5:$K$12,6),0)))","v":""},{"$f":"IF('Project Scope'!$C58=\"\",\"\",IF(COUNTIF('CBAT Lookups'!$B$5:$B$12,\"Fixtures-\"&CBAT!$D58)=1,VLOOKUP(\"Fixtures-\"&CBAT!$D58,'CBAT Lookups'!$B$5:$K$12,7),0))","v":""},{"$f":"IF('Project Scope'!$C58=\"\",\"\",IF(VLOOKUP($F58,'CBAT Lookups'!$B$17:$K$19,8)=\"W\",1,IF(COUNTIF('CBAT Lookups'!$B$5:$B$12,\"Fixtures-\"&CBAT!$D58)=1,VLOOKUP(\"Fixtures-\"&CBAT!$D58,'CBAT Lookups'!$B$5:$K$12,8),0)*VLOOKUP($F58,'CBAT Lookups'!$B$17:$K$19,8)))","v":""},{"$f":"IF('Project Scope'!$C58=\"\",\"\",IF(VLOOKUP($F58,'CBAT Lookups'!$B$17:$K$19,9)=\"W\",1,IF(COUNTIF('CBAT Lookups'!$B$5:$B$12,\"Fixtures-\"&CBAT!$D58)=1,VLOOKUP(\"Fixtures-\"&CBAT!$D58,'CBAT Lookups'!$B$5:$K$12,9),0)*VLOOKUP($F58,'CBAT Lookups'!$B$17:$K$19,9)))","v":""},{"$f":"IF('Project Scope'!$C58=\"\",\"\",IF(COUNTIF('CBAT Lookups'!$B$5:$B$12,\"Fixtures-\"&CBAT!$D58)=1,VLOOKUP(\"Fixtures-\"&CBAT!$D58,'CBAT Lookups'!$B$5:$K$12,10),0)*VLOOKUP($F58,'CBAT Lookups'!$B$17:$K$19,10))","v":""},{"$f":"IF('Project Scope'!$C58=\"\",\"\",IF(COUNTIF('CBAT Lookups'!$B$5:$B$12,\"Fixtures-\"&CBAT!$D58)=1,VLOOKUP(\"Fixtures-\"&CBAT!$D58,'CBAT Lookups'!$B$5:$O$12,12),0))","v":""},{"$f":"IF('Project Scope'!$C58=\"\",\"\",IF(COUNTIF('CBAT Lookups'!$B$5:$B$12,\"Fixtures-\"&CBAT!$D58)=1,VLOOKUP(\"Fixtures-\"&CBAT!$D58,'CBAT Lookups'!$B$5:$O$12,13),0))","v":""},{"$f":"IF('Project Scope'!$C58=\"\",\"\",IF(COUNTIF('CBAT Lookups'!$B$5:$B$12,\"Fixtures-\"&CBAT!$D58)=1,VLOOKUP(\"Fixtures-\"&CBAT!$D58,'CBAT Lookups'!$B$5:$O$12,14),0))","v":""},{"$f":"IF('Project Scope'!$C58=\"\",\"\",'TRM Data'!$U$3)","v":""},{"$f":"IF('Project Scope'!$C58=\"\",\"\",'TRM Data'!$V$3)","v":""},{"$f":"IF('Project Scope'!$C58=\"\",\"\",IF($J58<=0,0,MAX(0,(($G58*$H58/1000)-($I58*$J58/1000))*$L58)*$U58)+($AF58/0.003412))","v":""},{"$f":"IF('Project Scope'!$C58=\"\",\"\",IF($J58<=0,0,MAX(0,(($G58*$H58/1000)-($I58*$J58/1000)))*$T58))","v":""},{"$f":"IF('Project Scope'!$C58=\"\",\"\",IF($J58<=0,0,MAX(0,(($G58*$H58/1000)-($I58*$J58/1000))*$N58)))","v":""},{"$f":"IF('Project Scope'!$C58=\"\",\"\",IF($J58<=0,0,MAX(0,(($G58*$H58/1000)-($I58*$J58/1000))*$O58)*$T58))","v":""},{"$f":"IF('Project Scope'!$C58=\"\",\"\",IF(OR($J58<=0,'Project Information'!$D$44=\"\"),0,-1*MAX(0,(($G58*$H58/1000)-($I58*$J58/1000))*$L58)*$V58*VLOOKUP('Project Information'!$D$44,'CBAT Lookups'!$A$23:$H$30,2)))","v":""},{"$f":"IF('Project Scope'!$C58=\"\",\"\",IF(OR($J58<=0,'Project Information'!$D$44=\"\"),0,-1*MAX(0,(($G58*$H58/1000)-($I58*$J58/1000))*$L58)*$V58*VLOOKUP('Project Information'!$D$44,'CBAT Lookups'!$A$23:$H$30,3)))","v":""},{"$f":"IF('Project Scope'!$C58=\"\",\"\",IF(OR($J58<=0,'Project Information'!$D$44=\"\"),0,-1*MAX(0,(($G58*$H58/1000)-($I58*$J58/1000))*$L58)*$V58*VLOOKUP('Project Information'!$D$44,'CBAT Lookups'!$A$23:$H$30,4)))","v":""},{"$f":"IF('Project Scope'!$C58=\"\",\"\",IF(OR($J58<=0,'Project Information'!$D$44=\"\"),0,-1*MAX(0,(($G58*$H58/1000)-($I58*$J58/1000))*$L58)*$V58*VLOOKUP('Project Information'!$D$44,'CBAT Lookups'!$A$23:$H$30,5)))","v":""},{"$f":"IF('Project Scope'!$C58=\"\",\"\",IF(OR($J58<=0,'Project Information'!$D$44=\"\"),0,-1*MAX(0,(($G58*$H58/1000)-($I58*$J58/1000))*$L58)*$V58*VLOOKUP('Project Information'!$D$44,'CBAT Lookups'!$A$23:$H$30,6)))","v":""},{"$f":"IF('Project Scope'!$C58=\"\",\"\",IF(OR($J58<=0,'Project Information'!$D$44=\"\"),0,-1*MAX(0,(($G58*$H58/1000)-($I58*$J58/1000))*$L58)*$V58*VLOOKUP('Project Information'!$D$44,'CBAT Lookups'!$A$23:$H$30,7)))","v":""},{"$f":"IF('Project Scope'!$C58=\"\",\"\",IF(OR($J58<=0,'Project Information'!$D$44=\"\"),0,-1*MAX(0,(($G58*$H58/1000)-($I58*$J58/1000))*$L58)*$V58*VLOOKUP('Project Information'!$D$44,'CBAT Lookups'!$A$23:$H$30,8)))","v":""},null,{"$f":"IF('Project Scope'!$C58=\"\",\"\",VLOOKUP($F58,'CBAT Lookups'!$B$17:$K$19,4))","v":""},{"$f":"IF('Project Scope'!$C58=\"\",\"\",VLOOKUP($F58,'CBAT Lookups'!$B$17:$K$19,5))","v":""},{"$f":"IF('Project Scope'!$C58=\"\",\"\",VLOOKUP($F58,'CBAT Lookups'!$B$17:$K$19,6))","v":""},{"$f":"IF('Project Scope'!$C58=\"\",\"\",VLOOKUP($F58,'CBAT Lookups'!$B$17:$K$19,7))","v":""},{"$f":"IF('Project Scope'!$C58=\"\",\"\",IF(SUMPRODUCT($P58:$S58,$AN58:$AQ58)=0,0,P58*AN58/SUMPRODUCT($P58:$S58,$AN58:$AQ58)))","v":""},{"$f":"IF('Project Scope'!$C58=\"\",\"\",IF(SUMPRODUCT($P58:$S58,$AN58:$AQ58)=0,0,Q58*AO58/SUMPRODUCT($P58:$S58,$AN58:$AQ58)))","v":""},{"$f":"IF('Project Scope'!$C58=\"\",\"\",IF(SUMPRODUCT($P58:$S58,$AN58:$AQ58)=0,0,R58*AP58/SUMPRODUCT($P58:$S58,$AN58:$AQ58)))","v":""},{"$f":"IF('Project Scope'!$C58=\"\",\"\",IF(SUMPRODUCT($P58:$S58,$AN58:$AQ58)=0,0,S58*AQ58/SUMPRODUCT($P58:$S58,$AN58:$AQ58)))","v":""},{"$f":"IF('Project Scope'!$C58=\"\",\"\",Benefits($AB58,$AD58,$AE58,$AG58,$AH58,$AI58,$AJ58,$AK58,$AL58,$AM58,$M58,$AR58,$AS58,$AT58,$AU58,$W58,$X58,$Y58,$Z58,$AA58,$E58))","v":""},"","","","","","","","",null,{"$f":"IF('Project Scope'!$C58=\"\",\"\",SUM('Project Scope'!$AT58,'Project Scope'!$AU58))","v":""},{"$f":"IF('Project Scope'!$C58=\"\",\"\",SUM('Project Scope'!$BG58, 'Project Scope'!$AR58,(IF(ISNUMBER('Project Scope'!$AS58),'Project Scope'!$AS58,0)*'Project Information'!$D$12)))","v":""},null,null,{"$f":"IF('Project Scope'!$C58=\"\",\"\",IF(COUNTIF('CBAT Lookups'!$B$5:$B$12,\"Controls-\"&CBAT!$D58)=1,VLOOKUP(\"Controls-\"&CBAT!$D58,'CBAT Lookups'!$B$5:$L$12,11),0))","v":""},{"$f":"IF('Project Scope'!$C58=\"\",\"\",IF(COUNTIF('CBAT Lookups'!$B$5:$B$12,\"Controls-\"&CBAT!$D58)=1,VLOOKUP(\"Controls-\"&CBAT!$D58,'CBAT Lookups'!$B$5:$K$12,2),0)*VLOOKUP($F58,'CBAT Lookups'!$B$17:$K$19,2))","v":""},{"$f":"IF('Project Scope'!$C58=\"\",\"\",IF(COUNTIF('CBAT Lookups'!$B$5:$B$12,\"Controls-\"&CBAT!$D58)=1,VLOOKUP(\"Controls-\"&CBAT!$D58,'CBAT Lookups'!$B$5:$K$12,3),0)*VLOOKUP($F58,'CBAT Lookups'!$B$17:$K$19,3))","v":""},{"$f":"IF('Project Scope'!$C58=\"\",\"\",IF(COUNTIF('CBAT Lookups'!$B$5:$B$12,\"Controls-\"&CBAT!$D58)=1,VLOOKUP(\"Controls-\"&CBAT!$D58,'CBAT Lookups'!$B$5:$K$12,4),0))","v":""},{"$f":"IF('Project Scope'!$C58=\"\",\"\",IF(COUNTIF('CBAT Lookups'!$B$5:$B$12,\"Controls-\"&CBAT!$D58)=1,VLOOKUP(\"Controls-\"&CBAT!$D58,'CBAT Lookups'!$B$5:$K$12,5),0))","v":""},{"$f":"IF('Project Scope'!$C58=\"\",\"\",IF(COUNTIF('CBAT Lookups'!$B$5:$B$12,\"Controls-\"&CBAT!$D58)=1,VLOOKUP(\"Controls-\"&CBAT!$D58,'CBAT Lookups'!$B$5:$K$12,6),0))","v":""},{"$f":"IF('Project Scope'!$C58=\"\",\"\",IF(COUNTIF('CBAT Lookups'!$B$5:$B$12,\"Controls-\"&CBAT!$D58)=1,VLOOKUP(\"Controls-\"&CBAT!$D58,'CBAT Lookups'!$B$5:$K$12,7),0))","v":""},{"$f":"IF('Project Scope'!$C58=\"\",\"\",IF(VLOOKUP($F58,'CBAT Lookups'!$B$17:$K$19,8)=\"W\",1,IF(COUNTIF('CBAT Lookups'!$B$5:$B$12,\"Controls-\"&CBAT!$D58)=1,VLOOKUP(\"Controls-\"&CBAT!$D58,'CBAT Lookups'!$B$5:$K$12,8),0)*VLOOKUP($F58,'CBAT Lookups'!$B$17:$K$19,8)))","v":""},{"$f":"IF('Project Scope'!$C58=\"\",\"\",IF(VLOOKUP($F58,'CBAT Lookups'!$B$17:$K$19,9)=\"W\",1,IF(COUNTIF('CBAT Lookups'!$B$5:$B$12,\"Controls-\"&CBAT!$D58)=1,VLOOKUP(\"Controls-\"&CBAT!$D58,'CBAT Lookups'!$B$5:$K$12,9),0)*VLOOKUP($F58,'CBAT Lookups'!$B$17:$K$19,9)))","v":""},{"$f":"IF('Project Scope'!$C58=\"\",\"\",IF(COUNTIF('CBAT Lookups'!$B$5:$B$12,\"Controls-\"&CBAT!$D58)=1,VLOOKUP(\"Controls-\"&CBAT!$D58,'CBAT Lookups'!$B$5:$K$12,10),0)*VLOOKUP($F58,'CBAT Lookups'!$B$17:$K$19,10))","v":""},{"$f":"IF('Project Scope'!$C58=\"\",\"\",VLOOKUP($C58,'CBAT Lookups'!$A$33:$B$57,2))","v":""},{"$f":"IF('Project Scope'!$C58=\"\",\"\",IF(COUNTIF('CBAT Lookups'!$B$5:$B$12,\"Controls-\"&CBAT!$D58)=1,VLOOKUP(\"Controls-\"&CBAT!$D58,'CBAT Lookups'!$B$5:$O$12,12),0))","v":""},{"$f":"IF('Project Scope'!$C58=\"\",\"\",IF(COUNTIF('CBAT Lookups'!$B$5:$B$12,\"Controls-\"&CBAT!$D58)=1,VLOOKUP(\"Controls-\"&CBAT!$D58,'CBAT Lookups'!$B$5:$O$12,13),0))","v":""},{"$f":"IF('Project Scope'!$C58=\"\",\"\",IF(COUNTIF('CBAT Lookups'!$B$5:$B$12,\"Controls-\"&CBAT!$D58)=1,VLOOKUP(\"Controls-\"&CBAT!$D58,'CBAT Lookups'!$B$5:$O$12,14),0))","v":""},{"$f":"IF('Project Scope'!$C58=\"\",\"\",'TRM Data'!$U$3)","v":""},{"$f":"IF('Project Scope'!$C58=\"\",\"\",'TRM Data'!$V$3)","v":""},{"$f":"IF('Project Scope'!$C58=\"\",\"\",IF($K58<=0,0,MAX(0,(IF(AND($I58>0,$J58>0),($I58*$J58)/1000,($G58*$H58)/1000)*$L58))*$BT58*$BR58)+($CD58/0.003412))","v":""},{"$f":"IF('Project Scope'!$C58=\"\",\"\",IF($K58<=0,0,MAX(0,IF(AND($I58>0,$J58>0),($I58*$J58)/1000,($G58*$H58)/1000))*$BQ58))","v":""},{"$f":"IF('Project Scope'!$C58=\"\",\"\",IF($K58<=0,0,MAX(0,IF(AND($I58>0,$J58>0),($I58*$J58)/1000,($G58*$H58)/1000))*$BK58))","v":""},{"$f":"IF('Project Scope'!$C58=\"\",\"\",IF($K58<=0,0,MAX(0,IF(AND($I58>0,$J58>0),($I58*$J58)/1000,($G58*$H58)/1000))*$BL58*$BQ58))","v":""},{"$f":"IF('Project Scope'!$C58=\"\",\"\",IF(OR($K58<=0,'Project Information'!$D$44=\"\"),0,-1*MAX(0,IF(AND($I58>0,$J58>0),($I58*$J58)/1000,($G58*$H58)/1000))*$BT58*$L58*$BS58*VLOOKUP('Project Information'!$D$44,'CBAT Lookups'!$A$23:$H$30,2)))","v":""},{"$f":"IF('Project Scope'!$C58=\"\",\"\",IF(OR($K58<=0,'Project Information'!$D$44=\"\"),0,-1*MAX(0,IF(AND($I58>0,$J58>0),($I58*$J58)/1000,($G58*$H58)/1000))*$BT58*$L58*$BS58*VLOOKUP('Project Information'!$D$44,'CBAT Lookups'!$A$23:$H$30,3)))","v":""},{"$f":"IF('Project Scope'!$C58=\"\",\"\",IF(OR($K58<=0,'Project Information'!$D$44=\"\"),0,-1*MAX(0,IF(AND($I58>0,$J58>0),($I58*$J58)/1000,($G58*$H58)/1000))*$BT58*$L58*$BS58*VLOOKUP('Project Information'!$D$44,'CBAT Lookups'!$A$23:$H$30,4)))","v":""},{"$f":"IF('Project Scope'!$C58=\"\",\"\",IF(OR($K58<=0,'Project Information'!$D$44=\"\"),0,-1*MAX(0,IF(AND($I58>0,$J58>0),($I58*$J58)/1000,($G58*$H58)/1000))*$BT58*$L58*$BS58*VLOOKUP('Project Information'!$D$44,'CBAT Lookups'!$A$23:$H$30,5)))","v":""},{"$f":"IF('Project Scope'!$C58=\"\",\"\",IF(OR($K58<=0,'Project Information'!$D$44=\"\"),0,-1*MAX(0,IF(AND($I58>0,$J58>0),($I58*$J58)/1000,($G58*$H58)/1000))*$BT58*$L58*$BS58*VLOOKUP('Project Information'!$D$44,'CBAT Lookups'!$A$23:$H$30,6)))","v":""},{"$f":"IF('Project Scope'!$C58=\"\",\"\",IF(OR($K58<=0,'Project Information'!$D$44=\"\"),0,-1*MAX(0,IF(AND($I58>0,$J58>0),($I58*$J58)/1000,($G58*$H58)/1000))*$BT58*$L58*$BS58*VLOOKUP('Project Information'!$D$44,'CBAT Lookups'!$A$23:$H$30,7)))","v":""},{"$f":"IF('Project Scope'!$C58=\"\",\"\",IF(OR($K58<=0,'Project Information'!$D$44=\"\"),0,-1*MAX(0,IF(AND($I58>0,$J58>0),($I58*$J58)/1000,($G58*$H58)/1000))*$BT58*$L58*$BS58*VLOOKUP('Project Information'!$D$44,'CBAT Lookups'!$A$23:$H$30,8)))","v":""},null,{"$f":"IF('Project Scope'!$C58=\"\",\"\",VLOOKUP($F58,'CBAT Lookups'!$B$17:$K$19,4))","v":""},{"$f":"IF('Project Scope'!$C58=\"\",\"\",VLOOKUP($F58,'CBAT Lookups'!$B$17:$K$19,5))","v":""},{"$f":"IF('Project Scope'!$C58=\"\",\"\",VLOOKUP($F58,'CBAT Lookups'!$B$17:$K$19,6))","v":""},{"$f":"IF('Project Scope'!$C58=\"\",\"\",VLOOKUP($F58,'CBAT Lookups'!$B$17:$K$19,7))","v":""},{"$f":"IF('Project Scope'!$C58=\"\",\"\",IF(SUMPRODUCT($BM58:$BP58,$CL58:$CO58)=0,0,BM58*CL58/SUMPRODUCT($BM58:$BP58,$CL58:$CO58)))","v":""},{"$f":"IF('Project Scope'!$C58=\"\",\"\",IF(SUMPRODUCT($BM58:$BP58,$CL58:$CO58)=0,0,BN58*CM58/SUMPRODUCT($BM58:$BP58,$CL58:$CO58)))","v":""},{"$f":"IF('Project Scope'!$C58=\"\",\"\",IF(SUMPRODUCT($BM58:$BP58,$CL58:$CO58)=0,0,BO58*CN58/SUMPRODUCT($BM58:$BP58,$CL58:$CO58)))","v":""},{"$f":"IF('Project Scope'!$C58=\"\",\"\",IF(SUMPRODUCT($BM58:$BP58,$CL58:$CO58)=0,0,BP58*CO58/SUMPRODUCT($BM58:$BP58,$CL58:$CO58)))","v":""},{"$f":"IF('Project Scope'!$C58=\"\",\"\",Benefits($BZ58,$CB58,$CC58,$CE58,$CF58,$CG58,$CH58,$CI58,$CJ58,$CK58,$BJ58,$CP58,$CQ58,$CR58,$CS58,$BU58,$BV58,$BW58,$BX58,$BY58,$E58))","v":""},"","","","","","","","",null,{"$f":"IF('Project Scope'!$C58=\"\",\"\",SUM('Project Scope'!$BB58,'Project Scope'!$BC58))","v":""},{"$f":"IF('Project Scope'!$C58=\"\",\"\",SUM('Project Scope'!$BH58, 'Project Scope'!$AZ58,(IF(ISNUMBER('Project Scope'!$BA58),'Project Scope'!$BA58,0)*'Project Information'!$D$12)))","v":""},null,null,{"$f":"IF('Project Scope'!$C58=\"\",\"\",IF($J58<=0,0,(SUMPRODUCT($AV58:$BC58,--($AV58:$BC58>0))+$BE58)*$DK58/((-SUMPRODUCT($AV58:$BC58,--($AV58:$BC58<0))+$BG58+$BH58+$BI58)*$DK58)))","v":""},{"$f":"IF('Project Scope'!$C58=\"\",\"\",IF($K58<=0,0,(SUMPRODUCT($CT58:$DA58,--($CT58:$DA58>0))+$DC58)*$DK58/((-SUMPRODUCT($CT58:$DA58,--($CT58:$DA58<0))+$DE58+$DF58+$DG58)*$DK58)))","v":""},{"$f":"IF('Project Scope'!$C58=\"\",\"\",IF(AND($J58<=0,$K58<=0),0,(SUMPRODUCT($AV58:$BC58,--($AV58:$BC58>0))+$BE58+SUMPRODUCT($CT58:$DA58,--($CT58:$DA58>0))+$DC58)*$DK58/((-SUMPRODUCT($AV58:$BC58,--($AV58:$BC58<0))+$BG58+$BH58+$BI58-SUMPRODUCT($CT58:$DA58,--($CT58:$DA58<0))+$DE58+$DF58+$DG58)*$DK58)))","v":""},{"$f":"IF('Project Scope'!$C58=\"\",\"\",IF(NetOrGross=\"Net\",(1-Z58+AA58),1))","v":""}]
[{"$f":"'Project Scope'!$B59","v":52},{"$f":"IF('Project Scope'!$C59=\"\",\"\",'Project Scope'!$C59)","v":""},{"$f":"IF('Project Scope'!$C59=\"\",\"\",'Project Scope'!$H59)","v":""},{"$f":"IF(ISNUMBER(SEARCH(\"Bay\",'Project Scope'!$Q59)),\"Bay\",IF('Project Scope'!C59=\"\",\"\",'Project Scope'!E59))","v":""},{"$f":"IF('Project Scope'!$C59=\"\",\"\",\"Com\")","v":""},{"$f":"IF('Project Scope'!$C59=\"\",\"\",'Project Scope'!$L59)","v":""},{"$f":"IF('Project Scope'!$C59=\"\",\"\",IF('Project Scope'!$CJ59=\"\",0,'Project Scope'!$CJ59))","v":""},{"$f":"IF('Project Scope'!$C59=\"\",\"\",IF('Project Scope'!$N59=\"\",0,'Project Scope'!$N59))","v":""},{"$f":"IF('Project Scope'!$C59=\"\",\"\",IF('Project Scope'!$CK59=\"\",0,'Project Scope'!$CK59))","v":""},{"$f":"IF('Project Scope'!$C59=\"\",\"\",IF('Project Scope'!$AO59=\"\",0,'Project Scope'!$AO59))","v":""},{"$f":"IF('Project Scope'!$C59=\"\",\"\",IF('Project Scope'!$AX59=\"\",0,'Project Scope'!$AX59))","v":""},{"$f":"IF('Project Scope'!$C59=\"\",\"\",IF('Project Scope'!$M59=\"\",0,'Project Scope'!$M59))","v":""},{"$f":"IF('Project Scope'!$C59=\"\",\"\",IF(COUNTIF('CBAT Lookups'!$B$5:$B$12,\"Fixtures-\"&CBAT!$D59)=1,VLOOKUP(\"Fixtures-\"&CBAT!$D59,'CBAT Lookups'!$B$5:$L$12,11),0))","v":""},{"$f":"IF('Project Scope'!$C59=\"\",\"\",(IF(COUNTIF('CBAT Lookups'!$B$5:$B$12,\"Fixtures-\"&CBAT!$D59)=1,VLOOKUP(\"Fixtures-\"&CBAT!$D59,'CBAT Lookups'!$B$5:$K$12,2),0))*VLOOKUP($F59,'CBAT Lookups'!$B$17:$K$19,2))","v":""},{"$f":"IF('Project Scope'!$C59=\"\",\"\",(IF(COUNTIF('CBAT Lookups'!$B$5:$B$12,\"Fixtures-\"&CBAT!$D59)=1,VLOOKUP(\"Fixtures-\"&CBAT!$D59,'CBAT Lookups'!$B$5:$K$12,3),0))*VLOOKUP($F59,'CBAT Lookups'!$B$17:$K$19,3))","v":""},{"$f":"IF('Project Scope'!$C59=\"\",\"\",(IF(COUNTIF('CBAT Lookups'!$B$5:$B$12,\"Fixtures-\"&CBAT!$D59)=1,VLOOKUP(\"Fixtures-\"&CBAT!$D59,'CBAT Lookups'!$B$5:$K$12,4),0)))","v":""},{"$f":"IF('Project Scope'!$C59=\"\",\"\",(IF(COUNTIF('CBAT Lookups'!$B$5:$B$12,\"Fixtures-\"&CBAT!$D59)=1,VLOOKUP(\"Fixtures-\"&CBAT!$D59,'CBAT Lookups'!$B$5:$K$12,5),0)))","v":""},{"$f":"IF('Project Scope'!$C59=\"\",\"\",(IF(COUNTIF('CBAT Lookups'!$B$5:$B$12,\"Fixtures-\"&CBAT!$D59)=1,VLOOKUP(\"Fixtures-\"&CBAT!$D59,'CBAT Lookups'!$B$5:$K$12,6),0)))","v":""},{"$f":"IF('Project Scope'!$C59=\"\",\"\",IF(COUNTIF('CBAT Lookups'!$B$5:$B$12,\"Fixtures-\"&CBAT!$D59)=1,VLOOKUP(\"Fixtures-\"&CBAT!$D59,'CBAT Lookups'!$B$5:$K$12,7),0))","v":""},{"$f":"IF('Project Scope'!$C59=\"\",\"\",IF(VLOOKUP($F59,'CBAT Lookups'!$B$17:$K$19,8)=\"W\",1,IF(COUNTIF('CBAT Lookups'!$B$5:$B$12,\"Fixtures-\"&CBAT!$D59)=1,VLOOKUP(\"Fixtures-\"&CBAT!$D59,'CBAT Lookups'!$B$5:$K$12,8),0)*VLOOKUP($F59,'CBAT Lookups'!$B$17:$K$19,8)))","v":""},{"$f":"IF('Project Scope'!$C59=\"\",\"\",IF(VLOOKUP($F59,'CBAT Lookups'!$B$17:$K$19,9)=\"W\",1,IF(COUNTIF('CBAT Lookups'!$B$5:$B$12,\"Fixtures-\"&CBAT!$D59)=1,VLOOKUP(\"Fixtures-\"&CBAT!$D59,'CBAT Lookups'!$B$5:$K$12,9),0)*VLOOKUP($F59,'CBAT Lookups'!$B$17:$K$19,9)))","v":""},{"$f":"IF('Project Scope'!$C59=\"\",\"\",IF(COUNTIF('CBAT Lookups'!$B$5:$B$12,\"Fixtures-\"&CBAT!$D59)=1,VLOOKUP(\"Fixtures-\"&CBAT!$D59,'CBAT Lookups'!$B$5:$K$12,10),0)*VLOOKUP($F59,'CBAT Lookups'!$B$17:$K$19,10))","v":""},{"$f":"IF('Project Scope'!$C59=\"\",\"\",IF(COUNTIF('CBAT Lookups'!$B$5:$B$12,\"Fixtures-\"&CBAT!$D59)=1,VLOOKUP(\"Fixtures-\"&CBAT!$D59,'CBAT Lookups'!$B$5:$O$12,12),0))","v":""},{"$f":"IF('Project Scope'!$C59=\"\",\"\",IF(COUNTIF('CBAT Lookups'!$B$5:$B$12,\"Fixtures-\"&CBAT!$D59)=1,VLOOKUP(\"Fixtures-\"&CBAT!$D59,'CBAT Lookups'!$B$5:$O$12,13),0))","v":""},{"$f":"IF('Project Scope'!$C59=\"\",\"\",IF(COUNTIF('CBAT Lookups'!$B$5:$B$12,\"Fixtures-\"&CBAT!$D59)=1,VLOOKUP(\"Fixtures-\"&CBAT!$D59,'CBAT Lookups'!$B$5:$O$12,14),0))","v":""},{"$f":"IF('Project Scope'!$C59=\"\",\"\",'TRM Data'!$U$3)","v":""},{"$f":"IF('Project Scope'!$C59=\"\",\"\",'TRM Data'!$V$3)","v":""},{"$f":"IF('Project Scope'!$C59=\"\",\"\",IF($J59<=0,0,MAX(0,(($G59*$H59/1000)-($I59*$J59/1000))*$L59)*$U59)+($AF59/0.003412))","v":""},{"$f":"IF('Project Scope'!$C59=\"\",\"\",IF($J59<=0,0,MAX(0,(($G59*$H59/1000)-($I59*$J59/1000)))*$T59))","v":""},{"$f":"IF('Project Scope'!$C59=\"\",\"\",IF($J59<=0,0,MAX(0,(($G59*$H59/1000)-($I59*$J59/1000))*$N59)))","v":""},{"$f":"IF('Project Scope'!$C59=\"\",\"\",IF($J59<=0,0,MAX(0,(($G59*$H59/1000)-($I59*$J59/1000))*$O59)*$T59))","v":""},{"$f":"IF('Project Scope'!$C59=\"\",\"\",IF(OR($J59<=0,'Project Information'!$D$44=\"\"),0,-1*MAX(0,(($G59*$H59/1000)-($I59*$J59/1000))*$L59)*$V59*VLOOKUP('Project Information'!$D$44,'CBAT Lookups'!$A$23:$H$30,2)))","v":""},{"$f":"IF('Project Scope'!$C59=\"\",\"\",IF(OR($J59<=0,'Project Information'!$D$44=\"\"),0,-1*MAX(0,(($G59*$H59/1000)-($I59*$J59/1000))*$L59)*$V59*VLOOKUP('Project Information'!$D$44,'CBAT Lookups'!$A$23:$H$30,3)))","v":""},{"$f":"IF('Project Scope'!$C59=\"\",\"\",IF(OR($J59<=0,'Project Information'!$D$44=\"\"),0,-1*MAX(0,(($G59*$H59/1000)-($I59*$J59/1000))*$L59)*$V59*VLOOKUP('Project Information'!$D$44,'CBAT Lookups'!$A$23:$H$30,4)))","v":""},{"$f":"IF('Project Scope'!$C59=\"\",\"\",IF(OR($J59<=0,'Project Information'!$D$44=\"\"),0,-1*MAX(0,(($G59*$H59/1000)-($I59*$J59/1000))*$L59)*$V59*VLOOKUP('Project Information'!$D$44,'CBAT Lookups'!$A$23:$H$30,5)))","v":""},{"$f":"IF('Project Scope'!$C59=\"\",\"\",IF(OR($J59<=0,'Project Information'!$D$44=\"\"),0,-1*MAX(0,(($G59*$H59/1000)-($I59*$J59/1000))*$L59)*$V59*VLOOKUP('Project Information'!$D$44,'CBAT Lookups'!$A$23:$H$30,6)))","v":""},{"$f":"IF('Project Scope'!$C59=\"\",\"\",IF(OR($J59<=0,'Project Information'!$D$44=\"\"),0,-1*MAX(0,(($G59*$H59/1000)-($I59*$J59/1000))*$L59)*$V59*VLOOKUP('Project Information'!$D$44,'CBAT Lookups'!$A$23:$H$30,7)))","v":""},{"$f":"IF('Project Scope'!$C59=\"\",\"\",IF(OR($J59<=0,'Project Information'!$D$44=\"\"),0,-1*MAX(0,(($G59*$H59/1000)-($I59*$J59/1000))*$L59)*$V59*VLOOKUP('Project Information'!$D$44,'CBAT Lookups'!$A$23:$H$30,8)))","v":""},null,{"$f":"IF('Project Scope'!$C59=\"\",\"\",VLOOKUP($F59,'CBAT Lookups'!$B$17:$K$19,4))","v":""},{"$f":"IF('Project Scope'!$C59=\"\",\"\",VLOOKUP($F59,'CBAT Lookups'!$B$17:$K$19,5))","v":""},{"$f":"IF('Project Scope'!$C59=\"\",\"\",VLOOKUP($F59,'CBAT Lookups'!$B$17:$K$19,6))","v":""},{"$f":"IF('Project Scope'!$C59=\"\",\"\",VLOOKUP($F59,'CBAT Lookups'!$B$17:$K$19,7))","v":""},{"$f":"IF('Project Scope'!$C59=\"\",\"\",IF(SUMPRODUCT($P59:$S59,$AN59:$AQ59)=0,0,P59*AN59/SUMPRODUCT($P59:$S59,$AN59:$AQ59)))","v":""},{"$f":"IF('Project Scope'!$C59=\"\",\"\",IF(SUMPRODUCT($P59:$S59,$AN59:$AQ59)=0,0,Q59*AO59/SUMPRODUCT($P59:$S59,$AN59:$AQ59)))","v":""},{"$f":"IF('Project Scope'!$C59=\"\",\"\",IF(SUMPRODUCT($P59:$S59,$AN59:$AQ59)=0,0,R59*AP59/SUMPRODUCT($P59:$S59,$AN59:$AQ59)))","v":""},{"$f":"IF('Project Scope'!$C59=\"\",\"\",IF(SUMPRODUCT($P59:$S59,$AN59:$AQ59)=0,0,S59*AQ59/SUMPRODUCT($P59:$S59,$AN59:$AQ59)))","v":""},{"$f":"IF('Project Scope'!$C59=\"\",\"\",Benefits($AB59,$AD59,$AE59,$AG59,$AH59,$AI59,$AJ59,$AK59,$AL59,$AM59,$M59,$AR59,$AS59,$AT59,$AU59,$W59,$X59,$Y59,$Z59,$AA59,$E59))","v":""},"","","","","","","","",null,{"$f":"IF('Project Scope'!$C59=\"\",\"\",SUM('Project Scope'!$AT59,'Project Scope'!$AU59))","v":""},{"$f":"IF('Project Scope'!$C59=\"\",\"\",SUM('Project Scope'!$BG59, 'Project Scope'!$AR59,(IF(ISNUMBER('Project Scope'!$AS59),'Project Scope'!$AS59,0)*'Project Information'!$D$12)))","v":""},null,null,{"$f":"IF('Project Scope'!$C59=\"\",\"\",IF(COUNTIF('CBAT Lookups'!$B$5:$B$12,\"Controls-\"&CBAT!$D59)=1,VLOOKUP(\"Controls-\"&CBAT!$D59,'CBAT Lookups'!$B$5:$L$12,11),0))","v":""},{"$f":"IF('Project Scope'!$C59=\"\",\"\",IF(COUNTIF('CBAT Lookups'!$B$5:$B$12,\"Controls-\"&CBAT!$D59)=1,VLOOKUP(\"Controls-\"&CBAT!$D59,'CBAT Lookups'!$B$5:$K$12,2),0)*VLOOKUP($F59,'CBAT Lookups'!$B$17:$K$19,2))","v":""},{"$f":"IF('Project Scope'!$C59=\"\",\"\",IF(COUNTIF('CBAT Lookups'!$B$5:$B$12,\"Controls-\"&CBAT!$D59)=1,VLOOKUP(\"Controls-\"&CBAT!$D59,'CBAT Lookups'!$B$5:$K$12,3),0)*VLOOKUP($F59,'CBAT Lookups'!$B$17:$K$19,3))","v":""},{"$f":"IF('Project Scope'!$C59=\"\",\"\",IF(COUNTIF('CBAT Lookups'!$B$5:$B$12,\"Controls-\"&CBAT!$D59)=1,VLOOKUP(\"Controls-\"&CBAT!$D59,'CBAT Lookups'!$B$5:$K$12,4),0))","v":""},{"$f":"IF('Project Scope'!$C59=\"\",\"\",IF(COUNTIF('CBAT Lookups'!$B$5:$B$12,\"Controls-\"&CBAT!$D59)=1,VLOOKUP(\"Controls-\"&CBAT!$D59,'CBAT Lookups'!$B$5:$K$12,5),0))","v":""},{"$f":"IF('Project Scope'!$C59=\"\",\"\",IF(COUNTIF('CBAT Lookups'!$B$5:$B$12,\"Controls-\"&CBAT!$D59)=1,VLOOKUP(\"Controls-\"&CBAT!$D59,'CBAT Lookups'!$B$5:$K$12,6),0))","v":""},{"$f":"IF('Project Scope'!$C59=\"\",\"\",IF(COUNTIF('CBAT Lookups'!$B$5:$B$12,\"Controls-\"&CBAT!$D59)=1,VLOOKUP(\"Controls-\"&CBAT!$D59,'CBAT Lookups'!$B$5:$K$12,7),0))","v":""},{"$f":"IF('Project Scope'!$C59=\"\",\"\",IF(VLOOKUP($F59,'CBAT Lookups'!$B$17:$K$19,8)=\"W\",1,IF(COUNTIF('CBAT Lookups'!$B$5:$B$12,\"Controls-\"&CBAT!$D59)=1,VLOOKUP(\"Controls-\"&CBAT!$D59,'CBAT Lookups'!$B$5:$K$12,8),0)*VLOOKUP($F59,'CBAT Lookups'!$B$17:$K$19,8)))","v":""},{"$f":"IF('Project Scope'!$C59=\"\",\"\",IF(VLOOKUP($F59,'CBAT Lookups'!$B$17:$K$19,9)=\"W\",1,IF(COUNTIF('CBAT Lookups'!$B$5:$B$12,\"Controls-\"&CBAT!$D59)=1,VLOOKUP(\"Controls-\"&CBAT!$D59,'CBAT Lookups'!$B$5:$K$12,9),0)*VLOOKUP($F59,'CBAT Lookups'!$B$17:$K$19,9)))","v":""},{"$f":"IF('Project Scope'!$C59=\"\",\"\",IF(COUNTIF('CBAT Lookups'!$B$5:$B$12,\"Controls-\"&CBAT!$D59)=1,VLOOKUP(\"Controls-\"&CBAT!$D59,'CBAT Lookups'!$B$5:$K$12,10),0)*VLOOKUP($F59,'CBAT Lookups'!$B$17:$K$19,10))","v":""},{"$f":"IF('Project Scope'!$C59=\"\",\"\",VLOOKUP($C59,'CBAT Lookups'!$A$33:$B$57,2))","v":""},{"$f":"IF('Project Scope'!$C59=\"\",\"\",IF(COUNTIF('CBAT Lookups'!$B$5:$B$12,\"Controls-\"&CBAT!$D59)=1,VLOOKUP(\"Controls-\"&CBAT!$D59,'CBAT Lookups'!$B$5:$O$12,12),0))","v":""},{"$f":"IF('Project Scope'!$C59=\"\",\"\",IF(COUNTIF('CBAT Lookups'!$B$5:$B$12,\"Controls-\"&CBAT!$D59)=1,VLOOKUP(\"Controls-\"&CBAT!$D59,'CBAT Lookups'!$B$5:$O$12,13),0))","v":""},{"$f":"IF('Project Scope'!$C59=\"\",\"\",IF(COUNTIF('CBAT Lookups'!$B$5:$B$12,\"Controls-\"&CBAT!$D59)=1,VLOOKUP(\"Controls-\"&CBAT!$D59,'CBAT Lookups'!$B$5:$O$12,14),0))","v":""},{"$f":"IF('Project Scope'!$C59=\"\",\"\",'TRM Data'!$U$3)","v":""},{"$f":"IF('Project Scope'!$C59=\"\",\"\",'TRM Data'!$V$3)","v":""},{"$f":"IF('Project Scope'!$C59=\"\",\"\",IF($K59<=0,0,MAX(0,(IF(AND($I59>0,$J59>0),($I59*$J59)/1000,($G59*$H59)/1000)*$L59))*$BT59*$BR59)+($CD59/0.003412))","v":""},{"$f":"IF('Project Scope'!$C59=\"\",\"\",IF($K59<=0,0,MAX(0,IF(AND($I59>0,$J59>0),($I59*$J59)/1000,($G59*$H59)/1000))*$BQ59))","v":""},{"$f":"IF('Project Scope'!$C59=\"\",\"\",IF($K59<=0,0,MAX(0,IF(AND($I59>0,$J59>0),($I59*$J59)/1000,($G59*$H59)/1000))*$BK59))","v":""},{"$f":"IF('Project Scope'!$C59=\"\",\"\",IF($K59<=0,0,MAX(0,IF(AND($I59>0,$J59>0),($I59*$J59)/1000,($G59*$H59)/1000))*$BL59*$BQ59))","v":""},{"$f":"IF('Project Scope'!$C59=\"\",\"\",IF(OR($K59<=0,'Project Information'!$D$44=\"\"),0,-1*MAX(0,IF(AND($I59>0,$J59>0),($I59*$J59)/1000,($G59*$H59)/1000))*$BT59*$L59*$BS59*VLOOKUP('Project Information'!$D$44,'CBAT Lookups'!$A$23:$H$30,2)))","v":""},{"$f":"IF('Project Scope'!$C59=\"\",\"\",IF(OR($K59<=0,'Project Information'!$D$44=\"\"),0,-1*MAX(0,IF(AND($I59>0,$J59>0),($I59*$J59)/1000,($G59*$H59)/1000))*$BT59*$L59*$BS59*VLOOKUP('Project Information'!$D$44,'CBAT Lookups'!$A$23:$H$30,3)))","v":""},{"$f":"IF('Project Scope'!$C59=\"\",\"\",IF(OR($K59<=0,'Project Information'!$D$44=\"\"),0,-1*MAX(0,IF(AND($I59>0,$J59>0),($I59*$J59)/1000,($G59*$H59)/1000))*$BT59*$L59*$BS59*VLOOKUP('Project Information'!$D$44,'CBAT Lookups'!$A$23:$H$30,4)))","v":""},{"$f":"IF('Project Scope'!$C59=\"\",\"\",IF(OR($K59<=0,'Project Information'!$D$44=\"\"),0,-1*MAX(0,IF(AND($I59>0,$J59>0),($I59*$J59)/1000,($G59*$H59)/1000))*$BT59*$L59*$BS59*VLOOKUP('Project Information'!$D$44,'CBAT Lookups'!$A$23:$H$30,5)))","v":""},{"$f":"IF('Project Scope'!$C59=\"\",\"\",IF(OR($K59<=0,'Project Information'!$D$44=\"\"),0,-1*MAX(0,IF(AND($I59>0,$J59>0),($I59*$J59)/1000,($G59*$H59)/1000))*$BT59*$L59*$BS59*VLOOKUP('Project Information'!$D$44,'CBAT Lookups'!$A$23:$H$30,6)))","v":""},{"$f":"IF('Project Scope'!$C59=\"\",\"\",IF(OR($K59<=0,'Project Information'!$D$44=\"\"),0,-1*MAX(0,IF(AND($I59>0,$J59>0),($I59*$J59)/1000,($G59*$H59)/1000))*$BT59*$L59*$BS59*VLOOKUP('Project Information'!$D$44,'CBAT Lookups'!$A$23:$H$30,7)))","v":""},{"$f":"IF('Project Scope'!$C59=\"\",\"\",IF(OR($K59<=0,'Project Information'!$D$44=\"\"),0,-1*MAX(0,IF(AND($I59>0,$J59>0),($I59*$J59)/1000,($G59*$H59)/1000))*$BT59*$L59*$BS59*VLOOKUP('Project Information'!$D$44,'CBAT Lookups'!$A$23:$H$30,8)))","v":""},null,{"$f":"IF('Project Scope'!$C59=\"\",\"\",VLOOKUP($F59,'CBAT Lookups'!$B$17:$K$19,4))","v":""},{"$f":"IF('Project Scope'!$C59=\"\",\"\",VLOOKUP($F59,'CBAT Lookups'!$B$17:$K$19,5))","v":""},{"$f":"IF('Project Scope'!$C59=\"\",\"\",VLOOKUP($F59,'CBAT Lookups'!$B$17:$K$19,6))","v":""},{"$f":"IF('Project Scope'!$C59=\"\",\"\",VLOOKUP($F59,'CBAT Lookups'!$B$17:$K$19,7))","v":""},{"$f":"IF('Project Scope'!$C59=\"\",\"\",IF(SUMPRODUCT($BM59:$BP59,$CL59:$CO59)=0,0,BM59*CL59/SUMPRODUCT($BM59:$BP59,$CL59:$CO59)))","v":""},{"$f":"IF('Project Scope'!$C59=\"\",\"\",IF(SUMPRODUCT($BM59:$BP59,$CL59:$CO59)=0,0,BN59*CM59/SUMPRODUCT($BM59:$BP59,$CL59:$CO59)))","v":""},{"$f":"IF('Project Scope'!$C59=\"\",\"\",IF(SUMPRODUCT($BM59:$BP59,$CL59:$CO59)=0,0,BO59*CN59/SUMPRODUCT($BM59:$BP59,$CL59:$CO59)))","v":""},{"$f":"IF('Project Scope'!$C59=\"\",\"\",IF(SUMPRODUCT($BM59:$BP59,$CL59:$CO59)=0,0,BP59*CO59/SUMPRODUCT($BM59:$BP59,$CL59:$CO59)))","v":""},{"$f":"IF('Project Scope'!$C59=\"\",\"\",Benefits($BZ59,$CB59,$CC59,$CE59,$CF59,$CG59,$CH59,$CI59,$CJ59,$CK59,$BJ59,$CP59,$CQ59,$CR59,$CS59,$BU59,$BV59,$BW59,$BX59,$BY59,$E59))","v":""},"","","","","","","","",null,{"$f":"IF('Project Scope'!$C59=\"\",\"\",SUM('Project Scope'!$BB59,'Project Scope'!$BC59))","v":""},{"$f":"IF('Project Scope'!$C59=\"\",\"\",SUM('Project Scope'!$BH59, 'Project Scope'!$AZ59,(IF(ISNUMBER('Project Scope'!$BA59),'Project Scope'!$BA59,0)*'Project Information'!$D$12)))","v":""},null,null,{"$f":"IF('Project Scope'!$C59=\"\",\"\",IF($J59<=0,0,(SUMPRODUCT($AV59:$BC59,--($AV59:$BC59>0))+$BE59)*$DK59/((-SUMPRODUCT($AV59:$BC59,--($AV59:$BC59<0))+$BG59+$BH59+$BI59)*$DK59)))","v":""},{"$f":"IF('Project Scope'!$C59=\"\",\"\",IF($K59<=0,0,(SUMPRODUCT($CT59:$DA59,--($CT59:$DA59>0))+$DC59)*$DK59/((-SUMPRODUCT($CT59:$DA59,--($CT59:$DA59<0))+$DE59+$DF59+$DG59)*$DK59)))","v":""},{"$f":"IF('Project Scope'!$C59=\"\",\"\",IF(AND($J59<=0,$K59<=0),0,(SUMPRODUCT($AV59:$BC59,--($AV59:$BC59>0))+$BE59+SUMPRODUCT($CT59:$DA59,--($CT59:$DA59>0))+$DC59)*$DK59/((-SUMPRODUCT($AV59:$BC59,--($AV59:$BC59<0))+$BG59+$BH59+$BI59-SUMPRODUCT($CT59:$DA59,--($CT59:$DA59<0))+$DE59+$DF59+$DG59)*$DK59)))","v":""},{"$f":"IF('Project Scope'!$C59=\"\",\"\",IF(NetOrGross=\"Net\",(1-Z59+AA59),1))","v":""}]
[{"$f":"'Project Scope'!$B60","v":53},{"$f":"IF('Project Scope'!$C60=\"\",\"\",'Project Scope'!$C60)","v":""},{"$f":"IF('Project Scope'!$C60=\"\",\"\",'Project Scope'!$H60)","v":""},{"$f":"IF(ISNUMBER(SEARCH(\"Bay\",'Project Scope'!$Q60)),\"Bay\",IF('Project Scope'!C60=\"\",\"\",'Project Scope'!E60))","v":""},{"$f":"IF('Project Scope'!$C60=\"\",\"\",\"Com\")","v":""},{"$f":"IF('Project Scope'!$C60=\"\",\"\",'Project Scope'!$L60)","v":""},{"$f":"IF('Project Scope'!$C60=\"\",\"\",IF('Project Scope'!$CJ60=\"\",0,'Project Scope'!$CJ60))","v":""},{"$f":"IF('Project Scope'!$C60=\"\",\"\",IF('Project Scope'!$N60=\"\",0,'Project Scope'!$N60))","v":""},{"$f":"IF('Project Scope'!$C60=\"\",\"\",IF('Project Scope'!$CK60=\"\",0,'Project Scope'!$CK60))","v":""},{"$f":"IF('Project Scope'!$C60=\"\",\"\",IF('Project Scope'!$AO60=\"\",0,'Project Scope'!$AO60))","v":""},{"$f":"IF('Project Scope'!$C60=\"\",\"\",IF('Project Scope'!$AX60=\"\",0,'Project Scope'!$AX60))","v":""},{"$f":"IF('Project Scope'!$C60=\"\",\"\",IF('Project Scope'!$M60=\"\",0,'Project Scope'!$M60))","v":""},{"$f":"IF('Project Scope'!$C60=\"\",\"\",IF(COUNTIF('CBAT Lookups'!$B$5:$B$12,\"Fixtures-\"&CBAT!$D60)=1,VLOOKUP(\"Fixtures-\"&CBAT!$D60,'CBAT Lookups'!$B$5:$L$12,11),0))","v":""},{"$f":"IF('Project Scope'!$C60=\"\",\"\",(IF(COUNTIF('CBAT Lookups'!$B$5:$B$12,\"Fixtures-\"&CBAT!$D60)=1,VLOOKUP(\"Fixtures-\"&CBAT!$D60,'CBAT Lookups'!$B$5:$K$12,2),0))*VLOOKUP($F60,'CBAT Lookups'!$B$17:$K$19,2))","v":""},{"$f":"IF('Project Scope'!$C60=\"\",\"\",(IF(COUNTIF('CBAT Lookups'!$B$5:$B$12,\"Fixtures-\"&CBAT!$D60)=1,VLOOKUP(\"Fixtures-\"&CBAT!$D60,'CBAT Lookups'!$B$5:$K$12,3),0))*VLOOKUP($F60,'CBAT Lookups'!$B$17:$K$19,3))","v":""},{"$f":"IF('Project Scope'!$C60=\"\",\"\",(IF(COUNTIF('CBAT Lookups'!$B$5:$B$12,\"Fixtures-\"&CBAT!$D60)=1,VLOOKUP(\"Fixtures-\"&CBAT!$D60,'CBAT Lookups'!$B$5:$K$12,4),0)))","v":""},{"$f":"IF('Project Scope'!$C60=\"\",\"\",(IF(COUNTIF('CBAT Lookups'!$B$5:$B$12,\"Fixtures-\"&CBAT!$D60)=1,VLOOKUP(\"Fixtures-\"&CBAT!$D60,'CBAT Lookups'!$B$5:$K$12,5),0)))","v":""},{"$f":"IF('Project Scope'!$C60=\"\",\"\",(IF(COUNTIF('CBAT Lookups'!$B$5:$B$12,\"Fixtures-\"&CBAT!$D60)=1,VLOOKUP(\"Fixtures-\"&CBAT!$D60,'CBAT Lookups'!$B$5:$K$12,6),0)))","v":""},{"$f":"IF('Project Scope'!$C60=\"\",\"\",IF(COUNTIF('CBAT Lookups'!$B$5:$B$12,\"Fixtures-\"&CBAT!$D60)=1,VLOOKUP(\"Fixtures-\"&CBAT!$D60,'CBAT Lookups'!$B$5:$K$12,7),0))","v":""},{"$f":"IF('Project Scope'!$C60=\"\",\"\",IF(VLOOKUP($F60,'CBAT Lookups'!$B$17:$K$19,8)=\"W\",1,IF(COUNTIF('CBAT Lookups'!$B$5:$B$12,\"Fixtures-\"&CBAT!$D60)=1,VLOOKUP(\"Fixtures-\"&CBAT!$D60,'CBAT Lookups'!$B$5:$K$12,8),0)*VLOOKUP($F60,'CBAT Lookups'!$B$17:$K$19,8)))","v":""},{"$f":"IF('Project Scope'!$C60=\"\",\"\",IF(VLOOKUP($F60,'CBAT Lookups'!$B$17:$K$19,9)=\"W\",1,IF(COUNTIF('CBAT Lookups'!$B$5:$B$12,\"Fixtures-\"&CBAT!$D60)=1,VLOOKUP(\"Fixtures-\"&CBAT!$D60,'CBAT Lookups'!$B$5:$K$12,9),0)*VLOOKUP($F60,'CBAT Lookups'!$B$17:$K$19,9)))","v":""},{"$f":"IF('Project Scope'!$C60=\"\",\"\",IF(COUNTIF('CBAT Lookups'!$B$5:$B$12,\"Fixtures-\"&CBAT!$D60)=1,VLOOKUP(\"Fixtures-\"&CBAT!$D60,'CBAT Lookups'!$B$5:$K$12,10),0)*VLOOKUP($F60,'CBAT Lookups'!$B$17:$K$19,10))","v":""},{"$f":"IF('Project Scope'!$C60=\"\",\"\",IF(COUNTIF('CBAT Lookups'!$B$5:$B$12,\"Fixtures-\"&CBAT!$D60)=1,VLOOKUP(\"Fixtures-\"&CBAT!$D60,'CBAT Lookups'!$B$5:$O$12,12),0))","v":""},{"$f":"IF('Project Scope'!$C60=\"\",\"\",IF(COUNTIF('CBAT Lookups'!$B$5:$B$12,\"Fixtures-\"&CBAT!$D60)=1,VLOOKUP(\"Fixtures-\"&CBAT!$D60,'CBAT Lookups'!$B$5:$O$12,13),0))","v":""},{"$f":"IF('Project Scope'!$C60=\"\",\"\",IF(COUNTIF('CBAT Lookups'!$B$5:$B$12,\"Fixtures-\"&CBAT!$D60)=1,VLOOKUP(\"Fixtures-\"&CBAT!$D60,'CBAT Lookups'!$B$5:$O$12,14),0))","v":""},{"$f":"IF('Project Scope'!$C60=\"\",\"\",'TRM Data'!$U$3)","v":""},{"$f":"IF('Project Scope'!$C60=\"\",\"\",'TRM Data'!$V$3)","v":""},{"$f":"IF('Project Scope'!$C60=\"\",\"\",IF($J60<=0,0,MAX(0,(($G60*$H60/1000)-($I60*$J60/1000))*$L60)*$U60)+($AF60/0.003412))","v":""},{"$f":"IF('Project Scope'!$C60=\"\",\"\",IF($J60<=0,0,MAX(0,(($G60*$H60/1000)-($I60*$J60/1000)))*$T60))","v":""},{"$f":"IF('Project Scope'!$C60=\"\",\"\",IF($J60<=0,0,MAX(0,(($G60*$H60/1000)-($I60*$J60/1000))*$N60)))","v":""},{"$f":"IF('Project Scope'!$C60=\"\",\"\",IF($J60<=0,0,MAX(0,(($G60*$H60/1000)-($I60*$J60/1000))*$O60)*$T60))","v":""},{"$f":"IF('Project Scope'!$C60=\"\",\"\",IF(OR($J60<=0,'Project Information'!$D$44=\"\"),0,-1*MAX(0,(($G60*$H60/1000)-($I60*$J60/1000))*$L60)*$V60*VLOOKUP('Project Information'!$D$44,'CBAT Lookups'!$A$23:$H$30,2)))","v":""},{"$f":"IF('Project Scope'!$C60=\"\",\"\",IF(OR($J60<=0,'Project Information'!$D$44=\"\"),0,-1*MAX(0,(($G60*$H60/1000)-($I60*$J60/1000))*$L60)*$V60*VLOOKUP('Project Information'!$D$44,'CBAT Lookups'!$A$23:$H$30,3)))","v":""},{"$f":"IF('Project Scope'!$C60=\"\",\"\",IF(OR($J60<=0,'Project Information'!$D$44=\"\"),0,-1*MAX(0,(($G60*$H60/1000)-($I60*$J60/1000))*$L60)*$V60*VLOOKUP('Project Information'!$D$44,'CBAT Lookups'!$A$23:$H$30,4)))","v":""},{"$f":"IF('Project Scope'!$C60=\"\",\"\",IF(OR($J60<=0,'Project Information'!$D$44=\"\"),0,-1*MAX(0,(($G60*$H60/1000)-($I60*$J60/1000))*$L60)*$V60*VLOOKUP('Project Information'!$D$44,'CBAT Lookups'!$A$23:$H$30,5)))","v":""},{"$f":"IF('Project Scope'!$C60=\"\",\"\",IF(OR($J60<=0,'Project Information'!$D$44=\"\"),0,-1*MAX(0,(($G60*$H60/1000)-($I60*$J60/1000))*$L60)*$V60*VLOOKUP('Project Information'!$D$44,'CBAT Lookups'!$A$23:$H$30,6)))","v":""},{"$f":"IF('Project Scope'!$C60=\"\",\"\",IF(OR($J60<=0,'Project Information'!$D$44=\"\"),0,-1*MAX(0,(($G60*$H60/1000)-($I60*$J60/1000))*$L60)*$V60*VLOOKUP('Project Information'!$D$44,'CBAT Lookups'!$A$23:$H$30,7)))","v":""},{"$f":"IF('Project Scope'!$C60=\"\",\"\",IF(OR($J60<=0,'Project Information'!$D$44=\"\"),0,-1*MAX(0,(($G60*$H60/1000)-($I60*$J60/1000))*$L60)*$V60*VLOOKUP('Project Information'!$D$44,'CBAT Lookups'!$A$23:$H$30,8)))","v":""},null,{"$f":"IF('Project Scope'!$C60=\"\",\"\",VLOOKUP($F60,'CBAT Lookups'!$B$17:$K$19,4))","v":""},{"$f":"IF('Project Scope'!$C60=\"\",\"\",VLOOKUP($F60,'CBAT Lookups'!$B$17:$K$19,5))","v":""},{"$f":"IF('Project Scope'!$C60=\"\",\"\",VLOOKUP($F60,'CBAT Lookups'!$B$17:$K$19,6))","v":""},{"$f":"IF('Project Scope'!$C60=\"\",\"\",VLOOKUP($F60,'CBAT Lookups'!$B$17:$K$19,7))","v":""},{"$f":"IF('Project Scope'!$C60=\"\",\"\",IF(SUMPRODUCT($P60:$S60,$AN60:$AQ60)=0,0,P60*AN60/SUMPRODUCT($P60:$S60,$AN60:$AQ60)))","v":""},{"$f":"IF('Project Scope'!$C60=\"\",\"\",IF(SUMPRODUCT($P60:$S60,$AN60:$AQ60)=0,0,Q60*AO60/SUMPRODUCT($P60:$S60,$AN60:$AQ60)))","v":""},{"$f":"IF('Project Scope'!$C60=\"\",\"\",IF(SUMPRODUCT($P60:$S60,$AN60:$AQ60)=0,0,R60*AP60/SUMPRODUCT($P60:$S60,$AN60:$AQ60)))","v":""},{"$f":"IF('Project Scope'!$C60=\"\",\"\",IF(SUMPRODUCT($P60:$S60,$AN60:$AQ60)=0,0,S60*AQ60/SUMPRODUCT($P60:$S60,$AN60:$AQ60)))","v":""},{"$f":"IF('Project Scope'!$C60=\"\",\"\",Benefits($AB60,$AD60,$AE60,$AG60,$AH60,$AI60,$AJ60,$AK60,$AL60,$AM60,$M60,$AR60,$AS60,$AT60,$AU60,$W60,$X60,$Y60,$Z60,$AA60,$E60))","v":""},"","","","","","","","",null,{"$f":"IF('Project Scope'!$C60=\"\",\"\",SUM('Project Scope'!$AT60,'Project Scope'!$AU60))","v":""},{"$f":"IF('Project Scope'!$C60=\"\",\"\",SUM('Project Scope'!$BG60, 'Project Scope'!$AR60,(IF(ISNUMBER('Project Scope'!$AS60),'Project Scope'!$AS60,0)*'Project Information'!$D$12)))","v":""},null,null,{"$f":"IF('Project Scope'!$C60=\"\",\"\",IF(COUNTIF('CBAT Lookups'!$B$5:$B$12,\"Controls-\"&CBAT!$D60)=1,VLOOKUP(\"Controls-\"&CBAT!$D60,'CBAT Lookups'!$B$5:$L$12,11),0))","v":""},{"$f":"IF('Project Scope'!$C60=\"\",\"\",IF(COUNTIF('CBAT Lookups'!$B$5:$B$12,\"Controls-\"&CBAT!$D60)=1,VLOOKUP(\"Controls-\"&CBAT!$D60,'CBAT Lookups'!$B$5:$K$12,2),0)*VLOOKUP($F60,'CBAT Lookups'!$B$17:$K$19,2))","v":""},{"$f":"IF('Project Scope'!$C60=\"\",\"\",IF(COUNTIF('CBAT Lookups'!$B$5:$B$12,\"Controls-\"&CBAT!$D60)=1,VLOOKUP(\"Controls-\"&CBAT!$D60,'CBAT Lookups'!$B$5:$K$12,3),0)*VLOOKUP($F60,'CBAT Lookups'!$B$17:$K$19,3))","v":""},{"$f":"IF('Project Scope'!$C60=\"\",\"\",IF(COUNTIF('CBAT Lookups'!$B$5:$B$12,\"Controls-\"&CBAT!$D60)=1,VLOOKUP(\"Controls-\"&CBAT!$D60,'CBAT Lookups'!$B$5:$K$12,4),0))","v":""},{"$f":"IF('Project Scope'!$C60=\"\",\"\",IF(COUNTIF('CBAT Lookups'!$B$5:$B$12,\"Controls-\"&CBAT!$D60)=1,VLOOKUP(\"Controls-\"&CBAT!$D60,'CBAT Lookups'!$B$5:$K$12,5),0))","v":""},{"$f":"IF('Project Scope'!$C60=\"\",\"\",IF(COUNTIF('CBAT Lookups'!$B$5:$B$12,\"Controls-\"&CBAT!$D60)=1,VLOOKUP(\"Controls-\"&CBAT!$D60,'CBAT Lookups'!$B$5:$K$12,6),0))","v":""},{"$f":"IF('Project Scope'!$C60=\"\",\"\",IF(COUNTIF('CBAT Lookups'!$B$5:$B$12,\"Controls-\"&CBAT!$D60)=1,VLOOKUP(\"Controls-\"&CBAT!$D60,'CBAT Lookups'!$B$5:$K$12,7),0))","v":""},{"$f":"IF('Project Scope'!$C60=\"\",\"\",IF(VLOOKUP($F60,'CBAT Lookups'!$B$17:$K$19,8)=\"W\",1,IF(COUNTIF('CBAT Lookups'!$B$5:$B$12,\"Controls-\"&CBAT!$D60)=1,VLOOKUP(\"Controls-\"&CBAT!$D60,'CBAT Lookups'!$B$5:$K$12,8),0)*VLOOKUP($F60,'CBAT Lookups'!$B$17:$K$19,8)))","v":""},{"$f":"IF('Project Scope'!$C60=\"\",\"\",IF(VLOOKUP($F60,'CBAT Lookups'!$B$17:$K$19,9)=\"W\",1,IF(COUNTIF('CBAT Lookups'!$B$5:$B$12,\"Controls-\"&CBAT!$D60)=1,VLOOKUP(\"Controls-\"&CBAT!$D60,'CBAT Lookups'!$B$5:$K$12,9),0)*VLOOKUP($F60,'CBAT Lookups'!$B$17:$K$19,9)))","v":""},{"$f":"IF('Project Scope'!$C60=\"\",\"\",IF(COUNTIF('CBAT Lookups'!$B$5:$B$12,\"Controls-\"&CBAT!$D60)=1,VLOOKUP(\"Controls-\"&CBAT!$D60,'CBAT Lookups'!$B$5:$K$12,10),0)*VLOOKUP($F60,'CBAT Lookups'!$B$17:$K$19,10))","v":""},{"$f":"IF('Project Scope'!$C60=\"\",\"\",VLOOKUP($C60,'CBAT Lookups'!$A$33:$B$57,2))","v":""},{"$f":"IF('Project Scope'!$C60=\"\",\"\",IF(COUNTIF('CBAT Lookups'!$B$5:$B$12,\"Controls-\"&CBAT!$D60)=1,VLOOKUP(\"Controls-\"&CBAT!$D60,'CBAT Lookups'!$B$5:$O$12,12),0))","v":""},{"$f":"IF('Project Scope'!$C60=\"\",\"\",IF(COUNTIF('CBAT Lookups'!$B$5:$B$12,\"Controls-\"&CBAT!$D60)=1,VLOOKUP(\"Controls-\"&CBAT!$D60,'CBAT Lookups'!$B$5:$O$12,13),0))","v":""},{"$f":"IF('Project Scope'!$C60=\"\",\"\",IF(COUNTIF('CBAT Lookups'!$B$5:$B$12,\"Controls-\"&CBAT!$D60)=1,VLOOKUP(\"Controls-\"&CBAT!$D60,'CBAT Lookups'!$B$5:$O$12,14),0))","v":""},{"$f":"IF('Project Scope'!$C60=\"\",\"\",'TRM Data'!$U$3)","v":""},{"$f":"IF('Project Scope'!$C60=\"\",\"\",'TRM Data'!$V$3)","v":""},{"$f":"IF('Project Scope'!$C60=\"\",\"\",IF($K60<=0,0,MAX(0,(IF(AND($I60>0,$J60>0),($I60*$J60)/1000,($G60*$H60)/1000)*$L60))*$BT60*$BR60)+($CD60/0.003412))","v":""},{"$f":"IF('Project Scope'!$C60=\"\",\"\",IF($K60<=0,0,MAX(0,IF(AND($I60>0,$J60>0),($I60*$J60)/1000,($G60*$H60)/1000))*$BQ60))","v":""},{"$f":"IF('Project Scope'!$C60=\"\",\"\",IF($K60<=0,0,MAX(0,IF(AND($I60>0,$J60>0),($I60*$J60)/1000,($G60*$H60)/1000))*$BK60))","v":""},{"$f":"IF('Project Scope'!$C60=\"\",\"\",IF($K60<=0,0,MAX(0,IF(AND($I60>0,$J60>0),($I60*$J60)/1000,($G60*$H60)/1000))*$BL60*$BQ60))","v":""},{"$f":"IF('Project Scope'!$C60=\"\",\"\",IF(OR($K60<=0,'Project Information'!$D$44=\"\"),0,-1*MAX(0,IF(AND($I60>0,$J60>0),($I60*$J60)/1000,($G60*$H60)/1000))*$BT60*$L60*$BS60*VLOOKUP('Project Information'!$D$44,'CBAT Lookups'!$A$23:$H$30,2)))","v":""},{"$f":"IF('Project Scope'!$C60=\"\",\"\",IF(OR($K60<=0,'Project Information'!$D$44=\"\"),0,-1*MAX(0,IF(AND($I60>0,$J60>0),($I60*$J60)/1000,($G60*$H60)/1000))*$BT60*$L60*$BS60*VLOOKUP('Project Information'!$D$44,'CBAT Lookups'!$A$23:$H$30,3)))","v":""},{"$f":"IF('Project Scope'!$C60=\"\",\"\",IF(OR($K60<=0,'Project Information'!$D$44=\"\"),0,-1*MAX(0,IF(AND($I60>0,$J60>0),($I60*$J60)/1000,($G60*$H60)/1000))*$BT60*$L60*$BS60*VLOOKUP('Project Information'!$D$44,'CBAT Lookups'!$A$23:$H$30,4)))","v":""},{"$f":"IF('Project Scope'!$C60=\"\",\"\",IF(OR($K60<=0,'Project Information'!$D$44=\"\"),0,-1*MAX(0,IF(AND($I60>0,$J60>0),($I60*$J60)/1000,($G60*$H60)/1000))*$BT60*$L60*$BS60*VLOOKUP('Project Information'!$D$44,'CBAT Lookups'!$A$23:$H$30,5)))","v":""},{"$f":"IF('Project Scope'!$C60=\"\",\"\",IF(OR($K60<=0,'Project Information'!$D$44=\"\"),0,-1*MAX(0,IF(AND($I60>0,$J60>0),($I60*$J60)/1000,($G60*$H60)/1000))*$BT60*$L60*$BS60*VLOOKUP('Project Information'!$D$44,'CBAT Lookups'!$A$23:$H$30,6)))","v":""},{"$f":"IF('Project Scope'!$C60=\"\",\"\",IF(OR($K60<=0,'Project Information'!$D$44=\"\"),0,-1*MAX(0,IF(AND($I60>0,$J60>0),($I60*$J60)/1000,($G60*$H60)/1000))*$BT60*$L60*$BS60*VLOOKUP('Project Information'!$D$44,'CBAT Lookups'!$A$23:$H$30,7)))","v":""},{"$f":"IF('Project Scope'!$C60=\"\",\"\",IF(OR($K60<=0,'Project Information'!$D$44=\"\"),0,-1*MAX(0,IF(AND($I60>0,$J60>0),($I60*$J60)/1000,($G60*$H60)/1000))*$BT60*$L60*$BS60*VLOOKUP('Project Information'!$D$44,'CBAT Lookups'!$A$23:$H$30,8)))","v":""},null,{"$f":"IF('Project Scope'!$C60=\"\",\"\",VLOOKUP($F60,'CBAT Lookups'!$B$17:$K$19,4))","v":""},{"$f":"IF('Project Scope'!$C60=\"\",\"\",VLOOKUP($F60,'CBAT Lookups'!$B$17:$K$19,5))","v":""},{"$f":"IF('Project Scope'!$C60=\"\",\"\",VLOOKUP($F60,'CBAT Lookups'!$B$17:$K$19,6))","v":""},{"$f":"IF('Project Scope'!$C60=\"\",\"\",VLOOKUP($F60,'CBAT Lookups'!$B$17:$K$19,7))","v":""},{"$f":"IF('Project Scope'!$C60=\"\",\"\",IF(SUMPRODUCT($BM60:$BP60,$CL60:$CO60)=0,0,BM60*CL60/SUMPRODUCT($BM60:$BP60,$CL60:$CO60)))","v":""},{"$f":"IF('Project Scope'!$C60=\"\",\"\",IF(SUMPRODUCT($BM60:$BP60,$CL60:$CO60)=0,0,BN60*CM60/SUMPRODUCT($BM60:$BP60,$CL60:$CO60)))","v":""},{"$f":"IF('Project Scope'!$C60=\"\",\"\",IF(SUMPRODUCT($BM60:$BP60,$CL60:$CO60)=0,0,BO60*CN60/SUMPRODUCT($BM60:$BP60,$CL60:$CO60)))","v":""},{"$f":"IF('Project Scope'!$C60=\"\",\"\",IF(SUMPRODUCT($BM60:$BP60,$CL60:$CO60)=0,0,BP60*CO60/SUMPRODUCT($BM60:$BP60,$CL60:$CO60)))","v":""},{"$f":"IF('Project Scope'!$C60=\"\",\"\",Benefits($BZ60,$CB60,$CC60,$CE60,$CF60,$CG60,$CH60,$CI60,$CJ60,$CK60,$BJ60,$CP60,$CQ60,$CR60,$CS60,$BU60,$BV60,$BW60,$BX60,$BY60,$E60))","v":""},"","","","","","","","",null,{"$f":"IF('Project Scope'!$C60=\"\",\"\",SUM('Project Scope'!$BB60,'Project Scope'!$BC60))","v":""},{"$f":"IF('Project Scope'!$C60=\"\",\"\",SUM('Project Scope'!$BH60, 'Project Scope'!$AZ60,(IF(ISNUMBER('Project Scope'!$BA60),'Project Scope'!$BA60,0)*'Project Information'!$D$12)))","v":""},null,null,{"$f":"IF('Project Scope'!$C60=\"\",\"\",IF($J60<=0,0,(SUMPRODUCT($AV60:$BC60,--($AV60:$BC60>0))+$BE60)*$DK60/((-SUMPRODUCT($AV60:$BC60,--($AV60:$BC60<0))+$BG60+$BH60+$BI60)*$DK60)))","v":""},{"$f":"IF('Project Scope'!$C60=\"\",\"\",IF($K60<=0,0,(SUMPRODUCT($CT60:$DA60,--($CT60:$DA60>0))+$DC60)*$DK60/((-SUMPRODUCT($CT60:$DA60,--($CT60:$DA60<0))+$DE60+$DF60+$DG60)*$DK60)))","v":""},{"$f":"IF('Project Scope'!$C60=\"\",\"\",IF(AND($J60<=0,$K60<=0),0,(SUMPRODUCT($AV60:$BC60,--($AV60:$BC60>0))+$BE60+SUMPRODUCT($CT60:$DA60,--($CT60:$DA60>0))+$DC60)*$DK60/((-SUMPRODUCT($AV60:$BC60,--($AV60:$BC60<0))+$BG60+$BH60+$BI60-SUMPRODUCT($CT60:$DA60,--($CT60:$DA60<0))+$DE60+$DF60+$DG60)*$DK60)))","v":""},{"$f":"IF('Project Scope'!$C60=\"\",\"\",IF(NetOrGross=\"Net\",(1-Z60+AA60),1))","v":""}]
[{"$f":"'Project Scope'!$B61","v":54},{"$f":"IF('Project Scope'!$C61=\"\",\"\",'Project Scope'!$C61)","v":""},{"$f":"IF('Project Scope'!$C61=\"\",\"\",'Project Scope'!$H61)","v":""},{"$f":"IF(ISNUMBER(SEARCH(\"Bay\",'Project Scope'!$Q61)),\"Bay\",IF('Project Scope'!C61=\"\",\"\",'Project Scope'!E61))","v":""},{"$f":"IF('Project Scope'!$C61=\"\",\"\",\"Com\")","v":""},{"$f":"IF('Project Scope'!$C61=\"\",\"\",'Project Scope'!$L61)","v":""},{"$f":"IF('Project Scope'!$C61=\"\",\"\",IF('Project Scope'!$CJ61=\"\",0,'Project Scope'!$CJ61))","v":""},{"$f":"IF('Project Scope'!$C61=\"\",\"\",IF('Project Scope'!$N61=\"\",0,'Project Scope'!$N61))","v":""},{"$f":"IF('Project Scope'!$C61=\"\",\"\",IF('Project Scope'!$CK61=\"\",0,'Project Scope'!$CK61))","v":""},{"$f":"IF('Project Scope'!$C61=\"\",\"\",IF('Project Scope'!$AO61=\"\",0,'Project Scope'!$AO61))","v":""},{"$f":"IF('Project Scope'!$C61=\"\",\"\",IF('Project Scope'!$AX61=\"\",0,'Project Scope'!$AX61))","v":""},{"$f":"IF('Project Scope'!$C61=\"\",\"\",IF('Project Scope'!$M61=\"\",0,'Project Scope'!$M61))","v":""},{"$f":"IF('Project Scope'!$C61=\"\",\"\",IF(COUNTIF('CBAT Lookups'!$B$5:$B$12,\"Fixtures-\"&CBAT!$D61)=1,VLOOKUP(\"Fixtures-\"&CBAT!$D61,'CBAT Lookups'!$B$5:$L$12,11),0))","v":""},{"$f":"IF('Project Scope'!$C61=\"\",\"\",(IF(COUNTIF('CBAT Lookups'!$B$5:$B$12,\"Fixtures-\"&CBAT!$D61)=1,VLOOKUP(\"Fixtures-\"&CBAT!$D61,'CBAT Lookups'!$B$5:$K$12,2),0))*VLOOKUP($F61,'CBAT Lookups'!$B$17:$K$19,2))","v":""},{"$f":"IF('Project Scope'!$C61=\"\",\"\",(IF(COUNTIF('CBAT Lookups'!$B$5:$B$12,\"Fixtures-\"&CBAT!$D61)=1,VLOOKUP(\"Fixtures-\"&CBAT!$D61,'CBAT Lookups'!$B$5:$K$12,3),0))*VLOOKUP($F61,'CBAT Lookups'!$B$17:$K$19,3))","v":""},{"$f":"IF('Project Scope'!$C61=\"\",\"\",(IF(COUNTIF('CBAT Lookups'!$B$5:$B$12,\"Fixtures-\"&CBAT!$D61)=1,VLOOKUP(\"Fixtures-\"&CBAT!$D61,'CBAT Lookups'!$B$5:$K$12,4),0)))","v":""},{"$f":"IF('Project Scope'!$C61=\"\",\"\",(IF(COUNTIF('CBAT Lookups'!$B$5:$B$12,\"Fixtures-\"&CBAT!$D61)=1,VLOOKUP(\"Fixtures-\"&CBAT!$D61,'CBAT Lookups'!$B$5:$K$12,5),0)))","v":""},{"$f":"IF('Project Scope'!$C61=\"\",\"\",(IF(COUNTIF('CBAT Lookups'!$B$5:$B$12,\"Fixtures-\"&CBAT!$D61)=1,VLOOKUP(\"Fixtures-\"&CBAT!$D61,'CBAT Lookups'!$B$5:$K$12,6),0)))","v":""},{"$f":"IF('Project Scope'!$C61=\"\",\"\",IF(COUNTIF('CBAT Lookups'!$B$5:$B$12,\"Fixtures-\"&CBAT!$D61)=1,VLOOKUP(\"Fixtures-\"&CBAT!$D61,'CBAT Lookups'!$B$5:$K$12,7),0))","v":""},{"$f":"IF('Project Scope'!$C61=\"\",\"\",IF(VLOOKUP($F61,'CBAT Lookups'!$B$17:$K$19,8)=\"W\",1,IF(COUNTIF('CBAT Lookups'!$B$5:$B$12,\"Fixtures-\"&CBAT!$D61)=1,VLOOKUP(\"Fixtures-\"&CBAT!$D61,'CBAT Lookups'!$B$5:$K$12,8),0)*VLOOKUP($F61,'CBAT Lookups'!$B$17:$K$19,8)))","v":""},{"$f":"IF('Project Scope'!$C61=\"\",\"\",IF(VLOOKUP($F61,'CBAT Lookups'!$B$17:$K$19,9)=\"W\",1,IF(COUNTIF('CBAT Lookups'!$B$5:$B$12,\"Fixtures-\"&CBAT!$D61)=1,VLOOKUP(\"Fixtures-\"&CBAT!$D61,'CBAT Lookups'!$B$5:$K$12,9),0)*VLOOKUP($F61,'CBAT Lookups'!$B$17:$K$19,9)))","v":""},{"$f":"IF('Project Scope'!$C61=\"\",\"\",IF(COUNTIF('CBAT Lookups'!$B$5:$B$12,\"Fixtures-\"&CBAT!$D61)=1,VLOOKUP(\"Fixtures-\"&CBAT!$D61,'CBAT Lookups'!$B$5:$K$12,10),0)*VLOOKUP($F61,'CBAT Lookups'!$B$17:$K$19,10))","v":""},{"$f":"IF('Project Scope'!$C61=\"\",\"\",IF(COUNTIF('CBAT Lookups'!$B$5:$B$12,\"Fixtures-\"&CBAT!$D61)=1,VLOOKUP(\"Fixtures-\"&CBAT!$D61,'CBAT Lookups'!$B$5:$O$12,12),0))","v":""},{"$f":"IF('Project Scope'!$C61=\"\",\"\",IF(COUNTIF('CBAT Lookups'!$B$5:$B$12,\"Fixtures-\"&CBAT!$D61)=1,VLOOKUP(\"Fixtures-\"&CBAT!$D61,'CBAT Lookups'!$B$5:$O$12,13),0))","v":""},{"$f":"IF('Project Scope'!$C61=\"\",\"\",IF(COUNTIF('CBAT Lookups'!$B$5:$B$12,\"Fixtures-\"&CBAT!$D61)=1,VLOOKUP(\"Fixtures-\"&CBAT!$D61,'CBAT Lookups'!$B$5:$O$12,14),0))","v":""},{"$f":"IF('Project Scope'!$C61=\"\",\"\",'TRM Data'!$U$3)","v":""},{"$f":"IF('Project Scope'!$C61=\"\",\"\",'TRM Data'!$V$3)","v":""},{"$f":"IF('Project Scope'!$C61=\"\",\"\",IF($J61<=0,0,MAX(0,(($G61*$H61/1000)-($I61*$J61/1000))*$L61)*$U61)+($AF61/0.003412))","v":""},{"$f":"IF('Project Scope'!$C61=\"\",\"\",IF($J61<=0,0,MAX(0,(($G61*$H61/1000)-($I61*$J61/1000)))*$T61))","v":""},{"$f":"IF('Project Scope'!$C61=\"\",\"\",IF($J61<=0,0,MAX(0,(($G61*$H61/1000)-($I61*$J61/1000))*$N61)))","v":""},{"$f":"IF('Project Scope'!$C61=\"\",\"\",IF($J61<=0,0,MAX(0,(($G61*$H61/1000)-($I61*$J61/1000))*$O61)*$T61))","v":""},{"$f":"IF('Project Scope'!$C61=\"\",\"\",IF(OR($J61<=0,'Project Information'!$D$44=\"\"),0,-1*MAX(0,(($G61*$H61/1000)-($I61*$J61/1000))*$L61)*$V61*VLOOKUP('Project Information'!$D$44,'CBAT Lookups'!$A$23:$H$30,2)))","v":""},{"$f":"IF('Project Scope'!$C61=\"\",\"\",IF(OR($J61<=0,'Project Information'!$D$44=\"\"),0,-1*MAX(0,(($G61*$H61/1000)-($I61*$J61/1000))*$L61)*$V61*VLOOKUP('Project Information'!$D$44,'CBAT Lookups'!$A$23:$H$30,3)))","v":""},{"$f":"IF('Project Scope'!$C61=\"\",\"\",IF(OR($J61<=0,'Project Information'!$D$44=\"\"),0,-1*MAX(0,(($G61*$H61/1000)-($I61*$J61/1000))*$L61)*$V61*VLOOKUP('Project Information'!$D$44,'CBAT Lookups'!$A$23:$H$30,4)))","v":""},{"$f":"IF('Project Scope'!$C61=\"\",\"\",IF(OR($J61<=0,'Project Information'!$D$44=\"\"),0,-1*MAX(0,(($G61*$H61/1000)-($I61*$J61/1000))*$L61)*$V61*VLOOKUP('Project Information'!$D$44,'CBAT Lookups'!$A$23:$H$30,5)))","v":""},{"$f":"IF('Project Scope'!$C61=\"\",\"\",IF(OR($J61<=0,'Project Information'!$D$44=\"\"),0,-1*MAX(0,(($G61*$H61/1000)-($I61*$J61/1000))*$L61)*$V61*VLOOKUP('Project Information'!$D$44,'CBAT Lookups'!$A$23:$H$30,6)))","v":""},{"$f":"IF('Project Scope'!$C61=\"\",\"\",IF(OR($J61<=0,'Project Information'!$D$44=\"\"),0,-1*MAX(0,(($G61*$H61/1000)-($I61*$J61/1000))*$L61)*$V61*VLOOKUP('Project Information'!$D$44,'CBAT Lookups'!$A$23:$H$30,7)))","v":""},{"$f":"IF('Project Scope'!$C61=\"\",\"\",IF(OR($J61<=0,'Project Information'!$D$44=\"\"),0,-1*MAX(0,(($G61*$H61/1000)-($I61*$J61/1000))*$L61)*$V61*VLOOKUP('Project Information'!$D$44,'CBAT Lookups'!$A$23:$H$30,8)))","v":""},null,{"$f":"IF('Project Scope'!$C61=\"\",\"\",VLOOKUP($F61,'CBAT Lookups'!$B$17:$K$19,4))","v":""},{"$f":"IF('Project Scope'!$C61=\"\",\"\",VLOOKUP($F61,'CBAT Lookups'!$B$17:$K$19,5))","v":""},{"$f":"IF('Project Scope'!$C61=\"\",\"\",VLOOKUP($F61,'CBAT Lookups'!$B$17:$K$19,6))","v":""},{"$f":"IF('Project Scope'!$C61=\"\",\"\",VLOOKUP($F61,'CBAT Lookups'!$B$17:$K$19,7))","v":""},{"$f":"IF('Project Scope'!$C61=\"\",\"\",IF(SUMPRODUCT($P61:$S61,$AN61:$AQ61)=0,0,P61*AN61/SUMPRODUCT($P61:$S61,$AN61:$AQ61)))","v":""},{"$f":"IF('Project Scope'!$C61=\"\",\"\",IF(SUMPRODUCT($P61:$S61,$AN61:$AQ61)=0,0,Q61*AO61/SUMPRODUCT($P61:$S61,$AN61:$AQ61)))","v":""},{"$f":"IF('Project Scope'!$C61=\"\",\"\",IF(SUMPRODUCT($P61:$S61,$AN61:$AQ61)=0,0,R61*AP61/SUMPRODUCT($P61:$S61,$AN61:$AQ61)))","v":""},{"$f":"IF('Project Scope'!$C61=\"\",\"\",IF(SUMPRODUCT($P61:$S61,$AN61:$AQ61)=0,0,S61*AQ61/SUMPRODUCT($P61:$S61,$AN61:$AQ61)))","v":""},{"$f":"IF('Project Scope'!$C61=\"\",\"\",Benefits($AB61,$AD61,$AE61,$AG61,$AH61,$AI61,$AJ61,$AK61,$AL61,$AM61,$M61,$AR61,$AS61,$AT61,$AU61,$W61,$X61,$Y61,$Z61,$AA61,$E61))","v":""},"","","","","","","","",null,{"$f":"IF('Project Scope'!$C61=\"\",\"\",SUM('Project Scope'!$AT61,'Project Scope'!$AU61))","v":""},{"$f":"IF('Project Scope'!$C61=\"\",\"\",SUM('Project Scope'!$BG61, 'Project Scope'!$AR61,(IF(ISNUMBER('Project Scope'!$AS61),'Project Scope'!$AS61,0)*'Project Information'!$D$12)))","v":""},null,null,{"$f":"IF('Project Scope'!$C61=\"\",\"\",IF(COUNTIF('CBAT Lookups'!$B$5:$B$12,\"Controls-\"&CBAT!$D61)=1,VLOOKUP(\"Controls-\"&CBAT!$D61,'CBAT Lookups'!$B$5:$L$12,11),0))","v":""},{"$f":"IF('Project Scope'!$C61=\"\",\"\",IF(COUNTIF('CBAT Lookups'!$B$5:$B$12,\"Controls-\"&CBAT!$D61)=1,VLOOKUP(\"Controls-\"&CBAT!$D61,'CBAT Lookups'!$B$5:$K$12,2),0)*VLOOKUP($F61,'CBAT Lookups'!$B$17:$K$19,2))","v":""},{"$f":"IF('Project Scope'!$C61=\"\",\"\",IF(COUNTIF('CBAT Lookups'!$B$5:$B$12,\"Controls-\"&CBAT!$D61)=1,VLOOKUP(\"Controls-\"&CBAT!$D61,'CBAT Lookups'!$B$5:$K$12,3),0)*VLOOKUP($F61,'CBAT Lookups'!$B$17:$K$19,3))","v":""},{"$f":"IF('Project Scope'!$C61=\"\",\"\",IF(COUNTIF('CBAT Lookups'!$B$5:$B$12,\"Controls-\"&CBAT!$D61)=1,VLOOKUP(\"Controls-\"&CBAT!$D61,'CBAT Lookups'!$B$5:$K$12,4),0))","v":""},{"$f":"IF('Project Scope'!$C61=\"\",\"\",IF(COUNTIF('CBAT Lookups'!$B$5:$B$12,\"Controls-\"&CBAT!$D61)=1,VLOOKUP(\"Controls-\"&CBAT!$D61,'CBAT Lookups'!$B$5:$K$12,5),0))","v":""},{"$f":"IF('Project Scope'!$C61=\"\",\"\",IF(COUNTIF('CBAT Lookups'!$B$5:$B$12,\"Controls-\"&CBAT!$D61)=1,VLOOKUP(\"Controls-\"&CBAT!$D61,'CBAT Lookups'!$B$5:$K$12,6),0))","v":""},{"$f":"IF('Project Scope'!$C61=\"\",\"\",IF(COUNTIF('CBAT Lookups'!$B$5:$B$12,\"Controls-\"&CBAT!$D61)=1,VLOOKUP(\"Controls-\"&CBAT!$D61,'CBAT Lookups'!$B$5:$K$12,7),0))","v":""},{"$f":"IF('Project Scope'!$C61=\"\",\"\",IF(VLOOKUP($F61,'CBAT Lookups'!$B$17:$K$19,8)=\"W\",1,IF(COUNTIF('CBAT Lookups'!$B$5:$B$12,\"Controls-\"&CBAT!$D61)=1,VLOOKUP(\"Controls-\"&CBAT!$D61,'CBAT Lookups'!$B$5:$K$12,8),0)*VLOOKUP($F61,'CBAT Lookups'!$B$17:$K$19,8)))","v":""},{"$f":"IF('Project Scope'!$C61=\"\",\"\",IF(VLOOKUP($F61,'CBAT Lookups'!$B$17:$K$19,9)=\"W\",1,IF(COUNTIF('CBAT Lookups'!$B$5:$B$12,\"Controls-\"&CBAT!$D61)=1,VLOOKUP(\"Controls-\"&CBAT!$D61,'CBAT Lookups'!$B$5:$K$12,9),0)*VLOOKUP($F61,'CBAT Lookups'!$B$17:$K$19,9)))","v":""},{"$f":"IF('Project Scope'!$C61=\"\",\"\",IF(COUNTIF('CBAT Lookups'!$B$5:$B$12,\"Controls-\"&CBAT!$D61)=1,VLOOKUP(\"Controls-\"&CBAT!$D61,'CBAT Lookups'!$B$5:$K$12,10),0)*VLOOKUP($F61,'CBAT Lookups'!$B$17:$K$19,10))","v":""},{"$f":"IF('Project Scope'!$C61=\"\",\"\",VLOOKUP($C61,'CBAT Lookups'!$A$33:$B$57,2))","v":""},{"$f":"IF('Project Scope'!$C61=\"\",\"\",IF(COUNTIF('CBAT Lookups'!$B$5:$B$12,\"Controls-\"&CBAT!$D61)=1,VLOOKUP(\"Controls-\"&CBAT!$D61,'CBAT Lookups'!$B$5:$O$12,12),0))","v":""},{"$f":"IF('Project Scope'!$C61=\"\",\"\",IF(COUNTIF('CBAT Lookups'!$B$5:$B$12,\"Controls-\"&CBAT!$D61)=1,VLOOKUP(\"Controls-\"&CBAT!$D61,'CBAT Lookups'!$B$5:$O$12,13),0))","v":""},{"$f":"IF('Project Scope'!$C61=\"\",\"\",IF(COUNTIF('CBAT Lookups'!$B$5:$B$12,\"Controls-\"&CBAT!$D61)=1,VLOOKUP(\"Controls-\"&CBAT!$D61,'CBAT Lookups'!$B$5:$O$12,14),0))","v":""},{"$f":"IF('Project Scope'!$C61=\"\",\"\",'TRM Data'!$U$3)","v":""},{"$f":"IF('Project Scope'!$C61=\"\",\"\",'TRM Data'!$V$3)","v":""},{"$f":"IF('Project Scope'!$C61=\"\",\"\",IF($K61<=0,0,MAX(0,(IF(AND($I61>0,$J61>0),($I61*$J61)/1000,($G61*$H61)/1000)*$L61))*$BT61*$BR61)+($CD61/0.003412))","v":""},{"$f":"IF('Project Scope'!$C61=\"\",\"\",IF($K61<=0,0,MAX(0,IF(AND($I61>0,$J61>0),($I61*$J61)/1000,($G61*$H61)/1000))*$BQ61))","v":""},{"$f":"IF('Project Scope'!$C61=\"\",\"\",IF($K61<=0,0,MAX(0,IF(AND($I61>0,$J61>0),($I61*$J61)/1000,($G61*$H61)/1000))*$BK61))","v":""},{"$f":"IF('Project Scope'!$C61=\"\",\"\",IF($K61<=0,0,MAX(0,IF(AND($I61>0,$J61>0),($I61*$J61)/1000,($G61*$H61)/1000))*$BL61*$BQ61))","v":""},{"$f":"IF('Project Scope'!$C61=\"\",\"\",IF(OR($K61<=0,'Project Information'!$D$44=\"\"),0,-1*MAX(0,IF(AND($I61>0,$J61>0),($I61*$J61)/1000,($G61*$H61)/1000))*$BT61*$L61*$BS61*VLOOKUP('Project Information'!$D$44,'CBAT Lookups'!$A$23:$H$30,2)))","v":""},{"$f":"IF('Project Scope'!$C61=\"\",\"\",IF(OR($K61<=0,'Project Information'!$D$44=\"\"),0,-1*MAX(0,IF(AND($I61>0,$J61>0),($I61*$J61)/1000,($G61*$H61)/1000))*$BT61*$L61*$BS61*VLOOKUP('Project Information'!$D$44,'CBAT Lookups'!$A$23:$H$30,3)))","v":""},{"$f":"IF('Project Scope'!$C61=\"\",\"\",IF(OR($K61<=0,'Project Information'!$D$44=\"\"),0,-1*MAX(0,IF(AND($I61>0,$J61>0),($I61*$J61)/1000,($G61*$H61)/1000))*$BT61*$L61*$BS61*VLOOKUP('Project Information'!$D$44,'CBAT Lookups'!$A$23:$H$30,4)))","v":""},{"$f":"IF('Project Scope'!$C61=\"\",\"\",IF(OR($K61<=0,'Project Information'!$D$44=\"\"),0,-1*MAX(0,IF(AND($I61>0,$J61>0),($I61*$J61)/1000,($G61*$H61)/1000))*$BT61*$L61*$BS61*VLOOKUP('Project Information'!$D$44,'CBAT Lookups'!$A$23:$H$30,5)))","v":""},{"$f":"IF('Project Scope'!$C61=\"\",\"\",IF(OR($K61<=0,'Project Information'!$D$44=\"\"),0,-1*MAX(0,IF(AND($I61>0,$J61>0),($I61*$J61)/1000,($G61*$H61)/1000))*$BT61*$L61*$BS61*VLOOKUP('Project Information'!$D$44,'CBAT Lookups'!$A$23:$H$30,6)))","v":""},{"$f":"IF('Project Scope'!$C61=\"\",\"\",IF(OR($K61<=0,'Project Information'!$D$44=\"\"),0,-1*MAX(0,IF(AND($I61>0,$J61>0),($I61*$J61)/1000,($G61*$H61)/1000))*$BT61*$L61*$BS61*VLOOKUP('Project Information'!$D$44,'CBAT Lookups'!$A$23:$H$30,7)))","v":""},{"$f":"IF('Project Scope'!$C61=\"\",\"\",IF(OR($K61<=0,'Project Information'!$D$44=\"\"),0,-1*MAX(0,IF(AND($I61>0,$J61>0),($I61*$J61)/1000,($G61*$H61)/1000))*$BT61*$L61*$BS61*VLOOKUP('Project Information'!$D$44,'CBAT Lookups'!$A$23:$H$30,8)))","v":""},null,{"$f":"IF('Project Scope'!$C61=\"\",\"\",VLOOKUP($F61,'CBAT Lookups'!$B$17:$K$19,4))","v":""},{"$f":"IF('Project Scope'!$C61=\"\",\"\",VLOOKUP($F61,'CBAT Lookups'!$B$17:$K$19,5))","v":""},{"$f":"IF('Project Scope'!$C61=\"\",\"\",VLOOKUP($F61,'CBAT Lookups'!$B$17:$K$19,6))","v":""},{"$f":"IF('Project Scope'!$C61=\"\",\"\",VLOOKUP($F61,'CBAT Lookups'!$B$17:$K$19,7))","v":""},{"$f":"IF('Project Scope'!$C61=\"\",\"\",IF(SUMPRODUCT($BM61:$BP61,$CL61:$CO61)=0,0,BM61*CL61/SUMPRODUCT($BM61:$BP61,$CL61:$CO61)))","v":""},{"$f":"IF('Project Scope'!$C61=\"\",\"\",IF(SUMPRODUCT($BM61:$BP61,$CL61:$CO61)=0,0,BN61*CM61/SUMPRODUCT($BM61:$BP61,$CL61:$CO61)))","v":""},{"$f":"IF('Project Scope'!$C61=\"\",\"\",IF(SUMPRODUCT($BM61:$BP61,$CL61:$CO61)=0,0,BO61*CN61/SUMPRODUCT($BM61:$BP61,$CL61:$CO61)))","v":""},{"$f":"IF('Project Scope'!$C61=\"\",\"\",IF(SUMPRODUCT($BM61:$BP61,$CL61:$CO61)=0,0,BP61*CO61/SUMPRODUCT($BM61:$BP61,$CL61:$CO61)))","v":""},{"$f":"IF('Project Scope'!$C61=\"\",\"\",Benefits($BZ61,$CB61,$CC61,$CE61,$CF61,$CG61,$CH61,$CI61,$CJ61,$CK61,$BJ61,$CP61,$CQ61,$CR61,$CS61,$BU61,$BV61,$BW61,$BX61,$BY61,$E61))","v":""},"","","","","","","","",null,{"$f":"IF('Project Scope'!$C61=\"\",\"\",SUM('Project Scope'!$BB61,'Project Scope'!$BC61))","v":""},{"$f":"IF('Project Scope'!$C61=\"\",\"\",SUM('Project Scope'!$BH61, 'Project Scope'!$AZ61,(IF(ISNUMBER('Project Scope'!$BA61),'Project Scope'!$BA61,0)*'Project Information'!$D$12)))","v":""},null,null,{"$f":"IF('Project Scope'!$C61=\"\",\"\",IF($J61<=0,0,(SUMPRODUCT($AV61:$BC61,--($AV61:$BC61>0))+$BE61)*$DK61/((-SUMPRODUCT($AV61:$BC61,--($AV61:$BC61<0))+$BG61+$BH61+$BI61)*$DK61)))","v":""},{"$f":"IF('Project Scope'!$C61=\"\",\"\",IF($K61<=0,0,(SUMPRODUCT($CT61:$DA61,--($CT61:$DA61>0))+$DC61)*$DK61/((-SUMPRODUCT($CT61:$DA61,--($CT61:$DA61<0))+$DE61+$DF61+$DG61)*$DK61)))","v":""},{"$f":"IF('Project Scope'!$C61=\"\",\"\",IF(AND($J61<=0,$K61<=0),0,(SUMPRODUCT($AV61:$BC61,--($AV61:$BC61>0))+$BE61+SUMPRODUCT($CT61:$DA61,--($CT61:$DA61>0))+$DC61)*$DK61/((-SUMPRODUCT($AV61:$BC61,--($AV61:$BC61<0))+$BG61+$BH61+$BI61-SUMPRODUCT($CT61:$DA61,--($CT61:$DA61<0))+$DE61+$DF61+$DG61)*$DK61)))","v":""},{"$f":"IF('Project Scope'!$C61=\"\",\"\",IF(NetOrGross=\"Net\",(1-Z61+AA61),1))","v":""}]
[{"$f":"'Project Scope'!$B62","v":55},{"$f":"IF('Project Scope'!$C62=\"\",\"\",'Project Scope'!$C62)","v":""},{"$f":"IF('Project Scope'!$C62=\"\",\"\",'Project Scope'!$H62)","v":""},{"$f":"IF(ISNUMBER(SEARCH(\"Bay\",'Project Scope'!$Q62)),\"Bay\",IF('Project Scope'!C62=\"\",\"\",'Project Scope'!E62))","v":""},{"$f":"IF('Project Scope'!$C62=\"\",\"\",\"Com\")","v":""},{"$f":"IF('Project Scope'!$C62=\"\",\"\",'Project Scope'!$L62)","v":""},{"$f":"IF('Project Scope'!$C62=\"\",\"\",IF('Project Scope'!$CJ62=\"\",0,'Project Scope'!$CJ62))","v":""},{"$f":"IF('Project Scope'!$C62=\"\",\"\",IF('Project Scope'!$N62=\"\",0,'Project Scope'!$N62))","v":""},{"$f":"IF('Project Scope'!$C62=\"\",\"\",IF('Project Scope'!$CK62=\"\",0,'Project Scope'!$CK62))","v":""},{"$f":"IF('Project Scope'!$C62=\"\",\"\",IF('Project Scope'!$AO62=\"\",0,'Project Scope'!$AO62))","v":""},{"$f":"IF('Project Scope'!$C62=\"\",\"\",IF('Project Scope'!$AX62=\"\",0,'Project Scope'!$AX62))","v":""},{"$f":"IF('Project Scope'!$C62=\"\",\"\",IF('Project Scope'!$M62=\"\",0,'Project Scope'!$M62))","v":""},{"$f":"IF('Project Scope'!$C62=\"\",\"\",IF(COUNTIF('CBAT Lookups'!$B$5:$B$12,\"Fixtures-\"&CBAT!$D62)=1,VLOOKUP(\"Fixtures-\"&CBAT!$D62,'CBAT Lookups'!$B$5:$L$12,11),0))","v":""},{"$f":"IF('Project Scope'!$C62=\"\",\"\",(IF(COUNTIF('CBAT Lookups'!$B$5:$B$12,\"Fixtures-\"&CBAT!$D62)=1,VLOOKUP(\"Fixtures-\"&CBAT!$D62,'CBAT Lookups'!$B$5:$K$12,2),0))*VLOOKUP($F62,'CBAT Lookups'!$B$17:$K$19,2))","v":""},{"$f":"IF('Project Scope'!$C62=\"\",\"\",(IF(COUNTIF('CBAT Lookups'!$B$5:$B$12,\"Fixtures-\"&CBAT!$D62)=1,VLOOKUP(\"Fixtures-\"&CBAT!$D62,'CBAT Lookups'!$B$5:$K$12,3),0))*VLOOKUP($F62,'CBAT Lookups'!$B$17:$K$19,3))","v":""},{"$f":"IF('Project Scope'!$C62=\"\",\"\",(IF(COUNTIF('CBAT Lookups'!$B$5:$B$12,\"Fixtures-\"&CBAT!$D62)=1,VLOOKUP(\"Fixtures-\"&CBAT!$D62,'CBAT Lookups'!$B$5:$K$12,4),0)))","v":""},{"$f":"IF('Project Scope'!$C62=\"\",\"\",(IF(COUNTIF('CBAT Lookups'!$B$5:$B$12,\"Fixtures-\"&CBAT!$D62)=1,VLOOKUP(\"Fixtures-\"&CBAT!$D62,'CBAT Lookups'!$B$5:$K$12,5),0)))","v":""},{"$f":"IF('Project Scope'!$C62=\"\",\"\",(IF(COUNTIF('CBAT Lookups'!$B$5:$B$12,\"Fixtures-\"&CBAT!$D62)=1,VLOOKUP(\"Fixtures-\"&CBAT!$D62,'CBAT Lookups'!$B$5:$K$12,6),0)))","v":""},{"$f":"IF('Project Scope'!$C62=\"\",\"\",IF(COUNTIF('CBAT Lookups'!$B$5:$B$12,\"Fixtures-\"&CBAT!$D62)=1,VLOOKUP(\"Fixtures-\"&CBAT!$D62,'CBAT Lookups'!$B$5:$K$12,7),0))","v":""},{"$f":"IF('Project Scope'!$C62=\"\",\"\",IF(VLOOKUP($F62,'CBAT Lookups'!$B$17:$K$19,8)=\"W\",1,IF(COUNTIF('CBAT Lookups'!$B$5:$B$12,\"Fixtures-\"&CBAT!$D62)=1,VLOOKUP(\"Fixtures-\"&CBAT!$D62,'CBAT Lookups'!$B$5:$K$12,8),0)*VLOOKUP($F62,'CBAT Lookups'!$B$17:$K$19,8)))","v":""},{"$f":"IF('Project Scope'!$C62=\"\",\"\",IF(VLOOKUP($F62,'CBAT Lookups'!$B$17:$K$19,9)=\"W\",1,IF(COUNTIF('CBAT Lookups'!$B$5:$B$12,\"Fixtures-\"&CBAT!$D62)=1,VLOOKUP(\"Fixtures-\"&CBAT!$D62,'CBAT Lookups'!$B$5:$K$12,9),0)*VLOOKUP($F62,'CBAT Lookups'!$B$17:$K$19,9)))","v":""},{"$f":"IF('Project Scope'!$C62=\"\",\"\",IF(COUNTIF('CBAT Lookups'!$B$5:$B$12,\"Fixtures-\"&CBAT!$D62)=1,VLOOKUP(\"Fixtures-\"&CBAT!$D62,'CBAT Lookups'!$B$5:$K$12,10),0)*VLOOKUP($F62,'CBAT Lookups'!$B$17:$K$19,10))","v":""},{"$f":"IF('Project Scope'!$C62=\"\",\"\",IF(COUNTIF('CBAT Lookups'!$B$5:$B$12,\"Fixtures-\"&CBAT!$D62)=1,VLOOKUP(\"Fixtures-\"&CBAT!$D62,'CBAT Lookups'!$B$5:$O$12,12),0))","v":""},{"$f":"IF('Project Scope'!$C62=\"\",\"\",IF(COUNTIF('CBAT Lookups'!$B$5:$B$12,\"Fixtures-\"&CBAT!$D62)=1,VLOOKUP(\"Fixtures-\"&CBAT!$D62,'CBAT Lookups'!$B$5:$O$12,13),0))","v":""},{"$f":"IF('Project Scope'!$C62=\"\",\"\",IF(COUNTIF('CBAT Lookups'!$B$5:$B$12,\"Fixtures-\"&CBAT!$D62)=1,VLOOKUP(\"Fixtures-\"&CBAT!$D62,'CBAT Lookups'!$B$5:$O$12,14),0))","v":""},{"$f":"IF('Project Scope'!$C62=\"\",\"\",'TRM Data'!$U$3)","v":""},{"$f":"IF('Project Scope'!$C62=\"\",\"\",'TRM Data'!$V$3)","v":""},{"$f":"IF('Project Scope'!$C62=\"\",\"\",IF($J62<=0,0,MAX(0,(($G62*$H62/1000)-($I62*$J62/1000))*$L62)*$U62)+($AF62/0.003412))","v":""},{"$f":"IF('Project Scope'!$C62=\"\",\"\",IF($J62<=0,0,MAX(0,(($G62*$H62/1000)-($I62*$J62/1000)))*$T62))","v":""},{"$f":"IF('Project Scope'!$C62=\"\",\"\",IF($J62<=0,0,MAX(0,(($G62*$H62/1000)-($I62*$J62/1000))*$N62)))","v":""},{"$f":"IF('Project Scope'!$C62=\"\",\"\",IF($J62<=0,0,MAX(0,(($G62*$H62/1000)-($I62*$J62/1000))*$O62)*$T62))","v":""},{"$f":"IF('Project Scope'!$C62=\"\",\"\",IF(OR($J62<=0,'Project Information'!$D$44=\"\"),0,-1*MAX(0,(($G62*$H62/1000)-($I62*$J62/1000))*$L62)*$V62*VLOOKUP('Project Information'!$D$44,'CBAT Lookups'!$A$23:$H$30,2)))","v":""},{"$f":"IF('Project Scope'!$C62=\"\",\"\",IF(OR($J62<=0,'Project Information'!$D$44=\"\"),0,-1*MAX(0,(($G62*$H62/1000)-($I62*$J62/1000))*$L62)*$V62*VLOOKUP('Project Information'!$D$44,'CBAT Lookups'!$A$23:$H$30,3)))","v":""},{"$f":"IF('Project Scope'!$C62=\"\",\"\",IF(OR($J62<=0,'Project Information'!$D$44=\"\"),0,-1*MAX(0,(($G62*$H62/1000)-($I62*$J62/1000))*$L62)*$V62*VLOOKUP('Project Information'!$D$44,'CBAT Lookups'!$A$23:$H$30,4)))","v":""},{"$f":"IF('Project Scope'!$C62=\"\",\"\",IF(OR($J62<=0,'Project Information'!$D$44=\"\"),0,-1*MAX(0,(($G62*$H62/1000)-($I62*$J62/1000))*$L62)*$V62*VLOOKUP('Project Information'!$D$44,'CBAT Lookups'!$A$23:$H$30,5)))","v":""},{"$f":"IF('Project Scope'!$C62=\"\",\"\",IF(OR($J62<=0,'Project Information'!$D$44=\"\"),0,-1*MAX(0,(($G62*$H62/1000)-($I62*$J62/1000))*$L62)*$V62*VLOOKUP('Project Information'!$D$44,'CBAT Lookups'!$A$23:$H$30,6)))","v":""},{"$f":"IF('Project Scope'!$C62=\"\",\"\",IF(OR($J62<=0,'Project Information'!$D$44=\"\"),0,-1*MAX(0,(($G62*$H62/1000)-($I62*$J62/1000))*$L62)*$V62*VLOOKUP('Project Information'!$D$44,'CBAT Lookups'!$A$23:$H$30,7)))","v":""},{"$f":"IF('Project Scope'!$C62=\"\",\"\",IF(OR($J62<=0,'Project Information'!$D$44=\"\"),0,-1*MAX(0,(($G62*$H62/1000)-($I62*$J62/1000))*$L62)*$V62*VLOOKUP('Project Information'!$D$44,'CBAT Lookups'!$A$23:$H$30,8)))","v":""},null,{"$f":"IF('Project Scope'!$C62=\"\",\"\",VLOOKUP($F62,'CBAT Lookups'!$B$17:$K$19,4))","v":""},{"$f":"IF('Project Scope'!$C62=\"\",\"\",VLOOKUP($F62,'CBAT Lookups'!$B$17:$K$19,5))","v":""},{"$f":"IF('Project Scope'!$C62=\"\",\"\",VLOOKUP($F62,'CBAT Lookups'!$B$17:$K$19,6))","v":""},{"$f":"IF('Project Scope'!$C62=\"\",\"\",VLOOKUP($F62,'CBAT Lookups'!$B$17:$K$19,7))","v":""},{"$f":"IF('Project Scope'!$C62=\"\",\"\",IF(SUMPRODUCT($P62:$S62,$AN62:$AQ62)=0,0,P62*AN62/SUMPRODUCT($P62:$S62,$AN62:$AQ62)))","v":""},{"$f":"IF('Project Scope'!$C62=\"\",\"\",IF(SUMPRODUCT($P62:$S62,$AN62:$AQ62)=0,0,Q62*AO62/SUMPRODUCT($P62:$S62,$AN62:$AQ62)))","v":""},{"$f":"IF('Project Scope'!$C62=\"\",\"\",IF(SUMPRODUCT($P62:$S62,$AN62:$AQ62)=0,0,R62*AP62/SUMPRODUCT($P62:$S62,$AN62:$AQ62)))","v":""},{"$f":"IF('Project Scope'!$C62=\"\",\"\",IF(SUMPRODUCT($P62:$S62,$AN62:$AQ62)=0,0,S62*AQ62/SUMPRODUCT($P62:$S62,$AN62:$AQ62)))","v":""},{"$f":"IF('Project Scope'!$C62=\"\",\"\",Benefits($AB62,$AD62,$AE62,$AG62,$AH62,$AI62,$AJ62,$AK62,$AL62,$AM62,$M62,$AR62,$AS62,$AT62,$AU62,$W62,$X62,$Y62,$Z62,$AA62,$E62))","v":""},"","","","","","","","",null,{"$f":"IF('Project Scope'!$C62=\"\",\"\",SUM('Project Scope'!$AT62,'Project Scope'!$AU62))","v":""},{"$f":"IF('Project Scope'!$C62=\"\",\"\",SUM('Project Scope'!$BG62, 'Project Scope'!$AR62,(IF(ISNUMBER('Project Scope'!$AS62),'Project Scope'!$AS62,0)*'Project Information'!$D$12)))","v":""},null,null,{"$f":"IF('Project Scope'!$C62=\"\",\"\",IF(COUNTIF('CBAT Lookups'!$B$5:$B$12,\"Controls-\"&CBAT!$D62)=1,VLOOKUP(\"Controls-\"&CBAT!$D62,'CBAT Lookups'!$B$5:$L$12,11),0))","v":""},{"$f":"IF('Project Scope'!$C62=\"\",\"\",IF(COUNTIF('CBAT Lookups'!$B$5:$B$12,\"Controls-\"&CBAT!$D62)=1,VLOOKUP(\"Controls-\"&CBAT!$D62,'CBAT Lookups'!$B$5:$K$12,2),0)*VLOOKUP($F62,'CBAT Lookups'!$B$17:$K$19,2))","v":""},{"$f":"IF('Project Scope'!$C62=\"\",\"\",IF(COUNTIF('CBAT Lookups'!$B$5:$B$12,\"Controls-\"&CBAT!$D62)=1,VLOOKUP(\"Controls-\"&CBAT!$D62,'CBAT Lookups'!$B$5:$K$12,3),0)*VLOOKUP($F62,'CBAT Lookups'!$B$17:$K$19,3))","v":""},{"$f":"IF('Project Scope'!$C62=\"\",\"\",IF(COUNTIF('CBAT Lookups'!$B$5:$B$12,\"Controls-\"&CBAT!$D62)=1,VLOOKUP(\"Controls-\"&CBAT!$D62,'CBAT Lookups'!$B$5:$K$12,4),0))","v":""},{"$f":"IF('Project Scope'!$C62=\"\",\"\",IF(COUNTIF('CBAT Lookups'!$B$5:$B$12,\"Controls-\"&CBAT!$D62)=1,VLOOKUP(\"Controls-\"&CBAT!$D62,'CBAT Lookups'!$B$5:$K$12,5),0))","v":""},{"$f":"IF('Project Scope'!$C62=\"\",\"\",IF(COUNTIF('CBAT Lookups'!$B$5:$B$12,\"Controls-\"&CBAT!$D62)=1,VLOOKUP(\"Controls-\"&CBAT!$D62,'CBAT Lookups'!$B$5:$K$12,6),0))","v":""},{"$f":"IF('Project Scope'!$C62=\"\",\"\",IF(COUNTIF('CBAT Lookups'!$B$5:$B$12,\"Controls-\"&CBAT!$D62)=1,VLOOKUP(\"Controls-\"&CBAT!$D62,'CBAT Lookups'!$B$5:$K$12,7),0))","v":""},{"$f":"IF('Project Scope'!$C62=\"\",\"\",IF(VLOOKUP($F62,'CBAT Lookups'!$B$17:$K$19,8)=\"W\",1,IF(COUNTIF('CBAT Lookups'!$B$5:$B$12,\"Controls-\"&CBAT!$D62)=1,VLOOKUP(\"Controls-\"&CBAT!$D62,'CBAT Lookups'!$B$5:$K$12,8),0)*VLOOKUP($F62,'CBAT Lookups'!$B$17:$K$19,8)))","v":""},{"$f":"IF('Project Scope'!$C62=\"\",\"\",IF(VLOOKUP($F62,'CBAT Lookups'!$B$17:$K$19,9)=\"W\",1,IF(COUNTIF('CBAT Lookups'!$B$5:$B$12,\"Controls-\"&CBAT!$D62)=1,VLOOKUP(\"Controls-\"&CBAT!$D62,'CBAT Lookups'!$B$5:$K$12,9),0)*VLOOKUP($F62,'CBAT Lookups'!$B$17:$K$19,9)))","v":""},{"$f":"IF('Project Scope'!$C62=\"\",\"\",IF(COUNTIF('CBAT Lookups'!$B$5:$B$12,\"Controls-\"&CBAT!$D62)=1,VLOOKUP(\"Controls-\"&CBAT!$D62,'CBAT Lookups'!$B$5:$K$12,10),0)*VLOOKUP($F62,'CBAT Lookups'!$B$17:$K$19,10))","v":""},{"$f":"IF('Project Scope'!$C62=\"\",\"\",VLOOKUP($C62,'CBAT Lookups'!$A$33:$B$57,2))","v":""},{"$f":"IF('Project Scope'!$C62=\"\",\"\",IF(COUNTIF('CBAT Lookups'!$B$5:$B$12,\"Controls-\"&CBAT!$D62)=1,VLOOKUP(\"Controls-\"&CBAT!$D62,'CBAT Lookups'!$B$5:$O$12,12),0))","v":""},{"$f":"IF('Project Scope'!$C62=\"\",\"\",IF(COUNTIF('CBAT Lookups'!$B$5:$B$12,\"Controls-\"&CBAT!$D62)=1,VLOOKUP(\"Controls-\"&CBAT!$D62,'CBAT Lookups'!$B$5:$O$12,13),0))","v":""},{"$f":"IF('Project Scope'!$C62=\"\",\"\",IF(COUNTIF('CBAT Lookups'!$B$5:$B$12,\"Controls-\"&CBAT!$D62)=1,VLOOKUP(\"Controls-\"&CBAT!$D62,'CBAT Lookups'!$B$5:$O$12,14),0))","v":""},{"$f":"IF('Project Scope'!$C62=\"\",\"\",'TRM Data'!$U$3)","v":""},{"$f":"IF('Project Scope'!$C62=\"\",\"\",'TRM Data'!$V$3)","v":""},{"$f":"IF('Project Scope'!$C62=\"\",\"\",IF($K62<=0,0,MAX(0,(IF(AND($I62>0,$J62>0),($I62*$J62)/1000,($G62*$H62)/1000)*$L62))*$BT62*$BR62)+($CD62/0.003412))","v":""},{"$f":"IF('Project Scope'!$C62=\"\",\"\",IF($K62<=0,0,MAX(0,IF(AND($I62>0,$J62>0),($I62*$J62)/1000,($G62*$H62)/1000))*$BQ62))","v":""},{"$f":"IF('Project Scope'!$C62=\"\",\"\",IF($K62<=0,0,MAX(0,IF(AND($I62>0,$J62>0),($I62*$J62)/1000,($G62*$H62)/1000))*$BK62))","v":""},{"$f":"IF('Project Scope'!$C62=\"\",\"\",IF($K62<=0,0,MAX(0,IF(AND($I62>0,$J62>0),($I62*$J62)/1000,($G62*$H62)/1000))*$BL62*$BQ62))","v":""},{"$f":"IF('Project Scope'!$C62=\"\",\"\",IF(OR($K62<=0,'Project Information'!$D$44=\"\"),0,-1*MAX(0,IF(AND($I62>0,$J62>0),($I62*$J62)/1000,($G62*$H62)/1000))*$BT62*$L62*$BS62*VLOOKUP('Project Information'!$D$44,'CBAT Lookups'!$A$23:$H$30,2)))","v":""},{"$f":"IF('Project Scope'!$C62=\"\",\"\",IF(OR($K62<=0,'Project Information'!$D$44=\"\"),0,-1*MAX(0,IF(AND($I62>0,$J62>0),($I62*$J62)/1000,($G62*$H62)/1000))*$BT62*$L62*$BS62*VLOOKUP('Project Information'!$D$44,'CBAT Lookups'!$A$23:$H$30,3)))","v":""},{"$f":"IF('Project Scope'!$C62=\"\",\"\",IF(OR($K62<=0,'Project Information'!$D$44=\"\"),0,-1*MAX(0,IF(AND($I62>0,$J62>0),($I62*$J62)/1000,($G62*$H62)/1000))*$BT62*$L62*$BS62*VLOOKUP('Project Information'!$D$44,'CBAT Lookups'!$A$23:$H$30,4)))","v":""},{"$f":"IF('Project Scope'!$C62=\"\",\"\",IF(OR($K62<=0,'Project Information'!$D$44=\"\"),0,-1*MAX(0,IF(AND($I62>0,$J62>0),($I62*$J62)/1000,($G62*$H62)/1000))*$BT62*$L62*$BS62*VLOOKUP('Project Information'!$D$44,'CBAT Lookups'!$A$23:$H$30,5)))","v":""},{"$f":"IF('Project Scope'!$C62=\"\",\"\",IF(OR($K62<=0,'Project Information'!$D$44=\"\"),0,-1*MAX(0,IF(AND($I62>0,$J62>0),($I62*$J62)/1000,($G62*$H62)/1000))*$BT62*$L62*$BS62*VLOOKUP('Project Information'!$D$44,'CBAT Lookups'!$A$23:$H$30,6)))","v":""},{"$f":"IF('Project Scope'!$C62=\"\",\"\",IF(OR($K62<=0,'Project Information'!$D$44=\"\"),0,-1*MAX(0,IF(AND($I62>0,$J62>0),($I62*$J62)/1000,($G62*$H62)/1000))*$BT62*$L62*$BS62*VLOOKUP('Project Information'!$D$44,'CBAT Lookups'!$A$23:$H$30,7)))","v":""},{"$f":"IF('Project Scope'!$C62=\"\",\"\",IF(OR($K62<=0,'Project Information'!$D$44=\"\"),0,-1*MAX(0,IF(AND($I62>0,$J62>0),($I62*$J62)/1000,($G62*$H62)/1000))*$BT62*$L62*$BS62*VLOOKUP('Project Information'!$D$44,'CBAT Lookups'!$A$23:$H$30,8)))","v":""},null,{"$f":"IF('Project Scope'!$C62=\"\",\"\",VLOOKUP($F62,'CBAT Lookups'!$B$17:$K$19,4))","v":""},{"$f":"IF('Project Scope'!$C62=\"\",\"\",VLOOKUP($F62,'CBAT Lookups'!$B$17:$K$19,5))","v":""},{"$f":"IF('Project Scope'!$C62=\"\",\"\",VLOOKUP($F62,'CBAT Lookups'!$B$17:$K$19,6))","v":""},{"$f":"IF('Project Scope'!$C62=\"\",\"\",VLOOKUP($F62,'CBAT Lookups'!$B$17:$K$19,7))","v":""},{"$f":"IF('Project Scope'!$C62=\"\",\"\",IF(SUMPRODUCT($BM62:$BP62,$CL62:$CO62)=0,0,BM62*CL62/SUMPRODUCT($BM62:$BP62,$CL62:$CO62)))","v":""},{"$f":"IF('Project Scope'!$C62=\"\",\"\",IF(SUMPRODUCT($BM62:$BP62,$CL62:$CO62)=0,0,BN62*CM62/SUMPRODUCT($BM62:$BP62,$CL62:$CO62)))","v":""},{"$f":"IF('Project Scope'!$C62=\"\",\"\",IF(SUMPRODUCT($BM62:$BP62,$CL62:$CO62)=0,0,BO62*CN62/SUMPRODUCT($BM62:$BP62,$CL62:$CO62)))","v":""},{"$f":"IF('Project Scope'!$C62=\"\",\"\",IF(SUMPRODUCT($BM62:$BP62,$CL62:$CO62)=0,0,BP62*CO62/SUMPRODUCT($BM62:$BP62,$CL62:$CO62)))","v":""},{"$f":"IF('Project Scope'!$C62=\"\",\"\",Benefits($BZ62,$CB62,$CC62,$CE62,$CF62,$CG62,$CH62,$CI62,$CJ62,$CK62,$BJ62,$CP62,$CQ62,$CR62,$CS62,$BU62,$BV62,$BW62,$BX62,$BY62,$E62))","v":""},"","","","","","","","",null,{"$f":"IF('Project Scope'!$C62=\"\",\"\",SUM('Project Scope'!$BB62,'Project Scope'!$BC62))","v":""},{"$f":"IF('Project Scope'!$C62=\"\",\"\",SUM('Project Scope'!$BH62, 'Project Scope'!$AZ62,(IF(ISNUMBER('Project Scope'!$BA62),'Project Scope'!$BA62,0)*'Project Information'!$D$12)))","v":""},null,null,{"$f":"IF('Project Scope'!$C62=\"\",\"\",IF($J62<=0,0,(SUMPRODUCT($AV62:$BC62,--($AV62:$BC62>0))+$BE62)*$DK62/((-SUMPRODUCT($AV62:$BC62,--($AV62:$BC62<0))+$BG62+$BH62+$BI62)*$DK62)))","v":""},{"$f":"IF('Project Scope'!$C62=\"\",\"\",IF($K62<=0,0,(SUMPRODUCT($CT62:$DA62,--($CT62:$DA62>0))+$DC62)*$DK62/((-SUMPRODUCT($CT62:$DA62,--($CT62:$DA62<0))+$DE62+$DF62+$DG62)*$DK62)))","v":""},{"$f":"IF('Project Scope'!$C62=\"\",\"\",IF(AND($J62<=0,$K62<=0),0,(SUMPRODUCT($AV62:$BC62,--($AV62:$BC62>0))+$BE62+SUMPRODUCT($CT62:$DA62,--($CT62:$DA62>0))+$DC62)*$DK62/((-SUMPRODUCT($AV62:$BC62,--($AV62:$BC62<0))+$BG62+$BH62+$BI62-SUMPRODUCT($CT62:$DA62,--($CT62:$DA62<0))+$DE62+$DF62+$DG62)*$DK62)))","v":""},{"$f":"IF('Project Scope'!$C62=\"\",\"\",IF(NetOrGross=\"Net\",(1-Z62+AA62),1))","v":""}]
[{"$f":"'Project Scope'!$B63","v":56},{"$f":"IF('Project Scope'!$C63=\"\",\"\",'Project Scope'!$C63)","v":""},{"$f":"IF('Project Scope'!$C63=\"\",\"\",'Project Scope'!$H63)","v":""},{"$f":"IF(ISNUMBER(SEARCH(\"Bay\",'Project Scope'!$Q63)),\"Bay\",IF('Project Scope'!C63=\"\",\"\",'Project Scope'!E63))","v":""},{"$f":"IF('Project Scope'!$C63=\"\",\"\",\"Com\")","v":""},{"$f":"IF('Project Scope'!$C63=\"\",\"\",'Project Scope'!$L63)","v":""},{"$f":"IF('Project Scope'!$C63=\"\",\"\",IF('Project Scope'!$CJ63=\"\",0,'Project Scope'!$CJ63))","v":""},{"$f":"IF('Project Scope'!$C63=\"\",\"\",IF('Project Scope'!$N63=\"\",0,'Project Scope'!$N63))","v":""},{"$f":"IF('Project Scope'!$C63=\"\",\"\",IF('Project Scope'!$CK63=\"\",0,'Project Scope'!$CK63))","v":""},{"$f":"IF('Project Scope'!$C63=\"\",\"\",IF('Project Scope'!$AO63=\"\",0,'Project Scope'!$AO63))","v":""},{"$f":"IF('Project Scope'!$C63=\"\",\"\",IF('Project Scope'!$AX63=\"\",0,'Project Scope'!$AX63))","v":""},{"$f":"IF('Project Scope'!$C63=\"\",\"\",IF('Project Scope'!$M63=\"\",0,'Project Scope'!$M63))","v":""},{"$f":"IF('Project Scope'!$C63=\"\",\"\",IF(COUNTIF('CBAT Lookups'!$B$5:$B$12,\"Fixtures-\"&CBAT!$D63)=1,VLOOKUP(\"Fixtures-\"&CBAT!$D63,'CBAT Lookups'!$B$5:$L$12,11),0))","v":""},{"$f":"IF('Project Scope'!$C63=\"\",\"\",(IF(COUNTIF('CBAT Lookups'!$B$5:$B$12,\"Fixtures-\"&CBAT!$D63)=1,VLOOKUP(\"Fixtures-\"&CBAT!$D63,'CBAT Lookups'!$B$5:$K$12,2),0))*VLOOKUP($F63,'CBAT Lookups'!$B$17:$K$19,2))","v":""},{"$f":"IF('Project Scope'!$C63=\"\",\"\",(IF(COUNTIF('CBAT Lookups'!$B$5:$B$12,\"Fixtures-\"&CBAT!$D63)=1,VLOOKUP(\"Fixtures-\"&CBAT!$D63,'CBAT Lookups'!$B$5:$K$12,3),0))*VLOOKUP($F63,'CBAT Lookups'!$B$17:$K$19,3))","v":""},{"$f":"IF('Project Scope'!$C63=\"\",\"\",(IF(COUNTIF('CBAT Lookups'!$B$5:$B$12,\"Fixtures-\"&CBAT!$D63)=1,VLOOKUP(\"Fixtures-\"&CBAT!$D63,'CBAT Lookups'!$B$5:$K$12,4),0)))","v":""},{"$f":"IF('Project Scope'!$C63=\"\",\"\",(IF(COUNTIF('CBAT Lookups'!$B$5:$B$12,\"Fixtures-\"&CBAT!$D63)=1,VLOOKUP(\"Fixtures-\"&CBAT!$D63,'CBAT Lookups'!$B$5:$K$12,5),0)))","v":""},{"$f":"IF('Project Scope'!$C63=\"\",\"\",(IF(COUNTIF('CBAT Lookups'!$B$5:$B$12,\"Fixtures-\"&CBAT!$D63)=1,VLOOKUP(\"Fixtures-\"&CBAT!$D63,'CBAT Lookups'!$B$5:$K$12,6),0)))","v":""},{"$f":"IF('Project Scope'!$C63=\"\",\"\",IF(COUNTIF('CBAT Lookups'!$B$5:$B$12,\"Fixtures-\"&CBAT!$D63)=1,VLOOKUP(\"Fixtures-\"&CBAT!$D63,'CBAT Lookups'!$B$5:$K$12,7),0))","v":""},{"$f":"IF('Project Scope'!$C63=\"\",\"\",IF(VLOOKUP($F63,'CBAT Lookups'!$B$17:$K$19,8)=\"W\",1,IF(COUNTIF('CBAT Lookups'!$B$5:$B$12,\"Fixtures-\"&CBAT!$D63)=1,VLOOKUP(\"Fixtures-\"&CBAT!$D63,'CBAT Lookups'!$B$5:$K$12,8),0)*VLOOKUP($F63,'CBAT Lookups'!$B$17:$K$19,8)))","v":""},{"$f":"IF('Project Scope'!$C63=\"\",\"\",IF(VLOOKUP($F63,'CBAT Lookups'!$B$17:$K$19,9)=\"W\",1,IF(COUNTIF('CBAT Lookups'!$B$5:$B$12,\"Fixtures-\"&CBAT!$D63)=1,VLOOKUP(\"Fixtures-\"&CBAT!$D63,'CBAT Lookups'!$B$5:$K$12,9),0)*VLOOKUP($F63,'CBAT Lookups'!$B$17:$K$19,9)))","v":""},{"$f":"IF('Project Scope'!$C63=\"\",\"\",IF(COUNTIF('CBAT Lookups'!$B$5:$B$12,\"Fixtures-\"&CBAT!$D63)=1,VLOOKUP(\"Fixtures-\"&CBAT!$D63,'CBAT Lookups'!$B$5:$K$12,10),0)*VLOOKUP($F63,'CBAT Lookups'!$B$17:$K$19,10))","v":""},{"$f":"IF('Project Scope'!$C63=\"\",\"\",IF(COUNTIF('CBAT Lookups'!$B$5:$B$12,\"Fixtures-\"&CBAT!$D63)=1,VLOOKUP(\"Fixtures-\"&CBAT!$D63,'CBAT Lookups'!$B$5:$O$12,12),0))","v":""},{"$f":"IF('Project Scope'!$C63=\"\",\"\",IF(COUNTIF('CBAT Lookups'!$B$5:$B$12,\"Fixtures-\"&CBAT!$D63)=1,VLOOKUP(\"Fixtures-\"&CBAT!$D63,'CBAT Lookups'!$B$5:$O$12,13),0))","v":""},{"$f":"IF('Project Scope'!$C63=\"\",\"\",IF(COUNTIF('CBAT Lookups'!$B$5:$B$12,\"Fixtures-\"&CBAT!$D63)=1,VLOOKUP(\"Fixtures-\"&CBAT!$D63,'CBAT Lookups'!$B$5:$O$12,14),0))","v":""},{"$f":"IF('Project Scope'!$C63=\"\",\"\",'TRM Data'!$U$3)","v":""},{"$f":"IF('Project Scope'!$C63=\"\",\"\",'TRM Data'!$V$3)","v":""},{"$f":"IF('Project Scope'!$C63=\"\",\"\",IF($J63<=0,0,MAX(0,(($G63*$H63/1000)-($I63*$J63/1000))*$L63)*$U63)+($AF63/0.003412))","v":""},{"$f":"IF('Project Scope'!$C63=\"\",\"\",IF($J63<=0,0,MAX(0,(($G63*$H63/1000)-($I63*$J63/1000)))*$T63))","v":""},{"$f":"IF('Project Scope'!$C63=\"\",\"\",IF($J63<=0,0,MAX(0,(($G63*$H63/1000)-($I63*$J63/1000))*$N63)))","v":""},{"$f":"IF('Project Scope'!$C63=\"\",\"\",IF($J63<=0,0,MAX(0,(($G63*$H63/1000)-($I63*$J63/1000))*$O63)*$T63))","v":""},{"$f":"IF('Project Scope'!$C63=\"\",\"\",IF(OR($J63<=0,'Project Information'!$D$44=\"\"),0,-1*MAX(0,(($G63*$H63/1000)-($I63*$J63/1000))*$L63)*$V63*VLOOKUP('Project Information'!$D$44,'CBAT Lookups'!$A$23:$H$30,2)))","v":""},{"$f":"IF('Project Scope'!$C63=\"\",\"\",IF(OR($J63<=0,'Project Information'!$D$44=\"\"),0,-1*MAX(0,(($G63*$H63/1000)-($I63*$J63/1000))*$L63)*$V63*VLOOKUP('Project Information'!$D$44,'CBAT Lookups'!$A$23:$H$30,3)))","v":""},{"$f":"IF('Project Scope'!$C63=\"\",\"\",IF(OR($J63<=0,'Project Information'!$D$44=\"\"),0,-1*MAX(0,(($G63*$H63/1000)-($I63*$J63/1000))*$L63)*$V63*VLOOKUP('Project Information'!$D$44,'CBAT Lookups'!$A$23:$H$30,4)))","v":""},{"$f":"IF('Project Scope'!$C63=\"\",\"\",IF(OR($J63<=0,'Project Information'!$D$44=\"\"),0,-1*MAX(0,(($G63*$H63/1000)-($I63*$J63/1000))*$L63)*$V63*VLOOKUP('Project Information'!$D$44,'CBAT Lookups'!$A$23:$H$30,5)))","v":""},{"$f":"IF('Project Scope'!$C63=\"\",\"\",IF(OR($J63<=0,'Project Information'!$D$44=\"\"),0,-1*MAX(0,(($G63*$H63/1000)-($I63*$J63/1000))*$L63)*$V63*VLOOKUP('Project Information'!$D$44,'CBAT Lookups'!$A$23:$H$30,6)))","v":""},{"$f":"IF('Project Scope'!$C63=\"\",\"\",IF(OR($J63<=0,'Project Information'!$D$44=\"\"),0,-1*MAX(0,(($G63*$H63/1000)-($I63*$J63/1000))*$L63)*$V63*VLOOKUP('Project Information'!$D$44,'CBAT Lookups'!$A$23:$H$30,7)))","v":""},{"$f":"IF('Project Scope'!$C63=\"\",\"\",IF(OR($J63<=0,'Project Information'!$D$44=\"\"),0,-1*MAX(0,(($G63*$H63/1000)-($I63*$J63/1000))*$L63)*$V63*VLOOKUP('Project Information'!$D$44,'CBAT Lookups'!$A$23:$H$30,8)))","v":""},null,{"$f":"IF('Project Scope'!$C63=\"\",\"\",VLOOKUP($F63,'CBAT Lookups'!$B$17:$K$19,4))","v":""},{"$f":"IF('Project Scope'!$C63=\"\",\"\",VLOOKUP($F63,'CBAT Lookups'!$B$17:$K$19,5))","v":""},{"$f":"IF('Project Scope'!$C63=\"\",\"\",VLOOKUP($F63,'CBAT Lookups'!$B$17:$K$19,6))","v":""},{"$f":"IF('Project Scope'!$C63=\"\",\"\",VLOOKUP($F63,'CBAT Lookups'!$B$17:$K$19,7))","v":""},{"$f":"IF('Project Scope'!$C63=\"\",\"\",IF(SUMPRODUCT($P63:$S63,$AN63:$AQ63)=0,0,P63*AN63/SUMPRODUCT($P63:$S63,$AN63:$AQ63)))","v":""},{"$f":"IF('Project Scope'!$C63=\"\",\"\",IF(SUMPRODUCT($P63:$S63,$AN63:$AQ63)=0,0,Q63*AO63/SUMPRODUCT($P63:$S63,$AN63:$AQ63)))","v":""},{"$f":"IF('Project Scope'!$C63=\"\",\"\",IF(SUMPRODUCT($P63:$S63,$AN63:$AQ63)=0,0,R63*AP63/SUMPRODUCT($P63:$S63,$AN63:$AQ63)))","v":""},{"$f":"IF('Project Scope'!$C63=\"\",\"\",IF(SUMPRODUCT($P63:$S63,$AN63:$AQ63)=0,0,S63*AQ63/SUMPRODUCT($P63:$S63,$AN63:$AQ63)))","v":""},{"$f":"IF('Project Scope'!$C63=\"\",\"\",Benefits($AB63,$AD63,$AE63,$AG63,$AH63,$AI63,$AJ63,$AK63,$AL63,$AM63,$M63,$AR63,$AS63,$AT63,$AU63,$W63,$X63,$Y63,$Z63,$AA63,$E63))","v":""},"","","","","","","","",null,{"$f":"IF('Project Scope'!$C63=\"\",\"\",SUM('Project Scope'!$AT63,'Project Scope'!$AU63))","v":""},{"$f":"IF('Project Scope'!$C63=\"\",\"\",SUM('Project Scope'!$BG63, 'Project Scope'!$AR63,(IF(ISNUMBER('Project Scope'!$AS63),'Project Scope'!$AS63,0)*'Project Information'!$D$12)))","v":""},null,null,{"$f":"IF('Project Scope'!$C63=\"\",\"\",IF(COUNTIF('CBAT Lookups'!$B$5:$B$12,\"Controls-\"&CBAT!$D63)=1,VLOOKUP(\"Controls-\"&CBAT!$D63,'CBAT Lookups'!$B$5:$L$12,11),0))","v":""},{"$f":"IF('Project Scope'!$C63=\"\",\"\",IF(COUNTIF('CBAT Lookups'!$B$5:$B$12,\"Controls-\"&CBAT!$D63)=1,VLOOKUP(\"Controls-\"&CBAT!$D63,'CBAT Lookups'!$B$5:$K$12,2),0)*VLOOKUP($F63,'CBAT Lookups'!$B$17:$K$19,2))","v":""},{"$f":"IF('Project Scope'!$C63=\"\",\"\",IF(COUNTIF('CBAT Lookups'!$B$5:$B$12,\"Controls-\"&CBAT!$D63)=1,VLOOKUP(\"Controls-\"&CBAT!$D63,'CBAT Lookups'!$B$5:$K$12,3),0)*VLOOKUP($F63,'CBAT Lookups'!$B$17:$K$19,3))","v":""},{"$f":"IF('Project Scope'!$C63=\"\",\"\",IF(COUNTIF('CBAT Lookups'!$B$5:$B$12,\"Controls-\"&CBAT!$D63)=1,VLOOKUP(\"Controls-\"&CBAT!$D63,'CBAT Lookups'!$B$5:$K$12,4),0))","v":""},{"$f":"IF('Project Scope'!$C63=\"\",\"\",IF(COUNTIF('CBAT Lookups'!$B$5:$B$12,\"Controls-\"&CBAT!$D63)=1,VLOOKUP(\"Controls-\"&CBAT!$D63,'CBAT Lookups'!$B$5:$K$12,5),0))","v":""},{"$f":"IF('Project Scope'!$C63=\"\",\"\",IF(COUNTIF('CBAT Lookups'!$B$5:$B$12,\"Controls-\"&CBAT!$D63)=1,VLOOKUP(\"Controls-\"&CBAT!$D63,'CBAT Lookups'!$B$5:$K$12,6),0))","v":""},{"$f":"IF('Project Scope'!$C63=\"\",\"\",IF(COUNTIF('CBAT Lookups'!$B$5:$B$12,\"Controls-\"&CBAT!$D63)=1,VLOOKUP(\"Controls-\"&CBAT!$D63,'CBAT Lookups'!$B$5:$K$12,7),0))","v":""},{"$f":"IF('Project Scope'!$C63=\"\",\"\",IF(VLOOKUP($F63,'CBAT Lookups'!$B$17:$K$19,8)=\"W\",1,IF(COUNTIF('CBAT Lookups'!$B$5:$B$12,\"Controls-\"&CBAT!$D63)=1,VLOOKUP(\"Controls-\"&CBAT!$D63,'CBAT Lookups'!$B$5:$K$12,8),0)*VLOOKUP($F63,'CBAT Lookups'!$B$17:$K$19,8)))","v":""},{"$f":"IF('Project Scope'!$C63=\"\",\"\",IF(VLOOKUP($F63,'CBAT Lookups'!$B$17:$K$19,9)=\"W\",1,IF(COUNTIF('CBAT Lookups'!$B$5:$B$12,\"Controls-\"&CBAT!$D63)=1,VLOOKUP(\"Controls-\"&CBAT!$D63,'CBAT Lookups'!$B$5:$K$12,9),0)*VLOOKUP($F63,'CBAT Lookups'!$B$17:$K$19,9)))","v":""},{"$f":"IF('Project Scope'!$C63=\"\",\"\",IF(COUNTIF('CBAT Lookups'!$B$5:$B$12,\"Controls-\"&CBAT!$D63)=1,VLOOKUP(\"Controls-\"&CBAT!$D63,'CBAT Lookups'!$B$5:$K$12,10),0)*VLOOKUP($F63,'CBAT Lookups'!$B$17:$K$19,10))","v":""},{"$f":"IF('Project Scope'!$C63=\"\",\"\",VLOOKUP($C63,'CBAT Lookups'!$A$33:$B$57,2))","v":""},{"$f":"IF('Project Scope'!$C63=\"\",\"\",IF(COUNTIF('CBAT Lookups'!$B$5:$B$12,\"Controls-\"&CBAT!$D63)=1,VLOOKUP(\"Controls-\"&CBAT!$D63,'CBAT Lookups'!$B$5:$O$12,12),0))","v":""},{"$f":"IF('Project Scope'!$C63=\"\",\"\",IF(COUNTIF('CBAT Lookups'!$B$5:$B$12,\"Controls-\"&CBAT!$D63)=1,VLOOKUP(\"Controls-\"&CBAT!$D63,'CBAT Lookups'!$B$5:$O$12,13),0))","v":""},{"$f":"IF('Project Scope'!$C63=\"\",\"\",IF(COUNTIF('CBAT Lookups'!$B$5:$B$12,\"Controls-\"&CBAT!$D63)=1,VLOOKUP(\"Controls-\"&CBAT!$D63,'CBAT Lookups'!$B$5:$O$12,14),0))","v":""},{"$f":"IF('Project Scope'!$C63=\"\",\"\",'TRM Data'!$U$3)","v":""},{"$f":"IF('Project Scope'!$C63=\"\",\"\",'TRM Data'!$V$3)","v":""},{"$f":"IF('Project Scope'!$C63=\"\",\"\",IF($K63<=0,0,MAX(0,(IF(AND($I63>0,$J63>0),($I63*$J63)/1000,($G63*$H63)/1000)*$L63))*$BT63*$BR63)+($CD63/0.003412))","v":""},{"$f":"IF('Project Scope'!$C63=\"\",\"\",IF($K63<=0,0,MAX(0,IF(AND($I63>0,$J63>0),($I63*$J63)/1000,($G63*$H63)/1000))*$BQ63))","v":""},{"$f":"IF('Project Scope'!$C63=\"\",\"\",IF($K63<=0,0,MAX(0,IF(AND($I63>0,$J63>0),($I63*$J63)/1000,($G63*$H63)/1000))*$BK63))","v":""},{"$f":"IF('Project Scope'!$C63=\"\",\"\",IF($K63<=0,0,MAX(0,IF(AND($I63>0,$J63>0),($I63*$J63)/1000,($G63*$H63)/1000))*$BL63*$BQ63))","v":""},{"$f":"IF('Project Scope'!$C63=\"\",\"\",IF(OR($K63<=0,'Project Information'!$D$44=\"\"),0,-1*MAX(0,IF(AND($I63>0,$J63>0),($I63*$J63)/1000,($G63*$H63)/1000))*$BT63*$L63*$BS63*VLOOKUP('Project Information'!$D$44,'CBAT Lookups'!$A$23:$H$30,2)))","v":""},{"$f":"IF('Project Scope'!$C63=\"\",\"\",IF(OR($K63<=0,'Project Information'!$D$44=\"\"),0,-1*MAX(0,IF(AND($I63>0,$J63>0),($I63*$J63)/1000,($G63*$H63)/1000))*$BT63*$L63*$BS63*VLOOKUP('Project Information'!$D$44,'CBAT Lookups'!$A$23:$H$30,3)))","v":""},{"$f":"IF('Project Scope'!$C63=\"\",\"\",IF(OR($K63<=0,'Project Information'!$D$44=\"\"),0,-1*MAX(0,IF(AND($I63>0,$J63>0),($I63*$J63)/1000,($G63*$H63)/1000))*$BT63*$L63*$BS63*VLOOKUP('Project Information'!$D$44,'CBAT Lookups'!$A$23:$H$30,4)))","v":""},{"$f":"IF('Project Scope'!$C63=\"\",\"\",IF(OR($K63<=0,'Project Information'!$D$44=\"\"),0,-1*MAX(0,IF(AND($I63>0,$J63>0),($I63*$J63)/1000,($G63*$H63)/1000))*$BT63*$L63*$BS63*VLOOKUP('Project Information'!$D$44,'CBAT Lookups'!$A$23:$H$30,5)))","v":""},{"$f":"IF('Project Scope'!$C63=\"\",\"\",IF(OR($K63<=0,'Project Information'!$D$44=\"\"),0,-1*MAX(0,IF(AND($I63>0,$J63>0),($I63*$J63)/1000,($G63*$H63)/1000))*$BT63*$L63*$BS63*VLOOKUP('Project Information'!$D$44,'CBAT Lookups'!$A$23:$H$30,6)))","v":""},{"$f":"IF('Project Scope'!$C63=\"\",\"\",IF(OR($K63<=0,'Project Information'!$D$44=\"\"),0,-1*MAX(0,IF(AND($I63>0,$J63>0),($I63*$J63)/1000,($G63*$H63)/1000))*$BT63*$L63*$BS63*VLOOKUP('Project Information'!$D$44,'CBAT Lookups'!$A$23:$H$30,7)))","v":""},{"$f":"IF('Project Scope'!$C63=\"\",\"\",IF(OR($K63<=0,'Project Information'!$D$44=\"\"),0,-1*MAX(0,IF(AND($I63>0,$J63>0),($I63*$J63)/1000,($G63*$H63)/1000))*$BT63*$L63*$BS63*VLOOKUP('Project Information'!$D$44,'CBAT Lookups'!$A$23:$H$30,8)))","v":""},null,{"$f":"IF('Project Scope'!$C63=\"\",\"\",VLOOKUP($F63,'CBAT Lookups'!$B$17:$K$19,4))","v":""},{"$f":"IF('Project Scope'!$C63=\"\",\"\",VLOOKUP($F63,'CBAT Lookups'!$B$17:$K$19,5))","v":""},{"$f":"IF('Project Scope'!$C63=\"\",\"\",VLOOKUP($F63,'CBAT Lookups'!$B$17:$K$19,6))","v":""},{"$f":"IF('Project Scope'!$C63=\"\",\"\",VLOOKUP($F63,'CBAT Lookups'!$B$17:$K$19,7))","v":""},{"$f":"IF('Project Scope'!$C63=\"\",\"\",IF(SUMPRODUCT($BM63:$BP63,$CL63:$CO63)=0,0,BM63*CL63/SUMPRODUCT($BM63:$BP63,$CL63:$CO63)))","v":""},{"$f":"IF('Project Scope'!$C63=\"\",\"\",IF(SUMPRODUCT($BM63:$BP63,$CL63:$CO63)=0,0,BN63*CM63/SUMPRODUCT($BM63:$BP63,$CL63:$CO63)))","v":""},{"$f":"IF('Project Scope'!$C63=\"\",\"\",IF(SUMPRODUCT($BM63:$BP63,$CL63:$CO63)=0,0,BO63*CN63/SUMPRODUCT($BM63:$BP63,$CL63:$CO63)))","v":""},{"$f":"IF('Project Scope'!$C63=\"\",\"\",IF(SUMPRODUCT($BM63:$BP63,$CL63:$CO63)=0,0,BP63*CO63/SUMPRODUCT($BM63:$BP63,$CL63:$CO63)))","v":""},{"$f":"IF('Project Scope'!$C63=\"\",\"\",Benefits($BZ63,$CB63,$CC63,$CE63,$CF63,$CG63,$CH63,$CI63,$CJ63,$CK63,$BJ63,$CP63,$CQ63,$CR63,$CS63,$BU63,$BV63,$BW63,$BX63,$BY63,$E63))","v":""},"","","","","","","","",null,{"$f":"IF('Project Scope'!$C63=\"\",\"\",SUM('Project Scope'!$BB63,'Project Scope'!$BC63))","v":""},{"$f":"IF('Project Scope'!$C63=\"\",\"\",SUM('Project Scope'!$BH63, 'Project Scope'!$AZ63,(IF(ISNUMBER('Project Scope'!$BA63),'Project Scope'!$BA63,0)*'Project Information'!$D$12)))","v":""},null,null,{"$f":"IF('Project Scope'!$C63=\"\",\"\",IF($J63<=0,0,(SUMPRODUCT($AV63:$BC63,--($AV63:$BC63>0))+$BE63)*$DK63/((-SUMPRODUCT($AV63:$BC63,--($AV63:$BC63<0))+$BG63+$BH63+$BI63)*$DK63)))","v":""},{"$f":"IF('Project Scope'!$C63=\"\",\"\",IF($K63<=0,0,(SUMPRODUCT($CT63:$DA63,--($CT63:$DA63>0))+$DC63)*$DK63/((-SUMPRODUCT($CT63:$DA63,--($CT63:$DA63<0))+$DE63+$DF63+$DG63)*$DK63)))","v":""},{"$f":"IF('Project Scope'!$C63=\"\",\"\",IF(AND($J63<=0,$K63<=0),0,(SUMPRODUCT($AV63:$BC63,--($AV63:$BC63>0))+$BE63+SUMPRODUCT($CT63:$DA63,--($CT63:$DA63>0))+$DC63)*$DK63/((-SUMPRODUCT($AV63:$BC63,--($AV63:$BC63<0))+$BG63+$BH63+$BI63-SUMPRODUCT($CT63:$DA63,--($CT63:$DA63<0))+$DE63+$DF63+$DG63)*$DK63)))","v":""},{"$f":"IF('Project Scope'!$C63=\"\",\"\",IF(NetOrGross=\"Net\",(1-Z63+AA63),1))","v":""}]
[{"$f":"'Project Scope'!$B64","v":57},{"$f":"IF('Project Scope'!$C64=\"\",\"\",'Project Scope'!$C64)","v":""},{"$f":"IF('Project Scope'!$C64=\"\",\"\",'Project Scope'!$H64)","v":""},{"$f":"IF(ISNUMBER(SEARCH(\"Bay\",'Project Scope'!$Q64)),\"Bay\",IF('Project Scope'!C64=\"\",\"\",'Project Scope'!E64))","v":""},{"$f":"IF('Project Scope'!$C64=\"\",\"\",\"Com\")","v":""},{"$f":"IF('Project Scope'!$C64=\"\",\"\",'Project Scope'!$L64)","v":""},{"$f":"IF('Project Scope'!$C64=\"\",\"\",IF('Project Scope'!$CJ64=\"\",0,'Project Scope'!$CJ64))","v":""},{"$f":"IF('Project Scope'!$C64=\"\",\"\",IF('Project Scope'!$N64=\"\",0,'Project Scope'!$N64))","v":""},{"$f":"IF('Project Scope'!$C64=\"\",\"\",IF('Project Scope'!$CK64=\"\",0,'Project Scope'!$CK64))","v":""},{"$f":"IF('Project Scope'!$C64=\"\",\"\",IF('Project Scope'!$AO64=\"\",0,'Project Scope'!$AO64))","v":""},{"$f":"IF('Project Scope'!$C64=\"\",\"\",IF('Project Scope'!$AX64=\"\",0,'Project Scope'!$AX64))","v":""},{"$f":"IF('Project Scope'!$C64=\"\",\"\",IF('Project Scope'!$M64=\"\",0,'Project Scope'!$M64))","v":""},{"$f":"IF('Project Scope'!$C64=\"\",\"\",IF(COUNTIF('CBAT Lookups'!$B$5:$B$12,\"Fixtures-\"&CBAT!$D64)=1,VLOOKUP(\"Fixtures-\"&CBAT!$D64,'CBAT Lookups'!$B$5:$L$12,11),0))","v":""},{"$f":"IF('Project Scope'!$C64=\"\",\"\",(IF(COUNTIF('CBAT Lookups'!$B$5:$B$12,\"Fixtures-\"&CBAT!$D64)=1,VLOOKUP(\"Fixtures-\"&CBAT!$D64,'CBAT Lookups'!$B$5:$K$12,2),0))*VLOOKUP($F64,'CBAT Lookups'!$B$17:$K$19,2))","v":""},{"$f":"IF('Project Scope'!$C64=\"\",\"\",(IF(COUNTIF('CBAT Lookups'!$B$5:$B$12,\"Fixtures-\"&CBAT!$D64)=1,VLOOKUP(\"Fixtures-\"&CBAT!$D64,'CBAT Lookups'!$B$5:$K$12,3),0))*VLOOKUP($F64,'CBAT Lookups'!$B$17:$K$19,3))","v":""},{"$f":"IF('Project Scope'!$C64=\"\",\"\",(IF(COUNTIF('CBAT Lookups'!$B$5:$B$12,\"Fixtures-\"&CBAT!$D64)=1,VLOOKUP(\"Fixtures-\"&CBAT!$D64,'CBAT Lookups'!$B$5:$K$12,4),0)))","v":""},{"$f":"IF('Project Scope'!$C64=\"\",\"\",(IF(COUNTIF('CBAT Lookups'!$B$5:$B$12,\"Fixtures-\"&CBAT!$D64)=1,VLOOKUP(\"Fixtures-\"&CBAT!$D64,'CBAT Lookups'!$B$5:$K$12,5),0)))","v":""},{"$f":"IF('Project Scope'!$C64=\"\",\"\",(IF(COUNTIF('CBAT Lookups'!$B$5:$B$12,\"Fixtures-\"&CBAT!$D64)=1,VLOOKUP(\"Fixtures-\"&CBAT!$D64,'CBAT Lookups'!$B$5:$K$12,6),0)))","v":""},{"$f":"IF('Project Scope'!$C64=\"\",\"\",IF(COUNTIF('CBAT Lookups'!$B$5:$B$12,\"Fixtures-\"&CBAT!$D64)=1,VLOOKUP(\"Fixtures-\"&CBAT!$D64,'CBAT Lookups'!$B$5:$K$12,7),0))","v":""},{"$f":"IF('Project Scope'!$C64=\"\",\"\",IF(VLOOKUP($F64,'CBAT Lookups'!$B$17:$K$19,8)=\"W\",1,IF(COUNTIF('CBAT Lookups'!$B$5:$B$12,\"Fixtures-\"&CBAT!$D64)=1,VLOOKUP(\"Fixtures-\"&CBAT!$D64,'CBAT Lookups'!$B$5:$K$12,8),0)*VLOOKUP($F64,'CBAT Lookups'!$B$17:$K$19,8)))","v":""},{"$f":"IF('Project Scope'!$C64=\"\",\"\",IF(VLOOKUP($F64,'CBAT Lookups'!$B$17:$K$19,9)=\"W\",1,IF(COUNTIF('CBAT Lookups'!$B$5:$B$12,\"Fixtures-\"&CBAT!$D64)=1,VLOOKUP(\"Fixtures-\"&CBAT!$D64,'CBAT Lookups'!$B$5:$K$12,9),0)*VLOOKUP($F64,'CBAT Lookups'!$B$17:$K$19,9)))","v":""},{"$f":"IF('Project Scope'!$C64=\"\",\"\",IF(COUNTIF('CBAT Lookups'!$B$5:$B$12,\"Fixtures-\"&CBAT!$D64)=1,VLOOKUP(\"Fixtures-\"&CBAT!$D64,'CBAT Lookups'!$B$5:$K$12,10),0)*VLOOKUP($F64,'CBAT Lookups'!$B$17:$K$19,10))","v":""},{"$f":"IF('Project Scope'!$C64=\"\",\"\",IF(COUNTIF('CBAT Lookups'!$B$5:$B$12,\"Fixtures-\"&CBAT!$D64)=1,VLOOKUP(\"Fixtures-\"&CBAT!$D64,'CBAT Lookups'!$B$5:$O$12,12),0))","v":""},{"$f":"IF('Project Scope'!$C64=\"\",\"\",IF(COUNTIF('CBAT Lookups'!$B$5:$B$12,\"Fixtures-\"&CBAT!$D64)=1,VLOOKUP(\"Fixtures-\"&CBAT!$D64,'CBAT Lookups'!$B$5:$O$12,13),0))","v":""},{"$f":"IF('Project Scope'!$C64=\"\",\"\",IF(COUNTIF('CBAT Lookups'!$B$5:$B$12,\"Fixtures-\"&CBAT!$D64)=1,VLOOKUP(\"Fixtures-\"&CBAT!$D64,'CBAT Lookups'!$B$5:$O$12,14),0))","v":""},{"$f":"IF('Project Scope'!$C64=\"\",\"\",'TRM Data'!$U$3)","v":""},{"$f":"IF('Project Scope'!$C64=\"\",\"\",'TRM Data'!$V$3)","v":""},{"$f":"IF('Project Scope'!$C64=\"\",\"\",IF($J64<=0,0,MAX(0,(($G64*$H64/1000)-($I64*$J64/1000))*$L64)*$U64)+($AF64/0.003412))","v":""},{"$f":"IF('Project Scope'!$C64=\"\",\"\",IF($J64<=0,0,MAX(0,(($G64*$H64/1000)-($I64*$J64/1000)))*$T64))","v":""},{"$f":"IF('Project Scope'!$C64=\"\",\"\",IF($J64<=0,0,MAX(0,(($G64*$H64/1000)-($I64*$J64/1000))*$N64)))","v":""},{"$f":"IF('Project Scope'!$C64=\"\",\"\",IF($J64<=0,0,MAX(0,(($G64*$H64/1000)-($I64*$J64/1000))*$O64)*$T64))","v":""},{"$f":"IF('Project Scope'!$C64=\"\",\"\",IF(OR($J64<=0,'Project Information'!$D$44=\"\"),0,-1*MAX(0,(($G64*$H64/1000)-($I64*$J64/1000))*$L64)*$V64*VLOOKUP('Project Information'!$D$44,'CBAT Lookups'!$A$23:$H$30,2)))","v":""},{"$f":"IF('Project Scope'!$C64=\"\",\"\",IF(OR($J64<=0,'Project Information'!$D$44=\"\"),0,-1*MAX(0,(($G64*$H64/1000)-($I64*$J64/1000))*$L64)*$V64*VLOOKUP('Project Information'!$D$44,'CBAT Lookups'!$A$23:$H$30,3)))","v":""},{"$f":"IF('Project Scope'!$C64=\"\",\"\",IF(OR($J64<=0,'Project Information'!$D$44=\"\"),0,-1*MAX(0,(($G64*$H64/1000)-($I64*$J64/1000))*$L64)*$V64*VLOOKUP('Project Information'!$D$44,'CBAT Lookups'!$A$23:$H$30,4)))","v":""},{"$f":"IF('Project Scope'!$C64=\"\",\"\",IF(OR($J64<=0,'Project Information'!$D$44=\"\"),0,-1*MAX(0,(($G64*$H64/1000)-($I64*$J64/1000))*$L64)*$V64*VLOOKUP('Project Information'!$D$44,'CBAT Lookups'!$A$23:$H$30,5)))","v":""},{"$f":"IF('Project Scope'!$C64=\"\",\"\",IF(OR($J64<=0,'Project Information'!$D$44=\"\"),0,-1*MAX(0,(($G64*$H64/1000)-($I64*$J64/1000))*$L64)*$V64*VLOOKUP('Project Information'!$D$44,'CBAT Lookups'!$A$23:$H$30,6)))","v":""},{"$f":"IF('Project Scope'!$C64=\"\",\"\",IF(OR($J64<=0,'Project Information'!$D$44=\"\"),0,-1*MAX(0,(($G64*$H64/1000)-($I64*$J64/1000))*$L64)*$V64*VLOOKUP('Project Information'!$D$44,'CBAT Lookups'!$A$23:$H$30,7)))","v":""},{"$f":"IF('Project Scope'!$C64=\"\",\"\",IF(OR($J64<=0,'Project Information'!$D$44=\"\"),0,-1*MAX(0,(($G64*$H64/1000)-($I64*$J64/1000))*$L64)*$V64*VLOOKUP('Project Information'!$D$44,'CBAT Lookups'!$A$23:$H$30,8)))","v":""},null,{"$f":"IF('Project Scope'!$C64=\"\",\"\",VLOOKUP($F64,'CBAT Lookups'!$B$17:$K$19,4))","v":""},{"$f":"IF('Project Scope'!$C64=\"\",\"\",VLOOKUP($F64,'CBAT Lookups'!$B$17:$K$19,5))","v":""},{"$f":"IF('Project Scope'!$C64=\"\",\"\",VLOOKUP($F64,'CBAT Lookups'!$B$17:$K$19,6))","v":""},{"$f":"IF('Project Scope'!$C64=\"\",\"\",VLOOKUP($F64,'CBAT Lookups'!$B$17:$K$19,7))","v":""},{"$f":"IF('Project Scope'!$C64=\"\",\"\",IF(SUMPRODUCT($P64:$S64,$AN64:$AQ64)=0,0,P64*AN64/SUMPRODUCT($P64:$S64,$AN64:$AQ64)))","v":""},{"$f":"IF('Project Scope'!$C64=\"\",\"\",IF(SUMPRODUCT($P64:$S64,$AN64:$AQ64)=0,0,Q64*AO64/SUMPRODUCT($P64:$S64,$AN64:$AQ64)))","v":""},{"$f":"IF('Project Scope'!$C64=\"\",\"\",IF(SUMPRODUCT($P64:$S64,$AN64:$AQ64)=0,0,R64*AP64/SUMPRODUCT($P64:$S64,$AN64:$AQ64)))","v":""},{"$f":"IF('Project Scope'!$C64=\"\",\"\",IF(SUMPRODUCT($P64:$S64,$AN64:$AQ64)=0,0,S64*AQ64/SUMPRODUCT($P64:$S64,$AN64:$AQ64)))","v":""},{"$f":"IF('Project Scope'!$C64=\"\",\"\",Benefits($AB64,$AD64,$AE64,$AG64,$AH64,$AI64,$AJ64,$AK64,$AL64,$AM64,$M64,$AR64,$AS64,$AT64,$AU64,$W64,$X64,$Y64,$Z64,$AA64,$E64))","v":""},"","","","","","","","",null,{"$f":"IF('Project Scope'!$C64=\"\",\"\",SUM('Project Scope'!$AT64,'Project Scope'!$AU64))","v":""},{"$f":"IF('Project Scope'!$C64=\"\",\"\",SUM('Project Scope'!$BG64, 'Project Scope'!$AR64,(IF(ISNUMBER('Project Scope'!$AS64),'Project Scope'!$AS64,0)*'Project Information'!$D$12)))","v":""},null,null,{"$f":"IF('Project Scope'!$C64=\"\",\"\",IF(COUNTIF('CBAT Lookups'!$B$5:$B$12,\"Controls-\"&CBAT!$D64)=1,VLOOKUP(\"Controls-\"&CBAT!$D64,'CBAT Lookups'!$B$5:$L$12,11),0))","v":""},{"$f":"IF('Project Scope'!$C64=\"\",\"\",IF(COUNTIF('CBAT Lookups'!$B$5:$B$12,\"Controls-\"&CBAT!$D64)=1,VLOOKUP(\"Controls-\"&CBAT!$D64,'CBAT Lookups'!$B$5:$K$12,2),0)*VLOOKUP($F64,'CBAT Lookups'!$B$17:$K$19,2))","v":""},{"$f":"IF('Project Scope'!$C64=\"\",\"\",IF(COUNTIF('CBAT Lookups'!$B$5:$B$12,\"Controls-\"&CBAT!$D64)=1,VLOOKUP(\"Controls-\"&CBAT!$D64,'CBAT Lookups'!$B$5:$K$12,3),0)*VLOOKUP($F64,'CBAT Lookups'!$B$17:$K$19,3))","v":""},{"$f":"IF('Project Scope'!$C64=\"\",\"\",IF(COUNTIF('CBAT Lookups'!$B$5:$B$12,\"Controls-\"&CBAT!$D64)=1,VLOOKUP(\"Controls-\"&CBAT!$D64,'CBAT Lookups'!$B$5:$K$12,4),0))","v":""},{"$f":"IF('Project Scope'!$C64=\"\",\"\",IF(COUNTIF('CBAT Lookups'!$B$5:$B$12,\"Controls-\"&CBAT!$D64)=1,VLOOKUP(\"Controls-\"&CBAT!$D64,'CBAT Lookups'!$B$5:$K$12,5),0))","v":""},{"$f":"IF('Project Scope'!$C64=\"\",\"\",IF(COUNTIF('CBAT Lookups'!$B$5:$B$12,\"Controls-\"&CBAT!$D64)=1,VLOOKUP(\"Controls-\"&CBAT!$D64,'CBAT Lookups'!$B$5:$K$12,6),0))","v":""},{"$f":"IF('Project Scope'!$C64=\"\",\"\",IF(COUNTIF('CBAT Lookups'!$B$5:$B$12,\"Controls-\"&CBAT!$D64)=1,VLOOKUP(\"Controls-\"&CBAT!$D64,'CBAT Lookups'!$B$5:$K$12,7),0))","v":""},{"$f":"IF('Project Scope'!$C64=\"\",\"\",IF(VLOOKUP($F64,'CBAT Lookups'!$B$17:$K$19,8)=\"W\",1,IF(COUNTIF('CBAT Lookups'!$B$5:$B$12,\"Controls-\"&CBAT!$D64)=1,VLOOKUP(\"Controls-\"&CBAT!$D64,'CBAT Lookups'!$B$5:$K$12,8),0)*VLOOKUP($F64,'CBAT Lookups'!$B$17:$K$19,8)))","v":""},{"$f":"IF('Project Scope'!$C64=\"\",\"\",IF(VLOOKUP($F64,'CBAT Lookups'!$B$17:$K$19,9)=\"W\",1,IF(COUNTIF('CBAT Lookups'!$B$5:$B$12,\"Controls-\"&CBAT!$D64)=1,VLOOKUP(\"Controls-\"&CBAT!$D64,'CBAT Lookups'!$B$5:$K$12,9),0)*VLOOKUP($F64,'CBAT Lookups'!$B$17:$K$19,9)))","v":""},{"$f":"IF('Project Scope'!$C64=\"\",\"\",IF(COUNTIF('CBAT Lookups'!$B$5:$B$12,\"Controls-\"&CBAT!$D64)=1,VLOOKUP(\"Controls-\"&CBAT!$D64,'CBAT Lookups'!$B$5:$K$12,10),0)*VLOOKUP($F64,'CBAT Lookups'!$B$17:$K$19,10))","v":""},{"$f":"IF('Project Scope'!$C64=\"\",\"\",VLOOKUP($C64,'CBAT Lookups'!$A$33:$B$57,2))","v":""},{"$f":"IF('Project Scope'!$C64=\"\",\"\",IF(COUNTIF('CBAT Lookups'!$B$5:$B$12,\"Controls-\"&CBAT!$D64)=1,VLOOKUP(\"Controls-\"&CBAT!$D64,'CBAT Lookups'!$B$5:$O$12,12),0))","v":""},{"$f":"IF('Project Scope'!$C64=\"\",\"\",IF(COUNTIF('CBAT Lookups'!$B$5:$B$12,\"Controls-\"&CBAT!$D64)=1,VLOOKUP(\"Controls-\"&CBAT!$D64,'CBAT Lookups'!$B$5:$O$12,13),0))","v":""},{"$f":"IF('Project Scope'!$C64=\"\",\"\",IF(COUNTIF('CBAT Lookups'!$B$5:$B$12,\"Controls-\"&CBAT!$D64)=1,VLOOKUP(\"Controls-\"&CBAT!$D64,'CBAT Lookups'!$B$5:$O$12,14),0))","v":""},{"$f":"IF('Project Scope'!$C64=\"\",\"\",'TRM Data'!$U$3)","v":""},{"$f":"IF('Project Scope'!$C64=\"\",\"\",'TRM Data'!$V$3)","v":""},{"$f":"IF('Project Scope'!$C64=\"\",\"\",IF($K64<=0,0,MAX(0,(IF(AND($I64>0,$J64>0),($I64*$J64)/1000,($G64*$H64)/1000)*$L64))*$BT64*$BR64)+($CD64/0.003412))","v":""},{"$f":"IF('Project Scope'!$C64=\"\",\"\",IF($K64<=0,0,MAX(0,IF(AND($I64>0,$J64>0),($I64*$J64)/1000,($G64*$H64)/1000))*$BQ64))","v":""},{"$f":"IF('Project Scope'!$C64=\"\",\"\",IF($K64<=0,0,MAX(0,IF(AND($I64>0,$J64>0),($I64*$J64)/1000,($G64*$H64)/1000))*$BK64))","v":""},{"$f":"IF('Project Scope'!$C64=\"\",\"\",IF($K64<=0,0,MAX(0,IF(AND($I64>0,$J64>0),($I64*$J64)/1000,($G64*$H64)/1000))*$BL64*$BQ64))","v":""},{"$f":"IF('Project Scope'!$C64=\"\",\"\",IF(OR($K64<=0,'Project Information'!$D$44=\"\"),0,-1*MAX(0,IF(AND($I64>0,$J64>0),($I64*$J64)/1000,($G64*$H64)/1000))*$BT64*$L64*$BS64*VLOOKUP('Project Information'!$D$44,'CBAT Lookups'!$A$23:$H$30,2)))","v":""},{"$f":"IF('Project Scope'!$C64=\"\",\"\",IF(OR($K64<=0,'Project Information'!$D$44=\"\"),0,-1*MAX(0,IF(AND($I64>0,$J64>0),($I64*$J64)/1000,($G64*$H64)/1000))*$BT64*$L64*$BS64*VLOOKUP('Project Information'!$D$44,'CBAT Lookups'!$A$23:$H$30,3)))","v":""},{"$f":"IF('Project Scope'!$C64=\"\",\"\",IF(OR($K64<=0,'Project Information'!$D$44=\"\"),0,-1*MAX(0,IF(AND($I64>0,$J64>0),($I64*$J64)/1000,($G64*$H64)/1000))*$BT64*$L64*$BS64*VLOOKUP('Project Information'!$D$44,'CBAT Lookups'!$A$23:$H$30,4)))","v":""},{"$f":"IF('Project Scope'!$C64=\"\",\"\",IF(OR($K64<=0,'Project Information'!$D$44=\"\"),0,-1*MAX(0,IF(AND($I64>0,$J64>0),($I64*$J64)/1000,($G64*$H64)/1000))*$BT64*$L64*$BS64*VLOOKUP('Project Information'!$D$44,'CBAT Lookups'!$A$23:$H$30,5)))","v":""},{"$f":"IF('Project Scope'!$C64=\"\",\"\",IF(OR($K64<=0,'Project Information'!$D$44=\"\"),0,-1*MAX(0,IF(AND($I64>0,$J64>0),($I64*$J64)/1000,($G64*$H64)/1000))*$BT64*$L64*$BS64*VLOOKUP('Project Information'!$D$44,'CBAT Lookups'!$A$23:$H$30,6)))","v":""},{"$f":"IF('Project Scope'!$C64=\"\",\"\",IF(OR($K64<=0,'Project Information'!$D$44=\"\"),0,-1*MAX(0,IF(AND($I64>0,$J64>0),($I64*$J64)/1000,($G64*$H64)/1000))*$BT64*$L64*$BS64*VLOOKUP('Project Information'!$D$44,'CBAT Lookups'!$A$23:$H$30,7)))","v":""},{"$f":"IF('Project Scope'!$C64=\"\",\"\",IF(OR($K64<=0,'Project Information'!$D$44=\"\"),0,-1*MAX(0,IF(AND($I64>0,$J64>0),($I64*$J64)/1000,($G64*$H64)/1000))*$BT64*$L64*$BS64*VLOOKUP('Project Information'!$D$44,'CBAT Lookups'!$A$23:$H$30,8)))","v":""},null,{"$f":"IF('Project Scope'!$C64=\"\",\"\",VLOOKUP($F64,'CBAT Lookups'!$B$17:$K$19,4))","v":""},{"$f":"IF('Project Scope'!$C64=\"\",\"\",VLOOKUP($F64,'CBAT Lookups'!$B$17:$K$19,5))","v":""},{"$f":"IF('Project Scope'!$C64=\"\",\"\",VLOOKUP($F64,'CBAT Lookups'!$B$17:$K$19,6))","v":""},{"$f":"IF('Project Scope'!$C64=\"\",\"\",VLOOKUP($F64,'CBAT Lookups'!$B$17:$K$19,7))","v":""},{"$f":"IF('Project Scope'!$C64=\"\",\"\",IF(SUMPRODUCT($BM64:$BP64,$CL64:$CO64)=0,0,BM64*CL64/SUMPRODUCT($BM64:$BP64,$CL64:$CO64)))","v":""},{"$f":"IF('Project Scope'!$C64=\"\",\"\",IF(SUMPRODUCT($BM64:$BP64,$CL64:$CO64)=0,0,BN64*CM64/SUMPRODUCT($BM64:$BP64,$CL64:$CO64)))","v":""},{"$f":"IF('Project Scope'!$C64=\"\",\"\",IF(SUMPRODUCT($BM64:$BP64,$CL64:$CO64)=0,0,BO64*CN64/SUMPRODUCT($BM64:$BP64,$CL64:$CO64)))","v":""},{"$f":"IF('Project Scope'!$C64=\"\",\"\",IF(SUMPRODUCT($BM64:$BP64,$CL64:$CO64)=0,0,BP64*CO64/SUMPRODUCT($BM64:$BP64,$CL64:$CO64)))","v":""},{"$f":"IF('Project Scope'!$C64=\"\",\"\",Benefits($BZ64,$CB64,$CC64,$CE64,$CF64,$CG64,$CH64,$CI64,$CJ64,$CK64,$BJ64,$CP64,$CQ64,$CR64,$CS64,$BU64,$BV64,$BW64,$BX64,$BY64,$E64))","v":""},"","","","","","","","",null,{"$f":"IF('Project Scope'!$C64=\"\",\"\",SUM('Project Scope'!$BB64,'Project Scope'!$BC64))","v":""},{"$f":"IF('Project Scope'!$C64=\"\",\"\",SUM('Project Scope'!$BH64, 'Project Scope'!$AZ64,(IF(ISNUMBER('Project Scope'!$BA64),'Project Scope'!$BA64,0)*'Project Information'!$D$12)))","v":""},null,null,{"$f":"IF('Project Scope'!$C64=\"\",\"\",IF($J64<=0,0,(SUMPRODUCT($AV64:$BC64,--($AV64:$BC64>0))+$BE64)*$DK64/((-SUMPRODUCT($AV64:$BC64,--($AV64:$BC64<0))+$BG64+$BH64+$BI64)*$DK64)))","v":""},{"$f":"IF('Project Scope'!$C64=\"\",\"\",IF($K64<=0,0,(SUMPRODUCT($CT64:$DA64,--($CT64:$DA64>0))+$DC64)*$DK64/((-SUMPRODUCT($CT64:$DA64,--($CT64:$DA64<0))+$DE64+$DF64+$DG64)*$DK64)))","v":""},{"$f":"IF('Project Scope'!$C64=\"\",\"\",IF(AND($J64<=0,$K64<=0),0,(SUMPRODUCT($AV64:$BC64,--($AV64:$BC64>0))+$BE64+SUMPRODUCT($CT64:$DA64,--($CT64:$DA64>0))+$DC64)*$DK64/((-SUMPRODUCT($AV64:$BC64,--($AV64:$BC64<0))+$BG64+$BH64+$BI64-SUMPRODUCT($CT64:$DA64,--($CT64:$DA64<0))+$DE64+$DF64+$DG64)*$DK64)))","v":""},{"$f":"IF('Project Scope'!$C64=\"\",\"\",IF(NetOrGross=\"Net\",(1-Z64+AA64),1))","v":""}]
[{"$f":"'Project Scope'!$B65","v":58},{"$f":"IF('Project Scope'!$C65=\"\",\"\",'Project Scope'!$C65)","v":""},{"$f":"IF('Project Scope'!$C65=\"\",\"\",'Project Scope'!$H65)","v":""},{"$f":"IF(ISNUMBER(SEARCH(\"Bay\",'Project Scope'!$Q65)),\"Bay\",IF('Project Scope'!C65=\"\",\"\",'Project Scope'!E65))","v":""},{"$f":"IF('Project Scope'!$C65=\"\",\"\",\"Com\")","v":""},{"$f":"IF('Project Scope'!$C65=\"\",\"\",'Project Scope'!$L65)","v":""},{"$f":"IF('Project Scope'!$C65=\"\",\"\",IF('Project Scope'!$CJ65=\"\",0,'Project Scope'!$CJ65))","v":""},{"$f":"IF('Project Scope'!$C65=\"\",\"\",IF('Project Scope'!$N65=\"\",0,'Project Scope'!$N65))","v":""},{"$f":"IF('Project Scope'!$C65=\"\",\"\",IF('Project Scope'!$CK65=\"\",0,'Project Scope'!$CK65))","v":""},{"$f":"IF('Project Scope'!$C65=\"\",\"\",IF('Project Scope'!$AO65=\"\",0,'Project Scope'!$AO65))","v":""},{"$f":"IF('Project Scope'!$C65=\"\",\"\",IF('Project Scope'!$AX65=\"\",0,'Project Scope'!$AX65))","v":""},{"$f":"IF('Project Scope'!$C65=\"\",\"\",IF('Project Scope'!$M65=\"\",0,'Project Scope'!$M65))","v":""},{"$f":"IF('Project Scope'!$C65=\"\",\"\",IF(COUNTIF('CBAT Lookups'!$B$5:$B$12,\"Fixtures-\"&CBAT!$D65)=1,VLOOKUP(\"Fixtures-\"&CBAT!$D65,'CBAT Lookups'!$B$5:$L$12,11),0))","v":""},{"$f":"IF('Project Scope'!$C65=\"\",\"\",(IF(COUNTIF('CBAT Lookups'!$B$5:$B$12,\"Fixtures-\"&CBAT!$D65)=1,VLOOKUP(\"Fixtures-\"&CBAT!$D65,'CBAT Lookups'!$B$5:$K$12,2),0))*VLOOKUP($F65,'CBAT Lookups'!$B$17:$K$19,2))","v":""},{"$f":"IF('Project Scope'!$C65=\"\",\"\",(IF(COUNTIF('CBAT Lookups'!$B$5:$B$12,\"Fixtures-\"&CBAT!$D65)=1,VLOOKUP(\"Fixtures-\"&CBAT!$D65,'CBAT Lookups'!$B$5:$K$12,3),0))*VLOOKUP($F65,'CBAT Lookups'!$B$17:$K$19,3))","v":""},{"$f":"IF('Project Scope'!$C65=\"\",\"\",(IF(COUNTIF('CBAT Lookups'!$B$5:$B$12,\"Fixtures-\"&CBAT!$D65)=1,VLOOKUP(\"Fixtures-\"&CBAT!$D65,'CBAT Lookups'!$B$5:$K$12,4),0)))","v":""},{"$f":"IF('Project Scope'!$C65=\"\",\"\",(IF(COUNTIF('CBAT Lookups'!$B$5:$B$12,\"Fixtures-\"&CBAT!$D65)=1,VLOOKUP(\"Fixtures-\"&CBAT!$D65,'CBAT Lookups'!$B$5:$K$12,5),0)))","v":""},{"$f":"IF('Project Scope'!$C65=\"\",\"\",(IF(COUNTIF('CBAT Lookups'!$B$5:$B$12,\"Fixtures-\"&CBAT!$D65)=1,VLOOKUP(\"Fixtures-\"&CBAT!$D65,'CBAT Lookups'!$B$5:$K$12,6),0)))","v":""},{"$f":"IF('Project Scope'!$C65=\"\",\"\",IF(COUNTIF('CBAT Lookups'!$B$5:$B$12,\"Fixtures-\"&CBAT!$D65)=1,VLOOKUP(\"Fixtures-\"&CBAT!$D65,'CBAT Lookups'!$B$5:$K$12,7),0))","v":""},{"$f":"IF('Project Scope'!$C65=\"\",\"\",IF(VLOOKUP($F65,'CBAT Lookups'!$B$17:$K$19,8)=\"W\",1,IF(COUNTIF('CBAT Lookups'!$B$5:$B$12,\"Fixtures-\"&CBAT!$D65)=1,VLOOKUP(\"Fixtures-\"&CBAT!$D65,'CBAT Lookups'!$B$5:$K$12,8),0)*VLOOKUP($F65,'CBAT Lookups'!$B$17:$K$19,8)))","v":""},{"$f":"IF('Project Scope'!$C65=\"\",\"\",IF(VLOOKUP($F65,'CBAT Lookups'!$B$17:$K$19,9)=\"W\",1,IF(COUNTIF('CBAT Lookups'!$B$5:$B$12,\"Fixtures-\"&CBAT!$D65)=1,VLOOKUP(\"Fixtures-\"&CBAT!$D65,'CBAT Lookups'!$B$5:$K$12,9),0)*VLOOKUP($F65,'CBAT Lookups'!$B$17:$K$19,9)))","v":""},{"$f":"IF('Project Scope'!$C65=\"\",\"\",IF(COUNTIF('CBAT Lookups'!$B$5:$B$12,\"Fixtures-\"&CBAT!$D65)=1,VLOOKUP(\"Fixtures-\"&CBAT!$D65,'CBAT Lookups'!$B$5:$K$12,10),0)*VLOOKUP($F65,'CBAT Lookups'!$B$17:$K$19,10))","v":""},{"$f":"IF('Project Scope'!$C65=\"\",\"\",IF(COUNTIF('CBAT Lookups'!$B$5:$B$12,\"Fixtures-\"&CBAT!$D65)=1,VLOOKUP(\"Fixtures-\"&CBAT!$D65,'CBAT Lookups'!$B$5:$O$12,12),0))","v":""},{"$f":"IF('Project Scope'!$C65=\"\",\"\",IF(COUNTIF('CBAT Lookups'!$B$5:$B$12,\"Fixtures-\"&CBAT!$D65)=1,VLOOKUP(\"Fixtures-\"&CBAT!$D65,'CBAT Lookups'!$B$5:$O$12,13),0))","v":""},{"$f":"IF('Project Scope'!$C65=\"\",\"\",IF(COUNTIF('CBAT Lookups'!$B$5:$B$12,\"Fixtures-\"&CBAT!$D65)=1,VLOOKUP(\"Fixtures-\"&CBAT!$D65,'CBAT Lookups'!$B$5:$O$12,14),0))","v":""},{"$f":"IF('Project Scope'!$C65=\"\",\"\",'TRM Data'!$U$3)","v":""},{"$f":"IF('Project Scope'!$C65=\"\",\"\",'TRM Data'!$V$3)","v":""},{"$f":"IF('Project Scope'!$C65=\"\",\"\",IF($J65<=0,0,MAX(0,(($G65*$H65/1000)-($I65*$J65/1000))*$L65)*$U65)+($AF65/0.003412))","v":""},{"$f":"IF('Project Scope'!$C65=\"\",\"\",IF($J65<=0,0,MAX(0,(($G65*$H65/1000)-($I65*$J65/1000)))*$T65))","v":""},{"$f":"IF('Project Scope'!$C65=\"\",\"\",IF($J65<=0,0,MAX(0,(($G65*$H65/1000)-($I65*$J65/1000))*$N65)))","v":""},{"$f":"IF('Project Scope'!$C65=\"\",\"\",IF($J65<=0,0,MAX(0,(($G65*$H65/1000)-($I65*$J65/1000))*$O65)*$T65))","v":""},{"$f":"IF('Project Scope'!$C65=\"\",\"\",IF(OR($J65<=0,'Project Information'!$D$44=\"\"),0,-1*MAX(0,(($G65*$H65/1000)-($I65*$J65/1000))*$L65)*$V65*VLOOKUP('Project Information'!$D$44,'CBAT Lookups'!$A$23:$H$30,2)))","v":""},{"$f":"IF('Project Scope'!$C65=\"\",\"\",IF(OR($J65<=0,'Project Information'!$D$44=\"\"),0,-1*MAX(0,(($G65*$H65/1000)-($I65*$J65/1000))*$L65)*$V65*VLOOKUP('Project Information'!$D$44,'CBAT Lookups'!$A$23:$H$30,3)))","v":""},{"$f":"IF('Project Scope'!$C65=\"\",\"\",IF(OR($J65<=0,'Project Information'!$D$44=\"\"),0,-1*MAX(0,(($G65*$H65/1000)-($I65*$J65/1000))*$L65)*$V65*VLOOKUP('Project Information'!$D$44,'CBAT Lookups'!$A$23:$H$30,4)))","v":""},{"$f":"IF('Project Scope'!$C65=\"\",\"\",IF(OR($J65<=0,'Project Information'!$D$44=\"\"),0,-1*MAX(0,(($G65*$H65/1000)-($I65*$J65/1000))*$L65)*$V65*VLOOKUP('Project Information'!$D$44,'CBAT Lookups'!$A$23:$H$30,5)))","v":""},{"$f":"IF('Project Scope'!$C65=\"\",\"\",IF(OR($J65<=0,'Project Information'!$D$44=\"\"),0,-1*MAX(0,(($G65*$H65/1000)-($I65*$J65/1000))*$L65)*$V65*VLOOKUP('Project Information'!$D$44,'CBAT Lookups'!$A$23:$H$30,6)))","v":""},{"$f":"IF('Project Scope'!$C65=\"\",\"\",IF(OR($J65<=0,'Project Information'!$D$44=\"\"),0,-1*MAX(0,(($G65*$H65/1000)-($I65*$J65/1000))*$L65)*$V65*VLOOKUP('Project Information'!$D$44,'CBAT Lookups'!$A$23:$H$30,7)))","v":""},{"$f":"IF('Project Scope'!$C65=\"\",\"\",IF(OR($J65<=0,'Project Information'!$D$44=\"\"),0,-1*MAX(0,(($G65*$H65/1000)-($I65*$J65/1000))*$L65)*$V65*VLOOKUP('Project Information'!$D$44,'CBAT Lookups'!$A$23:$H$30,8)))","v":""},null,{"$f":"IF('Project Scope'!$C65=\"\",\"\",VLOOKUP($F65,'CBAT Lookups'!$B$17:$K$19,4))","v":""},{"$f":"IF('Project Scope'!$C65=\"\",\"\",VLOOKUP($F65,'CBAT Lookups'!$B$17:$K$19,5))","v":""},{"$f":"IF('Project Scope'!$C65=\"\",\"\",VLOOKUP($F65,'CBAT Lookups'!$B$17:$K$19,6))","v":""},{"$f":"IF('Project Scope'!$C65=\"\",\"\",VLOOKUP($F65,'CBAT Lookups'!$B$17:$K$19,7))","v":""},{"$f":"IF('Project Scope'!$C65=\"\",\"\",IF(SUMPRODUCT($P65:$S65,$AN65:$AQ65)=0,0,P65*AN65/SUMPRODUCT($P65:$S65,$AN65:$AQ65)))","v":""},{"$f":"IF('Project Scope'!$C65=\"\",\"\",IF(SUMPRODUCT($P65:$S65,$AN65:$AQ65)=0,0,Q65*AO65/SUMPRODUCT($P65:$S65,$AN65:$AQ65)))","v":""},{"$f":"IF('Project Scope'!$C65=\"\",\"\",IF(SUMPRODUCT($P65:$S65,$AN65:$AQ65)=0,0,R65*AP65/SUMPRODUCT($P65:$S65,$AN65:$AQ65)))","v":""},{"$f":"IF('Project Scope'!$C65=\"\",\"\",IF(SUMPRODUCT($P65:$S65,$AN65:$AQ65)=0,0,S65*AQ65/SUMPRODUCT($P65:$S65,$AN65:$AQ65)))","v":""},{"$f":"IF('Project Scope'!$C65=\"\",\"\",Benefits($AB65,$AD65,$AE65,$AG65,$AH65,$AI65,$AJ65,$AK65,$AL65,$AM65,$M65,$AR65,$AS65,$AT65,$AU65,$W65,$X65,$Y65,$Z65,$AA65,$E65))","v":""},"","","","","","","","",null,{"$f":"IF('Project Scope'!$C65=\"\",\"\",SUM('Project Scope'!$AT65,'Project Scope'!$AU65))","v":""},{"$f":"IF('Project Scope'!$C65=\"\",\"\",SUM('Project Scope'!$BG65, 'Project Scope'!$AR65,(IF(ISNUMBER('Project Scope'!$AS65),'Project Scope'!$AS65,0)*'Project Information'!$D$12)))","v":""},null,null,{"$f":"IF('Project Scope'!$C65=\"\",\"\",IF(COUNTIF('CBAT Lookups'!$B$5:$B$12,\"Controls-\"&CBAT!$D65)=1,VLOOKUP(\"Controls-\"&CBAT!$D65,'CBAT Lookups'!$B$5:$L$12,11),0))","v":""},{"$f":"IF('Project Scope'!$C65=\"\",\"\",IF(COUNTIF('CBAT Lookups'!$B$5:$B$12,\"Controls-\"&CBAT!$D65)=1,VLOOKUP(\"Controls-\"&CBAT!$D65,'CBAT Lookups'!$B$5:$K$12,2),0)*VLOOKUP($F65,'CBAT Lookups'!$B$17:$K$19,2))","v":""},{"$f":"IF('Project Scope'!$C65=\"\",\"\",IF(COUNTIF('CBAT Lookups'!$B$5:$B$12,\"Controls-\"&CBAT!$D65)=1,VLOOKUP(\"Controls-\"&CBAT!$D65,'CBAT Lookups'!$B$5:$K$12,3),0)*VLOOKUP($F65,'CBAT Lookups'!$B$17:$K$19,3))","v":""},{"$f":"IF('Project Scope'!$C65=\"\",\"\",IF(COUNTIF('CBAT Lookups'!$B$5:$B$12,\"Controls-\"&CBAT!$D65)=1,VLOOKUP(\"Controls-\"&CBAT!$D65,'CBAT Lookups'!$B$5:$K$12,4),0))","v":""},{"$f":"IF('Project Scope'!$C65=\"\",\"\",IF(COUNTIF('CBAT Lookups'!$B$5:$B$12,\"Controls-\"&CBAT!$D65)=1,VLOOKUP(\"Controls-\"&CBAT!$D65,'CBAT Lookups'!$B$5:$K$12,5),0))","v":""},{"$f":"IF('Project Scope'!$C65=\"\",\"\",IF(COUNTIF('CBAT Lookups'!$B$5:$B$12,\"Controls-\"&CBAT!$D65)=1,VLOOKUP(\"Controls-\"&CBAT!$D65,'CBAT Lookups'!$B$5:$K$12,6),0))","v":""},{"$f":"IF('Project Scope'!$C65=\"\",\"\",IF(COUNTIF('CBAT Lookups'!$B$5:$B$12,\"Controls-\"&CBAT!$D65)=1,VLOOKUP(\"Controls-\"&CBAT!$D65,'CBAT Lookups'!$B$5:$K$12,7),0))","v":""},{"$f":"IF('Project Scope'!$C65=\"\",\"\",IF(VLOOKUP($F65,'CBAT Lookups'!$B$17:$K$19,8)=\"W\",1,IF(COUNTIF('CBAT Lookups'!$B$5:$B$12,\"Controls-\"&CBAT!$D65)=1,VLOOKUP(\"Controls-\"&CBAT!$D65,'CBAT Lookups'!$B$5:$K$12,8),0)*VLOOKUP($F65,'CBAT Lookups'!$B$17:$K$19,8)))","v":""},{"$f":"IF('Project Scope'!$C65=\"\",\"\",IF(VLOOKUP($F65,'CBAT Lookups'!$B$17:$K$19,9)=\"W\",1,IF(COUNTIF('CBAT Lookups'!$B$5:$B$12,\"Controls-\"&CBAT!$D65)=1,VLOOKUP(\"Controls-\"&CBAT!$D65,'CBAT Lookups'!$B$5:$K$12,9),0)*VLOOKUP($F65,'CBAT Lookups'!$B$17:$K$19,9)))","v":""},{"$f":"IF('Project Scope'!$C65=\"\",\"\",IF(COUNTIF('CBAT Lookups'!$B$5:$B$12,\"Controls-\"&CBAT!$D65)=1,VLOOKUP(\"Controls-\"&CBAT!$D65,'CBAT Lookups'!$B$5:$K$12,10),0)*VLOOKUP($F65,'CBAT Lookups'!$B$17:$K$19,10))","v":""},{"$f":"IF('Project Scope'!$C65=\"\",\"\",VLOOKUP($C65,'CBAT Lookups'!$A$33:$B$57,2))","v":""},{"$f":"IF('Project Scope'!$C65=\"\",\"\",IF(COUNTIF('CBAT Lookups'!$B$5:$B$12,\"Controls-\"&CBAT!$D65)=1,VLOOKUP(\"Controls-\"&CBAT!$D65,'CBAT Lookups'!$B$5:$O$12,12),0))","v":""},{"$f":"IF('Project Scope'!$C65=\"\",\"\",IF(COUNTIF('CBAT Lookups'!$B$5:$B$12,\"Controls-\"&CBAT!$D65)=1,VLOOKUP(\"Controls-\"&CBAT!$D65,'CBAT Lookups'!$B$5:$O$12,13),0))","v":""},{"$f":"IF('Project Scope'!$C65=\"\",\"\",IF(COUNTIF('CBAT Lookups'!$B$5:$B$12,\"Controls-\"&CBAT!$D65)=1,VLOOKUP(\"Controls-\"&CBAT!$D65,'CBAT Lookups'!$B$5:$O$12,14),0))","v":""},{"$f":"IF('Project Scope'!$C65=\"\",\"\",'TRM Data'!$U$3)","v":""},{"$f":"IF('Project Scope'!$C65=\"\",\"\",'TRM Data'!$V$3)","v":""},{"$f":"IF('Project Scope'!$C65=\"\",\"\",IF($K65<=0,0,MAX(0,(IF(AND($I65>0,$J65>0),($I65*$J65)/1000,($G65*$H65)/1000)*$L65))*$BT65*$BR65)+($CD65/0.003412))","v":""},{"$f":"IF('Project Scope'!$C65=\"\",\"\",IF($K65<=0,0,MAX(0,IF(AND($I65>0,$J65>0),($I65*$J65)/1000,($G65*$H65)/1000))*$BQ65))","v":""},{"$f":"IF('Project Scope'!$C65=\"\",\"\",IF($K65<=0,0,MAX(0,IF(AND($I65>0,$J65>0),($I65*$J65)/1000,($G65*$H65)/1000))*$BK65))","v":""},{"$f":"IF('Project Scope'!$C65=\"\",\"\",IF($K65<=0,0,MAX(0,IF(AND($I65>0,$J65>0),($I65*$J65)/1000,($G65*$H65)/1000))*$BL65*$BQ65))","v":""},{"$f":"IF('Project Scope'!$C65=\"\",\"\",IF(OR($K65<=0,'Project Information'!$D$44=\"\"),0,-1*MAX(0,IF(AND($I65>0,$J65>0),($I65*$J65)/1000,($G65*$H65)/1000))*$BT65*$L65*$BS65*VLOOKUP('Project Information'!$D$44,'CBAT Lookups'!$A$23:$H$30,2)))","v":""},{"$f":"IF('Project Scope'!$C65=\"\",\"\",IF(OR($K65<=0,'Project Information'!$D$44=\"\"),0,-1*MAX(0,IF(AND($I65>0,$J65>0),($I65*$J65)/1000,($G65*$H65)/1000))*$BT65*$L65*$BS65*VLOOKUP('Project Information'!$D$44,'CBAT Lookups'!$A$23:$H$30,3)))","v":""},{"$f":"IF('Project Scope'!$C65=\"\",\"\",IF(OR($K65<=0,'Project Information'!$D$44=\"\"),0,-1*MAX(0,IF(AND($I65>0,$J65>0),($I65*$J65)/1000,($G65*$H65)/1000))*$BT65*$L65*$BS65*VLOOKUP('Project Information'!$D$44,'CBAT Lookups'!$A$23:$H$30,4)))","v":""},{"$f":"IF('Project Scope'!$C65=\"\",\"\",IF(OR($K65<=0,'Project Information'!$D$44=\"\"),0,-1*MAX(0,IF(AND($I65>0,$J65>0),($I65*$J65)/1000,($G65*$H65)/1000))*$BT65*$L65*$BS65*VLOOKUP('Project Information'!$D$44,'CBAT Lookups'!$A$23:$H$30,5)))","v":""},{"$f":"IF('Project Scope'!$C65=\"\",\"\",IF(OR($K65<=0,'Project Information'!$D$44=\"\"),0,-1*MAX(0,IF(AND($I65>0,$J65>0),($I65*$J65)/1000,($G65*$H65)/1000))*$BT65*$L65*$BS65*VLOOKUP('Project Information'!$D$44,'CBAT Lookups'!$A$23:$H$30,6)))","v":""},{"$f":"IF('Project Scope'!$C65=\"\",\"\",IF(OR($K65<=0,'Project Information'!$D$44=\"\"),0,-1*MAX(0,IF(AND($I65>0,$J65>0),($I65*$J65)/1000,($G65*$H65)/1000))*$BT65*$L65*$BS65*VLOOKUP('Project Information'!$D$44,'CBAT Lookups'!$A$23:$H$30,7)))","v":""},{"$f":"IF('Project Scope'!$C65=\"\",\"\",IF(OR($K65<=0,'Project Information'!$D$44=\"\"),0,-1*MAX(0,IF(AND($I65>0,$J65>0),($I65*$J65)/1000,($G65*$H65)/1000))*$BT65*$L65*$BS65*VLOOKUP('Project Information'!$D$44,'CBAT Lookups'!$A$23:$H$30,8)))","v":""},null,{"$f":"IF('Project Scope'!$C65=\"\",\"\",VLOOKUP($F65,'CBAT Lookups'!$B$17:$K$19,4))","v":""},{"$f":"IF('Project Scope'!$C65=\"\",\"\",VLOOKUP($F65,'CBAT Lookups'!$B$17:$K$19,5))","v":""},{"$f":"IF('Project Scope'!$C65=\"\",\"\",VLOOKUP($F65,'CBAT Lookups'!$B$17:$K$19,6))","v":""},{"$f":"IF('Project Scope'!$C65=\"\",\"\",VLOOKUP($F65,'CBAT Lookups'!$B$17:$K$19,7))","v":""},{"$f":"IF('Project Scope'!$C65=\"\",\"\",IF(SUMPRODUCT($BM65:$BP65,$CL65:$CO65)=0,0,BM65*CL65/SUMPRODUCT($BM65:$BP65,$CL65:$CO65)))","v":""},{"$f":"IF('Project Scope'!$C65=\"\",\"\",IF(SUMPRODUCT($BM65:$BP65,$CL65:$CO65)=0,0,BN65*CM65/SUMPRODUCT($BM65:$BP65,$CL65:$CO65)))","v":""},{"$f":"IF('Project Scope'!$C65=\"\",\"\",IF(SUMPRODUCT($BM65:$BP65,$CL65:$CO65)=0,0,BO65*CN65/SUMPRODUCT($BM65:$BP65,$CL65:$CO65)))","v":""},{"$f":"IF('Project Scope'!$C65=\"\",\"\",IF(SUMPRODUCT($BM65:$BP65,$CL65:$CO65)=0,0,BP65*CO65/SUMPRODUCT($BM65:$BP65,$CL65:$CO65)))","v":""},{"$f":"IF('Project Scope'!$C65=\"\",\"\",Benefits($BZ65,$CB65,$CC65,$CE65,$CF65,$CG65,$CH65,$CI65,$CJ65,$CK65,$BJ65,$CP65,$CQ65,$CR65,$CS65,$BU65,$BV65,$BW65,$BX65,$BY65,$E65))","v":""},"","","","","","","","",null,{"$f":"IF('Project Scope'!$C65=\"\",\"\",SUM('Project Scope'!$BB65,'Project Scope'!$BC65))","v":""},{"$f":"IF('Project Scope'!$C65=\"\",\"\",SUM('Project Scope'!$BH65, 'Project Scope'!$AZ65,(IF(ISNUMBER('Project Scope'!$BA65),'Project Scope'!$BA65,0)*'Project Information'!$D$12)))","v":""},null,null,{"$f":"IF('Project Scope'!$C65=\"\",\"\",IF($J65<=0,0,(SUMPRODUCT($AV65:$BC65,--($AV65:$BC65>0))+$BE65)*$DK65/((-SUMPRODUCT($AV65:$BC65,--($AV65:$BC65<0))+$BG65+$BH65+$BI65)*$DK65)))","v":""},{"$f":"IF('Project Scope'!$C65=\"\",\"\",IF($K65<=0,0,(SUMPRODUCT($CT65:$DA65,--($CT65:$DA65>0))+$DC65)*$DK65/((-SUMPRODUCT($CT65:$DA65,--($CT65:$DA65<0))+$DE65+$DF65+$DG65)*$DK65)))","v":""},{"$f":"IF('Project Scope'!$C65=\"\",\"\",IF(AND($J65<=0,$K65<=0),0,(SUMPRODUCT($AV65:$BC65,--($AV65:$BC65>0))+$BE65+SUMPRODUCT($CT65:$DA65,--($CT65:$DA65>0))+$DC65)*$DK65/((-SUMPRODUCT($AV65:$BC65,--($AV65:$BC65<0))+$BG65+$BH65+$BI65-SUMPRODUCT($CT65:$DA65,--($CT65:$DA65<0))+$DE65+$DF65+$DG65)*$DK65)))","v":""},{"$f":"IF('Project Scope'!$C65=\"\",\"\",IF(NetOrGross=\"Net\",(1-Z65+AA65),1))","v":""}]
[{"$f":"'Project Scope'!$B66","v":59},{"$f":"IF('Project Scope'!$C66=\"\",\"\",'Project Scope'!$C66)","v":""},{"$f":"IF('Project Scope'!$C66=\"\",\"\",'Project Scope'!$H66)","v":""},{"$f":"IF(ISNUMBER(SEARCH(\"Bay\",'Project Scope'!$Q66)),\"Bay\",IF('Project Scope'!C66=\"\",\"\",'Project Scope'!E66))","v":""},{"$f":"IF('Project Scope'!$C66=\"\",\"\",\"Com\")","v":""},{"$f":"IF('Project Scope'!$C66=\"\",\"\",'Project Scope'!$L66)","v":""},{"$f":"IF('Project Scope'!$C66=\"\",\"\",IF('Project Scope'!$CJ66=\"\",0,'Project Scope'!$CJ66))","v":""},{"$f":"IF('Project Scope'!$C66=\"\",\"\",IF('Project Scope'!$N66=\"\",0,'Project Scope'!$N66))","v":""},{"$f":"IF('Project Scope'!$C66=\"\",\"\",IF('Project Scope'!$CK66=\"\",0,'Project Scope'!$CK66))","v":""},{"$f":"IF('Project Scope'!$C66=\"\",\"\",IF('Project Scope'!$AO66=\"\",0,'Project Scope'!$AO66))","v":""},{"$f":"IF('Project Scope'!$C66=\"\",\"\",IF('Project Scope'!$AX66=\"\",0,'Project Scope'!$AX66))","v":""},{"$f":"IF('Project Scope'!$C66=\"\",\"\",IF('Project Scope'!$M66=\"\",0,'Project Scope'!$M66))","v":""},{"$f":"IF('Project Scope'!$C66=\"\",\"\",IF(COUNTIF('CBAT Lookups'!$B$5:$B$12,\"Fixtures-\"&CBAT!$D66)=1,VLOOKUP(\"Fixtures-\"&CBAT!$D66,'CBAT Lookups'!$B$5:$L$12,11),0))","v":""},{"$f":"IF('Project Scope'!$C66=\"\",\"\",(IF(COUNTIF('CBAT Lookups'!$B$5:$B$12,\"Fixtures-\"&CBAT!$D66)=1,VLOOKUP(\"Fixtures-\"&CBAT!$D66,'CBAT Lookups'!$B$5:$K$12,2),0))*VLOOKUP($F66,'CBAT Lookups'!$B$17:$K$19,2))","v":""},{"$f":"IF('Project Scope'!$C66=\"\",\"\",(IF(COUNTIF('CBAT Lookups'!$B$5:$B$12,\"Fixtures-\"&CBAT!$D66)=1,VLOOKUP(\"Fixtures-\"&CBAT!$D66,'CBAT Lookups'!$B$5:$K$12,3),0))*VLOOKUP($F66,'CBAT Lookups'!$B$17:$K$19,3))","v":""},{"$f":"IF('Project Scope'!$C66=\"\",\"\",(IF(COUNTIF('CBAT Lookups'!$B$5:$B$12,\"Fixtures-\"&CBAT!$D66)=1,VLOOKUP(\"Fixtures-\"&CBAT!$D66,'CBAT Lookups'!$B$5:$K$12,4),0)))","v":""},{"$f":"IF('Project Scope'!$C66=\"\",\"\",(IF(COUNTIF('CBAT Lookups'!$B$5:$B$12,\"Fixtures-\"&CBAT!$D66)=1,VLOOKUP(\"Fixtures-\"&CBAT!$D66,'CBAT Lookups'!$B$5:$K$12,5),0)))","v":""},{"$f":"IF('Project Scope'!$C66=\"\",\"\",(IF(COUNTIF('CBAT Lookups'!$B$5:$B$12,\"Fixtures-\"&CBAT!$D66)=1,VLOOKUP(\"Fixtures-\"&CBAT!$D66,'CBAT Lookups'!$B$5:$K$12,6),0)))","v":""},{"$f":"IF('Project Scope'!$C66=\"\",\"\",IF(COUNTIF('CBAT Lookups'!$B$5:$B$12,\"Fixtures-\"&CBAT!$D66)=1,VLOOKUP(\"Fixtures-\"&CBAT!$D66,'CBAT Lookups'!$B$5:$K$12,7),0))","v":""},{"$f":"IF('Project Scope'!$C66=\"\",\"\",IF(VLOOKUP($F66,'CBAT Lookups'!$B$17:$K$19,8)=\"W\",1,IF(COUNTIF('CBAT Lookups'!$B$5:$B$12,\"Fixtures-\"&CBAT!$D66)=1,VLOOKUP(\"Fixtures-\"&CBAT!$D66,'CBAT Lookups'!$B$5:$K$12,8),0)*VLOOKUP($F66,'CBAT Lookups'!$B$17:$K$19,8)))","v":""},{"$f":"IF('Project Scope'!$C66=\"\",\"\",IF(VLOOKUP($F66,'CBAT Lookups'!$B$17:$K$19,9)=\"W\",1,IF(COUNTIF('CBAT Lookups'!$B$5:$B$12,\"Fixtures-\"&CBAT!$D66)=1,VLOOKUP(\"Fixtures-\"&CBAT!$D66,'CBAT Lookups'!$B$5:$K$12,9),0)*VLOOKUP($F66,'CBAT Lookups'!$B$17:$K$19,9)))","v":""},{"$f":"IF('Project Scope'!$C66=\"\",\"\",IF(COUNTIF('CBAT Lookups'!$B$5:$B$12,\"Fixtures-\"&CBAT!$D66)=1,VLOOKUP(\"Fixtures-\"&CBAT!$D66,'CBAT Lookups'!$B$5:$K$12,10),0)*VLOOKUP($F66,'CBAT Lookups'!$B$17:$K$19,10))","v":""},{"$f":"IF('Project Scope'!$C66=\"\",\"\",IF(COUNTIF('CBAT Lookups'!$B$5:$B$12,\"Fixtures-\"&CBAT!$D66)=1,VLOOKUP(\"Fixtures-\"&CBAT!$D66,'CBAT Lookups'!$B$5:$O$12,12),0))","v":""},{"$f":"IF('Project Scope'!$C66=\"\",\"\",IF(COUNTIF('CBAT Lookups'!$B$5:$B$12,\"Fixtures-\"&CBAT!$D66)=1,VLOOKUP(\"Fixtures-\"&CBAT!$D66,'CBAT Lookups'!$B$5:$O$12,13),0))","v":""},{"$f":"IF('Project Scope'!$C66=\"\",\"\",IF(COUNTIF('CBAT Lookups'!$B$5:$B$12,\"Fixtures-\"&CBAT!$D66)=1,VLOOKUP(\"Fixtures-\"&CBAT!$D66,'CBAT Lookups'!$B$5:$O$12,14),0))","v":""},{"$f":"IF('Project Scope'!$C66=\"\",\"\",'TRM Data'!$U$3)","v":""},{"$f":"IF('Project Scope'!$C66=\"\",\"\",'TRM Data'!$V$3)","v":""},{"$f":"IF('Project Scope'!$C66=\"\",\"\",IF($J66<=0,0,MAX(0,(($G66*$H66/1000)-($I66*$J66/1000))*$L66)*$U66)+($AF66/0.003412))","v":""},{"$f":"IF('Project Scope'!$C66=\"\",\"\",IF($J66<=0,0,MAX(0,(($G66*$H66/1000)-($I66*$J66/1000)))*$T66))","v":""},{"$f":"IF('Project Scope'!$C66=\"\",\"\",IF($J66<=0,0,MAX(0,(($G66*$H66/1000)-($I66*$J66/1000))*$N66)))","v":""},{"$f":"IF('Project Scope'!$C66=\"\",\"\",IF($J66<=0,0,MAX(0,(($G66*$H66/1000)-($I66*$J66/1000))*$O66)*$T66))","v":""},{"$f":"IF('Project Scope'!$C66=\"\",\"\",IF(OR($J66<=0,'Project Information'!$D$44=\"\"),0,-1*MAX(0,(($G66*$H66/1000)-($I66*$J66/1000))*$L66)*$V66*VLOOKUP('Project Information'!$D$44,'CBAT Lookups'!$A$23:$H$30,2)))","v":""},{"$f":"IF('Project Scope'!$C66=\"\",\"\",IF(OR($J66<=0,'Project Information'!$D$44=\"\"),0,-1*MAX(0,(($G66*$H66/1000)-($I66*$J66/1000))*$L66)*$V66*VLOOKUP('Project Information'!$D$44,'CBAT Lookups'!$A$23:$H$30,3)))","v":""},{"$f":"IF('Project Scope'!$C66=\"\",\"\",IF(OR($J66<=0,'Project Information'!$D$44=\"\"),0,-1*MAX(0,(($G66*$H66/1000)-($I66*$J66/1000))*$L66)*$V66*VLOOKUP('Project Information'!$D$44,'CBAT Lookups'!$A$23:$H$30,4)))","v":""},{"$f":"IF('Project Scope'!$C66=\"\",\"\",IF(OR($J66<=0,'Project Information'!$D$44=\"\"),0,-1*MAX(0,(($G66*$H66/1000)-($I66*$J66/1000))*$L66)*$V66*VLOOKUP('Project Information'!$D$44,'CBAT Lookups'!$A$23:$H$30,5)))","v":""},{"$f":"IF('Project Scope'!$C66=\"\",\"\",IF(OR($J66<=0,'Project Information'!$D$44=\"\"),0,-1*MAX(0,(($G66*$H66/1000)-($I66*$J66/1000))*$L66)*$V66*VLOOKUP('Project Information'!$D$44,'CBAT Lookups'!$A$23:$H$30,6)))","v":""},{"$f":"IF('Project Scope'!$C66=\"\",\"\",IF(OR($J66<=0,'Project Information'!$D$44=\"\"),0,-1*MAX(0,(($G66*$H66/1000)-($I66*$J66/1000))*$L66)*$V66*VLOOKUP('Project Information'!$D$44,'CBAT Lookups'!$A$23:$H$30,7)))","v":""},{"$f":"IF('Project Scope'!$C66=\"\",\"\",IF(OR($J66<=0,'Project Information'!$D$44=\"\"),0,-1*MAX(0,(($G66*$H66/1000)-($I66*$J66/1000))*$L66)*$V66*VLOOKUP('Project Information'!$D$44,'CBAT Lookups'!$A$23:$H$30,8)))","v":""},null,{"$f":"IF('Project Scope'!$C66=\"\",\"\",VLOOKUP($F66,'CBAT Lookups'!$B$17:$K$19,4))","v":""},{"$f":"IF('Project Scope'!$C66=\"\",\"\",VLOOKUP($F66,'CBAT Lookups'!$B$17:$K$19,5))","v":""},{"$f":"IF('Project Scope'!$C66=\"\",\"\",VLOOKUP($F66,'CBAT Lookups'!$B$17:$K$19,6))","v":""},{"$f":"IF('Project Scope'!$C66=\"\",\"\",VLOOKUP($F66,'CBAT Lookups'!$B$17:$K$19,7))","v":""},{"$f":"IF('Project Scope'!$C66=\"\",\"\",IF(SUMPRODUCT($P66:$S66,$AN66:$AQ66)=0,0,P66*AN66/SUMPRODUCT($P66:$S66,$AN66:$AQ66)))","v":""},{"$f":"IF('Project Scope'!$C66=\"\",\"\",IF(SUMPRODUCT($P66:$S66,$AN66:$AQ66)=0,0,Q66*AO66/SUMPRODUCT($P66:$S66,$AN66:$AQ66)))","v":""},{"$f":"IF('Project Scope'!$C66=\"\",\"\",IF(SUMPRODUCT($P66:$S66,$AN66:$AQ66)=0,0,R66*AP66/SUMPRODUCT($P66:$S66,$AN66:$AQ66)))","v":""},{"$f":"IF('Project Scope'!$C66=\"\",\"\",IF(SUMPRODUCT($P66:$S66,$AN66:$AQ66)=0,0,S66*AQ66/SUMPRODUCT($P66:$S66,$AN66:$AQ66)))","v":""},{"$f":"IF('Project Scope'!$C66=\"\",\"\",Benefits($AB66,$AD66,$AE66,$AG66,$AH66,$AI66,$AJ66,$AK66,$AL66,$AM66,$M66,$AR66,$AS66,$AT66,$AU66,$W66,$X66,$Y66,$Z66,$AA66,$E66))","v":""},"","","","","","","","",null,{"$f":"IF('Project Scope'!$C66=\"\",\"\",SUM('Project Scope'!$AT66,'Project Scope'!$AU66))","v":""},{"$f":"IF('Project Scope'!$C66=\"\",\"\",SUM('Project Scope'!$BG66, 'Project Scope'!$AR66,(IF(ISNUMBER('Project Scope'!$AS66),'Project Scope'!$AS66,0)*'Project Information'!$D$12)))","v":""},null,null,{"$f":"IF('Project Scope'!$C66=\"\",\"\",IF(COUNTIF('CBAT Lookups'!$B$5:$B$12,\"Controls-\"&CBAT!$D66)=1,VLOOKUP(\"Controls-\"&CBAT!$D66,'CBAT Lookups'!$B$5:$L$12,11),0))","v":""},{"$f":"IF('Project Scope'!$C66=\"\",\"\",IF(COUNTIF('CBAT Lookups'!$B$5:$B$12,\"Controls-\"&CBAT!$D66)=1,VLOOKUP(\"Controls-\"&CBAT!$D66,'CBAT Lookups'!$B$5:$K$12,2),0)*VLOOKUP($F66,'CBAT Lookups'!$B$17:$K$19,2))","v":""},{"$f":"IF('Project Scope'!$C66=\"\",\"\",IF(COUNTIF('CBAT Lookups'!$B$5:$B$12,\"Controls-\"&CBAT!$D66)=1,VLOOKUP(\"Controls-\"&CBAT!$D66,'CBAT Lookups'!$B$5:$K$12,3),0)*VLOOKUP($F66,'CBAT Lookups'!$B$17:$K$19,3))","v":""},{"$f":"IF('Project Scope'!$C66=\"\",\"\",IF(COUNTIF('CBAT Lookups'!$B$5:$B$12,\"Controls-\"&CBAT!$D66)=1,VLOOKUP(\"Controls-\"&CBAT!$D66,'CBAT Lookups'!$B$5:$K$12,4),0))","v":""},{"$f":"IF('Project Scope'!$C66=\"\",\"\",IF(COUNTIF('CBAT Lookups'!$B$5:$B$12,\"Controls-\"&CBAT!$D66)=1,VLOOKUP(\"Controls-\"&CBAT!$D66,'CBAT Lookups'!$B$5:$K$12,5),0))","v":""},{"$f":"IF('Project Scope'!$C66=\"\",\"\",IF(COUNTIF('CBAT Lookups'!$B$5:$B$12,\"Controls-\"&CBAT!$D66)=1,VLOOKUP(\"Controls-\"&CBAT!$D66,'CBAT Lookups'!$B$5:$K$12,6),0))","v":""},{"$f":"IF('Project Scope'!$C66=\"\",\"\",IF(COUNTIF('CBAT Lookups'!$B$5:$B$12,\"Controls-\"&CBAT!$D66)=1,VLOOKUP(\"Controls-\"&CBAT!$D66,'CBAT Lookups'!$B$5:$K$12,7),0))","v":""},{"$f":"IF('Project Scope'!$C66=\"\",\"\",IF(VLOOKUP($F66,'CBAT Lookups'!$B$17:$K$19,8)=\"W\",1,IF(COUNTIF('CBAT Lookups'!$B$5:$B$12,\"Controls-\"&CBAT!$D66)=1,VLOOKUP(\"Controls-\"&CBAT!$D66,'CBAT Lookups'!$B$5:$K$12,8),0)*VLOOKUP($F66,'CBAT Lookups'!$B$17:$K$19,8)))","v":""},{"$f":"IF('Project Scope'!$C66=\"\",\"\",IF(VLOOKUP($F66,'CBAT Lookups'!$B$17:$K$19,9)=\"W\",1,IF(COUNTIF('CBAT Lookups'!$B$5:$B$12,\"Controls-\"&CBAT!$D66)=1,VLOOKUP(\"Controls-\"&CBAT!$D66,'CBAT Lookups'!$B$5:$K$12,9),0)*VLOOKUP($F66,'CBAT Lookups'!$B$17:$K$19,9)))","v":""},{"$f":"IF('Project Scope'!$C66=\"\",\"\",IF(COUNTIF('CBAT Lookups'!$B$5:$B$12,\"Controls-\"&CBAT!$D66)=1,VLOOKUP(\"Controls-\"&CBAT!$D66,'CBAT Lookups'!$B$5:$K$12,10),0)*VLOOKUP($F66,'CBAT Lookups'!$B$17:$K$19,10))","v":""},{"$f":"IF('Project Scope'!$C66=\"\",\"\",VLOOKUP($C66,'CBAT Lookups'!$A$33:$B$57,2))","v":""},{"$f":"IF('Project Scope'!$C66=\"\",\"\",IF(COUNTIF('CBAT Lookups'!$B$5:$B$12,\"Controls-\"&CBAT!$D66)=1,VLOOKUP(\"Controls-\"&CBAT!$D66,'CBAT Lookups'!$B$5:$O$12,12),0))","v":""},{"$f":"IF('Project Scope'!$C66=\"\",\"\",IF(COUNTIF('CBAT Lookups'!$B$5:$B$12,\"Controls-\"&CBAT!$D66)=1,VLOOKUP(\"Controls-\"&CBAT!$D66,'CBAT Lookups'!$B$5:$O$12,13),0))","v":""},{"$f":"IF('Project Scope'!$C66=\"\",\"\",IF(COUNTIF('CBAT Lookups'!$B$5:$B$12,\"Controls-\"&CBAT!$D66)=1,VLOOKUP(\"Controls-\"&CBAT!$D66,'CBAT Lookups'!$B$5:$O$12,14),0))","v":""},{"$f":"IF('Project Scope'!$C66=\"\",\"\",'TRM Data'!$U$3)","v":""},{"$f":"IF('Project Scope'!$C66=\"\",\"\",'TRM Data'!$V$3)","v":""},{"$f":"IF('Project Scope'!$C66=\"\",\"\",IF($K66<=0,0,MAX(0,(IF(AND($I66>0,$J66>0),($I66*$J66)/1000,($G66*$H66)/1000)*$L66))*$BT66*$BR66)+($CD66/0.003412))","v":""},{"$f":"IF('Project Scope'!$C66=\"\",\"\",IF($K66<=0,0,MAX(0,IF(AND($I66>0,$J66>0),($I66*$J66)/1000,($G66*$H66)/1000))*$BQ66))","v":""},{"$f":"IF('Project Scope'!$C66=\"\",\"\",IF($K66<=0,0,MAX(0,IF(AND($I66>0,$J66>0),($I66*$J66)/1000,($G66*$H66)/1000))*$BK66))","v":""},{"$f":"IF('Project Scope'!$C66=\"\",\"\",IF($K66<=0,0,MAX(0,IF(AND($I66>0,$J66>0),($I66*$J66)/1000,($G66*$H66)/1000))*$BL66*$BQ66))","v":""},{"$f":"IF('Project Scope'!$C66=\"\",\"\",IF(OR($K66<=0,'Project Information'!$D$44=\"\"),0,-1*MAX(0,IF(AND($I66>0,$J66>0),($I66*$J66)/1000,($G66*$H66)/1000))*$BT66*$L66*$BS66*VLOOKUP('Project Information'!$D$44,'CBAT Lookups'!$A$23:$H$30,2)))","v":""},{"$f":"IF('Project Scope'!$C66=\"\",\"\",IF(OR($K66<=0,'Project Information'!$D$44=\"\"),0,-1*MAX(0,IF(AND($I66>0,$J66>0),($I66*$J66)/1000,($G66*$H66)/1000))*$BT66*$L66*$BS66*VLOOKUP('Project Information'!$D$44,'CBAT Lookups'!$A$23:$H$30,3)))","v":""},{"$f":"IF('Project Scope'!$C66=\"\",\"\",IF(OR($K66<=0,'Project Information'!$D$44=\"\"),0,-1*MAX(0,IF(AND($I66>0,$J66>0),($I66*$J66)/1000,($G66*$H66)/1000))*$BT66*$L66*$BS66*VLOOKUP('Project Information'!$D$44,'CBAT Lookups'!$A$23:$H$30,4)))","v":""},{"$f":"IF('Project Scope'!$C66=\"\",\"\",IF(OR($K66<=0,'Project Information'!$D$44=\"\"),0,-1*MAX(0,IF(AND($I66>0,$J66>0),($I66*$J66)/1000,($G66*$H66)/1000))*$BT66*$L66*$BS66*VLOOKUP('Project Information'!$D$44,'CBAT Lookups'!$A$23:$H$30,5)))","v":""},{"$f":"IF('Project Scope'!$C66=\"\",\"\",IF(OR($K66<=0,'Project Information'!$D$44=\"\"),0,-1*MAX(0,IF(AND($I66>0,$J66>0),($I66*$J66)/1000,($G66*$H66)/1000))*$BT66*$L66*$BS66*VLOOKUP('Project Information'!$D$44,'CBAT Lookups'!$A$23:$H$30,6)))","v":""},{"$f":"IF('Project Scope'!$C66=\"\",\"\",IF(OR($K66<=0,'Project Information'!$D$44=\"\"),0,-1*MAX(0,IF(AND($I66>0,$J66>0),($I66*$J66)/1000,($G66*$H66)/1000))*$BT66*$L66*$BS66*VLOOKUP('Project Information'!$D$44,'CBAT Lookups'!$A$23:$H$30,7)))","v":""},{"$f":"IF('Project Scope'!$C66=\"\",\"\",IF(OR($K66<=0,'Project Information'!$D$44=\"\"),0,-1*MAX(0,IF(AND($I66>0,$J66>0),($I66*$J66)/1000,($G66*$H66)/1000))*$BT66*$L66*$BS66*VLOOKUP('Project Information'!$D$44,'CBAT Lookups'!$A$23:$H$30,8)))","v":""},null,{"$f":"IF('Project Scope'!$C66=\"\",\"\",VLOOKUP($F66,'CBAT Lookups'!$B$17:$K$19,4))","v":""},{"$f":"IF('Project Scope'!$C66=\"\",\"\",VLOOKUP($F66,'CBAT Lookups'!$B$17:$K$19,5))","v":""},{"$f":"IF('Project Scope'!$C66=\"\",\"\",VLOOKUP($F66,'CBAT Lookups'!$B$17:$K$19,6))","v":""},{"$f":"IF('Project Scope'!$C66=\"\",\"\",VLOOKUP($F66,'CBAT Lookups'!$B$17:$K$19,7))","v":""},{"$f":"IF('Project Scope'!$C66=\"\",\"\",IF(SUMPRODUCT($BM66:$BP66,$CL66:$CO66)=0,0,BM66*CL66/SUMPRODUCT($BM66:$BP66,$CL66:$CO66)))","v":""},{"$f":"IF('Project Scope'!$C66=\"\",\"\",IF(SUMPRODUCT($BM66:$BP66,$CL66:$CO66)=0,0,BN66*CM66/SUMPRODUCT($BM66:$BP66,$CL66:$CO66)))","v":""},{"$f":"IF('Project Scope'!$C66=\"\",\"\",IF(SUMPRODUCT($BM66:$BP66,$CL66:$CO66)=0,0,BO66*CN66/SUMPRODUCT($BM66:$BP66,$CL66:$CO66)))","v":""},{"$f":"IF('Project Scope'!$C66=\"\",\"\",IF(SUMPRODUCT($BM66:$BP66,$CL66:$CO66)=0,0,BP66*CO66/SUMPRODUCT($BM66:$BP66,$CL66:$CO66)))","v":""},{"$f":"IF('Project Scope'!$C66=\"\",\"\",Benefits($BZ66,$CB66,$CC66,$CE66,$CF66,$CG66,$CH66,$CI66,$CJ66,$CK66,$BJ66,$CP66,$CQ66,$CR66,$CS66,$BU66,$BV66,$BW66,$BX66,$BY66,$E66))","v":""},"","","","","","","","",null,{"$f":"IF('Project Scope'!$C66=\"\",\"\",SUM('Project Scope'!$BB66,'Project Scope'!$BC66))","v":""},{"$f":"IF('Project Scope'!$C66=\"\",\"\",SUM('Project Scope'!$BH66, 'Project Scope'!$AZ66,(IF(ISNUMBER('Project Scope'!$BA66),'Project Scope'!$BA66,0)*'Project Information'!$D$12)))","v":""},null,null,{"$f":"IF('Project Scope'!$C66=\"\",\"\",IF($J66<=0,0,(SUMPRODUCT($AV66:$BC66,--($AV66:$BC66>0))+$BE66)*$DK66/((-SUMPRODUCT($AV66:$BC66,--($AV66:$BC66<0))+$BG66+$BH66+$BI66)*$DK66)))","v":""},{"$f":"IF('Project Scope'!$C66=\"\",\"\",IF($K66<=0,0,(SUMPRODUCT($CT66:$DA66,--($CT66:$DA66>0))+$DC66)*$DK66/((-SUMPRODUCT($CT66:$DA66,--($CT66:$DA66<0))+$DE66+$DF66+$DG66)*$DK66)))","v":""},{"$f":"IF('Project Scope'!$C66=\"\",\"\",IF(AND($J66<=0,$K66<=0),0,(SUMPRODUCT($AV66:$BC66,--($AV66:$BC66>0))+$BE66+SUMPRODUCT($CT66:$DA66,--($CT66:$DA66>0))+$DC66)*$DK66/((-SUMPRODUCT($AV66:$BC66,--($AV66:$BC66<0))+$BG66+$BH66+$BI66-SUMPRODUCT($CT66:$DA66,--($CT66:$DA66<0))+$DE66+$DF66+$DG66)*$DK66)))","v":""},{"$f":"IF('Project Scope'!$C66=\"\",\"\",IF(NetOrGross=\"Net\",(1-Z66+AA66),1))","v":""}]
[{"$f":"'Project Scope'!$B67","v":60},{"$f":"IF('Project Scope'!$C67=\"\",\"\",'Project Scope'!$C67)","v":""},{"$f":"IF('Project Scope'!$C67=\"\",\"\",'Project Scope'!$H67)","v":""},{"$f":"IF(ISNUMBER(SEARCH(\"Bay\",'Project Scope'!$Q67)),\"Bay\",IF('Project Scope'!C67=\"\",\"\",'Project Scope'!E67))","v":""},{"$f":"IF('Project Scope'!$C67=\"\",\"\",\"Com\")","v":""},{"$f":"IF('Project Scope'!$C67=\"\",\"\",'Project Scope'!$L67)","v":""},{"$f":"IF('Project Scope'!$C67=\"\",\"\",IF('Project Scope'!$CJ67=\"\",0,'Project Scope'!$CJ67))","v":""},{"$f":"IF('Project Scope'!$C67=\"\",\"\",IF('Project Scope'!$N67=\"\",0,'Project Scope'!$N67))","v":""},{"$f":"IF('Project Scope'!$C67=\"\",\"\",IF('Project Scope'!$CK67=\"\",0,'Project Scope'!$CK67))","v":""},{"$f":"IF('Project Scope'!$C67=\"\",\"\",IF('Project Scope'!$AO67=\"\",0,'Project Scope'!$AO67))","v":""},{"$f":"IF('Project Scope'!$C67=\"\",\"\",IF('Project Scope'!$AX67=\"\",0,'Project Scope'!$AX67))","v":""},{"$f":"IF('Project Scope'!$C67=\"\",\"\",IF('Project Scope'!$M67=\"\",0,'Project Scope'!$M67))","v":""},{"$f":"IF('Project Scope'!$C67=\"\",\"\",IF(COUNTIF('CBAT Lookups'!$B$5:$B$12,\"Fixtures-\"&CBAT!$D67)=1,VLOOKUP(\"Fixtures-\"&CBAT!$D67,'CBAT Lookups'!$B$5:$L$12,11),0))","v":""},{"$f":"IF('Project Scope'!$C67=\"\",\"\",(IF(COUNTIF('CBAT Lookups'!$B$5:$B$12,\"Fixtures-\"&CBAT!$D67)=1,VLOOKUP(\"Fixtures-\"&CBAT!$D67,'CBAT Lookups'!$B$5:$K$12,2),0))*VLOOKUP($F67,'CBAT Lookups'!$B$17:$K$19,2))","v":""},{"$f":"IF('Project Scope'!$C67=\"\",\"\",(IF(COUNTIF('CBAT Lookups'!$B$5:$B$12,\"Fixtures-\"&CBAT!$D67)=1,VLOOKUP(\"Fixtures-\"&CBAT!$D67,'CBAT Lookups'!$B$5:$K$12,3),0))*VLOOKUP($F67,'CBAT Lookups'!$B$17:$K$19,3))","v":""},{"$f":"IF('Project Scope'!$C67=\"\",\"\",(IF(COUNTIF('CBAT Lookups'!$B$5:$B$12,\"Fixtures-\"&CBAT!$D67)=1,VLOOKUP(\"Fixtures-\"&CBAT!$D67,'CBAT Lookups'!$B$5:$K$12,4),0)))","v":""},{"$f":"IF('Project Scope'!$C67=\"\",\"\",(IF(COUNTIF('CBAT Lookups'!$B$5:$B$12,\"Fixtures-\"&CBAT!$D67)=1,VLOOKUP(\"Fixtures-\"&CBAT!$D67,'CBAT Lookups'!$B$5:$K$12,5),0)))","v":""},{"$f":"IF('Project Scope'!$C67=\"\",\"\",(IF(COUNTIF('CBAT Lookups'!$B$5:$B$12,\"Fixtures-\"&CBAT!$D67)=1,VLOOKUP(\"Fixtures-\"&CBAT!$D67,'CBAT Lookups'!$B$5:$K$12,6),0)))","v":""},{"$f":"IF('Project Scope'!$C67=\"\",\"\",IF(COUNTIF('CBAT Lookups'!$B$5:$B$12,\"Fixtures-\"&CBAT!$D67)=1,VLOOKUP(\"Fixtures-\"&CBAT!$D67,'CBAT Lookups'!$B$5:$K$12,7),0))","v":""},{"$f":"IF('Project Scope'!$C67=\"\",\"\",IF(VLOOKUP($F67,'CBAT Lookups'!$B$17:$K$19,8)=\"W\",1,IF(COUNTIF('CBAT Lookups'!$B$5:$B$12,\"Fixtures-\"&CBAT!$D67)=1,VLOOKUP(\"Fixtures-\"&CBAT!$D67,'CBAT Lookups'!$B$5:$K$12,8),0)*VLOOKUP($F67,'CBAT Lookups'!$B$17:$K$19,8)))","v":""},{"$f":"IF('Project Scope'!$C67=\"\",\"\",IF(VLOOKUP($F67,'CBAT Lookups'!$B$17:$K$19,9)=\"W\",1,IF(COUNTIF('CBAT Lookups'!$B$5:$B$12,\"Fixtures-\"&CBAT!$D67)=1,VLOOKUP(\"Fixtures-\"&CBAT!$D67,'CBAT Lookups'!$B$5:$K$12,9),0)*VLOOKUP($F67,'CBAT Lookups'!$B$17:$K$19,9)))","v":""},{"$f":"IF('Project Scope'!$C67=\"\",\"\",IF(COUNTIF('CBAT Lookups'!$B$5:$B$12,\"Fixtures-\"&CBAT!$D67)=1,VLOOKUP(\"Fixtures-\"&CBAT!$D67,'CBAT Lookups'!$B$5:$K$12,10),0)*VLOOKUP($F67,'CBAT Lookups'!$B$17:$K$19,10))","v":""},{"$f":"IF('Project Scope'!$C67=\"\",\"\",IF(COUNTIF('CBAT Lookups'!$B$5:$B$12,\"Fixtures-\"&CBAT!$D67)=1,VLOOKUP(\"Fixtures-\"&CBAT!$D67,'CBAT Lookups'!$B$5:$O$12,12),0))","v":""},{"$f":"IF('Project Scope'!$C67=\"\",\"\",IF(COUNTIF('CBAT Lookups'!$B$5:$B$12,\"Fixtures-\"&CBAT!$D67)=1,VLOOKUP(\"Fixtures-\"&CBAT!$D67,'CBAT Lookups'!$B$5:$O$12,13),0))","v":""},{"$f":"IF('Project Scope'!$C67=\"\",\"\",IF(COUNTIF('CBAT Lookups'!$B$5:$B$12,\"Fixtures-\"&CBAT!$D67)=1,VLOOKUP(\"Fixtures-\"&CBAT!$D67,'CBAT Lookups'!$B$5:$O$12,14),0))","v":""},{"$f":"IF('Project Scope'!$C67=\"\",\"\",'TRM Data'!$U$3)","v":""},{"$f":"IF('Project Scope'!$C67=\"\",\"\",'TRM Data'!$V$3)","v":""},{"$f":"IF('Project Scope'!$C67=\"\",\"\",IF($J67<=0,0,MAX(0,(($G67*$H67/1000)-($I67*$J67/1000))*$L67)*$U67)+($AF67/0.003412))","v":""},{"$f":"IF('Project Scope'!$C67=\"\",\"\",IF($J67<=0,0,MAX(0,(($G67*$H67/1000)-($I67*$J67/1000)))*$T67))","v":""},{"$f":"IF('Project Scope'!$C67=\"\",\"\",IF($J67<=0,0,MAX(0,(($G67*$H67/1000)-($I67*$J67/1000))*$N67)))","v":""},{"$f":"IF('Project Scope'!$C67=\"\",\"\",IF($J67<=0,0,MAX(0,(($G67*$H67/1000)-($I67*$J67/1000))*$O67)*$T67))","v":""},{"$f":"IF('Project Scope'!$C67=\"\",\"\",IF(OR($J67<=0,'Project Information'!$D$44=\"\"),0,-1*MAX(0,(($G67*$H67/1000)-($I67*$J67/1000))*$L67)*$V67*VLOOKUP('Project Information'!$D$44,'CBAT Lookups'!$A$23:$H$30,2)))","v":""},{"$f":"IF('Project Scope'!$C67=\"\",\"\",IF(OR($J67<=0,'Project Information'!$D$44=\"\"),0,-1*MAX(0,(($G67*$H67/1000)-($I67*$J67/1000))*$L67)*$V67*VLOOKUP('Project Information'!$D$44,'CBAT Lookups'!$A$23:$H$30,3)))","v":""},{"$f":"IF('Project Scope'!$C67=\"\",\"\",IF(OR($J67<=0,'Project Information'!$D$44=\"\"),0,-1*MAX(0,(($G67*$H67/1000)-($I67*$J67/1000))*$L67)*$V67*VLOOKUP('Project Information'!$D$44,'CBAT Lookups'!$A$23:$H$30,4)))","v":""},{"$f":"IF('Project Scope'!$C67=\"\",\"\",IF(OR($J67<=0,'Project Information'!$D$44=\"\"),0,-1*MAX(0,(($G67*$H67/1000)-($I67*$J67/1000))*$L67)*$V67*VLOOKUP('Project Information'!$D$44,'CBAT Lookups'!$A$23:$H$30,5)))","v":""},{"$f":"IF('Project Scope'!$C67=\"\",\"\",IF(OR($J67<=0,'Project Information'!$D$44=\"\"),0,-1*MAX(0,(($G67*$H67/1000)-($I67*$J67/1000))*$L67)*$V67*VLOOKUP('Project Information'!$D$44,'CBAT Lookups'!$A$23:$H$30,6)))","v":""},{"$f":"IF('Project Scope'!$C67=\"\",\"\",IF(OR($J67<=0,'Project Information'!$D$44=\"\"),0,-1*MAX(0,(($G67*$H67/1000)-($I67*$J67/1000))*$L67)*$V67*VLOOKUP('Project Information'!$D$44,'CBAT Lookups'!$A$23:$H$30,7)))","v":""},{"$f":"IF('Project Scope'!$C67=\"\",\"\",IF(OR($J67<=0,'Project Information'!$D$44=\"\"),0,-1*MAX(0,(($G67*$H67/1000)-($I67*$J67/1000))*$L67)*$V67*VLOOKUP('Project Information'!$D$44,'CBAT Lookups'!$A$23:$H$30,8)))","v":""},null,{"$f":"IF('Project Scope'!$C67=\"\",\"\",VLOOKUP($F67,'CBAT Lookups'!$B$17:$K$19,4))","v":""},{"$f":"IF('Project Scope'!$C67=\"\",\"\",VLOOKUP($F67,'CBAT Lookups'!$B$17:$K$19,5))","v":""},{"$f":"IF('Project Scope'!$C67=\"\",\"\",VLOOKUP($F67,'CBAT Lookups'!$B$17:$K$19,6))","v":""},{"$f":"IF('Project Scope'!$C67=\"\",\"\",VLOOKUP($F67,'CBAT Lookups'!$B$17:$K$19,7))","v":""},{"$f":"IF('Project Scope'!$C67=\"\",\"\",IF(SUMPRODUCT($P67:$S67,$AN67:$AQ67)=0,0,P67*AN67/SUMPRODUCT($P67:$S67,$AN67:$AQ67)))","v":""},{"$f":"IF('Project Scope'!$C67=\"\",\"\",IF(SUMPRODUCT($P67:$S67,$AN67:$AQ67)=0,0,Q67*AO67/SUMPRODUCT($P67:$S67,$AN67:$AQ67)))","v":""},{"$f":"IF('Project Scope'!$C67=\"\",\"\",IF(SUMPRODUCT($P67:$S67,$AN67:$AQ67)=0,0,R67*AP67/SUMPRODUCT($P67:$S67,$AN67:$AQ67)))","v":""},{"$f":"IF('Project Scope'!$C67=\"\",\"\",IF(SUMPRODUCT($P67:$S67,$AN67:$AQ67)=0,0,S67*AQ67/SUMPRODUCT($P67:$S67,$AN67:$AQ67)))","v":""},{"$f":"IF('Project Scope'!$C67=\"\",\"\",Benefits($AB67,$AD67,$AE67,$AG67,$AH67,$AI67,$AJ67,$AK67,$AL67,$AM67,$M67,$AR67,$AS67,$AT67,$AU67,$W67,$X67,$Y67,$Z67,$AA67,$E67))","v":""},"","","","","","","","",null,{"$f":"IF('Project Scope'!$C67=\"\",\"\",SUM('Project Scope'!$AT67,'Project Scope'!$AU67))","v":""},{"$f":"IF('Project Scope'!$C67=\"\",\"\",SUM('Project Scope'!$BG67, 'Project Scope'!$AR67,(IF(ISNUMBER('Project Scope'!$AS67),'Project Scope'!$AS67,0)*'Project Information'!$D$12)))","v":""},null,null,{"$f":"IF('Project Scope'!$C67=\"\",\"\",IF(COUNTIF('CBAT Lookups'!$B$5:$B$12,\"Controls-\"&CBAT!$D67)=1,VLOOKUP(\"Controls-\"&CBAT!$D67,'CBAT Lookups'!$B$5:$L$12,11),0))","v":""},{"$f":"IF('Project Scope'!$C67=\"\",\"\",IF(COUNTIF('CBAT Lookups'!$B$5:$B$12,\"Controls-\"&CBAT!$D67)=1,VLOOKUP(\"Controls-\"&CBAT!$D67,'CBAT Lookups'!$B$5:$K$12,2),0)*VLOOKUP($F67,'CBAT Lookups'!$B$17:$K$19,2))","v":""},{"$f":"IF('Project Scope'!$C67=\"\",\"\",IF(COUNTIF('CBAT Lookups'!$B$5:$B$12,\"Controls-\"&CBAT!$D67)=1,VLOOKUP(\"Controls-\"&CBAT!$D67,'CBAT Lookups'!$B$5:$K$12,3),0)*VLOOKUP($F67,'CBAT Lookups'!$B$17:$K$19,3))","v":""},{"$f":"IF('Project Scope'!$C67=\"\",\"\",IF(COUNTIF('CBAT Lookups'!$B$5:$B$12,\"Controls-\"&CBAT!$D67)=1,VLOOKUP(\"Controls-\"&CBAT!$D67,'CBAT Lookups'!$B$5:$K$12,4),0))","v":""},{"$f":"IF('Project Scope'!$C67=\"\",\"\",IF(COUNTIF('CBAT Lookups'!$B$5:$B$12,\"Controls-\"&CBAT!$D67)=1,VLOOKUP(\"Controls-\"&CBAT!$D67,'CBAT Lookups'!$B$5:$K$12,5),0))","v":""},{"$f":"IF('Project Scope'!$C67=\"\",\"\",IF(COUNTIF('CBAT Lookups'!$B$5:$B$12,\"Controls-\"&CBAT!$D67)=1,VLOOKUP(\"Controls-\"&CBAT!$D67,'CBAT Lookups'!$B$5:$K$12,6),0))","v":""},{"$f":"IF('Project Scope'!$C67=\"\",\"\",IF(COUNTIF('CBAT Lookups'!$B$5:$B$12,\"Controls-\"&CBAT!$D67)=1,VLOOKUP(\"Controls-\"&CBAT!$D67,'CBAT Lookups'!$B$5:$K$12,7),0))","v":""},{"$f":"IF('Project Scope'!$C67=\"\",\"\",IF(VLOOKUP($F67,'CBAT Lookups'!$B$17:$K$19,8)=\"W\",1,IF(COUNTIF('CBAT Lookups'!$B$5:$B$12,\"Controls-\"&CBAT!$D67)=1,VLOOKUP(\"Controls-\"&CBAT!$D67,'CBAT Lookups'!$B$5:$K$12,8),0)*VLOOKUP($F67,'CBAT Lookups'!$B$17:$K$19,8)))","v":""},{"$f":"IF('Project Scope'!$C67=\"\",\"\",IF(VLOOKUP($F67,'CBAT Lookups'!$B$17:$K$19,9)=\"W\",1,IF(COUNTIF('CBAT Lookups'!$B$5:$B$12,\"Controls-\"&CBAT!$D67)=1,VLOOKUP(\"Controls-\"&CBAT!$D67,'CBAT Lookups'!$B$5:$K$12,9),0)*VLOOKUP($F67,'CBAT Lookups'!$B$17:$K$19,9)))","v":""},{"$f":"IF('Project Scope'!$C67=\"\",\"\",IF(COUNTIF('CBAT Lookups'!$B$5:$B$12,\"Controls-\"&CBAT!$D67)=1,VLOOKUP(\"Controls-\"&CBAT!$D67,'CBAT Lookups'!$B$5:$K$12,10),0)*VLOOKUP($F67,'CBAT Lookups'!$B$17:$K$19,10))","v":""},{"$f":"IF('Project Scope'!$C67=\"\",\"\",VLOOKUP($C67,'CBAT Lookups'!$A$33:$B$57,2))","v":""},{"$f":"IF('Project Scope'!$C67=\"\",\"\",IF(COUNTIF('CBAT Lookups'!$B$5:$B$12,\"Controls-\"&CBAT!$D67)=1,VLOOKUP(\"Controls-\"&CBAT!$D67,'CBAT Lookups'!$B$5:$O$12,12),0))","v":""},{"$f":"IF('Project Scope'!$C67=\"\",\"\",IF(COUNTIF('CBAT Lookups'!$B$5:$B$12,\"Controls-\"&CBAT!$D67)=1,VLOOKUP(\"Controls-\"&CBAT!$D67,'CBAT Lookups'!$B$5:$O$12,13),0))","v":""},{"$f":"IF('Project Scope'!$C67=\"\",\"\",IF(COUNTIF('CBAT Lookups'!$B$5:$B$12,\"Controls-\"&CBAT!$D67)=1,VLOOKUP(\"Controls-\"&CBAT!$D67,'CBAT Lookups'!$B$5:$O$12,14),0))","v":""},{"$f":"IF('Project Scope'!$C67=\"\",\"\",'TRM Data'!$U$3)","v":""},{"$f":"IF('Project Scope'!$C67=\"\",\"\",'TRM Data'!$V$3)","v":""},{"$f":"IF('Project Scope'!$C67=\"\",\"\",IF($K67<=0,0,MAX(0,(IF(AND($I67>0,$J67>0),($I67*$J67)/1000,($G67*$H67)/1000)*$L67))*$BT67*$BR67)+($CD67/0.003412))","v":""},{"$f":"IF('Project Scope'!$C67=\"\",\"\",IF($K67<=0,0,MAX(0,IF(AND($I67>0,$J67>0),($I67*$J67)/1000,($G67*$H67)/1000))*$BQ67))","v":""},{"$f":"IF('Project Scope'!$C67=\"\",\"\",IF($K67<=0,0,MAX(0,IF(AND($I67>0,$J67>0),($I67*$J67)/1000,($G67*$H67)/1000))*$BK67))","v":""},{"$f":"IF('Project Scope'!$C67=\"\",\"\",IF($K67<=0,0,MAX(0,IF(AND($I67>0,$J67>0),($I67*$J67)/1000,($G67*$H67)/1000))*$BL67*$BQ67))","v":""},{"$f":"IF('Project Scope'!$C67=\"\",\"\",IF(OR($K67<=0,'Project Information'!$D$44=\"\"),0,-1*MAX(0,IF(AND($I67>0,$J67>0),($I67*$J67)/1000,($G67*$H67)/1000))*$BT67*$L67*$BS67*VLOOKUP('Project Information'!$D$44,'CBAT Lookups'!$A$23:$H$30,2)))","v":""},{"$f":"IF('Project Scope'!$C67=\"\",\"\",IF(OR($K67<=0,'Project Information'!$D$44=\"\"),0,-1*MAX(0,IF(AND($I67>0,$J67>0),($I67*$J67)/1000,($G67*$H67)/1000))*$BT67*$L67*$BS67*VLOOKUP('Project Information'!$D$44,'CBAT Lookups'!$A$23:$H$30,3)))","v":""},{"$f":"IF('Project Scope'!$C67=\"\",\"\",IF(OR($K67<=0,'Project Information'!$D$44=\"\"),0,-1*MAX(0,IF(AND($I67>0,$J67>0),($I67*$J67)/1000,($G67*$H67)/1000))*$BT67*$L67*$BS67*VLOOKUP('Project Information'!$D$44,'CBAT Lookups'!$A$23:$H$30,4)))","v":""},{"$f":"IF('Project Scope'!$C67=\"\",\"\",IF(OR($K67<=0,'Project Information'!$D$44=\"\"),0,-1*MAX(0,IF(AND($I67>0,$J67>0),($I67*$J67)/1000,($G67*$H67)/1000))*$BT67*$L67*$BS67*VLOOKUP('Project Information'!$D$44,'CBAT Lookups'!$A$23:$H$30,5)))","v":""},{"$f":"IF('Project Scope'!$C67=\"\",\"\",IF(OR($K67<=0,'Project Information'!$D$44=\"\"),0,-1*MAX(0,IF(AND($I67>0,$J67>0),($I67*$J67)/1000,($G67*$H67)/1000))*$BT67*$L67*$BS67*VLOOKUP('Project Information'!$D$44,'CBAT Lookups'!$A$23:$H$30,6)))","v":""},{"$f":"IF('Project Scope'!$C67=\"\",\"\",IF(OR($K67<=0,'Project Information'!$D$44=\"\"),0,-1*MAX(0,IF(AND($I67>0,$J67>0),($I67*$J67)/1000,($G67*$H67)/1000))*$BT67*$L67*$BS67*VLOOKUP('Project Information'!$D$44,'CBAT Lookups'!$A$23:$H$30,7)))","v":""},{"$f":"IF('Project Scope'!$C67=\"\",\"\",IF(OR($K67<=0,'Project Information'!$D$44=\"\"),0,-1*MAX(0,IF(AND($I67>0,$J67>0),($I67*$J67)/1000,($G67*$H67)/1000))*$BT67*$L67*$BS67*VLOOKUP('Project Information'!$D$44,'CBAT Lookups'!$A$23:$H$30,8)))","v":""},null,{"$f":"IF('Project Scope'!$C67=\"\",\"\",VLOOKUP($F67,'CBAT Lookups'!$B$17:$K$19,4))","v":""},{"$f":"IF('Project Scope'!$C67=\"\",\"\",VLOOKUP($F67,'CBAT Lookups'!$B$17:$K$19,5))","v":""},{"$f":"IF('Project Scope'!$C67=\"\",\"\",VLOOKUP($F67,'CBAT Lookups'!$B$17:$K$19,6))","v":""},{"$f":"IF('Project Scope'!$C67=\"\",\"\",VLOOKUP($F67,'CBAT Lookups'!$B$17:$K$19,7))","v":""},{"$f":"IF('Project Scope'!$C67=\"\",\"\",IF(SUMPRODUCT($BM67:$BP67,$CL67:$CO67)=0,0,BM67*CL67/SUMPRODUCT($BM67:$BP67,$CL67:$CO67)))","v":""},{"$f":"IF('Project Scope'!$C67=\"\",\"\",IF(SUMPRODUCT($BM67:$BP67,$CL67:$CO67)=0,0,BN67*CM67/SUMPRODUCT($BM67:$BP67,$CL67:$CO67)))","v":""},{"$f":"IF('Project Scope'!$C67=\"\",\"\",IF(SUMPRODUCT($BM67:$BP67,$CL67:$CO67)=0,0,BO67*CN67/SUMPRODUCT($BM67:$BP67,$CL67:$CO67)))","v":""},{"$f":"IF('Project Scope'!$C67=\"\",\"\",IF(SUMPRODUCT($BM67:$BP67,$CL67:$CO67)=0,0,BP67*CO67/SUMPRODUCT($BM67:$BP67,$CL67:$CO67)))","v":""},{"$f":"IF('Project Scope'!$C67=\"\",\"\",Benefits($BZ67,$CB67,$CC67,$CE67,$CF67,$CG67,$CH67,$CI67,$CJ67,$CK67,$BJ67,$CP67,$CQ67,$CR67,$CS67,$BU67,$BV67,$BW67,$BX67,$BY67,$E67))","v":""},"","","","","","","","",null,{"$f":"IF('Project Scope'!$C67=\"\",\"\",SUM('Project Scope'!$BB67,'Project Scope'!$BC67))","v":""},{"$f":"IF('Project Scope'!$C67=\"\",\"\",SUM('Project Scope'!$BH67, 'Project Scope'!$AZ67,(IF(ISNUMBER('Project Scope'!$BA67),'Project Scope'!$BA67,0)*'Project Information'!$D$12)))","v":""},null,null,{"$f":"IF('Project Scope'!$C67=\"\",\"\",IF($J67<=0,0,(SUMPRODUCT($AV67:$BC67,--($AV67:$BC67>0))+$BE67)*$DK67/((-SUMPRODUCT($AV67:$BC67,--($AV67:$BC67<0))+$BG67+$BH67+$BI67)*$DK67)))","v":""},{"$f":"IF('Project Scope'!$C67=\"\",\"\",IF($K67<=0,0,(SUMPRODUCT($CT67:$DA67,--($CT67:$DA67>0))+$DC67)*$DK67/((-SUMPRODUCT($CT67:$DA67,--($CT67:$DA67<0))+$DE67+$DF67+$DG67)*$DK67)))","v":""},{"$f":"IF('Project Scope'!$C67=\"\",\"\",IF(AND($J67<=0,$K67<=0),0,(SUMPRODUCT($AV67:$BC67,--($AV67:$BC67>0))+$BE67+SUMPRODUCT($CT67:$DA67,--($CT67:$DA67>0))+$DC67)*$DK67/((-SUMPRODUCT($AV67:$BC67,--($AV67:$BC67<0))+$BG67+$BH67+$BI67-SUMPRODUCT($CT67:$DA67,--($CT67:$DA67<0))+$DE67+$DF67+$DG67)*$DK67)))","v":""},{"$f":"IF('Project Scope'!$C67=\"\",\"\",IF(NetOrGross=\"Net\",(1-Z67+AA67),1))","v":""}]
[{"$f":"'Project Scope'!$B68","v":61},{"$f":"IF('Project Scope'!$C68=\"\",\"\",'Project Scope'!$C68)","v":""},{"$f":"IF('Project Scope'!$C68=\"\",\"\",'Project Scope'!$H68)","v":""},{"$f":"IF(ISNUMBER(SEARCH(\"Bay\",'Project Scope'!$Q68)),\"Bay\",IF('Project Scope'!C68=\"\",\"\",'Project Scope'!E68))","v":""},{"$f":"IF('Project Scope'!$C68=\"\",\"\",\"Com\")","v":""},{"$f":"IF('Project Scope'!$C68=\"\",\"\",'Project Scope'!$L68)","v":""},{"$f":"IF('Project Scope'!$C68=\"\",\"\",IF('Project Scope'!$CJ68=\"\",0,'Project Scope'!$CJ68))","v":""},{"$f":"IF('Project Scope'!$C68=\"\",\"\",IF('Project Scope'!$N68=\"\",0,'Project Scope'!$N68))","v":""},{"$f":"IF('Project Scope'!$C68=\"\",\"\",IF('Project Scope'!$CK68=\"\",0,'Project Scope'!$CK68))","v":""},{"$f":"IF('Project Scope'!$C68=\"\",\"\",IF('Project Scope'!$AO68=\"\",0,'Project Scope'!$AO68))","v":""},{"$f":"IF('Project Scope'!$C68=\"\",\"\",IF('Project Scope'!$AX68=\"\",0,'Project Scope'!$AX68))","v":""},{"$f":"IF('Project Scope'!$C68=\"\",\"\",IF('Project Scope'!$M68=\"\",0,'Project Scope'!$M68))","v":""},{"$f":"IF('Project Scope'!$C68=\"\",\"\",IF(COUNTIF('CBAT Lookups'!$B$5:$B$12,\"Fixtures-\"&CBAT!$D68)=1,VLOOKUP(\"Fixtures-\"&CBAT!$D68,'CBAT Lookups'!$B$5:$L$12,11),0))","v":""},{"$f":"IF('Project Scope'!$C68=\"\",\"\",(IF(COUNTIF('CBAT Lookups'!$B$5:$B$12,\"Fixtures-\"&CBAT!$D68)=1,VLOOKUP(\"Fixtures-\"&CBAT!$D68,'CBAT Lookups'!$B$5:$K$12,2),0))*VLOOKUP($F68,'CBAT Lookups'!$B$17:$K$19,2))","v":""},{"$f":"IF('Project Scope'!$C68=\"\",\"\",(IF(COUNTIF('CBAT Lookups'!$B$5:$B$12,\"Fixtures-\"&CBAT!$D68)=1,VLOOKUP(\"Fixtures-\"&CBAT!$D68,'CBAT Lookups'!$B$5:$K$12,3),0))*VLOOKUP($F68,'CBAT Lookups'!$B$17:$K$19,3))","v":""},{"$f":"IF('Project Scope'!$C68=\"\",\"\",(IF(COUNTIF('CBAT Lookups'!$B$5:$B$12,\"Fixtures-\"&CBAT!$D68)=1,VLOOKUP(\"Fixtures-\"&CBAT!$D68,'CBAT Lookups'!$B$5:$K$12,4),0)))","v":""},{"$f":"IF('Project Scope'!$C68=\"\",\"\",(IF(COUNTIF('CBAT Lookups'!$B$5:$B$12,\"Fixtures-\"&CBAT!$D68)=1,VLOOKUP(\"Fixtures-\"&CBAT!$D68,'CBAT Lookups'!$B$5:$K$12,5),0)))","v":""},{"$f":"IF('Project Scope'!$C68=\"\",\"\",(IF(COUNTIF('CBAT Lookups'!$B$5:$B$12,\"Fixtures-\"&CBAT!$D68)=1,VLOOKUP(\"Fixtures-\"&CBAT!$D68,'CBAT Lookups'!$B$5:$K$12,6),0)))","v":""},{"$f":"IF('Project Scope'!$C68=\"\",\"\",IF(COUNTIF('CBAT Lookups'!$B$5:$B$12,\"Fixtures-\"&CBAT!$D68)=1,VLOOKUP(\"Fixtures-\"&CBAT!$D68,'CBAT Lookups'!$B$5:$K$12,7),0))","v":""},{"$f":"IF('Project Scope'!$C68=\"\",\"\",IF(VLOOKUP($F68,'CBAT Lookups'!$B$17:$K$19,8)=\"W\",1,IF(COUNTIF('CBAT Lookups'!$B$5:$B$12,\"Fixtures-\"&CBAT!$D68)=1,VLOOKUP(\"Fixtures-\"&CBAT!$D68,'CBAT Lookups'!$B$5:$K$12,8),0)*VLOOKUP($F68,'CBAT Lookups'!$B$17:$K$19,8)))","v":""},{"$f":"IF('Project Scope'!$C68=\"\",\"\",IF(VLOOKUP($F68,'CBAT Lookups'!$B$17:$K$19,9)=\"W\",1,IF(COUNTIF('CBAT Lookups'!$B$5:$B$12,\"Fixtures-\"&CBAT!$D68)=1,VLOOKUP(\"Fixtures-\"&CBAT!$D68,'CBAT Lookups'!$B$5:$K$12,9),0)*VLOOKUP($F68,'CBAT Lookups'!$B$17:$K$19,9)))","v":""},{"$f":"IF('Project Scope'!$C68=\"\",\"\",IF(COUNTIF('CBAT Lookups'!$B$5:$B$12,\"Fixtures-\"&CBAT!$D68)=1,VLOOKUP(\"Fixtures-\"&CBAT!$D68,'CBAT Lookups'!$B$5:$K$12,10),0)*VLOOKUP($F68,'CBAT Lookups'!$B$17:$K$19,10))","v":""},{"$f":"IF('Project Scope'!$C68=\"\",\"\",IF(COUNTIF('CBAT Lookups'!$B$5:$B$12,\"Fixtures-\"&CBAT!$D68)=1,VLOOKUP(\"Fixtures-\"&CBAT!$D68,'CBAT Lookups'!$B$5:$O$12,12),0))","v":""},{"$f":"IF('Project Scope'!$C68=\"\",\"\",IF(COUNTIF('CBAT Lookups'!$B$5:$B$12,\"Fixtures-\"&CBAT!$D68)=1,VLOOKUP(\"Fixtures-\"&CBAT!$D68,'CBAT Lookups'!$B$5:$O$12,13),0))","v":""},{"$f":"IF('Project Scope'!$C68=\"\",\"\",IF(COUNTIF('CBAT Lookups'!$B$5:$B$12,\"Fixtures-\"&CBAT!$D68)=1,VLOOKUP(\"Fixtures-\"&CBAT!$D68,'CBAT Lookups'!$B$5:$O$12,14),0))","v":""},{"$f":"IF('Project Scope'!$C68=\"\",\"\",'TRM Data'!$U$3)","v":""},{"$f":"IF('Project Scope'!$C68=\"\",\"\",'TRM Data'!$V$3)","v":""},{"$f":"IF('Project Scope'!$C68=\"\",\"\",IF($J68<=0,0,MAX(0,(($G68*$H68/1000)-($I68*$J68/1000))*$L68)*$U68)+($AF68/0.003412))","v":""},{"$f":"IF('Project Scope'!$C68=\"\",\"\",IF($J68<=0,0,MAX(0,(($G68*$H68/1000)-($I68*$J68/1000)))*$T68))","v":""},{"$f":"IF('Project Scope'!$C68=\"\",\"\",IF($J68<=0,0,MAX(0,(($G68*$H68/1000)-($I68*$J68/1000))*$N68)))","v":""},{"$f":"IF('Project Scope'!$C68=\"\",\"\",IF($J68<=0,0,MAX(0,(($G68*$H68/1000)-($I68*$J68/1000))*$O68)*$T68))","v":""},{"$f":"IF('Project Scope'!$C68=\"\",\"\",IF(OR($J68<=0,'Project Information'!$D$44=\"\"),0,-1*MAX(0,(($G68*$H68/1000)-($I68*$J68/1000))*$L68)*$V68*VLOOKUP('Project Information'!$D$44,'CBAT Lookups'!$A$23:$H$30,2)))","v":""},{"$f":"IF('Project Scope'!$C68=\"\",\"\",IF(OR($J68<=0,'Project Information'!$D$44=\"\"),0,-1*MAX(0,(($G68*$H68/1000)-($I68*$J68/1000))*$L68)*$V68*VLOOKUP('Project Information'!$D$44,'CBAT Lookups'!$A$23:$H$30,3)))","v":""},{"$f":"IF('Project Scope'!$C68=\"\",\"\",IF(OR($J68<=0,'Project Information'!$D$44=\"\"),0,-1*MAX(0,(($G68*$H68/1000)-($I68*$J68/1000))*$L68)*$V68*VLOOKUP('Project Information'!$D$44,'CBAT Lookups'!$A$23:$H$30,4)))","v":""},{"$f":"IF('Project Scope'!$C68=\"\",\"\",IF(OR($J68<=0,'Project Information'!$D$44=\"\"),0,-1*MAX(0,(($G68*$H68/1000)-($I68*$J68/1000))*$L68)*$V68*VLOOKUP('Project Information'!$D$44,'CBAT Lookups'!$A$23:$H$30,5)))","v":""},{"$f":"IF('Project Scope'!$C68=\"\",\"\",IF(OR($J68<=0,'Project Information'!$D$44=\"\"),0,-1*MAX(0,(($G68*$H68/1000)-($I68*$J68/1000))*$L68)*$V68*VLOOKUP('Project Information'!$D$44,'CBAT Lookups'!$A$23:$H$30,6)))","v":""},{"$f":"IF('Project Scope'!$C68=\"\",\"\",IF(OR($J68<=0,'Project Information'!$D$44=\"\"),0,-1*MAX(0,(($G68*$H68/1000)-($I68*$J68/1000))*$L68)*$V68*VLOOKUP('Project Information'!$D$44,'CBAT Lookups'!$A$23:$H$30,7)))","v":""},{"$f":"IF('Project Scope'!$C68=\"\",\"\",IF(OR($J68<=0,'Project Information'!$D$44=\"\"),0,-1*MAX(0,(($G68*$H68/1000)-($I68*$J68/1000))*$L68)*$V68*VLOOKUP('Project Information'!$D$44,'CBAT Lookups'!$A$23:$H$30,8)))","v":""},null,{"$f":"IF('Project Scope'!$C68=\"\",\"\",VLOOKUP($F68,'CBAT Lookups'!$B$17:$K$19,4))","v":""},{"$f":"IF('Project Scope'!$C68=\"\",\"\",VLOOKUP($F68,'CBAT Lookups'!$B$17:$K$19,5))","v":""},{"$f":"IF('Project Scope'!$C68=\"\",\"\",VLOOKUP($F68,'CBAT Lookups'!$B$17:$K$19,6))","v":""},{"$f":"IF('Project Scope'!$C68=\"\",\"\",VLOOKUP($F68,'CBAT Lookups'!$B$17:$K$19,7))","v":""},{"$f":"IF('Project Scope'!$C68=\"\",\"\",IF(SUMPRODUCT($P68:$S68,$AN68:$AQ68)=0,0,P68*AN68/SUMPRODUCT($P68:$S68,$AN68:$AQ68)))","v":""},{"$f":"IF('Project Scope'!$C68=\"\",\"\",IF(SUMPRODUCT($P68:$S68,$AN68:$AQ68)=0,0,Q68*AO68/SUMPRODUCT($P68:$S68,$AN68:$AQ68)))","v":""},{"$f":"IF('Project Scope'!$C68=\"\",\"\",IF(SUMPRODUCT($P68:$S68,$AN68:$AQ68)=0,0,R68*AP68/SUMPRODUCT($P68:$S68,$AN68:$AQ68)))","v":""},{"$f":"IF('Project Scope'!$C68=\"\",\"\",IF(SUMPRODUCT($P68:$S68,$AN68:$AQ68)=0,0,S68*AQ68/SUMPRODUCT($P68:$S68,$AN68:$AQ68)))","v":""},{"$f":"IF('Project Scope'!$C68=\"\",\"\",Benefits($AB68,$AD68,$AE68,$AG68,$AH68,$AI68,$AJ68,$AK68,$AL68,$AM68,$M68,$AR68,$AS68,$AT68,$AU68,$W68,$X68,$Y68,$Z68,$AA68,$E68))","v":""},"","","","","","","","",null,{"$f":"IF('Project Scope'!$C68=\"\",\"\",SUM('Project Scope'!$AT68,'Project Scope'!$AU68))","v":""},{"$f":"IF('Project Scope'!$C68=\"\",\"\",SUM('Project Scope'!$BG68, 'Project Scope'!$AR68,(IF(ISNUMBER('Project Scope'!$AS68),'Project Scope'!$AS68,0)*'Project Information'!$D$12)))","v":""},null,null,{"$f":"IF('Project Scope'!$C68=\"\",\"\",IF(COUNTIF('CBAT Lookups'!$B$5:$B$12,\"Controls-\"&CBAT!$D68)=1,VLOOKUP(\"Controls-\"&CBAT!$D68,'CBAT Lookups'!$B$5:$L$12,11),0))","v":""},{"$f":"IF('Project Scope'!$C68=\"\",\"\",IF(COUNTIF('CBAT Lookups'!$B$5:$B$12,\"Controls-\"&CBAT!$D68)=1,VLOOKUP(\"Controls-\"&CBAT!$D68,'CBAT Lookups'!$B$5:$K$12,2),0)*VLOOKUP($F68,'CBAT Lookups'!$B$17:$K$19,2))","v":""},{"$f":"IF('Project Scope'!$C68=\"\",\"\",IF(COUNTIF('CBAT Lookups'!$B$5:$B$12,\"Controls-\"&CBAT!$D68)=1,VLOOKUP(\"Controls-\"&CBAT!$D68,'CBAT Lookups'!$B$5:$K$12,3),0)*VLOOKUP($F68,'CBAT Lookups'!$B$17:$K$19,3))","v":""},{"$f":"IF('Project Scope'!$C68=\"\",\"\",IF(COUNTIF('CBAT Lookups'!$B$5:$B$12,\"Controls-\"&CBAT!$D68)=1,VLOOKUP(\"Controls-\"&CBAT!$D68,'CBAT Lookups'!$B$5:$K$12,4),0))","v":""},{"$f":"IF('Project Scope'!$C68=\"\",\"\",IF(COUNTIF('CBAT Lookups'!$B$5:$B$12,\"Controls-\"&CBAT!$D68)=1,VLOOKUP(\"Controls-\"&CBAT!$D68,'CBAT Lookups'!$B$5:$K$12,5),0))","v":""},{"$f":"IF('Project Scope'!$C68=\"\",\"\",IF(COUNTIF('CBAT Lookups'!$B$5:$B$12,\"Controls-\"&CBAT!$D68)=1,VLOOKUP(\"Controls-\"&CBAT!$D68,'CBAT Lookups'!$B$5:$K$12,6),0))","v":""},{"$f":"IF('Project Scope'!$C68=\"\",\"\",IF(COUNTIF('CBAT Lookups'!$B$5:$B$12,\"Controls-\"&CBAT!$D68)=1,VLOOKUP(\"Controls-\"&CBAT!$D68,'CBAT Lookups'!$B$5:$K$12,7),0))","v":""},{"$f":"IF('Project Scope'!$C68=\"\",\"\",IF(VLOOKUP($F68,'CBAT Lookups'!$B$17:$K$19,8)=\"W\",1,IF(COUNTIF('CBAT Lookups'!$B$5:$B$12,\"Controls-\"&CBAT!$D68)=1,VLOOKUP(\"Controls-\"&CBAT!$D68,'CBAT Lookups'!$B$5:$K$12,8),0)*VLOOKUP($F68,'CBAT Lookups'!$B$17:$K$19,8)))","v":""},{"$f":"IF('Project Scope'!$C68=\"\",\"\",IF(VLOOKUP($F68,'CBAT Lookups'!$B$17:$K$19,9)=\"W\",1,IF(COUNTIF('CBAT Lookups'!$B$5:$B$12,\"Controls-\"&CBAT!$D68)=1,VLOOKUP(\"Controls-\"&CBAT!$D68,'CBAT Lookups'!$B$5:$K$12,9),0)*VLOOKUP($F68,'CBAT Lookups'!$B$17:$K$19,9)))","v":""},{"$f":"IF('Project Scope'!$C68=\"\",\"\",IF(COUNTIF('CBAT Lookups'!$B$5:$B$12,\"Controls-\"&CBAT!$D68)=1,VLOOKUP(\"Controls-\"&CBAT!$D68,'CBAT Lookups'!$B$5:$K$12,10),0)*VLOOKUP($F68,'CBAT Lookups'!$B$17:$K$19,10))","v":""},{"$f":"IF('Project Scope'!$C68=\"\",\"\",VLOOKUP($C68,'CBAT Lookups'!$A$33:$B$57,2))","v":""},{"$f":"IF('Project Scope'!$C68=\"\",\"\",IF(COUNTIF('CBAT Lookups'!$B$5:$B$12,\"Controls-\"&CBAT!$D68)=1,VLOOKUP(\"Controls-\"&CBAT!$D68,'CBAT Lookups'!$B$5:$O$12,12),0))","v":""},{"$f":"IF('Project Scope'!$C68=\"\",\"\",IF(COUNTIF('CBAT Lookups'!$B$5:$B$12,\"Controls-\"&CBAT!$D68)=1,VLOOKUP(\"Controls-\"&CBAT!$D68,'CBAT Lookups'!$B$5:$O$12,13),0))","v":""},{"$f":"IF('Project Scope'!$C68=\"\",\"\",IF(COUNTIF('CBAT Lookups'!$B$5:$B$12,\"Controls-\"&CBAT!$D68)=1,VLOOKUP(\"Controls-\"&CBAT!$D68,'CBAT Lookups'!$B$5:$O$12,14),0))","v":""},{"$f":"IF('Project Scope'!$C68=\"\",\"\",'TRM Data'!$U$3)","v":""},{"$f":"IF('Project Scope'!$C68=\"\",\"\",'TRM Data'!$V$3)","v":""},{"$f":"IF('Project Scope'!$C68=\"\",\"\",IF($K68<=0,0,MAX(0,(IF(AND($I68>0,$J68>0),($I68*$J68)/1000,($G68*$H68)/1000)*$L68))*$BT68*$BR68)+($CD68/0.003412))","v":""},{"$f":"IF('Project Scope'!$C68=\"\",\"\",IF($K68<=0,0,MAX(0,IF(AND($I68>0,$J68>0),($I68*$J68)/1000,($G68*$H68)/1000))*$BQ68))","v":""},{"$f":"IF('Project Scope'!$C68=\"\",\"\",IF($K68<=0,0,MAX(0,IF(AND($I68>0,$J68>0),($I68*$J68)/1000,($G68*$H68)/1000))*$BK68))","v":""},{"$f":"IF('Project Scope'!$C68=\"\",\"\",IF($K68<=0,0,MAX(0,IF(AND($I68>0,$J68>0),($I68*$J68)/1000,($G68*$H68)/1000))*$BL68*$BQ68))","v":""},{"$f":"IF('Project Scope'!$C68=\"\",\"\",IF(OR($K68<=0,'Project Information'!$D$44=\"\"),0,-1*MAX(0,IF(AND($I68>0,$J68>0),($I68*$J68)/1000,($G68*$H68)/1000))*$BT68*$L68*$BS68*VLOOKUP('Project Information'!$D$44,'CBAT Lookups'!$A$23:$H$30,2)))","v":""},{"$f":"IF('Project Scope'!$C68=\"\",\"\",IF(OR($K68<=0,'Project Information'!$D$44=\"\"),0,-1*MAX(0,IF(AND($I68>0,$J68>0),($I68*$J68)/1000,($G68*$H68)/1000))*$BT68*$L68*$BS68*VLOOKUP('Project Information'!$D$44,'CBAT Lookups'!$A$23:$H$30,3)))","v":""},{"$f":"IF('Project Scope'!$C68=\"\",\"\",IF(OR($K68<=0,'Project Information'!$D$44=\"\"),0,-1*MAX(0,IF(AND($I68>0,$J68>0),($I68*$J68)/1000,($G68*$H68)/1000))*$BT68*$L68*$BS68*VLOOKUP('Project Information'!$D$44,'CBAT Lookups'!$A$23:$H$30,4)))","v":""},{"$f":"IF('Project Scope'!$C68=\"\",\"\",IF(OR($K68<=0,'Project Information'!$D$44=\"\"),0,-1*MAX(0,IF(AND($I68>0,$J68>0),($I68*$J68)/1000,($G68*$H68)/1000))*$BT68*$L68*$BS68*VLOOKUP('Project Information'!$D$44,'CBAT Lookups'!$A$23:$H$30,5)))","v":""},{"$f":"IF('Project Scope'!$C68=\"\",\"\",IF(OR($K68<=0,'Project Information'!$D$44=\"\"),0,-1*MAX(0,IF(AND($I68>0,$J68>0),($I68*$J68)/1000,($G68*$H68)/1000))*$BT68*$L68*$BS68*VLOOKUP('Project Information'!$D$44,'CBAT Lookups'!$A$23:$H$30,6)))","v":""},{"$f":"IF('Project Scope'!$C68=\"\",\"\",IF(OR($K68<=0,'Project Information'!$D$44=\"\"),0,-1*MAX(0,IF(AND($I68>0,$J68>0),($I68*$J68)/1000,($G68*$H68)/1000))*$BT68*$L68*$BS68*VLOOKUP('Project Information'!$D$44,'CBAT Lookups'!$A$23:$H$30,7)))","v":""},{"$f":"IF('Project Scope'!$C68=\"\",\"\",IF(OR($K68<=0,'Project Information'!$D$44=\"\"),0,-1*MAX(0,IF(AND($I68>0,$J68>0),($I68*$J68)/1000,($G68*$H68)/1000))*$BT68*$L68*$BS68*VLOOKUP('Project Information'!$D$44,'CBAT Lookups'!$A$23:$H$30,8)))","v":""},null,{"$f":"IF('Project Scope'!$C68=\"\",\"\",VLOOKUP($F68,'CBAT Lookups'!$B$17:$K$19,4))","v":""},{"$f":"IF('Project Scope'!$C68=\"\",\"\",VLOOKUP($F68,'CBAT Lookups'!$B$17:$K$19,5))","v":""},{"$f":"IF('Project Scope'!$C68=\"\",\"\",VLOOKUP($F68,'CBAT Lookups'!$B$17:$K$19,6))","v":""},{"$f":"IF('Project Scope'!$C68=\"\",\"\",VLOOKUP($F68,'CBAT Lookups'!$B$17:$K$19,7))","v":""},{"$f":"IF('Project Scope'!$C68=\"\",\"\",IF(SUMPRODUCT($BM68:$BP68,$CL68:$CO68)=0,0,BM68*CL68/SUMPRODUCT($BM68:$BP68,$CL68:$CO68)))","v":""},{"$f":"IF('Project Scope'!$C68=\"\",\"\",IF(SUMPRODUCT($BM68:$BP68,$CL68:$CO68)=0,0,BN68*CM68/SUMPRODUCT($BM68:$BP68,$CL68:$CO68)))","v":""},{"$f":"IF('Project Scope'!$C68=\"\",\"\",IF(SUMPRODUCT($BM68:$BP68,$CL68:$CO68)=0,0,BO68*CN68/SUMPRODUCT($BM68:$BP68,$CL68:$CO68)))","v":""},{"$f":"IF('Project Scope'!$C68=\"\",\"\",IF(SUMPRODUCT($BM68:$BP68,$CL68:$CO68)=0,0,BP68*CO68/SUMPRODUCT($BM68:$BP68,$CL68:$CO68)))","v":""},{"$f":"IF('Project Scope'!$C68=\"\",\"\",Benefits($BZ68,$CB68,$CC68,$CE68,$CF68,$CG68,$CH68,$CI68,$CJ68,$CK68,$BJ68,$CP68,$CQ68,$CR68,$CS68,$BU68,$BV68,$BW68,$BX68,$BY68,$E68))","v":""},"","","","","","","","",null,{"$f":"IF('Project Scope'!$C68=\"\",\"\",SUM('Project Scope'!$BB68,'Project Scope'!$BC68))","v":""},{"$f":"IF('Project Scope'!$C68=\"\",\"\",SUM('Project Scope'!$BH68, 'Project Scope'!$AZ68,(IF(ISNUMBER('Project Scope'!$BA68),'Project Scope'!$BA68,0)*'Project Information'!$D$12)))","v":""},null,null,{"$f":"IF('Project Scope'!$C68=\"\",\"\",IF($J68<=0,0,(SUMPRODUCT($AV68:$BC68,--($AV68:$BC68>0))+$BE68)*$DK68/((-SUMPRODUCT($AV68:$BC68,--($AV68:$BC68<0))+$BG68+$BH68+$BI68)*$DK68)))","v":""},{"$f":"IF('Project Scope'!$C68=\"\",\"\",IF($K68<=0,0,(SUMPRODUCT($CT68:$DA68,--($CT68:$DA68>0))+$DC68)*$DK68/((-SUMPRODUCT($CT68:$DA68,--($CT68:$DA68<0))+$DE68+$DF68+$DG68)*$DK68)))","v":""},{"$f":"IF('Project Scope'!$C68=\"\",\"\",IF(AND($J68<=0,$K68<=0),0,(SUMPRODUCT($AV68:$BC68,--($AV68:$BC68>0))+$BE68+SUMPRODUCT($CT68:$DA68,--($CT68:$DA68>0))+$DC68)*$DK68/((-SUMPRODUCT($AV68:$BC68,--($AV68:$BC68<0))+$BG68+$BH68+$BI68-SUMPRODUCT($CT68:$DA68,--($CT68:$DA68<0))+$DE68+$DF68+$DG68)*$DK68)))","v":""},{"$f":"IF('Project Scope'!$C68=\"\",\"\",IF(NetOrGross=\"Net\",(1-Z68+AA68),1))","v":""}]
[{"$f":"'Project Scope'!$B69","v":62},{"$f":"IF('Project Scope'!$C69=\"\",\"\",'Project Scope'!$C69)","v":""},{"$f":"IF('Project Scope'!$C69=\"\",\"\",'Project Scope'!$H69)","v":""},{"$f":"IF(ISNUMBER(SEARCH(\"Bay\",'Project Scope'!$Q69)),\"Bay\",IF('Project Scope'!C69=\"\",\"\",'Project Scope'!E69))","v":""},{"$f":"IF('Project Scope'!$C69=\"\",\"\",\"Com\")","v":""},{"$f":"IF('Project Scope'!$C69=\"\",\"\",'Project Scope'!$L69)","v":""},{"$f":"IF('Project Scope'!$C69=\"\",\"\",IF('Project Scope'!$CJ69=\"\",0,'Project Scope'!$CJ69))","v":""},{"$f":"IF('Project Scope'!$C69=\"\",\"\",IF('Project Scope'!$N69=\"\",0,'Project Scope'!$N69))","v":""},{"$f":"IF('Project Scope'!$C69=\"\",\"\",IF('Project Scope'!$CK69=\"\",0,'Project Scope'!$CK69))","v":""},{"$f":"IF('Project Scope'!$C69=\"\",\"\",IF('Project Scope'!$AO69=\"\",0,'Project Scope'!$AO69))","v":""},{"$f":"IF('Project Scope'!$C69=\"\",\"\",IF('Project Scope'!$AX69=\"\",0,'Project Scope'!$AX69))","v":""},{"$f":"IF('Project Scope'!$C69=\"\",\"\",IF('Project Scope'!$M69=\"\",0,'Project Scope'!$M69))","v":""},{"$f":"IF('Project Scope'!$C69=\"\",\"\",IF(COUNTIF('CBAT Lookups'!$B$5:$B$12,\"Fixtures-\"&CBAT!$D69)=1,VLOOKUP(\"Fixtures-\"&CBAT!$D69,'CBAT Lookups'!$B$5:$L$12,11),0))","v":""},{"$f":"IF('Project Scope'!$C69=\"\",\"\",(IF(COUNTIF('CBAT Lookups'!$B$5:$B$12,\"Fixtures-\"&CBAT!$D69)=1,VLOOKUP(\"Fixtures-\"&CBAT!$D69,'CBAT Lookups'!$B$5:$K$12,2),0))*VLOOKUP($F69,'CBAT Lookups'!$B$17:$K$19,2))","v":""},{"$f":"IF('Project Scope'!$C69=\"\",\"\",(IF(COUNTIF('CBAT Lookups'!$B$5:$B$12,\"Fixtures-\"&CBAT!$D69)=1,VLOOKUP(\"Fixtures-\"&CBAT!$D69,'CBAT Lookups'!$B$5:$K$12,3),0))*VLOOKUP($F69,'CBAT Lookups'!$B$17:$K$19,3))","v":""},{"$f":"IF('Project Scope'!$C69=\"\",\"\",(IF(COUNTIF('CBAT Lookups'!$B$5:$B$12,\"Fixtures-\"&CBAT!$D69)=1,VLOOKUP(\"Fixtures-\"&CBAT!$D69,'CBAT Lookups'!$B$5:$K$12,4),0)))","v":""},{"$f":"IF('Project Scope'!$C69=\"\",\"\",(IF(COUNTIF('CBAT Lookups'!$B$5:$B$12,\"Fixtures-\"&CBAT!$D69)=1,VLOOKUP(\"Fixtures-\"&CBAT!$D69,'CBAT Lookups'!$B$5:$K$12,5),0)))","v":""},{"$f":"IF('Project Scope'!$C69=\"\",\"\",(IF(COUNTIF('CBAT Lookups'!$B$5:$B$12,\"Fixtures-\"&CBAT!$D69)=1,VLOOKUP(\"Fixtures-\"&CBAT!$D69,'CBAT Lookups'!$B$5:$K$12,6),0)))","v":""},{"$f":"IF('Project Scope'!$C69=\"\",\"\",IF(COUNTIF('CBAT Lookups'!$B$5:$B$12,\"Fixtures-\"&CBAT!$D69)=1,VLOOKUP(\"Fixtures-\"&CBAT!$D69,'CBAT Lookups'!$B$5:$K$12,7),0))","v":""},{"$f":"IF('Project Scope'!$C69=\"\",\"\",IF(VLOOKUP($F69,'CBAT Lookups'!$B$17:$K$19,8)=\"W\",1,IF(COUNTIF('CBAT Lookups'!$B$5:$B$12,\"Fixtures-\"&CBAT!$D69)=1,VLOOKUP(\"Fixtures-\"&CBAT!$D69,'CBAT Lookups'!$B$5:$K$12,8),0)*VLOOKUP($F69,'CBAT Lookups'!$B$17:$K$19,8)))","v":""},{"$f":"IF('Project Scope'!$C69=\"\",\"\",IF(VLOOKUP($F69,'CBAT Lookups'!$B$17:$K$19,9)=\"W\",1,IF(COUNTIF('CBAT Lookups'!$B$5:$B$12,\"Fixtures-\"&CBAT!$D69)=1,VLOOKUP(\"Fixtures-\"&CBAT!$D69,'CBAT Lookups'!$B$5:$K$12,9),0)*VLOOKUP($F69,'CBAT Lookups'!$B$17:$K$19,9)))","v":""},{"$f":"IF('Project Scope'!$C69=\"\",\"\",IF(COUNTIF('CBAT Lookups'!$B$5:$B$12,\"Fixtures-\"&CBAT!$D69)=1,VLOOKUP(\"Fixtures-\"&CBAT!$D69,'CBAT Lookups'!$B$5:$K$12,10),0)*VLOOKUP($F69,'CBAT Lookups'!$B$17:$K$19,10))","v":""},{"$f":"IF('Project Scope'!$C69=\"\",\"\",IF(COUNTIF('CBAT Lookups'!$B$5:$B$12,\"Fixtures-\"&CBAT!$D69)=1,VLOOKUP(\"Fixtures-\"&CBAT!$D69,'CBAT Lookups'!$B$5:$O$12,12),0))","v":""},{"$f":"IF('Project Scope'!$C69=\"\",\"\",IF(COUNTIF('CBAT Lookups'!$B$5:$B$12,\"Fixtures-\"&CBAT!$D69)=1,VLOOKUP(\"Fixtures-\"&CBAT!$D69,'CBAT Lookups'!$B$5:$O$12,13),0))","v":""},{"$f":"IF('Project Scope'!$C69=\"\",\"\",IF(COUNTIF('CBAT Lookups'!$B$5:$B$12,\"Fixtures-\"&CBAT!$D69)=1,VLOOKUP(\"Fixtures-\"&CBAT!$D69,'CBAT Lookups'!$B$5:$O$12,14),0))","v":""},{"$f":"IF('Project Scope'!$C69=\"\",\"\",'TRM Data'!$U$3)","v":""},{"$f":"IF('Project Scope'!$C69=\"\",\"\",'TRM Data'!$V$3)","v":""},{"$f":"IF('Project Scope'!$C69=\"\",\"\",IF($J69<=0,0,MAX(0,(($G69*$H69/1000)-($I69*$J69/1000))*$L69)*$U69)+($AF69/0.003412))","v":""},{"$f":"IF('Project Scope'!$C69=\"\",\"\",IF($J69<=0,0,MAX(0,(($G69*$H69/1000)-($I69*$J69/1000)))*$T69))","v":""},{"$f":"IF('Project Scope'!$C69=\"\",\"\",IF($J69<=0,0,MAX(0,(($G69*$H69/1000)-($I69*$J69/1000))*$N69)))","v":""},{"$f":"IF('Project Scope'!$C69=\"\",\"\",IF($J69<=0,0,MAX(0,(($G69*$H69/1000)-($I69*$J69/1000))*$O69)*$T69))","v":""},{"$f":"IF('Project Scope'!$C69=\"\",\"\",IF(OR($J69<=0,'Project Information'!$D$44=\"\"),0,-1*MAX(0,(($G69*$H69/1000)-($I69*$J69/1000))*$L69)*$V69*VLOOKUP('Project Information'!$D$44,'CBAT Lookups'!$A$23:$H$30,2)))","v":""},{"$f":"IF('Project Scope'!$C69=\"\",\"\",IF(OR($J69<=0,'Project Information'!$D$44=\"\"),0,-1*MAX(0,(($G69*$H69/1000)-($I69*$J69/1000))*$L69)*$V69*VLOOKUP('Project Information'!$D$44,'CBAT Lookups'!$A$23:$H$30,3)))","v":""},{"$f":"IF('Project Scope'!$C69=\"\",\"\",IF(OR($J69<=0,'Project Information'!$D$44=\"\"),0,-1*MAX(0,(($G69*$H69/1000)-($I69*$J69/1000))*$L69)*$V69*VLOOKUP('Project Information'!$D$44,'CBAT Lookups'!$A$23:$H$30,4)))","v":""},{"$f":"IF('Project Scope'!$C69=\"\",\"\",IF(OR($J69<=0,'Project Information'!$D$44=\"\"),0,-1*MAX(0,(($G69*$H69/1000)-($I69*$J69/1000))*$L69)*$V69*VLOOKUP('Project Information'!$D$44,'CBAT Lookups'!$A$23:$H$30,5)))","v":""},{"$f":"IF('Project Scope'!$C69=\"\",\"\",IF(OR($J69<=0,'Project Information'!$D$44=\"\"),0,-1*MAX(0,(($G69*$H69/1000)-($I69*$J69/1000))*$L69)*$V69*VLOOKUP('Project Information'!$D$44,'CBAT Lookups'!$A$23:$H$30,6)))","v":""},{"$f":"IF('Project Scope'!$C69=\"\",\"\",IF(OR($J69<=0,'Project Information'!$D$44=\"\"),0,-1*MAX(0,(($G69*$H69/1000)-($I69*$J69/1000))*$L69)*$V69*VLOOKUP('Project Information'!$D$44,'CBAT Lookups'!$A$23:$H$30,7)))","v":""},{"$f":"IF('Project Scope'!$C69=\"\",\"\",IF(OR($J69<=0,'Project Information'!$D$44=\"\"),0,-1*MAX(0,(($G69*$H69/1000)-($I69*$J69/1000))*$L69)*$V69*VLOOKUP('Project Information'!$D$44,'CBAT Lookups'!$A$23:$H$30,8)))","v":""},null,{"$f":"IF('Project Scope'!$C69=\"\",\"\",VLOOKUP($F69,'CBAT Lookups'!$B$17:$K$19,4))","v":""},{"$f":"IF('Project Scope'!$C69=\"\",\"\",VLOOKUP($F69,'CBAT Lookups'!$B$17:$K$19,5))","v":""},{"$f":"IF('Project Scope'!$C69=\"\",\"\",VLOOKUP($F69,'CBAT Lookups'!$B$17:$K$19,6))","v":""},{"$f":"IF('Project Scope'!$C69=\"\",\"\",VLOOKUP($F69,'CBAT Lookups'!$B$17:$K$19,7))","v":""},{"$f":"IF('Project Scope'!$C69=\"\",\"\",IF(SUMPRODUCT($P69:$S69,$AN69:$AQ69)=0,0,P69*AN69/SUMPRODUCT($P69:$S69,$AN69:$AQ69)))","v":""},{"$f":"IF('Project Scope'!$C69=\"\",\"\",IF(SUMPRODUCT($P69:$S69,$AN69:$AQ69)=0,0,Q69*AO69/SUMPRODUCT($P69:$S69,$AN69:$AQ69)))","v":""},{"$f":"IF('Project Scope'!$C69=\"\",\"\",IF(SUMPRODUCT($P69:$S69,$AN69:$AQ69)=0,0,R69*AP69/SUMPRODUCT($P69:$S69,$AN69:$AQ69)))","v":""},{"$f":"IF('Project Scope'!$C69=\"\",\"\",IF(SUMPRODUCT($P69:$S69,$AN69:$AQ69)=0,0,S69*AQ69/SUMPRODUCT($P69:$S69,$AN69:$AQ69)))","v":""},{"$f":"IF('Project Scope'!$C69=\"\",\"\",Benefits($AB69,$AD69,$AE69,$AG69,$AH69,$AI69,$AJ69,$AK69,$AL69,$AM69,$M69,$AR69,$AS69,$AT69,$AU69,$W69,$X69,$Y69,$Z69,$AA69,$E69))","v":""},"","","","","","","","",null,{"$f":"IF('Project Scope'!$C69=\"\",\"\",SUM('Project Scope'!$AT69,'Project Scope'!$AU69))","v":""},{"$f":"IF('Project Scope'!$C69=\"\",\"\",SUM('Project Scope'!$BG69, 'Project Scope'!$AR69,(IF(ISNUMBER('Project Scope'!$AS69),'Project Scope'!$AS69,0)*'Project Information'!$D$12)))","v":""},null,null,{"$f":"IF('Project Scope'!$C69=\"\",\"\",IF(COUNTIF('CBAT Lookups'!$B$5:$B$12,\"Controls-\"&CBAT!$D69)=1,VLOOKUP(\"Controls-\"&CBAT!$D69,'CBAT Lookups'!$B$5:$L$12,11),0))","v":""},{"$f":"IF('Project Scope'!$C69=\"\",\"\",IF(COUNTIF('CBAT Lookups'!$B$5:$B$12,\"Controls-\"&CBAT!$D69)=1,VLOOKUP(\"Controls-\"&CBAT!$D69,'CBAT Lookups'!$B$5:$K$12,2),0)*VLOOKUP($F69,'CBAT Lookups'!$B$17:$K$19,2))","v":""},{"$f":"IF('Project Scope'!$C69=\"\",\"\",IF(COUNTIF('CBAT Lookups'!$B$5:$B$12,\"Controls-\"&CBAT!$D69)=1,VLOOKUP(\"Controls-\"&CBAT!$D69,'CBAT Lookups'!$B$5:$K$12,3),0)*VLOOKUP($F69,'CBAT Lookups'!$B$17:$K$19,3))","v":""},{"$f":"IF('Project Scope'!$C69=\"\",\"\",IF(COUNTIF('CBAT Lookups'!$B$5:$B$12,\"Controls-\"&CBAT!$D69)=1,VLOOKUP(\"Controls-\"&CBAT!$D69,'CBAT Lookups'!$B$5:$K$12,4),0))","v":""},{"$f":"IF('Project Scope'!$C69=\"\",\"\",IF(COUNTIF('CBAT Lookups'!$B$5:$B$12,\"Controls-\"&CBAT!$D69)=1,VLOOKUP(\"Controls-\"&CBAT!$D69,'CBAT Lookups'!$B$5:$K$12,5),0))","v":""},{"$f":"IF('Project Scope'!$C69=\"\",\"\",IF(COUNTIF('CBAT Lookups'!$B$5:$B$12,\"Controls-\"&CBAT!$D69)=1,VLOOKUP(\"Controls-\"&CBAT!$D69,'CBAT Lookups'!$B$5:$K$12,6),0))","v":""},{"$f":"IF('Project Scope'!$C69=\"\",\"\",IF(COUNTIF('CBAT Lookups'!$B$5:$B$12,\"Controls-\"&CBAT!$D69)=1,VLOOKUP(\"Controls-\"&CBAT!$D69,'CBAT Lookups'!$B$5:$K$12,7),0))","v":""},{"$f":"IF('Project Scope'!$C69=\"\",\"\",IF(VLOOKUP($F69,'CBAT Lookups'!$B$17:$K$19,8)=\"W\",1,IF(COUNTIF('CBAT Lookups'!$B$5:$B$12,\"Controls-\"&CBAT!$D69)=1,VLOOKUP(\"Controls-\"&CBAT!$D69,'CBAT Lookups'!$B$5:$K$12,8),0)*VLOOKUP($F69,'CBAT Lookups'!$B$17:$K$19,8)))","v":""},{"$f":"IF('Project Scope'!$C69=\"\",\"\",IF(VLOOKUP($F69,'CBAT Lookups'!$B$17:$K$19,9)=\"W\",1,IF(COUNTIF('CBAT Lookups'!$B$5:$B$12,\"Controls-\"&CBAT!$D69)=1,VLOOKUP(\"Controls-\"&CBAT!$D69,'CBAT Lookups'!$B$5:$K$12,9),0)*VLOOKUP($F69,'CBAT Lookups'!$B$17:$K$19,9)))","v":""},{"$f":"IF('Project Scope'!$C69=\"\",\"\",IF(COUNTIF('CBAT Lookups'!$B$5:$B$12,\"Controls-\"&CBAT!$D69)=1,VLOOKUP(\"Controls-\"&CBAT!$D69,'CBAT Lookups'!$B$5:$K$12,10),0)*VLOOKUP($F69,'CBAT Lookups'!$B$17:$K$19,10))","v":""},{"$f":"IF('Project Scope'!$C69=\"\",\"\",VLOOKUP($C69,'CBAT Lookups'!$A$33:$B$57,2))","v":""},{"$f":"IF('Project Scope'!$C69=\"\",\"\",IF(COUNTIF('CBAT Lookups'!$B$5:$B$12,\"Controls-\"&CBAT!$D69)=1,VLOOKUP(\"Controls-\"&CBAT!$D69,'CBAT Lookups'!$B$5:$O$12,12),0))","v":""},{"$f":"IF('Project Scope'!$C69=\"\",\"\",IF(COUNTIF('CBAT Lookups'!$B$5:$B$12,\"Controls-\"&CBAT!$D69)=1,VLOOKUP(\"Controls-\"&CBAT!$D69,'CBAT Lookups'!$B$5:$O$12,13),0))","v":""},{"$f":"IF('Project Scope'!$C69=\"\",\"\",IF(COUNTIF('CBAT Lookups'!$B$5:$B$12,\"Controls-\"&CBAT!$D69)=1,VLOOKUP(\"Controls-\"&CBAT!$D69,'CBAT Lookups'!$B$5:$O$12,14),0))","v":""},{"$f":"IF('Project Scope'!$C69=\"\",\"\",'TRM Data'!$U$3)","v":""},{"$f":"IF('Project Scope'!$C69=\"\",\"\",'TRM Data'!$V$3)","v":""},{"$f":"IF('Project Scope'!$C69=\"\",\"\",IF($K69<=0,0,MAX(0,(IF(AND($I69>0,$J69>0),($I69*$J69)/1000,($G69*$H69)/1000)*$L69))*$BT69*$BR69)+($CD69/0.003412))","v":""},{"$f":"IF('Project Scope'!$C69=\"\",\"\",IF($K69<=0,0,MAX(0,IF(AND($I69>0,$J69>0),($I69*$J69)/1000,($G69*$H69)/1000))*$BQ69))","v":""},{"$f":"IF('Project Scope'!$C69=\"\",\"\",IF($K69<=0,0,MAX(0,IF(AND($I69>0,$J69>0),($I69*$J69)/1000,($G69*$H69)/1000))*$BK69))","v":""},{"$f":"IF('Project Scope'!$C69=\"\",\"\",IF($K69<=0,0,MAX(0,IF(AND($I69>0,$J69>0),($I69*$J69)/1000,($G69*$H69)/1000))*$BL69*$BQ69))","v":""},{"$f":"IF('Project Scope'!$C69=\"\",\"\",IF(OR($K69<=0,'Project Information'!$D$44=\"\"),0,-1*MAX(0,IF(AND($I69>0,$J69>0),($I69*$J69)/1000,($G69*$H69)/1000))*$BT69*$L69*$BS69*VLOOKUP('Project Information'!$D$44,'CBAT Lookups'!$A$23:$H$30,2)))","v":""},{"$f":"IF('Project Scope'!$C69=\"\",\"\",IF(OR($K69<=0,'Project Information'!$D$44=\"\"),0,-1*MAX(0,IF(AND($I69>0,$J69>0),($I69*$J69)/1000,($G69*$H69)/1000))*$BT69*$L69*$BS69*VLOOKUP('Project Information'!$D$44,'CBAT Lookups'!$A$23:$H$30,3)))","v":""},{"$f":"IF('Project Scope'!$C69=\"\",\"\",IF(OR($K69<=0,'Project Information'!$D$44=\"\"),0,-1*MAX(0,IF(AND($I69>0,$J69>0),($I69*$J69)/1000,($G69*$H69)/1000))*$BT69*$L69*$BS69*VLOOKUP('Project Information'!$D$44,'CBAT Lookups'!$A$23:$H$30,4)))","v":""},{"$f":"IF('Project Scope'!$C69=\"\",\"\",IF(OR($K69<=0,'Project Information'!$D$44=\"\"),0,-1*MAX(0,IF(AND($I69>0,$J69>0),($I69*$J69)/1000,($G69*$H69)/1000))*$BT69*$L69*$BS69*VLOOKUP('Project Information'!$D$44,'CBAT Lookups'!$A$23:$H$30,5)))","v":""},{"$f":"IF('Project Scope'!$C69=\"\",\"\",IF(OR($K69<=0,'Project Information'!$D$44=\"\"),0,-1*MAX(0,IF(AND($I69>0,$J69>0),($I69*$J69)/1000,($G69*$H69)/1000))*$BT69*$L69*$BS69*VLOOKUP('Project Information'!$D$44,'CBAT Lookups'!$A$23:$H$30,6)))","v":""},{"$f":"IF('Project Scope'!$C69=\"\",\"\",IF(OR($K69<=0,'Project Information'!$D$44=\"\"),0,-1*MAX(0,IF(AND($I69>0,$J69>0),($I69*$J69)/1000,($G69*$H69)/1000))*$BT69*$L69*$BS69*VLOOKUP('Project Information'!$D$44,'CBAT Lookups'!$A$23:$H$30,7)))","v":""},{"$f":"IF('Project Scope'!$C69=\"\",\"\",IF(OR($K69<=0,'Project Information'!$D$44=\"\"),0,-1*MAX(0,IF(AND($I69>0,$J69>0),($I69*$J69)/1000,($G69*$H69)/1000))*$BT69*$L69*$BS69*VLOOKUP('Project Information'!$D$44,'CBAT Lookups'!$A$23:$H$30,8)))","v":""},null,{"$f":"IF('Project Scope'!$C69=\"\",\"\",VLOOKUP($F69,'CBAT Lookups'!$B$17:$K$19,4))","v":""},{"$f":"IF('Project Scope'!$C69=\"\",\"\",VLOOKUP($F69,'CBAT Lookups'!$B$17:$K$19,5))","v":""},{"$f":"IF('Project Scope'!$C69=\"\",\"\",VLOOKUP($F69,'CBAT Lookups'!$B$17:$K$19,6))","v":""},{"$f":"IF('Project Scope'!$C69=\"\",\"\",VLOOKUP($F69,'CBAT Lookups'!$B$17:$K$19,7))","v":""},{"$f":"IF('Project Scope'!$C69=\"\",\"\",IF(SUMPRODUCT($BM69:$BP69,$CL69:$CO69)=0,0,BM69*CL69/SUMPRODUCT($BM69:$BP69,$CL69:$CO69)))","v":""},{"$f":"IF('Project Scope'!$C69=\"\",\"\",IF(SUMPRODUCT($BM69:$BP69,$CL69:$CO69)=0,0,BN69*CM69/SUMPRODUCT($BM69:$BP69,$CL69:$CO69)))","v":""},{"$f":"IF('Project Scope'!$C69=\"\",\"\",IF(SUMPRODUCT($BM69:$BP69,$CL69:$CO69)=0,0,BO69*CN69/SUMPRODUCT($BM69:$BP69,$CL69:$CO69)))","v":""},{"$f":"IF('Project Scope'!$C69=\"\",\"\",IF(SUMPRODUCT($BM69:$BP69,$CL69:$CO69)=0,0,BP69*CO69/SUMPRODUCT($BM69:$BP69,$CL69:$CO69)))","v":""},{"$f":"IF('Project Scope'!$C69=\"\",\"\",Benefits($BZ69,$CB69,$CC69,$CE69,$CF69,$CG69,$CH69,$CI69,$CJ69,$CK69,$BJ69,$CP69,$CQ69,$CR69,$CS69,$BU69,$BV69,$BW69,$BX69,$BY69,$E69))","v":""},"","","","","","","","",null,{"$f":"IF('Project Scope'!$C69=\"\",\"\",SUM('Project Scope'!$BB69,'Project Scope'!$BC69))","v":""},{"$f":"IF('Project Scope'!$C69=\"\",\"\",SUM('Project Scope'!$BH69, 'Project Scope'!$AZ69,(IF(ISNUMBER('Project Scope'!$BA69),'Project Scope'!$BA69,0)*'Project Information'!$D$12)))","v":""},null,null,{"$f":"IF('Project Scope'!$C69=\"\",\"\",IF($J69<=0,0,(SUMPRODUCT($AV69:$BC69,--($AV69:$BC69>0))+$BE69)*$DK69/((-SUMPRODUCT($AV69:$BC69,--($AV69:$BC69<0))+$BG69+$BH69+$BI69)*$DK69)))","v":""},{"$f":"IF('Project Scope'!$C69=\"\",\"\",IF($K69<=0,0,(SUMPRODUCT($CT69:$DA69,--($CT69:$DA69>0))+$DC69)*$DK69/((-SUMPRODUCT($CT69:$DA69,--($CT69:$DA69<0))+$DE69+$DF69+$DG69)*$DK69)))","v":""},{"$f":"IF('Project Scope'!$C69=\"\",\"\",IF(AND($J69<=0,$K69<=0),0,(SUMPRODUCT($AV69:$BC69,--($AV69:$BC69>0))+$BE69+SUMPRODUCT($CT69:$DA69,--($CT69:$DA69>0))+$DC69)*$DK69/((-SUMPRODUCT($AV69:$BC69,--($AV69:$BC69<0))+$BG69+$BH69+$BI69-SUMPRODUCT($CT69:$DA69,--($CT69:$DA69<0))+$DE69+$DF69+$DG69)*$DK69)))","v":""},{"$f":"IF('Project Scope'!$C69=\"\",\"\",IF(NetOrGross=\"Net\",(1-Z69+AA69),1))","v":""}]
[{"$f":"'Project Scope'!$B70","v":63},{"$f":"IF('Project Scope'!$C70=\"\",\"\",'Project Scope'!$C70)","v":""},{"$f":"IF('Project Scope'!$C70=\"\",\"\",'Project Scope'!$H70)","v":""},{"$f":"IF(ISNUMBER(SEARCH(\"Bay\",'Project Scope'!$Q70)),\"Bay\",IF('Project Scope'!C70=\"\",\"\",'Project Scope'!E70))","v":""},{"$f":"IF('Project Scope'!$C70=\"\",\"\",\"Com\")","v":""},{"$f":"IF('Project Scope'!$C70=\"\",\"\",'Project Scope'!$L70)","v":""},{"$f":"IF('Project Scope'!$C70=\"\",\"\",IF('Project Scope'!$CJ70=\"\",0,'Project Scope'!$CJ70))","v":""},{"$f":"IF('Project Scope'!$C70=\"\",\"\",IF('Project Scope'!$N70=\"\",0,'Project Scope'!$N70))","v":""},{"$f":"IF('Project Scope'!$C70=\"\",\"\",IF('Project Scope'!$CK70=\"\",0,'Project Scope'!$CK70))","v":""},{"$f":"IF('Project Scope'!$C70=\"\",\"\",IF('Project Scope'!$AO70=\"\",0,'Project Scope'!$AO70))","v":""},{"$f":"IF('Project Scope'!$C70=\"\",\"\",IF('Project Scope'!$AX70=\"\",0,'Project Scope'!$AX70))","v":""},{"$f":"IF('Project Scope'!$C70=\"\",\"\",IF('Project Scope'!$M70=\"\",0,'Project Scope'!$M70))","v":""},{"$f":"IF('Project Scope'!$C70=\"\",\"\",IF(COUNTIF('CBAT Lookups'!$B$5:$B$12,\"Fixtures-\"&CBAT!$D70)=1,VLOOKUP(\"Fixtures-\"&CBAT!$D70,'CBAT Lookups'!$B$5:$L$12,11),0))","v":""},{"$f":"IF('Project Scope'!$C70=\"\",\"\",(IF(COUNTIF('CBAT Lookups'!$B$5:$B$12,\"Fixtures-\"&CBAT!$D70)=1,VLOOKUP(\"Fixtures-\"&CBAT!$D70,'CBAT Lookups'!$B$5:$K$12,2),0))*VLOOKUP($F70,'CBAT Lookups'!$B$17:$K$19,2))","v":""},{"$f":"IF('Project Scope'!$C70=\"\",\"\",(IF(COUNTIF('CBAT Lookups'!$B$5:$B$12,\"Fixtures-\"&CBAT!$D70)=1,VLOOKUP(\"Fixtures-\"&CBAT!$D70,'CBAT Lookups'!$B$5:$K$12,3),0))*VLOOKUP($F70,'CBAT Lookups'!$B$17:$K$19,3))","v":""},{"$f":"IF('Project Scope'!$C70=\"\",\"\",(IF(COUNTIF('CBAT Lookups'!$B$5:$B$12,\"Fixtures-\"&CBAT!$D70)=1,VLOOKUP(\"Fixtures-\"&CBAT!$D70,'CBAT Lookups'!$B$5:$K$12,4),0)))","v":""},{"$f":"IF('Project Scope'!$C70=\"\",\"\",(IF(COUNTIF('CBAT Lookups'!$B$5:$B$12,\"Fixtures-\"&CBAT!$D70)=1,VLOOKUP(\"Fixtures-\"&CBAT!$D70,'CBAT Lookups'!$B$5:$K$12,5),0)))","v":""},{"$f":"IF('Project Scope'!$C70=\"\",\"\",(IF(COUNTIF('CBAT Lookups'!$B$5:$B$12,\"Fixtures-\"&CBAT!$D70)=1,VLOOKUP(\"Fixtures-\"&CBAT!$D70,'CBAT Lookups'!$B$5:$K$12,6),0)))","v":""},{"$f":"IF('Project Scope'!$C70=\"\",\"\",IF(COUNTIF('CBAT Lookups'!$B$5:$B$12,\"Fixtures-\"&CBAT!$D70)=1,VLOOKUP(\"Fixtures-\"&CBAT!$D70,'CBAT Lookups'!$B$5:$K$12,7),0))","v":""},{"$f":"IF('Project Scope'!$C70=\"\",\"\",IF(VLOOKUP($F70,'CBAT Lookups'!$B$17:$K$19,8)=\"W\",1,IF(COUNTIF('CBAT Lookups'!$B$5:$B$12,\"Fixtures-\"&CBAT!$D70)=1,VLOOKUP(\"Fixtures-\"&CBAT!$D70,'CBAT Lookups'!$B$5:$K$12,8),0)*VLOOKUP($F70,'CBAT Lookups'!$B$17:$K$19,8)))","v":""},{"$f":"IF('Project Scope'!$C70=\"\",\"\",IF(VLOOKUP($F70,'CBAT Lookups'!$B$17:$K$19,9)=\"W\",1,IF(COUNTIF('CBAT Lookups'!$B$5:$B$12,\"Fixtures-\"&CBAT!$D70)=1,VLOOKUP(\"Fixtures-\"&CBAT!$D70,'CBAT Lookups'!$B$5:$K$12,9),0)*VLOOKUP($F70,'CBAT Lookups'!$B$17:$K$19,9)))","v":""},{"$f":"IF('Project Scope'!$C70=\"\",\"\",IF(COUNTIF('CBAT Lookups'!$B$5:$B$12,\"Fixtures-\"&CBAT!$D70)=1,VLOOKUP(\"Fixtures-\"&CBAT!$D70,'CBAT Lookups'!$B$5:$K$12,10),0)*VLOOKUP($F70,'CBAT Lookups'!$B$17:$K$19,10))","v":""},{"$f":"IF('Project Scope'!$C70=\"\",\"\",IF(COUNTIF('CBAT Lookups'!$B$5:$B$12,\"Fixtures-\"&CBAT!$D70)=1,VLOOKUP(\"Fixtures-\"&CBAT!$D70,'CBAT Lookups'!$B$5:$O$12,12),0))","v":""},{"$f":"IF('Project Scope'!$C70=\"\",\"\",IF(COUNTIF('CBAT Lookups'!$B$5:$B$12,\"Fixtures-\"&CBAT!$D70)=1,VLOOKUP(\"Fixtures-\"&CBAT!$D70,'CBAT Lookups'!$B$5:$O$12,13),0))","v":""},{"$f":"IF('Project Scope'!$C70=\"\",\"\",IF(COUNTIF('CBAT Lookups'!$B$5:$B$12,\"Fixtures-\"&CBAT!$D70)=1,VLOOKUP(\"Fixtures-\"&CBAT!$D70,'CBAT Lookups'!$B$5:$O$12,14),0))","v":""},{"$f":"IF('Project Scope'!$C70=\"\",\"\",'TRM Data'!$U$3)","v":""},{"$f":"IF('Project Scope'!$C70=\"\",\"\",'TRM Data'!$V$3)","v":""},{"$f":"IF('Project Scope'!$C70=\"\",\"\",IF($J70<=0,0,MAX(0,(($G70*$H70/1000)-($I70*$J70/1000))*$L70)*$U70)+($AF70/0.003412))","v":""},{"$f":"IF('Project Scope'!$C70=\"\",\"\",IF($J70<=0,0,MAX(0,(($G70*$H70/1000)-($I70*$J70/1000)))*$T70))","v":""},{"$f":"IF('Project Scope'!$C70=\"\",\"\",IF($J70<=0,0,MAX(0,(($G70*$H70/1000)-($I70*$J70/1000))*$N70)))","v":""},{"$f":"IF('Project Scope'!$C70=\"\",\"\",IF($J70<=0,0,MAX(0,(($G70*$H70/1000)-($I70*$J70/1000))*$O70)*$T70))","v":""},{"$f":"IF('Project Scope'!$C70=\"\",\"\",IF(OR($J70<=0,'Project Information'!$D$44=\"\"),0,-1*MAX(0,(($G70*$H70/1000)-($I70*$J70/1000))*$L70)*$V70*VLOOKUP('Project Information'!$D$44,'CBAT Lookups'!$A$23:$H$30,2)))","v":""},{"$f":"IF('Project Scope'!$C70=\"\",\"\",IF(OR($J70<=0,'Project Information'!$D$44=\"\"),0,-1*MAX(0,(($G70*$H70/1000)-($I70*$J70/1000))*$L70)*$V70*VLOOKUP('Project Information'!$D$44,'CBAT Lookups'!$A$23:$H$30,3)))","v":""},{"$f":"IF('Project Scope'!$C70=\"\",\"\",IF(OR($J70<=0,'Project Information'!$D$44=\"\"),0,-1*MAX(0,(($G70*$H70/1000)-($I70*$J70/1000))*$L70)*$V70*VLOOKUP('Project Information'!$D$44,'CBAT Lookups'!$A$23:$H$30,4)))","v":""},{"$f":"IF('Project Scope'!$C70=\"\",\"\",IF(OR($J70<=0,'Project Information'!$D$44=\"\"),0,-1*MAX(0,(($G70*$H70/1000)-($I70*$J70/1000))*$L70)*$V70*VLOOKUP('Project Information'!$D$44,'CBAT Lookups'!$A$23:$H$30,5)))","v":""},{"$f":"IF('Project Scope'!$C70=\"\",\"\",IF(OR($J70<=0,'Project Information'!$D$44=\"\"),0,-1*MAX(0,(($G70*$H70/1000)-($I70*$J70/1000))*$L70)*$V70*VLOOKUP('Project Information'!$D$44,'CBAT Lookups'!$A$23:$H$30,6)))","v":""},{"$f":"IF('Project Scope'!$C70=\"\",\"\",IF(OR($J70<=0,'Project Information'!$D$44=\"\"),0,-1*MAX(0,(($G70*$H70/1000)-($I70*$J70/1000))*$L70)*$V70*VLOOKUP('Project Information'!$D$44,'CBAT Lookups'!$A$23:$H$30,7)))","v":""},{"$f":"IF('Project Scope'!$C70=\"\",\"\",IF(OR($J70<=0,'Project Information'!$D$44=\"\"),0,-1*MAX(0,(($G70*$H70/1000)-($I70*$J70/1000))*$L70)*$V70*VLOOKUP('Project Information'!$D$44,'CBAT Lookups'!$A$23:$H$30,8)))","v":""},null,{"$f":"IF('Project Scope'!$C70=\"\",\"\",VLOOKUP($F70,'CBAT Lookups'!$B$17:$K$19,4))","v":""},{"$f":"IF('Project Scope'!$C70=\"\",\"\",VLOOKUP($F70,'CBAT Lookups'!$B$17:$K$19,5))","v":""},{"$f":"IF('Project Scope'!$C70=\"\",\"\",VLOOKUP($F70,'CBAT Lookups'!$B$17:$K$19,6))","v":""},{"$f":"IF('Project Scope'!$C70=\"\",\"\",VLOOKUP($F70,'CBAT Lookups'!$B$17:$K$19,7))","v":""},{"$f":"IF('Project Scope'!$C70=\"\",\"\",IF(SUMPRODUCT($P70:$S70,$AN70:$AQ70)=0,0,P70*AN70/SUMPRODUCT($P70:$S70,$AN70:$AQ70)))","v":""},{"$f":"IF('Project Scope'!$C70=\"\",\"\",IF(SUMPRODUCT($P70:$S70,$AN70:$AQ70)=0,0,Q70*AO70/SUMPRODUCT($P70:$S70,$AN70:$AQ70)))","v":""},{"$f":"IF('Project Scope'!$C70=\"\",\"\",IF(SUMPRODUCT($P70:$S70,$AN70:$AQ70)=0,0,R70*AP70/SUMPRODUCT($P70:$S70,$AN70:$AQ70)))","v":""},{"$f":"IF('Project Scope'!$C70=\"\",\"\",IF(SUMPRODUCT($P70:$S70,$AN70:$AQ70)=0,0,S70*AQ70/SUMPRODUCT($P70:$S70,$AN70:$AQ70)))","v":""},{"$f":"IF('Project Scope'!$C70=\"\",\"\",Benefits($AB70,$AD70,$AE70,$AG70,$AH70,$AI70,$AJ70,$AK70,$AL70,$AM70,$M70,$AR70,$AS70,$AT70,$AU70,$W70,$X70,$Y70,$Z70,$AA70,$E70))","v":""},"","","","","","","","",null,{"$f":"IF('Project Scope'!$C70=\"\",\"\",SUM('Project Scope'!$AT70,'Project Scope'!$AU70))","v":""},{"$f":"IF('Project Scope'!$C70=\"\",\"\",SUM('Project Scope'!$BG70, 'Project Scope'!$AR70,(IF(ISNUMBER('Project Scope'!$AS70),'Project Scope'!$AS70,0)*'Project Information'!$D$12)))","v":""},null,null,{"$f":"IF('Project Scope'!$C70=\"\",\"\",IF(COUNTIF('CBAT Lookups'!$B$5:$B$12,\"Controls-\"&CBAT!$D70)=1,VLOOKUP(\"Controls-\"&CBAT!$D70,'CBAT Lookups'!$B$5:$L$12,11),0))","v":""},{"$f":"IF('Project Scope'!$C70=\"\",\"\",IF(COUNTIF('CBAT Lookups'!$B$5:$B$12,\"Controls-\"&CBAT!$D70)=1,VLOOKUP(\"Controls-\"&CBAT!$D70,'CBAT Lookups'!$B$5:$K$12,2),0)*VLOOKUP($F70,'CBAT Lookups'!$B$17:$K$19,2))","v":""},{"$f":"IF('Project Scope'!$C70=\"\",\"\",IF(COUNTIF('CBAT Lookups'!$B$5:$B$12,\"Controls-\"&CBAT!$D70)=1,VLOOKUP(\"Controls-\"&CBAT!$D70,'CBAT Lookups'!$B$5:$K$12,3),0)*VLOOKUP($F70,'CBAT Lookups'!$B$17:$K$19,3))","v":""},{"$f":"IF('Project Scope'!$C70=\"\",\"\",IF(COUNTIF('CBAT Lookups'!$B$5:$B$12,\"Controls-\"&CBAT!$D70)=1,VLOOKUP(\"Controls-\"&CBAT!$D70,'CBAT Lookups'!$B$5:$K$12,4),0))","v":""},{"$f":"IF('Project Scope'!$C70=\"\",\"\",IF(COUNTIF('CBAT Lookups'!$B$5:$B$12,\"Controls-\"&CBAT!$D70)=1,VLOOKUP(\"Controls-\"&CBAT!$D70,'CBAT Lookups'!$B$5:$K$12,5),0))","v":""},{"$f":"IF('Project Scope'!$C70=\"\",\"\",IF(COUNTIF('CBAT Lookups'!$B$5:$B$12,\"Controls-\"&CBAT!$D70)=1,VLOOKUP(\"Controls-\"&CBAT!$D70,'CBAT Lookups'!$B$5:$K$12,6),0))","v":""},{"$f":"IF('Project Scope'!$C70=\"\",\"\",IF(COUNTIF('CBAT Lookups'!$B$5:$B$12,\"Controls-\"&CBAT!$D70)=1,VLOOKUP(\"Controls-\"&CBAT!$D70,'CBAT Lookups'!$B$5:$K$12,7),0))","v":""},{"$f":"IF('Project Scope'!$C70=\"\",\"\",IF(VLOOKUP($F70,'CBAT Lookups'!$B$17:$K$19,8)=\"W\",1,IF(COUNTIF('CBAT Lookups'!$B$5:$B$12,\"Controls-\"&CBAT!$D70)=1,VLOOKUP(\"Controls-\"&CBAT!$D70,'CBAT Lookups'!$B$5:$K$12,8),0)*VLOOKUP($F70,'CBAT Lookups'!$B$17:$K$19,8)))","v":""},{"$f":"IF('Project Scope'!$C70=\"\",\"\",IF(VLOOKUP($F70,'CBAT Lookups'!$B$17:$K$19,9)=\"W\",1,IF(COUNTIF('CBAT Lookups'!$B$5:$B$12,\"Controls-\"&CBAT!$D70)=1,VLOOKUP(\"Controls-\"&CBAT!$D70,'CBAT Lookups'!$B$5:$K$12,9),0)*VLOOKUP($F70,'CBAT Lookups'!$B$17:$K$19,9)))","v":""},{"$f":"IF('Project Scope'!$C70=\"\",\"\",IF(COUNTIF('CBAT Lookups'!$B$5:$B$12,\"Controls-\"&CBAT!$D70)=1,VLOOKUP(\"Controls-\"&CBAT!$D70,'CBAT Lookups'!$B$5:$K$12,10),0)*VLOOKUP($F70,'CBAT Lookups'!$B$17:$K$19,10))","v":""},{"$f":"IF('Project Scope'!$C70=\"\",\"\",VLOOKUP($C70,'CBAT Lookups'!$A$33:$B$57,2))","v":""},{"$f":"IF('Project Scope'!$C70=\"\",\"\",IF(COUNTIF('CBAT Lookups'!$B$5:$B$12,\"Controls-\"&CBAT!$D70)=1,VLOOKUP(\"Controls-\"&CBAT!$D70,'CBAT Lookups'!$B$5:$O$12,12),0))","v":""},{"$f":"IF('Project Scope'!$C70=\"\",\"\",IF(COUNTIF('CBAT Lookups'!$B$5:$B$12,\"Controls-\"&CBAT!$D70)=1,VLOOKUP(\"Controls-\"&CBAT!$D70,'CBAT Lookups'!$B$5:$O$12,13),0))","v":""},{"$f":"IF('Project Scope'!$C70=\"\",\"\",IF(COUNTIF('CBAT Lookups'!$B$5:$B$12,\"Controls-\"&CBAT!$D70)=1,VLOOKUP(\"Controls-\"&CBAT!$D70,'CBAT Lookups'!$B$5:$O$12,14),0))","v":""},{"$f":"IF('Project Scope'!$C70=\"\",\"\",'TRM Data'!$U$3)","v":""},{"$f":"IF('Project Scope'!$C70=\"\",\"\",'TRM Data'!$V$3)","v":""},{"$f":"IF('Project Scope'!$C70=\"\",\"\",IF($K70<=0,0,MAX(0,(IF(AND($I70>0,$J70>0),($I70*$J70)/1000,($G70*$H70)/1000)*$L70))*$BT70*$BR70)+($CD70/0.003412))","v":""},{"$f":"IF('Project Scope'!$C70=\"\",\"\",IF($K70<=0,0,MAX(0,IF(AND($I70>0,$J70>0),($I70*$J70)/1000,($G70*$H70)/1000))*$BQ70))","v":""},{"$f":"IF('Project Scope'!$C70=\"\",\"\",IF($K70<=0,0,MAX(0,IF(AND($I70>0,$J70>0),($I70*$J70)/1000,($G70*$H70)/1000))*$BK70))","v":""},{"$f":"IF('Project Scope'!$C70=\"\",\"\",IF($K70<=0,0,MAX(0,IF(AND($I70>0,$J70>0),($I70*$J70)/1000,($G70*$H70)/1000))*$BL70*$BQ70))","v":""},{"$f":"IF('Project Scope'!$C70=\"\",\"\",IF(OR($K70<=0,'Project Information'!$D$44=\"\"),0,-1*MAX(0,IF(AND($I70>0,$J70>0),($I70*$J70)/1000,($G70*$H70)/1000))*$BT70*$L70*$BS70*VLOOKUP('Project Information'!$D$44,'CBAT Lookups'!$A$23:$H$30,2)))","v":""},{"$f":"IF('Project Scope'!$C70=\"\",\"\",IF(OR($K70<=0,'Project Information'!$D$44=\"\"),0,-1*MAX(0,IF(AND($I70>0,$J70>0),($I70*$J70)/1000,($G70*$H70)/1000))*$BT70*$L70*$BS70*VLOOKUP('Project Information'!$D$44,'CBAT Lookups'!$A$23:$H$30,3)))","v":""},{"$f":"IF('Project Scope'!$C70=\"\",\"\",IF(OR($K70<=0,'Project Information'!$D$44=\"\"),0,-1*MAX(0,IF(AND($I70>0,$J70>0),($I70*$J70)/1000,($G70*$H70)/1000))*$BT70*$L70*$BS70*VLOOKUP('Project Information'!$D$44,'CBAT Lookups'!$A$23:$H$30,4)))","v":""},{"$f":"IF('Project Scope'!$C70=\"\",\"\",IF(OR($K70<=0,'Project Information'!$D$44=\"\"),0,-1*MAX(0,IF(AND($I70>0,$J70>0),($I70*$J70)/1000,($G70*$H70)/1000))*$BT70*$L70*$BS70*VLOOKUP('Project Information'!$D$44,'CBAT Lookups'!$A$23:$H$30,5)))","v":""},{"$f":"IF('Project Scope'!$C70=\"\",\"\",IF(OR($K70<=0,'Project Information'!$D$44=\"\"),0,-1*MAX(0,IF(AND($I70>0,$J70>0),($I70*$J70)/1000,($G70*$H70)/1000))*$BT70*$L70*$BS70*VLOOKUP('Project Information'!$D$44,'CBAT Lookups'!$A$23:$H$30,6)))","v":""},{"$f":"IF('Project Scope'!$C70=\"\",\"\",IF(OR($K70<=0,'Project Information'!$D$44=\"\"),0,-1*MAX(0,IF(AND($I70>0,$J70>0),($I70*$J70)/1000,($G70*$H70)/1000))*$BT70*$L70*$BS70*VLOOKUP('Project Information'!$D$44,'CBAT Lookups'!$A$23:$H$30,7)))","v":""},{"$f":"IF('Project Scope'!$C70=\"\",\"\",IF(OR($K70<=0,'Project Information'!$D$44=\"\"),0,-1*MAX(0,IF(AND($I70>0,$J70>0),($I70*$J70)/1000,($G70*$H70)/1000))*$BT70*$L70*$BS70*VLOOKUP('Project Information'!$D$44,'CBAT Lookups'!$A$23:$H$30,8)))","v":""},null,{"$f":"IF('Project Scope'!$C70=\"\",\"\",VLOOKUP($F70,'CBAT Lookups'!$B$17:$K$19,4))","v":""},{"$f":"IF('Project Scope'!$C70=\"\",\"\",VLOOKUP($F70,'CBAT Lookups'!$B$17:$K$19,5))","v":""},{"$f":"IF('Project Scope'!$C70=\"\",\"\",VLOOKUP($F70,'CBAT Lookups'!$B$17:$K$19,6))","v":""},{"$f":"IF('Project Scope'!$C70=\"\",\"\",VLOOKUP($F70,'CBAT Lookups'!$B$17:$K$19,7))","v":""},{"$f":"IF('Project Scope'!$C70=\"\",\"\",IF(SUMPRODUCT($BM70:$BP70,$CL70:$CO70)=0,0,BM70*CL70/SUMPRODUCT($BM70:$BP70,$CL70:$CO70)))","v":""},{"$f":"IF('Project Scope'!$C70=\"\",\"\",IF(SUMPRODUCT($BM70:$BP70,$CL70:$CO70)=0,0,BN70*CM70/SUMPRODUCT($BM70:$BP70,$CL70:$CO70)))","v":""},{"$f":"IF('Project Scope'!$C70=\"\",\"\",IF(SUMPRODUCT($BM70:$BP70,$CL70:$CO70)=0,0,BO70*CN70/SUMPRODUCT($BM70:$BP70,$CL70:$CO70)))","v":""},{"$f":"IF('Project Scope'!$C70=\"\",\"\",IF(SUMPRODUCT($BM70:$BP70,$CL70:$CO70)=0,0,BP70*CO70/SUMPRODUCT($BM70:$BP70,$CL70:$CO70)))","v":""},{"$f":"IF('Project Scope'!$C70=\"\",\"\",Benefits($BZ70,$CB70,$CC70,$CE70,$CF70,$CG70,$CH70,$CI70,$CJ70,$CK70,$BJ70,$CP70,$CQ70,$CR70,$CS70,$BU70,$BV70,$BW70,$BX70,$BY70,$E70))","v":""},"","","","","","","","",null,{"$f":"IF('Project Scope'!$C70=\"\",\"\",SUM('Project Scope'!$BB70,'Project Scope'!$BC70))","v":""},{"$f":"IF('Project Scope'!$C70=\"\",\"\",SUM('Project Scope'!$BH70, 'Project Scope'!$AZ70,(IF(ISNUMBER('Project Scope'!$BA70),'Project Scope'!$BA70,0)*'Project Information'!$D$12)))","v":""},null,null,{"$f":"IF('Project Scope'!$C70=\"\",\"\",IF($J70<=0,0,(SUMPRODUCT($AV70:$BC70,--($AV70:$BC70>0))+$BE70)*$DK70/((-SUMPRODUCT($AV70:$BC70,--($AV70:$BC70<0))+$BG70+$BH70+$BI70)*$DK70)))","v":""},{"$f":"IF('Project Scope'!$C70=\"\",\"\",IF($K70<=0,0,(SUMPRODUCT($CT70:$DA70,--($CT70:$DA70>0))+$DC70)*$DK70/((-SUMPRODUCT($CT70:$DA70,--($CT70:$DA70<0))+$DE70+$DF70+$DG70)*$DK70)))","v":""},{"$f":"IF('Project Scope'!$C70=\"\",\"\",IF(AND($J70<=0,$K70<=0),0,(SUMPRODUCT($AV70:$BC70,--($AV70:$BC70>0))+$BE70+SUMPRODUCT($CT70:$DA70,--($CT70:$DA70>0))+$DC70)*$DK70/((-SUMPRODUCT($AV70:$BC70,--($AV70:$BC70<0))+$BG70+$BH70+$BI70-SUMPRODUCT($CT70:$DA70,--($CT70:$DA70<0))+$DE70+$DF70+$DG70)*$DK70)))","v":""},{"$f":"IF('Project Scope'!$C70=\"\",\"\",IF(NetOrGross=\"Net\",(1-Z70+AA70),1))","v":""}]
[{"$f":"'Project Scope'!$B71","v":64},{"$f":"IF('Project Scope'!$C71=\"\",\"\",'Project Scope'!$C71)","v":""},{"$f":"IF('Project Scope'!$C71=\"\",\"\",'Project Scope'!$H71)","v":""},{"$f":"IF(ISNUMBER(SEARCH(\"Bay\",'Project Scope'!$Q71)),\"Bay\",IF('Project Scope'!C71=\"\",\"\",'Project Scope'!E71))","v":""},{"$f":"IF('Project Scope'!$C71=\"\",\"\",\"Com\")","v":""},{"$f":"IF('Project Scope'!$C71=\"\",\"\",'Project Scope'!$L71)","v":""},{"$f":"IF('Project Scope'!$C71=\"\",\"\",IF('Project Scope'!$CJ71=\"\",0,'Project Scope'!$CJ71))","v":""},{"$f":"IF('Project Scope'!$C71=\"\",\"\",IF('Project Scope'!$N71=\"\",0,'Project Scope'!$N71))","v":""},{"$f":"IF('Project Scope'!$C71=\"\",\"\",IF('Project Scope'!$CK71=\"\",0,'Project Scope'!$CK71))","v":""},{"$f":"IF('Project Scope'!$C71=\"\",\"\",IF('Project Scope'!$AO71=\"\",0,'Project Scope'!$AO71))","v":""},{"$f":"IF('Project Scope'!$C71=\"\",\"\",IF('Project Scope'!$AX71=\"\",0,'Project Scope'!$AX71))","v":""},{"$f":"IF('Project Scope'!$C71=\"\",\"\",IF('Project Scope'!$M71=\"\",0,'Project Scope'!$M71))","v":""},{"$f":"IF('Project Scope'!$C71=\"\",\"\",IF(COUNTIF('CBAT Lookups'!$B$5:$B$12,\"Fixtures-\"&CBAT!$D71)=1,VLOOKUP(\"Fixtures-\"&CBAT!$D71,'CBAT Lookups'!$B$5:$L$12,11),0))","v":""},{"$f":"IF('Project Scope'!$C71=\"\",\"\",(IF(COUNTIF('CBAT Lookups'!$B$5:$B$12,\"Fixtures-\"&CBAT!$D71)=1,VLOOKUP(\"Fixtures-\"&CBAT!$D71,'CBAT Lookups'!$B$5:$K$12,2),0))*VLOOKUP($F71,'CBAT Lookups'!$B$17:$K$19,2))","v":""},{"$f":"IF('Project Scope'!$C71=\"\",\"\",(IF(COUNTIF('CBAT Lookups'!$B$5:$B$12,\"Fixtures-\"&CBAT!$D71)=1,VLOOKUP(\"Fixtures-\"&CBAT!$D71,'CBAT Lookups'!$B$5:$K$12,3),0))*VLOOKUP($F71,'CBAT Lookups'!$B$17:$K$19,3))","v":""},{"$f":"IF('Project Scope'!$C71=\"\",\"\",(IF(COUNTIF('CBAT Lookups'!$B$5:$B$12,\"Fixtures-\"&CBAT!$D71)=1,VLOOKUP(\"Fixtures-\"&CBAT!$D71,'CBAT Lookups'!$B$5:$K$12,4),0)))","v":""},{"$f":"IF('Project Scope'!$C71=\"\",\"\",(IF(COUNTIF('CBAT Lookups'!$B$5:$B$12,\"Fixtures-\"&CBAT!$D71)=1,VLOOKUP(\"Fixtures-\"&CBAT!$D71,'CBAT Lookups'!$B$5:$K$12,5),0)))","v":""},{"$f":"IF('Project Scope'!$C71=\"\",\"\",(IF(COUNTIF('CBAT Lookups'!$B$5:$B$12,\"Fixtures-\"&CBAT!$D71)=1,VLOOKUP(\"Fixtures-\"&CBAT!$D71,'CBAT Lookups'!$B$5:$K$12,6),0)))","v":""},{"$f":"IF('Project Scope'!$C71=\"\",\"\",IF(COUNTIF('CBAT Lookups'!$B$5:$B$12,\"Fixtures-\"&CBAT!$D71)=1,VLOOKUP(\"Fixtures-\"&CBAT!$D71,'CBAT Lookups'!$B$5:$K$12,7),0))","v":""},{"$f":"IF('Project Scope'!$C71=\"\",\"\",IF(VLOOKUP($F71,'CBAT Lookups'!$B$17:$K$19,8)=\"W\",1,IF(COUNTIF('CBAT Lookups'!$B$5:$B$12,\"Fixtures-\"&CBAT!$D71)=1,VLOOKUP(\"Fixtures-\"&CBAT!$D71,'CBAT Lookups'!$B$5:$K$12,8),0)*VLOOKUP($F71,'CBAT Lookups'!$B$17:$K$19,8)))","v":""},{"$f":"IF('Project Scope'!$C71=\"\",\"\",IF(VLOOKUP($F71,'CBAT Lookups'!$B$17:$K$19,9)=\"W\",1,IF(COUNTIF('CBAT Lookups'!$B$5:$B$12,\"Fixtures-\"&CBAT!$D71)=1,VLOOKUP(\"Fixtures-\"&CBAT!$D71,'CBAT Lookups'!$B$5:$K$12,9),0)*VLOOKUP($F71,'CBAT Lookups'!$B$17:$K$19,9)))","v":""},{"$f":"IF('Project Scope'!$C71=\"\",\"\",IF(COUNTIF('CBAT Lookups'!$B$5:$B$12,\"Fixtures-\"&CBAT!$D71)=1,VLOOKUP(\"Fixtures-\"&CBAT!$D71,'CBAT Lookups'!$B$5:$K$12,10),0)*VLOOKUP($F71,'CBAT Lookups'!$B$17:$K$19,10))","v":""},{"$f":"IF('Project Scope'!$C71=\"\",\"\",IF(COUNTIF('CBAT Lookups'!$B$5:$B$12,\"Fixtures-\"&CBAT!$D71)=1,VLOOKUP(\"Fixtures-\"&CBAT!$D71,'CBAT Lookups'!$B$5:$O$12,12),0))","v":""},{"$f":"IF('Project Scope'!$C71=\"\",\"\",IF(COUNTIF('CBAT Lookups'!$B$5:$B$12,\"Fixtures-\"&CBAT!$D71)=1,VLOOKUP(\"Fixtures-\"&CBAT!$D71,'CBAT Lookups'!$B$5:$O$12,13),0))","v":""},{"$f":"IF('Project Scope'!$C71=\"\",\"\",IF(COUNTIF('CBAT Lookups'!$B$5:$B$12,\"Fixtures-\"&CBAT!$D71)=1,VLOOKUP(\"Fixtures-\"&CBAT!$D71,'CBAT Lookups'!$B$5:$O$12,14),0))","v":""},{"$f":"IF('Project Scope'!$C71=\"\",\"\",'TRM Data'!$U$3)","v":""},{"$f":"IF('Project Scope'!$C71=\"\",\"\",'TRM Data'!$V$3)","v":""},{"$f":"IF('Project Scope'!$C71=\"\",\"\",IF($J71<=0,0,MAX(0,(($G71*$H71/1000)-($I71*$J71/1000))*$L71)*$U71)+($AF71/0.003412))","v":""},{"$f":"IF('Project Scope'!$C71=\"\",\"\",IF($J71<=0,0,MAX(0,(($G71*$H71/1000)-($I71*$J71/1000)))*$T71))","v":""},{"$f":"IF('Project Scope'!$C71=\"\",\"\",IF($J71<=0,0,MAX(0,(($G71*$H71/1000)-($I71*$J71/1000))*$N71)))","v":""},{"$f":"IF('Project Scope'!$C71=\"\",\"\",IF($J71<=0,0,MAX(0,(($G71*$H71/1000)-($I71*$J71/1000))*$O71)*$T71))","v":""},{"$f":"IF('Project Scope'!$C71=\"\",\"\",IF(OR($J71<=0,'Project Information'!$D$44=\"\"),0,-1*MAX(0,(($G71*$H71/1000)-($I71*$J71/1000))*$L71)*$V71*VLOOKUP('Project Information'!$D$44,'CBAT Lookups'!$A$23:$H$30,2)))","v":""},{"$f":"IF('Project Scope'!$C71=\"\",\"\",IF(OR($J71<=0,'Project Information'!$D$44=\"\"),0,-1*MAX(0,(($G71*$H71/1000)-($I71*$J71/1000))*$L71)*$V71*VLOOKUP('Project Information'!$D$44,'CBAT Lookups'!$A$23:$H$30,3)))","v":""},{"$f":"IF('Project Scope'!$C71=\"\",\"\",IF(OR($J71<=0,'Project Information'!$D$44=\"\"),0,-1*MAX(0,(($G71*$H71/1000)-($I71*$J71/1000))*$L71)*$V71*VLOOKUP('Project Information'!$D$44,'CBAT Lookups'!$A$23:$H$30,4)))","v":""},{"$f":"IF('Project Scope'!$C71=\"\",\"\",IF(OR($J71<=0,'Project Information'!$D$44=\"\"),0,-1*MAX(0,(($G71*$H71/1000)-($I71*$J71/1000))*$L71)*$V71*VLOOKUP('Project Information'!$D$44,'CBAT Lookups'!$A$23:$H$30,5)))","v":""},{"$f":"IF('Project Scope'!$C71=\"\",\"\",IF(OR($J71<=0,'Project Information'!$D$44=\"\"),0,-1*MAX(0,(($G71*$H71/1000)-($I71*$J71/1000))*$L71)*$V71*VLOOKUP('Project Information'!$D$44,'CBAT Lookups'!$A$23:$H$30,6)))","v":""},{"$f":"IF('Project Scope'!$C71=\"\",\"\",IF(OR($J71<=0,'Project Information'!$D$44=\"\"),0,-1*MAX(0,(($G71*$H71/1000)-($I71*$J71/1000))*$L71)*$V71*VLOOKUP('Project Information'!$D$44,'CBAT Lookups'!$A$23:$H$30,7)))","v":""},{"$f":"IF('Project Scope'!$C71=\"\",\"\",IF(OR($J71<=0,'Project Information'!$D$44=\"\"),0,-1*MAX(0,(($G71*$H71/1000)-($I71*$J71/1000))*$L71)*$V71*VLOOKUP('Project Information'!$D$44,'CBAT Lookups'!$A$23:$H$30,8)))","v":""},null,{"$f":"IF('Project Scope'!$C71=\"\",\"\",VLOOKUP($F71,'CBAT Lookups'!$B$17:$K$19,4))","v":""},{"$f":"IF('Project Scope'!$C71=\"\",\"\",VLOOKUP($F71,'CBAT Lookups'!$B$17:$K$19,5))","v":""},{"$f":"IF('Project Scope'!$C71=\"\",\"\",VLOOKUP($F71,'CBAT Lookups'!$B$17:$K$19,6))","v":""},{"$f":"IF('Project Scope'!$C71=\"\",\"\",VLOOKUP($F71,'CBAT Lookups'!$B$17:$K$19,7))","v":""},{"$f":"IF('Project Scope'!$C71=\"\",\"\",IF(SUMPRODUCT($P71:$S71,$AN71:$AQ71)=0,0,P71*AN71/SUMPRODUCT($P71:$S71,$AN71:$AQ71)))","v":""},{"$f":"IF('Project Scope'!$C71=\"\",\"\",IF(SUMPRODUCT($P71:$S71,$AN71:$AQ71)=0,0,Q71*AO71/SUMPRODUCT($P71:$S71,$AN71:$AQ71)))","v":""},{"$f":"IF('Project Scope'!$C71=\"\",\"\",IF(SUMPRODUCT($P71:$S71,$AN71:$AQ71)=0,0,R71*AP71/SUMPRODUCT($P71:$S71,$AN71:$AQ71)))","v":""},{"$f":"IF('Project Scope'!$C71=\"\",\"\",IF(SUMPRODUCT($P71:$S71,$AN71:$AQ71)=0,0,S71*AQ71/SUMPRODUCT($P71:$S71,$AN71:$AQ71)))","v":""},{"$f":"IF('Project Scope'!$C71=\"\",\"\",Benefits($AB71,$AD71,$AE71,$AG71,$AH71,$AI71,$AJ71,$AK71,$AL71,$AM71,$M71,$AR71,$AS71,$AT71,$AU71,$W71,$X71,$Y71,$Z71,$AA71,$E71))","v":""},"","","","","","","","",null,{"$f":"IF('Project Scope'!$C71=\"\",\"\",SUM('Project Scope'!$AT71,'Project Scope'!$AU71))","v":""},{"$f":"IF('Project Scope'!$C71=\"\",\"\",SUM('Project Scope'!$BG71, 'Project Scope'!$AR71,(IF(ISNUMBER('Project Scope'!$AS71),'Project Scope'!$AS71,0)*'Project Information'!$D$12)))","v":""},null,null,{"$f":"IF('Project Scope'!$C71=\"\",\"\",IF(COUNTIF('CBAT Lookups'!$B$5:$B$12,\"Controls-\"&CBAT!$D71)=1,VLOOKUP(\"Controls-\"&CBAT!$D71,'CBAT Lookups'!$B$5:$L$12,11),0))","v":""},{"$f":"IF('Project Scope'!$C71=\"\",\"\",IF(COUNTIF('CBAT Lookups'!$B$5:$B$12,\"Controls-\"&CBAT!$D71)=1,VLOOKUP(\"Controls-\"&CBAT!$D71,'CBAT Lookups'!$B$5:$K$12,2),0)*VLOOKUP($F71,'CBAT Lookups'!$B$17:$K$19,2))","v":""},{"$f":"IF('Project Scope'!$C71=\"\",\"\",IF(COUNTIF('CBAT Lookups'!$B$5:$B$12,\"Controls-\"&CBAT!$D71)=1,VLOOKUP(\"Controls-\"&CBAT!$D71,'CBAT Lookups'!$B$5:$K$12,3),0)*VLOOKUP($F71,'CBAT Lookups'!$B$17:$K$19,3))","v":""},{"$f":"IF('Project Scope'!$C71=\"\",\"\",IF(COUNTIF('CBAT Lookups'!$B$5:$B$12,\"Controls-\"&CBAT!$D71)=1,VLOOKUP(\"Controls-\"&CBAT!$D71,'CBAT Lookups'!$B$5:$K$12,4),0))","v":""},{"$f":"IF('Project Scope'!$C71=\"\",\"\",IF(COUNTIF('CBAT Lookups'!$B$5:$B$12,\"Controls-\"&CBAT!$D71)=1,VLOOKUP(\"Controls-\"&CBAT!$D71,'CBAT Lookups'!$B$5:$K$12,5),0))","v":""},{"$f":"IF('Project Scope'!$C71=\"\",\"\",IF(COUNTIF('CBAT Lookups'!$B$5:$B$12,\"Controls-\"&CBAT!$D71)=1,VLOOKUP(\"Controls-\"&CBAT!$D71,'CBAT Lookups'!$B$5:$K$12,6),0))","v":""},{"$f":"IF('Project Scope'!$C71=\"\",\"\",IF(COUNTIF('CBAT Lookups'!$B$5:$B$12,\"Controls-\"&CBAT!$D71)=1,VLOOKUP(\"Controls-\"&CBAT!$D71,'CBAT Lookups'!$B$5:$K$12,7),0))","v":""},{"$f":"IF('Project Scope'!$C71=\"\",\"\",IF(VLOOKUP($F71,'CBAT Lookups'!$B$17:$K$19,8)=\"W\",1,IF(COUNTIF('CBAT Lookups'!$B$5:$B$12,\"Controls-\"&CBAT!$D71)=1,VLOOKUP(\"Controls-\"&CBAT!$D71,'CBAT Lookups'!$B$5:$K$12,8),0)*VLOOKUP($F71,'CBAT Lookups'!$B$17:$K$19,8)))","v":""},{"$f":"IF('Project Scope'!$C71=\"\",\"\",IF(VLOOKUP($F71,'CBAT Lookups'!$B$17:$K$19,9)=\"W\",1,IF(COUNTIF('CBAT Lookups'!$B$5:$B$12,\"Controls-\"&CBAT!$D71)=1,VLOOKUP(\"Controls-\"&CBAT!$D71,'CBAT Lookups'!$B$5:$K$12,9),0)*VLOOKUP($F71,'CBAT Lookups'!$B$17:$K$19,9)))","v":""},{"$f":"IF('Project Scope'!$C71=\"\",\"\",IF(COUNTIF('CBAT Lookups'!$B$5:$B$12,\"Controls-\"&CBAT!$D71)=1,VLOOKUP(\"Controls-\"&CBAT!$D71,'CBAT Lookups'!$B$5:$K$12,10),0)*VLOOKUP($F71,'CBAT Lookups'!$B$17:$K$19,10))","v":""},{"$f":"IF('Project Scope'!$C71=\"\",\"\",VLOOKUP($C71,'CBAT Lookups'!$A$33:$B$57,2))","v":""},{"$f":"IF('Project Scope'!$C71=\"\",\"\",IF(COUNTIF('CBAT Lookups'!$B$5:$B$12,\"Controls-\"&CBAT!$D71)=1,VLOOKUP(\"Controls-\"&CBAT!$D71,'CBAT Lookups'!$B$5:$O$12,12),0))","v":""},{"$f":"IF('Project Scope'!$C71=\"\",\"\",IF(COUNTIF('CBAT Lookups'!$B$5:$B$12,\"Controls-\"&CBAT!$D71)=1,VLOOKUP(\"Controls-\"&CBAT!$D71,'CBAT Lookups'!$B$5:$O$12,13),0))","v":""},{"$f":"IF('Project Scope'!$C71=\"\",\"\",IF(COUNTIF('CBAT Lookups'!$B$5:$B$12,\"Controls-\"&CBAT!$D71)=1,VLOOKUP(\"Controls-\"&CBAT!$D71,'CBAT Lookups'!$B$5:$O$12,14),0))","v":""},{"$f":"IF('Project Scope'!$C71=\"\",\"\",'TRM Data'!$U$3)","v":""},{"$f":"IF('Project Scope'!$C71=\"\",\"\",'TRM Data'!$V$3)","v":""},{"$f":"IF('Project Scope'!$C71=\"\",\"\",IF($K71<=0,0,MAX(0,(IF(AND($I71>0,$J71>0),($I71*$J71)/1000,($G71*$H71)/1000)*$L71))*$BT71*$BR71)+($CD71/0.003412))","v":""},{"$f":"IF('Project Scope'!$C71=\"\",\"\",IF($K71<=0,0,MAX(0,IF(AND($I71>0,$J71>0),($I71*$J71)/1000,($G71*$H71)/1000))*$BQ71))","v":""},{"$f":"IF('Project Scope'!$C71=\"\",\"\",IF($K71<=0,0,MAX(0,IF(AND($I71>0,$J71>0),($I71*$J71)/1000,($G71*$H71)/1000))*$BK71))","v":""},{"$f":"IF('Project Scope'!$C71=\"\",\"\",IF($K71<=0,0,MAX(0,IF(AND($I71>0,$J71>0),($I71*$J71)/1000,($G71*$H71)/1000))*$BL71*$BQ71))","v":""},{"$f":"IF('Project Scope'!$C71=\"\",\"\",IF(OR($K71<=0,'Project Information'!$D$44=\"\"),0,-1*MAX(0,IF(AND($I71>0,$J71>0),($I71*$J71)/1000,($G71*$H71)/1000))*$BT71*$L71*$BS71*VLOOKUP('Project Information'!$D$44,'CBAT Lookups'!$A$23:$H$30,2)))","v":""},{"$f":"IF('Project Scope'!$C71=\"\",\"\",IF(OR($K71<=0,'Project Information'!$D$44=\"\"),0,-1*MAX(0,IF(AND($I71>0,$J71>0),($I71*$J71)/1000,($G71*$H71)/1000))*$BT71*$L71*$BS71*VLOOKUP('Project Information'!$D$44,'CBAT Lookups'!$A$23:$H$30,3)))","v":""},{"$f":"IF('Project Scope'!$C71=\"\",\"\",IF(OR($K71<=0,'Project Information'!$D$44=\"\"),0,-1*MAX(0,IF(AND($I71>0,$J71>0),($I71*$J71)/1000,($G71*$H71)/1000))*$BT71*$L71*$BS71*VLOOKUP('Project Information'!$D$44,'CBAT Lookups'!$A$23:$H$30,4)))","v":""},{"$f":"IF('Project Scope'!$C71=\"\",\"\",IF(OR($K71<=0,'Project Information'!$D$44=\"\"),0,-1*MAX(0,IF(AND($I71>0,$J71>0),($I71*$J71)/1000,($G71*$H71)/1000))*$BT71*$L71*$BS71*VLOOKUP('Project Information'!$D$44,'CBAT Lookups'!$A$23:$H$30,5)))","v":""},{"$f":"IF('Project Scope'!$C71=\"\",\"\",IF(OR($K71<=0,'Project Information'!$D$44=\"\"),0,-1*MAX(0,IF(AND($I71>0,$J71>0),($I71*$J71)/1000,($G71*$H71)/1000))*$BT71*$L71*$BS71*VLOOKUP('Project Information'!$D$44,'CBAT Lookups'!$A$23:$H$30,6)))","v":""},{"$f":"IF('Project Scope'!$C71=\"\",\"\",IF(OR($K71<=0,'Project Information'!$D$44=\"\"),0,-1*MAX(0,IF(AND($I71>0,$J71>0),($I71*$J71)/1000,($G71*$H71)/1000))*$BT71*$L71*$BS71*VLOOKUP('Project Information'!$D$44,'CBAT Lookups'!$A$23:$H$30,7)))","v":""},{"$f":"IF('Project Scope'!$C71=\"\",\"\",IF(OR($K71<=0,'Project Information'!$D$44=\"\"),0,-1*MAX(0,IF(AND($I71>0,$J71>0),($I71*$J71)/1000,($G71*$H71)/1000))*$BT71*$L71*$BS71*VLOOKUP('Project Information'!$D$44,'CBAT Lookups'!$A$23:$H$30,8)))","v":""},null,{"$f":"IF('Project Scope'!$C71=\"\",\"\",VLOOKUP($F71,'CBAT Lookups'!$B$17:$K$19,4))","v":""},{"$f":"IF('Project Scope'!$C71=\"\",\"\",VLOOKUP($F71,'CBAT Lookups'!$B$17:$K$19,5))","v":""},{"$f":"IF('Project Scope'!$C71=\"\",\"\",VLOOKUP($F71,'CBAT Lookups'!$B$17:$K$19,6))","v":""},{"$f":"IF('Project Scope'!$C71=\"\",\"\",VLOOKUP($F71,'CBAT Lookups'!$B$17:$K$19,7))","v":""},{"$f":"IF('Project Scope'!$C71=\"\",\"\",IF(SUMPRODUCT($BM71:$BP71,$CL71:$CO71)=0,0,BM71*CL71/SUMPRODUCT($BM71:$BP71,$CL71:$CO71)))","v":""},{"$f":"IF('Project Scope'!$C71=\"\",\"\",IF(SUMPRODUCT($BM71:$BP71,$CL71:$CO71)=0,0,BN71*CM71/SUMPRODUCT($BM71:$BP71,$CL71:$CO71)))","v":""},{"$f":"IF('Project Scope'!$C71=\"\",\"\",IF(SUMPRODUCT($BM71:$BP71,$CL71:$CO71)=0,0,BO71*CN71/SUMPRODUCT($BM71:$BP71,$CL71:$CO71)))","v":""},{"$f":"IF('Project Scope'!$C71=\"\",\"\",IF(SUMPRODUCT($BM71:$BP71,$CL71:$CO71)=0,0,BP71*CO71/SUMPRODUCT($BM71:$BP71,$CL71:$CO71)))","v":""},{"$f":"IF('Project Scope'!$C71=\"\",\"\",Benefits($BZ71,$CB71,$CC71,$CE71,$CF71,$CG71,$CH71,$CI71,$CJ71,$CK71,$BJ71,$CP71,$CQ71,$CR71,$CS71,$BU71,$BV71,$BW71,$BX71,$BY71,$E71))","v":""},"","","","","","","","",null,{"$f":"IF('Project Scope'!$C71=\"\",\"\",SUM('Project Scope'!$BB71,'Project Scope'!$BC71))","v":""},{"$f":"IF('Project Scope'!$C71=\"\",\"\",SUM('Project Scope'!$BH71, 'Project Scope'!$AZ71,(IF(ISNUMBER('Project Scope'!$BA71),'Project Scope'!$BA71,0)*'Project Information'!$D$12)))","v":""},null,null,{"$f":"IF('Project Scope'!$C71=\"\",\"\",IF($J71<=0,0,(SUMPRODUCT($AV71:$BC71,--($AV71:$BC71>0))+$BE71)*$DK71/((-SUMPRODUCT($AV71:$BC71,--($AV71:$BC71<0))+$BG71+$BH71+$BI71)*$DK71)))","v":""},{"$f":"IF('Project Scope'!$C71=\"\",\"\",IF($K71<=0,0,(SUMPRODUCT($CT71:$DA71,--($CT71:$DA71>0))+$DC71)*$DK71/((-SUMPRODUCT($CT71:$DA71,--($CT71:$DA71<0))+$DE71+$DF71+$DG71)*$DK71)))","v":""},{"$f":"IF('Project Scope'!$C71=\"\",\"\",IF(AND($J71<=0,$K71<=0),0,(SUMPRODUCT($AV71:$BC71,--($AV71:$BC71>0))+$BE71+SUMPRODUCT($CT71:$DA71,--($CT71:$DA71>0))+$DC71)*$DK71/((-SUMPRODUCT($AV71:$BC71,--($AV71:$BC71<0))+$BG71+$BH71+$BI71-SUMPRODUCT($CT71:$DA71,--($CT71:$DA71<0))+$DE71+$DF71+$DG71)*$DK71)))","v":""},{"$f":"IF('Project Scope'!$C71=\"\",\"\",IF(NetOrGross=\"Net\",(1-Z71+AA71),1))","v":""}]
[{"$f":"'Project Scope'!$B72","v":65},{"$f":"IF('Project Scope'!$C72=\"\",\"\",'Project Scope'!$C72)","v":""},{"$f":"IF('Project Scope'!$C72=\"\",\"\",'Project Scope'!$H72)","v":""},{"$f":"IF(ISNUMBER(SEARCH(\"Bay\",'Project Scope'!$Q72)),\"Bay\",IF('Project Scope'!C72=\"\",\"\",'Project Scope'!E72))","v":""},{"$f":"IF('Project Scope'!$C72=\"\",\"\",\"Com\")","v":""},{"$f":"IF('Project Scope'!$C72=\"\",\"\",'Project Scope'!$L72)","v":""},{"$f":"IF('Project Scope'!$C72=\"\",\"\",IF('Project Scope'!$CJ72=\"\",0,'Project Scope'!$CJ72))","v":""},{"$f":"IF('Project Scope'!$C72=\"\",\"\",IF('Project Scope'!$N72=\"\",0,'Project Scope'!$N72))","v":""},{"$f":"IF('Project Scope'!$C72=\"\",\"\",IF('Project Scope'!$CK72=\"\",0,'Project Scope'!$CK72))","v":""},{"$f":"IF('Project Scope'!$C72=\"\",\"\",IF('Project Scope'!$AO72=\"\",0,'Project Scope'!$AO72))","v":""},{"$f":"IF('Project Scope'!$C72=\"\",\"\",IF('Project Scope'!$AX72=\"\",0,'Project Scope'!$AX72))","v":""},{"$f":"IF('Project Scope'!$C72=\"\",\"\",IF('Project Scope'!$M72=\"\",0,'Project Scope'!$M72))","v":""},{"$f":"IF('Project Scope'!$C72=\"\",\"\",IF(COUNTIF('CBAT Lookups'!$B$5:$B$12,\"Fixtures-\"&CBAT!$D72)=1,VLOOKUP(\"Fixtures-\"&CBAT!$D72,'CBAT Lookups'!$B$5:$L$12,11),0))","v":""},{"$f":"IF('Project Scope'!$C72=\"\",\"\",(IF(COUNTIF('CBAT Lookups'!$B$5:$B$12,\"Fixtures-\"&CBAT!$D72)=1,VLOOKUP(\"Fixtures-\"&CBAT!$D72,'CBAT Lookups'!$B$5:$K$12,2),0))*VLOOKUP($F72,'CBAT Lookups'!$B$17:$K$19,2))","v":""},{"$f":"IF('Project Scope'!$C72=\"\",\"\",(IF(COUNTIF('CBAT Lookups'!$B$5:$B$12,\"Fixtures-\"&CBAT!$D72)=1,VLOOKUP(\"Fixtures-\"&CBAT!$D72,'CBAT Lookups'!$B$5:$K$12,3),0))*VLOOKUP($F72,'CBAT Lookups'!$B$17:$K$19,3))","v":""},{"$f":"IF('Project Scope'!$C72=\"\",\"\",(IF(COUNTIF('CBAT Lookups'!$B$5:$B$12,\"Fixtures-\"&CBAT!$D72)=1,VLOOKUP(\"Fixtures-\"&CBAT!$D72,'CBAT Lookups'!$B$5:$K$12,4),0)))","v":""},{"$f":"IF('Project Scope'!$C72=\"\",\"\",(IF(COUNTIF('CBAT Lookups'!$B$5:$B$12,\"Fixtures-\"&CBAT!$D72)=1,VLOOKUP(\"Fixtures-\"&CBAT!$D72,'CBAT Lookups'!$B$5:$K$12,5),0)))","v":""},{"$f":"IF('Project Scope'!$C72=\"\",\"\",(IF(COUNTIF('CBAT Lookups'!$B$5:$B$12,\"Fixtures-\"&CBAT!$D72)=1,VLOOKUP(\"Fixtures-\"&CBAT!$D72,'CBAT Lookups'!$B$5:$K$12,6),0)))","v":""},{"$f":"IF('Project Scope'!$C72=\"\",\"\",IF(COUNTIF('CBAT Lookups'!$B$5:$B$12,\"Fixtures-\"&CBAT!$D72)=1,VLOOKUP(\"Fixtures-\"&CBAT!$D72,'CBAT Lookups'!$B$5:$K$12,7),0))","v":""},{"$f":"IF('Project Scope'!$C72=\"\",\"\",IF(VLOOKUP($F72,'CBAT Lookups'!$B$17:$K$19,8)=\"W\",1,IF(COUNTIF('CBAT Lookups'!$B$5:$B$12,\"Fixtures-\"&CBAT!$D72)=1,VLOOKUP(\"Fixtures-\"&CBAT!$D72,'CBAT Lookups'!$B$5:$K$12,8),0)*VLOOKUP($F72,'CBAT Lookups'!$B$17:$K$19,8)))","v":""},{"$f":"IF('Project Scope'!$C72=\"\",\"\",IF(VLOOKUP($F72,'CBAT Lookups'!$B$17:$K$19,9)=\"W\",1,IF(COUNTIF('CBAT Lookups'!$B$5:$B$12,\"Fixtures-\"&CBAT!$D72)=1,VLOOKUP(\"Fixtures-\"&CBAT!$D72,'CBAT Lookups'!$B$5:$K$12,9),0)*VLOOKUP($F72,'CBAT Lookups'!$B$17:$K$19,9)))","v":""},{"$f":"IF('Project Scope'!$C72=\"\",\"\",IF(COUNTIF('CBAT Lookups'!$B$5:$B$12,\"Fixtures-\"&CBAT!$D72)=1,VLOOKUP(\"Fixtures-\"&CBAT!$D72,'CBAT Lookups'!$B$5:$K$12,10),0)*VLOOKUP($F72,'CBAT Lookups'!$B$17:$K$19,10))","v":""},{"$f":"IF('Project Scope'!$C72=\"\",\"\",IF(COUNTIF('CBAT Lookups'!$B$5:$B$12,\"Fixtures-\"&CBAT!$D72)=1,VLOOKUP(\"Fixtures-\"&CBAT!$D72,'CBAT Lookups'!$B$5:$O$12,12),0))","v":""},{"$f":"IF('Project Scope'!$C72=\"\",\"\",IF(COUNTIF('CBAT Lookups'!$B$5:$B$12,\"Fixtures-\"&CBAT!$D72)=1,VLOOKUP(\"Fixtures-\"&CBAT!$D72,'CBAT Lookups'!$B$5:$O$12,13),0))","v":""},{"$f":"IF('Project Scope'!$C72=\"\",\"\",IF(COUNTIF('CBAT Lookups'!$B$5:$B$12,\"Fixtures-\"&CBAT!$D72)=1,VLOOKUP(\"Fixtures-\"&CBAT!$D72,'CBAT Lookups'!$B$5:$O$12,14),0))","v":""},{"$f":"IF('Project Scope'!$C72=\"\",\"\",'TRM Data'!$U$3)","v":""},{"$f":"IF('Project Scope'!$C72=\"\",\"\",'TRM Data'!$V$3)","v":""},{"$f":"IF('Project Scope'!$C72=\"\",\"\",IF($J72<=0,0,MAX(0,(($G72*$H72/1000)-($I72*$J72/1000))*$L72)*$U72)+($AF72/0.003412))","v":""},{"$f":"IF('Project Scope'!$C72=\"\",\"\",IF($J72<=0,0,MAX(0,(($G72*$H72/1000)-($I72*$J72/1000)))*$T72))","v":""},{"$f":"IF('Project Scope'!$C72=\"\",\"\",IF($J72<=0,0,MAX(0,(($G72*$H72/1000)-($I72*$J72/1000))*$N72)))","v":""},{"$f":"IF('Project Scope'!$C72=\"\",\"\",IF($J72<=0,0,MAX(0,(($G72*$H72/1000)-($I72*$J72/1000))*$O72)*$T72))","v":""},{"$f":"IF('Project Scope'!$C72=\"\",\"\",IF(OR($J72<=0,'Project Information'!$D$44=\"\"),0,-1*MAX(0,(($G72*$H72/1000)-($I72*$J72/1000))*$L72)*$V72*VLOOKUP('Project Information'!$D$44,'CBAT Lookups'!$A$23:$H$30,2)))","v":""},{"$f":"IF('Project Scope'!$C72=\"\",\"\",IF(OR($J72<=0,'Project Information'!$D$44=\"\"),0,-1*MAX(0,(($G72*$H72/1000)-($I72*$J72/1000))*$L72)*$V72*VLOOKUP('Project Information'!$D$44,'CBAT Lookups'!$A$23:$H$30,3)))","v":""},{"$f":"IF('Project Scope'!$C72=\"\",\"\",IF(OR($J72<=0,'Project Information'!$D$44=\"\"),0,-1*MAX(0,(($G72*$H72/1000)-($I72*$J72/1000))*$L72)*$V72*VLOOKUP('Project Information'!$D$44,'CBAT Lookups'!$A$23:$H$30,4)))","v":""},{"$f":"IF('Project Scope'!$C72=\"\",\"\",IF(OR($J72<=0,'Project Information'!$D$44=\"\"),0,-1*MAX(0,(($G72*$H72/1000)-($I72*$J72/1000))*$L72)*$V72*VLOOKUP('Project Information'!$D$44,'CBAT Lookups'!$A$23:$H$30,5)))","v":""},{"$f":"IF('Project Scope'!$C72=\"\",\"\",IF(OR($J72<=0,'Project Information'!$D$44=\"\"),0,-1*MAX(0,(($G72*$H72/1000)-($I72*$J72/1000))*$L72)*$V72*VLOOKUP('Project Information'!$D$44,'CBAT Lookups'!$A$23:$H$30,6)))","v":""},{"$f":"IF('Project Scope'!$C72=\"\",\"\",IF(OR($J72<=0,'Project Information'!$D$44=\"\"),0,-1*MAX(0,(($G72*$H72/1000)-($I72*$J72/1000))*$L72)*$V72*VLOOKUP('Project Information'!$D$44,'CBAT Lookups'!$A$23:$H$30,7)))","v":""},{"$f":"IF('Project Scope'!$C72=\"\",\"\",IF(OR($J72<=0,'Project Information'!$D$44=\"\"),0,-1*MAX(0,(($G72*$H72/1000)-($I72*$J72/1000))*$L72)*$V72*VLOOKUP('Project Information'!$D$44,'CBAT Lookups'!$A$23:$H$30,8)))","v":""},null,{"$f":"IF('Project Scope'!$C72=\"\",\"\",VLOOKUP($F72,'CBAT Lookups'!$B$17:$K$19,4))","v":""},{"$f":"IF('Project Scope'!$C72=\"\",\"\",VLOOKUP($F72,'CBAT Lookups'!$B$17:$K$19,5))","v":""},{"$f":"IF('Project Scope'!$C72=\"\",\"\",VLOOKUP($F72,'CBAT Lookups'!$B$17:$K$19,6))","v":""},{"$f":"IF('Project Scope'!$C72=\"\",\"\",VLOOKUP($F72,'CBAT Lookups'!$B$17:$K$19,7))","v":""},{"$f":"IF('Project Scope'!$C72=\"\",\"\",IF(SUMPRODUCT($P72:$S72,$AN72:$AQ72)=0,0,P72*AN72/SUMPRODUCT($P72:$S72,$AN72:$AQ72)))","v":""},{"$f":"IF('Project Scope'!$C72=\"\",\"\",IF(SUMPRODUCT($P72:$S72,$AN72:$AQ72)=0,0,Q72*AO72/SUMPRODUCT($P72:$S72,$AN72:$AQ72)))","v":""},{"$f":"IF('Project Scope'!$C72=\"\",\"\",IF(SUMPRODUCT($P72:$S72,$AN72:$AQ72)=0,0,R72*AP72/SUMPRODUCT($P72:$S72,$AN72:$AQ72)))","v":""},{"$f":"IF('Project Scope'!$C72=\"\",\"\",IF(SUMPRODUCT($P72:$S72,$AN72:$AQ72)=0,0,S72*AQ72/SUMPRODUCT($P72:$S72,$AN72:$AQ72)))","v":""},{"$f":"IF('Project Scope'!$C72=\"\",\"\",Benefits($AB72,$AD72,$AE72,$AG72,$AH72,$AI72,$AJ72,$AK72,$AL72,$AM72,$M72,$AR72,$AS72,$AT72,$AU72,$W72,$X72,$Y72,$Z72,$AA72,$E72))","v":""},"","","","","","","","",null,{"$f":"IF('Project Scope'!$C72=\"\",\"\",SUM('Project Scope'!$AT72,'Project Scope'!$AU72))","v":""},{"$f":"IF('Project Scope'!$C72=\"\",\"\",SUM('Project Scope'!$BG72, 'Project Scope'!$AR72,(IF(ISNUMBER('Project Scope'!$AS72),'Project Scope'!$AS72,0)*'Project Information'!$D$12)))","v":""},null,null,{"$f":"IF('Project Scope'!$C72=\"\",\"\",IF(COUNTIF('CBAT Lookups'!$B$5:$B$12,\"Controls-\"&CBAT!$D72)=1,VLOOKUP(\"Controls-\"&CBAT!$D72,'CBAT Lookups'!$B$5:$L$12,11),0))","v":""},{"$f":"IF('Project Scope'!$C72=\"\",\"\",IF(COUNTIF('CBAT Lookups'!$B$5:$B$12,\"Controls-\"&CBAT!$D72)=1,VLOOKUP(\"Controls-\"&CBAT!$D72,'CBAT Lookups'!$B$5:$K$12,2),0)*VLOOKUP($F72,'CBAT Lookups'!$B$17:$K$19,2))","v":""},{"$f":"IF('Project Scope'!$C72=\"\",\"\",IF(COUNTIF('CBAT Lookups'!$B$5:$B$12,\"Controls-\"&CBAT!$D72)=1,VLOOKUP(\"Controls-\"&CBAT!$D72,'CBAT Lookups'!$B$5:$K$12,3),0)*VLOOKUP($F72,'CBAT Lookups'!$B$17:$K$19,3))","v":""},{"$f":"IF('Project Scope'!$C72=\"\",\"\",IF(COUNTIF('CBAT Lookups'!$B$5:$B$12,\"Controls-\"&CBAT!$D72)=1,VLOOKUP(\"Controls-\"&CBAT!$D72,'CBAT Lookups'!$B$5:$K$12,4),0))","v":""},{"$f":"IF('Project Scope'!$C72=\"\",\"\",IF(COUNTIF('CBAT Lookups'!$B$5:$B$12,\"Controls-\"&CBAT!$D72)=1,VLOOKUP(\"Controls-\"&CBAT!$D72,'CBAT Lookups'!$B$5:$K$12,5),0))","v":""},{"$f":"IF('Project Scope'!$C72=\"\",\"\",IF(COUNTIF('CBAT Lookups'!$B$5:$B$12,\"Controls-\"&CBAT!$D72)=1,VLOOKUP(\"Controls-\"&CBAT!$D72,'CBAT Lookups'!$B$5:$K$12,6),0))","v":""},{"$f":"IF('Project Scope'!$C72=\"\",\"\",IF(COUNTIF('CBAT Lookups'!$B$5:$B$12,\"Controls-\"&CBAT!$D72)=1,VLOOKUP(\"Controls-\"&CBAT!$D72,'CBAT Lookups'!$B$5:$K$12,7),0))","v":""},{"$f":"IF('Project Scope'!$C72=\"\",\"\",IF(VLOOKUP($F72,'CBAT Lookups'!$B$17:$K$19,8)=\"W\",1,IF(COUNTIF('CBAT Lookups'!$B$5:$B$12,\"Controls-\"&CBAT!$D72)=1,VLOOKUP(\"Controls-\"&CBAT!$D72,'CBAT Lookups'!$B$5:$K$12,8),0)*VLOOKUP($F72,'CBAT Lookups'!$B$17:$K$19,8)))","v":""},{"$f":"IF('Project Scope'!$C72=\"\",\"\",IF(VLOOKUP($F72,'CBAT Lookups'!$B$17:$K$19,9)=\"W\",1,IF(COUNTIF('CBAT Lookups'!$B$5:$B$12,\"Controls-\"&CBAT!$D72)=1,VLOOKUP(\"Controls-\"&CBAT!$D72,'CBAT Lookups'!$B$5:$K$12,9),0)*VLOOKUP($F72,'CBAT Lookups'!$B$17:$K$19,9)))","v":""},{"$f":"IF('Project Scope'!$C72=\"\",\"\",IF(COUNTIF('CBAT Lookups'!$B$5:$B$12,\"Controls-\"&CBAT!$D72)=1,VLOOKUP(\"Controls-\"&CBAT!$D72,'CBAT Lookups'!$B$5:$K$12,10),0)*VLOOKUP($F72,'CBAT Lookups'!$B$17:$K$19,10))","v":""},{"$f":"IF('Project Scope'!$C72=\"\",\"\",VLOOKUP($C72,'CBAT Lookups'!$A$33:$B$57,2))","v":""},{"$f":"IF('Project Scope'!$C72=\"\",\"\",IF(COUNTIF('CBAT Lookups'!$B$5:$B$12,\"Controls-\"&CBAT!$D72)=1,VLOOKUP(\"Controls-\"&CBAT!$D72,'CBAT Lookups'!$B$5:$O$12,12),0))","v":""},{"$f":"IF('Project Scope'!$C72=\"\",\"\",IF(COUNTIF('CBAT Lookups'!$B$5:$B$12,\"Controls-\"&CBAT!$D72)=1,VLOOKUP(\"Controls-\"&CBAT!$D72,'CBAT Lookups'!$B$5:$O$12,13),0))","v":""},{"$f":"IF('Project Scope'!$C72=\"\",\"\",IF(COUNTIF('CBAT Lookups'!$B$5:$B$12,\"Controls-\"&CBAT!$D72)=1,VLOOKUP(\"Controls-\"&CBAT!$D72,'CBAT Lookups'!$B$5:$O$12,14),0))","v":""},{"$f":"IF('Project Scope'!$C72=\"\",\"\",'TRM Data'!$U$3)","v":""},{"$f":"IF('Project Scope'!$C72=\"\",\"\",'TRM Data'!$V$3)","v":""},{"$f":"IF('Project Scope'!$C72=\"\",\"\",IF($K72<=0,0,MAX(0,(IF(AND($I72>0,$J72>0),($I72*$J72)/1000,($G72*$H72)/1000)*$L72))*$BT72*$BR72)+($CD72/0.003412))","v":""},{"$f":"IF('Project Scope'!$C72=\"\",\"\",IF($K72<=0,0,MAX(0,IF(AND($I72>0,$J72>0),($I72*$J72)/1000,($G72*$H72)/1000))*$BQ72))","v":""},{"$f":"IF('Project Scope'!$C72=\"\",\"\",IF($K72<=0,0,MAX(0,IF(AND($I72>0,$J72>0),($I72*$J72)/1000,($G72*$H72)/1000))*$BK72))","v":""},{"$f":"IF('Project Scope'!$C72=\"\",\"\",IF($K72<=0,0,MAX(0,IF(AND($I72>0,$J72>0),($I72*$J72)/1000,($G72*$H72)/1000))*$BL72*$BQ72))","v":""},{"$f":"IF('Project Scope'!$C72=\"\",\"\",IF(OR($K72<=0,'Project Information'!$D$44=\"\"),0,-1*MAX(0,IF(AND($I72>0,$J72>0),($I72*$J72)/1000,($G72*$H72)/1000))*$BT72*$L72*$BS72*VLOOKUP('Project Information'!$D$44,'CBAT Lookups'!$A$23:$H$30,2)))","v":""},{"$f":"IF('Project Scope'!$C72=\"\",\"\",IF(OR($K72<=0,'Project Information'!$D$44=\"\"),0,-1*MAX(0,IF(AND($I72>0,$J72>0),($I72*$J72)/1000,($G72*$H72)/1000))*$BT72*$L72*$BS72*VLOOKUP('Project Information'!$D$44,'CBAT Lookups'!$A$23:$H$30,3)))","v":""},{"$f":"IF('Project Scope'!$C72=\"\",\"\",IF(OR($K72<=0,'Project Information'!$D$44=\"\"),0,-1*MAX(0,IF(AND($I72>0,$J72>0),($I72*$J72)/1000,($G72*$H72)/1000))*$BT72*$L72*$BS72*VLOOKUP('Project Information'!$D$44,'CBAT Lookups'!$A$23:$H$30,4)))","v":""},{"$f":"IF('Project Scope'!$C72=\"\",\"\",IF(OR($K72<=0,'Project Information'!$D$44=\"\"),0,-1*MAX(0,IF(AND($I72>0,$J72>0),($I72*$J72)/1000,($G72*$H72)/1000))*$BT72*$L72*$BS72*VLOOKUP('Project Information'!$D$44,'CBAT Lookups'!$A$23:$H$30,5)))","v":""},{"$f":"IF('Project Scope'!$C72=\"\",\"\",IF(OR($K72<=0,'Project Information'!$D$44=\"\"),0,-1*MAX(0,IF(AND($I72>0,$J72>0),($I72*$J72)/1000,($G72*$H72)/1000))*$BT72*$L72*$BS72*VLOOKUP('Project Information'!$D$44,'CBAT Lookups'!$A$23:$H$30,6)))","v":""},{"$f":"IF('Project Scope'!$C72=\"\",\"\",IF(OR($K72<=0,'Project Information'!$D$44=\"\"),0,-1*MAX(0,IF(AND($I72>0,$J72>0),($I72*$J72)/1000,($G72*$H72)/1000))*$BT72*$L72*$BS72*VLOOKUP('Project Information'!$D$44,'CBAT Lookups'!$A$23:$H$30,7)))","v":""},{"$f":"IF('Project Scope'!$C72=\"\",\"\",IF(OR($K72<=0,'Project Information'!$D$44=\"\"),0,-1*MAX(0,IF(AND($I72>0,$J72>0),($I72*$J72)/1000,($G72*$H72)/1000))*$BT72*$L72*$BS72*VLOOKUP('Project Information'!$D$44,'CBAT Lookups'!$A$23:$H$30,8)))","v":""},null,{"$f":"IF('Project Scope'!$C72=\"\",\"\",VLOOKUP($F72,'CBAT Lookups'!$B$17:$K$19,4))","v":""},{"$f":"IF('Project Scope'!$C72=\"\",\"\",VLOOKUP($F72,'CBAT Lookups'!$B$17:$K$19,5))","v":""},{"$f":"IF('Project Scope'!$C72=\"\",\"\",VLOOKUP($F72,'CBAT Lookups'!$B$17:$K$19,6))","v":""},{"$f":"IF('Project Scope'!$C72=\"\",\"\",VLOOKUP($F72,'CBAT Lookups'!$B$17:$K$19,7))","v":""},{"$f":"IF('Project Scope'!$C72=\"\",\"\",IF(SUMPRODUCT($BM72:$BP72,$CL72:$CO72)=0,0,BM72*CL72/SUMPRODUCT($BM72:$BP72,$CL72:$CO72)))","v":""},{"$f":"IF('Project Scope'!$C72=\"\",\"\",IF(SUMPRODUCT($BM72:$BP72,$CL72:$CO72)=0,0,BN72*CM72/SUMPRODUCT($BM72:$BP72,$CL72:$CO72)))","v":""},{"$f":"IF('Project Scope'!$C72=\"\",\"\",IF(SUMPRODUCT($BM72:$BP72,$CL72:$CO72)=0,0,BO72*CN72/SUMPRODUCT($BM72:$BP72,$CL72:$CO72)))","v":""},{"$f":"IF('Project Scope'!$C72=\"\",\"\",IF(SUMPRODUCT($BM72:$BP72,$CL72:$CO72)=0,0,BP72*CO72/SUMPRODUCT($BM72:$BP72,$CL72:$CO72)))","v":""},{"$f":"IF('Project Scope'!$C72=\"\",\"\",Benefits($BZ72,$CB72,$CC72,$CE72,$CF72,$CG72,$CH72,$CI72,$CJ72,$CK72,$BJ72,$CP72,$CQ72,$CR72,$CS72,$BU72,$BV72,$BW72,$BX72,$BY72,$E72))","v":""},"","","","","","","","",null,{"$f":"IF('Project Scope'!$C72=\"\",\"\",SUM('Project Scope'!$BB72,'Project Scope'!$BC72))","v":""},{"$f":"IF('Project Scope'!$C72=\"\",\"\",SUM('Project Scope'!$BH72, 'Project Scope'!$AZ72,(IF(ISNUMBER('Project Scope'!$BA72),'Project Scope'!$BA72,0)*'Project Information'!$D$12)))","v":""},null,null,{"$f":"IF('Project Scope'!$C72=\"\",\"\",IF($J72<=0,0,(SUMPRODUCT($AV72:$BC72,--($AV72:$BC72>0))+$BE72)*$DK72/((-SUMPRODUCT($AV72:$BC72,--($AV72:$BC72<0))+$BG72+$BH72+$BI72)*$DK72)))","v":""},{"$f":"IF('Project Scope'!$C72=\"\",\"\",IF($K72<=0,0,(SUMPRODUCT($CT72:$DA72,--($CT72:$DA72>0))+$DC72)*$DK72/((-SUMPRODUCT($CT72:$DA72,--($CT72:$DA72<0))+$DE72+$DF72+$DG72)*$DK72)))","v":""},{"$f":"IF('Project Scope'!$C72=\"\",\"\",IF(AND($J72<=0,$K72<=0),0,(SUMPRODUCT($AV72:$BC72,--($AV72:$BC72>0))+$BE72+SUMPRODUCT($CT72:$DA72,--($CT72:$DA72>0))+$DC72)*$DK72/((-SUMPRODUCT($AV72:$BC72,--($AV72:$BC72<0))+$BG72+$BH72+$BI72-SUMPRODUCT($CT72:$DA72,--($CT72:$DA72<0))+$DE72+$DF72+$DG72)*$DK72)))","v":""},{"$f":"IF('Project Scope'!$C72=\"\",\"\",IF(NetOrGross=\"Net\",(1-Z72+AA72),1))","v":""}]
[{"$f":"'Project Scope'!$B73","v":66},{"$f":"IF('Project Scope'!$C73=\"\",\"\",'Project Scope'!$C73)","v":""},{"$f":"IF('Project Scope'!$C73=\"\",\"\",'Project Scope'!$H73)","v":""},{"$f":"IF(ISNUMBER(SEARCH(\"Bay\",'Project Scope'!$Q73)),\"Bay\",IF('Project Scope'!C73=\"\",\"\",'Project Scope'!E73))","v":""},{"$f":"IF('Project Scope'!$C73=\"\",\"\",\"Com\")","v":""},{"$f":"IF('Project Scope'!$C73=\"\",\"\",'Project Scope'!$L73)","v":""},{"$f":"IF('Project Scope'!$C73=\"\",\"\",IF('Project Scope'!$CJ73=\"\",0,'Project Scope'!$CJ73))","v":""},{"$f":"IF('Project Scope'!$C73=\"\",\"\",IF('Project Scope'!$N73=\"\",0,'Project Scope'!$N73))","v":""},{"$f":"IF('Project Scope'!$C73=\"\",\"\",IF('Project Scope'!$CK73=\"\",0,'Project Scope'!$CK73))","v":""},{"$f":"IF('Project Scope'!$C73=\"\",\"\",IF('Project Scope'!$AO73=\"\",0,'Project Scope'!$AO73))","v":""},{"$f":"IF('Project Scope'!$C73=\"\",\"\",IF('Project Scope'!$AX73=\"\",0,'Project Scope'!$AX73))","v":""},{"$f":"IF('Project Scope'!$C73=\"\",\"\",IF('Project Scope'!$M73=\"\",0,'Project Scope'!$M73))","v":""},{"$f":"IF('Project Scope'!$C73=\"\",\"\",IF(COUNTIF('CBAT Lookups'!$B$5:$B$12,\"Fixtures-\"&CBAT!$D73)=1,VLOOKUP(\"Fixtures-\"&CBAT!$D73,'CBAT Lookups'!$B$5:$L$12,11),0))","v":""},{"$f":"IF('Project Scope'!$C73=\"\",\"\",(IF(COUNTIF('CBAT Lookups'!$B$5:$B$12,\"Fixtures-\"&CBAT!$D73)=1,VLOOKUP(\"Fixtures-\"&CBAT!$D73,'CBAT Lookups'!$B$5:$K$12,2),0))*VLOOKUP($F73,'CBAT Lookups'!$B$17:$K$19,2))","v":""},{"$f":"IF('Project Scope'!$C73=\"\",\"\",(IF(COUNTIF('CBAT Lookups'!$B$5:$B$12,\"Fixtures-\"&CBAT!$D73)=1,VLOOKUP(\"Fixtures-\"&CBAT!$D73,'CBAT Lookups'!$B$5:$K$12,3),0))*VLOOKUP($F73,'CBAT Lookups'!$B$17:$K$19,3))","v":""},{"$f":"IF('Project Scope'!$C73=\"\",\"\",(IF(COUNTIF('CBAT Lookups'!$B$5:$B$12,\"Fixtures-\"&CBAT!$D73)=1,VLOOKUP(\"Fixtures-\"&CBAT!$D73,'CBAT Lookups'!$B$5:$K$12,4),0)))","v":""},{"$f":"IF('Project Scope'!$C73=\"\",\"\",(IF(COUNTIF('CBAT Lookups'!$B$5:$B$12,\"Fixtures-\"&CBAT!$D73)=1,VLOOKUP(\"Fixtures-\"&CBAT!$D73,'CBAT Lookups'!$B$5:$K$12,5),0)))","v":""},{"$f":"IF('Project Scope'!$C73=\"\",\"\",(IF(COUNTIF('CBAT Lookups'!$B$5:$B$12,\"Fixtures-\"&CBAT!$D73)=1,VLOOKUP(\"Fixtures-\"&CBAT!$D73,'CBAT Lookups'!$B$5:$K$12,6),0)))","v":""},{"$f":"IF('Project Scope'!$C73=\"\",\"\",IF(COUNTIF('CBAT Lookups'!$B$5:$B$12,\"Fixtures-\"&CBAT!$D73)=1,VLOOKUP(\"Fixtures-\"&CBAT!$D73,'CBAT Lookups'!$B$5:$K$12,7),0))","v":""},{"$f":"IF('Project Scope'!$C73=\"\",\"\",IF(VLOOKUP($F73,'CBAT Lookups'!$B$17:$K$19,8)=\"W\",1,IF(COUNTIF('CBAT Lookups'!$B$5:$B$12,\"Fixtures-\"&CBAT!$D73)=1,VLOOKUP(\"Fixtures-\"&CBAT!$D73,'CBAT Lookups'!$B$5:$K$12,8),0)*VLOOKUP($F73,'CBAT Lookups'!$B$17:$K$19,8)))","v":""},{"$f":"IF('Project Scope'!$C73=\"\",\"\",IF(VLOOKUP($F73,'CBAT Lookups'!$B$17:$K$19,9)=\"W\",1,IF(COUNTIF('CBAT Lookups'!$B$5:$B$12,\"Fixtures-\"&CBAT!$D73)=1,VLOOKUP(\"Fixtures-\"&CBAT!$D73,'CBAT Lookups'!$B$5:$K$12,9),0)*VLOOKUP($F73,'CBAT Lookups'!$B$17:$K$19,9)))","v":""},{"$f":"IF('Project Scope'!$C73=\"\",\"\",IF(COUNTIF('CBAT Lookups'!$B$5:$B$12,\"Fixtures-\"&CBAT!$D73)=1,VLOOKUP(\"Fixtures-\"&CBAT!$D73,'CBAT Lookups'!$B$5:$K$12,10),0)*VLOOKUP($F73,'CBAT Lookups'!$B$17:$K$19,10))","v":""},{"$f":"IF('Project Scope'!$C73=\"\",\"\",IF(COUNTIF('CBAT Lookups'!$B$5:$B$12,\"Fixtures-\"&CBAT!$D73)=1,VLOOKUP(\"Fixtures-\"&CBAT!$D73,'CBAT Lookups'!$B$5:$O$12,12),0))","v":""},{"$f":"IF('Project Scope'!$C73=\"\",\"\",IF(COUNTIF('CBAT Lookups'!$B$5:$B$12,\"Fixtures-\"&CBAT!$D73)=1,VLOOKUP(\"Fixtures-\"&CBAT!$D73,'CBAT Lookups'!$B$5:$O$12,13),0))","v":""},{"$f":"IF('Project Scope'!$C73=\"\",\"\",IF(COUNTIF('CBAT Lookups'!$B$5:$B$12,\"Fixtures-\"&CBAT!$D73)=1,VLOOKUP(\"Fixtures-\"&CBAT!$D73,'CBAT Lookups'!$B$5:$O$12,14),0))","v":""},{"$f":"IF('Project Scope'!$C73=\"\",\"\",'TRM Data'!$U$3)","v":""},{"$f":"IF('Project Scope'!$C73=\"\",\"\",'TRM Data'!$V$3)","v":""},{"$f":"IF('Project Scope'!$C73=\"\",\"\",IF($J73<=0,0,MAX(0,(($G73*$H73/1000)-($I73*$J73/1000))*$L73)*$U73)+($AF73/0.003412))","v":""},{"$f":"IF('Project Scope'!$C73=\"\",\"\",IF($J73<=0,0,MAX(0,(($G73*$H73/1000)-($I73*$J73/1000)))*$T73))","v":""},{"$f":"IF('Project Scope'!$C73=\"\",\"\",IF($J73<=0,0,MAX(0,(($G73*$H73/1000)-($I73*$J73/1000))*$N73)))","v":""},{"$f":"IF('Project Scope'!$C73=\"\",\"\",IF($J73<=0,0,MAX(0,(($G73*$H73/1000)-($I73*$J73/1000))*$O73)*$T73))","v":""},{"$f":"IF('Project Scope'!$C73=\"\",\"\",IF(OR($J73<=0,'Project Information'!$D$44=\"\"),0,-1*MAX(0,(($G73*$H73/1000)-($I73*$J73/1000))*$L73)*$V73*VLOOKUP('Project Information'!$D$44,'CBAT Lookups'!$A$23:$H$30,2)))","v":""},{"$f":"IF('Project Scope'!$C73=\"\",\"\",IF(OR($J73<=0,'Project Information'!$D$44=\"\"),0,-1*MAX(0,(($G73*$H73/1000)-($I73*$J73/1000))*$L73)*$V73*VLOOKUP('Project Information'!$D$44,'CBAT Lookups'!$A$23:$H$30,3)))","v":""},{"$f":"IF('Project Scope'!$C73=\"\",\"\",IF(OR($J73<=0,'Project Information'!$D$44=\"\"),0,-1*MAX(0,(($G73*$H73/1000)-($I73*$J73/1000))*$L73)*$V73*VLOOKUP('Project Information'!$D$44,'CBAT Lookups'!$A$23:$H$30,4)))","v":""},{"$f":"IF('Project Scope'!$C73=\"\",\"\",IF(OR($J73<=0,'Project Information'!$D$44=\"\"),0,-1*MAX(0,(($G73*$H73/1000)-($I73*$J73/1000))*$L73)*$V73*VLOOKUP('Project Information'!$D$44,'CBAT Lookups'!$A$23:$H$30,5)))","v":""},{"$f":"IF('Project Scope'!$C73=\"\",\"\",IF(OR($J73<=0,'Project Information'!$D$44=\"\"),0,-1*MAX(0,(($G73*$H73/1000)-($I73*$J73/1000))*$L73)*$V73*VLOOKUP('Project Information'!$D$44,'CBAT Lookups'!$A$23:$H$30,6)))","v":""},{"$f":"IF('Project Scope'!$C73=\"\",\"\",IF(OR($J73<=0,'Project Information'!$D$44=\"\"),0,-1*MAX(0,(($G73*$H73/1000)-($I73*$J73/1000))*$L73)*$V73*VLOOKUP('Project Information'!$D$44,'CBAT Lookups'!$A$23:$H$30,7)))","v":""},{"$f":"IF('Project Scope'!$C73=\"\",\"\",IF(OR($J73<=0,'Project Information'!$D$44=\"\"),0,-1*MAX(0,(($G73*$H73/1000)-($I73*$J73/1000))*$L73)*$V73*VLOOKUP('Project Information'!$D$44,'CBAT Lookups'!$A$23:$H$30,8)))","v":""},null,{"$f":"IF('Project Scope'!$C73=\"\",\"\",VLOOKUP($F73,'CBAT Lookups'!$B$17:$K$19,4))","v":""},{"$f":"IF('Project Scope'!$C73=\"\",\"\",VLOOKUP($F73,'CBAT Lookups'!$B$17:$K$19,5))","v":""},{"$f":"IF('Project Scope'!$C73=\"\",\"\",VLOOKUP($F73,'CBAT Lookups'!$B$17:$K$19,6))","v":""},{"$f":"IF('Project Scope'!$C73=\"\",\"\",VLOOKUP($F73,'CBAT Lookups'!$B$17:$K$19,7))","v":""},{"$f":"IF('Project Scope'!$C73=\"\",\"\",IF(SUMPRODUCT($P73:$S73,$AN73:$AQ73)=0,0,P73*AN73/SUMPRODUCT($P73:$S73,$AN73:$AQ73)))","v":""},{"$f":"IF('Project Scope'!$C73=\"\",\"\",IF(SUMPRODUCT($P73:$S73,$AN73:$AQ73)=0,0,Q73*AO73/SUMPRODUCT($P73:$S73,$AN73:$AQ73)))","v":""},{"$f":"IF('Project Scope'!$C73=\"\",\"\",IF(SUMPRODUCT($P73:$S73,$AN73:$AQ73)=0,0,R73*AP73/SUMPRODUCT($P73:$S73,$AN73:$AQ73)))","v":""},{"$f":"IF('Project Scope'!$C73=\"\",\"\",IF(SUMPRODUCT($P73:$S73,$AN73:$AQ73)=0,0,S73*AQ73/SUMPRODUCT($P73:$S73,$AN73:$AQ73)))","v":""},{"$f":"IF('Project Scope'!$C73=\"\",\"\",Benefits($AB73,$AD73,$AE73,$AG73,$AH73,$AI73,$AJ73,$AK73,$AL73,$AM73,$M73,$AR73,$AS73,$AT73,$AU73,$W73,$X73,$Y73,$Z73,$AA73,$E73))","v":""},"","","","","","","","",null,{"$f":"IF('Project Scope'!$C73=\"\",\"\",SUM('Project Scope'!$AT73,'Project Scope'!$AU73))","v":""},{"$f":"IF('Project Scope'!$C73=\"\",\"\",SUM('Project Scope'!$BG73, 'Project Scope'!$AR73,(IF(ISNUMBER('Project Scope'!$AS73),'Project Scope'!$AS73,0)*'Project Information'!$D$12)))","v":""},null,null,{"$f":"IF('Project Scope'!$C73=\"\",\"\",IF(COUNTIF('CBAT Lookups'!$B$5:$B$12,\"Controls-\"&CBAT!$D73)=1,VLOOKUP(\"Controls-\"&CBAT!$D73,'CBAT Lookups'!$B$5:$L$12,11),0))","v":""},{"$f":"IF('Project Scope'!$C73=\"\",\"\",IF(COUNTIF('CBAT Lookups'!$B$5:$B$12,\"Controls-\"&CBAT!$D73)=1,VLOOKUP(\"Controls-\"&CBAT!$D73,'CBAT Lookups'!$B$5:$K$12,2),0)*VLOOKUP($F73,'CBAT Lookups'!$B$17:$K$19,2))","v":""},{"$f":"IF('Project Scope'!$C73=\"\",\"\",IF(COUNTIF('CBAT Lookups'!$B$5:$B$12,\"Controls-\"&CBAT!$D73)=1,VLOOKUP(\"Controls-\"&CBAT!$D73,'CBAT Lookups'!$B$5:$K$12,3),0)*VLOOKUP($F73,'CBAT Lookups'!$B$17:$K$19,3))","v":""},{"$f":"IF('Project Scope'!$C73=\"\",\"\",IF(COUNTIF('CBAT Lookups'!$B$5:$B$12,\"Controls-\"&CBAT!$D73)=1,VLOOKUP(\"Controls-\"&CBAT!$D73,'CBAT Lookups'!$B$5:$K$12,4),0))","v":""},{"$f":"IF('Project Scope'!$C73=\"\",\"\",IF(COUNTIF('CBAT Lookups'!$B$5:$B$12,\"Controls-\"&CBAT!$D73)=1,VLOOKUP(\"Controls-\"&CBAT!$D73,'CBAT Lookups'!$B$5:$K$12,5),0))","v":""},{"$f":"IF('Project Scope'!$C73=\"\",\"\",IF(COUNTIF('CBAT Lookups'!$B$5:$B$12,\"Controls-\"&CBAT!$D73)=1,VLOOKUP(\"Controls-\"&CBAT!$D73,'CBAT Lookups'!$B$5:$K$12,6),0))","v":""},{"$f":"IF('Project Scope'!$C73=\"\",\"\",IF(COUNTIF('CBAT Lookups'!$B$5:$B$12,\"Controls-\"&CBAT!$D73)=1,VLOOKUP(\"Controls-\"&CBAT!$D73,'CBAT Lookups'!$B$5:$K$12,7),0))","v":""},{"$f":"IF('Project Scope'!$C73=\"\",\"\",IF(VLOOKUP($F73,'CBAT Lookups'!$B$17:$K$19,8)=\"W\",1,IF(COUNTIF('CBAT Lookups'!$B$5:$B$12,\"Controls-\"&CBAT!$D73)=1,VLOOKUP(\"Controls-\"&CBAT!$D73,'CBAT Lookups'!$B$5:$K$12,8),0)*VLOOKUP($F73,'CBAT Lookups'!$B$17:$K$19,8)))","v":""},{"$f":"IF('Project Scope'!$C73=\"\",\"\",IF(VLOOKUP($F73,'CBAT Lookups'!$B$17:$K$19,9)=\"W\",1,IF(COUNTIF('CBAT Lookups'!$B$5:$B$12,\"Controls-\"&CBAT!$D73)=1,VLOOKUP(\"Controls-\"&CBAT!$D73,'CBAT Lookups'!$B$5:$K$12,9),0)*VLOOKUP($F73,'CBAT Lookups'!$B$17:$K$19,9)))","v":""},{"$f":"IF('Project Scope'!$C73=\"\",\"\",IF(COUNTIF('CBAT Lookups'!$B$5:$B$12,\"Controls-\"&CBAT!$D73)=1,VLOOKUP(\"Controls-\"&CBAT!$D73,'CBAT Lookups'!$B$5:$K$12,10),0)*VLOOKUP($F73,'CBAT Lookups'!$B$17:$K$19,10))","v":""},{"$f":"IF('Project Scope'!$C73=\"\",\"\",VLOOKUP($C73,'CBAT Lookups'!$A$33:$B$57,2))","v":""},{"$f":"IF('Project Scope'!$C73=\"\",\"\",IF(COUNTIF('CBAT Lookups'!$B$5:$B$12,\"Controls-\"&CBAT!$D73)=1,VLOOKUP(\"Controls-\"&CBAT!$D73,'CBAT Lookups'!$B$5:$O$12,12),0))","v":""},{"$f":"IF('Project Scope'!$C73=\"\",\"\",IF(COUNTIF('CBAT Lookups'!$B$5:$B$12,\"Controls-\"&CBAT!$D73)=1,VLOOKUP(\"Controls-\"&CBAT!$D73,'CBAT Lookups'!$B$5:$O$12,13),0))","v":""},{"$f":"IF('Project Scope'!$C73=\"\",\"\",IF(COUNTIF('CBAT Lookups'!$B$5:$B$12,\"Controls-\"&CBAT!$D73)=1,VLOOKUP(\"Controls-\"&CBAT!$D73,'CBAT Lookups'!$B$5:$O$12,14),0))","v":""},{"$f":"IF('Project Scope'!$C73=\"\",\"\",'TRM Data'!$U$3)","v":""},{"$f":"IF('Project Scope'!$C73=\"\",\"\",'TRM Data'!$V$3)","v":""},{"$f":"IF('Project Scope'!$C73=\"\",\"\",IF($K73<=0,0,MAX(0,(IF(AND($I73>0,$J73>0),($I73*$J73)/1000,($G73*$H73)/1000)*$L73))*$BT73*$BR73)+($CD73/0.003412))","v":""},{"$f":"IF('Project Scope'!$C73=\"\",\"\",IF($K73<=0,0,MAX(0,IF(AND($I73>0,$J73>0),($I73*$J73)/1000,($G73*$H73)/1000))*$BQ73))","v":""},{"$f":"IF('Project Scope'!$C73=\"\",\"\",IF($K73<=0,0,MAX(0,IF(AND($I73>0,$J73>0),($I73*$J73)/1000,($G73*$H73)/1000))*$BK73))","v":""},{"$f":"IF('Project Scope'!$C73=\"\",\"\",IF($K73<=0,0,MAX(0,IF(AND($I73>0,$J73>0),($I73*$J73)/1000,($G73*$H73)/1000))*$BL73*$BQ73))","v":""},{"$f":"IF('Project Scope'!$C73=\"\",\"\",IF(OR($K73<=0,'Project Information'!$D$44=\"\"),0,-1*MAX(0,IF(AND($I73>0,$J73>0),($I73*$J73)/1000,($G73*$H73)/1000))*$BT73*$L73*$BS73*VLOOKUP('Project Information'!$D$44,'CBAT Lookups'!$A$23:$H$30,2)))","v":""},{"$f":"IF('Project Scope'!$C73=\"\",\"\",IF(OR($K73<=0,'Project Information'!$D$44=\"\"),0,-1*MAX(0,IF(AND($I73>0,$J73>0),($I73*$J73)/1000,($G73*$H73)/1000))*$BT73*$L73*$BS73*VLOOKUP('Project Information'!$D$44,'CBAT Lookups'!$A$23:$H$30,3)))","v":""},{"$f":"IF('Project Scope'!$C73=\"\",\"\",IF(OR($K73<=0,'Project Information'!$D$44=\"\"),0,-1*MAX(0,IF(AND($I73>0,$J73>0),($I73*$J73)/1000,($G73*$H73)/1000))*$BT73*$L73*$BS73*VLOOKUP('Project Information'!$D$44,'CBAT Lookups'!$A$23:$H$30,4)))","v":""},{"$f":"IF('Project Scope'!$C73=\"\",\"\",IF(OR($K73<=0,'Project Information'!$D$44=\"\"),0,-1*MAX(0,IF(AND($I73>0,$J73>0),($I73*$J73)/1000,($G73*$H73)/1000))*$BT73*$L73*$BS73*VLOOKUP('Project Information'!$D$44,'CBAT Lookups'!$A$23:$H$30,5)))","v":""},{"$f":"IF('Project Scope'!$C73=\"\",\"\",IF(OR($K73<=0,'Project Information'!$D$44=\"\"),0,-1*MAX(0,IF(AND($I73>0,$J73>0),($I73*$J73)/1000,($G73*$H73)/1000))*$BT73*$L73*$BS73*VLOOKUP('Project Information'!$D$44,'CBAT Lookups'!$A$23:$H$30,6)))","v":""},{"$f":"IF('Project Scope'!$C73=\"\",\"\",IF(OR($K73<=0,'Project Information'!$D$44=\"\"),0,-1*MAX(0,IF(AND($I73>0,$J73>0),($I73*$J73)/1000,($G73*$H73)/1000))*$BT73*$L73*$BS73*VLOOKUP('Project Information'!$D$44,'CBAT Lookups'!$A$23:$H$30,7)))","v":""},{"$f":"IF('Project Scope'!$C73=\"\",\"\",IF(OR($K73<=0,'Project Information'!$D$44=\"\"),0,-1*MAX(0,IF(AND($I73>0,$J73>0),($I73*$J73)/1000,($G73*$H73)/1000))*$BT73*$L73*$BS73*VLOOKUP('Project Information'!$D$44,'CBAT Lookups'!$A$23:$H$30,8)))","v":""},null,{"$f":"IF('Project Scope'!$C73=\"\",\"\",VLOOKUP($F73,'CBAT Lookups'!$B$17:$K$19,4))","v":""},{"$f":"IF('Project Scope'!$C73=\"\",\"\",VLOOKUP($F73,'CBAT Lookups'!$B$17:$K$19,5))","v":""},{"$f":"IF('Project Scope'!$C73=\"\",\"\",VLOOKUP($F73,'CBAT Lookups'!$B$17:$K$19,6))","v":""},{"$f":"IF('Project Scope'!$C73=\"\",\"\",VLOOKUP($F73,'CBAT Lookups'!$B$17:$K$19,7))","v":""},{"$f":"IF('Project Scope'!$C73=\"\",\"\",IF(SUMPRODUCT($BM73:$BP73,$CL73:$CO73)=0,0,BM73*CL73/SUMPRODUCT($BM73:$BP73,$CL73:$CO73)))","v":""},{"$f":"IF('Project Scope'!$C73=\"\",\"\",IF(SUMPRODUCT($BM73:$BP73,$CL73:$CO73)=0,0,BN73*CM73/SUMPRODUCT($BM73:$BP73,$CL73:$CO73)))","v":""},{"$f":"IF('Project Scope'!$C73=\"\",\"\",IF(SUMPRODUCT($BM73:$BP73,$CL73:$CO73)=0,0,BO73*CN73/SUMPRODUCT($BM73:$BP73,$CL73:$CO73)))","v":""},{"$f":"IF('Project Scope'!$C73=\"\",\"\",IF(SUMPRODUCT($BM73:$BP73,$CL73:$CO73)=0,0,BP73*CO73/SUMPRODUCT($BM73:$BP73,$CL73:$CO73)))","v":""},{"$f":"IF('Project Scope'!$C73=\"\",\"\",Benefits($BZ73,$CB73,$CC73,$CE73,$CF73,$CG73,$CH73,$CI73,$CJ73,$CK73,$BJ73,$CP73,$CQ73,$CR73,$CS73,$BU73,$BV73,$BW73,$BX73,$BY73,$E73))","v":""},"","","","","","","","",null,{"$f":"IF('Project Scope'!$C73=\"\",\"\",SUM('Project Scope'!$BB73,'Project Scope'!$BC73))","v":""},{"$f":"IF('Project Scope'!$C73=\"\",\"\",SUM('Project Scope'!$BH73, 'Project Scope'!$AZ73,(IF(ISNUMBER('Project Scope'!$BA73),'Project Scope'!$BA73,0)*'Project Information'!$D$12)))","v":""},null,null,{"$f":"IF('Project Scope'!$C73=\"\",\"\",IF($J73<=0,0,(SUMPRODUCT($AV73:$BC73,--($AV73:$BC73>0))+$BE73)*$DK73/((-SUMPRODUCT($AV73:$BC73,--($AV73:$BC73<0))+$BG73+$BH73+$BI73)*$DK73)))","v":""},{"$f":"IF('Project Scope'!$C73=\"\",\"\",IF($K73<=0,0,(SUMPRODUCT($CT73:$DA73,--($CT73:$DA73>0))+$DC73)*$DK73/((-SUMPRODUCT($CT73:$DA73,--($CT73:$DA73<0))+$DE73+$DF73+$DG73)*$DK73)))","v":""},{"$f":"IF('Project Scope'!$C73=\"\",\"\",IF(AND($J73<=0,$K73<=0),0,(SUMPRODUCT($AV73:$BC73,--($AV73:$BC73>0))+$BE73+SUMPRODUCT($CT73:$DA73,--($CT73:$DA73>0))+$DC73)*$DK73/((-SUMPRODUCT($AV73:$BC73,--($AV73:$BC73<0))+$BG73+$BH73+$BI73-SUMPRODUCT($CT73:$DA73,--($CT73:$DA73<0))+$DE73+$DF73+$DG73)*$DK73)))","v":""},{"$f":"IF('Project Scope'!$C73=\"\",\"\",IF(NetOrGross=\"Net\",(1-Z73+AA73),1))","v":""}]
[{"$f":"'Project Scope'!$B74","v":67},{"$f":"IF('Project Scope'!$C74=\"\",\"\",'Project Scope'!$C74)","v":""},{"$f":"IF('Project Scope'!$C74=\"\",\"\",'Project Scope'!$H74)","v":""},{"$f":"IF(ISNUMBER(SEARCH(\"Bay\",'Project Scope'!$Q74)),\"Bay\",IF('Project Scope'!C74=\"\",\"\",'Project Scope'!E74))","v":""},{"$f":"IF('Project Scope'!$C74=\"\",\"\",\"Com\")","v":""},{"$f":"IF('Project Scope'!$C74=\"\",\"\",'Project Scope'!$L74)","v":""},{"$f":"IF('Project Scope'!$C74=\"\",\"\",IF('Project Scope'!$CJ74=\"\",0,'Project Scope'!$CJ74))","v":""},{"$f":"IF('Project Scope'!$C74=\"\",\"\",IF('Project Scope'!$N74=\"\",0,'Project Scope'!$N74))","v":""},{"$f":"IF('Project Scope'!$C74=\"\",\"\",IF('Project Scope'!$CK74=\"\",0,'Project Scope'!$CK74))","v":""},{"$f":"IF('Project Scope'!$C74=\"\",\"\",IF('Project Scope'!$AO74=\"\",0,'Project Scope'!$AO74))","v":""},{"$f":"IF('Project Scope'!$C74=\"\",\"\",IF('Project Scope'!$AX74=\"\",0,'Project Scope'!$AX74))","v":""},{"$f":"IF('Project Scope'!$C74=\"\",\"\",IF('Project Scope'!$M74=\"\",0,'Project Scope'!$M74))","v":""},{"$f":"IF('Project Scope'!$C74=\"\",\"\",IF(COUNTIF('CBAT Lookups'!$B$5:$B$12,\"Fixtures-\"&CBAT!$D74)=1,VLOOKUP(\"Fixtures-\"&CBAT!$D74,'CBAT Lookups'!$B$5:$L$12,11),0))","v":""},{"$f":"IF('Project Scope'!$C74=\"\",\"\",(IF(COUNTIF('CBAT Lookups'!$B$5:$B$12,\"Fixtures-\"&CBAT!$D74)=1,VLOOKUP(\"Fixtures-\"&CBAT!$D74,'CBAT Lookups'!$B$5:$K$12,2),0))*VLOOKUP($F74,'CBAT Lookups'!$B$17:$K$19,2))","v":""},{"$f":"IF('Project Scope'!$C74=\"\",\"\",(IF(COUNTIF('CBAT Lookups'!$B$5:$B$12,\"Fixtures-\"&CBAT!$D74)=1,VLOOKUP(\"Fixtures-\"&CBAT!$D74,'CBAT Lookups'!$B$5:$K$12,3),0))*VLOOKUP($F74,'CBAT Lookups'!$B$17:$K$19,3))","v":""},{"$f":"IF('Project Scope'!$C74=\"\",\"\",(IF(COUNTIF('CBAT Lookups'!$B$5:$B$12,\"Fixtures-\"&CBAT!$D74)=1,VLOOKUP(\"Fixtures-\"&CBAT!$D74,'CBAT Lookups'!$B$5:$K$12,4),0)))","v":""},{"$f":"IF('Project Scope'!$C74=\"\",\"\",(IF(COUNTIF('CBAT Lookups'!$B$5:$B$12,\"Fixtures-\"&CBAT!$D74)=1,VLOOKUP(\"Fixtures-\"&CBAT!$D74,'CBAT Lookups'!$B$5:$K$12,5),0)))","v":""},{"$f":"IF('Project Scope'!$C74=\"\",\"\",(IF(COUNTIF('CBAT Lookups'!$B$5:$B$12,\"Fixtures-\"&CBAT!$D74)=1,VLOOKUP(\"Fixtures-\"&CBAT!$D74,'CBAT Lookups'!$B$5:$K$12,6),0)))","v":""},{"$f":"IF('Project Scope'!$C74=\"\",\"\",IF(COUNTIF('CBAT Lookups'!$B$5:$B$12,\"Fixtures-\"&CBAT!$D74)=1,VLOOKUP(\"Fixtures-\"&CBAT!$D74,'CBAT Lookups'!$B$5:$K$12,7),0))","v":""},{"$f":"IF('Project Scope'!$C74=\"\",\"\",IF(VLOOKUP($F74,'CBAT Lookups'!$B$17:$K$19,8)=\"W\",1,IF(COUNTIF('CBAT Lookups'!$B$5:$B$12,\"Fixtures-\"&CBAT!$D74)=1,VLOOKUP(\"Fixtures-\"&CBAT!$D74,'CBAT Lookups'!$B$5:$K$12,8),0)*VLOOKUP($F74,'CBAT Lookups'!$B$17:$K$19,8)))","v":""},{"$f":"IF('Project Scope'!$C74=\"\",\"\",IF(VLOOKUP($F74,'CBAT Lookups'!$B$17:$K$19,9)=\"W\",1,IF(COUNTIF('CBAT Lookups'!$B$5:$B$12,\"Fixtures-\"&CBAT!$D74)=1,VLOOKUP(\"Fixtures-\"&CBAT!$D74,'CBAT Lookups'!$B$5:$K$12,9),0)*VLOOKUP($F74,'CBAT Lookups'!$B$17:$K$19,9)))","v":""},{"$f":"IF('Project Scope'!$C74=\"\",\"\",IF(COUNTIF('CBAT Lookups'!$B$5:$B$12,\"Fixtures-\"&CBAT!$D74)=1,VLOOKUP(\"Fixtures-\"&CBAT!$D74,'CBAT Lookups'!$B$5:$K$12,10),0)*VLOOKUP($F74,'CBAT Lookups'!$B$17:$K$19,10))","v":""},{"$f":"IF('Project Scope'!$C74=\"\",\"\",IF(COUNTIF('CBAT Lookups'!$B$5:$B$12,\"Fixtures-\"&CBAT!$D74)=1,VLOOKUP(\"Fixtures-\"&CBAT!$D74,'CBAT Lookups'!$B$5:$O$12,12),0))","v":""},{"$f":"IF('Project Scope'!$C74=\"\",\"\",IF(COUNTIF('CBAT Lookups'!$B$5:$B$12,\"Fixtures-\"&CBAT!$D74)=1,VLOOKUP(\"Fixtures-\"&CBAT!$D74,'CBAT Lookups'!$B$5:$O$12,13),0))","v":""},{"$f":"IF('Project Scope'!$C74=\"\",\"\",IF(COUNTIF('CBAT Lookups'!$B$5:$B$12,\"Fixtures-\"&CBAT!$D74)=1,VLOOKUP(\"Fixtures-\"&CBAT!$D74,'CBAT Lookups'!$B$5:$O$12,14),0))","v":""},{"$f":"IF('Project Scope'!$C74=\"\",\"\",'TRM Data'!$U$3)","v":""},{"$f":"IF('Project Scope'!$C74=\"\",\"\",'TRM Data'!$V$3)","v":""},{"$f":"IF('Project Scope'!$C74=\"\",\"\",IF($J74<=0,0,MAX(0,(($G74*$H74/1000)-($I74*$J74/1000))*$L74)*$U74)+($AF74/0.003412))","v":""},{"$f":"IF('Project Scope'!$C74=\"\",\"\",IF($J74<=0,0,MAX(0,(($G74*$H74/1000)-($I74*$J74/1000)))*$T74))","v":""},{"$f":"IF('Project Scope'!$C74=\"\",\"\",IF($J74<=0,0,MAX(0,(($G74*$H74/1000)-($I74*$J74/1000))*$N74)))","v":""},{"$f":"IF('Project Scope'!$C74=\"\",\"\",IF($J74<=0,0,MAX(0,(($G74*$H74/1000)-($I74*$J74/1000))*$O74)*$T74))","v":""},{"$f":"IF('Project Scope'!$C74=\"\",\"\",IF(OR($J74<=0,'Project Information'!$D$44=\"\"),0,-1*MAX(0,(($G74*$H74/1000)-($I74*$J74/1000))*$L74)*$V74*VLOOKUP('Project Information'!$D$44,'CBAT Lookups'!$A$23:$H$30,2)))","v":""},{"$f":"IF('Project Scope'!$C74=\"\",\"\",IF(OR($J74<=0,'Project Information'!$D$44=\"\"),0,-1*MAX(0,(($G74*$H74/1000)-($I74*$J74/1000))*$L74)*$V74*VLOOKUP('Project Information'!$D$44,'CBAT Lookups'!$A$23:$H$30,3)))","v":""},{"$f":"IF('Project Scope'!$C74=\"\",\"\",IF(OR($J74<=0,'Project Information'!$D$44=\"\"),0,-1*MAX(0,(($G74*$H74/1000)-($I74*$J74/1000))*$L74)*$V74*VLOOKUP('Project Information'!$D$44,'CBAT Lookups'!$A$23:$H$30,4)))","v":""},{"$f":"IF('Project Scope'!$C74=\"\",\"\",IF(OR($J74<=0,'Project Information'!$D$44=\"\"),0,-1*MAX(0,(($G74*$H74/1000)-($I74*$J74/1000))*$L74)*$V74*VLOOKUP('Project Information'!$D$44,'CBAT Lookups'!$A$23:$H$30,5)))","v":""},{"$f":"IF('Project Scope'!$C74=\"\",\"\",IF(OR($J74<=0,'Project Information'!$D$44=\"\"),0,-1*MAX(0,(($G74*$H74/1000)-($I74*$J74/1000))*$L74)*$V74*VLOOKUP('Project Information'!$D$44,'CBAT Lookups'!$A$23:$H$30,6)))","v":""},{"$f":"IF('Project Scope'!$C74=\"\",\"\",IF(OR($J74<=0,'Project Information'!$D$44=\"\"),0,-1*MAX(0,(($G74*$H74/1000)-($I74*$J74/1000))*$L74)*$V74*VLOOKUP('Project Information'!$D$44,'CBAT Lookups'!$A$23:$H$30,7)))","v":""},{"$f":"IF('Project Scope'!$C74=\"\",\"\",IF(OR($J74<=0,'Project Information'!$D$44=\"\"),0,-1*MAX(0,(($G74*$H74/1000)-($I74*$J74/1000))*$L74)*$V74*VLOOKUP('Project Information'!$D$44,'CBAT Lookups'!$A$23:$H$30,8)))","v":""},null,{"$f":"IF('Project Scope'!$C74=\"\",\"\",VLOOKUP($F74,'CBAT Lookups'!$B$17:$K$19,4))","v":""},{"$f":"IF('Project Scope'!$C74=\"\",\"\",VLOOKUP($F74,'CBAT Lookups'!$B$17:$K$19,5))","v":""},{"$f":"IF('Project Scope'!$C74=\"\",\"\",VLOOKUP($F74,'CBAT Lookups'!$B$17:$K$19,6))","v":""},{"$f":"IF('Project Scope'!$C74=\"\",\"\",VLOOKUP($F74,'CBAT Lookups'!$B$17:$K$19,7))","v":""},{"$f":"IF('Project Scope'!$C74=\"\",\"\",IF(SUMPRODUCT($P74:$S74,$AN74:$AQ74)=0,0,P74*AN74/SUMPRODUCT($P74:$S74,$AN74:$AQ74)))","v":""},{"$f":"IF('Project Scope'!$C74=\"\",\"\",IF(SUMPRODUCT($P74:$S74,$AN74:$AQ74)=0,0,Q74*AO74/SUMPRODUCT($P74:$S74,$AN74:$AQ74)))","v":""},{"$f":"IF('Project Scope'!$C74=\"\",\"\",IF(SUMPRODUCT($P74:$S74,$AN74:$AQ74)=0,0,R74*AP74/SUMPRODUCT($P74:$S74,$AN74:$AQ74)))","v":""},{"$f":"IF('Project Scope'!$C74=\"\",\"\",IF(SUMPRODUCT($P74:$S74,$AN74:$AQ74)=0,0,S74*AQ74/SUMPRODUCT($P74:$S74,$AN74:$AQ74)))","v":""},{"$f":"IF('Project Scope'!$C74=\"\",\"\",Benefits($AB74,$AD74,$AE74,$AG74,$AH74,$AI74,$AJ74,$AK74,$AL74,$AM74,$M74,$AR74,$AS74,$AT74,$AU74,$W74,$X74,$Y74,$Z74,$AA74,$E74))","v":""},"","","","","","","","",null,{"$f":"IF('Project Scope'!$C74=\"\",\"\",SUM('Project Scope'!$AT74,'Project Scope'!$AU74))","v":""},{"$f":"IF('Project Scope'!$C74=\"\",\"\",SUM('Project Scope'!$BG74, 'Project Scope'!$AR74,(IF(ISNUMBER('Project Scope'!$AS74),'Project Scope'!$AS74,0)*'Project Information'!$D$12)))","v":""},null,null,{"$f":"IF('Project Scope'!$C74=\"\",\"\",IF(COUNTIF('CBAT Lookups'!$B$5:$B$12,\"Controls-\"&CBAT!$D74)=1,VLOOKUP(\"Controls-\"&CBAT!$D74,'CBAT Lookups'!$B$5:$L$12,11),0))","v":""},{"$f":"IF('Project Scope'!$C74=\"\",\"\",IF(COUNTIF('CBAT Lookups'!$B$5:$B$12,\"Controls-\"&CBAT!$D74)=1,VLOOKUP(\"Controls-\"&CBAT!$D74,'CBAT Lookups'!$B$5:$K$12,2),0)*VLOOKUP($F74,'CBAT Lookups'!$B$17:$K$19,2))","v":""},{"$f":"IF('Project Scope'!$C74=\"\",\"\",IF(COUNTIF('CBAT Lookups'!$B$5:$B$12,\"Controls-\"&CBAT!$D74)=1,VLOOKUP(\"Controls-\"&CBAT!$D74,'CBAT Lookups'!$B$5:$K$12,3),0)*VLOOKUP($F74,'CBAT Lookups'!$B$17:$K$19,3))","v":""},{"$f":"IF('Project Scope'!$C74=\"\",\"\",IF(COUNTIF('CBAT Lookups'!$B$5:$B$12,\"Controls-\"&CBAT!$D74)=1,VLOOKUP(\"Controls-\"&CBAT!$D74,'CBAT Lookups'!$B$5:$K$12,4),0))","v":""},{"$f":"IF('Project Scope'!$C74=\"\",\"\",IF(COUNTIF('CBAT Lookups'!$B$5:$B$12,\"Controls-\"&CBAT!$D74)=1,VLOOKUP(\"Controls-\"&CBAT!$D74,'CBAT Lookups'!$B$5:$K$12,5),0))","v":""},{"$f":"IF('Project Scope'!$C74=\"\",\"\",IF(COUNTIF('CBAT Lookups'!$B$5:$B$12,\"Controls-\"&CBAT!$D74)=1,VLOOKUP(\"Controls-\"&CBAT!$D74,'CBAT Lookups'!$B$5:$K$12,6),0))","v":""},{"$f":"IF('Project Scope'!$C74=\"\",\"\",IF(COUNTIF('CBAT Lookups'!$B$5:$B$12,\"Controls-\"&CBAT!$D74)=1,VLOOKUP(\"Controls-\"&CBAT!$D74,'CBAT Lookups'!$B$5:$K$12,7),0))","v":""},{"$f":"IF('Project Scope'!$C74=\"\",\"\",IF(VLOOKUP($F74,'CBAT Lookups'!$B$17:$K$19,8)=\"W\",1,IF(COUNTIF('CBAT Lookups'!$B$5:$B$12,\"Controls-\"&CBAT!$D74)=1,VLOOKUP(\"Controls-\"&CBAT!$D74,'CBAT Lookups'!$B$5:$K$12,8),0)*VLOOKUP($F74,'CBAT Lookups'!$B$17:$K$19,8)))","v":""},{"$f":"IF('Project Scope'!$C74=\"\",\"\",IF(VLOOKUP($F74,'CBAT Lookups'!$B$17:$K$19,9)=\"W\",1,IF(COUNTIF('CBAT Lookups'!$B$5:$B$12,\"Controls-\"&CBAT!$D74)=1,VLOOKUP(\"Controls-\"&CBAT!$D74,'CBAT Lookups'!$B$5:$K$12,9),0)*VLOOKUP($F74,'CBAT Lookups'!$B$17:$K$19,9)))","v":""},{"$f":"IF('Project Scope'!$C74=\"\",\"\",IF(COUNTIF('CBAT Lookups'!$B$5:$B$12,\"Controls-\"&CBAT!$D74)=1,VLOOKUP(\"Controls-\"&CBAT!$D74,'CBAT Lookups'!$B$5:$K$12,10),0)*VLOOKUP($F74,'CBAT Lookups'!$B$17:$K$19,10))","v":""},{"$f":"IF('Project Scope'!$C74=\"\",\"\",VLOOKUP($C74,'CBAT Lookups'!$A$33:$B$57,2))","v":""},{"$f":"IF('Project Scope'!$C74=\"\",\"\",IF(COUNTIF('CBAT Lookups'!$B$5:$B$12,\"Controls-\"&CBAT!$D74)=1,VLOOKUP(\"Controls-\"&CBAT!$D74,'CBAT Lookups'!$B$5:$O$12,12),0))","v":""},{"$f":"IF('Project Scope'!$C74=\"\",\"\",IF(COUNTIF('CBAT Lookups'!$B$5:$B$12,\"Controls-\"&CBAT!$D74)=1,VLOOKUP(\"Controls-\"&CBAT!$D74,'CBAT Lookups'!$B$5:$O$12,13),0))","v":""},{"$f":"IF('Project Scope'!$C74=\"\",\"\",IF(COUNTIF('CBAT Lookups'!$B$5:$B$12,\"Controls-\"&CBAT!$D74)=1,VLOOKUP(\"Controls-\"&CBAT!$D74,'CBAT Lookups'!$B$5:$O$12,14),0))","v":""},{"$f":"IF('Project Scope'!$C74=\"\",\"\",'TRM Data'!$U$3)","v":""},{"$f":"IF('Project Scope'!$C74=\"\",\"\",'TRM Data'!$V$3)","v":""},{"$f":"IF('Project Scope'!$C74=\"\",\"\",IF($K74<=0,0,MAX(0,(IF(AND($I74>0,$J74>0),($I74*$J74)/1000,($G74*$H74)/1000)*$L74))*$BT74*$BR74)+($CD74/0.003412))","v":""},{"$f":"IF('Project Scope'!$C74=\"\",\"\",IF($K74<=0,0,MAX(0,IF(AND($I74>0,$J74>0),($I74*$J74)/1000,($G74*$H74)/1000))*$BQ74))","v":""},{"$f":"IF('Project Scope'!$C74=\"\",\"\",IF($K74<=0,0,MAX(0,IF(AND($I74>0,$J74>0),($I74*$J74)/1000,($G74*$H74)/1000))*$BK74))","v":""},{"$f":"IF('Project Scope'!$C74=\"\",\"\",IF($K74<=0,0,MAX(0,IF(AND($I74>0,$J74>0),($I74*$J74)/1000,($G74*$H74)/1000))*$BL74*$BQ74))","v":""},{"$f":"IF('Project Scope'!$C74=\"\",\"\",IF(OR($K74<=0,'Project Information'!$D$44=\"\"),0,-1*MAX(0,IF(AND($I74>0,$J74>0),($I74*$J74)/1000,($G74*$H74)/1000))*$BT74*$L74*$BS74*VLOOKUP('Project Information'!$D$44,'CBAT Lookups'!$A$23:$H$30,2)))","v":""},{"$f":"IF('Project Scope'!$C74=\"\",\"\",IF(OR($K74<=0,'Project Information'!$D$44=\"\"),0,-1*MAX(0,IF(AND($I74>0,$J74>0),($I74*$J74)/1000,($G74*$H74)/1000))*$BT74*$L74*$BS74*VLOOKUP('Project Information'!$D$44,'CBAT Lookups'!$A$23:$H$30,3)))","v":""},{"$f":"IF('Project Scope'!$C74=\"\",\"\",IF(OR($K74<=0,'Project Information'!$D$44=\"\"),0,-1*MAX(0,IF(AND($I74>0,$J74>0),($I74*$J74)/1000,($G74*$H74)/1000))*$BT74*$L74*$BS74*VLOOKUP('Project Information'!$D$44,'CBAT Lookups'!$A$23:$H$30,4)))","v":""},{"$f":"IF('Project Scope'!$C74=\"\",\"\",IF(OR($K74<=0,'Project Information'!$D$44=\"\"),0,-1*MAX(0,IF(AND($I74>0,$J74>0),($I74*$J74)/1000,($G74*$H74)/1000))*$BT74*$L74*$BS74*VLOOKUP('Project Information'!$D$44,'CBAT Lookups'!$A$23:$H$30,5)))","v":""},{"$f":"IF('Project Scope'!$C74=\"\",\"\",IF(OR($K74<=0,'Project Information'!$D$44=\"\"),0,-1*MAX(0,IF(AND($I74>0,$J74>0),($I74*$J74)/1000,($G74*$H74)/1000))*$BT74*$L74*$BS74*VLOOKUP('Project Information'!$D$44,'CBAT Lookups'!$A$23:$H$30,6)))","v":""},{"$f":"IF('Project Scope'!$C74=\"\",\"\",IF(OR($K74<=0,'Project Information'!$D$44=\"\"),0,-1*MAX(0,IF(AND($I74>0,$J74>0),($I74*$J74)/1000,($G74*$H74)/1000))*$BT74*$L74*$BS74*VLOOKUP('Project Information'!$D$44,'CBAT Lookups'!$A$23:$H$30,7)))","v":""},{"$f":"IF('Project Scope'!$C74=\"\",\"\",IF(OR($K74<=0,'Project Information'!$D$44=\"\"),0,-1*MAX(0,IF(AND($I74>0,$J74>0),($I74*$J74)/1000,($G74*$H74)/1000))*$BT74*$L74*$BS74*VLOOKUP('Project Information'!$D$44,'CBAT Lookups'!$A$23:$H$30,8)))","v":""},null,{"$f":"IF('Project Scope'!$C74=\"\",\"\",VLOOKUP($F74,'CBAT Lookups'!$B$17:$K$19,4))","v":""},{"$f":"IF('Project Scope'!$C74=\"\",\"\",VLOOKUP($F74,'CBAT Lookups'!$B$17:$K$19,5))","v":""},{"$f":"IF('Project Scope'!$C74=\"\",\"\",VLOOKUP($F74,'CBAT Lookups'!$B$17:$K$19,6))","v":""},{"$f":"IF('Project Scope'!$C74=\"\",\"\",VLOOKUP($F74,'CBAT Lookups'!$B$17:$K$19,7))","v":""},{"$f":"IF('Project Scope'!$C74=\"\",\"\",IF(SUMPRODUCT($BM74:$BP74,$CL74:$CO74)=0,0,BM74*CL74/SUMPRODUCT($BM74:$BP74,$CL74:$CO74)))","v":""},{"$f":"IF('Project Scope'!$C74=\"\",\"\",IF(SUMPRODUCT($BM74:$BP74,$CL74:$CO74)=0,0,BN74*CM74/SUMPRODUCT($BM74:$BP74,$CL74:$CO74)))","v":""},{"$f":"IF('Project Scope'!$C74=\"\",\"\",IF(SUMPRODUCT($BM74:$BP74,$CL74:$CO74)=0,0,BO74*CN74/SUMPRODUCT($BM74:$BP74,$CL74:$CO74)))","v":""},{"$f":"IF('Project Scope'!$C74=\"\",\"\",IF(SUMPRODUCT($BM74:$BP74,$CL74:$CO74)=0,0,BP74*CO74/SUMPRODUCT($BM74:$BP74,$CL74:$CO74)))","v":""},{"$f":"IF('Project Scope'!$C74=\"\",\"\",Benefits($BZ74,$CB74,$CC74,$CE74,$CF74,$CG74,$CH74,$CI74,$CJ74,$CK74,$BJ74,$CP74,$CQ74,$CR74,$CS74,$BU74,$BV74,$BW74,$BX74,$BY74,$E74))","v":""},"","","","","","","","",null,{"$f":"IF('Project Scope'!$C74=\"\",\"\",SUM('Project Scope'!$BB74,'Project Scope'!$BC74))","v":""},{"$f":"IF('Project Scope'!$C74=\"\",\"\",SUM('Project Scope'!$BH74, 'Project Scope'!$AZ74,(IF(ISNUMBER('Project Scope'!$BA74),'Project Scope'!$BA74,0)*'Project Information'!$D$12)))","v":""},null,null,{"$f":"IF('Project Scope'!$C74=\"\",\"\",IF($J74<=0,0,(SUMPRODUCT($AV74:$BC74,--($AV74:$BC74>0))+$BE74)*$DK74/((-SUMPRODUCT($AV74:$BC74,--($AV74:$BC74<0))+$BG74+$BH74+$BI74)*$DK74)))","v":""},{"$f":"IF('Project Scope'!$C74=\"\",\"\",IF($K74<=0,0,(SUMPRODUCT($CT74:$DA74,--($CT74:$DA74>0))+$DC74)*$DK74/((-SUMPRODUCT($CT74:$DA74,--($CT74:$DA74<0))+$DE74+$DF74+$DG74)*$DK74)))","v":""},{"$f":"IF('Project Scope'!$C74=\"\",\"\",IF(AND($J74<=0,$K74<=0),0,(SUMPRODUCT($AV74:$BC74,--($AV74:$BC74>0))+$BE74+SUMPRODUCT($CT74:$DA74,--($CT74:$DA74>0))+$DC74)*$DK74/((-SUMPRODUCT($AV74:$BC74,--($AV74:$BC74<0))+$BG74+$BH74+$BI74-SUMPRODUCT($CT74:$DA74,--($CT74:$DA74<0))+$DE74+$DF74+$DG74)*$DK74)))","v":""},{"$f":"IF('Project Scope'!$C74=\"\",\"\",IF(NetOrGross=\"Net\",(1-Z74+AA74),1))","v":""}]
[{"$f":"'Project Scope'!$B75","v":68},{"$f":"IF('Project Scope'!$C75=\"\",\"\",'Project Scope'!$C75)","v":""},{"$f":"IF('Project Scope'!$C75=\"\",\"\",'Project Scope'!$H75)","v":""},{"$f":"IF(ISNUMBER(SEARCH(\"Bay\",'Project Scope'!$Q75)),\"Bay\",IF('Project Scope'!C75=\"\",\"\",'Project Scope'!E75))","v":""},{"$f":"IF('Project Scope'!$C75=\"\",\"\",\"Com\")","v":""},{"$f":"IF('Project Scope'!$C75=\"\",\"\",'Project Scope'!$L75)","v":""},{"$f":"IF('Project Scope'!$C75=\"\",\"\",IF('Project Scope'!$CJ75=\"\",0,'Project Scope'!$CJ75))","v":""},{"$f":"IF('Project Scope'!$C75=\"\",\"\",IF('Project Scope'!$N75=\"\",0,'Project Scope'!$N75))","v":""},{"$f":"IF('Project Scope'!$C75=\"\",\"\",IF('Project Scope'!$CK75=\"\",0,'Project Scope'!$CK75))","v":""},{"$f":"IF('Project Scope'!$C75=\"\",\"\",IF('Project Scope'!$AO75=\"\",0,'Project Scope'!$AO75))","v":""},{"$f":"IF('Project Scope'!$C75=\"\",\"\",IF('Project Scope'!$AX75=\"\",0,'Project Scope'!$AX75))","v":""},{"$f":"IF('Project Scope'!$C75=\"\",\"\",IF('Project Scope'!$M75=\"\",0,'Project Scope'!$M75))","v":""},{"$f":"IF('Project Scope'!$C75=\"\",\"\",IF(COUNTIF('CBAT Lookups'!$B$5:$B$12,\"Fixtures-\"&CBAT!$D75)=1,VLOOKUP(\"Fixtures-\"&CBAT!$D75,'CBAT Lookups'!$B$5:$L$12,11),0))","v":""},{"$f":"IF('Project Scope'!$C75=\"\",\"\",(IF(COUNTIF('CBAT Lookups'!$B$5:$B$12,\"Fixtures-\"&CBAT!$D75)=1,VLOOKUP(\"Fixtures-\"&CBAT!$D75,'CBAT Lookups'!$B$5:$K$12,2),0))*VLOOKUP($F75,'CBAT Lookups'!$B$17:$K$19,2))","v":""},{"$f":"IF('Project Scope'!$C75=\"\",\"\",(IF(COUNTIF('CBAT Lookups'!$B$5:$B$12,\"Fixtures-\"&CBAT!$D75)=1,VLOOKUP(\"Fixtures-\"&CBAT!$D75,'CBAT Lookups'!$B$5:$K$12,3),0))*VLOOKUP($F75,'CBAT Lookups'!$B$17:$K$19,3))","v":""},{"$f":"IF('Project Scope'!$C75=\"\",\"\",(IF(COUNTIF('CBAT Lookups'!$B$5:$B$12,\"Fixtures-\"&CBAT!$D75)=1,VLOOKUP(\"Fixtures-\"&CBAT!$D75,'CBAT Lookups'!$B$5:$K$12,4),0)))","v":""},{"$f":"IF('Project Scope'!$C75=\"\",\"\",(IF(COUNTIF('CBAT Lookups'!$B$5:$B$12,\"Fixtures-\"&CBAT!$D75)=1,VLOOKUP(\"Fixtures-\"&CBAT!$D75,'CBAT Lookups'!$B$5:$K$12,5),0)))","v":""},{"$f":"IF('Project Scope'!$C75=\"\",\"\",(IF(COUNTIF('CBAT Lookups'!$B$5:$B$12,\"Fixtures-\"&CBAT!$D75)=1,VLOOKUP(\"Fixtures-\"&CBAT!$D75,'CBAT Lookups'!$B$5:$K$12,6),0)))","v":""},{"$f":"IF('Project Scope'!$C75=\"\",\"\",IF(COUNTIF('CBAT Lookups'!$B$5:$B$12,\"Fixtures-\"&CBAT!$D75)=1,VLOOKUP(\"Fixtures-\"&CBAT!$D75,'CBAT Lookups'!$B$5:$K$12,7),0))","v":""},{"$f":"IF('Project Scope'!$C75=\"\",\"\",IF(VLOOKUP($F75,'CBAT Lookups'!$B$17:$K$19,8)=\"W\",1,IF(COUNTIF('CBAT Lookups'!$B$5:$B$12,\"Fixtures-\"&CBAT!$D75)=1,VLOOKUP(\"Fixtures-\"&CBAT!$D75,'CBAT Lookups'!$B$5:$K$12,8),0)*VLOOKUP($F75,'CBAT Lookups'!$B$17:$K$19,8)))","v":""},{"$f":"IF('Project Scope'!$C75=\"\",\"\",IF(VLOOKUP($F75,'CBAT Lookups'!$B$17:$K$19,9)=\"W\",1,IF(COUNTIF('CBAT Lookups'!$B$5:$B$12,\"Fixtures-\"&CBAT!$D75)=1,VLOOKUP(\"Fixtures-\"&CBAT!$D75,'CBAT Lookups'!$B$5:$K$12,9),0)*VLOOKUP($F75,'CBAT Lookups'!$B$17:$K$19,9)))","v":""},{"$f":"IF('Project Scope'!$C75=\"\",\"\",IF(COUNTIF('CBAT Lookups'!$B$5:$B$12,\"Fixtures-\"&CBAT!$D75)=1,VLOOKUP(\"Fixtures-\"&CBAT!$D75,'CBAT Lookups'!$B$5:$K$12,10),0)*VLOOKUP($F75,'CBAT Lookups'!$B$17:$K$19,10))","v":""},{"$f":"IF('Project Scope'!$C75=\"\",\"\",IF(COUNTIF('CBAT Lookups'!$B$5:$B$12,\"Fixtures-\"&CBAT!$D75)=1,VLOOKUP(\"Fixtures-\"&CBAT!$D75,'CBAT Lookups'!$B$5:$O$12,12),0))","v":""},{"$f":"IF('Project Scope'!$C75=\"\",\"\",IF(COUNTIF('CBAT Lookups'!$B$5:$B$12,\"Fixtures-\"&CBAT!$D75)=1,VLOOKUP(\"Fixtures-\"&CBAT!$D75,'CBAT Lookups'!$B$5:$O$12,13),0))","v":""},{"$f":"IF('Project Scope'!$C75=\"\",\"\",IF(COUNTIF('CBAT Lookups'!$B$5:$B$12,\"Fixtures-\"&CBAT!$D75)=1,VLOOKUP(\"Fixtures-\"&CBAT!$D75,'CBAT Lookups'!$B$5:$O$12,14),0))","v":""},{"$f":"IF('Project Scope'!$C75=\"\",\"\",'TRM Data'!$U$3)","v":""},{"$f":"IF('Project Scope'!$C75=\"\",\"\",'TRM Data'!$V$3)","v":""},{"$f":"IF('Project Scope'!$C75=\"\",\"\",IF($J75<=0,0,MAX(0,(($G75*$H75/1000)-($I75*$J75/1000))*$L75)*$U75)+($AF75/0.003412))","v":""},{"$f":"IF('Project Scope'!$C75=\"\",\"\",IF($J75<=0,0,MAX(0,(($G75*$H75/1000)-($I75*$J75/1000)))*$T75))","v":""},{"$f":"IF('Project Scope'!$C75=\"\",\"\",IF($J75<=0,0,MAX(0,(($G75*$H75/1000)-($I75*$J75/1000))*$N75)))","v":""},{"$f":"IF('Project Scope'!$C75=\"\",\"\",IF($J75<=0,0,MAX(0,(($G75*$H75/1000)-($I75*$J75/1000))*$O75)*$T75))","v":""},{"$f":"IF('Project Scope'!$C75=\"\",\"\",IF(OR($J75<=0,'Project Information'!$D$44=\"\"),0,-1*MAX(0,(($G75*$H75/1000)-($I75*$J75/1000))*$L75)*$V75*VLOOKUP('Project Information'!$D$44,'CBAT Lookups'!$A$23:$H$30,2)))","v":""},{"$f":"IF('Project Scope'!$C75=\"\",\"\",IF(OR($J75<=0,'Project Information'!$D$44=\"\"),0,-1*MAX(0,(($G75*$H75/1000)-($I75*$J75/1000))*$L75)*$V75*VLOOKUP('Project Information'!$D$44,'CBAT Lookups'!$A$23:$H$30,3)))","v":""},{"$f":"IF('Project Scope'!$C75=\"\",\"\",IF(OR($J75<=0,'Project Information'!$D$44=\"\"),0,-1*MAX(0,(($G75*$H75/1000)-($I75*$J75/1000))*$L75)*$V75*VLOOKUP('Project Information'!$D$44,'CBAT Lookups'!$A$23:$H$30,4)))","v":""},{"$f":"IF('Project Scope'!$C75=\"\",\"\",IF(OR($J75<=0,'Project Information'!$D$44=\"\"),0,-1*MAX(0,(($G75*$H75/1000)-($I75*$J75/1000))*$L75)*$V75*VLOOKUP('Project Information'!$D$44,'CBAT Lookups'!$A$23:$H$30,5)))","v":""},{"$f":"IF('Project Scope'!$C75=\"\",\"\",IF(OR($J75<=0,'Project Information'!$D$44=\"\"),0,-1*MAX(0,(($G75*$H75/1000)-($I75*$J75/1000))*$L75)*$V75*VLOOKUP('Project Information'!$D$44,'CBAT Lookups'!$A$23:$H$30,6)))","v":""},{"$f":"IF('Project Scope'!$C75=\"\",\"\",IF(OR($J75<=0,'Project Information'!$D$44=\"\"),0,-1*MAX(0,(($G75*$H75/1000)-($I75*$J75/1000))*$L75)*$V75*VLOOKUP('Project Information'!$D$44,'CBAT Lookups'!$A$23:$H$30,7)))","v":""},{"$f":"IF('Project Scope'!$C75=\"\",\"\",IF(OR($J75<=0,'Project Information'!$D$44=\"\"),0,-1*MAX(0,(($G75*$H75/1000)-($I75*$J75/1000))*$L75)*$V75*VLOOKUP('Project Information'!$D$44,'CBAT Lookups'!$A$23:$H$30,8)))","v":""},null,{"$f":"IF('Project Scope'!$C75=\"\",\"\",VLOOKUP($F75,'CBAT Lookups'!$B$17:$K$19,4))","v":""},{"$f":"IF('Project Scope'!$C75=\"\",\"\",VLOOKUP($F75,'CBAT Lookups'!$B$17:$K$19,5))","v":""},{"$f":"IF('Project Scope'!$C75=\"\",\"\",VLOOKUP($F75,'CBAT Lookups'!$B$17:$K$19,6))","v":""},{"$f":"IF('Project Scope'!$C75=\"\",\"\",VLOOKUP($F75,'CBAT Lookups'!$B$17:$K$19,7))","v":""},{"$f":"IF('Project Scope'!$C75=\"\",\"\",IF(SUMPRODUCT($P75:$S75,$AN75:$AQ75)=0,0,P75*AN75/SUMPRODUCT($P75:$S75,$AN75:$AQ75)))","v":""},{"$f":"IF('Project Scope'!$C75=\"\",\"\",IF(SUMPRODUCT($P75:$S75,$AN75:$AQ75)=0,0,Q75*AO75/SUMPRODUCT($P75:$S75,$AN75:$AQ75)))","v":""},{"$f":"IF('Project Scope'!$C75=\"\",\"\",IF(SUMPRODUCT($P75:$S75,$AN75:$AQ75)=0,0,R75*AP75/SUMPRODUCT($P75:$S75,$AN75:$AQ75)))","v":""},{"$f":"IF('Project Scope'!$C75=\"\",\"\",IF(SUMPRODUCT($P75:$S75,$AN75:$AQ75)=0,0,S75*AQ75/SUMPRODUCT($P75:$S75,$AN75:$AQ75)))","v":""},{"$f":"IF('Project Scope'!$C75=\"\",\"\",Benefits($AB75,$AD75,$AE75,$AG75,$AH75,$AI75,$AJ75,$AK75,$AL75,$AM75,$M75,$AR75,$AS75,$AT75,$AU75,$W75,$X75,$Y75,$Z75,$AA75,$E75))","v":""},"","","","","","","","",null,{"$f":"IF('Project Scope'!$C75=\"\",\"\",SUM('Project Scope'!$AT75,'Project Scope'!$AU75))","v":""},{"$f":"IF('Project Scope'!$C75=\"\",\"\",SUM('Project Scope'!$BG75, 'Project Scope'!$AR75,(IF(ISNUMBER('Project Scope'!$AS75),'Project Scope'!$AS75,0)*'Project Information'!$D$12)))","v":""},null,null,{"$f":"IF('Project Scope'!$C75=\"\",\"\",IF(COUNTIF('CBAT Lookups'!$B$5:$B$12,\"Controls-\"&CBAT!$D75)=1,VLOOKUP(\"Controls-\"&CBAT!$D75,'CBAT Lookups'!$B$5:$L$12,11),0))","v":""},{"$f":"IF('Project Scope'!$C75=\"\",\"\",IF(COUNTIF('CBAT Lookups'!$B$5:$B$12,\"Controls-\"&CBAT!$D75)=1,VLOOKUP(\"Controls-\"&CBAT!$D75,'CBAT Lookups'!$B$5:$K$12,2),0)*VLOOKUP($F75,'CBAT Lookups'!$B$17:$K$19,2))","v":""},{"$f":"IF('Project Scope'!$C75=\"\",\"\",IF(COUNTIF('CBAT Lookups'!$B$5:$B$12,\"Controls-\"&CBAT!$D75)=1,VLOOKUP(\"Controls-\"&CBAT!$D75,'CBAT Lookups'!$B$5:$K$12,3),0)*VLOOKUP($F75,'CBAT Lookups'!$B$17:$K$19,3))","v":""},{"$f":"IF('Project Scope'!$C75=\"\",\"\",IF(COUNTIF('CBAT Lookups'!$B$5:$B$12,\"Controls-\"&CBAT!$D75)=1,VLOOKUP(\"Controls-\"&CBAT!$D75,'CBAT Lookups'!$B$5:$K$12,4),0))","v":""},{"$f":"IF('Project Scope'!$C75=\"\",\"\",IF(COUNTIF('CBAT Lookups'!$B$5:$B$12,\"Controls-\"&CBAT!$D75)=1,VLOOKUP(\"Controls-\"&CBAT!$D75,'CBAT Lookups'!$B$5:$K$12,5),0))","v":""},{"$f":"IF('Project Scope'!$C75=\"\",\"\",IF(COUNTIF('CBAT Lookups'!$B$5:$B$12,\"Controls-\"&CBAT!$D75)=1,VLOOKUP(\"Controls-\"&CBAT!$D75,'CBAT Lookups'!$B$5:$K$12,6),0))","v":""},{"$f":"IF('Project Scope'!$C75=\"\",\"\",IF(COUNTIF('CBAT Lookups'!$B$5:$B$12,\"Controls-\"&CBAT!$D75)=1,VLOOKUP(\"Controls-\"&CBAT!$D75,'CBAT Lookups'!$B$5:$K$12,7),0))","v":""},{"$f":"IF('Project Scope'!$C75=\"\",\"\",IF(VLOOKUP($F75,'CBAT Lookups'!$B$17:$K$19,8)=\"W\",1,IF(COUNTIF('CBAT Lookups'!$B$5:$B$12,\"Controls-\"&CBAT!$D75)=1,VLOOKUP(\"Controls-\"&CBAT!$D75,'CBAT Lookups'!$B$5:$K$12,8),0)*VLOOKUP($F75,'CBAT Lookups'!$B$17:$K$19,8)))","v":""},{"$f":"IF('Project Scope'!$C75=\"\",\"\",IF(VLOOKUP($F75,'CBAT Lookups'!$B$17:$K$19,9)=\"W\",1,IF(COUNTIF('CBAT Lookups'!$B$5:$B$12,\"Controls-\"&CBAT!$D75)=1,VLOOKUP(\"Controls-\"&CBAT!$D75,'CBAT Lookups'!$B$5:$K$12,9),0)*VLOOKUP($F75,'CBAT Lookups'!$B$17:$K$19,9)))","v":""},{"$f":"IF('Project Scope'!$C75=\"\",\"\",IF(COUNTIF('CBAT Lookups'!$B$5:$B$12,\"Controls-\"&CBAT!$D75)=1,VLOOKUP(\"Controls-\"&CBAT!$D75,'CBAT Lookups'!$B$5:$K$12,10),0)*VLOOKUP($F75,'CBAT Lookups'!$B$17:$K$19,10))","v":""},{"$f":"IF('Project Scope'!$C75=\"\",\"\",VLOOKUP($C75,'CBAT Lookups'!$A$33:$B$57,2))","v":""},{"$f":"IF('Project Scope'!$C75=\"\",\"\",IF(COUNTIF('CBAT Lookups'!$B$5:$B$12,\"Controls-\"&CBAT!$D75)=1,VLOOKUP(\"Controls-\"&CBAT!$D75,'CBAT Lookups'!$B$5:$O$12,12),0))","v":""},{"$f":"IF('Project Scope'!$C75=\"\",\"\",IF(COUNTIF('CBAT Lookups'!$B$5:$B$12,\"Controls-\"&CBAT!$D75)=1,VLOOKUP(\"Controls-\"&CBAT!$D75,'CBAT Lookups'!$B$5:$O$12,13),0))","v":""},{"$f":"IF('Project Scope'!$C75=\"\",\"\",IF(COUNTIF('CBAT Lookups'!$B$5:$B$12,\"Controls-\"&CBAT!$D75)=1,VLOOKUP(\"Controls-\"&CBAT!$D75,'CBAT Lookups'!$B$5:$O$12,14),0))","v":""},{"$f":"IF('Project Scope'!$C75=\"\",\"\",'TRM Data'!$U$3)","v":""},{"$f":"IF('Project Scope'!$C75=\"\",\"\",'TRM Data'!$V$3)","v":""},{"$f":"IF('Project Scope'!$C75=\"\",\"\",IF($K75<=0,0,MAX(0,(IF(AND($I75>0,$J75>0),($I75*$J75)/1000,($G75*$H75)/1000)*$L75))*$BT75*$BR75)+($CD75/0.003412))","v":""},{"$f":"IF('Project Scope'!$C75=\"\",\"\",IF($K75<=0,0,MAX(0,IF(AND($I75>0,$J75>0),($I75*$J75)/1000,($G75*$H75)/1000))*$BQ75))","v":""},{"$f":"IF('Project Scope'!$C75=\"\",\"\",IF($K75<=0,0,MAX(0,IF(AND($I75>0,$J75>0),($I75*$J75)/1000,($G75*$H75)/1000))*$BK75))","v":""},{"$f":"IF('Project Scope'!$C75=\"\",\"\",IF($K75<=0,0,MAX(0,IF(AND($I75>0,$J75>0),($I75*$J75)/1000,($G75*$H75)/1000))*$BL75*$BQ75))","v":""},{"$f":"IF('Project Scope'!$C75=\"\",\"\",IF(OR($K75<=0,'Project Information'!$D$44=\"\"),0,-1*MAX(0,IF(AND($I75>0,$J75>0),($I75*$J75)/1000,($G75*$H75)/1000))*$BT75*$L75*$BS75*VLOOKUP('Project Information'!$D$44,'CBAT Lookups'!$A$23:$H$30,2)))","v":""},{"$f":"IF('Project Scope'!$C75=\"\",\"\",IF(OR($K75<=0,'Project Information'!$D$44=\"\"),0,-1*MAX(0,IF(AND($I75>0,$J75>0),($I75*$J75)/1000,($G75*$H75)/1000))*$BT75*$L75*$BS75*VLOOKUP('Project Information'!$D$44,'CBAT Lookups'!$A$23:$H$30,3)))","v":""},{"$f":"IF('Project Scope'!$C75=\"\",\"\",IF(OR($K75<=0,'Project Information'!$D$44=\"\"),0,-1*MAX(0,IF(AND($I75>0,$J75>0),($I75*$J75)/1000,($G75*$H75)/1000))*$BT75*$L75*$BS75*VLOOKUP('Project Information'!$D$44,'CBAT Lookups'!$A$23:$H$30,4)))","v":""},{"$f":"IF('Project Scope'!$C75=\"\",\"\",IF(OR($K75<=0,'Project Information'!$D$44=\"\"),0,-1*MAX(0,IF(AND($I75>0,$J75>0),($I75*$J75)/1000,($G75*$H75)/1000))*$BT75*$L75*$BS75*VLOOKUP('Project Information'!$D$44,'CBAT Lookups'!$A$23:$H$30,5)))","v":""},{"$f":"IF('Project Scope'!$C75=\"\",\"\",IF(OR($K75<=0,'Project Information'!$D$44=\"\"),0,-1*MAX(0,IF(AND($I75>0,$J75>0),($I75*$J75)/1000,($G75*$H75)/1000))*$BT75*$L75*$BS75*VLOOKUP('Project Information'!$D$44,'CBAT Lookups'!$A$23:$H$30,6)))","v":""},{"$f":"IF('Project Scope'!$C75=\"\",\"\",IF(OR($K75<=0,'Project Information'!$D$44=\"\"),0,-1*MAX(0,IF(AND($I75>0,$J75>0),($I75*$J75)/1000,($G75*$H75)/1000))*$BT75*$L75*$BS75*VLOOKUP('Project Information'!$D$44,'CBAT Lookups'!$A$23:$H$30,7)))","v":""},{"$f":"IF('Project Scope'!$C75=\"\",\"\",IF(OR($K75<=0,'Project Information'!$D$44=\"\"),0,-1*MAX(0,IF(AND($I75>0,$J75>0),($I75*$J75)/1000,($G75*$H75)/1000))*$BT75*$L75*$BS75*VLOOKUP('Project Information'!$D$44,'CBAT Lookups'!$A$23:$H$30,8)))","v":""},null,{"$f":"IF('Project Scope'!$C75=\"\",\"\",VLOOKUP($F75,'CBAT Lookups'!$B$17:$K$19,4))","v":""},{"$f":"IF('Project Scope'!$C75=\"\",\"\",VLOOKUP($F75,'CBAT Lookups'!$B$17:$K$19,5))","v":""},{"$f":"IF('Project Scope'!$C75=\"\",\"\",VLOOKUP($F75,'CBAT Lookups'!$B$17:$K$19,6))","v":""},{"$f":"IF('Project Scope'!$C75=\"\",\"\",VLOOKUP($F75,'CBAT Lookups'!$B$17:$K$19,7))","v":""},{"$f":"IF('Project Scope'!$C75=\"\",\"\",IF(SUMPRODUCT($BM75:$BP75,$CL75:$CO75)=0,0,BM75*CL75/SUMPRODUCT($BM75:$BP75,$CL75:$CO75)))","v":""},{"$f":"IF('Project Scope'!$C75=\"\",\"\",IF(SUMPRODUCT($BM75:$BP75,$CL75:$CO75)=0,0,BN75*CM75/SUMPRODUCT($BM75:$BP75,$CL75:$CO75)))","v":""},{"$f":"IF('Project Scope'!$C75=\"\",\"\",IF(SUMPRODUCT($BM75:$BP75,$CL75:$CO75)=0,0,BO75*CN75/SUMPRODUCT($BM75:$BP75,$CL75:$CO75)))","v":""},{"$f":"IF('Project Scope'!$C75=\"\",\"\",IF(SUMPRODUCT($BM75:$BP75,$CL75:$CO75)=0,0,BP75*CO75/SUMPRODUCT($BM75:$BP75,$CL75:$CO75)))","v":""},{"$f":"IF('Project Scope'!$C75=\"\",\"\",Benefits($BZ75,$CB75,$CC75,$CE75,$CF75,$CG75,$CH75,$CI75,$CJ75,$CK75,$BJ75,$CP75,$CQ75,$CR75,$CS75,$BU75,$BV75,$BW75,$BX75,$BY75,$E75))","v":""},"","","","","","","","",null,{"$f":"IF('Project Scope'!$C75=\"\",\"\",SUM('Project Scope'!$BB75,'Project Scope'!$BC75))","v":""},{"$f":"IF('Project Scope'!$C75=\"\",\"\",SUM('Project Scope'!$BH75, 'Project Scope'!$AZ75,(IF(ISNUMBER('Project Scope'!$BA75),'Project Scope'!$BA75,0)*'Project Information'!$D$12)))","v":""},null,null,{"$f":"IF('Project Scope'!$C75=\"\",\"\",IF($J75<=0,0,(SUMPRODUCT($AV75:$BC75,--($AV75:$BC75>0))+$BE75)*$DK75/((-SUMPRODUCT($AV75:$BC75,--($AV75:$BC75<0))+$BG75+$BH75+$BI75)*$DK75)))","v":""},{"$f":"IF('Project Scope'!$C75=\"\",\"\",IF($K75<=0,0,(SUMPRODUCT($CT75:$DA75,--($CT75:$DA75>0))+$DC75)*$DK75/((-SUMPRODUCT($CT75:$DA75,--($CT75:$DA75<0))+$DE75+$DF75+$DG75)*$DK75)))","v":""},{"$f":"IF('Project Scope'!$C75=\"\",\"\",IF(AND($J75<=0,$K75<=0),0,(SUMPRODUCT($AV75:$BC75,--($AV75:$BC75>0))+$BE75+SUMPRODUCT($CT75:$DA75,--($CT75:$DA75>0))+$DC75)*$DK75/((-SUMPRODUCT($AV75:$BC75,--($AV75:$BC75<0))+$BG75+$BH75+$BI75-SUMPRODUCT($CT75:$DA75,--($CT75:$DA75<0))+$DE75+$DF75+$DG75)*$DK75)))","v":""},{"$f":"IF('Project Scope'!$C75=\"\",\"\",IF(NetOrGross=\"Net\",(1-Z75+AA75),1))","v":""}]
[{"$f":"'Project Scope'!$B76","v":69},{"$f":"IF('Project Scope'!$C76=\"\",\"\",'Project Scope'!$C76)","v":""},{"$f":"IF('Project Scope'!$C76=\"\",\"\",'Project Scope'!$H76)","v":""},{"$f":"IF(ISNUMBER(SEARCH(\"Bay\",'Project Scope'!$Q76)),\"Bay\",IF('Project Scope'!C76=\"\",\"\",'Project Scope'!E76))","v":""},{"$f":"IF('Project Scope'!$C76=\"\",\"\",\"Com\")","v":""},{"$f":"IF('Project Scope'!$C76=\"\",\"\",'Project Scope'!$L76)","v":""},{"$f":"IF('Project Scope'!$C76=\"\",\"\",IF('Project Scope'!$CJ76=\"\",0,'Project Scope'!$CJ76))","v":""},{"$f":"IF('Project Scope'!$C76=\"\",\"\",IF('Project Scope'!$N76=\"\",0,'Project Scope'!$N76))","v":""},{"$f":"IF('Project Scope'!$C76=\"\",\"\",IF('Project Scope'!$CK76=\"\",0,'Project Scope'!$CK76))","v":""},{"$f":"IF('Project Scope'!$C76=\"\",\"\",IF('Project Scope'!$AO76=\"\",0,'Project Scope'!$AO76))","v":""},{"$f":"IF('Project Scope'!$C76=\"\",\"\",IF('Project Scope'!$AX76=\"\",0,'Project Scope'!$AX76))","v":""},{"$f":"IF('Project Scope'!$C76=\"\",\"\",IF('Project Scope'!$M76=\"\",0,'Project Scope'!$M76))","v":""},{"$f":"IF('Project Scope'!$C76=\"\",\"\",IF(COUNTIF('CBAT Lookups'!$B$5:$B$12,\"Fixtures-\"&CBAT!$D76)=1,VLOOKUP(\"Fixtures-\"&CBAT!$D76,'CBAT Lookups'!$B$5:$L$12,11),0))","v":""},{"$f":"IF('Project Scope'!$C76=\"\",\"\",(IF(COUNTIF('CBAT Lookups'!$B$5:$B$12,\"Fixtures-\"&CBAT!$D76)=1,VLOOKUP(\"Fixtures-\"&CBAT!$D76,'CBAT Lookups'!$B$5:$K$12,2),0))*VLOOKUP($F76,'CBAT Lookups'!$B$17:$K$19,2))","v":""},{"$f":"IF('Project Scope'!$C76=\"\",\"\",(IF(COUNTIF('CBAT Lookups'!$B$5:$B$12,\"Fixtures-\"&CBAT!$D76)=1,VLOOKUP(\"Fixtures-\"&CBAT!$D76,'CBAT Lookups'!$B$5:$K$12,3),0))*VLOOKUP($F76,'CBAT Lookups'!$B$17:$K$19,3))","v":""},{"$f":"IF('Project Scope'!$C76=\"\",\"\",(IF(COUNTIF('CBAT Lookups'!$B$5:$B$12,\"Fixtures-\"&CBAT!$D76)=1,VLOOKUP(\"Fixtures-\"&CBAT!$D76,'CBAT Lookups'!$B$5:$K$12,4),0)))","v":""},{"$f":"IF('Project Scope'!$C76=\"\",\"\",(IF(COUNTIF('CBAT Lookups'!$B$5:$B$12,\"Fixtures-\"&CBAT!$D76)=1,VLOOKUP(\"Fixtures-\"&CBAT!$D76,'CBAT Lookups'!$B$5:$K$12,5),0)))","v":""},{"$f":"IF('Project Scope'!$C76=\"\",\"\",(IF(COUNTIF('CBAT Lookups'!$B$5:$B$12,\"Fixtures-\"&CBAT!$D76)=1,VLOOKUP(\"Fixtures-\"&CBAT!$D76,'CBAT Lookups'!$B$5:$K$12,6),0)))","v":""},{"$f":"IF('Project Scope'!$C76=\"\",\"\",IF(COUNTIF('CBAT Lookups'!$B$5:$B$12,\"Fixtures-\"&CBAT!$D76)=1,VLOOKUP(\"Fixtures-\"&CBAT!$D76,'CBAT Lookups'!$B$5:$K$12,7),0))","v":""},{"$f":"IF('Project Scope'!$C76=\"\",\"\",IF(VLOOKUP($F76,'CBAT Lookups'!$B$17:$K$19,8)=\"W\",1,IF(COUNTIF('CBAT Lookups'!$B$5:$B$12,\"Fixtures-\"&CBAT!$D76)=1,VLOOKUP(\"Fixtures-\"&CBAT!$D76,'CBAT Lookups'!$B$5:$K$12,8),0)*VLOOKUP($F76,'CBAT Lookups'!$B$17:$K$19,8)))","v":""},{"$f":"IF('Project Scope'!$C76=\"\",\"\",IF(VLOOKUP($F76,'CBAT Lookups'!$B$17:$K$19,9)=\"W\",1,IF(COUNTIF('CBAT Lookups'!$B$5:$B$12,\"Fixtures-\"&CBAT!$D76)=1,VLOOKUP(\"Fixtures-\"&CBAT!$D76,'CBAT Lookups'!$B$5:$K$12,9),0)*VLOOKUP($F76,'CBAT Lookups'!$B$17:$K$19,9)))","v":""},{"$f":"IF('Project Scope'!$C76=\"\",\"\",IF(COUNTIF('CBAT Lookups'!$B$5:$B$12,\"Fixtures-\"&CBAT!$D76)=1,VLOOKUP(\"Fixtures-\"&CBAT!$D76,'CBAT Lookups'!$B$5:$K$12,10),0)*VLOOKUP($F76,'CBAT Lookups'!$B$17:$K$19,10))","v":""},{"$f":"IF('Project Scope'!$C76=\"\",\"\",IF(COUNTIF('CBAT Lookups'!$B$5:$B$12,\"Fixtures-\"&CBAT!$D76)=1,VLOOKUP(\"Fixtures-\"&CBAT!$D76,'CBAT Lookups'!$B$5:$O$12,12),0))","v":""},{"$f":"IF('Project Scope'!$C76=\"\",\"\",IF(COUNTIF('CBAT Lookups'!$B$5:$B$12,\"Fixtures-\"&CBAT!$D76)=1,VLOOKUP(\"Fixtures-\"&CBAT!$D76,'CBAT Lookups'!$B$5:$O$12,13),0))","v":""},{"$f":"IF('Project Scope'!$C76=\"\",\"\",IF(COUNTIF('CBAT Lookups'!$B$5:$B$12,\"Fixtures-\"&CBAT!$D76)=1,VLOOKUP(\"Fixtures-\"&CBAT!$D76,'CBAT Lookups'!$B$5:$O$12,14),0))","v":""},{"$f":"IF('Project Scope'!$C76=\"\",\"\",'TRM Data'!$U$3)","v":""},{"$f":"IF('Project Scope'!$C76=\"\",\"\",'TRM Data'!$V$3)","v":""},{"$f":"IF('Project Scope'!$C76=\"\",\"\",IF($J76<=0,0,MAX(0,(($G76*$H76/1000)-($I76*$J76/1000))*$L76)*$U76)+($AF76/0.003412))","v":""},{"$f":"IF('Project Scope'!$C76=\"\",\"\",IF($J76<=0,0,MAX(0,(($G76*$H76/1000)-($I76*$J76/1000)))*$T76))","v":""},{"$f":"IF('Project Scope'!$C76=\"\",\"\",IF($J76<=0,0,MAX(0,(($G76*$H76/1000)-($I76*$J76/1000))*$N76)))","v":""},{"$f":"IF('Project Scope'!$C76=\"\",\"\",IF($J76<=0,0,MAX(0,(($G76*$H76/1000)-($I76*$J76/1000))*$O76)*$T76))","v":""},{"$f":"IF('Project Scope'!$C76=\"\",\"\",IF(OR($J76<=0,'Project Information'!$D$44=\"\"),0,-1*MAX(0,(($G76*$H76/1000)-($I76*$J76/1000))*$L76)*$V76*VLOOKUP('Project Information'!$D$44,'CBAT Lookups'!$A$23:$H$30,2)))","v":""},{"$f":"IF('Project Scope'!$C76=\"\",\"\",IF(OR($J76<=0,'Project Information'!$D$44=\"\"),0,-1*MAX(0,(($G76*$H76/1000)-($I76*$J76/1000))*$L76)*$V76*VLOOKUP('Project Information'!$D$44,'CBAT Lookups'!$A$23:$H$30,3)))","v":""},{"$f":"IF('Project Scope'!$C76=\"\",\"\",IF(OR($J76<=0,'Project Information'!$D$44=\"\"),0,-1*MAX(0,(($G76*$H76/1000)-($I76*$J76/1000))*$L76)*$V76*VLOOKUP('Project Information'!$D$44,'CBAT Lookups'!$A$23:$H$30,4)))","v":""},{"$f":"IF('Project Scope'!$C76=\"\",\"\",IF(OR($J76<=0,'Project Information'!$D$44=\"\"),0,-1*MAX(0,(($G76*$H76/1000)-($I76*$J76/1000))*$L76)*$V76*VLOOKUP('Project Information'!$D$44,'CBAT Lookups'!$A$23:$H$30,5)))","v":""},{"$f":"IF('Project Scope'!$C76=\"\",\"\",IF(OR($J76<=0,'Project Information'!$D$44=\"\"),0,-1*MAX(0,(($G76*$H76/1000)-($I76*$J76/1000))*$L76)*$V76*VLOOKUP('Project Information'!$D$44,'CBAT Lookups'!$A$23:$H$30,6)))","v":""},{"$f":"IF('Project Scope'!$C76=\"\",\"\",IF(OR($J76<=0,'Project Information'!$D$44=\"\"),0,-1*MAX(0,(($G76*$H76/1000)-($I76*$J76/1000))*$L76)*$V76*VLOOKUP('Project Information'!$D$44,'CBAT Lookups'!$A$23:$H$30,7)))","v":""},{"$f":"IF('Project Scope'!$C76=\"\",\"\",IF(OR($J76<=0,'Project Information'!$D$44=\"\"),0,-1*MAX(0,(($G76*$H76/1000)-($I76*$J76/1000))*$L76)*$V76*VLOOKUP('Project Information'!$D$44,'CBAT Lookups'!$A$23:$H$30,8)))","v":""},null,{"$f":"IF('Project Scope'!$C76=\"\",\"\",VLOOKUP($F76,'CBAT Lookups'!$B$17:$K$19,4))","v":""},{"$f":"IF('Project Scope'!$C76=\"\",\"\",VLOOKUP($F76,'CBAT Lookups'!$B$17:$K$19,5))","v":""},{"$f":"IF('Project Scope'!$C76=\"\",\"\",VLOOKUP($F76,'CBAT Lookups'!$B$17:$K$19,6))","v":""},{"$f":"IF('Project Scope'!$C76=\"\",\"\",VLOOKUP($F76,'CBAT Lookups'!$B$17:$K$19,7))","v":""},{"$f":"IF('Project Scope'!$C76=\"\",\"\",IF(SUMPRODUCT($P76:$S76,$AN76:$AQ76)=0,0,P76*AN76/SUMPRODUCT($P76:$S76,$AN76:$AQ76)))","v":""},{"$f":"IF('Project Scope'!$C76=\"\",\"\",IF(SUMPRODUCT($P76:$S76,$AN76:$AQ76)=0,0,Q76*AO76/SUMPRODUCT($P76:$S76,$AN76:$AQ76)))","v":""},{"$f":"IF('Project Scope'!$C76=\"\",\"\",IF(SUMPRODUCT($P76:$S76,$AN76:$AQ76)=0,0,R76*AP76/SUMPRODUCT($P76:$S76,$AN76:$AQ76)))","v":""},{"$f":"IF('Project Scope'!$C76=\"\",\"\",IF(SUMPRODUCT($P76:$S76,$AN76:$AQ76)=0,0,S76*AQ76/SUMPRODUCT($P76:$S76,$AN76:$AQ76)))","v":""},{"$f":"IF('Project Scope'!$C76=\"\",\"\",Benefits($AB76,$AD76,$AE76,$AG76,$AH76,$AI76,$AJ76,$AK76,$AL76,$AM76,$M76,$AR76,$AS76,$AT76,$AU76,$W76,$X76,$Y76,$Z76,$AA76,$E76))","v":""},"","","","","","","","",null,{"$f":"IF('Project Scope'!$C76=\"\",\"\",SUM('Project Scope'!$AT76,'Project Scope'!$AU76))","v":""},{"$f":"IF('Project Scope'!$C76=\"\",\"\",SUM('Project Scope'!$BG76, 'Project Scope'!$AR76,(IF(ISNUMBER('Project Scope'!$AS76),'Project Scope'!$AS76,0)*'Project Information'!$D$12)))","v":""},null,null,{"$f":"IF('Project Scope'!$C76=\"\",\"\",IF(COUNTIF('CBAT Lookups'!$B$5:$B$12,\"Controls-\"&CBAT!$D76)=1,VLOOKUP(\"Controls-\"&CBAT!$D76,'CBAT Lookups'!$B$5:$L$12,11),0))","v":""},{"$f":"IF('Project Scope'!$C76=\"\",\"\",IF(COUNTIF('CBAT Lookups'!$B$5:$B$12,\"Controls-\"&CBAT!$D76)=1,VLOOKUP(\"Controls-\"&CBAT!$D76,'CBAT Lookups'!$B$5:$K$12,2),0)*VLOOKUP($F76,'CBAT Lookups'!$B$17:$K$19,2))","v":""},{"$f":"IF('Project Scope'!$C76=\"\",\"\",IF(COUNTIF('CBAT Lookups'!$B$5:$B$12,\"Controls-\"&CBAT!$D76)=1,VLOOKUP(\"Controls-\"&CBAT!$D76,'CBAT Lookups'!$B$5:$K$12,3),0)*VLOOKUP($F76,'CBAT Lookups'!$B$17:$K$19,3))","v":""},{"$f":"IF('Project Scope'!$C76=\"\",\"\",IF(COUNTIF('CBAT Lookups'!$B$5:$B$12,\"Controls-\"&CBAT!$D76)=1,VLOOKUP(\"Controls-\"&CBAT!$D76,'CBAT Lookups'!$B$5:$K$12,4),0))","v":""},{"$f":"IF('Project Scope'!$C76=\"\",\"\",IF(COUNTIF('CBAT Lookups'!$B$5:$B$12,\"Controls-\"&CBAT!$D76)=1,VLOOKUP(\"Controls-\"&CBAT!$D76,'CBAT Lookups'!$B$5:$K$12,5),0))","v":""},{"$f":"IF('Project Scope'!$C76=\"\",\"\",IF(COUNTIF('CBAT Lookups'!$B$5:$B$12,\"Controls-\"&CBAT!$D76)=1,VLOOKUP(\"Controls-\"&CBAT!$D76,'CBAT Lookups'!$B$5:$K$12,6),0))","v":""},{"$f":"IF('Project Scope'!$C76=\"\",\"\",IF(COUNTIF('CBAT Lookups'!$B$5:$B$12,\"Controls-\"&CBAT!$D76)=1,VLOOKUP(\"Controls-\"&CBAT!$D76,'CBAT Lookups'!$B$5:$K$12,7),0))","v":""},{"$f":"IF('Project Scope'!$C76=\"\",\"\",IF(VLOOKUP($F76,'CBAT Lookups'!$B$17:$K$19,8)=\"W\",1,IF(COUNTIF('CBAT Lookups'!$B$5:$B$12,\"Controls-\"&CBAT!$D76)=1,VLOOKUP(\"Controls-\"&CBAT!$D76,'CBAT Lookups'!$B$5:$K$12,8),0)*VLOOKUP($F76,'CBAT Lookups'!$B$17:$K$19,8)))","v":""},{"$f":"IF('Project Scope'!$C76=\"\",\"\",IF(VLOOKUP($F76,'CBAT Lookups'!$B$17:$K$19,9)=\"W\",1,IF(COUNTIF('CBAT Lookups'!$B$5:$B$12,\"Controls-\"&CBAT!$D76)=1,VLOOKUP(\"Controls-\"&CBAT!$D76,'CBAT Lookups'!$B$5:$K$12,9),0)*VLOOKUP($F76,'CBAT Lookups'!$B$17:$K$19,9)))","v":""},{"$f":"IF('Project Scope'!$C76=\"\",\"\",IF(COUNTIF('CBAT Lookups'!$B$5:$B$12,\"Controls-\"&CBAT!$D76)=1,VLOOKUP(\"Controls-\"&CBAT!$D76,'CBAT Lookups'!$B$5:$K$12,10),0)*VLOOKUP($F76,'CBAT Lookups'!$B$17:$K$19,10))","v":""},{"$f":"IF('Project Scope'!$C76=\"\",\"\",VLOOKUP($C76,'CBAT Lookups'!$A$33:$B$57,2))","v":""},{"$f":"IF('Project Scope'!$C76=\"\",\"\",IF(COUNTIF('CBAT Lookups'!$B$5:$B$12,\"Controls-\"&CBAT!$D76)=1,VLOOKUP(\"Controls-\"&CBAT!$D76,'CBAT Lookups'!$B$5:$O$12,12),0))","v":""},{"$f":"IF('Project Scope'!$C76=\"\",\"\",IF(COUNTIF('CBAT Lookups'!$B$5:$B$12,\"Controls-\"&CBAT!$D76)=1,VLOOKUP(\"Controls-\"&CBAT!$D76,'CBAT Lookups'!$B$5:$O$12,13),0))","v":""},{"$f":"IF('Project Scope'!$C76=\"\",\"\",IF(COUNTIF('CBAT Lookups'!$B$5:$B$12,\"Controls-\"&CBAT!$D76)=1,VLOOKUP(\"Controls-\"&CBAT!$D76,'CBAT Lookups'!$B$5:$O$12,14),0))","v":""},{"$f":"IF('Project Scope'!$C76=\"\",\"\",'TRM Data'!$U$3)","v":""},{"$f":"IF('Project Scope'!$C76=\"\",\"\",'TRM Data'!$V$3)","v":""},{"$f":"IF('Project Scope'!$C76=\"\",\"\",IF($K76<=0,0,MAX(0,(IF(AND($I76>0,$J76>0),($I76*$J76)/1000,($G76*$H76)/1000)*$L76))*$BT76*$BR76)+($CD76/0.003412))","v":""},{"$f":"IF('Project Scope'!$C76=\"\",\"\",IF($K76<=0,0,MAX(0,IF(AND($I76>0,$J76>0),($I76*$J76)/1000,($G76*$H76)/1000))*$BQ76))","v":""},{"$f":"IF('Project Scope'!$C76=\"\",\"\",IF($K76<=0,0,MAX(0,IF(AND($I76>0,$J76>0),($I76*$J76)/1000,($G76*$H76)/1000))*$BK76))","v":""},{"$f":"IF('Project Scope'!$C76=\"\",\"\",IF($K76<=0,0,MAX(0,IF(AND($I76>0,$J76>0),($I76*$J76)/1000,($G76*$H76)/1000))*$BL76*$BQ76))","v":""},{"$f":"IF('Project Scope'!$C76=\"\",\"\",IF(OR($K76<=0,'Project Information'!$D$44=\"\"),0,-1*MAX(0,IF(AND($I76>0,$J76>0),($I76*$J76)/1000,($G76*$H76)/1000))*$BT76*$L76*$BS76*VLOOKUP('Project Information'!$D$44,'CBAT Lookups'!$A$23:$H$30,2)))","v":""},{"$f":"IF('Project Scope'!$C76=\"\",\"\",IF(OR($K76<=0,'Project Information'!$D$44=\"\"),0,-1*MAX(0,IF(AND($I76>0,$J76>0),($I76*$J76)/1000,($G76*$H76)/1000))*$BT76*$L76*$BS76*VLOOKUP('Project Information'!$D$44,'CBAT Lookups'!$A$23:$H$30,3)))","v":""},{"$f":"IF('Project Scope'!$C76=\"\",\"\",IF(OR($K76<=0,'Project Information'!$D$44=\"\"),0,-1*MAX(0,IF(AND($I76>0,$J76>0),($I76*$J76)/1000,($G76*$H76)/1000))*$BT76*$L76*$BS76*VLOOKUP('Project Information'!$D$44,'CBAT Lookups'!$A$23:$H$30,4)))","v":""},{"$f":"IF('Project Scope'!$C76=\"\",\"\",IF(OR($K76<=0,'Project Information'!$D$44=\"\"),0,-1*MAX(0,IF(AND($I76>0,$J76>0),($I76*$J76)/1000,($G76*$H76)/1000))*$BT76*$L76*$BS76*VLOOKUP('Project Information'!$D$44,'CBAT Lookups'!$A$23:$H$30,5)))","v":""},{"$f":"IF('Project Scope'!$C76=\"\",\"\",IF(OR($K76<=0,'Project Information'!$D$44=\"\"),0,-1*MAX(0,IF(AND($I76>0,$J76>0),($I76*$J76)/1000,($G76*$H76)/1000))*$BT76*$L76*$BS76*VLOOKUP('Project Information'!$D$44,'CBAT Lookups'!$A$23:$H$30,6)))","v":""},{"$f":"IF('Project Scope'!$C76=\"\",\"\",IF(OR($K76<=0,'Project Information'!$D$44=\"\"),0,-1*MAX(0,IF(AND($I76>0,$J76>0),($I76*$J76)/1000,($G76*$H76)/1000))*$BT76*$L76*$BS76*VLOOKUP('Project Information'!$D$44,'CBAT Lookups'!$A$23:$H$30,7)))","v":""},{"$f":"IF('Project Scope'!$C76=\"\",\"\",IF(OR($K76<=0,'Project Information'!$D$44=\"\"),0,-1*MAX(0,IF(AND($I76>0,$J76>0),($I76*$J76)/1000,($G76*$H76)/1000))*$BT76*$L76*$BS76*VLOOKUP('Project Information'!$D$44,'CBAT Lookups'!$A$23:$H$30,8)))","v":""},null,{"$f":"IF('Project Scope'!$C76=\"\",\"\",VLOOKUP($F76,'CBAT Lookups'!$B$17:$K$19,4))","v":""},{"$f":"IF('Project Scope'!$C76=\"\",\"\",VLOOKUP($F76,'CBAT Lookups'!$B$17:$K$19,5))","v":""},{"$f":"IF('Project Scope'!$C76=\"\",\"\",VLOOKUP($F76,'CBAT Lookups'!$B$17:$K$19,6))","v":""},{"$f":"IF('Project Scope'!$C76=\"\",\"\",VLOOKUP($F76,'CBAT Lookups'!$B$17:$K$19,7))","v":""},{"$f":"IF('Project Scope'!$C76=\"\",\"\",IF(SUMPRODUCT($BM76:$BP76,$CL76:$CO76)=0,0,BM76*CL76/SUMPRODUCT($BM76:$BP76,$CL76:$CO76)))","v":""},{"$f":"IF('Project Scope'!$C76=\"\",\"\",IF(SUMPRODUCT($BM76:$BP76,$CL76:$CO76)=0,0,BN76*CM76/SUMPRODUCT($BM76:$BP76,$CL76:$CO76)))","v":""},{"$f":"IF('Project Scope'!$C76=\"\",\"\",IF(SUMPRODUCT($BM76:$BP76,$CL76:$CO76)=0,0,BO76*CN76/SUMPRODUCT($BM76:$BP76,$CL76:$CO76)))","v":""},{"$f":"IF('Project Scope'!$C76=\"\",\"\",IF(SUMPRODUCT($BM76:$BP76,$CL76:$CO76)=0,0,BP76*CO76/SUMPRODUCT($BM76:$BP76,$CL76:$CO76)))","v":""},{"$f":"IF('Project Scope'!$C76=\"\",\"\",Benefits($BZ76,$CB76,$CC76,$CE76,$CF76,$CG76,$CH76,$CI76,$CJ76,$CK76,$BJ76,$CP76,$CQ76,$CR76,$CS76,$BU76,$BV76,$BW76,$BX76,$BY76,$E76))","v":""},"","","","","","","","",null,{"$f":"IF('Project Scope'!$C76=\"\",\"\",SUM('Project Scope'!$BB76,'Project Scope'!$BC76))","v":""},{"$f":"IF('Project Scope'!$C76=\"\",\"\",SUM('Project Scope'!$BH76, 'Project Scope'!$AZ76,(IF(ISNUMBER('Project Scope'!$BA76),'Project Scope'!$BA76,0)*'Project Information'!$D$12)))","v":""},null,null,{"$f":"IF('Project Scope'!$C76=\"\",\"\",IF($J76<=0,0,(SUMPRODUCT($AV76:$BC76,--($AV76:$BC76>0))+$BE76)*$DK76/((-SUMPRODUCT($AV76:$BC76,--($AV76:$BC76<0))+$BG76+$BH76+$BI76)*$DK76)))","v":""},{"$f":"IF('Project Scope'!$C76=\"\",\"\",IF($K76<=0,0,(SUMPRODUCT($CT76:$DA76,--($CT76:$DA76>0))+$DC76)*$DK76/((-SUMPRODUCT($CT76:$DA76,--($CT76:$DA76<0))+$DE76+$DF76+$DG76)*$DK76)))","v":""},{"$f":"IF('Project Scope'!$C76=\"\",\"\",IF(AND($J76<=0,$K76<=0),0,(SUMPRODUCT($AV76:$BC76,--($AV76:$BC76>0))+$BE76+SUMPRODUCT($CT76:$DA76,--($CT76:$DA76>0))+$DC76)*$DK76/((-SUMPRODUCT($AV76:$BC76,--($AV76:$BC76<0))+$BG76+$BH76+$BI76-SUMPRODUCT($CT76:$DA76,--($CT76:$DA76<0))+$DE76+$DF76+$DG76)*$DK76)))","v":""},{"$f":"IF('Project Scope'!$C76=\"\",\"\",IF(NetOrGross=\"Net\",(1-Z76+AA76),1))","v":""}]
[{"$f":"'Project Scope'!$B77","v":70},{"$f":"IF('Project Scope'!$C77=\"\",\"\",'Project Scope'!$C77)","v":""},{"$f":"IF('Project Scope'!$C77=\"\",\"\",'Project Scope'!$H77)","v":""},{"$f":"IF(ISNUMBER(SEARCH(\"Bay\",'Project Scope'!$Q77)),\"Bay\",IF('Project Scope'!C77=\"\",\"\",'Project Scope'!E77))","v":""},{"$f":"IF('Project Scope'!$C77=\"\",\"\",\"Com\")","v":""},{"$f":"IF('Project Scope'!$C77=\"\",\"\",'Project Scope'!$L77)","v":""},{"$f":"IF('Project Scope'!$C77=\"\",\"\",IF('Project Scope'!$CJ77=\"\",0,'Project Scope'!$CJ77))","v":""},{"$f":"IF('Project Scope'!$C77=\"\",\"\",IF('Project Scope'!$N77=\"\",0,'Project Scope'!$N77))","v":""},{"$f":"IF('Project Scope'!$C77=\"\",\"\",IF('Project Scope'!$CK77=\"\",0,'Project Scope'!$CK77))","v":""},{"$f":"IF('Project Scope'!$C77=\"\",\"\",IF('Project Scope'!$AO77=\"\",0,'Project Scope'!$AO77))","v":""},{"$f":"IF('Project Scope'!$C77=\"\",\"\",IF('Project Scope'!$AX77=\"\",0,'Project Scope'!$AX77))","v":""},{"$f":"IF('Project Scope'!$C77=\"\",\"\",IF('Project Scope'!$M77=\"\",0,'Project Scope'!$M77))","v":""},{"$f":"IF('Project Scope'!$C77=\"\",\"\",IF(COUNTIF('CBAT Lookups'!$B$5:$B$12,\"Fixtures-\"&CBAT!$D77)=1,VLOOKUP(\"Fixtures-\"&CBAT!$D77,'CBAT Lookups'!$B$5:$L$12,11),0))","v":""},{"$f":"IF('Project Scope'!$C77=\"\",\"\",(IF(COUNTIF('CBAT Lookups'!$B$5:$B$12,\"Fixtures-\"&CBAT!$D77)=1,VLOOKUP(\"Fixtures-\"&CBAT!$D77,'CBAT Lookups'!$B$5:$K$12,2),0))*VLOOKUP($F77,'CBAT Lookups'!$B$17:$K$19,2))","v":""},{"$f":"IF('Project Scope'!$C77=\"\",\"\",(IF(COUNTIF('CBAT Lookups'!$B$5:$B$12,\"Fixtures-\"&CBAT!$D77)=1,VLOOKUP(\"Fixtures-\"&CBAT!$D77,'CBAT Lookups'!$B$5:$K$12,3),0))*VLOOKUP($F77,'CBAT Lookups'!$B$17:$K$19,3))","v":""},{"$f":"IF('Project Scope'!$C77=\"\",\"\",(IF(COUNTIF('CBAT Lookups'!$B$5:$B$12,\"Fixtures-\"&CBAT!$D77)=1,VLOOKUP(\"Fixtures-\"&CBAT!$D77,'CBAT Lookups'!$B$5:$K$12,4),0)))","v":""},{"$f":"IF('Project Scope'!$C77=\"\",\"\",(IF(COUNTIF('CBAT Lookups'!$B$5:$B$12,\"Fixtures-\"&CBAT!$D77)=1,VLOOKUP(\"Fixtures-\"&CBAT!$D77,'CBAT Lookups'!$B$5:$K$12,5),0)))","v":""},{"$f":"IF('Project Scope'!$C77=\"\",\"\",(IF(COUNTIF('CBAT Lookups'!$B$5:$B$12,\"Fixtures-\"&CBAT!$D77)=1,VLOOKUP(\"Fixtures-\"&CBAT!$D77,'CBAT Lookups'!$B$5:$K$12,6),0)))","v":""},{"$f":"IF('Project Scope'!$C77=\"\",\"\",IF(COUNTIF('CBAT Lookups'!$B$5:$B$12,\"Fixtures-\"&CBAT!$D77)=1,VLOOKUP(\"Fixtures-\"&CBAT!$D77,'CBAT Lookups'!$B$5:$K$12,7),0))","v":""},{"$f":"IF('Project Scope'!$C77=\"\",\"\",IF(VLOOKUP($F77,'CBAT Lookups'!$B$17:$K$19,8)=\"W\",1,IF(COUNTIF('CBAT Lookups'!$B$5:$B$12,\"Fixtures-\"&CBAT!$D77)=1,VLOOKUP(\"Fixtures-\"&CBAT!$D77,'CBAT Lookups'!$B$5:$K$12,8),0)*VLOOKUP($F77,'CBAT Lookups'!$B$17:$K$19,8)))","v":""},{"$f":"IF('Project Scope'!$C77=\"\",\"\",IF(VLOOKUP($F77,'CBAT Lookups'!$B$17:$K$19,9)=\"W\",1,IF(COUNTIF('CBAT Lookups'!$B$5:$B$12,\"Fixtures-\"&CBAT!$D77)=1,VLOOKUP(\"Fixtures-\"&CBAT!$D77,'CBAT Lookups'!$B$5:$K$12,9),0)*VLOOKUP($F77,'CBAT Lookups'!$B$17:$K$19,9)))","v":""},{"$f":"IF('Project Scope'!$C77=\"\",\"\",IF(COUNTIF('CBAT Lookups'!$B$5:$B$12,\"Fixtures-\"&CBAT!$D77)=1,VLOOKUP(\"Fixtures-\"&CBAT!$D77,'CBAT Lookups'!$B$5:$K$12,10),0)*VLOOKUP($F77,'CBAT Lookups'!$B$17:$K$19,10))","v":""},{"$f":"IF('Project Scope'!$C77=\"\",\"\",IF(COUNTIF('CBAT Lookups'!$B$5:$B$12,\"Fixtures-\"&CBAT!$D77)=1,VLOOKUP(\"Fixtures-\"&CBAT!$D77,'CBAT Lookups'!$B$5:$O$12,12),0))","v":""},{"$f":"IF('Project Scope'!$C77=\"\",\"\",IF(COUNTIF('CBAT Lookups'!$B$5:$B$12,\"Fixtures-\"&CBAT!$D77)=1,VLOOKUP(\"Fixtures-\"&CBAT!$D77,'CBAT Lookups'!$B$5:$O$12,13),0))","v":""},{"$f":"IF('Project Scope'!$C77=\"\",\"\",IF(COUNTIF('CBAT Lookups'!$B$5:$B$12,\"Fixtures-\"&CBAT!$D77)=1,VLOOKUP(\"Fixtures-\"&CBAT!$D77,'CBAT Lookups'!$B$5:$O$12,14),0))","v":""},{"$f":"IF('Project Scope'!$C77=\"\",\"\",'TRM Data'!$U$3)","v":""},{"$f":"IF('Project Scope'!$C77=\"\",\"\",'TRM Data'!$V$3)","v":""},{"$f":"IF('Project Scope'!$C77=\"\",\"\",IF($J77<=0,0,MAX(0,(($G77*$H77/1000)-($I77*$J77/1000))*$L77)*$U77)+($AF77/0.003412))","v":""},{"$f":"IF('Project Scope'!$C77=\"\",\"\",IF($J77<=0,0,MAX(0,(($G77*$H77/1000)-($I77*$J77/1000)))*$T77))","v":""},{"$f":"IF('Project Scope'!$C77=\"\",\"\",IF($J77<=0,0,MAX(0,(($G77*$H77/1000)-($I77*$J77/1000))*$N77)))","v":""},{"$f":"IF('Project Scope'!$C77=\"\",\"\",IF($J77<=0,0,MAX(0,(($G77*$H77/1000)-($I77*$J77/1000))*$O77)*$T77))","v":""},{"$f":"IF('Project Scope'!$C77=\"\",\"\",IF(OR($J77<=0,'Project Information'!$D$44=\"\"),0,-1*MAX(0,(($G77*$H77/1000)-($I77*$J77/1000))*$L77)*$V77*VLOOKUP('Project Information'!$D$44,'CBAT Lookups'!$A$23:$H$30,2)))","v":""},{"$f":"IF('Project Scope'!$C77=\"\",\"\",IF(OR($J77<=0,'Project Information'!$D$44=\"\"),0,-1*MAX(0,(($G77*$H77/1000)-($I77*$J77/1000))*$L77)*$V77*VLOOKUP('Project Information'!$D$44,'CBAT Lookups'!$A$23:$H$30,3)))","v":""},{"$f":"IF('Project Scope'!$C77=\"\",\"\",IF(OR($J77<=0,'Project Information'!$D$44=\"\"),0,-1*MAX(0,(($G77*$H77/1000)-($I77*$J77/1000))*$L77)*$V77*VLOOKUP('Project Information'!$D$44,'CBAT Lookups'!$A$23:$H$30,4)))","v":""},{"$f":"IF('Project Scope'!$C77=\"\",\"\",IF(OR($J77<=0,'Project Information'!$D$44=\"\"),0,-1*MAX(0,(($G77*$H77/1000)-($I77*$J77/1000))*$L77)*$V77*VLOOKUP('Project Information'!$D$44,'CBAT Lookups'!$A$23:$H$30,5)))","v":""},{"$f":"IF('Project Scope'!$C77=\"\",\"\",IF(OR($J77<=0,'Project Information'!$D$44=\"\"),0,-1*MAX(0,(($G77*$H77/1000)-($I77*$J77/1000))*$L77)*$V77*VLOOKUP('Project Information'!$D$44,'CBAT Lookups'!$A$23:$H$30,6)))","v":""},{"$f":"IF('Project Scope'!$C77=\"\",\"\",IF(OR($J77<=0,'Project Information'!$D$44=\"\"),0,-1*MAX(0,(($G77*$H77/1000)-($I77*$J77/1000))*$L77)*$V77*VLOOKUP('Project Information'!$D$44,'CBAT Lookups'!$A$23:$H$30,7)))","v":""},{"$f":"IF('Project Scope'!$C77=\"\",\"\",IF(OR($J77<=0,'Project Information'!$D$44=\"\"),0,-1*MAX(0,(($G77*$H77/1000)-($I77*$J77/1000))*$L77)*$V77*VLOOKUP('Project Information'!$D$44,'CBAT Lookups'!$A$23:$H$30,8)))","v":""},null,{"$f":"IF('Project Scope'!$C77=\"\",\"\",VLOOKUP($F77,'CBAT Lookups'!$B$17:$K$19,4))","v":""},{"$f":"IF('Project Scope'!$C77=\"\",\"\",VLOOKUP($F77,'CBAT Lookups'!$B$17:$K$19,5))","v":""},{"$f":"IF('Project Scope'!$C77=\"\",\"\",VLOOKUP($F77,'CBAT Lookups'!$B$17:$K$19,6))","v":""},{"$f":"IF('Project Scope'!$C77=\"\",\"\",VLOOKUP($F77,'CBAT Lookups'!$B$17:$K$19,7))","v":""},{"$f":"IF('Project Scope'!$C77=\"\",\"\",IF(SUMPRODUCT($P77:$S77,$AN77:$AQ77)=0,0,P77*AN77/SUMPRODUCT($P77:$S77,$AN77:$AQ77)))","v":""},{"$f":"IF('Project Scope'!$C77=\"\",\"\",IF(SUMPRODUCT($P77:$S77,$AN77:$AQ77)=0,0,Q77*AO77/SUMPRODUCT($P77:$S77,$AN77:$AQ77)))","v":""},{"$f":"IF('Project Scope'!$C77=\"\",\"\",IF(SUMPRODUCT($P77:$S77,$AN77:$AQ77)=0,0,R77*AP77/SUMPRODUCT($P77:$S77,$AN77:$AQ77)))","v":""},{"$f":"IF('Project Scope'!$C77=\"\",\"\",IF(SUMPRODUCT($P77:$S77,$AN77:$AQ77)=0,0,S77*AQ77/SUMPRODUCT($P77:$S77,$AN77:$AQ77)))","v":""},{"$f":"IF('Project Scope'!$C77=\"\",\"\",Benefits($AB77,$AD77,$AE77,$AG77,$AH77,$AI77,$AJ77,$AK77,$AL77,$AM77,$M77,$AR77,$AS77,$AT77,$AU77,$W77,$X77,$Y77,$Z77,$AA77,$E77))","v":""},"","","","","","","","",null,{"$f":"IF('Project Scope'!$C77=\"\",\"\",SUM('Project Scope'!$AT77,'Project Scope'!$AU77))","v":""},{"$f":"IF('Project Scope'!$C77=\"\",\"\",SUM('Project Scope'!$BG77, 'Project Scope'!$AR77,(IF(ISNUMBER('Project Scope'!$AS77),'Project Scope'!$AS77,0)*'Project Information'!$D$12)))","v":""},null,null,{"$f":"IF('Project Scope'!$C77=\"\",\"\",IF(COUNTIF('CBAT Lookups'!$B$5:$B$12,\"Controls-\"&CBAT!$D77)=1,VLOOKUP(\"Controls-\"&CBAT!$D77,'CBAT Lookups'!$B$5:$L$12,11),0))","v":""},{"$f":"IF('Project Scope'!$C77=\"\",\"\",IF(COUNTIF('CBAT Lookups'!$B$5:$B$12,\"Controls-\"&CBAT!$D77)=1,VLOOKUP(\"Controls-\"&CBAT!$D77,'CBAT Lookups'!$B$5:$K$12,2),0)*VLOOKUP($F77,'CBAT Lookups'!$B$17:$K$19,2))","v":""},{"$f":"IF('Project Scope'!$C77=\"\",\"\",IF(COUNTIF('CBAT Lookups'!$B$5:$B$12,\"Controls-\"&CBAT!$D77)=1,VLOOKUP(\"Controls-\"&CBAT!$D77,'CBAT Lookups'!$B$5:$K$12,3),0)*VLOOKUP($F77,'CBAT Lookups'!$B$17:$K$19,3))","v":""},{"$f":"IF('Project Scope'!$C77=\"\",\"\",IF(COUNTIF('CBAT Lookups'!$B$5:$B$12,\"Controls-\"&CBAT!$D77)=1,VLOOKUP(\"Controls-\"&CBAT!$D77,'CBAT Lookups'!$B$5:$K$12,4),0))","v":""},{"$f":"IF('Project Scope'!$C77=\"\",\"\",IF(COUNTIF('CBAT Lookups'!$B$5:$B$12,\"Controls-\"&CBAT!$D77)=1,VLOOKUP(\"Controls-\"&CBAT!$D77,'CBAT Lookups'!$B$5:$K$12,5),0))","v":""},{"$f":"IF('Project Scope'!$C77=\"\",\"\",IF(COUNTIF('CBAT Lookups'!$B$5:$B$12,\"Controls-\"&CBAT!$D77)=1,VLOOKUP(\"Controls-\"&CBAT!$D77,'CBAT Lookups'!$B$5:$K$12,6),0))","v":""},{"$f":"IF('Project Scope'!$C77=\"\",\"\",IF(COUNTIF('CBAT Lookups'!$B$5:$B$12,\"Controls-\"&CBAT!$D77)=1,VLOOKUP(\"Controls-\"&CBAT!$D77,'CBAT Lookups'!$B$5:$K$12,7),0))","v":""},{"$f":"IF('Project Scope'!$C77=\"\",\"\",IF(VLOOKUP($F77,'CBAT Lookups'!$B$17:$K$19,8)=\"W\",1,IF(COUNTIF('CBAT Lookups'!$B$5:$B$12,\"Controls-\"&CBAT!$D77)=1,VLOOKUP(\"Controls-\"&CBAT!$D77,'CBAT Lookups'!$B$5:$K$12,8),0)*VLOOKUP($F77,'CBAT Lookups'!$B$17:$K$19,8)))","v":""},{"$f":"IF('Project Scope'!$C77=\"\",\"\",IF(VLOOKUP($F77,'CBAT Lookups'!$B$17:$K$19,9)=\"W\",1,IF(COUNTIF('CBAT Lookups'!$B$5:$B$12,\"Controls-\"&CBAT!$D77)=1,VLOOKUP(\"Controls-\"&CBAT!$D77,'CBAT Lookups'!$B$5:$K$12,9),0)*VLOOKUP($F77,'CBAT Lookups'!$B$17:$K$19,9)))","v":""},{"$f":"IF('Project Scope'!$C77=\"\",\"\",IF(COUNTIF('CBAT Lookups'!$B$5:$B$12,\"Controls-\"&CBAT!$D77)=1,VLOOKUP(\"Controls-\"&CBAT!$D77,'CBAT Lookups'!$B$5:$K$12,10),0)*VLOOKUP($F77,'CBAT Lookups'!$B$17:$K$19,10))","v":""},{"$f":"IF('Project Scope'!$C77=\"\",\"\",VLOOKUP($C77,'CBAT Lookups'!$A$33:$B$57,2))","v":""},{"$f":"IF('Project Scope'!$C77=\"\",\"\",IF(COUNTIF('CBAT Lookups'!$B$5:$B$12,\"Controls-\"&CBAT!$D77)=1,VLOOKUP(\"Controls-\"&CBAT!$D77,'CBAT Lookups'!$B$5:$O$12,12),0))","v":""},{"$f":"IF('Project Scope'!$C77=\"\",\"\",IF(COUNTIF('CBAT Lookups'!$B$5:$B$12,\"Controls-\"&CBAT!$D77)=1,VLOOKUP(\"Controls-\"&CBAT!$D77,'CBAT Lookups'!$B$5:$O$12,13),0))","v":""},{"$f":"IF('Project Scope'!$C77=\"\",\"\",IF(COUNTIF('CBAT Lookups'!$B$5:$B$12,\"Controls-\"&CBAT!$D77)=1,VLOOKUP(\"Controls-\"&CBAT!$D77,'CBAT Lookups'!$B$5:$O$12,14),0))","v":""},{"$f":"IF('Project Scope'!$C77=\"\",\"\",'TRM Data'!$U$3)","v":""},{"$f":"IF('Project Scope'!$C77=\"\",\"\",'TRM Data'!$V$3)","v":""},{"$f":"IF('Project Scope'!$C77=\"\",\"\",IF($K77<=0,0,MAX(0,(IF(AND($I77>0,$J77>0),($I77*$J77)/1000,($G77*$H77)/1000)*$L77))*$BT77*$BR77)+($CD77/0.003412))","v":""},{"$f":"IF('Project Scope'!$C77=\"\",\"\",IF($K77<=0,0,MAX(0,IF(AND($I77>0,$J77>0),($I77*$J77)/1000,($G77*$H77)/1000))*$BQ77))","v":""},{"$f":"IF('Project Scope'!$C77=\"\",\"\",IF($K77<=0,0,MAX(0,IF(AND($I77>0,$J77>0),($I77*$J77)/1000,($G77*$H77)/1000))*$BK77))","v":""},{"$f":"IF('Project Scope'!$C77=\"\",\"\",IF($K77<=0,0,MAX(0,IF(AND($I77>0,$J77>0),($I77*$J77)/1000,($G77*$H77)/1000))*$BL77*$BQ77))","v":""},{"$f":"IF('Project Scope'!$C77=\"\",\"\",IF(OR($K77<=0,'Project Information'!$D$44=\"\"),0,-1*MAX(0,IF(AND($I77>0,$J77>0),($I77*$J77)/1000,($G77*$H77)/1000))*$BT77*$L77*$BS77*VLOOKUP('Project Information'!$D$44,'CBAT Lookups'!$A$23:$H$30,2)))","v":""},{"$f":"IF('Project Scope'!$C77=\"\",\"\",IF(OR($K77<=0,'Project Information'!$D$44=\"\"),0,-1*MAX(0,IF(AND($I77>0,$J77>0),($I77*$J77)/1000,($G77*$H77)/1000))*$BT77*$L77*$BS77*VLOOKUP('Project Information'!$D$44,'CBAT Lookups'!$A$23:$H$30,3)))","v":""},{"$f":"IF('Project Scope'!$C77=\"\",\"\",IF(OR($K77<=0,'Project Information'!$D$44=\"\"),0,-1*MAX(0,IF(AND($I77>0,$J77>0),($I77*$J77)/1000,($G77*$H77)/1000))*$BT77*$L77*$BS77*VLOOKUP('Project Information'!$D$44,'CBAT Lookups'!$A$23:$H$30,4)))","v":""},{"$f":"IF('Project Scope'!$C77=\"\",\"\",IF(OR($K77<=0,'Project Information'!$D$44=\"\"),0,-1*MAX(0,IF(AND($I77>0,$J77>0),($I77*$J77)/1000,($G77*$H77)/1000))*$BT77*$L77*$BS77*VLOOKUP('Project Information'!$D$44,'CBAT Lookups'!$A$23:$H$30,5)))","v":""},{"$f":"IF('Project Scope'!$C77=\"\",\"\",IF(OR($K77<=0,'Project Information'!$D$44=\"\"),0,-1*MAX(0,IF(AND($I77>0,$J77>0),($I77*$J77)/1000,($G77*$H77)/1000))*$BT77*$L77*$BS77*VLOOKUP('Project Information'!$D$44,'CBAT Lookups'!$A$23:$H$30,6)))","v":""},{"$f":"IF('Project Scope'!$C77=\"\",\"\",IF(OR($K77<=0,'Project Information'!$D$44=\"\"),0,-1*MAX(0,IF(AND($I77>0,$J77>0),($I77*$J77)/1000,($G77*$H77)/1000))*$BT77*$L77*$BS77*VLOOKUP('Project Information'!$D$44,'CBAT Lookups'!$A$23:$H$30,7)))","v":""},{"$f":"IF('Project Scope'!$C77=\"\",\"\",IF(OR($K77<=0,'Project Information'!$D$44=\"\"),0,-1*MAX(0,IF(AND($I77>0,$J77>0),($I77*$J77)/1000,($G77*$H77)/1000))*$BT77*$L77*$BS77*VLOOKUP('Project Information'!$D$44,'CBAT Lookups'!$A$23:$H$30,8)))","v":""},null,{"$f":"IF('Project Scope'!$C77=\"\",\"\",VLOOKUP($F77,'CBAT Lookups'!$B$17:$K$19,4))","v":""},{"$f":"IF('Project Scope'!$C77=\"\",\"\",VLOOKUP($F77,'CBAT Lookups'!$B$17:$K$19,5))","v":""},{"$f":"IF('Project Scope'!$C77=\"\",\"\",VLOOKUP($F77,'CBAT Lookups'!$B$17:$K$19,6))","v":""},{"$f":"IF('Project Scope'!$C77=\"\",\"\",VLOOKUP($F77,'CBAT Lookups'!$B$17:$K$19,7))","v":""},{"$f":"IF('Project Scope'!$C77=\"\",\"\",IF(SUMPRODUCT($BM77:$BP77,$CL77:$CO77)=0,0,BM77*CL77/SUMPRODUCT($BM77:$BP77,$CL77:$CO77)))","v":""},{"$f":"IF('Project Scope'!$C77=\"\",\"\",IF(SUMPRODUCT($BM77:$BP77,$CL77:$CO77)=0,0,BN77*CM77/SUMPRODUCT($BM77:$BP77,$CL77:$CO77)))","v":""},{"$f":"IF('Project Scope'!$C77=\"\",\"\",IF(SUMPRODUCT($BM77:$BP77,$CL77:$CO77)=0,0,BO77*CN77/SUMPRODUCT($BM77:$BP77,$CL77:$CO77)))","v":""},{"$f":"IF('Project Scope'!$C77=\"\",\"\",IF(SUMPRODUCT($BM77:$BP77,$CL77:$CO77)=0,0,BP77*CO77/SUMPRODUCT($BM77:$BP77,$CL77:$CO77)))","v":""},{"$f":"IF('Project Scope'!$C77=\"\",\"\",Benefits($BZ77,$CB77,$CC77,$CE77,$CF77,$CG77,$CH77,$CI77,$CJ77,$CK77,$BJ77,$CP77,$CQ77,$CR77,$CS77,$BU77,$BV77,$BW77,$BX77,$BY77,$E77))","v":""},"","","","","","","","",null,{"$f":"IF('Project Scope'!$C77=\"\",\"\",SUM('Project Scope'!$BB77,'Project Scope'!$BC77))","v":""},{"$f":"IF('Project Scope'!$C77=\"\",\"\",SUM('Project Scope'!$BH77, 'Project Scope'!$AZ77,(IF(ISNUMBER('Project Scope'!$BA77),'Project Scope'!$BA77,0)*'Project Information'!$D$12)))","v":""},null,null,{"$f":"IF('Project Scope'!$C77=\"\",\"\",IF($J77<=0,0,(SUMPRODUCT($AV77:$BC77,--($AV77:$BC77>0))+$BE77)*$DK77/((-SUMPRODUCT($AV77:$BC77,--($AV77:$BC77<0))+$BG77+$BH77+$BI77)*$DK77)))","v":""},{"$f":"IF('Project Scope'!$C77=\"\",\"\",IF($K77<=0,0,(SUMPRODUCT($CT77:$DA77,--($CT77:$DA77>0))+$DC77)*$DK77/((-SUMPRODUCT($CT77:$DA77,--($CT77:$DA77<0))+$DE77+$DF77+$DG77)*$DK77)))","v":""},{"$f":"IF('Project Scope'!$C77=\"\",\"\",IF(AND($J77<=0,$K77<=0),0,(SUMPRODUCT($AV77:$BC77,--($AV77:$BC77>0))+$BE77+SUMPRODUCT($CT77:$DA77,--($CT77:$DA77>0))+$DC77)*$DK77/((-SUMPRODUCT($AV77:$BC77,--($AV77:$BC77<0))+$BG77+$BH77+$BI77-SUMPRODUCT($CT77:$DA77,--($CT77:$DA77<0))+$DE77+$DF77+$DG77)*$DK77)))","v":""},{"$f":"IF('Project Scope'!$C77=\"\",\"\",IF(NetOrGross=\"Net\",(1-Z77+AA77),1))","v":""}]
[{"$f":"'Project Scope'!$B78","v":71},{"$f":"IF('Project Scope'!$C78=\"\",\"\",'Project Scope'!$C78)","v":""},{"$f":"IF('Project Scope'!$C78=\"\",\"\",'Project Scope'!$H78)","v":""},{"$f":"IF(ISNUMBER(SEARCH(\"Bay\",'Project Scope'!$Q78)),\"Bay\",IF('Project Scope'!C78=\"\",\"\",'Project Scope'!E78))","v":""},{"$f":"IF('Project Scope'!$C78=\"\",\"\",\"Com\")","v":""},{"$f":"IF('Project Scope'!$C78=\"\",\"\",'Project Scope'!$L78)","v":""},{"$f":"IF('Project Scope'!$C78=\"\",\"\",IF('Project Scope'!$CJ78=\"\",0,'Project Scope'!$CJ78))","v":""},{"$f":"IF('Project Scope'!$C78=\"\",\"\",IF('Project Scope'!$N78=\"\",0,'Project Scope'!$N78))","v":""},{"$f":"IF('Project Scope'!$C78=\"\",\"\",IF('Project Scope'!$CK78=\"\",0,'Project Scope'!$CK78))","v":""},{"$f":"IF('Project Scope'!$C78=\"\",\"\",IF('Project Scope'!$AO78=\"\",0,'Project Scope'!$AO78))","v":""},{"$f":"IF('Project Scope'!$C78=\"\",\"\",IF('Project Scope'!$AX78=\"\",0,'Project Scope'!$AX78))","v":""},{"$f":"IF('Project Scope'!$C78=\"\",\"\",IF('Project Scope'!$M78=\"\",0,'Project Scope'!$M78))","v":""},{"$f":"IF('Project Scope'!$C78=\"\",\"\",IF(COUNTIF('CBAT Lookups'!$B$5:$B$12,\"Fixtures-\"&CBAT!$D78)=1,VLOOKUP(\"Fixtures-\"&CBAT!$D78,'CBAT Lookups'!$B$5:$L$12,11),0))","v":""},{"$f":"IF('Project Scope'!$C78=\"\",\"\",(IF(COUNTIF('CBAT Lookups'!$B$5:$B$12,\"Fixtures-\"&CBAT!$D78)=1,VLOOKUP(\"Fixtures-\"&CBAT!$D78,'CBAT Lookups'!$B$5:$K$12,2),0))*VLOOKUP($F78,'CBAT Lookups'!$B$17:$K$19,2))","v":""},{"$f":"IF('Project Scope'!$C78=\"\",\"\",(IF(COUNTIF('CBAT Lookups'!$B$5:$B$12,\"Fixtures-\"&CBAT!$D78)=1,VLOOKUP(\"Fixtures-\"&CBAT!$D78,'CBAT Lookups'!$B$5:$K$12,3),0))*VLOOKUP($F78,'CBAT Lookups'!$B$17:$K$19,3))","v":""},{"$f":"IF('Project Scope'!$C78=\"\",\"\",(IF(COUNTIF('CBAT Lookups'!$B$5:$B$12,\"Fixtures-\"&CBAT!$D78)=1,VLOOKUP(\"Fixtures-\"&CBAT!$D78,'CBAT Lookups'!$B$5:$K$12,4),0)))","v":""},{"$f":"IF('Project Scope'!$C78=\"\",\"\",(IF(COUNTIF('CBAT Lookups'!$B$5:$B$12,\"Fixtures-\"&CBAT!$D78)=1,VLOOKUP(\"Fixtures-\"&CBAT!$D78,'CBAT Lookups'!$B$5:$K$12,5),0)))","v":""},{"$f":"IF('Project Scope'!$C78=\"\",\"\",(IF(COUNTIF('CBAT Lookups'!$B$5:$B$12,\"Fixtures-\"&CBAT!$D78)=1,VLOOKUP(\"Fixtures-\"&CBAT!$D78,'CBAT Lookups'!$B$5:$K$12,6),0)))","v":""},{"$f":"IF('Project Scope'!$C78=\"\",\"\",IF(COUNTIF('CBAT Lookups'!$B$5:$B$12,\"Fixtures-\"&CBAT!$D78)=1,VLOOKUP(\"Fixtures-\"&CBAT!$D78,'CBAT Lookups'!$B$5:$K$12,7),0))","v":""},{"$f":"IF('Project Scope'!$C78=\"\",\"\",IF(VLOOKUP($F78,'CBAT Lookups'!$B$17:$K$19,8)=\"W\",1,IF(COUNTIF('CBAT Lookups'!$B$5:$B$12,\"Fixtures-\"&CBAT!$D78)=1,VLOOKUP(\"Fixtures-\"&CBAT!$D78,'CBAT Lookups'!$B$5:$K$12,8),0)*VLOOKUP($F78,'CBAT Lookups'!$B$17:$K$19,8)))","v":""},{"$f":"IF('Project Scope'!$C78=\"\",\"\",IF(VLOOKUP($F78,'CBAT Lookups'!$B$17:$K$19,9)=\"W\",1,IF(COUNTIF('CBAT Lookups'!$B$5:$B$12,\"Fixtures-\"&CBAT!$D78)=1,VLOOKUP(\"Fixtures-\"&CBAT!$D78,'CBAT Lookups'!$B$5:$K$12,9),0)*VLOOKUP($F78,'CBAT Lookups'!$B$17:$K$19,9)))","v":""},{"$f":"IF('Project Scope'!$C78=\"\",\"\",IF(COUNTIF('CBAT Lookups'!$B$5:$B$12,\"Fixtures-\"&CBAT!$D78)=1,VLOOKUP(\"Fixtures-\"&CBAT!$D78,'CBAT Lookups'!$B$5:$K$12,10),0)*VLOOKUP($F78,'CBAT Lookups'!$B$17:$K$19,10))","v":""},{"$f":"IF('Project Scope'!$C78=\"\",\"\",IF(COUNTIF('CBAT Lookups'!$B$5:$B$12,\"Fixtures-\"&CBAT!$D78)=1,VLOOKUP(\"Fixtures-\"&CBAT!$D78,'CBAT Lookups'!$B$5:$O$12,12),0))","v":""},{"$f":"IF('Project Scope'!$C78=\"\",\"\",IF(COUNTIF('CBAT Lookups'!$B$5:$B$12,\"Fixtures-\"&CBAT!$D78)=1,VLOOKUP(\"Fixtures-\"&CBAT!$D78,'CBAT Lookups'!$B$5:$O$12,13),0))","v":""},{"$f":"IF('Project Scope'!$C78=\"\",\"\",IF(COUNTIF('CBAT Lookups'!$B$5:$B$12,\"Fixtures-\"&CBAT!$D78)=1,VLOOKUP(\"Fixtures-\"&CBAT!$D78,'CBAT Lookups'!$B$5:$O$12,14),0))","v":""},{"$f":"IF('Project Scope'!$C78=\"\",\"\",'TRM Data'!$U$3)","v":""},{"$f":"IF('Project Scope'!$C78=\"\",\"\",'TRM Data'!$V$3)","v":""},{"$f":"IF('Project Scope'!$C78=\"\",\"\",IF($J78<=0,0,MAX(0,(($G78*$H78/1000)-($I78*$J78/1000))*$L78)*$U78)+($AF78/0.003412))","v":""},{"$f":"IF('Project Scope'!$C78=\"\",\"\",IF($J78<=0,0,MAX(0,(($G78*$H78/1000)-($I78*$J78/1000)))*$T78))","v":""},{"$f":"IF('Project Scope'!$C78=\"\",\"\",IF($J78<=0,0,MAX(0,(($G78*$H78/1000)-($I78*$J78/1000))*$N78)))","v":""},{"$f":"IF('Project Scope'!$C78=\"\",\"\",IF($J78<=0,0,MAX(0,(($G78*$H78/1000)-($I78*$J78/1000))*$O78)*$T78))","v":""},{"$f":"IF('Project Scope'!$C78=\"\",\"\",IF(OR($J78<=0,'Project Information'!$D$44=\"\"),0,-1*MAX(0,(($G78*$H78/1000)-($I78*$J78/1000))*$L78)*$V78*VLOOKUP('Project Information'!$D$44,'CBAT Lookups'!$A$23:$H$30,2)))","v":""},{"$f":"IF('Project Scope'!$C78=\"\",\"\",IF(OR($J78<=0,'Project Information'!$D$44=\"\"),0,-1*MAX(0,(($G78*$H78/1000)-($I78*$J78/1000))*$L78)*$V78*VLOOKUP('Project Information'!$D$44,'CBAT Lookups'!$A$23:$H$30,3)))","v":""},{"$f":"IF('Project Scope'!$C78=\"\",\"\",IF(OR($J78<=0,'Project Information'!$D$44=\"\"),0,-1*MAX(0,(($G78*$H78/1000)-($I78*$J78/1000))*$L78)*$V78*VLOOKUP('Project Information'!$D$44,'CBAT Lookups'!$A$23:$H$30,4)))","v":""},{"$f":"IF('Project Scope'!$C78=\"\",\"\",IF(OR($J78<=0,'Project Information'!$D$44=\"\"),0,-1*MAX(0,(($G78*$H78/1000)-($I78*$J78/1000))*$L78)*$V78*VLOOKUP('Project Information'!$D$44,'CBAT Lookups'!$A$23:$H$30,5)))","v":""},{"$f":"IF('Project Scope'!$C78=\"\",\"\",IF(OR($J78<=0,'Project Information'!$D$44=\"\"),0,-1*MAX(0,(($G78*$H78/1000)-($I78*$J78/1000))*$L78)*$V78*VLOOKUP('Project Information'!$D$44,'CBAT Lookups'!$A$23:$H$30,6)))","v":""},{"$f":"IF('Project Scope'!$C78=\"\",\"\",IF(OR($J78<=0,'Project Information'!$D$44=\"\"),0,-1*MAX(0,(($G78*$H78/1000)-($I78*$J78/1000))*$L78)*$V78*VLOOKUP('Project Information'!$D$44,'CBAT Lookups'!$A$23:$H$30,7)))","v":""},{"$f":"IF('Project Scope'!$C78=\"\",\"\",IF(OR($J78<=0,'Project Information'!$D$44=\"\"),0,-1*MAX(0,(($G78*$H78/1000)-($I78*$J78/1000))*$L78)*$V78*VLOOKUP('Project Information'!$D$44,'CBAT Lookups'!$A$23:$H$30,8)))","v":""},null,{"$f":"IF('Project Scope'!$C78=\"\",\"\",VLOOKUP($F78,'CBAT Lookups'!$B$17:$K$19,4))","v":""},{"$f":"IF('Project Scope'!$C78=\"\",\"\",VLOOKUP($F78,'CBAT Lookups'!$B$17:$K$19,5))","v":""},{"$f":"IF('Project Scope'!$C78=\"\",\"\",VLOOKUP($F78,'CBAT Lookups'!$B$17:$K$19,6))","v":""},{"$f":"IF('Project Scope'!$C78=\"\",\"\",VLOOKUP($F78,'CBAT Lookups'!$B$17:$K$19,7))","v":""},{"$f":"IF('Project Scope'!$C78=\"\",\"\",IF(SUMPRODUCT($P78:$S78,$AN78:$AQ78)=0,0,P78*AN78/SUMPRODUCT($P78:$S78,$AN78:$AQ78)))","v":""},{"$f":"IF('Project Scope'!$C78=\"\",\"\",IF(SUMPRODUCT($P78:$S78,$AN78:$AQ78)=0,0,Q78*AO78/SUMPRODUCT($P78:$S78,$AN78:$AQ78)))","v":""},{"$f":"IF('Project Scope'!$C78=\"\",\"\",IF(SUMPRODUCT($P78:$S78,$AN78:$AQ78)=0,0,R78*AP78/SUMPRODUCT($P78:$S78,$AN78:$AQ78)))","v":""},{"$f":"IF('Project Scope'!$C78=\"\",\"\",IF(SUMPRODUCT($P78:$S78,$AN78:$AQ78)=0,0,S78*AQ78/SUMPRODUCT($P78:$S78,$AN78:$AQ78)))","v":""},{"$f":"IF('Project Scope'!$C78=\"\",\"\",Benefits($AB78,$AD78,$AE78,$AG78,$AH78,$AI78,$AJ78,$AK78,$AL78,$AM78,$M78,$AR78,$AS78,$AT78,$AU78,$W78,$X78,$Y78,$Z78,$AA78,$E78))","v":""},"","","","","","","","",null,{"$f":"IF('Project Scope'!$C78=\"\",\"\",SUM('Project Scope'!$AT78,'Project Scope'!$AU78))","v":""},{"$f":"IF('Project Scope'!$C78=\"\",\"\",SUM('Project Scope'!$BG78, 'Project Scope'!$AR78,(IF(ISNUMBER('Project Scope'!$AS78),'Project Scope'!$AS78,0)*'Project Information'!$D$12)))","v":""},null,null,{"$f":"IF('Project Scope'!$C78=\"\",\"\",IF(COUNTIF('CBAT Lookups'!$B$5:$B$12,\"Controls-\"&CBAT!$D78)=1,VLOOKUP(\"Controls-\"&CBAT!$D78,'CBAT Lookups'!$B$5:$L$12,11),0))","v":""},{"$f":"IF('Project Scope'!$C78=\"\",\"\",IF(COUNTIF('CBAT Lookups'!$B$5:$B$12,\"Controls-\"&CBAT!$D78)=1,VLOOKUP(\"Controls-\"&CBAT!$D78,'CBAT Lookups'!$B$5:$K$12,2),0)*VLOOKUP($F78,'CBAT Lookups'!$B$17:$K$19,2))","v":""},{"$f":"IF('Project Scope'!$C78=\"\",\"\",IF(COUNTIF('CBAT Lookups'!$B$5:$B$12,\"Controls-\"&CBAT!$D78)=1,VLOOKUP(\"Controls-\"&CBAT!$D78,'CBAT Lookups'!$B$5:$K$12,3),0)*VLOOKUP($F78,'CBAT Lookups'!$B$17:$K$19,3))","v":""},{"$f":"IF('Project Scope'!$C78=\"\",\"\",IF(COUNTIF('CBAT Lookups'!$B$5:$B$12,\"Controls-\"&CBAT!$D78)=1,VLOOKUP(\"Controls-\"&CBAT!$D78,'CBAT Lookups'!$B$5:$K$12,4),0))","v":""},{"$f":"IF('Project Scope'!$C78=\"\",\"\",IF(COUNTIF('CBAT Lookups'!$B$5:$B$12,\"Controls-\"&CBAT!$D78)=1,VLOOKUP(\"Controls-\"&CBAT!$D78,'CBAT Lookups'!$B$5:$K$12,5),0))","v":""},{"$f":"IF('Project Scope'!$C78=\"\",\"\",IF(COUNTIF('CBAT Lookups'!$B$5:$B$12,\"Controls-\"&CBAT!$D78)=1,VLOOKUP(\"Controls-\"&CBAT!$D78,'CBAT Lookups'!$B$5:$K$12,6),0))","v":""},{"$f":"IF('Project Scope'!$C78=\"\",\"\",IF(COUNTIF('CBAT Lookups'!$B$5:$B$12,\"Controls-\"&CBAT!$D78)=1,VLOOKUP(\"Controls-\"&CBAT!$D78,'CBAT Lookups'!$B$5:$K$12,7),0))","v":""},{"$f":"IF('Project Scope'!$C78=\"\",\"\",IF(VLOOKUP($F78,'CBAT Lookups'!$B$17:$K$19,8)=\"W\",1,IF(COUNTIF('CBAT Lookups'!$B$5:$B$12,\"Controls-\"&CBAT!$D78)=1,VLOOKUP(\"Controls-\"&CBAT!$D78,'CBAT Lookups'!$B$5:$K$12,8),0)*VLOOKUP($F78,'CBAT Lookups'!$B$17:$K$19,8)))","v":""},{"$f":"IF('Project Scope'!$C78=\"\",\"\",IF(VLOOKUP($F78,'CBAT Lookups'!$B$17:$K$19,9)=\"W\",1,IF(COUNTIF('CBAT Lookups'!$B$5:$B$12,\"Controls-\"&CBAT!$D78)=1,VLOOKUP(\"Controls-\"&CBAT!$D78,'CBAT Lookups'!$B$5:$K$12,9),0)*VLOOKUP($F78,'CBAT Lookups'!$B$17:$K$19,9)))","v":""},{"$f":"IF('Project Scope'!$C78=\"\",\"\",IF(COUNTIF('CBAT Lookups'!$B$5:$B$12,\"Controls-\"&CBAT!$D78)=1,VLOOKUP(\"Controls-\"&CBAT!$D78,'CBAT Lookups'!$B$5:$K$12,10),0)*VLOOKUP($F78,'CBAT Lookups'!$B$17:$K$19,10))","v":""},{"$f":"IF('Project Scope'!$C78=\"\",\"\",VLOOKUP($C78,'CBAT Lookups'!$A$33:$B$57,2))","v":""},{"$f":"IF('Project Scope'!$C78=\"\",\"\",IF(COUNTIF('CBAT Lookups'!$B$5:$B$12,\"Controls-\"&CBAT!$D78)=1,VLOOKUP(\"Controls-\"&CBAT!$D78,'CBAT Lookups'!$B$5:$O$12,12),0))","v":""},{"$f":"IF('Project Scope'!$C78=\"\",\"\",IF(COUNTIF('CBAT Lookups'!$B$5:$B$12,\"Controls-\"&CBAT!$D78)=1,VLOOKUP(\"Controls-\"&CBAT!$D78,'CBAT Lookups'!$B$5:$O$12,13),0))","v":""},{"$f":"IF('Project Scope'!$C78=\"\",\"\",IF(COUNTIF('CBAT Lookups'!$B$5:$B$12,\"Controls-\"&CBAT!$D78)=1,VLOOKUP(\"Controls-\"&CBAT!$D78,'CBAT Lookups'!$B$5:$O$12,14),0))","v":""},{"$f":"IF('Project Scope'!$C78=\"\",\"\",'TRM Data'!$U$3)","v":""},{"$f":"IF('Project Scope'!$C78=\"\",\"\",'TRM Data'!$V$3)","v":""},{"$f":"IF('Project Scope'!$C78=\"\",\"\",IF($K78<=0,0,MAX(0,(IF(AND($I78>0,$J78>0),($I78*$J78)/1000,($G78*$H78)/1000)*$L78))*$BT78*$BR78)+($CD78/0.003412))","v":""},{"$f":"IF('Project Scope'!$C78=\"\",\"\",IF($K78<=0,0,MAX(0,IF(AND($I78>0,$J78>0),($I78*$J78)/1000,($G78*$H78)/1000))*$BQ78))","v":""},{"$f":"IF('Project Scope'!$C78=\"\",\"\",IF($K78<=0,0,MAX(0,IF(AND($I78>0,$J78>0),($I78*$J78)/1000,($G78*$H78)/1000))*$BK78))","v":""},{"$f":"IF('Project Scope'!$C78=\"\",\"\",IF($K78<=0,0,MAX(0,IF(AND($I78>0,$J78>0),($I78*$J78)/1000,($G78*$H78)/1000))*$BL78*$BQ78))","v":""},{"$f":"IF('Project Scope'!$C78=\"\",\"\",IF(OR($K78<=0,'Project Information'!$D$44=\"\"),0,-1*MAX(0,IF(AND($I78>0,$J78>0),($I78*$J78)/1000,($G78*$H78)/1000))*$BT78*$L78*$BS78*VLOOKUP('Project Information'!$D$44,'CBAT Lookups'!$A$23:$H$30,2)))","v":""},{"$f":"IF('Project Scope'!$C78=\"\",\"\",IF(OR($K78<=0,'Project Information'!$D$44=\"\"),0,-1*MAX(0,IF(AND($I78>0,$J78>0),($I78*$J78)/1000,($G78*$H78)/1000))*$BT78*$L78*$BS78*VLOOKUP('Project Information'!$D$44,'CBAT Lookups'!$A$23:$H$30,3)))","v":""},{"$f":"IF('Project Scope'!$C78=\"\",\"\",IF(OR($K78<=0,'Project Information'!$D$44=\"\"),0,-1*MAX(0,IF(AND($I78>0,$J78>0),($I78*$J78)/1000,($G78*$H78)/1000))*$BT78*$L78*$BS78*VLOOKUP('Project Information'!$D$44,'CBAT Lookups'!$A$23:$H$30,4)))","v":""},{"$f":"IF('Project Scope'!$C78=\"\",\"\",IF(OR($K78<=0,'Project Information'!$D$44=\"\"),0,-1*MAX(0,IF(AND($I78>0,$J78>0),($I78*$J78)/1000,($G78*$H78)/1000))*$BT78*$L78*$BS78*VLOOKUP('Project Information'!$D$44,'CBAT Lookups'!$A$23:$H$30,5)))","v":""},{"$f":"IF('Project Scope'!$C78=\"\",\"\",IF(OR($K78<=0,'Project Information'!$D$44=\"\"),0,-1*MAX(0,IF(AND($I78>0,$J78>0),($I78*$J78)/1000,($G78*$H78)/1000))*$BT78*$L78*$BS78*VLOOKUP('Project Information'!$D$44,'CBAT Lookups'!$A$23:$H$30,6)))","v":""},{"$f":"IF('Project Scope'!$C78=\"\",\"\",IF(OR($K78<=0,'Project Information'!$D$44=\"\"),0,-1*MAX(0,IF(AND($I78>0,$J78>0),($I78*$J78)/1000,($G78*$H78)/1000))*$BT78*$L78*$BS78*VLOOKUP('Project Information'!$D$44,'CBAT Lookups'!$A$23:$H$30,7)))","v":""},{"$f":"IF('Project Scope'!$C78=\"\",\"\",IF(OR($K78<=0,'Project Information'!$D$44=\"\"),0,-1*MAX(0,IF(AND($I78>0,$J78>0),($I78*$J78)/1000,($G78*$H78)/1000))*$BT78*$L78*$BS78*VLOOKUP('Project Information'!$D$44,'CBAT Lookups'!$A$23:$H$30,8)))","v":""},null,{"$f":"IF('Project Scope'!$C78=\"\",\"\",VLOOKUP($F78,'CBAT Lookups'!$B$17:$K$19,4))","v":""},{"$f":"IF('Project Scope'!$C78=\"\",\"\",VLOOKUP($F78,'CBAT Lookups'!$B$17:$K$19,5))","v":""},{"$f":"IF('Project Scope'!$C78=\"\",\"\",VLOOKUP($F78,'CBAT Lookups'!$B$17:$K$19,6))","v":""},{"$f":"IF('Project Scope'!$C78=\"\",\"\",VLOOKUP($F78,'CBAT Lookups'!$B$17:$K$19,7))","v":""},{"$f":"IF('Project Scope'!$C78=\"\",\"\",IF(SUMPRODUCT($BM78:$BP78,$CL78:$CO78)=0,0,BM78*CL78/SUMPRODUCT($BM78:$BP78,$CL78:$CO78)))","v":""},{"$f":"IF('Project Scope'!$C78=\"\",\"\",IF(SUMPRODUCT($BM78:$BP78,$CL78:$CO78)=0,0,BN78*CM78/SUMPRODUCT($BM78:$BP78,$CL78:$CO78)))","v":""},{"$f":"IF('Project Scope'!$C78=\"\",\"\",IF(SUMPRODUCT($BM78:$BP78,$CL78:$CO78)=0,0,BO78*CN78/SUMPRODUCT($BM78:$BP78,$CL78:$CO78)))","v":""},{"$f":"IF('Project Scope'!$C78=\"\",\"\",IF(SUMPRODUCT($BM78:$BP78,$CL78:$CO78)=0,0,BP78*CO78/SUMPRODUCT($BM78:$BP78,$CL78:$CO78)))","v":""},{"$f":"IF('Project Scope'!$C78=\"\",\"\",Benefits($BZ78,$CB78,$CC78,$CE78,$CF78,$CG78,$CH78,$CI78,$CJ78,$CK78,$BJ78,$CP78,$CQ78,$CR78,$CS78,$BU78,$BV78,$BW78,$BX78,$BY78,$E78))","v":""},"","","","","","","","",null,{"$f":"IF('Project Scope'!$C78=\"\",\"\",SUM('Project Scope'!$BB78,'Project Scope'!$BC78))","v":""},{"$f":"IF('Project Scope'!$C78=\"\",\"\",SUM('Project Scope'!$BH78, 'Project Scope'!$AZ78,(IF(ISNUMBER('Project Scope'!$BA78),'Project Scope'!$BA78,0)*'Project Information'!$D$12)))","v":""},null,null,{"$f":"IF('Project Scope'!$C78=\"\",\"\",IF($J78<=0,0,(SUMPRODUCT($AV78:$BC78,--($AV78:$BC78>0))+$BE78)*$DK78/((-SUMPRODUCT($AV78:$BC78,--($AV78:$BC78<0))+$BG78+$BH78+$BI78)*$DK78)))","v":""},{"$f":"IF('Project Scope'!$C78=\"\",\"\",IF($K78<=0,0,(SUMPRODUCT($CT78:$DA78,--($CT78:$DA78>0))+$DC78)*$DK78/((-SUMPRODUCT($CT78:$DA78,--($CT78:$DA78<0))+$DE78+$DF78+$DG78)*$DK78)))","v":""},{"$f":"IF('Project Scope'!$C78=\"\",\"\",IF(AND($J78<=0,$K78<=0),0,(SUMPRODUCT($AV78:$BC78,--($AV78:$BC78>0))+$BE78+SUMPRODUCT($CT78:$DA78,--($CT78:$DA78>0))+$DC78)*$DK78/((-SUMPRODUCT($AV78:$BC78,--($AV78:$BC78<0))+$BG78+$BH78+$BI78-SUMPRODUCT($CT78:$DA78,--($CT78:$DA78<0))+$DE78+$DF78+$DG78)*$DK78)))","v":""},{"$f":"IF('Project Scope'!$C78=\"\",\"\",IF(NetOrGross=\"Net\",(1-Z78+AA78),1))","v":""}]
[{"$f":"'Project Scope'!$B79","v":72},{"$f":"IF('Project Scope'!$C79=\"\",\"\",'Project Scope'!$C79)","v":""},{"$f":"IF('Project Scope'!$C79=\"\",\"\",'Project Scope'!$H79)","v":""},{"$f":"IF(ISNUMBER(SEARCH(\"Bay\",'Project Scope'!$Q79)),\"Bay\",IF('Project Scope'!C79=\"\",\"\",'Project Scope'!E79))","v":""},{"$f":"IF('Project Scope'!$C79=\"\",\"\",\"Com\")","v":""},{"$f":"IF('Project Scope'!$C79=\"\",\"\",'Project Scope'!$L79)","v":""},{"$f":"IF('Project Scope'!$C79=\"\",\"\",IF('Project Scope'!$CJ79=\"\",0,'Project Scope'!$CJ79))","v":""},{"$f":"IF('Project Scope'!$C79=\"\",\"\",IF('Project Scope'!$N79=\"\",0,'Project Scope'!$N79))","v":""},{"$f":"IF('Project Scope'!$C79=\"\",\"\",IF('Project Scope'!$CK79=\"\",0,'Project Scope'!$CK79))","v":""},{"$f":"IF('Project Scope'!$C79=\"\",\"\",IF('Project Scope'!$AO79=\"\",0,'Project Scope'!$AO79))","v":""},{"$f":"IF('Project Scope'!$C79=\"\",\"\",IF('Project Scope'!$AX79=\"\",0,'Project Scope'!$AX79))","v":""},{"$f":"IF('Project Scope'!$C79=\"\",\"\",IF('Project Scope'!$M79=\"\",0,'Project Scope'!$M79))","v":""},{"$f":"IF('Project Scope'!$C79=\"\",\"\",IF(COUNTIF('CBAT Lookups'!$B$5:$B$12,\"Fixtures-\"&CBAT!$D79)=1,VLOOKUP(\"Fixtures-\"&CBAT!$D79,'CBAT Lookups'!$B$5:$L$12,11),0))","v":""},{"$f":"IF('Project Scope'!$C79=\"\",\"\",(IF(COUNTIF('CBAT Lookups'!$B$5:$B$12,\"Fixtures-\"&CBAT!$D79)=1,VLOOKUP(\"Fixtures-\"&CBAT!$D79,'CBAT Lookups'!$B$5:$K$12,2),0))*VLOOKUP($F79,'CBAT Lookups'!$B$17:$K$19,2))","v":""},{"$f":"IF('Project Scope'!$C79=\"\",\"\",(IF(COUNTIF('CBAT Lookups'!$B$5:$B$12,\"Fixtures-\"&CBAT!$D79)=1,VLOOKUP(\"Fixtures-\"&CBAT!$D79,'CBAT Lookups'!$B$5:$K$12,3),0))*VLOOKUP($F79,'CBAT Lookups'!$B$17:$K$19,3))","v":""},{"$f":"IF('Project Scope'!$C79=\"\",\"\",(IF(COUNTIF('CBAT Lookups'!$B$5:$B$12,\"Fixtures-\"&CBAT!$D79)=1,VLOOKUP(\"Fixtures-\"&CBAT!$D79,'CBAT Lookups'!$B$5:$K$12,4),0)))","v":""},{"$f":"IF('Project Scope'!$C79=\"\",\"\",(IF(COUNTIF('CBAT Lookups'!$B$5:$B$12,\"Fixtures-\"&CBAT!$D79)=1,VLOOKUP(\"Fixtures-\"&CBAT!$D79,'CBAT Lookups'!$B$5:$K$12,5),0)))","v":""},{"$f":"IF('Project Scope'!$C79=\"\",\"\",(IF(COUNTIF('CBAT Lookups'!$B$5:$B$12,\"Fixtures-\"&CBAT!$D79)=1,VLOOKUP(\"Fixtures-\"&CBAT!$D79,'CBAT Lookups'!$B$5:$K$12,6),0)))","v":""},{"$f":"IF('Project Scope'!$C79=\"\",\"\",IF(COUNTIF('CBAT Lookups'!$B$5:$B$12,\"Fixtures-\"&CBAT!$D79)=1,VLOOKUP(\"Fixtures-\"&CBAT!$D79,'CBAT Lookups'!$B$5:$K$12,7),0))","v":""},{"$f":"IF('Project Scope'!$C79=\"\",\"\",IF(VLOOKUP($F79,'CBAT Lookups'!$B$17:$K$19,8)=\"W\",1,IF(COUNTIF('CBAT Lookups'!$B$5:$B$12,\"Fixtures-\"&CBAT!$D79)=1,VLOOKUP(\"Fixtures-\"&CBAT!$D79,'CBAT Lookups'!$B$5:$K$12,8),0)*VLOOKUP($F79,'CBAT Lookups'!$B$17:$K$19,8)))","v":""},{"$f":"IF('Project Scope'!$C79=\"\",\"\",IF(VLOOKUP($F79,'CBAT Lookups'!$B$17:$K$19,9)=\"W\",1,IF(COUNTIF('CBAT Lookups'!$B$5:$B$12,\"Fixtures-\"&CBAT!$D79)=1,VLOOKUP(\"Fixtures-\"&CBAT!$D79,'CBAT Lookups'!$B$5:$K$12,9),0)*VLOOKUP($F79,'CBAT Lookups'!$B$17:$K$19,9)))","v":""},{"$f":"IF('Project Scope'!$C79=\"\",\"\",IF(COUNTIF('CBAT Lookups'!$B$5:$B$12,\"Fixtures-\"&CBAT!$D79)=1,VLOOKUP(\"Fixtures-\"&CBAT!$D79,'CBAT Lookups'!$B$5:$K$12,10),0)*VLOOKUP($F79,'CBAT Lookups'!$B$17:$K$19,10))","v":""},{"$f":"IF('Project Scope'!$C79=\"\",\"\",IF(COUNTIF('CBAT Lookups'!$B$5:$B$12,\"Fixtures-\"&CBAT!$D79)=1,VLOOKUP(\"Fixtures-\"&CBAT!$D79,'CBAT Lookups'!$B$5:$O$12,12),0))","v":""},{"$f":"IF('Project Scope'!$C79=\"\",\"\",IF(COUNTIF('CBAT Lookups'!$B$5:$B$12,\"Fixtures-\"&CBAT!$D79)=1,VLOOKUP(\"Fixtures-\"&CBAT!$D79,'CBAT Lookups'!$B$5:$O$12,13),0))","v":""},{"$f":"IF('Project Scope'!$C79=\"\",\"\",IF(COUNTIF('CBAT Lookups'!$B$5:$B$12,\"Fixtures-\"&CBAT!$D79)=1,VLOOKUP(\"Fixtures-\"&CBAT!$D79,'CBAT Lookups'!$B$5:$O$12,14),0))","v":""},{"$f":"IF('Project Scope'!$C79=\"\",\"\",'TRM Data'!$U$3)","v":""},{"$f":"IF('Project Scope'!$C79=\"\",\"\",'TRM Data'!$V$3)","v":""},{"$f":"IF('Project Scope'!$C79=\"\",\"\",IF($J79<=0,0,MAX(0,(($G79*$H79/1000)-($I79*$J79/1000))*$L79)*$U79)+($AF79/0.003412))","v":""},{"$f":"IF('Project Scope'!$C79=\"\",\"\",IF($J79<=0,0,MAX(0,(($G79*$H79/1000)-($I79*$J79/1000)))*$T79))","v":""},{"$f":"IF('Project Scope'!$C79=\"\",\"\",IF($J79<=0,0,MAX(0,(($G79*$H79/1000)-($I79*$J79/1000))*$N79)))","v":""},{"$f":"IF('Project Scope'!$C79=\"\",\"\",IF($J79<=0,0,MAX(0,(($G79*$H79/1000)-($I79*$J79/1000))*$O79)*$T79))","v":""},{"$f":"IF('Project Scope'!$C79=\"\",\"\",IF(OR($J79<=0,'Project Information'!$D$44=\"\"),0,-1*MAX(0,(($G79*$H79/1000)-($I79*$J79/1000))*$L79)*$V79*VLOOKUP('Project Information'!$D$44,'CBAT Lookups'!$A$23:$H$30,2)))","v":""},{"$f":"IF('Project Scope'!$C79=\"\",\"\",IF(OR($J79<=0,'Project Information'!$D$44=\"\"),0,-1*MAX(0,(($G79*$H79/1000)-($I79*$J79/1000))*$L79)*$V79*VLOOKUP('Project Information'!$D$44,'CBAT Lookups'!$A$23:$H$30,3)))","v":""},{"$f":"IF('Project Scope'!$C79=\"\",\"\",IF(OR($J79<=0,'Project Information'!$D$44=\"\"),0,-1*MAX(0,(($G79*$H79/1000)-($I79*$J79/1000))*$L79)*$V79*VLOOKUP('Project Information'!$D$44,'CBAT Lookups'!$A$23:$H$30,4)))","v":""},{"$f":"IF('Project Scope'!$C79=\"\",\"\",IF(OR($J79<=0,'Project Information'!$D$44=\"\"),0,-1*MAX(0,(($G79*$H79/1000)-($I79*$J79/1000))*$L79)*$V79*VLOOKUP('Project Information'!$D$44,'CBAT Lookups'!$A$23:$H$30,5)))","v":""},{"$f":"IF('Project Scope'!$C79=\"\",\"\",IF(OR($J79<=0,'Project Information'!$D$44=\"\"),0,-1*MAX(0,(($G79*$H79/1000)-($I79*$J79/1000))*$L79)*$V79*VLOOKUP('Project Information'!$D$44,'CBAT Lookups'!$A$23:$H$30,6)))","v":""},{"$f":"IF('Project Scope'!$C79=\"\",\"\",IF(OR($J79<=0,'Project Information'!$D$44=\"\"),0,-1*MAX(0,(($G79*$H79/1000)-($I79*$J79/1000))*$L79)*$V79*VLOOKUP('Project Information'!$D$44,'CBAT Lookups'!$A$23:$H$30,7)))","v":""},{"$f":"IF('Project Scope'!$C79=\"\",\"\",IF(OR($J79<=0,'Project Information'!$D$44=\"\"),0,-1*MAX(0,(($G79*$H79/1000)-($I79*$J79/1000))*$L79)*$V79*VLOOKUP('Project Information'!$D$44,'CBAT Lookups'!$A$23:$H$30,8)))","v":""},null,{"$f":"IF('Project Scope'!$C79=\"\",\"\",VLOOKUP($F79,'CBAT Lookups'!$B$17:$K$19,4))","v":""},{"$f":"IF('Project Scope'!$C79=\"\",\"\",VLOOKUP($F79,'CBAT Lookups'!$B$17:$K$19,5))","v":""},{"$f":"IF('Project Scope'!$C79=\"\",\"\",VLOOKUP($F79,'CBAT Lookups'!$B$17:$K$19,6))","v":""},{"$f":"IF('Project Scope'!$C79=\"\",\"\",VLOOKUP($F79,'CBAT Lookups'!$B$17:$K$19,7))","v":""},{"$f":"IF('Project Scope'!$C79=\"\",\"\",IF(SUMPRODUCT($P79:$S79,$AN79:$AQ79)=0,0,P79*AN79/SUMPRODUCT($P79:$S79,$AN79:$AQ79)))","v":""},{"$f":"IF('Project Scope'!$C79=\"\",\"\",IF(SUMPRODUCT($P79:$S79,$AN79:$AQ79)=0,0,Q79*AO79/SUMPRODUCT($P79:$S79,$AN79:$AQ79)))","v":""},{"$f":"IF('Project Scope'!$C79=\"\",\"\",IF(SUMPRODUCT($P79:$S79,$AN79:$AQ79)=0,0,R79*AP79/SUMPRODUCT($P79:$S79,$AN79:$AQ79)))","v":""},{"$f":"IF('Project Scope'!$C79=\"\",\"\",IF(SUMPRODUCT($P79:$S79,$AN79:$AQ79)=0,0,S79*AQ79/SUMPRODUCT($P79:$S79,$AN79:$AQ79)))","v":""},{"$f":"IF('Project Scope'!$C79=\"\",\"\",Benefits($AB79,$AD79,$AE79,$AG79,$AH79,$AI79,$AJ79,$AK79,$AL79,$AM79,$M79,$AR79,$AS79,$AT79,$AU79,$W79,$X79,$Y79,$Z79,$AA79,$E79))","v":""},"","","","","","","","",null,{"$f":"IF('Project Scope'!$C79=\"\",\"\",SUM('Project Scope'!$AT79,'Project Scope'!$AU79))","v":""},{"$f":"IF('Project Scope'!$C79=\"\",\"\",SUM('Project Scope'!$BG79, 'Project Scope'!$AR79,(IF(ISNUMBER('Project Scope'!$AS79),'Project Scope'!$AS79,0)*'Project Information'!$D$12)))","v":""},null,null,{"$f":"IF('Project Scope'!$C79=\"\",\"\",IF(COUNTIF('CBAT Lookups'!$B$5:$B$12,\"Controls-\"&CBAT!$D79)=1,VLOOKUP(\"Controls-\"&CBAT!$D79,'CBAT Lookups'!$B$5:$L$12,11),0))","v":""},{"$f":"IF('Project Scope'!$C79=\"\",\"\",IF(COUNTIF('CBAT Lookups'!$B$5:$B$12,\"Controls-\"&CBAT!$D79)=1,VLOOKUP(\"Controls-\"&CBAT!$D79,'CBAT Lookups'!$B$5:$K$12,2),0)*VLOOKUP($F79,'CBAT Lookups'!$B$17:$K$19,2))","v":""},{"$f":"IF('Project Scope'!$C79=\"\",\"\",IF(COUNTIF('CBAT Lookups'!$B$5:$B$12,\"Controls-\"&CBAT!$D79)=1,VLOOKUP(\"Controls-\"&CBAT!$D79,'CBAT Lookups'!$B$5:$K$12,3),0)*VLOOKUP($F79,'CBAT Lookups'!$B$17:$K$19,3))","v":""},{"$f":"IF('Project Scope'!$C79=\"\",\"\",IF(COUNTIF('CBAT Lookups'!$B$5:$B$12,\"Controls-\"&CBAT!$D79)=1,VLOOKUP(\"Controls-\"&CBAT!$D79,'CBAT Lookups'!$B$5:$K$12,4),0))","v":""},{"$f":"IF('Project Scope'!$C79=\"\",\"\",IF(COUNTIF('CBAT Lookups'!$B$5:$B$12,\"Controls-\"&CBAT!$D79)=1,VLOOKUP(\"Controls-\"&CBAT!$D79,'CBAT Lookups'!$B$5:$K$12,5),0))","v":""},{"$f":"IF('Project Scope'!$C79=\"\",\"\",IF(COUNTIF('CBAT Lookups'!$B$5:$B$12,\"Controls-\"&CBAT!$D79)=1,VLOOKUP(\"Controls-\"&CBAT!$D79,'CBAT Lookups'!$B$5:$K$12,6),0))","v":""},{"$f":"IF('Project Scope'!$C79=\"\",\"\",IF(COUNTIF('CBAT Lookups'!$B$5:$B$12,\"Controls-\"&CBAT!$D79)=1,VLOOKUP(\"Controls-\"&CBAT!$D79,'CBAT Lookups'!$B$5:$K$12,7),0))","v":""},{"$f":"IF('Project Scope'!$C79=\"\",\"\",IF(VLOOKUP($F79,'CBAT Lookups'!$B$17:$K$19,8)=\"W\",1,IF(COUNTIF('CBAT Lookups'!$B$5:$B$12,\"Controls-\"&CBAT!$D79)=1,VLOOKUP(\"Controls-\"&CBAT!$D79,'CBAT Lookups'!$B$5:$K$12,8),0)*VLOOKUP($F79,'CBAT Lookups'!$B$17:$K$19,8)))","v":""},{"$f":"IF('Project Scope'!$C79=\"\",\"\",IF(VLOOKUP($F79,'CBAT Lookups'!$B$17:$K$19,9)=\"W\",1,IF(COUNTIF('CBAT Lookups'!$B$5:$B$12,\"Controls-\"&CBAT!$D79)=1,VLOOKUP(\"Controls-\"&CBAT!$D79,'CBAT Lookups'!$B$5:$K$12,9),0)*VLOOKUP($F79,'CBAT Lookups'!$B$17:$K$19,9)))","v":""},{"$f":"IF('Project Scope'!$C79=\"\",\"\",IF(COUNTIF('CBAT Lookups'!$B$5:$B$12,\"Controls-\"&CBAT!$D79)=1,VLOOKUP(\"Controls-\"&CBAT!$D79,'CBAT Lookups'!$B$5:$K$12,10),0)*VLOOKUP($F79,'CBAT Lookups'!$B$17:$K$19,10))","v":""},{"$f":"IF('Project Scope'!$C79=\"\",\"\",VLOOKUP($C79,'CBAT Lookups'!$A$33:$B$57,2))","v":""},{"$f":"IF('Project Scope'!$C79=\"\",\"\",IF(COUNTIF('CBAT Lookups'!$B$5:$B$12,\"Controls-\"&CBAT!$D79)=1,VLOOKUP(\"Controls-\"&CBAT!$D79,'CBAT Lookups'!$B$5:$O$12,12),0))","v":""},{"$f":"IF('Project Scope'!$C79=\"\",\"\",IF(COUNTIF('CBAT Lookups'!$B$5:$B$12,\"Controls-\"&CBAT!$D79)=1,VLOOKUP(\"Controls-\"&CBAT!$D79,'CBAT Lookups'!$B$5:$O$12,13),0))","v":""},{"$f":"IF('Project Scope'!$C79=\"\",\"\",IF(COUNTIF('CBAT Lookups'!$B$5:$B$12,\"Controls-\"&CBAT!$D79)=1,VLOOKUP(\"Controls-\"&CBAT!$D79,'CBAT Lookups'!$B$5:$O$12,14),0))","v":""},{"$f":"IF('Project Scope'!$C79=\"\",\"\",'TRM Data'!$U$3)","v":""},{"$f":"IF('Project Scope'!$C79=\"\",\"\",'TRM Data'!$V$3)","v":""},{"$f":"IF('Project Scope'!$C79=\"\",\"\",IF($K79<=0,0,MAX(0,(IF(AND($I79>0,$J79>0),($I79*$J79)/1000,($G79*$H79)/1000)*$L79))*$BT79*$BR79)+($CD79/0.003412))","v":""},{"$f":"IF('Project Scope'!$C79=\"\",\"\",IF($K79<=0,0,MAX(0,IF(AND($I79>0,$J79>0),($I79*$J79)/1000,($G79*$H79)/1000))*$BQ79))","v":""},{"$f":"IF('Project Scope'!$C79=\"\",\"\",IF($K79<=0,0,MAX(0,IF(AND($I79>0,$J79>0),($I79*$J79)/1000,($G79*$H79)/1000))*$BK79))","v":""},{"$f":"IF('Project Scope'!$C79=\"\",\"\",IF($K79<=0,0,MAX(0,IF(AND($I79>0,$J79>0),($I79*$J79)/1000,($G79*$H79)/1000))*$BL79*$BQ79))","v":""},{"$f":"IF('Project Scope'!$C79=\"\",\"\",IF(OR($K79<=0,'Project Information'!$D$44=\"\"),0,-1*MAX(0,IF(AND($I79>0,$J79>0),($I79*$J79)/1000,($G79*$H79)/1000))*$BT79*$L79*$BS79*VLOOKUP('Project Information'!$D$44,'CBAT Lookups'!$A$23:$H$30,2)))","v":""},{"$f":"IF('Project Scope'!$C79=\"\",\"\",IF(OR($K79<=0,'Project Information'!$D$44=\"\"),0,-1*MAX(0,IF(AND($I79>0,$J79>0),($I79*$J79)/1000,($G79*$H79)/1000))*$BT79*$L79*$BS79*VLOOKUP('Project Information'!$D$44,'CBAT Lookups'!$A$23:$H$30,3)))","v":""},{"$f":"IF('Project Scope'!$C79=\"\",\"\",IF(OR($K79<=0,'Project Information'!$D$44=\"\"),0,-1*MAX(0,IF(AND($I79>0,$J79>0),($I79*$J79)/1000,($G79*$H79)/1000))*$BT79*$L79*$BS79*VLOOKUP('Project Information'!$D$44,'CBAT Lookups'!$A$23:$H$30,4)))","v":""},{"$f":"IF('Project Scope'!$C79=\"\",\"\",IF(OR($K79<=0,'Project Information'!$D$44=\"\"),0,-1*MAX(0,IF(AND($I79>0,$J79>0),($I79*$J79)/1000,($G79*$H79)/1000))*$BT79*$L79*$BS79*VLOOKUP('Project Information'!$D$44,'CBAT Lookups'!$A$23:$H$30,5)))","v":""},{"$f":"IF('Project Scope'!$C79=\"\",\"\",IF(OR($K79<=0,'Project Information'!$D$44=\"\"),0,-1*MAX(0,IF(AND($I79>0,$J79>0),($I79*$J79)/1000,($G79*$H79)/1000))*$BT79*$L79*$BS79*VLOOKUP('Project Information'!$D$44,'CBAT Lookups'!$A$23:$H$30,6)))","v":""},{"$f":"IF('Project Scope'!$C79=\"\",\"\",IF(OR($K79<=0,'Project Information'!$D$44=\"\"),0,-1*MAX(0,IF(AND($I79>0,$J79>0),($I79*$J79)/1000,($G79*$H79)/1000))*$BT79*$L79*$BS79*VLOOKUP('Project Information'!$D$44,'CBAT Lookups'!$A$23:$H$30,7)))","v":""},{"$f":"IF('Project Scope'!$C79=\"\",\"\",IF(OR($K79<=0,'Project Information'!$D$44=\"\"),0,-1*MAX(0,IF(AND($I79>0,$J79>0),($I79*$J79)/1000,($G79*$H79)/1000))*$BT79*$L79*$BS79*VLOOKUP('Project Information'!$D$44,'CBAT Lookups'!$A$23:$H$30,8)))","v":""},null,{"$f":"IF('Project Scope'!$C79=\"\",\"\",VLOOKUP($F79,'CBAT Lookups'!$B$17:$K$19,4))","v":""},{"$f":"IF('Project Scope'!$C79=\"\",\"\",VLOOKUP($F79,'CBAT Lookups'!$B$17:$K$19,5))","v":""},{"$f":"IF('Project Scope'!$C79=\"\",\"\",VLOOKUP($F79,'CBAT Lookups'!$B$17:$K$19,6))","v":""},{"$f":"IF('Project Scope'!$C79=\"\",\"\",VLOOKUP($F79,'CBAT Lookups'!$B$17:$K$19,7))","v":""},{"$f":"IF('Project Scope'!$C79=\"\",\"\",IF(SUMPRODUCT($BM79:$BP79,$CL79:$CO79)=0,0,BM79*CL79/SUMPRODUCT($BM79:$BP79,$CL79:$CO79)))","v":""},{"$f":"IF('Project Scope'!$C79=\"\",\"\",IF(SUMPRODUCT($BM79:$BP79,$CL79:$CO79)=0,0,BN79*CM79/SUMPRODUCT($BM79:$BP79,$CL79:$CO79)))","v":""},{"$f":"IF('Project Scope'!$C79=\"\",\"\",IF(SUMPRODUCT($BM79:$BP79,$CL79:$CO79)=0,0,BO79*CN79/SUMPRODUCT($BM79:$BP79,$CL79:$CO79)))","v":""},{"$f":"IF('Project Scope'!$C79=\"\",\"\",IF(SUMPRODUCT($BM79:$BP79,$CL79:$CO79)=0,0,BP79*CO79/SUMPRODUCT($BM79:$BP79,$CL79:$CO79)))","v":""},{"$f":"IF('Project Scope'!$C79=\"\",\"\",Benefits($BZ79,$CB79,$CC79,$CE79,$CF79,$CG79,$CH79,$CI79,$CJ79,$CK79,$BJ79,$CP79,$CQ79,$CR79,$CS79,$BU79,$BV79,$BW79,$BX79,$BY79,$E79))","v":""},"","","","","","","","",null,{"$f":"IF('Project Scope'!$C79=\"\",\"\",SUM('Project Scope'!$BB79,'Project Scope'!$BC79))","v":""},{"$f":"IF('Project Scope'!$C79=\"\",\"\",SUM('Project Scope'!$BH79, 'Project Scope'!$AZ79,(IF(ISNUMBER('Project Scope'!$BA79),'Project Scope'!$BA79,0)*'Project Information'!$D$12)))","v":""},null,null,{"$f":"IF('Project Scope'!$C79=\"\",\"\",IF($J79<=0,0,(SUMPRODUCT($AV79:$BC79,--($AV79:$BC79>0))+$BE79)*$DK79/((-SUMPRODUCT($AV79:$BC79,--($AV79:$BC79<0))+$BG79+$BH79+$BI79)*$DK79)))","v":""},{"$f":"IF('Project Scope'!$C79=\"\",\"\",IF($K79<=0,0,(SUMPRODUCT($CT79:$DA79,--($CT79:$DA79>0))+$DC79)*$DK79/((-SUMPRODUCT($CT79:$DA79,--($CT79:$DA79<0))+$DE79+$DF79+$DG79)*$DK79)))","v":""},{"$f":"IF('Project Scope'!$C79=\"\",\"\",IF(AND($J79<=0,$K79<=0),0,(SUMPRODUCT($AV79:$BC79,--($AV79:$BC79>0))+$BE79+SUMPRODUCT($CT79:$DA79,--($CT79:$DA79>0))+$DC79)*$DK79/((-SUMPRODUCT($AV79:$BC79,--($AV79:$BC79<0))+$BG79+$BH79+$BI79-SUMPRODUCT($CT79:$DA79,--($CT79:$DA79<0))+$DE79+$DF79+$DG79)*$DK79)))","v":""},{"$f":"IF('Project Scope'!$C79=\"\",\"\",IF(NetOrGross=\"Net\",(1-Z79+AA79),1))","v":""}]
[{"$f":"'Project Scope'!$B80","v":73},{"$f":"IF('Project Scope'!$C80=\"\",\"\",'Project Scope'!$C80)","v":""},{"$f":"IF('Project Scope'!$C80=\"\",\"\",'Project Scope'!$H80)","v":""},{"$f":"IF(ISNUMBER(SEARCH(\"Bay\",'Project Scope'!$Q80)),\"Bay\",IF('Project Scope'!C80=\"\",\"\",'Project Scope'!E80))","v":""},{"$f":"IF('Project Scope'!$C80=\"\",\"\",\"Com\")","v":""},{"$f":"IF('Project Scope'!$C80=\"\",\"\",'Project Scope'!$L80)","v":""},{"$f":"IF('Project Scope'!$C80=\"\",\"\",IF('Project Scope'!$CJ80=\"\",0,'Project Scope'!$CJ80))","v":""},{"$f":"IF('Project Scope'!$C80=\"\",\"\",IF('Project Scope'!$N80=\"\",0,'Project Scope'!$N80))","v":""},{"$f":"IF('Project Scope'!$C80=\"\",\"\",IF('Project Scope'!$CK80=\"\",0,'Project Scope'!$CK80))","v":""},{"$f":"IF('Project Scope'!$C80=\"\",\"\",IF('Project Scope'!$AO80=\"\",0,'Project Scope'!$AO80))","v":""},{"$f":"IF('Project Scope'!$C80=\"\",\"\",IF('Project Scope'!$AX80=\"\",0,'Project Scope'!$AX80))","v":""},{"$f":"IF('Project Scope'!$C80=\"\",\"\",IF('Project Scope'!$M80=\"\",0,'Project Scope'!$M80))","v":""},{"$f":"IF('Project Scope'!$C80=\"\",\"\",IF(COUNTIF('CBAT Lookups'!$B$5:$B$12,\"Fixtures-\"&CBAT!$D80)=1,VLOOKUP(\"Fixtures-\"&CBAT!$D80,'CBAT Lookups'!$B$5:$L$12,11),0))","v":""},{"$f":"IF('Project Scope'!$C80=\"\",\"\",(IF(COUNTIF('CBAT Lookups'!$B$5:$B$12,\"Fixtures-\"&CBAT!$D80)=1,VLOOKUP(\"Fixtures-\"&CBAT!$D80,'CBAT Lookups'!$B$5:$K$12,2),0))*VLOOKUP($F80,'CBAT Lookups'!$B$17:$K$19,2))","v":""},{"$f":"IF('Project Scope'!$C80=\"\",\"\",(IF(COUNTIF('CBAT Lookups'!$B$5:$B$12,\"Fixtures-\"&CBAT!$D80)=1,VLOOKUP(\"Fixtures-\"&CBAT!$D80,'CBAT Lookups'!$B$5:$K$12,3),0))*VLOOKUP($F80,'CBAT Lookups'!$B$17:$K$19,3))","v":""},{"$f":"IF('Project Scope'!$C80=\"\",\"\",(IF(COUNTIF('CBAT Lookups'!$B$5:$B$12,\"Fixtures-\"&CBAT!$D80)=1,VLOOKUP(\"Fixtures-\"&CBAT!$D80,'CBAT Lookups'!$B$5:$K$12,4),0)))","v":""},{"$f":"IF('Project Scope'!$C80=\"\",\"\",(IF(COUNTIF('CBAT Lookups'!$B$5:$B$12,\"Fixtures-\"&CBAT!$D80)=1,VLOOKUP(\"Fixtures-\"&CBAT!$D80,'CBAT Lookups'!$B$5:$K$12,5),0)))","v":""},{"$f":"IF('Project Scope'!$C80=\"\",\"\",(IF(COUNTIF('CBAT Lookups'!$B$5:$B$12,\"Fixtures-\"&CBAT!$D80)=1,VLOOKUP(\"Fixtures-\"&CBAT!$D80,'CBAT Lookups'!$B$5:$K$12,6),0)))","v":""},{"$f":"IF('Project Scope'!$C80=\"\",\"\",IF(COUNTIF('CBAT Lookups'!$B$5:$B$12,\"Fixtures-\"&CBAT!$D80)=1,VLOOKUP(\"Fixtures-\"&CBAT!$D80,'CBAT Lookups'!$B$5:$K$12,7),0))","v":""},{"$f":"IF('Project Scope'!$C80=\"\",\"\",IF(VLOOKUP($F80,'CBAT Lookups'!$B$17:$K$19,8)=\"W\",1,IF(COUNTIF('CBAT Lookups'!$B$5:$B$12,\"Fixtures-\"&CBAT!$D80)=1,VLOOKUP(\"Fixtures-\"&CBAT!$D80,'CBAT Lookups'!$B$5:$K$12,8),0)*VLOOKUP($F80,'CBAT Lookups'!$B$17:$K$19,8)))","v":""},{"$f":"IF('Project Scope'!$C80=\"\",\"\",IF(VLOOKUP($F80,'CBAT Lookups'!$B$17:$K$19,9)=\"W\",1,IF(COUNTIF('CBAT Lookups'!$B$5:$B$12,\"Fixtures-\"&CBAT!$D80)=1,VLOOKUP(\"Fixtures-\"&CBAT!$D80,'CBAT Lookups'!$B$5:$K$12,9),0)*VLOOKUP($F80,'CBAT Lookups'!$B$17:$K$19,9)))","v":""},{"$f":"IF('Project Scope'!$C80=\"\",\"\",IF(COUNTIF('CBAT Lookups'!$B$5:$B$12,\"Fixtures-\"&CBAT!$D80)=1,VLOOKUP(\"Fixtures-\"&CBAT!$D80,'CBAT Lookups'!$B$5:$K$12,10),0)*VLOOKUP($F80,'CBAT Lookups'!$B$17:$K$19,10))","v":""},{"$f":"IF('Project Scope'!$C80=\"\",\"\",IF(COUNTIF('CBAT Lookups'!$B$5:$B$12,\"Fixtures-\"&CBAT!$D80)=1,VLOOKUP(\"Fixtures-\"&CBAT!$D80,'CBAT Lookups'!$B$5:$O$12,12),0))","v":""},{"$f":"IF('Project Scope'!$C80=\"\",\"\",IF(COUNTIF('CBAT Lookups'!$B$5:$B$12,\"Fixtures-\"&CBAT!$D80)=1,VLOOKUP(\"Fixtures-\"&CBAT!$D80,'CBAT Lookups'!$B$5:$O$12,13),0))","v":""},{"$f":"IF('Project Scope'!$C80=\"\",\"\",IF(COUNTIF('CBAT Lookups'!$B$5:$B$12,\"Fixtures-\"&CBAT!$D80)=1,VLOOKUP(\"Fixtures-\"&CBAT!$D80,'CBAT Lookups'!$B$5:$O$12,14),0))","v":""},{"$f":"IF('Project Scope'!$C80=\"\",\"\",'TRM Data'!$U$3)","v":""},{"$f":"IF('Project Scope'!$C80=\"\",\"\",'TRM Data'!$V$3)","v":""},{"$f":"IF('Project Scope'!$C80=\"\",\"\",IF($J80<=0,0,MAX(0,(($G80*$H80/1000)-($I80*$J80/1000))*$L80)*$U80)+($AF80/0.003412))","v":""},{"$f":"IF('Project Scope'!$C80=\"\",\"\",IF($J80<=0,0,MAX(0,(($G80*$H80/1000)-($I80*$J80/1000)))*$T80))","v":""},{"$f":"IF('Project Scope'!$C80=\"\",\"\",IF($J80<=0,0,MAX(0,(($G80*$H80/1000)-($I80*$J80/1000))*$N80)))","v":""},{"$f":"IF('Project Scope'!$C80=\"\",\"\",IF($J80<=0,0,MAX(0,(($G80*$H80/1000)-($I80*$J80/1000))*$O80)*$T80))","v":""},{"$f":"IF('Project Scope'!$C80=\"\",\"\",IF(OR($J80<=0,'Project Information'!$D$44=\"\"),0,-1*MAX(0,(($G80*$H80/1000)-($I80*$J80/1000))*$L80)*$V80*VLOOKUP('Project Information'!$D$44,'CBAT Lookups'!$A$23:$H$30,2)))","v":""},{"$f":"IF('Project Scope'!$C80=\"\",\"\",IF(OR($J80<=0,'Project Information'!$D$44=\"\"),0,-1*MAX(0,(($G80*$H80/1000)-($I80*$J80/1000))*$L80)*$V80*VLOOKUP('Project Information'!$D$44,'CBAT Lookups'!$A$23:$H$30,3)))","v":""},{"$f":"IF('Project Scope'!$C80=\"\",\"\",IF(OR($J80<=0,'Project Information'!$D$44=\"\"),0,-1*MAX(0,(($G80*$H80/1000)-($I80*$J80/1000))*$L80)*$V80*VLOOKUP('Project Information'!$D$44,'CBAT Lookups'!$A$23:$H$30,4)))","v":""},{"$f":"IF('Project Scope'!$C80=\"\",\"\",IF(OR($J80<=0,'Project Information'!$D$44=\"\"),0,-1*MAX(0,(($G80*$H80/1000)-($I80*$J80/1000))*$L80)*$V80*VLOOKUP('Project Information'!$D$44,'CBAT Lookups'!$A$23:$H$30,5)))","v":""},{"$f":"IF('Project Scope'!$C80=\"\",\"\",IF(OR($J80<=0,'Project Information'!$D$44=\"\"),0,-1*MAX(0,(($G80*$H80/1000)-($I80*$J80/1000))*$L80)*$V80*VLOOKUP('Project Information'!$D$44,'CBAT Lookups'!$A$23:$H$30,6)))","v":""},{"$f":"IF('Project Scope'!$C80=\"\",\"\",IF(OR($J80<=0,'Project Information'!$D$44=\"\"),0,-1*MAX(0,(($G80*$H80/1000)-($I80*$J80/1000))*$L80)*$V80*VLOOKUP('Project Information'!$D$44,'CBAT Lookups'!$A$23:$H$30,7)))","v":""},{"$f":"IF('Project Scope'!$C80=\"\",\"\",IF(OR($J80<=0,'Project Information'!$D$44=\"\"),0,-1*MAX(0,(($G80*$H80/1000)-($I80*$J80/1000))*$L80)*$V80*VLOOKUP('Project Information'!$D$44,'CBAT Lookups'!$A$23:$H$30,8)))","v":""},null,{"$f":"IF('Project Scope'!$C80=\"\",\"\",VLOOKUP($F80,'CBAT Lookups'!$B$17:$K$19,4))","v":""},{"$f":"IF('Project Scope'!$C80=\"\",\"\",VLOOKUP($F80,'CBAT Lookups'!$B$17:$K$19,5))","v":""},{"$f":"IF('Project Scope'!$C80=\"\",\"\",VLOOKUP($F80,'CBAT Lookups'!$B$17:$K$19,6))","v":""},{"$f":"IF('Project Scope'!$C80=\"\",\"\",VLOOKUP($F80,'CBAT Lookups'!$B$17:$K$19,7))","v":""},{"$f":"IF('Project Scope'!$C80=\"\",\"\",IF(SUMPRODUCT($P80:$S80,$AN80:$AQ80)=0,0,P80*AN80/SUMPRODUCT($P80:$S80,$AN80:$AQ80)))","v":""},{"$f":"IF('Project Scope'!$C80=\"\",\"\",IF(SUMPRODUCT($P80:$S80,$AN80:$AQ80)=0,0,Q80*AO80/SUMPRODUCT($P80:$S80,$AN80:$AQ80)))","v":""},{"$f":"IF('Project Scope'!$C80=\"\",\"\",IF(SUMPRODUCT($P80:$S80,$AN80:$AQ80)=0,0,R80*AP80/SUMPRODUCT($P80:$S80,$AN80:$AQ80)))","v":""},{"$f":"IF('Project Scope'!$C80=\"\",\"\",IF(SUMPRODUCT($P80:$S80,$AN80:$AQ80)=0,0,S80*AQ80/SUMPRODUCT($P80:$S80,$AN80:$AQ80)))","v":""},{"$f":"IF('Project Scope'!$C80=\"\",\"\",Benefits($AB80,$AD80,$AE80,$AG80,$AH80,$AI80,$AJ80,$AK80,$AL80,$AM80,$M80,$AR80,$AS80,$AT80,$AU80,$W80,$X80,$Y80,$Z80,$AA80,$E80))","v":""},"","","","","","","","",null,{"$f":"IF('Project Scope'!$C80=\"\",\"\",SUM('Project Scope'!$AT80,'Project Scope'!$AU80))","v":""},{"$f":"IF('Project Scope'!$C80=\"\",\"\",SUM('Project Scope'!$BG80, 'Project Scope'!$AR80,(IF(ISNUMBER('Project Scope'!$AS80),'Project Scope'!$AS80,0)*'Project Information'!$D$12)))","v":""},null,null,{"$f":"IF('Project Scope'!$C80=\"\",\"\",IF(COUNTIF('CBAT Lookups'!$B$5:$B$12,\"Controls-\"&CBAT!$D80)=1,VLOOKUP(\"Controls-\"&CBAT!$D80,'CBAT Lookups'!$B$5:$L$12,11),0))","v":""},{"$f":"IF('Project Scope'!$C80=\"\",\"\",IF(COUNTIF('CBAT Lookups'!$B$5:$B$12,\"Controls-\"&CBAT!$D80)=1,VLOOKUP(\"Controls-\"&CBAT!$D80,'CBAT Lookups'!$B$5:$K$12,2),0)*VLOOKUP($F80,'CBAT Lookups'!$B$17:$K$19,2))","v":""},{"$f":"IF('Project Scope'!$C80=\"\",\"\",IF(COUNTIF('CBAT Lookups'!$B$5:$B$12,\"Controls-\"&CBAT!$D80)=1,VLOOKUP(\"Controls-\"&CBAT!$D80,'CBAT Lookups'!$B$5:$K$12,3),0)*VLOOKUP($F80,'CBAT Lookups'!$B$17:$K$19,3))","v":""},{"$f":"IF('Project Scope'!$C80=\"\",\"\",IF(COUNTIF('CBAT Lookups'!$B$5:$B$12,\"Controls-\"&CBAT!$D80)=1,VLOOKUP(\"Controls-\"&CBAT!$D80,'CBAT Lookups'!$B$5:$K$12,4),0))","v":""},{"$f":"IF('Project Scope'!$C80=\"\",\"\",IF(COUNTIF('CBAT Lookups'!$B$5:$B$12,\"Controls-\"&CBAT!$D80)=1,VLOOKUP(\"Controls-\"&CBAT!$D80,'CBAT Lookups'!$B$5:$K$12,5),0))","v":""},{"$f":"IF('Project Scope'!$C80=\"\",\"\",IF(COUNTIF('CBAT Lookups'!$B$5:$B$12,\"Controls-\"&CBAT!$D80)=1,VLOOKUP(\"Controls-\"&CBAT!$D80,'CBAT Lookups'!$B$5:$K$12,6),0))","v":""},{"$f":"IF('Project Scope'!$C80=\"\",\"\",IF(COUNTIF('CBAT Lookups'!$B$5:$B$12,\"Controls-\"&CBAT!$D80)=1,VLOOKUP(\"Controls-\"&CBAT!$D80,'CBAT Lookups'!$B$5:$K$12,7),0))","v":""},{"$f":"IF('Project Scope'!$C80=\"\",\"\",IF(VLOOKUP($F80,'CBAT Lookups'!$B$17:$K$19,8)=\"W\",1,IF(COUNTIF('CBAT Lookups'!$B$5:$B$12,\"Controls-\"&CBAT!$D80)=1,VLOOKUP(\"Controls-\"&CBAT!$D80,'CBAT Lookups'!$B$5:$K$12,8),0)*VLOOKUP($F80,'CBAT Lookups'!$B$17:$K$19,8)))","v":""},{"$f":"IF('Project Scope'!$C80=\"\",\"\",IF(VLOOKUP($F80,'CBAT Lookups'!$B$17:$K$19,9)=\"W\",1,IF(COUNTIF('CBAT Lookups'!$B$5:$B$12,\"Controls-\"&CBAT!$D80)=1,VLOOKUP(\"Controls-\"&CBAT!$D80,'CBAT Lookups'!$B$5:$K$12,9),0)*VLOOKUP($F80,'CBAT Lookups'!$B$17:$K$19,9)))","v":""},{"$f":"IF('Project Scope'!$C80=\"\",\"\",IF(COUNTIF('CBAT Lookups'!$B$5:$B$12,\"Controls-\"&CBAT!$D80)=1,VLOOKUP(\"Controls-\"&CBAT!$D80,'CBAT Lookups'!$B$5:$K$12,10),0)*VLOOKUP($F80,'CBAT Lookups'!$B$17:$K$19,10))","v":""},{"$f":"IF('Project Scope'!$C80=\"\",\"\",VLOOKUP($C80,'CBAT Lookups'!$A$33:$B$57,2))","v":""},{"$f":"IF('Project Scope'!$C80=\"\",\"\",IF(COUNTIF('CBAT Lookups'!$B$5:$B$12,\"Controls-\"&CBAT!$D80)=1,VLOOKUP(\"Controls-\"&CBAT!$D80,'CBAT Lookups'!$B$5:$O$12,12),0))","v":""},{"$f":"IF('Project Scope'!$C80=\"\",\"\",IF(COUNTIF('CBAT Lookups'!$B$5:$B$12,\"Controls-\"&CBAT!$D80)=1,VLOOKUP(\"Controls-\"&CBAT!$D80,'CBAT Lookups'!$B$5:$O$12,13),0))","v":""},{"$f":"IF('Project Scope'!$C80=\"\",\"\",IF(COUNTIF('CBAT Lookups'!$B$5:$B$12,\"Controls-\"&CBAT!$D80)=1,VLOOKUP(\"Controls-\"&CBAT!$D80,'CBAT Lookups'!$B$5:$O$12,14),0))","v":""},{"$f":"IF('Project Scope'!$C80=\"\",\"\",'TRM Data'!$U$3)","v":""},{"$f":"IF('Project Scope'!$C80=\"\",\"\",'TRM Data'!$V$3)","v":""},{"$f":"IF('Project Scope'!$C80=\"\",\"\",IF($K80<=0,0,MAX(0,(IF(AND($I80>0,$J80>0),($I80*$J80)/1000,($G80*$H80)/1000)*$L80))*$BT80*$BR80)+($CD80/0.003412))","v":""},{"$f":"IF('Project Scope'!$C80=\"\",\"\",IF($K80<=0,0,MAX(0,IF(AND($I80>0,$J80>0),($I80*$J80)/1000,($G80*$H80)/1000))*$BQ80))","v":""},{"$f":"IF('Project Scope'!$C80=\"\",\"\",IF($K80<=0,0,MAX(0,IF(AND($I80>0,$J80>0),($I80*$J80)/1000,($G80*$H80)/1000))*$BK80))","v":""},{"$f":"IF('Project Scope'!$C80=\"\",\"\",IF($K80<=0,0,MAX(0,IF(AND($I80>0,$J80>0),($I80*$J80)/1000,($G80*$H80)/1000))*$BL80*$BQ80))","v":""},{"$f":"IF('Project Scope'!$C80=\"\",\"\",IF(OR($K80<=0,'Project Information'!$D$44=\"\"),0,-1*MAX(0,IF(AND($I80>0,$J80>0),($I80*$J80)/1000,($G80*$H80)/1000))*$BT80*$L80*$BS80*VLOOKUP('Project Information'!$D$44,'CBAT Lookups'!$A$23:$H$30,2)))","v":""},{"$f":"IF('Project Scope'!$C80=\"\",\"\",IF(OR($K80<=0,'Project Information'!$D$44=\"\"),0,-1*MAX(0,IF(AND($I80>0,$J80>0),($I80*$J80)/1000,($G80*$H80)/1000))*$BT80*$L80*$BS80*VLOOKUP('Project Information'!$D$44,'CBAT Lookups'!$A$23:$H$30,3)))","v":""},{"$f":"IF('Project Scope'!$C80=\"\",\"\",IF(OR($K80<=0,'Project Information'!$D$44=\"\"),0,-1*MAX(0,IF(AND($I80>0,$J80>0),($I80*$J80)/1000,($G80*$H80)/1000))*$BT80*$L80*$BS80*VLOOKUP('Project Information'!$D$44,'CBAT Lookups'!$A$23:$H$30,4)))","v":""},{"$f":"IF('Project Scope'!$C80=\"\",\"\",IF(OR($K80<=0,'Project Information'!$D$44=\"\"),0,-1*MAX(0,IF(AND($I80>0,$J80>0),($I80*$J80)/1000,($G80*$H80)/1000))*$BT80*$L80*$BS80*VLOOKUP('Project Information'!$D$44,'CBAT Lookups'!$A$23:$H$30,5)))","v":""},{"$f":"IF('Project Scope'!$C80=\"\",\"\",IF(OR($K80<=0,'Project Information'!$D$44=\"\"),0,-1*MAX(0,IF(AND($I80>0,$J80>0),($I80*$J80)/1000,($G80*$H80)/1000))*$BT80*$L80*$BS80*VLOOKUP('Project Information'!$D$44,'CBAT Lookups'!$A$23:$H$30,6)))","v":""},{"$f":"IF('Project Scope'!$C80=\"\",\"\",IF(OR($K80<=0,'Project Information'!$D$44=\"\"),0,-1*MAX(0,IF(AND($I80>0,$J80>0),($I80*$J80)/1000,($G80*$H80)/1000))*$BT80*$L80*$BS80*VLOOKUP('Project Information'!$D$44,'CBAT Lookups'!$A$23:$H$30,7)))","v":""},{"$f":"IF('Project Scope'!$C80=\"\",\"\",IF(OR($K80<=0,'Project Information'!$D$44=\"\"),0,-1*MAX(0,IF(AND($I80>0,$J80>0),($I80*$J80)/1000,($G80*$H80)/1000))*$BT80*$L80*$BS80*VLOOKUP('Project Information'!$D$44,'CBAT Lookups'!$A$23:$H$30,8)))","v":""},null,{"$f":"IF('Project Scope'!$C80=\"\",\"\",VLOOKUP($F80,'CBAT Lookups'!$B$17:$K$19,4))","v":""},{"$f":"IF('Project Scope'!$C80=\"\",\"\",VLOOKUP($F80,'CBAT Lookups'!$B$17:$K$19,5))","v":""},{"$f":"IF('Project Scope'!$C80=\"\",\"\",VLOOKUP($F80,'CBAT Lookups'!$B$17:$K$19,6))","v":""},{"$f":"IF('Project Scope'!$C80=\"\",\"\",VLOOKUP($F80,'CBAT Lookups'!$B$17:$K$19,7))","v":""},{"$f":"IF('Project Scope'!$C80=\"\",\"\",IF(SUMPRODUCT($BM80:$BP80,$CL80:$CO80)=0,0,BM80*CL80/SUMPRODUCT($BM80:$BP80,$CL80:$CO80)))","v":""},{"$f":"IF('Project Scope'!$C80=\"\",\"\",IF(SUMPRODUCT($BM80:$BP80,$CL80:$CO80)=0,0,BN80*CM80/SUMPRODUCT($BM80:$BP80,$CL80:$CO80)))","v":""},{"$f":"IF('Project Scope'!$C80=\"\",\"\",IF(SUMPRODUCT($BM80:$BP80,$CL80:$CO80)=0,0,BO80*CN80/SUMPRODUCT($BM80:$BP80,$CL80:$CO80)))","v":""},{"$f":"IF('Project Scope'!$C80=\"\",\"\",IF(SUMPRODUCT($BM80:$BP80,$CL80:$CO80)=0,0,BP80*CO80/SUMPRODUCT($BM80:$BP80,$CL80:$CO80)))","v":""},{"$f":"IF('Project Scope'!$C80=\"\",\"\",Benefits($BZ80,$CB80,$CC80,$CE80,$CF80,$CG80,$CH80,$CI80,$CJ80,$CK80,$BJ80,$CP80,$CQ80,$CR80,$CS80,$BU80,$BV80,$BW80,$BX80,$BY80,$E80))","v":""},"","","","","","","","",null,{"$f":"IF('Project Scope'!$C80=\"\",\"\",SUM('Project Scope'!$BB80,'Project Scope'!$BC80))","v":""},{"$f":"IF('Project Scope'!$C80=\"\",\"\",SUM('Project Scope'!$BH80, 'Project Scope'!$AZ80,(IF(ISNUMBER('Project Scope'!$BA80),'Project Scope'!$BA80,0)*'Project Information'!$D$12)))","v":""},null,null,{"$f":"IF('Project Scope'!$C80=\"\",\"\",IF($J80<=0,0,(SUMPRODUCT($AV80:$BC80,--($AV80:$BC80>0))+$BE80)*$DK80/((-SUMPRODUCT($AV80:$BC80,--($AV80:$BC80<0))+$BG80+$BH80+$BI80)*$DK80)))","v":""},{"$f":"IF('Project Scope'!$C80=\"\",\"\",IF($K80<=0,0,(SUMPRODUCT($CT80:$DA80,--($CT80:$DA80>0))+$DC80)*$DK80/((-SUMPRODUCT($CT80:$DA80,--($CT80:$DA80<0))+$DE80+$DF80+$DG80)*$DK80)))","v":""},{"$f":"IF('Project Scope'!$C80=\"\",\"\",IF(AND($J80<=0,$K80<=0),0,(SUMPRODUCT($AV80:$BC80,--($AV80:$BC80>0))+$BE80+SUMPRODUCT($CT80:$DA80,--($CT80:$DA80>0))+$DC80)*$DK80/((-SUMPRODUCT($AV80:$BC80,--($AV80:$BC80<0))+$BG80+$BH80+$BI80-SUMPRODUCT($CT80:$DA80,--($CT80:$DA80<0))+$DE80+$DF80+$DG80)*$DK80)))","v":""},{"$f":"IF('Project Scope'!$C80=\"\",\"\",IF(NetOrGross=\"Net\",(1-Z80+AA80),1))","v":""}]
[{"$f":"'Project Scope'!$B81","v":74},{"$f":"IF('Project Scope'!$C81=\"\",\"\",'Project Scope'!$C81)","v":""},{"$f":"IF('Project Scope'!$C81=\"\",\"\",'Project Scope'!$H81)","v":""},{"$f":"IF(ISNUMBER(SEARCH(\"Bay\",'Project Scope'!$Q81)),\"Bay\",IF('Project Scope'!C81=\"\",\"\",'Project Scope'!E81))","v":""},{"$f":"IF('Project Scope'!$C81=\"\",\"\",\"Com\")","v":""},{"$f":"IF('Project Scope'!$C81=\"\",\"\",'Project Scope'!$L81)","v":""},{"$f":"IF('Project Scope'!$C81=\"\",\"\",IF('Project Scope'!$CJ81=\"\",0,'Project Scope'!$CJ81))","v":""},{"$f":"IF('Project Scope'!$C81=\"\",\"\",IF('Project Scope'!$N81=\"\",0,'Project Scope'!$N81))","v":""},{"$f":"IF('Project Scope'!$C81=\"\",\"\",IF('Project Scope'!$CK81=\"\",0,'Project Scope'!$CK81))","v":""},{"$f":"IF('Project Scope'!$C81=\"\",\"\",IF('Project Scope'!$AO81=\"\",0,'Project Scope'!$AO81))","v":""},{"$f":"IF('Project Scope'!$C81=\"\",\"\",IF('Project Scope'!$AX81=\"\",0,'Project Scope'!$AX81))","v":""},{"$f":"IF('Project Scope'!$C81=\"\",\"\",IF('Project Scope'!$M81=\"\",0,'Project Scope'!$M81))","v":""},{"$f":"IF('Project Scope'!$C81=\"\",\"\",IF(COUNTIF('CBAT Lookups'!$B$5:$B$12,\"Fixtures-\"&CBAT!$D81)=1,VLOOKUP(\"Fixtures-\"&CBAT!$D81,'CBAT Lookups'!$B$5:$L$12,11),0))","v":""},{"$f":"IF('Project Scope'!$C81=\"\",\"\",(IF(COUNTIF('CBAT Lookups'!$B$5:$B$12,\"Fixtures-\"&CBAT!$D81)=1,VLOOKUP(\"Fixtures-\"&CBAT!$D81,'CBAT Lookups'!$B$5:$K$12,2),0))*VLOOKUP($F81,'CBAT Lookups'!$B$17:$K$19,2))","v":""},{"$f":"IF('Project Scope'!$C81=\"\",\"\",(IF(COUNTIF('CBAT Lookups'!$B$5:$B$12,\"Fixtures-\"&CBAT!$D81)=1,VLOOKUP(\"Fixtures-\"&CBAT!$D81,'CBAT Lookups'!$B$5:$K$12,3),0))*VLOOKUP($F81,'CBAT Lookups'!$B$17:$K$19,3))","v":""},{"$f":"IF('Project Scope'!$C81=\"\",\"\",(IF(COUNTIF('CBAT Lookups'!$B$5:$B$12,\"Fixtures-\"&CBAT!$D81)=1,VLOOKUP(\"Fixtures-\"&CBAT!$D81,'CBAT Lookups'!$B$5:$K$12,4),0)))","v":""},{"$f":"IF('Project Scope'!$C81=\"\",\"\",(IF(COUNTIF('CBAT Lookups'!$B$5:$B$12,\"Fixtures-\"&CBAT!$D81)=1,VLOOKUP(\"Fixtures-\"&CBAT!$D81,'CBAT Lookups'!$B$5:$K$12,5),0)))","v":""},{"$f":"IF('Project Scope'!$C81=\"\",\"\",(IF(COUNTIF('CBAT Lookups'!$B$5:$B$12,\"Fixtures-\"&CBAT!$D81)=1,VLOOKUP(\"Fixtures-\"&CBAT!$D81,'CBAT Lookups'!$B$5:$K$12,6),0)))","v":""},{"$f":"IF('Project Scope'!$C81=\"\",\"\",IF(COUNTIF('CBAT Lookups'!$B$5:$B$12,\"Fixtures-\"&CBAT!$D81)=1,VLOOKUP(\"Fixtures-\"&CBAT!$D81,'CBAT Lookups'!$B$5:$K$12,7),0))","v":""},{"$f":"IF('Project Scope'!$C81=\"\",\"\",IF(VLOOKUP($F81,'CBAT Lookups'!$B$17:$K$19,8)=\"W\",1,IF(COUNTIF('CBAT Lookups'!$B$5:$B$12,\"Fixtures-\"&CBAT!$D81)=1,VLOOKUP(\"Fixtures-\"&CBAT!$D81,'CBAT Lookups'!$B$5:$K$12,8),0)*VLOOKUP($F81,'CBAT Lookups'!$B$17:$K$19,8)))","v":""},{"$f":"IF('Project Scope'!$C81=\"\",\"\",IF(VLOOKUP($F81,'CBAT Lookups'!$B$17:$K$19,9)=\"W\",1,IF(COUNTIF('CBAT Lookups'!$B$5:$B$12,\"Fixtures-\"&CBAT!$D81)=1,VLOOKUP(\"Fixtures-\"&CBAT!$D81,'CBAT Lookups'!$B$5:$K$12,9),0)*VLOOKUP($F81,'CBAT Lookups'!$B$17:$K$19,9)))","v":""},{"$f":"IF('Project Scope'!$C81=\"\",\"\",IF(COUNTIF('CBAT Lookups'!$B$5:$B$12,\"Fixtures-\"&CBAT!$D81)=1,VLOOKUP(\"Fixtures-\"&CBAT!$D81,'CBAT Lookups'!$B$5:$K$12,10),0)*VLOOKUP($F81,'CBAT Lookups'!$B$17:$K$19,10))","v":""},{"$f":"IF('Project Scope'!$C81=\"\",\"\",IF(COUNTIF('CBAT Lookups'!$B$5:$B$12,\"Fixtures-\"&CBAT!$D81)=1,VLOOKUP(\"Fixtures-\"&CBAT!$D81,'CBAT Lookups'!$B$5:$O$12,12),0))","v":""},{"$f":"IF('Project Scope'!$C81=\"\",\"\",IF(COUNTIF('CBAT Lookups'!$B$5:$B$12,\"Fixtures-\"&CBAT!$D81)=1,VLOOKUP(\"Fixtures-\"&CBAT!$D81,'CBAT Lookups'!$B$5:$O$12,13),0))","v":""},{"$f":"IF('Project Scope'!$C81=\"\",\"\",IF(COUNTIF('CBAT Lookups'!$B$5:$B$12,\"Fixtures-\"&CBAT!$D81)=1,VLOOKUP(\"Fixtures-\"&CBAT!$D81,'CBAT Lookups'!$B$5:$O$12,14),0))","v":""},{"$f":"IF('Project Scope'!$C81=\"\",\"\",'TRM Data'!$U$3)","v":""},{"$f":"IF('Project Scope'!$C81=\"\",\"\",'TRM Data'!$V$3)","v":""},{"$f":"IF('Project Scope'!$C81=\"\",\"\",IF($J81<=0,0,MAX(0,(($G81*$H81/1000)-($I81*$J81/1000))*$L81)*$U81)+($AF81/0.003412))","v":""},{"$f":"IF('Project Scope'!$C81=\"\",\"\",IF($J81<=0,0,MAX(0,(($G81*$H81/1000)-($I81*$J81/1000)))*$T81))","v":""},{"$f":"IF('Project Scope'!$C81=\"\",\"\",IF($J81<=0,0,MAX(0,(($G81*$H81/1000)-($I81*$J81/1000))*$N81)))","v":""},{"$f":"IF('Project Scope'!$C81=\"\",\"\",IF($J81<=0,0,MAX(0,(($G81*$H81/1000)-($I81*$J81/1000))*$O81)*$T81))","v":""},{"$f":"IF('Project Scope'!$C81=\"\",\"\",IF(OR($J81<=0,'Project Information'!$D$44=\"\"),0,-1*MAX(0,(($G81*$H81/1000)-($I81*$J81/1000))*$L81)*$V81*VLOOKUP('Project Information'!$D$44,'CBAT Lookups'!$A$23:$H$30,2)))","v":""},{"$f":"IF('Project Scope'!$C81=\"\",\"\",IF(OR($J81<=0,'Project Information'!$D$44=\"\"),0,-1*MAX(0,(($G81*$H81/1000)-($I81*$J81/1000))*$L81)*$V81*VLOOKUP('Project Information'!$D$44,'CBAT Lookups'!$A$23:$H$30,3)))","v":""},{"$f":"IF('Project Scope'!$C81=\"\",\"\",IF(OR($J81<=0,'Project Information'!$D$44=\"\"),0,-1*MAX(0,(($G81*$H81/1000)-($I81*$J81/1000))*$L81)*$V81*VLOOKUP('Project Information'!$D$44,'CBAT Lookups'!$A$23:$H$30,4)))","v":""},{"$f":"IF('Project Scope'!$C81=\"\",\"\",IF(OR($J81<=0,'Project Information'!$D$44=\"\"),0,-1*MAX(0,(($G81*$H81/1000)-($I81*$J81/1000))*$L81)*$V81*VLOOKUP('Project Information'!$D$44,'CBAT Lookups'!$A$23:$H$30,5)))","v":""},{"$f":"IF('Project Scope'!$C81=\"\",\"\",IF(OR($J81<=0,'Project Information'!$D$44=\"\"),0,-1*MAX(0,(($G81*$H81/1000)-($I81*$J81/1000))*$L81)*$V81*VLOOKUP('Project Information'!$D$44,'CBAT Lookups'!$A$23:$H$30,6)))","v":""},{"$f":"IF('Project Scope'!$C81=\"\",\"\",IF(OR($J81<=0,'Project Information'!$D$44=\"\"),0,-1*MAX(0,(($G81*$H81/1000)-($I81*$J81/1000))*$L81)*$V81*VLOOKUP('Project Information'!$D$44,'CBAT Lookups'!$A$23:$H$30,7)))","v":""},{"$f":"IF('Project Scope'!$C81=\"\",\"\",IF(OR($J81<=0,'Project Information'!$D$44=\"\"),0,-1*MAX(0,(($G81*$H81/1000)-($I81*$J81/1000))*$L81)*$V81*VLOOKUP('Project Information'!$D$44,'CBAT Lookups'!$A$23:$H$30,8)))","v":""},null,{"$f":"IF('Project Scope'!$C81=\"\",\"\",VLOOKUP($F81,'CBAT Lookups'!$B$17:$K$19,4))","v":""},{"$f":"IF('Project Scope'!$C81=\"\",\"\",VLOOKUP($F81,'CBAT Lookups'!$B$17:$K$19,5))","v":""},{"$f":"IF('Project Scope'!$C81=\"\",\"\",VLOOKUP($F81,'CBAT Lookups'!$B$17:$K$19,6))","v":""},{"$f":"IF('Project Scope'!$C81=\"\",\"\",VLOOKUP($F81,'CBAT Lookups'!$B$17:$K$19,7))","v":""},{"$f":"IF('Project Scope'!$C81=\"\",\"\",IF(SUMPRODUCT($P81:$S81,$AN81:$AQ81)=0,0,P81*AN81/SUMPRODUCT($P81:$S81,$AN81:$AQ81)))","v":""},{"$f":"IF('Project Scope'!$C81=\"\",\"\",IF(SUMPRODUCT($P81:$S81,$AN81:$AQ81)=0,0,Q81*AO81/SUMPRODUCT($P81:$S81,$AN81:$AQ81)))","v":""},{"$f":"IF('Project Scope'!$C81=\"\",\"\",IF(SUMPRODUCT($P81:$S81,$AN81:$AQ81)=0,0,R81*AP81/SUMPRODUCT($P81:$S81,$AN81:$AQ81)))","v":""},{"$f":"IF('Project Scope'!$C81=\"\",\"\",IF(SUMPRODUCT($P81:$S81,$AN81:$AQ81)=0,0,S81*AQ81/SUMPRODUCT($P81:$S81,$AN81:$AQ81)))","v":""},{"$f":"IF('Project Scope'!$C81=\"\",\"\",Benefits($AB81,$AD81,$AE81,$AG81,$AH81,$AI81,$AJ81,$AK81,$AL81,$AM81,$M81,$AR81,$AS81,$AT81,$AU81,$W81,$X81,$Y81,$Z81,$AA81,$E81))","v":""},"","","","","","","","",null,{"$f":"IF('Project Scope'!$C81=\"\",\"\",SUM('Project Scope'!$AT81,'Project Scope'!$AU81))","v":""},{"$f":"IF('Project Scope'!$C81=\"\",\"\",SUM('Project Scope'!$BG81, 'Project Scope'!$AR81,(IF(ISNUMBER('Project Scope'!$AS81),'Project Scope'!$AS81,0)*'Project Information'!$D$12)))","v":""},null,null,{"$f":"IF('Project Scope'!$C81=\"\",\"\",IF(COUNTIF('CBAT Lookups'!$B$5:$B$12,\"Controls-\"&CBAT!$D81)=1,VLOOKUP(\"Controls-\"&CBAT!$D81,'CBAT Lookups'!$B$5:$L$12,11),0))","v":""},{"$f":"IF('Project Scope'!$C81=\"\",\"\",IF(COUNTIF('CBAT Lookups'!$B$5:$B$12,\"Controls-\"&CBAT!$D81)=1,VLOOKUP(\"Controls-\"&CBAT!$D81,'CBAT Lookups'!$B$5:$K$12,2),0)*VLOOKUP($F81,'CBAT Lookups'!$B$17:$K$19,2))","v":""},{"$f":"IF('Project Scope'!$C81=\"\",\"\",IF(COUNTIF('CBAT Lookups'!$B$5:$B$12,\"Controls-\"&CBAT!$D81)=1,VLOOKUP(\"Controls-\"&CBAT!$D81,'CBAT Lookups'!$B$5:$K$12,3),0)*VLOOKUP($F81,'CBAT Lookups'!$B$17:$K$19,3))","v":""},{"$f":"IF('Project Scope'!$C81=\"\",\"\",IF(COUNTIF('CBAT Lookups'!$B$5:$B$12,\"Controls-\"&CBAT!$D81)=1,VLOOKUP(\"Controls-\"&CBAT!$D81,'CBAT Lookups'!$B$5:$K$12,4),0))","v":""},{"$f":"IF('Project Scope'!$C81=\"\",\"\",IF(COUNTIF('CBAT Lookups'!$B$5:$B$12,\"Controls-\"&CBAT!$D81)=1,VLOOKUP(\"Controls-\"&CBAT!$D81,'CBAT Lookups'!$B$5:$K$12,5),0))","v":""},{"$f":"IF('Project Scope'!$C81=\"\",\"\",IF(COUNTIF('CBAT Lookups'!$B$5:$B$12,\"Controls-\"&CBAT!$D81)=1,VLOOKUP(\"Controls-\"&CBAT!$D81,'CBAT Lookups'!$B$5:$K$12,6),0))","v":""},{"$f":"IF('Project Scope'!$C81=\"\",\"\",IF(COUNTIF('CBAT Lookups'!$B$5:$B$12,\"Controls-\"&CBAT!$D81)=1,VLOOKUP(\"Controls-\"&CBAT!$D81,'CBAT Lookups'!$B$5:$K$12,7),0))","v":""},{"$f":"IF('Project Scope'!$C81=\"\",\"\",IF(VLOOKUP($F81,'CBAT Lookups'!$B$17:$K$19,8)=\"W\",1,IF(COUNTIF('CBAT Lookups'!$B$5:$B$12,\"Controls-\"&CBAT!$D81)=1,VLOOKUP(\"Controls-\"&CBAT!$D81,'CBAT Lookups'!$B$5:$K$12,8),0)*VLOOKUP($F81,'CBAT Lookups'!$B$17:$K$19,8)))","v":""},{"$f":"IF('Project Scope'!$C81=\"\",\"\",IF(VLOOKUP($F81,'CBAT Lookups'!$B$17:$K$19,9)=\"W\",1,IF(COUNTIF('CBAT Lookups'!$B$5:$B$12,\"Controls-\"&CBAT!$D81)=1,VLOOKUP(\"Controls-\"&CBAT!$D81,'CBAT Lookups'!$B$5:$K$12,9),0)*VLOOKUP($F81,'CBAT Lookups'!$B$17:$K$19,9)))","v":""},{"$f":"IF('Project Scope'!$C81=\"\",\"\",IF(COUNTIF('CBAT Lookups'!$B$5:$B$12,\"Controls-\"&CBAT!$D81)=1,VLOOKUP(\"Controls-\"&CBAT!$D81,'CBAT Lookups'!$B$5:$K$12,10),0)*VLOOKUP($F81,'CBAT Lookups'!$B$17:$K$19,10))","v":""},{"$f":"IF('Project Scope'!$C81=\"\",\"\",VLOOKUP($C81,'CBAT Lookups'!$A$33:$B$57,2))","v":""},{"$f":"IF('Project Scope'!$C81=\"\",\"\",IF(COUNTIF('CBAT Lookups'!$B$5:$B$12,\"Controls-\"&CBAT!$D81)=1,VLOOKUP(\"Controls-\"&CBAT!$D81,'CBAT Lookups'!$B$5:$O$12,12),0))","v":""},{"$f":"IF('Project Scope'!$C81=\"\",\"\",IF(COUNTIF('CBAT Lookups'!$B$5:$B$12,\"Controls-\"&CBAT!$D81)=1,VLOOKUP(\"Controls-\"&CBAT!$D81,'CBAT Lookups'!$B$5:$O$12,13),0))","v":""},{"$f":"IF('Project Scope'!$C81=\"\",\"\",IF(COUNTIF('CBAT Lookups'!$B$5:$B$12,\"Controls-\"&CBAT!$D81)=1,VLOOKUP(\"Controls-\"&CBAT!$D81,'CBAT Lookups'!$B$5:$O$12,14),0))","v":""},{"$f":"IF('Project Scope'!$C81=\"\",\"\",'TRM Data'!$U$3)","v":""},{"$f":"IF('Project Scope'!$C81=\"\",\"\",'TRM Data'!$V$3)","v":""},{"$f":"IF('Project Scope'!$C81=\"\",\"\",IF($K81<=0,0,MAX(0,(IF(AND($I81>0,$J81>0),($I81*$J81)/1000,($G81*$H81)/1000)*$L81))*$BT81*$BR81)+($CD81/0.003412))","v":""},{"$f":"IF('Project Scope'!$C81=\"\",\"\",IF($K81<=0,0,MAX(0,IF(AND($I81>0,$J81>0),($I81*$J81)/1000,($G81*$H81)/1000))*$BQ81))","v":""},{"$f":"IF('Project Scope'!$C81=\"\",\"\",IF($K81<=0,0,MAX(0,IF(AND($I81>0,$J81>0),($I81*$J81)/1000,($G81*$H81)/1000))*$BK81))","v":""},{"$f":"IF('Project Scope'!$C81=\"\",\"\",IF($K81<=0,0,MAX(0,IF(AND($I81>0,$J81>0),($I81*$J81)/1000,($G81*$H81)/1000))*$BL81*$BQ81))","v":""},{"$f":"IF('Project Scope'!$C81=\"\",\"\",IF(OR($K81<=0,'Project Information'!$D$44=\"\"),0,-1*MAX(0,IF(AND($I81>0,$J81>0),($I81*$J81)/1000,($G81*$H81)/1000))*$BT81*$L81*$BS81*VLOOKUP('Project Information'!$D$44,'CBAT Lookups'!$A$23:$H$30,2)))","v":""},{"$f":"IF('Project Scope'!$C81=\"\",\"\",IF(OR($K81<=0,'Project Information'!$D$44=\"\"),0,-1*MAX(0,IF(AND($I81>0,$J81>0),($I81*$J81)/1000,($G81*$H81)/1000))*$BT81*$L81*$BS81*VLOOKUP('Project Information'!$D$44,'CBAT Lookups'!$A$23:$H$30,3)))","v":""},{"$f":"IF('Project Scope'!$C81=\"\",\"\",IF(OR($K81<=0,'Project Information'!$D$44=\"\"),0,-1*MAX(0,IF(AND($I81>0,$J81>0),($I81*$J81)/1000,($G81*$H81)/1000))*$BT81*$L81*$BS81*VLOOKUP('Project Information'!$D$44,'CBAT Lookups'!$A$23:$H$30,4)))","v":""},{"$f":"IF('Project Scope'!$C81=\"\",\"\",IF(OR($K81<=0,'Project Information'!$D$44=\"\"),0,-1*MAX(0,IF(AND($I81>0,$J81>0),($I81*$J81)/1000,($G81*$H81)/1000))*$BT81*$L81*$BS81*VLOOKUP('Project Information'!$D$44,'CBAT Lookups'!$A$23:$H$30,5)))","v":""},{"$f":"IF('Project Scope'!$C81=\"\",\"\",IF(OR($K81<=0,'Project Information'!$D$44=\"\"),0,-1*MAX(0,IF(AND($I81>0,$J81>0),($I81*$J81)/1000,($G81*$H81)/1000))*$BT81*$L81*$BS81*VLOOKUP('Project Information'!$D$44,'CBAT Lookups'!$A$23:$H$30,6)))","v":""},{"$f":"IF('Project Scope'!$C81=\"\",\"\",IF(OR($K81<=0,'Project Information'!$D$44=\"\"),0,-1*MAX(0,IF(AND($I81>0,$J81>0),($I81*$J81)/1000,($G81*$H81)/1000))*$BT81*$L81*$BS81*VLOOKUP('Project Information'!$D$44,'CBAT Lookups'!$A$23:$H$30,7)))","v":""},{"$f":"IF('Project Scope'!$C81=\"\",\"\",IF(OR($K81<=0,'Project Information'!$D$44=\"\"),0,-1*MAX(0,IF(AND($I81>0,$J81>0),($I81*$J81)/1000,($G81*$H81)/1000))*$BT81*$L81*$BS81*VLOOKUP('Project Information'!$D$44,'CBAT Lookups'!$A$23:$H$30,8)))","v":""},null,{"$f":"IF('Project Scope'!$C81=\"\",\"\",VLOOKUP($F81,'CBAT Lookups'!$B$17:$K$19,4))","v":""},{"$f":"IF('Project Scope'!$C81=\"\",\"\",VLOOKUP($F81,'CBAT Lookups'!$B$17:$K$19,5))","v":""},{"$f":"IF('Project Scope'!$C81=\"\",\"\",VLOOKUP($F81,'CBAT Lookups'!$B$17:$K$19,6))","v":""},{"$f":"IF('Project Scope'!$C81=\"\",\"\",VLOOKUP($F81,'CBAT Lookups'!$B$17:$K$19,7))","v":""},{"$f":"IF('Project Scope'!$C81=\"\",\"\",IF(SUMPRODUCT($BM81:$BP81,$CL81:$CO81)=0,0,BM81*CL81/SUMPRODUCT($BM81:$BP81,$CL81:$CO81)))","v":""},{"$f":"IF('Project Scope'!$C81=\"\",\"\",IF(SUMPRODUCT($BM81:$BP81,$CL81:$CO81)=0,0,BN81*CM81/SUMPRODUCT($BM81:$BP81,$CL81:$CO81)))","v":""},{"$f":"IF('Project Scope'!$C81=\"\",\"\",IF(SUMPRODUCT($BM81:$BP81,$CL81:$CO81)=0,0,BO81*CN81/SUMPRODUCT($BM81:$BP81,$CL81:$CO81)))","v":""},{"$f":"IF('Project Scope'!$C81=\"\",\"\",IF(SUMPRODUCT($BM81:$BP81,$CL81:$CO81)=0,0,BP81*CO81/SUMPRODUCT($BM81:$BP81,$CL81:$CO81)))","v":""},{"$f":"IF('Project Scope'!$C81=\"\",\"\",Benefits($BZ81,$CB81,$CC81,$CE81,$CF81,$CG81,$CH81,$CI81,$CJ81,$CK81,$BJ81,$CP81,$CQ81,$CR81,$CS81,$BU81,$BV81,$BW81,$BX81,$BY81,$E81))","v":""},"","","","","","","","",null,{"$f":"IF('Project Scope'!$C81=\"\",\"\",SUM('Project Scope'!$BB81,'Project Scope'!$BC81))","v":""},{"$f":"IF('Project Scope'!$C81=\"\",\"\",SUM('Project Scope'!$BH81, 'Project Scope'!$AZ81,(IF(ISNUMBER('Project Scope'!$BA81),'Project Scope'!$BA81,0)*'Project Information'!$D$12)))","v":""},null,null,{"$f":"IF('Project Scope'!$C81=\"\",\"\",IF($J81<=0,0,(SUMPRODUCT($AV81:$BC81,--($AV81:$BC81>0))+$BE81)*$DK81/((-SUMPRODUCT($AV81:$BC81,--($AV81:$BC81<0))+$BG81+$BH81+$BI81)*$DK81)))","v":""},{"$f":"IF('Project Scope'!$C81=\"\",\"\",IF($K81<=0,0,(SUMPRODUCT($CT81:$DA81,--($CT81:$DA81>0))+$DC81)*$DK81/((-SUMPRODUCT($CT81:$DA81,--($CT81:$DA81<0))+$DE81+$DF81+$DG81)*$DK81)))","v":""},{"$f":"IF('Project Scope'!$C81=\"\",\"\",IF(AND($J81<=0,$K81<=0),0,(SUMPRODUCT($AV81:$BC81,--($AV81:$BC81>0))+$BE81+SUMPRODUCT($CT81:$DA81,--($CT81:$DA81>0))+$DC81)*$DK81/((-SUMPRODUCT($AV81:$BC81,--($AV81:$BC81<0))+$BG81+$BH81+$BI81-SUMPRODUCT($CT81:$DA81,--($CT81:$DA81<0))+$DE81+$DF81+$DG81)*$DK81)))","v":""},{"$f":"IF('Project Scope'!$C81=\"\",\"\",IF(NetOrGross=\"Net\",(1-Z81+AA81),1))","v":""}]
[{"$f":"'Project Scope'!$B82","v":75},{"$f":"IF('Project Scope'!$C82=\"\",\"\",'Project Scope'!$C82)","v":""},{"$f":"IF('Project Scope'!$C82=\"\",\"\",'Project Scope'!$H82)","v":""},{"$f":"IF(ISNUMBER(SEARCH(\"Bay\",'Project Scope'!$Q82)),\"Bay\",IF('Project Scope'!C82=\"\",\"\",'Project Scope'!E82))","v":""},{"$f":"IF('Project Scope'!$C82=\"\",\"\",\"Com\")","v":""},{"$f":"IF('Project Scope'!$C82=\"\",\"\",'Project Scope'!$L82)","v":""},{"$f":"IF('Project Scope'!$C82=\"\",\"\",IF('Project Scope'!$CJ82=\"\",0,'Project Scope'!$CJ82))","v":""},{"$f":"IF('Project Scope'!$C82=\"\",\"\",IF('Project Scope'!$N82=\"\",0,'Project Scope'!$N82))","v":""},{"$f":"IF('Project Scope'!$C82=\"\",\"\",IF('Project Scope'!$CK82=\"\",0,'Project Scope'!$CK82))","v":""},{"$f":"IF('Project Scope'!$C82=\"\",\"\",IF('Project Scope'!$AO82=\"\",0,'Project Scope'!$AO82))","v":""},{"$f":"IF('Project Scope'!$C82=\"\",\"\",IF('Project Scope'!$AX82=\"\",0,'Project Scope'!$AX82))","v":""},{"$f":"IF('Project Scope'!$C82=\"\",\"\",IF('Project Scope'!$M82=\"\",0,'Project Scope'!$M82))","v":""},{"$f":"IF('Project Scope'!$C82=\"\",\"\",IF(COUNTIF('CBAT Lookups'!$B$5:$B$12,\"Fixtures-\"&CBAT!$D82)=1,VLOOKUP(\"Fixtures-\"&CBAT!$D82,'CBAT Lookups'!$B$5:$L$12,11),0))","v":""},{"$f":"IF('Project Scope'!$C82=\"\",\"\",(IF(COUNTIF('CBAT Lookups'!$B$5:$B$12,\"Fixtures-\"&CBAT!$D82)=1,VLOOKUP(\"Fixtures-\"&CBAT!$D82,'CBAT Lookups'!$B$5:$K$12,2),0))*VLOOKUP($F82,'CBAT Lookups'!$B$17:$K$19,2))","v":""},{"$f":"IF('Project Scope'!$C82=\"\",\"\",(IF(COUNTIF('CBAT Lookups'!$B$5:$B$12,\"Fixtures-\"&CBAT!$D82)=1,VLOOKUP(\"Fixtures-\"&CBAT!$D82,'CBAT Lookups'!$B$5:$K$12,3),0))*VLOOKUP($F82,'CBAT Lookups'!$B$17:$K$19,3))","v":""},{"$f":"IF('Project Scope'!$C82=\"\",\"\",(IF(COUNTIF('CBAT Lookups'!$B$5:$B$12,\"Fixtures-\"&CBAT!$D82)=1,VLOOKUP(\"Fixtures-\"&CBAT!$D82,'CBAT Lookups'!$B$5:$K$12,4),0)))","v":""},{"$f":"IF('Project Scope'!$C82=\"\",\"\",(IF(COUNTIF('CBAT Lookups'!$B$5:$B$12,\"Fixtures-\"&CBAT!$D82)=1,VLOOKUP(\"Fixtures-\"&CBAT!$D82,'CBAT Lookups'!$B$5:$K$12,5),0)))","v":""},{"$f":"IF('Project Scope'!$C82=\"\",\"\",(IF(COUNTIF('CBAT Lookups'!$B$5:$B$12,\"Fixtures-\"&CBAT!$D82)=1,VLOOKUP(\"Fixtures-\"&CBAT!$D82,'CBAT Lookups'!$B$5:$K$12,6),0)))","v":""},{"$f":"IF('Project Scope'!$C82=\"\",\"\",IF(COUNTIF('CBAT Lookups'!$B$5:$B$12,\"Fixtures-\"&CBAT!$D82)=1,VLOOKUP(\"Fixtures-\"&CBAT!$D82,'CBAT Lookups'!$B$5:$K$12,7),0))","v":""},{"$f":"IF('Project Scope'!$C82=\"\",\"\",IF(VLOOKUP($F82,'CBAT Lookups'!$B$17:$K$19,8)=\"W\",1,IF(COUNTIF('CBAT Lookups'!$B$5:$B$12,\"Fixtures-\"&CBAT!$D82)=1,VLOOKUP(\"Fixtures-\"&CBAT!$D82,'CBAT Lookups'!$B$5:$K$12,8),0)*VLOOKUP($F82,'CBAT Lookups'!$B$17:$K$19,8)))","v":""},{"$f":"IF('Project Scope'!$C82=\"\",\"\",IF(VLOOKUP($F82,'CBAT Lookups'!$B$17:$K$19,9)=\"W\",1,IF(COUNTIF('CBAT Lookups'!$B$5:$B$12,\"Fixtures-\"&CBAT!$D82)=1,VLOOKUP(\"Fixtures-\"&CBAT!$D82,'CBAT Lookups'!$B$5:$K$12,9),0)*VLOOKUP($F82,'CBAT Lookups'!$B$17:$K$19,9)))","v":""},{"$f":"IF('Project Scope'!$C82=\"\",\"\",IF(COUNTIF('CBAT Lookups'!$B$5:$B$12,\"Fixtures-\"&CBAT!$D82)=1,VLOOKUP(\"Fixtures-\"&CBAT!$D82,'CBAT Lookups'!$B$5:$K$12,10),0)*VLOOKUP($F82,'CBAT Lookups'!$B$17:$K$19,10))","v":""},{"$f":"IF('Project Scope'!$C82=\"\",\"\",IF(COUNTIF('CBAT Lookups'!$B$5:$B$12,\"Fixtures-\"&CBAT!$D82)=1,VLOOKUP(\"Fixtures-\"&CBAT!$D82,'CBAT Lookups'!$B$5:$O$12,12),0))","v":""},{"$f":"IF('Project Scope'!$C82=\"\",\"\",IF(COUNTIF('CBAT Lookups'!$B$5:$B$12,\"Fixtures-\"&CBAT!$D82)=1,VLOOKUP(\"Fixtures-\"&CBAT!$D82,'CBAT Lookups'!$B$5:$O$12,13),0))","v":""},{"$f":"IF('Project Scope'!$C82=\"\",\"\",IF(COUNTIF('CBAT Lookups'!$B$5:$B$12,\"Fixtures-\"&CBAT!$D82)=1,VLOOKUP(\"Fixtures-\"&CBAT!$D82,'CBAT Lookups'!$B$5:$O$12,14),0))","v":""},{"$f":"IF('Project Scope'!$C82=\"\",\"\",'TRM Data'!$U$3)","v":""},{"$f":"IF('Project Scope'!$C82=\"\",\"\",'TRM Data'!$V$3)","v":""},{"$f":"IF('Project Scope'!$C82=\"\",\"\",IF($J82<=0,0,MAX(0,(($G82*$H82/1000)-($I82*$J82/1000))*$L82)*$U82)+($AF82/0.003412))","v":""},{"$f":"IF('Project Scope'!$C82=\"\",\"\",IF($J82<=0,0,MAX(0,(($G82*$H82/1000)-($I82*$J82/1000)))*$T82))","v":""},{"$f":"IF('Project Scope'!$C82=\"\",\"\",IF($J82<=0,0,MAX(0,(($G82*$H82/1000)-($I82*$J82/1000))*$N82)))","v":""},{"$f":"IF('Project Scope'!$C82=\"\",\"\",IF($J82<=0,0,MAX(0,(($G82*$H82/1000)-($I82*$J82/1000))*$O82)*$T82))","v":""},{"$f":"IF('Project Scope'!$C82=\"\",\"\",IF(OR($J82<=0,'Project Information'!$D$44=\"\"),0,-1*MAX(0,(($G82*$H82/1000)-($I82*$J82/1000))*$L82)*$V82*VLOOKUP('Project Information'!$D$44,'CBAT Lookups'!$A$23:$H$30,2)))","v":""},{"$f":"IF('Project Scope'!$C82=\"\",\"\",IF(OR($J82<=0,'Project Information'!$D$44=\"\"),0,-1*MAX(0,(($G82*$H82/1000)-($I82*$J82/1000))*$L82)*$V82*VLOOKUP('Project Information'!$D$44,'CBAT Lookups'!$A$23:$H$30,3)))","v":""},{"$f":"IF('Project Scope'!$C82=\"\",\"\",IF(OR($J82<=0,'Project Information'!$D$44=\"\"),0,-1*MAX(0,(($G82*$H82/1000)-($I82*$J82/1000))*$L82)*$V82*VLOOKUP('Project Information'!$D$44,'CBAT Lookups'!$A$23:$H$30,4)))","v":""},{"$f":"IF('Project Scope'!$C82=\"\",\"\",IF(OR($J82<=0,'Project Information'!$D$44=\"\"),0,-1*MAX(0,(($G82*$H82/1000)-($I82*$J82/1000))*$L82)*$V82*VLOOKUP('Project Information'!$D$44,'CBAT Lookups'!$A$23:$H$30,5)))","v":""},{"$f":"IF('Project Scope'!$C82=\"\",\"\",IF(OR($J82<=0,'Project Information'!$D$44=\"\"),0,-1*MAX(0,(($G82*$H82/1000)-($I82*$J82/1000))*$L82)*$V82*VLOOKUP('Project Information'!$D$44,'CBAT Lookups'!$A$23:$H$30,6)))","v":""},{"$f":"IF('Project Scope'!$C82=\"\",\"\",IF(OR($J82<=0,'Project Information'!$D$44=\"\"),0,-1*MAX(0,(($G82*$H82/1000)-($I82*$J82/1000))*$L82)*$V82*VLOOKUP('Project Information'!$D$44,'CBAT Lookups'!$A$23:$H$30,7)))","v":""},{"$f":"IF('Project Scope'!$C82=\"\",\"\",IF(OR($J82<=0,'Project Information'!$D$44=\"\"),0,-1*MAX(0,(($G82*$H82/1000)-($I82*$J82/1000))*$L82)*$V82*VLOOKUP('Project Information'!$D$44,'CBAT Lookups'!$A$23:$H$30,8)))","v":""},null,{"$f":"IF('Project Scope'!$C82=\"\",\"\",VLOOKUP($F82,'CBAT Lookups'!$B$17:$K$19,4))","v":""},{"$f":"IF('Project Scope'!$C82=\"\",\"\",VLOOKUP($F82,'CBAT Lookups'!$B$17:$K$19,5))","v":""},{"$f":"IF('Project Scope'!$C82=\"\",\"\",VLOOKUP($F82,'CBAT Lookups'!$B$17:$K$19,6))","v":""},{"$f":"IF('Project Scope'!$C82=\"\",\"\",VLOOKUP($F82,'CBAT Lookups'!$B$17:$K$19,7))","v":""},{"$f":"IF('Project Scope'!$C82=\"\",\"\",IF(SUMPRODUCT($P82:$S82,$AN82:$AQ82)=0,0,P82*AN82/SUMPRODUCT($P82:$S82,$AN82:$AQ82)))","v":""},{"$f":"IF('Project Scope'!$C82=\"\",\"\",IF(SUMPRODUCT($P82:$S82,$AN82:$AQ82)=0,0,Q82*AO82/SUMPRODUCT($P82:$S82,$AN82:$AQ82)))","v":""},{"$f":"IF('Project Scope'!$C82=\"\",\"\",IF(SUMPRODUCT($P82:$S82,$AN82:$AQ82)=0,0,R82*AP82/SUMPRODUCT($P82:$S82,$AN82:$AQ82)))","v":""},{"$f":"IF('Project Scope'!$C82=\"\",\"\",IF(SUMPRODUCT($P82:$S82,$AN82:$AQ82)=0,0,S82*AQ82/SUMPRODUCT($P82:$S82,$AN82:$AQ82)))","v":""},{"$f":"IF('Project Scope'!$C82=\"\",\"\",Benefits($AB82,$AD82,$AE82,$AG82,$AH82,$AI82,$AJ82,$AK82,$AL82,$AM82,$M82,$AR82,$AS82,$AT82,$AU82,$W82,$X82,$Y82,$Z82,$AA82,$E82))","v":""},"","","","","","","","",null,{"$f":"IF('Project Scope'!$C82=\"\",\"\",SUM('Project Scope'!$AT82,'Project Scope'!$AU82))","v":""},{"$f":"IF('Project Scope'!$C82=\"\",\"\",SUM('Project Scope'!$BG82, 'Project Scope'!$AR82,(IF(ISNUMBER('Project Scope'!$AS82),'Project Scope'!$AS82,0)*'Project Information'!$D$12)))","v":""},null,null,{"$f":"IF('Project Scope'!$C82=\"\",\"\",IF(COUNTIF('CBAT Lookups'!$B$5:$B$12,\"Controls-\"&CBAT!$D82)=1,VLOOKUP(\"Controls-\"&CBAT!$D82,'CBAT Lookups'!$B$5:$L$12,11),0))","v":""},{"$f":"IF('Project Scope'!$C82=\"\",\"\",IF(COUNTIF('CBAT Lookups'!$B$5:$B$12,\"Controls-\"&CBAT!$D82)=1,VLOOKUP(\"Controls-\"&CBAT!$D82,'CBAT Lookups'!$B$5:$K$12,2),0)*VLOOKUP($F82,'CBAT Lookups'!$B$17:$K$19,2))","v":""},{"$f":"IF('Project Scope'!$C82=\"\",\"\",IF(COUNTIF('CBAT Lookups'!$B$5:$B$12,\"Controls-\"&CBAT!$D82)=1,VLOOKUP(\"Controls-\"&CBAT!$D82,'CBAT Lookups'!$B$5:$K$12,3),0)*VLOOKUP($F82,'CBAT Lookups'!$B$17:$K$19,3))","v":""},{"$f":"IF('Project Scope'!$C82=\"\",\"\",IF(COUNTIF('CBAT Lookups'!$B$5:$B$12,\"Controls-\"&CBAT!$D82)=1,VLOOKUP(\"Controls-\"&CBAT!$D82,'CBAT Lookups'!$B$5:$K$12,4),0))","v":""},{"$f":"IF('Project Scope'!$C82=\"\",\"\",IF(COUNTIF('CBAT Lookups'!$B$5:$B$12,\"Controls-\"&CBAT!$D82)=1,VLOOKUP(\"Controls-\"&CBAT!$D82,'CBAT Lookups'!$B$5:$K$12,5),0))","v":""},{"$f":"IF('Project Scope'!$C82=\"\",\"\",IF(COUNTIF('CBAT Lookups'!$B$5:$B$12,\"Controls-\"&CBAT!$D82)=1,VLOOKUP(\"Controls-\"&CBAT!$D82,'CBAT Lookups'!$B$5:$K$12,6),0))","v":""},{"$f":"IF('Project Scope'!$C82=\"\",\"\",IF(COUNTIF('CBAT Lookups'!$B$5:$B$12,\"Controls-\"&CBAT!$D82)=1,VLOOKUP(\"Controls-\"&CBAT!$D82,'CBAT Lookups'!$B$5:$K$12,7),0))","v":""},{"$f":"IF('Project Scope'!$C82=\"\",\"\",IF(VLOOKUP($F82,'CBAT Lookups'!$B$17:$K$19,8)=\"W\",1,IF(COUNTIF('CBAT Lookups'!$B$5:$B$12,\"Controls-\"&CBAT!$D82)=1,VLOOKUP(\"Controls-\"&CBAT!$D82,'CBAT Lookups'!$B$5:$K$12,8),0)*VLOOKUP($F82,'CBAT Lookups'!$B$17:$K$19,8)))","v":""},{"$f":"IF('Project Scope'!$C82=\"\",\"\",IF(VLOOKUP($F82,'CBAT Lookups'!$B$17:$K$19,9)=\"W\",1,IF(COUNTIF('CBAT Lookups'!$B$5:$B$12,\"Controls-\"&CBAT!$D82)=1,VLOOKUP(\"Controls-\"&CBAT!$D82,'CBAT Lookups'!$B$5:$K$12,9),0)*VLOOKUP($F82,'CBAT Lookups'!$B$17:$K$19,9)))","v":""},{"$f":"IF('Project Scope'!$C82=\"\",\"\",IF(COUNTIF('CBAT Lookups'!$B$5:$B$12,\"Controls-\"&CBAT!$D82)=1,VLOOKUP(\"Controls-\"&CBAT!$D82,'CBAT Lookups'!$B$5:$K$12,10),0)*VLOOKUP($F82,'CBAT Lookups'!$B$17:$K$19,10))","v":""},{"$f":"IF('Project Scope'!$C82=\"\",\"\",VLOOKUP($C82,'CBAT Lookups'!$A$33:$B$57,2))","v":""},{"$f":"IF('Project Scope'!$C82=\"\",\"\",IF(COUNTIF('CBAT Lookups'!$B$5:$B$12,\"Controls-\"&CBAT!$D82)=1,VLOOKUP(\"Controls-\"&CBAT!$D82,'CBAT Lookups'!$B$5:$O$12,12),0))","v":""},{"$f":"IF('Project Scope'!$C82=\"\",\"\",IF(COUNTIF('CBAT Lookups'!$B$5:$B$12,\"Controls-\"&CBAT!$D82)=1,VLOOKUP(\"Controls-\"&CBAT!$D82,'CBAT Lookups'!$B$5:$O$12,13),0))","v":""},{"$f":"IF('Project Scope'!$C82=\"\",\"\",IF(COUNTIF('CBAT Lookups'!$B$5:$B$12,\"Controls-\"&CBAT!$D82)=1,VLOOKUP(\"Controls-\"&CBAT!$D82,'CBAT Lookups'!$B$5:$O$12,14),0))","v":""},{"$f":"IF('Project Scope'!$C82=\"\",\"\",'TRM Data'!$U$3)","v":""},{"$f":"IF('Project Scope'!$C82=\"\",\"\",'TRM Data'!$V$3)","v":""},{"$f":"IF('Project Scope'!$C82=\"\",\"\",IF($K82<=0,0,MAX(0,(IF(AND($I82>0,$J82>0),($I82*$J82)/1000,($G82*$H82)/1000)*$L82))*$BT82*$BR82)+($CD82/0.003412))","v":""},{"$f":"IF('Project Scope'!$C82=\"\",\"\",IF($K82<=0,0,MAX(0,IF(AND($I82>0,$J82>0),($I82*$J82)/1000,($G82*$H82)/1000))*$BQ82))","v":""},{"$f":"IF('Project Scope'!$C82=\"\",\"\",IF($K82<=0,0,MAX(0,IF(AND($I82>0,$J82>0),($I82*$J82)/1000,($G82*$H82)/1000))*$BK82))","v":""},{"$f":"IF('Project Scope'!$C82=\"\",\"\",IF($K82<=0,0,MAX(0,IF(AND($I82>0,$J82>0),($I82*$J82)/1000,($G82*$H82)/1000))*$BL82*$BQ82))","v":""},{"$f":"IF('Project Scope'!$C82=\"\",\"\",IF(OR($K82<=0,'Project Information'!$D$44=\"\"),0,-1*MAX(0,IF(AND($I82>0,$J82>0),($I82*$J82)/1000,($G82*$H82)/1000))*$BT82*$L82*$BS82*VLOOKUP('Project Information'!$D$44,'CBAT Lookups'!$A$23:$H$30,2)))","v":""},{"$f":"IF('Project Scope'!$C82=\"\",\"\",IF(OR($K82<=0,'Project Information'!$D$44=\"\"),0,-1*MAX(0,IF(AND($I82>0,$J82>0),($I82*$J82)/1000,($G82*$H82)/1000))*$BT82*$L82*$BS82*VLOOKUP('Project Information'!$D$44,'CBAT Lookups'!$A$23:$H$30,3)))","v":""},{"$f":"IF('Project Scope'!$C82=\"\",\"\",IF(OR($K82<=0,'Project Information'!$D$44=\"\"),0,-1*MAX(0,IF(AND($I82>0,$J82>0),($I82*$J82)/1000,($G82*$H82)/1000))*$BT82*$L82*$BS82*VLOOKUP('Project Information'!$D$44,'CBAT Lookups'!$A$23:$H$30,4)))","v":""},{"$f":"IF('Project Scope'!$C82=\"\",\"\",IF(OR($K82<=0,'Project Information'!$D$44=\"\"),0,-1*MAX(0,IF(AND($I82>0,$J82>0),($I82*$J82)/1000,($G82*$H82)/1000))*$BT82*$L82*$BS82*VLOOKUP('Project Information'!$D$44,'CBAT Lookups'!$A$23:$H$30,5)))","v":""},{"$f":"IF('Project Scope'!$C82=\"\",\"\",IF(OR($K82<=0,'Project Information'!$D$44=\"\"),0,-1*MAX(0,IF(AND($I82>0,$J82>0),($I82*$J82)/1000,($G82*$H82)/1000))*$BT82*$L82*$BS82*VLOOKUP('Project Information'!$D$44,'CBAT Lookups'!$A$23:$H$30,6)))","v":""},{"$f":"IF('Project Scope'!$C82=\"\",\"\",IF(OR($K82<=0,'Project Information'!$D$44=\"\"),0,-1*MAX(0,IF(AND($I82>0,$J82>0),($I82*$J82)/1000,($G82*$H82)/1000))*$BT82*$L82*$BS82*VLOOKUP('Project Information'!$D$44,'CBAT Lookups'!$A$23:$H$30,7)))","v":""},{"$f":"IF('Project Scope'!$C82=\"\",\"\",IF(OR($K82<=0,'Project Information'!$D$44=\"\"),0,-1*MAX(0,IF(AND($I82>0,$J82>0),($I82*$J82)/1000,($G82*$H82)/1000))*$BT82*$L82*$BS82*VLOOKUP('Project Information'!$D$44,'CBAT Lookups'!$A$23:$H$30,8)))","v":""},null,{"$f":"IF('Project Scope'!$C82=\"\",\"\",VLOOKUP($F82,'CBAT Lookups'!$B$17:$K$19,4))","v":""},{"$f":"IF('Project Scope'!$C82=\"\",\"\",VLOOKUP($F82,'CBAT Lookups'!$B$17:$K$19,5))","v":""},{"$f":"IF('Project Scope'!$C82=\"\",\"\",VLOOKUP($F82,'CBAT Lookups'!$B$17:$K$19,6))","v":""},{"$f":"IF('Project Scope'!$C82=\"\",\"\",VLOOKUP($F82,'CBAT Lookups'!$B$17:$K$19,7))","v":""},{"$f":"IF('Project Scope'!$C82=\"\",\"\",IF(SUMPRODUCT($BM82:$BP82,$CL82:$CO82)=0,0,BM82*CL82/SUMPRODUCT($BM82:$BP82,$CL82:$CO82)))","v":""},{"$f":"IF('Project Scope'!$C82=\"\",\"\",IF(SUMPRODUCT($BM82:$BP82,$CL82:$CO82)=0,0,BN82*CM82/SUMPRODUCT($BM82:$BP82,$CL82:$CO82)))","v":""},{"$f":"IF('Project Scope'!$C82=\"\",\"\",IF(SUMPRODUCT($BM82:$BP82,$CL82:$CO82)=0,0,BO82*CN82/SUMPRODUCT($BM82:$BP82,$CL82:$CO82)))","v":""},{"$f":"IF('Project Scope'!$C82=\"\",\"\",IF(SUMPRODUCT($BM82:$BP82,$CL82:$CO82)=0,0,BP82*CO82/SUMPRODUCT($BM82:$BP82,$CL82:$CO82)))","v":""},{"$f":"IF('Project Scope'!$C82=\"\",\"\",Benefits($BZ82,$CB82,$CC82,$CE82,$CF82,$CG82,$CH82,$CI82,$CJ82,$CK82,$BJ82,$CP82,$CQ82,$CR82,$CS82,$BU82,$BV82,$BW82,$BX82,$BY82,$E82))","v":""},"","","","","","","","",null,{"$f":"IF('Project Scope'!$C82=\"\",\"\",SUM('Project Scope'!$BB82,'Project Scope'!$BC82))","v":""},{"$f":"IF('Project Scope'!$C82=\"\",\"\",SUM('Project Scope'!$BH82, 'Project Scope'!$AZ82,(IF(ISNUMBER('Project Scope'!$BA82),'Project Scope'!$BA82,0)*'Project Information'!$D$12)))","v":""},null,null,{"$f":"IF('Project Scope'!$C82=\"\",\"\",IF($J82<=0,0,(SUMPRODUCT($AV82:$BC82,--($AV82:$BC82>0))+$BE82)*$DK82/((-SUMPRODUCT($AV82:$BC82,--($AV82:$BC82<0))+$BG82+$BH82+$BI82)*$DK82)))","v":""},{"$f":"IF('Project Scope'!$C82=\"\",\"\",IF($K82<=0,0,(SUMPRODUCT($CT82:$DA82,--($CT82:$DA82>0))+$DC82)*$DK82/((-SUMPRODUCT($CT82:$DA82,--($CT82:$DA82<0))+$DE82+$DF82+$DG82)*$DK82)))","v":""},{"$f":"IF('Project Scope'!$C82=\"\",\"\",IF(AND($J82<=0,$K82<=0),0,(SUMPRODUCT($AV82:$BC82,--($AV82:$BC82>0))+$BE82+SUMPRODUCT($CT82:$DA82,--($CT82:$DA82>0))+$DC82)*$DK82/((-SUMPRODUCT($AV82:$BC82,--($AV82:$BC82<0))+$BG82+$BH82+$BI82-SUMPRODUCT($CT82:$DA82,--($CT82:$DA82<0))+$DE82+$DF82+$DG82)*$DK82)))","v":""},{"$f":"IF('Project Scope'!$C82=\"\",\"\",IF(NetOrGross=\"Net\",(1-Z82+AA82),1))","v":""}]
[{"$f":"'Project Scope'!$B83","v":76},{"$f":"IF('Project Scope'!$C83=\"\",\"\",'Project Scope'!$C83)","v":""},{"$f":"IF('Project Scope'!$C83=\"\",\"\",'Project Scope'!$H83)","v":""},{"$f":"IF(ISNUMBER(SEARCH(\"Bay\",'Project Scope'!$Q83)),\"Bay\",IF('Project Scope'!C83=\"\",\"\",'Project Scope'!E83))","v":""},{"$f":"IF('Project Scope'!$C83=\"\",\"\",\"Com\")","v":""},{"$f":"IF('Project Scope'!$C83=\"\",\"\",'Project Scope'!$L83)","v":""},{"$f":"IF('Project Scope'!$C83=\"\",\"\",IF('Project Scope'!$CJ83=\"\",0,'Project Scope'!$CJ83))","v":""},{"$f":"IF('Project Scope'!$C83=\"\",\"\",IF('Project Scope'!$N83=\"\",0,'Project Scope'!$N83))","v":""},{"$f":"IF('Project Scope'!$C83=\"\",\"\",IF('Project Scope'!$CK83=\"\",0,'Project Scope'!$CK83))","v":""},{"$f":"IF('Project Scope'!$C83=\"\",\"\",IF('Project Scope'!$AO83=\"\",0,'Project Scope'!$AO83))","v":""},{"$f":"IF('Project Scope'!$C83=\"\",\"\",IF('Project Scope'!$AX83=\"\",0,'Project Scope'!$AX83))","v":""},{"$f":"IF('Project Scope'!$C83=\"\",\"\",IF('Project Scope'!$M83=\"\",0,'Project Scope'!$M83))","v":""},{"$f":"IF('Project Scope'!$C83=\"\",\"\",IF(COUNTIF('CBAT Lookups'!$B$5:$B$12,\"Fixtures-\"&CBAT!$D83)=1,VLOOKUP(\"Fixtures-\"&CBAT!$D83,'CBAT Lookups'!$B$5:$L$12,11),0))","v":""},{"$f":"IF('Project Scope'!$C83=\"\",\"\",(IF(COUNTIF('CBAT Lookups'!$B$5:$B$12,\"Fixtures-\"&CBAT!$D83)=1,VLOOKUP(\"Fixtures-\"&CBAT!$D83,'CBAT Lookups'!$B$5:$K$12,2),0))*VLOOKUP($F83,'CBAT Lookups'!$B$17:$K$19,2))","v":""},{"$f":"IF('Project Scope'!$C83=\"\",\"\",(IF(COUNTIF('CBAT Lookups'!$B$5:$B$12,\"Fixtures-\"&CBAT!$D83)=1,VLOOKUP(\"Fixtures-\"&CBAT!$D83,'CBAT Lookups'!$B$5:$K$12,3),0))*VLOOKUP($F83,'CBAT Lookups'!$B$17:$K$19,3))","v":""},{"$f":"IF('Project Scope'!$C83=\"\",\"\",(IF(COUNTIF('CBAT Lookups'!$B$5:$B$12,\"Fixtures-\"&CBAT!$D83)=1,VLOOKUP(\"Fixtures-\"&CBAT!$D83,'CBAT Lookups'!$B$5:$K$12,4),0)))","v":""},{"$f":"IF('Project Scope'!$C83=\"\",\"\",(IF(COUNTIF('CBAT Lookups'!$B$5:$B$12,\"Fixtures-\"&CBAT!$D83)=1,VLOOKUP(\"Fixtures-\"&CBAT!$D83,'CBAT Lookups'!$B$5:$K$12,5),0)))","v":""},{"$f":"IF('Project Scope'!$C83=\"\",\"\",(IF(COUNTIF('CBAT Lookups'!$B$5:$B$12,\"Fixtures-\"&CBAT!$D83)=1,VLOOKUP(\"Fixtures-\"&CBAT!$D83,'CBAT Lookups'!$B$5:$K$12,6),0)))","v":""},{"$f":"IF('Project Scope'!$C83=\"\",\"\",IF(COUNTIF('CBAT Lookups'!$B$5:$B$12,\"Fixtures-\"&CBAT!$D83)=1,VLOOKUP(\"Fixtures-\"&CBAT!$D83,'CBAT Lookups'!$B$5:$K$12,7),0))","v":""},{"$f":"IF('Project Scope'!$C83=\"\",\"\",IF(VLOOKUP($F83,'CBAT Lookups'!$B$17:$K$19,8)=\"W\",1,IF(COUNTIF('CBAT Lookups'!$B$5:$B$12,\"Fixtures-\"&CBAT!$D83)=1,VLOOKUP(\"Fixtures-\"&CBAT!$D83,'CBAT Lookups'!$B$5:$K$12,8),0)*VLOOKUP($F83,'CBAT Lookups'!$B$17:$K$19,8)))","v":""},{"$f":"IF('Project Scope'!$C83=\"\",\"\",IF(VLOOKUP($F83,'CBAT Lookups'!$B$17:$K$19,9)=\"W\",1,IF(COUNTIF('CBAT Lookups'!$B$5:$B$12,\"Fixtures-\"&CBAT!$D83)=1,VLOOKUP(\"Fixtures-\"&CBAT!$D83,'CBAT Lookups'!$B$5:$K$12,9),0)*VLOOKUP($F83,'CBAT Lookups'!$B$17:$K$19,9)))","v":""},{"$f":"IF('Project Scope'!$C83=\"\",\"\",IF(COUNTIF('CBAT Lookups'!$B$5:$B$12,\"Fixtures-\"&CBAT!$D83)=1,VLOOKUP(\"Fixtures-\"&CBAT!$D83,'CBAT Lookups'!$B$5:$K$12,10),0)*VLOOKUP($F83,'CBAT Lookups'!$B$17:$K$19,10))","v":""},{"$f":"IF('Project Scope'!$C83=\"\",\"\",IF(COUNTIF('CBAT Lookups'!$B$5:$B$12,\"Fixtures-\"&CBAT!$D83)=1,VLOOKUP(\"Fixtures-\"&CBAT!$D83,'CBAT Lookups'!$B$5:$O$12,12),0))","v":""},{"$f":"IF('Project Scope'!$C83=\"\",\"\",IF(COUNTIF('CBAT Lookups'!$B$5:$B$12,\"Fixtures-\"&CBAT!$D83)=1,VLOOKUP(\"Fixtures-\"&CBAT!$D83,'CBAT Lookups'!$B$5:$O$12,13),0))","v":""},{"$f":"IF('Project Scope'!$C83=\"\",\"\",IF(COUNTIF('CBAT Lookups'!$B$5:$B$12,\"Fixtures-\"&CBAT!$D83)=1,VLOOKUP(\"Fixtures-\"&CBAT!$D83,'CBAT Lookups'!$B$5:$O$12,14),0))","v":""},{"$f":"IF('Project Scope'!$C83=\"\",\"\",'TRM Data'!$U$3)","v":""},{"$f":"IF('Project Scope'!$C83=\"\",\"\",'TRM Data'!$V$3)","v":""},{"$f":"IF('Project Scope'!$C83=\"\",\"\",IF($J83<=0,0,MAX(0,(($G83*$H83/1000)-($I83*$J83/1000))*$L83)*$U83)+($AF83/0.003412))","v":""},{"$f":"IF('Project Scope'!$C83=\"\",\"\",IF($J83<=0,0,MAX(0,(($G83*$H83/1000)-($I83*$J83/1000)))*$T83))","v":""},{"$f":"IF('Project Scope'!$C83=\"\",\"\",IF($J83<=0,0,MAX(0,(($G83*$H83/1000)-($I83*$J83/1000))*$N83)))","v":""},{"$f":"IF('Project Scope'!$C83=\"\",\"\",IF($J83<=0,0,MAX(0,(($G83*$H83/1000)-($I83*$J83/1000))*$O83)*$T83))","v":""},{"$f":"IF('Project Scope'!$C83=\"\",\"\",IF(OR($J83<=0,'Project Information'!$D$44=\"\"),0,-1*MAX(0,(($G83*$H83/1000)-($I83*$J83/1000))*$L83)*$V83*VLOOKUP('Project Information'!$D$44,'CBAT Lookups'!$A$23:$H$30,2)))","v":""},{"$f":"IF('Project Scope'!$C83=\"\",\"\",IF(OR($J83<=0,'Project Information'!$D$44=\"\"),0,-1*MAX(0,(($G83*$H83/1000)-($I83*$J83/1000))*$L83)*$V83*VLOOKUP('Project Information'!$D$44,'CBAT Lookups'!$A$23:$H$30,3)))","v":""},{"$f":"IF('Project Scope'!$C83=\"\",\"\",IF(OR($J83<=0,'Project Information'!$D$44=\"\"),0,-1*MAX(0,(($G83*$H83/1000)-($I83*$J83/1000))*$L83)*$V83*VLOOKUP('Project Information'!$D$44,'CBAT Lookups'!$A$23:$H$30,4)))","v":""},{"$f":"IF('Project Scope'!$C83=\"\",\"\",IF(OR($J83<=0,'Project Information'!$D$44=\"\"),0,-1*MAX(0,(($G83*$H83/1000)-($I83*$J83/1000))*$L83)*$V83*VLOOKUP('Project Information'!$D$44,'CBAT Lookups'!$A$23:$H$30,5)))","v":""},{"$f":"IF('Project Scope'!$C83=\"\",\"\",IF(OR($J83<=0,'Project Information'!$D$44=\"\"),0,-1*MAX(0,(($G83*$H83/1000)-($I83*$J83/1000))*$L83)*$V83*VLOOKUP('Project Information'!$D$44,'CBAT Lookups'!$A$23:$H$30,6)))","v":""},{"$f":"IF('Project Scope'!$C83=\"\",\"\",IF(OR($J83<=0,'Project Information'!$D$44=\"\"),0,-1*MAX(0,(($G83*$H83/1000)-($I83*$J83/1000))*$L83)*$V83*VLOOKUP('Project Information'!$D$44,'CBAT Lookups'!$A$23:$H$30,7)))","v":""},{"$f":"IF('Project Scope'!$C83=\"\",\"\",IF(OR($J83<=0,'Project Information'!$D$44=\"\"),0,-1*MAX(0,(($G83*$H83/1000)-($I83*$J83/1000))*$L83)*$V83*VLOOKUP('Project Information'!$D$44,'CBAT Lookups'!$A$23:$H$30,8)))","v":""},null,{"$f":"IF('Project Scope'!$C83=\"\",\"\",VLOOKUP($F83,'CBAT Lookups'!$B$17:$K$19,4))","v":""},{"$f":"IF('Project Scope'!$C83=\"\",\"\",VLOOKUP($F83,'CBAT Lookups'!$B$17:$K$19,5))","v":""},{"$f":"IF('Project Scope'!$C83=\"\",\"\",VLOOKUP($F83,'CBAT Lookups'!$B$17:$K$19,6))","v":""},{"$f":"IF('Project Scope'!$C83=\"\",\"\",VLOOKUP($F83,'CBAT Lookups'!$B$17:$K$19,7))","v":""},{"$f":"IF('Project Scope'!$C83=\"\",\"\",IF(SUMPRODUCT($P83:$S83,$AN83:$AQ83)=0,0,P83*AN83/SUMPRODUCT($P83:$S83,$AN83:$AQ83)))","v":""},{"$f":"IF('Project Scope'!$C83=\"\",\"\",IF(SUMPRODUCT($P83:$S83,$AN83:$AQ83)=0,0,Q83*AO83/SUMPRODUCT($P83:$S83,$AN83:$AQ83)))","v":""},{"$f":"IF('Project Scope'!$C83=\"\",\"\",IF(SUMPRODUCT($P83:$S83,$AN83:$AQ83)=0,0,R83*AP83/SUMPRODUCT($P83:$S83,$AN83:$AQ83)))","v":""},{"$f":"IF('Project Scope'!$C83=\"\",\"\",IF(SUMPRODUCT($P83:$S83,$AN83:$AQ83)=0,0,S83*AQ83/SUMPRODUCT($P83:$S83,$AN83:$AQ83)))","v":""},{"$f":"IF('Project Scope'!$C83=\"\",\"\",Benefits($AB83,$AD83,$AE83,$AG83,$AH83,$AI83,$AJ83,$AK83,$AL83,$AM83,$M83,$AR83,$AS83,$AT83,$AU83,$W83,$X83,$Y83,$Z83,$AA83,$E83))","v":""},"","","","","","","","",null,{"$f":"IF('Project Scope'!$C83=\"\",\"\",SUM('Project Scope'!$AT83,'Project Scope'!$AU83))","v":""},{"$f":"IF('Project Scope'!$C83=\"\",\"\",SUM('Project Scope'!$BG83, 'Project Scope'!$AR83,(IF(ISNUMBER('Project Scope'!$AS83),'Project Scope'!$AS83,0)*'Project Information'!$D$12)))","v":""},null,null,{"$f":"IF('Project Scope'!$C83=\"\",\"\",IF(COUNTIF('CBAT Lookups'!$B$5:$B$12,\"Controls-\"&CBAT!$D83)=1,VLOOKUP(\"Controls-\"&CBAT!$D83,'CBAT Lookups'!$B$5:$L$12,11),0))","v":""},{"$f":"IF('Project Scope'!$C83=\"\",\"\",IF(COUNTIF('CBAT Lookups'!$B$5:$B$12,\"Controls-\"&CBAT!$D83)=1,VLOOKUP(\"Controls-\"&CBAT!$D83,'CBAT Lookups'!$B$5:$K$12,2),0)*VLOOKUP($F83,'CBAT Lookups'!$B$17:$K$19,2))","v":""},{"$f":"IF('Project Scope'!$C83=\"\",\"\",IF(COUNTIF('CBAT Lookups'!$B$5:$B$12,\"Controls-\"&CBAT!$D83)=1,VLOOKUP(\"Controls-\"&CBAT!$D83,'CBAT Lookups'!$B$5:$K$12,3),0)*VLOOKUP($F83,'CBAT Lookups'!$B$17:$K$19,3))","v":""},{"$f":"IF('Project Scope'!$C83=\"\",\"\",IF(COUNTIF('CBAT Lookups'!$B$5:$B$12,\"Controls-\"&CBAT!$D83)=1,VLOOKUP(\"Controls-\"&CBAT!$D83,'CBAT Lookups'!$B$5:$K$12,4),0))","v":""},{"$f":"IF('Project Scope'!$C83=\"\",\"\",IF(COUNTIF('CBAT Lookups'!$B$5:$B$12,\"Controls-\"&CBAT!$D83)=1,VLOOKUP(\"Controls-\"&CBAT!$D83,'CBAT Lookups'!$B$5:$K$12,5),0))","v":""},{"$f":"IF('Project Scope'!$C83=\"\",\"\",IF(COUNTIF('CBAT Lookups'!$B$5:$B$12,\"Controls-\"&CBAT!$D83)=1,VLOOKUP(\"Controls-\"&CBAT!$D83,'CBAT Lookups'!$B$5:$K$12,6),0))","v":""},{"$f":"IF('Project Scope'!$C83=\"\",\"\",IF(COUNTIF('CBAT Lookups'!$B$5:$B$12,\"Controls-\"&CBAT!$D83)=1,VLOOKUP(\"Controls-\"&CBAT!$D83,'CBAT Lookups'!$B$5:$K$12,7),0))","v":""},{"$f":"IF('Project Scope'!$C83=\"\",\"\",IF(VLOOKUP($F83,'CBAT Lookups'!$B$17:$K$19,8)=\"W\",1,IF(COUNTIF('CBAT Lookups'!$B$5:$B$12,\"Controls-\"&CBAT!$D83)=1,VLOOKUP(\"Controls-\"&CBAT!$D83,'CBAT Lookups'!$B$5:$K$12,8),0)*VLOOKUP($F83,'CBAT Lookups'!$B$17:$K$19,8)))","v":""},{"$f":"IF('Project Scope'!$C83=\"\",\"\",IF(VLOOKUP($F83,'CBAT Lookups'!$B$17:$K$19,9)=\"W\",1,IF(COUNTIF('CBAT Lookups'!$B$5:$B$12,\"Controls-\"&CBAT!$D83)=1,VLOOKUP(\"Controls-\"&CBAT!$D83,'CBAT Lookups'!$B$5:$K$12,9),0)*VLOOKUP($F83,'CBAT Lookups'!$B$17:$K$19,9)))","v":""},{"$f":"IF('Project Scope'!$C83=\"\",\"\",IF(COUNTIF('CBAT Lookups'!$B$5:$B$12,\"Controls-\"&CBAT!$D83)=1,VLOOKUP(\"Controls-\"&CBAT!$D83,'CBAT Lookups'!$B$5:$K$12,10),0)*VLOOKUP($F83,'CBAT Lookups'!$B$17:$K$19,10))","v":""},{"$f":"IF('Project Scope'!$C83=\"\",\"\",VLOOKUP($C83,'CBAT Lookups'!$A$33:$B$57,2))","v":""},{"$f":"IF('Project Scope'!$C83=\"\",\"\",IF(COUNTIF('CBAT Lookups'!$B$5:$B$12,\"Controls-\"&CBAT!$D83)=1,VLOOKUP(\"Controls-\"&CBAT!$D83,'CBAT Lookups'!$B$5:$O$12,12),0))","v":""},{"$f":"IF('Project Scope'!$C83=\"\",\"\",IF(COUNTIF('CBAT Lookups'!$B$5:$B$12,\"Controls-\"&CBAT!$D83)=1,VLOOKUP(\"Controls-\"&CBAT!$D83,'CBAT Lookups'!$B$5:$O$12,13),0))","v":""},{"$f":"IF('Project Scope'!$C83=\"\",\"\",IF(COUNTIF('CBAT Lookups'!$B$5:$B$12,\"Controls-\"&CBAT!$D83)=1,VLOOKUP(\"Controls-\"&CBAT!$D83,'CBAT Lookups'!$B$5:$O$12,14),0))","v":""},{"$f":"IF('Project Scope'!$C83=\"\",\"\",'TRM Data'!$U$3)","v":""},{"$f":"IF('Project Scope'!$C83=\"\",\"\",'TRM Data'!$V$3)","v":""},{"$f":"IF('Project Scope'!$C83=\"\",\"\",IF($K83<=0,0,MAX(0,(IF(AND($I83>0,$J83>0),($I83*$J83)/1000,($G83*$H83)/1000)*$L83))*$BT83*$BR83)+($CD83/0.003412))","v":""},{"$f":"IF('Project Scope'!$C83=\"\",\"\",IF($K83<=0,0,MAX(0,IF(AND($I83>0,$J83>0),($I83*$J83)/1000,($G83*$H83)/1000))*$BQ83))","v":""},{"$f":"IF('Project Scope'!$C83=\"\",\"\",IF($K83<=0,0,MAX(0,IF(AND($I83>0,$J83>0),($I83*$J83)/1000,($G83*$H83)/1000))*$BK83))","v":""},{"$f":"IF('Project Scope'!$C83=\"\",\"\",IF($K83<=0,0,MAX(0,IF(AND($I83>0,$J83>0),($I83*$J83)/1000,($G83*$H83)/1000))*$BL83*$BQ83))","v":""},{"$f":"IF('Project Scope'!$C83=\"\",\"\",IF(OR($K83<=0,'Project Information'!$D$44=\"\"),0,-1*MAX(0,IF(AND($I83>0,$J83>0),($I83*$J83)/1000,($G83*$H83)/1000))*$BT83*$L83*$BS83*VLOOKUP('Project Information'!$D$44,'CBAT Lookups'!$A$23:$H$30,2)))","v":""},{"$f":"IF('Project Scope'!$C83=\"\",\"\",IF(OR($K83<=0,'Project Information'!$D$44=\"\"),0,-1*MAX(0,IF(AND($I83>0,$J83>0),($I83*$J83)/1000,($G83*$H83)/1000))*$BT83*$L83*$BS83*VLOOKUP('Project Information'!$D$44,'CBAT Lookups'!$A$23:$H$30,3)))","v":""},{"$f":"IF('Project Scope'!$C83=\"\",\"\",IF(OR($K83<=0,'Project Information'!$D$44=\"\"),0,-1*MAX(0,IF(AND($I83>0,$J83>0),($I83*$J83)/1000,($G83*$H83)/1000))*$BT83*$L83*$BS83*VLOOKUP('Project Information'!$D$44,'CBAT Lookups'!$A$23:$H$30,4)))","v":""},{"$f":"IF('Project Scope'!$C83=\"\",\"\",IF(OR($K83<=0,'Project Information'!$D$44=\"\"),0,-1*MAX(0,IF(AND($I83>0,$J83>0),($I83*$J83)/1000,($G83*$H83)/1000))*$BT83*$L83*$BS83*VLOOKUP('Project Information'!$D$44,'CBAT Lookups'!$A$23:$H$30,5)))","v":""},{"$f":"IF('Project Scope'!$C83=\"\",\"\",IF(OR($K83<=0,'Project Information'!$D$44=\"\"),0,-1*MAX(0,IF(AND($I83>0,$J83>0),($I83*$J83)/1000,($G83*$H83)/1000))*$BT83*$L83*$BS83*VLOOKUP('Project Information'!$D$44,'CBAT Lookups'!$A$23:$H$30,6)))","v":""},{"$f":"IF('Project Scope'!$C83=\"\",\"\",IF(OR($K83<=0,'Project Information'!$D$44=\"\"),0,-1*MAX(0,IF(AND($I83>0,$J83>0),($I83*$J83)/1000,($G83*$H83)/1000))*$BT83*$L83*$BS83*VLOOKUP('Project Information'!$D$44,'CBAT Lookups'!$A$23:$H$30,7)))","v":""},{"$f":"IF('Project Scope'!$C83=\"\",\"\",IF(OR($K83<=0,'Project Information'!$D$44=\"\"),0,-1*MAX(0,IF(AND($I83>0,$J83>0),($I83*$J83)/1000,($G83*$H83)/1000))*$BT83*$L83*$BS83*VLOOKUP('Project Information'!$D$44,'CBAT Lookups'!$A$23:$H$30,8)))","v":""},null,{"$f":"IF('Project Scope'!$C83=\"\",\"\",VLOOKUP($F83,'CBAT Lookups'!$B$17:$K$19,4))","v":""},{"$f":"IF('Project Scope'!$C83=\"\",\"\",VLOOKUP($F83,'CBAT Lookups'!$B$17:$K$19,5))","v":""},{"$f":"IF('Project Scope'!$C83=\"\",\"\",VLOOKUP($F83,'CBAT Lookups'!$B$17:$K$19,6))","v":""},{"$f":"IF('Project Scope'!$C83=\"\",\"\",VLOOKUP($F83,'CBAT Lookups'!$B$17:$K$19,7))","v":""},{"$f":"IF('Project Scope'!$C83=\"\",\"\",IF(SUMPRODUCT($BM83:$BP83,$CL83:$CO83)=0,0,BM83*CL83/SUMPRODUCT($BM83:$BP83,$CL83:$CO83)))","v":""},{"$f":"IF('Project Scope'!$C83=\"\",\"\",IF(SUMPRODUCT($BM83:$BP83,$CL83:$CO83)=0,0,BN83*CM83/SUMPRODUCT($BM83:$BP83,$CL83:$CO83)))","v":""},{"$f":"IF('Project Scope'!$C83=\"\",\"\",IF(SUMPRODUCT($BM83:$BP83,$CL83:$CO83)=0,0,BO83*CN83/SUMPRODUCT($BM83:$BP83,$CL83:$CO83)))","v":""},{"$f":"IF('Project Scope'!$C83=\"\",\"\",IF(SUMPRODUCT($BM83:$BP83,$CL83:$CO83)=0,0,BP83*CO83/SUMPRODUCT($BM83:$BP83,$CL83:$CO83)))","v":""},{"$f":"IF('Project Scope'!$C83=\"\",\"\",Benefits($BZ83,$CB83,$CC83,$CE83,$CF83,$CG83,$CH83,$CI83,$CJ83,$CK83,$BJ83,$CP83,$CQ83,$CR83,$CS83,$BU83,$BV83,$BW83,$BX83,$BY83,$E83))","v":""},"","","","","","","","",null,{"$f":"IF('Project Scope'!$C83=\"\",\"\",SUM('Project Scope'!$BB83,'Project Scope'!$BC83))","v":""},{"$f":"IF('Project Scope'!$C83=\"\",\"\",SUM('Project Scope'!$BH83, 'Project Scope'!$AZ83,(IF(ISNUMBER('Project Scope'!$BA83),'Project Scope'!$BA83,0)*'Project Information'!$D$12)))","v":""},null,null,{"$f":"IF('Project Scope'!$C83=\"\",\"\",IF($J83<=0,0,(SUMPRODUCT($AV83:$BC83,--($AV83:$BC83>0))+$BE83)*$DK83/((-SUMPRODUCT($AV83:$BC83,--($AV83:$BC83<0))+$BG83+$BH83+$BI83)*$DK83)))","v":""},{"$f":"IF('Project Scope'!$C83=\"\",\"\",IF($K83<=0,0,(SUMPRODUCT($CT83:$DA83,--($CT83:$DA83>0))+$DC83)*$DK83/((-SUMPRODUCT($CT83:$DA83,--($CT83:$DA83<0))+$DE83+$DF83+$DG83)*$DK83)))","v":""},{"$f":"IF('Project Scope'!$C83=\"\",\"\",IF(AND($J83<=0,$K83<=0),0,(SUMPRODUCT($AV83:$BC83,--($AV83:$BC83>0))+$BE83+SUMPRODUCT($CT83:$DA83,--($CT83:$DA83>0))+$DC83)*$DK83/((-SUMPRODUCT($AV83:$BC83,--($AV83:$BC83<0))+$BG83+$BH83+$BI83-SUMPRODUCT($CT83:$DA83,--($CT83:$DA83<0))+$DE83+$DF83+$DG83)*$DK83)))","v":""},{"$f":"IF('Project Scope'!$C83=\"\",\"\",IF(NetOrGross=\"Net\",(1-Z83+AA83),1))","v":""}]
[{"$f":"'Project Scope'!$B84","v":77},{"$f":"IF('Project Scope'!$C84=\"\",\"\",'Project Scope'!$C84)","v":""},{"$f":"IF('Project Scope'!$C84=\"\",\"\",'Project Scope'!$H84)","v":""},{"$f":"IF(ISNUMBER(SEARCH(\"Bay\",'Project Scope'!$Q84)),\"Bay\",IF('Project Scope'!C84=\"\",\"\",'Project Scope'!E84))","v":""},{"$f":"IF('Project Scope'!$C84=\"\",\"\",\"Com\")","v":""},{"$f":"IF('Project Scope'!$C84=\"\",\"\",'Project Scope'!$L84)","v":""},{"$f":"IF('Project Scope'!$C84=\"\",\"\",IF('Project Scope'!$CJ84=\"\",0,'Project Scope'!$CJ84))","v":""},{"$f":"IF('Project Scope'!$C84=\"\",\"\",IF('Project Scope'!$N84=\"\",0,'Project Scope'!$N84))","v":""},{"$f":"IF('Project Scope'!$C84=\"\",\"\",IF('Project Scope'!$CK84=\"\",0,'Project Scope'!$CK84))","v":""},{"$f":"IF('Project Scope'!$C84=\"\",\"\",IF('Project Scope'!$AO84=\"\",0,'Project Scope'!$AO84))","v":""},{"$f":"IF('Project Scope'!$C84=\"\",\"\",IF('Project Scope'!$AX84=\"\",0,'Project Scope'!$AX84))","v":""},{"$f":"IF('Project Scope'!$C84=\"\",\"\",IF('Project Scope'!$M84=\"\",0,'Project Scope'!$M84))","v":""},{"$f":"IF('Project Scope'!$C84=\"\",\"\",IF(COUNTIF('CBAT Lookups'!$B$5:$B$12,\"Fixtures-\"&CBAT!$D84)=1,VLOOKUP(\"Fixtures-\"&CBAT!$D84,'CBAT Lookups'!$B$5:$L$12,11),0))","v":""},{"$f":"IF('Project Scope'!$C84=\"\",\"\",(IF(COUNTIF('CBAT Lookups'!$B$5:$B$12,\"Fixtures-\"&CBAT!$D84)=1,VLOOKUP(\"Fixtures-\"&CBAT!$D84,'CBAT Lookups'!$B$5:$K$12,2),0))*VLOOKUP($F84,'CBAT Lookups'!$B$17:$K$19,2))","v":""},{"$f":"IF('Project Scope'!$C84=\"\",\"\",(IF(COUNTIF('CBAT Lookups'!$B$5:$B$12,\"Fixtures-\"&CBAT!$D84)=1,VLOOKUP(\"Fixtures-\"&CBAT!$D84,'CBAT Lookups'!$B$5:$K$12,3),0))*VLOOKUP($F84,'CBAT Lookups'!$B$17:$K$19,3))","v":""},{"$f":"IF('Project Scope'!$C84=\"\",\"\",(IF(COUNTIF('CBAT Lookups'!$B$5:$B$12,\"Fixtures-\"&CBAT!$D84)=1,VLOOKUP(\"Fixtures-\"&CBAT!$D84,'CBAT Lookups'!$B$5:$K$12,4),0)))","v":""},{"$f":"IF('Project Scope'!$C84=\"\",\"\",(IF(COUNTIF('CBAT Lookups'!$B$5:$B$12,\"Fixtures-\"&CBAT!$D84)=1,VLOOKUP(\"Fixtures-\"&CBAT!$D84,'CBAT Lookups'!$B$5:$K$12,5),0)))","v":""},{"$f":"IF('Project Scope'!$C84=\"\",\"\",(IF(COUNTIF('CBAT Lookups'!$B$5:$B$12,\"Fixtures-\"&CBAT!$D84)=1,VLOOKUP(\"Fixtures-\"&CBAT!$D84,'CBAT Lookups'!$B$5:$K$12,6),0)))","v":""},{"$f":"IF('Project Scope'!$C84=\"\",\"\",IF(COUNTIF('CBAT Lookups'!$B$5:$B$12,\"Fixtures-\"&CBAT!$D84)=1,VLOOKUP(\"Fixtures-\"&CBAT!$D84,'CBAT Lookups'!$B$5:$K$12,7),0))","v":""},{"$f":"IF('Project Scope'!$C84=\"\",\"\",IF(VLOOKUP($F84,'CBAT Lookups'!$B$17:$K$19,8)=\"W\",1,IF(COUNTIF('CBAT Lookups'!$B$5:$B$12,\"Fixtures-\"&CBAT!$D84)=1,VLOOKUP(\"Fixtures-\"&CBAT!$D84,'CBAT Lookups'!$B$5:$K$12,8),0)*VLOOKUP($F84,'CBAT Lookups'!$B$17:$K$19,8)))","v":""},{"$f":"IF('Project Scope'!$C84=\"\",\"\",IF(VLOOKUP($F84,'CBAT Lookups'!$B$17:$K$19,9)=\"W\",1,IF(COUNTIF('CBAT Lookups'!$B$5:$B$12,\"Fixtures-\"&CBAT!$D84)=1,VLOOKUP(\"Fixtures-\"&CBAT!$D84,'CBAT Lookups'!$B$5:$K$12,9),0)*VLOOKUP($F84,'CBAT Lookups'!$B$17:$K$19,9)))","v":""},{"$f":"IF('Project Scope'!$C84=\"\",\"\",IF(COUNTIF('CBAT Lookups'!$B$5:$B$12,\"Fixtures-\"&CBAT!$D84)=1,VLOOKUP(\"Fixtures-\"&CBAT!$D84,'CBAT Lookups'!$B$5:$K$12,10),0)*VLOOKUP($F84,'CBAT Lookups'!$B$17:$K$19,10))","v":""},{"$f":"IF('Project Scope'!$C84=\"\",\"\",IF(COUNTIF('CBAT Lookups'!$B$5:$B$12,\"Fixtures-\"&CBAT!$D84)=1,VLOOKUP(\"Fixtures-\"&CBAT!$D84,'CBAT Lookups'!$B$5:$O$12,12),0))","v":""},{"$f":"IF('Project Scope'!$C84=\"\",\"\",IF(COUNTIF('CBAT Lookups'!$B$5:$B$12,\"Fixtures-\"&CBAT!$D84)=1,VLOOKUP(\"Fixtures-\"&CBAT!$D84,'CBAT Lookups'!$B$5:$O$12,13),0))","v":""},{"$f":"IF('Project Scope'!$C84=\"\",\"\",IF(COUNTIF('CBAT Lookups'!$B$5:$B$12,\"Fixtures-\"&CBAT!$D84)=1,VLOOKUP(\"Fixtures-\"&CBAT!$D84,'CBAT Lookups'!$B$5:$O$12,14),0))","v":""},{"$f":"IF('Project Scope'!$C84=\"\",\"\",'TRM Data'!$U$3)","v":""},{"$f":"IF('Project Scope'!$C84=\"\",\"\",'TRM Data'!$V$3)","v":""},{"$f":"IF('Project Scope'!$C84=\"\",\"\",IF($J84<=0,0,MAX(0,(($G84*$H84/1000)-($I84*$J84/1000))*$L84)*$U84)+($AF84/0.003412))","v":""},{"$f":"IF('Project Scope'!$C84=\"\",\"\",IF($J84<=0,0,MAX(0,(($G84*$H84/1000)-($I84*$J84/1000)))*$T84))","v":""},{"$f":"IF('Project Scope'!$C84=\"\",\"\",IF($J84<=0,0,MAX(0,(($G84*$H84/1000)-($I84*$J84/1000))*$N84)))","v":""},{"$f":"IF('Project Scope'!$C84=\"\",\"\",IF($J84<=0,0,MAX(0,(($G84*$H84/1000)-($I84*$J84/1000))*$O84)*$T84))","v":""},{"$f":"IF('Project Scope'!$C84=\"\",\"\",IF(OR($J84<=0,'Project Information'!$D$44=\"\"),0,-1*MAX(0,(($G84*$H84/1000)-($I84*$J84/1000))*$L84)*$V84*VLOOKUP('Project Information'!$D$44,'CBAT Lookups'!$A$23:$H$30,2)))","v":""},{"$f":"IF('Project Scope'!$C84=\"\",\"\",IF(OR($J84<=0,'Project Information'!$D$44=\"\"),0,-1*MAX(0,(($G84*$H84/1000)-($I84*$J84/1000))*$L84)*$V84*VLOOKUP('Project Information'!$D$44,'CBAT Lookups'!$A$23:$H$30,3)))","v":""},{"$f":"IF('Project Scope'!$C84=\"\",\"\",IF(OR($J84<=0,'Project Information'!$D$44=\"\"),0,-1*MAX(0,(($G84*$H84/1000)-($I84*$J84/1000))*$L84)*$V84*VLOOKUP('Project Information'!$D$44,'CBAT Lookups'!$A$23:$H$30,4)))","v":""},{"$f":"IF('Project Scope'!$C84=\"\",\"\",IF(OR($J84<=0,'Project Information'!$D$44=\"\"),0,-1*MAX(0,(($G84*$H84/1000)-($I84*$J84/1000))*$L84)*$V84*VLOOKUP('Project Information'!$D$44,'CBAT Lookups'!$A$23:$H$30,5)))","v":""},{"$f":"IF('Project Scope'!$C84=\"\",\"\",IF(OR($J84<=0,'Project Information'!$D$44=\"\"),0,-1*MAX(0,(($G84*$H84/1000)-($I84*$J84/1000))*$L84)*$V84*VLOOKUP('Project Information'!$D$44,'CBAT Lookups'!$A$23:$H$30,6)))","v":""},{"$f":"IF('Project Scope'!$C84=\"\",\"\",IF(OR($J84<=0,'Project Information'!$D$44=\"\"),0,-1*MAX(0,(($G84*$H84/1000)-($I84*$J84/1000))*$L84)*$V84*VLOOKUP('Project Information'!$D$44,'CBAT Lookups'!$A$23:$H$30,7)))","v":""},{"$f":"IF('Project Scope'!$C84=\"\",\"\",IF(OR($J84<=0,'Project Information'!$D$44=\"\"),0,-1*MAX(0,(($G84*$H84/1000)-($I84*$J84/1000))*$L84)*$V84*VLOOKUP('Project Information'!$D$44,'CBAT Lookups'!$A$23:$H$30,8)))","v":""},null,{"$f":"IF('Project Scope'!$C84=\"\",\"\",VLOOKUP($F84,'CBAT Lookups'!$B$17:$K$19,4))","v":""},{"$f":"IF('Project Scope'!$C84=\"\",\"\",VLOOKUP($F84,'CBAT Lookups'!$B$17:$K$19,5))","v":""},{"$f":"IF('Project Scope'!$C84=\"\",\"\",VLOOKUP($F84,'CBAT Lookups'!$B$17:$K$19,6))","v":""},{"$f":"IF('Project Scope'!$C84=\"\",\"\",VLOOKUP($F84,'CBAT Lookups'!$B$17:$K$19,7))","v":""},{"$f":"IF('Project Scope'!$C84=\"\",\"\",IF(SUMPRODUCT($P84:$S84,$AN84:$AQ84)=0,0,P84*AN84/SUMPRODUCT($P84:$S84,$AN84:$AQ84)))","v":""},{"$f":"IF('Project Scope'!$C84=\"\",\"\",IF(SUMPRODUCT($P84:$S84,$AN84:$AQ84)=0,0,Q84*AO84/SUMPRODUCT($P84:$S84,$AN84:$AQ84)))","v":""},{"$f":"IF('Project Scope'!$C84=\"\",\"\",IF(SUMPRODUCT($P84:$S84,$AN84:$AQ84)=0,0,R84*AP84/SUMPRODUCT($P84:$S84,$AN84:$AQ84)))","v":""},{"$f":"IF('Project Scope'!$C84=\"\",\"\",IF(SUMPRODUCT($P84:$S84,$AN84:$AQ84)=0,0,S84*AQ84/SUMPRODUCT($P84:$S84,$AN84:$AQ84)))","v":""},{"$f":"IF('Project Scope'!$C84=\"\",\"\",Benefits($AB84,$AD84,$AE84,$AG84,$AH84,$AI84,$AJ84,$AK84,$AL84,$AM84,$M84,$AR84,$AS84,$AT84,$AU84,$W84,$X84,$Y84,$Z84,$AA84,$E84))","v":""},"","","","","","","","",null,{"$f":"IF('Project Scope'!$C84=\"\",\"\",SUM('Project Scope'!$AT84,'Project Scope'!$AU84))","v":""},{"$f":"IF('Project Scope'!$C84=\"\",\"\",SUM('Project Scope'!$BG84, 'Project Scope'!$AR84,(IF(ISNUMBER('Project Scope'!$AS84),'Project Scope'!$AS84,0)*'Project Information'!$D$12)))","v":""},null,null,{"$f":"IF('Project Scope'!$C84=\"\",\"\",IF(COUNTIF('CBAT Lookups'!$B$5:$B$12,\"Controls-\"&CBAT!$D84)=1,VLOOKUP(\"Controls-\"&CBAT!$D84,'CBAT Lookups'!$B$5:$L$12,11),0))","v":""},{"$f":"IF('Project Scope'!$C84=\"\",\"\",IF(COUNTIF('CBAT Lookups'!$B$5:$B$12,\"Controls-\"&CBAT!$D84)=1,VLOOKUP(\"Controls-\"&CBAT!$D84,'CBAT Lookups'!$B$5:$K$12,2),0)*VLOOKUP($F84,'CBAT Lookups'!$B$17:$K$19,2))","v":""},{"$f":"IF('Project Scope'!$C84=\"\",\"\",IF(COUNTIF('CBAT Lookups'!$B$5:$B$12,\"Controls-\"&CBAT!$D84)=1,VLOOKUP(\"Controls-\"&CBAT!$D84,'CBAT Lookups'!$B$5:$K$12,3),0)*VLOOKUP($F84,'CBAT Lookups'!$B$17:$K$19,3))","v":""},{"$f":"IF('Project Scope'!$C84=\"\",\"\",IF(COUNTIF('CBAT Lookups'!$B$5:$B$12,\"Controls-\"&CBAT!$D84)=1,VLOOKUP(\"Controls-\"&CBAT!$D84,'CBAT Lookups'!$B$5:$K$12,4),0))","v":""},{"$f":"IF('Project Scope'!$C84=\"\",\"\",IF(COUNTIF('CBAT Lookups'!$B$5:$B$12,\"Controls-\"&CBAT!$D84)=1,VLOOKUP(\"Controls-\"&CBAT!$D84,'CBAT Lookups'!$B$5:$K$12,5),0))","v":""},{"$f":"IF('Project Scope'!$C84=\"\",\"\",IF(COUNTIF('CBAT Lookups'!$B$5:$B$12,\"Controls-\"&CBAT!$D84)=1,VLOOKUP(\"Controls-\"&CBAT!$D84,'CBAT Lookups'!$B$5:$K$12,6),0))","v":""},{"$f":"IF('Project Scope'!$C84=\"\",\"\",IF(COUNTIF('CBAT Lookups'!$B$5:$B$12,\"Controls-\"&CBAT!$D84)=1,VLOOKUP(\"Controls-\"&CBAT!$D84,'CBAT Lookups'!$B$5:$K$12,7),0))","v":""},{"$f":"IF('Project Scope'!$C84=\"\",\"\",IF(VLOOKUP($F84,'CBAT Lookups'!$B$17:$K$19,8)=\"W\",1,IF(COUNTIF('CBAT Lookups'!$B$5:$B$12,\"Controls-\"&CBAT!$D84)=1,VLOOKUP(\"Controls-\"&CBAT!$D84,'CBAT Lookups'!$B$5:$K$12,8),0)*VLOOKUP($F84,'CBAT Lookups'!$B$17:$K$19,8)))","v":""},{"$f":"IF('Project Scope'!$C84=\"\",\"\",IF(VLOOKUP($F84,'CBAT Lookups'!$B$17:$K$19,9)=\"W\",1,IF(COUNTIF('CBAT Lookups'!$B$5:$B$12,\"Controls-\"&CBAT!$D84)=1,VLOOKUP(\"Controls-\"&CBAT!$D84,'CBAT Lookups'!$B$5:$K$12,9),0)*VLOOKUP($F84,'CBAT Lookups'!$B$17:$K$19,9)))","v":""},{"$f":"IF('Project Scope'!$C84=\"\",\"\",IF(COUNTIF('CBAT Lookups'!$B$5:$B$12,\"Controls-\"&CBAT!$D84)=1,VLOOKUP(\"Controls-\"&CBAT!$D84,'CBAT Lookups'!$B$5:$K$12,10),0)*VLOOKUP($F84,'CBAT Lookups'!$B$17:$K$19,10))","v":""},{"$f":"IF('Project Scope'!$C84=\"\",\"\",VLOOKUP($C84,'CBAT Lookups'!$A$33:$B$57,2))","v":""},{"$f":"IF('Project Scope'!$C84=\"\",\"\",IF(COUNTIF('CBAT Lookups'!$B$5:$B$12,\"Controls-\"&CBAT!$D84)=1,VLOOKUP(\"Controls-\"&CBAT!$D84,'CBAT Lookups'!$B$5:$O$12,12),0))","v":""},{"$f":"IF('Project Scope'!$C84=\"\",\"\",IF(COUNTIF('CBAT Lookups'!$B$5:$B$12,\"Controls-\"&CBAT!$D84)=1,VLOOKUP(\"Controls-\"&CBAT!$D84,'CBAT Lookups'!$B$5:$O$12,13),0))","v":""},{"$f":"IF('Project Scope'!$C84=\"\",\"\",IF(COUNTIF('CBAT Lookups'!$B$5:$B$12,\"Controls-\"&CBAT!$D84)=1,VLOOKUP(\"Controls-\"&CBAT!$D84,'CBAT Lookups'!$B$5:$O$12,14),0))","v":""},{"$f":"IF('Project Scope'!$C84=\"\",\"\",'TRM Data'!$U$3)","v":""},{"$f":"IF('Project Scope'!$C84=\"\",\"\",'TRM Data'!$V$3)","v":""},{"$f":"IF('Project Scope'!$C84=\"\",\"\",IF($K84<=0,0,MAX(0,(IF(AND($I84>0,$J84>0),($I84*$J84)/1000,($G84*$H84)/1000)*$L84))*$BT84*$BR84)+($CD84/0.003412))","v":""},{"$f":"IF('Project Scope'!$C84=\"\",\"\",IF($K84<=0,0,MAX(0,IF(AND($I84>0,$J84>0),($I84*$J84)/1000,($G84*$H84)/1000))*$BQ84))","v":""},{"$f":"IF('Project Scope'!$C84=\"\",\"\",IF($K84<=0,0,MAX(0,IF(AND($I84>0,$J84>0),($I84*$J84)/1000,($G84*$H84)/1000))*$BK84))","v":""},{"$f":"IF('Project Scope'!$C84=\"\",\"\",IF($K84<=0,0,MAX(0,IF(AND($I84>0,$J84>0),($I84*$J84)/1000,($G84*$H84)/1000))*$BL84*$BQ84))","v":""},{"$f":"IF('Project Scope'!$C84=\"\",\"\",IF(OR($K84<=0,'Project Information'!$D$44=\"\"),0,-1*MAX(0,IF(AND($I84>0,$J84>0),($I84*$J84)/1000,($G84*$H84)/1000))*$BT84*$L84*$BS84*VLOOKUP('Project Information'!$D$44,'CBAT Lookups'!$A$23:$H$30,2)))","v":""},{"$f":"IF('Project Scope'!$C84=\"\",\"\",IF(OR($K84<=0,'Project Information'!$D$44=\"\"),0,-1*MAX(0,IF(AND($I84>0,$J84>0),($I84*$J84)/1000,($G84*$H84)/1000))*$BT84*$L84*$BS84*VLOOKUP('Project Information'!$D$44,'CBAT Lookups'!$A$23:$H$30,3)))","v":""},{"$f":"IF('Project Scope'!$C84=\"\",\"\",IF(OR($K84<=0,'Project Information'!$D$44=\"\"),0,-1*MAX(0,IF(AND($I84>0,$J84>0),($I84*$J84)/1000,($G84*$H84)/1000))*$BT84*$L84*$BS84*VLOOKUP('Project Information'!$D$44,'CBAT Lookups'!$A$23:$H$30,4)))","v":""},{"$f":"IF('Project Scope'!$C84=\"\",\"\",IF(OR($K84<=0,'Project Information'!$D$44=\"\"),0,-1*MAX(0,IF(AND($I84>0,$J84>0),($I84*$J84)/1000,($G84*$H84)/1000))*$BT84*$L84*$BS84*VLOOKUP('Project Information'!$D$44,'CBAT Lookups'!$A$23:$H$30,5)))","v":""},{"$f":"IF('Project Scope'!$C84=\"\",\"\",IF(OR($K84<=0,'Project Information'!$D$44=\"\"),0,-1*MAX(0,IF(AND($I84>0,$J84>0),($I84*$J84)/1000,($G84*$H84)/1000))*$BT84*$L84*$BS84*VLOOKUP('Project Information'!$D$44,'CBAT Lookups'!$A$23:$H$30,6)))","v":""},{"$f":"IF('Project Scope'!$C84=\"\",\"\",IF(OR($K84<=0,'Project Information'!$D$44=\"\"),0,-1*MAX(0,IF(AND($I84>0,$J84>0),($I84*$J84)/1000,($G84*$H84)/1000))*$BT84*$L84*$BS84*VLOOKUP('Project Information'!$D$44,'CBAT Lookups'!$A$23:$H$30,7)))","v":""},{"$f":"IF('Project Scope'!$C84=\"\",\"\",IF(OR($K84<=0,'Project Information'!$D$44=\"\"),0,-1*MAX(0,IF(AND($I84>0,$J84>0),($I84*$J84)/1000,($G84*$H84)/1000))*$BT84*$L84*$BS84*VLOOKUP('Project Information'!$D$44,'CBAT Lookups'!$A$23:$H$30,8)))","v":""},null,{"$f":"IF('Project Scope'!$C84=\"\",\"\",VLOOKUP($F84,'CBAT Lookups'!$B$17:$K$19,4))","v":""},{"$f":"IF('Project Scope'!$C84=\"\",\"\",VLOOKUP($F84,'CBAT Lookups'!$B$17:$K$19,5))","v":""},{"$f":"IF('Project Scope'!$C84=\"\",\"\",VLOOKUP($F84,'CBAT Lookups'!$B$17:$K$19,6))","v":""},{"$f":"IF('Project Scope'!$C84=\"\",\"\",VLOOKUP($F84,'CBAT Lookups'!$B$17:$K$19,7))","v":""},{"$f":"IF('Project Scope'!$C84=\"\",\"\",IF(SUMPRODUCT($BM84:$BP84,$CL84:$CO84)=0,0,BM84*CL84/SUMPRODUCT($BM84:$BP84,$CL84:$CO84)))","v":""},{"$f":"IF('Project Scope'!$C84=\"\",\"\",IF(SUMPRODUCT($BM84:$BP84,$CL84:$CO84)=0,0,BN84*CM84/SUMPRODUCT($BM84:$BP84,$CL84:$CO84)))","v":""},{"$f":"IF('Project Scope'!$C84=\"\",\"\",IF(SUMPRODUCT($BM84:$BP84,$CL84:$CO84)=0,0,BO84*CN84/SUMPRODUCT($BM84:$BP84,$CL84:$CO84)))","v":""},{"$f":"IF('Project Scope'!$C84=\"\",\"\",IF(SUMPRODUCT($BM84:$BP84,$CL84:$CO84)=0,0,BP84*CO84/SUMPRODUCT($BM84:$BP84,$CL84:$CO84)))","v":""},{"$f":"IF('Project Scope'!$C84=\"\",\"\",Benefits($BZ84,$CB84,$CC84,$CE84,$CF84,$CG84,$CH84,$CI84,$CJ84,$CK84,$BJ84,$CP84,$CQ84,$CR84,$CS84,$BU84,$BV84,$BW84,$BX84,$BY84,$E84))","v":""},"","","","","","","","",null,{"$f":"IF('Project Scope'!$C84=\"\",\"\",SUM('Project Scope'!$BB84,'Project Scope'!$BC84))","v":""},{"$f":"IF('Project Scope'!$C84=\"\",\"\",SUM('Project Scope'!$BH84, 'Project Scope'!$AZ84,(IF(ISNUMBER('Project Scope'!$BA84),'Project Scope'!$BA84,0)*'Project Information'!$D$12)))","v":""},null,null,{"$f":"IF('Project Scope'!$C84=\"\",\"\",IF($J84<=0,0,(SUMPRODUCT($AV84:$BC84,--($AV84:$BC84>0))+$BE84)*$DK84/((-SUMPRODUCT($AV84:$BC84,--($AV84:$BC84<0))+$BG84+$BH84+$BI84)*$DK84)))","v":""},{"$f":"IF('Project Scope'!$C84=\"\",\"\",IF($K84<=0,0,(SUMPRODUCT($CT84:$DA84,--($CT84:$DA84>0))+$DC84)*$DK84/((-SUMPRODUCT($CT84:$DA84,--($CT84:$DA84<0))+$DE84+$DF84+$DG84)*$DK84)))","v":""},{"$f":"IF('Project Scope'!$C84=\"\",\"\",IF(AND($J84<=0,$K84<=0),0,(SUMPRODUCT($AV84:$BC84,--($AV84:$BC84>0))+$BE84+SUMPRODUCT($CT84:$DA84,--($CT84:$DA84>0))+$DC84)*$DK84/((-SUMPRODUCT($AV84:$BC84,--($AV84:$BC84<0))+$BG84+$BH84+$BI84-SUMPRODUCT($CT84:$DA84,--($CT84:$DA84<0))+$DE84+$DF84+$DG84)*$DK84)))","v":""},{"$f":"IF('Project Scope'!$C84=\"\",\"\",IF(NetOrGross=\"Net\",(1-Z84+AA84),1))","v":""}]
[{"$f":"'Project Scope'!$B85","v":78},{"$f":"IF('Project Scope'!$C85=\"\",\"\",'Project Scope'!$C85)","v":""},{"$f":"IF('Project Scope'!$C85=\"\",\"\",'Project Scope'!$H85)","v":""},{"$f":"IF(ISNUMBER(SEARCH(\"Bay\",'Project Scope'!$Q85)),\"Bay\",IF('Project Scope'!C85=\"\",\"\",'Project Scope'!E85))","v":""},{"$f":"IF('Project Scope'!$C85=\"\",\"\",\"Com\")","v":""},{"$f":"IF('Project Scope'!$C85=\"\",\"\",'Project Scope'!$L85)","v":""},{"$f":"IF('Project Scope'!$C85=\"\",\"\",IF('Project Scope'!$CJ85=\"\",0,'Project Scope'!$CJ85))","v":""},{"$f":"IF('Project Scope'!$C85=\"\",\"\",IF('Project Scope'!$N85=\"\",0,'Project Scope'!$N85))","v":""},{"$f":"IF('Project Scope'!$C85=\"\",\"\",IF('Project Scope'!$CK85=\"\",0,'Project Scope'!$CK85))","v":""},{"$f":"IF('Project Scope'!$C85=\"\",\"\",IF('Project Scope'!$AO85=\"\",0,'Project Scope'!$AO85))","v":""},{"$f":"IF('Project Scope'!$C85=\"\",\"\",IF('Project Scope'!$AX85=\"\",0,'Project Scope'!$AX85))","v":""},{"$f":"IF('Project Scope'!$C85=\"\",\"\",IF('Project Scope'!$M85=\"\",0,'Project Scope'!$M85))","v":""},{"$f":"IF('Project Scope'!$C85=\"\",\"\",IF(COUNTIF('CBAT Lookups'!$B$5:$B$12,\"Fixtures-\"&CBAT!$D85)=1,VLOOKUP(\"Fixtures-\"&CBAT!$D85,'CBAT Lookups'!$B$5:$L$12,11),0))","v":""},{"$f":"IF('Project Scope'!$C85=\"\",\"\",(IF(COUNTIF('CBAT Lookups'!$B$5:$B$12,\"Fixtures-\"&CBAT!$D85)=1,VLOOKUP(\"Fixtures-\"&CBAT!$D85,'CBAT Lookups'!$B$5:$K$12,2),0))*VLOOKUP($F85,'CBAT Lookups'!$B$17:$K$19,2))","v":""},{"$f":"IF('Project Scope'!$C85=\"\",\"\",(IF(COUNTIF('CBAT Lookups'!$B$5:$B$12,\"Fixtures-\"&CBAT!$D85)=1,VLOOKUP(\"Fixtures-\"&CBAT!$D85,'CBAT Lookups'!$B$5:$K$12,3),0))*VLOOKUP($F85,'CBAT Lookups'!$B$17:$K$19,3))","v":""},{"$f":"IF('Project Scope'!$C85=\"\",\"\",(IF(COUNTIF('CBAT Lookups'!$B$5:$B$12,\"Fixtures-\"&CBAT!$D85)=1,VLOOKUP(\"Fixtures-\"&CBAT!$D85,'CBAT Lookups'!$B$5:$K$12,4),0)))","v":""},{"$f":"IF('Project Scope'!$C85=\"\",\"\",(IF(COUNTIF('CBAT Lookups'!$B$5:$B$12,\"Fixtures-\"&CBAT!$D85)=1,VLOOKUP(\"Fixtures-\"&CBAT!$D85,'CBAT Lookups'!$B$5:$K$12,5),0)))","v":""},{"$f":"IF('Project Scope'!$C85=\"\",\"\",(IF(COUNTIF('CBAT Lookups'!$B$5:$B$12,\"Fixtures-\"&CBAT!$D85)=1,VLOOKUP(\"Fixtures-\"&CBAT!$D85,'CBAT Lookups'!$B$5:$K$12,6),0)))","v":""},{"$f":"IF('Project Scope'!$C85=\"\",\"\",IF(COUNTIF('CBAT Lookups'!$B$5:$B$12,\"Fixtures-\"&CBAT!$D85)=1,VLOOKUP(\"Fixtures-\"&CBAT!$D85,'CBAT Lookups'!$B$5:$K$12,7),0))","v":""},{"$f":"IF('Project Scope'!$C85=\"\",\"\",IF(VLOOKUP($F85,'CBAT Lookups'!$B$17:$K$19,8)=\"W\",1,IF(COUNTIF('CBAT Lookups'!$B$5:$B$12,\"Fixtures-\"&CBAT!$D85)=1,VLOOKUP(\"Fixtures-\"&CBAT!$D85,'CBAT Lookups'!$B$5:$K$12,8),0)*VLOOKUP($F85,'CBAT Lookups'!$B$17:$K$19,8)))","v":""},{"$f":"IF('Project Scope'!$C85=\"\",\"\",IF(VLOOKUP($F85,'CBAT Lookups'!$B$17:$K$19,9)=\"W\",1,IF(COUNTIF('CBAT Lookups'!$B$5:$B$12,\"Fixtures-\"&CBAT!$D85)=1,VLOOKUP(\"Fixtures-\"&CBAT!$D85,'CBAT Lookups'!$B$5:$K$12,9),0)*VLOOKUP($F85,'CBAT Lookups'!$B$17:$K$19,9)))","v":""},{"$f":"IF('Project Scope'!$C85=\"\",\"\",IF(COUNTIF('CBAT Lookups'!$B$5:$B$12,\"Fixtures-\"&CBAT!$D85)=1,VLOOKUP(\"Fixtures-\"&CBAT!$D85,'CBAT Lookups'!$B$5:$K$12,10),0)*VLOOKUP($F85,'CBAT Lookups'!$B$17:$K$19,10))","v":""},{"$f":"IF('Project Scope'!$C85=\"\",\"\",IF(COUNTIF('CBAT Lookups'!$B$5:$B$12,\"Fixtures-\"&CBAT!$D85)=1,VLOOKUP(\"Fixtures-\"&CBAT!$D85,'CBAT Lookups'!$B$5:$O$12,12),0))","v":""},{"$f":"IF('Project Scope'!$C85=\"\",\"\",IF(COUNTIF('CBAT Lookups'!$B$5:$B$12,\"Fixtures-\"&CBAT!$D85)=1,VLOOKUP(\"Fixtures-\"&CBAT!$D85,'CBAT Lookups'!$B$5:$O$12,13),0))","v":""},{"$f":"IF('Project Scope'!$C85=\"\",\"\",IF(COUNTIF('CBAT Lookups'!$B$5:$B$12,\"Fixtures-\"&CBAT!$D85)=1,VLOOKUP(\"Fixtures-\"&CBAT!$D85,'CBAT Lookups'!$B$5:$O$12,14),0))","v":""},{"$f":"IF('Project Scope'!$C85=\"\",\"\",'TRM Data'!$U$3)","v":""},{"$f":"IF('Project Scope'!$C85=\"\",\"\",'TRM Data'!$V$3)","v":""},{"$f":"IF('Project Scope'!$C85=\"\",\"\",IF($J85<=0,0,MAX(0,(($G85*$H85/1000)-($I85*$J85/1000))*$L85)*$U85)+($AF85/0.003412))","v":""},{"$f":"IF('Project Scope'!$C85=\"\",\"\",IF($J85<=0,0,MAX(0,(($G85*$H85/1000)-($I85*$J85/1000)))*$T85))","v":""},{"$f":"IF('Project Scope'!$C85=\"\",\"\",IF($J85<=0,0,MAX(0,(($G85*$H85/1000)-($I85*$J85/1000))*$N85)))","v":""},{"$f":"IF('Project Scope'!$C85=\"\",\"\",IF($J85<=0,0,MAX(0,(($G85*$H85/1000)-($I85*$J85/1000))*$O85)*$T85))","v":""},{"$f":"IF('Project Scope'!$C85=\"\",\"\",IF(OR($J85<=0,'Project Information'!$D$44=\"\"),0,-1*MAX(0,(($G85*$H85/1000)-($I85*$J85/1000))*$L85)*$V85*VLOOKUP('Project Information'!$D$44,'CBAT Lookups'!$A$23:$H$30,2)))","v":""},{"$f":"IF('Project Scope'!$C85=\"\",\"\",IF(OR($J85<=0,'Project Information'!$D$44=\"\"),0,-1*MAX(0,(($G85*$H85/1000)-($I85*$J85/1000))*$L85)*$V85*VLOOKUP('Project Information'!$D$44,'CBAT Lookups'!$A$23:$H$30,3)))","v":""},{"$f":"IF('Project Scope'!$C85=\"\",\"\",IF(OR($J85<=0,'Project Information'!$D$44=\"\"),0,-1*MAX(0,(($G85*$H85/1000)-($I85*$J85/1000))*$L85)*$V85*VLOOKUP('Project Information'!$D$44,'CBAT Lookups'!$A$23:$H$30,4)))","v":""},{"$f":"IF('Project Scope'!$C85=\"\",\"\",IF(OR($J85<=0,'Project Information'!$D$44=\"\"),0,-1*MAX(0,(($G85*$H85/1000)-($I85*$J85/1000))*$L85)*$V85*VLOOKUP('Project Information'!$D$44,'CBAT Lookups'!$A$23:$H$30,5)))","v":""},{"$f":"IF('Project Scope'!$C85=\"\",\"\",IF(OR($J85<=0,'Project Information'!$D$44=\"\"),0,-1*MAX(0,(($G85*$H85/1000)-($I85*$J85/1000))*$L85)*$V85*VLOOKUP('Project Information'!$D$44,'CBAT Lookups'!$A$23:$H$30,6)))","v":""},{"$f":"IF('Project Scope'!$C85=\"\",\"\",IF(OR($J85<=0,'Project Information'!$D$44=\"\"),0,-1*MAX(0,(($G85*$H85/1000)-($I85*$J85/1000))*$L85)*$V85*VLOOKUP('Project Information'!$D$44,'CBAT Lookups'!$A$23:$H$30,7)))","v":""},{"$f":"IF('Project Scope'!$C85=\"\",\"\",IF(OR($J85<=0,'Project Information'!$D$44=\"\"),0,-1*MAX(0,(($G85*$H85/1000)-($I85*$J85/1000))*$L85)*$V85*VLOOKUP('Project Information'!$D$44,'CBAT Lookups'!$A$23:$H$30,8)))","v":""},null,{"$f":"IF('Project Scope'!$C85=\"\",\"\",VLOOKUP($F85,'CBAT Lookups'!$B$17:$K$19,4))","v":""},{"$f":"IF('Project Scope'!$C85=\"\",\"\",VLOOKUP($F85,'CBAT Lookups'!$B$17:$K$19,5))","v":""},{"$f":"IF('Project Scope'!$C85=\"\",\"\",VLOOKUP($F85,'CBAT Lookups'!$B$17:$K$19,6))","v":""},{"$f":"IF('Project Scope'!$C85=\"\",\"\",VLOOKUP($F85,'CBAT Lookups'!$B$17:$K$19,7))","v":""},{"$f":"IF('Project Scope'!$C85=\"\",\"\",IF(SUMPRODUCT($P85:$S85,$AN85:$AQ85)=0,0,P85*AN85/SUMPRODUCT($P85:$S85,$AN85:$AQ85)))","v":""},{"$f":"IF('Project Scope'!$C85=\"\",\"\",IF(SUMPRODUCT($P85:$S85,$AN85:$AQ85)=0,0,Q85*AO85/SUMPRODUCT($P85:$S85,$AN85:$AQ85)))","v":""},{"$f":"IF('Project Scope'!$C85=\"\",\"\",IF(SUMPRODUCT($P85:$S85,$AN85:$AQ85)=0,0,R85*AP85/SUMPRODUCT($P85:$S85,$AN85:$AQ85)))","v":""},{"$f":"IF('Project Scope'!$C85=\"\",\"\",IF(SUMPRODUCT($P85:$S85,$AN85:$AQ85)=0,0,S85*AQ85/SUMPRODUCT($P85:$S85,$AN85:$AQ85)))","v":""},{"$f":"IF('Project Scope'!$C85=\"\",\"\",Benefits($AB85,$AD85,$AE85,$AG85,$AH85,$AI85,$AJ85,$AK85,$AL85,$AM85,$M85,$AR85,$AS85,$AT85,$AU85,$W85,$X85,$Y85,$Z85,$AA85,$E85))","v":""},"","","","","","","","",null,{"$f":"IF('Project Scope'!$C85=\"\",\"\",SUM('Project Scope'!$AT85,'Project Scope'!$AU85))","v":""},{"$f":"IF('Project Scope'!$C85=\"\",\"\",SUM('Project Scope'!$BG85, 'Project Scope'!$AR85,(IF(ISNUMBER('Project Scope'!$AS85),'Project Scope'!$AS85,0)*'Project Information'!$D$12)))","v":""},null,null,{"$f":"IF('Project Scope'!$C85=\"\",\"\",IF(COUNTIF('CBAT Lookups'!$B$5:$B$12,\"Controls-\"&CBAT!$D85)=1,VLOOKUP(\"Controls-\"&CBAT!$D85,'CBAT Lookups'!$B$5:$L$12,11),0))","v":""},{"$f":"IF('Project Scope'!$C85=\"\",\"\",IF(COUNTIF('CBAT Lookups'!$B$5:$B$12,\"Controls-\"&CBAT!$D85)=1,VLOOKUP(\"Controls-\"&CBAT!$D85,'CBAT Lookups'!$B$5:$K$12,2),0)*VLOOKUP($F85,'CBAT Lookups'!$B$17:$K$19,2))","v":""},{"$f":"IF('Project Scope'!$C85=\"\",\"\",IF(COUNTIF('CBAT Lookups'!$B$5:$B$12,\"Controls-\"&CBAT!$D85)=1,VLOOKUP(\"Controls-\"&CBAT!$D85,'CBAT Lookups'!$B$5:$K$12,3),0)*VLOOKUP($F85,'CBAT Lookups'!$B$17:$K$19,3))","v":""},{"$f":"IF('Project Scope'!$C85=\"\",\"\",IF(COUNTIF('CBAT Lookups'!$B$5:$B$12,\"Controls-\"&CBAT!$D85)=1,VLOOKUP(\"Controls-\"&CBAT!$D85,'CBAT Lookups'!$B$5:$K$12,4),0))","v":""},{"$f":"IF('Project Scope'!$C85=\"\",\"\",IF(COUNTIF('CBAT Lookups'!$B$5:$B$12,\"Controls-\"&CBAT!$D85)=1,VLOOKUP(\"Controls-\"&CBAT!$D85,'CBAT Lookups'!$B$5:$K$12,5),0))","v":""},{"$f":"IF('Project Scope'!$C85=\"\",\"\",IF(COUNTIF('CBAT Lookups'!$B$5:$B$12,\"Controls-\"&CBAT!$D85)=1,VLOOKUP(\"Controls-\"&CBAT!$D85,'CBAT Lookups'!$B$5:$K$12,6),0))","v":""},{"$f":"IF('Project Scope'!$C85=\"\",\"\",IF(COUNTIF('CBAT Lookups'!$B$5:$B$12,\"Controls-\"&CBAT!$D85)=1,VLOOKUP(\"Controls-\"&CBAT!$D85,'CBAT Lookups'!$B$5:$K$12,7),0))","v":""},{"$f":"IF('Project Scope'!$C85=\"\",\"\",IF(VLOOKUP($F85,'CBAT Lookups'!$B$17:$K$19,8)=\"W\",1,IF(COUNTIF('CBAT Lookups'!$B$5:$B$12,\"Controls-\"&CBAT!$D85)=1,VLOOKUP(\"Controls-\"&CBAT!$D85,'CBAT Lookups'!$B$5:$K$12,8),0)*VLOOKUP($F85,'CBAT Lookups'!$B$17:$K$19,8)))","v":""},{"$f":"IF('Project Scope'!$C85=\"\",\"\",IF(VLOOKUP($F85,'CBAT Lookups'!$B$17:$K$19,9)=\"W\",1,IF(COUNTIF('CBAT Lookups'!$B$5:$B$12,\"Controls-\"&CBAT!$D85)=1,VLOOKUP(\"Controls-\"&CBAT!$D85,'CBAT Lookups'!$B$5:$K$12,9),0)*VLOOKUP($F85,'CBAT Lookups'!$B$17:$K$19,9)))","v":""},{"$f":"IF('Project Scope'!$C85=\"\",\"\",IF(COUNTIF('CBAT Lookups'!$B$5:$B$12,\"Controls-\"&CBAT!$D85)=1,VLOOKUP(\"Controls-\"&CBAT!$D85,'CBAT Lookups'!$B$5:$K$12,10),0)*VLOOKUP($F85,'CBAT Lookups'!$B$17:$K$19,10))","v":""},{"$f":"IF('Project Scope'!$C85=\"\",\"\",VLOOKUP($C85,'CBAT Lookups'!$A$33:$B$57,2))","v":""},{"$f":"IF('Project Scope'!$C85=\"\",\"\",IF(COUNTIF('CBAT Lookups'!$B$5:$B$12,\"Controls-\"&CBAT!$D85)=1,VLOOKUP(\"Controls-\"&CBAT!$D85,'CBAT Lookups'!$B$5:$O$12,12),0))","v":""},{"$f":"IF('Project Scope'!$C85=\"\",\"\",IF(COUNTIF('CBAT Lookups'!$B$5:$B$12,\"Controls-\"&CBAT!$D85)=1,VLOOKUP(\"Controls-\"&CBAT!$D85,'CBAT Lookups'!$B$5:$O$12,13),0))","v":""},{"$f":"IF('Project Scope'!$C85=\"\",\"\",IF(COUNTIF('CBAT Lookups'!$B$5:$B$12,\"Controls-\"&CBAT!$D85)=1,VLOOKUP(\"Controls-\"&CBAT!$D85,'CBAT Lookups'!$B$5:$O$12,14),0))","v":""},{"$f":"IF('Project Scope'!$C85=\"\",\"\",'TRM Data'!$U$3)","v":""},{"$f":"IF('Project Scope'!$C85=\"\",\"\",'TRM Data'!$V$3)","v":""},{"$f":"IF('Project Scope'!$C85=\"\",\"\",IF($K85<=0,0,MAX(0,(IF(AND($I85>0,$J85>0),($I85*$J85)/1000,($G85*$H85)/1000)*$L85))*$BT85*$BR85)+($CD85/0.003412))","v":""},{"$f":"IF('Project Scope'!$C85=\"\",\"\",IF($K85<=0,0,MAX(0,IF(AND($I85>0,$J85>0),($I85*$J85)/1000,($G85*$H85)/1000))*$BQ85))","v":""},{"$f":"IF('Project Scope'!$C85=\"\",\"\",IF($K85<=0,0,MAX(0,IF(AND($I85>0,$J85>0),($I85*$J85)/1000,($G85*$H85)/1000))*$BK85))","v":""},{"$f":"IF('Project Scope'!$C85=\"\",\"\",IF($K85<=0,0,MAX(0,IF(AND($I85>0,$J85>0),($I85*$J85)/1000,($G85*$H85)/1000))*$BL85*$BQ85))","v":""},{"$f":"IF('Project Scope'!$C85=\"\",\"\",IF(OR($K85<=0,'Project Information'!$D$44=\"\"),0,-1*MAX(0,IF(AND($I85>0,$J85>0),($I85*$J85)/1000,($G85*$H85)/1000))*$BT85*$L85*$BS85*VLOOKUP('Project Information'!$D$44,'CBAT Lookups'!$A$23:$H$30,2)))","v":""},{"$f":"IF('Project Scope'!$C85=\"\",\"\",IF(OR($K85<=0,'Project Information'!$D$44=\"\"),0,-1*MAX(0,IF(AND($I85>0,$J85>0),($I85*$J85)/1000,($G85*$H85)/1000))*$BT85*$L85*$BS85*VLOOKUP('Project Information'!$D$44,'CBAT Lookups'!$A$23:$H$30,3)))","v":""},{"$f":"IF('Project Scope'!$C85=\"\",\"\",IF(OR($K85<=0,'Project Information'!$D$44=\"\"),0,-1*MAX(0,IF(AND($I85>0,$J85>0),($I85*$J85)/1000,($G85*$H85)/1000))*$BT85*$L85*$BS85*VLOOKUP('Project Information'!$D$44,'CBAT Lookups'!$A$23:$H$30,4)))","v":""},{"$f":"IF('Project Scope'!$C85=\"\",\"\",IF(OR($K85<=0,'Project Information'!$D$44=\"\"),0,-1*MAX(0,IF(AND($I85>0,$J85>0),($I85*$J85)/1000,($G85*$H85)/1000))*$BT85*$L85*$BS85*VLOOKUP('Project Information'!$D$44,'CBAT Lookups'!$A$23:$H$30,5)))","v":""},{"$f":"IF('Project Scope'!$C85=\"\",\"\",IF(OR($K85<=0,'Project Information'!$D$44=\"\"),0,-1*MAX(0,IF(AND($I85>0,$J85>0),($I85*$J85)/1000,($G85*$H85)/1000))*$BT85*$L85*$BS85*VLOOKUP('Project Information'!$D$44,'CBAT Lookups'!$A$23:$H$30,6)))","v":""},{"$f":"IF('Project Scope'!$C85=\"\",\"\",IF(OR($K85<=0,'Project Information'!$D$44=\"\"),0,-1*MAX(0,IF(AND($I85>0,$J85>0),($I85*$J85)/1000,($G85*$H85)/1000))*$BT85*$L85*$BS85*VLOOKUP('Project Information'!$D$44,'CBAT Lookups'!$A$23:$H$30,7)))","v":""},{"$f":"IF('Project Scope'!$C85=\"\",\"\",IF(OR($K85<=0,'Project Information'!$D$44=\"\"),0,-1*MAX(0,IF(AND($I85>0,$J85>0),($I85*$J85)/1000,($G85*$H85)/1000))*$BT85*$L85*$BS85*VLOOKUP('Project Information'!$D$44,'CBAT Lookups'!$A$23:$H$30,8)))","v":""},null,{"$f":"IF('Project Scope'!$C85=\"\",\"\",VLOOKUP($F85,'CBAT Lookups'!$B$17:$K$19,4))","v":""},{"$f":"IF('Project Scope'!$C85=\"\",\"\",VLOOKUP($F85,'CBAT Lookups'!$B$17:$K$19,5))","v":""},{"$f":"IF('Project Scope'!$C85=\"\",\"\",VLOOKUP($F85,'CBAT Lookups'!$B$17:$K$19,6))","v":""},{"$f":"IF('Project Scope'!$C85=\"\",\"\",VLOOKUP($F85,'CBAT Lookups'!$B$17:$K$19,7))","v":""},{"$f":"IF('Project Scope'!$C85=\"\",\"\",IF(SUMPRODUCT($BM85:$BP85,$CL85:$CO85)=0,0,BM85*CL85/SUMPRODUCT($BM85:$BP85,$CL85:$CO85)))","v":""},{"$f":"IF('Project Scope'!$C85=\"\",\"\",IF(SUMPRODUCT($BM85:$BP85,$CL85:$CO85)=0,0,BN85*CM85/SUMPRODUCT($BM85:$BP85,$CL85:$CO85)))","v":""},{"$f":"IF('Project Scope'!$C85=\"\",\"\",IF(SUMPRODUCT($BM85:$BP85,$CL85:$CO85)=0,0,BO85*CN85/SUMPRODUCT($BM85:$BP85,$CL85:$CO85)))","v":""},{"$f":"IF('Project Scope'!$C85=\"\",\"\",IF(SUMPRODUCT($BM85:$BP85,$CL85:$CO85)=0,0,BP85*CO85/SUMPRODUCT($BM85:$BP85,$CL85:$CO85)))","v":""},{"$f":"IF('Project Scope'!$C85=\"\",\"\",Benefits($BZ85,$CB85,$CC85,$CE85,$CF85,$CG85,$CH85,$CI85,$CJ85,$CK85,$BJ85,$CP85,$CQ85,$CR85,$CS85,$BU85,$BV85,$BW85,$BX85,$BY85,$E85))","v":""},"","","","","","","","",null,{"$f":"IF('Project Scope'!$C85=\"\",\"\",SUM('Project Scope'!$BB85,'Project Scope'!$BC85))","v":""},{"$f":"IF('Project Scope'!$C85=\"\",\"\",SUM('Project Scope'!$BH85, 'Project Scope'!$AZ85,(IF(ISNUMBER('Project Scope'!$BA85),'Project Scope'!$BA85,0)*'Project Information'!$D$12)))","v":""},null,null,{"$f":"IF('Project Scope'!$C85=\"\",\"\",IF($J85<=0,0,(SUMPRODUCT($AV85:$BC85,--($AV85:$BC85>0))+$BE85)*$DK85/((-SUMPRODUCT($AV85:$BC85,--($AV85:$BC85<0))+$BG85+$BH85+$BI85)*$DK85)))","v":""},{"$f":"IF('Project Scope'!$C85=\"\",\"\",IF($K85<=0,0,(SUMPRODUCT($CT85:$DA85,--($CT85:$DA85>0))+$DC85)*$DK85/((-SUMPRODUCT($CT85:$DA85,--($CT85:$DA85<0))+$DE85+$DF85+$DG85)*$DK85)))","v":""},{"$f":"IF('Project Scope'!$C85=\"\",\"\",IF(AND($J85<=0,$K85<=0),0,(SUMPRODUCT($AV85:$BC85,--($AV85:$BC85>0))+$BE85+SUMPRODUCT($CT85:$DA85,--($CT85:$DA85>0))+$DC85)*$DK85/((-SUMPRODUCT($AV85:$BC85,--($AV85:$BC85<0))+$BG85+$BH85+$BI85-SUMPRODUCT($CT85:$DA85,--($CT85:$DA85<0))+$DE85+$DF85+$DG85)*$DK85)))","v":""},{"$f":"IF('Project Scope'!$C85=\"\",\"\",IF(NetOrGross=\"Net\",(1-Z85+AA85),1))","v":""}]
[{"$f":"'Project Scope'!$B86","v":79},{"$f":"IF('Project Scope'!$C86=\"\",\"\",'Project Scope'!$C86)","v":""},{"$f":"IF('Project Scope'!$C86=\"\",\"\",'Project Scope'!$H86)","v":""},{"$f":"IF(ISNUMBER(SEARCH(\"Bay\",'Project Scope'!$Q86)),\"Bay\",IF('Project Scope'!C86=\"\",\"\",'Project Scope'!E86))","v":""},{"$f":"IF('Project Scope'!$C86=\"\",\"\",\"Com\")","v":""},{"$f":"IF('Project Scope'!$C86=\"\",\"\",'Project Scope'!$L86)","v":""},{"$f":"IF('Project Scope'!$C86=\"\",\"\",IF('Project Scope'!$CJ86=\"\",0,'Project Scope'!$CJ86))","v":""},{"$f":"IF('Project Scope'!$C86=\"\",\"\",IF('Project Scope'!$N86=\"\",0,'Project Scope'!$N86))","v":""},{"$f":"IF('Project Scope'!$C86=\"\",\"\",IF('Project Scope'!$CK86=\"\",0,'Project Scope'!$CK86))","v":""},{"$f":"IF('Project Scope'!$C86=\"\",\"\",IF('Project Scope'!$AO86=\"\",0,'Project Scope'!$AO86))","v":""},{"$f":"IF('Project Scope'!$C86=\"\",\"\",IF('Project Scope'!$AX86=\"\",0,'Project Scope'!$AX86))","v":""},{"$f":"IF('Project Scope'!$C86=\"\",\"\",IF('Project Scope'!$M86=\"\",0,'Project Scope'!$M86))","v":""},{"$f":"IF('Project Scope'!$C86=\"\",\"\",IF(COUNTIF('CBAT Lookups'!$B$5:$B$12,\"Fixtures-\"&CBAT!$D86)=1,VLOOKUP(\"Fixtures-\"&CBAT!$D86,'CBAT Lookups'!$B$5:$L$12,11),0))","v":""},{"$f":"IF('Project Scope'!$C86=\"\",\"\",(IF(COUNTIF('CBAT Lookups'!$B$5:$B$12,\"Fixtures-\"&CBAT!$D86)=1,VLOOKUP(\"Fixtures-\"&CBAT!$D86,'CBAT Lookups'!$B$5:$K$12,2),0))*VLOOKUP($F86,'CBAT Lookups'!$B$17:$K$19,2))","v":""},{"$f":"IF('Project Scope'!$C86=\"\",\"\",(IF(COUNTIF('CBAT Lookups'!$B$5:$B$12,\"Fixtures-\"&CBAT!$D86)=1,VLOOKUP(\"Fixtures-\"&CBAT!$D86,'CBAT Lookups'!$B$5:$K$12,3),0))*VLOOKUP($F86,'CBAT Lookups'!$B$17:$K$19,3))","v":""},{"$f":"IF('Project Scope'!$C86=\"\",\"\",(IF(COUNTIF('CBAT Lookups'!$B$5:$B$12,\"Fixtures-\"&CBAT!$D86)=1,VLOOKUP(\"Fixtures-\"&CBAT!$D86,'CBAT Lookups'!$B$5:$K$12,4),0)))","v":""},{"$f":"IF('Project Scope'!$C86=\"\",\"\",(IF(COUNTIF('CBAT Lookups'!$B$5:$B$12,\"Fixtures-\"&CBAT!$D86)=1,VLOOKUP(\"Fixtures-\"&CBAT!$D86,'CBAT Lookups'!$B$5:$K$12,5),0)))","v":""},{"$f":"IF('Project Scope'!$C86=\"\",\"\",(IF(COUNTIF('CBAT Lookups'!$B$5:$B$12,\"Fixtures-\"&CBAT!$D86)=1,VLOOKUP(\"Fixtures-\"&CBAT!$D86,'CBAT Lookups'!$B$5:$K$12,6),0)))","v":""},{"$f":"IF('Project Scope'!$C86=\"\",\"\",IF(COUNTIF('CBAT Lookups'!$B$5:$B$12,\"Fixtures-\"&CBAT!$D86)=1,VLOOKUP(\"Fixtures-\"&CBAT!$D86,'CBAT Lookups'!$B$5:$K$12,7),0))","v":""},{"$f":"IF('Project Scope'!$C86=\"\",\"\",IF(VLOOKUP($F86,'CBAT Lookups'!$B$17:$K$19,8)=\"W\",1,IF(COUNTIF('CBAT Lookups'!$B$5:$B$12,\"Fixtures-\"&CBAT!$D86)=1,VLOOKUP(\"Fixtures-\"&CBAT!$D86,'CBAT Lookups'!$B$5:$K$12,8),0)*VLOOKUP($F86,'CBAT Lookups'!$B$17:$K$19,8)))","v":""},{"$f":"IF('Project Scope'!$C86=\"\",\"\",IF(VLOOKUP($F86,'CBAT Lookups'!$B$17:$K$19,9)=\"W\",1,IF(COUNTIF('CBAT Lookups'!$B$5:$B$12,\"Fixtures-\"&CBAT!$D86)=1,VLOOKUP(\"Fixtures-\"&CBAT!$D86,'CBAT Lookups'!$B$5:$K$12,9),0)*VLOOKUP($F86,'CBAT Lookups'!$B$17:$K$19,9)))","v":""},{"$f":"IF('Project Scope'!$C86=\"\",\"\",IF(COUNTIF('CBAT Lookups'!$B$5:$B$12,\"Fixtures-\"&CBAT!$D86)=1,VLOOKUP(\"Fixtures-\"&CBAT!$D86,'CBAT Lookups'!$B$5:$K$12,10),0)*VLOOKUP($F86,'CBAT Lookups'!$B$17:$K$19,10))","v":""},{"$f":"IF('Project Scope'!$C86=\"\",\"\",IF(COUNTIF('CBAT Lookups'!$B$5:$B$12,\"Fixtures-\"&CBAT!$D86)=1,VLOOKUP(\"Fixtures-\"&CBAT!$D86,'CBAT Lookups'!$B$5:$O$12,12),0))","v":""},{"$f":"IF('Project Scope'!$C86=\"\",\"\",IF(COUNTIF('CBAT Lookups'!$B$5:$B$12,\"Fixtures-\"&CBAT!$D86)=1,VLOOKUP(\"Fixtures-\"&CBAT!$D86,'CBAT Lookups'!$B$5:$O$12,13),0))","v":""},{"$f":"IF('Project Scope'!$C86=\"\",\"\",IF(COUNTIF('CBAT Lookups'!$B$5:$B$12,\"Fixtures-\"&CBAT!$D86)=1,VLOOKUP(\"Fixtures-\"&CBAT!$D86,'CBAT Lookups'!$B$5:$O$12,14),0))","v":""},{"$f":"IF('Project Scope'!$C86=\"\",\"\",'TRM Data'!$U$3)","v":""},{"$f":"IF('Project Scope'!$C86=\"\",\"\",'TRM Data'!$V$3)","v":""},{"$f":"IF('Project Scope'!$C86=\"\",\"\",IF($J86<=0,0,MAX(0,(($G86*$H86/1000)-($I86*$J86/1000))*$L86)*$U86)+($AF86/0.003412))","v":""},{"$f":"IF('Project Scope'!$C86=\"\",\"\",IF($J86<=0,0,MAX(0,(($G86*$H86/1000)-($I86*$J86/1000)))*$T86))","v":""},{"$f":"IF('Project Scope'!$C86=\"\",\"\",IF($J86<=0,0,MAX(0,(($G86*$H86/1000)-($I86*$J86/1000))*$N86)))","v":""},{"$f":"IF('Project Scope'!$C86=\"\",\"\",IF($J86<=0,0,MAX(0,(($G86*$H86/1000)-($I86*$J86/1000))*$O86)*$T86))","v":""},{"$f":"IF('Project Scope'!$C86=\"\",\"\",IF(OR($J86<=0,'Project Information'!$D$44=\"\"),0,-1*MAX(0,(($G86*$H86/1000)-($I86*$J86/1000))*$L86)*$V86*VLOOKUP('Project Information'!$D$44,'CBAT Lookups'!$A$23:$H$30,2)))","v":""},{"$f":"IF('Project Scope'!$C86=\"\",\"\",IF(OR($J86<=0,'Project Information'!$D$44=\"\"),0,-1*MAX(0,(($G86*$H86/1000)-($I86*$J86/1000))*$L86)*$V86*VLOOKUP('Project Information'!$D$44,'CBAT Lookups'!$A$23:$H$30,3)))","v":""},{"$f":"IF('Project Scope'!$C86=\"\",\"\",IF(OR($J86<=0,'Project Information'!$D$44=\"\"),0,-1*MAX(0,(($G86*$H86/1000)-($I86*$J86/1000))*$L86)*$V86*VLOOKUP('Project Information'!$D$44,'CBAT Lookups'!$A$23:$H$30,4)))","v":""},{"$f":"IF('Project Scope'!$C86=\"\",\"\",IF(OR($J86<=0,'Project Information'!$D$44=\"\"),0,-1*MAX(0,(($G86*$H86/1000)-($I86*$J86/1000))*$L86)*$V86*VLOOKUP('Project Information'!$D$44,'CBAT Lookups'!$A$23:$H$30,5)))","v":""},{"$f":"IF('Project Scope'!$C86=\"\",\"\",IF(OR($J86<=0,'Project Information'!$D$44=\"\"),0,-1*MAX(0,(($G86*$H86/1000)-($I86*$J86/1000))*$L86)*$V86*VLOOKUP('Project Information'!$D$44,'CBAT Lookups'!$A$23:$H$30,6)))","v":""},{"$f":"IF('Project Scope'!$C86=\"\",\"\",IF(OR($J86<=0,'Project Information'!$D$44=\"\"),0,-1*MAX(0,(($G86*$H86/1000)-($I86*$J86/1000))*$L86)*$V86*VLOOKUP('Project Information'!$D$44,'CBAT Lookups'!$A$23:$H$30,7)))","v":""},{"$f":"IF('Project Scope'!$C86=\"\",\"\",IF(OR($J86<=0,'Project Information'!$D$44=\"\"),0,-1*MAX(0,(($G86*$H86/1000)-($I86*$J86/1000))*$L86)*$V86*VLOOKUP('Project Information'!$D$44,'CBAT Lookups'!$A$23:$H$30,8)))","v":""},null,{"$f":"IF('Project Scope'!$C86=\"\",\"\",VLOOKUP($F86,'CBAT Lookups'!$B$17:$K$19,4))","v":""},{"$f":"IF('Project Scope'!$C86=\"\",\"\",VLOOKUP($F86,'CBAT Lookups'!$B$17:$K$19,5))","v":""},{"$f":"IF('Project Scope'!$C86=\"\",\"\",VLOOKUP($F86,'CBAT Lookups'!$B$17:$K$19,6))","v":""},{"$f":"IF('Project Scope'!$C86=\"\",\"\",VLOOKUP($F86,'CBAT Lookups'!$B$17:$K$19,7))","v":""},{"$f":"IF('Project Scope'!$C86=\"\",\"\",IF(SUMPRODUCT($P86:$S86,$AN86:$AQ86)=0,0,P86*AN86/SUMPRODUCT($P86:$S86,$AN86:$AQ86)))","v":""},{"$f":"IF('Project Scope'!$C86=\"\",\"\",IF(SUMPRODUCT($P86:$S86,$AN86:$AQ86)=0,0,Q86*AO86/SUMPRODUCT($P86:$S86,$AN86:$AQ86)))","v":""},{"$f":"IF('Project Scope'!$C86=\"\",\"\",IF(SUMPRODUCT($P86:$S86,$AN86:$AQ86)=0,0,R86*AP86/SUMPRODUCT($P86:$S86,$AN86:$AQ86)))","v":""},{"$f":"IF('Project Scope'!$C86=\"\",\"\",IF(SUMPRODUCT($P86:$S86,$AN86:$AQ86)=0,0,S86*AQ86/SUMPRODUCT($P86:$S86,$AN86:$AQ86)))","v":""},{"$f":"IF('Project Scope'!$C86=\"\",\"\",Benefits($AB86,$AD86,$AE86,$AG86,$AH86,$AI86,$AJ86,$AK86,$AL86,$AM86,$M86,$AR86,$AS86,$AT86,$AU86,$W86,$X86,$Y86,$Z86,$AA86,$E86))","v":""},"","","","","","","","",null,{"$f":"IF('Project Scope'!$C86=\"\",\"\",SUM('Project Scope'!$AT86,'Project Scope'!$AU86))","v":""},{"$f":"IF('Project Scope'!$C86=\"\",\"\",SUM('Project Scope'!$BG86, 'Project Scope'!$AR86,(IF(ISNUMBER('Project Scope'!$AS86),'Project Scope'!$AS86,0)*'Project Information'!$D$12)))","v":""},null,null,{"$f":"IF('Project Scope'!$C86=\"\",\"\",IF(COUNTIF('CBAT Lookups'!$B$5:$B$12,\"Controls-\"&CBAT!$D86)=1,VLOOKUP(\"Controls-\"&CBAT!$D86,'CBAT Lookups'!$B$5:$L$12,11),0))","v":""},{"$f":"IF('Project Scope'!$C86=\"\",\"\",IF(COUNTIF('CBAT Lookups'!$B$5:$B$12,\"Controls-\"&CBAT!$D86)=1,VLOOKUP(\"Controls-\"&CBAT!$D86,'CBAT Lookups'!$B$5:$K$12,2),0)*VLOOKUP($F86,'CBAT Lookups'!$B$17:$K$19,2))","v":""},{"$f":"IF('Project Scope'!$C86=\"\",\"\",IF(COUNTIF('CBAT Lookups'!$B$5:$B$12,\"Controls-\"&CBAT!$D86)=1,VLOOKUP(\"Controls-\"&CBAT!$D86,'CBAT Lookups'!$B$5:$K$12,3),0)*VLOOKUP($F86,'CBAT Lookups'!$B$17:$K$19,3))","v":""},{"$f":"IF('Project Scope'!$C86=\"\",\"\",IF(COUNTIF('CBAT Lookups'!$B$5:$B$12,\"Controls-\"&CBAT!$D86)=1,VLOOKUP(\"Controls-\"&CBAT!$D86,'CBAT Lookups'!$B$5:$K$12,4),0))","v":""},{"$f":"IF('Project Scope'!$C86=\"\",\"\",IF(COUNTIF('CBAT Lookups'!$B$5:$B$12,\"Controls-\"&CBAT!$D86)=1,VLOOKUP(\"Controls-\"&CBAT!$D86,'CBAT Lookups'!$B$5:$K$12,5),0))","v":""},{"$f":"IF('Project Scope'!$C86=\"\",\"\",IF(COUNTIF('CBAT Lookups'!$B$5:$B$12,\"Controls-\"&CBAT!$D86)=1,VLOOKUP(\"Controls-\"&CBAT!$D86,'CBAT Lookups'!$B$5:$K$12,6),0))","v":""},{"$f":"IF('Project Scope'!$C86=\"\",\"\",IF(COUNTIF('CBAT Lookups'!$B$5:$B$12,\"Controls-\"&CBAT!$D86)=1,VLOOKUP(\"Controls-\"&CBAT!$D86,'CBAT Lookups'!$B$5:$K$12,7),0))","v":""},{"$f":"IF('Project Scope'!$C86=\"\",\"\",IF(VLOOKUP($F86,'CBAT Lookups'!$B$17:$K$19,8)=\"W\",1,IF(COUNTIF('CBAT Lookups'!$B$5:$B$12,\"Controls-\"&CBAT!$D86)=1,VLOOKUP(\"Controls-\"&CBAT!$D86,'CBAT Lookups'!$B$5:$K$12,8),0)*VLOOKUP($F86,'CBAT Lookups'!$B$17:$K$19,8)))","v":""},{"$f":"IF('Project Scope'!$C86=\"\",\"\",IF(VLOOKUP($F86,'CBAT Lookups'!$B$17:$K$19,9)=\"W\",1,IF(COUNTIF('CBAT Lookups'!$B$5:$B$12,\"Controls-\"&CBAT!$D86)=1,VLOOKUP(\"Controls-\"&CBAT!$D86,'CBAT Lookups'!$B$5:$K$12,9),0)*VLOOKUP($F86,'CBAT Lookups'!$B$17:$K$19,9)))","v":""},{"$f":"IF('Project Scope'!$C86=\"\",\"\",IF(COUNTIF('CBAT Lookups'!$B$5:$B$12,\"Controls-\"&CBAT!$D86)=1,VLOOKUP(\"Controls-\"&CBAT!$D86,'CBAT Lookups'!$B$5:$K$12,10),0)*VLOOKUP($F86,'CBAT Lookups'!$B$17:$K$19,10))","v":""},{"$f":"IF('Project Scope'!$C86=\"\",\"\",VLOOKUP($C86,'CBAT Lookups'!$A$33:$B$57,2))","v":""},{"$f":"IF('Project Scope'!$C86=\"\",\"\",IF(COUNTIF('CBAT Lookups'!$B$5:$B$12,\"Controls-\"&CBAT!$D86)=1,VLOOKUP(\"Controls-\"&CBAT!$D86,'CBAT Lookups'!$B$5:$O$12,12),0))","v":""},{"$f":"IF('Project Scope'!$C86=\"\",\"\",IF(COUNTIF('CBAT Lookups'!$B$5:$B$12,\"Controls-\"&CBAT!$D86)=1,VLOOKUP(\"Controls-\"&CBAT!$D86,'CBAT Lookups'!$B$5:$O$12,13),0))","v":""},{"$f":"IF('Project Scope'!$C86=\"\",\"\",IF(COUNTIF('CBAT Lookups'!$B$5:$B$12,\"Controls-\"&CBAT!$D86)=1,VLOOKUP(\"Controls-\"&CBAT!$D86,'CBAT Lookups'!$B$5:$O$12,14),0))","v":""},{"$f":"IF('Project Scope'!$C86=\"\",\"\",'TRM Data'!$U$3)","v":""},{"$f":"IF('Project Scope'!$C86=\"\",\"\",'TRM Data'!$V$3)","v":""},{"$f":"IF('Project Scope'!$C86=\"\",\"\",IF($K86<=0,0,MAX(0,(IF(AND($I86>0,$J86>0),($I86*$J86)/1000,($G86*$H86)/1000)*$L86))*$BT86*$BR86)+($CD86/0.003412))","v":""},{"$f":"IF('Project Scope'!$C86=\"\",\"\",IF($K86<=0,0,MAX(0,IF(AND($I86>0,$J86>0),($I86*$J86)/1000,($G86*$H86)/1000))*$BQ86))","v":""},{"$f":"IF('Project Scope'!$C86=\"\",\"\",IF($K86<=0,0,MAX(0,IF(AND($I86>0,$J86>0),($I86*$J86)/1000,($G86*$H86)/1000))*$BK86))","v":""},{"$f":"IF('Project Scope'!$C86=\"\",\"\",IF($K86<=0,0,MAX(0,IF(AND($I86>0,$J86>0),($I86*$J86)/1000,($G86*$H86)/1000))*$BL86*$BQ86))","v":""},{"$f":"IF('Project Scope'!$C86=\"\",\"\",IF(OR($K86<=0,'Project Information'!$D$44=\"\"),0,-1*MAX(0,IF(AND($I86>0,$J86>0),($I86*$J86)/1000,($G86*$H86)/1000))*$BT86*$L86*$BS86*VLOOKUP('Project Information'!$D$44,'CBAT Lookups'!$A$23:$H$30,2)))","v":""},{"$f":"IF('Project Scope'!$C86=\"\",\"\",IF(OR($K86<=0,'Project Information'!$D$44=\"\"),0,-1*MAX(0,IF(AND($I86>0,$J86>0),($I86*$J86)/1000,($G86*$H86)/1000))*$BT86*$L86*$BS86*VLOOKUP('Project Information'!$D$44,'CBAT Lookups'!$A$23:$H$30,3)))","v":""},{"$f":"IF('Project Scope'!$C86=\"\",\"\",IF(OR($K86<=0,'Project Information'!$D$44=\"\"),0,-1*MAX(0,IF(AND($I86>0,$J86>0),($I86*$J86)/1000,($G86*$H86)/1000))*$BT86*$L86*$BS86*VLOOKUP('Project Information'!$D$44,'CBAT Lookups'!$A$23:$H$30,4)))","v":""},{"$f":"IF('Project Scope'!$C86=\"\",\"\",IF(OR($K86<=0,'Project Information'!$D$44=\"\"),0,-1*MAX(0,IF(AND($I86>0,$J86>0),($I86*$J86)/1000,($G86*$H86)/1000))*$BT86*$L86*$BS86*VLOOKUP('Project Information'!$D$44,'CBAT Lookups'!$A$23:$H$30,5)))","v":""},{"$f":"IF('Project Scope'!$C86=\"\",\"\",IF(OR($K86<=0,'Project Information'!$D$44=\"\"),0,-1*MAX(0,IF(AND($I86>0,$J86>0),($I86*$J86)/1000,($G86*$H86)/1000))*$BT86*$L86*$BS86*VLOOKUP('Project Information'!$D$44,'CBAT Lookups'!$A$23:$H$30,6)))","v":""},{"$f":"IF('Project Scope'!$C86=\"\",\"\",IF(OR($K86<=0,'Project Information'!$D$44=\"\"),0,-1*MAX(0,IF(AND($I86>0,$J86>0),($I86*$J86)/1000,($G86*$H86)/1000))*$BT86*$L86*$BS86*VLOOKUP('Project Information'!$D$44,'CBAT Lookups'!$A$23:$H$30,7)))","v":""},{"$f":"IF('Project Scope'!$C86=\"\",\"\",IF(OR($K86<=0,'Project Information'!$D$44=\"\"),0,-1*MAX(0,IF(AND($I86>0,$J86>0),($I86*$J86)/1000,($G86*$H86)/1000))*$BT86*$L86*$BS86*VLOOKUP('Project Information'!$D$44,'CBAT Lookups'!$A$23:$H$30,8)))","v":""},null,{"$f":"IF('Project Scope'!$C86=\"\",\"\",VLOOKUP($F86,'CBAT Lookups'!$B$17:$K$19,4))","v":""},{"$f":"IF('Project Scope'!$C86=\"\",\"\",VLOOKUP($F86,'CBAT Lookups'!$B$17:$K$19,5))","v":""},{"$f":"IF('Project Scope'!$C86=\"\",\"\",VLOOKUP($F86,'CBAT Lookups'!$B$17:$K$19,6))","v":""},{"$f":"IF('Project Scope'!$C86=\"\",\"\",VLOOKUP($F86,'CBAT Lookups'!$B$17:$K$19,7))","v":""},{"$f":"IF('Project Scope'!$C86=\"\",\"\",IF(SUMPRODUCT($BM86:$BP86,$CL86:$CO86)=0,0,BM86*CL86/SUMPRODUCT($BM86:$BP86,$CL86:$CO86)))","v":""},{"$f":"IF('Project Scope'!$C86=\"\",\"\",IF(SUMPRODUCT($BM86:$BP86,$CL86:$CO86)=0,0,BN86*CM86/SUMPRODUCT($BM86:$BP86,$CL86:$CO86)))","v":""},{"$f":"IF('Project Scope'!$C86=\"\",\"\",IF(SUMPRODUCT($BM86:$BP86,$CL86:$CO86)=0,0,BO86*CN86/SUMPRODUCT($BM86:$BP86,$CL86:$CO86)))","v":""},{"$f":"IF('Project Scope'!$C86=\"\",\"\",IF(SUMPRODUCT($BM86:$BP86,$CL86:$CO86)=0,0,BP86*CO86/SUMPRODUCT($BM86:$BP86,$CL86:$CO86)))","v":""},{"$f":"IF('Project Scope'!$C86=\"\",\"\",Benefits($BZ86,$CB86,$CC86,$CE86,$CF86,$CG86,$CH86,$CI86,$CJ86,$CK86,$BJ86,$CP86,$CQ86,$CR86,$CS86,$BU86,$BV86,$BW86,$BX86,$BY86,$E86))","v":""},"","","","","","","","",null,{"$f":"IF('Project Scope'!$C86=\"\",\"\",SUM('Project Scope'!$BB86,'Project Scope'!$BC86))","v":""},{"$f":"IF('Project Scope'!$C86=\"\",\"\",SUM('Project Scope'!$BH86, 'Project Scope'!$AZ86,(IF(ISNUMBER('Project Scope'!$BA86),'Project Scope'!$BA86,0)*'Project Information'!$D$12)))","v":""},null,null,{"$f":"IF('Project Scope'!$C86=\"\",\"\",IF($J86<=0,0,(SUMPRODUCT($AV86:$BC86,--($AV86:$BC86>0))+$BE86)*$DK86/((-SUMPRODUCT($AV86:$BC86,--($AV86:$BC86<0))+$BG86+$BH86+$BI86)*$DK86)))","v":""},{"$f":"IF('Project Scope'!$C86=\"\",\"\",IF($K86<=0,0,(SUMPRODUCT($CT86:$DA86,--($CT86:$DA86>0))+$DC86)*$DK86/((-SUMPRODUCT($CT86:$DA86,--($CT86:$DA86<0))+$DE86+$DF86+$DG86)*$DK86)))","v":""},{"$f":"IF('Project Scope'!$C86=\"\",\"\",IF(AND($J86<=0,$K86<=0),0,(SUMPRODUCT($AV86:$BC86,--($AV86:$BC86>0))+$BE86+SUMPRODUCT($CT86:$DA86,--($CT86:$DA86>0))+$DC86)*$DK86/((-SUMPRODUCT($AV86:$BC86,--($AV86:$BC86<0))+$BG86+$BH86+$BI86-SUMPRODUCT($CT86:$DA86,--($CT86:$DA86<0))+$DE86+$DF86+$DG86)*$DK86)))","v":""},{"$f":"IF('Project Scope'!$C86=\"\",\"\",IF(NetOrGross=\"Net\",(1-Z86+AA86),1))","v":""}]
[{"$f":"'Project Scope'!$B87","v":80},{"$f":"IF('Project Scope'!$C87=\"\",\"\",'Project Scope'!$C87)","v":""},{"$f":"IF('Project Scope'!$C87=\"\",\"\",'Project Scope'!$H87)","v":""},{"$f":"IF(ISNUMBER(SEARCH(\"Bay\",'Project Scope'!$Q87)),\"Bay\",IF('Project Scope'!C87=\"\",\"\",'Project Scope'!E87))","v":""},{"$f":"IF('Project Scope'!$C87=\"\",\"\",\"Com\")","v":""},{"$f":"IF('Project Scope'!$C87=\"\",\"\",'Project Scope'!$L87)","v":""},{"$f":"IF('Project Scope'!$C87=\"\",\"\",IF('Project Scope'!$CJ87=\"\",0,'Project Scope'!$CJ87))","v":""},{"$f":"IF('Project Scope'!$C87=\"\",\"\",IF('Project Scope'!$N87=\"\",0,'Project Scope'!$N87))","v":""},{"$f":"IF('Project Scope'!$C87=\"\",\"\",IF('Project Scope'!$CK87=\"\",0,'Project Scope'!$CK87))","v":""},{"$f":"IF('Project Scope'!$C87=\"\",\"\",IF('Project Scope'!$AO87=\"\",0,'Project Scope'!$AO87))","v":""},{"$f":"IF('Project Scope'!$C87=\"\",\"\",IF('Project Scope'!$AX87=\"\",0,'Project Scope'!$AX87))","v":""},{"$f":"IF('Project Scope'!$C87=\"\",\"\",IF('Project Scope'!$M87=\"\",0,'Project Scope'!$M87))","v":""},{"$f":"IF('Project Scope'!$C87=\"\",\"\",IF(COUNTIF('CBAT Lookups'!$B$5:$B$12,\"Fixtures-\"&CBAT!$D87)=1,VLOOKUP(\"Fixtures-\"&CBAT!$D87,'CBAT Lookups'!$B$5:$L$12,11),0))","v":""},{"$f":"IF('Project Scope'!$C87=\"\",\"\",(IF(COUNTIF('CBAT Lookups'!$B$5:$B$12,\"Fixtures-\"&CBAT!$D87)=1,VLOOKUP(\"Fixtures-\"&CBAT!$D87,'CBAT Lookups'!$B$5:$K$12,2),0))*VLOOKUP($F87,'CBAT Lookups'!$B$17:$K$19,2))","v":""},{"$f":"IF('Project Scope'!$C87=\"\",\"\",(IF(COUNTIF('CBAT Lookups'!$B$5:$B$12,\"Fixtures-\"&CBAT!$D87)=1,VLOOKUP(\"Fixtures-\"&CBAT!$D87,'CBAT Lookups'!$B$5:$K$12,3),0))*VLOOKUP($F87,'CBAT Lookups'!$B$17:$K$19,3))","v":""},{"$f":"IF('Project Scope'!$C87=\"\",\"\",(IF(COUNTIF('CBAT Lookups'!$B$5:$B$12,\"Fixtures-\"&CBAT!$D87)=1,VLOOKUP(\"Fixtures-\"&CBAT!$D87,'CBAT Lookups'!$B$5:$K$12,4),0)))","v":""},{"$f":"IF('Project Scope'!$C87=\"\",\"\",(IF(COUNTIF('CBAT Lookups'!$B$5:$B$12,\"Fixtures-\"&CBAT!$D87)=1,VLOOKUP(\"Fixtures-\"&CBAT!$D87,'CBAT Lookups'!$B$5:$K$12,5),0)))","v":""},{"$f":"IF('Project Scope'!$C87=\"\",\"\",(IF(COUNTIF('CBAT Lookups'!$B$5:$B$12,\"Fixtures-\"&CBAT!$D87)=1,VLOOKUP(\"Fixtures-\"&CBAT!$D87,'CBAT Lookups'!$B$5:$K$12,6),0)))","v":""},{"$f":"IF('Project Scope'!$C87=\"\",\"\",IF(COUNTIF('CBAT Lookups'!$B$5:$B$12,\"Fixtures-\"&CBAT!$D87)=1,VLOOKUP(\"Fixtures-\"&CBAT!$D87,'CBAT Lookups'!$B$5:$K$12,7),0))","v":""},{"$f":"IF('Project Scope'!$C87=\"\",\"\",IF(VLOOKUP($F87,'CBAT Lookups'!$B$17:$K$19,8)=\"W\",1,IF(COUNTIF('CBAT Lookups'!$B$5:$B$12,\"Fixtures-\"&CBAT!$D87)=1,VLOOKUP(\"Fixtures-\"&CBAT!$D87,'CBAT Lookups'!$B$5:$K$12,8),0)*VLOOKUP($F87,'CBAT Lookups'!$B$17:$K$19,8)))","v":""},{"$f":"IF('Project Scope'!$C87=\"\",\"\",IF(VLOOKUP($F87,'CBAT Lookups'!$B$17:$K$19,9)=\"W\",1,IF(COUNTIF('CBAT Lookups'!$B$5:$B$12,\"Fixtures-\"&CBAT!$D87)=1,VLOOKUP(\"Fixtures-\"&CBAT!$D87,'CBAT Lookups'!$B$5:$K$12,9),0)*VLOOKUP($F87,'CBAT Lookups'!$B$17:$K$19,9)))","v":""},{"$f":"IF('Project Scope'!$C87=\"\",\"\",IF(COUNTIF('CBAT Lookups'!$B$5:$B$12,\"Fixtures-\"&CBAT!$D87)=1,VLOOKUP(\"Fixtures-\"&CBAT!$D87,'CBAT Lookups'!$B$5:$K$12,10),0)*VLOOKUP($F87,'CBAT Lookups'!$B$17:$K$19,10))","v":""},{"$f":"IF('Project Scope'!$C87=\"\",\"\",IF(COUNTIF('CBAT Lookups'!$B$5:$B$12,\"Fixtures-\"&CBAT!$D87)=1,VLOOKUP(\"Fixtures-\"&CBAT!$D87,'CBAT Lookups'!$B$5:$O$12,12),0))","v":""},{"$f":"IF('Project Scope'!$C87=\"\",\"\",IF(COUNTIF('CBAT Lookups'!$B$5:$B$12,\"Fixtures-\"&CBAT!$D87)=1,VLOOKUP(\"Fixtures-\"&CBAT!$D87,'CBAT Lookups'!$B$5:$O$12,13),0))","v":""},{"$f":"IF('Project Scope'!$C87=\"\",\"\",IF(COUNTIF('CBAT Lookups'!$B$5:$B$12,\"Fixtures-\"&CBAT!$D87)=1,VLOOKUP(\"Fixtures-\"&CBAT!$D87,'CBAT Lookups'!$B$5:$O$12,14),0))","v":""},{"$f":"IF('Project Scope'!$C87=\"\",\"\",'TRM Data'!$U$3)","v":""},{"$f":"IF('Project Scope'!$C87=\"\",\"\",'TRM Data'!$V$3)","v":""},{"$f":"IF('Project Scope'!$C87=\"\",\"\",IF($J87<=0,0,MAX(0,(($G87*$H87/1000)-($I87*$J87/1000))*$L87)*$U87)+($AF87/0.003412))","v":""},{"$f":"IF('Project Scope'!$C87=\"\",\"\",IF($J87<=0,0,MAX(0,(($G87*$H87/1000)-($I87*$J87/1000)))*$T87))","v":""},{"$f":"IF('Project Scope'!$C87=\"\",\"\",IF($J87<=0,0,MAX(0,(($G87*$H87/1000)-($I87*$J87/1000))*$N87)))","v":""},{"$f":"IF('Project Scope'!$C87=\"\",\"\",IF($J87<=0,0,MAX(0,(($G87*$H87/1000)-($I87*$J87/1000))*$O87)*$T87))","v":""},{"$f":"IF('Project Scope'!$C87=\"\",\"\",IF(OR($J87<=0,'Project Information'!$D$44=\"\"),0,-1*MAX(0,(($G87*$H87/1000)-($I87*$J87/1000))*$L87)*$V87*VLOOKUP('Project Information'!$D$44,'CBAT Lookups'!$A$23:$H$30,2)))","v":""},{"$f":"IF('Project Scope'!$C87=\"\",\"\",IF(OR($J87<=0,'Project Information'!$D$44=\"\"),0,-1*MAX(0,(($G87*$H87/1000)-($I87*$J87/1000))*$L87)*$V87*VLOOKUP('Project Information'!$D$44,'CBAT Lookups'!$A$23:$H$30,3)))","v":""},{"$f":"IF('Project Scope'!$C87=\"\",\"\",IF(OR($J87<=0,'Project Information'!$D$44=\"\"),0,-1*MAX(0,(($G87*$H87/1000)-($I87*$J87/1000))*$L87)*$V87*VLOOKUP('Project Information'!$D$44,'CBAT Lookups'!$A$23:$H$30,4)))","v":""},{"$f":"IF('Project Scope'!$C87=\"\",\"\",IF(OR($J87<=0,'Project Information'!$D$44=\"\"),0,-1*MAX(0,(($G87*$H87/1000)-($I87*$J87/1000))*$L87)*$V87*VLOOKUP('Project Information'!$D$44,'CBAT Lookups'!$A$23:$H$30,5)))","v":""},{"$f":"IF('Project Scope'!$C87=\"\",\"\",IF(OR($J87<=0,'Project Information'!$D$44=\"\"),0,-1*MAX(0,(($G87*$H87/1000)-($I87*$J87/1000))*$L87)*$V87*VLOOKUP('Project Information'!$D$44,'CBAT Lookups'!$A$23:$H$30,6)))","v":""},{"$f":"IF('Project Scope'!$C87=\"\",\"\",IF(OR($J87<=0,'Project Information'!$D$44=\"\"),0,-1*MAX(0,(($G87*$H87/1000)-($I87*$J87/1000))*$L87)*$V87*VLOOKUP('Project Information'!$D$44,'CBAT Lookups'!$A$23:$H$30,7)))","v":""},{"$f":"IF('Project Scope'!$C87=\"\",\"\",IF(OR($J87<=0,'Project Information'!$D$44=\"\"),0,-1*MAX(0,(($G87*$H87/1000)-($I87*$J87/1000))*$L87)*$V87*VLOOKUP('Project Information'!$D$44,'CBAT Lookups'!$A$23:$H$30,8)))","v":""},null,{"$f":"IF('Project Scope'!$C87=\"\",\"\",VLOOKUP($F87,'CBAT Lookups'!$B$17:$K$19,4))","v":""},{"$f":"IF('Project Scope'!$C87=\"\",\"\",VLOOKUP($F87,'CBAT Lookups'!$B$17:$K$19,5))","v":""},{"$f":"IF('Project Scope'!$C87=\"\",\"\",VLOOKUP($F87,'CBAT Lookups'!$B$17:$K$19,6))","v":""},{"$f":"IF('Project Scope'!$C87=\"\",\"\",VLOOKUP($F87,'CBAT Lookups'!$B$17:$K$19,7))","v":""},{"$f":"IF('Project Scope'!$C87=\"\",\"\",IF(SUMPRODUCT($P87:$S87,$AN87:$AQ87)=0,0,P87*AN87/SUMPRODUCT($P87:$S87,$AN87:$AQ87)))","v":""},{"$f":"IF('Project Scope'!$C87=\"\",\"\",IF(SUMPRODUCT($P87:$S87,$AN87:$AQ87)=0,0,Q87*AO87/SUMPRODUCT($P87:$S87,$AN87:$AQ87)))","v":""},{"$f":"IF('Project Scope'!$C87=\"\",\"\",IF(SUMPRODUCT($P87:$S87,$AN87:$AQ87)=0,0,R87*AP87/SUMPRODUCT($P87:$S87,$AN87:$AQ87)))","v":""},{"$f":"IF('Project Scope'!$C87=\"\",\"\",IF(SUMPRODUCT($P87:$S87,$AN87:$AQ87)=0,0,S87*AQ87/SUMPRODUCT($P87:$S87,$AN87:$AQ87)))","v":""},{"$f":"IF('Project Scope'!$C87=\"\",\"\",Benefits($AB87,$AD87,$AE87,$AG87,$AH87,$AI87,$AJ87,$AK87,$AL87,$AM87,$M87,$AR87,$AS87,$AT87,$AU87,$W87,$X87,$Y87,$Z87,$AA87,$E87))","v":""},"","","","","","","","",null,{"$f":"IF('Project Scope'!$C87=\"\",\"\",SUM('Project Scope'!$AT87,'Project Scope'!$AU87))","v":""},{"$f":"IF('Project Scope'!$C87=\"\",\"\",SUM('Project Scope'!$BG87, 'Project Scope'!$AR87,(IF(ISNUMBER('Project Scope'!$AS87),'Project Scope'!$AS87,0)*'Project Information'!$D$12)))","v":""},null,null,{"$f":"IF('Project Scope'!$C87=\"\",\"\",IF(COUNTIF('CBAT Lookups'!$B$5:$B$12,\"Controls-\"&CBAT!$D87)=1,VLOOKUP(\"Controls-\"&CBAT!$D87,'CBAT Lookups'!$B$5:$L$12,11),0))","v":""},{"$f":"IF('Project Scope'!$C87=\"\",\"\",IF(COUNTIF('CBAT Lookups'!$B$5:$B$12,\"Controls-\"&CBAT!$D87)=1,VLOOKUP(\"Controls-\"&CBAT!$D87,'CBAT Lookups'!$B$5:$K$12,2),0)*VLOOKUP($F87,'CBAT Lookups'!$B$17:$K$19,2))","v":""},{"$f":"IF('Project Scope'!$C87=\"\",\"\",IF(COUNTIF('CBAT Lookups'!$B$5:$B$12,\"Controls-\"&CBAT!$D87)=1,VLOOKUP(\"Controls-\"&CBAT!$D87,'CBAT Lookups'!$B$5:$K$12,3),0)*VLOOKUP($F87,'CBAT Lookups'!$B$17:$K$19,3))","v":""},{"$f":"IF('Project Scope'!$C87=\"\",\"\",IF(COUNTIF('CBAT Lookups'!$B$5:$B$12,\"Controls-\"&CBAT!$D87)=1,VLOOKUP(\"Controls-\"&CBAT!$D87,'CBAT Lookups'!$B$5:$K$12,4),0))","v":""},{"$f":"IF('Project Scope'!$C87=\"\",\"\",IF(COUNTIF('CBAT Lookups'!$B$5:$B$12,\"Controls-\"&CBAT!$D87)=1,VLOOKUP(\"Controls-\"&CBAT!$D87,'CBAT Lookups'!$B$5:$K$12,5),0))","v":""},{"$f":"IF('Project Scope'!$C87=\"\",\"\",IF(COUNTIF('CBAT Lookups'!$B$5:$B$12,\"Controls-\"&CBAT!$D87)=1,VLOOKUP(\"Controls-\"&CBAT!$D87,'CBAT Lookups'!$B$5:$K$12,6),0))","v":""},{"$f":"IF('Project Scope'!$C87=\"\",\"\",IF(COUNTIF('CBAT Lookups'!$B$5:$B$12,\"Controls-\"&CBAT!$D87)=1,VLOOKUP(\"Controls-\"&CBAT!$D87,'CBAT Lookups'!$B$5:$K$12,7),0))","v":""},{"$f":"IF('Project Scope'!$C87=\"\",\"\",IF(VLOOKUP($F87,'CBAT Lookups'!$B$17:$K$19,8)=\"W\",1,IF(COUNTIF('CBAT Lookups'!$B$5:$B$12,\"Controls-\"&CBAT!$D87)=1,VLOOKUP(\"Controls-\"&CBAT!$D87,'CBAT Lookups'!$B$5:$K$12,8),0)*VLOOKUP($F87,'CBAT Lookups'!$B$17:$K$19,8)))","v":""},{"$f":"IF('Project Scope'!$C87=\"\",\"\",IF(VLOOKUP($F87,'CBAT Lookups'!$B$17:$K$19,9)=\"W\",1,IF(COUNTIF('CBAT Lookups'!$B$5:$B$12,\"Controls-\"&CBAT!$D87)=1,VLOOKUP(\"Controls-\"&CBAT!$D87,'CBAT Lookups'!$B$5:$K$12,9),0)*VLOOKUP($F87,'CBAT Lookups'!$B$17:$K$19,9)))","v":""},{"$f":"IF('Project Scope'!$C87=\"\",\"\",IF(COUNTIF('CBAT Lookups'!$B$5:$B$12,\"Controls-\"&CBAT!$D87)=1,VLOOKUP(\"Controls-\"&CBAT!$D87,'CBAT Lookups'!$B$5:$K$12,10),0)*VLOOKUP($F87,'CBAT Lookups'!$B$17:$K$19,10))","v":""},{"$f":"IF('Project Scope'!$C87=\"\",\"\",VLOOKUP($C87,'CBAT Lookups'!$A$33:$B$57,2))","v":""},{"$f":"IF('Project Scope'!$C87=\"\",\"\",IF(COUNTIF('CBAT Lookups'!$B$5:$B$12,\"Controls-\"&CBAT!$D87)=1,VLOOKUP(\"Controls-\"&CBAT!$D87,'CBAT Lookups'!$B$5:$O$12,12),0))","v":""},{"$f":"IF('Project Scope'!$C87=\"\",\"\",IF(COUNTIF('CBAT Lookups'!$B$5:$B$12,\"Controls-\"&CBAT!$D87)=1,VLOOKUP(\"Controls-\"&CBAT!$D87,'CBAT Lookups'!$B$5:$O$12,13),0))","v":""},{"$f":"IF('Project Scope'!$C87=\"\",\"\",IF(COUNTIF('CBAT Lookups'!$B$5:$B$12,\"Controls-\"&CBAT!$D87)=1,VLOOKUP(\"Controls-\"&CBAT!$D87,'CBAT Lookups'!$B$5:$O$12,14),0))","v":""},{"$f":"IF('Project Scope'!$C87=\"\",\"\",'TRM Data'!$U$3)","v":""},{"$f":"IF('Project Scope'!$C87=\"\",\"\",'TRM Data'!$V$3)","v":""},{"$f":"IF('Project Scope'!$C87=\"\",\"\",IF($K87<=0,0,MAX(0,(IF(AND($I87>0,$J87>0),($I87*$J87)/1000,($G87*$H87)/1000)*$L87))*$BT87*$BR87)+($CD87/0.003412))","v":""},{"$f":"IF('Project Scope'!$C87=\"\",\"\",IF($K87<=0,0,MAX(0,IF(AND($I87>0,$J87>0),($I87*$J87)/1000,($G87*$H87)/1000))*$BQ87))","v":""},{"$f":"IF('Project Scope'!$C87=\"\",\"\",IF($K87<=0,0,MAX(0,IF(AND($I87>0,$J87>0),($I87*$J87)/1000,($G87*$H87)/1000))*$BK87))","v":""},{"$f":"IF('Project Scope'!$C87=\"\",\"\",IF($K87<=0,0,MAX(0,IF(AND($I87>0,$J87>0),($I87*$J87)/1000,($G87*$H87)/1000))*$BL87*$BQ87))","v":""},{"$f":"IF('Project Scope'!$C87=\"\",\"\",IF(OR($K87<=0,'Project Information'!$D$44=\"\"),0,-1*MAX(0,IF(AND($I87>0,$J87>0),($I87*$J87)/1000,($G87*$H87)/1000))*$BT87*$L87*$BS87*VLOOKUP('Project Information'!$D$44,'CBAT Lookups'!$A$23:$H$30,2)))","v":""},{"$f":"IF('Project Scope'!$C87=\"\",\"\",IF(OR($K87<=0,'Project Information'!$D$44=\"\"),0,-1*MAX(0,IF(AND($I87>0,$J87>0),($I87*$J87)/1000,($G87*$H87)/1000))*$BT87*$L87*$BS87*VLOOKUP('Project Information'!$D$44,'CBAT Lookups'!$A$23:$H$30,3)))","v":""},{"$f":"IF('Project Scope'!$C87=\"\",\"\",IF(OR($K87<=0,'Project Information'!$D$44=\"\"),0,-1*MAX(0,IF(AND($I87>0,$J87>0),($I87*$J87)/1000,($G87*$H87)/1000))*$BT87*$L87*$BS87*VLOOKUP('Project Information'!$D$44,'CBAT Lookups'!$A$23:$H$30,4)))","v":""},{"$f":"IF('Project Scope'!$C87=\"\",\"\",IF(OR($K87<=0,'Project Information'!$D$44=\"\"),0,-1*MAX(0,IF(AND($I87>0,$J87>0),($I87*$J87)/1000,($G87*$H87)/1000))*$BT87*$L87*$BS87*VLOOKUP('Project Information'!$D$44,'CBAT Lookups'!$A$23:$H$30,5)))","v":""},{"$f":"IF('Project Scope'!$C87=\"\",\"\",IF(OR($K87<=0,'Project Information'!$D$44=\"\"),0,-1*MAX(0,IF(AND($I87>0,$J87>0),($I87*$J87)/1000,($G87*$H87)/1000))*$BT87*$L87*$BS87*VLOOKUP('Project Information'!$D$44,'CBAT Lookups'!$A$23:$H$30,6)))","v":""},{"$f":"IF('Project Scope'!$C87=\"\",\"\",IF(OR($K87<=0,'Project Information'!$D$44=\"\"),0,-1*MAX(0,IF(AND($I87>0,$J87>0),($I87*$J87)/1000,($G87*$H87)/1000))*$BT87*$L87*$BS87*VLOOKUP('Project Information'!$D$44,'CBAT Lookups'!$A$23:$H$30,7)))","v":""},{"$f":"IF('Project Scope'!$C87=\"\",\"\",IF(OR($K87<=0,'Project Information'!$D$44=\"\"),0,-1*MAX(0,IF(AND($I87>0,$J87>0),($I87*$J87)/1000,($G87*$H87)/1000))*$BT87*$L87*$BS87*VLOOKUP('Project Information'!$D$44,'CBAT Lookups'!$A$23:$H$30,8)))","v":""},null,{"$f":"IF('Project Scope'!$C87=\"\",\"\",VLOOKUP($F87,'CBAT Lookups'!$B$17:$K$19,4))","v":""},{"$f":"IF('Project Scope'!$C87=\"\",\"\",VLOOKUP($F87,'CBAT Lookups'!$B$17:$K$19,5))","v":""},{"$f":"IF('Project Scope'!$C87=\"\",\"\",VLOOKUP($F87,'CBAT Lookups'!$B$17:$K$19,6))","v":""},{"$f":"IF('Project Scope'!$C87=\"\",\"\",VLOOKUP($F87,'CBAT Lookups'!$B$17:$K$19,7))","v":""},{"$f":"IF('Project Scope'!$C87=\"\",\"\",IF(SUMPRODUCT($BM87:$BP87,$CL87:$CO87)=0,0,BM87*CL87/SUMPRODUCT($BM87:$BP87,$CL87:$CO87)))","v":""},{"$f":"IF('Project Scope'!$C87=\"\",\"\",IF(SUMPRODUCT($BM87:$BP87,$CL87:$CO87)=0,0,BN87*CM87/SUMPRODUCT($BM87:$BP87,$CL87:$CO87)))","v":""},{"$f":"IF('Project Scope'!$C87=\"\",\"\",IF(SUMPRODUCT($BM87:$BP87,$CL87:$CO87)=0,0,BO87*CN87/SUMPRODUCT($BM87:$BP87,$CL87:$CO87)))","v":""},{"$f":"IF('Project Scope'!$C87=\"\",\"\",IF(SUMPRODUCT($BM87:$BP87,$CL87:$CO87)=0,0,BP87*CO87/SUMPRODUCT($BM87:$BP87,$CL87:$CO87)))","v":""},{"$f":"IF('Project Scope'!$C87=\"\",\"\",Benefits($BZ87,$CB87,$CC87,$CE87,$CF87,$CG87,$CH87,$CI87,$CJ87,$CK87,$BJ87,$CP87,$CQ87,$CR87,$CS87,$BU87,$BV87,$BW87,$BX87,$BY87,$E87))","v":""},"","","","","","","","",null,{"$f":"IF('Project Scope'!$C87=\"\",\"\",SUM('Project Scope'!$BB87,'Project Scope'!$BC87))","v":""},{"$f":"IF('Project Scope'!$C87=\"\",\"\",SUM('Project Scope'!$BH87, 'Project Scope'!$AZ87,(IF(ISNUMBER('Project Scope'!$BA87),'Project Scope'!$BA87,0)*'Project Information'!$D$12)))","v":""},null,null,{"$f":"IF('Project Scope'!$C87=\"\",\"\",IF($J87<=0,0,(SUMPRODUCT($AV87:$BC87,--($AV87:$BC87>0))+$BE87)*$DK87/((-SUMPRODUCT($AV87:$BC87,--($AV87:$BC87<0))+$BG87+$BH87+$BI87)*$DK87)))","v":""},{"$f":"IF('Project Scope'!$C87=\"\",\"\",IF($K87<=0,0,(SUMPRODUCT($CT87:$DA87,--($CT87:$DA87>0))+$DC87)*$DK87/((-SUMPRODUCT($CT87:$DA87,--($CT87:$DA87<0))+$DE87+$DF87+$DG87)*$DK87)))","v":""},{"$f":"IF('Project Scope'!$C87=\"\",\"\",IF(AND($J87<=0,$K87<=0),0,(SUMPRODUCT($AV87:$BC87,--($AV87:$BC87>0))+$BE87+SUMPRODUCT($CT87:$DA87,--($CT87:$DA87>0))+$DC87)*$DK87/((-SUMPRODUCT($AV87:$BC87,--($AV87:$BC87<0))+$BG87+$BH87+$BI87-SUMPRODUCT($CT87:$DA87,--($CT87:$DA87<0))+$DE87+$DF87+$DG87)*$DK87)))","v":""},{"$f":"IF('Project Scope'!$C87=\"\",\"\",IF(NetOrGross=\"Net\",(1-Z87+AA87),1))","v":""}]
[{"$f":"'Project Scope'!$B88","v":81},{"$f":"IF('Project Scope'!$C88=\"\",\"\",'Project Scope'!$C88)","v":""},{"$f":"IF('Project Scope'!$C88=\"\",\"\",'Project Scope'!$H88)","v":""},{"$f":"IF(ISNUMBER(SEARCH(\"Bay\",'Project Scope'!$Q88)),\"Bay\",IF('Project Scope'!C88=\"\",\"\",'Project Scope'!E88))","v":""},{"$f":"IF('Project Scope'!$C88=\"\",\"\",\"Com\")","v":""},{"$f":"IF('Project Scope'!$C88=\"\",\"\",'Project Scope'!$L88)","v":""},{"$f":"IF('Project Scope'!$C88=\"\",\"\",IF('Project Scope'!$CJ88=\"\",0,'Project Scope'!$CJ88))","v":""},{"$f":"IF('Project Scope'!$C88=\"\",\"\",IF('Project Scope'!$N88=\"\",0,'Project Scope'!$N88))","v":""},{"$f":"IF('Project Scope'!$C88=\"\",\"\",IF('Project Scope'!$CK88=\"\",0,'Project Scope'!$CK88))","v":""},{"$f":"IF('Project Scope'!$C88=\"\",\"\",IF('Project Scope'!$AO88=\"\",0,'Project Scope'!$AO88))","v":""},{"$f":"IF('Project Scope'!$C88=\"\",\"\",IF('Project Scope'!$AX88=\"\",0,'Project Scope'!$AX88))","v":""},{"$f":"IF('Project Scope'!$C88=\"\",\"\",IF('Project Scope'!$M88=\"\",0,'Project Scope'!$M88))","v":""},{"$f":"IF('Project Scope'!$C88=\"\",\"\",IF(COUNTIF('CBAT Lookups'!$B$5:$B$12,\"Fixtures-\"&CBAT!$D88)=1,VLOOKUP(\"Fixtures-\"&CBAT!$D88,'CBAT Lookups'!$B$5:$L$12,11),0))","v":""},{"$f":"IF('Project Scope'!$C88=\"\",\"\",(IF(COUNTIF('CBAT Lookups'!$B$5:$B$12,\"Fixtures-\"&CBAT!$D88)=1,VLOOKUP(\"Fixtures-\"&CBAT!$D88,'CBAT Lookups'!$B$5:$K$12,2),0))*VLOOKUP($F88,'CBAT Lookups'!$B$17:$K$19,2))","v":""},{"$f":"IF('Project Scope'!$C88=\"\",\"\",(IF(COUNTIF('CBAT Lookups'!$B$5:$B$12,\"Fixtures-\"&CBAT!$D88)=1,VLOOKUP(\"Fixtures-\"&CBAT!$D88,'CBAT Lookups'!$B$5:$K$12,3),0))*VLOOKUP($F88,'CBAT Lookups'!$B$17:$K$19,3))","v":""},{"$f":"IF('Project Scope'!$C88=\"\",\"\",(IF(COUNTIF('CBAT Lookups'!$B$5:$B$12,\"Fixtures-\"&CBAT!$D88)=1,VLOOKUP(\"Fixtures-\"&CBAT!$D88,'CBAT Lookups'!$B$5:$K$12,4),0)))","v":""},{"$f":"IF('Project Scope'!$C88=\"\",\"\",(IF(COUNTIF('CBAT Lookups'!$B$5:$B$12,\"Fixtures-\"&CBAT!$D88)=1,VLOOKUP(\"Fixtures-\"&CBAT!$D88,'CBAT Lookups'!$B$5:$K$12,5),0)))","v":""},{"$f":"IF('Project Scope'!$C88=\"\",\"\",(IF(COUNTIF('CBAT Lookups'!$B$5:$B$12,\"Fixtures-\"&CBAT!$D88)=1,VLOOKUP(\"Fixtures-\"&CBAT!$D88,'CBAT Lookups'!$B$5:$K$12,6),0)))","v":""},{"$f":"IF('Project Scope'!$C88=\"\",\"\",IF(COUNTIF('CBAT Lookups'!$B$5:$B$12,\"Fixtures-\"&CBAT!$D88)=1,VLOOKUP(\"Fixtures-\"&CBAT!$D88,'CBAT Lookups'!$B$5:$K$12,7),0))","v":""},{"$f":"IF('Project Scope'!$C88=\"\",\"\",IF(VLOOKUP($F88,'CBAT Lookups'!$B$17:$K$19,8)=\"W\",1,IF(COUNTIF('CBAT Lookups'!$B$5:$B$12,\"Fixtures-\"&CBAT!$D88)=1,VLOOKUP(\"Fixtures-\"&CBAT!$D88,'CBAT Lookups'!$B$5:$K$12,8),0)*VLOOKUP($F88,'CBAT Lookups'!$B$17:$K$19,8)))","v":""},{"$f":"IF('Project Scope'!$C88=\"\",\"\",IF(VLOOKUP($F88,'CBAT Lookups'!$B$17:$K$19,9)=\"W\",1,IF(COUNTIF('CBAT Lookups'!$B$5:$B$12,\"Fixtures-\"&CBAT!$D88)=1,VLOOKUP(\"Fixtures-\"&CBAT!$D88,'CBAT Lookups'!$B$5:$K$12,9),0)*VLOOKUP($F88,'CBAT Lookups'!$B$17:$K$19,9)))","v":""},{"$f":"IF('Project Scope'!$C88=\"\",\"\",IF(COUNTIF('CBAT Lookups'!$B$5:$B$12,\"Fixtures-\"&CBAT!$D88)=1,VLOOKUP(\"Fixtures-\"&CBAT!$D88,'CBAT Lookups'!$B$5:$K$12,10),0)*VLOOKUP($F88,'CBAT Lookups'!$B$17:$K$19,10))","v":""},{"$f":"IF('Project Scope'!$C88=\"\",\"\",IF(COUNTIF('CBAT Lookups'!$B$5:$B$12,\"Fixtures-\"&CBAT!$D88)=1,VLOOKUP(\"Fixtures-\"&CBAT!$D88,'CBAT Lookups'!$B$5:$O$12,12),0))","v":""},{"$f":"IF('Project Scope'!$C88=\"\",\"\",IF(COUNTIF('CBAT Lookups'!$B$5:$B$12,\"Fixtures-\"&CBAT!$D88)=1,VLOOKUP(\"Fixtures-\"&CBAT!$D88,'CBAT Lookups'!$B$5:$O$12,13),0))","v":""},{"$f":"IF('Project Scope'!$C88=\"\",\"\",IF(COUNTIF('CBAT Lookups'!$B$5:$B$12,\"Fixtures-\"&CBAT!$D88)=1,VLOOKUP(\"Fixtures-\"&CBAT!$D88,'CBAT Lookups'!$B$5:$O$12,14),0))","v":""},{"$f":"IF('Project Scope'!$C88=\"\",\"\",'TRM Data'!$U$3)","v":""},{"$f":"IF('Project Scope'!$C88=\"\",\"\",'TRM Data'!$V$3)","v":""},{"$f":"IF('Project Scope'!$C88=\"\",\"\",IF($J88<=0,0,MAX(0,(($G88*$H88/1000)-($I88*$J88/1000))*$L88)*$U88)+($AF88/0.003412))","v":""},{"$f":"IF('Project Scope'!$C88=\"\",\"\",IF($J88<=0,0,MAX(0,(($G88*$H88/1000)-($I88*$J88/1000)))*$T88))","v":""},{"$f":"IF('Project Scope'!$C88=\"\",\"\",IF($J88<=0,0,MAX(0,(($G88*$H88/1000)-($I88*$J88/1000))*$N88)))","v":""},{"$f":"IF('Project Scope'!$C88=\"\",\"\",IF($J88<=0,0,MAX(0,(($G88*$H88/1000)-($I88*$J88/1000))*$O88)*$T88))","v":""},{"$f":"IF('Project Scope'!$C88=\"\",\"\",IF(OR($J88<=0,'Project Information'!$D$44=\"\"),0,-1*MAX(0,(($G88*$H88/1000)-($I88*$J88/1000))*$L88)*$V88*VLOOKUP('Project Information'!$D$44,'CBAT Lookups'!$A$23:$H$30,2)))","v":""},{"$f":"IF('Project Scope'!$C88=\"\",\"\",IF(OR($J88<=0,'Project Information'!$D$44=\"\"),0,-1*MAX(0,(($G88*$H88/1000)-($I88*$J88/1000))*$L88)*$V88*VLOOKUP('Project Information'!$D$44,'CBAT Lookups'!$A$23:$H$30,3)))","v":""},{"$f":"IF('Project Scope'!$C88=\"\",\"\",IF(OR($J88<=0,'Project Information'!$D$44=\"\"),0,-1*MAX(0,(($G88*$H88/1000)-($I88*$J88/1000))*$L88)*$V88*VLOOKUP('Project Information'!$D$44,'CBAT Lookups'!$A$23:$H$30,4)))","v":""},{"$f":"IF('Project Scope'!$C88=\"\",\"\",IF(OR($J88<=0,'Project Information'!$D$44=\"\"),0,-1*MAX(0,(($G88*$H88/1000)-($I88*$J88/1000))*$L88)*$V88*VLOOKUP('Project Information'!$D$44,'CBAT Lookups'!$A$23:$H$30,5)))","v":""},{"$f":"IF('Project Scope'!$C88=\"\",\"\",IF(OR($J88<=0,'Project Information'!$D$44=\"\"),0,-1*MAX(0,(($G88*$H88/1000)-($I88*$J88/1000))*$L88)*$V88*VLOOKUP('Project Information'!$D$44,'CBAT Lookups'!$A$23:$H$30,6)))","v":""},{"$f":"IF('Project Scope'!$C88=\"\",\"\",IF(OR($J88<=0,'Project Information'!$D$44=\"\"),0,-1*MAX(0,(($G88*$H88/1000)-($I88*$J88/1000))*$L88)*$V88*VLOOKUP('Project Information'!$D$44,'CBAT Lookups'!$A$23:$H$30,7)))","v":""},{"$f":"IF('Project Scope'!$C88=\"\",\"\",IF(OR($J88<=0,'Project Information'!$D$44=\"\"),0,-1*MAX(0,(($G88*$H88/1000)-($I88*$J88/1000))*$L88)*$V88*VLOOKUP('Project Information'!$D$44,'CBAT Lookups'!$A$23:$H$30,8)))","v":""},null,{"$f":"IF('Project Scope'!$C88=\"\",\"\",VLOOKUP($F88,'CBAT Lookups'!$B$17:$K$19,4))","v":""},{"$f":"IF('Project Scope'!$C88=\"\",\"\",VLOOKUP($F88,'CBAT Lookups'!$B$17:$K$19,5))","v":""},{"$f":"IF('Project Scope'!$C88=\"\",\"\",VLOOKUP($F88,'CBAT Lookups'!$B$17:$K$19,6))","v":""},{"$f":"IF('Project Scope'!$C88=\"\",\"\",VLOOKUP($F88,'CBAT Lookups'!$B$17:$K$19,7))","v":""},{"$f":"IF('Project Scope'!$C88=\"\",\"\",IF(SUMPRODUCT($P88:$S88,$AN88:$AQ88)=0,0,P88*AN88/SUMPRODUCT($P88:$S88,$AN88:$AQ88)))","v":""},{"$f":"IF('Project Scope'!$C88=\"\",\"\",IF(SUMPRODUCT($P88:$S88,$AN88:$AQ88)=0,0,Q88*AO88/SUMPRODUCT($P88:$S88,$AN88:$AQ88)))","v":""},{"$f":"IF('Project Scope'!$C88=\"\",\"\",IF(SUMPRODUCT($P88:$S88,$AN88:$AQ88)=0,0,R88*AP88/SUMPRODUCT($P88:$S88,$AN88:$AQ88)))","v":""},{"$f":"IF('Project Scope'!$C88=\"\",\"\",IF(SUMPRODUCT($P88:$S88,$AN88:$AQ88)=0,0,S88*AQ88/SUMPRODUCT($P88:$S88,$AN88:$AQ88)))","v":""},{"$f":"IF('Project Scope'!$C88=\"\",\"\",Benefits($AB88,$AD88,$AE88,$AG88,$AH88,$AI88,$AJ88,$AK88,$AL88,$AM88,$M88,$AR88,$AS88,$AT88,$AU88,$W88,$X88,$Y88,$Z88,$AA88,$E88))","v":""},"","","","","","","","",null,{"$f":"IF('Project Scope'!$C88=\"\",\"\",SUM('Project Scope'!$AT88,'Project Scope'!$AU88))","v":""},{"$f":"IF('Project Scope'!$C88=\"\",\"\",SUM('Project Scope'!$BG88, 'Project Scope'!$AR88,(IF(ISNUMBER('Project Scope'!$AS88),'Project Scope'!$AS88,0)*'Project Information'!$D$12)))","v":""},null,null,{"$f":"IF('Project Scope'!$C88=\"\",\"\",IF(COUNTIF('CBAT Lookups'!$B$5:$B$12,\"Controls-\"&CBAT!$D88)=1,VLOOKUP(\"Controls-\"&CBAT!$D88,'CBAT Lookups'!$B$5:$L$12,11),0))","v":""},{"$f":"IF('Project Scope'!$C88=\"\",\"\",IF(COUNTIF('CBAT Lookups'!$B$5:$B$12,\"Controls-\"&CBAT!$D88)=1,VLOOKUP(\"Controls-\"&CBAT!$D88,'CBAT Lookups'!$B$5:$K$12,2),0)*VLOOKUP($F88,'CBAT Lookups'!$B$17:$K$19,2))","v":""},{"$f":"IF('Project Scope'!$C88=\"\",\"\",IF(COUNTIF('CBAT Lookups'!$B$5:$B$12,\"Controls-\"&CBAT!$D88)=1,VLOOKUP(\"Controls-\"&CBAT!$D88,'CBAT Lookups'!$B$5:$K$12,3),0)*VLOOKUP($F88,'CBAT Lookups'!$B$17:$K$19,3))","v":""},{"$f":"IF('Project Scope'!$C88=\"\",\"\",IF(COUNTIF('CBAT Lookups'!$B$5:$B$12,\"Controls-\"&CBAT!$D88)=1,VLOOKUP(\"Controls-\"&CBAT!$D88,'CBAT Lookups'!$B$5:$K$12,4),0))","v":""},{"$f":"IF('Project Scope'!$C88=\"\",\"\",IF(COUNTIF('CBAT Lookups'!$B$5:$B$12,\"Controls-\"&CBAT!$D88)=1,VLOOKUP(\"Controls-\"&CBAT!$D88,'CBAT Lookups'!$B$5:$K$12,5),0))","v":""},{"$f":"IF('Project Scope'!$C88=\"\",\"\",IF(COUNTIF('CBAT Lookups'!$B$5:$B$12,\"Controls-\"&CBAT!$D88)=1,VLOOKUP(\"Controls-\"&CBAT!$D88,'CBAT Lookups'!$B$5:$K$12,6),0))","v":""},{"$f":"IF('Project Scope'!$C88=\"\",\"\",IF(COUNTIF('CBAT Lookups'!$B$5:$B$12,\"Controls-\"&CBAT!$D88)=1,VLOOKUP(\"Controls-\"&CBAT!$D88,'CBAT Lookups'!$B$5:$K$12,7),0))","v":""},{"$f":"IF('Project Scope'!$C88=\"\",\"\",IF(VLOOKUP($F88,'CBAT Lookups'!$B$17:$K$19,8)=\"W\",1,IF(COUNTIF('CBAT Lookups'!$B$5:$B$12,\"Controls-\"&CBAT!$D88)=1,VLOOKUP(\"Controls-\"&CBAT!$D88,'CBAT Lookups'!$B$5:$K$12,8),0)*VLOOKUP($F88,'CBAT Lookups'!$B$17:$K$19,8)))","v":""},{"$f":"IF('Project Scope'!$C88=\"\",\"\",IF(VLOOKUP($F88,'CBAT Lookups'!$B$17:$K$19,9)=\"W\",1,IF(COUNTIF('CBAT Lookups'!$B$5:$B$12,\"Controls-\"&CBAT!$D88)=1,VLOOKUP(\"Controls-\"&CBAT!$D88,'CBAT Lookups'!$B$5:$K$12,9),0)*VLOOKUP($F88,'CBAT Lookups'!$B$17:$K$19,9)))","v":""},{"$f":"IF('Project Scope'!$C88=\"\",\"\",IF(COUNTIF('CBAT Lookups'!$B$5:$B$12,\"Controls-\"&CBAT!$D88)=1,VLOOKUP(\"Controls-\"&CBAT!$D88,'CBAT Lookups'!$B$5:$K$12,10),0)*VLOOKUP($F88,'CBAT Lookups'!$B$17:$K$19,10))","v":""},{"$f":"IF('Project Scope'!$C88=\"\",\"\",VLOOKUP($C88,'CBAT Lookups'!$A$33:$B$57,2))","v":""},{"$f":"IF('Project Scope'!$C88=\"\",\"\",IF(COUNTIF('CBAT Lookups'!$B$5:$B$12,\"Controls-\"&CBAT!$D88)=1,VLOOKUP(\"Controls-\"&CBAT!$D88,'CBAT Lookups'!$B$5:$O$12,12),0))","v":""},{"$f":"IF('Project Scope'!$C88=\"\",\"\",IF(COUNTIF('CBAT Lookups'!$B$5:$B$12,\"Controls-\"&CBAT!$D88)=1,VLOOKUP(\"Controls-\"&CBAT!$D88,'CBAT Lookups'!$B$5:$O$12,13),0))","v":""},{"$f":"IF('Project Scope'!$C88=\"\",\"\",IF(COUNTIF('CBAT Lookups'!$B$5:$B$12,\"Controls-\"&CBAT!$D88)=1,VLOOKUP(\"Controls-\"&CBAT!$D88,'CBAT Lookups'!$B$5:$O$12,14),0))","v":""},{"$f":"IF('Project Scope'!$C88=\"\",\"\",'TRM Data'!$U$3)","v":""},{"$f":"IF('Project Scope'!$C88=\"\",\"\",'TRM Data'!$V$3)","v":""},{"$f":"IF('Project Scope'!$C88=\"\",\"\",IF($K88<=0,0,MAX(0,(IF(AND($I88>0,$J88>0),($I88*$J88)/1000,($G88*$H88)/1000)*$L88))*$BT88*$BR88)+($CD88/0.003412))","v":""},{"$f":"IF('Project Scope'!$C88=\"\",\"\",IF($K88<=0,0,MAX(0,IF(AND($I88>0,$J88>0),($I88*$J88)/1000,($G88*$H88)/1000))*$BQ88))","v":""},{"$f":"IF('Project Scope'!$C88=\"\",\"\",IF($K88<=0,0,MAX(0,IF(AND($I88>0,$J88>0),($I88*$J88)/1000,($G88*$H88)/1000))*$BK88))","v":""},{"$f":"IF('Project Scope'!$C88=\"\",\"\",IF($K88<=0,0,MAX(0,IF(AND($I88>0,$J88>0),($I88*$J88)/1000,($G88*$H88)/1000))*$BL88*$BQ88))","v":""},{"$f":"IF('Project Scope'!$C88=\"\",\"\",IF(OR($K88<=0,'Project Information'!$D$44=\"\"),0,-1*MAX(0,IF(AND($I88>0,$J88>0),($I88*$J88)/1000,($G88*$H88)/1000))*$BT88*$L88*$BS88*VLOOKUP('Project Information'!$D$44,'CBAT Lookups'!$A$23:$H$30,2)))","v":""},{"$f":"IF('Project Scope'!$C88=\"\",\"\",IF(OR($K88<=0,'Project Information'!$D$44=\"\"),0,-1*MAX(0,IF(AND($I88>0,$J88>0),($I88*$J88)/1000,($G88*$H88)/1000))*$BT88*$L88*$BS88*VLOOKUP('Project Information'!$D$44,'CBAT Lookups'!$A$23:$H$30,3)))","v":""},{"$f":"IF('Project Scope'!$C88=\"\",\"\",IF(OR($K88<=0,'Project Information'!$D$44=\"\"),0,-1*MAX(0,IF(AND($I88>0,$J88>0),($I88*$J88)/1000,($G88*$H88)/1000))*$BT88*$L88*$BS88*VLOOKUP('Project Information'!$D$44,'CBAT Lookups'!$A$23:$H$30,4)))","v":""},{"$f":"IF('Project Scope'!$C88=\"\",\"\",IF(OR($K88<=0,'Project Information'!$D$44=\"\"),0,-1*MAX(0,IF(AND($I88>0,$J88>0),($I88*$J88)/1000,($G88*$H88)/1000))*$BT88*$L88*$BS88*VLOOKUP('Project Information'!$D$44,'CBAT Lookups'!$A$23:$H$30,5)))","v":""},{"$f":"IF('Project Scope'!$C88=\"\",\"\",IF(OR($K88<=0,'Project Information'!$D$44=\"\"),0,-1*MAX(0,IF(AND($I88>0,$J88>0),($I88*$J88)/1000,($G88*$H88)/1000))*$BT88*$L88*$BS88*VLOOKUP('Project Information'!$D$44,'CBAT Lookups'!$A$23:$H$30,6)))","v":""},{"$f":"IF('Project Scope'!$C88=\"\",\"\",IF(OR($K88<=0,'Project Information'!$D$44=\"\"),0,-1*MAX(0,IF(AND($I88>0,$J88>0),($I88*$J88)/1000,($G88*$H88)/1000))*$BT88*$L88*$BS88*VLOOKUP('Project Information'!$D$44,'CBAT Lookups'!$A$23:$H$30,7)))","v":""},{"$f":"IF('Project Scope'!$C88=\"\",\"\",IF(OR($K88<=0,'Project Information'!$D$44=\"\"),0,-1*MAX(0,IF(AND($I88>0,$J88>0),($I88*$J88)/1000,($G88*$H88)/1000))*$BT88*$L88*$BS88*VLOOKUP('Project Information'!$D$44,'CBAT Lookups'!$A$23:$H$30,8)))","v":""},null,{"$f":"IF('Project Scope'!$C88=\"\",\"\",VLOOKUP($F88,'CBAT Lookups'!$B$17:$K$19,4))","v":""},{"$f":"IF('Project Scope'!$C88=\"\",\"\",VLOOKUP($F88,'CBAT Lookups'!$B$17:$K$19,5))","v":""},{"$f":"IF('Project Scope'!$C88=\"\",\"\",VLOOKUP($F88,'CBAT Lookups'!$B$17:$K$19,6))","v":""},{"$f":"IF('Project Scope'!$C88=\"\",\"\",VLOOKUP($F88,'CBAT Lookups'!$B$17:$K$19,7))","v":""},{"$f":"IF('Project Scope'!$C88=\"\",\"\",IF(SUMPRODUCT($BM88:$BP88,$CL88:$CO88)=0,0,BM88*CL88/SUMPRODUCT($BM88:$BP88,$CL88:$CO88)))","v":""},{"$f":"IF('Project Scope'!$C88=\"\",\"\",IF(SUMPRODUCT($BM88:$BP88,$CL88:$CO88)=0,0,BN88*CM88/SUMPRODUCT($BM88:$BP88,$CL88:$CO88)))","v":""},{"$f":"IF('Project Scope'!$C88=\"\",\"\",IF(SUMPRODUCT($BM88:$BP88,$CL88:$CO88)=0,0,BO88*CN88/SUMPRODUCT($BM88:$BP88,$CL88:$CO88)))","v":""},{"$f":"IF('Project Scope'!$C88=\"\",\"\",IF(SUMPRODUCT($BM88:$BP88,$CL88:$CO88)=0,0,BP88*CO88/SUMPRODUCT($BM88:$BP88,$CL88:$CO88)))","v":""},{"$f":"IF('Project Scope'!$C88=\"\",\"\",Benefits($BZ88,$CB88,$CC88,$CE88,$CF88,$CG88,$CH88,$CI88,$CJ88,$CK88,$BJ88,$CP88,$CQ88,$CR88,$CS88,$BU88,$BV88,$BW88,$BX88,$BY88,$E88))","v":""},"","","","","","","","",null,{"$f":"IF('Project Scope'!$C88=\"\",\"\",SUM('Project Scope'!$BB88,'Project Scope'!$BC88))","v":""},{"$f":"IF('Project Scope'!$C88=\"\",\"\",SUM('Project Scope'!$BH88, 'Project Scope'!$AZ88,(IF(ISNUMBER('Project Scope'!$BA88),'Project Scope'!$BA88,0)*'Project Information'!$D$12)))","v":""},null,null,{"$f":"IF('Project Scope'!$C88=\"\",\"\",IF($J88<=0,0,(SUMPRODUCT($AV88:$BC88,--($AV88:$BC88>0))+$BE88)*$DK88/((-SUMPRODUCT($AV88:$BC88,--($AV88:$BC88<0))+$BG88+$BH88+$BI88)*$DK88)))","v":""},{"$f":"IF('Project Scope'!$C88=\"\",\"\",IF($K88<=0,0,(SUMPRODUCT($CT88:$DA88,--($CT88:$DA88>0))+$DC88)*$DK88/((-SUMPRODUCT($CT88:$DA88,--($CT88:$DA88<0))+$DE88+$DF88+$DG88)*$DK88)))","v":""},{"$f":"IF('Project Scope'!$C88=\"\",\"\",IF(AND($J88<=0,$K88<=0),0,(SUMPRODUCT($AV88:$BC88,--($AV88:$BC88>0))+$BE88+SUMPRODUCT($CT88:$DA88,--($CT88:$DA88>0))+$DC88)*$DK88/((-SUMPRODUCT($AV88:$BC88,--($AV88:$BC88<0))+$BG88+$BH88+$BI88-SUMPRODUCT($CT88:$DA88,--($CT88:$DA88<0))+$DE88+$DF88+$DG88)*$DK88)))","v":""},{"$f":"IF('Project Scope'!$C88=\"\",\"\",IF(NetOrGross=\"Net\",(1-Z88+AA88),1))","v":""}]
[{"$f":"'Project Scope'!$B89","v":82},{"$f":"IF('Project Scope'!$C89=\"\",\"\",'Project Scope'!$C89)","v":""},{"$f":"IF('Project Scope'!$C89=\"\",\"\",'Project Scope'!$H89)","v":""},{"$f":"IF(ISNUMBER(SEARCH(\"Bay\",'Project Scope'!$Q89)),\"Bay\",IF('Project Scope'!C89=\"\",\"\",'Project Scope'!E89))","v":""},{"$f":"IF('Project Scope'!$C89=\"\",\"\",\"Com\")","v":""},{"$f":"IF('Project Scope'!$C89=\"\",\"\",'Project Scope'!$L89)","v":""},{"$f":"IF('Project Scope'!$C89=\"\",\"\",IF('Project Scope'!$CJ89=\"\",0,'Project Scope'!$CJ89))","v":""},{"$f":"IF('Project Scope'!$C89=\"\",\"\",IF('Project Scope'!$N89=\"\",0,'Project Scope'!$N89))","v":""},{"$f":"IF('Project Scope'!$C89=\"\",\"\",IF('Project Scope'!$CK89=\"\",0,'Project Scope'!$CK89))","v":""},{"$f":"IF('Project Scope'!$C89=\"\",\"\",IF('Project Scope'!$AO89=\"\",0,'Project Scope'!$AO89))","v":""},{"$f":"IF('Project Scope'!$C89=\"\",\"\",IF('Project Scope'!$AX89=\"\",0,'Project Scope'!$AX89))","v":""},{"$f":"IF('Project Scope'!$C89=\"\",\"\",IF('Project Scope'!$M89=\"\",0,'Project Scope'!$M89))","v":""},{"$f":"IF('Project Scope'!$C89=\"\",\"\",IF(COUNTIF('CBAT Lookups'!$B$5:$B$12,\"Fixtures-\"&CBAT!$D89)=1,VLOOKUP(\"Fixtures-\"&CBAT!$D89,'CBAT Lookups'!$B$5:$L$12,11),0))","v":""},{"$f":"IF('Project Scope'!$C89=\"\",\"\",(IF(COUNTIF('CBAT Lookups'!$B$5:$B$12,\"Fixtures-\"&CBAT!$D89)=1,VLOOKUP(\"Fixtures-\"&CBAT!$D89,'CBAT Lookups'!$B$5:$K$12,2),0))*VLOOKUP($F89,'CBAT Lookups'!$B$17:$K$19,2))","v":""},{"$f":"IF('Project Scope'!$C89=\"\",\"\",(IF(COUNTIF('CBAT Lookups'!$B$5:$B$12,\"Fixtures-\"&CBAT!$D89)=1,VLOOKUP(\"Fixtures-\"&CBAT!$D89,'CBAT Lookups'!$B$5:$K$12,3),0))*VLOOKUP($F89,'CBAT Lookups'!$B$17:$K$19,3))","v":""},{"$f":"IF('Project Scope'!$C89=\"\",\"\",(IF(COUNTIF('CBAT Lookups'!$B$5:$B$12,\"Fixtures-\"&CBAT!$D89)=1,VLOOKUP(\"Fixtures-\"&CBAT!$D89,'CBAT Lookups'!$B$5:$K$12,4),0)))","v":""},{"$f":"IF('Project Scope'!$C89=\"\",\"\",(IF(COUNTIF('CBAT Lookups'!$B$5:$B$12,\"Fixtures-\"&CBAT!$D89)=1,VLOOKUP(\"Fixtures-\"&CBAT!$D89,'CBAT Lookups'!$B$5:$K$12,5),0)))","v":""},{"$f":"IF('Project Scope'!$C89=\"\",\"\",(IF(COUNTIF('CBAT Lookups'!$B$5:$B$12,\"Fixtures-\"&CBAT!$D89)=1,VLOOKUP(\"Fixtures-\"&CBAT!$D89,'CBAT Lookups'!$B$5:$K$12,6),0)))","v":""},{"$f":"IF('Project Scope'!$C89=\"\",\"\",IF(COUNTIF('CBAT Lookups'!$B$5:$B$12,\"Fixtures-\"&CBAT!$D89)=1,VLOOKUP(\"Fixtures-\"&CBAT!$D89,'CBAT Lookups'!$B$5:$K$12,7),0))","v":""},{"$f":"IF('Project Scope'!$C89=\"\",\"\",IF(VLOOKUP($F89,'CBAT Lookups'!$B$17:$K$19,8)=\"W\",1,IF(COUNTIF('CBAT Lookups'!$B$5:$B$12,\"Fixtures-\"&CBAT!$D89)=1,VLOOKUP(\"Fixtures-\"&CBAT!$D89,'CBAT Lookups'!$B$5:$K$12,8),0)*VLOOKUP($F89,'CBAT Lookups'!$B$17:$K$19,8)))","v":""},{"$f":"IF('Project Scope'!$C89=\"\",\"\",IF(VLOOKUP($F89,'CBAT Lookups'!$B$17:$K$19,9)=\"W\",1,IF(COUNTIF('CBAT Lookups'!$B$5:$B$12,\"Fixtures-\"&CBAT!$D89)=1,VLOOKUP(\"Fixtures-\"&CBAT!$D89,'CBAT Lookups'!$B$5:$K$12,9),0)*VLOOKUP($F89,'CBAT Lookups'!$B$17:$K$19,9)))","v":""},{"$f":"IF('Project Scope'!$C89=\"\",\"\",IF(COUNTIF('CBAT Lookups'!$B$5:$B$12,\"Fixtures-\"&CBAT!$D89)=1,VLOOKUP(\"Fixtures-\"&CBAT!$D89,'CBAT Lookups'!$B$5:$K$12,10),0)*VLOOKUP($F89,'CBAT Lookups'!$B$17:$K$19,10))","v":""},{"$f":"IF('Project Scope'!$C89=\"\",\"\",IF(COUNTIF('CBAT Lookups'!$B$5:$B$12,\"Fixtures-\"&CBAT!$D89)=1,VLOOKUP(\"Fixtures-\"&CBAT!$D89,'CBAT Lookups'!$B$5:$O$12,12),0))","v":""},{"$f":"IF('Project Scope'!$C89=\"\",\"\",IF(COUNTIF('CBAT Lookups'!$B$5:$B$12,\"Fixtures-\"&CBAT!$D89)=1,VLOOKUP(\"Fixtures-\"&CBAT!$D89,'CBAT Lookups'!$B$5:$O$12,13),0))","v":""},{"$f":"IF('Project Scope'!$C89=\"\",\"\",IF(COUNTIF('CBAT Lookups'!$B$5:$B$12,\"Fixtures-\"&CBAT!$D89)=1,VLOOKUP(\"Fixtures-\"&CBAT!$D89,'CBAT Lookups'!$B$5:$O$12,14),0))","v":""},{"$f":"IF('Project Scope'!$C89=\"\",\"\",'TRM Data'!$U$3)","v":""},{"$f":"IF('Project Scope'!$C89=\"\",\"\",'TRM Data'!$V$3)","v":""},{"$f":"IF('Project Scope'!$C89=\"\",\"\",IF($J89<=0,0,MAX(0,(($G89*$H89/1000)-($I89*$J89/1000))*$L89)*$U89)+($AF89/0.003412))","v":""},{"$f":"IF('Project Scope'!$C89=\"\",\"\",IF($J89<=0,0,MAX(0,(($G89*$H89/1000)-($I89*$J89/1000)))*$T89))","v":""},{"$f":"IF('Project Scope'!$C89=\"\",\"\",IF($J89<=0,0,MAX(0,(($G89*$H89/1000)-($I89*$J89/1000))*$N89)))","v":""},{"$f":"IF('Project Scope'!$C89=\"\",\"\",IF($J89<=0,0,MAX(0,(($G89*$H89/1000)-($I89*$J89/1000))*$O89)*$T89))","v":""},{"$f":"IF('Project Scope'!$C89=\"\",\"\",IF(OR($J89<=0,'Project Information'!$D$44=\"\"),0,-1*MAX(0,(($G89*$H89/1000)-($I89*$J89/1000))*$L89)*$V89*VLOOKUP('Project Information'!$D$44,'CBAT Lookups'!$A$23:$H$30,2)))","v":""},{"$f":"IF('Project Scope'!$C89=\"\",\"\",IF(OR($J89<=0,'Project Information'!$D$44=\"\"),0,-1*MAX(0,(($G89*$H89/1000)-($I89*$J89/1000))*$L89)*$V89*VLOOKUP('Project Information'!$D$44,'CBAT Lookups'!$A$23:$H$30,3)))","v":""},{"$f":"IF('Project Scope'!$C89=\"\",\"\",IF(OR($J89<=0,'Project Information'!$D$44=\"\"),0,-1*MAX(0,(($G89*$H89/1000)-($I89*$J89/1000))*$L89)*$V89*VLOOKUP('Project Information'!$D$44,'CBAT Lookups'!$A$23:$H$30,4)))","v":""},{"$f":"IF('Project Scope'!$C89=\"\",\"\",IF(OR($J89<=0,'Project Information'!$D$44=\"\"),0,-1*MAX(0,(($G89*$H89/1000)-($I89*$J89/1000))*$L89)*$V89*VLOOKUP('Project Information'!$D$44,'CBAT Lookups'!$A$23:$H$30,5)))","v":""},{"$f":"IF('Project Scope'!$C89=\"\",\"\",IF(OR($J89<=0,'Project Information'!$D$44=\"\"),0,-1*MAX(0,(($G89*$H89/1000)-($I89*$J89/1000))*$L89)*$V89*VLOOKUP('Project Information'!$D$44,'CBAT Lookups'!$A$23:$H$30,6)))","v":""},{"$f":"IF('Project Scope'!$C89=\"\",\"\",IF(OR($J89<=0,'Project Information'!$D$44=\"\"),0,-1*MAX(0,(($G89*$H89/1000)-($I89*$J89/1000))*$L89)*$V89*VLOOKUP('Project Information'!$D$44,'CBAT Lookups'!$A$23:$H$30,7)))","v":""},{"$f":"IF('Project Scope'!$C89=\"\",\"\",IF(OR($J89<=0,'Project Information'!$D$44=\"\"),0,-1*MAX(0,(($G89*$H89/1000)-($I89*$J89/1000))*$L89)*$V89*VLOOKUP('Project Information'!$D$44,'CBAT Lookups'!$A$23:$H$30,8)))","v":""},null,{"$f":"IF('Project Scope'!$C89=\"\",\"\",VLOOKUP($F89,'CBAT Lookups'!$B$17:$K$19,4))","v":""},{"$f":"IF('Project Scope'!$C89=\"\",\"\",VLOOKUP($F89,'CBAT Lookups'!$B$17:$K$19,5))","v":""},{"$f":"IF('Project Scope'!$C89=\"\",\"\",VLOOKUP($F89,'CBAT Lookups'!$B$17:$K$19,6))","v":""},{"$f":"IF('Project Scope'!$C89=\"\",\"\",VLOOKUP($F89,'CBAT Lookups'!$B$17:$K$19,7))","v":""},{"$f":"IF('Project Scope'!$C89=\"\",\"\",IF(SUMPRODUCT($P89:$S89,$AN89:$AQ89)=0,0,P89*AN89/SUMPRODUCT($P89:$S89,$AN89:$AQ89)))","v":""},{"$f":"IF('Project Scope'!$C89=\"\",\"\",IF(SUMPRODUCT($P89:$S89,$AN89:$AQ89)=0,0,Q89*AO89/SUMPRODUCT($P89:$S89,$AN89:$AQ89)))","v":""},{"$f":"IF('Project Scope'!$C89=\"\",\"\",IF(SUMPRODUCT($P89:$S89,$AN89:$AQ89)=0,0,R89*AP89/SUMPRODUCT($P89:$S89,$AN89:$AQ89)))","v":""},{"$f":"IF('Project Scope'!$C89=\"\",\"\",IF(SUMPRODUCT($P89:$S89,$AN89:$AQ89)=0,0,S89*AQ89/SUMPRODUCT($P89:$S89,$AN89:$AQ89)))","v":""},{"$f":"IF('Project Scope'!$C89=\"\",\"\",Benefits($AB89,$AD89,$AE89,$AG89,$AH89,$AI89,$AJ89,$AK89,$AL89,$AM89,$M89,$AR89,$AS89,$AT89,$AU89,$W89,$X89,$Y89,$Z89,$AA89,$E89))","v":""},"","","","","","","","",null,{"$f":"IF('Project Scope'!$C89=\"\",\"\",SUM('Project Scope'!$AT89,'Project Scope'!$AU89))","v":""},{"$f":"IF('Project Scope'!$C89=\"\",\"\",SUM('Project Scope'!$BG89, 'Project Scope'!$AR89,(IF(ISNUMBER('Project Scope'!$AS89),'Project Scope'!$AS89,0)*'Project Information'!$D$12)))","v":""},null,null,{"$f":"IF('Project Scope'!$C89=\"\",\"\",IF(COUNTIF('CBAT Lookups'!$B$5:$B$12,\"Controls-\"&CBAT!$D89)=1,VLOOKUP(\"Controls-\"&CBAT!$D89,'CBAT Lookups'!$B$5:$L$12,11),0))","v":""},{"$f":"IF('Project Scope'!$C89=\"\",\"\",IF(COUNTIF('CBAT Lookups'!$B$5:$B$12,\"Controls-\"&CBAT!$D89)=1,VLOOKUP(\"Controls-\"&CBAT!$D89,'CBAT Lookups'!$B$5:$K$12,2),0)*VLOOKUP($F89,'CBAT Lookups'!$B$17:$K$19,2))","v":""},{"$f":"IF('Project Scope'!$C89=\"\",\"\",IF(COUNTIF('CBAT Lookups'!$B$5:$B$12,\"Controls-\"&CBAT!$D89)=1,VLOOKUP(\"Controls-\"&CBAT!$D89,'CBAT Lookups'!$B$5:$K$12,3),0)*VLOOKUP($F89,'CBAT Lookups'!$B$17:$K$19,3))","v":""},{"$f":"IF('Project Scope'!$C89=\"\",\"\",IF(COUNTIF('CBAT Lookups'!$B$5:$B$12,\"Controls-\"&CBAT!$D89)=1,VLOOKUP(\"Controls-\"&CBAT!$D89,'CBAT Lookups'!$B$5:$K$12,4),0))","v":""},{"$f":"IF('Project Scope'!$C89=\"\",\"\",IF(COUNTIF('CBAT Lookups'!$B$5:$B$12,\"Controls-\"&CBAT!$D89)=1,VLOOKUP(\"Controls-\"&CBAT!$D89,'CBAT Lookups'!$B$5:$K$12,5),0))","v":""},{"$f":"IF('Project Scope'!$C89=\"\",\"\",IF(COUNTIF('CBAT Lookups'!$B$5:$B$12,\"Controls-\"&CBAT!$D89)=1,VLOOKUP(\"Controls-\"&CBAT!$D89,'CBAT Lookups'!$B$5:$K$12,6),0))","v":""},{"$f":"IF('Project Scope'!$C89=\"\",\"\",IF(COUNTIF('CBAT Lookups'!$B$5:$B$12,\"Controls-\"&CBAT!$D89)=1,VLOOKUP(\"Controls-\"&CBAT!$D89,'CBAT Lookups'!$B$5:$K$12,7),0))","v":""},{"$f":"IF('Project Scope'!$C89=\"\",\"\",IF(VLOOKUP($F89,'CBAT Lookups'!$B$17:$K$19,8)=\"W\",1,IF(COUNTIF('CBAT Lookups'!$B$5:$B$12,\"Controls-\"&CBAT!$D89)=1,VLOOKUP(\"Controls-\"&CBAT!$D89,'CBAT Lookups'!$B$5:$K$12,8),0)*VLOOKUP($F89,'CBAT Lookups'!$B$17:$K$19,8)))","v":""},{"$f":"IF('Project Scope'!$C89=\"\",\"\",IF(VLOOKUP($F89,'CBAT Lookups'!$B$17:$K$19,9)=\"W\",1,IF(COUNTIF('CBAT Lookups'!$B$5:$B$12,\"Controls-\"&CBAT!$D89)=1,VLOOKUP(\"Controls-\"&CBAT!$D89,'CBAT Lookups'!$B$5:$K$12,9),0)*VLOOKUP($F89,'CBAT Lookups'!$B$17:$K$19,9)))","v":""},{"$f":"IF('Project Scope'!$C89=\"\",\"\",IF(COUNTIF('CBAT Lookups'!$B$5:$B$12,\"Controls-\"&CBAT!$D89)=1,VLOOKUP(\"Controls-\"&CBAT!$D89,'CBAT Lookups'!$B$5:$K$12,10),0)*VLOOKUP($F89,'CBAT Lookups'!$B$17:$K$19,10))","v":""},{"$f":"IF('Project Scope'!$C89=\"\",\"\",VLOOKUP($C89,'CBAT Lookups'!$A$33:$B$57,2))","v":""},{"$f":"IF('Project Scope'!$C89=\"\",\"\",IF(COUNTIF('CBAT Lookups'!$B$5:$B$12,\"Controls-\"&CBAT!$D89)=1,VLOOKUP(\"Controls-\"&CBAT!$D89,'CBAT Lookups'!$B$5:$O$12,12),0))","v":""},{"$f":"IF('Project Scope'!$C89=\"\",\"\",IF(COUNTIF('CBAT Lookups'!$B$5:$B$12,\"Controls-\"&CBAT!$D89)=1,VLOOKUP(\"Controls-\"&CBAT!$D89,'CBAT Lookups'!$B$5:$O$12,13),0))","v":""},{"$f":"IF('Project Scope'!$C89=\"\",\"\",IF(COUNTIF('CBAT Lookups'!$B$5:$B$12,\"Controls-\"&CBAT!$D89)=1,VLOOKUP(\"Controls-\"&CBAT!$D89,'CBAT Lookups'!$B$5:$O$12,14),0))","v":""},{"$f":"IF('Project Scope'!$C89=\"\",\"\",'TRM Data'!$U$3)","v":""},{"$f":"IF('Project Scope'!$C89=\"\",\"\",'TRM Data'!$V$3)","v":""},{"$f":"IF('Project Scope'!$C89=\"\",\"\",IF($K89<=0,0,MAX(0,(IF(AND($I89>0,$J89>0),($I89*$J89)/1000,($G89*$H89)/1000)*$L89))*$BT89*$BR89)+($CD89/0.003412))","v":""},{"$f":"IF('Project Scope'!$C89=\"\",\"\",IF($K89<=0,0,MAX(0,IF(AND($I89>0,$J89>0),($I89*$J89)/1000,($G89*$H89)/1000))*$BQ89))","v":""},{"$f":"IF('Project Scope'!$C89=\"\",\"\",IF($K89<=0,0,MAX(0,IF(AND($I89>0,$J89>0),($I89*$J89)/1000,($G89*$H89)/1000))*$BK89))","v":""},{"$f":"IF('Project Scope'!$C89=\"\",\"\",IF($K89<=0,0,MAX(0,IF(AND($I89>0,$J89>0),($I89*$J89)/1000,($G89*$H89)/1000))*$BL89*$BQ89))","v":""},{"$f":"IF('Project Scope'!$C89=\"\",\"\",IF(OR($K89<=0,'Project Information'!$D$44=\"\"),0,-1*MAX(0,IF(AND($I89>0,$J89>0),($I89*$J89)/1000,($G89*$H89)/1000))*$BT89*$L89*$BS89*VLOOKUP('Project Information'!$D$44,'CBAT Lookups'!$A$23:$H$30,2)))","v":""},{"$f":"IF('Project Scope'!$C89=\"\",\"\",IF(OR($K89<=0,'Project Information'!$D$44=\"\"),0,-1*MAX(0,IF(AND($I89>0,$J89>0),($I89*$J89)/1000,($G89*$H89)/1000))*$BT89*$L89*$BS89*VLOOKUP('Project Information'!$D$44,'CBAT Lookups'!$A$23:$H$30,3)))","v":""},{"$f":"IF('Project Scope'!$C89=\"\",\"\",IF(OR($K89<=0,'Project Information'!$D$44=\"\"),0,-1*MAX(0,IF(AND($I89>0,$J89>0),($I89*$J89)/1000,($G89*$H89)/1000))*$BT89*$L89*$BS89*VLOOKUP('Project Information'!$D$44,'CBAT Lookups'!$A$23:$H$30,4)))","v":""},{"$f":"IF('Project Scope'!$C89=\"\",\"\",IF(OR($K89<=0,'Project Information'!$D$44=\"\"),0,-1*MAX(0,IF(AND($I89>0,$J89>0),($I89*$J89)/1000,($G89*$H89)/1000))*$BT89*$L89*$BS89*VLOOKUP('Project Information'!$D$44,'CBAT Lookups'!$A$23:$H$30,5)))","v":""},{"$f":"IF('Project Scope'!$C89=\"\",\"\",IF(OR($K89<=0,'Project Information'!$D$44=\"\"),0,-1*MAX(0,IF(AND($I89>0,$J89>0),($I89*$J89)/1000,($G89*$H89)/1000))*$BT89*$L89*$BS89*VLOOKUP('Project Information'!$D$44,'CBAT Lookups'!$A$23:$H$30,6)))","v":""},{"$f":"IF('Project Scope'!$C89=\"\",\"\",IF(OR($K89<=0,'Project Information'!$D$44=\"\"),0,-1*MAX(0,IF(AND($I89>0,$J89>0),($I89*$J89)/1000,($G89*$H89)/1000))*$BT89*$L89*$BS89*VLOOKUP('Project Information'!$D$44,'CBAT Lookups'!$A$23:$H$30,7)))","v":""},{"$f":"IF('Project Scope'!$C89=\"\",\"\",IF(OR($K89<=0,'Project Information'!$D$44=\"\"),0,-1*MAX(0,IF(AND($I89>0,$J89>0),($I89*$J89)/1000,($G89*$H89)/1000))*$BT89*$L89*$BS89*VLOOKUP('Project Information'!$D$44,'CBAT Lookups'!$A$23:$H$30,8)))","v":""},null,{"$f":"IF('Project Scope'!$C89=\"\",\"\",VLOOKUP($F89,'CBAT Lookups'!$B$17:$K$19,4))","v":""},{"$f":"IF('Project Scope'!$C89=\"\",\"\",VLOOKUP($F89,'CBAT Lookups'!$B$17:$K$19,5))","v":""},{"$f":"IF('Project Scope'!$C89=\"\",\"\",VLOOKUP($F89,'CBAT Lookups'!$B$17:$K$19,6))","v":""},{"$f":"IF('Project Scope'!$C89=\"\",\"\",VLOOKUP($F89,'CBAT Lookups'!$B$17:$K$19,7))","v":""},{"$f":"IF('Project Scope'!$C89=\"\",\"\",IF(SUMPRODUCT($BM89:$BP89,$CL89:$CO89)=0,0,BM89*CL89/SUMPRODUCT($BM89:$BP89,$CL89:$CO89)))","v":""},{"$f":"IF('Project Scope'!$C89=\"\",\"\",IF(SUMPRODUCT($BM89:$BP89,$CL89:$CO89)=0,0,BN89*CM89/SUMPRODUCT($BM89:$BP89,$CL89:$CO89)))","v":""},{"$f":"IF('Project Scope'!$C89=\"\",\"\",IF(SUMPRODUCT($BM89:$BP89,$CL89:$CO89)=0,0,BO89*CN89/SUMPRODUCT($BM89:$BP89,$CL89:$CO89)))","v":""},{"$f":"IF('Project Scope'!$C89=\"\",\"\",IF(SUMPRODUCT($BM89:$BP89,$CL89:$CO89)=0,0,BP89*CO89/SUMPRODUCT($BM89:$BP89,$CL89:$CO89)))","v":""},{"$f":"IF('Project Scope'!$C89=\"\",\"\",Benefits($BZ89,$CB89,$CC89,$CE89,$CF89,$CG89,$CH89,$CI89,$CJ89,$CK89,$BJ89,$CP89,$CQ89,$CR89,$CS89,$BU89,$BV89,$BW89,$BX89,$BY89,$E89))","v":""},"","","","","","","","",null,{"$f":"IF('Project Scope'!$C89=\"\",\"\",SUM('Project Scope'!$BB89,'Project Scope'!$BC89))","v":""},{"$f":"IF('Project Scope'!$C89=\"\",\"\",SUM('Project Scope'!$BH89, 'Project Scope'!$AZ89,(IF(ISNUMBER('Project Scope'!$BA89),'Project Scope'!$BA89,0)*'Project Information'!$D$12)))","v":""},null,null,{"$f":"IF('Project Scope'!$C89=\"\",\"\",IF($J89<=0,0,(SUMPRODUCT($AV89:$BC89,--($AV89:$BC89>0))+$BE89)*$DK89/((-SUMPRODUCT($AV89:$BC89,--($AV89:$BC89<0))+$BG89+$BH89+$BI89)*$DK89)))","v":""},{"$f":"IF('Project Scope'!$C89=\"\",\"\",IF($K89<=0,0,(SUMPRODUCT($CT89:$DA89,--($CT89:$DA89>0))+$DC89)*$DK89/((-SUMPRODUCT($CT89:$DA89,--($CT89:$DA89<0))+$DE89+$DF89+$DG89)*$DK89)))","v":""},{"$f":"IF('Project Scope'!$C89=\"\",\"\",IF(AND($J89<=0,$K89<=0),0,(SUMPRODUCT($AV89:$BC89,--($AV89:$BC89>0))+$BE89+SUMPRODUCT($CT89:$DA89,--($CT89:$DA89>0))+$DC89)*$DK89/((-SUMPRODUCT($AV89:$BC89,--($AV89:$BC89<0))+$BG89+$BH89+$BI89-SUMPRODUCT($CT89:$DA89,--($CT89:$DA89<0))+$DE89+$DF89+$DG89)*$DK89)))","v":""},{"$f":"IF('Project Scope'!$C89=\"\",\"\",IF(NetOrGross=\"Net\",(1-Z89+AA89),1))","v":""}]
[{"$f":"'Project Scope'!$B90","v":83},{"$f":"IF('Project Scope'!$C90=\"\",\"\",'Project Scope'!$C90)","v":""},{"$f":"IF('Project Scope'!$C90=\"\",\"\",'Project Scope'!$H90)","v":""},{"$f":"IF(ISNUMBER(SEARCH(\"Bay\",'Project Scope'!$Q90)),\"Bay\",IF('Project Scope'!C90=\"\",\"\",'Project Scope'!E90))","v":""},{"$f":"IF('Project Scope'!$C90=\"\",\"\",\"Com\")","v":""},{"$f":"IF('Project Scope'!$C90=\"\",\"\",'Project Scope'!$L90)","v":""},{"$f":"IF('Project Scope'!$C90=\"\",\"\",IF('Project Scope'!$CJ90=\"\",0,'Project Scope'!$CJ90))","v":""},{"$f":"IF('Project Scope'!$C90=\"\",\"\",IF('Project Scope'!$N90=\"\",0,'Project Scope'!$N90))","v":""},{"$f":"IF('Project Scope'!$C90=\"\",\"\",IF('Project Scope'!$CK90=\"\",0,'Project Scope'!$CK90))","v":""},{"$f":"IF('Project Scope'!$C90=\"\",\"\",IF('Project Scope'!$AO90=\"\",0,'Project Scope'!$AO90))","v":""},{"$f":"IF('Project Scope'!$C90=\"\",\"\",IF('Project Scope'!$AX90=\"\",0,'Project Scope'!$AX90))","v":""},{"$f":"IF('Project Scope'!$C90=\"\",\"\",IF('Project Scope'!$M90=\"\",0,'Project Scope'!$M90))","v":""},{"$f":"IF('Project Scope'!$C90=\"\",\"\",IF(COUNTIF('CBAT Lookups'!$B$5:$B$12,\"Fixtures-\"&CBAT!$D90)=1,VLOOKUP(\"Fixtures-\"&CBAT!$D90,'CBAT Lookups'!$B$5:$L$12,11),0))","v":""},{"$f":"IF('Project Scope'!$C90=\"\",\"\",(IF(COUNTIF('CBAT Lookups'!$B$5:$B$12,\"Fixtures-\"&CBAT!$D90)=1,VLOOKUP(\"Fixtures-\"&CBAT!$D90,'CBAT Lookups'!$B$5:$K$12,2),0))*VLOOKUP($F90,'CBAT Lookups'!$B$17:$K$19,2))","v":""},{"$f":"IF('Project Scope'!$C90=\"\",\"\",(IF(COUNTIF('CBAT Lookups'!$B$5:$B$12,\"Fixtures-\"&CBAT!$D90)=1,VLOOKUP(\"Fixtures-\"&CBAT!$D90,'CBAT Lookups'!$B$5:$K$12,3),0))*VLOOKUP($F90,'CBAT Lookups'!$B$17:$K$19,3))","v":""},{"$f":"IF('Project Scope'!$C90=\"\",\"\",(IF(COUNTIF('CBAT Lookups'!$B$5:$B$12,\"Fixtures-\"&CBAT!$D90)=1,VLOOKUP(\"Fixtures-\"&CBAT!$D90,'CBAT Lookups'!$B$5:$K$12,4),0)))","v":""},{"$f":"IF('Project Scope'!$C90=\"\",\"\",(IF(COUNTIF('CBAT Lookups'!$B$5:$B$12,\"Fixtures-\"&CBAT!$D90)=1,VLOOKUP(\"Fixtures-\"&CBAT!$D90,'CBAT Lookups'!$B$5:$K$12,5),0)))","v":""},{"$f":"IF('Project Scope'!$C90=\"\",\"\",(IF(COUNTIF('CBAT Lookups'!$B$5:$B$12,\"Fixtures-\"&CBAT!$D90)=1,VLOOKUP(\"Fixtures-\"&CBAT!$D90,'CBAT Lookups'!$B$5:$K$12,6),0)))","v":""},{"$f":"IF('Project Scope'!$C90=\"\",\"\",IF(COUNTIF('CBAT Lookups'!$B$5:$B$12,\"Fixtures-\"&CBAT!$D90)=1,VLOOKUP(\"Fixtures-\"&CBAT!$D90,'CBAT Lookups'!$B$5:$K$12,7),0))","v":""},{"$f":"IF('Project Scope'!$C90=\"\",\"\",IF(VLOOKUP($F90,'CBAT Lookups'!$B$17:$K$19,8)=\"W\",1,IF(COUNTIF('CBAT Lookups'!$B$5:$B$12,\"Fixtures-\"&CBAT!$D90)=1,VLOOKUP(\"Fixtures-\"&CBAT!$D90,'CBAT Lookups'!$B$5:$K$12,8),0)*VLOOKUP($F90,'CBAT Lookups'!$B$17:$K$19,8)))","v":""},{"$f":"IF('Project Scope'!$C90=\"\",\"\",IF(VLOOKUP($F90,'CBAT Lookups'!$B$17:$K$19,9)=\"W\",1,IF(COUNTIF('CBAT Lookups'!$B$5:$B$12,\"Fixtures-\"&CBAT!$D90)=1,VLOOKUP(\"Fixtures-\"&CBAT!$D90,'CBAT Lookups'!$B$5:$K$12,9),0)*VLOOKUP($F90,'CBAT Lookups'!$B$17:$K$19,9)))","v":""},{"$f":"IF('Project Scope'!$C90=\"\",\"\",IF(COUNTIF('CBAT Lookups'!$B$5:$B$12,\"Fixtures-\"&CBAT!$D90)=1,VLOOKUP(\"Fixtures-\"&CBAT!$D90,'CBAT Lookups'!$B$5:$K$12,10),0)*VLOOKUP($F90,'CBAT Lookups'!$B$17:$K$19,10))","v":""},{"$f":"IF('Project Scope'!$C90=\"\",\"\",IF(COUNTIF('CBAT Lookups'!$B$5:$B$12,\"Fixtures-\"&CBAT!$D90)=1,VLOOKUP(\"Fixtures-\"&CBAT!$D90,'CBAT Lookups'!$B$5:$O$12,12),0))","v":""},{"$f":"IF('Project Scope'!$C90=\"\",\"\",IF(COUNTIF('CBAT Lookups'!$B$5:$B$12,\"Fixtures-\"&CBAT!$D90)=1,VLOOKUP(\"Fixtures-\"&CBAT!$D90,'CBAT Lookups'!$B$5:$O$12,13),0))","v":""},{"$f":"IF('Project Scope'!$C90=\"\",\"\",IF(COUNTIF('CBAT Lookups'!$B$5:$B$12,\"Fixtures-\"&CBAT!$D90)=1,VLOOKUP(\"Fixtures-\"&CBAT!$D90,'CBAT Lookups'!$B$5:$O$12,14),0))","v":""},{"$f":"IF('Project Scope'!$C90=\"\",\"\",'TRM Data'!$U$3)","v":""},{"$f":"IF('Project Scope'!$C90=\"\",\"\",'TRM Data'!$V$3)","v":""},{"$f":"IF('Project Scope'!$C90=\"\",\"\",IF($J90<=0,0,MAX(0,(($G90*$H90/1000)-($I90*$J90/1000))*$L90)*$U90)+($AF90/0.003412))","v":""},{"$f":"IF('Project Scope'!$C90=\"\",\"\",IF($J90<=0,0,MAX(0,(($G90*$H90/1000)-($I90*$J90/1000)))*$T90))","v":""},{"$f":"IF('Project Scope'!$C90=\"\",\"\",IF($J90<=0,0,MAX(0,(($G90*$H90/1000)-($I90*$J90/1000))*$N90)))","v":""},{"$f":"IF('Project Scope'!$C90=\"\",\"\",IF($J90<=0,0,MAX(0,(($G90*$H90/1000)-($I90*$J90/1000))*$O90)*$T90))","v":""},{"$f":"IF('Project Scope'!$C90=\"\",\"\",IF(OR($J90<=0,'Project Information'!$D$44=\"\"),0,-1*MAX(0,(($G90*$H90/1000)-($I90*$J90/1000))*$L90)*$V90*VLOOKUP('Project Information'!$D$44,'CBAT Lookups'!$A$23:$H$30,2)))","v":""},{"$f":"IF('Project Scope'!$C90=\"\",\"\",IF(OR($J90<=0,'Project Information'!$D$44=\"\"),0,-1*MAX(0,(($G90*$H90/1000)-($I90*$J90/1000))*$L90)*$V90*VLOOKUP('Project Information'!$D$44,'CBAT Lookups'!$A$23:$H$30,3)))","v":""},{"$f":"IF('Project Scope'!$C90=\"\",\"\",IF(OR($J90<=0,'Project Information'!$D$44=\"\"),0,-1*MAX(0,(($G90*$H90/1000)-($I90*$J90/1000))*$L90)*$V90*VLOOKUP('Project Information'!$D$44,'CBAT Lookups'!$A$23:$H$30,4)))","v":""},{"$f":"IF('Project Scope'!$C90=\"\",\"\",IF(OR($J90<=0,'Project Information'!$D$44=\"\"),0,-1*MAX(0,(($G90*$H90/1000)-($I90*$J90/1000))*$L90)*$V90*VLOOKUP('Project Information'!$D$44,'CBAT Lookups'!$A$23:$H$30,5)))","v":""},{"$f":"IF('Project Scope'!$C90=\"\",\"\",IF(OR($J90<=0,'Project Information'!$D$44=\"\"),0,-1*MAX(0,(($G90*$H90/1000)-($I90*$J90/1000))*$L90)*$V90*VLOOKUP('Project Information'!$D$44,'CBAT Lookups'!$A$23:$H$30,6)))","v":""},{"$f":"IF('Project Scope'!$C90=\"\",\"\",IF(OR($J90<=0,'Project Information'!$D$44=\"\"),0,-1*MAX(0,(($G90*$H90/1000)-($I90*$J90/1000))*$L90)*$V90*VLOOKUP('Project Information'!$D$44,'CBAT Lookups'!$A$23:$H$30,7)))","v":""},{"$f":"IF('Project Scope'!$C90=\"\",\"\",IF(OR($J90<=0,'Project Information'!$D$44=\"\"),0,-1*MAX(0,(($G90*$H90/1000)-($I90*$J90/1000))*$L90)*$V90*VLOOKUP('Project Information'!$D$44,'CBAT Lookups'!$A$23:$H$30,8)))","v":""},null,{"$f":"IF('Project Scope'!$C90=\"\",\"\",VLOOKUP($F90,'CBAT Lookups'!$B$17:$K$19,4))","v":""},{"$f":"IF('Project Scope'!$C90=\"\",\"\",VLOOKUP($F90,'CBAT Lookups'!$B$17:$K$19,5))","v":""},{"$f":"IF('Project Scope'!$C90=\"\",\"\",VLOOKUP($F90,'CBAT Lookups'!$B$17:$K$19,6))","v":""},{"$f":"IF('Project Scope'!$C90=\"\",\"\",VLOOKUP($F90,'CBAT Lookups'!$B$17:$K$19,7))","v":""},{"$f":"IF('Project Scope'!$C90=\"\",\"\",IF(SUMPRODUCT($P90:$S90,$AN90:$AQ90)=0,0,P90*AN90/SUMPRODUCT($P90:$S90,$AN90:$AQ90)))","v":""},{"$f":"IF('Project Scope'!$C90=\"\",\"\",IF(SUMPRODUCT($P90:$S90,$AN90:$AQ90)=0,0,Q90*AO90/SUMPRODUCT($P90:$S90,$AN90:$AQ90)))","v":""},{"$f":"IF('Project Scope'!$C90=\"\",\"\",IF(SUMPRODUCT($P90:$S90,$AN90:$AQ90)=0,0,R90*AP90/SUMPRODUCT($P90:$S90,$AN90:$AQ90)))","v":""},{"$f":"IF('Project Scope'!$C90=\"\",\"\",IF(SUMPRODUCT($P90:$S90,$AN90:$AQ90)=0,0,S90*AQ90/SUMPRODUCT($P90:$S90,$AN90:$AQ90)))","v":""},{"$f":"IF('Project Scope'!$C90=\"\",\"\",Benefits($AB90,$AD90,$AE90,$AG90,$AH90,$AI90,$AJ90,$AK90,$AL90,$AM90,$M90,$AR90,$AS90,$AT90,$AU90,$W90,$X90,$Y90,$Z90,$AA90,$E90))","v":""},"","","","","","","","",null,{"$f":"IF('Project Scope'!$C90=\"\",\"\",SUM('Project Scope'!$AT90,'Project Scope'!$AU90))","v":""},{"$f":"IF('Project Scope'!$C90=\"\",\"\",SUM('Project Scope'!$BG90, 'Project Scope'!$AR90,(IF(ISNUMBER('Project Scope'!$AS90),'Project Scope'!$AS90,0)*'Project Information'!$D$12)))","v":""},null,null,{"$f":"IF('Project Scope'!$C90=\"\",\"\",IF(COUNTIF('CBAT Lookups'!$B$5:$B$12,\"Controls-\"&CBAT!$D90)=1,VLOOKUP(\"Controls-\"&CBAT!$D90,'CBAT Lookups'!$B$5:$L$12,11),0))","v":""},{"$f":"IF('Project Scope'!$C90=\"\",\"\",IF(COUNTIF('CBAT Lookups'!$B$5:$B$12,\"Controls-\"&CBAT!$D90)=1,VLOOKUP(\"Controls-\"&CBAT!$D90,'CBAT Lookups'!$B$5:$K$12,2),0)*VLOOKUP($F90,'CBAT Lookups'!$B$17:$K$19,2))","v":""},{"$f":"IF('Project Scope'!$C90=\"\",\"\",IF(COUNTIF('CBAT Lookups'!$B$5:$B$12,\"Controls-\"&CBAT!$D90)=1,VLOOKUP(\"Controls-\"&CBAT!$D90,'CBAT Lookups'!$B$5:$K$12,3),0)*VLOOKUP($F90,'CBAT Lookups'!$B$17:$K$19,3))","v":""},{"$f":"IF('Project Scope'!$C90=\"\",\"\",IF(COUNTIF('CBAT Lookups'!$B$5:$B$12,\"Controls-\"&CBAT!$D90)=1,VLOOKUP(\"Controls-\"&CBAT!$D90,'CBAT Lookups'!$B$5:$K$12,4),0))","v":""},{"$f":"IF('Project Scope'!$C90=\"\",\"\",IF(COUNTIF('CBAT Lookups'!$B$5:$B$12,\"Controls-\"&CBAT!$D90)=1,VLOOKUP(\"Controls-\"&CBAT!$D90,'CBAT Lookups'!$B$5:$K$12,5),0))","v":""},{"$f":"IF('Project Scope'!$C90=\"\",\"\",IF(COUNTIF('CBAT Lookups'!$B$5:$B$12,\"Controls-\"&CBAT!$D90)=1,VLOOKUP(\"Controls-\"&CBAT!$D90,'CBAT Lookups'!$B$5:$K$12,6),0))","v":""},{"$f":"IF('Project Scope'!$C90=\"\",\"\",IF(COUNTIF('CBAT Lookups'!$B$5:$B$12,\"Controls-\"&CBAT!$D90)=1,VLOOKUP(\"Controls-\"&CBAT!$D90,'CBAT Lookups'!$B$5:$K$12,7),0))","v":""},{"$f":"IF('Project Scope'!$C90=\"\",\"\",IF(VLOOKUP($F90,'CBAT Lookups'!$B$17:$K$19,8)=\"W\",1,IF(COUNTIF('CBAT Lookups'!$B$5:$B$12,\"Controls-\"&CBAT!$D90)=1,VLOOKUP(\"Controls-\"&CBAT!$D90,'CBAT Lookups'!$B$5:$K$12,8),0)*VLOOKUP($F90,'CBAT Lookups'!$B$17:$K$19,8)))","v":""},{"$f":"IF('Project Scope'!$C90=\"\",\"\",IF(VLOOKUP($F90,'CBAT Lookups'!$B$17:$K$19,9)=\"W\",1,IF(COUNTIF('CBAT Lookups'!$B$5:$B$12,\"Controls-\"&CBAT!$D90)=1,VLOOKUP(\"Controls-\"&CBAT!$D90,'CBAT Lookups'!$B$5:$K$12,9),0)*VLOOKUP($F90,'CBAT Lookups'!$B$17:$K$19,9)))","v":""},{"$f":"IF('Project Scope'!$C90=\"\",\"\",IF(COUNTIF('CBAT Lookups'!$B$5:$B$12,\"Controls-\"&CBAT!$D90)=1,VLOOKUP(\"Controls-\"&CBAT!$D90,'CBAT Lookups'!$B$5:$K$12,10),0)*VLOOKUP($F90,'CBAT Lookups'!$B$17:$K$19,10))","v":""},{"$f":"IF('Project Scope'!$C90=\"\",\"\",VLOOKUP($C90,'CBAT Lookups'!$A$33:$B$57,2))","v":""},{"$f":"IF('Project Scope'!$C90=\"\",\"\",IF(COUNTIF('CBAT Lookups'!$B$5:$B$12,\"Controls-\"&CBAT!$D90)=1,VLOOKUP(\"Controls-\"&CBAT!$D90,'CBAT Lookups'!$B$5:$O$12,12),0))","v":""},{"$f":"IF('Project Scope'!$C90=\"\",\"\",IF(COUNTIF('CBAT Lookups'!$B$5:$B$12,\"Controls-\"&CBAT!$D90)=1,VLOOKUP(\"Controls-\"&CBAT!$D90,'CBAT Lookups'!$B$5:$O$12,13),0))","v":""},{"$f":"IF('Project Scope'!$C90=\"\",\"\",IF(COUNTIF('CBAT Lookups'!$B$5:$B$12,\"Controls-\"&CBAT!$D90)=1,VLOOKUP(\"Controls-\"&CBAT!$D90,'CBAT Lookups'!$B$5:$O$12,14),0))","v":""},{"$f":"IF('Project Scope'!$C90=\"\",\"\",'TRM Data'!$U$3)","v":""},{"$f":"IF('Project Scope'!$C90=\"\",\"\",'TRM Data'!$V$3)","v":""},{"$f":"IF('Project Scope'!$C90=\"\",\"\",IF($K90<=0,0,MAX(0,(IF(AND($I90>0,$J90>0),($I90*$J90)/1000,($G90*$H90)/1000)*$L90))*$BT90*$BR90)+($CD90/0.003412))","v":""},{"$f":"IF('Project Scope'!$C90=\"\",\"\",IF($K90<=0,0,MAX(0,IF(AND($I90>0,$J90>0),($I90*$J90)/1000,($G90*$H90)/1000))*$BQ90))","v":""},{"$f":"IF('Project Scope'!$C90=\"\",\"\",IF($K90<=0,0,MAX(0,IF(AND($I90>0,$J90>0),($I90*$J90)/1000,($G90*$H90)/1000))*$BK90))","v":""},{"$f":"IF('Project Scope'!$C90=\"\",\"\",IF($K90<=0,0,MAX(0,IF(AND($I90>0,$J90>0),($I90*$J90)/1000,($G90*$H90)/1000))*$BL90*$BQ90))","v":""},{"$f":"IF('Project Scope'!$C90=\"\",\"\",IF(OR($K90<=0,'Project Information'!$D$44=\"\"),0,-1*MAX(0,IF(AND($I90>0,$J90>0),($I90*$J90)/1000,($G90*$H90)/1000))*$BT90*$L90*$BS90*VLOOKUP('Project Information'!$D$44,'CBAT Lookups'!$A$23:$H$30,2)))","v":""},{"$f":"IF('Project Scope'!$C90=\"\",\"\",IF(OR($K90<=0,'Project Information'!$D$44=\"\"),0,-1*MAX(0,IF(AND($I90>0,$J90>0),($I90*$J90)/1000,($G90*$H90)/1000))*$BT90*$L90*$BS90*VLOOKUP('Project Information'!$D$44,'CBAT Lookups'!$A$23:$H$30,3)))","v":""},{"$f":"IF('Project Scope'!$C90=\"\",\"\",IF(OR($K90<=0,'Project Information'!$D$44=\"\"),0,-1*MAX(0,IF(AND($I90>0,$J90>0),($I90*$J90)/1000,($G90*$H90)/1000))*$BT90*$L90*$BS90*VLOOKUP('Project Information'!$D$44,'CBAT Lookups'!$A$23:$H$30,4)))","v":""},{"$f":"IF('Project Scope'!$C90=\"\",\"\",IF(OR($K90<=0,'Project Information'!$D$44=\"\"),0,-1*MAX(0,IF(AND($I90>0,$J90>0),($I90*$J90)/1000,($G90*$H90)/1000))*$BT90*$L90*$BS90*VLOOKUP('Project Information'!$D$44,'CBAT Lookups'!$A$23:$H$30,5)))","v":""},{"$f":"IF('Project Scope'!$C90=\"\",\"\",IF(OR($K90<=0,'Project Information'!$D$44=\"\"),0,-1*MAX(0,IF(AND($I90>0,$J90>0),($I90*$J90)/1000,($G90*$H90)/1000))*$BT90*$L90*$BS90*VLOOKUP('Project Information'!$D$44,'CBAT Lookups'!$A$23:$H$30,6)))","v":""},{"$f":"IF('Project Scope'!$C90=\"\",\"\",IF(OR($K90<=0,'Project Information'!$D$44=\"\"),0,-1*MAX(0,IF(AND($I90>0,$J90>0),($I90*$J90)/1000,($G90*$H90)/1000))*$BT90*$L90*$BS90*VLOOKUP('Project Information'!$D$44,'CBAT Lookups'!$A$23:$H$30,7)))","v":""},{"$f":"IF('Project Scope'!$C90=\"\",\"\",IF(OR($K90<=0,'Project Information'!$D$44=\"\"),0,-1*MAX(0,IF(AND($I90>0,$J90>0),($I90*$J90)/1000,($G90*$H90)/1000))*$BT90*$L90*$BS90*VLOOKUP('Project Information'!$D$44,'CBAT Lookups'!$A$23:$H$30,8)))","v":""},null,{"$f":"IF('Project Scope'!$C90=\"\",\"\",VLOOKUP($F90,'CBAT Lookups'!$B$17:$K$19,4))","v":""},{"$f":"IF('Project Scope'!$C90=\"\",\"\",VLOOKUP($F90,'CBAT Lookups'!$B$17:$K$19,5))","v":""},{"$f":"IF('Project Scope'!$C90=\"\",\"\",VLOOKUP($F90,'CBAT Lookups'!$B$17:$K$19,6))","v":""},{"$f":"IF('Project Scope'!$C90=\"\",\"\",VLOOKUP($F90,'CBAT Lookups'!$B$17:$K$19,7))","v":""},{"$f":"IF('Project Scope'!$C90=\"\",\"\",IF(SUMPRODUCT($BM90:$BP90,$CL90:$CO90)=0,0,BM90*CL90/SUMPRODUCT($BM90:$BP90,$CL90:$CO90)))","v":""},{"$f":"IF('Project Scope'!$C90=\"\",\"\",IF(SUMPRODUCT($BM90:$BP90,$CL90:$CO90)=0,0,BN90*CM90/SUMPRODUCT($BM90:$BP90,$CL90:$CO90)))","v":""},{"$f":"IF('Project Scope'!$C90=\"\",\"\",IF(SUMPRODUCT($BM90:$BP90,$CL90:$CO90)=0,0,BO90*CN90/SUMPRODUCT($BM90:$BP90,$CL90:$CO90)))","v":""},{"$f":"IF('Project Scope'!$C90=\"\",\"\",IF(SUMPRODUCT($BM90:$BP90,$CL90:$CO90)=0,0,BP90*CO90/SUMPRODUCT($BM90:$BP90,$CL90:$CO90)))","v":""},{"$f":"IF('Project Scope'!$C90=\"\",\"\",Benefits($BZ90,$CB90,$CC90,$CE90,$CF90,$CG90,$CH90,$CI90,$CJ90,$CK90,$BJ90,$CP90,$CQ90,$CR90,$CS90,$BU90,$BV90,$BW90,$BX90,$BY90,$E90))","v":""},"","","","","","","","",null,{"$f":"IF('Project Scope'!$C90=\"\",\"\",SUM('Project Scope'!$BB90,'Project Scope'!$BC90))","v":""},{"$f":"IF('Project Scope'!$C90=\"\",\"\",SUM('Project Scope'!$BH90, 'Project Scope'!$AZ90,(IF(ISNUMBER('Project Scope'!$BA90),'Project Scope'!$BA90,0)*'Project Information'!$D$12)))","v":""},null,null,{"$f":"IF('Project Scope'!$C90=\"\",\"\",IF($J90<=0,0,(SUMPRODUCT($AV90:$BC90,--($AV90:$BC90>0))+$BE90)*$DK90/((-SUMPRODUCT($AV90:$BC90,--($AV90:$BC90<0))+$BG90+$BH90+$BI90)*$DK90)))","v":""},{"$f":"IF('Project Scope'!$C90=\"\",\"\",IF($K90<=0,0,(SUMPRODUCT($CT90:$DA90,--($CT90:$DA90>0))+$DC90)*$DK90/((-SUMPRODUCT($CT90:$DA90,--($CT90:$DA90<0))+$DE90+$DF90+$DG90)*$DK90)))","v":""},{"$f":"IF('Project Scope'!$C90=\"\",\"\",IF(AND($J90<=0,$K90<=0),0,(SUMPRODUCT($AV90:$BC90,--($AV90:$BC90>0))+$BE90+SUMPRODUCT($CT90:$DA90,--($CT90:$DA90>0))+$DC90)*$DK90/((-SUMPRODUCT($AV90:$BC90,--($AV90:$BC90<0))+$BG90+$BH90+$BI90-SUMPRODUCT($CT90:$DA90,--($CT90:$DA90<0))+$DE90+$DF90+$DG90)*$DK90)))","v":""},{"$f":"IF('Project Scope'!$C90=\"\",\"\",IF(NetOrGross=\"Net\",(1-Z90+AA90),1))","v":""}]
[{"$f":"'Project Scope'!$B91","v":84},{"$f":"IF('Project Scope'!$C91=\"\",\"\",'Project Scope'!$C91)","v":""},{"$f":"IF('Project Scope'!$C91=\"\",\"\",'Project Scope'!$H91)","v":""},{"$f":"IF(ISNUMBER(SEARCH(\"Bay\",'Project Scope'!$Q91)),\"Bay\",IF('Project Scope'!C91=\"\",\"\",'Project Scope'!E91))","v":""},{"$f":"IF('Project Scope'!$C91=\"\",\"\",\"Com\")","v":""},{"$f":"IF('Project Scope'!$C91=\"\",\"\",'Project Scope'!$L91)","v":""},{"$f":"IF('Project Scope'!$C91=\"\",\"\",IF('Project Scope'!$CJ91=\"\",0,'Project Scope'!$CJ91))","v":""},{"$f":"IF('Project Scope'!$C91=\"\",\"\",IF('Project Scope'!$N91=\"\",0,'Project Scope'!$N91))","v":""},{"$f":"IF('Project Scope'!$C91=\"\",\"\",IF('Project Scope'!$CK91=\"\",0,'Project Scope'!$CK91))","v":""},{"$f":"IF('Project Scope'!$C91=\"\",\"\",IF('Project Scope'!$AO91=\"\",0,'Project Scope'!$AO91))","v":""},{"$f":"IF('Project Scope'!$C91=\"\",\"\",IF('Project Scope'!$AX91=\"\",0,'Project Scope'!$AX91))","v":""},{"$f":"IF('Project Scope'!$C91=\"\",\"\",IF('Project Scope'!$M91=\"\",0,'Project Scope'!$M91))","v":""},{"$f":"IF('Project Scope'!$C91=\"\",\"\",IF(COUNTIF('CBAT Lookups'!$B$5:$B$12,\"Fixtures-\"&CBAT!$D91)=1,VLOOKUP(\"Fixtures-\"&CBAT!$D91,'CBAT Lookups'!$B$5:$L$12,11),0))","v":""},{"$f":"IF('Project Scope'!$C91=\"\",\"\",(IF(COUNTIF('CBAT Lookups'!$B$5:$B$12,\"Fixtures-\"&CBAT!$D91)=1,VLOOKUP(\"Fixtures-\"&CBAT!$D91,'CBAT Lookups'!$B$5:$K$12,2),0))*VLOOKUP($F91,'CBAT Lookups'!$B$17:$K$19,2))","v":""},{"$f":"IF('Project Scope'!$C91=\"\",\"\",(IF(COUNTIF('CBAT Lookups'!$B$5:$B$12,\"Fixtures-\"&CBAT!$D91)=1,VLOOKUP(\"Fixtures-\"&CBAT!$D91,'CBAT Lookups'!$B$5:$K$12,3),0))*VLOOKUP($F91,'CBAT Lookups'!$B$17:$K$19,3))","v":""},{"$f":"IF('Project Scope'!$C91=\"\",\"\",(IF(COUNTIF('CBAT Lookups'!$B$5:$B$12,\"Fixtures-\"&CBAT!$D91)=1,VLOOKUP(\"Fixtures-\"&CBAT!$D91,'CBAT Lookups'!$B$5:$K$12,4),0)))","v":""},{"$f":"IF('Project Scope'!$C91=\"\",\"\",(IF(COUNTIF('CBAT Lookups'!$B$5:$B$12,\"Fixtures-\"&CBAT!$D91)=1,VLOOKUP(\"Fixtures-\"&CBAT!$D91,'CBAT Lookups'!$B$5:$K$12,5),0)))","v":""},{"$f":"IF('Project Scope'!$C91=\"\",\"\",(IF(COUNTIF('CBAT Lookups'!$B$5:$B$12,\"Fixtures-\"&CBAT!$D91)=1,VLOOKUP(\"Fixtures-\"&CBAT!$D91,'CBAT Lookups'!$B$5:$K$12,6),0)))","v":""},{"$f":"IF('Project Scope'!$C91=\"\",\"\",IF(COUNTIF('CBAT Lookups'!$B$5:$B$12,\"Fixtures-\"&CBAT!$D91)=1,VLOOKUP(\"Fixtures-\"&CBAT!$D91,'CBAT Lookups'!$B$5:$K$12,7),0))","v":""},{"$f":"IF('Project Scope'!$C91=\"\",\"\",IF(VLOOKUP($F91,'CBAT Lookups'!$B$17:$K$19,8)=\"W\",1,IF(COUNTIF('CBAT Lookups'!$B$5:$B$12,\"Fixtures-\"&CBAT!$D91)=1,VLOOKUP(\"Fixtures-\"&CBAT!$D91,'CBAT Lookups'!$B$5:$K$12,8),0)*VLOOKUP($F91,'CBAT Lookups'!$B$17:$K$19,8)))","v":""},{"$f":"IF('Project Scope'!$C91=\"\",\"\",IF(VLOOKUP($F91,'CBAT Lookups'!$B$17:$K$19,9)=\"W\",1,IF(COUNTIF('CBAT Lookups'!$B$5:$B$12,\"Fixtures-\"&CBAT!$D91)=1,VLOOKUP(\"Fixtures-\"&CBAT!$D91,'CBAT Lookups'!$B$5:$K$12,9),0)*VLOOKUP($F91,'CBAT Lookups'!$B$17:$K$19,9)))","v":""},{"$f":"IF('Project Scope'!$C91=\"\",\"\",IF(COUNTIF('CBAT Lookups'!$B$5:$B$12,\"Fixtures-\"&CBAT!$D91)=1,VLOOKUP(\"Fixtures-\"&CBAT!$D91,'CBAT Lookups'!$B$5:$K$12,10),0)*VLOOKUP($F91,'CBAT Lookups'!$B$17:$K$19,10))","v":""},{"$f":"IF('Project Scope'!$C91=\"\",\"\",IF(COUNTIF('CBAT Lookups'!$B$5:$B$12,\"Fixtures-\"&CBAT!$D91)=1,VLOOKUP(\"Fixtures-\"&CBAT!$D91,'CBAT Lookups'!$B$5:$O$12,12),0))","v":""},{"$f":"IF('Project Scope'!$C91=\"\",\"\",IF(COUNTIF('CBAT Lookups'!$B$5:$B$12,\"Fixtures-\"&CBAT!$D91)=1,VLOOKUP(\"Fixtures-\"&CBAT!$D91,'CBAT Lookups'!$B$5:$O$12,13),0))","v":""},{"$f":"IF('Project Scope'!$C91=\"\",\"\",IF(COUNTIF('CBAT Lookups'!$B$5:$B$12,\"Fixtures-\"&CBAT!$D91)=1,VLOOKUP(\"Fixtures-\"&CBAT!$D91,'CBAT Lookups'!$B$5:$O$12,14),0))","v":""},{"$f":"IF('Project Scope'!$C91=\"\",\"\",'TRM Data'!$U$3)","v":""},{"$f":"IF('Project Scope'!$C91=\"\",\"\",'TRM Data'!$V$3)","v":""},{"$f":"IF('Project Scope'!$C91=\"\",\"\",IF($J91<=0,0,MAX(0,(($G91*$H91/1000)-($I91*$J91/1000))*$L91)*$U91)+($AF91/0.003412))","v":""},{"$f":"IF('Project Scope'!$C91=\"\",\"\",IF($J91<=0,0,MAX(0,(($G91*$H91/1000)-($I91*$J91/1000)))*$T91))","v":""},{"$f":"IF('Project Scope'!$C91=\"\",\"\",IF($J91<=0,0,MAX(0,(($G91*$H91/1000)-($I91*$J91/1000))*$N91)))","v":""},{"$f":"IF('Project Scope'!$C91=\"\",\"\",IF($J91<=0,0,MAX(0,(($G91*$H91/1000)-($I91*$J91/1000))*$O91)*$T91))","v":""},{"$f":"IF('Project Scope'!$C91=\"\",\"\",IF(OR($J91<=0,'Project Information'!$D$44=\"\"),0,-1*MAX(0,(($G91*$H91/1000)-($I91*$J91/1000))*$L91)*$V91*VLOOKUP('Project Information'!$D$44,'CBAT Lookups'!$A$23:$H$30,2)))","v":""},{"$f":"IF('Project Scope'!$C91=\"\",\"\",IF(OR($J91<=0,'Project Information'!$D$44=\"\"),0,-1*MAX(0,(($G91*$H91/1000)-($I91*$J91/1000))*$L91)*$V91*VLOOKUP('Project Information'!$D$44,'CBAT Lookups'!$A$23:$H$30,3)))","v":""},{"$f":"IF('Project Scope'!$C91=\"\",\"\",IF(OR($J91<=0,'Project Information'!$D$44=\"\"),0,-1*MAX(0,(($G91*$H91/1000)-($I91*$J91/1000))*$L91)*$V91*VLOOKUP('Project Information'!$D$44,'CBAT Lookups'!$A$23:$H$30,4)))","v":""},{"$f":"IF('Project Scope'!$C91=\"\",\"\",IF(OR($J91<=0,'Project Information'!$D$44=\"\"),0,-1*MAX(0,(($G91*$H91/1000)-($I91*$J91/1000))*$L91)*$V91*VLOOKUP('Project Information'!$D$44,'CBAT Lookups'!$A$23:$H$30,5)))","v":""},{"$f":"IF('Project Scope'!$C91=\"\",\"\",IF(OR($J91<=0,'Project Information'!$D$44=\"\"),0,-1*MAX(0,(($G91*$H91/1000)-($I91*$J91/1000))*$L91)*$V91*VLOOKUP('Project Information'!$D$44,'CBAT Lookups'!$A$23:$H$30,6)))","v":""},{"$f":"IF('Project Scope'!$C91=\"\",\"\",IF(OR($J91<=0,'Project Information'!$D$44=\"\"),0,-1*MAX(0,(($G91*$H91/1000)-($I91*$J91/1000))*$L91)*$V91*VLOOKUP('Project Information'!$D$44,'CBAT Lookups'!$A$23:$H$30,7)))","v":""},{"$f":"IF('Project Scope'!$C91=\"\",\"\",IF(OR($J91<=0,'Project Information'!$D$44=\"\"),0,-1*MAX(0,(($G91*$H91/1000)-($I91*$J91/1000))*$L91)*$V91*VLOOKUP('Project Information'!$D$44,'CBAT Lookups'!$A$23:$H$30,8)))","v":""},null,{"$f":"IF('Project Scope'!$C91=\"\",\"\",VLOOKUP($F91,'CBAT Lookups'!$B$17:$K$19,4))","v":""},{"$f":"IF('Project Scope'!$C91=\"\",\"\",VLOOKUP($F91,'CBAT Lookups'!$B$17:$K$19,5))","v":""},{"$f":"IF('Project Scope'!$C91=\"\",\"\",VLOOKUP($F91,'CBAT Lookups'!$B$17:$K$19,6))","v":""},{"$f":"IF('Project Scope'!$C91=\"\",\"\",VLOOKUP($F91,'CBAT Lookups'!$B$17:$K$19,7))","v":""},{"$f":"IF('Project Scope'!$C91=\"\",\"\",IF(SUMPRODUCT($P91:$S91,$AN91:$AQ91)=0,0,P91*AN91/SUMPRODUCT($P91:$S91,$AN91:$AQ91)))","v":""},{"$f":"IF('Project Scope'!$C91=\"\",\"\",IF(SUMPRODUCT($P91:$S91,$AN91:$AQ91)=0,0,Q91*AO91/SUMPRODUCT($P91:$S91,$AN91:$AQ91)))","v":""},{"$f":"IF('Project Scope'!$C91=\"\",\"\",IF(SUMPRODUCT($P91:$S91,$AN91:$AQ91)=0,0,R91*AP91/SUMPRODUCT($P91:$S91,$AN91:$AQ91)))","v":""},{"$f":"IF('Project Scope'!$C91=\"\",\"\",IF(SUMPRODUCT($P91:$S91,$AN91:$AQ91)=0,0,S91*AQ91/SUMPRODUCT($P91:$S91,$AN91:$AQ91)))","v":""},{"$f":"IF('Project Scope'!$C91=\"\",\"\",Benefits($AB91,$AD91,$AE91,$AG91,$AH91,$AI91,$AJ91,$AK91,$AL91,$AM91,$M91,$AR91,$AS91,$AT91,$AU91,$W91,$X91,$Y91,$Z91,$AA91,$E91))","v":""},"","","","","","","","",null,{"$f":"IF('Project Scope'!$C91=\"\",\"\",SUM('Project Scope'!$AT91,'Project Scope'!$AU91))","v":""},{"$f":"IF('Project Scope'!$C91=\"\",\"\",SUM('Project Scope'!$BG91, 'Project Scope'!$AR91,(IF(ISNUMBER('Project Scope'!$AS91),'Project Scope'!$AS91,0)*'Project Information'!$D$12)))","v":""},null,null,{"$f":"IF('Project Scope'!$C91=\"\",\"\",IF(COUNTIF('CBAT Lookups'!$B$5:$B$12,\"Controls-\"&CBAT!$D91)=1,VLOOKUP(\"Controls-\"&CBAT!$D91,'CBAT Lookups'!$B$5:$L$12,11),0))","v":""},{"$f":"IF('Project Scope'!$C91=\"\",\"\",IF(COUNTIF('CBAT Lookups'!$B$5:$B$12,\"Controls-\"&CBAT!$D91)=1,VLOOKUP(\"Controls-\"&CBAT!$D91,'CBAT Lookups'!$B$5:$K$12,2),0)*VLOOKUP($F91,'CBAT Lookups'!$B$17:$K$19,2))","v":""},{"$f":"IF('Project Scope'!$C91=\"\",\"\",IF(COUNTIF('CBAT Lookups'!$B$5:$B$12,\"Controls-\"&CBAT!$D91)=1,VLOOKUP(\"Controls-\"&CBAT!$D91,'CBAT Lookups'!$B$5:$K$12,3),0)*VLOOKUP($F91,'CBAT Lookups'!$B$17:$K$19,3))","v":""},{"$f":"IF('Project Scope'!$C91=\"\",\"\",IF(COUNTIF('CBAT Lookups'!$B$5:$B$12,\"Controls-\"&CBAT!$D91)=1,VLOOKUP(\"Controls-\"&CBAT!$D91,'CBAT Lookups'!$B$5:$K$12,4),0))","v":""},{"$f":"IF('Project Scope'!$C91=\"\",\"\",IF(COUNTIF('CBAT Lookups'!$B$5:$B$12,\"Controls-\"&CBAT!$D91)=1,VLOOKUP(\"Controls-\"&CBAT!$D91,'CBAT Lookups'!$B$5:$K$12,5),0))","v":""},{"$f":"IF('Project Scope'!$C91=\"\",\"\",IF(COUNTIF('CBAT Lookups'!$B$5:$B$12,\"Controls-\"&CBAT!$D91)=1,VLOOKUP(\"Controls-\"&CBAT!$D91,'CBAT Lookups'!$B$5:$K$12,6),0))","v":""},{"$f":"IF('Project Scope'!$C91=\"\",\"\",IF(COUNTIF('CBAT Lookups'!$B$5:$B$12,\"Controls-\"&CBAT!$D91)=1,VLOOKUP(\"Controls-\"&CBAT!$D91,'CBAT Lookups'!$B$5:$K$12,7),0))","v":""},{"$f":"IF('Project Scope'!$C91=\"\",\"\",IF(VLOOKUP($F91,'CBAT Lookups'!$B$17:$K$19,8)=\"W\",1,IF(COUNTIF('CBAT Lookups'!$B$5:$B$12,\"Controls-\"&CBAT!$D91)=1,VLOOKUP(\"Controls-\"&CBAT!$D91,'CBAT Lookups'!$B$5:$K$12,8),0)*VLOOKUP($F91,'CBAT Lookups'!$B$17:$K$19,8)))","v":""},{"$f":"IF('Project Scope'!$C91=\"\",\"\",IF(VLOOKUP($F91,'CBAT Lookups'!$B$17:$K$19,9)=\"W\",1,IF(COUNTIF('CBAT Lookups'!$B$5:$B$12,\"Controls-\"&CBAT!$D91)=1,VLOOKUP(\"Controls-\"&CBAT!$D91,'CBAT Lookups'!$B$5:$K$12,9),0)*VLOOKUP($F91,'CBAT Lookups'!$B$17:$K$19,9)))","v":""},{"$f":"IF('Project Scope'!$C91=\"\",\"\",IF(COUNTIF('CBAT Lookups'!$B$5:$B$12,\"Controls-\"&CBAT!$D91)=1,VLOOKUP(\"Controls-\"&CBAT!$D91,'CBAT Lookups'!$B$5:$K$12,10),0)*VLOOKUP($F91,'CBAT Lookups'!$B$17:$K$19,10))","v":""},{"$f":"IF('Project Scope'!$C91=\"\",\"\",VLOOKUP($C91,'CBAT Lookups'!$A$33:$B$57,2))","v":""},{"$f":"IF('Project Scope'!$C91=\"\",\"\",IF(COUNTIF('CBAT Lookups'!$B$5:$B$12,\"Controls-\"&CBAT!$D91)=1,VLOOKUP(\"Controls-\"&CBAT!$D91,'CBAT Lookups'!$B$5:$O$12,12),0))","v":""},{"$f":"IF('Project Scope'!$C91=\"\",\"\",IF(COUNTIF('CBAT Lookups'!$B$5:$B$12,\"Controls-\"&CBAT!$D91)=1,VLOOKUP(\"Controls-\"&CBAT!$D91,'CBAT Lookups'!$B$5:$O$12,13),0))","v":""},{"$f":"IF('Project Scope'!$C91=\"\",\"\",IF(COUNTIF('CBAT Lookups'!$B$5:$B$12,\"Controls-\"&CBAT!$D91)=1,VLOOKUP(\"Controls-\"&CBAT!$D91,'CBAT Lookups'!$B$5:$O$12,14),0))","v":""},{"$f":"IF('Project Scope'!$C91=\"\",\"\",'TRM Data'!$U$3)","v":""},{"$f":"IF('Project Scope'!$C91=\"\",\"\",'TRM Data'!$V$3)","v":""},{"$f":"IF('Project Scope'!$C91=\"\",\"\",IF($K91<=0,0,MAX(0,(IF(AND($I91>0,$J91>0),($I91*$J91)/1000,($G91*$H91)/1000)*$L91))*$BT91*$BR91)+($CD91/0.003412))","v":""},{"$f":"IF('Project Scope'!$C91=\"\",\"\",IF($K91<=0,0,MAX(0,IF(AND($I91>0,$J91>0),($I91*$J91)/1000,($G91*$H91)/1000))*$BQ91))","v":""},{"$f":"IF('Project Scope'!$C91=\"\",\"\",IF($K91<=0,0,MAX(0,IF(AND($I91>0,$J91>0),($I91*$J91)/1000,($G91*$H91)/1000))*$BK91))","v":""},{"$f":"IF('Project Scope'!$C91=\"\",\"\",IF($K91<=0,0,MAX(0,IF(AND($I91>0,$J91>0),($I91*$J91)/1000,($G91*$H91)/1000))*$BL91*$BQ91))","v":""},{"$f":"IF('Project Scope'!$C91=\"\",\"\",IF(OR($K91<=0,'Project Information'!$D$44=\"\"),0,-1*MAX(0,IF(AND($I91>0,$J91>0),($I91*$J91)/1000,($G91*$H91)/1000))*$BT91*$L91*$BS91*VLOOKUP('Project Information'!$D$44,'CBAT Lookups'!$A$23:$H$30,2)))","v":""},{"$f":"IF('Project Scope'!$C91=\"\",\"\",IF(OR($K91<=0,'Project Information'!$D$44=\"\"),0,-1*MAX(0,IF(AND($I91>0,$J91>0),($I91*$J91)/1000,($G91*$H91)/1000))*$BT91*$L91*$BS91*VLOOKUP('Project Information'!$D$44,'CBAT Lookups'!$A$23:$H$30,3)))","v":""},{"$f":"IF('Project Scope'!$C91=\"\",\"\",IF(OR($K91<=0,'Project Information'!$D$44=\"\"),0,-1*MAX(0,IF(AND($I91>0,$J91>0),($I91*$J91)/1000,($G91*$H91)/1000))*$BT91*$L91*$BS91*VLOOKUP('Project Information'!$D$44,'CBAT Lookups'!$A$23:$H$30,4)))","v":""},{"$f":"IF('Project Scope'!$C91=\"\",\"\",IF(OR($K91<=0,'Project Information'!$D$44=\"\"),0,-1*MAX(0,IF(AND($I91>0,$J91>0),($I91*$J91)/1000,($G91*$H91)/1000))*$BT91*$L91*$BS91*VLOOKUP('Project Information'!$D$44,'CBAT Lookups'!$A$23:$H$30,5)))","v":""},{"$f":"IF('Project Scope'!$C91=\"\",\"\",IF(OR($K91<=0,'Project Information'!$D$44=\"\"),0,-1*MAX(0,IF(AND($I91>0,$J91>0),($I91*$J91)/1000,($G91*$H91)/1000))*$BT91*$L91*$BS91*VLOOKUP('Project Information'!$D$44,'CBAT Lookups'!$A$23:$H$30,6)))","v":""},{"$f":"IF('Project Scope'!$C91=\"\",\"\",IF(OR($K91<=0,'Project Information'!$D$44=\"\"),0,-1*MAX(0,IF(AND($I91>0,$J91>0),($I91*$J91)/1000,($G91*$H91)/1000))*$BT91*$L91*$BS91*VLOOKUP('Project Information'!$D$44,'CBAT Lookups'!$A$23:$H$30,7)))","v":""},{"$f":"IF('Project Scope'!$C91=\"\",\"\",IF(OR($K91<=0,'Project Information'!$D$44=\"\"),0,-1*MAX(0,IF(AND($I91>0,$J91>0),($I91*$J91)/1000,($G91*$H91)/1000))*$BT91*$L91*$BS91*VLOOKUP('Project Information'!$D$44,'CBAT Lookups'!$A$23:$H$30,8)))","v":""},null,{"$f":"IF('Project Scope'!$C91=\"\",\"\",VLOOKUP($F91,'CBAT Lookups'!$B$17:$K$19,4))","v":""},{"$f":"IF('Project Scope'!$C91=\"\",\"\",VLOOKUP($F91,'CBAT Lookups'!$B$17:$K$19,5))","v":""},{"$f":"IF('Project Scope'!$C91=\"\",\"\",VLOOKUP($F91,'CBAT Lookups'!$B$17:$K$19,6))","v":""},{"$f":"IF('Project Scope'!$C91=\"\",\"\",VLOOKUP($F91,'CBAT Lookups'!$B$17:$K$19,7))","v":""},{"$f":"IF('Project Scope'!$C91=\"\",\"\",IF(SUMPRODUCT($BM91:$BP91,$CL91:$CO91)=0,0,BM91*CL91/SUMPRODUCT($BM91:$BP91,$CL91:$CO91)))","v":""},{"$f":"IF('Project Scope'!$C91=\"\",\"\",IF(SUMPRODUCT($BM91:$BP91,$CL91:$CO91)=0,0,BN91*CM91/SUMPRODUCT($BM91:$BP91,$CL91:$CO91)))","v":""},{"$f":"IF('Project Scope'!$C91=\"\",\"\",IF(SUMPRODUCT($BM91:$BP91,$CL91:$CO91)=0,0,BO91*CN91/SUMPRODUCT($BM91:$BP91,$CL91:$CO91)))","v":""},{"$f":"IF('Project Scope'!$C91=\"\",\"\",IF(SUMPRODUCT($BM91:$BP91,$CL91:$CO91)=0,0,BP91*CO91/SUMPRODUCT($BM91:$BP91,$CL91:$CO91)))","v":""},{"$f":"IF('Project Scope'!$C91=\"\",\"\",Benefits($BZ91,$CB91,$CC91,$CE91,$CF91,$CG91,$CH91,$CI91,$CJ91,$CK91,$BJ91,$CP91,$CQ91,$CR91,$CS91,$BU91,$BV91,$BW91,$BX91,$BY91,$E91))","v":""},"","","","","","","","",null,{"$f":"IF('Project Scope'!$C91=\"\",\"\",SUM('Project Scope'!$BB91,'Project Scope'!$BC91))","v":""},{"$f":"IF('Project Scope'!$C91=\"\",\"\",SUM('Project Scope'!$BH91, 'Project Scope'!$AZ91,(IF(ISNUMBER('Project Scope'!$BA91),'Project Scope'!$BA91,0)*'Project Information'!$D$12)))","v":""},null,null,{"$f":"IF('Project Scope'!$C91=\"\",\"\",IF($J91<=0,0,(SUMPRODUCT($AV91:$BC91,--($AV91:$BC91>0))+$BE91)*$DK91/((-SUMPRODUCT($AV91:$BC91,--($AV91:$BC91<0))+$BG91+$BH91+$BI91)*$DK91)))","v":""},{"$f":"IF('Project Scope'!$C91=\"\",\"\",IF($K91<=0,0,(SUMPRODUCT($CT91:$DA91,--($CT91:$DA91>0))+$DC91)*$DK91/((-SUMPRODUCT($CT91:$DA91,--($CT91:$DA91<0))+$DE91+$DF91+$DG91)*$DK91)))","v":""},{"$f":"IF('Project Scope'!$C91=\"\",\"\",IF(AND($J91<=0,$K91<=0),0,(SUMPRODUCT($AV91:$BC91,--($AV91:$BC91>0))+$BE91+SUMPRODUCT($CT91:$DA91,--($CT91:$DA91>0))+$DC91)*$DK91/((-SUMPRODUCT($AV91:$BC91,--($AV91:$BC91<0))+$BG91+$BH91+$BI91-SUMPRODUCT($CT91:$DA91,--($CT91:$DA91<0))+$DE91+$DF91+$DG91)*$DK91)))","v":""},{"$f":"IF('Project Scope'!$C91=\"\",\"\",IF(NetOrGross=\"Net\",(1-Z91+AA91),1))","v":""}]
[{"$f":"'Project Scope'!$B92","v":85},{"$f":"IF('Project Scope'!$C92=\"\",\"\",'Project Scope'!$C92)","v":""},{"$f":"IF('Project Scope'!$C92=\"\",\"\",'Project Scope'!$H92)","v":""},{"$f":"IF(ISNUMBER(SEARCH(\"Bay\",'Project Scope'!$Q92)),\"Bay\",IF('Project Scope'!C92=\"\",\"\",'Project Scope'!E92))","v":""},{"$f":"IF('Project Scope'!$C92=\"\",\"\",\"Com\")","v":""},{"$f":"IF('Project Scope'!$C92=\"\",\"\",'Project Scope'!$L92)","v":""},{"$f":"IF('Project Scope'!$C92=\"\",\"\",IF('Project Scope'!$CJ92=\"\",0,'Project Scope'!$CJ92))","v":""},{"$f":"IF('Project Scope'!$C92=\"\",\"\",IF('Project Scope'!$N92=\"\",0,'Project Scope'!$N92))","v":""},{"$f":"IF('Project Scope'!$C92=\"\",\"\",IF('Project Scope'!$CK92=\"\",0,'Project Scope'!$CK92))","v":""},{"$f":"IF('Project Scope'!$C92=\"\",\"\",IF('Project Scope'!$AO92=\"\",0,'Project Scope'!$AO92))","v":""},{"$f":"IF('Project Scope'!$C92=\"\",\"\",IF('Project Scope'!$AX92=\"\",0,'Project Scope'!$AX92))","v":""},{"$f":"IF('Project Scope'!$C92=\"\",\"\",IF('Project Scope'!$M92=\"\",0,'Project Scope'!$M92))","v":""},{"$f":"IF('Project Scope'!$C92=\"\",\"\",IF(COUNTIF('CBAT Lookups'!$B$5:$B$12,\"Fixtures-\"&CBAT!$D92)=1,VLOOKUP(\"Fixtures-\"&CBAT!$D92,'CBAT Lookups'!$B$5:$L$12,11),0))","v":""},{"$f":"IF('Project Scope'!$C92=\"\",\"\",(IF(COUNTIF('CBAT Lookups'!$B$5:$B$12,\"Fixtures-\"&CBAT!$D92)=1,VLOOKUP(\"Fixtures-\"&CBAT!$D92,'CBAT Lookups'!$B$5:$K$12,2),0))*VLOOKUP($F92,'CBAT Lookups'!$B$17:$K$19,2))","v":""},{"$f":"IF('Project Scope'!$C92=\"\",\"\",(IF(COUNTIF('CBAT Lookups'!$B$5:$B$12,\"Fixtures-\"&CBAT!$D92)=1,VLOOKUP(\"Fixtures-\"&CBAT!$D92,'CBAT Lookups'!$B$5:$K$12,3),0))*VLOOKUP($F92,'CBAT Lookups'!$B$17:$K$19,3))","v":""},{"$f":"IF('Project Scope'!$C92=\"\",\"\",(IF(COUNTIF('CBAT Lookups'!$B$5:$B$12,\"Fixtures-\"&CBAT!$D92)=1,VLOOKUP(\"Fixtures-\"&CBAT!$D92,'CBAT Lookups'!$B$5:$K$12,4),0)))","v":""},{"$f":"IF('Project Scope'!$C92=\"\",\"\",(IF(COUNTIF('CBAT Lookups'!$B$5:$B$12,\"Fixtures-\"&CBAT!$D92)=1,VLOOKUP(\"Fixtures-\"&CBAT!$D92,'CBAT Lookups'!$B$5:$K$12,5),0)))","v":""},{"$f":"IF('Project Scope'!$C92=\"\",\"\",(IF(COUNTIF('CBAT Lookups'!$B$5:$B$12,\"Fixtures-\"&CBAT!$D92)=1,VLOOKUP(\"Fixtures-\"&CBAT!$D92,'CBAT Lookups'!$B$5:$K$12,6),0)))","v":""},{"$f":"IF('Project Scope'!$C92=\"\",\"\",IF(COUNTIF('CBAT Lookups'!$B$5:$B$12,\"Fixtures-\"&CBAT!$D92)=1,VLOOKUP(\"Fixtures-\"&CBAT!$D92,'CBAT Lookups'!$B$5:$K$12,7),0))","v":""},{"$f":"IF('Project Scope'!$C92=\"\",\"\",IF(VLOOKUP($F92,'CBAT Lookups'!$B$17:$K$19,8)=\"W\",1,IF(COUNTIF('CBAT Lookups'!$B$5:$B$12,\"Fixtures-\"&CBAT!$D92)=1,VLOOKUP(\"Fixtures-\"&CBAT!$D92,'CBAT Lookups'!$B$5:$K$12,8),0)*VLOOKUP($F92,'CBAT Lookups'!$B$17:$K$19,8)))","v":""},{"$f":"IF('Project Scope'!$C92=\"\",\"\",IF(VLOOKUP($F92,'CBAT Lookups'!$B$17:$K$19,9)=\"W\",1,IF(COUNTIF('CBAT Lookups'!$B$5:$B$12,\"Fixtures-\"&CBAT!$D92)=1,VLOOKUP(\"Fixtures-\"&CBAT!$D92,'CBAT Lookups'!$B$5:$K$12,9),0)*VLOOKUP($F92,'CBAT Lookups'!$B$17:$K$19,9)))","v":""},{"$f":"IF('Project Scope'!$C92=\"\",\"\",IF(COUNTIF('CBAT Lookups'!$B$5:$B$12,\"Fixtures-\"&CBAT!$D92)=1,VLOOKUP(\"Fixtures-\"&CBAT!$D92,'CBAT Lookups'!$B$5:$K$12,10),0)*VLOOKUP($F92,'CBAT Lookups'!$B$17:$K$19,10))","v":""},{"$f":"IF('Project Scope'!$C92=\"\",\"\",IF(COUNTIF('CBAT Lookups'!$B$5:$B$12,\"Fixtures-\"&CBAT!$D92)=1,VLOOKUP(\"Fixtures-\"&CBAT!$D92,'CBAT Lookups'!$B$5:$O$12,12),0))","v":""},{"$f":"IF('Project Scope'!$C92=\"\",\"\",IF(COUNTIF('CBAT Lookups'!$B$5:$B$12,\"Fixtures-\"&CBAT!$D92)=1,VLOOKUP(\"Fixtures-\"&CBAT!$D92,'CBAT Lookups'!$B$5:$O$12,13),0))","v":""},{"$f":"IF('Project Scope'!$C92=\"\",\"\",IF(COUNTIF('CBAT Lookups'!$B$5:$B$12,\"Fixtures-\"&CBAT!$D92)=1,VLOOKUP(\"Fixtures-\"&CBAT!$D92,'CBAT Lookups'!$B$5:$O$12,14),0))","v":""},{"$f":"IF('Project Scope'!$C92=\"\",\"\",'TRM Data'!$U$3)","v":""},{"$f":"IF('Project Scope'!$C92=\"\",\"\",'TRM Data'!$V$3)","v":""},{"$f":"IF('Project Scope'!$C92=\"\",\"\",IF($J92<=0,0,MAX(0,(($G92*$H92/1000)-($I92*$J92/1000))*$L92)*$U92)+($AF92/0.003412))","v":""},{"$f":"IF('Project Scope'!$C92=\"\",\"\",IF($J92<=0,0,MAX(0,(($G92*$H92/1000)-($I92*$J92/1000)))*$T92))","v":""},{"$f":"IF('Project Scope'!$C92=\"\",\"\",IF($J92<=0,0,MAX(0,(($G92*$H92/1000)-($I92*$J92/1000))*$N92)))","v":""},{"$f":"IF('Project Scope'!$C92=\"\",\"\",IF($J92<=0,0,MAX(0,(($G92*$H92/1000)-($I92*$J92/1000))*$O92)*$T92))","v":""},{"$f":"IF('Project Scope'!$C92=\"\",\"\",IF(OR($J92<=0,'Project Information'!$D$44=\"\"),0,-1*MAX(0,(($G92*$H92/1000)-($I92*$J92/1000))*$L92)*$V92*VLOOKUP('Project Information'!$D$44,'CBAT Lookups'!$A$23:$H$30,2)))","v":""},{"$f":"IF('Project Scope'!$C92=\"\",\"\",IF(OR($J92<=0,'Project Information'!$D$44=\"\"),0,-1*MAX(0,(($G92*$H92/1000)-($I92*$J92/1000))*$L92)*$V92*VLOOKUP('Project Information'!$D$44,'CBAT Lookups'!$A$23:$H$30,3)))","v":""},{"$f":"IF('Project Scope'!$C92=\"\",\"\",IF(OR($J92<=0,'Project Information'!$D$44=\"\"),0,-1*MAX(0,(($G92*$H92/1000)-($I92*$J92/1000))*$L92)*$V92*VLOOKUP('Project Information'!$D$44,'CBAT Lookups'!$A$23:$H$30,4)))","v":""},{"$f":"IF('Project Scope'!$C92=\"\",\"\",IF(OR($J92<=0,'Project Information'!$D$44=\"\"),0,-1*MAX(0,(($G92*$H92/1000)-($I92*$J92/1000))*$L92)*$V92*VLOOKUP('Project Information'!$D$44,'CBAT Lookups'!$A$23:$H$30,5)))","v":""},{"$f":"IF('Project Scope'!$C92=\"\",\"\",IF(OR($J92<=0,'Project Information'!$D$44=\"\"),0,-1*MAX(0,(($G92*$H92/1000)-($I92*$J92/1000))*$L92)*$V92*VLOOKUP('Project Information'!$D$44,'CBAT Lookups'!$A$23:$H$30,6)))","v":""},{"$f":"IF('Project Scope'!$C92=\"\",\"\",IF(OR($J92<=0,'Project Information'!$D$44=\"\"),0,-1*MAX(0,(($G92*$H92/1000)-($I92*$J92/1000))*$L92)*$V92*VLOOKUP('Project Information'!$D$44,'CBAT Lookups'!$A$23:$H$30,7)))","v":""},{"$f":"IF('Project Scope'!$C92=\"\",\"\",IF(OR($J92<=0,'Project Information'!$D$44=\"\"),0,-1*MAX(0,(($G92*$H92/1000)-($I92*$J92/1000))*$L92)*$V92*VLOOKUP('Project Information'!$D$44,'CBAT Lookups'!$A$23:$H$30,8)))","v":""},null,{"$f":"IF('Project Scope'!$C92=\"\",\"\",VLOOKUP($F92,'CBAT Lookups'!$B$17:$K$19,4))","v":""},{"$f":"IF('Project Scope'!$C92=\"\",\"\",VLOOKUP($F92,'CBAT Lookups'!$B$17:$K$19,5))","v":""},{"$f":"IF('Project Scope'!$C92=\"\",\"\",VLOOKUP($F92,'CBAT Lookups'!$B$17:$K$19,6))","v":""},{"$f":"IF('Project Scope'!$C92=\"\",\"\",VLOOKUP($F92,'CBAT Lookups'!$B$17:$K$19,7))","v":""},{"$f":"IF('Project Scope'!$C92=\"\",\"\",IF(SUMPRODUCT($P92:$S92,$AN92:$AQ92)=0,0,P92*AN92/SUMPRODUCT($P92:$S92,$AN92:$AQ92)))","v":""},{"$f":"IF('Project Scope'!$C92=\"\",\"\",IF(SUMPRODUCT($P92:$S92,$AN92:$AQ92)=0,0,Q92*AO92/SUMPRODUCT($P92:$S92,$AN92:$AQ92)))","v":""},{"$f":"IF('Project Scope'!$C92=\"\",\"\",IF(SUMPRODUCT($P92:$S92,$AN92:$AQ92)=0,0,R92*AP92/SUMPRODUCT($P92:$S92,$AN92:$AQ92)))","v":""},{"$f":"IF('Project Scope'!$C92=\"\",\"\",IF(SUMPRODUCT($P92:$S92,$AN92:$AQ92)=0,0,S92*AQ92/SUMPRODUCT($P92:$S92,$AN92:$AQ92)))","v":""},{"$f":"IF('Project Scope'!$C92=\"\",\"\",Benefits($AB92,$AD92,$AE92,$AG92,$AH92,$AI92,$AJ92,$AK92,$AL92,$AM92,$M92,$AR92,$AS92,$AT92,$AU92,$W92,$X92,$Y92,$Z92,$AA92,$E92))","v":""},"","","","","","","","",null,{"$f":"IF('Project Scope'!$C92=\"\",\"\",SUM('Project Scope'!$AT92,'Project Scope'!$AU92))","v":""},{"$f":"IF('Project Scope'!$C92=\"\",\"\",SUM('Project Scope'!$BG92, 'Project Scope'!$AR92,(IF(ISNUMBER('Project Scope'!$AS92),'Project Scope'!$AS92,0)*'Project Information'!$D$12)))","v":""},null,null,{"$f":"IF('Project Scope'!$C92=\"\",\"\",IF(COUNTIF('CBAT Lookups'!$B$5:$B$12,\"Controls-\"&CBAT!$D92)=1,VLOOKUP(\"Controls-\"&CBAT!$D92,'CBAT Lookups'!$B$5:$L$12,11),0))","v":""},{"$f":"IF('Project Scope'!$C92=\"\",\"\",IF(COUNTIF('CBAT Lookups'!$B$5:$B$12,\"Controls-\"&CBAT!$D92)=1,VLOOKUP(\"Controls-\"&CBAT!$D92,'CBAT Lookups'!$B$5:$K$12,2),0)*VLOOKUP($F92,'CBAT Lookups'!$B$17:$K$19,2))","v":""},{"$f":"IF('Project Scope'!$C92=\"\",\"\",IF(COUNTIF('CBAT Lookups'!$B$5:$B$12,\"Controls-\"&CBAT!$D92)=1,VLOOKUP(\"Controls-\"&CBAT!$D92,'CBAT Lookups'!$B$5:$K$12,3),0)*VLOOKUP($F92,'CBAT Lookups'!$B$17:$K$19,3))","v":""},{"$f":"IF('Project Scope'!$C92=\"\",\"\",IF(COUNTIF('CBAT Lookups'!$B$5:$B$12,\"Controls-\"&CBAT!$D92)=1,VLOOKUP(\"Controls-\"&CBAT!$D92,'CBAT Lookups'!$B$5:$K$12,4),0))","v":""},{"$f":"IF('Project Scope'!$C92=\"\",\"\",IF(COUNTIF('CBAT Lookups'!$B$5:$B$12,\"Controls-\"&CBAT!$D92)=1,VLOOKUP(\"Controls-\"&CBAT!$D92,'CBAT Lookups'!$B$5:$K$12,5),0))","v":""},{"$f":"IF('Project Scope'!$C92=\"\",\"\",IF(COUNTIF('CBAT Lookups'!$B$5:$B$12,\"Controls-\"&CBAT!$D92)=1,VLOOKUP(\"Controls-\"&CBAT!$D92,'CBAT Lookups'!$B$5:$K$12,6),0))","v":""},{"$f":"IF('Project Scope'!$C92=\"\",\"\",IF(COUNTIF('CBAT Lookups'!$B$5:$B$12,\"Controls-\"&CBAT!$D92)=1,VLOOKUP(\"Controls-\"&CBAT!$D92,'CBAT Lookups'!$B$5:$K$12,7),0))","v":""},{"$f":"IF('Project Scope'!$C92=\"\",\"\",IF(VLOOKUP($F92,'CBAT Lookups'!$B$17:$K$19,8)=\"W\",1,IF(COUNTIF('CBAT Lookups'!$B$5:$B$12,\"Controls-\"&CBAT!$D92)=1,VLOOKUP(\"Controls-\"&CBAT!$D92,'CBAT Lookups'!$B$5:$K$12,8),0)*VLOOKUP($F92,'CBAT Lookups'!$B$17:$K$19,8)))","v":""},{"$f":"IF('Project Scope'!$C92=\"\",\"\",IF(VLOOKUP($F92,'CBAT Lookups'!$B$17:$K$19,9)=\"W\",1,IF(COUNTIF('CBAT Lookups'!$B$5:$B$12,\"Controls-\"&CBAT!$D92)=1,VLOOKUP(\"Controls-\"&CBAT!$D92,'CBAT Lookups'!$B$5:$K$12,9),0)*VLOOKUP($F92,'CBAT Lookups'!$B$17:$K$19,9)))","v":""},{"$f":"IF('Project Scope'!$C92=\"\",\"\",IF(COUNTIF('CBAT Lookups'!$B$5:$B$12,\"Controls-\"&CBAT!$D92)=1,VLOOKUP(\"Controls-\"&CBAT!$D92,'CBAT Lookups'!$B$5:$K$12,10),0)*VLOOKUP($F92,'CBAT Lookups'!$B$17:$K$19,10))","v":""},{"$f":"IF('Project Scope'!$C92=\"\",\"\",VLOOKUP($C92,'CBAT Lookups'!$A$33:$B$57,2))","v":""},{"$f":"IF('Project Scope'!$C92=\"\",\"\",IF(COUNTIF('CBAT Lookups'!$B$5:$B$12,\"Controls-\"&CBAT!$D92)=1,VLOOKUP(\"Controls-\"&CBAT!$D92,'CBAT Lookups'!$B$5:$O$12,12),0))","v":""},{"$f":"IF('Project Scope'!$C92=\"\",\"\",IF(COUNTIF('CBAT Lookups'!$B$5:$B$12,\"Controls-\"&CBAT!$D92)=1,VLOOKUP(\"Controls-\"&CBAT!$D92,'CBAT Lookups'!$B$5:$O$12,13),0))","v":""},{"$f":"IF('Project Scope'!$C92=\"\",\"\",IF(COUNTIF('CBAT Lookups'!$B$5:$B$12,\"Controls-\"&CBAT!$D92)=1,VLOOKUP(\"Controls-\"&CBAT!$D92,'CBAT Lookups'!$B$5:$O$12,14),0))","v":""},{"$f":"IF('Project Scope'!$C92=\"\",\"\",'TRM Data'!$U$3)","v":""},{"$f":"IF('Project Scope'!$C92=\"\",\"\",'TRM Data'!$V$3)","v":""},{"$f":"IF('Project Scope'!$C92=\"\",\"\",IF($K92<=0,0,MAX(0,(IF(AND($I92>0,$J92>0),($I92*$J92)/1000,($G92*$H92)/1000)*$L92))*$BT92*$BR92)+($CD92/0.003412))","v":""},{"$f":"IF('Project Scope'!$C92=\"\",\"\",IF($K92<=0,0,MAX(0,IF(AND($I92>0,$J92>0),($I92*$J92)/1000,($G92*$H92)/1000))*$BQ92))","v":""},{"$f":"IF('Project Scope'!$C92=\"\",\"\",IF($K92<=0,0,MAX(0,IF(AND($I92>0,$J92>0),($I92*$J92)/1000,($G92*$H92)/1000))*$BK92))","v":""},{"$f":"IF('Project Scope'!$C92=\"\",\"\",IF($K92<=0,0,MAX(0,IF(AND($I92>0,$J92>0),($I92*$J92)/1000,($G92*$H92)/1000))*$BL92*$BQ92))","v":""},{"$f":"IF('Project Scope'!$C92=\"\",\"\",IF(OR($K92<=0,'Project Information'!$D$44=\"\"),0,-1*MAX(0,IF(AND($I92>0,$J92>0),($I92*$J92)/1000,($G92*$H92)/1000))*$BT92*$L92*$BS92*VLOOKUP('Project Information'!$D$44,'CBAT Lookups'!$A$23:$H$30,2)))","v":""},{"$f":"IF('Project Scope'!$C92=\"\",\"\",IF(OR($K92<=0,'Project Information'!$D$44=\"\"),0,-1*MAX(0,IF(AND($I92>0,$J92>0),($I92*$J92)/1000,($G92*$H92)/1000))*$BT92*$L92*$BS92*VLOOKUP('Project Information'!$D$44,'CBAT Lookups'!$A$23:$H$30,3)))","v":""},{"$f":"IF('Project Scope'!$C92=\"\",\"\",IF(OR($K92<=0,'Project Information'!$D$44=\"\"),0,-1*MAX(0,IF(AND($I92>0,$J92>0),($I92*$J92)/1000,($G92*$H92)/1000))*$BT92*$L92*$BS92*VLOOKUP('Project Information'!$D$44,'CBAT Lookups'!$A$23:$H$30,4)))","v":""},{"$f":"IF('Project Scope'!$C92=\"\",\"\",IF(OR($K92<=0,'Project Information'!$D$44=\"\"),0,-1*MAX(0,IF(AND($I92>0,$J92>0),($I92*$J92)/1000,($G92*$H92)/1000))*$BT92*$L92*$BS92*VLOOKUP('Project Information'!$D$44,'CBAT Lookups'!$A$23:$H$30,5)))","v":""},{"$f":"IF('Project Scope'!$C92=\"\",\"\",IF(OR($K92<=0,'Project Information'!$D$44=\"\"),0,-1*MAX(0,IF(AND($I92>0,$J92>0),($I92*$J92)/1000,($G92*$H92)/1000))*$BT92*$L92*$BS92*VLOOKUP('Project Information'!$D$44,'CBAT Lookups'!$A$23:$H$30,6)))","v":""},{"$f":"IF('Project Scope'!$C92=\"\",\"\",IF(OR($K92<=0,'Project Information'!$D$44=\"\"),0,-1*MAX(0,IF(AND($I92>0,$J92>0),($I92*$J92)/1000,($G92*$H92)/1000))*$BT92*$L92*$BS92*VLOOKUP('Project Information'!$D$44,'CBAT Lookups'!$A$23:$H$30,7)))","v":""},{"$f":"IF('Project Scope'!$C92=\"\",\"\",IF(OR($K92<=0,'Project Information'!$D$44=\"\"),0,-1*MAX(0,IF(AND($I92>0,$J92>0),($I92*$J92)/1000,($G92*$H92)/1000))*$BT92*$L92*$BS92*VLOOKUP('Project Information'!$D$44,'CBAT Lookups'!$A$23:$H$30,8)))","v":""},null,{"$f":"IF('Project Scope'!$C92=\"\",\"\",VLOOKUP($F92,'CBAT Lookups'!$B$17:$K$19,4))","v":""},{"$f":"IF('Project Scope'!$C92=\"\",\"\",VLOOKUP($F92,'CBAT Lookups'!$B$17:$K$19,5))","v":""},{"$f":"IF('Project Scope'!$C92=\"\",\"\",VLOOKUP($F92,'CBAT Lookups'!$B$17:$K$19,6))","v":""},{"$f":"IF('Project Scope'!$C92=\"\",\"\",VLOOKUP($F92,'CBAT Lookups'!$B$17:$K$19,7))","v":""},{"$f":"IF('Project Scope'!$C92=\"\",\"\",IF(SUMPRODUCT($BM92:$BP92,$CL92:$CO92)=0,0,BM92*CL92/SUMPRODUCT($BM92:$BP92,$CL92:$CO92)))","v":""},{"$f":"IF('Project Scope'!$C92=\"\",\"\",IF(SUMPRODUCT($BM92:$BP92,$CL92:$CO92)=0,0,BN92*CM92/SUMPRODUCT($BM92:$BP92,$CL92:$CO92)))","v":""},{"$f":"IF('Project Scope'!$C92=\"\",\"\",IF(SUMPRODUCT($BM92:$BP92,$CL92:$CO92)=0,0,BO92*CN92/SUMPRODUCT($BM92:$BP92,$CL92:$CO92)))","v":""},{"$f":"IF('Project Scope'!$C92=\"\",\"\",IF(SUMPRODUCT($BM92:$BP92,$CL92:$CO92)=0,0,BP92*CO92/SUMPRODUCT($BM92:$BP92,$CL92:$CO92)))","v":""},{"$f":"IF('Project Scope'!$C92=\"\",\"\",Benefits($BZ92,$CB92,$CC92,$CE92,$CF92,$CG92,$CH92,$CI92,$CJ92,$CK92,$BJ92,$CP92,$CQ92,$CR92,$CS92,$BU92,$BV92,$BW92,$BX92,$BY92,$E92))","v":""},"","","","","","","","",null,{"$f":"IF('Project Scope'!$C92=\"\",\"\",SUM('Project Scope'!$BB92,'Project Scope'!$BC92))","v":""},{"$f":"IF('Project Scope'!$C92=\"\",\"\",SUM('Project Scope'!$BH92, 'Project Scope'!$AZ92,(IF(ISNUMBER('Project Scope'!$BA92),'Project Scope'!$BA92,0)*'Project Information'!$D$12)))","v":""},null,null,{"$f":"IF('Project Scope'!$C92=\"\",\"\",IF($J92<=0,0,(SUMPRODUCT($AV92:$BC92,--($AV92:$BC92>0))+$BE92)*$DK92/((-SUMPRODUCT($AV92:$BC92,--($AV92:$BC92<0))+$BG92+$BH92+$BI92)*$DK92)))","v":""},{"$f":"IF('Project Scope'!$C92=\"\",\"\",IF($K92<=0,0,(SUMPRODUCT($CT92:$DA92,--($CT92:$DA92>0))+$DC92)*$DK92/((-SUMPRODUCT($CT92:$DA92,--($CT92:$DA92<0))+$DE92+$DF92+$DG92)*$DK92)))","v":""},{"$f":"IF('Project Scope'!$C92=\"\",\"\",IF(AND($J92<=0,$K92<=0),0,(SUMPRODUCT($AV92:$BC92,--($AV92:$BC92>0))+$BE92+SUMPRODUCT($CT92:$DA92,--($CT92:$DA92>0))+$DC92)*$DK92/((-SUMPRODUCT($AV92:$BC92,--($AV92:$BC92<0))+$BG92+$BH92+$BI92-SUMPRODUCT($CT92:$DA92,--($CT92:$DA92<0))+$DE92+$DF92+$DG92)*$DK92)))","v":""},{"$f":"IF('Project Scope'!$C92=\"\",\"\",IF(NetOrGross=\"Net\",(1-Z92+AA92),1))","v":""}]
[{"$f":"'Project Scope'!$B93","v":86},{"$f":"IF('Project Scope'!$C93=\"\",\"\",'Project Scope'!$C93)","v":""},{"$f":"IF('Project Scope'!$C93=\"\",\"\",'Project Scope'!$H93)","v":""},{"$f":"IF(ISNUMBER(SEARCH(\"Bay\",'Project Scope'!$Q93)),\"Bay\",IF('Project Scope'!C93=\"\",\"\",'Project Scope'!E93))","v":""},{"$f":"IF('Project Scope'!$C93=\"\",\"\",\"Com\")","v":""},{"$f":"IF('Project Scope'!$C93=\"\",\"\",'Project Scope'!$L93)","v":""},{"$f":"IF('Project Scope'!$C93=\"\",\"\",IF('Project Scope'!$CJ93=\"\",0,'Project Scope'!$CJ93))","v":""},{"$f":"IF('Project Scope'!$C93=\"\",\"\",IF('Project Scope'!$N93=\"\",0,'Project Scope'!$N93))","v":""},{"$f":"IF('Project Scope'!$C93=\"\",\"\",IF('Project Scope'!$CK93=\"\",0,'Project Scope'!$CK93))","v":""},{"$f":"IF('Project Scope'!$C93=\"\",\"\",IF('Project Scope'!$AO93=\"\",0,'Project Scope'!$AO93))","v":""},{"$f":"IF('Project Scope'!$C93=\"\",\"\",IF('Project Scope'!$AX93=\"\",0,'Project Scope'!$AX93))","v":""},{"$f":"IF('Project Scope'!$C93=\"\",\"\",IF('Project Scope'!$M93=\"\",0,'Project Scope'!$M93))","v":""},{"$f":"IF('Project Scope'!$C93=\"\",\"\",IF(COUNTIF('CBAT Lookups'!$B$5:$B$12,\"Fixtures-\"&CBAT!$D93)=1,VLOOKUP(\"Fixtures-\"&CBAT!$D93,'CBAT Lookups'!$B$5:$L$12,11),0))","v":""},{"$f":"IF('Project Scope'!$C93=\"\",\"\",(IF(COUNTIF('CBAT Lookups'!$B$5:$B$12,\"Fixtures-\"&CBAT!$D93)=1,VLOOKUP(\"Fixtures-\"&CBAT!$D93,'CBAT Lookups'!$B$5:$K$12,2),0))*VLOOKUP($F93,'CBAT Lookups'!$B$17:$K$19,2))","v":""},{"$f":"IF('Project Scope'!$C93=\"\",\"\",(IF(COUNTIF('CBAT Lookups'!$B$5:$B$12,\"Fixtures-\"&CBAT!$D93)=1,VLOOKUP(\"Fixtures-\"&CBAT!$D93,'CBAT Lookups'!$B$5:$K$12,3),0))*VLOOKUP($F93,'CBAT Lookups'!$B$17:$K$19,3))","v":""},{"$f":"IF('Project Scope'!$C93=\"\",\"\",(IF(COUNTIF('CBAT Lookups'!$B$5:$B$12,\"Fixtures-\"&CBAT!$D93)=1,VLOOKUP(\"Fixtures-\"&CBAT!$D93,'CBAT Lookups'!$B$5:$K$12,4),0)))","v":""},{"$f":"IF('Project Scope'!$C93=\"\",\"\",(IF(COUNTIF('CBAT Lookups'!$B$5:$B$12,\"Fixtures-\"&CBAT!$D93)=1,VLOOKUP(\"Fixtures-\"&CBAT!$D93,'CBAT Lookups'!$B$5:$K$12,5),0)))","v":""},{"$f":"IF('Project Scope'!$C93=\"\",\"\",(IF(COUNTIF('CBAT Lookups'!$B$5:$B$12,\"Fixtures-\"&CBAT!$D93)=1,VLOOKUP(\"Fixtures-\"&CBAT!$D93,'CBAT Lookups'!$B$5:$K$12,6),0)))","v":""},{"$f":"IF('Project Scope'!$C93=\"\",\"\",IF(COUNTIF('CBAT Lookups'!$B$5:$B$12,\"Fixtures-\"&CBAT!$D93)=1,VLOOKUP(\"Fixtures-\"&CBAT!$D93,'CBAT Lookups'!$B$5:$K$12,7),0))","v":""},{"$f":"IF('Project Scope'!$C93=\"\",\"\",IF(VLOOKUP($F93,'CBAT Lookups'!$B$17:$K$19,8)=\"W\",1,IF(COUNTIF('CBAT Lookups'!$B$5:$B$12,\"Fixtures-\"&CBAT!$D93)=1,VLOOKUP(\"Fixtures-\"&CBAT!$D93,'CBAT Lookups'!$B$5:$K$12,8),0)*VLOOKUP($F93,'CBAT Lookups'!$B$17:$K$19,8)))","v":""},{"$f":"IF('Project Scope'!$C93=\"\",\"\",IF(VLOOKUP($F93,'CBAT Lookups'!$B$17:$K$19,9)=\"W\",1,IF(COUNTIF('CBAT Lookups'!$B$5:$B$12,\"Fixtures-\"&CBAT!$D93)=1,VLOOKUP(\"Fixtures-\"&CBAT!$D93,'CBAT Lookups'!$B$5:$K$12,9),0)*VLOOKUP($F93,'CBAT Lookups'!$B$17:$K$19,9)))","v":""},{"$f":"IF('Project Scope'!$C93=\"\",\"\",IF(COUNTIF('CBAT Lookups'!$B$5:$B$12,\"Fixtures-\"&CBAT!$D93)=1,VLOOKUP(\"Fixtures-\"&CBAT!$D93,'CBAT Lookups'!$B$5:$K$12,10),0)*VLOOKUP($F93,'CBAT Lookups'!$B$17:$K$19,10))","v":""},{"$f":"IF('Project Scope'!$C93=\"\",\"\",IF(COUNTIF('CBAT Lookups'!$B$5:$B$12,\"Fixtures-\"&CBAT!$D93)=1,VLOOKUP(\"Fixtures-\"&CBAT!$D93,'CBAT Lookups'!$B$5:$O$12,12),0))","v":""},{"$f":"IF('Project Scope'!$C93=\"\",\"\",IF(COUNTIF('CBAT Lookups'!$B$5:$B$12,\"Fixtures-\"&CBAT!$D93)=1,VLOOKUP(\"Fixtures-\"&CBAT!$D93,'CBAT Lookups'!$B$5:$O$12,13),0))","v":""},{"$f":"IF('Project Scope'!$C93=\"\",\"\",IF(COUNTIF('CBAT Lookups'!$B$5:$B$12,\"Fixtures-\"&CBAT!$D93)=1,VLOOKUP(\"Fixtures-\"&CBAT!$D93,'CBAT Lookups'!$B$5:$O$12,14),0))","v":""},{"$f":"IF('Project Scope'!$C93=\"\",\"\",'TRM Data'!$U$3)","v":""},{"$f":"IF('Project Scope'!$C93=\"\",\"\",'TRM Data'!$V$3)","v":""},{"$f":"IF('Project Scope'!$C93=\"\",\"\",IF($J93<=0,0,MAX(0,(($G93*$H93/1000)-($I93*$J93/1000))*$L93)*$U93)+($AF93/0.003412))","v":""},{"$f":"IF('Project Scope'!$C93=\"\",\"\",IF($J93<=0,0,MAX(0,(($G93*$H93/1000)-($I93*$J93/1000)))*$T93))","v":""},{"$f":"IF('Project Scope'!$C93=\"\",\"\",IF($J93<=0,0,MAX(0,(($G93*$H93/1000)-($I93*$J93/1000))*$N93)))","v":""},{"$f":"IF('Project Scope'!$C93=\"\",\"\",IF($J93<=0,0,MAX(0,(($G93*$H93/1000)-($I93*$J93/1000))*$O93)*$T93))","v":""},{"$f":"IF('Project Scope'!$C93=\"\",\"\",IF(OR($J93<=0,'Project Information'!$D$44=\"\"),0,-1*MAX(0,(($G93*$H93/1000)-($I93*$J93/1000))*$L93)*$V93*VLOOKUP('Project Information'!$D$44,'CBAT Lookups'!$A$23:$H$30,2)))","v":""},{"$f":"IF('Project Scope'!$C93=\"\",\"\",IF(OR($J93<=0,'Project Information'!$D$44=\"\"),0,-1*MAX(0,(($G93*$H93/1000)-($I93*$J93/1000))*$L93)*$V93*VLOOKUP('Project Information'!$D$44,'CBAT Lookups'!$A$23:$H$30,3)))","v":""},{"$f":"IF('Project Scope'!$C93=\"\",\"\",IF(OR($J93<=0,'Project Information'!$D$44=\"\"),0,-1*MAX(0,(($G93*$H93/1000)-($I93*$J93/1000))*$L93)*$V93*VLOOKUP('Project Information'!$D$44,'CBAT Lookups'!$A$23:$H$30,4)))","v":""},{"$f":"IF('Project Scope'!$C93=\"\",\"\",IF(OR($J93<=0,'Project Information'!$D$44=\"\"),0,-1*MAX(0,(($G93*$H93/1000)-($I93*$J93/1000))*$L93)*$V93*VLOOKUP('Project Information'!$D$44,'CBAT Lookups'!$A$23:$H$30,5)))","v":""},{"$f":"IF('Project Scope'!$C93=\"\",\"\",IF(OR($J93<=0,'Project Information'!$D$44=\"\"),0,-1*MAX(0,(($G93*$H93/1000)-($I93*$J93/1000))*$L93)*$V93*VLOOKUP('Project Information'!$D$44,'CBAT Lookups'!$A$23:$H$30,6)))","v":""},{"$f":"IF('Project Scope'!$C93=\"\",\"\",IF(OR($J93<=0,'Project Information'!$D$44=\"\"),0,-1*MAX(0,(($G93*$H93/1000)-($I93*$J93/1000))*$L93)*$V93*VLOOKUP('Project Information'!$D$44,'CBAT Lookups'!$A$23:$H$30,7)))","v":""},{"$f":"IF('Project Scope'!$C93=\"\",\"\",IF(OR($J93<=0,'Project Information'!$D$44=\"\"),0,-1*MAX(0,(($G93*$H93/1000)-($I93*$J93/1000))*$L93)*$V93*VLOOKUP('Project Information'!$D$44,'CBAT Lookups'!$A$23:$H$30,8)))","v":""},null,{"$f":"IF('Project Scope'!$C93=\"\",\"\",VLOOKUP($F93,'CBAT Lookups'!$B$17:$K$19,4))","v":""},{"$f":"IF('Project Scope'!$C93=\"\",\"\",VLOOKUP($F93,'CBAT Lookups'!$B$17:$K$19,5))","v":""},{"$f":"IF('Project Scope'!$C93=\"\",\"\",VLOOKUP($F93,'CBAT Lookups'!$B$17:$K$19,6))","v":""},{"$f":"IF('Project Scope'!$C93=\"\",\"\",VLOOKUP($F93,'CBAT Lookups'!$B$17:$K$19,7))","v":""},{"$f":"IF('Project Scope'!$C93=\"\",\"\",IF(SUMPRODUCT($P93:$S93,$AN93:$AQ93)=0,0,P93*AN93/SUMPRODUCT($P93:$S93,$AN93:$AQ93)))","v":""},{"$f":"IF('Project Scope'!$C93=\"\",\"\",IF(SUMPRODUCT($P93:$S93,$AN93:$AQ93)=0,0,Q93*AO93/SUMPRODUCT($P93:$S93,$AN93:$AQ93)))","v":""},{"$f":"IF('Project Scope'!$C93=\"\",\"\",IF(SUMPRODUCT($P93:$S93,$AN93:$AQ93)=0,0,R93*AP93/SUMPRODUCT($P93:$S93,$AN93:$AQ93)))","v":""},{"$f":"IF('Project Scope'!$C93=\"\",\"\",IF(SUMPRODUCT($P93:$S93,$AN93:$AQ93)=0,0,S93*AQ93/SUMPRODUCT($P93:$S93,$AN93:$AQ93)))","v":""},{"$f":"IF('Project Scope'!$C93=\"\",\"\",Benefits($AB93,$AD93,$AE93,$AG93,$AH93,$AI93,$AJ93,$AK93,$AL93,$AM93,$M93,$AR93,$AS93,$AT93,$AU93,$W93,$X93,$Y93,$Z93,$AA93,$E93))","v":""},"","","","","","","","",null,{"$f":"IF('Project Scope'!$C93=\"\",\"\",SUM('Project Scope'!$AT93,'Project Scope'!$AU93))","v":""},{"$f":"IF('Project Scope'!$C93=\"\",\"\",SUM('Project Scope'!$BG93, 'Project Scope'!$AR93,(IF(ISNUMBER('Project Scope'!$AS93),'Project Scope'!$AS93,0)*'Project Information'!$D$12)))","v":""},null,null,{"$f":"IF('Project Scope'!$C93=\"\",\"\",IF(COUNTIF('CBAT Lookups'!$B$5:$B$12,\"Controls-\"&CBAT!$D93)=1,VLOOKUP(\"Controls-\"&CBAT!$D93,'CBAT Lookups'!$B$5:$L$12,11),0))","v":""},{"$f":"IF('Project Scope'!$C93=\"\",\"\",IF(COUNTIF('CBAT Lookups'!$B$5:$B$12,\"Controls-\"&CBAT!$D93)=1,VLOOKUP(\"Controls-\"&CBAT!$D93,'CBAT Lookups'!$B$5:$K$12,2),0)*VLOOKUP($F93,'CBAT Lookups'!$B$17:$K$19,2))","v":""},{"$f":"IF('Project Scope'!$C93=\"\",\"\",IF(COUNTIF('CBAT Lookups'!$B$5:$B$12,\"Controls-\"&CBAT!$D93)=1,VLOOKUP(\"Controls-\"&CBAT!$D93,'CBAT Lookups'!$B$5:$K$12,3),0)*VLOOKUP($F93,'CBAT Lookups'!$B$17:$K$19,3))","v":""},{"$f":"IF('Project Scope'!$C93=\"\",\"\",IF(COUNTIF('CBAT Lookups'!$B$5:$B$12,\"Controls-\"&CBAT!$D93)=1,VLOOKUP(\"Controls-\"&CBAT!$D93,'CBAT Lookups'!$B$5:$K$12,4),0))","v":""},{"$f":"IF('Project Scope'!$C93=\"\",\"\",IF(COUNTIF('CBAT Lookups'!$B$5:$B$12,\"Controls-\"&CBAT!$D93)=1,VLOOKUP(\"Controls-\"&CBAT!$D93,'CBAT Lookups'!$B$5:$K$12,5),0))","v":""},{"$f":"IF('Project Scope'!$C93=\"\",\"\",IF(COUNTIF('CBAT Lookups'!$B$5:$B$12,\"Controls-\"&CBAT!$D93)=1,VLOOKUP(\"Controls-\"&CBAT!$D93,'CBAT Lookups'!$B$5:$K$12,6),0))","v":""},{"$f":"IF('Project Scope'!$C93=\"\",\"\",IF(COUNTIF('CBAT Lookups'!$B$5:$B$12,\"Controls-\"&CBAT!$D93)=1,VLOOKUP(\"Controls-\"&CBAT!$D93,'CBAT Lookups'!$B$5:$K$12,7),0))","v":""},{"$f":"IF('Project Scope'!$C93=\"\",\"\",IF(VLOOKUP($F93,'CBAT Lookups'!$B$17:$K$19,8)=\"W\",1,IF(COUNTIF('CBAT Lookups'!$B$5:$B$12,\"Controls-\"&CBAT!$D93)=1,VLOOKUP(\"Controls-\"&CBAT!$D93,'CBAT Lookups'!$B$5:$K$12,8),0)*VLOOKUP($F93,'CBAT Lookups'!$B$17:$K$19,8)))","v":""},{"$f":"IF('Project Scope'!$C93=\"\",\"\",IF(VLOOKUP($F93,'CBAT Lookups'!$B$17:$K$19,9)=\"W\",1,IF(COUNTIF('CBAT Lookups'!$B$5:$B$12,\"Controls-\"&CBAT!$D93)=1,VLOOKUP(\"Controls-\"&CBAT!$D93,'CBAT Lookups'!$B$5:$K$12,9),0)*VLOOKUP($F93,'CBAT Lookups'!$B$17:$K$19,9)))","v":""},{"$f":"IF('Project Scope'!$C93=\"\",\"\",IF(COUNTIF('CBAT Lookups'!$B$5:$B$12,\"Controls-\"&CBAT!$D93)=1,VLOOKUP(\"Controls-\"&CBAT!$D93,'CBAT Lookups'!$B$5:$K$12,10),0)*VLOOKUP($F93,'CBAT Lookups'!$B$17:$K$19,10))","v":""},{"$f":"IF('Project Scope'!$C93=\"\",\"\",VLOOKUP($C93,'CBAT Lookups'!$A$33:$B$57,2))","v":""},{"$f":"IF('Project Scope'!$C93=\"\",\"\",IF(COUNTIF('CBAT Lookups'!$B$5:$B$12,\"Controls-\"&CBAT!$D93)=1,VLOOKUP(\"Controls-\"&CBAT!$D93,'CBAT Lookups'!$B$5:$O$12,12),0))","v":""},{"$f":"IF('Project Scope'!$C93=\"\",\"\",IF(COUNTIF('CBAT Lookups'!$B$5:$B$12,\"Controls-\"&CBAT!$D93)=1,VLOOKUP(\"Controls-\"&CBAT!$D93,'CBAT Lookups'!$B$5:$O$12,13),0))","v":""},{"$f":"IF('Project Scope'!$C93=\"\",\"\",IF(COUNTIF('CBAT Lookups'!$B$5:$B$12,\"Controls-\"&CBAT!$D93)=1,VLOOKUP(\"Controls-\"&CBAT!$D93,'CBAT Lookups'!$B$5:$O$12,14),0))","v":""},{"$f":"IF('Project Scope'!$C93=\"\",\"\",'TRM Data'!$U$3)","v":""},{"$f":"IF('Project Scope'!$C93=\"\",\"\",'TRM Data'!$V$3)","v":""},{"$f":"IF('Project Scope'!$C93=\"\",\"\",IF($K93<=0,0,MAX(0,(IF(AND($I93>0,$J93>0),($I93*$J93)/1000,($G93*$H93)/1000)*$L93))*$BT93*$BR93)+($CD93/0.003412))","v":""},{"$f":"IF('Project Scope'!$C93=\"\",\"\",IF($K93<=0,0,MAX(0,IF(AND($I93>0,$J93>0),($I93*$J93)/1000,($G93*$H93)/1000))*$BQ93))","v":""},{"$f":"IF('Project Scope'!$C93=\"\",\"\",IF($K93<=0,0,MAX(0,IF(AND($I93>0,$J93>0),($I93*$J93)/1000,($G93*$H93)/1000))*$BK93))","v":""},{"$f":"IF('Project Scope'!$C93=\"\",\"\",IF($K93<=0,0,MAX(0,IF(AND($I93>0,$J93>0),($I93*$J93)/1000,($G93*$H93)/1000))*$BL93*$BQ93))","v":""},{"$f":"IF('Project Scope'!$C93=\"\",\"\",IF(OR($K93<=0,'Project Information'!$D$44=\"\"),0,-1*MAX(0,IF(AND($I93>0,$J93>0),($I93*$J93)/1000,($G93*$H93)/1000))*$BT93*$L93*$BS93*VLOOKUP('Project Information'!$D$44,'CBAT Lookups'!$A$23:$H$30,2)))","v":""},{"$f":"IF('Project Scope'!$C93=\"\",\"\",IF(OR($K93<=0,'Project Information'!$D$44=\"\"),0,-1*MAX(0,IF(AND($I93>0,$J93>0),($I93*$J93)/1000,($G93*$H93)/1000))*$BT93*$L93*$BS93*VLOOKUP('Project Information'!$D$44,'CBAT Lookups'!$A$23:$H$30,3)))","v":""},{"$f":"IF('Project Scope'!$C93=\"\",\"\",IF(OR($K93<=0,'Project Information'!$D$44=\"\"),0,-1*MAX(0,IF(AND($I93>0,$J93>0),($I93*$J93)/1000,($G93*$H93)/1000))*$BT93*$L93*$BS93*VLOOKUP('Project Information'!$D$44,'CBAT Lookups'!$A$23:$H$30,4)))","v":""},{"$f":"IF('Project Scope'!$C93=\"\",\"\",IF(OR($K93<=0,'Project Information'!$D$44=\"\"),0,-1*MAX(0,IF(AND($I93>0,$J93>0),($I93*$J93)/1000,($G93*$H93)/1000))*$BT93*$L93*$BS93*VLOOKUP('Project Information'!$D$44,'CBAT Lookups'!$A$23:$H$30,5)))","v":""},{"$f":"IF('Project Scope'!$C93=\"\",\"\",IF(OR($K93<=0,'Project Information'!$D$44=\"\"),0,-1*MAX(0,IF(AND($I93>0,$J93>0),($I93*$J93)/1000,($G93*$H93)/1000))*$BT93*$L93*$BS93*VLOOKUP('Project Information'!$D$44,'CBAT Lookups'!$A$23:$H$30,6)))","v":""},{"$f":"IF('Project Scope'!$C93=\"\",\"\",IF(OR($K93<=0,'Project Information'!$D$44=\"\"),0,-1*MAX(0,IF(AND($I93>0,$J93>0),($I93*$J93)/1000,($G93*$H93)/1000))*$BT93*$L93*$BS93*VLOOKUP('Project Information'!$D$44,'CBAT Lookups'!$A$23:$H$30,7)))","v":""},{"$f":"IF('Project Scope'!$C93=\"\",\"\",IF(OR($K93<=0,'Project Information'!$D$44=\"\"),0,-1*MAX(0,IF(AND($I93>0,$J93>0),($I93*$J93)/1000,($G93*$H93)/1000))*$BT93*$L93*$BS93*VLOOKUP('Project Information'!$D$44,'CBAT Lookups'!$A$23:$H$30,8)))","v":""},null,{"$f":"IF('Project Scope'!$C93=\"\",\"\",VLOOKUP($F93,'CBAT Lookups'!$B$17:$K$19,4))","v":""},{"$f":"IF('Project Scope'!$C93=\"\",\"\",VLOOKUP($F93,'CBAT Lookups'!$B$17:$K$19,5))","v":""},{"$f":"IF('Project Scope'!$C93=\"\",\"\",VLOOKUP($F93,'CBAT Lookups'!$B$17:$K$19,6))","v":""},{"$f":"IF('Project Scope'!$C93=\"\",\"\",VLOOKUP($F93,'CBAT Lookups'!$B$17:$K$19,7))","v":""},{"$f":"IF('Project Scope'!$C93=\"\",\"\",IF(SUMPRODUCT($BM93:$BP93,$CL93:$CO93)=0,0,BM93*CL93/SUMPRODUCT($BM93:$BP93,$CL93:$CO93)))","v":""},{"$f":"IF('Project Scope'!$C93=\"\",\"\",IF(SUMPRODUCT($BM93:$BP93,$CL93:$CO93)=0,0,BN93*CM93/SUMPRODUCT($BM93:$BP93,$CL93:$CO93)))","v":""},{"$f":"IF('Project Scope'!$C93=\"\",\"\",IF(SUMPRODUCT($BM93:$BP93,$CL93:$CO93)=0,0,BO93*CN93/SUMPRODUCT($BM93:$BP93,$CL93:$CO93)))","v":""},{"$f":"IF('Project Scope'!$C93=\"\",\"\",IF(SUMPRODUCT($BM93:$BP93,$CL93:$CO93)=0,0,BP93*CO93/SUMPRODUCT($BM93:$BP93,$CL93:$CO93)))","v":""},{"$f":"IF('Project Scope'!$C93=\"\",\"\",Benefits($BZ93,$CB93,$CC93,$CE93,$CF93,$CG93,$CH93,$CI93,$CJ93,$CK93,$BJ93,$CP93,$CQ93,$CR93,$CS93,$BU93,$BV93,$BW93,$BX93,$BY93,$E93))","v":""},"","","","","","","","",null,{"$f":"IF('Project Scope'!$C93=\"\",\"\",SUM('Project Scope'!$BB93,'Project Scope'!$BC93))","v":""},{"$f":"IF('Project Scope'!$C93=\"\",\"\",SUM('Project Scope'!$BH93, 'Project Scope'!$AZ93,(IF(ISNUMBER('Project Scope'!$BA93),'Project Scope'!$BA93,0)*'Project Information'!$D$12)))","v":""},null,null,{"$f":"IF('Project Scope'!$C93=\"\",\"\",IF($J93<=0,0,(SUMPRODUCT($AV93:$BC93,--($AV93:$BC93>0))+$BE93)*$DK93/((-SUMPRODUCT($AV93:$BC93,--($AV93:$BC93<0))+$BG93+$BH93+$BI93)*$DK93)))","v":""},{"$f":"IF('Project Scope'!$C93=\"\",\"\",IF($K93<=0,0,(SUMPRODUCT($CT93:$DA93,--($CT93:$DA93>0))+$DC93)*$DK93/((-SUMPRODUCT($CT93:$DA93,--($CT93:$DA93<0))+$DE93+$DF93+$DG93)*$DK93)))","v":""},{"$f":"IF('Project Scope'!$C93=\"\",\"\",IF(AND($J93<=0,$K93<=0),0,(SUMPRODUCT($AV93:$BC93,--($AV93:$BC93>0))+$BE93+SUMPRODUCT($CT93:$DA93,--($CT93:$DA93>0))+$DC93)*$DK93/((-SUMPRODUCT($AV93:$BC93,--($AV93:$BC93<0))+$BG93+$BH93+$BI93-SUMPRODUCT($CT93:$DA93,--($CT93:$DA93<0))+$DE93+$DF93+$DG93)*$DK93)))","v":""},{"$f":"IF('Project Scope'!$C93=\"\",\"\",IF(NetOrGross=\"Net\",(1-Z93+AA93),1))","v":""}]
[{"$f":"'Project Scope'!$B94","v":87},{"$f":"IF('Project Scope'!$C94=\"\",\"\",'Project Scope'!$C94)","v":""},{"$f":"IF('Project Scope'!$C94=\"\",\"\",'Project Scope'!$H94)","v":""},{"$f":"IF(ISNUMBER(SEARCH(\"Bay\",'Project Scope'!$Q94)),\"Bay\",IF('Project Scope'!C94=\"\",\"\",'Project Scope'!E94))","v":""},{"$f":"IF('Project Scope'!$C94=\"\",\"\",\"Com\")","v":""},{"$f":"IF('Project Scope'!$C94=\"\",\"\",'Project Scope'!$L94)","v":""},{"$f":"IF('Project Scope'!$C94=\"\",\"\",IF('Project Scope'!$CJ94=\"\",0,'Project Scope'!$CJ94))","v":""},{"$f":"IF('Project Scope'!$C94=\"\",\"\",IF('Project Scope'!$N94=\"\",0,'Project Scope'!$N94))","v":""},{"$f":"IF('Project Scope'!$C94=\"\",\"\",IF('Project Scope'!$CK94=\"\",0,'Project Scope'!$CK94))","v":""},{"$f":"IF('Project Scope'!$C94=\"\",\"\",IF('Project Scope'!$AO94=\"\",0,'Project Scope'!$AO94))","v":""},{"$f":"IF('Project Scope'!$C94=\"\",\"\",IF('Project Scope'!$AX94=\"\",0,'Project Scope'!$AX94))","v":""},{"$f":"IF('Project Scope'!$C94=\"\",\"\",IF('Project Scope'!$M94=\"\",0,'Project Scope'!$M94))","v":""},{"$f":"IF('Project Scope'!$C94=\"\",\"\",IF(COUNTIF('CBAT Lookups'!$B$5:$B$12,\"Fixtures-\"&CBAT!$D94)=1,VLOOKUP(\"Fixtures-\"&CBAT!$D94,'CBAT Lookups'!$B$5:$L$12,11),0))","v":""},{"$f":"IF('Project Scope'!$C94=\"\",\"\",(IF(COUNTIF('CBAT Lookups'!$B$5:$B$12,\"Fixtures-\"&CBAT!$D94)=1,VLOOKUP(\"Fixtures-\"&CBAT!$D94,'CBAT Lookups'!$B$5:$K$12,2),0))*VLOOKUP($F94,'CBAT Lookups'!$B$17:$K$19,2))","v":""},{"$f":"IF('Project Scope'!$C94=\"\",\"\",(IF(COUNTIF('CBAT Lookups'!$B$5:$B$12,\"Fixtures-\"&CBAT!$D94)=1,VLOOKUP(\"Fixtures-\"&CBAT!$D94,'CBAT Lookups'!$B$5:$K$12,3),0))*VLOOKUP($F94,'CBAT Lookups'!$B$17:$K$19,3))","v":""},{"$f":"IF('Project Scope'!$C94=\"\",\"\",(IF(COUNTIF('CBAT Lookups'!$B$5:$B$12,\"Fixtures-\"&CBAT!$D94)=1,VLOOKUP(\"Fixtures-\"&CBAT!$D94,'CBAT Lookups'!$B$5:$K$12,4),0)))","v":""},{"$f":"IF('Project Scope'!$C94=\"\",\"\",(IF(COUNTIF('CBAT Lookups'!$B$5:$B$12,\"Fixtures-\"&CBAT!$D94)=1,VLOOKUP(\"Fixtures-\"&CBAT!$D94,'CBAT Lookups'!$B$5:$K$12,5),0)))","v":""},{"$f":"IF('Project Scope'!$C94=\"\",\"\",(IF(COUNTIF('CBAT Lookups'!$B$5:$B$12,\"Fixtures-\"&CBAT!$D94)=1,VLOOKUP(\"Fixtures-\"&CBAT!$D94,'CBAT Lookups'!$B$5:$K$12,6),0)))","v":""},{"$f":"IF('Project Scope'!$C94=\"\",\"\",IF(COUNTIF('CBAT Lookups'!$B$5:$B$12,\"Fixtures-\"&CBAT!$D94)=1,VLOOKUP(\"Fixtures-\"&CBAT!$D94,'CBAT Lookups'!$B$5:$K$12,7),0))","v":""},{"$f":"IF('Project Scope'!$C94=\"\",\"\",IF(VLOOKUP($F94,'CBAT Lookups'!$B$17:$K$19,8)=\"W\",1,IF(COUNTIF('CBAT Lookups'!$B$5:$B$12,\"Fixtures-\"&CBAT!$D94)=1,VLOOKUP(\"Fixtures-\"&CBAT!$D94,'CBAT Lookups'!$B$5:$K$12,8),0)*VLOOKUP($F94,'CBAT Lookups'!$B$17:$K$19,8)))","v":""},{"$f":"IF('Project Scope'!$C94=\"\",\"\",IF(VLOOKUP($F94,'CBAT Lookups'!$B$17:$K$19,9)=\"W\",1,IF(COUNTIF('CBAT Lookups'!$B$5:$B$12,\"Fixtures-\"&CBAT!$D94)=1,VLOOKUP(\"Fixtures-\"&CBAT!$D94,'CBAT Lookups'!$B$5:$K$12,9),0)*VLOOKUP($F94,'CBAT Lookups'!$B$17:$K$19,9)))","v":""},{"$f":"IF('Project Scope'!$C94=\"\",\"\",IF(COUNTIF('CBAT Lookups'!$B$5:$B$12,\"Fixtures-\"&CBAT!$D94)=1,VLOOKUP(\"Fixtures-\"&CBAT!$D94,'CBAT Lookups'!$B$5:$K$12,10),0)*VLOOKUP($F94,'CBAT Lookups'!$B$17:$K$19,10))","v":""},{"$f":"IF('Project Scope'!$C94=\"\",\"\",IF(COUNTIF('CBAT Lookups'!$B$5:$B$12,\"Fixtures-\"&CBAT!$D94)=1,VLOOKUP(\"Fixtures-\"&CBAT!$D94,'CBAT Lookups'!$B$5:$O$12,12),0))","v":""},{"$f":"IF('Project Scope'!$C94=\"\",\"\",IF(COUNTIF('CBAT Lookups'!$B$5:$B$12,\"Fixtures-\"&CBAT!$D94)=1,VLOOKUP(\"Fixtures-\"&CBAT!$D94,'CBAT Lookups'!$B$5:$O$12,13),0))","v":""},{"$f":"IF('Project Scope'!$C94=\"\",\"\",IF(COUNTIF('CBAT Lookups'!$B$5:$B$12,\"Fixtures-\"&CBAT!$D94)=1,VLOOKUP(\"Fixtures-\"&CBAT!$D94,'CBAT Lookups'!$B$5:$O$12,14),0))","v":""},{"$f":"IF('Project Scope'!$C94=\"\",\"\",'TRM Data'!$U$3)","v":""},{"$f":"IF('Project Scope'!$C94=\"\",\"\",'TRM Data'!$V$3)","v":""},{"$f":"IF('Project Scope'!$C94=\"\",\"\",IF($J94<=0,0,MAX(0,(($G94*$H94/1000)-($I94*$J94/1000))*$L94)*$U94)+($AF94/0.003412))","v":""},{"$f":"IF('Project Scope'!$C94=\"\",\"\",IF($J94<=0,0,MAX(0,(($G94*$H94/1000)-($I94*$J94/1000)))*$T94))","v":""},{"$f":"IF('Project Scope'!$C94=\"\",\"\",IF($J94<=0,0,MAX(0,(($G94*$H94/1000)-($I94*$J94/1000))*$N94)))","v":""},{"$f":"IF('Project Scope'!$C94=\"\",\"\",IF($J94<=0,0,MAX(0,(($G94*$H94/1000)-($I94*$J94/1000))*$O94)*$T94))","v":""},{"$f":"IF('Project Scope'!$C94=\"\",\"\",IF(OR($J94<=0,'Project Information'!$D$44=\"\"),0,-1*MAX(0,(($G94*$H94/1000)-($I94*$J94/1000))*$L94)*$V94*VLOOKUP('Project Information'!$D$44,'CBAT Lookups'!$A$23:$H$30,2)))","v":""},{"$f":"IF('Project Scope'!$C94=\"\",\"\",IF(OR($J94<=0,'Project Information'!$D$44=\"\"),0,-1*MAX(0,(($G94*$H94/1000)-($I94*$J94/1000))*$L94)*$V94*VLOOKUP('Project Information'!$D$44,'CBAT Lookups'!$A$23:$H$30,3)))","v":""},{"$f":"IF('Project Scope'!$C94=\"\",\"\",IF(OR($J94<=0,'Project Information'!$D$44=\"\"),0,-1*MAX(0,(($G94*$H94/1000)-($I94*$J94/1000))*$L94)*$V94*VLOOKUP('Project Information'!$D$44,'CBAT Lookups'!$A$23:$H$30,4)))","v":""},{"$f":"IF('Project Scope'!$C94=\"\",\"\",IF(OR($J94<=0,'Project Information'!$D$44=\"\"),0,-1*MAX(0,(($G94*$H94/1000)-($I94*$J94/1000))*$L94)*$V94*VLOOKUP('Project Information'!$D$44,'CBAT Lookups'!$A$23:$H$30,5)))","v":""},{"$f":"IF('Project Scope'!$C94=\"\",\"\",IF(OR($J94<=0,'Project Information'!$D$44=\"\"),0,-1*MAX(0,(($G94*$H94/1000)-($I94*$J94/1000))*$L94)*$V94*VLOOKUP('Project Information'!$D$44,'CBAT Lookups'!$A$23:$H$30,6)))","v":""},{"$f":"IF('Project Scope'!$C94=\"\",\"\",IF(OR($J94<=0,'Project Information'!$D$44=\"\"),0,-1*MAX(0,(($G94*$H94/1000)-($I94*$J94/1000))*$L94)*$V94*VLOOKUP('Project Information'!$D$44,'CBAT Lookups'!$A$23:$H$30,7)))","v":""},{"$f":"IF('Project Scope'!$C94=\"\",\"\",IF(OR($J94<=0,'Project Information'!$D$44=\"\"),0,-1*MAX(0,(($G94*$H94/1000)-($I94*$J94/1000))*$L94)*$V94*VLOOKUP('Project Information'!$D$44,'CBAT Lookups'!$A$23:$H$30,8)))","v":""},null,{"$f":"IF('Project Scope'!$C94=\"\",\"\",VLOOKUP($F94,'CBAT Lookups'!$B$17:$K$19,4))","v":""},{"$f":"IF('Project Scope'!$C94=\"\",\"\",VLOOKUP($F94,'CBAT Lookups'!$B$17:$K$19,5))","v":""},{"$f":"IF('Project Scope'!$C94=\"\",\"\",VLOOKUP($F94,'CBAT Lookups'!$B$17:$K$19,6))","v":""},{"$f":"IF('Project Scope'!$C94=\"\",\"\",VLOOKUP($F94,'CBAT Lookups'!$B$17:$K$19,7))","v":""},{"$f":"IF('Project Scope'!$C94=\"\",\"\",IF(SUMPRODUCT($P94:$S94,$AN94:$AQ94)=0,0,P94*AN94/SUMPRODUCT($P94:$S94,$AN94:$AQ94)))","v":""},{"$f":"IF('Project Scope'!$C94=\"\",\"\",IF(SUMPRODUCT($P94:$S94,$AN94:$AQ94)=0,0,Q94*AO94/SUMPRODUCT($P94:$S94,$AN94:$AQ94)))","v":""},{"$f":"IF('Project Scope'!$C94=\"\",\"\",IF(SUMPRODUCT($P94:$S94,$AN94:$AQ94)=0,0,R94*AP94/SUMPRODUCT($P94:$S94,$AN94:$AQ94)))","v":""},{"$f":"IF('Project Scope'!$C94=\"\",\"\",IF(SUMPRODUCT($P94:$S94,$AN94:$AQ94)=0,0,S94*AQ94/SUMPRODUCT($P94:$S94,$AN94:$AQ94)))","v":""},{"$f":"IF('Project Scope'!$C94=\"\",\"\",Benefits($AB94,$AD94,$AE94,$AG94,$AH94,$AI94,$AJ94,$AK94,$AL94,$AM94,$M94,$AR94,$AS94,$AT94,$AU94,$W94,$X94,$Y94,$Z94,$AA94,$E94))","v":""},"","","","","","","","",null,{"$f":"IF('Project Scope'!$C94=\"\",\"\",SUM('Project Scope'!$AT94,'Project Scope'!$AU94))","v":""},{"$f":"IF('Project Scope'!$C94=\"\",\"\",SUM('Project Scope'!$BG94, 'Project Scope'!$AR94,(IF(ISNUMBER('Project Scope'!$AS94),'Project Scope'!$AS94,0)*'Project Information'!$D$12)))","v":""},null,null,{"$f":"IF('Project Scope'!$C94=\"\",\"\",IF(COUNTIF('CBAT Lookups'!$B$5:$B$12,\"Controls-\"&CBAT!$D94)=1,VLOOKUP(\"Controls-\"&CBAT!$D94,'CBAT Lookups'!$B$5:$L$12,11),0))","v":""},{"$f":"IF('Project Scope'!$C94=\"\",\"\",IF(COUNTIF('CBAT Lookups'!$B$5:$B$12,\"Controls-\"&CBAT!$D94)=1,VLOOKUP(\"Controls-\"&CBAT!$D94,'CBAT Lookups'!$B$5:$K$12,2),0)*VLOOKUP($F94,'CBAT Lookups'!$B$17:$K$19,2))","v":""},{"$f":"IF('Project Scope'!$C94=\"\",\"\",IF(COUNTIF('CBAT Lookups'!$B$5:$B$12,\"Controls-\"&CBAT!$D94)=1,VLOOKUP(\"Controls-\"&CBAT!$D94,'CBAT Lookups'!$B$5:$K$12,3),0)*VLOOKUP($F94,'CBAT Lookups'!$B$17:$K$19,3))","v":""},{"$f":"IF('Project Scope'!$C94=\"\",\"\",IF(COUNTIF('CBAT Lookups'!$B$5:$B$12,\"Controls-\"&CBAT!$D94)=1,VLOOKUP(\"Controls-\"&CBAT!$D94,'CBAT Lookups'!$B$5:$K$12,4),0))","v":""},{"$f":"IF('Project Scope'!$C94=\"\",\"\",IF(COUNTIF('CBAT Lookups'!$B$5:$B$12,\"Controls-\"&CBAT!$D94)=1,VLOOKUP(\"Controls-\"&CBAT!$D94,'CBAT Lookups'!$B$5:$K$12,5),0))","v":""},{"$f":"IF('Project Scope'!$C94=\"\",\"\",IF(COUNTIF('CBAT Lookups'!$B$5:$B$12,\"Controls-\"&CBAT!$D94)=1,VLOOKUP(\"Controls-\"&CBAT!$D94,'CBAT Lookups'!$B$5:$K$12,6),0))","v":""},{"$f":"IF('Project Scope'!$C94=\"\",\"\",IF(COUNTIF('CBAT Lookups'!$B$5:$B$12,\"Controls-\"&CBAT!$D94)=1,VLOOKUP(\"Controls-\"&CBAT!$D94,'CBAT Lookups'!$B$5:$K$12,7),0))","v":""},{"$f":"IF('Project Scope'!$C94=\"\",\"\",IF(VLOOKUP($F94,'CBAT Lookups'!$B$17:$K$19,8)=\"W\",1,IF(COUNTIF('CBAT Lookups'!$B$5:$B$12,\"Controls-\"&CBAT!$D94)=1,VLOOKUP(\"Controls-\"&CBAT!$D94,'CBAT Lookups'!$B$5:$K$12,8),0)*VLOOKUP($F94,'CBAT Lookups'!$B$17:$K$19,8)))","v":""},{"$f":"IF('Project Scope'!$C94=\"\",\"\",IF(VLOOKUP($F94,'CBAT Lookups'!$B$17:$K$19,9)=\"W\",1,IF(COUNTIF('CBAT Lookups'!$B$5:$B$12,\"Controls-\"&CBAT!$D94)=1,VLOOKUP(\"Controls-\"&CBAT!$D94,'CBAT Lookups'!$B$5:$K$12,9),0)*VLOOKUP($F94,'CBAT Lookups'!$B$17:$K$19,9)))","v":""},{"$f":"IF('Project Scope'!$C94=\"\",\"\",IF(COUNTIF('CBAT Lookups'!$B$5:$B$12,\"Controls-\"&CBAT!$D94)=1,VLOOKUP(\"Controls-\"&CBAT!$D94,'CBAT Lookups'!$B$5:$K$12,10),0)*VLOOKUP($F94,'CBAT Lookups'!$B$17:$K$19,10))","v":""},{"$f":"IF('Project Scope'!$C94=\"\",\"\",VLOOKUP($C94,'CBAT Lookups'!$A$33:$B$57,2))","v":""},{"$f":"IF('Project Scope'!$C94=\"\",\"\",IF(COUNTIF('CBAT Lookups'!$B$5:$B$12,\"Controls-\"&CBAT!$D94)=1,VLOOKUP(\"Controls-\"&CBAT!$D94,'CBAT Lookups'!$B$5:$O$12,12),0))","v":""},{"$f":"IF('Project Scope'!$C94=\"\",\"\",IF(COUNTIF('CBAT Lookups'!$B$5:$B$12,\"Controls-\"&CBAT!$D94)=1,VLOOKUP(\"Controls-\"&CBAT!$D94,'CBAT Lookups'!$B$5:$O$12,13),0))","v":""},{"$f":"IF('Project Scope'!$C94=\"\",\"\",IF(COUNTIF('CBAT Lookups'!$B$5:$B$12,\"Controls-\"&CBAT!$D94)=1,VLOOKUP(\"Controls-\"&CBAT!$D94,'CBAT Lookups'!$B$5:$O$12,14),0))","v":""},{"$f":"IF('Project Scope'!$C94=\"\",\"\",'TRM Data'!$U$3)","v":""},{"$f":"IF('Project Scope'!$C94=\"\",\"\",'TRM Data'!$V$3)","v":""},{"$f":"IF('Project Scope'!$C94=\"\",\"\",IF($K94<=0,0,MAX(0,(IF(AND($I94>0,$J94>0),($I94*$J94)/1000,($G94*$H94)/1000)*$L94))*$BT94*$BR94)+($CD94/0.003412))","v":""},{"$f":"IF('Project Scope'!$C94=\"\",\"\",IF($K94<=0,0,MAX(0,IF(AND($I94>0,$J94>0),($I94*$J94)/1000,($G94*$H94)/1000))*$BQ94))","v":""},{"$f":"IF('Project Scope'!$C94=\"\",\"\",IF($K94<=0,0,MAX(0,IF(AND($I94>0,$J94>0),($I94*$J94)/1000,($G94*$H94)/1000))*$BK94))","v":""},{"$f":"IF('Project Scope'!$C94=\"\",\"\",IF($K94<=0,0,MAX(0,IF(AND($I94>0,$J94>0),($I94*$J94)/1000,($G94*$H94)/1000))*$BL94*$BQ94))","v":""},{"$f":"IF('Project Scope'!$C94=\"\",\"\",IF(OR($K94<=0,'Project Information'!$D$44=\"\"),0,-1*MAX(0,IF(AND($I94>0,$J94>0),($I94*$J94)/1000,($G94*$H94)/1000))*$BT94*$L94*$BS94*VLOOKUP('Project Information'!$D$44,'CBAT Lookups'!$A$23:$H$30,2)))","v":""},{"$f":"IF('Project Scope'!$C94=\"\",\"\",IF(OR($K94<=0,'Project Information'!$D$44=\"\"),0,-1*MAX(0,IF(AND($I94>0,$J94>0),($I94*$J94)/1000,($G94*$H94)/1000))*$BT94*$L94*$BS94*VLOOKUP('Project Information'!$D$44,'CBAT Lookups'!$A$23:$H$30,3)))","v":""},{"$f":"IF('Project Scope'!$C94=\"\",\"\",IF(OR($K94<=0,'Project Information'!$D$44=\"\"),0,-1*MAX(0,IF(AND($I94>0,$J94>0),($I94*$J94)/1000,($G94*$H94)/1000))*$BT94*$L94*$BS94*VLOOKUP('Project Information'!$D$44,'CBAT Lookups'!$A$23:$H$30,4)))","v":""},{"$f":"IF('Project Scope'!$C94=\"\",\"\",IF(OR($K94<=0,'Project Information'!$D$44=\"\"),0,-1*MAX(0,IF(AND($I94>0,$J94>0),($I94*$J94)/1000,($G94*$H94)/1000))*$BT94*$L94*$BS94*VLOOKUP('Project Information'!$D$44,'CBAT Lookups'!$A$23:$H$30,5)))","v":""},{"$f":"IF('Project Scope'!$C94=\"\",\"\",IF(OR($K94<=0,'Project Information'!$D$44=\"\"),0,-1*MAX(0,IF(AND($I94>0,$J94>0),($I94*$J94)/1000,($G94*$H94)/1000))*$BT94*$L94*$BS94*VLOOKUP('Project Information'!$D$44,'CBAT Lookups'!$A$23:$H$30,6)))","v":""},{"$f":"IF('Project Scope'!$C94=\"\",\"\",IF(OR($K94<=0,'Project Information'!$D$44=\"\"),0,-1*MAX(0,IF(AND($I94>0,$J94>0),($I94*$J94)/1000,($G94*$H94)/1000))*$BT94*$L94*$BS94*VLOOKUP('Project Information'!$D$44,'CBAT Lookups'!$A$23:$H$30,7)))","v":""},{"$f":"IF('Project Scope'!$C94=\"\",\"\",IF(OR($K94<=0,'Project Information'!$D$44=\"\"),0,-1*MAX(0,IF(AND($I94>0,$J94>0),($I94*$J94)/1000,($G94*$H94)/1000))*$BT94*$L94*$BS94*VLOOKUP('Project Information'!$D$44,'CBAT Lookups'!$A$23:$H$30,8)))","v":""},null,{"$f":"IF('Project Scope'!$C94=\"\",\"\",VLOOKUP($F94,'CBAT Lookups'!$B$17:$K$19,4))","v":""},{"$f":"IF('Project Scope'!$C94=\"\",\"\",VLOOKUP($F94,'CBAT Lookups'!$B$17:$K$19,5))","v":""},{"$f":"IF('Project Scope'!$C94=\"\",\"\",VLOOKUP($F94,'CBAT Lookups'!$B$17:$K$19,6))","v":""},{"$f":"IF('Project Scope'!$C94=\"\",\"\",VLOOKUP($F94,'CBAT Lookups'!$B$17:$K$19,7))","v":""},{"$f":"IF('Project Scope'!$C94=\"\",\"\",IF(SUMPRODUCT($BM94:$BP94,$CL94:$CO94)=0,0,BM94*CL94/SUMPRODUCT($BM94:$BP94,$CL94:$CO94)))","v":""},{"$f":"IF('Project Scope'!$C94=\"\",\"\",IF(SUMPRODUCT($BM94:$BP94,$CL94:$CO94)=0,0,BN94*CM94/SUMPRODUCT($BM94:$BP94,$CL94:$CO94)))","v":""},{"$f":"IF('Project Scope'!$C94=\"\",\"\",IF(SUMPRODUCT($BM94:$BP94,$CL94:$CO94)=0,0,BO94*CN94/SUMPRODUCT($BM94:$BP94,$CL94:$CO94)))","v":""},{"$f":"IF('Project Scope'!$C94=\"\",\"\",IF(SUMPRODUCT($BM94:$BP94,$CL94:$CO94)=0,0,BP94*CO94/SUMPRODUCT($BM94:$BP94,$CL94:$CO94)))","v":""},{"$f":"IF('Project Scope'!$C94=\"\",\"\",Benefits($BZ94,$CB94,$CC94,$CE94,$CF94,$CG94,$CH94,$CI94,$CJ94,$CK94,$BJ94,$CP94,$CQ94,$CR94,$CS94,$BU94,$BV94,$BW94,$BX94,$BY94,$E94))","v":""},"","","","","","","","",null,{"$f":"IF('Project Scope'!$C94=\"\",\"\",SUM('Project Scope'!$BB94,'Project Scope'!$BC94))","v":""},{"$f":"IF('Project Scope'!$C94=\"\",\"\",SUM('Project Scope'!$BH94, 'Project Scope'!$AZ94,(IF(ISNUMBER('Project Scope'!$BA94),'Project Scope'!$BA94,0)*'Project Information'!$D$12)))","v":""},null,null,{"$f":"IF('Project Scope'!$C94=\"\",\"\",IF($J94<=0,0,(SUMPRODUCT($AV94:$BC94,--($AV94:$BC94>0))+$BE94)*$DK94/((-SUMPRODUCT($AV94:$BC94,--($AV94:$BC94<0))+$BG94+$BH94+$BI94)*$DK94)))","v":""},{"$f":"IF('Project Scope'!$C94=\"\",\"\",IF($K94<=0,0,(SUMPRODUCT($CT94:$DA94,--($CT94:$DA94>0))+$DC94)*$DK94/((-SUMPRODUCT($CT94:$DA94,--($CT94:$DA94<0))+$DE94+$DF94+$DG94)*$DK94)))","v":""},{"$f":"IF('Project Scope'!$C94=\"\",\"\",IF(AND($J94<=0,$K94<=0),0,(SUMPRODUCT($AV94:$BC94,--($AV94:$BC94>0))+$BE94+SUMPRODUCT($CT94:$DA94,--($CT94:$DA94>0))+$DC94)*$DK94/((-SUMPRODUCT($AV94:$BC94,--($AV94:$BC94<0))+$BG94+$BH94+$BI94-SUMPRODUCT($CT94:$DA94,--($CT94:$DA94<0))+$DE94+$DF94+$DG94)*$DK94)))","v":""},{"$f":"IF('Project Scope'!$C94=\"\",\"\",IF(NetOrGross=\"Net\",(1-Z94+AA94),1))","v":""}]
[{"$f":"'Project Scope'!$B95","v":88},{"$f":"IF('Project Scope'!$C95=\"\",\"\",'Project Scope'!$C95)","v":""},{"$f":"IF('Project Scope'!$C95=\"\",\"\",'Project Scope'!$H95)","v":""},{"$f":"IF(ISNUMBER(SEARCH(\"Bay\",'Project Scope'!$Q95)),\"Bay\",IF('Project Scope'!C95=\"\",\"\",'Project Scope'!E95))","v":""},{"$f":"IF('Project Scope'!$C95=\"\",\"\",\"Com\")","v":""},{"$f":"IF('Project Scope'!$C95=\"\",\"\",'Project Scope'!$L95)","v":""},{"$f":"IF('Project Scope'!$C95=\"\",\"\",IF('Project Scope'!$CJ95=\"\",0,'Project Scope'!$CJ95))","v":""},{"$f":"IF('Project Scope'!$C95=\"\",\"\",IF('Project Scope'!$N95=\"\",0,'Project Scope'!$N95))","v":""},{"$f":"IF('Project Scope'!$C95=\"\",\"\",IF('Project Scope'!$CK95=\"\",0,'Project Scope'!$CK95))","v":""},{"$f":"IF('Project Scope'!$C95=\"\",\"\",IF('Project Scope'!$AO95=\"\",0,'Project Scope'!$AO95))","v":""},{"$f":"IF('Project Scope'!$C95=\"\",\"\",IF('Project Scope'!$AX95=\"\",0,'Project Scope'!$AX95))","v":""},{"$f":"IF('Project Scope'!$C95=\"\",\"\",IF('Project Scope'!$M95=\"\",0,'Project Scope'!$M95))","v":""},{"$f":"IF('Project Scope'!$C95=\"\",\"\",IF(COUNTIF('CBAT Lookups'!$B$5:$B$12,\"Fixtures-\"&CBAT!$D95)=1,VLOOKUP(\"Fixtures-\"&CBAT!$D95,'CBAT Lookups'!$B$5:$L$12,11),0))","v":""},{"$f":"IF('Project Scope'!$C95=\"\",\"\",(IF(COUNTIF('CBAT Lookups'!$B$5:$B$12,\"Fixtures-\"&CBAT!$D95)=1,VLOOKUP(\"Fixtures-\"&CBAT!$D95,'CBAT Lookups'!$B$5:$K$12,2),0))*VLOOKUP($F95,'CBAT Lookups'!$B$17:$K$19,2))","v":""},{"$f":"IF('Project Scope'!$C95=\"\",\"\",(IF(COUNTIF('CBAT Lookups'!$B$5:$B$12,\"Fixtures-\"&CBAT!$D95)=1,VLOOKUP(\"Fixtures-\"&CBAT!$D95,'CBAT Lookups'!$B$5:$K$12,3),0))*VLOOKUP($F95,'CBAT Lookups'!$B$17:$K$19,3))","v":""},{"$f":"IF('Project Scope'!$C95=\"\",\"\",(IF(COUNTIF('CBAT Lookups'!$B$5:$B$12,\"Fixtures-\"&CBAT!$D95)=1,VLOOKUP(\"Fixtures-\"&CBAT!$D95,'CBAT Lookups'!$B$5:$K$12,4),0)))","v":""},{"$f":"IF('Project Scope'!$C95=\"\",\"\",(IF(COUNTIF('CBAT Lookups'!$B$5:$B$12,\"Fixtures-\"&CBAT!$D95)=1,VLOOKUP(\"Fixtures-\"&CBAT!$D95,'CBAT Lookups'!$B$5:$K$12,5),0)))","v":""},{"$f":"IF('Project Scope'!$C95=\"\",\"\",(IF(COUNTIF('CBAT Lookups'!$B$5:$B$12,\"Fixtures-\"&CBAT!$D95)=1,VLOOKUP(\"Fixtures-\"&CBAT!$D95,'CBAT Lookups'!$B$5:$K$12,6),0)))","v":""},{"$f":"IF('Project Scope'!$C95=\"\",\"\",IF(COUNTIF('CBAT Lookups'!$B$5:$B$12,\"Fixtures-\"&CBAT!$D95)=1,VLOOKUP(\"Fixtures-\"&CBAT!$D95,'CBAT Lookups'!$B$5:$K$12,7),0))","v":""},{"$f":"IF('Project Scope'!$C95=\"\",\"\",IF(VLOOKUP($F95,'CBAT Lookups'!$B$17:$K$19,8)=\"W\",1,IF(COUNTIF('CBAT Lookups'!$B$5:$B$12,\"Fixtures-\"&CBAT!$D95)=1,VLOOKUP(\"Fixtures-\"&CBAT!$D95,'CBAT Lookups'!$B$5:$K$12,8),0)*VLOOKUP($F95,'CBAT Lookups'!$B$17:$K$19,8)))","v":""},{"$f":"IF('Project Scope'!$C95=\"\",\"\",IF(VLOOKUP($F95,'CBAT Lookups'!$B$17:$K$19,9)=\"W\",1,IF(COUNTIF('CBAT Lookups'!$B$5:$B$12,\"Fixtures-\"&CBAT!$D95)=1,VLOOKUP(\"Fixtures-\"&CBAT!$D95,'CBAT Lookups'!$B$5:$K$12,9),0)*VLOOKUP($F95,'CBAT Lookups'!$B$17:$K$19,9)))","v":""},{"$f":"IF('Project Scope'!$C95=\"\",\"\",IF(COUNTIF('CBAT Lookups'!$B$5:$B$12,\"Fixtures-\"&CBAT!$D95)=1,VLOOKUP(\"Fixtures-\"&CBAT!$D95,'CBAT Lookups'!$B$5:$K$12,10),0)*VLOOKUP($F95,'CBAT Lookups'!$B$17:$K$19,10))","v":""},{"$f":"IF('Project Scope'!$C95=\"\",\"\",IF(COUNTIF('CBAT Lookups'!$B$5:$B$12,\"Fixtures-\"&CBAT!$D95)=1,VLOOKUP(\"Fixtures-\"&CBAT!$D95,'CBAT Lookups'!$B$5:$O$12,12),0))","v":""},{"$f":"IF('Project Scope'!$C95=\"\",\"\",IF(COUNTIF('CBAT Lookups'!$B$5:$B$12,\"Fixtures-\"&CBAT!$D95)=1,VLOOKUP(\"Fixtures-\"&CBAT!$D95,'CBAT Lookups'!$B$5:$O$12,13),0))","v":""},{"$f":"IF('Project Scope'!$C95=\"\",\"\",IF(COUNTIF('CBAT Lookups'!$B$5:$B$12,\"Fixtures-\"&CBAT!$D95)=1,VLOOKUP(\"Fixtures-\"&CBAT!$D95,'CBAT Lookups'!$B$5:$O$12,14),0))","v":""},{"$f":"IF('Project Scope'!$C95=\"\",\"\",'TRM Data'!$U$3)","v":""},{"$f":"IF('Project Scope'!$C95=\"\",\"\",'TRM Data'!$V$3)","v":""},{"$f":"IF('Project Scope'!$C95=\"\",\"\",IF($J95<=0,0,MAX(0,(($G95*$H95/1000)-($I95*$J95/1000))*$L95)*$U95)+($AF95/0.003412))","v":""},{"$f":"IF('Project Scope'!$C95=\"\",\"\",IF($J95<=0,0,MAX(0,(($G95*$H95/1000)-($I95*$J95/1000)))*$T95))","v":""},{"$f":"IF('Project Scope'!$C95=\"\",\"\",IF($J95<=0,0,MAX(0,(($G95*$H95/1000)-($I95*$J95/1000))*$N95)))","v":""},{"$f":"IF('Project Scope'!$C95=\"\",\"\",IF($J95<=0,0,MAX(0,(($G95*$H95/1000)-($I95*$J95/1000))*$O95)*$T95))","v":""},{"$f":"IF('Project Scope'!$C95=\"\",\"\",IF(OR($J95<=0,'Project Information'!$D$44=\"\"),0,-1*MAX(0,(($G95*$H95/1000)-($I95*$J95/1000))*$L95)*$V95*VLOOKUP('Project Information'!$D$44,'CBAT Lookups'!$A$23:$H$30,2)))","v":""},{"$f":"IF('Project Scope'!$C95=\"\",\"\",IF(OR($J95<=0,'Project Information'!$D$44=\"\"),0,-1*MAX(0,(($G95*$H95/1000)-($I95*$J95/1000))*$L95)*$V95*VLOOKUP('Project Information'!$D$44,'CBAT Lookups'!$A$23:$H$30,3)))","v":""},{"$f":"IF('Project Scope'!$C95=\"\",\"\",IF(OR($J95<=0,'Project Information'!$D$44=\"\"),0,-1*MAX(0,(($G95*$H95/1000)-($I95*$J95/1000))*$L95)*$V95*VLOOKUP('Project Information'!$D$44,'CBAT Lookups'!$A$23:$H$30,4)))","v":""},{"$f":"IF('Project Scope'!$C95=\"\",\"\",IF(OR($J95<=0,'Project Information'!$D$44=\"\"),0,-1*MAX(0,(($G95*$H95/1000)-($I95*$J95/1000))*$L95)*$V95*VLOOKUP('Project Information'!$D$44,'CBAT Lookups'!$A$23:$H$30,5)))","v":""},{"$f":"IF('Project Scope'!$C95=\"\",\"\",IF(OR($J95<=0,'Project Information'!$D$44=\"\"),0,-1*MAX(0,(($G95*$H95/1000)-($I95*$J95/1000))*$L95)*$V95*VLOOKUP('Project Information'!$D$44,'CBAT Lookups'!$A$23:$H$30,6)))","v":""},{"$f":"IF('Project Scope'!$C95=\"\",\"\",IF(OR($J95<=0,'Project Information'!$D$44=\"\"),0,-1*MAX(0,(($G95*$H95/1000)-($I95*$J95/1000))*$L95)*$V95*VLOOKUP('Project Information'!$D$44,'CBAT Lookups'!$A$23:$H$30,7)))","v":""},{"$f":"IF('Project Scope'!$C95=\"\",\"\",IF(OR($J95<=0,'Project Information'!$D$44=\"\"),0,-1*MAX(0,(($G95*$H95/1000)-($I95*$J95/1000))*$L95)*$V95*VLOOKUP('Project Information'!$D$44,'CBAT Lookups'!$A$23:$H$30,8)))","v":""},null,{"$f":"IF('Project Scope'!$C95=\"\",\"\",VLOOKUP($F95,'CBAT Lookups'!$B$17:$K$19,4))","v":""},{"$f":"IF('Project Scope'!$C95=\"\",\"\",VLOOKUP($F95,'CBAT Lookups'!$B$17:$K$19,5))","v":""},{"$f":"IF('Project Scope'!$C95=\"\",\"\",VLOOKUP($F95,'CBAT Lookups'!$B$17:$K$19,6))","v":""},{"$f":"IF('Project Scope'!$C95=\"\",\"\",VLOOKUP($F95,'CBAT Lookups'!$B$17:$K$19,7))","v":""},{"$f":"IF('Project Scope'!$C95=\"\",\"\",IF(SUMPRODUCT($P95:$S95,$AN95:$AQ95)=0,0,P95*AN95/SUMPRODUCT($P95:$S95,$AN95:$AQ95)))","v":""},{"$f":"IF('Project Scope'!$C95=\"\",\"\",IF(SUMPRODUCT($P95:$S95,$AN95:$AQ95)=0,0,Q95*AO95/SUMPRODUCT($P95:$S95,$AN95:$AQ95)))","v":""},{"$f":"IF('Project Scope'!$C95=\"\",\"\",IF(SUMPRODUCT($P95:$S95,$AN95:$AQ95)=0,0,R95*AP95/SUMPRODUCT($P95:$S95,$AN95:$AQ95)))","v":""},{"$f":"IF('Project Scope'!$C95=\"\",\"\",IF(SUMPRODUCT($P95:$S95,$AN95:$AQ95)=0,0,S95*AQ95/SUMPRODUCT($P95:$S95,$AN95:$AQ95)))","v":""},{"$f":"IF('Project Scope'!$C95=\"\",\"\",Benefits($AB95,$AD95,$AE95,$AG95,$AH95,$AI95,$AJ95,$AK95,$AL95,$AM95,$M95,$AR95,$AS95,$AT95,$AU95,$W95,$X95,$Y95,$Z95,$AA95,$E95))","v":""},"","","","","","","","",null,{"$f":"IF('Project Scope'!$C95=\"\",\"\",SUM('Project Scope'!$AT95,'Project Scope'!$AU95))","v":""},{"$f":"IF('Project Scope'!$C95=\"\",\"\",SUM('Project Scope'!$BG95, 'Project Scope'!$AR95,(IF(ISNUMBER('Project Scope'!$AS95),'Project Scope'!$AS95,0)*'Project Information'!$D$12)))","v":""},null,null,{"$f":"IF('Project Scope'!$C95=\"\",\"\",IF(COUNTIF('CBAT Lookups'!$B$5:$B$12,\"Controls-\"&CBAT!$D95)=1,VLOOKUP(\"Controls-\"&CBAT!$D95,'CBAT Lookups'!$B$5:$L$12,11),0))","v":""},{"$f":"IF('Project Scope'!$C95=\"\",\"\",IF(COUNTIF('CBAT Lookups'!$B$5:$B$12,\"Controls-\"&CBAT!$D95)=1,VLOOKUP(\"Controls-\"&CBAT!$D95,'CBAT Lookups'!$B$5:$K$12,2),0)*VLOOKUP($F95,'CBAT Lookups'!$B$17:$K$19,2))","v":""},{"$f":"IF('Project Scope'!$C95=\"\",\"\",IF(COUNTIF('CBAT Lookups'!$B$5:$B$12,\"Controls-\"&CBAT!$D95)=1,VLOOKUP(\"Controls-\"&CBAT!$D95,'CBAT Lookups'!$B$5:$K$12,3),0)*VLOOKUP($F95,'CBAT Lookups'!$B$17:$K$19,3))","v":""},{"$f":"IF('Project Scope'!$C95=\"\",\"\",IF(COUNTIF('CBAT Lookups'!$B$5:$B$12,\"Controls-\"&CBAT!$D95)=1,VLOOKUP(\"Controls-\"&CBAT!$D95,'CBAT Lookups'!$B$5:$K$12,4),0))","v":""},{"$f":"IF('Project Scope'!$C95=\"\",\"\",IF(COUNTIF('CBAT Lookups'!$B$5:$B$12,\"Controls-\"&CBAT!$D95)=1,VLOOKUP(\"Controls-\"&CBAT!$D95,'CBAT Lookups'!$B$5:$K$12,5),0))","v":""},{"$f":"IF('Project Scope'!$C95=\"\",\"\",IF(COUNTIF('CBAT Lookups'!$B$5:$B$12,\"Controls-\"&CBAT!$D95)=1,VLOOKUP(\"Controls-\"&CBAT!$D95,'CBAT Lookups'!$B$5:$K$12,6),0))","v":""},{"$f":"IF('Project Scope'!$C95=\"\",\"\",IF(COUNTIF('CBAT Lookups'!$B$5:$B$12,\"Controls-\"&CBAT!$D95)=1,VLOOKUP(\"Controls-\"&CBAT!$D95,'CBAT Lookups'!$B$5:$K$12,7),0))","v":""},{"$f":"IF('Project Scope'!$C95=\"\",\"\",IF(VLOOKUP($F95,'CBAT Lookups'!$B$17:$K$19,8)=\"W\",1,IF(COUNTIF('CBAT Lookups'!$B$5:$B$12,\"Controls-\"&CBAT!$D95)=1,VLOOKUP(\"Controls-\"&CBAT!$D95,'CBAT Lookups'!$B$5:$K$12,8),0)*VLOOKUP($F95,'CBAT Lookups'!$B$17:$K$19,8)))","v":""},{"$f":"IF('Project Scope'!$C95=\"\",\"\",IF(VLOOKUP($F95,'CBAT Lookups'!$B$17:$K$19,9)=\"W\",1,IF(COUNTIF('CBAT Lookups'!$B$5:$B$12,\"Controls-\"&CBAT!$D95)=1,VLOOKUP(\"Controls-\"&CBAT!$D95,'CBAT Lookups'!$B$5:$K$12,9),0)*VLOOKUP($F95,'CBAT Lookups'!$B$17:$K$19,9)))","v":""},{"$f":"IF('Project Scope'!$C95=\"\",\"\",IF(COUNTIF('CBAT Lookups'!$B$5:$B$12,\"Controls-\"&CBAT!$D95)=1,VLOOKUP(\"Controls-\"&CBAT!$D95,'CBAT Lookups'!$B$5:$K$12,10),0)*VLOOKUP($F95,'CBAT Lookups'!$B$17:$K$19,10))","v":""},{"$f":"IF('Project Scope'!$C95=\"\",\"\",VLOOKUP($C95,'CBAT Lookups'!$A$33:$B$57,2))","v":""},{"$f":"IF('Project Scope'!$C95=\"\",\"\",IF(COUNTIF('CBAT Lookups'!$B$5:$B$12,\"Controls-\"&CBAT!$D95)=1,VLOOKUP(\"Controls-\"&CBAT!$D95,'CBAT Lookups'!$B$5:$O$12,12),0))","v":""},{"$f":"IF('Project Scope'!$C95=\"\",\"\",IF(COUNTIF('CBAT Lookups'!$B$5:$B$12,\"Controls-\"&CBAT!$D95)=1,VLOOKUP(\"Controls-\"&CBAT!$D95,'CBAT Lookups'!$B$5:$O$12,13),0))","v":""},{"$f":"IF('Project Scope'!$C95=\"\",\"\",IF(COUNTIF('CBAT Lookups'!$B$5:$B$12,\"Controls-\"&CBAT!$D95)=1,VLOOKUP(\"Controls-\"&CBAT!$D95,'CBAT Lookups'!$B$5:$O$12,14),0))","v":""},{"$f":"IF('Project Scope'!$C95=\"\",\"\",'TRM Data'!$U$3)","v":""},{"$f":"IF('Project Scope'!$C95=\"\",\"\",'TRM Data'!$V$3)","v":""},{"$f":"IF('Project Scope'!$C95=\"\",\"\",IF($K95<=0,0,MAX(0,(IF(AND($I95>0,$J95>0),($I95*$J95)/1000,($G95*$H95)/1000)*$L95))*$BT95*$BR95)+($CD95/0.003412))","v":""},{"$f":"IF('Project Scope'!$C95=\"\",\"\",IF($K95<=0,0,MAX(0,IF(AND($I95>0,$J95>0),($I95*$J95)/1000,($G95*$H95)/1000))*$BQ95))","v":""},{"$f":"IF('Project Scope'!$C95=\"\",\"\",IF($K95<=0,0,MAX(0,IF(AND($I95>0,$J95>0),($I95*$J95)/1000,($G95*$H95)/1000))*$BK95))","v":""},{"$f":"IF('Project Scope'!$C95=\"\",\"\",IF($K95<=0,0,MAX(0,IF(AND($I95>0,$J95>0),($I95*$J95)/1000,($G95*$H95)/1000))*$BL95*$BQ95))","v":""},{"$f":"IF('Project Scope'!$C95=\"\",\"\",IF(OR($K95<=0,'Project Information'!$D$44=\"\"),0,-1*MAX(0,IF(AND($I95>0,$J95>0),($I95*$J95)/1000,($G95*$H95)/1000))*$BT95*$L95*$BS95*VLOOKUP('Project Information'!$D$44,'CBAT Lookups'!$A$23:$H$30,2)))","v":""},{"$f":"IF('Project Scope'!$C95=\"\",\"\",IF(OR($K95<=0,'Project Information'!$D$44=\"\"),0,-1*MAX(0,IF(AND($I95>0,$J95>0),($I95*$J95)/1000,($G95*$H95)/1000))*$BT95*$L95*$BS95*VLOOKUP('Project Information'!$D$44,'CBAT Lookups'!$A$23:$H$30,3)))","v":""},{"$f":"IF('Project Scope'!$C95=\"\",\"\",IF(OR($K95<=0,'Project Information'!$D$44=\"\"),0,-1*MAX(0,IF(AND($I95>0,$J95>0),($I95*$J95)/1000,($G95*$H95)/1000))*$BT95*$L95*$BS95*VLOOKUP('Project Information'!$D$44,'CBAT Lookups'!$A$23:$H$30,4)))","v":""},{"$f":"IF('Project Scope'!$C95=\"\",\"\",IF(OR($K95<=0,'Project Information'!$D$44=\"\"),0,-1*MAX(0,IF(AND($I95>0,$J95>0),($I95*$J95)/1000,($G95*$H95)/1000))*$BT95*$L95*$BS95*VLOOKUP('Project Information'!$D$44,'CBAT Lookups'!$A$23:$H$30,5)))","v":""},{"$f":"IF('Project Scope'!$C95=\"\",\"\",IF(OR($K95<=0,'Project Information'!$D$44=\"\"),0,-1*MAX(0,IF(AND($I95>0,$J95>0),($I95*$J95)/1000,($G95*$H95)/1000))*$BT95*$L95*$BS95*VLOOKUP('Project Information'!$D$44,'CBAT Lookups'!$A$23:$H$30,6)))","v":""},{"$f":"IF('Project Scope'!$C95=\"\",\"\",IF(OR($K95<=0,'Project Information'!$D$44=\"\"),0,-1*MAX(0,IF(AND($I95>0,$J95>0),($I95*$J95)/1000,($G95*$H95)/1000))*$BT95*$L95*$BS95*VLOOKUP('Project Information'!$D$44,'CBAT Lookups'!$A$23:$H$30,7)))","v":""},{"$f":"IF('Project Scope'!$C95=\"\",\"\",IF(OR($K95<=0,'Project Information'!$D$44=\"\"),0,-1*MAX(0,IF(AND($I95>0,$J95>0),($I95*$J95)/1000,($G95*$H95)/1000))*$BT95*$L95*$BS95*VLOOKUP('Project Information'!$D$44,'CBAT Lookups'!$A$23:$H$30,8)))","v":""},null,{"$f":"IF('Project Scope'!$C95=\"\",\"\",VLOOKUP($F95,'CBAT Lookups'!$B$17:$K$19,4))","v":""},{"$f":"IF('Project Scope'!$C95=\"\",\"\",VLOOKUP($F95,'CBAT Lookups'!$B$17:$K$19,5))","v":""},{"$f":"IF('Project Scope'!$C95=\"\",\"\",VLOOKUP($F95,'CBAT Lookups'!$B$17:$K$19,6))","v":""},{"$f":"IF('Project Scope'!$C95=\"\",\"\",VLOOKUP($F95,'CBAT Lookups'!$B$17:$K$19,7))","v":""},{"$f":"IF('Project Scope'!$C95=\"\",\"\",IF(SUMPRODUCT($BM95:$BP95,$CL95:$CO95)=0,0,BM95*CL95/SUMPRODUCT($BM95:$BP95,$CL95:$CO95)))","v":""},{"$f":"IF('Project Scope'!$C95=\"\",\"\",IF(SUMPRODUCT($BM95:$BP95,$CL95:$CO95)=0,0,BN95*CM95/SUMPRODUCT($BM95:$BP95,$CL95:$CO95)))","v":""},{"$f":"IF('Project Scope'!$C95=\"\",\"\",IF(SUMPRODUCT($BM95:$BP95,$CL95:$CO95)=0,0,BO95*CN95/SUMPRODUCT($BM95:$BP95,$CL95:$CO95)))","v":""},{"$f":"IF('Project Scope'!$C95=\"\",\"\",IF(SUMPRODUCT($BM95:$BP95,$CL95:$CO95)=0,0,BP95*CO95/SUMPRODUCT($BM95:$BP95,$CL95:$CO95)))","v":""},{"$f":"IF('Project Scope'!$C95=\"\",\"\",Benefits($BZ95,$CB95,$CC95,$CE95,$CF95,$CG95,$CH95,$CI95,$CJ95,$CK95,$BJ95,$CP95,$CQ95,$CR95,$CS95,$BU95,$BV95,$BW95,$BX95,$BY95,$E95))","v":""},"","","","","","","","",null,{"$f":"IF('Project Scope'!$C95=\"\",\"\",SUM('Project Scope'!$BB95,'Project Scope'!$BC95))","v":""},{"$f":"IF('Project Scope'!$C95=\"\",\"\",SUM('Project Scope'!$BH95, 'Project Scope'!$AZ95,(IF(ISNUMBER('Project Scope'!$BA95),'Project Scope'!$BA95,0)*'Project Information'!$D$12)))","v":""},null,null,{"$f":"IF('Project Scope'!$C95=\"\",\"\",IF($J95<=0,0,(SUMPRODUCT($AV95:$BC95,--($AV95:$BC95>0))+$BE95)*$DK95/((-SUMPRODUCT($AV95:$BC95,--($AV95:$BC95<0))+$BG95+$BH95+$BI95)*$DK95)))","v":""},{"$f":"IF('Project Scope'!$C95=\"\",\"\",IF($K95<=0,0,(SUMPRODUCT($CT95:$DA95,--($CT95:$DA95>0))+$DC95)*$DK95/((-SUMPRODUCT($CT95:$DA95,--($CT95:$DA95<0))+$DE95+$DF95+$DG95)*$DK95)))","v":""},{"$f":"IF('Project Scope'!$C95=\"\",\"\",IF(AND($J95<=0,$K95<=0),0,(SUMPRODUCT($AV95:$BC95,--($AV95:$BC95>0))+$BE95+SUMPRODUCT($CT95:$DA95,--($CT95:$DA95>0))+$DC95)*$DK95/((-SUMPRODUCT($AV95:$BC95,--($AV95:$BC95<0))+$BG95+$BH95+$BI95-SUMPRODUCT($CT95:$DA95,--($CT95:$DA95<0))+$DE95+$DF95+$DG95)*$DK95)))","v":""},{"$f":"IF('Project Scope'!$C95=\"\",\"\",IF(NetOrGross=\"Net\",(1-Z95+AA95),1))","v":""}]
[{"$f":"'Project Scope'!$B96","v":89},{"$f":"IF('Project Scope'!$C96=\"\",\"\",'Project Scope'!$C96)","v":""},{"$f":"IF('Project Scope'!$C96=\"\",\"\",'Project Scope'!$H96)","v":""},{"$f":"IF(ISNUMBER(SEARCH(\"Bay\",'Project Scope'!$Q96)),\"Bay\",IF('Project Scope'!C96=\"\",\"\",'Project Scope'!E96))","v":""},{"$f":"IF('Project Scope'!$C96=\"\",\"\",\"Com\")","v":""},{"$f":"IF('Project Scope'!$C96=\"\",\"\",'Project Scope'!$L96)","v":""},{"$f":"IF('Project Scope'!$C96=\"\",\"\",IF('Project Scope'!$CJ96=\"\",0,'Project Scope'!$CJ96))","v":""},{"$f":"IF('Project Scope'!$C96=\"\",\"\",IF('Project Scope'!$N96=\"\",0,'Project Scope'!$N96))","v":""},{"$f":"IF('Project Scope'!$C96=\"\",\"\",IF('Project Scope'!$CK96=\"\",0,'Project Scope'!$CK96))","v":""},{"$f":"IF('Project Scope'!$C96=\"\",\"\",IF('Project Scope'!$AO96=\"\",0,'Project Scope'!$AO96))","v":""},{"$f":"IF('Project Scope'!$C96=\"\",\"\",IF('Project Scope'!$AX96=\"\",0,'Project Scope'!$AX96))","v":""},{"$f":"IF('Project Scope'!$C96=\"\",\"\",IF('Project Scope'!$M96=\"\",0,'Project Scope'!$M96))","v":""},{"$f":"IF('Project Scope'!$C96=\"\",\"\",IF(COUNTIF('CBAT Lookups'!$B$5:$B$12,\"Fixtures-\"&CBAT!$D96)=1,VLOOKUP(\"Fixtures-\"&CBAT!$D96,'CBAT Lookups'!$B$5:$L$12,11),0))","v":""},{"$f":"IF('Project Scope'!$C96=\"\",\"\",(IF(COUNTIF('CBAT Lookups'!$B$5:$B$12,\"Fixtures-\"&CBAT!$D96)=1,VLOOKUP(\"Fixtures-\"&CBAT!$D96,'CBAT Lookups'!$B$5:$K$12,2),0))*VLOOKUP($F96,'CBAT Lookups'!$B$17:$K$19,2))","v":""},{"$f":"IF('Project Scope'!$C96=\"\",\"\",(IF(COUNTIF('CBAT Lookups'!$B$5:$B$12,\"Fixtures-\"&CBAT!$D96)=1,VLOOKUP(\"Fixtures-\"&CBAT!$D96,'CBAT Lookups'!$B$5:$K$12,3),0))*VLOOKUP($F96,'CBAT Lookups'!$B$17:$K$19,3))","v":""},{"$f":"IF('Project Scope'!$C96=\"\",\"\",(IF(COUNTIF('CBAT Lookups'!$B$5:$B$12,\"Fixtures-\"&CBAT!$D96)=1,VLOOKUP(\"Fixtures-\"&CBAT!$D96,'CBAT Lookups'!$B$5:$K$12,4),0)))","v":""},{"$f":"IF('Project Scope'!$C96=\"\",\"\",(IF(COUNTIF('CBAT Lookups'!$B$5:$B$12,\"Fixtures-\"&CBAT!$D96)=1,VLOOKUP(\"Fixtures-\"&CBAT!$D96,'CBAT Lookups'!$B$5:$K$12,5),0)))","v":""},{"$f":"IF('Project Scope'!$C96=\"\",\"\",(IF(COUNTIF('CBAT Lookups'!$B$5:$B$12,\"Fixtures-\"&CBAT!$D96)=1,VLOOKUP(\"Fixtures-\"&CBAT!$D96,'CBAT Lookups'!$B$5:$K$12,6),0)))","v":""},{"$f":"IF('Project Scope'!$C96=\"\",\"\",IF(COUNTIF('CBAT Lookups'!$B$5:$B$12,\"Fixtures-\"&CBAT!$D96)=1,VLOOKUP(\"Fixtures-\"&CBAT!$D96,'CBAT Lookups'!$B$5:$K$12,7),0))","v":""},{"$f":"IF('Project Scope'!$C96=\"\",\"\",IF(VLOOKUP($F96,'CBAT Lookups'!$B$17:$K$19,8)=\"W\",1,IF(COUNTIF('CBAT Lookups'!$B$5:$B$12,\"Fixtures-\"&CBAT!$D96)=1,VLOOKUP(\"Fixtures-\"&CBAT!$D96,'CBAT Lookups'!$B$5:$K$12,8),0)*VLOOKUP($F96,'CBAT Lookups'!$B$17:$K$19,8)))","v":""},{"$f":"IF('Project Scope'!$C96=\"\",\"\",IF(VLOOKUP($F96,'CBAT Lookups'!$B$17:$K$19,9)=\"W\",1,IF(COUNTIF('CBAT Lookups'!$B$5:$B$12,\"Fixtures-\"&CBAT!$D96)=1,VLOOKUP(\"Fixtures-\"&CBAT!$D96,'CBAT Lookups'!$B$5:$K$12,9),0)*VLOOKUP($F96,'CBAT Lookups'!$B$17:$K$19,9)))","v":""},{"$f":"IF('Project Scope'!$C96=\"\",\"\",IF(COUNTIF('CBAT Lookups'!$B$5:$B$12,\"Fixtures-\"&CBAT!$D96)=1,VLOOKUP(\"Fixtures-\"&CBAT!$D96,'CBAT Lookups'!$B$5:$K$12,10),0)*VLOOKUP($F96,'CBAT Lookups'!$B$17:$K$19,10))","v":""},{"$f":"IF('Project Scope'!$C96=\"\",\"\",IF(COUNTIF('CBAT Lookups'!$B$5:$B$12,\"Fixtures-\"&CBAT!$D96)=1,VLOOKUP(\"Fixtures-\"&CBAT!$D96,'CBAT Lookups'!$B$5:$O$12,12),0))","v":""},{"$f":"IF('Project Scope'!$C96=\"\",\"\",IF(COUNTIF('CBAT Lookups'!$B$5:$B$12,\"Fixtures-\"&CBAT!$D96)=1,VLOOKUP(\"Fixtures-\"&CBAT!$D96,'CBAT Lookups'!$B$5:$O$12,13),0))","v":""},{"$f":"IF('Project Scope'!$C96=\"\",\"\",IF(COUNTIF('CBAT Lookups'!$B$5:$B$12,\"Fixtures-\"&CBAT!$D96)=1,VLOOKUP(\"Fixtures-\"&CBAT!$D96,'CBAT Lookups'!$B$5:$O$12,14),0))","v":""},{"$f":"IF('Project Scope'!$C96=\"\",\"\",'TRM Data'!$U$3)","v":""},{"$f":"IF('Project Scope'!$C96=\"\",\"\",'TRM Data'!$V$3)","v":""},{"$f":"IF('Project Scope'!$C96=\"\",\"\",IF($J96<=0,0,MAX(0,(($G96*$H96/1000)-($I96*$J96/1000))*$L96)*$U96)+($AF96/0.003412))","v":""},{"$f":"IF('Project Scope'!$C96=\"\",\"\",IF($J96<=0,0,MAX(0,(($G96*$H96/1000)-($I96*$J96/1000)))*$T96))","v":""},{"$f":"IF('Project Scope'!$C96=\"\",\"\",IF($J96<=0,0,MAX(0,(($G96*$H96/1000)-($I96*$J96/1000))*$N96)))","v":""},{"$f":"IF('Project Scope'!$C96=\"\",\"\",IF($J96<=0,0,MAX(0,(($G96*$H96/1000)-($I96*$J96/1000))*$O96)*$T96))","v":""},{"$f":"IF('Project Scope'!$C96=\"\",\"\",IF(OR($J96<=0,'Project Information'!$D$44=\"\"),0,-1*MAX(0,(($G96*$H96/1000)-($I96*$J96/1000))*$L96)*$V96*VLOOKUP('Project Information'!$D$44,'CBAT Lookups'!$A$23:$H$30,2)))","v":""},{"$f":"IF('Project Scope'!$C96=\"\",\"\",IF(OR($J96<=0,'Project Information'!$D$44=\"\"),0,-1*MAX(0,(($G96*$H96/1000)-($I96*$J96/1000))*$L96)*$V96*VLOOKUP('Project Information'!$D$44,'CBAT Lookups'!$A$23:$H$30,3)))","v":""},{"$f":"IF('Project Scope'!$C96=\"\",\"\",IF(OR($J96<=0,'Project Information'!$D$44=\"\"),0,-1*MAX(0,(($G96*$H96/1000)-($I96*$J96/1000))*$L96)*$V96*VLOOKUP('Project Information'!$D$44,'CBAT Lookups'!$A$23:$H$30,4)))","v":""},{"$f":"IF('Project Scope'!$C96=\"\",\"\",IF(OR($J96<=0,'Project Information'!$D$44=\"\"),0,-1*MAX(0,(($G96*$H96/1000)-($I96*$J96/1000))*$L96)*$V96*VLOOKUP('Project Information'!$D$44,'CBAT Lookups'!$A$23:$H$30,5)))","v":""},{"$f":"IF('Project Scope'!$C96=\"\",\"\",IF(OR($J96<=0,'Project Information'!$D$44=\"\"),0,-1*MAX(0,(($G96*$H96/1000)-($I96*$J96/1000))*$L96)*$V96*VLOOKUP('Project Information'!$D$44,'CBAT Lookups'!$A$23:$H$30,6)))","v":""},{"$f":"IF('Project Scope'!$C96=\"\",\"\",IF(OR($J96<=0,'Project Information'!$D$44=\"\"),0,-1*MAX(0,(($G96*$H96/1000)-($I96*$J96/1000))*$L96)*$V96*VLOOKUP('Project Information'!$D$44,'CBAT Lookups'!$A$23:$H$30,7)))","v":""},{"$f":"IF('Project Scope'!$C96=\"\",\"\",IF(OR($J96<=0,'Project Information'!$D$44=\"\"),0,-1*MAX(0,(($G96*$H96/1000)-($I96*$J96/1000))*$L96)*$V96*VLOOKUP('Project Information'!$D$44,'CBAT Lookups'!$A$23:$H$30,8)))","v":""},null,{"$f":"IF('Project Scope'!$C96=\"\",\"\",VLOOKUP($F96,'CBAT Lookups'!$B$17:$K$19,4))","v":""},{"$f":"IF('Project Scope'!$C96=\"\",\"\",VLOOKUP($F96,'CBAT Lookups'!$B$17:$K$19,5))","v":""},{"$f":"IF('Project Scope'!$C96=\"\",\"\",VLOOKUP($F96,'CBAT Lookups'!$B$17:$K$19,6))","v":""},{"$f":"IF('Project Scope'!$C96=\"\",\"\",VLOOKUP($F96,'CBAT Lookups'!$B$17:$K$19,7))","v":""},{"$f":"IF('Project Scope'!$C96=\"\",\"\",IF(SUMPRODUCT($P96:$S96,$AN96:$AQ96)=0,0,P96*AN96/SUMPRODUCT($P96:$S96,$AN96:$AQ96)))","v":""},{"$f":"IF('Project Scope'!$C96=\"\",\"\",IF(SUMPRODUCT($P96:$S96,$AN96:$AQ96)=0,0,Q96*AO96/SUMPRODUCT($P96:$S96,$AN96:$AQ96)))","v":""},{"$f":"IF('Project Scope'!$C96=\"\",\"\",IF(SUMPRODUCT($P96:$S96,$AN96:$AQ96)=0,0,R96*AP96/SUMPRODUCT($P96:$S96,$AN96:$AQ96)))","v":""},{"$f":"IF('Project Scope'!$C96=\"\",\"\",IF(SUMPRODUCT($P96:$S96,$AN96:$AQ96)=0,0,S96*AQ96/SUMPRODUCT($P96:$S96,$AN96:$AQ96)))","v":""},{"$f":"IF('Project Scope'!$C96=\"\",\"\",Benefits($AB96,$AD96,$AE96,$AG96,$AH96,$AI96,$AJ96,$AK96,$AL96,$AM96,$M96,$AR96,$AS96,$AT96,$AU96,$W96,$X96,$Y96,$Z96,$AA96,$E96))","v":""},"","","","","","","","",null,{"$f":"IF('Project Scope'!$C96=\"\",\"\",SUM('Project Scope'!$AT96,'Project Scope'!$AU96))","v":""},{"$f":"IF('Project Scope'!$C96=\"\",\"\",SUM('Project Scope'!$BG96, 'Project Scope'!$AR96,(IF(ISNUMBER('Project Scope'!$AS96),'Project Scope'!$AS96,0)*'Project Information'!$D$12)))","v":""},null,null,{"$f":"IF('Project Scope'!$C96=\"\",\"\",IF(COUNTIF('CBAT Lookups'!$B$5:$B$12,\"Controls-\"&CBAT!$D96)=1,VLOOKUP(\"Controls-\"&CBAT!$D96,'CBAT Lookups'!$B$5:$L$12,11),0))","v":""},{"$f":"IF('Project Scope'!$C96=\"\",\"\",IF(COUNTIF('CBAT Lookups'!$B$5:$B$12,\"Controls-\"&CBAT!$D96)=1,VLOOKUP(\"Controls-\"&CBAT!$D96,'CBAT Lookups'!$B$5:$K$12,2),0)*VLOOKUP($F96,'CBAT Lookups'!$B$17:$K$19,2))","v":""},{"$f":"IF('Project Scope'!$C96=\"\",\"\",IF(COUNTIF('CBAT Lookups'!$B$5:$B$12,\"Controls-\"&CBAT!$D96)=1,VLOOKUP(\"Controls-\"&CBAT!$D96,'CBAT Lookups'!$B$5:$K$12,3),0)*VLOOKUP($F96,'CBAT Lookups'!$B$17:$K$19,3))","v":""},{"$f":"IF('Project Scope'!$C96=\"\",\"\",IF(COUNTIF('CBAT Lookups'!$B$5:$B$12,\"Controls-\"&CBAT!$D96)=1,VLOOKUP(\"Controls-\"&CBAT!$D96,'CBAT Lookups'!$B$5:$K$12,4),0))","v":""},{"$f":"IF('Project Scope'!$C96=\"\",\"\",IF(COUNTIF('CBAT Lookups'!$B$5:$B$12,\"Controls-\"&CBAT!$D96)=1,VLOOKUP(\"Controls-\"&CBAT!$D96,'CBAT Lookups'!$B$5:$K$12,5),0))","v":""},{"$f":"IF('Project Scope'!$C96=\"\",\"\",IF(COUNTIF('CBAT Lookups'!$B$5:$B$12,\"Controls-\"&CBAT!$D96)=1,VLOOKUP(\"Controls-\"&CBAT!$D96,'CBAT Lookups'!$B$5:$K$12,6),0))","v":""},{"$f":"IF('Project Scope'!$C96=\"\",\"\",IF(COUNTIF('CBAT Lookups'!$B$5:$B$12,\"Controls-\"&CBAT!$D96)=1,VLOOKUP(\"Controls-\"&CBAT!$D96,'CBAT Lookups'!$B$5:$K$12,7),0))","v":""},{"$f":"IF('Project Scope'!$C96=\"\",\"\",IF(VLOOKUP($F96,'CBAT Lookups'!$B$17:$K$19,8)=\"W\",1,IF(COUNTIF('CBAT Lookups'!$B$5:$B$12,\"Controls-\"&CBAT!$D96)=1,VLOOKUP(\"Controls-\"&CBAT!$D96,'CBAT Lookups'!$B$5:$K$12,8),0)*VLOOKUP($F96,'CBAT Lookups'!$B$17:$K$19,8)))","v":""},{"$f":"IF('Project Scope'!$C96=\"\",\"\",IF(VLOOKUP($F96,'CBAT Lookups'!$B$17:$K$19,9)=\"W\",1,IF(COUNTIF('CBAT Lookups'!$B$5:$B$12,\"Controls-\"&CBAT!$D96)=1,VLOOKUP(\"Controls-\"&CBAT!$D96,'CBAT Lookups'!$B$5:$K$12,9),0)*VLOOKUP($F96,'CBAT Lookups'!$B$17:$K$19,9)))","v":""},{"$f":"IF('Project Scope'!$C96=\"\",\"\",IF(COUNTIF('CBAT Lookups'!$B$5:$B$12,\"Controls-\"&CBAT!$D96)=1,VLOOKUP(\"Controls-\"&CBAT!$D96,'CBAT Lookups'!$B$5:$K$12,10),0)*VLOOKUP($F96,'CBAT Lookups'!$B$17:$K$19,10))","v":""},{"$f":"IF('Project Scope'!$C96=\"\",\"\",VLOOKUP($C96,'CBAT Lookups'!$A$33:$B$57,2))","v":""},{"$f":"IF('Project Scope'!$C96=\"\",\"\",IF(COUNTIF('CBAT Lookups'!$B$5:$B$12,\"Controls-\"&CBAT!$D96)=1,VLOOKUP(\"Controls-\"&CBAT!$D96,'CBAT Lookups'!$B$5:$O$12,12),0))","v":""},{"$f":"IF('Project Scope'!$C96=\"\",\"\",IF(COUNTIF('CBAT Lookups'!$B$5:$B$12,\"Controls-\"&CBAT!$D96)=1,VLOOKUP(\"Controls-\"&CBAT!$D96,'CBAT Lookups'!$B$5:$O$12,13),0))","v":""},{"$f":"IF('Project Scope'!$C96=\"\",\"\",IF(COUNTIF('CBAT Lookups'!$B$5:$B$12,\"Controls-\"&CBAT!$D96)=1,VLOOKUP(\"Controls-\"&CBAT!$D96,'CBAT Lookups'!$B$5:$O$12,14),0))","v":""},{"$f":"IF('Project Scope'!$C96=\"\",\"\",'TRM Data'!$U$3)","v":""},{"$f":"IF('Project Scope'!$C96=\"\",\"\",'TRM Data'!$V$3)","v":""},{"$f":"IF('Project Scope'!$C96=\"\",\"\",IF($K96<=0,0,MAX(0,(IF(AND($I96>0,$J96>0),($I96*$J96)/1000,($G96*$H96)/1000)*$L96))*$BT96*$BR96)+($CD96/0.003412))","v":""},{"$f":"IF('Project Scope'!$C96=\"\",\"\",IF($K96<=0,0,MAX(0,IF(AND($I96>0,$J96>0),($I96*$J96)/1000,($G96*$H96)/1000))*$BQ96))","v":""},{"$f":"IF('Project Scope'!$C96=\"\",\"\",IF($K96<=0,0,MAX(0,IF(AND($I96>0,$J96>0),($I96*$J96)/1000,($G96*$H96)/1000))*$BK96))","v":""},{"$f":"IF('Project Scope'!$C96=\"\",\"\",IF($K96<=0,0,MAX(0,IF(AND($I96>0,$J96>0),($I96*$J96)/1000,($G96*$H96)/1000))*$BL96*$BQ96))","v":""},{"$f":"IF('Project Scope'!$C96=\"\",\"\",IF(OR($K96<=0,'Project Information'!$D$44=\"\"),0,-1*MAX(0,IF(AND($I96>0,$J96>0),($I96*$J96)/1000,($G96*$H96)/1000))*$BT96*$L96*$BS96*VLOOKUP('Project Information'!$D$44,'CBAT Lookups'!$A$23:$H$30,2)))","v":""},{"$f":"IF('Project Scope'!$C96=\"\",\"\",IF(OR($K96<=0,'Project Information'!$D$44=\"\"),0,-1*MAX(0,IF(AND($I96>0,$J96>0),($I96*$J96)/1000,($G96*$H96)/1000))*$BT96*$L96*$BS96*VLOOKUP('Project Information'!$D$44,'CBAT Lookups'!$A$23:$H$30,3)))","v":""},{"$f":"IF('Project Scope'!$C96=\"\",\"\",IF(OR($K96<=0,'Project Information'!$D$44=\"\"),0,-1*MAX(0,IF(AND($I96>0,$J96>0),($I96*$J96)/1000,($G96*$H96)/1000))*$BT96*$L96*$BS96*VLOOKUP('Project Information'!$D$44,'CBAT Lookups'!$A$23:$H$30,4)))","v":""},{"$f":"IF('Project Scope'!$C96=\"\",\"\",IF(OR($K96<=0,'Project Information'!$D$44=\"\"),0,-1*MAX(0,IF(AND($I96>0,$J96>0),($I96*$J96)/1000,($G96*$H96)/1000))*$BT96*$L96*$BS96*VLOOKUP('Project Information'!$D$44,'CBAT Lookups'!$A$23:$H$30,5)))","v":""},{"$f":"IF('Project Scope'!$C96=\"\",\"\",IF(OR($K96<=0,'Project Information'!$D$44=\"\"),0,-1*MAX(0,IF(AND($I96>0,$J96>0),($I96*$J96)/1000,($G96*$H96)/1000))*$BT96*$L96*$BS96*VLOOKUP('Project Information'!$D$44,'CBAT Lookups'!$A$23:$H$30,6)))","v":""},{"$f":"IF('Project Scope'!$C96=\"\",\"\",IF(OR($K96<=0,'Project Information'!$D$44=\"\"),0,-1*MAX(0,IF(AND($I96>0,$J96>0),($I96*$J96)/1000,($G96*$H96)/1000))*$BT96*$L96*$BS96*VLOOKUP('Project Information'!$D$44,'CBAT Lookups'!$A$23:$H$30,7)))","v":""},{"$f":"IF('Project Scope'!$C96=\"\",\"\",IF(OR($K96<=0,'Project Information'!$D$44=\"\"),0,-1*MAX(0,IF(AND($I96>0,$J96>0),($I96*$J96)/1000,($G96*$H96)/1000))*$BT96*$L96*$BS96*VLOOKUP('Project Information'!$D$44,'CBAT Lookups'!$A$23:$H$30,8)))","v":""},null,{"$f":"IF('Project Scope'!$C96=\"\",\"\",VLOOKUP($F96,'CBAT Lookups'!$B$17:$K$19,4))","v":""},{"$f":"IF('Project Scope'!$C96=\"\",\"\",VLOOKUP($F96,'CBAT Lookups'!$B$17:$K$19,5))","v":""},{"$f":"IF('Project Scope'!$C96=\"\",\"\",VLOOKUP($F96,'CBAT Lookups'!$B$17:$K$19,6))","v":""},{"$f":"IF('Project Scope'!$C96=\"\",\"\",VLOOKUP($F96,'CBAT Lookups'!$B$17:$K$19,7))","v":""},{"$f":"IF('Project Scope'!$C96=\"\",\"\",IF(SUMPRODUCT($BM96:$BP96,$CL96:$CO96)=0,0,BM96*CL96/SUMPRODUCT($BM96:$BP96,$CL96:$CO96)))","v":""},{"$f":"IF('Project Scope'!$C96=\"\",\"\",IF(SUMPRODUCT($BM96:$BP96,$CL96:$CO96)=0,0,BN96*CM96/SUMPRODUCT($BM96:$BP96,$CL96:$CO96)))","v":""},{"$f":"IF('Project Scope'!$C96=\"\",\"\",IF(SUMPRODUCT($BM96:$BP96,$CL96:$CO96)=0,0,BO96*CN96/SUMPRODUCT($BM96:$BP96,$CL96:$CO96)))","v":""},{"$f":"IF('Project Scope'!$C96=\"\",\"\",IF(SUMPRODUCT($BM96:$BP96,$CL96:$CO96)=0,0,BP96*CO96/SUMPRODUCT($BM96:$BP96,$CL96:$CO96)))","v":""},{"$f":"IF('Project Scope'!$C96=\"\",\"\",Benefits($BZ96,$CB96,$CC96,$CE96,$CF96,$CG96,$CH96,$CI96,$CJ96,$CK96,$BJ96,$CP96,$CQ96,$CR96,$CS96,$BU96,$BV96,$BW96,$BX96,$BY96,$E96))","v":""},"","","","","","","","",null,{"$f":"IF('Project Scope'!$C96=\"\",\"\",SUM('Project Scope'!$BB96,'Project Scope'!$BC96))","v":""},{"$f":"IF('Project Scope'!$C96=\"\",\"\",SUM('Project Scope'!$BH96, 'Project Scope'!$AZ96,(IF(ISNUMBER('Project Scope'!$BA96),'Project Scope'!$BA96,0)*'Project Information'!$D$12)))","v":""},null,null,{"$f":"IF('Project Scope'!$C96=\"\",\"\",IF($J96<=0,0,(SUMPRODUCT($AV96:$BC96,--($AV96:$BC96>0))+$BE96)*$DK96/((-SUMPRODUCT($AV96:$BC96,--($AV96:$BC96<0))+$BG96+$BH96+$BI96)*$DK96)))","v":""},{"$f":"IF('Project Scope'!$C96=\"\",\"\",IF($K96<=0,0,(SUMPRODUCT($CT96:$DA96,--($CT96:$DA96>0))+$DC96)*$DK96/((-SUMPRODUCT($CT96:$DA96,--($CT96:$DA96<0))+$DE96+$DF96+$DG96)*$DK96)))","v":""},{"$f":"IF('Project Scope'!$C96=\"\",\"\",IF(AND($J96<=0,$K96<=0),0,(SUMPRODUCT($AV96:$BC96,--($AV96:$BC96>0))+$BE96+SUMPRODUCT($CT96:$DA96,--($CT96:$DA96>0))+$DC96)*$DK96/((-SUMPRODUCT($AV96:$BC96,--($AV96:$BC96<0))+$BG96+$BH96+$BI96-SUMPRODUCT($CT96:$DA96,--($CT96:$DA96<0))+$DE96+$DF96+$DG96)*$DK96)))","v":""},{"$f":"IF('Project Scope'!$C96=\"\",\"\",IF(NetOrGross=\"Net\",(1-Z96+AA96),1))","v":""}]
[{"$f":"'Project Scope'!$B97","v":90},{"$f":"IF('Project Scope'!$C97=\"\",\"\",'Project Scope'!$C97)","v":""},{"$f":"IF('Project Scope'!$C97=\"\",\"\",'Project Scope'!$H97)","v":""},{"$f":"IF(ISNUMBER(SEARCH(\"Bay\",'Project Scope'!$Q97)),\"Bay\",IF('Project Scope'!C97=\"\",\"\",'Project Scope'!E97))","v":""},{"$f":"IF('Project Scope'!$C97=\"\",\"\",\"Com\")","v":""},{"$f":"IF('Project Scope'!$C97=\"\",\"\",'Project Scope'!$L97)","v":""},{"$f":"IF('Project Scope'!$C97=\"\",\"\",IF('Project Scope'!$CJ97=\"\",0,'Project Scope'!$CJ97))","v":""},{"$f":"IF('Project Scope'!$C97=\"\",\"\",IF('Project Scope'!$N97=\"\",0,'Project Scope'!$N97))","v":""},{"$f":"IF('Project Scope'!$C97=\"\",\"\",IF('Project Scope'!$CK97=\"\",0,'Project Scope'!$CK97))","v":""},{"$f":"IF('Project Scope'!$C97=\"\",\"\",IF('Project Scope'!$AO97=\"\",0,'Project Scope'!$AO97))","v":""},{"$f":"IF('Project Scope'!$C97=\"\",\"\",IF('Project Scope'!$AX97=\"\",0,'Project Scope'!$AX97))","v":""},{"$f":"IF('Project Scope'!$C97=\"\",\"\",IF('Project Scope'!$M97=\"\",0,'Project Scope'!$M97))","v":""},{"$f":"IF('Project Scope'!$C97=\"\",\"\",IF(COUNTIF('CBAT Lookups'!$B$5:$B$12,\"Fixtures-\"&CBAT!$D97)=1,VLOOKUP(\"Fixtures-\"&CBAT!$D97,'CBAT Lookups'!$B$5:$L$12,11),0))","v":""},{"$f":"IF('Project Scope'!$C97=\"\",\"\",(IF(COUNTIF('CBAT Lookups'!$B$5:$B$12,\"Fixtures-\"&CBAT!$D97)=1,VLOOKUP(\"Fixtures-\"&CBAT!$D97,'CBAT Lookups'!$B$5:$K$12,2),0))*VLOOKUP($F97,'CBAT Lookups'!$B$17:$K$19,2))","v":""},{"$f":"IF('Project Scope'!$C97=\"\",\"\",(IF(COUNTIF('CBAT Lookups'!$B$5:$B$12,\"Fixtures-\"&CBAT!$D97)=1,VLOOKUP(\"Fixtures-\"&CBAT!$D97,'CBAT Lookups'!$B$5:$K$12,3),0))*VLOOKUP($F97,'CBAT Lookups'!$B$17:$K$19,3))","v":""},{"$f":"IF('Project Scope'!$C97=\"\",\"\",(IF(COUNTIF('CBAT Lookups'!$B$5:$B$12,\"Fixtures-\"&CBAT!$D97)=1,VLOOKUP(\"Fixtures-\"&CBAT!$D97,'CBAT Lookups'!$B$5:$K$12,4),0)))","v":""},{"$f":"IF('Project Scope'!$C97=\"\",\"\",(IF(COUNTIF('CBAT Lookups'!$B$5:$B$12,\"Fixtures-\"&CBAT!$D97)=1,VLOOKUP(\"Fixtures-\"&CBAT!$D97,'CBAT Lookups'!$B$5:$K$12,5),0)))","v":""},{"$f":"IF('Project Scope'!$C97=\"\",\"\",(IF(COUNTIF('CBAT Lookups'!$B$5:$B$12,\"Fixtures-\"&CBAT!$D97)=1,VLOOKUP(\"Fixtures-\"&CBAT!$D97,'CBAT Lookups'!$B$5:$K$12,6),0)))","v":""},{"$f":"IF('Project Scope'!$C97=\"\",\"\",IF(COUNTIF('CBAT Lookups'!$B$5:$B$12,\"Fixtures-\"&CBAT!$D97)=1,VLOOKUP(\"Fixtures-\"&CBAT!$D97,'CBAT Lookups'!$B$5:$K$12,7),0))","v":""},{"$f":"IF('Project Scope'!$C97=\"\",\"\",IF(VLOOKUP($F97,'CBAT Lookups'!$B$17:$K$19,8)=\"W\",1,IF(COUNTIF('CBAT Lookups'!$B$5:$B$12,\"Fixtures-\"&CBAT!$D97)=1,VLOOKUP(\"Fixtures-\"&CBAT!$D97,'CBAT Lookups'!$B$5:$K$12,8),0)*VLOOKUP($F97,'CBAT Lookups'!$B$17:$K$19,8)))","v":""},{"$f":"IF('Project Scope'!$C97=\"\",\"\",IF(VLOOKUP($F97,'CBAT Lookups'!$B$17:$K$19,9)=\"W\",1,IF(COUNTIF('CBAT Lookups'!$B$5:$B$12,\"Fixtures-\"&CBAT!$D97)=1,VLOOKUP(\"Fixtures-\"&CBAT!$D97,'CBAT Lookups'!$B$5:$K$12,9),0)*VLOOKUP($F97,'CBAT Lookups'!$B$17:$K$19,9)))","v":""},{"$f":"IF('Project Scope'!$C97=\"\",\"\",IF(COUNTIF('CBAT Lookups'!$B$5:$B$12,\"Fixtures-\"&CBAT!$D97)=1,VLOOKUP(\"Fixtures-\"&CBAT!$D97,'CBAT Lookups'!$B$5:$K$12,10),0)*VLOOKUP($F97,'CBAT Lookups'!$B$17:$K$19,10))","v":""},{"$f":"IF('Project Scope'!$C97=\"\",\"\",IF(COUNTIF('CBAT Lookups'!$B$5:$B$12,\"Fixtures-\"&CBAT!$D97)=1,VLOOKUP(\"Fixtures-\"&CBAT!$D97,'CBAT Lookups'!$B$5:$O$12,12),0))","v":""},{"$f":"IF('Project Scope'!$C97=\"\",\"\",IF(COUNTIF('CBAT Lookups'!$B$5:$B$12,\"Fixtures-\"&CBAT!$D97)=1,VLOOKUP(\"Fixtures-\"&CBAT!$D97,'CBAT Lookups'!$B$5:$O$12,13),0))","v":""},{"$f":"IF('Project Scope'!$C97=\"\",\"\",IF(COUNTIF('CBAT Lookups'!$B$5:$B$12,\"Fixtures-\"&CBAT!$D97)=1,VLOOKUP(\"Fixtures-\"&CBAT!$D97,'CBAT Lookups'!$B$5:$O$12,14),0))","v":""},{"$f":"IF('Project Scope'!$C97=\"\",\"\",'TRM Data'!$U$3)","v":""},{"$f":"IF('Project Scope'!$C97=\"\",\"\",'TRM Data'!$V$3)","v":""},{"$f":"IF('Project Scope'!$C97=\"\",\"\",IF($J97<=0,0,MAX(0,(($G97*$H97/1000)-($I97*$J97/1000))*$L97)*$U97)+($AF97/0.003412))","v":""},{"$f":"IF('Project Scope'!$C97=\"\",\"\",IF($J97<=0,0,MAX(0,(($G97*$H97/1000)-($I97*$J97/1000)))*$T97))","v":""},{"$f":"IF('Project Scope'!$C97=\"\",\"\",IF($J97<=0,0,MAX(0,(($G97*$H97/1000)-($I97*$J97/1000))*$N97)))","v":""},{"$f":"IF('Project Scope'!$C97=\"\",\"\",IF($J97<=0,0,MAX(0,(($G97*$H97/1000)-($I97*$J97/1000))*$O97)*$T97))","v":""},{"$f":"IF('Project Scope'!$C97=\"\",\"\",IF(OR($J97<=0,'Project Information'!$D$44=\"\"),0,-1*MAX(0,(($G97*$H97/1000)-($I97*$J97/1000))*$L97)*$V97*VLOOKUP('Project Information'!$D$44,'CBAT Lookups'!$A$23:$H$30,2)))","v":""},{"$f":"IF('Project Scope'!$C97=\"\",\"\",IF(OR($J97<=0,'Project Information'!$D$44=\"\"),0,-1*MAX(0,(($G97*$H97/1000)-($I97*$J97/1000))*$L97)*$V97*VLOOKUP('Project Information'!$D$44,'CBAT Lookups'!$A$23:$H$30,3)))","v":""},{"$f":"IF('Project Scope'!$C97=\"\",\"\",IF(OR($J97<=0,'Project Information'!$D$44=\"\"),0,-1*MAX(0,(($G97*$H97/1000)-($I97*$J97/1000))*$L97)*$V97*VLOOKUP('Project Information'!$D$44,'CBAT Lookups'!$A$23:$H$30,4)))","v":""},{"$f":"IF('Project Scope'!$C97=\"\",\"\",IF(OR($J97<=0,'Project Information'!$D$44=\"\"),0,-1*MAX(0,(($G97*$H97/1000)-($I97*$J97/1000))*$L97)*$V97*VLOOKUP('Project Information'!$D$44,'CBAT Lookups'!$A$23:$H$30,5)))","v":""},{"$f":"IF('Project Scope'!$C97=\"\",\"\",IF(OR($J97<=0,'Project Information'!$D$44=\"\"),0,-1*MAX(0,(($G97*$H97/1000)-($I97*$J97/1000))*$L97)*$V97*VLOOKUP('Project Information'!$D$44,'CBAT Lookups'!$A$23:$H$30,6)))","v":""},{"$f":"IF('Project Scope'!$C97=\"\",\"\",IF(OR($J97<=0,'Project Information'!$D$44=\"\"),0,-1*MAX(0,(($G97*$H97/1000)-($I97*$J97/1000))*$L97)*$V97*VLOOKUP('Project Information'!$D$44,'CBAT Lookups'!$A$23:$H$30,7)))","v":""},{"$f":"IF('Project Scope'!$C97=\"\",\"\",IF(OR($J97<=0,'Project Information'!$D$44=\"\"),0,-1*MAX(0,(($G97*$H97/1000)-($I97*$J97/1000))*$L97)*$V97*VLOOKUP('Project Information'!$D$44,'CBAT Lookups'!$A$23:$H$30,8)))","v":""},null,{"$f":"IF('Project Scope'!$C97=\"\",\"\",VLOOKUP($F97,'CBAT Lookups'!$B$17:$K$19,4))","v":""},{"$f":"IF('Project Scope'!$C97=\"\",\"\",VLOOKUP($F97,'CBAT Lookups'!$B$17:$K$19,5))","v":""},{"$f":"IF('Project Scope'!$C97=\"\",\"\",VLOOKUP($F97,'CBAT Lookups'!$B$17:$K$19,6))","v":""},{"$f":"IF('Project Scope'!$C97=\"\",\"\",VLOOKUP($F97,'CBAT Lookups'!$B$17:$K$19,7))","v":""},{"$f":"IF('Project Scope'!$C97=\"\",\"\",IF(SUMPRODUCT($P97:$S97,$AN97:$AQ97)=0,0,P97*AN97/SUMPRODUCT($P97:$S97,$AN97:$AQ97)))","v":""},{"$f":"IF('Project Scope'!$C97=\"\",\"\",IF(SUMPRODUCT($P97:$S97,$AN97:$AQ97)=0,0,Q97*AO97/SUMPRODUCT($P97:$S97,$AN97:$AQ97)))","v":""},{"$f":"IF('Project Scope'!$C97=\"\",\"\",IF(SUMPRODUCT($P97:$S97,$AN97:$AQ97)=0,0,R97*AP97/SUMPRODUCT($P97:$S97,$AN97:$AQ97)))","v":""},{"$f":"IF('Project Scope'!$C97=\"\",\"\",IF(SUMPRODUCT($P97:$S97,$AN97:$AQ97)=0,0,S97*AQ97/SUMPRODUCT($P97:$S97,$AN97:$AQ97)))","v":""},{"$f":"IF('Project Scope'!$C97=\"\",\"\",Benefits($AB97,$AD97,$AE97,$AG97,$AH97,$AI97,$AJ97,$AK97,$AL97,$AM97,$M97,$AR97,$AS97,$AT97,$AU97,$W97,$X97,$Y97,$Z97,$AA97,$E97))","v":""},"","","","","","","","",null,{"$f":"IF('Project Scope'!$C97=\"\",\"\",SUM('Project Scope'!$AT97,'Project Scope'!$AU97))","v":""},{"$f":"IF('Project Scope'!$C97=\"\",\"\",SUM('Project Scope'!$BG97, 'Project Scope'!$AR97,(IF(ISNUMBER('Project Scope'!$AS97),'Project Scope'!$AS97,0)*'Project Information'!$D$12)))","v":""},null,null,{"$f":"IF('Project Scope'!$C97=\"\",\"\",IF(COUNTIF('CBAT Lookups'!$B$5:$B$12,\"Controls-\"&CBAT!$D97)=1,VLOOKUP(\"Controls-\"&CBAT!$D97,'CBAT Lookups'!$B$5:$L$12,11),0))","v":""},{"$f":"IF('Project Scope'!$C97=\"\",\"\",IF(COUNTIF('CBAT Lookups'!$B$5:$B$12,\"Controls-\"&CBAT!$D97)=1,VLOOKUP(\"Controls-\"&CBAT!$D97,'CBAT Lookups'!$B$5:$K$12,2),0)*VLOOKUP($F97,'CBAT Lookups'!$B$17:$K$19,2))","v":""},{"$f":"IF('Project Scope'!$C97=\"\",\"\",IF(COUNTIF('CBAT Lookups'!$B$5:$B$12,\"Controls-\"&CBAT!$D97)=1,VLOOKUP(\"Controls-\"&CBAT!$D97,'CBAT Lookups'!$B$5:$K$12,3),0)*VLOOKUP($F97,'CBAT Lookups'!$B$17:$K$19,3))","v":""},{"$f":"IF('Project Scope'!$C97=\"\",\"\",IF(COUNTIF('CBAT Lookups'!$B$5:$B$12,\"Controls-\"&CBAT!$D97)=1,VLOOKUP(\"Controls-\"&CBAT!$D97,'CBAT Lookups'!$B$5:$K$12,4),0))","v":""},{"$f":"IF('Project Scope'!$C97=\"\",\"\",IF(COUNTIF('CBAT Lookups'!$B$5:$B$12,\"Controls-\"&CBAT!$D97)=1,VLOOKUP(\"Controls-\"&CBAT!$D97,'CBAT Lookups'!$B$5:$K$12,5),0))","v":""},{"$f":"IF('Project Scope'!$C97=\"\",\"\",IF(COUNTIF('CBAT Lookups'!$B$5:$B$12,\"Controls-\"&CBAT!$D97)=1,VLOOKUP(\"Controls-\"&CBAT!$D97,'CBAT Lookups'!$B$5:$K$12,6),0))","v":""},{"$f":"IF('Project Scope'!$C97=\"\",\"\",IF(COUNTIF('CBAT Lookups'!$B$5:$B$12,\"Controls-\"&CBAT!$D97)=1,VLOOKUP(\"Controls-\"&CBAT!$D97,'CBAT Lookups'!$B$5:$K$12,7),0))","v":""},{"$f":"IF('Project Scope'!$C97=\"\",\"\",IF(VLOOKUP($F97,'CBAT Lookups'!$B$17:$K$19,8)=\"W\",1,IF(COUNTIF('CBAT Lookups'!$B$5:$B$12,\"Controls-\"&CBAT!$D97)=1,VLOOKUP(\"Controls-\"&CBAT!$D97,'CBAT Lookups'!$B$5:$K$12,8),0)*VLOOKUP($F97,'CBAT Lookups'!$B$17:$K$19,8)))","v":""},{"$f":"IF('Project Scope'!$C97=\"\",\"\",IF(VLOOKUP($F97,'CBAT Lookups'!$B$17:$K$19,9)=\"W\",1,IF(COUNTIF('CBAT Lookups'!$B$5:$B$12,\"Controls-\"&CBAT!$D97)=1,VLOOKUP(\"Controls-\"&CBAT!$D97,'CBAT Lookups'!$B$5:$K$12,9),0)*VLOOKUP($F97,'CBAT Lookups'!$B$17:$K$19,9)))","v":""},{"$f":"IF('Project Scope'!$C97=\"\",\"\",IF(COUNTIF('CBAT Lookups'!$B$5:$B$12,\"Controls-\"&CBAT!$D97)=1,VLOOKUP(\"Controls-\"&CBAT!$D97,'CBAT Lookups'!$B$5:$K$12,10),0)*VLOOKUP($F97,'CBAT Lookups'!$B$17:$K$19,10))","v":""},{"$f":"IF('Project Scope'!$C97=\"\",\"\",VLOOKUP($C97,'CBAT Lookups'!$A$33:$B$57,2))","v":""},{"$f":"IF('Project Scope'!$C97=\"\",\"\",IF(COUNTIF('CBAT Lookups'!$B$5:$B$12,\"Controls-\"&CBAT!$D97)=1,VLOOKUP(\"Controls-\"&CBAT!$D97,'CBAT Lookups'!$B$5:$O$12,12),0))","v":""},{"$f":"IF('Project Scope'!$C97=\"\",\"\",IF(COUNTIF('CBAT Lookups'!$B$5:$B$12,\"Controls-\"&CBAT!$D97)=1,VLOOKUP(\"Controls-\"&CBAT!$D97,'CBAT Lookups'!$B$5:$O$12,13),0))","v":""},{"$f":"IF('Project Scope'!$C97=\"\",\"\",IF(COUNTIF('CBAT Lookups'!$B$5:$B$12,\"Controls-\"&CBAT!$D97)=1,VLOOKUP(\"Controls-\"&CBAT!$D97,'CBAT Lookups'!$B$5:$O$12,14),0))","v":""},{"$f":"IF('Project Scope'!$C97=\"\",\"\",'TRM Data'!$U$3)","v":""},{"$f":"IF('Project Scope'!$C97=\"\",\"\",'TRM Data'!$V$3)","v":""},{"$f":"IF('Project Scope'!$C97=\"\",\"\",IF($K97<=0,0,MAX(0,(IF(AND($I97>0,$J97>0),($I97*$J97)/1000,($G97*$H97)/1000)*$L97))*$BT97*$BR97)+($CD97/0.003412))","v":""},{"$f":"IF('Project Scope'!$C97=\"\",\"\",IF($K97<=0,0,MAX(0,IF(AND($I97>0,$J97>0),($I97*$J97)/1000,($G97*$H97)/1000))*$BQ97))","v":""},{"$f":"IF('Project Scope'!$C97=\"\",\"\",IF($K97<=0,0,MAX(0,IF(AND($I97>0,$J97>0),($I97*$J97)/1000,($G97*$H97)/1000))*$BK97))","v":""},{"$f":"IF('Project Scope'!$C97=\"\",\"\",IF($K97<=0,0,MAX(0,IF(AND($I97>0,$J97>0),($I97*$J97)/1000,($G97*$H97)/1000))*$BL97*$BQ97))","v":""},{"$f":"IF('Project Scope'!$C97=\"\",\"\",IF(OR($K97<=0,'Project Information'!$D$44=\"\"),0,-1*MAX(0,IF(AND($I97>0,$J97>0),($I97*$J97)/1000,($G97*$H97)/1000))*$BT97*$L97*$BS97*VLOOKUP('Project Information'!$D$44,'CBAT Lookups'!$A$23:$H$30,2)))","v":""},{"$f":"IF('Project Scope'!$C97=\"\",\"\",IF(OR($K97<=0,'Project Information'!$D$44=\"\"),0,-1*MAX(0,IF(AND($I97>0,$J97>0),($I97*$J97)/1000,($G97*$H97)/1000))*$BT97*$L97*$BS97*VLOOKUP('Project Information'!$D$44,'CBAT Lookups'!$A$23:$H$30,3)))","v":""},{"$f":"IF('Project Scope'!$C97=\"\",\"\",IF(OR($K97<=0,'Project Information'!$D$44=\"\"),0,-1*MAX(0,IF(AND($I97>0,$J97>0),($I97*$J97)/1000,($G97*$H97)/1000))*$BT97*$L97*$BS97*VLOOKUP('Project Information'!$D$44,'CBAT Lookups'!$A$23:$H$30,4)))","v":""},{"$f":"IF('Project Scope'!$C97=\"\",\"\",IF(OR($K97<=0,'Project Information'!$D$44=\"\"),0,-1*MAX(0,IF(AND($I97>0,$J97>0),($I97*$J97)/1000,($G97*$H97)/1000))*$BT97*$L97*$BS97*VLOOKUP('Project Information'!$D$44,'CBAT Lookups'!$A$23:$H$30,5)))","v":""},{"$f":"IF('Project Scope'!$C97=\"\",\"\",IF(OR($K97<=0,'Project Information'!$D$44=\"\"),0,-1*MAX(0,IF(AND($I97>0,$J97>0),($I97*$J97)/1000,($G97*$H97)/1000))*$BT97*$L97*$BS97*VLOOKUP('Project Information'!$D$44,'CBAT Lookups'!$A$23:$H$30,6)))","v":""},{"$f":"IF('Project Scope'!$C97=\"\",\"\",IF(OR($K97<=0,'Project Information'!$D$44=\"\"),0,-1*MAX(0,IF(AND($I97>0,$J97>0),($I97*$J97)/1000,($G97*$H97)/1000))*$BT97*$L97*$BS97*VLOOKUP('Project Information'!$D$44,'CBAT Lookups'!$A$23:$H$30,7)))","v":""},{"$f":"IF('Project Scope'!$C97=\"\",\"\",IF(OR($K97<=0,'Project Information'!$D$44=\"\"),0,-1*MAX(0,IF(AND($I97>0,$J97>0),($I97*$J97)/1000,($G97*$H97)/1000))*$BT97*$L97*$BS97*VLOOKUP('Project Information'!$D$44,'CBAT Lookups'!$A$23:$H$30,8)))","v":""},null,{"$f":"IF('Project Scope'!$C97=\"\",\"\",VLOOKUP($F97,'CBAT Lookups'!$B$17:$K$19,4))","v":""},{"$f":"IF('Project Scope'!$C97=\"\",\"\",VLOOKUP($F97,'CBAT Lookups'!$B$17:$K$19,5))","v":""},{"$f":"IF('Project Scope'!$C97=\"\",\"\",VLOOKUP($F97,'CBAT Lookups'!$B$17:$K$19,6))","v":""},{"$f":"IF('Project Scope'!$C97=\"\",\"\",VLOOKUP($F97,'CBAT Lookups'!$B$17:$K$19,7))","v":""},{"$f":"IF('Project Scope'!$C97=\"\",\"\",IF(SUMPRODUCT($BM97:$BP97,$CL97:$CO97)=0,0,BM97*CL97/SUMPRODUCT($BM97:$BP97,$CL97:$CO97)))","v":""},{"$f":"IF('Project Scope'!$C97=\"\",\"\",IF(SUMPRODUCT($BM97:$BP97,$CL97:$CO97)=0,0,BN97*CM97/SUMPRODUCT($BM97:$BP97,$CL97:$CO97)))","v":""},{"$f":"IF('Project Scope'!$C97=\"\",\"\",IF(SUMPRODUCT($BM97:$BP97,$CL97:$CO97)=0,0,BO97*CN97/SUMPRODUCT($BM97:$BP97,$CL97:$CO97)))","v":""},{"$f":"IF('Project Scope'!$C97=\"\",\"\",IF(SUMPRODUCT($BM97:$BP97,$CL97:$CO97)=0,0,BP97*CO97/SUMPRODUCT($BM97:$BP97,$CL97:$CO97)))","v":""},{"$f":"IF('Project Scope'!$C97=\"\",\"\",Benefits($BZ97,$CB97,$CC97,$CE97,$CF97,$CG97,$CH97,$CI97,$CJ97,$CK97,$BJ97,$CP97,$CQ97,$CR97,$CS97,$BU97,$BV97,$BW97,$BX97,$BY97,$E97))","v":""},"","","","","","","","",null,{"$f":"IF('Project Scope'!$C97=\"\",\"\",SUM('Project Scope'!$BB97,'Project Scope'!$BC97))","v":""},{"$f":"IF('Project Scope'!$C97=\"\",\"\",SUM('Project Scope'!$BH97, 'Project Scope'!$AZ97,(IF(ISNUMBER('Project Scope'!$BA97),'Project Scope'!$BA97,0)*'Project Information'!$D$12)))","v":""},null,null,{"$f":"IF('Project Scope'!$C97=\"\",\"\",IF($J97<=0,0,(SUMPRODUCT($AV97:$BC97,--($AV97:$BC97>0))+$BE97)*$DK97/((-SUMPRODUCT($AV97:$BC97,--($AV97:$BC97<0))+$BG97+$BH97+$BI97)*$DK97)))","v":""},{"$f":"IF('Project Scope'!$C97=\"\",\"\",IF($K97<=0,0,(SUMPRODUCT($CT97:$DA97,--($CT97:$DA97>0))+$DC97)*$DK97/((-SUMPRODUCT($CT97:$DA97,--($CT97:$DA97<0))+$DE97+$DF97+$DG97)*$DK97)))","v":""},{"$f":"IF('Project Scope'!$C97=\"\",\"\",IF(AND($J97<=0,$K97<=0),0,(SUMPRODUCT($AV97:$BC97,--($AV97:$BC97>0))+$BE97+SUMPRODUCT($CT97:$DA97,--($CT97:$DA97>0))+$DC97)*$DK97/((-SUMPRODUCT($AV97:$BC97,--($AV97:$BC97<0))+$BG97+$BH97+$BI97-SUMPRODUCT($CT97:$DA97,--($CT97:$DA97<0))+$DE97+$DF97+$DG97)*$DK97)))","v":""},{"$f":"IF('Project Scope'!$C97=\"\",\"\",IF(NetOrGross=\"Net\",(1-Z97+AA97),1))","v":""}]
[{"$f":"'Project Scope'!$B98","v":91},{"$f":"IF('Project Scope'!$C98=\"\",\"\",'Project Scope'!$C98)","v":""},{"$f":"IF('Project Scope'!$C98=\"\",\"\",'Project Scope'!$H98)","v":""},{"$f":"IF(ISNUMBER(SEARCH(\"Bay\",'Project Scope'!$Q98)),\"Bay\",IF('Project Scope'!C98=\"\",\"\",'Project Scope'!E98))","v":""},{"$f":"IF('Project Scope'!$C98=\"\",\"\",\"Com\")","v":""},{"$f":"IF('Project Scope'!$C98=\"\",\"\",'Project Scope'!$L98)","v":""},{"$f":"IF('Project Scope'!$C98=\"\",\"\",IF('Project Scope'!$CJ98=\"\",0,'Project Scope'!$CJ98))","v":""},{"$f":"IF('Project Scope'!$C98=\"\",\"\",IF('Project Scope'!$N98=\"\",0,'Project Scope'!$N98))","v":""},{"$f":"IF('Project Scope'!$C98=\"\",\"\",IF('Project Scope'!$CK98=\"\",0,'Project Scope'!$CK98))","v":""},{"$f":"IF('Project Scope'!$C98=\"\",\"\",IF('Project Scope'!$AO98=\"\",0,'Project Scope'!$AO98))","v":""},{"$f":"IF('Project Scope'!$C98=\"\",\"\",IF('Project Scope'!$AX98=\"\",0,'Project Scope'!$AX98))","v":""},{"$f":"IF('Project Scope'!$C98=\"\",\"\",IF('Project Scope'!$M98=\"\",0,'Project Scope'!$M98))","v":""},{"$f":"IF('Project Scope'!$C98=\"\",\"\",IF(COUNTIF('CBAT Lookups'!$B$5:$B$12,\"Fixtures-\"&CBAT!$D98)=1,VLOOKUP(\"Fixtures-\"&CBAT!$D98,'CBAT Lookups'!$B$5:$L$12,11),0))","v":""},{"$f":"IF('Project Scope'!$C98=\"\",\"\",(IF(COUNTIF('CBAT Lookups'!$B$5:$B$12,\"Fixtures-\"&CBAT!$D98)=1,VLOOKUP(\"Fixtures-\"&CBAT!$D98,'CBAT Lookups'!$B$5:$K$12,2),0))*VLOOKUP($F98,'CBAT Lookups'!$B$17:$K$19,2))","v":""},{"$f":"IF('Project Scope'!$C98=\"\",\"\",(IF(COUNTIF('CBAT Lookups'!$B$5:$B$12,\"Fixtures-\"&CBAT!$D98)=1,VLOOKUP(\"Fixtures-\"&CBAT!$D98,'CBAT Lookups'!$B$5:$K$12,3),0))*VLOOKUP($F98,'CBAT Lookups'!$B$17:$K$19,3))","v":""},{"$f":"IF('Project Scope'!$C98=\"\",\"\",(IF(COUNTIF('CBAT Lookups'!$B$5:$B$12,\"Fixtures-\"&CBAT!$D98)=1,VLOOKUP(\"Fixtures-\"&CBAT!$D98,'CBAT Lookups'!$B$5:$K$12,4),0)))","v":""},{"$f":"IF('Project Scope'!$C98=\"\",\"\",(IF(COUNTIF('CBAT Lookups'!$B$5:$B$12,\"Fixtures-\"&CBAT!$D98)=1,VLOOKUP(\"Fixtures-\"&CBAT!$D98,'CBAT Lookups'!$B$5:$K$12,5),0)))","v":""},{"$f":"IF('Project Scope'!$C98=\"\",\"\",(IF(COUNTIF('CBAT Lookups'!$B$5:$B$12,\"Fixtures-\"&CBAT!$D98)=1,VLOOKUP(\"Fixtures-\"&CBAT!$D98,'CBAT Lookups'!$B$5:$K$12,6),0)))","v":""},{"$f":"IF('Project Scope'!$C98=\"\",\"\",IF(COUNTIF('CBAT Lookups'!$B$5:$B$12,\"Fixtures-\"&CBAT!$D98)=1,VLOOKUP(\"Fixtures-\"&CBAT!$D98,'CBAT Lookups'!$B$5:$K$12,7),0))","v":""},{"$f":"IF('Project Scope'!$C98=\"\",\"\",IF(VLOOKUP($F98,'CBAT Lookups'!$B$17:$K$19,8)=\"W\",1,IF(COUNTIF('CBAT Lookups'!$B$5:$B$12,\"Fixtures-\"&CBAT!$D98)=1,VLOOKUP(\"Fixtures-\"&CBAT!$D98,'CBAT Lookups'!$B$5:$K$12,8),0)*VLOOKUP($F98,'CBAT Lookups'!$B$17:$K$19,8)))","v":""},{"$f":"IF('Project Scope'!$C98=\"\",\"\",IF(VLOOKUP($F98,'CBAT Lookups'!$B$17:$K$19,9)=\"W\",1,IF(COUNTIF('CBAT Lookups'!$B$5:$B$12,\"Fixtures-\"&CBAT!$D98)=1,VLOOKUP(\"Fixtures-\"&CBAT!$D98,'CBAT Lookups'!$B$5:$K$12,9),0)*VLOOKUP($F98,'CBAT Lookups'!$B$17:$K$19,9)))","v":""},{"$f":"IF('Project Scope'!$C98=\"\",\"\",IF(COUNTIF('CBAT Lookups'!$B$5:$B$12,\"Fixtures-\"&CBAT!$D98)=1,VLOOKUP(\"Fixtures-\"&CBAT!$D98,'CBAT Lookups'!$B$5:$K$12,10),0)*VLOOKUP($F98,'CBAT Lookups'!$B$17:$K$19,10))","v":""},{"$f":"IF('Project Scope'!$C98=\"\",\"\",IF(COUNTIF('CBAT Lookups'!$B$5:$B$12,\"Fixtures-\"&CBAT!$D98)=1,VLOOKUP(\"Fixtures-\"&CBAT!$D98,'CBAT Lookups'!$B$5:$O$12,12),0))","v":""},{"$f":"IF('Project Scope'!$C98=\"\",\"\",IF(COUNTIF('CBAT Lookups'!$B$5:$B$12,\"Fixtures-\"&CBAT!$D98)=1,VLOOKUP(\"Fixtures-\"&CBAT!$D98,'CBAT Lookups'!$B$5:$O$12,13),0))","v":""},{"$f":"IF('Project Scope'!$C98=\"\",\"\",IF(COUNTIF('CBAT Lookups'!$B$5:$B$12,\"Fixtures-\"&CBAT!$D98)=1,VLOOKUP(\"Fixtures-\"&CBAT!$D98,'CBAT Lookups'!$B$5:$O$12,14),0))","v":""},{"$f":"IF('Project Scope'!$C98=\"\",\"\",'TRM Data'!$U$3)","v":""},{"$f":"IF('Project Scope'!$C98=\"\",\"\",'TRM Data'!$V$3)","v":""},{"$f":"IF('Project Scope'!$C98=\"\",\"\",IF($J98<=0,0,MAX(0,(($G98*$H98/1000)-($I98*$J98/1000))*$L98)*$U98)+($AF98/0.003412))","v":""},{"$f":"IF('Project Scope'!$C98=\"\",\"\",IF($J98<=0,0,MAX(0,(($G98*$H98/1000)-($I98*$J98/1000)))*$T98))","v":""},{"$f":"IF('Project Scope'!$C98=\"\",\"\",IF($J98<=0,0,MAX(0,(($G98*$H98/1000)-($I98*$J98/1000))*$N98)))","v":""},{"$f":"IF('Project Scope'!$C98=\"\",\"\",IF($J98<=0,0,MAX(0,(($G98*$H98/1000)-($I98*$J98/1000))*$O98)*$T98))","v":""},{"$f":"IF('Project Scope'!$C98=\"\",\"\",IF(OR($J98<=0,'Project Information'!$D$44=\"\"),0,-1*MAX(0,(($G98*$H98/1000)-($I98*$J98/1000))*$L98)*$V98*VLOOKUP('Project Information'!$D$44,'CBAT Lookups'!$A$23:$H$30,2)))","v":""},{"$f":"IF('Project Scope'!$C98=\"\",\"\",IF(OR($J98<=0,'Project Information'!$D$44=\"\"),0,-1*MAX(0,(($G98*$H98/1000)-($I98*$J98/1000))*$L98)*$V98*VLOOKUP('Project Information'!$D$44,'CBAT Lookups'!$A$23:$H$30,3)))","v":""},{"$f":"IF('Project Scope'!$C98=\"\",\"\",IF(OR($J98<=0,'Project Information'!$D$44=\"\"),0,-1*MAX(0,(($G98*$H98/1000)-($I98*$J98/1000))*$L98)*$V98*VLOOKUP('Project Information'!$D$44,'CBAT Lookups'!$A$23:$H$30,4)))","v":""},{"$f":"IF('Project Scope'!$C98=\"\",\"\",IF(OR($J98<=0,'Project Information'!$D$44=\"\"),0,-1*MAX(0,(($G98*$H98/1000)-($I98*$J98/1000))*$L98)*$V98*VLOOKUP('Project Information'!$D$44,'CBAT Lookups'!$A$23:$H$30,5)))","v":""},{"$f":"IF('Project Scope'!$C98=\"\",\"\",IF(OR($J98<=0,'Project Information'!$D$44=\"\"),0,-1*MAX(0,(($G98*$H98/1000)-($I98*$J98/1000))*$L98)*$V98*VLOOKUP('Project Information'!$D$44,'CBAT Lookups'!$A$23:$H$30,6)))","v":""},{"$f":"IF('Project Scope'!$C98=\"\",\"\",IF(OR($J98<=0,'Project Information'!$D$44=\"\"),0,-1*MAX(0,(($G98*$H98/1000)-($I98*$J98/1000))*$L98)*$V98*VLOOKUP('Project Information'!$D$44,'CBAT Lookups'!$A$23:$H$30,7)))","v":""},{"$f":"IF('Project Scope'!$C98=\"\",\"\",IF(OR($J98<=0,'Project Information'!$D$44=\"\"),0,-1*MAX(0,(($G98*$H98/1000)-($I98*$J98/1000))*$L98)*$V98*VLOOKUP('Project Information'!$D$44,'CBAT Lookups'!$A$23:$H$30,8)))","v":""},null,{"$f":"IF('Project Scope'!$C98=\"\",\"\",VLOOKUP($F98,'CBAT Lookups'!$B$17:$K$19,4))","v":""},{"$f":"IF('Project Scope'!$C98=\"\",\"\",VLOOKUP($F98,'CBAT Lookups'!$B$17:$K$19,5))","v":""},{"$f":"IF('Project Scope'!$C98=\"\",\"\",VLOOKUP($F98,'CBAT Lookups'!$B$17:$K$19,6))","v":""},{"$f":"IF('Project Scope'!$C98=\"\",\"\",VLOOKUP($F98,'CBAT Lookups'!$B$17:$K$19,7))","v":""},{"$f":"IF('Project Scope'!$C98=\"\",\"\",IF(SUMPRODUCT($P98:$S98,$AN98:$AQ98)=0,0,P98*AN98/SUMPRODUCT($P98:$S98,$AN98:$AQ98)))","v":""},{"$f":"IF('Project Scope'!$C98=\"\",\"\",IF(SUMPRODUCT($P98:$S98,$AN98:$AQ98)=0,0,Q98*AO98/SUMPRODUCT($P98:$S98,$AN98:$AQ98)))","v":""},{"$f":"IF('Project Scope'!$C98=\"\",\"\",IF(SUMPRODUCT($P98:$S98,$AN98:$AQ98)=0,0,R98*AP98/SUMPRODUCT($P98:$S98,$AN98:$AQ98)))","v":""},{"$f":"IF('Project Scope'!$C98=\"\",\"\",IF(SUMPRODUCT($P98:$S98,$AN98:$AQ98)=0,0,S98*AQ98/SUMPRODUCT($P98:$S98,$AN98:$AQ98)))","v":""},{"$f":"IF('Project Scope'!$C98=\"\",\"\",Benefits($AB98,$AD98,$AE98,$AG98,$AH98,$AI98,$AJ98,$AK98,$AL98,$AM98,$M98,$AR98,$AS98,$AT98,$AU98,$W98,$X98,$Y98,$Z98,$AA98,$E98))","v":""},"","","","","","","","",null,{"$f":"IF('Project Scope'!$C98=\"\",\"\",SUM('Project Scope'!$AT98,'Project Scope'!$AU98))","v":""},{"$f":"IF('Project Scope'!$C98=\"\",\"\",SUM('Project Scope'!$BG98, 'Project Scope'!$AR98,(IF(ISNUMBER('Project Scope'!$AS98),'Project Scope'!$AS98,0)*'Project Information'!$D$12)))","v":""},null,null,{"$f":"IF('Project Scope'!$C98=\"\",\"\",IF(COUNTIF('CBAT Lookups'!$B$5:$B$12,\"Controls-\"&CBAT!$D98)=1,VLOOKUP(\"Controls-\"&CBAT!$D98,'CBAT Lookups'!$B$5:$L$12,11),0))","v":""},{"$f":"IF('Project Scope'!$C98=\"\",\"\",IF(COUNTIF('CBAT Lookups'!$B$5:$B$12,\"Controls-\"&CBAT!$D98)=1,VLOOKUP(\"Controls-\"&CBAT!$D98,'CBAT Lookups'!$B$5:$K$12,2),0)*VLOOKUP($F98,'CBAT Lookups'!$B$17:$K$19,2))","v":""},{"$f":"IF('Project Scope'!$C98=\"\",\"\",IF(COUNTIF('CBAT Lookups'!$B$5:$B$12,\"Controls-\"&CBAT!$D98)=1,VLOOKUP(\"Controls-\"&CBAT!$D98,'CBAT Lookups'!$B$5:$K$12,3),0)*VLOOKUP($F98,'CBAT Lookups'!$B$17:$K$19,3))","v":""},{"$f":"IF('Project Scope'!$C98=\"\",\"\",IF(COUNTIF('CBAT Lookups'!$B$5:$B$12,\"Controls-\"&CBAT!$D98)=1,VLOOKUP(\"Controls-\"&CBAT!$D98,'CBAT Lookups'!$B$5:$K$12,4),0))","v":""},{"$f":"IF('Project Scope'!$C98=\"\",\"\",IF(COUNTIF('CBAT Lookups'!$B$5:$B$12,\"Controls-\"&CBAT!$D98)=1,VLOOKUP(\"Controls-\"&CBAT!$D98,'CBAT Lookups'!$B$5:$K$12,5),0))","v":""},{"$f":"IF('Project Scope'!$C98=\"\",\"\",IF(COUNTIF('CBAT Lookups'!$B$5:$B$12,\"Controls-\"&CBAT!$D98)=1,VLOOKUP(\"Controls-\"&CBAT!$D98,'CBAT Lookups'!$B$5:$K$12,6),0))","v":""},{"$f":"IF('Project Scope'!$C98=\"\",\"\",IF(COUNTIF('CBAT Lookups'!$B$5:$B$12,\"Controls-\"&CBAT!$D98)=1,VLOOKUP(\"Controls-\"&CBAT!$D98,'CBAT Lookups'!$B$5:$K$12,7),0))","v":""},{"$f":"IF('Project Scope'!$C98=\"\",\"\",IF(VLOOKUP($F98,'CBAT Lookups'!$B$17:$K$19,8)=\"W\",1,IF(COUNTIF('CBAT Lookups'!$B$5:$B$12,\"Controls-\"&CBAT!$D98)=1,VLOOKUP(\"Controls-\"&CBAT!$D98,'CBAT Lookups'!$B$5:$K$12,8),0)*VLOOKUP($F98,'CBAT Lookups'!$B$17:$K$19,8)))","v":""},{"$f":"IF('Project Scope'!$C98=\"\",\"\",IF(VLOOKUP($F98,'CBAT Lookups'!$B$17:$K$19,9)=\"W\",1,IF(COUNTIF('CBAT Lookups'!$B$5:$B$12,\"Controls-\"&CBAT!$D98)=1,VLOOKUP(\"Controls-\"&CBAT!$D98,'CBAT Lookups'!$B$5:$K$12,9),0)*VLOOKUP($F98,'CBAT Lookups'!$B$17:$K$19,9)))","v":""},{"$f":"IF('Project Scope'!$C98=\"\",\"\",IF(COUNTIF('CBAT Lookups'!$B$5:$B$12,\"Controls-\"&CBAT!$D98)=1,VLOOKUP(\"Controls-\"&CBAT!$D98,'CBAT Lookups'!$B$5:$K$12,10),0)*VLOOKUP($F98,'CBAT Lookups'!$B$17:$K$19,10))","v":""},{"$f":"IF('Project Scope'!$C98=\"\",\"\",VLOOKUP($C98,'CBAT Lookups'!$A$33:$B$57,2))","v":""},{"$f":"IF('Project Scope'!$C98=\"\",\"\",IF(COUNTIF('CBAT Lookups'!$B$5:$B$12,\"Controls-\"&CBAT!$D98)=1,VLOOKUP(\"Controls-\"&CBAT!$D98,'CBAT Lookups'!$B$5:$O$12,12),0))","v":""},{"$f":"IF('Project Scope'!$C98=\"\",\"\",IF(COUNTIF('CBAT Lookups'!$B$5:$B$12,\"Controls-\"&CBAT!$D98)=1,VLOOKUP(\"Controls-\"&CBAT!$D98,'CBAT Lookups'!$B$5:$O$12,13),0))","v":""},{"$f":"IF('Project Scope'!$C98=\"\",\"\",IF(COUNTIF('CBAT Lookups'!$B$5:$B$12,\"Controls-\"&CBAT!$D98)=1,VLOOKUP(\"Controls-\"&CBAT!$D98,'CBAT Lookups'!$B$5:$O$12,14),0))","v":""},{"$f":"IF('Project Scope'!$C98=\"\",\"\",'TRM Data'!$U$3)","v":""},{"$f":"IF('Project Scope'!$C98=\"\",\"\",'TRM Data'!$V$3)","v":""},{"$f":"IF('Project Scope'!$C98=\"\",\"\",IF($K98<=0,0,MAX(0,(IF(AND($I98>0,$J98>0),($I98*$J98)/1000,($G98*$H98)/1000)*$L98))*$BT98*$BR98)+($CD98/0.003412))","v":""},{"$f":"IF('Project Scope'!$C98=\"\",\"\",IF($K98<=0,0,MAX(0,IF(AND($I98>0,$J98>0),($I98*$J98)/1000,($G98*$H98)/1000))*$BQ98))","v":""},{"$f":"IF('Project Scope'!$C98=\"\",\"\",IF($K98<=0,0,MAX(0,IF(AND($I98>0,$J98>0),($I98*$J98)/1000,($G98*$H98)/1000))*$BK98))","v":""},{"$f":"IF('Project Scope'!$C98=\"\",\"\",IF($K98<=0,0,MAX(0,IF(AND($I98>0,$J98>0),($I98*$J98)/1000,($G98*$H98)/1000))*$BL98*$BQ98))","v":""},{"$f":"IF('Project Scope'!$C98=\"\",\"\",IF(OR($K98<=0,'Project Information'!$D$44=\"\"),0,-1*MAX(0,IF(AND($I98>0,$J98>0),($I98*$J98)/1000,($G98*$H98)/1000))*$BT98*$L98*$BS98*VLOOKUP('Project Information'!$D$44,'CBAT Lookups'!$A$23:$H$30,2)))","v":""},{"$f":"IF('Project Scope'!$C98=\"\",\"\",IF(OR($K98<=0,'Project Information'!$D$44=\"\"),0,-1*MAX(0,IF(AND($I98>0,$J98>0),($I98*$J98)/1000,($G98*$H98)/1000))*$BT98*$L98*$BS98*VLOOKUP('Project Information'!$D$44,'CBAT Lookups'!$A$23:$H$30,3)))","v":""},{"$f":"IF('Project Scope'!$C98=\"\",\"\",IF(OR($K98<=0,'Project Information'!$D$44=\"\"),0,-1*MAX(0,IF(AND($I98>0,$J98>0),($I98*$J98)/1000,($G98*$H98)/1000))*$BT98*$L98*$BS98*VLOOKUP('Project Information'!$D$44,'CBAT Lookups'!$A$23:$H$30,4)))","v":""},{"$f":"IF('Project Scope'!$C98=\"\",\"\",IF(OR($K98<=0,'Project Information'!$D$44=\"\"),0,-1*MAX(0,IF(AND($I98>0,$J98>0),($I98*$J98)/1000,($G98*$H98)/1000))*$BT98*$L98*$BS98*VLOOKUP('Project Information'!$D$44,'CBAT Lookups'!$A$23:$H$30,5)))","v":""},{"$f":"IF('Project Scope'!$C98=\"\",\"\",IF(OR($K98<=0,'Project Information'!$D$44=\"\"),0,-1*MAX(0,IF(AND($I98>0,$J98>0),($I98*$J98)/1000,($G98*$H98)/1000))*$BT98*$L98*$BS98*VLOOKUP('Project Information'!$D$44,'CBAT Lookups'!$A$23:$H$30,6)))","v":""},{"$f":"IF('Project Scope'!$C98=\"\",\"\",IF(OR($K98<=0,'Project Information'!$D$44=\"\"),0,-1*MAX(0,IF(AND($I98>0,$J98>0),($I98*$J98)/1000,($G98*$H98)/1000))*$BT98*$L98*$BS98*VLOOKUP('Project Information'!$D$44,'CBAT Lookups'!$A$23:$H$30,7)))","v":""},{"$f":"IF('Project Scope'!$C98=\"\",\"\",IF(OR($K98<=0,'Project Information'!$D$44=\"\"),0,-1*MAX(0,IF(AND($I98>0,$J98>0),($I98*$J98)/1000,($G98*$H98)/1000))*$BT98*$L98*$BS98*VLOOKUP('Project Information'!$D$44,'CBAT Lookups'!$A$23:$H$30,8)))","v":""},null,{"$f":"IF('Project Scope'!$C98=\"\",\"\",VLOOKUP($F98,'CBAT Lookups'!$B$17:$K$19,4))","v":""},{"$f":"IF('Project Scope'!$C98=\"\",\"\",VLOOKUP($F98,'CBAT Lookups'!$B$17:$K$19,5))","v":""},{"$f":"IF('Project Scope'!$C98=\"\",\"\",VLOOKUP($F98,'CBAT Lookups'!$B$17:$K$19,6))","v":""},{"$f":"IF('Project Scope'!$C98=\"\",\"\",VLOOKUP($F98,'CBAT Lookups'!$B$17:$K$19,7))","v":""},{"$f":"IF('Project Scope'!$C98=\"\",\"\",IF(SUMPRODUCT($BM98:$BP98,$CL98:$CO98)=0,0,BM98*CL98/SUMPRODUCT($BM98:$BP98,$CL98:$CO98)))","v":""},{"$f":"IF('Project Scope'!$C98=\"\",\"\",IF(SUMPRODUCT($BM98:$BP98,$CL98:$CO98)=0,0,BN98*CM98/SUMPRODUCT($BM98:$BP98,$CL98:$CO98)))","v":""},{"$f":"IF('Project Scope'!$C98=\"\",\"\",IF(SUMPRODUCT($BM98:$BP98,$CL98:$CO98)=0,0,BO98*CN98/SUMPRODUCT($BM98:$BP98,$CL98:$CO98)))","v":""},{"$f":"IF('Project Scope'!$C98=\"\",\"\",IF(SUMPRODUCT($BM98:$BP98,$CL98:$CO98)=0,0,BP98*CO98/SUMPRODUCT($BM98:$BP98,$CL98:$CO98)))","v":""},{"$f":"IF('Project Scope'!$C98=\"\",\"\",Benefits($BZ98,$CB98,$CC98,$CE98,$CF98,$CG98,$CH98,$CI98,$CJ98,$CK98,$BJ98,$CP98,$CQ98,$CR98,$CS98,$BU98,$BV98,$BW98,$BX98,$BY98,$E98))","v":""},"","","","","","","","",null,{"$f":"IF('Project Scope'!$C98=\"\",\"\",SUM('Project Scope'!$BB98,'Project Scope'!$BC98))","v":""},{"$f":"IF('Project Scope'!$C98=\"\",\"\",SUM('Project Scope'!$BH98, 'Project Scope'!$AZ98,(IF(ISNUMBER('Project Scope'!$BA98),'Project Scope'!$BA98,0)*'Project Information'!$D$12)))","v":""},null,null,{"$f":"IF('Project Scope'!$C98=\"\",\"\",IF($J98<=0,0,(SUMPRODUCT($AV98:$BC98,--($AV98:$BC98>0))+$BE98)*$DK98/((-SUMPRODUCT($AV98:$BC98,--($AV98:$BC98<0))+$BG98+$BH98+$BI98)*$DK98)))","v":""},{"$f":"IF('Project Scope'!$C98=\"\",\"\",IF($K98<=0,0,(SUMPRODUCT($CT98:$DA98,--($CT98:$DA98>0))+$DC98)*$DK98/((-SUMPRODUCT($CT98:$DA98,--($CT98:$DA98<0))+$DE98+$DF98+$DG98)*$DK98)))","v":""},{"$f":"IF('Project Scope'!$C98=\"\",\"\",IF(AND($J98<=0,$K98<=0),0,(SUMPRODUCT($AV98:$BC98,--($AV98:$BC98>0))+$BE98+SUMPRODUCT($CT98:$DA98,--($CT98:$DA98>0))+$DC98)*$DK98/((-SUMPRODUCT($AV98:$BC98,--($AV98:$BC98<0))+$BG98+$BH98+$BI98-SUMPRODUCT($CT98:$DA98,--($CT98:$DA98<0))+$DE98+$DF98+$DG98)*$DK98)))","v":""},{"$f":"IF('Project Scope'!$C98=\"\",\"\",IF(NetOrGross=\"Net\",(1-Z98+AA98),1))","v":""}]
[{"$f":"'Project Scope'!$B99","v":92},{"$f":"IF('Project Scope'!$C99=\"\",\"\",'Project Scope'!$C99)","v":""},{"$f":"IF('Project Scope'!$C99=\"\",\"\",'Project Scope'!$H99)","v":""},{"$f":"IF(ISNUMBER(SEARCH(\"Bay\",'Project Scope'!$Q99)),\"Bay\",IF('Project Scope'!C99=\"\",\"\",'Project Scope'!E99))","v":""},{"$f":"IF('Project Scope'!$C99=\"\",\"\",\"Com\")","v":""},{"$f":"IF('Project Scope'!$C99=\"\",\"\",'Project Scope'!$L99)","v":""},{"$f":"IF('Project Scope'!$C99=\"\",\"\",IF('Project Scope'!$CJ99=\"\",0,'Project Scope'!$CJ99))","v":""},{"$f":"IF('Project Scope'!$C99=\"\",\"\",IF('Project Scope'!$N99=\"\",0,'Project Scope'!$N99))","v":""},{"$f":"IF('Project Scope'!$C99=\"\",\"\",IF('Project Scope'!$CK99=\"\",0,'Project Scope'!$CK99))","v":""},{"$f":"IF('Project Scope'!$C99=\"\",\"\",IF('Project Scope'!$AO99=\"\",0,'Project Scope'!$AO99))","v":""},{"$f":"IF('Project Scope'!$C99=\"\",\"\",IF('Project Scope'!$AX99=\"\",0,'Project Scope'!$AX99))","v":""},{"$f":"IF('Project Scope'!$C99=\"\",\"\",IF('Project Scope'!$M99=\"\",0,'Project Scope'!$M99))","v":""},{"$f":"IF('Project Scope'!$C99=\"\",\"\",IF(COUNTIF('CBAT Lookups'!$B$5:$B$12,\"Fixtures-\"&CBAT!$D99)=1,VLOOKUP(\"Fixtures-\"&CBAT!$D99,'CBAT Lookups'!$B$5:$L$12,11),0))","v":""},{"$f":"IF('Project Scope'!$C99=\"\",\"\",(IF(COUNTIF('CBAT Lookups'!$B$5:$B$12,\"Fixtures-\"&CBAT!$D99)=1,VLOOKUP(\"Fixtures-\"&CBAT!$D99,'CBAT Lookups'!$B$5:$K$12,2),0))*VLOOKUP($F99,'CBAT Lookups'!$B$17:$K$19,2))","v":""},{"$f":"IF('Project Scope'!$C99=\"\",\"\",(IF(COUNTIF('CBAT Lookups'!$B$5:$B$12,\"Fixtures-\"&CBAT!$D99)=1,VLOOKUP(\"Fixtures-\"&CBAT!$D99,'CBAT Lookups'!$B$5:$K$12,3),0))*VLOOKUP($F99,'CBAT Lookups'!$B$17:$K$19,3))","v":""},{"$f":"IF('Project Scope'!$C99=\"\",\"\",(IF(COUNTIF('CBAT Lookups'!$B$5:$B$12,\"Fixtures-\"&CBAT!$D99)=1,VLOOKUP(\"Fixtures-\"&CBAT!$D99,'CBAT Lookups'!$B$5:$K$12,4),0)))","v":""},{"$f":"IF('Project Scope'!$C99=\"\",\"\",(IF(COUNTIF('CBAT Lookups'!$B$5:$B$12,\"Fixtures-\"&CBAT!$D99)=1,VLOOKUP(\"Fixtures-\"&CBAT!$D99,'CBAT Lookups'!$B$5:$K$12,5),0)))","v":""},{"$f":"IF('Project Scope'!$C99=\"\",\"\",(IF(COUNTIF('CBAT Lookups'!$B$5:$B$12,\"Fixtures-\"&CBAT!$D99)=1,VLOOKUP(\"Fixtures-\"&CBAT!$D99,'CBAT Lookups'!$B$5:$K$12,6),0)))","v":""},{"$f":"IF('Project Scope'!$C99=\"\",\"\",IF(COUNTIF('CBAT Lookups'!$B$5:$B$12,\"Fixtures-\"&CBAT!$D99)=1,VLOOKUP(\"Fixtures-\"&CBAT!$D99,'CBAT Lookups'!$B$5:$K$12,7),0))","v":""},{"$f":"IF('Project Scope'!$C99=\"\",\"\",IF(VLOOKUP($F99,'CBAT Lookups'!$B$17:$K$19,8)=\"W\",1,IF(COUNTIF('CBAT Lookups'!$B$5:$B$12,\"Fixtures-\"&CBAT!$D99)=1,VLOOKUP(\"Fixtures-\"&CBAT!$D99,'CBAT Lookups'!$B$5:$K$12,8),0)*VLOOKUP($F99,'CBAT Lookups'!$B$17:$K$19,8)))","v":""},{"$f":"IF('Project Scope'!$C99=\"\",\"\",IF(VLOOKUP($F99,'CBAT Lookups'!$B$17:$K$19,9)=\"W\",1,IF(COUNTIF('CBAT Lookups'!$B$5:$B$12,\"Fixtures-\"&CBAT!$D99)=1,VLOOKUP(\"Fixtures-\"&CBAT!$D99,'CBAT Lookups'!$B$5:$K$12,9),0)*VLOOKUP($F99,'CBAT Lookups'!$B$17:$K$19,9)))","v":""},{"$f":"IF('Project Scope'!$C99=\"\",\"\",IF(COUNTIF('CBAT Lookups'!$B$5:$B$12,\"Fixtures-\"&CBAT!$D99)=1,VLOOKUP(\"Fixtures-\"&CBAT!$D99,'CBAT Lookups'!$B$5:$K$12,10),0)*VLOOKUP($F99,'CBAT Lookups'!$B$17:$K$19,10))","v":""},{"$f":"IF('Project Scope'!$C99=\"\",\"\",IF(COUNTIF('CBAT Lookups'!$B$5:$B$12,\"Fixtures-\"&CBAT!$D99)=1,VLOOKUP(\"Fixtures-\"&CBAT!$D99,'CBAT Lookups'!$B$5:$O$12,12),0))","v":""},{"$f":"IF('Project Scope'!$C99=\"\",\"\",IF(COUNTIF('CBAT Lookups'!$B$5:$B$12,\"Fixtures-\"&CBAT!$D99)=1,VLOOKUP(\"Fixtures-\"&CBAT!$D99,'CBAT Lookups'!$B$5:$O$12,13),0))","v":""},{"$f":"IF('Project Scope'!$C99=\"\",\"\",IF(COUNTIF('CBAT Lookups'!$B$5:$B$12,\"Fixtures-\"&CBAT!$D99)=1,VLOOKUP(\"Fixtures-\"&CBAT!$D99,'CBAT Lookups'!$B$5:$O$12,14),0))","v":""},{"$f":"IF('Project Scope'!$C99=\"\",\"\",'TRM Data'!$U$3)","v":""},{"$f":"IF('Project Scope'!$C99=\"\",\"\",'TRM Data'!$V$3)","v":""},{"$f":"IF('Project Scope'!$C99=\"\",\"\",IF($J99<=0,0,MAX(0,(($G99*$H99/1000)-($I99*$J99/1000))*$L99)*$U99)+($AF99/0.003412))","v":""},{"$f":"IF('Project Scope'!$C99=\"\",\"\",IF($J99<=0,0,MAX(0,(($G99*$H99/1000)-($I99*$J99/1000)))*$T99))","v":""},{"$f":"IF('Project Scope'!$C99=\"\",\"\",IF($J99<=0,0,MAX(0,(($G99*$H99/1000)-($I99*$J99/1000))*$N99)))","v":""},{"$f":"IF('Project Scope'!$C99=\"\",\"\",IF($J99<=0,0,MAX(0,(($G99*$H99/1000)-($I99*$J99/1000))*$O99)*$T99))","v":""},{"$f":"IF('Project Scope'!$C99=\"\",\"\",IF(OR($J99<=0,'Project Information'!$D$44=\"\"),0,-1*MAX(0,(($G99*$H99/1000)-($I99*$J99/1000))*$L99)*$V99*VLOOKUP('Project Information'!$D$44,'CBAT Lookups'!$A$23:$H$30,2)))","v":""},{"$f":"IF('Project Scope'!$C99=\"\",\"\",IF(OR($J99<=0,'Project Information'!$D$44=\"\"),0,-1*MAX(0,(($G99*$H99/1000)-($I99*$J99/1000))*$L99)*$V99*VLOOKUP('Project Information'!$D$44,'CBAT Lookups'!$A$23:$H$30,3)))","v":""},{"$f":"IF('Project Scope'!$C99=\"\",\"\",IF(OR($J99<=0,'Project Information'!$D$44=\"\"),0,-1*MAX(0,(($G99*$H99/1000)-($I99*$J99/1000))*$L99)*$V99*VLOOKUP('Project Information'!$D$44,'CBAT Lookups'!$A$23:$H$30,4)))","v":""},{"$f":"IF('Project Scope'!$C99=\"\",\"\",IF(OR($J99<=0,'Project Information'!$D$44=\"\"),0,-1*MAX(0,(($G99*$H99/1000)-($I99*$J99/1000))*$L99)*$V99*VLOOKUP('Project Information'!$D$44,'CBAT Lookups'!$A$23:$H$30,5)))","v":""},{"$f":"IF('Project Scope'!$C99=\"\",\"\",IF(OR($J99<=0,'Project Information'!$D$44=\"\"),0,-1*MAX(0,(($G99*$H99/1000)-($I99*$J99/1000))*$L99)*$V99*VLOOKUP('Project Information'!$D$44,'CBAT Lookups'!$A$23:$H$30,6)))","v":""},{"$f":"IF('Project Scope'!$C99=\"\",\"\",IF(OR($J99<=0,'Project Information'!$D$44=\"\"),0,-1*MAX(0,(($G99*$H99/1000)-($I99*$J99/1000))*$L99)*$V99*VLOOKUP('Project Information'!$D$44,'CBAT Lookups'!$A$23:$H$30,7)))","v":""},{"$f":"IF('Project Scope'!$C99=\"\",\"\",IF(OR($J99<=0,'Project Information'!$D$44=\"\"),0,-1*MAX(0,(($G99*$H99/1000)-($I99*$J99/1000))*$L99)*$V99*VLOOKUP('Project Information'!$D$44,'CBAT Lookups'!$A$23:$H$30,8)))","v":""},null,{"$f":"IF('Project Scope'!$C99=\"\",\"\",VLOOKUP($F99,'CBAT Lookups'!$B$17:$K$19,4))","v":""},{"$f":"IF('Project Scope'!$C99=\"\",\"\",VLOOKUP($F99,'CBAT Lookups'!$B$17:$K$19,5))","v":""},{"$f":"IF('Project Scope'!$C99=\"\",\"\",VLOOKUP($F99,'CBAT Lookups'!$B$17:$K$19,6))","v":""},{"$f":"IF('Project Scope'!$C99=\"\",\"\",VLOOKUP($F99,'CBAT Lookups'!$B$17:$K$19,7))","v":""},{"$f":"IF('Project Scope'!$C99=\"\",\"\",IF(SUMPRODUCT($P99:$S99,$AN99:$AQ99)=0,0,P99*AN99/SUMPRODUCT($P99:$S99,$AN99:$AQ99)))","v":""},{"$f":"IF('Project Scope'!$C99=\"\",\"\",IF(SUMPRODUCT($P99:$S99,$AN99:$AQ99)=0,0,Q99*AO99/SUMPRODUCT($P99:$S99,$AN99:$AQ99)))","v":""},{"$f":"IF('Project Scope'!$C99=\"\",\"\",IF(SUMPRODUCT($P99:$S99,$AN99:$AQ99)=0,0,R99*AP99/SUMPRODUCT($P99:$S99,$AN99:$AQ99)))","v":""},{"$f":"IF('Project Scope'!$C99=\"\",\"\",IF(SUMPRODUCT($P99:$S99,$AN99:$AQ99)=0,0,S99*AQ99/SUMPRODUCT($P99:$S99,$AN99:$AQ99)))","v":""},{"$f":"IF('Project Scope'!$C99=\"\",\"\",Benefits($AB99,$AD99,$AE99,$AG99,$AH99,$AI99,$AJ99,$AK99,$AL99,$AM99,$M99,$AR99,$AS99,$AT99,$AU99,$W99,$X99,$Y99,$Z99,$AA99,$E99))","v":""},"","","","","","","","",null,{"$f":"IF('Project Scope'!$C99=\"\",\"\",SUM('Project Scope'!$AT99,'Project Scope'!$AU99))","v":""},{"$f":"IF('Project Scope'!$C99=\"\",\"\",SUM('Project Scope'!$BG99, 'Project Scope'!$AR99,(IF(ISNUMBER('Project Scope'!$AS99),'Project Scope'!$AS99,0)*'Project Information'!$D$12)))","v":""},null,null,{"$f":"IF('Project Scope'!$C99=\"\",\"\",IF(COUNTIF('CBAT Lookups'!$B$5:$B$12,\"Controls-\"&CBAT!$D99)=1,VLOOKUP(\"Controls-\"&CBAT!$D99,'CBAT Lookups'!$B$5:$L$12,11),0))","v":""},{"$f":"IF('Project Scope'!$C99=\"\",\"\",IF(COUNTIF('CBAT Lookups'!$B$5:$B$12,\"Controls-\"&CBAT!$D99)=1,VLOOKUP(\"Controls-\"&CBAT!$D99,'CBAT Lookups'!$B$5:$K$12,2),0)*VLOOKUP($F99,'CBAT Lookups'!$B$17:$K$19,2))","v":""},{"$f":"IF('Project Scope'!$C99=\"\",\"\",IF(COUNTIF('CBAT Lookups'!$B$5:$B$12,\"Controls-\"&CBAT!$D99)=1,VLOOKUP(\"Controls-\"&CBAT!$D99,'CBAT Lookups'!$B$5:$K$12,3),0)*VLOOKUP($F99,'CBAT Lookups'!$B$17:$K$19,3))","v":""},{"$f":"IF('Project Scope'!$C99=\"\",\"\",IF(COUNTIF('CBAT Lookups'!$B$5:$B$12,\"Controls-\"&CBAT!$D99)=1,VLOOKUP(\"Controls-\"&CBAT!$D99,'CBAT Lookups'!$B$5:$K$12,4),0))","v":""},{"$f":"IF('Project Scope'!$C99=\"\",\"\",IF(COUNTIF('CBAT Lookups'!$B$5:$B$12,\"Controls-\"&CBAT!$D99)=1,VLOOKUP(\"Controls-\"&CBAT!$D99,'CBAT Lookups'!$B$5:$K$12,5),0))","v":""},{"$f":"IF('Project Scope'!$C99=\"\",\"\",IF(COUNTIF('CBAT Lookups'!$B$5:$B$12,\"Controls-\"&CBAT!$D99)=1,VLOOKUP(\"Controls-\"&CBAT!$D99,'CBAT Lookups'!$B$5:$K$12,6),0))","v":""},{"$f":"IF('Project Scope'!$C99=\"\",\"\",IF(COUNTIF('CBAT Lookups'!$B$5:$B$12,\"Controls-\"&CBAT!$D99)=1,VLOOKUP(\"Controls-\"&CBAT!$D99,'CBAT Lookups'!$B$5:$K$12,7),0))","v":""},{"$f":"IF('Project Scope'!$C99=\"\",\"\",IF(VLOOKUP($F99,'CBAT Lookups'!$B$17:$K$19,8)=\"W\",1,IF(COUNTIF('CBAT Lookups'!$B$5:$B$12,\"Controls-\"&CBAT!$D99)=1,VLOOKUP(\"Controls-\"&CBAT!$D99,'CBAT Lookups'!$B$5:$K$12,8),0)*VLOOKUP($F99,'CBAT Lookups'!$B$17:$K$19,8)))","v":""},{"$f":"IF('Project Scope'!$C99=\"\",\"\",IF(VLOOKUP($F99,'CBAT Lookups'!$B$17:$K$19,9)=\"W\",1,IF(COUNTIF('CBAT Lookups'!$B$5:$B$12,\"Controls-\"&CBAT!$D99)=1,VLOOKUP(\"Controls-\"&CBAT!$D99,'CBAT Lookups'!$B$5:$K$12,9),0)*VLOOKUP($F99,'CBAT Lookups'!$B$17:$K$19,9)))","v":""},{"$f":"IF('Project Scope'!$C99=\"\",\"\",IF(COUNTIF('CBAT Lookups'!$B$5:$B$12,\"Controls-\"&CBAT!$D99)=1,VLOOKUP(\"Controls-\"&CBAT!$D99,'CBAT Lookups'!$B$5:$K$12,10),0)*VLOOKUP($F99,'CBAT Lookups'!$B$17:$K$19,10))","v":""},{"$f":"IF('Project Scope'!$C99=\"\",\"\",VLOOKUP($C99,'CBAT Lookups'!$A$33:$B$57,2))","v":""},{"$f":"IF('Project Scope'!$C99=\"\",\"\",IF(COUNTIF('CBAT Lookups'!$B$5:$B$12,\"Controls-\"&CBAT!$D99)=1,VLOOKUP(\"Controls-\"&CBAT!$D99,'CBAT Lookups'!$B$5:$O$12,12),0))","v":""},{"$f":"IF('Project Scope'!$C99=\"\",\"\",IF(COUNTIF('CBAT Lookups'!$B$5:$B$12,\"Controls-\"&CBAT!$D99)=1,VLOOKUP(\"Controls-\"&CBAT!$D99,'CBAT Lookups'!$B$5:$O$12,13),0))","v":""},{"$f":"IF('Project Scope'!$C99=\"\",\"\",IF(COUNTIF('CBAT Lookups'!$B$5:$B$12,\"Controls-\"&CBAT!$D99)=1,VLOOKUP(\"Controls-\"&CBAT!$D99,'CBAT Lookups'!$B$5:$O$12,14),0))","v":""},{"$f":"IF('Project Scope'!$C99=\"\",\"\",'TRM Data'!$U$3)","v":""},{"$f":"IF('Project Scope'!$C99=\"\",\"\",'TRM Data'!$V$3)","v":""},{"$f":"IF('Project Scope'!$C99=\"\",\"\",IF($K99<=0,0,MAX(0,(IF(AND($I99>0,$J99>0),($I99*$J99)/1000,($G99*$H99)/1000)*$L99))*$BT99*$BR99)+($CD99/0.003412))","v":""},{"$f":"IF('Project Scope'!$C99=\"\",\"\",IF($K99<=0,0,MAX(0,IF(AND($I99>0,$J99>0),($I99*$J99)/1000,($G99*$H99)/1000))*$BQ99))","v":""},{"$f":"IF('Project Scope'!$C99=\"\",\"\",IF($K99<=0,0,MAX(0,IF(AND($I99>0,$J99>0),($I99*$J99)/1000,($G99*$H99)/1000))*$BK99))","v":""},{"$f":"IF('Project Scope'!$C99=\"\",\"\",IF($K99<=0,0,MAX(0,IF(AND($I99>0,$J99>0),($I99*$J99)/1000,($G99*$H99)/1000))*$BL99*$BQ99))","v":""},{"$f":"IF('Project Scope'!$C99=\"\",\"\",IF(OR($K99<=0,'Project Information'!$D$44=\"\"),0,-1*MAX(0,IF(AND($I99>0,$J99>0),($I99*$J99)/1000,($G99*$H99)/1000))*$BT99*$L99*$BS99*VLOOKUP('Project Information'!$D$44,'CBAT Lookups'!$A$23:$H$30,2)))","v":""},{"$f":"IF('Project Scope'!$C99=\"\",\"\",IF(OR($K99<=0,'Project Information'!$D$44=\"\"),0,-1*MAX(0,IF(AND($I99>0,$J99>0),($I99*$J99)/1000,($G99*$H99)/1000))*$BT99*$L99*$BS99*VLOOKUP('Project Information'!$D$44,'CBAT Lookups'!$A$23:$H$30,3)))","v":""},{"$f":"IF('Project Scope'!$C99=\"\",\"\",IF(OR($K99<=0,'Project Information'!$D$44=\"\"),0,-1*MAX(0,IF(AND($I99>0,$J99>0),($I99*$J99)/1000,($G99*$H99)/1000))*$BT99*$L99*$BS99*VLOOKUP('Project Information'!$D$44,'CBAT Lookups'!$A$23:$H$30,4)))","v":""},{"$f":"IF('Project Scope'!$C99=\"\",\"\",IF(OR($K99<=0,'Project Information'!$D$44=\"\"),0,-1*MAX(0,IF(AND($I99>0,$J99>0),($I99*$J99)/1000,($G99*$H99)/1000))*$BT99*$L99*$BS99*VLOOKUP('Project Information'!$D$44,'CBAT Lookups'!$A$23:$H$30,5)))","v":""},{"$f":"IF('Project Scope'!$C99=\"\",\"\",IF(OR($K99<=0,'Project Information'!$D$44=\"\"),0,-1*MAX(0,IF(AND($I99>0,$J99>0),($I99*$J99)/1000,($G99*$H99)/1000))*$BT99*$L99*$BS99*VLOOKUP('Project Information'!$D$44,'CBAT Lookups'!$A$23:$H$30,6)))","v":""},{"$f":"IF('Project Scope'!$C99=\"\",\"\",IF(OR($K99<=0,'Project Information'!$D$44=\"\"),0,-1*MAX(0,IF(AND($I99>0,$J99>0),($I99*$J99)/1000,($G99*$H99)/1000))*$BT99*$L99*$BS99*VLOOKUP('Project Information'!$D$44,'CBAT Lookups'!$A$23:$H$30,7)))","v":""},{"$f":"IF('Project Scope'!$C99=\"\",\"\",IF(OR($K99<=0,'Project Information'!$D$44=\"\"),0,-1*MAX(0,IF(AND($I99>0,$J99>0),($I99*$J99)/1000,($G99*$H99)/1000))*$BT99*$L99*$BS99*VLOOKUP('Project Information'!$D$44,'CBAT Lookups'!$A$23:$H$30,8)))","v":""},null,{"$f":"IF('Project Scope'!$C99=\"\",\"\",VLOOKUP($F99,'CBAT Lookups'!$B$17:$K$19,4))","v":""},{"$f":"IF('Project Scope'!$C99=\"\",\"\",VLOOKUP($F99,'CBAT Lookups'!$B$17:$K$19,5))","v":""},{"$f":"IF('Project Scope'!$C99=\"\",\"\",VLOOKUP($F99,'CBAT Lookups'!$B$17:$K$19,6))","v":""},{"$f":"IF('Project Scope'!$C99=\"\",\"\",VLOOKUP($F99,'CBAT Lookups'!$B$17:$K$19,7))","v":""},{"$f":"IF('Project Scope'!$C99=\"\",\"\",IF(SUMPRODUCT($BM99:$BP99,$CL99:$CO99)=0,0,BM99*CL99/SUMPRODUCT($BM99:$BP99,$CL99:$CO99)))","v":""},{"$f":"IF('Project Scope'!$C99=\"\",\"\",IF(SUMPRODUCT($BM99:$BP99,$CL99:$CO99)=0,0,BN99*CM99/SUMPRODUCT($BM99:$BP99,$CL99:$CO99)))","v":""},{"$f":"IF('Project Scope'!$C99=\"\",\"\",IF(SUMPRODUCT($BM99:$BP99,$CL99:$CO99)=0,0,BO99*CN99/SUMPRODUCT($BM99:$BP99,$CL99:$CO99)))","v":""},{"$f":"IF('Project Scope'!$C99=\"\",\"\",IF(SUMPRODUCT($BM99:$BP99,$CL99:$CO99)=0,0,BP99*CO99/SUMPRODUCT($BM99:$BP99,$CL99:$CO99)))","v":""},{"$f":"IF('Project Scope'!$C99=\"\",\"\",Benefits($BZ99,$CB99,$CC99,$CE99,$CF99,$CG99,$CH99,$CI99,$CJ99,$CK99,$BJ99,$CP99,$CQ99,$CR99,$CS99,$BU99,$BV99,$BW99,$BX99,$BY99,$E99))","v":""},"","","","","","","","",null,{"$f":"IF('Project Scope'!$C99=\"\",\"\",SUM('Project Scope'!$BB99,'Project Scope'!$BC99))","v":""},{"$f":"IF('Project Scope'!$C99=\"\",\"\",SUM('Project Scope'!$BH99, 'Project Scope'!$AZ99,(IF(ISNUMBER('Project Scope'!$BA99),'Project Scope'!$BA99,0)*'Project Information'!$D$12)))","v":""},null,null,{"$f":"IF('Project Scope'!$C99=\"\",\"\",IF($J99<=0,0,(SUMPRODUCT($AV99:$BC99,--($AV99:$BC99>0))+$BE99)*$DK99/((-SUMPRODUCT($AV99:$BC99,--($AV99:$BC99<0))+$BG99+$BH99+$BI99)*$DK99)))","v":""},{"$f":"IF('Project Scope'!$C99=\"\",\"\",IF($K99<=0,0,(SUMPRODUCT($CT99:$DA99,--($CT99:$DA99>0))+$DC99)*$DK99/((-SUMPRODUCT($CT99:$DA99,--($CT99:$DA99<0))+$DE99+$DF99+$DG99)*$DK99)))","v":""},{"$f":"IF('Project Scope'!$C99=\"\",\"\",IF(AND($J99<=0,$K99<=0),0,(SUMPRODUCT($AV99:$BC99,--($AV99:$BC99>0))+$BE99+SUMPRODUCT($CT99:$DA99,--($CT99:$DA99>0))+$DC99)*$DK99/((-SUMPRODUCT($AV99:$BC99,--($AV99:$BC99<0))+$BG99+$BH99+$BI99-SUMPRODUCT($CT99:$DA99,--($CT99:$DA99<0))+$DE99+$DF99+$DG99)*$DK99)))","v":""},{"$f":"IF('Project Scope'!$C99=\"\",\"\",IF(NetOrGross=\"Net\",(1-Z99+AA99),1))","v":""}]
[{"$f":"'Project Scope'!$B100","v":93},{"$f":"IF('Project Scope'!$C100=\"\",\"\",'Project Scope'!$C100)","v":""},{"$f":"IF('Project Scope'!$C100=\"\",\"\",'Project Scope'!$H100)","v":""},{"$f":"IF(ISNUMBER(SEARCH(\"Bay\",'Project Scope'!$Q100)),\"Bay\",IF('Project Scope'!C100=\"\",\"\",'Project Scope'!E100))","v":""},{"$f":"IF('Project Scope'!$C100=\"\",\"\",\"Com\")","v":""},{"$f":"IF('Project Scope'!$C100=\"\",\"\",'Project Scope'!$L100)","v":""},{"$f":"IF('Project Scope'!$C100=\"\",\"\",IF('Project Scope'!$CJ100=\"\",0,'Project Scope'!$CJ100))","v":""},{"$f":"IF('Project Scope'!$C100=\"\",\"\",IF('Project Scope'!$N100=\"\",0,'Project Scope'!$N100))","v":""},{"$f":"IF('Project Scope'!$C100=\"\",\"\",IF('Project Scope'!$CK100=\"\",0,'Project Scope'!$CK100))","v":""},{"$f":"IF('Project Scope'!$C100=\"\",\"\",IF('Project Scope'!$AO100=\"\",0,'Project Scope'!$AO100))","v":""},{"$f":"IF('Project Scope'!$C100=\"\",\"\",IF('Project Scope'!$AX100=\"\",0,'Project Scope'!$AX100))","v":""},{"$f":"IF('Project Scope'!$C100=\"\",\"\",IF('Project Scope'!$M100=\"\",0,'Project Scope'!$M100))","v":""},{"$f":"IF('Project Scope'!$C100=\"\",\"\",IF(COUNTIF('CBAT Lookups'!$B$5:$B$12,\"Fixtures-\"&CBAT!$D100)=1,VLOOKUP(\"Fixtures-\"&CBAT!$D100,'CBAT Lookups'!$B$5:$L$12,11),0))","v":""},{"$f":"IF('Project Scope'!$C100=\"\",\"\",(IF(COUNTIF('CBAT Lookups'!$B$5:$B$12,\"Fixtures-\"&CBAT!$D100)=1,VLOOKUP(\"Fixtures-\"&CBAT!$D100,'CBAT Lookups'!$B$5:$K$12,2),0))*VLOOKUP($F100,'CBAT Lookups'!$B$17:$K$19,2))","v":""},{"$f":"IF('Project Scope'!$C100=\"\",\"\",(IF(COUNTIF('CBAT Lookups'!$B$5:$B$12,\"Fixtures-\"&CBAT!$D100)=1,VLOOKUP(\"Fixtures-\"&CBAT!$D100,'CBAT Lookups'!$B$5:$K$12,3),0))*VLOOKUP($F100,'CBAT Lookups'!$B$17:$K$19,3))","v":""},{"$f":"IF('Project Scope'!$C100=\"\",\"\",(IF(COUNTIF('CBAT Lookups'!$B$5:$B$12,\"Fixtures-\"&CBAT!$D100)=1,VLOOKUP(\"Fixtures-\"&CBAT!$D100,'CBAT Lookups'!$B$5:$K$12,4),0)))","v":""},{"$f":"IF('Project Scope'!$C100=\"\",\"\",(IF(COUNTIF('CBAT Lookups'!$B$5:$B$12,\"Fixtures-\"&CBAT!$D100)=1,VLOOKUP(\"Fixtures-\"&CBAT!$D100,'CBAT Lookups'!$B$5:$K$12,5),0)))","v":""},{"$f":"IF('Project Scope'!$C100=\"\",\"\",(IF(COUNTIF('CBAT Lookups'!$B$5:$B$12,\"Fixtures-\"&CBAT!$D100)=1,VLOOKUP(\"Fixtures-\"&CBAT!$D100,'CBAT Lookups'!$B$5:$K$12,6),0)))","v":""},{"$f":"IF('Project Scope'!$C100=\"\",\"\",IF(COUNTIF('CBAT Lookups'!$B$5:$B$12,\"Fixtures-\"&CBAT!$D100)=1,VLOOKUP(\"Fixtures-\"&CBAT!$D100,'CBAT Lookups'!$B$5:$K$12,7),0))","v":""},{"$f":"IF('Project Scope'!$C100=\"\",\"\",IF(VLOOKUP($F100,'CBAT Lookups'!$B$17:$K$19,8)=\"W\",1,IF(COUNTIF('CBAT Lookups'!$B$5:$B$12,\"Fixtures-\"&CBAT!$D100)=1,VLOOKUP(\"Fixtures-\"&CBAT!$D100,'CBAT Lookups'!$B$5:$K$12,8),0)*VLOOKUP($F100,'CBAT Lookups'!$B$17:$K$19,8)))","v":""},{"$f":"IF('Project Scope'!$C100=\"\",\"\",IF(VLOOKUP($F100,'CBAT Lookups'!$B$17:$K$19,9)=\"W\",1,IF(COUNTIF('CBAT Lookups'!$B$5:$B$12,\"Fixtures-\"&CBAT!$D100)=1,VLOOKUP(\"Fixtures-\"&CBAT!$D100,'CBAT Lookups'!$B$5:$K$12,9),0)*VLOOKUP($F100,'CBAT Lookups'!$B$17:$K$19,9)))","v":""},{"$f":"IF('Project Scope'!$C100=\"\",\"\",IF(COUNTIF('CBAT Lookups'!$B$5:$B$12,\"Fixtures-\"&CBAT!$D100)=1,VLOOKUP(\"Fixtures-\"&CBAT!$D100,'CBAT Lookups'!$B$5:$K$12,10),0)*VLOOKUP($F100,'CBAT Lookups'!$B$17:$K$19,10))","v":""},{"$f":"IF('Project Scope'!$C100=\"\",\"\",IF(COUNTIF('CBAT Lookups'!$B$5:$B$12,\"Fixtures-\"&CBAT!$D100)=1,VLOOKUP(\"Fixtures-\"&CBAT!$D100,'CBAT Lookups'!$B$5:$O$12,12),0))","v":""},{"$f":"IF('Project Scope'!$C100=\"\",\"\",IF(COUNTIF('CBAT Lookups'!$B$5:$B$12,\"Fixtures-\"&CBAT!$D100)=1,VLOOKUP(\"Fixtures-\"&CBAT!$D100,'CBAT Lookups'!$B$5:$O$12,13),0))","v":""},{"$f":"IF('Project Scope'!$C100=\"\",\"\",IF(COUNTIF('CBAT Lookups'!$B$5:$B$12,\"Fixtures-\"&CBAT!$D100)=1,VLOOKUP(\"Fixtures-\"&CBAT!$D100,'CBAT Lookups'!$B$5:$O$12,14),0))","v":""},{"$f":"IF('Project Scope'!$C100=\"\",\"\",'TRM Data'!$U$3)","v":""},{"$f":"IF('Project Scope'!$C100=\"\",\"\",'TRM Data'!$V$3)","v":""},{"$f":"IF('Project Scope'!$C100=\"\",\"\",IF($J100<=0,0,MAX(0,(($G100*$H100/1000)-($I100*$J100/1000))*$L100)*$U100)+($AF100/0.003412))","v":""},{"$f":"IF('Project Scope'!$C100=\"\",\"\",IF($J100<=0,0,MAX(0,(($G100*$H100/1000)-($I100*$J100/1000)))*$T100))","v":""},{"$f":"IF('Project Scope'!$C100=\"\",\"\",IF($J100<=0,0,MAX(0,(($G100*$H100/1000)-($I100*$J100/1000))*$N100)))","v":""},{"$f":"IF('Project Scope'!$C100=\"\",\"\",IF($J100<=0,0,MAX(0,(($G100*$H100/1000)-($I100*$J100/1000))*$O100)*$T100))","v":""},{"$f":"IF('Project Scope'!$C100=\"\",\"\",IF(OR($J100<=0,'Project Information'!$D$44=\"\"),0,-1*MAX(0,(($G100*$H100/1000)-($I100*$J100/1000))*$L100)*$V100*VLOOKUP('Project Information'!$D$44,'CBAT Lookups'!$A$23:$H$30,2)))","v":""},{"$f":"IF('Project Scope'!$C100=\"\",\"\",IF(OR($J100<=0,'Project Information'!$D$44=\"\"),0,-1*MAX(0,(($G100*$H100/1000)-($I100*$J100/1000))*$L100)*$V100*VLOOKUP('Project Information'!$D$44,'CBAT Lookups'!$A$23:$H$30,3)))","v":""},{"$f":"IF('Project Scope'!$C100=\"\",\"\",IF(OR($J100<=0,'Project Information'!$D$44=\"\"),0,-1*MAX(0,(($G100*$H100/1000)-($I100*$J100/1000))*$L100)*$V100*VLOOKUP('Project Information'!$D$44,'CBAT Lookups'!$A$23:$H$30,4)))","v":""},{"$f":"IF('Project Scope'!$C100=\"\",\"\",IF(OR($J100<=0,'Project Information'!$D$44=\"\"),0,-1*MAX(0,(($G100*$H100/1000)-($I100*$J100/1000))*$L100)*$V100*VLOOKUP('Project Information'!$D$44,'CBAT Lookups'!$A$23:$H$30,5)))","v":""},{"$f":"IF('Project Scope'!$C100=\"\",\"\",IF(OR($J100<=0,'Project Information'!$D$44=\"\"),0,-1*MAX(0,(($G100*$H100/1000)-($I100*$J100/1000))*$L100)*$V100*VLOOKUP('Project Information'!$D$44,'CBAT Lookups'!$A$23:$H$30,6)))","v":""},{"$f":"IF('Project Scope'!$C100=\"\",\"\",IF(OR($J100<=0,'Project Information'!$D$44=\"\"),0,-1*MAX(0,(($G100*$H100/1000)-($I100*$J100/1000))*$L100)*$V100*VLOOKUP('Project Information'!$D$44,'CBAT Lookups'!$A$23:$H$30,7)))","v":""},{"$f":"IF('Project Scope'!$C100=\"\",\"\",IF(OR($J100<=0,'Project Information'!$D$44=\"\"),0,-1*MAX(0,(($G100*$H100/1000)-($I100*$J100/1000))*$L100)*$V100*VLOOKUP('Project Information'!$D$44,'CBAT Lookups'!$A$23:$H$30,8)))","v":""},null,{"$f":"IF('Project Scope'!$C100=\"\",\"\",VLOOKUP($F100,'CBAT Lookups'!$B$17:$K$19,4))","v":""},{"$f":"IF('Project Scope'!$C100=\"\",\"\",VLOOKUP($F100,'CBAT Lookups'!$B$17:$K$19,5))","v":""},{"$f":"IF('Project Scope'!$C100=\"\",\"\",VLOOKUP($F100,'CBAT Lookups'!$B$17:$K$19,6))","v":""},{"$f":"IF('Project Scope'!$C100=\"\",\"\",VLOOKUP($F100,'CBAT Lookups'!$B$17:$K$19,7))","v":""},{"$f":"IF('Project Scope'!$C100=\"\",\"\",IF(SUMPRODUCT($P100:$S100,$AN100:$AQ100)=0,0,P100*AN100/SUMPRODUCT($P100:$S100,$AN100:$AQ100)))","v":""},{"$f":"IF('Project Scope'!$C100=\"\",\"\",IF(SUMPRODUCT($P100:$S100,$AN100:$AQ100)=0,0,Q100*AO100/SUMPRODUCT($P100:$S100,$AN100:$AQ100)))","v":""},{"$f":"IF('Project Scope'!$C100=\"\",\"\",IF(SUMPRODUCT($P100:$S100,$AN100:$AQ100)=0,0,R100*AP100/SUMPRODUCT($P100:$S100,$AN100:$AQ100)))","v":""},{"$f":"IF('Project Scope'!$C100=\"\",\"\",IF(SUMPRODUCT($P100:$S100,$AN100:$AQ100)=0,0,S100*AQ100/SUMPRODUCT($P100:$S100,$AN100:$AQ100)))","v":""},{"$f":"IF('Project Scope'!$C100=\"\",\"\",Benefits($AB100,$AD100,$AE100,$AG100,$AH100,$AI100,$AJ100,$AK100,$AL100,$AM100,$M100,$AR100,$AS100,$AT100,$AU100,$W100,$X100,$Y100,$Z100,$AA100,$E100))","v":""},"","","","","","","","",null,{"$f":"IF('Project Scope'!$C100=\"\",\"\",SUM('Project Scope'!$AT100,'Project Scope'!$AU100))","v":""},{"$f":"IF('Project Scope'!$C100=\"\",\"\",SUM('Project Scope'!$BG100, 'Project Scope'!$AR100,(IF(ISNUMBER('Project Scope'!$AS100),'Project Scope'!$AS100,0)*'Project Information'!$D$12)))","v":""},null,null,{"$f":"IF('Project Scope'!$C100=\"\",\"\",IF(COUNTIF('CBAT Lookups'!$B$5:$B$12,\"Controls-\"&CBAT!$D100)=1,VLOOKUP(\"Controls-\"&CBAT!$D100,'CBAT Lookups'!$B$5:$L$12,11),0))","v":""},{"$f":"IF('Project Scope'!$C100=\"\",\"\",IF(COUNTIF('CBAT Lookups'!$B$5:$B$12,\"Controls-\"&CBAT!$D100)=1,VLOOKUP(\"Controls-\"&CBAT!$D100,'CBAT Lookups'!$B$5:$K$12,2),0)*VLOOKUP($F100,'CBAT Lookups'!$B$17:$K$19,2))","v":""},{"$f":"IF('Project Scope'!$C100=\"\",\"\",IF(COUNTIF('CBAT Lookups'!$B$5:$B$12,\"Controls-\"&CBAT!$D100)=1,VLOOKUP(\"Controls-\"&CBAT!$D100,'CBAT Lookups'!$B$5:$K$12,3),0)*VLOOKUP($F100,'CBAT Lookups'!$B$17:$K$19,3))","v":""},{"$f":"IF('Project Scope'!$C100=\"\",\"\",IF(COUNTIF('CBAT Lookups'!$B$5:$B$12,\"Controls-\"&CBAT!$D100)=1,VLOOKUP(\"Controls-\"&CBAT!$D100,'CBAT Lookups'!$B$5:$K$12,4),0))","v":""},{"$f":"IF('Project Scope'!$C100=\"\",\"\",IF(COUNTIF('CBAT Lookups'!$B$5:$B$12,\"Controls-\"&CBAT!$D100)=1,VLOOKUP(\"Controls-\"&CBAT!$D100,'CBAT Lookups'!$B$5:$K$12,5),0))","v":""},{"$f":"IF('Project Scope'!$C100=\"\",\"\",IF(COUNTIF('CBAT Lookups'!$B$5:$B$12,\"Controls-\"&CBAT!$D100)=1,VLOOKUP(\"Controls-\"&CBAT!$D100,'CBAT Lookups'!$B$5:$K$12,6),0))","v":""},{"$f":"IF('Project Scope'!$C100=\"\",\"\",IF(COUNTIF('CBAT Lookups'!$B$5:$B$12,\"Controls-\"&CBAT!$D100)=1,VLOOKUP(\"Controls-\"&CBAT!$D100,'CBAT Lookups'!$B$5:$K$12,7),0))","v":""},{"$f":"IF('Project Scope'!$C100=\"\",\"\",IF(VLOOKUP($F100,'CBAT Lookups'!$B$17:$K$19,8)=\"W\",1,IF(COUNTIF('CBAT Lookups'!$B$5:$B$12,\"Controls-\"&CBAT!$D100)=1,VLOOKUP(\"Controls-\"&CBAT!$D100,'CBAT Lookups'!$B$5:$K$12,8),0)*VLOOKUP($F100,'CBAT Lookups'!$B$17:$K$19,8)))","v":""},{"$f":"IF('Project Scope'!$C100=\"\",\"\",IF(VLOOKUP($F100,'CBAT Lookups'!$B$17:$K$19,9)=\"W\",1,IF(COUNTIF('CBAT Lookups'!$B$5:$B$12,\"Controls-\"&CBAT!$D100)=1,VLOOKUP(\"Controls-\"&CBAT!$D100,'CBAT Lookups'!$B$5:$K$12,9),0)*VLOOKUP($F100,'CBAT Lookups'!$B$17:$K$19,9)))","v":""},{"$f":"IF('Project Scope'!$C100=\"\",\"\",IF(COUNTIF('CBAT Lookups'!$B$5:$B$12,\"Controls-\"&CBAT!$D100)=1,VLOOKUP(\"Controls-\"&CBAT!$D100,'CBAT Lookups'!$B$5:$K$12,10),0)*VLOOKUP($F100,'CBAT Lookups'!$B$17:$K$19,10))","v":""},{"$f":"IF('Project Scope'!$C100=\"\",\"\",VLOOKUP($C100,'CBAT Lookups'!$A$33:$B$57,2))","v":""},{"$f":"IF('Project Scope'!$C100=\"\",\"\",IF(COUNTIF('CBAT Lookups'!$B$5:$B$12,\"Controls-\"&CBAT!$D100)=1,VLOOKUP(\"Controls-\"&CBAT!$D100,'CBAT Lookups'!$B$5:$O$12,12),0))","v":""},{"$f":"IF('Project Scope'!$C100=\"\",\"\",IF(COUNTIF('CBAT Lookups'!$B$5:$B$12,\"Controls-\"&CBAT!$D100)=1,VLOOKUP(\"Controls-\"&CBAT!$D100,'CBAT Lookups'!$B$5:$O$12,13),0))","v":""},{"$f":"IF('Project Scope'!$C100=\"\",\"\",IF(COUNTIF('CBAT Lookups'!$B$5:$B$12,\"Controls-\"&CBAT!$D100)=1,VLOOKUP(\"Controls-\"&CBAT!$D100,'CBAT Lookups'!$B$5:$O$12,14),0))","v":""},{"$f":"IF('Project Scope'!$C100=\"\",\"\",'TRM Data'!$U$3)","v":""},{"$f":"IF('Project Scope'!$C100=\"\",\"\",'TRM Data'!$V$3)","v":""},{"$f":"IF('Project Scope'!$C100=\"\",\"\",IF($K100<=0,0,MAX(0,(IF(AND($I100>0,$J100>0),($I100*$J100)/1000,($G100*$H100)/1000)*$L100))*$BT100*$BR100)+($CD100/0.003412))","v":""},{"$f":"IF('Project Scope'!$C100=\"\",\"\",IF($K100<=0,0,MAX(0,IF(AND($I100>0,$J100>0),($I100*$J100)/1000,($G100*$H100)/1000))*$BQ100))","v":""},{"$f":"IF('Project Scope'!$C100=\"\",\"\",IF($K100<=0,0,MAX(0,IF(AND($I100>0,$J100>0),($I100*$J100)/1000,($G100*$H100)/1000))*$BK100))","v":""},{"$f":"IF('Project Scope'!$C100=\"\",\"\",IF($K100<=0,0,MAX(0,IF(AND($I100>0,$J100>0),($I100*$J100)/1000,($G100*$H100)/1000))*$BL100*$BQ100))","v":""},{"$f":"IF('Project Scope'!$C100=\"\",\"\",IF(OR($K100<=0,'Project Information'!$D$44=\"\"),0,-1*MAX(0,IF(AND($I100>0,$J100>0),($I100*$J100)/1000,($G100*$H100)/1000))*$BT100*$L100*$BS100*VLOOKUP('Project Information'!$D$44,'CBAT Lookups'!$A$23:$H$30,2)))","v":""},{"$f":"IF('Project Scope'!$C100=\"\",\"\",IF(OR($K100<=0,'Project Information'!$D$44=\"\"),0,-1*MAX(0,IF(AND($I100>0,$J100>0),($I100*$J100)/1000,($G100*$H100)/1000))*$BT100*$L100*$BS100*VLOOKUP('Project Information'!$D$44,'CBAT Lookups'!$A$23:$H$30,3)))","v":""},{"$f":"IF('Project Scope'!$C100=\"\",\"\",IF(OR($K100<=0,'Project Information'!$D$44=\"\"),0,-1*MAX(0,IF(AND($I100>0,$J100>0),($I100*$J100)/1000,($G100*$H100)/1000))*$BT100*$L100*$BS100*VLOOKUP('Project Information'!$D$44,'CBAT Lookups'!$A$23:$H$30,4)))","v":""},{"$f":"IF('Project Scope'!$C100=\"\",\"\",IF(OR($K100<=0,'Project Information'!$D$44=\"\"),0,-1*MAX(0,IF(AND($I100>0,$J100>0),($I100*$J100)/1000,($G100*$H100)/1000))*$BT100*$L100*$BS100*VLOOKUP('Project Information'!$D$44,'CBAT Lookups'!$A$23:$H$30,5)))","v":""},{"$f":"IF('Project Scope'!$C100=\"\",\"\",IF(OR($K100<=0,'Project Information'!$D$44=\"\"),0,-1*MAX(0,IF(AND($I100>0,$J100>0),($I100*$J100)/1000,($G100*$H100)/1000))*$BT100*$L100*$BS100*VLOOKUP('Project Information'!$D$44,'CBAT Lookups'!$A$23:$H$30,6)))","v":""},{"$f":"IF('Project Scope'!$C100=\"\",\"\",IF(OR($K100<=0,'Project Information'!$D$44=\"\"),0,-1*MAX(0,IF(AND($I100>0,$J100>0),($I100*$J100)/1000,($G100*$H100)/1000))*$BT100*$L100*$BS100*VLOOKUP('Project Information'!$D$44,'CBAT Lookups'!$A$23:$H$30,7)))","v":""},{"$f":"IF('Project Scope'!$C100=\"\",\"\",IF(OR($K100<=0,'Project Information'!$D$44=\"\"),0,-1*MAX(0,IF(AND($I100>0,$J100>0),($I100*$J100)/1000,($G100*$H100)/1000))*$BT100*$L100*$BS100*VLOOKUP('Project Information'!$D$44,'CBAT Lookups'!$A$23:$H$30,8)))","v":""},null,{"$f":"IF('Project Scope'!$C100=\"\",\"\",VLOOKUP($F100,'CBAT Lookups'!$B$17:$K$19,4))","v":""},{"$f":"IF('Project Scope'!$C100=\"\",\"\",VLOOKUP($F100,'CBAT Lookups'!$B$17:$K$19,5))","v":""},{"$f":"IF('Project Scope'!$C100=\"\",\"\",VLOOKUP($F100,'CBAT Lookups'!$B$17:$K$19,6))","v":""},{"$f":"IF('Project Scope'!$C100=\"\",\"\",VLOOKUP($F100,'CBAT Lookups'!$B$17:$K$19,7))","v":""},{"$f":"IF('Project Scope'!$C100=\"\",\"\",IF(SUMPRODUCT($BM100:$BP100,$CL100:$CO100)=0,0,BM100*CL100/SUMPRODUCT($BM100:$BP100,$CL100:$CO100)))","v":""},{"$f":"IF('Project Scope'!$C100=\"\",\"\",IF(SUMPRODUCT($BM100:$BP100,$CL100:$CO100)=0,0,BN100*CM100/SUMPRODUCT($BM100:$BP100,$CL100:$CO100)))","v":""},{"$f":"IF('Project Scope'!$C100=\"\",\"\",IF(SUMPRODUCT($BM100:$BP100,$CL100:$CO100)=0,0,BO100*CN100/SUMPRODUCT($BM100:$BP100,$CL100:$CO100)))","v":""},{"$f":"IF('Project Scope'!$C100=\"\",\"\",IF(SUMPRODUCT($BM100:$BP100,$CL100:$CO100)=0,0,BP100*CO100/SUMPRODUCT($BM100:$BP100,$CL100:$CO100)))","v":""},{"$f":"IF('Project Scope'!$C100=\"\",\"\",Benefits($BZ100,$CB100,$CC100,$CE100,$CF100,$CG100,$CH100,$CI100,$CJ100,$CK100,$BJ100,$CP100,$CQ100,$CR100,$CS100,$BU100,$BV100,$BW100,$BX100,$BY100,$E100))","v":""},"","","","","","","","",null,{"$f":"IF('Project Scope'!$C100=\"\",\"\",SUM('Project Scope'!$BB100,'Project Scope'!$BC100))","v":""},{"$f":"IF('Project Scope'!$C100=\"\",\"\",SUM('Project Scope'!$BH100, 'Project Scope'!$AZ100,(IF(ISNUMBER('Project Scope'!$BA100),'Project Scope'!$BA100,0)*'Project Information'!$D$12)))","v":""},null,null,{"$f":"IF('Project Scope'!$C100=\"\",\"\",IF($J100<=0,0,(SUMPRODUCT($AV100:$BC100,--($AV100:$BC100>0))+$BE100)*$DK100/((-SUMPRODUCT($AV100:$BC100,--($AV100:$BC100<0))+$BG100+$BH100+$BI100)*$DK100)))","v":""},{"$f":"IF('Project Scope'!$C100=\"\",\"\",IF($K100<=0,0,(SUMPRODUCT($CT100:$DA100,--($CT100:$DA100>0))+$DC100)*$DK100/((-SUMPRODUCT($CT100:$DA100,--($CT100:$DA100<0))+$DE100+$DF100+$DG100)*$DK100)))","v":""},{"$f":"IF('Project Scope'!$C100=\"\",\"\",IF(AND($J100<=0,$K100<=0),0,(SUMPRODUCT($AV100:$BC100,--($AV100:$BC100>0))+$BE100+SUMPRODUCT($CT100:$DA100,--($CT100:$DA100>0))+$DC100)*$DK100/((-SUMPRODUCT($AV100:$BC100,--($AV100:$BC100<0))+$BG100+$BH100+$BI100-SUMPRODUCT($CT100:$DA100,--($CT100:$DA100<0))+$DE100+$DF100+$DG100)*$DK100)))","v":""},{"$f":"IF('Project Scope'!$C100=\"\",\"\",IF(NetOrGross=\"Net\",(1-Z100+AA100),1))","v":""}]
[{"$f":"'Project Scope'!$B101","v":94},{"$f":"IF('Project Scope'!$C101=\"\",\"\",'Project Scope'!$C101)","v":""},{"$f":"IF('Project Scope'!$C101=\"\",\"\",'Project Scope'!$H101)","v":""},{"$f":"IF(ISNUMBER(SEARCH(\"Bay\",'Project Scope'!$Q101)),\"Bay\",IF('Project Scope'!C101=\"\",\"\",'Project Scope'!E101))","v":""},{"$f":"IF('Project Scope'!$C101=\"\",\"\",\"Com\")","v":""},{"$f":"IF('Project Scope'!$C101=\"\",\"\",'Project Scope'!$L101)","v":""},{"$f":"IF('Project Scope'!$C101=\"\",\"\",IF('Project Scope'!$CJ101=\"\",0,'Project Scope'!$CJ101))","v":""},{"$f":"IF('Project Scope'!$C101=\"\",\"\",IF('Project Scope'!$N101=\"\",0,'Project Scope'!$N101))","v":""},{"$f":"IF('Project Scope'!$C101=\"\",\"\",IF('Project Scope'!$CK101=\"\",0,'Project Scope'!$CK101))","v":""},{"$f":"IF('Project Scope'!$C101=\"\",\"\",IF('Project Scope'!$AO101=\"\",0,'Project Scope'!$AO101))","v":""},{"$f":"IF('Project Scope'!$C101=\"\",\"\",IF('Project Scope'!$AX101=\"\",0,'Project Scope'!$AX101))","v":""},{"$f":"IF('Project Scope'!$C101=\"\",\"\",IF('Project Scope'!$M101=\"\",0,'Project Scope'!$M101))","v":""},{"$f":"IF('Project Scope'!$C101=\"\",\"\",IF(COUNTIF('CBAT Lookups'!$B$5:$B$12,\"Fixtures-\"&CBAT!$D101)=1,VLOOKUP(\"Fixtures-\"&CBAT!$D101,'CBAT Lookups'!$B$5:$L$12,11),0))","v":""},{"$f":"IF('Project Scope'!$C101=\"\",\"\",(IF(COUNTIF('CBAT Lookups'!$B$5:$B$12,\"Fixtures-\"&CBAT!$D101)=1,VLOOKUP(\"Fixtures-\"&CBAT!$D101,'CBAT Lookups'!$B$5:$K$12,2),0))*VLOOKUP($F101,'CBAT Lookups'!$B$17:$K$19,2))","v":""},{"$f":"IF('Project Scope'!$C101=\"\",\"\",(IF(COUNTIF('CBAT Lookups'!$B$5:$B$12,\"Fixtures-\"&CBAT!$D101)=1,VLOOKUP(\"Fixtures-\"&CBAT!$D101,'CBAT Lookups'!$B$5:$K$12,3),0))*VLOOKUP($F101,'CBAT Lookups'!$B$17:$K$19,3))","v":""},{"$f":"IF('Project Scope'!$C101=\"\",\"\",(IF(COUNTIF('CBAT Lookups'!$B$5:$B$12,\"Fixtures-\"&CBAT!$D101)=1,VLOOKUP(\"Fixtures-\"&CBAT!$D101,'CBAT Lookups'!$B$5:$K$12,4),0)))","v":""},{"$f":"IF('Project Scope'!$C101=\"\",\"\",(IF(COUNTIF('CBAT Lookups'!$B$5:$B$12,\"Fixtures-\"&CBAT!$D101)=1,VLOOKUP(\"Fixtures-\"&CBAT!$D101,'CBAT Lookups'!$B$5:$K$12,5),0)))","v":""},{"$f":"IF('Project Scope'!$C101=\"\",\"\",(IF(COUNTIF('CBAT Lookups'!$B$5:$B$12,\"Fixtures-\"&CBAT!$D101)=1,VLOOKUP(\"Fixtures-\"&CBAT!$D101,'CBAT Lookups'!$B$5:$K$12,6),0)))","v":""},{"$f":"IF('Project Scope'!$C101=\"\",\"\",IF(COUNTIF('CBAT Lookups'!$B$5:$B$12,\"Fixtures-\"&CBAT!$D101)=1,VLOOKUP(\"Fixtures-\"&CBAT!$D101,'CBAT Lookups'!$B$5:$K$12,7),0))","v":""},{"$f":"IF('Project Scope'!$C101=\"\",\"\",IF(VLOOKUP($F101,'CBAT Lookups'!$B$17:$K$19,8)=\"W\",1,IF(COUNTIF('CBAT Lookups'!$B$5:$B$12,\"Fixtures-\"&CBAT!$D101)=1,VLOOKUP(\"Fixtures-\"&CBAT!$D101,'CBAT Lookups'!$B$5:$K$12,8),0)*VLOOKUP($F101,'CBAT Lookups'!$B$17:$K$19,8)))","v":""},{"$f":"IF('Project Scope'!$C101=\"\",\"\",IF(VLOOKUP($F101,'CBAT Lookups'!$B$17:$K$19,9)=\"W\",1,IF(COUNTIF('CBAT Lookups'!$B$5:$B$12,\"Fixtures-\"&CBAT!$D101)=1,VLOOKUP(\"Fixtures-\"&CBAT!$D101,'CBAT Lookups'!$B$5:$K$12,9),0)*VLOOKUP($F101,'CBAT Lookups'!$B$17:$K$19,9)))","v":""},{"$f":"IF('Project Scope'!$C101=\"\",\"\",IF(COUNTIF('CBAT Lookups'!$B$5:$B$12,\"Fixtures-\"&CBAT!$D101)=1,VLOOKUP(\"Fixtures-\"&CBAT!$D101,'CBAT Lookups'!$B$5:$K$12,10),0)*VLOOKUP($F101,'CBAT Lookups'!$B$17:$K$19,10))","v":""},{"$f":"IF('Project Scope'!$C101=\"\",\"\",IF(COUNTIF('CBAT Lookups'!$B$5:$B$12,\"Fixtures-\"&CBAT!$D101)=1,VLOOKUP(\"Fixtures-\"&CBAT!$D101,'CBAT Lookups'!$B$5:$O$12,12),0))","v":""},{"$f":"IF('Project Scope'!$C101=\"\",\"\",IF(COUNTIF('CBAT Lookups'!$B$5:$B$12,\"Fixtures-\"&CBAT!$D101)=1,VLOOKUP(\"Fixtures-\"&CBAT!$D101,'CBAT Lookups'!$B$5:$O$12,13),0))","v":""},{"$f":"IF('Project Scope'!$C101=\"\",\"\",IF(COUNTIF('CBAT Lookups'!$B$5:$B$12,\"Fixtures-\"&CBAT!$D101)=1,VLOOKUP(\"Fixtures-\"&CBAT!$D101,'CBAT Lookups'!$B$5:$O$12,14),0))","v":""},{"$f":"IF('Project Scope'!$C101=\"\",\"\",'TRM Data'!$U$3)","v":""},{"$f":"IF('Project Scope'!$C101=\"\",\"\",'TRM Data'!$V$3)","v":""},{"$f":"IF('Project Scope'!$C101=\"\",\"\",IF($J101<=0,0,MAX(0,(($G101*$H101/1000)-($I101*$J101/1000))*$L101)*$U101)+($AF101/0.003412))","v":""},{"$f":"IF('Project Scope'!$C101=\"\",\"\",IF($J101<=0,0,MAX(0,(($G101*$H101/1000)-($I101*$J101/1000)))*$T101))","v":""},{"$f":"IF('Project Scope'!$C101=\"\",\"\",IF($J101<=0,0,MAX(0,(($G101*$H101/1000)-($I101*$J101/1000))*$N101)))","v":""},{"$f":"IF('Project Scope'!$C101=\"\",\"\",IF($J101<=0,0,MAX(0,(($G101*$H101/1000)-($I101*$J101/1000))*$O101)*$T101))","v":""},{"$f":"IF('Project Scope'!$C101=\"\",\"\",IF(OR($J101<=0,'Project Information'!$D$44=\"\"),0,-1*MAX(0,(($G101*$H101/1000)-($I101*$J101/1000))*$L101)*$V101*VLOOKUP('Project Information'!$D$44,'CBAT Lookups'!$A$23:$H$30,2)))","v":""},{"$f":"IF('Project Scope'!$C101=\"\",\"\",IF(OR($J101<=0,'Project Information'!$D$44=\"\"),0,-1*MAX(0,(($G101*$H101/1000)-($I101*$J101/1000))*$L101)*$V101*VLOOKUP('Project Information'!$D$44,'CBAT Lookups'!$A$23:$H$30,3)))","v":""},{"$f":"IF('Project Scope'!$C101=\"\",\"\",IF(OR($J101<=0,'Project Information'!$D$44=\"\"),0,-1*MAX(0,(($G101*$H101/1000)-($I101*$J101/1000))*$L101)*$V101*VLOOKUP('Project Information'!$D$44,'CBAT Lookups'!$A$23:$H$30,4)))","v":""},{"$f":"IF('Project Scope'!$C101=\"\",\"\",IF(OR($J101<=0,'Project Information'!$D$44=\"\"),0,-1*MAX(0,(($G101*$H101/1000)-($I101*$J101/1000))*$L101)*$V101*VLOOKUP('Project Information'!$D$44,'CBAT Lookups'!$A$23:$H$30,5)))","v":""},{"$f":"IF('Project Scope'!$C101=\"\",\"\",IF(OR($J101<=0,'Project Information'!$D$44=\"\"),0,-1*MAX(0,(($G101*$H101/1000)-($I101*$J101/1000))*$L101)*$V101*VLOOKUP('Project Information'!$D$44,'CBAT Lookups'!$A$23:$H$30,6)))","v":""},{"$f":"IF('Project Scope'!$C101=\"\",\"\",IF(OR($J101<=0,'Project Information'!$D$44=\"\"),0,-1*MAX(0,(($G101*$H101/1000)-($I101*$J101/1000))*$L101)*$V101*VLOOKUP('Project Information'!$D$44,'CBAT Lookups'!$A$23:$H$30,7)))","v":""},{"$f":"IF('Project Scope'!$C101=\"\",\"\",IF(OR($J101<=0,'Project Information'!$D$44=\"\"),0,-1*MAX(0,(($G101*$H101/1000)-($I101*$J101/1000))*$L101)*$V101*VLOOKUP('Project Information'!$D$44,'CBAT Lookups'!$A$23:$H$30,8)))","v":""},null,{"$f":"IF('Project Scope'!$C101=\"\",\"\",VLOOKUP($F101,'CBAT Lookups'!$B$17:$K$19,4))","v":""},{"$f":"IF('Project Scope'!$C101=\"\",\"\",VLOOKUP($F101,'CBAT Lookups'!$B$17:$K$19,5))","v":""},{"$f":"IF('Project Scope'!$C101=\"\",\"\",VLOOKUP($F101,'CBAT Lookups'!$B$17:$K$19,6))","v":""},{"$f":"IF('Project Scope'!$C101=\"\",\"\",VLOOKUP($F101,'CBAT Lookups'!$B$17:$K$19,7))","v":""},{"$f":"IF('Project Scope'!$C101=\"\",\"\",IF(SUMPRODUCT($P101:$S101,$AN101:$AQ101)=0,0,P101*AN101/SUMPRODUCT($P101:$S101,$AN101:$AQ101)))","v":""},{"$f":"IF('Project Scope'!$C101=\"\",\"\",IF(SUMPRODUCT($P101:$S101,$AN101:$AQ101)=0,0,Q101*AO101/SUMPRODUCT($P101:$S101,$AN101:$AQ101)))","v":""},{"$f":"IF('Project Scope'!$C101=\"\",\"\",IF(SUMPRODUCT($P101:$S101,$AN101:$AQ101)=0,0,R101*AP101/SUMPRODUCT($P101:$S101,$AN101:$AQ101)))","v":""},{"$f":"IF('Project Scope'!$C101=\"\",\"\",IF(SUMPRODUCT($P101:$S101,$AN101:$AQ101)=0,0,S101*AQ101/SUMPRODUCT($P101:$S101,$AN101:$AQ101)))","v":""},{"$f":"IF('Project Scope'!$C101=\"\",\"\",Benefits($AB101,$AD101,$AE101,$AG101,$AH101,$AI101,$AJ101,$AK101,$AL101,$AM101,$M101,$AR101,$AS101,$AT101,$AU101,$W101,$X101,$Y101,$Z101,$AA101,$E101))","v":""},"","","","","","","","",null,{"$f":"IF('Project Scope'!$C101=\"\",\"\",SUM('Project Scope'!$AT101,'Project Scope'!$AU101))","v":""},{"$f":"IF('Project Scope'!$C101=\"\",\"\",SUM('Project Scope'!$BG101, 'Project Scope'!$AR101,(IF(ISNUMBER('Project Scope'!$AS101),'Project Scope'!$AS101,0)*'Project Information'!$D$12)))","v":""},null,null,{"$f":"IF('Project Scope'!$C101=\"\",\"\",IF(COUNTIF('CBAT Lookups'!$B$5:$B$12,\"Controls-\"&CBAT!$D101)=1,VLOOKUP(\"Controls-\"&CBAT!$D101,'CBAT Lookups'!$B$5:$L$12,11),0))","v":""},{"$f":"IF('Project Scope'!$C101=\"\",\"\",IF(COUNTIF('CBAT Lookups'!$B$5:$B$12,\"Controls-\"&CBAT!$D101)=1,VLOOKUP(\"Controls-\"&CBAT!$D101,'CBAT Lookups'!$B$5:$K$12,2),0)*VLOOKUP($F101,'CBAT Lookups'!$B$17:$K$19,2))","v":""},{"$f":"IF('Project Scope'!$C101=\"\",\"\",IF(COUNTIF('CBAT Lookups'!$B$5:$B$12,\"Controls-\"&CBAT!$D101)=1,VLOOKUP(\"Controls-\"&CBAT!$D101,'CBAT Lookups'!$B$5:$K$12,3),0)*VLOOKUP($F101,'CBAT Lookups'!$B$17:$K$19,3))","v":""},{"$f":"IF('Project Scope'!$C101=\"\",\"\",IF(COUNTIF('CBAT Lookups'!$B$5:$B$12,\"Controls-\"&CBAT!$D101)=1,VLOOKUP(\"Controls-\"&CBAT!$D101,'CBAT Lookups'!$B$5:$K$12,4),0))","v":""},{"$f":"IF('Project Scope'!$C101=\"\",\"\",IF(COUNTIF('CBAT Lookups'!$B$5:$B$12,\"Controls-\"&CBAT!$D101)=1,VLOOKUP(\"Controls-\"&CBAT!$D101,'CBAT Lookups'!$B$5:$K$12,5),0))","v":""},{"$f":"IF('Project Scope'!$C101=\"\",\"\",IF(COUNTIF('CBAT Lookups'!$B$5:$B$12,\"Controls-\"&CBAT!$D101)=1,VLOOKUP(\"Controls-\"&CBAT!$D101,'CBAT Lookups'!$B$5:$K$12,6),0))","v":""},{"$f":"IF('Project Scope'!$C101=\"\",\"\",IF(COUNTIF('CBAT Lookups'!$B$5:$B$12,\"Controls-\"&CBAT!$D101)=1,VLOOKUP(\"Controls-\"&CBAT!$D101,'CBAT Lookups'!$B$5:$K$12,7),0))","v":""},{"$f":"IF('Project Scope'!$C101=\"\",\"\",IF(VLOOKUP($F101,'CBAT Lookups'!$B$17:$K$19,8)=\"W\",1,IF(COUNTIF('CBAT Lookups'!$B$5:$B$12,\"Controls-\"&CBAT!$D101)=1,VLOOKUP(\"Controls-\"&CBAT!$D101,'CBAT Lookups'!$B$5:$K$12,8),0)*VLOOKUP($F101,'CBAT Lookups'!$B$17:$K$19,8)))","v":""},{"$f":"IF('Project Scope'!$C101=\"\",\"\",IF(VLOOKUP($F101,'CBAT Lookups'!$B$17:$K$19,9)=\"W\",1,IF(COUNTIF('CBAT Lookups'!$B$5:$B$12,\"Controls-\"&CBAT!$D101)=1,VLOOKUP(\"Controls-\"&CBAT!$D101,'CBAT Lookups'!$B$5:$K$12,9),0)*VLOOKUP($F101,'CBAT Lookups'!$B$17:$K$19,9)))","v":""},{"$f":"IF('Project Scope'!$C101=\"\",\"\",IF(COUNTIF('CBAT Lookups'!$B$5:$B$12,\"Controls-\"&CBAT!$D101)=1,VLOOKUP(\"Controls-\"&CBAT!$D101,'CBAT Lookups'!$B$5:$K$12,10),0)*VLOOKUP($F101,'CBAT Lookups'!$B$17:$K$19,10))","v":""},{"$f":"IF('Project Scope'!$C101=\"\",\"\",VLOOKUP($C101,'CBAT Lookups'!$A$33:$B$57,2))","v":""},{"$f":"IF('Project Scope'!$C101=\"\",\"\",IF(COUNTIF('CBAT Lookups'!$B$5:$B$12,\"Controls-\"&CBAT!$D101)=1,VLOOKUP(\"Controls-\"&CBAT!$D101,'CBAT Lookups'!$B$5:$O$12,12),0))","v":""},{"$f":"IF('Project Scope'!$C101=\"\",\"\",IF(COUNTIF('CBAT Lookups'!$B$5:$B$12,\"Controls-\"&CBAT!$D101)=1,VLOOKUP(\"Controls-\"&CBAT!$D101,'CBAT Lookups'!$B$5:$O$12,13),0))","v":""},{"$f":"IF('Project Scope'!$C101=\"\",\"\",IF(COUNTIF('CBAT Lookups'!$B$5:$B$12,\"Controls-\"&CBAT!$D101)=1,VLOOKUP(\"Controls-\"&CBAT!$D101,'CBAT Lookups'!$B$5:$O$12,14),0))","v":""},{"$f":"IF('Project Scope'!$C101=\"\",\"\",'TRM Data'!$U$3)","v":""},{"$f":"IF('Project Scope'!$C101=\"\",\"\",'TRM Data'!$V$3)","v":""},{"$f":"IF('Project Scope'!$C101=\"\",\"\",IF($K101<=0,0,MAX(0,(IF(AND($I101>0,$J101>0),($I101*$J101)/1000,($G101*$H101)/1000)*$L101))*$BT101*$BR101)+($CD101/0.003412))","v":""},{"$f":"IF('Project Scope'!$C101=\"\",\"\",IF($K101<=0,0,MAX(0,IF(AND($I101>0,$J101>0),($I101*$J101)/1000,($G101*$H101)/1000))*$BQ101))","v":""},{"$f":"IF('Project Scope'!$C101=\"\",\"\",IF($K101<=0,0,MAX(0,IF(AND($I101>0,$J101>0),($I101*$J101)/1000,($G101*$H101)/1000))*$BK101))","v":""},{"$f":"IF('Project Scope'!$C101=\"\",\"\",IF($K101<=0,0,MAX(0,IF(AND($I101>0,$J101>0),($I101*$J101)/1000,($G101*$H101)/1000))*$BL101*$BQ101))","v":""},{"$f":"IF('Project Scope'!$C101=\"\",\"\",IF(OR($K101<=0,'Project Information'!$D$44=\"\"),0,-1*MAX(0,IF(AND($I101>0,$J101>0),($I101*$J101)/1000,($G101*$H101)/1000))*$BT101*$L101*$BS101*VLOOKUP('Project Information'!$D$44,'CBAT Lookups'!$A$23:$H$30,2)))","v":""},{"$f":"IF('Project Scope'!$C101=\"\",\"\",IF(OR($K101<=0,'Project Information'!$D$44=\"\"),0,-1*MAX(0,IF(AND($I101>0,$J101>0),($I101*$J101)/1000,($G101*$H101)/1000))*$BT101*$L101*$BS101*VLOOKUP('Project Information'!$D$44,'CBAT Lookups'!$A$23:$H$30,3)))","v":""},{"$f":"IF('Project Scope'!$C101=\"\",\"\",IF(OR($K101<=0,'Project Information'!$D$44=\"\"),0,-1*MAX(0,IF(AND($I101>0,$J101>0),($I101*$J101)/1000,($G101*$H101)/1000))*$BT101*$L101*$BS101*VLOOKUP('Project Information'!$D$44,'CBAT Lookups'!$A$23:$H$30,4)))","v":""},{"$f":"IF('Project Scope'!$C101=\"\",\"\",IF(OR($K101<=0,'Project Information'!$D$44=\"\"),0,-1*MAX(0,IF(AND($I101>0,$J101>0),($I101*$J101)/1000,($G101*$H101)/1000))*$BT101*$L101*$BS101*VLOOKUP('Project Information'!$D$44,'CBAT Lookups'!$A$23:$H$30,5)))","v":""},{"$f":"IF('Project Scope'!$C101=\"\",\"\",IF(OR($K101<=0,'Project Information'!$D$44=\"\"),0,-1*MAX(0,IF(AND($I101>0,$J101>0),($I101*$J101)/1000,($G101*$H101)/1000))*$BT101*$L101*$BS101*VLOOKUP('Project Information'!$D$44,'CBAT Lookups'!$A$23:$H$30,6)))","v":""},{"$f":"IF('Project Scope'!$C101=\"\",\"\",IF(OR($K101<=0,'Project Information'!$D$44=\"\"),0,-1*MAX(0,IF(AND($I101>0,$J101>0),($I101*$J101)/1000,($G101*$H101)/1000))*$BT101*$L101*$BS101*VLOOKUP('Project Information'!$D$44,'CBAT Lookups'!$A$23:$H$30,7)))","v":""},{"$f":"IF('Project Scope'!$C101=\"\",\"\",IF(OR($K101<=0,'Project Information'!$D$44=\"\"),0,-1*MAX(0,IF(AND($I101>0,$J101>0),($I101*$J101)/1000,($G101*$H101)/1000))*$BT101*$L101*$BS101*VLOOKUP('Project Information'!$D$44,'CBAT Lookups'!$A$23:$H$30,8)))","v":""},null,{"$f":"IF('Project Scope'!$C101=\"\",\"\",VLOOKUP($F101,'CBAT Lookups'!$B$17:$K$19,4))","v":""},{"$f":"IF('Project Scope'!$C101=\"\",\"\",VLOOKUP($F101,'CBAT Lookups'!$B$17:$K$19,5))","v":""},{"$f":"IF('Project Scope'!$C101=\"\",\"\",VLOOKUP($F101,'CBAT Lookups'!$B$17:$K$19,6))","v":""},{"$f":"IF('Project Scope'!$C101=\"\",\"\",VLOOKUP($F101,'CBAT Lookups'!$B$17:$K$19,7))","v":""},{"$f":"IF('Project Scope'!$C101=\"\",\"\",IF(SUMPRODUCT($BM101:$BP101,$CL101:$CO101)=0,0,BM101*CL101/SUMPRODUCT($BM101:$BP101,$CL101:$CO101)))","v":""},{"$f":"IF('Project Scope'!$C101=\"\",\"\",IF(SUMPRODUCT($BM101:$BP101,$CL101:$CO101)=0,0,BN101*CM101/SUMPRODUCT($BM101:$BP101,$CL101:$CO101)))","v":""},{"$f":"IF('Project Scope'!$C101=\"\",\"\",IF(SUMPRODUCT($BM101:$BP101,$CL101:$CO101)=0,0,BO101*CN101/SUMPRODUCT($BM101:$BP101,$CL101:$CO101)))","v":""},{"$f":"IF('Project Scope'!$C101=\"\",\"\",IF(SUMPRODUCT($BM101:$BP101,$CL101:$CO101)=0,0,BP101*CO101/SUMPRODUCT($BM101:$BP101,$CL101:$CO101)))","v":""},{"$f":"IF('Project Scope'!$C101=\"\",\"\",Benefits($BZ101,$CB101,$CC101,$CE101,$CF101,$CG101,$CH101,$CI101,$CJ101,$CK101,$BJ101,$CP101,$CQ101,$CR101,$CS101,$BU101,$BV101,$BW101,$BX101,$BY101,$E101))","v":""},"","","","","","","","",null,{"$f":"IF('Project Scope'!$C101=\"\",\"\",SUM('Project Scope'!$BB101,'Project Scope'!$BC101))","v":""},{"$f":"IF('Project Scope'!$C101=\"\",\"\",SUM('Project Scope'!$BH101, 'Project Scope'!$AZ101,(IF(ISNUMBER('Project Scope'!$BA101),'Project Scope'!$BA101,0)*'Project Information'!$D$12)))","v":""},null,null,{"$f":"IF('Project Scope'!$C101=\"\",\"\",IF($J101<=0,0,(SUMPRODUCT($AV101:$BC101,--($AV101:$BC101>0))+$BE101)*$DK101/((-SUMPRODUCT($AV101:$BC101,--($AV101:$BC101<0))+$BG101+$BH101+$BI101)*$DK101)))","v":""},{"$f":"IF('Project Scope'!$C101=\"\",\"\",IF($K101<=0,0,(SUMPRODUCT($CT101:$DA101,--($CT101:$DA101>0))+$DC101)*$DK101/((-SUMPRODUCT($CT101:$DA101,--($CT101:$DA101<0))+$DE101+$DF101+$DG101)*$DK101)))","v":""},{"$f":"IF('Project Scope'!$C101=\"\",\"\",IF(AND($J101<=0,$K101<=0),0,(SUMPRODUCT($AV101:$BC101,--($AV101:$BC101>0))+$BE101+SUMPRODUCT($CT101:$DA101,--($CT101:$DA101>0))+$DC101)*$DK101/((-SUMPRODUCT($AV101:$BC101,--($AV101:$BC101<0))+$BG101+$BH101+$BI101-SUMPRODUCT($CT101:$DA101,--($CT101:$DA101<0))+$DE101+$DF101+$DG101)*$DK101)))","v":""},{"$f":"IF('Project Scope'!$C101=\"\",\"\",IF(NetOrGross=\"Net\",(1-Z101+AA101),1))","v":""}]
[{"$f":"'Project Scope'!$B102","v":95},{"$f":"IF('Project Scope'!$C102=\"\",\"\",'Project Scope'!$C102)","v":""},{"$f":"IF('Project Scope'!$C102=\"\",\"\",'Project Scope'!$H102)","v":""},{"$f":"IF(ISNUMBER(SEARCH(\"Bay\",'Project Scope'!$Q102)),\"Bay\",IF('Project Scope'!C102=\"\",\"\",'Project Scope'!E102))","v":""},{"$f":"IF('Project Scope'!$C102=\"\",\"\",\"Com\")","v":""},{"$f":"IF('Project Scope'!$C102=\"\",\"\",'Project Scope'!$L102)","v":""},{"$f":"IF('Project Scope'!$C102=\"\",\"\",IF('Project Scope'!$CJ102=\"\",0,'Project Scope'!$CJ102))","v":""},{"$f":"IF('Project Scope'!$C102=\"\",\"\",IF('Project Scope'!$N102=\"\",0,'Project Scope'!$N102))","v":""},{"$f":"IF('Project Scope'!$C102=\"\",\"\",IF('Project Scope'!$CK102=\"\",0,'Project Scope'!$CK102))","v":""},{"$f":"IF('Project Scope'!$C102=\"\",\"\",IF('Project Scope'!$AO102=\"\",0,'Project Scope'!$AO102))","v":""},{"$f":"IF('Project Scope'!$C102=\"\",\"\",IF('Project Scope'!$AX102=\"\",0,'Project Scope'!$AX102))","v":""},{"$f":"IF('Project Scope'!$C102=\"\",\"\",IF('Project Scope'!$M102=\"\",0,'Project Scope'!$M102))","v":""},{"$f":"IF('Project Scope'!$C102=\"\",\"\",IF(COUNTIF('CBAT Lookups'!$B$5:$B$12,\"Fixtures-\"&CBAT!$D102)=1,VLOOKUP(\"Fixtures-\"&CBAT!$D102,'CBAT Lookups'!$B$5:$L$12,11),0))","v":""},{"$f":"IF('Project Scope'!$C102=\"\",\"\",(IF(COUNTIF('CBAT Lookups'!$B$5:$B$12,\"Fixtures-\"&CBAT!$D102)=1,VLOOKUP(\"Fixtures-\"&CBAT!$D102,'CBAT Lookups'!$B$5:$K$12,2),0))*VLOOKUP($F102,'CBAT Lookups'!$B$17:$K$19,2))","v":""},{"$f":"IF('Project Scope'!$C102=\"\",\"\",(IF(COUNTIF('CBAT Lookups'!$B$5:$B$12,\"Fixtures-\"&CBAT!$D102)=1,VLOOKUP(\"Fixtures-\"&CBAT!$D102,'CBAT Lookups'!$B$5:$K$12,3),0))*VLOOKUP($F102,'CBAT Lookups'!$B$17:$K$19,3))","v":""},{"$f":"IF('Project Scope'!$C102=\"\",\"\",(IF(COUNTIF('CBAT Lookups'!$B$5:$B$12,\"Fixtures-\"&CBAT!$D102)=1,VLOOKUP(\"Fixtures-\"&CBAT!$D102,'CBAT Lookups'!$B$5:$K$12,4),0)))","v":""},{"$f":"IF('Project Scope'!$C102=\"\",\"\",(IF(COUNTIF('CBAT Lookups'!$B$5:$B$12,\"Fixtures-\"&CBAT!$D102)=1,VLOOKUP(\"Fixtures-\"&CBAT!$D102,'CBAT Lookups'!$B$5:$K$12,5),0)))","v":""},{"$f":"IF('Project Scope'!$C102=\"\",\"\",(IF(COUNTIF('CBAT Lookups'!$B$5:$B$12,\"Fixtures-\"&CBAT!$D102)=1,VLOOKUP(\"Fixtures-\"&CBAT!$D102,'CBAT Lookups'!$B$5:$K$12,6),0)))","v":""},{"$f":"IF('Project Scope'!$C102=\"\",\"\",IF(COUNTIF('CBAT Lookups'!$B$5:$B$12,\"Fixtures-\"&CBAT!$D102)=1,VLOOKUP(\"Fixtures-\"&CBAT!$D102,'CBAT Lookups'!$B$5:$K$12,7),0))","v":""},{"$f":"IF('Project Scope'!$C102=\"\",\"\",IF(VLOOKUP($F102,'CBAT Lookups'!$B$17:$K$19,8)=\"W\",1,IF(COUNTIF('CBAT Lookups'!$B$5:$B$12,\"Fixtures-\"&CBAT!$D102)=1,VLOOKUP(\"Fixtures-\"&CBAT!$D102,'CBAT Lookups'!$B$5:$K$12,8),0)*VLOOKUP($F102,'CBAT Lookups'!$B$17:$K$19,8)))","v":""},{"$f":"IF('Project Scope'!$C102=\"\",\"\",IF(VLOOKUP($F102,'CBAT Lookups'!$B$17:$K$19,9)=\"W\",1,IF(COUNTIF('CBAT Lookups'!$B$5:$B$12,\"Fixtures-\"&CBAT!$D102)=1,VLOOKUP(\"Fixtures-\"&CBAT!$D102,'CBAT Lookups'!$B$5:$K$12,9),0)*VLOOKUP($F102,'CBAT Lookups'!$B$17:$K$19,9)))","v":""},{"$f":"IF('Project Scope'!$C102=\"\",\"\",IF(COUNTIF('CBAT Lookups'!$B$5:$B$12,\"Fixtures-\"&CBAT!$D102)=1,VLOOKUP(\"Fixtures-\"&CBAT!$D102,'CBAT Lookups'!$B$5:$K$12,10),0)*VLOOKUP($F102,'CBAT Lookups'!$B$17:$K$19,10))","v":""},{"$f":"IF('Project Scope'!$C102=\"\",\"\",IF(COUNTIF('CBAT Lookups'!$B$5:$B$12,\"Fixtures-\"&CBAT!$D102)=1,VLOOKUP(\"Fixtures-\"&CBAT!$D102,'CBAT Lookups'!$B$5:$O$12,12),0))","v":""},{"$f":"IF('Project Scope'!$C102=\"\",\"\",IF(COUNTIF('CBAT Lookups'!$B$5:$B$12,\"Fixtures-\"&CBAT!$D102)=1,VLOOKUP(\"Fixtures-\"&CBAT!$D102,'CBAT Lookups'!$B$5:$O$12,13),0))","v":""},{"$f":"IF('Project Scope'!$C102=\"\",\"\",IF(COUNTIF('CBAT Lookups'!$B$5:$B$12,\"Fixtures-\"&CBAT!$D102)=1,VLOOKUP(\"Fixtures-\"&CBAT!$D102,'CBAT Lookups'!$B$5:$O$12,14),0))","v":""},{"$f":"IF('Project Scope'!$C102=\"\",\"\",'TRM Data'!$U$3)","v":""},{"$f":"IF('Project Scope'!$C102=\"\",\"\",'TRM Data'!$V$3)","v":""},{"$f":"IF('Project Scope'!$C102=\"\",\"\",IF($J102<=0,0,MAX(0,(($G102*$H102/1000)-($I102*$J102/1000))*$L102)*$U102)+($AF102/0.003412))","v":""},{"$f":"IF('Project Scope'!$C102=\"\",\"\",IF($J102<=0,0,MAX(0,(($G102*$H102/1000)-($I102*$J102/1000)))*$T102))","v":""},{"$f":"IF('Project Scope'!$C102=\"\",\"\",IF($J102<=0,0,MAX(0,(($G102*$H102/1000)-($I102*$J102/1000))*$N102)))","v":""},{"$f":"IF('Project Scope'!$C102=\"\",\"\",IF($J102<=0,0,MAX(0,(($G102*$H102/1000)-($I102*$J102/1000))*$O102)*$T102))","v":""},{"$f":"IF('Project Scope'!$C102=\"\",\"\",IF(OR($J102<=0,'Project Information'!$D$44=\"\"),0,-1*MAX(0,(($G102*$H102/1000)-($I102*$J102/1000))*$L102)*$V102*VLOOKUP('Project Information'!$D$44,'CBAT Lookups'!$A$23:$H$30,2)))","v":""},{"$f":"IF('Project Scope'!$C102=\"\",\"\",IF(OR($J102<=0,'Project Information'!$D$44=\"\"),0,-1*MAX(0,(($G102*$H102/1000)-($I102*$J102/1000))*$L102)*$V102*VLOOKUP('Project Information'!$D$44,'CBAT Lookups'!$A$23:$H$30,3)))","v":""},{"$f":"IF('Project Scope'!$C102=\"\",\"\",IF(OR($J102<=0,'Project Information'!$D$44=\"\"),0,-1*MAX(0,(($G102*$H102/1000)-($I102*$J102/1000))*$L102)*$V102*VLOOKUP('Project Information'!$D$44,'CBAT Lookups'!$A$23:$H$30,4)))","v":""},{"$f":"IF('Project Scope'!$C102=\"\",\"\",IF(OR($J102<=0,'Project Information'!$D$44=\"\"),0,-1*MAX(0,(($G102*$H102/1000)-($I102*$J102/1000))*$L102)*$V102*VLOOKUP('Project Information'!$D$44,'CBAT Lookups'!$A$23:$H$30,5)))","v":""},{"$f":"IF('Project Scope'!$C102=\"\",\"\",IF(OR($J102<=0,'Project Information'!$D$44=\"\"),0,-1*MAX(0,(($G102*$H102/1000)-($I102*$J102/1000))*$L102)*$V102*VLOOKUP('Project Information'!$D$44,'CBAT Lookups'!$A$23:$H$30,6)))","v":""},{"$f":"IF('Project Scope'!$C102=\"\",\"\",IF(OR($J102<=0,'Project Information'!$D$44=\"\"),0,-1*MAX(0,(($G102*$H102/1000)-($I102*$J102/1000))*$L102)*$V102*VLOOKUP('Project Information'!$D$44,'CBAT Lookups'!$A$23:$H$30,7)))","v":""},{"$f":"IF('Project Scope'!$C102=\"\",\"\",IF(OR($J102<=0,'Project Information'!$D$44=\"\"),0,-1*MAX(0,(($G102*$H102/1000)-($I102*$J102/1000))*$L102)*$V102*VLOOKUP('Project Information'!$D$44,'CBAT Lookups'!$A$23:$H$30,8)))","v":""},null,{"$f":"IF('Project Scope'!$C102=\"\",\"\",VLOOKUP($F102,'CBAT Lookups'!$B$17:$K$19,4))","v":""},{"$f":"IF('Project Scope'!$C102=\"\",\"\",VLOOKUP($F102,'CBAT Lookups'!$B$17:$K$19,5))","v":""},{"$f":"IF('Project Scope'!$C102=\"\",\"\",VLOOKUP($F102,'CBAT Lookups'!$B$17:$K$19,6))","v":""},{"$f":"IF('Project Scope'!$C102=\"\",\"\",VLOOKUP($F102,'CBAT Lookups'!$B$17:$K$19,7))","v":""},{"$f":"IF('Project Scope'!$C102=\"\",\"\",IF(SUMPRODUCT($P102:$S102,$AN102:$AQ102)=0,0,P102*AN102/SUMPRODUCT($P102:$S102,$AN102:$AQ102)))","v":""},{"$f":"IF('Project Scope'!$C102=\"\",\"\",IF(SUMPRODUCT($P102:$S102,$AN102:$AQ102)=0,0,Q102*AO102/SUMPRODUCT($P102:$S102,$AN102:$AQ102)))","v":""},{"$f":"IF('Project Scope'!$C102=\"\",\"\",IF(SUMPRODUCT($P102:$S102,$AN102:$AQ102)=0,0,R102*AP102/SUMPRODUCT($P102:$S102,$AN102:$AQ102)))","v":""},{"$f":"IF('Project Scope'!$C102=\"\",\"\",IF(SUMPRODUCT($P102:$S102,$AN102:$AQ102)=0,0,S102*AQ102/SUMPRODUCT($P102:$S102,$AN102:$AQ102)))","v":""},{"$f":"IF('Project Scope'!$C102=\"\",\"\",Benefits($AB102,$AD102,$AE102,$AG102,$AH102,$AI102,$AJ102,$AK102,$AL102,$AM102,$M102,$AR102,$AS102,$AT102,$AU102,$W102,$X102,$Y102,$Z102,$AA102,$E102))","v":""},"","","","","","","","",null,{"$f":"IF('Project Scope'!$C102=\"\",\"\",SUM('Project Scope'!$AT102,'Project Scope'!$AU102))","v":""},{"$f":"IF('Project Scope'!$C102=\"\",\"\",SUM('Project Scope'!$BG102, 'Project Scope'!$AR102,(IF(ISNUMBER('Project Scope'!$AS102),'Project Scope'!$AS102,0)*'Project Information'!$D$12)))","v":""},null,null,{"$f":"IF('Project Scope'!$C102=\"\",\"\",IF(COUNTIF('CBAT Lookups'!$B$5:$B$12,\"Controls-\"&CBAT!$D102)=1,VLOOKUP(\"Controls-\"&CBAT!$D102,'CBAT Lookups'!$B$5:$L$12,11),0))","v":""},{"$f":"IF('Project Scope'!$C102=\"\",\"\",IF(COUNTIF('CBAT Lookups'!$B$5:$B$12,\"Controls-\"&CBAT!$D102)=1,VLOOKUP(\"Controls-\"&CBAT!$D102,'CBAT Lookups'!$B$5:$K$12,2),0)*VLOOKUP($F102,'CBAT Lookups'!$B$17:$K$19,2))","v":""},{"$f":"IF('Project Scope'!$C102=\"\",\"\",IF(COUNTIF('CBAT Lookups'!$B$5:$B$12,\"Controls-\"&CBAT!$D102)=1,VLOOKUP(\"Controls-\"&CBAT!$D102,'CBAT Lookups'!$B$5:$K$12,3),0)*VLOOKUP($F102,'CBAT Lookups'!$B$17:$K$19,3))","v":""},{"$f":"IF('Project Scope'!$C102=\"\",\"\",IF(COUNTIF('CBAT Lookups'!$B$5:$B$12,\"Controls-\"&CBAT!$D102)=1,VLOOKUP(\"Controls-\"&CBAT!$D102,'CBAT Lookups'!$B$5:$K$12,4),0))","v":""},{"$f":"IF('Project Scope'!$C102=\"\",\"\",IF(COUNTIF('CBAT Lookups'!$B$5:$B$12,\"Controls-\"&CBAT!$D102)=1,VLOOKUP(\"Controls-\"&CBAT!$D102,'CBAT Lookups'!$B$5:$K$12,5),0))","v":""},{"$f":"IF('Project Scope'!$C102=\"\",\"\",IF(COUNTIF('CBAT Lookups'!$B$5:$B$12,\"Controls-\"&CBAT!$D102)=1,VLOOKUP(\"Controls-\"&CBAT!$D102,'CBAT Lookups'!$B$5:$K$12,6),0))","v":""},{"$f":"IF('Project Scope'!$C102=\"\",\"\",IF(COUNTIF('CBAT Lookups'!$B$5:$B$12,\"Controls-\"&CBAT!$D102)=1,VLOOKUP(\"Controls-\"&CBAT!$D102,'CBAT Lookups'!$B$5:$K$12,7),0))","v":""},{"$f":"IF('Project Scope'!$C102=\"\",\"\",IF(VLOOKUP($F102,'CBAT Lookups'!$B$17:$K$19,8)=\"W\",1,IF(COUNTIF('CBAT Lookups'!$B$5:$B$12,\"Controls-\"&CBAT!$D102)=1,VLOOKUP(\"Controls-\"&CBAT!$D102,'CBAT Lookups'!$B$5:$K$12,8),0)*VLOOKUP($F102,'CBAT Lookups'!$B$17:$K$19,8)))","v":""},{"$f":"IF('Project Scope'!$C102=\"\",\"\",IF(VLOOKUP($F102,'CBAT Lookups'!$B$17:$K$19,9)=\"W\",1,IF(COUNTIF('CBAT Lookups'!$B$5:$B$12,\"Controls-\"&CBAT!$D102)=1,VLOOKUP(\"Controls-\"&CBAT!$D102,'CBAT Lookups'!$B$5:$K$12,9),0)*VLOOKUP($F102,'CBAT Lookups'!$B$17:$K$19,9)))","v":""},{"$f":"IF('Project Scope'!$C102=\"\",\"\",IF(COUNTIF('CBAT Lookups'!$B$5:$B$12,\"Controls-\"&CBAT!$D102)=1,VLOOKUP(\"Controls-\"&CBAT!$D102,'CBAT Lookups'!$B$5:$K$12,10),0)*VLOOKUP($F102,'CBAT Lookups'!$B$17:$K$19,10))","v":""},{"$f":"IF('Project Scope'!$C102=\"\",\"\",VLOOKUP($C102,'CBAT Lookups'!$A$33:$B$57,2))","v":""},{"$f":"IF('Project Scope'!$C102=\"\",\"\",IF(COUNTIF('CBAT Lookups'!$B$5:$B$12,\"Controls-\"&CBAT!$D102)=1,VLOOKUP(\"Controls-\"&CBAT!$D102,'CBAT Lookups'!$B$5:$O$12,12),0))","v":""},{"$f":"IF('Project Scope'!$C102=\"\",\"\",IF(COUNTIF('CBAT Lookups'!$B$5:$B$12,\"Controls-\"&CBAT!$D102)=1,VLOOKUP(\"Controls-\"&CBAT!$D102,'CBAT Lookups'!$B$5:$O$12,13),0))","v":""},{"$f":"IF('Project Scope'!$C102=\"\",\"\",IF(COUNTIF('CBAT Lookups'!$B$5:$B$12,\"Controls-\"&CBAT!$D102)=1,VLOOKUP(\"Controls-\"&CBAT!$D102,'CBAT Lookups'!$B$5:$O$12,14),0))","v":""},{"$f":"IF('Project Scope'!$C102=\"\",\"\",'TRM Data'!$U$3)","v":""},{"$f":"IF('Project Scope'!$C102=\"\",\"\",'TRM Data'!$V$3)","v":""},{"$f":"IF('Project Scope'!$C102=\"\",\"\",IF($K102<=0,0,MAX(0,(IF(AND($I102>0,$J102>0),($I102*$J102)/1000,($G102*$H102)/1000)*$L102))*$BT102*$BR102)+($CD102/0.003412))","v":""},{"$f":"IF('Project Scope'!$C102=\"\",\"\",IF($K102<=0,0,MAX(0,IF(AND($I102>0,$J102>0),($I102*$J102)/1000,($G102*$H102)/1000))*$BQ102))","v":""},{"$f":"IF('Project Scope'!$C102=\"\",\"\",IF($K102<=0,0,MAX(0,IF(AND($I102>0,$J102>0),($I102*$J102)/1000,($G102*$H102)/1000))*$BK102))","v":""},{"$f":"IF('Project Scope'!$C102=\"\",\"\",IF($K102<=0,0,MAX(0,IF(AND($I102>0,$J102>0),($I102*$J102)/1000,($G102*$H102)/1000))*$BL102*$BQ102))","v":""},{"$f":"IF('Project Scope'!$C102=\"\",\"\",IF(OR($K102<=0,'Project Information'!$D$44=\"\"),0,-1*MAX(0,IF(AND($I102>0,$J102>0),($I102*$J102)/1000,($G102*$H102)/1000))*$BT102*$L102*$BS102*VLOOKUP('Project Information'!$D$44,'CBAT Lookups'!$A$23:$H$30,2)))","v":""},{"$f":"IF('Project Scope'!$C102=\"\",\"\",IF(OR($K102<=0,'Project Information'!$D$44=\"\"),0,-1*MAX(0,IF(AND($I102>0,$J102>0),($I102*$J102)/1000,($G102*$H102)/1000))*$BT102*$L102*$BS102*VLOOKUP('Project Information'!$D$44,'CBAT Lookups'!$A$23:$H$30,3)))","v":""},{"$f":"IF('Project Scope'!$C102=\"\",\"\",IF(OR($K102<=0,'Project Information'!$D$44=\"\"),0,-1*MAX(0,IF(AND($I102>0,$J102>0),($I102*$J102)/1000,($G102*$H102)/1000))*$BT102*$L102*$BS102*VLOOKUP('Project Information'!$D$44,'CBAT Lookups'!$A$23:$H$30,4)))","v":""},{"$f":"IF('Project Scope'!$C102=\"\",\"\",IF(OR($K102<=0,'Project Information'!$D$44=\"\"),0,-1*MAX(0,IF(AND($I102>0,$J102>0),($I102*$J102)/1000,($G102*$H102)/1000))*$BT102*$L102*$BS102*VLOOKUP('Project Information'!$D$44,'CBAT Lookups'!$A$23:$H$30,5)))","v":""},{"$f":"IF('Project Scope'!$C102=\"\",\"\",IF(OR($K102<=0,'Project Information'!$D$44=\"\"),0,-1*MAX(0,IF(AND($I102>0,$J102>0),($I102*$J102)/1000,($G102*$H102)/1000))*$BT102*$L102*$BS102*VLOOKUP('Project Information'!$D$44,'CBAT Lookups'!$A$23:$H$30,6)))","v":""},{"$f":"IF('Project Scope'!$C102=\"\",\"\",IF(OR($K102<=0,'Project Information'!$D$44=\"\"),0,-1*MAX(0,IF(AND($I102>0,$J102>0),($I102*$J102)/1000,($G102*$H102)/1000))*$BT102*$L102*$BS102*VLOOKUP('Project Information'!$D$44,'CBAT Lookups'!$A$23:$H$30,7)))","v":""},{"$f":"IF('Project Scope'!$C102=\"\",\"\",IF(OR($K102<=0,'Project Information'!$D$44=\"\"),0,-1*MAX(0,IF(AND($I102>0,$J102>0),($I102*$J102)/1000,($G102*$H102)/1000))*$BT102*$L102*$BS102*VLOOKUP('Project Information'!$D$44,'CBAT Lookups'!$A$23:$H$30,8)))","v":""},null,{"$f":"IF('Project Scope'!$C102=\"\",\"\",VLOOKUP($F102,'CBAT Lookups'!$B$17:$K$19,4))","v":""},{"$f":"IF('Project Scope'!$C102=\"\",\"\",VLOOKUP($F102,'CBAT Lookups'!$B$17:$K$19,5))","v":""},{"$f":"IF('Project Scope'!$C102=\"\",\"\",VLOOKUP($F102,'CBAT Lookups'!$B$17:$K$19,6))","v":""},{"$f":"IF('Project Scope'!$C102=\"\",\"\",VLOOKUP($F102,'CBAT Lookups'!$B$17:$K$19,7))","v":""},{"$f":"IF('Project Scope'!$C102=\"\",\"\",IF(SUMPRODUCT($BM102:$BP102,$CL102:$CO102)=0,0,BM102*CL102/SUMPRODUCT($BM102:$BP102,$CL102:$CO102)))","v":""},{"$f":"IF('Project Scope'!$C102=\"\",\"\",IF(SUMPRODUCT($BM102:$BP102,$CL102:$CO102)=0,0,BN102*CM102/SUMPRODUCT($BM102:$BP102,$CL102:$CO102)))","v":""},{"$f":"IF('Project Scope'!$C102=\"\",\"\",IF(SUMPRODUCT($BM102:$BP102,$CL102:$CO102)=0,0,BO102*CN102/SUMPRODUCT($BM102:$BP102,$CL102:$CO102)))","v":""},{"$f":"IF('Project Scope'!$C102=\"\",\"\",IF(SUMPRODUCT($BM102:$BP102,$CL102:$CO102)=0,0,BP102*CO102/SUMPRODUCT($BM102:$BP102,$CL102:$CO102)))","v":""},{"$f":"IF('Project Scope'!$C102=\"\",\"\",Benefits($BZ102,$CB102,$CC102,$CE102,$CF102,$CG102,$CH102,$CI102,$CJ102,$CK102,$BJ102,$CP102,$CQ102,$CR102,$CS102,$BU102,$BV102,$BW102,$BX102,$BY102,$E102))","v":""},"","","","","","","","",null,{"$f":"IF('Project Scope'!$C102=\"\",\"\",SUM('Project Scope'!$BB102,'Project Scope'!$BC102))","v":""},{"$f":"IF('Project Scope'!$C102=\"\",\"\",SUM('Project Scope'!$BH102, 'Project Scope'!$AZ102,(IF(ISNUMBER('Project Scope'!$BA102),'Project Scope'!$BA102,0)*'Project Information'!$D$12)))","v":""},null,null,{"$f":"IF('Project Scope'!$C102=\"\",\"\",IF($J102<=0,0,(SUMPRODUCT($AV102:$BC102,--($AV102:$BC102>0))+$BE102)*$DK102/((-SUMPRODUCT($AV102:$BC102,--($AV102:$BC102<0))+$BG102+$BH102+$BI102)*$DK102)))","v":""},{"$f":"IF('Project Scope'!$C102=\"\",\"\",IF($K102<=0,0,(SUMPRODUCT($CT102:$DA102,--($CT102:$DA102>0))+$DC102)*$DK102/((-SUMPRODUCT($CT102:$DA102,--($CT102:$DA102<0))+$DE102+$DF102+$DG102)*$DK102)))","v":""},{"$f":"IF('Project Scope'!$C102=\"\",\"\",IF(AND($J102<=0,$K102<=0),0,(SUMPRODUCT($AV102:$BC102,--($AV102:$BC102>0))+$BE102+SUMPRODUCT($CT102:$DA102,--($CT102:$DA102>0))+$DC102)*$DK102/((-SUMPRODUCT($AV102:$BC102,--($AV102:$BC102<0))+$BG102+$BH102+$BI102-SUMPRODUCT($CT102:$DA102,--($CT102:$DA102<0))+$DE102+$DF102+$DG102)*$DK102)))","v":""},{"$f":"IF('Project Scope'!$C102=\"\",\"\",IF(NetOrGross=\"Net\",(1-Z102+AA102),1))","v":""}]
[{"$f":"'Project Scope'!$B103","v":96},{"$f":"IF('Project Scope'!$C103=\"\",\"\",'Project Scope'!$C103)","v":""},{"$f":"IF('Project Scope'!$C103=\"\",\"\",'Project Scope'!$H103)","v":""},{"$f":"IF(ISNUMBER(SEARCH(\"Bay\",'Project Scope'!$Q103)),\"Bay\",IF('Project Scope'!C103=\"\",\"\",'Project Scope'!E103))","v":""},{"$f":"IF('Project Scope'!$C103=\"\",\"\",\"Com\")","v":""},{"$f":"IF('Project Scope'!$C103=\"\",\"\",'Project Scope'!$L103)","v":""},{"$f":"IF('Project Scope'!$C103=\"\",\"\",IF('Project Scope'!$CJ103=\"\",0,'Project Scope'!$CJ103))","v":""},{"$f":"IF('Project Scope'!$C103=\"\",\"\",IF('Project Scope'!$N103=\"\",0,'Project Scope'!$N103))","v":""},{"$f":"IF('Project Scope'!$C103=\"\",\"\",IF('Project Scope'!$CK103=\"\",0,'Project Scope'!$CK103))","v":""},{"$f":"IF('Project Scope'!$C103=\"\",\"\",IF('Project Scope'!$AO103=\"\",0,'Project Scope'!$AO103))","v":""},{"$f":"IF('Project Scope'!$C103=\"\",\"\",IF('Project Scope'!$AX103=\"\",0,'Project Scope'!$AX103))","v":""},{"$f":"IF('Project Scope'!$C103=\"\",\"\",IF('Project Scope'!$M103=\"\",0,'Project Scope'!$M103))","v":""},{"$f":"IF('Project Scope'!$C103=\"\",\"\",IF(COUNTIF('CBAT Lookups'!$B$5:$B$12,\"Fixtures-\"&CBAT!$D103)=1,VLOOKUP(\"Fixtures-\"&CBAT!$D103,'CBAT Lookups'!$B$5:$L$12,11),0))","v":""},{"$f":"IF('Project Scope'!$C103=\"\",\"\",(IF(COUNTIF('CBAT Lookups'!$B$5:$B$12,\"Fixtures-\"&CBAT!$D103)=1,VLOOKUP(\"Fixtures-\"&CBAT!$D103,'CBAT Lookups'!$B$5:$K$12,2),0))*VLOOKUP($F103,'CBAT Lookups'!$B$17:$K$19,2))","v":""},{"$f":"IF('Project Scope'!$C103=\"\",\"\",(IF(COUNTIF('CBAT Lookups'!$B$5:$B$12,\"Fixtures-\"&CBAT!$D103)=1,VLOOKUP(\"Fixtures-\"&CBAT!$D103,'CBAT Lookups'!$B$5:$K$12,3),0))*VLOOKUP($F103,'CBAT Lookups'!$B$17:$K$19,3))","v":""},{"$f":"IF('Project Scope'!$C103=\"\",\"\",(IF(COUNTIF('CBAT Lookups'!$B$5:$B$12,\"Fixtures-\"&CBAT!$D103)=1,VLOOKUP(\"Fixtures-\"&CBAT!$D103,'CBAT Lookups'!$B$5:$K$12,4),0)))","v":""},{"$f":"IF('Project Scope'!$C103=\"\",\"\",(IF(COUNTIF('CBAT Lookups'!$B$5:$B$12,\"Fixtures-\"&CBAT!$D103)=1,VLOOKUP(\"Fixtures-\"&CBAT!$D103,'CBAT Lookups'!$B$5:$K$12,5),0)))","v":""},{"$f":"IF('Project Scope'!$C103=\"\",\"\",(IF(COUNTIF('CBAT Lookups'!$B$5:$B$12,\"Fixtures-\"&CBAT!$D103)=1,VLOOKUP(\"Fixtures-\"&CBAT!$D103,'CBAT Lookups'!$B$5:$K$12,6),0)))","v":""},{"$f":"IF('Project Scope'!$C103=\"\",\"\",IF(COUNTIF('CBAT Lookups'!$B$5:$B$12,\"Fixtures-\"&CBAT!$D103)=1,VLOOKUP(\"Fixtures-\"&CBAT!$D103,'CBAT Lookups'!$B$5:$K$12,7),0))","v":""},{"$f":"IF('Project Scope'!$C103=\"\",\"\",IF(VLOOKUP($F103,'CBAT Lookups'!$B$17:$K$19,8)=\"W\",1,IF(COUNTIF('CBAT Lookups'!$B$5:$B$12,\"Fixtures-\"&CBAT!$D103)=1,VLOOKUP(\"Fixtures-\"&CBAT!$D103,'CBAT Lookups'!$B$5:$K$12,8),0)*VLOOKUP($F103,'CBAT Lookups'!$B$17:$K$19,8)))","v":""},{"$f":"IF('Project Scope'!$C103=\"\",\"\",IF(VLOOKUP($F103,'CBAT Lookups'!$B$17:$K$19,9)=\"W\",1,IF(COUNTIF('CBAT Lookups'!$B$5:$B$12,\"Fixtures-\"&CBAT!$D103)=1,VLOOKUP(\"Fixtures-\"&CBAT!$D103,'CBAT Lookups'!$B$5:$K$12,9),0)*VLOOKUP($F103,'CBAT Lookups'!$B$17:$K$19,9)))","v":""},{"$f":"IF('Project Scope'!$C103=\"\",\"\",IF(COUNTIF('CBAT Lookups'!$B$5:$B$12,\"Fixtures-\"&CBAT!$D103)=1,VLOOKUP(\"Fixtures-\"&CBAT!$D103,'CBAT Lookups'!$B$5:$K$12,10),0)*VLOOKUP($F103,'CBAT Lookups'!$B$17:$K$19,10))","v":""},{"$f":"IF('Project Scope'!$C103=\"\",\"\",IF(COUNTIF('CBAT Lookups'!$B$5:$B$12,\"Fixtures-\"&CBAT!$D103)=1,VLOOKUP(\"Fixtures-\"&CBAT!$D103,'CBAT Lookups'!$B$5:$O$12,12),0))","v":""},{"$f":"IF('Project Scope'!$C103=\"\",\"\",IF(COUNTIF('CBAT Lookups'!$B$5:$B$12,\"Fixtures-\"&CBAT!$D103)=1,VLOOKUP(\"Fixtures-\"&CBAT!$D103,'CBAT Lookups'!$B$5:$O$12,13),0))","v":""},{"$f":"IF('Project Scope'!$C103=\"\",\"\",IF(COUNTIF('CBAT Lookups'!$B$5:$B$12,\"Fixtures-\"&CBAT!$D103)=1,VLOOKUP(\"Fixtures-\"&CBAT!$D103,'CBAT Lookups'!$B$5:$O$12,14),0))","v":""},{"$f":"IF('Project Scope'!$C103=\"\",\"\",'TRM Data'!$U$3)","v":""},{"$f":"IF('Project Scope'!$C103=\"\",\"\",'TRM Data'!$V$3)","v":""},{"$f":"IF('Project Scope'!$C103=\"\",\"\",IF($J103<=0,0,MAX(0,(($G103*$H103/1000)-($I103*$J103/1000))*$L103)*$U103)+($AF103/0.003412))","v":""},{"$f":"IF('Project Scope'!$C103=\"\",\"\",IF($J103<=0,0,MAX(0,(($G103*$H103/1000)-($I103*$J103/1000)))*$T103))","v":""},{"$f":"IF('Project Scope'!$C103=\"\",\"\",IF($J103<=0,0,MAX(0,(($G103*$H103/1000)-($I103*$J103/1000))*$N103)))","v":""},{"$f":"IF('Project Scope'!$C103=\"\",\"\",IF($J103<=0,0,MAX(0,(($G103*$H103/1000)-($I103*$J103/1000))*$O103)*$T103))","v":""},{"$f":"IF('Project Scope'!$C103=\"\",\"\",IF(OR($J103<=0,'Project Information'!$D$44=\"\"),0,-1*MAX(0,(($G103*$H103/1000)-($I103*$J103/1000))*$L103)*$V103*VLOOKUP('Project Information'!$D$44,'CBAT Lookups'!$A$23:$H$30,2)))","v":""},{"$f":"IF('Project Scope'!$C103=\"\",\"\",IF(OR($J103<=0,'Project Information'!$D$44=\"\"),0,-1*MAX(0,(($G103*$H103/1000)-($I103*$J103/1000))*$L103)*$V103*VLOOKUP('Project Information'!$D$44,'CBAT Lookups'!$A$23:$H$30,3)))","v":""},{"$f":"IF('Project Scope'!$C103=\"\",\"\",IF(OR($J103<=0,'Project Information'!$D$44=\"\"),0,-1*MAX(0,(($G103*$H103/1000)-($I103*$J103/1000))*$L103)*$V103*VLOOKUP('Project Information'!$D$44,'CBAT Lookups'!$A$23:$H$30,4)))","v":""},{"$f":"IF('Project Scope'!$C103=\"\",\"\",IF(OR($J103<=0,'Project Information'!$D$44=\"\"),0,-1*MAX(0,(($G103*$H103/1000)-($I103*$J103/1000))*$L103)*$V103*VLOOKUP('Project Information'!$D$44,'CBAT Lookups'!$A$23:$H$30,5)))","v":""},{"$f":"IF('Project Scope'!$C103=\"\",\"\",IF(OR($J103<=0,'Project Information'!$D$44=\"\"),0,-1*MAX(0,(($G103*$H103/1000)-($I103*$J103/1000))*$L103)*$V103*VLOOKUP('Project Information'!$D$44,'CBAT Lookups'!$A$23:$H$30,6)))","v":""},{"$f":"IF('Project Scope'!$C103=\"\",\"\",IF(OR($J103<=0,'Project Information'!$D$44=\"\"),0,-1*MAX(0,(($G103*$H103/1000)-($I103*$J103/1000))*$L103)*$V103*VLOOKUP('Project Information'!$D$44,'CBAT Lookups'!$A$23:$H$30,7)))","v":""},{"$f":"IF('Project Scope'!$C103=\"\",\"\",IF(OR($J103<=0,'Project Information'!$D$44=\"\"),0,-1*MAX(0,(($G103*$H103/1000)-($I103*$J103/1000))*$L103)*$V103*VLOOKUP('Project Information'!$D$44,'CBAT Lookups'!$A$23:$H$30,8)))","v":""},null,{"$f":"IF('Project Scope'!$C103=\"\",\"\",VLOOKUP($F103,'CBAT Lookups'!$B$17:$K$19,4))","v":""},{"$f":"IF('Project Scope'!$C103=\"\",\"\",VLOOKUP($F103,'CBAT Lookups'!$B$17:$K$19,5))","v":""},{"$f":"IF('Project Scope'!$C103=\"\",\"\",VLOOKUP($F103,'CBAT Lookups'!$B$17:$K$19,6))","v":""},{"$f":"IF('Project Scope'!$C103=\"\",\"\",VLOOKUP($F103,'CBAT Lookups'!$B$17:$K$19,7))","v":""},{"$f":"IF('Project Scope'!$C103=\"\",\"\",IF(SUMPRODUCT($P103:$S103,$AN103:$AQ103)=0,0,P103*AN103/SUMPRODUCT($P103:$S103,$AN103:$AQ103)))","v":""},{"$f":"IF('Project Scope'!$C103=\"\",\"\",IF(SUMPRODUCT($P103:$S103,$AN103:$AQ103)=0,0,Q103*AO103/SUMPRODUCT($P103:$S103,$AN103:$AQ103)))","v":""},{"$f":"IF('Project Scope'!$C103=\"\",\"\",IF(SUMPRODUCT($P103:$S103,$AN103:$AQ103)=0,0,R103*AP103/SUMPRODUCT($P103:$S103,$AN103:$AQ103)))","v":""},{"$f":"IF('Project Scope'!$C103=\"\",\"\",IF(SUMPRODUCT($P103:$S103,$AN103:$AQ103)=0,0,S103*AQ103/SUMPRODUCT($P103:$S103,$AN103:$AQ103)))","v":""},{"$f":"IF('Project Scope'!$C103=\"\",\"\",Benefits($AB103,$AD103,$AE103,$AG103,$AH103,$AI103,$AJ103,$AK103,$AL103,$AM103,$M103,$AR103,$AS103,$AT103,$AU103,$W103,$X103,$Y103,$Z103,$AA103,$E103))","v":""},"","","","","","","","",null,{"$f":"IF('Project Scope'!$C103=\"\",\"\",SUM('Project Scope'!$AT103,'Project Scope'!$AU103))","v":""},{"$f":"IF('Project Scope'!$C103=\"\",\"\",SUM('Project Scope'!$BG103, 'Project Scope'!$AR103,(IF(ISNUMBER('Project Scope'!$AS103),'Project Scope'!$AS103,0)*'Project Information'!$D$12)))","v":""},null,null,{"$f":"IF('Project Scope'!$C103=\"\",\"\",IF(COUNTIF('CBAT Lookups'!$B$5:$B$12,\"Controls-\"&CBAT!$D103)=1,VLOOKUP(\"Controls-\"&CBAT!$D103,'CBAT Lookups'!$B$5:$L$12,11),0))","v":""},{"$f":"IF('Project Scope'!$C103=\"\",\"\",IF(COUNTIF('CBAT Lookups'!$B$5:$B$12,\"Controls-\"&CBAT!$D103)=1,VLOOKUP(\"Controls-\"&CBAT!$D103,'CBAT Lookups'!$B$5:$K$12,2),0)*VLOOKUP($F103,'CBAT Lookups'!$B$17:$K$19,2))","v":""},{"$f":"IF('Project Scope'!$C103=\"\",\"\",IF(COUNTIF('CBAT Lookups'!$B$5:$B$12,\"Controls-\"&CBAT!$D103)=1,VLOOKUP(\"Controls-\"&CBAT!$D103,'CBAT Lookups'!$B$5:$K$12,3),0)*VLOOKUP($F103,'CBAT Lookups'!$B$17:$K$19,3))","v":""},{"$f":"IF('Project Scope'!$C103=\"\",\"\",IF(COUNTIF('CBAT Lookups'!$B$5:$B$12,\"Controls-\"&CBAT!$D103)=1,VLOOKUP(\"Controls-\"&CBAT!$D103,'CBAT Lookups'!$B$5:$K$12,4),0))","v":""},{"$f":"IF('Project Scope'!$C103=\"\",\"\",IF(COUNTIF('CBAT Lookups'!$B$5:$B$12,\"Controls-\"&CBAT!$D103)=1,VLOOKUP(\"Controls-\"&CBAT!$D103,'CBAT Lookups'!$B$5:$K$12,5),0))","v":""},{"$f":"IF('Project Scope'!$C103=\"\",\"\",IF(COUNTIF('CBAT Lookups'!$B$5:$B$12,\"Controls-\"&CBAT!$D103)=1,VLOOKUP(\"Controls-\"&CBAT!$D103,'CBAT Lookups'!$B$5:$K$12,6),0))","v":""},{"$f":"IF('Project Scope'!$C103=\"\",\"\",IF(COUNTIF('CBAT Lookups'!$B$5:$B$12,\"Controls-\"&CBAT!$D103)=1,VLOOKUP(\"Controls-\"&CBAT!$D103,'CBAT Lookups'!$B$5:$K$12,7),0))","v":""},{"$f":"IF('Project Scope'!$C103=\"\",\"\",IF(VLOOKUP($F103,'CBAT Lookups'!$B$17:$K$19,8)=\"W\",1,IF(COUNTIF('CBAT Lookups'!$B$5:$B$12,\"Controls-\"&CBAT!$D103)=1,VLOOKUP(\"Controls-\"&CBAT!$D103,'CBAT Lookups'!$B$5:$K$12,8),0)*VLOOKUP($F103,'CBAT Lookups'!$B$17:$K$19,8)))","v":""},{"$f":"IF('Project Scope'!$C103=\"\",\"\",IF(VLOOKUP($F103,'CBAT Lookups'!$B$17:$K$19,9)=\"W\",1,IF(COUNTIF('CBAT Lookups'!$B$5:$B$12,\"Controls-\"&CBAT!$D103)=1,VLOOKUP(\"Controls-\"&CBAT!$D103,'CBAT Lookups'!$B$5:$K$12,9),0)*VLOOKUP($F103,'CBAT Lookups'!$B$17:$K$19,9)))","v":""},{"$f":"IF('Project Scope'!$C103=\"\",\"\",IF(COUNTIF('CBAT Lookups'!$B$5:$B$12,\"Controls-\"&CBAT!$D103)=1,VLOOKUP(\"Controls-\"&CBAT!$D103,'CBAT Lookups'!$B$5:$K$12,10),0)*VLOOKUP($F103,'CBAT Lookups'!$B$17:$K$19,10))","v":""},{"$f":"IF('Project Scope'!$C103=\"\",\"\",VLOOKUP($C103,'CBAT Lookups'!$A$33:$B$57,2))","v":""},{"$f":"IF('Project Scope'!$C103=\"\",\"\",IF(COUNTIF('CBAT Lookups'!$B$5:$B$12,\"Controls-\"&CBAT!$D103)=1,VLOOKUP(\"Controls-\"&CBAT!$D103,'CBAT Lookups'!$B$5:$O$12,12),0))","v":""},{"$f":"IF('Project Scope'!$C103=\"\",\"\",IF(COUNTIF('CBAT Lookups'!$B$5:$B$12,\"Controls-\"&CBAT!$D103)=1,VLOOKUP(\"Controls-\"&CBAT!$D103,'CBAT Lookups'!$B$5:$O$12,13),0))","v":""},{"$f":"IF('Project Scope'!$C103=\"\",\"\",IF(COUNTIF('CBAT Lookups'!$B$5:$B$12,\"Controls-\"&CBAT!$D103)=1,VLOOKUP(\"Controls-\"&CBAT!$D103,'CBAT Lookups'!$B$5:$O$12,14),0))","v":""},{"$f":"IF('Project Scope'!$C103=\"\",\"\",'TRM Data'!$U$3)","v":""},{"$f":"IF('Project Scope'!$C103=\"\",\"\",'TRM Data'!$V$3)","v":""},{"$f":"IF('Project Scope'!$C103=\"\",\"\",IF($K103<=0,0,MAX(0,(IF(AND($I103>0,$J103>0),($I103*$J103)/1000,($G103*$H103)/1000)*$L103))*$BT103*$BR103)+($CD103/0.003412))","v":""},{"$f":"IF('Project Scope'!$C103=\"\",\"\",IF($K103<=0,0,MAX(0,IF(AND($I103>0,$J103>0),($I103*$J103)/1000,($G103*$H103)/1000))*$BQ103))","v":""},{"$f":"IF('Project Scope'!$C103=\"\",\"\",IF($K103<=0,0,MAX(0,IF(AND($I103>0,$J103>0),($I103*$J103)/1000,($G103*$H103)/1000))*$BK103))","v":""},{"$f":"IF('Project Scope'!$C103=\"\",\"\",IF($K103<=0,0,MAX(0,IF(AND($I103>0,$J103>0),($I103*$J103)/1000,($G103*$H103)/1000))*$BL103*$BQ103))","v":""},{"$f":"IF('Project Scope'!$C103=\"\",\"\",IF(OR($K103<=0,'Project Information'!$D$44=\"\"),0,-1*MAX(0,IF(AND($I103>0,$J103>0),($I103*$J103)/1000,($G103*$H103)/1000))*$BT103*$L103*$BS103*VLOOKUP('Project Information'!$D$44,'CBAT Lookups'!$A$23:$H$30,2)))","v":""},{"$f":"IF('Project Scope'!$C103=\"\",\"\",IF(OR($K103<=0,'Project Information'!$D$44=\"\"),0,-1*MAX(0,IF(AND($I103>0,$J103>0),($I103*$J103)/1000,($G103*$H103)/1000))*$BT103*$L103*$BS103*VLOOKUP('Project Information'!$D$44,'CBAT Lookups'!$A$23:$H$30,3)))","v":""},{"$f":"IF('Project Scope'!$C103=\"\",\"\",IF(OR($K103<=0,'Project Information'!$D$44=\"\"),0,-1*MAX(0,IF(AND($I103>0,$J103>0),($I103*$J103)/1000,($G103*$H103)/1000))*$BT103*$L103*$BS103*VLOOKUP('Project Information'!$D$44,'CBAT Lookups'!$A$23:$H$30,4)))","v":""},{"$f":"IF('Project Scope'!$C103=\"\",\"\",IF(OR($K103<=0,'Project Information'!$D$44=\"\"),0,-1*MAX(0,IF(AND($I103>0,$J103>0),($I103*$J103)/1000,($G103*$H103)/1000))*$BT103*$L103*$BS103*VLOOKUP('Project Information'!$D$44,'CBAT Lookups'!$A$23:$H$30,5)))","v":""},{"$f":"IF('Project Scope'!$C103=\"\",\"\",IF(OR($K103<=0,'Project Information'!$D$44=\"\"),0,-1*MAX(0,IF(AND($I103>0,$J103>0),($I103*$J103)/1000,($G103*$H103)/1000))*$BT103*$L103*$BS103*VLOOKUP('Project Information'!$D$44,'CBAT Lookups'!$A$23:$H$30,6)))","v":""},{"$f":"IF('Project Scope'!$C103=\"\",\"\",IF(OR($K103<=0,'Project Information'!$D$44=\"\"),0,-1*MAX(0,IF(AND($I103>0,$J103>0),($I103*$J103)/1000,($G103*$H103)/1000))*$BT103*$L103*$BS103*VLOOKUP('Project Information'!$D$44,'CBAT Lookups'!$A$23:$H$30,7)))","v":""},{"$f":"IF('Project Scope'!$C103=\"\",\"\",IF(OR($K103<=0,'Project Information'!$D$44=\"\"),0,-1*MAX(0,IF(AND($I103>0,$J103>0),($I103*$J103)/1000,($G103*$H103)/1000))*$BT103*$L103*$BS103*VLOOKUP('Project Information'!$D$44,'CBAT Lookups'!$A$23:$H$30,8)))","v":""},null,{"$f":"IF('Project Scope'!$C103=\"\",\"\",VLOOKUP($F103,'CBAT Lookups'!$B$17:$K$19,4))","v":""},{"$f":"IF('Project Scope'!$C103=\"\",\"\",VLOOKUP($F103,'CBAT Lookups'!$B$17:$K$19,5))","v":""},{"$f":"IF('Project Scope'!$C103=\"\",\"\",VLOOKUP($F103,'CBAT Lookups'!$B$17:$K$19,6))","v":""},{"$f":"IF('Project Scope'!$C103=\"\",\"\",VLOOKUP($F103,'CBAT Lookups'!$B$17:$K$19,7))","v":""},{"$f":"IF('Project Scope'!$C103=\"\",\"\",IF(SUMPRODUCT($BM103:$BP103,$CL103:$CO103)=0,0,BM103*CL103/SUMPRODUCT($BM103:$BP103,$CL103:$CO103)))","v":""},{"$f":"IF('Project Scope'!$C103=\"\",\"\",IF(SUMPRODUCT($BM103:$BP103,$CL103:$CO103)=0,0,BN103*CM103/SUMPRODUCT($BM103:$BP103,$CL103:$CO103)))","v":""},{"$f":"IF('Project Scope'!$C103=\"\",\"\",IF(SUMPRODUCT($BM103:$BP103,$CL103:$CO103)=0,0,BO103*CN103/SUMPRODUCT($BM103:$BP103,$CL103:$CO103)))","v":""},{"$f":"IF('Project Scope'!$C103=\"\",\"\",IF(SUMPRODUCT($BM103:$BP103,$CL103:$CO103)=0,0,BP103*CO103/SUMPRODUCT($BM103:$BP103,$CL103:$CO103)))","v":""},{"$f":"IF('Project Scope'!$C103=\"\",\"\",Benefits($BZ103,$CB103,$CC103,$CE103,$CF103,$CG103,$CH103,$CI103,$CJ103,$CK103,$BJ103,$CP103,$CQ103,$CR103,$CS103,$BU103,$BV103,$BW103,$BX103,$BY103,$E103))","v":""},"","","","","","","","",null,{"$f":"IF('Project Scope'!$C103=\"\",\"\",SUM('Project Scope'!$BB103,'Project Scope'!$BC103))","v":""},{"$f":"IF('Project Scope'!$C103=\"\",\"\",SUM('Project Scope'!$BH103, 'Project Scope'!$AZ103,(IF(ISNUMBER('Project Scope'!$BA103),'Project Scope'!$BA103,0)*'Project Information'!$D$12)))","v":""},null,null,{"$f":"IF('Project Scope'!$C103=\"\",\"\",IF($J103<=0,0,(SUMPRODUCT($AV103:$BC103,--($AV103:$BC103>0))+$BE103)*$DK103/((-SUMPRODUCT($AV103:$BC103,--($AV103:$BC103<0))+$BG103+$BH103+$BI103)*$DK103)))","v":""},{"$f":"IF('Project Scope'!$C103=\"\",\"\",IF($K103<=0,0,(SUMPRODUCT($CT103:$DA103,--($CT103:$DA103>0))+$DC103)*$DK103/((-SUMPRODUCT($CT103:$DA103,--($CT103:$DA103<0))+$DE103+$DF103+$DG103)*$DK103)))","v":""},{"$f":"IF('Project Scope'!$C103=\"\",\"\",IF(AND($J103<=0,$K103<=0),0,(SUMPRODUCT($AV103:$BC103,--($AV103:$BC103>0))+$BE103+SUMPRODUCT($CT103:$DA103,--($CT103:$DA103>0))+$DC103)*$DK103/((-SUMPRODUCT($AV103:$BC103,--($AV103:$BC103<0))+$BG103+$BH103+$BI103-SUMPRODUCT($CT103:$DA103,--($CT103:$DA103<0))+$DE103+$DF103+$DG103)*$DK103)))","v":""},{"$f":"IF('Project Scope'!$C103=\"\",\"\",IF(NetOrGross=\"Net\",(1-Z103+AA103),1))","v":""}]
[{"$f":"'Project Scope'!$B104","v":97},{"$f":"IF('Project Scope'!$C104=\"\",\"\",'Project Scope'!$C104)","v":""},{"$f":"IF('Project Scope'!$C104=\"\",\"\",'Project Scope'!$H104)","v":""},{"$f":"IF(ISNUMBER(SEARCH(\"Bay\",'Project Scope'!$Q104)),\"Bay\",IF('Project Scope'!C104=\"\",\"\",'Project Scope'!E104))","v":""},{"$f":"IF('Project Scope'!$C104=\"\",\"\",\"Com\")","v":""},{"$f":"IF('Project Scope'!$C104=\"\",\"\",'Project Scope'!$L104)","v":""},{"$f":"IF('Project Scope'!$C104=\"\",\"\",IF('Project Scope'!$CJ104=\"\",0,'Project Scope'!$CJ104))","v":""},{"$f":"IF('Project Scope'!$C104=\"\",\"\",IF('Project Scope'!$N104=\"\",0,'Project Scope'!$N104))","v":""},{"$f":"IF('Project Scope'!$C104=\"\",\"\",IF('Project Scope'!$CK104=\"\",0,'Project Scope'!$CK104))","v":""},{"$f":"IF('Project Scope'!$C104=\"\",\"\",IF('Project Scope'!$AO104=\"\",0,'Project Scope'!$AO104))","v":""},{"$f":"IF('Project Scope'!$C104=\"\",\"\",IF('Project Scope'!$AX104=\"\",0,'Project Scope'!$AX104))","v":""},{"$f":"IF('Project Scope'!$C104=\"\",\"\",IF('Project Scope'!$M104=\"\",0,'Project Scope'!$M104))","v":""},{"$f":"IF('Project Scope'!$C104=\"\",\"\",IF(COUNTIF('CBAT Lookups'!$B$5:$B$12,\"Fixtures-\"&CBAT!$D104)=1,VLOOKUP(\"Fixtures-\"&CBAT!$D104,'CBAT Lookups'!$B$5:$L$12,11),0))","v":""},{"$f":"IF('Project Scope'!$C104=\"\",\"\",(IF(COUNTIF('CBAT Lookups'!$B$5:$B$12,\"Fixtures-\"&CBAT!$D104)=1,VLOOKUP(\"Fixtures-\"&CBAT!$D104,'CBAT Lookups'!$B$5:$K$12,2),0))*VLOOKUP($F104,'CBAT Lookups'!$B$17:$K$19,2))","v":""},{"$f":"IF('Project Scope'!$C104=\"\",\"\",(IF(COUNTIF('CBAT Lookups'!$B$5:$B$12,\"Fixtures-\"&CBAT!$D104)=1,VLOOKUP(\"Fixtures-\"&CBAT!$D104,'CBAT Lookups'!$B$5:$K$12,3),0))*VLOOKUP($F104,'CBAT Lookups'!$B$17:$K$19,3))","v":""},{"$f":"IF('Project Scope'!$C104=\"\",\"\",(IF(COUNTIF('CBAT Lookups'!$B$5:$B$12,\"Fixtures-\"&CBAT!$D104)=1,VLOOKUP(\"Fixtures-\"&CBAT!$D104,'CBAT Lookups'!$B$5:$K$12,4),0)))","v":""},{"$f":"IF('Project Scope'!$C104=\"\",\"\",(IF(COUNTIF('CBAT Lookups'!$B$5:$B$12,\"Fixtures-\"&CBAT!$D104)=1,VLOOKUP(\"Fixtures-\"&CBAT!$D104,'CBAT Lookups'!$B$5:$K$12,5),0)))","v":""},{"$f":"IF('Project Scope'!$C104=\"\",\"\",(IF(COUNTIF('CBAT Lookups'!$B$5:$B$12,\"Fixtures-\"&CBAT!$D104)=1,VLOOKUP(\"Fixtures-\"&CBAT!$D104,'CBAT Lookups'!$B$5:$K$12,6),0)))","v":""},{"$f":"IF('Project Scope'!$C104=\"\",\"\",IF(COUNTIF('CBAT Lookups'!$B$5:$B$12,\"Fixtures-\"&CBAT!$D104)=1,VLOOKUP(\"Fixtures-\"&CBAT!$D104,'CBAT Lookups'!$B$5:$K$12,7),0))","v":""},{"$f":"IF('Project Scope'!$C104=\"\",\"\",IF(VLOOKUP($F104,'CBAT Lookups'!$B$17:$K$19,8)=\"W\",1,IF(COUNTIF('CBAT Lookups'!$B$5:$B$12,\"Fixtures-\"&CBAT!$D104)=1,VLOOKUP(\"Fixtures-\"&CBAT!$D104,'CBAT Lookups'!$B$5:$K$12,8),0)*VLOOKUP($F104,'CBAT Lookups'!$B$17:$K$19,8)))","v":""},{"$f":"IF('Project Scope'!$C104=\"\",\"\",IF(VLOOKUP($F104,'CBAT Lookups'!$B$17:$K$19,9)=\"W\",1,IF(COUNTIF('CBAT Lookups'!$B$5:$B$12,\"Fixtures-\"&CBAT!$D104)=1,VLOOKUP(\"Fixtures-\"&CBAT!$D104,'CBAT Lookups'!$B$5:$K$12,9),0)*VLOOKUP($F104,'CBAT Lookups'!$B$17:$K$19,9)))","v":""},{"$f":"IF('Project Scope'!$C104=\"\",\"\",IF(COUNTIF('CBAT Lookups'!$B$5:$B$12,\"Fixtures-\"&CBAT!$D104)=1,VLOOKUP(\"Fixtures-\"&CBAT!$D104,'CBAT Lookups'!$B$5:$K$12,10),0)*VLOOKUP($F104,'CBAT Lookups'!$B$17:$K$19,10))","v":""},{"$f":"IF('Project Scope'!$C104=\"\",\"\",IF(COUNTIF('CBAT Lookups'!$B$5:$B$12,\"Fixtures-\"&CBAT!$D104)=1,VLOOKUP(\"Fixtures-\"&CBAT!$D104,'CBAT Lookups'!$B$5:$O$12,12),0))","v":""},{"$f":"IF('Project Scope'!$C104=\"\",\"\",IF(COUNTIF('CBAT Lookups'!$B$5:$B$12,\"Fixtures-\"&CBAT!$D104)=1,VLOOKUP(\"Fixtures-\"&CBAT!$D104,'CBAT Lookups'!$B$5:$O$12,13),0))","v":""},{"$f":"IF('Project Scope'!$C104=\"\",\"\",IF(COUNTIF('CBAT Lookups'!$B$5:$B$12,\"Fixtures-\"&CBAT!$D104)=1,VLOOKUP(\"Fixtures-\"&CBAT!$D104,'CBAT Lookups'!$B$5:$O$12,14),0))","v":""},{"$f":"IF('Project Scope'!$C104=\"\",\"\",'TRM Data'!$U$3)","v":""},{"$f":"IF('Project Scope'!$C104=\"\",\"\",'TRM Data'!$V$3)","v":""},{"$f":"IF('Project Scope'!$C104=\"\",\"\",IF($J104<=0,0,MAX(0,(($G104*$H104/1000)-($I104*$J104/1000))*$L104)*$U104)+($AF104/0.003412))","v":""},{"$f":"IF('Project Scope'!$C104=\"\",\"\",IF($J104<=0,0,MAX(0,(($G104*$H104/1000)-($I104*$J104/1000)))*$T104))","v":""},{"$f":"IF('Project Scope'!$C104=\"\",\"\",IF($J104<=0,0,MAX(0,(($G104*$H104/1000)-($I104*$J104/1000))*$N104)))","v":""},{"$f":"IF('Project Scope'!$C104=\"\",\"\",IF($J104<=0,0,MAX(0,(($G104*$H104/1000)-($I104*$J104/1000))*$O104)*$T104))","v":""},{"$f":"IF('Project Scope'!$C104=\"\",\"\",IF(OR($J104<=0,'Project Information'!$D$44=\"\"),0,-1*MAX(0,(($G104*$H104/1000)-($I104*$J104/1000))*$L104)*$V104*VLOOKUP('Project Information'!$D$44,'CBAT Lookups'!$A$23:$H$30,2)))","v":""},{"$f":"IF('Project Scope'!$C104=\"\",\"\",IF(OR($J104<=0,'Project Information'!$D$44=\"\"),0,-1*MAX(0,(($G104*$H104/1000)-($I104*$J104/1000))*$L104)*$V104*VLOOKUP('Project Information'!$D$44,'CBAT Lookups'!$A$23:$H$30,3)))","v":""},{"$f":"IF('Project Scope'!$C104=\"\",\"\",IF(OR($J104<=0,'Project Information'!$D$44=\"\"),0,-1*MAX(0,(($G104*$H104/1000)-($I104*$J104/1000))*$L104)*$V104*VLOOKUP('Project Information'!$D$44,'CBAT Lookups'!$A$23:$H$30,4)))","v":""},{"$f":"IF('Project Scope'!$C104=\"\",\"\",IF(OR($J104<=0,'Project Information'!$D$44=\"\"),0,-1*MAX(0,(($G104*$H104/1000)-($I104*$J104/1000))*$L104)*$V104*VLOOKUP('Project Information'!$D$44,'CBAT Lookups'!$A$23:$H$30,5)))","v":""},{"$f":"IF('Project Scope'!$C104=\"\",\"\",IF(OR($J104<=0,'Project Information'!$D$44=\"\"),0,-1*MAX(0,(($G104*$H104/1000)-($I104*$J104/1000))*$L104)*$V104*VLOOKUP('Project Information'!$D$44,'CBAT Lookups'!$A$23:$H$30,6)))","v":""},{"$f":"IF('Project Scope'!$C104=\"\",\"\",IF(OR($J104<=0,'Project Information'!$D$44=\"\"),0,-1*MAX(0,(($G104*$H104/1000)-($I104*$J104/1000))*$L104)*$V104*VLOOKUP('Project Information'!$D$44,'CBAT Lookups'!$A$23:$H$30,7)))","v":""},{"$f":"IF('Project Scope'!$C104=\"\",\"\",IF(OR($J104<=0,'Project Information'!$D$44=\"\"),0,-1*MAX(0,(($G104*$H104/1000)-($I104*$J104/1000))*$L104)*$V104*VLOOKUP('Project Information'!$D$44,'CBAT Lookups'!$A$23:$H$30,8)))","v":""},null,{"$f":"IF('Project Scope'!$C104=\"\",\"\",VLOOKUP($F104,'CBAT Lookups'!$B$17:$K$19,4))","v":""},{"$f":"IF('Project Scope'!$C104=\"\",\"\",VLOOKUP($F104,'CBAT Lookups'!$B$17:$K$19,5))","v":""},{"$f":"IF('Project Scope'!$C104=\"\",\"\",VLOOKUP($F104,'CBAT Lookups'!$B$17:$K$19,6))","v":""},{"$f":"IF('Project Scope'!$C104=\"\",\"\",VLOOKUP($F104,'CBAT Lookups'!$B$17:$K$19,7))","v":""},{"$f":"IF('Project Scope'!$C104=\"\",\"\",IF(SUMPRODUCT($P104:$S104,$AN104:$AQ104)=0,0,P104*AN104/SUMPRODUCT($P104:$S104,$AN104:$AQ104)))","v":""},{"$f":"IF('Project Scope'!$C104=\"\",\"\",IF(SUMPRODUCT($P104:$S104,$AN104:$AQ104)=0,0,Q104*AO104/SUMPRODUCT($P104:$S104,$AN104:$AQ104)))","v":""},{"$f":"IF('Project Scope'!$C104=\"\",\"\",IF(SUMPRODUCT($P104:$S104,$AN104:$AQ104)=0,0,R104*AP104/SUMPRODUCT($P104:$S104,$AN104:$AQ104)))","v":""},{"$f":"IF('Project Scope'!$C104=\"\",\"\",IF(SUMPRODUCT($P104:$S104,$AN104:$AQ104)=0,0,S104*AQ104/SUMPRODUCT($P104:$S104,$AN104:$AQ104)))","v":""},{"$f":"IF('Project Scope'!$C104=\"\",\"\",Benefits($AB104,$AD104,$AE104,$AG104,$AH104,$AI104,$AJ104,$AK104,$AL104,$AM104,$M104,$AR104,$AS104,$AT104,$AU104,$W104,$X104,$Y104,$Z104,$AA104,$E104))","v":""},"","","","","","","","",null,{"$f":"IF('Project Scope'!$C104=\"\",\"\",SUM('Project Scope'!$AT104,'Project Scope'!$AU104))","v":""},{"$f":"IF('Project Scope'!$C104=\"\",\"\",SUM('Project Scope'!$BG104, 'Project Scope'!$AR104,(IF(ISNUMBER('Project Scope'!$AS104),'Project Scope'!$AS104,0)*'Project Information'!$D$12)))","v":""},null,null,{"$f":"IF('Project Scope'!$C104=\"\",\"\",IF(COUNTIF('CBAT Lookups'!$B$5:$B$12,\"Controls-\"&CBAT!$D104)=1,VLOOKUP(\"Controls-\"&CBAT!$D104,'CBAT Lookups'!$B$5:$L$12,11),0))","v":""},{"$f":"IF('Project Scope'!$C104=\"\",\"\",IF(COUNTIF('CBAT Lookups'!$B$5:$B$12,\"Controls-\"&CBAT!$D104)=1,VLOOKUP(\"Controls-\"&CBAT!$D104,'CBAT Lookups'!$B$5:$K$12,2),0)*VLOOKUP($F104,'CBAT Lookups'!$B$17:$K$19,2))","v":""},{"$f":"IF('Project Scope'!$C104=\"\",\"\",IF(COUNTIF('CBAT Lookups'!$B$5:$B$12,\"Controls-\"&CBAT!$D104)=1,VLOOKUP(\"Controls-\"&CBAT!$D104,'CBAT Lookups'!$B$5:$K$12,3),0)*VLOOKUP($F104,'CBAT Lookups'!$B$17:$K$19,3))","v":""},{"$f":"IF('Project Scope'!$C104=\"\",\"\",IF(COUNTIF('CBAT Lookups'!$B$5:$B$12,\"Controls-\"&CBAT!$D104)=1,VLOOKUP(\"Controls-\"&CBAT!$D104,'CBAT Lookups'!$B$5:$K$12,4),0))","v":""},{"$f":"IF('Project Scope'!$C104=\"\",\"\",IF(COUNTIF('CBAT Lookups'!$B$5:$B$12,\"Controls-\"&CBAT!$D104)=1,VLOOKUP(\"Controls-\"&CBAT!$D104,'CBAT Lookups'!$B$5:$K$12,5),0))","v":""},{"$f":"IF('Project Scope'!$C104=\"\",\"\",IF(COUNTIF('CBAT Lookups'!$B$5:$B$12,\"Controls-\"&CBAT!$D104)=1,VLOOKUP(\"Controls-\"&CBAT!$D104,'CBAT Lookups'!$B$5:$K$12,6),0))","v":""},{"$f":"IF('Project Scope'!$C104=\"\",\"\",IF(COUNTIF('CBAT Lookups'!$B$5:$B$12,\"Controls-\"&CBAT!$D104)=1,VLOOKUP(\"Controls-\"&CBAT!$D104,'CBAT Lookups'!$B$5:$K$12,7),0))","v":""},{"$f":"IF('Project Scope'!$C104=\"\",\"\",IF(VLOOKUP($F104,'CBAT Lookups'!$B$17:$K$19,8)=\"W\",1,IF(COUNTIF('CBAT Lookups'!$B$5:$B$12,\"Controls-\"&CBAT!$D104)=1,VLOOKUP(\"Controls-\"&CBAT!$D104,'CBAT Lookups'!$B$5:$K$12,8),0)*VLOOKUP($F104,'CBAT Lookups'!$B$17:$K$19,8)))","v":""},{"$f":"IF('Project Scope'!$C104=\"\",\"\",IF(VLOOKUP($F104,'CBAT Lookups'!$B$17:$K$19,9)=\"W\",1,IF(COUNTIF('CBAT Lookups'!$B$5:$B$12,\"Controls-\"&CBAT!$D104)=1,VLOOKUP(\"Controls-\"&CBAT!$D104,'CBAT Lookups'!$B$5:$K$12,9),0)*VLOOKUP($F104,'CBAT Lookups'!$B$17:$K$19,9)))","v":""},{"$f":"IF('Project Scope'!$C104=\"\",\"\",IF(COUNTIF('CBAT Lookups'!$B$5:$B$12,\"Controls-\"&CBAT!$D104)=1,VLOOKUP(\"Controls-\"&CBAT!$D104,'CBAT Lookups'!$B$5:$K$12,10),0)*VLOOKUP($F104,'CBAT Lookups'!$B$17:$K$19,10))","v":""},{"$f":"IF('Project Scope'!$C104=\"\",\"\",VLOOKUP($C104,'CBAT Lookups'!$A$33:$B$57,2))","v":""},{"$f":"IF('Project Scope'!$C104=\"\",\"\",IF(COUNTIF('CBAT Lookups'!$B$5:$B$12,\"Controls-\"&CBAT!$D104)=1,VLOOKUP(\"Controls-\"&CBAT!$D104,'CBAT Lookups'!$B$5:$O$12,12),0))","v":""},{"$f":"IF('Project Scope'!$C104=\"\",\"\",IF(COUNTIF('CBAT Lookups'!$B$5:$B$12,\"Controls-\"&CBAT!$D104)=1,VLOOKUP(\"Controls-\"&CBAT!$D104,'CBAT Lookups'!$B$5:$O$12,13),0))","v":""},{"$f":"IF('Project Scope'!$C104=\"\",\"\",IF(COUNTIF('CBAT Lookups'!$B$5:$B$12,\"Controls-\"&CBAT!$D104)=1,VLOOKUP(\"Controls-\"&CBAT!$D104,'CBAT Lookups'!$B$5:$O$12,14),0))","v":""},{"$f":"IF('Project Scope'!$C104=\"\",\"\",'TRM Data'!$U$3)","v":""},{"$f":"IF('Project Scope'!$C104=\"\",\"\",'TRM Data'!$V$3)","v":""},{"$f":"IF('Project Scope'!$C104=\"\",\"\",IF($K104<=0,0,MAX(0,(IF(AND($I104>0,$J104>0),($I104*$J104)/1000,($G104*$H104)/1000)*$L104))*$BT104*$BR104)+($CD104/0.003412))","v":""},{"$f":"IF('Project Scope'!$C104=\"\",\"\",IF($K104<=0,0,MAX(0,IF(AND($I104>0,$J104>0),($I104*$J104)/1000,($G104*$H104)/1000))*$BQ104))","v":""},{"$f":"IF('Project Scope'!$C104=\"\",\"\",IF($K104<=0,0,MAX(0,IF(AND($I104>0,$J104>0),($I104*$J104)/1000,($G104*$H104)/1000))*$BK104))","v":""},{"$f":"IF('Project Scope'!$C104=\"\",\"\",IF($K104<=0,0,MAX(0,IF(AND($I104>0,$J104>0),($I104*$J104)/1000,($G104*$H104)/1000))*$BL104*$BQ104))","v":""},{"$f":"IF('Project Scope'!$C104=\"\",\"\",IF(OR($K104<=0,'Project Information'!$D$44=\"\"),0,-1*MAX(0,IF(AND($I104>0,$J104>0),($I104*$J104)/1000,($G104*$H104)/1000))*$BT104*$L104*$BS104*VLOOKUP('Project Information'!$D$44,'CBAT Lookups'!$A$23:$H$30,2)))","v":""},{"$f":"IF('Project Scope'!$C104=\"\",\"\",IF(OR($K104<=0,'Project Information'!$D$44=\"\"),0,-1*MAX(0,IF(AND($I104>0,$J104>0),($I104*$J104)/1000,($G104*$H104)/1000))*$BT104*$L104*$BS104*VLOOKUP('Project Information'!$D$44,'CBAT Lookups'!$A$23:$H$30,3)))","v":""},{"$f":"IF('Project Scope'!$C104=\"\",\"\",IF(OR($K104<=0,'Project Information'!$D$44=\"\"),0,-1*MAX(0,IF(AND($I104>0,$J104>0),($I104*$J104)/1000,($G104*$H104)/1000))*$BT104*$L104*$BS104*VLOOKUP('Project Information'!$D$44,'CBAT Lookups'!$A$23:$H$30,4)))","v":""},{"$f":"IF('Project Scope'!$C104=\"\",\"\",IF(OR($K104<=0,'Project Information'!$D$44=\"\"),0,-1*MAX(0,IF(AND($I104>0,$J104>0),($I104*$J104)/1000,($G104*$H104)/1000))*$BT104*$L104*$BS104*VLOOKUP('Project Information'!$D$44,'CBAT Lookups'!$A$23:$H$30,5)))","v":""},{"$f":"IF('Project Scope'!$C104=\"\",\"\",IF(OR($K104<=0,'Project Information'!$D$44=\"\"),0,-1*MAX(0,IF(AND($I104>0,$J104>0),($I104*$J104)/1000,($G104*$H104)/1000))*$BT104*$L104*$BS104*VLOOKUP('Project Information'!$D$44,'CBAT Lookups'!$A$23:$H$30,6)))","v":""},{"$f":"IF('Project Scope'!$C104=\"\",\"\",IF(OR($K104<=0,'Project Information'!$D$44=\"\"),0,-1*MAX(0,IF(AND($I104>0,$J104>0),($I104*$J104)/1000,($G104*$H104)/1000))*$BT104*$L104*$BS104*VLOOKUP('Project Information'!$D$44,'CBAT Lookups'!$A$23:$H$30,7)))","v":""},{"$f":"IF('Project Scope'!$C104=\"\",\"\",IF(OR($K104<=0,'Project Information'!$D$44=\"\"),0,-1*MAX(0,IF(AND($I104>0,$J104>0),($I104*$J104)/1000,($G104*$H104)/1000))*$BT104*$L104*$BS104*VLOOKUP('Project Information'!$D$44,'CBAT Lookups'!$A$23:$H$30,8)))","v":""},null,{"$f":"IF('Project Scope'!$C104=\"\",\"\",VLOOKUP($F104,'CBAT Lookups'!$B$17:$K$19,4))","v":""},{"$f":"IF('Project Scope'!$C104=\"\",\"\",VLOOKUP($F104,'CBAT Lookups'!$B$17:$K$19,5))","v":""},{"$f":"IF('Project Scope'!$C104=\"\",\"\",VLOOKUP($F104,'CBAT Lookups'!$B$17:$K$19,6))","v":""},{"$f":"IF('Project Scope'!$C104=\"\",\"\",VLOOKUP($F104,'CBAT Lookups'!$B$17:$K$19,7))","v":""},{"$f":"IF('Project Scope'!$C104=\"\",\"\",IF(SUMPRODUCT($BM104:$BP104,$CL104:$CO104)=0,0,BM104*CL104/SUMPRODUCT($BM104:$BP104,$CL104:$CO104)))","v":""},{"$f":"IF('Project Scope'!$C104=\"\",\"\",IF(SUMPRODUCT($BM104:$BP104,$CL104:$CO104)=0,0,BN104*CM104/SUMPRODUCT($BM104:$BP104,$CL104:$CO104)))","v":""},{"$f":"IF('Project Scope'!$C104=\"\",\"\",IF(SUMPRODUCT($BM104:$BP104,$CL104:$CO104)=0,0,BO104*CN104/SUMPRODUCT($BM104:$BP104,$CL104:$CO104)))","v":""},{"$f":"IF('Project Scope'!$C104=\"\",\"\",IF(SUMPRODUCT($BM104:$BP104,$CL104:$CO104)=0,0,BP104*CO104/SUMPRODUCT($BM104:$BP104,$CL104:$CO104)))","v":""},{"$f":"IF('Project Scope'!$C104=\"\",\"\",Benefits($BZ104,$CB104,$CC104,$CE104,$CF104,$CG104,$CH104,$CI104,$CJ104,$CK104,$BJ104,$CP104,$CQ104,$CR104,$CS104,$BU104,$BV104,$BW104,$BX104,$BY104,$E104))","v":""},"","","","","","","","",null,{"$f":"IF('Project Scope'!$C104=\"\",\"\",SUM('Project Scope'!$BB104,'Project Scope'!$BC104))","v":""},{"$f":"IF('Project Scope'!$C104=\"\",\"\",SUM('Project Scope'!$BH104, 'Project Scope'!$AZ104,(IF(ISNUMBER('Project Scope'!$BA104),'Project Scope'!$BA104,0)*'Project Information'!$D$12)))","v":""},null,null,{"$f":"IF('Project Scope'!$C104=\"\",\"\",IF($J104<=0,0,(SUMPRODUCT($AV104:$BC104,--($AV104:$BC104>0))+$BE104)*$DK104/((-SUMPRODUCT($AV104:$BC104,--($AV104:$BC104<0))+$BG104+$BH104+$BI104)*$DK104)))","v":""},{"$f":"IF('Project Scope'!$C104=\"\",\"\",IF($K104<=0,0,(SUMPRODUCT($CT104:$DA104,--($CT104:$DA104>0))+$DC104)*$DK104/((-SUMPRODUCT($CT104:$DA104,--($CT104:$DA104<0))+$DE104+$DF104+$DG104)*$DK104)))","v":""},{"$f":"IF('Project Scope'!$C104=\"\",\"\",IF(AND($J104<=0,$K104<=0),0,(SUMPRODUCT($AV104:$BC104,--($AV104:$BC104>0))+$BE104+SUMPRODUCT($CT104:$DA104,--($CT104:$DA104>0))+$DC104)*$DK104/((-SUMPRODUCT($AV104:$BC104,--($AV104:$BC104<0))+$BG104+$BH104+$BI104-SUMPRODUCT($CT104:$DA104,--($CT104:$DA104<0))+$DE104+$DF104+$DG104)*$DK104)))","v":""},{"$f":"IF('Project Scope'!$C104=\"\",\"\",IF(NetOrGross=\"Net\",(1-Z104+AA104),1))","v":""}]
[{"$f":"'Project Scope'!$B105","v":98},{"$f":"IF('Project Scope'!$C105=\"\",\"\",'Project Scope'!$C105)","v":""},{"$f":"IF('Project Scope'!$C105=\"\",\"\",'Project Scope'!$H105)","v":""},{"$f":"IF(ISNUMBER(SEARCH(\"Bay\",'Project Scope'!$Q105)),\"Bay\",IF('Project Scope'!C105=\"\",\"\",'Project Scope'!E105))","v":""},{"$f":"IF('Project Scope'!$C105=\"\",\"\",\"Com\")","v":""},{"$f":"IF('Project Scope'!$C105=\"\",\"\",'Project Scope'!$L105)","v":""},{"$f":"IF('Project Scope'!$C105=\"\",\"\",IF('Project Scope'!$CJ105=\"\",0,'Project Scope'!$CJ105))","v":""},{"$f":"IF('Project Scope'!$C105=\"\",\"\",IF('Project Scope'!$N105=\"\",0,'Project Scope'!$N105))","v":""},{"$f":"IF('Project Scope'!$C105=\"\",\"\",IF('Project Scope'!$CK105=\"\",0,'Project Scope'!$CK105))","v":""},{"$f":"IF('Project Scope'!$C105=\"\",\"\",IF('Project Scope'!$AO105=\"\",0,'Project Scope'!$AO105))","v":""},{"$f":"IF('Project Scope'!$C105=\"\",\"\",IF('Project Scope'!$AX105=\"\",0,'Project Scope'!$AX105))","v":""},{"$f":"IF('Project Scope'!$C105=\"\",\"\",IF('Project Scope'!$M105=\"\",0,'Project Scope'!$M105))","v":""},{"$f":"IF('Project Scope'!$C105=\"\",\"\",IF(COUNTIF('CBAT Lookups'!$B$5:$B$12,\"Fixtures-\"&CBAT!$D105)=1,VLOOKUP(\"Fixtures-\"&CBAT!$D105,'CBAT Lookups'!$B$5:$L$12,11),0))","v":""},{"$f":"IF('Project Scope'!$C105=\"\",\"\",(IF(COUNTIF('CBAT Lookups'!$B$5:$B$12,\"Fixtures-\"&CBAT!$D105)=1,VLOOKUP(\"Fixtures-\"&CBAT!$D105,'CBAT Lookups'!$B$5:$K$12,2),0))*VLOOKUP($F105,'CBAT Lookups'!$B$17:$K$19,2))","v":""},{"$f":"IF('Project Scope'!$C105=\"\",\"\",(IF(COUNTIF('CBAT Lookups'!$B$5:$B$12,\"Fixtures-\"&CBAT!$D105)=1,VLOOKUP(\"Fixtures-\"&CBAT!$D105,'CBAT Lookups'!$B$5:$K$12,3),0))*VLOOKUP($F105,'CBAT Lookups'!$B$17:$K$19,3))","v":""},{"$f":"IF('Project Scope'!$C105=\"\",\"\",(IF(COUNTIF('CBAT Lookups'!$B$5:$B$12,\"Fixtures-\"&CBAT!$D105)=1,VLOOKUP(\"Fixtures-\"&CBAT!$D105,'CBAT Lookups'!$B$5:$K$12,4),0)))","v":""},{"$f":"IF('Project Scope'!$C105=\"\",\"\",(IF(COUNTIF('CBAT Lookups'!$B$5:$B$12,\"Fixtures-\"&CBAT!$D105)=1,VLOOKUP(\"Fixtures-\"&CBAT!$D105,'CBAT Lookups'!$B$5:$K$12,5),0)))","v":""},{"$f":"IF('Project Scope'!$C105=\"\",\"\",(IF(COUNTIF('CBAT Lookups'!$B$5:$B$12,\"Fixtures-\"&CBAT!$D105)=1,VLOOKUP(\"Fixtures-\"&CBAT!$D105,'CBAT Lookups'!$B$5:$K$12,6),0)))","v":""},{"$f":"IF('Project Scope'!$C105=\"\",\"\",IF(COUNTIF('CBAT Lookups'!$B$5:$B$12,\"Fixtures-\"&CBAT!$D105)=1,VLOOKUP(\"Fixtures-\"&CBAT!$D105,'CBAT Lookups'!$B$5:$K$12,7),0))","v":""},{"$f":"IF('Project Scope'!$C105=\"\",\"\",IF(VLOOKUP($F105,'CBAT Lookups'!$B$17:$K$19,8)=\"W\",1,IF(COUNTIF('CBAT Lookups'!$B$5:$B$12,\"Fixtures-\"&CBAT!$D105)=1,VLOOKUP(\"Fixtures-\"&CBAT!$D105,'CBAT Lookups'!$B$5:$K$12,8),0)*VLOOKUP($F105,'CBAT Lookups'!$B$17:$K$19,8)))","v":""},{"$f":"IF('Project Scope'!$C105=\"\",\"\",IF(VLOOKUP($F105,'CBAT Lookups'!$B$17:$K$19,9)=\"W\",1,IF(COUNTIF('CBAT Lookups'!$B$5:$B$12,\"Fixtures-\"&CBAT!$D105)=1,VLOOKUP(\"Fixtures-\"&CBAT!$D105,'CBAT Lookups'!$B$5:$K$12,9),0)*VLOOKUP($F105,'CBAT Lookups'!$B$17:$K$19,9)))","v":""},{"$f":"IF('Project Scope'!$C105=\"\",\"\",IF(COUNTIF('CBAT Lookups'!$B$5:$B$12,\"Fixtures-\"&CBAT!$D105)=1,VLOOKUP(\"Fixtures-\"&CBAT!$D105,'CBAT Lookups'!$B$5:$K$12,10),0)*VLOOKUP($F105,'CBAT Lookups'!$B$17:$K$19,10))","v":""},{"$f":"IF('Project Scope'!$C105=\"\",\"\",IF(COUNTIF('CBAT Lookups'!$B$5:$B$12,\"Fixtures-\"&CBAT!$D105)=1,VLOOKUP(\"Fixtures-\"&CBAT!$D105,'CBAT Lookups'!$B$5:$O$12,12),0))","v":""},{"$f":"IF('Project Scope'!$C105=\"\",\"\",IF(COUNTIF('CBAT Lookups'!$B$5:$B$12,\"Fixtures-\"&CBAT!$D105)=1,VLOOKUP(\"Fixtures-\"&CBAT!$D105,'CBAT Lookups'!$B$5:$O$12,13),0))","v":""},{"$f":"IF('Project Scope'!$C105=\"\",\"\",IF(COUNTIF('CBAT Lookups'!$B$5:$B$12,\"Fixtures-\"&CBAT!$D105)=1,VLOOKUP(\"Fixtures-\"&CBAT!$D105,'CBAT Lookups'!$B$5:$O$12,14),0))","v":""},{"$f":"IF('Project Scope'!$C105=\"\",\"\",'TRM Data'!$U$3)","v":""},{"$f":"IF('Project Scope'!$C105=\"\",\"\",'TRM Data'!$V$3)","v":""},{"$f":"IF('Project Scope'!$C105=\"\",\"\",IF($J105<=0,0,MAX(0,(($G105*$H105/1000)-($I105*$J105/1000))*$L105)*$U105)+($AF105/0.003412))","v":""},{"$f":"IF('Project Scope'!$C105=\"\",\"\",IF($J105<=0,0,MAX(0,(($G105*$H105/1000)-($I105*$J105/1000)))*$T105))","v":""},{"$f":"IF('Project Scope'!$C105=\"\",\"\",IF($J105<=0,0,MAX(0,(($G105*$H105/1000)-($I105*$J105/1000))*$N105)))","v":""},{"$f":"IF('Project Scope'!$C105=\"\",\"\",IF($J105<=0,0,MAX(0,(($G105*$H105/1000)-($I105*$J105/1000))*$O105)*$T105))","v":""},{"$f":"IF('Project Scope'!$C105=\"\",\"\",IF(OR($J105<=0,'Project Information'!$D$44=\"\"),0,-1*MAX(0,(($G105*$H105/1000)-($I105*$J105/1000))*$L105)*$V105*VLOOKUP('Project Information'!$D$44,'CBAT Lookups'!$A$23:$H$30,2)))","v":""},{"$f":"IF('Project Scope'!$C105=\"\",\"\",IF(OR($J105<=0,'Project Information'!$D$44=\"\"),0,-1*MAX(0,(($G105*$H105/1000)-($I105*$J105/1000))*$L105)*$V105*VLOOKUP('Project Information'!$D$44,'CBAT Lookups'!$A$23:$H$30,3)))","v":""},{"$f":"IF('Project Scope'!$C105=\"\",\"\",IF(OR($J105<=0,'Project Information'!$D$44=\"\"),0,-1*MAX(0,(($G105*$H105/1000)-($I105*$J105/1000))*$L105)*$V105*VLOOKUP('Project Information'!$D$44,'CBAT Lookups'!$A$23:$H$30,4)))","v":""},{"$f":"IF('Project Scope'!$C105=\"\",\"\",IF(OR($J105<=0,'Project Information'!$D$44=\"\"),0,-1*MAX(0,(($G105*$H105/1000)-($I105*$J105/1000))*$L105)*$V105*VLOOKUP('Project Information'!$D$44,'CBAT Lookups'!$A$23:$H$30,5)))","v":""},{"$f":"IF('Project Scope'!$C105=\"\",\"\",IF(OR($J105<=0,'Project Information'!$D$44=\"\"),0,-1*MAX(0,(($G105*$H105/1000)-($I105*$J105/1000))*$L105)*$V105*VLOOKUP('Project Information'!$D$44,'CBAT Lookups'!$A$23:$H$30,6)))","v":""},{"$f":"IF('Project Scope'!$C105=\"\",\"\",IF(OR($J105<=0,'Project Information'!$D$44=\"\"),0,-1*MAX(0,(($G105*$H105/1000)-($I105*$J105/1000))*$L105)*$V105*VLOOKUP('Project Information'!$D$44,'CBAT Lookups'!$A$23:$H$30,7)))","v":""},{"$f":"IF('Project Scope'!$C105=\"\",\"\",IF(OR($J105<=0,'Project Information'!$D$44=\"\"),0,-1*MAX(0,(($G105*$H105/1000)-($I105*$J105/1000))*$L105)*$V105*VLOOKUP('Project Information'!$D$44,'CBAT Lookups'!$A$23:$H$30,8)))","v":""},null,{"$f":"IF('Project Scope'!$C105=\"\",\"\",VLOOKUP($F105,'CBAT Lookups'!$B$17:$K$19,4))","v":""},{"$f":"IF('Project Scope'!$C105=\"\",\"\",VLOOKUP($F105,'CBAT Lookups'!$B$17:$K$19,5))","v":""},{"$f":"IF('Project Scope'!$C105=\"\",\"\",VLOOKUP($F105,'CBAT Lookups'!$B$17:$K$19,6))","v":""},{"$f":"IF('Project Scope'!$C105=\"\",\"\",VLOOKUP($F105,'CBAT Lookups'!$B$17:$K$19,7))","v":""},{"$f":"IF('Project Scope'!$C105=\"\",\"\",IF(SUMPRODUCT($P105:$S105,$AN105:$AQ105)=0,0,P105*AN105/SUMPRODUCT($P105:$S105,$AN105:$AQ105)))","v":""},{"$f":"IF('Project Scope'!$C105=\"\",\"\",IF(SUMPRODUCT($P105:$S105,$AN105:$AQ105)=0,0,Q105*AO105/SUMPRODUCT($P105:$S105,$AN105:$AQ105)))","v":""},{"$f":"IF('Project Scope'!$C105=\"\",\"\",IF(SUMPRODUCT($P105:$S105,$AN105:$AQ105)=0,0,R105*AP105/SUMPRODUCT($P105:$S105,$AN105:$AQ105)))","v":""},{"$f":"IF('Project Scope'!$C105=\"\",\"\",IF(SUMPRODUCT($P105:$S105,$AN105:$AQ105)=0,0,S105*AQ105/SUMPRODUCT($P105:$S105,$AN105:$AQ105)))","v":""},{"$f":"IF('Project Scope'!$C105=\"\",\"\",Benefits($AB105,$AD105,$AE105,$AG105,$AH105,$AI105,$AJ105,$AK105,$AL105,$AM105,$M105,$AR105,$AS105,$AT105,$AU105,$W105,$X105,$Y105,$Z105,$AA105,$E105))","v":""},"","","","","","","","",null,{"$f":"IF('Project Scope'!$C105=\"\",\"\",SUM('Project Scope'!$AT105,'Project Scope'!$AU105))","v":""},{"$f":"IF('Project Scope'!$C105=\"\",\"\",SUM('Project Scope'!$BG105, 'Project Scope'!$AR105,(IF(ISNUMBER('Project Scope'!$AS105),'Project Scope'!$AS105,0)*'Project Information'!$D$12)))","v":""},null,null,{"$f":"IF('Project Scope'!$C105=\"\",\"\",IF(COUNTIF('CBAT Lookups'!$B$5:$B$12,\"Controls-\"&CBAT!$D105)=1,VLOOKUP(\"Controls-\"&CBAT!$D105,'CBAT Lookups'!$B$5:$L$12,11),0))","v":""},{"$f":"IF('Project Scope'!$C105=\"\",\"\",IF(COUNTIF('CBAT Lookups'!$B$5:$B$12,\"Controls-\"&CBAT!$D105)=1,VLOOKUP(\"Controls-\"&CBAT!$D105,'CBAT Lookups'!$B$5:$K$12,2),0)*VLOOKUP($F105,'CBAT Lookups'!$B$17:$K$19,2))","v":""},{"$f":"IF('Project Scope'!$C105=\"\",\"\",IF(COUNTIF('CBAT Lookups'!$B$5:$B$12,\"Controls-\"&CBAT!$D105)=1,VLOOKUP(\"Controls-\"&CBAT!$D105,'CBAT Lookups'!$B$5:$K$12,3),0)*VLOOKUP($F105,'CBAT Lookups'!$B$17:$K$19,3))","v":""},{"$f":"IF('Project Scope'!$C105=\"\",\"\",IF(COUNTIF('CBAT Lookups'!$B$5:$B$12,\"Controls-\"&CBAT!$D105)=1,VLOOKUP(\"Controls-\"&CBAT!$D105,'CBAT Lookups'!$B$5:$K$12,4),0))","v":""},{"$f":"IF('Project Scope'!$C105=\"\",\"\",IF(COUNTIF('CBAT Lookups'!$B$5:$B$12,\"Controls-\"&CBAT!$D105)=1,VLOOKUP(\"Controls-\"&CBAT!$D105,'CBAT Lookups'!$B$5:$K$12,5),0))","v":""},{"$f":"IF('Project Scope'!$C105=\"\",\"\",IF(COUNTIF('CBAT Lookups'!$B$5:$B$12,\"Controls-\"&CBAT!$D105)=1,VLOOKUP(\"Controls-\"&CBAT!$D105,'CBAT Lookups'!$B$5:$K$12,6),0))","v":""},{"$f":"IF('Project Scope'!$C105=\"\",\"\",IF(COUNTIF('CBAT Lookups'!$B$5:$B$12,\"Controls-\"&CBAT!$D105)=1,VLOOKUP(\"Controls-\"&CBAT!$D105,'CBAT Lookups'!$B$5:$K$12,7),0))","v":""},{"$f":"IF('Project Scope'!$C105=\"\",\"\",IF(VLOOKUP($F105,'CBAT Lookups'!$B$17:$K$19,8)=\"W\",1,IF(COUNTIF('CBAT Lookups'!$B$5:$B$12,\"Controls-\"&CBAT!$D105)=1,VLOOKUP(\"Controls-\"&CBAT!$D105,'CBAT Lookups'!$B$5:$K$12,8),0)*VLOOKUP($F105,'CBAT Lookups'!$B$17:$K$19,8)))","v":""},{"$f":"IF('Project Scope'!$C105=\"\",\"\",IF(VLOOKUP($F105,'CBAT Lookups'!$B$17:$K$19,9)=\"W\",1,IF(COUNTIF('CBAT Lookups'!$B$5:$B$12,\"Controls-\"&CBAT!$D105)=1,VLOOKUP(\"Controls-\"&CBAT!$D105,'CBAT Lookups'!$B$5:$K$12,9),0)*VLOOKUP($F105,'CBAT Lookups'!$B$17:$K$19,9)))","v":""},{"$f":"IF('Project Scope'!$C105=\"\",\"\",IF(COUNTIF('CBAT Lookups'!$B$5:$B$12,\"Controls-\"&CBAT!$D105)=1,VLOOKUP(\"Controls-\"&CBAT!$D105,'CBAT Lookups'!$B$5:$K$12,10),0)*VLOOKUP($F105,'CBAT Lookups'!$B$17:$K$19,10))","v":""},{"$f":"IF('Project Scope'!$C105=\"\",\"\",VLOOKUP($C105,'CBAT Lookups'!$A$33:$B$57,2))","v":""},{"$f":"IF('Project Scope'!$C105=\"\",\"\",IF(COUNTIF('CBAT Lookups'!$B$5:$B$12,\"Controls-\"&CBAT!$D105)=1,VLOOKUP(\"Controls-\"&CBAT!$D105,'CBAT Lookups'!$B$5:$O$12,12),0))","v":""},{"$f":"IF('Project Scope'!$C105=\"\",\"\",IF(COUNTIF('CBAT Lookups'!$B$5:$B$12,\"Controls-\"&CBAT!$D105)=1,VLOOKUP(\"Controls-\"&CBAT!$D105,'CBAT Lookups'!$B$5:$O$12,13),0))","v":""},{"$f":"IF('Project Scope'!$C105=\"\",\"\",IF(COUNTIF('CBAT Lookups'!$B$5:$B$12,\"Controls-\"&CBAT!$D105)=1,VLOOKUP(\"Controls-\"&CBAT!$D105,'CBAT Lookups'!$B$5:$O$12,14),0))","v":""},{"$f":"IF('Project Scope'!$C105=\"\",\"\",'TRM Data'!$U$3)","v":""},{"$f":"IF('Project Scope'!$C105=\"\",\"\",'TRM Data'!$V$3)","v":""},{"$f":"IF('Project Scope'!$C105=\"\",\"\",IF($K105<=0,0,MAX(0,(IF(AND($I105>0,$J105>0),($I105*$J105)/1000,($G105*$H105)/1000)*$L105))*$BT105*$BR105)+($CD105/0.003412))","v":""},{"$f":"IF('Project Scope'!$C105=\"\",\"\",IF($K105<=0,0,MAX(0,IF(AND($I105>0,$J105>0),($I105*$J105)/1000,($G105*$H105)/1000))*$BQ105))","v":""},{"$f":"IF('Project Scope'!$C105=\"\",\"\",IF($K105<=0,0,MAX(0,IF(AND($I105>0,$J105>0),($I105*$J105)/1000,($G105*$H105)/1000))*$BK105))","v":""},{"$f":"IF('Project Scope'!$C105=\"\",\"\",IF($K105<=0,0,MAX(0,IF(AND($I105>0,$J105>0),($I105*$J105)/1000,($G105*$H105)/1000))*$BL105*$BQ105))","v":""},{"$f":"IF('Project Scope'!$C105=\"\",\"\",IF(OR($K105<=0,'Project Information'!$D$44=\"\"),0,-1*MAX(0,IF(AND($I105>0,$J105>0),($I105*$J105)/1000,($G105*$H105)/1000))*$BT105*$L105*$BS105*VLOOKUP('Project Information'!$D$44,'CBAT Lookups'!$A$23:$H$30,2)))","v":""},{"$f":"IF('Project Scope'!$C105=\"\",\"\",IF(OR($K105<=0,'Project Information'!$D$44=\"\"),0,-1*MAX(0,IF(AND($I105>0,$J105>0),($I105*$J105)/1000,($G105*$H105)/1000))*$BT105*$L105*$BS105*VLOOKUP('Project Information'!$D$44,'CBAT Lookups'!$A$23:$H$30,3)))","v":""},{"$f":"IF('Project Scope'!$C105=\"\",\"\",IF(OR($K105<=0,'Project Information'!$D$44=\"\"),0,-1*MAX(0,IF(AND($I105>0,$J105>0),($I105*$J105)/1000,($G105*$H105)/1000))*$BT105*$L105*$BS105*VLOOKUP('Project Information'!$D$44,'CBAT Lookups'!$A$23:$H$30,4)))","v":""},{"$f":"IF('Project Scope'!$C105=\"\",\"\",IF(OR($K105<=0,'Project Information'!$D$44=\"\"),0,-1*MAX(0,IF(AND($I105>0,$J105>0),($I105*$J105)/1000,($G105*$H105)/1000))*$BT105*$L105*$BS105*VLOOKUP('Project Information'!$D$44,'CBAT Lookups'!$A$23:$H$30,5)))","v":""},{"$f":"IF('Project Scope'!$C105=\"\",\"\",IF(OR($K105<=0,'Project Information'!$D$44=\"\"),0,-1*MAX(0,IF(AND($I105>0,$J105>0),($I105*$J105)/1000,($G105*$H105)/1000))*$BT105*$L105*$BS105*VLOOKUP('Project Information'!$D$44,'CBAT Lookups'!$A$23:$H$30,6)))","v":""},{"$f":"IF('Project Scope'!$C105=\"\",\"\",IF(OR($K105<=0,'Project Information'!$D$44=\"\"),0,-1*MAX(0,IF(AND($I105>0,$J105>0),($I105*$J105)/1000,($G105*$H105)/1000))*$BT105*$L105*$BS105*VLOOKUP('Project Information'!$D$44,'CBAT Lookups'!$A$23:$H$30,7)))","v":""},{"$f":"IF('Project Scope'!$C105=\"\",\"\",IF(OR($K105<=0,'Project Information'!$D$44=\"\"),0,-1*MAX(0,IF(AND($I105>0,$J105>0),($I105*$J105)/1000,($G105*$H105)/1000))*$BT105*$L105*$BS105*VLOOKUP('Project Information'!$D$44,'CBAT Lookups'!$A$23:$H$30,8)))","v":""},null,{"$f":"IF('Project Scope'!$C105=\"\",\"\",VLOOKUP($F105,'CBAT Lookups'!$B$17:$K$19,4))","v":""},{"$f":"IF('Project Scope'!$C105=\"\",\"\",VLOOKUP($F105,'CBAT Lookups'!$B$17:$K$19,5))","v":""},{"$f":"IF('Project Scope'!$C105=\"\",\"\",VLOOKUP($F105,'CBAT Lookups'!$B$17:$K$19,6))","v":""},{"$f":"IF('Project Scope'!$C105=\"\",\"\",VLOOKUP($F105,'CBAT Lookups'!$B$17:$K$19,7))","v":""},{"$f":"IF('Project Scope'!$C105=\"\",\"\",IF(SUMPRODUCT($BM105:$BP105,$CL105:$CO105)=0,0,BM105*CL105/SUMPRODUCT($BM105:$BP105,$CL105:$CO105)))","v":""},{"$f":"IF('Project Scope'!$C105=\"\",\"\",IF(SUMPRODUCT($BM105:$BP105,$CL105:$CO105)=0,0,BN105*CM105/SUMPRODUCT($BM105:$BP105,$CL105:$CO105)))","v":""},{"$f":"IF('Project Scope'!$C105=\"\",\"\",IF(SUMPRODUCT($BM105:$BP105,$CL105:$CO105)=0,0,BO105*CN105/SUMPRODUCT($BM105:$BP105,$CL105:$CO105)))","v":""},{"$f":"IF('Project Scope'!$C105=\"\",\"\",IF(SUMPRODUCT($BM105:$BP105,$CL105:$CO105)=0,0,BP105*CO105/SUMPRODUCT($BM105:$BP105,$CL105:$CO105)))","v":""},{"$f":"IF('Project Scope'!$C105=\"\",\"\",Benefits($BZ105,$CB105,$CC105,$CE105,$CF105,$CG105,$CH105,$CI105,$CJ105,$CK105,$BJ105,$CP105,$CQ105,$CR105,$CS105,$BU105,$BV105,$BW105,$BX105,$BY105,$E105))","v":""},"","","","","","","","",null,{"$f":"IF('Project Scope'!$C105=\"\",\"\",SUM('Project Scope'!$BB105,'Project Scope'!$BC105))","v":""},{"$f":"IF('Project Scope'!$C105=\"\",\"\",SUM('Project Scope'!$BH105, 'Project Scope'!$AZ105,(IF(ISNUMBER('Project Scope'!$BA105),'Project Scope'!$BA105,0)*'Project Information'!$D$12)))","v":""},null,null,{"$f":"IF('Project Scope'!$C105=\"\",\"\",IF($J105<=0,0,(SUMPRODUCT($AV105:$BC105,--($AV105:$BC105>0))+$BE105)*$DK105/((-SUMPRODUCT($AV105:$BC105,--($AV105:$BC105<0))+$BG105+$BH105+$BI105)*$DK105)))","v":""},{"$f":"IF('Project Scope'!$C105=\"\",\"\",IF($K105<=0,0,(SUMPRODUCT($CT105:$DA105,--($CT105:$DA105>0))+$DC105)*$DK105/((-SUMPRODUCT($CT105:$DA105,--($CT105:$DA105<0))+$DE105+$DF105+$DG105)*$DK105)))","v":""},{"$f":"IF('Project Scope'!$C105=\"\",\"\",IF(AND($J105<=0,$K105<=0),0,(SUMPRODUCT($AV105:$BC105,--($AV105:$BC105>0))+$BE105+SUMPRODUCT($CT105:$DA105,--($CT105:$DA105>0))+$DC105)*$DK105/((-SUMPRODUCT($AV105:$BC105,--($AV105:$BC105<0))+$BG105+$BH105+$BI105-SUMPRODUCT($CT105:$DA105,--($CT105:$DA105<0))+$DE105+$DF105+$DG105)*$DK105)))","v":""},{"$f":"IF('Project Scope'!$C105=\"\",\"\",IF(NetOrGross=\"Net\",(1-Z105+AA105),1))","v":""}]
[{"$f":"'Project Scope'!$B106","v":99},{"$f":"IF('Project Scope'!$C106=\"\",\"\",'Project Scope'!$C106)","v":""},{"$f":"IF('Project Scope'!$C106=\"\",\"\",'Project Scope'!$H106)","v":""},{"$f":"IF(ISNUMBER(SEARCH(\"Bay\",'Project Scope'!$Q106)),\"Bay\",IF('Project Scope'!C106=\"\",\"\",'Project Scope'!E106))","v":""},{"$f":"IF('Project Scope'!$C106=\"\",\"\",\"Com\")","v":""},{"$f":"IF('Project Scope'!$C106=\"\",\"\",'Project Scope'!$L106)","v":""},{"$f":"IF('Project Scope'!$C106=\"\",\"\",IF('Project Scope'!$CJ106=\"\",0,'Project Scope'!$CJ106))","v":""},{"$f":"IF('Project Scope'!$C106=\"\",\"\",IF('Project Scope'!$N106=\"\",0,'Project Scope'!$N106))","v":""},{"$f":"IF('Project Scope'!$C106=\"\",\"\",IF('Project Scope'!$CK106=\"\",0,'Project Scope'!$CK106))","v":""},{"$f":"IF('Project Scope'!$C106=\"\",\"\",IF('Project Scope'!$AO106=\"\",0,'Project Scope'!$AO106))","v":""},{"$f":"IF('Project Scope'!$C106=\"\",\"\",IF('Project Scope'!$AX106=\"\",0,'Project Scope'!$AX106))","v":""},{"$f":"IF('Project Scope'!$C106=\"\",\"\",IF('Project Scope'!$M106=\"\",0,'Project Scope'!$M106))","v":""},{"$f":"IF('Project Scope'!$C106=\"\",\"\",IF(COUNTIF('CBAT Lookups'!$B$5:$B$12,\"Fixtures-\"&CBAT!$D106)=1,VLOOKUP(\"Fixtures-\"&CBAT!$D106,'CBAT Lookups'!$B$5:$L$12,11),0))","v":""},{"$f":"IF('Project Scope'!$C106=\"\",\"\",(IF(COUNTIF('CBAT Lookups'!$B$5:$B$12,\"Fixtures-\"&CBAT!$D106)=1,VLOOKUP(\"Fixtures-\"&CBAT!$D106,'CBAT Lookups'!$B$5:$K$12,2),0))*VLOOKUP($F106,'CBAT Lookups'!$B$17:$K$19,2))","v":""},{"$f":"IF('Project Scope'!$C106=\"\",\"\",(IF(COUNTIF('CBAT Lookups'!$B$5:$B$12,\"Fixtures-\"&CBAT!$D106)=1,VLOOKUP(\"Fixtures-\"&CBAT!$D106,'CBAT Lookups'!$B$5:$K$12,3),0))*VLOOKUP($F106,'CBAT Lookups'!$B$17:$K$19,3))","v":""},{"$f":"IF('Project Scope'!$C106=\"\",\"\",(IF(COUNTIF('CBAT Lookups'!$B$5:$B$12,\"Fixtures-\"&CBAT!$D106)=1,VLOOKUP(\"Fixtures-\"&CBAT!$D106,'CBAT Lookups'!$B$5:$K$12,4),0)))","v":""},{"$f":"IF('Project Scope'!$C106=\"\",\"\",(IF(COUNTIF('CBAT Lookups'!$B$5:$B$12,\"Fixtures-\"&CBAT!$D106)=1,VLOOKUP(\"Fixtures-\"&CBAT!$D106,'CBAT Lookups'!$B$5:$K$12,5),0)))","v":""},{"$f":"IF('Project Scope'!$C106=\"\",\"\",(IF(COUNTIF('CBAT Lookups'!$B$5:$B$12,\"Fixtures-\"&CBAT!$D106)=1,VLOOKUP(\"Fixtures-\"&CBAT!$D106,'CBAT Lookups'!$B$5:$K$12,6),0)))","v":""},{"$f":"IF('Project Scope'!$C106=\"\",\"\",IF(COUNTIF('CBAT Lookups'!$B$5:$B$12,\"Fixtures-\"&CBAT!$D106)=1,VLOOKUP(\"Fixtures-\"&CBAT!$D106,'CBAT Lookups'!$B$5:$K$12,7),0))","v":""},{"$f":"IF('Project Scope'!$C106=\"\",\"\",IF(VLOOKUP($F106,'CBAT Lookups'!$B$17:$K$19,8)=\"W\",1,IF(COUNTIF('CBAT Lookups'!$B$5:$B$12,\"Fixtures-\"&CBAT!$D106)=1,VLOOKUP(\"Fixtures-\"&CBAT!$D106,'CBAT Lookups'!$B$5:$K$12,8),0)*VLOOKUP($F106,'CBAT Lookups'!$B$17:$K$19,8)))","v":""},{"$f":"IF('Project Scope'!$C106=\"\",\"\",IF(VLOOKUP($F106,'CBAT Lookups'!$B$17:$K$19,9)=\"W\",1,IF(COUNTIF('CBAT Lookups'!$B$5:$B$12,\"Fixtures-\"&CBAT!$D106)=1,VLOOKUP(\"Fixtures-\"&CBAT!$D106,'CBAT Lookups'!$B$5:$K$12,9),0)*VLOOKUP($F106,'CBAT Lookups'!$B$17:$K$19,9)))","v":""},{"$f":"IF('Project Scope'!$C106=\"\",\"\",IF(COUNTIF('CBAT Lookups'!$B$5:$B$12,\"Fixtures-\"&CBAT!$D106)=1,VLOOKUP(\"Fixtures-\"&CBAT!$D106,'CBAT Lookups'!$B$5:$K$12,10),0)*VLOOKUP($F106,'CBAT Lookups'!$B$17:$K$19,10))","v":""},{"$f":"IF('Project Scope'!$C106=\"\",\"\",IF(COUNTIF('CBAT Lookups'!$B$5:$B$12,\"Fixtures-\"&CBAT!$D106)=1,VLOOKUP(\"Fixtures-\"&CBAT!$D106,'CBAT Lookups'!$B$5:$O$12,12),0))","v":""},{"$f":"IF('Project Scope'!$C106=\"\",\"\",IF(COUNTIF('CBAT Lookups'!$B$5:$B$12,\"Fixtures-\"&CBAT!$D106)=1,VLOOKUP(\"Fixtures-\"&CBAT!$D106,'CBAT Lookups'!$B$5:$O$12,13),0))","v":""},{"$f":"IF('Project Scope'!$C106=\"\",\"\",IF(COUNTIF('CBAT Lookups'!$B$5:$B$12,\"Fixtures-\"&CBAT!$D106)=1,VLOOKUP(\"Fixtures-\"&CBAT!$D106,'CBAT Lookups'!$B$5:$O$12,14),0))","v":""},{"$f":"IF('Project Scope'!$C106=\"\",\"\",'TRM Data'!$U$3)","v":""},{"$f":"IF('Project Scope'!$C106=\"\",\"\",'TRM Data'!$V$3)","v":""},{"$f":"IF('Project Scope'!$C106=\"\",\"\",IF($J106<=0,0,MAX(0,(($G106*$H106/1000)-($I106*$J106/1000))*$L106)*$U106)+($AF106/0.003412))","v":""},{"$f":"IF('Project Scope'!$C106=\"\",\"\",IF($J106<=0,0,MAX(0,(($G106*$H106/1000)-($I106*$J106/1000)))*$T106))","v":""},{"$f":"IF('Project Scope'!$C106=\"\",\"\",IF($J106<=0,0,MAX(0,(($G106*$H106/1000)-($I106*$J106/1000))*$N106)))","v":""},{"$f":"IF('Project Scope'!$C106=\"\",\"\",IF($J106<=0,0,MAX(0,(($G106*$H106/1000)-($I106*$J106/1000))*$O106)*$T106))","v":""},{"$f":"IF('Project Scope'!$C106=\"\",\"\",IF(OR($J106<=0,'Project Information'!$D$44=\"\"),0,-1*MAX(0,(($G106*$H106/1000)-($I106*$J106/1000))*$L106)*$V106*VLOOKUP('Project Information'!$D$44,'CBAT Lookups'!$A$23:$H$30,2)))","v":""},{"$f":"IF('Project Scope'!$C106=\"\",\"\",IF(OR($J106<=0,'Project Information'!$D$44=\"\"),0,-1*MAX(0,(($G106*$H106/1000)-($I106*$J106/1000))*$L106)*$V106*VLOOKUP('Project Information'!$D$44,'CBAT Lookups'!$A$23:$H$30,3)))","v":""},{"$f":"IF('Project Scope'!$C106=\"\",\"\",IF(OR($J106<=0,'Project Information'!$D$44=\"\"),0,-1*MAX(0,(($G106*$H106/1000)-($I106*$J106/1000))*$L106)*$V106*VLOOKUP('Project Information'!$D$44,'CBAT Lookups'!$A$23:$H$30,4)))","v":""},{"$f":"IF('Project Scope'!$C106=\"\",\"\",IF(OR($J106<=0,'Project Information'!$D$44=\"\"),0,-1*MAX(0,(($G106*$H106/1000)-($I106*$J106/1000))*$L106)*$V106*VLOOKUP('Project Information'!$D$44,'CBAT Lookups'!$A$23:$H$30,5)))","v":""},{"$f":"IF('Project Scope'!$C106=\"\",\"\",IF(OR($J106<=0,'Project Information'!$D$44=\"\"),0,-1*MAX(0,(($G106*$H106/1000)-($I106*$J106/1000))*$L106)*$V106*VLOOKUP('Project Information'!$D$44,'CBAT Lookups'!$A$23:$H$30,6)))","v":""},{"$f":"IF('Project Scope'!$C106=\"\",\"\",IF(OR($J106<=0,'Project Information'!$D$44=\"\"),0,-1*MAX(0,(($G106*$H106/1000)-($I106*$J106/1000))*$L106)*$V106*VLOOKUP('Project Information'!$D$44,'CBAT Lookups'!$A$23:$H$30,7)))","v":""},{"$f":"IF('Project Scope'!$C106=\"\",\"\",IF(OR($J106<=0,'Project Information'!$D$44=\"\"),0,-1*MAX(0,(($G106*$H106/1000)-($I106*$J106/1000))*$L106)*$V106*VLOOKUP('Project Information'!$D$44,'CBAT Lookups'!$A$23:$H$30,8)))","v":""},null,{"$f":"IF('Project Scope'!$C106=\"\",\"\",VLOOKUP($F106,'CBAT Lookups'!$B$17:$K$19,4))","v":""},{"$f":"IF('Project Scope'!$C106=\"\",\"\",VLOOKUP($F106,'CBAT Lookups'!$B$17:$K$19,5))","v":""},{"$f":"IF('Project Scope'!$C106=\"\",\"\",VLOOKUP($F106,'CBAT Lookups'!$B$17:$K$19,6))","v":""},{"$f":"IF('Project Scope'!$C106=\"\",\"\",VLOOKUP($F106,'CBAT Lookups'!$B$17:$K$19,7))","v":""},{"$f":"IF('Project Scope'!$C106=\"\",\"\",IF(SUMPRODUCT($P106:$S106,$AN106:$AQ106)=0,0,P106*AN106/SUMPRODUCT($P106:$S106,$AN106:$AQ106)))","v":""},{"$f":"IF('Project Scope'!$C106=\"\",\"\",IF(SUMPRODUCT($P106:$S106,$AN106:$AQ106)=0,0,Q106*AO106/SUMPRODUCT($P106:$S106,$AN106:$AQ106)))","v":""},{"$f":"IF('Project Scope'!$C106=\"\",\"\",IF(SUMPRODUCT($P106:$S106,$AN106:$AQ106)=0,0,R106*AP106/SUMPRODUCT($P106:$S106,$AN106:$AQ106)))","v":""},{"$f":"IF('Project Scope'!$C106=\"\",\"\",IF(SUMPRODUCT($P106:$S106,$AN106:$AQ106)=0,0,S106*AQ106/SUMPRODUCT($P106:$S106,$AN106:$AQ106)))","v":""},{"$f":"IF('Project Scope'!$C106=\"\",\"\",Benefits($AB106,$AD106,$AE106,$AG106,$AH106,$AI106,$AJ106,$AK106,$AL106,$AM106,$M106,$AR106,$AS106,$AT106,$AU106,$W106,$X106,$Y106,$Z106,$AA106,$E106))","v":""},"","","","","","","","",null,{"$f":"IF('Project Scope'!$C106=\"\",\"\",SUM('Project Scope'!$AT106,'Project Scope'!$AU106))","v":""},{"$f":"IF('Project Scope'!$C106=\"\",\"\",SUM('Project Scope'!$BG106, 'Project Scope'!$AR106,(IF(ISNUMBER('Project Scope'!$AS106),'Project Scope'!$AS106,0)*'Project Information'!$D$12)))","v":""},null,null,{"$f":"IF('Project Scope'!$C106=\"\",\"\",IF(COUNTIF('CBAT Lookups'!$B$5:$B$12,\"Controls-\"&CBAT!$D106)=1,VLOOKUP(\"Controls-\"&CBAT!$D106,'CBAT Lookups'!$B$5:$L$12,11),0))","v":""},{"$f":"IF('Project Scope'!$C106=\"\",\"\",IF(COUNTIF('CBAT Lookups'!$B$5:$B$12,\"Controls-\"&CBAT!$D106)=1,VLOOKUP(\"Controls-\"&CBAT!$D106,'CBAT Lookups'!$B$5:$K$12,2),0)*VLOOKUP($F106,'CBAT Lookups'!$B$17:$K$19,2))","v":""},{"$f":"IF('Project Scope'!$C106=\"\",\"\",IF(COUNTIF('CBAT Lookups'!$B$5:$B$12,\"Controls-\"&CBAT!$D106)=1,VLOOKUP(\"Controls-\"&CBAT!$D106,'CBAT Lookups'!$B$5:$K$12,3),0)*VLOOKUP($F106,'CBAT Lookups'!$B$17:$K$19,3))","v":""},{"$f":"IF('Project Scope'!$C106=\"\",\"\",IF(COUNTIF('CBAT Lookups'!$B$5:$B$12,\"Controls-\"&CBAT!$D106)=1,VLOOKUP(\"Controls-\"&CBAT!$D106,'CBAT Lookups'!$B$5:$K$12,4),0))","v":""},{"$f":"IF('Project Scope'!$C106=\"\",\"\",IF(COUNTIF('CBAT Lookups'!$B$5:$B$12,\"Controls-\"&CBAT!$D106)=1,VLOOKUP(\"Controls-\"&CBAT!$D106,'CBAT Lookups'!$B$5:$K$12,5),0))","v":""},{"$f":"IF('Project Scope'!$C106=\"\",\"\",IF(COUNTIF('CBAT Lookups'!$B$5:$B$12,\"Controls-\"&CBAT!$D106)=1,VLOOKUP(\"Controls-\"&CBAT!$D106,'CBAT Lookups'!$B$5:$K$12,6),0))","v":""},{"$f":"IF('Project Scope'!$C106=\"\",\"\",IF(COUNTIF('CBAT Lookups'!$B$5:$B$12,\"Controls-\"&CBAT!$D106)=1,VLOOKUP(\"Controls-\"&CBAT!$D106,'CBAT Lookups'!$B$5:$K$12,7),0))","v":""},{"$f":"IF('Project Scope'!$C106=\"\",\"\",IF(VLOOKUP($F106,'CBAT Lookups'!$B$17:$K$19,8)=\"W\",1,IF(COUNTIF('CBAT Lookups'!$B$5:$B$12,\"Controls-\"&CBAT!$D106)=1,VLOOKUP(\"Controls-\"&CBAT!$D106,'CBAT Lookups'!$B$5:$K$12,8),0)*VLOOKUP($F106,'CBAT Lookups'!$B$17:$K$19,8)))","v":""},{"$f":"IF('Project Scope'!$C106=\"\",\"\",IF(VLOOKUP($F106,'CBAT Lookups'!$B$17:$K$19,9)=\"W\",1,IF(COUNTIF('CBAT Lookups'!$B$5:$B$12,\"Controls-\"&CBAT!$D106)=1,VLOOKUP(\"Controls-\"&CBAT!$D106,'CBAT Lookups'!$B$5:$K$12,9),0)*VLOOKUP($F106,'CBAT Lookups'!$B$17:$K$19,9)))","v":""},{"$f":"IF('Project Scope'!$C106=\"\",\"\",IF(COUNTIF('CBAT Lookups'!$B$5:$B$12,\"Controls-\"&CBAT!$D106)=1,VLOOKUP(\"Controls-\"&CBAT!$D106,'CBAT Lookups'!$B$5:$K$12,10),0)*VLOOKUP($F106,'CBAT Lookups'!$B$17:$K$19,10))","v":""},{"$f":"IF('Project Scope'!$C106=\"\",\"\",VLOOKUP($C106,'CBAT Lookups'!$A$33:$B$57,2))","v":""},{"$f":"IF('Project Scope'!$C106=\"\",\"\",IF(COUNTIF('CBAT Lookups'!$B$5:$B$12,\"Controls-\"&CBAT!$D106)=1,VLOOKUP(\"Controls-\"&CBAT!$D106,'CBAT Lookups'!$B$5:$O$12,12),0))","v":""},{"$f":"IF('Project Scope'!$C106=\"\",\"\",IF(COUNTIF('CBAT Lookups'!$B$5:$B$12,\"Controls-\"&CBAT!$D106)=1,VLOOKUP(\"Controls-\"&CBAT!$D106,'CBAT Lookups'!$B$5:$O$12,13),0))","v":""},{"$f":"IF('Project Scope'!$C106=\"\",\"\",IF(COUNTIF('CBAT Lookups'!$B$5:$B$12,\"Controls-\"&CBAT!$D106)=1,VLOOKUP(\"Controls-\"&CBAT!$D106,'CBAT Lookups'!$B$5:$O$12,14),0))","v":""},{"$f":"IF('Project Scope'!$C106=\"\",\"\",'TRM Data'!$U$3)","v":""},{"$f":"IF('Project Scope'!$C106=\"\",\"\",'TRM Data'!$V$3)","v":""},{"$f":"IF('Project Scope'!$C106=\"\",\"\",IF($K106<=0,0,MAX(0,(IF(AND($I106>0,$J106>0),($I106*$J106)/1000,($G106*$H106)/1000)*$L106))*$BT106*$BR106)+($CD106/0.003412))","v":""},{"$f":"IF('Project Scope'!$C106=\"\",\"\",IF($K106<=0,0,MAX(0,IF(AND($I106>0,$J106>0),($I106*$J106)/1000,($G106*$H106)/1000))*$BQ106))","v":""},{"$f":"IF('Project Scope'!$C106=\"\",\"\",IF($K106<=0,0,MAX(0,IF(AND($I106>0,$J106>0),($I106*$J106)/1000,($G106*$H106)/1000))*$BK106))","v":""},{"$f":"IF('Project Scope'!$C106=\"\",\"\",IF($K106<=0,0,MAX(0,IF(AND($I106>0,$J106>0),($I106*$J106)/1000,($G106*$H106)/1000))*$BL106*$BQ106))","v":""},{"$f":"IF('Project Scope'!$C106=\"\",\"\",IF(OR($K106<=0,'Project Information'!$D$44=\"\"),0,-1*MAX(0,IF(AND($I106>0,$J106>0),($I106*$J106)/1000,($G106*$H106)/1000))*$BT106*$L106*$BS106*VLOOKUP('Project Information'!$D$44,'CBAT Lookups'!$A$23:$H$30,2)))","v":""},{"$f":"IF('Project Scope'!$C106=\"\",\"\",IF(OR($K106<=0,'Project Information'!$D$44=\"\"),0,-1*MAX(0,IF(AND($I106>0,$J106>0),($I106*$J106)/1000,($G106*$H106)/1000))*$BT106*$L106*$BS106*VLOOKUP('Project Information'!$D$44,'CBAT Lookups'!$A$23:$H$30,3)))","v":""},{"$f":"IF('Project Scope'!$C106=\"\",\"\",IF(OR($K106<=0,'Project Information'!$D$44=\"\"),0,-1*MAX(0,IF(AND($I106>0,$J106>0),($I106*$J106)/1000,($G106*$H106)/1000))*$BT106*$L106*$BS106*VLOOKUP('Project Information'!$D$44,'CBAT Lookups'!$A$23:$H$30,4)))","v":""},{"$f":"IF('Project Scope'!$C106=\"\",\"\",IF(OR($K106<=0,'Project Information'!$D$44=\"\"),0,-1*MAX(0,IF(AND($I106>0,$J106>0),($I106*$J106)/1000,($G106*$H106)/1000))*$BT106*$L106*$BS106*VLOOKUP('Project Information'!$D$44,'CBAT Lookups'!$A$23:$H$30,5)))","v":""},{"$f":"IF('Project Scope'!$C106=\"\",\"\",IF(OR($K106<=0,'Project Information'!$D$44=\"\"),0,-1*MAX(0,IF(AND($I106>0,$J106>0),($I106*$J106)/1000,($G106*$H106)/1000))*$BT106*$L106*$BS106*VLOOKUP('Project Information'!$D$44,'CBAT Lookups'!$A$23:$H$30,6)))","v":""},{"$f":"IF('Project Scope'!$C106=\"\",\"\",IF(OR($K106<=0,'Project Information'!$D$44=\"\"),0,-1*MAX(0,IF(AND($I106>0,$J106>0),($I106*$J106)/1000,($G106*$H106)/1000))*$BT106*$L106*$BS106*VLOOKUP('Project Information'!$D$44,'CBAT Lookups'!$A$23:$H$30,7)))","v":""},{"$f":"IF('Project Scope'!$C106=\"\",\"\",IF(OR($K106<=0,'Project Information'!$D$44=\"\"),0,-1*MAX(0,IF(AND($I106>0,$J106>0),($I106*$J106)/1000,($G106*$H106)/1000))*$BT106*$L106*$BS106*VLOOKUP('Project Information'!$D$44,'CBAT Lookups'!$A$23:$H$30,8)))","v":""},null,{"$f":"IF('Project Scope'!$C106=\"\",\"\",VLOOKUP($F106,'CBAT Lookups'!$B$17:$K$19,4))","v":""},{"$f":"IF('Project Scope'!$C106=\"\",\"\",VLOOKUP($F106,'CBAT Lookups'!$B$17:$K$19,5))","v":""},{"$f":"IF('Project Scope'!$C106=\"\",\"\",VLOOKUP($F106,'CBAT Lookups'!$B$17:$K$19,6))","v":""},{"$f":"IF('Project Scope'!$C106=\"\",\"\",VLOOKUP($F106,'CBAT Lookups'!$B$17:$K$19,7))","v":""},{"$f":"IF('Project Scope'!$C106=\"\",\"\",IF(SUMPRODUCT($BM106:$BP106,$CL106:$CO106)=0,0,BM106*CL106/SUMPRODUCT($BM106:$BP106,$CL106:$CO106)))","v":""},{"$f":"IF('Project Scope'!$C106=\"\",\"\",IF(SUMPRODUCT($BM106:$BP106,$CL106:$CO106)=0,0,BN106*CM106/SUMPRODUCT($BM106:$BP106,$CL106:$CO106)))","v":""},{"$f":"IF('Project Scope'!$C106=\"\",\"\",IF(SUMPRODUCT($BM106:$BP106,$CL106:$CO106)=0,0,BO106*CN106/SUMPRODUCT($BM106:$BP106,$CL106:$CO106)))","v":""},{"$f":"IF('Project Scope'!$C106=\"\",\"\",IF(SUMPRODUCT($BM106:$BP106,$CL106:$CO106)=0,0,BP106*CO106/SUMPRODUCT($BM106:$BP106,$CL106:$CO106)))","v":""},{"$f":"IF('Project Scope'!$C106=\"\",\"\",Benefits($BZ106,$CB106,$CC106,$CE106,$CF106,$CG106,$CH106,$CI106,$CJ106,$CK106,$BJ106,$CP106,$CQ106,$CR106,$CS106,$BU106,$BV106,$BW106,$BX106,$BY106,$E106))","v":""},"","","","","","","","",null,{"$f":"IF('Project Scope'!$C106=\"\",\"\",SUM('Project Scope'!$BB106,'Project Scope'!$BC106))","v":""},{"$f":"IF('Project Scope'!$C106=\"\",\"\",SUM('Project Scope'!$BH106, 'Project Scope'!$AZ106,(IF(ISNUMBER('Project Scope'!$BA106),'Project Scope'!$BA106,0)*'Project Information'!$D$12)))","v":""},null,null,{"$f":"IF('Project Scope'!$C106=\"\",\"\",IF($J106<=0,0,(SUMPRODUCT($AV106:$BC106,--($AV106:$BC106>0))+$BE106)*$DK106/((-SUMPRODUCT($AV106:$BC106,--($AV106:$BC106<0))+$BG106+$BH106+$BI106)*$DK106)))","v":""},{"$f":"IF('Project Scope'!$C106=\"\",\"\",IF($K106<=0,0,(SUMPRODUCT($CT106:$DA106,--($CT106:$DA106>0))+$DC106)*$DK106/((-SUMPRODUCT($CT106:$DA106,--($CT106:$DA106<0))+$DE106+$DF106+$DG106)*$DK106)))","v":""},{"$f":"IF('Project Scope'!$C106=\"\",\"\",IF(AND($J106<=0,$K106<=0),0,(SUMPRODUCT($AV106:$BC106,--($AV106:$BC106>0))+$BE106+SUMPRODUCT($CT106:$DA106,--($CT106:$DA106>0))+$DC106)*$DK106/((-SUMPRODUCT($AV106:$BC106,--($AV106:$BC106<0))+$BG106+$BH106+$BI106-SUMPRODUCT($CT106:$DA106,--($CT106:$DA106<0))+$DE106+$DF106+$DG106)*$DK106)))","v":""},{"$f":"IF('Project Scope'!$C106=\"\",\"\",IF(NetOrGross=\"Net\",(1-Z106+AA106),1))","v":""}]
[{"$f":"'Project Scope'!$B107","v":100},{"$f":"IF('Project Scope'!$C107=\"\",\"\",'Project Scope'!$C107)","v":""},{"$f":"IF('Project Scope'!$C107=\"\",\"\",'Project Scope'!$H107)","v":""},{"$f":"IF(ISNUMBER(SEARCH(\"Bay\",'Project Scope'!$Q107)),\"Bay\",IF('Project Scope'!C107=\"\",\"\",'Project Scope'!E107))","v":""},{"$f":"IF('Project Scope'!$C107=\"\",\"\",\"Com\")","v":""},{"$f":"IF('Project Scope'!$C107=\"\",\"\",'Project Scope'!$L107)","v":""},{"$f":"IF('Project Scope'!$C107=\"\",\"\",IF('Project Scope'!$CJ107=\"\",0,'Project Scope'!$CJ107))","v":""},{"$f":"IF('Project Scope'!$C107=\"\",\"\",IF('Project Scope'!$N107=\"\",0,'Project Scope'!$N107))","v":""},{"$f":"IF('Project Scope'!$C107=\"\",\"\",IF('Project Scope'!$CK107=\"\",0,'Project Scope'!$CK107))","v":""},{"$f":"IF('Project Scope'!$C107=\"\",\"\",IF('Project Scope'!$AO107=\"\",0,'Project Scope'!$AO107))","v":""},{"$f":"IF('Project Scope'!$C107=\"\",\"\",IF('Project Scope'!$AX107=\"\",0,'Project Scope'!$AX107))","v":""},{"$f":"IF('Project Scope'!$C107=\"\",\"\",IF('Project Scope'!$M107=\"\",0,'Project Scope'!$M107))","v":""},{"$f":"IF('Project Scope'!$C107=\"\",\"\",IF(COUNTIF('CBAT Lookups'!$B$5:$B$12,\"Fixtures-\"&CBAT!$D107)=1,VLOOKUP(\"Fixtures-\"&CBAT!$D107,'CBAT Lookups'!$B$5:$L$12,11),0))","v":""},{"$f":"IF('Project Scope'!$C107=\"\",\"\",(IF(COUNTIF('CBAT Lookups'!$B$5:$B$12,\"Fixtures-\"&CBAT!$D107)=1,VLOOKUP(\"Fixtures-\"&CBAT!$D107,'CBAT Lookups'!$B$5:$K$12,2),0))*VLOOKUP($F107,'CBAT Lookups'!$B$17:$K$19,2))","v":""},{"$f":"IF('Project Scope'!$C107=\"\",\"\",(IF(COUNTIF('CBAT Lookups'!$B$5:$B$12,\"Fixtures-\"&CBAT!$D107)=1,VLOOKUP(\"Fixtures-\"&CBAT!$D107,'CBAT Lookups'!$B$5:$K$12,3),0))*VLOOKUP($F107,'CBAT Lookups'!$B$17:$K$19,3))","v":""},{"$f":"IF('Project Scope'!$C107=\"\",\"\",(IF(COUNTIF('CBAT Lookups'!$B$5:$B$12,\"Fixtures-\"&CBAT!$D107)=1,VLOOKUP(\"Fixtures-\"&CBAT!$D107,'CBAT Lookups'!$B$5:$K$12,4),0)))","v":""},{"$f":"IF('Project Scope'!$C107=\"\",\"\",(IF(COUNTIF('CBAT Lookups'!$B$5:$B$12,\"Fixtures-\"&CBAT!$D107)=1,VLOOKUP(\"Fixtures-\"&CBAT!$D107,'CBAT Lookups'!$B$5:$K$12,5),0)))","v":""},{"$f":"IF('Project Scope'!$C107=\"\",\"\",(IF(COUNTIF('CBAT Lookups'!$B$5:$B$12,\"Fixtures-\"&CBAT!$D107)=1,VLOOKUP(\"Fixtures-\"&CBAT!$D107,'CBAT Lookups'!$B$5:$K$12,6),0)))","v":""},{"$f":"IF('Project Scope'!$C107=\"\",\"\",IF(COUNTIF('CBAT Lookups'!$B$5:$B$12,\"Fixtures-\"&CBAT!$D107)=1,VLOOKUP(\"Fixtures-\"&CBAT!$D107,'CBAT Lookups'!$B$5:$K$12,7),0))","v":""},{"$f":"IF('Project Scope'!$C107=\"\",\"\",IF(VLOOKUP($F107,'CBAT Lookups'!$B$17:$K$19,8)=\"W\",1,IF(COUNTIF('CBAT Lookups'!$B$5:$B$12,\"Fixtures-\"&CBAT!$D107)=1,VLOOKUP(\"Fixtures-\"&CBAT!$D107,'CBAT Lookups'!$B$5:$K$12,8),0)*VLOOKUP($F107,'CBAT Lookups'!$B$17:$K$19,8)))","v":""},{"$f":"IF('Project Scope'!$C107=\"\",\"\",IF(VLOOKUP($F107,'CBAT Lookups'!$B$17:$K$19,9)=\"W\",1,IF(COUNTIF('CBAT Lookups'!$B$5:$B$12,\"Fixtures-\"&CBAT!$D107)=1,VLOOKUP(\"Fixtures-\"&CBAT!$D107,'CBAT Lookups'!$B$5:$K$12,9),0)*VLOOKUP($F107,'CBAT Lookups'!$B$17:$K$19,9)))","v":""},{"$f":"IF('Project Scope'!$C107=\"\",\"\",IF(COUNTIF('CBAT Lookups'!$B$5:$B$12,\"Fixtures-\"&CBAT!$D107)=1,VLOOKUP(\"Fixtures-\"&CBAT!$D107,'CBAT Lookups'!$B$5:$K$12,10),0)*VLOOKUP($F107,'CBAT Lookups'!$B$17:$K$19,10))","v":""},{"$f":"IF('Project Scope'!$C107=\"\",\"\",IF(COUNTIF('CBAT Lookups'!$B$5:$B$12,\"Fixtures-\"&CBAT!$D107)=1,VLOOKUP(\"Fixtures-\"&CBAT!$D107,'CBAT Lookups'!$B$5:$O$12,12),0))","v":""},{"$f":"IF('Project Scope'!$C107=\"\",\"\",IF(COUNTIF('CBAT Lookups'!$B$5:$B$12,\"Fixtures-\"&CBAT!$D107)=1,VLOOKUP(\"Fixtures-\"&CBAT!$D107,'CBAT Lookups'!$B$5:$O$12,13),0))","v":""},{"$f":"IF('Project Scope'!$C107=\"\",\"\",IF(COUNTIF('CBAT Lookups'!$B$5:$B$12,\"Fixtures-\"&CBAT!$D107)=1,VLOOKUP(\"Fixtures-\"&CBAT!$D107,'CBAT Lookups'!$B$5:$O$12,14),0))","v":""},{"$f":"IF('Project Scope'!$C107=\"\",\"\",'TRM Data'!$U$3)","v":""},{"$f":"IF('Project Scope'!$C107=\"\",\"\",'TRM Data'!$V$3)","v":""},{"$f":"IF('Project Scope'!$C107=\"\",\"\",IF($J107<=0,0,MAX(0,(($G107*$H107/1000)-($I107*$J107/1000))*$L107)*$U107)+($AF107/0.003412))","v":""},{"$f":"IF('Project Scope'!$C107=\"\",\"\",IF($J107<=0,0,MAX(0,(($G107*$H107/1000)-($I107*$J107/1000)))*$T107))","v":""},{"$f":"IF('Project Scope'!$C107=\"\",\"\",IF($J107<=0,0,MAX(0,(($G107*$H107/1000)-($I107*$J107/1000))*$N107)))","v":""},{"$f":"IF('Project Scope'!$C107=\"\",\"\",IF($J107<=0,0,MAX(0,(($G107*$H107/1000)-($I107*$J107/1000))*$O107)*$T107))","v":""},{"$f":"IF('Project Scope'!$C107=\"\",\"\",IF(OR($J107<=0,'Project Information'!$D$44=\"\"),0,-1*MAX(0,(($G107*$H107/1000)-($I107*$J107/1000))*$L107)*$V107*VLOOKUP('Project Information'!$D$44,'CBAT Lookups'!$A$23:$H$30,2)))","v":""},{"$f":"IF('Project Scope'!$C107=\"\",\"\",IF(OR($J107<=0,'Project Information'!$D$44=\"\"),0,-1*MAX(0,(($G107*$H107/1000)-($I107*$J107/1000))*$L107)*$V107*VLOOKUP('Project Information'!$D$44,'CBAT Lookups'!$A$23:$H$30,3)))","v":""},{"$f":"IF('Project Scope'!$C107=\"\",\"\",IF(OR($J107<=0,'Project Information'!$D$44=\"\"),0,-1*MAX(0,(($G107*$H107/1000)-($I107*$J107/1000))*$L107)*$V107*VLOOKUP('Project Information'!$D$44,'CBAT Lookups'!$A$23:$H$30,4)))","v":""},{"$f":"IF('Project Scope'!$C107=\"\",\"\",IF(OR($J107<=0,'Project Information'!$D$44=\"\"),0,-1*MAX(0,(($G107*$H107/1000)-($I107*$J107/1000))*$L107)*$V107*VLOOKUP('Project Information'!$D$44,'CBAT Lookups'!$A$23:$H$30,5)))","v":""},{"$f":"IF('Project Scope'!$C107=\"\",\"\",IF(OR($J107<=0,'Project Information'!$D$44=\"\"),0,-1*MAX(0,(($G107*$H107/1000)-($I107*$J107/1000))*$L107)*$V107*VLOOKUP('Project Information'!$D$44,'CBAT Lookups'!$A$23:$H$30,6)))","v":""},{"$f":"IF('Project Scope'!$C107=\"\",\"\",IF(OR($J107<=0,'Project Information'!$D$44=\"\"),0,-1*MAX(0,(($G107*$H107/1000)-($I107*$J107/1000))*$L107)*$V107*VLOOKUP('Project Information'!$D$44,'CBAT Lookups'!$A$23:$H$30,7)))","v":""},{"$f":"IF('Project Scope'!$C107=\"\",\"\",IF(OR($J107<=0,'Project Information'!$D$44=\"\"),0,-1*MAX(0,(($G107*$H107/1000)-($I107*$J107/1000))*$L107)*$V107*VLOOKUP('Project Information'!$D$44,'CBAT Lookups'!$A$23:$H$30,8)))","v":""},null,{"$f":"IF('Project Scope'!$C107=\"\",\"\",VLOOKUP($F107,'CBAT Lookups'!$B$17:$K$19,4))","v":""},{"$f":"IF('Project Scope'!$C107=\"\",\"\",VLOOKUP($F107,'CBAT Lookups'!$B$17:$K$19,5))","v":""},{"$f":"IF('Project Scope'!$C107=\"\",\"\",VLOOKUP($F107,'CBAT Lookups'!$B$17:$K$19,6))","v":""},{"$f":"IF('Project Scope'!$C107=\"\",\"\",VLOOKUP($F107,'CBAT Lookups'!$B$17:$K$19,7))","v":""},{"$f":"IF('Project Scope'!$C107=\"\",\"\",IF(SUMPRODUCT($P107:$S107,$AN107:$AQ107)=0,0,P107*AN107/SUMPRODUCT($P107:$S107,$AN107:$AQ107)))","v":""},{"$f":"IF('Project Scope'!$C107=\"\",\"\",IF(SUMPRODUCT($P107:$S107,$AN107:$AQ107)=0,0,Q107*AO107/SUMPRODUCT($P107:$S107,$AN107:$AQ107)))","v":""},{"$f":"IF('Project Scope'!$C107=\"\",\"\",IF(SUMPRODUCT($P107:$S107,$AN107:$AQ107)=0,0,R107*AP107/SUMPRODUCT($P107:$S107,$AN107:$AQ107)))","v":""},{"$f":"IF('Project Scope'!$C107=\"\",\"\",IF(SUMPRODUCT($P107:$S107,$AN107:$AQ107)=0,0,S107*AQ107/SUMPRODUCT($P107:$S107,$AN107:$AQ107)))","v":""},{"$f":"IF('Project Scope'!$C107=\"\",\"\",Benefits($AB107,$AD107,$AE107,$AG107,$AH107,$AI107,$AJ107,$AK107,$AL107,$AM107,$M107,$AR107,$AS107,$AT107,$AU107,$W107,$X107,$Y107,$Z107,$AA107,$E107))","v":""},"","","","","","","","",null,{"$f":"IF('Project Scope'!$C107=\"\",\"\",SUM('Project Scope'!$AT107,'Project Scope'!$AU107))","v":""},{"$f":"IF('Project Scope'!$C107=\"\",\"\",SUM('Project Scope'!$BG107, 'Project Scope'!$AR107,(IF(ISNUMBER('Project Scope'!$AS107),'Project Scope'!$AS107,0)*'Project Information'!$D$12)))","v":""},null,null,{"$f":"IF('Project Scope'!$C107=\"\",\"\",IF(COUNTIF('CBAT Lookups'!$B$5:$B$12,\"Controls-\"&CBAT!$D107)=1,VLOOKUP(\"Controls-\"&CBAT!$D107,'CBAT Lookups'!$B$5:$L$12,11),0))","v":""},{"$f":"IF('Project Scope'!$C107=\"\",\"\",IF(COUNTIF('CBAT Lookups'!$B$5:$B$12,\"Controls-\"&CBAT!$D107)=1,VLOOKUP(\"Controls-\"&CBAT!$D107,'CBAT Lookups'!$B$5:$K$12,2),0)*VLOOKUP($F107,'CBAT Lookups'!$B$17:$K$19,2))","v":""},{"$f":"IF('Project Scope'!$C107=\"\",\"\",IF(COUNTIF('CBAT Lookups'!$B$5:$B$12,\"Controls-\"&CBAT!$D107)=1,VLOOKUP(\"Controls-\"&CBAT!$D107,'CBAT Lookups'!$B$5:$K$12,3),0)*VLOOKUP($F107,'CBAT Lookups'!$B$17:$K$19,3))","v":""},{"$f":"IF('Project Scope'!$C107=\"\",\"\",IF(COUNTIF('CBAT Lookups'!$B$5:$B$12,\"Controls-\"&CBAT!$D107)=1,VLOOKUP(\"Controls-\"&CBAT!$D107,'CBAT Lookups'!$B$5:$K$12,4),0))","v":""},{"$f":"IF('Project Scope'!$C107=\"\",\"\",IF(COUNTIF('CBAT Lookups'!$B$5:$B$12,\"Controls-\"&CBAT!$D107)=1,VLOOKUP(\"Controls-\"&CBAT!$D107,'CBAT Lookups'!$B$5:$K$12,5),0))","v":""},{"$f":"IF('Project Scope'!$C107=\"\",\"\",IF(COUNTIF('CBAT Lookups'!$B$5:$B$12,\"Controls-\"&CBAT!$D107)=1,VLOOKUP(\"Controls-\"&CBAT!$D107,'CBAT Lookups'!$B$5:$K$12,6),0))","v":""},{"$f":"IF('Project Scope'!$C107=\"\",\"\",IF(COUNTIF('CBAT Lookups'!$B$5:$B$12,\"Controls-\"&CBAT!$D107)=1,VLOOKUP(\"Controls-\"&CBAT!$D107,'CBAT Lookups'!$B$5:$K$12,7),0))","v":""},{"$f":"IF('Project Scope'!$C107=\"\",\"\",IF(VLOOKUP($F107,'CBAT Lookups'!$B$17:$K$19,8)=\"W\",1,IF(COUNTIF('CBAT Lookups'!$B$5:$B$12,\"Controls-\"&CBAT!$D107)=1,VLOOKUP(\"Controls-\"&CBAT!$D107,'CBAT Lookups'!$B$5:$K$12,8),0)*VLOOKUP($F107,'CBAT Lookups'!$B$17:$K$19,8)))","v":""},{"$f":"IF('Project Scope'!$C107=\"\",\"\",IF(VLOOKUP($F107,'CBAT Lookups'!$B$17:$K$19,9)=\"W\",1,IF(COUNTIF('CBAT Lookups'!$B$5:$B$12,\"Controls-\"&CBAT!$D107)=1,VLOOKUP(\"Controls-\"&CBAT!$D107,'CBAT Lookups'!$B$5:$K$12,9),0)*VLOOKUP($F107,'CBAT Lookups'!$B$17:$K$19,9)))","v":""},{"$f":"IF('Project Scope'!$C107=\"\",\"\",IF(COUNTIF('CBAT Lookups'!$B$5:$B$12,\"Controls-\"&CBAT!$D107)=1,VLOOKUP(\"Controls-\"&CBAT!$D107,'CBAT Lookups'!$B$5:$K$12,10),0)*VLOOKUP($F107,'CBAT Lookups'!$B$17:$K$19,10))","v":""},{"$f":"IF('Project Scope'!$C107=\"\",\"\",VLOOKUP($C107,'CBAT Lookups'!$A$33:$B$57,2))","v":""},{"$f":"IF('Project Scope'!$C107=\"\",\"\",IF(COUNTIF('CBAT Lookups'!$B$5:$B$12,\"Controls-\"&CBAT!$D107)=1,VLOOKUP(\"Controls-\"&CBAT!$D107,'CBAT Lookups'!$B$5:$O$12,12),0))","v":""},{"$f":"IF('Project Scope'!$C107=\"\",\"\",IF(COUNTIF('CBAT Lookups'!$B$5:$B$12,\"Controls-\"&CBAT!$D107)=1,VLOOKUP(\"Controls-\"&CBAT!$D107,'CBAT Lookups'!$B$5:$O$12,13),0))","v":""},{"$f":"IF('Project Scope'!$C107=\"\",\"\",IF(COUNTIF('CBAT Lookups'!$B$5:$B$12,\"Controls-\"&CBAT!$D107)=1,VLOOKUP(\"Controls-\"&CBAT!$D107,'CBAT Lookups'!$B$5:$O$12,14),0))","v":""},{"$f":"IF('Project Scope'!$C107=\"\",\"\",'TRM Data'!$U$3)","v":""},{"$f":"IF('Project Scope'!$C107=\"\",\"\",'TRM Data'!$V$3)","v":""},{"$f":"IF('Project Scope'!$C107=\"\",\"\",IF($K107<=0,0,MAX(0,(IF(AND($I107>0,$J107>0),($I107*$J107)/1000,($G107*$H107)/1000)*$L107))*$BT107*$BR107)+($CD107/0.003412))","v":""},{"$f":"IF('Project Scope'!$C107=\"\",\"\",IF($K107<=0,0,MAX(0,IF(AND($I107>0,$J107>0),($I107*$J107)/1000,($G107*$H107)/1000))*$BQ107))","v":""},{"$f":"IF('Project Scope'!$C107=\"\",\"\",IF($K107<=0,0,MAX(0,IF(AND($I107>0,$J107>0),($I107*$J107)/1000,($G107*$H107)/1000))*$BK107))","v":""},{"$f":"IF('Project Scope'!$C107=\"\",\"\",IF($K107<=0,0,MAX(0,IF(AND($I107>0,$J107>0),($I107*$J107)/1000,($G107*$H107)/1000))*$BL107*$BQ107))","v":""},{"$f":"IF('Project Scope'!$C107=\"\",\"\",IF(OR($K107<=0,'Project Information'!$D$44=\"\"),0,-1*MAX(0,IF(AND($I107>0,$J107>0),($I107*$J107)/1000,($G107*$H107)/1000))*$BT107*$L107*$BS107*VLOOKUP('Project Information'!$D$44,'CBAT Lookups'!$A$23:$H$30,2)))","v":""},{"$f":"IF('Project Scope'!$C107=\"\",\"\",IF(OR($K107<=0,'Project Information'!$D$44=\"\"),0,-1*MAX(0,IF(AND($I107>0,$J107>0),($I107*$J107)/1000,($G107*$H107)/1000))*$BT107*$L107*$BS107*VLOOKUP('Project Information'!$D$44,'CBAT Lookups'!$A$23:$H$30,3)))","v":""},{"$f":"IF('Project Scope'!$C107=\"\",\"\",IF(OR($K107<=0,'Project Information'!$D$44=\"\"),0,-1*MAX(0,IF(AND($I107>0,$J107>0),($I107*$J107)/1000,($G107*$H107)/1000))*$BT107*$L107*$BS107*VLOOKUP('Project Information'!$D$44,'CBAT Lookups'!$A$23:$H$30,4)))","v":""},{"$f":"IF('Project Scope'!$C107=\"\",\"\",IF(OR($K107<=0,'Project Information'!$D$44=\"\"),0,-1*MAX(0,IF(AND($I107>0,$J107>0),($I107*$J107)/1000,($G107*$H107)/1000))*$BT107*$L107*$BS107*VLOOKUP('Project Information'!$D$44,'CBAT Lookups'!$A$23:$H$30,5)))","v":""},{"$f":"IF('Project Scope'!$C107=\"\",\"\",IF(OR($K107<=0,'Project Information'!$D$44=\"\"),0,-1*MAX(0,IF(AND($I107>0,$J107>0),($I107*$J107)/1000,($G107*$H107)/1000))*$BT107*$L107*$BS107*VLOOKUP('Project Information'!$D$44,'CBAT Lookups'!$A$23:$H$30,6)))","v":""},{"$f":"IF('Project Scope'!$C107=\"\",\"\",IF(OR($K107<=0,'Project Information'!$D$44=\"\"),0,-1*MAX(0,IF(AND($I107>0,$J107>0),($I107*$J107)/1000,($G107*$H107)/1000))*$BT107*$L107*$BS107*VLOOKUP('Project Information'!$D$44,'CBAT Lookups'!$A$23:$H$30,7)))","v":""},{"$f":"IF('Project Scope'!$C107=\"\",\"\",IF(OR($K107<=0,'Project Information'!$D$44=\"\"),0,-1*MAX(0,IF(AND($I107>0,$J107>0),($I107*$J107)/1000,($G107*$H107)/1000))*$BT107*$L107*$BS107*VLOOKUP('Project Information'!$D$44,'CBAT Lookups'!$A$23:$H$30,8)))","v":""},null,{"$f":"IF('Project Scope'!$C107=\"\",\"\",VLOOKUP($F107,'CBAT Lookups'!$B$17:$K$19,4))","v":""},{"$f":"IF('Project Scope'!$C107=\"\",\"\",VLOOKUP($F107,'CBAT Lookups'!$B$17:$K$19,5))","v":""},{"$f":"IF('Project Scope'!$C107=\"\",\"\",VLOOKUP($F107,'CBAT Lookups'!$B$17:$K$19,6))","v":""},{"$f":"IF('Project Scope'!$C107=\"\",\"\",VLOOKUP($F107,'CBAT Lookups'!$B$17:$K$19,7))","v":""},{"$f":"IF('Project Scope'!$C107=\"\",\"\",IF(SUMPRODUCT($BM107:$BP107,$CL107:$CO107)=0,0,BM107*CL107/SUMPRODUCT($BM107:$BP107,$CL107:$CO107)))","v":""},{"$f":"IF('Project Scope'!$C107=\"\",\"\",IF(SUMPRODUCT($BM107:$BP107,$CL107:$CO107)=0,0,BN107*CM107/SUMPRODUCT($BM107:$BP107,$CL107:$CO107)))","v":""},{"$f":"IF('Project Scope'!$C107=\"\",\"\",IF(SUMPRODUCT($BM107:$BP107,$CL107:$CO107)=0,0,BO107*CN107/SUMPRODUCT($BM107:$BP107,$CL107:$CO107)))","v":""},{"$f":"IF('Project Scope'!$C107=\"\",\"\",IF(SUMPRODUCT($BM107:$BP107,$CL107:$CO107)=0,0,BP107*CO107/SUMPRODUCT($BM107:$BP107,$CL107:$CO107)))","v":""},{"$f":"IF('Project Scope'!$C107=\"\",\"\",Benefits($BZ107,$CB107,$CC107,$CE107,$CF107,$CG107,$CH107,$CI107,$CJ107,$CK107,$BJ107,$CP107,$CQ107,$CR107,$CS107,$BU107,$BV107,$BW107,$BX107,$BY107,$E107))","v":""},"","","","","","","","",null,{"$f":"IF('Project Scope'!$C107=\"\",\"\",SUM('Project Scope'!$BB107,'Project Scope'!$BC107))","v":""},{"$f":"IF('Project Scope'!$C107=\"\",\"\",SUM('Project Scope'!$BH107, 'Project Scope'!$AZ107,(IF(ISNUMBER('Project Scope'!$BA107),'Project Scope'!$BA107,0)*'Project Information'!$D$12)))","v":""},null,null,{"$f":"IF('Project Scope'!$C107=\"\",\"\",IF($J107<=0,0,(SUMPRODUCT($AV107:$BC107,--($AV107:$BC107>0))+$BE107)*$DK107/((-SUMPRODUCT($AV107:$BC107,--($AV107:$BC107<0))+$BG107+$BH107+$BI107)*$DK107)))","v":""},{"$f":"IF('Project Scope'!$C107=\"\",\"\",IF($K107<=0,0,(SUMPRODUCT($CT107:$DA107,--($CT107:$DA107>0))+$DC107)*$DK107/((-SUMPRODUCT($CT107:$DA107,--($CT107:$DA107<0))+$DE107+$DF107+$DG107)*$DK107)))","v":""},{"$f":"IF('Project Scope'!$C107=\"\",\"\",IF(AND($J107<=0,$K107<=0),0,(SUMPRODUCT($AV107:$BC107,--($AV107:$BC107>0))+$BE107+SUMPRODUCT($CT107:$DA107,--($CT107:$DA107>0))+$DC107)*$DK107/((-SUMPRODUCT($AV107:$BC107,--($AV107:$BC107<0))+$BG107+$BH107+$BI107-SUMPRODUCT($CT107:$DA107,--($CT107:$DA107<0))+$DE107+$DF107+$DG107)*$DK107)))","v":""},{"$f":"IF('Project Scope'!$C107=\"\",\"\",IF(NetOrGross=\"Net\",(1-Z107+AA107),1))","v":""}]

{"sheet":"CBAT Lookups","index":12,"n_rows":57,"n_cols":15,"rows_kept":57,"cut":false,"hidden":true,"merged":[[20,0,20,1],[1,0,3,0],[1,1,3,1],[1,2,1,3],[2,2,3,2],[2,3,3,3],[13,0,15,0],[13,1,15,1],[13,2,13,3],[14,2,15,2],[14,3,15,3],[2,12,2,14],[14,6,14,7],[2,8,2,10],[14,8,14,10],[1,4,1,7],[2,4,2,5],[2,6,2,7],[13,4,13,7],[14,4,14,5]]}
[]
["Measure","Code","Coincidence Factor",null,"Energy Period Factors"]
[null,null,"Winter On-Peak","Summer On-Peak","Winter",null,"Summer",null,"Interactive Factors",null,null,null,"Adjustment Factors"]
[null,null,null,null,"Peak","Off Peak","Peak","Off Peak","WHFd","WHFe,cool","WHFe,heat","Useful Life","ISR","RRE","RRD"]
["Lighting Controls – High/Low Bay, Retrofit","Controls-Bay",0.12,0.18,0.5,0.19,0.23,0.09,1.077,1.032,8.4999999999999995E-4,10,1,0.99,1.01]
["Lighting Controls – Exterior Spaces","Controls-Exterior",0,0,0,0,0,0,1,1,0,10,1,0.99,1.01]
["Lighting Controls – Interior Spaces","Controls-Interior",0.12,0.18,0.5,0.19,0.23,0.09,1.1160000000000001,1.048,1.2700000000000001E-3,10,1,0.99,1.01]
["Lighting Controls – Refrigerated Spaces","Controls-Refrigerated",0.307,0.307,0.30399999999999999,0.36199999999999999,0.156,0.17899999999999999,1.29,1.29,0,9,1,0.99,1.01]
["Lighting Fixtures – High/Low Bay, Retrofit","Fixtures-Bay",0.45300000000000001,0.60899999999999999,0.436,0.23799999999999999,0.21,0.11600000000000001,1.077,1.032,8.4999999999999995E-4,13,1,1,1]
["Lighting Fixtures – Exterior Spaces","Fixtures-Exterior",0.78,0,0.436,0.23799999999999999,0.21,0.11600000000000001,1,1,0,13,1,1,1]
["Lighting Fixtures – Interior Spaces","Fixtures-Interior",0.45300000000000001,0.60899999999999999,0.436,0.23799999999999999,0.21,0.11600000000000001,1.1160000000000001,1.048,1.2700000000000001E-3,13,1,1,1]
["Lighting Fixtures – Refrigerated Spaces","Fixtures-Refrigerated",0.84699999999999998,0.90800000000000003,0.39700000000000002,0.26700000000000002,0.19700000000000001,0.13900000000000001,1.29,1.29,0,13,1,0.99,1.01]
[]
[null,"Seasonality","Coincidence Factor",null,"Energy Period Factors"]
[null,null,"Winter On-Peak","Summer On-Peak","Winter",null,"Summer",null,"Interactive Factors"]
[null,null,null,null,"Peak","Off Peak","Peak","Off Peak","WHFd","WHFe,cool","WHFe,heat"]
[null,"Summer",0,1,0.13150000000000001,0.12414650000000001,1,1,1,1,0]
[null,"Winter",1,0,0.61309999999999998,0.62880000000000003,0,0,"W","W",1]
[null,"Year-long",1,1,1,1,1,1,1,1,1]
[]
["WHF Heating fuel allocations"]
["Fuel Type","Electricity","Natural Gas","Propane","Heating Oil","Kerosene","Wood","Water"]
["Electric",1,0,0,0,0,0,0]
["Gas",0,1,0,0,0,0,0]
["Heat Pump",0.3,0,0,0,0,0,0]
["Kerosene",0,0,0,0,1,0,0]
["Oil",0,0,0,1,0,0,0]
["Propane",0,0,1,0,0,0,0]
["Unknown",0,0.1,7.0000000000000007E-2,0.76,7.0000000000000007E-2,0,0]
["Wood",0,0,0,0,0,1,0]
[]
["Space Type","SVG"]
[{"$f":"C33","v":"Assembly"},0.25,{"$f":"'HOU - Facility Space Type'!A4","v":"Assembly"}]
[{"$f":"C34","v":"Break Room"},0.2,{"$f":"'HOU - Facility Space Type'!A5","v":"Break Room"}]
[{"$f":"C35","v":"Cafeteria"},0.25,{"$f":"'HOU - Facility Space Type'!A6","v":"Cafeteria"}]
[{"$f":"C36","v":"Classroom"},0.3,{"$f":"'HOU - Facility Space Type'!A7","v":"Classroom"}]
[{"$f":"C37","v":"Conference"},0.45,{"$f":"'HOU - Facility Space Type'!A8","v":"Conference"}]
["Cooler/Freezer Case",0.31]
[{"$f":"C39","v":"Dining"},0.25,{"$f":"'HOU - Facility Space Type'!A9","v":"Dining"}]
[{"$f":"C40","v":"Equipment/Engineering Space"},0.25,{"$f":"'HOU - Facility Space Type'!A10","v":"Equipment/Engineering Space"}]
[{"$f":"C41","v":"Gym/Fitness"},0.35,{"$f":"'HOU - Facility Space Type'!A11","v":"Gym/Fitness"}]
[{"$f":"C42","v":"Hallway/Corridor"},0.15,{"$f":"'HOU - Facility Space Type'!A12","v":"Hallway/Corridor"}]
[{"$f":"C43","v":"Kitchen"},0.25,{"$f":"'HOU - Facility Space Type'!A13","v":"Kitchen"}]
[{"$f":"C44","v":"Library"},0.25,{"$f":"'HOU - Facility Space Type'!A14","v":"Library"}]
["Lobby or Concierge",0.25,{"$f":"'HOU - Facility Space Type'!A23","v":"Lobby or Concierge"}]
["Nurses_Station",0.25,{"$f":"'HOU - Facility Space Type'!A25","v":"Nurses_Station"}]
["Office_Closed",0.3,{"$f":"'HOU - Facility Space Type'!A15","v":"Office_Closed"}]
["Office_Open",0.15,{"$f":"'HOU - Facility Space Type'!A16","v":"Office_Open"}]
["Other - User defined",0.25,{"$f":"'HOU - Facility Space Type'!A17","v":"Other - User defined"}]
["Patient_Rooms",0.25,{"$f":"'HOU - Facility Space Type'!A26","v":"Patient_Rooms"}]
["Production",0.25,{"$f":"'HOU - Facility Space Type'!A18","v":"Production"}]
["Restroom",0.4,{"$f":"'HOU - Facility Space Type'!A19","v":"Restroom"}]
["Retail_Space",0.25,{"$f":"'HOU - Facility Space Type'!A20","v":"Retail_Space"}]
["Sleeping/Living Spaces",0.25,{"$f":"'HOU - Facility Space Type'!A24","v":"Sleeping/Living Spaces"}]
["Storage",0.55000000000000004,{"$f":"'HOU - Facility Space Type'!A21","v":"Storage"}]
["Treatment_Rooms",0.25,{"$f":"'HOU - Facility Space Type'!A27","v":"Treatment_Rooms"}]
["Warehouse",0.5,{"$f":"'HOU - Facility Space Type'!A22","v":"Warehouse"}]

{"sheet":"effRT Support","index":13,"n_rows":205,"n_cols":31,"rows_kept":205,"cut":false,"hidden":true,"merged":[]}
["Reference Columns","'Project Scope'!$F","'Project Scope'!$F",null,"'Project Scope'!$C",null,"'Project Scope'!$H","'Project Scope'!$J","'Project Scope'!$N","'Project Scope'!$J","'Project Scope'!$M","'Project Scope'!$AP","'Project Scope'!$Q","'Project Scope'!$Q","'Project Scope'!$AQ","'Project Scope'!$AO","'Project Scope'!$BT","'Project Scope'!$BL","'Project Scope'!$BO","'Project Scope'!$BI","'Project Scope'!$AA","CBAT!$AB","CBAT!$AC","CBAT!$AD","CBAT!$AE","CBAT!$AG","CBAT!$AH","CBAT!$AI","CBAT!$AJ","CBAT!$AK","CBAT!$AL"]
[null,"CBAT!$DJ","'Project Scope'!$G"]
[null,null,null,null,null,null,null,null,null,null,null,"'Project Scope'!$AY","'Project Scope'!$AC","'Project Scope'!$AC",null,"'Project Scope'!$AX","'Project Scope'!$BU","'Project Scope'!$BM","'Project Scope'!$BP","'Project Scope'!$BJ","'Project Scope'!$AI","CBAT!$BZ","CBAT!$CB","CBAT!$CC","CBAT!$CD","CBAT!$CE","CBAT!$CF","CBAT!$CG","CBAT!$CH","CBAT!$CI","CBAT!$CJ"]
[]
["Reference Row","Add effRT Row?","Add Project Scope Row","effRT Measure Number","Location","Deemed or Custom Hours?","Space Type","Existing Fixture Description","Existing Fixture Quantity","Existing Fixture Wattage","Annual Hours of Operation","Measure Code","Installed Fixture Description","effRT Measure Name","Installed Fixture Wattage","Installed Measure Quantity","Measure Cost","Material Cost","Labor Cost","Ancillary Costs - Measure Specific","Incentive Amount","kWh","kW","Winter kW","Summer kW","Natural Gas","Propane","Heating Oil","Kerosene","Wood","Water"]
[8,{"$f":"IF(AND(OR(INDIRECT(B$1&$A6)=\"Fixtures\",INDIRECT(B$1&$A6)=\"Fixtures and Controls\"),INDIRECT(B$2&$A6)>1),1,0)","v":0},{"$f":"IF($B6=1,1,IF(AND(OR(INDIRECT(C$1&$A6)=\"Fixtures\",INDIRECT(C$1&$A6)=\"Fixtures and Controls\"),INDIRECT(C$2&$A6)=\"Yes\"),1,0))","v":0},{"$f":"IF($B6=1,$B6,\"\")","v":""},{"$f":"IF(INDIRECT(E$1&$A6)=\"\",\"\",INDIRECT(E$1&$A6))","v":""},{"$f":"IF(COUNTIF('Project Information'!$J$9:$BG$9,$E6)=1,IF(INDEX('Project Information'!$J$15:$BG$15,1,MATCH($E6,'Project Information'!$J$9:$BG$9,0))=\"Yes\",\"Actual\",\"Deemed\"),\"\")","v":""},{"$f":"IF(INDIRECT(G$1&$A6)=\"\",\"\",INDIRECT(G$1&$A6))","v":""},"","",{"$f":"IF(OR(INDIRECT(J$1&$A6)=\"\",COUNTIF('TRM Data'!$R$4:$S$168,INDIRECT(J$1&$A6))<>1),\"\",VLOOKUP(INDIRECT(J$1&$A6),'TRM Data'!$R$4:$S$168,2))","v":""},{"$f":"IF(INDIRECT(K$1&$A6)=\"\",\"\",INDIRECT(K$1&$A6))","v":""},{"$f":"IF(INDIRECT(L$1&$A6)=\"\",\"\",INDIRECT(L$1&$A6))","v":""},{"$f":"IF(INDIRECT(M$1&$A6)=\"\",\"\",INDIRECT(M$1&$A6))","v":""},{"$f":"IF(INDIRECT(N$1&$A6)=\"\",\"\",VLOOKUP(VLOOKUP(INDIRECT(N$1&$A6),'TRM Data'!$C$5:$N$200,COLUMN('TRM Data'!$E$2)-COLUMN('TRM Data'!$C$2)+1,FALSE),'Other Data'!$G$158:$H$178,2))","v":""},{"$f":"IF(INDIRECT(O$1&$A6)=\"\",\"\",INDIRECT(O$1&$A6))","v":""},"","","","","","",{"$f":"IF($B6=0,\"\",INDIRECT(V$1&$A6))","v":""},{"$f":"IF($B6=0,\"\",INDIRECT(W$1&$A6))","v":""},"","","","","","","",""]
[8,{"$f":"IF(AND(OR(INDIRECT(B$1&$A6)=\"Controls\",INDIRECT(B$1&$A6)=\"Fixtures and Controls\"),INDIRECT(B$2&$A6)>1),1,0)","v":0},{"$f":"IF($B7=1,1,IF(AND(OR(INDIRECT(C$1&$A7)=\"Controls\",INDIRECT(C$1&$A7)=\"Fixtures and Controls\"),INDIRECT(C$2&$A7)=\"Yes\"),1,0))","v":0},{"$f":"IF($B7=1,SUM($B$5:$B7),\"\")","v":""},{"$f":"IF(INDIRECT(E$1&$A7)=\"\",\"\",INDIRECT(E$1&$A7))","v":""},{"$f":"IF(COUNTIF('Project Information'!$J$9:$BG$9,$E7)=1,IF(INDEX('Project Information'!$J$15:$BG$15,1,MATCH($E7,'Project Information'!$J$9:$BG$9,0))=\"Yes\",\"Actual\",\"Deemed\"),\"\")","v":""},"","","",{"$f":"IF(OR(INDIRECT(J$1&$A7)=\"\",COUNTIF('TRM Data'!$R$4:$S$168,INDIRECT(J$1&$A7))<>1),\"\",VLOOKUP(INDIRECT(J$1&$A7),'TRM Data'!$R$4:$S$168,2))","v":""},{"$f":"IF(INDIRECT(K$1&$A7)=\"\",\"\",INDIRECT(K$1&$A7))","v":""},{"$f":"IF(INDIRECT(L$3&$A7)=\"\",\"\",INDIRECT(L$3&$A7))","v":""},{"$f":"IF(INDIRECT(M$3&$A7)=\"\",\"\",INDIRECT(M$3&$A7))","v":""},{"$f":"IF(INDIRECT(N$3&$A7)=\"\",\"\",VLOOKUP(VLOOKUP(INDIRECT(N$3&$A7),'TRM Data'!$C$5:$N$200,COLUMN('TRM Data'!$E$2)-COLUMN('TRM Data'!$C$2)+1,FALSE),'Other Data'!$G$158:$H$178,2))","v":""},{"$f":"IF(INDIRECT(O$1&$A7)=\"\",\"\",INDIRECT(O$1&$A7))","v":""},{"$f":"IF(INDIRECT(P$3&$A7)=\"\",\"\",INDIRECT(P$3&$A7))","v":""},"","","","","",{"$f":"IF($B7=0,\"\",INDIRECT(V$3&$A7))","v":""},{"$f":"IF($B7=0,\"\",INDIRECT(W$3&$A7))","v":""},"","","","","","","",""]
[{"$f":"A6+1","v":9},{"$f":"IF(AND(OR(INDIRECT(B$1&$A8)=\"Fixtures\",INDIRECT(B$1&$A8)=\"Fixtures and Controls\"),INDIRECT(B$2&$A8)>1),1,0)","v":0},{"$f":"IF($B8=1,1,IF(AND(OR(INDIRECT(C$1&$A8)=\"Fixtures\",INDIRECT(C$1&$A8)=\"Fixtures and Controls\"),INDIRECT(C$2&$A8)=\"Yes\"),1,0))","v":0},{"$f":"IF($B8=1,$B8,\"\")","v":""},"",{"$f":"IF(COUNTIF('Project Information'!$J$9:$BG$9,$E8)=1,IF(INDEX('Project Information'!$J$15:$BG$15,1,MATCH($E8,'Project Information'!$J$9:$BG$9,0))=\"Yes\",\"Actual\",\"Deemed\"),\"\")","v":""},{"$f":"IF(INDIRECT(G$1&$A8)=\"\",\"\",INDIRECT(G$1&$A8))","v":""},"","",{"$f":"IF(OR(INDIRECT(J$1&$A8)=\"\",COUNTIF('TRM Data'!$R$4:$S$168,INDIRECT(J$1&$A8))<>1),\"\",VLOOKUP(INDIRECT(J$1&$A8),'TRM Data'!$R$4:$S$168,2))","v":""},{"$f":"IF(INDIRECT(K$1&$A8)=\"\",\"\",INDIRECT(K$1&$A8))","v":""},"","",{"$f":"IF(INDIRECT(N$1&$A8)=\"\",\"\",VLOOKUP(VLOOKUP(INDIRECT(N$1&$A8),'TRM Data'!$C$5:$N$200,COLUMN('TRM Data'!$E$2)-COLUMN('TRM Data'!$C$2)+1,FALSE),'Other Data'!$G$158:$H$178,2))","v":""},{"$f":"IF(INDIRECT(O$1&$A8)=\"\",\"\",INDIRECT(O$1&$A8))","v":""},"","","","","","",{"$f":"IF($B8=0,\"\",INDIRECT(V$1&$A8))","v":""},"","","","","","","","",""]
[{"$f":"A7+1","v":9},{"$f":"IF(AND(OR(INDIRECT(B$1&$A8)=\"Controls\",INDIRECT(B$1&$A8)=\"Fixtures and Controls\"),INDIRECT(B$2&$A8)>1),1,0)","v":0},{"$f":"IF($B9=1,1,IF(AND(OR(INDIRECT(C$1&$A9)=\"Controls\",INDIRECT(C$1&$A9)=\"Fixtures and Controls\"),INDIRECT(C$2&$A9)=\"Yes\"),1,0))","v":0},{"$f":"IF($B9=1,SUM($B$5:$B9),\"\")","v":""},"",{"$f":"IF(COUNTIF('Project Information'!$J$9:$BG$9,$E9)=1,IF(INDEX('Project Information'!$J$15:$BG$15,1,MATCH($E9,'Project Information'!$J$9:$BG$9,0))=\"Yes\",\"Actual\",\"Deemed\"),\"\")","v":""},"","","",{"$f":"IF(OR(INDIRECT(J$1&$A9)=\"\",COUNTIF('TRM Data'!$R$4:$S$168,INDIRECT(J$1&$A9))<>1),\"\",VLOOKUP(INDIRECT(J$1&$A9),'TRM Data'!$R$4:$S$168,2))","v":""},"",{"$f":"IF(INDIRECT(L$3&$A9)=\"\",\"\",INDIRECT(L$3&$A9))","v":""},"",{"$f":"IF(INDIRECT(N$3&$A9)=\"\",\"\",VLOOKUP(VLOOKUP(INDIRECT(N$3&$A9),'TRM Data'!$C$5:$N$200,COLUMN('TRM Data'!$E$2)-COLUMN('TRM Data'!$C$2)+1,FALSE),'Other Data'!$G$158:$H$178,2))","v":""},"",{"$f":"IF(INDIRECT(P$3&$A9)=\"\",\"\",INDIRECT(P$3&$A9))","v":""},"","","","","",{"$f":"IF($B9=0,\"\",INDIRECT(V$3&$A9))","v":""},"","","","","","","","",""]
[{"$f":"A8+1","v":10},{"$f":"IF(AND(OR(INDIRECT(B$1&$A10)=\"Fixtures\",INDIRECT(B$1&$A10)=\"Fixtures and Controls\"),INDIRECT(B$2&$A10)>1),1,0)","v":0},{"$f":"IF($B10=1,1,IF(AND(OR(INDIRECT(C$1&$A10)=\"Fixtures\",INDIRECT(C$1&$A10)=\"Fixtures and Controls\"),INDIRECT(C$2&$A10)=\"Yes\"),1,0))","v":0},{"$f":"IF($B10=1,$B10,\"\")","v":""},"",{"$f":"IF(COUNTIF('Project Information'!$J$9:$BG$9,$E10)=1,IF(INDEX('Project Information'!$J$15:$BG$15,1,MATCH($E10,'Project Information'!$J$9:$BG$9,0))=\"Yes\",\"Actual\",\"Deemed\"),\"\")","v":""},"","","",{"$f":"IF(OR(INDIRECT(J$1&$A10)=\"\",COUNTIF('TRM Data'!$R$4:$S$168,INDIRECT(J$1&$A10))<>1),\"\",VLOOKUP(INDIRECT(J$1&$A10),'TRM Data'!$R$4:$S$168,2))","v":""},"","","",{"$f":"IF(INDIRECT(N$1&$A10)=\"\",\"\",VLOOKUP(VLOOKUP(INDIRECT(N$1&$A10),'TRM Data'!$C$5:$N$200,COLUMN('TRM Data'!$E$2)-COLUMN('TRM Data'!$C$2)+1,FALSE),'Other Data'!$G$158:$H$178,2))","v":""},"","","","","","","",{"$f":"IF($B10=0,\"\",INDIRECT(V$1&$A10))","v":""},"","","","","","","","",""]
[10,{"$f":"IF(AND(OR(INDIRECT(B$1&$A10)=\"Controls\",INDIRECT(B$1&$A10)=\"Fixtures and Controls\"),INDIRECT(B$2&$A10)>1),1,0)","v":0},{"$f":"IF($B11=1,1,IF(AND(OR(INDIRECT(C$1&$A11)=\"Controls\",INDIRECT(C$1&$A11)=\"Fixtures and Controls\"),INDIRECT(C$2&$A11)=\"Yes\"),1,0))","v":0},{"$f":"IF($B11=1,SUM($B$5:$B11),\"\")","v":""},"",{"$f":"IF(COUNTIF('Project Information'!$J$9:$BG$9,$E11)=1,IF(INDEX('Project Information'!$J$15:$BG$15,1,MATCH($E11,'Project Information'!$J$9:$BG$9,0))=\"Yes\",\"Actual\",\"Deemed\"),\"\")","v":""},"","","",{"$f":"IF(OR(INDIRECT(J$1&$A11)=\"\",COUNTIF('TRM Data'!$R$4:$S$168,INDIRECT(J$1&$A11))<>1),\"\",VLOOKUP(INDIRECT(J$1&$A11),'TRM Data'!$R$4:$S$168,2))","v":""},"",{"$f":"IF(INDIRECT(L$3&$A11)=\"\",\"\",INDIRECT(L$3&$A11))","v":""},"",{"$f":"IF(INDIRECT(N$3&$A11)=\"\",\"\",VLOOKUP(VLOOKUP(INDIRECT(N$3&$A11),'TRM Data'!$C$5:$N$200,COLUMN('TRM Data'!$E$2)-COLUMN('TRM Data'!$C$2)+1,FALSE),'Other Data'!$G$158:$H$178,2))","v":""},"",{"$f":"IF(INDIRECT(P$3&$A11)=\"\",\"\",INDIRECT(P$3&$A11))","v":""},"","","","","",{"$f":"IF($B11=0,\"\",INDIRECT(V$3&$A11))","v":""},"","","","","","","","",""]
[11,{"$f":"IF(AND(OR(INDIRECT(B$1&$A12)=\"Fixtures\",INDIRECT(B$1&$A12)=\"Fixtures and Controls\"),INDIRECT(B$2&$A12)>1),1,0)","v":0},{"$f":"IF($B12=1,1,IF(AND(OR(INDIRECT(C$1&$A12)=\"Fixtures\",INDIRECT(C$1&$A12)=\"Fixtures and Controls\"),INDIRECT(C$2&$A12)=\"Yes\"),1,0))","v":0},{"$f":"IF($B12=1,$B12,\"\")","v":""},"",{"$f":"IF(COUNTIF('Project Information'!$J$9:$BG$9,$E12)=1,IF(INDEX('Project Information'!$J$15:$BG$15,1,MATCH($E12,'Project Information'!$J$9:$BG$9,0))=\"Yes\",\"Actual\",\"Deemed\"),\"\")","v":""},"","","",{"$f":"IF(OR(INDIRECT(J$1&$A12)=\"\",COUNTIF('TRM Data'!$R$4:$S$168,INDIRECT(J$1&$A12))<>1),\"\",VLOOKUP(INDIRECT(J$1&$A12),'TRM Data'!$R$4:$S$168,2))","v":""},"","","",{"$f":"IF(INDIRECT(N$1&$A12)=\"\",\"\",VLOOKUP(VLOOKUP(INDIRECT(N$1&$A12),'TRM Data'!$C$5:$N$200,COLUMN('TRM Data'!$E$2)-COLUMN('TRM Data'!$C$2)+1,FALSE),'Other Data'!$G$158:$H$178,2))","v":""},"","","","","","","",{"$f":"IF($B12=0,\"\",INDIRECT(V$1&$A12))","v":""},"","","","","","","","",""]
[11,{"$f":"IF(AND(OR(INDIRECT(B$1&$A12)=\"Controls\",INDIRECT(B$1&$A12)=\"Fixtures and Controls\"),INDIRECT(B$2&$A12)>1),1,0)","v":0},{"$f":"IF($B13=1,1,IF(AND(OR(INDIRECT(C$1&$A13)=\"Controls\",INDIRECT(C$1&$A13)=\"Fixtures and Controls\"),INDIRECT(C$2&$A13)=\"Yes\"),1,0))","v":0},{"$f":"IF($B13=1,SUM($B$5:$B13),\"\")","v":""},"",{"$f":"IF(COUNTIF('Project Information'!$J$9:$BG$9,$E13)=1,IF(INDEX('Project Information'!$J$15:$BG$15,1,MATCH($E13,'Project Information'!$J$9:$BG$9,0))=\"Yes\",\"Actual\",\"Deemed\"),\"\")","v":""},"","","",{"$f":"IF(OR(INDIRECT(J$1&$A13)=\"\",COUNTIF('TRM Data'!$R$4:$S$168,INDIRECT(J$1&$A13))<>1),\"\",VLOOKUP(INDIRECT(J$1&$A13),'TRM Data'!$R$4:$S$168,2))","v":""},"",{"$f":"IF(INDIRECT(L$3&$A13)=\"\",\"\",INDIRECT(L$3&$A13))","v":""},"",{"$f":"IF(INDIRECT(N$3&$A13)=\"\",\"\",VLOOKUP(VLOOKUP(INDIRECT(N$3&$A13),'TRM Data'!$C$5:$N$200,COLUMN('TRM Data'!$E$2)-COLUMN('TRM Data'!$C$2)+1,FALSE),'Other Data'!$G$158:$H$178,2))","v":""},"",{"$f":"IF(INDIRECT(P$3&$A13)=\"\",\"\",INDIRECT(P$3&$A13))","v":""},"","","","","",{"$f":"IF($B13=0,\"\",INDIRECT(V$3&$A13))","v":""},"","","","","","","","",""]
[12,{"$f":"IF(AND(OR(INDIRECT(B$1&$A14)=\"Fixtures\",INDIRECT(B$1&$A14)=\"Fixtures and Controls\"),INDIRECT(B$2&$A14)>1),1,0)","v":0},{"$f":"IF($B14=1,1,IF(AND(OR(INDIRECT(C$1&$A14)=\"Fixtures\",INDIRECT(C$1&$A14)=\"Fixtures and Controls\"),INDIRECT(C$2&$A14)=\"Yes\"),1,0))","v":0},{"$f":"IF($B14=1,$B14,\"\")","v":""},"",{"$f":"IF(COUNTIF('Project Information'!$J$9:$BG$9,$E14)=1,IF(INDEX('Project Information'!$J$15:$BG$15,1,MATCH($E14,'Project Information'!$J$9:$BG$9,0))=\"Yes\",\"Actual\",\"Deemed\"),\"\")","v":""},"","","",{"$f":"IF(OR(INDIRECT(J$1&$A14)=\"\",COUNTIF('TRM Data'!$R$4:$S$168,INDIRECT(J$1&$A14))<>1),\"\",VLOOKUP(INDIRECT(J$1&$A14),'TRM Data'!$R$4:$S$168,2))","v":""},"","","",{"$f":"IF(INDIRECT(N$1&$A14)=\"\",\"\",VLOOKUP(VLOOKUP(INDIRECT(N$1&$A14),'TRM Data'!$C$5:$N$200,COLUMN('TRM Data'!$E$2)-COLUMN('TRM Data'!$C$2)+1,FALSE),'Other Data'!$G$158:$H$178,2))","v":""},"","","","","","","",{"$f":"IF($B14=0,\"\",INDIRECT(V$1&$A14))","v":""},"","","","","","","","",""]
[12,{"$f":"IF(AND(OR(INDIRECT(B$1&$A14)=\"Controls\",INDIRECT(B$1&$A14)=\"Fixtures and Controls\"),INDIRECT(B$2&$A14)>1),1,0)","v":0},{"$f":"IF($B15=1,1,IF(AND(OR(INDIRECT(C$1&$A15)=\"Controls\",INDIRECT(C$1&$A15)=\"Fixtures and Controls\"),INDIRECT(C$2&$A15)=\"Yes\"),1,0))","v":0},{"$f":"IF($B15=1,SUM($B$5:$B15),\"\")","v":""},"",{"$f":"IF(COUNTIF('Project Information'!$J$9:$BG$9,$E15)=1,IF(INDEX('Project Information'!$J$15:$BG$15,1,MATCH($E15,'Project Information'!$J$9:$BG$9,0))=\"Yes\",\"Actual\",\"Deemed\"),\"\")","v":""},"","","",{"$f":"IF(OR(INDIRECT(J$1&$A15)=\"\",COUNTIF('TRM Data'!$R$4:$S$168,INDIRECT(J$1&$A15))<>1),\"\",VLOOKUP(INDIRECT(J$1&$A15),'TRM Data'!$R$4:$S$168,2))","v":""},"",{"$f":"IF(INDIRECT(L$3&$A15)=\"\",\"\",INDIRECT(L$3&$A15))","v":""},"",{"$f":"IF(INDIRECT(N$3&$A15)=\"\",\"\",VLOOKUP(VLOOKUP(INDIRECT(N$3&$A15),'TRM Data'!$C$5:$N$200,COLUMN('TRM Data'!$E$2)-COLUMN('TRM Data'!$C$2)+1,FALSE),'Other Data'!$G$158:$H$178,2))","v":""},"",{"$f":"IF(INDIRECT(P$3&$A15)=\"\",\"\",INDIRECT(P$3&$A15))","v":""},"","","","","",{"$f":"IF($B15=0,\"\",INDIRECT(V$3&$A15))","v":""},"","","","","","","","",""]
[13,{"$f":"IF(AND(OR(INDIRECT(B$1&$A16)=\"Fixtures\",INDIRECT(B$1&$A16)=\"Fixtures and Controls\"),INDIRECT(B$2&$A16)>1),1,0)","v":0},{"$f":"IF($B16=1,1,IF(AND(OR(INDIRECT(C$1&$A16)=\"Fixtures\",INDIRECT(C$1&$A16)=\"Fixtures and Controls\"),INDIRECT(C$2&$A16)=\"Yes\"),1,0))","v":0},{"$f":"IF($B16=1,$B16,\"\")","v":""},"",{"$f":"IF(COUNTIF('Project Information'!$J$9:$BG$9,$E16)=1,IF(INDEX('Project Information'!$J$15:$BG$15,1,MATCH($E16,'Project Information'!$J$9:$BG$9,0))=\"Yes\",\"Actual\",\"Deemed\"),\"\")","v":""},"","","",{"$f":"IF(OR(INDIRECT(J$1&$A16)=\"\",COUNTIF('TRM Data'!$R$4:$S$168,INDIRECT(J$1&$A16))<>1),\"\",VLOOKUP(INDIRECT(J$1&$A16),'TRM Data'!$R$4:$S$168,2))","v":""},"","","",{"$f":"IF(INDIRECT(N$1&$A16)=\"\",\"\",VLOOKUP(VLOOKUP(INDIRECT(N$1&$A16),'TRM Data'!$C$5:$N$200,COLUMN('TRM Data'!$E$2)-COLUMN('TRM Data'!$C$2)+1,FALSE),'Other Data'!$G$158:$H$178,2))","v":""},"","","","","","","",{"$f":"IF($B16=0,\"\",INDIRECT(V$1&$A16))","v":""},"","","","","","","","",""]
[13,{"$f":"IF(AND(OR(INDIRECT(B$1&$A16)=\"Controls\",INDIRECT(B$1&$A16)=\"Fixtures and Controls\"),INDIRECT(B$2&$A16)>1),1,0)","v":0},{"$f":"IF($B17=1,1,IF(AND(OR(INDIRECT(C$1&$A17)=\"Controls\",INDIRECT(C$1&$A17)=\"Fixtures and Controls\"),INDIRECT(C$2&$A17)=\"Yes\"),1,0))","v":0},{"$f":"IF($B17=1,SUM($B$5:$B17),\"\")","v":""},"",{"$f":"IF(COUNTIF('Project Information'!$J$9:$BG$9,$E17)=1,IF(INDEX('Project Information'!$J$15:$BG$15,1,MATCH($E17,'Project Information'!$J$9:$BG$9,0))=\"Yes\",\"Actual\",\"Deemed\"),\"\")","v":""},"","","",{"$f":"IF(OR(INDIRECT(J$1&$A17)=\"\",COUNTIF('TRM Data'!$R$4:$S$168,INDIRECT(J$1&$A17))<>1),\"\",VLOOKUP(INDIRECT(J$1&$A17),'TRM Data'!$R$4:$S$168,2))","v":""},"",{"$f":"IF(INDIRECT(L$3&$A17)=\"\",\"\",INDIRECT(L$3&$A17))","v":""},"",{"$f":"IF(INDIRECT(N$3&$A17)=\"\",\"\",VLOOKUP(VLOOKUP(INDIRECT(N$3&$A17),'TRM Data'!$C$5:$N$200,COLUMN('TRM Data'!$E$2)-COLUMN('TRM Data'!$C$2)+1,FALSE),'Other Data'!$G$158:$H$178,2))","v":""},"",{"$f":"IF(INDIRECT(P$3&$A17)=\"\",\"\",INDIRECT(P$3&$A17))","v":""},"","","","","",{"$f":"IF($B17=0,\"\",INDIRECT(V$3&$A17))","v":""},"","","","","","","","",""]
[14,{"$f":"IF(AND(OR(INDIRECT(B$1&$A18)=\"Fixtures\",INDIRECT(B$1&$A18)=\"Fixtures and Controls\"),INDIRECT(B$2&$A18)>1),1,0)","v":0},{"$f":"IF($B18=1,1,IF(AND(OR(INDIRECT(C$1&$A18)=\"Fixtures\",INDIRECT(C$1&$A18)=\"Fixtures and Controls\"),INDIRECT(C$2&$A18)=\"Yes\"),1,0))","v":0},{"$f":"IF($B18=1,$B18,\"\")","v":""},"",{"$f":"IF(COUNTIF('Project Information'!$J$9:$BG$9,$E18)=1,IF(INDEX('Project Information'!$J$15:$BG$15,1,MATCH($E18,'Project Information'!$J$9:$BG$9,0))=\"Yes\",\"Actual\",\"Deemed\"),\"\")","v":""},"","","",{"$f":"IF(OR(INDIRECT(J$1&$A18)=\"\",COUNTIF('TRM Data'!$R$4:$S$168,INDIRECT(J$1&$A18))<>1),\"\",VLOOKUP(INDIRECT(J$1&$A18),'TRM Data'!$R$4:$S$168,2))","v":""},"","","",{"$f":"IF(INDIRECT(N$1&$A18)=\"\",\"\",VLOOKUP(VLOOKUP(INDIRECT(N$1&$A18),'TRM Data'!$C$5:$N$200,COLUMN('TRM Data'!$E$2)-COLUMN('TRM Data'!$C$2)+1,FALSE),'Other Data'!$G$158:$H$178,2))","v":""},"","","","","","","",{"$f":"IF($B18=0,\"\",INDIRECT(V$1&$A18))","v":""},"","","","","","","","",""]
[14,{"$f":"IF(AND(OR(INDIRECT(B$1&$A18)=\"Controls\",INDIRECT(B$1&$A18)=\"Fixtures and Controls\"),INDIRECT(B$2&$A18)>1),1,0)","v":0},{"$f":"IF($B19=1,1,IF(AND(OR(INDIRECT(C$1&$A19)=\"Controls\",INDIRECT(C$1&$A19)=\"Fixtures and Controls\"),INDIRECT(C$2&$A19)=\"Yes\"),1,0))","v":0},{"$f":"IF($B19=1,SUM($B$5:$B19),\"\")","v":""},"",{"$f":"IF(COUNTIF('Project Information'!$J$9:$BG$9,$E19)=1,IF(INDEX('Project Information'!$J$15:$BG$15,1,MATCH($E19,'Project Information'!$J$9:$BG$9,0))=\"Yes\",\"Actual\",\"Deemed\"),\"\")","v":""},"","","",{"$f":"IF(OR(INDIRECT(J$1&$A19)=\"\",COUNTIF('TRM Data'!$R$4:$S$168,INDIRECT(J$1&$A19))<>1),\"\",VLOOKUP(INDIRECT(J$1&$A19),'TRM Data'!$R$4:$S$168,2))","v":""},"",{"$f":"IF(INDIRECT(L$3&$A19)=\"\",\"\",INDIRECT(L$3&$A19))","v":""},"",{"$f":"IF(INDIRECT(N$3&$A19)=\"\",\"\",VLOOKUP(VLOOKUP(INDIRECT(N$3&$A19),'TRM Data'!$C$5:$N$200,COLUMN('TRM Data'!$E$2)-COLUMN('TRM Data'!$C$2)+1,FALSE),'Other Data'!$G$158:$H$178,2))","v":""},"",{"$f":"IF(INDIRECT(P$3&$A19)=\"\",\"\",INDIRECT(P$3&$A19))","v":""},"","","","","",{"$f":"IF($B19=0,\"\",INDIRECT(V$3&$A19))","v":""},"","","","","","","","",""]
[15,{"$f":"IF(AND(OR(INDIRECT(B$1&$A20)=\"Fixtures\",INDIRECT(B$1&$A20)=\"Fixtures and Controls\"),INDIRECT(B$2&$A20)>1),1,0)","v":0},{"$f":"IF($B20=1,1,IF(AND(OR(INDIRECT(C$1&$A20)=\"Fixtures\",INDIRECT(C$1&$A20)=\"Fixtures and Controls\"),INDIRECT(C$2&$A20)=\"Yes\"),1,0))","v":0},{"$f":"IF($B20=1,$B20,\"\")","v":""},"",{"$f":"IF(COUNTIF('Project Information'!$J$9:$BG$9,$E20)=1,IF(INDEX('Project Information'!$J$15:$BG$15,1,MATCH($E20,'Project Information'!$J$9:$BG$9,0))=\"Yes\",\"Actual\",\"Deemed\"),\"\")","v":""},"","","",{"$f":"IF(OR(INDIRECT(J$1&$A20)=\"\",COUNTIF('TRM Data'!$R$4:$S$168,INDIRECT(J$1&$A20))<>1),\"\",VLOOKUP(INDIRECT(J$1&$A20),'TRM Data'!$R$4:$S$168,2))","v":""},"","","",{"$f":"IF(INDIRECT(N$1&$A20)=\"\",\"\",VLOOKUP(VLOOKUP(INDIRECT(N$1&$A20),'TRM Data'!$C$5:$N$200,COLUMN('TRM Data'!$E$2)-COLUMN('TRM Data'!$C$2)+1,FALSE),'Other Data'!$G$158:$H$178,2))","v":""},"","","","","","","",{"$f":"IF($B20=0,\"\",INDIRECT(V$1&$A20))","v":""},"","","","","","","","",""]
[15,{"$f":"IF(AND(OR(INDIRECT(B$1&$A20)=\"Controls\",INDIRECT(B$1&$A20)=\"Fixtures and Controls\"),INDIRECT(B$2&$A20)>1),1,0)","v":0},{"$f":"IF($B21=1,1,IF(AND(OR(INDIRECT(C$1&$A21)=\"Controls\",INDIRECT(C$1&$A21)=\"Fixtures and Controls\"),INDIRECT(C$2&$A21)=\"Yes\"),1,0))","v":0},{"$f":"IF($B21=1,SUM($B$5:$B21),\"\")","v":""},"",{"$f":"IF(COUNTIF('Project Information'!$J$9:$BG$9,$E21)=1,IF(INDEX('Project Information'!$J$15:$BG$15,1,MATCH($E21,'Project Information'!$J$9:$BG$9,0))=\"Yes\",\"Actual\",\"Deemed\"),\"\")","v":""},"","","",{"$f":"IF(OR(INDIRECT(J$1&$A21)=\"\",COUNTIF('TRM Data'!$R$4:$S$168,INDIRECT(J$1&$A21))<>1),\"\",VLOOKUP(INDIRECT(J$1&$A21),'TRM Data'!$R$4:$S$168,2))","v":""},"",{"$f":"IF(INDIRECT(L$3&$A21)=\"\",\"\",INDIRECT(L$3&$A21))","v":""},"",{"$f":"IF(INDIRECT(N$3&$A21)=\"\",\"\",VLOOKUP(VLOOKUP(INDIRECT(N$3&$A21),'TRM Data'!$C$5:$N$200,COLUMN('TRM Data'!$E$2)-COLUMN('TRM Data'!$C$2)+1,FALSE),'Other Data'!$G$158:$H$178,2))","v":""},"",{"$f":"IF(INDIRECT(P$3&$A21)=\"\",\"\",INDIRECT(P$3&$A21))","v":""},"","","","","",{"$f":"IF($B21=0,\"\",INDIRECT(V$3&$A21))","v":""},"","","","","","","","",""]
[16,{"$f":"IF(AND(OR(INDIRECT(B$1&$A22)=\"Fixtures\",INDIRECT(B$1&$A22)=\"Fixtures and Controls\"),INDIRECT(B$2&$A22)>1),1,0)","v":0},{"$f":"IF($B22=1,1,IF(AND(OR(INDIRECT(C$1&$A22)=\"Fixtures\",INDIRECT(C$1&$A22)=\"Fixtures and Controls\"),INDIRECT(C$2&$A22)=\"Yes\"),1,0))","v":0},{"$f":"IF($B22=1,$B22,\"\")","v":""},"",{"$f":"IF(COUNTIF('Project Information'!$J$9:$BG$9,$E22)=1,IF(INDEX('Project Information'!$J$15:$BG$15,1,MATCH($E22,'Project Information'!$J$9:$BG$9,0))=\"Yes\",\"Actual\",\"Deemed\"),\"\")","v":""},"","","",{"$f":"IF(OR(INDIRECT(J$1&$A22)=\"\",COUNTIF('TRM Data'!$R$4:$S$168,INDIRECT(J$1&$A22))<>1),\"\",VLOOKUP(INDIRECT(J$1&$A22),'TRM Data'!$R$4:$S$168,2))","v":""},"","","",{"$f":"IF(INDIRECT(N$1&$A22)=\"\",\"\",VLOOKUP(VLOOKUP(INDIRECT(N$1&$A22),'TRM Data'!$C$5:$N$200,COLUMN('TRM Data'!$E$2)-COLUMN('TRM Data'!$C$2)+1,FALSE),'Other Data'!$G$158:$H$178,2))","v":""},"","","","","","","",{"$f":"IF($B22=0,\"\",INDIRECT(V$1&$A22))","v":""},"","","","","","","","",""]
[16,{"$f":"IF(AND(OR(INDIRECT(B$1&$A22)=\"Controls\",INDIRECT(B$1&$A22)=\"Fixtures and Controls\"),INDIRECT(B$2&$A22)>1),1,0)","v":0},{"$f":"IF($B23=1,1,IF(AND(OR(INDIRECT(C$1&$A23)=\"Controls\",INDIRECT(C$1&$A23)=\"Fixtures and Controls\"),INDIRECT(C$2&$A23)=\"Yes\"),1,0))","v":0},{"$f":"IF($B23=1,SUM($B$5:$B23),\"\")","v":""},"",{"$f":"IF(COUNTIF('Project Information'!$J$9:$BG$9,$E23)=1,IF(INDEX('Project Information'!$J$15:$BG$15,1,MATCH($E23,'Project Information'!$J$9:$BG$9,0))=\"Yes\",\"Actual\",\"Deemed\"),\"\")","v":""},"","","",{"$f":"IF(OR(INDIRECT(J$1&$A23)=\"\",COUNTIF('TRM Data'!$R$4:$S$168,INDIRECT(J$1&$A23))<>1),\"\",VLOOKUP(INDIRECT(J$1&$A23),'TRM Data'!$R$4:$S$168,2))","v":""},"",{"$f":"IF(INDIRECT(L$3&$A23)=\"\",\"\",INDIRECT(L$3&$A23))","v":""},"",{"$f":"IF(INDIRECT(N$3&$A23)=\"\",\"\",VLOOKUP(VLOOKUP(INDIRECT(N$3&$A23),'TRM Data'!$C$5:$N$200,COLUMN('TRM Data'!$E$2)-COLUMN('TRM Data'!$C$2)+1,FALSE),'Other Data'!$G$158:$H$178,2))","v":""},"",{"$f":"IF(INDIRECT(P$3&$A23)=\"\",\"\",INDIRECT(P$3&$A23))","v":""},"","","","","",{"$f":"IF($B23=0,\"\",INDIRECT(V$3&$A23))","v":""},"","","","","","","","",""]
[17,{"$f":"IF(AND(OR(INDIRECT(B$1&$A24)=\"Fixtures\",INDIRECT(B$1&$A24)=\"Fixtures and Controls\"),INDIRECT(B$2&$A24)>1),1,0)","v":0},{"$f":"IF($B24=1,1,IF(AND(OR(INDIRECT(C$1&$A24)=\"Fixtures\",INDIRECT(C$1&$A24)=\"Fixtures and Controls\"),INDIRECT(C$2&$A24)=\"Yes\"),1,0))","v":0},{"$f":"IF($B24=1,$B24,\"\")","v":""},"",{"$f":"IF(COUNTIF('Project Information'!$J$9:$BG$9,$E24)=1,IF(INDEX('Project Information'!$J$15:$BG$15,1,MATCH($E24,'Project Information'!$J$9:$BG$9,0))=\"Yes\",\"Actual\",\"Deemed\"),\"\")","v":""},"","","",{"$f":"IF(OR(INDIRECT(J$1&$A24)=\"\",COUNTIF('TRM Data'!$R$4:$S$168,INDIRECT(J$1&$A24))<>1),\"\",VLOOKUP(INDIRECT(J$1&$A24),'TRM Data'!$R$4:$S$168,2))","v":""},"","","",{"$f":"IF(INDIRECT(N$1&$A24)=\"\",\"\",VLOOKUP(VLOOKUP(INDIRECT(N$1&$A24),'TRM Data'!$C$5:$N$200,COLUMN('TRM Data'!$E$2)-COLUMN('TRM Data'!$C$2)+1,FALSE),'Other Data'!$G$158:$H$178,2))","v":""},"","","","","","","",{"$f":"IF($B24=0,\"\",INDIRECT(V$1&$A24))","v":""},"","","","","","","","",""]
[17,{"$f":"IF(AND(OR(INDIRECT(B$1&$A24)=\"Controls\",INDIRECT(B$1&$A24)=\"Fixtures and Controls\"),INDIRECT(B$2&$A24)>1),1,0)","v":0},{"$f":"IF($B25=1,1,IF(AND(OR(INDIRECT(C$1&$A25)=\"Controls\",INDIRECT(C$1&$A25)=\"Fixtures and Controls\"),INDIRECT(C$2&$A25)=\"Yes\"),1,0))","v":0},{"$f":"IF($B25=1,SUM($B$5:$B25),\"\")","v":""},"",{"$f":"IF(COUNTIF('Project Information'!$J$9:$BG$9,$E25)=1,IF(INDEX('Project Information'!$J$15:$BG$15,1,MATCH($E25,'Project Information'!$J$9:$BG$9,0))=\"Yes\",\"Actual\",\"Deemed\"),\"\")","v":""},"","","",{"$f":"IF(OR(INDIRECT(J$1&$A25)=\"\",COUNTIF('TRM Data'!$R$4:$S$168,INDIRECT(J$1&$A25))<>1),\"\",VLOOKUP(INDIRECT(J$1&$A25),'TRM Data'!$R$4:$S$168,2))","v":""},"",{"$f":"IF(INDIRECT(L$3&$A25)=\"\",\"\",INDIRECT(L$3&$A25))","v":""},"",{"$f":"IF(INDIRECT(N$3&$A25)=\"\",\"\",VLOOKUP(VLOOKUP(INDIRECT(N$3&$A25),'TRM Data'!$C$5:$N$200,COLUMN('TRM Data'!$E$2)-COLUMN('TRM Data'!$C$2)+1,FALSE),'Other Data'!$G$158:$H$178,2))","v":""},"",{"$f":"IF(INDIRECT(P$3&$A25)=\"\",\"\",INDIRECT(P$3&$A25))","v":""},"","","","","",{"$f":"IF($B25=0,\"\",INDIRECT(V$3&$A25))","v":""},"","","","","","","","",""]
[18,{"$f":"IF(AND(OR(INDIRECT(B$1&$A26)=\"Fixtures\",INDIRECT(B$1&$A26)=\"Fixtures and Controls\"),INDIRECT(B$2&$A26)>1),1,0)","v":0},{"$f":"IF($B26=1,1,IF(AND(OR(INDIRECT(C$1&$A26)=\"Fixtures\",INDIRECT(C$1&$A26)=\"Fixtures and Controls\"),INDIRECT(C$2&$A26)=\"Yes\"),1,0))","v":0},{"$f":"IF($B26=1,$B26,\"\")","v":""},"",{"$f":"IF(COUNTIF('Project Information'!$J$9:$BG$9,$E26)=1,IF(INDEX('Project Information'!$J$15:$BG$15,1,MATCH($E26,'Project Information'!$J$9:$BG$9,0))=\"Yes\",\"Actual\",\"Deemed\"),\"\")","v":""},"","","",{"$f":"IF(OR(INDIRECT(J$1&$A26)=\"\",COUNTIF('TRM Data'!$R$4:$S$168,INDIRECT(J$1&$A26))<>1),\"\",VLOOKUP(INDIRECT(J$1&$A26),'TRM Data'!$R$4:$S$168,2))","v":""},"","","",{"$f":"IF(INDIRECT(N$1&$A26)=\"\",\"\",VLOOKUP(VLOOKUP(INDIRECT(N$1&$A26),'TRM Data'!$C$5:$N$200,COLUMN('TRM Data'!$E$2)-COLUMN('TRM Data'!$C$2)+1,FALSE),'Other Data'!$G$158:$H$178,2))","v":""},"","","","","","","",{"$f":"IF($B26=0,\"\",INDIRECT(V$1&$A26))","v":""},"","","","","","","","",""]
[18,{"$f":"IF(AND(OR(INDIRECT(B$1&$A26)=\"Controls\",INDIRECT(B$1&$A26)=\"Fixtures and Controls\"),INDIRECT(B$2&$A26)>1),1,0)","v":0},{"$f":"IF($B27=1,1,IF(AND(OR(INDIRECT(C$1&$A27)=\"Controls\",INDIRECT(C$1&$A27)=\"Fixtures and Controls\"),INDIRECT(C$2&$A27)=\"Yes\"),1,0))","v":0},{"$f":"IF($B27=1,SUM($B$5:$B27),\"\")","v":""},"",{"$f":"IF(COUNTIF('Project Information'!$J$9:$BG$9,$E27)=1,IF(INDEX('Project Information'!$J$15:$BG$15,1,MATCH($E27,'Project Information'!$J$9:$BG$9,0))=\"Yes\",\"Actual\",\"Deemed\"),\"\")","v":""},"","","",{"$f":"IF(OR(INDIRECT(J$1&$A27)=\"\",COUNTIF('TRM Data'!$R$4:$S$168,INDIRECT(J$1&$A27))<>1),\"\",VLOOKUP(INDIRECT(J$1&$A27),'TRM Data'!$R$4:$S$168,2))","v":""},"",{"$f":"IF(INDIRECT(L$3&$A27)=\"\",\"\",INDIRECT(L$3&$A27))","v":""},"",{"$f":"IF(INDIRECT(N$3&$A27)=\"\",\"\",VLOOKUP(VLOOKUP(INDIRECT(N$3&$A27),'TRM Data'!$C$5:$N$200,COLUMN('TRM Data'!$E$2)-COLUMN('TRM Data'!$C$2)+1,FALSE),'Other Data'!$G$158:$H$178,2))","v":""},"",{"$f":"IF(INDIRECT(P$3&$A27)=\"\",\"\",INDIRECT(P$3&$A27))","v":""},"","","","","",{"$f":"IF($B27=0,\"\",INDIRECT(V$3&$A27))","v":""},"","","","","","","","",""]
[19,{"$f":"IF(AND(OR(INDIRECT(B$1&$A28)=\"Fixtures\",INDIRECT(B$1&$A28)=\"Fixtures and Controls\"),INDIRECT(B$2&$A28)>1),1,0)","v":0},{"$f":"IF($B28=1,1,IF(AND(OR(INDIRECT(C$1&$A28)=\"Fixtures\",INDIRECT(C$1&$A28)=\"Fixtures and Controls\"),INDIRECT(C$2&$A28)=\"Yes\"),1,0))","v":0},{"$f":"IF($B28=1,$B28,\"\")","v":""},"",{"$f":"IF(COUNTIF('Project Information'!$J$9:$BG$9,$E28)=1,IF(INDEX('Project Information'!$J$15:$BG$15,1,MATCH($E28,'Project Information'!$J$9:$BG$9,0))=\"Yes\",\"Actual\",\"Deemed\"),\"\")","v":""},"","","",{"$f":"IF(OR(INDIRECT(J$1&$A28)=\"\",COUNTIF('TRM Data'!$R$4:$S$168,INDIRECT(J$1&$A28))<>1),\"\",VLOOKUP(INDIRECT(J$1&$A28),'TRM Data'!$R$4:$S$168,2))","v":""},"","","",{"$f":"IF(INDIRECT(N$1&$A28)=\"\",\"\",VLOOKUP(VLOOKUP(INDIRECT(N$1&$A28),'TRM Data'!$C$5:$N$200,COLUMN('TRM Data'!$E$2)-COLUMN('TRM Data'!$C$2)+1,FALSE),'Other Data'!$G$158:$H$178,2))","v":""},"","","","","","","",{"$f":"IF($B28=0,\"\",INDIRECT(V$1&$A28))","v":""},"","","","","","","","",""]
[19,{"$f":"IF(AND(OR(INDIRECT(B$1&$A28)=\"Controls\",INDIRECT(B$1&$A28)=\"Fixtures and Controls\"),INDIRECT(B$2&$A28)>1),1,0)","v":0},{"$f":"IF($B29=1,1,IF(AND(OR(INDIRECT(C$1&$A29)=\"Controls\",INDIRECT(C$1&$A29)=\"Fixtures and Controls\"),INDIRECT(C$2&$A29)=\"Yes\"),1,0))","v":0},{"$f":"IF($B29=1,SUM($B$5:$B29),\"\")","v":""},"",{"$f":"IF(COUNTIF('Project Information'!$J$9:$BG$9,$E29)=1,IF(INDEX('Project Information'!$J$15:$BG$15,1,MATCH($E29,'Project Information'!$J$9:$BG$9,0))=\"Yes\",\"Actual\",\"Deemed\"),\"\")","v":""},"","","",{"$f":"IF(OR(INDIRECT(J$1&$A29)=\"\",COUNTIF('TRM Data'!$R$4:$S$168,INDIRECT(J$1&$A29))<>1),\"\",VLOOKUP(INDIRECT(J$1&$A29),'TRM Data'!$R$4:$S$168,2))","v":""},"",{"$f":"IF(INDIRECT(L$3&$A29)=\"\",\"\",INDIRECT(L$3&$A29))","v":""},"",{"$f":"IF(INDIRECT(N$3&$A29)=\"\",\"\",VLOOKUP(VLOOKUP(INDIRECT(N$3&$A29),'TRM Data'!$C$5:$N$200,COLUMN('TRM Data'!$E$2)-COLUMN('TRM Data'!$C$2)+1,FALSE),'Other Data'!$G$158:$H$178,2))","v":""},"",{"$f":"IF(INDIRECT(P$3&$A29)=\"\",\"\",INDIRECT(P$3&$A29))","v":""},"","","","","",{"$f":"IF($B29=0,\"\",INDIRECT(V$3&$A29))","v":""},"","","","","","","","",""]
[20,{"$f":"IF(AND(OR(INDIRECT(B$1&$A30)=\"Fixtures\",INDIRECT(B$1&$A30)=\"Fixtures and Controls\"),INDIRECT(B$2&$A30)>1),1,0)","v":0},{"$f":"IF($B30=1,1,IF(AND(OR(INDIRECT(C$1&$A30)=\"Fixtures\",INDIRECT(C$1&$A30)=\"Fixtures and Controls\"),INDIRECT(C$2&$A30)=\"Yes\"),1,0))","v":0},{"$f":"IF($B30=1,$B30,\"\")","v":""},"",{"$f":"IF(COUNTIF('Project Information'!$J$9:$BG$9,$E30)=1,IF(INDEX('Project Information'!$J$15:$BG$15,1,MATCH($E30,'Project Information'!$J$9:$BG$9,0))=\"Yes\",\"Actual\",\"Deemed\"),\"\")","v":""},"","","",{"$f":"IF(OR(INDIRECT(J$1&$A30)=\"\",COUNTIF('TRM Data'!$R$4:$S$168,INDIRECT(J$1&$A30))<>1),\"\",VLOOKUP(INDIRECT(J$1&$A30),'TRM Data'!$R$4:$S$168,2))","v":""},"","","",{"$f":"IF(INDIRECT(N$1&$A30)=\"\",\"\",VLOOKUP(VLOOKUP(INDIRECT(N$1&$A30),'TRM Data'!$C$5:$N$200,COLUMN('TRM Data'!$E$2)-COLUMN('TRM Data'!$C$2)+1,FALSE),'Other Data'!$G$158:$H$178,2))","v":""},"","","","","","","",{"$f":"IF($B30=0,\"\",INDIRECT(V$1&$A30))","v":""},"","","","","","","","",""]
[20,{"$f":"IF(AND(OR(INDIRECT(B$1&$A30)=\"Controls\",INDIRECT(B$1&$A30)=\"Fixtures and Controls\"),INDIRECT(B$2&$A30)>1),1,0)","v":0},{"$f":"IF($B31=1,1,IF(AND(OR(INDIRECT(C$1&$A31)=\"Controls\",INDIRECT(C$1&$A31)=\"Fixtures and Controls\"),INDIRECT(C$2&$A31)=\"Yes\"),1,0))","v":0},{"$f":"IF($B31=1,SUM($B$5:$B31),\"\")","v":""},"",{"$f":"IF(COUNTIF('Project Information'!$J$9:$BG$9,$E31)=1,IF(INDEX('Project Information'!$J$15:$BG$15,1,MATCH($E31,'Project Information'!$J$9:$BG$9,0))=\"Yes\",\"Actual\",\"Deemed\"),\"\")","v":""},"","","",{"$f":"IF(OR(INDIRECT(J$1&$A31)=\"\",COUNTIF('TRM Data'!$R$4:$S$168,INDIRECT(J$1&$A31))<>1),\"\",VLOOKUP(INDIRECT(J$1&$A31),'TRM Data'!$R$4:$S$168,2))","v":""},"",{"$f":"IF(INDIRECT(L$3&$A31)=\"\",\"\",INDIRECT(L$3&$A31))","v":""},"",{"$f":"IF(INDIRECT(N$3&$A31)=\"\",\"\",VLOOKUP(VLOOKUP(INDIRECT(N$3&$A31),'TRM Data'!$C$5:$N$200,COLUMN('TRM Data'!$E$2)-COLUMN('TRM Data'!$C$2)+1,FALSE),'Other Data'!$G$158:$H$178,2))","v":""},"",{"$f":"IF(INDIRECT(P$3&$A31)=\"\",\"\",INDIRECT(P$3&$A31))","v":""},"","","","","",{"$f":"IF($B31=0,\"\",INDIRECT(V$3&$A31))","v":""},"","","","","","","","",""]
[21,{"$f":"IF(AND(OR(INDIRECT(B$1&$A32)=\"Fixtures\",INDIRECT(B$1&$A32)=\"Fixtures and Controls\"),INDIRECT(B$2&$A32)>1),1,0)","v":0},{"$f":"IF($B32=1,1,IF(AND(OR(INDIRECT(C$1&$A32)=\"Fixtures\",INDIRECT(C$1&$A32)=\"Fixtures and Controls\"),INDIRECT(C$2&$A32)=\"Yes\"),1,0))","v":0},{"$f":"IF($B32=1,$B32,\"\")","v":""},"",{"$f":"IF(COUNTIF('Project Information'!$J$9:$BG$9,$E32)=1,IF(INDEX('Project Information'!$J$15:$BG$15,1,MATCH($E32,'Project Information'!$J$9:$BG$9,0))=\"Yes\",\"Actual\",\"Deemed\"),\"\")","v":""},"","","",{"$f":"IF(OR(INDIRECT(J$1&$A32)=\"\",COUNTIF('TRM Data'!$R$4:$S$168,INDIRECT(J$1&$A32))<>1),\"\",VLOOKUP(INDIRECT(J$1&$A32),'TRM Data'!$R$4:$S$168,2))","v":""},"","","",{"$f":"IF(INDIRECT(N$1&$A32)=\"\",\"\",VLOOKUP(VLOOKUP(INDIRECT(N$1&$A32),'TRM Data'!$C$5:$N$200,COLUMN('TRM Data'!$E$2)-COLUMN('TRM Data'!$C$2)+1,FALSE),'Other Data'!$G$158:$H$178,2))","v":""},"","","","","","","",{"$f":"IF($B32=0,\"\",INDIRECT(V$1&$A32))","v":""},"","","","","","","","",""]
[21,{"$f":"IF(AND(OR(INDIRECT(B$1&$A32)=\"Controls\",INDIRECT(B$1&$A32)=\"Fixtures and Controls\"),INDIRECT(B$2&$A32)>1),1,0)","v":0},{"$f":"IF($B33=1,1,IF(AND(OR(INDIRECT(C$1&$A33)=\"Controls\",INDIRECT(C$1&$A33)=\"Fixtures and Controls\"),INDIRECT(C$2&$A33)=\"Yes\"),1,0))","v":0},{"$f":"IF($B33=1,SUM($B$5:$B33),\"\")","v":""},"",{"$f":"IF(COUNTIF('Project Information'!$J$9:$BG$9,$E33)=1,IF(INDEX('Project Information'!$J$15:$BG$15,1,MATCH($E33,'Project Information'!$J$9:$BG$9,0))=\"Yes\",\"Actual\",\"Deemed\"),\"\")","v":""},"","","",{"$f":"IF(OR(INDIRECT(J$1&$A33)=\"\",COUNTIF('TRM Data'!$R$4:$S$168,INDIRECT(J$1&$A33))<>1),\"\",VLOOKUP(INDIRECT(J$1&$A33),'TRM Data'!$R$4:$S$168,2))","v":""},"",{"$f":"IF(INDIRECT(L$3&$A33)=\"\",\"\",INDIRECT(L$3&$A33))","v":""},"",{"$f":"IF(INDIRECT(N$3&$A33)=\"\",\"\",VLOOKUP(VLOOKUP(INDIRECT(N$3&$A33),'TRM Data'!$C$5:$N$200,COLUMN('TRM Data'!$E$2)-COLUMN('TRM Data'!$C$2)+1,FALSE),'Other Data'!$G$158:$H$178,2))","v":""},"",{"$f":"IF(INDIRECT(P$3&$A33)=\"\",\"\",INDIRECT(P$3&$A33))","v":""},"","","","","",{"$f":"IF($B33=0,\"\",INDIRECT(V$3&$A33))","v":""},"","","","","","","","",""]
[22,{"$f":"IF(AND(OR(INDIRECT(B$1&$A34)=\"Fixtures\",INDIRECT(B$1&$A34)=\"Fixtures and Controls\"),INDIRECT(B$2&$A34)>1),1,0)","v":0},{"$f":"IF($B34=1,1,IF(AND(OR(INDIRECT(C$1&$A34)=\"Fixtures\",INDIRECT(C$1&$A34)=\"Fixtures and Controls\"),INDIRECT(C$2&$A34)=\"Yes\"),1,0))","v":0},{"$f":"IF($B34=1,$B34,\"\")","v":""},"",{"$f":"IF(COUNTIF('Project Information'!$J$9:$BG$9,$E34)=1,IF(INDEX('Project Information'!$J$15:$BG$15,1,MATCH($E34,'Project Information'!$J$9:$BG$9,0))=\"Yes\",\"Actual\",\"Deemed\"),\"\")","v":""},"","","",{"$f":"IF(OR(INDIRECT(J$1&$A34)=\"\",COUNTIF('TRM Data'!$R$4:$S$168,INDIRECT(J$1&$A34))<>1),\"\",VLOOKUP(INDIRECT(J$1&$A34),'TRM Data'!$R$4:$S$168,2))","v":""},"","","",{"$f":"IF(INDIRECT(N$1&$A34)=\"\",\"\",VLOOKUP(VLOOKUP(INDIRECT(N$1&$A34),'TRM Data'!$C$5:$N$200,COLUMN('TRM Data'!$E$2)-COLUMN('TRM Data'!$C$2)+1,FALSE),'Other Data'!$G$158:$H$178,2))","v":""},"","","","","","","",{"$f":"IF($B34=0,\"\",INDIRECT(V$1&$A34))","v":""},"","","","","","","","",""]
[22,{"$f":"IF(AND(OR(INDIRECT(B$1&$A34)=\"Controls\",INDIRECT(B$1&$A34)=\"Fixtures and Controls\"),INDIRECT(B$2&$A34)>1),1,0)","v":0},{"$f":"IF($B35=1,1,IF(AND(OR(INDIRECT(C$1&$A35)=\"Controls\",INDIRECT(C$1&$A35)=\"Fixtures and Controls\"),INDIRECT(C$2&$A35)=\"Yes\"),1,0))","v":0},{"$f":"IF($B35=1,SUM($B$5:$B35),\"\")","v":""},"",{"$f":"IF(COUNTIF('Project Information'!$J$9:$BG$9,$E35)=1,IF(INDEX('Project Information'!$J$15:$BG$15,1,MATCH($E35,'Project Information'!$J$9:$BG$9,0))=\"Yes\",\"Actual\",\"Deemed\"),\"\")","v":""},"","","",{"$f":"IF(OR(INDIRECT(J$1&$A35)=\"\",COUNTIF('TRM Data'!$R$4:$S$168,INDIRECT(J$1&$A35))<>1),\"\",VLOOKUP(INDIRECT(J$1&$A35),'TRM Data'!$R$4:$S$168,2))","v":""},"",{"$f":"IF(INDIRECT(L$3&$A35)=\"\",\"\",INDIRECT(L$3&$A35))","v":""},"",{"$f":"IF(INDIRECT(N$3&$A35)=\"\",\"\",VLOOKUP(VLOOKUP(INDIRECT(N$3&$A35),'TRM Data'!$C$5:$N$200,COLUMN('TRM Data'!$E$2)-COLUMN('TRM Data'!$C$2)+1,FALSE),'Other Data'!$G$158:$H$178,2))","v":""},"",{"$f":"IF(INDIRECT(P$3&$A35)=\"\",\"\",INDIRECT(P$3&$A35))","v":""},"","","","","",{"$f":"IF($B35=0,\"\",INDIRECT(V$3&$A35))","v":""},"","","","","","","","",""]
[23,{"$f":"IF(AND(OR(INDIRECT(B$1&$A36)=\"Fixtures\",INDIRECT(B$1&$A36)=\"Fixtures and Controls\"),INDIRECT(B$2&$A36)>1),1,0)","v":0},{"$f":"IF($B36=1,1,IF(AND(OR(INDIRECT(C$1&$A36)=\"Fixtures\",INDIRECT(C$1&$A36)=\"Fixtures and Controls\"),INDIRECT(C$2&$A36)=\"Yes\"),1,0))","v":0},{"$f":"IF($B36=1,$B36,\"\")","v":""},"",{"$f":"IF(COUNTIF('Project Information'!$J$9:$BG$9,$E36)=1,IF(INDEX('Project Information'!$J$15:$BG$15,1,MATCH($E36,'Project Information'!$J$9:$BG$9,0))=\"Yes\",\"Actual\",\"Deemed\"),\"\")","v":""},"","","",{"$f":"IF(OR(INDIRECT(J$1&$A36)=\"\",COUNTIF('TRM Data'!$R$4:$S$168,INDIRECT(J$1&$A36))<>1),\"\",VLOOKUP(INDIRECT(J$1&$A36),'TRM Data'!$R$4:$S$168,2))","v":""},"","","",{"$f":"IF(INDIRECT(N$1&$A36)=\"\",\"\",VLOOKUP(VLOOKUP(INDIRECT(N$1&$A36),'TRM Data'!$C$5:$N$200,COLUMN('TRM Data'!$E$2)-COLUMN('TRM Data'!$C$2)+1,FALSE),'Other Data'!$G$158:$H$178,2))","v":""},"","","","","","","",{"$f":"IF($B36=0,\"\",INDIRECT(V$1&$A36))","v":""},"","","","","","","","",""]
[23,{"$f":"IF(AND(OR(INDIRECT(B$1&$A36)=\"Controls\",INDIRECT(B$1&$A36)=\"Fixtures and Controls\"),INDIRECT(B$2&$A36)>1),1,0)","v":0},{"$f":"IF($B37=1,1,IF(AND(OR(INDIRECT(C$1&$A37)=\"Controls\",INDIRECT(C$1&$A37)=\"Fixtures and Controls\"),INDIRECT(C$2&$A37)=\"Yes\"),1,0))","v":0},{"$f":"IF($B37=1,SUM($B$5:$B37),\"\")","v":""},"",{"$f":"IF(COUNTIF('Project Information'!$J$9:$BG$9,$E37)=1,IF(INDEX('Project Information'!$J$15:$BG$15,1,MATCH($E37,'Project Information'!$J$9:$BG$9,0))=\"Yes\",\"Actual\",\"Deemed\"),\"\")","v":""},"","","",{"$f":"IF(OR(INDIRECT(J$1&$A37)=\"\",COUNTIF('TRM Data'!$R$4:$S$168,INDIRECT(J$1&$A37))<>1),\"\",VLOOKUP(INDIRECT(J$1&$A37),'TRM Data'!$R$4:$S$168,2))","v":""},"",{"$f":"IF(INDIRECT(L$3&$A37)=\"\",\"\",INDIRECT(L$3&$A37))","v":""},"",{"$f":"IF(INDIRECT(N$3&$A37)=\"\",\"\",VLOOKUP(VLOOKUP(INDIRECT(N$3&$A37),'TRM Data'!$C$5:$N$200,COLUMN('TRM Data'!$E$2)-COLUMN('TRM Data'!$C$2)+1,FALSE),'Other Data'!$G$158:$H$178,2))","v":""},"",{"$f":"IF(INDIRECT(P$3&$A37)=\"\",\"\",INDIRECT(P$3&$A37))","v":""},"","","","","",{"$f":"IF($B37=0,\"\",INDIRECT(V$3&$A37))","v":""},"","","","","","","","",""]
[24,{"$f":"IF(AND(OR(INDIRECT(B$1&$A38)=\"Fixtures\",INDIRECT(B$1&$A38)=\"Fixtures and Controls\"),INDIRECT(B$2&$A38)>1),1,0)","v":0},{"$f":"IF($B38=1,1,IF(AND(OR(INDIRECT(C$1&$A38)=\"Fixtures\",INDIRECT(C$1&$A38)=\"Fixtures and Controls\"),INDIRECT(C$2&$A38)=\"Yes\"),1,0))","v":0},{"$f":"IF($B38=1,$B38,\"\")","v":""},"",{"$f":"IF(COUNTIF('Project Information'!$J$9:$BG$9,$E38)=1,IF(INDEX('Project Information'!$J$15:$BG$15,1,MATCH($E38,'Project Information'!$J$9:$BG$9,0))=\"Yes\",\"Actual\",\"Deemed\"),\"\")","v":""},"","","",{"$f":"IF(OR(INDIRECT(J$1&$A38)=\"\",COUNTIF('TRM Data'!$R$4:$S$168,INDIRECT(J$1&$A38))<>1),\"\",VLOOKUP(INDIRECT(J$1&$A38),'TRM Data'!$R$4:$S$168,2))","v":""},"","","",{"$f":"IF(INDIRECT(N$1&$A38)=\"\",\"\",VLOOKUP(VLOOKUP(INDIRECT(N$1&$A38),'TRM Data'!$C$5:$N$200,COLUMN('TRM Data'!$E$2)-COLUMN('TRM Data'!$C$2)+1,FALSE),'Other Data'!$G$158:$H$178,2))","v":""},"","","","","","","",{"$f":"IF($B38=0,\"\",INDIRECT(V$1&$A38))","v":""},"","","","","","","","",""]
[24,{"$f":"IF(AND(OR(INDIRECT(B$1&$A38)=\"Controls\",INDIRECT(B$1&$A38)=\"Fixtures and Controls\"),INDIRECT(B$2&$A38)>1),1,0)","v":0},{"$f":"IF($B39=1,1,IF(AND(OR(INDIRECT(C$1&$A39)=\"Controls\",INDIRECT(C$1&$A39)=\"Fixtures and Controls\"),INDIRECT(C$2&$A39)=\"Yes\"),1,0))","v":0},{"$f":"IF($B39=1,SUM($B$5:$B39),\"\")","v":""},"",{"$f":"IF(COUNTIF('Project Information'!$J$9:$BG$9,$E39)=1,IF(INDEX('Project Information'!$J$15:$BG$15,1,MATCH($E39,'Project Information'!$J$9:$BG$9,0))=\"Yes\",\"Actual\",\"Deemed\"),\"\")","v":""},"","","",{"$f":"IF(OR(INDIRECT(J$1&$A39)=\"\",COUNTIF('TRM Data'!$R$4:$S$168,INDIRECT(J$1&$A39))<>1),\"\",VLOOKUP(INDIRECT(J$1&$A39),'TRM Data'!$R$4:$S$168,2))","v":""},"",{"$f":"IF(INDIRECT(L$3&$A39)=\"\",\"\",INDIRECT(L$3&$A39))","v":""},"",{"$f":"IF(INDIRECT(N$3&$A39)=\"\",\"\",VLOOKUP(VLOOKUP(INDIRECT(N$3&$A39),'TRM Data'!$C$5:$N$200,COLUMN('TRM Data'!$E$2)-COLUMN('TRM Data'!$C$2)+1,FALSE),'Other Data'!$G$158:$H$178,2))","v":""},"",{"$f":"IF(INDIRECT(P$3&$A39)=\"\",\"\",INDIRECT(P$3&$A39))","v":""},"","","","","",{"$f":"IF($B39=0,\"\",INDIRECT(V$3&$A39))","v":""},"","","","","","","","",""]
[25,{"$f":"IF(AND(OR(INDIRECT(B$1&$A40)=\"Fixtures\",INDIRECT(B$1&$A40)=\"Fixtures and Controls\"),INDIRECT(B$2&$A40)>1),1,0)","v":0},{"$f":"IF($B40=1,1,IF(AND(OR(INDIRECT(C$1&$A40)=\"Fixtures\",INDIRECT(C$1&$A40)=\"Fixtures and Controls\"),INDIRECT(C$2&$A40)=\"Yes\"),1,0))","v":0},{"$f":"IF($B40=1,$B40,\"\")","v":""},"",{"$f":"IF(COUNTIF('Project Information'!$J$9:$BG$9,$E40)=1,IF(INDEX('Project Information'!$J$15:$BG$15,1,MATCH($E40,'Project Information'!$J$9:$BG$9,0))=\"Yes\",\"Actual\",\"Deemed\"),\"\")","v":""},{"$f":"IF(INDIRECT(G$1&$A40)=\"\",\"\",INDIRECT(G$1&$A40))","v":""},"","",{"$f":"IF(OR(INDIRECT(J$1&$A40)=\"\",COUNTIF('TRM Data'!$R$4:$S$168,INDIRECT(J$1&$A40))<>1),\"\",VLOOKUP(INDIRECT(J$1&$A40),'TRM Data'!$R$4:$S$168,2))","v":""},{"$f":"IF(INDIRECT(K$1&$A40)=\"\",\"\",INDIRECT(K$1&$A40))","v":""},"","",{"$f":"IF(INDIRECT(N$1&$A40)=\"\",\"\",VLOOKUP(VLOOKUP(INDIRECT(N$1&$A40),'TRM Data'!$C$5:$N$200,COLUMN('TRM Data'!$E$2)-COLUMN('TRM Data'!$C$2)+1,FALSE),'Other Data'!$G$158:$H$178,2))","v":""},{"$f":"IF(INDIRECT(O$1&$A40)=\"\",\"\",INDIRECT(O$1&$A40))","v":""},"","","","","","",{"$f":"IF($B40=0,\"\",INDIRECT(V$1&$A40))","v":""},"","","","","","","","",""]
[25,{"$f":"IF(AND(OR(INDIRECT(B$1&$A40)=\"Controls\",INDIRECT(B$1&$A40)=\"Fixtures and Controls\"),INDIRECT(B$2&$A40)>1),1,0)","v":0},{"$f":"IF($B41=1,1,IF(AND(OR(INDIRECT(C$1&$A41)=\"Controls\",INDIRECT(C$1&$A41)=\"Fixtures and Controls\"),INDIRECT(C$2&$A41)=\"Yes\"),1,0))","v":0},{"$f":"IF($B41=1,SUM($B$5:$B41),\"\")","v":""},"",{"$f":"IF(COUNTIF('Project Information'!$J$9:$BG$9,$E41)=1,IF(INDEX('Project Information'!$J$15:$BG$15,1,MATCH($E41,'Project Information'!$J$9:$BG$9,0))=\"Yes\",\"Actual\",\"Deemed\"),\"\")","v":""},"","","",{"$f":"IF(OR(INDIRECT(J$1&$A41)=\"\",COUNTIF('TRM Data'!$R$4:$S$168,INDIRECT(J$1&$A41))<>1),\"\",VLOOKUP(INDIRECT(J$1&$A41),'TRM Data'!$R$4:$S$168,2))","v":""},"",{"$f":"IF(INDIRECT(L$3&$A41)=\"\",\"\",INDIRECT(L$3&$A41))","v":""},"",{"$f":"IF(INDIRECT(N$3&$A41)=\"\",\"\",VLOOKUP(VLOOKUP(INDIRECT(N$3&$A41),'TRM Data'!$C$5:$N$200,COLUMN('TRM Data'!$E$2)-COLUMN('TRM Data'!$C$2)+1,FALSE),'Other Data'!$G$158:$H$178,2))","v":""},"",{"$f":"IF(INDIRECT(P$3&$A41)=\"\",\"\",INDIRECT(P$3&$A41))","v":""},"","","","","",{"$f":"IF($B41=0,\"\",INDIRECT(V$3&$A41))","v":""},"","","","","","","","",""]
[26,{"$f":"IF(AND(OR(INDIRECT(B$1&$A42)=\"Fixtures\",INDIRECT(B$1&$A42)=\"Fixtures and Controls\"),INDIRECT(B$2&$A42)>1),1,0)","v":0},{"$f":"IF($B42=1,1,IF(AND(OR(INDIRECT(C$1&$A42)=\"Fixtures\",INDIRECT(C$1&$A42)=\"Fixtures and Controls\"),INDIRECT(C$2&$A42)=\"Yes\"),1,0))","v":0},{"$f":"IF($B42=1,$B42,\"\")","v":""},"",{"$f":"IF(COUNTIF('Project Information'!$J$9:$BG$9,$E42)=1,IF(INDEX('Project Information'!$J$15:$BG$15,1,MATCH($E42,'Project Information'!$J$9:$BG$9,0))=\"Yes\",\"Actual\",\"Deemed\"),\"\")","v":""},"","","",{"$f":"IF(OR(INDIRECT(J$1&$A42)=\"\",COUNTIF('TRM Data'!$R$4:$S$168,INDIRECT(J$1&$A42))<>1),\"\",VLOOKUP(INDIRECT(J$1&$A42),'TRM Data'!$R$4:$S$168,2))","v":""},"","","",{"$f":"IF(INDIRECT(N$1&$A42)=\"\",\"\",VLOOKUP(VLOOKUP(INDIRECT(N$1&$A42),'TRM Data'!$C$5:$N$200,COLUMN('TRM Data'!$E$2)-COLUMN('TRM Data'!$C$2)+1,FALSE),'Other Data'!$G$158:$H$178,2))","v":""},"","","","","","","",{"$f":"IF($B42=0,\"\",INDIRECT(V$1&$A42))","v":""},"","","","","","","","",""]
[26,{"$f":"IF(AND(OR(INDIRECT(B$1&$A42)=\"Controls\",INDIRECT(B$1&$A42)=\"Fixtures and Controls\"),INDIRECT(B$2&$A42)>1),1,0)","v":0},{"$f":"IF($B43=1,1,IF(AND(OR(INDIRECT(C$1&$A43)=\"Controls\",INDIRECT(C$1&$A43)=\"Fixtures and Controls\"),INDIRECT(C$2&$A43)=\"Yes\"),1,0))","v":0},{"$f":"IF($B43=1,SUM($B$5:$B43),\"\")","v":""},"",{"$f":"IF(COUNTIF('Project Information'!$J$9:$BG$9,$E43)=1,IF(INDEX('Project Information'!$J$15:$BG$15,1,MATCH($E43,'Project Information'!$J$9:$BG$9,0))=\"Yes\",\"Actual\",\"Deemed\"),\"\")","v":""},"","","",{"$f":"IF(OR(INDIRECT(J$1&$A43)=\"\",COUNTIF('TRM Data'!$R$4:$S$168,INDIRECT(J$1&$A43))<>1),\"\",VLOOKUP(INDIRECT(J$1&$A43),'TRM Data'!$R$4:$S$168,2))","v":""},"",{"$f":"IF(INDIRECT(L$3&$A43)=\"\",\"\",INDIRECT(L$3&$A43))","v":""},"",{"$f":"IF(INDIRECT(N$3&$A43)=\"\",\"\",VLOOKUP(VLOOKUP(INDIRECT(N$3&$A43),'TRM Data'!$C$5:$N$200,COLUMN('TRM Data'!$E$2)-COLUMN('TRM Data'!$C$2)+1,FALSE),'Other Data'!$G$158:$H$178,2))","v":""},"",{"$f":"IF(INDIRECT(P$3&$A43)=\"\",\"\",INDIRECT(P$3&$A43))","v":""},"","","","","",{"$f":"IF($B43=0,\"\",INDIRECT(V$3&$A43))","v":""},"","","","","","","","",""]
[27,{"$f":"IF(AND(OR(INDIRECT(B$1&$A44)=\"Fixtures\",INDIRECT(B$1&$A44)=\"Fixtures and Controls\"),INDIRECT(B$2&$A44)>1),1,0)","v":0},{"$f":"IF($B44=1,1,IF(AND(OR(INDIRECT(C$1&$A44)=\"Fixtures\",INDIRECT(C$1&$A44)=\"Fixtures and Controls\"),INDIRECT(C$2&$A44)=\"Yes\"),1,0))","v":0},{"$f":"IF($B44=1,$B44,\"\")","v":""},"",{"$f":"IF(COUNTIF('Project Information'!$J$9:$BG$9,$E44)=1,IF(INDEX('Project Information'!$J$15:$BG$15,1,MATCH($E44,'Project Information'!$J$9:$BG$9,0))=\"Yes\",\"Actual\",\"Deemed\"),\"\")","v":""},"","","",{"$f":"IF(OR(INDIRECT(J$1&$A44)=\"\",COUNTIF('TRM Data'!$R$4:$S$168,INDIRECT(J$1&$A44))<>1),\"\",VLOOKUP(INDIRECT(J$1&$A44),'TRM Data'!$R$4:$S$168,2))","v":""},"","","",{"$f":"IF(INDIRECT(N$1&$A44)=\"\",\"\",VLOOKUP(VLOOKUP(INDIRECT(N$1&$A44),'TRM Data'!$C$5:$N$200,COLUMN('TRM Data'!$E$2)-COLUMN('TRM Data'!$C$2)+1,FALSE),'Other Data'!$G$158:$H$178,2))","v":""},"","","","","","","",{"$f":"IF($B44=0,\"\",INDIRECT(V$1&$A44))","v":""},"","","","","","","","",""]
[27,{"$f":"IF(AND(OR(INDIRECT(B$1&$A44)=\"Controls\",INDIRECT(B$1&$A44)=\"Fixtures and Controls\"),INDIRECT(B$2&$A44)>1),1,0)","v":0},{"$f":"IF($B45=1,1,IF(AND(OR(INDIRECT(C$1&$A45)=\"Controls\",INDIRECT(C$1&$A45)=\"Fixtures and Controls\"),INDIRECT(C$2&$A45)=\"Yes\"),1,0))","v":0},{"$f":"IF($B45=1,SUM($B$5:$B45),\"\")","v":""},"",{"$f":"IF(COUNTIF('Project Information'!$J$9:$BG$9,$E45)=1,IF(INDEX('Project Information'!$J$15:$BG$15,1,MATCH($E45,'Project Information'!$J$9:$BG$9,0))=\"Yes\",\"Actual\",\"Deemed\"),\"\")","v":""},"","","",{"$f":"IF(OR(INDIRECT(J$1&$A45)=\"\",COUNTIF('TRM Data'!$R$4:$S$168,INDIRECT(J$1&$A45))<>1),\"\",VLOOKUP(INDIRECT(J$1&$A45),'TRM Data'!$R$4:$S$168,2))","v":""},"",{"$f":"IF(INDIRECT(L$3&$A45)=\"\",\"\",INDIRECT(L$3&$A45))","v":""},"",{"$f":"IF(INDIRECT(N$3&$A45)=\"\",\"\",VLOOKUP(VLOOKUP(INDIRECT(N$3&$A45),'TRM Data'!$C$5:$N$200,COLUMN('TRM Data'!$E$2)-COLUMN('TRM Data'!$C$2)+1,FALSE),'Other Data'!$G$158:$H$178,2))","v":""},"",{"$f":"IF(INDIRECT(P$3&$A45)=\"\",\"\",INDIRECT(P$3&$A45))","v":""},"","","","","",{"$f":"IF($B45=0,\"\",INDIRECT(V$3&$A45))","v":""},"","","","","","","","",""]
[28,{"$f":"IF(AND(OR(INDIRECT(B$1&$A46)=\"Fixtures\",INDIRECT(B$1&$A46)=\"Fixtures and Controls\"),INDIRECT(B$2&$A46)>1),1,0)","v":0},{"$f":"IF($B46=1,1,IF(AND(OR(INDIRECT(C$1&$A46)=\"Fixtures\",INDIRECT(C$1&$A46)=\"Fixtures and Controls\"),INDIRECT(C$2&$A46)=\"Yes\"),1,0))","v":0},{"$f":"IF($B46=1,$B46,\"\")","v":""},"",{"$f":"IF(COUNTIF('Project Information'!$J$9:$BG$9,$E46)=1,IF(INDEX('Project Information'!$J$15:$BG$15,1,MATCH($E46,'Project Information'!$J$9:$BG$9,0))=\"Yes\",\"Actual\",\"Deemed\"),\"\")","v":""},"","","",{"$f":"IF(OR(INDIRECT(J$1&$A46)=\"\",COUNTIF('TRM Data'!$R$4:$S$168,INDIRECT(J$1&$A46))<>1),\"\",VLOOKUP(INDIRECT(J$1&$A46),'TRM Data'!$R$4:$S$168,2))","v":""},"","","",{"$f":"IF(INDIRECT(N$1&$A46)=\"\",\"\",VLOOKUP(VLOOKUP(INDIRECT(N$1&$A46),'TRM Data'!$C$5:$N$200,COLUMN('TRM Data'!$E$2)-COLUMN('TRM Data'!$C$2)+1,FALSE),'Other Data'!$G$158:$H$178,2))","v":""},"","","","","","","",{"$f":"IF($B46=0,\"\",INDIRECT(V$1&$A46))","v":""},"","","","","","","","",""]
[28,{"$f":"IF(AND(OR(INDIRECT(B$1&$A46)=\"Controls\",INDIRECT(B$1&$A46)=\"Fixtures and Controls\"),INDIRECT(B$2&$A46)>1),1,0)","v":0},{"$f":"IF($B47=1,1,IF(AND(OR(INDIRECT(C$1&$A47)=\"Controls\",INDIRECT(C$1&$A47)=\"Fixtures and Controls\"),INDIRECT(C$2&$A47)=\"Yes\"),1,0))","v":0},{"$f":"IF($B47=1,SUM($B$5:$B47),\"\")","v":""},"",{"$f":"IF(COUNTIF('Project Information'!$J$9:$BG$9,$E47)=1,IF(INDEX('Project Information'!$J$15:$BG$15,1,MATCH($E47,'Project Information'!$J$9:$BG$9,0))=\"Yes\",\"Actual\",\"Deemed\"),\"\")","v":""},"","","",{"$f":"IF(OR(INDIRECT(J$1&$A47)=\"\",COUNTIF('TRM Data'!$R$4:$S$168,INDIRECT(J$1&$A47))<>1),\"\",VLOOKUP(INDIRECT(J$1&$A47),'TRM Data'!$R$4:$S$168,2))","v":""},"",{"$f":"IF(INDIRECT(L$3&$A47)=\"\",\"\",INDIRECT(L$3&$A47))","v":""},"",{"$f":"IF(INDIRECT(N$3&$A47)=\"\",\"\",VLOOKUP(VLOOKUP(INDIRECT(N$3&$A47),'TRM Data'!$C$5:$N$200,COLUMN('TRM Data'!$E$2)-COLUMN('TRM Data'!$C$2)+1,FALSE),'Other Data'!$G$158:$H$178,2))","v":""},"",{"$f":"IF(INDIRECT(P$3&$A47)=\"\",\"\",INDIRECT(P$3&$A47))","v":""},"","","","","",{"$f":"IF($B47=0,\"\",INDIRECT(V$3&$A47))","v":""},"","","","","","","","",""]
[29,{"$f":"IF(AND(OR(INDIRECT(B$1&$A48)=\"Fixtures\",INDIRECT(B$1&$A48)=\"Fixtures and Controls\"),INDIRECT(B$2&$A48)>1),1,0)","v":0},{"$f":"IF($B48=1,1,IF(AND(OR(INDIRECT(C$1&$A48)=\"Fixtures\",INDIRECT(C$1&$A48)=\"Fixtures and Controls\"),INDIRECT(C$2&$A48)=\"Yes\"),1,0))","v":0},{"$f":"IF($B48=1,$B48,\"\")","v":""},"",{"$f":"IF(COUNTIF('Project Information'!$J$9:$BG$9,$E48)=1,IF(INDEX('Project Information'!$J$15:$BG$15,1,MATCH($E48,'Project Information'!$J$9:$BG$9,0))=\"Yes\",\"Actual\",\"Deemed\"),\"\")","v":""},"","","",{"$f":"IF(OR(INDIRECT(J$1&$A48)=\"\",COUNTIF('TRM Data'!$R$4:$S$168,INDIRECT(J$1&$A48))<>1),\"\",VLOOKUP(INDIRECT(J$1&$A48),'TRM Data'!$R$4:$S$168,2))","v":""},"","","",{"$f":"IF(INDIRECT(N$1&$A48)=\"\",\"\",VLOOKUP(VLOOKUP(INDIRECT(N$1&$A48),'TRM Data'!$C$5:$N$200,COLUMN('TRM Data'!$E$2)-COLUMN('TRM Data'!$C$2)+1,FALSE),'Other Data'!$G$158:$H$178,2))","v":""},"","","","","","","",{"$f":"IF($B48=0,\"\",INDIRECT(V$1&$A48))","v":""},"","","","","","","","",""]
[29,{"$f":"IF(AND(OR(INDIRECT(B$1&$A48)=\"Controls\",INDIRECT(B$1&$A48)=\"Fixtures and Controls\"),INDIRECT(B$2&$A48)>1),1,0)","v":0},{"$f":"IF($B49=1,1,IF(AND(OR(INDIRECT(C$1&$A49)=\"Controls\",INDIRECT(C$1&$A49)=\"Fixtures and Controls\"),INDIRECT(C$2&$A49)=\"Yes\"),1,0))","v":0},{"$f":"IF($B49=1,SUM($B$5:$B49),\"\")","v":""},"",{"$f":"IF(COUNTIF('Project Information'!$J$9:$BG$9,$E49)=1,IF(INDEX('Project Information'!$J$15:$BG$15,1,MATCH($E49,'Project Information'!$J$9:$BG$9,0))=\"Yes\",\"Actual\",\"Deemed\"),\"\")","v":""},"","","",{"$f":"IF(OR(INDIRECT(J$1&$A49)=\"\",COUNTIF('TRM Data'!$R$4:$S$168,INDIRECT(J$1&$A49))<>1),\"\",VLOOKUP(INDIRECT(J$1&$A49),'TRM Data'!$R$4:$S$168,2))","v":""},"",{"$f":"IF(INDIRECT(L$3&$A49)=\"\",\"\",INDIRECT(L$3&$A49))","v":""},"",{"$f":"IF(INDIRECT(N$3&$A49)=\"\",\"\",VLOOKUP(VLOOKUP(INDIRECT(N$3&$A49),'TRM Data'!$C$5:$N$200,COLUMN('TRM Data'!$E$2)-COLUMN('TRM Data'!$C$2)+1,FALSE),'Other Data'!$G$158:$H$178,2))","v":""},"",{"$f":"IF(INDIRECT(P$3&$A49)=\"\",\"\",INDIRECT(P$3&$A49))","v":""},"","","","","",{"$f":"IF($B49=0,\"\",INDIRECT(V$3&$A49))","v":""},"","","","","","","","",""]
[30,{"$f":"IF(AND(OR(INDIRECT(B$1&$A50)=\"Fixtures\",INDIRECT(B$1&$A50)=\"Fixtures and Controls\"),INDIRECT(B$2&$A50)>1),1,0)","v":0},{"$f":"IF($B50=1,1,IF(AND(OR(INDIRECT(C$1&$A50)=\"Fixtures\",INDIRECT(C$1&$A50)=\"Fixtures and Controls\"),INDIRECT(C$2&$A50)=\"Yes\"),1,0))","v":0},{"$f":"IF($B50=1,$B50,\"\")","v":""},"",{"$f":"IF(COUNTIF('Project Information'!$J$9:$BG$9,$E50)=1,IF(INDEX('Project Information'!$J$15:$BG$15,1,MATCH($E50,'Project Information'!$J$9:$BG$9,0))=\"Yes\",\"Actual\",\"Deemed\"),\"\")","v":""},"","","",{"$f":"IF(OR(INDIRECT(J$1&$A50)=\"\",COUNTIF('TRM Data'!$R$4:$S$168,INDIRECT(J$1&$A50))<>1),\"\",VLOOKUP(INDIRECT(J$1&$A50),'TRM Data'!$R$4:$S$168,2))","v":""},"","","",{"$f":"IF(INDIRECT(N$1&$A50)=\"\",\"\",VLOOKUP(VLOOKUP(INDIRECT(N$1&$A50),'TRM Data'!$C$5:$N$200,COLUMN('TRM Data'!$E$2)-COLUMN('TRM Data'!$C$2)+1,FALSE),'Other Data'!$G$158:$H$178,2))","v":""},"","","","","","","",{"$f":"IF($B50=0,\"\",INDIRECT(V$1&$A50))","v":""},"","","","","","","","",""]
[30,{"$f":"IF(AND(OR(INDIRECT(B$1&$A50)=\"Controls\",INDIRECT(B$1&$A50)=\"Fixtures and Controls\"),INDIRECT(B$2&$A50)>1),1,0)","v":0},{"$f":"IF($B51=1,1,IF(AND(OR(INDIRECT(C$1&$A51)=\"Controls\",INDIRECT(C$1&$A51)=\"Fixtures and Controls\"),INDIRECT(C$2&$A51)=\"Yes\"),1,0))","v":0},{"$f":"IF($B51=1,SUM($B$5:$B51),\"\")","v":""},"",{"$f":"IF(COUNTIF('Project Information'!$J$9:$BG$9,$E51)=1,IF(INDEX('Project Information'!$J$15:$BG$15,1,MATCH($E51,'Project Information'!$J$9:$BG$9,0))=\"Yes\",\"Actual\",\"Deemed\"),\"\")","v":""},"","","",{"$f":"IF(OR(INDIRECT(J$1&$A51)=\"\",COUNTIF('TRM Data'!$R$4:$S$168,INDIRECT(J$1&$A51))<>1),\"\",VLOOKUP(INDIRECT(J$1&$A51),'TRM Data'!$R$4:$S$168,2))","v":""},"",{"$f":"IF(INDIRECT(L$3&$A51)=\"\",\"\",INDIRECT(L$3&$A51))","v":""},"",{"$f":"IF(INDIRECT(N$3&$A51)=\"\",\"\",VLOOKUP(VLOOKUP(INDIRECT(N$3&$A51),'TRM Data'!$C$5:$N$200,COLUMN('TRM Data'!$E$2)-COLUMN('TRM Data'!$C$2)+1,FALSE),'Other Data'!$G$158:$H$178,2))","v":""},"",{"$f":"IF(INDIRECT(P$3&$A51)=\"\",\"\",INDIRECT(P$3&$A51))","v":""},"","","","","",{"$f":"IF($B51=0,\"\",INDIRECT(V$3&$A51))","v":""},"","","","","","","","",""]
[31,{"$f":"IF(AND(OR(INDIRECT(B$1&$A52)=\"Fixtures\",INDIRECT(B$1&$A52)=\"Fixtures and Controls\"),INDIRECT(B$2&$A52)>1),1,0)","v":0},{"$f":"IF($B52=1,1,IF(AND(OR(INDIRECT(C$1&$A52)=\"Fixtures\",INDIRECT(C$1&$A52)=\"Fixtures and Controls\"),INDIRECT(C$2&$A52)=\"Yes\"),1,0))","v":0},{"$f":"IF($B52=1,$B52,\"\")","v":""},"",{"$f":"IF(COUNTIF('Project Information'!$J$9:$BG$9,$E52)=1,IF(INDEX('Project Information'!$J$15:$BG$15,1,MATCH($E52,'Project Information'!$J$9:$BG$9,0))=\"Yes\",\"Actual\",\"Deemed\"),\"\")","v":""},"","","",{"$f":"IF(OR(INDIRECT(J$1&$A52)=\"\",COUNTIF('TRM Data'!$R$4:$S$168,INDIRECT(J$1&$A52))<>1),\"\",VLOOKUP(INDIRECT(J$1&$A52),'TRM Data'!$R$4:$S$168,2))","v":""},"","","",{"$f":"IF(INDIRECT(N$1&$A52)=\"\",\"\",VLOOKUP(VLOOKUP(INDIRECT(N$1&$A52),'TRM Data'!$C$5:$N$200,COLUMN('TRM Data'!$E$2)-COLUMN('TRM Data'!$C$2)+1,FALSE),'Other Data'!$G$158:$H$178,2))","v":""},"","","","","","","",{"$f":"IF($B52=0,\"\",INDIRECT(V$1&$A52))","v":""},"","","","","","","","",""]
[31,{"$f":"IF(AND(OR(INDIRECT(B$1&$A52)=\"Controls\",INDIRECT(B$1&$A52)=\"Fixtures and Controls\"),INDIRECT(B$2&$A52)>1),1,0)","v":0},{"$f":"IF($B53=1,1,IF(AND(OR(INDIRECT(C$1&$A53)=\"Controls\",INDIRECT(C$1&$A53)=\"Fixtures and Controls\"),INDIRECT(C$2&$A53)=\"Yes\"),1,0))","v":0},{"$f":"IF($B53=1,SUM($B$5:$B53),\"\")","v":""},"",{"$f":"IF(COUNTIF('Project Information'!$J$9:$BG$9,$E53)=1,IF(INDEX('Project Information'!$J$15:$BG$15,1,MATCH($E53,'Project Information'!$J$9:$BG$9,0))=\"Yes\",\"Actual\",\"Deemed\"),\"\")","v":""},"","","",{"$f":"IF(OR(INDIRECT(J$1&$A53)=\"\",COUNTIF('TRM Data'!$R$4:$S$168,INDIRECT(J$1&$A53))<>1),\"\",VLOOKUP(INDIRECT(J$1&$A53),'TRM Data'!$R$4:$S$168,2))","v":""},"",{"$f":"IF(INDIRECT(L$3&$A53)=\"\",\"\",INDIRECT(L$3&$A53))","v":""},"",{"$f":"IF(INDIRECT(N$3&$A53)=\"\",\"\",VLOOKUP(VLOOKUP(INDIRECT(N$3&$A53),'TRM Data'!$C$5:$N$200,COLUMN('TRM Data'!$E$2)-COLUMN('TRM Data'!$C$2)+1,FALSE),'Other Data'!$G$158:$H$178,2))","v":""},"",{"$f":"IF(INDIRECT(P$3&$A53)=\"\",\"\",INDIRECT(P$3&$A53))","v":""},"","","","","",{"$f":"IF($B53=0,\"\",INDIRECT(V$3&$A53))","v":""},"","","","","","","","",""]
[32,{"$f":"IF(AND(OR(INDIRECT(B$1&$A54)=\"Fixtures\",INDIRECT(B$1&$A54)=\"Fixtures and Controls\"),INDIRECT(B$2&$A54)>1),1,0)","v":0},{"$f":"IF($B54=1,1,IF(AND(OR(INDIRECT(C$1&$A54)=\"Fixtures\",INDIRECT(C$1&$A54)=\"Fixtures and Controls\"),INDIRECT(C$2&$A54)=\"Yes\"),1,0))","v":0},{"$f":"IF($B54=1,$B54,\"\")","v":""},"",{"$f":"IF(COUNTIF('Project Information'!$J$9:$BG$9,$E54)=1,IF(INDEX('Project Information'!$J$15:$BG$15,1,MATCH($E54,'Project Information'!$J$9:$BG$9,0))=\"Yes\",\"Actual\",\"Deemed\"),\"\")","v":""},"","","",{"$f":"IF(OR(INDIRECT(J$1&$A54)=\"\",COUNTIF('TRM Data'!$R$4:$S$168,INDIRECT(J$1&$A54))<>1),\"\",VLOOKUP(INDIRECT(J$1&$A54),'TRM Data'!$R$4:$S$168,2))","v":""},"","","",{"$f":"IF(INDIRECT(N$1&$A54)=\"\",\"\",VLOOKUP(VLOOKUP(INDIRECT(N$1&$A54),'TRM Data'!$C$5:$N$200,COLUMN('TRM Data'!$E$2)-COLUMN('TRM Data'!$C$2)+1,FALSE),'Other Data'!$G$158:$H$178,2))","v":""},"","","","","","","",{"$f":"IF($B54=0,\"\",INDIRECT(V$1&$A54))","v":""},"","","","","","","","",""]
[32,{"$f":"IF(AND(OR(INDIRECT(B$1&$A54)=\"Controls\",INDIRECT(B$1&$A54)=\"Fixtures and Controls\"),INDIRECT(B$2&$A54)>1),1,0)","v":0},{"$f":"IF($B55=1,1,IF(AND(OR(INDIRECT(C$1&$A55)=\"Controls\",INDIRECT(C$1&$A55)=\"Fixtures and Controls\"),INDIRECT(C$2&$A55)=\"Yes\"),1,0))","v":0},{"$f":"IF($B55=1,SUM($B$5:$B55),\"\")","v":""},"",{"$f":"IF(COUNTIF('Project Information'!$J$9:$BG$9,$E55)=1,IF(INDEX('Project Information'!$J$15:$BG$15,1,MATCH($E55,'Project Information'!$J$9:$BG$9,0))=\"Yes\",\"Actual\",\"Deemed\"),\"\")","v":""},"","","",{"$f":"IF(OR(INDIRECT(J$1&$A55)=\"\",COUNTIF('TRM Data'!$R$4:$S$168,INDIRECT(J$1&$A55))<>1),\"\",VLOOKUP(INDIRECT(J$1&$A55),'TRM Data'!$R$4:$S$168,2))","v":""},"",{"$f":"IF(INDIRECT(L$3&$A55)=\"\",\"\",INDIRECT(L$3&$A55))","v":""},"",{"$f":"IF(INDIRECT(N$3&$A55)=\"\",\"\",VLOOKUP(VLOOKUP(INDIRECT(N$3&$A55),'TRM Data'!$C$5:$N$200,COLUMN('TRM Data'!$E$2)-COLUMN('TRM Data'!$C$2)+1,FALSE),'Other Data'!$G$158:$H$178,2))","v":""},"",{"$f":"IF(INDIRECT(P$3&$A55)=\"\",\"\",INDIRECT(P$3&$A55))","v":""},"","","","","",{"$f":"IF($B55=0,\"\",INDIRECT(V$3&$A55))","v":""},"","","","","","","","",""]
[33,{"$f":"IF(AND(OR(INDIRECT(B$1&$A56)=\"Fixtures\",INDIRECT(B$1&$A56)=\"Fixtures and Controls\"),INDIRECT(B$2&$A56)>1),1,0)","v":0},{"$f":"IF($B56=1,1,IF(AND(OR(INDIRECT(C$1&$A56)=\"Fixtures\",INDIRECT(C$1&$A56)=\"Fixtures and Controls\"),INDIRECT(C$2&$A56)=\"Yes\"),1,0))","v":0},{"$f":"IF($B56=1,$B56,\"\")","v":""},"",{"$f":"IF(COUNTIF('Project Information'!$J$9:$BG$9,$E56)=1,IF(INDEX('Project Information'!$J$15:$BG$15,1,MATCH($E56,'Project Information'!$J$9:$BG$9,0))=\"Yes\",\"Actual\",\"Deemed\"),\"\")","v":""},"","","",{"$f":"IF(OR(INDIRECT(J$1&$A56)=\"\",COUNTIF('TRM Data'!$R$4:$S$168,INDIRECT(J$1&$A56))<>1),\"\",VLOOKUP(INDIRECT(J$1&$A56),'TRM Data'!$R$4:$S$168,2))","v":""},"","","",{"$f":"IF(INDIRECT(N$1&$A56)=\"\",\"\",VLOOKUP(VLOOKUP(INDIRECT(N$1&$A56),'TRM Data'!$C$5:$N$200,COLUMN('TRM Data'!$E$2)-COLUMN('TRM Data'!$C$2)+1,FALSE),'Other Data'!$G$158:$H$178,2))","v":""},"","","","","","","",{"$f":"IF($B56=0,\"\",INDIRECT(V$1&$A56))","v":""},"","","","","","","","",""]
[33,{"$f":"IF(AND(OR(INDIRECT(B$1&$A56)=\"Controls\",INDIRECT(B$1&$A56)=\"Fixtures and Controls\"),INDIRECT(B$2&$A56)>1),1,0)","v":0},{"$f":"IF($B57=1,1,IF(AND(OR(INDIRECT(C$1&$A57)=\"Controls\",INDIRECT(C$1&$A57)=\"Fixtures and Controls\"),INDIRECT(C$2&$A57)=\"Yes\"),1,0))","v":0},{"$f":"IF($B57=1,SUM($B$5:$B57),\"\")","v":""},"",{"$f":"IF(COUNTIF('Project Information'!$J$9:$BG$9,$E57)=1,IF(INDEX('Project Information'!$J$15:$BG$15,1,MATCH($E57,'Project Information'!$J$9:$BG$9,0))=\"Yes\",\"Actual\",\"Deemed\"),\"\")","v":""},"","","",{"$f":"IF(OR(INDIRECT(J$1&$A57)=\"\",COUNTIF('TRM Data'!$R$4:$S$168,INDIRECT(J$1&$A57))<>1),\"\",VLOOKUP(INDIRECT(J$1&$A57),'TRM Data'!$R$4:$S$168,2))","v":""},"",{"$f":"IF(INDIRECT(L$3&$A57)=\"\",\"\",INDIRECT(L$3&$A57))","v":""},"",{"$f":"IF(INDIRECT(N$3&$A57)=\"\",\"\",VLOOKUP(VLOOKUP(INDIRECT(N$3&$A57),'TRM Data'!$C$5:$N$200,COLUMN('TRM Data'!$E$2)-COLUMN('TRM Data'!$C$2)+1,FALSE),'Other Data'!$G$158:$H$178,2))","v":""},"",{"$f":"IF(INDIRECT(P$3&$A57)=\"\",\"\",INDIRECT(P$3&$A57))","v":""},"","","","","",{"$f":"IF($B57=0,\"\",INDIRECT(V$3&$A57))","v":""},"","","","","","","","",""]
[34,{"$f":"IF(AND(OR(INDIRECT(B$1&$A58)=\"Fixtures\",INDIRECT(B$1&$A58)=\"Fixtures and Controls\"),INDIRECT(B$2&$A58)>1),1,0)","v":0},{"$f":"IF($B58=1,1,IF(AND(OR(INDIRECT(C$1&$A58)=\"Fixtures\",INDIRECT(C$1&$A58)=\"Fixtures and Controls\"),INDIRECT(C$2&$A58)=\"Yes\"),1,0))","v":0},{"$f":"IF($B58=1,$B58,\"\")","v":""},"",{"$f":"IF(COUNTIF('Project Information'!$J$9:$BG$9,$E58)=1,IF(INDEX('Project Information'!$J$15:$BG$15,1,MATCH($E58,'Project Information'!$J$9:$BG$9,0))=\"Yes\",\"Actual\",\"Deemed\"),\"\")","v":""},"","","",{"$f":"IF(OR(INDIRECT(J$1&$A58)=\"\",COUNTIF('TRM Data'!$R$4:$S$168,INDIRECT(J$1&$A58))<>1),\"\",VLOOKUP(INDIRECT(J$1&$A58),'TRM Data'!$R$4:$S$168,2))","v":""},"","","",{"$f":"IF(INDIRECT(N$1&$A58)=\"\",\"\",VLOOKUP(VLOOKUP(INDIRECT(N$1&$A58),'TRM Data'!$C$5:$N$200,COLUMN('TRM Data'!$E$2)-COLUMN('TRM Data'!$C$2)+1,FALSE),'Other Data'!$G$158:$H$178,2))","v":""},"","","","","","","",{"$f":"IF($B58=0,\"\",INDIRECT(V$1&$A58))","v":""},"","","","","","","","",""]
[34,{"$f":"IF(AND(OR(INDIRECT(B$1&$A58)=\"Controls\",INDIRECT(B$1&$A58)=\"Fixtures and Controls\"),INDIRECT(B$2&$A58)>1),1,0)","v":0},{"$f":"IF($B59=1,1,IF(AND(OR(INDIRECT(C$1&$A59)=\"Controls\",INDIRECT(C$1&$A59)=\"Fixtures and Controls\"),INDIRECT(C$2&$A59)=\"Yes\"),1,0))","v":0},{"$f":"IF($B59=1,SUM($B$5:$B59),\"\")","v":""},"",{"$f":"IF(COUNTIF('Project Information'!$J$9:$BG$9,$E59)=1,IF(INDEX('Project Information'!$J$15:$BG$15,1,MATCH($E59,'Project Information'!$J$9:$BG$9,0))=\"Yes\",\"Actual\",\"Deemed\"),\"\")","v":""},"","","",{"$f":"IF(OR(INDIRECT(J$1&$A59)=\"\",COUNTIF('TRM Data'!$R$4:$S$168,INDIRECT(J$1&$A59))<>1),\"\",VLOOKUP(INDIRECT(J$1&$A59),'TRM Data'!$R$4:$S$168,2))","v":""},"",{"$f":"IF(INDIRECT(L$3&$A59)=\"\",\"\",INDIRECT(L$3&$A59))","v":""},"",{"$f":"IF(INDIRECT(N$3&$A59)=\"\",\"\",VLOOKUP(VLOOKUP(INDIRECT(N$3&$A59),'TRM Data'!$C$5:$N$200,COLUMN('TRM Data'!$E$2)-COLUMN('TRM Data'!$C$2)+1,FALSE),'Other Data'!$G$158:$H$178,2))","v":""},"",{"$f":"IF(INDIRECT(P$3&$A59)=\"\",\"\",INDIRECT(P$3&$A59))","v":""},"","","","","",{"$f":"IF($B59=0,\"\",INDIRECT(V$3&$A59))","v":""},"","","","","","","","",""]
[35,{"$f":"IF(AND(OR(INDIRECT(B$1&$A60)=\"Fixtures\",INDIRECT(B$1&$A60)=\"Fixtures and Controls\"),INDIRECT(B$2&$A60)>1),1,0)","v":0},{"$f":"IF($B60=1,1,IF(AND(OR(INDIRECT(C$1&$A60)=\"Fixtures\",INDIRECT(C$1&$A60)=\"Fixtures and Controls\"),INDIRECT(C$2&$A60)=\"Yes\"),1,0))","v":0},{"$f":"IF($B60=1,$B60,\"\")","v":""},"",{"$f":"IF(COUNTIF('Project Information'!$J$9:$BG$9,$E60)=1,IF(INDEX('Project Information'!$J$15:$BG$15,1,MATCH($E60,'Project Information'!$J$9:$BG$9,0))=\"Yes\",\"Actual\",\"Deemed\"),\"\")","v":""},"","","",{"$f":"IF(OR(INDIRECT(J$1&$A60)=\"\",COUNTIF('TRM Data'!$R$4:$S$168,INDIRECT(J$1&$A60))<>1),\"\",VLOOKUP(INDIRECT(J$1&$A60),'TRM Data'!$R$4:$S$168,2))","v":""},"","","",{"$f":"IF(INDIRECT(N$1&$A60)=\"\",\"\",VLOOKUP(VLOOKUP(INDIRECT(N$1&$A60),'TRM Data'!$C$5:$N$200,COLUMN('TRM Data'!$E$2)-COLUMN('TRM Data'!$C$2)+1,FALSE),'Other Data'!$G$158:$H$178,2))","v":""},"","","","","","","",{"$f":"IF($B60=0,\"\",INDIRECT(V$1&$A60))","v":""},"","","","","","","","",""]
[35,{"$f":"IF(AND(OR(INDIRECT(B$1&$A60)=\"Controls\",INDIRECT(B$1&$A60)=\"Fixtures and Controls\"),INDIRECT(B$2&$A60)>1),1,0)","v":0},{"$f":"IF($B61=1,1,IF(AND(OR(INDIRECT(C$1&$A61)=\"Controls\",INDIRECT(C$1&$A61)=\"Fixtures and Controls\"),INDIRECT(C$2&$A61)=\"Yes\"),1,0))","v":0},{"$f":"IF($B61=1,SUM($B$5:$B61),\"\")","v":""},"",{"$f":"IF(COUNTIF('Project Information'!$J$9:$BG$9,$E61)=1,IF(INDEX('Project Information'!$J$15:$BG$15,1,MATCH($E61,'Project Information'!$J$9:$BG$9,0))=\"Yes\",\"Actual\",\"Deemed\"),\"\")","v":""},"","","",{"$f":"IF(OR(INDIRECT(J$1&$A61)=\"\",COUNTIF('TRM Data'!$R$4:$S$168,INDIRECT(J$1&$A61))<>1),\"\",VLOOKUP(INDIRECT(J$1&$A61),'TRM Data'!$R$4:$S$168,2))","v":""},"",{"$f":"IF(INDIRECT(L$3&$A61)=\"\",\"\",INDIRECT(L$3&$A61))","v":""},"",{"$f":"IF(INDIRECT(N$3&$A61)=\"\",\"\",VLOOKUP(VLOOKUP(INDIRECT(N$3&$A61),'TRM Data'!$C$5:$N$200,COLUMN('TRM Data'!$E$2)-COLUMN('TRM Data'!$C$2)+1,FALSE),'Other Data'!$G$158:$H$178,2))","v":""},"",{"$f":"IF(INDIRECT(P$3&$A61)=\"\",\"\",INDIRECT(P$3&$A61))","v":""},"","","","","",{"$f":"IF($B61=0,\"\",INDIRECT(V$3&$A61))","v":""},"","","","","","","","",""]
[36,{"$f":"IF(AND(OR(INDIRECT(B$1&$A62)=\"Fixtures\",INDIRECT(B$1&$A62)=\"Fixtures and Controls\"),INDIRECT(B$2&$A62)>1),1,0)","v":0},{"$f":"IF($B62=1,1,IF(AND(OR(INDIRECT(C$1&$A62)=\"Fixtures\",INDIRECT(C$1&$A62)=\"Fixtures and Controls\"),INDIRECT(C$2&$A62)=\"Yes\"),1,0))","v":0},{"$f":"IF($B62=1,$B62,\"\")","v":""},"",{"$f":"IF(COUNTIF('Project Information'!$J$9:$BG$9,$E62)=1,IF(INDEX('Project Information'!$J$15:$BG$15,1,MATCH($E62,'Project Information'!$J$9:$BG$9,0))=\"Yes\",\"Actual\",\"Deemed\"),\"\")","v":""},"","","",{"$f":"IF(OR(INDIRECT(J$1&$A62)=\"\",COUNTIF('TRM Data'!$R$4:$S$168,INDIRECT(J$1&$A62))<>1),\"\",VLOOKUP(INDIRECT(J$1&$A62),'TRM Data'!$R$4:$S$168,2))","v":""},"","","",{"$f":"IF(INDIRECT(N$1&$A62)=\"\",\"\",VLOOKUP(VLOOKUP(INDIRECT(N$1&$A62),'TRM Data'!$C$5:$N$200,COLUMN('TRM Data'!$E$2)-COLUMN('TRM Data'!$C$2)+1,FALSE),'Other Data'!$G$158:$H$178,2))","v":""},"","","","","","","",{"$f":"IF($B62=0,\"\",INDIRECT(V$1&$A62))","v":""},"","","","","","","","",""]
[36,{"$f":"IF(AND(OR(INDIRECT(B$1&$A62)=\"Controls\",INDIRECT(B$1&$A62)=\"Fixtures and Controls\"),INDIRECT(B$2&$A62)>1),1,0)","v":0},{"$f":"IF($B63=1,1,IF(AND(OR(INDIRECT(C$1&$A63)=\"Controls\",INDIRECT(C$1&$A63)=\"Fixtures and Controls\"),INDIRECT(C$2&$A63)=\"Yes\"),1,0))","v":0},{"$f":"IF($B63=1,SUM($B$5:$B63),\"\")","v":""},"",{"$f":"IF(COUNTIF('Project Information'!$J$9:$BG$9,$E63)=1,IF(INDEX('Project Information'!$J$15:$BG$15,1,MATCH($E63,'Project Information'!$J$9:$BG$9,0))=\"Yes\",\"Actual\",\"Deemed\"),\"\")","v":""},"","","",{"$f":"IF(OR(INDIRECT(J$1&$A63)=\"\",COUNTIF('TRM Data'!$R$4:$S$168,INDIRECT(J$1&$A63))<>1),\"\",VLOOKUP(INDIRECT(J$1&$A63),'TRM Data'!$R$4:$S$168,2))","v":""},"",{"$f":"IF(INDIRECT(L$3&$A63)=\"\",\"\",INDIRECT(L$3&$A63))","v":""},"",{"$f":"IF(INDIRECT(N$3&$A63)=\"\",\"\",VLOOKUP(VLOOKUP(INDIRECT(N$3&$A63),'TRM Data'!$C$5:$N$200,COLUMN('TRM Data'!$E$2)-COLUMN('TRM Data'!$C$2)+1,FALSE),'Other Data'!$G$158:$H$178,2))","v":""},"",{"$f":"IF(INDIRECT(P$3&$A63)=\"\",\"\",INDIRECT(P$3&$A63))","v":""},"","","","","",{"$f":"IF($B63=0,\"\",INDIRECT(V$3&$A63))","v":""},"","","","","","","","",""]
[37,{"$f":"IF(AND(OR(INDIRECT(B$1&$A64)=\"Fixtures\",INDIRECT(B$1&$A64)=\"Fixtures and Controls\"),INDIRECT(B$2&$A64)>1),1,0)","v":0},{"$f":"IF($B64=1,1,IF(AND(OR(INDIRECT(C$1&$A64)=\"Fixtures\",INDIRECT(C$1&$A64)=\"Fixtures and Controls\"),INDIRECT(C$2&$A64)=\"Yes\"),1,0))","v":0},{"$f":"IF($B64=1,$B64,\"\")","v":""},"",{"$f":"IF(COUNTIF('Project Information'!$J$9:$BG$9,$E64)=1,IF(INDEX('Project Information'!$J$15:$BG$15,1,MATCH($E64,'Project Information'!$J$9:$BG$9,0))=\"Yes\",\"Actual\",\"Deemed\"),\"\")","v":""},"","","",{"$f":"IF(OR(INDIRECT(J$1&$A64)=\"\",COUNTIF('TRM Data'!$R$4:$S$168,INDIRECT(J$1&$A64))<>1),\"\",VLOOKUP(INDIRECT(J$1&$A64),'TRM Data'!$R$4:$S$168,2))","v":""},"","","",{"$f":"IF(INDIRECT(N$1&$A64)=\"\",\"\",VLOOKUP(VLOOKUP(INDIRECT(N$1&$A64),'TRM Data'!$C$5:$N$200,COLUMN('TRM Data'!$E$2)-COLUMN('TRM Data'!$C$2)+1,FALSE),'Other Data'!$G$158:$H$178,2))","v":""},"","","","","","","",{"$f":"IF($B64=0,\"\",INDIRECT(V$1&$A64))","v":""},"","","","","","","","",""]
[37,{"$f":"IF(AND(OR(INDIRECT(B$1&$A64)=\"Controls\",INDIRECT(B$1&$A64)=\"Fixtures and Controls\"),INDIRECT(B$2&$A64)>1),1,0)","v":0},{"$f":"IF($B65=1,1,IF(AND(OR(INDIRECT(C$1&$A65)=\"Controls\",INDIRECT(C$1&$A65)=\"Fixtures and Controls\"),INDIRECT(C$2&$A65)=\"Yes\"),1,0))","v":0},{"$f":"IF($B65=1,SUM($B$5:$B65),\"\")","v":""},"",{"$f":"IF(COUNTIF('Project Information'!$J$9:$BG$9,$E65)=1,IF(INDEX('Project Information'!$J$15:$BG$15,1,MATCH($E65,'Project Information'!$J$9:$BG$9,0))=\"Yes\",\"Actual\",\"Deemed\"),\"\")","v":""},"","","",{"$f":"IF(OR(INDIRECT(J$1&$A65)=\"\",COUNTIF('TRM Data'!$R$4:$S$168,INDIRECT(J$1&$A65))<>1),\"\",VLOOKUP(INDIRECT(J$1&$A65),'TRM Data'!$R$4:$S$168,2))","v":""},"",{"$f":"IF(INDIRECT(L$3&$A65)=\"\",\"\",INDIRECT(L$3&$A65))","v":""},"",{"$f":"IF(INDIRECT(N$3&$A65)=\"\",\"\",VLOOKUP(VLOOKUP(INDIRECT(N$3&$A65),'TRM Data'!$C$5:$N$200,COLUMN('TRM Data'!$E$2)-COLUMN('TRM Data'!$C$2)+1,FALSE),'Other Data'!$G$158:$H$178,2))","v":""},"",{"$f":"IF(INDIRECT(P$3&$A65)=\"\",\"\",INDIRECT(P$3&$A65))","v":""},"","","","","",{"$f":"IF($B65=0,\"\",INDIRECT(V$3&$A65))","v":""},"","","","","","","","",""]
[38,{"$f":"IF(AND(OR(INDIRECT(B$1&$A66)=\"Fixtures\",INDIRECT(B$1&$A66)=\"Fixtures and Controls\"),INDIRECT(B$2&$A66)>1),1,0)","v":0},{"$f":"IF($B66=1,1,IF(AND(OR(INDIRECT(C$1&$A66)=\"Fixtures\",INDIRECT(C$1&$A66)=\"Fixtures and Controls\"),INDIRECT(C$2&$A66)=\"Yes\"),1,0))","v":0},{"$f":"IF($B66=1,$B66,\"\")","v":""},"",{"$f":"IF(COUNTIF('Project Information'!$J$9:$BG$9,$E66)=1,IF(INDEX('Project Information'!$J$15:$BG$15,1,MATCH($E66,'Project Information'!$J$9:$BG$9,0))=\"Yes\",\"Actual\",\"Deemed\"),\"\")","v":""},"","","",{"$f":"IF(OR(INDIRECT(J$1&$A66)=\"\",COUNTIF('TRM Data'!$R$4:$S$168,INDIRECT(J$1&$A66))<>1),\"\",VLOOKUP(INDIRECT(J$1&$A66),'TRM Data'!$R$4:$S$168,2))","v":""},"","","",{"$f":"IF(INDIRECT(N$1&$A66)=\"\",\"\",VLOOKUP(VLOOKUP(INDIRECT(N$1&$A66),'TRM Data'!$C$5:$N$200,COLUMN('TRM Data'!$E$2)-COLUMN('TRM Data'!$C$2)+1,FALSE),'Other Data'!$G$158:$H$178,2))","v":""},"","","","","","","",{"$f":"IF($B66=0,\"\",INDIRECT(V$1&$A66))","v":""},"","","","","","","","",""]
[38,{"$f":"IF(AND(OR(INDIRECT(B$1&$A66)=\"Controls\",INDIRECT(B$1&$A66)=\"Fixtures and Controls\"),INDIRECT(B$2&$A66)>1),1,0)","v":0},{"$f":"IF($B67=1,1,IF(AND(OR(INDIRECT(C$1&$A67)=\"Controls\",INDIRECT(C$1&$A67)=\"Fixtures and Controls\"),INDIRECT(C$2&$A67)=\"Yes\"),1,0))","v":0},{"$f":"IF($B67=1,SUM($B$5:$B67),\"\")","v":""},"",{"$f":"IF(COUNTIF('Project Information'!$J$9:$BG$9,$E67)=1,IF(INDEX('Project Information'!$J$15:$BG$15,1,MATCH($E67,'Project Information'!$J$9:$BG$9,0))=\"Yes\",\"Actual\",\"Deemed\"),\"\")","v":""},"","","",{"$f":"IF(OR(INDIRECT(J$1&$A67)=\"\",COUNTIF('TRM Data'!$R$4:$S$168,INDIRECT(J$1&$A67))<>1),\"\",VLOOKUP(INDIRECT(J$1&$A67),'TRM Data'!$R$4:$S$168,2))","v":""},"",{"$f":"IF(INDIRECT(L$3&$A67)=\"\",\"\",INDIRECT(L$3&$A67))","v":""},"",{"$f":"IF(INDIRECT(N$3&$A67)=\"\",\"\",VLOOKUP(VLOOKUP(INDIRECT(N$3&$A67),'TRM Data'!$C$5:$N$200,COLUMN('TRM Data'!$E$2)-COLUMN('TRM Data'!$C$2)+1,FALSE),'Other Data'!$G$158:$H$178,2))","v":""},"",{"$f":"IF(INDIRECT(P$3&$A67)=\"\",\"\",INDIRECT(P$3&$A67))","v":""},"","","","","",{"$f":"IF($B67=0,\"\",INDIRECT(V$3&$A67))","v":""},"","","","","","","","",""]
[39,{"$f":"IF(AND(OR(INDIRECT(B$1&$A68)=\"Fixtures\",INDIRECT(B$1&$A68)=\"Fixtures and Controls\"),INDIRECT(B$2&$A68)>1),1,0)","v":0},{"$f":"IF($B68=1,1,IF(AND(OR(INDIRECT(C$1&$A68)=\"Fixtures\",INDIRECT(C$1&$A68)=\"Fixtures and Controls\"),INDIRECT(C$2&$A68)=\"Yes\"),1,0))","v":0},{"$f":"IF($B68=1,$B68,\"\")","v":""},"",{"$f":"IF(COUNTIF('Project Information'!$J$9:$BG$9,$E68)=1,IF(INDEX('Project Information'!$J$15:$BG$15,1,MATCH($E68,'Project Information'!$J$9:$BG$9,0))=\"Yes\",\"Actual\",\"Deemed\"),\"\")","v":""},"","","",{"$f":"IF(OR(INDIRECT(J$1&$A68)=\"\",COUNTIF('TRM Data'!$R$4:$S$168,INDIRECT(J$1&$A68))<>1),\"\",VLOOKUP(INDIRECT(J$1&$A68),'TRM Data'!$R$4:$S$168,2))","v":""},"","","",{"$f":"IF(INDIRECT(N$1&$A68)=\"\",\"\",VLOOKUP(VLOOKUP(INDIRECT(N$1&$A68),'TRM Data'!$C$5:$N$200,COLUMN('TRM Data'!$E$2)-COLUMN('TRM Data'!$C$2)+1,FALSE),'Other Data'!$G$158:$H$178,2))","v":""},"","","","","","","",{"$f":"IF($B68=0,\"\",INDIRECT(V$1&$A68))","v":""},"","","","","","","","",""]
[39,{"$f":"IF(AND(OR(INDIRECT(B$1&$A68)=\"Controls\",INDIRECT(B$1&$A68)=\"Fixtures and Controls\"),INDIRECT(B$2&$A68)>1),1,0)","v":0},{"$f":"IF($B69=1,1,IF(AND(OR(INDIRECT(C$1&$A69)=\"Controls\",INDIRECT(C$1&$A69)=\"Fixtures and Controls\"),INDIRECT(C$2&$A69)=\"Yes\"),1,0))","v":0},{"$f":"IF($B69=1,SUM($B$5:$B69),\"\")","v":""},"",{"$f":"IF(COUNTIF('Project Information'!$J$9:$BG$9,$E69)=1,IF(INDEX('Project Information'!$J$15:$BG$15,1,MATCH($E69,'Project Information'!$J$9:$BG$9,0))=\"Yes\",\"Actual\",\"Deemed\"),\"\")","v":""},"","","",{"$f":"IF(OR(INDIRECT(J$1&$A69)=\"\",COUNTIF('TRM Data'!$R$4:$S$168,INDIRECT(J$1&$A69))<>1),\"\",VLOOKUP(INDIRECT(J$1&$A69),'TRM Data'!$R$4:$S$168,2))","v":""},"",{"$f":"IF(INDIRECT(L$3&$A69)=\"\",\"\",INDIRECT(L$3&$A69))","v":""},"",{"$f":"IF(INDIRECT(N$3&$A69)=\"\",\"\",VLOOKUP(VLOOKUP(INDIRECT(N$3&$A69),'TRM Data'!$C$5:$N$200,COLUMN('TRM Data'!$E$2)-COLUMN('TRM Data'!$C$2)+1,FALSE),'Other Data'!$G$158:$H$178,2))","v":""},"",{"$f":"IF(INDIRECT(P$3&$A69)=\"\",\"\",INDIRECT(P$3&$A69))","v":""},"","","","","",{"$f":"IF($B69=0,\"\",INDIRECT(V$3&$A69))","v":""},"","","","","","","","",""]
[40,{"$f":"IF(AND(OR(INDIRECT(B$1&$A70)=\"Fixtures\",INDIRECT(B$1&$A70)=\"Fixtures and Controls\"),INDIRECT(B$2&$A70)>1),1,0)","v":0},{"$f":"IF($B70=1,1,IF(AND(OR(INDIRECT(C$1&$A70)=\"Fixtures\",INDIRECT(C$1&$A70)=\"Fixtures and Controls\"),INDIRECT(C$2&$A70)=\"Yes\"),1,0))","v":0},{"$f":"IF($B70=1,$B70,\"\")","v":""},"",{"$f":"IF(COUNTIF('Project Information'!$J$9:$BG$9,$E70)=1,IF(INDEX('Project Information'!$J$15:$BG$15,1,MATCH($E70,'Project Information'!$J$9:$BG$9,0))=\"Yes\",\"Actual\",\"Deemed\"),\"\")","v":""},"","","",{"$f":"IF(OR(INDIRECT(J$1&$A70)=\"\",COUNTIF('TRM Data'!$R$4:$S$168,INDIRECT(J$1&$A70))<>1),\"\",VLOOKUP(INDIRECT(J$1&$A70),'TRM Data'!$R$4:$S$168,2))","v":""},"","","",{"$f":"IF(INDIRECT(N$1&$A70)=\"\",\"\",VLOOKUP(VLOOKUP(INDIRECT(N$1&$A70),'TRM Data'!$C$5:$N$200,COLUMN('TRM Data'!$E$2)-COLUMN('TRM Data'!$C$2)+1,FALSE),'Other Data'!$G$158:$H$178,2))","v":""},"","","","","","","",{"$f":"IF($B70=0,\"\",INDIRECT(V$1&$A70))","v":""},"","","","","","","","",""]
[40,{"$f":"IF(AND(OR(INDIRECT(B$1&$A70)=\"Controls\",INDIRECT(B$1&$A70)=\"Fixtures and Controls\"),INDIRECT(B$2&$A70)>1),1,0)","v":0},{"$f":"IF($B71=1,1,IF(AND(OR(INDIRECT(C$1&$A71)=\"Controls\",INDIRECT(C$1&$A71)=\"Fixtures and Controls\"),INDIRECT(C$2&$A71)=\"Yes\"),1,0))","v":0},{"$f":"IF($B71=1,SUM($B$5:$B71),\"\")","v":""},{"$f":"IF(INDIRECT(E$1&$A71)=\"\",\"\",INDIRECT(E$1&$A71))","v":""},{"$f":"IF(COUNTIF('Project Information'!$J$9:$BG$9,$E71)=1,IF(INDEX('Project Information'!$J$15:$BG$15,1,MATCH($E71,'Project Information'!$J$9:$BG$9,0))=\"Yes\",\"Actual\",\"Deemed\"),\"\")","v":""},"","","",{"$f":"IF(OR(INDIRECT(J$1&$A71)=\"\",COUNTIF('TRM Data'!$R$4:$S$168,INDIRECT(J$1&$A71))<>1),\"\",VLOOKUP(INDIRECT(J$1&$A71),'TRM Data'!$R$4:$S$168,2))","v":""},"",{"$f":"IF(INDIRECT(L$3&$A71)=\"\",\"\",INDIRECT(L$3&$A71))","v":""},"",{"$f":"IF(INDIRECT(N$3&$A71)=\"\",\"\",VLOOKUP(VLOOKUP(INDIRECT(N$3&$A71),'TRM Data'!$C$5:$N$200,COLUMN('TRM Data'!$E$2)-COLUMN('TRM Data'!$C$2)+1,FALSE),'Other Data'!$G$158:$H$178,2))","v":""},"",{"$f":"IF(INDIRECT(P$3&$A71)=\"\",\"\",INDIRECT(P$3&$A71))","v":""},"","","","","",{"$f":"IF($B71=0,\"\",INDIRECT(V$3&$A71))","v":""},"","","","","","","","",""]
[41,{"$f":"IF(AND(OR(INDIRECT(B$1&$A72)=\"Fixtures\",INDIRECT(B$1&$A72)=\"Fixtures and Controls\"),INDIRECT(B$2&$A72)>1),1,0)","v":0},{"$f":"IF($B72=1,1,IF(AND(OR(INDIRECT(C$1&$A72)=\"Fixtures\",INDIRECT(C$1&$A72)=\"Fixtures and Controls\"),INDIRECT(C$2&$A72)=\"Yes\"),1,0))","v":0},{"$f":"IF($B72=1,$B72,\"\")","v":""},"",{"$f":"IF(COUNTIF('Project Information'!$J$9:$BG$9,$E72)=1,IF(INDEX('Project Information'!$J$15:$BG$15,1,MATCH($E72,'Project Information'!$J$9:$BG$9,0))=\"Yes\",\"Actual\",\"Deemed\"),\"\")","v":""},"","","",{"$f":"IF(OR(INDIRECT(J$1&$A72)=\"\",COUNTIF('TRM Data'!$R$4:$S$168,INDIRECT(J$1&$A72))<>1),\"\",VLOOKUP(INDIRECT(J$1&$A72),'TRM Data'!$R$4:$S$168,2))","v":""},"","","",{"$f":"IF(INDIRECT(N$1&$A72)=\"\",\"\",VLOOKUP(VLOOKUP(INDIRECT(N$1&$A72),'TRM Data'!$C$5:$N$200,COLUMN('TRM Data'!$E$2)-COLUMN('TRM Data'!$C$2)+1,FALSE),'Other Data'!$G$158:$H$178,2))","v":""},"","","","","","","",{"$f":"IF($B72=0,\"\",INDIRECT(V$1&$A72))","v":""},"","","","","","","","",""]
[41,{"$f":"IF(AND(OR(INDIRECT(B$1&$A72)=\"Controls\",INDIRECT(B$1&$A72)=\"Fixtures and Controls\"),INDIRECT(B$2&$A72)>1),1,0)","v":0},{"$f":"IF($B73=1,1,IF(AND(OR(INDIRECT(C$1&$A73)=\"Controls\",INDIRECT(C$1&$A73)=\"Fixtures and Controls\"),INDIRECT(C$2&$A73)=\"Yes\"),1,0))","v":0},{"$f":"IF($B73=1,SUM($B$5:$B73),\"\")","v":""},"",{"$f":"IF(COUNTIF('Project Information'!$J$9:$BG$9,$E73)=1,IF(INDEX('Project Information'!$J$15:$BG$15,1,MATCH($E73,'Project Information'!$J$9:$BG$9,0))=\"Yes\",\"Actual\",\"Deemed\"),\"\")","v":""},"","","",{"$f":"IF(OR(INDIRECT(J$1&$A73)=\"\",COUNTIF('TRM Data'!$R$4:$S$168,INDIRECT(J$1&$A73))<>1),\"\",VLOOKUP(INDIRECT(J$1&$A73),'TRM Data'!$R$4:$S$168,2))","v":""},"",{"$f":"IF(INDIRECT(L$3&$A73)=\"\",\"\",INDIRECT(L$3&$A73))","v":""},"",{"$f":"IF(INDIRECT(N$3&$A73)=\"\",\"\",VLOOKUP(VLOOKUP(INDIRECT(N$3&$A73),'TRM Data'!$C$5:$N$200,COLUMN('TRM Data'!$E$2)-COLUMN('TRM Data'!$C$2)+1,FALSE),'Other Data'!$G$158:$H$178,2))","v":""},"",{"$f":"IF(INDIRECT(P$3&$A73)=\"\",\"\",INDIRECT(P$3&$A73))","v":""},"","","","","",{"$f":"IF($B73=0,\"\",INDIRECT(V$3&$A73))","v":""},"","","","","","","","",""]
[{"$f":"A72+1","v":42},{"$f":"IF(AND(OR(INDIRECT(B$1&$A74)=\"Fixtures\",INDIRECT(B$1&$A74)=\"Fixtures and Controls\"),INDIRECT(B$2&$A74)>1),1,0)","v":0},{"$f":"IF($B74=1,1,IF(AND(OR(INDIRECT(C$1&$A74)=\"Fixtures\",INDIRECT(C$1&$A74)=\"Fixtures and Controls\"),INDIRECT(C$2&$A74)=\"Yes\"),1,0))","v":0},{"$f":"IF($B74=1,$B74,\"\")","v":""},"",{"$f":"IF(COUNTIF('Project Information'!$J$9:$BG$9,$E74)=1,IF(INDEX('Project Information'!$J$15:$BG$15,1,MATCH($E74,'Project Information'!$J$9:$BG$9,0))=\"Yes\",\"Actual\",\"Deemed\"),\"\")","v":""},"","","",{"$f":"IF(OR(INDIRECT(J$1&$A74)=\"\",COUNTIF('TRM Data'!$R$4:$S$168,INDIRECT(J$1&$A74))<>1),\"\",VLOOKUP(INDIRECT(J$1&$A74),'TRM Data'!$R$4:$S$168,2))","v":""},"","","",{"$f":"IF(INDIRECT(N$1&$A74)=\"\",\"\",VLOOKUP(VLOOKUP(INDIRECT(N$1&$A74),'TRM Data'!$C$5:$N$200,COLUMN('TRM Data'!$E$2)-COLUMN('TRM Data'!$C$2)+1,FALSE),'Other Data'!$G$158:$H$178,2))","v":""},"","","","","","","",{"$f":"IF($B74=0,\"\",INDIRECT(V$1&$A74))","v":""},"","","","","","","","",""]
[42,{"$f":"IF(AND(OR(INDIRECT(B$1&$A74)=\"Controls\",INDIRECT(B$1&$A74)=\"Fixtures and Controls\"),INDIRECT(B$2&$A74)>1),1,0)","v":0},{"$f":"IF($B75=1,1,IF(AND(OR(INDIRECT(C$1&$A75)=\"Controls\",INDIRECT(C$1&$A75)=\"Fixtures and Controls\"),INDIRECT(C$2&$A75)=\"Yes\"),1,0))","v":0},{"$f":"IF($B75=1,SUM($B$5:$B75),\"\")","v":""},"",{"$f":"IF(COUNTIF('Project Information'!$J$9:$BG$9,$E75)=1,IF(INDEX('Project Information'!$J$15:$BG$15,1,MATCH($E75,'Project Information'!$J$9:$BG$9,0))=\"Yes\",\"Actual\",\"Deemed\"),\"\")","v":""},"","","",{"$f":"IF(OR(INDIRECT(J$1&$A75)=\"\",COUNTIF('TRM Data'!$R$4:$S$168,INDIRECT(J$1&$A75))<>1),\"\",VLOOKUP(INDIRECT(J$1&$A75),'TRM Data'!$R$4:$S$168,2))","v":""},"",{"$f":"IF(INDIRECT(L$3&$A75)=\"\",\"\",INDIRECT(L$3&$A75))","v":""},"",{"$f":"IF(INDIRECT(N$3&$A75)=\"\",\"\",VLOOKUP(VLOOKUP(INDIRECT(N$3&$A75),'TRM Data'!$C$5:$N$200,COLUMN('TRM Data'!$E$2)-COLUMN('TRM Data'!$C$2)+1,FALSE),'Other Data'!$G$158:$H$178,2))","v":""},"",{"$f":"IF(INDIRECT(P$3&$A75)=\"\",\"\",INDIRECT(P$3&$A75))","v":""},"","","","","",{"$f":"IF($B75=0,\"\",INDIRECT(V$3&$A75))","v":""},"","","","","","","","",""]
[43,{"$f":"IF(AND(OR(INDIRECT(B$1&$A76)=\"Fixtures\",INDIRECT(B$1&$A76)=\"Fixtures and Controls\"),INDIRECT(B$2&$A76)>1),1,0)","v":0},{"$f":"IF($B76=1,1,IF(AND(OR(INDIRECT(C$1&$A76)=\"Fixtures\",INDIRECT(C$1&$A76)=\"Fixtures and Controls\"),INDIRECT(C$2&$A76)=\"Yes\"),1,0))","v":0},{"$f":"IF($B76=1,$B76,\"\")","v":""},"",{"$f":"IF(COUNTIF('Project Information'!$J$9:$BG$9,$E76)=1,IF(INDEX('Project Information'!$J$15:$BG$15,1,MATCH($E76,'Project Information'!$J$9:$BG$9,0))=\"Yes\",\"Actual\",\"Deemed\"),\"\")","v":""},"","","",{"$f":"IF(OR(INDIRECT(J$1&$A76)=\"\",COUNTIF('TRM Data'!$R$4:$S$168,INDIRECT(J$1&$A76))<>1),\"\",VLOOKUP(INDIRECT(J$1&$A76),'TRM Data'!$R$4:$S$168,2))","v":""},"","","",{"$f":"IF(INDIRECT(N$1&$A76)=\"\",\"\",VLOOKUP(VLOOKUP(INDIRECT(N$1&$A76),'TRM Data'!$C$5:$N$200,COLUMN('TRM Data'!$E$2)-COLUMN('TRM Data'!$C$2)+1,FALSE),'Other Data'!$G$158:$H$178,2))","v":""},"","","","","","","",{"$f":"IF($B76=0,\"\",INDIRECT(V$1&$A76))","v":""},"","","","","","","","",""]
[43,{"$f":"IF(AND(OR(INDIRECT(B$1&$A76)=\"Controls\",INDIRECT(B$1&$A76)=\"Fixtures and Controls\"),INDIRECT(B$2&$A76)>1),1,0)","v":0},{"$f":"IF($B77=1,1,IF(AND(OR(INDIRECT(C$1&$A77)=\"Controls\",INDIRECT(C$1&$A77)=\"Fixtures and Controls\"),INDIRECT(C$2&$A77)=\"Yes\"),1,0))","v":0},{"$f":"IF($B77=1,SUM($B$5:$B77),\"\")","v":""},"",{"$f":"IF(COUNTIF('Project Information'!$J$9:$BG$9,$E77)=1,IF(INDEX('Project Information'!$J$15:$BG$15,1,MATCH($E77,'Project Information'!$J$9:$BG$9,0))=\"Yes\",\"Actual\",\"Deemed\"),\"\")","v":""},"","","",{"$f":"IF(OR(INDIRECT(J$1&$A77)=\"\",COUNTIF('TRM Data'!$R$4:$S$168,INDIRECT(J$1&$A77))<>1),\"\",VLOOKUP(INDIRECT(J$1&$A77),'TRM Data'!$R$4:$S$168,2))","v":""},"",{"$f":"IF(INDIRECT(L$3&$A77)=\"\",\"\",INDIRECT(L$3&$A77))","v":""},"",{"$f":"IF(INDIRECT(N$3&$A77)=\"\",\"\",VLOOKUP(VLOOKUP(INDIRECT(N$3&$A77),'TRM Data'!$C$5:$N$200,COLUMN('TRM Data'!$E$2)-COLUMN('TRM Data'!$C$2)+1,FALSE),'Other Data'!$G$158:$H$178,2))","v":""},"",{"$f":"IF(INDIRECT(P$3&$A77)=\"\",\"\",INDIRECT(P$3&$A77))","v":""},"","","","","",{"$f":"IF($B77=0,\"\",INDIRECT(V$3&$A77))","v":""},"","","","","","","","",""]
[44,0,0,"","",{"$f":"IF(COUNTIF('Project Information'!$J$9:$BG$9,$E78)=1,IF(INDEX('Project Information'!$J$15:$BG$15,1,MATCH($E78,'Project Information'!$J$9:$BG$9,0))=\"Yes\",\"Actual\",\"Deemed\"),\"\")","v":""},"","","",{"$f":"IF(OR(INDIRECT(J$1&$A78)=\"\",COUNTIF('TRM Data'!$R$4:$S$168,INDIRECT(J$1&$A78))<>1),\"\",VLOOKUP(INDIRECT(J$1&$A78),'TRM Data'!$R$4:$S$168,2))","v":""},"","","",{"$f":"IF(INDIRECT(N$1&$A78)=\"\",\"\",VLOOKUP(VLOOKUP(INDIRECT(N$1&$A78),'TRM Data'!$C$5:$N$200,COLUMN('TRM Data'!$E$2)-COLUMN('TRM Data'!$C$2)+1,FALSE),'Other Data'!$G$158:$H$178,2))","v":""},"","","","","","","","","","","","","","","","",""]
[44,0,0,{"$f":"IF($B79=1,SUM($B$5:$B79),\"\")","v":""},"",{"$f":"IF(COUNTIF('Project Information'!$J$9:$BG$9,$E79)=1,IF(INDEX('Project Information'!$J$15:$BG$15,1,MATCH($E79,'Project Information'!$J$9:$BG$9,0))=\"Yes\",\"Actual\",\"Deemed\"),\"\")","v":""},{"$f":"IF(INDIRECT(G$1&$A79)=\"\",\"\",INDIRECT(G$1&$A79))","v":""},"","",{"$f":"IF(OR(INDIRECT(J$1&$A79)=\"\",COUNTIF('TRM Data'!$R$4:$S$168,INDIRECT(J$1&$A79))<>1),\"\",VLOOKUP(INDIRECT(J$1&$A79),'TRM Data'!$R$4:$S$168,2))","v":""},{"$f":"IF(INDIRECT(K$1&$A79)=\"\",\"\",INDIRECT(K$1&$A79))","v":""},"","",{"$f":"IF(INDIRECT(N$3&$A79)=\"\",\"\",VLOOKUP(VLOOKUP(INDIRECT(N$3&$A79),'TRM Data'!$C$5:$N$200,COLUMN('TRM Data'!$E$2)-COLUMN('TRM Data'!$C$2)+1,FALSE),'Other Data'!$G$158:$H$178,2))","v":""},{"$f":"IF(INDIRECT(O$1&$A79)=\"\",\"\",INDIRECT(O$1&$A79))","v":""},"","","","","","","","","","","","","","","",""]
[45,0,0,"","",{"$f":"IF(COUNTIF('Project Information'!$J$9:$BG$9,$E80)=1,IF(INDEX('Project Information'!$J$15:$BG$15,1,MATCH($E80,'Project Information'!$J$9:$BG$9,0))=\"Yes\",\"Actual\",\"Deemed\"),\"\")","v":""},"","","",{"$f":"IF(OR(INDIRECT(J$1&$A80)=\"\",COUNTIF('TRM Data'!$R$4:$S$168,INDIRECT(J$1&$A80))<>1),\"\",VLOOKUP(INDIRECT(J$1&$A80),'TRM Data'!$R$4:$S$168,2))","v":""},"","","",{"$f":"IF(INDIRECT(N$1&$A80)=\"\",\"\",VLOOKUP(VLOOKUP(INDIRECT(N$1&$A80),'TRM Data'!$C$5:$N$200,COLUMN('TRM Data'!$E$2)-COLUMN('TRM Data'!$C$2)+1,FALSE),'Other Data'!$G$158:$H$178,2))","v":""},"","","","","","","","","","","","","","","","",""]
[45,0,0,{"$f":"IF($B81=1,SUM($B$5:$B81),\"\")","v":""},"",{"$f":"IF(COUNTIF('Project Information'!$J$9:$BG$9,$E81)=1,IF(INDEX('Project Information'!$J$15:$BG$15,1,MATCH($E81,'Project Information'!$J$9:$BG$9,0))=\"Yes\",\"Actual\",\"Deemed\"),\"\")","v":""},"","","",{"$f":"IF(OR(INDIRECT(J$1&$A81)=\"\",COUNTIF('TRM Data'!$R$4:$S$168,INDIRECT(J$1&$A81))<>1),\"\",VLOOKUP(INDIRECT(J$1&$A81),'TRM Data'!$R$4:$S$168,2))","v":""},"","","",{"$f":"IF(INDIRECT(N$3&$A81)=\"\",\"\",VLOOKUP(VLOOKUP(INDIRECT(N$3&$A81),'TRM Data'!$C$5:$N$200,COLUMN('TRM Data'!$E$2)-COLUMN('TRM Data'!$C$2)+1,FALSE),'Other Data'!$G$158:$H$178,2))","v":""},"","","","","","","","","","","","","","","","",""]
[46,0,0,"","",{"$f":"IF(COUNTIF('Project Information'!$J$9:$BG$9,$E82)=1,IF(INDEX('Project Information'!$J$15:$BG$15,1,MATCH($E82,'Project Information'!$J$9:$BG$9,0))=\"Yes\",\"Actual\",\"Deemed\"),\"\")","v":""},"","","",{"$f":"IF(OR(INDIRECT(J$1&$A82)=\"\",COUNTIF('TRM Data'!$R$4:$S$168,INDIRECT(J$1&$A82))<>1),\"\",VLOOKUP(INDIRECT(J$1&$A82),'TRM Data'!$R$4:$S$168,2))","v":""},"","","",{"$f":"IF(INDIRECT(N$1&$A82)=\"\",\"\",VLOOKUP(VLOOKUP(INDIRECT(N$1&$A82),'TRM Data'!$C$5:$N$200,COLUMN('TRM Data'!$E$2)-COLUMN('TRM Data'!$C$2)+1,FALSE),'Other Data'!$G$158:$H$178,2))","v":""},"","","","","","","","","","","","","","","","",""]
[46,0,0,{"$f":"IF($B83=1,SUM($B$5:$B83),\"\")","v":""},"",{"$f":"IF(COUNTIF('Project Information'!$J$9:$BG$9,$E83)=1,IF(INDEX('Project Information'!$J$15:$BG$15,1,MATCH($E83,'Project Information'!$J$9:$BG$9,0))=\"Yes\",\"Actual\",\"Deemed\"),\"\")","v":""},"","","",{"$f":"IF(OR(INDIRECT(J$1&$A83)=\"\",COUNTIF('TRM Data'!$R$4:$S$168,INDIRECT(J$1&$A83))<>1),\"\",VLOOKUP(INDIRECT(J$1&$A83),'TRM Data'!$R$4:$S$168,2))","v":""},"","","",{"$f":"IF(INDIRECT(N$3&$A83)=\"\",\"\",VLOOKUP(VLOOKUP(INDIRECT(N$3&$A83),'TRM Data'!$C$5:$N$200,COLUMN('TRM Data'!$E$2)-COLUMN('TRM Data'!$C$2)+1,FALSE),'Other Data'!$G$158:$H$178,2))","v":""},"","","","","","","","","","","","","","","","",""]
[47,0,0,"","",{"$f":"IF(COUNTIF('Project Information'!$J$9:$BG$9,$E84)=1,IF(INDEX('Project Information'!$J$15:$BG$15,1,MATCH($E84,'Project Information'!$J$9:$BG$9,0))=\"Yes\",\"Actual\",\"Deemed\"),\"\")","v":""},"","","",{"$f":"IF(OR(INDIRECT(J$1&$A84)=\"\",COUNTIF('TRM Data'!$R$4:$S$168,INDIRECT(J$1&$A84))<>1),\"\",VLOOKUP(INDIRECT(J$1&$A84),'TRM Data'!$R$4:$S$168,2))","v":""},"","","",{"$f":"IF(INDIRECT(N$1&$A84)=\"\",\"\",VLOOKUP(VLOOKUP(INDIRECT(N$1&$A84),'TRM Data'!$C$5:$N$200,COLUMN('TRM Data'!$E$2)-COLUMN('TRM Data'!$C$2)+1,FALSE),'Other Data'!$G$158:$H$178,2))","v":""},"","","","","","","","","","","","","","","","",""]
[47,0,0,{"$f":"IF($B85=1,SUM($B$5:$B85),\"\")","v":""},"",{"$f":"IF(COUNTIF('Project Information'!$J$9:$BG$9,$E85)=1,IF(INDEX('Project Information'!$J$15:$BG$15,1,MATCH($E85,'Project Information'!$J$9:$BG$9,0))=\"Yes\",\"Actual\",\"Deemed\"),\"\")","v":""},"","","",{"$f":"IF(OR(INDIRECT(J$1&$A85)=\"\",COUNTIF('TRM Data'!$R$4:$S$168,INDIRECT(J$1&$A85))<>1),\"\",VLOOKUP(INDIRECT(J$1&$A85),'TRM Data'!$R$4:$S$168,2))","v":""},"","","",{"$f":"IF(INDIRECT(N$3&$A85)=\"\",\"\",VLOOKUP(VLOOKUP(INDIRECT(N$3&$A85),'TRM Data'!$C$5:$N$200,COLUMN('TRM Data'!$E$2)-COLUMN('TRM Data'!$C$2)+1,FALSE),'Other Data'!$G$158:$H$178,2))","v":""},"","","","","","","","","","","","","","","","",""]
[48,0,0,"","",{"$f":"IF(COUNTIF('Project Information'!$J$9:$BG$9,$E86)=1,IF(INDEX('Project Information'!$J$15:$BG$15,1,MATCH($E86,'Project Information'!$J$9:$BG$9,0))=\"Yes\",\"Actual\",\"Deemed\"),\"\")","v":""},"","","",{"$f":"IF(OR(INDIRECT(J$1&$A86)=\"\",COUNTIF('TRM Data'!$R$4:$S$168,INDIRECT(J$1&$A86))<>1),\"\",VLOOKUP(INDIRECT(J$1&$A86),'TRM Data'!$R$4:$S$168,2))","v":""},"","","",{"$f":"IF(INDIRECT(N$1&$A86)=\"\",\"\",VLOOKUP(VLOOKUP(INDIRECT(N$1&$A86),'TRM Data'!$C$5:$N$200,COLUMN('TRM Data'!$E$2)-COLUMN('TRM Data'!$C$2)+1,FALSE),'Other Data'!$G$158:$H$178,2))","v":""},"","","","","","","","","","","","","","","","",""]
[48,0,0,{"$f":"IF($B87=1,SUM($B$5:$B87),\"\")","v":""},"",{"$f":"IF(COUNTIF('Project Information'!$J$9:$BG$9,$E87)=1,IF(INDEX('Project Information'!$J$15:$BG$15,1,MATCH($E87,'Project Information'!$J$9:$BG$9,0))=\"Yes\",\"Actual\",\"Deemed\"),\"\")","v":""},"","","",{"$f":"IF(OR(INDIRECT(J$1&$A87)=\"\",COUNTIF('TRM Data'!$R$4:$S$168,INDIRECT(J$1&$A87))<>1),\"\",VLOOKUP(INDIRECT(J$1&$A87),'TRM Data'!$R$4:$S$168,2))","v":""},"","","",{"$f":"IF(INDIRECT(N$3&$A87)=\"\",\"\",VLOOKUP(VLOOKUP(INDIRECT(N$3&$A87),'TRM Data'!$C$5:$N$200,COLUMN('TRM Data'!$E$2)-COLUMN('TRM Data'!$C$2)+1,FALSE),'Other Data'!$G$158:$H$178,2))","v":""},"","","","","","","","","","","","","","","","",""]
[49,0,0,"","",{"$f":"IF(COUNTIF('Project Information'!$J$9:$BG$9,$E88)=1,IF(INDEX('Project Information'!$J$15:$BG$15,1,MATCH($E88,'Project Information'!$J$9:$BG$9,0))=\"Yes\",\"Actual\",\"Deemed\"),\"\")","v":""},"","","",{"$f":"IF(OR(INDIRECT(J$1&$A88)=\"\",COUNTIF('TRM Data'!$R$4:$S$168,INDIRECT(J$1&$A88))<>1),\"\",VLOOKUP(INDIRECT(J$1&$A88),'TRM Data'!$R$4:$S$168,2))","v":""},"","","",{"$f":"IF(INDIRECT(N$1&$A88)=\"\",\"\",VLOOKUP(VLOOKUP(INDIRECT(N$1&$A88),'TRM Data'!$C$5:$N$200,COLUMN('TRM Data'!$E$2)-COLUMN('TRM Data'!$C$2)+1,FALSE),'Other Data'!$G$158:$H$178,2))","v":""},"","","","","","","","","","","","","","","","",""]
[49,0,0,{"$f":"IF($B89=1,SUM($B$5:$B89),\"\")","v":""},"",{"$f":"IF(COUNTIF('Project Information'!$J$9:$BG$9,$E89)=1,IF(INDEX('Project Information'!$J$15:$BG$15,1,MATCH($E89,'Project Information'!$J$9:$BG$9,0))=\"Yes\",\"Actual\",\"Deemed\"),\"\")","v":""},"","","",{"$f":"IF(OR(INDIRECT(J$1&$A89)=\"\",COUNTIF('TRM Data'!$R$4:$S$168,INDIRECT(J$1&$A89))<>1),\"\",VLOOKUP(INDIRECT(J$1&$A89),'TRM Data'!$R$4:$S$168,2))","v":""},"","","",{"$f":"IF(INDIRECT(N$3&$A89)=\"\",\"\",VLOOKUP(VLOOKUP(INDIRECT(N$3&$A89),'TRM Data'!$C$5:$N$200,COLUMN('TRM Data'!$E$2)-COLUMN('TRM Data'!$C$2)+1,FALSE),'Other Data'!$G$158:$H$178,2))","v":""},"","","","","","","","","","","","","","","","",""]
[50,0,0,"","",{"$f":"IF(COUNTIF('Project Information'!$J$9:$BG$9,$E90)=1,IF(INDEX('Project Information'!$J$15:$BG$15,1,MATCH($E90,'Project Information'!$J$9:$BG$9,0))=\"Yes\",\"Actual\",\"Deemed\"),\"\")","v":""},"","","",{"$f":"IF(OR(INDIRECT(J$1&$A90)=\"\",COUNTIF('TRM Data'!$R$4:$S$168,INDIRECT(J$1&$A90))<>1),\"\",VLOOKUP(INDIRECT(J$1&$A90),'TRM Data'!$R$4:$S$168,2))","v":""},"","","",{"$f":"IF(INDIRECT(N$1&$A90)=\"\",\"\",VLOOKUP(VLOOKUP(INDIRECT(N$1&$A90),'TRM Data'!$C$5:$N$200,COLUMN('TRM Data'!$E$2)-COLUMN('TRM Data'!$C$2)+1,FALSE),'Other Data'!$G$158:$H$178,2))","v":""},"","","","","","","","","","","","","","","","",""]
[50,0,0,{"$f":"IF($B91=1,SUM($B$5:$B91),\"\")","v":""},"",{"$f":"IF(COUNTIF('Project Information'!$J$9:$BG$9,$E91)=1,IF(INDEX('Project Information'!$J$15:$BG$15,1,MATCH($E91,'Project Information'!$J$9:$BG$9,0))=\"Yes\",\"Actual\",\"Deemed\"),\"\")","v":""},"","","",{"$f":"IF(OR(INDIRECT(J$1&$A91)=\"\",COUNTIF('TRM Data'!$R$4:$S$168,INDIRECT(J$1&$A91))<>1),\"\",VLOOKUP(INDIRECT(J$1&$A91),'TRM Data'!$R$4:$S$168,2))","v":""},"","","",{"$f":"IF(INDIRECT(N$3&$A91)=\"\",\"\",VLOOKUP(VLOOKUP(INDIRECT(N$3&$A91),'TRM Data'!$C$5:$N$200,COLUMN('TRM Data'!$E$2)-COLUMN('TRM Data'!$C$2)+1,FALSE),'Other Data'!$G$158:$H$178,2))","v":""},"","","","","","","","","","","","","","","","",""]
[51,0,0,"","",{"$f":"IF(COUNTIF('Project Information'!$J$9:$BG$9,$E92)=1,IF(INDEX('Project Information'!$J$15:$BG$15,1,MATCH($E92,'Project Information'!$J$9:$BG$9,0))=\"Yes\",\"Actual\",\"Deemed\"),\"\")","v":""},"","","",{"$f":"IF(OR(INDIRECT(J$1&$A92)=\"\",COUNTIF('TRM Data'!$R$4:$S$168,INDIRECT(J$1&$A92))<>1),\"\",VLOOKUP(INDIRECT(J$1&$A92),'TRM Data'!$R$4:$S$168,2))","v":""},"","","",{"$f":"IF(INDIRECT(N$1&$A92)=\"\",\"\",VLOOKUP(VLOOKUP(INDIRECT(N$1&$A92),'TRM Data'!$C$5:$N$200,COLUMN('TRM Data'!$E$2)-COLUMN('TRM Data'!$C$2)+1,FALSE),'Other Data'!$G$158:$H$178,2))","v":""},"","","","","","","",{"$f":"IF($B92=0,\"\",INDIRECT(V$1&$A92))","v":""},"","","","","","","","",""]
[51,0,0,{"$f":"IF($B93=1,SUM($B$5:$B93),\"\")","v":""},"",{"$f":"IF(COUNTIF('Project Information'!$J$9:$BG$9,$E93)=1,IF(INDEX('Project Information'!$J$15:$BG$15,1,MATCH($E93,'Project Information'!$J$9:$BG$9,0))=\"Yes\",\"Actual\",\"Deemed\"),\"\")","v":""},"","","",{"$f":"IF(OR(INDIRECT(J$1&$A93)=\"\",COUNTIF('TRM Data'!$R$4:$S$168,INDIRECT(J$1&$A93))<>1),\"\",VLOOKUP(INDIRECT(J$1&$A93),'TRM Data'!$R$4:$S$168,2))","v":""},"",{"$f":"IF(INDIRECT(L$3&$A93)=\"\",\"\",INDIRECT(L$3&$A93))","v":""},"",{"$f":"IF(INDIRECT(N$3&$A93)=\"\",\"\",VLOOKUP(VLOOKUP(INDIRECT(N$3&$A93),'TRM Data'!$C$5:$N$200,COLUMN('TRM Data'!$E$2)-COLUMN('TRM Data'!$C$2)+1,FALSE),'Other Data'!$G$158:$H$178,2))","v":""},"",{"$f":"IF(INDIRECT(P$3&$A93)=\"\",\"\",INDIRECT(P$3&$A93))","v":""},"","","","","",{"$f":"IF($B93=0,\"\",INDIRECT(V$3&$A93))","v":""},"","","","","","","","",""]
[52,0,0,"","",{"$f":"IF(COUNTIF('Project Information'!$J$9:$BG$9,$E94)=1,IF(INDEX('Project Information'!$J$15:$BG$15,1,MATCH($E94,'Project Information'!$J$9:$BG$9,0))=\"Yes\",\"Actual\",\"Deemed\"),\"\")","v":""},"","","",{"$f":"IF(OR(INDIRECT(J$1&$A94)=\"\",COUNTIF('TRM Data'!$R$4:$S$168,INDIRECT(J$1&$A94))<>1),\"\",VLOOKUP(INDIRECT(J$1&$A94),'TRM Data'!$R$4:$S$168,2))","v":""},"","","",{"$f":"IF(INDIRECT(N$1&$A94)=\"\",\"\",VLOOKUP(VLOOKUP(INDIRECT(N$1&$A94),'TRM Data'!$C$5:$N$200,COLUMN('TRM Data'!$E$2)-COLUMN('TRM Data'!$C$2)+1,FALSE),'Other Data'!$G$158:$H$178,2))","v":""},"","","","","","","","","","","","","","","","",""]
[52,0,0,{"$f":"IF($B95=1,SUM($B$5:$B95),\"\")","v":""},"",{"$f":"IF(COUNTIF('Project Information'!$J$9:$BG$9,$E95)=1,IF(INDEX('Project Information'!$J$15:$BG$15,1,MATCH($E95,'Project Information'!$J$9:$BG$9,0))=\"Yes\",\"Actual\",\"Deemed\"),\"\")","v":""},"","","",{"$f":"IF(OR(INDIRECT(J$1&$A95)=\"\",COUNTIF('TRM Data'!$R$4:$S$168,INDIRECT(J$1&$A95))<>1),\"\",VLOOKUP(INDIRECT(J$1&$A95),'TRM Data'!$R$4:$S$168,2))","v":""},"","","",{"$f":"IF(INDIRECT(N$3&$A95)=\"\",\"\",VLOOKUP(VLOOKUP(INDIRECT(N$3&$A95),'TRM Data'!$C$5:$N$200,COLUMN('TRM Data'!$E$2)-COLUMN('TRM Data'!$C$2)+1,FALSE),'Other Data'!$G$158:$H$178,2))","v":""},"","","","","","","","","","","","","","","","",""]
[53,0,0,"","",{"$f":"IF(COUNTIF('Project Information'!$J$9:$BG$9,$E96)=1,IF(INDEX('Project Information'!$J$15:$BG$15,1,MATCH($E96,'Project Information'!$J$9:$BG$9,0))=\"Yes\",\"Actual\",\"Deemed\"),\"\")","v":""},"","","",{"$f":"IF(OR(INDIRECT(J$1&$A96)=\"\",COUNTIF('TRM Data'!$R$4:$S$168,INDIRECT(J$1&$A96))<>1),\"\",VLOOKUP(INDIRECT(J$1&$A96),'TRM Data'!$R$4:$S$168,2))","v":""},"","","",{"$f":"IF(INDIRECT(N$1&$A96)=\"\",\"\",VLOOKUP(VLOOKUP(INDIRECT(N$1&$A96),'TRM Data'!$C$5:$N$200,COLUMN('TRM Data'!$E$2)-COLUMN('TRM Data'!$C$2)+1,FALSE),'Other Data'!$G$158:$H$178,2))","v":""},"","","","","","","","","","","","","","","","",""]
[53,0,0,{"$f":"IF($B97=1,SUM($B$5:$B97),\"\")","v":""},"",{"$f":"IF(COUNTIF('Project Information'!$J$9:$BG$9,$E97)=1,IF(INDEX('Project Information'!$J$15:$BG$15,1,MATCH($E97,'Project Information'!$J$9:$BG$9,0))=\"Yes\",\"Actual\",\"Deemed\"),\"\")","v":""},"","","",{"$f":"IF(OR(INDIRECT(J$1&$A97)=\"\",COUNTIF('TRM Data'!$R$4:$S$168,INDIRECT(J$1&$A97))<>1),\"\",VLOOKUP(INDIRECT(J$1&$A97),'TRM Data'!$R$4:$S$168,2))","v":""},"","","",{"$f":"IF(INDIRECT(N$3&$A97)=\"\",\"\",VLOOKUP(VLOOKUP(INDIRECT(N$3&$A97),'TRM Data'!$C$5:$N$200,COLUMN('TRM Data'!$E$2)-COLUMN('TRM Data'!$C$2)+1,FALSE),'Other Data'!$G$158:$H$178,2))","v":""},"","","","","","","","","","","","","","","","",""]
[54,0,0,"","",{"$f":"IF(COUNTIF('Project Information'!$J$9:$BG$9,$E98)=1,IF(INDEX('Project Information'!$J$15:$BG$15,1,MATCH($E98,'Project Information'!$J$9:$BG$9,0))=\"Yes\",\"Actual\",\"Deemed\"),\"\")","v":""},"","","",{"$f":"IF(OR(INDIRECT(J$1&$A98)=\"\",COUNTIF('TRM Data'!$R$4:$S$168,INDIRECT(J$1&$A98))<>1),\"\",VLOOKUP(INDIRECT(J$1&$A98),'TRM Data'!$R$4:$S$168,2))","v":""},"","","",{"$f":"IF(INDIRECT(N$1&$A98)=\"\",\"\",VLOOKUP(VLOOKUP(INDIRECT(N$1&$A98),'TRM Data'!$C$5:$N$200,COLUMN('TRM Data'!$E$2)-COLUMN('TRM Data'!$C$2)+1,FALSE),'Other Data'!$G$158:$H$178,2))","v":""},"","","","","","","","","","","","","","","","",""]
[54,0,0,{"$f":"IF($B99=1,SUM($B$5:$B99),\"\")","v":""},"",{"$f":"IF(COUNTIF('Project Information'!$J$9:$BG$9,$E99)=1,IF(INDEX('Project Information'!$J$15:$BG$15,1,MATCH($E99,'Project Information'!$J$9:$BG$9,0))=\"Yes\",\"Actual\",\"Deemed\"),\"\")","v":""},"","","",{"$f":"IF(OR(INDIRECT(J$1&$A99)=\"\",COUNTIF('TRM Data'!$R$4:$S$168,INDIRECT(J$1&$A99))<>1),\"\",VLOOKUP(INDIRECT(J$1&$A99),'TRM Data'!$R$4:$S$168,2))","v":""},"","","",{"$f":"IF(INDIRECT(N$3&$A99)=\"\",\"\",VLOOKUP(VLOOKUP(INDIRECT(N$3&$A99),'TRM Data'!$C$5:$N$200,COLUMN('TRM Data'!$E$2)-COLUMN('TRM Data'!$C$2)+1,FALSE),'Other Data'!$G$158:$H$178,2))","v":""},"","","","","","","","","","","","","","","","",""]
[55,0,0,"","",{"$f":"IF(COUNTIF('Project Information'!$J$9:$BG$9,$E100)=1,IF(INDEX('Project Information'!$J$15:$BG$15,1,MATCH($E100,'Project Information'!$J$9:$BG$9,0))=\"Yes\",\"Actual\",\"Deemed\"),\"\")","v":""},"","","",{"$f":"IF(OR(INDIRECT(J$1&$A100)=\"\",COUNTIF('TRM Data'!$R$4:$S$168,INDIRECT(J$1&$A100))<>1),\"\",VLOOKUP(INDIRECT(J$1&$A100),'TRM Data'!$R$4:$S$168,2))","v":""},"","","",{"$f":"IF(INDIRECT(N$1&$A100)=\"\",\"\",VLOOKUP(VLOOKUP(INDIRECT(N$1&$A100),'TRM Data'!$C$5:$N$200,COLUMN('TRM Data'!$E$2)-COLUMN('TRM Data'!$C$2)+1,FALSE),'Other Data'!$G$158:$H$178,2))","v":""},"","","","","","","","","","","","","","","","",""]
[55,0,0,{"$f":"IF($B101=1,SUM($B$5:$B101),\"\")","v":""},"",{"$f":"IF(COUNTIF('Project Information'!$J$9:$BG$9,$E101)=1,IF(INDEX('Project Information'!$J$15:$BG$15,1,MATCH($E101,'Project Information'!$J$9:$BG$9,0))=\"Yes\",\"Actual\",\"Deemed\"),\"\")","v":""},"","","",{"$f":"IF(OR(INDIRECT(J$1&$A101)=\"\",COUNTIF('TRM Data'!$R$4:$S$168,INDIRECT(J$1&$A101))<>1),\"\",VLOOKUP(INDIRECT(J$1&$A101),'TRM Data'!$R$4:$S$168,2))","v":""},"","","",{"$f":"IF(INDIRECT(N$3&$A101)=\"\",\"\",VLOOKUP(VLOOKUP(INDIRECT(N$3&$A101),'TRM Data'!$C$5:$N$200,COLUMN('TRM Data'!$E$2)-COLUMN('TRM Data'!$C$2)+1,FALSE),'Other Data'!$G$158:$H$178,2))","v":""},"","","","","","","","","","","","","","","","",""]
[56,0,0,"","",{"$f":"IF(COUNTIF('Project Information'!$J$9:$BG$9,$E102)=1,IF(INDEX('Project Information'!$J$15:$BG$15,1,MATCH($E102,'Project Information'!$J$9:$BG$9,0))=\"Yes\",\"Actual\",\"Deemed\"),\"\")","v":""},"","","",{"$f":"IF(OR(INDIRECT(J$1&$A102)=\"\",COUNTIF('TRM Data'!$R$4:$S$168,INDIRECT(J$1&$A102))<>1),\"\",VLOOKUP(INDIRECT(J$1&$A102),'TRM Data'!$R$4:$S$168,2))","v":""},"","","",{"$f":"IF(INDIRECT(N$1&$A102)=\"\",\"\",VLOOKUP(VLOOKUP(INDIRECT(N$1&$A102),'TRM Data'!$C$5:$N$200,COLUMN('TRM Data'!$E$2)-COLUMN('TRM Data'!$C$2)+1,FALSE),'Other Data'!$G$158:$H$178,2))","v":""},"","","","","","","","","","","","","","","","",""]
[56,0,0,{"$f":"IF($B103=1,SUM($B$5:$B103),\"\")","v":""},"",{"$f":"IF(COUNTIF('Project Information'!$J$9:$BG$9,$E103)=1,IF(INDEX('Project Information'!$J$15:$BG$15,1,MATCH($E103,'Project Information'!$J$9:$BG$9,0))=\"Yes\",\"Actual\",\"Deemed\"),\"\")","v":""},"","","",{"$f":"IF(OR(INDIRECT(J$1&$A103)=\"\",COUNTIF('TRM Data'!$R$4:$S$168,INDIRECT(J$1&$A103))<>1),\"\",VLOOKUP(INDIRECT(J$1&$A103),'TRM Data'!$R$4:$S$168,2))","v":""},"","","",{"$f":"IF(INDIRECT(N$3&$A103)=\"\",\"\",VLOOKUP(VLOOKUP(INDIRECT(N$3&$A103),'TRM Data'!$C$5:$N$200,COLUMN('TRM Data'!$E$2)-COLUMN('TRM Data'!$C$2)+1,FALSE),'Other Data'!$G$158:$H$178,2))","v":""},"","","","","","","","","","","","","","","","",""]
[57,0,0,"","",{"$f":"IF(COUNTIF('Project Information'!$J$9:$BG$9,$E104)=1,IF(INDEX('Project Information'!$J$15:$BG$15,1,MATCH($E104,'Project Information'!$J$9:$BG$9,0))=\"Yes\",\"Actual\",\"Deemed\"),\"\")","v":""},"","","",{"$f":"IF(OR(INDIRECT(J$1&$A104)=\"\",COUNTIF('TRM Data'!$R$4:$S$168,INDIRECT(J$1&$A104))<>1),\"\",VLOOKUP(INDIRECT(J$1&$A104),'TRM Data'!$R$4:$S$168,2))","v":""},"","","",{"$f":"IF(INDIRECT(N$1&$A104)=\"\",\"\",VLOOKUP(VLOOKUP(INDIRECT(N$1&$A104),'TRM Data'!$C$5:$N$200,COLUMN('TRM Data'!$E$2)-COLUMN('TRM Data'!$C$2)+1,FALSE),'Other Data'!$G$158:$H$178,2))","v":""},"","","","","","","","","","","","","","","","",""]
[57,0,0,{"$f":"IF($B105=1,SUM($B$5:$B105),\"\")","v":""},"",{"$f":"IF(COUNTIF('Project Information'!$J$9:$BG$9,$E105)=1,IF(INDEX('Project Information'!$J$15:$BG$15,1,MATCH($E105,'Project Information'!$J$9:$BG$9,0))=\"Yes\",\"Actual\",\"Deemed\"),\"\")","v":""},"","","",{"$f":"IF(OR(INDIRECT(J$1&$A105)=\"\",COUNTIF('TRM Data'!$R$4:$S$168,INDIRECT(J$1&$A105))<>1),\"\",VLOOKUP(INDIRECT(J$1&$A105),'TRM Data'!$R$4:$S$168,2))","v":""},"","","",{"$f":"IF(INDIRECT(N$3&$A105)=\"\",\"\",VLOOKUP(VLOOKUP(INDIRECT(N$3&$A105),'TRM Data'!$C$5:$N$200,COLUMN('TRM Data'!$E$2)-COLUMN('TRM Data'!$C$2)+1,FALSE),'Other Data'!$G$158:$H$178,2))","v":""},"","","","","","","","","","","","","","","","",""]
[58,0,0,"","",{"$f":"IF(COUNTIF('Project Information'!$J$9:$BG$9,$E106)=1,IF(INDEX('Project Information'!$J$15:$BG$15,1,MATCH($E106,'Project Information'!$J$9:$BG$9,0))=\"Yes\",\"Actual\",\"Deemed\"),\"\")","v":""},"","","",{"$f":"IF(OR(INDIRECT(J$1&$A106)=\"\",COUNTIF('TRM Data'!$R$4:$S$168,INDIRECT(J$1&$A106))<>1),\"\",VLOOKUP(INDIRECT(J$1&$A106),'TRM Data'!$R$4:$S$168,2))","v":""},"","","",{"$f":"IF(INDIRECT(N$1&$A106)=\"\",\"\",VLOOKUP(VLOOKUP(INDIRECT(N$1&$A106),'TRM Data'!$C$5:$N$200,COLUMN('TRM Data'!$E$2)-COLUMN('TRM Data'!$C$2)+1,FALSE),'Other Data'!$G$158:$H$178,2))","v":""},"","","","","","","","","","","","","","","","",""]
[58,0,0,{"$f":"IF($B107=1,SUM($B$5:$B107),\"\")","v":""},"",{"$f":"IF(COUNTIF('Project Information'!$J$9:$BG$9,$E107)=1,IF(INDEX('Project Information'!$J$15:$BG$15,1,MATCH($E107,'Project Information'!$J$9:$BG$9,0))=\"Yes\",\"Actual\",\"Deemed\"),\"\")","v":""},"","","",{"$f":"IF(OR(INDIRECT(J$1&$A107)=\"\",COUNTIF('TRM Data'!$R$4:$S$168,INDIRECT(J$1&$A107))<>1),\"\",VLOOKUP(INDIRECT(J$1&$A107),'TRM Data'!$R$4:$S$168,2))","v":""},"","","",{"$f":"IF(INDIRECT(N$3&$A107)=\"\",\"\",VLOOKUP(VLOOKUP(INDIRECT(N$3&$A107),'TRM Data'!$C$5:$N$200,COLUMN('TRM Data'!$E$2)-COLUMN('TRM Data'!$C$2)+1,FALSE),'Other Data'!$G$158:$H$178,2))","v":""},"","","","","","","","","","","","","","","","",""]
[59,0,0,"","",{"$f":"IF(COUNTIF('Project Information'!$J$9:$BG$9,$E108)=1,IF(INDEX('Project Information'!$J$15:$BG$15,1,MATCH($E108,'Project Information'!$J$9:$BG$9,0))=\"Yes\",\"Actual\",\"Deemed\"),\"\")","v":""},"","","",{"$f":"IF(OR(INDIRECT(J$1&$A108)=\"\",COUNTIF('TRM Data'!$R$4:$S$168,INDIRECT(J$1&$A108))<>1),\"\",VLOOKUP(INDIRECT(J$1&$A108),'TRM Data'!$R$4:$S$168,2))","v":""},"","","",{"$f":"IF(INDIRECT(N$1&$A108)=\"\",\"\",VLOOKUP(VLOOKUP(INDIRECT(N$1&$A108),'TRM Data'!$C$5:$N$200,COLUMN('TRM Data'!$E$2)-COLUMN('TRM Data'!$C$2)+1,FALSE),'Other Data'!$G$158:$H$178,2))","v":""},"","","","","","","","","","","","","","","","",""]
[59,0,0,{"$f":"IF($B109=1,SUM($B$5:$B109),\"\")","v":""},"",{"$f":"IF(COUNTIF('Project Information'!$J$9:$BG$9,$E109)=1,IF(INDEX('Project Information'!$J$15:$BG$15,1,MATCH($E109,'Project Information'!$J$9:$BG$9,0))=\"Yes\",\"Actual\",\"Deemed\"),\"\")","v":""},"","","",{"$f":"IF(OR(INDIRECT(J$1&$A109)=\"\",COUNTIF('TRM Data'!$R$4:$S$168,INDIRECT(J$1&$A109))<>1),\"\",VLOOKUP(INDIRECT(J$1&$A109),'TRM Data'!$R$4:$S$168,2))","v":""},"","","",{"$f":"IF(INDIRECT(N$3&$A109)=\"\",\"\",VLOOKUP(VLOOKUP(INDIRECT(N$3&$A109),'TRM Data'!$C$5:$N$200,COLUMN('TRM Data'!$E$2)-COLUMN('TRM Data'!$C$2)+1,FALSE),'Other Data'!$G$158:$H$178,2))","v":""},"","","","","","","","","","","","","","","","",""]
[60,0,0,"","",{"$f":"IF(COUNTIF('Project Information'!$J$9:$BG$9,$E110)=1,IF(INDEX('Project Information'!$J$15:$BG$15,1,MATCH($E110,'Project Information'!$J$9:$BG$9,0))=\"Yes\",\"Actual\",\"Deemed\"),\"\")","v":""},"","","",{"$f":"IF(OR(INDIRECT(J$1&$A110)=\"\",COUNTIF('TRM Data'!$R$4:$S$168,INDIRECT(J$1&$A110))<>1),\"\",VLOOKUP(INDIRECT(J$1&$A110),'TRM Data'!$R$4:$S$168,2))","v":""},"","","",{"$f":"IF(INDIRECT(N$1&$A110)=\"\",\"\",VLOOKUP(VLOOKUP(INDIRECT(N$1&$A110),'TRM Data'!$C$5:$N$200,COLUMN('TRM Data'!$E$2)-COLUMN('TRM Data'!$C$2)+1,FALSE),'Other Data'!$G$158:$H$178,2))","v":""},"","","","","","","","","","","","","","","","",""]
[60,0,0,{"$f":"IF($B111=1,SUM($B$5:$B111),\"\")","v":""},"",{"$f":"IF(COUNTIF('Project Information'!$J$9:$BG$9,$E111)=1,IF(INDEX('Project Information'!$J$15:$BG$15,1,MATCH($E111,'Project Information'!$J$9:$BG$9,0))=\"Yes\",\"Actual\",\"Deemed\"),\"\")","v":""},"","","",{"$f":"IF(OR(INDIRECT(J$1&$A111)=\"\",COUNTIF('TRM Data'!$R$4:$S$168,INDIRECT(J$1&$A111))<>1),\"\",VLOOKUP(INDIRECT(J$1&$A111),'TRM Data'!$R$4:$S$168,2))","v":""},"","","",{"$f":"IF(INDIRECT(N$3&$A111)=\"\",\"\",VLOOKUP(VLOOKUP(INDIRECT(N$3&$A111),'TRM Data'!$C$5:$N$200,COLUMN('TRM Data'!$E$2)-COLUMN('TRM Data'!$C$2)+1,FALSE),'Other Data'!$G$158:$H$178,2))","v":""},"","","","","","","","","","","","","","","","",""]
[61,0,0,"","",{"$f":"IF(COUNTIF('Project Information'!$J$9:$BG$9,$E112)=1,IF(INDEX('Project Information'!$J$15:$BG$15,1,MATCH($E112,'Project Information'!$J$9:$BG$9,0))=\"Yes\",\"Actual\",\"Deemed\"),\"\")","v":""},"","","",{"$f":"IF(OR(INDIRECT(J$1&$A112)=\"\",COUNTIF('TRM Data'!$R$4:$S$168,INDIRECT(J$1&$A112))<>1),\"\",VLOOKUP(INDIRECT(J$1&$A112),'TRM Data'!$R$4:$S$168,2))","v":""},"","","",{"$f":"IF(INDIRECT(N$1&$A112)=\"\",\"\",VLOOKUP(VLOOKUP(INDIRECT(N$1&$A112),'TRM Data'!$C$5:$N$200,COLUMN('TRM Data'!$E$2)-COLUMN('TRM Data'!$C$2)+1,FALSE),'Other Data'!$G$158:$H$178,2))","v":""},"","","","","","","","","","","","","","","","",""]
[61,0,0,{"$f":"IF($B113=1,SUM($B$5:$B113),\"\")","v":""},"",{"$f":"IF(COUNTIF('Project Information'!$J$9:$BG$9,$E113)=1,IF(INDEX('Project Information'!$J$15:$BG$15,1,MATCH($E113,'Project Information'!$J$9:$BG$9,0))=\"Yes\",\"Actual\",\"Deemed\"),\"\")","v":""},"","","",{"$f":"IF(OR(INDIRECT(J$1&$A113)=\"\",COUNTIF('TRM Data'!$R$4:$S$168,INDIRECT(J$1&$A113))<>1),\"\",VLOOKUP(INDIRECT(J$1&$A113),'TRM Data'!$R$4:$S$168,2))","v":""},"","","",{"$f":"IF(INDIRECT(N$3&$A113)=\"\",\"\",VLOOKUP(VLOOKUP(INDIRECT(N$3&$A113),'TRM Data'!$C$5:$N$200,COLUMN('TRM Data'!$E$2)-COLUMN('TRM Data'!$C$2)+1,FALSE),'Other Data'!$G$158:$H$178,2))","v":""},"","","","","","","","","","","","","","","","",""]
[62,0,0,"","",{"$f":"IF(COUNTIF('Project Information'!$J$9:$BG$9,$E114)=1,IF(INDEX('Project Information'!$J$15:$BG$15,1,MATCH($E114,'Project Information'!$J$9:$BG$9,0))=\"Yes\",\"Actual\",\"Deemed\"),\"\")","v":""},"","","",{"$f":"IF(OR(INDIRECT(J$1&$A114)=\"\",COUNTIF('TRM Data'!$R$4:$S$168,INDIRECT(J$1&$A114))<>1),\"\",VLOOKUP(INDIRECT(J$1&$A114),'TRM Data'!$R$4:$S$168,2))","v":""},"","","",{"$f":"IF(INDIRECT(N$1&$A114)=\"\",\"\",VLOOKUP(VLOOKUP(INDIRECT(N$1&$A114),'TRM Data'!$C$5:$N$200,COLUMN('TRM Data'!$E$2)-COLUMN('TRM Data'!$C$2)+1,FALSE),'Other Data'!$G$158:$H$178,2))","v":""},"","","","","","","","","","","","","","","","",""]
[62,0,0,{"$f":"IF($B115=1,SUM($B$5:$B115),\"\")","v":""},"",{"$f":"IF(COUNTIF('Project Information'!$J$9:$BG$9,$E115)=1,IF(INDEX('Project Information'!$J$15:$BG$15,1,MATCH($E115,'Project Information'!$J$9:$BG$9,0))=\"Yes\",\"Actual\",\"Deemed\"),\"\")","v":""},"","","",{"$f":"IF(OR(INDIRECT(J$1&$A115)=\"\",COUNTIF('TRM Data'!$R$4:$S$168,INDIRECT(J$1&$A115))<>1),\"\",VLOOKUP(INDIRECT(J$1&$A115),'TRM Data'!$R$4:$S$168,2))","v":""},"","","",{"$f":"IF(INDIRECT(N$3&$A115)=\"\",\"\",VLOOKUP(VLOOKUP(INDIRECT(N$3&$A115),'TRM Data'!$C$5:$N$200,COLUMN('TRM Data'!$E$2)-COLUMN('TRM Data'!$C$2)+1,FALSE),'Other Data'!$G$158:$H$178,2))","v":""},"","","","","","","","","","","","","","","","",""]
[63,0,0,"","",{"$f":"IF(COUNTIF('Project Information'!$J$9:$BG$9,$E116)=1,IF(INDEX('Project Information'!$J$15:$BG$15,1,MATCH($E116,'Project Information'!$J$9:$BG$9,0))=\"Yes\",\"Actual\",\"Deemed\"),\"\")","v":""},"","","",{"$f":"IF(OR(INDIRECT(J$1&$A116)=\"\",COUNTIF('TRM Data'!$R$4:$S$168,INDIRECT(J$1&$A116))<>1),\"\",VLOOKUP(INDIRECT(J$1&$A116),'TRM Data'!$R$4:$S$168,2))","v":""},"","","",{"$f":"IF(INDIRECT(N$1&$A116)=\"\",\"\",VLOOKUP(VLOOKUP(INDIRECT(N$1&$A116),'TRM Data'!$C$5:$N$200,COLUMN('TRM Data'!$E$2)-COLUMN('TRM Data'!$C$2)+1,FALSE),'Other Data'!$G$158:$H$178,2))","v":""},"","","","","","","","","","","","","","","","",""]
[63,0,0,{"$f":"IF($B117=1,SUM($B$5:$B117),\"\")","v":""},"",{"$f":"IF(COUNTIF('Project Information'!$J$9:$BG$9,$E117)=1,IF(INDEX('Project Information'!$J$15:$BG$15,1,MATCH($E117,'Project Information'!$J$9:$BG$9,0))=\"Yes\",\"Actual\",\"Deemed\"),\"\")","v":""},"","","",{"$f":"IF(OR(INDIRECT(J$1&$A117)=\"\",COUNTIF('TRM Data'!$R$4:$S$168,INDIRECT(J$1&$A117))<>1),\"\",VLOOKUP(INDIRECT(J$1&$A117),'TRM Data'!$R$4:$S$168,2))","v":""},"","","",{"$f":"IF(INDIRECT(N$3&$A117)=\"\",\"\",VLOOKUP(VLOOKUP(INDIRECT(N$3&$A117),'TRM Data'!$C$5:$N$200,COLUMN('TRM Data'!$E$2)-COLUMN('TRM Data'!$C$2)+1,FALSE),'Other Data'!$G$158:$H$178,2))","v":""},"","","","","","","","","","","","","","","","",""]
[64,0,0,"","",{"$f":"IF(COUNTIF('Project Information'!$J$9:$BG$9,$E118)=1,IF(INDEX('Project Information'!$J$15:$BG$15,1,MATCH($E118,'Project Information'!$J$9:$BG$9,0))=\"Yes\",\"Actual\",\"Deemed\"),\"\")","v":""},"","","",{"$f":"IF(OR(INDIRECT(J$1&$A118)=\"\",COUNTIF('TRM Data'!$R$4:$S$168,INDIRECT(J$1&$A118))<>1),\"\",VLOOKUP(INDIRECT(J$1&$A118),'TRM Data'!$R$4:$S$168,2))","v":""},"","","",{"$f":"IF(INDIRECT(N$1&$A118)=\"\",\"\",VLOOKUP(VLOOKUP(INDIRECT(N$1&$A118),'TRM Data'!$C$5:$N$200,COLUMN('TRM Data'!$E$2)-COLUMN('TRM Data'!$C$2)+1,FALSE),'Other Data'!$G$158:$H$178,2))","v":""},"","","","","","","","","","","","","","","","",""]
[64,0,0,{"$f":"IF($B119=1,SUM($B$5:$B119),\"\")","v":""},"",{"$f":"IF(COUNTIF('Project Information'!$J$9:$BG$9,$E119)=1,IF(INDEX('Project Information'!$J$15:$BG$15,1,MATCH($E119,'Project Information'!$J$9:$BG$9,0))=\"Yes\",\"Actual\",\"Deemed\"),\"\")","v":""},"","","",{"$f":"IF(OR(INDIRECT(J$1&$A119)=\"\",COUNTIF('TRM Data'!$R$4:$S$168,INDIRECT(J$1&$A119))<>1),\"\",VLOOKUP(INDIRECT(J$1&$A119),'TRM Data'!$R$4:$S$168,2))","v":""},"","","",{"$f":"IF(INDIRECT(N$3&$A119)=\"\",\"\",VLOOKUP(VLOOKUP(INDIRECT(N$3&$A119),'TRM Data'!$C$5:$N$200,COLUMN('TRM Data'!$E$2)-COLUMN('TRM Data'!$C$2)+1,FALSE),'Other Data'!$G$158:$H$178,2))","v":""},"","","","","","","","","","","","","","","","",""]
[65,0,0,"","",{"$f":"IF(COUNTIF('Project Information'!$J$9:$BG$9,$E120)=1,IF(INDEX('Project Information'!$J$15:$BG$15,1,MATCH($E120,'Project Information'!$J$9:$BG$9,0))=\"Yes\",\"Actual\",\"Deemed\"),\"\")","v":""},"","","",{"$f":"IF(OR(INDIRECT(J$1&$A120)=\"\",COUNTIF('TRM Data'!$R$4:$S$168,INDIRECT(J$1&$A120))<>1),\"\",VLOOKUP(INDIRECT(J$1&$A120),'TRM Data'!$R$4:$S$168,2))","v":""},"","","",{"$f":"IF(INDIRECT(N$1&$A120)=\"\",\"\",VLOOKUP(VLOOKUP(INDIRECT(N$1&$A120),'TRM Data'!$C$5:$N$200,COLUMN('TRM Data'!$E$2)-COLUMN('TRM Data'!$C$2)+1,FALSE),'Other Data'!$G$158:$H$178,2))","v":""},"","","","","","","","","","","","","","","","",""]
[65,0,0,{"$f":"IF($B121=1,SUM($B$5:$B121),\"\")","v":""},"",{"$f":"IF(COUNTIF('Project Information'!$J$9:$BG$9,$E121)=1,IF(INDEX('Project Information'!$J$15:$BG$15,1,MATCH($E121,'Project Information'!$J$9:$BG$9,0))=\"Yes\",\"Actual\",\"Deemed\"),\"\")","v":""},"","","",{"$f":"IF(OR(INDIRECT(J$1&$A121)=\"\",COUNTIF('TRM Data'!$R$4:$S$168,INDIRECT(J$1&$A121))<>1),\"\",VLOOKUP(INDIRECT(J$1&$A121),'TRM Data'!$R$4:$S$168,2))","v":""},"","","",{"$f":"IF(INDIRECT(N$3&$A121)=\"\",\"\",VLOOKUP(VLOOKUP(INDIRECT(N$3&$A121),'TRM Data'!$C$5:$N$200,COLUMN('TRM Data'!$E$2)-COLUMN('TRM Data'!$C$2)+1,FALSE),'Other Data'!$G$158:$H$178,2))","v":""},"","","","","","","","","","","","","","","","",""]
[66,0,0,"","",{"$f":"IF(COUNTIF('Project Information'!$J$9:$BG$9,$E122)=1,IF(INDEX('Project Information'!$J$15:$BG$15,1,MATCH($E122,'Project Information'!$J$9:$BG$9,0))=\"Yes\",\"Actual\",\"Deemed\"),\"\")","v":""},"","","",{"$f":"IF(OR(INDIRECT(J$1&$A122)=\"\",COUNTIF('TRM Data'!$R$4:$S$168,INDIRECT(J$1&$A122))<>1),\"\",VLOOKUP(INDIRECT(J$1&$A122),'TRM Data'!$R$4:$S$168,2))","v":""},"","","",{"$f":"IF(INDIRECT(N$1&$A122)=\"\",\"\",VLOOKUP(VLOOKUP(INDIRECT(N$1&$A122),'TRM Data'!$C$5:$N$200,COLUMN('TRM Data'!$E$2)-COLUMN('TRM Data'!$C$2)+1,FALSE),'Other Data'!$G$158:$H$178,2))","v":""},"","","","","","","","","","","","","","","","",""]
[66,0,0,{"$f":"IF($B123=1,SUM($B$5:$B123),\"\")","v":""},"",{"$f":"IF(COUNTIF('Project Information'!$J$9:$BG$9,$E123)=1,IF(INDEX('Project Information'!$J$15:$BG$15,1,MATCH($E123,'Project Information'!$J$9:$BG$9,0))=\"Yes\",\"Actual\",\"Deemed\"),\"\")","v":""},"","","",{"$f":"IF(OR(INDIRECT(J$1&$A123)=\"\",COUNTIF('TRM Data'!$R$4:$S$168,INDIRECT(J$1&$A123))<>1),\"\",VLOOKUP(INDIRECT(J$1&$A123),'TRM Data'!$R$4:$S$168,2))","v":""},"","","",{"$f":"IF(INDIRECT(N$3&$A123)=\"\",\"\",VLOOKUP(VLOOKUP(INDIRECT(N$3&$A123),'TRM Data'!$C$5:$N$200,COLUMN('TRM Data'!$E$2)-COLUMN('TRM Data'!$C$2)+1,FALSE),'Other Data'!$G$158:$H$178,2))","v":""},"","","","","","","","","","","","","","","","",""]
[67,0,0,"","",{"$f":"IF(COUNTIF('Project Information'!$J$9:$BG$9,$E124)=1,IF(INDEX('Project Information'!$J$15:$BG$15,1,MATCH($E124,'Project Information'!$J$9:$BG$9,0))=\"Yes\",\"Actual\",\"Deemed\"),\"\")","v":""},"","","",{"$f":"IF(OR(INDIRECT(J$1&$A124)=\"\",COUNTIF('TRM Data'!$R$4:$S$168,INDIRECT(J$1&$A124))<>1),\"\",VLOOKUP(INDIRECT(J$1&$A124),'TRM Data'!$R$4:$S$168,2))","v":""},"","","",{"$f":"IF(INDIRECT(N$1&$A124)=\"\",\"\",VLOOKUP(VLOOKUP(INDIRECT(N$1&$A124),'TRM Data'!$C$5:$N$200,COLUMN('TRM Data'!$E$2)-COLUMN('TRM Data'!$C$2)+1,FALSE),'Other Data'!$G$158:$H$178,2))","v":""},"","","","","","","","","","","","","","","","",""]
[67,0,0,{"$f":"IF($B125=1,SUM($B$5:$B125),\"\")","v":""},"",{"$f":"IF(COUNTIF('Project Information'!$J$9:$BG$9,$E125)=1,IF(INDEX('Project Information'!$J$15:$BG$15,1,MATCH($E125,'Project Information'!$J$9:$BG$9,0))=\"Yes\",\"Actual\",\"Deemed\"),\"\")","v":""},"","","",{"$f":"IF(OR(INDIRECT(J$1&$A125)=\"\",COUNTIF('TRM Data'!$R$4:$S$168,INDIRECT(J$1&$A125))<>1),\"\",VLOOKUP(INDIRECT(J$1&$A125),'TRM Data'!$R$4:$S$168,2))","v":""},"","","",{"$f":"IF(INDIRECT(N$3&$A125)=\"\",\"\",VLOOKUP(VLOOKUP(INDIRECT(N$3&$A125),'TRM Data'!$C$5:$N$200,COLUMN('TRM Data'!$E$2)-COLUMN('TRM Data'!$C$2)+1,FALSE),'Other Data'!$G$158:$H$178,2))","v":""},"","","","","","","","","","","","","","","","",""]
[68,0,0,"","",{"$f":"IF(COUNTIF('Project Information'!$J$9:$BG$9,$E126)=1,IF(INDEX('Project Information'!$J$15:$BG$15,1,MATCH($E126,'Project Information'!$J$9:$BG$9,0))=\"Yes\",\"Actual\",\"Deemed\"),\"\")","v":""},"","","",{"$f":"IF(OR(INDIRECT(J$1&$A126)=\"\",COUNTIF('TRM Data'!$R$4:$S$168,INDIRECT(J$1&$A126))<>1),\"\",VLOOKUP(INDIRECT(J$1&$A126),'TRM Data'!$R$4:$S$168,2))","v":""},"","","",{"$f":"IF(INDIRECT(N$1&$A126)=\"\",\"\",VLOOKUP(VLOOKUP(INDIRECT(N$1&$A126),'TRM Data'!$C$5:$N$200,COLUMN('TRM Data'!$E$2)-COLUMN('TRM Data'!$C$2)+1,FALSE),'Other Data'!$G$158:$H$178,2))","v":""},"","","","","","","","","","","","","","","","",""]
[68,0,0,{"$f":"IF($B127=1,SUM($B$5:$B127),\"\")","v":""},"",{"$f":"IF(COUNTIF('Project Information'!$J$9:$BG$9,$E127)=1,IF(INDEX('Project Information'!$J$15:$BG$15,1,MATCH($E127,'Project Information'!$J$9:$BG$9,0))=\"Yes\",\"Actual\",\"Deemed\"),\"\")","v":""},"","","",{"$f":"IF(OR(INDIRECT(J$1&$A127)=\"\",COUNTIF('TRM Data'!$R$4:$S$168,INDIRECT(J$1&$A127))<>1),\"\",VLOOKUP(INDIRECT(J$1&$A127),'TRM Data'!$R$4:$S$168,2))","v":""},"","","",{"$f":"IF(INDIRECT(N$3&$A127)=\"\",\"\",VLOOKUP(VLOOKUP(INDIRECT(N$3&$A127),'TRM Data'!$C$5:$N$200,COLUMN('TRM Data'!$E$2)-COLUMN('TRM Data'!$C$2)+1,FALSE),'Other Data'!$G$158:$H$178,2))","v":""},"","","","","","","","","","","","","","","","",""]
[69,0,0,"","",{"$f":"IF(COUNTIF('Project Information'!$J$9:$BG$9,$E128)=1,IF(INDEX('Project Information'!$J$15:$BG$15,1,MATCH($E128,'Project Information'!$J$9:$BG$9,0))=\"Yes\",\"Actual\",\"Deemed\"),\"\")","v":""},"","","",{"$f":"IF(OR(INDIRECT(J$1&$A128)=\"\",COUNTIF('TRM Data'!$R$4:$S$168,INDIRECT(J$1&$A128))<>1),\"\",VLOOKUP(INDIRECT(J$1&$A128),'TRM Data'!$R$4:$S$168,2))","v":""},"","","",{"$f":"IF(INDIRECT(N$1&$A128)=\"\",\"\",VLOOKUP(VLOOKUP(INDIRECT(N$1&$A128),'TRM Data'!$C$5:$N$200,COLUMN('TRM Data'!$E$2)-COLUMN('TRM Data'!$C$2)+1,FALSE),'Other Data'!$G$158:$H$178,2))","v":""},"","","","","","","","","","","","","","","","",""]
[69,0,0,{"$f":"IF($B129=1,SUM($B$5:$B129),\"\")","v":""},"",{"$f":"IF(COUNTIF('Project Information'!$J$9:$BG$9,$E129)=1,IF(INDEX('Project Information'!$J$15:$BG$15,1,MATCH($E129,'Project Information'!$J$9:$BG$9,0))=\"Yes\",\"Actual\",\"Deemed\"),\"\")","v":""},"","","",{"$f":"IF(OR(INDIRECT(J$1&$A129)=\"\",COUNTIF('TRM Data'!$R$4:$S$168,INDIRECT(J$1&$A129))<>1),\"\",VLOOKUP(INDIRECT(J$1&$A129),'TRM Data'!$R$4:$S$168,2))","v":""},"","","",{"$f":"IF(INDIRECT(N$3&$A129)=\"\",\"\",VLOOKUP(VLOOKUP(INDIRECT(N$3&$A129),'TRM Data'!$C$5:$N$200,COLUMN('TRM Data'!$E$2)-COLUMN('TRM Data'!$C$2)+1,FALSE),'Other Data'!$G$158:$H$178,2))","v":""},"","","","","","","","","","","","","","","","",""]
[70,0,0,"","",{"$f":"IF(COUNTIF('Project Information'!$J$9:$BG$9,$E130)=1,IF(INDEX('Project Information'!$J$15:$BG$15,1,MATCH($E130,'Project Information'!$J$9:$BG$9,0))=\"Yes\",\"Actual\",\"Deemed\"),\"\")","v":""},"","","",{"$f":"IF(OR(INDIRECT(J$1&$A130)=\"\",COUNTIF('TRM Data'!$R$4:$S$168,INDIRECT(J$1&$A130))<>1),\"\",VLOOKUP(INDIRECT(J$1&$A130),'TRM Data'!$R$4:$S$168,2))","v":""},"","","",{"$f":"IF(INDIRECT(N$1&$A130)=\"\",\"\",VLOOKUP(VLOOKUP(INDIRECT(N$1&$A130),'TRM Data'!$C$5:$N$200,COLUMN('TRM Data'!$E$2)-COLUMN('TRM Data'!$C$2)+1,FALSE),'Other Data'!$G$158:$H$178,2))","v":""},"","","","","","","","","","","","","","","","",""]
[70,0,0,{"$f":"IF($B131=1,SUM($B$5:$B131),\"\")","v":""},"",{"$f":"IF(COUNTIF('Project Information'!$J$9:$BG$9,$E131)=1,IF(INDEX('Project Information'!$J$15:$BG$15,1,MATCH($E131,'Project Information'!$J$9:$BG$9,0))=\"Yes\",\"Actual\",\"Deemed\"),\"\")","v":""},"","","",{"$f":"IF(OR(INDIRECT(J$1&$A131)=\"\",COUNTIF('TRM Data'!$R$4:$S$168,INDIRECT(J$1&$A131))<>1),\"\",VLOOKUP(INDIRECT(J$1&$A131),'TRM Data'!$R$4:$S$168,2))","v":""},"","","",{"$f":"IF(INDIRECT(N$3&$A131)=\"\",\"\",VLOOKUP(VLOOKUP(INDIRECT(N$3&$A131),'TRM Data'!$C$5:$N$200,COLUMN('TRM Data'!$E$2)-COLUMN('TRM Data'!$C$2)+1,FALSE),'Other Data'!$G$158:$H$178,2))","v":""},"","","","","","","","","","","","","","","","",""]
[71,0,0,"","",{"$f":"IF(COUNTIF('Project Information'!$J$9:$BG$9,$E132)=1,IF(INDEX('Project Information'!$J$15:$BG$15,1,MATCH($E132,'Project Information'!$J$9:$BG$9,0))=\"Yes\",\"Actual\",\"Deemed\"),\"\")","v":""},"","","",{"$f":"IF(OR(INDIRECT(J$1&$A132)=\"\",COUNTIF('TRM Data'!$R$4:$S$168,INDIRECT(J$1&$A132))<>1),\"\",VLOOKUP(INDIRECT(J$1&$A132),'TRM Data'!$R$4:$S$168,2))","v":""},"","","",{"$f":"IF(INDIRECT(N$1&$A132)=\"\",\"\",VLOOKUP(VLOOKUP(INDIRECT(N$1&$A132),'TRM Data'!$C$5:$N$200,COLUMN('TRM Data'!$E$2)-COLUMN('TRM Data'!$C$2)+1,FALSE),'Other Data'!$G$158:$H$178,2))","v":""},"","","","","","","","","","","","","","","","",""]
[71,0,0,{"$f":"IF($B133=1,SUM($B$5:$B133),\"\")","v":""},"",{"$f":"IF(COUNTIF('Project Information'!$J$9:$BG$9,$E133)=1,IF(INDEX('Project Information'!$J$15:$BG$15,1,MATCH($E133,'Project Information'!$J$9:$BG$9,0))=\"Yes\",\"Actual\",\"Deemed\"),\"\")","v":""},"","","",{"$f":"IF(OR(INDIRECT(J$1&$A133)=\"\",COUNTIF('TRM Data'!$R$4:$S$168,INDIRECT(J$1&$A133))<>1),\"\",VLOOKUP(INDIRECT(J$1&$A133),'TRM Data'!$R$4:$S$168,2))","v":""},"","","",{"$f":"IF(INDIRECT(N$3&$A133)=\"\",\"\",VLOOKUP(VLOOKUP(INDIRECT(N$3&$A133),'TRM Data'!$C$5:$N$200,COLUMN('TRM Data'!$E$2)-COLUMN('TRM Data'!$C$2)+1,FALSE),'Other Data'!$G$158:$H$178,2))","v":""},"","","","","","","","","","","","","","","","",""]
[72,0,0,"","",{"$f":"IF(COUNTIF('Project Information'!$J$9:$BG$9,$E134)=1,IF(INDEX('Project Information'!$J$15:$BG$15,1,MATCH($E134,'Project Information'!$J$9:$BG$9,0))=\"Yes\",\"Actual\",\"Deemed\"),\"\")","v":""},"","","",{"$f":"IF(OR(INDIRECT(J$1&$A134)=\"\",COUNTIF('TRM Data'!$R$4:$S$168,INDIRECT(J$1&$A134))<>1),\"\",VLOOKUP(INDIRECT(J$1&$A134),'TRM Data'!$R$4:$S$168,2))","v":""},"","","",{"$f":"IF(INDIRECT(N$1&$A134)=\"\",\"\",VLOOKUP(VLOOKUP(INDIRECT(N$1&$A134),'TRM Data'!$C$5:$N$200,COLUMN('TRM Data'!$E$2)-COLUMN('TRM Data'!$C$2)+1,FALSE),'Other Data'!$G$158:$H$178,2))","v":""},"","","","","","","","","","","","","","","","",""]
[72,0,0,{"$f":"IF($B135=1,SUM($B$5:$B135),\"\")","v":""},{"$f":"IF(INDIRECT(E$1&$A135)=\"\",\"\",INDIRECT(E$1&$A135))","v":""},{"$f":"IF(COUNTIF('Project Information'!$J$9:$BG$9,$E135)=1,IF(INDEX('Project Information'!$J$15:$BG$15,1,MATCH($E135,'Project Information'!$J$9:$BG$9,0))=\"Yes\",\"Actual\",\"Deemed\"),\"\")","v":""},"","","",{"$f":"IF(OR(INDIRECT(J$1&$A135)=\"\",COUNTIF('TRM Data'!$R$4:$S$168,INDIRECT(J$1&$A135))<>1),\"\",VLOOKUP(INDIRECT(J$1&$A135),'TRM Data'!$R$4:$S$168,2))","v":""},"","","",{"$f":"IF(INDIRECT(N$3&$A135)=\"\",\"\",VLOOKUP(VLOOKUP(INDIRECT(N$3&$A135),'TRM Data'!$C$5:$N$200,COLUMN('TRM Data'!$E$2)-COLUMN('TRM Data'!$C$2)+1,FALSE),'Other Data'!$G$158:$H$178,2))","v":""},"","","","","","","","","","","","","","","","",""]
[73,0,0,"","",{"$f":"IF(COUNTIF('Project Information'!$J$9:$BG$9,$E136)=1,IF(INDEX('Project Information'!$J$15:$BG$15,1,MATCH($E136,'Project Information'!$J$9:$BG$9,0))=\"Yes\",\"Actual\",\"Deemed\"),\"\")","v":""},"","","",{"$f":"IF(OR(INDIRECT(J$1&$A136)=\"\",COUNTIF('TRM Data'!$R$4:$S$168,INDIRECT(J$1&$A136))<>1),\"\",VLOOKUP(INDIRECT(J$1&$A136),'TRM Data'!$R$4:$S$168,2))","v":""},"","","",{"$f":"IF(INDIRECT(N$1&$A136)=\"\",\"\",VLOOKUP(VLOOKUP(INDIRECT(N$1&$A136),'TRM Data'!$C$5:$N$200,COLUMN('TRM Data'!$E$2)-COLUMN('TRM Data'!$C$2)+1,FALSE),'Other Data'!$G$158:$H$178,2))","v":""},"","","","","","","","","","","","","","","","",""]
[73,0,0,{"$f":"IF($B137=1,SUM($B$5:$B137),\"\")","v":""},"",{"$f":"IF(COUNTIF('Project Information'!$J$9:$BG$9,$E137)=1,IF(INDEX('Project Information'!$J$15:$BG$15,1,MATCH($E137,'Project Information'!$J$9:$BG$9,0))=\"Yes\",\"Actual\",\"Deemed\"),\"\")","v":""},"","","",{"$f":"IF(OR(INDIRECT(J$1&$A137)=\"\",COUNTIF('TRM Data'!$R$4:$S$168,INDIRECT(J$1&$A137))<>1),\"\",VLOOKUP(INDIRECT(J$1&$A137),'TRM Data'!$R$4:$S$168,2))","v":""},"","","",{"$f":"IF(INDIRECT(N$3&$A137)=\"\",\"\",VLOOKUP(VLOOKUP(INDIRECT(N$3&$A137),'TRM Data'!$C$5:$N$200,COLUMN('TRM Data'!$E$2)-COLUMN('TRM Data'!$C$2)+1,FALSE),'Other Data'!$G$158:$H$178,2))","v":""},"","","","","","","","","","","","","","","","",""]
[{"$f":"A136+1","v":74},0,0,"","",{"$f":"IF(COUNTIF('Project Information'!$J$9:$BG$9,$E138)=1,IF(INDEX('Project Information'!$J$15:$BG$15,1,MATCH($E138,'Project Information'!$J$9:$BG$9,0))=\"Yes\",\"Actual\",\"Deemed\"),\"\")","v":""},"","","",{"$f":"IF(OR(INDIRECT(J$1&$A138)=\"\",COUNTIF('TRM Data'!$R$4:$S$168,INDIRECT(J$1&$A138))<>1),\"\",VLOOKUP(INDIRECT(J$1&$A138),'TRM Data'!$R$4:$S$168,2))","v":""},"","","",{"$f":"IF(INDIRECT(N$1&$A138)=\"\",\"\",VLOOKUP(VLOOKUP(INDIRECT(N$1&$A138),'TRM Data'!$C$5:$N$200,COLUMN('TRM Data'!$E$2)-COLUMN('TRM Data'!$C$2)+1,FALSE),'Other Data'!$G$158:$H$178,2))","v":""},"","","","","","","","","","","","","","","","",""]
[74,0,0,{"$f":"IF($B139=1,SUM($B$5:$B139),\"\")","v":""},"",{"$f":"IF(COUNTIF('Project Information'!$J$9:$BG$9,$E139)=1,IF(INDEX('Project Information'!$J$15:$BG$15,1,MATCH($E139,'Project Information'!$J$9:$BG$9,0))=\"Yes\",\"Actual\",\"Deemed\"),\"\")","v":""},"","","",{"$f":"IF(OR(INDIRECT(J$1&$A139)=\"\",COUNTIF('TRM Data'!$R$4:$S$168,INDIRECT(J$1&$A139))<>1),\"\",VLOOKUP(INDIRECT(J$1&$A139),'TRM Data'!$R$4:$S$168,2))","v":""},"","","",{"$f":"IF(INDIRECT(N$3&$A139)=\"\",\"\",VLOOKUP(VLOOKUP(INDIRECT(N$3&$A139),'TRM Data'!$C$5:$N$200,COLUMN('TRM Data'!$E$2)-COLUMN('TRM Data'!$C$2)+1,FALSE),'Other Data'!$G$158:$H$178,2))","v":""},"","","","","","","","","","","","","","","","",""]
[75,{"$f":"IF(AND(OR(INDIRECT(B$1&$A140)=\"Fixtures\",INDIRECT(B$1&$A140)=\"Fixtures and Controls\"),INDIRECT(B$2&$A140)>1),1,0)","v":0},{"$f":"IF($B140=1,1,IF(AND(OR(INDIRECT(C$1&$A140)=\"Fixtures\",INDIRECT(C$1&$A140)=\"Fixtures and Controls\"),INDIRECT(C$2&$A140)=\"Yes\"),1,0))","v":0},{"$f":"IF($B140=1,$B140,\"\")","v":""},"",{"$f":"IF(COUNTIF('Project Information'!$J$9:$BG$9,$E140)=1,IF(INDEX('Project Information'!$J$15:$BG$15,1,MATCH($E140,'Project Information'!$J$9:$BG$9,0))=\"Yes\",\"Actual\",\"Deemed\"),\"\")","v":""},"","","",{"$f":"IF(OR(INDIRECT(J$1&$A140)=\"\",COUNTIF('TRM Data'!$R$4:$S$168,INDIRECT(J$1&$A140))<>1),\"\",VLOOKUP(INDIRECT(J$1&$A140),'TRM Data'!$R$4:$S$168,2))","v":""},"","","",{"$f":"IF(INDIRECT(N$1&$A140)=\"\",\"\",VLOOKUP(VLOOKUP(INDIRECT(N$1&$A140),'TRM Data'!$C$5:$N$200,COLUMN('TRM Data'!$E$2)-COLUMN('TRM Data'!$C$2)+1,FALSE),'Other Data'!$G$158:$H$178,2))","v":""},"","","","","","","","","","","","","","","","",""]
[75,{"$f":"IF(AND(OR(INDIRECT(B$1&$A140)=\"Controls\",INDIRECT(B$1&$A140)=\"Fixtures and Controls\"),INDIRECT(B$2&$A140)>1),1,0)","v":0},{"$f":"IF($B141=1,1,IF(AND(OR(INDIRECT(C$1&$A141)=\"Controls\",INDIRECT(C$1&$A141)=\"Fixtures and Controls\"),INDIRECT(C$2&$A141)=\"Yes\"),1,0))","v":0},{"$f":"IF($B141=1,SUM($B$5:$B141),\"\")","v":""},"",{"$f":"IF(COUNTIF('Project Information'!$J$9:$BG$9,$E141)=1,IF(INDEX('Project Information'!$J$15:$BG$15,1,MATCH($E141,'Project Information'!$J$9:$BG$9,0))=\"Yes\",\"Actual\",\"Deemed\"),\"\")","v":""},"","","",{"$f":"IF(OR(INDIRECT(J$1&$A141)=\"\",COUNTIF('TRM Data'!$R$4:$S$168,INDIRECT(J$1&$A141))<>1),\"\",VLOOKUP(INDIRECT(J$1&$A141),'TRM Data'!$R$4:$S$168,2))","v":""},"","","",{"$f":"IF(INDIRECT(N$3&$A141)=\"\",\"\",VLOOKUP(VLOOKUP(INDIRECT(N$3&$A141),'TRM Data'!$C$5:$N$200,COLUMN('TRM Data'!$E$2)-COLUMN('TRM Data'!$C$2)+1,FALSE),'Other Data'!$G$158:$H$178,2))","v":""},"","","","","","","","","","","","","","","","",""]
[76,0,0,"","",{"$f":"IF(COUNTIF('Project Information'!$J$9:$BG$9,$E142)=1,IF(INDEX('Project Information'!$J$15:$BG$15,1,MATCH($E142,'Project Information'!$J$9:$BG$9,0))=\"Yes\",\"Actual\",\"Deemed\"),\"\")","v":""},"","","",{"$f":"IF(OR(INDIRECT(J$1&$A142)=\"\",COUNTIF('TRM Data'!$R$4:$S$168,INDIRECT(J$1&$A142))<>1),\"\",VLOOKUP(INDIRECT(J$1&$A142),'TRM Data'!$R$4:$S$168,2))","v":""},"","","",{"$f":"IF(INDIRECT(N$1&$A142)=\"\",\"\",VLOOKUP(VLOOKUP(INDIRECT(N$1&$A142),'TRM Data'!$C$5:$N$200,COLUMN('TRM Data'!$E$2)-COLUMN('TRM Data'!$C$2)+1,FALSE),'Other Data'!$G$158:$H$178,2))","v":""},"","","","","","",{"$f":"IF(INDIRECT(U$1&$A142)=\"\",\"\",INDIRECT(U$1&$A142))","v":""},"","","","","",{"$f":"IF($B142=0,\"\",INDIRECT(AA$1&$A142))","v":""},"","","",""]
[76,0,0,{"$f":"IF($B143=1,SUM($B$5:$B143),\"\")","v":""},"",{"$f":"IF(COUNTIF('Project Information'!$J$9:$BG$9,$E143)=1,IF(INDEX('Project Information'!$J$15:$BG$15,1,MATCH($E143,'Project Information'!$J$9:$BG$9,0))=\"Yes\",\"Actual\",\"Deemed\"),\"\")","v":""},{"$f":"IF(INDIRECT(G$1&$A143)=\"\",\"\",INDIRECT(G$1&$A143))","v":""},"","",{"$f":"IF(OR(INDIRECT(J$1&$A143)=\"\",COUNTIF('TRM Data'!$R$4:$S$168,INDIRECT(J$1&$A143))<>1),\"\",VLOOKUP(INDIRECT(J$1&$A143),'TRM Data'!$R$4:$S$168,2))","v":""},{"$f":"IF(INDIRECT(K$1&$A143)=\"\",\"\",INDIRECT(K$1&$A143))","v":""},"","",{"$f":"IF(INDIRECT(N$3&$A143)=\"\",\"\",VLOOKUP(VLOOKUP(INDIRECT(N$3&$A143),'TRM Data'!$C$5:$N$200,COLUMN('TRM Data'!$E$2)-COLUMN('TRM Data'!$C$2)+1,FALSE),'Other Data'!$G$158:$H$178,2))","v":""},"","","","","","","","","","","","",{"$f":"IF($B143=0,\"\",INDIRECT(AA$3&$A143))","v":""},"","","",""]
[77,0,0,"","",{"$f":"IF(COUNTIF('Project Information'!$J$9:$BG$9,$E144)=1,IF(INDEX('Project Information'!$J$15:$BG$15,1,MATCH($E144,'Project Information'!$J$9:$BG$9,0))=\"Yes\",\"Actual\",\"Deemed\"),\"\")","v":""},"","","",{"$f":"IF(OR(INDIRECT(J$1&$A144)=\"\",COUNTIF('TRM Data'!$R$4:$S$168,INDIRECT(J$1&$A144))<>1),\"\",VLOOKUP(INDIRECT(J$1&$A144),'TRM Data'!$R$4:$S$168,2))","v":""},"","","",{"$f":"IF(INDIRECT(N$1&$A144)=\"\",\"\",VLOOKUP(VLOOKUP(INDIRECT(N$1&$A144),'TRM Data'!$C$5:$N$200,COLUMN('TRM Data'!$E$2)-COLUMN('TRM Data'!$C$2)+1,FALSE),'Other Data'!$G$158:$H$178,2))","v":""},"","","","","","","",{"$f":"IF($B144=0,\"\",INDIRECT(V$1&$A144))","v":""},"","","","","","","","",""]
[77,0,0,{"$f":"IF($B145=1,SUM($B$5:$B145),\"\")","v":""},"",{"$f":"IF(COUNTIF('Project Information'!$J$9:$BG$9,$E145)=1,IF(INDEX('Project Information'!$J$15:$BG$15,1,MATCH($E145,'Project Information'!$J$9:$BG$9,0))=\"Yes\",\"Actual\",\"Deemed\"),\"\")","v":""},"","","",{"$f":"IF(OR(INDIRECT(J$1&$A145)=\"\",COUNTIF('TRM Data'!$R$4:$S$168,INDIRECT(J$1&$A145))<>1),\"\",VLOOKUP(INDIRECT(J$1&$A145),'TRM Data'!$R$4:$S$168,2))","v":""},"","","",{"$f":"IF(INDIRECT(N$3&$A145)=\"\",\"\",VLOOKUP(VLOOKUP(INDIRECT(N$3&$A145),'TRM Data'!$C$5:$N$200,COLUMN('TRM Data'!$E$2)-COLUMN('TRM Data'!$C$2)+1,FALSE),'Other Data'!$G$158:$H$178,2))","v":""},"","","","","","","",{"$f":"IF($B145=0,\"\",INDIRECT(V$3&$A145))","v":""},"","","","","","","","",""]
[78,0,0,"","",{"$f":"IF(COUNTIF('Project Information'!$J$9:$BG$9,$E146)=1,IF(INDEX('Project Information'!$J$15:$BG$15,1,MATCH($E146,'Project Information'!$J$9:$BG$9,0))=\"Yes\",\"Actual\",\"Deemed\"),\"\")","v":""},"","","",{"$f":"IF(OR(INDIRECT(J$1&$A146)=\"\",COUNTIF('TRM Data'!$R$4:$S$168,INDIRECT(J$1&$A146))<>1),\"\",VLOOKUP(INDIRECT(J$1&$A146),'TRM Data'!$R$4:$S$168,2))","v":""},"","","",{"$f":"IF(INDIRECT(N$1&$A146)=\"\",\"\",VLOOKUP(VLOOKUP(INDIRECT(N$1&$A146),'TRM Data'!$C$5:$N$200,COLUMN('TRM Data'!$E$2)-COLUMN('TRM Data'!$C$2)+1,FALSE),'Other Data'!$G$158:$H$178,2))","v":""},"","","","","","","","","","","","","","","","",""]
[78,0,0,{"$f":"IF($B147=1,SUM($B$5:$B147),\"\")","v":""},"",{"$f":"IF(COUNTIF('Project Information'!$J$9:$BG$9,$E147)=1,IF(INDEX('Project Information'!$J$15:$BG$15,1,MATCH($E147,'Project Information'!$J$9:$BG$9,0))=\"Yes\",\"Actual\",\"Deemed\"),\"\")","v":""},"","","",{"$f":"IF(OR(INDIRECT(J$1&$A147)=\"\",COUNTIF('TRM Data'!$R$4:$S$168,INDIRECT(J$1&$A147))<>1),\"\",VLOOKUP(INDIRECT(J$1&$A147),'TRM Data'!$R$4:$S$168,2))","v":""},"","","",{"$f":"IF(INDIRECT(N$3&$A147)=\"\",\"\",VLOOKUP(VLOOKUP(INDIRECT(N$3&$A147),'TRM Data'!$C$5:$N$200,COLUMN('TRM Data'!$E$2)-COLUMN('TRM Data'!$C$2)+1,FALSE),'Other Data'!$G$158:$H$178,2))","v":""},"","","","","","","","","","","","","","","","",""]
[79,0,0,"","",{"$f":"IF(COUNTIF('Project Information'!$J$9:$BG$9,$E148)=1,IF(INDEX('Project Information'!$J$15:$BG$15,1,MATCH($E148,'Project Information'!$J$9:$BG$9,0))=\"Yes\",\"Actual\",\"Deemed\"),\"\")","v":""},"","","",{"$f":"IF(OR(INDIRECT(J$1&$A148)=\"\",COUNTIF('TRM Data'!$R$4:$S$168,INDIRECT(J$1&$A148))<>1),\"\",VLOOKUP(INDIRECT(J$1&$A148),'TRM Data'!$R$4:$S$168,2))","v":""},"","","",{"$f":"IF(INDIRECT(N$1&$A148)=\"\",\"\",VLOOKUP(VLOOKUP(INDIRECT(N$1&$A148),'TRM Data'!$C$5:$N$200,COLUMN('TRM Data'!$E$2)-COLUMN('TRM Data'!$C$2)+1,FALSE),'Other Data'!$G$158:$H$178,2))","v":""},"","","","","","","","","","","","","","","","",""]
[79,0,0,{"$f":"IF($B149=1,SUM($B$5:$B149),\"\")","v":""},"",{"$f":"IF(COUNTIF('Project Information'!$J$9:$BG$9,$E149)=1,IF(INDEX('Project Information'!$J$15:$BG$15,1,MATCH($E149,'Project Information'!$J$9:$BG$9,0))=\"Yes\",\"Actual\",\"Deemed\"),\"\")","v":""},"","","",{"$f":"IF(OR(INDIRECT(J$1&$A149)=\"\",COUNTIF('TRM Data'!$R$4:$S$168,INDIRECT(J$1&$A149))<>1),\"\",VLOOKUP(INDIRECT(J$1&$A149),'TRM Data'!$R$4:$S$168,2))","v":""},"","","",{"$f":"IF(INDIRECT(N$3&$A149)=\"\",\"\",VLOOKUP(VLOOKUP(INDIRECT(N$3&$A149),'TRM Data'!$C$5:$N$200,COLUMN('TRM Data'!$E$2)-COLUMN('TRM Data'!$C$2)+1,FALSE),'Other Data'!$G$158:$H$178,2))","v":""},"","","","","","","","","","","","","","","","",""]
[80,0,0,"","",{"$f":"IF(COUNTIF('Project Information'!$J$9:$BG$9,$E150)=1,IF(INDEX('Project Information'!$J$15:$BG$15,1,MATCH($E150,'Project Information'!$J$9:$BG$9,0))=\"Yes\",\"Actual\",\"Deemed\"),\"\")","v":""},"","","",{"$f":"IF(OR(INDIRECT(J$1&$A150)=\"\",COUNTIF('TRM Data'!$R$4:$S$168,INDIRECT(J$1&$A150))<>1),\"\",VLOOKUP(INDIRECT(J$1&$A150),'TRM Data'!$R$4:$S$168,2))","v":""},"","","",{"$f":"IF(INDIRECT(N$1&$A150)=\"\",\"\",VLOOKUP(VLOOKUP(INDIRECT(N$1&$A150),'TRM Data'!$C$5:$N$200,COLUMN('TRM Data'!$E$2)-COLUMN('TRM Data'!$C$2)+1,FALSE),'Other Data'!$G$158:$H$178,2))","v":""},"","","","","","","","","","","","","","","","",""]
[80,0,0,{"$f":"IF($B151=1,SUM($B$5:$B151),\"\")","v":""},"",{"$f":"IF(COUNTIF('Project Information'!$J$9:$BG$9,$E151)=1,IF(INDEX('Project Information'!$J$15:$BG$15,1,MATCH($E151,'Project Information'!$J$9:$BG$9,0))=\"Yes\",\"Actual\",\"Deemed\"),\"\")","v":""},"","","",{"$f":"IF(OR(INDIRECT(J$1&$A151)=\"\",COUNTIF('TRM Data'!$R$4:$S$168,INDIRECT(J$1&$A151))<>1),\"\",VLOOKUP(INDIRECT(J$1&$A151),'TRM Data'!$R$4:$S$168,2))","v":""},"","","",{"$f":"IF(INDIRECT(N$3&$A151)=\"\",\"\",VLOOKUP(VLOOKUP(INDIRECT(N$3&$A151),'TRM Data'!$C$5:$N$200,COLUMN('TRM Data'!$E$2)-COLUMN('TRM Data'!$C$2)+1,FALSE),'Other Data'!$G$158:$H$178,2))","v":""},"","","","","","","","","","","","","","","","",""]
[81,0,0,"","",{"$f":"IF(COUNTIF('Project Information'!$J$9:$BG$9,$E152)=1,IF(INDEX('Project Information'!$J$15:$BG$15,1,MATCH($E152,'Project Information'!$J$9:$BG$9,0))=\"Yes\",\"Actual\",\"Deemed\"),\"\")","v":""},"","","",{"$f":"IF(OR(INDIRECT(J$1&$A152)=\"\",COUNTIF('TRM Data'!$R$4:$S$168,INDIRECT(J$1&$A152))<>1),\"\",VLOOKUP(INDIRECT(J$1&$A152),'TRM Data'!$R$4:$S$168,2))","v":""},"","","",{"$f":"IF(INDIRECT(N$1&$A152)=\"\",\"\",VLOOKUP(VLOOKUP(INDIRECT(N$1&$A152),'TRM Data'!$C$5:$N$200,COLUMN('TRM Data'!$E$2)-COLUMN('TRM Data'!$C$2)+1,FALSE),'Other Data'!$G$158:$H$178,2))","v":""},"","","","","","","","","","","","","","","","",""]
[81,0,0,{"$f":"IF($B153=1,SUM($B$5:$B153),\"\")","v":""},"",{"$f":"IF(COUNTIF('Project Information'!$J$9:$BG$9,$E153)=1,IF(INDEX('Project Information'!$J$15:$BG$15,1,MATCH($E153,'Project Information'!$J$9:$BG$9,0))=\"Yes\",\"Actual\",\"Deemed\"),\"\")","v":""},"","","",{"$f":"IF(OR(INDIRECT(J$1&$A153)=\"\",COUNTIF('TRM Data'!$R$4:$S$168,INDIRECT(J$1&$A153))<>1),\"\",VLOOKUP(INDIRECT(J$1&$A153),'TRM Data'!$R$4:$S$168,2))","v":""},"","","",{"$f":"IF(INDIRECT(N$3&$A153)=\"\",\"\",VLOOKUP(VLOOKUP(INDIRECT(N$3&$A153),'TRM Data'!$C$5:$N$200,COLUMN('TRM Data'!$E$2)-COLUMN('TRM Data'!$C$2)+1,FALSE),'Other Data'!$G$158:$H$178,2))","v":""},"","","","","","","","","","","","","","","","",""]
[82,0,0,"","",{"$f":"IF(COUNTIF('Project Information'!$J$9:$BG$9,$E154)=1,IF(INDEX('Project Information'!$J$15:$BG$15,1,MATCH($E154,'Project Information'!$J$9:$BG$9,0))=\"Yes\",\"Actual\",\"Deemed\"),\"\")","v":""},"","","",{"$f":"IF(OR(INDIRECT(J$1&$A154)=\"\",COUNTIF('TRM Data'!$R$4:$S$168,INDIRECT(J$1&$A154))<>1),\"\",VLOOKUP(INDIRECT(J$1&$A154),'TRM Data'!$R$4:$S$168,2))","v":""},"","","",{"$f":"IF(INDIRECT(N$1&$A154)=\"\",\"\",VLOOKUP(VLOOKUP(INDIRECT(N$1&$A154),'TRM Data'!$C$5:$N$200,COLUMN('TRM Data'!$E$2)-COLUMN('TRM Data'!$C$2)+1,FALSE),'Other Data'!$G$158:$H$178,2))","v":""},"","","","","","","","","","","","","","","","",""]
[82,0,0,{"$f":"IF($B155=1,SUM($B$5:$B155),\"\")","v":""},"",{"$f":"IF(COUNTIF('Project Information'!$J$9:$BG$9,$E155)=1,IF(INDEX('Project Information'!$J$15:$BG$15,1,MATCH($E155,'Project Information'!$J$9:$BG$9,0))=\"Yes\",\"Actual\",\"Deemed\"),\"\")","v":""},"","","",{"$f":"IF(OR(INDIRECT(J$1&$A155)=\"\",COUNTIF('TRM Data'!$R$4:$S$168,INDIRECT(J$1&$A155))<>1),\"\",VLOOKUP(INDIRECT(J$1&$A155),'TRM Data'!$R$4:$S$168,2))","v":""},"","","",{"$f":"IF(INDIRECT(N$3&$A155)=\"\",\"\",VLOOKUP(VLOOKUP(INDIRECT(N$3&$A155),'TRM Data'!$C$5:$N$200,COLUMN('TRM Data'!$E$2)-COLUMN('TRM Data'!$C$2)+1,FALSE),'Other Data'!$G$158:$H$178,2))","v":""},"","","","","","","","","","","","","","","","",""]
[83,0,0,"","",{"$f":"IF(COUNTIF('Project Information'!$J$9:$BG$9,$E156)=1,IF(INDEX('Project Information'!$J$15:$BG$15,1,MATCH($E156,'Project Information'!$J$9:$BG$9,0))=\"Yes\",\"Actual\",\"Deemed\"),\"\")","v":""},"","","",{"$f":"IF(OR(INDIRECT(J$1&$A156)=\"\",COUNTIF('TRM Data'!$R$4:$S$168,INDIRECT(J$1&$A156))<>1),\"\",VLOOKUP(INDIRECT(J$1&$A156),'TRM Data'!$R$4:$S$168,2))","v":""},"","","",{"$f":"IF(INDIRECT(N$1&$A156)=\"\",\"\",VLOOKUP(VLOOKUP(INDIRECT(N$1&$A156),'TRM Data'!$C$5:$N$200,COLUMN('TRM Data'!$E$2)-COLUMN('TRM Data'!$C$2)+1,FALSE),'Other Data'!$G$158:$H$178,2))","v":""},"","","","","","","","","","","","","","","","",""]
[83,0,0,{"$f":"IF($B157=1,SUM($B$5:$B157),\"\")","v":""},"",{"$f":"IF(COUNTIF('Project Information'!$J$9:$BG$9,$E157)=1,IF(INDEX('Project Information'!$J$15:$BG$15,1,MATCH($E157,'Project Information'!$J$9:$BG$9,0))=\"Yes\",\"Actual\",\"Deemed\"),\"\")","v":""},"","","",{"$f":"IF(OR(INDIRECT(J$1&$A157)=\"\",COUNTIF('TRM Data'!$R$4:$S$168,INDIRECT(J$1&$A157))<>1),\"\",VLOOKUP(INDIRECT(J$1&$A157),'TRM Data'!$R$4:$S$168,2))","v":""},"",{"$f":"IF(INDIRECT(L$3&$A157)=\"\",\"\",INDIRECT(L$3&$A157))","v":""},"",{"$f":"IF(INDIRECT(N$3&$A157)=\"\",\"\",VLOOKUP(VLOOKUP(INDIRECT(N$3&$A157),'TRM Data'!$C$5:$N$200,COLUMN('TRM Data'!$E$2)-COLUMN('TRM Data'!$C$2)+1,FALSE),'Other Data'!$G$158:$H$178,2))","v":""},"",{"$f":"IF(INDIRECT(P$3&$A157)=\"\",\"\",INDIRECT(P$3&$A157))","v":""},"","","","","","","","","","","","","","",""]
[84,0,0,"","",{"$f":"IF(COUNTIF('Project Information'!$J$9:$BG$9,$E158)=1,IF(INDEX('Project Information'!$J$15:$BG$15,1,MATCH($E158,'Project Information'!$J$9:$BG$9,0))=\"Yes\",\"Actual\",\"Deemed\"),\"\")","v":""},"","","",{"$f":"IF(OR(INDIRECT(J$1&$A158)=\"\",COUNTIF('TRM Data'!$R$4:$S$168,INDIRECT(J$1&$A158))<>1),\"\",VLOOKUP(INDIRECT(J$1&$A158),'TRM Data'!$R$4:$S$168,2))","v":""},"","","",{"$f":"IF(INDIRECT(N$1&$A158)=\"\",\"\",VLOOKUP(VLOOKUP(INDIRECT(N$1&$A158),'TRM Data'!$C$5:$N$200,COLUMN('TRM Data'!$E$2)-COLUMN('TRM Data'!$C$2)+1,FALSE),'Other Data'!$G$158:$H$178,2))","v":""},"","","","","","","","","","","","","","","","",""]
[84,0,0,{"$f":"IF($B159=1,SUM($B$5:$B159),\"\")","v":""},"",{"$f":"IF(COUNTIF('Project Information'!$J$9:$BG$9,$E159)=1,IF(INDEX('Project Information'!$J$15:$BG$15,1,MATCH($E159,'Project Information'!$J$9:$BG$9,0))=\"Yes\",\"Actual\",\"Deemed\"),\"\")","v":""},"","","",{"$f":"IF(OR(INDIRECT(J$1&$A159)=\"\",COUNTIF('TRM Data'!$R$4:$S$168,INDIRECT(J$1&$A159))<>1),\"\",VLOOKUP(INDIRECT(J$1&$A159),'TRM Data'!$R$4:$S$168,2))","v":""},"","","",{"$f":"IF(INDIRECT(N$3&$A159)=\"\",\"\",VLOOKUP(VLOOKUP(INDIRECT(N$3&$A159),'TRM Data'!$C$5:$N$200,COLUMN('TRM Data'!$E$2)-COLUMN('TRM Data'!$C$2)+1,FALSE),'Other Data'!$G$158:$H$178,2))","v":""},"","","","","","","","","","","","","","","","",""]
[85,0,0,"","",{"$f":"IF(COUNTIF('Project Information'!$J$9:$BG$9,$E160)=1,IF(INDEX('Project Information'!$J$15:$BG$15,1,MATCH($E160,'Project Information'!$J$9:$BG$9,0))=\"Yes\",\"Actual\",\"Deemed\"),\"\")","v":""},"","","",{"$f":"IF(OR(INDIRECT(J$1&$A160)=\"\",COUNTIF('TRM Data'!$R$4:$S$168,INDIRECT(J$1&$A160))<>1),\"\",VLOOKUP(INDIRECT(J$1&$A160),'TRM Data'!$R$4:$S$168,2))","v":""},"","","",{"$f":"IF(INDIRECT(N$1&$A160)=\"\",\"\",VLOOKUP(VLOOKUP(INDIRECT(N$1&$A160),'TRM Data'!$C$5:$N$200,COLUMN('TRM Data'!$E$2)-COLUMN('TRM Data'!$C$2)+1,FALSE),'Other Data'!$G$158:$H$178,2))","v":""},"","","","","","","","","","","","","","","","",""]
[85,0,0,{"$f":"IF($B161=1,SUM($B$5:$B161),\"\")","v":""},"",{"$f":"IF(COUNTIF('Project Information'!$J$9:$BG$9,$E161)=1,IF(INDEX('Project Information'!$J$15:$BG$15,1,MATCH($E161,'Project Information'!$J$9:$BG$9,0))=\"Yes\",\"Actual\",\"Deemed\"),\"\")","v":""},"","","",{"$f":"IF(OR(INDIRECT(J$1&$A161)=\"\",COUNTIF('TRM Data'!$R$4:$S$168,INDIRECT(J$1&$A161))<>1),\"\",VLOOKUP(INDIRECT(J$1&$A161),'TRM Data'!$R$4:$S$168,2))","v":""},"","","",{"$f":"IF(INDIRECT(N$3&$A161)=\"\",\"\",VLOOKUP(VLOOKUP(INDIRECT(N$3&$A161),'TRM Data'!$C$5:$N$200,COLUMN('TRM Data'!$E$2)-COLUMN('TRM Data'!$C$2)+1,FALSE),'Other Data'!$G$158:$H$178,2))","v":""},"","","","","","","","","","","","","","","","",""]
[86,0,0,"","",{"$f":"IF(COUNTIF('Project Information'!$J$9:$BG$9,$E162)=1,IF(INDEX('Project Information'!$J$15:$BG$15,1,MATCH($E162,'Project Information'!$J$9:$BG$9,0))=\"Yes\",\"Actual\",\"Deemed\"),\"\")","v":""},"","","",{"$f":"IF(OR(INDIRECT(J$1&$A162)=\"\",COUNTIF('TRM Data'!$R$4:$S$168,INDIRECT(J$1&$A162))<>1),\"\",VLOOKUP(INDIRECT(J$1&$A162),'TRM Data'!$R$4:$S$168,2))","v":""},"","","",{"$f":"IF(INDIRECT(N$1&$A162)=\"\",\"\",VLOOKUP(VLOOKUP(INDIRECT(N$1&$A162),'TRM Data'!$C$5:$N$200,COLUMN('TRM Data'!$E$2)-COLUMN('TRM Data'!$C$2)+1,FALSE),'Other Data'!$G$158:$H$178,2))","v":""},"","","","","","","","","","","","","","","","",""]
[86,0,0,{"$f":"IF($B163=1,SUM($B$5:$B163),\"\")","v":""},"",{"$f":"IF(COUNTIF('Project Information'!$J$9:$BG$9,$E163)=1,IF(INDEX('Project Information'!$J$15:$BG$15,1,MATCH($E163,'Project Information'!$J$9:$BG$9,0))=\"Yes\",\"Actual\",\"Deemed\"),\"\")","v":""},"","","",{"$f":"IF(OR(INDIRECT(J$1&$A163)=\"\",COUNTIF('TRM Data'!$R$4:$S$168,INDIRECT(J$1&$A163))<>1),\"\",VLOOKUP(INDIRECT(J$1&$A163),'TRM Data'!$R$4:$S$168,2))","v":""},"","","",{"$f":"IF(INDIRECT(N$3&$A163)=\"\",\"\",VLOOKUP(VLOOKUP(INDIRECT(N$3&$A163),'TRM Data'!$C$5:$N$200,COLUMN('TRM Data'!$E$2)-COLUMN('TRM Data'!$C$2)+1,FALSE),'Other Data'!$G$158:$H$178,2))","v":""},"","","","","","","","","","","","","","","","",""]
[87,0,0,"","",{"$f":"IF(COUNTIF('Project Information'!$J$9:$BG$9,$E164)=1,IF(INDEX('Project Information'!$J$15:$BG$15,1,MATCH($E164,'Project Information'!$J$9:$BG$9,0))=\"Yes\",\"Actual\",\"Deemed\"),\"\")","v":""},"","","",{"$f":"IF(OR(INDIRECT(J$1&$A164)=\"\",COUNTIF('TRM Data'!$R$4:$S$168,INDIRECT(J$1&$A164))<>1),\"\",VLOOKUP(INDIRECT(J$1&$A164),'TRM Data'!$R$4:$S$168,2))","v":""},"","","",{"$f":"IF(INDIRECT(N$1&$A164)=\"\",\"\",VLOOKUP(VLOOKUP(INDIRECT(N$1&$A164),'TRM Data'!$C$5:$N$200,COLUMN('TRM Data'!$E$2)-COLUMN('TRM Data'!$C$2)+1,FALSE),'Other Data'!$G$158:$H$178,2))","v":""},"","","","","","","","","","","","","","","","",""]
[87,0,0,{"$f":"IF($B165=1,SUM($B$5:$B165),\"\")","v":""},"",{"$f":"IF(COUNTIF('Project Information'!$J$9:$BG$9,$E165)=1,IF(INDEX('Project Information'!$J$15:$BG$15,1,MATCH($E165,'Project Information'!$J$9:$BG$9,0))=\"Yes\",\"Actual\",\"Deemed\"),\"\")","v":""},"","","",{"$f":"IF(OR(INDIRECT(J$1&$A165)=\"\",COUNTIF('TRM Data'!$R$4:$S$168,INDIRECT(J$1&$A165))<>1),\"\",VLOOKUP(INDIRECT(J$1&$A165),'TRM Data'!$R$4:$S$168,2))","v":""},"","","",{"$f":"IF(INDIRECT(N$3&$A165)=\"\",\"\",VLOOKUP(VLOOKUP(INDIRECT(N$3&$A165),'TRM Data'!$C$5:$N$200,COLUMN('TRM Data'!$E$2)-COLUMN('TRM Data'!$C$2)+1,FALSE),'Other Data'!$G$158:$H$178,2))","v":""},"","","","","","","","","","","","","","","","",""]
[88,0,0,"","",{"$f":"IF(COUNTIF('Project Information'!$J$9:$BG$9,$E166)=1,IF(INDEX('Project Information'!$J$15:$BG$15,1,MATCH($E166,'Project Information'!$J$9:$BG$9,0))=\"Yes\",\"Actual\",\"Deemed\"),\"\")","v":""},"","","",{"$f":"IF(OR(INDIRECT(J$1&$A166)=\"\",COUNTIF('TRM Data'!$R$4:$S$168,INDIRECT(J$1&$A166))<>1),\"\",VLOOKUP(INDIRECT(J$1&$A166),'TRM Data'!$R$4:$S$168,2))","v":""},"","","",{"$f":"IF(INDIRECT(N$1&$A166)=\"\",\"\",VLOOKUP(VLOOKUP(INDIRECT(N$1&$A166),'TRM Data'!$C$5:$N$200,COLUMN('TRM Data'!$E$2)-COLUMN('TRM Data'!$C$2)+1,FALSE),'Other Data'!$G$158:$H$178,2))","v":""},"","","","","","","","","","","","","","","","",""]
[88,0,0,{"$f":"IF($B167=1,SUM($B$5:$B167),\"\")","v":""},"",{"$f":"IF(COUNTIF('Project Information'!$J$9:$BG$9,$E167)=1,IF(INDEX('Project Information'!$J$15:$BG$15,1,MATCH($E167,'Project Information'!$J$9:$BG$9,0))=\"Yes\",\"Actual\",\"Deemed\"),\"\")","v":""},"","","",{"$f":"IF(OR(INDIRECT(J$1&$A167)=\"\",COUNTIF('TRM Data'!$R$4:$S$168,INDIRECT(J$1&$A167))<>1),\"\",VLOOKUP(INDIRECT(J$1&$A167),'TRM Data'!$R$4:$S$168,2))","v":""},"","","",{"$f":"IF(INDIRECT(N$3&$A167)=\"\",\"\",VLOOKUP(VLOOKUP(INDIRECT(N$3&$A167),'TRM Data'!$C$5:$N$200,COLUMN('TRM Data'!$E$2)-COLUMN('TRM Data'!$C$2)+1,FALSE),'Other Data'!$G$158:$H$178,2))","v":""},"","","","","","","","","","","","","","","","",""]
[89,0,0,"","",{"$f":"IF(COUNTIF('Project Information'!$J$9:$BG$9,$E168)=1,IF(INDEX('Project Information'!$J$15:$BG$15,1,MATCH($E168,'Project Information'!$J$9:$BG$9,0))=\"Yes\",\"Actual\",\"Deemed\"),\"\")","v":""},"","","",{"$f":"IF(OR(INDIRECT(J$1&$A168)=\"\",COUNTIF('TRM Data'!$R$4:$S$168,INDIRECT(J$1&$A168))<>1),\"\",VLOOKUP(INDIRECT(J$1&$A168),'TRM Data'!$R$4:$S$168,2))","v":""},"","","",{"$f":"IF(INDIRECT(N$1&$A168)=\"\",\"\",VLOOKUP(VLOOKUP(INDIRECT(N$1&$A168),'TRM Data'!$C$5:$N$200,COLUMN('TRM Data'!$E$2)-COLUMN('TRM Data'!$C$2)+1,FALSE),'Other Data'!$G$158:$H$178,2))","v":""},"","","","","","","","","","","","","","","","",""]
[89,0,0,{"$f":"IF($B169=1,SUM($B$5:$B169),\"\")","v":""},"",{"$f":"IF(COUNTIF('Project Information'!$J$9:$BG$9,$E169)=1,IF(INDEX('Project Information'!$J$15:$BG$15,1,MATCH($E169,'Project Information'!$J$9:$BG$9,0))=\"Yes\",\"Actual\",\"Deemed\"),\"\")","v":""},"","","",{"$f":"IF(OR(INDIRECT(J$1&$A169)=\"\",COUNTIF('TRM Data'!$R$4:$S$168,INDIRECT(J$1&$A169))<>1),\"\",VLOOKUP(INDIRECT(J$1&$A169),'TRM Data'!$R$4:$S$168,2))","v":""},"","","",{"$f":"IF(INDIRECT(N$3&$A169)=\"\",\"\",VLOOKUP(VLOOKUP(INDIRECT(N$3&$A169),'TRM Data'!$C$5:$N$200,COLUMN('TRM Data'!$E$2)-COLUMN('TRM Data'!$C$2)+1,FALSE),'Other Data'!$G$158:$H$178,2))","v":""},"","","","","","","","","","","","","","","","",""]
[90,0,0,"","",{"$f":"IF(COUNTIF('Project Information'!$J$9:$BG$9,$E170)=1,IF(INDEX('Project Information'!$J$15:$BG$15,1,MATCH($E170,'Project Information'!$J$9:$BG$9,0))=\"Yes\",\"Actual\",\"Deemed\"),\"\")","v":""},"","","",{"$f":"IF(OR(INDIRECT(J$1&$A170)=\"\",COUNTIF('TRM Data'!$R$4:$S$168,INDIRECT(J$1&$A170))<>1),\"\",VLOOKUP(INDIRECT(J$1&$A170),'TRM Data'!$R$4:$S$168,2))","v":""},"","","",{"$f":"IF(INDIRECT(N$1&$A170)=\"\",\"\",VLOOKUP(VLOOKUP(INDIRECT(N$1&$A170),'TRM Data'!$C$5:$N$200,COLUMN('TRM Data'!$E$2)-COLUMN('TRM Data'!$C$2)+1,FALSE),'Other Data'!$G$158:$H$178,2))","v":""},"","","","","","","","","","","","","","","","",""]
[90,0,0,{"$f":"IF($B171=1,SUM($B$5:$B171),\"\")","v":""},"",{"$f":"IF(COUNTIF('Project Information'!$J$9:$BG$9,$E171)=1,IF(INDEX('Project Information'!$J$15:$BG$15,1,MATCH($E171,'Project Information'!$J$9:$BG$9,0))=\"Yes\",\"Actual\",\"Deemed\"),\"\")","v":""},"","","",{"$f":"IF(OR(INDIRECT(J$1&$A171)=\"\",COUNTIF('TRM Data'!$R$4:$S$168,INDIRECT(J$1&$A171))<>1),\"\",VLOOKUP(INDIRECT(J$1&$A171),'TRM Data'!$R$4:$S$168,2))","v":""},"","","",{"$f":"IF(INDIRECT(N$3&$A171)=\"\",\"\",VLOOKUP(VLOOKUP(INDIRECT(N$3&$A171),'TRM Data'!$C$5:$N$200,COLUMN('TRM Data'!$E$2)-COLUMN('TRM Data'!$C$2)+1,FALSE),'Other Data'!$G$158:$H$178,2))","v":""},"","","","","","","","","","","","","","","","",""]
[91,0,0,"","",{"$f":"IF(COUNTIF('Project Information'!$J$9:$BG$9,$E172)=1,IF(INDEX('Project Information'!$J$15:$BG$15,1,MATCH($E172,'Project Information'!$J$9:$BG$9,0))=\"Yes\",\"Actual\",\"Deemed\"),\"\")","v":""},"","","",{"$f":"IF(OR(INDIRECT(J$1&$A172)=\"\",COUNTIF('TRM Data'!$R$4:$S$168,INDIRECT(J$1&$A172))<>1),\"\",VLOOKUP(INDIRECT(J$1&$A172),'TRM Data'!$R$4:$S$168,2))","v":""},"","","",{"$f":"IF(INDIRECT(N$1&$A172)=\"\",\"\",VLOOKUP(VLOOKUP(INDIRECT(N$1&$A172),'TRM Data'!$C$5:$N$200,COLUMN('TRM Data'!$E$2)-COLUMN('TRM Data'!$C$2)+1,FALSE),'Other Data'!$G$158:$H$178,2))","v":""},"","","","","","","","","","","","","","","","",""]
[91,0,0,{"$f":"IF($B173=1,SUM($B$5:$B173),\"\")","v":""},"",{"$f":"IF(COUNTIF('Project Information'!$J$9:$BG$9,$E173)=1,IF(INDEX('Project Information'!$J$15:$BG$15,1,MATCH($E173,'Project Information'!$J$9:$BG$9,0))=\"Yes\",\"Actual\",\"Deemed\"),\"\")","v":""},"","","",{"$f":"IF(OR(INDIRECT(J$1&$A173)=\"\",COUNTIF('TRM Data'!$R$4:$S$168,INDIRECT(J$1&$A173))<>1),\"\",VLOOKUP(INDIRECT(J$1&$A173),'TRM Data'!$R$4:$S$168,2))","v":""},"","","",{"$f":"IF(INDIRECT(N$3&$A173)=\"\",\"\",VLOOKUP(VLOOKUP(INDIRECT(N$3&$A173),'TRM Data'!$C$5:$N$200,COLUMN('TRM Data'!$E$2)-COLUMN('TRM Data'!$C$2)+1,FALSE),'Other Data'!$G$158:$H$178,2))","v":""},"","","","","","","","","","","","","","","","",""]
[92,0,0,"","",{"$f":"IF(COUNTIF('Project Information'!$J$9:$BG$9,$E174)=1,IF(INDEX('Project Information'!$J$15:$BG$15,1,MATCH($E174,'Project Information'!$J$9:$BG$9,0))=\"Yes\",\"Actual\",\"Deemed\"),\"\")","v":""},"","","",{"$f":"IF(OR(INDIRECT(J$1&$A174)=\"\",COUNTIF('TRM Data'!$R$4:$S$168,INDIRECT(J$1&$A174))<>1),\"\",VLOOKUP(INDIRECT(J$1&$A174),'TRM Data'!$R$4:$S$168,2))","v":""},"","","",{"$f":"IF(INDIRECT(N$1&$A174)=\"\",\"\",VLOOKUP(VLOOKUP(INDIRECT(N$1&$A174),'TRM Data'!$C$5:$N$200,COLUMN('TRM Data'!$E$2)-COLUMN('TRM Data'!$C$2)+1,FALSE),'Other Data'!$G$158:$H$178,2))","v":""},"","","","","","","","","","","","","","","","",""]
[92,0,0,{"$f":"IF($B175=1,SUM($B$5:$B175),\"\")","v":""},"",{"$f":"IF(COUNTIF('Project Information'!$J$9:$BG$9,$E175)=1,IF(INDEX('Project Information'!$J$15:$BG$15,1,MATCH($E175,'Project Information'!$J$9:$BG$9,0))=\"Yes\",\"Actual\",\"Deemed\"),\"\")","v":""},"","","",{"$f":"IF(OR(INDIRECT(J$1&$A175)=\"\",COUNTIF('TRM Data'!$R$4:$S$168,INDIRECT(J$1&$A175))<>1),\"\",VLOOKUP(INDIRECT(J$1&$A175),'TRM Data'!$R$4:$S$168,2))","v":""},"","","",{"$f":"IF(INDIRECT(N$3&$A175)=\"\",\"\",VLOOKUP(VLOOKUP(INDIRECT(N$3&$A175),'TRM Data'!$C$5:$N$200,COLUMN('TRM Data'!$E$2)-COLUMN('TRM Data'!$C$2)+1,FALSE),'Other Data'!$G$158:$H$178,2))","v":""},"","","","","","","","","","","","","","","","",""]
[93,0,0,"","",{"$f":"IF(COUNTIF('Project Information'!$J$9:$BG$9,$E176)=1,IF(INDEX('Project Information'!$J$15:$BG$15,1,MATCH($E176,'Project Information'!$J$9:$BG$9,0))=\"Yes\",\"Actual\",\"Deemed\"),\"\")","v":""},"","","",{"$f":"IF(OR(INDIRECT(J$1&$A176)=\"\",COUNTIF('TRM Data'!$R$4:$S$168,INDIRECT(J$1&$A176))<>1),\"\",VLOOKUP(INDIRECT(J$1&$A176),'TRM Data'!$R$4:$S$168,2))","v":""},"","","",{"$f":"IF(INDIRECT(N$1&$A176)=\"\",\"\",VLOOKUP(VLOOKUP(INDIRECT(N$1&$A176),'TRM Data'!$C$5:$N$200,COLUMN('TRM Data'!$E$2)-COLUMN('TRM Data'!$C$2)+1,FALSE),'Other Data'!$G$158:$H$178,2))","v":""},"","","","","","","","","","","","","","","","",""]
[93,0,0,{"$f":"IF($B177=1,SUM($B$5:$B177),\"\")","v":""},"",{"$f":"IF(COUNTIF('Project Information'!$J$9:$BG$9,$E177)=1,IF(INDEX('Project Information'!$J$15:$BG$15,1,MATCH($E177,'Project Information'!$J$9:$BG$9,0))=\"Yes\",\"Actual\",\"Deemed\"),\"\")","v":""},"","","",{"$f":"IF(OR(INDIRECT(J$1&$A177)=\"\",COUNTIF('TRM Data'!$R$4:$S$168,INDIRECT(J$1&$A177))<>1),\"\",VLOOKUP(INDIRECT(J$1&$A177),'TRM Data'!$R$4:$S$168,2))","v":""},"","","",{"$f":"IF(INDIRECT(N$3&$A177)=\"\",\"\",VLOOKUP(VLOOKUP(INDIRECT(N$3&$A177),'TRM Data'!$C$5:$N$200,COLUMN('TRM Data'!$E$2)-COLUMN('TRM Data'!$C$2)+1,FALSE),'Other Data'!$G$158:$H$178,2))","v":""},"","","","","","","","","","","","","","","","",""]
[94,0,0,"","",{"$f":"IF(COUNTIF('Project Information'!$J$9:$BG$9,$E178)=1,IF(INDEX('Project Information'!$J$15:$BG$15,1,MATCH($E178,'Project Information'!$J$9:$BG$9,0))=\"Yes\",\"Actual\",\"Deemed\"),\"\")","v":""},"","","",{"$f":"IF(OR(INDIRECT(J$1&$A178)=\"\",COUNTIF('TRM Data'!$R$4:$S$168,INDIRECT(J$1&$A178))<>1),\"\",VLOOKUP(INDIRECT(J$1&$A178),'TRM Data'!$R$4:$S$168,2))","v":""},"","","",{"$f":"IF(INDIRECT(N$1&$A178)=\"\",\"\",VLOOKUP(VLOOKUP(INDIRECT(N$1&$A178),'TRM Data'!$C$5:$N$200,COLUMN('TRM Data'!$E$2)-COLUMN('TRM Data'!$C$2)+1,FALSE),'Other Data'!$G$158:$H$178,2))","v":""},"","","","","","","","","","","","","","","","",""]
[94,0,0,{"$f":"IF($B179=1,SUM($B$5:$B179),\"\")","v":""},"",{"$f":"IF(COUNTIF('Project Information'!$J$9:$BG$9,$E179)=1,IF(INDEX('Project Information'!$J$15:$BG$15,1,MATCH($E179,'Project Information'!$J$9:$BG$9,0))=\"Yes\",\"Actual\",\"Deemed\"),\"\")","v":""},"","","",{"$f":"IF(OR(INDIRECT(J$1&$A179)=\"\",COUNTIF('TRM Data'!$R$4:$S$168,INDIRECT(J$1&$A179))<>1),\"\",VLOOKUP(INDIRECT(J$1&$A179),'TRM Data'!$R$4:$S$168,2))","v":""},"","","",{"$f":"IF(INDIRECT(N$3&$A179)=\"\",\"\",VLOOKUP(VLOOKUP(INDIRECT(N$3&$A179),'TRM Data'!$C$5:$N$200,COLUMN('TRM Data'!$E$2)-COLUMN('TRM Data'!$C$2)+1,FALSE),'Other Data'!$G$158:$H$178,2))","v":""},"","","","","","","","","","","","","","","","",""]
[95,0,0,"","",{"$f":"IF(COUNTIF('Project Information'!$J$9:$BG$9,$E180)=1,IF(INDEX('Project Information'!$J$15:$BG$15,1,MATCH($E180,'Project Information'!$J$9:$BG$9,0))=\"Yes\",\"Actual\",\"Deemed\"),\"\")","v":""},"","","",{"$f":"IF(OR(INDIRECT(J$1&$A180)=\"\",COUNTIF('TRM Data'!$R$4:$S$168,INDIRECT(J$1&$A180))<>1),\"\",VLOOKUP(INDIRECT(J$1&$A180),'TRM Data'!$R$4:$S$168,2))","v":""},"","","",{"$f":"IF(INDIRECT(N$1&$A180)=\"\",\"\",VLOOKUP(VLOOKUP(INDIRECT(N$1&$A180),'TRM Data'!$C$5:$N$200,COLUMN('TRM Data'!$E$2)-COLUMN('TRM Data'!$C$2)+1,FALSE),'Other Data'!$G$158:$H$178,2))","v":""},"","","","","","","","","","","","","","","","",""]
[95,0,0,{"$f":"IF($B181=1,SUM($B$5:$B181),\"\")","v":""},"",{"$f":"IF(COUNTIF('Project Information'!$J$9:$BG$9,$E181)=1,IF(INDEX('Project Information'!$J$15:$BG$15,1,MATCH($E181,'Project Information'!$J$9:$BG$9,0))=\"Yes\",\"Actual\",\"Deemed\"),\"\")","v":""},"","","",{"$f":"IF(OR(INDIRECT(J$1&$A181)=\"\",COUNTIF('TRM Data'!$R$4:$S$168,INDIRECT(J$1&$A181))<>1),\"\",VLOOKUP(INDIRECT(J$1&$A181),'TRM Data'!$R$4:$S$168,2))","v":""},"","","",{"$f":"IF(INDIRECT(N$3&$A181)=\"\",\"\",VLOOKUP(VLOOKUP(INDIRECT(N$3&$A181),'TRM Data'!$C$5:$N$200,COLUMN('TRM Data'!$E$2)-COLUMN('TRM Data'!$C$2)+1,FALSE),'Other Data'!$G$158:$H$178,2))","v":""},"","","","","","","","","","","","","","","","",""]
[96,0,0,"","",{"$f":"IF(COUNTIF('Project Information'!$J$9:$BG$9,$E182)=1,IF(INDEX('Project Information'!$J$15:$BG$15,1,MATCH($E182,'Project Information'!$J$9:$BG$9,0))=\"Yes\",\"Actual\",\"Deemed\"),\"\")","v":""},"","","",{"$f":"IF(OR(INDIRECT(J$1&$A182)=\"\",COUNTIF('TRM Data'!$R$4:$S$168,INDIRECT(J$1&$A182))<>1),\"\",VLOOKUP(INDIRECT(J$1&$A182),'TRM Data'!$R$4:$S$168,2))","v":""},"","","",{"$f":"IF(INDIRECT(N$1&$A182)=\"\",\"\",VLOOKUP(VLOOKUP(INDIRECT(N$1&$A182),'TRM Data'!$C$5:$N$200,COLUMN('TRM Data'!$E$2)-COLUMN('TRM Data'!$C$2)+1,FALSE),'Other Data'!$G$158:$H$178,2))","v":""},"","","","","","","","","","","","","","","","",""]
[96,0,0,{"$f":"IF($B183=1,SUM($B$5:$B183),\"\")","v":""},"",{"$f":"IF(COUNTIF('Project Information'!$J$9:$BG$9,$E183)=1,IF(INDEX('Project Information'!$J$15:$BG$15,1,MATCH($E183,'Project Information'!$J$9:$BG$9,0))=\"Yes\",\"Actual\",\"Deemed\"),\"\")","v":""},"","","",{"$f":"IF(OR(INDIRECT(J$1&$A183)=\"\",COUNTIF('TRM Data'!$R$4:$S$168,INDIRECT(J$1&$A183))<>1),\"\",VLOOKUP(INDIRECT(J$1&$A183),'TRM Data'!$R$4:$S$168,2))","v":""},"","","",{"$f":"IF(INDIRECT(N$3&$A183)=\"\",\"\",VLOOKUP(VLOOKUP(INDIRECT(N$3&$A183),'TRM Data'!$C$5:$N$200,COLUMN('TRM Data'!$E$2)-COLUMN('TRM Data'!$C$2)+1,FALSE),'Other Data'!$G$158:$H$178,2))","v":""},"","","","","","","","","","","","","","","","",""]
[97,0,0,"","",{"$f":"IF(COUNTIF('Project Information'!$J$9:$BG$9,$E184)=1,IF(INDEX('Project Information'!$J$15:$BG$15,1,MATCH($E184,'Project Information'!$J$9:$BG$9,0))=\"Yes\",\"Actual\",\"Deemed\"),\"\")","v":""},"","","",{"$f":"IF(OR(INDIRECT(J$1&$A184)=\"\",COUNTIF('TRM Data'!$R$4:$S$168,INDIRECT(J$1&$A184))<>1),\"\",VLOOKUP(INDIRECT(J$1&$A184),'TRM Data'!$R$4:$S$168,2))","v":""},"","","",{"$f":"IF(INDIRECT(N$1&$A184)=\"\",\"\",VLOOKUP(VLOOKUP(INDIRECT(N$1&$A184),'TRM Data'!$C$5:$N$200,COLUMN('TRM Data'!$E$2)-COLUMN('TRM Data'!$C$2)+1,FALSE),'Other Data'!$G$158:$H$178,2))","v":""},"","","","","","","","","","","","","","","","",""]
[97,0,0,{"$f":"IF($B185=1,SUM($B$5:$B185),\"\")","v":""},"",{"$f":"IF(COUNTIF('Project Information'!$J$9:$BG$9,$E185)=1,IF(INDEX('Project Information'!$J$15:$BG$15,1,MATCH($E185,'Project Information'!$J$9:$BG$9,0))=\"Yes\",\"Actual\",\"Deemed\"),\"\")","v":""},"","","",{"$f":"IF(OR(INDIRECT(J$1&$A185)=\"\",COUNTIF('TRM Data'!$R$4:$S$168,INDIRECT(J$1&$A185))<>1),\"\",VLOOKUP(INDIRECT(J$1&$A185),'TRM Data'!$R$4:$S$168,2))","v":""},"","","",{"$f":"IF(INDIRECT(N$3&$A185)=\"\",\"\",VLOOKUP(VLOOKUP(INDIRECT(N$3&$A185),'TRM Data'!$C$5:$N$200,COLUMN('TRM Data'!$E$2)-COLUMN('TRM Data'!$C$2)+1,FALSE),'Other Data'!$G$158:$H$178,2))","v":""},"","","","","","","","","","","","","","","","",""]
[98,0,0,"","",{"$f":"IF(COUNTIF('Project Information'!$J$9:$BG$9,$E186)=1,IF(INDEX('Project Information'!$J$15:$BG$15,1,MATCH($E186,'Project Information'!$J$9:$BG$9,0))=\"Yes\",\"Actual\",\"Deemed\"),\"\")","v":""},"","","",{"$f":"IF(OR(INDIRECT(J$1&$A186)=\"\",COUNTIF('TRM Data'!$R$4:$S$168,INDIRECT(J$1&$A186))<>1),\"\",VLOOKUP(INDIRECT(J$1&$A186),'TRM Data'!$R$4:$S$168,2))","v":""},"","","",{"$f":"IF(INDIRECT(N$1&$A186)=\"\",\"\",VLOOKUP(VLOOKUP(INDIRECT(N$1&$A186),'TRM Data'!$C$5:$N$200,COLUMN('TRM Data'!$E$2)-COLUMN('TRM Data'!$C$2)+1,FALSE),'Other Data'!$G$158:$H$178,2))","v":""},"","","","","","","","","","","","","","","","",""]
[98,0,0,{"$f":"IF($B187=1,SUM($B$5:$B187),\"\")","v":""},"",{"$f":"IF(COUNTIF('Project Information'!$J$9:$BG$9,$E187)=1,IF(INDEX('Project Information'!$J$15:$BG$15,1,MATCH($E187,'Project Information'!$J$9:$BG$9,0))=\"Yes\",\"Actual\",\"Deemed\"),\"\")","v":""},"","","",{"$f":"IF(OR(INDIRECT(J$1&$A187)=\"\",COUNTIF('TRM Data'!$R$4:$S$168,INDIRECT(J$1&$A187))<>1),\"\",VLOOKUP(INDIRECT(J$1&$A187),'TRM Data'!$R$4:$S$168,2))","v":""},"","","",{"$f":"IF(INDIRECT(N$3&$A187)=\"\",\"\",VLOOKUP(VLOOKUP(INDIRECT(N$3&$A187),'TRM Data'!$C$5:$N$200,COLUMN('TRM Data'!$E$2)-COLUMN('TRM Data'!$C$2)+1,FALSE),'Other Data'!$G$158:$H$178,2))","v":""},"","","","","","","","","","","","","","","","",""]
[99,0,0,"","",{"$f":"IF(COUNTIF('Project Information'!$J$9:$BG$9,$E188)=1,IF(INDEX('Project Information'!$J$15:$BG$15,1,MATCH($E188,'Project Information'!$J$9:$BG$9,0))=\"Yes\",\"Actual\",\"Deemed\"),\"\")","v":""},"","","",{"$f":"IF(OR(INDIRECT(J$1&$A188)=\"\",COUNTIF('TRM Data'!$R$4:$S$168,INDIRECT(J$1&$A188))<>1),\"\",VLOOKUP(INDIRECT(J$1&$A188),'TRM Data'!$R$4:$S$168,2))","v":""},"","","",{"$f":"IF(INDIRECT(N$1&$A188)=\"\",\"\",VLOOKUP(VLOOKUP(INDIRECT(N$1&$A188),'TRM Data'!$C$5:$N$200,COLUMN('TRM Data'!$E$2)-COLUMN('TRM Data'!$C$2)+1,FALSE),'Other Data'!$G$158:$H$178,2))","v":""},"","","","","","","","","","","","","","","","",""]
[99,0,0,{"$f":"IF($B189=1,SUM($B$5:$B189),\"\")","v":""},"",{"$f":"IF(COUNTIF('Project Information'!$J$9:$BG$9,$E189)=1,IF(INDEX('Project Information'!$J$15:$BG$15,1,MATCH($E189,'Project Information'!$J$9:$BG$9,0))=\"Yes\",\"Actual\",\"Deemed\"),\"\")","v":""},"","","",{"$f":"IF(OR(INDIRECT(J$1&$A189)=\"\",COUNTIF('TRM Data'!$R$4:$S$168,INDIRECT(J$1&$A189))<>1),\"\",VLOOKUP(INDIRECT(J$1&$A189),'TRM Data'!$R$4:$S$168,2))","v":""},"","","",{"$f":"IF(INDIRECT(N$3&$A189)=\"\",\"\",VLOOKUP(VLOOKUP(INDIRECT(N$3&$A189),'TRM Data'!$C$5:$N$200,COLUMN('TRM Data'!$E$2)-COLUMN('TRM Data'!$C$2)+1,FALSE),'Other Data'!$G$158:$H$178,2))","v":""},"","","","","","","","","","","","","","","","",""]
[100,0,0,"","",{"$f":"IF(COUNTIF('Project Information'!$J$9:$BG$9,$E190)=1,IF(INDEX('Project Information'!$J$15:$BG$15,1,MATCH($E190,'Project Information'!$J$9:$BG$9,0))=\"Yes\",\"Actual\",\"Deemed\"),\"\")","v":""},"","","",{"$f":"IF(OR(INDIRECT(J$1&$A190)=\"\",COUNTIF('TRM Data'!$R$4:$S$168,INDIRECT(J$1&$A190))<>1),\"\",VLOOKUP(INDIRECT(J$1&$A190),'TRM Data'!$R$4:$S$168,2))","v":""},"","","",{"$f":"IF(INDIRECT(N$1&$A190)=\"\",\"\",VLOOKUP(VLOOKUP(INDIRECT(N$1&$A190),'TRM Data'!$C$5:$N$200,COLUMN('TRM Data'!$E$2)-COLUMN('TRM Data'!$C$2)+1,FALSE),'Other Data'!$G$158:$H$178,2))","v":""},"","","","","","","","","","","","","","","","",""]
[100,0,0,{"$f":"IF($B191=1,SUM($B$5:$B191),\"\")","v":""},"",{"$f":"IF(COUNTIF('Project Information'!$J$9:$BG$9,$E191)=1,IF(INDEX('Project Information'!$J$15:$BG$15,1,MATCH($E191,'Project Information'!$J$9:$BG$9,0))=\"Yes\",\"Actual\",\"Deemed\"),\"\")","v":""},"","","",{"$f":"IF(OR(INDIRECT(J$1&$A191)=\"\",COUNTIF('TRM Data'!$R$4:$S$168,INDIRECT(J$1&$A191))<>1),\"\",VLOOKUP(INDIRECT(J$1&$A191),'TRM Data'!$R$4:$S$168,2))","v":""},"","","",{"$f":"IF(INDIRECT(N$3&$A191)=\"\",\"\",VLOOKUP(VLOOKUP(INDIRECT(N$3&$A191),'TRM Data'!$C$5:$N$200,COLUMN('TRM Data'!$E$2)-COLUMN('TRM Data'!$C$2)+1,FALSE),'Other Data'!$G$158:$H$178,2))","v":""},"","","","","","","","","","","","","","","","",""]
[101,0,0,"","",{"$f":"IF(COUNTIF('Project Information'!$J$9:$BG$9,$E192)=1,IF(INDEX('Project Information'!$J$15:$BG$15,1,MATCH($E192,'Project Information'!$J$9:$BG$9,0))=\"Yes\",\"Actual\",\"Deemed\"),\"\")","v":""},"","","",{"$f":"IF(OR(INDIRECT(J$1&$A192)=\"\",COUNTIF('TRM Data'!$R$4:$S$168,INDIRECT(J$1&$A192))<>1),\"\",VLOOKUP(INDIRECT(J$1&$A192),'TRM Data'!$R$4:$S$168,2))","v":""},"","","",{"$f":"IF(INDIRECT(N$1&$A192)=\"\",\"\",VLOOKUP(VLOOKUP(INDIRECT(N$1&$A192),'TRM Data'!$C$5:$N$200,COLUMN('TRM Data'!$E$2)-COLUMN('TRM Data'!$C$2)+1,FALSE),'Other Data'!$G$158:$H$178,2))","v":""},"","","","","","","","","","","","","","","","",""]
[101,0,0,{"$f":"IF($B193=1,SUM($B$5:$B193),\"\")","v":""},"",{"$f":"IF(COUNTIF('Project Information'!$J$9:$BG$9,$E193)=1,IF(INDEX('Project Information'!$J$15:$BG$15,1,MATCH($E193,'Project Information'!$J$9:$BG$9,0))=\"Yes\",\"Actual\",\"Deemed\"),\"\")","v":""},"","","",{"$f":"IF(OR(INDIRECT(J$1&$A193)=\"\",COUNTIF('TRM Data'!$R$4:$S$168,INDIRECT(J$1&$A193))<>1),\"\",VLOOKUP(INDIRECT(J$1&$A193),'TRM Data'!$R$4:$S$168,2))","v":""},"","","",{"$f":"IF(INDIRECT(N$3&$A193)=\"\",\"\",VLOOKUP(VLOOKUP(INDIRECT(N$3&$A193),'TRM Data'!$C$5:$N$200,COLUMN('TRM Data'!$E$2)-COLUMN('TRM Data'!$C$2)+1,FALSE),'Other Data'!$G$158:$H$178,2))","v":""},"","","","","","","","","","","","","","","","",""]
[102,0,0,"","",{"$f":"IF(COUNTIF('Project Information'!$J$9:$BG$9,$E194)=1,IF(INDEX('Project Information'!$J$15:$BG$15,1,MATCH($E194,'Project Information'!$J$9:$BG$9,0))=\"Yes\",\"Actual\",\"Deemed\"),\"\")","v":""},"","","",{"$f":"IF(OR(INDIRECT(J$1&$A194)=\"\",COUNTIF('TRM Data'!$R$4:$S$168,INDIRECT(J$1&$A194))<>1),\"\",VLOOKUP(INDIRECT(J$1&$A194),'TRM Data'!$R$4:$S$168,2))","v":""},"","","",{"$f":"IF(INDIRECT(N$1&$A194)=\"\",\"\",VLOOKUP(VLOOKUP(INDIRECT(N$1&$A194),'TRM Data'!$C$5:$N$200,COLUMN('TRM Data'!$E$2)-COLUMN('TRM Data'!$C$2)+1,FALSE),'Other Data'!$G$158:$H$178,2))","v":""},"","","","","","","","","","","","","","","","",""]
[102,0,0,{"$f":"IF($B195=1,SUM($B$5:$B195),\"\")","v":""},"",{"$f":"IF(COUNTIF('Project Information'!$J$9:$BG$9,$E195)=1,IF(INDEX('Project Information'!$J$15:$BG$15,1,MATCH($E195,'Project Information'!$J$9:$BG$9,0))=\"Yes\",\"Actual\",\"Deemed\"),\"\")","v":""},"","","",{"$f":"IF(OR(INDIRECT(J$1&$A195)=\"\",COUNTIF('TRM Data'!$R$4:$S$168,INDIRECT(J$1&$A195))<>1),\"\",VLOOKUP(INDIRECT(J$1&$A195),'TRM Data'!$R$4:$S$168,2))","v":""},"","","",{"$f":"IF(INDIRECT(N$3&$A195)=\"\",\"\",VLOOKUP(VLOOKUP(INDIRECT(N$3&$A195),'TRM Data'!$C$5:$N$200,COLUMN('TRM Data'!$E$2)-COLUMN('TRM Data'!$C$2)+1,FALSE),'Other Data'!$G$158:$H$178,2))","v":""},"","","","","","","","","","","","","","","","",""]
[103,0,0,"","",{"$f":"IF(COUNTIF('Project Information'!$J$9:$BG$9,$E196)=1,IF(INDEX('Project Information'!$J$15:$BG$15,1,MATCH($E196,'Project Information'!$J$9:$BG$9,0))=\"Yes\",\"Actual\",\"Deemed\"),\"\")","v":""},"","","",{"$f":"IF(OR(INDIRECT(J$1&$A196)=\"\",COUNTIF('TRM Data'!$R$4:$S$168,INDIRECT(J$1&$A196))<>1),\"\",VLOOKUP(INDIRECT(J$1&$A196),'TRM Data'!$R$4:$S$168,2))","v":""},"","","",{"$f":"IF(INDIRECT(N$1&$A196)=\"\",\"\",VLOOKUP(VLOOKUP(INDIRECT(N$1&$A196),'TRM Data'!$C$5:$N$200,COLUMN('TRM Data'!$E$2)-COLUMN('TRM Data'!$C$2)+1,FALSE),'Other Data'!$G$158:$H$178,2))","v":""},"","","","","","","","","","","","","","","","",""]
[103,0,0,{"$f":"IF($B197=1,SUM($B$5:$B197),\"\")","v":""},"",{"$f":"IF(COUNTIF('Project Information'!$J$9:$BG$9,$E197)=1,IF(INDEX('Project Information'!$J$15:$BG$15,1,MATCH($E197,'Project Information'!$J$9:$BG$9,0))=\"Yes\",\"Actual\",\"Deemed\"),\"\")","v":""},"","","",{"$f":"IF(OR(INDIRECT(J$1&$A197)=\"\",COUNTIF('TRM Data'!$R$4:$S$168,INDIRECT(J$1&$A197))<>1),\"\",VLOOKUP(INDIRECT(J$1&$A197),'TRM Data'!$R$4:$S$168,2))","v":""},"","","",{"$f":"IF(INDIRECT(N$3&$A197)=\"\",\"\",VLOOKUP(VLOOKUP(INDIRECT(N$3&$A197),'TRM Data'!$C$5:$N$200,COLUMN('TRM Data'!$E$2)-COLUMN('TRM Data'!$C$2)+1,FALSE),'Other Data'!$G$158:$H$178,2))","v":""},"","","","","","","","","","","","","","","","",""]
[104,0,0,"","",{"$f":"IF(COUNTIF('Project Information'!$J$9:$BG$9,$E198)=1,IF(INDEX('Project Information'!$J$15:$BG$15,1,MATCH($E198,'Project Information'!$J$9:$BG$9,0))=\"Yes\",\"Actual\",\"Deemed\"),\"\")","v":""},"","","",{"$f":"IF(OR(INDIRECT(J$1&$A198)=\"\",COUNTIF('TRM Data'!$R$4:$S$168,INDIRECT(J$1&$A198))<>1),\"\",VLOOKUP(INDIRECT(J$1&$A198),'TRM Data'!$R$4:$S$168,2))","v":""},"","","",{"$f":"IF(INDIRECT(N$1&$A198)=\"\",\"\",VLOOKUP(VLOOKUP(INDIRECT(N$1&$A198),'TRM Data'!$C$5:$N$200,COLUMN('TRM Data'!$E$2)-COLUMN('TRM Data'!$C$2)+1,FALSE),'Other Data'!$G$158:$H$178,2))","v":""},"","","","","","","","","","","","","","","",{"$f":"IF($B198=0,\"\",INDIRECT(AD$1&$A198))","v":""},""]
[104,0,0,{"$f":"IF($B199=1,SUM($B$5:$B199),\"\")","v":""},{"$f":"IF(INDIRECT(E$1&$A199)=\"\",\"\",INDIRECT(E$1&$A199))","v":""},{"$f":"IF(COUNTIF('Project Information'!$J$9:$BG$9,$E199)=1,IF(INDEX('Project Information'!$J$15:$BG$15,1,MATCH($E199,'Project Information'!$J$9:$BG$9,0))=\"Yes\",\"Actual\",\"Deemed\"),\"\")","v":""},"","","",{"$f":"IF(OR(INDIRECT(J$1&$A199)=\"\",COUNTIF('TRM Data'!$R$4:$S$168,INDIRECT(J$1&$A199))<>1),\"\",VLOOKUP(INDIRECT(J$1&$A199),'TRM Data'!$R$4:$S$168,2))","v":""},"","","",{"$f":"IF(INDIRECT(N$3&$A199)=\"\",\"\",VLOOKUP(VLOOKUP(INDIRECT(N$3&$A199),'TRM Data'!$C$5:$N$200,COLUMN('TRM Data'!$E$2)-COLUMN('TRM Data'!$C$2)+1,FALSE),'Other Data'!$G$158:$H$178,2))","v":""},"","","","","","","","","","","","","","","",{"$f":"IF($B199=0,\"\",INDIRECT(AD$3&$A199))","v":""},""]
[105,0,0,"","",{"$f":"IF(COUNTIF('Project Information'!$J$9:$BG$9,$E200)=1,IF(INDEX('Project Information'!$J$15:$BG$15,1,MATCH($E200,'Project Information'!$J$9:$BG$9,0))=\"Yes\",\"Actual\",\"Deemed\"),\"\")","v":""},"","","",{"$f":"IF(OR(INDIRECT(J$1&$A200)=\"\",COUNTIF('TRM Data'!$R$4:$S$168,INDIRECT(J$1&$A200))<>1),\"\",VLOOKUP(INDIRECT(J$1&$A200),'TRM Data'!$R$4:$S$168,2))","v":""},"","","",{"$f":"IF(INDIRECT(N$1&$A200)=\"\",\"\",VLOOKUP(VLOOKUP(INDIRECT(N$1&$A200),'TRM Data'!$C$5:$N$200,COLUMN('TRM Data'!$E$2)-COLUMN('TRM Data'!$C$2)+1,FALSE),'Other Data'!$G$158:$H$178,2))","v":""},"","","","","","","","","","","","","","","","",""]
[105,0,0,{"$f":"IF($B201=1,SUM($B$5:$B201),\"\")","v":""},"",{"$f":"IF(COUNTIF('Project Information'!$J$9:$BG$9,$E201)=1,IF(INDEX('Project Information'!$J$15:$BG$15,1,MATCH($E201,'Project Information'!$J$9:$BG$9,0))=\"Yes\",\"Actual\",\"Deemed\"),\"\")","v":""},"","","",{"$f":"IF(OR(INDIRECT(J$1&$A201)=\"\",COUNTIF('TRM Data'!$R$4:$S$168,INDIRECT(J$1&$A201))<>1),\"\",VLOOKUP(INDIRECT(J$1&$A201),'TRM Data'!$R$4:$S$168,2))","v":""},"","","",{"$f":"IF(INDIRECT(N$3&$A201)=\"\",\"\",VLOOKUP(VLOOKUP(INDIRECT(N$3&$A201),'TRM Data'!$C$5:$N$200,COLUMN('TRM Data'!$E$2)-COLUMN('TRM Data'!$C$2)+1,FALSE),'Other Data'!$G$158:$H$178,2))","v":""},"","","","","","","","","","","","","","","","",""]
[{"$f":"A200+1","v":106},0,0,"","",{"$f":"IF(COUNTIF('Project Information'!$J$9:$BG$9,$E202)=1,IF(INDEX('Project Information'!$J$15:$BG$15,1,MATCH($E202,'Project Information'!$J$9:$BG$9,0))=\"Yes\",\"Actual\",\"Deemed\"),\"\")","v":""},"","","",{"$f":"IF(OR(INDIRECT(J$1&$A202)=\"\",COUNTIF('TRM Data'!$R$4:$S$168,INDIRECT(J$1&$A202))<>1),\"\",VLOOKUP(INDIRECT(J$1&$A202),'TRM Data'!$R$4:$S$168,2))","v":""},"","","",{"$f":"IF(INDIRECT(N$1&$A202)=\"\",\"\",VLOOKUP(VLOOKUP(INDIRECT(N$1&$A202),'TRM Data'!$C$5:$N$200,COLUMN('TRM Data'!$E$2)-COLUMN('TRM Data'!$C$2)+1,FALSE),'Other Data'!$G$158:$H$178,2))","v":""},"","","","","","","","","","","","","","","","",""]
[106,0,0,{"$f":"IF($B203=1,SUM($B$5:$B203),\"\")","v":""},"",{"$f":"IF(COUNTIF('Project Information'!$J$9:$BG$9,$E203)=1,IF(INDEX('Project Information'!$J$15:$BG$15,1,MATCH($E203,'Project Information'!$J$9:$BG$9,0))=\"Yes\",\"Actual\",\"Deemed\"),\"\")","v":""},"","","",{"$f":"IF(OR(INDIRECT(J$1&$A203)=\"\",COUNTIF('TRM Data'!$R$4:$S$168,INDIRECT(J$1&$A203))<>1),\"\",VLOOKUP(INDIRECT(J$1&$A203),'TRM Data'!$R$4:$S$168,2))","v":""},"","","",{"$f":"IF(INDIRECT(N$3&$A203)=\"\",\"\",VLOOKUP(VLOOKUP(INDIRECT(N$3&$A203),'TRM Data'!$C$5:$N$200,COLUMN('TRM Data'!$E$2)-COLUMN('TRM Data'!$C$2)+1,FALSE),'Other Data'!$G$158:$H$178,2))","v":""},"","","","","","","","","","","","","","","","",""]
[107,{"$f":"IF(AND(OR(INDIRECT(B$1&$A204)=\"Fixtures\",INDIRECT(B$1&$A204)=\"Fixtures and Controls\"),INDIRECT(B$2&$A204)>1),1,0)","v":0},{"$f":"IF($B204=1,1,IF(AND(OR(INDIRECT(C$1&$A204)=\"Fixtures\",INDIRECT(C$1&$A204)=\"Fixtures and Controls\"),INDIRECT(C$2&$A204)=\"Yes\"),1,0))","v":0},{"$f":"IF($B204=1,$B204,\"\")","v":""},"",{"$f":"IF(COUNTIF('Project Information'!$J$9:$BG$9,$E204)=1,IF(INDEX('Project Information'!$J$15:$BG$15,1,MATCH($E204,'Project Information'!$J$9:$BG$9,0))=\"Yes\",\"Actual\",\"Deemed\"),\"\")","v":""},"","","",{"$f":"IF(OR(INDIRECT(J$1&$A204)=\"\",COUNTIF('TRM Data'!$R$4:$S$168,INDIRECT(J$1&$A204))<>1),\"\",VLOOKUP(INDIRECT(J$1&$A204),'TRM Data'!$R$4:$S$168,2))","v":""},"","","",{"$f":"IF(INDIRECT(N$1&$A204)=\"\",\"\",VLOOKUP(VLOOKUP(INDIRECT(N$1&$A204),'TRM Data'!$C$5:$N$200,COLUMN('TRM Data'!$E$2)-COLUMN('TRM Data'!$C$2)+1,FALSE),'Other Data'!$G$158:$H$178,2))","v":""},"","","","","","","","","","","","","","","","",""]
[107,{"$f":"IF(AND(OR(INDIRECT(B$1&$A204)=\"Controls\",INDIRECT(B$1&$A204)=\"Fixtures and Controls\"),INDIRECT(B$2&$A204)>1),1,0)","v":0},{"$f":"IF($B205=1,1,IF(AND(OR(INDIRECT(C$1&$A205)=\"Controls\",INDIRECT(C$1&$A205)=\"Fixtures and Controls\"),INDIRECT(C$2&$A205)=\"Yes\"),1,0))","v":0},{"$f":"IF($B205=1,SUM($B$5:$B205),\"\")","v":""},"",{"$f":"IF(COUNTIF('Project Information'!$J$9:$BG$9,$E205)=1,IF(INDEX('Project Information'!$J$15:$BG$15,1,MATCH($E205,'Project Information'!$J$9:$BG$9,0))=\"Yes\",\"Actual\",\"Deemed\"),\"\")","v":""},"","","",{"$f":"IF(OR(INDIRECT(J$1&$A205)=\"\",COUNTIF('TRM Data'!$R$4:$S$168,INDIRECT(J$1&$A205))<>1),\"\",VLOOKUP(INDIRECT(J$1&$A205),'TRM Data'!$R$4:$S$168,2))","v":""},"","","",{"$f":"IF(INDIRECT(N$3&$A205)=\"\",\"\",VLOOKUP(VLOOKUP(INDIRECT(N$3&$A205),'TRM Data'!$C$5:$N$200,COLUMN('TRM Data'!$E$2)-COLUMN('TRM Data'!$C$2)+1,FALSE),'Other Data'!$G$158:$H$178,2))","v":""},"","","","","","","","","","","","","","","","",""]

{"sheet":"Other Data","index":14,"n_rows":189,"n_cols":12,"rows_kept":189,"cut":false,"hidden":true,"merged":[[85,3,85,4]]}
[]
[null,"Version","CIPI FON-022-2026",null,null,"2. Settings"]
[null,null,null,null,null,"Year 1"]
[null,"1. Dropdown Menus",null,null,null,{"$f":"--MID(C2,14,15)","v":2026}]
[]
[null,null,null,null,null,"Avoided Cost Data Set",null,"Options",null,null,"Default Hourly Labor Rate"]
[null,null,null,null,null,"AESC 2024",null,"AESC 2024",null,null,60]
[null,null,null,null,null,null,null,null,null,null,"Tax Rate"]
[null,null,null,null,null,"Net or Gross",null,null,null,null,5.5E-2]
[null,null,null,null,null,"Gross",null,"Net","Gross"]
[]
[null,"Energy Period Factors",null,null,null,"Include Incentives to Freeriders as Cost"]
[null,"Year-long",null,null,null,"This option has been disabled.  Incentives to freeriders are NOT included as a cost.",null,"Yes","No"]
[null,"Winter"]
[null,"Summer",null,null,null,"Default DR"]
[null,null,null,null,null,2.8000000000000001E-2]
[null,null,null,"LED_Proposed_Exterior","CFL_Proposed_Exterior","Halogen_Proposed_Exterior","High_Pressure_Sodium_Proposed_Exterior","Incandescent_Proposed_Exterior","Metal_Halide_Proposed_Exterior","Pulse_Start_Metal_Halide_Proposed_Exterior","Linear_Fluorescent_Proposed_Exterior","Retrofit_Kit_or_Replacement_Proposed_Exterior"]
[null,null,null,"No valid replacements for this baseline","No valid replacements for this baseline","No valid replacements for this baseline","Retrofit kit","No valid replacements for this baseline","Retrofit kit","Retrofit kit","Canopy or parking garage","No valid replacements for this baseline"]
[null,null,null,null,null,null,"Parking fixture",null,"Parking fixture","Parking fixture","Flood or spot"]
[null,null,null,null,null,null,"Pole mounted",null,"Pole mounted","Pole mounted"]
[null,null,null,null,null,null,"Wall pack",null,"Wall pack","Wall pack"]
[null,null,null,null,null,null,"Canopy or parking garage",null,"Canopy or parking garage","Canopy or parking garage"]
[null,null,null,null,null,null,"Flood or spot",null,"Flood or spot","Flood or spot"]
[]
[null,null,null,"LED_Proposed_Interior","CFL_Proposed_Interior","Halogen_Proposed_Interior","High_Pressure_Sodium_Proposed_Interior","Incandescent_Proposed_Interior","Metal_Halide_Proposed_Interior","Pulse_Start_Metal_Halide_Proposed_Interior","Linear_Fluorescent_Proposed_Interior","Retrofit_Kit_or_Replacement_Proposed_Interior"]
[null,null,null,"No valid replacements for this baseline","No valid replacements for this baseline","LED retrofit kit","Recessed or surface mounted","Recessed or surface mounted","Recessed or surface mounted","Recessed or surface mounted","Recessed or surface mounted","No valid replacements for this baseline"]
[null,null,null,null,null,"High or low bay LED","LED retrofit kit","LED retrofit kit","LED retrofit kit","LED retrofit kit","LED retrofit kit"]
[null,null,null,null,null,"Recessed or surface mounted","High or low bay LED","High or low bay LED","High or low bay LED","High or low bay LED","High or low bay LED"]
[null,null,null,null,null,null,null,null,null,null,"Linear ambient"]
[null,null,null,null,null,null,null,null,null,null,"Stairwell and passageway"]
[]
[null,null,null,"LED_Proposed_Refrigerated","CFL_Proposed_Refrigerated","Halogen_Proposed_Refrigerated","High_Pressure_Sodium_Proposed_Refrigerated","Incandescent_Proposed_Refrigerated","Metal_Halide_Proposed_Refrigerated","Pulse_Start_Metal_Halide_Proposed_Refrigerated","Linear_Fluorescent_Proposed_Refrigerated","Retrofit_Kit_or_Replacement_Proposed_Refrigerated"]
[null,null,null,"No valid replacements for this baseline","No valid replacements for this baseline","No valid replacements for this baseline","No valid replacements for this baseline","No valid replacements for this baseline","No valid replacements for this baseline","No valid replacements for this baseline","Horizontal caselight","No valid replacements for this baseline"]
[null,null,null,null,null,null,null,null,null,null,"Vertical caselight"]
[]
[null,"Existing Lighting Categories",null,"LED","CFL","Halogen","High_Pressure_Sodium","Incandescent","Metal Halide","Pulse_Start_Metal_Halide","Linear Fluorescent","Retrofit_Kit_or_Replacement"]
[null,null,null,"LED 2' LED Lamp T8",null,"Halogen - 20W","HPS - 1000W","Incandescent - 100W","MH - 100W","PSMH - 100W","T12 - 1-Lamp 4' T12","Retrofit Kit for LED Direct Linear Ambient Luminaires <50W"]
[null,"Halogen",null,"LED 4' LED Lamp T8",null,"Halogen - 50W","HPS - 100W","Incandescent - 40W","MH - 150W","PSMH - 150W","T12 - 1-Lamp 4' T12 HO","Retrofit Kit for LED Direct Linear Ambient Luminaires ≥ 50W <100W"]
[null,"High_Pressure_Sodium",null,"LED 4' LED Lamp T5",null,null,"HPS - 150W","Incandescent - 60W","MH - 175W","PSMH - 200W","T12 - 1-Lamp 5' T12 HO","Retrofit Kit for LED Direct Linear Ambient Luminaires ≥100W"]
[null,"Incandescent",null,"LED 4' LED Lamp T5HO",null,null,"HPS - 200W","Incandescent - 65W","MH - 200W","PSMH - 320W","T12 - 1-Lamp 6' T12 HO","LED Retrofit Kit 1x4<40W"]
[null,"Metal_Halide",null,"LED 4' LED Lamp T8 U-Bend",null,null,"HPS - 225W","Incandescent - 75W","MH - 250W","PSMH - 400W","T12 - 1-Lamp 8' T12","LED Retrofit Kit 1x4>=40W"]
[null,"Pulse_Start_Metal_Halide",null,{"$f":"'TRM Data'!R65","v":"LED Outdoor Wall Pack: 30 - 60W"},null,null,"HPS - 250W",null,"MH - 400W",null,"T12 - 2-Lamp 4' T12","LED Retrofit Kit 2x2<40W"]
[null,"Linear_Fluorescent",null,{"$f":"'TRM Data'!R66","v":"LED Outdoor Wall Pack: 60 - 100W"},null,null,"HPS - 310W",null,"MH - 1000W",null,"T12 - 2-Lamp 4' T12 HO","LED Retrofit Kit 2x2>=40W"]
[null,null,null,"LED 1x4 Recessed Fixture <40W",null,null,"HPS - 35W",null,null,null,"T12 - 2-Lamp 5' T12 HO","LED Retrofit Kit 2x4<50W"]
[null,null,null,"LED 1x4 Recessed Fixture >=40W",null,null,"HPS - 360W",null,null,null,"T12 - 2-Lamp 6' T12 HO","LED Retrofit Kit 2x4>=50W"]
[null,null,null,"LED 2x2 Recessed Fixture <40W",null,null,"HPS - 400W",null,null,null,"T12 - 2-Lamp 8' T12","Replacement Lamps for High-Bay <120W"]
[null,null,null,"LED 2x2 Recessed Fixture >=40W",null,null,"HPS - 50W",null,null,null,"T12 - 2-Lamp 8' T12 HO","Replacement Lamps for High-Bay >=120W"]
[null,null,null,"LED 2x4 Recessed Fixture <50W",null,null,"HPS - 600W",null,null,null,"T12 - 2-Lamp U T12","Replacement Lamps for Low-Bay <80W"]
[null,null,null,"LED 2x4 Recessed Fixture >=50W",null,null,"HPS - 70W",null,null,null,"T12 - 3-Lamp 4' T12","Replacement Lamps for Low-Bay >=80W"]
[null,null,null,"LED A",null,null,"HPS - 750W",null,null,null,"T12 - 4-Lamp 4' T12","Replacement Lamps Type A <50W"]
[null,null,null,"LED D",null,null,null,null,null,null,"T5 - 10-Lamp 4' T5 HO","Replacement Lamps Type A >=50W"]
[null,null,null,"LED High/Low Bay < 100W",null,null,null,null,null,null,"T5 - 1-Lamp 4' T5"]
[null,"Existing_Controls",null,"LED High/Low Bay >= 300W",null,null,null,null,null,null,"T5 - 1-Lamp 4' T5 HO"]
[null,null,null,"LED High/Low Bay 100-<150W",null,null,null,null,null,null,"T5 - 2-Lamp 4' T5"]
[null,"LED",null,"LED High/Low Bay 150-<200W",null,null,null,null,null,null,"T5 - 2-Lamp 4' T5 HO"]
[null,"Halogen",null,"LED High/Low Bay 200-<300W",null,null,null,null,null,null,"T5 - 3-Lamp 4' T5 HO"]
[null,"High_Pressure_Sodium",null,"LED High/Low Bay Retrofit Kit < 150W",null,null,null,null,null,null,"T5 - 4-Lamp 4' T5 HO"]
[null,"Incandescent",null,"LED High/Low Bay Retrofit Kit >= 150W",null,null,null,null,null,null,"T5 - 5-Lamp 4' T5 HO"]
[null,"Metal_Halide",null,"LED Kit (<50W)",null,null,null,null,null,null,"T5 - 6-Lamp 4' T5 HO"]
[null,"Pulse_Start_Metal_Halide",null,"LED Kit (>=200W)",null,null,null,null,null,null,"T5 - 8-Lamp 4' T5 HO"]
[null,"Linear_Fluorescent",null,"LED Kit (100W-<200W)",null,null,null,null,null,null,"T8 - 10-Lamp 4' HPT8"]
[null,"Retrofit_Kit_or_Replacement",null,"LED Kit (50-<100W)",null,null,null,null,null,null,"T8 - 2-Lamp U T8"]
[null,null,null,"LED Linear Ambient <50W",null,null,null,null,null,null,"T8 - 1-Lamp 2' HPT8"]
[null,null,null,"LED Linear Ambient >100W",null,null,null,null,null,null,"T8 - 1-Lamp 4' HPT8"]
[null,"Electricity Provider",null,"LED Linear Ambient 50-100W",null,null,null,null,null,null,"T8 - 1-Lamp 4' HPT8 (25&28 Watts)"]
[null,"Central Maine Power Company",null,"LED MR16",null,null,null,null,null,null,"T8 - 1-Lamp 4' HPT8 HIGH LMN"]
[null,"Eastern Maine Electric",null,"LED Outdoor Wall Pack: <30W",null,null,null,null,null,null,"T8 - 1-Lamp 4' HPT8 LOW PWR"]
[null,"Fox Island",null,"LED PAR 20",null,null,null,null,null,null,"T8 - 1-Lamp 4' T8"]
[null,"Houlton Water Company",null,"LED PAR 30",null,null,null,null,null,null,"T8 - 1-Lamp 4' T8 HO"]
[null,"Isle au Haut Power Company",null,"LED PAR 38",null,null,null,null,null,null,"T8 - 1-Lamp 5' T8 HO"]
[null,"Kennebunk Light & Power",null,"LED R",null,null,null,null,null,null,"T8 - 1-Lamp 6' T8 HO"]
[null,"Madison Electric",null,"LED RH",null,null,null,null,null,null,"T8 - 2-Lamp 2' HPT8"]
[null,"Matinicus Plantation",null,"LED Retrofit Kit 1x4<40W",null,null,null,null,null,null,"T8 - 2-Lamp 4' HPT8"]
[null,"Monhegan Plantation",null,"LED Retrofit Kit 1x4>=40W",null,null,null,null,null,null,"T8 - 2-Lamp 4' HPT8 (25&28 Watts)"]
[null,"Swans Island",null,"LED Retrofit Kit 2x2<40W",null,null,null,null,null,null,"T8 - 2-Lamp 4' HPT8 HIGH LMN"]
[null,"Van Buren Light and Power",null,"LED Retrofit Kit 2x2>=40W",null,null,null,null,null,null,"T8 - 2-Lamp 4' HPT8 LOW PWR"]
[null,"Versant (formerly Emera Maine)",null,"LED Retrofit Kit 2x4<50W",null,null,null,null,null,null,"T8 - 2-Lamp 4' T8"]
[null,null,null,"LED Retrofit Kit 2x4>=50W",null,null,null,null,null,null,"T8 - 2-Lamp 4' T8 HO"]
[null,null,null,null,null,null,null,null,null,null,"T8 - 2-Lamp 5' T8 HO"]
[null,null,null,null,null,null,null,null,null,null,"T8 - 2-Lamp 6' T8 HO"]
[null,null,null,null,null,null,null,null,null,null,"T8 - 2-Lamp U T8"]
[null,"Business Type",null,"Yes/No",null,"Savings Pathway","Incentive per kWh","Incentive limit",null,null,"T8 - 3-Lamp 2' HPT8"]
[null,"Business",null,"Yes",null,"Small Business",null,0.9,null,null,"T8 - 3-Lamp 4' HPT8"]
[null,"Government",null,"No",null,"Pay for Performance",0.3,0.8,null,null,"T8 - 3-Lamp 4' HPT8 (25&28 Watts)"]
[null,"Nonprofit",null,null,null,null,null,null,null,null,"T8 - 3-Lamp 4' HPT8 HIGH LMN"]
[null,"Organization",null,"Seasonal Hours",null,null,null,null,null,null,"T8 - 3-Lamp 4' HPT8 LOW PWR"]
[null,null,null,"Summer",3672,null,null,null,null,null,"T8 - 3-Lamp 4' T8"]
[null,"Heating Fuel Type",null,"Winter",3624,null,null,null,null,null,"T8 - 4-Lamp 2' HPT8"]
[null,"Propane",null,null,null,null,null,null,null,null,"T8 - 4-Lamp 4' HPT8"]
[null,"Oil",null,null,null,null,null,null,null,null,"T8 - 4-Lamp 4' HPT8 (25&28 Watts)"]
[null,"Gas",null,"Ancillary Fixture Categories",null,"Control",null,null,null,null,"T8 - 4-Lamp 4' HPT8 HIGH LMN"]
[null,"Kerosene",null,{"$f":"B99","v":"Exterior"},null,{"$f":"'TRM Data'!C196","v":"Fixture Mounted Occupancy Sensor"},null,null,null,null,"T8 - 4-Lamp 4' HPT8 LOW PWR"]
[null,"Wood",null,{"$f":"B100","v":"Interior"},null,{"$f":"'TRM Data'!C197","v":"Remote Mounted Occupancy Sensor"},null,null,null,null,"T8 - 4-Lamp 4' T8"]
[null,"Electric",null,{"$f":"B101","v":"Refrigerated"},null,{"$f":"'TRM Data'!C198","v":"Vacancy Sensor"},null,null,null,null,"T8 - 6-Lamp 4' HPT8"]
[null,"Heat Pump",null,"Control",null,{"$f":"'TRM Data'!C195","v":"Cooler Case Mounted Occupancy Sensor For LED Fixtures"},null,null,null,null,"T8 - 6-Lamp 4' HPT8 HIGH LMN"]
[null,null,null,null,null,null,null,null,null,null,"T8 - 6-Lamp 4' HPT8 LOW PWR"]
[null,null,null,null,null,null,null,null,null,null,"T8 - 8-Lamp 4' HPT8"]
[null,"Replacement Lighting Categories",null,null,null,null,null,null,null,null,"T9 - Circline Fuorescent"]
[null,"Exterior"]
[null,"Interior"]
[null,"Refrigerated"]
[]
[]
[null,"Exterior Fixture Types (Replacement)",null,"Exterior",null,"ExteriorRetrofitKit","ExteriorParkingFixture","ExteriorPoleMounted","ExteriorWallPack","ExteriorCanopyOrParkingGarage","ExteriorFloodOrSpot"]
[null,"Retrofit kit",null,"Retrofit kit",null,{"$f":"'TRM Data'!C12","v":"LED Outdoor Retrofit Kits <50W"},{"$f":"'TRM Data'!C26","v":"LED Outdoor Parking Fixture <50W"},{"$f":"'TRM Data'!C30","v":"LED Pole-Mounted Streetlight <50W"},{"$f":"'TRM Data'!C35","v":"LED Outdoor Wall Pack <30W"},{"$f":"'TRM Data'!C40","v":"LED Canopy/Parking Garage Fixture <50W"},{"$f":"'TRM Data'!C57","v":"LED Flood/Spot <50W"}]
[null,"Parking fixture",null,"Parking fixture",null,{"$f":"'TRM Data'!C13","v":"LED Outdoor Retrofit Kits >=50 - <100W"},{"$f":"'TRM Data'!C27","v":"LED Outdoor Parking Fixture 50W - 100W"},{"$f":"'TRM Data'!C31","v":"LED Pole-Mounted Streetlight 50W - 100W"},{"$f":"'TRM Data'!C36","v":"LED Outdoor Wall Pack 30 - 60W"},{"$f":"'TRM Data'!C41","v":"LED Canopy/Parking Garage Fixture >=50 - <80W"},{"$f":"'TRM Data'!C58","v":"LED Flood/Spot 50 - 100W"}]
[null,"Pole-mounted streetlight",null,"Pole mounted",null,{"$f":"'TRM Data'!C14","v":"LED Outdoor Retrofit Kits >=100 - <200W"},{"$f":"'TRM Data'!C28","v":"LED Outdoor Parking Fixture 100W - 250W"},{"$f":"'TRM Data'!C32","v":"LED Pole-Mounted Streetlight 100W - 250W"},{"$f":"'TRM Data'!C37","v":"LED Outdoor Wall Pack 60 - 100W"},{"$f":"'TRM Data'!C42","v":"LED Canopy/Parking Garage Fixture >=80 - 130W"},{"$f":"'TRM Data'!C59","v":"LED Flood/Spot >100W"}]
[null,"Wall pack",null,"Wall pack",null,{"$f":"'TRM Data'!C15","v":"LED Outdoor Retrofit Kits >=200W"},{"$f":"'TRM Data'!C29","v":"LED Outdoor Parking Fixture >250W"},{"$f":"'TRM Data'!C33","v":"LED Pole-Mounted Streetlight >250W"},{"$f":"'TRM Data'!C38","v":"LED Outdoor Wall Pack >100W"},{"$f":"'TRM Data'!C43","v":"LED Canopy/Parking Garage Fixture >=130W"}]
[null,"Canopy or parking garage",null,"Canopy or parking garage"]
[null,"Flood or Spot",null,"Flood or Spot"]
[]
[]
[]
[]
[]
[]
[]
[]
[]
[]
[]
[null,"Interior Fixture Types (Replacement)",null,"Interior",null,"InteriorRecessedOrSurfaceMounted","InteriorFloodOrSpot","InteriorLEDRetrofitKit","InteriorHighOrLowBayLED","InteriorLinearAmbient","InteriorStairwellAndPassageway"]
[null,{"$f":"'Other Data'!$D123","v":"Recessed or surface mounted"},null,"Recessed or surface mounted",null,{"$f":"'TRM Data'!C103","v":"LED 2x2 Recessed Fixture <40W"},{"$f":"'TRM Data'!C63","v":"LED Flood/Spot <50W"},{"$f":"'TRM Data'!C110","v":"Integrated Retrofit Kit for LED 2x2 Interior Fixture <40W"},{"$f":"'TRM Data'!C129","v":"LED High/Low Bay Fixture <100W"},{"$f":"'TRM Data'!C153","v":"Linear Ambient <50W (Strip)"},{"$f":"'TRM Data'!C143","v":"Stairwell and Passageway Luminaires ≤ 30W"}]
[null,{"$f":"'Other Data'!$D124","v":"Flood or spot"},null,"Flood or spot",null,{"$f":"'TRM Data'!C104","v":"LED 2x2 Recessed Fixture >=40W"},{"$f":"'TRM Data'!C64","v":"LED Flood/Spot 50 - 100W"},{"$f":"'TRM Data'!C111","v":"Integrated Retrofit Kit for LED 2x2 Interior Fixture >=40W"},{"$f":"'TRM Data'!C130","v":"LED High/Low Bay Fixture >=100 - <150W"},{"$f":"'TRM Data'!C154","v":"Linear Ambient <50W (Wrap)"},{"$f":"'TRM Data'!C144","v":"Stairwell and Passageway Luminaires >30 W"}]
[null,{"$f":"'Other Data'!$D125","v":"LED retrofit kit"},null,"LED retrofit kit",null,{"$f":"'TRM Data'!C105","v":"LED 2x4 Recessed Fixture <50W"},{"$f":"'TRM Data'!C65","v":"LED Flood/Spot >100W"},{"$f":"'TRM Data'!C114","v":"Integrated Retrofit Kit for LED 2x4 Interior Fixture <50W"},{"$f":"'TRM Data'!C131","v":"LED High/Low Bay Fixtures >=150 - <200W"},{"$f":"'TRM Data'!C155","v":"Linear Ambient 50-100W"}]
[null,{"$f":"'Other Data'!$D126","v":"High or low bay LED"},null,"High or low bay LED",null,{"$f":"'TRM Data'!C106","v":"LED 2x4 Recessed Fixture >=50W"},null,{"$f":"'TRM Data'!C115","v":"Integrated Retrofit Kit for LED 2x4 Interior Fixture >=50W"},{"$f":"'TRM Data'!C132","v":"LED High/Low Bay Fixtures >=200 - <300W"},{"$f":"'TRM Data'!C156","v":"Linear Ambient >100W"}]
[null,{"$f":"'Other Data'!$D127","v":"Linear ambient"},null,"Linear ambient",null,{"$f":"'TRM Data'!C107","v":"LED 1x4 Recessed Fixture <40W"},null,{"$f":"'TRM Data'!C116","v":"Integrated Retrofit Kit for LED 1x4 Interior Fixture <40W"},{"$f":"'TRM Data'!C133","v":"LED High/Low Bay Fixtures >=300W"}]
[null,{"$f":"'Other Data'!$D128","v":"Stairwell and passageway"},null,"Stairwell and passageway",null,{"$f":"'TRM Data'!C108","v":"LED 1x4 Recessed Fixture >=40W"},null,{"$f":"'TRM Data'!C117","v":"Integrated Retrofit Kit for LED 1x4 Interior Fixture >=40W"}]
[null,null,null,null,null,null,null,{"$f":"'TRM Data'!C118","v":"Linear Retrofit Kit for LED 2x2 Interior Fixture <40W"}]
[null,null,null,null,null,null,null,{"$f":"'TRM Data'!C119","v":"Linear Retrofit Kit for LED 2x2 Interior Fixture >=40W"}]
[null,null,null,null,null,null,null,{"$f":"'TRM Data'!C122","v":"Linear Retrofit Kit for LED 2x4 Interior Fixture <50W"}]
[null,null,null,null,null,null,null,{"$f":"'TRM Data'!C123","v":"Linear Retrofit Kit for LED 2x4 Interior Fixture  >=50W"}]
[null,null,null,null,null,null,null,{"$f":"'TRM Data'!C124","v":"Linear Retrofit Kit for LED 1x4 Interior Fixture <40W"}]
[null,null,null,null,null,null,null,{"$f":"'TRM Data'!C125","v":"Linear Retrofit Kit for LED 1x4 Interior Fixture  >=40W"}]
[null,null,null,null,null,null,null,{"$f":"'TRM Data'!C135","v":"LED High/Low Bay Retrofit Kit <150W"}]
[null,null,null,null,null,null,null,{"$f":"'TRM Data'!C136","v":"LED High/Low Bay Retrofit Kit >=150W"}]
[null,null,null,null,null,null,null,{"$f":"'TRM Data'!C158","v":"Retrofit Kit for LED Direct Linear Ambient Luminaires <50W"}]
[null,null,null,null,null,null,null,{"$f":"'TRM Data'!C159","v":"Retrofit Kit for LED Direct Linear Ambient Luminaires >= 50W - <100W"}]
[null,null,null,null,null,null,null,{"$f":"'TRM Data'!C160","v":"Retrofit Kit for LED Direct Linear Ambient Luminaires >=100W"}]
[null,"Refrigerated Fixture Types (Replacement)",null,"Refrigerated",null,"RefrigeratedHorizontalcaselight","RefrigeratedVerticalcaselight"]
[null,"Horizontal caselight",null,"Horizontal caselight",null,{"$f":"'TRM Data'!C76","v":"LED Refrigerated Caselight (Horizontal) - 3' Fixture"},{"$f":"'TRM Data'!C67","v":"LED Refrigerated Caselight (Vertical) - 3' Fixture Center"}]
[null,"Vertical caselight",null,"Vertical caselight",null,{"$f":"'TRM Data'!C77","v":"LED Refrigerated Caselight (Horizontal) - 4' Fixture"},{"$f":"'TRM Data'!C68","v":"LED Refrigerated Caselight (Vertical) - 3' Fixture End"}]
[null,null,null,null,null,{"$f":"'TRM Data'!C78","v":"LED Refrigerated Caselight (Horizontal) - 5' Fixture"},{"$f":"'TRM Data'!C69","v":"LED Refrigerated Caselight (Vertical) - 4' Fixture Center"}]
[null,null,null,null,null,{"$f":"'TRM Data'!C79","v":"LED Refrigerated Caselight (Horizontal) - 6' Fixture"},{"$f":"'TRM Data'!C70","v":"LED Refrigerated Caselight (Vertical) - 4' Fixture End"}]
[null,"Ancillary Costs","Type",null,null,null,{"$f":"'TRM Data'!C71","v":"LED Refrigerated Caselight (Vertical) - 5' Fixture Center"}]
[null,"Additional labor hours","NM",null,null,null,{"$f":"'TRM Data'!C72","v":"LED Refrigerated Caselight (Vertical) - 5' Fixture End"}]
[null,"Bucket Truck","M",null,null,null,{"$f":"'TRM Data'!C73","v":"LED Refrigerated Caselight (Vertical) - 6' Fixture Center"}]
[null,"Consumables (wire, connectors, etc.)","NM",null,null,null,{"$f":"'TRM Data'!C74","v":"LED Refrigerated Caselight (Vertical) - 6' Fixture End"}]
[null,"Extension Ladder","M"]
[null,"Genie Lift","M"]
[null,"Off Hours Installation","NM"]
[null,"Permit Fee","NM"]
[null,"Product Mark-Up","M"]
[null,"Recycling Fee","M"]
[null,"Rental Equipment","NM"]
[null,"Other","NM"]
[null,null,null,null,null,null,"Measure Code","effRT Measure Name"]
[null,"Facility Type","effRT Facility Type","effRT Structure Type","effRT Account Class",null,"L50","LED Cooler Case Occupancy Sensor"]
[null,"Apartments_5_or_More_Units","Multi-family Building 5+ Units","Multi-Family Building","C",null,"L60","Controls for LED Systems"]
[null,"Assembly","Assembly","Commercial","C",null,"L70","Occupancy Sensors for LED Systems"]
[null,"Automotive_Facility_Sales_and_Service","Garage/Repair","Commercial","C",null,"L71","Vacancy Sensors for LED Systems"]
[null,"Bar_or_Lounge","Bar/Lounge","Commercial","C",null,"S06","Outdoor LED Mogul Screw-Base Replacement Lamps for HID Lamps"]
[null,"Chain_Stores","Retail - Chain Store","Commercial","C",null,"S08","LED Retrofit Kits for Streetlights/Parking Lot Lights/Fuel Pump Canopy Fixtures"]
[null,"Convenience_Store","Convenience Store","Commercial","C",null,"S11","Outdoor Pole-Mounted LED Streetlight or Parking Fixture"]
[null,"Correctional","Correctional","Commercial","C",null,"S110","LED Replacement Lamps"]
[null,"Family_Entertainment_Center","Family Entertainment Centers","Commercial","C",null,"S13","Outdoor Wall-Mounted & LED Area Fixture (Wallpack)"]
[null,"Fire_Police_or_Public_Safety","Fire/Police/Public Safety","Commercial","C",null,"S17","LED Canopy or Parking Garage Fixtures"]
[null,"Fitness_Center","Fitness Center","Commercial","C",null,"S21","Recessed/Surface/Pendant-Mounted LED Downlight"]
[null,"General_Retail","Retail","Commercial","C",null,"S23","LED Flood and Spot Lights"]
[null,"Grocery_Store","Grocery Store","Commercial","C",null,"S25","LED Interior Flood and Spot Lights"]
[null,"Healthcare_Assisted","Health Care - Assisted/Nursing","Commercial","C",null,"S30","Refrigerated Case LED Light Fixture"]
[null,"Healthcare_Hospital","Hospital","Commercial","C",null,"S32","Refrigerated Case LED Horizontal Light Fixture"]
[null,"Healthcare_Outpatient","Health Care - Outpatient","Commercial","C",null,"S51","Space Lighting Design with New Luminaires"]
[null,"Hotel_or_Motel","Lodging","Commercial","C",null,"S52","LED Retrofit Kits for Interior Luminaires"]
[null,"K12_School","Elementary/Secondary Schools","Commercial","C",null,"S61","High/Low Bay Design with New Fixtures"]
[null,"Manufacturing_1_shift","Manufacturing (1 Shift)","Industrial","I",null,"S62","LED Retrofit Kits for High/Low Bay Fixtures"]
[null,"Manufacturing_2_shifts","Manufacturing (2 shifts)","Industrial","I",null,"S64","LED High/Low Bay Mogul Screw-Base Replacement Lamps for HID Lamps"]
[null,"Manufacturing_3_shifts","Manufacturing (3 shifts)","Industrial","I",null,"S81","Space Lighting Design with New Ambient Luminaires"]
[null,"Movie_Theater","Movie Theaters","Commercial","C"]
[null,"Municipal_or_Government","Municipal/Government","Commercial","C"]
[null,"Office_Building","Office","Commercial","C"]
[null,"Other_Commercial_USER_DEFINED","Other","Commercial","C"]
[null,"Other_Industrial_USER_DEFINED","Other","Industrial","I"]
[null,"Religious ","Religious ","Commercial","C"]
[null,"Restaurant_Casual_Dining","Restaurant - Casual Dining","Commercial","C"]
[null,"Restaurant_Fast_Food","Restaurant - Fast Food","Commercial","C"]
[null,"University ","College","Commercial","C"]
[null,"University_Dormitory","University - Dormitory","Commercial","C"]
[null,"Warehouse","Warehouse","Commercial","C"]

{"sheet":"TRM Data","index":15,"n_rows":220,"n_cols":22,"rows_kept":220,"cut":false,"hidden":true,"merged":[[1,17,2,17],[2,14,3,14],[1,1,3,1],[2,15,3,15],[1,2,3,2],[1,3,3,3],[1,4,3,4],[1,5,1,9],[2,5,3,5],[2,6,3,6],[2,8,3,8],[2,9,3,9],[2,10,3,10],[2,7,3,7],[2,12,3,12],[1,10,1,12],[2,13,3,13],[2,11,3,11]]}
[null,null,"Table 31 – Installed Measure Wattage and Cost Table (WattsEE, SAVEEE, CostEE)",null,null,null,null,null,null,null,null,null,null,"Assumed Labor Rate",null,null,null,"Table 32 – Existing Fixture Rated Wattage Table (WattsBASE)[1]"]
[null,"Look up code","Description","Note","Measure Code","C&I Prescriptive[1]",null,null,null,null,"Small Business Direct Install[2]",null,null,70,null,null,null,"Existing Fixture Description","Wattage",null,"FR","SO"]
[null,null,null,null,null,"Wattage (Watts_EE)","Installed Cost: High Efficiency","Installed Cost: Baseline","Labor Hours","Measure Cost (Cost)","Wattage (Watts_EE)","Material Cost","Labor Hours","CIP Incentive","Lower wattage boundary (data validation)","Upper wattage boundary (data validation)",null,null,"(WattsBASE)",null,0.26,1.6E-2]
[null,null,null,null,null,null,null,null,null,null,null,null,null,null,null,null,null,"CFL - 11W",11]
[null,5006.01,"LED Outdoor Replacement Lamp Type B Low Output (250 - 5000 lm)",null,"S06","N/A","N/A","N/A","N/A","N/A",26.6,32,0.75,"N/A",0.1,2000,null,"CFL - 13W",13]
[null,5006.0200000000004,"LED Outdoor Replacement Lamp Type B Mid Output (>5000 - 10000 lm)",null,"S06","N/A","N/A","N/A","N/A","N/A",53.3,52,0.75,"N/A",0.1,2000,null,"CFL - 27W",27]
[null,5006.03,"LED Outdoor Replacement Lamp Type B High Output (>10000 lm)",null,"S06","N/A","N/A","N/A","N/A","N/A",80.599999999999994,86,0.75,"N/A",0.1,2000,null,"Flood <50W|99",29]
[null,5006.04,"LED Outdoor Replacement Lamp Type C Low Output (250 - 5000 lm)",null,"S06","N/A","N/A","N/A","N/A","N/A","N/A","N/A","N/A","N/A",0.1,2000,null,"Flood >100W|154",134]
[null,5006.05,"LED Outdoor Replacement Lamp Type C Mid Output (>5000 - 10000 lm)",null,"S06","N/A","N/A","N/A","N/A","N/A","N/A","N/A","N/A","N/A",0.1,2000,null,"Flood 50-100W|118",72]
[null,5006.0600000000004,"LED Outdoor Replacement Lamp Type C High Output (>10000 lm)",null,"S06","N/A","N/A","N/A","N/A","N/A","N/A","N/A","N/A","N/A",0.1,2000,null,"Halogen - 20W",20]
[null,null,null,null,null,null,null,null,null,null,null,null,null,null,null,null,null,"Halogen - 50W",50]
[null,5008.01,"LED Outdoor Retrofit Kits <50W",null,"S08",38,122.80275,0,0.5,{"$f":"ROUND((G12-H12)+I12*$N$2,2)","v":157.80000000000001},30.1,145,1,50,0.1,49.99,null,"HPS - 1000W",1100]
[null,5008.0200000000004,"LED Outdoor Retrofit Kits >=50 - <100W",null,"S08",73,144.27250000000001,0,0.5,{"$f":"ROUND((G13-H13)+I13*$N$2,2)","v":179.27},63.52,137,1,80,50,99.99,null,"HPS - 100W",138]
[null,5008.03,"LED Outdoor Retrofit Kits >=100 - <200W",null,"S08",128,219.16149999999999,0,0.5,{"$f":"ROUND((G14-H14)+I14*$N$2,2)","v":254.16},125.5,159,1,100,100,199.99,null,"HPS - 150W",188]
[null,5008.04,"LED Outdoor Retrofit Kits >=200W",null,"S08",241,305.43,0,0.5,{"$f":"ROUND((G15-H15)+I15*$N$2,2)","v":340.43},237.7,269,1,120,200,2000,null,"HPS - 200W",240]
[null,null,null,null,null,null,null,null,null,null,null,null,null,null,null,null,null,"HPS - 225W",275]
[null,5011.01,"LED Outdoor Parking Fixture <50W (3,000K)",null,"S11","N/A","N/A","N/A","N/A","N/A","TBD","TBD",1,75,null,null,null,"HPS - 250W",295]
[null,5011.0200000000004,"LED Outdoor Parking Fixture <50W (4,000K)",null,"S11","N/A","N/A","N/A","N/A","N/A",27.1,69,1,75,null,null,null,"HPS - 310W",350]
[null,5011.03,"LED Outdoor Parking Fixture <50W (5,000K)",null,"S11","N/A","N/A","N/A","N/A","N/A",27,69,1,75,null,null,null,"HPS - 35W",45]
[null,5011.04,"LED Outdoor Parking Fixture 50W - 100W (3,000K)",null,"S11","N/A","N/A","N/A","N/A","N/A","TBD","TBD",1,75,null,null,null,"HPS - 360W",435]
[null,5011.05,"LED Outdoor Parking Fixture 50W - 100W (4,000K)",null,"S11","N/A","N/A","N/A","N/A","N/A",45.31,109,1,75,null,null,null,"HPS - 400W",465]
[null,5011.0600000000004,"LED Outdoor Parking Fixture 50W - 100W (5,000K)",null,"S11","N/A","N/A","N/A","N/A","N/A",45,109,1,75,null,null,null,"HPS - 50W",65]
[null,5011.07,"LED Outdoor Parking Fixture 100W - 250W (3,000K)",null,"S11","N/A","N/A","N/A","N/A","N/A","TBD","TBD",1,75,null,null,null,"HPS - 600W",675]
[null,5011.08,"LED Outdoor Parking Fixture 100W - 250W (4,000K)",null,"S11","N/A","N/A","N/A","N/A","N/A",150,240,1,75,null,null,null,"HPS - 70W",95]
[null,5011.09,"LED Outdoor Parking Fixture 100W - 250W (5,000K)",null,"S11","N/A","N/A","N/A","N/A","N/A",150,240,1,75,null,null,null,"HPS - 750W",835]
[null,5011.1000000000004,"LED Outdoor Parking Fixture <50W",null,"S11",40,98.827833333333331,0,0.75,{"$f":"ROUND((G26-H26)+I26*$N$2,2)","v":151.33000000000001},"N/A","N/A","N/A",75,0.1,49.99,null,"Incandescent - 100W",100]
[null,5011.1099999999997,"LED Outdoor Parking Fixture 50W - 100W",null,"S11",80,212.3052909090909,0,0.75,264.81,"N/A","N/A","N/A",90,50,100,null,"Incandescent - 40W",40]
[null,5011.12,"LED Outdoor Parking Fixture 100W - 250W",null,"S11",156,373.20604347826088,0,0.75,425.71,"N/A","N/A","N/A",100,100,250,null,"Incandescent - 60W",60]
[null,5011.13,"LED Outdoor Parking Fixture >250W",null,"S11",306,466.14099999999996,0,0.75,518.64,"N/A","N/A","N/A",150,250.1,2000,null,"Incandescent - 65W",65]
[null,5011.1400000000003,"LED Pole-Mounted Streetlight <50W",null,"S11",40,98.827833333333331,0,0.75,151.33000000000001,"N/A","N/A","N/A",75,0.1,49.99,null,"Incandescent - 75W",75]
[null,5011.1499999999996,"LED Pole-Mounted Streetlight 50W - 100W",null,"S11",80,212.3052909090909,0,0.75,264.81,"N/A","N/A","N/A",90,50,100,null,"LED 1x4 Recessed Fixture <40W",31]
[null,5011.16,"LED Pole-Mounted Streetlight 100W - 250W",null,"S11",156,373.20604347826088,0,0.75,425.71,"N/A","N/A","N/A",100,100,250,null,"LED 1x4 Recessed Fixture >=40W",47]
[null,5011.17,"LED Pole-Mounted Streetlight >250W",null,"S11",306,466.14099999999996,0,0.75,518.64,"N/A","N/A","N/A",150,250.1,2000,null,"LED 2' LED Lamp T8",11.2]
[null,null,null,null,null,null,null,null,null,null,null,null,null,null,null,null,null,"LED 2x2 Recessed Fixture <40W",31]
[null,5013.01,"LED Outdoor Wall Pack <30W",null,"S13",17,101.44925000000002,0,0.75,{"$f":"ROUND((G35-H35)+I35*$N$2,2)","v":153.94999999999999},20,57,0.75,60,0.1,29.99,null,"LED 2x2 Recessed Fixture >=40W",47]
[null,5013.0200000000004,"LED Outdoor Wall Pack 30 - 60W",null,"S13",34.6,120.38001212121213,0,0.75,{"$f":"ROUND((G36-H36)+I36*$N$2,2)","v":172.88},30,75,0.75,70,30,60,null,"LED 2x4 Recessed Fixture <50W",39]
[null,5013.03,"LED Outdoor Wall Pack 60 - 100W",null,"S13",68.7,121.36241666666668,0,0.75,{"$f":"ROUND((G37-H37)+I37*$N$2,2)","v":173.86},61.84,115,0.75,80,60,100,null,"LED 2x4 Recessed Fixture >=50W",64]
[null,5013.04,"LED Outdoor Wall Pack >100W",null,"S13",120,167.01720967741937,0,0.75,{"$f":"ROUND((G38-H38)+I38*$N$2,2)","v":219.52},101.6,165,0.75,90,100.1,2000,null,"LED 4' LED Lamp T5",19]
[null,null,null,null,null,null,null,null,null,null,null,null,null,null,null,null,null,"LED 4' LED Lamp T5HO",29]
[null,5017.01,"LED Canopy/Parking Garage Fixture <50W",null,"S17",37,113.13640000000001,0,0.75,{"$f":"ROUND((G40-H40)+I40*$N$2,2)","v":165.64},28.53,65,1,100,0.1,49.99,null,"LED 4' LED Lamp T8",18.7]
[null,5017.0200000000004,"LED Canopy/Parking Garage Fixture >=50 - <80W",null,"S17",64,156.02833333333331,0,0.75,{"$f":"ROUND((G41-H41)+I41*$N$2,2)","v":208.53},58.98,90,1,125,50,79.989999999999995,null,"LED 4' LED Lamp T8 U-Bend",16]
[null,5017.03,"LED Canopy/Parking Garage Fixture >=80 - 130W",null,"S17",99,225.28,0,0.75,{"$f":"ROUND((G42-H42)+I42*$N$2,2)","v":277.77999999999997},94.53,136,1,150,80,130,null,"LED A",10]
[null,5017.04,"LED Canopy/Parking Garage Fixture >=130W",null,"S17",174,302.95999999999998,0,0.75,{"$f":"ROUND((G43-H43)+I43*$N$2,2)","v":355.46},"N/A","N/A","N/A",175,130,2000,null,"LED Canopy/PG (<50W)|91",37]
[null,null,null,null,null,null,null,null,null,null,null,null,null,null,null,null,null,"LED Canopy/PG (>=130W)|284",174]
[null,5021.01,"LED 5\" Recessed Can Retrofit Kit",null,"S21",12,24.307285778375949,0,0.5,{"$f":"ROUND((G45-H45)+I45*$N$2,2)","v":59.31},"N/A","N/A","N/A",35,0.1,30,null,"LED Canopy/PG (50-<80W)|126",64]
[null,5021.0200000000004,"LED 6-8\" Recessed Can Retrofit Kit",null,"S21",12,28.679785778375948,0,0.5,{"$f":"ROUND((G46-H46)+I46*$N$2,2)","v":63.68},"N/A","N/A","N/A",35,0.1,30,null,"LED Canopy/PG (80W-<130W)|189",99]
[null,5021.03,"LED Surface-Mounted Downlight",null,"S21",16,28.545619111709282,0,0.5,{"$f":"ROUND((G47-H47)+I47*$N$2,2)","v":63.55},"N/A","N/A","N/A",35,0.1,30,null,"LED D",12]
[null,5021.04,"LED 4\" Recessed Can Retrofit Kit",null,"S21","N/A","N/A","N/A","N/A","N/A",10,8,0.5,"N/A",null,null,null,"LED High/Low Bay < 100W",74]
[null,5021.05,"LED 5-6\" Recessed Can Retrofit Kit",null,"S21","N/A","N/A","N/A","N/A","N/A",11,10,0.5,"N/A",null,null,null,"LED High/Low Bay >= 300W",418]
[null,5021.0600000000004,"LED 8\" Recessed Can Retrofit Kit",null,"S21","N/A","N/A","N/A","N/A","N/A",13,31,0.5,"N/A",null,null,null,"LED High/Low Bay 100-<150W",123]
[null,5021.07,"LED 6\" Surface-Mounted Downlight",null,"S21","N/A","N/A","N/A","N/A","N/A",9,11,0.5,"N/A",null,null,null,"LED High/Low Bay 150-<200W",170]
[null,5021.08,"LED 11\" Surface-Mounted Downlight",null,"S21","N/A","N/A","N/A","N/A","N/A",14,29,0.5,"N/A",null,null,null,"LED High/Low Bay 200-<300W",233]
[null,5021.09,"LED 15\" Surface-Mounted Downlight",null,"S21","N/A","N/A","N/A","N/A","N/A",22,42,0.5,"N/A",null,null,null,"LED High/Low Bay Retrofit Kit < 150W",108]
[null,null,null,null,null,null,null,null,null,null,null,null,null,null,null,null,null,"LED High/Low Bay Retrofit Kit >= 150W",180]
[null,5023.01,"LED Flood/Spot <25W",null,"S23","N/A","N/A","N/A","N/A","N/A",14.41,25,1,"N/A",null,null,null,"LED Kit (<50W)",38]
[null,5023.0200000000004,"LED Flood/Spot 25 - <50W",null,"S23","N/A","N/A","N/A","N/A","N/A",29.58,40,1,"N/A",null,null,null,"LED Kit (>=200W)",241]
[null,5023.03,"LED Flood/Spot <50W",null,"S23",29,75.315309523809532,0,0.75,{"$f":"ROUND((G57-H57)+I57*$N$2,2)","v":127.82},"N/A","N/A","N/A",50,0.1,49.99,null,"LED Kit (100W-<200W)",128]
[null,5023.04,"LED Flood/Spot 50 - 100W",null,"S23",72,93.137365384615379,0,0.75,{"$f":"ROUND((G58-H58)+I58*$N$2,2)","v":145.63999999999999},49.18,63,1,75,50,100,null,"LED Kit (50-<100W)",73]
[null,5023.05,"LED Flood/Spot >100W",null,"S23",134,430.37944999999996,0,0.75,{"$f":"ROUND((G59-H59)+I59*$N$2,2)","v":482.88},131.1,165,1,150,100.1,2000,null,"LED Linear Ambient <50W",35]
[null,null,null,null,null,null,null,null,null,null,null,null,null,null,null,null,null,"LED Linear Ambient >100W",122]
[null,5025.01,"LED Flood/Spot <25W",null,"S25","N/A","N/A","N/A","N/A","N/A",14.41,25,1,"N/A",null,null,null,"LED Linear Ambient 50-100W",71]
[null,5025.0200000000004,"LED Flood/Spot 25 - <50W",null,"S25","N/A","N/A","N/A","N/A","N/A",29.58,40,1,"N/A",null,null,null,"LED MR16",7]
[null,5025.03,"LED Flood/Spot <50W",null,"S25",29,75.315309523809532,0,0.75,{"$f":"ROUND((G63-H63)+I63*$N$2,2)","v":127.82},"N/A","N/A","N/A",50,0.1,49.99,null,"LED Outdoor Wall Pack: <30W",23]
[null,5025.04,"LED Flood/Spot 50 - 100W",null,"S25",72,93.137365384615379,0,0.75,{"$f":"ROUND((G64-H64)+I64*$N$2,2)","v":145.63999999999999},49.18,63,1,75,50,100,null,"LED Outdoor Wall Pack: >100W",193]
[null,5025.05,"LED Flood/Spot >100W",null,"S25",134,430.37944999999996,0,0.75,{"$f":"ROUND((G65-H65)+I65*$N$2,2)","v":482.88},131.1,165,1,150,100.1,2000,null,"LED Outdoor Wall Pack: 30 - 60W",45]
[null,null,null,null,null,null,null,null,null,null,null,null,null,null,null,null,null,"LED Outdoor Wall Pack: 60 - 100W",79]
[null,5030.01,"LED Refrigerated Caselight (Vertical) - 3' Fixture Center",null,"S30",38,61.041611111111116,0,0.75,{"$f":"ROUND((G67-H67)+I67*$N$2,2)","v":113.54},18.54,84,1,40,1,200,null,"LED PAR 20",9]
[null,5030.0200000000004,"LED Refrigerated Caselight (Vertical) - 3' Fixture End",null,"S30",38,61.041611111111116,0,0.75,113.54,18.54,84,1,40,1,200,null,"LED PAR 30",12]
[null,5030.03,"LED Refrigerated Caselight (Vertical) - 4' Fixture Center",null,"S30",38,32.025611111111111,0,0.75,84.53,16.79,30,1,40,1,200,null,"LED PAR 38",22]
[null,5030.04,"LED Refrigerated Caselight (Vertical) - 4' Fixture End",null,"S30",38,32.025611111111111,0,0.75,84.53,16.79,30,1,40,1,200,null,"LED PL (<50W)|179",40]
[null,5030.05,"LED Refrigerated Caselight (Vertical) - 5' Fixture Center",null,"S30",38,34.463111111111111,0,0.75,86.96,22.09,36,1,40,1,200,null,"LED PL (100W-250W)|289",156]
[null,5030.0600000000004,"LED Refrigerated Caselight (Vertical) - 5' Fixture End",null,"S30",38,34.463111111111111,0,0.75,86.96,22.09,36,1,40,1,200,null,"LED PL (250W-400W)|769",306]
[null,5030.07,"LED Refrigerated Caselight (Vertical) - 6' Fixture Center",null,"S30",38,35.466611111111106,0,0.75,87.97,25.73,40,1,40,1,200,null,"LED PL (50W-100W)|215",80]
[null,5030.08,"LED Refrigerated Caselight (Vertical) - 6' Fixture End",null,"S30",38,35.466611111111106,0,0.75,87.97,25.73,40,1,40,1,200,null,"LED R",38]
[null,null,null,null,null,null,null,null,null,null,null,null,null,null,null,null,null,"LED Retrofit Kit 1x4<40W",26]
[null,5032.01,"LED Refrigerated Caselight (Horizontal) - 3' Fixture",null,"S32",7,61.245000000000005,0,1,{"$f":"ROUND((G76-H76)+I76*$N$2,2)","v":131.25},18.54,84,1,75,1,200,null,"LED Retrofit Kit 1x4>=40W",49]
[null,5032.0200000000004,"LED Refrigerated Caselight (Horizontal) - 4' Fixture",null,"S32",10,45.397500000000001,0,1,{"$f":"ROUND((G77-H77)+I77*$N$2,2)","v":115.4},16.79,30,1,100,1,200,null,"LED Retrofit Kit 2x2<40W",28]
[null,5032.03,"LED Refrigerated Caselight (Horizontal) - 5' Fixture",null,"S32",12,48.072499999999998,0,1,{"$f":"ROUND((G78-H78)+I78*$N$2,2)","v":118.07},22.09,36,1,125,1,200,null,"LED Retrofit Kit 2x2>=40W",46]
[null,5032.04,"LED Refrigerated Caselight (Horizontal) - 6' Fixture",null,"S32",14,57.422499999999999,0,1,{"$f":"ROUND((G79-H79)+I79*$N$2,2)","v":127.42},25.73,40,1,150,1,200,null,"LED Retrofit Kit 2x4<50W",36]
[null,null,null,null,null,null,null,null,null,null,null,null,null,null,null,null,null,"LED Retrofit Kit 2x4>=50W",53]
[null,5040.01,"Candelabra",null,"S40","N/A","N/A","N/A","N/A","N/A",4,1.99,0.18,"N/A",7,7,null,"LED RH",2.4]
[null,5040.0200000000004,"R20",null,"S40","N/A","N/A","N/A","N/A","N/A",7,2.35,0.18,"N/A",7,7,null,"LED SL (<50W)|179",40]
[null,5040.03,"MR16",null,"S40","N/A","N/A","N/A","N/A","N/A",6,2.7,0.18,"N/A",9,9,null,"LED SL (100W-250W)|289",156]
[null,5040.04,"Globe",null,"S40","N/A","N/A","N/A","N/A","N/A",5.5,2.75,0.18,"N/A",9,9,null,"LED SL (250W-400W)|769",306]
[null,5040.05,"PAR16",null,"S40","N/A","N/A","N/A","N/A","N/A",6.5,2.6,0.18,"N/A",12,12,null,"MH - 1000W",1077]
[null,5040.0600000000004,"PAR20",null,"S40","N/A","N/A","N/A","N/A","N/A",5.5,2.95,0.18,"N/A",12,12,null,"MH - 100W",128]
[null,5040.07,"PAR30",null,"S40","N/A","N/A","N/A","N/A","N/A",10,4.5999999999999996,0.18,"N/A",22,22,null,"MH - 150W",190]
[null,5040.08,"PAR38",null,"S40","N/A","N/A","N/A","N/A","N/A",12.5,6,0.18,"N/A",22,22,null,"MH - 175W",215]
[null,5040.09,"BR30",null,"S40","N/A","N/A","N/A","N/A","N/A",9,2.65,0.18,"N/A",0.1,50,null,"MH - 200W",232]
[null,5040.1000000000004,"BR40",null,"S40","N/A","N/A","N/A","N/A","N/A",11.5,4.5,0.18,"N/A",0.1,50,null,"MH - 250W",288]
[null,null,null,null,null,null,null,null,null,null,null,null,null,null,null,null,null,"MH - 400W",458]
[null,5009.01,"Candelabra",null,"S09","N/A","N/A","N/A","N/A","N/A",4,1.99,0.18,"N/A",7,7,null,"PSMH - 100W",118]
[null,5009.0200000000004,"R20",null,"S09","N/A","N/A","N/A","N/A","N/A",7,2.35,0.18,"N/A",7,7,null,"PSMH - 150W",170]
[null,5009.03,"MR16",null,"S09","N/A","N/A","N/A","N/A","N/A",6,2.7,0.18,"N/A",9,9,null,"PSMH - 200W",219]
[null,5009.04,"Globe",null,"S09","N/A","N/A","N/A","N/A","N/A",5.5,2.75,0.18,"N/A",9,9,null,"PSMH - 320W",349]
[null,5009.05,"PAR16",null,"S09","N/A","N/A","N/A","N/A","N/A",6.5,2.6,0.18,"N/A",12,12,null,"PSMH - 400W",435]
[null,5009.0600000000004,"PAR20",null,"S09","N/A","N/A","N/A","N/A","N/A",5.5,2.95,0.18,"N/A",12,12,null,"Replacement Lamps for High-Bay <120W",105]
[null,5009.07,"PAR30",null,"S09","N/A","N/A","N/A","N/A","N/A",10,4.5999999999999996,0.18,"N/A",22,22,null,"Replacement Lamps for High-Bay >=120W",138]
[null,5009.08,"PAR38",null,"S09","N/A","N/A","N/A","N/A","N/A",12.5,6,0.18,"N/A",22,22,null,"Replacement Lamps for Low-Bay <80W",57]
[null,5009.09,"BR30",null,"S09","N/A","N/A","N/A","N/A","N/A",9,2.65,0.18,"N/A",0.1,50,null,"Replacement Lamps for Low-Bay >=80W",99]
[null,5009.1000000000004,"BR40",null,"S09","N/A","N/A","N/A","N/A","N/A",11.5,4.5,0.18,"N/A",0.1,50,null,"Replacement Lamps Type A <50W",40]
[null,null,null,null,null,null,null,null,null,null,null,null,null,null,null,null,null,"Replacement Lamps Type A >=50W",143]
[null,5051.01,"LED 2x2 Recessed Fixture <40W",null,"S51",31,50.867609563014568,0,0.5,{"$f":"ROUND((G103-H103)+I103*$N$2,2)","v":85.87},30,32,0.5,60,0.1,39.99,null,"Retrofit Kit for LED Direct Linear Ambient Luminaires <50W",33]
[null,5051.0200000000004,"LED 2x2 Recessed Fixture >=40W",null,"S51",47,63.577500000000001,0,0.5,98.58,40,34.950000000000003,0.5,60,40,2000,null,"Retrofit Kit for LED Direct Linear Ambient Luminaires ≥ 50W <100W",69]
[null,5051.03,"LED 2x4 Recessed Fixture <50W",null,"S51",39,96.479633027522937,0,0.5,131.47999999999999,40,52,0.5,60,0.1,49.99,null,"Retrofit Kit for LED Direct Linear Ambient Luminaires ≥100W",124]
[null,5051.04,"LED 2x4 Recessed Fixture >=50W",null,"S51",64,79.622715909090914,0,0.5,114.62,50,54,0.5,60,50,2000,null,"Stairwell and Passageway Luminaires >30 W",54]
[null,5051.05,"LED 1x4 Recessed Fixture <40W",null,"S51",31,75.640476190476193,0,0.5,110.64,32.299999999999997,40,0.5,60,0.1,39.99,null,"Stairwell and Passageway Luminaires ≤ 30W",23]
[null,5051.0600000000004,"LED 1x4 Recessed Fixture >=40W",null,"S51",47,70.029000000000011,0,0.5,105.03,40,37.5,0.5,60,40,2000,null,"T12 - 1-Lamp 4' T12",41.7]
[null,null,null,null,null,null,null,null,null,null,null,null,null,null,null,null,null,"T12 - 1-Lamp 4' T12 HO",84]
[null,5052.01,"Integrated Retrofit Kit for LED 2x2 Interior Fixture <40W",null,"S52",28,71.683859649122809,0,0.5,{"$f":"ROUND((G110-H110)+I110*$N$2,2)","v":106.68},23,53,0.75,50,0.1,39.99,null,"T12 - 1-Lamp 5' T12 HO",97]
[null,5052.0200000000004,"Integrated Retrofit Kit for LED 2x2 Interior Fixture >=40W",null,"S52",46,89.944999999999993,0,0.5,{"$f":"ROUND((G111-H111)+I111*$N$2,2)","v":124.95},44.9,90,0.75,50,40,2000,null,"T12 - 1-Lamp 6' T12 HO",113]
[null,5052.03,"Integrated Retrofit Kit for LED 2x4 Interior Fixture <25W",null,"S52","N/A","N/A","N/A","N/A","N/A","TBD","TBD",0.75,"N/A",null,null,null,"T12 - 1-Lamp 8' T12",60.3]
[null,5052.04,"Integrated Retrofit Kit for LED 2x4 Interior Fixture 25 - <50W",null,"S52","N/A","N/A","N/A","N/A","N/A","TBD","TBD",0.75,"N/A",null,null,null,"T12 - 2-Lamp 4' T12",70.7]
[null,5052.05,"Integrated Retrofit Kit for LED 2x4 Interior Fixture <50W",null,"S52",36,82.938127677806349,0,0.5,{"$f":"ROUND((G114-H114)+I114*$N$2,2)","v":117.94},"N/A","N/A","N/A",50,0.1,49.99,null,"T12 - 2-Lamp 4' T12 HO",131]
[null,5052.0600000000004,"Integrated Retrofit Kit for LED 2x4 Interior Fixture >=50W",null,"S52",53,94.419999999999987,0,0.5,129.41999999999999,55.98,96,0.75,50,50,2000,null,"T12 - 2-Lamp 5' T12 HO",170]
[null,5052.07,"Integrated Retrofit Kit for LED 1x4 Interior Fixture <40W",null,"S52",26,101.17022222222224,0,0.5,136.16999999999999,25,94,0.75,50,0.1,39.99,null,"T12 - 2-Lamp 6' T12 HO",193]
[null,5052.08,"Integrated Retrofit Kit for LED 1x4 Interior Fixture >=40W",null,"S52",49,105.22999999999999,0,0.5,140.22999999999999,49.39,95,0.75,50,40,2000,null,"T12 - 2-Lamp 8' T12",120.6]
[null,5052.09,"Linear Retrofit Kit for LED 2x2 Interior Fixture <40W",null,"S52",28,47.123790780141846,0,0.5,82.12,20,47.5,0.5,50,0.1,39.99,null,"T12 - 2-Lamp 8' T12 HO",197.9]
[null,5052.1000000000004,"Linear Retrofit Kit for LED 2x2 Interior Fixture >=40W",null,"S52",46,71.522499999999994,0,0.5,106.52,40,59.5,0.5,50,40,2000,null,"T12 - 2-Lamp U T12",72.5]
[null,5052.1099999999997,"Linear Retrofit Kit for LED 2x4 Interior Fixture <25W",null,"S52","N/A","N/A","N/A","N/A","N/A",23.9,49,0.5,"N/A",null,null,null,"T12 - 3-Lamp 4' T12",112.3]
[null,5052.12,"Linear Retrofit Kit for LED 2x4 Interior Fixture 25 - <50W",null,"S52","N/A","N/A","N/A","N/A","N/A",30.1,53,0.5,"N/A",null,null,null,"T12 - 4-Lamp 4' T12",141.19999999999999]
[null,5052.13,"Linear Retrofit Kit for LED 2x4 Interior Fixture <50W",null,"S52",36,62.321403197158077,0,0.5,{"$f":"ROUND((G122-H122)+I122*$N$2,2)","v":97.32},"N/A","N/A","N/A",50,0.1,49.99,null,"T5 - 10-Lamp 4' T5 HO",588]
[null,5052.1400000000003,"Linear Retrofit Kit for LED 2x4 Interior Fixture  >=50W",null,"S52",53,66.319000000000003,0,0.5,{"$f":"ROUND((G123-H123)+I123*$N$2,2)","v":101.32},50.1,59.5,0.5,50,50,2000,null,"T5 - 1-Lamp 4' T5",32]
[null,5052.1499999999996,"Linear Retrofit Kit for LED 1x4 Interior Fixture <40W",null,"S52",26,47.162500000000001,0,0.5,{"$f":"ROUND((G124-H124)+I124*$N$2,2)","v":82.16},20.100000000000001,49,0.5,50,0.1,39.99,null,"T5 - 1-Lamp 4' T5 HO",56]
[null,5052.16,"Linear Retrofit Kit for LED 1x4 Interior Fixture  >=40W",null,"S52",49,74.47,0,0.5,{"$f":"ROUND((G125-H125)+I125*$N$2,2)","v":109.47},"N/A","N/A","N/A",50,40,2000,null,"T5 - 2-Lamp 4' T5",63]
[null,null,null,null,null,null,null,null,null,null,null,null,null,null,null,null,null,"T5 - 2-Lamp 4' T5 HO",117]
[null,5061.01,"LED High/Low Bay Fixture <70W",null,"S61","N/A","N/A","N/A","N/A","N/A",40,65,1.5,"N/A",null,null,null,"T5 - 3-Lamp 4' T5 HO",177]
[null,5061.0200000000004,"LED High/Low Bay Fixture 70 - <100W",null,"S61","N/A","N/A","N/A","N/A","N/A",90,89,1.5,"N/A",null,null,null,"T5 - 4-Lamp 4' T5 HO",234]
[null,5061.03,"LED High/Low Bay Fixture <100W",null,"S61",74,120.27913636363635,0,1,{"$f":"ROUND((G129-H129)+I129*$N$2,2)","v":190.28},"N/A","N/A","N/A",90,0.1,99.99,null,"T5 - 5-Lamp 4' T5 HO",294]
[null,5061.04,"LED High/Low Bay Fixture >=100 - <150W",null,"S61",123,150.36742775831874,0,1,{"$f":"ROUND((G130-H130)+I130*$N$2,2)","v":220.37},105,100,1.5,100,100,149.99,null,"T5 - 6-Lamp 4' T5 HO",351]
[null,5061.05,"LED High/Low Bay Fixtures >=150 - <200W",null,"S61",170,159.86715601965602,0,1,{"$f":"ROUND((G131-H131)+I131*$N$2,2)","v":229.87},162,112,1.5,100,150,199.99,null,"T5 - 8-Lamp 4' T5 HO",468]
[null,5061.0600000000004,"LED High/Low Bay Fixtures >=200 - <300W",null,"S61",233,211.62226923076923,0,1,{"$f":"ROUND((G132-H132)+I132*$N$2,2)","v":281.62},210,165,1.5,170,200,299.99,null,"T8 - 10-Lamp 4' HPT8",279]
[null,5061.07,"LED High/Low Bay Fixtures >=300W",null,"S61",418,279.27525000000003,0,1,{"$f":"ROUND((G133-H133)+I133*$N$2,2)","v":349.28},321,230,1.5,200,300,2000,null,"T8 - 1-Lamp 2' HPT8",17]
[null,null,null,null,null,null,null,null,null,null,null,null,null,null,null,null,null,"T8 - 1-Lamp 4' HPT8",28]
[null,5062.01,"LED High/Low Bay Retrofit Kit <150W",null,"S62",108,145.17408510638299,0,1,{"$f":"ROUND((G135-H135)+I135*$N$2,2)","v":215.17},89.4,99,1.5,100,0.1,149.99,null,"T8 - 1-Lamp 4' HPT8 (25&28 Watts)",24]
[null,5062.0200000000004,"LED High/Low Bay Retrofit Kit >=150W",null,"S62",180,212.89,0,1,{"$f":"ROUND((G136-H136)+I136*$N$2,2)","v":282.89},151.6,210,1.5,140,150,2000,null,"T8 - 1-Lamp 4' HPT8 HIGH LMN",39]
[null,null,null,null,null,null,null,null,null,null,null,null,null,null,null,null,null,"T8 - 1-Lamp 4' HPT8 LOW PWR",25]
[null,5064.03,"LED Low Bay Replacement Lamps <80W w/new driver - Type B/C",null,"S64","N/A","N/A","N/A","N/A","N/A",58.9,82,1,"N/A",null,null,null,"T8 - 1-Lamp 4' T8",31]
[null,5064.04,"LED Low Bay Replacement Lamps >=80W w/new driver - Type B/C",null,"S64","N/A","N/A","N/A","N/A","N/A",81.31,118,1,"N/A",null,null,null,"T8 - 1-Lamp 4' T8 HO",53]
[null,5064.05,"LED High Bay Replacement Lamps <120W w/new driver - Type B/C",null,"S64","N/A","N/A","N/A","N/A","N/A",81.31,118,1,"N/A",null,null,null,"T8 - 1-Lamp 5' T8 HO",62]
[null,5064.0600000000004,"LED High Bay Replacement Lamps >=120W w/new driver - Type B/C",null,"S64","N/A","N/A","N/A","N/A","N/A",127,131,1,"N/A",null,null,null,"T8 - 1-Lamp 6' T8 HO",80]
[null,null,null,null,null,null,null,null,null,null,null,null,null,null,null,null,null,"T8 - 2-Lamp 2' HPT8",37]
[null,5070.01,"Stairwell and Passageway Luminaires ≤ 30W",null,"S70",23,121.11331818181819,0,0.75,{"$f":"ROUND((G143-H143)+I143*$N$2,2)","v":173.61},"N/A","N/A","N/A",90,0.1,30,null,"T8 - 2-Lamp 4' HPT8",53]
[null,5070.0200000000004,"Stairwell and Passageway Luminaires >30 W",null,"S70",54,134.61500000000001,0,0.75,{"$f":"ROUND((G144-H144)+I144*$N$2,2)","v":187.12},"N/A","N/A","N/A",140,30.1,2000,null,"T8 - 2-Lamp 4' HPT8 (25&28 Watts)",44]
[null,null,null,null,null,null,null,null,null,null,null,null,null,null,null,null,null,"T8 - 2-Lamp 4' HPT8 HIGH LMN",78]
[null,5081.01,"Linear Ambient <30W (4' Strip)",null,"S81","N/A","N/A","N/A","N/A","N/A",26,39.950000000000003,0.5,"N/A",null,null,null,"T8 - 2-Lamp 4' HPT8 LOW PWR",47]
[null,5081.0200000000004,"Linear Ambient <30W (2' Wrap)",null,"S81","N/A","N/A","N/A","N/A","N/A",20,29,0.5,"N/A",null,null,null,"T8 - 2-Lamp 4' T8",59]
[null,5081.03,"Linear Ambient <30W (4' Wrap)",null,"S81","N/A","N/A","N/A","N/A","N/A",22,47,0.5,"N/A",null,null,null,"T8 - 2-Lamp 4' T8 HO",100]
[null,5081.04,"Linear Ambient 30 - <50W (4' Strip)",null,"S81","N/A","N/A","N/A","N/A","N/A",40,43,0.5,"N/A",null,null,null,"T8 - 2-Lamp 5' T8 HO",116]
[null,5081.05,"Linear Ambient 30 - <50W (4' Wrap)",null,"S81","N/A","N/A","N/A","N/A","N/A",40,43,0.5,"N/A",null,null,null,"T8 - 2-Lamp 6' T8 HO",136]
[null,5081.0600000000004,"Linear Ambient 50-100W (54W 8' Strip)",null,"S81","N/A","N/A","N/A","N/A","N/A",54,76,0.75,"N/A",null,null,null,"T8 - 2-Lamp U T8",60]
[null,5081.07,"Linear Ambient 50-100W (65W 8' Strip)",null,"S81","N/A","N/A","N/A","N/A","N/A",65,76,0.75,"N/A",null,null,null,"T8 - 3-Lamp 2' HPT8",53]
[null,5081.09,"Linear Ambient <50W (Strip)",null,"S81",35,130.4937983706721,0,0.5,{"$f":"ROUND((G153-H153)+I153*$N$2,2)","v":165.49},"N/A","N/A","N/A",50,0.1,49.99,null,"T8 - 3-Lamp 4' HPT8",77]
[null,5081.1000000000004,"Linear Ambient <50W (Wrap)",null,"S81",35,67.693849337748347,0,0.5,{"$f":"ROUND((G154-H154)+I154*$N$2,2)","v":102.69},"N/A","N/A","N/A",50,0.1,49.99,null,"T8 - 3-Lamp 4' HPT8 (25&28 Watts)",67]
[null,5081.1099999999997,"Linear Ambient 50-100W",null,"S81",71,145.99992464204976,0,0.5,{"$f":"ROUND((G155-H155)+I155*$N$2,2)","v":181},"N/A","N/A","N/A",75,50,100,null,"T8 - 3-Lamp 4' HPT8 HIGH LMN",112]
[null,5081.12,"Linear Ambient >100W",null,"S81",122,227.66750000000002,0,0.5,{"$f":"ROUND((G156-H156)+I156*$N$2,2)","v":262.67},"N/A","N/A","N/A",125,100.1,2000,null,"T8 - 3-Lamp 4' HPT8 LOW PWR",73]
[null,null,null,null,null,null,null,null,null,null,null,null,null,null,null,null,null,"T8 - 3-Lamp 4' T8",89]
[null,5082.01,"Retrofit Kit for LED Direct Linear Ambient Luminaires <50W",null,"S82",32,75.278270718232037,0,0.5,{"$f":"ROUND((G158-H158)+I158*$N$2,2)","v":110.28},23,52,0.5,50,0.1,49.99,null,"T8 - 4-Lamp 2' HPT8",62]
[null,5082.0200000000004,"Retrofit Kit for LED Direct Linear Ambient Luminaires >= 50W - <100W",null,"S82",69,94.254888888888885,0,0.5,{"$f":"ROUND((G159-H159)+I159*$N$2,2)","v":129.25},65,74,0.75,70,50,99.99,null,"T8 - 4-Lamp 4' HPT8",101]
[null,5082.03,"Retrofit Kit for LED Direct Linear Ambient Luminaires >=100W",null,"S82",124,271.625,0,0.5,{"$f":"ROUND((G160-H160)+I160*$N$2,2)","v":306.63},122.9,190,0.75,120,100,2000,null,"T8 - 4-Lamp 4' HPT8 (25&28 Watts)",88]
[null,null,null,null,null,null,null,null,null,null,null,null,null,null,null,null,null,"T8 - 4-Lamp 4' HPT8 HIGH LMN",156]
[null,5110.01,"2' LED Lamp T8/Type A (1 lamp)",null,"S110","N/A","N/A","N/A","N/A","N/A",10,6.5,0.25,"N/A",null,null,null,"T8 - 4-Lamp 4' HPT8 LOW PWR",93]
[null,5110.0200000000004,"2' LED Lamp T8/Type A (2 lamps)",null,"S110","N/A","N/A","N/A","N/A","N/A",20,13,0.33,"N/A",null,null,null,"T8 - 4-Lamp 4' T8",112]
[null,5110.03,"2' LED Lamp T8/Type A (3 lamps)",null,"S110","N/A","N/A","N/A","N/A","N/A",30,19.5,0.42,"N/A",null,null,null,"T8 - 6-Lamp 4' HPT8",154]
[null,5110.04,"2' LED Lamp T8/Type A (4 lamps)",null,"S110","N/A","N/A","N/A","N/A","N/A",40,26,0.5,"N/A",null,null,null,"T8 - 6-Lamp 4' HPT8 HIGH LMN",224]
[null,5110.05,"4' LED Lamp T8/Type A (1 lamp)",null,"S110","N/A","N/A","N/A","N/A","N/A",15,4.25,0.25,"N/A",null,null,null,"T8 - 6-Lamp 4' HPT8 LOW PWR",134]
[null,5110.0600000000004,"4' LED Lamp T8/Type A (2 lamps)",null,"S110","N/A","N/A","N/A","N/A","N/A",30,8.5,0.33,"N/A",null,null,null,"T8 - 8-Lamp 4' HPT8",202]
[null,5110.07,"4' LED Lamp T8/Type A (3 lamps)",null,"S110","N/A","N/A","N/A","N/A","N/A",45,12.75,0.42,"N/A",null,null,null,"T9 - Circline Fuorescent",32]
[null,5110.08,"4' LED Lamp T8/Type A (4 lamps)",null,"S110","N/A","N/A","N/A","N/A","N/A",60,17,0.5,"N/A"]
[null,5110.09,"4' LED Lamp T8 Higher Output/Type A (1 lamp)",null,"S110","N/A","N/A","N/A","N/A","N/A",17,5.25,0.25,"N/A"]
[null,5110.1000000000004,"4' LED Lamp T8 Higher Output/Type A (2 lamps)",null,"S110","N/A","N/A","N/A","N/A","N/A",34,10.5,0.33,"N/A"]
[null,5110.1099999999997,"4' LED Lamp T8 Higher Output/Type A (3 lamps)",null,"S110","N/A","N/A","N/A","N/A","N/A",51,15.75,0.42,"N/A"]
[null,5110.12,"4' LED Lamp T8 Higher Output/Type A (4 lamps)",null,"S110","N/A","N/A","N/A","N/A","N/A",68,21,0.5,"N/A"]
[null,5110.13,"2' LED Lamp T8/Type C Kit (1 Lamp/1 external driver)",null,"S110","N/A","N/A","N/A","N/A","N/A",9,18.05,0.25,"N/A"]
[null,5110.1400000000003,"2' LED Lamp T8/Type C Kit (2 Lamps/1 external driver)",null,"S110","N/A","N/A","N/A","N/A","N/A",18,23.55,0.33,"N/A"]
[null,5110.1499999999996,"2' LED Lamp T8/Type C Kit (3 Lamps/1 external driver)",null,"S110","N/A","N/A","N/A","N/A","N/A",27,34.549999999999997,0.42,"N/A"]
[null,5110.16,"2' LED Lamp T8/Type C Kit (4 Lamps/1external driver)",null,"S110","N/A","N/A","N/A","N/A","N/A",36,40,0.5,"N/A"]
[null,5110.17,"4' LED Lamp T8/Type C Kit (1 Lamp/1 external driver)",null,"S110","N/A","N/A","N/A","N/A","N/A",13,18.05,0.25,"N/A"]
[null,5110.18,"4' LED Lamp T8/Type C Kit (2 Lamps/1 external driver)",null,"S110","N/A","N/A","N/A","N/A","N/A",26,23.55,0.33,"N/A"]
[null,5110.1899999999996,"4' LED Lamp T8/Type C Kit (3 Lamps/1 external driver)",null,"S110","N/A","N/A","N/A","N/A","N/A",39,34.549999999999997,0.42,"N/A"]
[null,5110.2,"4' LED Lamp T8/Type C Kit (4 Lamps/1external driver)",null,"S110","N/A","N/A","N/A","N/A","N/A",52,40,0.5,"N/A"]
[null,5110.21,"4' LED Lamp T5/Type A (1 lamp)",null,"S110","N/A","N/A","N/A","N/A","N/A",16,9.4499999999999993,0.25,"N/A"]
[null,5110.22,"4' LED Lamp T5/Type A (2 lamps)",null,"S110","N/A","N/A","N/A","N/A","N/A",32,18.899999999999999,0.33,"N/A"]
[null,5110.2299999999996,"4' LED Lamp T5/Type A (3 lamps)",null,"S110","N/A","N/A","N/A","N/A","N/A",48,28.349999999999998,0.42,"N/A"]
[null,5110.24,"4' LED Lamp T5/Type A (4 lamps)",null,"S110","N/A","N/A","N/A","N/A","N/A",64,37.799999999999997,0.5,"N/A"]
[null,5110.25,"4' LED Lamp T5HO/Type A (1 lamp)",null,"S110","N/A","N/A","N/A","N/A","N/A",28.5,9.4499999999999993,0.25,"N/A"]
[null,5110.26,"4' LED Lamp T5HO/Type A (2 lamp)",null,"S110","N/A","N/A","N/A","N/A","N/A",57,18.899999999999999,0.33,"N/A"]
[null,5110.2700000000004,"4' LED Lamp T5HO/Type A (3 lamp)",null,"S110","N/A","N/A","N/A","N/A","N/A",85.5,28.349999999999998,0.42,"N/A"]
[null,5110.28,"4' LED Lamp T5HO/Type A (4 lamp)",null,"S110","N/A","N/A","N/A","N/A","N/A",114,37.799999999999997,0.5,"N/A"]
[null,5110.29,"4' LED Lamp T5HO/Type A (5 lamp)",null,"S110","N/A","N/A","N/A","N/A","N/A",142.5,47.25,0.63,"N/A"]
[null,5110.3,"4' LED Lamp T5HO/Type A (6 lamp)",null,"S110","N/A","N/A","N/A","N/A","N/A",171,56.699999999999996,0.75,"N/A"]
[null,5110.3100000000004,"4' LED Lamp T8 U-Bend/Type A (1 lamp)",null,"S110","N/A","N/A","N/A","N/A","N/A",18,11.5,0.25,"N/A"]
[null,5110.3200000000097,"4' LED Lamp T8 U-Bend/Type A (2 lamps)",null,"S110","N/A","N/A","N/A","N/A","N/A",36,23,0.33,"N/A"]
[]
[null,7050.01,"Cooler Case Mounted Occupancy Sensor For LED Fixtures",null,"L50","N/A",49.25,0,0.5,{"$f":"ROUND((G195-H195)+I195*$N$2,2)","v":84.25},"N/A",99,0.55000000000000004,30]
[null,7060.01,"Fixture Mounted Occupancy Sensor",null,"L60","N/A",22.19734299516908,0,0.5,{"$f":"ROUND((G196-H196)+I196*$N$2,2)","v":57.2},"N/A",49,0.55000000000000004,35]
[null,7070.01,"Remote Mounted Occupancy Sensor",null,"L70","N/A",53.240383647798744,0,1,{"$f":"ROUND((G197-H197)+I197*$N$2,2)","v":123.24},"N/A",45,0.73,60]
[null,7071.01,"Vacancy Sensor",null,"L71","N/A",43.407333333333334,0,1,{"$f":"ROUND((G198-H198)+I198*$N$2,2)","v":113.41},"N/A",17.5,0.73,30]
[]
[null,null,"Interior Occupancy Sensor Power Supply (power pack)",null,"-","N/A","N/A","N/A","N/A","N/A","N/A",35,0.18,"N/A"]
[null,null,"Photo cell",null,"-","N/A","N/A","N/A","N/A","N/A","N/A","N/A","N/A","N/A"]
[null,null,"1-lamp HPT8 Ballast for Type A Lamps",null,null,"N/A","N/A","N/A","N/A","N/A","N/A",9.5,0.18,"N/A"]
[null,null,"2-lamp HPT8 Ballast for Type A Lamps",null,null,"N/A","N/A","N/A","N/A","N/A","N/A",9.5,0.18,"N/A"]
[null,null,"3-lamp HPT8 Ballast for Type A Lamps",null,null,"N/A","N/A","N/A","N/A","N/A","N/A",10,0.18,"N/A"]
[null,null,"4-lamp HPT8 Ballast for Type A Lamps",null,null,"N/A","N/A","N/A","N/A","N/A","N/A",10.5,0.18,"N/A"]
[null,null,"1-lamp T5 Ballast for Type A Lamps",null,null,"N/A","N/A","N/A","N/A","N/A","N/A",28,0.18,"N/A"]
[null,null,"2-lamp T5 Ballast for Type A Lamps",null,null,"N/A","N/A","N/A","N/A","N/A","N/A",22,0.18,"N/A"]
[null,null,"2-lamp T5HO Ballast for Type A Lamps",null,null,"N/A","N/A","N/A","N/A","N/A","N/A",32,0.18,"N/A"]
[null,null,"4-lamp T5HO Ballast for Type A Lamps",null,null,"N/A","N/A","N/A","N/A","N/A","N/A",44,0.18,"N/A"]
[null,null,"Emergency Driver/Battery Backup Unit",null,null,"N/A","N/A","N/A","N/A","N/A","N/A",72,0.18,"N/A"]
[null,null,"S23 LED Flood/Spot Lights <100W - Trunnion Mount",null,null,"N/A","N/A","N/A","N/A","N/A","N/A",10,0,"N/A"]
[]
[null,null,"Emergency Driver/Battery Backup Unit",null,null,"N/A","N/A","N/A","N/A","N/A","N/A",99,0.18,"N/A"]
[]
[]
[null,null,"[1] C&I Prescriptive parameter values are deemed based on analysis of program data.  They represent expected weighted averages for each measure type."]
[null,null,"[2] Small Business Direct Install parameter values reflect specific products included in the program."]
[]
[null,null,"Note 1: Baseline cost is based on the installed cost (material plus labor) of a single standard-efficiency fixture (one-for-one)."]
[null,null,"Note 2: Because the existing lamp has an expected life of less than 1 year, the replacement cost of the existing lamp type is assumed for the installed cost: baseline."]

{"sheet":"Revisions","index":16,"n_rows":25,"n_cols":2,"rows_kept":25,"cut":false,"hidden":true,"merged":[]}
["Date","Change"]
["2019-07-09","Program reminders added, S21 wattage range expanded, F9 tip banner added to all tabs, sub-location added"]
["2020-01-01","Added T5 6-lamp baseline wattage"]
["2020-01-01","Added expanding locations and measures"]
["2020-01-01","Corrected range for measure name lookup"]
["2020-01-01","converted MMBtu to Therms on effRT upload template"]
["2020-01-01","Modified effRT Enrollment Upload and effRT Support to use indirect referencing eliminating custom formulas - improved ease of maintenance"]
["2020-01-01","Reapplied conditional formatting on Project Information and Project Scope tabs"]
["2020-01-01","Defaulted Unique Location/Space Description to \" \" to avoid drop down defaulting to end of list on blank cells - work around to an Excel quirk"]
["2020-03-04","Savings summary limited to only cost-effective measures"]
["2020-12-21","Added sales tax exemption option"]
["2021-03-12","Corrected tax exempt application on BOM\nRemoved Unknown fuel type option"]
["2021-06-08","Corrected installed qty for contol only measures to be 0, this will force effRT to calculate savings on existing measures correctly"]
["2021-12-16","PUC approved T&D added"]
["2022-05-06","Merged CLIC and SLIC functionality.  Selection is made under \"Pathway\" on Project Information. Actual costs and wattage required for both pathways.  Incentives set independently on Other Data tab. (Note that separate incentives for projects with financing is NOT supported).\nSeparate SOW tab added for SB. Logic added to only display the applicable SOW tab.\nAdded \"Generate New Reference Number\" button to allow for resetting the number if switching between CLIC and SLIC.\nRemoved FR incentives as a cost option."]
["2022-06-09","Final PY23Q1 master"]
["2022-07-19","Revised Emera option for Utility Provider to \"Versant (formerly Emera Maine)\""]
["2023-01-01","Revised P4P incentive from $0.30/kWh, 80% to $0.28/kWh, 65%"]
["2023-07-01","Updated to PY24Q1 Master, revised password"]
["2023-07-10","Changed Small Business pathway Program Code to SBL"]
["2023-12-21","Updated PY24Q3 Master, Removed Controls"]
["2024-04-01","Updated PY24Q4 Master"]
["2024-06-06","Updated PY25Q1 Master, Reduced P4P incentive cap to 50%"]
["2025-03-26","Changed Additional Labor Hours to non-measure cost"]
["2025-07-01","PY26 template, updated password protection; Removed S21 LED downlight measure; Added Heat Pump baseline; Updated AESC avoided cost to 2024"]

{"sheet":"HOU - Facility Space Type","index":17,"n_rows":126,"n_cols":32,"rows_kept":126,"cut":false,"hidden":true,"merged":[[0,0,2,0],[0,1,0,31],[1,1,1,3],[1,4,1,6],[1,7,1,10],[1,11,1,13],[1,14,1,17],[1,18,1,19],[1,20,1,31]]}
["Space Type","Facility Type"]
[null,"Health",null,null,"Lodging_or_Residences",null,null,"Manufacturing_or_Industrial",null,null,null,"Dining_or_Drinking",null,null,"Retail",null,null,null,"Schools",null,"All_Others"]
[null,"Healthcare_Hospital","Healthcare_Outpatient","Healthcare_Assisted","Apartments_5_or_More_Units","Hotel_or_Motel","University_Dormitory","Manufacturing_1_shift","Manufacturing_2_shifts","Manufacturing_3_shifts","Other_Industrial_USER_DEFINED","Restaurant_Fast_Food","Restaurant_Casual_Dining","Bar_or_Lounge","General_Retail","Convenience_Store","Chain_Stores","Grocery_Store","K12_School","University ","Office_Building","Assembly","Family_Entertainment_Center","Movie_Theater","Fitness_Center","Religious ","Warehouse","Automotive_Facility_Sales_and_Service","Correctional","Fire_Police_or_Public_Safety","Municipal_or_Government","Other_Commercial_USER_DEFINED"]
["Assembly",2080,"N/A",2912,"N/A","N/A",600,"N/A","N/A","N/A",null,"N/A","N/A","N/A","N/A","N/A","N/A","N/A",1600,2400,2040,1064,1952,1954,5836,1955,"N/A",4056,5477,1872,2400]
["Break Room",5096,2550,3640,"N/A",2912,1600,1257,2514,3771,null,2496,2496,2496,1802,1802,2514,2514,1303,1303,1829,884,1561.6000000000001,1456,2514,391,2918,1257,2912,7655,2400]
["Cafeteria",3640,2550,3640,"N/A",3640,"N/A","N/A","N/A","N/A",null,"N/A","N/A","N/A","N/A","N/A","N/A","N/A",2356,3024,2550,375,"N/A","N/A","N/A","N/A",1775,"N/A",3640,"N/A","N/A"]
["Classroom","N/A","N/A","N/A","N/A","N/A","N/A","N/A","N/A","N/A",null,"N/A","N/A","N/A",4842,4842,"N/A","N/A",1429,1800,"NA",596,"N/A","N/A","N/A",715,"N/A","N/A",900,"N/A","N/A"]
["Conference",675,2040,2600,"N/A",2550,480,1671,3342,5013,null,"N/A","N/A","N/A",1018,1018,3342,3342,1221,1800,971,488,1456,1456,624,600,1277,1671,2184,1456,1680]
["Dining",3640,"N/A",3640,"N/A",3640,"N/A","N/A","N/A","N/A",null,4452,3120,3213,"N/A","N/A","N/A","N/A","N/A","N/A","N/A","N/A",1952,"N/A","N/A",416,"N/A","N/A",3640,2912,960]
["Equipment/Engineering Space",975,1560,1560,"N/A",1560,1680,765,1020,2040,null,2448,2448,2448,2034,2034,2448,2448,1560,2448,2064,707,976,1563.2,1456,1560,2295,780,4368,2184,1560]
["Gym/Fitness",3640,2040,2912,2856,2912,"N/A","N/A","N/A","N/A",null,"N/A","N/A","N/A",6566,6566,"N/A","N/A",2545,3360,"NA",101,"N/A","N/A",5712,"N/A","N/A","N/A",3640,2184,"N/A"]
["Hallway/Corridor",8640,3570,8766,8640,8766,3066,2995,5877,8766,null,4896,3427.2,"N/A",2262,2262,5877,5877,3598,3598,1914,1424,1952,586.19999999999993,3598,1955,2483,2995,8766,7655,2400]
["Kitchen",4368,3120,4368,2912,4368,2240,1936,3872,5808,null,5081,3556.7,3213,1737,1737,3872,3872,1626,1626,3000,1308,1561.6000000000001,1758.6000000000001,"N/A",977.5,1925,1936,5081,3640,"N/A"]
["Library","N/A","N/A",3640,1820,"N/A",3920,"N/A","N/A","N/A",null,"N/A","N/A","N/A","N/A","N/A","N/A","N/A",1767,3024,"N/A",1782,"N/A","N/A","N/A",977.5,"N/A","N/A",3920,"N/A",2400]
["Office_Closed",1291,1291,1291,1785,2250,1671,1620,3240,4860,null,2448,2448,2448,2449,2449,3240,3240,1444,1444,1671,678,1366.3999999999999,586.19999999999993,4377,782,1994,1620,2250,2496,2400]
["Office_Open",2455,2455,2455,1785,2250,2240,2334,4668,7002,null,2448,2448,2448,3417,3417,4668,4668,2338,2338,2378,2734,1561.6000000000001,1563.2,1459,782,2758,2334,2250,3640,2400]
["Other - User defined"]
["Production","N/A","N/A","N/A","N/A","N/A","N/A",2959,5918,8640,null,"N/A","N/A","N/A",2897,2897,5918,5918,"NA","NA",1972,"N/A","N/A","N/A","N/A","N/A",3351,2959,"N/A","N/A","N/A"]
["Restroom",685,685,685,2912,267,685,431,862,1293,null,3212,3212,3212,587,587,862,862,1515,1515,1212,873,1171.2,1563.2,5712,1955,1140,431,3640,3276,1680]
["Retail_Space",2716,"N/A","N/A","N/A","N/A","N/A","N/A","N/A","N/A",null,"N/A","N/A","N/A",4284,4284,4284,4284,"N/A",0,3558,3184,"N/A","N/A","N/A","N/A","N/A",3120,"N/A","N/A","N/A"]
["Storage",984,984,984,1456,17,1420,927,1854,2781,null,3077,510,714,1801,1801,1854,1854,1420,1420,992,401,585.6,728,2918,1560,1516,927,714,2184,960]
["Warehouse","N/A","N/A","N/A","N/A","N/A","N/A","N/A","N/A","N/A",null,"N/A","N/A","N/A",2550,2550,"N/A","N/A","N/A","N/A","N/A","N/A","N/A","N/A",2918,"N/A",2295,4056,"N/A","N/A",1920]
["Lobby or Concierge",8766,3570,8766,8766,8766,5950,2295,2295,2295,null,"N/A","N/A","N/A","N/A","N/A","N/A","N/A","N/A","N/A",3570,"N/A",1952,1954,5836,1955,2295,2295,8766,6124,2400]
["Sleeping/Living Spaces","N/A","N/A",5096,5460,2600,3066,"N/A","N/A","N/A",null,"N/A","N/A","N/A","N/A","N/A","N/A","N/A","N/A","N/A","N/A","N/A","N/A","N/A","N/A","N/A","N/A","N/A",5477,3827.5,"N/A"]
["Nurses_Station",8640,3000,8640,"N/A","N/A","N/A","N/A","N/A","N/A",null,"N/A","N/A","N/A","N/A","N/A","N/A","N/A","N/A","N/A","N/A","N/A","N/A","N/A","N/A","N/A","N/A","N/A","N/A","N/A","N/A"]
["Patient_Rooms",2912,"N/A",2912,"N/A","N/A","N/A","N/A","N/A","N/A",null,"N/A","N/A","N/A","N/A","N/A","N/A","N/A","N/A","N/A","N/A","N/A","N/A","N/A","N/A","N/A","N/A","N/A","N/A","N/A","N/A"]
["Treatment_Rooms",3640,2600,2600,"N/A","N/A","N/A","N/A","N/A","N/A",null,"N/A","N/A","N/A","N/A","N/A","N/A","N/A","N/A","N/A","N/A","N/A","N/A","N/A","N/A","N/A","N/A","N/A","N/A","N/A","N/A"]
["Exterior",4380,4380,4380,4380,4380,4380,4380,4380,4380,4380,4380,4380,4380,4380,4380,4380,4380,4380,4380,4380,4380,4380,4380,4380,4380,4380,4380,4380,4380,4380,4380]
["HLOOKUP support:",1,2,3,4,5,6,7,8,9,10,11,12,13,14,15,16,17,18,19,20,21,22,23,24,25,26,27,28,29,30,31]
[]
["Space types:","Assembly","Break_Room","Cafeteria","Classroom","Conference","Dining","Equipment","Gym","Hallway_or_Corridor","Kitchen","Library","Office_Closed","Office_Open","Other","Production","Restroom","Retail","Storage","Warehouse","Lobby_or_Concierge","Sleeping_or_Living_Spaces","Nurses_Station","Patient_Rooms","Treatment_Rooms",null,null,null,null,"Step 1"]
["Facility Types:","Assembly","Assembly","Assembly","Assembly","Assembly","Hotel/Motel","Assembly","Assembly","Apartments / Condos","Assembly","Assembly","Apartments / Condos","Assembly","Assembly","Manufacturing (1 Shift)","Apartments / Condos","Assembly","Assembly","Other","Apartments / Condos","Apartments / Condos","Health Care - Hospital","Health Care - Hospital","Health Care - Hospital",null,null,null,null,"Space Type","Lobby_or_Concierge"]
[null,"Other","Manufacturing (1 Shift)","Office Building","Office Building","Manufacturing (1 Shift)","Health Care - Hospital","Manufacturing (1 Shift)","Office Building","Assembly","Manufacturing (1 Shift)","School(K-12)","Assembly","Manufacturing (1 Shift)","Manufacturing (1 Shift)","Manufacturing (2 shifts)","Assembly","Health Care - Hospital","Manufacturing (1 Shift)","Retail","Manufacturing (1 Shift)","","Health Care - Outpatient","Health Care - Assisted/Nursing","Health Care - Outpatient",null,null,null,null,"Facility Type","Manufacturing (2 shifts)"]
[null,"","Manufacturing (2 shifts)","School(K-12)","Other","Manufacturing (2 shifts)","Health Care - Assisted/Nursing","Health Care - Hospital","Other","Manufacturing (1 Shift)","Manufacturing (2 shifts)","University ","Manufacturing (1 Shift)","Manufacturing (2 shifts)","Manufacturing (2 shifts)","Manufacturing (3 shifts)","Manufacturing (1 Shift)","Office Building","Manufacturing (2 shifts)","Warehouse","Manufacturing (2 shifts)","","Health Care - Assisted/Nursing",null,"Health Care - Assisted/Nursing"]
[null,"","Manufacturing (3 shifts)","University ","Retail","Manufacturing (3 shifts)","Other","Office Building","Retail","Manufacturing (2 shifts)","Manufacturing (3 shifts)",null,"Manufacturing (2 shifts)","Manufacturing (3 shifts)","Manufacturing (3 shifts)","Office Building","Manufacturing (2 shifts)","Retail","Manufacturing (3 shifts)","","Manufacturing (3 shifts)","","","","",null,null,null,null,"Step 2"]
[null,"","Health Care - Hospital","Warehouse","School(K-12)","Health Care - Hospital","Restaurant - Fast Food","Other","School(K-12)","Manufacturing (3 shifts)","Hotel/Motel","","Manufacturing (3 shifts)","Health Care - Hospital","Health Care - Hospital","Retail","Manufacturing (3 shifts)","University ","Hotel/Motel","","Hotel/Motel","","","","",null,null,null,null,{"$f":"HLOOKUP(AE33,$B$3:$AC$29,26,FALSE)","v":{"$error":"#N/A"}},"Column lookup"]
[null,"","Office Building",null,"University ","Office Building","Restaurant - Casual Dining","Restaurant - Fast Food","University ","Health Care - Hospital","Health Care - Hospital","","Hotel/Motel","Health Care - Outpatient","Office Building","Retail - Chain Stores","Hotel/Motel","Automotive Facility (Sales & Service)","Health Care - Hospital","","Health Care - Assisted/Nursing","","","","",null,null,null,null,{"$f":"VLOOKUP(AE32,$A$4:$AC$29,AD36+1,FALSE)","v":{"$error":"#N/A"}},"Annual Hours"]
[null,"","Other","","","Other",null,"Restaurant - Casual Dining",null,"Office Building","Health Care - Assisted/Nursing","","Health Care - Hospital","Health Care - Assisted/Nursing","Other","School(K-12)","Health Care - Hospital",null,"Health Care - Outpatient","","Automotive Facility (Sales & Service)",""]
[null,"","Retail","","","Retail","","Retail","","Other","Office Building","","Health Care - Outpatient","Office Building","Retail","University ","Health Care - Outpatient","","Health Care - Assisted/Nursing","","",""]
[null,"","Retail - Chain Stores","","","Retail - Chain Stores",null,"Automotive Facility (Sales & Service)","","Restaurant - Fast Food","Other","","Health Care - Assisted/Nursing","Other","Retail - Chain Stores","Warehouse","Health Care - Assisted/Nursing","","Office Building","",null,""]
[null,"","School(K-12)",null,null,"School(K-12)","",null,null,"Restaurant - Casual Dining","Restaurant - Fast Food","","Office Building","Retail","School(K-12)","Automotive Facility (Sales & Service)","Office Building",null,"Other","","","","","",""]
[null,null,"University ","",null,"University ",null,null,null,"Retail","Restaurant - Casual Dining","","Other","Retail - Chain Stores","University ",null,"Other","","Restaurant - Fast Food",null,"","","","",""]
[null,"","Warehouse","","","Warehouse",null,null,"","Retail - Chain Stores","Retail","","Restaurant - Fast Food","School(K-12)","Warehouse","","Restaurant - Fast Food","","Retail","","","","","",""]
[null,"","Automotive Facility (Sales & Service)","","","Automotive Facility (Sales & Service)",null,null,"","School(K-12)","Retail - Chain Stores","","Restaurant - Casual Dining","University ","Automotive Facility (Sales & Service)","","Retail","","Retail - Chain Stores","","","","","",""]
[null,"","","","","","","","","University ","School(K-12)","","Retail","Warehouse","","","Retail - Chain Stores","","School(K-12)","","","","","",""]
[null,"",null,"",null,null,"",null,null,"Warehouse","University ","","Retail - Chain Stores","Automotive Facility (Sales & Service)",null,null,"School(K-12)",null,"University ",null,"","","","",""]
[null,"",null,"","",null,"","","","Automotive Facility (Sales & Service)","Warehouse","","School(K-12)",null,null,null,"University ","","Warehouse","","","","","",""]
[null,"",null,null,null,null,"","",null,null,"Automotive Facility (Sales & Service)",null,"University ",null,null,null,"Warehouse","","Automotive Facility (Sales & Service)","","","","","",""]
[null,"",null,null,null,null,"","",null,null,null,null,"Warehouse",null,null,null,"Automotive Facility (Sales & Service)",null,null,"","","","","",""]
[null,"","","","","","","","","","","","Automotive Facility (Sales & Service)","","","","","","","","","","","",""]
[null,"",null,null,"",null,"","","",null,null,"",null,null,null,null,null,"",null,null,"","","","",""]
[null,"","","","","","","","","","","","","","","","","","","","","","","",""]
[null,null,null,"","",null,"",null,"",null,null,"",null,null,null,null,null,null,null,"",null,"","","",""]
[]
[]
[]
[]
[]
[]
[]
["Facility type","Health","Lodging_or_Residences","Manufacturing_or_Industrial","Dining_or_Drinking","Retail","Schools","All_Others"]
[{"$f":"B61","v":"Health"},{"$f":"B3","v":"Healthcare_Hospital"},{"$f":"E3","v":"Apartments_5_or_More_Units"},{"$f":"H3","v":"Manufacturing_1_shift"},{"$f":"L3","v":"Restaurant_Fast_Food"},{"$f":"O3","v":"General_Retail"},{"$f":"S3","v":"K12_School"},{"$f":"U3","v":"Office_Building"}]
[{"$f":"C61","v":"Lodging_or_Residences"},{"$f":"C3","v":"Healthcare_Outpatient"},{"$f":"F3","v":"Hotel_or_Motel"},{"$f":"I3","v":"Manufacturing_2_shifts"},{"$f":"M3","v":"Restaurant_Casual_Dining"},{"$f":"P3","v":"Convenience_Store"},{"$f":"T3","v":"University "},{"$f":"V3","v":"Assembly"}]
[{"$f":"D61","v":"Manufacturing_or_Industrial"},{"$f":"D3","v":"Healthcare_Assisted"},{"$f":"G3","v":"University_Dormitory"},{"$f":"J3","v":"Manufacturing_3_shifts"},{"$f":"N3","v":"Bar_or_Lounge"},{"$f":"Q3","v":"Chain_Stores"},null,{"$f":"W3","v":"Family_Entertainment_Center"}]
[{"$f":"E61","v":"Dining_or_Drinking"},null,null,null,null,{"$f":"R3","v":"Grocery_Store"},null,{"$f":"X3","v":"Movie_Theater"}]
[{"$f":"F61","v":"Retail"},null,null,null,null,null,null,{"$f":"Y3","v":"Fitness_Center"}]
[{"$f":"G61","v":"Schools"},null,null,null,null,null,null,{"$f":"Z3","v":"Religious "}]
[{"$f":"H61","v":"All_Others"},null,null,null,null,null,null,{"$f":"AA3","v":"Warehouse"}]
[null,null,null,null,null,null,null,{"$f":"AB3","v":"Automotive_Facility_Sales_and_Service"}]
[null,null,null,null,null,null,null,{"$f":"AC3","v":"Correctional"}]
[null,null,null,null,null,null,null,{"$f":"AD3","v":"Fire_Police_or_Public_Safety"}]
[null,null,null,null,null,null,null,{"$f":"AE3","v":"Municipal_or_Government"}]
[]
[]
[]
["Facility Type",{"$f":"B3","v":"Healthcare_Hospital"},{"$f":"C3","v":"Healthcare_Outpatient"},"Healthcare_Assisted","Apartments_5_or_More_Units","Hotel_or_Motel","University_Dormitory","Manufacturing_1_shift","Manufacturing_2_shifts","Manufacturing_3_shifts","Other_Industrial_USER_DEFINED","Restaurant_Fast_Food","Restaurant_Casual_Dining","Bar_or_Lounge","General_Retail","Convenience_Store","Chain_Stores","Grocery_Store","K12_School","University ","Office_Building","Assembly","Family_Entertainment_Center","Movie_Theater",{"$f":"Y3","v":"Fitness_Center"}]
[null,{"$f":"IF(AND(B4<>\"N/A\",B4<>\"\"),$A4,\"\")","v":"Assembly"},{"$f":"IF(AND(C4<>\"N/A\",C4<>\"\"),$A4,\"\")","v":""},"Assembly","","","Assembly","","","","","","","","","","","","Assembly","Assembly","Assembly","Assembly","Assembly","Assembly","Assembly"]
[null,"Break Room",{"$f":"IF(AND(C5<>\"N/A\",C5<>\"\"),$A5,\"\")","v":"Break Room"},"Break Room","","Break Room","Break Room","Break Room","Break Room","Break Room","","Break Room","Break Room","Break Room","Break Room","Break Room","Break Room","Break Room","Break Room","Break Room","Break Room","Break Room","Break Room","Break Room","Break Room"]
[null,"Cafeteria","Cafeteria","Cafeteria","","Cafeteria","","","","","","","","","","","","","Cafeteria","Cafeteria","Cafeteria","Cafeteria","","",""]
[null,"","","","","","","","","","","","","","Classroom","Classroom","","","Classroom","Classroom","Classroom","Classroom","","",""]
[null,"Conference","Conference","Conference","","Conference","Conference","Conference","Conference","Conference","","","","","Conference","Conference","Conference","Conference","Conference","Conference","Conference","Conference","Conference","Conference","Conference"]
[null,"Dining","","Dining","","Dining","","","","","","Dining","Dining","Dining","","","","","","","","","Dining","",""]
[null,"Equipment/Engineering Space","Equipment/Engineering Space","Equipment/Engineering Space","","Equipment/Engineering Space","Equipment/Engineering Space","Equipment/Engineering Space","Equipment/Engineering Space","Equipment/Engineering Space","","Equipment/Engineering Space","Equipment/Engineering Space","Equipment/Engineering Space","Equipment/Engineering Space","Equipment/Engineering Space","Equipment/Engineering Space","Equipment/Engineering Space","Equipment/Engineering Space","Equipment/Engineering Space","Equipment/Engineering Space","Equipment/Engineering Space","Equipment/Engineering Space","Equipment/Engineering Space","Equipment/Engineering Space"]
[null,"Gym/Fitness","Gym/Fitness","Gym/Fitness","Gym/Fitness","Gym/Fitness","","","","","","","","","Gym/Fitness","Gym/Fitness","","","Gym/Fitness","Gym/Fitness","Gym/Fitness","Gym/Fitness","","","Gym/Fitness"]
[null,"Hallway/Corridor","Hallway/Corridor","Hallway/Corridor","Hallway/Corridor","Hallway/Corridor","Hallway/Corridor","Hallway/Corridor","Hallway/Corridor","Hallway/Corridor","","Hallway/Corridor","Hallway/Corridor","","Hallway/Corridor","Hallway/Corridor","Hallway/Corridor","Hallway/Corridor","Hallway/Corridor","Hallway/Corridor","Hallway/Corridor","Hallway/Corridor","Hallway/Corridor","Hallway/Corridor","Hallway/Corridor"]
[null,"Kitchen","Kitchen","Kitchen","Kitchen","Kitchen","Kitchen","Kitchen","Kitchen","Kitchen","","Kitchen","Kitchen","Kitchen","Kitchen","Kitchen","Kitchen","Kitchen","Kitchen","Kitchen","Kitchen","Kitchen","Kitchen","Kitchen",""]
[null,"","","Library","Library","","Library","","","","","","","","","","","","Library","Library","","Library","","",""]
[null,"Office_Closed","Office_Closed","Office_Closed","Office_Closed","Office_Closed","Office_Closed","Office_Closed","Office_Closed","Office_Closed","","Office_Closed","Office_Closed","Office_Closed","Office_Closed","Office_Closed","Office_Closed","Office_Closed","Office_Closed",{"$f":"IF(AND(T15<>\"N/A\",T15<>\"\"),$A15,\"\")","v":"Office_Closed"},"Office_Closed","Office_Closed","Office_Closed","Office_Closed","Office_Closed"]
[null,"Office_Open","Office_Open","Office_Open","Office_Open","Office_Open","Office_Open","Office_Open","Office_Open","Office_Open","","Office_Open","Office_Open","Office_Open","Office_Open","Office_Open","Office_Open","Office_Open","Office_Open","Office_Open","Office_Open","Office_Open","Office_Open","Office_Open","Office_Open"]
[null,"","","","","","","","","","","","","","","","","","","","","","","",""]
[null,"","","","","","","Production","Production","Production","","","","","Production","Production","Production","Production","Production","Production","Production","","","",""]
[null,"Restroom","Restroom","Restroom","Restroom","Restroom","Restroom","Restroom","Restroom","Restroom","","Restroom","Restroom","Restroom","Restroom","Restroom","Restroom","Restroom","Restroom","Restroom","Restroom","Restroom","Restroom","Restroom","Restroom"]
[null,"Retail_Space","","","","","","","","","","","","","Retail_Space","Retail_Space","Retail_Space","Retail_Space","","Retail_Space","Retail_Space","Retail_Space","","",""]
[null,"Storage","Storage","Storage","Storage","Storage","Storage","Storage","Storage","Storage","","Storage","Storage","Storage","Storage","Storage","Storage","Storage","Storage","Storage","Storage","Storage","Storage","Storage","Storage"]
[null,"","","","","","","","","","","","","","Warehouse","Warehouse","","","","","","","","","Warehouse"]
[null,"Lobby or Concierge","Lobby or Concierge","Lobby or Concierge","Lobby or Concierge","Lobby or Concierge","Lobby or Concierge","Lobby or Concierge","Lobby or Concierge","Lobby or Concierge","","","","","","","","","","","Lobby or Concierge","","Lobby or Concierge","Lobby or Concierge","Lobby or Concierge"]
[null,"","","Sleeping/Living Spaces","Sleeping/Living Spaces","Sleeping/Living Spaces","Sleeping/Living Spaces","","","","","","","","","","","","","","","","","",""]
[null,"Nurses_Station","Nurses_Station","Nurses_Station","","","","","","","","","","","","","","","","","","","","",""]
[null,"Patient_Rooms","","Patient_Rooms","","","","","","","","","","","","","","","","","",{"$f":"IF(AND(V26<>\"N/A\",V26<>\"\"),$A26,\"\")","v":""},"","",""]
[null,"Treatment_Rooms","Treatment_Rooms","Treatment_Rooms","","","","","","","","","","","","","","","","","","","","",""]
[]
[null,"Healthcare_Hospital","Healthcare_Outpatient","Healthcare_Assisted","Apartments_5_or_More_Units","Hotel_or_Motel","University_Dormitory","Manufacturing_1_shift","Manufacturing_2_shifts","Manufacturing_3_shifts",{"$f":"K3","v":"Other_Industrial_USER_DEFINED"},"Restaurant_Fast_Food","Restaurant_Casual_Dining","Bar_or_Lounge","General_Retail","Convenience_Store","Chain_Stores","Grocery_Store","K12_School","University ","Office_Building","Assembly","Family_Entertainment_Center","Movie_Theater","Fitness_Center",null,"Religious ","Warehouse","Automotive_Facility_Sales_and_Service","Correctional","Fire_Police_or_Public_Safety","Municipal_or_Government"]
[null,"Assembly","Break Room","Assembly","Gym/Fitness","Break Room","Assembly","Break Room","Break Room","Break Room","","Break Room","Break Room","Break Room","Break Room","Break Room","Break Room","Break Room","Assembly","Assembly","Assembly","Assembly","Assembly","Assembly","Assembly",null,"Assembly","Break Room","Assembly","Assembly","Assembly","Assembly"]
[null,"Break Room","Cafeteria","Break Room","Hallway/Corridor","Cafeteria","Break Room","Conference","Conference","Conference",null,"Dining","Dining","Dining","Classroom","Classroom","Conference","Conference","Break Room","Break Room","Break Room","Break Room","Break Room","Break Room","Break Room",null,"Break Room","Cafeteria","Break Room","Break Room","Break Room","Break Room"]
[null,"Cafeteria","Conference","Cafeteria","Kitchen","Conference","Conference","Equipment/Engineering Space","Equipment/Engineering Space","Equipment/Engineering Space","","Equipment/Engineering Space","Equipment/Engineering Space","Equipment/Engineering Space","Conference","Conference","Equipment/Engineering Space","Equipment/Engineering Space","Cafeteria","Cafeteria","Cafeteria","Cafeteria","Conference","Conference","Conference",null,"Classroom","Conference","Conference","Cafeteria","Conference","Conference"]
[null,"Conference","Equipment/Engineering Space","Conference","Library","Dining","Equipment/Engineering Space","Hallway/Corridor","Hallway/Corridor","Hallway/Corridor","","Hallway/Corridor","Hallway/Corridor","Kitchen","Equipment/Engineering Space","Equipment/Engineering Space","Hallway/Corridor","Hallway/Corridor","Classroom","Classroom","Classroom","Classroom","Dining","Equipment/Engineering Space","Equipment/Engineering Space",null,"Conference","Equipment/Engineering Space","Equipment/Engineering Space","Classroom","Dining","Dining"]
[null,"Dining","Gym/Fitness","Dining","Office_Closed","Equipment/Engineering Space","Hallway/Corridor","Kitchen","Kitchen","Kitchen","","Kitchen","Kitchen","Office_Closed","Gym/Fitness","Gym/Fitness","Kitchen","Kitchen","Conference","Conference","Conference","Conference","Equipment/Engineering Space","Hallway/Corridor","Gym/Fitness",null,"Dining","Hallway/Corridor","Hallway/Corridor","Conference","Equipment/Engineering Space","Equipment/Engineering Space"]
[null,"Equipment/Engineering Space","Hallway/Corridor","Equipment/Engineering Space","Office_Open","Gym/Fitness","Kitchen","Office_Closed","Office_Closed","Office_Closed","","Office_Closed","Office_Closed","Office_Open","Hallway/Corridor","Hallway/Corridor","Office_Closed","Office_Closed","Equipment/Engineering Space","Equipment/Engineering Space","Equipment/Engineering Space","Equipment/Engineering Space","Hallway/Corridor","Kitchen","Hallway/Corridor",null,"Equipment/Engineering Space","Kitchen","Kitchen","Dining","Gym/Fitness","Hallway/Corridor"]
[null,"Gym/Fitness","Kitchen","Gym/Fitness","Restroom","Hallway/Corridor","Library","Office_Open","Office_Open","Office_Open","","Office_Open","Office_Open","Restroom","Kitchen","Kitchen","Office_Open","Office_Open","Gym/Fitness","Gym/Fitness","Hallway/Corridor","Gym/Fitness","Kitchen","Office_Closed","Office_Closed",null,"Hallway/Corridor","Office_Closed","Office_Closed","Equipment/Engineering Space","Hallway/Corridor","Library"]
[null,"Hallway/Corridor","Office_Closed","Hallway/Corridor","Storage","Kitchen","Office_Closed","Production","Production","Production","","Restroom","Restroom","Storage","Office_Closed","Office_Closed","Production","Production","Hallway/Corridor","Hallway/Corridor","Kitchen","Hallway/Corridor","Office_Closed","Office_Open","Office_Open",null,"Kitchen","Office_Open","Office_Open","Gym/Fitness","Kitchen","Office_Closed"]
[null,"Kitchen","Office_Open","Kitchen","Lobby or Concierge","Office_Closed","Office_Open","Restroom","Restroom","Restroom","","Storage","Storage","Exterior","Office_Open","Office_Open","Restroom","Restroom","Kitchen","Kitchen","Office_Closed","Kitchen","Office_Open","Restroom","Restroom",null,"Library","Production","Production","Hallway/Corridor","Office_Closed","Office_Open"]
[null,"Office_Closed","Restroom","Library","Sleeping/Living Spaces","Office_Open","Restroom","Storage","Storage","Storage","","Exterior","Exterior",null,"Production","Production","Retail_Space","Retail_Space","Library","Library","Office_Open","Library","Restroom","Storage","Storage",null,"Office_Closed","Restroom","Restroom","Kitchen","Office_Open","Restroom"]
[null,"Office_Open","Storage","Office_Closed","Exterior","Restroom","Storage","Lobby or Concierge","Lobby or Concierge","Lobby or Concierge","","","","","Restroom","Restroom","Storage","Storage","Office_Closed","Office_Closed","Production","Office_Closed","Storage","Lobby or Concierge","Warehouse",null,"Office_Open","Storage","Retail_Space","Library","Restroom","Storage"]
[null,"Restroom","Lobby or Concierge","Office_Open",null,"Storage","Lobby or Concierge","Exterior","Exterior","Exterior","",null,null,null,"Retail_Space","Retail_Space","Exterior","Exterior","Office_Open","Office_Open","Restroom","Office_Open","Lobby or Concierge","Exterior","Lobby or Concierge",null,"Restroom","Warehouse","Storage","Office_Closed","Storage","Warehouse"]
[null,"Retail_Space","Nurses_Station","Restroom",null,"Lobby or Concierge","Sleeping/Living Spaces","",null,null,"",null,null,null,"Storage","Storage",null,null,"Production","Production","Retail_Space","Restroom","Exterior",null,"Exterior",null,"Storage","Lobby or Concierge","Warehouse","Office_Open","Lobby or Concierge","Lobby or Concierge"]
[null,"Storage","Treatment_Rooms","Storage","","Sleeping/Living Spaces","Exterior",null,"","","","","","","Warehouse","Warehouse","","","Restroom","Restroom","Storage","Retail_Space","","","",null,"Lobby or Concierge","Exterior","Lobby or Concierge","Restroom","Sleeping/Living Spaces","Exterior"]
[null,"Lobby or Concierge","Exterior","Lobby or Concierge","","Exterior","",null,null,null,"","","","","Exterior","Exterior",null,null,"Storage","Retail_Space","Lobby or Concierge","Storage","","","",null,"Exterior",null,"Exterior","Storage","Exterior"]
[null,"Nurses_Station","","Sleeping/Living Spaces",null,"",null,null,null,null,"",null,null,null,null,null,null,null,"Exterior","Storage","Exterior","Exterior",null,null,null,null,null,null,null,"Lobby or Concierge"]
[null,"Patient_Rooms",null,"Nurses_Station","","","",null,"","","","","","",null,null,null,null,"","Exterior",null,null,"","","",null,null,null,null,"Sleeping/Living Spaces"]
[null,"Treatment_Rooms",null,"Patient_Rooms",null,null,null,null,null,null,"",null,null,null,null,null,null,null,null,null,null,null,null,null,null,null,null,null,null,"Exterior"]
[null,"Exterior",null,"Treatment_Rooms","","","",null,"","","","","","",null,null,"","","","",""]
[null,null,null,"Exterior",null,null,null,null,null,null,"","","","","","","","","","",null,""]
[null,"",null,null,null,null,null,"","","","","","","","","","","","","","","","","",""]
[null,null,null,null,"","","","","","","","","","","","","","","","","","","","",""]
[null,null,null,null,"","","","","","","","","","","","","","","","","","","","",""]
[null,null,null,null,"","","","","","","","","","","","","","","","","","","","",""]

{"sheet":"AESC 2024 Avoided Costs Res","index":18,"n_rows":38,"n_cols":17,"rows_kept":38,"cut":false,"hidden":true,"merged":[]}
["EffectiveDate","Includes Non-embedded cost of carbon from AESC 2024","ElectricWinterOnPeak","ElectricWinterOffPeak","ElectricSummerOnPeak","ElectricSummerOffPeak","Summer Capacity+T&D","Winter Capacity+T&D","NaturalGasResidential","HeatingOilResidential","KeroseneResidential","PropaneResidential","WoodSeasoned","WaterResidential","Gasoline","DefaultDiscountRate","DefaultGenerationMarkUp"]
["2024-01-01",1,0.22228578057633611,0.19998777085570629,0.18669195611070105,0.11791148447445299,445.87907830052995,0,27.624161485924002,44.846081774460984,51.773697878325535,65.474727692649125,49.633895085062278,6.4000000000000003E-3,45.426957002383631,3.68,0]
["2025-01-01",2,0.22984101367735346,0.20650023897050529,0.19274490194119459,0.12439361065162331,445.73577348610769,0,31.123160730113757,50.122372924947051,58.499711362973173,75.389470319300528,55.166021191453055,6.4000000000000003E-3,44.905504138029613,"Default DR",3.68]
["2026-01-01",3,0.2484342204470178,0.22218244990676972,0.19552192986550757,0.12864337068780751,445.42306499513273,0,32.046914398773445,49.911996097543692,58.172372532023289,74.711446728967204,55.023883907111383,6.4000000000000003E-3,44.787147648684808,"RGGI DR",3.68]
["2027-01-01",4,0.26028499154918611,0.24675757503441587,0.21522114916196342,0.16112098568995775,445.42278563905489,0,30.659214385214725,49.804058463909861,57.952505676686982,74.13456287394601,55.007383581949043,6.4000000000000003E-3,44.932216919938391,"Blended DR",3.68]
["2028-01-01",5,0.27594621058258462,0.26209693181796501,0.22577295127079947,0.17032969311850796,553.64144964627553,0,30.151279286215349,49.886314949543724,57.971668048619932,73.918728338515834,55.181828655126651,6.4000000000000003E-3,45.290685174343807]
["2029-01-01",6,0.26690200969140143,0.25236860237819203,0.21748479132302009,0.16306130731464991,530.58794678511413,0,28.047870119616245,50.248515101084287,58.363909384982662,74.327617561178215,55.614518655526467,6.4000000000000003E-3,45.592816325477955]
["2030-01-01",7,0.25500249083495974,0.23859379407931564,0.22458471557376394,0.1878562895434758,540.9510178856508,0,26.232334958218154,50.614117749769022,58.739341984112514,74.649922752799412,56.07356557938968,6.4000000000000003E-3,46.01639145609451]
["2031-01-01",8,0.2713389566400673,0.25269455258482326,0.23856916002358042,0.19985213500637808,506.16046713601617,0,25.701369707960616,51.157082354983132,59.337709437637301,75.308967005212352,56.710701120542993,6.4000000000000003E-3,46.326856353822905]
["2032-01-01",9,0.25749951282068895,0.23432667505960658,0.22527568165422202,0.19209985306972172,489.74021321951903,0,24.954907972032238,51.518457640790601,59.728880291933805,75.716239284097327,57.14253598022681,6.4000000000000003E-3,46.744644086062081]
["2033-01-01",10,0.24932316000007329,0.22397391510322628,0.23222763824844506,0.19827732698473882,489.74021653726578,0,24.460870048590841,52.005763030503644,60.25721540260038,76.269500950726965,57.723727092506245,6.4000000000000003E-3,47.148077036150212]
["2034-01-01",11,0.24602487257454198,0.22299784640280695,0.2337756056744156,0.20136434679001045,509.44030365654828,0,24.174305743438289,52.401177984834945,60.66999681592695,76.648220849902202,58.21260963223029,6.4000000000000003E-3,47.61405899023466]
["2035-01-01",12,0.24222063526015733,0.21880413393095013,0.23268994398135179,0.20250142416404152,489.74022128685345,0,24.431280659674229,52.86935508233887,61.195414345602259,77.258270301087848,58.751685707554842,6.4000000000000003E-3,47.920267136865618]
["2036-01-01",13,0.21612382742209671,0.19403010840166035,0.20434384484757936,0.17918219084346179,470.04012750015289,0,24.659126790634758,53.231836477319305,61.566732154931046,77.574360177222729,59.20744558494836,6.4000000000000003E-3,48.604679922965985]
["2037-01-01",14,0.1924552869880336,0.17277292271511985,0.18697815575574209,0.17021488835949017,509.44031698727008,0,24.91934048207948,53.721858410808295,62.098391463934632,78.132642985247813,59.791292189959265,6.4000000000000003E-3,48.992141634976988]
["2038-01-01",15,0.196510907755411,0.17195279291045648,0.18629943491956813,0.17393313460995163,509.4403315077106,0,25.204576303585256,54.085250730941581,62.492016335359423,78.543622012569188,60.225087409400956,6.4000000000000003E-3,49.334505641762604]
["2039-01-01",16,0.18122051792071525,0.15958408959292225,0.17382804623996911,0.15841789727010205,489.74024295787115,0,25.343184805487223,54.484201573360522,62.909177837636051,78.928957956791436,60.717468926379325,6.4000000000000003E-3,49.799106446258342]
["2040-01-01",17,0.18294399598294447,0.16708784536109617,0.18152426977538066,0.16161547853394287,557.50855597505381,0,25.713100979499128,54.887024593538158,63.331165131433046,79.321583171722622,61.213705464330189,6.4000000000000003E-3,50.185803086191811]
["2041-01-01",18,0.18622593029845458,0.16819619078849901,0.18282341398288399,0.16527947176903729,509.44034259648106,0,26.017537430124371,55.407171597543197,63.900613651220695,79.936945898372471,61.82773949030441,6.4000000000000003E-3,50.534466584463786]
["2042-01-01",19,0.1803189073751561,0.15990436472722835,0.17329723270877873,0.15529551711355427,489.74025344031355,0,26.229717299162289,55.753070620454395,64.251025887608023,80.221458285124953,62.266799221868752,6.4000000000000003E-3,50.952960268237184]
["2043-01-01",20,0.17190429412366798,0.14948216881135845,0.16304427473008964,0.14628686244545336,509.44035849746564,0,26.384961463744645,56.228660133610468,64.76448567498997,80.752251045286656,62.836107375053729,6.4000000000000003E-3,51.181926270172241]
["2044-01-01",21,0.17945505931275435,0.15082471983571696,0.1645543349796017,0.15194533489797873,509.44036103914726,0,26.568578365919961,56.483884817670543,65.000886928588741,80.864551906980154,63.184090911575325,6.4000000000000003E-3,51.702526912259643]
["2045-01-01",22,0.16685140086001626,0.15235630257766711,0.15782601633611662,0.14669162371362066,543.32453485027941,0,26.787171753395072,56.875794455927824,65.40911315552691,81.236391279598337,63.669334599727193,6.4000000000000003E-3,52.03346909971421]
["2046-01-01",23,0.15543137181446531,0.14436461312662291,0.14989880752566703,0.13931137711263608,543.32453758010672,0,27.005814149244024,57.446971727673024,66.042562442020198,81.948426005469173,64.334494808186648,6.4000000000000003E-3,52.77632139283115]
["2047-01-01",24,0.16109036628269247,0.15376618415517279,0.15938439778621397,0.14098265703182961,557.50860870998201,19.700099712783505,27.254386300604818,57.92216472582399,66.534252398082884,82.385141091804812,64.926196779162353,6.4000000000000003E-3,53.210766608806459]
["2048-01-01",25,0.15749708479743912,0.13683272608903324,0.13830162676410729,0.13355472312420075,509.44037264672221,19.700098350655338,27.455991336555204,58.312483349583374,66.940365517299242,82.753788653472071,65.409752438614589,6.4000000000000003E-3,53.805451899398506]
["2049-01-01",26,0.15627406965479257,0.13227561008758348,0.13376054947765967,0.13231841679566392,509.44038258396307,19.70009958878283,27.613901602044589,58.738621052768266,67.39149194312705,83.190427999701726,65.929266394295809,6.4000000000000003E-3,54.20097172015597]
["2050-01-01",27,0.15895658356678302,0.13280182052036743,0.13430256760565212,0.13383272270370203,489.74028271072143,19.700101102547869,27.82552076082635,59.095912726359003,67.756097683986056,83.496379417951147,66.379664422838061,6.4000000000000003E-3,54.794817029831989]
["2051-01-01",28,0.15838198384007401,0.12912394792312037,0.12967355519412269,0.13183718902711336,481.76875211692715,32.904640079320551,28.128996028459987,59.551010908085686,68.235008142588498,83.949990655628667,66.93762347440169,6.4000000000000003E-3,55.346915785060339]
["2052-01-01",29,0.15800390619235632,0.12566155930019476,0.1252937935853865,0.13006970302651163,474.60362982120472,54.959887419542127,28.436509408406437,60.011775130104382,68.719706685277316,84.408483363445299,67.502716615083528,6.4000000000000003E-3,55.905442801542712]
["2053-01-01",30,0.15780469086317414,0.12239622770908488,0.12114388942692399,0.1285123423422464,468.16333872420694,91.798275802052686,28.74811771379747,60.478284645832346,69.210273840223266,84.87192390992692,68.075044104881613,6.4000000000000003E-3,56.470480589384522]
["2054-01-01",31,0.1577684068438327,0.11931126645557677,0.11720621557942452,0.12714892947653095,462.37455415051858,153.32861539365828,29.063878567765499,60.950619839053545,69.706791283174567,85.340379605936761,68.654707634809569,6.4000000000000003E-3,57.042112778858467]
["2055-01-01",32,0.15788068426110899,0.11639156118585239,0.11346474252659755,0.12596486407900359,457.17136902489693,256.10137111105399,29.383850415027034,61.428862240088996,70.209341853871479,85.813918718146653,69.241810347370148,6.4000000000000003E-3,57.620424136047276]
["2056-01-01",33,0.15812856303013584,0.11362341825348012,0.10990488607765099,0.12494697150827327,452.4945435001494,427.76041586608187,29.708092533631849,61.913094542198664,70.718009572695706,86.292610482701107,69.836456857321878,6.4000000000000003E-3,58.205500578707742]
["2057-01-01",34,0.15850035619753505,0.11099442778223709,0.10651336978292124,0.12408336609047765,448.29083049343291,714.47869485469334,30.036665046880373,62.403400618218043,71.232879657558129,86.776525119076993,70.438753272743014,6.4000000000000003E-3,58.797429192359367]
["2058-01-01",35,0.15898552654911169,0.10849333999894999,0.10327810063639106,0.12336332764912178,444.51236945199986,1193.3778499997552,30.36962893541153,62.899865537432824,71.754038541028237,87.265733844141465,71.04880721639681,6.4000000000000003E-3,59.396298246600779]
["2059-01-01",36,0.15957457519478785,0.10610995354890738,0.10018805677721021,0.12277719001883428,441.11614144623064,1993.2724420280638,30.707046049463621,63.4025755826951,72.28157388770876,87.760308886411096,71.666727847402683,6.4000000000000003E-3,60.002197211657041]
["2060-01-01",37,0.16025894096838939,0.10383501463133674,9.7233186027285035E-2,0.12231624038061605,438.06347938601886,3329.3185625569768,31.04897912131063,63.911618267784554,72.815574611858793,88.260323500515128,72.292625883217454,6.4000000000000003E-3,60.615216775161358]

{"sheet":"AESC 2024 Avoided Costs Com","index":19,"n_rows":38,"n_cols":17,"rows_kept":38,"cut":false,"hidden":true,"merged":[]}
["EffectiveDate","Includes Non-embedded cost of carbon from AESC 2024","Electric+DripeSeasonalWinterOnPeak","Electric+DripeSeasonalWinterOffPeak","Electric+DripeSeasonalSummerOnPeak","Electric+DripeSeasonalSummerOffPeak","Summer Capacity+T&D","Winter Capacity+T&D","NaturalGasCommercial","HeatingOilCommercial","KeroseneCommercial","PropaneCommercial","WoodSeasoned","WaterCommercial","Gasoline","DefaultDiscountRate","DefaultGenerationMarkUp"]
["2024-01-01",1,0.22228578057633611,0.19998777085570629,0.18669195611070105,0.11791148447445299,445.87907830052995,0,24.891669154782285,45.742358418369172,46.385133395946148,65.474727692649125,49.633895085062278,6.4000000000000003E-3,45.426957002383631,3.68,0]
["2025-01-01",2,0.22984101367735346,0.20650023897050529,0.19274490194119459,0.12439361065162331,445.73577348610769,0,27.069930550663415,51.298442976630668,53.693800374860885,75.389470319300528,55.166021191453055,6.4000000000000003E-3,44.905504138029613,"Default DR",3.68]
["2026-01-01",3,0.2484342204470178,0.22218244990676972,0.19552192986550757,0.12864337068780751,445.42306499513273,0,27.020945778968013,49.754902408883765,52.049260436996171,74.711446728967204,55.023883907111383,6.4000000000000003E-3,44.787147648684808,"RGGI DR",3.68]
["2027-01-01",4,0.26028499154918611,0.24675757503441587,0.21522114916196342,0.16112098568995775,445.42278563905489,0,26.335933053782483,48.322471602836309,50.516171275504277,74.13456287394601,55.007383581949043,6.4000000000000003E-3,44.932216919938391,"Blended DR",3.68]
["2028-01-01",5,0.27594621058258462,0.26209693181796501,0.22577295127079947,0.17032969311850796,553.64144964627553,0,26.129459337313001,47.043893300418837,49.165672818819097,73.918728338515834,55.181828655126651,6.4000000000000003E-3,45.290685174343807]
["2029-01-01",6,0.26690200969140143,0.25236860237819203,0.21748479132302009,0.16306130731464991,530.58794678511413,0,25.077655357803216,47.396657810024138,49.537595549652885,74.327617561178215,55.614518655526467,6.4000000000000003E-3,45.592816325477955]
["2030-01-01",7,0.25500249083495974,0.23859379407931564,0.22458471557376394,0.1878562895434758,540.9510178856508,0,24.255234291456844,47.757478697462538,49.908627905695113,74.649922752799412,56.07356557938968,6.4000000000000003E-3,46.01639145609451]
["2031-01-01",8,0.2713389566400673,0.25269455258482326,0.23856916002358042,0.19985213500637808,506.16046713601617,0,24.139104542231053,48.297155995279532,50.477776890693121,75.308967005212352,56.710701120542993,6.4000000000000003E-3,46.326856353822905]
["2032-01-01",9,0.25749951282068895,0.23432667505960658,0.22527568165422202,0.19209985306972172,489.74021321951903,0,23.913796835325385,48.649008928073542,50.848465719134012,75.716239284097327,57.14253598022681,6.4000000000000003E-3,46.744644086062081]
["2033-01-01",10,0.24932316000007329,0.22397391510322628,0.23222763824844506,0.19827732698473882,489.74021653726578,0,23.868754938823336,49.114595189082323,51.341865704725308,76.269500950726965,57.723727092506245,6.4000000000000003E-3,47.148077036150212]
["2034-01-01",11,0.24602487257454198,0.22299784640280695,0.2337756056744156,0.20136434679001045,509.44030365654828,0,23.899193232397444,49.526595972096523,51.761045936070438,76.648220849902202,58.21260963223029,6.4000000000000003E-3,47.61405899023466]
["2035-01-01",12,0.24222063526015733,0.21880413393095013,0.23268994398135179,0.20250142416404152,489.74022128685345,0,24.146154514672169,49.9533308093716,52.226818792615859,77.258270301087848,58.751685707554842,6.4000000000000003E-3,47.920267136865618]
["2036-01-01",13,0.21612382742209671,0.19403010840166035,0.20434384484757936,0.17918219084346179,470.04012750015289,0,24.376487534804827,50.339181742616887,52.614316799795127,77.574360177222729,59.20744558494836,6.4000000000000003E-3,48.604679922965985]
["2037-01-01",14,0.1924552869880336,0.17277292271511985,0.18697815575574209,0.17021488835949017,509.44031698727008,0,24.638734854054182,50.81607914585431,53.116528039181716,78.132642985247813,59.791292189959265,6.4000000000000003E-3,48.992141634976988]
["2038-01-01",15,0.196510907755411,0.17195279291045648,0.18629943491956813,0.17393313460995163,509.4403315077106,0,24.924837279543905,51.174387202279242,53.49228322181861,78.543622012569188,60.225087409400956,6.4000000000000003E-3,49.334505641762604]
["2039-01-01",16,0.18122051792071525,0.15958408959292225,0.17382804623996911,0.15841789727010205,489.74024295787115,0,25.067021570458742,51.574224394725462,53.903694654275611,78.928957956791436,60.717468926379325,6.4000000000000003E-3,49.799106446258342]
["2040-01-01",17,0.18294399598294447,0.16708784536109617,0.18152426977538066,0.16161547853394287,557.50855597505381,0,25.437400954088019,51.981244073393611,54.321611799159896,79.321583171722622,61.213705464330189,6.4000000000000003E-3,50.185803086191811]
["2041-01-01",18,0.18622593029845458,0.16819619078849901,0.18282341398288399,0.16527947176903729,509.44034259648106,0,25.743254867925955,52.50287090697686,54.867566454314449,79.936945898372471,61.82773949030441,6.4000000000000003E-3,50.534466584463786]
["2042-01-01",19,0.1803189073751561,0.15990436472722835,0.17329723270877873,0.15529551711355427,489.74025344031355,0,25.957901882711329,52.855550994155635,55.224272935081686,80.221458285124953,62.266799221868752,6.4000000000000003E-3,50.952960268237184]
["2043-01-01",20,0.17190429412366798,0.14948216881135845,0.16304427473008964,0.14628686244545336,509.44035849746564,0,26.116140778958467,53.331247587504301,55.719955114786629,80.752251045286656,62.836107375053729,6.4000000000000003E-3,51.181926270172241]
["2044-01-01",21,0.17945505931275435,0.15082471983571696,0.1645543349796017,0.15194533489797873,509.44036103914726,0,26.30244314593633,53.588926041341253,55.972639071117783,80.864551906980154,63.184090911575325,6.4000000000000003E-3,51.702526912259643]
["2045-01-01",22,0.16685140086001626,0.15235630257766711,0.15782601633611662,0.14669162371362066,543.32453485027941,0,26.523353946659469,54.006689428837255,56.394386333079737,81.236391279598337,63.669334599727193,6.4000000000000003E-3,52.03346909971421]
["2046-01-01",23,0.15543137181446531,0.14436461312662291,0.14989880752566703,0.13931137711263608,543.32453758010672,0,26.744191713209563,54.583423957210712,56.999024312066922,81.948426005469173,64.334494808186648,6.4000000000000003E-3,52.77632139283115]
["2047-01-01",24,0.16109036628269247,0.15376618415517279,0.15938439778621397,0.14098265703182961,557.50860870998201,19.700099712783505,26.995258835220113,55.05005004986927,57.478868037376643,82.385141091804812,64.926196779162353,6.4000000000000003E-3,53.210766608806459]
["2048-01-01",25,0.15749708479743912,0.13683272608903324,0.13830162676410729,0.13355472312420075,509.44037264672221,19.700098350655338,27.199267589792271,55.441456722148835,57.880073217590379,82.753788653472071,65.409752438614589,6.4000000000000003E-3,53.805451899398506]
["2049-01-01",26,0.15627406965479257,0.13227561008758348,0.13376054947765967,0.13231841679566392,509.44038258396307,19.70009958878283,27.359977821608151,55.870746651829222,58.32235088767338,83.190427999701726,65.929266394295809,6.4000000000000003E-3,54.20097172015597]
["2050-01-01",27,0.15895658356678302,0.13280182052036743,0.13430256760565212,0.13383272270370203,489.74028271072143,19.700101102547869,27.573656639555384,56.229087722757953,58.686599698961444,83.496379417951147,66.379664422838061,6.4000000000000003E-3,54.794817029831989]
["2051-01-01",28,0.15838198384007401,0.12912394792312037,0.12967355519412269,0.13183718902711336,481.76875211692715,32.904640079320551,27.878849815117704,56.684216918094805,59.155357573149047,83.949990655628667,66.93762347440169,6.4000000000000003E-3,55.346915785060339]
["2052-01-01",29,0.15800390619235632,0.12566155930019476,0.1252937935853865,0.13006970302651163,474.60362982120472,54.959887419542127,28.188095567162986,57.145029562958598,59.629905141342689,84.408483363445299,67.502716615083528,6.4000000000000003E-3,55.905442801542712]
["2053-01-01",30,0.15780469086317414,0.12239622770908488,0.12114388942692399,0.1285123423422464,468.16333872420694,91.798275802052686,28.501450786945782,57.611604981575127,60.110322993852932,84.87192390992692,68.075044104881613,6.4000000000000003E-3,56.470480589384522]
["2054-01-01",31,0.1577684068438327,0.11931126645557677,0.11720621557942452,0.12714892947653095,462.37455415051858,153.32861539365828,28.818973176084249,58.084023628760932,60.596692868848081,85.340379605936761,68.654707634809569,6.4000000000000003E-3,57.042112778858467]
["2055-01-01",32,0.15788068426110899,0.11639156118585239,0.11346474252659755,0.12596486407900359,457.17136902489693,256.10137111105399,29.14072125814517,58.562367106093902,61.089097668769739,85.813918718146653,69.241810347370148,6.4000000000000003E-3,57.620424136047276]
["2056-01-01",33,0.15812856303013584,0.11362341825348012,0.10990488607765099,0.12494697150827327,452.4945435001494,427.76041586608187,29.466754390394694,59.046718178315388,61.587621476983223,86.292610482701107,69.836456857321878,6.4000000000000003E-3,58.205500578707742]
["2057-01-01",34,0.15850035619753505,0.11099442778223709,0.10651336978292124,0.12408336609047765,448.29083049343291,714.47869485469334,29.797132775717301,59.537160789966904,62.092349574666237,86.776525119076993,70.438753272743014,6.4000000000000003E-3,58.797429192359367]
["2058-01-01",35,0.15898552654911169,0.10849333999894999,0.10327810063639106,0.12336332764912178,444.51236945199986,1193.3778499997552,30.131917474705219,60.033780082265039,62.603368457939311,87.265733844141465,71.04880721639681,6.4000000000000003E-3,59.396298246600779]
["2059-01-01",36,0.15957457519478785,0.10610995354890738,0.10018805677721021,0.12277719001883428,441.11614144623064,1993.2724420280638,30.471170417920902,60.536662410217858,63.120765855241331,87.760308886411096,71.666727847402683,6.4000000000000003E-3,60.002197211657041]
["2060-01-01",37,0.16025894096838939,0.10383501463133674,9.7233186027285035E-2,0.12231624038061605,438.06347938601886,3329.3185625569768,30.814954418334921,61.04589535998619,63.644630744953787,88.260323500515128,72.292625883217454,6.4000000000000003E-3,60.615216775161358]